{"text_format":"1","workbook":"xlsx","n_sheets":22,"sheets":["Cover","Output indicators","Checklist","PP1(LP)","PP2","PP3","PP4","PP5","Project identification","T1-PPs","T2-B(PP1)","T2-B(PP2)","T2-B(PP3)","T2-B(PP4)","T2-B(PP5)","Table 2-total","Table 3-summary","Table 4 PP`BL","Table 5-Sources","Statements","Summary","Named_ranges"],"not_rendered":{"charts":0,"images":3,"macros":1,"external_links":0,"defined_names":18053,"comments":0,"pivot_tables":0},"unopened":[],"bounds":{"document_bytes":16777216,"sheet_cells":100000,"rows_first":2000,"rows_last":500,"rows_between":2000,"halvings":0,"cell_chars":16384,"cell_head_chars":4096},"cells_cut":0,"cells_raw":0,"read":"whole","date_system":"1900"}

{"sheet":"Cover","index":0,"n_rows":46,"n_cols":18,"rows_kept":46,"cut":false,"hidden":false,"merged":[[39,2,39,9],[27,2,27,9],[29,2,29,9],[31,2,31,9],[33,2,33,9],[37,2,37,9],[35,2,35,9],[13,0,13,10],[5,0,5,10],[6,0,6,10],[7,0,7,10],[8,0,8,9],[9,0,9,10],[10,1,10,11],[14,0,14,8],[15,0,15,10],[18,1,18,9],[21,1,21,9],[24,1,24,9]]}
[]
[]
[]
[]
[]
[null,null,null,null,null,null,null,null,null,null,null,null,null,"Environment",null,"1.1. Preventing and mitigating the consequences of natural and man-made disasters in the cross-border area",3,1]
[null,null,null,null,null,null,null,null,null,null,null,null,null,"Tourism",null,"1.2. Improving the capacity for nature protection, sustainable use and management of common natural resources through cooperation initiatives in the  cross-border area",3,2]
[null,null,null,null,null,null,null,null,null,null,null,null,null,null,null,"2.1. Increasing the touristic attractiveness of the cross-border area through better utilisation of natural, cultural and historical heritage and related infrastructure",2,3]
[null,null,null,null,null,null,null,null,null,null,null,null,null,null,null,"2.2. Increasing the cross-border tourism potential by developing common destinations",1,4]
["INTERREG - IPA Cross-Border Cooperation Bulgaria-Turkey Programme",null,null,null,null,null,null,null,null,null,null,null,null,null,null,"2.3. Increasing networking for development of sustainable tourism through cross-border cooperation initiatives",1,5]
[null,"Call No: 2014TC16I5CB005 – 2020 –3"]
[null,null,null,null,null,null,null,null,null,null,null,null,null,{"$f":"VLOOKUP(C32,P6:Q10,2)","v":3},"Soft","Investment","Investment"]
[null,null,null,null,null,null,null,null,null,null,null,null,null,null,null,null,"Soft"]
["Application Form "]
[]
[]
[]
[null,"Project title"]
[null,"sadasd"]
[]
[null,"Lead Partner - Instiution"]
[null,"asdasdasdasdsadsudhn kashd saidh aui   asud a iausd hkawhd klkkdsjfu oiasdnm l  ow oos  skdj  oiasd ooapoid o"]
[]
[null,"Legal  representative – name, signature, stamp"]
[null,"sjfkdjhgskjdgfb"]
[]
[]
[null,"Project title",null,null,null,null,null,null,null,null,null,null,null,"Environment",null,"1.1. Preventing and mitigating the consequences of natural and man-made disasters in the cross-border area",3,1]
[null,null,null,null,null,null,null,null,null,null,null,null,null,"Tourism",null,"1.2. Improving the capacity for nature protection, sustainable use and management of common natural resources through cooperation initiatives in the  cross-border area",3,2]
[null,"Priority Axis","Environment",null,null,null,null,null,null,null,null,null,null,null,null,"2.1. Increasing the touristic attractiveness of the cross-border area through better utilisation of natural, cultural and historical heritage and related infrastructure",2,3]
[null,null,null,null,null,null,null,null,null,null,null,null,null,null,null,"2.2. Increasing the cross-border tourism potential by developing common destinations",1,4]
[null,"Specific Objective","1.2. Improving the capacity for nature protection, sustainable use and management of common natural resources through cooperation initiatives in the  cross-border area",null,null,null,null,null,null,null,null,null,null,null,null,"2.3. Increasing networking for development of sustainable tourism through cross-border cooperation initiatives",1,5]
[]
[null,"Type of project","Investment",null,null,null,null,null,null,null,null,null,null,{"$f":"VLOOKUP(C32,P28:Q32,2)","v":3},"Soft","Investment","Investment"]
[]
[null,"Intervention field"]
[null,null,null,null,null,null,null,null,null,null,null,null,null,null,null,null,"Soft"]
[null,"Lead Partner Organization"]
[]
[null,"Legal  representative – name, signature, stamp",null,null,null,null,null,null,null,null,null,null,null,{"$f":"C30","v":"Environment"},{"$f":"CONCATENATE(N40,\"1\")","v":"Environment1"}]
[null,null,null,null,null,null,null,null,null,null,null,null,null,"085 Protection and enhancement of biodiversity, nature protection and green infrastructure","075 Development and promotion of tourism services in or for SMEs"]
[null,null,null,null,null,null,null,null,null,null,null,null,null,"087 Adaptation to climate change measures and prevention and management of climate related risks e.g. erosion, fires, flooding, storms and drought, including awareness raising, civil protection and disaster management systems and infrastructures","079 Access to public sector information (including open data e-Tourism)"]
[null,null,null,null,null,null,null,null,null,null,null,null,null,null,"090 Cycle tracks and footpaths"]
[null,null,null,null,null,null,null,null,null,null,null,null,null,null,"092 Protection, development and promotion of public tourism assets"]
[null,null,null,null,null,null,null,null,null,null,null,null,null,null,"094 Protection, development and promotion of public cultural and heritage assets"]
[null,null,null,null,null,null,null,null,null,null,null,null,null,null,"095 Development and promotion of public cultural and heritage services"]

{"sheet":"Output indicators","index":1,"n_rows":14,"n_cols":5,"rows_kept":14,"cut":false,"hidden":false,"merged":[[12,2,12,3],[13,2,13,3],[12,4,12,8],[13,4,13,8],[5,1,5,8],[10,2,10,3],[10,4,10,8],[11,2,11,3],[11,4,11,8],[7,2,7,3],[7,4,7,8],[8,2,8,3],[8,4,8,8],[9,2,9,3],[9,4,9,8]]}
[]
[]
[]
[]
[]
[null,"Contribution of project to the Programme output indicators"]
[]
[null,"Output indicators","Quantity",null,"Justification"]
[null,{"$f":"pi_out_indicators","v":0},{"$f":"pi_monit_quant","v":0},null,{"$f":"pi_monit_justf","v":0}]
[null,{"$f":"pi_out_indicator2","v":0},{"$f":"pi_monit_quant2","v":0},null,{"$f":"pi_monit_justf2","v":0}]
[null,{"$f":"pi_out_indicator3","v":0},{"$f":"pi_monit_quant3","v":0},null,{"$f":"pi_monit_justf3","v":0}]
[null,{"$f":"pi_out_indicator4","v":0},{"$f":"pi_monit_quant4","v":0},null,{"$f":"pi_monit_justf4","v":0}]
[null,{"$f":"pi_out_indicator5","v":0},{"$f":"pi_monit_quant5","v":0},null,{"$f":"pi_monit_justf5","v":0}]
[null,{"$f":"pi_out_indicator6","v":0},{"$f":"pi_monit_quant6","v":0},null,{"$f":"pi_monit_justf6","v":0}]

{"sheet":"Checklist","index":2,"n_rows":77,"n_cols":11,"rows_kept":77,"cut":false,"hidden":false,"merged":[[0,1,1,7]]}
[null,"Application Form\nINTERREG-IPA Cross-Border Cooperation \nBulgaria-Turkey Programme\n\n     \n     \n     \n"]
[]
[]
[]
[]
[null,"Project partner 1 (Lead Beneficiery)"]
[null,null,"1.1.Detailed information",null,null,null,null,null,null,{"$f":"'PP1(LP)'!J35","v":false}]
[null,null,"1.2. Partner profile",null,null,null,null,"x",null,{"$f":"'PP1(LP)'!J39","v":false}]
[null,null,"1.3. Partner experience",null,null,null,null,"x",null,{"$f":"NOT(ISBLANK(pp1_pe_ip1))","v":false}]
[]
[null,null,"2.1. Detailed information",null,null,null,null,"x",null,{"$f":"'PP1(LP)'!J68","v":false}]
[null,null,"2.2. Financial status and human resource",null,null,null,null,"x",null,{"$f":"'PP1(LP)'!J76","v":false}]
[]
[null,"Project partner 2"]
[null,null,"1.1.Detailed information",null,null,null,null,"x",null,{"$f":"'PP2'!$J$35","v":false}]
[null,null,"1.2. Partner profile",null,null,null,null,"x",null,{"$f":"'PP2'!J$39","v":false}]
[null,null,"1.3. Partner experience",null,null,null,null,"x",null,{"$f":"NOT(ISBLANK(pp2_pe_ip1))","v":false}]
[]
[null,null,"2.1. Detailed information",null,null,null,null,"x",null,{"$f":"'PP2'!J$68","v":false}]
[null,null,"2.2. Financial status and human resource",null,null,null,null,"x",null,{"$f":"'PP2'!J$76","v":false}]
[]
[null,"Project partner 3",null,"x",null,null,null,null,null,null,"x"]
[null,null,"1.1.Detailed information",null,null,null,null,"x",null,{"$f":"'PP3'!$J$35","v":false}]
[null,null,"1.2. Partner profile",null,null,null,null,"x",null,{"$f":"'PP3'!J$39","v":false}]
[null,null,"1.3. Partner experience",null,null,null,null,"x",null,{"$f":"NOT(ISBLANK(pp3_pe_ip1))","v":false}]
[]
[null,null,"2.1. Detailed information",null,null,null,null,"x",null,{"$f":"'PP3'!J$68","v":false}]
[null,null,"2.2. Financial status and human resource",null,null,null,null,"x",null,{"$f":"'PP3'!J$76","v":false}]
[]
[null,"Project partner 4",null,"x"]
[null,null,"1.1.Detailed information",null,null,null,null,"x",null,{"$f":"'PP4'!$J$35","v":false}]
[null,null,"1.2. Partner profile",null,null,null,null,"x",null,{"$f":"'PP4'!J$39","v":false}]
[null,null,"1.3. Partner experience",null,null,null,null,"x",null,{"$f":"NOT(ISBLANK(pp4_pe_ip1))","v":false}]
[]
[null,null,"2.1. Detailed information",null,null,null,null,"x",null,{"$f":"'PP4'!J$68","v":false}]
[null,null,"2.2. Financial status and human resource",null,null,null,null,"x",null,{"$f":"'PP4'!J$76","v":false}]
[]
[null,"Project partner 5",null,"x"]
[null,null,"1.1.Detailed information",null,null,null,null,"x",null,{"$f":"'PP5'!$J$35","v":false}]
[null,null,"1.2. Partner profile",null,null,null,null,"x",null,{"$f":"'PP5'!J$39","v":false}]
[null,null,"1.3. Partner experience",null,null,null,null,"x",null,{"$f":"NOT(ISBLANK(pp5_pe_ip1))","v":false}]
[]
[null,null,"2.1. Detailed information",null,null,null,null,"x",null,{"$f":"'PP5'!J$68","v":false}]
[null,null,"2.2. Financial status and human resource",null,null,null,null,"x",null,{"$f":"'PP5'!J$76","v":false}]
[]
[null,"Project Identification"]
[null,"1. Project Identity"]
[null,null,"1.1. Project Identity",null,null,null,null,"x",null,{"$f":"'Project identification'!L16","v":true}]
[null,null,"1.2. Project duration",null,null,null,null,"x",null,{"$f":"'Project identification'!L19","v":false}]
[null,null,"1.3 Cooperation criteria",null,null,null,null,"x",null,{"$f":"'Project identification'!O26","v":false}]
[null,null,"1.4 Cross-border impact and benefits of the project",null,null,null,null,"x",null,{"$f":"NOT(ISBLANK('Project identification'!B37))","v":false}]
[]
[null,"2. Financial information - Project budget (EUR)"]
[null,null,"2.1. Sources of financing (EUR)",null,null,null,null,"x"]
[null,null,"2.2. Breakdown of eligible expenditure (EUR)",null,null,null,null,"x"]
[]
[null,"2. Project description"]
[null,null,"2.1. Background and demand for the project proposal ",null,null,null,null,"x",null,{"$f":"NOT('Project identification'!L46)","v":false}]
[null,null,"3.2. Consistency with the Programme specific objective",null,null,null,null,"x",null,{"$f":"'Project identification'!M50","v":0}]
[null,null,"3.3. Consistency with the Programme overall aim",null,null,null,null,"x",null,{"$f":"'Project identification'!M54","v":0}]
[null,null,"2.2. Description of the target groups and beneficiaries",null,null,null,null,"x",null,{"$f":"'Project identification'!P61","v":false}]
[null,null,"2.3. Project activities ",null,null,null,null,"x",null,{"$f":"NOT(ISBLANK(pi_act_1_descrp))","v":false}]
[null,null,"2.4. Project activities outside the eligible border area ",null,null,null,null,"x",null,{"$f":"'Project identification'!N384","v":false}]
[null,null,"2.5.Communication and visibility",null,null,null,null,"x",null,{"$f":"'Project identification'!L392","v":false}]
[null,null,"2.6. Duration and action plan",null,null,null,null,"x",null,{"$f":"'Project identification'!L428","v":false}]
[]
[null,"3. Management of the project and reporting ",null,null,null,null,null,"x",null,{"$f":"'Project identification'!L436","v":false}]
[]
[null,"4. Project monitoring"]
[null,null,"4.1. Expected outputs",null,null,null,null,"x",null,{"$f":"'Project identification'!AB446","v":false}]
[null,null,"4.2. Multiplier effect",null,null,null,null,"x",null,{"$f":"'Project identification'!L457","v":false}]
[null,null,"4.3. Sustainability",null,null,null,null,"x",null,{"$f":"'Project identification'!L462","v":false}]
[]
[null,"5. Project coherence:"]
[null,null,"5.1. with other programmes/strategies",null,null,null,null,"x",null,{"$f":"'Project identification'!L470","v":false}]
[null,null,"5.2. with horizontal principles  ",null,null,null,null,"x",null,{"$f":"'Project identification'!M480","v":false}]
[null,null,"6.3. Horizontal themes",null,null,null,null,"x",null,{"$f":"'Project identification'!M480","v":false}]

{"sheet":"PP1(LP)","index":3,"n_rows":79,"n_cols":22,"rows_kept":79,"cut":false,"hidden":false,"merged":[[78,2,78,4],[78,6,78,7],[75,2,75,4],[75,6,75,7],[76,2,76,4],[76,6,76,7],[77,2,77,4],[77,6,77,7],[74,1,74,7],[65,1,65,7],[28,2,28,7],[69,2,69,7],[71,2,71,7],[73,1,73,7],[48,2,48,5],[56,2,56,5],[40,1,40,5],[61,2,61,4],[60,2,60,7],[50,2,50,7],[51,2,51,7],[52,2,52,7],[26,2,26,7],[24,2,24,7],[41,1,41,7],[62,2,62,4],[62,6,62,7],[53,2,53,4],[54,2,54,4],[61,6,61,7],[58,2,58,7],[59,2,59,7],[54,6,54,7],[53,6,53,7],[6,2,6,7],[8,2,8,7],[0,1,1,7],[4,1,4,7],[22,2,22,7],[20,2,20,7],[18,2,18,7],[16,2,16,7],[14,2,14,7],[41,16,45,16],[10,2,10,7],[45,6,45,7],[46,6,46,7],[44,2,44,7],[42,2,42,7],[43,2,43,7],[45,2,45,4],[46,2,46,4],[37,1,38,7],[36,1,36,7],[32,2,32,7],[30,2,30,7],[33,1,33,7],[34,1,34,7],[35,1,35,7]]}
[null,"Application Form\nINTERREG-IPA Cross-Border Cooperation \nBulgaria-Turkey Programme\nPART I\n     \n     \n     \n"]
[]
[null,"PROJECT PARTNER No 1"]
[]
[null,"1. Identity"]
[null,"1.1.Detailed information"]
[null,"Organization\n(in English language):",{"$f":"IF(Cover!C38=\"\",\"\",Cover!C38)","v":""},null,null,null,null,null,null,{"$f":"ISBLANK(C7)","v":false}]
[]
[null,"Organization\n(in native language):",null,null,null,null,null,null,null,{"$f":"ISBLANK(C9)","v":true}]
[null,null,null,null,null,null,null,null,null,null,null,null,null,null,null,null,null,null,null,null,null,"Administration of protected area/s"]
[null,"Type of organization:",null,null,null,null,null,null,null,{"$f":"ISBLANK(C11)","v":true},null,null,null,null,null,null,null,null,null,null,null,"Association of local/regional authorities or other organisations"]
[null,null,null,null,null,null,null,null,null,null,null,null,null,null,null,null,null,null,null,null,null,"Business support institution/organisation"]
[null,"Country:",null,null,null,null,null,null,null,null,null,null,null,null,null,null,null,null,null,null,null,"Central/Regional/Local office or structure of government institution/ administration"]
[null,null,null,null,null,null,null,null,null,null,1,null,null,null,{"$f":"VLOOKUP('Project identification'!C13,'Project identification'!P9:R13,3)","v":2},null,null,null,null,null,null,"Educational/Training institution or organisation"]
[null,"District/NUTS III",null,null,null,null,null,null,null,{"$f":"ISBLANK(C15)","v":true},null,"Bourgas","Edirne",null,null,null,null,null,null,null,null,"Euro region or other joint cross-border structure or institution"]
[null,null,null,null,null,null,null,null,null,null,null,"Yambol","Kirklareli",null,null,null,null,null,null,null,null,"Local/Regional authority"]
[null,"Town/city:",null,null,null,null,null,null,null,{"$f":"ISBLANK(C17)","v":true},null,"Haskovo","Other",null,"Local/Regional authority","Local/Regional authority","Local/Regional authority","Local/Regional authority","Local/Regional authority",null,null,"Non-Governmental organisation"]
[null,null,null,null,null,null,null,null,null,null,null,"Other",null,null,"Central/Regional office or structure of national/governmental institution/administration","Association of local/regional authorities or other organisations","Regional/Sector development agency","Central/Regional/Local office or structure of government institution/ administration","Central/Regional/Local office or structure of government institution/ administration",null,null,"Non-Governmental organisation in the field of tourism"]
[null,"Address:",null,null,null,null,null,null,null,{"$f":"ISBLANK(C19)","v":true},null,null,null,null,"Regional/Sector development agency","Central/Regional office or structure of central government institution/ administration","Central/Regional/Local office or structure of government institution/ administration","Administration of protected area/s","Administration of protected area/s",null,null,"Public cultural institute"]
[null,null,null,null,null,null,null,null,null,null,null,null,null,null,null,"Administration of protected area/s","Public cultural institute","Non-Governmental organisation in the field of tourism","Non-Governmental organisation",null,null,"Regional touristic association"]
[null,"Postal Code:",null,null,null,null,null,null,null,{"$f":"ISBLANK(C21)","v":true},null,null,null,null,null,"Euro region or other joint cross-border structure or institution","Regional touristic association","Business support institution/organisation","Business support institution or organisation",null,null,"Regional/Sector development agency"]
[null,null,null,null,null,null,null,null,null,null,null,null,null,null,null,"University/Scientific institution","Business support institution/organisation","Tourist board or association","Tourist board or association;",null,null,"Tourist board or association"]
[null,"Legal representative                  (Name):",{"$f":"IF(Cover!C40=\"\",\"\",Cover!C40)","v":""},null,null,null,null,null,null,{"$f":"ISBLANK(C23)","v":false},null,null,null,null,null,"Educational/Training institution or organisation","Non-Governmental organisation","Educational/Training institution/organization","Educational/Training institution/organization",null,null,"University/Scientific institution"]
[null,null,null,null,null,null,null,null,null,null,null,null,null,null,null,"Business support institution/organisation","Educational/Training institution or organizations","University/Scientific institution","University/Scientific organization",null,null,"Youth’s organization"]
[null,"Legal representative              (Position in the organization):",null,null,null,null,null,null,null,{"$f":"ISBLANK(C25)","v":true},null,null,null,null,null,"Non-Governmental organisation","University/Scientific institution","Public cultural institute","Community organization/institution involved in development of civil society/promotion of education, culture and sports"]
[null,null,null,null,null,null,null,null,null,null,null,null,null,null,null,"Youth’s organization",null,null,"Youth’s organization"]
[null,"Telephone:"]
[]
[null,"Fax:"]
[]
[null,"E-mail:"]
[]
[null,"Website:"]
[null,"1.2. Partner profile\n1.2.1 Partner's background\nPlease describe the profile of the organization and general competences and activities (max 2x2000 chars).",null,null,null,null,null,null,null,{"$f":"J25+J23+J21+J19+J17+J15+J11+J9+J7","v":7}]
[null,null,null,null,null,null,null,null,null,{"$f":"J34=0","v":false}]
[]
[null,"1.2.2 Partner's competence\nPlease describe whether the project partners have the competence to implement the project activities invisaged for each of them (2000 symbols)"]
[]
[null,null,null,null,null,null,null,null,null,{"$f":"LEN(B38)>0","v":false},{"$f":"LEN(B38)>2500","v":false}]
[null,"1.3. Partner experience"]
[null,"Please state if you are experienced in \nproject management of public funded projects",null,null,null,null,null,null,null,null,null,null,null,null,null,null,null,null,null,null,null,"Administration of protected area/s"]
[null,"If Yes, please fill in the table below brief description for the most relevant successfully implemented project(s) - (maximum three projects for each project partner):",null,null,null,null,null,null,null,null,"hidden until Yes on G36",null,null,null,null,null,"global check if \"yes\" inG39",null,null,null,null,"Non-Governmental organisation"]
[null,"Initiative/Programme",null,null,null,null,null,null,null,null,null,null,null,null,null,null,null,null,null,null,null,"Business support institution or organisation"]
[null,"Project title  and reference number",null,null,null,null,null,null,null,null,null,null,null,null,null,null,null,null,null,null,null,"Tourist board or association;"]
[null,"Short description including project objectives and activities \n(max. 500 characters)",null,null,null,null,null,null,null,null,null,null,null,null,null,null,null,null,null,null,null,"Educational/Training institution/organization"]
[null,"Total eligible value in euro for the project partner (for finalized projects: total eligible value after project implementation - financial execution; for ongoing projects: total contract eligible value)",null,null,null,"Grant amount:",null,null,null,null,null,null,null,null,null,null,null,null,null,null,null,"University/Scientific organization"]
[null,"Organization’s role in the project (lead partner, partner etc.)and other partners involved in the project",null,null,null,"Start date and end date of the project ",null,null,null,null,"Add button",null,null,null,null,null,null,null,null,null,null,"Community organization/institution involved in development of civil society/promotion of education, culture and sports"]
[null,null,null,null,null,null,null,null,null,null,null,null,null,null,null,null,null,null,null,null,null,"Youth’s organization"]
[null,null,"Add new project information",null,null,null,null,null,null,null,"No",null,1,null,null,null,null,null,null,null,null,"Administration of protected area/s"]
[null,null,null,null,null,null,null,null,null,null,"Visible after \"add\"",null,null,null,null,null,null,null,null,null,null,"Non-Governmental organisation"]
[null,"Initiative/Programme",null,null,null,null,null,null,null,null,null,null,null,null,null,null,null,null,null,null,null,"Business support institution or organisation"]
[null,"Project title  and reference number",null,null,null,null,null,null,null,null,null,null,null,null,null,null,null,null,null,null,null,"Tourist board or association;"]
[null,"Short description including project objectives and activities \n(max. 500 characters)",null,null,null,null,null,null,null,null,null,null,null,null,null,null,null,null,null,null,null,"Educational/Training institution/organization"]
[null,"Total eligible value in euro for the project partner (for finalized projects: total eligible value after project implementation - financial execution; for ongoing projects: total contract eligible value)",null,null,null,"Grant amount:"]
[null,"Organization’s role in the project (lead partner, partner etc.)and other partners involved in the project",null,null,null,"Start date and end date of the project ",null,null,null,null,"Add button"]
[]
[null,null,"Add new project information",null,null,null,null,null,null,null,"No",null,1,null,null,null,null,null,null,null,null,"Administration of protected area/s"]
[null,null,null,null,null,null,null,null,null,null,"Visible after \"add\"",null,null,null,null,null,null,null,null,null,null,"Non-Governmental organisation"]
[null,"Initiative/Programme",null,null,null,null,null,null,null,null,null,null,null,null,null,null,null,null,null,null,null,"Business support institution or organisation"]
[null,"Project title  and reference number",null,null,null,null,null,null,null,null,null,null,null,null,null,null,null,null,null,null,null,"Tourist board or association;"]
[null,"Short description including project objectives and activities \n(max. 500 characters)",null,null,null,null,null,null,null,null,null,null,null,null,null,null,null,null,null,null,null,"Educational/Training institution/organization"]
[null,"Total eligible value in euro for the project partner (for finalized projects: total eligible value after project implementation - financial execution; for ongoing projects: total contract eligible value)",null,null,null,"Grant amount:"]
[null,"Organization’s role in the project (lead partner, partner etc.)and other partners involved in the project",null,null,null,"Start date and end date of the project ",null,null,null,null,"Add button"]
[]
[]
[null,"2. Financial Data"]
[]
[null,"2.1. Detailed information",null,null,null,null,null,null,null,{"$f":"J73=0","v":false}]
[]
[null,"National registration code:",null,null,null,null,null,null,null,{"$f":"ISBLANK(C70)","v":true}]
[]
[null,"VAT registration (type N/A if not applicable):",null,null,null,null,null,null,null,{"$f":"ISBLANK(C72)","v":true}]
[null,null,null,null,null,null,null,null,null,{"$f":"J72+J70","v":2}]
[null,"2.2. Financial status and human resource"]
[null,"Please provide the following information on the basis of the Profit and loss account and Balance sheet of your organization  and any information related to the staff and technical capacity for the past 3 (three) years."]
[null,"Year","Turnover or equivalent\n(in EUR)",null,null,"Number of full-time staff","Number of part-time staff",null,null,{"$f":"N76=0","v":false},null,null,null,{"$f":"SUM(N77:N79)","v":9}]
[null,2017,null,null,null,null,null,null,null,null,{"$f":"ISBLANK(C77)","v":true},true,true,{"$f":"K77+L77+M77","v":3}]
[null,2018,null,null,null,null,null,null,null,null,true,true,true,{"$f":"K78+L78+M78","v":3}]
[null,2019,null,null,null,null,null,null,null,null,true,true,true,{"$f":"K79+L79+M79","v":3}]

{"sheet":"PP2","index":4,"n_rows":79,"n_cols":22,"rows_kept":79,"cut":false,"hidden":false,"merged":[[76,2,76,4],[76,6,76,7],[77,2,77,4],[77,6,77,7],[78,2,78,4],[78,6,78,7],[59,2,59,7],[60,2,60,7],[61,2,61,4],[61,6,61,7],[62,2,62,4],[62,6,62,7],[65,1,65,7],[69,2,69,7],[71,2,71,7],[74,1,74,7],[75,2,75,4],[75,6,75,7],[58,2,58,7],[46,2,46,4],[46,6,46,7],[48,2,48,5],[50,2,50,7],[51,2,51,7],[52,2,52,7],[53,2,53,4],[53,6,53,7],[54,2,54,4],[54,6,54,7],[56,2,56,5],[41,1,41,7],[41,16,45,16],[42,2,42,7],[43,2,43,7],[44,2,44,7],[45,2,45,4],[45,6,45,7],[40,1,40,5],[16,2,16,7],[18,2,18,7],[20,2,20,7],[22,2,22,7],[24,2,24,7],[26,2,26,7],[28,2,28,7],[30,2,30,7],[32,2,32,7],[36,1,36,7],[37,1,38,7],[34,1,34,7],[35,1,35,7],[33,1,33,7],[14,2,14,7],[0,1,1,7],[4,1,4,7],[6,2,6,7],[8,2,8,7],[10,2,10,7]]}
[null,"Application Form\nINTERREG-IPA Cross-Border Cooperation \nBulgaria-Turkey Programme\nPART I\n     \n     \n     \n"]
[]
[null,"PROJECT PARTNER No 2"]
[]
[null,"1. Identity"]
[null,"1.1.Detailed information"]
[null,"Organization\n(in English language):",null,null,null,null,null,null,null,{"$f":"ISBLANK(C7)","v":true}]
[]
[null,"Organization\n(in native language):",null,null,null,null,null,null,null,{"$f":"ISBLANK(C9)","v":true}]
[]
[null,"Type of organization:",null,null,null,null,null,null,null,{"$f":"ISBLANK(C11)","v":true}]
[]
[null,"Country:"]
[null,null,null,null,null,null,null,null,null,null,2,null,null,null,{"$f":"VLOOKUP('Project identification'!C13,'Project identification'!P9:R13,3)","v":2}]
[null,"District/NUTS III",null,null,null,null,null,null,null,{"$f":"ISBLANK(C15)","v":true},null,"Bourgas","Edirne"]
[null,null,null,null,null,null,null,null,null,null,null,"Yambol","Kirklareli"]
[null,"Town/city:",null,null,null,null,null,null,null,{"$f":"ISBLANK(C17)","v":true},null,"Haskovo","Other",null,"Local/Regional authority","Local/Regional authority","Local/Regional authority","Local/Regional authority","Local/Regional authority"]
[null,null,null,null,null,null,null,null,null,null,null,"Other",null,null,"Central/Regional office or structure of national/governmental institution/administration","Association of local/regional authorities or other organisations","Regional/Sector development agency","Central/Regional/Local office or structure of government institution/ administration","Central/Regional/Local office or structure of government institution/ administration"]
[null,"Address:",null,null,null,null,null,null,null,{"$f":"ISBLANK(C19)","v":true},null,null,null,null,"Regional/Sector development agency","Central/Regional office or structure of central government institution/ administration","Central/Regional/Local office or structure of government institution/ administration","Administration of protected area/s","Administration of protected area/s"]
[null,null,null,null,null,null,null,null,null,null,null,null,null,null,null,"Administration of protected area/s","Public cultural institute","Non-Governmental organisation in the field of tourism","Non-Governmental organisation"]
[null,"Postal Code:",null,null,null,null,null,null,null,{"$f":"ISBLANK(C21)","v":true},null,null,null,null,null,"Euro region or other joint cross-border structure or institution","Regional touristic association","Business support institution/organisation","Business support institution or organisation"]
[null,null,null,null,null,null,null,null,null,null,null,null,null,null,null,"University/Scientific institution","Business support institution/organisation","Tourist board or association","Tourist board or association;"]
[null,"Legal representative                   (Name):",null,null,null,null,null,null,null,{"$f":"ISBLANK(C23)","v":true},null,null,null,null,null,"Educational/Training institution or organisation","Non-Governmental organisation","Educational/Training institution/organization","Educational/Training institution/organization"]
[null,null,null,null,null,null,null,null,null,null,null,null,null,null,null,"Business support institution/organisation","Educational/Training institution or organizations","University/Scientific institution","University/Scientific organization"]
[null,"Legal representative             (Position in the organization):",null,null,null,null,null,null,null,{"$f":"ISBLANK(C25)","v":true},null,null,null,null,null,"Non-Governmental organisation","University/Scientific institution","Public cultural institute","Community organization/institution involved in development of civil society/promotion of education, culture and sports"]
[null,null,null,null,null,null,null,null,null,null,null,null,null,null,null,"Youth’s organization",null,null,"Youth’s organization"]
[null,"Telephone:"]
[]
[null,"Fax:"]
[]
[null,"E-mail:"]
[]
[null,"Website:"]
[null,"1.2. Partner profile\n1.2.1 Partner's background\nPlease describe the profile of the organization and general competences and activities (max 2x2000 chars).",null,null,null,null,null,null,null,{"$f":"J25+J23+J21+J19+J17+J15+J11+J9+J7","v":9}]
[null,null,null,null,null,null,null,null,null,{"$f":"J34=0","v":false}]
[]
[null,"1.2.2 Partner's competence\nPlease describe whether the project partners have the competence to implement the project activities invisaged for each of them (2000 symbols)"]
[]
[null,null,null,null,null,null,null,null,null,{"$f":"LEN(B38)>0","v":false},{"$f":"LEN(B38)>2500","v":false}]
[null,"1.3. Partner experience"]
[null,"Please state if you are experienced in \nproject management of public funded projects"]
[null,"If Yes, please fill in the table below brief description for the most relevant successfully implemented project(s) - (maximum three projects for each project partner):",null,null,null,null,null,null,null,null,"hidden until Yes on G36",null,null,null,null,null,"global check if \"yes\" inG39"]
[null,"Initiative/Programme",null,null,null,null,null,null,null,null,null,null,null,null,null,null,null,null,null,null,null,"Administration of protected area/s"]
[null,"Project title  and reference number",null,null,null,null,null,null,null,null,null,null,null,null,null,null,null,null,null,null,null,"Non-Governmental organisation"]
[null,"Short description including project objectives and activities \n(max. 500 characters)",null,null,null,null,null,null,null,null,null,null,null,null,null,null,null,null,null,null,null,"Business support institution or organisation"]
[null,"Total eligible value in euro for the project partner (for finalized projects: total eligible value after project implementation - financial execution; for ongoing projects: total contract eligible value)",null,null,null,"Grant amount:",null,null,null,null,null,null,null,null,null,null,null,null,null,null,null,"Tourist board or association;"]
[null,"Organization’s role in the project (lead partner, partner etc.)and other partners involved in the project",null,null,null,"Start date and end date of the project ",null,null,null,null,"Add button",null,null,null,null,null,null,null,null,null,null,"Educational/Training institution/organization"]
[]
[null,null,"Add new project information",null,null,null,null,null,null,null,"No",null,1]
[null,null,null,null,null,null,null,null,null,null,"Visible after \"add\""]
[null,"Initiative/Programme",null,null,null,null,null,null,null,null,null,null,null,null,null,null,null,null,null,null,null,"Administration of protected area/s"]
[null,"Project title  and reference number",null,null,null,null,null,null,null,null,null,null,null,null,null,null,null,null,null,null,null,"Non-Governmental organisation"]
[null,"Short description including project objectives and activities \n(max. 500 characters)",null,null,null,null,null,null,null,null,null,null,null,null,null,null,null,null,null,null,null,"Business support institution or organisation"]
[null,"Total eligible value in euro for the project partner (for finalized projects: total eligible value after project implementation - financial execution; for ongoing projects: total contract eligible value)",null,null,null,"Grant amount:",null,null,null,null,null,null,null,null,null,null,null,null,null,null,null,"Tourist board or association;"]
[null,"Organization’s role in the project (lead partner, partner etc.)and other partners involved in the project",null,null,null,"Start date and end date of the project ",null,null,null,null,"Add button",null,null,null,null,null,null,null,null,null,null,"Educational/Training institution/organization"]
[]
[null,null,"Add new project information",null,null,null,null,null,null,null,"No",null,1]
[null,null,null,null,null,null,null,null,null,null,"Visible after \"add\""]
[null,"Initiative/Programme",null,null,null,null,null,null,null,null,null,null,null,null,null,null,null,null,null,null,null,"Administration of protected area/s"]
[null,"Project title  and reference number",null,null,null,null,null,null,null,null,null,null,null,null,null,null,null,null,null,null,null,"Non-Governmental organisation"]
[null,"Short description including project objectives and activities \n(max. 500 characters)",null,null,null,null,null,null,null,null,null,null,null,null,null,null,null,null,null,null,null,"Business support institution or organisation"]
[null,"Total eligible value in euro for the project partner (for finalized projects: total eligible value after project implementation - financial execution; for ongoing projects: total contract eligible value)",null,null,null,"Grant amount:",null,null,null,null,null,null,null,null,null,null,null,null,null,null,null,"Tourist board or association;"]
[null,"Organization’s role in the project (lead partner, partner etc.)and other partners involved in the project",null,null,null,"Start date and end date of the project ",null,null,null,null,"Add button",null,null,null,null,null,null,null,null,null,null,"Educational/Training institution/organization"]
[]
[]
[null,"2. Financial Data"]
[]
[null,"2.1. Detailed information",null,null,null,null,null,null,null,{"$f":"J73=0","v":false}]
[]
[null,"National registration code:",null,null,null,null,null,null,null,{"$f":"ISBLANK(C70)","v":true}]
[]
[null,"VAT registration (type N/A if not applicable):",null,null,null,null,null,null,null,{"$f":"ISBLANK(C72)","v":true}]
[null,null,null,null,null,null,null,null,null,{"$f":"J72+J70","v":2}]
[null,"2.2. Financial status and human resource"]
[null,"Please provide the following information on the basis of the Profit and loss account and Balance sheet of your organization  and any information related to the staff and technical capacity for the past 3 (three) years."]
[null,"Year","Turnover or equivalent\n(in EUR)",null,null,"Number of full-time staff","Number of part-time staff",null,null,{"$f":"N76=0","v":false},null,null,null,{"$f":"SUM(N77:N79)","v":9},null,false,false,true,2]
[null,2017,null,null,null,null,null,null,null,null,{"$f":"ISBLANK(C77)","v":true},{"$f":"ISBLANK(D77)","v":true},true,{"$f":"K77+L77+M77","v":3},null,false,false,true,2]
[null,2018,null,null,null,null,null,null,null,null,{"$f":"ISBLANK(C78)","v":true},true,true,{"$f":"K78+L78+M78","v":3},null,false,false,true,2,true]
[null,2019,null,null,null,null,null,null,null,null,{"$f":"ISBLANK(C79)","v":true},true,true,{"$f":"K79+L79+M79","v":3}]

{"sheet":"PP3","index":5,"n_rows":79,"n_cols":22,"rows_kept":79,"cut":false,"hidden":false,"merged":[[75,6,75,7],[76,6,76,7],[77,6,77,7],[78,6,78,7],[75,2,75,4],[76,2,76,4],[77,2,77,4],[78,2,78,4],[74,1,74,7],[58,2,58,7],[59,2,59,7],[60,2,60,7],[61,2,61,4],[61,6,61,7],[62,2,62,4],[62,6,62,7],[50,2,50,7],[51,2,51,7],[65,1,65,7],[69,2,69,7],[71,2,71,7],[56,2,56,5],[52,2,52,7],[53,2,53,4],[53,6,53,7],[54,2,54,4],[54,6,54,7],[41,1,41,7],[41,16,45,16],[42,2,42,7],[43,2,43,7],[44,2,44,7],[45,2,45,4],[45,6,45,7],[46,2,46,4],[46,6,46,7],[48,2,48,5],[40,1,40,5],[16,2,16,7],[18,2,18,7],[20,2,20,7],[22,2,22,7],[24,2,24,7],[26,2,26,7],[28,2,28,7],[30,2,30,7],[32,2,32,7],[36,1,36,7],[37,1,38,7],[34,1,34,7],[35,1,35,7],[33,1,33,7],[14,2,14,7],[0,1,1,7],[4,1,4,7],[6,2,6,7],[8,2,8,7],[10,2,10,7]]}
[null,"Application Form\nINTERREG-IPA Cross-Border Cooperation \nBulgaria-Turkey Programme\nPART I\n     \n     \n     \n"]
[]
[null,"PROJECT PARTNER No 3"]
[]
[null,"1. Identity"]
[null,"1.1.Detailed information"]
[null,"Organization\n(in English language):",null,null,null,null,null,null,null,{"$f":"ISBLANK(C7)","v":true}]
[]
[null,"Organization\n(in native language):",null,null,null,null,null,null,null,{"$f":"ISBLANK(C9)","v":true}]
[]
[null,"Type of organization:",null,null,null,null,null,null,null,{"$f":"ISBLANK(C11)","v":true}]
[]
[null,"Country:"]
[null,null,null,null,null,null,null,null,null,null,2,null,null,null,{"$f":"VLOOKUP('Project identification'!C13,'Project identification'!P9:R13,3)","v":2}]
[null,"District/NUTS III",null,null,null,null,null,null,null,{"$f":"ISBLANK(C15)","v":true},null,"Bourgas","Edirne"]
[null,null,null,null,null,null,null,null,null,null,null,"Yambol","Kirklareli"]
[null,"Town/city:",null,null,null,null,null,null,null,{"$f":"ISBLANK(C17)","v":true},null,"Haskovo","Other",null,"Local/Regional authority","Local/Regional authority","Local/Regional authority","Local/Regional authority","Local/Regional authority"]
[null,null,null,null,null,null,null,null,null,null,null,"Other",null,null,"Central/Regional office or structure of national/governmental institution/administration","Association of local/regional authorities or other organisations","Regional/Sector development agency","Central/Regional/Local office or structure of government institution/ administration","Central/Regional/Local office or structure of government institution/ administration"]
[null,"Address:",null,null,null,null,null,null,null,{"$f":"ISBLANK(C19)","v":true},null,null,null,null,"Regional/Sector development agency","Central/Regional office or structure of central government institution/ administration","Central/Regional/Local office or structure of government institution/ administration","Administration of protected area/s","Administration of protected area/s"]
[null,null,null,null,null,null,null,null,null,null,null,null,null,null,null,"Administration of protected area/s","Public cultural institute","Non-Governmental organisation in the field of tourism","Non-Governmental organisation"]
[null,"Postal Code:",null,null,null,null,null,null,null,{"$f":"ISBLANK(C21)","v":true},null,null,null,null,null,"Euro region or other joint cross-border structure or institution","Regional touristic association","Business support institution/organisation","Business support institution or organisation"]
[null,null,null,null,null,null,null,null,null,null,null,null,null,null,null,"University/Scientific institution","Business support institution/organisation","Tourist board or association","Tourist board or association;"]
[null,"Legal representative (Name):",null,null,null,null,null,null,null,{"$f":"ISBLANK(C23)","v":true},null,null,null,null,null,"Educational/Training institution or organisation","Non-Governmental organisation","Educational/Training institution/organization","Educational/Training institution/organization"]
[null,null,null,null,null,null,null,null,null,null,null,null,null,null,null,"Business support institution/organisation","Educational/Training institution or organizations","University/Scientific institution","University/Scientific organization"]
[null,"Legal representative (Position):",null,null,null,null,null,null,null,{"$f":"ISBLANK(C25)","v":true},null,null,null,null,null,"Non-Governmental organisation","University/Scientific institution","Public cultural institute","Community organization/institution involved in development of civil society/promotion of education, culture and sports"]
[null,null,null,null,null,null,null,null,null,null,null,null,null,null,null,"Youth’s organization",null,null,"Youth’s organization"]
[null,"Telephone:"]
[]
[null,"Fax:"]
[]
[null,"E-mail:"]
[]
[null,"Website:"]
[null,"1.2. Partner profile\n1.2.1 Partner's background\nPlease describe the profile of the organization and general competences and activities (max 2x2000 chars).",null,null,null,null,null,null,null,{"$f":"J25+J23+J21+J19+J17+J15+J11+J9+J7","v":9}]
[null,null,null,null,null,null,null,null,null,{"$f":"J34=0","v":false}]
[]
[null,"1.2.2 Partner's competence\nPlease describe whether the project partners have the competence to implement the project activities invisaged for each of them (2000 symbols)"]
[]
[null,null,null,null,null,null,null,null,null,{"$f":"LEN(B38)>0","v":false},{"$f":"LEN(B38)>2500","v":false}]
[null,"1.3. Partner experience"]
[null,"Please state if you are experienced in \nproject management of public funded projects"]
[null,"If Yes, please fill in the table below brief description for the most relevant successfully implemented project(s) - (maximum three projects for each project partner):",null,null,null,null,null,null,null,null,"hidden until Yes on G36",null,null,null,null,null,"global check if \"yes\" inG39"]
[null,"Initiative/Programme",null,null,null,null,null,null,null,null,null,null,null,null,null,null,null,null,null,null,null,"Administration of protected area/s"]
[null,"Project title  and reference number",null,null,null,null,null,null,null,null,null,null,null,null,null,null,null,null,null,null,null,"Non-Governmental organisation"]
[null,"Short description including project objectives and activities \n(max. 500 characters)",null,null,null,null,null,null,null,null,null,null,null,null,null,null,null,null,null,null,null,"Business support institution or organisation"]
[null,"Total eligible value in euro for the project partner (for finalized projects: total eligible value after project implementation - financial execution; for ongoing projects: total contract eligible value)",null,null,null,"Grant amount:",null,null,null,null,null,null,null,null,null,null,null,null,null,null,null,"Tourist board or association;"]
[null,"Organization’s role in the project (lead partner, partner etc.)and other partners involved in the project",null,null,null,"Start date and end date of the project ",null,null,null,null,"Add button",null,null,null,null,null,null,null,null,null,null,"Educational/Training institution/organization"]
[]
[null,null,"Add new project information",null,null,null,null,null,null,null,"No",null,1]
[null,null,null,null,null,null,null,null,null,null,"Visible after \"add\""]
[null,"Initiative/Programme",null,null,null,null,null,null,null,null,null,null,null,null,null,null,null,null,null,null,null,"Administration of protected area/s"]
[null,"Project title  and reference number",null,null,null,null,null,null,null,null,null,null,null,null,null,null,null,null,null,null,null,"Non-Governmental organisation"]
[null,"Short description including project objectives and activities \n(max. 500 characters)",null,null,null,null,null,null,null,null,null,null,null,null,null,null,null,null,null,null,null,"Business support institution or organisation"]
[null,"Total eligible value in euro for the project partner (for finalized projects: total eligible value after project implementation - financial execution; for ongoing projects: total contract eligible value)",null,null,null,"Grant amount:",null,null,null,null,null,null,null,null,null,null,null,null,null,null,null,"Tourist board or association;"]
[null,"Organization’s role in the project (lead partner, partner etc.)and other partners involved in the project",null,null,null,"Start date and end date of the project ",null,null,null,null,"Add button",null,null,null,null,null,null,null,null,null,null,"Educational/Training institution/organization"]
[]
[null,null,"Add new project information",null,null,null,null,null,null,null,"No",null,1]
[null,null,null,null,null,null,null,null,null,null,"Visible after \"add\""]
[null,"Initiative/Programme",null,null,null,null,null,null,null,null,null,null,null,null,null,null,null,null,null,null,null,"Administration of protected area/s"]
[null,"Project title  and reference number",null,null,null,null,null,null,null,null,null,null,null,null,null,null,null,null,null,null,null,"Non-Governmental organisation"]
[null,"Short description including project objectives and activities \n(max. 500 characters)",null,null,null,null,null,null,null,null,null,null,null,null,null,null,null,null,null,null,null,"Business support institution or organisation"]
[null,"Total eligible value in euro for the project partner (for finalized projects: total eligible value after project implementation - financial execution; for ongoing projects: total contract eligible value)",null,null,null,"Grant amount:",null,null,null,null,null,null,null,null,null,null,null,null,null,null,null,"Tourist board or association;"]
[null,"Organization’s role in the project (lead partner, partner etc.)and other partners involved in the project",null,null,null,"Start date and end date of the project ",null,null,null,null,"Add button",null,null,null,null,null,null,null,null,null,null,"Educational/Training institution/organization"]
[]
[]
[null,"2. Financial Data"]
[]
[null,"2.1. Detailed information",null,null,null,null,null,null,null,{"$f":"J73=0","v":false}]
[]
[null,"National registration code:",null,null,null,null,null,null,null,{"$f":"ISBLANK(C70)","v":true}]
[]
[null,"VAT registration (type N/A if not applicable):",null,null,null,null,null,null,null,{"$f":"ISBLANK(C72)","v":true}]
[null,null,null,null,null,null,null,null,null,{"$f":"J72+J70","v":2}]
[null,"2.2. Financial status and human resource"]
[null,"Please provide the following information on the basis of the Profit and loss account and Balance sheet of your organization  and any information related to the staff and technical capacity for the past 3 (three) years."]
[null,"Year","Turnover or equivalent\n(in EUR)",null,null,"Number of full-time staff","Number of part-time staff",null,null,{"$f":"N76=0","v":false},null,null,null,{"$f":"SUM(N77:N79)","v":3},null,false,false,true,2]
[null,2017,null,null,null,null,null,null,null,null,{"$f":"ISBLANK(#REF!)","v":false},{"$f":"ISBLANK(#REF!)","v":false},{"$f":"ISBLANK(C77)","v":true},{"$f":"K77+L77+M77","v":1},null,false,false,true,2]
[null,2018,null,null,null,null,null,null,null,null,{"$f":"ISBLANK(#REF!)","v":false},{"$f":"ISBLANK(#REF!)","v":false},{"$f":"ISBLANK(C78)","v":true},{"$f":"K78+L78+M78","v":1},null,false,false,true,2,true]
[null,2019,null,null,null,null,null,null,null,null,{"$f":"ISBLANK(#REF!)","v":false},{"$f":"ISBLANK(#REF!)","v":false},{"$f":"ISBLANK(C79)","v":true},{"$f":"K79+L79+M79","v":1}]

{"sheet":"PP4","index":6,"n_rows":79,"n_cols":22,"rows_kept":79,"cut":false,"hidden":false,"merged":[[76,2,76,4],[76,6,76,7],[77,2,77,4],[77,6,77,7],[78,2,78,4],[78,6,78,7],[59,2,59,7],[60,2,60,7],[61,2,61,4],[61,6,61,7],[62,2,62,4],[62,6,62,7],[65,1,65,7],[69,2,69,7],[71,2,71,7],[74,1,74,7],[75,2,75,4],[75,6,75,7],[58,2,58,7],[46,2,46,4],[46,6,46,7],[48,2,48,5],[50,2,50,7],[51,2,51,7],[52,2,52,7],[53,2,53,4],[53,6,53,7],[54,2,54,4],[54,6,54,7],[56,2,56,5],[41,1,41,7],[41,16,45,16],[42,2,42,7],[43,2,43,7],[44,2,44,7],[45,2,45,4],[45,6,45,7],[40,1,40,5],[16,2,16,7],[18,2,18,7],[20,2,20,7],[22,2,22,7],[24,2,24,7],[26,2,26,7],[28,2,28,7],[30,2,30,7],[32,2,32,7],[36,1,36,7],[37,1,38,7],[34,1,34,7],[35,1,35,7],[33,1,33,7],[14,2,14,7],[0,1,1,7],[4,1,4,7],[6,2,6,7],[8,2,8,7],[10,2,10,7]]}
[null,"Application Form\nINTERREG-IPA Cross-Border Cooperation \nBulgaria-Turkey Programme\nPART I\n     \n     \n     \n"]
[]
[null,"PROJECT PARTNER No 4"]
[]
[null,"1. Identity"]
[null,"1.1.Detailed information"]
[null,"Organization\n(in English language):",null,null,null,null,null,null,null,{"$f":"ISBLANK(C7)","v":true}]
[]
[null,"Organization\n(in native language):",null,null,null,null,null,null,null,{"$f":"ISBLANK(C9)","v":true}]
[]
[null,"Type of organization:",null,null,null,null,null,null,null,{"$f":"ISBLANK(C11)","v":true}]
[]
[null,"Country:"]
[null,null,null,null,null,null,null,null,null,null,1,null,null,null,{"$f":"VLOOKUP('Project identification'!C13,'Project identification'!P9:R13,3)","v":2}]
[null,"District/NUTS III",null,null,null,null,null,null,null,{"$f":"ISBLANK(C15)","v":true},null,"Bourgas","Edirne"]
[null,null,null,null,null,null,null,null,null,null,null,"Yambol","Kirklareli"]
[null,"Town/city:",null,null,null,null,null,null,null,{"$f":"ISBLANK(C17)","v":true},null,"Haskovo","Other",null,"Local/Regional authority","Local/Regional authority","Local/Regional authority","Local/Regional authority","Local/Regional authority"]
[null,null,null,null,null,null,null,null,null,null,null,"Other",null,null,"Central/Regional office or structure of national/governmental institution/administration","Association of local/regional authorities or other organisations","Regional/Sector development agency","Central/Regional/Local office or structure of government institution/ administration","Central/Regional/Local office or structure of government institution/ administration"]
[null,"Address:",null,null,null,null,null,null,null,{"$f":"ISBLANK(C19)","v":true},null,null,null,null,"Regional/Sector development agency","Central/Regional office or structure of central government institution/ administration","Central/Regional/Local office or structure of government institution/ administration","Administration of protected area/s","Administration of protected area/s"]
[null,null,null,null,null,null,null,null,null,null,null,null,null,null,null,"Administration of protected area/s","Public cultural institute","Non-Governmental organisation in the field of tourism","Non-Governmental organisation"]
[null,"Postal Code:",null,null,null,null,null,null,null,{"$f":"ISBLANK(C21)","v":true},null,null,null,null,null,"Euro region or other joint cross-border structure or institution","Regional touristic association","Business support institution/organisation","Business support institution or organisation"]
[null,null,null,null,null,null,null,null,null,null,null,null,null,null,null,"University/Scientific institution","Business support institution/organisation","Tourist board or association","Tourist board or association;"]
[null,"Legal representative                       (Name):",null,null,null,null,null,null,null,{"$f":"ISBLANK(C23)","v":true},null,null,null,null,null,"Educational/Training institution or organisation","Non-Governmental organisation","Educational/Training institution/organization","Educational/Training institution/organization"]
[null,null,null,null,null,null,null,null,null,null,null,null,null,null,null,"Business support institution/organisation","Educational/Training institution or organizations","University/Scientific institution","University/Scientific organization"]
[null,"Legal representative        (Position in the organization):",null,null,null,null,null,null,null,{"$f":"ISBLANK(C25)","v":true},null,null,null,null,null,"Non-Governmental organisation","University/Scientific institution","Public cultural institute","Community organization/institution involved in development of civil society/promotion of education, culture and sports"]
[null,null,null,null,null,null,null,null,null,null,null,null,null,null,null,"Youth’s organization",null,null,"Youth’s organization"]
[null,"Telephone:"]
[]
[null,"Fax:"]
[]
[null,"E-mail:"]
[]
[null,"Website:"]
[null,"1.2. Partner profile\n1.2.1 Partner's background\nPlease describe the profile of the organization and general competences and activities (max 2x2000 chars).",null,null,null,null,null,null,null,{"$f":"J25+J23+J21+J19+J17+J15+J11+J9+J7","v":9}]
[null,null,null,null,null,null,null,null,null,{"$f":"J34=0","v":false}]
[]
[null,"1.2.2 Partner's competence\nPlease describe whether the project partners have the competence to implement the project activities invisaged for each of them (2000 symbols)"]
[]
[null,null,null,null,null,null,null,null,null,{"$f":"LEN(B38)>0","v":false},{"$f":"LEN(B38)>2500","v":false}]
[null,"1.3. Partner experience"]
[null,"Please state if you are experienced in \nproject management of public funded projects"]
[null,"If Yes, please fill in the table below brief description for the most relevant successfully implemented project(s) - (maximum three projects for each project partner):",null,null,null,null,null,null,null,null,"hidden until Yes on G36",null,null,null,null,null,"global check if \"yes\" inG39"]
[null,"Initiative/Programme",null,null,null,null,null,null,null,null,null,null,null,null,null,null,null,null,null,null,null,"Administration of protected area/s"]
[null,"Project title  and reference number",null,null,null,null,null,null,null,null,null,null,null,null,null,null,null,null,null,null,null,"Non-Governmental organisation"]
[null,"Short description including project objectives and activities \n(max. 500 characters)",null,null,null,null,null,null,null,null,null,null,null,null,null,null,null,null,null,null,null,"Business support institution or organisation"]
[null,"Total eligible value in euro for the project partner (for finalized projects: total eligible value after project implementation - financial execution; for ongoing projects: total contract eligible value)",null,null,null,"Grant amount:",null,null,null,null,null,null,null,null,null,null,null,null,null,null,null,"Tourist board or association;"]
[null,"Organization’s role in the project (lead partner, partner etc.)and other partners involved in the project",null,null,null,"Start date and end date of the project ",null,null,null,null,"Add button",null,null,null,null,null,null,null,null,null,null,"Educational/Training institution/organization"]
[]
[null,null,"Add new project information",null,null,null,null,null,null,null,"No",null,1]
[null,null,null,null,null,null,null,null,null,null,"Visible after \"add\""]
[null,"Initiative/Programme",null,null,null,null,null,null,null,null,null,null,null,null,null,null,null,null,null,null,null,"Administration of protected area/s"]
[null,"Project title  and reference number",null,null,null,null,null,null,null,null,null,null,null,null,null,null,null,null,null,null,null,"Non-Governmental organisation"]
[null,"Short description including project objectives and activities \n(max. 500 characters)",null,null,null,null,null,null,null,null,null,null,null,null,null,null,null,null,null,null,null,"Business support institution or organisation"]
[null,"Total eligible value in euro for the project partner (for finalized projects: total eligible value after project implementation - financial execution; for ongoing projects: total contract eligible value)",null,null,null,"Grant amount:",null,null,null,null,null,null,null,null,null,null,null,null,null,null,null,"Tourist board or association;"]
[null,"Organization’s role in the project (lead partner, partner etc.)and other partners involved in the project",null,null,null,"Start date and end date of the project ",null,null,null,null,"Add button",null,null,null,null,null,null,null,null,null,null,"Educational/Training institution/organization"]
[]
[null,null,"Add new project information",null,null,null,null,null,null,null,"No",null,1]
[null,null,null,null,null,null,null,null,null,null,"Visible after \"add\""]
[null,"Initiative/Programme",null,null,null,null,null,null,null,null,null,null,null,null,null,null,null,null,null,null,null,"Administration of protected area/s"]
[null,"Project title  and reference number",null,null,null,null,null,null,null,null,null,null,null,null,null,null,null,null,null,null,null,"Non-Governmental organisation"]
[null,"Short description including project objectives and activities \n(max. 500 characters)",null,null,null,null,null,null,null,null,null,null,null,null,null,null,null,null,null,null,null,"Business support institution or organisation"]
[null,"Total eligible value in euro for the project partner (for finalized projects: total eligible value after project implementation - financial execution; for ongoing projects: total contract eligible value)",null,null,null,"Grant amount:",null,null,null,null,null,null,null,null,null,null,null,null,null,null,null,"Tourist board or association;"]
[null,"Organization’s role in the project (lead partner, partner etc.)and other partners involved in the project",null,null,null,"Start date and end date of the project ",null,null,null,null,"Add button",null,null,null,null,null,null,null,null,null,null,"Educational/Training institution/organization"]
[]
[]
[null,"2. Financial Data"]
[]
[null,"2.1. Detailed information",null,null,null,null,null,null,null,{"$f":"J73=0","v":false}]
[]
[null,"National registration code:",null,null,null,null,null,null,null,{"$f":"ISBLANK(C70)","v":true}]
[]
[null,"VAT registration (type N/A if not applicable):",null,null,null,null,null,null,null,{"$f":"ISBLANK(C72)","v":true}]
[null,null,null,null,null,null,null,null,null,{"$f":"J72+J70","v":2}]
[null,"2.2. Financial status and human resource"]
[null,"Please provide the following information on the basis of the Profit and loss account and Balance sheet of your organization  and any information related to the staff and technical capacity for the past 3 (three) years."]
[null,"Year","Turnover or equivalent\n(in EUR)",null,null,"Number of full-time staff","Number of part-time staff",null,null,{"$f":"N76=0","v":false},null,null,null,{"$f":"SUM(N77:N79)","v":9},null,false,false,true,2]
[null,2017,null,null,null,null,null,null,null,null,{"$f":"ISBLANK(C77)","v":true},{"$f":"ISBLANK(D77)","v":true},true,{"$f":"K77+L77+M77","v":3},null,false,false,true,2]
[null,2018,null,null,null,null,null,null,null,null,{"$f":"ISBLANK(C78)","v":true},true,true,{"$f":"K78+L78+M78","v":3},null,false,false,true,2,true]
[null,2019,null,null,null,null,null,null,null,null,{"$f":"ISBLANK(C79)","v":true},true,true,{"$f":"K79+L79+M79","v":3}]

{"sheet":"PP5","index":7,"n_rows":79,"n_cols":22,"rows_kept":79,"cut":false,"hidden":false,"merged":[[76,2,76,4],[76,6,76,7],[77,2,77,4],[77,6,77,7],[78,2,78,4],[78,6,78,7],[59,2,59,7],[60,2,60,7],[61,2,61,4],[61,6,61,7],[62,2,62,4],[62,6,62,7],[65,1,65,7],[69,2,69,7],[71,2,71,7],[74,1,74,7],[75,2,75,4],[75,6,75,7],[58,2,58,7],[46,2,46,4],[46,6,46,7],[48,2,48,5],[50,2,50,7],[51,2,51,7],[52,2,52,7],[53,2,53,4],[53,6,53,7],[54,2,54,4],[54,6,54,7],[56,2,56,5],[41,1,41,7],[41,16,45,16],[42,2,42,7],[43,2,43,7],[44,2,44,7],[45,2,45,4],[45,6,45,7],[40,1,40,5],[16,2,16,7],[18,2,18,7],[20,2,20,7],[22,2,22,7],[24,2,24,7],[26,2,26,7],[28,2,28,7],[30,2,30,7],[32,2,32,7],[36,1,36,7],[37,1,38,7],[34,1,34,7],[35,1,35,7],[33,1,33,7],[14,2,14,7],[0,1,1,7],[4,1,4,7],[6,2,6,7],[8,2,8,7],[10,2,10,7]]}
[null,"Application Form\nINTERREG-IPA Cross-Border Cooperation \nBulgaria-Turkey Programme\nPART I\n     \n     \n     \n"]
[]
[null,"PROJECT PARTNER No 5"]
[]
[null,"1. Identity"]
[null,"1.1.Detailed information"]
[null,"Organization\n(in English language):",null,null,null,null,null,null,null,{"$f":"ISBLANK(C7)","v":true}]
[]
[null,"Organization\n(in native language):",null,null,null,null,null,null,null,{"$f":"ISBLANK(C9)","v":true}]
[]
[null,"Type of organization:",null,null,null,null,null,null,null,{"$f":"ISBLANK(C11)","v":true}]
[]
[null,"Country:"]
[null,null,null,null,null,null,null,null,null,null,2,null,null,null,{"$f":"VLOOKUP('Project identification'!C13,'Project identification'!P9:R13,3)","v":2}]
[null,"District/NUTS III",null,null,null,null,null,null,null,{"$f":"ISBLANK(C15)","v":true},null,"Bourgas","Edirne"]
[null,null,null,null,null,null,null,null,null,null,null,"Yambol","Kirklareli"]
[null,"Town/city:",null,null,null,null,null,null,null,{"$f":"ISBLANK(C17)","v":true},null,"Haskovo","Other",null,"Local/Regional authority","Local/Regional authority","Local/Regional authority","Local/Regional authority","Local/Regional authority"]
[null,null,null,null,null,null,null,null,null,null,null,"Other",null,null,"Central/Regional office or structure of national/governmental institution/administration","Association of local/regional authorities or other organisations","Regional/Sector development agency","Central/Regional/Local office or structure of government institution/ administration","Central/Regional/Local office or structure of government institution/ administration"]
[null,"Address:",null,null,null,null,null,null,null,{"$f":"ISBLANK(C19)","v":true},null,null,null,null,"Regional/Sector development agency","Central/Regional office or structure of central government institution/ administration","Central/Regional/Local office or structure of government institution/ administration","Administration of protected area/s","Administration of protected area/s"]
[null,null,null,null,null,null,null,null,null,null,null,null,null,null,null,"Administration of protected area/s","Public cultural institute","Non-Governmental organisation in the field of tourism","Non-Governmental organisation"]
[null,"Postal Code:",null,null,null,null,null,null,null,{"$f":"ISBLANK(C21)","v":true},null,null,null,null,null,"Euro region or other joint cross-border structure or institution","Regional touristic association","Business support institution/organisation","Business support institution or organisation"]
[null,null,null,null,null,null,null,null,null,null,null,null,null,null,null,"University/Scientific institution","Business support institution/organisation","Tourist board or association","Tourist board or association;"]
[null,"Legal representative (Name):",null,null,null,null,null,null,null,{"$f":"ISBLANK(C23)","v":true},null,null,null,null,null,"Educational/Training institution or organisation","Non-Governmental organisation","Educational/Training institution/organization","Educational/Training institution/organization"]
[null,null,null,null,null,null,null,null,null,null,null,null,null,null,null,"Business support institution/organisation","Educational/Training institution or organizations","University/Scientific institution","University/Scientific organization"]
[null,"Legal representative (Position in the organization):",null,null,null,null,null,null,null,{"$f":"ISBLANK(C25)","v":true},null,null,null,null,null,"Non-Governmental organisation","University/Scientific institution","Public cultural institute","Community organization/institution involved in development of civil society/promotion of education, culture and sports"]
[null,null,null,null,null,null,null,null,null,null,null,null,null,null,null,"Youth’s organization",null,null,"Youth’s organization"]
[null,"Telephone:"]
[]
[null,"Fax:"]
[]
[null,"E-mail:"]
[]
[null,"Website:"]
[null,"1.2. Partner profile\n1.2.1 Partner's background\nPlease describe the profile of the organization and general competences and activities (max 2x2000 chars).",null,null,null,null,null,null,null,{"$f":"J25+J23+J21+J19+J17+J15+J11+J9+J7","v":9}]
[null,null,null,null,null,null,null,null,null,{"$f":"J34=0","v":false}]
[]
[null,"1.2.2 Partner's competence\nPlease describe whether the project partners have the competence to implement the project activities invisaged for each of them (2000 symbols)"]
[]
[null,null,null,null,null,null,null,null,null,{"$f":"LEN(B38)>0","v":false},{"$f":"LEN(B38)>2500","v":false}]
[null,"1.3. Partner experience"]
[null,"Please state if you are experienced in \nproject management of public funded projects"]
[null,"If Yes, please fill in the table below brief description for the most relevant successfully implemented project(s) - (maximum three projects for each project partner):",null,null,null,null,null,null,null,null,"hidden until Yes on G36",null,null,null,null,null,"global check if \"yes\" inG39"]
[null,"Initiative/Programme",null,null,null,null,null,null,null,null,null,null,null,null,null,null,null,null,null,null,null,"Administration of protected area/s"]
[null,"Project title  and reference number",null,null,null,null,null,null,null,null,null,null,null,null,null,null,null,null,null,null,null,"Non-Governmental organisation"]
[null,"Short description including project objectives and activities \n(max. 500 characters)",null,null,null,null,null,null,null,null,null,null,null,null,null,null,null,null,null,null,null,"Business support institution or organisation"]
[null,"Total eligible value in euro for the project partner (for finalized projects: total eligible value after project implementation - financial execution; for ongoing projects: total contract eligible value)",null,null,null,"Grant amount:",null,null,null,null,null,null,null,null,null,null,null,null,null,null,null,"Tourist board or association;"]
[null,"Organization’s role in the project (lead partner, partner etc.)and other partners involved in the project",null,null,null,"Start date and end date of the project ",null,null,null,null,"Add button",null,null,null,null,null,null,null,null,null,null,"Educational/Training institution/organization"]
[]
[null,null,"Add new project information",null,null,null,null,null,null,null,"No",null,1]
[null,null,null,null,null,null,null,null,null,null,"Visible after \"add\""]
[null,"Initiative/Programme",null,null,null,null,null,null,null,null,null,null,null,null,null,null,null,null,null,null,null,"Administration of protected area/s"]
[null,"Project title  and reference number",null,null,null,null,null,null,null,null,null,null,null,null,null,null,null,null,null,null,null,"Non-Governmental organisation"]
[null,"Short description including project objectives and activities \n(max. 500 characters)",null,null,null,null,null,null,null,null,null,null,null,null,null,null,null,null,null,null,null,"Business support institution or organisation"]
[null,"Total eligible value in euro for the project partner (for finalized projects: total eligible value after project implementation - financial execution; for ongoing projects: total contract eligible value)",null,null,null,"Grant amount:",null,null,null,null,null,null,null,null,null,null,null,null,null,null,null,"Tourist board or association;"]
[null,"Organization’s role in the project (lead partner, partner etc.)and other partners involved in the project",null,null,null,"Start date and end date of the project ",null,null,null,null,"Add button",null,null,null,null,null,null,null,null,null,null,"Educational/Training institution/organization"]
[]
[null,null,"Add new project information",null,null,null,null,null,null,null,"No",null,1]
[null,null,null,null,null,null,null,null,null,null,"Visible after \"add\""]
[null,"Initiative/Programme",null,null,null,null,null,null,null,null,null,null,null,null,null,null,null,null,null,null,null,"Administration of protected area/s"]
[null,"Project title  and reference number",null,null,null,null,null,null,null,null,null,null,null,null,null,null,null,null,null,null,null,"Non-Governmental organisation"]
[null,"Short description including project objectives and activities \n(max. 500 characters)",null,null,null,null,null,null,null,null,null,null,null,null,null,null,null,null,null,null,null,"Business support institution or organisation"]
[null,"Total eligible value in euro for the project partner (for finalized projects: total eligible value after project implementation - financial execution; for ongoing projects: total contract eligible value)",null,null,null,"Grant amount:",null,null,null,null,null,null,null,null,null,null,null,null,null,null,null,"Tourist board or association;"]
[null,"Organization’s role in the project (lead partner, partner etc.)and other partners involved in the project",null,null,null,"Start date and end date of the project ",null,null,null,null,"Add button",null,null,null,null,null,null,null,null,null,null,"Educational/Training institution/organization"]
[]
[]
[null,"2. Financial Data"]
[]
[null,"2.1. Detailed information",null,null,null,null,null,null,null,{"$f":"J73=0","v":false}]
[]
[null,"National registration code:",null,null,null,null,null,null,null,{"$f":"ISBLANK(C70)","v":true}]
[]
[null,"VAT registration (type N/A if not applicable):",null,null,null,null,null,null,null,{"$f":"ISBLANK(C72)","v":true}]
[null,null,null,null,null,null,null,null,null,{"$f":"J72+J70","v":2}]
[null,"2.2. Financial status and human resource"]
[null,"Please provide the following information on the basis of the Profit and loss account and Balance sheet of your organization  and any information related to the staff and technical capacity for the past 3 (three) years."]
[null,"Year","Turnover or equivalent\n(in EUR)",null,null,"Number of full-time staff","Number of part-time staff",null,null,{"$f":"N76=0","v":false},null,null,null,{"$f":"SUM(N77:N79)","v":9},null,false,false,true,2]
[null,2017,null,null,null,null,null,null,null,null,{"$f":"ISBLANK(C77)","v":true},{"$f":"ISBLANK(D77)","v":true},true,{"$f":"K77+L77+M77","v":3},null,false,false,true,2]
[null,2018,null,null,null,null,null,null,null,null,{"$f":"ISBLANK(C78)","v":true},true,true,{"$f":"K78+L78+M78","v":3},null,false,false,true,2,true]
[null,2019,null,null,null,null,null,null,null,null,{"$f":"ISBLANK(C79)","v":true},true,true,{"$f":"K79+L79+M79","v":3}]

{"sheet":"Project identification","index":8,"n_rows":482,"n_cols":32,"rows_kept":482,"cut":false,"hidden":false,"merged":[[378,1,378,9],[364,1,364,9],[365,1,365,9],[366,1,366,9],[368,2,368,9],[369,2,369,9],[370,2,370,9],[371,1,371,9],[372,1,372,9],[373,1,373,9],[359,1,359,9],[360,1,360,9],[361,1,361,9],[362,1,362,9],[363,1,363,9],[374,1,374,9],[375,1,375,9],[376,1,376,9],[377,1,377,9],[349,1,349,9],[350,1,350,9],[351,1,351,9],[352,1,352,9],[353,1,353,9],[354,1,354,9],[356,2,356,9],[357,2,357,9],[358,2,358,9],[339,1,339,9],[340,1,340,9],[341,1,341,9],[342,1,342,9],[344,2,344,9],[345,2,345,9],[346,2,346,9],[347,1,347,9],[348,1,348,9],[329,1,329,9],[330,1,330,9],[332,2,332,9],[333,2,333,9],[334,2,334,9],[335,1,335,9],[336,1,336,9],[337,1,337,9],[338,1,338,9],[320,2,320,9],[321,2,321,9],[322,2,322,9],[323,1,323,9],[324,1,324,9],[325,1,325,9],[326,1,326,9],[327,1,327,9],[328,1,328,9],[310,2,310,9],[311,1,311,9],[312,1,312,9],[313,1,313,9],[314,1,314,9],[315,1,315,9],[316,1,316,9],[317,1,317,9],[318,1,318,9],[300,1,300,9],[301,1,301,9],[302,1,302,9],[303,1,303,9],[304,1,304,9],[305,1,305,9],[306,1,306,9],[308,2,308,9],[309,2,309,9],[293,1,293,9],[294,1,294,9],[284,2,284,9],[287,1,287,9],[290,1,290,9],[296,2,296,9],[297,2,297,9],[298,2,298,9],[299,1,299,9],[275,1,275,9],[276,1,276,9],[277,1,277,9],[278,1,278,9],[279,1,279,9],[280,1,280,9],[281,1,281,9],[282,1,282,9],[432,1,432,9],[393,1,393,2],[393,3,393,4],[393,5,393,7],[393,8,393,9],[394,1,394,2],[394,3,394,4],[394,5,394,7],[394,8,394,9],[392,1,392,9],[285,2,285,9],[286,2,286,9],[288,1,288,9],[289,1,289,9],[291,1,291,9],[292,1,292,9],[447,2,447,3],[435,1,435,9],[441,1,441,9],[442,1,442,9],[430,1,430,9],[397,1,397,2],[217,1,217,9],[248,2,248,9],[249,2,249,9],[244,1,244,9],[439,1,439,9],[397,8,397,9],[250,2,250,9],[225,1,225,9],[226,1,226,9],[227,1,227,9],[229,1,229,9],[231,1,231,9],[398,1,398,2],[398,3,398,4],[398,5,398,7],[398,8,398,9],[243,1,243,9],[245,1,245,9],[385,1,385,9],[479,2,479,9],[480,2,480,9],[444,2,444,3],[461,1,461,9],[465,1,465,9],[455,1,455,9],[456,1,456,9],[460,1,460,9],[474,1,474,9],[469,1,469,9],[467,1,467,9],[468,1,468,9],[473,1,473,9],[478,1,478,9],[445,4,445,8],[447,4,447,8],[448,4,448,8],[449,4,449,8],[450,4,450,8],[444,4,444,8],[446,4,446,8],[445,2,445,3],[446,2,446,3],[35,1,35,9],[29,2,29,3],[29,4,29,9],[30,1,30,9],[42,1,42,9],[76,1,76,9],[391,1,391,9],[396,3,396,4],[396,1,396,2],[395,8,395,9],[395,5,395,7],[204,1,204,9],[206,1,206,9],[396,5,396,7],[396,8,396,9],[395,3,395,4],[395,1,395,2],[166,1,166,9],[228,1,228,9],[230,1,230,9],[232,1,232,9],[222,2,222,9],[223,2,223,9],[224,2,224,9],[266,1,266,9],[267,1,267,9],[268,1,268,9],[0,1,1,9],[4,1,4,9],[14,2,14,9],[8,2,8,9],[10,2,10,9],[12,2,12,9],[18,2,18,9],[22,1,22,9],[26,1,26,9],[24,2,24,3],[24,4,24,9],[44,1,44,9],[31,2,31,3],[31,4,31,9],[25,2,25,3],[25,4,25,9],[27,2,27,3],[27,4,27,9],[28,1,28,9],[32,1,32,9],[36,1,36,9],[126,1,126,9],[128,1,128,9],[88,1,88,9],[95,1,95,9],[260,2,260,9],[261,2,261,9],[262,2,262,9],[263,1,263,9],[264,1,264,9],[216,1,216,9],[256,1,256,9],[218,1,218,9],[215,1,215,9],[253,1,253,9],[109,1,109,9],[119,2,119,9],[120,2,120,9],[170,2,170,9],[171,2,171,9],[172,2,172,9],[173,1,173,9],[175,1,175,9],[178,1,178,9],[167,1,167,9],[45,1,45,9],[48,1,48,9],[49,1,49,9],[52,1,52,9],[53,1,53,9],[46,1,46,9],[59,2,59,4],[60,2,60,4],[62,2,62,4],[59,5,59,8],[60,5,60,8],[62,5,62,8],[61,2,61,4],[61,5,61,8],[47,1,47,9],[448,2,448,3],[449,2,449,3],[450,2,450,3],[197,2,197,9],[185,2,185,9],[187,1,187,9],[188,1,188,9],[189,1,189,9],[190,1,190,9],[191,1,191,9],[193,1,193,9],[201,1,201,9],[269,1,269,9],[270,1,270,9],[272,2,272,9],[203,1,203,9],[205,1,205,9],[209,2,209,9],[210,2,210,9],[211,2,211,9],[212,1,212,9],[213,1,213,9],[214,1,214,9],[238,1,238,9],[451,2,451,3],[219,1,219,9],[257,1,257,9],[258,1,258,9],[259,1,259,9],[240,1,240,9],[242,1,242,9],[397,3,397,4],[397,5,397,7],[254,1,254,9],[251,1,251,9],[241,1,241,9],[235,2,235,9],[236,2,236,9],[237,2,237,9],[382,1,382,9],[390,1,390,9],[427,1,427,2],[255,1,255,9],[239,1,239,9],[252,1,252,9],[273,2,273,9],[274,2,274,9],[265,1,265,9],[481,2,481,9],[150,1,150,9],[97,1,97,9],[99,1,99,9],[101,1,101,9],[111,1,111,9],[110,1,110,9],[123,1,123,9],[125,1,125,9],[127,1,127,9],[141,1,141,9],[147,1,147,9],[107,2,107,9],[144,2,144,9],[145,2,145,9],[146,2,146,9],[202,1,202,9],[174,1,174,9],[180,1,180,9],[179,1,179,9],[183,2,183,9],[184,2,184,9],[135,1,135,9],[137,1,137,9],[79,2,79,9],[81,2,81,9],[92,2,92,9],[93,2,93,9],[94,2,94,9],[157,2,157,9],[131,2,131,9],[132,2,132,9],[134,1,134,9],[136,1,136,9],[138,1,138,9],[140,1,140,9],[133,2,133,9],[149,1,149,9],[151,1,151,9],[152,1,152,9],[153,1,153,9],[85,1,85,9],[87,1,87,9],[89,1,89,9],[96,1,96,9],[82,1,82,9],[122,1,122,9],[86,1,86,9],[80,2,80,9],[84,1,84,9],[139,1,139,9],[148,1,148,9],[108,1,108,9],[98,1,98,9],[100,1,100,9],[124,1,124,9],[164,1,164,9],[112,1,112,9],[114,1,114,9],[118,2,118,9],[121,1,121,9],[113,1,113,9],[115,1,115,9],[83,1,83,9],[154,1,154,9],[161,1,161,9],[163,1,163,9],[162,1,162,9],[160,1,160,9],[105,2,105,9],[106,2,106,9],[102,1,102,9],[158,2,158,9],[159,2,159,9],[165,1,165,9],[186,1,186,9],[192,1,192,9],[198,2,198,9],[199,1,199,9],[200,1,200,9],[176,1,176,9],[177,1,177,9],[196,2,196,9],[66,2,66,9],[67,2,67,9],[68,2,68,9],[69,1,69,9],[71,1,71,9],[65,1,65,9],[70,1,70,9],[73,1,73,9],[75,1,75,9],[72,1,72,9],[74,1,74,9]]}
[null,"Application Form\nINTERREG-IPA Cross-Border Cooperation \nBulgaria-Turkey Programme\nPART II\n     \n     \n     \n"]
[]
[null,"PROJECT IDENTIFICATION"]
[null,null,null,null,null,null,null,null,null,null,null,null,null,null,{"$f":"Cover!C34","v":"Investment"},8,15]
[null,"1. Project Identity",null,null,null,null,null,null,null,null,null,null,null,null,null,12,24]
[]
[null,"1.1. Project Identity"]
[]
[null,"Project title:",{"$f":"Cover!C28","v":0},null,null,null,null,null,null,null,null,{"$f":"ISBLANK(C9)","v":false},null,"Environment",null,"1.1. Preventing and mitigating the consequences of natural and man-made disasters in the cross-border area",3,1]
[null,null,null,null,null,null,null,null,null,null,null,null,null,"Tourism",null,"1.2. Improving the capacity for nature protection, sustainable use and management of common natural resources through cooperation initiatives in the  cross-border area",3,2]
[null,"Priority Axis",{"$f":"Cover!C30","v":"Environment"},null,null,null,null,null,null,null,null,{"$f":"ISBLANK(C11)","v":false},null,null,null,"2.1. Increasing the touristic attractiveness of the cross-border area through better utilisation of natural, cultural and historical heritage and related infrastructure",2,3]
[null,null,null,null,null,null,null,null,null,null,null,null,null,null,null,"2.2. Increasing the cross-border tourism potential by developing common destinations",1,4]
[null,"Specific Objective",{"$f":"Cover!C32","v":"1.2. Improving the capacity for nature protection, sustainable use and management of common natural resources through cooperation initiatives in the  cross-border area"},null,null,null,null,null,null,null,null,{"$f":"ISBLANK(C13)","v":false},null,null,null,"2.3. Increasing networking for development of sustainable tourism through cross-border cooperation initiatives",1,5]
[]
[null,"Type of project",{"$f":"Cover!C34","v":"Investment"},null,null,null,null,null,null,null,null,{"$f":"ISBLANK(C15)","v":false},null,{"$f":"VLOOKUP(C13,P9:Q13,2)","v":3},"Soft","Investment","Investment"]
[null,null,null,null,null,null,null,null,null,null,null,{"$f":"(L15+L13+L11+L9)=0","v":true},null,null,null,null,"Soft"]
[null,"1.2. Project duration"]
[null,null,null,null,null,null,null,null,null,null,null,{"$f":"L19=0","v":false}]
[null,"Duration in months",null,null,null,null,null,null,null,null,null,{"$f":"NOT(ISBLANK(C19))","v":false}]
[]
[]
[null,"1.3. Cooperation criteria"]
[null,"(Please, be reminded that your proposal must respect all four cooperation criteria - Joint Development, Joint Implementation, Joint Financing and Joint Staffing)"]
[]
[null,"Criteria","Applicable"]
[null,"Joint Development",{"$f":"IF(N26,\"X\",\"\")","v":""},null,"Description",null,null,null,null,null,null,false,{"$f":"L26+L27","v":0},{"$f":"LEN(pi_coop_crit1_descr)>0","v":false},{"$f":"(N26+N28+N30+N32)>2","v":false}]
[null,null,null,null,null,null,null,null,null,null,null,{"$f":"B27<>\"\"","v":false}]
[null,"Joint Implementation",{"$f":"IF(N28,\"X\",\"\")","v":""},null,"Description",null,null,null,null,null,null,false,{"$f":"L28+L29","v":0},{"$f":"LEN(pi_coop_crit2_descr)>0","v":false}]
[null,null,null,null,null,null,null,null,null,null,null,{"$f":"B29<>\"\"","v":false}]
[null,"Joint Staffing",{"$f":"IF(N30,\"X\",\"\")","v":""},null,"Description",null,null,null,null,null,null,false,{"$f":"L30+L31","v":0},{"$f":"LEN(pi_coop_crit3_descr)>0","v":false}]
[null,null,null,null,null,null,null,null,null,null,null,{"$f":"B31<>\"\"","v":false}]
[null,"Joint Financing",{"$f":"IF(N32,\"X\",\"\")","v":""},null,"Description",null,null,null,null,null,null,false,{"$f":"L32+L33","v":0},{"$f":"LEN(pi_coop_crit4_descr)>0","v":false}]
[null,null,null,null,null,null,null,null,null,null,null,{"$f":"B33<>\"\"","v":false}]
[]
[null,"1.4 Cross-border impact and benefits of the project"]
[null,"Please, describe the impact of the project and project results on the cross-border region, what the benefits from the project the Programme area, the target groups, the partner organizations will be. (3000 characters)"]
[null,null,null,null,null,null,null,null,null,null,null,{"$f":"LEN(B37)","v":0},false,{"$f":"LEN(B37)>1500","v":false},{"$f":"M37+N37","v":0},{"$f":"O37=0","v":true}]
[null,"1234567890123456789012345678901234567890123456789012345678901234567890123456789012345678901234567890123456789012345678901234567890123456789012345678901234567890123456789012345678901234567890123456789012345678901234567890123456789012345678901234567890123456789012345678901234567890123456789012345678901234567890123456789012345678901234567890123456789012345678901234567890123456789012345678901234567890123456789012345678901234567890123456789012345678901234567890123456789012345678901234567890123456789012345678901234567890123456789012345678901234567890123456789012345678901234567890123456789012345678901234567890123456789012345678901234567890123456789012345678901234567890123456789012345678901234567890123456789012345678901234567890123456789012345678901234567890123456789012345678901234567890123456789012345678901234567890123456789012345678901234567890123456789012345678901234567890123456789012345678901234567890123456789012345678901234567890123456789012345678901234567890123456789012345678901234567890"]
[]
[]
[]
[]
[null,"2. Project description\n"]
[null,"2.1. Background and demand for the strategic project proposal "]
[null,"Please provide brief information about the project background, stating the concrete needs, strengths, weaknesses and constraints of the target group(s) and target region(s) that you focus on and the proposed strategy concerning these issues (maximum 6000 characters)"]
[null,null,null,null,null,null,null,null,null,null,null,{"$f":"ISBLANK(pi_pd_back1)","v":true}]
[]
[]
[]
[]
[]
[]
[]
[]
[]
[null,"2.2. Description of the target groups and beneficiaries (estimated numbers):"]
[null,"“Target groups” are the groups/entities who will be positively affected by the project "]
[null,"“Final beneficiaries” are those who will benefit from the project in a long term "]
[]
[null,null,"Type",null,null,"Description/ \nspecification",null,null,null,"Estimated Number"]
[null,"Target groups",null,null,null,null,null,null,null,null,null,{"$f":"C61<>\"\"","v":false},{"$f":"F61<>\"\"","v":false},{"$f":"J61<>\"\"","v":false},{"$f":"N61+M61+L61+L62+M62+N62+L63+M63+N63","v":0},{"$f":"O61>6","v":false}]
[null,"Direct beneficiaries",null,null,null,null,null,null,null,null,null,{"$f":"C62<>\"\"","v":false},{"$f":"F62<>\"\"","v":false},{"$f":"J62<>\"\"","v":false}]
[null,"Final beneficiaries",null,null,null,null,null,null,null,null,null,{"$f":"C63<>\"\"","v":false},{"$f":"F63<>\"\"","v":false},{"$f":"J63<>\"\"","v":false},"Prio 3","q  SMEs and other businesses in the region"]
[null,null,null,null,null,null,null,null,null,null,null,null,null,null,null,"q  Economically active population of the region "]
[null,"2.3. Project activities - description and methods of implementation",null,null,null,null,null,null,null,null,null,null,null,null,null,"q  Research and development, education and training institutions"]
[null,"(Minimum 500 and maximum 1500 characters per activity)\nPlease multiply the table below for each additional activity!",null,null,null,null,null,null,null,null,null,null,null,null,null,"q  Regional and local authorities"]
[null,"Activity No",1,null,null,null,null,null,null,null,null,null,null,"Autonumber",null,"q  Education and training institutions"]
[null,"Title of activity:",null,null,null,null,null,null,null,null,null,null,null,null,null,"q  Regional and local authorities, their subsidiary structures and associations of local authorities"]
[null,"Location",null,null,null,null,null,null,null,null,null,null,null,null,null,"q  Small and medium enterprises (SMEs) in tourism"]
[null,"1. Brief description of the activity:",null,null,null,null,null,null,null,null,null,null,null,null,null,"q  Tourist operators"]
[null,null,null,null,null,null,null,null,null,null,null,null,"Bourgas",null,null,"q  Tourist information centres (points) "]
[null,"2. Who will be the reponsible partner for implementation and reporting of the activity?",null,null,null,null,null,null,null,null,null,null,"Haskovo",null,"Prio 1","-       Population in the region"]
[null,null,null,null,null,null,null,null,null,null,null,null,"Yambol",null,null,"-       Regional and local authorities, their subsidiary structures and associations of local authorities"]
[null,"3. What methods / resources will be used for impementation of the activity? ",null,null,null,null,null,null,null,null,null,null,"Edirne",null,null,"-       Regional structures of central public authorities (including protected areas administration and those dealing with emergency situations and nature / environment protection)"]
[null,null,null,null,null,null,null,null,null,null,null,null,"Kirklareli",null,null,"-       Euro regions and other joint cross border structures"]
[null,"4. What will be the output(s) of the activity?",null,null,null,null,null,null,null,null,null,null,null,null,null,"-       Research, education and training institutions"]
[]
[null,"Add new activity?"]
[]
[null,"Activity No",2,null,null,null,null,null,null,null,null,null,null,"Autonumber",null,"q  Education and training institutions"]
[null,"Title of activity:",null,null,null,null,null,null,null,null,null,null,null,null,null,"q  Regional and local authorities, their subsidiary structures and associations of local authorities"]
[null,"Location",null,null,null,null,null,null,null,null,null,null,null,null,null,"q  Small and medium enterprises (SMEs) in tourism"]
[null,"1. Brief description of the activity:",null,null,null,null,null,null,null,null,null,null,null,null,null,"q  Tourist operators"]
[null,null,null,null,null,null,null,null,null,null,null,null,null,null,null,"q  Tourist information centres (points) "]
[null,"2. Who will be the reponsible partner for implementation and reporting of the activity?",null,null,null,null,null,null,null,null,null,null,null,null,"Prio 1","-       Population in the region"]
[null,null,null,null,null,null,null,null,null,null,null,null,null,null,null,"-       Regional and local authorities, their subsidiary structures and associations of local authorities"]
[null,"3. What methods / resources will be used for impementation of the activity? ",null,null,null,null,null,null,null,null,null,null,null,null,null,"-       Regional structures of central public authorities (including protected areas administration and those dealing with emergency situations and nature / environment protection)"]
[null,null,null,null,null,null,null,null,null,null,null,null,null,null,null,"-       Euro regions and other joint cross border structures"]
[null,"4. What will be the output(s) of the activity?",null,null,null,null,null,null,null,null,null,null,null,null,null,"-       Research, education and training institutions"]
[]
[null,"Add new activity?"]
[]
[null,"Activity No",3]
[null,"Title of activity:"]
[null,"Location"]
[null,"1. Brief description of the activity:"]
[]
[null,"2. Who will be the reponsible partner for implementation and reporting of the activity?"]
[null,null,null,null,null,null,null,null,null,null,null,null,null,null,null,"-       Regional and local authorities, their subsidiary structures and associations of local authorities"]
[null,"3. What methods / resources will be used for impementation of the activity? ",null,null,null,null,null,null,null,null,null,null,null,null,null,"-       Regional structures of central public authorities (including protected areas administration and those dealing with emergency situations and nature / environment protection)"]
[null,null,null,null,null,null,null,null,null,null,null,null,null,null,null,"-       Euro regions and other joint cross border structures"]
[null,"4. What will be the output(s) of the activity?",null,null,null,null,null,null,null,null,null,null,null,null,null,"-       Research, education and training institutions"]
[]
[null,"Add new activity?"]
[]
[null,"Activity No",4]
[null,"Title of activity:"]
[null,"Location"]
[null,"1. Brief description of the activity:"]
[]
[null,"2. Who will be the reponsible partner for implementation and reporting of the activity?"]
[null,null,null,null,null,null,null,null,null,null,null,null,null,null,null,"-       Regional and local authorities, their subsidiary structures and associations of local authorities"]
[null,"3. What methods / resources will be used for impementation of the activity? ",null,null,null,null,null,null,null,null,null,null,null,null,null,"-       Regional structures of central public authorities (including protected areas administration and those dealing with emergency situations and nature / environment protection)"]
[null,null,null,null,null,null,null,null,null,null,null,null,null,null,null,"-       Euro regions and other joint cross border structures"]
[null,"4. What will be the output(s) of the activity?",null,null,null,null,null,null,null,null,null,null,null,null,null,"-       Research, education and training institutions"]
[]
[null,"Add new activity?"]
[]
[null,"Activity No",5]
[null,"Title of activity:"]
[null,"Location"]
[null,"1. Brief description of the activity:"]
[]
[null,"2. Who will be the reponsible partner for implementation and reporting of the activity?"]
[null,null,null,null,null,null,null,null,null,null,null,null,null,null,null,"-       Regional and local authorities, their subsidiary structures and associations of local authorities"]
[null,"3. What methods / resources will be used for impementation of the activity? ",null,null,null,null,null,null,null,null,null,null,null,null,null,"-       Regional structures of central public authorities (including protected areas administration and those dealing with emergency situations and nature / environment protection)"]
[null,null,null,null,null,null,null,null,null,null,null,null,null,null,null,"-       Euro regions and other joint cross border structures"]
[null,"4. What will be the output(s) of the activity?",null,null,null,null,null,null,null,null,null,null,null,null,null,"-       Research, education and training institutions"]
[]
[null,"Add new activity?"]
[]
[null,"Activity No",6]
[null,"Title of activity:"]
[null,"Location"]
[null,"1. Brief description of the activity:"]
[]
[null,"2. Who will be the reponsible partner for implementation and reporting of the activity?"]
[null,null,null,null,null,null,null,null,null,null,null,null,null,null,null,"-       Regional and local authorities, their subsidiary structures and associations of local authorities"]
[null,"3. What methods / resources will be used for impementation of the activity? ",null,null,null,null,null,null,null,null,null,null,null,null,null,"-       Regional structures of central public authorities (including protected areas administration and those dealing with emergency situations and nature / environment protection)"]
[null,null,null,null,null,null,null,null,null,null,null,null,null,null,null,"-       Euro regions and other joint cross border structures"]
[null,"4. What will be the output(s) of the activity?",null,null,null,null,null,null,null,null,null,null,null,null,null,"-       Research, education and training institutions"]
[]
[null,"Add new activity?"]
[]
[null,"Activity No",7]
[null,"Title of activity:"]
[null,"Location"]
[null,"1. Brief description of the activity:"]
[]
[null,"2. Who will be the reponsible partner for implementation and reporting of the activity?"]
[null,null,null,null,null,null,null,null,null,null,null,null,null,null,null,"-       Regional and local authorities, their subsidiary structures and associations of local authorities"]
[null,"3. What methods / resources will be used for impementation of the activity? ",null,null,null,null,null,null,null,null,null,null,null,null,null,"-       Regional structures of central public authorities (including protected areas administration and those dealing with emergency situations and nature / environment protection)"]
[null,null,null,null,null,null,null,null,null,null,null,null,null,null,null,"-       Euro regions and other joint cross border structures"]
[null,"4. What will be the output(s) of the activity?",null,null,null,null,null,null,null,null,null,null,null,null,null,"-       Research, education and training institutions"]
[]
[null,"Add new activity?"]
[]
[null,"Activity No",8]
[null,"Title of activity:"]
[null,"Location"]
[null,"1. Brief description of the activity:"]
[]
[null,"2. Who will be the reponsible partner for implementation and reporting of the activity?"]
[null,null,null,null,null,null,null,null,null,null,null,null,null,null,null,"-       Regional and local authorities, their subsidiary structures and associations of local authorities"]
[null,"3. What methods / resources will be used for impementation of the activity? ",null,null,null,null,null,null,null,null,null,null,null,null,null,"-       Regional structures of central public authorities (including protected areas administration and those dealing with emergency situations and nature / environment protection)"]
[null,null,null,null,null,null,null,null,null,null,null,null,null,null,null,"-       Euro regions and other joint cross border structures"]
[null,"4. What will be the output(s) of the activity?",null,null,null,null,null,null,null,null,null,null,null,null,null,"-       Research, education and training institutions"]
[]
[null,"Add new activity?"]
[]
[null,"Activity No",9]
[null,"Title of activity:"]
[null,"Location"]
[null,"1. Brief description of the activity:"]
[]
[null,"2. Who will be the reponsible partner for implementation and reporting of the activity?"]
[]
[null,"3. What methods / resources will be used for impementation of the activity? "]
[]
[null,"4. What will be the output(s) of the activity?"]
[]
[]
[]
[null,"Activity No",10]
[null,"Title of activity:"]
[null,"Location"]
[null,"1. Brief description of the activity:"]
[]
[null,"2. Who will be the reponsible partner for implementation and reporting of the activity?"]
[]
[null,"3. What methods / resources will be used for impementation of the activity? "]
[]
[null,"4. What will be the output(s) of the activity?"]
[]
[]
[]
[null,"Activity No",11]
[null,"Title of activity:"]
[null,"Location"]
[null,"1. Brief description of the activity:"]
[]
[null,"2. Who will be the reponsible partner for implementation and reporting of the activity?"]
[]
[null,"3. What methods / resources will be used for impementation of the activity? "]
[]
[null,"4. What will be the output(s) of the activity?"]
[]
[]
[]
[null,"Activity No",12]
[null,"Title of activity:"]
[null,"Location"]
[null,"1. Brief description of the activity:"]
[]
[null,"2. Who will be the reponsible partner for implementation and reporting of the activity?"]
[]
[null,"3. What methods / resources will be used for impementation of the activity? "]
[]
[null,"4. What will be the output(s) of the activity?"]
[]
[]
[]
[null,"Activity No",13]
[null,"Title of activity:"]
[null,"Location"]
[null,"1. Brief description of the activity:"]
[]
[null,"2. Who will be the reponsible partner for implementation and reporting of the activity?"]
[]
[null,"3. What methods / resources will be used for impementation of the activity? "]
[]
[null,"4. What will be the output(s) of the activity?"]
[]
[]
[]
[null,"Activity No",14]
[null,"Title of activity:"]
[null,"Location"]
[null,"1. Brief description of the activity:"]
[]
[null,"2. Who will be the reponsible partner for implementation and reporting of the activity?"]
[null,null,null,null,null,null,null,null,null,null,null,null,{"$f":"LEN(pi_act_14_report)","v":0}]
[null,"3. What methods / resources will be used for impementation of the activity? "]
[]
[null,"4. What will be the output(s) of the activity?"]
[null,null,null,null,null,null,null,null,null,null,null,null,{"$f":"LEN(pi_act_14_output)","v":0}]
[]
[]
[null,"Activity No",15]
[null,"Title of activity:"]
[null,"Location"]
[null,"1. Brief description of the activity:"]
[]
[null,"2. Who will be the reponsible partner for implementation and reporting of the activity?"]
[]
[null,"3. What methods / resources will be used for impementation of the activity? "]
[]
[null,"4. What will be the output(s) of the activity?"]
[]
[]
[null,"Activity No",16]
[null,"Title of activity:"]
[null,"Location"]
[null,"1. Brief description of the activity:"]
[]
[null,"2. Who will be the reponsible partner for implementation and reporting of the activity?"]
[]
[null,"3. What methods / resources will be used for impementation of the activity? "]
[]
[null,"4. What will be the output(s) of the activity?"]
[]
[]
[null,"Activity No",17]
[null,"Title of activity:"]
[null,"Location"]
[null,"1. Brief description of the activity:"]
[]
[null,"2. Who will be the reponsible partner for implementation and reporting of the activity?"]
[]
[null,"3. What methods / resources will be used for impementation of the activity? "]
[]
[null,"4. What will be the output(s) of the activity?"]
[]
[]
[null,"Activity No",18]
[null,"Title of activity:"]
[null,"Location"]
[null,"1. Brief description of the activity:"]
[]
[null,"2. Who will be the reponsible partner for implementation and reporting of the activity?"]
[]
[null,"3. What methods / resources will be used for impementation of the activity? "]
[]
[null,"4. What will be the output(s) of the activity?"]
[]
[]
[null,"Activity No",19]
[null,"Title of activity:"]
[null,"Location"]
[null,"1. Brief description of the activity:"]
[]
[null,"2. Who will be the reponsible partner for implementation and reporting of the activity?"]
[]
[null,"3. What methods / resources will be used for impementation of the activity? "]
[]
[null,"4. What will be the output(s) of the activity?"]
[]
[]
[null,"Activity No",20]
[null,"Title of activity:"]
[null,"Location"]
[null,"1. Brief description of the activity:"]
[]
[null,"2. Who will be the reponsible partner for implementation and reporting of the activity?"]
[]
[null,"3. What methods / resources will be used for impementation of the activity? "]
[]
[null,"4. What will be the output(s) of the activity?"]
[]
[]
[null,"Activity No",21]
[null,"Title of activity:"]
[null,"Location"]
[null,"1. Brief description of the activity:"]
[]
[null,"2. Who will be the reponsible partner for implementation and reporting of the activity?"]
[]
[null,"3. What methods / resources will be used for impementation of the activity? "]
[]
[null,"4. What will be the output(s) of the activity?"]
[]
[]
[null,"Activity No",22]
[null,"Title of activity:"]
[null,"Location"]
[null,"1. Brief description of the activity:"]
[]
[null,"2. Who will be the reponsible partner for implementation and reporting of the activity?"]
[]
[null,"3. What methods / resources will be used for impementation of the activity? "]
[]
[null,"4. What will be the output(s) of the activity?"]
[]
[]
[null,"Activity No",23]
[null,"Title of activity:"]
[null,"Location"]
[null,"1. Brief description of the activity:"]
[]
[null,"2. Who will be the reponsible partner for implementation and reporting of the activity?"]
[]
[null,"3. What methods / resources will be used for impementation of the activity? "]
[]
[null,"4. What will be the output(s) of the activity?"]
[]
[]
[null,"Activity No",24]
[null,"Title of activity:"]
[null,"Location"]
[null,"1. Brief description of the activity:"]
[]
[null,"2. Who will be the reponsible partner for implementation and reporting of the activity?"]
[]
[null,"3. What methods / resources will be used for impementation of the activity? "]
[]
[null,"4. What will be the output(s) of the activity?"]
[]
[]
[null,"Activity No",25]
[null,"Title of activity:"]
[null,"Location"]
[null,"1. Brief description of the activity:"]
[]
[null,"2. Who will be the reponsible partner for implementation and reporting of the activity?"]
[]
[null,"3. What methods / resources will be used for impementation of the activity? "]
[]
[null,"4. What will be the output(s) of the activity?"]
[]
[]
[]
[null,"2.4. Project activities outside the eligible border area (if applicable)"]
[null,"Please discribe the activity/ies that will be implemented outside the eligible border area  of the Programme as set in Applicant's Guide (type,place,involve actors,output  and justification how activity/ies will benefit the programme area)"]
[null,"Applicable",null,null,null,null,null,null,null,null,null,false,{"$f":"L384+L386","v":0},{"$f":"M384=2","v":false}]
[]
[null,null,null,null,null,null,null,null,null,null,null,{"$f":"B386<>\"\"","v":false},null,"active if H284 = yes"]
[]
[]
[null,"2.5.Communication and visibility"]
[null,"2.5.1.Communication strategy "]
[null,"Please summarize the communication and visibility activities that you foresee in your project proposal (max 1500 characters)"]
[null,null,null,null,null,null,null,null,null,null,null,{"$f":"B392<>\"\"","v":false},{"$f":"LEN(B392)>1500","v":false},"Check text size"]
[null,"2.5.2.Communication tools \nPlease describe what communication tools will be used to fulfill the strategy \n"]
[null,"Type of communication tools/materials",null,"Responsible partner",null,"Target groups",null,null,"Number of persons to be reached"]
[null,null,null,null,null,null,null,null,null,null,null,null,null,{"$f":"ISBLANK(pi_comm_tool1)","v":true},{"$f":"ISBLANK(pi_comm_partner1)","v":true},{"$f":"ISBLANK(pi_comm_target1)","v":true},{"$f":"ISBLANK(pi_comm_reach1)","v":true},{"$f":"N395+O395+P395+Q395","v":4},{"$f":"R395=0","v":false}]
[null,null,null,null,null,null,null,null,null,null,null,null,null,{"$f":"ISBLANK(pi_comm_tool2)","v":true},{"$f":"ISBLANK(pi_comm_partner2)","v":true},{"$f":"ISBLANK(pi_comm_target2)","v":true},{"$f":"ISBLANK(pi_comm_reach2)","v":true},{"$f":"N396+O396+P396+Q396","v":4},{"$f":"R396=0","v":false}]
[null,null,null,null,null,null,null,null,null,null,null,null,null,{"$f":"ISBLANK(pi_comm_tool3)","v":true},{"$f":"ISBLANK(pi_comm_partner3)","v":true},{"$f":"ISBLANK(pi_comm_target3)","v":true},{"$f":"ISBLANK(pi_comm_reach3)","v":true},{"$f":"N397+O397+P397+Q397","v":4},{"$f":"R397=0","v":false},{"$f":"(S397+S398+S399)=3","v":false}]
[null,null,null,null,null,null,null,null,null,null,null,null,null,{"$f":"ISBLANK(pi_comm_tool4)","v":true},{"$f":"ISBLANK(pi_comm_partner4)","v":true},{"$f":"ISBLANK(pi_comm_target4)","v":true},{"$f":"ISBLANK(pi_comm_reach4)","v":true},{"$f":"N398+O398+P398+Q398","v":4},{"$f":"R398=0","v":false}]
[null,null,null,null,null,null,null,null,null,null,null,null,null,{"$f":"ISBLANK(pi_comm_tool5)","v":true},{"$f":"ISBLANK(pi_comm_partner5)","v":true},{"$f":"ISBLANK(pi_comm_target5)","v":true},{"$f":"ISBLANK(pi_comm_reach5)","v":true},{"$f":"N399+O399+P399+Q399","v":4},{"$f":"R399=0","v":false}]
[null,"2.6. Duration and action plan:"]
[null,"Duration in trimesters",null,null,null,null,null,null,null,null,null,null,null,"empty","full"]
[null,"Activity","1st","2nd","3rd","4th","5th","6th","7th","8th",null,null,{"$f":"ROUNDUP(C19/3,0)","v":0},null,"x",null,"x"]
[null,{"$f":"CONCATENATE(\"1.\",C68)","v":"1."},null,null,null,null,null,null,null,null,null,null,{"$f":"B403<>0","v":true},{"$f":"IF((($N$428/$M$402<1.01)+(M403)=2),\"OK\",\"BAD\")","v":{"$error":"#DIV/0!"}},{"$f":"IF((($O$428/$M$402<1.01)+(M403)=2),\"OK\",\"BAD\")","v":{"$error":"#DIV/0!"}},{"$f":"IF(((P$428/$M$402<1.01)+($M$403)=2),\"OK\",\"BAD\")","v":{"$error":"#DIV/0!"}},{"$f":"IF(((Q$428/$M$402<1.3)+($M403)=2),\"OK\",\"BAD\")","v":{"$error":"#DIV/0!"}},{"$f":"IF(((R$428/$M$402<1.01)+(M403)=2),\"OK\",\"BAD\")","v":{"$error":"#DIV/0!"}},{"$f":"IF(((S$428/$M$402<1.1)+(M403)=2),\"OK\",\"BAD\")","v":{"$error":"#DIV/0!"}},{"$f":"IF(((T$428/$M$402<1.11)+(M403)=2),\"OK\",\"BAD\")","v":{"$error":"#DIV/0!"}},{"$f":"IF(((U$428/$M$402<1.11)+(M403)=2),\"OK\",\"BAD\")","v":{"$error":"#DIV/0!"}},null,null,{"$f":"C403=\"x\"","v":false},false,false,false,false,false,false,false]
[null,{"$f":"CONCATENATE(\"2.\",C81)","v":"2."},null,null,null,null,null,null,null,null,null,null,{"$f":"B404<>0","v":true},{"$f":"IF(((N$428/$M$402<1.01)+($M404)=2),\"OK\",\"BAD\")","v":{"$error":"#DIV/0!"}},{"$error":"#DIV/0!"},{"$error":"#DIV/0!"},{"$error":"#DIV/0!"},{"$f":"IF(((R$428/$M$402<1.01)+($M404)=2),\"OK\",\"BAD\")","v":{"$error":"#DIV/0!"}},{"$error":"#DIV/0!"},{"$error":"#DIV/0!"},{"$error":"#DIV/0!"},null,null,{"$f":"C404=\"x\"","v":false},false,false,false,false,false,false,false]
[null,{"$f":"CONCATENATE(\"3.\",C94)","v":"3."},null,null,null,null,null,null,null,null,null,null,{"$f":"B405<>0","v":true},{"$error":"#DIV/0!"},{"$error":"#DIV/0!"},{"$error":"#DIV/0!"},{"$error":"#DIV/0!"},{"$error":"#DIV/0!"},{"$error":"#DIV/0!"},{"$error":"#DIV/0!"},{"$error":"#DIV/0!"},null,null,false,false,false,false,false,false,false,false]
[null,{"$f":"CONCATENATE(\"4.\",C107)","v":"4."},null,null,null,null,null,null,null,null,null,null,{"$f":"B406<>0","v":true},{"$error":"#DIV/0!"},{"$error":"#DIV/0!"},{"$error":"#DIV/0!"},{"$error":"#DIV/0!"},{"$error":"#DIV/0!"},{"$error":"#DIV/0!"},{"$error":"#DIV/0!"},{"$error":"#DIV/0!"},null,null,false,false,false,false,false,false,false,false]
[null,{"$f":"CONCATENATE(\"5.\",C120)","v":"5."},null,null,null,null,null,null,null,null,null,null,true,{"$error":"#DIV/0!"},{"$error":"#DIV/0!"},{"$error":"#DIV/0!"},{"$error":"#DIV/0!"},{"$error":"#DIV/0!"},{"$error":"#DIV/0!"},{"$error":"#DIV/0!"},{"$error":"#DIV/0!"},null,null,false,false,false,false,false,false,false,false]
[null,{"$f":"CONCATENATE(\"6.\",C133)","v":"6."},null,null,null,null,null,null,null,null,null,null,true,{"$error":"#DIV/0!"},{"$error":"#DIV/0!"},{"$error":"#DIV/0!"},{"$error":"#DIV/0!"},{"$error":"#DIV/0!"},{"$error":"#DIV/0!"},{"$error":"#DIV/0!"},{"$error":"#DIV/0!"},null,"x",false,false,false,false,false,false,false,false]
[null,{"$f":"CONCATENATE(\"7.\",C146)","v":"7."},null,null,null,null,null,null,null,null,null,null,true,{"$error":"#DIV/0!"},{"$error":"#DIV/0!"},{"$error":"#DIV/0!"},{"$error":"#DIV/0!"},{"$error":"#DIV/0!"},{"$error":"#DIV/0!"},{"$error":"#DIV/0!"},{"$error":"#DIV/0!"},null,null,false,false,false,false,false,false,false,false]
[null,{"$f":"CONCATENATE(\"8.\",C159)","v":"8."},null,null,null,null,null,null,null,null,null,null,true,{"$error":"#DIV/0!"},{"$error":"#DIV/0!"},{"$error":"#DIV/0!"},{"$error":"#DIV/0!"},{"$error":"#DIV/0!"},{"$error":"#DIV/0!"},{"$error":"#DIV/0!"},{"$error":"#DIV/0!"},null,null,false,false,false,false,false,false,false,false]
[null,{"$f":"CONCATENATE(\"9.\",C172)","v":"9."},null,null,null,null,null,null,null,null,null,null,true,{"$error":"#DIV/0!"},{"$error":"#DIV/0!"},{"$error":"#DIV/0!"},{"$error":"#DIV/0!"},{"$error":"#DIV/0!"},{"$error":"#DIV/0!"},{"$error":"#DIV/0!"},{"$error":"#DIV/0!"},null,null,false,false,false,false,false,false,false,false]
[null,{"$f":"CONCATENATE(\"10.\",C185)","v":"10."},null,null,null,null,null,null,null,null,null,null,true,{"$error":"#DIV/0!"},{"$error":"#DIV/0!"},{"$error":"#DIV/0!"},{"$f":"IF(((Q$428/$M$402<1.1)+($M412)=2),\"OK\",\"BAD\")","v":{"$error":"#DIV/0!"}},{"$error":"#DIV/0!"},{"$error":"#DIV/0!"},{"$error":"#DIV/0!"},{"$error":"#DIV/0!"},null,null,false,false,false,false,false,false,false,false]
[null,{"$f":"CONCATENATE(\"11.\",C198)","v":"11."},null,null,null,null,null,null,null,null,null,null,true,{"$error":"#DIV/0!"},{"$error":"#DIV/0!"},{"$error":"#DIV/0!"},{"$f":"IF(((Q$428/$M$402<1.3)+($M413)=2),\"OK\",\"BAD\")","v":{"$error":"#DIV/0!"}},{"$error":"#DIV/0!"},{"$error":"#DIV/0!"},{"$error":"#DIV/0!"},{"$error":"#DIV/0!"},null,null,false,false,false,false,false,false,false,false]
[null,{"$f":"CONCATENATE(\"12.\",C211)","v":"12."},null,null,null,null,null,null,null,null,null,null,true,{"$error":"#DIV/0!"},{"$error":"#DIV/0!"},{"$error":"#DIV/0!"},{"$error":"#DIV/0!"},{"$error":"#DIV/0!"},{"$error":"#DIV/0!"},{"$error":"#DIV/0!"},{"$error":"#DIV/0!"},null,null,false,false,false,false,false,false,false,false]
[null,{"$f":"CONCATENATE(\"13.\",C224)","v":"13."},null,null,null,null,null,null,null,null,null,null,true,{"$error":"#DIV/0!"},{"$error":"#DIV/0!"},{"$error":"#DIV/0!"},{"$error":"#DIV/0!"},{"$error":"#DIV/0!"},{"$error":"#DIV/0!"},{"$error":"#DIV/0!"},{"$error":"#DIV/0!"},null,null,false,false,false,false,false,false,false,false]
[null,{"$f":"CONCATENATE(\"14.\",C237)","v":"14."},null,null,null,null,null,null,null,null,null,null,true,{"$error":"#DIV/0!"},{"$error":"#DIV/0!"},{"$error":"#DIV/0!"},{"$error":"#DIV/0!"},{"$error":"#DIV/0!"},{"$error":"#DIV/0!"},{"$error":"#DIV/0!"},{"$error":"#DIV/0!"},null,null,false,false,false,false,false,false,false,false]
[null,{"$f":"CONCATENATE(\"15.\",C250)","v":"15."},null,null,null,null,null,null,null,null,null,null,true,{"$error":"#DIV/0!"},{"$error":"#DIV/0!"},{"$error":"#DIV/0!"},{"$error":"#DIV/0!"},{"$error":"#DIV/0!"},{"$error":"#DIV/0!"},{"$error":"#DIV/0!"},{"$error":"#DIV/0!"},null,null,false,false,false,false,false,false,false,false]
[null,{"$f":"CONCATENATE(\"16.\",C262)","v":"16."},null,null,null,null,null,null,null,null,null,null,{"$f":"B418<>0","v":true},{"$error":"#DIV/0!"},{"$error":"#DIV/0!"},{"$error":"#DIV/0!"},{"$error":"#DIV/0!"},{"$error":"#DIV/0!"},{"$error":"#DIV/0!"},{"$error":"#DIV/0!"},{"$error":"#DIV/0!"},null,"x",{"$f":"C418=\"x\"","v":false},{"$f":"D418=\"x\"","v":false},{"$f":"E418=\"x\"","v":false},{"$f":"F418=\"x\"","v":false},{"$f":"G418=\"x\"","v":false},{"$f":"H418=\"x\"","v":false},{"$f":"I418=\"x\"","v":false},{"$f":"J418=\"x\"","v":false}]
[null,{"$f":"CONCATENATE(\"17.\",C274)","v":"17."},null,null,null,null,null,null,null,null,null,null,true,{"$error":"#DIV/0!"},{"$error":"#DIV/0!"},{"$error":"#DIV/0!"},{"$error":"#DIV/0!"},{"$error":"#DIV/0!"},{"$error":"#DIV/0!"},{"$error":"#DIV/0!"},{"$error":"#DIV/0!"},null,null,false,false,false,false,false,false,false,false]
[null,{"$f":"CONCATENATE(\"18.\",C286)","v":"18."},null,null,null,null,null,null,null,null,null,null,true,{"$error":"#DIV/0!"},{"$error":"#DIV/0!"},{"$error":"#DIV/0!"},{"$error":"#DIV/0!"},{"$error":"#DIV/0!"},{"$error":"#DIV/0!"},{"$error":"#DIV/0!"},{"$error":"#DIV/0!"},null,null,false,false,false,false,false,false,false,false]
[null,{"$f":"CONCATENATE(\"19.\",C298)","v":"19."},null,null,null,null,null,null,null,null,null,null,true,{"$error":"#DIV/0!"},{"$error":"#DIV/0!"},{"$error":"#DIV/0!"},{"$error":"#DIV/0!"},{"$error":"#DIV/0!"},{"$error":"#DIV/0!"},{"$error":"#DIV/0!"},{"$error":"#DIV/0!"},null,null,false,false,false,false,false,false,false,false]
[null,{"$f":"CONCATENATE(\"20.\",C310)","v":"20."},null,null,null,null,null,null,null,null,null,null,true,{"$error":"#DIV/0!"},{"$error":"#DIV/0!"},{"$error":"#DIV/0!"},{"$f":"IF(((Q$428/$M$402<1.1)+($M422)=2),\"OK\",\"BAD\")","v":{"$error":"#DIV/0!"}},{"$error":"#DIV/0!"},{"$error":"#DIV/0!"},{"$error":"#DIV/0!"},{"$error":"#DIV/0!"},null,null,false,false,false,false,false,false,false,false]
[null,{"$f":"CONCATENATE(\"21.\",C322)","v":"21."},null,null,null,null,null,null,null,null,null,null,true,{"$error":"#DIV/0!"},{"$error":"#DIV/0!"},{"$error":"#DIV/0!"},{"$f":"IF(((Q$428/$M$402<1.3)+($M423)=2),\"OK\",\"BAD\")","v":{"$error":"#DIV/0!"}},{"$error":"#DIV/0!"},{"$error":"#DIV/0!"},{"$error":"#DIV/0!"},{"$error":"#DIV/0!"},null,null,false,false,false,false,false,false,false,false]
[null,{"$f":"CONCATENATE(\"22.\",C334)","v":"22."},null,null,null,null,null,null,null,null,null,null,true,{"$error":"#DIV/0!"},{"$error":"#DIV/0!"},{"$error":"#DIV/0!"},{"$f":"IF(((Q$428/$M$402<1.3)+($M424)=2),\"OK\",\"BAD\")","v":{"$error":"#DIV/0!"}},{"$error":"#DIV/0!"},{"$error":"#DIV/0!"},{"$error":"#DIV/0!"},{"$error":"#DIV/0!"},null,null,false,false,false,false,false,false,false,false]
[null,{"$f":"CONCATENATE(\"23.\",C346)","v":"23."},null,null,null,null,null,null,null,null,null,null,true,{"$error":"#DIV/0!"},{"$error":"#DIV/0!"},{"$error":"#DIV/0!"},{"$f":"IF(((Q$428/$M$402<1.3)+($M425)=2),\"OK\",\"BAD\")","v":{"$error":"#DIV/0!"}},{"$error":"#DIV/0!"},{"$error":"#DIV/0!"},{"$error":"#DIV/0!"},{"$error":"#DIV/0!"},null,null,false,false,false,false,false,false,false,false]
[null,{"$f":"CONCATENATE(\"24.\",C358)","v":"24."},null,null,null,null,null,null,null,null,null,null,true,{"$error":"#DIV/0!"},{"$error":"#DIV/0!"},{"$error":"#DIV/0!"},{"$f":"IF(((Q$428/$M$402<1.3)+($M426)=2),\"OK\",\"BAD\")","v":{"$error":"#DIV/0!"}},{"$error":"#DIV/0!"},{"$error":"#DIV/0!"},{"$error":"#DIV/0!"},{"$error":"#DIV/0!"},null,null,false,false,false,false,false,false,false,false]
[null,{"$f":"CONCATENATE(\"25.\",C370)","v":"25."},null,null,null,null,null,null,null,null,null,null,true,{"$error":"#DIV/0!"},{"$error":"#DIV/0!"},{"$error":"#DIV/0!"},{"$f":"IF(((Q$428/$M$402<1.3)+($M427)=2),\"OK\",\"BAD\")","v":{"$error":"#DIV/0!"}},{"$error":"#DIV/0!"},{"$error":"#DIV/0!"},{"$error":"#DIV/0!"},{"$error":"#DIV/0!"},null,null,false,false,false,false,false,false,false,false]
[null,null,null,null,null,null,null,null,null,null,null,{"$f":"AF428>0","v":false},null,1,2,3,4,5,6,7,8,null,null,{"$f":"X417+X416+X415+X414+X413+X412+X411+X410+X409+X408+X407+X406+X405+X403+X404","v":0},0,0,0,0,0,0,0,{"$f":"SUM(X428:AE428)","v":0}]
[]
[]
[null,"3. Management of the project"]
[null,"Please briefly describe (maximum 2000 characters):"]
[null,"The reponsibilities of each project partner in view of the overall project implementation and reporting;"]
[null,"The structure of the project team (both Bulgarian and Turkish members); "]
[null,"The reponsibilities of each member of the project team;"]
[null,null,null,null,null,null,null,null,null,null,null,{"$f":"LEN(B436)>0","v":false},{"$f":"LEN(pi_management)","v":0},"text size check"]
[]
[]
[]
[null,"4. Monitoring of the project "]
[null,"4.1. Expected outputs"]
[null,"Please specify to which of the programme output indicators the project contributes:"]
[]
[]
[null,"Output indicators","Quantity",null,"Justification",null,null,null,null,"New indicator\n(Y/N)",null,null,null,null,"LINK TO PRIORITY AND SPECIFIC OBJECTIVE SELECTION"]
[null,null,null,null,null,null,null,null,null,null,null,false,"Y",{"$f":"VLOOKUP(C13,P9:R13,3)","v":2},null,null,null,null,null,null,{"$f":"ISBLANK(B446)","v":true},true,{"$f":"ISBLANK(E446)","v":true},{"$f":"U446+V446+W446+Z446","v":4},{"$f":"IF(X446=0,TRUE,FALSE)","v":false},{"$f":"J446<>\"Y\"","v":true},null,{"$f":"(U446+V446+W446)=0","v":false}]
[null,null,null,null,null,null,null,null,null,null,null,false,"N","OI 1.1.1","1.1.1. Number of interventions related to risk prevention and  management of natural and man-made hazards and disasters ",null,null,null,null,null,true,true,true,4,{"$f":"IF(X447=0,TRUE,FALSE)","v":false},true]
[null,null,null,null,null,null,null,null,null,null,null,true,null,"OI 1.1.2","1.1.2. Number of joint strategies / common guidelines, trainings, public awareness campaigns, exchange of experience for risk prevention and  management of natural and man-made hazards and disasters",null,null,null,null,null,true,true,true,4,{"$f":"IF(X448=0,TRUE,FALSE)","v":false},true]
[null,null,null,null,null,null,null,null,null,null,null,false,null,"OI 1.1.3","1.1.3. Population benefiting from flood protection measures",null,null,null,null,null,true,true,true,4,{"$f":"IF(X449=0,TRUE,FALSE)","v":false},true]
[null,null,null,null,null,null,null,null,null,null,null,null,null,"OI 1.1.4","1.1.4. Population benefiting from forest fire protection measure",null,null,null,null,null,true,true,true,4,false,true]
[null,null,null,null,null,null,null,null,null,null,null,null,null,"OI 1.2.1","1.2.1. Number of  nature protected areas addressed by  interventions  ",null,null,null,null,null,true,true,true,4,{"$f":"IF(X451=0,TRUE,FALSE)","v":false},true]
[null,null,null,null,null,null,null,null,null,null,null,null,null,"OI 1.2.2","1.2.2. Number of capacity building / awareness activities related to nature protection, sustainable use and management of common natural resources",null,null,null,null,null,null,{"$f":"ISBLANK(C452)","v":true},true,null,true]
[null,null,null,null,null,null,null,null,null,null,null,{"$f":"LEN(pi_monit_justf)","v":0},null,"OI 1.2.3","1.2.3. Number of people involved in training and capacity building activities in the field of nature protection"]
[null,null,null,null,null,null,null,null,null,null,null,null,null,"OI 1.2.4","1.2.4. Number of joint initiatives addressing preservation of marine and coastal environment (incl. litter reduction)"]
[null,"4.2. Multiplier effect and further actions in the field addressed by the project"]
[null,"Please describe the ideas proposal for the catalyzing further actions in the field addressed by the project and the possibilities for further development of the project idea in a subsequent project (maximum 2500 characters)",null,null,null,null,null,null,null,null,null,null,null,"OI 1.2.5","1.2.5. Number of joint management plans/ coordinated specific conservation activities for protected areas"]
[null,null,null,null,null,null,null,null,null,null,null,{"$f":"LEN(B457)>0","v":false},null,"OI-2.1-1","2.1.1. Total length of reconstructed or upgraded access roads to natural, cultural and historic tourism sites"]
[null,null,null,null,null,null,null,null,null,null,null,null,null,"OI-2.1-2","2.1.2. Total length of newly built, reconstructed or upgraded cycling routes / walking paths"]
[null,null,null,null,null,null,null,null,null,null,null,null,null,"OI-2.1-3","2.1.3. Number of newly built / reconstructed facilities in / leading to touristic sites "]
[null,"4.3. Sustainability",null,null,null,null,null,null,null,null,null,null,null,"OI-2.1-4","2.1.4. Number of reconstructed / restored cultural and historical touristic sites "]
[null,"Please describe how you intend to maintain the sustainability of the project results 5 (five) years after the end of the project. Which activities will be continued, in which way and who will be the responsible partner? \nPlease indicate the measures for effective maintenance and use of the investment after the end of the project implementation period.(maximum 2200 characters).",null,null,null,null,null,null,null,null,null,null,null,"OI-2.2-1","2.2.1. Number of  sustainable tourism strategies/action plans of common tourist destinations"]
[null,null,null,null,null,null,null,null,null,null,null,{"$f":"LEN(B462)>0","v":false},null,"OI-2.2-2","2.2.2. Number of marketing and promotional initiatives/events, addressing cross-border tourism products & services "]
[null,null,null,null,null,null,null,null,null,null,null,null,null,"OI-2.2-3","2.2.3. Number of tools developed and/or implemented for promotion of sustainable touristic potential "]
[null,null,null,null,null,null,null,null,null,null,null,null,null,"OI-2.2-4","2.2.4. Number of trainings and consultancy services in sustainable use of natural, historical  and cultural heritage and resources"]
[null,null,null,null,null,null,null,null,null,null,null,null,null,"OI-2.2-5","2.2.5. Number of people involved in training and capacity building activities in the field of sustainable tourism"]
[null,"5. Project coherence",null,null,null,null,null,null,null,null,null,null,null,"OI-2.3-1","2.3.1. Number of networking events"]
[null,"5.1. Project coherence with other programmes/strategies",null,null,null,null,null,null,null,null,null,null,null,"OI-2.3-2","2.3.2. Number of public awareness initiatives promoting sustainable use of natural, historical and cultural heritage and resources"]
[null,"The project partners should describe how the project proposal fits the larger European Union strategies concerning the Programme (please see the Programme document, Section 1, for a list of relevant policy frameworks and strategies) ",null,null,null,null,null,null,null,null,null,null,null,"OI-2.3-3","2.3.3. Number of public awareness initiatives promoting alternative forms of tourism "]
[null,"Please, indicate whether your project is a part of strategy/plan for development of the specific region/sector. Please describe the potential synergy of the project with other initiatives/ programmes/ strategies at national level. (Maximum 1500 characters)"]
[null,null,null,null,null,null,null,null,null,null,null,{"$f":"LEN(B470)>0","v":false}]
[null,null,null,null,null,null,null,null,null,null,null,null,null,"text size check"]
[]
[]
[]
[]
[]
[]
[null,"5.2. Project coherence with horizontal principles"]
[null,"Please indicate which type of the following horizontal principles applies to your project and justify (maximum 500 characters for each field):"]
[null,"Sustainable development",null,null,null,null,null,null,null,null,null,{"$f":"ISBLANK(C480)","v":true},{"$f":"(L480+L481+L482)<3","v":false}]
[null,"Equal opportunities and non-discrimination",null,null,null,null,null,null,null,null,null,{"$f":"ISBLANK(C481)","v":true}]
[null,"Equality between men and women ",null,null,null,null,null,null,null,null,null,{"$f":"ISBLANK(C482)","v":true}]

{"sheet":"T1-PPs","index":9,"n_rows":11,"n_cols":9,"rows_kept":11,"cut":false,"hidden":false,"merged":[]}
[]
[null,"TABLE 1 - TOTAL BUDGET PER PROJECT PARTNERS"]
[]
[]
[null,"PROJECT PARTNERS","Organization","Country","Total financial contribution (sum of EU and national co-financing)  in EUR"]
[null,"PP1 LP",{"$f":"lp_pp1_organisation_en","v":""},{"$f":"IF(pp1_country=1,\"BG\",\"TR\")","v":"BG"},{"$f":"t5_total_pp1","v":0},null,null,{"$f":"'PP1(LP)'!K14","v":1},{"$f":"E6<>0","v":false}]
[null,"PP2",{"$f":"IF('PP2'!$C$7=\"\",\"\",'PP2'!$C$7)","v":""},{"$f":"IF(pp2_country=1,\"BG\",\"TR\")","v":"TR"},{"$f":"t5_total_pp2","v":0},null,null,{"$f":"'PP2'!K14","v":2},{"$f":"E7<>0","v":false}]
[null,"PP3",{"$f":"IF('PP3'!$C$7=\"\",\"\",'PP3'!$C$7)","v":""},{"$f":"IF(pp3_country=1,\"BG\",\"TR\")","v":"TR"},{"$f":"t5_total_pp3","v":0},null,null,{"$f":"'PP3'!K14","v":2},{"$f":"E8<>0","v":false}]
[null,"PP4",{"$f":"IF('PP4'!$C$7=\"\",\"\",'PP4'!$C$7)","v":""},{"$f":"IF(pp4_country=1,\"BG\",\"TR\")","v":"BG"},{"$f":"t5_total_pp4","v":0},null,null,{"$f":"'PP4'!K14","v":1},{"$f":"E9<>0","v":false}]
[null,"PP5",{"$f":"IF('PP5'!$C$7=\"\",\"\",'PP5'!$C$7)","v":""},{"$f":"IF(pp5_country=1,\"BG\",\"TR\")","v":"TR"},{"$f":"t5_total_pp5","v":0},null,null,{"$f":"'PP5'!K14","v":2},{"$f":"E10<>0","v":false}]
[null,"Total",null,null,{"$f":"SUM(E6:E10)","v":0}]

{"sheet":"T2-B(PP1)","index":10,"n_rows":425,"n_cols":18,"rows_kept":425,"cut":false,"hidden":false,"merged":[[12,9,13,9],[5,8,5,9],[4,1,4,5],[5,1,5,7],[10,8,10,9],[7,6,7,7],[8,6,8,7],[9,1,9,5],[9,8,9,9],[7,1,8,5],[7,8,8,9],[10,1,10,7],[9,6,9,7],[12,1,13,1],[12,2,13,2],[12,3,12,5],[3,6,3,7],[4,6,4,7],[4,8,4,9],[2,1,3,5],[2,8,3,9],[2,6,2,7],[12,6,12,8],[90,3,90,5],[90,6,90,8],[419,1,419,4],[391,1,391,9],[392,9,393,9],[90,1,91,1],[90,2,91,2],[346,2,347,2],[90,9,91,9],[344,1,344,4],[344,6,344,7],[346,3,346,5],[346,1,347,1],[345,3,345,9],[346,9,347,9],[416,1,416,4],[416,6,416,7],[346,6,346,8],[422,1,422,4],[421,6,421,8],[422,6,422,8],[390,1,390,4],[390,6,390,7],[418,1,418,4],[421,1,421,4],[392,1,393,1],[392,2,393,2],[392,3,392,5],[392,6,392,8],[418,8,418,9],[419,8,419,9]]}
[null,"TABLE 2 - DETAILED BREAKDOWN OF BUDGET LINES - PP1/LP",null,null,null,null,null,null,null,null,null,null,null,null,null,null,null,true]
[null,null,null,null,null,null,null,null,null,null,null,null,null,null,null,null,null,true]
[null,"BL1 - STAFF COSTS",null,null,null,null,"Flat rate",null,"TOTAL",null,null,null,null,null,null,null,null,true]
[null,null,null,null,null,null,"%",null,null,null,null,null,null,null,null,null,null,true]
[null,{"$f":"M5","v":"Investment project"},null,null,null,null,0,null,{"$f":"ROUND(G5*J422/100,2)","v":0},null,null,"visible/hidden depending on project identification",{"$f":"CONCATENATE('Project identification'!C15,\" project\")","v":"Investment project"},null,null,null,10,true]
[null,"TOTAL",null,null,null,null,null,null,{"$f":"I5","v":0},null,null,null,null,null,{"$f":"IF(M8=\"Soft\",15,10)","v":10},null,15,true]
[null,null,null,null,null,null,null,null,null,null,null,null,null,null,null,null,null,true]
[null,"BL2 - OFFICE AND ADMINISTRATIVE COSTS",null,null,null,null,"Flat rate",null,"TOTAL",null,null,null,{"$f":"'Project identification'!C15","v":"Investment"},null,null,null,null,true]
[null,null,null,null,null,null,"%",null,null,null,null,null,null,null,null,null,null,true]
[null,{"$f":"M5","v":"Investment project"},null,null,null,null,null,null,{"$f":"ROUND(G10*I5/100,2)","v":0},null,null,"visible/hidden depending on project identification",null,null,null,null,2,true]
[null,"TOTAL",null,null,null,null,null,null,{"$f":"I10","v":0},null,null,null,null,null,{"$f":"IF(M8=\"Soft\",15,15)","v":15},null,5,true]
[null,null,null,null,null,null,null,null,null,null,null,null,null,null,null,null,null,true]
[null,"BL3 - TRAVEL AND ACCOMMODATION","Unit","Expenditures in the eligible area",null,null,"Expenditures outside of the eligible area",null,null,"TOTAL",null,null,null,null,null,null,null,true]
[null,null,null,"Units","Unit rate","TOTAL","Units","Unit rate","TOTAL",null,null,null,null,null,null,null,null,true]
[null,"3.1 Travel costs",null,null,null,{"$f":"SUM(F16:F35)","v":0},null,null,{"$f":"SUM(I16:I35)","v":0},{"$f":"SUM(J16:J35)","v":0},null,"Add",null,null,null,null,null,true]
[null,null,null,null,null,{"$f":"ROUND(D16*E16,2)","v":0},null,null,{"$f":"ROUND(G16*H16,2)","v":0},{"$f":"F16+I16","v":0},null,null,{"$f":"ISBLANK(B16)","v":true},{"$f":"ISBLANK(C16)","v":true},{"$f":"ISBLANK(D16)","v":true},{"$f":"ISBLANK(E16)","v":true},{"$f":"M16+N16+O16+P16","v":4},{"$f":"IF(Q16=0,TRUE,FALSE)","v":false}]
[null,null,null,null,null,{"$f":"ROUND(D17*E17,2)","v":0},null,null,{"$f":"ROUND(G17*H17,2)","v":0},{"$f":"F17+I17","v":0},null,null,{"$f":"ISBLANK(B17)","v":true},{"$f":"ISBLANK(C17)","v":true},{"$f":"ISBLANK(D17)","v":true},{"$f":"ISBLANK(E17)","v":true},{"$f":"M17+N17+O17+P17","v":4},{"$f":"IF(Q17=0,TRUE,FALSE)","v":false}]
[null,null,null,null,null,0,null,null,0,0,null,null,true,true,true,true,4,false]
[null,null,null,null,null,0,null,null,0,0,null,null,true,true,true,true,4,false]
[null,null,null,null,null,0,null,null,0,0,null,null,true,true,true,true,4,false]
[null,null,null,null,null,0,null,null,0,0,null,null,true,true,true,true,4,false]
[null,null,null,null,null,0,null,null,0,0,null,null,true,true,true,true,4,false]
[null,null,null,null,null,0,null,null,0,0,null,null,true,true,true,true,4,false]
[null,null,null,null,null,0,null,null,0,0,null,null,true,true,true,true,4,false]
[null,null,null,null,null,0,null,null,0,0,null,null,true,true,true,true,4,true]
[null,null,null,null,null,{"$f":"ROUND(D26*E26,2)","v":0},null,null,{"$f":"ROUND(G26*H26,2)","v":0},{"$f":"F26+I26","v":0},null,null,{"$f":"ISBLANK(B26)","v":true},{"$f":"ISBLANK(C26)","v":true},{"$f":"ISBLANK(D26)","v":true},{"$f":"ISBLANK(E26)","v":true},{"$f":"M26+N26+O26+P26","v":4},{"$f":"IF(Q26=0,TRUE,FALSE)","v":false}]
[null,null,null,null,null,{"$f":"ROUND(D27*E27,2)","v":0},null,null,{"$f":"ROUND(G27*H27,2)","v":0},{"$f":"F27+I27","v":0},null,null,{"$f":"ISBLANK(B27)","v":true},{"$f":"ISBLANK(C27)","v":true},{"$f":"ISBLANK(D27)","v":true},{"$f":"ISBLANK(E27)","v":true},{"$f":"M27+N27+O27+P27","v":4},{"$f":"IF(Q27=0,TRUE,FALSE)","v":false}]
[null,null,null,null,null,0,null,null,0,0,null,null,true,true,true,true,4,false]
[null,null,null,null,null,0,null,null,0,0,null,null,true,true,true,true,4,false]
[null,null,null,null,null,0,null,null,0,0,null,null,true,true,true,true,4,false]
[null,null,null,null,null,0,null,null,0,0,null,null,true,true,true,true,4,false]
[null,null,null,null,null,0,null,null,0,0,null,null,true,true,true,true,4,false]
[null,null,null,null,null,0,null,null,0,0,null,null,true,true,true,true,4,false]
[null,null,null,null,null,0,null,null,0,0,null,null,true,true,true,true,4,false]
[null,null,null,null,null,0,null,null,0,0,null,null,true,true,true,true,4,true]
[null,"3.2 Daily allowances",null,null,null,{"$f":"SUM(F37:F56)","v":0},null,null,{"$f":"SUM(I37:I56)","v":0},{"$f":"SUM(J37:J56)","v":0},null,"add (10 items)",null,null,null,null,null,true]
[null,null,null,null,null,{"$f":"ROUND(D37*E37,2)","v":0},null,null,{"$f":"ROUND(G37*H37,2)","v":0},{"$f":"F37+I37","v":0},null,null,{"$f":"ISBLANK(B37)","v":true},{"$f":"ISBLANK(C37)","v":true},{"$f":"ISBLANK(D37)","v":true},{"$f":"ISBLANK(E37)","v":true},{"$f":"M37+N37+O37+P37","v":4},{"$f":"IF(Q37=0,TRUE,FALSE)","v":false}]
[null,null,null,null,null,{"$f":"ROUND(D38*E38,2)","v":0},null,null,0,{"$f":"F38+I38","v":0},null,null,{"$f":"ISBLANK(B38)","v":true},true,true,true,{"$f":"M38+N38+O38+P38","v":4},{"$f":"IF(Q38=0,TRUE,FALSE)","v":false}]
[null,null,null,null,null,0,null,null,0,0,null,null,true,true,true,true,4,false]
[null,null,null,null,null,0,null,null,0,0,null,null,true,true,true,true,4,false]
[null,null,null,null,null,0,null,null,0,0,null,null,true,true,true,true,4,false]
[null,null,null,null,null,0,null,null,0,0,null,null,true,true,true,true,4,false]
[null,null,null,null,null,0,null,null,0,0,null,null,true,true,true,true,4,false]
[null,null,null,null,null,0,null,null,0,0,null,null,true,true,true,true,4,false]
[null,null,null,null,null,0,null,null,0,0,null,null,true,true,true,true,4,false]
[null,null,null,null,null,0,null,null,0,0,null,null,true,true,true,true,4,true]
[null,null,null,null,null,{"$f":"ROUND(D47*E47,2)","v":0},null,null,{"$f":"ROUND(G47*H47,2)","v":0},{"$f":"F47+I47","v":0},null,null,{"$f":"ISBLANK(B47)","v":true},{"$f":"ISBLANK(C47)","v":true},{"$f":"ISBLANK(D47)","v":true},{"$f":"ISBLANK(E47)","v":true},{"$f":"M47+N47+O47+P47","v":4},{"$f":"IF(Q47=0,TRUE,FALSE)","v":false}]
[null,null,null,null,null,{"$f":"ROUND(D48*E48,2)","v":0},null,null,0,{"$f":"F48+I48","v":0},null,null,{"$f":"ISBLANK(B48)","v":true},true,true,true,{"$f":"M48+N48+O48+P48","v":4},{"$f":"IF(Q48=0,TRUE,FALSE)","v":false}]
[null,null,null,null,null,0,null,null,0,0,null,null,true,true,true,true,4,false]
[null,null,null,null,null,0,null,null,0,0,null,null,true,true,true,true,4,false]
[null,null,null,null,null,0,null,null,0,0,null,null,true,true,true,true,4,false]
[null,null,null,null,null,0,null,null,0,0,null,null,true,true,true,true,4,false]
[null,null,null,null,null,0,null,null,0,0,null,null,true,true,true,true,4,false]
[null,null,null,null,null,0,null,null,0,0,null,null,true,true,true,true,4,false]
[null,null,null,null,null,0,null,null,0,0,null,null,true,true,true,true,4,false]
[null,null,null,null,null,0,null,null,0,0,null,null,true,true,true,true,4,true]
[null,"3.3 Accommodation costs",null,null,null,{"$f":"SUM(F58:F77)","v":0},null,null,{"$f":"SUM(I58:I77)","v":0},{"$f":"SUM(J58:J77)","v":0},null,null,null,null,null,null,null,true]
[null,null,null,null,null,{"$f":"ROUND(D58*E58,2)","v":0},null,null,{"$f":"ROUND(G58*H58,2)","v":0},{"$f":"F58+I58","v":0},null,null,{"$f":"ISBLANK(B58)","v":true},{"$f":"ISBLANK(C58)","v":true},{"$f":"ISBLANK(D58)","v":true},{"$f":"ISBLANK(E58)","v":true},{"$f":"M58+N58+O58+P58","v":4},{"$f":"IF(Q58=0,TRUE,FALSE)","v":false}]
[null,null,null,null,null,{"$f":"ROUND(D59*E59,2)","v":0},null,null,0,{"$f":"F59+I59","v":0},null,null,{"$f":"ISBLANK(B59)","v":true},true,true,true,{"$f":"M59+N59+O59+P59","v":4},{"$f":"IF(Q59=0,TRUE,FALSE)","v":false}]
[null,null,null,null,null,0,null,null,0,0,null,null,true,true,true,true,4,false]
[null,null,null,null,null,0,null,null,0,0,null,null,true,true,true,true,4,false]
[null,null,null,null,null,0,null,null,0,0,null,null,true,true,true,true,4,false]
[null,null,null,null,null,0,null,null,0,0,null,null,true,true,true,true,4,false]
[null,null,null,null,null,0,null,null,0,0,null,null,true,true,true,true,4,false]
[null,null,null,null,null,0,null,null,0,0,null,null,true,true,true,true,4,false]
[null,null,null,null,null,0,null,null,0,0,null,null,true,true,true,true,4,false]
[null,null,null,null,null,0,null,null,0,0,null,null,true,true,true,true,4,true]
[null,null,null,null,null,{"$f":"ROUND(D68*E68,2)","v":0},null,null,{"$f":"ROUND(G68*H68,2)","v":0},{"$f":"F68+I68","v":0},null,null,{"$f":"ISBLANK(B68)","v":true},{"$f":"ISBLANK(C68)","v":true},{"$f":"ISBLANK(D68)","v":true},{"$f":"ISBLANK(E68)","v":true},{"$f":"M68+N68+O68+P68","v":4},{"$f":"IF(Q68=0,TRUE,FALSE)","v":false}]
[null,null,null,null,null,{"$f":"ROUND(D69*E69,2)","v":0},null,null,0,{"$f":"F69+I69","v":0},null,null,{"$f":"ISBLANK(B69)","v":true},true,true,true,{"$f":"M69+N69+O69+P69","v":4},{"$f":"IF(Q69=0,TRUE,FALSE)","v":false}]
[null,null,null,null,null,0,null,null,0,0,null,null,true,true,true,true,4,false]
[null,null,null,null,null,0,null,null,0,0,null,null,true,true,true,true,4,false]
[null,null,null,null,null,0,null,null,0,0,null,null,true,true,true,true,4,false]
[null,null,null,null,null,0,null,null,0,0,null,null,true,true,true,true,4,false]
[null,null,null,null,null,0,null,null,0,0,null,null,true,true,true,true,4,false]
[null,null,null,null,null,0,null,null,0,0,null,null,true,true,true,true,4,false]
[null,null,null,null,null,0,null,null,0,0,null,null,true,true,true,true,4,false]
[null,null,null,null,null,0,null,null,0,0,null,null,true,true,true,true,4,true]
[null,"3.4 Visa costs",null,null,null,{"$f":"SUM(F79:F88)","v":0},null,null,{"$f":"SUM(I79:I88)","v":0},{"$f":"SUM(J79:J88)","v":0},null,null,null,null,null,null,null,true]
[null,null,null,null,null,{"$f":"ROUND(D79*E79,2)","v":0},null,null,{"$f":"ROUND(G79*H79,2)","v":0},{"$f":"F79+I79","v":0},null,null,{"$f":"ISBLANK(B79)","v":true},{"$f":"ISBLANK(C79)","v":true},{"$f":"ISBLANK(D79)","v":true},{"$f":"ISBLANK(E79)","v":true},{"$f":"M79+N79+O79+P79","v":4},{"$f":"IF(Q79=0,TRUE,FALSE)","v":false}]
[null,null,null,null,null,{"$f":"ROUND(D80*E80,2)","v":0},null,null,0,{"$f":"F80+I80","v":0},null,null,{"$f":"ISBLANK(B80)","v":true},true,true,true,{"$f":"M80+N80+O80+P80","v":4},{"$f":"IF(Q80=0,TRUE,FALSE)","v":false}]
[null,null,null,null,null,0,null,null,0,0,null,null,true,true,true,true,4,false]
[null,null,null,null,null,0,null,null,0,0,null,null,true,true,true,true,4,false]
[null,null,null,null,null,0,null,null,0,0,null,null,true,true,true,true,4,false]
[null,null,null,null,null,0,null,null,0,0,null,null,true,true,true,true,4,false]
[null,null,null,null,null,0,null,null,0,0,null,null,true,true,true,true,4,false]
[null,null,null,null,null,0,null,null,0,0,null,null,true,true,true,true,4,false]
[null,null,null,null,null,0,null,null,0,0,null,null,true,true,true,true,4,false]
[null,null,null,null,null,0,null,null,0,0,null,null,true,true,true,true,4,true]
[null,"TOTAL",null,null,null,{"$f":"F78+F57+F36+F15","v":0},null,null,{"$f":"I78+I57+I36+I15","v":0},{"$f":"J78+J57+J36+J15","v":0},null,null,null,null,null,null,null,true]
[null,null,null,null,null,null,null,null,null,null,null,null,null,null,null,null,null,true]
[null,"BL4 - EXTERNAL EXPERTISE AND SERVICES COSTS","Unit","Expenditures in the eligible area",null,null,"Expenditures outside of the eligible area",null,null,"TOTAL",null,null,null,null,null,null,null,true]
[null,null,null,"Units","Unit rate","TOTAL","Units","Unit rate","TOTAL",null,null,null,null,null,null,null,null,true]
[null,"4.1 Rent of hall",null,null,null,{"$f":"SUM(F94:F113)","v":0},null,null,{"$f":"SUM(I94:I113)","v":0},{"$f":"SUM(J94:J113)","v":0},null,null,null,null,null,null,null,true]
[null,null,null,null,null,{"$f":"ROUND(D94*E94,2)","v":0},null,null,{"$f":"ROUND(G94*H94,2)","v":0},{"$f":"F94+I94","v":0},null,null,{"$f":"ISBLANK(B94)","v":true},{"$f":"ISBLANK(C94)","v":true},{"$f":"ISBLANK(D94)","v":true},{"$f":"ISBLANK(E94)","v":true},{"$f":"M94+N94+O94+P94","v":4},{"$f":"IF(Q94=0,TRUE,FALSE)","v":false}]
[null,null,null,null,null,{"$f":"ROUND(D95*E95,2)","v":0},null,null,0,{"$f":"F95+I95","v":0},null,null,{"$f":"ISBLANK(B95)","v":true},true,true,true,{"$f":"M95+N95+O95+P95","v":4},{"$f":"IF(Q95=0,TRUE,FALSE)","v":false}]
[null,null,null,null,null,0,null,null,0,0,null,null,true,true,true,true,4,false]
[null,null,null,null,null,0,null,null,0,0,null,null,true,true,true,true,4,false]
[null,null,null,null,null,0,null,null,0,0,null,null,true,true,true,true,4,false]
[null,null,null,null,null,0,null,null,0,0,null,null,true,true,true,true,4,false]
[null,null,null,null,null,0,null,null,0,0,null,null,true,true,true,true,4,false]
[null,null,null,null,null,0,null,null,0,0,null,null,true,true,true,true,4,false]
[null,null,null,null,null,0,null,null,0,0,null,null,true,true,true,true,4,false]
[null,null,null,null,null,0,null,null,0,0,null,null,true,true,true,true,4,true]
[null,null,null,null,null,{"$f":"ROUND(D104*E104,2)","v":0},null,null,{"$f":"ROUND(G104*H104,2)","v":0},{"$f":"F104+I104","v":0},null,null,{"$f":"ISBLANK(B104)","v":true},{"$f":"ISBLANK(C104)","v":true},{"$f":"ISBLANK(D104)","v":true},{"$f":"ISBLANK(E104)","v":true},{"$f":"M104+N104+O104+P104","v":4},{"$f":"IF(Q104=0,TRUE,FALSE)","v":false}]
[null,null,null,null,null,{"$f":"ROUND(D105*E105,2)","v":0},null,null,0,{"$f":"F105+I105","v":0},null,null,{"$f":"ISBLANK(B105)","v":true},true,true,true,{"$f":"M105+N105+O105+P105","v":4},{"$f":"IF(Q105=0,TRUE,FALSE)","v":false}]
[null,null,null,null,null,0,null,null,0,0,null,null,true,true,true,true,4,false]
[null,null,null,null,null,0,null,null,0,0,null,null,true,true,true,true,4,false]
[null,null,null,null,null,0,null,null,0,0,null,null,true,true,true,true,4,false]
[null,null,null,null,null,0,null,null,0,0,null,null,true,true,true,true,4,false]
[null,null,null,null,null,0,null,null,0,0,null,null,true,true,true,true,4,false]
[null,null,null,null,null,0,null,null,0,0,null,null,true,true,true,true,4,false]
[null,null,null,null,null,0,null,null,0,0,null,null,true,true,true,true,4,false]
[null,null,null,null,null,0,null,null,0,0,null,null,true,true,true,true,4,true]
[null,"4.2 Rent of equipment",null,null,null,{"$f":"SUM(F115:F134)","v":0},null,null,{"$f":"SUM(I115:I134)","v":0},{"$f":"SUM(J115:J134)","v":0},null,null,null,null,null,null,null,true]
[null,null,null,null,null,{"$f":"ROUND(D115*E115,2)","v":0},null,null,{"$f":"ROUND(G115*H115,2)","v":0},{"$f":"F115+I115","v":0},null,null,{"$f":"ISBLANK(B115)","v":true},{"$f":"ISBLANK(C115)","v":true},{"$f":"ISBLANK(D115)","v":true},{"$f":"ISBLANK(E115)","v":true},{"$f":"M115+N115+O115+P115","v":4},{"$f":"IF(Q115=0,TRUE,FALSE)","v":false}]
[null,null,null,null,null,{"$f":"ROUND(D116*E116,2)","v":0},null,null,0,{"$f":"F116+I116","v":0},null,null,{"$f":"ISBLANK(B116)","v":true},true,true,true,{"$f":"M116+N116+O116+P116","v":4},{"$f":"IF(Q116=0,TRUE,FALSE)","v":false}]
[null,null,null,null,null,0,null,null,0,0,null,null,true,true,true,true,4,false]
[null,null,null,null,null,0,null,null,0,0,null,null,true,true,true,true,4,false]
[null,null,null,null,null,0,null,null,0,0,null,null,true,true,true,true,4,false]
[null,null,null,null,null,0,null,null,0,0,null,null,true,true,true,true,4,false]
[null,null,null,null,null,0,null,null,0,0,null,null,true,true,true,true,4,false]
[null,null,null,null,null,0,null,null,0,0,null,null,true,true,true,true,4,false]
[null,null,null,null,null,0,null,null,0,0,null,null,true,true,true,true,4,false]
[null,null,null,null,null,0,null,null,0,0,null,null,true,true,true,true,4,true]
[null,null,null,null,null,{"$f":"ROUND(D125*E125,2)","v":0},null,null,{"$f":"ROUND(G125*H125,2)","v":0},{"$f":"F125+I125","v":0},null,null,{"$f":"ISBLANK(B125)","v":true},{"$f":"ISBLANK(C125)","v":true},{"$f":"ISBLANK(D125)","v":true},{"$f":"ISBLANK(E125)","v":true},{"$f":"M125+N125+O125+P125","v":4},{"$f":"IF(Q125=0,TRUE,FALSE)","v":false}]
[null,null,null,null,null,{"$f":"ROUND(D126*E126,2)","v":0},null,null,0,{"$f":"F126+I126","v":0},null,null,{"$f":"ISBLANK(B126)","v":true},true,true,true,{"$f":"M126+N126+O126+P126","v":4},{"$f":"IF(Q126=0,TRUE,FALSE)","v":false}]
[null,null,null,null,null,0,null,null,0,0,null,null,true,true,true,true,4,false]
[null,null,null,null,null,0,null,null,0,0,null,null,true,true,true,true,4,false]
[null,null,null,null,null,0,null,null,0,0,null,null,true,true,true,true,4,false]
[null,null,null,null,null,0,null,null,0,0,null,null,true,true,true,true,4,false]
[null,null,null,null,null,0,null,null,0,0,null,null,true,true,true,true,4,false]
[null,null,null,null,null,0,null,null,0,0,null,null,true,true,true,true,4,false]
[null,null,null,null,null,0,null,null,0,0,null,null,true,true,true,true,4,false]
[null,null,null,null,null,0,null,null,0,0,null,null,true,true,true,true,4,true]
[null,"4.3 Coffee breaks, refreshments, etc.",null,null,null,{"$f":"SUM(F136:F155)","v":0},null,null,{"$f":"SUM(I136:I155)","v":0},{"$f":"SUM(J136:J155)","v":0},null,null,null,null,null,null,null,true]
[null,null,null,null,null,{"$f":"ROUND(D136*E136,2)","v":0},null,null,{"$f":"ROUND(G136*H136,2)","v":0},{"$f":"F136+I136","v":0},null,null,{"$f":"ISBLANK(B136)","v":true},{"$f":"ISBLANK(C136)","v":true},{"$f":"ISBLANK(D136)","v":true},{"$f":"ISBLANK(E136)","v":true},{"$f":"M136+N136+O136+P136","v":4},{"$f":"IF(Q136=0,TRUE,FALSE)","v":false}]
[null,null,null,null,null,{"$f":"ROUND(D137*E137,2)","v":0},null,null,0,{"$f":"F137+I137","v":0},null,null,{"$f":"ISBLANK(B137)","v":true},true,true,true,{"$f":"M137+N137+O137+P137","v":4},{"$f":"IF(Q137=0,TRUE,FALSE)","v":false}]
[null,null,null,null,null,0,null,null,0,0,null,null,true,true,true,true,4,false]
[null,null,null,null,null,0,null,null,0,0,null,null,true,true,true,true,4,false]
[null,null,null,null,null,0,null,null,0,0,null,null,true,true,true,true,4,false]
[null,null,null,null,null,0,null,null,0,0,null,null,true,true,true,true,4,false]
[null,null,null,null,null,0,null,null,0,0,null,null,true,true,true,true,4,false]
[null,null,null,null,null,0,null,null,0,0,null,null,true,true,true,true,4,false]
[null,null,null,null,null,0,null,null,0,0,null,null,true,true,true,true,4,false]
[null,null,null,null,null,0,null,null,0,0,null,null,true,true,true,true,4,true]
[null,null,null,null,null,{"$f":"ROUND(D146*E146,2)","v":0},null,null,{"$f":"ROUND(G146*H146,2)","v":0},{"$f":"F146+I146","v":0},null,null,{"$f":"ISBLANK(B146)","v":true},{"$f":"ISBLANK(C146)","v":true},{"$f":"ISBLANK(D146)","v":true},{"$f":"ISBLANK(E146)","v":true},{"$f":"M146+N146+O146+P146","v":4},{"$f":"IF(Q146=0,TRUE,FALSE)","v":false}]
[null,null,null,null,null,{"$f":"ROUND(D147*E147,2)","v":0},null,null,0,{"$f":"F147+I147","v":0},null,null,{"$f":"ISBLANK(B147)","v":true},true,true,true,{"$f":"M147+N147+O147+P147","v":4},{"$f":"IF(Q147=0,TRUE,FALSE)","v":false}]
[null,null,null,null,null,0,null,null,0,0,null,null,true,true,true,true,4,false]
[null,null,null,null,null,0,null,null,0,0,null,null,true,true,true,true,4,false]
[null,null,null,null,null,0,null,null,0,0,null,null,true,true,true,true,4,false]
[null,null,null,null,null,0,null,null,0,0,null,null,true,true,true,true,4,false]
[null,null,null,null,null,0,null,null,0,0,null,null,true,true,true,true,4,false]
[null,null,null,null,null,0,null,null,0,0,null,null,true,true,true,true,4,false]
[null,null,null,null,null,0,null,null,0,0,null,null,true,true,true,true,4,false]
[null,null,null,null,null,0,null,null,0,0,null,null,true,true,true,true,4,true]
[null,"4.4 Consumables",null,null,null,{"$f":"SUM(F157:F176)","v":0},null,null,{"$f":"SUM(I157:I176)","v":0},{"$f":"SUM(J157:J176)","v":0},null,null,null,null,null,null,null,true]
[null,null,null,null,null,{"$f":"ROUND(D157*E157,2)","v":0},null,null,{"$f":"ROUND(G157*H157,2)","v":0},{"$f":"F157+I157","v":0},null,null,{"$f":"ISBLANK(B157)","v":true},{"$f":"ISBLANK(C157)","v":true},{"$f":"ISBLANK(D157)","v":true},{"$f":"ISBLANK(E157)","v":true},{"$f":"M157+N157+O157+P157","v":4},{"$f":"IF(Q157=0,TRUE,FALSE)","v":false}]
[null,null,null,null,null,{"$f":"ROUND(D158*E158,2)","v":0},null,null,0,{"$f":"F158+I158","v":0},null,null,{"$f":"ISBLANK(B158)","v":true},true,true,true,{"$f":"M158+N158+O158+P158","v":4},{"$f":"IF(Q158=0,TRUE,FALSE)","v":false}]
[null,null,null,null,null,0,null,null,0,0,null,null,true,true,true,true,4,false]
[null,null,null,null,null,0,null,null,0,0,null,null,true,true,true,true,4,false]
[null,null,null,null,null,0,null,null,0,0,null,null,true,true,true,true,4,false]
[null,null,null,null,null,0,null,null,0,0,null,null,true,true,true,true,4,false]
[null,null,null,null,null,0,null,null,0,0,null,null,true,true,true,true,4,false]
[null,null,null,null,null,0,null,null,0,0,null,null,true,true,true,true,4,false]
[null,null,null,null,null,0,null,null,0,0,null,null,true,true,true,true,4,false]
[null,null,null,null,null,0,null,null,0,0,null,null,true,true,true,true,4,true]
[null,null,null,null,null,{"$f":"ROUND(D167*E167,2)","v":0},null,null,{"$f":"ROUND(G167*H167,2)","v":0},{"$f":"F167+I167","v":0},null,null,{"$f":"ISBLANK(B167)","v":true},{"$f":"ISBLANK(C167)","v":true},{"$f":"ISBLANK(D167)","v":true},{"$f":"ISBLANK(E167)","v":true},{"$f":"M167+N167+O167+P167","v":4},{"$f":"IF(Q167=0,TRUE,FALSE)","v":false}]
[null,null,null,null,null,{"$f":"ROUND(D168*E168,2)","v":0},null,null,0,{"$f":"F168+I168","v":0},null,null,{"$f":"ISBLANK(B168)","v":true},true,true,true,{"$f":"M168+N168+O168+P168","v":4},{"$f":"IF(Q168=0,TRUE,FALSE)","v":false}]
[null,null,null,null,null,0,null,null,0,0,null,null,true,true,true,true,4,false]
[null,null,null,null,null,0,null,null,0,0,null,null,true,true,true,true,4,false]
[null,null,null,null,null,0,null,null,0,0,null,null,true,true,true,true,4,false]
[null,null,null,null,null,0,null,null,0,0,null,null,true,true,true,true,4,false]
[null,null,null,null,null,0,null,null,0,0,null,null,true,true,true,true,4,false]
[null,null,null,null,null,0,null,null,0,0,null,null,true,true,true,true,4,false]
[null,null,null,null,null,0,null,null,0,0,null,null,true,true,true,true,4,false]
[null,null,null,null,null,0,null,null,0,0,null,null,true,true,true,true,4,true]
[null,"4.5 Rent of vehicle for event",null,null,null,{"$f":"SUM(F178:F197)","v":0},null,null,{"$f":"SUM(I178:I197)","v":0},{"$f":"SUM(J178:J197)","v":0},null,null,null,null,null,null,null,true]
[null,null,null,null,null,{"$f":"ROUND(D178*E178,2)","v":0},null,null,{"$f":"ROUND(G178*H178,2)","v":0},{"$f":"F178+I178","v":0},null,null,{"$f":"ISBLANK(B178)","v":true},{"$f":"ISBLANK(C178)","v":true},{"$f":"ISBLANK(D178)","v":true},{"$f":"ISBLANK(E178)","v":true},{"$f":"M178+N178+O178+P178","v":4},{"$f":"IF(Q178=0,TRUE,FALSE)","v":false}]
[null,null,null,null,null,{"$f":"ROUND(D179*E179,2)","v":0},null,null,0,{"$f":"F179+I179","v":0},null,null,{"$f":"ISBLANK(B179)","v":true},true,true,true,{"$f":"M179+N179+O179+P179","v":4},{"$f":"IF(Q179=0,TRUE,FALSE)","v":false}]
[null,null,null,null,null,0,null,null,0,0,null,null,true,true,true,true,4,false]
[null,null,null,null,null,0,null,null,0,0,null,null,true,true,true,true,4,false]
[null,null,null,null,null,0,null,null,0,0,null,null,true,true,true,true,4,false]
[null,null,null,null,null,0,null,null,0,0,null,null,true,true,true,true,4,false]
[null,null,null,null,null,0,null,null,0,0,null,null,true,true,true,true,4,false]
[null,null,null,null,null,0,null,null,0,0,null,null,true,true,true,true,4,false]
[null,null,null,null,null,0,null,null,0,0,null,null,true,true,true,true,4,false]
[null,null,null,null,null,0,null,null,0,0,null,null,true,true,true,true,4,true]
[null,null,null,null,null,{"$f":"ROUND(D188*E188,2)","v":0},null,null,{"$f":"ROUND(G188*H188,2)","v":0},{"$f":"F188+I188","v":0},null,null,{"$f":"ISBLANK(B188)","v":true},{"$f":"ISBLANK(C188)","v":true},{"$f":"ISBLANK(D188)","v":true},{"$f":"ISBLANK(E188)","v":true},{"$f":"M188+N188+O188+P188","v":4},{"$f":"IF(Q188=0,TRUE,FALSE)","v":false}]
[null,null,null,null,null,{"$f":"ROUND(D189*E189,2)","v":0},null,null,0,{"$f":"F189+I189","v":0},null,null,{"$f":"ISBLANK(B189)","v":true},true,true,true,{"$f":"M189+N189+O189+P189","v":4},{"$f":"IF(Q189=0,TRUE,FALSE)","v":false}]
[null,null,null,null,null,0,null,null,0,0,null,null,true,true,true,true,4,false]
[null,null,null,null,null,0,null,null,0,0,null,null,true,true,true,true,4,false]
[null,null,null,null,null,0,null,null,0,0,null,null,true,true,true,true,4,false]
[null,null,null,null,null,0,null,null,0,0,null,null,true,true,true,true,4,false]
[null,null,null,null,null,0,null,null,0,0,null,null,true,true,true,true,4,false]
[null,null,null,null,null,0,null,null,0,0,null,null,true,true,true,true,4,false]
[null,null,null,null,null,0,null,null,0,0,null,null,true,true,true,true,4,false]
[null,null,null,null,null,0,null,null,0,0,null,null,true,true,true,true,4,true]
[null,"4.6 Accommodations for participants in the events ",null,null,null,{"$f":"SUM(F199:F218)","v":0},null,null,{"$f":"SUM(I199:I218)","v":0},{"$f":"SUM(J199:J218)","v":0},null,null,null,null,null,null,null,true]
[null,null,null,null,null,{"$f":"ROUND(D199*E199,2)","v":0},null,null,{"$f":"ROUND(G199*H199,2)","v":0},{"$f":"F199+I199","v":0},null,null,{"$f":"ISBLANK(B199)","v":true},{"$f":"ISBLANK(C199)","v":true},{"$f":"ISBLANK(D199)","v":true},{"$f":"ISBLANK(E199)","v":true},{"$f":"M199+N199+O199+P199","v":4},{"$f":"IF(Q199=0,TRUE,FALSE)","v":false}]
[null,null,null,null,null,{"$f":"ROUND(D200*E200,2)","v":0},null,null,0,{"$f":"F200+I200","v":0},null,null,{"$f":"ISBLANK(B200)","v":true},true,true,true,{"$f":"M200+N200+O200+P200","v":4},{"$f":"IF(Q200=0,TRUE,FALSE)","v":false}]
[null,null,null,null,null,0,null,null,0,0,null,null,true,true,true,true,4,false]
[null,null,null,null,null,0,null,null,0,0,null,null,true,true,true,true,4,false]
[null,null,null,null,null,0,null,null,0,0,null,null,true,true,true,true,4,false]
[null,null,null,null,null,0,null,null,0,0,null,null,true,true,true,true,4,false]
[null,null,null,null,null,0,null,null,0,0,null,null,true,true,true,true,4,false]
[null,null,null,null,null,0,null,null,0,0,null,null,true,true,true,true,4,false]
[null,null,null,null,null,0,null,null,0,0,null,null,true,true,true,true,4,false]
[null,null,null,null,null,0,null,null,0,0,null,null,true,true,true,true,4,true]
[null,null,null,null,null,{"$f":"ROUND(D209*E209,2)","v":0},null,null,{"$f":"ROUND(G209*H209,2)","v":0},{"$f":"F209+I209","v":0},null,null,{"$f":"ISBLANK(B209)","v":true},{"$f":"ISBLANK(C209)","v":true},{"$f":"ISBLANK(D209)","v":true},{"$f":"ISBLANK(E209)","v":true},{"$f":"M209+N209+O209+P209","v":4},{"$f":"IF(Q209=0,TRUE,FALSE)","v":false}]
[null,null,null,null,null,{"$f":"ROUND(D210*E210,2)","v":0},null,null,0,{"$f":"F210+I210","v":0},null,null,{"$f":"ISBLANK(B210)","v":true},true,true,true,{"$f":"M210+N210+O210+P210","v":4},{"$f":"IF(Q210=0,TRUE,FALSE)","v":false}]
[null,null,null,null,null,0,null,null,0,0,null,null,true,true,true,true,4,false]
[null,null,null,null,null,0,null,null,0,0,null,null,true,true,true,true,4,false]
[null,null,null,null,null,0,null,null,0,0,null,null,true,true,true,true,4,false]
[null,null,null,null,null,0,null,null,0,0,null,null,true,true,true,true,4,false]
[null,null,null,null,null,0,null,null,0,0,null,null,true,true,true,true,4,false]
[null,null,null,null,null,0,null,null,0,0,null,null,true,true,true,true,4,false]
[null,null,null,null,null,0,null,null,0,0,null,null,true,true,true,true,4,false]
[null,null,null,null,null,0,null,null,0,0,null,null,true,true,true,true,4,true]
[null,"4.7 Elaboration, design,translation etc.",null,null,null,{"$f":"SUM(F220:F239)","v":0},null,null,{"$f":"SUM(I220:I239)","v":0},{"$f":"SUM(J220:J239)","v":0},null,null,null,null,null,null,null,true]
[null,null,null,null,null,{"$f":"ROUND(D220*E220,2)","v":0},null,null,{"$f":"ROUND(G220*H220,2)","v":0},{"$f":"F220+I220","v":0},null,null,{"$f":"ISBLANK(B220)","v":true},{"$f":"ISBLANK(C220)","v":true},{"$f":"ISBLANK(D220)","v":true},{"$f":"ISBLANK(E220)","v":true},{"$f":"M220+N220+O220+P220","v":4},{"$f":"IF(Q220=0,TRUE,FALSE)","v":false}]
[null,null,null,null,null,{"$f":"ROUND(D221*E221,2)","v":0},null,null,0,{"$f":"F221+I221","v":0},null,null,{"$f":"ISBLANK(B221)","v":true},true,true,true,{"$f":"M221+N221+O221+P221","v":4},{"$f":"IF(Q221=0,TRUE,FALSE)","v":false}]
[null,null,null,null,null,0,null,null,0,0,null,null,true,true,true,true,4,false]
[null,null,null,null,null,0,null,null,0,0,null,null,true,true,true,true,4,false]
[null,null,null,null,null,0,null,null,0,0,null,null,true,true,true,true,4,false]
[null,null,null,null,null,0,null,null,0,0,null,null,true,true,true,true,4,false]
[null,null,null,null,null,0,null,null,0,0,null,null,true,true,true,true,4,false]
[null,null,null,null,null,0,null,null,0,0,null,null,true,true,true,true,4,false]
[null,null,null,null,null,0,null,null,0,0,null,null,true,true,true,true,4,false]
[null,null,null,null,null,0,null,null,0,0,null,null,true,true,true,true,4,true]
[null,null,null,null,null,{"$f":"ROUND(D230*E230,2)","v":0},null,null,{"$f":"ROUND(G230*H230,2)","v":0},{"$f":"F230+I230","v":0},null,null,{"$f":"ISBLANK(B230)","v":true},{"$f":"ISBLANK(C230)","v":true},{"$f":"ISBLANK(D230)","v":true},{"$f":"ISBLANK(E230)","v":true},{"$f":"M230+N230+O230+P230","v":4},{"$f":"IF(Q230=0,TRUE,FALSE)","v":false}]
[null,null,null,null,null,{"$f":"ROUND(D231*E231,2)","v":0},null,null,0,{"$f":"F231+I231","v":0},null,null,{"$f":"ISBLANK(B231)","v":true},true,true,true,{"$f":"M231+N231+O231+P231","v":4},{"$f":"IF(Q231=0,TRUE,FALSE)","v":false}]
[null,null,null,null,null,0,null,null,0,0,null,null,true,true,true,true,4,false]
[null,null,null,null,null,0,null,null,0,0,null,null,true,true,true,true,4,false]
[null,null,null,null,null,0,null,null,0,0,null,null,true,true,true,true,4,false]
[null,null,null,null,null,0,null,null,0,0,null,null,true,true,true,true,4,false]
[null,null,null,null,null,0,null,null,0,0,null,null,true,true,true,true,4,false]
[null,null,null,null,null,0,null,null,0,0,null,null,true,true,true,true,4,false]
[null,null,null,null,null,0,null,null,0,0,null,null,true,true,true,true,4,false]
[null,null,null,null,null,0,null,null,0,0,null,null,true,true,true,true,4,true]
[null,"4.8 Publications in mass-media",null,null,null,{"$f":"SUM(F241:F260)","v":0},null,null,{"$f":"SUM(I241:I260)","v":0},{"$f":"SUM(J241:J260)","v":0},null,null,null,null,null,null,null,true]
[null,null,null,null,null,{"$f":"ROUND(D241*E241,2)","v":0},null,null,{"$f":"ROUND(G241*H241,2)","v":0},{"$f":"F241+I241","v":0},null,null,{"$f":"ISBLANK(B241)","v":true},{"$f":"ISBLANK(C241)","v":true},{"$f":"ISBLANK(D241)","v":true},{"$f":"ISBLANK(E241)","v":true},{"$f":"M241+N241+O241+P241","v":4},{"$f":"IF(Q241=0,TRUE,FALSE)","v":false}]
[null,null,null,null,null,{"$f":"ROUND(D242*E242,2)","v":0},null,null,0,{"$f":"F242+I242","v":0},null,null,{"$f":"ISBLANK(B242)","v":true},true,true,true,{"$f":"M242+N242+O242+P242","v":4},{"$f":"IF(Q242=0,TRUE,FALSE)","v":false}]
[null,null,null,null,null,0,null,null,0,0,null,null,true,true,true,true,4,false]
[null,null,null,null,null,0,null,null,0,0,null,null,true,true,true,true,4,false]
[null,null,null,null,null,0,null,null,0,0,null,null,true,true,true,true,4,false]
[null,null,null,null,null,0,null,null,0,0,null,null,true,true,true,true,4,false]
[null,null,null,null,null,0,null,null,0,0,null,null,true,true,true,true,4,false]
[null,null,null,null,null,0,null,null,0,0,null,null,true,true,true,true,4,false]
[null,null,null,null,null,0,null,null,0,0,null,null,true,true,true,true,4,false]
[null,null,null,null,null,0,null,null,0,0,null,null,true,true,true,true,4,true]
[null,null,null,null,null,{"$f":"ROUND(D251*E251,2)","v":0},null,null,{"$f":"ROUND(G251*H251,2)","v":0},{"$f":"F251+I251","v":0},null,null,{"$f":"ISBLANK(B251)","v":true},{"$f":"ISBLANK(C251)","v":true},{"$f":"ISBLANK(D251)","v":true},{"$f":"ISBLANK(E251)","v":true},{"$f":"M251+N251+O251+P251","v":4},{"$f":"IF(Q251=0,TRUE,FALSE)","v":false}]
[null,null,null,null,null,{"$f":"ROUND(D252*E252,2)","v":0},null,null,0,{"$f":"F252+I252","v":0},null,null,{"$f":"ISBLANK(B252)","v":true},true,true,true,{"$f":"M252+N252+O252+P252","v":4},{"$f":"IF(Q252=0,TRUE,FALSE)","v":false}]
[null,null,null,null,null,0,null,null,0,0,null,null,true,true,true,true,4,false]
[null,null,null,null,null,0,null,null,0,0,null,null,true,true,true,true,4,false]
[null,null,null,null,null,0,null,null,0,0,null,null,true,true,true,true,4,false]
[null,null,null,null,null,0,null,null,0,0,null,null,true,true,true,true,4,false]
[null,null,null,null,null,0,null,null,0,0,null,null,true,true,true,true,4,false]
[null,null,null,null,null,0,null,null,0,0,null,null,true,true,true,true,4,false]
[null,null,null,null,null,0,null,null,0,0,null,null,true,true,true,true,4,false]
[null,null,null,null,null,0,null,null,0,0,null,null,true,true,true,true,4,true]
[null,"4.9 Consultancy, studies,designs, website development etc.",null,null,null,{"$f":"SUM(F262:F281)","v":0},null,null,{"$f":"SUM(I262:I281)","v":0},{"$f":"SUM(J262:J281)","v":0},null,null,null,null,null,null,null,true]
[null,null,null,null,null,{"$f":"ROUND(D262*E262,2)","v":0},null,null,{"$f":"ROUND(G262*H262,2)","v":0},{"$f":"F262+I262","v":0},null,null,{"$f":"ISBLANK(B262)","v":true},{"$f":"ISBLANK(C262)","v":true},{"$f":"ISBLANK(D262)","v":true},{"$f":"ISBLANK(E262)","v":true},{"$f":"M262+N262+O262+P262","v":4},{"$f":"IF(Q262=0,TRUE,FALSE)","v":false}]
[null,null,null,null,null,{"$f":"ROUND(D263*E263,2)","v":0},null,null,0,{"$f":"F263+I263","v":0},null,null,{"$f":"ISBLANK(B263)","v":true},true,true,true,{"$f":"M263+N263+O263+P263","v":4},{"$f":"IF(Q263=0,TRUE,FALSE)","v":false}]
[null,null,null,null,null,0,null,null,0,0,null,null,true,true,true,true,4,false]
[null,null,null,null,null,0,null,null,0,0,null,null,true,true,true,true,4,false]
[null,null,null,null,null,0,null,null,0,0,null,null,true,true,true,true,4,false]
[null,null,null,null,null,0,null,null,0,0,null,null,true,true,true,true,4,false]
[null,null,null,null,null,0,null,null,0,0,null,null,true,true,true,true,4,false]
[null,null,null,null,null,0,null,null,0,0,null,null,true,true,true,true,4,false]
[null,null,null,null,null,0,null,null,0,0,null,null,true,true,true,true,4,false]
[null,null,null,null,null,0,null,null,0,0,null,null,true,true,true,true,4,true]
[null,null,null,null,null,{"$f":"ROUND(D272*E272,2)","v":0},null,null,{"$f":"ROUND(G272*H272,2)","v":0},{"$f":"F272+I272","v":0},null,null,{"$f":"ISBLANK(B272)","v":true},{"$f":"ISBLANK(C272)","v":true},{"$f":"ISBLANK(D272)","v":true},{"$f":"ISBLANK(E272)","v":true},{"$f":"M272+N272+O272+P272","v":4},{"$f":"IF(Q272=0,TRUE,FALSE)","v":false}]
[null,null,null,null,null,{"$f":"ROUND(D273*E273,2)","v":0},null,null,0,{"$f":"F273+I273","v":0},null,null,{"$f":"ISBLANK(B273)","v":true},true,true,true,{"$f":"M273+N273+O273+P273","v":4},{"$f":"IF(Q273=0,TRUE,FALSE)","v":false}]
[null,null,null,null,null,0,null,null,0,0,null,null,true,true,true,true,4,false]
[null,null,null,null,null,0,null,null,0,0,null,null,true,true,true,true,4,false]
[null,null,null,null,null,0,null,null,0,0,null,null,true,true,true,true,4,false]
[null,null,null,null,null,0,null,null,0,0,null,null,true,true,true,true,4,false]
[null,null,null,null,null,0,null,null,0,0,null,null,true,true,true,true,4,false]
[null,null,null,null,null,0,null,null,0,0,null,null,true,true,true,true,4,false]
[null,null,null,null,null,0,null,null,0,0,null,null,true,true,true,true,4,false]
[null,null,null,null,null,0,null,null,0,0,null,null,true,true,true,true,4,true]
[null,"4.10 Authorizations, certificates",null,null,null,{"$f":"SUM(F283:F302)","v":0},null,null,{"$f":"SUM(I283:I302)","v":0},{"$f":"SUM(J283:J302)","v":0},null,null,null,null,null,null,null,true]
[null,null,null,null,null,{"$f":"ROUND(D283*E283,2)","v":0},null,null,{"$f":"ROUND(G283*H283,2)","v":0},{"$f":"F283+I283","v":0},null,null,{"$f":"ISBLANK(B283)","v":true},{"$f":"ISBLANK(C283)","v":true},{"$f":"ISBLANK(D283)","v":true},{"$f":"ISBLANK(E283)","v":true},{"$f":"M283+N283+O283+P283","v":4},{"$f":"IF(Q283=0,TRUE,FALSE)","v":false}]
[null,null,null,null,null,{"$f":"ROUND(D284*E284,2)","v":0},null,null,0,{"$f":"F284+I284","v":0},null,null,{"$f":"ISBLANK(B284)","v":true},true,true,true,{"$f":"M284+N284+O284+P284","v":4},{"$f":"IF(Q284=0,TRUE,FALSE)","v":false}]
[null,null,null,null,null,0,null,null,0,0,null,null,true,true,true,true,4,false]
[null,null,null,null,null,0,null,null,0,0,null,null,true,true,true,true,4,false]
[null,null,null,null,null,0,null,null,0,0,null,null,true,true,true,true,4,false]
[null,null,null,null,null,0,null,null,0,0,null,null,true,true,true,true,4,false]
[null,null,null,null,null,0,null,null,0,0,null,null,true,true,true,true,4,false]
[null,null,null,null,null,0,null,null,0,0,null,null,true,true,true,true,4,false]
[null,null,null,null,null,0,null,null,0,0,null,null,true,true,true,true,4,false]
[null,null,null,null,null,0,null,null,0,0,null,null,true,true,true,true,4,true]
[null,null,null,null,null,{"$f":"ROUND(D293*E293,2)","v":0},null,null,{"$f":"ROUND(G293*H293,2)","v":0},{"$f":"F293+I293","v":0},null,null,{"$f":"ISBLANK(B293)","v":true},{"$f":"ISBLANK(C293)","v":true},{"$f":"ISBLANK(D293)","v":true},{"$f":"ISBLANK(E293)","v":true},{"$f":"M293+N293+O293+P293","v":4},{"$f":"IF(Q293=0,TRUE,FALSE)","v":false}]
[null,null,null,null,null,{"$f":"ROUND(D294*E294,2)","v":0},null,null,0,{"$f":"F294+I294","v":0},null,null,{"$f":"ISBLANK(B294)","v":true},true,true,true,{"$f":"M294+N294+O294+P294","v":4},{"$f":"IF(Q294=0,TRUE,FALSE)","v":false}]
[null,null,null,null,null,0,null,null,0,0,null,null,true,true,true,true,4,false]
[null,null,null,null,null,0,null,null,0,0,null,null,true,true,true,true,4,false]
[null,null,null,null,null,0,null,null,0,0,null,null,true,true,true,true,4,false]
[null,null,null,null,null,0,null,null,0,0,null,null,true,true,true,true,4,false]
[null,null,null,null,null,0,null,null,0,0,null,null,true,true,true,true,4,false]
[null,null,null,null,null,0,null,null,0,0,null,null,true,true,true,true,4,false]
[null,null,null,null,null,0,null,null,0,0,null,null,true,true,true,true,4,false]
[null,null,null,null,null,0,null,null,0,0,null,null,true,true,true,true,4,true]
[null,"4.11 Interpreters, lecturers, trainers",null,null,null,{"$f":"SUM(F304:F323)","v":0},null,null,{"$f":"SUM(I304:I323)","v":0},{"$f":"SUM(J304:J323)","v":0},null,null,null,null,null,null,null,true]
[null,null,null,null,null,{"$f":"ROUND(D304*E304,2)","v":0},null,null,{"$f":"ROUND(G304*H304,2)","v":0},{"$f":"F304+I304","v":0},null,null,{"$f":"ISBLANK(B304)","v":true},{"$f":"ISBLANK(C304)","v":true},{"$f":"ISBLANK(D304)","v":true},{"$f":"ISBLANK(E304)","v":true},{"$f":"M304+N304+O304+P304","v":4},{"$f":"IF(Q304=0,TRUE,FALSE)","v":false}]
[null,null,null,null,null,{"$f":"ROUND(D305*E305,2)","v":0},null,null,0,{"$f":"F305+I305","v":0},null,null,{"$f":"ISBLANK(B305)","v":true},true,true,true,{"$f":"M305+N305+O305+P305","v":4},{"$f":"IF(Q305=0,TRUE,FALSE)","v":false}]
[null,null,null,null,null,0,null,null,0,0,null,null,true,true,true,true,4,false]
[null,null,null,null,null,0,null,null,0,0,null,null,true,true,true,true,4,false]
[null,null,null,null,null,0,null,null,0,0,null,null,true,true,true,true,4,false]
[null,null,null,null,null,0,null,null,0,0,null,null,true,true,true,true,4,false]
[null,null,null,null,null,0,null,null,0,0,null,null,true,true,true,true,4,false]
[null,null,null,null,null,0,null,null,0,0,null,null,true,true,true,true,4,false]
[null,null,null,null,null,0,null,null,0,0,null,null,true,true,true,true,4,false]
[null,null,null,null,null,0,null,null,0,0,null,null,true,true,true,true,4,true]
[null,null,null,null,null,{"$f":"ROUND(D314*E314,2)","v":0},null,null,{"$f":"ROUND(G314*H314,2)","v":0},{"$f":"F314+I314","v":0},null,null,{"$f":"ISBLANK(B314)","v":true},{"$f":"ISBLANK(C314)","v":true},{"$f":"ISBLANK(D314)","v":true},{"$f":"ISBLANK(E314)","v":true},{"$f":"M314+N314+O314+P314","v":4},{"$f":"IF(Q314=0,TRUE,FALSE)","v":false}]
[null,null,null,null,null,{"$f":"ROUND(D315*E315,2)","v":0},null,null,0,{"$f":"F315+I315","v":0},null,null,{"$f":"ISBLANK(B315)","v":true},true,true,true,{"$f":"M315+N315+O315+P315","v":4},{"$f":"IF(Q315=0,TRUE,FALSE)","v":false}]
[null,null,null,null,null,0,null,null,0,0,null,null,true,true,true,true,4,false]
[null,null,null,null,null,0,null,null,0,0,null,null,true,true,true,true,4,false]
[null,null,null,null,null,0,null,null,0,0,null,null,true,true,true,true,4,false]
[null,null,null,null,null,0,null,null,0,0,null,null,true,true,true,true,4,false]
[null,null,null,null,null,0,null,null,0,0,null,null,true,true,true,true,4,false]
[null,null,null,null,null,0,null,null,0,0,null,null,true,true,true,true,4,false]
[null,null,null,null,null,0,null,null,0,0,null,null,true,true,true,true,4,false]
[null,null,null,null,null,0,null,null,0,0,null,null,true,true,true,true,4,true]
[null,"4.12 Others",null,null,null,{"$f":"SUM(F325:F344)","v":0},null,null,{"$f":"SUM(I325:I344)","v":0},{"$f":"SUM(J325:J344)","v":0},null,null,null,null,null,null,null,true]
[null,null,null,null,null,{"$f":"ROUND(D325*E325,2)","v":0},null,null,{"$f":"ROUND(G325*H325,2)","v":0},{"$f":"F325+I325","v":0},null,null,{"$f":"ISBLANK(B325)","v":true},{"$f":"ISBLANK(C325)","v":true},{"$f":"ISBLANK(D325)","v":true},{"$f":"ISBLANK(E325)","v":true},{"$f":"M325+N325+O325+P325","v":4},{"$f":"IF(Q325=0,TRUE,FALSE)","v":false}]
[null,null,null,null,null,{"$f":"ROUND(D326*E326,2)","v":0},null,null,0,{"$f":"F326+I326","v":0},null,null,{"$f":"ISBLANK(B326)","v":true},true,true,true,{"$f":"M326+N326+O326+P326","v":4},{"$f":"IF(Q326=0,TRUE,FALSE)","v":false}]
[null,null,null,null,null,0,null,null,0,0,null,null,true,true,true,true,4,false]
[null,null,null,null,null,0,null,null,0,0,null,null,true,true,true,true,4,false]
[null,null,null,null,null,0,null,null,0,0,null,null,true,true,true,true,4,false]
[null,null,null,null,null,0,null,null,0,0,null,null,true,true,true,true,4,false]
[null,null,null,null,null,0,null,null,0,0,null,null,true,true,true,true,4,false]
[null,null,null,null,null,0,null,null,0,0,null,null,true,true,true,true,4,false]
[null,null,null,null,null,0,null,null,0,0,null,null,true,true,true,true,4,false]
[null,null,null,null,null,0,null,null,0,0,null,null,true,true,true,true,4,true]
[null,null,null,null,null,{"$f":"ROUND(D335*E335,2)","v":0},null,null,{"$f":"ROUND(G335*H335,2)","v":0},{"$f":"F335+I335","v":0},null,null,{"$f":"ISBLANK(B335)","v":true},{"$f":"ISBLANK(C335)","v":true},{"$f":"ISBLANK(D335)","v":true},{"$f":"ISBLANK(E335)","v":true},{"$f":"M335+N335+O335+P335","v":4},{"$f":"IF(Q335=0,TRUE,FALSE)","v":false}]
[null,null,null,null,null,{"$f":"ROUND(D336*E336,2)","v":0},null,null,0,{"$f":"F336+I336","v":0},null,null,{"$f":"ISBLANK(B336)","v":true},true,true,true,{"$f":"M336+N336+O336+P336","v":4},{"$f":"IF(Q336=0,TRUE,FALSE)","v":false}]
[null,null,null,null,null,0,null,null,0,0,null,null,true,true,true,true,4,false]
[null,null,null,null,null,0,null,null,0,0,null,null,true,true,true,true,4,false]
[null,null,null,null,null,0,null,null,0,0,null,null,true,true,true,true,4,false]
[null,null,null,null,null,0,null,null,0,0,null,null,true,true,true,true,4,false]
[null,null,null,null,null,0,null,null,0,0,null,null,true,true,true,true,4,false]
[null,null,null,null,null,0,null,null,0,0,null,null,true,true,true,true,4,false]
[null,null,null,null,null,0,null,null,0,0,null,null,true,true,true,true,4,false]
[null,null,null,null,null,0,null,null,0,0,null,null,true,true,true,true,4,true]
[null,"TOTAL",null,null,null,{"$f":"F324+F303+F282+F261+F240+F219+F198+F177+F156+F135+F114+F93","v":0},null,null,{"$f":"I324+I303+I282+I261+I240+I219+I198+I177+I156+I135+I114+I93","v":0},{"$f":"J324+J303+J282+J261+J240+J219+J198+J177+J156+J135+J114+J93","v":0},null,null,null,null,null,null,null,true]
[null,null,null,null,null,null,null,null,null,null,null,null,{"$f":"O350+P350+N346","v":2},{"$f":"M8=\"Soft\"","v":false},null,null,null,true]
[null,"BL5 - EQUIPMENT AND WORKS","Unit","Expenditures in the eligible area",null,null,"N/A",null,null,"TOTAL",null,null,null,null,null,null,null,true]
[null,null,null,"Units","Unit rate","TOTAL","Units","Unit rate","TOTAL",null,null,null,null,null,null,null,null,true]
[null,"5.1 Small scale construction",null,null,null,{"$f":"SUM(F350:F369)","v":0},null,null,{"$f":"SUM(I350:I369)","v":0},{"$f":"SUM(J350:J369)","v":0},null,null,null,null,null,null,null,true]
[null,null,null,null,null,{"$f":"ROUND(D350*E350,2)","v":0},null,null,{"$f":"ROUND(G350*H350,2)","v":0},{"$f":"F350+I350","v":0},null,null,{"$f":"ISBLANK(B350)","v":true},{"$f":"ISBLANK(C350)","v":true},{"$f":"ISBLANK(D350)","v":true},{"$f":"ISBLANK(E350)","v":true},{"$f":"M350+N350+O350+P350","v":4},{"$f":"IF(Q350=0,TRUE,FALSE)","v":false}]
[null,null,null,null,null,{"$f":"ROUND(D351*E351,2)","v":0},null,null,0,{"$f":"F351+I351","v":0},null,null,{"$f":"ISBLANK(B351)","v":true},true,true,true,{"$f":"M351+N351+O351+P351","v":4},{"$f":"IF(Q351=0,TRUE,FALSE)","v":false}]
[null,null,null,null,null,0,null,null,0,0,null,null,true,true,true,true,4,false]
[null,null,null,null,null,0,null,null,0,0,null,null,true,true,true,true,4,false]
[null,null,null,null,null,0,null,null,0,0,null,null,true,true,true,true,4,false]
[null,null,null,null,null,0,null,null,0,0,null,null,true,true,true,true,4,false]
[null,null,null,null,null,0,null,null,0,0,null,null,true,true,true,true,4,false]
[null,null,null,null,null,0,null,null,0,0,null,null,true,true,true,true,4,false]
[null,null,null,null,null,0,null,null,0,0,null,null,true,true,true,true,4,false]
[null,null,null,null,null,0,null,null,{"$f":"ROUND(G359*H359,2)","v":0},{"$f":"F359+I359","v":0},null,null,true,true,true,true,4,true]
[null,null,null,null,null,0,null,null,{"$f":"ROUND(G360*H360,2)","v":0},{"$f":"F360+I360","v":0}]
[null,null,null,null,null,0,null,null,0,0]
[null,null,null,null,null,0,null,null,0,0]
[null,null,null,null,null,0,null,null,0,0]
[null,null,null,null,null,0,null,null,0,0]
[null,null,null,null,null,0,null,null,0,0]
[null,null,null,null,null,0,null,null,0,0]
[null,null,null,null,null,0,null,null,0,0]
[null,null,null,null,null,0,null,null,0,0]
[null,null,null,null,null,0,null,null,0,0]
[null,"5.2 Supply",null,null,null,{"$f":"SUM(F371:F390)","v":0},null,null,{"$f":"SUM(I371:I390)","v":0},{"$f":"SUM(J371:J390)","v":0},null,null,null,null,null,null,null,true]
[null,null,null,null,null,{"$f":"ROUND(D371*E371,2)","v":0},null,null,{"$f":"ROUND(G371*H371,2)","v":0},{"$f":"F371+I371","v":0},null,null,{"$f":"ISBLANK(B371)","v":true},{"$f":"ISBLANK(C371)","v":true},{"$f":"ISBLANK(D371)","v":true},{"$f":"ISBLANK(E371)","v":true},{"$f":"M371+N371+O371+P371","v":4},{"$f":"IF(Q371=0,TRUE,FALSE)","v":false}]
[null,null,null,null,null,{"$f":"ROUND(D372*E372,2)","v":0},null,null,0,{"$f":"F372+I372","v":0},null,null,{"$f":"ISBLANK(B372)","v":true},true,true,true,{"$f":"M372+N372+O372+P372","v":4},{"$f":"IF(Q372=0,TRUE,FALSE)","v":false}]
[null,null,null,null,null,0,null,null,0,0,null,null,true,true,true,true,4,false]
[null,null,null,null,null,0,null,null,0,0,null,null,true,true,true,true,4,false]
[null,null,null,null,null,0,null,null,0,0,null,null,true,true,true,true,4,false]
[null,null,null,null,null,0,null,null,0,0,null,null,true,true,true,true,4,false]
[null,null,null,null,null,0,null,null,0,0,null,null,true,true,true,true,4,false]
[null,null,null,null,null,0,null,null,0,0,null,null,true,true,true,true,4,false]
[null,null,null,null,null,0,null,null,0,0,null,null,true,true,true,true,4,false]
[null,null,null,null,null,0,null,null,0,0,null,null,true,true,true,true,4,true]
[null,null,null,null,null,{"$f":"ROUND(D381*E381,2)","v":0},null,null,{"$f":"ROUND(G381*H381,2)","v":0},{"$f":"F381+I381","v":0},null,null,{"$f":"ISBLANK(B381)","v":true},{"$f":"ISBLANK(C381)","v":true},{"$f":"ISBLANK(D381)","v":true},{"$f":"ISBLANK(E381)","v":true},{"$f":"M381+N381+O381+P381","v":4},{"$f":"IF(Q381=0,TRUE,FALSE)","v":false}]
[null,null,null,null,null,{"$f":"ROUND(D382*E382,2)","v":0},null,null,0,{"$f":"F382+I382","v":0},null,null,{"$f":"ISBLANK(B382)","v":true},true,true,true,{"$f":"M382+N382+O382+P382","v":4},{"$f":"IF(Q382=0,TRUE,FALSE)","v":false}]
[null,null,null,null,null,0,null,null,0,0,null,null,true,true,true,true,4,false]
[null,null,null,null,null,0,null,null,0,0,null,null,true,true,true,true,4,false]
[null,null,null,null,null,0,null,null,0,0,null,null,true,true,true,true,4,false]
[null,null,null,null,null,0,null,null,0,0,null,null,true,true,true,true,4,false]
[null,null,null,null,null,0,null,null,0,0,null,null,true,true,true,true,4,false]
[null,null,null,null,null,0,null,null,0,0,null,null,true,true,true,true,4,false]
[null,null,null,null,null,0,null,null,0,0,null,null,true,true,true,true,4,false]
[null,null,null,null,null,0,null,null,0,0,null,null,true,true,true,true,4,true]
[null,"TOTAL",null,null,null,{"$f":"F370+F349","v":0},null,null,{"$f":"I370+I349","v":0},{"$f":"J370+J349","v":0},null,null,null,null,null,null,null,true]
[null,"Preparation of Application package can not exceed 3000 euro!",null,null,null,null,null,null,null,null,null,null,null,null,null,null,null,true]
[null,"BL6 - PROJECT PREPARATION","Unit","Expenditures in the eligible area",null,null,"N/A",null,null,"TOTAL",null,null,null,null,null,null,null,true]
[null,null,null,"Units","Unit rate","TOTAL","Units","Unit rate","TOTAL",null,null,null,null,null,null,null,null,true]
[null,"6.1.Preparation of Application package ",null,null,null,{"$f":"SUM(F396:F405)","v":0},null,null,{"$f":"SUM(I396:I405)","v":0},{"$f":"SUM(J396:J405)","v":0}]
[null,null,null,null,null,{"$f":"ROUND(D396*E396,2)","v":0},null,null,{"$f":"ROUND(G396*H396,2)","v":0},{"$f":"F396+I396","v":0},null,null,{"$f":"ISBLANK(B396)","v":true},{"$f":"ISBLANK(C396)","v":true},{"$f":"ISBLANK(D396)","v":true},{"$f":"ISBLANK(E396)","v":true},{"$f":"M396+N396+O396+P396","v":4},{"$f":"IF(Q396=0,TRUE,FALSE)","v":false}]
[null,null,null,null,null,{"$f":"ROUND(D397*E397,2)","v":0},null,null,0,{"$f":"F397+I397","v":0},null,null,{"$f":"ISBLANK(B397)","v":true},true,true,true,{"$f":"M397+N397+O397+P397","v":4},{"$f":"IF(Q397=0,TRUE,FALSE)","v":false}]
[null,null,null,null,null,0,null,null,0,0,null,null,true,true,true,true,4,false]
[null,null,null,null,null,0,null,null,0,0,null,null,true,true,true,true,4,false]
[null,null,null,null,null,0,null,null,0,0,null,null,true,true,true,true,4,false]
[null,null,null,null,null,0,null,null,0,0,null,null,true,true,true,true,4,false]
[null,null,null,null,null,0,null,null,0,0,null,null,true,true,true,true,4,false]
[null,null,null,null,null,0,null,null,0,0,null,null,true,true,true,true,4,false]
[null,null,null,null,null,0,null,null,0,0,null,null,true,true,true,true,4,false]
[null,null,null,null,null,{"$f":"ROUND(D405*E405,2)","v":0},null,null,{"$f":"ROUND(G405*H405,2)","v":0},{"$f":"F405+I405","v":0},null,null,{"$f":"ISBLANK(B405)","v":true},{"$f":"ISBLANK(C405)","v":true},{"$f":"ISBLANK(D405)","v":true},{"$f":"ISBLANK(E405)","v":true},{"$f":"M405+N405+O405+P405","v":4},true]
[null,"6.2 Preparation of technical documentation ",null,null,null,{"$f":"SUM(F407:F416)","v":0},null,null,{"$f":"SUM(I407:I416)","v":0},{"$f":"SUM(J407:J416)","v":0},null,null,{"$f":"ISBLANK(B406)","v":false},{"$f":"ISBLANK(C406)","v":true},{"$f":"ISBLANK(D406)","v":true},{"$f":"ISBLANK(E406)","v":true},{"$f":"M406+N406+O406+P406","v":3},{"$f":"IF(Q406=0,TRUE,FALSE)","v":false}]
[null,null,null,null,null,{"$f":"ROUND(D407*E407,2)","v":0},null,null,{"$f":"ROUND(G407*H407,2)","v":0},{"$f":"F407+I407","v":0},null,null,{"$f":"ISBLANK(B407)","v":true}]
[null,null,null,null,null,0,null,null,0,0,null,null,{"$f":"ISBLANK(B408)","v":true},true,true,true,{"$f":"M408+N408+O408+P408","v":4},{"$f":"IF(Q408=0,TRUE,FALSE)","v":false}]
[null,null,null,null,null,0,null,null,0,0,null,null,true,true,true,true,4,false]
[null,null,null,null,null,0,null,null,0,0,null,null,true,true,true,true,4,false]
[null,null,null,null,null,0,null,null,0,0,null,null,true,true,true,true,4,false]
[null,null,null,null,null,0,null,null,0,0,null,null,true,true,true,true,4,false]
[null,null,null,null,null,0,null,null,0,0,null,null,true,true,true,true,4,false]
[null,null,null,null,null,0,null,null,0,0,null,null,true,true,true,true,4,false]
[null,null,null,null,null,0,null,null,0,0,null,null,true,true,true,true,4,false]
[null,null,null,null,null,0,null,null,0,0,null,null,true,true,true,true,4,false]
[null,"TOTAL",null,null,null,{"$f":"F395+F406","v":0},null,null,{"$f":"I395+I406","v":0},{"$f":"J395+J406","v":0},null,null,null,null,null,null,null,true]
[null,null,null,null,null,null,null,null,null,null,null,null,null,null,null,null,null,true]
[null,"Own Contribution",null,null,null,"Unit","Units","Unit rate","TOTAL",null,null,null,"Units out","Units rate out","Total out","Total in",null,true]
[null,null,null,null,null,null,null,null,{"$f":"ROUND(G420*H420,2)","v":0},null,null,null,null,null,null,null,null,true]
[null,null,null,"Expenditures outside the eligible area exceed 20 %! Reconsider budget distribution!",null,null,null,null,null,null,null,null,null,null,null,null,null,true]
[null,"Total direct project costs VAT incl. (BL3+BL4+BL5)",null,null,null,{"$f":"F391+F345+F89","v":0},{"$f":"I391+I89+I345","v":0},null,null,{"$f":"J391+J345+J89","v":0},null,null,null,null,null,null,null,true]
[null,"TOTAL PROJECT COSTS",null,null,null,{"$f":"F422+F417+I6+I11+I420","v":0},{"$f":"G422+I417","v":0},null,null,{"$f":"F423+G423","v":0},null,null,null,null,null,null,null,true]
[]
[null,null,null,null,null,null,null,null,null,null,null,null,null,{"$f":"G423/F423>0.2","v":{"$error":"#DIV/0!"}}]

{"sheet":"T2-B(PP2)","index":11,"n_rows":423,"n_cols":18,"rows_kept":423,"cut":false,"hidden":false,"merged":[[421,1,421,4],[421,6,421,8],[422,1,422,4],[422,6,422,8],[416,1,416,4],[416,6,416,7],[418,1,418,4],[418,8,418,9],[419,1,419,4],[419,8,419,9],[392,9,393,9],[390,1,390,4],[390,6,390,7],[392,1,393,1],[392,2,393,2],[392,3,392,5],[392,6,392,8],[344,1,344,4],[344,6,344,7],[346,1,347,1],[346,2,347,2],[346,3,346,5],[346,6,346,8],[345,3,345,9],[346,9,347,9],[90,1,91,1],[90,2,91,2],[90,3,90,5],[90,6,90,8],[90,9,91,9],[9,8,9,9],[10,1,10,7],[10,8,10,9],[12,1,13,1],[12,2,13,2],[12,3,12,5],[12,6,12,8],[12,9,13,9],[9,1,9,5],[9,6,9,7],[2,1,3,5],[2,6,2,7],[2,8,3,9],[3,6,3,7],[4,1,4,5],[4,6,4,7],[4,8,4,9],[5,1,5,7],[5,8,5,9],[7,1,8,5],[7,6,7,7],[7,8,8,9],[8,6,8,7]]}
[null,"TABLE 2 - DETAILED BREAKDOWN OF BUDGET LINES - PP2",null,null,null,null,null,null,null,null,null,null,null,null,null,null,null,true]
[null,null,null,null,null,null,null,null,null,null,null,null,null,null,null,null,null,true]
[null,"BL1 - STAFF COSTS",null,null,null,null,"Flat rate",null,"TOTAL",null,null,null,null,null,null,null,null,true]
[null,null,null,null,null,null,"%",null,null,null,null,null,null,null,null,null,null,true]
[null,{"$f":"M5","v":"Investment project"},null,null,null,null,0,null,{"$f":"ROUND(G5*J422/100,2)","v":0},null,null,"visible/hidden depending on project identification",{"$f":"CONCATENATE('Project identification'!C15,\" project\")","v":"Investment project"},null,null,null,10,true]
[null,"TOTAL",null,null,null,null,null,null,{"$f":"I5","v":0},null,null,null,null,null,{"$f":"IF(M8=\"Soft\",15,10)","v":10},null,15,true]
[null,null,null,null,null,null,null,null,null,null,null,null,null,null,null,null,null,true]
[null,"BL2 - OFFICE AND ADMINISTRATIVE COSTS",null,null,null,null,"Flat rate",null,"TOTAL",null,null,null,{"$f":"'Project identification'!C15","v":"Investment"},null,null,null,null,true]
[null,null,null,null,null,null,"%",null,null,null,null,null,null,null,null,null,null,true]
[null,{"$f":"M5","v":"Investment project"},null,null,null,null,0,null,{"$f":"ROUND(G10*I5/100,2)","v":0},null,null,"visible/hidden depending on project identification",null,null,null,null,2,true]
[null,"TOTAL",null,null,null,null,null,null,{"$f":"I10","v":0},null,null,null,null,null,{"$f":"IF(M8=\"Soft\",20,15)","v":15},null,5,true]
[null,null,null,null,null,null,null,null,null,null,null,null,null,null,null,null,null,true]
[null,"BL3 - TRAVEL AND ACCOMMODATION","Unit","Expenditures in the eligible area",null,null,"Expenditures outside of the eligible area",null,null,"TOTAL",null,null,null,null,null,null,null,true]
[null,null,null,"Units","Unit rate","TOTAL","Units","Unit rate","TOTAL",null,null,null,null,null,null,null,null,true]
[null,"3.1 Travel costs",null,null,null,{"$f":"SUM(F16:F35)","v":0},null,null,{"$f":"SUM(I16:I35)","v":0},{"$f":"SUM(J16:J35)","v":0},null,"Add",null,null,null,null,null,true]
[null,null,null,null,null,{"$f":"ROUND(D16*E16,2)","v":0},null,null,{"$f":"ROUND(G16*H16,2)","v":0},{"$f":"F16+I16","v":0},null,null,{"$f":"ISBLANK(B16)","v":true},{"$f":"ISBLANK(C16)","v":true},true,true,{"$f":"M16+N16+O16+P16","v":4},{"$f":"IF(Q16=0,TRUE,FALSE)","v":false}]
[null,null,null,null,null,{"$f":"ROUND(D17*E17,2)","v":0},null,null,0,{"$f":"F17+I17","v":0},null,null,{"$f":"ISBLANK(B17)","v":true},true,true,true,{"$f":"M17+N17+O17+P17","v":4},{"$f":"IF(Q17=0,TRUE,FALSE)","v":false}]
[null,null,null,null,null,0,null,null,0,0,null,null,true,true,true,true,4,false]
[null,null,null,null,null,0,null,null,0,0,null,null,true,true,true,true,4,false]
[null,null,null,null,null,0,null,null,0,0,null,null,true,true,true,true,4,false]
[null,null,null,null,null,0,null,null,0,0,null,null,true,true,true,true,4,false]
[null,null,null,null,null,0,null,null,0,0,null,null,true,true,true,true,4,false]
[null,null,null,null,null,0,null,null,0,0,null,null,true,true,true,true,4,false]
[null,null,null,null,null,0,null,null,0,0,null,null,true,true,true,true,4,false]
[null,null,null,null,null,0,null,null,0,0,null,null,true,true,true,true,4,true]
[null,null,null,null,null,{"$f":"ROUND(D26*E26,2)","v":0},null,null,{"$f":"ROUND(G26*H26,2)","v":0},{"$f":"F26+I26","v":0},null,null,{"$f":"ISBLANK(B26)","v":true},{"$f":"ISBLANK(C26)","v":true},{"$f":"ISBLANK(D26)","v":true},{"$f":"ISBLANK(E26)","v":true},{"$f":"M26+N26+O26+P26","v":4},{"$f":"IF(Q26=0,TRUE,FALSE)","v":false}]
[null,null,null,null,null,{"$f":"ROUND(D27*E27,2)","v":0},null,null,0,{"$f":"F27+I27","v":0},null,null,{"$f":"ISBLANK(B27)","v":true},true,true,true,{"$f":"M27+N27+O27+P27","v":4},{"$f":"IF(Q27=0,TRUE,FALSE)","v":false}]
[null,null,null,null,null,0,null,null,0,0,null,null,true,true,true,true,4,false]
[null,null,null,null,null,0,null,null,0,0,null,null,true,true,true,true,4,false]
[null,null,null,null,null,0,null,null,0,0,null,null,true,true,true,true,4,false]
[null,null,null,null,null,0,null,null,0,0,null,null,true,true,true,true,4,false]
[null,null,null,null,null,0,null,null,0,0,null,null,true,true,true,true,4,false]
[null,null,null,null,null,0,null,null,0,0,null,null,true,true,true,true,4,false]
[null,null,null,null,null,0,null,null,0,0,null,null,true,true,true,true,4,false]
[null,null,null,null,null,0,null,null,0,0,null,null,true,true,true,true,4,true]
[null,"3.2 Daily allowances",null,null,null,{"$f":"SUM(F37:F56)","v":0},null,null,{"$f":"SUM(I37:I56)","v":0},{"$f":"SUM(J37:J56)","v":0},null,"add (10 items)",null,null,null,null,null,true]
[null,null,null,null,null,{"$f":"ROUND(D37*E37,2)","v":0},null,null,{"$f":"ROUND(G37*H37,2)","v":0},{"$f":"F37+I37","v":0},null,null,{"$f":"ISBLANK(B37)","v":true},{"$f":"ISBLANK(C37)","v":true},true,true,{"$f":"M37+N37+O37+P37","v":4},{"$f":"IF(Q37=0,TRUE,FALSE)","v":false}]
[null,null,null,null,null,{"$f":"ROUND(D38*E38,2)","v":0},null,null,0,{"$f":"F38+I38","v":0},null,null,{"$f":"ISBLANK(B38)","v":true},true,true,true,{"$f":"M38+N38+O38+P38","v":4},{"$f":"IF(Q38=0,TRUE,FALSE)","v":false}]
[null,null,null,null,null,0,null,null,0,0,null,null,true,true,true,true,4,false]
[null,null,null,null,null,0,null,null,0,0,null,null,true,true,true,true,4,false]
[null,null,null,null,null,0,null,null,0,0,null,null,true,true,true,true,4,false]
[null,null,null,null,null,0,null,null,0,0,null,null,true,true,true,true,4,false]
[null,null,null,null,null,0,null,null,0,0,null,null,true,true,true,true,4,false]
[null,null,null,null,null,0,null,null,0,0,null,null,true,true,true,true,4,false]
[null,null,null,null,null,0,null,null,0,0,null,null,true,true,true,true,4,false]
[null,null,null,null,null,0,null,null,0,0,null,null,true,true,true,true,4,true]
[null,null,null,null,null,{"$f":"ROUND(D47*E47,2)","v":0},null,null,{"$f":"ROUND(G47*H47,2)","v":0},{"$f":"F47+I47","v":0},null,null,{"$f":"ISBLANK(B47)","v":true},{"$f":"ISBLANK(C47)","v":true},{"$f":"ISBLANK(D47)","v":true},{"$f":"ISBLANK(E47)","v":true},{"$f":"M47+N47+O47+P47","v":4},{"$f":"IF(Q47=0,TRUE,FALSE)","v":false}]
[null,null,null,null,null,{"$f":"ROUND(D48*E48,2)","v":0},null,null,0,{"$f":"F48+I48","v":0},null,null,{"$f":"ISBLANK(B48)","v":true},true,true,true,{"$f":"M48+N48+O48+P48","v":4},{"$f":"IF(Q48=0,TRUE,FALSE)","v":false}]
[null,null,null,null,null,0,null,null,0,0,null,null,true,true,true,true,4,false]
[null,null,null,null,null,0,null,null,0,0,null,null,true,true,true,true,4,false]
[null,null,null,null,null,0,null,null,0,0,null,null,true,true,true,true,4,false]
[null,null,null,null,null,0,null,null,0,0,null,null,true,true,true,true,4,false]
[null,null,null,null,null,0,null,null,0,0,null,null,true,true,true,true,4,false]
[null,null,null,null,null,0,null,null,0,0,null,null,true,true,true,true,4,false]
[null,null,null,null,null,0,null,null,0,0,null,null,true,true,true,true,4,false]
[null,null,null,null,null,0,null,null,0,0,null,null,true,true,true,true,4,true]
[null,"3.3 Accommodation costs",null,null,null,{"$f":"SUM(F58:F77)","v":0},null,null,{"$f":"SUM(I58:I77)","v":0},{"$f":"SUM(J58:J77)","v":0},null,null,null,null,null,null,null,true]
[null,null,null,null,null,{"$f":"ROUND(D58*E58,2)","v":0},null,null,{"$f":"ROUND(G58*H58,2)","v":0},{"$f":"F58+I58","v":0},null,null,{"$f":"ISBLANK(B58)","v":true},{"$f":"ISBLANK(C58)","v":true},true,true,{"$f":"M58+N58+O58+P58","v":4},{"$f":"IF(Q58=0,TRUE,FALSE)","v":false}]
[null,null,null,null,null,{"$f":"ROUND(D59*E59,2)","v":0},null,null,0,{"$f":"F59+I59","v":0},null,null,{"$f":"ISBLANK(B59)","v":true},true,true,true,{"$f":"M59+N59+O59+P59","v":4},{"$f":"IF(Q59=0,TRUE,FALSE)","v":false}]
[null,null,null,null,null,0,null,null,0,0,null,null,true,true,true,true,4,false]
[null,null,null,null,null,0,null,null,0,0,null,null,true,true,true,true,4,false]
[null,null,null,null,null,0,null,null,0,0,null,null,true,true,true,true,4,false]
[null,null,null,null,null,0,null,null,0,0,null,null,true,true,true,true,4,false]
[null,null,null,null,null,0,null,null,0,0,null,null,true,true,true,true,4,false]
[null,null,null,null,null,0,null,null,0,0,null,null,true,true,true,true,4,false]
[null,null,null,null,null,0,null,null,0,0,null,null,true,true,true,true,4,false]
[null,null,null,null,null,0,null,null,0,0,null,null,true,true,true,true,4,true]
[null,null,null,null,null,{"$f":"ROUND(D68*E68,2)","v":0},null,null,{"$f":"ROUND(G68*H68,2)","v":0},{"$f":"F68+I68","v":0},null,null,{"$f":"ISBLANK(B68)","v":true},{"$f":"ISBLANK(C68)","v":true},{"$f":"ISBLANK(D68)","v":true},{"$f":"ISBLANK(E68)","v":true},{"$f":"M68+N68+O68+P68","v":4},{"$f":"IF(Q68=0,TRUE,FALSE)","v":false}]
[null,null,null,null,null,{"$f":"ROUND(D69*E69,2)","v":0},null,null,0,{"$f":"F69+I69","v":0},null,null,{"$f":"ISBLANK(B69)","v":true},true,true,true,{"$f":"M69+N69+O69+P69","v":4},{"$f":"IF(Q69=0,TRUE,FALSE)","v":false}]
[null,null,null,null,null,0,null,null,0,0,null,null,true,true,true,true,4,false]
[null,null,null,null,null,0,null,null,0,0,null,null,true,true,true,true,4,false]
[null,null,null,null,null,0,null,null,0,0,null,null,true,true,true,true,4,false]
[null,null,null,null,null,0,null,null,0,0,null,null,true,true,true,true,4,false]
[null,null,null,null,null,0,null,null,0,0,null,null,true,true,true,true,4,false]
[null,null,null,null,null,0,null,null,0,0,null,null,true,true,true,true,4,false]
[null,null,null,null,null,0,null,null,0,0,null,null,true,true,true,true,4,false]
[null,null,null,null,null,0,null,null,0,0,null,null,true,true,true,true,4,true]
[null,"3.4 Visa costs",null,null,null,{"$f":"SUM(F79:F88)","v":0},null,null,{"$f":"SUM(I79:I88)","v":0},{"$f":"SUM(J79:J88)","v":0},null,null,null,null,null,null,null,true]
[null,null,null,null,null,{"$f":"ROUND(D79*E79,2)","v":0},null,null,{"$f":"ROUND(G79*H79,2)","v":0},{"$f":"F79+I79","v":0},null,null,{"$f":"ISBLANK(B79)","v":true},{"$f":"ISBLANK(C79)","v":true},true,true,{"$f":"M79+N79+O79+P79","v":4},{"$f":"IF(Q79=0,TRUE,FALSE)","v":false}]
[null,null,null,null,null,{"$f":"ROUND(D80*E80,2)","v":0},null,null,0,{"$f":"F80+I80","v":0},null,null,{"$f":"ISBLANK(B80)","v":true},true,true,true,{"$f":"M80+N80+O80+P80","v":4},{"$f":"IF(Q80=0,TRUE,FALSE)","v":false}]
[null,null,null,null,null,0,null,null,0,0,null,null,true,true,true,true,4,false]
[null,null,null,null,null,0,null,null,0,0,null,null,true,true,true,true,4,false]
[null,null,null,null,null,0,null,null,0,0,null,null,true,true,true,true,4,false]
[null,null,null,null,null,0,null,null,0,0,null,null,true,true,true,true,4,false]
[null,null,null,null,null,0,null,null,0,0,null,null,true,true,true,true,4,false]
[null,null,null,null,null,0,null,null,0,0,null,null,true,true,true,true,4,false]
[null,null,null,null,null,0,null,null,0,0,null,null,true,true,true,true,4,false]
[null,null,null,null,null,0,null,null,0,0,null,null,true,true,true,true,4,true]
[null,"TOTAL",null,null,null,{"$f":"F78+F57+F36+F15","v":0},null,null,{"$f":"I78+I57+I36+I15","v":0},{"$f":"J78+J57+J36+J15","v":0},null,null,null,null,null,null,null,true]
[null,null,null,null,null,null,null,null,null,null,null,null,null,null,null,null,null,true]
[null,"BL4 - EXTERNAL EXPERTISE AND SERVICES COSTS","Unit","Expenditures in the eligible area",null,null,"Expenditures outside of the eligible area",null,null,"TOTAL",null,null,null,null,null,null,null,true]
[null,null,null,"Units","Unit rate","TOTAL","Units","Unit rate","TOTAL",null,null,null,null,null,null,null,null,true]
[null,"4.1 Rent of hall",null,null,null,{"$f":"SUM(F94:F113)","v":0},null,null,{"$f":"SUM(I94:I113)","v":0},{"$f":"SUM(J94:J113)","v":0},null,null,null,null,null,null,null,true]
[null,null,null,null,null,{"$f":"ROUND(D94*E94,2)","v":0},null,null,{"$f":"ROUND(G94*H94,2)","v":0},{"$f":"F94+I94","v":0},null,null,{"$f":"ISBLANK(B94)","v":true},{"$f":"ISBLANK(C94)","v":true},true,true,{"$f":"M94+N94+O94+P94","v":4},{"$f":"IF(Q94=0,TRUE,FALSE)","v":false}]
[null,null,null,null,null,{"$f":"ROUND(D95*E95,2)","v":0},null,null,0,{"$f":"F95+I95","v":0},null,null,{"$f":"ISBLANK(B95)","v":true},true,true,true,{"$f":"M95+N95+O95+P95","v":4},{"$f":"IF(Q95=0,TRUE,FALSE)","v":false}]
[null,null,null,null,null,0,null,null,0,0,null,null,true,true,true,true,4,false]
[null,null,null,null,null,0,null,null,0,0,null,null,true,true,true,true,4,false]
[null,null,null,null,null,0,null,null,0,0,null,null,true,true,true,true,4,false]
[null,null,null,null,null,0,null,null,0,0,null,null,true,true,true,true,4,false]
[null,null,null,null,null,0,null,null,0,0,null,null,true,true,true,true,4,false]
[null,null,null,null,null,0,null,null,0,0,null,null,true,true,true,true,4,false]
[null,null,null,null,null,0,null,null,0,0,null,null,true,true,true,true,4,false]
[null,null,null,null,null,0,null,null,0,0,null,null,true,true,true,true,4,true]
[null,null,null,null,null,{"$f":"ROUND(D104*E104,2)","v":0},null,null,{"$f":"ROUND(G104*H104,2)","v":0},{"$f":"F104+I104","v":0},null,null,{"$f":"ISBLANK(B104)","v":true},{"$f":"ISBLANK(C104)","v":true},{"$f":"ISBLANK(D104)","v":true},{"$f":"ISBLANK(E104)","v":true},{"$f":"M104+N104+O104+P104","v":4},{"$f":"IF(Q104=0,TRUE,FALSE)","v":false}]
[null,null,null,null,null,{"$f":"ROUND(D105*E105,2)","v":0},null,null,0,{"$f":"F105+I105","v":0},null,null,{"$f":"ISBLANK(B105)","v":true},true,true,true,{"$f":"M105+N105+O105+P105","v":4},{"$f":"IF(Q105=0,TRUE,FALSE)","v":false}]
[null,null,null,null,null,0,null,null,0,0,null,null,true,true,true,true,4,false]
[null,null,null,null,null,0,null,null,0,0,null,null,true,true,true,true,4,false]
[null,null,null,null,null,0,null,null,0,0,null,null,true,true,true,true,4,false]
[null,null,null,null,null,0,null,null,0,0,null,null,true,true,true,true,4,false]
[null,null,null,null,null,0,null,null,0,0,null,null,true,true,true,true,4,false]
[null,null,null,null,null,0,null,null,0,0,null,null,true,true,true,true,4,false]
[null,null,null,null,null,0,null,null,0,0,null,null,true,true,true,true,4,false]
[null,null,null,null,null,0,null,null,0,0,null,null,true,true,true,true,4,true]
[null,"4.2 Rent of equipment",null,null,null,{"$f":"SUM(F115:F134)","v":0},null,null,{"$f":"SUM(I115:I134)","v":0},{"$f":"SUM(J115:J134)","v":0},null,null,null,null,null,null,null,true]
[null,null,null,null,null,{"$f":"ROUND(D115*E115,2)","v":0},null,null,{"$f":"ROUND(G115*H115,2)","v":0},{"$f":"F115+I115","v":0},null,null,{"$f":"ISBLANK(B115)","v":true},{"$f":"ISBLANK(C115)","v":true},true,true,{"$f":"M115+N115+O115+P115","v":4},{"$f":"IF(Q115=0,TRUE,FALSE)","v":false}]
[null,null,null,null,null,{"$f":"ROUND(D116*E116,2)","v":0},null,null,0,{"$f":"F116+I116","v":0},null,null,{"$f":"ISBLANK(B116)","v":true},true,true,true,{"$f":"M116+N116+O116+P116","v":4},{"$f":"IF(Q116=0,TRUE,FALSE)","v":false}]
[null,null,null,null,null,0,null,null,0,0,null,null,true,true,true,true,4,false]
[null,null,null,null,null,0,null,null,0,0,null,null,true,true,true,true,4,false]
[null,null,null,null,null,0,null,null,0,0,null,null,true,true,true,true,4,false]
[null,null,null,null,null,0,null,null,0,0,null,null,true,true,true,true,4,false]
[null,null,null,null,null,0,null,null,0,0,null,null,true,true,true,true,4,false]
[null,null,null,null,null,0,null,null,0,0,null,null,true,true,true,true,4,false]
[null,null,null,null,null,0,null,null,0,0,null,null,true,true,true,true,4,false]
[null,null,null,null,null,0,null,null,0,0,null,null,true,true,true,true,4,true]
[null,null,null,null,null,{"$f":"ROUND(D125*E125,2)","v":0},null,null,{"$f":"ROUND(G125*H125,2)","v":0},{"$f":"F125+I125","v":0},null,null,{"$f":"ISBLANK(B125)","v":true},{"$f":"ISBLANK(C125)","v":true},{"$f":"ISBLANK(D125)","v":true},{"$f":"ISBLANK(E125)","v":true},{"$f":"M125+N125+O125+P125","v":4},{"$f":"IF(Q125=0,TRUE,FALSE)","v":false}]
[null,null,null,null,null,{"$f":"ROUND(D126*E126,2)","v":0},null,null,0,{"$f":"F126+I126","v":0},null,null,{"$f":"ISBLANK(B126)","v":true},true,true,true,{"$f":"M126+N126+O126+P126","v":4},{"$f":"IF(Q126=0,TRUE,FALSE)","v":false}]
[null,null,null,null,null,0,null,null,0,0,null,null,true,true,true,true,4,false]
[null,null,null,null,null,0,null,null,0,0,null,null,true,true,true,true,4,false]
[null,null,null,null,null,0,null,null,0,0,null,null,true,true,true,true,4,false]
[null,null,null,null,null,0,null,null,0,0,null,null,true,true,true,true,4,false]
[null,null,null,null,null,0,null,null,0,0,null,null,true,true,true,true,4,false]
[null,null,null,null,null,0,null,null,0,0,null,null,true,true,true,true,4,false]
[null,null,null,null,null,0,null,null,0,0,null,null,true,true,true,true,4,false]
[null,null,null,null,null,0,null,null,0,0,null,null,true,true,true,true,4,true]
[null,"4.3 Coffee breaks, refreshments, etc.",null,null,null,{"$f":"SUM(F136:F155)","v":0},null,null,{"$f":"SUM(I136:I155)","v":0},{"$f":"SUM(J136:J155)","v":0},null,null,null,null,null,null,null,true]
[null,null,null,null,null,{"$f":"ROUND(D136*E136,2)","v":0},null,null,{"$f":"ROUND(G136*H136,2)","v":0},{"$f":"F136+I136","v":0},null,null,{"$f":"ISBLANK(B136)","v":true},{"$f":"ISBLANK(C136)","v":true},true,true,{"$f":"M136+N136+O136+P136","v":4},{"$f":"IF(Q136=0,TRUE,FALSE)","v":false}]
[null,null,null,null,null,{"$f":"ROUND(D137*E137,2)","v":0},null,null,0,{"$f":"F137+I137","v":0},null,null,{"$f":"ISBLANK(B137)","v":true},true,true,true,{"$f":"M137+N137+O137+P137","v":4},{"$f":"IF(Q137=0,TRUE,FALSE)","v":false}]
[null,null,null,null,null,0,null,null,0,0,null,null,true,true,true,true,4,false]
[null,null,null,null,null,0,null,null,0,0,null,null,true,true,true,true,4,false]
[null,null,null,null,null,0,null,null,0,0,null,null,true,true,true,true,4,false]
[null,null,null,null,null,0,null,null,0,0,null,null,true,true,true,true,4,false]
[null,null,null,null,null,0,null,null,0,0,null,null,true,true,true,true,4,false]
[null,null,null,null,null,0,null,null,0,0,null,null,true,true,true,true,4,false]
[null,null,null,null,null,0,null,null,0,0,null,null,true,true,true,true,4,false]
[null,null,null,null,null,0,null,null,0,0,null,null,true,true,true,true,4,true]
[null,null,null,null,null,{"$f":"ROUND(D146*E146,2)","v":0},null,null,{"$f":"ROUND(G146*H146,2)","v":0},{"$f":"F146+I146","v":0},null,null,{"$f":"ISBLANK(B146)","v":true},{"$f":"ISBLANK(C146)","v":true},{"$f":"ISBLANK(D146)","v":true},{"$f":"ISBLANK(E146)","v":true},{"$f":"M146+N146+O146+P146","v":4},{"$f":"IF(Q146=0,TRUE,FALSE)","v":false}]
[null,null,null,null,null,{"$f":"ROUND(D147*E147,2)","v":0},null,null,0,{"$f":"F147+I147","v":0},null,null,{"$f":"ISBLANK(B147)","v":true},true,true,true,{"$f":"M147+N147+O147+P147","v":4},{"$f":"IF(Q147=0,TRUE,FALSE)","v":false}]
[null,null,null,null,null,0,null,null,0,0,null,null,true,true,true,true,4,false]
[null,null,null,null,null,0,null,null,0,0,null,null,true,true,true,true,4,false]
[null,null,null,null,null,0,null,null,0,0,null,null,true,true,true,true,4,false]
[null,null,null,null,null,0,null,null,0,0,null,null,true,true,true,true,4,false]
[null,null,null,null,null,0,null,null,0,0,null,null,true,true,true,true,4,false]
[null,null,null,null,null,0,null,null,0,0,null,null,true,true,true,true,4,false]
[null,null,null,null,null,0,null,null,0,0,null,null,true,true,true,true,4,false]
[null,null,null,null,null,0,null,null,0,0,null,null,true,true,true,true,4,true]
[null,"4.4 Consumables",null,null,null,{"$f":"SUM(F157:F176)","v":0},null,null,{"$f":"SUM(I157:I176)","v":0},{"$f":"SUM(J157:J176)","v":0},null,null,null,null,null,null,null,true]
[null,null,null,null,null,{"$f":"ROUND(D157*E157,2)","v":0},null,null,{"$f":"ROUND(G157*H157,2)","v":0},{"$f":"F157+I157","v":0},null,null,{"$f":"ISBLANK(B157)","v":true},{"$f":"ISBLANK(C157)","v":true},true,true,{"$f":"M157+N157+O157+P157","v":4},{"$f":"IF(Q157=0,TRUE,FALSE)","v":false}]
[null,null,null,null,null,{"$f":"ROUND(D158*E158,2)","v":0},null,null,0,{"$f":"F158+I158","v":0},null,null,{"$f":"ISBLANK(B158)","v":true},true,true,true,{"$f":"M158+N158+O158+P158","v":4},{"$f":"IF(Q158=0,TRUE,FALSE)","v":false}]
[null,null,null,null,null,0,null,null,0,0,null,null,true,true,true,true,4,false]
[null,null,null,null,null,0,null,null,0,0,null,null,true,true,true,true,4,false]
[null,null,null,null,null,0,null,null,0,0,null,null,true,true,true,true,4,false]
[null,null,null,null,null,0,null,null,0,0,null,null,true,true,true,true,4,false]
[null,null,null,null,null,0,null,null,0,0,null,null,true,true,true,true,4,false]
[null,null,null,null,null,0,null,null,0,0,null,null,true,true,true,true,4,false]
[null,null,null,null,null,0,null,null,0,0,null,null,true,true,true,true,4,false]
[null,null,null,null,null,0,null,null,0,0,null,null,true,true,true,true,4,true]
[null,null,null,null,null,{"$f":"ROUND(D167*E167,2)","v":0},null,null,{"$f":"ROUND(G167*H167,2)","v":0},{"$f":"F167+I167","v":0},null,null,{"$f":"ISBLANK(B167)","v":true},{"$f":"ISBLANK(C167)","v":true},{"$f":"ISBLANK(D167)","v":true},{"$f":"ISBLANK(E167)","v":true},{"$f":"M167+N167+O167+P167","v":4},{"$f":"IF(Q167=0,TRUE,FALSE)","v":false}]
[null,null,null,null,null,{"$f":"ROUND(D168*E168,2)","v":0},null,null,0,{"$f":"F168+I168","v":0},null,null,{"$f":"ISBLANK(B168)","v":true},true,true,true,{"$f":"M168+N168+O168+P168","v":4},{"$f":"IF(Q168=0,TRUE,FALSE)","v":false}]
[null,null,null,null,null,0,null,null,0,0,null,null,true,true,true,true,4,false]
[null,null,null,null,null,0,null,null,0,0,null,null,true,true,true,true,4,false]
[null,null,null,null,null,0,null,null,0,0,null,null,true,true,true,true,4,false]
[null,null,null,null,null,0,null,null,0,0,null,null,true,true,true,true,4,false]
[null,null,null,null,null,0,null,null,0,0,null,null,true,true,true,true,4,false]
[null,null,null,null,null,0,null,null,0,0,null,null,true,true,true,true,4,false]
[null,null,null,null,null,0,null,null,0,0,null,null,true,true,true,true,4,false]
[null,null,null,null,null,0,null,null,0,0,null,null,true,true,true,true,4,true]
[null,"4.5 Rent of vehicle for event",null,null,null,{"$f":"SUM(F178:F197)","v":0},null,null,{"$f":"SUM(I178:I197)","v":0},{"$f":"SUM(J178:J197)","v":0},null,null,null,null,null,null,null,true]
[null,null,null,null,null,{"$f":"ROUND(D178*E178,2)","v":0},null,null,{"$f":"ROUND(G178*H178,2)","v":0},{"$f":"F178+I178","v":0},null,null,{"$f":"ISBLANK(B178)","v":true},{"$f":"ISBLANK(C178)","v":true},true,true,{"$f":"M178+N178+O178+P178","v":4},{"$f":"IF(Q178=0,TRUE,FALSE)","v":false}]
[null,null,null,null,null,{"$f":"ROUND(D179*E179,2)","v":0},null,null,0,{"$f":"F179+I179","v":0},null,null,{"$f":"ISBLANK(B179)","v":true},true,true,true,{"$f":"M179+N179+O179+P179","v":4},{"$f":"IF(Q179=0,TRUE,FALSE)","v":false}]
[null,null,null,null,null,0,null,null,0,0,null,null,true,true,true,true,4,false]
[null,null,null,null,null,0,null,null,0,0,null,null,true,true,true,true,4,false]
[null,null,null,null,null,0,null,null,0,0,null,null,true,true,true,true,4,false]
[null,null,null,null,null,0,null,null,0,0,null,null,true,true,true,true,4,false]
[null,null,null,null,null,0,null,null,0,0,null,null,true,true,true,true,4,false]
[null,null,null,null,null,0,null,null,0,0,null,null,true,true,true,true,4,false]
[null,null,null,null,null,0,null,null,0,0,null,null,true,true,true,true,4,false]
[null,null,null,null,null,0,null,null,0,0,null,null,true,true,true,true,4,true]
[null,null,null,null,null,{"$f":"ROUND(D188*E188,2)","v":0},null,null,{"$f":"ROUND(G188*H188,2)","v":0},{"$f":"F188+I188","v":0},null,null,{"$f":"ISBLANK(B188)","v":true},{"$f":"ISBLANK(C188)","v":true},{"$f":"ISBLANK(D188)","v":true},{"$f":"ISBLANK(E188)","v":true},{"$f":"M188+N188+O188+P188","v":4},{"$f":"IF(Q188=0,TRUE,FALSE)","v":false}]
[null,null,null,null,null,{"$f":"ROUND(D189*E189,2)","v":0},null,null,0,{"$f":"F189+I189","v":0},null,null,{"$f":"ISBLANK(B189)","v":true},true,true,true,{"$f":"M189+N189+O189+P189","v":4},{"$f":"IF(Q189=0,TRUE,FALSE)","v":false}]
[null,null,null,null,null,0,null,null,0,0,null,null,true,true,true,true,4,false]
[null,null,null,null,null,0,null,null,0,0,null,null,true,true,true,true,4,false]
[null,null,null,null,null,0,null,null,0,0,null,null,true,true,true,true,4,false]
[null,null,null,null,null,0,null,null,0,0,null,null,true,true,true,true,4,false]
[null,null,null,null,null,0,null,null,0,0,null,null,true,true,true,true,4,false]
[null,null,null,null,null,0,null,null,0,0,null,null,true,true,true,true,4,false]
[null,null,null,null,null,0,null,null,0,0,null,null,true,true,true,true,4,false]
[null,null,null,null,null,0,null,null,0,0,null,null,true,true,true,true,4,true]
[null,"4.6 Accommodations for participants in the events ",null,null,null,{"$f":"SUM(F199:F218)","v":0},null,null,{"$f":"SUM(I199:I218)","v":0},{"$f":"SUM(J199:J218)","v":0},null,null,null,null,null,null,null,true]
[null,null,null,null,null,{"$f":"ROUND(D199*E199,2)","v":0},null,null,{"$f":"ROUND(G199*H199,2)","v":0},{"$f":"F199+I199","v":0},null,null,{"$f":"ISBLANK(B199)","v":true},{"$f":"ISBLANK(C199)","v":true},true,true,{"$f":"M199+N199+O199+P199","v":4},{"$f":"IF(Q199=0,TRUE,FALSE)","v":false}]
[null,null,null,null,null,{"$f":"ROUND(D200*E200,2)","v":0},null,null,0,{"$f":"F200+I200","v":0},null,null,{"$f":"ISBLANK(B200)","v":true},true,true,true,{"$f":"M200+N200+O200+P200","v":4},{"$f":"IF(Q200=0,TRUE,FALSE)","v":false}]
[null,null,null,null,null,0,null,null,0,0,null,null,true,true,true,true,4,false]
[null,null,null,null,null,0,null,null,0,0,null,null,true,true,true,true,4,false]
[null,null,null,null,null,0,null,null,0,0,null,null,true,true,true,true,4,false]
[null,null,null,null,null,0,null,null,0,0,null,null,true,true,true,true,4,false]
[null,null,null,null,null,0,null,null,0,0,null,null,true,true,true,true,4,false]
[null,null,null,null,null,0,null,null,0,0,null,null,true,true,true,true,4,false]
[null,null,null,null,null,0,null,null,0,0,null,null,true,true,true,true,4,false]
[null,null,null,null,null,0,null,null,0,0,null,null,true,true,true,true,4,true]
[null,null,null,null,null,{"$f":"ROUND(D209*E209,2)","v":0},null,null,{"$f":"ROUND(G209*H209,2)","v":0},{"$f":"F209+I209","v":0},null,null,{"$f":"ISBLANK(B209)","v":true},{"$f":"ISBLANK(C209)","v":true},{"$f":"ISBLANK(D209)","v":true},{"$f":"ISBLANK(E209)","v":true},{"$f":"M209+N209+O209+P209","v":4},{"$f":"IF(Q209=0,TRUE,FALSE)","v":false}]
[null,null,null,null,null,{"$f":"ROUND(D210*E210,2)","v":0},null,null,0,{"$f":"F210+I210","v":0},null,null,{"$f":"ISBLANK(B210)","v":true},true,true,true,{"$f":"M210+N210+O210+P210","v":4},{"$f":"IF(Q210=0,TRUE,FALSE)","v":false}]
[null,null,null,null,null,0,null,null,0,0,null,null,true,true,true,true,4,false]
[null,null,null,null,null,0,null,null,0,0,null,null,true,true,true,true,4,false]
[null,null,null,null,null,0,null,null,0,0,null,null,true,true,true,true,4,false]
[null,null,null,null,null,0,null,null,0,0,null,null,true,true,true,true,4,false]
[null,null,null,null,null,0,null,null,0,0,null,null,true,true,true,true,4,false]
[null,null,null,null,null,0,null,null,0,0,null,null,true,true,true,true,4,false]
[null,null,null,null,null,0,null,null,0,0,null,null,true,true,true,true,4,false]
[null,null,null,null,null,0,null,null,0,0,null,null,true,true,true,true,4,true]
[null,"4.7 Elaboration, design,translation etc.",null,null,null,{"$f":"SUM(F220:F239)","v":0},null,null,{"$f":"SUM(I220:I239)","v":0},{"$f":"SUM(J220:J239)","v":0},null,null,null,null,null,null,null,true]
[null,null,null,null,null,{"$f":"ROUND(D220*E220,2)","v":0},null,null,{"$f":"ROUND(G220*H220,2)","v":0},{"$f":"F220+I220","v":0},null,null,{"$f":"ISBLANK(B220)","v":true},{"$f":"ISBLANK(C220)","v":true},true,true,{"$f":"M220+N220+O220+P220","v":4},{"$f":"IF(Q220=0,TRUE,FALSE)","v":false}]
[null,null,null,null,null,{"$f":"ROUND(D221*E221,2)","v":0},null,null,0,{"$f":"F221+I221","v":0},null,null,{"$f":"ISBLANK(B221)","v":true},true,true,true,{"$f":"M221+N221+O221+P221","v":4},{"$f":"IF(Q221=0,TRUE,FALSE)","v":false}]
[null,null,null,null,null,0,null,null,0,0,null,null,true,true,true,true,4,false]
[null,null,null,null,null,0,null,null,0,0,null,null,true,true,true,true,4,false]
[null,null,null,null,null,0,null,null,0,0,null,null,true,true,true,true,4,false]
[null,null,null,null,null,0,null,null,0,0,null,null,true,true,true,true,4,false]
[null,null,null,null,null,0,null,null,0,0,null,null,true,true,true,true,4,false]
[null,null,null,null,null,0,null,null,0,0,null,null,true,true,true,true,4,false]
[null,null,null,null,null,0,null,null,0,0,null,null,true,true,true,true,4,false]
[null,null,null,null,null,0,null,null,0,0,null,null,true,true,true,true,4,false]
[null,null,null,null,null,{"$f":"ROUND(D230*E230,2)","v":0},null,null,{"$f":"ROUND(G230*H230,2)","v":0},{"$f":"F230+I230","v":0},null,null,{"$f":"ISBLANK(B230)","v":true},{"$f":"ISBLANK(C230)","v":true},{"$f":"ISBLANK(D230)","v":true},{"$f":"ISBLANK(E230)","v":true},{"$f":"M230+N230+O230+P230","v":4},{"$f":"IF(Q230=0,TRUE,FALSE)","v":false}]
[null,null,null,null,null,{"$f":"ROUND(D231*E231,2)","v":0},null,null,0,{"$f":"F231+I231","v":0},null,null,{"$f":"ISBLANK(B231)","v":true},true,true,true,{"$f":"M231+N231+O231+P231","v":4},{"$f":"IF(Q231=0,TRUE,FALSE)","v":false}]
[null,null,null,null,null,0,null,null,0,0,null,null,true,true,true,true,4,false]
[null,null,null,null,null,0,null,null,0,0,null,null,true,true,true,true,4,false]
[null,null,null,null,null,0,null,null,0,0,null,null,true,true,true,true,4,false]
[null,null,null,null,null,0,null,null,0,0,null,null,true,true,true,true,4,false]
[null,null,null,null,null,0,null,null,0,0,null,null,true,true,true,true,4,false]
[null,null,null,null,null,0,null,null,0,0,null,null,true,true,true,true,4,false]
[null,null,null,null,null,0,null,null,0,0,null,null,true,true,true,true,4,false]
[null,null,null,null,null,0,null,null,0,0,null,null,true,true,true,true,4,false]
[null,"4.8 Publications in mass-media",null,null,null,{"$f":"SUM(F241:F260)","v":0},null,null,{"$f":"SUM(I241:I260)","v":0},{"$f":"SUM(J241:J260)","v":0},null,null,null,null,null,null,null,true]
[null,null,null,null,null,{"$f":"ROUND(D241*E241,2)","v":0},null,null,{"$f":"ROUND(G241*H241,2)","v":0},{"$f":"F241+I241","v":0},null,null,{"$f":"ISBLANK(B241)","v":true},{"$f":"ISBLANK(C241)","v":true},true,true,{"$f":"M241+N241+O241+P241","v":4},{"$f":"IF(Q241=0,TRUE,FALSE)","v":false}]
[null,null,null,null,null,{"$f":"ROUND(D242*E242,2)","v":0},null,null,0,{"$f":"F242+I242","v":0},null,null,{"$f":"ISBLANK(B242)","v":true},true,true,true,{"$f":"M242+N242+O242+P242","v":4},{"$f":"IF(Q242=0,TRUE,FALSE)","v":false}]
[null,null,null,null,null,0,null,null,0,0,null,null,true,true,true,true,4,false]
[null,null,null,null,null,0,null,null,0,0,null,null,true,true,true,true,4,false]
[null,null,null,null,null,0,null,null,0,0,null,null,true,true,true,true,4,false]
[null,null,null,null,null,0,null,null,0,0,null,null,true,true,true,true,4,false]
[null,null,null,null,null,0,null,null,0,0,null,null,true,true,true,true,4,false]
[null,null,null,null,null,0,null,null,0,0,null,null,true,true,true,true,4,false]
[null,null,null,null,null,0,null,null,0,0,null,null,true,true,true,true,4,false]
[null,null,null,null,null,0,null,null,0,0,null,null,true,true,true,true,4,true]
[null,null,null,null,null,{"$f":"ROUND(D251*E251,2)","v":0},null,null,{"$f":"ROUND(G251*H251,2)","v":0},{"$f":"F251+I251","v":0},null,null,{"$f":"ISBLANK(B251)","v":true},{"$f":"ISBLANK(C251)","v":true},{"$f":"ISBLANK(D251)","v":true},{"$f":"ISBLANK(E251)","v":true},{"$f":"M251+N251+O251+P251","v":4},{"$f":"IF(Q251=0,TRUE,FALSE)","v":false}]
[null,null,null,null,null,{"$f":"ROUND(D252*E252,2)","v":0},null,null,0,{"$f":"F252+I252","v":0},null,null,{"$f":"ISBLANK(B252)","v":true},true,true,true,{"$f":"M252+N252+O252+P252","v":4},{"$f":"IF(Q252=0,TRUE,FALSE)","v":false}]
[null,null,null,null,null,0,null,null,0,0,null,null,true,true,true,true,4,false]
[null,null,null,null,null,0,null,null,0,0,null,null,true,true,true,true,4,false]
[null,null,null,null,null,0,null,null,0,0,null,null,true,true,true,true,4,false]
[null,null,null,null,null,0,null,null,0,0,null,null,true,true,true,true,4,false]
[null,null,null,null,null,0,null,null,0,0,null,null,true,true,true,true,4,false]
[null,null,null,null,null,0,null,null,0,0,null,null,true,true,true,true,4,false]
[null,null,null,null,null,0,null,null,0,0,null,null,true,true,true,true,4,false]
[null,null,null,null,null,0,null,null,0,0,null,null,true,true,true,true,4,true]
[null,"4.9 Consultancy, studies,designs, website development etc.",null,null,null,{"$f":"SUM(F262:F281)","v":0},null,null,{"$f":"SUM(I262:I281)","v":0},{"$f":"SUM(J262:J281)","v":0},null,null,null,null,null,null,null,true]
[null,null,null,null,null,{"$f":"ROUND(D262*E262,2)","v":0},null,null,{"$f":"ROUND(G262*H262,2)","v":0},{"$f":"F262+I262","v":0},null,null,{"$f":"ISBLANK(B262)","v":true},{"$f":"ISBLANK(C262)","v":true},true,true,{"$f":"M262+N262+O262+P262","v":4},{"$f":"IF(Q262=0,TRUE,FALSE)","v":false}]
[null,null,null,null,null,{"$f":"ROUND(D263*E263,2)","v":0},null,null,0,{"$f":"F263+I263","v":0},null,null,{"$f":"ISBLANK(B263)","v":true},true,true,true,{"$f":"M263+N263+O263+P263","v":4},{"$f":"IF(Q263=0,TRUE,FALSE)","v":false}]
[null,null,null,null,null,0,null,null,0,0,null,null,true,true,true,true,4,false]
[null,null,null,null,null,0,null,null,0,0,null,null,true,true,true,true,4,false]
[null,null,null,null,null,0,null,null,0,0,null,null,true,true,true,true,4,false]
[null,null,null,null,null,0,null,null,0,0,null,null,true,true,true,true,4,false]
[null,null,null,null,null,0,null,null,0,0,null,null,true,true,true,true,4,false]
[null,null,null,null,null,0,null,null,0,0,null,null,true,true,true,true,4,false]
[null,null,null,null,null,0,null,null,0,0,null,null,true,true,true,true,4,false]
[null,null,null,null,null,0,null,null,0,0,null,null,true,true,true,true,4,true]
[null,null,null,null,null,{"$f":"ROUND(D272*E272,2)","v":0},null,null,{"$f":"ROUND(G272*H272,2)","v":0},{"$f":"F272+I272","v":0},null,null,{"$f":"ISBLANK(B272)","v":true},{"$f":"ISBLANK(C272)","v":true},{"$f":"ISBLANK(D272)","v":true},{"$f":"ISBLANK(E272)","v":true},{"$f":"M272+N272+O272+P272","v":4},{"$f":"IF(Q272=0,TRUE,FALSE)","v":false}]
[null,null,null,null,null,{"$f":"ROUND(D273*E273,2)","v":0},null,null,0,{"$f":"F273+I273","v":0},null,null,{"$f":"ISBLANK(B273)","v":true},true,true,true,{"$f":"M273+N273+O273+P273","v":4},{"$f":"IF(Q273=0,TRUE,FALSE)","v":false}]
[null,null,null,null,null,0,null,null,0,0,null,null,true,true,true,true,4,false]
[null,null,null,null,null,0,null,null,0,0,null,null,true,true,true,true,4,false]
[null,null,null,null,null,0,null,null,0,0,null,null,true,true,true,true,4,false]
[null,null,null,null,null,0,null,null,0,0,null,null,true,true,true,true,4,false]
[null,null,null,null,null,0,null,null,0,0,null,null,true,true,true,true,4,false]
[null,null,null,null,null,0,null,null,0,0,null,null,true,true,true,true,4,false]
[null,null,null,null,null,0,null,null,0,0,null,null,true,true,true,true,4,false]
[null,null,null,null,null,0,null,null,0,0,null,null,true,true,true,true,4,true]
[null,"4.10 Authorizations, certificates",null,null,null,{"$f":"SUM(F283:F302)","v":0},null,null,{"$f":"SUM(I283:I302)","v":0},{"$f":"SUM(J283:J302)","v":0},null,null,null,true,null,null,null,true]
[null,null,null,null,null,{"$f":"ROUND(D283*E283,2)","v":0},null,null,{"$f":"ROUND(G283*H283,2)","v":0},{"$f":"F283+I283","v":0},null,null,{"$f":"ISBLANK(B283)","v":true},{"$f":"ISBLANK(C283)","v":true},true,true,{"$f":"M283+N283+O283+P283","v":4},{"$f":"IF(Q283=0,TRUE,FALSE)","v":false}]
[null,null,null,null,null,{"$f":"ROUND(D284*E284,2)","v":0},null,null,0,{"$f":"F284+I284","v":0},null,null,{"$f":"ISBLANK(B284)","v":true},true,true,true,{"$f":"M284+N284+O284+P284","v":4},{"$f":"IF(Q284=0,TRUE,FALSE)","v":false}]
[null,null,null,null,null,0,null,null,0,0,null,null,true,true,true,true,4,false]
[null,null,null,null,null,0,null,null,0,0,null,null,true,true,true,true,4,false]
[null,null,null,null,null,0,null,null,0,0,null,null,true,true,true,true,4,false]
[null,null,null,null,null,0,null,null,0,0,null,null,true,true,true,true,4,false]
[null,null,null,null,null,0,null,null,0,0,null,null,true,true,true,true,4,false]
[null,null,null,null,null,0,null,null,0,0,null,null,true,true,true,true,4,false]
[null,null,null,null,null,0,null,null,0,0,null,null,true,true,true,true,4,false]
[null,null,null,null,null,0,null,null,0,0,null,null,true,true,true,true,4,true]
[null,null,null,null,null,{"$f":"ROUND(D293*E293,2)","v":0},null,null,{"$f":"ROUND(G293*H293,2)","v":0},{"$f":"F293+I293","v":0},null,null,{"$f":"ISBLANK(B293)","v":true},{"$f":"ISBLANK(C293)","v":true},{"$f":"ISBLANK(D293)","v":true},{"$f":"ISBLANK(E293)","v":true},{"$f":"M293+N293+O293+P293","v":4},{"$f":"IF(Q293=0,TRUE,FALSE)","v":false}]
[null,null,null,null,null,{"$f":"ROUND(D294*E294,2)","v":0},null,null,0,{"$f":"F294+I294","v":0},null,null,{"$f":"ISBLANK(B294)","v":true},true,true,true,{"$f":"M294+N294+O294+P294","v":4},{"$f":"IF(Q294=0,TRUE,FALSE)","v":false}]
[null,null,null,null,null,0,null,null,0,0,null,null,true,true,true,true,4,false]
[null,null,null,null,null,0,null,null,0,0,null,null,true,true,true,true,4,false]
[null,null,null,null,null,0,null,null,0,0,null,null,true,true,true,true,4,false]
[null,null,null,null,null,0,null,null,0,0,null,null,true,true,true,true,4,false]
[null,null,null,null,null,0,null,null,0,0,null,null,true,true,true,true,4,false]
[null,null,null,null,null,0,null,null,0,0,null,null,true,true,true,true,4,false]
[null,null,null,null,null,0,null,null,0,0,null,null,true,true,true,true,4,false]
[null,null,null,null,null,0,null,null,0,0,null,null,true,true,true,true,4,true]
[null,"4.11 Interpreters, lecturers, trainers",null,null,null,{"$f":"SUM(F304:F323)","v":0},null,null,{"$f":"SUM(I304:I323)","v":0},{"$f":"SUM(J304:J323)","v":0},null,null,null,null,null,null,null,true]
[null,null,null,null,null,{"$f":"ROUND(D304*E304,2)","v":0},null,null,{"$f":"ROUND(G304*H304,2)","v":0},{"$f":"F304+I304","v":0},null,null,{"$f":"ISBLANK(B304)","v":true},{"$f":"ISBLANK(C304)","v":true},true,true,{"$f":"M304+N304+O304+P304","v":4},{"$f":"IF(Q304=0,TRUE,FALSE)","v":false}]
[null,null,null,null,null,{"$f":"ROUND(D305*E305,2)","v":0},null,null,0,{"$f":"F305+I305","v":0},null,null,{"$f":"ISBLANK(B305)","v":true},true,true,true,{"$f":"M305+N305+O305+P305","v":4},{"$f":"IF(Q305=0,TRUE,FALSE)","v":false}]
[null,null,null,null,null,0,null,null,0,0,null,null,true,true,true,true,4,false]
[null,null,null,null,null,0,null,null,0,0,null,null,true,true,true,true,4,false]
[null,null,null,null,null,0,null,null,0,0,null,null,true,true,true,true,4,false]
[null,null,null,null,null,0,null,null,0,0,null,null,true,true,true,true,4,false]
[null,null,null,null,null,0,null,null,0,0,null,null,true,true,true,true,4,false]
[null,null,null,null,null,0,null,null,0,0,null,null,true,true,true,true,4,false]
[null,null,null,null,null,0,null,null,0,0,null,null,true,true,true,true,4,false]
[null,null,null,null,null,0,null,null,0,0,null,null,true,true,true,true,4,true]
[null,null,null,null,null,{"$f":"ROUND(D314*E314,2)","v":0},null,null,{"$f":"ROUND(G314*H314,2)","v":0},{"$f":"F314+I314","v":0},null,null,{"$f":"ISBLANK(B314)","v":true},{"$f":"ISBLANK(C314)","v":true},{"$f":"ISBLANK(D314)","v":true},{"$f":"ISBLANK(E314)","v":true},{"$f":"M314+N314+O314+P314","v":4},{"$f":"IF(Q314=0,TRUE,FALSE)","v":false}]
[null,null,null,null,null,{"$f":"ROUND(D315*E315,2)","v":0},null,null,0,{"$f":"F315+I315","v":0},null,null,{"$f":"ISBLANK(B315)","v":true},true,true,true,{"$f":"M315+N315+O315+P315","v":4},{"$f":"IF(Q315=0,TRUE,FALSE)","v":false}]
[null,null,null,null,null,0,null,null,0,0,null,null,true,true,true,true,4,false]
[null,null,null,null,null,0,null,null,0,0,null,null,true,true,true,true,4,false]
[null,null,null,null,null,0,null,null,0,0,null,null,true,true,true,true,4,false]
[null,null,null,null,null,0,null,null,0,0,null,null,true,true,true,true,4,false]
[null,null,null,null,null,0,null,null,0,0,null,null,true,true,true,true,4,false]
[null,null,null,null,null,0,null,null,0,0,null,null,true,true,true,true,4,false]
[null,null,null,null,null,0,null,null,0,0,null,null,true,true,true,true,4,false]
[null,null,null,null,null,0,null,null,0,0,null,null,true,true,true,true,4,true]
[null,"4.12 Others",null,null,null,{"$f":"SUM(F325:F344)","v":0},null,null,{"$f":"SUM(I325:I344)","v":0},{"$f":"SUM(J325:J344)","v":0},null,null,null,null,null,true,null,true]
[null,null,null,null,null,{"$f":"ROUND(D325*E325,2)","v":0},null,null,{"$f":"ROUND(G325*H325,2)","v":0},{"$f":"F325+I325","v":0},null,null,{"$f":"ISBLANK(B325)","v":true},{"$f":"ISBLANK(C325)","v":true},true,true,{"$f":"M325+N325+O325+P325","v":4},{"$f":"IF(Q325=0,TRUE,FALSE)","v":false}]
[null,null,null,null,null,{"$f":"ROUND(D326*E326,2)","v":0},null,null,0,{"$f":"F326+I326","v":0},null,null,{"$f":"ISBLANK(B326)","v":true},true,true,true,{"$f":"M326+N326+O326+P326","v":4},{"$f":"IF(Q326=0,TRUE,FALSE)","v":false}]
[null,null,null,null,null,0,null,null,0,0,null,null,true,true,true,true,4,false]
[null,null,null,null,null,0,null,null,0,0,null,null,true,true,true,true,4,false]
[null,null,null,null,null,0,null,null,0,0,null,null,true,true,true,true,4,false]
[null,null,null,null,null,0,null,null,0,0,null,null,true,true,true,true,4,false]
[null,null,null,null,null,0,null,null,0,0,null,null,true,true,true,true,4,false]
[null,null,null,null,null,0,null,null,0,0,null,null,true,true,true,true,4,false]
[null,null,null,null,null,0,null,null,0,0,null,null,true,true,true,true,4,false]
[null,null,null,null,null,0,null,null,0,0,null,null,true,true,true,true,4,true]
[null,null,null,null,null,{"$f":"ROUND(D335*E335,2)","v":0},null,null,{"$f":"ROUND(G335*H335,2)","v":0},{"$f":"F335+I335","v":0},null,null,{"$f":"ISBLANK(B335)","v":true},{"$f":"ISBLANK(C335)","v":true},{"$f":"ISBLANK(D335)","v":true},{"$f":"ISBLANK(E335)","v":true},{"$f":"M335+N335+O335+P335","v":4},{"$f":"IF(Q335=0,TRUE,FALSE)","v":false}]
[null,null,null,null,null,{"$f":"ROUND(D336*E336,2)","v":0},null,null,0,{"$f":"F336+I336","v":0},null,null,{"$f":"ISBLANK(B336)","v":true},true,true,true,{"$f":"M336+N336+O336+P336","v":4},{"$f":"IF(Q336=0,TRUE,FALSE)","v":false}]
[null,null,null,null,null,0,null,null,0,0,null,null,true,true,true,true,4,false]
[null,null,null,null,null,0,null,null,0,0,null,null,true,true,true,true,4,false]
[null,null,null,null,null,0,null,null,0,0,null,null,true,true,true,true,4,false]
[null,null,null,null,null,0,null,null,0,0,null,null,true,true,true,true,4,false]
[null,null,null,null,null,0,null,null,0,0,null,null,true,true,true,true,4,false]
[null,null,null,null,null,0,null,null,0,0,null,null,true,true,true,true,4,false]
[null,null,null,null,null,0,null,null,0,0,null,null,true,true,true,true,4,false]
[null,null,null,null,null,0,null,null,0,0,null,null,true,true,true,true,4,true]
[null,"TOTAL",null,null,null,{"$f":"F324+F303+F282+F261+F240+F219+F198+F177+F156+F135+F114+F93","v":0},null,null,{"$f":"I324+I303+I282+I261+I240+I219+I198+I177+I156+I135+I114+I93","v":0},{"$f":"J324+J303+J282+J261+J240+J219+J198+J177+J156+J135+J114+J93","v":0},null,null,null,null,null,null,null,true]
[null,null,null,null,null,null,null,null,null,null,null,null,{"$f":"O350+P350+N346","v":2},{"$f":"M8=\"Soft\"","v":false},null,null,null,true]
[null,"BL5 - EQUIPMENT AND WORKS","Unit","Expenditures in the eligible area",null,null,"N/A",null,null,"TOTAL",null,null,null,null,null,null,null,true]
[null,null,null,"Units","Unit rate","TOTAL","Units","Unit rate","TOTAL",null,null,null,null,null,null,null,null,true]
[null,"5.1 Small scale construction",null,null,null,{"$f":"SUM(F350:F369)","v":0},null,null,{"$f":"SUM(I350:I369)","v":0},{"$f":"SUM(J350:J369)","v":0},null,null,null,null,null,null,null,true]
[null,null,null,null,null,{"$f":"ROUND(D350*E350,2)","v":0},null,null,{"$f":"ROUND(G350*H350,2)","v":0},{"$f":"F350+I350","v":0},null,null,{"$f":"ISBLANK(B350)","v":true},{"$f":"ISBLANK(C350)","v":true},true,true,{"$f":"M350+N350+O350+P350","v":4},{"$f":"IF(Q350=0,TRUE,FALSE)","v":false}]
[null,null,null,null,null,{"$f":"ROUND(D351*E351,2)","v":0},null,null,0,{"$f":"F351+I351","v":0},null,null,{"$f":"ISBLANK(B351)","v":true},true,true,true,{"$f":"M351+N351+O351+P351","v":4},{"$f":"IF(Q351=0,TRUE,FALSE)","v":false}]
[null,null,null,null,null,0,null,null,0,0,null,null,true,true,true,true,4,false]
[null,null,null,null,null,0,null,null,0,0,null,null,true,true,true,true,4,false]
[null,null,null,null,null,0,null,null,0,0,null,null,true,true,true,true,4,false]
[null,null,null,null,null,0,null,null,0,0,null,null,true,true,true,true,4,false]
[null,null,null,null,null,0,null,null,0,0,null,null,true,true,true,true,4,false]
[null,null,null,null,null,0,null,null,0,0,null,null,true,true,true,true,4,false]
[null,null,null,null,null,0,null,null,0,0,null,null,true,true,true,true,4,false]
[null,null,null,null,null,0,null,null,0,0,null,null,true,true,true,true,4,true]
[null,null,null,null,null,{"$f":"ROUND(D360*E360,2)","v":0},null,null,{"$f":"ROUND(G360*H360,2)","v":0},{"$f":"F360+I360","v":0},null,null,{"$f":"ISBLANK(B360)","v":true},{"$f":"ISBLANK(C360)","v":true},{"$f":"ISBLANK(D360)","v":true},{"$f":"ISBLANK(E360)","v":true},{"$f":"M360+N360+O360+P360","v":4},{"$f":"IF(Q360=0,TRUE,FALSE)","v":false}]
[null,null,null,null,null,{"$f":"ROUND(D361*E361,2)","v":0},null,null,0,{"$f":"F361+I361","v":0},null,null,{"$f":"ISBLANK(B361)","v":true},true,true,true,{"$f":"M361+N361+O361+P361","v":4},{"$f":"IF(Q361=0,TRUE,FALSE)","v":false}]
[null,null,null,null,null,0,null,null,0,0,null,null,true,true,true,true,4,false]
[null,null,null,null,null,0,null,null,0,0,null,null,true,true,true,true,4,false]
[null,null,null,null,null,0,null,null,0,0,null,null,true,true,true,true,4,false]
[null,null,null,null,null,0,null,null,0,0,null,null,true,true,true,true,4,false]
[null,null,null,null,null,0,null,null,0,0,null,null,true,true,true,true,4,false]
[null,null,null,null,null,0,null,null,0,0,null,null,true,true,true,true,4,false]
[null,null,null,null,null,0,null,null,0,0,null,null,true,true,true,true,4,false]
[null,null,null,null,null,0,null,null,0,0,null,null,true,true,true,true,4,true]
[null,"5.2 Supply",null,null,null,{"$f":"SUM(F371:F390)","v":0},null,null,{"$f":"SUM(I371:I390)","v":0},{"$f":"SUM(J371:J390)","v":0},null,null,null,null,null,null,null,true]
[null,null,null,null,null,{"$f":"ROUND(D371*E371,2)","v":0},null,null,{"$f":"ROUND(G371*H371,2)","v":0},{"$f":"F371+I371","v":0},null,null,{"$f":"ISBLANK(B371)","v":true},{"$f":"ISBLANK(C371)","v":true},true,true,{"$f":"M371+N371+O371+P371","v":4},{"$f":"IF(Q371=0,TRUE,FALSE)","v":false}]
[null,null,null,null,null,{"$f":"ROUND(D372*E372,2)","v":0},null,null,0,{"$f":"F372+I372","v":0},null,null,{"$f":"ISBLANK(B372)","v":true},true,true,true,{"$f":"M372+N372+O372+P372","v":4},{"$f":"IF(Q372=0,TRUE,FALSE)","v":false}]
[null,null,null,null,null,0,null,null,0,0,null,null,true,true,true,true,4,false]
[null,null,null,null,null,0,null,null,0,0,null,null,true,true,true,true,4,false]
[null,null,null,null,null,0,null,null,0,0,null,null,true,true,true,true,4,false]
[null,null,null,null,null,0,null,null,0,0,null,null,true,true,true,true,4,false]
[null,null,null,null,null,0,null,null,0,0,null,null,true,true,true,true,4,false]
[null,null,null,null,null,0,null,null,0,0,null,null,true,true,true,true,4,false]
[null,null,null,null,null,0,null,null,0,0,null,null,true,true,true,true,4,false]
[null,null,null,null,null,0,null,null,0,0,null,null,true,true,true,true,4,true]
[null,null,null,null,null,{"$f":"ROUND(D381*E381,2)","v":0},null,null,{"$f":"ROUND(G381*H381,2)","v":0},{"$f":"F381+I381","v":0},null,null,{"$f":"ISBLANK(B381)","v":true},{"$f":"ISBLANK(C381)","v":true},{"$f":"ISBLANK(D381)","v":true},{"$f":"ISBLANK(E381)","v":true},{"$f":"M381+N381+O381+P381","v":4},{"$f":"IF(Q381=0,TRUE,FALSE)","v":false}]
[null,null,null,null,null,{"$f":"ROUND(D382*E382,2)","v":0},null,null,0,{"$f":"F382+I382","v":0},null,null,{"$f":"ISBLANK(B382)","v":true},true,true,true,{"$f":"M382+N382+O382+P382","v":4},{"$f":"IF(Q382=0,TRUE,FALSE)","v":false}]
[null,null,null,null,null,0,null,null,0,0,null,null,true,true,true,true,4,false]
[null,null,null,null,null,0,null,null,0,0,null,null,true,true,true,true,4,false]
[null,null,null,null,null,0,null,null,0,0,null,null,true,true,true,true,4,false]
[null,null,null,null,null,0,null,null,0,0,null,null,true,true,true,true,4,false]
[null,null,null,null,null,0,null,null,0,0,null,null,true,true,true,true,4,false]
[null,null,null,null,null,0,null,null,0,0,null,null,true,true,true,true,4,false]
[null,null,null,null,null,0,null,null,0,0,null,null,true,true,true,true,4,false]
[null,null,null,null,null,0,null,null,0,0,null,null,true,true,true,true,4,true]
[null,"TOTAL",null,null,null,{"$f":"F370+F349","v":0},null,null,{"$f":"I370+I349","v":0},{"$f":"J370+J349","v":0},null,null,null,null,null,null,null,true]
[null,null,null,null,null,null,null,null,null,null,null,null,null,null,null,null,null,true]
[null,"BL6 - PROJECT PREPARATION","Unit","Expenditures in the eligible area",null,null,"N/A",null,null,"TOTAL",null,null,null,null,null,null,null,true]
[null,null,null,"Units","Unit rate","TOTAL","Units","Unit rate","TOTAL",null,null,null,null,null,null,null,null,true]
[null,"6.1.Preparation of Application package ",null,null,null,{"$f":"SUM(F396:F405)","v":0},null,null,{"$f":"SUM(I396:I405)","v":0},{"$f":"SUM(J396:J405)","v":0}]
[null,null,null,null,null,{"$f":"ROUND(D396*E396,2)","v":0},null,null,{"$f":"ROUND(G396*H396,2)","v":0},{"$f":"F396+I396","v":0},null,null,{"$f":"ISBLANK(B396)","v":true},{"$f":"ISBLANK(C396)","v":true},true,true,{"$f":"M396+N396+O396+P396","v":4},{"$f":"IF(Q396=0,TRUE,FALSE)","v":false}]
[null,null,null,null,null,{"$f":"ROUND(D397*E397,2)","v":0},null,null,0,{"$f":"F397+I397","v":0},null,null,{"$f":"ISBLANK(B397)","v":true},true,true,true,{"$f":"M397+N397+O397+P397","v":4},{"$f":"IF(Q397=0,TRUE,FALSE)","v":false}]
[null,null,null,null,null,0,null,null,0,0,null,null,true,true,true,true,4,false]
[null,null,null,null,null,0,null,null,0,0,null,null,true,true,true,true,4,false]
[null,null,null,null,null,0,null,null,0,0,null,null,true,true,true,true,4,false]
[null,null,null,null,null,0,null,null,0,0,null,null,true,true,true,true,4,false]
[null,null,null,null,null,0,null,null,0,0,null,null,true,true,true,true,4,false]
[null,null,null,null,null,0,null,null,0,0,null,null,true,true,true,true,4,false]
[null,null,null,null,null,0,null,null,0,0,null,null,true,true,true,true,4,false]
[null,null,null,null,null,0,null,null,0,0,null,null,true,true,true,true,4,true]
[null,"6.2 Preparation of technical documentation ",null,null,null,{"$f":"SUM(F407:F416)","v":0},null,null,{"$f":"SUM(I407:I416)","v":0},{"$f":"SUM(J407:J416)","v":0},null,null,{"$f":"ISBLANK(B406)","v":false},true,true,true,{"$f":"M406+N406+O406+P406","v":3},{"$f":"IF(Q406=0,TRUE,FALSE)","v":false}]
[null,null,null,null,null,{"$f":"ROUND(D407*E407,2)","v":0},null,null,{"$f":"ROUND(G407*H407,2)","v":0},{"$f":"F407+I407","v":0},null,null,{"$f":"ISBLANK(B407)","v":true}]
[null,null,null,null,null,0,null,null,0,0,null,null,{"$f":"ISBLANK(B408)","v":true},true,true,true,{"$f":"M408+N408+O408+P408","v":4},{"$f":"IF(Q408=0,TRUE,FALSE)","v":false}]
[null,null,null,null,null,0,null,null,0,0,null,null,true,true,true,true,4,false]
[null,null,null,null,null,0,null,null,0,0,null,null,true,true,true,true,4,false]
[null,null,null,null,null,0,null,null,0,0,null,null,true,true,true,true,4,false]
[null,null,null,null,null,0,null,null,0,0,null,null,true,true,true,true,4,false]
[null,null,null,null,null,0,null,null,0,0,null,null,true,true,true,true,4,false]
[null,null,null,null,null,0,null,null,0,0,null,null,true,true,true,true,4,false]
[null,null,null,null,null,0,null,null,0,0,null,null,true,true,true,true,4,false]
[null,null,null,null,null,0,null,null,0,0,null,null,true,true,true,true,4,false]
[null,"TOTAL",null,null,null,{"$f":"F395+F406","v":0},null,null,{"$f":"I395+I406","v":0},{"$f":"J395+J406","v":0},null,null,null,null,null,null,null,true]
[null,null,null,null,null,null,null,null,null,null,null,null,null,null,null,null,null,true]
[null,"Own Contribution",null,null,null,"Unit","Units","Unit rate","TOTAL",null,null,null,"Units out","Units rate out","Total out","Total in",null,true]
[null,null,null,null,null,null,null,null,{"$f":"ROUND(G420*H420,2)","v":0},null,null,null,null,null,null,null,null,true]
[null,null,null,"Expenditures outside the eligible area exceed 20 %! Reconsider budget distribution!",null,null,null,null,null,null,null,null,null,null,null,null,null,true]
[null,"Total direct project costs VAT incl. (BL3+BL4+BL5)",null,null,null,{"$f":"F391+F345+F89","v":0},{"$f":"I391+I89+I345","v":0},null,null,{"$f":"J391+J345+J89","v":0},null,null,null,null,null,null,null,true]
[null,"TOTAL PROJECT COSTS",null,null,null,{"$f":"F422+F417+I6+I11+I420","v":0},{"$f":"G422+I417","v":0},null,null,{"$f":"F423+G423","v":0},null,null,null,null,null,null,null,true]

{"sheet":"T2-B(PP3)","index":12,"n_rows":423,"n_cols":18,"rows_kept":423,"cut":false,"hidden":false,"merged":[[421,1,421,4],[421,6,421,8],[422,1,422,4],[422,6,422,8],[416,1,416,4],[416,6,416,7],[418,1,418,4],[418,8,418,9],[419,1,419,4],[419,8,419,9],[392,9,393,9],[390,1,390,4],[390,6,390,7],[392,1,393,1],[392,2,393,2],[392,3,392,5],[392,6,392,8],[344,1,344,4],[344,6,344,7],[346,1,347,1],[346,2,347,2],[346,3,346,5],[346,6,346,8],[345,3,345,9],[346,9,347,9],[90,1,91,1],[90,2,91,2],[90,3,90,5],[90,6,90,8],[90,9,91,9],[9,8,9,9],[10,1,10,7],[10,8,10,9],[12,1,13,1],[12,2,13,2],[12,3,12,5],[12,6,12,8],[12,9,13,9],[9,1,9,5],[9,6,9,7],[2,1,3,5],[2,6,2,7],[2,8,3,9],[3,6,3,7],[4,1,4,5],[4,6,4,7],[4,8,4,9],[5,1,5,7],[5,8,5,9],[7,1,8,5],[7,6,7,7],[7,8,8,9],[8,6,8,7]]}
[null,"TABLE 2 - DETAILED BREAKDOWN OF BUDGET LINES - PP3",null,null,null,null,null,null,null,null,null,null,null,null,null,null,null,true]
[null,null,null,null,null,null,null,null,null,null,null,null,null,null,null,null,null,true]
[null,"BL1 - STAFF COSTS",null,null,null,null,"Flat rate",null,"TOTAL",null,null,null,null,null,null,null,null,true]
[null,null,null,null,null,null,"%",null,null,null,null,null,null,null,null,null,null,true]
[null,{"$f":"M5","v":"Investment project"},null,null,null,null,0,null,{"$f":"ROUND(G5*J422/100,2)","v":0},null,null,"visible/hidden depending on project identification",{"$f":"CONCATENATE('Project identification'!C15,\" project\")","v":"Investment project"},null,null,null,10,true]
[null,"TOTAL",null,null,null,null,null,null,{"$f":"I5","v":0},null,null,null,null,null,{"$f":"IF(M8=\"Soft\",15,10)","v":10},null,15,true]
[null,null,null,null,null,null,null,null,null,null,null,null,null,null,null,null,null,true]
[null,"BL2 - OFFICE AND ADMINISTRATIVE COSTS",null,null,null,null,"Flat rate",null,"TOTAL",null,null,null,{"$f":"'Project identification'!C15","v":"Investment"},null,null,null,null,true]
[null,null,null,null,null,null,"%",null,null,null,null,null,null,null,null,null,null,true]
[null,{"$f":"M5","v":"Investment project"},null,null,null,null,0,null,{"$f":"ROUND(G10*I5/100,2)","v":0},null,null,"visible/hidden depending on project identification",null,null,null,null,2,true]
[null,"TOTAL",null,null,null,null,null,null,{"$f":"I10","v":0},null,null,null,null,null,{"$f":"IF(M8=\"Soft\",20,15)","v":15},null,5,true]
[null,null,null,null,null,null,null,null,null,null,null,null,null,null,null,null,null,true]
[null,"BL3 - TRAVEL AND ACCOMMODATION","Unit","Expenditures in the eligible area",null,null,"Expenditures outside of the eligible area",null,null,"TOTAL",null,null,null,null,null,null,null,true]
[null,null,null,"Units","Unit rate","TOTAL","Units","Unit rate","TOTAL",null,null,null,null,null,null,null,null,true]
[null,"3.1 Travel costs",null,null,null,{"$f":"SUM(F16:F35)","v":0},null,null,{"$f":"SUM(I16:I35)","v":0},{"$f":"SUM(J16:J35)","v":0},null,"Add",null,null,null,null,null,true]
[null,null,null,null,null,{"$f":"ROUND(D16*E16,2)","v":0},null,null,{"$f":"ROUND(G16*H16,2)","v":0},{"$f":"F16+I16","v":0},null,null,{"$f":"ISBLANK(B16)","v":true},{"$f":"ISBLANK(C16)","v":true},{"$f":"ISBLANK(D16)","v":true},{"$f":"ISBLANK(E16)","v":true},{"$f":"M16+N16+O16+P16","v":4},{"$f":"IF(Q16=0,TRUE,FALSE)","v":false}]
[null,null,null,null,null,0,null,null,0,0,null,null,true,true,true,true,4,false]
[null,null,null,null,null,0,null,null,0,0,null,null,true,true,true,true,4,false]
[null,null,null,null,null,0,null,null,0,0,null,null,true,true,true,true,4,false]
[null,null,null,null,null,0,null,null,0,0,null,null,true,true,true,true,4,false]
[null,null,null,null,null,0,null,null,0,0,null,null,true,true,true,true,4,false]
[null,null,null,null,null,0,null,null,0,0,null,null,true,true,true,true,4,false]
[null,null,null,null,null,0,null,null,0,0,null,null,true,true,true,true,4,false]
[null,null,null,null,null,0,null,null,0,0,null,null,true,true,true,true,4,false]
[null,null,null,null,null,0,null,null,0,0,null,null,true,true,true,true,4,false]
[null,null,null,null,null,{"$f":"ROUND(D26*E26,2)","v":0},null,null,{"$f":"ROUND(G26*H26,2)","v":0},{"$f":"F26+I26","v":0},null,null,{"$f":"ISBLANK(B26)","v":true},{"$f":"ISBLANK(C26)","v":true},{"$f":"ISBLANK(D26)","v":true},{"$f":"ISBLANK(E26)","v":true},{"$f":"M26+N26+O26+P26","v":4},{"$f":"IF(Q26=0,TRUE,FALSE)","v":false}]
[null,null,null,null,null,0,null,null,0,0,null,null,true,true,true,true,4,false]
[null,null,null,null,null,0,null,null,0,0,null,null,true,true,true,true,4,false]
[null,null,null,null,null,0,null,null,0,0,null,null,true,true,true,true,4,false]
[null,null,null,null,null,0,null,null,0,0,null,null,true,true,true,true,4,false]
[null,null,null,null,null,0,null,null,0,0,null,null,true,true,true,true,4,false]
[null,null,null,null,null,0,null,null,0,0,null,null,true,true,true,true,4,false]
[null,null,null,null,null,0,null,null,0,0,null,null,true,true,true,true,4,false]
[null,null,null,null,null,0,null,null,0,0,null,null,true,true,true,true,4,false]
[null,null,null,null,null,0,null,null,0,0,null,null,true,true,true,true,4,false]
[null,"3.2 Daily allowances",null,null,null,{"$f":"SUM(F37:F56)","v":0},null,null,{"$f":"SUM(I37:I56)","v":0},{"$f":"SUM(J37:J56)","v":0},null,"add (10 items)",null,null,null,null,null,true]
[null,null,null,null,null,{"$f":"ROUND(D37*E37,2)","v":0},null,null,{"$f":"ROUND(G37*H37,2)","v":0},{"$f":"F37+I37","v":0},null,null,{"$f":"ISBLANK(B37)","v":true},{"$f":"ISBLANK(C37)","v":true},true,true,{"$f":"M37+N37+O37+P37","v":4},{"$f":"IF(Q37=0,TRUE,FALSE)","v":false}]
[null,null,null,null,null,{"$f":"ROUND(D38*E38,2)","v":0},null,null,0,{"$f":"F38+I38","v":0},null,null,{"$f":"ISBLANK(B38)","v":true},true,true,true,{"$f":"M38+N38+O38+P38","v":4},{"$f":"IF(Q38=0,TRUE,FALSE)","v":false}]
[null,null,null,null,null,0,null,null,0,0,null,null,true,true,true,true,4,false]
[null,null,null,null,null,0,null,null,0,0,null,null,true,true,true,true,4,false]
[null,null,null,null,null,0,null,null,0,0,null,null,true,true,true,true,4,false]
[null,null,null,null,null,0,null,null,0,0,null,null,true,true,true,true,4,false]
[null,null,null,null,null,0,null,null,0,0,null,null,true,true,true,true,4,false]
[null,null,null,null,null,0,null,null,0,0,null,null,true,true,true,true,4,false]
[null,null,null,null,null,0,null,null,0,0,null,null,true,true,true,true,4,false]
[null,null,null,null,null,0,null,null,0,0,null,null,true,true,true,true,4,true]
[null,null,null,null,null,{"$f":"ROUND(D47*E47,2)","v":0},null,null,{"$f":"ROUND(G47*H47,2)","v":0},{"$f":"F47+I47","v":0},null,null,{"$f":"ISBLANK(B47)","v":true},{"$f":"ISBLANK(C47)","v":true},{"$f":"ISBLANK(D47)","v":true},{"$f":"ISBLANK(E47)","v":true},{"$f":"M47+N47+O47+P47","v":4},{"$f":"IF(Q47=0,TRUE,FALSE)","v":false}]
[null,null,null,null,null,{"$f":"ROUND(D48*E48,2)","v":0},null,null,0,{"$f":"F48+I48","v":0},null,null,{"$f":"ISBLANK(B48)","v":true},true,true,true,{"$f":"M48+N48+O48+P48","v":4},{"$f":"IF(Q48=0,TRUE,FALSE)","v":false}]
[null,null,null,null,null,0,null,null,0,0,null,null,true,true,true,true,4,false]
[null,null,null,null,null,0,null,null,0,0,null,null,true,true,true,true,4,false]
[null,null,null,null,null,0,null,null,0,0,null,null,true,true,true,true,4,false]
[null,null,null,null,null,0,null,null,0,0,null,null,true,true,true,true,4,false]
[null,null,null,null,null,0,null,null,0,0,null,null,true,true,true,true,4,false]
[null,null,null,null,null,0,null,null,0,0,null,null,true,true,true,true,4,false]
[null,null,null,null,null,0,null,null,0,0,null,null,true,true,true,true,4,false]
[null,null,null,null,null,0,null,null,0,0,null,null,true,true,true,true,4,true]
[null,"3.3 Accommodation costs",null,null,null,{"$f":"SUM(F58:F77)","v":0},null,null,{"$f":"SUM(I58:I77)","v":0},{"$f":"SUM(J58:J77)","v":0},null,null,null,null,null,null,null,true]
[null,null,null,null,null,{"$f":"ROUND(D58*E58,2)","v":0},null,null,{"$f":"ROUND(G58*H58,2)","v":0},{"$f":"F58+I58","v":0},null,null,{"$f":"ISBLANK(B58)","v":true},{"$f":"ISBLANK(C58)","v":true},true,true,{"$f":"M58+N58+O58+P58","v":4},{"$f":"IF(Q58=0,TRUE,FALSE)","v":false}]
[null,null,null,null,null,{"$f":"ROUND(D59*E59,2)","v":0},null,null,0,{"$f":"F59+I59","v":0},null,null,{"$f":"ISBLANK(B59)","v":true},true,true,true,{"$f":"M59+N59+O59+P59","v":4},{"$f":"IF(Q59=0,TRUE,FALSE)","v":false}]
[null,null,null,null,null,0,null,null,0,0,null,null,true,true,true,true,4,false]
[null,null,null,null,null,0,null,null,0,0,null,null,true,true,true,true,4,false]
[null,null,null,null,null,0,null,null,0,0,null,null,true,true,true,true,4,false]
[null,null,null,null,null,0,null,null,0,0,null,null,true,true,true,true,4,false]
[null,null,null,null,null,0,null,null,0,0,null,null,true,true,true,true,4,false]
[null,null,null,null,null,0,null,null,0,0,null,null,true,true,true,true,4,false]
[null,null,null,null,null,0,null,null,0,0,null,null,true,true,true,true,4,false]
[null,null,null,null,null,0,null,null,0,0,null,null,true,true,true,true,4,true]
[null,null,null,null,null,{"$f":"ROUND(D68*E68,2)","v":0},null,null,{"$f":"ROUND(G68*H68,2)","v":0},{"$f":"F68+I68","v":0},null,null,{"$f":"ISBLANK(B68)","v":true},{"$f":"ISBLANK(C68)","v":true},{"$f":"ISBLANK(D68)","v":true},{"$f":"ISBLANK(E68)","v":true},{"$f":"M68+N68+O68+P68","v":4},{"$f":"IF(Q68=0,TRUE,FALSE)","v":false}]
[null,null,null,null,null,{"$f":"ROUND(D69*E69,2)","v":0},null,null,0,{"$f":"F69+I69","v":0},null,null,{"$f":"ISBLANK(B69)","v":true},true,true,true,{"$f":"M69+N69+O69+P69","v":4},{"$f":"IF(Q69=0,TRUE,FALSE)","v":false}]
[null,null,null,null,null,0,null,null,0,0,null,null,true,true,true,true,4,false]
[null,null,null,null,null,0,null,null,0,0,null,null,true,true,true,true,4,false]
[null,null,null,null,null,0,null,null,0,0,null,null,true,true,true,true,4,false]
[null,null,null,null,null,0,null,null,0,0,null,null,true,true,true,true,4,false]
[null,null,null,null,null,0,null,null,0,0,null,null,true,true,true,true,4,false]
[null,null,null,null,null,0,null,null,0,0,null,null,true,true,true,true,4,false]
[null,null,null,null,null,0,null,null,0,0,null,null,true,true,true,true,4,false]
[null,null,null,null,null,0,null,null,0,0,null,null,true,true,true,true,4,true]
[null,"3.4 Visa costs",null,null,null,{"$f":"SUM(F79:F88)","v":0},null,null,{"$f":"SUM(I79:I88)","v":0},{"$f":"SUM(J79:J88)","v":0},null,null,null,null,null,null,null,true]
[null,null,null,null,null,{"$f":"ROUND(D79*E79,2)","v":0},null,null,{"$f":"ROUND(G79*H79,2)","v":0},{"$f":"F79+I79","v":0},null,null,{"$f":"ISBLANK(B79)","v":true},{"$f":"ISBLANK(C79)","v":true},true,true,{"$f":"M79+N79+O79+P79","v":4},{"$f":"IF(Q79=0,TRUE,FALSE)","v":false}]
[null,null,null,null,null,{"$f":"ROUND(D80*E80,2)","v":0},null,null,0,{"$f":"F80+I80","v":0},null,null,{"$f":"ISBLANK(B80)","v":true},true,true,true,{"$f":"M80+N80+O80+P80","v":4},{"$f":"IF(Q80=0,TRUE,FALSE)","v":false}]
[null,null,null,null,null,0,null,null,0,0,null,null,true,true,true,true,4,false]
[null,null,null,null,null,0,null,null,0,0,null,null,true,true,true,true,4,false]
[null,null,null,null,null,0,null,null,0,0,null,null,true,true,true,true,4,false]
[null,null,null,null,null,0,null,null,0,0,null,null,true,true,true,true,4,false]
[null,null,null,null,null,0,null,null,0,0,null,null,true,true,true,true,4,false]
[null,null,null,null,null,0,null,null,0,0,null,null,true,true,true,true,4,false]
[null,null,null,null,null,0,null,null,0,0,null,null,true,true,true,true,4,false]
[null,null,null,null,null,0,null,null,0,0,null,null,true,true,true,true,4,true]
[null,"TOTAL",null,null,null,{"$f":"F78+F57+F36+F15","v":0},null,null,{"$f":"I78+I57+I36+I15","v":0},{"$f":"J78+J57+J36+J15","v":0},null,null,null,null,null,null,null,true]
[null,null,null,null,null,null,null,null,null,null,null,null,null,null,null,null,null,true]
[null,"BL4 - EXTERNAL EXPERTISE AND SERVICES COSTS","Unit","Expenditures in the eligible area",null,null,"Expenditures outside of the eligible area",null,null,"TOTAL",null,null,null,null,null,null,null,true]
[null,null,null,"Units","Unit rate","TOTAL","Units","Unit rate","TOTAL",null,null,null,null,null,null,null,null,true]
[null,"4.1 Rent of hall",null,null,null,{"$f":"SUM(F94:F113)","v":0},null,null,{"$f":"SUM(I94:I113)","v":0},{"$f":"SUM(J94:J113)","v":0},null,null,null,null,null,null,null,true]
[null,null,null,null,null,{"$f":"ROUND(D94*E94,2)","v":0},null,null,{"$f":"ROUND(G94*H94,2)","v":0},{"$f":"F94+I94","v":0},null,null,{"$f":"ISBLANK(B94)","v":true},{"$f":"ISBLANK(C94)","v":true},true,true,{"$f":"M94+N94+O94+P94","v":4},{"$f":"IF(Q94=0,TRUE,FALSE)","v":false}]
[null,null,null,null,null,{"$f":"ROUND(D95*E95,2)","v":0},null,null,0,{"$f":"F95+I95","v":0},null,null,{"$f":"ISBLANK(B95)","v":true},true,true,true,{"$f":"M95+N95+O95+P95","v":4},{"$f":"IF(Q95=0,TRUE,FALSE)","v":false}]
[null,null,null,null,null,0,null,null,0,0,null,null,true,true,true,true,4,false]
[null,null,null,null,null,0,null,null,0,0,null,null,true,true,true,true,4,false]
[null,null,null,null,null,0,null,null,0,0,null,null,true,true,true,true,4,false]
[null,null,null,null,null,0,null,null,0,0,null,null,true,true,true,true,4,false]
[null,null,null,null,null,0,null,null,0,0,null,null,true,true,true,true,4,false]
[null,null,null,null,null,0,null,null,0,0,null,null,true,true,true,true,4,false]
[null,null,null,null,null,0,null,null,0,0,null,null,true,true,true,true,4,false]
[null,null,null,null,null,0,null,null,0,0,null,null,true,true,true,true,4,true]
[null,null,null,null,null,{"$f":"ROUND(D104*E104,2)","v":0},null,null,{"$f":"ROUND(G104*H104,2)","v":0},{"$f":"F104+I104","v":0},null,null,{"$f":"ISBLANK(B104)","v":true},{"$f":"ISBLANK(C104)","v":true},{"$f":"ISBLANK(D104)","v":true},{"$f":"ISBLANK(E104)","v":true},{"$f":"M104+N104+O104+P104","v":4},{"$f":"IF(Q104=0,TRUE,FALSE)","v":false}]
[null,null,null,null,null,{"$f":"ROUND(D105*E105,2)","v":0},null,null,0,{"$f":"F105+I105","v":0},null,null,{"$f":"ISBLANK(B105)","v":true},true,true,true,{"$f":"M105+N105+O105+P105","v":4},{"$f":"IF(Q105=0,TRUE,FALSE)","v":false}]
[null,null,null,null,null,0,null,null,0,0,null,null,true,true,true,true,4,false]
[null,null,null,null,null,0,null,null,0,0,null,null,true,true,true,true,4,false]
[null,null,null,null,null,0,null,null,0,0,null,null,true,true,true,true,4,false]
[null,null,null,null,null,0,null,null,0,0,null,null,true,true,true,true,4,false]
[null,null,null,null,null,0,null,null,0,0,null,null,true,true,true,true,4,false]
[null,null,null,null,null,0,null,null,0,0,null,null,true,true,true,true,4,false]
[null,null,null,null,null,0,null,null,0,0,null,null,true,true,true,true,4,false]
[null,null,null,null,null,0,null,null,0,0,null,null,true,true,true,true,4,true]
[null,"4.2 Rent of equipment",null,null,null,{"$f":"SUM(F115:F134)","v":0},null,null,{"$f":"SUM(I115:I134)","v":0},{"$f":"SUM(J115:J134)","v":0},null,null,null,null,null,null,null,true]
[null,null,null,null,null,{"$f":"ROUND(D115*E115,2)","v":0},null,null,{"$f":"ROUND(G115*H115,2)","v":0},{"$f":"F115+I115","v":0},null,null,{"$f":"ISBLANK(B115)","v":true},{"$f":"ISBLANK(C115)","v":true},true,true,{"$f":"M115+N115+O115+P115","v":4},{"$f":"IF(Q115=0,TRUE,FALSE)","v":false}]
[null,null,null,null,null,{"$f":"ROUND(D116*E116,2)","v":0},null,null,0,{"$f":"F116+I116","v":0},null,null,{"$f":"ISBLANK(B116)","v":true},true,true,true,{"$f":"M116+N116+O116+P116","v":4},{"$f":"IF(Q116=0,TRUE,FALSE)","v":false}]
[null,null,null,null,null,0,null,null,0,0,null,null,true,true,true,true,4,false]
[null,null,null,null,null,0,null,null,0,0,null,null,true,true,true,true,4,false]
[null,null,null,null,null,0,null,null,0,0,null,null,true,true,true,true,4,false]
[null,null,null,null,null,0,null,null,0,0,null,null,true,true,true,true,4,false]
[null,null,null,null,null,0,null,null,0,0,null,null,true,true,true,true,4,false]
[null,null,null,null,null,0,null,null,0,0,null,null,true,true,true,true,4,false]
[null,null,null,null,null,0,null,null,0,0,null,null,true,true,true,true,4,false]
[null,null,null,null,null,0,null,null,0,0,null,null,true,true,true,true,4,true]
[null,null,null,null,null,{"$f":"ROUND(D125*E125,2)","v":0},null,null,{"$f":"ROUND(G125*H125,2)","v":0},{"$f":"F125+I125","v":0},null,null,{"$f":"ISBLANK(B125)","v":true},{"$f":"ISBLANK(C125)","v":true},{"$f":"ISBLANK(D125)","v":true},{"$f":"ISBLANK(E125)","v":true},{"$f":"M125+N125+O125+P125","v":4},{"$f":"IF(Q125=0,TRUE,FALSE)","v":false}]
[null,null,null,null,null,{"$f":"ROUND(D126*E126,2)","v":0},null,null,0,{"$f":"F126+I126","v":0},null,null,{"$f":"ISBLANK(B126)","v":true},true,true,true,{"$f":"M126+N126+O126+P126","v":4},{"$f":"IF(Q126=0,TRUE,FALSE)","v":false}]
[null,null,null,null,null,0,null,null,0,0,null,null,true,true,true,true,4,false]
[null,null,null,null,null,0,null,null,0,0,null,null,true,true,true,true,4,false]
[null,null,null,null,null,0,null,null,0,0,null,null,true,true,true,true,4,false]
[null,null,null,null,null,0,null,null,0,0,null,null,true,true,true,true,4,false]
[null,null,null,null,null,0,null,null,0,0,null,null,true,true,true,true,4,false]
[null,null,null,null,null,0,null,null,0,0,null,null,true,true,true,true,4,false]
[null,null,null,null,null,0,null,null,0,0,null,null,true,true,true,true,4,false]
[null,null,null,null,null,0,null,null,0,0,null,null,true,true,true,true,4,true]
[null,"4.3 Coffee breaks, refreshments, etc.",null,null,null,{"$f":"SUM(F136:F155)","v":0},null,null,{"$f":"SUM(I136:I155)","v":0},{"$f":"SUM(J136:J155)","v":0},null,null,null,null,null,null,null,true]
[null,null,null,null,null,{"$f":"ROUND(D136*E136,2)","v":0},null,null,{"$f":"ROUND(G136*H136,2)","v":0},{"$f":"F136+I136","v":0},null,null,{"$f":"ISBLANK(B136)","v":true},{"$f":"ISBLANK(C136)","v":true},true,true,{"$f":"M136+N136+O136+P136","v":4},{"$f":"IF(Q136=0,TRUE,FALSE)","v":false}]
[null,null,null,null,null,{"$f":"ROUND(D137*E137,2)","v":0},null,null,0,{"$f":"F137+I137","v":0},null,null,{"$f":"ISBLANK(B137)","v":true},true,true,true,{"$f":"M137+N137+O137+P137","v":4},{"$f":"IF(Q137=0,TRUE,FALSE)","v":false}]
[null,null,null,null,null,0,null,null,0,0,null,null,true,true,true,true,4,false]
[null,null,null,null,null,0,null,null,0,0,null,null,true,true,true,true,4,false]
[null,null,null,null,null,0,null,null,0,0,null,null,true,true,true,true,4,false]
[null,null,null,null,null,0,null,null,0,0,null,null,true,true,true,true,4,false]
[null,null,null,null,null,0,null,null,0,0,null,null,true,true,true,true,4,false]
[null,null,null,null,null,0,null,null,0,0,null,null,true,true,true,true,4,false]
[null,null,null,null,null,0,null,null,0,0,null,null,true,true,true,true,4,false]
[null,null,null,null,null,0,null,null,0,0,null,null,true,true,true,true,4,true]
[null,null,null,null,null,{"$f":"ROUND(D146*E146,2)","v":0},null,null,{"$f":"ROUND(G146*H146,2)","v":0},{"$f":"F146+I146","v":0},null,null,{"$f":"ISBLANK(B146)","v":true},{"$f":"ISBLANK(C146)","v":true},{"$f":"ISBLANK(D146)","v":true},{"$f":"ISBLANK(E146)","v":true},{"$f":"M146+N146+O146+P146","v":4},{"$f":"IF(Q146=0,TRUE,FALSE)","v":false}]
[null,null,null,null,null,{"$f":"ROUND(D147*E147,2)","v":0},null,null,0,{"$f":"F147+I147","v":0},null,null,{"$f":"ISBLANK(B147)","v":true},true,true,true,{"$f":"M147+N147+O147+P147","v":4},{"$f":"IF(Q147=0,TRUE,FALSE)","v":false}]
[null,null,null,null,null,0,null,null,0,0,null,null,true,true,true,true,4,false]
[null,null,null,null,null,0,null,null,0,0,null,null,true,true,true,true,4,false]
[null,null,null,null,null,0,null,null,0,0,null,null,true,true,true,true,4,false]
[null,null,null,null,null,0,null,null,0,0,null,null,true,true,true,true,4,false]
[null,null,null,null,null,0,null,null,0,0,null,null,true,true,true,true,4,false]
[null,null,null,null,null,0,null,null,0,0,null,null,true,true,true,true,4,false]
[null,null,null,null,null,0,null,null,0,0,null,null,true,true,true,true,4,false]
[null,null,null,null,null,0,null,null,0,0,null,null,true,true,true,true,4,true]
[null,"4.4 Consumables",null,null,null,{"$f":"SUM(F157:F176)","v":0},null,null,{"$f":"SUM(I157:I176)","v":0},{"$f":"SUM(J157:J176)","v":0},null,null,null,null,null,null,null,true]
[null,null,null,null,null,{"$f":"ROUND(D157*E157,2)","v":0},null,null,{"$f":"ROUND(G157*H157,2)","v":0},{"$f":"F157+I157","v":0},null,null,{"$f":"ISBLANK(B157)","v":true},{"$f":"ISBLANK(C157)","v":true},true,true,{"$f":"M157+N157+O157+P157","v":4},{"$f":"IF(Q157=0,TRUE,FALSE)","v":false}]
[null,null,null,null,null,{"$f":"ROUND(D158*E158,2)","v":0},null,null,0,{"$f":"F158+I158","v":0},null,null,{"$f":"ISBLANK(B158)","v":true},true,true,true,{"$f":"M158+N158+O158+P158","v":4},{"$f":"IF(Q158=0,TRUE,FALSE)","v":false}]
[null,null,null,null,null,0,null,null,0,0,null,null,true,true,true,true,4,false]
[null,null,null,null,null,0,null,null,0,0,null,null,true,true,true,true,4,false]
[null,null,null,null,null,0,null,null,0,0,null,null,true,true,true,true,4,false]
[null,null,null,null,null,0,null,null,0,0,null,null,true,true,true,true,4,false]
[null,null,null,null,null,0,null,null,0,0,null,null,true,true,true,true,4,false]
[null,null,null,null,null,0,null,null,0,0,null,null,true,true,true,true,4,false]
[null,null,null,null,null,0,null,null,0,0,null,null,true,true,true,true,4,false]
[null,null,null,null,null,0,null,null,0,0,null,null,true,true,true,true,4,true]
[null,null,null,null,null,{"$f":"ROUND(D167*E167,2)","v":0},null,null,{"$f":"ROUND(G167*H167,2)","v":0},{"$f":"F167+I167","v":0},null,null,{"$f":"ISBLANK(B167)","v":true},{"$f":"ISBLANK(C167)","v":true},{"$f":"ISBLANK(D167)","v":true},{"$f":"ISBLANK(E167)","v":true},{"$f":"M167+N167+O167+P167","v":4},{"$f":"IF(Q167=0,TRUE,FALSE)","v":false}]
[null,null,null,null,null,{"$f":"ROUND(D168*E168,2)","v":0},null,null,0,{"$f":"F168+I168","v":0},null,null,{"$f":"ISBLANK(B168)","v":true},true,true,true,{"$f":"M168+N168+O168+P168","v":4},{"$f":"IF(Q168=0,TRUE,FALSE)","v":false}]
[null,null,null,null,null,0,null,null,0,0,null,null,true,true,true,true,4,false]
[null,null,null,null,null,0,null,null,0,0,null,null,true,true,true,true,4,false]
[null,null,null,null,null,0,null,null,0,0,null,null,true,true,true,true,4,false]
[null,null,null,null,null,0,null,null,0,0,null,null,true,true,true,true,4,false]
[null,null,null,null,null,0,null,null,0,0,null,null,true,true,true,true,4,false]
[null,null,null,null,null,0,null,null,0,0,null,null,true,true,true,true,4,false]
[null,null,null,null,null,0,null,null,0,0,null,null,true,true,true,true,4,false]
[null,null,null,null,null,0,null,null,0,0,null,null,true,true,true,true,4,true]
[null,"4.5 Rent of vehicle for event",null,null,null,{"$f":"SUM(F178:F197)","v":0},null,null,{"$f":"SUM(I178:I197)","v":0},{"$f":"SUM(J178:J197)","v":0},null,null,null,null,null,null,null,true]
[null,null,null,null,null,{"$f":"ROUND(D178*E178,2)","v":0},null,null,{"$f":"ROUND(G178*H178,2)","v":0},{"$f":"F178+I178","v":0},null,null,{"$f":"ISBLANK(B178)","v":true},{"$f":"ISBLANK(C178)","v":true},true,true,{"$f":"M178+N178+O178+P178","v":4},{"$f":"IF(Q178=0,TRUE,FALSE)","v":false}]
[null,null,null,null,null,{"$f":"ROUND(D179*E179,2)","v":0},null,null,0,{"$f":"F179+I179","v":0},null,null,{"$f":"ISBLANK(B179)","v":true},true,true,true,{"$f":"M179+N179+O179+P179","v":4},{"$f":"IF(Q179=0,TRUE,FALSE)","v":false}]
[null,null,null,null,null,0,null,null,0,0,null,null,true,true,true,true,4,false]
[null,null,null,null,null,0,null,null,0,0,null,null,true,true,true,true,4,false]
[null,null,null,null,null,0,null,null,0,0,null,null,true,true,true,true,4,false]
[null,null,null,null,null,0,null,null,0,0,null,null,true,true,true,true,4,false]
[null,null,null,null,null,0,null,null,0,0,null,null,true,true,true,true,4,false]
[null,null,null,null,null,0,null,null,0,0,null,null,true,true,true,true,4,false]
[null,null,null,null,null,0,null,null,0,0,null,null,true,true,true,true,4,false]
[null,null,null,null,null,0,null,null,0,0,null,null,true,true,true,true,4,true]
[null,null,null,null,null,{"$f":"ROUND(D188*E188,2)","v":0},null,null,{"$f":"ROUND(G188*H188,2)","v":0},{"$f":"F188+I188","v":0},null,null,{"$f":"ISBLANK(B188)","v":true},{"$f":"ISBLANK(C188)","v":true},{"$f":"ISBLANK(D188)","v":true},{"$f":"ISBLANK(E188)","v":true},{"$f":"M188+N188+O188+P188","v":4},{"$f":"IF(Q188=0,TRUE,FALSE)","v":false}]
[null,null,null,null,null,{"$f":"ROUND(D189*E189,2)","v":0},null,null,0,{"$f":"F189+I189","v":0},null,null,{"$f":"ISBLANK(B189)","v":true},true,true,true,{"$f":"M189+N189+O189+P189","v":4},{"$f":"IF(Q189=0,TRUE,FALSE)","v":false}]
[null,null,null,null,null,0,null,null,0,0,null,null,true,true,true,true,4,false]
[null,null,null,null,null,0,null,null,0,0,null,null,true,true,true,true,4,false]
[null,null,null,null,null,0,null,null,0,0,null,null,true,true,true,true,4,false]
[null,null,null,null,null,0,null,null,0,0,null,null,true,true,true,true,4,false]
[null,null,null,null,null,0,null,null,0,0,null,null,true,true,true,true,4,false]
[null,null,null,null,null,0,null,null,0,0,null,null,true,true,true,true,4,false]
[null,null,null,null,null,0,null,null,0,0,null,null,true,true,true,true,4,false]
[null,null,null,null,null,0,null,null,0,0,null,null,true,true,true,true,4,true]
[null,"4.6 Accommodations for participants in the events ",null,null,null,{"$f":"SUM(F199:F218)","v":0},null,null,{"$f":"SUM(I199:I218)","v":0},{"$f":"SUM(J199:J218)","v":0},null,null,null,null,null,null,null,true]
[null,null,null,null,null,{"$f":"ROUND(D199*E199,2)","v":0},null,null,{"$f":"ROUND(G199*H199,2)","v":0},{"$f":"F199+I199","v":0},null,null,{"$f":"ISBLANK(B199)","v":true},{"$f":"ISBLANK(C199)","v":true},true,true,{"$f":"M199+N199+O199+P199","v":4},{"$f":"IF(Q199=0,TRUE,FALSE)","v":false}]
[null,null,null,null,null,{"$f":"ROUND(D200*E200,2)","v":0},null,null,0,{"$f":"F200+I200","v":0},null,null,{"$f":"ISBLANK(B200)","v":true},true,true,true,{"$f":"M200+N200+O200+P200","v":4},{"$f":"IF(Q200=0,TRUE,FALSE)","v":false}]
[null,null,null,null,null,0,null,null,0,0,null,null,true,true,true,true,4,false]
[null,null,null,null,null,0,null,null,0,0,null,null,true,true,true,true,4,false]
[null,null,null,null,null,0,null,null,0,0,null,null,true,true,true,true,4,false]
[null,null,null,null,null,0,null,null,0,0,null,null,true,true,true,true,4,false]
[null,null,null,null,null,0,null,null,0,0,null,null,true,true,true,true,4,false]
[null,null,null,null,null,0,null,null,0,0,null,null,true,true,true,true,4,false]
[null,null,null,null,null,0,null,null,0,0,null,null,true,true,true,true,4,false]
[null,null,null,null,null,0,null,null,0,0,null,null,true,true,true,true,4,true]
[null,null,null,null,null,{"$f":"ROUND(D209*E209,2)","v":0},null,null,{"$f":"ROUND(G209*H209,2)","v":0},{"$f":"F209+I209","v":0},null,null,{"$f":"ISBLANK(B209)","v":true},{"$f":"ISBLANK(C209)","v":true},{"$f":"ISBLANK(D209)","v":true},{"$f":"ISBLANK(E209)","v":true},{"$f":"M209+N209+O209+P209","v":4},{"$f":"IF(Q209=0,TRUE,FALSE)","v":false}]
[null,null,null,null,null,{"$f":"ROUND(D210*E210,2)","v":0},null,null,0,{"$f":"F210+I210","v":0},null,null,{"$f":"ISBLANK(B210)","v":true},true,true,true,{"$f":"M210+N210+O210+P210","v":4},{"$f":"IF(Q210=0,TRUE,FALSE)","v":false}]
[null,null,null,null,null,0,null,null,0,0,null,null,true,true,true,true,4,false]
[null,null,null,null,null,0,null,null,0,0,null,null,true,true,true,true,4,false]
[null,null,null,null,null,0,null,null,0,0,null,null,true,true,true,true,4,false]
[null,null,null,null,null,0,null,null,0,0,null,null,true,true,true,true,4,false]
[null,null,null,null,null,0,null,null,0,0,null,null,true,true,true,true,4,false]
[null,null,null,null,null,0,null,null,0,0,null,null,true,true,true,true,4,false]
[null,null,null,null,null,0,null,null,0,0,null,null,true,true,true,true,4,false]
[null,null,null,null,null,0,null,null,0,0,null,null,true,true,true,true,4,true]
[null,"4.7 Elaboration, design,translation etc.",null,null,null,{"$f":"SUM(F220:F239)","v":0},null,null,{"$f":"SUM(I220:I239)","v":0},{"$f":"SUM(J220:J239)","v":0},null,null,null,{"$f":"ISBLANK(C219)","v":true},null,null,null,true]
[null,null,null,null,null,{"$f":"ROUND(D220*E220,2)","v":0},null,null,{"$f":"ROUND(G220*H220,2)","v":0},{"$f":"F220+I220","v":0},null,null,{"$f":"ISBLANK(B220)","v":true},{"$f":"ISBLANK(C220)","v":true},true,true,{"$f":"M220+N220+O220+P220","v":4},{"$f":"IF(Q220=0,TRUE,FALSE)","v":false}]
[null,null,null,null,null,{"$f":"ROUND(D221*E221,2)","v":0},null,null,0,{"$f":"F221+I221","v":0},null,null,{"$f":"ISBLANK(B221)","v":true},true,true,true,{"$f":"M221+N221+O221+P221","v":4},{"$f":"IF(Q221=0,TRUE,FALSE)","v":false}]
[null,null,null,null,null,0,null,null,0,0,null,null,true,true,true,true,4,false]
[null,null,null,null,null,0,null,null,0,0,null,null,true,true,true,true,4,false]
[null,null,null,null,null,0,null,null,0,0,null,null,true,true,true,true,4,false]
[null,null,null,null,null,0,null,null,0,0,null,null,true,true,true,true,4,false]
[null,null,null,null,null,0,null,null,0,0,null,null,true,true,true,true,4,false]
[null,null,null,null,null,0,null,null,0,0,null,null,true,true,true,true,4,false]
[null,null,null,null,null,0,null,null,0,0,null,null,true,true,true,true,4,false]
[null,null,null,null,null,0,null,null,0,0,null,null,true,true,true,true,4,true]
[null,null,null,null,null,{"$f":"ROUND(D230*E230,2)","v":0},null,null,{"$f":"ROUND(G230*H230,2)","v":0},{"$f":"F230+I230","v":0},null,null,{"$f":"ISBLANK(B230)","v":true},{"$f":"ISBLANK(C230)","v":true},{"$f":"ISBLANK(D230)","v":true},{"$f":"ISBLANK(E230)","v":true},{"$f":"M230+N230+O230+P230","v":4},{"$f":"IF(Q230=0,TRUE,FALSE)","v":false}]
[null,null,null,null,null,{"$f":"ROUND(D231*E231,2)","v":0},null,null,0,{"$f":"F231+I231","v":0},null,null,{"$f":"ISBLANK(B231)","v":true},true,true,true,{"$f":"M231+N231+O231+P231","v":4},{"$f":"IF(Q231=0,TRUE,FALSE)","v":false}]
[null,null,null,null,null,0,null,null,0,0,null,null,true,true,true,true,4,false]
[null,null,null,null,null,0,null,null,0,0,null,null,true,true,true,true,4,false]
[null,null,null,null,null,0,null,null,0,0,null,null,true,true,true,true,4,false]
[null,null,null,null,null,0,null,null,0,0,null,null,true,true,true,true,4,false]
[null,null,null,null,null,0,null,null,0,0,null,null,true,true,true,true,4,false]
[null,null,null,null,null,0,null,null,0,0,null,null,true,true,true,true,4,false]
[null,null,null,null,null,0,null,null,0,0,null,null,true,true,true,true,4,false]
[null,null,null,null,null,0,null,null,0,0,null,null,true,true,true,true,4,true]
[null,"4.8 Publications in mass-media",null,null,null,{"$f":"SUM(F241:F260)","v":0},null,null,{"$f":"SUM(I241:I260)","v":0},{"$f":"SUM(J241:J260)","v":0},null,null,null,null,null,null,null,true]
[null,null,null,null,null,{"$f":"ROUND(D241*E241,2)","v":0},null,null,{"$f":"ROUND(G241*H241,2)","v":0},{"$f":"F241+I241","v":0},null,null,{"$f":"ISBLANK(B241)","v":true},{"$f":"ISBLANK(C241)","v":true},true,true,{"$f":"M241+N241+O241+P241","v":4},{"$f":"IF(Q241=0,TRUE,FALSE)","v":false}]
[null,null,null,null,null,{"$f":"ROUND(D242*E242,2)","v":0},null,null,0,{"$f":"F242+I242","v":0},null,null,{"$f":"ISBLANK(B242)","v":true},true,true,true,{"$f":"M242+N242+O242+P242","v":4},{"$f":"IF(Q242=0,TRUE,FALSE)","v":false}]
[null,null,null,null,null,0,null,null,0,0,null,null,true,true,true,true,4,false]
[null,null,null,null,null,0,null,null,0,0,null,null,true,true,true,true,4,false]
[null,null,null,null,null,0,null,null,0,0,null,null,true,true,true,true,4,false]
[null,null,null,null,null,0,null,null,0,0,null,null,true,true,true,true,4,false]
[null,null,null,null,null,0,null,null,0,0,null,null,true,true,true,true,4,false]
[null,null,null,null,null,0,null,null,0,0,null,null,true,true,true,true,4,false]
[null,null,null,null,null,0,null,null,0,0,null,null,true,true,true,true,4,false]
[null,null,null,null,null,0,null,null,0,0,null,null,true,true,true,true,4,true]
[null,null,null,null,null,{"$f":"ROUND(D251*E251,2)","v":0},null,null,{"$f":"ROUND(G251*H251,2)","v":0},{"$f":"F251+I251","v":0},null,null,{"$f":"ISBLANK(B251)","v":true},{"$f":"ISBLANK(C251)","v":true},{"$f":"ISBLANK(D251)","v":true},{"$f":"ISBLANK(E251)","v":true},{"$f":"M251+N251+O251+P251","v":4},{"$f":"IF(Q251=0,TRUE,FALSE)","v":false}]
[null,null,null,null,null,{"$f":"ROUND(D252*E252,2)","v":0},null,null,0,{"$f":"F252+I252","v":0},null,null,{"$f":"ISBLANK(B252)","v":true},true,true,true,{"$f":"M252+N252+O252+P252","v":4},{"$f":"IF(Q252=0,TRUE,FALSE)","v":false}]
[null,null,null,null,null,0,null,null,0,0,null,null,true,true,true,true,4,false]
[null,null,null,null,null,0,null,null,0,0,null,null,true,true,true,true,4,false]
[null,null,null,null,null,0,null,null,0,0,null,null,true,true,true,true,4,false]
[null,null,null,null,null,0,null,null,0,0,null,null,true,true,true,true,4,false]
[null,null,null,null,null,0,null,null,0,0,null,null,true,true,true,true,4,false]
[null,null,null,null,null,0,null,null,0,0,null,null,true,true,true,true,4,false]
[null,null,null,null,null,0,null,null,0,0,null,null,true,true,true,true,4,false]
[null,null,null,null,null,0,null,null,0,0,null,null,true,true,true,true,4,true]
[null,"4.9 Consultancy, studies,designs, website development etc.",null,null,null,{"$f":"SUM(F262:F281)","v":0},null,null,{"$f":"SUM(I262:I281)","v":0},{"$f":"SUM(J262:J281)","v":0},null,null,null,null,null,null,null,true]
[null,null,null,null,null,{"$f":"ROUND(D262*E262,2)","v":0},null,null,{"$f":"ROUND(G262*H262,2)","v":0},{"$f":"F262+I262","v":0},null,null,{"$f":"ISBLANK(B262)","v":true},{"$f":"ISBLANK(C262)","v":true},true,true,{"$f":"M262+N262+O262+P262","v":4},{"$f":"IF(Q262=0,TRUE,FALSE)","v":false}]
[null,null,null,null,null,{"$f":"ROUND(D263*E263,2)","v":0},null,null,0,{"$f":"F263+I263","v":0},null,null,{"$f":"ISBLANK(B263)","v":true},true,true,true,{"$f":"M263+N263+O263+P263","v":4},{"$f":"IF(Q263=0,TRUE,FALSE)","v":false}]
[null,null,null,null,null,0,null,null,0,0,null,null,true,true,true,true,4,false]
[null,null,null,null,null,0,null,null,0,0,null,null,true,true,true,true,4,false]
[null,null,null,null,null,0,null,null,0,0,null,null,true,true,true,true,4,false]
[null,null,null,null,null,0,null,null,0,0,null,null,true,true,true,true,4,false]
[null,null,null,null,null,0,null,null,0,0,null,null,true,true,true,true,4,false]
[null,null,null,null,null,0,null,null,0,0,null,null,true,true,true,true,4,false]
[null,null,null,null,null,0,null,null,0,0,null,null,true,true,true,true,4,false]
[null,null,null,null,null,0,null,null,0,0,null,null,true,true,true,true,4,true]
[null,null,null,null,null,{"$f":"ROUND(D272*E272,2)","v":0},null,null,{"$f":"ROUND(G272*H272,2)","v":0},{"$f":"F272+I272","v":0},null,null,{"$f":"ISBLANK(B272)","v":true},{"$f":"ISBLANK(C272)","v":true},{"$f":"ISBLANK(D272)","v":true},{"$f":"ISBLANK(E272)","v":true},{"$f":"M272+N272+O272+P272","v":4},{"$f":"IF(Q272=0,TRUE,FALSE)","v":false}]
[null,null,null,null,null,{"$f":"ROUND(D273*E273,2)","v":0},null,null,0,{"$f":"F273+I273","v":0},null,null,{"$f":"ISBLANK(B273)","v":true},true,true,true,{"$f":"M273+N273+O273+P273","v":4},{"$f":"IF(Q273=0,TRUE,FALSE)","v":false}]
[null,null,null,null,null,0,null,null,0,0,null,null,true,true,true,true,4,false]
[null,null,null,null,null,0,null,null,0,0,null,null,true,true,true,true,4,false]
[null,null,null,null,null,0,null,null,0,0,null,null,true,true,true,true,4,false]
[null,null,null,null,null,0,null,null,0,0,null,null,true,true,true,true,4,false]
[null,null,null,null,null,0,null,null,0,0,null,null,true,true,true,true,4,false]
[null,null,null,null,null,0,null,null,0,0,null,null,true,true,true,true,4,false]
[null,null,null,null,null,0,null,null,0,0,null,null,true,true,true,true,4,false]
[null,null,null,null,null,0,null,null,0,0,null,null,true,true,true,true,4,true]
[null,"4.10 Authorizations, certificates",null,null,null,{"$f":"SUM(F283:F302)","v":0},null,null,{"$f":"SUM(I283:I302)","v":0},{"$f":"SUM(J283:J302)","v":0},null,null,null,null,null,null,null,true]
[null,null,null,null,null,{"$f":"ROUND(D283*E283,2)","v":0},null,null,{"$f":"ROUND(G283*H283,2)","v":0},{"$f":"F283+I283","v":0},null,null,{"$f":"ISBLANK(B283)","v":true},{"$f":"ISBLANK(C283)","v":true},true,true,{"$f":"M283+N283+O283+P283","v":4},{"$f":"IF(Q283=0,TRUE,FALSE)","v":false}]
[null,null,null,null,null,{"$f":"ROUND(D284*E284,2)","v":0},null,null,0,{"$f":"F284+I284","v":0},null,null,{"$f":"ISBLANK(B284)","v":true},true,true,true,{"$f":"M284+N284+O284+P284","v":4},{"$f":"IF(Q284=0,TRUE,FALSE)","v":false}]
[null,null,null,null,null,0,null,null,0,0,null,null,true,true,true,true,4,false]
[null,null,null,null,null,0,null,null,0,0,null,null,true,true,true,true,4,false]
[null,null,null,null,null,0,null,null,0,0,null,null,true,true,true,true,4,false]
[null,null,null,null,null,0,null,null,0,0,null,null,true,true,true,true,4,false]
[null,null,null,null,null,0,null,null,0,0,null,null,true,true,true,true,4,false]
[null,null,null,null,null,0,null,null,0,0,null,null,true,true,true,true,4,false]
[null,null,null,null,null,0,null,null,0,0,null,null,true,true,true,true,4,false]
[null,null,null,null,null,0,null,null,0,0,null,null,true,true,true,true,4,true]
[null,null,null,null,null,{"$f":"ROUND(D293*E293,2)","v":0},null,null,{"$f":"ROUND(G293*H293,2)","v":0},{"$f":"F293+I293","v":0},null,null,{"$f":"ISBLANK(B293)","v":true},{"$f":"ISBLANK(C293)","v":true},{"$f":"ISBLANK(D293)","v":true},{"$f":"ISBLANK(E293)","v":true},{"$f":"M293+N293+O293+P293","v":4},{"$f":"IF(Q293=0,TRUE,FALSE)","v":false}]
[null,null,null,null,null,{"$f":"ROUND(D294*E294,2)","v":0},null,null,0,{"$f":"F294+I294","v":0},null,null,{"$f":"ISBLANK(B294)","v":true},true,true,true,{"$f":"M294+N294+O294+P294","v":4},{"$f":"IF(Q294=0,TRUE,FALSE)","v":false}]
[null,null,null,null,null,0,null,null,0,0,null,null,true,true,true,true,4,false]
[null,null,null,null,null,0,null,null,0,0,null,null,true,true,true,true,4,false]
[null,null,null,null,null,0,null,null,0,0,null,null,true,true,true,true,4,false]
[null,null,null,null,null,0,null,null,0,0,null,null,true,true,true,true,4,false]
[null,null,null,null,null,0,null,null,0,0,null,null,true,true,true,true,4,false]
[null,null,null,null,null,0,null,null,0,0,null,null,true,true,true,true,4,false]
[null,null,null,null,null,0,null,null,0,0,null,null,true,true,true,true,4,false]
[null,null,null,null,null,0,null,null,0,0,null,null,true,true,true,true,4,true]
[null,"4.11  Interpreters, lecturers, trainers",null,null,null,{"$f":"SUM(F304:F323)","v":0},null,null,{"$f":"SUM(I304:I323)","v":0},{"$f":"SUM(J304:J323)","v":0},null,null,null,null,null,null,null,true]
[null,null,null,null,null,{"$f":"ROUND(D304*E304,2)","v":0},null,null,{"$f":"ROUND(G304*H304,2)","v":0},{"$f":"F304+I304","v":0},null,null,{"$f":"ISBLANK(B304)","v":true},{"$f":"ISBLANK(C304)","v":true},true,true,{"$f":"M304+N304+O304+P304","v":4},{"$f":"IF(Q304=0,TRUE,FALSE)","v":false}]
[null,null,null,null,null,{"$f":"ROUND(D305*E305,2)","v":0},null,null,0,{"$f":"F305+I305","v":0},null,null,{"$f":"ISBLANK(B305)","v":true},true,true,true,{"$f":"M305+N305+O305+P305","v":4},{"$f":"IF(Q305=0,TRUE,FALSE)","v":false}]
[null,null,null,null,null,0,null,null,0,0,null,null,true,true,true,true,4,false]
[null,null,null,null,null,0,null,null,0,0,null,null,true,true,true,true,4,false]
[null,null,null,null,null,0,null,null,0,0,null,null,true,true,true,true,4,false]
[null,null,null,null,null,0,null,null,0,0,null,null,true,true,true,true,4,false]
[null,null,null,null,null,0,null,null,0,0,null,null,true,true,true,true,4,false]
[null,null,null,null,null,0,null,null,0,0,null,null,true,true,true,true,4,false]
[null,null,null,null,null,0,null,null,0,0,null,null,true,true,true,true,4,false]
[null,null,null,null,null,0,null,null,0,0,null,null,true,true,true,true,4,true]
[null,null,null,null,null,{"$f":"ROUND(D314*E314,2)","v":0},null,null,{"$f":"ROUND(G314*H314,2)","v":0},{"$f":"F314+I314","v":0},null,null,{"$f":"ISBLANK(B314)","v":true},{"$f":"ISBLANK(C314)","v":true},{"$f":"ISBLANK(D314)","v":true},{"$f":"ISBLANK(E314)","v":true},{"$f":"M314+N314+O314+P314","v":4},{"$f":"IF(Q314=0,TRUE,FALSE)","v":false}]
[null,null,null,null,null,{"$f":"ROUND(D315*E315,2)","v":0},null,null,0,{"$f":"F315+I315","v":0},null,null,{"$f":"ISBLANK(B315)","v":true},true,true,true,{"$f":"M315+N315+O315+P315","v":4},{"$f":"IF(Q315=0,TRUE,FALSE)","v":false}]
[null,null,null,null,null,0,null,null,0,0,null,null,true,true,true,true,4,false]
[null,null,null,null,null,0,null,null,0,0,null,null,true,true,true,true,4,false]
[null,null,null,null,null,0,null,null,0,0,null,null,true,true,true,true,4,false]
[null,null,null,null,null,0,null,null,0,0,null,null,true,true,true,true,4,false]
[null,null,null,null,null,0,null,null,0,0,null,null,true,true,true,true,4,false]
[null,null,null,null,null,0,null,null,0,0,null,null,true,true,true,true,4,false]
[null,null,null,null,null,0,null,null,0,0,null,null,true,true,true,true,4,false]
[null,null,null,null,null,0,null,null,0,0,null,null,true,true,true,true,4,true]
[null,"4.12 Others",null,null,null,{"$f":"SUM(F325:F344)","v":0},null,null,{"$f":"SUM(I325:I344)","v":0},{"$f":"SUM(J325:J344)","v":0},null,null,null,null,null,null,null,true]
[null,null,null,null,null,{"$f":"ROUND(D325*E325,2)","v":0},null,null,{"$f":"ROUND(G325*H325,2)","v":0},{"$f":"F325+I325","v":0},null,null,{"$f":"ISBLANK(B325)","v":true},{"$f":"ISBLANK(C325)","v":true},true,true,{"$f":"M325+N325+O325+P325","v":4},{"$f":"IF(Q325=0,TRUE,FALSE)","v":false}]
[null,null,null,null,null,{"$f":"ROUND(D326*E326,2)","v":0},null,null,0,{"$f":"F326+I326","v":0},null,null,{"$f":"ISBLANK(B326)","v":true},true,true,true,{"$f":"M326+N326+O326+P326","v":4},{"$f":"IF(Q326=0,TRUE,FALSE)","v":false}]
[null,null,null,null,null,0,null,null,0,0,null,null,true,true,true,true,4,false]
[null,null,null,null,null,0,null,null,0,0,null,null,true,true,true,true,4,false]
[null,null,null,null,null,0,null,null,0,0,null,null,true,true,true,true,4,false]
[null,null,null,null,null,0,null,null,0,0,null,null,true,true,true,true,4,false]
[null,null,null,null,null,0,null,null,0,0,null,null,true,true,true,true,4,false]
[null,null,null,null,null,0,null,null,0,0,null,null,true,true,true,true,4,false]
[null,null,null,null,null,0,null,null,0,0,null,null,true,true,true,true,4,false]
[null,null,null,null,null,0,null,null,0,0,null,null,true,true,true,true,4,true]
[null,null,null,null,null,{"$f":"ROUND(D335*E335,2)","v":0},null,null,{"$f":"ROUND(G335*H335,2)","v":0},{"$f":"F335+I335","v":0},null,null,{"$f":"ISBLANK(B335)","v":true},{"$f":"ISBLANK(C335)","v":true},{"$f":"ISBLANK(D335)","v":true},{"$f":"ISBLANK(E335)","v":true},{"$f":"M335+N335+O335+P335","v":4},{"$f":"IF(Q335=0,TRUE,FALSE)","v":false}]
[null,null,null,null,null,{"$f":"ROUND(D336*E336,2)","v":0},null,null,0,{"$f":"F336+I336","v":0},null,null,{"$f":"ISBLANK(B336)","v":true},true,true,true,{"$f":"M336+N336+O336+P336","v":4},{"$f":"IF(Q336=0,TRUE,FALSE)","v":false}]
[null,null,null,null,null,0,null,null,0,0,null,null,true,true,true,true,4,false]
[null,null,null,null,null,0,null,null,0,0,null,null,true,true,true,true,4,false]
[null,null,null,null,null,0,null,null,0,0,null,null,true,true,true,true,4,false]
[null,null,null,null,null,0,null,null,0,0,null,null,true,true,true,true,4,false]
[null,null,null,null,null,0,null,null,0,0,null,null,true,true,true,true,4,false]
[null,null,null,null,null,0,null,null,0,0,null,null,true,true,true,true,4,false]
[null,null,null,null,null,0,null,null,0,0,null,null,true,true,true,true,4,false]
[null,null,null,null,null,0,null,null,0,0,null,null,true,true,true,true,4,true]
[null,"TOTAL",null,null,null,{"$f":"F324+F303+F282+F261+F240+F219+F198+F177+F156+F135+F114+F93","v":0},null,null,{"$f":"I324+I303+I282+I261+I240+I219+I198+I177+I156+I135+I114+I93","v":0},{"$f":"J324+J303+J282+J261+J240+J219+J198+J177+J156+J135+J114+J93","v":0},null,null,null,null,null,null,null,true]
[null,null,null,null,null,null,null,null,null,null,null,null,{"$f":"O350+P350+N346","v":2},{"$f":"M8=\"Soft\"","v":false},null,null,null,true]
[null,"BL5 - EQUIPMENT AND WORKS","Unit","Expenditures in the eligible area",null,null,"N/A",null,null,"TOTAL",null,null,null,null,null,null,null,true]
[null,null,null,"Units","Unit rate","TOTAL","Units","Unit rate","TOTAL",null,null,null,null,null,null,null,null,true]
[null,"5.1 Small scale construction",null,null,null,{"$f":"SUM(F350:F369)","v":0},null,null,{"$f":"SUM(I350:I369)","v":0},{"$f":"SUM(J350:J369)","v":0},null,null,null,null,null,null,null,true]
[null,null,null,null,null,{"$f":"ROUND(D350*E350,2)","v":0},null,null,{"$f":"ROUND(G350*H350,2)","v":0},{"$f":"F350+I350","v":0},null,null,{"$f":"ISBLANK(B350)","v":true},{"$f":"ISBLANK(C350)","v":true},true,true,{"$f":"M350+N350+O350+P350","v":4},{"$f":"IF(Q350=0,TRUE,FALSE)","v":false}]
[null,null,null,null,null,{"$f":"ROUND(D351*E351,2)","v":0},null,null,0,{"$f":"F351+I351","v":0},null,null,{"$f":"ISBLANK(B351)","v":true},true,true,true,{"$f":"M351+N351+O351+P351","v":4},{"$f":"IF(Q351=0,TRUE,FALSE)","v":false}]
[null,null,null,null,null,0,null,null,0,0,null,null,true,true,true,true,4,false]
[null,null,null,null,null,0,null,null,0,0,null,null,true,true,true,true,4,false]
[null,null,null,null,null,0,null,null,0,0,null,null,true,true,true,true,4,false]
[null,null,null,null,null,0,null,null,0,0,null,null,true,true,true,true,4,false]
[null,null,null,null,null,0,null,null,0,0,null,null,true,true,true,true,4,false]
[null,null,null,null,null,0,null,null,0,0,null,null,true,true,true,true,4,false]
[null,null,null,null,null,0,null,null,0,0,null,null,true,true,true,true,4,false]
[null,null,null,null,null,0,null,null,0,0,null,null,true,true,true,true,4,true]
[null,null,null,null,null,{"$f":"ROUND(D360*E360,2)","v":0},null,null,{"$f":"ROUND(G360*H360,2)","v":0},{"$f":"F360+I360","v":0},null,null,{"$f":"ISBLANK(B360)","v":true},{"$f":"ISBLANK(C360)","v":true},{"$f":"ISBLANK(D360)","v":true},{"$f":"ISBLANK(E360)","v":true},{"$f":"M360+N360+O360+P360","v":4},{"$f":"IF(Q360=0,TRUE,FALSE)","v":false}]
[null,null,null,null,null,{"$f":"ROUND(D361*E361,2)","v":0},null,null,0,{"$f":"F361+I361","v":0},null,null,{"$f":"ISBLANK(B361)","v":true},true,true,true,{"$f":"M361+N361+O361+P361","v":4},{"$f":"IF(Q361=0,TRUE,FALSE)","v":false}]
[null,null,null,null,null,0,null,null,0,0,null,null,true,true,true,true,4,false]
[null,null,null,null,null,0,null,null,0,0,null,null,true,true,true,true,4,false]
[null,null,null,null,null,0,null,null,0,0,null,null,true,true,true,true,4,false]
[null,null,null,null,null,0,null,null,0,0,null,null,true,true,true,true,4,false]
[null,null,null,null,null,0,null,null,0,0,null,null,true,true,true,true,4,false]
[null,null,null,null,null,0,null,null,0,0,null,null,true,true,true,true,4,false]
[null,null,null,null,null,0,null,null,0,0,null,null,true,true,true,true,4,false]
[null,null,null,null,null,0,null,null,0,0,null,null,true,true,true,true,4,true]
[null,"5.2 Supply",null,null,null,{"$f":"SUM(F371:F390)","v":0},null,null,{"$f":"SUM(I371:I390)","v":0},{"$f":"SUM(J371:J390)","v":0},null,null,null,null,null,null,null,true]
[null,null,null,null,null,{"$f":"ROUND(D371*E371,2)","v":0},null,null,{"$f":"ROUND(G371*H371,2)","v":0},{"$f":"F371+I371","v":0},null,null,{"$f":"ISBLANK(B371)","v":true},{"$f":"ISBLANK(C371)","v":true},true,true,{"$f":"M371+N371+O371+P371","v":4},{"$f":"IF(Q371=0,TRUE,FALSE)","v":false}]
[null,null,null,null,null,{"$f":"ROUND(D372*E372,2)","v":0},null,null,0,{"$f":"F372+I372","v":0},null,null,{"$f":"ISBLANK(B372)","v":true},true,true,true,{"$f":"M372+N372+O372+P372","v":4},{"$f":"IF(Q372=0,TRUE,FALSE)","v":false}]
[null,null,null,null,null,0,null,null,0,0,null,null,true,true,true,true,4,false]
[null,null,null,null,null,0,null,null,0,0,null,null,true,true,true,true,4,false]
[null,null,null,null,null,0,null,null,0,0,null,null,true,true,true,true,4,false]
[null,null,null,null,null,0,null,null,0,0,null,null,true,true,true,true,4,false]
[null,null,null,null,null,0,null,null,0,0,null,null,true,true,true,true,4,false]
[null,null,null,null,null,0,null,null,0,0,null,null,true,true,true,true,4,false]
[null,null,null,null,null,0,null,null,0,0,null,null,true,true,true,true,4,false]
[null,null,null,null,null,0,null,null,0,0,null,null,true,true,true,true,4,true]
[null,null,null,null,null,{"$f":"ROUND(D381*E381,2)","v":0},null,null,{"$f":"ROUND(G381*H381,2)","v":0},{"$f":"F381+I381","v":0},null,null,{"$f":"ISBLANK(B381)","v":true},{"$f":"ISBLANK(C381)","v":true},{"$f":"ISBLANK(D381)","v":true},{"$f":"ISBLANK(E381)","v":true},{"$f":"M381+N381+O381+P381","v":4},{"$f":"IF(Q381=0,TRUE,FALSE)","v":false}]
[null,null,null,null,null,{"$f":"ROUND(D382*E382,2)","v":0},null,null,0,{"$f":"F382+I382","v":0},null,null,{"$f":"ISBLANK(B382)","v":true},true,true,true,{"$f":"M382+N382+O382+P382","v":4},{"$f":"IF(Q382=0,TRUE,FALSE)","v":false}]
[null,null,null,null,null,0,null,null,0,0,null,null,true,true,true,true,4,false]
[null,null,null,null,null,0,null,null,0,0,null,null,true,true,true,true,4,false]
[null,null,null,null,null,0,null,null,0,0,null,null,true,true,true,true,4,false]
[null,null,null,null,null,0,null,null,0,0,null,null,true,true,true,true,4,false]
[null,null,null,null,null,0,null,null,0,0,null,null,true,true,true,true,4,false]
[null,null,null,null,null,0,null,null,0,0,null,null,true,true,true,true,4,false]
[null,null,null,null,null,0,null,null,0,0,null,null,true,true,true,true,4,false]
[null,null,null,null,null,0,null,null,0,0,null,null,true,true,true,true,4,true]
[null,"TOTAL",null,null,null,{"$f":"F370+F349","v":0},null,null,{"$f":"I370+I349","v":0},{"$f":"J370+J349","v":0},null,null,null,null,null,null,null,true]
[null,null,null,null,null,null,null,null,null,null,null,null,null,null,null,null,null,true]
[null,"BL6 - PROJECT PREPARATION","Unit","Expenditures in the eligible area",null,null,"N/A",null,null,"TOTAL",null,null,null,null,null,null,null,true]
[null,null,null,"Units","Unit rate","TOTAL","Units","Unit rate","TOTAL",null,null,null,null,null,null,null,null,true]
[null,"6.1.Preparation of Application package ",null,null,null,{"$f":"SUM(F396:F405)","v":0},null,null,{"$f":"SUM(I396:I405)","v":0},{"$f":"SUM(J396:J405)","v":0}]
[null,null,null,null,null,{"$f":"ROUND(D396*E396,2)","v":0},null,null,{"$f":"ROUND(G396*H396,2)","v":0},{"$f":"F396+I396","v":0},null,null,{"$f":"ISBLANK(B396)","v":true},{"$f":"ISBLANK(C396)","v":true},true,true,{"$f":"M396+N396+O396+P396","v":4},{"$f":"IF(Q396=0,TRUE,FALSE)","v":false}]
[null,null,null,null,null,{"$f":"ROUND(D397*E397,2)","v":0},null,null,0,{"$f":"F397+I397","v":0},null,null,{"$f":"ISBLANK(B397)","v":true},true,true,true,{"$f":"M397+N397+O397+P397","v":4},{"$f":"IF(Q397=0,TRUE,FALSE)","v":false}]
[null,null,null,null,null,0,null,null,0,0,null,null,true,true,true,true,4,false]
[null,null,null,null,null,0,null,null,0,0,null,null,true,true,true,true,4,false]
[null,null,null,null,null,0,null,null,0,0,null,null,true,true,true,true,4,false]
[null,null,null,null,null,0,null,null,0,0,null,null,true,true,true,true,4,false]
[null,null,null,null,null,0,null,null,0,0,null,null,true,true,true,true,4,false]
[null,null,null,null,null,0,null,null,0,0,null,null,true,true,true,true,4,false]
[null,null,null,null,null,0,null,null,0,0,null,null,true,true,true,true,4,false]
[null,null,null,null,null,0,null,null,0,0,null,null,true,true,true,true,4,true]
[null,"6.2 Preparation of technical documentation ",null,null,null,{"$f":"SUM(F407:F416)","v":0},null,null,{"$f":"SUM(I407:I416)","v":0},{"$f":"SUM(J407:J416)","v":0},null,null,{"$f":"ISBLANK(B406)","v":false},true,true,true,{"$f":"M406+N406+O406+P406","v":3},{"$f":"IF(Q406=0,TRUE,FALSE)","v":false}]
[null,null,null,null,null,{"$f":"ROUND(D407*E407,2)","v":0},null,null,{"$f":"ROUND(G407*H407,2)","v":0},{"$f":"F407+I407","v":0},null,null,{"$f":"ISBLANK(B407)","v":true}]
[null,null,null,null,null,0,null,null,0,0,null,null,{"$f":"ISBLANK(B408)","v":true},true,true,true,{"$f":"M408+N408+O408+P408","v":4},{"$f":"IF(Q408=0,TRUE,FALSE)","v":false}]
[null,null,null,null,null,0,null,null,0,0,null,null,true,true,true,true,4,false]
[null,null,null,null,null,0,null,null,0,0,null,null,true,true,true,true,4,false]
[null,null,null,null,null,0,null,null,0,0,null,null,true,true,true,true,4,false]
[null,null,null,null,null,0,null,null,0,0,null,null,true,true,true,true,4,false]
[null,null,null,null,null,0,null,null,0,0,null,null,true,true,true,true,4,false]
[null,null,null,null,null,0,null,null,0,0,null,null,true,true,true,true,4,false]
[null,null,null,null,null,0,null,null,0,0,null,null,true,true,true,true,4,false]
[null,null,null,null,null,0,null,null,0,0,null,null,true,true,true,true,4,false]
[null,"TOTAL",null,null,null,{"$f":"F395+F406","v":0},null,null,{"$f":"I395+I406","v":0},{"$f":"J395+J406","v":0},null,null,null,null,null,null,null,true]
[null,null,null,null,null,null,null,null,null,null,null,null,null,null,null,null,null,true]
[null,"Own Contribution",null,null,null,"Unit","Units","Unit rate","TOTAL",null,null,null,"Units out","Units rate out","Total out","Total in",null,true]
[null,null,null,null,null,null,null,null,{"$f":"ROUND(G420*H420,2)","v":0},null,null,null,null,null,null,null,null,true]
[null,null,null,"Expenditures outside the eligible area exceed 20 %! Reconsider budget distribution!",null,null,null,null,null,null,null,null,null,null,null,null,null,true]
[null,"Total direct project costs VAT incl. (BL3+BL4+BL5)",null,null,null,{"$f":"F391+F345+F89","v":0},{"$f":"I391+I89+I345","v":0},null,null,{"$f":"J391+J345+J89","v":0},null,null,null,null,null,null,null,true]
[null,"TOTAL PROJECT COSTS",null,null,null,{"$f":"F422+F417+I6+I11+I420","v":0},{"$f":"G422+I417","v":0},null,null,{"$f":"F423+G423","v":0},null,null,null,null,null,null,null,true]

{"sheet":"T2-B(PP4)","index":13,"n_rows":423,"n_cols":18,"rows_kept":423,"cut":false,"hidden":false,"merged":[[421,1,421,4],[421,6,421,8],[422,1,422,4],[422,6,422,8],[416,1,416,4],[416,6,416,7],[418,1,418,4],[418,8,418,9],[419,1,419,4],[419,8,419,9],[392,9,393,9],[390,1,390,4],[390,6,390,7],[392,1,393,1],[392,2,393,2],[392,3,392,5],[392,6,392,8],[344,1,344,4],[344,6,344,7],[346,1,347,1],[346,2,347,2],[346,3,346,5],[346,6,346,8],[345,3,345,9],[346,9,347,9],[90,1,91,1],[90,2,91,2],[90,3,90,5],[90,6,90,8],[90,9,91,9],[9,8,9,9],[10,1,10,7],[10,8,10,9],[12,1,13,1],[12,2,13,2],[12,3,12,5],[12,6,12,8],[12,9,13,9],[9,1,9,5],[9,6,9,7],[2,1,3,5],[2,6,2,7],[2,8,3,9],[3,6,3,7],[4,1,4,5],[4,6,4,7],[4,8,4,9],[5,1,5,7],[5,8,5,9],[7,1,8,5],[7,6,7,7],[7,8,8,9],[8,6,8,7]]}
[null,"TABLE 2 - DETAILED BREAKDOWN OF BUDGET LINES - PP4",null,null,null,null,null,null,null,null,null,null,null,null,null,null,null,true]
[null,null,null,null,null,null,null,null,null,null,null,null,null,null,null,null,null,true]
[null,"BL1 - STAFF COSTS",null,null,null,null,"Flat rate",null,"TOTAL",null,null,null,null,null,null,null,null,true]
[null,null,null,null,null,null,"%",null,null,null,null,null,null,null,null,null,null,true]
[null,{"$f":"M5","v":"Investment project"},null,null,null,null,0,null,{"$f":"ROUND(G5*J422/100,2)","v":0},null,null,"visible/hidden depending on project identification",{"$f":"CONCATENATE('Project identification'!C15,\" project\")","v":"Investment project"},null,null,null,10,true]
[null,"TOTAL",null,null,null,null,null,null,{"$f":"I5","v":0},null,null,null,null,null,{"$f":"IF(M8=\"Soft\",15,10)","v":10},null,15,true]
[null,null,null,null,null,null,null,null,null,null,null,null,null,null,null,null,null,true]
[null,"BL2 - OFFICE AND ADMINISTRATIVE COSTS",null,null,null,null,"Flat rate",null,"TOTAL",null,null,null,{"$f":"'Project identification'!C15","v":"Investment"},null,null,null,null,true]
[null,null,null,null,null,null,"%",null,null,null,null,null,null,null,null,null,null,true]
[null,{"$f":"M5","v":"Investment project"},null,null,null,null,0,null,{"$f":"ROUND(G10*I5/100,2)","v":0},null,null,"visible/hidden depending on project identification",null,null,null,null,2,true]
[null,"TOTAL",null,null,null,null,null,null,{"$f":"I10","v":0},null,null,null,null,null,{"$f":"IF(M8=\"Soft\",20,15)","v":15},null,5,true]
[null,null,null,null,null,null,null,null,null,null,null,null,null,null,null,null,null,true]
[null,"BL3 - TRAVEL AND ACCOMMODATION","Unit","Expenditures in the eligible area",null,null,"Expenditures outside of the eligible area",null,null,"TOTAL",null,null,null,null,null,null,null,true]
[null,null,null,"Units","Unit rate","TOTAL","Units","Unit rate","TOTAL",null,null,null,null,null,null,null,null,true]
[null,"3.1 Travel costs",null,null,null,{"$f":"SUM(F16:F35)","v":0},null,null,{"$f":"SUM(I16:I35)","v":0},{"$f":"SUM(J16:J35)","v":0},null,"Add",null,null,null,null,null,true]
[null,null,null,null,null,{"$f":"ROUND(D16*E16,2)","v":0},null,null,{"$f":"ROUND(G16*H16,2)","v":0},{"$f":"F16+I16","v":0},null,null,{"$f":"ISBLANK(B16)","v":true},{"$f":"ISBLANK(C16)","v":true},true,true,{"$f":"M16+N16+O16+P16","v":4},{"$f":"IF(Q16=0,TRUE,FALSE)","v":false}]
[null,null,null,null,null,{"$f":"ROUND(D17*E17,2)","v":0},null,null,0,{"$f":"F17+I17","v":0},null,null,{"$f":"ISBLANK(B17)","v":true},true,true,true,{"$f":"M17+N17+O17+P17","v":4},{"$f":"IF(Q17=0,TRUE,FALSE)","v":false}]
[null,null,null,null,null,0,null,null,0,0,null,null,true,true,true,true,4,false]
[null,null,null,null,null,0,null,null,0,0,null,null,true,true,true,true,4,false]
[null,null,null,null,null,0,null,null,0,0,null,null,true,true,true,true,4,false]
[null,null,null,null,null,0,null,null,0,0,null,null,true,true,true,true,4,false]
[null,null,null,null,null,0,null,null,0,0,null,null,true,true,true,true,4,false]
[null,null,null,null,null,0,null,null,0,0,null,null,true,true,true,true,4,false]
[null,null,null,null,null,0,null,null,0,0,null,null,true,true,true,true,4,false]
[null,null,null,null,null,0,null,null,0,0,null,null,true,true,true,true,4,true]
[null,null,null,null,null,{"$f":"ROUND(D26*E26,2)","v":0},null,null,{"$f":"ROUND(G26*H26,2)","v":0},{"$f":"F26+I26","v":0},null,null,{"$f":"ISBLANK(B26)","v":true},{"$f":"ISBLANK(C26)","v":true},{"$f":"ISBLANK(D26)","v":true},{"$f":"ISBLANK(E26)","v":true},{"$f":"M26+N26+O26+P26","v":4},{"$f":"IF(Q26=0,TRUE,FALSE)","v":false}]
[null,null,null,null,null,{"$f":"ROUND(D27*E27,2)","v":0},null,null,0,{"$f":"F27+I27","v":0},null,null,{"$f":"ISBLANK(B27)","v":true},true,true,true,{"$f":"M27+N27+O27+P27","v":4},{"$f":"IF(Q27=0,TRUE,FALSE)","v":false}]
[null,null,null,null,null,0,null,null,0,0,null,null,true,true,true,true,4,false]
[null,null,null,null,null,0,null,null,0,0,null,null,true,true,true,true,4,false]
[null,null,null,null,null,0,null,null,0,0,null,null,true,true,true,true,4,false]
[null,null,null,null,null,0,null,null,0,0,null,null,true,true,true,true,4,false]
[null,null,null,null,null,0,null,null,0,0,null,null,true,true,true,true,4,false]
[null,null,null,null,null,0,null,null,0,0,null,null,true,true,true,true,4,false]
[null,null,null,null,null,0,null,null,0,0,null,null,true,true,true,true,4,false]
[null,null,null,null,null,0,null,null,0,0,null,null,true,true,true,true,4,true]
[null,"3.2 Daily allowances",null,null,null,{"$f":"SUM(F37:F56)","v":0},null,null,{"$f":"SUM(I37:I56)","v":0},{"$f":"SUM(J37:J56)","v":0},null,"add (10 items)",null,null,null,null,null,true]
[null,null,null,null,null,{"$f":"ROUND(D37*E37,2)","v":0},null,null,{"$f":"ROUND(G37*H37,2)","v":0},{"$f":"F37+I37","v":0},null,null,{"$f":"ISBLANK(B37)","v":true},{"$f":"ISBLANK(C37)","v":true},true,true,{"$f":"M37+N37+O37+P37","v":4},{"$f":"IF(Q37=0,TRUE,FALSE)","v":false}]
[null,null,null,null,null,{"$f":"ROUND(D38*E38,2)","v":0},null,null,0,{"$f":"F38+I38","v":0},null,null,{"$f":"ISBLANK(B38)","v":true},true,true,true,{"$f":"M38+N38+O38+P38","v":4},{"$f":"IF(Q38=0,TRUE,FALSE)","v":false}]
[null,null,null,null,null,0,null,null,0,0,null,null,true,true,true,true,4,false]
[null,null,null,null,null,0,null,null,0,0,null,null,true,true,true,true,4,false]
[null,null,null,null,null,0,null,null,0,0,null,null,true,true,true,true,4,false]
[null,null,null,null,null,0,null,null,0,0,null,null,true,true,true,true,4,false]
[null,null,null,null,null,0,null,null,0,0,null,null,true,true,true,true,4,false]
[null,null,null,null,null,0,null,null,0,0,null,null,true,true,true,true,4,false]
[null,null,null,null,null,0,null,null,0,0,null,null,true,true,true,true,4,false]
[null,null,null,null,null,0,null,null,0,0,null,null,true,true,true,true,4,true]
[null,null,null,null,null,{"$f":"ROUND(D47*E47,2)","v":0},null,null,{"$f":"ROUND(G47*H47,2)","v":0},{"$f":"F47+I47","v":0},null,null,{"$f":"ISBLANK(B47)","v":true},{"$f":"ISBLANK(C47)","v":true},{"$f":"ISBLANK(D47)","v":true},{"$f":"ISBLANK(E47)","v":true},{"$f":"M47+N47+O47+P47","v":4},{"$f":"IF(Q47=0,TRUE,FALSE)","v":false}]
[null,null,null,null,null,{"$f":"ROUND(D48*E48,2)","v":0},null,null,0,{"$f":"F48+I48","v":0},null,null,{"$f":"ISBLANK(B48)","v":true},true,true,true,{"$f":"M48+N48+O48+P48","v":4},{"$f":"IF(Q48=0,TRUE,FALSE)","v":false}]
[null,null,null,null,null,0,null,null,0,0,null,null,true,true,true,true,4,false]
[null,null,null,null,null,0,null,null,0,0,null,null,true,true,true,true,4,false]
[null,null,null,null,null,0,null,null,0,0,null,null,true,true,true,true,4,false]
[null,null,null,null,null,0,null,null,0,0,null,null,true,true,true,true,4,false]
[null,null,null,null,null,0,null,null,0,0,null,null,true,true,true,true,4,false]
[null,null,null,null,null,0,null,null,0,0,null,null,true,true,true,true,4,false]
[null,null,null,null,null,0,null,null,0,0,null,null,true,true,true,true,4,false]
[null,null,null,null,null,0,null,null,0,0,null,null,true,true,true,true,4,true]
[null,"3.3 Accommodation costs",null,null,null,{"$f":"SUM(F58:F77)","v":0},null,null,{"$f":"SUM(I58:I77)","v":0},{"$f":"SUM(J58:J77)","v":0},null,null,null,null,null,null,null,true]
[null,null,null,null,null,{"$f":"ROUND(D58*E58,2)","v":0},null,null,{"$f":"ROUND(G58*H58,2)","v":0},{"$f":"F58+I58","v":0},null,null,{"$f":"ISBLANK(B58)","v":true},{"$f":"ISBLANK(C58)","v":true},true,true,{"$f":"M58+N58+O58+P58","v":4},{"$f":"IF(Q58=0,TRUE,FALSE)","v":false}]
[null,null,null,null,null,{"$f":"ROUND(D59*E59,2)","v":0},null,null,0,{"$f":"F59+I59","v":0},null,null,{"$f":"ISBLANK(B59)","v":true},true,true,true,{"$f":"M59+N59+O59+P59","v":4},{"$f":"IF(Q59=0,TRUE,FALSE)","v":false}]
[null,null,null,null,null,0,null,null,0,0,null,null,true,true,true,true,4,false]
[null,null,null,null,null,0,null,null,0,0,null,null,true,true,true,true,4,false]
[null,null,null,null,null,0,null,null,0,0,null,null,true,true,true,true,4,false]
[null,null,null,null,null,0,null,null,0,0,null,null,true,true,true,true,4,false]
[null,null,null,null,null,0,null,null,0,0,null,null,true,true,true,true,4,false]
[null,null,null,null,null,0,null,null,0,0,null,null,true,true,true,true,4,false]
[null,null,null,null,null,0,null,null,0,0,null,null,true,true,true,true,4,false]
[null,null,null,null,null,0,null,null,0,0,null,null,true,true,true,true,4,true]
[null,null,null,null,null,{"$f":"ROUND(D68*E68,2)","v":0},null,null,{"$f":"ROUND(G68*H68,2)","v":0},{"$f":"F68+I68","v":0},null,null,{"$f":"ISBLANK(B68)","v":true},{"$f":"ISBLANK(C68)","v":true},{"$f":"ISBLANK(D68)","v":true},{"$f":"ISBLANK(E68)","v":true},{"$f":"M68+N68+O68+P68","v":4},{"$f":"IF(Q68=0,TRUE,FALSE)","v":false}]
[null,null,null,null,null,{"$f":"ROUND(D69*E69,2)","v":0},null,null,0,{"$f":"F69+I69","v":0},null,null,{"$f":"ISBLANK(B69)","v":true},true,true,true,{"$f":"M69+N69+O69+P69","v":4},{"$f":"IF(Q69=0,TRUE,FALSE)","v":false}]
[null,null,null,null,null,0,null,null,0,0,null,null,true,true,true,true,4,false]
[null,null,null,null,null,0,null,null,0,0,null,null,true,true,true,true,4,false]
[null,null,null,null,null,0,null,null,0,0,null,null,true,true,true,true,4,false]
[null,null,null,null,null,0,null,null,0,0,null,null,true,true,true,true,4,false]
[null,null,null,null,null,0,null,null,0,0,null,null,true,true,true,true,4,false]
[null,null,null,null,null,0,null,null,0,0,null,null,true,true,true,true,4,false]
[null,null,null,null,null,0,null,null,0,0,null,null,true,true,true,true,4,false]
[null,null,null,null,null,0,null,null,0,0,null,null,true,true,true,true,4,true]
[null,"3.4 Visa costs",null,null,null,{"$f":"SUM(F79:F88)","v":0},null,null,{"$f":"SUM(I79:I88)","v":0},{"$f":"SUM(J79:J88)","v":0},null,null,null,null,null,null,null,true]
[null,null,null,null,null,{"$f":"ROUND(D79*E79,2)","v":0},null,null,{"$f":"ROUND(G79*H79,2)","v":0},{"$f":"F79+I79","v":0},null,null,{"$f":"ISBLANK(B79)","v":true},{"$f":"ISBLANK(C79)","v":true},true,true,{"$f":"M79+N79+O79+P79","v":4},{"$f":"IF(Q79=0,TRUE,FALSE)","v":false}]
[null,null,null,null,null,{"$f":"ROUND(D80*E80,2)","v":0},null,null,0,{"$f":"F80+I80","v":0},null,null,{"$f":"ISBLANK(B80)","v":true},true,true,true,{"$f":"M80+N80+O80+P80","v":4},{"$f":"IF(Q80=0,TRUE,FALSE)","v":false}]
[null,null,null,null,null,0,null,null,0,0,null,null,true,true,true,true,4,false]
[null,null,null,null,null,0,null,null,0,0,null,null,true,true,true,true,4,false]
[null,null,null,null,null,0,null,null,0,0,null,null,true,true,true,true,4,false]
[null,null,null,null,null,0,null,null,0,0,null,null,true,true,true,true,4,false]
[null,null,null,null,null,0,null,null,0,0,null,null,true,true,true,true,4,false]
[null,null,null,null,null,0,null,null,0,0,null,null,true,true,true,true,4,false]
[null,null,null,null,null,0,null,null,0,0,null,null,true,true,true,true,4,false]
[null,null,null,null,null,0,null,null,0,0,null,null,true,true,true,true,4,true]
[null,"TOTAL",null,null,null,{"$f":"F78+F57+F36+F15","v":0},null,null,{"$f":"I78+I57+I36+I15","v":0},{"$f":"J78+J57+J36+J15","v":0},null,null,null,null,null,null,null,true]
[null,null,null,null,null,null,null,null,null,null,null,null,null,null,null,null,null,true]
[null,"BL4 - EXTERNAL EXPERTISE AND SERVICES COSTS","Unit","Expenditures in the eligible area",null,null,"Expenditures outside of the eligible area",null,null,"TOTAL",null,null,null,null,null,null,null,true]
[null,null,null,"Units","Unit rate","TOTAL","Units","Unit rate","TOTAL",null,null,null,null,null,null,null,null,true]
[null,"4.1 Rent of hall",null,null,null,{"$f":"SUM(F94:F113)","v":0},null,null,{"$f":"SUM(I94:I113)","v":0},{"$f":"SUM(J94:J113)","v":0},null,null,null,null,null,null,null,true]
[null,null,null,null,null,{"$f":"ROUND(D94*E94,2)","v":0},null,null,{"$f":"ROUND(G94*H94,2)","v":0},{"$f":"F94+I94","v":0},null,null,{"$f":"ISBLANK(B94)","v":true},{"$f":"ISBLANK(C94)","v":true},true,true,{"$f":"M94+N94+O94+P94","v":4},{"$f":"IF(Q94=0,TRUE,FALSE)","v":false}]
[null,null,null,null,null,{"$f":"ROUND(D95*E95,2)","v":0},null,null,0,{"$f":"F95+I95","v":0},null,null,{"$f":"ISBLANK(B95)","v":true},true,true,true,{"$f":"M95+N95+O95+P95","v":4},{"$f":"IF(Q95=0,TRUE,FALSE)","v":false}]
[null,null,null,null,null,0,null,null,0,0,null,null,true,true,true,true,4,false]
[null,null,null,null,null,0,null,null,0,0,null,null,true,true,true,true,4,false]
[null,null,null,null,null,0,null,null,0,0,null,null,true,true,true,true,4,false]
[null,null,null,null,null,0,null,null,0,0,null,null,true,true,true,true,4,false]
[null,null,null,null,null,0,null,null,0,0,null,null,true,true,true,true,4,false]
[null,null,null,null,null,0,null,null,0,0,null,null,true,true,true,true,4,false]
[null,null,null,null,null,0,null,null,0,0,null,null,true,true,true,true,4,false]
[null,null,null,null,null,0,null,null,0,0,null,null,true,true,true,true,4,true]
[null,null,null,null,null,{"$f":"ROUND(D104*E104,2)","v":0},null,null,{"$f":"ROUND(G104*H104,2)","v":0},{"$f":"F104+I104","v":0},null,null,{"$f":"ISBLANK(B104)","v":true},{"$f":"ISBLANK(C104)","v":true},{"$f":"ISBLANK(D104)","v":true},{"$f":"ISBLANK(E104)","v":true},{"$f":"M104+N104+O104+P104","v":4},{"$f":"IF(Q104=0,TRUE,FALSE)","v":false}]
[null,null,null,null,null,{"$f":"ROUND(D105*E105,2)","v":0},null,null,0,{"$f":"F105+I105","v":0},null,null,{"$f":"ISBLANK(B105)","v":true},true,true,true,{"$f":"M105+N105+O105+P105","v":4},{"$f":"IF(Q105=0,TRUE,FALSE)","v":false}]
[null,null,null,null,null,0,null,null,0,0,null,null,true,true,true,true,4,false]
[null,null,null,null,null,0,null,null,0,0,null,null,true,true,true,true,4,false]
[null,null,null,null,null,0,null,null,0,0,null,null,true,true,true,true,4,false]
[null,null,null,null,null,0,null,null,0,0,null,null,true,true,true,true,4,false]
[null,null,null,null,null,0,null,null,0,0,null,null,true,true,true,true,4,false]
[null,null,null,null,null,0,null,null,0,0,null,null,true,true,true,true,4,false]
[null,null,null,null,null,0,null,null,0,0,null,null,true,true,true,true,4,false]
[null,null,null,null,null,0,null,null,0,0,null,null,true,true,true,true,4,true]
[null,"4.2 Rent of equipment",null,null,null,{"$f":"SUM(F115:F134)","v":0},null,null,{"$f":"SUM(I115:I134)","v":0},{"$f":"SUM(J115:J134)","v":0},null,null,null,null,null,null,null,true]
[null,null,null,null,null,{"$f":"ROUND(D115*E115,2)","v":0},null,null,{"$f":"ROUND(G115*H115,2)","v":0},{"$f":"F115+I115","v":0},null,null,{"$f":"ISBLANK(B115)","v":true},{"$f":"ISBLANK(C115)","v":true},true,true,{"$f":"M115+N115+O115+P115","v":4},{"$f":"IF(Q115=0,TRUE,FALSE)","v":false}]
[null,null,null,null,null,{"$f":"ROUND(D116*E116,2)","v":0},null,null,0,{"$f":"F116+I116","v":0},null,null,{"$f":"ISBLANK(B116)","v":true},true,true,true,{"$f":"M116+N116+O116+P116","v":4},{"$f":"IF(Q116=0,TRUE,FALSE)","v":false}]
[null,null,null,null,null,0,null,null,0,0,null,null,true,true,true,true,4,false]
[null,null,null,null,null,0,null,null,0,0,null,null,true,true,true,true,4,false]
[null,null,null,null,null,0,null,null,0,0,null,null,true,true,true,true,4,false]
[null,null,null,null,null,0,null,null,0,0,null,null,true,true,true,true,4,false]
[null,null,null,null,null,0,null,null,0,0,null,null,true,true,true,true,4,false]
[null,null,null,null,null,0,null,null,0,0,null,null,true,true,true,true,4,false]
[null,null,null,null,null,0,null,null,0,0,null,null,true,true,true,true,4,false]
[null,null,null,null,null,0,null,null,0,0,null,null,true,true,true,true,4,true]
[null,null,null,null,null,{"$f":"ROUND(D125*E125,2)","v":0},null,null,{"$f":"ROUND(G125*H125,2)","v":0},{"$f":"F125+I125","v":0},null,null,{"$f":"ISBLANK(B125)","v":true},{"$f":"ISBLANK(C125)","v":true},{"$f":"ISBLANK(D125)","v":true},{"$f":"ISBLANK(E125)","v":true},{"$f":"M125+N125+O125+P125","v":4},{"$f":"IF(Q125=0,TRUE,FALSE)","v":false}]
[null,null,null,null,null,{"$f":"ROUND(D126*E126,2)","v":0},null,null,0,{"$f":"F126+I126","v":0},null,null,{"$f":"ISBLANK(B126)","v":true},true,true,true,{"$f":"M126+N126+O126+P126","v":4},{"$f":"IF(Q126=0,TRUE,FALSE)","v":false}]
[null,null,null,null,null,0,null,null,0,0,null,null,true,true,true,true,4,false]
[null,null,null,null,null,0,null,null,0,0,null,null,true,true,true,true,4,false]
[null,null,null,null,null,0,null,null,0,0,null,null,true,true,true,true,4,false]
[null,null,null,null,null,0,null,null,0,0,null,null,true,true,true,true,4,false]
[null,null,null,null,null,0,null,null,0,0,null,null,true,true,true,true,4,false]
[null,null,null,null,null,0,null,null,0,0,null,null,true,true,true,true,4,false]
[null,null,null,null,null,0,null,null,0,0,null,null,true,true,true,true,4,false]
[null,null,null,null,null,0,null,null,0,0,null,null,true,true,true,true,4,true]
[null,"4.3 Coffee breaks, refreshments, etc.",null,null,null,{"$f":"SUM(F136:F155)","v":0},null,null,{"$f":"SUM(I136:I155)","v":0},{"$f":"SUM(J136:J155)","v":0},null,null,null,null,null,null,null,true]
[null,null,null,null,null,{"$f":"ROUND(D136*E136,2)","v":0},null,null,{"$f":"ROUND(G136*H136,2)","v":0},{"$f":"F136+I136","v":0},null,null,{"$f":"ISBLANK(B136)","v":true},{"$f":"ISBLANK(C136)","v":true},true,true,{"$f":"M136+N136+O136+P136","v":4},{"$f":"IF(Q136=0,TRUE,FALSE)","v":false}]
[null,null,null,null,null,{"$f":"ROUND(D137*E137,2)","v":0},null,null,0,{"$f":"F137+I137","v":0},null,null,{"$f":"ISBLANK(B137)","v":true},true,true,true,{"$f":"M137+N137+O137+P137","v":4},{"$f":"IF(Q137=0,TRUE,FALSE)","v":false}]
[null,null,null,null,null,0,null,null,0,0,null,null,true,true,true,true,4,false]
[null,null,null,null,null,0,null,null,0,0,null,null,true,true,true,true,4,false]
[null,null,null,null,null,0,null,null,0,0,null,null,true,true,true,true,4,false]
[null,null,null,null,null,0,null,null,0,0,null,null,true,true,true,true,4,false]
[null,null,null,null,null,0,null,null,0,0,null,null,true,true,true,true,4,false]
[null,null,null,null,null,0,null,null,0,0,null,null,true,true,true,true,4,false]
[null,null,null,null,null,0,null,null,0,0,null,null,true,true,true,true,4,false]
[null,null,null,null,null,0,null,null,0,0,null,null,true,true,true,true,4,true]
[null,null,null,null,null,{"$f":"ROUND(D146*E146,2)","v":0},null,null,{"$f":"ROUND(G146*H146,2)","v":0},{"$f":"F146+I146","v":0},null,null,{"$f":"ISBLANK(B146)","v":true},{"$f":"ISBLANK(C146)","v":true},{"$f":"ISBLANK(D146)","v":true},{"$f":"ISBLANK(E146)","v":true},{"$f":"M146+N146+O146+P146","v":4},{"$f":"IF(Q146=0,TRUE,FALSE)","v":false}]
[null,null,null,null,null,{"$f":"ROUND(D147*E147,2)","v":0},null,null,0,{"$f":"F147+I147","v":0},null,null,{"$f":"ISBLANK(B147)","v":true},true,true,true,{"$f":"M147+N147+O147+P147","v":4},{"$f":"IF(Q147=0,TRUE,FALSE)","v":false}]
[null,null,null,null,null,0,null,null,0,0,null,null,true,true,true,true,4,false]
[null,null,null,null,null,0,null,null,0,0,null,null,true,true,true,true,4,false]
[null,null,null,null,null,0,null,null,0,0,null,null,true,true,true,true,4,false]
[null,null,null,null,null,0,null,null,0,0,null,null,true,true,true,true,4,false]
[null,null,null,null,null,0,null,null,0,0,null,null,true,true,true,true,4,false]
[null,null,null,null,null,0,null,null,0,0,null,null,true,true,true,true,4,false]
[null,null,null,null,null,0,null,null,0,0,null,null,true,true,true,true,4,false]
[null,null,null,null,null,0,null,null,0,0,null,null,true,true,true,true,4,true]
[null,"4.4 Consumables",null,null,null,{"$f":"SUM(F157:F176)","v":0},null,null,{"$f":"SUM(I157:I176)","v":0},{"$f":"SUM(J157:J176)","v":0},null,null,null,null,null,null,null,true]
[null,null,null,null,null,{"$f":"ROUND(D157*E157,2)","v":0},null,null,{"$f":"ROUND(G157*H157,2)","v":0},{"$f":"F157+I157","v":0},null,null,{"$f":"ISBLANK(B157)","v":true},{"$f":"ISBLANK(C157)","v":true},true,true,{"$f":"M157+N157+O157+P157","v":4},{"$f":"IF(Q157=0,TRUE,FALSE)","v":false}]
[null,null,null,null,null,{"$f":"ROUND(D158*E158,2)","v":0},null,null,0,{"$f":"F158+I158","v":0},null,null,{"$f":"ISBLANK(B158)","v":true},true,true,true,{"$f":"M158+N158+O158+P158","v":4},{"$f":"IF(Q158=0,TRUE,FALSE)","v":false}]
[null,null,null,null,null,0,null,null,0,0,null,null,true,true,true,true,4,false]
[null,null,null,null,null,0,null,null,0,0,null,null,true,true,true,true,4,false]
[null,null,null,null,null,0,null,null,0,0,null,null,true,true,true,true,4,false]
[null,null,null,null,null,0,null,null,0,0,null,null,true,true,true,true,4,false]
[null,null,null,null,null,0,null,null,0,0,null,null,true,true,true,true,4,false]
[null,null,null,null,null,0,null,null,0,0,null,null,true,true,true,true,4,false]
[null,null,null,null,null,0,null,null,0,0,null,null,true,true,true,true,4,false]
[null,null,null,null,null,0,null,null,0,0,null,null,true,true,true,true,4,true]
[null,null,null,null,null,{"$f":"ROUND(D167*E167,2)","v":0},null,null,{"$f":"ROUND(G167*H167,2)","v":0},{"$f":"F167+I167","v":0},null,null,{"$f":"ISBLANK(B167)","v":true},{"$f":"ISBLANK(C167)","v":true},{"$f":"ISBLANK(D167)","v":true},{"$f":"ISBLANK(E167)","v":true},{"$f":"M167+N167+O167+P167","v":4},{"$f":"IF(Q167=0,TRUE,FALSE)","v":false}]
[null,null,null,null,null,{"$f":"ROUND(D168*E168,2)","v":0},null,null,0,{"$f":"F168+I168","v":0},null,null,{"$f":"ISBLANK(B168)","v":true},true,true,true,{"$f":"M168+N168+O168+P168","v":4},{"$f":"IF(Q168=0,TRUE,FALSE)","v":false}]
[null,null,null,null,null,0,null,null,0,0,null,null,true,true,true,true,4,false]
[null,null,null,null,null,0,null,null,0,0,null,null,true,true,true,true,4,false]
[null,null,null,null,null,0,null,null,0,0,null,null,true,true,true,true,4,false]
[null,null,null,null,null,0,null,null,0,0,null,null,true,true,true,true,4,false]
[null,null,null,null,null,0,null,null,0,0,null,null,true,true,true,true,4,false]
[null,null,null,null,null,0,null,null,0,0,null,null,true,true,true,true,4,false]
[null,null,null,null,null,0,null,null,0,0,null,null,true,true,true,true,4,false]
[null,null,null,null,null,0,null,null,0,0,null,null,true,true,true,true,4,true]
[null,"4.5 Rent of vehicle for event",null,null,null,{"$f":"SUM(F178:F197)","v":0},null,null,{"$f":"SUM(I178:I197)","v":0},{"$f":"SUM(J178:J197)","v":0},null,null,null,null,null,null,null,true]
[null,null,null,null,null,{"$f":"ROUND(D178*E178,2)","v":0},null,null,{"$f":"ROUND(G178*H178,2)","v":0},{"$f":"F178+I178","v":0},null,null,{"$f":"ISBLANK(B178)","v":true},{"$f":"ISBLANK(C178)","v":true},true,true,{"$f":"M178+N178+O178+P178","v":4},{"$f":"IF(Q178=0,TRUE,FALSE)","v":false}]
[null,null,null,null,null,{"$f":"ROUND(D179*E179,2)","v":0},null,null,0,{"$f":"F179+I179","v":0},null,null,{"$f":"ISBLANK(B179)","v":true},true,true,true,{"$f":"M179+N179+O179+P179","v":4},{"$f":"IF(Q179=0,TRUE,FALSE)","v":false}]
[null,null,null,null,null,0,null,null,0,0,null,null,true,true,true,true,4,false]
[null,null,null,null,null,0,null,null,0,0,null,null,true,true,true,true,4,false]
[null,null,null,null,null,0,null,null,0,0,null,null,true,true,true,true,4,false]
[null,null,null,null,null,0,null,null,0,0,null,null,true,true,true,true,4,false]
[null,null,null,null,null,0,null,null,0,0,null,null,true,true,true,true,4,false]
[null,null,null,null,null,0,null,null,0,0,null,null,true,true,true,true,4,false]
[null,null,null,null,null,0,null,null,0,0,null,null,true,true,true,true,4,false]
[null,null,null,null,null,0,null,null,0,0,null,null,true,true,true,true,4,true]
[null,null,null,null,null,{"$f":"ROUND(D188*E188,2)","v":0},null,null,{"$f":"ROUND(G188*H188,2)","v":0},{"$f":"F188+I188","v":0},null,null,{"$f":"ISBLANK(B188)","v":true},{"$f":"ISBLANK(C188)","v":true},{"$f":"ISBLANK(D188)","v":true},{"$f":"ISBLANK(E188)","v":true},{"$f":"M188+N188+O188+P188","v":4},{"$f":"IF(Q188=0,TRUE,FALSE)","v":false}]
[null,null,null,null,null,{"$f":"ROUND(D189*E189,2)","v":0},null,null,0,{"$f":"F189+I189","v":0},null,null,{"$f":"ISBLANK(B189)","v":true},true,true,true,{"$f":"M189+N189+O189+P189","v":4},{"$f":"IF(Q189=0,TRUE,FALSE)","v":false}]
[null,null,null,null,null,0,null,null,0,0,null,null,true,true,true,true,4,false]
[null,null,null,null,null,0,null,null,0,0,null,null,true,true,true,true,4,false]
[null,null,null,null,null,0,null,null,0,0,null,null,true,true,true,true,4,false]
[null,null,null,null,null,0,null,null,0,0,null,null,true,true,true,true,4,false]
[null,null,null,null,null,0,null,null,0,0,null,null,true,true,true,true,4,false]
[null,null,null,null,null,0,null,null,0,0,null,null,true,true,true,true,4,false]
[null,null,null,null,null,0,null,null,0,0,null,null,true,true,true,true,4,false]
[null,null,null,null,null,0,null,null,0,0,null,null,true,true,true,true,4,true]
[null,"4.6 Accommodations for participants in the events ",null,null,null,{"$f":"SUM(F199:F218)","v":0},null,null,{"$f":"SUM(I199:I218)","v":0},{"$f":"SUM(J199:J218)","v":0},null,null,null,null,null,null,null,true]
[null,null,null,null,null,{"$f":"ROUND(D199*E199,2)","v":0},null,null,{"$f":"ROUND(G199*H199,2)","v":0},{"$f":"F199+I199","v":0},null,null,{"$f":"ISBLANK(B199)","v":true},{"$f":"ISBLANK(C199)","v":true},true,true,{"$f":"M199+N199+O199+P199","v":4},{"$f":"IF(Q199=0,TRUE,FALSE)","v":false}]
[null,null,null,null,null,{"$f":"ROUND(D200*E200,2)","v":0},null,null,0,{"$f":"F200+I200","v":0},null,null,{"$f":"ISBLANK(B200)","v":true},true,true,true,{"$f":"M200+N200+O200+P200","v":4},{"$f":"IF(Q200=0,TRUE,FALSE)","v":false}]
[null,null,null,null,null,0,null,null,0,0,null,null,true,true,true,true,4,false]
[null,null,null,null,null,0,null,null,0,0,null,null,true,true,true,true,4,false]
[null,null,null,null,null,0,null,null,0,0,null,null,true,true,true,true,4,false]
[null,null,null,null,null,0,null,null,0,0,null,null,true,true,true,true,4,false]
[null,null,null,null,null,0,null,null,0,0,null,null,true,true,true,true,4,false]
[null,null,null,null,null,0,null,null,0,0,null,null,true,true,true,true,4,false]
[null,null,null,null,null,0,null,null,0,0,null,null,true,true,true,true,4,false]
[null,null,null,null,null,0,null,null,0,0,null,null,true,true,true,true,4,true]
[null,null,null,null,null,{"$f":"ROUND(D209*E209,2)","v":0},null,null,{"$f":"ROUND(G209*H209,2)","v":0},{"$f":"F209+I209","v":0},null,null,{"$f":"ISBLANK(B209)","v":true},{"$f":"ISBLANK(C209)","v":true},{"$f":"ISBLANK(D209)","v":true},{"$f":"ISBLANK(E209)","v":true},{"$f":"M209+N209+O209+P209","v":4},{"$f":"IF(Q209=0,TRUE,FALSE)","v":false}]
[null,null,null,null,null,{"$f":"ROUND(D210*E210,2)","v":0},null,null,0,{"$f":"F210+I210","v":0},null,null,{"$f":"ISBLANK(B210)","v":true},true,true,true,{"$f":"M210+N210+O210+P210","v":4},{"$f":"IF(Q210=0,TRUE,FALSE)","v":false}]
[null,null,null,null,null,0,null,null,0,0,null,null,true,true,true,true,4,false]
[null,null,null,null,null,0,null,null,0,0,null,null,true,true,true,true,4,false]
[null,null,null,null,null,0,null,null,0,0,null,null,true,true,true,true,4,false]
[null,null,null,null,null,0,null,null,0,0,null,null,true,true,true,true,4,false]
[null,null,null,null,null,0,null,null,0,0,null,null,true,true,true,true,4,false]
[null,null,null,null,null,0,null,null,0,0,null,null,true,true,true,true,4,false]
[null,null,null,null,null,0,null,null,0,0,null,null,true,true,true,true,4,false]
[null,null,null,null,null,0,null,null,0,0,null,null,true,true,true,true,4,true]
[null,"4.7 Elaboration, design,translation etc.",null,null,null,{"$f":"SUM(F220:F239)","v":0},null,null,{"$f":"SUM(I220:I239)","v":0},{"$f":"SUM(J220:J239)","v":0},null,null,null,null,null,null,null,true]
[null,null,null,null,null,{"$f":"ROUND(D220*E220,2)","v":0},null,null,{"$f":"ROUND(G220*H220,2)","v":0},{"$f":"F220+I220","v":0},null,null,{"$f":"ISBLANK(B220)","v":true},{"$f":"ISBLANK(C220)","v":true},true,true,{"$f":"M220+N220+O220+P220","v":4},{"$f":"IF(Q220=0,TRUE,FALSE)","v":false}]
[null,null,null,null,null,{"$f":"ROUND(D221*E221,2)","v":0},null,null,0,{"$f":"F221+I221","v":0},null,null,{"$f":"ISBLANK(B221)","v":true},true,true,true,{"$f":"M221+N221+O221+P221","v":4},{"$f":"IF(Q221=0,TRUE,FALSE)","v":false}]
[null,null,null,null,null,0,null,null,0,0,null,null,true,true,true,true,4,false]
[null,null,null,null,null,0,null,null,0,0,null,null,true,true,true,true,4,false]
[null,null,null,null,null,0,null,null,0,0,null,null,true,true,true,true,4,false]
[null,null,null,null,null,0,null,null,0,0,null,null,true,true,true,true,4,false]
[null,null,null,null,null,0,null,null,0,0,null,null,true,true,true,true,4,false]
[null,null,null,null,null,0,null,null,0,0,null,null,true,true,true,true,4,false]
[null,null,null,null,null,{"$f":"ROUND(D228*E228,2)","v":0},null,null,0,0,null,null,true,true,true,true,4,false]
[null,null,null,null,null,{"$f":"ROUND(D229*E229,2)","v":0},null,null,0,0,null,null,true,true,true,true,4,true]
[null,null,null,null,null,{"$f":"ROUND(D230*E230,2)","v":0},null,null,{"$f":"ROUND(G230*H230,2)","v":0},{"$f":"F230+I230","v":0},null,null,{"$f":"ISBLANK(B230)","v":true},{"$f":"ISBLANK(C230)","v":true},{"$f":"ISBLANK(D230)","v":true},{"$f":"ISBLANK(E230)","v":true},{"$f":"M230+N230+O230+P230","v":4},{"$f":"IF(Q230=0,TRUE,FALSE)","v":false}]
[null,null,null,null,null,{"$f":"ROUND(D231*E231,2)","v":0},null,null,0,{"$f":"F231+I231","v":0},null,null,{"$f":"ISBLANK(B231)","v":true},true,true,true,{"$f":"M231+N231+O231+P231","v":4},{"$f":"IF(Q231=0,TRUE,FALSE)","v":false}]
[null,null,null,null,null,0,null,null,0,0,null,null,true,true,true,true,4,false]
[null,null,null,null,null,0,null,null,0,0,null,null,true,true,true,true,4,false]
[null,null,null,null,null,0,null,null,0,0,null,null,true,true,true,true,4,false]
[null,null,null,null,null,0,null,null,0,0,null,null,true,true,true,true,4,false]
[null,null,null,null,null,0,null,null,0,0,null,null,true,true,true,true,4,false]
[null,null,null,null,null,0,null,null,0,0,null,null,true,true,true,true,4,false]
[null,null,null,null,null,{"$f":"ROUND(D238*E238,2)","v":0},null,null,0,0,null,null,true,true,true,true,4,false]
[null,null,null,null,null,{"$f":"ROUND(D239*E239,2)","v":0},null,null,0,0,null,null,true,true,true,true,4,true]
[null,"4.8 Publications in mass-media",null,null,null,{"$f":"SUM(F241:F260)","v":0},null,null,{"$f":"SUM(I241:I260)","v":0},{"$f":"SUM(J241:J260)","v":0},null,null,null,null,null,null,null,true]
[null,null,null,null,null,{"$f":"ROUND(D241*E241,2)","v":0},null,null,{"$f":"ROUND(G241*H241,2)","v":0},{"$f":"F241+I241","v":0},null,null,{"$f":"ISBLANK(B241)","v":true},{"$f":"ISBLANK(C241)","v":true},true,true,{"$f":"M241+N241+O241+P241","v":4},{"$f":"IF(Q241=0,TRUE,FALSE)","v":false}]
[null,null,null,null,null,{"$f":"ROUND(D242*E242,2)","v":0},null,null,0,{"$f":"F242+I242","v":0},null,null,{"$f":"ISBLANK(B242)","v":true},true,true,true,{"$f":"M242+N242+O242+P242","v":4},{"$f":"IF(Q242=0,TRUE,FALSE)","v":false}]
[null,null,null,null,null,0,null,null,0,0,null,null,true,true,true,true,4,false]
[null,null,null,null,null,0,null,null,0,0,null,null,true,true,true,true,4,false]
[null,null,null,null,null,0,null,null,0,0,null,null,true,true,true,true,4,false]
[null,null,null,null,null,0,null,null,0,0,null,null,true,true,true,true,4,false]
[null,null,null,null,null,0,null,null,0,0,null,null,true,true,true,true,4,false]
[null,null,null,null,null,0,null,null,0,0,null,null,true,true,true,true,4,false]
[null,null,null,null,null,0,null,null,0,0,null,null,true,true,true,true,4,false]
[null,null,null,null,null,0,null,null,0,0,null,null,true,true,true,true,4,true]
[null,null,null,null,null,{"$f":"ROUND(D251*E251,2)","v":0},null,null,{"$f":"ROUND(G251*H251,2)","v":0},{"$f":"F251+I251","v":0},null,null,{"$f":"ISBLANK(B251)","v":true},{"$f":"ISBLANK(C251)","v":true},{"$f":"ISBLANK(D251)","v":true},{"$f":"ISBLANK(E251)","v":true},{"$f":"M251+N251+O251+P251","v":4},{"$f":"IF(Q251=0,TRUE,FALSE)","v":false}]
[null,null,null,null,null,{"$f":"ROUND(D252*E252,2)","v":0},null,null,0,{"$f":"F252+I252","v":0},null,null,{"$f":"ISBLANK(B252)","v":true},true,true,true,{"$f":"M252+N252+O252+P252","v":4},{"$f":"IF(Q252=0,TRUE,FALSE)","v":false}]
[null,null,null,null,null,0,null,null,0,0,null,null,true,true,true,true,4,false]
[null,null,null,null,null,0,null,null,0,0,null,null,true,true,true,true,4,false]
[null,null,null,null,null,0,null,null,0,0,null,null,true,true,true,true,4,false]
[null,null,null,null,null,0,null,null,0,0,null,null,true,true,true,true,4,false]
[null,null,null,null,null,0,null,null,0,0,null,null,true,true,true,true,4,false]
[null,null,null,null,null,0,null,null,0,0,null,null,true,true,true,true,4,false]
[null,null,null,null,null,0,null,null,0,0,null,null,true,true,true,true,4,false]
[null,null,null,null,null,0,null,null,0,0,null,null,true,true,true,true,4,true]
[null,"4.9 Consultancy, studies,designs, website development etc.",null,null,null,{"$f":"SUM(F262:F281)","v":0},null,null,{"$f":"SUM(I262:I281)","v":0},{"$f":"SUM(J262:J281)","v":0},null,null,null,null,null,null,null,true]
[null,null,null,null,null,{"$f":"ROUND(D262*E262,2)","v":0},null,null,{"$f":"ROUND(G262*H262,2)","v":0},{"$f":"F262+I262","v":0},null,null,{"$f":"ISBLANK(B262)","v":true},{"$f":"ISBLANK(C262)","v":true},true,true,{"$f":"M262+N262+O262+P262","v":4},{"$f":"IF(Q262=0,TRUE,FALSE)","v":false}]
[null,null,null,null,null,{"$f":"ROUND(D263*E263,2)","v":0},null,null,0,{"$f":"F263+I263","v":0},null,null,{"$f":"ISBLANK(B263)","v":true},true,true,true,{"$f":"M263+N263+O263+P263","v":4},{"$f":"IF(Q263=0,TRUE,FALSE)","v":false}]
[null,null,null,null,null,0,null,null,0,0,null,null,true,true,true,true,4,false]
[null,null,null,null,null,0,null,null,0,0,null,null,true,true,true,true,4,false]
[null,null,null,null,null,0,null,null,0,0,null,null,true,true,true,true,4,false]
[null,null,null,null,null,0,null,null,0,0,null,null,true,true,true,true,4,false]
[null,null,null,null,null,0,null,null,0,0,null,null,true,true,true,true,4,false]
[null,null,null,null,null,0,null,null,0,0,null,null,true,true,true,true,4,false]
[null,null,null,null,null,0,null,null,0,0,null,null,true,true,true,true,4,false]
[null,null,null,null,null,0,null,null,0,0,null,null,true,true,true,true,4,true]
[null,null,null,null,null,{"$f":"ROUND(D272*E272,2)","v":0},null,null,{"$f":"ROUND(G272*H272,2)","v":0},{"$f":"F272+I272","v":0},null,null,{"$f":"ISBLANK(B272)","v":true},{"$f":"ISBLANK(C272)","v":true},{"$f":"ISBLANK(D272)","v":true},{"$f":"ISBLANK(E272)","v":true},{"$f":"M272+N272+O272+P272","v":4},{"$f":"IF(Q272=0,TRUE,FALSE)","v":false}]
[null,null,null,null,null,{"$f":"ROUND(D273*E273,2)","v":0},null,null,0,{"$f":"F273+I273","v":0},null,null,{"$f":"ISBLANK(B273)","v":true},true,true,true,{"$f":"M273+N273+O273+P273","v":4},{"$f":"IF(Q273=0,TRUE,FALSE)","v":false}]
[null,null,null,null,null,0,null,null,0,0,null,null,true,true,true,true,4,false]
[null,null,null,null,null,0,null,null,0,0,null,null,true,true,true,true,4,false]
[null,null,null,null,null,0,null,null,0,0,null,null,true,true,true,true,4,false]
[null,null,null,null,null,0,null,null,0,0,null,null,true,true,true,true,4,false]
[null,null,null,null,null,0,null,null,0,0,null,null,true,true,true,true,4,false]
[null,null,null,null,null,0,null,null,0,0,null,null,true,true,true,true,4,false]
[null,null,null,null,null,0,null,null,0,0,null,null,true,true,true,true,4,false]
[null,null,null,null,null,0,null,null,0,0,null,null,true,true,true,true,4,true]
[null,"4.10 Authorizations, certificates",null,null,null,{"$f":"SUM(F283:F302)","v":0},null,null,{"$f":"SUM(I283:I302)","v":0},{"$f":"SUM(J283:J302)","v":0},null,null,null,null,null,null,null,true]
[null,null,null,null,null,{"$f":"ROUND(D283*E283,2)","v":0},null,null,{"$f":"ROUND(G283*H283,2)","v":0},{"$f":"F283+I283","v":0},null,null,{"$f":"ISBLANK(B283)","v":true},{"$f":"ISBLANK(C283)","v":true},true,true,{"$f":"M283+N283+O283+P283","v":4},{"$f":"IF(Q283=0,TRUE,FALSE)","v":false}]
[null,null,null,null,null,{"$f":"ROUND(D284*E284,2)","v":0},null,null,0,{"$f":"F284+I284","v":0},null,null,{"$f":"ISBLANK(B284)","v":true},true,true,true,{"$f":"M284+N284+O284+P284","v":4},{"$f":"IF(Q284=0,TRUE,FALSE)","v":false}]
[null,null,null,null,null,0,null,null,0,0,null,null,true,true,true,true,4,false]
[null,null,null,null,null,0,null,null,0,0,null,null,true,true,true,true,4,false]
[null,null,null,null,null,0,null,null,0,0,null,null,true,true,true,true,4,false]
[null,null,null,null,null,0,null,null,0,0,null,null,true,true,true,true,4,false]
[null,null,null,null,null,0,null,null,0,0,null,null,true,true,true,true,4,false]
[null,null,null,null,null,0,null,null,0,0,null,null,true,true,true,true,4,false]
[null,null,null,null,null,0,null,null,0,0,null,null,true,true,true,true,4,false]
[null,null,null,null,null,0,null,null,0,0,null,null,true,true,true,true,4,true]
[null,null,null,null,null,{"$f":"ROUND(D293*E293,2)","v":0},null,null,{"$f":"ROUND(G293*H293,2)","v":0},{"$f":"F293+I293","v":0},null,null,{"$f":"ISBLANK(B293)","v":true},{"$f":"ISBLANK(C293)","v":true},{"$f":"ISBLANK(D293)","v":true},{"$f":"ISBLANK(E293)","v":true},{"$f":"M293+N293+O293+P293","v":4},{"$f":"IF(Q293=0,TRUE,FALSE)","v":false}]
[null,null,null,null,null,{"$f":"ROUND(D294*E294,2)","v":0},null,null,0,{"$f":"F294+I294","v":0},null,null,{"$f":"ISBLANK(B294)","v":true},true,true,true,{"$f":"M294+N294+O294+P294","v":4},{"$f":"IF(Q294=0,TRUE,FALSE)","v":false}]
[null,null,null,null,null,0,null,null,0,0,null,null,true,true,true,true,4,false]
[null,null,null,null,null,0,null,null,0,0,null,null,true,true,true,true,4,false]
[null,null,null,null,null,0,null,null,0,0,null,null,true,true,true,true,4,false]
[null,null,null,null,null,0,null,null,0,0,null,null,true,true,true,true,4,false]
[null,null,null,null,null,0,null,null,0,0,null,null,true,true,true,true,4,false]
[null,null,null,null,null,0,null,null,0,0,null,null,true,true,true,true,4,false]
[null,null,null,null,null,0,null,null,0,0,null,null,true,true,true,true,4,false]
[null,null,null,null,null,0,null,null,0,0,null,null,true,true,true,true,4,true]
[null,"4.11 Interpreters, lecturers, trainers",null,null,null,{"$f":"SUM(F304:F323)","v":0},null,null,{"$f":"SUM(I304:I323)","v":0},{"$f":"SUM(J304:J323)","v":0},null,null,null,null,null,null,null,true]
[null,null,null,null,null,{"$f":"ROUND(D304*E304,2)","v":0},null,null,{"$f":"ROUND(G304*H304,2)","v":0},{"$f":"F304+I304","v":0},null,null,{"$f":"ISBLANK(B304)","v":true},{"$f":"ISBLANK(C304)","v":true},true,true,{"$f":"M304+N304+O304+P304","v":4},{"$f":"IF(Q304=0,TRUE,FALSE)","v":false}]
[null,null,null,null,null,{"$f":"ROUND(D305*E305,2)","v":0},null,null,0,{"$f":"F305+I305","v":0},null,null,{"$f":"ISBLANK(B305)","v":true},true,true,true,{"$f":"M305+N305+O305+P305","v":4},{"$f":"IF(Q305=0,TRUE,FALSE)","v":false}]
[null,null,null,null,null,0,null,null,0,0,null,null,true,true,true,true,4,false]
[null,null,null,null,null,0,null,null,0,0,null,null,true,true,true,true,4,false]
[null,null,null,null,null,0,null,null,0,0,null,null,true,true,true,true,4,false]
[null,null,null,null,null,0,null,null,0,0,null,null,true,true,true,true,4,false]
[null,null,null,null,null,0,null,null,0,0,null,null,true,true,true,true,4,false]
[null,null,null,null,null,0,null,null,0,0,null,null,true,true,true,true,4,false]
[null,null,null,null,null,0,null,null,0,0,null,null,true,true,true,true,4,false]
[null,null,null,null,null,0,null,null,0,0,null,null,true,true,true,true,4,true]
[null,null,null,null,null,{"$f":"ROUND(D314*E314,2)","v":0},null,null,{"$f":"ROUND(G314*H314,2)","v":0},{"$f":"F314+I314","v":0},null,null,{"$f":"ISBLANK(B314)","v":true},{"$f":"ISBLANK(C314)","v":true},{"$f":"ISBLANK(D314)","v":true},{"$f":"ISBLANK(E314)","v":true},{"$f":"M314+N314+O314+P314","v":4},{"$f":"IF(Q314=0,TRUE,FALSE)","v":false}]
[null,null,null,null,null,{"$f":"ROUND(D315*E315,2)","v":0},null,null,0,{"$f":"F315+I315","v":0},null,null,{"$f":"ISBLANK(B315)","v":true},true,true,true,{"$f":"M315+N315+O315+P315","v":4},{"$f":"IF(Q315=0,TRUE,FALSE)","v":false}]
[null,null,null,null,null,0,null,null,0,0,null,null,true,true,true,true,4,false]
[null,null,null,null,null,0,null,null,0,0,null,null,true,true,true,true,4,false]
[null,null,null,null,null,0,null,null,0,0,null,null,true,true,true,true,4,false]
[null,null,null,null,null,0,null,null,0,0,null,null,true,true,true,true,4,false]
[null,null,null,null,null,0,null,null,0,0,null,null,true,true,true,true,4,false]
[null,null,null,null,null,0,null,null,0,0,null,null,true,true,true,true,4,false]
[null,null,null,null,null,0,null,null,0,0,null,null,true,true,true,true,4,false]
[null,null,null,null,null,0,null,null,0,0,null,null,true,true,true,true,4,true]
[null,"4.12 Others",null,null,null,{"$f":"SUM(F325:F344)","v":0},null,null,{"$f":"SUM(I325:I344)","v":0},{"$f":"SUM(J325:J344)","v":0},null,null,null,null,null,null,null,true]
[null,null,null,null,null,{"$f":"ROUND(D325*E325,2)","v":0},null,null,{"$f":"ROUND(G325*H325,2)","v":0},{"$f":"F325+I325","v":0},null,null,{"$f":"ISBLANK(B325)","v":true},{"$f":"ISBLANK(C325)","v":true},true,true,{"$f":"M325+N325+O325+P325","v":4},{"$f":"IF(Q325=0,TRUE,FALSE)","v":false}]
[null,null,null,null,null,{"$f":"ROUND(D326*E326,2)","v":0},null,null,0,{"$f":"F326+I326","v":0},null,null,{"$f":"ISBLANK(B326)","v":true},true,true,true,{"$f":"M326+N326+O326+P326","v":4},{"$f":"IF(Q326=0,TRUE,FALSE)","v":false}]
[null,null,null,null,null,0,null,null,0,0,null,null,true,true,true,true,4,false]
[null,null,null,null,null,0,null,null,0,0,null,null,true,true,true,true,4,false]
[null,null,null,null,null,0,null,null,0,0,null,null,true,true,true,true,4,false]
[null,null,null,null,null,0,null,null,0,0,null,null,true,true,true,true,4,false]
[null,null,null,null,null,0,null,null,0,0,null,null,true,true,true,true,4,false]
[null,null,null,null,null,0,null,null,0,0,null,null,true,true,true,true,4,false]
[null,null,null,null,null,0,null,null,0,0,null,null,true,true,true,true,4,false]
[null,null,null,null,null,0,null,null,0,0,null,null,true,true,true,true,4,true]
[null,null,null,null,null,{"$f":"ROUND(D335*E335,2)","v":0},null,null,{"$f":"ROUND(G335*H335,2)","v":0},{"$f":"F335+I335","v":0},null,null,{"$f":"ISBLANK(B335)","v":true},{"$f":"ISBLANK(C335)","v":true},{"$f":"ISBLANK(D335)","v":true},{"$f":"ISBLANK(E335)","v":true},{"$f":"M335+N335+O335+P335","v":4},{"$f":"IF(Q335=0,TRUE,FALSE)","v":false}]
[null,null,null,null,null,{"$f":"ROUND(D336*E336,2)","v":0},null,null,0,{"$f":"F336+I336","v":0},null,null,{"$f":"ISBLANK(B336)","v":true},true,true,true,{"$f":"M336+N336+O336+P336","v":4},{"$f":"IF(Q336=0,TRUE,FALSE)","v":false}]
[null,null,null,null,null,0,null,null,0,0,null,null,true,true,true,true,4,false]
[null,null,null,null,null,0,null,null,0,0,null,null,true,true,true,true,4,false]
[null,null,null,null,null,0,null,null,0,0,null,null,true,true,true,true,4,false]
[null,null,null,null,null,0,null,null,0,0,null,null,true,true,true,true,4,false]
[null,null,null,null,null,0,null,null,0,0,null,null,true,true,true,true,4,false]
[null,null,null,null,null,0,null,null,0,0,null,null,true,true,true,true,4,false]
[null,null,null,null,null,0,null,null,0,0,null,null,true,true,true,true,4,false]
[null,null,null,null,null,0,null,null,0,0,null,null,true,true,true,true,4,true]
[null,null,null,null,null,{"$f":"F324+F303+F282+F261+F240+F219+F198+F177+F156+F135+F114+F93","v":0},null,null,{"$f":"I324+I303+I282+I261+I240+I219+I198+I177+I156+I135+I114+I93","v":0},{"$f":"J324+J303+J282+J261+J240+J219+J198+J177+J156+J135+J114+J93","v":0},null,null,null,null,null,null,null,true]
[null,null,null,null,null,null,null,null,null,null,null,null,{"$f":"O350+P350+N346","v":2},{"$f":"M8=\"Soft\"","v":false},null,null,null,true]
[null,"BL5 - EQUIPMENT AND WORKS","Unit","Expenditures in the eligible area",null,null,"N/A",null,null,"TOTAL",null,null,null,null,null,null,null,true]
[null,null,null,"Units","Unit rate","TOTAL","Units","Unit rate","TOTAL",null,null,null,null,null,null,null,null,true]
[null,"5.1 Small scale construction",null,null,null,{"$f":"SUM(F350:F369)","v":0},null,null,{"$f":"SUM(I350:I369)","v":0},{"$f":"SUM(J350:J369)","v":0},null,null,null,null,null,null,null,true]
[null,null,null,null,null,{"$f":"ROUND(D350*E350,2)","v":0},null,null,{"$f":"ROUND(G350*H350,2)","v":0},{"$f":"F350+I350","v":0},null,null,{"$f":"ISBLANK(B350)","v":true},{"$f":"ISBLANK(C350)","v":true},true,true,{"$f":"M350+N350+O350+P350","v":4},{"$f":"IF(Q350=0,TRUE,FALSE)","v":false}]
[null,null,null,null,null,{"$f":"ROUND(D351*E351,2)","v":0},null,null,0,{"$f":"F351+I351","v":0},null,null,{"$f":"ISBLANK(B351)","v":true},true,true,true,{"$f":"M351+N351+O351+P351","v":4},{"$f":"IF(Q351=0,TRUE,FALSE)","v":false}]
[null,null,null,null,null,0,null,null,0,0,null,null,true,true,true,true,4,false]
[null,null,null,null,null,0,null,null,0,0,null,null,true,true,true,true,4,false]
[null,null,null,null,null,0,null,null,0,0,null,null,true,true,true,true,4,false]
[null,null,null,null,null,0,null,null,0,0,null,null,true,true,true,true,4,false]
[null,null,null,null,null,0,null,null,0,0,null,null,true,true,true,true,4,false]
[null,null,null,null,null,0,null,null,0,0,null,null,true,true,true,true,4,false]
[null,null,null,null,null,0,null,null,0,0,null,null,true,true,true,true,4,false]
[null,null,null,null,null,0,null,null,0,0,null,null,true,true,true,true,4,true]
[null,null,null,null,null,{"$f":"ROUND(D360*E360,2)","v":0},null,null,{"$f":"ROUND(G360*H360,2)","v":0},{"$f":"F360+I360","v":0},null,null,{"$f":"ISBLANK(B360)","v":true},{"$f":"ISBLANK(C360)","v":true},{"$f":"ISBLANK(D360)","v":true},{"$f":"ISBLANK(E360)","v":true},{"$f":"M360+N360+O360+P360","v":4},{"$f":"IF(Q360=0,TRUE,FALSE)","v":false}]
[null,null,null,null,null,{"$f":"ROUND(D361*E361,2)","v":0},null,null,0,{"$f":"F361+I361","v":0},null,null,{"$f":"ISBLANK(B361)","v":true},true,true,true,{"$f":"M361+N361+O361+P361","v":4},{"$f":"IF(Q361=0,TRUE,FALSE)","v":false}]
[null,null,null,null,null,0,null,null,0,0,null,null,true,true,true,true,4,false]
[null,null,null,null,null,0,null,null,0,0,null,null,true,true,true,true,4,false]
[null,null,null,null,null,0,null,null,0,0,null,null,true,true,true,true,4,false]
[null,null,null,null,null,0,null,null,0,0,null,null,true,true,true,true,4,false]
[null,null,null,null,null,0,null,null,0,0,null,null,true,true,true,true,4,false]
[null,null,null,null,null,0,null,null,0,0,null,null,true,true,true,true,4,false]
[null,null,null,null,null,0,null,null,0,0,null,null,true,true,true,true,4,false]
[null,null,null,null,null,0,null,null,0,0,null,null,true,true,true,true,4,true]
[null,"5.2 Supply",null,null,null,{"$f":"SUM(F371:F390)","v":0},null,null,{"$f":"SUM(I371:I390)","v":0},{"$f":"SUM(J371:J390)","v":0},null,null,null,null,null,null,null,true]
[null,null,null,null,null,{"$f":"ROUND(D371*E371,2)","v":0},null,null,{"$f":"ROUND(G371*H371,2)","v":0},{"$f":"F371+I371","v":0},null,null,{"$f":"ISBLANK(B371)","v":true},{"$f":"ISBLANK(C371)","v":true},true,true,{"$f":"M371+N371+O371+P371","v":4},{"$f":"IF(Q371=0,TRUE,FALSE)","v":false}]
[null,null,null,null,null,{"$f":"ROUND(D372*E372,2)","v":0},null,null,0,{"$f":"F372+I372","v":0},null,null,{"$f":"ISBLANK(B372)","v":true},true,true,true,{"$f":"M372+N372+O372+P372","v":4},{"$f":"IF(Q372=0,TRUE,FALSE)","v":false}]
[null,null,null,null,null,0,null,null,0,0,null,null,true,true,true,true,4,false]
[null,null,null,null,null,0,null,null,0,0,null,null,true,true,true,true,4,false]
[null,null,null,null,null,0,null,null,0,0,null,null,true,true,true,true,4,false]
[null,null,null,null,null,0,null,null,0,0,null,null,true,true,true,true,4,false]
[null,null,null,null,null,0,null,null,0,0,null,null,true,true,true,true,4,false]
[null,null,null,null,null,0,null,null,0,0,null,null,true,true,true,true,4,false]
[null,null,null,null,null,0,null,null,0,0,null,null,true,true,true,true,4,false]
[null,null,null,null,null,0,null,null,0,0,null,null,true,true,true,true,4,true]
[null,null,null,null,null,{"$f":"ROUND(D381*E381,2)","v":0},null,null,{"$f":"ROUND(G381*H381,2)","v":0},{"$f":"F381+I381","v":0},null,null,{"$f":"ISBLANK(B381)","v":true},{"$f":"ISBLANK(C381)","v":true},{"$f":"ISBLANK(D381)","v":true},{"$f":"ISBLANK(E381)","v":true},{"$f":"M381+N381+O381+P381","v":4},{"$f":"IF(Q381=0,TRUE,FALSE)","v":false}]
[null,null,null,null,null,{"$f":"ROUND(D382*E382,2)","v":0},null,null,0,{"$f":"F382+I382","v":0},null,null,{"$f":"ISBLANK(B382)","v":true},true,true,true,{"$f":"M382+N382+O382+P382","v":4},{"$f":"IF(Q382=0,TRUE,FALSE)","v":false}]
[null,null,null,null,null,0,null,null,0,0,null,null,true,true,true,true,4,false]
[null,null,null,null,null,0,null,null,0,0,null,null,true,true,true,true,4,false]
[null,null,null,null,null,0,null,null,0,0,null,null,true,true,true,true,4,false]
[null,null,null,null,null,0,null,null,0,0,null,null,true,true,true,true,4,false]
[null,null,null,null,null,0,null,null,0,0,null,null,true,true,true,true,4,false]
[null,null,null,null,null,0,null,null,0,0,null,null,true,true,true,true,4,false]
[null,null,null,null,null,0,null,null,0,0,null,null,true,true,true,true,4,false]
[null,null,null,null,null,0,null,null,0,0,null,null,true,true,true,true,4,true]
[null,"TOTAL",null,null,null,{"$f":"F370+F349","v":0},null,null,{"$f":"I370+I349","v":0},{"$f":"J370+J349","v":0},null,null,null,null,null,null,null,true]
[null,null,null,null,null,null,null,null,null,null,null,null,null,null,null,null,null,true]
[null,"BL6 - PROJECT PREPARATION","Unit","Expenditures in the eligible area",null,null,"N/A",null,null,"TOTAL",null,null,null,null,null,null,null,true]
[null,null,null,"Units","Unit rate","TOTAL","Units","Unit rate","TOTAL",null,null,null,null,null,null,null,null,true]
[null,"6.1.Preparation of Application package ",null,null,null,{"$f":"SUM(F396:F405)","v":0},null,null,{"$f":"SUM(I396:I405)","v":0},{"$f":"SUM(J396:J405)","v":0}]
[null,null,null,null,null,{"$f":"ROUND(D396*E396,2)","v":0},null,null,{"$f":"ROUND(G396*H396,2)","v":0},{"$f":"F396+I396","v":0},null,null,{"$f":"ISBLANK(B396)","v":true},{"$f":"ISBLANK(C396)","v":true},true,true,{"$f":"M396+N396+O396+P396","v":4},{"$f":"IF(Q396=0,TRUE,FALSE)","v":false}]
[null,null,null,null,null,{"$f":"ROUND(D397*E397,2)","v":0},null,null,0,{"$f":"F397+I397","v":0},null,null,{"$f":"ISBLANK(B397)","v":true},true,true,true,{"$f":"M397+N397+O397+P397","v":4},{"$f":"IF(Q397=0,TRUE,FALSE)","v":false}]
[null,null,null,null,null,0,null,null,0,0,null,null,true,true,true,true,4,false]
[null,null,null,null,null,0,null,null,0,0,null,null,true,true,true,true,4,false]
[null,null,null,null,null,0,null,null,0,0,null,null,true,true,true,true,4,false]
[null,null,null,null,null,0,null,null,0,0,null,null,true,true,true,true,4,false]
[null,null,null,null,null,0,null,null,0,0,null,null,true,true,true,true,4,false]
[null,null,null,null,null,0,null,null,0,0,null,null,true,true,true,true,4,false]
[null,null,null,null,null,0,null,null,0,0,null,null,true,true,true,true,4,false]
[null,null,null,null,null,0,null,null,0,0,null,null,true,true,true,true,4,true]
[null,"6.2 Preparation of technical documentation ",null,null,null,{"$f":"SUM(F407:F416)","v":0},null,null,{"$f":"SUM(I407:I416)","v":0},{"$f":"SUM(J407:J416)","v":0},null,null,{"$f":"ISBLANK(B406)","v":false},true,true,true,{"$f":"M406+N406+O406+P406","v":3},{"$f":"IF(Q406=0,TRUE,FALSE)","v":false}]
[null,null,null,null,null,{"$f":"ROUND(D407*E407,2)","v":0},null,null,{"$f":"ROUND(G407*H407,2)","v":0},{"$f":"F407+I407","v":0},null,null,{"$f":"ISBLANK(B407)","v":true}]
[null,null,null,null,null,0,null,null,0,0,null,null,{"$f":"ISBLANK(B408)","v":true},true,true,true,{"$f":"M408+N408+O408+P408","v":4},{"$f":"IF(Q408=0,TRUE,FALSE)","v":false}]
[null,null,null,null,null,0,null,null,0,0,null,null,true,true,true,true,4,false]
[null,null,null,null,null,0,null,null,0,0,null,null,true,true,true,true,4,false]
[null,null,null,null,null,0,null,null,0,0,null,null,true,true,true,true,4,false]
[null,null,null,null,null,0,null,null,0,0,null,null,true,true,true,true,4,false]
[null,null,null,null,null,0,null,null,0,0,null,null,true,true,true,true,4,false]
[null,null,null,null,null,0,null,null,0,0,null,null,true,true,true,true,4,false]
[null,null,null,null,null,0,null,null,0,0,null,null,true,true,true,true,4,false]
[null,null,null,null,null,0,null,null,0,0,null,null,true,true,true,true,4,false]
[null,"TOTAL",null,null,null,{"$f":"F395+F406","v":0},null,null,{"$f":"I395+I406","v":0},{"$f":"J395+J406","v":0},null,null,null,null,null,null,null,true]
[null,null,null,null,null,null,null,null,null,null,null,null,null,null,null,null,null,true]
[null,"Own Contribution",null,null,null,"Unit","Units","Unit rate","TOTAL",null,null,null,"Units out","Units rate out","Total out","Total in",null,true]
[null,null,null,null,null,null,null,null,{"$f":"ROUND(G420*H420,2)","v":0},null,null,null,null,null,null,null,null,true]
[null,null,null,"Expenditures outside the eligible area exceed 20 %! Reconsider budget distribution!",null,null,null,null,null,null,null,null,null,null,null,null,null,true]
[null,"Total direct project costs VAT incl. (BL3+BL4+BL5)",null,null,null,{"$f":"F391+F345+F89","v":0},{"$f":"I391+I89+I345","v":0},null,null,{"$f":"J391+J345+J89","v":0},null,null,null,null,null,null,null,true]
[null,"TOTAL PROJECT COSTS",null,null,null,{"$f":"F422+F417+I6+I11+I420","v":0},{"$f":"G422+I417","v":0},null,null,{"$f":"F423+G423","v":0},null,null,null,null,null,null,null,true]

{"sheet":"T2-B(PP5)","index":14,"n_rows":423,"n_cols":18,"rows_kept":423,"cut":false,"hidden":false,"merged":[[421,1,421,4],[421,6,421,8],[422,1,422,4],[422,6,422,8],[416,1,416,4],[416,6,416,7],[418,1,418,4],[418,8,418,9],[419,1,419,4],[419,8,419,9],[392,9,393,9],[390,1,390,4],[390,6,390,7],[392,1,393,1],[392,2,393,2],[392,3,392,5],[392,6,392,8],[344,1,344,4],[344,6,344,7],[346,1,347,1],[346,2,347,2],[346,3,346,5],[346,6,346,8],[345,3,345,9],[346,9,347,9],[90,1,91,1],[90,2,91,2],[90,3,90,5],[90,6,90,8],[90,9,91,9],[9,8,9,9],[10,1,10,7],[10,8,10,9],[12,1,13,1],[12,2,13,2],[12,3,12,5],[12,6,12,8],[12,9,13,9],[9,1,9,5],[9,6,9,7],[2,1,3,5],[2,6,2,7],[2,8,3,9],[3,6,3,7],[4,1,4,5],[4,6,4,7],[4,8,4,9],[5,1,5,7],[5,8,5,9],[7,1,8,5],[7,6,7,7],[7,8,8,9],[8,6,8,7]]}
[null,"TABLE 2 - DETAILED BREAKDOWN OF BUDGET LINES - PP5",null,null,null,null,null,null,null,null,null,null,null,null,null,null,null,true]
[null,null,null,null,null,null,null,null,null,null,null,null,null,null,null,null,null,true]
[null,"BL1 - STAFF COSTS",null,null,null,null,"Flat rate",null,"TOTAL",null,null,null,null,null,null,null,null,true]
[null,null,null,null,null,null,"%",null,null,null,null,null,null,null,null,null,null,true]
[null,{"$f":"M5","v":"Investment project"},null,null,null,null,10,null,{"$f":"ROUND(G5*J422/100,2)","v":0},null,null,"visible/hidden depending on project identification",{"$f":"CONCATENATE('Project identification'!C15,\" project\")","v":"Investment project"},null,null,null,10,true]
[null,"TOTAL",null,null,null,null,null,null,{"$f":"I5","v":0},null,null,null,null,null,{"$f":"IF(M8=\"Soft\",15,10)","v":10},null,15,true]
[null,null,null,null,null,null,null,null,null,null,null,null,null,null,null,null,null,true]
[null,"BL2 - OFFICE AND ADMINISTRATIVE COSTS",null,null,null,null,"Flat rate",null,"TOTAL",null,null,null,{"$f":"'Project identification'!C15","v":"Investment"},null,null,null,null,true]
[null,null,null,null,null,null,"%",null,null,null,null,null,null,null,null,null,null,true]
[null,{"$f":"M5","v":"Investment project"},null,null,null,null,0,null,{"$f":"ROUND(G10*I5/100,2)","v":0},null,null,"visible/hidden depending on project identification",null,null,null,null,2,true]
[null,"TOTAL",null,null,null,null,null,null,{"$f":"I10","v":0},null,null,null,null,null,{"$f":"IF(M8=\"Soft\",15,15)","v":15},null,5,true]
[null,null,null,null,null,null,null,null,null,null,null,null,null,null,null,null,null,true]
[null,"BL3 - TRAVEL AND ACCOMMODATION","Unit","Expenditures in the eligible area",null,null,"Expenditures outside of the eligible area",null,null,"TOTAL",null,null,null,null,null,null,null,true]
[null,null,null,"Units","Unit rate","TOTAL","Units","Unit rate","TOTAL",null,null,null,null,null,null,null,null,true]
[null,"3.1 Travel costs",null,null,null,{"$f":"SUM(F16:F35)","v":0},null,null,{"$f":"SUM(I16:I35)","v":0},{"$f":"SUM(J16:J35)","v":0},null,"Add",null,null,null,null,null,true]
[null,null,null,null,null,{"$f":"ROUND(D16*E16,2)","v":0},null,null,{"$f":"ROUND(G16*H16,2)","v":0},{"$f":"F16+I16","v":0},null,null,{"$f":"ISBLANK(B16)","v":true},{"$f":"ISBLANK(C16)","v":true},true,true,{"$f":"M16+N16+O16+P16","v":4},{"$f":"IF(Q16=0,TRUE,FALSE)","v":false}]
[null,null,null,null,null,{"$f":"ROUND(D17*E17,2)","v":0},null,null,0,{"$f":"F17+I17","v":0},null,null,{"$f":"ISBLANK(B17)","v":true},true,true,true,{"$f":"M17+N17+O17+P17","v":4},{"$f":"IF(Q17=0,TRUE,FALSE)","v":false}]
[null,null,null,null,null,0,null,null,0,0,null,null,true,true,true,true,4,false]
[null,null,null,null,null,0,null,null,0,0,null,null,true,true,true,true,4,false]
[null,null,null,null,null,0,null,null,0,0,null,null,true,true,true,true,4,false]
[null,null,null,null,null,0,null,null,0,0,null,null,true,true,true,true,4,false]
[null,null,null,null,null,0,null,null,0,0,null,null,true,true,true,true,4,false]
[null,null,null,null,null,0,null,null,0,0,null,null,true,true,true,true,4,false]
[null,null,null,null,null,0,null,null,0,0,null,null,true,true,true,true,4,false]
[null,null,null,null,null,0,null,null,0,0,null,null,true,true,true,true,4,true]
[null,null,null,null,null,{"$f":"ROUND(D26*E26,2)","v":0},null,null,{"$f":"ROUND(G26*H26,2)","v":0},{"$f":"F26+I26","v":0},null,null,{"$f":"ISBLANK(B26)","v":true},{"$f":"ISBLANK(C26)","v":true},{"$f":"ISBLANK(D26)","v":true},{"$f":"ISBLANK(E26)","v":true},{"$f":"M26+N26+O26+P26","v":4},{"$f":"IF(Q26=0,TRUE,FALSE)","v":false}]
[null,null,null,null,null,{"$f":"ROUND(D27*E27,2)","v":0},null,null,0,{"$f":"F27+I27","v":0},null,null,{"$f":"ISBLANK(B27)","v":true},true,true,true,{"$f":"M27+N27+O27+P27","v":4},{"$f":"IF(Q27=0,TRUE,FALSE)","v":false}]
[null,null,null,null,null,0,null,null,0,0,null,null,true,true,true,true,4,false]
[null,null,null,null,null,0,null,null,0,0,null,null,true,true,true,true,4,false]
[null,null,null,null,null,0,null,null,0,0,null,null,true,true,true,true,4,false]
[null,null,null,null,null,0,null,null,0,0,null,null,true,true,true,true,4,false]
[null,null,null,null,null,0,null,null,0,0,null,null,true,true,true,true,4,false]
[null,null,null,null,null,0,null,null,0,0,null,null,true,true,true,true,4,false]
[null,null,null,null,null,0,null,null,0,0,null,null,true,true,true,true,4,false]
[null,null,null,null,null,0,null,null,0,0,null,null,true,true,true,true,4,true]
[null,"3.2 Daily allowances",null,null,null,{"$f":"SUM(F37:F56)","v":0},null,null,{"$f":"SUM(I37:I56)","v":0},{"$f":"SUM(J37:J56)","v":0},null,"add (10 items)",null,null,null,null,null,true]
[null,null,null,null,null,{"$f":"ROUND(D37*E37,2)","v":0},null,null,{"$f":"ROUND(G37*H37,2)","v":0},{"$f":"F37+I37","v":0},null,null,{"$f":"ISBLANK(B37)","v":true},{"$f":"ISBLANK(C37)","v":true},true,true,{"$f":"M37+N37+O37+P37","v":4},{"$f":"IF(Q37=0,TRUE,FALSE)","v":false}]
[null,null,null,null,null,{"$f":"ROUND(D38*E38,2)","v":0},null,null,0,{"$f":"F38+I38","v":0},null,null,{"$f":"ISBLANK(B38)","v":true},true,true,true,{"$f":"M38+N38+O38+P38","v":4},{"$f":"IF(Q38=0,TRUE,FALSE)","v":false}]
[null,null,null,null,null,0,null,null,0,0,null,null,true,true,true,true,4,false]
[null,null,null,null,null,0,null,null,0,0,null,null,true,true,true,true,4,false]
[null,null,null,null,null,0,null,null,0,0,null,null,true,true,true,true,4,false]
[null,null,null,null,null,0,null,null,0,0,null,null,true,true,true,true,4,false]
[null,null,null,null,null,0,null,null,0,0,null,null,true,true,true,true,4,false]
[null,null,null,null,null,0,null,null,0,0,null,null,true,true,true,true,4,false]
[null,null,null,null,null,0,null,null,0,0,null,null,true,true,true,true,4,false]
[null,null,null,null,null,0,null,null,0,0,null,null,true,true,true,true,4,true]
[null,null,null,null,null,{"$f":"ROUND(D47*E47,2)","v":0},null,null,{"$f":"ROUND(G47*H47,2)","v":0},{"$f":"F47+I47","v":0},null,null,{"$f":"ISBLANK(B47)","v":true},{"$f":"ISBLANK(C47)","v":true},{"$f":"ISBLANK(D47)","v":true},{"$f":"ISBLANK(E47)","v":true},{"$f":"M47+N47+O47+P47","v":4},{"$f":"IF(Q47=0,TRUE,FALSE)","v":false}]
[null,null,null,null,null,{"$f":"ROUND(D48*E48,2)","v":0},null,null,0,{"$f":"F48+I48","v":0},null,null,{"$f":"ISBLANK(B48)","v":true},true,true,true,{"$f":"M48+N48+O48+P48","v":4},{"$f":"IF(Q48=0,TRUE,FALSE)","v":false}]
[null,null,null,null,null,0,null,null,0,0,null,null,true,true,true,true,4,false]
[null,null,null,null,null,0,null,null,0,0,null,null,true,true,true,true,4,false]
[null,null,null,null,null,0,null,null,0,0,null,null,true,true,true,true,4,false]
[null,null,null,null,null,0,null,null,0,0,null,null,true,true,true,true,4,false]
[null,null,null,null,null,0,null,null,0,0,null,null,true,true,true,true,4,false]
[null,null,null,null,null,0,null,null,0,0,null,null,true,true,true,true,4,false]
[null,null,null,null,null,0,null,null,0,0,null,null,true,true,true,true,4,false]
[null,null,null,null,null,0,null,null,0,0,null,null,true,true,true,true,4,true]
[null,"3.3 Accommodation costs",null,null,null,{"$f":"SUM(F58:F77)","v":0},null,null,{"$f":"SUM(I58:I77)","v":0},{"$f":"SUM(J58:J77)","v":0},null,null,null,null,null,null,null,true]
[null,null,null,null,null,{"$f":"ROUND(D58*E58,2)","v":0},null,null,{"$f":"ROUND(G58*H58,2)","v":0},{"$f":"F58+I58","v":0},null,null,{"$f":"ISBLANK(B58)","v":true},{"$f":"ISBLANK(C58)","v":true},true,true,{"$f":"M58+N58+O58+P58","v":4},{"$f":"IF(Q58=0,TRUE,FALSE)","v":false}]
[null,null,null,null,null,{"$f":"ROUND(D59*E59,2)","v":0},null,null,0,{"$f":"F59+I59","v":0},null,null,{"$f":"ISBLANK(B59)","v":true},true,true,true,{"$f":"M59+N59+O59+P59","v":4},{"$f":"IF(Q59=0,TRUE,FALSE)","v":false}]
[null,null,null,null,null,0,null,null,0,0,null,null,true,true,true,true,4,false]
[null,null,null,null,null,0,null,null,0,0,null,null,true,true,true,true,4,false]
[null,null,null,null,null,0,null,null,0,0,null,null,true,true,true,true,4,false]
[null,null,null,null,null,0,null,null,0,0,null,null,true,true,true,true,4,false]
[null,null,null,null,null,0,null,null,0,0,null,null,true,true,true,true,4,false]
[null,null,null,null,null,0,null,null,0,0,null,null,true,true,true,true,4,false]
[null,null,null,null,null,0,null,null,0,0,null,null,true,true,true,true,4,false]
[null,null,null,null,null,0,null,null,0,0,null,null,true,true,true,true,4,true]
[null,null,null,null,null,{"$f":"ROUND(D68*E68,2)","v":0},null,null,{"$f":"ROUND(G68*H68,2)","v":0},{"$f":"F68+I68","v":0},null,null,{"$f":"ISBLANK(B68)","v":true},{"$f":"ISBLANK(C68)","v":true},{"$f":"ISBLANK(D68)","v":true},{"$f":"ISBLANK(E68)","v":true},{"$f":"M68+N68+O68+P68","v":4},{"$f":"IF(Q68=0,TRUE,FALSE)","v":false}]
[null,null,null,null,null,{"$f":"ROUND(D69*E69,2)","v":0},null,null,0,{"$f":"F69+I69","v":0},null,null,{"$f":"ISBLANK(B69)","v":true},true,true,true,{"$f":"M69+N69+O69+P69","v":4},{"$f":"IF(Q69=0,TRUE,FALSE)","v":false}]
[null,null,null,null,null,0,null,null,0,0,null,null,true,true,true,true,4,false]
[null,null,null,null,null,0,null,null,0,0,null,null,true,true,true,true,4,false]
[null,null,null,null,null,0,null,null,0,0,null,null,true,true,true,true,4,false]
[null,null,null,null,null,0,null,null,0,0,null,null,true,true,true,true,4,false]
[null,null,null,null,null,0,null,null,0,0,null,null,true,true,true,true,4,false]
[null,null,null,null,null,0,null,null,0,0,null,null,true,true,true,true,4,false]
[null,null,null,null,null,0,null,null,0,0,null,null,true,true,true,true,4,false]
[null,null,null,null,null,0,null,null,0,0,null,null,true,true,true,true,4,true]
[null,"3.4 Visa costs",null,null,null,{"$f":"SUM(F79:F88)","v":0},null,null,{"$f":"SUM(I79:I88)","v":0},{"$f":"SUM(J79:J88)","v":0},null,null,null,null,null,null,null,true]
[null,null,null,null,null,{"$f":"ROUND(D79*E79,2)","v":0},null,null,{"$f":"ROUND(G79*H79,2)","v":0},{"$f":"F79+I79","v":0},null,null,{"$f":"ISBLANK(B79)","v":true},{"$f":"ISBLANK(C79)","v":true},true,true,{"$f":"M79+N79+O79+P79","v":4},{"$f":"IF(Q79=0,TRUE,FALSE)","v":false}]
[null,null,null,null,null,{"$f":"ROUND(D80*E80,2)","v":0},null,null,0,{"$f":"F80+I80","v":0},null,null,{"$f":"ISBLANK(B80)","v":true},true,true,true,{"$f":"M80+N80+O80+P80","v":4},{"$f":"IF(Q80=0,TRUE,FALSE)","v":false}]
[null,null,null,null,null,0,null,null,0,0,null,null,true,true,true,true,4,false]
[null,null,null,null,null,0,null,null,0,0,null,null,true,true,true,true,4,false]
[null,null,null,null,null,0,null,null,0,0,null,null,true,true,true,true,4,false]
[null,null,null,null,null,0,null,null,0,0,null,null,true,true,true,true,4,false]
[null,null,null,null,null,0,null,null,0,0,null,null,true,true,true,true,4,false]
[null,null,null,null,null,0,null,null,0,0,null,null,true,true,true,true,4,false]
[null,null,null,null,null,0,null,null,0,0,null,null,true,true,true,true,4,false]
[null,null,null,null,null,0,null,null,0,0,null,null,true,true,true,true,4,true]
[null,"TOTAL",null,null,null,{"$f":"F78+F57+F36+F15","v":0},null,null,{"$f":"I78+I57+I36+I15","v":0},{"$f":"J78+J57+J36+J15","v":0},null,null,null,null,null,null,null,true]
[null,null,null,null,null,null,null,null,null,null,null,null,null,null,null,null,null,true]
[null,"BL4 - EXTERNAL EXPERTISE AND SERVICES COSTS","Unit","Expenditures in the eligible area",null,null,"Expenditures outside of the eligible area",null,null,"TOTAL",null,null,null,null,null,null,null,true]
[null,null,null,"Units","Unit rate","TOTAL","Units","Unit rate","TOTAL",null,null,null,null,null,null,null,null,true]
[null,"4.1 Rent of hall",null,null,null,{"$f":"SUM(F94:F113)","v":0},null,null,{"$f":"SUM(I94:I113)","v":0},{"$f":"SUM(J94:J113)","v":0},null,null,null,null,null,null,null,true]
[null,null,null,null,null,{"$f":"ROUND(D94*E94,2)","v":0},null,null,{"$f":"ROUND(G94*H94,2)","v":0},{"$f":"F94+I94","v":0},null,null,{"$f":"ISBLANK(B94)","v":true},{"$f":"ISBLANK(C94)","v":true},true,true,{"$f":"M94+N94+O94+P94","v":4},{"$f":"IF(Q94=0,TRUE,FALSE)","v":false}]
[null,null,null,null,null,{"$f":"ROUND(D95*E95,2)","v":0},null,null,0,{"$f":"F95+I95","v":0},null,null,{"$f":"ISBLANK(B95)","v":true},true,true,true,{"$f":"M95+N95+O95+P95","v":4},{"$f":"IF(Q95=0,TRUE,FALSE)","v":false}]
[null,null,null,null,null,0,null,null,0,0,null,null,true,true,true,true,4,false]
[null,null,null,null,null,0,null,null,0,0,null,null,true,true,true,true,4,false]
[null,null,null,null,null,0,null,null,0,0,null,null,true,true,true,true,4,false]
[null,null,null,null,null,0,null,null,0,0,null,null,true,true,true,true,4,false]
[null,null,null,null,null,0,null,null,0,0,null,null,true,true,true,true,4,false]
[null,null,null,null,null,0,null,null,0,0,null,null,true,true,true,true,4,false]
[null,null,null,null,null,0,null,null,0,0,null,null,true,true,true,true,4,false]
[null,null,null,null,null,0,null,null,0,0,null,null,true,true,true,true,4,true]
[null,null,null,null,null,{"$f":"ROUND(D104*E104,2)","v":0},null,null,{"$f":"ROUND(G104*H104,2)","v":0},{"$f":"F104+I104","v":0},null,null,{"$f":"ISBLANK(B104)","v":true},{"$f":"ISBLANK(C104)","v":true},{"$f":"ISBLANK(D104)","v":true},{"$f":"ISBLANK(E104)","v":true},{"$f":"M104+N104+O104+P104","v":4},{"$f":"IF(Q104=0,TRUE,FALSE)","v":false}]
[null,null,null,null,null,{"$f":"ROUND(D105*E105,2)","v":0},null,null,0,{"$f":"F105+I105","v":0},null,null,{"$f":"ISBLANK(B105)","v":true},true,true,true,{"$f":"M105+N105+O105+P105","v":4},{"$f":"IF(Q105=0,TRUE,FALSE)","v":false}]
[null,null,null,null,null,0,null,null,0,0,null,null,true,true,true,true,4,false]
[null,null,null,null,null,0,null,null,0,0,null,null,true,true,true,true,4,false]
[null,null,null,null,null,0,null,null,0,0,null,null,true,true,true,true,4,false]
[null,null,null,null,null,0,null,null,0,0,null,null,true,true,true,true,4,false]
[null,null,null,null,null,0,null,null,0,0,null,null,true,true,true,true,4,false]
[null,null,null,null,null,0,null,null,0,0,null,null,true,true,true,true,4,false]
[null,null,null,null,null,0,null,null,0,0,null,null,true,true,true,true,4,false]
[null,null,null,null,null,0,null,null,0,0,null,null,true,true,true,true,4,true]
[null,"4.2 Rent of equipment",null,null,null,{"$f":"SUM(F115:F134)","v":0},null,null,{"$f":"SUM(I115:I134)","v":0},{"$f":"SUM(J115:J134)","v":0},null,null,null,null,null,null,null,true]
[null,null,null,null,null,{"$f":"ROUND(D115*E115,2)","v":0},null,null,{"$f":"ROUND(G115*H115,2)","v":0},{"$f":"F115+I115","v":0},null,null,{"$f":"ISBLANK(B115)","v":true},{"$f":"ISBLANK(C115)","v":true},true,true,{"$f":"M115+N115+O115+P115","v":4},{"$f":"IF(Q115=0,TRUE,FALSE)","v":false}]
[null,null,null,null,null,{"$f":"ROUND(D116*E116,2)","v":0},null,null,0,{"$f":"F116+I116","v":0},null,null,{"$f":"ISBLANK(B116)","v":true},true,true,true,{"$f":"M116+N116+O116+P116","v":4},{"$f":"IF(Q116=0,TRUE,FALSE)","v":false}]
[null,null,null,null,null,0,null,null,0,0,null,null,true,true,true,true,4,false]
[null,null,null,null,null,0,null,null,0,0,null,null,true,true,true,true,4,false]
[null,null,null,null,null,0,null,null,0,0,null,null,true,true,true,true,4,false]
[null,null,null,null,null,0,null,null,0,0,null,null,true,true,true,true,4,false]
[null,null,null,null,null,0,null,null,0,0,null,null,true,true,true,true,4,false]
[null,null,null,null,null,0,null,null,0,0,null,null,true,true,true,true,4,false]
[null,null,null,null,null,0,null,null,0,0,null,null,true,true,true,true,4,false]
[null,null,null,null,null,0,null,null,0,0,null,null,true,true,true,true,4,true]
[null,null,null,null,null,{"$f":"ROUND(D125*E125,2)","v":0},null,null,{"$f":"ROUND(G125*H125,2)","v":0},{"$f":"F125+I125","v":0},null,null,{"$f":"ISBLANK(B125)","v":true},{"$f":"ISBLANK(C125)","v":true},{"$f":"ISBLANK(D125)","v":true},{"$f":"ISBLANK(E125)","v":true},{"$f":"M125+N125+O125+P125","v":4},{"$f":"IF(Q125=0,TRUE,FALSE)","v":false}]
[null,null,null,null,null,{"$f":"ROUND(D126*E126,2)","v":0},null,null,0,{"$f":"F126+I126","v":0},null,null,{"$f":"ISBLANK(B126)","v":true},true,true,true,{"$f":"M126+N126+O126+P126","v":4},{"$f":"IF(Q126=0,TRUE,FALSE)","v":false}]
[null,null,null,null,null,0,null,null,0,0,null,null,true,true,true,true,4,false]
[null,null,null,null,null,0,null,null,0,0,null,null,true,true,true,true,4,false]
[null,null,null,null,null,0,null,null,0,0,null,null,true,true,true,true,4,false]
[null,null,null,null,null,0,null,null,0,0,null,null,true,true,true,true,4,false]
[null,null,null,null,null,0,null,null,0,0,null,null,true,true,true,true,4,false]
[null,null,null,null,null,0,null,null,0,0,null,null,true,true,true,true,4,false]
[null,null,null,null,null,0,null,null,0,0,null,null,true,true,true,true,4,false]
[null,null,null,null,null,0,null,null,0,0,null,null,true,true,true,true,4,true]
[null,"4.3 Coffee breaks, refreshments, etc.",null,null,null,{"$f":"SUM(F136:F155)","v":0},null,null,{"$f":"SUM(I136:I155)","v":0},{"$f":"SUM(J136:J155)","v":0},null,null,null,null,null,null,null,true]
[null,null,null,null,null,{"$f":"ROUND(D136*E136,2)","v":0},null,null,{"$f":"ROUND(G136*H136,2)","v":0},{"$f":"F136+I136","v":0},null,null,{"$f":"ISBLANK(B136)","v":true},{"$f":"ISBLANK(C136)","v":true},true,true,{"$f":"M136+N136+O136+P136","v":4},{"$f":"IF(Q136=0,TRUE,FALSE)","v":false}]
[null,null,null,null,null,{"$f":"ROUND(D137*E137,2)","v":0},null,null,0,{"$f":"F137+I137","v":0},null,null,{"$f":"ISBLANK(B137)","v":true},true,true,true,{"$f":"M137+N137+O137+P137","v":4},{"$f":"IF(Q137=0,TRUE,FALSE)","v":false}]
[null,null,null,null,null,0,null,null,0,0,null,null,true,true,true,true,4,false]
[null,null,null,null,null,0,null,null,0,0,null,null,true,true,true,true,4,false]
[null,null,null,null,null,0,null,null,0,0,null,null,true,true,true,true,4,false]
[null,null,null,null,null,0,null,null,0,0,null,null,true,true,true,true,4,false]
[null,null,null,null,null,0,null,null,0,0,null,null,true,true,true,true,4,false]
[null,null,null,null,null,0,null,null,0,0,null,null,true,true,true,true,4,false]
[null,null,null,null,null,0,null,null,0,0,null,null,true,true,true,true,4,false]
[null,null,null,null,null,0,null,null,0,0,null,null,true,true,true,true,4,true]
[null,null,null,null,null,{"$f":"ROUND(D146*E146,2)","v":0},null,null,{"$f":"ROUND(G146*H146,2)","v":0},{"$f":"F146+I146","v":0},null,null,{"$f":"ISBLANK(B146)","v":true},{"$f":"ISBLANK(C146)","v":true},{"$f":"ISBLANK(D146)","v":true},{"$f":"ISBLANK(E146)","v":true},{"$f":"M146+N146+O146+P146","v":4},{"$f":"IF(Q146=0,TRUE,FALSE)","v":false}]
[null,null,null,null,null,{"$f":"ROUND(D147*E147,2)","v":0},null,null,0,{"$f":"F147+I147","v":0},null,null,{"$f":"ISBLANK(B147)","v":true},true,true,true,{"$f":"M147+N147+O147+P147","v":4},{"$f":"IF(Q147=0,TRUE,FALSE)","v":false}]
[null,null,null,null,null,0,null,null,0,0,null,null,true,true,true,true,4,false]
[null,null,null,null,null,0,null,null,0,0,null,null,true,true,true,true,4,false]
[null,null,null,null,null,0,null,null,0,0,null,null,true,true,true,true,4,false]
[null,null,null,null,null,0,null,null,0,0,null,null,true,true,true,true,4,false]
[null,null,null,null,null,0,null,null,0,0,null,null,true,true,true,true,4,false]
[null,null,null,null,null,0,null,null,0,0,null,null,true,true,true,true,4,false]
[null,null,null,null,null,0,null,null,0,0,null,null,true,true,true,true,4,false]
[null,null,null,null,null,0,null,null,0,0,null,null,true,true,true,true,4,true]
[null,"4.4  Consumables",null,null,null,{"$f":"SUM(F157:F176)","v":0},null,null,{"$f":"SUM(I157:I176)","v":0},{"$f":"SUM(J157:J176)","v":0},null,null,null,null,null,null,null,true]
[null,null,null,null,null,{"$f":"ROUND(D157*E157,2)","v":0},null,null,{"$f":"ROUND(G157*H157,2)","v":0},{"$f":"F157+I157","v":0},null,null,{"$f":"ISBLANK(B157)","v":true},{"$f":"ISBLANK(C157)","v":true},true,true,{"$f":"M157+N157+O157+P157","v":4},{"$f":"IF(Q157=0,TRUE,FALSE)","v":false}]
[null,null,null,null,null,{"$f":"ROUND(D158*E158,2)","v":0},null,null,0,{"$f":"F158+I158","v":0},null,null,{"$f":"ISBLANK(B158)","v":true},true,true,true,{"$f":"M158+N158+O158+P158","v":4},{"$f":"IF(Q158=0,TRUE,FALSE)","v":false}]
[null,null,null,null,null,0,null,null,0,0,null,null,true,true,true,true,4,false]
[null,null,null,null,null,0,null,null,0,0,null,null,true,true,true,true,4,false]
[null,null,null,null,null,0,null,null,0,0,null,null,true,true,true,true,4,false]
[null,null,null,null,null,0,null,null,0,0,null,null,true,true,true,true,4,false]
[null,null,null,null,null,0,null,null,0,0,null,null,true,true,true,true,4,false]
[null,null,null,null,null,0,null,null,0,0,null,null,true,true,true,true,4,false]
[null,null,null,null,null,0,null,null,0,0,null,null,true,true,true,true,4,false]
[null,null,null,null,null,0,null,null,0,0,null,null,true,true,true,true,4,true]
[null,null,null,null,null,{"$f":"ROUND(D167*E167,2)","v":0},null,null,{"$f":"ROUND(G167*H167,2)","v":0},{"$f":"F167+I167","v":0},null,null,{"$f":"ISBLANK(B167)","v":true},{"$f":"ISBLANK(C167)","v":true},{"$f":"ISBLANK(D167)","v":true},{"$f":"ISBLANK(E167)","v":true},{"$f":"M167+N167+O167+P167","v":4},{"$f":"IF(Q167=0,TRUE,FALSE)","v":false}]
[null,null,null,null,null,{"$f":"ROUND(D168*E168,2)","v":0},null,null,0,{"$f":"F168+I168","v":0},null,null,{"$f":"ISBLANK(B168)","v":true},true,true,true,{"$f":"M168+N168+O168+P168","v":4},{"$f":"IF(Q168=0,TRUE,FALSE)","v":false}]
[null,null,null,null,null,0,null,null,0,0,null,null,true,true,true,true,4,false]
[null,null,null,null,null,0,null,null,0,0,null,null,true,true,true,true,4,false]
[null,null,null,null,null,0,null,null,0,0,null,null,true,true,true,true,4,false]
[null,null,null,null,null,0,null,null,0,0,null,null,true,true,true,true,4,false]
[null,null,null,null,null,0,null,null,0,0,null,null,true,true,true,true,4,false]
[null,null,null,null,null,0,null,null,0,0,null,null,true,true,true,true,4,false]
[null,null,null,null,null,0,null,null,0,0,null,null,true,true,true,true,4,false]
[null,null,null,null,null,0,null,null,0,0,null,null,true,true,true,true,4,true]
[null,"4.5 Rent of vehicle for event",null,null,null,{"$f":"SUM(F178:F197)","v":0},null,null,{"$f":"SUM(I178:I197)","v":0},{"$f":"SUM(J178:J197)","v":0},null,null,null,null,null,null,null,true]
[null,null,null,null,null,{"$f":"ROUND(D178*E178,2)","v":0},null,null,{"$f":"ROUND(G178*H178,2)","v":0},{"$f":"F178+I178","v":0},null,null,{"$f":"ISBLANK(B178)","v":true},{"$f":"ISBLANK(C178)","v":true},true,true,{"$f":"M178+N178+O178+P178","v":4},{"$f":"IF(Q178=0,TRUE,FALSE)","v":false}]
[null,null,null,null,null,{"$f":"ROUND(D179*E179,2)","v":0},null,null,0,{"$f":"F179+I179","v":0},null,null,{"$f":"ISBLANK(B179)","v":true},true,true,true,{"$f":"M179+N179+O179+P179","v":4},{"$f":"IF(Q179=0,TRUE,FALSE)","v":false}]
[null,null,null,null,null,0,null,null,0,0,null,null,true,true,true,true,4,false]
[null,null,null,null,null,0,null,null,0,0,null,null,true,true,true,true,4,false]
[null,null,null,null,null,0,null,null,0,0,null,null,true,true,true,true,4,false]
[null,null,null,null,null,0,null,null,0,0,null,null,true,true,true,true,4,false]
[null,null,null,null,null,0,null,null,0,0,null,null,true,true,true,true,4,false]
[null,null,null,null,null,0,null,null,0,0,null,null,true,true,true,true,4,false]
[null,null,null,null,null,0,null,null,0,0,null,null,true,true,true,true,4,false]
[null,null,null,null,null,0,null,null,0,0,null,null,true,true,true,true,4,true]
[null,null,null,null,null,{"$f":"ROUND(D188*E188,2)","v":0},null,null,{"$f":"ROUND(G188*H188,2)","v":0},{"$f":"F188+I188","v":0},null,null,{"$f":"ISBLANK(B188)","v":true},{"$f":"ISBLANK(C188)","v":true},{"$f":"ISBLANK(D188)","v":true},{"$f":"ISBLANK(E188)","v":true},{"$f":"M188+N188+O188+P188","v":4},{"$f":"IF(Q188=0,TRUE,FALSE)","v":false}]
[null,null,null,null,null,{"$f":"ROUND(D189*E189,2)","v":0},null,null,0,{"$f":"F189+I189","v":0},null,null,{"$f":"ISBLANK(B189)","v":true},true,true,true,{"$f":"M189+N189+O189+P189","v":4},{"$f":"IF(Q189=0,TRUE,FALSE)","v":false}]
[null,null,null,null,null,0,null,null,0,0,null,null,true,true,true,true,4,false]
[null,null,null,null,null,0,null,null,0,0,null,null,true,true,true,true,4,false]
[null,null,null,null,null,0,null,null,0,0,null,null,true,true,true,true,4,false]
[null,null,null,null,null,0,null,null,0,0,null,null,true,true,true,true,4,false]
[null,null,null,null,null,0,null,null,0,0,null,null,true,true,true,true,4,false]
[null,null,null,null,null,0,null,null,0,0,null,null,true,true,true,true,4,false]
[null,null,null,null,null,0,null,null,0,0,null,null,true,true,true,true,4,false]
[null,null,null,null,null,0,null,null,0,0,null,null,true,true,true,true,4,true]
[null,"4.6 Accommodations for participants in the events ",null,null,null,{"$f":"SUM(F199:F218)","v":0},null,null,{"$f":"SUM(I199:I218)","v":0},{"$f":"SUM(J199:J218)","v":0},null,null,null,null,null,null,null,true]
[null,null,null,null,null,{"$f":"ROUND(D199*E199,2)","v":0},null,null,{"$f":"ROUND(G199*H199,2)","v":0},{"$f":"F199+I199","v":0},null,null,{"$f":"ISBLANK(B199)","v":true},{"$f":"ISBLANK(C199)","v":true},true,true,{"$f":"M199+N199+O199+P199","v":4},{"$f":"IF(Q199=0,TRUE,FALSE)","v":false}]
[null,null,null,null,null,{"$f":"ROUND(D200*E200,2)","v":0},null,null,0,{"$f":"F200+I200","v":0},null,null,{"$f":"ISBLANK(B200)","v":true},true,true,true,{"$f":"M200+N200+O200+P200","v":4},{"$f":"IF(Q200=0,TRUE,FALSE)","v":false}]
[null,null,null,null,null,0,null,null,0,0,null,null,true,true,true,true,4,false]
[null,null,null,null,null,0,null,null,0,0,null,null,true,true,true,true,4,false]
[null,null,null,null,null,0,null,null,0,0,null,null,true,true,true,true,4,false]
[null,null,null,null,null,0,null,null,0,0,null,null,true,true,true,true,4,false]
[null,null,null,null,null,0,null,null,0,0,null,null,true,true,true,true,4,false]
[null,null,null,null,null,0,null,null,0,0,null,null,true,true,true,true,4,false]
[null,null,null,null,null,0,null,null,0,0,null,null,true,true,true,true,4,false]
[null,null,null,null,null,0,null,null,0,0,null,null,true,true,true,true,4,true]
[null,null,null,null,null,{"$f":"ROUND(D209*E209,2)","v":0},null,null,{"$f":"ROUND(G209*H209,2)","v":0},{"$f":"F209+I209","v":0},null,null,{"$f":"ISBLANK(B209)","v":true},{"$f":"ISBLANK(C209)","v":true},{"$f":"ISBLANK(D209)","v":true},{"$f":"ISBLANK(E209)","v":true},{"$f":"M209+N209+O209+P209","v":4},{"$f":"IF(Q209=0,TRUE,FALSE)","v":false}]
[null,null,null,null,null,{"$f":"ROUND(D210*E210,2)","v":0},null,null,0,{"$f":"F210+I210","v":0},null,null,{"$f":"ISBLANK(B210)","v":true},true,true,true,{"$f":"M210+N210+O210+P210","v":4},{"$f":"IF(Q210=0,TRUE,FALSE)","v":false}]
[null,null,null,null,null,0,null,null,0,0,null,null,true,true,true,true,4,false]
[null,null,null,null,null,0,null,null,0,0,null,null,true,true,true,true,4,false]
[null,null,null,null,null,0,null,null,0,0,null,null,true,true,true,true,4,false]
[null,null,null,null,null,0,null,null,0,0,null,null,true,true,true,true,4,false]
[null,null,null,null,null,0,null,null,0,0,null,null,true,true,true,true,4,false]
[null,null,null,null,null,0,null,null,0,0,null,null,true,true,true,true,4,false]
[null,null,null,null,null,0,null,null,0,0,null,null,true,true,true,true,4,false]
[null,null,null,null,null,0,null,null,0,0,null,null,true,true,true,true,4,true]
[null,"4.7 Elaboration, design,translation etc.",null,null,null,{"$f":"SUM(F220:F239)","v":0},null,null,{"$f":"SUM(I220:I239)","v":0},{"$f":"SUM(J220:J239)","v":0},null,null,null,null,null,null,null,true]
[null,null,null,null,null,{"$f":"ROUND(D220*E220,2)","v":0},null,null,{"$f":"ROUND(G220*H220,2)","v":0},{"$f":"F220+I220","v":0},null,null,{"$f":"ISBLANK(B220)","v":true},{"$f":"ISBLANK(C220)","v":true},true,true,{"$f":"M220+N220+O220+P220","v":4},{"$f":"IF(Q220=0,TRUE,FALSE)","v":false}]
[null,null,null,null,null,{"$f":"ROUND(D221*E221,2)","v":0},null,null,0,{"$f":"F221+I221","v":0},null,null,{"$f":"ISBLANK(B221)","v":true},true,true,true,{"$f":"M221+N221+O221+P221","v":4},{"$f":"IF(Q221=0,TRUE,FALSE)","v":false}]
[null,null,null,null,null,0,null,null,0,0,null,null,true,true,true,true,4,false]
[null,null,null,null,null,0,null,null,0,0,null,null,true,true,true,true,4,false]
[null,null,null,null,null,0,null,null,0,0,null,null,true,true,true,true,4,false]
[null,null,null,null,null,0,null,null,0,0,null,null,true,true,true,true,4,false]
[null,null,null,null,null,0,null,null,0,0,null,null,true,true,true,true,4,false]
[null,null,null,null,null,0,null,null,0,0,null,null,true,true,true,true,4,false]
[null,null,null,null,null,0,null,null,0,0,null,null,true,true,true,true,4,false]
[null,null,null,null,null,0,null,null,0,0,null,null,true,true,true,true,4,true]
[null,null,null,null,null,{"$f":"ROUND(D230*E230,2)","v":0},null,null,{"$f":"ROUND(G230*H230,2)","v":0},{"$f":"F230+I230","v":0},null,null,{"$f":"ISBLANK(B230)","v":true},{"$f":"ISBLANK(C230)","v":true},{"$f":"ISBLANK(D230)","v":true},{"$f":"ISBLANK(E230)","v":true},{"$f":"M230+N230+O230+P230","v":4},{"$f":"IF(Q230=0,TRUE,FALSE)","v":false}]
[null,null,null,null,null,{"$f":"ROUND(D231*E231,2)","v":0},null,null,0,{"$f":"F231+I231","v":0},null,null,{"$f":"ISBLANK(B231)","v":true},true,true,true,{"$f":"M231+N231+O231+P231","v":4},{"$f":"IF(Q231=0,TRUE,FALSE)","v":false}]
[null,null,null,null,null,0,null,null,0,0,null,null,true,true,true,true,4,false]
[null,null,null,null,null,0,null,null,0,0,null,null,true,true,true,true,4,false]
[null,null,null,null,null,0,null,null,0,0,null,null,true,true,true,true,4,false]
[null,null,null,null,null,0,null,null,0,0,null,null,true,true,true,true,4,false]
[null,null,null,null,null,0,null,null,0,0,null,null,true,true,true,true,4,false]
[null,null,null,null,null,0,null,null,0,0,null,null,true,true,true,true,4,false]
[null,null,null,null,null,0,null,null,0,0,null,null,true,true,true,true,4,false]
[null,null,null,null,null,0,null,null,0,0,null,null,true,true,true,true,4,true]
[null,"4.8 Publications in mass-media",null,null,null,{"$f":"SUM(F241:F260)","v":0},null,null,{"$f":"SUM(I241:I260)","v":0},{"$f":"SUM(J241:J260)","v":0},null,null,null,null,null,null,null,true]
[null,null,null,null,null,{"$f":"ROUND(D241*E241,2)","v":0},null,null,{"$f":"ROUND(G241*H241,2)","v":0},{"$f":"F241+I241","v":0},null,null,{"$f":"ISBLANK(B241)","v":true},{"$f":"ISBLANK(C241)","v":true},true,true,{"$f":"M241+N241+O241+P241","v":4},{"$f":"IF(Q241=0,TRUE,FALSE)","v":false}]
[null,null,null,null,null,{"$f":"ROUND(D242*E242,2)","v":0},null,null,0,{"$f":"F242+I242","v":0},null,null,{"$f":"ISBLANK(B242)","v":true},true,true,true,{"$f":"M242+N242+O242+P242","v":4},{"$f":"IF(Q242=0,TRUE,FALSE)","v":false}]
[null,null,null,null,null,0,null,null,0,0,null,null,true,true,true,true,4,false]
[null,null,null,null,null,0,null,null,0,0,null,null,true,true,true,true,4,false]
[null,null,null,null,null,0,null,null,0,0,null,null,true,true,true,true,4,false]
[null,null,null,null,null,0,null,null,0,0,null,null,true,true,true,true,4,false]
[null,null,null,null,null,0,null,null,0,0,null,null,true,true,true,true,4,false]
[null,null,null,null,null,0,null,null,0,0,null,null,true,true,true,true,4,false]
[null,null,null,null,null,0,null,null,0,0,null,null,true,true,true,true,4,false]
[null,null,null,null,null,0,null,null,0,0,null,null,true,true,true,true,4,true]
[null,null,null,null,null,{"$f":"ROUND(D251*E251,2)","v":0},null,null,{"$f":"ROUND(G251*H251,2)","v":0},{"$f":"F251+I251","v":0},null,null,{"$f":"ISBLANK(B251)","v":true},{"$f":"ISBLANK(C251)","v":true},{"$f":"ISBLANK(D251)","v":true},{"$f":"ISBLANK(E251)","v":true},{"$f":"M251+N251+O251+P251","v":4},{"$f":"IF(Q251=0,TRUE,FALSE)","v":false}]
[null,null,null,null,null,{"$f":"ROUND(D252*E252,2)","v":0},null,null,0,{"$f":"F252+I252","v":0},null,null,{"$f":"ISBLANK(B252)","v":true},true,true,true,{"$f":"M252+N252+O252+P252","v":4},{"$f":"IF(Q252=0,TRUE,FALSE)","v":false}]
[null,null,null,null,null,0,null,null,0,0,null,null,true,true,true,true,4,false]
[null,null,null,null,null,0,null,null,0,0,null,null,true,true,true,true,4,false]
[null,null,null,null,null,0,null,null,0,0,null,null,true,true,true,true,4,false]
[null,null,null,null,null,0,null,null,0,0,null,null,true,true,true,true,4,false]
[null,null,null,null,null,0,null,null,0,0,null,null,true,true,true,true,4,false]
[null,null,null,null,null,0,null,null,0,0,null,null,true,true,true,true,4,false]
[null,null,null,null,null,0,null,null,0,0,null,null,true,true,true,true,4,false]
[null,null,null,null,null,0,null,null,0,0,null,null,true,true,true,true,4,true]
[null,"4.9 Consultancy, studies,designs, website development etc.",null,null,null,{"$f":"SUM(F262:F281)","v":0},null,null,{"$f":"SUM(I262:I281)","v":0},{"$f":"SUM(J262:J281)","v":0},null,null,null,null,null,null,null,true]
[null,null,null,null,null,{"$f":"ROUND(D262*E262,2)","v":0},null,null,{"$f":"ROUND(G262*H262,2)","v":0},{"$f":"F262+I262","v":0},null,null,{"$f":"ISBLANK(B262)","v":true},{"$f":"ISBLANK(C262)","v":true},true,true,{"$f":"M262+N262+O262+P262","v":4},{"$f":"IF(Q262=0,TRUE,FALSE)","v":false}]
[null,null,null,null,null,{"$f":"ROUND(D263*E263,2)","v":0},null,null,0,{"$f":"F263+I263","v":0},null,null,{"$f":"ISBLANK(B263)","v":true},true,true,true,{"$f":"M263+N263+O263+P263","v":4},{"$f":"IF(Q263=0,TRUE,FALSE)","v":false}]
[null,null,null,null,null,0,null,null,0,0,null,null,true,true,true,true,4,false]
[null,null,null,null,null,0,null,null,0,0,null,null,true,true,true,true,4,false]
[null,null,null,null,null,0,null,null,0,0,null,null,true,true,true,true,4,false]
[null,null,null,null,null,0,null,null,0,0,null,null,true,true,true,true,4,false]
[null,null,null,null,null,0,null,null,0,0,null,null,true,true,true,true,4,false]
[null,null,null,null,null,0,null,null,0,0,null,null,true,true,true,true,4,false]
[null,null,null,null,null,0,null,null,0,0,null,null,true,true,true,true,4,false]
[null,null,null,null,null,0,null,null,0,0,null,null,true,true,true,true,4,true]
[null,null,null,null,null,{"$f":"ROUND(D272*E272,2)","v":0},null,null,{"$f":"ROUND(G272*H272,2)","v":0},{"$f":"F272+I272","v":0},null,null,{"$f":"ISBLANK(B272)","v":true},{"$f":"ISBLANK(C272)","v":true},{"$f":"ISBLANK(D272)","v":true},{"$f":"ISBLANK(E272)","v":true},{"$f":"M272+N272+O272+P272","v":4},{"$f":"IF(Q272=0,TRUE,FALSE)","v":false}]
[null,null,null,null,null,{"$f":"ROUND(D273*E273,2)","v":0},null,null,0,{"$f":"F273+I273","v":0},null,null,{"$f":"ISBLANK(B273)","v":true},true,true,true,{"$f":"M273+N273+O273+P273","v":4},{"$f":"IF(Q273=0,TRUE,FALSE)","v":false}]
[null,null,null,null,null,0,null,null,0,0,null,null,true,true,true,true,4,false]
[null,null,null,null,null,0,null,null,0,0,null,null,true,true,true,true,4,false]
[null,null,null,null,null,0,null,null,0,0,null,null,true,true,true,true,4,false]
[null,null,null,null,null,0,null,null,0,0,null,null,true,true,true,true,4,false]
[null,null,null,null,null,0,null,null,0,0,null,null,true,true,true,true,4,false]
[null,null,null,null,null,0,null,null,0,0,null,null,true,true,true,true,4,false]
[null,null,null,null,null,0,null,null,0,0,null,null,true,true,true,true,4,false]
[null,null,null,null,null,0,null,null,0,0,null,null,true,true,true,true,4,true]
[null,"4.10  Authorizations, certificates",null,null,null,{"$f":"SUM(F283:F302)","v":0},null,null,{"$f":"SUM(I283:I302)","v":0},{"$f":"SUM(J283:J302)","v":0},null,null,null,null,null,null,null,true]
[null,null,null,null,null,{"$f":"ROUND(D283*E283,2)","v":0},null,null,{"$f":"ROUND(G283*H283,2)","v":0},{"$f":"F283+I283","v":0},null,null,{"$f":"ISBLANK(B283)","v":true},{"$f":"ISBLANK(C283)","v":true},true,true,{"$f":"M283+N283+O283+P283","v":4},{"$f":"IF(Q283=0,TRUE,FALSE)","v":false}]
[null,null,null,null,null,{"$f":"ROUND(D284*E284,2)","v":0},null,null,0,{"$f":"F284+I284","v":0},null,null,{"$f":"ISBLANK(B284)","v":true},true,true,true,{"$f":"M284+N284+O284+P284","v":4},{"$f":"IF(Q284=0,TRUE,FALSE)","v":false}]
[null,null,null,null,null,0,null,null,0,0,null,null,true,true,true,true,4,false]
[null,null,null,null,null,0,null,null,0,0,null,null,true,true,true,true,4,false]
[null,null,null,null,null,0,null,null,0,0,null,null,true,true,true,true,4,false]
[null,null,null,null,null,0,null,null,0,0,null,null,true,true,true,true,4,false]
[null,null,null,null,null,0,null,null,0,0,null,null,true,true,true,true,4,false]
[null,null,null,null,null,0,null,null,0,0,null,null,true,true,true,true,4,false]
[null,null,null,null,null,0,null,null,0,0,null,null,true,true,true,true,4,false]
[null,null,null,null,null,0,null,null,0,0,null,null,true,true,true,true,4,true]
[null,null,null,null,null,{"$f":"ROUND(D293*E293,2)","v":0},null,null,{"$f":"ROUND(G293*H293,2)","v":0},{"$f":"F293+I293","v":0},null,null,{"$f":"ISBLANK(B293)","v":true},{"$f":"ISBLANK(C293)","v":true},{"$f":"ISBLANK(D293)","v":true},{"$f":"ISBLANK(E293)","v":true},{"$f":"M293+N293+O293+P293","v":4},{"$f":"IF(Q293=0,TRUE,FALSE)","v":false}]
[null,null,null,null,null,{"$f":"ROUND(D294*E294,2)","v":0},null,null,0,{"$f":"F294+I294","v":0},null,null,{"$f":"ISBLANK(B294)","v":true},true,true,true,{"$f":"M294+N294+O294+P294","v":4},{"$f":"IF(Q294=0,TRUE,FALSE)","v":false}]
[null,null,null,null,null,0,null,null,0,0,null,null,true,true,true,true,4,false]
[null,null,null,null,null,0,null,null,0,0,null,null,true,true,true,true,4,false]
[null,null,null,null,null,0,null,null,0,0,null,null,true,true,true,true,4,false]
[null,null,null,null,null,0,null,null,0,0,null,null,true,true,true,true,4,false]
[null,null,null,null,null,0,null,null,0,0,null,null,true,true,true,true,4,false]
[null,null,null,null,null,0,null,null,0,0,null,null,true,true,true,true,4,false]
[null,null,null,null,null,0,null,null,0,0,null,null,true,true,true,true,4,false]
[null,null,null,null,null,0,null,null,0,0,null,null,true,true,true,true,4,true]
[null,"4.11  Interpreters, lecturers, trainers",null,null,null,{"$f":"SUM(F304:F323)","v":0},null,null,{"$f":"SUM(I304:I323)","v":0},{"$f":"SUM(J304:J323)","v":0},null,null,null,null,null,null,null,true]
[null,null,null,null,null,{"$f":"ROUND(D304*E304,2)","v":0},null,null,{"$f":"ROUND(G304*H304,2)","v":0},{"$f":"F304+I304","v":0},null,null,{"$f":"ISBLANK(B304)","v":true},{"$f":"ISBLANK(C304)","v":true},true,true,{"$f":"M304+N304+O304+P304","v":4},{"$f":"IF(Q304=0,TRUE,FALSE)","v":false}]
[null,null,null,null,null,{"$f":"ROUND(D305*E305,2)","v":0},null,null,0,{"$f":"F305+I305","v":0},null,null,{"$f":"ISBLANK(B305)","v":true},true,true,true,{"$f":"M305+N305+O305+P305","v":4},{"$f":"IF(Q305=0,TRUE,FALSE)","v":false}]
[null,null,null,null,null,0,null,null,0,0,null,null,true,true,true,true,4,false]
[null,null,null,null,null,0,null,null,0,0,null,null,true,true,true,true,4,false]
[null,null,null,null,null,0,null,null,0,0,null,null,true,true,true,true,4,false]
[null,null,null,null,null,0,null,null,0,0,null,null,true,true,true,true,4,false]
[null,null,null,null,null,0,null,null,0,0,null,null,true,true,true,true,4,false]
[null,null,null,null,null,0,null,null,0,0,null,null,true,true,true,true,4,false]
[null,null,null,null,null,0,null,null,0,0,null,null,true,true,true,true,4,false]
[null,null,null,null,null,0,null,null,0,0,null,null,true,true,true,true,4,true]
[null,null,null,null,null,{"$f":"ROUND(D314*E314,2)","v":0},null,null,{"$f":"ROUND(G314*H314,2)","v":0},{"$f":"F314+I314","v":0},null,null,{"$f":"ISBLANK(B314)","v":true},{"$f":"ISBLANK(C314)","v":true},{"$f":"ISBLANK(D314)","v":true},{"$f":"ISBLANK(E314)","v":true},{"$f":"M314+N314+O314+P314","v":4},{"$f":"IF(Q314=0,TRUE,FALSE)","v":false}]
[null,null,null,null,null,{"$f":"ROUND(D315*E315,2)","v":0},null,null,0,{"$f":"F315+I315","v":0},null,null,{"$f":"ISBLANK(B315)","v":true},true,true,true,{"$f":"M315+N315+O315+P315","v":4},{"$f":"IF(Q315=0,TRUE,FALSE)","v":false}]
[null,null,null,null,null,0,null,null,0,0,null,null,true,true,true,true,4,false]
[null,null,null,null,null,0,null,null,0,0,null,null,true,true,true,true,4,false]
[null,null,null,null,null,0,null,null,0,0,null,null,true,true,true,true,4,false]
[null,null,null,null,null,0,null,null,0,0,null,null,true,true,true,true,4,false]
[null,null,null,null,null,0,null,null,0,0,null,null,true,true,true,true,4,false]
[null,null,null,null,null,0,null,null,0,0,null,null,true,true,true,true,4,false]
[null,null,null,null,null,0,null,null,0,0,null,null,true,true,true,true,4,false]
[null,null,null,null,null,0,null,null,0,0,null,null,true,true,true,true,4,true]
[null,"4.12 Others",null,null,null,{"$f":"SUM(F325:F344)","v":0},null,null,{"$f":"SUM(I325:I344)","v":0},{"$f":"SUM(J325:J344)","v":0},null,null,null,null,null,null,null,true]
[null,null,null,null,null,{"$f":"ROUND(D325*E325,2)","v":0},null,null,{"$f":"ROUND(G325*H325,2)","v":0},{"$f":"F325+I325","v":0},null,null,{"$f":"ISBLANK(B325)","v":true},{"$f":"ISBLANK(C325)","v":true},true,true,{"$f":"M325+N325+O325+P325","v":4},{"$f":"IF(Q325=0,TRUE,FALSE)","v":false}]
[null,null,null,null,null,{"$f":"ROUND(D326*E326,2)","v":0},null,null,0,{"$f":"F326+I326","v":0},null,null,{"$f":"ISBLANK(B326)","v":true},true,true,true,{"$f":"M326+N326+O326+P326","v":4},{"$f":"IF(Q326=0,TRUE,FALSE)","v":false}]
[null,null,null,null,null,0,null,null,0,0,null,null,true,true,true,true,4,false]
[null,null,null,null,null,0,null,null,0,0,null,null,true,true,true,true,4,false]
[null,null,null,null,null,0,null,null,0,0,null,null,true,true,true,true,4,false]
[null,null,null,null,null,0,null,null,0,0,null,null,true,true,true,true,4,false]
[null,null,null,null,null,0,null,null,0,0,null,null,true,true,true,true,4,false]
[null,null,null,null,null,0,null,null,0,0,null,null,true,true,true,true,4,false]
[null,null,null,null,null,0,null,null,0,0,null,null,true,true,true,true,4,false]
[null,null,null,null,null,0,null,null,0,0,null,null,true,true,true,true,4,true]
[null,null,null,null,null,{"$f":"ROUND(D335*E335,2)","v":0},null,null,{"$f":"ROUND(G335*H335,2)","v":0},{"$f":"F335+I335","v":0},null,null,{"$f":"ISBLANK(B335)","v":true},{"$f":"ISBLANK(C335)","v":true},{"$f":"ISBLANK(D335)","v":true},{"$f":"ISBLANK(E335)","v":true},{"$f":"M335+N335+O335+P335","v":4},{"$f":"IF(Q335=0,TRUE,FALSE)","v":false}]
[null,null,null,null,null,{"$f":"ROUND(D336*E336,2)","v":0},null,null,0,{"$f":"F336+I336","v":0},null,null,{"$f":"ISBLANK(B336)","v":true},true,true,true,{"$f":"M336+N336+O336+P336","v":4},{"$f":"IF(Q336=0,TRUE,FALSE)","v":false}]
[null,null,null,null,null,0,null,null,0,0,null,null,true,true,true,true,4,false]
[null,null,null,null,null,0,null,null,0,0,null,null,true,true,true,true,4,false]
[null,null,null,null,null,0,null,null,0,0,null,null,true,true,true,true,4,false]
[null,null,null,null,null,0,null,null,0,0,null,null,true,true,true,true,4,false]
[null,null,null,null,null,0,null,null,0,0,null,null,true,true,true,true,4,false]
[null,null,null,null,null,0,null,null,0,0,null,null,true,true,true,true,4,false]
[null,null,null,null,null,0,null,null,0,0,null,null,true,true,true,true,4,false]
[null,null,null,null,null,0,null,null,0,0,null,null,true,true,true,true,4,true]
[null,"TOTAL",null,null,null,{"$f":"F324+F303+F282+F261+F240+F219+F198+F177+F156+F135+F114+F93","v":0},null,null,{"$f":"I324+I303+I282+I261+I240+I219+I198+I177+I156+I135+I114+I93","v":0},{"$f":"J324+J303+J282+J261+J240+J219+J198+J177+J156+J135+J114+J93","v":0},null,null,null,null,null,null,null,true]
[null,null,null,null,null,null,null,null,null,null,null,null,{"$f":"O350+P350+N346","v":2},{"$f":"M8=\"Soft\"","v":false},null,null,null,true]
[null,"BL5 - EQUIPMENT AND WORKS","Unit","Expenditures in the eligible area",null,null,"N/A",null,null,"TOTAL",null,null,null,null,null,null,null,true]
[null,null,null,"Units","Unit rate","TOTAL","Units","Unit rate","TOTAL",null,null,null,null,null,null,null,null,true]
[null,"5.1 Small scale construction",null,null,null,{"$f":"SUM(F350:F369)","v":0},null,null,{"$f":"SUM(I350:I369)","v":0},{"$f":"SUM(J350:J369)","v":0},null,null,null,null,null,null,null,true]
[null,null,null,null,null,{"$f":"ROUND(D350*E350,2)","v":0},null,null,{"$f":"ROUND(G350*H350,2)","v":0},{"$f":"F350+I350","v":0},null,null,{"$f":"ISBLANK(B350)","v":true},{"$f":"ISBLANK(C350)","v":true},true,true,{"$f":"M350+N350+O350+P350","v":4},{"$f":"IF(Q350=0,TRUE,FALSE)","v":false}]
[null,null,null,null,null,{"$f":"ROUND(D351*E351,2)","v":0},null,null,0,{"$f":"F351+I351","v":0},null,null,{"$f":"ISBLANK(B351)","v":true},true,true,true,{"$f":"M351+N351+O351+P351","v":4},{"$f":"IF(Q351=0,TRUE,FALSE)","v":false}]
[null,null,null,null,null,0,null,null,0,0,null,null,true,true,true,true,4,false]
[null,null,null,null,null,0,null,null,0,0,null,null,true,true,true,true,4,false]
[null,null,null,null,null,0,null,null,0,0,null,null,true,true,true,true,4,false]
[null,null,null,null,null,0,null,null,0,0,null,null,true,true,true,true,4,false]
[null,null,null,null,null,0,null,null,0,0,null,null,true,true,true,true,4,false]
[null,null,null,null,null,0,null,null,0,0,null,null,true,true,true,true,4,false]
[null,null,null,null,null,0,null,null,0,0,null,null,true,true,true,true,4,false]
[null,null,null,null,null,0,null,null,0,0,null,null,true,true,true,true,4,true]
[null,null,null,null,null,{"$f":"ROUND(D360*E360,2)","v":0},null,null,{"$f":"ROUND(G360*H360,2)","v":0},{"$f":"F360+I360","v":0},null,null,{"$f":"ISBLANK(B360)","v":true},{"$f":"ISBLANK(C360)","v":true},{"$f":"ISBLANK(D360)","v":true},{"$f":"ISBLANK(E360)","v":true},{"$f":"M360+N360+O360+P360","v":4},{"$f":"IF(Q360=0,TRUE,FALSE)","v":false}]
[null,null,null,null,null,{"$f":"ROUND(D361*E361,2)","v":0},null,null,0,{"$f":"F361+I361","v":0},null,null,{"$f":"ISBLANK(B361)","v":true},true,true,true,{"$f":"M361+N361+O361+P361","v":4},{"$f":"IF(Q361=0,TRUE,FALSE)","v":false}]
[null,null,null,null,null,0,null,null,0,0,null,null,true,true,true,true,4,false]
[null,null,null,null,null,0,null,null,0,0,null,null,true,true,true,true,4,false]
[null,null,null,null,null,0,null,null,0,0,null,null,true,true,true,true,4,false]
[null,null,null,null,null,0,null,null,0,0,null,null,true,true,true,true,4,false]
[null,null,null,null,null,0,null,null,0,0,null,null,true,true,true,true,4,false]
[null,null,null,null,null,0,null,null,0,0,null,null,true,true,true,true,4,false]
[null,null,null,null,null,0,null,null,0,0,null,null,true,true,true,true,4,false]
[null,null,null,null,null,0,null,null,0,0,null,null,true,true,true,true,4,true]
[null,"5.2 Supply",null,null,null,{"$f":"SUM(F371:F390)","v":0},null,null,{"$f":"SUM(I371:I390)","v":0},{"$f":"SUM(J371:J390)","v":0},null,null,null,true,null,null,null,true]
[null,null,null,null,null,{"$f":"ROUND(D371*E371,2)","v":0},null,null,{"$f":"ROUND(G371*H371,2)","v":0},{"$f":"F371+I371","v":0},null,null,{"$f":"ISBLANK(B371)","v":true},{"$f":"ISBLANK(C371)","v":true},true,true,{"$f":"M371+N371+O371+P371","v":4},{"$f":"IF(Q371=0,TRUE,FALSE)","v":false}]
[null,null,null,null,null,{"$f":"ROUND(D372*E372,2)","v":0},null,null,0,{"$f":"F372+I372","v":0},null,null,{"$f":"ISBLANK(B372)","v":true},true,true,true,{"$f":"M372+N372+O372+P372","v":4},{"$f":"IF(Q372=0,TRUE,FALSE)","v":false}]
[null,null,null,null,null,0,null,null,0,0,null,null,true,true,true,true,4,false]
[null,null,null,null,null,0,null,null,0,0,null,null,true,true,true,true,4,false]
[null,null,null,null,null,0,null,null,0,0,null,null,true,true,true,true,4,false]
[null,null,null,null,null,0,null,null,0,0,null,null,true,true,true,true,4,false]
[null,null,null,null,null,0,null,null,0,0,null,null,true,true,true,true,4,false]
[null,null,null,null,null,0,null,null,0,0,null,null,true,true,true,true,4,false]
[null,null,null,null,null,0,null,null,0,0,null,null,true,true,true,true,4,false]
[null,null,null,null,null,0,null,null,0,0,null,null,true,true,true,true,4,true]
[null,null,null,null,null,{"$f":"ROUND(D381*E381,2)","v":0},null,null,{"$f":"ROUND(G381*H381,2)","v":0},{"$f":"F381+I381","v":0},null,null,{"$f":"ISBLANK(B381)","v":true},{"$f":"ISBLANK(C381)","v":true},{"$f":"ISBLANK(D381)","v":true},{"$f":"ISBLANK(E381)","v":true},{"$f":"M381+N381+O381+P381","v":4},{"$f":"IF(Q381=0,TRUE,FALSE)","v":false}]
[null,null,null,null,null,{"$f":"ROUND(D382*E382,2)","v":0},null,null,0,{"$f":"F382+I382","v":0},null,null,{"$f":"ISBLANK(B382)","v":true},true,true,true,{"$f":"M382+N382+O382+P382","v":4},{"$f":"IF(Q382=0,TRUE,FALSE)","v":false}]
[null,null,null,null,null,0,null,null,0,0,null,null,true,true,true,true,4,false]
[null,null,null,null,null,0,null,null,0,0,null,null,true,true,true,true,4,false]
[null,null,null,null,null,0,null,null,0,0,null,null,true,true,true,true,4,false]
[null,null,null,null,null,0,null,null,0,0,null,null,true,true,true,true,4,false]
[null,null,null,null,null,0,null,null,0,0,null,null,true,true,true,true,4,false]
[null,null,null,null,null,0,null,null,0,0,null,null,true,true,true,true,4,false]
[null,null,null,null,null,0,null,null,0,0,null,null,true,true,true,true,4,false]
[null,null,null,null,null,0,null,null,0,0,null,null,true,true,true,true,4,true]
[null,"TOTAL",null,null,null,{"$f":"F370+F349","v":0},null,null,{"$f":"I370+I349","v":0},{"$f":"J370+J349","v":0},null,null,null,null,null,null,null,true]
[null,null,null,null,null,null,null,null,null,null,null,null,null,null,null,null,null,true]
[null,"BL6 - PROJECT PREPARATION","Unit","Expenditures in the eligible area",null,null,"N/A",null,null,"TOTAL",null,null,null,null,null,null,null,true]
[null,null,null,"Units","Unit rate","TOTAL","Units","Unit rate","TOTAL",null,null,null,null,null,null,null,null,true]
[null,"6.1.Preparation of Application package ",null,null,null,{"$f":"SUM(F396:F405)","v":0},null,null,{"$f":"SUM(I396:I405)","v":0},{"$f":"SUM(J396:J405)","v":0}]
[null,null,null,null,null,{"$f":"ROUND(D396*E396,2)","v":0},null,null,{"$f":"ROUND(G396*H396,2)","v":0},{"$f":"F396+I396","v":0},null,null,{"$f":"ISBLANK(B396)","v":true},{"$f":"ISBLANK(C396)","v":true},true,true,{"$f":"M396+N396+O396+P396","v":4},{"$f":"IF(Q396=0,TRUE,FALSE)","v":false}]
[null,null,null,null,null,{"$f":"ROUND(D397*E397,2)","v":0},null,null,0,{"$f":"F397+I397","v":0},null,null,{"$f":"ISBLANK(B397)","v":true},true,true,true,{"$f":"M397+N397+O397+P397","v":4},{"$f":"IF(Q397=0,TRUE,FALSE)","v":false}]
[null,null,null,null,null,0,null,null,0,0,null,null,true,true,true,true,4,false]
[null,null,null,null,null,0,null,null,0,0,null,null,true,true,true,true,4,false]
[null,null,null,null,null,0,null,null,0,0,null,null,true,true,true,true,4,false]
[null,null,null,null,null,0,null,null,0,0,null,null,true,true,true,true,4,false]
[null,null,null,null,null,0,null,null,0,0,null,null,true,true,true,true,4,false]
[null,null,null,null,null,0,null,null,0,0,null,null,true,true,true,true,4,false]
[null,null,null,null,null,0,null,null,0,0,null,null,true,true,true,true,4,false]
[null,null,null,null,null,0,null,null,0,0,null,null,true,true,true,true,4,true]
[null,"6.2 Preparation of technical documentation ",null,null,null,{"$f":"SUM(F407:F416)","v":0},null,null,{"$f":"SUM(I407:I416)","v":0},{"$f":"SUM(J407:J416)","v":0},null,null,{"$f":"ISBLANK(B406)","v":false},true,true,true,{"$f":"M406+N406+O406+P406","v":3},{"$f":"IF(Q406=0,TRUE,FALSE)","v":false}]
[null,null,null,null,null,{"$f":"ROUND(D407*E407,2)","v":0},null,null,{"$f":"ROUND(G407*H407,2)","v":0},{"$f":"F407+I407","v":0},null,null,{"$f":"ISBLANK(B407)","v":true}]
[null,null,null,null,null,0,null,null,0,0,null,null,{"$f":"ISBLANK(B408)","v":true},true,true,true,{"$f":"M408+N408+O408+P408","v":4},{"$f":"IF(Q408=0,TRUE,FALSE)","v":false}]
[null,null,null,null,null,0,null,null,0,0,null,null,true,true,true,true,4,false]
[null,null,null,null,null,0,null,null,0,0,null,null,true,true,true,true,4,false]
[null,null,null,null,null,0,null,null,0,0,null,null,true,true,true,true,4,false]
[null,null,null,null,null,0,null,null,0,0,null,null,true,true,true,true,4,false]
[null,null,null,null,null,0,null,null,0,0,null,null,true,true,true,true,4,false]
[null,null,null,null,null,0,null,null,0,0,null,null,true,true,true,true,4,false]
[null,null,null,null,null,0,null,null,0,0,null,null,true,true,true,true,4,false]
[null,null,null,null,null,0,null,null,0,0,null,null,true,true,true,true,4,false]
[null,"TOTAL",null,null,null,{"$f":"F395+F406","v":0},null,null,{"$f":"I395+I406","v":0},{"$f":"J395+J406","v":0},null,null,null,null,null,null,null,true]
[null,null,null,null,null,null,null,null,null,null,null,null,null,null,null,null,null,true]
[null,"Own Contribution",null,null,null,"Unit","Units","Unit rate","TOTAL",null,null,null,"Units out","Units rate out","Total out","Total in",null,true]
[null,null,null,null,null,null,null,null,{"$f":"ROUND(G420*H420,2)","v":0},null,null,null,null,null,null,null,null,true]
[null,null,null,"Expenditures outside the eligible area exceed 20 %! Reconsider budget distribution!",null,null,null,null,null,null,null,null,null,null,null,null,null,true]
[null,"Total direct project costs VAT incl. (BL3+BL4+BL5)",null,null,null,{"$f":"F391+F345+F89","v":0},{"$f":"I391+I89+I345","v":0},null,null,{"$f":"J391+J345+J89","v":0},null,null,null,null,null,null,null,true]
[null,"TOTAL PROJECT COSTS",null,null,null,{"$f":"F422+F417+I6+I11+I420","v":0},{"$f":"G422+I417","v":0},null,null,{"$f":"F423+G423","v":0},null,null,null,null,null,null,null,true]

{"sheet":"Table 2-total","index":15,"n_rows":45,"n_cols":5,"rows_kept":45,"cut":false,"hidden":false,"merged":[[2,0,3,2],[5,0,6,2],[40,1,40,3]]}
["TABLE 2 - DETAILED BREAKDOWN OF BUDGET LINES - TOTAL"]
[]
["BL1 - STAFF COSTS",null,null,"TOTAL","%"]
[null,null,null,{"$f":"'T2-B(PP1)'!I6+'T2-B(PP2)'!I6+'T2-B(PP3)'!I6+'T2-B(PP4)'!I6+'T2-B(PP5)'!I6","v":0},{"$f":"D4/$D$45","v":{"$error":"#DIV/0!"}}]
[]
["BL2 - OFFICE AND ADMINISTRATIVE COSTS",null,null,"TOTAL","TOTAL"]
[null,null,null,{"$f":"'T2-B(PP1)'!I11+'T2-B(PP2)'!I11+'T2-B(PP3)'!I11+'T2-B(PP4)'!I11+'T2-B(PP5)'!I11","v":0},{"$f":"D7/$D$45","v":{"$error":"#DIV/0!"}}]
[]
["BL3 - TRAVEL AND ACCOMMODATION","Eligible area","Outside eligible area","TOTAL","%"]
["Travel costs",{"$f":"'T2-B(PP1)'!F15+'T2-B(PP2)'!F15+'T2-B(PP3)'!F15+'T2-B(PP4)'!F15+'T2-B(PP5)'!F15","v":0},{"$f":"'T2-B(PP1)'!I15+'T2-B(PP2)'!I15+'T2-B(PP3)'!I15+'T2-B(PP4)'!I15+'T2-B(PP5)'!I15","v":0},{"$f":"B10+C10","v":0},{"$f":"D10/$D$45","v":{"$error":"#DIV/0!"}}]
["Daily allowances",{"$f":"'T2-B(PP1)'!F36+'T2-B(PP2)'!F36+'T2-B(PP3)'!F36+'T2-B(PP4)'!F36+'T2-B(PP5)'!F36","v":0},{"$f":"'T2-B(PP1)'!I36+'T2-B(PP2)'!I36+'T2-B(PP3)'!I36+'T2-B(PP4)'!I36+'T2-B(PP5)'!I36","v":0},{"$f":"B11+C11","v":0},{"$f":"D11/$D$45","v":{"$error":"#DIV/0!"}}]
["Accommodation costs",{"$f":"'T2-B(PP1)'!F57+'T2-B(PP2)'!F57+'T2-B(PP3)'!F57+'T2-B(PP4)'!F57+'T2-B(PP5)'!F57","v":0},{"$f":"'T2-B(PP1)'!I57+'T2-B(PP2)'!I57+'T2-B(PP3)'!I57+'T2-B(PP4)'!I57+'T2-B(PP5)'!I57","v":0},{"$f":"B12+C12","v":0},{"$f":"D12/$D$45","v":{"$error":"#DIV/0!"}}]
["Visa costs",{"$f":"'T2-B(PP1)'!F78+'T2-B(PP2)'!F78+'T2-B(PP3)'!F78+'T2-B(PP4)'!F78+'T2-B(PP5)'!F78","v":0},{"$f":"'T2-B(PP1)'!I78+'T2-B(PP2)'!I78+'T2-B(PP3)'!I78+'T2-B(PP4)'!I78+'T2-B(PP5)'!I78","v":0},{"$f":"B13+C13","v":0},{"$f":"D13/$D$45","v":{"$error":"#DIV/0!"}}]
["TOTAL",{"$f":"SUM(B10:B13)","v":0},{"$f":"SUM(C10:C13)","v":0},{"$f":"SUM(D10:D13)","v":0},{"$f":"D14/$D$45","v":{"$error":"#DIV/0!"}}]
[]
["BL4 - EXTERNAL EXPERTISE AND SERVICES COSTS","Eligible area","Outside eligible area","TOTAL","%"]
["Rent of hall",{"$f":"'T2-B(PP1)'!F93+'T2-B(PP2)'!F93+'T2-B(PP3)'!F93+'T2-B(PP4)'!F93+'T2-B(PP5)'!F93","v":0},{"$f":"'T2-B(PP1)'!I93+'T2-B(PP2)'!I93+'T2-B(PP3)'!I93+'T2-B(PP4)'!I93+'T2-B(PP5)'!I93","v":0},{"$f":"B17+C17","v":0},{"$f":"D17/$D$45","v":{"$error":"#DIV/0!"}}]
["Rent of equipment",{"$f":"'T2-B(PP1)'!F114+'T2-B(PP2)'!F114+'T2-B(PP3)'!F114+'T2-B(PP4)'!F114+'T2-B(PP5)'!F114","v":0},{"$f":"'T2-B(PP1)'!I114+'T2-B(PP2)'!I114+'T2-B(PP3)'!I114+'T2-B(PP4)'!I114+'T2-B(PP5)'!I114","v":0},{"$f":"B18+C18","v":0},{"$error":"#DIV/0!"}]
["Coffee breaks, refreshments, etc.",{"$f":"'T2-B(PP1)'!F135+'T2-B(PP2)'!F135+'T2-B(PP3)'!F135+'T2-B(PP4)'!F135+'T2-B(PP5)'!F135","v":0},{"$f":"'T2-B(PP1)'!I135+'T2-B(PP2)'!I135+'T2-B(PP3)'!I135+'T2-B(PP4)'!I135+'T2-B(PP5)'!I135","v":0},0,{"$error":"#DIV/0!"}]
["Consumables",{"$f":"'T2-B(PP1)'!F156+'T2-B(PP2)'!F156+'T2-B(PP3)'!F156+'T2-B(PP4)'!F156+'T2-B(PP5)'!F156","v":0},{"$f":"'T2-B(PP1)'!I156+'T2-B(PP2)'!I156+'T2-B(PP3)'!I156+'T2-B(PP4)'!I156+'T2-B(PP5)'!I156","v":0},0,{"$error":"#DIV/0!"}]
["Rent of vehicle for event",{"$f":"'T2-B(PP1)'!F177+'T2-B(PP2)'!F177+'T2-B(PP3)'!F177+'T2-B(PP4)'!F177+'T2-B(PP5)'!F177","v":0},{"$f":"'T2-B(PP1)'!I177+'T2-B(PP2)'!I177+'T2-B(PP3)'!I177+'T2-B(PP4)'!I177+'T2-B(PP5)'!I177","v":0},0,{"$error":"#DIV/0!"}]
["Accommodations for participants in the events ",{"$f":"'T2-B(PP1)'!F198+'T2-B(PP2)'!F198+'T2-B(PP3)'!F198+'T2-B(PP4)'!F198+'T2-B(PP5)'!F198","v":0},{"$f":"'T2-B(PP1)'!I198+'T2-B(PP2)'!I198+'T2-B(PP3)'!I198+'T2-B(PP4)'!I198+'T2-B(PP5)'!I198","v":0},0,{"$error":"#DIV/0!"}]
["Elaboration, design, translation etc.",{"$f":"'T2-B(PP1)'!F219+'T2-B(PP2)'!F219+'T2-B(PP3)'!F219+'T2-B(PP4)'!F219+'T2-B(PP5)'!F219","v":0},{"$f":"'T2-B(PP1)'!I219+'T2-B(PP2)'!I219+'T2-B(PP3)'!I219+'T2-B(PP4)'!I219+'T2-B(PP5)'!I219","v":0},0,{"$error":"#DIV/0!"}]
["Publications in mass-media",{"$f":"'T2-B(PP1)'!F240+'T2-B(PP2)'!F240+'T2-B(PP3)'!F240+'T2-B(PP4)'!F240+'T2-B(PP5)'!F240","v":0},{"$f":"'T2-B(PP1)'!I219+'T2-B(PP2)'!I240+'T2-B(PP3)'!I240+'T2-B(PP4)'!I240+'T2-B(PP5)'!I240","v":0},0,{"$error":"#DIV/0!"}]
["Consultancy,studies,designs, web site development etc.",{"$f":"'T2-B(PP1)'!F261+'T2-B(PP2)'!F261+'T2-B(PP3)'!F261+'T2-B(PP4)'!F261+'T2-B(PP5)'!F261","v":0},{"$f":"'T2-B(PP1)'!I261+'T2-B(PP2)'!I261+'T2-B(PP3)'!I261+'T2-B(PP4)'!I261+'T2-B(PP5)'!I261","v":0},0,{"$error":"#DIV/0!"}]
["Authorizations, certificates",{"$f":"'T2-B(PP1)'!F282+'T2-B(PP2)'!F282+'T2-B(PP3)'!F282+'T2-B(PP4)'!F282+'T2-B(PP5)'!F282","v":0},{"$f":"'T2-B(PP1)'!I282+'T2-B(PP2)'!I282+'T2-B(PP3)'!I282+'T2-B(PP4)'!I282+'T2-B(PP5)'!I282","v":0},0,{"$error":"#DIV/0!"}]
["Interpreters, lecturers, trainers",{"$f":"'T2-B(PP1)'!F303+'T2-B(PP2)'!F303+'T2-B(PP3)'!F303+'T2-B(PP4)'!F303+'T2-B(PP5)'!F303","v":0},{"$f":"'T2-B(PP1)'!I303+'T2-B(PP2)'!I303+'T2-B(PP3)'!I303+'T2-B(PP4)'!I303+'T2-B(PP5)'!I303","v":0},0,{"$error":"#DIV/0!"}]
["Others",{"$f":"'T2-B(PP1)'!F324+'T2-B(PP2)'!F324+'T2-B(PP3)'!F324+'T2-B(PP4)'!F324+'T2-B(PP5)'!F324","v":0},{"$f":"'T2-B(PP1)'!I324+'T2-B(PP2)'!I324+'T2-B(PP3)'!I324+'T2-B(PP4)'!I324+'T2-B(PP5)'!I324","v":0},0,{"$error":"#DIV/0!"}]
["TOTAL",{"$f":"SUM(B17:B28)","v":0},{"$f":"SUM(C17:C28)","v":0},{"$f":"SUM(D17:D28)","v":0},{"$error":"#DIV/0!"}]
[]
["BL5 -EQUIPMENT AND WORKS","Eligible area","N/A","TOTAL","%"]
["Small scale construction",{"$f":"'T2-B(PP1)'!F349+'T2-B(PP2)'!F349+'T2-B(PP3)'!F349+'T2-B(PP4)'!F349+'T2-B(PP5)'!F349","v":0},{"$f":"'T2-B(PP1)'!I349+'T2-B(PP2)'!I349+'T2-B(PP3)'!I349+'T2-B(PP4)'!I349+'T2-B(PP5)'!I349","v":0},{"$f":"B32+C32","v":0},{"$f":"D32/$D$45","v":{"$error":"#DIV/0!"}}]
["Supply",{"$f":"'T2-B(PP1)'!F370+'T2-B(PP2)'!F370+'T2-B(PP3)'!F370+'T2-B(PP4)'!F370+'T2-B(PP5)'!F370","v":0},{"$f":"'T2-B(PP1)'!I370+'T2-B(PP2)'!I370+'T2-B(PP3)'!I370+'T2-B(PP4)'!I370+'T2-B(PP5)'!I370","v":0},{"$f":"B33+C33","v":0},{"$f":"D33/$D$45","v":{"$error":"#DIV/0!"}}]
["TOTAL",{"$f":"SUM(B32:B33)","v":0},{"$f":"SUM(C32:C33)","v":0},{"$f":"SUM(D32:D33)","v":0},{"$f":"D34/$D$45","v":{"$error":"#DIV/0!"}}]
[]
["BL6 - PROJECT PREPARATION","Eligible area","N/A","TOTAL","%"]
["Preparation of Application package ",{"$f":"'T2-B(PP1)'!F395+'T2-B(PP2)'!F395+'T2-B(PP3)'!F395+'T2-B(PP4)'!F395+'T2-B(PP5)'!F395","v":0},{"$f":"'T2-B(PP1)'!I417+'T2-B(PP2)'!I405+'T2-B(PP3)'!I405+'T2-B(PP4)'!I405+'T2-B(PP5)'!I405","v":0},{"$f":"B37+C37","v":0},{"$f":"D37/$D$45","v":{"$error":"#DIV/0!"}}]
["Preparation of technical documentation ",{"$f":"'T2-B(PP1)'!F406+'T2-B(PP2)'!F406+'T2-B(PP3)'!F406+'T2-B(PP4)'!F406+'T2-B(PP5)'!F406","v":0},{"$f":"'T2-B(PP1)'!I418+'T2-B(PP2)'!I406+'T2-B(PP3)'!I406+'T2-B(PP4)'!I406+'T2-B(PP5)'!I406","v":0},{"$f":"B38+C38","v":0},{"$f":"D38/$D$45","v":{"$error":"#DIV/0!"}}]
["TOTAL",{"$f":"SUM(B37:B38)","v":0},{"$f":"SUM(C37:C38)","v":0},{"$f":"SUM(D37:D38)","v":0},{"$f":"D39/$D$45","v":{"$error":"#DIV/0!"}}]
[]
["Own contribution",{"$f":"'T2-B(PP1)'!I420+'T2-B(PP2)'!I420+'T2-B(PP3)'!I420+'T2-B(PP4)'!I420+'T2-B(PP5)'!I420","v":0},null,null,{"$f":"D41/$D$45","v":{"$error":"#DIV/0!"}}]
[]
["Total direct project costs (BL3+BL4+BL5)",{"$f":"B29+B14+B34","v":0},{"$f":"C34+C29+C14","v":0},{"$f":"B43+C43","v":0},{"$f":"D43/$D$45","v":{"$error":"#DIV/0!"}}]
[]
["TOTAL PROJECT COSTS",{"$f":"B43+B41+D7+D4+t2_Bl6","v":0},{"$f":"C43+C34","v":0},{"$f":"SUM(B45:C45)","v":0}]

{"sheet":"Table 3-summary","index":16,"n_rows":39,"n_cols":13,"rows_kept":39,"cut":false,"hidden":false,"merged":[[2,9,2,10],[10,0,10,1],[14,0,14,1],[16,1,16,5],[2,0,3,0],[2,1,3,1],[2,2,3,2],[2,4,3,4],[2,5,3,5],[2,3,5,3]]}
["TABLE 3 - SUMMARY BREAKDOWN OF BUDGET LINES"]
[]
["No","BUDGET LINE","Expenditures in the eligible area","Expenditures outside of the eligible area","TOTAL"," % of total project costs",null,null,0,"Limits"]
[null,null,null,null,null,null,null,null,"Line","Lower","Upper"]
["BL 1","Staff costs",{"$f":"'Table 2-total'!D4","v":0},null,{"$f":"C5","v":0},{"$f":"E5/$E$15","v":{"$error":"#DIV/0!"}},null,null,"Administrative costs",0,0.15]
["BL 2 ","Ofiice and administrative costs",{"$f":"'Table 2-total'!D7","v":0},null,{"$f":"C6","v":0},{"$error":"#DIV/0!"},null,null,"Travel & Accomodation",0,0.1]
["BL 3 ","Travel and accomodation",{"$f":"'Table 2-total'!B14","v":0},{"$f":"'Table 2-total'!C14","v":0},{"$f":"SUM(C7:D7)","v":0},{"$error":"#DIV/0!"}]
["BL 4 ","External expertise and services",{"$f":"'Table 2-total'!B29","v":0},{"$f":"'Table 2-total'!C29","v":0},{"$f":"SUM(C8:D8)","v":0},{"$error":"#DIV/0!"}]
["BL 5 ","Equipment and works",{"$f":"'Table 2-total'!B34","v":0},null,{"$f":"SUM(C9:D9)","v":0},{"$error":"#DIV/0!"},null,null,{"$f":"'Table 5-Sources'!G8","v":0}]
["BL 6","Project preparation",{"$f":"'Table 2-total'!D39","v":0},null,{"$f":"C10","v":0},{"$error":"#DIV/0!"}]
["TOTAL ",null,{"$f":"SUM(C5:C10)","v":0},{"$f":"SUM(D5:D10)","v":0},{"$f":"SUM(E5:E10)","v":0}]
[null,null,null,null,null,null,null,null,"Define Errors"]
[null,"Own contribution",{"$f":"'Table 2-total'!B41","v":0},null,{"$f":"C13","v":0},0,null,null,{"$f":"IF((J29<I25),\"Budget is lower than prescribed limits for this Specific objective\",IF(t3_total_perc_tot>J25,\"Budget is higher than prescribed limits for this Specific objective\",\"\"))","v":"Budget is lower than prescribed limits for this Specific objective"}]
[]
["TOTAL PROJECT",null,{"$f":"SUM(C11+C13)","v":0},{"$f":"SUM(D7:D9)","v":0},{"$f":"SUM(E11+E13)","v":0}]
[]
[null,null,null,null,null,null,null,null,null,null,{"$f":"C9/E11","v":{"$error":"#DIV/0!"}},{"$f":"IF(J26=\"Soft\",K17>0.5,K17<0.5)","v":{"$error":"#DIV/0!"}}]
[null,{"$f":"IF(L21,CONCATENATE(\"Preparation of application package [\",ROUND(t2_Bl6_1,2),\" euro] exceed the 3000 euro limit!\"),\"\")","v":""}]
[null,{"$f":"IF(I13<>\"\",I13,\"\")","v":"Budget is lower than prescribed limits for this Specific objective"},null,null,null,null,null,null,true]
[null,{"$f":"IF(L17,CONCATENATE(\"Your BL5 is not within the limits for \",J26,\" project.\"),\"\")","v":{"$error":"#DIV/0!"}},null,null,null,null,null,null,null,"Total direct",{"$f":"SUM(C7:D8)+C9","v":0}]
[null,{"$f":"IF(F32,\"Preparation cost exceed 1 % of total direct cost!\",\"\")","v":{"$error":"#DIV/0!"}},null,null,null,null,null,null,null,null,null,{"$f":"t2_Bl6_1>3000","v":false}]
[null,null,null,null,null,null,null,null,"Project Preparation",0,0.01,{"$f":"C10>3000","v":false}]
[]
[null,null,null,null,null,null,null,null,"Lower limit","Upper limit",null,"Error margin low"]
[null,null,null,null,null,null,null,null,{"$f":"VLOOKUP(I35,J32:L39,2)","v":50000},{"$f":"VLOOKUP(I35,J32:L39,3)","v":2340588},null,"Error margin up"]
[null,null,null,null,null,null,null,null," ",{"$f":"Cover!C34","v":"Investment"}]
[]
[]
[null,null,null,null,null,null,null,null,"total project",{"$f":"t3_total_perc_tot","v":0},null,{"$f":"J29<I25","v":true},{"$f":"J29>J25","v":false}]
[]
[]
[null,null,null,null,{"$f":"t3_BL6_tot/(t3_BL5_tot+t3_BL4_tot+t3_BL3_tot)","v":{"$error":"#DIV/0!"}},{"$f":"E32>0.03","v":{"$error":"#DIV/0!"}},null,null,{"$f":"pi_specific_objective","v":"1.2. Improving the capacity for nature protection, sustainable use and management of common natural resources through cooperation initiatives in the  cross-border area"},"SO"]
[null,null,null,null,{"$f":"t3_BL6_tot_perc","v":{"$error":"#DIV/0!"}},null,null,null,{"$f":"LEFT(I32,3)","v":"1.2"},"1.1.1",250000,600000]
[null,null,null,null,null,null,null,null,{"$f":"IF(J26=\"Soft\",2,1)","v":1},"1.1.2",50000,120000]
[null,null,null,null,null,null,null,null,{"$f":"CONCATENATE(I33,\".\",I34)","v":"1.2.1"},"1.2.1",50000,2340588]
[null,null,null,null,null,null,null,null,null,"1.2.2",50000,2340588]
[null,null,null,null,null,null,null,null,null,"2.1.1",250000,500000]
[null,null,null,null,null,null,null,null,null,"2.2.2",50000,120000]
[null,null,null,null,null,null,null,null,null,"2.3.2",50000,100000]

{"sheet":"Table 4 PP`BL","index":17,"n_rows":18,"n_cols":8,"rows_kept":18,"cut":false,"hidden":false,"merged":[[10,0,10,1],[11,0,11,1]]}
["TABLE 4 - SUMMARY BREAKDOWN OF BUDGET LINES PER PROJECT PARTNERS"]
[]
["No","BUDGET LINE","PP1 LP","PP2","PP3","PP4","PP5","Total"]
["BL 1","Staff costs",{"$f":"'T2-B(PP1)'!I6","v":0},{"$f":"'T2-B(PP2)'!I6","v":0},{"$f":"'T2-B(PP3)'!I6","v":0},{"$f":"'T2-B(PP4)'!I6","v":0},{"$f":"'T2-B(PP5)'!I6","v":0},{"$f":"SUM(C4:G4)","v":0}]
["BL 2 ","Ofiice and administrative costs",{"$f":"'T2-B(PP1)'!I10","v":0},{"$f":"'T2-B(PP2)'!I10","v":0},{"$f":"'T2-B(PP3)'!I10","v":0},{"$f":"'T2-B(PP4)'!I10","v":0},{"$f":"'T2-B(PP5)'!I10","v":0},{"$f":"SUM(C5:G5)","v":0}]
["BL 3 ","Travel and accomodation",{"$f":"'T2-B(PP1)'!J89","v":0},{"$f":"'T2-B(PP2)'!J89","v":0},{"$f":"'T2-B(PP3)'!J89","v":0},{"$f":"'T2-B(PP4)'!J89","v":0},{"$f":"'T2-B(PP5)'!J89","v":0},0]
["BL 4 ","External expertise and services",{"$f":"'T2-B(PP1)'!J345","v":0},{"$f":"'T2-B(PP2)'!J345","v":0},{"$f":"'T2-B(PP3)'!J345","v":0},{"$f":"'T2-B(PP4)'!J345","v":0},{"$f":"'T2-B(PP5)'!J345","v":0},0]
["BL 5 ","Equipment and works",{"$f":"'T2-B(PP1)'!J391","v":0},{"$f":"'T2-B(PP2)'!J391","v":0},{"$f":"'T2-B(PP3)'!J391","v":0},{"$f":"'T2-B(PP4)'!J391","v":0},{"$f":"'T2-B(PP5)'!J391","v":0},0]
["BL 6","Project preparation",{"$f":"'T2-B(PP1)'!J417","v":0},{"$f":"'T2-B(PP2)'!J417","v":0},{"$f":"'T2-B(PP3)'!J417","v":0},{"$f":"'T2-B(PP4)'!J417","v":0},{"$f":"'T2-B(PP5)'!J417","v":0},0]
[null,"Own contribution",{"$f":"'T2-B(PP1)'!I420","v":0},{"$f":"'T2-B(PP2)'!I420","v":0},{"$f":"'T2-B(PP3)'!I420","v":0},{"$f":"'T2-B(PP4)'!I420","v":0},{"$f":"'T2-B(PP5)'!I420","v":0},0]
["TOTAL ",null,{"$f":"SUM(C4:C10)","v":0},0,0,0,0,0]
["% from TOTAL ",null,{"$f":"C11/$H$11","v":{"$error":"#DIV/0!"}},{"$f":"D11/$H$11","v":{"$error":"#DIV/0!"}},{"$f":"E11/$H$11","v":{"$error":"#DIV/0!"}},{"$f":"F11/$H$11","v":{"$error":"#DIV/0!"}},{"$f":"G11/$H$11","v":{"$error":"#DIV/0!"}}]
[]
[null,"Eligible area",null,null,null,null,null,0]
[null,"%",null,null,null,null,null,{"$error":"#DIV/0!"}]
[null,"Adjacent area",null,null,null,null,null,0]
[null,"%",null,null,null,null,null,{"$error":"#DIV/0!"}]
[null,"TOTAL",null,null,null,null,null,0]

{"sheet":"Table 5-Sources","index":18,"n_rows":24,"n_cols":13,"rows_kept":24,"cut":false,"hidden":false,"merged":[]}
["TABLE 5 - PROJECT SOURCES / PARTNERS' CONTRIBUTION"]
[]
["Project partners","PP1 LP","PP2","PP3","PP4","PP5","Total"]
["Country (code)","","","","","",null,null,null,"Proper Axis","Type"]
["Total partner's contribution             (including EU + national co-financing)",{"$f":"'Table 4 PP`BL'!C11","v":0},{"$f":"'Table 4 PP`BL'!D11","v":0},{"$f":"'Table 4 PP`BL'!E11","v":0},{"$f":"'Table 4 PP`BL'!F11","v":0},{"$f":"'Table 4 PP`BL'!G11","v":0},{"$f":"SUM(B5:F5)","v":0},null,null,{"$error":"#REF!"},0]
["National co-financing",{"$f":"B7+B8","v":0},{"$f":"C7+C8","v":0},{"$f":"D7+D8","v":0},{"$f":"E7+E8","v":0},{"$f":"F7+F8","v":0},{"$f":"SUM(B6:F6)","v":0},null,null,null,"Min","Max","match"]
[" Thereof state co-financing",{"$f":"ROUNDUP((B5-B8)*0.15,2)","v":0},{"$f":"ROUNDUP((C5-C8)*0.15,2)","v":0},{"$f":"ROUNDUP((D5-D8)*0.15,2)","v":0},{"$f":"ROUNDUP((E5-E8)*0.15,2)","v":0},{"$f":"ROUNDUP((F5-F8)*0.15,2)","v":0},{"$f":"SUM(B7:F7)","v":0},null,null,"Soft",50000,150000,false]
["Own co-finanacing",null,null,null,null,null,{"$f":"SUM(B8:F8)","v":0}]
["EU co-financing rate",{"$f":"B10/B5","v":{"$error":"#DIV/0!"}},{"$error":"#DIV/0!"},{"$error":"#DIV/0!"},{"$error":"#DIV/0!"},{"$error":"#DIV/0!"},{"$error":"#DIV/0!"},null,null,"Soft",50000,150000,false]
["EU subsidy",{"$f":"B5-B6","v":0},{"$f":"C5-C6","v":0},{"$f":"D5-D6","v":0},{"$f":"E5-E6","v":0},{"$f":"F5-F6","v":0},{"$f":"SUM(B10:F10)","v":0},null,null,null,50000,150000]
[]
[null,"Wrong choice of Priority/Area of Intervention",null,null,null,null,null,null,null,false]
[{"$error":"#REF!"},null,null,null,null,null,null,null,null,false]
[null,null,null,null,null,null,null,null,null,"Errors on page"]
[null,null,null,null,null,null,null,null,null,{"$error":"#REF!"}]
[null,null,null,null,null,null,null,null,null,{"$error":"#REF!"}]
[]
[]
[]
[]
[]
[]
[]
[null,null," "]

{"sheet":"Statements","index":19,"n_rows":180,"n_cols":7,"rows_kept":180,"cut":false,"hidden":false,"merged":[[63,0,63,1],[128,1,128,3],[165,1,165,3],[136,0,136,1],[137,0,137,1],[153,0,153,8],[158,0,158,8],[168,0,168,8],[170,0,170,4],[159,0,159,8],[172,0,172,4],[173,0,173,1],[174,0,174,1],[79,0,79,8],[84,0,84,8],[121,0,121,8],[131,0,131,8],[133,0,133,4],[91,1,91,3],[135,0,135,4],[85,0,85,8],[122,0,122,8],[94,0,94,8],[96,0,96,4],[98,0,98,4],[99,0,99,1],[100,0,100,1],[116,0,116,8],[10,0,10,8],[5,0,5,8],[26,0,26,1],[42,0,42,8],[25,0,25,1],[20,0,20,8],[24,0,24,4],[22,0,22,4],[17,1,17,3],[47,0,47,8],[57,0,57,8],[59,0,59,4],[61,0,61,4],[62,0,62,1],[54,1,54,3],[48,0,48,8]]}
[]
[]
["                      PARTNERSHIP AND CO-FINANCING STATEMENT"]
[]
[]
[{"$f":"IF(Cover!C28=\"\",\"\",Cover!C28)","v":""}]
["(Project Title)"]
[]
[]
["In the case of approval of the above mentioned project, applying for assistance from the "]
["INTERREG-IPA CBC Bulgaria-Turkey Programme we hereby declare that "]
[{"$f":"IF(Cover!C38=\"\",\"\",Cover!C38)","v":""}]
["(Name of Institution)"]
[]
["listed as PP 1 / LP in Table 1 of the Application form - Part 3,"]
["has examined and agreed on his tasks and activities described in the Application form - Part 2,"]
["undertakes to comply with the principles of good partnership practice and to provide"]
["EUR",{"$f":"'Table 5-Sources'!B8","v":0}]
["as own contribution and/or other sources to the INTERREG-IPA CBC Bulgaria-Turkey project budget."]
["We furthermore confirm that any project expenditure related to the above mentioned project"]
["will not be funded by any other EU programme."]
[]
[{"$f":"'PP1(LP)'!C23","v":""}]
["(Name of the legal representative of the Project Partner)"]
[{"$f":"'PP1(LP)'!C25","v":0}]
["(Position)"]
[]
["(Date)"]
[]
[]
[null,null,null,null,null,null,"(Signature)"]
[null,null,null,null,null,null,"(Official Stamp of Project Partner)"]
[]
[]
[]
[]
[]
[]
[]
["                      PARTNERSHIP AND CO-FINANCING STATEMENT"]
[]
[]
[{"$f":"Cover!C28","v":0}]
["(Project Title)"]
[]
[]
["In the case of approval of the above mentioned project, applying for assistance from the "]
["INTERREG-IPA CBC Bulgaria-Turkey Programme we hereby declare that "]
[{"$f":"'PP2'!C7","v":0}]
["(Name of Institution)"]
[]
["listed as PP 2 in Table 1 of the Application form - Part 3,"]
["has examined and agreed on his tasks and activities described in the Application form - Part 2,"]
["undertakes to comply with the principles of good partnership practice and to provide"]
["EUR",{"$f":"'Table 5-Sources'!C8","v":0}]
["as own contribution and/or other sources to the INTERREG-IPA CBC Bulgaria-Turkey project budget."]
["We furthermore confirm that any project expenditure related to the above mentioned project"]
["will not be funded by any other EU programme."]
[]
[{"$f":"'PP2'!C23","v":0}]
["(Name of the legal representative of the Project Partner)"]
[{"$f":"'PP2'!C25","v":0}]
["(Position)"]
[]
["(Date)"]
[]
[]
[null,null,null,null,null,null,"(Signature)"]
[null,null,null,null,null,null,"(Official Stamp of Project Partner)"]
[]
[]
[]
[]
[]
[]
[]
["                      PARTNERSHIP AND CO-FINANCING STATEMENT"]
[]
[]
[{"$f":"A43","v":0}]
["(Project Title)"]
[]
[]
["In the case of approval of the above mentioned project, applying for assistance from the "]
["INTERREG-IPA CBC Bulgaria-Turkey Programme we hereby declare that "]
[{"$f":"'PP3'!C7","v":0}]
["(Name of Institution)"]
[]
["listed as PP 3 in Table 1 of the Application form - Part 3,"]
["has examined and agreed on his tasks and activities described in the Application form - Part 2,"]
["undertakes to comply with the principles of good partnership practice and to provide"]
["EUR",{"$f":"'Table 5-Sources'!D8","v":0}]
["as own contribution and/or other sources to the INTERREG-IPA CBC Bulgaria-Turkey project budget."]
["We furthermore confirm that any project expenditure related to the above mentioned project"]
["will not be funded by any other EU programme."]
[]
[{"$f":"'PP3'!C23","v":0}]
["(Name of the legal representative of the Project Partner)"]
[{"$f":"'PP3'!C25","v":0}]
["(Position)"]
[]
["(Date)"]
[]
[]
[null,null,null,null,null,null,"(Signature)"]
[null,null,null,null,null,null,"(Official Stamp of Project Partner)"]
[]
[]
[]
[]
[]
[]
[]
["                      PARTNERSHIP AND CO-FINANCING STATEMENT"]
[]
[]
[{"$f":"A80","v":0}]
["(Project Title)"]
[]
[]
["In the case of approval of the above mentioned project, applying for assistance from the "]
["INTERREG-IPA CBC Bulgaria-Turkey Programme we hereby declare that "]
[{"$f":"'PP4'!C7","v":0}]
["(Name of Institution)"]
[]
["listed as PP 4 in Table 1 of the Application form - Part 3,"]
["has examined and agreed on his tasks and activities described in the Application form - Part 2,"]
["undertakes to comply with the principles of good partnership practice and to provide"]
["EUR",{"$f":"'Table 5-Sources'!E8","v":0}]
["as own contribution and/or other sources to the INTERREG-IPA CBC Bulgaria-Turkey project budget."]
["We furthermore confirm that any project expenditure related to the above mentioned project"]
["will not be funded by any other EU programme."]
[]
[{"$f":"'PP4'!C23","v":0}]
["(Name of the legal representative of the Project Partner)"]
[{"$f":"'PP4'!C25","v":0}]
["(Position)"]
[]
["(Date)"]
[]
[]
[null,null,null,null,null,null,"(Signature)"]
[null,null,null,null,null,null,"(Official Stamp of Project Partner)"]
[]
[]
[]
[]
[]
[]
[]
["                      PARTNERSHIP AND CO-FINANCING STATEMENT"]
[]
[]
[{"$f":"A117","v":0}]
["(Project Title)"]
[]
[]
["In the case of approval of the above mentioned project, applying for assistance from the "]
["INTERREG-IPA CBC Bulgaria-Turkey Programme we hereby declare that "]
[{"$f":"'PP5'!C7","v":0}]
["(Name of Institution)"]
[]
["listed as PP 5 in Table 1 of the Application form - Part 3,"]
["has examined and agreed on his tasks and activities described in the Application form - Part 2,"]
["undertakes to comply with the principles of good partnership practice and to provide"]
["EUR",{"$f":"'Table 5-Sources'!F8","v":0}]
["as own contribution and/or other sources to the INTERREG-IPA CBC Bulgaria-Turkey project budget."]
["We furthermore confirm that any project expenditure related to the above mentioned project"]
["will not be funded by any other EU programme."]
[]
[{"$f":"'PP5'!C23","v":0}]
["(Name of the legal representative of the Project Partner)"]
[{"$f":"'PP5'!C25","v":0}]
["(Position)"]
[]
["(Date)"]
[]
[]
[null,null,null,null,null,null,"(Signature)"]
[null,null,null,null,null,null,"(Official Stamp of Project Partner)"]

{"sheet":"Summary","index":20,"n_rows":55,"n_cols":2,"rows_kept":55,"cut":false,"hidden":false,"merged":[[10,1,11,1],[12,1,13,1],[14,1,16,1],[40,1,41,1],[45,1,46,1],[31,1,32,1],[33,1,35,1],[18,0,18,1],[49,1,50,1],[51,1,52,1],[53,1,54,1],[25,1,26,1],[27,1,28,1]]}
["Project summary"]
[]
["Project title"]
["Lead Partner (name/country)"]
["Partners "]
["Priority axis"]
["Specific objective"]
["Duration (in months)"]
["Total budget (in €)"]
["Project Objectives"]
["Project Activities"]
["(Provide a brief description of the major activities that will be done under the project   - what, where and how for each major activity)"]
["Project Results"]
["(describe results/benefits to be achieved  by  this project)"]
["Target Groups"]
["(describe main target groups that will benefit from project results and outputs)"]
[]
[]
["РЕЗЮМЕ НА ПРОЕКТА"]
[]
["Заглавие на проекта"]
["Водещ партньор (име/ държава) "]
["Проектни партньори"]
["Приоритетна ос"]
["Специфична цел"]
["Продължителност"]
["(в месеци) "]
["Общ бюджет "]
["(в евро) "]
["Цели на проекта"]
["Дейности по проекта (Моля, опишете на кратко основните дейности, които ще бъдат извършени в рамките на проекта - какво, къде и как за всяка основна дейност)"]
["Резултати по проекта"]
["(Моля, опишете какви резултати/ ползи ще се постигнат с реализацията на проекта)"]
["Целеви групи"]
["(Моля, опишете основните целеви групи, които ще се възползват от резултатите и продуктите по проекта)"]
[]
[]
["PROJE ÖZETİ"]
[]
["Proje Adı","Bizim Ortak Tarihimiz"]
["Ana Yararlanıcı "]
["(Ad/Ülke)"]
["Proje Ortakları"]
["Öncelik Alanı"]
["Özel Amaç"]
["Süre "]
["(Ay cinsinden)"]
["Toplam Bütçe (Avro)"]
["Proje Amaçları"]
["Proje Faaliyetleri"]
["(Proje kapsamında uygulanacak olan ana faaliyetleri kısaca açıklayınız – açıklama, her bir ana faaliyet için ne, nerede ve nasıl sorularına cevaplar içermelidir.)"]
["Proje Sonuçları"]
["(Bu projeyle elde edilecek olan sonuç/faydaları açıklayınız.)"]
["Hedef Gruplar"]
["(Proje çıktı ve sonuçlarından faydalanacak olan ana grupları açıklayınız.)"]

{"sheet":"Named_ranges","index":21,"n_rows":18053,"n_cols":3,"rows_kept":18053,"cut":false,"hidden":true,"merged":[]}
["action_plan_actv_1",{"$f":"'Project identification'!$B$403","v":"1."},"#'Project identification'!$B$403"]
["action_plan_actv_1_1",{"$f":"'Project identification'!$C$403","v":0},"#'Project identification'!$C$403"]
["action_plan_actv_1_2",{"$f":"'Project identification'!$D$403","v":0},"#'Project identification'!$D$403"]
["action_plan_actv_1_3",{"$f":"'Project identification'!$E$403","v":0},"#'Project identification'!$E$403"]
["action_plan_actv_1_4",{"$f":"'Project identification'!$G$403","v":0},"#'Project identification'!$G$403"]
["action_plan_actv_1_5",{"$f":"'Project identification'!$H$403","v":0},"#'Project identification'!$H$403"]
["action_plan_actv_1_6",{"$f":"'Project identification'!$F$403","v":0},"#'Project identification'!$F$403"]
["action_plan_actv_1_7",{"$f":"'Project identification'!$I$403","v":0},"#'Project identification'!$I$403"]
["action_plan_actv_1_8",{"$f":"'Project identification'!$J$403","v":0},"#'Project identification'!$J$403"]
["action_plan_actv_10",{"$f":"'Project identification'!$B$412","v":"10."},"#'Project identification'!$B$412"]
["action_plan_actv_10_1",{"$f":"'Project identification'!$C$412","v":0},"#'Project identification'!$C$412"]
["action_plan_actv_10_2",{"$f":"'Project identification'!$D$412","v":0},"#'Project identification'!$D$412"]
["action_plan_actv_10_3",{"$f":"'Project identification'!$E$412","v":0},"#'Project identification'!$E$412"]
["action_plan_actv_10_4",{"$f":"'Project identification'!$G$412","v":0},"#'Project identification'!$G$412"]
["action_plan_actv_10_5",{"$f":"'Project identification'!$H$412","v":0},"#'Project identification'!$H$412"]
["action_plan_actv_10_6",{"$f":"'Project identification'!$F$412","v":0},"#'Project identification'!$F$412"]
["action_plan_actv_10_7",{"$f":"'Project identification'!$I$412","v":0},"#'Project identification'!$I$412"]
["action_plan_actv_10_8",{"$f":"'Project identification'!$J$412","v":0},"#'Project identification'!$J$412"]
["action_plan_actv_11",{"$f":"'Project identification'!$B$413","v":"11."},"#'Project identification'!$B$413"]
["action_plan_actv_11_1",{"$f":"'Project identification'!$C$413","v":0},"#'Project identification'!$C$413"]
["action_plan_actv_11_2",{"$f":"'Project identification'!$D$413","v":0},"#'Project identification'!$D$413"]
["action_plan_actv_11_3",{"$f":"'Project identification'!$E$413","v":0},"#'Project identification'!$E$413"]
["action_plan_actv_11_4",{"$f":"'Project identification'!$G$413","v":0},"#'Project identification'!$G$413"]
["action_plan_actv_11_5",{"$f":"'Project identification'!$H$413","v":0},"#'Project identification'!$H$413"]
["action_plan_actv_11_6",{"$f":"'Project identification'!$F$413","v":0},"#'Project identification'!$F$413"]
["action_plan_actv_11_7",{"$f":"'Project identification'!$I$413","v":0},"#'Project identification'!$I$413"]
["action_plan_actv_11_8",{"$f":"'Project identification'!$J$413","v":0},"#'Project identification'!$J$413"]
["action_plan_actv_12",{"$f":"'Project identification'!$B$414","v":"12."},"#'Project identification'!$B$414"]
["action_plan_actv_12_1",{"$f":"'Project identification'!$C$414","v":0},"#'Project identification'!$C$414"]
["action_plan_actv_12_2",{"$f":"'Project identification'!$D$414","v":0},"#'Project identification'!$D$414"]
["action_plan_actv_12_3",{"$f":"'Project identification'!$E$414","v":0},"#'Project identification'!$E$414"]
["action_plan_actv_12_4",{"$f":"'Project identification'!$G$414","v":0},"#'Project identification'!$G$414"]
["action_plan_actv_12_5",{"$f":"'Project identification'!$H$414","v":0},"#'Project identification'!$H$414"]
["action_plan_actv_12_6",{"$f":"'Project identification'!$F$414","v":0},"#'Project identification'!$F$414"]
["action_plan_actv_12_7",{"$f":"'Project identification'!$I$414","v":0},"#'Project identification'!$I$414"]
["action_plan_actv_12_8",{"$f":"'Project identification'!$J$414","v":0},"#'Project identification'!$J$414"]
["action_plan_actv_13",{"$f":"'Project identification'!$B$415","v":"13."},"#'Project identification'!$B$415"]
["action_plan_actv_13_1",{"$f":"'Project identification'!$C$415","v":0},"#'Project identification'!$C$415"]
["action_plan_actv_13_2",{"$f":"'Project identification'!$D$415","v":0},"#'Project identification'!$D$415"]
["action_plan_actv_13_3",{"$f":"'Project identification'!$E$415","v":0},"#'Project identification'!$E$415"]
["action_plan_actv_13_4",{"$f":"'Project identification'!$G$415","v":0},"#'Project identification'!$G$415"]
["action_plan_actv_13_5",{"$f":"'Project identification'!$H$415","v":0},"#'Project identification'!$H$415"]
["action_plan_actv_13_6",{"$f":"'Project identification'!$F$415","v":0},"#'Project identification'!$F$415"]
["action_plan_actv_13_7",{"$f":"'Project identification'!$I$415","v":0},"#'Project identification'!$I$415"]
["action_plan_actv_13_8",{"$f":"'Project identification'!$J$415","v":0},"#'Project identification'!$J$415"]
["action_plan_actv_14",{"$f":"'Project identification'!$B$416","v":"14."},"#'Project identification'!$B$416"]
["action_plan_actv_14_1",{"$f":"'Project identification'!$C$416","v":0},"#'Project identification'!$C$416"]
["action_plan_actv_14_2",{"$f":"'Project identification'!$D$416","v":0},"#'Project identification'!$D$416"]
["action_plan_actv_14_3",{"$f":"'Project identification'!$E$416","v":0},"#'Project identification'!$E$416"]
["action_plan_actv_14_4",{"$f":"'Project identification'!$G$416","v":0},"#'Project identification'!$G$416"]
["action_plan_actv_14_5",{"$f":"'Project identification'!$H$416","v":0},"#'Project identification'!$H$416"]
["action_plan_actv_14_6",{"$f":"'Project identification'!$F$416","v":0},"#'Project identification'!$F$416"]
["action_plan_actv_14_7",{"$f":"'Project identification'!$I$416","v":0},"#'Project identification'!$I$416"]
["action_plan_actv_14_8",{"$f":"'Project identification'!$J$416","v":0},"#'Project identification'!$J$416"]
["action_plan_actv_15",{"$f":"'Project identification'!$B$417","v":"15."},"#'Project identification'!$B$417"]
["action_plan_actv_15_1",{"$f":"'Project identification'!$C$417","v":0},"#'Project identification'!$C$417"]
["action_plan_actv_15_2",{"$f":"'Project identification'!$D$417","v":0},"#'Project identification'!$D$417"]
["action_plan_actv_15_3",{"$f":"'Project identification'!$E$417","v":0},"#'Project identification'!$E$417"]
["action_plan_actv_15_4",{"$f":"'Project identification'!$G$417","v":0},"#'Project identification'!$G$417"]
["action_plan_actv_15_5",{"$f":"'Project identification'!$H$417","v":0},"#'Project identification'!$H$417"]
["action_plan_actv_15_6",{"$f":"'Project identification'!$F$417","v":0},"#'Project identification'!$F$417"]
["action_plan_actv_15_7",{"$f":"'Project identification'!$I$417","v":0},"#'Project identification'!$I$417"]
["action_plan_actv_15_8",{"$f":"'Project identification'!$J$417","v":0},"#'Project identification'!$J$417"]
["action_plan_actv_2",{"$f":"'Project identification'!$B$404","v":"2."},"#'Project identification'!$B$404"]
["action_plan_actv_2_1",{"$f":"'Project identification'!$C$404","v":0},"#'Project identification'!$C$404"]
["action_plan_actv_2_2",{"$f":"'Project identification'!$D$404","v":0},"#'Project identification'!$D$404"]
["action_plan_actv_2_3",{"$f":"'Project identification'!$E$404","v":0},"#'Project identification'!$E$404"]
["action_plan_actv_2_4",{"$f":"'Project identification'!$G$404","v":0},"#'Project identification'!$G$404"]
["action_plan_actv_2_5",{"$f":"'Project identification'!$H$404","v":0},"#'Project identification'!$H$404"]
["action_plan_actv_2_6",{"$f":"'Project identification'!$F$404","v":0},"#'Project identification'!$F$404"]
["action_plan_actv_2_7",{"$f":"'Project identification'!$I$404","v":0},"#'Project identification'!$I$404"]
["action_plan_actv_2_8",{"$f":"'Project identification'!$J$404","v":0},"#'Project identification'!$J$404"]
["action_plan_actv_3",{"$f":"'Project identification'!$B$405","v":"3."},"#'Project identification'!$B$405"]
["action_plan_actv_3_1",{"$f":"'Project identification'!$C$405","v":0},"#'Project identification'!$C$405"]
["action_plan_actv_3_2",{"$f":"'Project identification'!$D$405","v":0},"#'Project identification'!$D$405"]
["action_plan_actv_3_3",{"$f":"'Project identification'!$E$405","v":0},"#'Project identification'!$E$405"]
["action_plan_actv_3_4",{"$f":"'Project identification'!$G$405","v":0},"#'Project identification'!$G$405"]
["action_plan_actv_3_5",{"$f":"'Project identification'!$H$405","v":0},"#'Project identification'!$H$405"]
["action_plan_actv_3_6",{"$f":"'Project identification'!$F$405","v":0},"#'Project identification'!$F$405"]
["action_plan_actv_3_7",{"$f":"'Project identification'!$I$405","v":0},"#'Project identification'!$I$405"]
["action_plan_actv_3_8",{"$f":"'Project identification'!$J$405","v":0},"#'Project identification'!$J$405"]
["action_plan_actv_4",{"$f":"'Project identification'!$B$406","v":"4."},"#'Project identification'!$B$406"]
["action_plan_actv_4_1",{"$f":"'Project identification'!$C$406","v":0},"#'Project identification'!$C$406"]
["action_plan_actv_4_2",{"$f":"'Project identification'!$D$406","v":0},"#'Project identification'!$D$406"]
["action_plan_actv_4_3",{"$f":"'Project identification'!$E$406","v":0},"#'Project identification'!$E$406"]
["action_plan_actv_4_4",{"$f":"'Project identification'!$G$406","v":0},"#'Project identification'!$G$406"]
["action_plan_actv_4_5",{"$f":"'Project identification'!$H$406","v":0},"#'Project identification'!$H$406"]
["action_plan_actv_4_6",{"$f":"'Project identification'!$F$406","v":0},"#'Project identification'!$F$406"]
["action_plan_actv_4_7",{"$f":"'Project identification'!$I$406","v":0},"#'Project identification'!$I$406"]
["action_plan_actv_4_8",{"$f":"'Project identification'!$J$406","v":0},"#'Project identification'!$J$406"]
["action_plan_actv_5",{"$f":"'Project identification'!$B$407","v":"5."},"#'Project identification'!$B$407"]
["action_plan_actv_5_1",{"$f":"'Project identification'!$C$407","v":0},"#'Project identification'!$C$407"]
["action_plan_actv_5_2",{"$f":"'Project identification'!$D$407","v":0},"#'Project identification'!$D$407"]
["action_plan_actv_5_3",{"$f":"'Project identification'!$E$407","v":0},"#'Project identification'!$E$407"]
["action_plan_actv_5_4",{"$f":"'Project identification'!$G$407","v":0},"#'Project identification'!$G$407"]
["action_plan_actv_5_5",{"$f":"'Project identification'!$H$407","v":0},"#'Project identification'!$H$407"]
["action_plan_actv_5_6",{"$f":"'Project identification'!$F$407","v":0},"#'Project identification'!$F$407"]
["action_plan_actv_5_7",{"$f":"'Project identification'!$I$407","v":0},"#'Project identification'!$I$407"]
["action_plan_actv_5_8",{"$f":"'Project identification'!$J$407","v":0},"#'Project identification'!$J$407"]
["action_plan_actv_6",{"$f":"'Project identification'!$B$408","v":"6."},"#'Project identification'!$B$408"]
["action_plan_actv_6_1",{"$f":"'Project identification'!$C$408","v":0},"#'Project identification'!$C$408"]
["action_plan_actv_6_2",{"$f":"'Project identification'!$D$408","v":0},"#'Project identification'!$D$408"]
["action_plan_actv_6_3",{"$f":"'Project identification'!$E$408","v":0},"#'Project identification'!$E$408"]
["action_plan_actv_6_4",{"$f":"'Project identification'!$G$408","v":0},"#'Project identification'!$G$408"]
["action_plan_actv_6_5",{"$f":"'Project identification'!$H$408","v":0},"#'Project identification'!$H$408"]
["action_plan_actv_6_6",{"$f":"'Project identification'!$F$408","v":0},"#'Project identification'!$F$408"]
["action_plan_actv_6_7",{"$f":"'Project identification'!$I$408","v":0},"#'Project identification'!$I$408"]
["action_plan_actv_6_8",{"$f":"'Project identification'!$J$408","v":0},"#'Project identification'!$J$408"]
["action_plan_actv_7",{"$f":"'Project identification'!$B$409","v":"7."},"#'Project identification'!$B$409"]
["action_plan_actv_7_1",{"$f":"'Project identification'!$C$409","v":0},"#'Project identification'!$C$409"]
["action_plan_actv_7_2",{"$f":"'Project identification'!$D$409","v":0},"#'Project identification'!$D$409"]
["action_plan_actv_7_3",{"$f":"'Project identification'!$E$409","v":0},"#'Project identification'!$E$409"]
["action_plan_actv_7_4",{"$f":"'Project identification'!$G$409","v":0},"#'Project identification'!$G$409"]
["action_plan_actv_7_5",{"$f":"'Project identification'!$H$409","v":0},"#'Project identification'!$H$409"]
["action_plan_actv_7_6",{"$f":"'Project identification'!$F$409","v":0},"#'Project identification'!$F$409"]
["action_plan_actv_7_7",{"$f":"'Project identification'!$I$409","v":0},"#'Project identification'!$I$409"]
["action_plan_actv_7_8",{"$f":"'Project identification'!$J$409","v":0},"#'Project identification'!$J$409"]
["action_plan_actv_8",{"$f":"'Project identification'!$B$410","v":"8."},"#'Project identification'!$B$410"]
["action_plan_actv_8_1",{"$f":"'Project identification'!$C$410","v":0},"#'Project identification'!$C$410"]
["action_plan_actv_8_2",{"$f":"'Project identification'!$D$410","v":0},"#'Project identification'!$D$410"]
["action_plan_actv_8_3",{"$f":"'Project identification'!$E$410","v":0},"#'Project identification'!$E$410"]
["action_plan_actv_8_4",{"$f":"'Project identification'!$G$410","v":0},"#'Project identification'!$G$410"]
["action_plan_actv_8_5",{"$f":"'Project identification'!$H$410","v":0},"#'Project identification'!$H$410"]
["action_plan_actv_8_6",{"$f":"'Project identification'!$F$410","v":0},"#'Project identification'!$F$410"]
["action_plan_actv_8_7",{"$f":"'Project identification'!$I$410","v":0},"#'Project identification'!$I$410"]
["action_plan_actv_8_8",{"$f":"'Project identification'!$J$410","v":0},"#'Project identification'!$J$410"]
["action_plan_actv_9",{"$f":"'Project identification'!$B$411","v":"9."},"#'Project identification'!$B$411"]
["action_plan_actv_9_1",{"$f":"'Project identification'!$C$411","v":0},"#'Project identification'!$C$411"]
["action_plan_actv_9_2",{"$f":"'Project identification'!$D$411","v":0},"#'Project identification'!$D$411"]
["action_plan_actv_9_3",{"$f":"'Project identification'!$E$411","v":0},"#'Project identification'!$E$411"]
["action_plan_actv_9_4",{"$f":"'Project identification'!$G$411","v":0},"#'Project identification'!$G$411"]
["action_plan_actv_9_5",{"$f":"'Project identification'!$H$411","v":0},"#'Project identification'!$H$411"]
["action_plan_actv_9_6",{"$f":"'Project identification'!$F$411","v":0},"#'Project identification'!$F$411"]
["action_plan_actv_9_7",{"$f":"'Project identification'!$I$411","v":0},"#'Project identification'!$I$411"]
["action_plan_actv_9_8",{"$f":"'Project identification'!$J$411","v":0},"#'Project identification'!$J$411"]
["Project identification'!BAD",{"$f":"'Project identification'!$R$402","v":0},"#'Project identification'!$R$402"]
["duration_project",{"$f":"'Project identification'!$C$19","v":0},"#'Project identification'!$C$19"]
["Cover!Environment",{"$f":"Cover!$P$28:$P$29","v":{"$error":"#VALUE!"}},"#Cover!$P$28:$P$29"]
["Environment",{"$f":"'Project identification'!$P$9:$P$10","v":{"$error":"#VALUE!"}},"#'Project identification'!$P$9:$P$10"]
["Cover!Environment1",{"$f":"Cover!$N$41:$N$42","v":{"$error":"#VALUE!"}},"#Cover!$N$41:$N$42"]
["Indicators1",{"$f":"'Project identification'!$O$447:$O$450","v":{"$error":"#VALUE!"}},"#'Project identification'!$O$447:$O$450"]
["Indicators2",{"$f":"'Project identification'!$O$451:$O$456","v":{"$error":"#VALUE!"}},"#'Project identification'!$O$451:$O$456"]
["Indicators3",{"$f":"'Project identification'!$O$457:$O$460","v":{"$error":"#VALUE!"}},"#'Project identification'!$O$457:$O$460"]
["Indicators4",{"$f":"'Project identification'!$O$461:$O$465","v":{"$error":"#VALUE!"}},"#'Project identification'!$O$461:$O$465"]
["Indicators5",{"$f":"'Project identification'!$O$466:$O$468","v":{"$error":"#VALUE!"}},"#'Project identification'!$O$466:$O$468"]
["invention_fild",{"$f":"Cover!$C$36","v":0},"#Cover!$C$36"]
["is_pp3",{"$f":"Checklist!$D$22","v":"x"},"#Checklist!$D$22"]
["is_pp4",{"$f":"Checklist!$D$30","v":"x"},"#Checklist!$D$30"]
["is_pp5",{"$f":"Checklist!$D$38","v":"x"},"#Checklist!$D$38"]
["Locations",{"$f":"'Project identification'!$M$71:$M$75","v":{"$error":"#VALUE!"}},"#'Project identification'!$M$71:$M$75"]
["lp_pp1_legal_representative",{"$f":"'PP1(LP)'!$C$23","v":""},"#'PP1(LP)'!$C$23"]
["lp_pp1_organisation_en",{"$f":"'PP1(LP)'!$C$7","v":""},"#'PP1(LP)'!$C$7"]
["oi_monit_justf",{"$f":"'Output indicators'!$E$9","v":0},"#'Output indicators'!$E$9"]
["oi_monit_justf2",{"$f":"'Output indicators'!$E$10","v":0},"#'Output indicators'!$E$10"]
["oi_monit_justf3",{"$f":"'Output indicators'!$E$11","v":0},"#'Output indicators'!$E$11"]
["oi_monit_justf4",{"$f":"'Output indicators'!$E$12","v":0},"#'Output indicators'!$E$12"]
["oi_monit_justf5",{"$f":"'Output indicators'!$E$13","v":0},"#'Output indicators'!$E$13"]
["oi_monit_justf6",{"$f":"'Output indicators'!$E$14","v":0},"#'Output indicators'!$E$14"]
["oi_monit_quant",{"$f":"'Output indicators'!$C$9","v":0},"#'Output indicators'!$C$9"]
["oi_monit_quant2",{"$f":"'Output indicators'!$C$10","v":0},"#'Output indicators'!$C$10"]
["oi_monit_quant3",{"$f":"'Output indicators'!$C$11","v":0},"#'Output indicators'!$C$11"]
["oi_monit_quant4",{"$f":"'Output indicators'!$C$12","v":0},"#'Output indicators'!$C$12"]
["oi_monit_quant5",{"$f":"'Output indicators'!$C$13","v":0},"#'Output indicators'!$C$13"]
["oi_monit_quant6",{"$f":"'Output indicators'!$C$14","v":0},"#'Output indicators'!$C$14"]
["oi_out_indicator",{"$f":"'Output indicators'!$B$9","v":0},"#'Output indicators'!$B$9"]
["oi_out_indicator2",{"$f":"'Output indicators'!$B$10","v":0},"#'Output indicators'!$B$10"]
["oi_out_indicator3",{"$f":"'Output indicators'!$B$11","v":0},"#'Output indicators'!$B$11"]
["oi_out_indicator4",{"$f":"'Output indicators'!$B$12","v":0},"#'Output indicators'!$B$12"]
["oi_out_indicator5",{"$f":"'Output indicators'!$B$13","v":0},"#'Output indicators'!$B$13"]
["oi_out_indicator6",{"$f":"'Output indicators'!$B$14","v":0},"#'Output indicators'!$B$14"]
["OK",{"$f":"'Project identification'!$W$408:$W$409","v":{"$error":"#VALUE!"}},"#'Project identification'!$W$408:$W$409"]
["PP2'!Organ1",{"$f":"'PP2'!$O$17:$O$19","v":{"$error":"#VALUE!"}},"#'PP2'!$O$17:$O$19"]
["PP3'!Organ1",{"$f":"'PP3'!$O$17:$O$19","v":{"$error":"#VALUE!"}},"#'PP3'!$O$17:$O$19"]
["PP4'!Organ1",{"$f":"'PP4'!$O$17:$O$19","v":{"$error":"#VALUE!"}},"#'PP4'!$O$17:$O$19"]
["PP5'!Organ1",{"$f":"'PP5'!$O$17:$O$19","v":{"$error":"#VALUE!"}},"#'PP5'!$O$17:$O$19"]
["Organ1",{"$f":"'PP1(LP)'!$O$17:$O$19","v":{"$error":"#VALUE!"}},"#'PP1(LP)'!$O$17:$O$19"]
["PP2'!Organ2",{"$f":"'PP2'!$P$17:$P$26","v":{"$error":"#VALUE!"}},"#'PP2'!$P$17:$P$26"]
["PP3'!Organ2",{"$f":"'PP3'!$P$17:$P$26","v":{"$error":"#VALUE!"}},"#'PP3'!$P$17:$P$26"]
["PP4'!Organ2",{"$f":"'PP4'!$P$17:$P$26","v":{"$error":"#VALUE!"}},"#'PP4'!$P$17:$P$26"]
["PP5'!Organ2",{"$f":"'PP5'!$P$17:$P$26","v":{"$error":"#VALUE!"}},"#'PP5'!$P$17:$P$26"]
["Organ2",{"$f":"'PP1(LP)'!$P$17:$P$26","v":{"$error":"#VALUE!"}},"#'PP1(LP)'!$P$17:$P$26"]
["PP2'!Organ3",{"$f":"'PP2'!$Q$17:$Q$25","v":{"$error":"#VALUE!"}},"#'PP2'!$Q$17:$Q$25"]
["PP3'!Organ3",{"$f":"'PP3'!$Q$17:$Q$25","v":{"$error":"#VALUE!"}},"#'PP3'!$Q$17:$Q$25"]
["PP4'!Organ3",{"$f":"'PP4'!$Q$17:$Q$25","v":{"$error":"#VALUE!"}},"#'PP4'!$Q$17:$Q$25"]
["PP5'!Organ3",{"$f":"'PP5'!$Q$17:$Q$25","v":{"$error":"#VALUE!"}},"#'PP5'!$Q$17:$Q$25"]
["Organ3",{"$f":"'PP1(LP)'!$Q$17:$Q$25","v":{"$error":"#VALUE!"}},"#'PP1(LP)'!$Q$17:$Q$25"]
["PP2'!Organ4",{"$f":"'PP2'!$R$17:$R$24","v":{"$error":"#VALUE!"}},"#'PP2'!$R$17:$R$24"]
["PP3'!Organ4",{"$f":"'PP3'!$R$17:$R$24","v":{"$error":"#VALUE!"}},"#'PP3'!$R$17:$R$24"]
["PP4'!Organ4",{"$f":"'PP4'!$R$17:$R$24","v":{"$error":"#VALUE!"}},"#'PP4'!$R$17:$R$24"]
["PP5'!Organ4",{"$f":"'PP5'!$R$17:$R$24","v":{"$error":"#VALUE!"}},"#'PP5'!$R$17:$R$24"]
["Organ4",{"$f":"'PP1(LP)'!$R$17:$R$24","v":{"$error":"#VALUE!"}},"#'PP1(LP)'!$R$17:$R$24"]
["PP2'!Organ5",{"$f":"'PP2'!$S$17:$S$26","v":{"$error":"#VALUE!"}},"#'PP2'!$S$17:$S$26"]
["PP3'!Organ5",{"$f":"'PP3'!$S$17:$S$26","v":{"$error":"#VALUE!"}},"#'PP3'!$S$17:$S$26"]
["PP4'!Organ5",{"$f":"'PP4'!$S$17:$S$26","v":{"$error":"#VALUE!"}},"#'PP4'!$S$17:$S$26"]
["PP5'!Organ5",{"$f":"'PP5'!$S$17:$S$26","v":{"$error":"#VALUE!"}},"#'PP5'!$S$17:$S$26"]
["Organ5",{"$f":"'PP1(LP)'!$S$17:$S$26","v":{"$error":"#VALUE!"}},"#'PP1(LP)'!$S$17:$S$26"]
["Organization",{"$f":"'PP1(LP)'!$V$10:$V$24","v":{"$error":"#VALUE!"}},"#'PP1(LP)'!$V$10:$V$24"]
["pi_act_1_descrp",{"$f":"'Project identification'!$B$71","v":0},"#'Project identification'!$B$71"]
["pi_act_1_location",{"$f":"'Project identification'!$C$69","v":0},"#'Project identification'!$C$69"]
["pi_act_1_metod",{"$f":"'Project identification'!$B$75","v":0},"#'Project identification'!$B$75"]
["pi_act_1_output",{"$f":"'Project identification'!$B$77","v":0},"#'Project identification'!$B$77"]
["pi_act_1_report",{"$f":"'Project identification'!$B$73","v":0},"#'Project identification'!$B$73"]
["pi_act_1_title",{"$f":"'Project identification'!$C$68","v":0},"#'Project identification'!$C$68"]
["pi_act_10_descrp",{"$f":"'Project identification'!$B$188","v":0},"#'Project identification'!$B$188"]
["pi_act_10_location",{"$f":"'Project identification'!$C$186","v":0},"#'Project identification'!$C$186"]
["pi_act_10_metod",{"$f":"'Project identification'!$B$192","v":0},"#'Project identification'!$B$192"]
["pi_act_10_output",{"$f":"'Project identification'!$B$194","v":0},"#'Project identification'!$B$194"]
["pi_act_10_report",{"$f":"'Project identification'!$B$190","v":0},"#'Project identification'!$B$190"]
["pi_act_10_title",{"$f":"'Project identification'!$C$185","v":0},"#'Project identification'!$C$185"]
["pi_act_11_descrp",{"$f":"'Project identification'!$B$201","v":0},"#'Project identification'!$B$201"]
["pi_act_11_location",{"$f":"'Project identification'!$C$199","v":0},"#'Project identification'!$C$199"]
["pi_act_11_metod",{"$f":"'Project identification'!$B$205","v":0},"#'Project identification'!$B$205"]
["pi_act_11_output",{"$f":"'Project identification'!$B$207","v":0},"#'Project identification'!$B$207"]
["pi_act_11_report",{"$f":"'Project identification'!$B$203","v":0},"#'Project identification'!$B$203"]
["pi_act_11_title",{"$f":"'Project identification'!$C$198","v":0},"#'Project identification'!$C$198"]
["pi_act_12_descrp",{"$f":"'Project identification'!$B$214","v":0},"#'Project identification'!$B$214"]
["pi_act_12_location",{"$f":"'Project identification'!$C$212","v":0},"#'Project identification'!$C$212"]
["pi_act_12_metod",{"$f":"'Project identification'!$B$218","v":0},"#'Project identification'!$B$218"]
["pi_act_12_output",{"$f":"'Project identification'!$B$220","v":0},"#'Project identification'!$B$220"]
["pi_act_12_report",{"$f":"'Project identification'!$B$216","v":0},"#'Project identification'!$B$216"]
["pi_act_12_title",{"$f":"'Project identification'!$C$211","v":0},"#'Project identification'!$C$211"]
["pi_act_13_descrp",{"$f":"'Project identification'!$B$227","v":0},"#'Project identification'!$B$227"]
["pi_act_13_location",{"$f":"'Project identification'!$C$225","v":0},"#'Project identification'!$C$225"]
["pi_act_13_metod",{"$f":"'Project identification'!$B$231","v":0},"#'Project identification'!$B$231"]
["pi_act_13_output",{"$f":"'Project identification'!$B$233","v":0},"#'Project identification'!$B$233"]
["pi_act_13_report",{"$f":"'Project identification'!$B$229","v":0},"#'Project identification'!$B$229"]
["pi_act_13_title",{"$f":"'Project identification'!$C$224","v":0},"#'Project identification'!$C$224"]
["pi_act_14_descrp",{"$f":"'Project identification'!$B$240","v":0},"#'Project identification'!$B$240"]
["pi_act_14_location",{"$f":"'Project identification'!$C$238","v":0},"#'Project identification'!$C$238"]
["pi_act_14_metod",{"$f":"'Project identification'!$B$244","v":0},"#'Project identification'!$B$244"]
["pi_act_14_output",{"$f":"'Project identification'!$B$246","v":0},"#'Project identification'!$B$246"]
["pi_act_14_report",{"$f":"'Project identification'!$B$242","v":0},"#'Project identification'!$B$242"]
["pi_act_14_title",{"$f":"'Project identification'!$C$237","v":0},"#'Project identification'!$C$237"]
["pi_act_15_descrp",{"$f":"'Project identification'!$B$253","v":0},"#'Project identification'!$B$253"]
["pi_act_15_location",{"$f":"'Project identification'!$C$251","v":0},"#'Project identification'!$C$251"]
["pi_act_15_metod",{"$f":"'Project identification'!$B$257","v":0},"#'Project identification'!$B$257"]
["pi_act_15_output",{"$f":"'Project identification'!$B$259","v":0},"#'Project identification'!$B$259"]
["pi_act_15_report",{"$f":"'Project identification'!$B$255","v":0},"#'Project identification'!$B$255"]
["pi_act_15_title",{"$f":"'Project identification'!$C$250","v":0},"#'Project identification'!$C$250"]
["pi_act_2_descrp",{"$f":"'Project identification'!$B$84","v":0},"#'Project identification'!$B$84"]
["pi_act_2_location",{"$f":"'Project identification'!$C$82","v":0},"#'Project identification'!$C$82"]
["pi_act_2_metod",{"$f":"'Project identification'!$B$88","v":0},"#'Project identification'!$B$88"]
["pi_act_2_output",{"$f":"'Project identification'!$B$90","v":0},"#'Project identification'!$B$90"]
["pi_act_2_report",{"$f":"'Project identification'!$B$86","v":0},"#'Project identification'!$B$86"]
["pi_act_2_title",{"$f":"'Project identification'!$C$81","v":0},"#'Project identification'!$C$81"]
["pi_act_3_descrp",{"$f":"'Project identification'!$B$97","v":0},"#'Project identification'!$B$97"]
["pi_act_3_location",{"$f":"'Project identification'!$C$95","v":0},"#'Project identification'!$C$95"]
["pi_act_3_metod",{"$f":"'Project identification'!$B$101","v":0},"#'Project identification'!$B$101"]
["pi_act_3_output",{"$f":"'Project identification'!$B$103","v":0},"#'Project identification'!$B$103"]
["pi_act_3_report",{"$f":"'Project identification'!$B$99","v":0},"#'Project identification'!$B$99"]
["pi_act_3_title",{"$f":"'Project identification'!$C$94","v":0},"#'Project identification'!$C$94"]
["pi_act_4_descrp",{"$f":"'Project identification'!$B$110","v":0},"#'Project identification'!$B$110"]
["pi_act_4_location",{"$f":"'Project identification'!$C$108","v":0},"#'Project identification'!$C$108"]
["pi_act_4_metod",{"$f":"'Project identification'!$B$114","v":0},"#'Project identification'!$B$114"]
["pi_act_4_output",{"$f":"'Project identification'!$B$116","v":0},"#'Project identification'!$B$116"]
["pi_act_4_report",{"$f":"'Project identification'!$B$112","v":0},"#'Project identification'!$B$112"]
["pi_act_4_title",{"$f":"'Project identification'!$C$107","v":0},"#'Project identification'!$C$107"]
["pi_act_5_descrp",{"$f":"'Project identification'!$B$123","v":0},"#'Project identification'!$B$123"]
["pi_act_5_location",{"$f":"'Project identification'!$C$121","v":0},"#'Project identification'!$C$121"]
["pi_act_5_metod",{"$f":"'Project identification'!$B$127","v":0},"#'Project identification'!$B$127"]
["pi_act_5_output",{"$f":"'Project identification'!$B$129","v":0},"#'Project identification'!$B$129"]
["pi_act_5_report",{"$f":"'Project identification'!$B$125","v":0},"#'Project identification'!$B$125"]
["pi_act_5_title",{"$f":"'Project identification'!$C$120","v":0},"#'Project identification'!$C$120"]
["pi_act_6_descrp",{"$f":"'Project identification'!$B$136","v":0},"#'Project identification'!$B$136"]
["pi_act_6_location",{"$f":"'Project identification'!$C$134","v":0},"#'Project identification'!$C$134"]
["pi_act_6_metod",{"$f":"'Project identification'!$B$140","v":0},"#'Project identification'!$B$140"]
["pi_act_6_output",{"$f":"'Project identification'!$B$142","v":0},"#'Project identification'!$B$142"]
["pi_act_6_report",{"$f":"'Project identification'!$B$138","v":0},"#'Project identification'!$B$138"]
["pi_act_6_title",{"$f":"'Project identification'!$C$133","v":0},"#'Project identification'!$C$133"]
["pi_act_7_descrp",{"$f":"'Project identification'!$B$149","v":0},"#'Project identification'!$B$149"]
["pi_act_7_location",{"$f":"'Project identification'!$C$147","v":0},"#'Project identification'!$C$147"]
["pi_act_7_metod",{"$f":"'Project identification'!$B$153","v":0},"#'Project identification'!$B$153"]
["pi_act_7_output",{"$f":"'Project identification'!$B$155","v":0},"#'Project identification'!$B$155"]
["pi_act_7_report",{"$f":"'Project identification'!$B$151","v":0},"#'Project identification'!$B$151"]
["pi_act_7_title",{"$f":"'Project identification'!$C$146","v":0},"#'Project identification'!$C$146"]
["pi_act_8_descrp",{"$f":"'Project identification'!$B$162","v":0},"#'Project identification'!$B$162"]
["pi_act_8_location",{"$f":"'Project identification'!$C$160","v":0},"#'Project identification'!$C$160"]
["pi_act_8_metod",{"$f":"'Project identification'!$B$166","v":0},"#'Project identification'!$B$166"]
["pi_act_8_output",{"$f":"'Project identification'!$B$168","v":0},"#'Project identification'!$B$168"]
["pi_act_8_report",{"$f":"'Project identification'!$B$164","v":0},"#'Project identification'!$B$164"]
["pi_act_8_title",{"$f":"'Project identification'!$C$159","v":0},"#'Project identification'!$C$159"]
["pi_act_9_descrp",{"$f":"'Project identification'!$B$175","v":0},"#'Project identification'!$B$175"]
["pi_act_9_location",{"$f":"'Project identification'!$C$173","v":0},"#'Project identification'!$C$173"]
["pi_act_9_metod",{"$f":"'Project identification'!$B$179","v":0},"#'Project identification'!$B$179"]
["pi_act_9_output",{"$f":"'Project identification'!$B$181","v":0},"#'Project identification'!$B$181"]
["pi_act_9_report",{"$f":"'Project identification'!$B$177","v":0},"#'Project identification'!$B$177"]
["pi_act_9_title",{"$f":"'Project identification'!$C$172","v":0},"#'Project identification'!$C$172"]
["pi_comm_partner1",{"$f":"'Project identification'!$D$395","v":0},"#'Project identification'!$D$395"]
["pi_comm_partner2",{"$f":"'Project identification'!$D$396","v":0},"#'Project identification'!$D$396"]
["pi_comm_partner3",{"$f":"'Project identification'!$D$397","v":0},"#'Project identification'!$D$397"]
["pi_comm_partner4",{"$f":"'Project identification'!$D$398","v":0},"#'Project identification'!$D$398"]
["pi_comm_partner5",{"$f":"'Project identification'!$D$399","v":0},"#'Project identification'!$D$399"]
["pi_comm_reach1",{"$f":"'Project identification'!$I$395","v":0},"#'Project identification'!$I$395"]
["pi_comm_reach2",{"$f":"'Project identification'!$I$396","v":0},"#'Project identification'!$I$396"]
["pi_comm_reach3",{"$f":"'Project identification'!$I$397","v":0},"#'Project identification'!$I$397"]
["pi_comm_reach4",{"$f":"'Project identification'!$I$398","v":0},"#'Project identification'!$I$398"]
["pi_comm_reach5",{"$f":"'Project identification'!$I$399","v":0},"#'Project identification'!$I$399"]
["pi_comm_str",{"$f":"'Project identification'!$B$392","v":0},"#'Project identification'!$B$392"]
["pi_comm_target1",{"$f":"'Project identification'!$F$395","v":0},"#'Project identification'!$F$395"]
["pi_comm_target2",{"$f":"'Project identification'!$F$396","v":0},"#'Project identification'!$F$396"]
["pi_comm_target3",{"$f":"'Project identification'!$F$397","v":0},"#'Project identification'!$F$397"]
["pi_comm_target4",{"$f":"'Project identification'!$F$398","v":0},"#'Project identification'!$F$398"]
["pi_comm_target5",{"$f":"'Project identification'!$F$399","v":0},"#'Project identification'!$F$399"]
["pi_comm_tool1",{"$f":"'Project identification'!$B$395","v":0},"#'Project identification'!$B$395"]
["pi_comm_tool2",{"$f":"'Project identification'!$B$396","v":0},"#'Project identification'!$B$396"]
["pi_comm_tool3",{"$f":"'Project identification'!$B$397","v":0},"#'Project identification'!$B$397"]
["pi_comm_tool4",{"$f":"'Project identification'!$B$398","v":0},"#'Project identification'!$B$398"]
["pi_comm_tool5",{"$f":"'Project identification'!$B$399","v":0},"#'Project identification'!$B$399"]
["pi_coop_crit1_check",{"$f":"'Project identification'!$C$26","v":""},"#'Project identification'!$C$26"]
["pi_coop_crit1_descr",{"$f":"'Project identification'!$B$27","v":0},"#'Project identification'!$B$27"]
["pi_coop_crit2_check",{"$f":"'Project identification'!$C$28","v":""},"#'Project identification'!$C$28"]
["pi_coop_crit2_descr",{"$f":"'Project identification'!$B$29","v":0},"#'Project identification'!$B$29"]
["pi_coop_crit3_check",{"$f":"'Project identification'!$C$30","v":""},"#'Project identification'!$C$30"]
["pi_coop_crit3_descr",{"$f":"'Project identification'!$B$31","v":0},"#'Project identification'!$B$31"]
["pi_coop_crit4_check",{"$f":"'Project identification'!$C$32","v":""},"#'Project identification'!$C$32"]
["pi_coop_crit4_descr",{"$f":"'Project identification'!$B$33","v":0},"#'Project identification'!$B$33"]
["pi_correspondence",{"$f":"'Project identification'!$B$54","v":0},"#'Project identification'!$B$54"]
["pi_cross_border_impact",{"$f":"'Project identification'!$B$37","v":0},"#'Project identification'!$B$37"]
["pi_efect",{"$f":"'Project identification'!$B$457","v":0},"#'Project identification'!$B$457"]
["pi_hrz_1",{"$f":"'Project identification'!$C$480","v":0},"#'Project identification'!$C$480"]
["pi_hrz_2",{"$f":"'Project identification'!$C$481","v":0},"#'Project identification'!$C$481"]
["pi_hrz_3",{"$f":"'Project identification'!$C$482","v":0},"#'Project identification'!$C$482"]
["pi_management",{"$f":"'Project identification'!$B$436","v":0},"#'Project identification'!$B$436"]
["pi_monit_justf",{"$f":"'Project identification'!$E$446","v":0},"#'Project identification'!$E$446"]
["pi_monit_justf2",{"$f":"'Project identification'!$E$447","v":0},"#'Project identification'!$E$447"]
["pi_monit_justf3",{"$f":"'Project identification'!$E$448","v":0},"#'Project identification'!$E$448"]
["pi_monit_justf4",{"$f":"'Project identification'!$E$449","v":0},"#'Project identification'!$E$449"]
["pi_monit_justf5",{"$f":"'Project identification'!$E$450","v":0},"#'Project identification'!$E$450"]
["pi_monit_justf6",{"$f":"'Project identification'!$E$451","v":0},"#'Project identification'!$E$451"]
["pi_monit_quant",{"$f":"'Project identification'!$C$446","v":0},"#'Project identification'!$C$446"]
["pi_monit_quant2",{"$f":"'Project identification'!$C$447","v":0},"#'Project identification'!$C$447"]
["pi_monit_quant3",{"$f":"'Project identification'!$C$448","v":0},"#'Project identification'!$C$448"]
["pi_monit_quant4",{"$f":"'Project identification'!$C$449","v":0},"#'Project identification'!$C$449"]
["pi_monit_quant5",{"$f":"'Project identification'!$C$450","v":0},"#'Project identification'!$C$450"]
["pi_monit_quant6",{"$f":"'Project identification'!$C$451","v":0},"#'Project identification'!$C$451"]
["pi_new_indicator",{"$f":"'Project identification'!$J$446","v":0},"#'Project identification'!$J$446"]
["pi_new_indicator2",{"$f":"'Project identification'!$J$447","v":0},"#'Project identification'!$J$447"]
["pi_new_indicator3",{"$f":"'Project identification'!$J$448","v":0},"#'Project identification'!$J$448"]
["pi_new_indicator4",{"$f":"'Project identification'!$J$449","v":0},"#'Project identification'!$J$449"]
["pi_new_indicator5",{"$f":"'Project identification'!$J$450","v":0},"#'Project identification'!$J$450"]
["pi_new_indicator6",{"$f":"'Project identification'!$J$451","v":0},"#'Project identification'!$J$451"]
["pi_other_prj",{"$f":"'Project identification'!$B$475","v":0},"#'Project identification'!$B$475"]
["pi_other_str",{"$f":"'Project identification'!$B$470","v":0},"#'Project identification'!$B$470"]
["pi_out_indicator2",{"$f":"'Project identification'!$B$447","v":0},"#'Project identification'!$B$447"]
["pi_out_indicator3",{"$f":"'Project identification'!$B$448","v":0},"#'Project identification'!$B$448"]
["pi_out_indicator4",{"$f":"'Project identification'!$B$449","v":0},"#'Project identification'!$B$449"]
["pi_out_indicator5",{"$f":"'Project identification'!$B$450","v":0},"#'Project identification'!$B$450"]
["pi_out_indicator6",{"$f":"'Project identification'!$B$451","v":0},"#'Project identification'!$B$451"]
["pi_out_indicators",{"$f":"'Project identification'!$B$446","v":0},"#'Project identification'!$B$446"]
["pi_pd_back1",{"$f":"'Project identification'!$B$46","v":0},"#'Project identification'!$B$46"]
["pi_pd_back2",{"$f":"'Project identification'!$B$47","v":0},"#'Project identification'!$B$47"]
["pi_pd_back3",{"$f":"'Project identification'!$B$48","v":0},"#'Project identification'!$B$48"]
["pi_pd_c83",{"$f":"'Project identification'!$C$61","v":0},"#'Project identification'!$C$61"]
["pi_pd_c84",{"$f":"'Project identification'!$C$62","v":0},"#'Project identification'!$C$62"]
["pi_pd_c85",{"$f":"'Project identification'!$C$63","v":0},"#'Project identification'!$C$63"]
["pi_pd_const",{"$f":"'Project identification'!$B$50","v":0},"#'Project identification'!$B$50"]
["pi_pd_e83",{"$f":"'Project identification'!$F$61","v":0},"#'Project identification'!$F$61"]
["pi_pd_e84",{"$f":"'Project identification'!$F$62","v":0},"#'Project identification'!$F$62"]
["pi_pd_e85",{"$f":"'Project identification'!$F$63","v":0},"#'Project identification'!$F$63"]
["pi_pd_i83",{"$f":"'Project identification'!$J$61","v":0},"#'Project identification'!$J$61"]
["pi_pd_i84",{"$f":"'Project identification'!$J$62","v":0},"#'Project identification'!$J$62"]
["pi_pd_i85",{"$f":"'Project identification'!$J$63","v":0},"#'Project identification'!$J$63"]
["pi_priority_axis",{"$f":"'Project identification'!$C$11","v":"Environment"},"#'Project identification'!$C$11"]
["pi_project_title",{"$f":"'Project identification'!$C$9","v":0},"#'Project identification'!$C$9"]
["pi_project_type",{"$f":"'Project identification'!$C$15","v":"Investment"},"#'Project identification'!$C$15"]
["pi_specific_objective",{"$f":"'Project identification'!$C$13","v":"1.2. Improving the capacity for nature protection, sustainable use and management of common natural resources through cooperation initiatives in the  cross-border area"},"#'Project identification'!$C$13"]
["pi_sustainability",{"$f":"'Project identification'!$B$462","v":0},"#'Project identification'!$B$462"]
["pp_1_bl1_1_name",{"$f":"'T2-B(PP1)'!$B$5","v":"Investment project"},"#'T2-B(PP1)'!$B$5"]
["pp_1_bl1_1_perc",{"$f":"'T2-B(PP1)'!$G$5","v":0},"#'T2-B(PP1)'!$G$5"]
["pp_1_bl1_1_total",{"$f":"'T2-B(PP1)'!$I$5","v":0},"#'T2-B(PP1)'!$I$5"]
["pp_1_bl1_total",{"$f":"'T2-B(PP1)'!$I$6","v":0},"#'T2-B(PP1)'!$I$6"]
["pp_1_bl2_1_name",{"$f":"'T2-B(PP1)'!$B$10","v":"Investment project"},"#'T2-B(PP1)'!$B$10"]
["pp_1_bl2_1_perc",{"$f":"'T2-B(PP1)'!$G$10","v":0},"#'T2-B(PP1)'!$G$10"]
["pp_1_bl2_1_total",{"$f":"'T2-B(PP1)'!$I$10","v":0},"#'T2-B(PP1)'!$I$10"]
["pp_1_bl2_total",{"$f":"'T2-B(PP1)'!$I$11","v":0},"#'T2-B(PP1)'!$I$11"]
["pp_1_proj_direct_total",{"$f":"'T2-B(PP1)'!$J$422","v":0},"#'T2-B(PP1)'!$J$422"]
["pp_1_proj_direct_total_in",{"$f":"'T2-B(PP1)'!$F$422","v":0},"#'T2-B(PP1)'!$F$422"]
["pp_1_proj_direct_total_out",{"$f":"'T2-B(PP1)'!$G$422","v":0},"#'T2-B(PP1)'!$G$422"]
["pp_1_proj_total",{"$f":"'T2-B(PP1)'!$J$423","v":0},"#'T2-B(PP1)'!$J$423"]
["pp_1_proj_total_in",{"$f":"'T2-B(PP1)'!$F$423","v":0},"#'T2-B(PP1)'!$F$423"]
["pp_1_proj_total_out",{"$f":"'T2-B(PP1)'!$G$423","v":0},"#'T2-B(PP1)'!$G$423"]
["pp_2_bl1_1_name",{"$f":"'T2-B(PP2)'!$B$5","v":"Investment project"},"#'T2-B(PP2)'!$B$5"]
["pp_2_bl1_1_perc",{"$f":"'T2-B(PP2)'!$G$5","v":0},"#'T2-B(PP2)'!$G$5"]
["pp_2_bl1_1_total",{"$f":"'T2-B(PP2)'!$I$5","v":0},"#'T2-B(PP2)'!$I$5"]
["pp_2_bl1_total",{"$f":"'T2-B(PP2)'!$I$6","v":0},"#'T2-B(PP2)'!$I$6"]
["pp_2_bl2_1_name",{"$f":"'T2-B(PP2)'!$B$10","v":"Investment project"},"#'T2-B(PP2)'!$B$10"]
["pp_2_bl2_1_perc",{"$f":"'T2-B(PP2)'!$G$10","v":0},"#'T2-B(PP2)'!$G$10"]
["pp_2_bl2_1_total",{"$f":"'T2-B(PP2)'!$I$10","v":0},"#'T2-B(PP2)'!$I$10"]
["pp_2_bl2_total",{"$f":"'T2-B(PP2)'!$I$11","v":0},"#'T2-B(PP2)'!$I$11"]
["pp_2_proj_direct_total",{"$f":"'T2-B(PP2)'!$J$422","v":0},"#'T2-B(PP2)'!$J$422"]
["pp_2_proj_direct_total_in",{"$f":"'T2-B(PP2)'!$F$422","v":0},"#'T2-B(PP2)'!$F$422"]
["pp_2_proj_direct_total_out",{"$f":"'T2-B(PP2)'!$G$422","v":0},"#'T2-B(PP2)'!$G$422"]
["pp_2_proj_total",{"$f":"'T2-B(PP2)'!$J$423","v":0},"#'T2-B(PP2)'!$J$423"]
["pp_2_proj_total_in",{"$f":"'T2-B(PP2)'!$F$423","v":0},"#'T2-B(PP2)'!$F$423"]
["pp_2_proj_total_out",{"$f":"'T2-B(PP2)'!$G$423","v":0},"#'T2-B(PP2)'!$G$423"]
["pp_3_bl1_1_name",{"$f":"'T2-B(PP3)'!$B$5","v":"Investment project"},"#'T2-B(PP3)'!$B$5"]
["pp_3_bl1_1_perc",{"$f":"'T2-B(PP3)'!$G$5","v":0},"#'T2-B(PP3)'!$G$5"]
["pp_3_bl1_1_total",{"$f":"'T2-B(PP3)'!$I$5","v":0},"#'T2-B(PP3)'!$I$5"]
["pp_3_bl1_total",{"$f":"'T2-B(PP3)'!$I$6","v":0},"#'T2-B(PP3)'!$I$6"]
["pp_3_bl2_1_name",{"$f":"'T2-B(PP3)'!$B$10","v":"Investment project"},"#'T2-B(PP3)'!$B$10"]
["pp_3_bl2_1_perc",{"$f":"'T2-B(PP3)'!$G$10","v":0},"#'T2-B(PP3)'!$G$10"]
["pp_3_bl2_1_total",{"$f":"'T2-B(PP3)'!$I$10","v":0},"#'T2-B(PP3)'!$I$10"]
["pp_3_bl2_total",{"$f":"'T2-B(PP3)'!$I$11","v":0},"#'T2-B(PP3)'!$I$11"]
["pp_3_proj_direct_total",{"$f":"'T2-B(PP3)'!$J$422","v":0},"#'T2-B(PP3)'!$J$422"]
["pp_3_proj_direct_total_in",{"$f":"'T2-B(PP3)'!$F$422","v":0},"#'T2-B(PP3)'!$F$422"]
["pp_3_proj_direct_total_out",{"$f":"'T2-B(PP3)'!$G$422","v":0},"#'T2-B(PP3)'!$G$422"]
["pp_3_proj_total",{"$f":"'T2-B(PP3)'!$J$423","v":0},"#'T2-B(PP3)'!$J$423"]
["pp_3_proj_total_in",{"$f":"'T2-B(PP3)'!$F$423","v":0},"#'T2-B(PP3)'!$F$423"]
["pp_3_proj_total_out",{"$f":"'T2-B(PP3)'!$G$423","v":0},"#'T2-B(PP3)'!$G$423"]
["pp_4_bl1_1_name",{"$f":"'T2-B(PP4)'!$B$5","v":"Investment project"},"#'T2-B(PP4)'!$B$5"]
["pp_4_bl1_1_perc",{"$f":"'T2-B(PP4)'!$G$5","v":0},"#'T2-B(PP4)'!$G$5"]
["pp_4_bl1_1_total",{"$f":"'T2-B(PP4)'!$I$5","v":0},"#'T2-B(PP4)'!$I$5"]
["pp_4_bl1_total",{"$f":"'T2-B(PP4)'!$I$6","v":0},"#'T2-B(PP4)'!$I$6"]
["pp_4_bl2_1_name",{"$f":"'T2-B(PP4)'!$B$10","v":"Investment project"},"#'T2-B(PP4)'!$B$10"]
["pp_4_bl2_1_perc",{"$f":"'T2-B(PP4)'!$G$10","v":0},"#'T2-B(PP4)'!$G$10"]
["pp_4_bl2_1_total",{"$f":"'T2-B(PP4)'!$I$10","v":0},"#'T2-B(PP4)'!$I$10"]
["pp_4_bl2_total",{"$f":"'T2-B(PP4)'!$I$11","v":0},"#'T2-B(PP4)'!$I$11"]
["pp_4_proj_direct_total",{"$f":"'T2-B(PP4)'!$J$422","v":0},"#'T2-B(PP4)'!$J$422"]
["pp_4_proj_direct_total_in",{"$f":"'T2-B(PP4)'!$F$422","v":0},"#'T2-B(PP4)'!$F$422"]
["pp_4_proj_direct_total_out",{"$f":"'T2-B(PP4)'!$G$422","v":0},"#'T2-B(PP4)'!$G$422"]
["pp_4_proj_total",{"$f":"'T2-B(PP4)'!$J$423","v":0},"#'T2-B(PP4)'!$J$423"]
["pp_4_proj_total_in",{"$f":"'T2-B(PP4)'!$F$423","v":0},"#'T2-B(PP4)'!$F$423"]
["pp_4_proj_total_out",{"$f":"'T2-B(PP4)'!$G$423","v":0},"#'T2-B(PP4)'!$G$423"]
["pp_5_bl1_1_name",{"$f":"'T2-B(PP5)'!$B$5","v":"Investment project"},"#'T2-B(PP5)'!$B$5"]
["pp_5_bl1_1_perc",{"$f":"'T2-B(PP5)'!$G$5","v":10},"#'T2-B(PP5)'!$G$5"]
["pp_5_bl1_1_total",{"$f":"'T2-B(PP5)'!$I$5","v":0},"#'T2-B(PP5)'!$I$5"]
["pp_5_bl1_total",{"$f":"'T2-B(PP5)'!$I$6","v":0},"#'T2-B(PP5)'!$I$6"]
["pp_5_bl2_1_name",{"$f":"'T2-B(PP5)'!$B$10","v":"Investment project"},"#'T2-B(PP5)'!$B$10"]
["pp_5_bl2_1_perc",{"$f":"'T2-B(PP5)'!$G$10","v":0},"#'T2-B(PP5)'!$G$10"]
["pp_5_bl2_1_total",{"$f":"'T2-B(PP5)'!$I$10","v":0},"#'T2-B(PP5)'!$I$10"]
["pp_5_bl2_total",{"$f":"'T2-B(PP5)'!$I$11","v":0},"#'T2-B(PP5)'!$I$11"]
["pp_5_proj_direct_total",{"$f":"'T2-B(PP5)'!$J$422","v":0},"#'T2-B(PP5)'!$J$422"]
["pp_5_proj_direct_total_in",{"$f":"'T2-B(PP5)'!$F$422","v":0},"#'T2-B(PP5)'!$F$422"]
["pp_5_proj_direct_total_out",{"$f":"'T2-B(PP5)'!$G$422","v":0},"#'T2-B(PP5)'!$G$422"]
["pp_5_proj_total",{"$f":"'T2-B(PP5)'!$J$423","v":0},"#'T2-B(PP5)'!$J$423"]
["pp_5_proj_total_in",{"$f":"'T2-B(PP5)'!$F$423","v":0},"#'T2-B(PP5)'!$F$423"]
["pp_5_proj_total_out",{"$f":"'T2-B(PP5)'!$G$423","v":0},"#'T2-B(PP5)'!$G$423"]
["pp1_2014_fulltime_staff",{"$f":"'PP1(LP)'!$F$77","v":0},"#'PP1(LP)'!$F$77"]
["pp1_2014_parttime_staff",{"$f":"'PP1(LP)'!$G$77","v":0},"#'PP1(LP)'!$G$77"]
["pp1_2014_turnover",{"$f":"'PP1(LP)'!$C$77","v":0},"#'PP1(LP)'!$C$77"]
["pp1_2015_fulltime_staff",{"$f":"'PP1(LP)'!$F$78","v":0},"#'PP1(LP)'!$F$78"]
["pp1_2015_parttime_staff",{"$f":"'PP1(LP)'!$G$78","v":0},"#'PP1(LP)'!$G$78"]
["pp1_2015_turnover",{"$f":"'PP1(LP)'!$C$78","v":0},"#'PP1(LP)'!$C$78"]
["pp1_2016_fulltime_staff",{"$f":"'PP1(LP)'!$F$79","v":0},"#'PP1(LP)'!$F$79"]
["pp1_2016_parttime_staff",{"$f":"'PP1(LP)'!$G$79","v":0},"#'PP1(LP)'!$G$79"]
["pp1_2016_turnover",{"$f":"'PP1(LP)'!$C$79","v":0},"#'PP1(LP)'!$C$79"]
["pp1_address",{"$f":"'PP1(LP)'!$C$19","v":0},"#'PP1(LP)'!$C$19"]
["pp1_background1",{"$f":"'PP1(LP)'!$B$35","v":0},"#'PP1(LP)'!$B$35"]
["pp1_background2",{"$f":"'PP1(LP)'!$B$36","v":0},"#'PP1(LP)'!$B$36"]
["pp1_bl3_1_1_name",{"$f":"'T2-B(PP1)'!$B$16","v":0},"#'T2-B(PP1)'!$B$16"]
["pp1_bl3_1_1_rate_in",{"$f":"'T2-B(PP1)'!$E$16","v":0},"#'T2-B(PP1)'!$E$16"]
["pp1_bl3_1_1_rate_out",{"$f":"'T2-B(PP1)'!$H$16","v":0},"#'T2-B(PP1)'!$H$16"]
["pp1_bl3_1_1_total",{"$f":"'T2-B(PP1)'!$J$16","v":0},"#'T2-B(PP1)'!$J$16"]
["pp1_bl3_1_1_total_in",{"$f":"'T2-B(PP1)'!$F$16","v":0},"#'T2-B(PP1)'!$F$16"]
["pp1_bl3_1_1_total_out",{"$f":"'T2-B(PP1)'!$I$16","v":0},"#'T2-B(PP1)'!$I$16"]
["pp1_bl3_1_1_unit",{"$f":"'T2-B(PP1)'!$C$16","v":0},"#'T2-B(PP1)'!$C$16"]
["pp1_bl3_1_1_unit_in",{"$f":"'T2-B(PP1)'!$D$16","v":0},"#'T2-B(PP1)'!$D$16"]
["pp1_bl3_1_1_units_out",{"$f":"'T2-B(PP1)'!$G$16","v":0},"#'T2-B(PP1)'!$G$16"]
["pp1_bl3_1_10_name",{"$f":"'T2-B(PP1)'!$B$25","v":0},"#'T2-B(PP1)'!$B$25"]
["pp1_bl3_1_10_rate_in",{"$f":"'T2-B(PP1)'!$E$25","v":0},"#'T2-B(PP1)'!$E$25"]
["pp1_bl3_1_10_rate_out",{"$f":"'T2-B(PP1)'!$H$25","v":0},"#'T2-B(PP1)'!$H$25"]
["pp1_bl3_1_10_total",{"$f":"'T2-B(PP1)'!$J$25","v":0},"#'T2-B(PP1)'!$J$25"]
["pp1_bl3_1_10_total_in",{"$f":"'T2-B(PP1)'!$F$25","v":0},"#'T2-B(PP1)'!$F$25"]
["pp1_bl3_1_10_total_out",{"$f":"'T2-B(PP1)'!$I$25","v":0},"#'T2-B(PP1)'!$I$25"]
["pp1_bl3_1_10_unit",{"$f":"'T2-B(PP1)'!$C$25","v":0},"#'T2-B(PP1)'!$C$25"]
["pp1_bl3_1_10_unit_in",{"$f":"'T2-B(PP1)'!$D$25","v":0},"#'T2-B(PP1)'!$D$25"]
["pp1_bl3_1_10_units_out",{"$f":"'T2-B(PP1)'!$G$25","v":0},"#'T2-B(PP1)'!$G$25"]
["pp1_bl3_1_11_name",{"$f":"'T2-B(PP1)'!$B$26","v":0},"#'T2-B(PP1)'!$B$26"]
["pp1_bl3_1_11_rate_in",{"$f":"'T2-B(PP1)'!$E$26","v":0},"#'T2-B(PP1)'!$E$26"]
["pp1_bl3_1_11_rate_out",{"$f":"'T2-B(PP1)'!$H$26","v":0},"#'T2-B(PP1)'!$H$26"]
["pp1_bl3_1_11_total",{"$f":"'T2-B(PP1)'!$J$26","v":0},"#'T2-B(PP1)'!$J$26"]
["pp1_bl3_1_11_total_in",{"$f":"'T2-B(PP1)'!$F$26","v":0},"#'T2-B(PP1)'!$F$26"]
["pp1_bl3_1_11_total_out",{"$f":"'T2-B(PP1)'!$I$26","v":0},"#'T2-B(PP1)'!$I$26"]
["pp1_bl3_1_11_unit",{"$f":"'T2-B(PP1)'!$C$26","v":0},"#'T2-B(PP1)'!$C$26"]
["pp1_bl3_1_11_unit_in",{"$f":"'T2-B(PP1)'!$D$26","v":0},"#'T2-B(PP1)'!$D$26"]
["pp1_bl3_1_11_units_out",{"$f":"'T2-B(PP1)'!$G$26","v":0},"#'T2-B(PP1)'!$G$26"]
["pp1_bl3_1_12_name",{"$f":"'T2-B(PP1)'!$B$27","v":0},"#'T2-B(PP1)'!$B$27"]
["pp1_bl3_1_12_rate_in",{"$f":"'T2-B(PP1)'!$E$27","v":0},"#'T2-B(PP1)'!$E$27"]
["pp1_bl3_1_12_rate_out",{"$f":"'T2-B(PP1)'!$H$27","v":0},"#'T2-B(PP1)'!$H$27"]
["pp1_bl3_1_12_total",{"$f":"'T2-B(PP1)'!$J$27","v":0},"#'T2-B(PP1)'!$J$27"]
["pp1_bl3_1_12_total_in",{"$f":"'T2-B(PP1)'!$F$27","v":0},"#'T2-B(PP1)'!$F$27"]
["pp1_bl3_1_12_total_out",{"$f":"'T2-B(PP1)'!$I$27","v":0},"#'T2-B(PP1)'!$I$27"]
["pp1_bl3_1_12_unit",{"$f":"'T2-B(PP1)'!$C$27","v":0},"#'T2-B(PP1)'!$C$27"]
["pp1_bl3_1_12_unit_in",{"$f":"'T2-B(PP1)'!$D$27","v":0},"#'T2-B(PP1)'!$D$27"]
["pp1_bl3_1_12_units_out",{"$f":"'T2-B(PP1)'!$G$27","v":0},"#'T2-B(PP1)'!$G$27"]
["pp1_bl3_1_13_name",{"$f":"'T2-B(PP1)'!$B$28","v":0},"#'T2-B(PP1)'!$B$28"]
["pp1_bl3_1_13_rate_in",{"$f":"'T2-B(PP1)'!$E$28","v":0},"#'T2-B(PP1)'!$E$28"]
["pp1_bl3_1_13_rate_out",{"$f":"'T2-B(PP1)'!$H$28","v":0},"#'T2-B(PP1)'!$H$28"]
["pp1_bl3_1_13_total",{"$f":"'T2-B(PP1)'!$J$28","v":0},"#'T2-B(PP1)'!$J$28"]
["pp1_bl3_1_13_total_in",{"$f":"'T2-B(PP1)'!$F$28","v":0},"#'T2-B(PP1)'!$F$28"]
["pp1_bl3_1_13_total_out",{"$f":"'T2-B(PP1)'!$I$28","v":0},"#'T2-B(PP1)'!$I$28"]
["pp1_bl3_1_13_unit",{"$f":"'T2-B(PP1)'!$C$28","v":0},"#'T2-B(PP1)'!$C$28"]
["pp1_bl3_1_13_unit_in",{"$f":"'T2-B(PP1)'!$D$28","v":0},"#'T2-B(PP1)'!$D$28"]
["pp1_bl3_1_13_units_out",{"$f":"'T2-B(PP1)'!$G$28","v":0},"#'T2-B(PP1)'!$G$28"]
["pp1_bl3_1_14_name",{"$f":"'T2-B(PP1)'!$B$29","v":0},"#'T2-B(PP1)'!$B$29"]
["pp1_bl3_1_14_rate_in",{"$f":"'T2-B(PP1)'!$E$29","v":0},"#'T2-B(PP1)'!$E$29"]
["pp1_bl3_1_14_rate_out",{"$f":"'T2-B(PP1)'!$H$29","v":0},"#'T2-B(PP1)'!$H$29"]
["pp1_bl3_1_14_total",{"$f":"'T2-B(PP1)'!$J$29","v":0},"#'T2-B(PP1)'!$J$29"]
["pp1_bl3_1_14_total_in",{"$f":"'T2-B(PP1)'!$F$29","v":0},"#'T2-B(PP1)'!$F$29"]
["pp1_bl3_1_14_total_out",{"$f":"'T2-B(PP1)'!$I$29","v":0},"#'T2-B(PP1)'!$I$29"]
["pp1_bl3_1_14_unit",{"$f":"'T2-B(PP1)'!$C$29","v":0},"#'T2-B(PP1)'!$C$29"]
["pp1_bl3_1_14_unit_in",{"$f":"'T2-B(PP1)'!$D$29","v":0},"#'T2-B(PP1)'!$D$29"]
["pp1_bl3_1_14_units_out",{"$f":"'T2-B(PP1)'!$G$29","v":0},"#'T2-B(PP1)'!$G$29"]
["pp1_bl3_1_15_name",{"$f":"'T2-B(PP1)'!$B$30","v":0},"#'T2-B(PP1)'!$B$30"]
["pp1_bl3_1_15_rate_in",{"$f":"'T2-B(PP1)'!$E$30","v":0},"#'T2-B(PP1)'!$E$30"]
["pp1_bl3_1_15_rate_out",{"$f":"'T2-B(PP1)'!$H$30","v":0},"#'T2-B(PP1)'!$H$30"]
["pp1_bl3_1_15_total",{"$f":"'T2-B(PP1)'!$J$30","v":0},"#'T2-B(PP1)'!$J$30"]
["pp1_bl3_1_15_total_in",{"$f":"'T2-B(PP1)'!$F$30","v":0},"#'T2-B(PP1)'!$F$30"]
["pp1_bl3_1_15_total_out",{"$f":"'T2-B(PP1)'!$I$30","v":0},"#'T2-B(PP1)'!$I$30"]
["pp1_bl3_1_15_unit",{"$f":"'T2-B(PP1)'!$C$30","v":0},"#'T2-B(PP1)'!$C$30"]
["pp1_bl3_1_15_unit_in",{"$f":"'T2-B(PP1)'!$D$30","v":0},"#'T2-B(PP1)'!$D$30"]
["pp1_bl3_1_15_units_out",{"$f":"'T2-B(PP1)'!$G$30","v":0},"#'T2-B(PP1)'!$G$30"]
["pp1_bl3_1_16_name",{"$f":"'T2-B(PP1)'!$B$31","v":0},"#'T2-B(PP1)'!$B$31"]
["pp1_bl3_1_16_rate_in",{"$f":"'T2-B(PP1)'!$E$31","v":0},"#'T2-B(PP1)'!$E$31"]
["pp1_bl3_1_16_rate_out",{"$f":"'T2-B(PP1)'!$H$31","v":0},"#'T2-B(PP1)'!$H$31"]
["pp1_bl3_1_16_total",{"$f":"'T2-B(PP1)'!$J$31","v":0},"#'T2-B(PP1)'!$J$31"]
["pp1_bl3_1_16_total_in",{"$f":"'T2-B(PP1)'!$F$31","v":0},"#'T2-B(PP1)'!$F$31"]
["pp1_bl3_1_16_total_out",{"$f":"'T2-B(PP1)'!$I$31","v":0},"#'T2-B(PP1)'!$I$31"]
["pp1_bl3_1_16_unit",{"$f":"'T2-B(PP1)'!$C$31","v":0},"#'T2-B(PP1)'!$C$31"]
["pp1_bl3_1_16_unit_in",{"$f":"'T2-B(PP1)'!$D$31","v":0},"#'T2-B(PP1)'!$D$31"]
["pp1_bl3_1_16_units_out",{"$f":"'T2-B(PP1)'!$G$31","v":0},"#'T2-B(PP1)'!$G$31"]
["pp1_bl3_1_17_name",{"$f":"'T2-B(PP1)'!$B$32","v":0},"#'T2-B(PP1)'!$B$32"]
["pp1_bl3_1_17_rate_in",{"$f":"'T2-B(PP1)'!$E$32","v":0},"#'T2-B(PP1)'!$E$32"]
["pp1_bl3_1_17_rate_out",{"$f":"'T2-B(PP1)'!$H$32","v":0},"#'T2-B(PP1)'!$H$32"]
["pp1_bl3_1_17_total",{"$f":"'T2-B(PP1)'!$J$32","v":0},"#'T2-B(PP1)'!$J$32"]
["pp1_bl3_1_17_total_in",{"$f":"'T2-B(PP1)'!$F$32","v":0},"#'T2-B(PP1)'!$F$32"]
["pp1_bl3_1_17_total_out",{"$f":"'T2-B(PP1)'!$I$32","v":0},"#'T2-B(PP1)'!$I$32"]
["pp1_bl3_1_17_unit",{"$f":"'T2-B(PP1)'!$C$32","v":0},"#'T2-B(PP1)'!$C$32"]
["pp1_bl3_1_17_unit_in",{"$f":"'T2-B(PP1)'!$D$32","v":0},"#'T2-B(PP1)'!$D$32"]
["pp1_bl3_1_17_units_out",{"$f":"'T2-B(PP1)'!$G$32","v":0},"#'T2-B(PP1)'!$G$32"]
["pp1_bl3_1_18_name",{"$f":"'T2-B(PP1)'!$B$33","v":0},"#'T2-B(PP1)'!$B$33"]
["pp1_bl3_1_18_rate_in",{"$f":"'T2-B(PP1)'!$E$33","v":0},"#'T2-B(PP1)'!$E$33"]
["pp1_bl3_1_18_rate_out",{"$f":"'T2-B(PP1)'!$H$33","v":0},"#'T2-B(PP1)'!$H$33"]
["pp1_bl3_1_18_total",{"$f":"'T2-B(PP1)'!$J$33","v":0},"#'T2-B(PP1)'!$J$33"]
["pp1_bl3_1_18_total_in",{"$f":"'T2-B(PP1)'!$F$33","v":0},"#'T2-B(PP1)'!$F$33"]
["pp1_bl3_1_18_total_out",{"$f":"'T2-B(PP1)'!$I$33","v":0},"#'T2-B(PP1)'!$I$33"]
["pp1_bl3_1_18_unit",{"$f":"'T2-B(PP1)'!$C$33","v":0},"#'T2-B(PP1)'!$C$33"]
["pp1_bl3_1_18_unit_in",{"$f":"'T2-B(PP1)'!$D$33","v":0},"#'T2-B(PP1)'!$D$33"]
["pp1_bl3_1_18_units_out",{"$f":"'T2-B(PP1)'!$G$33","v":0},"#'T2-B(PP1)'!$G$33"]
["pp1_bl3_1_19_name",{"$f":"'T2-B(PP1)'!$B$34","v":0},"#'T2-B(PP1)'!$B$34"]
["pp1_bl3_1_19_rate_in",{"$f":"'T2-B(PP1)'!$E$34","v":0},"#'T2-B(PP1)'!$E$34"]
["pp1_bl3_1_19_rate_out",{"$f":"'T2-B(PP1)'!$H$34","v":0},"#'T2-B(PP1)'!$H$34"]
["pp1_bl3_1_19_total",{"$f":"'T2-B(PP1)'!$J$34","v":0},"#'T2-B(PP1)'!$J$34"]
["pp1_bl3_1_19_total_in",{"$f":"'T2-B(PP1)'!$F$34","v":0},"#'T2-B(PP1)'!$F$34"]
["pp1_bl3_1_19_total_out",{"$f":"'T2-B(PP1)'!$I$34","v":0},"#'T2-B(PP1)'!$I$34"]
["pp1_bl3_1_19_unit",{"$f":"'T2-B(PP1)'!$C$34","v":0},"#'T2-B(PP1)'!$C$34"]
["pp1_bl3_1_19_unit_in",{"$f":"'T2-B(PP1)'!$D$34","v":0},"#'T2-B(PP1)'!$D$34"]
["pp1_bl3_1_19_units_out",{"$f":"'T2-B(PP1)'!$G$34","v":0},"#'T2-B(PP1)'!$G$34"]
["pp1_bl3_1_2_name",{"$f":"'T2-B(PP1)'!$B$17","v":0},"#'T2-B(PP1)'!$B$17"]
["pp1_bl3_1_2_rate_in",{"$f":"'T2-B(PP1)'!$E$17","v":0},"#'T2-B(PP1)'!$E$17"]
["pp1_bl3_1_2_rate_out",{"$f":"'T2-B(PP1)'!$H$17","v":0},"#'T2-B(PP1)'!$H$17"]
["pp1_bl3_1_2_total",{"$f":"'T2-B(PP1)'!$J$17","v":0},"#'T2-B(PP1)'!$J$17"]
["pp1_bl3_1_2_total_in",{"$f":"'T2-B(PP1)'!$F$17","v":0},"#'T2-B(PP1)'!$F$17"]
["pp1_bl3_1_2_total_out",{"$f":"'T2-B(PP1)'!$I$17","v":0},"#'T2-B(PP1)'!$I$17"]
["pp1_bl3_1_2_unit",{"$f":"'T2-B(PP1)'!$C$17","v":0},"#'T2-B(PP1)'!$C$17"]
["pp1_bl3_1_2_unit_in",{"$f":"'T2-B(PP1)'!$D$17","v":0},"#'T2-B(PP1)'!$D$17"]
["pp1_bl3_1_2_units_out",{"$f":"'T2-B(PP1)'!$G$17","v":0},"#'T2-B(PP1)'!$G$17"]
["pp1_bl3_1_20_name",{"$f":"'T2-B(PP1)'!$B$35","v":0},"#'T2-B(PP1)'!$B$35"]
["pp1_bl3_1_20_rate_in",{"$f":"'T2-B(PP1)'!$E$35","v":0},"#'T2-B(PP1)'!$E$35"]
["pp1_bl3_1_20_rate_out",{"$f":"'T2-B(PP1)'!$H$35","v":0},"#'T2-B(PP1)'!$H$35"]
["pp1_bl3_1_20_total",{"$f":"'T2-B(PP1)'!$J$35","v":0},"#'T2-B(PP1)'!$J$35"]
["pp1_bl3_1_20_total_in",{"$f":"'T2-B(PP1)'!$F$35","v":0},"#'T2-B(PP1)'!$F$35"]
["pp1_bl3_1_20_total_out",{"$f":"'T2-B(PP1)'!$I$35","v":0},"#'T2-B(PP1)'!$I$35"]
["pp1_bl3_1_20_unit",{"$f":"'T2-B(PP1)'!$C$35","v":0},"#'T2-B(PP1)'!$C$35"]
["pp1_bl3_1_20_unit_in",{"$f":"'T2-B(PP1)'!$D$35","v":0},"#'T2-B(PP1)'!$D$35"]
["pp1_bl3_1_20_units_out",{"$f":"'T2-B(PP1)'!$G$35","v":0},"#'T2-B(PP1)'!$G$35"]
["pp1_bl3_1_3_name",{"$f":"'T2-B(PP1)'!$B$18","v":0},"#'T2-B(PP1)'!$B$18"]
["pp1_bl3_1_3_rate_in",{"$f":"'T2-B(PP1)'!$E$18","v":0},"#'T2-B(PP1)'!$E$18"]
["pp1_bl3_1_3_rate_out",{"$f":"'T2-B(PP1)'!$H$18","v":0},"#'T2-B(PP1)'!$H$18"]
["pp1_bl3_1_3_total",{"$f":"'T2-B(PP1)'!$J$18","v":0},"#'T2-B(PP1)'!$J$18"]
["pp1_bl3_1_3_total_in",{"$f":"'T2-B(PP1)'!$F$18","v":0},"#'T2-B(PP1)'!$F$18"]
["pp1_bl3_1_3_total_out",{"$f":"'T2-B(PP1)'!$I$18","v":0},"#'T2-B(PP1)'!$I$18"]
["pp1_bl3_1_3_unit",{"$f":"'T2-B(PP1)'!$C$18","v":0},"#'T2-B(PP1)'!$C$18"]
["pp1_bl3_1_3_unit_in",{"$f":"'T2-B(PP1)'!$D$18","v":0},"#'T2-B(PP1)'!$D$18"]
["pp1_bl3_1_3_units_out",{"$f":"'T2-B(PP1)'!$G$18","v":0},"#'T2-B(PP1)'!$G$18"]
["pp1_bl3_1_4_name",{"$f":"'T2-B(PP1)'!$B$19","v":0},"#'T2-B(PP1)'!$B$19"]
["pp1_bl3_1_4_rate_in",{"$f":"'T2-B(PP1)'!$E$19","v":0},"#'T2-B(PP1)'!$E$19"]
["pp1_bl3_1_4_rate_out",{"$f":"'T2-B(PP1)'!$H$19","v":0},"#'T2-B(PP1)'!$H$19"]
["pp1_bl3_1_4_total",{"$f":"'T2-B(PP1)'!$J$19","v":0},"#'T2-B(PP1)'!$J$19"]
["pp1_bl3_1_4_total_in",{"$f":"'T2-B(PP1)'!$F$19","v":0},"#'T2-B(PP1)'!$F$19"]
["pp1_bl3_1_4_total_out",{"$f":"'T2-B(PP1)'!$I$19","v":0},"#'T2-B(PP1)'!$I$19"]
["pp1_bl3_1_4_unit",{"$f":"'T2-B(PP1)'!$C$19","v":0},"#'T2-B(PP1)'!$C$19"]
["pp1_bl3_1_4_unit_in",{"$f":"'T2-B(PP1)'!$D$19","v":0},"#'T2-B(PP1)'!$D$19"]
["pp1_bl3_1_4_units_out",{"$f":"'T2-B(PP1)'!$G$19","v":0},"#'T2-B(PP1)'!$G$19"]
["pp1_bl3_1_5_name",{"$f":"'T2-B(PP1)'!$B$20","v":0},"#'T2-B(PP1)'!$B$20"]
["pp1_bl3_1_5_rate_in",{"$f":"'T2-B(PP1)'!$E$20","v":0},"#'T2-B(PP1)'!$E$20"]
["pp1_bl3_1_5_rate_out",{"$f":"'T2-B(PP1)'!$H$20","v":0},"#'T2-B(PP1)'!$H$20"]
["pp1_bl3_1_5_total",{"$f":"'T2-B(PP1)'!$J$20","v":0},"#'T2-B(PP1)'!$J$20"]
["pp1_bl3_1_5_total_in",{"$f":"'T2-B(PP1)'!$F$20","v":0},"#'T2-B(PP1)'!$F$20"]
["pp1_bl3_1_5_total_out",{"$f":"'T2-B(PP1)'!$I$20","v":0},"#'T2-B(PP1)'!$I$20"]
["pp1_bl3_1_5_unit",{"$f":"'T2-B(PP1)'!$C$20","v":0},"#'T2-B(PP1)'!$C$20"]
["pp1_bl3_1_5_unit_in",{"$f":"'T2-B(PP1)'!$D$20","v":0},"#'T2-B(PP1)'!$D$20"]
["pp1_bl3_1_5_units_out",{"$f":"'T2-B(PP1)'!$G$20","v":0},"#'T2-B(PP1)'!$G$20"]
["pp1_bl3_1_6_name",{"$f":"'T2-B(PP1)'!$B$21","v":0},"#'T2-B(PP1)'!$B$21"]
["pp1_bl3_1_6_rate_in",{"$f":"'T2-B(PP1)'!$E$21","v":0},"#'T2-B(PP1)'!$E$21"]
["pp1_bl3_1_6_rate_out",{"$f":"'T2-B(PP1)'!$H$21","v":0},"#'T2-B(PP1)'!$H$21"]
["pp1_bl3_1_6_total",{"$f":"'T2-B(PP1)'!$J$21","v":0},"#'T2-B(PP1)'!$J$21"]
["pp1_bl3_1_6_total_in",{"$f":"'T2-B(PP1)'!$F$21","v":0},"#'T2-B(PP1)'!$F$21"]
["pp1_bl3_1_6_total_out",{"$f":"'T2-B(PP1)'!$I$21","v":0},"#'T2-B(PP1)'!$I$21"]
["pp1_bl3_1_6_unit",{"$f":"'T2-B(PP1)'!$C$21","v":0},"#'T2-B(PP1)'!$C$21"]
["pp1_bl3_1_6_unit_in",{"$f":"'T2-B(PP1)'!$D$21","v":0},"#'T2-B(PP1)'!$D$21"]
["pp1_bl3_1_6_units_out",{"$f":"'T2-B(PP1)'!$G$21","v":0},"#'T2-B(PP1)'!$G$21"]
["pp1_bl3_1_7_name",{"$f":"'T2-B(PP1)'!$B$22","v":0},"#'T2-B(PP1)'!$B$22"]
["pp1_bl3_1_7_rate_in",{"$f":"'T2-B(PP1)'!$E$22","v":0},"#'T2-B(PP1)'!$E$22"]
["pp1_bl3_1_7_rate_out",{"$f":"'T2-B(PP1)'!$H$22","v":0},"#'T2-B(PP1)'!$H$22"]
["pp1_bl3_1_7_total",{"$f":"'T2-B(PP1)'!$J$22","v":0},"#'T2-B(PP1)'!$J$22"]
["pp1_bl3_1_7_total_in",{"$f":"'T2-B(PP1)'!$F$22","v":0},"#'T2-B(PP1)'!$F$22"]
["pp1_bl3_1_7_total_out",{"$f":"'T2-B(PP1)'!$I$22","v":0},"#'T2-B(PP1)'!$I$22"]
["pp1_bl3_1_7_unit",{"$f":"'T2-B(PP1)'!$C$22","v":0},"#'T2-B(PP1)'!$C$22"]
["pp1_bl3_1_7_unit_in",{"$f":"'T2-B(PP1)'!$D$22","v":0},"#'T2-B(PP1)'!$D$22"]
["pp1_bl3_1_7_units_out",{"$f":"'T2-B(PP1)'!$G$22","v":0},"#'T2-B(PP1)'!$G$22"]
["pp1_bl3_1_8_name",{"$f":"'T2-B(PP1)'!$B$23","v":0},"#'T2-B(PP1)'!$B$23"]
["pp1_bl3_1_8_rate_in",{"$f":"'T2-B(PP1)'!$E$23","v":0},"#'T2-B(PP1)'!$E$23"]
["pp1_bl3_1_8_rate_out",{"$f":"'T2-B(PP1)'!$H$23","v":0},"#'T2-B(PP1)'!$H$23"]
["pp1_bl3_1_8_total",{"$f":"'T2-B(PP1)'!$J$23","v":0},"#'T2-B(PP1)'!$J$23"]
["pp1_bl3_1_8_total_in",{"$f":"'T2-B(PP1)'!$F$23","v":0},"#'T2-B(PP1)'!$F$23"]
["pp1_bl3_1_8_total_out",{"$f":"'T2-B(PP1)'!$I$23","v":0},"#'T2-B(PP1)'!$I$23"]
["pp1_bl3_1_8_unit",{"$f":"'T2-B(PP1)'!$C$23","v":0},"#'T2-B(PP1)'!$C$23"]
["pp1_bl3_1_8_unit_in",{"$f":"'T2-B(PP1)'!$D$23","v":0},"#'T2-B(PP1)'!$D$23"]
["pp1_bl3_1_8_units_out",{"$f":"'T2-B(PP1)'!$G$23","v":0},"#'T2-B(PP1)'!$G$23"]
["pp1_bl3_1_9_name",{"$f":"'T2-B(PP1)'!$B$24","v":0},"#'T2-B(PP1)'!$B$24"]
["pp1_bl3_1_9_rate_in",{"$f":"'T2-B(PP1)'!$E$24","v":0},"#'T2-B(PP1)'!$E$24"]
["pp1_bl3_1_9_rate_out",{"$f":"'T2-B(PP1)'!$H$24","v":0},"#'T2-B(PP1)'!$H$24"]
["pp1_bl3_1_9_total",{"$f":"'T2-B(PP1)'!$J$24","v":0},"#'T2-B(PP1)'!$J$24"]
["pp1_bl3_1_9_total_in",{"$f":"'T2-B(PP1)'!$F$24","v":0},"#'T2-B(PP1)'!$F$24"]
["pp1_bl3_1_9_total_out",{"$f":"'T2-B(PP1)'!$I$24","v":0},"#'T2-B(PP1)'!$I$24"]
["pp1_bl3_1_9_unit",{"$f":"'T2-B(PP1)'!$C$24","v":0},"#'T2-B(PP1)'!$C$24"]
["pp1_bl3_1_9_unit_in",{"$f":"'T2-B(PP1)'!$D$24","v":0},"#'T2-B(PP1)'!$D$24"]
["pp1_bl3_1_9_units_out",{"$f":"'T2-B(PP1)'!$G$24","v":0},"#'T2-B(PP1)'!$G$24"]
["pp1_bl3_1_total",{"$f":"'T2-B(PP1)'!$J$15","v":0},"#'T2-B(PP1)'!$J$15"]
["pp1_bl3_1_total_in",{"$f":"'T2-B(PP1)'!$F$15","v":0},"#'T2-B(PP1)'!$F$15"]
["pp1_bl3_1_total_out",{"$f":"'T2-B(PP1)'!$I$15","v":0},"#'T2-B(PP1)'!$I$15"]
["pp1_bl3_2_1_name",{"$f":"'T2-B(PP1)'!$B$37","v":0},"#'T2-B(PP1)'!$B$37"]
["pp1_bl3_2_1_rate_in",{"$f":"'T2-B(PP1)'!$E$37","v":0},"#'T2-B(PP1)'!$E$37"]
["pp1_bl3_2_1_rate_out",{"$f":"'T2-B(PP1)'!$H$37","v":0},"#'T2-B(PP1)'!$H$37"]
["pp1_bl3_2_1_total",{"$f":"'T2-B(PP1)'!$J$37","v":0},"#'T2-B(PP1)'!$J$37"]
["pp1_bl3_2_1_total_in",{"$f":"'T2-B(PP1)'!$F$37","v":0},"#'T2-B(PP1)'!$F$37"]
["pp1_bl3_2_1_total_out",{"$f":"'T2-B(PP1)'!$I$37","v":0},"#'T2-B(PP1)'!$I$37"]
["pp1_bl3_2_1_unit",{"$f":"'T2-B(PP1)'!$C$37","v":0},"#'T2-B(PP1)'!$C$37"]
["pp1_bl3_2_1_unit_in",{"$f":"'T2-B(PP1)'!$D$37","v":0},"#'T2-B(PP1)'!$D$37"]
["pp1_bl3_2_1_units_out",{"$f":"'T2-B(PP1)'!$G$37","v":0},"#'T2-B(PP1)'!$G$37"]
["pp1_bl3_2_10_name",{"$f":"'T2-B(PP1)'!$B$46","v":0},"#'T2-B(PP1)'!$B$46"]
["pp1_bl3_2_10_rate_in",{"$f":"'T2-B(PP1)'!$E$46","v":0},"#'T2-B(PP1)'!$E$46"]
["pp1_bl3_2_10_rate_out",{"$f":"'T2-B(PP1)'!$H$46","v":0},"#'T2-B(PP1)'!$H$46"]
["pp1_bl3_2_10_total",{"$f":"'T2-B(PP1)'!$J$46","v":0},"#'T2-B(PP1)'!$J$46"]
["pp1_bl3_2_10_total_in",{"$f":"'T2-B(PP1)'!$F$46","v":0},"#'T2-B(PP1)'!$F$46"]
["pp1_bl3_2_10_total_out",{"$f":"'T2-B(PP1)'!$I$46","v":0},"#'T2-B(PP1)'!$I$46"]
["pp1_bl3_2_10_unit",{"$f":"'T2-B(PP1)'!$C$46","v":0},"#'T2-B(PP1)'!$C$46"]
["pp1_bl3_2_10_unit_in",{"$f":"'T2-B(PP1)'!$D$46","v":0},"#'T2-B(PP1)'!$D$46"]
["pp1_bl3_2_10_units_out",{"$f":"'T2-B(PP1)'!$G$46","v":0},"#'T2-B(PP1)'!$G$46"]
["pp1_bl3_2_11_name",{"$f":"'T2-B(PP1)'!$B$47","v":0},"#'T2-B(PP1)'!$B$47"]
["pp1_bl3_2_11_rate_in",{"$f":"'T2-B(PP1)'!$E$47","v":0},"#'T2-B(PP1)'!$E$47"]
["pp1_bl3_2_11_rate_out",{"$f":"'T2-B(PP1)'!$H$47","v":0},"#'T2-B(PP1)'!$H$47"]
["pp1_bl3_2_11_total",{"$f":"'T2-B(PP1)'!$J$47","v":0},"#'T2-B(PP1)'!$J$47"]
["pp1_bl3_2_11_total_in",{"$f":"'T2-B(PP1)'!$F$47","v":0},"#'T2-B(PP1)'!$F$47"]
["pp1_bl3_2_11_total_out",{"$f":"'T2-B(PP1)'!$I$47","v":0},"#'T2-B(PP1)'!$I$47"]
["pp1_bl3_2_11_unit",{"$f":"'T2-B(PP1)'!$C$47","v":0},"#'T2-B(PP1)'!$C$47"]
["pp1_bl3_2_11_unit_in",{"$f":"'T2-B(PP1)'!$D$47","v":0},"#'T2-B(PP1)'!$D$47"]
["pp1_bl3_2_11_units_out",{"$f":"'T2-B(PP1)'!$G$47","v":0},"#'T2-B(PP1)'!$G$47"]
["pp1_bl3_2_12_name",{"$f":"'T2-B(PP1)'!$B$48","v":0},"#'T2-B(PP1)'!$B$48"]
["pp1_bl3_2_12_rate_in",{"$f":"'T2-B(PP1)'!$E$48","v":0},"#'T2-B(PP1)'!$E$48"]
["pp1_bl3_2_12_rate_out",{"$f":"'T2-B(PP1)'!$H$48","v":0},"#'T2-B(PP1)'!$H$48"]
["pp1_bl3_2_12_total",{"$f":"'T2-B(PP1)'!$J$48","v":0},"#'T2-B(PP1)'!$J$48"]
["pp1_bl3_2_12_total_in",{"$f":"'T2-B(PP1)'!$F$48","v":0},"#'T2-B(PP1)'!$F$48"]
["pp1_bl3_2_12_total_out",{"$f":"'T2-B(PP1)'!$I$48","v":0},"#'T2-B(PP1)'!$I$48"]
["pp1_bl3_2_12_unit",{"$f":"'T2-B(PP1)'!$C$48","v":0},"#'T2-B(PP1)'!$C$48"]
["pp1_bl3_2_12_unit_in",{"$f":"'T2-B(PP1)'!$D$48","v":0},"#'T2-B(PP1)'!$D$48"]
["pp1_bl3_2_12_units_out",{"$f":"'T2-B(PP1)'!$G$48","v":0},"#'T2-B(PP1)'!$G$48"]
["pp1_bl3_2_13_name",{"$f":"'T2-B(PP1)'!$B$49","v":0},"#'T2-B(PP1)'!$B$49"]
["pp1_bl3_2_13_rate_in",{"$f":"'T2-B(PP1)'!$E$49","v":0},"#'T2-B(PP1)'!$E$49"]
["pp1_bl3_2_13_rate_out",{"$f":"'T2-B(PP1)'!$H$49","v":0},"#'T2-B(PP1)'!$H$49"]
["pp1_bl3_2_13_total",{"$f":"'T2-B(PP1)'!$J$49","v":0},"#'T2-B(PP1)'!$J$49"]
["pp1_bl3_2_13_total_in",{"$f":"'T2-B(PP1)'!$F$49","v":0},"#'T2-B(PP1)'!$F$49"]
["pp1_bl3_2_13_total_out",{"$f":"'T2-B(PP1)'!$I$49","v":0},"#'T2-B(PP1)'!$I$49"]
["pp1_bl3_2_13_unit",{"$f":"'T2-B(PP1)'!$C$49","v":0},"#'T2-B(PP1)'!$C$49"]
["pp1_bl3_2_13_unit_in",{"$f":"'T2-B(PP1)'!$D$49","v":0},"#'T2-B(PP1)'!$D$49"]
["pp1_bl3_2_13_units_out",{"$f":"'T2-B(PP1)'!$G$49","v":0},"#'T2-B(PP1)'!$G$49"]
["pp1_bl3_2_14_name",{"$f":"'T2-B(PP1)'!$B$50","v":0},"#'T2-B(PP1)'!$B$50"]
["pp1_bl3_2_14_rate_in",{"$f":"'T2-B(PP1)'!$E$50","v":0},"#'T2-B(PP1)'!$E$50"]
["pp1_bl3_2_14_rate_out",{"$f":"'T2-B(PP1)'!$H$50","v":0},"#'T2-B(PP1)'!$H$50"]
["pp1_bl3_2_14_total",{"$f":"'T2-B(PP1)'!$J$50","v":0},"#'T2-B(PP1)'!$J$50"]
["pp1_bl3_2_14_total_in",{"$f":"'T2-B(PP1)'!$F$50","v":0},"#'T2-B(PP1)'!$F$50"]
["pp1_bl3_2_14_total_out",{"$f":"'T2-B(PP1)'!$I$50","v":0},"#'T2-B(PP1)'!$I$50"]
["pp1_bl3_2_14_unit",{"$f":"'T2-B(PP1)'!$C$50","v":0},"#'T2-B(PP1)'!$C$50"]
["pp1_bl3_2_14_unit_in",{"$f":"'T2-B(PP1)'!$D$50","v":0},"#'T2-B(PP1)'!$D$50"]
["pp1_bl3_2_14_units_out",{"$f":"'T2-B(PP1)'!$G$50","v":0},"#'T2-B(PP1)'!$G$50"]
["pp1_bl3_2_15_name",{"$f":"'T2-B(PP1)'!$B$51","v":0},"#'T2-B(PP1)'!$B$51"]
["pp1_bl3_2_15_rate_in",{"$f":"'T2-B(PP1)'!$E$51","v":0},"#'T2-B(PP1)'!$E$51"]
["pp1_bl3_2_15_rate_out",{"$f":"'T2-B(PP1)'!$H$51","v":0},"#'T2-B(PP1)'!$H$51"]
["pp1_bl3_2_15_total",{"$f":"'T2-B(PP1)'!$J$51","v":0},"#'T2-B(PP1)'!$J$51"]
["pp1_bl3_2_15_total_in",{"$f":"'T2-B(PP1)'!$F$51","v":0},"#'T2-B(PP1)'!$F$51"]
["pp1_bl3_2_15_total_out",{"$f":"'T2-B(PP1)'!$I$51","v":0},"#'T2-B(PP1)'!$I$51"]
["pp1_bl3_2_15_unit",{"$f":"'T2-B(PP1)'!$C$51","v":0},"#'T2-B(PP1)'!$C$51"]
["pp1_bl3_2_15_unit_in",{"$f":"'T2-B(PP1)'!$D$51","v":0},"#'T2-B(PP1)'!$D$51"]
["pp1_bl3_2_15_units_out",{"$f":"'T2-B(PP1)'!$G$51","v":0},"#'T2-B(PP1)'!$G$51"]
["pp1_bl3_2_16_name",{"$f":"'T2-B(PP1)'!$B$52","v":0},"#'T2-B(PP1)'!$B$52"]
["pp1_bl3_2_16_rate_in",{"$f":"'T2-B(PP1)'!$E$52","v":0},"#'T2-B(PP1)'!$E$52"]
["pp1_bl3_2_16_rate_out",{"$f":"'T2-B(PP1)'!$H$52","v":0},"#'T2-B(PP1)'!$H$52"]
["pp1_bl3_2_16_total",{"$f":"'T2-B(PP1)'!$J$52","v":0},"#'T2-B(PP1)'!$J$52"]
["pp1_bl3_2_16_total_in",{"$f":"'T2-B(PP1)'!$F$52","v":0},"#'T2-B(PP1)'!$F$52"]
["pp1_bl3_2_16_total_out",{"$f":"'T2-B(PP1)'!$I$52","v":0},"#'T2-B(PP1)'!$I$52"]
["pp1_bl3_2_16_unit",{"$f":"'T2-B(PP1)'!$C$52","v":0},"#'T2-B(PP1)'!$C$52"]
["pp1_bl3_2_16_unit_in",{"$f":"'T2-B(PP1)'!$D$52","v":0},"#'T2-B(PP1)'!$D$52"]
["pp1_bl3_2_16_units_out",{"$f":"'T2-B(PP1)'!$G$52","v":0},"#'T2-B(PP1)'!$G$52"]
["pp1_bl3_2_17_name",{"$f":"'T2-B(PP1)'!$B$53","v":0},"#'T2-B(PP1)'!$B$53"]
["pp1_bl3_2_17_rate_in",{"$f":"'T2-B(PP1)'!$E$53","v":0},"#'T2-B(PP1)'!$E$53"]
["pp1_bl3_2_17_rate_out",{"$f":"'T2-B(PP1)'!$H$53","v":0},"#'T2-B(PP1)'!$H$53"]
["pp1_bl3_2_17_total",{"$f":"'T2-B(PP1)'!$J$53","v":0},"#'T2-B(PP1)'!$J$53"]
["pp1_bl3_2_17_total_in",{"$f":"'T2-B(PP1)'!$F$53","v":0},"#'T2-B(PP1)'!$F$53"]
["pp1_bl3_2_17_total_out",{"$f":"'T2-B(PP1)'!$I$53","v":0},"#'T2-B(PP1)'!$I$53"]
["pp1_bl3_2_17_unit",{"$f":"'T2-B(PP1)'!$C$53","v":0},"#'T2-B(PP1)'!$C$53"]
["pp1_bl3_2_17_unit_in",{"$f":"'T2-B(PP1)'!$D$53","v":0},"#'T2-B(PP1)'!$D$53"]
["pp1_bl3_2_17_units_out",{"$f":"'T2-B(PP1)'!$G$53","v":0},"#'T2-B(PP1)'!$G$53"]
["pp1_bl3_2_18_name",{"$f":"'T2-B(PP1)'!$B$54","v":0},"#'T2-B(PP1)'!$B$54"]
["pp1_bl3_2_18_rate_in",{"$f":"'T2-B(PP1)'!$E$54","v":0},"#'T2-B(PP1)'!$E$54"]
["pp1_bl3_2_18_rate_out",{"$f":"'T2-B(PP1)'!$H$54","v":0},"#'T2-B(PP1)'!$H$54"]
["pp1_bl3_2_18_total",{"$f":"'T2-B(PP1)'!$J$54","v":0},"#'T2-B(PP1)'!$J$54"]
["pp1_bl3_2_18_total_in",{"$f":"'T2-B(PP1)'!$F$54","v":0},"#'T2-B(PP1)'!$F$54"]
["pp1_bl3_2_18_total_out",{"$f":"'T2-B(PP1)'!$I$54","v":0},"#'T2-B(PP1)'!$I$54"]
["pp1_bl3_2_18_unit",{"$f":"'T2-B(PP1)'!$C$54","v":0},"#'T2-B(PP1)'!$C$54"]
["pp1_bl3_2_18_unit_in",{"$f":"'T2-B(PP1)'!$D$54","v":0},"#'T2-B(PP1)'!$D$54"]
["pp1_bl3_2_18_units_out",{"$f":"'T2-B(PP1)'!$G$54","v":0},"#'T2-B(PP1)'!$G$54"]
["pp1_bl3_2_19_name",{"$f":"'T2-B(PP1)'!$B$55","v":0},"#'T2-B(PP1)'!$B$55"]
["pp1_bl3_2_19_rate_in",{"$f":"'T2-B(PP1)'!$E$55","v":0},"#'T2-B(PP1)'!$E$55"]
["pp1_bl3_2_19_rate_out",{"$f":"'T2-B(PP1)'!$H$55","v":0},"#'T2-B(PP1)'!$H$55"]
["pp1_bl3_2_19_total",{"$f":"'T2-B(PP1)'!$J$55","v":0},"#'T2-B(PP1)'!$J$55"]
["pp1_bl3_2_19_total_in",{"$f":"'T2-B(PP1)'!$F$55","v":0},"#'T2-B(PP1)'!$F$55"]
["pp1_bl3_2_19_total_out",{"$f":"'T2-B(PP1)'!$I$55","v":0},"#'T2-B(PP1)'!$I$55"]
["pp1_bl3_2_19_unit",{"$f":"'T2-B(PP1)'!$C$55","v":0},"#'T2-B(PP1)'!$C$55"]
["pp1_bl3_2_19_unit_in",{"$f":"'T2-B(PP1)'!$D$55","v":0},"#'T2-B(PP1)'!$D$55"]
["pp1_bl3_2_19_units_out",{"$f":"'T2-B(PP1)'!$G$55","v":0},"#'T2-B(PP1)'!$G$55"]
["pp1_bl3_2_2_name",{"$f":"'T2-B(PP1)'!$B$38","v":0},"#'T2-B(PP1)'!$B$38"]
["pp1_bl3_2_2_rate_in",{"$f":"'T2-B(PP1)'!$E$38","v":0},"#'T2-B(PP1)'!$E$38"]
["pp1_bl3_2_2_rate_out",{"$f":"'T2-B(PP1)'!$H$38","v":0},"#'T2-B(PP1)'!$H$38"]
["pp1_bl3_2_2_total",{"$f":"'T2-B(PP1)'!$J$38","v":0},"#'T2-B(PP1)'!$J$38"]
["pp1_bl3_2_2_total_in",{"$f":"'T2-B(PP1)'!$F$38","v":0},"#'T2-B(PP1)'!$F$38"]
["pp1_bl3_2_2_total_out",{"$f":"'T2-B(PP1)'!$I$38","v":0},"#'T2-B(PP1)'!$I$38"]
["pp1_bl3_2_2_unit",{"$f":"'T2-B(PP1)'!$C$38","v":0},"#'T2-B(PP1)'!$C$38"]
["pp1_bl3_2_2_unit_in",{"$f":"'T2-B(PP1)'!$D$38","v":0},"#'T2-B(PP1)'!$D$38"]
["pp1_bl3_2_2_units_out",{"$f":"'T2-B(PP1)'!$G$38","v":0},"#'T2-B(PP1)'!$G$38"]
["pp1_bl3_2_20_name",{"$f":"'T2-B(PP1)'!$B$56","v":0},"#'T2-B(PP1)'!$B$56"]
["pp1_bl3_2_20_rate_in",{"$f":"'T2-B(PP1)'!$E$56","v":0},"#'T2-B(PP1)'!$E$56"]
["pp1_bl3_2_20_rate_out",{"$f":"'T2-B(PP1)'!$H$56","v":0},"#'T2-B(PP1)'!$H$56"]
["pp1_bl3_2_20_total",{"$f":"'T2-B(PP1)'!$J$56","v":0},"#'T2-B(PP1)'!$J$56"]
["pp1_bl3_2_20_total_in",{"$f":"'T2-B(PP1)'!$F$56","v":0},"#'T2-B(PP1)'!$F$56"]
["pp1_bl3_2_20_total_out",{"$f":"'T2-B(PP1)'!$I$56","v":0},"#'T2-B(PP1)'!$I$56"]
["pp1_bl3_2_20_unit",{"$f":"'T2-B(PP1)'!$C$56","v":0},"#'T2-B(PP1)'!$C$56"]
["pp1_bl3_2_20_unit_in",{"$f":"'T2-B(PP1)'!$D$56","v":0},"#'T2-B(PP1)'!$D$56"]
["pp1_bl3_2_20_units_out",{"$f":"'T2-B(PP1)'!$G$56","v":0},"#'T2-B(PP1)'!$G$56"]
["pp1_bl3_2_3_name",{"$f":"'T2-B(PP1)'!$B$39","v":0},"#'T2-B(PP1)'!$B$39"]
["pp1_bl3_2_3_rate_in",{"$f":"'T2-B(PP1)'!$E$39","v":0},"#'T2-B(PP1)'!$E$39"]
["pp1_bl3_2_3_rate_out",{"$f":"'T2-B(PP1)'!$H$39","v":0},"#'T2-B(PP1)'!$H$39"]
["pp1_bl3_2_3_total",{"$f":"'T2-B(PP1)'!$J$39","v":0},"#'T2-B(PP1)'!$J$39"]
["pp1_bl3_2_3_total_in",{"$f":"'T2-B(PP1)'!$F$39","v":0},"#'T2-B(PP1)'!$F$39"]
["pp1_bl3_2_3_total_out",{"$f":"'T2-B(PP1)'!$I$39","v":0},"#'T2-B(PP1)'!$I$39"]
["pp1_bl3_2_3_unit",{"$f":"'T2-B(PP1)'!$C$39","v":0},"#'T2-B(PP1)'!$C$39"]
["pp1_bl3_2_3_unit_in",{"$f":"'T2-B(PP1)'!$D$39","v":0},"#'T2-B(PP1)'!$D$39"]
["pp1_bl3_2_3_units_out",{"$f":"'T2-B(PP1)'!$G$39","v":0},"#'T2-B(PP1)'!$G$39"]
["pp1_bl3_2_4_name",{"$f":"'T2-B(PP1)'!$B$40","v":0},"#'T2-B(PP1)'!$B$40"]
["pp1_bl3_2_4_rate_in",{"$f":"'T2-B(PP1)'!$E$40","v":0},"#'T2-B(PP1)'!$E$40"]
["pp1_bl3_2_4_rate_out",{"$f":"'T2-B(PP1)'!$H$40","v":0},"#'T2-B(PP1)'!$H$40"]
["pp1_bl3_2_4_total",{"$f":"'T2-B(PP1)'!$J$40","v":0},"#'T2-B(PP1)'!$J$40"]
["pp1_bl3_2_4_total_in",{"$f":"'T2-B(PP1)'!$F$40","v":0},"#'T2-B(PP1)'!$F$40"]
["pp1_bl3_2_4_total_out",{"$f":"'T2-B(PP1)'!$I$40","v":0},"#'T2-B(PP1)'!$I$40"]
["pp1_bl3_2_4_unit",{"$f":"'T2-B(PP1)'!$C$40","v":0},"#'T2-B(PP1)'!$C$40"]
["pp1_bl3_2_4_unit_in",{"$f":"'T2-B(PP1)'!$D$40","v":0},"#'T2-B(PP1)'!$D$40"]
["pp1_bl3_2_4_units_out",{"$f":"'T2-B(PP1)'!$G$40","v":0},"#'T2-B(PP1)'!$G$40"]
["pp1_bl3_2_5_name",{"$f":"'T2-B(PP1)'!$B$41","v":0},"#'T2-B(PP1)'!$B$41"]
["pp1_bl3_2_5_rate_in",{"$f":"'T2-B(PP1)'!$E$41","v":0},"#'T2-B(PP1)'!$E$41"]
["pp1_bl3_2_5_rate_out",{"$f":"'T2-B(PP1)'!$H$41","v":0},"#'T2-B(PP1)'!$H$41"]
["pp1_bl3_2_5_total",{"$f":"'T2-B(PP1)'!$J$41","v":0},"#'T2-B(PP1)'!$J$41"]
["pp1_bl3_2_5_total_in",{"$f":"'T2-B(PP1)'!$F$41","v":0},"#'T2-B(PP1)'!$F$41"]
["pp1_bl3_2_5_total_out",{"$f":"'T2-B(PP1)'!$I$41","v":0},"#'T2-B(PP1)'!$I$41"]
["pp1_bl3_2_5_unit",{"$f":"'T2-B(PP1)'!$C$41","v":0},"#'T2-B(PP1)'!$C$41"]
["pp1_bl3_2_5_unit_in",{"$f":"'T2-B(PP1)'!$D$41","v":0},"#'T2-B(PP1)'!$D$41"]
["pp1_bl3_2_5_units_out",{"$f":"'T2-B(PP1)'!$G$41","v":0},"#'T2-B(PP1)'!$G$41"]
["pp1_bl3_2_6_name",{"$f":"'T2-B(PP1)'!$B$42","v":0},"#'T2-B(PP1)'!$B$42"]
["pp1_bl3_2_6_rate_in",{"$f":"'T2-B(PP1)'!$E$42","v":0},"#'T2-B(PP1)'!$E$42"]
["pp1_bl3_2_6_rate_out",{"$f":"'T2-B(PP1)'!$H$42","v":0},"#'T2-B(PP1)'!$H$42"]
["pp1_bl3_2_6_total",{"$f":"'T2-B(PP1)'!$J$42","v":0},"#'T2-B(PP1)'!$J$42"]
["pp1_bl3_2_6_total_in",{"$f":"'T2-B(PP1)'!$F$42","v":0},"#'T2-B(PP1)'!$F$42"]
["pp1_bl3_2_6_total_out",{"$f":"'T2-B(PP1)'!$I$42","v":0},"#'T2-B(PP1)'!$I$42"]
["pp1_bl3_2_6_unit",{"$f":"'T2-B(PP1)'!$C$42","v":0},"#'T2-B(PP1)'!$C$42"]
["pp1_bl3_2_6_unit_in",{"$f":"'T2-B(PP1)'!$D$42","v":0},"#'T2-B(PP1)'!$D$42"]
["pp1_bl3_2_6_units_out",{"$f":"'T2-B(PP1)'!$G$42","v":0},"#'T2-B(PP1)'!$G$42"]
["pp1_bl3_2_7_name",{"$f":"'T2-B(PP1)'!$B$43","v":0},"#'T2-B(PP1)'!$B$43"]
["pp1_bl3_2_7_rate_in",{"$f":"'T2-B(PP1)'!$E$43","v":0},"#'T2-B(PP1)'!$E$43"]
["pp1_bl3_2_7_rate_out",{"$f":"'T2-B(PP1)'!$H$43","v":0},"#'T2-B(PP1)'!$H$43"]
["pp1_bl3_2_7_total",{"$f":"'T2-B(PP1)'!$J$43","v":0},"#'T2-B(PP1)'!$J$43"]
["pp1_bl3_2_7_total_in",{"$f":"'T2-B(PP1)'!$F$43","v":0},"#'T2-B(PP1)'!$F$43"]
["pp1_bl3_2_7_total_out",{"$f":"'T2-B(PP1)'!$I$43","v":0},"#'T2-B(PP1)'!$I$43"]
["pp1_bl3_2_7_unit",{"$f":"'T2-B(PP1)'!$C$43","v":0},"#'T2-B(PP1)'!$C$43"]
["pp1_bl3_2_7_unit_in",{"$f":"'T2-B(PP1)'!$D$43","v":0},"#'T2-B(PP1)'!$D$43"]
["pp1_bl3_2_7_units_out",{"$f":"'T2-B(PP1)'!$G$43","v":0},"#'T2-B(PP1)'!$G$43"]
["pp1_bl3_2_8_name",{"$f":"'T2-B(PP1)'!$B$44","v":0},"#'T2-B(PP1)'!$B$44"]
["pp1_bl3_2_8_rate_in",{"$f":"'T2-B(PP1)'!$E$44","v":0},"#'T2-B(PP1)'!$E$44"]
["pp1_bl3_2_8_rate_out",{"$f":"'T2-B(PP1)'!$H$44","v":0},"#'T2-B(PP1)'!$H$44"]
["pp1_bl3_2_8_total",{"$f":"'T2-B(PP1)'!$J$44","v":0},"#'T2-B(PP1)'!$J$44"]
["pp1_bl3_2_8_total_in",{"$f":"'T2-B(PP1)'!$F$44","v":0},"#'T2-B(PP1)'!$F$44"]
["pp1_bl3_2_8_total_out",{"$f":"'T2-B(PP1)'!$I$44","v":0},"#'T2-B(PP1)'!$I$44"]
["pp1_bl3_2_8_unit",{"$f":"'T2-B(PP1)'!$C$44","v":0},"#'T2-B(PP1)'!$C$44"]
["pp1_bl3_2_8_unit_in",{"$f":"'T2-B(PP1)'!$D$44","v":0},"#'T2-B(PP1)'!$D$44"]
["pp1_bl3_2_8_units_out",{"$f":"'T2-B(PP1)'!$G$44","v":0},"#'T2-B(PP1)'!$G$44"]
["pp1_bl3_2_9_name",{"$f":"'T2-B(PP1)'!$B$45","v":0},"#'T2-B(PP1)'!$B$45"]
["pp1_bl3_2_9_rate_in",{"$f":"'T2-B(PP1)'!$E$45","v":0},"#'T2-B(PP1)'!$E$45"]
["pp1_bl3_2_9_rate_out",{"$f":"'T2-B(PP1)'!$H$45","v":0},"#'T2-B(PP1)'!$H$45"]
["pp1_bl3_2_9_total",{"$f":"'T2-B(PP1)'!$J$45","v":0},"#'T2-B(PP1)'!$J$45"]
["pp1_bl3_2_9_total_in",{"$f":"'T2-B(PP1)'!$F$45","v":0},"#'T2-B(PP1)'!$F$45"]
["pp1_bl3_2_9_total_out",{"$f":"'T2-B(PP1)'!$I$45","v":0},"#'T2-B(PP1)'!$I$45"]
["pp1_bl3_2_9_unit",{"$f":"'T2-B(PP1)'!$C$45","v":0},"#'T2-B(PP1)'!$C$45"]
["pp1_bl3_2_9_unit_in",{"$f":"'T2-B(PP1)'!$D$45","v":0},"#'T2-B(PP1)'!$D$45"]
["pp1_bl3_2_9_units_out",{"$f":"'T2-B(PP1)'!$G$45","v":0},"#'T2-B(PP1)'!$G$45"]
["pp1_bl3_2_total",{"$f":"'T2-B(PP1)'!$J$36","v":0},"#'T2-B(PP1)'!$J$36"]
["pp1_bl3_2_total_in",{"$f":"'T2-B(PP1)'!$F$36","v":0},"#'T2-B(PP1)'!$F$36"]
["pp1_bl3_2_total_out",{"$f":"'T2-B(PP1)'!$I$36","v":0},"#'T2-B(PP1)'!$I$36"]
["pp1_bl3_3_1_name",{"$f":"'T2-B(PP1)'!$B$58","v":0},"#'T2-B(PP1)'!$B$58"]
["pp1_bl3_3_1_rate_in",{"$f":"'T2-B(PP1)'!$E$58","v":0},"#'T2-B(PP1)'!$E$58"]
["pp1_bl3_3_1_rate_out",{"$f":"'T2-B(PP1)'!$H$58","v":0},"#'T2-B(PP1)'!$H$58"]
["pp1_bl3_3_1_total",{"$f":"'T2-B(PP1)'!$J$58","v":0},"#'T2-B(PP1)'!$J$58"]
["pp1_bl3_3_1_total_in",{"$f":"'T2-B(PP1)'!$F$58","v":0},"#'T2-B(PP1)'!$F$58"]
["pp1_bl3_3_1_total_out",{"$f":"'T2-B(PP1)'!$I$58","v":0},"#'T2-B(PP1)'!$I$58"]
["pp1_bl3_3_1_unit",{"$f":"'T2-B(PP1)'!$C$58","v":0},"#'T2-B(PP1)'!$C$58"]
["pp1_bl3_3_1_unit_in",{"$f":"'T2-B(PP1)'!$D$58","v":0},"#'T2-B(PP1)'!$D$58"]
["pp1_bl3_3_1_units_out",{"$f":"'T2-B(PP1)'!$G$58","v":0},"#'T2-B(PP1)'!$G$58"]
["pp1_bl3_3_10_name",{"$f":"'T2-B(PP1)'!$B$67","v":0},"#'T2-B(PP1)'!$B$67"]
["pp1_bl3_3_10_rate_in",{"$f":"'T2-B(PP1)'!$E$67","v":0},"#'T2-B(PP1)'!$E$67"]
["pp1_bl3_3_10_rate_out",{"$f":"'T2-B(PP1)'!$H$67","v":0},"#'T2-B(PP1)'!$H$67"]
["pp1_bl3_3_10_total",{"$f":"'T2-B(PP1)'!$J$67","v":0},"#'T2-B(PP1)'!$J$67"]
["pp1_bl3_3_10_total_in",{"$f":"'T2-B(PP1)'!$F$67","v":0},"#'T2-B(PP1)'!$F$67"]
["pp1_bl3_3_10_total_out",{"$f":"'T2-B(PP1)'!$I$67","v":0},"#'T2-B(PP1)'!$I$67"]
["pp1_bl3_3_10_unit",{"$f":"'T2-B(PP1)'!$C$67","v":0},"#'T2-B(PP1)'!$C$67"]
["pp1_bl3_3_10_unit_in",{"$f":"'T2-B(PP1)'!$D$67","v":0},"#'T2-B(PP1)'!$D$67"]
["pp1_bl3_3_10_units_out",{"$f":"'T2-B(PP1)'!$G$67","v":0},"#'T2-B(PP1)'!$G$67"]
["pp1_bl3_3_11_name",{"$f":"'T2-B(PP1)'!$B$68","v":0},"#'T2-B(PP1)'!$B$68"]
["pp1_bl3_3_11_rate_in",{"$f":"'T2-B(PP1)'!$E$68","v":0},"#'T2-B(PP1)'!$E$68"]
["pp1_bl3_3_11_rate_out",{"$f":"'T2-B(PP1)'!$H$68","v":0},"#'T2-B(PP1)'!$H$68"]
["pp1_bl3_3_11_total",{"$f":"'T2-B(PP1)'!$J$68","v":0},"#'T2-B(PP1)'!$J$68"]
["pp1_bl3_3_11_total_in",{"$f":"'T2-B(PP1)'!$F$68","v":0},"#'T2-B(PP1)'!$F$68"]
["pp1_bl3_3_11_total_out",{"$f":"'T2-B(PP1)'!$I$68","v":0},"#'T2-B(PP1)'!$I$68"]
["pp1_bl3_3_11_unit",{"$f":"'T2-B(PP1)'!$C$68","v":0},"#'T2-B(PP1)'!$C$68"]
["pp1_bl3_3_11_unit_in",{"$f":"'T2-B(PP1)'!$D$68","v":0},"#'T2-B(PP1)'!$D$68"]
["pp1_bl3_3_11_units_out",{"$f":"'T2-B(PP1)'!$G$68","v":0},"#'T2-B(PP1)'!$G$68"]
["pp1_bl3_3_12_name",{"$f":"'T2-B(PP1)'!$B$69","v":0},"#'T2-B(PP1)'!$B$69"]
["pp1_bl3_3_12_rate_in",{"$f":"'T2-B(PP1)'!$E$69","v":0},"#'T2-B(PP1)'!$E$69"]
["pp1_bl3_3_12_rate_out",{"$f":"'T2-B(PP1)'!$H$69","v":0},"#'T2-B(PP1)'!$H$69"]
["pp1_bl3_3_12_total",{"$f":"'T2-B(PP1)'!$J$69","v":0},"#'T2-B(PP1)'!$J$69"]
["pp1_bl3_3_12_total_in",{"$f":"'T2-B(PP1)'!$F$69","v":0},"#'T2-B(PP1)'!$F$69"]
["pp1_bl3_3_12_total_out",{"$f":"'T2-B(PP1)'!$I$69","v":0},"#'T2-B(PP1)'!$I$69"]
["pp1_bl3_3_12_unit",{"$f":"'T2-B(PP1)'!$C$69","v":0},"#'T2-B(PP1)'!$C$69"]
["pp1_bl3_3_12_unit_in",{"$f":"'T2-B(PP1)'!$D$69","v":0},"#'T2-B(PP1)'!$D$69"]
["pp1_bl3_3_12_units_out",{"$f":"'T2-B(PP1)'!$G$69","v":0},"#'T2-B(PP1)'!$G$69"]
["pp1_bl3_3_13_name",{"$f":"'T2-B(PP1)'!$B$70","v":0},"#'T2-B(PP1)'!$B$70"]
["pp1_bl3_3_13_rate_in",{"$f":"'T2-B(PP1)'!$E$70","v":0},"#'T2-B(PP1)'!$E$70"]
["pp1_bl3_3_13_rate_out",{"$f":"'T2-B(PP1)'!$H$70","v":0},"#'T2-B(PP1)'!$H$70"]
["pp1_bl3_3_13_total",{"$f":"'T2-B(PP1)'!$J$70","v":0},"#'T2-B(PP1)'!$J$70"]
["pp1_bl3_3_13_total_in",{"$f":"'T2-B(PP1)'!$F$70","v":0},"#'T2-B(PP1)'!$F$70"]
["pp1_bl3_3_13_total_out",{"$f":"'T2-B(PP1)'!$I$70","v":0},"#'T2-B(PP1)'!$I$70"]
["pp1_bl3_3_13_unit",{"$f":"'T2-B(PP1)'!$C$70","v":0},"#'T2-B(PP1)'!$C$70"]
["pp1_bl3_3_13_unit_in",{"$f":"'T2-B(PP1)'!$D$70","v":0},"#'T2-B(PP1)'!$D$70"]
["pp1_bl3_3_13_units_out",{"$f":"'T2-B(PP1)'!$G$70","v":0},"#'T2-B(PP1)'!$G$70"]
["pp1_bl3_3_14_name",{"$f":"'T2-B(PP1)'!$B$71","v":0},"#'T2-B(PP1)'!$B$71"]
["pp1_bl3_3_14_rate_in",{"$f":"'T2-B(PP1)'!$E$71","v":0},"#'T2-B(PP1)'!$E$71"]
["pp1_bl3_3_14_rate_out",{"$f":"'T2-B(PP1)'!$H$71","v":0},"#'T2-B(PP1)'!$H$71"]
["pp1_bl3_3_14_total",{"$f":"'T2-B(PP1)'!$J$71","v":0},"#'T2-B(PP1)'!$J$71"]
["pp1_bl3_3_14_total_in",{"$f":"'T2-B(PP1)'!$F$71","v":0},"#'T2-B(PP1)'!$F$71"]
["pp1_bl3_3_14_total_out",{"$f":"'T2-B(PP1)'!$I$71","v":0},"#'T2-B(PP1)'!$I$71"]
["pp1_bl3_3_14_unit",{"$f":"'T2-B(PP1)'!$C$71","v":0},"#'T2-B(PP1)'!$C$71"]
["pp1_bl3_3_14_unit_in",{"$f":"'T2-B(PP1)'!$D$71","v":0},"#'T2-B(PP1)'!$D$71"]
["pp1_bl3_3_14_units_out",{"$f":"'T2-B(PP1)'!$G$71","v":0},"#'T2-B(PP1)'!$G$71"]
["pp1_bl3_3_15_name",{"$f":"'T2-B(PP1)'!$B$72","v":0},"#'T2-B(PP1)'!$B$72"]
["pp1_bl3_3_15_rate_in",{"$f":"'T2-B(PP1)'!$E$72","v":0},"#'T2-B(PP1)'!$E$72"]
["pp1_bl3_3_15_rate_out",{"$f":"'T2-B(PP1)'!$H$72","v":0},"#'T2-B(PP1)'!$H$72"]
["pp1_bl3_3_15_total",{"$f":"'T2-B(PP1)'!$J$72","v":0},"#'T2-B(PP1)'!$J$72"]
["pp1_bl3_3_15_total_in",{"$f":"'T2-B(PP1)'!$F$72","v":0},"#'T2-B(PP1)'!$F$72"]
["pp1_bl3_3_15_total_out",{"$f":"'T2-B(PP1)'!$I$72","v":0},"#'T2-B(PP1)'!$I$72"]
["pp1_bl3_3_15_unit",{"$f":"'T2-B(PP1)'!$C$72","v":0},"#'T2-B(PP1)'!$C$72"]
["pp1_bl3_3_15_unit_in",{"$f":"'T2-B(PP1)'!$D$72","v":0},"#'T2-B(PP1)'!$D$72"]
["pp1_bl3_3_15_units_out",{"$f":"'T2-B(PP1)'!$G$72","v":0},"#'T2-B(PP1)'!$G$72"]
["pp1_bl3_3_16_name",{"$f":"'T2-B(PP1)'!$B$73","v":0},"#'T2-B(PP1)'!$B$73"]
["pp1_bl3_3_16_rate_in",{"$f":"'T2-B(PP1)'!$E$73","v":0},"#'T2-B(PP1)'!$E$73"]
["pp1_bl3_3_16_rate_out",{"$f":"'T2-B(PP1)'!$H$73","v":0},"#'T2-B(PP1)'!$H$73"]
["pp1_bl3_3_16_total",{"$f":"'T2-B(PP1)'!$J$73","v":0},"#'T2-B(PP1)'!$J$73"]
["pp1_bl3_3_16_total_in",{"$f":"'T2-B(PP1)'!$F$73","v":0},"#'T2-B(PP1)'!$F$73"]
["pp1_bl3_3_16_total_out",{"$f":"'T2-B(PP1)'!$I$73","v":0},"#'T2-B(PP1)'!$I$73"]
["pp1_bl3_3_16_unit",{"$f":"'T2-B(PP1)'!$C$73","v":0},"#'T2-B(PP1)'!$C$73"]
["pp1_bl3_3_16_unit_in",{"$f":"'T2-B(PP1)'!$D$73","v":0},"#'T2-B(PP1)'!$D$73"]
["pp1_bl3_3_16_units_out",{"$f":"'T2-B(PP1)'!$G$73","v":0},"#'T2-B(PP1)'!$G$73"]
["pp1_bl3_3_17_name",{"$f":"'T2-B(PP1)'!$B$74","v":0},"#'T2-B(PP1)'!$B$74"]
["pp1_bl3_3_17_rate_in",{"$f":"'T2-B(PP1)'!$E$74","v":0},"#'T2-B(PP1)'!$E$74"]
["pp1_bl3_3_17_rate_out",{"$f":"'T2-B(PP1)'!$H$74","v":0},"#'T2-B(PP1)'!$H$74"]
["pp1_bl3_3_17_total",{"$f":"'T2-B(PP1)'!$J$74","v":0},"#'T2-B(PP1)'!$J$74"]
["pp1_bl3_3_17_total_in",{"$f":"'T2-B(PP1)'!$F$74","v":0},"#'T2-B(PP1)'!$F$74"]
["pp1_bl3_3_17_total_out",{"$f":"'T2-B(PP1)'!$I$74","v":0},"#'T2-B(PP1)'!$I$74"]
["pp1_bl3_3_17_unit",{"$f":"'T2-B(PP1)'!$C$74","v":0},"#'T2-B(PP1)'!$C$74"]
["pp1_bl3_3_17_unit_in",{"$f":"'T2-B(PP1)'!$D$74","v":0},"#'T2-B(PP1)'!$D$74"]
["pp1_bl3_3_17_units_out",{"$f":"'T2-B(PP1)'!$G$74","v":0},"#'T2-B(PP1)'!$G$74"]
["pp1_bl3_3_18_name",{"$f":"'T2-B(PP1)'!$B$75","v":0},"#'T2-B(PP1)'!$B$75"]
["pp1_bl3_3_18_rate_in",{"$f":"'T2-B(PP1)'!$E$75","v":0},"#'T2-B(PP1)'!$E$75"]
["pp1_bl3_3_18_rate_out",{"$f":"'T2-B(PP1)'!$H$75","v":0},"#'T2-B(PP1)'!$H$75"]
["pp1_bl3_3_18_total",{"$f":"'T2-B(PP1)'!$J$75","v":0},"#'T2-B(PP1)'!$J$75"]
["pp1_bl3_3_18_total_in",{"$f":"'T2-B(PP1)'!$F$75","v":0},"#'T2-B(PP1)'!$F$75"]
["pp1_bl3_3_18_total_out",{"$f":"'T2-B(PP1)'!$I$75","v":0},"#'T2-B(PP1)'!$I$75"]
["pp1_bl3_3_18_unit",{"$f":"'T2-B(PP1)'!$C$75","v":0},"#'T2-B(PP1)'!$C$75"]
["pp1_bl3_3_18_unit_in",{"$f":"'T2-B(PP1)'!$D$75","v":0},"#'T2-B(PP1)'!$D$75"]
["pp1_bl3_3_18_units_out",{"$f":"'T2-B(PP1)'!$G$75","v":0},"#'T2-B(PP1)'!$G$75"]
["pp1_bl3_3_19_name",{"$f":"'T2-B(PP1)'!$B$76","v":0},"#'T2-B(PP1)'!$B$76"]
["pp1_bl3_3_19_rate_in",{"$f":"'T2-B(PP1)'!$E$76","v":0},"#'T2-B(PP1)'!$E$76"]
["pp1_bl3_3_19_rate_out",{"$f":"'T2-B(PP1)'!$H$76","v":0},"#'T2-B(PP1)'!$H$76"]
["pp1_bl3_3_19_total",{"$f":"'T2-B(PP1)'!$J$76","v":0},"#'T2-B(PP1)'!$J$76"]
["pp1_bl3_3_19_total_in",{"$f":"'T2-B(PP1)'!$F$76","v":0},"#'T2-B(PP1)'!$F$76"]
["pp1_bl3_3_19_total_out",{"$f":"'T2-B(PP1)'!$I$76","v":0},"#'T2-B(PP1)'!$I$76"]
["pp1_bl3_3_19_unit",{"$f":"'T2-B(PP1)'!$C$76","v":0},"#'T2-B(PP1)'!$C$76"]
["pp1_bl3_3_19_unit_in",{"$f":"'T2-B(PP1)'!$D$76","v":0},"#'T2-B(PP1)'!$D$76"]
["pp1_bl3_3_19_units_out",{"$f":"'T2-B(PP1)'!$G$76","v":0},"#'T2-B(PP1)'!$G$76"]
["pp1_bl3_3_2_name",{"$f":"'T2-B(PP1)'!$B$59","v":0},"#'T2-B(PP1)'!$B$59"]
["pp1_bl3_3_2_rate_in",{"$f":"'T2-B(PP1)'!$E$59","v":0},"#'T2-B(PP1)'!$E$59"]
["pp1_bl3_3_2_rate_out",{"$f":"'T2-B(PP1)'!$H$59","v":0},"#'T2-B(PP1)'!$H$59"]
["pp1_bl3_3_2_total",{"$f":"'T2-B(PP1)'!$J$59","v":0},"#'T2-B(PP1)'!$J$59"]
["pp1_bl3_3_2_total_in",{"$f":"'T2-B(PP1)'!$F$59","v":0},"#'T2-B(PP1)'!$F$59"]
["pp1_bl3_3_2_total_out",{"$f":"'T2-B(PP1)'!$I$59","v":0},"#'T2-B(PP1)'!$I$59"]
["pp1_bl3_3_2_unit",{"$f":"'T2-B(PP1)'!$C$59","v":0},"#'T2-B(PP1)'!$C$59"]
["pp1_bl3_3_2_unit_in",{"$f":"'T2-B(PP1)'!$D$59","v":0},"#'T2-B(PP1)'!$D$59"]
["pp1_bl3_3_2_units_out",{"$f":"'T2-B(PP1)'!$G$59","v":0},"#'T2-B(PP1)'!$G$59"]
["pp1_bl3_3_20_name",{"$f":"'T2-B(PP1)'!$B$77","v":0},"#'T2-B(PP1)'!$B$77"]
["pp1_bl3_3_20_rate_in",{"$f":"'T2-B(PP1)'!$E$77","v":0},"#'T2-B(PP1)'!$E$77"]
["pp1_bl3_3_20_rate_out",{"$f":"'T2-B(PP1)'!$H$77","v":0},"#'T2-B(PP1)'!$H$77"]
["pp1_bl3_3_20_total",{"$f":"'T2-B(PP1)'!$J$77","v":0},"#'T2-B(PP1)'!$J$77"]
["pp1_bl3_3_20_total_in",{"$f":"'T2-B(PP1)'!$F$77","v":0},"#'T2-B(PP1)'!$F$77"]
["pp1_bl3_3_20_total_out",{"$f":"'T2-B(PP1)'!$I$77","v":0},"#'T2-B(PP1)'!$I$77"]
["pp1_bl3_3_20_unit",{"$f":"'T2-B(PP1)'!$C$77","v":0},"#'T2-B(PP1)'!$C$77"]
["pp1_bl3_3_20_unit_in",{"$f":"'T2-B(PP1)'!$D$77","v":0},"#'T2-B(PP1)'!$D$77"]
["pp1_bl3_3_20_units_out",{"$f":"'T2-B(PP1)'!$G$77","v":0},"#'T2-B(PP1)'!$G$77"]
["pp1_bl3_3_3_name",{"$f":"'T2-B(PP1)'!$B$60","v":0},"#'T2-B(PP1)'!$B$60"]
["pp1_bl3_3_3_rate_in",{"$f":"'T2-B(PP1)'!$E$60","v":0},"#'T2-B(PP1)'!$E$60"]
["pp1_bl3_3_3_rate_out",{"$f":"'T2-B(PP1)'!$H$60","v":0},"#'T2-B(PP1)'!$H$60"]
["pp1_bl3_3_3_total",{"$f":"'T2-B(PP1)'!$J$60","v":0},"#'T2-B(PP1)'!$J$60"]
["pp1_bl3_3_3_total_in",{"$f":"'T2-B(PP1)'!$F$60","v":0},"#'T2-B(PP1)'!$F$60"]
["pp1_bl3_3_3_total_out",{"$f":"'T2-B(PP1)'!$I$60","v":0},"#'T2-B(PP1)'!$I$60"]
["pp1_bl3_3_3_unit",{"$f":"'T2-B(PP1)'!$C$60","v":0},"#'T2-B(PP1)'!$C$60"]
["pp1_bl3_3_3_unit_in",{"$f":"'T2-B(PP1)'!$D$60","v":0},"#'T2-B(PP1)'!$D$60"]
["pp1_bl3_3_3_units_out",{"$f":"'T2-B(PP1)'!$G$60","v":0},"#'T2-B(PP1)'!$G$60"]
["pp1_bl3_3_4_name",{"$f":"'T2-B(PP1)'!$B$61","v":0},"#'T2-B(PP1)'!$B$61"]
["pp1_bl3_3_4_rate_in",{"$f":"'T2-B(PP1)'!$E$61","v":0},"#'T2-B(PP1)'!$E$61"]
["pp1_bl3_3_4_rate_out",{"$f":"'T2-B(PP1)'!$H$61","v":0},"#'T2-B(PP1)'!$H$61"]
["pp1_bl3_3_4_total",{"$f":"'T2-B(PP1)'!$J$61","v":0},"#'T2-B(PP1)'!$J$61"]
["pp1_bl3_3_4_total_in",{"$f":"'T2-B(PP1)'!$F$61","v":0},"#'T2-B(PP1)'!$F$61"]
["pp1_bl3_3_4_total_out",{"$f":"'T2-B(PP1)'!$I$61","v":0},"#'T2-B(PP1)'!$I$61"]
["pp1_bl3_3_4_unit",{"$f":"'T2-B(PP1)'!$C$61","v":0},"#'T2-B(PP1)'!$C$61"]
["pp1_bl3_3_4_unit_in",{"$f":"'T2-B(PP1)'!$D$61","v":0},"#'T2-B(PP1)'!$D$61"]
["pp1_bl3_3_4_units_out",{"$f":"'T2-B(PP1)'!$G$61","v":0},"#'T2-B(PP1)'!$G$61"]
["pp1_bl3_3_5_name",{"$f":"'T2-B(PP1)'!$B$62","v":0},"#'T2-B(PP1)'!$B$62"]
["pp1_bl3_3_5_rate_in",{"$f":"'T2-B(PP1)'!$E$62","v":0},"#'T2-B(PP1)'!$E$62"]
["pp1_bl3_3_5_rate_out",{"$f":"'T2-B(PP1)'!$H$62","v":0},"#'T2-B(PP1)'!$H$62"]
["pp1_bl3_3_5_total",{"$f":"'T2-B(PP1)'!$J$62","v":0},"#'T2-B(PP1)'!$J$62"]
["pp1_bl3_3_5_total_in",{"$f":"'T2-B(PP1)'!$F$62","v":0},"#'T2-B(PP1)'!$F$62"]
["pp1_bl3_3_5_total_out",{"$f":"'T2-B(PP1)'!$I$62","v":0},"#'T2-B(PP1)'!$I$62"]
["pp1_bl3_3_5_unit",{"$f":"'T2-B(PP1)'!$C$62","v":0},"#'T2-B(PP1)'!$C$62"]
["pp1_bl3_3_5_unit_in",{"$f":"'T2-B(PP1)'!$D$62","v":0},"#'T2-B(PP1)'!$D$62"]
["pp1_bl3_3_5_units_out",{"$f":"'T2-B(PP1)'!$G$62","v":0},"#'T2-B(PP1)'!$G$62"]
["pp1_bl3_3_6_name",{"$f":"'T2-B(PP1)'!$B$63","v":0},"#'T2-B(PP1)'!$B$63"]
["pp1_bl3_3_6_rate_in",{"$f":"'T2-B(PP1)'!$E$63","v":0},"#'T2-B(PP1)'!$E$63"]
["pp1_bl3_3_6_rate_out",{"$f":"'T2-B(PP1)'!$H$63","v":0},"#'T2-B(PP1)'!$H$63"]
["pp1_bl3_3_6_total",{"$f":"'T2-B(PP1)'!$J$63","v":0},"#'T2-B(PP1)'!$J$63"]
["pp1_bl3_3_6_total_in",{"$f":"'T2-B(PP1)'!$F$63","v":0},"#'T2-B(PP1)'!$F$63"]
["pp1_bl3_3_6_total_out",{"$f":"'T2-B(PP1)'!$I$63","v":0},"#'T2-B(PP1)'!$I$63"]
["pp1_bl3_3_6_unit",{"$f":"'T2-B(PP1)'!$C$63","v":0},"#'T2-B(PP1)'!$C$63"]
["pp1_bl3_3_6_unit_in",{"$f":"'T2-B(PP1)'!$D$63","v":0},"#'T2-B(PP1)'!$D$63"]
["pp1_bl3_3_6_units_out",{"$f":"'T2-B(PP1)'!$G$63","v":0},"#'T2-B(PP1)'!$G$63"]
["pp1_bl3_3_7_name",{"$f":"'T2-B(PP1)'!$B$64","v":0},"#'T2-B(PP1)'!$B$64"]
["pp1_bl3_3_7_rate_in",{"$f":"'T2-B(PP1)'!$E$64","v":0},"#'T2-B(PP1)'!$E$64"]
["pp1_bl3_3_7_rate_out",{"$f":"'T2-B(PP1)'!$H$64","v":0},"#'T2-B(PP1)'!$H$64"]
["pp1_bl3_3_7_total",{"$f":"'T2-B(PP1)'!$J$64","v":0},"#'T2-B(PP1)'!$J$64"]
["pp1_bl3_3_7_total_in",{"$f":"'T2-B(PP1)'!$F$64","v":0},"#'T2-B(PP1)'!$F$64"]
["pp1_bl3_3_7_total_out",{"$f":"'T2-B(PP1)'!$I$64","v":0},"#'T2-B(PP1)'!$I$64"]
["pp1_bl3_3_7_unit",{"$f":"'T2-B(PP1)'!$C$64","v":0},"#'T2-B(PP1)'!$C$64"]
["pp1_bl3_3_7_unit_in",{"$f":"'T2-B(PP1)'!$D$64","v":0},"#'T2-B(PP1)'!$D$64"]
["pp1_bl3_3_7_units_out",{"$f":"'T2-B(PP1)'!$G$64","v":0},"#'T2-B(PP1)'!$G$64"]
["pp1_bl3_3_8_name",{"$f":"'T2-B(PP1)'!$B$65","v":0},"#'T2-B(PP1)'!$B$65"]
["pp1_bl3_3_8_rate_in",{"$f":"'T2-B(PP1)'!$E$65","v":0},"#'T2-B(PP1)'!$E$65"]
["pp1_bl3_3_8_rate_out",{"$f":"'T2-B(PP1)'!$H$65","v":0},"#'T2-B(PP1)'!$H$65"]
["pp1_bl3_3_8_total",{"$f":"'T2-B(PP1)'!$J$65","v":0},"#'T2-B(PP1)'!$J$65"]
["pp1_bl3_3_8_total_in",{"$f":"'T2-B(PP1)'!$F$65","v":0},"#'T2-B(PP1)'!$F$65"]
["pp1_bl3_3_8_total_out",{"$f":"'T2-B(PP1)'!$I$65","v":0},"#'T2-B(PP1)'!$I$65"]
["pp1_bl3_3_8_unit",{"$f":"'T2-B(PP1)'!$C$65","v":0},"#'T2-B(PP1)'!$C$65"]
["pp1_bl3_3_8_unit_in",{"$f":"'T2-B(PP1)'!$D$65","v":0},"#'T2-B(PP1)'!$D$65"]
["pp1_bl3_3_8_units_out",{"$f":"'T2-B(PP1)'!$G$65","v":0},"#'T2-B(PP1)'!$G$65"]
["pp1_bl3_3_9_name",{"$f":"'T2-B(PP1)'!$B$66","v":0},"#'T2-B(PP1)'!$B$66"]
["pp1_bl3_3_9_rate_in",{"$f":"'T2-B(PP1)'!$E$66","v":0},"#'T2-B(PP1)'!$E$66"]
["pp1_bl3_3_9_rate_out",{"$f":"'T2-B(PP1)'!$H$66","v":0},"#'T2-B(PP1)'!$H$66"]
["pp1_bl3_3_9_total",{"$f":"'T2-B(PP1)'!$J$66","v":0},"#'T2-B(PP1)'!$J$66"]
["pp1_bl3_3_9_total_in",{"$f":"'T2-B(PP1)'!$F$66","v":0},"#'T2-B(PP1)'!$F$66"]
["pp1_bl3_3_9_total_out",{"$f":"'T2-B(PP1)'!$I$66","v":0},"#'T2-B(PP1)'!$I$66"]
["pp1_bl3_3_9_unit",{"$f":"'T2-B(PP1)'!$C$66","v":0},"#'T2-B(PP1)'!$C$66"]
["pp1_bl3_3_9_unit_in",{"$f":"'T2-B(PP1)'!$D$66","v":0},"#'T2-B(PP1)'!$D$66"]
["pp1_bl3_3_9_units_out",{"$f":"'T2-B(PP1)'!$G$66","v":0},"#'T2-B(PP1)'!$G$66"]
["pp1_bl3_3_total",{"$f":"'T2-B(PP1)'!$J$57","v":0},"#'T2-B(PP1)'!$J$57"]
["pp1_bl3_3_total_in",{"$f":"'T2-B(PP1)'!$F$57","v":0},"#'T2-B(PP1)'!$F$57"]
["pp1_bl3_3_total_out",{"$f":"'T2-B(PP1)'!$I$57","v":0},"#'T2-B(PP1)'!$I$57"]
["pp1_bl3_4_1_name",{"$f":"'T2-B(PP1)'!$B$79","v":0},"#'T2-B(PP1)'!$B$79"]
["pp1_bl3_4_1_rate_in",{"$f":"'T2-B(PP1)'!$E$79","v":0},"#'T2-B(PP1)'!$E$79"]
["pp1_bl3_4_1_rate_out",{"$f":"'T2-B(PP1)'!$H$79","v":0},"#'T2-B(PP1)'!$H$79"]
["pp1_bl3_4_1_total",{"$f":"'T2-B(PP1)'!$J$79","v":0},"#'T2-B(PP1)'!$J$79"]
["pp1_bl3_4_1_total_in",{"$f":"'T2-B(PP1)'!$F$79","v":0},"#'T2-B(PP1)'!$F$79"]
["pp1_bl3_4_1_total_out",{"$f":"'T2-B(PP1)'!$I$79","v":0},"#'T2-B(PP1)'!$I$79"]
["pp1_bl3_4_1_unit",{"$f":"'T2-B(PP1)'!$C$79","v":0},"#'T2-B(PP1)'!$C$79"]
["pp1_bl3_4_1_unit_in",{"$f":"'T2-B(PP1)'!$D$79","v":0},"#'T2-B(PP1)'!$D$79"]
["pp1_bl3_4_1_units_out",{"$f":"'T2-B(PP1)'!$G$79","v":0},"#'T2-B(PP1)'!$G$79"]
["pp1_bl3_4_10_name",{"$f":"'T2-B(PP1)'!$B$88","v":0},"#'T2-B(PP1)'!$B$88"]
["pp1_bl3_4_10_rate_in",{"$f":"'T2-B(PP1)'!$E$88","v":0},"#'T2-B(PP1)'!$E$88"]
["pp1_bl3_4_10_rate_out",{"$f":"'T2-B(PP1)'!$H$88","v":0},"#'T2-B(PP1)'!$H$88"]
["pp1_bl3_4_10_total",{"$f":"'T2-B(PP1)'!$J$88","v":0},"#'T2-B(PP1)'!$J$88"]
["pp1_bl3_4_10_total_in",{"$f":"'T2-B(PP1)'!$F$88","v":0},"#'T2-B(PP1)'!$F$88"]
["pp1_bl3_4_10_total_out",{"$f":"'T2-B(PP1)'!$I$88","v":0},"#'T2-B(PP1)'!$I$88"]
["pp1_bl3_4_10_unit",{"$f":"'T2-B(PP1)'!$C$88","v":0},"#'T2-B(PP1)'!$C$88"]
["pp1_bl3_4_10_unit_in",{"$f":"'T2-B(PP1)'!$D$88","v":0},"#'T2-B(PP1)'!$D$88"]
["pp1_bl3_4_10_units_out",{"$f":"'T2-B(PP1)'!$G$88","v":0},"#'T2-B(PP1)'!$G$88"]
["pp1_bl3_4_2_name",{"$f":"'T2-B(PP1)'!$B$80","v":0},"#'T2-B(PP1)'!$B$80"]
["pp1_bl3_4_2_rate_in",{"$f":"'T2-B(PP1)'!$E$80","v":0},"#'T2-B(PP1)'!$E$80"]
["pp1_bl3_4_2_rate_out",{"$f":"'T2-B(PP1)'!$H$80","v":0},"#'T2-B(PP1)'!$H$80"]
["pp1_bl3_4_2_total",{"$f":"'T2-B(PP1)'!$J$80","v":0},"#'T2-B(PP1)'!$J$80"]
["pp1_bl3_4_2_total_in",{"$f":"'T2-B(PP1)'!$F$80","v":0},"#'T2-B(PP1)'!$F$80"]
["pp1_bl3_4_2_total_out",{"$f":"'T2-B(PP1)'!$I$80","v":0},"#'T2-B(PP1)'!$I$80"]
["pp1_bl3_4_2_unit",{"$f":"'T2-B(PP1)'!$C$80","v":0},"#'T2-B(PP1)'!$C$80"]
["pp1_bl3_4_2_unit_in",{"$f":"'T2-B(PP1)'!$D$80","v":0},"#'T2-B(PP1)'!$D$80"]
["pp1_bl3_4_2_units_out",{"$f":"'T2-B(PP1)'!$G$80","v":0},"#'T2-B(PP1)'!$G$80"]
["pp1_bl3_4_3_name",{"$f":"'T2-B(PP1)'!$B$81","v":0},"#'T2-B(PP1)'!$B$81"]
["pp1_bl3_4_3_rate_in",{"$f":"'T2-B(PP1)'!$E$81","v":0},"#'T2-B(PP1)'!$E$81"]
["pp1_bl3_4_3_rate_out",{"$f":"'T2-B(PP1)'!$H$81","v":0},"#'T2-B(PP1)'!$H$81"]
["pp1_bl3_4_3_total",{"$f":"'T2-B(PP1)'!$J$81","v":0},"#'T2-B(PP1)'!$J$81"]
["pp1_bl3_4_3_total_in",{"$f":"'T2-B(PP1)'!$F$81","v":0},"#'T2-B(PP1)'!$F$81"]
["pp1_bl3_4_3_total_out",{"$f":"'T2-B(PP1)'!$I$81","v":0},"#'T2-B(PP1)'!$I$81"]
["pp1_bl3_4_3_unit",{"$f":"'T2-B(PP1)'!$C$81","v":0},"#'T2-B(PP1)'!$C$81"]
["pp1_bl3_4_3_unit_in",{"$f":"'T2-B(PP1)'!$D$81","v":0},"#'T2-B(PP1)'!$D$81"]
["pp1_bl3_4_3_units_out",{"$f":"'T2-B(PP1)'!$G$81","v":0},"#'T2-B(PP1)'!$G$81"]
["pp1_bl3_4_4_name",{"$f":"'T2-B(PP1)'!$B$82","v":0},"#'T2-B(PP1)'!$B$82"]
["pp1_bl3_4_4_rate_in",{"$f":"'T2-B(PP1)'!$E$82","v":0},"#'T2-B(PP1)'!$E$82"]
["pp1_bl3_4_4_rate_out",{"$f":"'T2-B(PP1)'!$H$82","v":0},"#'T2-B(PP1)'!$H$82"]
["pp1_bl3_4_4_total",{"$f":"'T2-B(PP1)'!$J$82","v":0},"#'T2-B(PP1)'!$J$82"]
["pp1_bl3_4_4_total_in",{"$f":"'T2-B(PP1)'!$F$82","v":0},"#'T2-B(PP1)'!$F$82"]
["pp1_bl3_4_4_total_out",{"$f":"'T2-B(PP1)'!$I$82","v":0},"#'T2-B(PP1)'!$I$82"]
["pp1_bl3_4_4_unit",{"$f":"'T2-B(PP1)'!$C$82","v":0},"#'T2-B(PP1)'!$C$82"]
["pp1_bl3_4_4_unit_in",{"$f":"'T2-B(PP1)'!$D$82","v":0},"#'T2-B(PP1)'!$D$82"]
["pp1_bl3_4_4_units_out",{"$f":"'T2-B(PP1)'!$G$82","v":0},"#'T2-B(PP1)'!$G$82"]
["pp1_bl3_4_5_name",{"$f":"'T2-B(PP1)'!$B$83","v":0},"#'T2-B(PP1)'!$B$83"]
["pp1_bl3_4_5_rate_in",{"$f":"'T2-B(PP1)'!$E$83","v":0},"#'T2-B(PP1)'!$E$83"]
["pp1_bl3_4_5_rate_out",{"$f":"'T2-B(PP1)'!$H$83","v":0},"#'T2-B(PP1)'!$H$83"]
["pp1_bl3_4_5_total",{"$f":"'T2-B(PP1)'!$J$83","v":0},"#'T2-B(PP1)'!$J$83"]
["pp1_bl3_4_5_total_in",{"$f":"'T2-B(PP1)'!$F$83","v":0},"#'T2-B(PP1)'!$F$83"]
["pp1_bl3_4_5_total_out",{"$f":"'T2-B(PP1)'!$I$83","v":0},"#'T2-B(PP1)'!$I$83"]
["pp1_bl3_4_5_unit",{"$f":"'T2-B(PP1)'!$C$83","v":0},"#'T2-B(PP1)'!$C$83"]
["pp1_bl3_4_5_unit_in",{"$f":"'T2-B(PP1)'!$D$83","v":0},"#'T2-B(PP1)'!$D$83"]
["pp1_bl3_4_5_units_out",{"$f":"'T2-B(PP1)'!$G$83","v":0},"#'T2-B(PP1)'!$G$83"]
["pp1_bl3_4_6_name",{"$f":"'T2-B(PP1)'!$B$84","v":0},"#'T2-B(PP1)'!$B$84"]
["pp1_bl3_4_6_rate_in",{"$f":"'T2-B(PP1)'!$E$84","v":0},"#'T2-B(PP1)'!$E$84"]
["pp1_bl3_4_6_rate_out",{"$f":"'T2-B(PP1)'!$H$84","v":0},"#'T2-B(PP1)'!$H$84"]
["pp1_bl3_4_6_total",{"$f":"'T2-B(PP1)'!$J$84","v":0},"#'T2-B(PP1)'!$J$84"]
["pp1_bl3_4_6_total_in",{"$f":"'T2-B(PP1)'!$F$84","v":0},"#'T2-B(PP1)'!$F$84"]
["pp1_bl3_4_6_total_out",{"$f":"'T2-B(PP1)'!$I$84","v":0},"#'T2-B(PP1)'!$I$84"]
["pp1_bl3_4_6_unit",{"$f":"'T2-B(PP1)'!$C$84","v":0},"#'T2-B(PP1)'!$C$84"]
["pp1_bl3_4_6_unit_in",{"$f":"'T2-B(PP1)'!$D$84","v":0},"#'T2-B(PP1)'!$D$84"]
["pp1_bl3_4_6_units_out",{"$f":"'T2-B(PP1)'!$G$84","v":0},"#'T2-B(PP1)'!$G$84"]
["pp1_bl3_4_7_name",{"$f":"'T2-B(PP1)'!$B$85","v":0},"#'T2-B(PP1)'!$B$85"]
["pp1_bl3_4_7_rate_in",{"$f":"'T2-B(PP1)'!$E$85","v":0},"#'T2-B(PP1)'!$E$85"]
["pp1_bl3_4_7_rate_out",{"$f":"'T2-B(PP1)'!$H$85","v":0},"#'T2-B(PP1)'!$H$85"]
["pp1_bl3_4_7_total",{"$f":"'T2-B(PP1)'!$J$85","v":0},"#'T2-B(PP1)'!$J$85"]
["pp1_bl3_4_7_total_in",{"$f":"'T2-B(PP1)'!$F$85","v":0},"#'T2-B(PP1)'!$F$85"]
["pp1_bl3_4_7_total_out",{"$f":"'T2-B(PP1)'!$I$85","v":0},"#'T2-B(PP1)'!$I$85"]
["pp1_bl3_4_7_unit",{"$f":"'T2-B(PP1)'!$C$85","v":0},"#'T2-B(PP1)'!$C$85"]
["pp1_bl3_4_7_unit_in",{"$f":"'T2-B(PP1)'!$D$85","v":0},"#'T2-B(PP1)'!$D$85"]
["pp1_bl3_4_7_units_out",{"$f":"'T2-B(PP1)'!$G$85","v":0},"#'T2-B(PP1)'!$G$85"]
["pp1_bl3_4_8_name",{"$f":"'T2-B(PP1)'!$B$86","v":0},"#'T2-B(PP1)'!$B$86"]
["pp1_bl3_4_8_rate_in",{"$f":"'T2-B(PP1)'!$E$86","v":0},"#'T2-B(PP1)'!$E$86"]
["pp1_bl3_4_8_rate_out",{"$f":"'T2-B(PP1)'!$H$86","v":0},"#'T2-B(PP1)'!$H$86"]
["pp1_bl3_4_8_total",{"$f":"'T2-B(PP1)'!$J$86","v":0},"#'T2-B(PP1)'!$J$86"]
["pp1_bl3_4_8_total_in",{"$f":"'T2-B(PP1)'!$F$86","v":0},"#'T2-B(PP1)'!$F$86"]
["pp1_bl3_4_8_total_out",{"$f":"'T2-B(PP1)'!$I$86","v":0},"#'T2-B(PP1)'!$I$86"]
["pp1_bl3_4_8_unit",{"$f":"'T2-B(PP1)'!$C$86","v":0},"#'T2-B(PP1)'!$C$86"]
["pp1_bl3_4_8_unit_in",{"$f":"'T2-B(PP1)'!$D$86","v":0},"#'T2-B(PP1)'!$D$86"]
["pp1_bl3_4_8_units_out",{"$f":"'T2-B(PP1)'!$G$86","v":0},"#'T2-B(PP1)'!$G$86"]
["pp1_bl3_4_9_name",{"$f":"'T2-B(PP1)'!$B$87","v":0},"#'T2-B(PP1)'!$B$87"]
["pp1_bl3_4_9_rate_in",{"$f":"'T2-B(PP1)'!$E$87","v":0},"#'T2-B(PP1)'!$E$87"]
["pp1_bl3_4_9_rate_out",{"$f":"'T2-B(PP1)'!$H$87","v":0},"#'T2-B(PP1)'!$H$87"]
["pp1_bl3_4_9_total",{"$f":"'T2-B(PP1)'!$J$87","v":0},"#'T2-B(PP1)'!$J$87"]
["pp1_bl3_4_9_total_in",{"$f":"'T2-B(PP1)'!$F$87","v":0},"#'T2-B(PP1)'!$F$87"]
["pp1_bl3_4_9_total_out",{"$f":"'T2-B(PP1)'!$I$87","v":0},"#'T2-B(PP1)'!$I$87"]
["pp1_bl3_4_9_unit",{"$f":"'T2-B(PP1)'!$C$87","v":0},"#'T2-B(PP1)'!$C$87"]
["pp1_bl3_4_9_unit_in",{"$f":"'T2-B(PP1)'!$D$87","v":0},"#'T2-B(PP1)'!$D$87"]
["pp1_bl3_4_9_units_out",{"$f":"'T2-B(PP1)'!$G$87","v":0},"#'T2-B(PP1)'!$G$87"]
["pp1_bl3_4_total",{"$f":"'T2-B(PP1)'!$J$78","v":0},"#'T2-B(PP1)'!$J$78"]
["pp1_bl3_4_total_in",{"$f":"'T2-B(PP1)'!$F$78","v":0},"#'T2-B(PP1)'!$F$78"]
["pp1_bl3_4_total_out",{"$f":"'T2-B(PP1)'!$I$78","v":0},"#'T2-B(PP1)'!$I$78"]
["pp1_bl3_total",{"$f":"'T2-B(PP1)'!$J$89","v":0},"#'T2-B(PP1)'!$J$89"]
["pp1_bl3_total_in",{"$f":"'T2-B(PP1)'!$F$89","v":0},"#'T2-B(PP1)'!$F$89"]
["pp1_bl3_total_out",{"$f":"'T2-B(PP1)'!$I$89","v":0},"#'T2-B(PP1)'!$I$89"]
["pp1_bl4_1_1_name",{"$f":"'T2-B(PP1)'!$B$94","v":0},"#'T2-B(PP1)'!$B$94"]
["pp1_bl4_1_1_rate_in",{"$f":"'T2-B(PP1)'!$E$94","v":0},"#'T2-B(PP1)'!$E$94"]
["pp1_bl4_1_1_rate_out",{"$f":"'T2-B(PP1)'!$H$94","v":0},"#'T2-B(PP1)'!$H$94"]
["pp1_bl4_1_1_total",{"$f":"'T2-B(PP1)'!$J$94","v":0},"#'T2-B(PP1)'!$J$94"]
["pp1_bl4_1_1_total_in",{"$f":"'T2-B(PP1)'!$F$94","v":0},"#'T2-B(PP1)'!$F$94"]
["pp1_bl4_1_1_total_out",{"$f":"'T2-B(PP1)'!$I$94","v":0},"#'T2-B(PP1)'!$I$94"]
["pp1_bl4_1_1_unit",{"$f":"'T2-B(PP1)'!$C$94","v":0},"#'T2-B(PP1)'!$C$94"]
["pp1_bl4_1_1_unit_in",{"$f":"'T2-B(PP1)'!$D$94","v":0},"#'T2-B(PP1)'!$D$94"]
["pp1_bl4_1_1_units_out",{"$f":"'T2-B(PP1)'!$G$94","v":0},"#'T2-B(PP1)'!$G$94"]
["pp1_bl4_1_10_name",{"$f":"'T2-B(PP1)'!$B$103","v":0},"#'T2-B(PP1)'!$B$103"]
["pp1_bl4_1_10_rate_in",{"$f":"'T2-B(PP1)'!$E$103","v":0},"#'T2-B(PP1)'!$E$103"]
["pp1_bl4_1_10_rate_out",{"$f":"'T2-B(PP1)'!$H$103","v":0},"#'T2-B(PP1)'!$H$103"]
["pp1_bl4_1_10_total",{"$f":"'T2-B(PP1)'!$J$103","v":0},"#'T2-B(PP1)'!$J$103"]
["pp1_bl4_1_10_total_in",{"$f":"'T2-B(PP1)'!$F$103","v":0},"#'T2-B(PP1)'!$F$103"]
["pp1_bl4_1_10_total_out",{"$f":"'T2-B(PP1)'!$I$103","v":0},"#'T2-B(PP1)'!$I$103"]
["pp1_bl4_1_10_unit",{"$f":"'T2-B(PP1)'!$C$103","v":0},"#'T2-B(PP1)'!$C$103"]
["pp1_bl4_1_10_unit_in",{"$f":"'T2-B(PP1)'!$D$103","v":0},"#'T2-B(PP1)'!$D$103"]
["pp1_bl4_1_10_units_out",{"$f":"'T2-B(PP1)'!$G$103","v":0},"#'T2-B(PP1)'!$G$103"]
["pp1_bl4_1_11_name",{"$f":"'T2-B(PP1)'!$B$104","v":0},"#'T2-B(PP1)'!$B$104"]
["pp1_bl4_1_11_rate_in",{"$f":"'T2-B(PP1)'!$E$104","v":0},"#'T2-B(PP1)'!$E$104"]
["pp1_bl4_1_11_rate_out",{"$f":"'T2-B(PP1)'!$H$104","v":0},"#'T2-B(PP1)'!$H$104"]
["pp1_bl4_1_11_total",{"$f":"'T2-B(PP1)'!$J$104","v":0},"#'T2-B(PP1)'!$J$104"]
["pp1_bl4_1_11_total_in",{"$f":"'T2-B(PP1)'!$F$104","v":0},"#'T2-B(PP1)'!$F$104"]
["pp1_bl4_1_11_total_out",{"$f":"'T2-B(PP1)'!$I$104","v":0},"#'T2-B(PP1)'!$I$104"]
["pp1_bl4_1_11_unit",{"$f":"'T2-B(PP1)'!$C$104","v":0},"#'T2-B(PP1)'!$C$104"]
["pp1_bl4_1_11_unit_in",{"$f":"'T2-B(PP1)'!$D$104","v":0},"#'T2-B(PP1)'!$D$104"]
["pp1_bl4_1_11_units_out",{"$f":"'T2-B(PP1)'!$G$104","v":0},"#'T2-B(PP1)'!$G$104"]
["pp1_bl4_1_12_name",{"$f":"'T2-B(PP1)'!$B$105","v":0},"#'T2-B(PP1)'!$B$105"]
["pp1_bl4_1_12_rate_in",{"$f":"'T2-B(PP1)'!$E$105","v":0},"#'T2-B(PP1)'!$E$105"]
["pp1_bl4_1_12_rate_out",{"$f":"'T2-B(PP1)'!$H$105","v":0},"#'T2-B(PP1)'!$H$105"]
["pp1_bl4_1_12_total",{"$f":"'T2-B(PP1)'!$J$105","v":0},"#'T2-B(PP1)'!$J$105"]
["pp1_bl4_1_12_total_in",{"$f":"'T2-B(PP1)'!$F$105","v":0},"#'T2-B(PP1)'!$F$105"]
["pp1_bl4_1_12_total_out",{"$f":"'T2-B(PP1)'!$I$105","v":0},"#'T2-B(PP1)'!$I$105"]
["pp1_bl4_1_12_unit",{"$f":"'T2-B(PP1)'!$C$105","v":0},"#'T2-B(PP1)'!$C$105"]
["pp1_bl4_1_12_unit_in",{"$f":"'T2-B(PP1)'!$D$105","v":0},"#'T2-B(PP1)'!$D$105"]
["pp1_bl4_1_12_units_out",{"$f":"'T2-B(PP1)'!$G$105","v":0},"#'T2-B(PP1)'!$G$105"]
["pp1_bl4_1_13_name",{"$f":"'T2-B(PP1)'!$B$106","v":0},"#'T2-B(PP1)'!$B$106"]
["pp1_bl4_1_13_rate_in",{"$f":"'T2-B(PP1)'!$E$106","v":0},"#'T2-B(PP1)'!$E$106"]
["pp1_bl4_1_13_rate_out",{"$f":"'T2-B(PP1)'!$H$106","v":0},"#'T2-B(PP1)'!$H$106"]
["pp1_bl4_1_13_total",{"$f":"'T2-B(PP1)'!$J$106","v":0},"#'T2-B(PP1)'!$J$106"]
["pp1_bl4_1_13_total_in",{"$f":"'T2-B(PP1)'!$F$106","v":0},"#'T2-B(PP1)'!$F$106"]
["pp1_bl4_1_13_total_out",{"$f":"'T2-B(PP1)'!$I$106","v":0},"#'T2-B(PP1)'!$I$106"]
["pp1_bl4_1_13_unit",{"$f":"'T2-B(PP1)'!$C$106","v":0},"#'T2-B(PP1)'!$C$106"]
["pp1_bl4_1_13_unit_in",{"$f":"'T2-B(PP1)'!$D$106","v":0},"#'T2-B(PP1)'!$D$106"]
["pp1_bl4_1_13_units_out",{"$f":"'T2-B(PP1)'!$G$106","v":0},"#'T2-B(PP1)'!$G$106"]
["pp1_bl4_1_14_name",{"$f":"'T2-B(PP1)'!$B$107","v":0},"#'T2-B(PP1)'!$B$107"]
["pp1_bl4_1_14_rate_in",{"$f":"'T2-B(PP1)'!$E$107","v":0},"#'T2-B(PP1)'!$E$107"]
["pp1_bl4_1_14_rate_out",{"$f":"'T2-B(PP1)'!$H$107","v":0},"#'T2-B(PP1)'!$H$107"]
["pp1_bl4_1_14_total",{"$f":"'T2-B(PP1)'!$J$107","v":0},"#'T2-B(PP1)'!$J$107"]
["pp1_bl4_1_14_total_in",{"$f":"'T2-B(PP1)'!$F$107","v":0},"#'T2-B(PP1)'!$F$107"]
["pp1_bl4_1_14_total_out",{"$f":"'T2-B(PP1)'!$I$107","v":0},"#'T2-B(PP1)'!$I$107"]
["pp1_bl4_1_14_unit",{"$f":"'T2-B(PP1)'!$C$107","v":0},"#'T2-B(PP1)'!$C$107"]
["pp1_bl4_1_14_unit_in",{"$f":"'T2-B(PP1)'!$D$107","v":0},"#'T2-B(PP1)'!$D$107"]
["pp1_bl4_1_14_units_out",{"$f":"'T2-B(PP1)'!$G$107","v":0},"#'T2-B(PP1)'!$G$107"]
["pp1_bl4_1_15_name",{"$f":"'T2-B(PP1)'!$B$108","v":0},"#'T2-B(PP1)'!$B$108"]
["pp1_bl4_1_15_rate_in",{"$f":"'T2-B(PP1)'!$E$108","v":0},"#'T2-B(PP1)'!$E$108"]
["pp1_bl4_1_15_rate_out",{"$f":"'T2-B(PP1)'!$H$108","v":0},"#'T2-B(PP1)'!$H$108"]
["pp1_bl4_1_15_total",{"$f":"'T2-B(PP1)'!$J$108","v":0},"#'T2-B(PP1)'!$J$108"]
["pp1_bl4_1_15_total_in",{"$f":"'T2-B(PP1)'!$F$108","v":0},"#'T2-B(PP1)'!$F$108"]
["pp1_bl4_1_15_total_out",{"$f":"'T2-B(PP1)'!$I$108","v":0},"#'T2-B(PP1)'!$I$108"]
["pp1_bl4_1_15_unit",{"$f":"'T2-B(PP1)'!$C$108","v":0},"#'T2-B(PP1)'!$C$108"]
["pp1_bl4_1_15_unit_in",{"$f":"'T2-B(PP1)'!$D$108","v":0},"#'T2-B(PP1)'!$D$108"]
["pp1_bl4_1_15_units_out",{"$f":"'T2-B(PP1)'!$G$108","v":0},"#'T2-B(PP1)'!$G$108"]
["pp1_bl4_1_16_name",{"$f":"'T2-B(PP1)'!$B$109","v":0},"#'T2-B(PP1)'!$B$109"]
["pp1_bl4_1_16_rate_in",{"$f":"'T2-B(PP1)'!$E$109","v":0},"#'T2-B(PP1)'!$E$109"]
["pp1_bl4_1_16_rate_out",{"$f":"'T2-B(PP1)'!$H$109","v":0},"#'T2-B(PP1)'!$H$109"]
["pp1_bl4_1_16_total",{"$f":"'T2-B(PP1)'!$J$109","v":0},"#'T2-B(PP1)'!$J$109"]
["pp1_bl4_1_16_total_in",{"$f":"'T2-B(PP1)'!$F$109","v":0},"#'T2-B(PP1)'!$F$109"]
["pp1_bl4_1_16_total_out",{"$f":"'T2-B(PP1)'!$I$109","v":0},"#'T2-B(PP1)'!$I$109"]
["pp1_bl4_1_16_unit",{"$f":"'T2-B(PP1)'!$C$109","v":0},"#'T2-B(PP1)'!$C$109"]
["pp1_bl4_1_16_unit_in",{"$f":"'T2-B(PP1)'!$D$109","v":0},"#'T2-B(PP1)'!$D$109"]
["pp1_bl4_1_16_units_out",{"$f":"'T2-B(PP1)'!$G$109","v":0},"#'T2-B(PP1)'!$G$109"]
["pp1_bl4_1_17_name",{"$f":"'T2-B(PP1)'!$B$110","v":0},"#'T2-B(PP1)'!$B$110"]
["pp1_bl4_1_17_rate_in",{"$f":"'T2-B(PP1)'!$E$110","v":0},"#'T2-B(PP1)'!$E$110"]
["pp1_bl4_1_17_rate_out",{"$f":"'T2-B(PP1)'!$H$110","v":0},"#'T2-B(PP1)'!$H$110"]
["pp1_bl4_1_17_total",{"$f":"'T2-B(PP1)'!$J$110","v":0},"#'T2-B(PP1)'!$J$110"]
["pp1_bl4_1_17_total_in",{"$f":"'T2-B(PP1)'!$F$110","v":0},"#'T2-B(PP1)'!$F$110"]
["pp1_bl4_1_17_total_out",{"$f":"'T2-B(PP1)'!$I$110","v":0},"#'T2-B(PP1)'!$I$110"]
["pp1_bl4_1_17_unit",{"$f":"'T2-B(PP1)'!$C$110","v":0},"#'T2-B(PP1)'!$C$110"]
["pp1_bl4_1_17_unit_in",{"$f":"'T2-B(PP1)'!$D$110","v":0},"#'T2-B(PP1)'!$D$110"]
["pp1_bl4_1_17_units_out",{"$f":"'T2-B(PP1)'!$G$110","v":0},"#'T2-B(PP1)'!$G$110"]
["pp1_bl4_1_18_name",{"$f":"'T2-B(PP1)'!$B$111","v":0},"#'T2-B(PP1)'!$B$111"]
["pp1_bl4_1_18_rate_in",{"$f":"'T2-B(PP1)'!$E$111","v":0},"#'T2-B(PP1)'!$E$111"]
["pp1_bl4_1_18_rate_out",{"$f":"'T2-B(PP1)'!$H$111","v":0},"#'T2-B(PP1)'!$H$111"]
["pp1_bl4_1_18_total",{"$f":"'T2-B(PP1)'!$J$111","v":0},"#'T2-B(PP1)'!$J$111"]
["pp1_bl4_1_18_total_in",{"$f":"'T2-B(PP1)'!$F$111","v":0},"#'T2-B(PP1)'!$F$111"]
["pp1_bl4_1_18_total_out",{"$f":"'T2-B(PP1)'!$I$111","v":0},"#'T2-B(PP1)'!$I$111"]
["pp1_bl4_1_18_unit",{"$f":"'T2-B(PP1)'!$C$111","v":0},"#'T2-B(PP1)'!$C$111"]
["pp1_bl4_1_18_unit_in",{"$f":"'T2-B(PP1)'!$D$111","v":0},"#'T2-B(PP1)'!$D$111"]
["pp1_bl4_1_18_units_out",{"$f":"'T2-B(PP1)'!$G$111","v":0},"#'T2-B(PP1)'!$G$111"]
["pp1_bl4_1_19_name",{"$f":"'T2-B(PP1)'!$B$112","v":0},"#'T2-B(PP1)'!$B$112"]
["pp1_bl4_1_19_rate_in",{"$f":"'T2-B(PP1)'!$E$112","v":0},"#'T2-B(PP1)'!$E$112"]
["pp1_bl4_1_19_rate_out",{"$f":"'T2-B(PP1)'!$H$112","v":0},"#'T2-B(PP1)'!$H$112"]
["pp1_bl4_1_19_total",{"$f":"'T2-B(PP1)'!$J$112","v":0},"#'T2-B(PP1)'!$J$112"]
["pp1_bl4_1_19_total_in",{"$f":"'T2-B(PP1)'!$F$112","v":0},"#'T2-B(PP1)'!$F$112"]
["pp1_bl4_1_19_total_out",{"$f":"'T2-B(PP1)'!$I$112","v":0},"#'T2-B(PP1)'!$I$112"]
["pp1_bl4_1_19_unit",{"$f":"'T2-B(PP1)'!$C$112","v":0},"#'T2-B(PP1)'!$C$112"]
["pp1_bl4_1_19_unit_in",{"$f":"'T2-B(PP1)'!$D$112","v":0},"#'T2-B(PP1)'!$D$112"]
["pp1_bl4_1_19_units_out",{"$f":"'T2-B(PP1)'!$G$112","v":0},"#'T2-B(PP1)'!$G$112"]
["pp1_bl4_1_2_name",{"$f":"'T2-B(PP1)'!$B$95","v":0},"#'T2-B(PP1)'!$B$95"]
["pp1_bl4_1_2_rate_in",{"$f":"'T2-B(PP1)'!$E$95","v":0},"#'T2-B(PP1)'!$E$95"]
["pp1_bl4_1_2_rate_out",{"$f":"'T2-B(PP1)'!$H$95","v":0},"#'T2-B(PP1)'!$H$95"]
["pp1_bl4_1_2_total",{"$f":"'T2-B(PP1)'!$J$95","v":0},"#'T2-B(PP1)'!$J$95"]
["pp1_bl4_1_2_total_in",{"$f":"'T2-B(PP1)'!$F$95","v":0},"#'T2-B(PP1)'!$F$95"]
["pp1_bl4_1_2_total_out",{"$f":"'T2-B(PP1)'!$I$95","v":0},"#'T2-B(PP1)'!$I$95"]
["pp1_bl4_1_2_unit",{"$f":"'T2-B(PP1)'!$C$95","v":0},"#'T2-B(PP1)'!$C$95"]
["pp1_bl4_1_2_unit_in",{"$f":"'T2-B(PP1)'!$D$95","v":0},"#'T2-B(PP1)'!$D$95"]
["pp1_bl4_1_2_units_out",{"$f":"'T2-B(PP1)'!$G$95","v":0},"#'T2-B(PP1)'!$G$95"]
["pp1_bl4_1_20_name",{"$f":"'T2-B(PP1)'!$B$113","v":0},"#'T2-B(PP1)'!$B$113"]
["pp1_bl4_1_20_rate_in",{"$f":"'T2-B(PP1)'!$E$113","v":0},"#'T2-B(PP1)'!$E$113"]
["pp1_bl4_1_20_rate_out",{"$f":"'T2-B(PP1)'!$H$113","v":0},"#'T2-B(PP1)'!$H$113"]
["pp1_bl4_1_20_total",{"$f":"'T2-B(PP1)'!$J$113","v":0},"#'T2-B(PP1)'!$J$113"]
["pp1_bl4_1_20_total_in",{"$f":"'T2-B(PP1)'!$F$113","v":0},"#'T2-B(PP1)'!$F$113"]
["pp1_bl4_1_20_total_out",{"$f":"'T2-B(PP1)'!$I$113","v":0},"#'T2-B(PP1)'!$I$113"]
["pp1_bl4_1_20_unit",{"$f":"'T2-B(PP1)'!$C$113","v":0},"#'T2-B(PP1)'!$C$113"]
["pp1_bl4_1_20_unit_in",{"$f":"'T2-B(PP1)'!$D$113","v":0},"#'T2-B(PP1)'!$D$113"]
["pp1_bl4_1_20_units_out",{"$f":"'T2-B(PP1)'!$G$113","v":0},"#'T2-B(PP1)'!$G$113"]
["pp1_bl4_1_3_name",{"$f":"'T2-B(PP1)'!$B$96","v":0},"#'T2-B(PP1)'!$B$96"]
["pp1_bl4_1_3_rate_in",{"$f":"'T2-B(PP1)'!$E$96","v":0},"#'T2-B(PP1)'!$E$96"]
["pp1_bl4_1_3_rate_out",{"$f":"'T2-B(PP1)'!$H$96","v":0},"#'T2-B(PP1)'!$H$96"]
["pp1_bl4_1_3_total",{"$f":"'T2-B(PP1)'!$J$96","v":0},"#'T2-B(PP1)'!$J$96"]
["pp1_bl4_1_3_total_in",{"$f":"'T2-B(PP1)'!$F$96","v":0},"#'T2-B(PP1)'!$F$96"]
["pp1_bl4_1_3_total_out",{"$f":"'T2-B(PP1)'!$I$96","v":0},"#'T2-B(PP1)'!$I$96"]
["pp1_bl4_1_3_unit",{"$f":"'T2-B(PP1)'!$C$96","v":0},"#'T2-B(PP1)'!$C$96"]
["pp1_bl4_1_3_unit_in",{"$f":"'T2-B(PP1)'!$D$96","v":0},"#'T2-B(PP1)'!$D$96"]
["pp1_bl4_1_3_units_out",{"$f":"'T2-B(PP1)'!$G$96","v":0},"#'T2-B(PP1)'!$G$96"]
["pp1_bl4_1_4_name",{"$f":"'T2-B(PP1)'!$B$97","v":0},"#'T2-B(PP1)'!$B$97"]
["pp1_bl4_1_4_rate_in",{"$f":"'T2-B(PP1)'!$E$97","v":0},"#'T2-B(PP1)'!$E$97"]
["pp1_bl4_1_4_rate_out",{"$f":"'T2-B(PP1)'!$H$97","v":0},"#'T2-B(PP1)'!$H$97"]
["pp1_bl4_1_4_total",{"$f":"'T2-B(PP1)'!$J$97","v":0},"#'T2-B(PP1)'!$J$97"]
["pp1_bl4_1_4_total_in",{"$f":"'T2-B(PP1)'!$F$97","v":0},"#'T2-B(PP1)'!$F$97"]
["pp1_bl4_1_4_total_out",{"$f":"'T2-B(PP1)'!$I$97","v":0},"#'T2-B(PP1)'!$I$97"]
["pp1_bl4_1_4_unit",{"$f":"'T2-B(PP1)'!$C$97","v":0},"#'T2-B(PP1)'!$C$97"]
["pp1_bl4_1_4_unit_in",{"$f":"'T2-B(PP1)'!$D$97","v":0},"#'T2-B(PP1)'!$D$97"]
["pp1_bl4_1_4_units_out",{"$f":"'T2-B(PP1)'!$G$97","v":0},"#'T2-B(PP1)'!$G$97"]
["pp1_bl4_1_5_name",{"$f":"'T2-B(PP1)'!$B$98","v":0},"#'T2-B(PP1)'!$B$98"]
["pp1_bl4_1_5_rate_in",{"$f":"'T2-B(PP1)'!$E$98","v":0},"#'T2-B(PP1)'!$E$98"]
["pp1_bl4_1_5_rate_out",{"$f":"'T2-B(PP1)'!$H$98","v":0},"#'T2-B(PP1)'!$H$98"]
["pp1_bl4_1_5_total",{"$f":"'T2-B(PP1)'!$J$98","v":0},"#'T2-B(PP1)'!$J$98"]
["pp1_bl4_1_5_total_in",{"$f":"'T2-B(PP1)'!$F$98","v":0},"#'T2-B(PP1)'!$F$98"]
["pp1_bl4_1_5_total_out",{"$f":"'T2-B(PP1)'!$I$98","v":0},"#'T2-B(PP1)'!$I$98"]
["pp1_bl4_1_5_unit",{"$f":"'T2-B(PP1)'!$C$98","v":0},"#'T2-B(PP1)'!$C$98"]
["pp1_bl4_1_5_unit_in",{"$f":"'T2-B(PP1)'!$D$98","v":0},"#'T2-B(PP1)'!$D$98"]
["pp1_bl4_1_5_units_out",{"$f":"'T2-B(PP1)'!$G$98","v":0},"#'T2-B(PP1)'!$G$98"]
["pp1_bl4_1_6_name",{"$f":"'T2-B(PP1)'!$B$99","v":0},"#'T2-B(PP1)'!$B$99"]
["pp1_bl4_1_6_rate_in",{"$f":"'T2-B(PP1)'!$E$99","v":0},"#'T2-B(PP1)'!$E$99"]
["pp1_bl4_1_6_rate_out",{"$f":"'T2-B(PP1)'!$H$99","v":0},"#'T2-B(PP1)'!$H$99"]
["pp1_bl4_1_6_total",{"$f":"'T2-B(PP1)'!$J$99","v":0},"#'T2-B(PP1)'!$J$99"]
["pp1_bl4_1_6_total_in",{"$f":"'T2-B(PP1)'!$F$99","v":0},"#'T2-B(PP1)'!$F$99"]
["pp1_bl4_1_6_total_out",{"$f":"'T2-B(PP1)'!$I$99","v":0},"#'T2-B(PP1)'!$I$99"]
["pp1_bl4_1_6_unit",{"$f":"'T2-B(PP1)'!$C$99","v":0},"#'T2-B(PP1)'!$C$99"]
["pp1_bl4_1_6_unit_in",{"$f":"'T2-B(PP1)'!$D$99","v":0},"#'T2-B(PP1)'!$D$99"]
["pp1_bl4_1_6_units_out",{"$f":"'T2-B(PP1)'!$G$99","v":0},"#'T2-B(PP1)'!$G$99"]
["pp1_bl4_1_7_name",{"$f":"'T2-B(PP1)'!$B$100","v":0},"#'T2-B(PP1)'!$B$100"]
["pp1_bl4_1_7_rate_in",{"$f":"'T2-B(PP1)'!$E$100","v":0},"#'T2-B(PP1)'!$E$100"]
["pp1_bl4_1_7_rate_out",{"$f":"'T2-B(PP1)'!$H$100","v":0},"#'T2-B(PP1)'!$H$100"]
["pp1_bl4_1_7_total",{"$f":"'T2-B(PP1)'!$J$100","v":0},"#'T2-B(PP1)'!$J$100"]
["pp1_bl4_1_7_total_in",{"$f":"'T2-B(PP1)'!$F$100","v":0},"#'T2-B(PP1)'!$F$100"]
["pp1_bl4_1_7_total_out",{"$f":"'T2-B(PP1)'!$I$100","v":0},"#'T2-B(PP1)'!$I$100"]
["pp1_bl4_1_7_unit",{"$f":"'T2-B(PP1)'!$C$100","v":0},"#'T2-B(PP1)'!$C$100"]
["pp1_bl4_1_7_unit_in",{"$f":"'T2-B(PP1)'!$D$100","v":0},"#'T2-B(PP1)'!$D$100"]
["pp1_bl4_1_7_units_out",{"$f":"'T2-B(PP1)'!$G$100","v":0},"#'T2-B(PP1)'!$G$100"]
["pp1_bl4_1_8_name",{"$f":"'T2-B(PP1)'!$B$101","v":0},"#'T2-B(PP1)'!$B$101"]
["pp1_bl4_1_8_rate_in",{"$f":"'T2-B(PP1)'!$E$101","v":0},"#'T2-B(PP1)'!$E$101"]
["pp1_bl4_1_8_rate_out",{"$f":"'T2-B(PP1)'!$H$101","v":0},"#'T2-B(PP1)'!$H$101"]
["pp1_bl4_1_8_total",{"$f":"'T2-B(PP1)'!$J$101","v":0},"#'T2-B(PP1)'!$J$101"]
["pp1_bl4_1_8_total_in",{"$f":"'T2-B(PP1)'!$F$101","v":0},"#'T2-B(PP1)'!$F$101"]
["pp1_bl4_1_8_total_out",{"$f":"'T2-B(PP1)'!$I$101","v":0},"#'T2-B(PP1)'!$I$101"]
["pp1_bl4_1_8_unit",{"$f":"'T2-B(PP1)'!$C$101","v":0},"#'T2-B(PP1)'!$C$101"]
["pp1_bl4_1_8_unit_in",{"$f":"'T2-B(PP1)'!$D$101","v":0},"#'T2-B(PP1)'!$D$101"]
["pp1_bl4_1_8_units_out",{"$f":"'T2-B(PP1)'!$G$101","v":0},"#'T2-B(PP1)'!$G$101"]
["pp1_bl4_1_9_name",{"$f":"'T2-B(PP1)'!$B$102","v":0},"#'T2-B(PP1)'!$B$102"]
["pp1_bl4_1_9_rate_in",{"$f":"'T2-B(PP1)'!$E$102","v":0},"#'T2-B(PP1)'!$E$102"]
["pp1_bl4_1_9_rate_out",{"$f":"'T2-B(PP1)'!$H$102","v":0},"#'T2-B(PP1)'!$H$102"]
["pp1_bl4_1_9_total",{"$f":"'T2-B(PP1)'!$J$102","v":0},"#'T2-B(PP1)'!$J$102"]
["pp1_bl4_1_9_total_in",{"$f":"'T2-B(PP1)'!$F$102","v":0},"#'T2-B(PP1)'!$F$102"]
["pp1_bl4_1_9_total_out",{"$f":"'T2-B(PP1)'!$I$102","v":0},"#'T2-B(PP1)'!$I$102"]
["pp1_bl4_1_9_unit",{"$f":"'T2-B(PP1)'!$C$102","v":0},"#'T2-B(PP1)'!$C$102"]
["pp1_bl4_1_9_unit_in",{"$f":"'T2-B(PP1)'!$D$102","v":0},"#'T2-B(PP1)'!$D$102"]
["pp1_bl4_1_9_units_out",{"$f":"'T2-B(PP1)'!$G$102","v":0},"#'T2-B(PP1)'!$G$102"]
["pp1_bl4_1_total",{"$f":"'T2-B(PP1)'!$J$93","v":0},"#'T2-B(PP1)'!$J$93"]
["pp1_bl4_1_total_in",{"$f":"'T2-B(PP1)'!$F$93","v":0},"#'T2-B(PP1)'!$F$93"]
["pp1_bl4_1_total_out",{"$f":"'T2-B(PP1)'!$I$93","v":0},"#'T2-B(PP1)'!$I$93"]
["pp1_bl4_10_1_name",{"$f":"'T2-B(PP1)'!$B$283","v":0},"#'T2-B(PP1)'!$B$283"]
["pp1_bl4_10_1_rate_in",{"$f":"'T2-B(PP1)'!$E$283","v":0},"#'T2-B(PP1)'!$E$283"]
["pp1_bl4_10_1_rate_out",{"$f":"'T2-B(PP1)'!$H$283","v":0},"#'T2-B(PP1)'!$H$283"]
["pp1_bl4_10_1_total",{"$f":"'T2-B(PP1)'!$J$283","v":0},"#'T2-B(PP1)'!$J$283"]
["pp1_bl4_10_1_total_in",{"$f":"'T2-B(PP1)'!$F$283","v":0},"#'T2-B(PP1)'!$F$283"]
["pp1_bl4_10_1_total_out",{"$f":"'T2-B(PP1)'!$I$283","v":0},"#'T2-B(PP1)'!$I$283"]
["pp1_bl4_10_1_unit",{"$f":"'T2-B(PP1)'!$C$283","v":0},"#'T2-B(PP1)'!$C$283"]
["pp1_bl4_10_1_unit_in",{"$f":"'T2-B(PP1)'!$D$283","v":0},"#'T2-B(PP1)'!$D$283"]
["pp1_bl4_10_1_units_out",{"$f":"'T2-B(PP1)'!$G$283","v":0},"#'T2-B(PP1)'!$G$283"]
["pp1_bl4_10_10_name",{"$f":"'T2-B(PP1)'!$B$292","v":0},"#'T2-B(PP1)'!$B$292"]
["pp1_bl4_10_10_rate_in",{"$f":"'T2-B(PP1)'!$E$292","v":0},"#'T2-B(PP1)'!$E$292"]
["pp1_bl4_10_10_rate_out",{"$f":"'T2-B(PP1)'!$H$292","v":0},"#'T2-B(PP1)'!$H$292"]
["pp1_bl4_10_10_total",{"$f":"'T2-B(PP1)'!$J$292","v":0},"#'T2-B(PP1)'!$J$292"]
["pp1_bl4_10_10_total_in",{"$f":"'T2-B(PP1)'!$F$292","v":0},"#'T2-B(PP1)'!$F$292"]
["pp1_bl4_10_10_total_out",{"$f":"'T2-B(PP1)'!$I$292","v":0},"#'T2-B(PP1)'!$I$292"]
["pp1_bl4_10_10_unit",{"$f":"'T2-B(PP1)'!$C$292","v":0},"#'T2-B(PP1)'!$C$292"]
["pp1_bl4_10_10_unit_in",{"$f":"'T2-B(PP1)'!$D$292","v":0},"#'T2-B(PP1)'!$D$292"]
["pp1_bl4_10_10_units_out",{"$f":"'T2-B(PP1)'!$G$292","v":0},"#'T2-B(PP1)'!$G$292"]
["pp1_bl4_10_11_name",{"$f":"'T2-B(PP1)'!$B$293","v":0},"#'T2-B(PP1)'!$B$293"]
["pp1_bl4_10_11_rate_in",{"$f":"'T2-B(PP1)'!$E$293","v":0},"#'T2-B(PP1)'!$E$293"]
["pp1_bl4_10_11_rate_out",{"$f":"'T2-B(PP1)'!$H$293","v":0},"#'T2-B(PP1)'!$H$293"]
["pp1_bl4_10_11_total",{"$f":"'T2-B(PP1)'!$J$293","v":0},"#'T2-B(PP1)'!$J$293"]
["pp1_bl4_10_11_total_in",{"$f":"'T2-B(PP1)'!$F$293","v":0},"#'T2-B(PP1)'!$F$293"]
["pp1_bl4_10_11_total_out",{"$f":"'T2-B(PP1)'!$I$293","v":0},"#'T2-B(PP1)'!$I$293"]
["pp1_bl4_10_11_unit",{"$f":"'T2-B(PP1)'!$C$293","v":0},"#'T2-B(PP1)'!$C$293"]
["pp1_bl4_10_11_unit_in",{"$f":"'T2-B(PP1)'!$D$293","v":0},"#'T2-B(PP1)'!$D$293"]
["pp1_bl4_10_11_units_out",{"$f":"'T2-B(PP1)'!$G$293","v":0},"#'T2-B(PP1)'!$G$293"]
["pp1_bl4_10_12_name",{"$f":"'T2-B(PP1)'!$B$294","v":0},"#'T2-B(PP1)'!$B$294"]
["pp1_bl4_10_12_rate_in",{"$f":"'T2-B(PP1)'!$E$294","v":0},"#'T2-B(PP1)'!$E$294"]
["pp1_bl4_10_12_rate_out",{"$f":"'T2-B(PP1)'!$H$294","v":0},"#'T2-B(PP1)'!$H$294"]
["pp1_bl4_10_12_total",{"$f":"'T2-B(PP1)'!$J$294","v":0},"#'T2-B(PP1)'!$J$294"]
["pp1_bl4_10_12_total_in",{"$f":"'T2-B(PP1)'!$F$294","v":0},"#'T2-B(PP1)'!$F$294"]
["pp1_bl4_10_12_total_out",{"$f":"'T2-B(PP1)'!$I$294","v":0},"#'T2-B(PP1)'!$I$294"]
["pp1_bl4_10_12_unit",{"$f":"'T2-B(PP1)'!$C$294","v":0},"#'T2-B(PP1)'!$C$294"]
["pp1_bl4_10_12_unit_in",{"$f":"'T2-B(PP1)'!$D$294","v":0},"#'T2-B(PP1)'!$D$294"]
["pp1_bl4_10_12_units_out",{"$f":"'T2-B(PP1)'!$G$294","v":0},"#'T2-B(PP1)'!$G$294"]
["pp1_bl4_10_13_name",{"$f":"'T2-B(PP1)'!$B$295","v":0},"#'T2-B(PP1)'!$B$295"]
["pp1_bl4_10_13_rate_in",{"$f":"'T2-B(PP1)'!$E$295","v":0},"#'T2-B(PP1)'!$E$295"]
["pp1_bl4_10_13_rate_out",{"$f":"'T2-B(PP1)'!$H$295","v":0},"#'T2-B(PP1)'!$H$295"]
["pp1_bl4_10_13_total",{"$f":"'T2-B(PP1)'!$J$295","v":0},"#'T2-B(PP1)'!$J$295"]
["pp1_bl4_10_13_total_in",{"$f":"'T2-B(PP1)'!$F$295","v":0},"#'T2-B(PP1)'!$F$295"]
["pp1_bl4_10_13_total_out",{"$f":"'T2-B(PP1)'!$I$295","v":0},"#'T2-B(PP1)'!$I$295"]
["pp1_bl4_10_13_unit",{"$f":"'T2-B(PP1)'!$C$295","v":0},"#'T2-B(PP1)'!$C$295"]
["pp1_bl4_10_13_unit_in",{"$f":"'T2-B(PP1)'!$D$295","v":0},"#'T2-B(PP1)'!$D$295"]
["pp1_bl4_10_13_units_out",{"$f":"'T2-B(PP1)'!$G$295","v":0},"#'T2-B(PP1)'!$G$295"]
["pp1_bl4_10_14_name",{"$f":"'T2-B(PP1)'!$B$296","v":0},"#'T2-B(PP1)'!$B$296"]
["pp1_bl4_10_14_rate_in",{"$f":"'T2-B(PP1)'!$E$296","v":0},"#'T2-B(PP1)'!$E$296"]
["pp1_bl4_10_14_rate_out",{"$f":"'T2-B(PP1)'!$H$296","v":0},"#'T2-B(PP1)'!$H$296"]
["pp1_bl4_10_14_total",{"$f":"'T2-B(PP1)'!$J$296","v":0},"#'T2-B(PP1)'!$J$296"]
["pp1_bl4_10_14_total_in",{"$f":"'T2-B(PP1)'!$F$296","v":0},"#'T2-B(PP1)'!$F$296"]
["pp1_bl4_10_14_total_out",{"$f":"'T2-B(PP1)'!$I$296","v":0},"#'T2-B(PP1)'!$I$296"]
["pp1_bl4_10_14_unit",{"$f":"'T2-B(PP1)'!$C$296","v":0},"#'T2-B(PP1)'!$C$296"]
["pp1_bl4_10_14_unit_in",{"$f":"'T2-B(PP1)'!$D$296","v":0},"#'T2-B(PP1)'!$D$296"]
["pp1_bl4_10_14_units_out",{"$f":"'T2-B(PP1)'!$G$296","v":0},"#'T2-B(PP1)'!$G$296"]
["pp1_bl4_10_15_name",{"$f":"'T2-B(PP1)'!$B$297","v":0},"#'T2-B(PP1)'!$B$297"]
["pp1_bl4_10_15_rate_in",{"$f":"'T2-B(PP1)'!$E$297","v":0},"#'T2-B(PP1)'!$E$297"]
["pp1_bl4_10_15_rate_out",{"$f":"'T2-B(PP1)'!$H$297","v":0},"#'T2-B(PP1)'!$H$297"]
["pp1_bl4_10_15_total",{"$f":"'T2-B(PP1)'!$J$297","v":0},"#'T2-B(PP1)'!$J$297"]
["pp1_bl4_10_15_total_in",{"$f":"'T2-B(PP1)'!$F$297","v":0},"#'T2-B(PP1)'!$F$297"]
["pp1_bl4_10_15_total_out",{"$f":"'T2-B(PP1)'!$I$297","v":0},"#'T2-B(PP1)'!$I$297"]
["pp1_bl4_10_15_unit",{"$f":"'T2-B(PP1)'!$C$297","v":0},"#'T2-B(PP1)'!$C$297"]
["pp1_bl4_10_15_unit_in",{"$f":"'T2-B(PP1)'!$D$297","v":0},"#'T2-B(PP1)'!$D$297"]
["pp1_bl4_10_15_units_out",{"$f":"'T2-B(PP1)'!$G$297","v":0},"#'T2-B(PP1)'!$G$297"]
["pp1_bl4_10_16_name",{"$f":"'T2-B(PP1)'!$B$298","v":0},"#'T2-B(PP1)'!$B$298"]
["pp1_bl4_10_16_rate_in",{"$f":"'T2-B(PP1)'!$E$298","v":0},"#'T2-B(PP1)'!$E$298"]
["pp1_bl4_10_16_rate_out",{"$f":"'T2-B(PP1)'!$H$298","v":0},"#'T2-B(PP1)'!$H$298"]
["pp1_bl4_10_16_total",{"$f":"'T2-B(PP1)'!$J$298","v":0},"#'T2-B(PP1)'!$J$298"]
["pp1_bl4_10_16_total_in",{"$f":"'T2-B(PP1)'!$F$298","v":0},"#'T2-B(PP1)'!$F$298"]
["pp1_bl4_10_16_total_out",{"$f":"'T2-B(PP1)'!$I$298","v":0},"#'T2-B(PP1)'!$I$298"]
["pp1_bl4_10_16_unit",{"$f":"'T2-B(PP1)'!$C$298","v":0},"#'T2-B(PP1)'!$C$298"]
["pp1_bl4_10_16_unit_in",{"$f":"'T2-B(PP1)'!$D$298","v":0},"#'T2-B(PP1)'!$D$298"]
["pp1_bl4_10_16_units_out",{"$f":"'T2-B(PP1)'!$G$298","v":0},"#'T2-B(PP1)'!$G$298"]
["pp1_bl4_10_17_name",{"$f":"'T2-B(PP1)'!$B$299","v":0},"#'T2-B(PP1)'!$B$299"]
["pp1_bl4_10_17_rate_in",{"$f":"'T2-B(PP1)'!$E$299","v":0},"#'T2-B(PP1)'!$E$299"]
["pp1_bl4_10_17_rate_out",{"$f":"'T2-B(PP1)'!$H$299","v":0},"#'T2-B(PP1)'!$H$299"]
["pp1_bl4_10_17_total",{"$f":"'T2-B(PP1)'!$J$299","v":0},"#'T2-B(PP1)'!$J$299"]
["pp1_bl4_10_17_total_in",{"$f":"'T2-B(PP1)'!$F$299","v":0},"#'T2-B(PP1)'!$F$299"]
["pp1_bl4_10_17_total_out",{"$f":"'T2-B(PP1)'!$I$299","v":0},"#'T2-B(PP1)'!$I$299"]
["pp1_bl4_10_17_unit",{"$f":"'T2-B(PP1)'!$C$299","v":0},"#'T2-B(PP1)'!$C$299"]
["pp1_bl4_10_17_unit_in",{"$f":"'T2-B(PP1)'!$D$299","v":0},"#'T2-B(PP1)'!$D$299"]
["pp1_bl4_10_17_units_out",{"$f":"'T2-B(PP1)'!$G$299","v":0},"#'T2-B(PP1)'!$G$299"]
["pp1_bl4_10_18_name",{"$f":"'T2-B(PP1)'!$B$300","v":0},"#'T2-B(PP1)'!$B$300"]
["pp1_bl4_10_18_rate_in",{"$f":"'T2-B(PP1)'!$E$300","v":0},"#'T2-B(PP1)'!$E$300"]
["pp1_bl4_10_18_rate_out",{"$f":"'T2-B(PP1)'!$H$300","v":0},"#'T2-B(PP1)'!$H$300"]
["pp1_bl4_10_18_total",{"$f":"'T2-B(PP1)'!$J$300","v":0},"#'T2-B(PP1)'!$J$300"]
["pp1_bl4_10_18_total_in",{"$f":"'T2-B(PP1)'!$F$300","v":0},"#'T2-B(PP1)'!$F$300"]
["pp1_bl4_10_18_total_out",{"$f":"'T2-B(PP1)'!$I$300","v":0},"#'T2-B(PP1)'!$I$300"]
["pp1_bl4_10_18_unit",{"$f":"'T2-B(PP1)'!$C$300","v":0},"#'T2-B(PP1)'!$C$300"]
["pp1_bl4_10_18_unit_in",{"$f":"'T2-B(PP1)'!$D$300","v":0},"#'T2-B(PP1)'!$D$300"]
["pp1_bl4_10_18_units_out",{"$f":"'T2-B(PP1)'!$G$300","v":0},"#'T2-B(PP1)'!$G$300"]
["pp1_bl4_10_19_name",{"$f":"'T2-B(PP1)'!$B$301","v":0},"#'T2-B(PP1)'!$B$301"]
["pp1_bl4_10_19_rate_in",{"$f":"'T2-B(PP1)'!$E$301","v":0},"#'T2-B(PP1)'!$E$301"]
["pp1_bl4_10_19_rate_out",{"$f":"'T2-B(PP1)'!$H$301","v":0},"#'T2-B(PP1)'!$H$301"]
["pp1_bl4_10_19_total",{"$f":"'T2-B(PP1)'!$J$301","v":0},"#'T2-B(PP1)'!$J$301"]
["pp1_bl4_10_19_total_in",{"$f":"'T2-B(PP1)'!$F$301","v":0},"#'T2-B(PP1)'!$F$301"]
["pp1_bl4_10_19_total_out",{"$f":"'T2-B(PP1)'!$I$301","v":0},"#'T2-B(PP1)'!$I$301"]
["pp1_bl4_10_19_unit",{"$f":"'T2-B(PP1)'!$C$301","v":0},"#'T2-B(PP1)'!$C$301"]
["pp1_bl4_10_19_unit_in",{"$f":"'T2-B(PP1)'!$D$301","v":0},"#'T2-B(PP1)'!$D$301"]
["pp1_bl4_10_19_units_out",{"$f":"'T2-B(PP1)'!$G$301","v":0},"#'T2-B(PP1)'!$G$301"]
["pp1_bl4_10_2_name",{"$f":"'T2-B(PP1)'!$B$284","v":0},"#'T2-B(PP1)'!$B$284"]
["pp1_bl4_10_2_rate_in",{"$f":"'T2-B(PP1)'!$E$284","v":0},"#'T2-B(PP1)'!$E$284"]
["pp1_bl4_10_2_rate_out",{"$f":"'T2-B(PP1)'!$H$284","v":0},"#'T2-B(PP1)'!$H$284"]
["pp1_bl4_10_2_total",{"$f":"'T2-B(PP1)'!$J$284","v":0},"#'T2-B(PP1)'!$J$284"]
["pp1_bl4_10_2_total_in",{"$f":"'T2-B(PP1)'!$F$284","v":0},"#'T2-B(PP1)'!$F$284"]
["pp1_bl4_10_2_total_out",{"$f":"'T2-B(PP1)'!$I$284","v":0},"#'T2-B(PP1)'!$I$284"]
["pp1_bl4_10_2_unit",{"$f":"'T2-B(PP1)'!$C$284","v":0},"#'T2-B(PP1)'!$C$284"]
["pp1_bl4_10_2_unit_in",{"$f":"'T2-B(PP1)'!$D$284","v":0},"#'T2-B(PP1)'!$D$284"]
["pp1_bl4_10_2_units_out",{"$f":"'T2-B(PP1)'!$G$284","v":0},"#'T2-B(PP1)'!$G$284"]
["pp1_bl4_10_20_name",{"$f":"'T2-B(PP1)'!$B$302","v":0},"#'T2-B(PP1)'!$B$302"]
["pp1_bl4_10_20_rate_in",{"$f":"'T2-B(PP1)'!$E$302","v":0},"#'T2-B(PP1)'!$E$302"]
["pp1_bl4_10_20_rate_out",{"$f":"'T2-B(PP1)'!$H$302","v":0},"#'T2-B(PP1)'!$H$302"]
["pp1_bl4_10_20_total",{"$f":"'T2-B(PP1)'!$J$302","v":0},"#'T2-B(PP1)'!$J$302"]
["pp1_bl4_10_20_total_in",{"$f":"'T2-B(PP1)'!$F$302","v":0},"#'T2-B(PP1)'!$F$302"]
["pp1_bl4_10_20_total_out",{"$f":"'T2-B(PP1)'!$I$302","v":0},"#'T2-B(PP1)'!$I$302"]
["pp1_bl4_10_20_unit",{"$f":"'T2-B(PP1)'!$C$302","v":0},"#'T2-B(PP1)'!$C$302"]
["pp1_bl4_10_20_unit_in",{"$f":"'T2-B(PP1)'!$D$302","v":0},"#'T2-B(PP1)'!$D$302"]
["pp1_bl4_10_20_units_out",{"$f":"'T2-B(PP1)'!$G$302","v":0},"#'T2-B(PP1)'!$G$302"]
["pp1_bl4_10_3_name",{"$f":"'T2-B(PP1)'!$B$285","v":0},"#'T2-B(PP1)'!$B$285"]
["pp1_bl4_10_3_rate_in",{"$f":"'T2-B(PP1)'!$E$285","v":0},"#'T2-B(PP1)'!$E$285"]
["pp1_bl4_10_3_rate_out",{"$f":"'T2-B(PP1)'!$H$285","v":0},"#'T2-B(PP1)'!$H$285"]
["pp1_bl4_10_3_total",{"$f":"'T2-B(PP1)'!$J$285","v":0},"#'T2-B(PP1)'!$J$285"]
["pp1_bl4_10_3_total_in",{"$f":"'T2-B(PP1)'!$F$285","v":0},"#'T2-B(PP1)'!$F$285"]
["pp1_bl4_10_3_total_out",{"$f":"'T2-B(PP1)'!$I$285","v":0},"#'T2-B(PP1)'!$I$285"]
["pp1_bl4_10_3_unit",{"$f":"'T2-B(PP1)'!$C$285","v":0},"#'T2-B(PP1)'!$C$285"]
["pp1_bl4_10_3_unit_in",{"$f":"'T2-B(PP1)'!$D$285","v":0},"#'T2-B(PP1)'!$D$285"]
["pp1_bl4_10_3_units_out",{"$f":"'T2-B(PP1)'!$G$285","v":0},"#'T2-B(PP1)'!$G$285"]
["pp1_bl4_10_4_name",{"$f":"'T2-B(PP1)'!$B$286","v":0},"#'T2-B(PP1)'!$B$286"]
["pp1_bl4_10_4_rate_in",{"$f":"'T2-B(PP1)'!$E$286","v":0},"#'T2-B(PP1)'!$E$286"]
["pp1_bl4_10_4_rate_out",{"$f":"'T2-B(PP1)'!$H$286","v":0},"#'T2-B(PP1)'!$H$286"]
["pp1_bl4_10_4_total",{"$f":"'T2-B(PP1)'!$J$286","v":0},"#'T2-B(PP1)'!$J$286"]
["pp1_bl4_10_4_total_in",{"$f":"'T2-B(PP1)'!$F$286","v":0},"#'T2-B(PP1)'!$F$286"]
["pp1_bl4_10_4_total_out",{"$f":"'T2-B(PP1)'!$I$286","v":0},"#'T2-B(PP1)'!$I$286"]
["pp1_bl4_10_4_unit",{"$f":"'T2-B(PP1)'!$C$286","v":0},"#'T2-B(PP1)'!$C$286"]
["pp1_bl4_10_4_unit_in",{"$f":"'T2-B(PP1)'!$D$286","v":0},"#'T2-B(PP1)'!$D$286"]
["pp1_bl4_10_4_units_out",{"$f":"'T2-B(PP1)'!$G$286","v":0},"#'T2-B(PP1)'!$G$286"]
["pp1_bl4_10_5_name",{"$f":"'T2-B(PP1)'!$B$287","v":0},"#'T2-B(PP1)'!$B$287"]
["pp1_bl4_10_5_rate_in",{"$f":"'T2-B(PP1)'!$E$287","v":0},"#'T2-B(PP1)'!$E$287"]
["pp1_bl4_10_5_rate_out",{"$f":"'T2-B(PP1)'!$H$287","v":0},"#'T2-B(PP1)'!$H$287"]
["pp1_bl4_10_5_total",{"$f":"'T2-B(PP1)'!$J$287","v":0},"#'T2-B(PP1)'!$J$287"]
["pp1_bl4_10_5_total_in",{"$f":"'T2-B(PP1)'!$F$287","v":0},"#'T2-B(PP1)'!$F$287"]
["pp1_bl4_10_5_total_out",{"$f":"'T2-B(PP1)'!$I$287","v":0},"#'T2-B(PP1)'!$I$287"]
["pp1_bl4_10_5_unit",{"$f":"'T2-B(PP1)'!$C$287","v":0},"#'T2-B(PP1)'!$C$287"]
["pp1_bl4_10_5_unit_in",{"$f":"'T2-B(PP1)'!$D$287","v":0},"#'T2-B(PP1)'!$D$287"]
["pp1_bl4_10_5_units_out",{"$f":"'T2-B(PP1)'!$G$287","v":0},"#'T2-B(PP1)'!$G$287"]
["pp1_bl4_10_6_name",{"$f":"'T2-B(PP1)'!$B$288","v":0},"#'T2-B(PP1)'!$B$288"]
["pp1_bl4_10_6_rate_in",{"$f":"'T2-B(PP1)'!$E$288","v":0},"#'T2-B(PP1)'!$E$288"]
["pp1_bl4_10_6_rate_out",{"$f":"'T2-B(PP1)'!$H$288","v":0},"#'T2-B(PP1)'!$H$288"]
["pp1_bl4_10_6_total",{"$f":"'T2-B(PP1)'!$J$288","v":0},"#'T2-B(PP1)'!$J$288"]
["pp1_bl4_10_6_total_in",{"$f":"'T2-B(PP1)'!$F$288","v":0},"#'T2-B(PP1)'!$F$288"]
["pp1_bl4_10_6_total_out",{"$f":"'T2-B(PP1)'!$I$288","v":0},"#'T2-B(PP1)'!$I$288"]
["pp1_bl4_10_6_unit",{"$f":"'T2-B(PP1)'!$C$288","v":0},"#'T2-B(PP1)'!$C$288"]
["pp1_bl4_10_6_unit_in",{"$f":"'T2-B(PP1)'!$D$288","v":0},"#'T2-B(PP1)'!$D$288"]
["pp1_bl4_10_6_units_out",{"$f":"'T2-B(PP1)'!$G$288","v":0},"#'T2-B(PP1)'!$G$288"]
["pp1_bl4_10_7_name",{"$f":"'T2-B(PP1)'!$B$289","v":0},"#'T2-B(PP1)'!$B$289"]
["pp1_bl4_10_7_rate_in",{"$f":"'T2-B(PP1)'!$E$289","v":0},"#'T2-B(PP1)'!$E$289"]
["pp1_bl4_10_7_rate_out",{"$f":"'T2-B(PP1)'!$H$289","v":0},"#'T2-B(PP1)'!$H$289"]
["pp1_bl4_10_7_total",{"$f":"'T2-B(PP1)'!$J$289","v":0},"#'T2-B(PP1)'!$J$289"]
["pp1_bl4_10_7_total_in",{"$f":"'T2-B(PP1)'!$F$289","v":0},"#'T2-B(PP1)'!$F$289"]
["pp1_bl4_10_7_total_out",{"$f":"'T2-B(PP1)'!$I$289","v":0},"#'T2-B(PP1)'!$I$289"]
["pp1_bl4_10_7_unit",{"$f":"'T2-B(PP1)'!$C$289","v":0},"#'T2-B(PP1)'!$C$289"]
["pp1_bl4_10_7_unit_in",{"$f":"'T2-B(PP1)'!$D$289","v":0},"#'T2-B(PP1)'!$D$289"]
["pp1_bl4_10_7_units_out",{"$f":"'T2-B(PP1)'!$G$289","v":0},"#'T2-B(PP1)'!$G$289"]
["pp1_bl4_10_8_name",{"$f":"'T2-B(PP1)'!$B$290","v":0},"#'T2-B(PP1)'!$B$290"]
["pp1_bl4_10_8_rate_in",{"$f":"'T2-B(PP1)'!$E$290","v":0},"#'T2-B(PP1)'!$E$290"]
["pp1_bl4_10_8_rate_out",{"$f":"'T2-B(PP1)'!$H$290","v":0},"#'T2-B(PP1)'!$H$290"]
["pp1_bl4_10_8_total",{"$f":"'T2-B(PP1)'!$J$290","v":0},"#'T2-B(PP1)'!$J$290"]
["pp1_bl4_10_8_total_in",{"$f":"'T2-B(PP1)'!$F$290","v":0},"#'T2-B(PP1)'!$F$290"]
["pp1_bl4_10_8_total_out",{"$f":"'T2-B(PP1)'!$I$290","v":0},"#'T2-B(PP1)'!$I$290"]
["pp1_bl4_10_8_unit",{"$f":"'T2-B(PP1)'!$C$290","v":0},"#'T2-B(PP1)'!$C$290"]
["pp1_bl4_10_8_unit_in",{"$f":"'T2-B(PP1)'!$D$290","v":0},"#'T2-B(PP1)'!$D$290"]
["pp1_bl4_10_8_units_out",{"$f":"'T2-B(PP1)'!$G$290","v":0},"#'T2-B(PP1)'!$G$290"]
["pp1_bl4_10_9_name",{"$f":"'T2-B(PP1)'!$B$291","v":0},"#'T2-B(PP1)'!$B$291"]
["pp1_bl4_10_9_rate_in",{"$f":"'T2-B(PP1)'!$E$291","v":0},"#'T2-B(PP1)'!$E$291"]
["pp1_bl4_10_9_rate_out",{"$f":"'T2-B(PP1)'!$H$291","v":0},"#'T2-B(PP1)'!$H$291"]
["pp1_bl4_10_9_total",{"$f":"'T2-B(PP1)'!$J$291","v":0},"#'T2-B(PP1)'!$J$291"]
["pp1_bl4_10_9_total_in",{"$f":"'T2-B(PP1)'!$F$291","v":0},"#'T2-B(PP1)'!$F$291"]
["pp1_bl4_10_9_total_out",{"$f":"'T2-B(PP1)'!$I$291","v":0},"#'T2-B(PP1)'!$I$291"]
["pp1_bl4_10_9_unit",{"$f":"'T2-B(PP1)'!$C$291","v":0},"#'T2-B(PP1)'!$C$291"]
["pp1_bl4_10_9_unit_in",{"$f":"'T2-B(PP1)'!$D$291","v":0},"#'T2-B(PP1)'!$D$291"]
["pp1_bl4_10_9_units_out",{"$f":"'T2-B(PP1)'!$G$291","v":0},"#'T2-B(PP1)'!$G$291"]
["pp1_bl4_10_total",{"$f":"'T2-B(PP1)'!$J$282","v":0},"#'T2-B(PP1)'!$J$282"]
["pp1_bl4_10_total_in",{"$f":"'T2-B(PP1)'!$F$282","v":0},"#'T2-B(PP1)'!$F$282"]
["pp1_bl4_10_total_out",{"$f":"'T2-B(PP1)'!$I$282","v":0},"#'T2-B(PP1)'!$I$282"]
["pp1_bl4_11_1_name",{"$f":"'T2-B(PP1)'!$B$304","v":0},"#'T2-B(PP1)'!$B$304"]
["pp1_bl4_11_1_rate_in",{"$f":"'T2-B(PP1)'!$E$304","v":0},"#'T2-B(PP1)'!$E$304"]
["pp1_bl4_11_1_rate_out",{"$f":"'T2-B(PP1)'!$H$304","v":0},"#'T2-B(PP1)'!$H$304"]
["pp1_bl4_11_1_total",{"$f":"'T2-B(PP1)'!$J$304","v":0},"#'T2-B(PP1)'!$J$304"]
["pp1_bl4_11_1_total_in",{"$f":"'T2-B(PP1)'!$F$304","v":0},"#'T2-B(PP1)'!$F$304"]
["pp1_bl4_11_1_total_out",{"$f":"'T2-B(PP1)'!$I$304","v":0},"#'T2-B(PP1)'!$I$304"]
["pp1_bl4_11_1_unit",{"$f":"'T2-B(PP1)'!$C$304","v":0},"#'T2-B(PP1)'!$C$304"]
["pp1_bl4_11_1_unit_in",{"$f":"'T2-B(PP1)'!$D$304","v":0},"#'T2-B(PP1)'!$D$304"]
["pp1_bl4_11_1_units_out",{"$f":"'T2-B(PP1)'!$G$304","v":0},"#'T2-B(PP1)'!$G$304"]
["pp1_bl4_11_10_name",{"$f":"'T2-B(PP1)'!$B$313","v":0},"#'T2-B(PP1)'!$B$313"]
["pp1_bl4_11_10_rate_in",{"$f":"'T2-B(PP1)'!$E$313","v":0},"#'T2-B(PP1)'!$E$313"]
["pp1_bl4_11_10_rate_out",{"$f":"'T2-B(PP1)'!$H$313","v":0},"#'T2-B(PP1)'!$H$313"]
["pp1_bl4_11_10_total",{"$f":"'T2-B(PP1)'!$J$313","v":0},"#'T2-B(PP1)'!$J$313"]
["pp1_bl4_11_10_total_in",{"$f":"'T2-B(PP1)'!$F$313","v":0},"#'T2-B(PP1)'!$F$313"]
["pp1_bl4_11_10_total_out",{"$f":"'T2-B(PP1)'!$I$313","v":0},"#'T2-B(PP1)'!$I$313"]
["pp1_bl4_11_10_unit",{"$f":"'T2-B(PP1)'!$C$313","v":0},"#'T2-B(PP1)'!$C$313"]
["pp1_bl4_11_10_unit_in",{"$f":"'T2-B(PP1)'!$D$313","v":0},"#'T2-B(PP1)'!$D$313"]
["pp1_bl4_11_10_units_out",{"$f":"'T2-B(PP1)'!$G$313","v":0},"#'T2-B(PP1)'!$G$313"]
["pp1_bl4_11_11_name",{"$f":"'T2-B(PP1)'!$B$314","v":0},"#'T2-B(PP1)'!$B$314"]
["pp1_bl4_11_11_rate_in",{"$f":"'T2-B(PP1)'!$E$314","v":0},"#'T2-B(PP1)'!$E$314"]
["pp1_bl4_11_11_rate_out",{"$f":"'T2-B(PP1)'!$H$314","v":0},"#'T2-B(PP1)'!$H$314"]
["pp1_bl4_11_11_total",{"$f":"'T2-B(PP1)'!$J$314","v":0},"#'T2-B(PP1)'!$J$314"]
["pp1_bl4_11_11_total_in",{"$f":"'T2-B(PP1)'!$F$314","v":0},"#'T2-B(PP1)'!$F$314"]
["pp1_bl4_11_11_total_out",{"$f":"'T2-B(PP1)'!$I$314","v":0},"#'T2-B(PP1)'!$I$314"]
["pp1_bl4_11_11_unit",{"$f":"'T2-B(PP1)'!$C$314","v":0},"#'T2-B(PP1)'!$C$314"]
["pp1_bl4_11_11_unit_in",{"$f":"'T2-B(PP1)'!$D$314","v":0},"#'T2-B(PP1)'!$D$314"]
["pp1_bl4_11_11_units_out",{"$f":"'T2-B(PP1)'!$G$314","v":0},"#'T2-B(PP1)'!$G$314"]
["pp1_bl4_11_12_name",{"$f":"'T2-B(PP1)'!$B$315","v":0},"#'T2-B(PP1)'!$B$315"]
["pp1_bl4_11_12_rate_in",{"$f":"'T2-B(PP1)'!$E$315","v":0},"#'T2-B(PP1)'!$E$315"]
["pp1_bl4_11_12_rate_out",{"$f":"'T2-B(PP1)'!$H$315","v":0},"#'T2-B(PP1)'!$H$315"]
["pp1_bl4_11_12_total",{"$f":"'T2-B(PP1)'!$J$315","v":0},"#'T2-B(PP1)'!$J$315"]
["pp1_bl4_11_12_total_in",{"$f":"'T2-B(PP1)'!$F$315","v":0},"#'T2-B(PP1)'!$F$315"]
["pp1_bl4_11_12_total_out",{"$f":"'T2-B(PP1)'!$I$315","v":0},"#'T2-B(PP1)'!$I$315"]
["pp1_bl4_11_12_unit",{"$f":"'T2-B(PP1)'!$C$315","v":0},"#'T2-B(PP1)'!$C$315"]
["pp1_bl4_11_12_unit_in",{"$f":"'T2-B(PP1)'!$D$315","v":0},"#'T2-B(PP1)'!$D$315"]
["pp1_bl4_11_12_units_out",{"$f":"'T2-B(PP1)'!$G$315","v":0},"#'T2-B(PP1)'!$G$315"]
["pp1_bl4_11_13_name",{"$f":"'T2-B(PP1)'!$B$316","v":0},"#'T2-B(PP1)'!$B$316"]
["pp1_bl4_11_13_rate_in",{"$f":"'T2-B(PP1)'!$E$316","v":0},"#'T2-B(PP1)'!$E$316"]
["pp1_bl4_11_13_rate_out",{"$f":"'T2-B(PP1)'!$H$316","v":0},"#'T2-B(PP1)'!$H$316"]
["pp1_bl4_11_13_total",{"$f":"'T2-B(PP1)'!$J$316","v":0},"#'T2-B(PP1)'!$J$316"]
["pp1_bl4_11_13_total_in",{"$f":"'T2-B(PP1)'!$F$316","v":0},"#'T2-B(PP1)'!$F$316"]
["pp1_bl4_11_13_total_out",{"$f":"'T2-B(PP1)'!$I$316","v":0},"#'T2-B(PP1)'!$I$316"]
["pp1_bl4_11_13_unit",{"$f":"'T2-B(PP1)'!$C$316","v":0},"#'T2-B(PP1)'!$C$316"]
["pp1_bl4_11_13_unit_in",{"$f":"'T2-B(PP1)'!$D$316","v":0},"#'T2-B(PP1)'!$D$316"]
["pp1_bl4_11_13_units_out",{"$f":"'T2-B(PP1)'!$G$316","v":0},"#'T2-B(PP1)'!$G$316"]
["pp1_bl4_11_14_name",{"$f":"'T2-B(PP1)'!$B$317","v":0},"#'T2-B(PP1)'!$B$317"]
["pp1_bl4_11_14_rate_in",{"$f":"'T2-B(PP1)'!$E$317","v":0},"#'T2-B(PP1)'!$E$317"]
["pp1_bl4_11_14_rate_out",{"$f":"'T2-B(PP1)'!$H$317","v":0},"#'T2-B(PP1)'!$H$317"]
["pp1_bl4_11_14_total",{"$f":"'T2-B(PP1)'!$J$317","v":0},"#'T2-B(PP1)'!$J$317"]
["pp1_bl4_11_14_total_in",{"$f":"'T2-B(PP1)'!$F$317","v":0},"#'T2-B(PP1)'!$F$317"]
["pp1_bl4_11_14_total_out",{"$f":"'T2-B(PP1)'!$I$317","v":0},"#'T2-B(PP1)'!$I$317"]
["pp1_bl4_11_14_unit",{"$f":"'T2-B(PP1)'!$C$317","v":0},"#'T2-B(PP1)'!$C$317"]
["pp1_bl4_11_14_unit_in",{"$f":"'T2-B(PP1)'!$D$317","v":0},"#'T2-B(PP1)'!$D$317"]
["pp1_bl4_11_14_units_out",{"$f":"'T2-B(PP1)'!$G$317","v":0},"#'T2-B(PP1)'!$G$317"]
["pp1_bl4_11_15_name",{"$f":"'T2-B(PP1)'!$B$318","v":0},"#'T2-B(PP1)'!$B$318"]
["pp1_bl4_11_15_rate_in",{"$f":"'T2-B(PP1)'!$E$318","v":0},"#'T2-B(PP1)'!$E$318"]
["pp1_bl4_11_15_rate_out",{"$f":"'T2-B(PP1)'!$H$318","v":0},"#'T2-B(PP1)'!$H$318"]
["pp1_bl4_11_15_total",{"$f":"'T2-B(PP1)'!$J$318","v":0},"#'T2-B(PP1)'!$J$318"]
["pp1_bl4_11_15_total_in",{"$f":"'T2-B(PP1)'!$F$318","v":0},"#'T2-B(PP1)'!$F$318"]
["pp1_bl4_11_15_total_out",{"$f":"'T2-B(PP1)'!$I$318","v":0},"#'T2-B(PP1)'!$I$318"]
["pp1_bl4_11_15_unit",{"$f":"'T2-B(PP1)'!$C$318","v":0},"#'T2-B(PP1)'!$C$318"]
["pp1_bl4_11_15_unit_in",{"$f":"'T2-B(PP1)'!$D$318","v":0},"#'T2-B(PP1)'!$D$318"]
["pp1_bl4_11_15_units_out",{"$f":"'T2-B(PP1)'!$G$318","v":0},"#'T2-B(PP1)'!$G$318"]
["pp1_bl4_11_16_name",{"$f":"'T2-B(PP1)'!$B$319","v":0},"#'T2-B(PP1)'!$B$319"]
["pp1_bl4_11_16_rate_in",{"$f":"'T2-B(PP1)'!$E$319","v":0},"#'T2-B(PP1)'!$E$319"]
["pp1_bl4_11_16_rate_out",{"$f":"'T2-B(PP1)'!$H$319","v":0},"#'T2-B(PP1)'!$H$319"]
["pp1_bl4_11_16_total",{"$f":"'T2-B(PP1)'!$J$319","v":0},"#'T2-B(PP1)'!$J$319"]
["pp1_bl4_11_16_total_in",{"$f":"'T2-B(PP1)'!$F$319","v":0},"#'T2-B(PP1)'!$F$319"]
["pp1_bl4_11_16_total_out",{"$f":"'T2-B(PP1)'!$I$319","v":0},"#'T2-B(PP1)'!$I$319"]
["pp1_bl4_11_16_unit",{"$f":"'T2-B(PP1)'!$C$319","v":0},"#'T2-B(PP1)'!$C$319"]
["pp1_bl4_11_16_unit_in",{"$f":"'T2-B(PP1)'!$D$319","v":0},"#'T2-B(PP1)'!$D$319"]
["pp1_bl4_11_16_units_out",{"$f":"'T2-B(PP1)'!$G$319","v":0},"#'T2-B(PP1)'!$G$319"]
["pp1_bl4_11_17_name",{"$f":"'T2-B(PP1)'!$B$320","v":0},"#'T2-B(PP1)'!$B$320"]
["pp1_bl4_11_17_rate_in",{"$f":"'T2-B(PP1)'!$E$320","v":0},"#'T2-B(PP1)'!$E$320"]
["pp1_bl4_11_17_rate_out",{"$f":"'T2-B(PP1)'!$H$320","v":0},"#'T2-B(PP1)'!$H$320"]
["pp1_bl4_11_17_total",{"$f":"'T2-B(PP1)'!$J$320","v":0},"#'T2-B(PP1)'!$J$320"]
["pp1_bl4_11_17_total_in",{"$f":"'T2-B(PP1)'!$F$320","v":0},"#'T2-B(PP1)'!$F$320"]
["pp1_bl4_11_17_total_out",{"$f":"'T2-B(PP1)'!$I$320","v":0},"#'T2-B(PP1)'!$I$320"]
["pp1_bl4_11_17_unit",{"$f":"'T2-B(PP1)'!$C$320","v":0},"#'T2-B(PP1)'!$C$320"]
["pp1_bl4_11_17_unit_in",{"$f":"'T2-B(PP1)'!$D$320","v":0},"#'T2-B(PP1)'!$D$320"]
["pp1_bl4_11_17_units_out",{"$f":"'T2-B(PP1)'!$G$320","v":0},"#'T2-B(PP1)'!$G$320"]
["pp1_bl4_11_18_name",{"$f":"'T2-B(PP1)'!$B$321","v":0},"#'T2-B(PP1)'!$B$321"]
["pp1_bl4_11_18_rate_in",{"$f":"'T2-B(PP1)'!$E$321","v":0},"#'T2-B(PP1)'!$E$321"]
["pp1_bl4_11_18_rate_out",{"$f":"'T2-B(PP1)'!$H$321","v":0},"#'T2-B(PP1)'!$H$321"]
["pp1_bl4_11_18_total",{"$f":"'T2-B(PP1)'!$J$321","v":0},"#'T2-B(PP1)'!$J$321"]
["pp1_bl4_11_18_total_in",{"$f":"'T2-B(PP1)'!$F$321","v":0},"#'T2-B(PP1)'!$F$321"]
["pp1_bl4_11_18_total_out",{"$f":"'T2-B(PP1)'!$I$321","v":0},"#'T2-B(PP1)'!$I$321"]
["pp1_bl4_11_18_unit",{"$f":"'T2-B(PP1)'!$C$321","v":0},"#'T2-B(PP1)'!$C$321"]
["pp1_bl4_11_18_unit_in",{"$f":"'T2-B(PP1)'!$D$321","v":0},"#'T2-B(PP1)'!$D$321"]
["pp1_bl4_11_18_units_out",{"$f":"'T2-B(PP1)'!$G$321","v":0},"#'T2-B(PP1)'!$G$321"]
["pp1_bl4_11_19_name",{"$f":"'T2-B(PP1)'!$B$322","v":0},"#'T2-B(PP1)'!$B$322"]
["pp1_bl4_11_19_rate_in",{"$f":"'T2-B(PP1)'!$E$322","v":0},"#'T2-B(PP1)'!$E$322"]
["pp1_bl4_11_19_rate_out",{"$f":"'T2-B(PP1)'!$H$322","v":0},"#'T2-B(PP1)'!$H$322"]
["pp1_bl4_11_19_total",{"$f":"'T2-B(PP1)'!$J$322","v":0},"#'T2-B(PP1)'!$J$322"]
["pp1_bl4_11_19_total_in",{"$f":"'T2-B(PP1)'!$F$322","v":0},"#'T2-B(PP1)'!$F$322"]
["pp1_bl4_11_19_total_out",{"$f":"'T2-B(PP1)'!$I$322","v":0},"#'T2-B(PP1)'!$I$322"]
["pp1_bl4_11_19_unit",{"$f":"'T2-B(PP1)'!$C$322","v":0},"#'T2-B(PP1)'!$C$322"]
["pp1_bl4_11_19_unit_in",{"$f":"'T2-B(PP1)'!$D$322","v":0},"#'T2-B(PP1)'!$D$322"]
["pp1_bl4_11_19_units_out",{"$f":"'T2-B(PP1)'!$G$322","v":0},"#'T2-B(PP1)'!$G$322"]
["pp1_bl4_11_2_name",{"$f":"'T2-B(PP1)'!$B$305","v":0},"#'T2-B(PP1)'!$B$305"]
["pp1_bl4_11_2_rate_in",{"$f":"'T2-B(PP1)'!$E$305","v":0},"#'T2-B(PP1)'!$E$305"]
["pp1_bl4_11_2_rate_out",{"$f":"'T2-B(PP1)'!$H$305","v":0},"#'T2-B(PP1)'!$H$305"]
["pp1_bl4_11_2_total",{"$f":"'T2-B(PP1)'!$J$305","v":0},"#'T2-B(PP1)'!$J$305"]
["pp1_bl4_11_2_total_in",{"$f":"'T2-B(PP1)'!$F$305","v":0},"#'T2-B(PP1)'!$F$305"]
["pp1_bl4_11_2_total_out",{"$f":"'T2-B(PP1)'!$I$305","v":0},"#'T2-B(PP1)'!$I$305"]
["pp1_bl4_11_2_unit",{"$f":"'T2-B(PP1)'!$C$305","v":0},"#'T2-B(PP1)'!$C$305"]
["pp1_bl4_11_2_unit_in",{"$f":"'T2-B(PP1)'!$D$305","v":0},"#'T2-B(PP1)'!$D$305"]
["pp1_bl4_11_2_units_out",{"$f":"'T2-B(PP1)'!$G$305","v":0},"#'T2-B(PP1)'!$G$305"]
["pp1_bl4_11_20_name",{"$f":"'T2-B(PP1)'!$B$323","v":0},"#'T2-B(PP1)'!$B$323"]
["pp1_bl4_11_20_rate_in",{"$f":"'T2-B(PP1)'!$E$323","v":0},"#'T2-B(PP1)'!$E$323"]
["pp1_bl4_11_20_rate_out",{"$f":"'T2-B(PP1)'!$H$323","v":0},"#'T2-B(PP1)'!$H$323"]
["pp1_bl4_11_20_total",{"$f":"'T2-B(PP1)'!$J$323","v":0},"#'T2-B(PP1)'!$J$323"]
["pp1_bl4_11_20_total_in",{"$f":"'T2-B(PP1)'!$F$323","v":0},"#'T2-B(PP1)'!$F$323"]
["pp1_bl4_11_20_total_out",{"$f":"'T2-B(PP1)'!$I$323","v":0},"#'T2-B(PP1)'!$I$323"]
["pp1_bl4_11_20_unit",{"$f":"'T2-B(PP1)'!$C$323","v":0},"#'T2-B(PP1)'!$C$323"]
["pp1_bl4_11_20_unit_in",{"$f":"'T2-B(PP1)'!$D$323","v":0},"#'T2-B(PP1)'!$D$323"]
["pp1_bl4_11_20_units_out",{"$f":"'T2-B(PP1)'!$G$323","v":0},"#'T2-B(PP1)'!$G$323"]
["pp1_bl4_11_3_name",{"$f":"'T2-B(PP1)'!$B$306","v":0},"#'T2-B(PP1)'!$B$306"]
["pp1_bl4_11_3_rate_in",{"$f":"'T2-B(PP1)'!$E$306","v":0},"#'T2-B(PP1)'!$E$306"]
["pp1_bl4_11_3_rate_out",{"$f":"'T2-B(PP1)'!$H$306","v":0},"#'T2-B(PP1)'!$H$306"]
["pp1_bl4_11_3_total",{"$f":"'T2-B(PP1)'!$J$306","v":0},"#'T2-B(PP1)'!$J$306"]
["pp1_bl4_11_3_total_in",{"$f":"'T2-B(PP1)'!$F$306","v":0},"#'T2-B(PP1)'!$F$306"]
["pp1_bl4_11_3_total_out",{"$f":"'T2-B(PP1)'!$I$306","v":0},"#'T2-B(PP1)'!$I$306"]
["pp1_bl4_11_3_unit",{"$f":"'T2-B(PP1)'!$C$306","v":0},"#'T2-B(PP1)'!$C$306"]
["pp1_bl4_11_3_unit_in",{"$f":"'T2-B(PP1)'!$D$306","v":0},"#'T2-B(PP1)'!$D$306"]
["pp1_bl4_11_3_units_out",{"$f":"'T2-B(PP1)'!$G$306","v":0},"#'T2-B(PP1)'!$G$306"]
["pp1_bl4_11_4_name",{"$f":"'T2-B(PP1)'!$B$307","v":0},"#'T2-B(PP1)'!$B$307"]
["pp1_bl4_11_4_rate_in",{"$f":"'T2-B(PP1)'!$E$307","v":0},"#'T2-B(PP1)'!$E$307"]
["pp1_bl4_11_4_rate_out",{"$f":"'T2-B(PP1)'!$H$307","v":0},"#'T2-B(PP1)'!$H$307"]
["pp1_bl4_11_4_total",{"$f":"'T2-B(PP1)'!$J$307","v":0},"#'T2-B(PP1)'!$J$307"]
["pp1_bl4_11_4_total_in",{"$f":"'T2-B(PP1)'!$F$307","v":0},"#'T2-B(PP1)'!$F$307"]
["pp1_bl4_11_4_total_out",{"$f":"'T2-B(PP1)'!$I$307","v":0},"#'T2-B(PP1)'!$I$307"]
["pp1_bl4_11_4_unit",{"$f":"'T2-B(PP1)'!$C$307","v":0},"#'T2-B(PP1)'!$C$307"]
["pp1_bl4_11_4_unit_in",{"$f":"'T2-B(PP1)'!$D$307","v":0},"#'T2-B(PP1)'!$D$307"]
["pp1_bl4_11_4_units_out",{"$f":"'T2-B(PP1)'!$G$307","v":0},"#'T2-B(PP1)'!$G$307"]
["pp1_bl4_11_5_name",{"$f":"'T2-B(PP1)'!$B$308","v":0},"#'T2-B(PP1)'!$B$308"]
["pp1_bl4_11_5_rate_in",{"$f":"'T2-B(PP1)'!$E$308","v":0},"#'T2-B(PP1)'!$E$308"]
["pp1_bl4_11_5_rate_out",{"$f":"'T2-B(PP1)'!$H$308","v":0},"#'T2-B(PP1)'!$H$308"]
["pp1_bl4_11_5_total",{"$f":"'T2-B(PP1)'!$J$308","v":0},"#'T2-B(PP1)'!$J$308"]
["pp1_bl4_11_5_total_in",{"$f":"'T2-B(PP1)'!$F$308","v":0},"#'T2-B(PP1)'!$F$308"]
["pp1_bl4_11_5_total_out",{"$f":"'T2-B(PP1)'!$I$308","v":0},"#'T2-B(PP1)'!$I$308"]
["pp1_bl4_11_5_unit",{"$f":"'T2-B(PP1)'!$C$308","v":0},"#'T2-B(PP1)'!$C$308"]
["pp1_bl4_11_5_unit_in",{"$f":"'T2-B(PP1)'!$D$308","v":0},"#'T2-B(PP1)'!$D$308"]
["pp1_bl4_11_5_units_out",{"$f":"'T2-B(PP1)'!$G$308","v":0},"#'T2-B(PP1)'!$G$308"]
["pp1_bl4_11_6_name",{"$f":"'T2-B(PP1)'!$B$309","v":0},"#'T2-B(PP1)'!$B$309"]
["pp1_bl4_11_6_rate_in",{"$f":"'T2-B(PP1)'!$E$309","v":0},"#'T2-B(PP1)'!$E$309"]
["pp1_bl4_11_6_rate_out",{"$f":"'T2-B(PP1)'!$H$309","v":0},"#'T2-B(PP1)'!$H$309"]
["pp1_bl4_11_6_total",{"$f":"'T2-B(PP1)'!$J$309","v":0},"#'T2-B(PP1)'!$J$309"]
["pp1_bl4_11_6_total_in",{"$f":"'T2-B(PP1)'!$F$309","v":0},"#'T2-B(PP1)'!$F$309"]
["pp1_bl4_11_6_total_out",{"$f":"'T2-B(PP1)'!$I$309","v":0},"#'T2-B(PP1)'!$I$309"]
["pp1_bl4_11_6_unit",{"$f":"'T2-B(PP1)'!$C$309","v":0},"#'T2-B(PP1)'!$C$309"]
["pp1_bl4_11_6_unit_in",{"$f":"'T2-B(PP1)'!$D$309","v":0},"#'T2-B(PP1)'!$D$309"]
["pp1_bl4_11_6_units_out",{"$f":"'T2-B(PP1)'!$G$309","v":0},"#'T2-B(PP1)'!$G$309"]
["pp1_bl4_11_7_name",{"$f":"'T2-B(PP1)'!$B$310","v":0},"#'T2-B(PP1)'!$B$310"]
["pp1_bl4_11_7_rate_in",{"$f":"'T2-B(PP1)'!$E$310","v":0},"#'T2-B(PP1)'!$E$310"]
["pp1_bl4_11_7_rate_out",{"$f":"'T2-B(PP1)'!$H$310","v":0},"#'T2-B(PP1)'!$H$310"]
["pp1_bl4_11_7_total",{"$f":"'T2-B(PP1)'!$J$310","v":0},"#'T2-B(PP1)'!$J$310"]
["pp1_bl4_11_7_total_in",{"$f":"'T2-B(PP1)'!$F$310","v":0},"#'T2-B(PP1)'!$F$310"]
["pp1_bl4_11_7_total_out",{"$f":"'T2-B(PP1)'!$I$310","v":0},"#'T2-B(PP1)'!$I$310"]
["pp1_bl4_11_7_unit",{"$f":"'T2-B(PP1)'!$C$310","v":0},"#'T2-B(PP1)'!$C$310"]
["pp1_bl4_11_7_unit_in",{"$f":"'T2-B(PP1)'!$D$310","v":0},"#'T2-B(PP1)'!$D$310"]
["pp1_bl4_11_7_units_out",{"$f":"'T2-B(PP1)'!$G$310","v":0},"#'T2-B(PP1)'!$G$310"]
["pp1_bl4_11_8_name",{"$f":"'T2-B(PP1)'!$B$311","v":0},"#'T2-B(PP1)'!$B$311"]
["pp1_bl4_11_8_rate_in",{"$f":"'T2-B(PP1)'!$E$311","v":0},"#'T2-B(PP1)'!$E$311"]
["pp1_bl4_11_8_rate_out",{"$f":"'T2-B(PP1)'!$H$311","v":0},"#'T2-B(PP1)'!$H$311"]
["pp1_bl4_11_8_total",{"$f":"'T2-B(PP1)'!$J$311","v":0},"#'T2-B(PP1)'!$J$311"]
["pp1_bl4_11_8_total_in",{"$f":"'T2-B(PP1)'!$F$311","v":0},"#'T2-B(PP1)'!$F$311"]
["pp1_bl4_11_8_total_out",{"$f":"'T2-B(PP1)'!$I$311","v":0},"#'T2-B(PP1)'!$I$311"]
["pp1_bl4_11_8_unit",{"$f":"'T2-B(PP1)'!$C$311","v":0},"#'T2-B(PP1)'!$C$311"]
["pp1_bl4_11_8_unit_in",{"$f":"'T2-B(PP1)'!$D$311","v":0},"#'T2-B(PP1)'!$D$311"]
["pp1_bl4_11_8_units_out",{"$f":"'T2-B(PP1)'!$G$311","v":0},"#'T2-B(PP1)'!$G$311"]
["pp1_bl4_11_9_name",{"$f":"'T2-B(PP1)'!$B$312","v":0},"#'T2-B(PP1)'!$B$312"]
["pp1_bl4_11_9_rate_in",{"$f":"'T2-B(PP1)'!$E$312","v":0},"#'T2-B(PP1)'!$E$312"]
["pp1_bl4_11_9_rate_out",{"$f":"'T2-B(PP1)'!$H$312","v":0},"#'T2-B(PP1)'!$H$312"]
["pp1_bl4_11_9_total",{"$f":"'T2-B(PP1)'!$J$312","v":0},"#'T2-B(PP1)'!$J$312"]
["pp1_bl4_11_9_total_in",{"$f":"'T2-B(PP1)'!$F$312","v":0},"#'T2-B(PP1)'!$F$312"]
["pp1_bl4_11_9_total_out",{"$f":"'T2-B(PP1)'!$I$312","v":0},"#'T2-B(PP1)'!$I$312"]
["pp1_bl4_11_9_unit",{"$f":"'T2-B(PP1)'!$C$312","v":0},"#'T2-B(PP1)'!$C$312"]
["pp1_bl4_11_9_unit_in",{"$f":"'T2-B(PP1)'!$D$312","v":0},"#'T2-B(PP1)'!$D$312"]
["pp1_bl4_11_9_units_out",{"$f":"'T2-B(PP1)'!$G$312","v":0},"#'T2-B(PP1)'!$G$312"]
["pp1_bl4_11_total",{"$f":"'T2-B(PP1)'!$J$303","v":0},"#'T2-B(PP1)'!$J$303"]
["pp1_bl4_11_total_in",{"$f":"'T2-B(PP1)'!$F$303","v":0},"#'T2-B(PP1)'!$F$303"]
["pp1_bl4_11_total_out",{"$f":"'T2-B(PP1)'!$I$303","v":0},"#'T2-B(PP1)'!$I$303"]
["pp1_bl4_12_1_name",{"$f":"'T2-B(PP1)'!$B$325","v":0},"#'T2-B(PP1)'!$B$325"]
["pp1_bl4_12_1_rate_in",{"$f":"'T2-B(PP1)'!$E$325","v":0},"#'T2-B(PP1)'!$E$325"]
["pp1_bl4_12_1_rate_out",{"$f":"'T2-B(PP1)'!$H$325","v":0},"#'T2-B(PP1)'!$H$325"]
["pp1_bl4_12_1_total",{"$f":"'T2-B(PP1)'!$J$325","v":0},"#'T2-B(PP1)'!$J$325"]
["pp1_bl4_12_1_total_in",{"$f":"'T2-B(PP1)'!$F$325","v":0},"#'T2-B(PP1)'!$F$325"]
["pp1_bl4_12_1_total_out",{"$f":"'T2-B(PP1)'!$I$325","v":0},"#'T2-B(PP1)'!$I$325"]
["pp1_bl4_12_1_unit",{"$f":"'T2-B(PP1)'!$C$325","v":0},"#'T2-B(PP1)'!$C$325"]
["pp1_bl4_12_1_unit_in",{"$f":"'T2-B(PP1)'!$D$325","v":0},"#'T2-B(PP1)'!$D$325"]
["pp1_bl4_12_1_units_out",{"$f":"'T2-B(PP1)'!$G$325","v":0},"#'T2-B(PP1)'!$G$325"]
["pp1_bl4_12_10_name",{"$f":"'T2-B(PP1)'!$B$334","v":0},"#'T2-B(PP1)'!$B$334"]
["pp1_bl4_12_10_rate_in",{"$f":"'T2-B(PP1)'!$E$334","v":0},"#'T2-B(PP1)'!$E$334"]
["pp1_bl4_12_10_rate_out",{"$f":"'T2-B(PP1)'!$H$334","v":0},"#'T2-B(PP1)'!$H$334"]
["pp1_bl4_12_10_total",{"$f":"'T2-B(PP1)'!$J$334","v":0},"#'T2-B(PP1)'!$J$334"]
["pp1_bl4_12_10_total_in",{"$f":"'T2-B(PP1)'!$F$334","v":0},"#'T2-B(PP1)'!$F$334"]
["pp1_bl4_12_10_total_out",{"$f":"'T2-B(PP1)'!$I$334","v":0},"#'T2-B(PP1)'!$I$334"]
["pp1_bl4_12_10_unit",{"$f":"'T2-B(PP1)'!$C$334","v":0},"#'T2-B(PP1)'!$C$334"]
["pp1_bl4_12_10_unit_in",{"$f":"'T2-B(PP1)'!$D$334","v":0},"#'T2-B(PP1)'!$D$334"]
["pp1_bl4_12_10_units_out",{"$f":"'T2-B(PP1)'!$G$334","v":0},"#'T2-B(PP1)'!$G$334"]
["pp1_bl4_12_11_name",{"$f":"'T2-B(PP1)'!$B$335","v":0},"#'T2-B(PP1)'!$B$335"]
["pp1_bl4_12_11_rate_in",{"$f":"'T2-B(PP1)'!$E$335","v":0},"#'T2-B(PP1)'!$E$335"]
["pp1_bl4_12_11_rate_out",{"$f":"'T2-B(PP1)'!$H$335","v":0},"#'T2-B(PP1)'!$H$335"]
["pp1_bl4_12_11_total",{"$f":"'T2-B(PP1)'!$J$335","v":0},"#'T2-B(PP1)'!$J$335"]
["pp1_bl4_12_11_total_in",{"$f":"'T2-B(PP1)'!$F$335","v":0},"#'T2-B(PP1)'!$F$335"]
["pp1_bl4_12_11_total_out",{"$f":"'T2-B(PP1)'!$I$335","v":0},"#'T2-B(PP1)'!$I$335"]
["pp1_bl4_12_11_unit",{"$f":"'T2-B(PP1)'!$C$335","v":0},"#'T2-B(PP1)'!$C$335"]
["pp1_bl4_12_11_unit_in",{"$f":"'T2-B(PP1)'!$D$335","v":0},"#'T2-B(PP1)'!$D$335"]
["pp1_bl4_12_11_units_out",{"$f":"'T2-B(PP1)'!$G$335","v":0},"#'T2-B(PP1)'!$G$335"]
["pp1_bl4_12_12_name",{"$f":"'T2-B(PP1)'!$B$336","v":0},"#'T2-B(PP1)'!$B$336"]
["pp1_bl4_12_12_rate_in",{"$f":"'T2-B(PP1)'!$E$336","v":0},"#'T2-B(PP1)'!$E$336"]
["pp1_bl4_12_12_rate_out",{"$f":"'T2-B(PP1)'!$H$336","v":0},"#'T2-B(PP1)'!$H$336"]
["pp1_bl4_12_12_total",{"$f":"'T2-B(PP1)'!$J$336","v":0},"#'T2-B(PP1)'!$J$336"]
["pp1_bl4_12_12_total_in",{"$f":"'T2-B(PP1)'!$F$336","v":0},"#'T2-B(PP1)'!$F$336"]
["pp1_bl4_12_12_total_out",{"$f":"'T2-B(PP1)'!$I$336","v":0},"#'T2-B(PP1)'!$I$336"]
["pp1_bl4_12_12_unit",{"$f":"'T2-B(PP1)'!$C$336","v":0},"#'T2-B(PP1)'!$C$336"]
["pp1_bl4_12_12_unit_in",{"$f":"'T2-B(PP1)'!$D$336","v":0},"#'T2-B(PP1)'!$D$336"]
["pp1_bl4_12_12_units_out",{"$f":"'T2-B(PP1)'!$G$336","v":0},"#'T2-B(PP1)'!$G$336"]
["pp1_bl4_12_13_name",{"$f":"'T2-B(PP1)'!$B$337","v":0},"#'T2-B(PP1)'!$B$337"]
["pp1_bl4_12_13_rate_in",{"$f":"'T2-B(PP1)'!$E$337","v":0},"#'T2-B(PP1)'!$E$337"]
["pp1_bl4_12_13_rate_out",{"$f":"'T2-B(PP1)'!$H$337","v":0},"#'T2-B(PP1)'!$H$337"]
["pp1_bl4_12_13_total",{"$f":"'T2-B(PP1)'!$J$337","v":0},"#'T2-B(PP1)'!$J$337"]
["pp1_bl4_12_13_total_in",{"$f":"'T2-B(PP1)'!$F$337","v":0},"#'T2-B(PP1)'!$F$337"]
["pp1_bl4_12_13_total_out",{"$f":"'T2-B(PP1)'!$I$337","v":0},"#'T2-B(PP1)'!$I$337"]
["pp1_bl4_12_13_unit",{"$f":"'T2-B(PP1)'!$C$337","v":0},"#'T2-B(PP1)'!$C$337"]
["pp1_bl4_12_13_unit_in",{"$f":"'T2-B(PP1)'!$D$337","v":0},"#'T2-B(PP1)'!$D$337"]
["pp1_bl4_12_13_units_out",{"$f":"'T2-B(PP1)'!$G$337","v":0},"#'T2-B(PP1)'!$G$337"]
["pp1_bl4_12_14_name",{"$f":"'T2-B(PP1)'!$B$338","v":0},"#'T2-B(PP1)'!$B$338"]
["pp1_bl4_12_14_rate_in",{"$f":"'T2-B(PP1)'!$E$338","v":0},"#'T2-B(PP1)'!$E$338"]
["pp1_bl4_12_14_rate_out",{"$f":"'T2-B(PP1)'!$H$338","v":0},"#'T2-B(PP1)'!$H$338"]
["pp1_bl4_12_14_total",{"$f":"'T2-B(PP1)'!$J$338","v":0},"#'T2-B(PP1)'!$J$338"]
["pp1_bl4_12_14_total_in",{"$f":"'T2-B(PP1)'!$F$338","v":0},"#'T2-B(PP1)'!$F$338"]
["pp1_bl4_12_14_total_out",{"$f":"'T2-B(PP1)'!$I$338","v":0},"#'T2-B(PP1)'!$I$338"]
["pp1_bl4_12_14_unit",{"$f":"'T2-B(PP1)'!$C$338","v":0},"#'T2-B(PP1)'!$C$338"]
["pp1_bl4_12_14_unit_in",{"$f":"'T2-B(PP1)'!$D$338","v":0},"#'T2-B(PP1)'!$D$338"]
["pp1_bl4_12_14_units_out",{"$f":"'T2-B(PP1)'!$G$338","v":0},"#'T2-B(PP1)'!$G$338"]
["pp1_bl4_12_15_name",{"$f":"'T2-B(PP1)'!$B$339","v":0},"#'T2-B(PP1)'!$B$339"]
["pp1_bl4_12_15_rate_in",{"$f":"'T2-B(PP1)'!$E$339","v":0},"#'T2-B(PP1)'!$E$339"]
["pp1_bl4_12_15_rate_out",{"$f":"'T2-B(PP1)'!$H$339","v":0},"#'T2-B(PP1)'!$H$339"]
["pp1_bl4_12_15_total",{"$f":"'T2-B(PP1)'!$J$339","v":0},"#'T2-B(PP1)'!$J$339"]
["pp1_bl4_12_15_total_in",{"$f":"'T2-B(PP1)'!$F$339","v":0},"#'T2-B(PP1)'!$F$339"]
["pp1_bl4_12_15_total_out",{"$f":"'T2-B(PP1)'!$I$339","v":0},"#'T2-B(PP1)'!$I$339"]
["pp1_bl4_12_15_unit",{"$f":"'T2-B(PP1)'!$C$339","v":0},"#'T2-B(PP1)'!$C$339"]
["pp1_bl4_12_15_unit_in",{"$f":"'T2-B(PP1)'!$D$339","v":0},"#'T2-B(PP1)'!$D$339"]
["pp1_bl4_12_15_units_out",{"$f":"'T2-B(PP1)'!$G$339","v":0},"#'T2-B(PP1)'!$G$339"]
["pp1_bl4_12_16_name",{"$f":"'T2-B(PP1)'!$B$340","v":0},"#'T2-B(PP1)'!$B$340"]
["pp1_bl4_12_16_rate_in",{"$f":"'T2-B(PP1)'!$E$340","v":0},"#'T2-B(PP1)'!$E$340"]
["pp1_bl4_12_16_rate_out",{"$f":"'T2-B(PP1)'!$H$340","v":0},"#'T2-B(PP1)'!$H$340"]
["pp1_bl4_12_16_total",{"$f":"'T2-B(PP1)'!$J$340","v":0},"#'T2-B(PP1)'!$J$340"]
["pp1_bl4_12_16_total_in",{"$f":"'T2-B(PP1)'!$F$340","v":0},"#'T2-B(PP1)'!$F$340"]
["pp1_bl4_12_16_total_out",{"$f":"'T2-B(PP1)'!$I$340","v":0},"#'T2-B(PP1)'!$I$340"]
["pp1_bl4_12_16_unit",{"$f":"'T2-B(PP1)'!$C$340","v":0},"#'T2-B(PP1)'!$C$340"]
["pp1_bl4_12_16_unit_in",{"$f":"'T2-B(PP1)'!$D$340","v":0},"#'T2-B(PP1)'!$D$340"]
["pp1_bl4_12_16_units_out",{"$f":"'T2-B(PP1)'!$G$340","v":0},"#'T2-B(PP1)'!$G$340"]
["pp1_bl4_12_17_name",{"$f":"'T2-B(PP1)'!$B$341","v":0},"#'T2-B(PP1)'!$B$341"]
["pp1_bl4_12_17_rate_in",{"$f":"'T2-B(PP1)'!$E$341","v":0},"#'T2-B(PP1)'!$E$341"]
["pp1_bl4_12_17_rate_out",{"$f":"'T2-B(PP1)'!$H$341","v":0},"#'T2-B(PP1)'!$H$341"]
["pp1_bl4_12_17_total",{"$f":"'T2-B(PP1)'!$J$341","v":0},"#'T2-B(PP1)'!$J$341"]
["pp1_bl4_12_17_total_in",{"$f":"'T2-B(PP1)'!$F$341","v":0},"#'T2-B(PP1)'!$F$341"]
["pp1_bl4_12_17_total_out",{"$f":"'T2-B(PP1)'!$I$341","v":0},"#'T2-B(PP1)'!$I$341"]
["pp1_bl4_12_17_unit",{"$f":"'T2-B(PP1)'!$C$341","v":0},"#'T2-B(PP1)'!$C$341"]
["pp1_bl4_12_17_unit_in",{"$f":"'T2-B(PP1)'!$D$341","v":0},"#'T2-B(PP1)'!$D$341"]
["pp1_bl4_12_17_units_out",{"$f":"'T2-B(PP1)'!$G$341","v":0},"#'T2-B(PP1)'!$G$341"]
["pp1_bl4_12_18_name",{"$f":"'T2-B(PP1)'!$B$342","v":0},"#'T2-B(PP1)'!$B$342"]
["pp1_bl4_12_18_rate_in",{"$f":"'T2-B(PP1)'!$E$342","v":0},"#'T2-B(PP1)'!$E$342"]
["pp1_bl4_12_18_rate_out",{"$f":"'T2-B(PP1)'!$H$342","v":0},"#'T2-B(PP1)'!$H$342"]
["pp1_bl4_12_18_total",{"$f":"'T2-B(PP1)'!$J$342","v":0},"#'T2-B(PP1)'!$J$342"]
["pp1_bl4_12_18_total_in",{"$f":"'T2-B(PP1)'!$F$342","v":0},"#'T2-B(PP1)'!$F$342"]
["pp1_bl4_12_18_total_out",{"$f":"'T2-B(PP1)'!$I$342","v":0},"#'T2-B(PP1)'!$I$342"]
["pp1_bl4_12_18_unit",{"$f":"'T2-B(PP1)'!$C$342","v":0},"#'T2-B(PP1)'!$C$342"]
["pp1_bl4_12_18_unit_in",{"$f":"'T2-B(PP1)'!$D$342","v":0},"#'T2-B(PP1)'!$D$342"]
["pp1_bl4_12_18_units_out",{"$f":"'T2-B(PP1)'!$G$342","v":0},"#'T2-B(PP1)'!$G$342"]
["pp1_bl4_12_19_name",{"$f":"'T2-B(PP1)'!$B$343","v":0},"#'T2-B(PP1)'!$B$343"]
["pp1_bl4_12_19_rate_in",{"$f":"'T2-B(PP1)'!$E$343","v":0},"#'T2-B(PP1)'!$E$343"]
["pp1_bl4_12_19_rate_out",{"$f":"'T2-B(PP1)'!$H$343","v":0},"#'T2-B(PP1)'!$H$343"]
["pp1_bl4_12_19_total",{"$f":"'T2-B(PP1)'!$J$343","v":0},"#'T2-B(PP1)'!$J$343"]
["pp1_bl4_12_19_total_in",{"$f":"'T2-B(PP1)'!$F$343","v":0},"#'T2-B(PP1)'!$F$343"]
["pp1_bl4_12_19_total_out",{"$f":"'T2-B(PP1)'!$I$343","v":0},"#'T2-B(PP1)'!$I$343"]
["pp1_bl4_12_19_unit",{"$f":"'T2-B(PP1)'!$C$343","v":0},"#'T2-B(PP1)'!$C$343"]
["pp1_bl4_12_19_unit_in",{"$f":"'T2-B(PP1)'!$D$343","v":0},"#'T2-B(PP1)'!$D$343"]
["pp1_bl4_12_19_units_out",{"$f":"'T2-B(PP1)'!$G$343","v":0},"#'T2-B(PP1)'!$G$343"]
["pp1_bl4_12_2_name",{"$f":"'T2-B(PP1)'!$B$326","v":0},"#'T2-B(PP1)'!$B$326"]
["pp1_bl4_12_2_rate_in",{"$f":"'T2-B(PP1)'!$E$326","v":0},"#'T2-B(PP1)'!$E$326"]
["pp1_bl4_12_2_rate_out",{"$f":"'T2-B(PP1)'!$H$326","v":0},"#'T2-B(PP1)'!$H$326"]
["pp1_bl4_12_2_total",{"$f":"'T2-B(PP1)'!$J$326","v":0},"#'T2-B(PP1)'!$J$326"]
["pp1_bl4_12_2_total_in",{"$f":"'T2-B(PP1)'!$F$326","v":0},"#'T2-B(PP1)'!$F$326"]
["pp1_bl4_12_2_total_out",{"$f":"'T2-B(PP1)'!$I$326","v":0},"#'T2-B(PP1)'!$I$326"]
["pp1_bl4_12_2_unit",{"$f":"'T2-B(PP1)'!$C$326","v":0},"#'T2-B(PP1)'!$C$326"]
["pp1_bl4_12_2_unit_in",{"$f":"'T2-B(PP1)'!$D$326","v":0},"#'T2-B(PP1)'!$D$326"]
["pp1_bl4_12_2_units_out",{"$f":"'T2-B(PP1)'!$G$326","v":0},"#'T2-B(PP1)'!$G$326"]
["pp1_bl4_12_20_name",{"$f":"'T2-B(PP1)'!$B$344","v":0},"#'T2-B(PP1)'!$B$344"]
["pp1_bl4_12_20_rate_in",{"$f":"'T2-B(PP1)'!$E$344","v":0},"#'T2-B(PP1)'!$E$344"]
["pp1_bl4_12_20_rate_out",{"$f":"'T2-B(PP1)'!$H$344","v":0},"#'T2-B(PP1)'!$H$344"]
["pp1_bl4_12_20_total",{"$f":"'T2-B(PP1)'!$J$344","v":0},"#'T2-B(PP1)'!$J$344"]
["pp1_bl4_12_20_total_in",{"$f":"'T2-B(PP1)'!$F$344","v":0},"#'T2-B(PP1)'!$F$344"]
["pp1_bl4_12_20_total_out",{"$f":"'T2-B(PP1)'!$I$344","v":0},"#'T2-B(PP1)'!$I$344"]
["pp1_bl4_12_20_unit",{"$f":"'T2-B(PP1)'!$C$344","v":0},"#'T2-B(PP1)'!$C$344"]
["pp1_bl4_12_20_unit_in",{"$f":"'T2-B(PP1)'!$D$344","v":0},"#'T2-B(PP1)'!$D$344"]
["pp1_bl4_12_20_units_out",{"$f":"'T2-B(PP1)'!$G$344","v":0},"#'T2-B(PP1)'!$G$344"]
["pp1_bl4_12_3_name",{"$f":"'T2-B(PP1)'!$B$327","v":0},"#'T2-B(PP1)'!$B$327"]
["pp1_bl4_12_3_rate_in",{"$f":"'T2-B(PP1)'!$E$327","v":0},"#'T2-B(PP1)'!$E$327"]
["pp1_bl4_12_3_rate_out",{"$f":"'T2-B(PP1)'!$H$327","v":0},"#'T2-B(PP1)'!$H$327"]
["pp1_bl4_12_3_total",{"$f":"'T2-B(PP1)'!$J$327","v":0},"#'T2-B(PP1)'!$J$327"]
["pp1_bl4_12_3_total_in",{"$f":"'T2-B(PP1)'!$F$327","v":0},"#'T2-B(PP1)'!$F$327"]
["pp1_bl4_12_3_total_out",{"$f":"'T2-B(PP1)'!$I$327","v":0},"#'T2-B(PP1)'!$I$327"]
["pp1_bl4_12_3_unit",{"$f":"'T2-B(PP1)'!$C$327","v":0},"#'T2-B(PP1)'!$C$327"]
["pp1_bl4_12_3_unit_in",{"$f":"'T2-B(PP1)'!$D$327","v":0},"#'T2-B(PP1)'!$D$327"]
["pp1_bl4_12_3_units_out",{"$f":"'T2-B(PP1)'!$G$327","v":0},"#'T2-B(PP1)'!$G$327"]
["pp1_bl4_12_4_name",{"$f":"'T2-B(PP1)'!$B$328","v":0},"#'T2-B(PP1)'!$B$328"]
["pp1_bl4_12_4_rate_in",{"$f":"'T2-B(PP1)'!$E$328","v":0},"#'T2-B(PP1)'!$E$328"]
["pp1_bl4_12_4_rate_out",{"$f":"'T2-B(PP1)'!$H$328","v":0},"#'T2-B(PP1)'!$H$328"]
["pp1_bl4_12_4_total",{"$f":"'T2-B(PP1)'!$J$328","v":0},"#'T2-B(PP1)'!$J$328"]
["pp1_bl4_12_4_total_in",{"$f":"'T2-B(PP1)'!$F$328","v":0},"#'T2-B(PP1)'!$F$328"]
["pp1_bl4_12_4_total_out",{"$f":"'T2-B(PP1)'!$I$328","v":0},"#'T2-B(PP1)'!$I$328"]
["pp1_bl4_12_4_unit",{"$f":"'T2-B(PP1)'!$C$328","v":0},"#'T2-B(PP1)'!$C$328"]
["pp1_bl4_12_4_unit_in",{"$f":"'T2-B(PP1)'!$D$328","v":0},"#'T2-B(PP1)'!$D$328"]
["pp1_bl4_12_4_units_out",{"$f":"'T2-B(PP1)'!$G$328","v":0},"#'T2-B(PP1)'!$G$328"]
["pp1_bl4_12_5_name",{"$f":"'T2-B(PP1)'!$B$329","v":0},"#'T2-B(PP1)'!$B$329"]
["pp1_bl4_12_5_rate_in",{"$f":"'T2-B(PP1)'!$E$329","v":0},"#'T2-B(PP1)'!$E$329"]
["pp1_bl4_12_5_rate_out",{"$f":"'T2-B(PP1)'!$H$329","v":0},"#'T2-B(PP1)'!$H$329"]
["pp1_bl4_12_5_total",{"$f":"'T2-B(PP1)'!$J$329","v":0},"#'T2-B(PP1)'!$J$329"]
["pp1_bl4_12_5_total_in",{"$f":"'T2-B(PP1)'!$F$329","v":0},"#'T2-B(PP1)'!$F$329"]
["pp1_bl4_12_5_total_out",{"$f":"'T2-B(PP1)'!$I$329","v":0},"#'T2-B(PP1)'!$I$329"]
["pp1_bl4_12_5_unit",{"$f":"'T2-B(PP1)'!$C$329","v":0},"#'T2-B(PP1)'!$C$329"]
["pp1_bl4_12_5_unit_in",{"$f":"'T2-B(PP1)'!$D$329","v":0},"#'T2-B(PP1)'!$D$329"]
["pp1_bl4_12_5_units_out",{"$f":"'T2-B(PP1)'!$G$329","v":0},"#'T2-B(PP1)'!$G$329"]
["pp1_bl4_12_6_name",{"$f":"'T2-B(PP1)'!$B$330","v":0},"#'T2-B(PP1)'!$B$330"]
["pp1_bl4_12_6_rate_in",{"$f":"'T2-B(PP1)'!$E$330","v":0},"#'T2-B(PP1)'!$E$330"]
["pp1_bl4_12_6_rate_out",{"$f":"'T2-B(PP1)'!$H$330","v":0},"#'T2-B(PP1)'!$H$330"]
["pp1_bl4_12_6_total",{"$f":"'T2-B(PP1)'!$J$330","v":0},"#'T2-B(PP1)'!$J$330"]
["pp1_bl4_12_6_total_in",{"$f":"'T2-B(PP1)'!$F$330","v":0},"#'T2-B(PP1)'!$F$330"]
["pp1_bl4_12_6_total_out",{"$f":"'T2-B(PP1)'!$I$330","v":0},"#'T2-B(PP1)'!$I$330"]
["pp1_bl4_12_6_unit",{"$f":"'T2-B(PP1)'!$C$330","v":0},"#'T2-B(PP1)'!$C$330"]
["pp1_bl4_12_6_unit_in",{"$f":"'T2-B(PP1)'!$D$330","v":0},"#'T2-B(PP1)'!$D$330"]
["pp1_bl4_12_6_units_out",{"$f":"'T2-B(PP1)'!$G$330","v":0},"#'T2-B(PP1)'!$G$330"]
["pp1_bl4_12_7_name",{"$f":"'T2-B(PP1)'!$B$331","v":0},"#'T2-B(PP1)'!$B$331"]
["pp1_bl4_12_7_rate_in",{"$f":"'T2-B(PP1)'!$E$331","v":0},"#'T2-B(PP1)'!$E$331"]
["pp1_bl4_12_7_rate_out",{"$f":"'T2-B(PP1)'!$H$331","v":0},"#'T2-B(PP1)'!$H$331"]
["pp1_bl4_12_7_total",{"$f":"'T2-B(PP1)'!$J$331","v":0},"#'T2-B(PP1)'!$J$331"]
["pp1_bl4_12_7_total_in",{"$f":"'T2-B(PP1)'!$F$331","v":0},"#'T2-B(PP1)'!$F$331"]
["pp1_bl4_12_7_total_out",{"$f":"'T2-B(PP1)'!$I$331","v":0},"#'T2-B(PP1)'!$I$331"]
["pp1_bl4_12_7_unit",{"$f":"'T2-B(PP1)'!$C$331","v":0},"#'T2-B(PP1)'!$C$331"]
["pp1_bl4_12_7_unit_in",{"$f":"'T2-B(PP1)'!$D$331","v":0},"#'T2-B(PP1)'!$D$331"]
["pp1_bl4_12_7_units_out",{"$f":"'T2-B(PP1)'!$G$331","v":0},"#'T2-B(PP1)'!$G$331"]
["pp1_bl4_12_8_name",{"$f":"'T2-B(PP1)'!$B$332","v":0},"#'T2-B(PP1)'!$B$332"]
["pp1_bl4_12_8_rate_in",{"$f":"'T2-B(PP1)'!$E$332","v":0},"#'T2-B(PP1)'!$E$332"]
["pp1_bl4_12_8_rate_out",{"$f":"'T2-B(PP1)'!$H$332","v":0},"#'T2-B(PP1)'!$H$332"]
["pp1_bl4_12_8_total",{"$f":"'T2-B(PP1)'!$J$332","v":0},"#'T2-B(PP1)'!$J$332"]
["pp1_bl4_12_8_total_in",{"$f":"'T2-B(PP1)'!$F$332","v":0},"#'T2-B(PP1)'!$F$332"]
["pp1_bl4_12_8_total_out",{"$f":"'T2-B(PP1)'!$I$332","v":0},"#'T2-B(PP1)'!$I$332"]
["pp1_bl4_12_8_unit",{"$f":"'T2-B(PP1)'!$C$332","v":0},"#'T2-B(PP1)'!$C$332"]
["pp1_bl4_12_8_unit_in",{"$f":"'T2-B(PP1)'!$D$332","v":0},"#'T2-B(PP1)'!$D$332"]
["pp1_bl4_12_8_units_out",{"$f":"'T2-B(PP1)'!$G$332","v":0},"#'T2-B(PP1)'!$G$332"]
["pp1_bl4_12_9_name",{"$f":"'T2-B(PP1)'!$B$333","v":0},"#'T2-B(PP1)'!$B$333"]
["pp1_bl4_12_9_rate_in",{"$f":"'T2-B(PP1)'!$E$333","v":0},"#'T2-B(PP1)'!$E$333"]
["pp1_bl4_12_9_rate_out",{"$f":"'T2-B(PP1)'!$H$333","v":0},"#'T2-B(PP1)'!$H$333"]
["pp1_bl4_12_9_total",{"$f":"'T2-B(PP1)'!$J$333","v":0},"#'T2-B(PP1)'!$J$333"]
["pp1_bl4_12_9_total_in",{"$f":"'T2-B(PP1)'!$F$333","v":0},"#'T2-B(PP1)'!$F$333"]
["pp1_bl4_12_9_total_out",{"$f":"'T2-B(PP1)'!$I$333","v":0},"#'T2-B(PP1)'!$I$333"]
["pp1_bl4_12_9_unit",{"$f":"'T2-B(PP1)'!$C$333","v":0},"#'T2-B(PP1)'!$C$333"]
["pp1_bl4_12_9_unit_in",{"$f":"'T2-B(PP1)'!$D$333","v":0},"#'T2-B(PP1)'!$D$333"]
["pp1_bl4_12_9_units_out",{"$f":"'T2-B(PP1)'!$G$333","v":0},"#'T2-B(PP1)'!$G$333"]
["pp1_bl4_12_total",{"$f":"'T2-B(PP1)'!$J$324","v":0},"#'T2-B(PP1)'!$J$324"]
["pp1_bl4_12_total_in",{"$f":"'T2-B(PP1)'!$F$324","v":0},"#'T2-B(PP1)'!$F$324"]
["pp1_bl4_12_total_out",{"$f":"'T2-B(PP1)'!$I$324","v":0},"#'T2-B(PP1)'!$I$324"]
["pp1_bl4_2_1_name",{"$f":"'T2-B(PP1)'!$B$115","v":0},"#'T2-B(PP1)'!$B$115"]
["pp1_bl4_2_1_rate_in",{"$f":"'T2-B(PP1)'!$E$115","v":0},"#'T2-B(PP1)'!$E$115"]
["pp1_bl4_2_1_rate_out",{"$f":"'T2-B(PP1)'!$H$115","v":0},"#'T2-B(PP1)'!$H$115"]
["pp1_bl4_2_1_total",{"$f":"'T2-B(PP1)'!$J$115","v":0},"#'T2-B(PP1)'!$J$115"]
["pp1_bl4_2_1_total_in",{"$f":"'T2-B(PP1)'!$F$115","v":0},"#'T2-B(PP1)'!$F$115"]
["pp1_bl4_2_1_total_out",{"$f":"'T2-B(PP1)'!$I$115","v":0},"#'T2-B(PP1)'!$I$115"]
["pp1_bl4_2_1_unit",{"$f":"'T2-B(PP1)'!$C$115","v":0},"#'T2-B(PP1)'!$C$115"]
["pp1_bl4_2_1_unit_in",{"$f":"'T2-B(PP1)'!$D$115","v":0},"#'T2-B(PP1)'!$D$115"]
["pp1_bl4_2_1_units_out",{"$f":"'T2-B(PP1)'!$G$115","v":0},"#'T2-B(PP1)'!$G$115"]
["pp1_bl4_2_10_name",{"$f":"'T2-B(PP1)'!$B$124","v":0},"#'T2-B(PP1)'!$B$124"]
["pp1_bl4_2_10_rate_in",{"$f":"'T2-B(PP1)'!$E$124","v":0},"#'T2-B(PP1)'!$E$124"]
["pp1_bl4_2_10_rate_out",{"$f":"'T2-B(PP1)'!$H$124","v":0},"#'T2-B(PP1)'!$H$124"]
["pp1_bl4_2_10_total",{"$f":"'T2-B(PP1)'!$J$124","v":0},"#'T2-B(PP1)'!$J$124"]
["pp1_bl4_2_10_total_in",{"$f":"'T2-B(PP1)'!$F$124","v":0},"#'T2-B(PP1)'!$F$124"]
["pp1_bl4_2_10_total_out",{"$f":"'T2-B(PP1)'!$I$124","v":0},"#'T2-B(PP1)'!$I$124"]
["pp1_bl4_2_10_unit",{"$f":"'T2-B(PP1)'!$C$124","v":0},"#'T2-B(PP1)'!$C$124"]
["pp1_bl4_2_10_unit_in",{"$f":"'T2-B(PP1)'!$D$124","v":0},"#'T2-B(PP1)'!$D$124"]
["pp1_bl4_2_10_units_out",{"$f":"'T2-B(PP1)'!$G$124","v":0},"#'T2-B(PP1)'!$G$124"]
["pp1_bl4_2_11_name",{"$f":"'T2-B(PP1)'!$B$125","v":0},"#'T2-B(PP1)'!$B$125"]
["pp1_bl4_2_11_rate_in",{"$f":"'T2-B(PP1)'!$E$125","v":0},"#'T2-B(PP1)'!$E$125"]
["pp1_bl4_2_11_rate_out",{"$f":"'T2-B(PP1)'!$H$125","v":0},"#'T2-B(PP1)'!$H$125"]
["pp1_bl4_2_11_total",{"$f":"'T2-B(PP1)'!$J$125","v":0},"#'T2-B(PP1)'!$J$125"]
["pp1_bl4_2_11_total_in",{"$f":"'T2-B(PP1)'!$F$125","v":0},"#'T2-B(PP1)'!$F$125"]
["pp1_bl4_2_11_total_out",{"$f":"'T2-B(PP1)'!$I$125","v":0},"#'T2-B(PP1)'!$I$125"]
["pp1_bl4_2_11_unit",{"$f":"'T2-B(PP1)'!$C$125","v":0},"#'T2-B(PP1)'!$C$125"]
["pp1_bl4_2_11_unit_in",{"$f":"'T2-B(PP1)'!$D$125","v":0},"#'T2-B(PP1)'!$D$125"]
["pp1_bl4_2_11_units_out",{"$f":"'T2-B(PP1)'!$G$125","v":0},"#'T2-B(PP1)'!$G$125"]
["pp1_bl4_2_12_name",{"$f":"'T2-B(PP1)'!$B$126","v":0},"#'T2-B(PP1)'!$B$126"]
["pp1_bl4_2_12_rate_in",{"$f":"'T2-B(PP1)'!$E$126","v":0},"#'T2-B(PP1)'!$E$126"]
["pp1_bl4_2_12_rate_out",{"$f":"'T2-B(PP1)'!$H$126","v":0},"#'T2-B(PP1)'!$H$126"]
["pp1_bl4_2_12_total",{"$f":"'T2-B(PP1)'!$J$126","v":0},"#'T2-B(PP1)'!$J$126"]
["pp1_bl4_2_12_total_in",{"$f":"'T2-B(PP1)'!$F$126","v":0},"#'T2-B(PP1)'!$F$126"]
["pp1_bl4_2_12_total_out",{"$f":"'T2-B(PP1)'!$I$126","v":0},"#'T2-B(PP1)'!$I$126"]
["pp1_bl4_2_12_unit",{"$f":"'T2-B(PP1)'!$C$126","v":0},"#'T2-B(PP1)'!$C$126"]
["pp1_bl4_2_12_unit_in",{"$f":"'T2-B(PP1)'!$D$126","v":0},"#'T2-B(PP1)'!$D$126"]
["pp1_bl4_2_12_units_out",{"$f":"'T2-B(PP1)'!$G$126","v":0},"#'T2-B(PP1)'!$G$126"]
["pp1_bl4_2_13_name",{"$f":"'T2-B(PP1)'!$B$127","v":0},"#'T2-B(PP1)'!$B$127"]
["pp1_bl4_2_13_rate_in",{"$f":"'T2-B(PP1)'!$E$127","v":0},"#'T2-B(PP1)'!$E$127"]
["pp1_bl4_2_13_rate_out",{"$f":"'T2-B(PP1)'!$H$127","v":0},"#'T2-B(PP1)'!$H$127"]
["pp1_bl4_2_13_total",{"$f":"'T2-B(PP1)'!$J$127","v":0},"#'T2-B(PP1)'!$J$127"]
["pp1_bl4_2_13_total_in",{"$f":"'T2-B(PP1)'!$F$127","v":0},"#'T2-B(PP1)'!$F$127"]
["pp1_bl4_2_13_total_out",{"$f":"'T2-B(PP1)'!$I$127","v":0},"#'T2-B(PP1)'!$I$127"]
["pp1_bl4_2_13_unit",{"$f":"'T2-B(PP1)'!$C$127","v":0},"#'T2-B(PP1)'!$C$127"]
["pp1_bl4_2_13_unit_in",{"$f":"'T2-B(PP1)'!$D$127","v":0},"#'T2-B(PP1)'!$D$127"]
["pp1_bl4_2_13_units_out",{"$f":"'T2-B(PP1)'!$G$127","v":0},"#'T2-B(PP1)'!$G$127"]
["pp1_bl4_2_14_name",{"$f":"'T2-B(PP1)'!$B$128","v":0},"#'T2-B(PP1)'!$B$128"]
["pp1_bl4_2_14_rate_in",{"$f":"'T2-B(PP1)'!$E$128","v":0},"#'T2-B(PP1)'!$E$128"]
["pp1_bl4_2_14_rate_out",{"$f":"'T2-B(PP1)'!$H$128","v":0},"#'T2-B(PP1)'!$H$128"]
["pp1_bl4_2_14_total",{"$f":"'T2-B(PP1)'!$J$128","v":0},"#'T2-B(PP1)'!$J$128"]
["pp1_bl4_2_14_total_in",{"$f":"'T2-B(PP1)'!$F$128","v":0},"#'T2-B(PP1)'!$F$128"]
["pp1_bl4_2_14_total_out",{"$f":"'T2-B(PP1)'!$I$128","v":0},"#'T2-B(PP1)'!$I$128"]
["pp1_bl4_2_14_unit",{"$f":"'T2-B(PP1)'!$C$128","v":0},"#'T2-B(PP1)'!$C$128"]
["pp1_bl4_2_14_unit_in",{"$f":"'T2-B(PP1)'!$D$128","v":0},"#'T2-B(PP1)'!$D$128"]
["pp1_bl4_2_14_units_out",{"$f":"'T2-B(PP1)'!$G$128","v":0},"#'T2-B(PP1)'!$G$128"]
["pp1_bl4_2_15_name",{"$f":"'T2-B(PP1)'!$B$129","v":0},"#'T2-B(PP1)'!$B$129"]
["pp1_bl4_2_15_rate_in",{"$f":"'T2-B(PP1)'!$E$129","v":0},"#'T2-B(PP1)'!$E$129"]
["pp1_bl4_2_15_rate_out",{"$f":"'T2-B(PP1)'!$H$129","v":0},"#'T2-B(PP1)'!$H$129"]
["pp1_bl4_2_15_total",{"$f":"'T2-B(PP1)'!$J$129","v":0},"#'T2-B(PP1)'!$J$129"]
["pp1_bl4_2_15_total_in",{"$f":"'T2-B(PP1)'!$F$129","v":0},"#'T2-B(PP1)'!$F$129"]
["pp1_bl4_2_15_total_out",{"$f":"'T2-B(PP1)'!$I$129","v":0},"#'T2-B(PP1)'!$I$129"]
["pp1_bl4_2_15_unit",{"$f":"'T2-B(PP1)'!$C$129","v":0},"#'T2-B(PP1)'!$C$129"]
["pp1_bl4_2_15_unit_in",{"$f":"'T2-B(PP1)'!$D$129","v":0},"#'T2-B(PP1)'!$D$129"]
["pp1_bl4_2_15_units_out",{"$f":"'T2-B(PP1)'!$G$129","v":0},"#'T2-B(PP1)'!$G$129"]
["pp1_bl4_2_16_name",{"$f":"'T2-B(PP1)'!$B$130","v":0},"#'T2-B(PP1)'!$B$130"]
["pp1_bl4_2_16_rate_in",{"$f":"'T2-B(PP1)'!$E$130","v":0},"#'T2-B(PP1)'!$E$130"]
["pp1_bl4_2_16_rate_out",{"$f":"'T2-B(PP1)'!$H$130","v":0},"#'T2-B(PP1)'!$H$130"]
["pp1_bl4_2_16_total",{"$f":"'T2-B(PP1)'!$J$130","v":0},"#'T2-B(PP1)'!$J$130"]
["pp1_bl4_2_16_total_in",{"$f":"'T2-B(PP1)'!$F$130","v":0},"#'T2-B(PP1)'!$F$130"]
["pp1_bl4_2_16_total_out",{"$f":"'T2-B(PP1)'!$I$130","v":0},"#'T2-B(PP1)'!$I$130"]
["pp1_bl4_2_16_unit",{"$f":"'T2-B(PP1)'!$C$130","v":0},"#'T2-B(PP1)'!$C$130"]
["pp1_bl4_2_16_unit_in",{"$f":"'T2-B(PP1)'!$D$130","v":0},"#'T2-B(PP1)'!$D$130"]
["pp1_bl4_2_16_units_out",{"$f":"'T2-B(PP1)'!$G$130","v":0},"#'T2-B(PP1)'!$G$130"]
["pp1_bl4_2_17_name",{"$f":"'T2-B(PP1)'!$B$131","v":0},"#'T2-B(PP1)'!$B$131"]
["pp1_bl4_2_17_rate_in",{"$f":"'T2-B(PP1)'!$E$131","v":0},"#'T2-B(PP1)'!$E$131"]
["pp1_bl4_2_17_rate_out",{"$f":"'T2-B(PP1)'!$H$131","v":0},"#'T2-B(PP1)'!$H$131"]
["pp1_bl4_2_17_total",{"$f":"'T2-B(PP1)'!$J$131","v":0},"#'T2-B(PP1)'!$J$131"]
["pp1_bl4_2_17_total_in",{"$f":"'T2-B(PP1)'!$F$131","v":0},"#'T2-B(PP1)'!$F$131"]
["pp1_bl4_2_17_total_out",{"$f":"'T2-B(PP1)'!$I$131","v":0},"#'T2-B(PP1)'!$I$131"]
["pp1_bl4_2_17_unit",{"$f":"'T2-B(PP1)'!$C$131","v":0},"#'T2-B(PP1)'!$C$131"]
["pp1_bl4_2_17_unit_in",{"$f":"'T2-B(PP1)'!$D$131","v":0},"#'T2-B(PP1)'!$D$131"]
["pp1_bl4_2_17_units_out",{"$f":"'T2-B(PP1)'!$G$131","v":0},"#'T2-B(PP1)'!$G$131"]
["pp1_bl4_2_18_name",{"$f":"'T2-B(PP1)'!$B$132","v":0},"#'T2-B(PP1)'!$B$132"]
["pp1_bl4_2_18_rate_in",{"$f":"'T2-B(PP1)'!$E$132","v":0},"#'T2-B(PP1)'!$E$132"]
["pp1_bl4_2_18_rate_out",{"$f":"'T2-B(PP1)'!$H$132","v":0},"#'T2-B(PP1)'!$H$132"]
["pp1_bl4_2_18_total",{"$f":"'T2-B(PP1)'!$J$132","v":0},"#'T2-B(PP1)'!$J$132"]
["pp1_bl4_2_18_total_in",{"$f":"'T2-B(PP1)'!$F$132","v":0},"#'T2-B(PP1)'!$F$132"]
["pp1_bl4_2_18_total_out",{"$f":"'T2-B(PP1)'!$I$132","v":0},"#'T2-B(PP1)'!$I$132"]
["pp1_bl4_2_18_unit",{"$f":"'T2-B(PP1)'!$C$132","v":0},"#'T2-B(PP1)'!$C$132"]
["pp1_bl4_2_18_unit_in",{"$f":"'T2-B(PP1)'!$D$132","v":0},"#'T2-B(PP1)'!$D$132"]
["pp1_bl4_2_18_units_out",{"$f":"'T2-B(PP1)'!$G$132","v":0},"#'T2-B(PP1)'!$G$132"]
["pp1_bl4_2_19_name",{"$f":"'T2-B(PP1)'!$B$133","v":0},"#'T2-B(PP1)'!$B$133"]
["pp1_bl4_2_19_rate_in",{"$f":"'T2-B(PP1)'!$E$133","v":0},"#'T2-B(PP1)'!$E$133"]
["pp1_bl4_2_19_rate_out",{"$f":"'T2-B(PP1)'!$H$133","v":0},"#'T2-B(PP1)'!$H$133"]
["pp1_bl4_2_19_total",{"$f":"'T2-B(PP1)'!$J$133","v":0},"#'T2-B(PP1)'!$J$133"]
["pp1_bl4_2_19_total_in",{"$f":"'T2-B(PP1)'!$F$133","v":0},"#'T2-B(PP1)'!$F$133"]
["pp1_bl4_2_19_total_out",{"$f":"'T2-B(PP1)'!$I$133","v":0},"#'T2-B(PP1)'!$I$133"]
["pp1_bl4_2_19_unit",{"$f":"'T2-B(PP1)'!$C$133","v":0},"#'T2-B(PP1)'!$C$133"]
["pp1_bl4_2_19_unit_in",{"$f":"'T2-B(PP1)'!$D$133","v":0},"#'T2-B(PP1)'!$D$133"]
["pp1_bl4_2_19_units_out",{"$f":"'T2-B(PP1)'!$G$133","v":0},"#'T2-B(PP1)'!$G$133"]
["pp1_bl4_2_2_name",{"$f":"'T2-B(PP1)'!$B$116","v":0},"#'T2-B(PP1)'!$B$116"]
["pp1_bl4_2_2_rate_in",{"$f":"'T2-B(PP1)'!$E$116","v":0},"#'T2-B(PP1)'!$E$116"]
["pp1_bl4_2_2_rate_out",{"$f":"'T2-B(PP1)'!$H$116","v":0},"#'T2-B(PP1)'!$H$116"]
["pp1_bl4_2_2_total",{"$f":"'T2-B(PP1)'!$J$116","v":0},"#'T2-B(PP1)'!$J$116"]
["pp1_bl4_2_2_total_in",{"$f":"'T2-B(PP1)'!$F$116","v":0},"#'T2-B(PP1)'!$F$116"]
["pp1_bl4_2_2_total_out",{"$f":"'T2-B(PP1)'!$I$116","v":0},"#'T2-B(PP1)'!$I$116"]
["pp1_bl4_2_2_unit",{"$f":"'T2-B(PP1)'!$C$116","v":0},"#'T2-B(PP1)'!$C$116"]
["pp1_bl4_2_2_unit_in",{"$f":"'T2-B(PP1)'!$D$116","v":0},"#'T2-B(PP1)'!$D$116"]
["pp1_bl4_2_2_units_out",{"$f":"'T2-B(PP1)'!$G$116","v":0},"#'T2-B(PP1)'!$G$116"]
["pp1_bl4_2_20_name",{"$f":"'T2-B(PP1)'!$B$134","v":0},"#'T2-B(PP1)'!$B$134"]
["pp1_bl4_2_20_rate_in",{"$f":"'T2-B(PP1)'!$E$134","v":0},"#'T2-B(PP1)'!$E$134"]
["pp1_bl4_2_20_rate_out",{"$f":"'T2-B(PP1)'!$H$134","v":0},"#'T2-B(PP1)'!$H$134"]
["pp1_bl4_2_20_total",{"$f":"'T2-B(PP1)'!$J$134","v":0},"#'T2-B(PP1)'!$J$134"]
["pp1_bl4_2_20_total_in",{"$f":"'T2-B(PP1)'!$F$134","v":0},"#'T2-B(PP1)'!$F$134"]
["pp1_bl4_2_20_total_out",{"$f":"'T2-B(PP1)'!$I$134","v":0},"#'T2-B(PP1)'!$I$134"]
["pp1_bl4_2_20_unit",{"$f":"'T2-B(PP1)'!$C$134","v":0},"#'T2-B(PP1)'!$C$134"]
["pp1_bl4_2_20_unit_in",{"$f":"'T2-B(PP1)'!$D$134","v":0},"#'T2-B(PP1)'!$D$134"]
["pp1_bl4_2_20_units_out",{"$f":"'T2-B(PP1)'!$G$134","v":0},"#'T2-B(PP1)'!$G$134"]
["pp1_bl4_2_3_name",{"$f":"'T2-B(PP1)'!$B$117","v":0},"#'T2-B(PP1)'!$B$117"]
["pp1_bl4_2_3_rate_in",{"$f":"'T2-B(PP1)'!$E$117","v":0},"#'T2-B(PP1)'!$E$117"]
["pp1_bl4_2_3_rate_out",{"$f":"'T2-B(PP1)'!$H$117","v":0},"#'T2-B(PP1)'!$H$117"]
["pp1_bl4_2_3_total",{"$f":"'T2-B(PP1)'!$J$117","v":0},"#'T2-B(PP1)'!$J$117"]
["pp1_bl4_2_3_total_in",{"$f":"'T2-B(PP1)'!$F$117","v":0},"#'T2-B(PP1)'!$F$117"]
["pp1_bl4_2_3_total_out",{"$f":"'T2-B(PP1)'!$I$117","v":0},"#'T2-B(PP1)'!$I$117"]
["pp1_bl4_2_3_unit",{"$f":"'T2-B(PP1)'!$C$117","v":0},"#'T2-B(PP1)'!$C$117"]
["pp1_bl4_2_3_unit_in",{"$f":"'T2-B(PP1)'!$D$117","v":0},"#'T2-B(PP1)'!$D$117"]
["pp1_bl4_2_3_units_out",{"$f":"'T2-B(PP1)'!$G$117","v":0},"#'T2-B(PP1)'!$G$117"]
["pp1_bl4_2_4_name",{"$f":"'T2-B(PP1)'!$B$118","v":0},"#'T2-B(PP1)'!$B$118"]
["pp1_bl4_2_4_rate_in",{"$f":"'T2-B(PP1)'!$E$118","v":0},"#'T2-B(PP1)'!$E$118"]
["pp1_bl4_2_4_rate_out",{"$f":"'T2-B(PP1)'!$H$118","v":0},"#'T2-B(PP1)'!$H$118"]
["pp1_bl4_2_4_total",{"$f":"'T2-B(PP1)'!$J$118","v":0},"#'T2-B(PP1)'!$J$118"]
["pp1_bl4_2_4_total_in",{"$f":"'T2-B(PP1)'!$F$118","v":0},"#'T2-B(PP1)'!$F$118"]
["pp1_bl4_2_4_total_out",{"$f":"'T2-B(PP1)'!$I$118","v":0},"#'T2-B(PP1)'!$I$118"]
["pp1_bl4_2_4_unit",{"$f":"'T2-B(PP1)'!$C$118","v":0},"#'T2-B(PP1)'!$C$118"]
["pp1_bl4_2_4_unit_in",{"$f":"'T2-B(PP1)'!$D$118","v":0},"#'T2-B(PP1)'!$D$118"]
["pp1_bl4_2_4_units_out",{"$f":"'T2-B(PP1)'!$G$118","v":0},"#'T2-B(PP1)'!$G$118"]
["pp1_bl4_2_5_name",{"$f":"'T2-B(PP1)'!$B$119","v":0},"#'T2-B(PP1)'!$B$119"]
["pp1_bl4_2_5_rate_in",{"$f":"'T2-B(PP1)'!$E$119","v":0},"#'T2-B(PP1)'!$E$119"]
["pp1_bl4_2_5_rate_out",{"$f":"'T2-B(PP1)'!$H$119","v":0},"#'T2-B(PP1)'!$H$119"]
["pp1_bl4_2_5_total",{"$f":"'T2-B(PP1)'!$J$119","v":0},"#'T2-B(PP1)'!$J$119"]
["pp1_bl4_2_5_total_in",{"$f":"'T2-B(PP1)'!$F$119","v":0},"#'T2-B(PP1)'!$F$119"]
["pp1_bl4_2_5_total_out",{"$f":"'T2-B(PP1)'!$I$119","v":0},"#'T2-B(PP1)'!$I$119"]
["pp1_bl4_2_5_unit",{"$f":"'T2-B(PP1)'!$C$119","v":0},"#'T2-B(PP1)'!$C$119"]
["pp1_bl4_2_5_unit_in",{"$f":"'T2-B(PP1)'!$D$119","v":0},"#'T2-B(PP1)'!$D$119"]
["pp1_bl4_2_5_units_out",{"$f":"'T2-B(PP1)'!$G$119","v":0},"#'T2-B(PP1)'!$G$119"]
["pp1_bl4_2_6_name",{"$f":"'T2-B(PP1)'!$B$120","v":0},"#'T2-B(PP1)'!$B$120"]
["pp1_bl4_2_6_rate_in",{"$f":"'T2-B(PP1)'!$E$120","v":0},"#'T2-B(PP1)'!$E$120"]
["pp1_bl4_2_6_rate_out",{"$f":"'T2-B(PP1)'!$H$120","v":0},"#'T2-B(PP1)'!$H$120"]
["pp1_bl4_2_6_total",{"$f":"'T2-B(PP1)'!$J$120","v":0},"#'T2-B(PP1)'!$J$120"]
["pp1_bl4_2_6_total_in",{"$f":"'T2-B(PP1)'!$F$120","v":0},"#'T2-B(PP1)'!$F$120"]
["pp1_bl4_2_6_total_out",{"$f":"'T2-B(PP1)'!$I$120","v":0},"#'T2-B(PP1)'!$I$120"]
["pp1_bl4_2_6_unit",{"$f":"'T2-B(PP1)'!$C$120","v":0},"#'T2-B(PP1)'!$C$120"]
["pp1_bl4_2_6_unit_in",{"$f":"'T2-B(PP1)'!$D$120","v":0},"#'T2-B(PP1)'!$D$120"]
["pp1_bl4_2_6_units_out",{"$f":"'T2-B(PP1)'!$G$120","v":0},"#'T2-B(PP1)'!$G$120"]
["pp1_bl4_2_7_name",{"$f":"'T2-B(PP1)'!$B$121","v":0},"#'T2-B(PP1)'!$B$121"]
["pp1_bl4_2_7_rate_in",{"$f":"'T2-B(PP1)'!$E$121","v":0},"#'T2-B(PP1)'!$E$121"]
["pp1_bl4_2_7_rate_out",{"$f":"'T2-B(PP1)'!$H$121","v":0},"#'T2-B(PP1)'!$H$121"]
["pp1_bl4_2_7_total",{"$f":"'T2-B(PP1)'!$J$121","v":0},"#'T2-B(PP1)'!$J$121"]
["pp1_bl4_2_7_total_in",{"$f":"'T2-B(PP1)'!$F$121","v":0},"#'T2-B(PP1)'!$F$121"]
["pp1_bl4_2_7_total_out",{"$f":"'T2-B(PP1)'!$I$121","v":0},"#'T2-B(PP1)'!$I$121"]
["pp1_bl4_2_7_unit",{"$f":"'T2-B(PP1)'!$C$121","v":0},"#'T2-B(PP1)'!$C$121"]
["pp1_bl4_2_7_unit_in",{"$f":"'T2-B(PP1)'!$D$121","v":0},"#'T2-B(PP1)'!$D$121"]
["pp1_bl4_2_7_units_out",{"$f":"'T2-B(PP1)'!$G$121","v":0},"#'T2-B(PP1)'!$G$121"]
["pp1_bl4_2_8_name",{"$f":"'T2-B(PP1)'!$B$122","v":0},"#'T2-B(PP1)'!$B$122"]
["pp1_bl4_2_8_rate_in",{"$f":"'T2-B(PP1)'!$E$122","v":0},"#'T2-B(PP1)'!$E$122"]
["pp1_bl4_2_8_rate_out",{"$f":"'T2-B(PP1)'!$H$122","v":0},"#'T2-B(PP1)'!$H$122"]
["pp1_bl4_2_8_total",{"$f":"'T2-B(PP1)'!$J$122","v":0},"#'T2-B(PP1)'!$J$122"]
["pp1_bl4_2_8_total_in",{"$f":"'T2-B(PP1)'!$F$122","v":0},"#'T2-B(PP1)'!$F$122"]
["pp1_bl4_2_8_total_out",{"$f":"'T2-B(PP1)'!$I$122","v":0},"#'T2-B(PP1)'!$I$122"]
["pp1_bl4_2_8_unit",{"$f":"'T2-B(PP1)'!$C$122","v":0},"#'T2-B(PP1)'!$C$122"]
["pp1_bl4_2_8_unit_in",{"$f":"'T2-B(PP1)'!$D$122","v":0},"#'T2-B(PP1)'!$D$122"]
["pp1_bl4_2_8_units_out",{"$f":"'T2-B(PP1)'!$G$122","v":0},"#'T2-B(PP1)'!$G$122"]
["pp1_bl4_2_9_name",{"$f":"'T2-B(PP1)'!$B$123","v":0},"#'T2-B(PP1)'!$B$123"]
["pp1_bl4_2_9_rate_in",{"$f":"'T2-B(PP1)'!$E$123","v":0},"#'T2-B(PP1)'!$E$123"]
["pp1_bl4_2_9_rate_out",{"$f":"'T2-B(PP1)'!$H$123","v":0},"#'T2-B(PP1)'!$H$123"]
["pp1_bl4_2_9_total",{"$f":"'T2-B(PP1)'!$J$123","v":0},"#'T2-B(PP1)'!$J$123"]
["pp1_bl4_2_9_total_in",{"$f":"'T2-B(PP1)'!$F$123","v":0},"#'T2-B(PP1)'!$F$123"]
["pp1_bl4_2_9_total_out",{"$f":"'T2-B(PP1)'!$I$123","v":0},"#'T2-B(PP1)'!$I$123"]
["pp1_bl4_2_9_unit",{"$f":"'T2-B(PP1)'!$C$123","v":0},"#'T2-B(PP1)'!$C$123"]
["pp1_bl4_2_9_unit_in",{"$f":"'T2-B(PP1)'!$D$123","v":0},"#'T2-B(PP1)'!$D$123"]
["pp1_bl4_2_9_units_out",{"$f":"'T2-B(PP1)'!$G$123","v":0},"#'T2-B(PP1)'!$G$123"]
["pp1_bl4_2_total",{"$f":"'T2-B(PP1)'!$J$114","v":0},"#'T2-B(PP1)'!$J$114"]
["pp1_bl4_2_total_in",{"$f":"'T2-B(PP1)'!$F$114","v":0},"#'T2-B(PP1)'!$F$114"]
["pp1_bl4_2_total_out",{"$f":"'T2-B(PP1)'!$I$114","v":0},"#'T2-B(PP1)'!$I$114"]
["pp1_bl4_3_1_name",{"$f":"'T2-B(PP1)'!$B$136","v":0},"#'T2-B(PP1)'!$B$136"]
["pp1_bl4_3_1_rate_in",{"$f":"'T2-B(PP1)'!$E$136","v":0},"#'T2-B(PP1)'!$E$136"]
["pp1_bl4_3_1_rate_out",{"$f":"'T2-B(PP1)'!$H$136","v":0},"#'T2-B(PP1)'!$H$136"]
["pp1_bl4_3_1_total",{"$f":"'T2-B(PP1)'!$J$136","v":0},"#'T2-B(PP1)'!$J$136"]
["pp1_bl4_3_1_total_in",{"$f":"'T2-B(PP1)'!$F$136","v":0},"#'T2-B(PP1)'!$F$136"]
["pp1_bl4_3_1_total_out",{"$f":"'T2-B(PP1)'!$I$136","v":0},"#'T2-B(PP1)'!$I$136"]
["pp1_bl4_3_1_unit",{"$f":"'T2-B(PP1)'!$C$136","v":0},"#'T2-B(PP1)'!$C$136"]
["pp1_bl4_3_1_unit_in",{"$f":"'T2-B(PP1)'!$D$136","v":0},"#'T2-B(PP1)'!$D$136"]
["pp1_bl4_3_1_units_out",{"$f":"'T2-B(PP1)'!$G$136","v":0},"#'T2-B(PP1)'!$G$136"]
["pp1_bl4_3_10_name",{"$f":"'T2-B(PP1)'!$B$145","v":0},"#'T2-B(PP1)'!$B$145"]
["pp1_bl4_3_10_rate_in",{"$f":"'T2-B(PP1)'!$E$145","v":0},"#'T2-B(PP1)'!$E$145"]
["pp1_bl4_3_10_rate_out",{"$f":"'T2-B(PP1)'!$H$145","v":0},"#'T2-B(PP1)'!$H$145"]
["pp1_bl4_3_10_total",{"$f":"'T2-B(PP1)'!$J$145","v":0},"#'T2-B(PP1)'!$J$145"]
["pp1_bl4_3_10_total_in",{"$f":"'T2-B(PP1)'!$F$145","v":0},"#'T2-B(PP1)'!$F$145"]
["pp1_bl4_3_10_total_out",{"$f":"'T2-B(PP1)'!$I$145","v":0},"#'T2-B(PP1)'!$I$145"]
["pp1_bl4_3_10_unit",{"$f":"'T2-B(PP1)'!$C$145","v":0},"#'T2-B(PP1)'!$C$145"]
["pp1_bl4_3_10_unit_in",{"$f":"'T2-B(PP1)'!$D$145","v":0},"#'T2-B(PP1)'!$D$145"]
["pp1_bl4_3_10_units_out",{"$f":"'T2-B(PP1)'!$G$145","v":0},"#'T2-B(PP1)'!$G$145"]
["pp1_bl4_3_11_name",{"$f":"'T2-B(PP1)'!$B$146","v":0},"#'T2-B(PP1)'!$B$146"]
["pp1_bl4_3_11_rate_in",{"$f":"'T2-B(PP1)'!$E$146","v":0},"#'T2-B(PP1)'!$E$146"]
["pp1_bl4_3_11_rate_out",{"$f":"'T2-B(PP1)'!$H$146","v":0},"#'T2-B(PP1)'!$H$146"]
["pp1_bl4_3_11_total",{"$f":"'T2-B(PP1)'!$J$146","v":0},"#'T2-B(PP1)'!$J$146"]
["pp1_bl4_3_11_total_in",{"$f":"'T2-B(PP1)'!$F$146","v":0},"#'T2-B(PP1)'!$F$146"]
["pp1_bl4_3_11_total_out",{"$f":"'T2-B(PP1)'!$I$146","v":0},"#'T2-B(PP1)'!$I$146"]
["pp1_bl4_3_11_unit",{"$f":"'T2-B(PP1)'!$C$146","v":0},"#'T2-B(PP1)'!$C$146"]
["pp1_bl4_3_11_unit_in",{"$f":"'T2-B(PP1)'!$D$146","v":0},"#'T2-B(PP1)'!$D$146"]
["pp1_bl4_3_11_units_out",{"$f":"'T2-B(PP1)'!$G$146","v":0},"#'T2-B(PP1)'!$G$146"]
["pp1_bl4_3_12_name",{"$f":"'T2-B(PP1)'!$B$147","v":0},"#'T2-B(PP1)'!$B$147"]
["pp1_bl4_3_12_rate_in",{"$f":"'T2-B(PP1)'!$E$147","v":0},"#'T2-B(PP1)'!$E$147"]
["pp1_bl4_3_12_rate_out",{"$f":"'T2-B(PP1)'!$H$147","v":0},"#'T2-B(PP1)'!$H$147"]
["pp1_bl4_3_12_total",{"$f":"'T2-B(PP1)'!$J$147","v":0},"#'T2-B(PP1)'!$J$147"]
["pp1_bl4_3_12_total_in",{"$f":"'T2-B(PP1)'!$F$147","v":0},"#'T2-B(PP1)'!$F$147"]
["pp1_bl4_3_12_total_out",{"$f":"'T2-B(PP1)'!$I$147","v":0},"#'T2-B(PP1)'!$I$147"]
["pp1_bl4_3_12_unit",{"$f":"'T2-B(PP1)'!$C$147","v":0},"#'T2-B(PP1)'!$C$147"]
["pp1_bl4_3_12_unit_in",{"$f":"'T2-B(PP1)'!$D$147","v":0},"#'T2-B(PP1)'!$D$147"]
["pp1_bl4_3_12_units_out",{"$f":"'T2-B(PP1)'!$G$147","v":0},"#'T2-B(PP1)'!$G$147"]
["pp1_bl4_3_13_name",{"$f":"'T2-B(PP1)'!$B$148","v":0},"#'T2-B(PP1)'!$B$148"]
["pp1_bl4_3_13_rate_in",{"$f":"'T2-B(PP1)'!$E$148","v":0},"#'T2-B(PP1)'!$E$148"]
["pp1_bl4_3_13_rate_out",{"$f":"'T2-B(PP1)'!$H$148","v":0},"#'T2-B(PP1)'!$H$148"]
["pp1_bl4_3_13_total",{"$f":"'T2-B(PP1)'!$J$148","v":0},"#'T2-B(PP1)'!$J$148"]
["pp1_bl4_3_13_total_in",{"$f":"'T2-B(PP1)'!$F$148","v":0},"#'T2-B(PP1)'!$F$148"]
["pp1_bl4_3_13_total_out",{"$f":"'T2-B(PP1)'!$I$148","v":0},"#'T2-B(PP1)'!$I$148"]
["pp1_bl4_3_13_unit",{"$f":"'T2-B(PP1)'!$C$148","v":0},"#'T2-B(PP1)'!$C$148"]
["pp1_bl4_3_13_unit_in",{"$f":"'T2-B(PP1)'!$D$148","v":0},"#'T2-B(PP1)'!$D$148"]
["pp1_bl4_3_13_units_out",{"$f":"'T2-B(PP1)'!$G$148","v":0},"#'T2-B(PP1)'!$G$148"]
["pp1_bl4_3_14_name",{"$f":"'T2-B(PP1)'!$B$149","v":0},"#'T2-B(PP1)'!$B$149"]
["pp1_bl4_3_14_rate_in",{"$f":"'T2-B(PP1)'!$E$149","v":0},"#'T2-B(PP1)'!$E$149"]
["pp1_bl4_3_14_rate_out",{"$f":"'T2-B(PP1)'!$H$149","v":0},"#'T2-B(PP1)'!$H$149"]
["pp1_bl4_3_14_total",{"$f":"'T2-B(PP1)'!$J$149","v":0},"#'T2-B(PP1)'!$J$149"]
["pp1_bl4_3_14_total_in",{"$f":"'T2-B(PP1)'!$F$149","v":0},"#'T2-B(PP1)'!$F$149"]
["pp1_bl4_3_14_total_out",{"$f":"'T2-B(PP1)'!$I$149","v":0},"#'T2-B(PP1)'!$I$149"]
["pp1_bl4_3_14_unit",{"$f":"'T2-B(PP1)'!$C$149","v":0},"#'T2-B(PP1)'!$C$149"]
["pp1_bl4_3_14_unit_in",{"$f":"'T2-B(PP1)'!$D$149","v":0},"#'T2-B(PP1)'!$D$149"]
["pp1_bl4_3_14_units_out",{"$f":"'T2-B(PP1)'!$G$149","v":0},"#'T2-B(PP1)'!$G$149"]
["pp1_bl4_3_15_name",{"$f":"'T2-B(PP1)'!$B$150","v":0},"#'T2-B(PP1)'!$B$150"]
["pp1_bl4_3_15_rate_in",{"$f":"'T2-B(PP1)'!$E$150","v":0},"#'T2-B(PP1)'!$E$150"]
["pp1_bl4_3_15_rate_out",{"$f":"'T2-B(PP1)'!$H$150","v":0},"#'T2-B(PP1)'!$H$150"]
["pp1_bl4_3_15_total",{"$f":"'T2-B(PP1)'!$J$150","v":0},"#'T2-B(PP1)'!$J$150"]
["pp1_bl4_3_15_total_in",{"$f":"'T2-B(PP1)'!$F$150","v":0},"#'T2-B(PP1)'!$F$150"]
["pp1_bl4_3_15_total_out",{"$f":"'T2-B(PP1)'!$I$150","v":0},"#'T2-B(PP1)'!$I$150"]
["pp1_bl4_3_15_unit",{"$f":"'T2-B(PP1)'!$C$150","v":0},"#'T2-B(PP1)'!$C$150"]
["pp1_bl4_3_15_unit_in",{"$f":"'T2-B(PP1)'!$D$150","v":0},"#'T2-B(PP1)'!$D$150"]
["pp1_bl4_3_15_units_out",{"$f":"'T2-B(PP1)'!$G$150","v":0},"#'T2-B(PP1)'!$G$150"]
["pp1_bl4_3_16_name",{"$f":"'T2-B(PP1)'!$B$151","v":0},"#'T2-B(PP1)'!$B$151"]
["pp1_bl4_3_16_rate_in",{"$f":"'T2-B(PP1)'!$E$151","v":0},"#'T2-B(PP1)'!$E$151"]
["pp1_bl4_3_16_rate_out",{"$f":"'T2-B(PP1)'!$H$151","v":0},"#'T2-B(PP1)'!$H$151"]
["pp1_bl4_3_16_total",{"$f":"'T2-B(PP1)'!$J$151","v":0},"#'T2-B(PP1)'!$J$151"]
["pp1_bl4_3_16_total_in",{"$f":"'T2-B(PP1)'!$F$151","v":0},"#'T2-B(PP1)'!$F$151"]
["pp1_bl4_3_16_total_out",{"$f":"'T2-B(PP1)'!$I$151","v":0},"#'T2-B(PP1)'!$I$151"]
["pp1_bl4_3_16_unit",{"$f":"'T2-B(PP1)'!$C$151","v":0},"#'T2-B(PP1)'!$C$151"]
["pp1_bl4_3_16_unit_in",{"$f":"'T2-B(PP1)'!$D$151","v":0},"#'T2-B(PP1)'!$D$151"]
["pp1_bl4_3_16_units_out",{"$f":"'T2-B(PP1)'!$G$151","v":0},"#'T2-B(PP1)'!$G$151"]
["pp1_bl4_3_17_name",{"$f":"'T2-B(PP1)'!$B$152","v":0},"#'T2-B(PP1)'!$B$152"]
["pp1_bl4_3_17_rate_in",{"$f":"'T2-B(PP1)'!$E$152","v":0},"#'T2-B(PP1)'!$E$152"]
["pp1_bl4_3_17_rate_out",{"$f":"'T2-B(PP1)'!$H$152","v":0},"#'T2-B(PP1)'!$H$152"]
["pp1_bl4_3_17_total",{"$f":"'T2-B(PP1)'!$J$152","v":0},"#'T2-B(PP1)'!$J$152"]
["pp1_bl4_3_17_total_in",{"$f":"'T2-B(PP1)'!$F$152","v":0},"#'T2-B(PP1)'!$F$152"]
["pp1_bl4_3_17_total_out",{"$f":"'T2-B(PP1)'!$I$152","v":0},"#'T2-B(PP1)'!$I$152"]
["pp1_bl4_3_17_unit",{"$f":"'T2-B(PP1)'!$C$152","v":0},"#'T2-B(PP1)'!$C$152"]
["pp1_bl4_3_17_unit_in",{"$f":"'T2-B(PP1)'!$D$152","v":0},"#'T2-B(PP1)'!$D$152"]
["pp1_bl4_3_17_units_out",{"$f":"'T2-B(PP1)'!$G$152","v":0},"#'T2-B(PP1)'!$G$152"]
["pp1_bl4_3_18_name",{"$f":"'T2-B(PP1)'!$B$153","v":0},"#'T2-B(PP1)'!$B$153"]
["pp1_bl4_3_18_rate_in",{"$f":"'T2-B(PP1)'!$E$153","v":0},"#'T2-B(PP1)'!$E$153"]
["pp1_bl4_3_18_rate_out",{"$f":"'T2-B(PP1)'!$H$153","v":0},"#'T2-B(PP1)'!$H$153"]
["pp1_bl4_3_18_total",{"$f":"'T2-B(PP1)'!$J$153","v":0},"#'T2-B(PP1)'!$J$153"]
["pp1_bl4_3_18_total_in",{"$f":"'T2-B(PP1)'!$F$153","v":0},"#'T2-B(PP1)'!$F$153"]
["pp1_bl4_3_18_total_out",{"$f":"'T2-B(PP1)'!$I$153","v":0},"#'T2-B(PP1)'!$I$153"]
["pp1_bl4_3_18_unit",{"$f":"'T2-B(PP1)'!$C$153","v":0},"#'T2-B(PP1)'!$C$153"]
["pp1_bl4_3_18_unit_in",{"$f":"'T2-B(PP1)'!$D$153","v":0},"#'T2-B(PP1)'!$D$153"]
["pp1_bl4_3_18_units_out",{"$f":"'T2-B(PP1)'!$G$153","v":0},"#'T2-B(PP1)'!$G$153"]
["pp1_bl4_3_19_name",{"$f":"'T2-B(PP1)'!$B$154","v":0},"#'T2-B(PP1)'!$B$154"]
["pp1_bl4_3_19_rate_in",{"$f":"'T2-B(PP1)'!$E$154","v":0},"#'T2-B(PP1)'!$E$154"]
["pp1_bl4_3_19_rate_out",{"$f":"'T2-B(PP1)'!$H$154","v":0},"#'T2-B(PP1)'!$H$154"]
["pp1_bl4_3_19_total",{"$f":"'T2-B(PP1)'!$J$154","v":0},"#'T2-B(PP1)'!$J$154"]
["pp1_bl4_3_19_total_in",{"$f":"'T2-B(PP1)'!$F$154","v":0},"#'T2-B(PP1)'!$F$154"]
["pp1_bl4_3_19_total_out",{"$f":"'T2-B(PP1)'!$I$154","v":0},"#'T2-B(PP1)'!$I$154"]
["pp1_bl4_3_19_unit",{"$f":"'T2-B(PP1)'!$C$154","v":0},"#'T2-B(PP1)'!$C$154"]
["pp1_bl4_3_19_unit_in",{"$f":"'T2-B(PP1)'!$D$154","v":0},"#'T2-B(PP1)'!$D$154"]
["pp1_bl4_3_19_units_out",{"$f":"'T2-B(PP1)'!$G$154","v":0},"#'T2-B(PP1)'!$G$154"]
["pp1_bl4_3_2_name",{"$f":"'T2-B(PP1)'!$B$137","v":0},"#'T2-B(PP1)'!$B$137"]
["pp1_bl4_3_2_rate_in",{"$f":"'T2-B(PP1)'!$E$137","v":0},"#'T2-B(PP1)'!$E$137"]
["pp1_bl4_3_2_rate_out",{"$f":"'T2-B(PP1)'!$H$137","v":0},"#'T2-B(PP1)'!$H$137"]
["pp1_bl4_3_2_total",{"$f":"'T2-B(PP1)'!$J$137","v":0},"#'T2-B(PP1)'!$J$137"]
["pp1_bl4_3_2_total_in",{"$f":"'T2-B(PP1)'!$F$137","v":0},"#'T2-B(PP1)'!$F$137"]
["pp1_bl4_3_2_total_out",{"$f":"'T2-B(PP1)'!$I$137","v":0},"#'T2-B(PP1)'!$I$137"]
["pp1_bl4_3_2_unit",{"$f":"'T2-B(PP1)'!$C$137","v":0},"#'T2-B(PP1)'!$C$137"]
["pp1_bl4_3_2_unit_in",{"$f":"'T2-B(PP1)'!$D$137","v":0},"#'T2-B(PP1)'!$D$137"]
["pp1_bl4_3_2_units_out",{"$f":"'T2-B(PP1)'!$G$137","v":0},"#'T2-B(PP1)'!$G$137"]
["pp1_bl4_3_20_name",{"$f":"'T2-B(PP1)'!$B$155","v":0},"#'T2-B(PP1)'!$B$155"]
["pp1_bl4_3_20_rate_in",{"$f":"'T2-B(PP1)'!$E$155","v":0},"#'T2-B(PP1)'!$E$155"]
["pp1_bl4_3_20_rate_out",{"$f":"'T2-B(PP1)'!$H$155","v":0},"#'T2-B(PP1)'!$H$155"]
["pp1_bl4_3_20_total",{"$f":"'T2-B(PP1)'!$J$155","v":0},"#'T2-B(PP1)'!$J$155"]
["pp1_bl4_3_20_total_in",{"$f":"'T2-B(PP1)'!$F$155","v":0},"#'T2-B(PP1)'!$F$155"]
["pp1_bl4_3_20_total_out",{"$f":"'T2-B(PP1)'!$I$155","v":0},"#'T2-B(PP1)'!$I$155"]
["pp1_bl4_3_20_unit",{"$f":"'T2-B(PP1)'!$C$155","v":0},"#'T2-B(PP1)'!$C$155"]
["pp1_bl4_3_20_unit_in",{"$f":"'T2-B(PP1)'!$D$155","v":0},"#'T2-B(PP1)'!$D$155"]
["pp1_bl4_3_20_units_out",{"$f":"'T2-B(PP1)'!$G$155","v":0},"#'T2-B(PP1)'!$G$155"]
["pp1_bl4_3_3_name",{"$f":"'T2-B(PP1)'!$B$138","v":0},"#'T2-B(PP1)'!$B$138"]
["pp1_bl4_3_3_rate_in",{"$f":"'T2-B(PP1)'!$E$138","v":0},"#'T2-B(PP1)'!$E$138"]
["pp1_bl4_3_3_rate_out",{"$f":"'T2-B(PP1)'!$H$138","v":0},"#'T2-B(PP1)'!$H$138"]
["pp1_bl4_3_3_total",{"$f":"'T2-B(PP1)'!$J$138","v":0},"#'T2-B(PP1)'!$J$138"]
["pp1_bl4_3_3_total_in",{"$f":"'T2-B(PP1)'!$F$138","v":0},"#'T2-B(PP1)'!$F$138"]
["pp1_bl4_3_3_total_out",{"$f":"'T2-B(PP1)'!$I$138","v":0},"#'T2-B(PP1)'!$I$138"]
["pp1_bl4_3_3_unit",{"$f":"'T2-B(PP1)'!$C$138","v":0},"#'T2-B(PP1)'!$C$138"]
["pp1_bl4_3_3_unit_in",{"$f":"'T2-B(PP1)'!$D$138","v":0},"#'T2-B(PP1)'!$D$138"]
["pp1_bl4_3_3_units_out",{"$f":"'T2-B(PP1)'!$G$138","v":0},"#'T2-B(PP1)'!$G$138"]
["pp1_bl4_3_4_name",{"$f":"'T2-B(PP1)'!$B$139","v":0},"#'T2-B(PP1)'!$B$139"]
["pp1_bl4_3_4_rate_in",{"$f":"'T2-B(PP1)'!$E$139","v":0},"#'T2-B(PP1)'!$E$139"]
["pp1_bl4_3_4_rate_out",{"$f":"'T2-B(PP1)'!$H$139","v":0},"#'T2-B(PP1)'!$H$139"]
["pp1_bl4_3_4_total",{"$f":"'T2-B(PP1)'!$J$139","v":0},"#'T2-B(PP1)'!$J$139"]
["pp1_bl4_3_4_total_in",{"$f":"'T2-B(PP1)'!$F$139","v":0},"#'T2-B(PP1)'!$F$139"]
["pp1_bl4_3_4_total_out",{"$f":"'T2-B(PP1)'!$I$139","v":0},"#'T2-B(PP1)'!$I$139"]
["pp1_bl4_3_4_unit",{"$f":"'T2-B(PP1)'!$C$139","v":0},"#'T2-B(PP1)'!$C$139"]
["pp1_bl4_3_4_unit_in",{"$f":"'T2-B(PP1)'!$D$139","v":0},"#'T2-B(PP1)'!$D$139"]
["pp1_bl4_3_4_units_out",{"$f":"'T2-B(PP1)'!$G$139","v":0},"#'T2-B(PP1)'!$G$139"]
["pp1_bl4_3_5_name",{"$f":"'T2-B(PP1)'!$B$140","v":0},"#'T2-B(PP1)'!$B$140"]
["pp1_bl4_3_5_rate_in",{"$f":"'T2-B(PP1)'!$E$140","v":0},"#'T2-B(PP1)'!$E$140"]
["pp1_bl4_3_5_rate_out",{"$f":"'T2-B(PP1)'!$H$140","v":0},"#'T2-B(PP1)'!$H$140"]
["pp1_bl4_3_5_total",{"$f":"'T2-B(PP1)'!$J$140","v":0},"#'T2-B(PP1)'!$J$140"]
["pp1_bl4_3_5_total_in",{"$f":"'T2-B(PP1)'!$F$140","v":0},"#'T2-B(PP1)'!$F$140"]
["pp1_bl4_3_5_total_out",{"$f":"'T2-B(PP1)'!$I$140","v":0},"#'T2-B(PP1)'!$I$140"]
["pp1_bl4_3_5_unit",{"$f":"'T2-B(PP1)'!$C$140","v":0},"#'T2-B(PP1)'!$C$140"]
["pp1_bl4_3_5_unit_in",{"$f":"'T2-B(PP1)'!$D$140","v":0},"#'T2-B(PP1)'!$D$140"]
["pp1_bl4_3_5_units_out",{"$f":"'T2-B(PP1)'!$G$140","v":0},"#'T2-B(PP1)'!$G$140"]
["pp1_bl4_3_6_name",{"$f":"'T2-B(PP1)'!$B$141","v":0},"#'T2-B(PP1)'!$B$141"]
["pp1_bl4_3_6_rate_in",{"$f":"'T2-B(PP1)'!$E$141","v":0},"#'T2-B(PP1)'!$E$141"]
["pp1_bl4_3_6_rate_out",{"$f":"'T2-B(PP1)'!$H$141","v":0},"#'T2-B(PP1)'!$H$141"]
["pp1_bl4_3_6_total",{"$f":"'T2-B(PP1)'!$J$141","v":0},"#'T2-B(PP1)'!$J$141"]
["pp1_bl4_3_6_total_in",{"$f":"'T2-B(PP1)'!$F$141","v":0},"#'T2-B(PP1)'!$F$141"]
["pp1_bl4_3_6_total_out",{"$f":"'T2-B(PP1)'!$I$141","v":0},"#'T2-B(PP1)'!$I$141"]
["pp1_bl4_3_6_unit",{"$f":"'T2-B(PP1)'!$C$141","v":0},"#'T2-B(PP1)'!$C$141"]
["pp1_bl4_3_6_unit_in",{"$f":"'T2-B(PP1)'!$D$141","v":0},"#'T2-B(PP1)'!$D$141"]
["pp1_bl4_3_6_units_out",{"$f":"'T2-B(PP1)'!$G$141","v":0},"#'T2-B(PP1)'!$G$141"]
["pp1_bl4_3_7_name",{"$f":"'T2-B(PP1)'!$B$142","v":0},"#'T2-B(PP1)'!$B$142"]
["pp1_bl4_3_7_rate_in",{"$f":"'T2-B(PP1)'!$E$142","v":0},"#'T2-B(PP1)'!$E$142"]
["pp1_bl4_3_7_rate_out",{"$f":"'T2-B(PP1)'!$H$142","v":0},"#'T2-B(PP1)'!$H$142"]
["pp1_bl4_3_7_total",{"$f":"'T2-B(PP1)'!$J$142","v":0},"#'T2-B(PP1)'!$J$142"]
["pp1_bl4_3_7_total_in",{"$f":"'T2-B(PP1)'!$F$142","v":0},"#'T2-B(PP1)'!$F$142"]
["pp1_bl4_3_7_total_out",{"$f":"'T2-B(PP1)'!$I$142","v":0},"#'T2-B(PP1)'!$I$142"]
["pp1_bl4_3_7_unit",{"$f":"'T2-B(PP1)'!$C$142","v":0},"#'T2-B(PP1)'!$C$142"]
["pp1_bl4_3_7_unit_in",{"$f":"'T2-B(PP1)'!$D$142","v":0},"#'T2-B(PP1)'!$D$142"]
["pp1_bl4_3_7_units_out",{"$f":"'T2-B(PP1)'!$G$142","v":0},"#'T2-B(PP1)'!$G$142"]
["pp1_bl4_3_8_name",{"$f":"'T2-B(PP1)'!$B$143","v":0},"#'T2-B(PP1)'!$B$143"]
["pp1_bl4_3_8_rate_in",{"$f":"'T2-B(PP1)'!$E$143","v":0},"#'T2-B(PP1)'!$E$143"]
["pp1_bl4_3_8_rate_out",{"$f":"'T2-B(PP1)'!$H$143","v":0},"#'T2-B(PP1)'!$H$143"]
["pp1_bl4_3_8_total",{"$f":"'T2-B(PP1)'!$J$143","v":0},"#'T2-B(PP1)'!$J$143"]
["pp1_bl4_3_8_total_in",{"$f":"'T2-B(PP1)'!$F$143","v":0},"#'T2-B(PP1)'!$F$143"]
["pp1_bl4_3_8_total_out",{"$f":"'T2-B(PP1)'!$I$143","v":0},"#'T2-B(PP1)'!$I$143"]
["pp1_bl4_3_8_unit",{"$f":"'T2-B(PP1)'!$C$143","v":0},"#'T2-B(PP1)'!$C$143"]
["pp1_bl4_3_8_unit_in",{"$f":"'T2-B(PP1)'!$D$143","v":0},"#'T2-B(PP1)'!$D$143"]
["pp1_bl4_3_8_units_out",{"$f":"'T2-B(PP1)'!$G$143","v":0},"#'T2-B(PP1)'!$G$143"]
["pp1_bl4_3_9_name",{"$f":"'T2-B(PP1)'!$B$144","v":0},"#'T2-B(PP1)'!$B$144"]
["pp1_bl4_3_9_rate_in",{"$f":"'T2-B(PP1)'!$E$144","v":0},"#'T2-B(PP1)'!$E$144"]
["pp1_bl4_3_9_rate_out",{"$f":"'T2-B(PP1)'!$H$144","v":0},"#'T2-B(PP1)'!$H$144"]
["pp1_bl4_3_9_total",{"$f":"'T2-B(PP1)'!$J$144","v":0},"#'T2-B(PP1)'!$J$144"]
["pp1_bl4_3_9_total_in",{"$f":"'T2-B(PP1)'!$F$144","v":0},"#'T2-B(PP1)'!$F$144"]
["pp1_bl4_3_9_total_out",{"$f":"'T2-B(PP1)'!$I$144","v":0},"#'T2-B(PP1)'!$I$144"]
["pp1_bl4_3_9_unit",{"$f":"'T2-B(PP1)'!$C$144","v":0},"#'T2-B(PP1)'!$C$144"]
["pp1_bl4_3_9_unit_in",{"$f":"'T2-B(PP1)'!$D$144","v":0},"#'T2-B(PP1)'!$D$144"]
["pp1_bl4_3_9_units_out",{"$f":"'T2-B(PP1)'!$G$144","v":0},"#'T2-B(PP1)'!$G$144"]
["pp1_bl4_3_total",{"$f":"'T2-B(PP1)'!$J$135","v":0},"#'T2-B(PP1)'!$J$135"]
["pp1_bl4_3_total_in",{"$f":"'T2-B(PP1)'!$F$135","v":0},"#'T2-B(PP1)'!$F$135"]
["pp1_bl4_3_total_out",{"$f":"'T2-B(PP1)'!$I$135","v":0},"#'T2-B(PP1)'!$I$135"]
["pp1_bl4_4_1_name",{"$f":"'T2-B(PP1)'!$B$157","v":0},"#'T2-B(PP1)'!$B$157"]
["pp1_bl4_4_1_rate_in",{"$f":"'T2-B(PP1)'!$E$157","v":0},"#'T2-B(PP1)'!$E$157"]
["pp1_bl4_4_1_rate_out",{"$f":"'T2-B(PP1)'!$H$157","v":0},"#'T2-B(PP1)'!$H$157"]
["pp1_bl4_4_1_total",{"$f":"'T2-B(PP1)'!$J$157","v":0},"#'T2-B(PP1)'!$J$157"]
["pp1_bl4_4_1_total_in",{"$f":"'T2-B(PP1)'!$F$157","v":0},"#'T2-B(PP1)'!$F$157"]
["pp1_bl4_4_1_total_out",{"$f":"'T2-B(PP1)'!$I$157","v":0},"#'T2-B(PP1)'!$I$157"]
["pp1_bl4_4_1_unit",{"$f":"'T2-B(PP1)'!$C$157","v":0},"#'T2-B(PP1)'!$C$157"]
["pp1_bl4_4_1_unit_in",{"$f":"'T2-B(PP1)'!$D$157","v":0},"#'T2-B(PP1)'!$D$157"]
["pp1_bl4_4_1_units_out",{"$f":"'T2-B(PP1)'!$G$157","v":0},"#'T2-B(PP1)'!$G$157"]
["pp1_bl4_4_10_name",{"$f":"'T2-B(PP1)'!$B$166","v":0},"#'T2-B(PP1)'!$B$166"]
["pp1_bl4_4_10_rate_in",{"$f":"'T2-B(PP1)'!$E$166","v":0},"#'T2-B(PP1)'!$E$166"]
["pp1_bl4_4_10_rate_out",{"$f":"'T2-B(PP1)'!$H$166","v":0},"#'T2-B(PP1)'!$H$166"]
["pp1_bl4_4_10_total",{"$f":"'T2-B(PP1)'!$J$166","v":0},"#'T2-B(PP1)'!$J$166"]
["pp1_bl4_4_10_total_in",{"$f":"'T2-B(PP1)'!$F$166","v":0},"#'T2-B(PP1)'!$F$166"]
["pp1_bl4_4_10_total_out",{"$f":"'T2-B(PP1)'!$I$166","v":0},"#'T2-B(PP1)'!$I$166"]
["pp1_bl4_4_10_unit",{"$f":"'T2-B(PP1)'!$C$166","v":0},"#'T2-B(PP1)'!$C$166"]
["pp1_bl4_4_10_unit_in",{"$f":"'T2-B(PP1)'!$D$166","v":0},"#'T2-B(PP1)'!$D$166"]
["pp1_bl4_4_10_units_out",{"$f":"'T2-B(PP1)'!$G$166","v":0},"#'T2-B(PP1)'!$G$166"]
["pp1_bl4_4_11_name",{"$f":"'T2-B(PP1)'!$B$167","v":0},"#'T2-B(PP1)'!$B$167"]
["pp1_bl4_4_11_rate_in",{"$f":"'T2-B(PP1)'!$E$167","v":0},"#'T2-B(PP1)'!$E$167"]
["pp1_bl4_4_11_rate_out",{"$f":"'T2-B(PP1)'!$H$167","v":0},"#'T2-B(PP1)'!$H$167"]
["pp1_bl4_4_11_total",{"$f":"'T2-B(PP1)'!$J$167","v":0},"#'T2-B(PP1)'!$J$167"]
["pp1_bl4_4_11_total_in",{"$f":"'T2-B(PP1)'!$F$167","v":0},"#'T2-B(PP1)'!$F$167"]
["pp1_bl4_4_11_total_out",{"$f":"'T2-B(PP1)'!$I$167","v":0},"#'T2-B(PP1)'!$I$167"]
["pp1_bl4_4_11_unit",{"$f":"'T2-B(PP1)'!$C$167","v":0},"#'T2-B(PP1)'!$C$167"]
["pp1_bl4_4_11_unit_in",{"$f":"'T2-B(PP1)'!$D$167","v":0},"#'T2-B(PP1)'!$D$167"]
["pp1_bl4_4_11_units_out",{"$f":"'T2-B(PP1)'!$G$167","v":0},"#'T2-B(PP1)'!$G$167"]
["pp1_bl4_4_12_name",{"$f":"'T2-B(PP1)'!$B$168","v":0},"#'T2-B(PP1)'!$B$168"]
["pp1_bl4_4_12_rate_in",{"$f":"'T2-B(PP1)'!$E$168","v":0},"#'T2-B(PP1)'!$E$168"]
["pp1_bl4_4_12_rate_out",{"$f":"'T2-B(PP1)'!$H$168","v":0},"#'T2-B(PP1)'!$H$168"]
["pp1_bl4_4_12_total",{"$f":"'T2-B(PP1)'!$J$168","v":0},"#'T2-B(PP1)'!$J$168"]
["pp1_bl4_4_12_total_in",{"$f":"'T2-B(PP1)'!$F$168","v":0},"#'T2-B(PP1)'!$F$168"]
["pp1_bl4_4_12_total_out",{"$f":"'T2-B(PP1)'!$I$168","v":0},"#'T2-B(PP1)'!$I$168"]
["pp1_bl4_4_12_unit",{"$f":"'T2-B(PP1)'!$C$168","v":0},"#'T2-B(PP1)'!$C$168"]
["pp1_bl4_4_12_unit_in",{"$f":"'T2-B(PP1)'!$D$168","v":0},"#'T2-B(PP1)'!$D$168"]
["pp1_bl4_4_12_units_out",{"$f":"'T2-B(PP1)'!$G$168","v":0},"#'T2-B(PP1)'!$G$168"]
["pp1_bl4_4_13_name",{"$f":"'T2-B(PP1)'!$B$169","v":0},"#'T2-B(PP1)'!$B$169"]
["pp1_bl4_4_13_rate_in",{"$f":"'T2-B(PP1)'!$E$169","v":0},"#'T2-B(PP1)'!$E$169"]
["pp1_bl4_4_13_rate_out",{"$f":"'T2-B(PP1)'!$H$169","v":0},"#'T2-B(PP1)'!$H$169"]
["pp1_bl4_4_13_total",{"$f":"'T2-B(PP1)'!$J$169","v":0},"#'T2-B(PP1)'!$J$169"]
["pp1_bl4_4_13_total_in",{"$f":"'T2-B(PP1)'!$F$169","v":0},"#'T2-B(PP1)'!$F$169"]
["pp1_bl4_4_13_total_out",{"$f":"'T2-B(PP1)'!$I$169","v":0},"#'T2-B(PP1)'!$I$169"]
["pp1_bl4_4_13_unit",{"$f":"'T2-B(PP1)'!$C$169","v":0},"#'T2-B(PP1)'!$C$169"]
["pp1_bl4_4_13_unit_in",{"$f":"'T2-B(PP1)'!$D$169","v":0},"#'T2-B(PP1)'!$D$169"]
["pp1_bl4_4_13_units_out",{"$f":"'T2-B(PP1)'!$G$169","v":0},"#'T2-B(PP1)'!$G$169"]
["pp1_bl4_4_14_name",{"$f":"'T2-B(PP1)'!$B$170","v":0},"#'T2-B(PP1)'!$B$170"]
["pp1_bl4_4_14_rate_in",{"$f":"'T2-B(PP1)'!$E$170","v":0},"#'T2-B(PP1)'!$E$170"]
["pp1_bl4_4_14_rate_out",{"$f":"'T2-B(PP1)'!$H$170","v":0},"#'T2-B(PP1)'!$H$170"]
["pp1_bl4_4_14_total",{"$f":"'T2-B(PP1)'!$J$170","v":0},"#'T2-B(PP1)'!$J$170"]
["pp1_bl4_4_14_total_in",{"$f":"'T2-B(PP1)'!$F$170","v":0},"#'T2-B(PP1)'!$F$170"]
["pp1_bl4_4_14_total_out",{"$f":"'T2-B(PP1)'!$I$170","v":0},"#'T2-B(PP1)'!$I$170"]
["pp1_bl4_4_14_unit",{"$f":"'T2-B(PP1)'!$C$170","v":0},"#'T2-B(PP1)'!$C$170"]
["pp1_bl4_4_14_unit_in",{"$f":"'T2-B(PP1)'!$D$170","v":0},"#'T2-B(PP1)'!$D$170"]
["pp1_bl4_4_14_units_out",{"$f":"'T2-B(PP1)'!$G$170","v":0},"#'T2-B(PP1)'!$G$170"]
["pp1_bl4_4_15_name",{"$f":"'T2-B(PP1)'!$B$171","v":0},"#'T2-B(PP1)'!$B$171"]
["pp1_bl4_4_15_rate_in",{"$f":"'T2-B(PP1)'!$E$171","v":0},"#'T2-B(PP1)'!$E$171"]
["pp1_bl4_4_15_rate_out",{"$f":"'T2-B(PP1)'!$H$171","v":0},"#'T2-B(PP1)'!$H$171"]
["pp1_bl4_4_15_total",{"$f":"'T2-B(PP1)'!$J$171","v":0},"#'T2-B(PP1)'!$J$171"]
["pp1_bl4_4_15_total_in",{"$f":"'T2-B(PP1)'!$F$171","v":0},"#'T2-B(PP1)'!$F$171"]
["pp1_bl4_4_15_total_out",{"$f":"'T2-B(PP1)'!$I$171","v":0},"#'T2-B(PP1)'!$I$171"]
["pp1_bl4_4_15_unit",{"$f":"'T2-B(PP1)'!$C$171","v":0},"#'T2-B(PP1)'!$C$171"]
["pp1_bl4_4_15_unit_in",{"$f":"'T2-B(PP1)'!$D$171","v":0},"#'T2-B(PP1)'!$D$171"]
["pp1_bl4_4_15_units_out",{"$f":"'T2-B(PP1)'!$G$171","v":0},"#'T2-B(PP1)'!$G$171"]
["pp1_bl4_4_16_name",{"$f":"'T2-B(PP1)'!$B$172","v":0},"#'T2-B(PP1)'!$B$172"]
["pp1_bl4_4_16_rate_in",{"$f":"'T2-B(PP1)'!$E$172","v":0},"#'T2-B(PP1)'!$E$172"]
["pp1_bl4_4_16_rate_out",{"$f":"'T2-B(PP1)'!$H$172","v":0},"#'T2-B(PP1)'!$H$172"]
["pp1_bl4_4_16_total",{"$f":"'T2-B(PP1)'!$J$172","v":0},"#'T2-B(PP1)'!$J$172"]
["pp1_bl4_4_16_total_in",{"$f":"'T2-B(PP1)'!$F$172","v":0},"#'T2-B(PP1)'!$F$172"]
["pp1_bl4_4_16_total_out",{"$f":"'T2-B(PP1)'!$I$172","v":0},"#'T2-B(PP1)'!$I$172"]
["pp1_bl4_4_16_unit",{"$f":"'T2-B(PP1)'!$C$172","v":0},"#'T2-B(PP1)'!$C$172"]
["pp1_bl4_4_16_unit_in",{"$f":"'T2-B(PP1)'!$D$172","v":0},"#'T2-B(PP1)'!$D$172"]
["pp1_bl4_4_16_units_out",{"$f":"'T2-B(PP1)'!$G$172","v":0},"#'T2-B(PP1)'!$G$172"]
["pp1_bl4_4_17_name",{"$f":"'T2-B(PP1)'!$B$173","v":0},"#'T2-B(PP1)'!$B$173"]
["pp1_bl4_4_17_rate_in",{"$f":"'T2-B(PP1)'!$E$173","v":0},"#'T2-B(PP1)'!$E$173"]
["pp1_bl4_4_17_rate_out",{"$f":"'T2-B(PP1)'!$H$173","v":0},"#'T2-B(PP1)'!$H$173"]
["pp1_bl4_4_17_total",{"$f":"'T2-B(PP1)'!$J$173","v":0},"#'T2-B(PP1)'!$J$173"]
["pp1_bl4_4_17_total_in",{"$f":"'T2-B(PP1)'!$F$173","v":0},"#'T2-B(PP1)'!$F$173"]
["pp1_bl4_4_17_total_out",{"$f":"'T2-B(PP1)'!$I$173","v":0},"#'T2-B(PP1)'!$I$173"]
["pp1_bl4_4_17_unit",{"$f":"'T2-B(PP1)'!$C$173","v":0},"#'T2-B(PP1)'!$C$173"]
["pp1_bl4_4_17_unit_in",{"$f":"'T2-B(PP1)'!$D$173","v":0},"#'T2-B(PP1)'!$D$173"]
["pp1_bl4_4_17_units_out",{"$f":"'T2-B(PP1)'!$G$173","v":0},"#'T2-B(PP1)'!$G$173"]
["pp1_bl4_4_18_name",{"$f":"'T2-B(PP1)'!$B$174","v":0},"#'T2-B(PP1)'!$B$174"]
["pp1_bl4_4_18_rate_in",{"$f":"'T2-B(PP1)'!$E$174","v":0},"#'T2-B(PP1)'!$E$174"]
["pp1_bl4_4_18_rate_out",{"$f":"'T2-B(PP1)'!$H$174","v":0},"#'T2-B(PP1)'!$H$174"]
["pp1_bl4_4_18_total",{"$f":"'T2-B(PP1)'!$J$174","v":0},"#'T2-B(PP1)'!$J$174"]
["pp1_bl4_4_18_total_in",{"$f":"'T2-B(PP1)'!$F$174","v":0},"#'T2-B(PP1)'!$F$174"]
["pp1_bl4_4_18_total_out",{"$f":"'T2-B(PP1)'!$I$174","v":0},"#'T2-B(PP1)'!$I$174"]
["pp1_bl4_4_18_unit",{"$f":"'T2-B(PP1)'!$C$174","v":0},"#'T2-B(PP1)'!$C$174"]
["pp1_bl4_4_18_unit_in",{"$f":"'T2-B(PP1)'!$D$174","v":0},"#'T2-B(PP1)'!$D$174"]
["pp1_bl4_4_18_units_out",{"$f":"'T2-B(PP1)'!$G$174","v":0},"#'T2-B(PP1)'!$G$174"]
["pp1_bl4_4_19_name",{"$f":"'T2-B(PP1)'!$B$175","v":0},"#'T2-B(PP1)'!$B$175"]
["pp1_bl4_4_19_rate_in",{"$f":"'T2-B(PP1)'!$E$175","v":0},"#'T2-B(PP1)'!$E$175"]
["pp1_bl4_4_19_rate_out",{"$f":"'T2-B(PP1)'!$H$175","v":0},"#'T2-B(PP1)'!$H$175"]
["pp1_bl4_4_19_total",{"$f":"'T2-B(PP1)'!$J$175","v":0},"#'T2-B(PP1)'!$J$175"]
["pp1_bl4_4_19_total_in",{"$f":"'T2-B(PP1)'!$F$175","v":0},"#'T2-B(PP1)'!$F$175"]
["pp1_bl4_4_19_total_out",{"$f":"'T2-B(PP1)'!$I$175","v":0},"#'T2-B(PP1)'!$I$175"]
["pp1_bl4_4_19_unit",{"$f":"'T2-B(PP1)'!$C$175","v":0},"#'T2-B(PP1)'!$C$175"]
["pp1_bl4_4_19_unit_in",{"$f":"'T2-B(PP1)'!$D$175","v":0},"#'T2-B(PP1)'!$D$175"]
["pp1_bl4_4_19_units_out",{"$f":"'T2-B(PP1)'!$G$175","v":0},"#'T2-B(PP1)'!$G$175"]
["pp1_bl4_4_2_name",{"$f":"'T2-B(PP1)'!$B$158","v":0},"#'T2-B(PP1)'!$B$158"]
["pp1_bl4_4_2_rate_in",{"$f":"'T2-B(PP1)'!$E$158","v":0},"#'T2-B(PP1)'!$E$158"]
["pp1_bl4_4_2_rate_out",{"$f":"'T2-B(PP1)'!$H$158","v":0},"#'T2-B(PP1)'!$H$158"]
["pp1_bl4_4_2_total",{"$f":"'T2-B(PP1)'!$J$158","v":0},"#'T2-B(PP1)'!$J$158"]
["pp1_bl4_4_2_total_in",{"$f":"'T2-B(PP1)'!$F$158","v":0},"#'T2-B(PP1)'!$F$158"]
["pp1_bl4_4_2_total_out",{"$f":"'T2-B(PP1)'!$I$158","v":0},"#'T2-B(PP1)'!$I$158"]
["pp1_bl4_4_2_unit",{"$f":"'T2-B(PP1)'!$C$158","v":0},"#'T2-B(PP1)'!$C$158"]
["pp1_bl4_4_2_unit_in",{"$f":"'T2-B(PP1)'!$D$158","v":0},"#'T2-B(PP1)'!$D$158"]
["pp1_bl4_4_2_units_out",{"$f":"'T2-B(PP1)'!$G$158","v":0},"#'T2-B(PP1)'!$G$158"]
["pp1_bl4_4_20_name",{"$f":"'T2-B(PP1)'!$B$176","v":0},"#'T2-B(PP1)'!$B$176"]
["pp1_bl4_4_20_rate_in",{"$f":"'T2-B(PP1)'!$E$176","v":0},"#'T2-B(PP1)'!$E$176"]
["pp1_bl4_4_20_rate_out",{"$f":"'T2-B(PP1)'!$H$176","v":0},"#'T2-B(PP1)'!$H$176"]
["pp1_bl4_4_20_total",{"$f":"'T2-B(PP1)'!$J$176","v":0},"#'T2-B(PP1)'!$J$176"]
["pp1_bl4_4_20_total_in",{"$f":"'T2-B(PP1)'!$F$176","v":0},"#'T2-B(PP1)'!$F$176"]
["pp1_bl4_4_20_total_out",{"$f":"'T2-B(PP1)'!$I$176","v":0},"#'T2-B(PP1)'!$I$176"]
["pp1_bl4_4_20_unit",{"$f":"'T2-B(PP1)'!$C$176","v":0},"#'T2-B(PP1)'!$C$176"]
["pp1_bl4_4_20_unit_in",{"$f":"'T2-B(PP1)'!$D$176","v":0},"#'T2-B(PP1)'!$D$176"]
["pp1_bl4_4_20_units_out",{"$f":"'T2-B(PP1)'!$G$176","v":0},"#'T2-B(PP1)'!$G$176"]
["pp1_bl4_4_3_name",{"$f":"'T2-B(PP1)'!$B$159","v":0},"#'T2-B(PP1)'!$B$159"]
["pp1_bl4_4_3_rate_in",{"$f":"'T2-B(PP1)'!$E$159","v":0},"#'T2-B(PP1)'!$E$159"]
["pp1_bl4_4_3_rate_out",{"$f":"'T2-B(PP1)'!$H$159","v":0},"#'T2-B(PP1)'!$H$159"]
["pp1_bl4_4_3_total",{"$f":"'T2-B(PP1)'!$J$159","v":0},"#'T2-B(PP1)'!$J$159"]
["pp1_bl4_4_3_total_in",{"$f":"'T2-B(PP1)'!$F$159","v":0},"#'T2-B(PP1)'!$F$159"]
["pp1_bl4_4_3_total_out",{"$f":"'T2-B(PP1)'!$I$159","v":0},"#'T2-B(PP1)'!$I$159"]
["pp1_bl4_4_3_unit",{"$f":"'T2-B(PP1)'!$C$159","v":0},"#'T2-B(PP1)'!$C$159"]
["pp1_bl4_4_3_unit_in",{"$f":"'T2-B(PP1)'!$D$159","v":0},"#'T2-B(PP1)'!$D$159"]
["pp1_bl4_4_3_units_out",{"$f":"'T2-B(PP1)'!$G$159","v":0},"#'T2-B(PP1)'!$G$159"]
["pp1_bl4_4_4_name",{"$f":"'T2-B(PP1)'!$B$160","v":0},"#'T2-B(PP1)'!$B$160"]
["pp1_bl4_4_4_rate_in",{"$f":"'T2-B(PP1)'!$E$160","v":0},"#'T2-B(PP1)'!$E$160"]
["pp1_bl4_4_4_rate_out",{"$f":"'T2-B(PP1)'!$H$160","v":0},"#'T2-B(PP1)'!$H$160"]
["pp1_bl4_4_4_total",{"$f":"'T2-B(PP1)'!$J$160","v":0},"#'T2-B(PP1)'!$J$160"]
["pp1_bl4_4_4_total_in",{"$f":"'T2-B(PP1)'!$F$160","v":0},"#'T2-B(PP1)'!$F$160"]
["pp1_bl4_4_4_total_out",{"$f":"'T2-B(PP1)'!$I$160","v":0},"#'T2-B(PP1)'!$I$160"]
["pp1_bl4_4_4_unit",{"$f":"'T2-B(PP1)'!$C$160","v":0},"#'T2-B(PP1)'!$C$160"]
["pp1_bl4_4_4_unit_in",{"$f":"'T2-B(PP1)'!$D$160","v":0},"#'T2-B(PP1)'!$D$160"]
["pp1_bl4_4_4_units_out",{"$f":"'T2-B(PP1)'!$G$160","v":0},"#'T2-B(PP1)'!$G$160"]
["pp1_bl4_4_5_name",{"$f":"'T2-B(PP1)'!$B$161","v":0},"#'T2-B(PP1)'!$B$161"]
["pp1_bl4_4_5_rate_in",{"$f":"'T2-B(PP1)'!$E$161","v":0},"#'T2-B(PP1)'!$E$161"]
["pp1_bl4_4_5_rate_out",{"$f":"'T2-B(PP1)'!$H$161","v":0},"#'T2-B(PP1)'!$H$161"]
["pp1_bl4_4_5_total",{"$f":"'T2-B(PP1)'!$J$161","v":0},"#'T2-B(PP1)'!$J$161"]
["pp1_bl4_4_5_total_in",{"$f":"'T2-B(PP1)'!$F$161","v":0},"#'T2-B(PP1)'!$F$161"]
["pp1_bl4_4_5_total_out",{"$f":"'T2-B(PP1)'!$I$161","v":0},"#'T2-B(PP1)'!$I$161"]
["pp1_bl4_4_5_unit",{"$f":"'T2-B(PP1)'!$C$161","v":0},"#'T2-B(PP1)'!$C$161"]
["pp1_bl4_4_5_unit_in",{"$f":"'T2-B(PP1)'!$D$161","v":0},"#'T2-B(PP1)'!$D$161"]
["pp1_bl4_4_5_units_out",{"$f":"'T2-B(PP1)'!$G$161","v":0},"#'T2-B(PP1)'!$G$161"]
["pp1_bl4_4_6_name",{"$f":"'T2-B(PP1)'!$B$162","v":0},"#'T2-B(PP1)'!$B$162"]
["pp1_bl4_4_6_rate_in",{"$f":"'T2-B(PP1)'!$E$162","v":0},"#'T2-B(PP1)'!$E$162"]
["pp1_bl4_4_6_rate_out",{"$f":"'T2-B(PP1)'!$H$162","v":0},"#'T2-B(PP1)'!$H$162"]
["pp1_bl4_4_6_total",{"$f":"'T2-B(PP1)'!$J$162","v":0},"#'T2-B(PP1)'!$J$162"]
["pp1_bl4_4_6_total_in",{"$f":"'T2-B(PP1)'!$F$162","v":0},"#'T2-B(PP1)'!$F$162"]
["pp1_bl4_4_6_total_out",{"$f":"'T2-B(PP1)'!$I$162","v":0},"#'T2-B(PP1)'!$I$162"]
["pp1_bl4_4_6_unit",{"$f":"'T2-B(PP1)'!$C$162","v":0},"#'T2-B(PP1)'!$C$162"]
["pp1_bl4_4_6_unit_in",{"$f":"'T2-B(PP1)'!$D$162","v":0},"#'T2-B(PP1)'!$D$162"]
["pp1_bl4_4_6_units_out",{"$f":"'T2-B(PP1)'!$G$162","v":0},"#'T2-B(PP1)'!$G$162"]
["pp1_bl4_4_7_name",{"$f":"'T2-B(PP1)'!$B$163","v":0},"#'T2-B(PP1)'!$B$163"]
["pp1_bl4_4_7_rate_in",{"$f":"'T2-B(PP1)'!$E$163","v":0},"#'T2-B(PP1)'!$E$163"]
["pp1_bl4_4_7_rate_out",{"$f":"'T2-B(PP1)'!$H$163","v":0},"#'T2-B(PP1)'!$H$163"]
["pp1_bl4_4_7_total",{"$f":"'T2-B(PP1)'!$J$163","v":0},"#'T2-B(PP1)'!$J$163"]
["pp1_bl4_4_7_total_in",{"$f":"'T2-B(PP1)'!$F$163","v":0},"#'T2-B(PP1)'!$F$163"]
["pp1_bl4_4_7_total_out",{"$f":"'T2-B(PP1)'!$I$163","v":0},"#'T2-B(PP1)'!$I$163"]
["pp1_bl4_4_7_unit",{"$f":"'T2-B(PP1)'!$C$163","v":0},"#'T2-B(PP1)'!$C$163"]
["pp1_bl4_4_7_unit_in",{"$f":"'T2-B(PP1)'!$D$163","v":0},"#'T2-B(PP1)'!$D$163"]
["pp1_bl4_4_7_units_out",{"$f":"'T2-B(PP1)'!$G$163","v":0},"#'T2-B(PP1)'!$G$163"]
["pp1_bl4_4_8_name",{"$f":"'T2-B(PP1)'!$B$164","v":0},"#'T2-B(PP1)'!$B$164"]
["pp1_bl4_4_8_rate_in",{"$f":"'T2-B(PP1)'!$E$164","v":0},"#'T2-B(PP1)'!$E$164"]
["pp1_bl4_4_8_rate_out",{"$f":"'T2-B(PP1)'!$H$164","v":0},"#'T2-B(PP1)'!$H$164"]
["pp1_bl4_4_8_total",{"$f":"'T2-B(PP1)'!$J$164","v":0},"#'T2-B(PP1)'!$J$164"]
["pp1_bl4_4_8_total_in",{"$f":"'T2-B(PP1)'!$F$164","v":0},"#'T2-B(PP1)'!$F$164"]
["pp1_bl4_4_8_total_out",{"$f":"'T2-B(PP1)'!$I$164","v":0},"#'T2-B(PP1)'!$I$164"]
["pp1_bl4_4_8_unit",{"$f":"'T2-B(PP1)'!$C$164","v":0},"#'T2-B(PP1)'!$C$164"]
["pp1_bl4_4_8_unit_in",{"$f":"'T2-B(PP1)'!$D$164","v":0},"#'T2-B(PP1)'!$D$164"]
["pp1_bl4_4_8_units_out",{"$f":"'T2-B(PP1)'!$G$164","v":0},"#'T2-B(PP1)'!$G$164"]
["pp1_bl4_4_9_name",{"$f":"'T2-B(PP1)'!$B$165","v":0},"#'T2-B(PP1)'!$B$165"]
["pp1_bl4_4_9_rate_in",{"$f":"'T2-B(PP1)'!$E$165","v":0},"#'T2-B(PP1)'!$E$165"]
["pp1_bl4_4_9_rate_out",{"$f":"'T2-B(PP1)'!$H$165","v":0},"#'T2-B(PP1)'!$H$165"]
["pp1_bl4_4_9_total",{"$f":"'T2-B(PP1)'!$J$165","v":0},"#'T2-B(PP1)'!$J$165"]
["pp1_bl4_4_9_total_in",{"$f":"'T2-B(PP1)'!$F$165","v":0},"#'T2-B(PP1)'!$F$165"]
["pp1_bl4_4_9_total_out",{"$f":"'T2-B(PP1)'!$I$165","v":0},"#'T2-B(PP1)'!$I$165"]
["pp1_bl4_4_9_unit",{"$f":"'T2-B(PP1)'!$C$165","v":0},"#'T2-B(PP1)'!$C$165"]
["pp1_bl4_4_9_unit_in",{"$f":"'T2-B(PP1)'!$D$165","v":0},"#'T2-B(PP1)'!$D$165"]
["pp1_bl4_4_9_units_out",{"$f":"'T2-B(PP1)'!$G$165","v":0},"#'T2-B(PP1)'!$G$165"]
["pp1_bl4_4_total",{"$f":"'T2-B(PP1)'!$J$156","v":0},"#'T2-B(PP1)'!$J$156"]
["pp1_bl4_4_total_in",{"$f":"'T2-B(PP1)'!$F$156","v":0},"#'T2-B(PP1)'!$F$156"]
["pp1_bl4_4_total_out",{"$f":"'T2-B(PP1)'!$I$156","v":0},"#'T2-B(PP1)'!$I$156"]
["pp1_bl4_5_1_name",{"$f":"'T2-B(PP1)'!$B$178","v":0},"#'T2-B(PP1)'!$B$178"]
["pp1_bl4_5_1_rate_in",{"$f":"'T2-B(PP1)'!$E$178","v":0},"#'T2-B(PP1)'!$E$178"]
["pp1_bl4_5_1_rate_out",{"$f":"'T2-B(PP1)'!$H$178","v":0},"#'T2-B(PP1)'!$H$178"]
["pp1_bl4_5_1_total",{"$f":"'T2-B(PP1)'!$J$178","v":0},"#'T2-B(PP1)'!$J$178"]
["pp1_bl4_5_1_total_in",{"$f":"'T2-B(PP1)'!$F$178","v":0},"#'T2-B(PP1)'!$F$178"]
["pp1_bl4_5_1_total_out",{"$f":"'T2-B(PP1)'!$I$178","v":0},"#'T2-B(PP1)'!$I$178"]
["pp1_bl4_5_1_unit",{"$f":"'T2-B(PP1)'!$C$178","v":0},"#'T2-B(PP1)'!$C$178"]
["pp1_bl4_5_1_unit_in",{"$f":"'T2-B(PP1)'!$D$178","v":0},"#'T2-B(PP1)'!$D$178"]
["pp1_bl4_5_1_units_out",{"$f":"'T2-B(PP1)'!$G$178","v":0},"#'T2-B(PP1)'!$G$178"]
["pp1_bl4_5_10_name",{"$f":"'T2-B(PP1)'!$B$187","v":0},"#'T2-B(PP1)'!$B$187"]
["pp1_bl4_5_10_rate_in",{"$f":"'T2-B(PP1)'!$E$187","v":0},"#'T2-B(PP1)'!$E$187"]
["pp1_bl4_5_10_rate_out",{"$f":"'T2-B(PP1)'!$H$187","v":0},"#'T2-B(PP1)'!$H$187"]
["pp1_bl4_5_10_total",{"$f":"'T2-B(PP1)'!$J$187","v":0},"#'T2-B(PP1)'!$J$187"]
["pp1_bl4_5_10_total_in",{"$f":"'T2-B(PP1)'!$F$187","v":0},"#'T2-B(PP1)'!$F$187"]
["pp1_bl4_5_10_total_out",{"$f":"'T2-B(PP1)'!$I$187","v":0},"#'T2-B(PP1)'!$I$187"]
["pp1_bl4_5_10_unit",{"$f":"'T2-B(PP1)'!$C$187","v":0},"#'T2-B(PP1)'!$C$187"]
["pp1_bl4_5_10_unit_in",{"$f":"'T2-B(PP1)'!$D$187","v":0},"#'T2-B(PP1)'!$D$187"]
["pp1_bl4_5_10_units_out",{"$f":"'T2-B(PP1)'!$G$187","v":0},"#'T2-B(PP1)'!$G$187"]
["pp1_bl4_5_11_name",{"$f":"'T2-B(PP1)'!$B$188","v":0},"#'T2-B(PP1)'!$B$188"]
["pp1_bl4_5_11_rate_in",{"$f":"'T2-B(PP1)'!$E$188","v":0},"#'T2-B(PP1)'!$E$188"]
["pp1_bl4_5_11_rate_out",{"$f":"'T2-B(PP1)'!$H$188","v":0},"#'T2-B(PP1)'!$H$188"]
["pp1_bl4_5_11_total",{"$f":"'T2-B(PP1)'!$J$188","v":0},"#'T2-B(PP1)'!$J$188"]
["pp1_bl4_5_11_total_in",{"$f":"'T2-B(PP1)'!$F$188","v":0},"#'T2-B(PP1)'!$F$188"]
["pp1_bl4_5_11_total_out",{"$f":"'T2-B(PP1)'!$I$188","v":0},"#'T2-B(PP1)'!$I$188"]
["pp1_bl4_5_11_unit",{"$f":"'T2-B(PP1)'!$C$188","v":0},"#'T2-B(PP1)'!$C$188"]
["pp1_bl4_5_11_unit_in",{"$f":"'T2-B(PP1)'!$D$188","v":0},"#'T2-B(PP1)'!$D$188"]
["pp1_bl4_5_11_units_out",{"$f":"'T2-B(PP1)'!$G$188","v":0},"#'T2-B(PP1)'!$G$188"]
["pp1_bl4_5_12_name",{"$f":"'T2-B(PP1)'!$B$189","v":0},"#'T2-B(PP1)'!$B$189"]
["pp1_bl4_5_12_rate_in",{"$f":"'T2-B(PP1)'!$E$189","v":0},"#'T2-B(PP1)'!$E$189"]
["pp1_bl4_5_12_rate_out",{"$f":"'T2-B(PP1)'!$H$189","v":0},"#'T2-B(PP1)'!$H$189"]
["pp1_bl4_5_12_total",{"$f":"'T2-B(PP1)'!$J$189","v":0},"#'T2-B(PP1)'!$J$189"]
["pp1_bl4_5_12_total_in",{"$f":"'T2-B(PP1)'!$F$189","v":0},"#'T2-B(PP1)'!$F$189"]
["pp1_bl4_5_12_total_out",{"$f":"'T2-B(PP1)'!$I$189","v":0},"#'T2-B(PP1)'!$I$189"]
["pp1_bl4_5_12_unit",{"$f":"'T2-B(PP1)'!$C$189","v":0},"#'T2-B(PP1)'!$C$189"]
["pp1_bl4_5_12_unit_in",{"$f":"'T2-B(PP1)'!$D$189","v":0},"#'T2-B(PP1)'!$D$189"]
["pp1_bl4_5_12_units_out",{"$f":"'T2-B(PP1)'!$G$189","v":0},"#'T2-B(PP1)'!$G$189"]
["pp1_bl4_5_13_name",{"$f":"'T2-B(PP1)'!$B$190","v":0},"#'T2-B(PP1)'!$B$190"]
["pp1_bl4_5_13_rate_in",{"$f":"'T2-B(PP1)'!$E$190","v":0},"#'T2-B(PP1)'!$E$190"]
["pp1_bl4_5_13_rate_out",{"$f":"'T2-B(PP1)'!$H$190","v":0},"#'T2-B(PP1)'!$H$190"]
["pp1_bl4_5_13_total",{"$f":"'T2-B(PP1)'!$J$190","v":0},"#'T2-B(PP1)'!$J$190"]
["pp1_bl4_5_13_total_in",{"$f":"'T2-B(PP1)'!$F$190","v":0},"#'T2-B(PP1)'!$F$190"]
["pp1_bl4_5_13_total_out",{"$f":"'T2-B(PP1)'!$I$190","v":0},"#'T2-B(PP1)'!$I$190"]
["pp1_bl4_5_13_unit",{"$f":"'T2-B(PP1)'!$C$190","v":0},"#'T2-B(PP1)'!$C$190"]
["pp1_bl4_5_13_unit_in",{"$f":"'T2-B(PP1)'!$D$190","v":0},"#'T2-B(PP1)'!$D$190"]
["pp1_bl4_5_13_units_out",{"$f":"'T2-B(PP1)'!$G$190","v":0},"#'T2-B(PP1)'!$G$190"]
["pp1_bl4_5_14_name",{"$f":"'T2-B(PP1)'!$B$191","v":0},"#'T2-B(PP1)'!$B$191"]
["pp1_bl4_5_14_rate_in",{"$f":"'T2-B(PP1)'!$E$191","v":0},"#'T2-B(PP1)'!$E$191"]
["pp1_bl4_5_14_rate_out",{"$f":"'T2-B(PP1)'!$H$191","v":0},"#'T2-B(PP1)'!$H$191"]
["pp1_bl4_5_14_total",{"$f":"'T2-B(PP1)'!$J$191","v":0},"#'T2-B(PP1)'!$J$191"]
["pp1_bl4_5_14_total_in",{"$f":"'T2-B(PP1)'!$F$191","v":0},"#'T2-B(PP1)'!$F$191"]
["pp1_bl4_5_14_total_out",{"$f":"'T2-B(PP1)'!$I$191","v":0},"#'T2-B(PP1)'!$I$191"]
["pp1_bl4_5_14_unit",{"$f":"'T2-B(PP1)'!$C$191","v":0},"#'T2-B(PP1)'!$C$191"]
["pp1_bl4_5_14_unit_in",{"$f":"'T2-B(PP1)'!$D$191","v":0},"#'T2-B(PP1)'!$D$191"]
["pp1_bl4_5_14_units_out",{"$f":"'T2-B(PP1)'!$G$191","v":0},"#'T2-B(PP1)'!$G$191"]
["pp1_bl4_5_15_name",{"$f":"'T2-B(PP1)'!$B$192","v":0},"#'T2-B(PP1)'!$B$192"]
["pp1_bl4_5_15_rate_in",{"$f":"'T2-B(PP1)'!$E$192","v":0},"#'T2-B(PP1)'!$E$192"]
["pp1_bl4_5_15_rate_out",{"$f":"'T2-B(PP1)'!$H$192","v":0},"#'T2-B(PP1)'!$H$192"]
["pp1_bl4_5_15_total",{"$f":"'T2-B(PP1)'!$J$192","v":0},"#'T2-B(PP1)'!$J$192"]
["pp1_bl4_5_15_total_in",{"$f":"'T2-B(PP1)'!$F$192","v":0},"#'T2-B(PP1)'!$F$192"]
["pp1_bl4_5_15_total_out",{"$f":"'T2-B(PP1)'!$I$192","v":0},"#'T2-B(PP1)'!$I$192"]
["pp1_bl4_5_15_unit",{"$f":"'T2-B(PP1)'!$C$192","v":0},"#'T2-B(PP1)'!$C$192"]
["pp1_bl4_5_15_unit_in",{"$f":"'T2-B(PP1)'!$D$192","v":0},"#'T2-B(PP1)'!$D$192"]
["pp1_bl4_5_15_units_out",{"$f":"'T2-B(PP1)'!$G$192","v":0},"#'T2-B(PP1)'!$G$192"]
["pp1_bl4_5_16_name",{"$f":"'T2-B(PP1)'!$B$193","v":0},"#'T2-B(PP1)'!$B$193"]
["pp1_bl4_5_16_rate_in",{"$f":"'T2-B(PP1)'!$E$193","v":0},"#'T2-B(PP1)'!$E$193"]
["pp1_bl4_5_16_rate_out",{"$f":"'T2-B(PP1)'!$H$193","v":0},"#'T2-B(PP1)'!$H$193"]
["pp1_bl4_5_16_total",{"$f":"'T2-B(PP1)'!$J$193","v":0},"#'T2-B(PP1)'!$J$193"]
["pp1_bl4_5_16_total_in",{"$f":"'T2-B(PP1)'!$F$193","v":0},"#'T2-B(PP1)'!$F$193"]
["pp1_bl4_5_16_total_out",{"$f":"'T2-B(PP1)'!$I$193","v":0},"#'T2-B(PP1)'!$I$193"]
["pp1_bl4_5_16_unit",{"$f":"'T2-B(PP1)'!$C$193","v":0},"#'T2-B(PP1)'!$C$193"]
["pp1_bl4_5_16_unit_in",{"$f":"'T2-B(PP1)'!$D$193","v":0},"#'T2-B(PP1)'!$D$193"]
["pp1_bl4_5_16_units_out",{"$f":"'T2-B(PP1)'!$G$193","v":0},"#'T2-B(PP1)'!$G$193"]
["pp1_bl4_5_17_name",{"$f":"'T2-B(PP1)'!$B$194","v":0},"#'T2-B(PP1)'!$B$194"]
["pp1_bl4_5_17_rate_in",{"$f":"'T2-B(PP1)'!$E$194","v":0},"#'T2-B(PP1)'!$E$194"]
["pp1_bl4_5_17_rate_out",{"$f":"'T2-B(PP1)'!$H$194","v":0},"#'T2-B(PP1)'!$H$194"]
["pp1_bl4_5_17_total",{"$f":"'T2-B(PP1)'!$J$194","v":0},"#'T2-B(PP1)'!$J$194"]
["pp1_bl4_5_17_total_in",{"$f":"'T2-B(PP1)'!$F$194","v":0},"#'T2-B(PP1)'!$F$194"]
["pp1_bl4_5_17_total_out",{"$f":"'T2-B(PP1)'!$I$194","v":0},"#'T2-B(PP1)'!$I$194"]
["pp1_bl4_5_17_unit",{"$f":"'T2-B(PP1)'!$C$194","v":0},"#'T2-B(PP1)'!$C$194"]
["pp1_bl4_5_17_unit_in",{"$f":"'T2-B(PP1)'!$D$194","v":0},"#'T2-B(PP1)'!$D$194"]
["pp1_bl4_5_17_units_out",{"$f":"'T2-B(PP1)'!$G$194","v":0},"#'T2-B(PP1)'!$G$194"]
["pp1_bl4_5_18_name",{"$f":"'T2-B(PP1)'!$B$195","v":0},"#'T2-B(PP1)'!$B$195"]
["pp1_bl4_5_18_rate_in",{"$f":"'T2-B(PP1)'!$E$195","v":0},"#'T2-B(PP1)'!$E$195"]
["pp1_bl4_5_18_rate_out",{"$f":"'T2-B(PP1)'!$H$195","v":0},"#'T2-B(PP1)'!$H$195"]
["pp1_bl4_5_18_total",{"$f":"'T2-B(PP1)'!$J$195","v":0},"#'T2-B(PP1)'!$J$195"]
["pp1_bl4_5_18_total_in",{"$f":"'T2-B(PP1)'!$F$195","v":0},"#'T2-B(PP1)'!$F$195"]
["pp1_bl4_5_18_total_out",{"$f":"'T2-B(PP1)'!$I$195","v":0},"#'T2-B(PP1)'!$I$195"]
["pp1_bl4_5_18_unit",{"$f":"'T2-B(PP1)'!$C$195","v":0},"#'T2-B(PP1)'!$C$195"]
["pp1_bl4_5_18_unit_in",{"$f":"'T2-B(PP1)'!$D$195","v":0},"#'T2-B(PP1)'!$D$195"]
["pp1_bl4_5_18_units_out",{"$f":"'T2-B(PP1)'!$G$195","v":0},"#'T2-B(PP1)'!$G$195"]
["pp1_bl4_5_19_name",{"$f":"'T2-B(PP1)'!$B$196","v":0},"#'T2-B(PP1)'!$B$196"]
["pp1_bl4_5_19_rate_in",{"$f":"'T2-B(PP1)'!$E$196","v":0},"#'T2-B(PP1)'!$E$196"]
["pp1_bl4_5_19_rate_out",{"$f":"'T2-B(PP1)'!$H$196","v":0},"#'T2-B(PP1)'!$H$196"]
["pp1_bl4_5_19_total",{"$f":"'T2-B(PP1)'!$J$196","v":0},"#'T2-B(PP1)'!$J$196"]
["pp1_bl4_5_19_total_in",{"$f":"'T2-B(PP1)'!$F$196","v":0},"#'T2-B(PP1)'!$F$196"]
["pp1_bl4_5_19_total_out",{"$f":"'T2-B(PP1)'!$I$196","v":0},"#'T2-B(PP1)'!$I$196"]
["pp1_bl4_5_19_unit",{"$f":"'T2-B(PP1)'!$C$196","v":0},"#'T2-B(PP1)'!$C$196"]
["pp1_bl4_5_19_unit_in",{"$f":"'T2-B(PP1)'!$D$196","v":0},"#'T2-B(PP1)'!$D$196"]
["pp1_bl4_5_19_units_out",{"$f":"'T2-B(PP1)'!$G$196","v":0},"#'T2-B(PP1)'!$G$196"]
["pp1_bl4_5_2_name",{"$f":"'T2-B(PP1)'!$B$179","v":0},"#'T2-B(PP1)'!$B$179"]
["pp1_bl4_5_2_rate_in",{"$f":"'T2-B(PP1)'!$E$179","v":0},"#'T2-B(PP1)'!$E$179"]
["pp1_bl4_5_2_rate_out",{"$f":"'T2-B(PP1)'!$H$179","v":0},"#'T2-B(PP1)'!$H$179"]
["pp1_bl4_5_2_total",{"$f":"'T2-B(PP1)'!$J$179","v":0},"#'T2-B(PP1)'!$J$179"]
["pp1_bl4_5_2_total_in",{"$f":"'T2-B(PP1)'!$F$179","v":0},"#'T2-B(PP1)'!$F$179"]
["pp1_bl4_5_2_total_out",{"$f":"'T2-B(PP1)'!$I$179","v":0},"#'T2-B(PP1)'!$I$179"]
["pp1_bl4_5_2_unit",{"$f":"'T2-B(PP1)'!$C$179","v":0},"#'T2-B(PP1)'!$C$179"]
["pp1_bl4_5_2_unit_in",{"$f":"'T2-B(PP1)'!$D$179","v":0},"#'T2-B(PP1)'!$D$179"]
["pp1_bl4_5_2_units_out",{"$f":"'T2-B(PP1)'!$G$179","v":0},"#'T2-B(PP1)'!$G$179"]
["pp1_bl4_5_20_name",{"$f":"'T2-B(PP1)'!$B$197","v":0},"#'T2-B(PP1)'!$B$197"]
["pp1_bl4_5_20_rate_in",{"$f":"'T2-B(PP1)'!$E$197","v":0},"#'T2-B(PP1)'!$E$197"]
["pp1_bl4_5_20_rate_out",{"$f":"'T2-B(PP1)'!$H$197","v":0},"#'T2-B(PP1)'!$H$197"]
["pp1_bl4_5_20_total",{"$f":"'T2-B(PP1)'!$J$197","v":0},"#'T2-B(PP1)'!$J$197"]
["pp1_bl4_5_20_total_in",{"$f":"'T2-B(PP1)'!$F$197","v":0},"#'T2-B(PP1)'!$F$197"]
["pp1_bl4_5_20_total_out",{"$f":"'T2-B(PP1)'!$I$197","v":0},"#'T2-B(PP1)'!$I$197"]
["pp1_bl4_5_20_unit",{"$f":"'T2-B(PP1)'!$C$197","v":0},"#'T2-B(PP1)'!$C$197"]
["pp1_bl4_5_20_unit_in",{"$f":"'T2-B(PP1)'!$D$197","v":0},"#'T2-B(PP1)'!$D$197"]
["pp1_bl4_5_20_units_out",{"$f":"'T2-B(PP1)'!$G$197","v":0},"#'T2-B(PP1)'!$G$197"]
["pp1_bl4_5_3_name",{"$f":"'T2-B(PP1)'!$B$180","v":0},"#'T2-B(PP1)'!$B$180"]
["pp1_bl4_5_3_rate_in",{"$f":"'T2-B(PP1)'!$E$180","v":0},"#'T2-B(PP1)'!$E$180"]
["pp1_bl4_5_3_rate_out",{"$f":"'T2-B(PP1)'!$H$180","v":0},"#'T2-B(PP1)'!$H$180"]
["pp1_bl4_5_3_total",{"$f":"'T2-B(PP1)'!$J$180","v":0},"#'T2-B(PP1)'!$J$180"]
["pp1_bl4_5_3_total_in",{"$f":"'T2-B(PP1)'!$F$180","v":0},"#'T2-B(PP1)'!$F$180"]
["pp1_bl4_5_3_total_out",{"$f":"'T2-B(PP1)'!$I$180","v":0},"#'T2-B(PP1)'!$I$180"]
["pp1_bl4_5_3_unit",{"$f":"'T2-B(PP1)'!$C$180","v":0},"#'T2-B(PP1)'!$C$180"]
["pp1_bl4_5_3_unit_in",{"$f":"'T2-B(PP1)'!$D$180","v":0},"#'T2-B(PP1)'!$D$180"]
["pp1_bl4_5_3_units_out",{"$f":"'T2-B(PP1)'!$G$180","v":0},"#'T2-B(PP1)'!$G$180"]
["pp1_bl4_5_4_name",{"$f":"'T2-B(PP1)'!$B$181","v":0},"#'T2-B(PP1)'!$B$181"]
["pp1_bl4_5_4_rate_in",{"$f":"'T2-B(PP1)'!$E$181","v":0},"#'T2-B(PP1)'!$E$181"]
["pp1_bl4_5_4_rate_out",{"$f":"'T2-B(PP1)'!$H$181","v":0},"#'T2-B(PP1)'!$H$181"]
["pp1_bl4_5_4_total",{"$f":"'T2-B(PP1)'!$J$181","v":0},"#'T2-B(PP1)'!$J$181"]
["pp1_bl4_5_4_total_in",{"$f":"'T2-B(PP1)'!$F$181","v":0},"#'T2-B(PP1)'!$F$181"]
["pp1_bl4_5_4_total_out",{"$f":"'T2-B(PP1)'!$I$181","v":0},"#'T2-B(PP1)'!$I$181"]
["pp1_bl4_5_4_unit",{"$f":"'T2-B(PP1)'!$C$181","v":0},"#'T2-B(PP1)'!$C$181"]
["pp1_bl4_5_4_unit_in",{"$f":"'T2-B(PP1)'!$D$181","v":0},"#'T2-B(PP1)'!$D$181"]
["pp1_bl4_5_4_units_out",{"$f":"'T2-B(PP1)'!$G$181","v":0},"#'T2-B(PP1)'!$G$181"]
["pp1_bl4_5_5_name",{"$f":"'T2-B(PP1)'!$B$182","v":0},"#'T2-B(PP1)'!$B$182"]
["pp1_bl4_5_5_rate_in",{"$f":"'T2-B(PP1)'!$E$182","v":0},"#'T2-B(PP1)'!$E$182"]
["pp1_bl4_5_5_rate_out",{"$f":"'T2-B(PP1)'!$H$182","v":0},"#'T2-B(PP1)'!$H$182"]
["pp1_bl4_5_5_total",{"$f":"'T2-B(PP1)'!$J$182","v":0},"#'T2-B(PP1)'!$J$182"]
["pp1_bl4_5_5_total_in",{"$f":"'T2-B(PP1)'!$F$182","v":0},"#'T2-B(PP1)'!$F$182"]
["pp1_bl4_5_5_total_out",{"$f":"'T2-B(PP1)'!$I$182","v":0},"#'T2-B(PP1)'!$I$182"]
["pp1_bl4_5_5_unit",{"$f":"'T2-B(PP1)'!$C$182","v":0},"#'T2-B(PP1)'!$C$182"]
["pp1_bl4_5_5_unit_in",{"$f":"'T2-B(PP1)'!$D$182","v":0},"#'T2-B(PP1)'!$D$182"]
["pp1_bl4_5_5_units_out",{"$f":"'T2-B(PP1)'!$G$182","v":0},"#'T2-B(PP1)'!$G$182"]
["pp1_bl4_5_6_name",{"$f":"'T2-B(PP1)'!$B$183","v":0},"#'T2-B(PP1)'!$B$183"]
["pp1_bl4_5_6_rate_in",{"$f":"'T2-B(PP1)'!$E$183","v":0},"#'T2-B(PP1)'!$E$183"]
["pp1_bl4_5_6_rate_out",{"$f":"'T2-B(PP1)'!$H$183","v":0},"#'T2-B(PP1)'!$H$183"]
["pp1_bl4_5_6_total",{"$f":"'T2-B(PP1)'!$J$183","v":0},"#'T2-B(PP1)'!$J$183"]
["pp1_bl4_5_6_total_in",{"$f":"'T2-B(PP1)'!$F$183","v":0},"#'T2-B(PP1)'!$F$183"]
["pp1_bl4_5_6_total_out",{"$f":"'T2-B(PP1)'!$I$183","v":0},"#'T2-B(PP1)'!$I$183"]
["pp1_bl4_5_6_unit",{"$f":"'T2-B(PP1)'!$C$183","v":0},"#'T2-B(PP1)'!$C$183"]
["pp1_bl4_5_6_unit_in",{"$f":"'T2-B(PP1)'!$D$183","v":0},"#'T2-B(PP1)'!$D$183"]
["pp1_bl4_5_6_units_out",{"$f":"'T2-B(PP1)'!$G$183","v":0},"#'T2-B(PP1)'!$G$183"]
["pp1_bl4_5_7_name",{"$f":"'T2-B(PP1)'!$B$184","v":0},"#'T2-B(PP1)'!$B$184"]
["pp1_bl4_5_7_rate_in",{"$f":"'T2-B(PP1)'!$E$184","v":0},"#'T2-B(PP1)'!$E$184"]
["pp1_bl4_5_7_rate_out",{"$f":"'T2-B(PP1)'!$H$184","v":0},"#'T2-B(PP1)'!$H$184"]
["pp1_bl4_5_7_total",{"$f":"'T2-B(PP1)'!$J$184","v":0},"#'T2-B(PP1)'!$J$184"]
["pp1_bl4_5_7_total_in",{"$f":"'T2-B(PP1)'!$F$184","v":0},"#'T2-B(PP1)'!$F$184"]
["pp1_bl4_5_7_total_out",{"$f":"'T2-B(PP1)'!$I$184","v":0},"#'T2-B(PP1)'!$I$184"]
["pp1_bl4_5_7_unit",{"$f":"'T2-B(PP1)'!$C$184","v":0},"#'T2-B(PP1)'!$C$184"]
["pp1_bl4_5_7_unit_in",{"$f":"'T2-B(PP1)'!$D$184","v":0},"#'T2-B(PP1)'!$D$184"]
["pp1_bl4_5_7_units_out",{"$f":"'T2-B(PP1)'!$G$184","v":0},"#'T2-B(PP1)'!$G$184"]
["pp1_bl4_5_8_name",{"$f":"'T2-B(PP1)'!$B$185","v":0},"#'T2-B(PP1)'!$B$185"]
["pp1_bl4_5_8_rate_in",{"$f":"'T2-B(PP1)'!$E$185","v":0},"#'T2-B(PP1)'!$E$185"]
["pp1_bl4_5_8_rate_out",{"$f":"'T2-B(PP1)'!$H$185","v":0},"#'T2-B(PP1)'!$H$185"]
["pp1_bl4_5_8_total",{"$f":"'T2-B(PP1)'!$J$185","v":0},"#'T2-B(PP1)'!$J$185"]
["pp1_bl4_5_8_total_in",{"$f":"'T2-B(PP1)'!$F$185","v":0},"#'T2-B(PP1)'!$F$185"]
["pp1_bl4_5_8_total_out",{"$f":"'T2-B(PP1)'!$I$185","v":0},"#'T2-B(PP1)'!$I$185"]
["pp1_bl4_5_8_unit",{"$f":"'T2-B(PP1)'!$C$185","v":0},"#'T2-B(PP1)'!$C$185"]
["pp1_bl4_5_8_unit_in",{"$f":"'T2-B(PP1)'!$D$185","v":0},"#'T2-B(PP1)'!$D$185"]
["pp1_bl4_5_8_units_out",{"$f":"'T2-B(PP1)'!$G$185","v":0},"#'T2-B(PP1)'!$G$185"]
["pp1_bl4_5_9_name",{"$f":"'T2-B(PP1)'!$B$186","v":0},"#'T2-B(PP1)'!$B$186"]
["pp1_bl4_5_9_rate_in",{"$f":"'T2-B(PP1)'!$E$186","v":0},"#'T2-B(PP1)'!$E$186"]
["pp1_bl4_5_9_rate_out",{"$f":"'T2-B(PP1)'!$H$186","v":0},"#'T2-B(PP1)'!$H$186"]
["pp1_bl4_5_9_total",{"$f":"'T2-B(PP1)'!$J$186","v":0},"#'T2-B(PP1)'!$J$186"]
["pp1_bl4_5_9_total_in",{"$f":"'T2-B(PP1)'!$F$186","v":0},"#'T2-B(PP1)'!$F$186"]
["pp1_bl4_5_9_total_out",{"$f":"'T2-B(PP1)'!$I$186","v":0},"#'T2-B(PP1)'!$I$186"]
["pp1_bl4_5_9_unit",{"$f":"'T2-B(PP1)'!$C$186","v":0},"#'T2-B(PP1)'!$C$186"]
["pp1_bl4_5_9_unit_in",{"$f":"'T2-B(PP1)'!$D$186","v":0},"#'T2-B(PP1)'!$D$186"]
["pp1_bl4_5_9_units_out",{"$f":"'T2-B(PP1)'!$G$186","v":0},"#'T2-B(PP1)'!$G$186"]
["pp1_bl4_5_total",{"$f":"'T2-B(PP1)'!$J$177","v":0},"#'T2-B(PP1)'!$J$177"]
["pp1_bl4_5_total_in",{"$f":"'T2-B(PP1)'!$F$177","v":0},"#'T2-B(PP1)'!$F$177"]
["pp1_bl4_5_total_out",{"$f":"'T2-B(PP1)'!$I$177","v":0},"#'T2-B(PP1)'!$I$177"]
["pp1_bl4_6_1_name",{"$f":"'T2-B(PP1)'!$B$199","v":0},"#'T2-B(PP1)'!$B$199"]
["pp1_bl4_6_1_rate_in",{"$f":"'T2-B(PP1)'!$E$199","v":0},"#'T2-B(PP1)'!$E$199"]
["pp1_bl4_6_1_rate_out",{"$f":"'T2-B(PP1)'!$H$199","v":0},"#'T2-B(PP1)'!$H$199"]
["pp1_bl4_6_1_total",{"$f":"'T2-B(PP1)'!$J$199","v":0},"#'T2-B(PP1)'!$J$199"]
["pp1_bl4_6_1_total_in",{"$f":"'T2-B(PP1)'!$F$199","v":0},"#'T2-B(PP1)'!$F$199"]
["pp1_bl4_6_1_total_out",{"$f":"'T2-B(PP1)'!$I$199","v":0},"#'T2-B(PP1)'!$I$199"]
["pp1_bl4_6_1_unit",{"$f":"'T2-B(PP1)'!$C$199","v":0},"#'T2-B(PP1)'!$C$199"]
["pp1_bl4_6_1_unit_in",{"$f":"'T2-B(PP1)'!$D$199","v":0},"#'T2-B(PP1)'!$D$199"]
["pp1_bl4_6_1_units_out",{"$f":"'T2-B(PP1)'!$G$199","v":0},"#'T2-B(PP1)'!$G$199"]
["pp1_bl4_6_10_name",{"$f":"'T2-B(PP1)'!$B$208","v":0},"#'T2-B(PP1)'!$B$208"]
["pp1_bl4_6_10_rate_in",{"$f":"'T2-B(PP1)'!$E$208","v":0},"#'T2-B(PP1)'!$E$208"]
["pp1_bl4_6_10_rate_out",{"$f":"'T2-B(PP1)'!$H$208","v":0},"#'T2-B(PP1)'!$H$208"]
["pp1_bl4_6_10_total",{"$f":"'T2-B(PP1)'!$J$208","v":0},"#'T2-B(PP1)'!$J$208"]
["pp1_bl4_6_10_total_in",{"$f":"'T2-B(PP1)'!$F$208","v":0},"#'T2-B(PP1)'!$F$208"]
["pp1_bl4_6_10_total_out",{"$f":"'T2-B(PP1)'!$I$208","v":0},"#'T2-B(PP1)'!$I$208"]
["pp1_bl4_6_10_unit",{"$f":"'T2-B(PP1)'!$C$208","v":0},"#'T2-B(PP1)'!$C$208"]
["pp1_bl4_6_10_unit_in",{"$f":"'T2-B(PP1)'!$D$208","v":0},"#'T2-B(PP1)'!$D$208"]
["pp1_bl4_6_10_units_out",{"$f":"'T2-B(PP1)'!$G$208","v":0},"#'T2-B(PP1)'!$G$208"]
["pp1_bl4_6_11_name",{"$f":"'T2-B(PP1)'!$B$209","v":0},"#'T2-B(PP1)'!$B$209"]
["pp1_bl4_6_11_rate_in",{"$f":"'T2-B(PP1)'!$E$209","v":0},"#'T2-B(PP1)'!$E$209"]
["pp1_bl4_6_11_rate_out",{"$f":"'T2-B(PP1)'!$H$209","v":0},"#'T2-B(PP1)'!$H$209"]
["pp1_bl4_6_11_total",{"$f":"'T2-B(PP1)'!$J$209","v":0},"#'T2-B(PP1)'!$J$209"]
["pp1_bl4_6_11_total_in",{"$f":"'T2-B(PP1)'!$F$209","v":0},"#'T2-B(PP1)'!$F$209"]
["pp1_bl4_6_11_total_out",{"$f":"'T2-B(PP1)'!$I$209","v":0},"#'T2-B(PP1)'!$I$209"]
["pp1_bl4_6_11_unit",{"$f":"'T2-B(PP1)'!$C$209","v":0},"#'T2-B(PP1)'!$C$209"]
["pp1_bl4_6_11_unit_in",{"$f":"'T2-B(PP1)'!$D$209","v":0},"#'T2-B(PP1)'!$D$209"]
["pp1_bl4_6_11_units_out",{"$f":"'T2-B(PP1)'!$G$209","v":0},"#'T2-B(PP1)'!$G$209"]
["pp1_bl4_6_12_name",{"$f":"'T2-B(PP1)'!$B$210","v":0},"#'T2-B(PP1)'!$B$210"]
["pp1_bl4_6_12_rate_in",{"$f":"'T2-B(PP1)'!$E$210","v":0},"#'T2-B(PP1)'!$E$210"]
["pp1_bl4_6_12_rate_out",{"$f":"'T2-B(PP1)'!$H$210","v":0},"#'T2-B(PP1)'!$H$210"]
["pp1_bl4_6_12_total",{"$f":"'T2-B(PP1)'!$J$210","v":0},"#'T2-B(PP1)'!$J$210"]
["pp1_bl4_6_12_total_in",{"$f":"'T2-B(PP1)'!$F$210","v":0},"#'T2-B(PP1)'!$F$210"]
["pp1_bl4_6_12_total_out",{"$f":"'T2-B(PP1)'!$I$210","v":0},"#'T2-B(PP1)'!$I$210"]
["pp1_bl4_6_12_unit",{"$f":"'T2-B(PP1)'!$C$210","v":0},"#'T2-B(PP1)'!$C$210"]
["pp1_bl4_6_12_unit_in",{"$f":"'T2-B(PP1)'!$D$210","v":0},"#'T2-B(PP1)'!$D$210"]
["pp1_bl4_6_12_units_out",{"$f":"'T2-B(PP1)'!$G$210","v":0},"#'T2-B(PP1)'!$G$210"]
["pp1_bl4_6_13_name",{"$f":"'T2-B(PP1)'!$B$211","v":0},"#'T2-B(PP1)'!$B$211"]
["pp1_bl4_6_13_rate_in",{"$f":"'T2-B(PP1)'!$E$211","v":0},"#'T2-B(PP1)'!$E$211"]
["pp1_bl4_6_13_rate_out",{"$f":"'T2-B(PP1)'!$H$211","v":0},"#'T2-B(PP1)'!$H$211"]
["pp1_bl4_6_13_total",{"$f":"'T2-B(PP1)'!$J$211","v":0},"#'T2-B(PP1)'!$J$211"]
["pp1_bl4_6_13_total_in",{"$f":"'T2-B(PP1)'!$F$211","v":0},"#'T2-B(PP1)'!$F$211"]
["pp1_bl4_6_13_total_out",{"$f":"'T2-B(PP1)'!$I$211","v":0},"#'T2-B(PP1)'!$I$211"]
["pp1_bl4_6_13_unit",{"$f":"'T2-B(PP1)'!$C$211","v":0},"#'T2-B(PP1)'!$C$211"]
["pp1_bl4_6_13_unit_in",{"$f":"'T2-B(PP1)'!$D$211","v":0},"#'T2-B(PP1)'!$D$211"]
["pp1_bl4_6_13_units_out",{"$f":"'T2-B(PP1)'!$G$211","v":0},"#'T2-B(PP1)'!$G$211"]
["pp1_bl4_6_14_name",{"$f":"'T2-B(PP1)'!$B$212","v":0},"#'T2-B(PP1)'!$B$212"]
["pp1_bl4_6_14_rate_in",{"$f":"'T2-B(PP1)'!$E$212","v":0},"#'T2-B(PP1)'!$E$212"]
["pp1_bl4_6_14_rate_out",{"$f":"'T2-B(PP1)'!$H$212","v":0},"#'T2-B(PP1)'!$H$212"]
["pp1_bl4_6_14_total",{"$f":"'T2-B(PP1)'!$J$212","v":0},"#'T2-B(PP1)'!$J$212"]
["pp1_bl4_6_14_total_in",{"$f":"'T2-B(PP1)'!$F$212","v":0},"#'T2-B(PP1)'!$F$212"]
["pp1_bl4_6_14_total_out",{"$f":"'T2-B(PP1)'!$I$212","v":0},"#'T2-B(PP1)'!$I$212"]
["pp1_bl4_6_14_unit",{"$f":"'T2-B(PP1)'!$C$212","v":0},"#'T2-B(PP1)'!$C$212"]
["pp1_bl4_6_14_unit_in",{"$f":"'T2-B(PP1)'!$D$212","v":0},"#'T2-B(PP1)'!$D$212"]
["pp1_bl4_6_14_units_out",{"$f":"'T2-B(PP1)'!$G$212","v":0},"#'T2-B(PP1)'!$G$212"]
["pp1_bl4_6_15_name",{"$f":"'T2-B(PP1)'!$B$213","v":0},"#'T2-B(PP1)'!$B$213"]
["pp1_bl4_6_15_rate_in",{"$f":"'T2-B(PP1)'!$E$213","v":0},"#'T2-B(PP1)'!$E$213"]
["pp1_bl4_6_15_rate_out",{"$f":"'T2-B(PP1)'!$H$213","v":0},"#'T2-B(PP1)'!$H$213"]
["pp1_bl4_6_15_total",{"$f":"'T2-B(PP1)'!$J$213","v":0},"#'T2-B(PP1)'!$J$213"]
["pp1_bl4_6_15_total_in",{"$f":"'T2-B(PP1)'!$F$213","v":0},"#'T2-B(PP1)'!$F$213"]
["pp1_bl4_6_15_total_out",{"$f":"'T2-B(PP1)'!$I$213","v":0},"#'T2-B(PP1)'!$I$213"]
["pp1_bl4_6_15_unit",{"$f":"'T2-B(PP1)'!$C$213","v":0},"#'T2-B(PP1)'!$C$213"]
["pp1_bl4_6_15_unit_in",{"$f":"'T2-B(PP1)'!$D$213","v":0},"#'T2-B(PP1)'!$D$213"]
["pp1_bl4_6_15_units_out",{"$f":"'T2-B(PP1)'!$G$213","v":0},"#'T2-B(PP1)'!$G$213"]
["pp1_bl4_6_16_name",{"$f":"'T2-B(PP1)'!$B$214","v":0},"#'T2-B(PP1)'!$B$214"]
["pp1_bl4_6_16_rate_in",{"$f":"'T2-B(PP1)'!$E$214","v":0},"#'T2-B(PP1)'!$E$214"]
["pp1_bl4_6_16_rate_out",{"$f":"'T2-B(PP1)'!$H$214","v":0},"#'T2-B(PP1)'!$H$214"]
["pp1_bl4_6_16_total",{"$f":"'T2-B(PP1)'!$J$214","v":0},"#'T2-B(PP1)'!$J$214"]
["pp1_bl4_6_16_total_in",{"$f":"'T2-B(PP1)'!$F$214","v":0},"#'T2-B(PP1)'!$F$214"]
["pp1_bl4_6_16_total_out",{"$f":"'T2-B(PP1)'!$I$214","v":0},"#'T2-B(PP1)'!$I$214"]
["pp1_bl4_6_16_unit",{"$f":"'T2-B(PP1)'!$C$214","v":0},"#'T2-B(PP1)'!$C$214"]
["pp1_bl4_6_16_unit_in",{"$f":"'T2-B(PP1)'!$D$214","v":0},"#'T2-B(PP1)'!$D$214"]
["pp1_bl4_6_16_units_out",{"$f":"'T2-B(PP1)'!$G$214","v":0},"#'T2-B(PP1)'!$G$214"]
["pp1_bl4_6_17_name",{"$f":"'T2-B(PP1)'!$B$215","v":0},"#'T2-B(PP1)'!$B$215"]
["pp1_bl4_6_17_rate_in",{"$f":"'T2-B(PP1)'!$E$215","v":0},"#'T2-B(PP1)'!$E$215"]
["pp1_bl4_6_17_rate_out",{"$f":"'T2-B(PP1)'!$H$215","v":0},"#'T2-B(PP1)'!$H$215"]
["pp1_bl4_6_17_total",{"$f":"'T2-B(PP1)'!$J$215","v":0},"#'T2-B(PP1)'!$J$215"]
["pp1_bl4_6_17_total_in",{"$f":"'T2-B(PP1)'!$F$215","v":0},"#'T2-B(PP1)'!$F$215"]
["pp1_bl4_6_17_total_out",{"$f":"'T2-B(PP1)'!$I$215","v":0},"#'T2-B(PP1)'!$I$215"]
["pp1_bl4_6_17_unit",{"$f":"'T2-B(PP1)'!$C$215","v":0},"#'T2-B(PP1)'!$C$215"]
["pp1_bl4_6_17_unit_in",{"$f":"'T2-B(PP1)'!$D$215","v":0},"#'T2-B(PP1)'!$D$215"]
["pp1_bl4_6_17_units_out",{"$f":"'T2-B(PP1)'!$G$215","v":0},"#'T2-B(PP1)'!$G$215"]
["pp1_bl4_6_18_name",{"$f":"'T2-B(PP1)'!$B$216","v":0},"#'T2-B(PP1)'!$B$216"]
["pp1_bl4_6_18_rate_in",{"$f":"'T2-B(PP1)'!$E$216","v":0},"#'T2-B(PP1)'!$E$216"]
["pp1_bl4_6_18_rate_out",{"$f":"'T2-B(PP1)'!$H$216","v":0},"#'T2-B(PP1)'!$H$216"]
["pp1_bl4_6_18_total",{"$f":"'T2-B(PP1)'!$J$216","v":0},"#'T2-B(PP1)'!$J$216"]
["pp1_bl4_6_18_total_in",{"$f":"'T2-B(PP1)'!$F$216","v":0},"#'T2-B(PP1)'!$F$216"]
["pp1_bl4_6_18_total_out",{"$f":"'T2-B(PP1)'!$I$216","v":0},"#'T2-B(PP1)'!$I$216"]
["pp1_bl4_6_18_unit",{"$f":"'T2-B(PP1)'!$C$216","v":0},"#'T2-B(PP1)'!$C$216"]
["pp1_bl4_6_18_unit_in",{"$f":"'T2-B(PP1)'!$D$216","v":0},"#'T2-B(PP1)'!$D$216"]
["pp1_bl4_6_18_units_out",{"$f":"'T2-B(PP1)'!$G$216","v":0},"#'T2-B(PP1)'!$G$216"]
["pp1_bl4_6_19_name",{"$f":"'T2-B(PP1)'!$B$217","v":0},"#'T2-B(PP1)'!$B$217"]
["pp1_bl4_6_19_rate_in",{"$f":"'T2-B(PP1)'!$E$217","v":0},"#'T2-B(PP1)'!$E$217"]
["pp1_bl4_6_19_rate_out",{"$f":"'T2-B(PP1)'!$H$217","v":0},"#'T2-B(PP1)'!$H$217"]
["pp1_bl4_6_19_total",{"$f":"'T2-B(PP1)'!$J$217","v":0},"#'T2-B(PP1)'!$J$217"]
["pp1_bl4_6_19_total_in",{"$f":"'T2-B(PP1)'!$F$217","v":0},"#'T2-B(PP1)'!$F$217"]
["pp1_bl4_6_19_total_out",{"$f":"'T2-B(PP1)'!$I$217","v":0},"#'T2-B(PP1)'!$I$217"]
["pp1_bl4_6_19_unit",{"$f":"'T2-B(PP1)'!$C$217","v":0},"#'T2-B(PP1)'!$C$217"]
["pp1_bl4_6_19_unit_in",{"$f":"'T2-B(PP1)'!$D$217","v":0},"#'T2-B(PP1)'!$D$217"]
["pp1_bl4_6_19_units_out",{"$f":"'T2-B(PP1)'!$G$217","v":0},"#'T2-B(PP1)'!$G$217"]
["pp1_bl4_6_2_name",{"$f":"'T2-B(PP1)'!$B$200","v":0},"#'T2-B(PP1)'!$B$200"]
["pp1_bl4_6_2_rate_in",{"$f":"'T2-B(PP1)'!$E$200","v":0},"#'T2-B(PP1)'!$E$200"]
["pp1_bl4_6_2_rate_out",{"$f":"'T2-B(PP1)'!$H$200","v":0},"#'T2-B(PP1)'!$H$200"]
["pp1_bl4_6_2_total",{"$f":"'T2-B(PP1)'!$J$200","v":0},"#'T2-B(PP1)'!$J$200"]
["pp1_bl4_6_2_total_in",{"$f":"'T2-B(PP1)'!$F$200","v":0},"#'T2-B(PP1)'!$F$200"]
["pp1_bl4_6_2_total_out",{"$f":"'T2-B(PP1)'!$I$200","v":0},"#'T2-B(PP1)'!$I$200"]
["pp1_bl4_6_2_unit",{"$f":"'T2-B(PP1)'!$C$200","v":0},"#'T2-B(PP1)'!$C$200"]
["pp1_bl4_6_2_unit_in",{"$f":"'T2-B(PP1)'!$D$200","v":0},"#'T2-B(PP1)'!$D$200"]
["pp1_bl4_6_2_units_out",{"$f":"'T2-B(PP1)'!$G$200","v":0},"#'T2-B(PP1)'!$G$200"]
["pp1_bl4_6_20_name",{"$f":"'T2-B(PP1)'!$B$218","v":0},"#'T2-B(PP1)'!$B$218"]
["pp1_bl4_6_20_rate_in",{"$f":"'T2-B(PP1)'!$E$218","v":0},"#'T2-B(PP1)'!$E$218"]
["pp1_bl4_6_20_rate_out",{"$f":"'T2-B(PP1)'!$H$218","v":0},"#'T2-B(PP1)'!$H$218"]
["pp1_bl4_6_20_total",{"$f":"'T2-B(PP1)'!$J$218","v":0},"#'T2-B(PP1)'!$J$218"]
["pp1_bl4_6_20_total_in",{"$f":"'T2-B(PP1)'!$F$218","v":0},"#'T2-B(PP1)'!$F$218"]
["pp1_bl4_6_20_total_out",{"$f":"'T2-B(PP1)'!$I$218","v":0},"#'T2-B(PP1)'!$I$218"]
["pp1_bl4_6_20_unit",{"$f":"'T2-B(PP1)'!$C$218","v":0},"#'T2-B(PP1)'!$C$218"]
["pp1_bl4_6_20_unit_in",{"$f":"'T2-B(PP1)'!$D$218","v":0},"#'T2-B(PP1)'!$D$218"]
["pp1_bl4_6_20_units_out",{"$f":"'T2-B(PP1)'!$G$218","v":0},"#'T2-B(PP1)'!$G$218"]
["pp1_bl4_6_3_name",{"$f":"'T2-B(PP1)'!$B$201","v":0},"#'T2-B(PP1)'!$B$201"]
["pp1_bl4_6_3_rate_in",{"$f":"'T2-B(PP1)'!$E$201","v":0},"#'T2-B(PP1)'!$E$201"]
["pp1_bl4_6_3_rate_out",{"$f":"'T2-B(PP1)'!$H$201","v":0},"#'T2-B(PP1)'!$H$201"]
["pp1_bl4_6_3_total",{"$f":"'T2-B(PP1)'!$J$201","v":0},"#'T2-B(PP1)'!$J$201"]
["pp1_bl4_6_3_total_in",{"$f":"'T2-B(PP1)'!$F$201","v":0},"#'T2-B(PP1)'!$F$201"]
["pp1_bl4_6_3_total_out",{"$f":"'T2-B(PP1)'!$I$201","v":0},"#'T2-B(PP1)'!$I$201"]
["pp1_bl4_6_3_unit",{"$f":"'T2-B(PP1)'!$C$201","v":0},"#'T2-B(PP1)'!$C$201"]
["pp1_bl4_6_3_unit_in",{"$f":"'T2-B(PP1)'!$D$201","v":0},"#'T2-B(PP1)'!$D$201"]
["pp1_bl4_6_3_units_out",{"$f":"'T2-B(PP1)'!$G$201","v":0},"#'T2-B(PP1)'!$G$201"]
["pp1_bl4_6_4_name",{"$f":"'T2-B(PP1)'!$B$202","v":0},"#'T2-B(PP1)'!$B$202"]
["pp1_bl4_6_4_rate_in",{"$f":"'T2-B(PP1)'!$E$202","v":0},"#'T2-B(PP1)'!$E$202"]
["pp1_bl4_6_4_rate_out",{"$f":"'T2-B(PP1)'!$H$202","v":0},"#'T2-B(PP1)'!$H$202"]
["pp1_bl4_6_4_total",{"$f":"'T2-B(PP1)'!$J$202","v":0},"#'T2-B(PP1)'!$J$202"]
["pp1_bl4_6_4_total_in",{"$f":"'T2-B(PP1)'!$F$202","v":0},"#'T2-B(PP1)'!$F$202"]
["pp1_bl4_6_4_total_out",{"$f":"'T2-B(PP1)'!$I$202","v":0},"#'T2-B(PP1)'!$I$202"]
["pp1_bl4_6_4_unit",{"$f":"'T2-B(PP1)'!$C$202","v":0},"#'T2-B(PP1)'!$C$202"]
["pp1_bl4_6_4_unit_in",{"$f":"'T2-B(PP1)'!$D$202","v":0},"#'T2-B(PP1)'!$D$202"]
["pp1_bl4_6_4_units_out",{"$f":"'T2-B(PP1)'!$G$202","v":0},"#'T2-B(PP1)'!$G$202"]
["pp1_bl4_6_5_name",{"$f":"'T2-B(PP1)'!$B$203","v":0},"#'T2-B(PP1)'!$B$203"]
["pp1_bl4_6_5_rate_in",{"$f":"'T2-B(PP1)'!$E$203","v":0},"#'T2-B(PP1)'!$E$203"]
["pp1_bl4_6_5_rate_out",{"$f":"'T2-B(PP1)'!$H$203","v":0},"#'T2-B(PP1)'!$H$203"]
["pp1_bl4_6_5_total",{"$f":"'T2-B(PP1)'!$J$203","v":0},"#'T2-B(PP1)'!$J$203"]
["pp1_bl4_6_5_total_in",{"$f":"'T2-B(PP1)'!$F$203","v":0},"#'T2-B(PP1)'!$F$203"]
["pp1_bl4_6_5_total_out",{"$f":"'T2-B(PP1)'!$I$203","v":0},"#'T2-B(PP1)'!$I$203"]
["pp1_bl4_6_5_unit",{"$f":"'T2-B(PP1)'!$C$203","v":0},"#'T2-B(PP1)'!$C$203"]
["pp1_bl4_6_5_unit_in",{"$f":"'T2-B(PP1)'!$D$203","v":0},"#'T2-B(PP1)'!$D$203"]
["pp1_bl4_6_5_units_out",{"$f":"'T2-B(PP1)'!$G$203","v":0},"#'T2-B(PP1)'!$G$203"]
["pp1_bl4_6_6_name",{"$f":"'T2-B(PP1)'!$B$204","v":0},"#'T2-B(PP1)'!$B$204"]
["pp1_bl4_6_6_rate_in",{"$f":"'T2-B(PP1)'!$E$204","v":0},"#'T2-B(PP1)'!$E$204"]
["pp1_bl4_6_6_rate_out",{"$f":"'T2-B(PP1)'!$H$204","v":0},"#'T2-B(PP1)'!$H$204"]
["pp1_bl4_6_6_total",{"$f":"'T2-B(PP1)'!$J$204","v":0},"#'T2-B(PP1)'!$J$204"]
["pp1_bl4_6_6_total_in",{"$f":"'T2-B(PP1)'!$F$204","v":0},"#'T2-B(PP1)'!$F$204"]
["pp1_bl4_6_6_total_out",{"$f":"'T2-B(PP1)'!$I$204","v":0},"#'T2-B(PP1)'!$I$204"]
["pp1_bl4_6_6_unit",{"$f":"'T2-B(PP1)'!$C$204","v":0},"#'T2-B(PP1)'!$C$204"]
["pp1_bl4_6_6_unit_in",{"$f":"'T2-B(PP1)'!$D$204","v":0},"#'T2-B(PP1)'!$D$204"]
["pp1_bl4_6_6_units_out",{"$f":"'T2-B(PP1)'!$G$204","v":0},"#'T2-B(PP1)'!$G$204"]
["pp1_bl4_6_7_name",{"$f":"'T2-B(PP1)'!$B$205","v":0},"#'T2-B(PP1)'!$B$205"]
["pp1_bl4_6_7_rate_in",{"$f":"'T2-B(PP1)'!$E$205","v":0},"#'T2-B(PP1)'!$E$205"]
["pp1_bl4_6_7_rate_out",{"$f":"'T2-B(PP1)'!$H$205","v":0},"#'T2-B(PP1)'!$H$205"]
["pp1_bl4_6_7_total",{"$f":"'T2-B(PP1)'!$J$205","v":0},"#'T2-B(PP1)'!$J$205"]
["pp1_bl4_6_7_total_in",{"$f":"'T2-B(PP1)'!$F$205","v":0},"#'T2-B(PP1)'!$F$205"]
["pp1_bl4_6_7_total_out",{"$f":"'T2-B(PP1)'!$I$205","v":0},"#'T2-B(PP1)'!$I$205"]
["pp1_bl4_6_7_unit",{"$f":"'T2-B(PP1)'!$C$205","v":0},"#'T2-B(PP1)'!$C$205"]
["pp1_bl4_6_7_unit_in",{"$f":"'T2-B(PP1)'!$D$205","v":0},"#'T2-B(PP1)'!$D$205"]
["pp1_bl4_6_7_units_out",{"$f":"'T2-B(PP1)'!$G$205","v":0},"#'T2-B(PP1)'!$G$205"]
["pp1_bl4_6_8_name",{"$f":"'T2-B(PP1)'!$B$206","v":0},"#'T2-B(PP1)'!$B$206"]
["pp1_bl4_6_8_rate_in",{"$f":"'T2-B(PP1)'!$E$206","v":0},"#'T2-B(PP1)'!$E$206"]
["pp1_bl4_6_8_rate_out",{"$f":"'T2-B(PP1)'!$H$206","v":0},"#'T2-B(PP1)'!$H$206"]
["pp1_bl4_6_8_total",{"$f":"'T2-B(PP1)'!$J$206","v":0},"#'T2-B(PP1)'!$J$206"]
["pp1_bl4_6_8_total_in",{"$f":"'T2-B(PP1)'!$F$206","v":0},"#'T2-B(PP1)'!$F$206"]
["pp1_bl4_6_8_total_out",{"$f":"'T2-B(PP1)'!$I$206","v":0},"#'T2-B(PP1)'!$I$206"]
["pp1_bl4_6_8_unit",{"$f":"'T2-B(PP1)'!$C$206","v":0},"#'T2-B(PP1)'!$C$206"]
["pp1_bl4_6_8_unit_in",{"$f":"'T2-B(PP1)'!$D$206","v":0},"#'T2-B(PP1)'!$D$206"]
["pp1_bl4_6_8_units_out",{"$f":"'T2-B(PP1)'!$G$206","v":0},"#'T2-B(PP1)'!$G$206"]
["pp1_bl4_6_9_name",{"$f":"'T2-B(PP1)'!$B$207","v":0},"#'T2-B(PP1)'!$B$207"]
["pp1_bl4_6_9_rate_in",{"$f":"'T2-B(PP1)'!$E$207","v":0},"#'T2-B(PP1)'!$E$207"]
["pp1_bl4_6_9_rate_out",{"$f":"'T2-B(PP1)'!$H$207","v":0},"#'T2-B(PP1)'!$H$207"]
["pp1_bl4_6_9_total",{"$f":"'T2-B(PP1)'!$J$207","v":0},"#'T2-B(PP1)'!$J$207"]
["pp1_bl4_6_9_total_in",{"$f":"'T2-B(PP1)'!$F$207","v":0},"#'T2-B(PP1)'!$F$207"]
["pp1_bl4_6_9_total_out",{"$f":"'T2-B(PP1)'!$I$207","v":0},"#'T2-B(PP1)'!$I$207"]
["pp1_bl4_6_9_unit",{"$f":"'T2-B(PP1)'!$C$207","v":0},"#'T2-B(PP1)'!$C$207"]
["pp1_bl4_6_9_unit_in",{"$f":"'T2-B(PP1)'!$D$207","v":0},"#'T2-B(PP1)'!$D$207"]
["pp1_bl4_6_9_units_out",{"$f":"'T2-B(PP1)'!$G$207","v":0},"#'T2-B(PP1)'!$G$207"]
["pp1_bl4_6_total",{"$f":"'T2-B(PP1)'!$J$198","v":0},"#'T2-B(PP1)'!$J$198"]
["pp1_bl4_6_total_in",{"$f":"'T2-B(PP1)'!$F$198","v":0},"#'T2-B(PP1)'!$F$198"]
["pp1_bl4_6_total_out",{"$f":"'T2-B(PP1)'!$I$198","v":0},"#'T2-B(PP1)'!$I$198"]
["pp1_bl4_7_1_name",{"$f":"'T2-B(PP1)'!$B$220","v":0},"#'T2-B(PP1)'!$B$220"]
["pp1_bl4_7_1_rate_in",{"$f":"'T2-B(PP1)'!$E$220","v":0},"#'T2-B(PP1)'!$E$220"]
["pp1_bl4_7_1_rate_out",{"$f":"'T2-B(PP1)'!$H$220","v":0},"#'T2-B(PP1)'!$H$220"]
["pp1_bl4_7_1_total",{"$f":"'T2-B(PP1)'!$J$220","v":0},"#'T2-B(PP1)'!$J$220"]
["pp1_bl4_7_1_total_in",{"$f":"'T2-B(PP1)'!$F$220","v":0},"#'T2-B(PP1)'!$F$220"]
["pp1_bl4_7_1_total_out",{"$f":"'T2-B(PP1)'!$I$220","v":0},"#'T2-B(PP1)'!$I$220"]
["pp1_bl4_7_1_unit",{"$f":"'T2-B(PP1)'!$C$220","v":0},"#'T2-B(PP1)'!$C$220"]
["pp1_bl4_7_1_unit_in",{"$f":"'T2-B(PP1)'!$D$220","v":0},"#'T2-B(PP1)'!$D$220"]
["pp1_bl4_7_1_units_out",{"$f":"'T2-B(PP1)'!$G$220","v":0},"#'T2-B(PP1)'!$G$220"]
["pp1_bl4_7_10_name",{"$f":"'T2-B(PP1)'!$B$229","v":0},"#'T2-B(PP1)'!$B$229"]
["pp1_bl4_7_10_rate_in",{"$f":"'T2-B(PP1)'!$E$229","v":0},"#'T2-B(PP1)'!$E$229"]
["pp1_bl4_7_10_rate_out",{"$f":"'T2-B(PP1)'!$H$229","v":0},"#'T2-B(PP1)'!$H$229"]
["pp1_bl4_7_10_total",{"$f":"'T2-B(PP1)'!$J$229","v":0},"#'T2-B(PP1)'!$J$229"]
["pp1_bl4_7_10_total_in",{"$f":"'T2-B(PP1)'!$F$229","v":0},"#'T2-B(PP1)'!$F$229"]
["pp1_bl4_7_10_total_out",{"$f":"'T2-B(PP1)'!$I$229","v":0},"#'T2-B(PP1)'!$I$229"]
["pp1_bl4_7_10_unit",{"$f":"'T2-B(PP1)'!$C$229","v":0},"#'T2-B(PP1)'!$C$229"]
["pp1_bl4_7_10_unit_in",{"$f":"'T2-B(PP1)'!$D$229","v":0},"#'T2-B(PP1)'!$D$229"]
["pp1_bl4_7_10_units_out",{"$f":"'T2-B(PP1)'!$G$229","v":0},"#'T2-B(PP1)'!$G$229"]
["pp1_bl4_7_11_name",{"$f":"'T2-B(PP1)'!$B$230","v":0},"#'T2-B(PP1)'!$B$230"]
["pp1_bl4_7_11_rate_in",{"$f":"'T2-B(PP1)'!$E$230","v":0},"#'T2-B(PP1)'!$E$230"]
["pp1_bl4_7_11_rate_out",{"$f":"'T2-B(PP1)'!$H$230","v":0},"#'T2-B(PP1)'!$H$230"]
["pp1_bl4_7_11_total",{"$f":"'T2-B(PP1)'!$J$230","v":0},"#'T2-B(PP1)'!$J$230"]
["pp1_bl4_7_11_total_in",{"$f":"'T2-B(PP1)'!$F$230","v":0},"#'T2-B(PP1)'!$F$230"]
["pp1_bl4_7_11_total_out",{"$f":"'T2-B(PP1)'!$I$230","v":0},"#'T2-B(PP1)'!$I$230"]
["pp1_bl4_7_11_unit",{"$f":"'T2-B(PP1)'!$C$230","v":0},"#'T2-B(PP1)'!$C$230"]
["pp1_bl4_7_11_unit_in",{"$f":"'T2-B(PP1)'!$D$230","v":0},"#'T2-B(PP1)'!$D$230"]
["pp1_bl4_7_11_units_out",{"$f":"'T2-B(PP1)'!$G$230","v":0},"#'T2-B(PP1)'!$G$230"]
["pp1_bl4_7_12_name",{"$f":"'T2-B(PP1)'!$B$231","v":0},"#'T2-B(PP1)'!$B$231"]
["pp1_bl4_7_12_rate_in",{"$f":"'T2-B(PP1)'!$E$231","v":0},"#'T2-B(PP1)'!$E$231"]
["pp1_bl4_7_12_rate_out",{"$f":"'T2-B(PP1)'!$H$231","v":0},"#'T2-B(PP1)'!$H$231"]
["pp1_bl4_7_12_total",{"$f":"'T2-B(PP1)'!$J$231","v":0},"#'T2-B(PP1)'!$J$231"]
["pp1_bl4_7_12_total_in",{"$f":"'T2-B(PP1)'!$F$231","v":0},"#'T2-B(PP1)'!$F$231"]
["pp1_bl4_7_12_total_out",{"$f":"'T2-B(PP1)'!$I$231","v":0},"#'T2-B(PP1)'!$I$231"]
["pp1_bl4_7_12_unit",{"$f":"'T2-B(PP1)'!$C$231","v":0},"#'T2-B(PP1)'!$C$231"]
["pp1_bl4_7_12_unit_in",{"$f":"'T2-B(PP1)'!$D$231","v":0},"#'T2-B(PP1)'!$D$231"]
["pp1_bl4_7_12_units_out",{"$f":"'T2-B(PP1)'!$G$231","v":0},"#'T2-B(PP1)'!$G$231"]
["pp1_bl4_7_13_name",{"$f":"'T2-B(PP1)'!$B$232","v":0},"#'T2-B(PP1)'!$B$232"]
["pp1_bl4_7_13_rate_in",{"$f":"'T2-B(PP1)'!$E$232","v":0},"#'T2-B(PP1)'!$E$232"]
["pp1_bl4_7_13_rate_out",{"$f":"'T2-B(PP1)'!$H$232","v":0},"#'T2-B(PP1)'!$H$232"]
["pp1_bl4_7_13_total",{"$f":"'T2-B(PP1)'!$J$232","v":0},"#'T2-B(PP1)'!$J$232"]
["pp1_bl4_7_13_total_in",{"$f":"'T2-B(PP1)'!$F$232","v":0},"#'T2-B(PP1)'!$F$232"]
["pp1_bl4_7_13_total_out",{"$f":"'T2-B(PP1)'!$I$232","v":0},"#'T2-B(PP1)'!$I$232"]
["pp1_bl4_7_13_unit",{"$f":"'T2-B(PP1)'!$C$232","v":0},"#'T2-B(PP1)'!$C$232"]
["pp1_bl4_7_13_unit_in",{"$f":"'T2-B(PP1)'!$D$232","v":0},"#'T2-B(PP1)'!$D$232"]
["pp1_bl4_7_13_units_out",{"$f":"'T2-B(PP1)'!$G$232","v":0},"#'T2-B(PP1)'!$G$232"]
["pp1_bl4_7_14_name",{"$f":"'T2-B(PP1)'!$B$233","v":0},"#'T2-B(PP1)'!$B$233"]
["pp1_bl4_7_14_rate_in",{"$f":"'T2-B(PP1)'!$E$233","v":0},"#'T2-B(PP1)'!$E$233"]
["pp1_bl4_7_14_rate_out",{"$f":"'T2-B(PP1)'!$H$233","v":0},"#'T2-B(PP1)'!$H$233"]
["pp1_bl4_7_14_total",{"$f":"'T2-B(PP1)'!$J$233","v":0},"#'T2-B(PP1)'!$J$233"]
["pp1_bl4_7_14_total_in",{"$f":"'T2-B(PP1)'!$F$233","v":0},"#'T2-B(PP1)'!$F$233"]
["pp1_bl4_7_14_total_out",{"$f":"'T2-B(PP1)'!$I$233","v":0},"#'T2-B(PP1)'!$I$233"]
["pp1_bl4_7_14_unit",{"$f":"'T2-B(PP1)'!$C$233","v":0},"#'T2-B(PP1)'!$C$233"]
["pp1_bl4_7_14_unit_in",{"$f":"'T2-B(PP1)'!$D$233","v":0},"#'T2-B(PP1)'!$D$233"]
["pp1_bl4_7_14_units_out",{"$f":"'T2-B(PP1)'!$G$233","v":0},"#'T2-B(PP1)'!$G$233"]
["pp1_bl4_7_15_name",{"$f":"'T2-B(PP1)'!$B$234","v":0},"#'T2-B(PP1)'!$B$234"]
["pp1_bl4_7_15_rate_in",{"$f":"'T2-B(PP1)'!$E$234","v":0},"#'T2-B(PP1)'!$E$234"]
["pp1_bl4_7_15_rate_out",{"$f":"'T2-B(PP1)'!$H$234","v":0},"#'T2-B(PP1)'!$H$234"]
["pp1_bl4_7_15_total",{"$f":"'T2-B(PP1)'!$J$234","v":0},"#'T2-B(PP1)'!$J$234"]
["pp1_bl4_7_15_total_in",{"$f":"'T2-B(PP1)'!$F$234","v":0},"#'T2-B(PP1)'!$F$234"]
["pp1_bl4_7_15_total_out",{"$f":"'T2-B(PP1)'!$I$234","v":0},"#'T2-B(PP1)'!$I$234"]
["pp1_bl4_7_15_unit",{"$f":"'T2-B(PP1)'!$C$234","v":0},"#'T2-B(PP1)'!$C$234"]
["pp1_bl4_7_15_unit_in",{"$f":"'T2-B(PP1)'!$D$234","v":0},"#'T2-B(PP1)'!$D$234"]
["pp1_bl4_7_15_units_out",{"$f":"'T2-B(PP1)'!$G$234","v":0},"#'T2-B(PP1)'!$G$234"]
["pp1_bl4_7_16_name",{"$f":"'T2-B(PP1)'!$B$235","v":0},"#'T2-B(PP1)'!$B$235"]
["pp1_bl4_7_16_rate_in",{"$f":"'T2-B(PP1)'!$E$235","v":0},"#'T2-B(PP1)'!$E$235"]
["pp1_bl4_7_16_rate_out",{"$f":"'T2-B(PP1)'!$H$235","v":0},"#'T2-B(PP1)'!$H$235"]
["pp1_bl4_7_16_total",{"$f":"'T2-B(PP1)'!$J$235","v":0},"#'T2-B(PP1)'!$J$235"]
["pp1_bl4_7_16_total_in",{"$f":"'T2-B(PP1)'!$F$235","v":0},"#'T2-B(PP1)'!$F$235"]
["pp1_bl4_7_16_total_out",{"$f":"'T2-B(PP1)'!$I$235","v":0},"#'T2-B(PP1)'!$I$235"]
["pp1_bl4_7_16_unit",{"$f":"'T2-B(PP1)'!$C$235","v":0},"#'T2-B(PP1)'!$C$235"]
["pp1_bl4_7_16_unit_in",{"$f":"'T2-B(PP1)'!$D$235","v":0},"#'T2-B(PP1)'!$D$235"]
["pp1_bl4_7_16_units_out",{"$f":"'T2-B(PP1)'!$G$235","v":0},"#'T2-B(PP1)'!$G$235"]
["pp1_bl4_7_17_name",{"$f":"'T2-B(PP1)'!$B$236","v":0},"#'T2-B(PP1)'!$B$236"]
["pp1_bl4_7_17_rate_in",{"$f":"'T2-B(PP1)'!$E$236","v":0},"#'T2-B(PP1)'!$E$236"]
["pp1_bl4_7_17_rate_out",{"$f":"'T2-B(PP1)'!$H$236","v":0},"#'T2-B(PP1)'!$H$236"]
["pp1_bl4_7_17_total",{"$f":"'T2-B(PP1)'!$J$236","v":0},"#'T2-B(PP1)'!$J$236"]
["pp1_bl4_7_17_total_in",{"$f":"'T2-B(PP1)'!$F$236","v":0},"#'T2-B(PP1)'!$F$236"]
["pp1_bl4_7_17_total_out",{"$f":"'T2-B(PP1)'!$I$236","v":0},"#'T2-B(PP1)'!$I$236"]
["pp1_bl4_7_17_unit",{"$f":"'T2-B(PP1)'!$C$236","v":0},"#'T2-B(PP1)'!$C$236"]
["pp1_bl4_7_17_unit_in",{"$f":"'T2-B(PP1)'!$D$236","v":0},"#'T2-B(PP1)'!$D$236"]
["pp1_bl4_7_17_units_out",{"$f":"'T2-B(PP1)'!$G$236","v":0},"#'T2-B(PP1)'!$G$236"]
["pp1_bl4_7_18_name",{"$f":"'T2-B(PP1)'!$B$237","v":0},"#'T2-B(PP1)'!$B$237"]
["pp1_bl4_7_18_rate_in",{"$f":"'T2-B(PP1)'!$E$237","v":0},"#'T2-B(PP1)'!$E$237"]
["pp1_bl4_7_18_rate_out",{"$f":"'T2-B(PP1)'!$H$237","v":0},"#'T2-B(PP1)'!$H$237"]
["pp1_bl4_7_18_total",{"$f":"'T2-B(PP1)'!$J$237","v":0},"#'T2-B(PP1)'!$J$237"]
["pp1_bl4_7_18_total_in",{"$f":"'T2-B(PP1)'!$F$237","v":0},"#'T2-B(PP1)'!$F$237"]
["pp1_bl4_7_18_total_out",{"$f":"'T2-B(PP1)'!$I$237","v":0},"#'T2-B(PP1)'!$I$237"]
["pp1_bl4_7_18_unit",{"$f":"'T2-B(PP1)'!$C$237","v":0},"#'T2-B(PP1)'!$C$237"]
["pp1_bl4_7_18_unit_in",{"$f":"'T2-B(PP1)'!$D$237","v":0},"#'T2-B(PP1)'!$D$237"]
["pp1_bl4_7_18_units_out",{"$f":"'T2-B(PP1)'!$G$237","v":0},"#'T2-B(PP1)'!$G$237"]
["pp1_bl4_7_19_name",{"$f":"'T2-B(PP1)'!$B$238","v":0},"#'T2-B(PP1)'!$B$238"]
["pp1_bl4_7_19_rate_in",{"$f":"'T2-B(PP1)'!$E$238","v":0},"#'T2-B(PP1)'!$E$238"]
["pp1_bl4_7_19_rate_out",{"$f":"'T2-B(PP1)'!$H$238","v":0},"#'T2-B(PP1)'!$H$238"]
["pp1_bl4_7_19_total",{"$f":"'T2-B(PP1)'!$J$238","v":0},"#'T2-B(PP1)'!$J$238"]
["pp1_bl4_7_19_total_in",{"$f":"'T2-B(PP1)'!$F$238","v":0},"#'T2-B(PP1)'!$F$238"]
["pp1_bl4_7_19_total_out",{"$f":"'T2-B(PP1)'!$I$238","v":0},"#'T2-B(PP1)'!$I$238"]
["pp1_bl4_7_19_unit",{"$f":"'T2-B(PP1)'!$C$238","v":0},"#'T2-B(PP1)'!$C$238"]
["pp1_bl4_7_19_unit_in",{"$f":"'T2-B(PP1)'!$D$238","v":0},"#'T2-B(PP1)'!$D$238"]
["pp1_bl4_7_19_units_out",{"$f":"'T2-B(PP1)'!$G$238","v":0},"#'T2-B(PP1)'!$G$238"]
["pp1_bl4_7_2_name",{"$f":"'T2-B(PP1)'!$B$221","v":0},"#'T2-B(PP1)'!$B$221"]
["pp1_bl4_7_2_rate_in",{"$f":"'T2-B(PP1)'!$E$221","v":0},"#'T2-B(PP1)'!$E$221"]
["pp1_bl4_7_2_rate_out",{"$f":"'T2-B(PP1)'!$H$221","v":0},"#'T2-B(PP1)'!$H$221"]
["pp1_bl4_7_2_total",{"$f":"'T2-B(PP1)'!$J$221","v":0},"#'T2-B(PP1)'!$J$221"]
["pp1_bl4_7_2_total_in",{"$f":"'T2-B(PP1)'!$F$221","v":0},"#'T2-B(PP1)'!$F$221"]
["pp1_bl4_7_2_total_out",{"$f":"'T2-B(PP1)'!$I$221","v":0},"#'T2-B(PP1)'!$I$221"]
["pp1_bl4_7_2_unit",{"$f":"'T2-B(PP1)'!$C$221","v":0},"#'T2-B(PP1)'!$C$221"]
["pp1_bl4_7_2_unit_in",{"$f":"'T2-B(PP1)'!$D$221","v":0},"#'T2-B(PP1)'!$D$221"]
["pp1_bl4_7_2_units_out",{"$f":"'T2-B(PP1)'!$G$221","v":0},"#'T2-B(PP1)'!$G$221"]
["pp1_bl4_7_20_name",{"$f":"'T2-B(PP1)'!$B$239","v":0},"#'T2-B(PP1)'!$B$239"]
["pp1_bl4_7_20_rate_in",{"$f":"'T2-B(PP1)'!$E$239","v":0},"#'T2-B(PP1)'!$E$239"]
["pp1_bl4_7_20_rate_out",{"$f":"'T2-B(PP1)'!$H$239","v":0},"#'T2-B(PP1)'!$H$239"]
["pp1_bl4_7_20_total",{"$f":"'T2-B(PP1)'!$J$239","v":0},"#'T2-B(PP1)'!$J$239"]
["pp1_bl4_7_20_total_in",{"$f":"'T2-B(PP1)'!$F$239","v":0},"#'T2-B(PP1)'!$F$239"]
["pp1_bl4_7_20_total_out",{"$f":"'T2-B(PP1)'!$I$239","v":0},"#'T2-B(PP1)'!$I$239"]
["pp1_bl4_7_20_unit",{"$f":"'T2-B(PP1)'!$C$239","v":0},"#'T2-B(PP1)'!$C$239"]
["pp1_bl4_7_20_unit_in",{"$f":"'T2-B(PP1)'!$D$239","v":0},"#'T2-B(PP1)'!$D$239"]
["pp1_bl4_7_20_units_out",{"$f":"'T2-B(PP1)'!$G$239","v":0},"#'T2-B(PP1)'!$G$239"]
["pp1_bl4_7_3_name",{"$f":"'T2-B(PP1)'!$B$222","v":0},"#'T2-B(PP1)'!$B$222"]
["pp1_bl4_7_3_rate_in",{"$f":"'T2-B(PP1)'!$E$222","v":0},"#'T2-B(PP1)'!$E$222"]
["pp1_bl4_7_3_rate_out",{"$f":"'T2-B(PP1)'!$H$222","v":0},"#'T2-B(PP1)'!$H$222"]
["pp1_bl4_7_3_total",{"$f":"'T2-B(PP1)'!$J$222","v":0},"#'T2-B(PP1)'!$J$222"]
["pp1_bl4_7_3_total_in",{"$f":"'T2-B(PP1)'!$F$222","v":0},"#'T2-B(PP1)'!$F$222"]
["pp1_bl4_7_3_total_out",{"$f":"'T2-B(PP1)'!$I$222","v":0},"#'T2-B(PP1)'!$I$222"]
["pp1_bl4_7_3_unit",{"$f":"'T2-B(PP1)'!$C$222","v":0},"#'T2-B(PP1)'!$C$222"]
["pp1_bl4_7_3_unit_in",{"$f":"'T2-B(PP1)'!$D$222","v":0},"#'T2-B(PP1)'!$D$222"]
["pp1_bl4_7_3_units_out",{"$f":"'T2-B(PP1)'!$G$222","v":0},"#'T2-B(PP1)'!$G$222"]
["pp1_bl4_7_4_name",{"$f":"'T2-B(PP1)'!$B$223","v":0},"#'T2-B(PP1)'!$B$223"]
["pp1_bl4_7_4_rate_in",{"$f":"'T2-B(PP1)'!$E$223","v":0},"#'T2-B(PP1)'!$E$223"]
["pp1_bl4_7_4_rate_out",{"$f":"'T2-B(PP1)'!$H$223","v":0},"#'T2-B(PP1)'!$H$223"]
["pp1_bl4_7_4_total",{"$f":"'T2-B(PP1)'!$J$223","v":0},"#'T2-B(PP1)'!$J$223"]
["pp1_bl4_7_4_total_in",{"$f":"'T2-B(PP1)'!$F$223","v":0},"#'T2-B(PP1)'!$F$223"]
["pp1_bl4_7_4_total_out",{"$f":"'T2-B(PP1)'!$I$223","v":0},"#'T2-B(PP1)'!$I$223"]
["pp1_bl4_7_4_unit",{"$f":"'T2-B(PP1)'!$C$223","v":0},"#'T2-B(PP1)'!$C$223"]
["pp1_bl4_7_4_unit_in",{"$f":"'T2-B(PP1)'!$D$223","v":0},"#'T2-B(PP1)'!$D$223"]
["pp1_bl4_7_4_units_out",{"$f":"'T2-B(PP1)'!$G$223","v":0},"#'T2-B(PP1)'!$G$223"]
["pp1_bl4_7_5_name",{"$f":"'T2-B(PP1)'!$B$224","v":0},"#'T2-B(PP1)'!$B$224"]
["pp1_bl4_7_5_rate_in",{"$f":"'T2-B(PP1)'!$E$224","v":0},"#'T2-B(PP1)'!$E$224"]
["pp1_bl4_7_5_rate_out",{"$f":"'T2-B(PP1)'!$H$224","v":0},"#'T2-B(PP1)'!$H$224"]
["pp1_bl4_7_5_total",{"$f":"'T2-B(PP1)'!$J$224","v":0},"#'T2-B(PP1)'!$J$224"]
["pp1_bl4_7_5_total_in",{"$f":"'T2-B(PP1)'!$F$224","v":0},"#'T2-B(PP1)'!$F$224"]
["pp1_bl4_7_5_total_out",{"$f":"'T2-B(PP1)'!$I$224","v":0},"#'T2-B(PP1)'!$I$224"]
["pp1_bl4_7_5_unit",{"$f":"'T2-B(PP1)'!$C$224","v":0},"#'T2-B(PP1)'!$C$224"]
["pp1_bl4_7_5_unit_in",{"$f":"'T2-B(PP1)'!$D$224","v":0},"#'T2-B(PP1)'!$D$224"]
["pp1_bl4_7_5_units_out",{"$f":"'T2-B(PP1)'!$G$224","v":0},"#'T2-B(PP1)'!$G$224"]
["pp1_bl4_7_6_name",{"$f":"'T2-B(PP1)'!$B$225","v":0},"#'T2-B(PP1)'!$B$225"]
["pp1_bl4_7_6_rate_in",{"$f":"'T2-B(PP1)'!$E$225","v":0},"#'T2-B(PP1)'!$E$225"]
["pp1_bl4_7_6_rate_out",{"$f":"'T2-B(PP1)'!$H$225","v":0},"#'T2-B(PP1)'!$H$225"]
["pp1_bl4_7_6_total",{"$f":"'T2-B(PP1)'!$J$225","v":0},"#'T2-B(PP1)'!$J$225"]
["pp1_bl4_7_6_total_in",{"$f":"'T2-B(PP1)'!$F$225","v":0},"#'T2-B(PP1)'!$F$225"]
["pp1_bl4_7_6_total_out",{"$f":"'T2-B(PP1)'!$I$225","v":0},"#'T2-B(PP1)'!$I$225"]
["pp1_bl4_7_6_unit",{"$f":"'T2-B(PP1)'!$C$225","v":0},"#'T2-B(PP1)'!$C$225"]
["pp1_bl4_7_6_unit_in",{"$f":"'T2-B(PP1)'!$D$225","v":0},"#'T2-B(PP1)'!$D$225"]
["pp1_bl4_7_6_units_out",{"$f":"'T2-B(PP1)'!$G$225","v":0},"#'T2-B(PP1)'!$G$225"]
["pp1_bl4_7_7_name",{"$f":"'T2-B(PP1)'!$B$226","v":0},"#'T2-B(PP1)'!$B$226"]
["pp1_bl4_7_7_rate_in",{"$f":"'T2-B(PP1)'!$E$226","v":0},"#'T2-B(PP1)'!$E$226"]
["pp1_bl4_7_7_rate_out",{"$f":"'T2-B(PP1)'!$H$226","v":0},"#'T2-B(PP1)'!$H$226"]
["pp1_bl4_7_7_total",{"$f":"'T2-B(PP1)'!$J$226","v":0},"#'T2-B(PP1)'!$J$226"]
["pp1_bl4_7_7_total_in",{"$f":"'T2-B(PP1)'!$F$226","v":0},"#'T2-B(PP1)'!$F$226"]
["pp1_bl4_7_7_total_out",{"$f":"'T2-B(PP1)'!$I$226","v":0},"#'T2-B(PP1)'!$I$226"]
["pp1_bl4_7_7_unit",{"$f":"'T2-B(PP1)'!$C$226","v":0},"#'T2-B(PP1)'!$C$226"]
["pp1_bl4_7_7_unit_in",{"$f":"'T2-B(PP1)'!$D$226","v":0},"#'T2-B(PP1)'!$D$226"]
["pp1_bl4_7_7_units_out",{"$f":"'T2-B(PP1)'!$G$226","v":0},"#'T2-B(PP1)'!$G$226"]
["pp1_bl4_7_8_name",{"$f":"'T2-B(PP1)'!$B$227","v":0},"#'T2-B(PP1)'!$B$227"]
["pp1_bl4_7_8_rate_in",{"$f":"'T2-B(PP1)'!$E$227","v":0},"#'T2-B(PP1)'!$E$227"]
["pp1_bl4_7_8_rate_out",{"$f":"'T2-B(PP1)'!$H$227","v":0},"#'T2-B(PP1)'!$H$227"]
["pp1_bl4_7_8_total",{"$f":"'T2-B(PP1)'!$J$227","v":0},"#'T2-B(PP1)'!$J$227"]
["pp1_bl4_7_8_total_in",{"$f":"'T2-B(PP1)'!$F$227","v":0},"#'T2-B(PP1)'!$F$227"]
["pp1_bl4_7_8_total_out",{"$f":"'T2-B(PP1)'!$I$227","v":0},"#'T2-B(PP1)'!$I$227"]
["pp1_bl4_7_8_unit",{"$f":"'T2-B(PP1)'!$C$227","v":0},"#'T2-B(PP1)'!$C$227"]
["pp1_bl4_7_8_unit_in",{"$f":"'T2-B(PP1)'!$D$227","v":0},"#'T2-B(PP1)'!$D$227"]
["pp1_bl4_7_8_units_out",{"$f":"'T2-B(PP1)'!$G$227","v":0},"#'T2-B(PP1)'!$G$227"]
["pp1_bl4_7_9_name",{"$f":"'T2-B(PP1)'!$B$228","v":0},"#'T2-B(PP1)'!$B$228"]
["pp1_bl4_7_9_rate_in",{"$f":"'T2-B(PP1)'!$E$228","v":0},"#'T2-B(PP1)'!$E$228"]
["pp1_bl4_7_9_rate_out",{"$f":"'T2-B(PP1)'!$H$228","v":0},"#'T2-B(PP1)'!$H$228"]
["pp1_bl4_7_9_total",{"$f":"'T2-B(PP1)'!$J$228","v":0},"#'T2-B(PP1)'!$J$228"]
["pp1_bl4_7_9_total_in",{"$f":"'T2-B(PP1)'!$F$228","v":0},"#'T2-B(PP1)'!$F$228"]
["pp1_bl4_7_9_total_out",{"$f":"'T2-B(PP1)'!$I$228","v":0},"#'T2-B(PP1)'!$I$228"]
["pp1_bl4_7_9_unit",{"$f":"'T2-B(PP1)'!$C$228","v":0},"#'T2-B(PP1)'!$C$228"]
["pp1_bl4_7_9_unit_in",{"$f":"'T2-B(PP1)'!$D$228","v":0},"#'T2-B(PP1)'!$D$228"]
["pp1_bl4_7_9_units_out",{"$f":"'T2-B(PP1)'!$G$228","v":0},"#'T2-B(PP1)'!$G$228"]
["pp1_bl4_7_total",{"$f":"'T2-B(PP1)'!$J$219","v":0},"#'T2-B(PP1)'!$J$219"]
["pp1_bl4_7_total_in",{"$f":"'T2-B(PP1)'!$F$219","v":0},"#'T2-B(PP1)'!$F$219"]
["pp1_bl4_7_total_out",{"$f":"'T2-B(PP1)'!$I$219","v":0},"#'T2-B(PP1)'!$I$219"]
["pp1_bl4_8_1_name",{"$f":"'T2-B(PP1)'!$B$241","v":0},"#'T2-B(PP1)'!$B$241"]
["pp1_bl4_8_1_rate_in",{"$f":"'T2-B(PP1)'!$E$241","v":0},"#'T2-B(PP1)'!$E$241"]
["pp1_bl4_8_1_rate_out",{"$f":"'T2-B(PP1)'!$H$241","v":0},"#'T2-B(PP1)'!$H$241"]
["pp1_bl4_8_1_total",{"$f":"'T2-B(PP1)'!$J$241","v":0},"#'T2-B(PP1)'!$J$241"]
["pp1_bl4_8_1_total_in",{"$f":"'T2-B(PP1)'!$F$241","v":0},"#'T2-B(PP1)'!$F$241"]
["pp1_bl4_8_1_total_out",{"$f":"'T2-B(PP1)'!$I$241","v":0},"#'T2-B(PP1)'!$I$241"]
["pp1_bl4_8_1_unit",{"$f":"'T2-B(PP1)'!$C$241","v":0},"#'T2-B(PP1)'!$C$241"]
["pp1_bl4_8_1_unit_in",{"$f":"'T2-B(PP1)'!$D$241","v":0},"#'T2-B(PP1)'!$D$241"]
["pp1_bl4_8_1_units_out",{"$f":"'T2-B(PP1)'!$G$241","v":0},"#'T2-B(PP1)'!$G$241"]
["pp1_bl4_8_10_name",{"$f":"'T2-B(PP1)'!$B$250","v":0},"#'T2-B(PP1)'!$B$250"]
["pp1_bl4_8_10_rate_in",{"$f":"'T2-B(PP1)'!$E$250","v":0},"#'T2-B(PP1)'!$E$250"]
["pp1_bl4_8_10_rate_out",{"$f":"'T2-B(PP1)'!$H$250","v":0},"#'T2-B(PP1)'!$H$250"]
["pp1_bl4_8_10_total",{"$f":"'T2-B(PP1)'!$J$250","v":0},"#'T2-B(PP1)'!$J$250"]
["pp1_bl4_8_10_total_in",{"$f":"'T2-B(PP1)'!$F$250","v":0},"#'T2-B(PP1)'!$F$250"]
["pp1_bl4_8_10_total_out",{"$f":"'T2-B(PP1)'!$I$250","v":0},"#'T2-B(PP1)'!$I$250"]
["pp1_bl4_8_10_unit",{"$f":"'T2-B(PP1)'!$C$250","v":0},"#'T2-B(PP1)'!$C$250"]
["pp1_bl4_8_10_unit_in",{"$f":"'T2-B(PP1)'!$D$250","v":0},"#'T2-B(PP1)'!$D$250"]
["pp1_bl4_8_10_units_out",{"$f":"'T2-B(PP1)'!$G$250","v":0},"#'T2-B(PP1)'!$G$250"]
["pp1_bl4_8_11_name",{"$f":"'T2-B(PP1)'!$B$251","v":0},"#'T2-B(PP1)'!$B$251"]
["pp1_bl4_8_11_rate_in",{"$f":"'T2-B(PP1)'!$E$251","v":0},"#'T2-B(PP1)'!$E$251"]
["pp1_bl4_8_11_rate_out",{"$f":"'T2-B(PP1)'!$H$251","v":0},"#'T2-B(PP1)'!$H$251"]
["pp1_bl4_8_11_total",{"$f":"'T2-B(PP1)'!$J$251","v":0},"#'T2-B(PP1)'!$J$251"]
["pp1_bl4_8_11_total_in",{"$f":"'T2-B(PP1)'!$F$251","v":0},"#'T2-B(PP1)'!$F$251"]
["pp1_bl4_8_11_total_out",{"$f":"'T2-B(PP1)'!$I$251","v":0},"#'T2-B(PP1)'!$I$251"]
["pp1_bl4_8_11_unit",{"$f":"'T2-B(PP1)'!$C$251","v":0},"#'T2-B(PP1)'!$C$251"]
["pp1_bl4_8_11_unit_in",{"$f":"'T2-B(PP1)'!$D$251","v":0},"#'T2-B(PP1)'!$D$251"]
["pp1_bl4_8_11_units_out",{"$f":"'T2-B(PP1)'!$G$251","v":0},"#'T2-B(PP1)'!$G$251"]
["pp1_bl4_8_12_name",{"$f":"'T2-B(PP1)'!$B$252","v":0},"#'T2-B(PP1)'!$B$252"]
["pp1_bl4_8_12_rate_in",{"$f":"'T2-B(PP1)'!$E$252","v":0},"#'T2-B(PP1)'!$E$252"]
["pp1_bl4_8_12_rate_out",{"$f":"'T2-B(PP1)'!$H$252","v":0},"#'T2-B(PP1)'!$H$252"]
["pp1_bl4_8_12_total",{"$f":"'T2-B(PP1)'!$J$252","v":0},"#'T2-B(PP1)'!$J$252"]
["pp1_bl4_8_12_total_in",{"$f":"'T2-B(PP1)'!$F$252","v":0},"#'T2-B(PP1)'!$F$252"]
["pp1_bl4_8_12_total_out",{"$f":"'T2-B(PP1)'!$I$252","v":0},"#'T2-B(PP1)'!$I$252"]
["pp1_bl4_8_12_unit",{"$f":"'T2-B(PP1)'!$C$252","v":0},"#'T2-B(PP1)'!$C$252"]
["pp1_bl4_8_12_unit_in",{"$f":"'T2-B(PP1)'!$D$252","v":0},"#'T2-B(PP1)'!$D$252"]
["pp1_bl4_8_12_units_out",{"$f":"'T2-B(PP1)'!$G$252","v":0},"#'T2-B(PP1)'!$G$252"]
["pp1_bl4_8_13_name",{"$f":"'T2-B(PP1)'!$B$253","v":0},"#'T2-B(PP1)'!$B$253"]
["pp1_bl4_8_13_rate_in",{"$f":"'T2-B(PP1)'!$E$253","v":0},"#'T2-B(PP1)'!$E$253"]
["pp1_bl4_8_13_rate_out",{"$f":"'T2-B(PP1)'!$H$253","v":0},"#'T2-B(PP1)'!$H$253"]
["pp1_bl4_8_13_total",{"$f":"'T2-B(PP1)'!$J$253","v":0},"#'T2-B(PP1)'!$J$253"]
["pp1_bl4_8_13_total_in",{"$f":"'T2-B(PP1)'!$F$253","v":0},"#'T2-B(PP1)'!$F$253"]
["pp1_bl4_8_13_total_out",{"$f":"'T2-B(PP1)'!$I$253","v":0},"#'T2-B(PP1)'!$I$253"]
["pp1_bl4_8_13_unit",{"$f":"'T2-B(PP1)'!$C$253","v":0},"#'T2-B(PP1)'!$C$253"]
["pp1_bl4_8_13_unit_in",{"$f":"'T2-B(PP1)'!$D$253","v":0},"#'T2-B(PP1)'!$D$253"]
["pp1_bl4_8_13_units_out",{"$f":"'T2-B(PP1)'!$G$253","v":0},"#'T2-B(PP1)'!$G$253"]
["pp1_bl4_8_14_name",{"$f":"'T2-B(PP1)'!$B$254","v":0},"#'T2-B(PP1)'!$B$254"]
["pp1_bl4_8_14_rate_in",{"$f":"'T2-B(PP1)'!$E$254","v":0},"#'T2-B(PP1)'!$E$254"]
["pp1_bl4_8_14_rate_out",{"$f":"'T2-B(PP1)'!$H$254","v":0},"#'T2-B(PP1)'!$H$254"]
["pp1_bl4_8_14_total",{"$f":"'T2-B(PP1)'!$J$254","v":0},"#'T2-B(PP1)'!$J$254"]
["pp1_bl4_8_14_total_in",{"$f":"'T2-B(PP1)'!$F$254","v":0},"#'T2-B(PP1)'!$F$254"]
["pp1_bl4_8_14_total_out",{"$f":"'T2-B(PP1)'!$I$254","v":0},"#'T2-B(PP1)'!$I$254"]
["pp1_bl4_8_14_unit",{"$f":"'T2-B(PP1)'!$C$254","v":0},"#'T2-B(PP1)'!$C$254"]
["pp1_bl4_8_14_unit_in",{"$f":"'T2-B(PP1)'!$D$254","v":0},"#'T2-B(PP1)'!$D$254"]
["pp1_bl4_8_14_units_out",{"$f":"'T2-B(PP1)'!$G$254","v":0},"#'T2-B(PP1)'!$G$254"]
["pp1_bl4_8_15_name",{"$f":"'T2-B(PP1)'!$B$255","v":0},"#'T2-B(PP1)'!$B$255"]
["pp1_bl4_8_15_rate_in",{"$f":"'T2-B(PP1)'!$E$255","v":0},"#'T2-B(PP1)'!$E$255"]
["pp1_bl4_8_15_rate_out",{"$f":"'T2-B(PP1)'!$H$255","v":0},"#'T2-B(PP1)'!$H$255"]
["pp1_bl4_8_15_total",{"$f":"'T2-B(PP1)'!$J$255","v":0},"#'T2-B(PP1)'!$J$255"]
["pp1_bl4_8_15_total_in",{"$f":"'T2-B(PP1)'!$F$255","v":0},"#'T2-B(PP1)'!$F$255"]
["pp1_bl4_8_15_total_out",{"$f":"'T2-B(PP1)'!$I$255","v":0},"#'T2-B(PP1)'!$I$255"]
["pp1_bl4_8_15_unit",{"$f":"'T2-B(PP1)'!$C$255","v":0},"#'T2-B(PP1)'!$C$255"]
["pp1_bl4_8_15_unit_in",{"$f":"'T2-B(PP1)'!$D$255","v":0},"#'T2-B(PP1)'!$D$255"]
["pp1_bl4_8_15_units_out",{"$f":"'T2-B(PP1)'!$G$255","v":0},"#'T2-B(PP1)'!$G$255"]
["pp1_bl4_8_16_name",{"$f":"'T2-B(PP1)'!$B$256","v":0},"#'T2-B(PP1)'!$B$256"]
["pp1_bl4_8_16_rate_in",{"$f":"'T2-B(PP1)'!$E$256","v":0},"#'T2-B(PP1)'!$E$256"]
["pp1_bl4_8_16_rate_out",{"$f":"'T2-B(PP1)'!$H$256","v":0},"#'T2-B(PP1)'!$H$256"]
["pp1_bl4_8_16_total",{"$f":"'T2-B(PP1)'!$J$256","v":0},"#'T2-B(PP1)'!$J$256"]
["pp1_bl4_8_16_total_in",{"$f":"'T2-B(PP1)'!$F$256","v":0},"#'T2-B(PP1)'!$F$256"]
["pp1_bl4_8_16_total_out",{"$f":"'T2-B(PP1)'!$I$256","v":0},"#'T2-B(PP1)'!$I$256"]
["pp1_bl4_8_16_unit",{"$f":"'T2-B(PP1)'!$C$256","v":0},"#'T2-B(PP1)'!$C$256"]
["pp1_bl4_8_16_unit_in",{"$f":"'T2-B(PP1)'!$D$256","v":0},"#'T2-B(PP1)'!$D$256"]
["pp1_bl4_8_16_units_out",{"$f":"'T2-B(PP1)'!$G$256","v":0},"#'T2-B(PP1)'!$G$256"]
["pp1_bl4_8_17_name",{"$f":"'T2-B(PP1)'!$B$257","v":0},"#'T2-B(PP1)'!$B$257"]
["pp1_bl4_8_17_rate_in",{"$f":"'T2-B(PP1)'!$E$257","v":0},"#'T2-B(PP1)'!$E$257"]
["pp1_bl4_8_17_rate_out",{"$f":"'T2-B(PP1)'!$H$257","v":0},"#'T2-B(PP1)'!$H$257"]
["pp1_bl4_8_17_total",{"$f":"'T2-B(PP1)'!$J$257","v":0},"#'T2-B(PP1)'!$J$257"]
["pp1_bl4_8_17_total_in",{"$f":"'T2-B(PP1)'!$F$257","v":0},"#'T2-B(PP1)'!$F$257"]
["pp1_bl4_8_17_total_out",{"$f":"'T2-B(PP1)'!$I$257","v":0},"#'T2-B(PP1)'!$I$257"]
["pp1_bl4_8_17_unit",{"$f":"'T2-B(PP1)'!$C$257","v":0},"#'T2-B(PP1)'!$C$257"]
["pp1_bl4_8_17_unit_in",{"$f":"'T2-B(PP1)'!$D$257","v":0},"#'T2-B(PP1)'!$D$257"]
["pp1_bl4_8_17_units_out",{"$f":"'T2-B(PP1)'!$G$257","v":0},"#'T2-B(PP1)'!$G$257"]
["pp1_bl4_8_18_name",{"$f":"'T2-B(PP1)'!$B$258","v":0},"#'T2-B(PP1)'!$B$258"]
["pp1_bl4_8_18_rate_in",{"$f":"'T2-B(PP1)'!$E$258","v":0},"#'T2-B(PP1)'!$E$258"]
["pp1_bl4_8_18_rate_out",{"$f":"'T2-B(PP1)'!$H$258","v":0},"#'T2-B(PP1)'!$H$258"]
["pp1_bl4_8_18_total",{"$f":"'T2-B(PP1)'!$J$258","v":0},"#'T2-B(PP1)'!$J$258"]
["pp1_bl4_8_18_total_in",{"$f":"'T2-B(PP1)'!$F$258","v":0},"#'T2-B(PP1)'!$F$258"]
["pp1_bl4_8_18_total_out",{"$f":"'T2-B(PP1)'!$I$258","v":0},"#'T2-B(PP1)'!$I$258"]
["pp1_bl4_8_18_unit",{"$f":"'T2-B(PP1)'!$C$258","v":0},"#'T2-B(PP1)'!$C$258"]
["pp1_bl4_8_18_unit_in",{"$f":"'T2-B(PP1)'!$D$258","v":0},"#'T2-B(PP1)'!$D$258"]
["pp1_bl4_8_18_units_out",{"$f":"'T2-B(PP1)'!$G$258","v":0},"#'T2-B(PP1)'!$G$258"]
["pp1_bl4_8_19_name",{"$f":"'T2-B(PP1)'!$B$259","v":0},"#'T2-B(PP1)'!$B$259"]
["pp1_bl4_8_19_rate_in",{"$f":"'T2-B(PP1)'!$E$259","v":0},"#'T2-B(PP1)'!$E$259"]
["pp1_bl4_8_19_rate_out",{"$f":"'T2-B(PP1)'!$H$259","v":0},"#'T2-B(PP1)'!$H$259"]
["pp1_bl4_8_19_total",{"$f":"'T2-B(PP1)'!$J$259","v":0},"#'T2-B(PP1)'!$J$259"]
["pp1_bl4_8_19_total_in",{"$f":"'T2-B(PP1)'!$F$259","v":0},"#'T2-B(PP1)'!$F$259"]
["pp1_bl4_8_19_total_out",{"$f":"'T2-B(PP1)'!$I$259","v":0},"#'T2-B(PP1)'!$I$259"]
["pp1_bl4_8_19_unit",{"$f":"'T2-B(PP1)'!$C$259","v":0},"#'T2-B(PP1)'!$C$259"]
["pp1_bl4_8_19_unit_in",{"$f":"'T2-B(PP1)'!$D$259","v":0},"#'T2-B(PP1)'!$D$259"]
["pp1_bl4_8_19_units_out",{"$f":"'T2-B(PP1)'!$G$259","v":0},"#'T2-B(PP1)'!$G$259"]
["pp1_bl4_8_2_name",{"$f":"'T2-B(PP1)'!$B$242","v":0},"#'T2-B(PP1)'!$B$242"]
["pp1_bl4_8_2_rate_in",{"$f":"'T2-B(PP1)'!$E$242","v":0},"#'T2-B(PP1)'!$E$242"]
["pp1_bl4_8_2_rate_out",{"$f":"'T2-B(PP1)'!$H$242","v":0},"#'T2-B(PP1)'!$H$242"]
["pp1_bl4_8_2_total",{"$f":"'T2-B(PP1)'!$J$242","v":0},"#'T2-B(PP1)'!$J$242"]
["pp1_bl4_8_2_total_in",{"$f":"'T2-B(PP1)'!$F$242","v":0},"#'T2-B(PP1)'!$F$242"]
["pp1_bl4_8_2_total_out",{"$f":"'T2-B(PP1)'!$I$242","v":0},"#'T2-B(PP1)'!$I$242"]
["pp1_bl4_8_2_unit",{"$f":"'T2-B(PP1)'!$C$242","v":0},"#'T2-B(PP1)'!$C$242"]
["pp1_bl4_8_2_unit_in",{"$f":"'T2-B(PP1)'!$D$242","v":0},"#'T2-B(PP1)'!$D$242"]
["pp1_bl4_8_2_units_out",{"$f":"'T2-B(PP1)'!$G$242","v":0},"#'T2-B(PP1)'!$G$242"]
["pp1_bl4_8_20_name",{"$f":"'T2-B(PP1)'!$B$260","v":0},"#'T2-B(PP1)'!$B$260"]
["pp1_bl4_8_20_rate_in",{"$f":"'T2-B(PP1)'!$E$260","v":0},"#'T2-B(PP1)'!$E$260"]
["pp1_bl4_8_20_rate_out",{"$f":"'T2-B(PP1)'!$H$260","v":0},"#'T2-B(PP1)'!$H$260"]
["pp1_bl4_8_20_total",{"$f":"'T2-B(PP1)'!$J$260","v":0},"#'T2-B(PP1)'!$J$260"]
["pp1_bl4_8_20_total_in",{"$f":"'T2-B(PP1)'!$F$260","v":0},"#'T2-B(PP1)'!$F$260"]
["pp1_bl4_8_20_total_out",{"$f":"'T2-B(PP1)'!$I$260","v":0},"#'T2-B(PP1)'!$I$260"]
["pp1_bl4_8_20_unit",{"$f":"'T2-B(PP1)'!$C$260","v":0},"#'T2-B(PP1)'!$C$260"]
["pp1_bl4_8_20_unit_in",{"$f":"'T2-B(PP1)'!$D$260","v":0},"#'T2-B(PP1)'!$D$260"]
["pp1_bl4_8_20_units_out",{"$f":"'T2-B(PP1)'!$G$260","v":0},"#'T2-B(PP1)'!$G$260"]
["pp1_bl4_8_3_name",{"$f":"'T2-B(PP1)'!$B$243","v":0},"#'T2-B(PP1)'!$B$243"]
["pp1_bl4_8_3_rate_in",{"$f":"'T2-B(PP1)'!$E$243","v":0},"#'T2-B(PP1)'!$E$243"]
["pp1_bl4_8_3_rate_out",{"$f":"'T2-B(PP1)'!$H$243","v":0},"#'T2-B(PP1)'!$H$243"]
["pp1_bl4_8_3_total",{"$f":"'T2-B(PP1)'!$J$243","v":0},"#'T2-B(PP1)'!$J$243"]
["pp1_bl4_8_3_total_in",{"$f":"'T2-B(PP1)'!$F$243","v":0},"#'T2-B(PP1)'!$F$243"]
["pp1_bl4_8_3_total_out",{"$f":"'T2-B(PP1)'!$I$243","v":0},"#'T2-B(PP1)'!$I$243"]
["pp1_bl4_8_3_unit",{"$f":"'T2-B(PP1)'!$C$243","v":0},"#'T2-B(PP1)'!$C$243"]
["pp1_bl4_8_3_unit_in",{"$f":"'T2-B(PP1)'!$D$243","v":0},"#'T2-B(PP1)'!$D$243"]
["pp1_bl4_8_3_units_out",{"$f":"'T2-B(PP1)'!$G$243","v":0},"#'T2-B(PP1)'!$G$243"]
["pp1_bl4_8_4_name",{"$f":"'T2-B(PP1)'!$B$244","v":0},"#'T2-B(PP1)'!$B$244"]
["pp1_bl4_8_4_rate_in",{"$f":"'T2-B(PP1)'!$E$244","v":0},"#'T2-B(PP1)'!$E$244"]
["pp1_bl4_8_4_rate_out",{"$f":"'T2-B(PP1)'!$H$244","v":0},"#'T2-B(PP1)'!$H$244"]
["pp1_bl4_8_4_total",{"$f":"'T2-B(PP1)'!$J$244","v":0},"#'T2-B(PP1)'!$J$244"]
["pp1_bl4_8_4_total_in",{"$f":"'T2-B(PP1)'!$F$244","v":0},"#'T2-B(PP1)'!$F$244"]
["pp1_bl4_8_4_total_out",{"$f":"'T2-B(PP1)'!$I$244","v":0},"#'T2-B(PP1)'!$I$244"]
["pp1_bl4_8_4_unit",{"$f":"'T2-B(PP1)'!$C$244","v":0},"#'T2-B(PP1)'!$C$244"]
["pp1_bl4_8_4_unit_in",{"$f":"'T2-B(PP1)'!$D$244","v":0},"#'T2-B(PP1)'!$D$244"]
["pp1_bl4_8_4_units_out",{"$f":"'T2-B(PP1)'!$G$244","v":0},"#'T2-B(PP1)'!$G$244"]
["pp1_bl4_8_5_name",{"$f":"'T2-B(PP1)'!$B$245","v":0},"#'T2-B(PP1)'!$B$245"]
["pp1_bl4_8_5_rate_in",{"$f":"'T2-B(PP1)'!$E$245","v":0},"#'T2-B(PP1)'!$E$245"]
["pp1_bl4_8_5_rate_out",{"$f":"'T2-B(PP1)'!$H$245","v":0},"#'T2-B(PP1)'!$H$245"]
["pp1_bl4_8_5_total",{"$f":"'T2-B(PP1)'!$J$245","v":0},"#'T2-B(PP1)'!$J$245"]
["pp1_bl4_8_5_total_in",{"$f":"'T2-B(PP1)'!$F$245","v":0},"#'T2-B(PP1)'!$F$245"]
["pp1_bl4_8_5_total_out",{"$f":"'T2-B(PP1)'!$I$245","v":0},"#'T2-B(PP1)'!$I$245"]
["pp1_bl4_8_5_unit",{"$f":"'T2-B(PP1)'!$C$245","v":0},"#'T2-B(PP1)'!$C$245"]
["pp1_bl4_8_5_unit_in",{"$f":"'T2-B(PP1)'!$D$245","v":0},"#'T2-B(PP1)'!$D$245"]
["pp1_bl4_8_5_units_out",{"$f":"'T2-B(PP1)'!$G$245","v":0},"#'T2-B(PP1)'!$G$245"]
["pp1_bl4_8_6_name",{"$f":"'T2-B(PP1)'!$B$246","v":0},"#'T2-B(PP1)'!$B$246"]
["pp1_bl4_8_6_rate_in",{"$f":"'T2-B(PP1)'!$E$246","v":0},"#'T2-B(PP1)'!$E$246"]
["pp1_bl4_8_6_rate_out",{"$f":"'T2-B(PP1)'!$H$246","v":0},"#'T2-B(PP1)'!$H$246"]
["pp1_bl4_8_6_total",{"$f":"'T2-B(PP1)'!$J$246","v":0},"#'T2-B(PP1)'!$J$246"]
["pp1_bl4_8_6_total_in",{"$f":"'T2-B(PP1)'!$F$246","v":0},"#'T2-B(PP1)'!$F$246"]
["pp1_bl4_8_6_total_out",{"$f":"'T2-B(PP1)'!$I$246","v":0},"#'T2-B(PP1)'!$I$246"]
["pp1_bl4_8_6_unit",{"$f":"'T2-B(PP1)'!$C$246","v":0},"#'T2-B(PP1)'!$C$246"]
["pp1_bl4_8_6_unit_in",{"$f":"'T2-B(PP1)'!$D$246","v":0},"#'T2-B(PP1)'!$D$246"]
["pp1_bl4_8_6_units_out",{"$f":"'T2-B(PP1)'!$G$246","v":0},"#'T2-B(PP1)'!$G$246"]
["pp1_bl4_8_7_name",{"$f":"'T2-B(PP1)'!$B$247","v":0},"#'T2-B(PP1)'!$B$247"]
["pp1_bl4_8_7_rate_in",{"$f":"'T2-B(PP1)'!$E$247","v":0},"#'T2-B(PP1)'!$E$247"]
["pp1_bl4_8_7_rate_out",{"$f":"'T2-B(PP1)'!$H$247","v":0},"#'T2-B(PP1)'!$H$247"]
["pp1_bl4_8_7_total",{"$f":"'T2-B(PP1)'!$J$247","v":0},"#'T2-B(PP1)'!$J$247"]
["pp1_bl4_8_7_total_in",{"$f":"'T2-B(PP1)'!$F$247","v":0},"#'T2-B(PP1)'!$F$247"]
["pp1_bl4_8_7_total_out",{"$f":"'T2-B(PP1)'!$I$247","v":0},"#'T2-B(PP1)'!$I$247"]
["pp1_bl4_8_7_unit",{"$f":"'T2-B(PP1)'!$C$247","v":0},"#'T2-B(PP1)'!$C$247"]
["pp1_bl4_8_7_unit_in",{"$f":"'T2-B(PP1)'!$D$247","v":0},"#'T2-B(PP1)'!$D$247"]
["pp1_bl4_8_7_units_out",{"$f":"'T2-B(PP1)'!$G$247","v":0},"#'T2-B(PP1)'!$G$247"]
["pp1_bl4_8_8_name",{"$f":"'T2-B(PP1)'!$B$248","v":0},"#'T2-B(PP1)'!$B$248"]
["pp1_bl4_8_8_rate_in",{"$f":"'T2-B(PP1)'!$E$248","v":0},"#'T2-B(PP1)'!$E$248"]
["pp1_bl4_8_8_rate_out",{"$f":"'T2-B(PP1)'!$H$248","v":0},"#'T2-B(PP1)'!$H$248"]
["pp1_bl4_8_8_total",{"$f":"'T2-B(PP1)'!$J$248","v":0},"#'T2-B(PP1)'!$J$248"]
["pp1_bl4_8_8_total_in",{"$f":"'T2-B(PP1)'!$F$248","v":0},"#'T2-B(PP1)'!$F$248"]
["pp1_bl4_8_8_total_out",{"$f":"'T2-B(PP1)'!$I$248","v":0},"#'T2-B(PP1)'!$I$248"]
["pp1_bl4_8_8_unit",{"$f":"'T2-B(PP1)'!$C$248","v":0},"#'T2-B(PP1)'!$C$248"]
["pp1_bl4_8_8_unit_in",{"$f":"'T2-B(PP1)'!$D$248","v":0},"#'T2-B(PP1)'!$D$248"]
["pp1_bl4_8_8_units_out",{"$f":"'T2-B(PP1)'!$G$248","v":0},"#'T2-B(PP1)'!$G$248"]
["pp1_bl4_8_9_name",{"$f":"'T2-B(PP1)'!$B$249","v":0},"#'T2-B(PP1)'!$B$249"]
["pp1_bl4_8_9_rate_in",{"$f":"'T2-B(PP1)'!$E$249","v":0},"#'T2-B(PP1)'!$E$249"]
["pp1_bl4_8_9_rate_out",{"$f":"'T2-B(PP1)'!$H$249","v":0},"#'T2-B(PP1)'!$H$249"]
["pp1_bl4_8_9_total",{"$f":"'T2-B(PP1)'!$J$249","v":0},"#'T2-B(PP1)'!$J$249"]
["pp1_bl4_8_9_total_in",{"$f":"'T2-B(PP1)'!$F$249","v":0},"#'T2-B(PP1)'!$F$249"]
["pp1_bl4_8_9_total_out",{"$f":"'T2-B(PP1)'!$I$249","v":0},"#'T2-B(PP1)'!$I$249"]
["pp1_bl4_8_9_unit",{"$f":"'T2-B(PP1)'!$C$249","v":0},"#'T2-B(PP1)'!$C$249"]
["pp1_bl4_8_9_unit_in",{"$f":"'T2-B(PP1)'!$D$249","v":0},"#'T2-B(PP1)'!$D$249"]
["pp1_bl4_8_9_units_out",{"$f":"'T2-B(PP1)'!$G$249","v":0},"#'T2-B(PP1)'!$G$249"]
["pp1_bl4_8_total",{"$f":"'T2-B(PP1)'!$J$240","v":0},"#'T2-B(PP1)'!$J$240"]
["pp1_bl4_8_total_in",{"$f":"'T2-B(PP1)'!$F$240","v":0},"#'T2-B(PP1)'!$F$240"]
["pp1_bl4_8_total_out",{"$f":"'T2-B(PP1)'!$I$240","v":0},"#'T2-B(PP1)'!$I$240"]
["pp1_bl4_9_1_name",{"$f":"'T2-B(PP1)'!$B$262","v":0},"#'T2-B(PP1)'!$B$262"]
["pp1_bl4_9_1_rate_in",{"$f":"'T2-B(PP1)'!$E$262","v":0},"#'T2-B(PP1)'!$E$262"]
["pp1_bl4_9_1_rate_out",{"$f":"'T2-B(PP1)'!$H$262","v":0},"#'T2-B(PP1)'!$H$262"]
["pp1_bl4_9_1_total",{"$f":"'T2-B(PP1)'!$J$262","v":0},"#'T2-B(PP1)'!$J$262"]
["pp1_bl4_9_1_total_in",{"$f":"'T2-B(PP1)'!$F$262","v":0},"#'T2-B(PP1)'!$F$262"]
["pp1_bl4_9_1_total_out",{"$f":"'T2-B(PP1)'!$I$262","v":0},"#'T2-B(PP1)'!$I$262"]
["pp1_bl4_9_1_unit",{"$f":"'T2-B(PP1)'!$C$262","v":0},"#'T2-B(PP1)'!$C$262"]
["pp1_bl4_9_1_unit_in",{"$f":"'T2-B(PP1)'!$D$262","v":0},"#'T2-B(PP1)'!$D$262"]
["pp1_bl4_9_1_units_out",{"$f":"'T2-B(PP1)'!$G$262","v":0},"#'T2-B(PP1)'!$G$262"]
["pp1_bl4_9_10_name",{"$f":"'T2-B(PP1)'!$B$271","v":0},"#'T2-B(PP1)'!$B$271"]
["pp1_bl4_9_10_rate_in",{"$f":"'T2-B(PP1)'!$E$271","v":0},"#'T2-B(PP1)'!$E$271"]
["pp1_bl4_9_10_rate_out",{"$f":"'T2-B(PP1)'!$H$271","v":0},"#'T2-B(PP1)'!$H$271"]
["pp1_bl4_9_10_total",{"$f":"'T2-B(PP1)'!$J$271","v":0},"#'T2-B(PP1)'!$J$271"]
["pp1_bl4_9_10_total_in",{"$f":"'T2-B(PP1)'!$F$271","v":0},"#'T2-B(PP1)'!$F$271"]
["pp1_bl4_9_10_total_out",{"$f":"'T2-B(PP1)'!$I$271","v":0},"#'T2-B(PP1)'!$I$271"]
["pp1_bl4_9_10_unit",{"$f":"'T2-B(PP1)'!$C$271","v":0},"#'T2-B(PP1)'!$C$271"]
["pp1_bl4_9_10_unit_in",{"$f":"'T2-B(PP1)'!$D$271","v":0},"#'T2-B(PP1)'!$D$271"]
["pp1_bl4_9_10_units_out",{"$f":"'T2-B(PP1)'!$G$271","v":0},"#'T2-B(PP1)'!$G$271"]
["pp1_bl4_9_11_name",{"$f":"'T2-B(PP1)'!$B$272","v":0},"#'T2-B(PP1)'!$B$272"]
["pp1_bl4_9_11_rate_in",{"$f":"'T2-B(PP1)'!$E$272","v":0},"#'T2-B(PP1)'!$E$272"]
["pp1_bl4_9_11_rate_out",{"$f":"'T2-B(PP1)'!$H$272","v":0},"#'T2-B(PP1)'!$H$272"]
["pp1_bl4_9_11_total",{"$f":"'T2-B(PP1)'!$J$272","v":0},"#'T2-B(PP1)'!$J$272"]
["pp1_bl4_9_11_total_in",{"$f":"'T2-B(PP1)'!$F$272","v":0},"#'T2-B(PP1)'!$F$272"]
["pp1_bl4_9_11_total_out",{"$f":"'T2-B(PP1)'!$I$272","v":0},"#'T2-B(PP1)'!$I$272"]
["pp1_bl4_9_11_unit",{"$f":"'T2-B(PP1)'!$C$272","v":0},"#'T2-B(PP1)'!$C$272"]
["pp1_bl4_9_11_unit_in",{"$f":"'T2-B(PP1)'!$D$272","v":0},"#'T2-B(PP1)'!$D$272"]
["pp1_bl4_9_11_units_out",{"$f":"'T2-B(PP1)'!$G$272","v":0},"#'T2-B(PP1)'!$G$272"]
["pp1_bl4_9_12_name",{"$f":"'T2-B(PP1)'!$B$273","v":0},"#'T2-B(PP1)'!$B$273"]
["pp1_bl4_9_12_rate_in",{"$f":"'T2-B(PP1)'!$E$273","v":0},"#'T2-B(PP1)'!$E$273"]
["pp1_bl4_9_12_rate_out",{"$f":"'T2-B(PP1)'!$H$273","v":0},"#'T2-B(PP1)'!$H$273"]
["pp1_bl4_9_12_total",{"$f":"'T2-B(PP1)'!$J$273","v":0},"#'T2-B(PP1)'!$J$273"]
["pp1_bl4_9_12_total_in",{"$f":"'T2-B(PP1)'!$F$273","v":0},"#'T2-B(PP1)'!$F$273"]
["pp1_bl4_9_12_total_out",{"$f":"'T2-B(PP1)'!$I$273","v":0},"#'T2-B(PP1)'!$I$273"]
["pp1_bl4_9_12_unit",{"$f":"'T2-B(PP1)'!$C$273","v":0},"#'T2-B(PP1)'!$C$273"]
["pp1_bl4_9_12_unit_in",{"$f":"'T2-B(PP1)'!$D$273","v":0},"#'T2-B(PP1)'!$D$273"]
["pp1_bl4_9_12_units_out",{"$f":"'T2-B(PP1)'!$G$273","v":0},"#'T2-B(PP1)'!$G$273"]
["pp1_bl4_9_13_name",{"$f":"'T2-B(PP1)'!$B$274","v":0},"#'T2-B(PP1)'!$B$274"]
["pp1_bl4_9_13_rate_in",{"$f":"'T2-B(PP1)'!$E$274","v":0},"#'T2-B(PP1)'!$E$274"]
["pp1_bl4_9_13_rate_out",{"$f":"'T2-B(PP1)'!$H$274","v":0},"#'T2-B(PP1)'!$H$274"]
["pp1_bl4_9_13_total",{"$f":"'T2-B(PP1)'!$J$274","v":0},"#'T2-B(PP1)'!$J$274"]
["pp1_bl4_9_13_total_in",{"$f":"'T2-B(PP1)'!$F$274","v":0},"#'T2-B(PP1)'!$F$274"]
["pp1_bl4_9_13_total_out",{"$f":"'T2-B(PP1)'!$I$274","v":0},"#'T2-B(PP1)'!$I$274"]
["pp1_bl4_9_13_unit",{"$f":"'T2-B(PP1)'!$C$274","v":0},"#'T2-B(PP1)'!$C$274"]
["pp1_bl4_9_13_unit_in",{"$f":"'T2-B(PP1)'!$D$274","v":0},"#'T2-B(PP1)'!$D$274"]
["pp1_bl4_9_13_units_out",{"$f":"'T2-B(PP1)'!$G$274","v":0},"#'T2-B(PP1)'!$G$274"]
["pp1_bl4_9_14_name",{"$f":"'T2-B(PP1)'!$B$275","v":0},"#'T2-B(PP1)'!$B$275"]
["pp1_bl4_9_14_rate_in",{"$f":"'T2-B(PP1)'!$E$275","v":0},"#'T2-B(PP1)'!$E$275"]
["pp1_bl4_9_14_rate_out",{"$f":"'T2-B(PP1)'!$H$275","v":0},"#'T2-B(PP1)'!$H$275"]
["pp1_bl4_9_14_total",{"$f":"'T2-B(PP1)'!$J$275","v":0},"#'T2-B(PP1)'!$J$275"]
["pp1_bl4_9_14_total_in",{"$f":"'T2-B(PP1)'!$F$275","v":0},"#'T2-B(PP1)'!$F$275"]
["pp1_bl4_9_14_total_out",{"$f":"'T2-B(PP1)'!$I$275","v":0},"#'T2-B(PP1)'!$I$275"]
["pp1_bl4_9_14_unit",{"$f":"'T2-B(PP1)'!$C$275","v":0},"#'T2-B(PP1)'!$C$275"]
["pp1_bl4_9_14_unit_in",{"$f":"'T2-B(PP1)'!$D$275","v":0},"#'T2-B(PP1)'!$D$275"]
["pp1_bl4_9_14_units_out",{"$f":"'T2-B(PP1)'!$G$275","v":0},"#'T2-B(PP1)'!$G$275"]
["pp1_bl4_9_15_name",{"$f":"'T2-B(PP1)'!$B$276","v":0},"#'T2-B(PP1)'!$B$276"]
["pp1_bl4_9_15_rate_in",{"$f":"'T2-B(PP1)'!$E$276","v":0},"#'T2-B(PP1)'!$E$276"]
["pp1_bl4_9_15_rate_out",{"$f":"'T2-B(PP1)'!$H$276","v":0},"#'T2-B(PP1)'!$H$276"]
["pp1_bl4_9_15_total",{"$f":"'T2-B(PP1)'!$J$276","v":0},"#'T2-B(PP1)'!$J$276"]
["pp1_bl4_9_15_total_in",{"$f":"'T2-B(PP1)'!$F$276","v":0},"#'T2-B(PP1)'!$F$276"]
["pp1_bl4_9_15_total_out",{"$f":"'T2-B(PP1)'!$I$276","v":0},"#'T2-B(PP1)'!$I$276"]
["pp1_bl4_9_15_unit",{"$f":"'T2-B(PP1)'!$C$276","v":0},"#'T2-B(PP1)'!$C$276"]
["pp1_bl4_9_15_unit_in",{"$f":"'T2-B(PP1)'!$D$276","v":0},"#'T2-B(PP1)'!$D$276"]
["pp1_bl4_9_15_units_out",{"$f":"'T2-B(PP1)'!$G$276","v":0},"#'T2-B(PP1)'!$G$276"]
["pp1_bl4_9_16_name",{"$f":"'T2-B(PP1)'!$B$277","v":0},"#'T2-B(PP1)'!$B$277"]
["pp1_bl4_9_16_rate_in",{"$f":"'T2-B(PP1)'!$E$277","v":0},"#'T2-B(PP1)'!$E$277"]
["pp1_bl4_9_16_rate_out",{"$f":"'T2-B(PP1)'!$H$277","v":0},"#'T2-B(PP1)'!$H$277"]
["pp1_bl4_9_16_total",{"$f":"'T2-B(PP1)'!$J$277","v":0},"#'T2-B(PP1)'!$J$277"]
["pp1_bl4_9_16_total_in",{"$f":"'T2-B(PP1)'!$F$277","v":0},"#'T2-B(PP1)'!$F$277"]
["pp1_bl4_9_16_total_out",{"$f":"'T2-B(PP1)'!$I$277","v":0},"#'T2-B(PP1)'!$I$277"]
["pp1_bl4_9_16_unit",{"$f":"'T2-B(PP1)'!$C$277","v":0},"#'T2-B(PP1)'!$C$277"]
["pp1_bl4_9_16_unit_in",{"$f":"'T2-B(PP1)'!$D$277","v":0},"#'T2-B(PP1)'!$D$277"]
["pp1_bl4_9_16_units_out",{"$f":"'T2-B(PP1)'!$G$277","v":0},"#'T2-B(PP1)'!$G$277"]
["pp1_bl4_9_17_name",{"$f":"'T2-B(PP1)'!$B$278","v":0},"#'T2-B(PP1)'!$B$278"]
["pp1_bl4_9_17_rate_in",{"$f":"'T2-B(PP1)'!$E$278","v":0},"#'T2-B(PP1)'!$E$278"]
["pp1_bl4_9_17_rate_out",{"$f":"'T2-B(PP1)'!$H$278","v":0},"#'T2-B(PP1)'!$H$278"]
["pp1_bl4_9_17_total",{"$f":"'T2-B(PP1)'!$J$278","v":0},"#'T2-B(PP1)'!$J$278"]
["pp1_bl4_9_17_total_in",{"$f":"'T2-B(PP1)'!$F$278","v":0},"#'T2-B(PP1)'!$F$278"]
["pp1_bl4_9_17_total_out",{"$f":"'T2-B(PP1)'!$I$278","v":0},"#'T2-B(PP1)'!$I$278"]
["pp1_bl4_9_17_unit",{"$f":"'T2-B(PP1)'!$C$278","v":0},"#'T2-B(PP1)'!$C$278"]
["pp1_bl4_9_17_unit_in",{"$f":"'T2-B(PP1)'!$D$278","v":0},"#'T2-B(PP1)'!$D$278"]
["pp1_bl4_9_17_units_out",{"$f":"'T2-B(PP1)'!$G$278","v":0},"#'T2-B(PP1)'!$G$278"]
["pp1_bl4_9_18_name",{"$f":"'T2-B(PP1)'!$B$279","v":0},"#'T2-B(PP1)'!$B$279"]
["pp1_bl4_9_18_rate_in",{"$f":"'T2-B(PP1)'!$E$279","v":0},"#'T2-B(PP1)'!$E$279"]
["pp1_bl4_9_18_rate_out",{"$f":"'T2-B(PP1)'!$H$279","v":0},"#'T2-B(PP1)'!$H$279"]
["pp1_bl4_9_18_total",{"$f":"'T2-B(PP1)'!$J$279","v":0},"#'T2-B(PP1)'!$J$279"]
["pp1_bl4_9_18_total_in",{"$f":"'T2-B(PP1)'!$F$279","v":0},"#'T2-B(PP1)'!$F$279"]
["pp1_bl4_9_18_total_out",{"$f":"'T2-B(PP1)'!$I$279","v":0},"#'T2-B(PP1)'!$I$279"]
["pp1_bl4_9_18_unit",{"$f":"'T2-B(PP1)'!$C$279","v":0},"#'T2-B(PP1)'!$C$279"]
["pp1_bl4_9_18_unit_in",{"$f":"'T2-B(PP1)'!$D$279","v":0},"#'T2-B(PP1)'!$D$279"]
["pp1_bl4_9_18_units_out",{"$f":"'T2-B(PP1)'!$G$279","v":0},"#'T2-B(PP1)'!$G$279"]
["pp1_bl4_9_19_name",{"$f":"'T2-B(PP1)'!$B$280","v":0},"#'T2-B(PP1)'!$B$280"]
["pp1_bl4_9_19_rate_in",{"$f":"'T2-B(PP1)'!$E$280","v":0},"#'T2-B(PP1)'!$E$280"]
["pp1_bl4_9_19_rate_out",{"$f":"'T2-B(PP1)'!$H$280","v":0},"#'T2-B(PP1)'!$H$280"]
["pp1_bl4_9_19_total",{"$f":"'T2-B(PP1)'!$J$280","v":0},"#'T2-B(PP1)'!$J$280"]
["pp1_bl4_9_19_total_in",{"$f":"'T2-B(PP1)'!$F$280","v":0},"#'T2-B(PP1)'!$F$280"]
["pp1_bl4_9_19_total_out",{"$f":"'T2-B(PP1)'!$I$280","v":0},"#'T2-B(PP1)'!$I$280"]
["pp1_bl4_9_19_unit",{"$f":"'T2-B(PP1)'!$C$280","v":0},"#'T2-B(PP1)'!$C$280"]
["pp1_bl4_9_19_unit_in",{"$f":"'T2-B(PP1)'!$D$280","v":0},"#'T2-B(PP1)'!$D$280"]
["pp1_bl4_9_19_units_out",{"$f":"'T2-B(PP1)'!$G$280","v":0},"#'T2-B(PP1)'!$G$280"]
["pp1_bl4_9_2_name",{"$f":"'T2-B(PP1)'!$B$263","v":0},"#'T2-B(PP1)'!$B$263"]
["pp1_bl4_9_2_rate_in",{"$f":"'T2-B(PP1)'!$E$263","v":0},"#'T2-B(PP1)'!$E$263"]
["pp1_bl4_9_2_rate_out",{"$f":"'T2-B(PP1)'!$H$263","v":0},"#'T2-B(PP1)'!$H$263"]
["pp1_bl4_9_2_total",{"$f":"'T2-B(PP1)'!$J$263","v":0},"#'T2-B(PP1)'!$J$263"]
["pp1_bl4_9_2_total_in",{"$f":"'T2-B(PP1)'!$F$263","v":0},"#'T2-B(PP1)'!$F$263"]
["pp1_bl4_9_2_total_out",{"$f":"'T2-B(PP1)'!$I$263","v":0},"#'T2-B(PP1)'!$I$263"]
["pp1_bl4_9_2_unit",{"$f":"'T2-B(PP1)'!$C$263","v":0},"#'T2-B(PP1)'!$C$263"]
["pp1_bl4_9_2_unit_in",{"$f":"'T2-B(PP1)'!$D$263","v":0},"#'T2-B(PP1)'!$D$263"]
["pp1_bl4_9_2_units_out",{"$f":"'T2-B(PP1)'!$G$263","v":0},"#'T2-B(PP1)'!$G$263"]
["pp1_bl4_9_20_name",{"$f":"'T2-B(PP1)'!$B$281","v":0},"#'T2-B(PP1)'!$B$281"]
["pp1_bl4_9_20_rate_in",{"$f":"'T2-B(PP1)'!$E$281","v":0},"#'T2-B(PP1)'!$E$281"]
["pp1_bl4_9_20_rate_out",{"$f":"'T2-B(PP1)'!$H$281","v":0},"#'T2-B(PP1)'!$H$281"]
["pp1_bl4_9_20_total",{"$f":"'T2-B(PP1)'!$J$281","v":0},"#'T2-B(PP1)'!$J$281"]
["pp1_bl4_9_20_total_in",{"$f":"'T2-B(PP1)'!$F$281","v":0},"#'T2-B(PP1)'!$F$281"]
["pp1_bl4_9_20_total_out",{"$f":"'T2-B(PP1)'!$I$281","v":0},"#'T2-B(PP1)'!$I$281"]
["pp1_bl4_9_20_unit",{"$f":"'T2-B(PP1)'!$C$281","v":0},"#'T2-B(PP1)'!$C$281"]
["pp1_bl4_9_20_unit_in",{"$f":"'T2-B(PP1)'!$D$281","v":0},"#'T2-B(PP1)'!$D$281"]
["pp1_bl4_9_20_units_out",{"$f":"'T2-B(PP1)'!$G$281","v":0},"#'T2-B(PP1)'!$G$281"]
["pp1_bl4_9_3_name",{"$f":"'T2-B(PP1)'!$B$264","v":0},"#'T2-B(PP1)'!$B$264"]
["pp1_bl4_9_3_rate_in",{"$f":"'T2-B(PP1)'!$E$264","v":0},"#'T2-B(PP1)'!$E$264"]
["pp1_bl4_9_3_rate_out",{"$f":"'T2-B(PP1)'!$H$264","v":0},"#'T2-B(PP1)'!$H$264"]
["pp1_bl4_9_3_total",{"$f":"'T2-B(PP1)'!$J$264","v":0},"#'T2-B(PP1)'!$J$264"]
["pp1_bl4_9_3_total_in",{"$f":"'T2-B(PP1)'!$F$264","v":0},"#'T2-B(PP1)'!$F$264"]
["pp1_bl4_9_3_total_out",{"$f":"'T2-B(PP1)'!$I$264","v":0},"#'T2-B(PP1)'!$I$264"]
["pp1_bl4_9_3_unit",{"$f":"'T2-B(PP1)'!$C$264","v":0},"#'T2-B(PP1)'!$C$264"]
["pp1_bl4_9_3_unit_in",{"$f":"'T2-B(PP1)'!$D$264","v":0},"#'T2-B(PP1)'!$D$264"]
["pp1_bl4_9_3_units_out",{"$f":"'T2-B(PP1)'!$G$264","v":0},"#'T2-B(PP1)'!$G$264"]
["pp1_bl4_9_4_name",{"$f":"'T2-B(PP1)'!$B$265","v":0},"#'T2-B(PP1)'!$B$265"]
["pp1_bl4_9_4_rate_in",{"$f":"'T2-B(PP1)'!$E$265","v":0},"#'T2-B(PP1)'!$E$265"]
["pp1_bl4_9_4_rate_out",{"$f":"'T2-B(PP1)'!$H$265","v":0},"#'T2-B(PP1)'!$H$265"]
["pp1_bl4_9_4_total",{"$f":"'T2-B(PP1)'!$J$265","v":0},"#'T2-B(PP1)'!$J$265"]
["pp1_bl4_9_4_total_in",{"$f":"'T2-B(PP1)'!$F$265","v":0},"#'T2-B(PP1)'!$F$265"]
["pp1_bl4_9_4_total_out",{"$f":"'T2-B(PP1)'!$I$265","v":0},"#'T2-B(PP1)'!$I$265"]
["pp1_bl4_9_4_unit",{"$f":"'T2-B(PP1)'!$C$265","v":0},"#'T2-B(PP1)'!$C$265"]
["pp1_bl4_9_4_unit_in",{"$f":"'T2-B(PP1)'!$D$265","v":0},"#'T2-B(PP1)'!$D$265"]
["pp1_bl4_9_4_units_out",{"$f":"'T2-B(PP1)'!$G$265","v":0},"#'T2-B(PP1)'!$G$265"]
["pp1_bl4_9_5_name",{"$f":"'T2-B(PP1)'!$B$266","v":0},"#'T2-B(PP1)'!$B$266"]
["pp1_bl4_9_5_rate_in",{"$f":"'T2-B(PP1)'!$E$266","v":0},"#'T2-B(PP1)'!$E$266"]
["pp1_bl4_9_5_rate_out",{"$f":"'T2-B(PP1)'!$H$266","v":0},"#'T2-B(PP1)'!$H$266"]
["pp1_bl4_9_5_total",{"$f":"'T2-B(PP1)'!$J$266","v":0},"#'T2-B(PP1)'!$J$266"]
["pp1_bl4_9_5_total_in",{"$f":"'T2-B(PP1)'!$F$266","v":0},"#'T2-B(PP1)'!$F$266"]
["pp1_bl4_9_5_total_out",{"$f":"'T2-B(PP1)'!$I$266","v":0},"#'T2-B(PP1)'!$I$266"]
["pp1_bl4_9_5_unit",{"$f":"'T2-B(PP1)'!$C$266","v":0},"#'T2-B(PP1)'!$C$266"]
["pp1_bl4_9_5_unit_in",{"$f":"'T2-B(PP1)'!$D$266","v":0},"#'T2-B(PP1)'!$D$266"]
["pp1_bl4_9_5_units_out",{"$f":"'T2-B(PP1)'!$G$266","v":0},"#'T2-B(PP1)'!$G$266"]
["pp1_bl4_9_6_name",{"$f":"'T2-B(PP1)'!$B$267","v":0},"#'T2-B(PP1)'!$B$267"]
["pp1_bl4_9_6_rate_in",{"$f":"'T2-B(PP1)'!$E$267","v":0},"#'T2-B(PP1)'!$E$267"]
["pp1_bl4_9_6_rate_out",{"$f":"'T2-B(PP1)'!$H$267","v":0},"#'T2-B(PP1)'!$H$267"]
["pp1_bl4_9_6_total",{"$f":"'T2-B(PP1)'!$J$267","v":0},"#'T2-B(PP1)'!$J$267"]
["pp1_bl4_9_6_total_in",{"$f":"'T2-B(PP1)'!$F$267","v":0},"#'T2-B(PP1)'!$F$267"]
["pp1_bl4_9_6_total_out",{"$f":"'T2-B(PP1)'!$I$267","v":0},"#'T2-B(PP1)'!$I$267"]
["pp1_bl4_9_6_unit",{"$f":"'T2-B(PP1)'!$C$267","v":0},"#'T2-B(PP1)'!$C$267"]
["pp1_bl4_9_6_unit_in",{"$f":"'T2-B(PP1)'!$D$267","v":0},"#'T2-B(PP1)'!$D$267"]
["pp1_bl4_9_6_units_out",{"$f":"'T2-B(PP1)'!$G$267","v":0},"#'T2-B(PP1)'!$G$267"]
["pp1_bl4_9_7_name",{"$f":"'T2-B(PP1)'!$B$268","v":0},"#'T2-B(PP1)'!$B$268"]
["pp1_bl4_9_7_rate_in",{"$f":"'T2-B(PP1)'!$E$268","v":0},"#'T2-B(PP1)'!$E$268"]
["pp1_bl4_9_7_rate_out",{"$f":"'T2-B(PP1)'!$H$268","v":0},"#'T2-B(PP1)'!$H$268"]
["pp1_bl4_9_7_total",{"$f":"'T2-B(PP1)'!$J$268","v":0},"#'T2-B(PP1)'!$J$268"]
["pp1_bl4_9_7_total_in",{"$f":"'T2-B(PP1)'!$F$268","v":0},"#'T2-B(PP1)'!$F$268"]
["pp1_bl4_9_7_total_out",{"$f":"'T2-B(PP1)'!$I$268","v":0},"#'T2-B(PP1)'!$I$268"]
["pp1_bl4_9_7_unit",{"$f":"'T2-B(PP1)'!$C$268","v":0},"#'T2-B(PP1)'!$C$268"]
["pp1_bl4_9_7_unit_in",{"$f":"'T2-B(PP1)'!$D$268","v":0},"#'T2-B(PP1)'!$D$268"]
["pp1_bl4_9_7_units_out",{"$f":"'T2-B(PP1)'!$G$268","v":0},"#'T2-B(PP1)'!$G$268"]
["pp1_bl4_9_8_name",{"$f":"'T2-B(PP1)'!$B$269","v":0},"#'T2-B(PP1)'!$B$269"]
["pp1_bl4_9_8_rate_in",{"$f":"'T2-B(PP1)'!$E$269","v":0},"#'T2-B(PP1)'!$E$269"]
["pp1_bl4_9_8_rate_out",{"$f":"'T2-B(PP1)'!$H$269","v":0},"#'T2-B(PP1)'!$H$269"]
["pp1_bl4_9_8_total",{"$f":"'T2-B(PP1)'!$J$269","v":0},"#'T2-B(PP1)'!$J$269"]
["pp1_bl4_9_8_total_in",{"$f":"'T2-B(PP1)'!$F$269","v":0},"#'T2-B(PP1)'!$F$269"]
["pp1_bl4_9_8_total_out",{"$f":"'T2-B(PP1)'!$I$269","v":0},"#'T2-B(PP1)'!$I$269"]
["pp1_bl4_9_8_unit",{"$f":"'T2-B(PP1)'!$C$269","v":0},"#'T2-B(PP1)'!$C$269"]
["pp1_bl4_9_8_unit_in",{"$f":"'T2-B(PP1)'!$D$269","v":0},"#'T2-B(PP1)'!$D$269"]
["pp1_bl4_9_8_units_out",{"$f":"'T2-B(PP1)'!$G$269","v":0},"#'T2-B(PP1)'!$G$269"]
["pp1_bl4_9_9_name",{"$f":"'T2-B(PP1)'!$B$270","v":0},"#'T2-B(PP1)'!$B$270"]
["pp1_bl4_9_9_rate_in",{"$f":"'T2-B(PP1)'!$E$270","v":0},"#'T2-B(PP1)'!$E$270"]
["pp1_bl4_9_9_rate_out",{"$f":"'T2-B(PP1)'!$H$270","v":0},"#'T2-B(PP1)'!$H$270"]
["pp1_bl4_9_9_total",{"$f":"'T2-B(PP1)'!$J$270","v":0},"#'T2-B(PP1)'!$J$270"]
["pp1_bl4_9_9_total_in",{"$f":"'T2-B(PP1)'!$F$270","v":0},"#'T2-B(PP1)'!$F$270"]
["pp1_bl4_9_9_total_out",{"$f":"'T2-B(PP1)'!$I$270","v":0},"#'T2-B(PP1)'!$I$270"]
["pp1_bl4_9_9_unit",{"$f":"'T2-B(PP1)'!$C$270","v":0},"#'T2-B(PP1)'!$C$270"]
["pp1_bl4_9_9_unit_in",{"$f":"'T2-B(PP1)'!$D$270","v":0},"#'T2-B(PP1)'!$D$270"]
["pp1_bl4_9_9_units_out",{"$f":"'T2-B(PP1)'!$G$270","v":0},"#'T2-B(PP1)'!$G$270"]
["pp1_bl4_9_total",{"$f":"'T2-B(PP1)'!$J$261","v":0},"#'T2-B(PP1)'!$J$261"]
["pp1_bl4_9_total_in",{"$f":"'T2-B(PP1)'!$F$261","v":0},"#'T2-B(PP1)'!$F$261"]
["pp1_bl4_9_total_out",{"$f":"'T2-B(PP1)'!$I$261","v":0},"#'T2-B(PP1)'!$I$261"]
["pp1_bl4_total",{"$f":"'T2-B(PP1)'!$J$345","v":0},"#'T2-B(PP1)'!$J$345"]
["pp1_bl4_total_in",{"$f":"'T2-B(PP1)'!$F$345","v":0},"#'T2-B(PP1)'!$F$345"]
["pp1_bl4_total_out",{"$f":"'T2-B(PP1)'!$I$345","v":0},"#'T2-B(PP1)'!$I$345"]
["pp1_bl5_1_1_name",{"$f":"'T2-B(PP1)'!$B$350","v":0},"#'T2-B(PP1)'!$B$350"]
["pp1_bl5_1_1_rate_in",{"$f":"'T2-B(PP1)'!$E$350","v":0},"#'T2-B(PP1)'!$E$350"]
["pp1_bl5_1_1_rate_out",{"$f":"'T2-B(PP1)'!$H$350","v":0},"#'T2-B(PP1)'!$H$350"]
["pp1_bl5_1_1_total",{"$f":"'T2-B(PP1)'!$J$350","v":0},"#'T2-B(PP1)'!$J$350"]
["pp1_bl5_1_1_total_in",{"$f":"'T2-B(PP1)'!$F$350","v":0},"#'T2-B(PP1)'!$F$350"]
["pp1_bl5_1_1_total_out",{"$f":"'T2-B(PP1)'!$I$350","v":0},"#'T2-B(PP1)'!$I$350"]
["pp1_bl5_1_1_unit",{"$f":"'T2-B(PP1)'!$C$350","v":0},"#'T2-B(PP1)'!$C$350"]
["pp1_bl5_1_1_unit_in",{"$f":"'T2-B(PP1)'!$D$350","v":0},"#'T2-B(PP1)'!$D$350"]
["pp1_bl5_1_1_units_out",{"$f":"'T2-B(PP1)'!$G$350","v":0},"#'T2-B(PP1)'!$G$350"]
["pp1_bl5_1_10_name",{"$f":"'T2-B(PP1)'!$B$359","v":0},"#'T2-B(PP1)'!$B$359"]
["pp1_bl5_1_10_rate_in",{"$f":"'T2-B(PP1)'!$E$359","v":0},"#'T2-B(PP1)'!$E$359"]
["pp1_bl5_1_10_rate_out",{"$f":"'T2-B(PP1)'!$H$359","v":0},"#'T2-B(PP1)'!$H$359"]
["pp1_bl5_1_10_total",{"$f":"'T2-B(PP1)'!$J$359","v":0},"#'T2-B(PP1)'!$J$359"]
["pp1_bl5_1_10_total_in",{"$f":"'T2-B(PP1)'!$F$359","v":0},"#'T2-B(PP1)'!$F$359"]
["pp1_bl5_1_10_total_out",{"$f":"'T2-B(PP1)'!$I$359","v":0},"#'T2-B(PP1)'!$I$359"]
["pp1_bl5_1_10_unit",{"$f":"'T2-B(PP1)'!$C$359","v":0},"#'T2-B(PP1)'!$C$359"]
["pp1_bl5_1_10_unit_in",{"$f":"'T2-B(PP1)'!$D$359","v":0},"#'T2-B(PP1)'!$D$359"]
["pp1_bl5_1_10_units_out",{"$f":"'T2-B(PP1)'!$G$359","v":0},"#'T2-B(PP1)'!$G$359"]
["pp1_bl5_1_11_name",{"$f":"'T2-B(PP1)'!$B$360","v":0},"#'T2-B(PP1)'!$B$360"]
["pp1_bl5_1_11_rate_in",{"$f":"'T2-B(PP1)'!$E$360","v":0},"#'T2-B(PP1)'!$E$360"]
["pp1_bl5_1_11_rate_out",{"$f":"'T2-B(PP1)'!$H$360","v":0},"#'T2-B(PP1)'!$H$360"]
["pp1_bl5_1_11_total",{"$f":"'T2-B(PP1)'!$J$360","v":0},"#'T2-B(PP1)'!$J$360"]
["pp1_bl5_1_11_total_in",{"$f":"'T2-B(PP1)'!$F$360","v":0},"#'T2-B(PP1)'!$F$360"]
["pp1_bl5_1_11_total_out",{"$f":"'T2-B(PP1)'!$I$360","v":0},"#'T2-B(PP1)'!$I$360"]
["pp1_bl5_1_11_unit",{"$f":"'T2-B(PP1)'!$C$360","v":0},"#'T2-B(PP1)'!$C$360"]
["pp1_bl5_1_11_unit_in",{"$f":"'T2-B(PP1)'!$D$360","v":0},"#'T2-B(PP1)'!$D$360"]
["pp1_bl5_1_11_units_out",{"$f":"'T2-B(PP1)'!$G$360","v":0},"#'T2-B(PP1)'!$G$360"]
["pp1_bl5_1_12_name",{"$f":"'T2-B(PP1)'!$B$361","v":0},"#'T2-B(PP1)'!$B$361"]
["pp1_bl5_1_12_rate_in",{"$f":"'T2-B(PP1)'!$E$361","v":0},"#'T2-B(PP1)'!$E$361"]
["pp1_bl5_1_12_rate_out",{"$f":"'T2-B(PP1)'!$H$361","v":0},"#'T2-B(PP1)'!$H$361"]
["pp1_bl5_1_12_total",{"$f":"'T2-B(PP1)'!$J$361","v":0},"#'T2-B(PP1)'!$J$361"]
["pp1_bl5_1_12_total_in",{"$f":"'T2-B(PP1)'!$F$361","v":0},"#'T2-B(PP1)'!$F$361"]
["pp1_bl5_1_12_total_out",{"$f":"'T2-B(PP1)'!$I$361","v":0},"#'T2-B(PP1)'!$I$361"]
["pp1_bl5_1_12_unit",{"$f":"'T2-B(PP1)'!$C$361","v":0},"#'T2-B(PP1)'!$C$361"]
["pp1_bl5_1_12_unit_in",{"$f":"'T2-B(PP1)'!$D$361","v":0},"#'T2-B(PP1)'!$D$361"]
["pp1_bl5_1_12_units_out",{"$f":"'T2-B(PP1)'!$G$361","v":0},"#'T2-B(PP1)'!$G$361"]
["pp1_bl5_1_13_name",{"$f":"'T2-B(PP1)'!$B$362","v":0},"#'T2-B(PP1)'!$B$362"]
["pp1_bl5_1_13_rate_in",{"$f":"'T2-B(PP1)'!$E$362","v":0},"#'T2-B(PP1)'!$E$362"]
["pp1_bl5_1_13_rate_out",{"$f":"'T2-B(PP1)'!$H$362","v":0},"#'T2-B(PP1)'!$H$362"]
["pp1_bl5_1_13_total",{"$f":"'T2-B(PP1)'!$J$362","v":0},"#'T2-B(PP1)'!$J$362"]
["pp1_bl5_1_13_total_in",{"$f":"'T2-B(PP1)'!$F$362","v":0},"#'T2-B(PP1)'!$F$362"]
["pp1_bl5_1_13_total_out",{"$f":"'T2-B(PP1)'!$I$362","v":0},"#'T2-B(PP1)'!$I$362"]
["pp1_bl5_1_13_unit",{"$f":"'T2-B(PP1)'!$C$362","v":0},"#'T2-B(PP1)'!$C$362"]
["pp1_bl5_1_13_unit_in",{"$f":"'T2-B(PP1)'!$D$362","v":0},"#'T2-B(PP1)'!$D$362"]
["pp1_bl5_1_13_units_out",{"$f":"'T2-B(PP1)'!$G$362","v":0},"#'T2-B(PP1)'!$G$362"]
["pp1_bl5_1_14_name",{"$f":"'T2-B(PP1)'!$B$363","v":0},"#'T2-B(PP1)'!$B$363"]
["pp1_bl5_1_14_rate_in",{"$f":"'T2-B(PP1)'!$E$363","v":0},"#'T2-B(PP1)'!$E$363"]
["pp1_bl5_1_14_rate_out",{"$f":"'T2-B(PP1)'!$H$363","v":0},"#'T2-B(PP1)'!$H$363"]
["pp1_bl5_1_14_total",{"$f":"'T2-B(PP1)'!$J$363","v":0},"#'T2-B(PP1)'!$J$363"]
["pp1_bl5_1_14_total_in",{"$f":"'T2-B(PP1)'!$F$363","v":0},"#'T2-B(PP1)'!$F$363"]
["pp1_bl5_1_14_total_out",{"$f":"'T2-B(PP1)'!$I$363","v":0},"#'T2-B(PP1)'!$I$363"]
["pp1_bl5_1_14_unit",{"$f":"'T2-B(PP1)'!$C$363","v":0},"#'T2-B(PP1)'!$C$363"]
["pp1_bl5_1_14_unit_in",{"$f":"'T2-B(PP1)'!$D$363","v":0},"#'T2-B(PP1)'!$D$363"]
["pp1_bl5_1_14_units_out",{"$f":"'T2-B(PP1)'!$G$363","v":0},"#'T2-B(PP1)'!$G$363"]
["pp1_bl5_1_15_name",{"$f":"'T2-B(PP1)'!$B$364","v":0},"#'T2-B(PP1)'!$B$364"]
["pp1_bl5_1_15_rate_in",{"$f":"'T2-B(PP1)'!$E$364","v":0},"#'T2-B(PP1)'!$E$364"]
["pp1_bl5_1_15_rate_out",{"$f":"'T2-B(PP1)'!$H$364","v":0},"#'T2-B(PP1)'!$H$364"]
["pp1_bl5_1_15_total",{"$f":"'T2-B(PP1)'!$J$364","v":0},"#'T2-B(PP1)'!$J$364"]
["pp1_bl5_1_15_total_in",{"$f":"'T2-B(PP1)'!$F$364","v":0},"#'T2-B(PP1)'!$F$364"]
["pp1_bl5_1_15_total_out",{"$f":"'T2-B(PP1)'!$I$364","v":0},"#'T2-B(PP1)'!$I$364"]
["pp1_bl5_1_15_unit",{"$f":"'T2-B(PP1)'!$C$364","v":0},"#'T2-B(PP1)'!$C$364"]
["pp1_bl5_1_15_unit_in",{"$f":"'T2-B(PP1)'!$D$364","v":0},"#'T2-B(PP1)'!$D$364"]
["pp1_bl5_1_15_units_out",{"$f":"'T2-B(PP1)'!$G$364","v":0},"#'T2-B(PP1)'!$G$364"]
["pp1_bl5_1_16_name",{"$f":"'T2-B(PP1)'!$B$365","v":0},"#'T2-B(PP1)'!$B$365"]
["pp1_bl5_1_16_rate_in",{"$f":"'T2-B(PP1)'!$E$365","v":0},"#'T2-B(PP1)'!$E$365"]
["pp1_bl5_1_16_rate_out",{"$f":"'T2-B(PP1)'!$H$365","v":0},"#'T2-B(PP1)'!$H$365"]
["pp1_bl5_1_16_total",{"$f":"'T2-B(PP1)'!$J$365","v":0},"#'T2-B(PP1)'!$J$365"]
["pp1_bl5_1_16_total_in",{"$f":"'T2-B(PP1)'!$F$365","v":0},"#'T2-B(PP1)'!$F$365"]
["pp1_bl5_1_16_total_out",{"$f":"'T2-B(PP1)'!$I$365","v":0},"#'T2-B(PP1)'!$I$365"]
["pp1_bl5_1_16_unit",{"$f":"'T2-B(PP1)'!$C$365","v":0},"#'T2-B(PP1)'!$C$365"]
["pp1_bl5_1_16_unit_in",{"$f":"'T2-B(PP1)'!$D$365","v":0},"#'T2-B(PP1)'!$D$365"]
["pp1_bl5_1_16_units_out",{"$f":"'T2-B(PP1)'!$G$365","v":0},"#'T2-B(PP1)'!$G$365"]
["pp1_bl5_1_17_name",{"$f":"'T2-B(PP1)'!$B$366","v":0},"#'T2-B(PP1)'!$B$366"]
["pp1_bl5_1_17_rate_in",{"$f":"'T2-B(PP1)'!$E$366","v":0},"#'T2-B(PP1)'!$E$366"]
["pp1_bl5_1_17_rate_out",{"$f":"'T2-B(PP1)'!$H$366","v":0},"#'T2-B(PP1)'!$H$366"]
["pp1_bl5_1_17_total",{"$f":"'T2-B(PP1)'!$J$366","v":0},"#'T2-B(PP1)'!$J$366"]
["pp1_bl5_1_17_total_in",{"$f":"'T2-B(PP1)'!$F$366","v":0},"#'T2-B(PP1)'!$F$366"]
["pp1_bl5_1_17_total_out",{"$f":"'T2-B(PP1)'!$I$366","v":0},"#'T2-B(PP1)'!$I$366"]
["pp1_bl5_1_17_unit",{"$f":"'T2-B(PP1)'!$C$366","v":0},"#'T2-B(PP1)'!$C$366"]
["pp1_bl5_1_17_unit_in",{"$f":"'T2-B(PP1)'!$D$366","v":0},"#'T2-B(PP1)'!$D$366"]
["pp1_bl5_1_17_units_out",{"$f":"'T2-B(PP1)'!$G$366","v":0},"#'T2-B(PP1)'!$G$366"]
["pp1_bl5_1_18_name",{"$f":"'T2-B(PP1)'!$B$367","v":0},"#'T2-B(PP1)'!$B$367"]
["pp1_bl5_1_18_rate_in",{"$f":"'T2-B(PP1)'!$E$367","v":0},"#'T2-B(PP1)'!$E$367"]
["pp1_bl5_1_18_rate_out",{"$f":"'T2-B(PP1)'!$H$367","v":0},"#'T2-B(PP1)'!$H$367"]
["pp1_bl5_1_18_total",{"$f":"'T2-B(PP1)'!$J$367","v":0},"#'T2-B(PP1)'!$J$367"]
["pp1_bl5_1_18_total_in",{"$f":"'T2-B(PP1)'!$F$367","v":0},"#'T2-B(PP1)'!$F$367"]
["pp1_bl5_1_18_total_out",{"$f":"'T2-B(PP1)'!$I$367","v":0},"#'T2-B(PP1)'!$I$367"]
["pp1_bl5_1_18_unit",{"$f":"'T2-B(PP1)'!$C$367","v":0},"#'T2-B(PP1)'!$C$367"]
["pp1_bl5_1_18_unit_in",{"$f":"'T2-B(PP1)'!$D$367","v":0},"#'T2-B(PP1)'!$D$367"]
["pp1_bl5_1_18_units_out",{"$f":"'T2-B(PP1)'!$G$367","v":0},"#'T2-B(PP1)'!$G$367"]
["pp1_bl5_1_19_name",{"$f":"'T2-B(PP1)'!$B$368","v":0},"#'T2-B(PP1)'!$B$368"]
["pp1_bl5_1_19_rate_in",{"$f":"'T2-B(PP1)'!$E$368","v":0},"#'T2-B(PP1)'!$E$368"]
["pp1_bl5_1_19_rate_out",{"$f":"'T2-B(PP1)'!$H$368","v":0},"#'T2-B(PP1)'!$H$368"]
["pp1_bl5_1_19_total",{"$f":"'T2-B(PP1)'!$J$368","v":0},"#'T2-B(PP1)'!$J$368"]
["pp1_bl5_1_19_total_in",{"$f":"'T2-B(PP1)'!$F$368","v":0},"#'T2-B(PP1)'!$F$368"]
["pp1_bl5_1_19_total_out",{"$f":"'T2-B(PP1)'!$I$368","v":0},"#'T2-B(PP1)'!$I$368"]
["pp1_bl5_1_19_unit",{"$f":"'T2-B(PP1)'!$C$368","v":0},"#'T2-B(PP1)'!$C$368"]
["pp1_bl5_1_19_unit_in",{"$f":"'T2-B(PP1)'!$D$368","v":0},"#'T2-B(PP1)'!$D$368"]
["pp1_bl5_1_19_units_out",{"$f":"'T2-B(PP1)'!$G$368","v":0},"#'T2-B(PP1)'!$G$368"]
["pp1_bl5_1_2_name",{"$f":"'T2-B(PP1)'!$B$351","v":0},"#'T2-B(PP1)'!$B$351"]
["pp1_bl5_1_2_rate_in",{"$f":"'T2-B(PP1)'!$E$351","v":0},"#'T2-B(PP1)'!$E$351"]
["pp1_bl5_1_2_rate_out",{"$f":"'T2-B(PP1)'!$H$351","v":0},"#'T2-B(PP1)'!$H$351"]
["pp1_bl5_1_2_total",{"$f":"'T2-B(PP1)'!$J$351","v":0},"#'T2-B(PP1)'!$J$351"]
["pp1_bl5_1_2_total_in",{"$f":"'T2-B(PP1)'!$F$351","v":0},"#'T2-B(PP1)'!$F$351"]
["pp1_bl5_1_2_total_out",{"$f":"'T2-B(PP1)'!$I$351","v":0},"#'T2-B(PP1)'!$I$351"]
["pp1_bl5_1_2_unit",{"$f":"'T2-B(PP1)'!$C$351","v":0},"#'T2-B(PP1)'!$C$351"]
["pp1_bl5_1_2_unit_in",{"$f":"'T2-B(PP1)'!$D$351","v":0},"#'T2-B(PP1)'!$D$351"]
["pp1_bl5_1_2_units_out",{"$f":"'T2-B(PP1)'!$G$351","v":0},"#'T2-B(PP1)'!$G$351"]
["pp1_bl5_1_20_name",{"$f":"'T2-B(PP1)'!$B$369","v":0},"#'T2-B(PP1)'!$B$369"]
["pp1_bl5_1_20_rate_in",{"$f":"'T2-B(PP1)'!$E$369","v":0},"#'T2-B(PP1)'!$E$369"]
["pp1_bl5_1_20_rate_out",{"$f":"'T2-B(PP1)'!$H$369","v":0},"#'T2-B(PP1)'!$H$369"]
["pp1_bl5_1_20_total",{"$f":"'T2-B(PP1)'!$J$369","v":0},"#'T2-B(PP1)'!$J$369"]
["pp1_bl5_1_20_total_in",{"$f":"'T2-B(PP1)'!$F$369","v":0},"#'T2-B(PP1)'!$F$369"]
["pp1_bl5_1_20_total_out",{"$f":"'T2-B(PP1)'!$I$369","v":0},"#'T2-B(PP1)'!$I$369"]
["pp1_bl5_1_20_unit",{"$f":"'T2-B(PP1)'!$C$369","v":0},"#'T2-B(PP1)'!$C$369"]
["pp1_bl5_1_20_unit_in",{"$f":"'T2-B(PP1)'!$D$369","v":0},"#'T2-B(PP1)'!$D$369"]
["pp1_bl5_1_20_units_out",{"$f":"'T2-B(PP1)'!$G$369","v":0},"#'T2-B(PP1)'!$G$369"]
["pp1_bl5_1_3_name",{"$f":"'T2-B(PP1)'!$B$352","v":0},"#'T2-B(PP1)'!$B$352"]
["pp1_bl5_1_3_rate_in",{"$f":"'T2-B(PP1)'!$E$352","v":0},"#'T2-B(PP1)'!$E$352"]
["pp1_bl5_1_3_rate_out",{"$f":"'T2-B(PP1)'!$H$352","v":0},"#'T2-B(PP1)'!$H$352"]
["pp1_bl5_1_3_total",{"$f":"'T2-B(PP1)'!$J$352","v":0},"#'T2-B(PP1)'!$J$352"]
["pp1_bl5_1_3_total_in",{"$f":"'T2-B(PP1)'!$F$352","v":0},"#'T2-B(PP1)'!$F$352"]
["pp1_bl5_1_3_total_out",{"$f":"'T2-B(PP1)'!$I$352","v":0},"#'T2-B(PP1)'!$I$352"]
["pp1_bl5_1_3_unit",{"$f":"'T2-B(PP1)'!$C$352","v":0},"#'T2-B(PP1)'!$C$352"]
["pp1_bl5_1_3_unit_in",{"$f":"'T2-B(PP1)'!$D$352","v":0},"#'T2-B(PP1)'!$D$352"]
["pp1_bl5_1_3_units_out",{"$f":"'T2-B(PP1)'!$G$352","v":0},"#'T2-B(PP1)'!$G$352"]
["pp1_bl5_1_4_name",{"$f":"'T2-B(PP1)'!$B$353","v":0},"#'T2-B(PP1)'!$B$353"]
["pp1_bl5_1_4_rate_in",{"$f":"'T2-B(PP1)'!$E$353","v":0},"#'T2-B(PP1)'!$E$353"]
["pp1_bl5_1_4_rate_out",{"$f":"'T2-B(PP1)'!$H$353","v":0},"#'T2-B(PP1)'!$H$353"]
["pp1_bl5_1_4_total",{"$f":"'T2-B(PP1)'!$J$353","v":0},"#'T2-B(PP1)'!$J$353"]
["pp1_bl5_1_4_total_in",{"$f":"'T2-B(PP1)'!$F$353","v":0},"#'T2-B(PP1)'!$F$353"]
["pp1_bl5_1_4_total_out",{"$f":"'T2-B(PP1)'!$I$353","v":0},"#'T2-B(PP1)'!$I$353"]
["pp1_bl5_1_4_unit",{"$f":"'T2-B(PP1)'!$C$353","v":0},"#'T2-B(PP1)'!$C$353"]
["pp1_bl5_1_4_unit_in",{"$f":"'T2-B(PP1)'!$D$353","v":0},"#'T2-B(PP1)'!$D$353"]
["pp1_bl5_1_4_units_out",{"$f":"'T2-B(PP1)'!$G$353","v":0},"#'T2-B(PP1)'!$G$353"]
["pp1_bl5_1_5_name",{"$f":"'T2-B(PP1)'!$B$354","v":0},"#'T2-B(PP1)'!$B$354"]
["pp1_bl5_1_5_rate_in",{"$f":"'T2-B(PP1)'!$E$354","v":0},"#'T2-B(PP1)'!$E$354"]
["pp1_bl5_1_5_rate_out",{"$f":"'T2-B(PP1)'!$H$354","v":0},"#'T2-B(PP1)'!$H$354"]
["pp1_bl5_1_5_total",{"$f":"'T2-B(PP1)'!$J$354","v":0},"#'T2-B(PP1)'!$J$354"]
["pp1_bl5_1_5_total_in",{"$f":"'T2-B(PP1)'!$F$354","v":0},"#'T2-B(PP1)'!$F$354"]
["pp1_bl5_1_5_total_out",{"$f":"'T2-B(PP1)'!$I$354","v":0},"#'T2-B(PP1)'!$I$354"]
["pp1_bl5_1_5_unit",{"$f":"'T2-B(PP1)'!$C$354","v":0},"#'T2-B(PP1)'!$C$354"]
["pp1_bl5_1_5_unit_in",{"$f":"'T2-B(PP1)'!$D$354","v":0},"#'T2-B(PP1)'!$D$354"]
["pp1_bl5_1_5_units_out",{"$f":"'T2-B(PP1)'!$G$354","v":0},"#'T2-B(PP1)'!$G$354"]
["pp1_bl5_1_6_name",{"$f":"'T2-B(PP1)'!$B$355","v":0},"#'T2-B(PP1)'!$B$355"]
["pp1_bl5_1_6_rate_in",{"$f":"'T2-B(PP1)'!$E$355","v":0},"#'T2-B(PP1)'!$E$355"]
["pp1_bl5_1_6_rate_out",{"$f":"'T2-B(PP1)'!$H$355","v":0},"#'T2-B(PP1)'!$H$355"]
["pp1_bl5_1_6_total",{"$f":"'T2-B(PP1)'!$J$355","v":0},"#'T2-B(PP1)'!$J$355"]
["pp1_bl5_1_6_total_in",{"$f":"'T2-B(PP1)'!$F$355","v":0},"#'T2-B(PP1)'!$F$355"]
["pp1_bl5_1_6_total_out",{"$f":"'T2-B(PP1)'!$I$355","v":0},"#'T2-B(PP1)'!$I$355"]
["pp1_bl5_1_6_unit",{"$f":"'T2-B(PP1)'!$C$355","v":0},"#'T2-B(PP1)'!$C$355"]
["pp1_bl5_1_6_unit_in",{"$f":"'T2-B(PP1)'!$D$355","v":0},"#'T2-B(PP1)'!$D$355"]
["pp1_bl5_1_6_units_out",{"$f":"'T2-B(PP1)'!$G$355","v":0},"#'T2-B(PP1)'!$G$355"]
["pp1_bl5_1_7_name",{"$f":"'T2-B(PP1)'!$B$356","v":0},"#'T2-B(PP1)'!$B$356"]
["pp1_bl5_1_7_rate_in",{"$f":"'T2-B(PP1)'!$E$356","v":0},"#'T2-B(PP1)'!$E$356"]
["pp1_bl5_1_7_rate_out",{"$f":"'T2-B(PP1)'!$H$356","v":0},"#'T2-B(PP1)'!$H$356"]
["pp1_bl5_1_7_total",{"$f":"'T2-B(PP1)'!$J$356","v":0},"#'T2-B(PP1)'!$J$356"]
["pp1_bl5_1_7_total_in",{"$f":"'T2-B(PP1)'!$F$356","v":0},"#'T2-B(PP1)'!$F$356"]
["pp1_bl5_1_7_total_out",{"$f":"'T2-B(PP1)'!$I$356","v":0},"#'T2-B(PP1)'!$I$356"]
["pp1_bl5_1_7_unit",{"$f":"'T2-B(PP1)'!$C$356","v":0},"#'T2-B(PP1)'!$C$356"]
["pp1_bl5_1_7_unit_in",{"$f":"'T2-B(PP1)'!$D$356","v":0},"#'T2-B(PP1)'!$D$356"]
["pp1_bl5_1_7_units_out",{"$f":"'T2-B(PP1)'!$G$356","v":0},"#'T2-B(PP1)'!$G$356"]
["pp1_bl5_1_8_name",{"$f":"'T2-B(PP1)'!$B$357","v":0},"#'T2-B(PP1)'!$B$357"]
["pp1_bl5_1_8_rate_in",{"$f":"'T2-B(PP1)'!$E$357","v":0},"#'T2-B(PP1)'!$E$357"]
["pp1_bl5_1_8_rate_out",{"$f":"'T2-B(PP1)'!$H$357","v":0},"#'T2-B(PP1)'!$H$357"]
["pp1_bl5_1_8_total",{"$f":"'T2-B(PP1)'!$J$357","v":0},"#'T2-B(PP1)'!$J$357"]
["pp1_bl5_1_8_total_in",{"$f":"'T2-B(PP1)'!$F$357","v":0},"#'T2-B(PP1)'!$F$357"]
["pp1_bl5_1_8_total_out",{"$f":"'T2-B(PP1)'!$I$357","v":0},"#'T2-B(PP1)'!$I$357"]
["pp1_bl5_1_8_unit",{"$f":"'T2-B(PP1)'!$C$357","v":0},"#'T2-B(PP1)'!$C$357"]
["pp1_bl5_1_8_unit_in",{"$f":"'T2-B(PP1)'!$D$357","v":0},"#'T2-B(PP1)'!$D$357"]
["pp1_bl5_1_8_units_out",{"$f":"'T2-B(PP1)'!$G$357","v":0},"#'T2-B(PP1)'!$G$357"]
["pp1_bl5_1_9_name",{"$f":"'T2-B(PP1)'!$B$358","v":0},"#'T2-B(PP1)'!$B$358"]
["pp1_bl5_1_9_rate_in",{"$f":"'T2-B(PP1)'!$E$358","v":0},"#'T2-B(PP1)'!$E$358"]
["pp1_bl5_1_9_rate_out",{"$f":"'T2-B(PP1)'!$H$358","v":0},"#'T2-B(PP1)'!$H$358"]
["pp1_bl5_1_9_total",{"$f":"'T2-B(PP1)'!$J$358","v":0},"#'T2-B(PP1)'!$J$358"]
["pp1_bl5_1_9_total_in",{"$f":"'T2-B(PP1)'!$F$358","v":0},"#'T2-B(PP1)'!$F$358"]
["pp1_bl5_1_9_total_out",{"$f":"'T2-B(PP1)'!$I$358","v":0},"#'T2-B(PP1)'!$I$358"]
["pp1_bl5_1_9_unit",{"$f":"'T2-B(PP1)'!$C$358","v":0},"#'T2-B(PP1)'!$C$358"]
["pp1_bl5_1_9_unit_in",{"$f":"'T2-B(PP1)'!$D$358","v":0},"#'T2-B(PP1)'!$D$358"]
["pp1_bl5_1_9_units_out",{"$f":"'T2-B(PP1)'!$G$358","v":0},"#'T2-B(PP1)'!$G$358"]
["pp1_bl5_1_total",{"$f":"'T2-B(PP1)'!$J$349","v":0},"#'T2-B(PP1)'!$J$349"]
["pp1_bl5_1_total_in",{"$f":"'T2-B(PP1)'!$F$349","v":0},"#'T2-B(PP1)'!$F$349"]
["pp1_bl5_1_total_out",{"$f":"'T2-B(PP1)'!$I$349","v":0},"#'T2-B(PP1)'!$I$349"]
["pp1_bl5_2_1_name",{"$f":"'T2-B(PP1)'!$B$371","v":0},"#'T2-B(PP1)'!$B$371"]
["pp1_bl5_2_1_rate_in",{"$f":"'T2-B(PP1)'!$E$371","v":0},"#'T2-B(PP1)'!$E$371"]
["pp1_bl5_2_1_rate_out",{"$f":"'T2-B(PP1)'!$H$371","v":0},"#'T2-B(PP1)'!$H$371"]
["pp1_bl5_2_1_total",{"$f":"'T2-B(PP1)'!$J$371","v":0},"#'T2-B(PP1)'!$J$371"]
["pp1_bl5_2_1_total_in",{"$f":"'T2-B(PP1)'!$F$371","v":0},"#'T2-B(PP1)'!$F$371"]
["pp1_bl5_2_1_total_out",{"$f":"'T2-B(PP1)'!$I$371","v":0},"#'T2-B(PP1)'!$I$371"]
["pp1_bl5_2_1_unit",{"$f":"'T2-B(PP1)'!$C$371","v":0},"#'T2-B(PP1)'!$C$371"]
["pp1_bl5_2_1_unit_in",{"$f":"'T2-B(PP1)'!$D$371","v":0},"#'T2-B(PP1)'!$D$371"]
["pp1_bl5_2_1_units_out",{"$f":"'T2-B(PP1)'!$G$371","v":0},"#'T2-B(PP1)'!$G$371"]
["pp1_bl5_2_10_name",{"$f":"'T2-B(PP1)'!$B$380","v":0},"#'T2-B(PP1)'!$B$380"]
["pp1_bl5_2_10_rate_in",{"$f":"'T2-B(PP1)'!$E$380","v":0},"#'T2-B(PP1)'!$E$380"]
["pp1_bl5_2_10_rate_out",{"$f":"'T2-B(PP1)'!$H$380","v":0},"#'T2-B(PP1)'!$H$380"]
["pp1_bl5_2_10_total",{"$f":"'T2-B(PP1)'!$J$380","v":0},"#'T2-B(PP1)'!$J$380"]
["pp1_bl5_2_10_total_in",{"$f":"'T2-B(PP1)'!$F$380","v":0},"#'T2-B(PP1)'!$F$380"]
["pp1_bl5_2_10_total_out",{"$f":"'T2-B(PP1)'!$I$380","v":0},"#'T2-B(PP1)'!$I$380"]
["pp1_bl5_2_10_unit",{"$f":"'T2-B(PP1)'!$C$380","v":0},"#'T2-B(PP1)'!$C$380"]
["pp1_bl5_2_10_unit_in",{"$f":"'T2-B(PP1)'!$D$380","v":0},"#'T2-B(PP1)'!$D$380"]
["pp1_bl5_2_10_units_out",{"$f":"'T2-B(PP1)'!$G$380","v":0},"#'T2-B(PP1)'!$G$380"]
["pp1_bl5_2_11_name",{"$f":"'T2-B(PP1)'!$B$381","v":0},"#'T2-B(PP1)'!$B$381"]
["pp1_bl5_2_11_rate_in",{"$f":"'T2-B(PP1)'!$E$381","v":0},"#'T2-B(PP1)'!$E$381"]
["pp1_bl5_2_11_rate_out",{"$f":"'T2-B(PP1)'!$H$381","v":0},"#'T2-B(PP1)'!$H$381"]
["pp1_bl5_2_11_total",{"$f":"'T2-B(PP1)'!$J$381","v":0},"#'T2-B(PP1)'!$J$381"]
["pp1_bl5_2_11_total_in",{"$f":"'T2-B(PP1)'!$F$381","v":0},"#'T2-B(PP1)'!$F$381"]
["pp1_bl5_2_11_total_out",{"$f":"'T2-B(PP1)'!$I$381","v":0},"#'T2-B(PP1)'!$I$381"]
["pp1_bl5_2_11_unit",{"$f":"'T2-B(PP1)'!$C$381","v":0},"#'T2-B(PP1)'!$C$381"]
["pp1_bl5_2_11_unit_in",{"$f":"'T2-B(PP1)'!$D$381","v":0},"#'T2-B(PP1)'!$D$381"]
["pp1_bl5_2_11_units_out",{"$f":"'T2-B(PP1)'!$G$381","v":0},"#'T2-B(PP1)'!$G$381"]
["pp1_bl5_2_12_name",{"$f":"'T2-B(PP1)'!$B$382","v":0},"#'T2-B(PP1)'!$B$382"]
["pp1_bl5_2_12_rate_in",{"$f":"'T2-B(PP1)'!$E$382","v":0},"#'T2-B(PP1)'!$E$382"]
["pp1_bl5_2_12_rate_out",{"$f":"'T2-B(PP1)'!$H$382","v":0},"#'T2-B(PP1)'!$H$382"]
["pp1_bl5_2_12_total",{"$f":"'T2-B(PP1)'!$J$382","v":0},"#'T2-B(PP1)'!$J$382"]
["pp1_bl5_2_12_total_in",{"$f":"'T2-B(PP1)'!$F$382","v":0},"#'T2-B(PP1)'!$F$382"]
["pp1_bl5_2_12_total_out",{"$f":"'T2-B(PP1)'!$I$382","v":0},"#'T2-B(PP1)'!$I$382"]
["pp1_bl5_2_12_unit",{"$f":"'T2-B(PP1)'!$C$382","v":0},"#'T2-B(PP1)'!$C$382"]
["pp1_bl5_2_12_unit_in",{"$f":"'T2-B(PP1)'!$D$382","v":0},"#'T2-B(PP1)'!$D$382"]
["pp1_bl5_2_12_units_out",{"$f":"'T2-B(PP1)'!$G$382","v":0},"#'T2-B(PP1)'!$G$382"]
["pp1_bl5_2_13_name",{"$f":"'T2-B(PP1)'!$B$383","v":0},"#'T2-B(PP1)'!$B$383"]
["pp1_bl5_2_13_rate_in",{"$f":"'T2-B(PP1)'!$E$383","v":0},"#'T2-B(PP1)'!$E$383"]
["pp1_bl5_2_13_rate_out",{"$f":"'T2-B(PP1)'!$H$383","v":0},"#'T2-B(PP1)'!$H$383"]
["pp1_bl5_2_13_total",{"$f":"'T2-B(PP1)'!$J$383","v":0},"#'T2-B(PP1)'!$J$383"]
["pp1_bl5_2_13_total_in",{"$f":"'T2-B(PP1)'!$F$383","v":0},"#'T2-B(PP1)'!$F$383"]
["pp1_bl5_2_13_total_out",{"$f":"'T2-B(PP1)'!$I$383","v":0},"#'T2-B(PP1)'!$I$383"]
["pp1_bl5_2_13_unit",{"$f":"'T2-B(PP1)'!$C$383","v":0},"#'T2-B(PP1)'!$C$383"]
["pp1_bl5_2_13_unit_in",{"$f":"'T2-B(PP1)'!$D$383","v":0},"#'T2-B(PP1)'!$D$383"]
["pp1_bl5_2_13_units_out",{"$f":"'T2-B(PP1)'!$G$383","v":0},"#'T2-B(PP1)'!$G$383"]
["pp1_bl5_2_14_name",{"$f":"'T2-B(PP1)'!$B$384","v":0},"#'T2-B(PP1)'!$B$384"]
["pp1_bl5_2_14_rate_in",{"$f":"'T2-B(PP1)'!$E$384","v":0},"#'T2-B(PP1)'!$E$384"]
["pp1_bl5_2_14_rate_out",{"$f":"'T2-B(PP1)'!$H$384","v":0},"#'T2-B(PP1)'!$H$384"]
["pp1_bl5_2_14_total",{"$f":"'T2-B(PP1)'!$J$384","v":0},"#'T2-B(PP1)'!$J$384"]
["pp1_bl5_2_14_total_in",{"$f":"'T2-B(PP1)'!$F$384","v":0},"#'T2-B(PP1)'!$F$384"]
["pp1_bl5_2_14_total_out",{"$f":"'T2-B(PP1)'!$I$384","v":0},"#'T2-B(PP1)'!$I$384"]
["pp1_bl5_2_14_unit",{"$f":"'T2-B(PP1)'!$C$384","v":0},"#'T2-B(PP1)'!$C$384"]
["pp1_bl5_2_14_unit_in",{"$f":"'T2-B(PP1)'!$D$384","v":0},"#'T2-B(PP1)'!$D$384"]
["pp1_bl5_2_14_units_out",{"$f":"'T2-B(PP1)'!$G$384","v":0},"#'T2-B(PP1)'!$G$384"]
["pp1_bl5_2_15_name",{"$f":"'T2-B(PP1)'!$B$385","v":0},"#'T2-B(PP1)'!$B$385"]
["pp1_bl5_2_15_rate_in",{"$f":"'T2-B(PP1)'!$E$385","v":0},"#'T2-B(PP1)'!$E$385"]
["pp1_bl5_2_15_rate_out",{"$f":"'T2-B(PP1)'!$H$385","v":0},"#'T2-B(PP1)'!$H$385"]
["pp1_bl5_2_15_total",{"$f":"'T2-B(PP1)'!$J$385","v":0},"#'T2-B(PP1)'!$J$385"]
["pp1_bl5_2_15_total_in",{"$f":"'T2-B(PP1)'!$F$385","v":0},"#'T2-B(PP1)'!$F$385"]
["pp1_bl5_2_15_total_out",{"$f":"'T2-B(PP1)'!$I$385","v":0},"#'T2-B(PP1)'!$I$385"]
["pp1_bl5_2_15_unit",{"$f":"'T2-B(PP1)'!$C$385","v":0},"#'T2-B(PP1)'!$C$385"]
["pp1_bl5_2_15_unit_in",{"$f":"'T2-B(PP1)'!$D$385","v":0},"#'T2-B(PP1)'!$D$385"]
["pp1_bl5_2_15_units_out",{"$f":"'T2-B(PP1)'!$G$385","v":0},"#'T2-B(PP1)'!$G$385"]
["pp1_bl5_2_16_name",{"$f":"'T2-B(PP1)'!$B$386","v":0},"#'T2-B(PP1)'!$B$386"]
["pp1_bl5_2_16_rate_in",{"$f":"'T2-B(PP1)'!$E$386","v":0},"#'T2-B(PP1)'!$E$386"]
["pp1_bl5_2_16_rate_out",{"$f":"'T2-B(PP1)'!$H$386","v":0},"#'T2-B(PP1)'!$H$386"]
["pp1_bl5_2_16_total",{"$f":"'T2-B(PP1)'!$J$386","v":0},"#'T2-B(PP1)'!$J$386"]
["pp1_bl5_2_16_total_in",{"$f":"'T2-B(PP1)'!$F$386","v":0},"#'T2-B(PP1)'!$F$386"]
["pp1_bl5_2_16_total_out",{"$f":"'T2-B(PP1)'!$I$386","v":0},"#'T2-B(PP1)'!$I$386"]
["pp1_bl5_2_16_unit",{"$f":"'T2-B(PP1)'!$C$386","v":0},"#'T2-B(PP1)'!$C$386"]
["pp1_bl5_2_16_unit_in",{"$f":"'T2-B(PP1)'!$D$386","v":0},"#'T2-B(PP1)'!$D$386"]
["pp1_bl5_2_16_units_out",{"$f":"'T2-B(PP1)'!$G$386","v":0},"#'T2-B(PP1)'!$G$386"]
["pp1_bl5_2_17_name",{"$f":"'T2-B(PP1)'!$B$387","v":0},"#'T2-B(PP1)'!$B$387"]
["pp1_bl5_2_17_rate_in",{"$f":"'T2-B(PP1)'!$E$387","v":0},"#'T2-B(PP1)'!$E$387"]
["pp1_bl5_2_17_rate_out",{"$f":"'T2-B(PP1)'!$H$387","v":0},"#'T2-B(PP1)'!$H$387"]
["pp1_bl5_2_17_total",{"$f":"'T2-B(PP1)'!$J$387","v":0},"#'T2-B(PP1)'!$J$387"]
["pp1_bl5_2_17_total_in",{"$f":"'T2-B(PP1)'!$F$387","v":0},"#'T2-B(PP1)'!$F$387"]
["pp1_bl5_2_17_total_out",{"$f":"'T2-B(PP1)'!$I$387","v":0},"#'T2-B(PP1)'!$I$387"]
["pp1_bl5_2_17_unit",{"$f":"'T2-B(PP1)'!$C$387","v":0},"#'T2-B(PP1)'!$C$387"]
["pp1_bl5_2_17_unit_in",{"$f":"'T2-B(PP1)'!$D$387","v":0},"#'T2-B(PP1)'!$D$387"]
["pp1_bl5_2_17_units_out",{"$f":"'T2-B(PP1)'!$G$387","v":0},"#'T2-B(PP1)'!$G$387"]
["pp1_bl5_2_18_name",{"$f":"'T2-B(PP1)'!$B$388","v":0},"#'T2-B(PP1)'!$B$388"]
["pp1_bl5_2_18_rate_in",{"$f":"'T2-B(PP1)'!$E$388","v":0},"#'T2-B(PP1)'!$E$388"]
["pp1_bl5_2_18_rate_out",{"$f":"'T2-B(PP1)'!$H$388","v":0},"#'T2-B(PP1)'!$H$388"]
["pp1_bl5_2_18_total",{"$f":"'T2-B(PP1)'!$J$388","v":0},"#'T2-B(PP1)'!$J$388"]
["pp1_bl5_2_18_total_in",{"$f":"'T2-B(PP1)'!$F$388","v":0},"#'T2-B(PP1)'!$F$388"]
["pp1_bl5_2_18_total_out",{"$f":"'T2-B(PP1)'!$I$388","v":0},"#'T2-B(PP1)'!$I$388"]
["pp1_bl5_2_18_unit",{"$f":"'T2-B(PP1)'!$C$388","v":0},"#'T2-B(PP1)'!$C$388"]
["pp1_bl5_2_18_unit_in",{"$f":"'T2-B(PP1)'!$D$388","v":0},"#'T2-B(PP1)'!$D$388"]
["pp1_bl5_2_18_units_out",{"$f":"'T2-B(PP1)'!$G$388","v":0},"#'T2-B(PP1)'!$G$388"]
["pp1_bl5_2_19_name",{"$f":"'T2-B(PP1)'!$B$389","v":0},"#'T2-B(PP1)'!$B$389"]
["pp1_bl5_2_19_rate_in",{"$f":"'T2-B(PP1)'!$E$389","v":0},"#'T2-B(PP1)'!$E$389"]
["pp1_bl5_2_19_rate_out",{"$f":"'T2-B(PP1)'!$H$389","v":0},"#'T2-B(PP1)'!$H$389"]
["pp1_bl5_2_19_total",{"$f":"'T2-B(PP1)'!$J$389","v":0},"#'T2-B(PP1)'!$J$389"]
["pp1_bl5_2_19_total_in",{"$f":"'T2-B(PP1)'!$F$389","v":0},"#'T2-B(PP1)'!$F$389"]
["pp1_bl5_2_19_total_out",{"$f":"'T2-B(PP1)'!$I$389","v":0},"#'T2-B(PP1)'!$I$389"]
["pp1_bl5_2_19_unit",{"$f":"'T2-B(PP1)'!$C$389","v":0},"#'T2-B(PP1)'!$C$389"]
["pp1_bl5_2_19_unit_in",{"$f":"'T2-B(PP1)'!$D$389","v":0},"#'T2-B(PP1)'!$D$389"]
["pp1_bl5_2_19_units_out",{"$f":"'T2-B(PP1)'!$G$389","v":0},"#'T2-B(PP1)'!$G$389"]
["pp1_bl5_2_2_name",{"$f":"'T2-B(PP1)'!$B$372","v":0},"#'T2-B(PP1)'!$B$372"]
["pp1_bl5_2_2_rate_in",{"$f":"'T2-B(PP1)'!$E$372","v":0},"#'T2-B(PP1)'!$E$372"]
["pp1_bl5_2_2_rate_out",{"$f":"'T2-B(PP1)'!$H$372","v":0},"#'T2-B(PP1)'!$H$372"]
["pp1_bl5_2_2_total",{"$f":"'T2-B(PP1)'!$J$372","v":0},"#'T2-B(PP1)'!$J$372"]
["pp1_bl5_2_2_total_in",{"$f":"'T2-B(PP1)'!$F$372","v":0},"#'T2-B(PP1)'!$F$372"]
["pp1_bl5_2_2_total_out",{"$f":"'T2-B(PP1)'!$I$372","v":0},"#'T2-B(PP1)'!$I$372"]
["pp1_bl5_2_2_unit",{"$f":"'T2-B(PP1)'!$C$372","v":0},"#'T2-B(PP1)'!$C$372"]
["pp1_bl5_2_2_unit_in",{"$f":"'T2-B(PP1)'!$D$372","v":0},"#'T2-B(PP1)'!$D$372"]
["pp1_bl5_2_2_units_out",{"$f":"'T2-B(PP1)'!$G$372","v":0},"#'T2-B(PP1)'!$G$372"]
["pp1_bl5_2_20_name",{"$f":"'T2-B(PP1)'!$B$390","v":0},"#'T2-B(PP1)'!$B$390"]
["pp1_bl5_2_20_rate_in",{"$f":"'T2-B(PP1)'!$E$390","v":0},"#'T2-B(PP1)'!$E$390"]
["pp1_bl5_2_20_rate_out",{"$f":"'T2-B(PP1)'!$H$390","v":0},"#'T2-B(PP1)'!$H$390"]
["pp1_bl5_2_20_total",{"$f":"'T2-B(PP1)'!$J$390","v":0},"#'T2-B(PP1)'!$J$390"]
["pp1_bl5_2_20_total_in",{"$f":"'T2-B(PP1)'!$F$390","v":0},"#'T2-B(PP1)'!$F$390"]
["pp1_bl5_2_20_total_out",{"$f":"'T2-B(PP1)'!$I$390","v":0},"#'T2-B(PP1)'!$I$390"]
["pp1_bl5_2_20_unit",{"$f":"'T2-B(PP1)'!$C$390","v":0},"#'T2-B(PP1)'!$C$390"]
["pp1_bl5_2_20_unit_in",{"$f":"'T2-B(PP1)'!$D$390","v":0},"#'T2-B(PP1)'!$D$390"]
["pp1_bl5_2_20_units_out",{"$f":"'T2-B(PP1)'!$G$390","v":0},"#'T2-B(PP1)'!$G$390"]
["pp1_bl5_2_3_name",{"$f":"'T2-B(PP1)'!$B$373","v":0},"#'T2-B(PP1)'!$B$373"]
["pp1_bl5_2_3_rate_in",{"$f":"'T2-B(PP1)'!$E$373","v":0},"#'T2-B(PP1)'!$E$373"]
["pp1_bl5_2_3_rate_out",{"$f":"'T2-B(PP1)'!$H$373","v":0},"#'T2-B(PP1)'!$H$373"]
["pp1_bl5_2_3_total",{"$f":"'T2-B(PP1)'!$J$373","v":0},"#'T2-B(PP1)'!$J$373"]
["pp1_bl5_2_3_total_in",{"$f":"'T2-B(PP1)'!$F$373","v":0},"#'T2-B(PP1)'!$F$373"]
["pp1_bl5_2_3_total_out",{"$f":"'T2-B(PP1)'!$I$373","v":0},"#'T2-B(PP1)'!$I$373"]
["pp1_bl5_2_3_unit",{"$f":"'T2-B(PP1)'!$C$373","v":0},"#'T2-B(PP1)'!$C$373"]
["pp1_bl5_2_3_unit_in",{"$f":"'T2-B(PP1)'!$D$373","v":0},"#'T2-B(PP1)'!$D$373"]
["pp1_bl5_2_3_units_out",{"$f":"'T2-B(PP1)'!$G$373","v":0},"#'T2-B(PP1)'!$G$373"]
["pp1_bl5_2_4_name",{"$f":"'T2-B(PP1)'!$B$374","v":0},"#'T2-B(PP1)'!$B$374"]
["pp1_bl5_2_4_rate_in",{"$f":"'T2-B(PP1)'!$E$374","v":0},"#'T2-B(PP1)'!$E$374"]
["pp1_bl5_2_4_rate_out",{"$f":"'T2-B(PP1)'!$H$374","v":0},"#'T2-B(PP1)'!$H$374"]
["pp1_bl5_2_4_total",{"$f":"'T2-B(PP1)'!$J$374","v":0},"#'T2-B(PP1)'!$J$374"]
["pp1_bl5_2_4_total_in",{"$f":"'T2-B(PP1)'!$F$374","v":0},"#'T2-B(PP1)'!$F$374"]
["pp1_bl5_2_4_total_out",{"$f":"'T2-B(PP1)'!$I$374","v":0},"#'T2-B(PP1)'!$I$374"]
["pp1_bl5_2_4_unit",{"$f":"'T2-B(PP1)'!$C$374","v":0},"#'T2-B(PP1)'!$C$374"]
["pp1_bl5_2_4_unit_in",{"$f":"'T2-B(PP1)'!$D$374","v":0},"#'T2-B(PP1)'!$D$374"]
["pp1_bl5_2_4_units_out",{"$f":"'T2-B(PP1)'!$G$374","v":0},"#'T2-B(PP1)'!$G$374"]
["pp1_bl5_2_5_name",{"$f":"'T2-B(PP1)'!$B$375","v":0},"#'T2-B(PP1)'!$B$375"]
["pp1_bl5_2_5_rate_in",{"$f":"'T2-B(PP1)'!$E$375","v":0},"#'T2-B(PP1)'!$E$375"]
["pp1_bl5_2_5_rate_out",{"$f":"'T2-B(PP1)'!$H$375","v":0},"#'T2-B(PP1)'!$H$375"]
["pp1_bl5_2_5_total",{"$f":"'T2-B(PP1)'!$J$375","v":0},"#'T2-B(PP1)'!$J$375"]
["pp1_bl5_2_5_total_in",{"$f":"'T2-B(PP1)'!$F$375","v":0},"#'T2-B(PP1)'!$F$375"]
["pp1_bl5_2_5_total_out",{"$f":"'T2-B(PP1)'!$I$375","v":0},"#'T2-B(PP1)'!$I$375"]
["pp1_bl5_2_5_unit",{"$f":"'T2-B(PP1)'!$C$375","v":0},"#'T2-B(PP1)'!$C$375"]
["pp1_bl5_2_5_unit_in",{"$f":"'T2-B(PP1)'!$D$375","v":0},"#'T2-B(PP1)'!$D$375"]
["pp1_bl5_2_5_units_out",{"$f":"'T2-B(PP1)'!$G$375","v":0},"#'T2-B(PP1)'!$G$375"]
["pp1_bl5_2_6_name",{"$f":"'T2-B(PP1)'!$B$376","v":0},"#'T2-B(PP1)'!$B$376"]
["pp1_bl5_2_6_rate_in",{"$f":"'T2-B(PP1)'!$E$376","v":0},"#'T2-B(PP1)'!$E$376"]
["pp1_bl5_2_6_rate_out",{"$f":"'T2-B(PP1)'!$H$376","v":0},"#'T2-B(PP1)'!$H$376"]
["pp1_bl5_2_6_total",{"$f":"'T2-B(PP1)'!$J$376","v":0},"#'T2-B(PP1)'!$J$376"]
["pp1_bl5_2_6_total_in",{"$f":"'T2-B(PP1)'!$F$376","v":0},"#'T2-B(PP1)'!$F$376"]
["pp1_bl5_2_6_total_out",{"$f":"'T2-B(PP1)'!$I$376","v":0},"#'T2-B(PP1)'!$I$376"]
["pp1_bl5_2_6_unit",{"$f":"'T2-B(PP1)'!$C$376","v":0},"#'T2-B(PP1)'!$C$376"]
["pp1_bl5_2_6_unit_in",{"$f":"'T2-B(PP1)'!$D$376","v":0},"#'T2-B(PP1)'!$D$376"]
["pp1_bl5_2_6_units_out",{"$f":"'T2-B(PP1)'!$G$376","v":0},"#'T2-B(PP1)'!$G$376"]
["pp1_bl5_2_7_name",{"$f":"'T2-B(PP1)'!$B$377","v":0},"#'T2-B(PP1)'!$B$377"]
["pp1_bl5_2_7_rate_in",{"$f":"'T2-B(PP1)'!$E$377","v":0},"#'T2-B(PP1)'!$E$377"]
["pp1_bl5_2_7_rate_out",{"$f":"'T2-B(PP1)'!$H$377","v":0},"#'T2-B(PP1)'!$H$377"]
["pp1_bl5_2_7_total",{"$f":"'T2-B(PP1)'!$J$377","v":0},"#'T2-B(PP1)'!$J$377"]
["pp1_bl5_2_7_total_in",{"$f":"'T2-B(PP1)'!$F$377","v":0},"#'T2-B(PP1)'!$F$377"]
["pp1_bl5_2_7_total_out",{"$f":"'T2-B(PP1)'!$I$377","v":0},"#'T2-B(PP1)'!$I$377"]
["pp1_bl5_2_7_unit",{"$f":"'T2-B(PP1)'!$C$377","v":0},"#'T2-B(PP1)'!$C$377"]
["pp1_bl5_2_7_unit_in",{"$f":"'T2-B(PP1)'!$D$377","v":0},"#'T2-B(PP1)'!$D$377"]
["pp1_bl5_2_7_units_out",{"$f":"'T2-B(PP1)'!$G$377","v":0},"#'T2-B(PP1)'!$G$377"]
["pp1_bl5_2_8_name",{"$f":"'T2-B(PP1)'!$B$378","v":0},"#'T2-B(PP1)'!$B$378"]
["pp1_bl5_2_8_rate_in",{"$f":"'T2-B(PP1)'!$E$378","v":0},"#'T2-B(PP1)'!$E$378"]
["pp1_bl5_2_8_rate_out",{"$f":"'T2-B(PP1)'!$H$378","v":0},"#'T2-B(PP1)'!$H$378"]
["pp1_bl5_2_8_total",{"$f":"'T2-B(PP1)'!$J$378","v":0},"#'T2-B(PP1)'!$J$378"]
["pp1_bl5_2_8_total_in",{"$f":"'T2-B(PP1)'!$F$378","v":0},"#'T2-B(PP1)'!$F$378"]
["pp1_bl5_2_8_total_out",{"$f":"'T2-B(PP1)'!$I$378","v":0},"#'T2-B(PP1)'!$I$378"]
["pp1_bl5_2_8_unit",{"$f":"'T2-B(PP1)'!$C$378","v":0},"#'T2-B(PP1)'!$C$378"]
["pp1_bl5_2_8_unit_in",{"$f":"'T2-B(PP1)'!$D$378","v":0},"#'T2-B(PP1)'!$D$378"]
["pp1_bl5_2_8_units_out",{"$f":"'T2-B(PP1)'!$G$378","v":0},"#'T2-B(PP1)'!$G$378"]
["pp1_bl5_2_9_name",{"$f":"'T2-B(PP1)'!$B$379","v":0},"#'T2-B(PP1)'!$B$379"]
["pp1_bl5_2_9_rate_in",{"$f":"'T2-B(PP1)'!$E$379","v":0},"#'T2-B(PP1)'!$E$379"]
["pp1_bl5_2_9_rate_out",{"$f":"'T2-B(PP1)'!$H$379","v":0},"#'T2-B(PP1)'!$H$379"]
["pp1_bl5_2_9_total",{"$f":"'T2-B(PP1)'!$J$379","v":0},"#'T2-B(PP1)'!$J$379"]
["pp1_bl5_2_9_total_in",{"$f":"'T2-B(PP1)'!$F$379","v":0},"#'T2-B(PP1)'!$F$379"]
["pp1_bl5_2_9_total_out",{"$f":"'T2-B(PP1)'!$I$379","v":0},"#'T2-B(PP1)'!$I$379"]
["pp1_bl5_2_9_unit",{"$f":"'T2-B(PP1)'!$C$379","v":0},"#'T2-B(PP1)'!$C$379"]
["pp1_bl5_2_9_unit_in",{"$f":"'T2-B(PP1)'!$D$379","v":0},"#'T2-B(PP1)'!$D$379"]
["pp1_bl5_2_9_units_out",{"$f":"'T2-B(PP1)'!$G$379","v":0},"#'T2-B(PP1)'!$G$379"]
["pp1_bl5_2_total",{"$f":"'T2-B(PP1)'!$J$370","v":0},"#'T2-B(PP1)'!$J$370"]
["pp1_bl5_2_total_in",{"$f":"'T2-B(PP1)'!$F$370","v":0},"#'T2-B(PP1)'!$F$370"]
["pp1_bl5_2_total_out",{"$f":"'T2-B(PP1)'!$I$370","v":0},"#'T2-B(PP1)'!$I$370"]
["pp1_bl5_total",{"$f":"'T2-B(PP1)'!$J$391","v":0},"#'T2-B(PP1)'!$J$391"]
["pp1_bl5_total_in",{"$f":"'T2-B(PP1)'!$F$391","v":0},"#'T2-B(PP1)'!$F$391"]
["pp1_bl5_total_out",{"$f":"'T2-B(PP1)'!$I$391","v":0},"#'T2-B(PP1)'!$I$391"]
["pp1_bl6_1_1_name",{"$f":"'T2-B(PP1)'!$B$396","v":0},"#'T2-B(PP1)'!$B$396"]
["pp1_bl6_1_1_rate_in",{"$f":"'T2-B(PP1)'!$E$396","v":0},"#'T2-B(PP1)'!$E$396"]
["pp1_bl6_1_1_rate_out",{"$f":"'T2-B(PP1)'!$H$396","v":0},"#'T2-B(PP1)'!$H$396"]
["pp1_bl6_1_1_total",{"$f":"'T2-B(PP1)'!$J$396","v":0},"#'T2-B(PP1)'!$J$396"]
["pp1_bl6_1_1_total_in",{"$f":"'T2-B(PP1)'!$F$396","v":0},"#'T2-B(PP1)'!$F$396"]
["pp1_bl6_1_1_total_out",{"$f":"'T2-B(PP1)'!$I$396","v":0},"#'T2-B(PP1)'!$I$396"]
["pp1_bl6_1_1_unit",{"$f":"'T2-B(PP1)'!$C$396","v":0},"#'T2-B(PP1)'!$C$396"]
["pp1_bl6_1_1_unit_in",{"$f":"'T2-B(PP1)'!$D$396","v":0},"#'T2-B(PP1)'!$D$396"]
["pp1_bl6_1_1_units_out",{"$f":"'T2-B(PP1)'!$G$396","v":0},"#'T2-B(PP1)'!$G$396"]
["pp1_bl6_1_10_name",{"$f":"'T2-B(PP1)'!$B$405","v":0},"#'T2-B(PP1)'!$B$405"]
["pp1_bl6_1_10_rate_in",{"$f":"'T2-B(PP1)'!$E$405","v":0},"#'T2-B(PP1)'!$E$405"]
["pp1_bl6_1_10_rate_out",{"$f":"'T2-B(PP1)'!$H$405","v":0},"#'T2-B(PP1)'!$H$405"]
["pp1_bl6_1_10_total",{"$f":"'T2-B(PP1)'!$J$405","v":0},"#'T2-B(PP1)'!$J$405"]
["pp1_bl6_1_10_total_in",{"$f":"'T2-B(PP1)'!$F$405","v":0},"#'T2-B(PP1)'!$F$405"]
["pp1_bl6_1_10_total_out",{"$f":"'T2-B(PP1)'!$I$405","v":0},"#'T2-B(PP1)'!$I$405"]
["pp1_bl6_1_10_unit",{"$f":"'T2-B(PP1)'!$C$405","v":0},"#'T2-B(PP1)'!$C$405"]
["pp1_bl6_1_10_unit_in",{"$f":"'T2-B(PP1)'!$D$405","v":0},"#'T2-B(PP1)'!$D$405"]
["pp1_bl6_1_10_units_out",{"$f":"'T2-B(PP1)'!$G$405","v":0},"#'T2-B(PP1)'!$G$405"]
["pp1_bl6_1_2_name",{"$f":"'T2-B(PP1)'!$B$397","v":0},"#'T2-B(PP1)'!$B$397"]
["pp1_bl6_1_2_rate_in",{"$f":"'T2-B(PP1)'!$E$397","v":0},"#'T2-B(PP1)'!$E$397"]
["pp1_bl6_1_2_rate_out",{"$f":"'T2-B(PP1)'!$H$397","v":0},"#'T2-B(PP1)'!$H$397"]
["pp1_bl6_1_2_total",{"$f":"'T2-B(PP1)'!$J$397","v":0},"#'T2-B(PP1)'!$J$397"]
["pp1_bl6_1_2_total_in",{"$f":"'T2-B(PP1)'!$F$397","v":0},"#'T2-B(PP1)'!$F$397"]
["pp1_bl6_1_2_total_out",{"$f":"'T2-B(PP1)'!$I$397","v":0},"#'T2-B(PP1)'!$I$397"]
["pp1_bl6_1_2_unit",{"$f":"'T2-B(PP1)'!$C$397","v":0},"#'T2-B(PP1)'!$C$397"]
["pp1_bl6_1_2_unit_in",{"$f":"'T2-B(PP1)'!$D$397","v":0},"#'T2-B(PP1)'!$D$397"]
["pp1_bl6_1_2_units_out",{"$f":"'T2-B(PP1)'!$G$397","v":0},"#'T2-B(PP1)'!$G$397"]
["pp1_bl6_1_3_name",{"$f":"'T2-B(PP1)'!$B$398","v":0},"#'T2-B(PP1)'!$B$398"]
["pp1_bl6_1_3_rate_in",{"$f":"'T2-B(PP1)'!$E$398","v":0},"#'T2-B(PP1)'!$E$398"]
["pp1_bl6_1_3_rate_out",{"$f":"'T2-B(PP1)'!$H$398","v":0},"#'T2-B(PP1)'!$H$398"]
["pp1_bl6_1_3_total",{"$f":"'T2-B(PP1)'!$J$398","v":0},"#'T2-B(PP1)'!$J$398"]
["pp1_bl6_1_3_total_in",{"$f":"'T2-B(PP1)'!$F$398","v":0},"#'T2-B(PP1)'!$F$398"]
["pp1_bl6_1_3_total_out",{"$f":"'T2-B(PP1)'!$I$398","v":0},"#'T2-B(PP1)'!$I$398"]
["pp1_bl6_1_3_unit",{"$f":"'T2-B(PP1)'!$C$398","v":0},"#'T2-B(PP1)'!$C$398"]
["pp1_bl6_1_3_unit_in",{"$f":"'T2-B(PP1)'!$D$398","v":0},"#'T2-B(PP1)'!$D$398"]
["pp1_bl6_1_3_units_out",{"$f":"'T2-B(PP1)'!$G$398","v":0},"#'T2-B(PP1)'!$G$398"]
["pp1_bl6_1_4_name",{"$f":"'T2-B(PP1)'!$B$399","v":0},"#'T2-B(PP1)'!$B$399"]
["pp1_bl6_1_4_rate_in",{"$f":"'T2-B(PP1)'!$E$399","v":0},"#'T2-B(PP1)'!$E$399"]
["pp1_bl6_1_4_rate_out",{"$f":"'T2-B(PP1)'!$H$399","v":0},"#'T2-B(PP1)'!$H$399"]
["pp1_bl6_1_4_total",{"$f":"'T2-B(PP1)'!$J$399","v":0},"#'T2-B(PP1)'!$J$399"]
["pp1_bl6_1_4_total_in",{"$f":"'T2-B(PP1)'!$F$399","v":0},"#'T2-B(PP1)'!$F$399"]
["pp1_bl6_1_4_total_out",{"$f":"'T2-B(PP1)'!$I$399","v":0},"#'T2-B(PP1)'!$I$399"]
["pp1_bl6_1_4_unit",{"$f":"'T2-B(PP1)'!$C$399","v":0},"#'T2-B(PP1)'!$C$399"]
["pp1_bl6_1_4_unit_in",{"$f":"'T2-B(PP1)'!$D$399","v":0},"#'T2-B(PP1)'!$D$399"]
["pp1_bl6_1_4_units_out",{"$f":"'T2-B(PP1)'!$G$399","v":0},"#'T2-B(PP1)'!$G$399"]
["pp1_bl6_1_5_name",{"$f":"'T2-B(PP1)'!$B$400","v":0},"#'T2-B(PP1)'!$B$400"]
["pp1_bl6_1_5_rate_in",{"$f":"'T2-B(PP1)'!$E$400","v":0},"#'T2-B(PP1)'!$E$400"]
["pp1_bl6_1_5_rate_out",{"$f":"'T2-B(PP1)'!$H$400","v":0},"#'T2-B(PP1)'!$H$400"]
["pp1_bl6_1_5_total",{"$f":"'T2-B(PP1)'!$J$400","v":0},"#'T2-B(PP1)'!$J$400"]
["pp1_bl6_1_5_total_in",{"$f":"'T2-B(PP1)'!$F$400","v":0},"#'T2-B(PP1)'!$F$400"]
["pp1_bl6_1_5_total_out",{"$f":"'T2-B(PP1)'!$I$400","v":0},"#'T2-B(PP1)'!$I$400"]
["pp1_bl6_1_5_unit",{"$f":"'T2-B(PP1)'!$C$400","v":0},"#'T2-B(PP1)'!$C$400"]
["pp1_bl6_1_5_unit_in",{"$f":"'T2-B(PP1)'!$D$400","v":0},"#'T2-B(PP1)'!$D$400"]
["pp1_bl6_1_5_units_out",{"$f":"'T2-B(PP1)'!$G$400","v":0},"#'T2-B(PP1)'!$G$400"]
["pp1_bl6_1_6_name",{"$f":"'T2-B(PP1)'!$B$401","v":0},"#'T2-B(PP1)'!$B$401"]
["pp1_bl6_1_6_rate_in",{"$f":"'T2-B(PP1)'!$E$401","v":0},"#'T2-B(PP1)'!$E$401"]
["pp1_bl6_1_6_rate_out",{"$f":"'T2-B(PP1)'!$H$401","v":0},"#'T2-B(PP1)'!$H$401"]
["pp1_bl6_1_6_total",{"$f":"'T2-B(PP1)'!$J$401","v":0},"#'T2-B(PP1)'!$J$401"]
["pp1_bl6_1_6_total_in",{"$f":"'T2-B(PP1)'!$F$401","v":0},"#'T2-B(PP1)'!$F$401"]
["pp1_bl6_1_6_total_out",{"$f":"'T2-B(PP1)'!$I$401","v":0},"#'T2-B(PP1)'!$I$401"]
["pp1_bl6_1_6_unit",{"$f":"'T2-B(PP1)'!$C$401","v":0},"#'T2-B(PP1)'!$C$401"]
["pp1_bl6_1_6_unit_in",{"$f":"'T2-B(PP1)'!$D$401","v":0},"#'T2-B(PP1)'!$D$401"]
["pp1_bl6_1_6_units_out",{"$f":"'T2-B(PP1)'!$G$401","v":0},"#'T2-B(PP1)'!$G$401"]
["pp1_bl6_1_7_name",{"$f":"'T2-B(PP1)'!$B$402","v":0},"#'T2-B(PP1)'!$B$402"]
["pp1_bl6_1_7_rate_in",{"$f":"'T2-B(PP1)'!$E$402","v":0},"#'T2-B(PP1)'!$E$402"]
["pp1_bl6_1_7_rate_out",{"$f":"'T2-B(PP1)'!$H$402","v":0},"#'T2-B(PP1)'!$H$402"]
["pp1_bl6_1_7_total",{"$f":"'T2-B(PP1)'!$J$402","v":0},"#'T2-B(PP1)'!$J$402"]
["pp1_bl6_1_7_total_in",{"$f":"'T2-B(PP1)'!$F$402","v":0},"#'T2-B(PP1)'!$F$402"]
["pp1_bl6_1_7_total_out",{"$f":"'T2-B(PP1)'!$I$402","v":0},"#'T2-B(PP1)'!$I$402"]
["pp1_bl6_1_7_unit",{"$f":"'T2-B(PP1)'!$C$402","v":0},"#'T2-B(PP1)'!$C$402"]
["pp1_bl6_1_7_unit_in",{"$f":"'T2-B(PP1)'!$D$402","v":0},"#'T2-B(PP1)'!$D$402"]
["pp1_bl6_1_7_units_out",{"$f":"'T2-B(PP1)'!$G$402","v":0},"#'T2-B(PP1)'!$G$402"]
["pp1_bl6_1_8_name",{"$f":"'T2-B(PP1)'!$B$403","v":0},"#'T2-B(PP1)'!$B$403"]
["pp1_bl6_1_8_rate_in",{"$f":"'T2-B(PP1)'!$E$403","v":0},"#'T2-B(PP1)'!$E$403"]
["pp1_bl6_1_8_rate_out",{"$f":"'T2-B(PP1)'!$H$403","v":0},"#'T2-B(PP1)'!$H$403"]
["pp1_bl6_1_8_total",{"$f":"'T2-B(PP1)'!$J$403","v":0},"#'T2-B(PP1)'!$J$403"]
["pp1_bl6_1_8_total_in",{"$f":"'T2-B(PP1)'!$F$403","v":0},"#'T2-B(PP1)'!$F$403"]
["pp1_bl6_1_8_total_out",{"$f":"'T2-B(PP1)'!$I$403","v":0},"#'T2-B(PP1)'!$I$403"]
["pp1_bl6_1_8_unit",{"$f":"'T2-B(PP1)'!$C$403","v":0},"#'T2-B(PP1)'!$C$403"]
["pp1_bl6_1_8_unit_in",{"$f":"'T2-B(PP1)'!$D$403","v":0},"#'T2-B(PP1)'!$D$403"]
["pp1_bl6_1_8_units_out",{"$f":"'T2-B(PP1)'!$G$403","v":0},"#'T2-B(PP1)'!$G$403"]
["pp1_bl6_1_9_name",{"$f":"'T2-B(PP1)'!$B$404","v":0},"#'T2-B(PP1)'!$B$404"]
["pp1_bl6_1_9_rate_in",{"$f":"'T2-B(PP1)'!$E$404","v":0},"#'T2-B(PP1)'!$E$404"]
["pp1_bl6_1_9_rate_out",{"$f":"'T2-B(PP1)'!$H$404","v":0},"#'T2-B(PP1)'!$H$404"]
["pp1_bl6_1_9_total",{"$f":"'T2-B(PP1)'!$J$404","v":0},"#'T2-B(PP1)'!$J$404"]
["pp1_bl6_1_9_total_in",{"$f":"'T2-B(PP1)'!$F$404","v":0},"#'T2-B(PP1)'!$F$404"]
["pp1_bl6_1_9_total_out",{"$f":"'T2-B(PP1)'!$I$404","v":0},"#'T2-B(PP1)'!$I$404"]
["pp1_bl6_1_9_unit",{"$f":"'T2-B(PP1)'!$C$404","v":0},"#'T2-B(PP1)'!$C$404"]
["pp1_bl6_1_9_unit_in",{"$f":"'T2-B(PP1)'!$D$404","v":0},"#'T2-B(PP1)'!$D$404"]
["pp1_bl6_1_9_units_out",{"$f":"'T2-B(PP1)'!$G$404","v":0},"#'T2-B(PP1)'!$G$404"]
["pp1_bl6_1_total",{"$f":"'T2-B(PP1)'!$J$395","v":0},"#'T2-B(PP1)'!$J$395"]
["pp1_bl6_1_total_in",{"$f":"'T2-B(PP1)'!$F$395","v":0},"#'T2-B(PP1)'!$F$395"]
["pp1_bl6_1_total_out",{"$f":"'T2-B(PP1)'!$I$395","v":0},"#'T2-B(PP1)'!$I$395"]
["pp1_bl6_2_1_name",{"$f":"'T2-B(PP1)'!$B$407","v":0},"#'T2-B(PP1)'!$B$407"]
["pp1_bl6_2_1_rate_in",{"$f":"'T2-B(PP1)'!$E$407","v":0},"#'T2-B(PP1)'!$E$407"]
["pp1_bl6_2_1_rate_out",{"$f":"'T2-B(PP1)'!$H$407","v":0},"#'T2-B(PP1)'!$H$407"]
["pp1_bl6_2_1_total",{"$f":"'T2-B(PP1)'!$J$407","v":0},"#'T2-B(PP1)'!$J$407"]
["pp1_bl6_2_1_total_in",{"$f":"'T2-B(PP1)'!$F$407","v":0},"#'T2-B(PP1)'!$F$407"]
["pp1_bl6_2_1_total_out",{"$f":"'T2-B(PP1)'!$I$407","v":0},"#'T2-B(PP1)'!$I$407"]
["pp1_bl6_2_1_unit",{"$f":"'T2-B(PP1)'!$C$407","v":0},"#'T2-B(PP1)'!$C$407"]
["pp1_bl6_2_1_unit_in",{"$f":"'T2-B(PP1)'!$D$407","v":0},"#'T2-B(PP1)'!$D$407"]
["pp1_bl6_2_1_units_out",{"$f":"'T2-B(PP1)'!$G$407","v":0},"#'T2-B(PP1)'!$G$407"]
["pp1_bl6_2_10_name",{"$f":"'T2-B(PP1)'!$B$416","v":0},"#'T2-B(PP1)'!$B$416"]
["pp1_bl6_2_10_rate_in",{"$f":"'T2-B(PP1)'!$E$416","v":0},"#'T2-B(PP1)'!$E$416"]
["pp1_bl6_2_10_rate_out",{"$f":"'T2-B(PP1)'!$H$416","v":0},"#'T2-B(PP1)'!$H$416"]
["pp1_bl6_2_10_total",{"$f":"'T2-B(PP1)'!$J$416","v":0},"#'T2-B(PP1)'!$J$416"]
["pp1_bl6_2_10_total_in",{"$f":"'T2-B(PP1)'!$F$416","v":0},"#'T2-B(PP1)'!$F$416"]
["pp1_bl6_2_10_total_out",{"$f":"'T2-B(PP1)'!$I$416","v":0},"#'T2-B(PP1)'!$I$416"]
["pp1_bl6_2_10_unit",{"$f":"'T2-B(PP1)'!$C$416","v":0},"#'T2-B(PP1)'!$C$416"]
["pp1_bl6_2_10_unit_in",{"$f":"'T2-B(PP1)'!$D$416","v":0},"#'T2-B(PP1)'!$D$416"]
["pp1_bl6_2_10_units_out",{"$f":"'T2-B(PP1)'!$G$416","v":0},"#'T2-B(PP1)'!$G$416"]
["pp1_bl6_2_2_name",{"$f":"'T2-B(PP1)'!$B$408","v":0},"#'T2-B(PP1)'!$B$408"]
["pp1_bl6_2_2_rate_in",{"$f":"'T2-B(PP1)'!$E$408","v":0},"#'T2-B(PP1)'!$E$408"]
["pp1_bl6_2_2_rate_out",{"$f":"'T2-B(PP1)'!$H$408","v":0},"#'T2-B(PP1)'!$H$408"]
["pp1_bl6_2_2_total",{"$f":"'T2-B(PP1)'!$J$408","v":0},"#'T2-B(PP1)'!$J$408"]
["pp1_bl6_2_2_total_in",{"$f":"'T2-B(PP1)'!$F$408","v":0},"#'T2-B(PP1)'!$F$408"]
["pp1_bl6_2_2_total_out",{"$f":"'T2-B(PP1)'!$I$408","v":0},"#'T2-B(PP1)'!$I$408"]
["pp1_bl6_2_2_unit",{"$f":"'T2-B(PP1)'!$C$408","v":0},"#'T2-B(PP1)'!$C$408"]
["pp1_bl6_2_2_unit_in",{"$f":"'T2-B(PP1)'!$D$408","v":0},"#'T2-B(PP1)'!$D$408"]
["pp1_bl6_2_2_units_out",{"$f":"'T2-B(PP1)'!$G$408","v":0},"#'T2-B(PP1)'!$G$408"]
["pp1_bl6_2_3_name",{"$f":"'T2-B(PP1)'!$B$409","v":0},"#'T2-B(PP1)'!$B$409"]
["pp1_bl6_2_3_rate_in",{"$f":"'T2-B(PP1)'!$E$409","v":0},"#'T2-B(PP1)'!$E$409"]
["pp1_bl6_2_3_rate_out",{"$f":"'T2-B(PP1)'!$H$409","v":0},"#'T2-B(PP1)'!$H$409"]
["pp1_bl6_2_3_total",{"$f":"'T2-B(PP1)'!$J$409","v":0},"#'T2-B(PP1)'!$J$409"]
["pp1_bl6_2_3_total_in",{"$f":"'T2-B(PP1)'!$F$409","v":0},"#'T2-B(PP1)'!$F$409"]
["pp1_bl6_2_3_total_out",{"$f":"'T2-B(PP1)'!$I$409","v":0},"#'T2-B(PP1)'!$I$409"]
["pp1_bl6_2_3_unit",{"$f":"'T2-B(PP1)'!$C$409","v":0},"#'T2-B(PP1)'!$C$409"]
["pp1_bl6_2_3_unit_in",{"$f":"'T2-B(PP1)'!$D$409","v":0},"#'T2-B(PP1)'!$D$409"]
["pp1_bl6_2_3_units_out",{"$f":"'T2-B(PP1)'!$G$409","v":0},"#'T2-B(PP1)'!$G$409"]
["pp1_bl6_2_4_name",{"$f":"'T2-B(PP1)'!$B$410","v":0},"#'T2-B(PP1)'!$B$410"]
["pp1_bl6_2_4_rate_in",{"$f":"'T2-B(PP1)'!$E$410","v":0},"#'T2-B(PP1)'!$E$410"]
["pp1_bl6_2_4_rate_out",{"$f":"'T2-B(PP1)'!$H$410","v":0},"#'T2-B(PP1)'!$H$410"]
["pp1_bl6_2_4_total",{"$f":"'T2-B(PP1)'!$J$410","v":0},"#'T2-B(PP1)'!$J$410"]
["pp1_bl6_2_4_total_in",{"$f":"'T2-B(PP1)'!$F$410","v":0},"#'T2-B(PP1)'!$F$410"]
["pp1_bl6_2_4_total_out",{"$f":"'T2-B(PP1)'!$I$410","v":0},"#'T2-B(PP1)'!$I$410"]
["pp1_bl6_2_4_unit",{"$f":"'T2-B(PP1)'!$C$410","v":0},"#'T2-B(PP1)'!$C$410"]
["pp1_bl6_2_4_unit_in",{"$f":"'T2-B(PP1)'!$D$410","v":0},"#'T2-B(PP1)'!$D$410"]
["pp1_bl6_2_4_units_out",{"$f":"'T2-B(PP1)'!$G$410","v":0},"#'T2-B(PP1)'!$G$410"]
["pp1_bl6_2_5_name",{"$f":"'T2-B(PP1)'!$B$411","v":0},"#'T2-B(PP1)'!$B$411"]
["pp1_bl6_2_5_rate_in",{"$f":"'T2-B(PP1)'!$E$411","v":0},"#'T2-B(PP1)'!$E$411"]
["pp1_bl6_2_5_rate_out",{"$f":"'T2-B(PP1)'!$H$411","v":0},"#'T2-B(PP1)'!$H$411"]
["pp1_bl6_2_5_total",{"$f":"'T2-B(PP1)'!$J$411","v":0},"#'T2-B(PP1)'!$J$411"]
["pp1_bl6_2_5_total_in",{"$f":"'T2-B(PP1)'!$F$411","v":0},"#'T2-B(PP1)'!$F$411"]
["pp1_bl6_2_5_total_out",{"$f":"'T2-B(PP1)'!$I$411","v":0},"#'T2-B(PP1)'!$I$411"]
["pp1_bl6_2_5_unit",{"$f":"'T2-B(PP1)'!$C$411","v":0},"#'T2-B(PP1)'!$C$411"]
["pp1_bl6_2_5_unit_in",{"$f":"'T2-B(PP1)'!$D$411","v":0},"#'T2-B(PP1)'!$D$411"]
["pp1_bl6_2_5_units_out",{"$f":"'T2-B(PP1)'!$G$411","v":0},"#'T2-B(PP1)'!$G$411"]
["pp1_bl6_2_6_name",{"$f":"'T2-B(PP1)'!$B$412","v":0},"#'T2-B(PP1)'!$B$412"]
["pp1_bl6_2_6_rate_in",{"$f":"'T2-B(PP1)'!$E$412","v":0},"#'T2-B(PP1)'!$E$412"]
["pp1_bl6_2_6_rate_out",{"$f":"'T2-B(PP1)'!$H$412","v":0},"#'T2-B(PP1)'!$H$412"]
["pp1_bl6_2_6_total",{"$f":"'T2-B(PP1)'!$J$412","v":0},"#'T2-B(PP1)'!$J$412"]
["pp1_bl6_2_6_total_in",{"$f":"'T2-B(PP1)'!$F$412","v":0},"#'T2-B(PP1)'!$F$412"]
["pp1_bl6_2_6_total_out",{"$f":"'T2-B(PP1)'!$I$412","v":0},"#'T2-B(PP1)'!$I$412"]
["pp1_bl6_2_6_unit",{"$f":"'T2-B(PP1)'!$C$412","v":0},"#'T2-B(PP1)'!$C$412"]
["pp1_bl6_2_6_unit_in",{"$f":"'T2-B(PP1)'!$D$412","v":0},"#'T2-B(PP1)'!$D$412"]
["pp1_bl6_2_6_units_out",{"$f":"'T2-B(PP1)'!$G$412","v":0},"#'T2-B(PP1)'!$G$412"]
["pp1_bl6_2_7_name",{"$f":"'T2-B(PP1)'!$B$413","v":0},"#'T2-B(PP1)'!$B$413"]
["pp1_bl6_2_7_rate_in",{"$f":"'T2-B(PP1)'!$E$413","v":0},"#'T2-B(PP1)'!$E$413"]
["pp1_bl6_2_7_rate_out",{"$f":"'T2-B(PP1)'!$H$413","v":0},"#'T2-B(PP1)'!$H$413"]
["pp1_bl6_2_7_total",{"$f":"'T2-B(PP1)'!$J$413","v":0},"#'T2-B(PP1)'!$J$413"]
["pp1_bl6_2_7_total_in",{"$f":"'T2-B(PP1)'!$F$413","v":0},"#'T2-B(PP1)'!$F$413"]
["pp1_bl6_2_7_total_out",{"$f":"'T2-B(PP1)'!$I$413","v":0},"#'T2-B(PP1)'!$I$413"]
["pp1_bl6_2_7_unit",{"$f":"'T2-B(PP1)'!$C$413","v":0},"#'T2-B(PP1)'!$C$413"]
["pp1_bl6_2_7_unit_in",{"$f":"'T2-B(PP1)'!$D$413","v":0},"#'T2-B(PP1)'!$D$413"]
["pp1_bl6_2_7_units_out",{"$f":"'T2-B(PP1)'!$G$413","v":0},"#'T2-B(PP1)'!$G$413"]
["pp1_bl6_2_8_name",{"$f":"'T2-B(PP1)'!$B$414","v":0},"#'T2-B(PP1)'!$B$414"]
["pp1_bl6_2_8_rate_in",{"$f":"'T2-B(PP1)'!$E$414","v":0},"#'T2-B(PP1)'!$E$414"]
["pp1_bl6_2_8_rate_out",{"$f":"'T2-B(PP1)'!$H$414","v":0},"#'T2-B(PP1)'!$H$414"]
["pp1_bl6_2_8_total",{"$f":"'T2-B(PP1)'!$J$414","v":0},"#'T2-B(PP1)'!$J$414"]
["pp1_bl6_2_8_total_in",{"$f":"'T2-B(PP1)'!$F$414","v":0},"#'T2-B(PP1)'!$F$414"]
["pp1_bl6_2_8_total_out",{"$f":"'T2-B(PP1)'!$I$414","v":0},"#'T2-B(PP1)'!$I$414"]
["pp1_bl6_2_8_unit",{"$f":"'T2-B(PP1)'!$C$414","v":0},"#'T2-B(PP1)'!$C$414"]
["pp1_bl6_2_8_unit_in",{"$f":"'T2-B(PP1)'!$D$414","v":0},"#'T2-B(PP1)'!$D$414"]
["pp1_bl6_2_8_units_out",{"$f":"'T2-B(PP1)'!$G$414","v":0},"#'T2-B(PP1)'!$G$414"]
["pp1_bl6_2_9_name",{"$f":"'T2-B(PP1)'!$B$415","v":0},"#'T2-B(PP1)'!$B$415"]
["pp1_bl6_2_9_rate_in",{"$f":"'T2-B(PP1)'!$E$415","v":0},"#'T2-B(PP1)'!$E$415"]
["pp1_bl6_2_9_rate_out",{"$f":"'T2-B(PP1)'!$H$415","v":0},"#'T2-B(PP1)'!$H$415"]
["pp1_bl6_2_9_total",{"$f":"'T2-B(PP1)'!$J$415","v":0},"#'T2-B(PP1)'!$J$415"]
["pp1_bl6_2_9_total_in",{"$f":"'T2-B(PP1)'!$F$415","v":0},"#'T2-B(PP1)'!$F$415"]
["pp1_bl6_2_9_total_out",{"$f":"'T2-B(PP1)'!$I$415","v":0},"#'T2-B(PP1)'!$I$415"]
["pp1_bl6_2_9_unit",{"$f":"'T2-B(PP1)'!$C$415","v":0},"#'T2-B(PP1)'!$C$415"]
["pp1_bl6_2_9_unit_in",{"$f":"'T2-B(PP1)'!$D$415","v":0},"#'T2-B(PP1)'!$D$415"]
["pp1_bl6_2_9_units_out",{"$f":"'T2-B(PP1)'!$G$415","v":0},"#'T2-B(PP1)'!$G$415"]
["pp1_bl6_2_total",{"$f":"'T2-B(PP1)'!$J$406","v":0},"#'T2-B(PP1)'!$J$406"]
["pp1_bl6_2_total_in",{"$f":"'T2-B(PP1)'!$F$406","v":0},"#'T2-B(PP1)'!$F$406"]
["pp1_bl6_2_total_out",{"$f":"'T2-B(PP1)'!$I$406","v":0},"#'T2-B(PP1)'!$I$406"]
["pp1_bl6_total",{"$f":"'T2-B(PP1)'!$J$417","v":0},"#'T2-B(PP1)'!$J$417"]
["pp1_bl6_total_in",{"$f":"'T2-B(PP1)'!$F$417","v":0},"#'T2-B(PP1)'!$F$417"]
["pp1_bl6_total_out",{"$f":"'T2-B(PP1)'!$I$417","v":0},"#'T2-B(PP1)'!$I$417"]
["pp1_bl7_1_1_name",{"$f":"'T2-B(PP1)'!$B$420","v":0},"#'T2-B(PP1)'!$B$420"]
["pp1_bl7_1_1_rate_in",{"$f":"'T2-B(PP1)'!$H$420","v":0},"#'T2-B(PP1)'!$H$420"]
["pp1_bl7_1_1_rate_out",{"$f":"'T2-B(PP1)'!$N$420","v":0},"#'T2-B(PP1)'!$N$420"]
["pp1_bl7_1_1_total",{"$f":"'T2-B(PP1)'!$I$420","v":0},"#'T2-B(PP1)'!$I$420"]
["pp1_bl7_1_1_total_in",{"$f":"'T2-B(PP1)'!$P$420","v":0},"#'T2-B(PP1)'!$P$420"]
["pp1_bl7_1_1_total_out",{"$f":"'T2-B(PP1)'!$O$420","v":0},"#'T2-B(PP1)'!$O$420"]
["pp1_bl7_1_1_unit",{"$f":"'T2-B(PP1)'!$F$420","v":0},"#'T2-B(PP1)'!$F$420"]
["pp1_bl7_1_1_unit_in",{"$f":"'T2-B(PP1)'!$G$420","v":0},"#'T2-B(PP1)'!$G$420"]
["pp1_bl7_1_1_units_out",{"$f":"'T2-B(PP1)'!$M$420","v":0},"#'T2-B(PP1)'!$M$420"]
["pp1_competence",{"$f":"'PP1(LP)'!$B$38","v":0},"#'PP1(LP)'!$B$38"]
["pp1_country",{"$f":"'PP1(LP)'!$K$14","v":1},"#'PP1(LP)'!$K$14"]
["pp1_fax",{"$f":"'PP1(LP)'!$C$29","v":0},"#'PP1(LP)'!$C$29"]
["pp1_is_bg",{"$f":"'PP1(LP)'!$D$13","v":0},"#'PP1(LP)'!$D$13"]
["pp1_is_pc",{"$f":"'PP1(LP)'!$F$13","v":0},"#'PP1(LP)'!$F$13"]
["pp1_legal_representative",{"$f":"Cover!$C$40","v":0},"#Cover!$C$40"]
["pp1_legal_representative_position",{"$f":"'PP1(LP)'!$C$25","v":0},"#'PP1(LP)'!$C$25"]
["pp1_mail",{"$f":"'PP1(LP)'!$C$31","v":0},"#'PP1(LP)'!$C$31"]
["pp1_nat_code",{"$f":"'PP1(LP)'!$C$70","v":0},"#'PP1(LP)'!$C$70"]
["pp1_nuts3",{"$f":"'PP1(LP)'!$C$15","v":0},"#'PP1(LP)'!$C$15"]
["pp1_organisation_en",{"$f":"Cover!$C$38","v":0},"#Cover!$C$38"]
["pp1_organisation_native",{"$f":"'PP1(LP)'!$C$9","v":0},"#'PP1(LP)'!$C$9"]
["pp1_pe_date1",{"$f":"'PP1(LP)'!$G$47","v":"00:00:00"},"#'PP1(LP)'!$G$47"]
["pp1_pe_date2",{"$f":"'PP1(LP)'!$G$55","v":0},"#'PP1(LP)'!$G$55"]
["pp1_pe_date3",{"$f":"'PP1(LP)'!$G$63","v":0},"#'PP1(LP)'!$G$63"]
["pp1_pe_ga1",{"$f":"'PP1(LP)'!$G$46","v":0},"#'PP1(LP)'!$G$46"]
["pp1_pe_ga2",{"$f":"'PP1(LP)'!$G$54","v":0},"#'PP1(LP)'!$G$54"]
["pp1_pe_ga3",{"$f":"'PP1(LP)'!$G$62","v":0},"#'PP1(LP)'!$G$62"]
["pp1_pe_ip1",{"$f":"'PP1(LP)'!$C$43","v":0},"#'PP1(LP)'!$C$43"]
["pp1_pe_ip2",{"$f":"'PP1(LP)'!$C$51","v":0},"#'PP1(LP)'!$C$51"]
["pp1_pe_ip3",{"$f":"'PP1(LP)'!$C$59","v":0},"#'PP1(LP)'!$C$59"]
["pp1_pe_or1",{"$f":"'PP1(LP)'!$C$47","v":0},"#'PP1(LP)'!$C$47"]
["pp1_pe_or2",{"$f":"'PP1(LP)'!$C$55","v":0},"#'PP1(LP)'!$C$55"]
["pp1_pe_or3",{"$f":"'PP1(LP)'!$C$63","v":0},"#'PP1(LP)'!$C$63"]
["pp1_pe_pt1",{"$f":"'PP1(LP)'!$C$44","v":0},"#'PP1(LP)'!$C$44"]
["pp1_pe_pt2",{"$f":"'PP1(LP)'!$C$52","v":0},"#'PP1(LP)'!$C$52"]
["pp1_pe_pt3",{"$f":"'PP1(LP)'!$C$60","v":0},"#'PP1(LP)'!$C$60"]
["pp1_pe_sd1",{"$f":"'PP1(LP)'!$C$45","v":0},"#'PP1(LP)'!$C$45"]
["pp1_pe_sd2",{"$f":"'PP1(LP)'!$C$53","v":0},"#'PP1(LP)'!$C$53"]
["pp1_pe_sd3",{"$f":"'PP1(LP)'!$C$61","v":0},"#'PP1(LP)'!$C$61"]
["pp1_pe_tev1",{"$f":"'PP1(LP)'!$C$46","v":0},"#'PP1(LP)'!$C$46"]
["pp1_pe_tev2",{"$f":"'PP1(LP)'!$C$54","v":0},"#'PP1(LP)'!$C$54"]
["pp1_pe_tev3",{"$f":"'PP1(LP)'!$C$62","v":0},"#'PP1(LP)'!$C$62"]
["pp1_phone",{"$f":"'PP1(LP)'!$C$27","v":0},"#'PP1(LP)'!$C$27"]
["pp1_post_code",{"$f":"'PP1(LP)'!$C$21","v":0},"#'PP1(LP)'!$C$21"]
["pp1_town",{"$f":"'PP1(LP)'!$C$17","v":0},"#'PP1(LP)'!$C$17"]
["pp1_type_org",{"$f":"'PP1(LP)'!$C$11","v":0},"#'PP1(LP)'!$C$11"]
["pp1_vat_code",{"$f":"'PP1(LP)'!$C$72","v":0},"#'PP1(LP)'!$C$72"]
["pp1_website",{"$f":"'PP1(LP)'!$C$33","v":0},"#'PP1(LP)'!$C$33"]
["pp2_2014_fulltime_staff",{"$f":"'PP2'!$F$77","v":0},"#'PP2'!$F$77"]
["pp2_2014_parttime_staff",{"$f":"'PP2'!$G$77","v":0},"#'PP2'!$G$77"]
["pp2_2014_turnover",{"$f":"'PP2'!$C$77","v":0},"#'PP2'!$C$77"]
["pp2_2015_fulltime_staff",{"$f":"'PP2'!$F$78","v":0},"#'PP2'!$F$78"]
["pp2_2015_parttime_staff",{"$f":"'PP2'!$G$78","v":0},"#'PP2'!$G$78"]
["pp2_2015_turnover",{"$f":"'PP2'!$C$78","v":0},"#'PP2'!$C$78"]
["pp2_2016_fulltime_staff",{"$f":"'PP2'!$F$79","v":0},"#'PP2'!$F$79"]
["pp2_2016_parttime_staff",{"$f":"'PP2'!$G$79","v":0},"#'PP2'!$G$79"]
["pp2_2016_turnover",{"$f":"'PP2'!$C$79","v":0},"#'PP2'!$C$79"]
["pp2_address",{"$f":"'PP2'!$C$19","v":0},"#'PP2'!$C$19"]
["pp2_background1",{"$f":"'PP2'!$B$35","v":0},"#'PP2'!$B$35"]
["pp2_background2",{"$f":"'PP2'!$B$36","v":0},"#'PP2'!$B$36"]
["pp2_bl3_1_1_name",{"$f":"'T2-B(PP2)'!$B$16","v":0},"#'T2-B(PP2)'!$B$16"]
["pp2_bl3_1_1_rate_in",{"$f":"'T2-B(PP2)'!$E$16","v":0},"#'T2-B(PP2)'!$E$16"]
["pp2_bl3_1_1_rate_out",{"$f":"'T2-B(PP2)'!$H$16","v":0},"#'T2-B(PP2)'!$H$16"]
["pp2_bl3_1_1_total",{"$f":"'T2-B(PP2)'!$J$16","v":0},"#'T2-B(PP2)'!$J$16"]
["pp2_bl3_1_1_total_in",{"$f":"'T2-B(PP2)'!$F$16","v":0},"#'T2-B(PP2)'!$F$16"]
["pp2_bl3_1_1_total_out",{"$f":"'T2-B(PP2)'!$I$16","v":0},"#'T2-B(PP2)'!$I$16"]
["pp2_bl3_1_1_unit",{"$f":"'T2-B(PP2)'!$C$16","v":0},"#'T2-B(PP2)'!$C$16"]
["pp2_bl3_1_1_unit_in",{"$f":"'T2-B(PP2)'!$D$16","v":0},"#'T2-B(PP2)'!$D$16"]
["pp2_bl3_1_1_units_out",{"$f":"'T2-B(PP2)'!$G$16","v":0},"#'T2-B(PP2)'!$G$16"]
["pp2_bl3_1_10_name",{"$f":"'T2-B(PP2)'!$B$25","v":0},"#'T2-B(PP2)'!$B$25"]
["pp2_bl3_1_10_rate_in",{"$f":"'T2-B(PP2)'!$E$25","v":0},"#'T2-B(PP2)'!$E$25"]
["pp2_bl3_1_10_rate_out",{"$f":"'T2-B(PP2)'!$H$25","v":0},"#'T2-B(PP2)'!$H$25"]
["pp2_bl3_1_10_total",{"$f":"'T2-B(PP2)'!$J$25","v":0},"#'T2-B(PP2)'!$J$25"]
["pp2_bl3_1_10_total_in",{"$f":"'T2-B(PP2)'!$F$25","v":0},"#'T2-B(PP2)'!$F$25"]
["pp2_bl3_1_10_total_out",{"$f":"'T2-B(PP2)'!$I$25","v":0},"#'T2-B(PP2)'!$I$25"]
["pp2_bl3_1_10_unit",{"$f":"'T2-B(PP2)'!$C$25","v":0},"#'T2-B(PP2)'!$C$25"]
["pp2_bl3_1_10_unit_in",{"$f":"'T2-B(PP2)'!$D$25","v":0},"#'T2-B(PP2)'!$D$25"]
["pp2_bl3_1_10_units_out",{"$f":"'T2-B(PP2)'!$G$25","v":0},"#'T2-B(PP2)'!$G$25"]
["pp2_bl3_1_11_name",{"$f":"'T2-B(PP2)'!$B$26","v":0},"#'T2-B(PP2)'!$B$26"]
["pp2_bl3_1_11_rate_in",{"$f":"'T2-B(PP2)'!$E$26","v":0},"#'T2-B(PP2)'!$E$26"]
["pp2_bl3_1_11_rate_out",{"$f":"'T2-B(PP2)'!$H$26","v":0},"#'T2-B(PP2)'!$H$26"]
["pp2_bl3_1_11_total",{"$f":"'T2-B(PP2)'!$J$26","v":0},"#'T2-B(PP2)'!$J$26"]
["pp2_bl3_1_11_total_in",{"$f":"'T2-B(PP2)'!$F$26","v":0},"#'T2-B(PP2)'!$F$26"]
["pp2_bl3_1_11_total_out",{"$f":"'T2-B(PP2)'!$I$26","v":0},"#'T2-B(PP2)'!$I$26"]
["pp2_bl3_1_11_unit",{"$f":"'T2-B(PP2)'!$C$26","v":0},"#'T2-B(PP2)'!$C$26"]
["pp2_bl3_1_11_unit_in",{"$f":"'T2-B(PP2)'!$D$26","v":0},"#'T2-B(PP2)'!$D$26"]
["pp2_bl3_1_11_units_out",{"$f":"'T2-B(PP2)'!$G$26","v":0},"#'T2-B(PP2)'!$G$26"]
["pp2_bl3_1_12_name",{"$f":"'T2-B(PP2)'!$B$27","v":0},"#'T2-B(PP2)'!$B$27"]
["pp2_bl3_1_12_rate_in",{"$f":"'T2-B(PP2)'!$E$27","v":0},"#'T2-B(PP2)'!$E$27"]
["pp2_bl3_1_12_rate_out",{"$f":"'T2-B(PP2)'!$H$27","v":0},"#'T2-B(PP2)'!$H$27"]
["pp2_bl3_1_12_total",{"$f":"'T2-B(PP2)'!$J$27","v":0},"#'T2-B(PP2)'!$J$27"]
["pp2_bl3_1_12_total_in",{"$f":"'T2-B(PP2)'!$F$27","v":0},"#'T2-B(PP2)'!$F$27"]
["pp2_bl3_1_12_total_out",{"$f":"'T2-B(PP2)'!$I$27","v":0},"#'T2-B(PP2)'!$I$27"]
["pp2_bl3_1_12_unit",{"$f":"'T2-B(PP2)'!$C$27","v":0},"#'T2-B(PP2)'!$C$27"]
["pp2_bl3_1_12_unit_in",{"$f":"'T2-B(PP2)'!$D$27","v":0},"#'T2-B(PP2)'!$D$27"]
["pp2_bl3_1_12_units_out",{"$f":"'T2-B(PP2)'!$G$27","v":0},"#'T2-B(PP2)'!$G$27"]
["pp2_bl3_1_13_name",{"$f":"'T2-B(PP2)'!$B$28","v":0},"#'T2-B(PP2)'!$B$28"]
["pp2_bl3_1_13_rate_in",{"$f":"'T2-B(PP2)'!$E$28","v":0},"#'T2-B(PP2)'!$E$28"]
["pp2_bl3_1_13_rate_out",{"$f":"'T2-B(PP2)'!$H$28","v":0},"#'T2-B(PP2)'!$H$28"]
["pp2_bl3_1_13_total",{"$f":"'T2-B(PP2)'!$J$28","v":0},"#'T2-B(PP2)'!$J$28"]
["pp2_bl3_1_13_total_in",{"$f":"'T2-B(PP2)'!$F$28","v":0},"#'T2-B(PP2)'!$F$28"]
["pp2_bl3_1_13_total_out",{"$f":"'T2-B(PP2)'!$I$28","v":0},"#'T2-B(PP2)'!$I$28"]
["pp2_bl3_1_13_unit",{"$f":"'T2-B(PP2)'!$C$28","v":0},"#'T2-B(PP2)'!$C$28"]
["pp2_bl3_1_13_unit_in",{"$f":"'T2-B(PP2)'!$D$28","v":0},"#'T2-B(PP2)'!$D$28"]
["pp2_bl3_1_13_units_out",{"$f":"'T2-B(PP2)'!$G$28","v":0},"#'T2-B(PP2)'!$G$28"]
["pp2_bl3_1_14_name",{"$f":"'T2-B(PP2)'!$B$29","v":0},"#'T2-B(PP2)'!$B$29"]
["pp2_bl3_1_14_rate_in",{"$f":"'T2-B(PP2)'!$E$29","v":0},"#'T2-B(PP2)'!$E$29"]
["pp2_bl3_1_14_rate_out",{"$f":"'T2-B(PP2)'!$H$29","v":0},"#'T2-B(PP2)'!$H$29"]
["pp2_bl3_1_14_total",{"$f":"'T2-B(PP2)'!$J$29","v":0},"#'T2-B(PP2)'!$J$29"]
["pp2_bl3_1_14_total_in",{"$f":"'T2-B(PP2)'!$F$29","v":0},"#'T2-B(PP2)'!$F$29"]
["pp2_bl3_1_14_total_out",{"$f":"'T2-B(PP2)'!$I$29","v":0},"#'T2-B(PP2)'!$I$29"]
["pp2_bl3_1_14_unit",{"$f":"'T2-B(PP2)'!$C$29","v":0},"#'T2-B(PP2)'!$C$29"]
["pp2_bl3_1_14_unit_in",{"$f":"'T2-B(PP2)'!$D$29","v":0},"#'T2-B(PP2)'!$D$29"]
["pp2_bl3_1_14_units_out",{"$f":"'T2-B(PP2)'!$G$29","v":0},"#'T2-B(PP2)'!$G$29"]
["pp2_bl3_1_15_name",{"$f":"'T2-B(PP2)'!$B$30","v":0},"#'T2-B(PP2)'!$B$30"]
["pp2_bl3_1_15_rate_in",{"$f":"'T2-B(PP2)'!$E$30","v":0},"#'T2-B(PP2)'!$E$30"]
["pp2_bl3_1_15_rate_out",{"$f":"'T2-B(PP2)'!$H$30","v":0},"#'T2-B(PP2)'!$H$30"]
["pp2_bl3_1_15_total",{"$f":"'T2-B(PP2)'!$J$30","v":0},"#'T2-B(PP2)'!$J$30"]
["pp2_bl3_1_15_total_in",{"$f":"'T2-B(PP2)'!$F$30","v":0},"#'T2-B(PP2)'!$F$30"]
["pp2_bl3_1_15_total_out",{"$f":"'T2-B(PP2)'!$I$30","v":0},"#'T2-B(PP2)'!$I$30"]
["pp2_bl3_1_15_unit",{"$f":"'T2-B(PP2)'!$C$30","v":0},"#'T2-B(PP2)'!$C$30"]
["pp2_bl3_1_15_unit_in",{"$f":"'T2-B(PP2)'!$D$30","v":0},"#'T2-B(PP2)'!$D$30"]
["pp2_bl3_1_15_units_out",{"$f":"'T2-B(PP2)'!$G$30","v":0},"#'T2-B(PP2)'!$G$30"]
["pp2_bl3_1_16_name",{"$f":"'T2-B(PP2)'!$B$31","v":0},"#'T2-B(PP2)'!$B$31"]
["pp2_bl3_1_16_rate_in",{"$f":"'T2-B(PP2)'!$E$31","v":0},"#'T2-B(PP2)'!$E$31"]
["pp2_bl3_1_16_rate_out",{"$f":"'T2-B(PP2)'!$H$31","v":0},"#'T2-B(PP2)'!$H$31"]
["pp2_bl3_1_16_total",{"$f":"'T2-B(PP2)'!$J$31","v":0},"#'T2-B(PP2)'!$J$31"]
["pp2_bl3_1_16_total_in",{"$f":"'T2-B(PP2)'!$F$31","v":0},"#'T2-B(PP2)'!$F$31"]
["pp2_bl3_1_16_total_out",{"$f":"'T2-B(PP2)'!$I$31","v":0},"#'T2-B(PP2)'!$I$31"]
["pp2_bl3_1_16_unit",{"$f":"'T2-B(PP2)'!$C$31","v":0},"#'T2-B(PP2)'!$C$31"]
["pp2_bl3_1_16_unit_in",{"$f":"'T2-B(PP2)'!$D$31","v":0},"#'T2-B(PP2)'!$D$31"]
["pp2_bl3_1_16_units_out",{"$f":"'T2-B(PP2)'!$G$31","v":0},"#'T2-B(PP2)'!$G$31"]
["pp2_bl3_1_17_name",{"$f":"'T2-B(PP2)'!$B$32","v":0},"#'T2-B(PP2)'!$B$32"]
["pp2_bl3_1_17_rate_in",{"$f":"'T2-B(PP2)'!$E$32","v":0},"#'T2-B(PP2)'!$E$32"]
["pp2_bl3_1_17_rate_out",{"$f":"'T2-B(PP2)'!$H$32","v":0},"#'T2-B(PP2)'!$H$32"]
["pp2_bl3_1_17_total",{"$f":"'T2-B(PP2)'!$J$32","v":0},"#'T2-B(PP2)'!$J$32"]
["pp2_bl3_1_17_total_in",{"$f":"'T2-B(PP2)'!$F$32","v":0},"#'T2-B(PP2)'!$F$32"]
["pp2_bl3_1_17_total_out",{"$f":"'T2-B(PP2)'!$I$32","v":0},"#'T2-B(PP2)'!$I$32"]
["pp2_bl3_1_17_unit",{"$f":"'T2-B(PP2)'!$C$32","v":0},"#'T2-B(PP2)'!$C$32"]
["pp2_bl3_1_17_unit_in",{"$f":"'T2-B(PP2)'!$D$32","v":0},"#'T2-B(PP2)'!$D$32"]
["pp2_bl3_1_17_units_out",{"$f":"'T2-B(PP2)'!$G$32","v":0},"#'T2-B(PP2)'!$G$32"]
["pp2_bl3_1_18_name",{"$f":"'T2-B(PP2)'!$B$33","v":0},"#'T2-B(PP2)'!$B$33"]
["pp2_bl3_1_18_rate_in",{"$f":"'T2-B(PP2)'!$E$33","v":0},"#'T2-B(PP2)'!$E$33"]
["pp2_bl3_1_18_rate_out",{"$f":"'T2-B(PP2)'!$H$33","v":0},"#'T2-B(PP2)'!$H$33"]
["pp2_bl3_1_18_total",{"$f":"'T2-B(PP2)'!$J$33","v":0},"#'T2-B(PP2)'!$J$33"]
["pp2_bl3_1_18_total_in",{"$f":"'T2-B(PP2)'!$F$33","v":0},"#'T2-B(PP2)'!$F$33"]
["pp2_bl3_1_18_total_out",{"$f":"'T2-B(PP2)'!$I$33","v":0},"#'T2-B(PP2)'!$I$33"]
["pp2_bl3_1_18_unit",{"$f":"'T2-B(PP2)'!$C$33","v":0},"#'T2-B(PP2)'!$C$33"]
["pp2_bl3_1_18_unit_in",{"$f":"'T2-B(PP2)'!$D$33","v":0},"#'T2-B(PP2)'!$D$33"]
["pp2_bl3_1_18_units_out",{"$f":"'T2-B(PP2)'!$G$33","v":0},"#'T2-B(PP2)'!$G$33"]
["pp2_bl3_1_19_name",{"$f":"'T2-B(PP2)'!$B$34","v":0},"#'T2-B(PP2)'!$B$34"]
["pp2_bl3_1_19_rate_in",{"$f":"'T2-B(PP2)'!$E$34","v":0},"#'T2-B(PP2)'!$E$34"]
["pp2_bl3_1_19_rate_out",{"$f":"'T2-B(PP2)'!$H$34","v":0},"#'T2-B(PP2)'!$H$34"]
["pp2_bl3_1_19_total",{"$f":"'T2-B(PP2)'!$J$34","v":0},"#'T2-B(PP2)'!$J$34"]
["pp2_bl3_1_19_total_in",{"$f":"'T2-B(PP2)'!$F$34","v":0},"#'T2-B(PP2)'!$F$34"]
["pp2_bl3_1_19_total_out",{"$f":"'T2-B(PP2)'!$I$34","v":0},"#'T2-B(PP2)'!$I$34"]
["pp2_bl3_1_19_unit",{"$f":"'T2-B(PP2)'!$C$34","v":0},"#'T2-B(PP2)'!$C$34"]
["pp2_bl3_1_19_unit_in",{"$f":"'T2-B(PP2)'!$D$34","v":0},"#'T2-B(PP2)'!$D$34"]
["pp2_bl3_1_19_units_out",{"$f":"'T2-B(PP2)'!$G$34","v":0},"#'T2-B(PP2)'!$G$34"]
["pp2_bl3_1_2_name",{"$f":"'T2-B(PP2)'!$B$17","v":0},"#'T2-B(PP2)'!$B$17"]
["pp2_bl3_1_2_rate_in",{"$f":"'T2-B(PP2)'!$E$17","v":0},"#'T2-B(PP2)'!$E$17"]
["pp2_bl3_1_2_rate_out",{"$f":"'T2-B(PP2)'!$H$17","v":0},"#'T2-B(PP2)'!$H$17"]
["pp2_bl3_1_2_total",{"$f":"'T2-B(PP2)'!$J$17","v":0},"#'T2-B(PP2)'!$J$17"]
["pp2_bl3_1_2_total_in",{"$f":"'T2-B(PP2)'!$F$17","v":0},"#'T2-B(PP2)'!$F$17"]
["pp2_bl3_1_2_total_out",{"$f":"'T2-B(PP2)'!$I$17","v":0},"#'T2-B(PP2)'!$I$17"]
["pp2_bl3_1_2_unit",{"$f":"'T2-B(PP2)'!$C$17","v":0},"#'T2-B(PP2)'!$C$17"]
["pp2_bl3_1_2_unit_in",{"$f":"'T2-B(PP2)'!$D$17","v":0},"#'T2-B(PP2)'!$D$17"]
["pp2_bl3_1_2_units_out",{"$f":"'T2-B(PP2)'!$G$17","v":0},"#'T2-B(PP2)'!$G$17"]
["pp2_bl3_1_20_name",{"$f":"'T2-B(PP2)'!$B$35","v":0},"#'T2-B(PP2)'!$B$35"]
["pp2_bl3_1_20_rate_in",{"$f":"'T2-B(PP2)'!$E$35","v":0},"#'T2-B(PP2)'!$E$35"]
["pp2_bl3_1_20_rate_out",{"$f":"'T2-B(PP2)'!$H$35","v":0},"#'T2-B(PP2)'!$H$35"]
["pp2_bl3_1_20_total",{"$f":"'T2-B(PP2)'!$J$35","v":0},"#'T2-B(PP2)'!$J$35"]
["pp2_bl3_1_20_total_in",{"$f":"'T2-B(PP2)'!$F$35","v":0},"#'T2-B(PP2)'!$F$35"]
["pp2_bl3_1_20_total_out",{"$f":"'T2-B(PP2)'!$I$35","v":0},"#'T2-B(PP2)'!$I$35"]
["pp2_bl3_1_20_unit",{"$f":"'T2-B(PP2)'!$C$35","v":0},"#'T2-B(PP2)'!$C$35"]
["pp2_bl3_1_20_unit_in",{"$f":"'T2-B(PP2)'!$D$35","v":0},"#'T2-B(PP2)'!$D$35"]
["pp2_bl3_1_20_units_out",{"$f":"'T2-B(PP2)'!$G$35","v":0},"#'T2-B(PP2)'!$G$35"]
["pp2_bl3_1_3_name",{"$f":"'T2-B(PP2)'!$B$18","v":0},"#'T2-B(PP2)'!$B$18"]
["pp2_bl3_1_3_rate_in",{"$f":"'T2-B(PP2)'!$E$18","v":0},"#'T2-B(PP2)'!$E$18"]
["pp2_bl3_1_3_rate_out",{"$f":"'T2-B(PP2)'!$H$18","v":0},"#'T2-B(PP2)'!$H$18"]
["pp2_bl3_1_3_total",{"$f":"'T2-B(PP2)'!$J$18","v":0},"#'T2-B(PP2)'!$J$18"]
["pp2_bl3_1_3_total_in",{"$f":"'T2-B(PP2)'!$F$18","v":0},"#'T2-B(PP2)'!$F$18"]
["pp2_bl3_1_3_total_out",{"$f":"'T2-B(PP2)'!$I$18","v":0},"#'T2-B(PP2)'!$I$18"]
["pp2_bl3_1_3_unit",{"$f":"'T2-B(PP2)'!$C$18","v":0},"#'T2-B(PP2)'!$C$18"]
["pp2_bl3_1_3_unit_in",{"$f":"'T2-B(PP2)'!$D$18","v":0},"#'T2-B(PP2)'!$D$18"]
["pp2_bl3_1_3_units_out",{"$f":"'T2-B(PP2)'!$G$18","v":0},"#'T2-B(PP2)'!$G$18"]
["pp2_bl3_1_4_name",{"$f":"'T2-B(PP2)'!$B$19","v":0},"#'T2-B(PP2)'!$B$19"]
["pp2_bl3_1_4_rate_in",{"$f":"'T2-B(PP2)'!$E$19","v":0},"#'T2-B(PP2)'!$E$19"]
["pp2_bl3_1_4_rate_out",{"$f":"'T2-B(PP2)'!$H$19","v":0},"#'T2-B(PP2)'!$H$19"]
["pp2_bl3_1_4_total",{"$f":"'T2-B(PP2)'!$J$19","v":0},"#'T2-B(PP2)'!$J$19"]
["pp2_bl3_1_4_total_in",{"$f":"'T2-B(PP2)'!$F$19","v":0},"#'T2-B(PP2)'!$F$19"]
["pp2_bl3_1_4_total_out",{"$f":"'T2-B(PP2)'!$I$19","v":0},"#'T2-B(PP2)'!$I$19"]
["pp2_bl3_1_4_unit",{"$f":"'T2-B(PP2)'!$C$19","v":0},"#'T2-B(PP2)'!$C$19"]
["pp2_bl3_1_4_unit_in",{"$f":"'T2-B(PP2)'!$D$19","v":0},"#'T2-B(PP2)'!$D$19"]
["pp2_bl3_1_4_units_out",{"$f":"'T2-B(PP2)'!$G$19","v":0},"#'T2-B(PP2)'!$G$19"]
["pp2_bl3_1_5_name",{"$f":"'T2-B(PP2)'!$B$20","v":0},"#'T2-B(PP2)'!$B$20"]
["pp2_bl3_1_5_rate_in",{"$f":"'T2-B(PP2)'!$E$20","v":0},"#'T2-B(PP2)'!$E$20"]
["pp2_bl3_1_5_rate_out",{"$f":"'T2-B(PP2)'!$H$20","v":0},"#'T2-B(PP2)'!$H$20"]
["pp2_bl3_1_5_total",{"$f":"'T2-B(PP2)'!$J$20","v":0},"#'T2-B(PP2)'!$J$20"]
["pp2_bl3_1_5_total_in",{"$f":"'T2-B(PP2)'!$F$20","v":0},"#'T2-B(PP2)'!$F$20"]
["pp2_bl3_1_5_total_out",{"$f":"'T2-B(PP2)'!$I$20","v":0},"#'T2-B(PP2)'!$I$20"]
["pp2_bl3_1_5_unit",{"$f":"'T2-B(PP2)'!$C$20","v":0},"#'T2-B(PP2)'!$C$20"]
["pp2_bl3_1_5_unit_in",{"$f":"'T2-B(PP2)'!$D$20","v":0},"#'T2-B(PP2)'!$D$20"]
["pp2_bl3_1_5_units_out",{"$f":"'T2-B(PP2)'!$G$20","v":0},"#'T2-B(PP2)'!$G$20"]
["pp2_bl3_1_6_name",{"$f":"'T2-B(PP2)'!$B$21","v":0},"#'T2-B(PP2)'!$B$21"]
["pp2_bl3_1_6_rate_in",{"$f":"'T2-B(PP2)'!$E$21","v":0},"#'T2-B(PP2)'!$E$21"]
["pp2_bl3_1_6_rate_out",{"$f":"'T2-B(PP2)'!$H$21","v":0},"#'T2-B(PP2)'!$H$21"]
["pp2_bl3_1_6_total",{"$f":"'T2-B(PP2)'!$J$21","v":0},"#'T2-B(PP2)'!$J$21"]
["pp2_bl3_1_6_total_in",{"$f":"'T2-B(PP2)'!$F$21","v":0},"#'T2-B(PP2)'!$F$21"]
["pp2_bl3_1_6_total_out",{"$f":"'T2-B(PP2)'!$I$21","v":0},"#'T2-B(PP2)'!$I$21"]
["pp2_bl3_1_6_unit",{"$f":"'T2-B(PP2)'!$C$21","v":0},"#'T2-B(PP2)'!$C$21"]
["pp2_bl3_1_6_unit_in",{"$f":"'T2-B(PP2)'!$D$21","v":0},"#'T2-B(PP2)'!$D$21"]
["pp2_bl3_1_6_units_out",{"$f":"'T2-B(PP2)'!$G$21","v":0},"#'T2-B(PP2)'!$G$21"]
["pp2_bl3_1_7_name",{"$f":"'T2-B(PP2)'!$B$22","v":0},"#'T2-B(PP2)'!$B$22"]
["pp2_bl3_1_7_rate_in",{"$f":"'T2-B(PP2)'!$E$22","v":0},"#'T2-B(PP2)'!$E$22"]
["pp2_bl3_1_7_rate_out",{"$f":"'T2-B(PP2)'!$H$22","v":0},"#'T2-B(PP2)'!$H$22"]
["pp2_bl3_1_7_total",{"$f":"'T2-B(PP2)'!$J$22","v":0},"#'T2-B(PP2)'!$J$22"]
["pp2_bl3_1_7_total_in",{"$f":"'T2-B(PP2)'!$F$22","v":0},"#'T2-B(PP2)'!$F$22"]
["pp2_bl3_1_7_total_out",{"$f":"'T2-B(PP2)'!$I$22","v":0},"#'T2-B(PP2)'!$I$22"]
["pp2_bl3_1_7_unit",{"$f":"'T2-B(PP2)'!$C$22","v":0},"#'T2-B(PP2)'!$C$22"]
["pp2_bl3_1_7_unit_in",{"$f":"'T2-B(PP2)'!$D$22","v":0},"#'T2-B(PP2)'!$D$22"]
["pp2_bl3_1_7_units_out",{"$f":"'T2-B(PP2)'!$G$22","v":0},"#'T2-B(PP2)'!$G$22"]
["pp2_bl3_1_8_name",{"$f":"'T2-B(PP2)'!$B$23","v":0},"#'T2-B(PP2)'!$B$23"]
["pp2_bl3_1_8_rate_in",{"$f":"'T2-B(PP2)'!$E$23","v":0},"#'T2-B(PP2)'!$E$23"]
["pp2_bl3_1_8_rate_out",{"$f":"'T2-B(PP2)'!$H$23","v":0},"#'T2-B(PP2)'!$H$23"]
["pp2_bl3_1_8_total",{"$f":"'T2-B(PP2)'!$J$23","v":0},"#'T2-B(PP2)'!$J$23"]
["pp2_bl3_1_8_total_in",{"$f":"'T2-B(PP2)'!$F$23","v":0},"#'T2-B(PP2)'!$F$23"]
["pp2_bl3_1_8_total_out",{"$f":"'T2-B(PP2)'!$I$23","v":0},"#'T2-B(PP2)'!$I$23"]
["pp2_bl3_1_8_unit",{"$f":"'T2-B(PP2)'!$C$23","v":0},"#'T2-B(PP2)'!$C$23"]
["pp2_bl3_1_8_unit_in",{"$f":"'T2-B(PP2)'!$D$23","v":0},"#'T2-B(PP2)'!$D$23"]
["pp2_bl3_1_8_units_out",{"$f":"'T2-B(PP2)'!$G$23","v":0},"#'T2-B(PP2)'!$G$23"]
["pp2_bl3_1_9_name",{"$f":"'T2-B(PP2)'!$B$24","v":0},"#'T2-B(PP2)'!$B$24"]
["pp2_bl3_1_9_rate_in",{"$f":"'T2-B(PP2)'!$E$24","v":0},"#'T2-B(PP2)'!$E$24"]
["pp2_bl3_1_9_rate_out",{"$f":"'T2-B(PP2)'!$H$24","v":0},"#'T2-B(PP2)'!$H$24"]
["pp2_bl3_1_9_total",{"$f":"'T2-B(PP2)'!$J$24","v":0},"#'T2-B(PP2)'!$J$24"]
["pp2_bl3_1_9_total_in",{"$f":"'T2-B(PP2)'!$F$24","v":0},"#'T2-B(PP2)'!$F$24"]
["pp2_bl3_1_9_total_out",{"$f":"'T2-B(PP2)'!$I$24","v":0},"#'T2-B(PP2)'!$I$24"]
["pp2_bl3_1_9_unit",{"$f":"'T2-B(PP2)'!$C$24","v":0},"#'T2-B(PP2)'!$C$24"]
["pp2_bl3_1_9_unit_in",{"$f":"'T2-B(PP2)'!$D$24","v":0},"#'T2-B(PP2)'!$D$24"]
["pp2_bl3_1_9_units_out",{"$f":"'T2-B(PP2)'!$G$24","v":0},"#'T2-B(PP2)'!$G$24"]
["pp2_bl3_1_total",{"$f":"'T2-B(PP2)'!$J$15","v":0},"#'T2-B(PP2)'!$J$15"]
["pp2_bl3_1_total_in",{"$f":"'T2-B(PP2)'!$F$15","v":0},"#'T2-B(PP2)'!$F$15"]
["pp2_bl3_1_total_out",{"$f":"'T2-B(PP2)'!$I$15","v":0},"#'T2-B(PP2)'!$I$15"]
["pp2_bl3_2_1_name",{"$f":"'T2-B(PP2)'!$B$37","v":0},"#'T2-B(PP2)'!$B$37"]
["pp2_bl3_2_1_rate_in",{"$f":"'T2-B(PP2)'!$E$37","v":0},"#'T2-B(PP2)'!$E$37"]
["pp2_bl3_2_1_rate_out",{"$f":"'T2-B(PP2)'!$H$37","v":0},"#'T2-B(PP2)'!$H$37"]
["pp2_bl3_2_1_total",{"$f":"'T2-B(PP2)'!$J$37","v":0},"#'T2-B(PP2)'!$J$37"]
["pp2_bl3_2_1_total_in",{"$f":"'T2-B(PP2)'!$F$37","v":0},"#'T2-B(PP2)'!$F$37"]
["pp2_bl3_2_1_total_out",{"$f":"'T2-B(PP2)'!$I$37","v":0},"#'T2-B(PP2)'!$I$37"]
["pp2_bl3_2_1_unit",{"$f":"'T2-B(PP2)'!$C$37","v":0},"#'T2-B(PP2)'!$C$37"]
["pp2_bl3_2_1_unit_in",{"$f":"'T2-B(PP2)'!$D$37","v":0},"#'T2-B(PP2)'!$D$37"]
["pp2_bl3_2_1_units_out",{"$f":"'T2-B(PP2)'!$G$37","v":0},"#'T2-B(PP2)'!$G$37"]
["pp2_bl3_2_10_name",{"$f":"'T2-B(PP2)'!$B$46","v":0},"#'T2-B(PP2)'!$B$46"]
["pp2_bl3_2_10_rate_in",{"$f":"'T2-B(PP2)'!$E$46","v":0},"#'T2-B(PP2)'!$E$46"]
["pp2_bl3_2_10_rate_out",{"$f":"'T2-B(PP2)'!$H$46","v":0},"#'T2-B(PP2)'!$H$46"]
["pp2_bl3_2_10_total",{"$f":"'T2-B(PP2)'!$J$46","v":0},"#'T2-B(PP2)'!$J$46"]
["pp2_bl3_2_10_total_in",{"$f":"'T2-B(PP2)'!$F$46","v":0},"#'T2-B(PP2)'!$F$46"]
["pp2_bl3_2_10_total_out",{"$f":"'T2-B(PP2)'!$I$46","v":0},"#'T2-B(PP2)'!$I$46"]
["pp2_bl3_2_10_unit",{"$f":"'T2-B(PP2)'!$C$46","v":0},"#'T2-B(PP2)'!$C$46"]
["pp2_bl3_2_10_unit_in",{"$f":"'T2-B(PP2)'!$D$46","v":0},"#'T2-B(PP2)'!$D$46"]
["pp2_bl3_2_10_units_out",{"$f":"'T2-B(PP2)'!$G$46","v":0},"#'T2-B(PP2)'!$G$46"]
["pp2_bl3_2_11_name",{"$f":"'T2-B(PP2)'!$B$47","v":0},"#'T2-B(PP2)'!$B$47"]
["pp2_bl3_2_11_rate_in",{"$f":"'T2-B(PP2)'!$E$47","v":0},"#'T2-B(PP2)'!$E$47"]
["pp2_bl3_2_11_rate_out",{"$f":"'T2-B(PP2)'!$H$47","v":0},"#'T2-B(PP2)'!$H$47"]
["pp2_bl3_2_11_total",{"$f":"'T2-B(PP2)'!$J$47","v":0},"#'T2-B(PP2)'!$J$47"]
["pp2_bl3_2_11_total_in",{"$f":"'T2-B(PP2)'!$F$47","v":0},"#'T2-B(PP2)'!$F$47"]
["pp2_bl3_2_11_total_out",{"$f":"'T2-B(PP2)'!$I$47","v":0},"#'T2-B(PP2)'!$I$47"]
["pp2_bl3_2_11_unit",{"$f":"'T2-B(PP2)'!$C$47","v":0},"#'T2-B(PP2)'!$C$47"]
["pp2_bl3_2_11_unit_in",{"$f":"'T2-B(PP2)'!$D$47","v":0},"#'T2-B(PP2)'!$D$47"]
["pp2_bl3_2_11_units_out",{"$f":"'T2-B(PP2)'!$G$47","v":0},"#'T2-B(PP2)'!$G$47"]
["pp2_bl3_2_12_name",{"$f":"'T2-B(PP2)'!$B$48","v":0},"#'T2-B(PP2)'!$B$48"]
["pp2_bl3_2_12_rate_in",{"$f":"'T2-B(PP2)'!$E$48","v":0},"#'T2-B(PP2)'!$E$48"]
["pp2_bl3_2_12_rate_out",{"$f":"'T2-B(PP2)'!$H$48","v":0},"#'T2-B(PP2)'!$H$48"]
["pp2_bl3_2_12_total",{"$f":"'T2-B(PP2)'!$J$48","v":0},"#'T2-B(PP2)'!$J$48"]
["pp2_bl3_2_12_total_in",{"$f":"'T2-B(PP2)'!$F$48","v":0},"#'T2-B(PP2)'!$F$48"]
["pp2_bl3_2_12_total_out",{"$f":"'T2-B(PP2)'!$I$48","v":0},"#'T2-B(PP2)'!$I$48"]
["pp2_bl3_2_12_unit",{"$f":"'T2-B(PP2)'!$C$48","v":0},"#'T2-B(PP2)'!$C$48"]
["pp2_bl3_2_12_unit_in",{"$f":"'T2-B(PP2)'!$D$48","v":0},"#'T2-B(PP2)'!$D$48"]
["pp2_bl3_2_12_units_out",{"$f":"'T2-B(PP2)'!$G$48","v":0},"#'T2-B(PP2)'!$G$48"]
["pp2_bl3_2_13_name",{"$f":"'T2-B(PP2)'!$B$49","v":0},"#'T2-B(PP2)'!$B$49"]
["pp2_bl3_2_13_rate_in",{"$f":"'T2-B(PP2)'!$E$49","v":0},"#'T2-B(PP2)'!$E$49"]
["pp2_bl3_2_13_rate_out",{"$f":"'T2-B(PP2)'!$H$49","v":0},"#'T2-B(PP2)'!$H$49"]
["pp2_bl3_2_13_total",{"$f":"'T2-B(PP2)'!$J$49","v":0},"#'T2-B(PP2)'!$J$49"]
["pp2_bl3_2_13_total_in",{"$f":"'T2-B(PP2)'!$F$49","v":0},"#'T2-B(PP2)'!$F$49"]
["pp2_bl3_2_13_total_out",{"$f":"'T2-B(PP2)'!$I$49","v":0},"#'T2-B(PP2)'!$I$49"]
["pp2_bl3_2_13_unit",{"$f":"'T2-B(PP2)'!$C$49","v":0},"#'T2-B(PP2)'!$C$49"]
["pp2_bl3_2_13_unit_in",{"$f":"'T2-B(PP2)'!$D$49","v":0},"#'T2-B(PP2)'!$D$49"]
["pp2_bl3_2_13_units_out",{"$f":"'T2-B(PP2)'!$G$49","v":0},"#'T2-B(PP2)'!$G$49"]
["pp2_bl3_2_14_name",{"$f":"'T2-B(PP2)'!$B$50","v":0},"#'T2-B(PP2)'!$B$50"]
["pp2_bl3_2_14_rate_in",{"$f":"'T2-B(PP2)'!$E$50","v":0},"#'T2-B(PP2)'!$E$50"]
["pp2_bl3_2_14_rate_out",{"$f":"'T2-B(PP2)'!$H$50","v":0},"#'T2-B(PP2)'!$H$50"]
["pp2_bl3_2_14_total",{"$f":"'T2-B(PP2)'!$J$50","v":0},"#'T2-B(PP2)'!$J$50"]
["pp2_bl3_2_14_total_in",{"$f":"'T2-B(PP2)'!$F$50","v":0},"#'T2-B(PP2)'!$F$50"]
["pp2_bl3_2_14_total_out",{"$f":"'T2-B(PP2)'!$I$50","v":0},"#'T2-B(PP2)'!$I$50"]
["pp2_bl3_2_14_unit",{"$f":"'T2-B(PP2)'!$C$50","v":0},"#'T2-B(PP2)'!$C$50"]
["pp2_bl3_2_14_unit_in",{"$f":"'T2-B(PP2)'!$D$50","v":0},"#'T2-B(PP2)'!$D$50"]
["pp2_bl3_2_14_units_out",{"$f":"'T2-B(PP2)'!$G$50","v":0},"#'T2-B(PP2)'!$G$50"]
["pp2_bl3_2_15_name",{"$f":"'T2-B(PP2)'!$B$51","v":0},"#'T2-B(PP2)'!$B$51"]
["pp2_bl3_2_15_rate_in",{"$f":"'T2-B(PP2)'!$E$51","v":0},"#'T2-B(PP2)'!$E$51"]
["pp2_bl3_2_15_rate_out",{"$f":"'T2-B(PP2)'!$H$51","v":0},"#'T2-B(PP2)'!$H$51"]
["pp2_bl3_2_15_total",{"$f":"'T2-B(PP2)'!$J$51","v":0},"#'T2-B(PP2)'!$J$51"]
["pp2_bl3_2_15_total_in",{"$f":"'T2-B(PP2)'!$F$51","v":0},"#'T2-B(PP2)'!$F$51"]
["pp2_bl3_2_15_total_out",{"$f":"'T2-B(PP2)'!$I$51","v":0},"#'T2-B(PP2)'!$I$51"]
["pp2_bl3_2_15_unit",{"$f":"'T2-B(PP2)'!$C$51","v":0},"#'T2-B(PP2)'!$C$51"]
["pp2_bl3_2_15_unit_in",{"$f":"'T2-B(PP2)'!$D$51","v":0},"#'T2-B(PP2)'!$D$51"]
["pp2_bl3_2_15_units_out",{"$f":"'T2-B(PP2)'!$G$51","v":0},"#'T2-B(PP2)'!$G$51"]
["pp2_bl3_2_16_name",{"$f":"'T2-B(PP2)'!$B$52","v":0},"#'T2-B(PP2)'!$B$52"]
["pp2_bl3_2_16_rate_in",{"$f":"'T2-B(PP2)'!$E$52","v":0},"#'T2-B(PP2)'!$E$52"]
["pp2_bl3_2_16_rate_out",{"$f":"'T2-B(PP2)'!$H$52","v":0},"#'T2-B(PP2)'!$H$52"]
["pp2_bl3_2_16_total",{"$f":"'T2-B(PP2)'!$J$52","v":0},"#'T2-B(PP2)'!$J$52"]
["pp2_bl3_2_16_total_in",{"$f":"'T2-B(PP2)'!$F$52","v":0},"#'T2-B(PP2)'!$F$52"]
["pp2_bl3_2_16_total_out",{"$f":"'T2-B(PP2)'!$I$52","v":0},"#'T2-B(PP2)'!$I$52"]
["pp2_bl3_2_16_unit",{"$f":"'T2-B(PP2)'!$C$52","v":0},"#'T2-B(PP2)'!$C$52"]
["pp2_bl3_2_16_unit_in",{"$f":"'T2-B(PP2)'!$D$52","v":0},"#'T2-B(PP2)'!$D$52"]
["pp2_bl3_2_16_units_out",{"$f":"'T2-B(PP2)'!$G$52","v":0},"#'T2-B(PP2)'!$G$52"]
["pp2_bl3_2_17_name",{"$f":"'T2-B(PP2)'!$B$53","v":0},"#'T2-B(PP2)'!$B$53"]
["pp2_bl3_2_17_rate_in",{"$f":"'T2-B(PP2)'!$E$53","v":0},"#'T2-B(PP2)'!$E$53"]
["pp2_bl3_2_17_rate_out",{"$f":"'T2-B(PP2)'!$H$53","v":0},"#'T2-B(PP2)'!$H$53"]
["pp2_bl3_2_17_total",{"$f":"'T2-B(PP2)'!$J$53","v":0},"#'T2-B(PP2)'!$J$53"]
["pp2_bl3_2_17_total_in",{"$f":"'T2-B(PP2)'!$F$53","v":0},"#'T2-B(PP2)'!$F$53"]
["pp2_bl3_2_17_total_out",{"$f":"'T2-B(PP2)'!$I$53","v":0},"#'T2-B(PP2)'!$I$53"]
["pp2_bl3_2_17_unit",{"$f":"'T2-B(PP2)'!$C$53","v":0},"#'T2-B(PP2)'!$C$53"]
["pp2_bl3_2_17_unit_in",{"$f":"'T2-B(PP2)'!$D$53","v":0},"#'T2-B(PP2)'!$D$53"]
["pp2_bl3_2_17_units_out",{"$f":"'T2-B(PP2)'!$G$53","v":0},"#'T2-B(PP2)'!$G$53"]
["pp2_bl3_2_18_name",{"$f":"'T2-B(PP2)'!$B$54","v":0},"#'T2-B(PP2)'!$B$54"]
["pp2_bl3_2_18_rate_in",{"$f":"'T2-B(PP2)'!$E$54","v":0},"#'T2-B(PP2)'!$E$54"]
["pp2_bl3_2_18_rate_out",{"$f":"'T2-B(PP2)'!$H$54","v":0},"#'T2-B(PP2)'!$H$54"]
["pp2_bl3_2_18_total",{"$f":"'T2-B(PP2)'!$J$54","v":0},"#'T2-B(PP2)'!$J$54"]
["pp2_bl3_2_18_total_in",{"$f":"'T2-B(PP2)'!$F$54","v":0},"#'T2-B(PP2)'!$F$54"]
["pp2_bl3_2_18_total_out",{"$f":"'T2-B(PP2)'!$I$54","v":0},"#'T2-B(PP2)'!$I$54"]
["pp2_bl3_2_18_unit",{"$f":"'T2-B(PP2)'!$C$54","v":0},"#'T2-B(PP2)'!$C$54"]
["pp2_bl3_2_18_unit_in",{"$f":"'T2-B(PP2)'!$D$54","v":0},"#'T2-B(PP2)'!$D$54"]
["pp2_bl3_2_18_units_out",{"$f":"'T2-B(PP2)'!$G$54","v":0},"#'T2-B(PP2)'!$G$54"]
["pp2_bl3_2_19_name",{"$f":"'T2-B(PP2)'!$B$55","v":0},"#'T2-B(PP2)'!$B$55"]
["pp2_bl3_2_19_rate_in",{"$f":"'T2-B(PP2)'!$E$55","v":0},"#'T2-B(PP2)'!$E$55"]
["pp2_bl3_2_19_rate_out",{"$f":"'T2-B(PP2)'!$H$55","v":0},"#'T2-B(PP2)'!$H$55"]
["pp2_bl3_2_19_total",{"$f":"'T2-B(PP2)'!$J$55","v":0},"#'T2-B(PP2)'!$J$55"]
["pp2_bl3_2_19_total_in",{"$f":"'T2-B(PP2)'!$F$55","v":0},"#'T2-B(PP2)'!$F$55"]
["pp2_bl3_2_19_total_out",{"$f":"'T2-B(PP2)'!$I$55","v":0},"#'T2-B(PP2)'!$I$55"]
["pp2_bl3_2_19_unit",{"$f":"'T2-B(PP2)'!$C$55","v":0},"#'T2-B(PP2)'!$C$55"]
["pp2_bl3_2_19_unit_in",{"$f":"'T2-B(PP2)'!$D$55","v":0},"#'T2-B(PP2)'!$D$55"]
["pp2_bl3_2_19_units_out",{"$f":"'T2-B(PP2)'!$G$55","v":0},"#'T2-B(PP2)'!$G$55"]
["pp2_bl3_2_2_name",{"$f":"'T2-B(PP2)'!$B$38","v":0},"#'T2-B(PP2)'!$B$38"]
["pp2_bl3_2_2_rate_in",{"$f":"'T2-B(PP2)'!$E$38","v":0},"#'T2-B(PP2)'!$E$38"]
["pp2_bl3_2_2_rate_out",{"$f":"'T2-B(PP2)'!$H$38","v":0},"#'T2-B(PP2)'!$H$38"]
["pp2_bl3_2_2_total",{"$f":"'T2-B(PP2)'!$J$38","v":0},"#'T2-B(PP2)'!$J$38"]
["pp2_bl3_2_2_total_in",{"$f":"'T2-B(PP2)'!$F$38","v":0},"#'T2-B(PP2)'!$F$38"]
["pp2_bl3_2_2_total_out",{"$f":"'T2-B(PP2)'!$I$38","v":0},"#'T2-B(PP2)'!$I$38"]
["pp2_bl3_2_2_unit",{"$f":"'T2-B(PP2)'!$C$38","v":0},"#'T2-B(PP2)'!$C$38"]
["pp2_bl3_2_2_unit_in",{"$f":"'T2-B(PP2)'!$D$38","v":0},"#'T2-B(PP2)'!$D$38"]
["pp2_bl3_2_2_units_out",{"$f":"'T2-B(PP2)'!$G$38","v":0},"#'T2-B(PP2)'!$G$38"]
["pp2_bl3_2_20_name",{"$f":"'T2-B(PP2)'!$B$56","v":0},"#'T2-B(PP2)'!$B$56"]
["pp2_bl3_2_20_rate_in",{"$f":"'T2-B(PP2)'!$E$56","v":0},"#'T2-B(PP2)'!$E$56"]
["pp2_bl3_2_20_rate_out",{"$f":"'T2-B(PP2)'!$H$56","v":0},"#'T2-B(PP2)'!$H$56"]
["pp2_bl3_2_20_total",{"$f":"'T2-B(PP2)'!$J$56","v":0},"#'T2-B(PP2)'!$J$56"]
["pp2_bl3_2_20_total_in",{"$f":"'T2-B(PP2)'!$F$56","v":0},"#'T2-B(PP2)'!$F$56"]
["pp2_bl3_2_20_total_out",{"$f":"'T2-B(PP2)'!$I$56","v":0},"#'T2-B(PP2)'!$I$56"]
["pp2_bl3_2_20_unit",{"$f":"'T2-B(PP2)'!$C$56","v":0},"#'T2-B(PP2)'!$C$56"]
["pp2_bl3_2_20_unit_in",{"$f":"'T2-B(PP2)'!$D$56","v":0},"#'T2-B(PP2)'!$D$56"]
["pp2_bl3_2_20_units_out",{"$f":"'T2-B(PP2)'!$G$56","v":0},"#'T2-B(PP2)'!$G$56"]
["pp2_bl3_2_3_name",{"$f":"'T2-B(PP2)'!$B$39","v":0},"#'T2-B(PP2)'!$B$39"]
["pp2_bl3_2_3_rate_in",{"$f":"'T2-B(PP2)'!$E$39","v":0},"#'T2-B(PP2)'!$E$39"]
["pp2_bl3_2_3_rate_out",{"$f":"'T2-B(PP2)'!$H$39","v":0},"#'T2-B(PP2)'!$H$39"]
["pp2_bl3_2_3_total",{"$f":"'T2-B(PP2)'!$J$39","v":0},"#'T2-B(PP2)'!$J$39"]
["pp2_bl3_2_3_total_in",{"$f":"'T2-B(PP2)'!$F$39","v":0},"#'T2-B(PP2)'!$F$39"]
["pp2_bl3_2_3_total_out",{"$f":"'T2-B(PP2)'!$I$39","v":0},"#'T2-B(PP2)'!$I$39"]
["pp2_bl3_2_3_unit",{"$f":"'T2-B(PP2)'!$C$39","v":0},"#'T2-B(PP2)'!$C$39"]
["pp2_bl3_2_3_unit_in",{"$f":"'T2-B(PP2)'!$D$39","v":0},"#'T2-B(PP2)'!$D$39"]
["pp2_bl3_2_3_units_out",{"$f":"'T2-B(PP2)'!$G$39","v":0},"#'T2-B(PP2)'!$G$39"]
["pp2_bl3_2_4_name",{"$f":"'T2-B(PP2)'!$B$40","v":0},"#'T2-B(PP2)'!$B$40"]
["pp2_bl3_2_4_rate_in",{"$f":"'T2-B(PP2)'!$E$40","v":0},"#'T2-B(PP2)'!$E$40"]
["pp2_bl3_2_4_rate_out",{"$f":"'T2-B(PP2)'!$H$40","v":0},"#'T2-B(PP2)'!$H$40"]
["pp2_bl3_2_4_total",{"$f":"'T2-B(PP2)'!$J$40","v":0},"#'T2-B(PP2)'!$J$40"]
["pp2_bl3_2_4_total_in",{"$f":"'T2-B(PP2)'!$F$40","v":0},"#'T2-B(PP2)'!$F$40"]
["pp2_bl3_2_4_total_out",{"$f":"'T2-B(PP2)'!$I$40","v":0},"#'T2-B(PP2)'!$I$40"]
["pp2_bl3_2_4_unit",{"$f":"'T2-B(PP2)'!$C$40","v":0},"#'T2-B(PP2)'!$C$40"]
["pp2_bl3_2_4_unit_in",{"$f":"'T2-B(PP2)'!$D$40","v":0},"#'T2-B(PP2)'!$D$40"]
["pp2_bl3_2_4_units_out",{"$f":"'T2-B(PP2)'!$G$40","v":0},"#'T2-B(PP2)'!$G$40"]
["pp2_bl3_2_5_name",{"$f":"'T2-B(PP2)'!$B$41","v":0},"#'T2-B(PP2)'!$B$41"]
["pp2_bl3_2_5_rate_in",{"$f":"'T2-B(PP2)'!$E$41","v":0},"#'T2-B(PP2)'!$E$41"]
["pp2_bl3_2_5_rate_out",{"$f":"'T2-B(PP2)'!$H$41","v":0},"#'T2-B(PP2)'!$H$41"]
["pp2_bl3_2_5_total",{"$f":"'T2-B(PP2)'!$J$41","v":0},"#'T2-B(PP2)'!$J$41"]
["pp2_bl3_2_5_total_in",{"$f":"'T2-B(PP2)'!$F$41","v":0},"#'T2-B(PP2)'!$F$41"]
["pp2_bl3_2_5_total_out",{"$f":"'T2-B(PP2)'!$I$41","v":0},"#'T2-B(PP2)'!$I$41"]
["pp2_bl3_2_5_unit",{"$f":"'T2-B(PP2)'!$C$41","v":0},"#'T2-B(PP2)'!$C$41"]
["pp2_bl3_2_5_unit_in",{"$f":"'T2-B(PP2)'!$D$41","v":0},"#'T2-B(PP2)'!$D$41"]
["pp2_bl3_2_5_units_out",{"$f":"'T2-B(PP2)'!$G$41","v":0},"#'T2-B(PP2)'!$G$41"]
["pp2_bl3_2_6_name",{"$f":"'T2-B(PP2)'!$B$42","v":0},"#'T2-B(PP2)'!$B$42"]
["pp2_bl3_2_6_rate_in",{"$f":"'T2-B(PP2)'!$E$42","v":0},"#'T2-B(PP2)'!$E$42"]
["pp2_bl3_2_6_rate_out",{"$f":"'T2-B(PP2)'!$H$42","v":0},"#'T2-B(PP2)'!$H$42"]
["pp2_bl3_2_6_total",{"$f":"'T2-B(PP2)'!$J$42","v":0},"#'T2-B(PP2)'!$J$42"]
["pp2_bl3_2_6_total_in",{"$f":"'T2-B(PP2)'!$F$42","v":0},"#'T2-B(PP2)'!$F$42"]
["pp2_bl3_2_6_total_out",{"$f":"'T2-B(PP2)'!$I$42","v":0},"#'T2-B(PP2)'!$I$42"]
["pp2_bl3_2_6_unit",{"$f":"'T2-B(PP2)'!$C$42","v":0},"#'T2-B(PP2)'!$C$42"]
["pp2_bl3_2_6_unit_in",{"$f":"'T2-B(PP2)'!$D$42","v":0},"#'T2-B(PP2)'!$D$42"]
["pp2_bl3_2_6_units_out",{"$f":"'T2-B(PP2)'!$G$42","v":0},"#'T2-B(PP2)'!$G$42"]
["pp2_bl3_2_7_name",{"$f":"'T2-B(PP2)'!$B$43","v":0},"#'T2-B(PP2)'!$B$43"]
["pp2_bl3_2_7_rate_in",{"$f":"'T2-B(PP2)'!$E$43","v":0},"#'T2-B(PP2)'!$E$43"]
["pp2_bl3_2_7_rate_out",{"$f":"'T2-B(PP2)'!$H$43","v":0},"#'T2-B(PP2)'!$H$43"]
["pp2_bl3_2_7_total",{"$f":"'T2-B(PP2)'!$J$43","v":0},"#'T2-B(PP2)'!$J$43"]
["pp2_bl3_2_7_total_in",{"$f":"'T2-B(PP2)'!$F$43","v":0},"#'T2-B(PP2)'!$F$43"]
["pp2_bl3_2_7_total_out",{"$f":"'T2-B(PP2)'!$I$43","v":0},"#'T2-B(PP2)'!$I$43"]
["pp2_bl3_2_7_unit",{"$f":"'T2-B(PP2)'!$C$43","v":0},"#'T2-B(PP2)'!$C$43"]
["pp2_bl3_2_7_unit_in",{"$f":"'T2-B(PP2)'!$D$43","v":0},"#'T2-B(PP2)'!$D$43"]
["pp2_bl3_2_7_units_out",{"$f":"'T2-B(PP2)'!$G$43","v":0},"#'T2-B(PP2)'!$G$43"]
["pp2_bl3_2_8_name",{"$f":"'T2-B(PP2)'!$B$44","v":0},"#'T2-B(PP2)'!$B$44"]
["pp2_bl3_2_8_rate_in",{"$f":"'T2-B(PP2)'!$E$44","v":0},"#'T2-B(PP2)'!$E$44"]
["pp2_bl3_2_8_rate_out",{"$f":"'T2-B(PP2)'!$H$44","v":0},"#'T2-B(PP2)'!$H$44"]
["pp2_bl3_2_8_total",{"$f":"'T2-B(PP2)'!$J$44","v":0},"#'T2-B(PP2)'!$J$44"]
["pp2_bl3_2_8_total_in",{"$f":"'T2-B(PP2)'!$F$44","v":0},"#'T2-B(PP2)'!$F$44"]
["pp2_bl3_2_8_total_out",{"$f":"'T2-B(PP2)'!$I$44","v":0},"#'T2-B(PP2)'!$I$44"]
["pp2_bl3_2_8_unit",{"$f":"'T2-B(PP2)'!$C$44","v":0},"#'T2-B(PP2)'!$C$44"]
["pp2_bl3_2_8_unit_in",{"$f":"'T2-B(PP2)'!$D$44","v":0},"#'T2-B(PP2)'!$D$44"]
["pp2_bl3_2_8_units_out",{"$f":"'T2-B(PP2)'!$G$44","v":0},"#'T2-B(PP2)'!$G$44"]
["pp2_bl3_2_9_name",{"$f":"'T2-B(PP2)'!$B$45","v":0},"#'T2-B(PP2)'!$B$45"]
["pp2_bl3_2_9_rate_in",{"$f":"'T2-B(PP2)'!$E$45","v":0},"#'T2-B(PP2)'!$E$45"]
["pp2_bl3_2_9_rate_out",{"$f":"'T2-B(PP2)'!$H$45","v":0},"#'T2-B(PP2)'!$H$45"]
["pp2_bl3_2_9_total",{"$f":"'T2-B(PP2)'!$J$45","v":0},"#'T2-B(PP2)'!$J$45"]
["pp2_bl3_2_9_total_in",{"$f":"'T2-B(PP2)'!$F$45","v":0},"#'T2-B(PP2)'!$F$45"]
["pp2_bl3_2_9_total_out",{"$f":"'T2-B(PP2)'!$I$45","v":0},"#'T2-B(PP2)'!$I$45"]
["pp2_bl3_2_9_unit",{"$f":"'T2-B(PP2)'!$C$45","v":0},"#'T2-B(PP2)'!$C$45"]
["pp2_bl3_2_9_unit_in",{"$f":"'T2-B(PP2)'!$D$45","v":0},"#'T2-B(PP2)'!$D$45"]
["pp2_bl3_2_9_units_out",{"$f":"'T2-B(PP2)'!$G$45","v":0},"#'T2-B(PP2)'!$G$45"]
["pp2_bl3_2_total",{"$f":"'T2-B(PP2)'!$J$36","v":0},"#'T2-B(PP2)'!$J$36"]
["pp2_bl3_2_total_in",{"$f":"'T2-B(PP2)'!$F$36","v":0},"#'T2-B(PP2)'!$F$36"]
["pp2_bl3_2_total_out",{"$f":"'T2-B(PP2)'!$I$36","v":0},"#'T2-B(PP2)'!$I$36"]
["pp2_bl3_3_1_name",{"$f":"'T2-B(PP2)'!$B$58","v":0},"#'T2-B(PP2)'!$B$58"]
["pp2_bl3_3_1_rate_in",{"$f":"'T2-B(PP2)'!$E$58","v":0},"#'T2-B(PP2)'!$E$58"]
["pp2_bl3_3_1_rate_out",{"$f":"'T2-B(PP2)'!$H$58","v":0},"#'T2-B(PP2)'!$H$58"]
["pp2_bl3_3_1_total",{"$f":"'T2-B(PP2)'!$J$58","v":0},"#'T2-B(PP2)'!$J$58"]
["pp2_bl3_3_1_total_in",{"$f":"'T2-B(PP2)'!$F$58","v":0},"#'T2-B(PP2)'!$F$58"]
["pp2_bl3_3_1_total_out",{"$f":"'T2-B(PP2)'!$I$58","v":0},"#'T2-B(PP2)'!$I$58"]
["pp2_bl3_3_1_unit",{"$f":"'T2-B(PP2)'!$C$58","v":0},"#'T2-B(PP2)'!$C$58"]
["pp2_bl3_3_1_unit_in",{"$f":"'T2-B(PP2)'!$D$58","v":0},"#'T2-B(PP2)'!$D$58"]
["pp2_bl3_3_1_units_out",{"$f":"'T2-B(PP2)'!$G$58","v":0},"#'T2-B(PP2)'!$G$58"]
["pp2_bl3_3_10_name",{"$f":"'T2-B(PP2)'!$B$67","v":0},"#'T2-B(PP2)'!$B$67"]
["pp2_bl3_3_10_rate_in",{"$f":"'T2-B(PP2)'!$E$67","v":0},"#'T2-B(PP2)'!$E$67"]
["pp2_bl3_3_10_rate_out",{"$f":"'T2-B(PP2)'!$H$67","v":0},"#'T2-B(PP2)'!$H$67"]
["pp2_bl3_3_10_total",{"$f":"'T2-B(PP2)'!$J$67","v":0},"#'T2-B(PP2)'!$J$67"]
["pp2_bl3_3_10_total_in",{"$f":"'T2-B(PP2)'!$F$67","v":0},"#'T2-B(PP2)'!$F$67"]
["pp2_bl3_3_10_total_out",{"$f":"'T2-B(PP2)'!$I$67","v":0},"#'T2-B(PP2)'!$I$67"]
["pp2_bl3_3_10_unit",{"$f":"'T2-B(PP2)'!$C$67","v":0},"#'T2-B(PP2)'!$C$67"]
["pp2_bl3_3_10_unit_in",{"$f":"'T2-B(PP2)'!$D$67","v":0},"#'T2-B(PP2)'!$D$67"]
["pp2_bl3_3_10_units_out",{"$f":"'T2-B(PP2)'!$G$67","v":0},"#'T2-B(PP2)'!$G$67"]
["pp2_bl3_3_11_name",{"$f":"'T2-B(PP2)'!$B$68","v":0},"#'T2-B(PP2)'!$B$68"]
["pp2_bl3_3_11_rate_in",{"$f":"'T2-B(PP2)'!$E$68","v":0},"#'T2-B(PP2)'!$E$68"]
["pp2_bl3_3_11_rate_out",{"$f":"'T2-B(PP2)'!$H$68","v":0},"#'T2-B(PP2)'!$H$68"]
["pp2_bl3_3_11_total",{"$f":"'T2-B(PP2)'!$J$68","v":0},"#'T2-B(PP2)'!$J$68"]
["pp2_bl3_3_11_total_in",{"$f":"'T2-B(PP2)'!$F$68","v":0},"#'T2-B(PP2)'!$F$68"]
["pp2_bl3_3_11_total_out",{"$f":"'T2-B(PP2)'!$I$68","v":0},"#'T2-B(PP2)'!$I$68"]
["pp2_bl3_3_11_unit",{"$f":"'T2-B(PP2)'!$C$68","v":0},"#'T2-B(PP2)'!$C$68"]
["pp2_bl3_3_11_unit_in",{"$f":"'T2-B(PP2)'!$D$68","v":0},"#'T2-B(PP2)'!$D$68"]
["pp2_bl3_3_11_units_out",{"$f":"'T2-B(PP2)'!$G$68","v":0},"#'T2-B(PP2)'!$G$68"]
["pp2_bl3_3_12_name",{"$f":"'T2-B(PP2)'!$B$69","v":0},"#'T2-B(PP2)'!$B$69"]
["pp2_bl3_3_12_rate_in",{"$f":"'T2-B(PP2)'!$E$69","v":0},"#'T2-B(PP2)'!$E$69"]
["pp2_bl3_3_12_rate_out",{"$f":"'T2-B(PP2)'!$H$69","v":0},"#'T2-B(PP2)'!$H$69"]
["pp2_bl3_3_12_total",{"$f":"'T2-B(PP2)'!$J$69","v":0},"#'T2-B(PP2)'!$J$69"]
["pp2_bl3_3_12_total_in",{"$f":"'T2-B(PP2)'!$F$69","v":0},"#'T2-B(PP2)'!$F$69"]
["pp2_bl3_3_12_total_out",{"$f":"'T2-B(PP2)'!$I$69","v":0},"#'T2-B(PP2)'!$I$69"]
["pp2_bl3_3_12_unit",{"$f":"'T2-B(PP2)'!$C$69","v":0},"#'T2-B(PP2)'!$C$69"]
["pp2_bl3_3_12_unit_in",{"$f":"'T2-B(PP2)'!$D$69","v":0},"#'T2-B(PP2)'!$D$69"]
["pp2_bl3_3_12_units_out",{"$f":"'T2-B(PP2)'!$G$69","v":0},"#'T2-B(PP2)'!$G$69"]
["pp2_bl3_3_13_name",{"$f":"'T2-B(PP2)'!$B$70","v":0},"#'T2-B(PP2)'!$B$70"]
["pp2_bl3_3_13_rate_in",{"$f":"'T2-B(PP2)'!$E$70","v":0},"#'T2-B(PP2)'!$E$70"]
["pp2_bl3_3_13_rate_out",{"$f":"'T2-B(PP2)'!$H$70","v":0},"#'T2-B(PP2)'!$H$70"]
["pp2_bl3_3_13_total",{"$f":"'T2-B(PP2)'!$J$70","v":0},"#'T2-B(PP2)'!$J$70"]
["pp2_bl3_3_13_total_in",{"$f":"'T2-B(PP2)'!$F$70","v":0},"#'T2-B(PP2)'!$F$70"]
["pp2_bl3_3_13_total_out",{"$f":"'T2-B(PP2)'!$I$70","v":0},"#'T2-B(PP2)'!$I$70"]
["pp2_bl3_3_13_unit",{"$f":"'T2-B(PP2)'!$C$70","v":0},"#'T2-B(PP2)'!$C$70"]
["pp2_bl3_3_13_unit_in",{"$f":"'T2-B(PP2)'!$D$70","v":0},"#'T2-B(PP2)'!$D$70"]
["pp2_bl3_3_13_units_out",{"$f":"'T2-B(PP2)'!$G$70","v":0},"#'T2-B(PP2)'!$G$70"]
["pp2_bl3_3_14_name",{"$f":"'T2-B(PP2)'!$B$71","v":0},"#'T2-B(PP2)'!$B$71"]
["pp2_bl3_3_14_rate_in",{"$f":"'T2-B(PP2)'!$E$71","v":0},"#'T2-B(PP2)'!$E$71"]
["pp2_bl3_3_14_rate_out",{"$f":"'T2-B(PP2)'!$H$71","v":0},"#'T2-B(PP2)'!$H$71"]
["pp2_bl3_3_14_total",{"$f":"'T2-B(PP2)'!$J$71","v":0},"#'T2-B(PP2)'!$J$71"]
["pp2_bl3_3_14_total_in",{"$f":"'T2-B(PP2)'!$F$71","v":0},"#'T2-B(PP2)'!$F$71"]
["pp2_bl3_3_14_total_out",{"$f":"'T2-B(PP2)'!$I$71","v":0},"#'T2-B(PP2)'!$I$71"]
["pp2_bl3_3_14_unit",{"$f":"'T2-B(PP2)'!$C$71","v":0},"#'T2-B(PP2)'!$C$71"]
["pp2_bl3_3_14_unit_in",{"$f":"'T2-B(PP2)'!$D$71","v":0},"#'T2-B(PP2)'!$D$71"]
["pp2_bl3_3_14_units_out",{"$f":"'T2-B(PP2)'!$G$71","v":0},"#'T2-B(PP2)'!$G$71"]
["pp2_bl3_3_15_name",{"$f":"'T2-B(PP2)'!$B$72","v":0},"#'T2-B(PP2)'!$B$72"]
["pp2_bl3_3_15_rate_in",{"$f":"'T2-B(PP2)'!$E$72","v":0},"#'T2-B(PP2)'!$E$72"]
["pp2_bl3_3_15_rate_out",{"$f":"'T2-B(PP2)'!$H$72","v":0},"#'T2-B(PP2)'!$H$72"]
["pp2_bl3_3_15_total",{"$f":"'T2-B(PP2)'!$J$72","v":0},"#'T2-B(PP2)'!$J$72"]
["pp2_bl3_3_15_total_in",{"$f":"'T2-B(PP2)'!$F$72","v":0},"#'T2-B(PP2)'!$F$72"]
["pp2_bl3_3_15_total_out",{"$f":"'T2-B(PP2)'!$I$72","v":0},"#'T2-B(PP2)'!$I$72"]
["pp2_bl3_3_15_unit",{"$f":"'T2-B(PP2)'!$C$72","v":0},"#'T2-B(PP2)'!$C$72"]
["pp2_bl3_3_15_unit_in",{"$f":"'T2-B(PP2)'!$D$72","v":0},"#'T2-B(PP2)'!$D$72"]
["pp2_bl3_3_15_units_out",{"$f":"'T2-B(PP2)'!$G$72","v":0},"#'T2-B(PP2)'!$G$72"]
["pp2_bl3_3_16_name",{"$f":"'T2-B(PP2)'!$B$73","v":0},"#'T2-B(PP2)'!$B$73"]
["pp2_bl3_3_16_rate_in",{"$f":"'T2-B(PP2)'!$E$73","v":0},"#'T2-B(PP2)'!$E$73"]
["pp2_bl3_3_16_rate_out",{"$f":"'T2-B(PP2)'!$H$73","v":0},"#'T2-B(PP2)'!$H$73"]
["pp2_bl3_3_16_total",{"$f":"'T2-B(PP2)'!$J$73","v":0},"#'T2-B(PP2)'!$J$73"]
["pp2_bl3_3_16_total_in",{"$f":"'T2-B(PP2)'!$F$73","v":0},"#'T2-B(PP2)'!$F$73"]
["pp2_bl3_3_16_total_out",{"$f":"'T2-B(PP2)'!$I$73","v":0},"#'T2-B(PP2)'!$I$73"]
["pp2_bl3_3_16_unit",{"$f":"'T2-B(PP2)'!$C$73","v":0},"#'T2-B(PP2)'!$C$73"]
["pp2_bl3_3_16_unit_in",{"$f":"'T2-B(PP2)'!$D$73","v":0},"#'T2-B(PP2)'!$D$73"]
["pp2_bl3_3_16_units_out",{"$f":"'T2-B(PP2)'!$G$73","v":0},"#'T2-B(PP2)'!$G$73"]
["pp2_bl3_3_17_name",{"$f":"'T2-B(PP2)'!$B$74","v":0},"#'T2-B(PP2)'!$B$74"]
["pp2_bl3_3_17_rate_in",{"$f":"'T2-B(PP2)'!$E$74","v":0},"#'T2-B(PP2)'!$E$74"]
["pp2_bl3_3_17_rate_out",{"$f":"'T2-B(PP2)'!$H$74","v":0},"#'T2-B(PP2)'!$H$74"]
["pp2_bl3_3_17_total",{"$f":"'T2-B(PP2)'!$J$74","v":0},"#'T2-B(PP2)'!$J$74"]
["pp2_bl3_3_17_total_in",{"$f":"'T2-B(PP2)'!$F$74","v":0},"#'T2-B(PP2)'!$F$74"]
["pp2_bl3_3_17_total_out",{"$f":"'T2-B(PP2)'!$I$74","v":0},"#'T2-B(PP2)'!$I$74"]
["pp2_bl3_3_17_unit",{"$f":"'T2-B(PP2)'!$C$74","v":0},"#'T2-B(PP2)'!$C$74"]
["pp2_bl3_3_17_unit_in",{"$f":"'T2-B(PP2)'!$D$74","v":0},"#'T2-B(PP2)'!$D$74"]
["pp2_bl3_3_17_units_out",{"$f":"'T2-B(PP2)'!$G$74","v":0},"#'T2-B(PP2)'!$G$74"]
["pp2_bl3_3_18_name",{"$f":"'T2-B(PP2)'!$B$75","v":0},"#'T2-B(PP2)'!$B$75"]
["pp2_bl3_3_18_rate_in",{"$f":"'T2-B(PP2)'!$E$75","v":0},"#'T2-B(PP2)'!$E$75"]
["pp2_bl3_3_18_rate_out",{"$f":"'T2-B(PP2)'!$H$75","v":0},"#'T2-B(PP2)'!$H$75"]
["pp2_bl3_3_18_total",{"$f":"'T2-B(PP2)'!$J$75","v":0},"#'T2-B(PP2)'!$J$75"]
["pp2_bl3_3_18_total_in",{"$f":"'T2-B(PP2)'!$F$75","v":0},"#'T2-B(PP2)'!$F$75"]
["pp2_bl3_3_18_total_out",{"$f":"'T2-B(PP2)'!$I$75","v":0},"#'T2-B(PP2)'!$I$75"]
["pp2_bl3_3_18_unit",{"$f":"'T2-B(PP2)'!$C$75","v":0},"#'T2-B(PP2)'!$C$75"]
["pp2_bl3_3_18_unit_in",{"$f":"'T2-B(PP2)'!$D$75","v":0},"#'T2-B(PP2)'!$D$75"]
["pp2_bl3_3_18_units_out",{"$f":"'T2-B(PP2)'!$G$75","v":0},"#'T2-B(PP2)'!$G$75"]
["pp2_bl3_3_19_name",{"$f":"'T2-B(PP2)'!$B$76","v":0},"#'T2-B(PP2)'!$B$76"]
["pp2_bl3_3_19_rate_in",{"$f":"'T2-B(PP2)'!$E$76","v":0},"#'T2-B(PP2)'!$E$76"]
["pp2_bl3_3_19_rate_out",{"$f":"'T2-B(PP2)'!$H$76","v":0},"#'T2-B(PP2)'!$H$76"]
["pp2_bl3_3_19_total",{"$f":"'T2-B(PP2)'!$J$76","v":0},"#'T2-B(PP2)'!$J$76"]
["pp2_bl3_3_19_total_in",{"$f":"'T2-B(PP2)'!$F$76","v":0},"#'T2-B(PP2)'!$F$76"]
["pp2_bl3_3_19_total_out",{"$f":"'T2-B(PP2)'!$I$76","v":0},"#'T2-B(PP2)'!$I$76"]
["pp2_bl3_3_19_unit",{"$f":"'T2-B(PP2)'!$C$76","v":0},"#'T2-B(PP2)'!$C$76"]
["pp2_bl3_3_19_unit_in",{"$f":"'T2-B(PP2)'!$D$76","v":0},"#'T2-B(PP2)'!$D$76"]
["pp2_bl3_3_19_units_out",{"$f":"'T2-B(PP2)'!$G$76","v":0},"#'T2-B(PP2)'!$G$76"]
["pp2_bl3_3_2_name",{"$f":"'T2-B(PP2)'!$B$59","v":0},"#'T2-B(PP2)'!$B$59"]
["pp2_bl3_3_2_rate_in",{"$f":"'T2-B(PP2)'!$E$59","v":0},"#'T2-B(PP2)'!$E$59"]
["pp2_bl3_3_2_rate_out",{"$f":"'T2-B(PP2)'!$H$59","v":0},"#'T2-B(PP2)'!$H$59"]
["pp2_bl3_3_2_total",{"$f":"'T2-B(PP2)'!$J$59","v":0},"#'T2-B(PP2)'!$J$59"]
["pp2_bl3_3_2_total_in",{"$f":"'T2-B(PP2)'!$F$59","v":0},"#'T2-B(PP2)'!$F$59"]
["pp2_bl3_3_2_total_out",{"$f":"'T2-B(PP2)'!$I$59","v":0},"#'T2-B(PP2)'!$I$59"]
["pp2_bl3_3_2_unit",{"$f":"'T2-B(PP2)'!$C$59","v":0},"#'T2-B(PP2)'!$C$59"]
["pp2_bl3_3_2_unit_in",{"$f":"'T2-B(PP2)'!$D$59","v":0},"#'T2-B(PP2)'!$D$59"]
["pp2_bl3_3_2_units_out",{"$f":"'T2-B(PP2)'!$G$59","v":0},"#'T2-B(PP2)'!$G$59"]
["pp2_bl3_3_20_name",{"$f":"'T2-B(PP2)'!$B$77","v":0},"#'T2-B(PP2)'!$B$77"]
["pp2_bl3_3_20_rate_in",{"$f":"'T2-B(PP2)'!$E$77","v":0},"#'T2-B(PP2)'!$E$77"]
["pp2_bl3_3_20_rate_out",{"$f":"'T2-B(PP2)'!$H$77","v":0},"#'T2-B(PP2)'!$H$77"]
["pp2_bl3_3_20_total",{"$f":"'T2-B(PP2)'!$J$77","v":0},"#'T2-B(PP2)'!$J$77"]
["pp2_bl3_3_20_total_in",{"$f":"'T2-B(PP2)'!$F$77","v":0},"#'T2-B(PP2)'!$F$77"]
["pp2_bl3_3_20_total_out",{"$f":"'T2-B(PP2)'!$I$77","v":0},"#'T2-B(PP2)'!$I$77"]
["pp2_bl3_3_20_unit",{"$f":"'T2-B(PP2)'!$C$77","v":0},"#'T2-B(PP2)'!$C$77"]
["pp2_bl3_3_20_unit_in",{"$f":"'T2-B(PP2)'!$D$77","v":0},"#'T2-B(PP2)'!$D$77"]
["pp2_bl3_3_20_units_out",{"$f":"'T2-B(PP2)'!$G$77","v":0},"#'T2-B(PP2)'!$G$77"]
["pp2_bl3_3_3_name",{"$f":"'T2-B(PP2)'!$B$60","v":0},"#'T2-B(PP2)'!$B$60"]
["pp2_bl3_3_3_rate_in",{"$f":"'T2-B(PP2)'!$E$60","v":0},"#'T2-B(PP2)'!$E$60"]
["pp2_bl3_3_3_rate_out",{"$f":"'T2-B(PP2)'!$H$60","v":0},"#'T2-B(PP2)'!$H$60"]
["pp2_bl3_3_3_total",{"$f":"'T2-B(PP2)'!$J$60","v":0},"#'T2-B(PP2)'!$J$60"]
["pp2_bl3_3_3_total_in",{"$f":"'T2-B(PP2)'!$F$60","v":0},"#'T2-B(PP2)'!$F$60"]
["pp2_bl3_3_3_total_out",{"$f":"'T2-B(PP2)'!$I$60","v":0},"#'T2-B(PP2)'!$I$60"]
["pp2_bl3_3_3_unit",{"$f":"'T2-B(PP2)'!$C$60","v":0},"#'T2-B(PP2)'!$C$60"]
["pp2_bl3_3_3_unit_in",{"$f":"'T2-B(PP2)'!$D$60","v":0},"#'T2-B(PP2)'!$D$60"]
["pp2_bl3_3_3_units_out",{"$f":"'T2-B(PP2)'!$G$60","v":0},"#'T2-B(PP2)'!$G$60"]
["pp2_bl3_3_4_name",{"$f":"'T2-B(PP2)'!$B$61","v":0},"#'T2-B(PP2)'!$B$61"]
["pp2_bl3_3_4_rate_in",{"$f":"'T2-B(PP2)'!$E$61","v":0},"#'T2-B(PP2)'!$E$61"]
["pp2_bl3_3_4_rate_out",{"$f":"'T2-B(PP2)'!$H$61","v":0},"#'T2-B(PP2)'!$H$61"]
["pp2_bl3_3_4_total",{"$f":"'T2-B(PP2)'!$J$61","v":0},"#'T2-B(PP2)'!$J$61"]
["pp2_bl3_3_4_total_in",{"$f":"'T2-B(PP2)'!$F$61","v":0},"#'T2-B(PP2)'!$F$61"]
["pp2_bl3_3_4_total_out",{"$f":"'T2-B(PP2)'!$I$61","v":0},"#'T2-B(PP2)'!$I$61"]
["pp2_bl3_3_4_unit",{"$f":"'T2-B(PP2)'!$C$61","v":0},"#'T2-B(PP2)'!$C$61"]
["pp2_bl3_3_4_unit_in",{"$f":"'T2-B(PP2)'!$D$61","v":0},"#'T2-B(PP2)'!$D$61"]
["pp2_bl3_3_4_units_out",{"$f":"'T2-B(PP2)'!$G$61","v":0},"#'T2-B(PP2)'!$G$61"]
["pp2_bl3_3_5_name",{"$f":"'T2-B(PP2)'!$B$62","v":0},"#'T2-B(PP2)'!$B$62"]
["pp2_bl3_3_5_rate_in",{"$f":"'T2-B(PP2)'!$E$62","v":0},"#'T2-B(PP2)'!$E$62"]
["pp2_bl3_3_5_rate_out",{"$f":"'T2-B(PP2)'!$H$62","v":0},"#'T2-B(PP2)'!$H$62"]
["pp2_bl3_3_5_total",{"$f":"'T2-B(PP2)'!$J$62","v":0},"#'T2-B(PP2)'!$J$62"]
["pp2_bl3_3_5_total_in",{"$f":"'T2-B(PP2)'!$F$62","v":0},"#'T2-B(PP2)'!$F$62"]
["pp2_bl3_3_5_total_out",{"$f":"'T2-B(PP2)'!$I$62","v":0},"#'T2-B(PP2)'!$I$62"]
["pp2_bl3_3_5_unit",{"$f":"'T2-B(PP2)'!$C$62","v":0},"#'T2-B(PP2)'!$C$62"]
["pp2_bl3_3_5_unit_in",{"$f":"'T2-B(PP2)'!$D$62","v":0},"#'T2-B(PP2)'!$D$62"]
["pp2_bl3_3_5_units_out",{"$f":"'T2-B(PP2)'!$G$62","v":0},"#'T2-B(PP2)'!$G$62"]
["pp2_bl3_3_6_name",{"$f":"'T2-B(PP2)'!$B$63","v":0},"#'T2-B(PP2)'!$B$63"]
["pp2_bl3_3_6_rate_in",{"$f":"'T2-B(PP2)'!$E$63","v":0},"#'T2-B(PP2)'!$E$63"]
["pp2_bl3_3_6_rate_out",{"$f":"'T2-B(PP2)'!$H$63","v":0},"#'T2-B(PP2)'!$H$63"]
["pp2_bl3_3_6_total",{"$f":"'T2-B(PP2)'!$J$63","v":0},"#'T2-B(PP2)'!$J$63"]
["pp2_bl3_3_6_total_in",{"$f":"'T2-B(PP2)'!$F$63","v":0},"#'T2-B(PP2)'!$F$63"]
["pp2_bl3_3_6_total_out",{"$f":"'T2-B(PP2)'!$I$63","v":0},"#'T2-B(PP2)'!$I$63"]
["pp2_bl3_3_6_unit",{"$f":"'T2-B(PP2)'!$C$63","v":0},"#'T2-B(PP2)'!$C$63"]
["pp2_bl3_3_6_unit_in",{"$f":"'T2-B(PP2)'!$D$63","v":0},"#'T2-B(PP2)'!$D$63"]
["pp2_bl3_3_6_units_out",{"$f":"'T2-B(PP2)'!$G$63","v":0},"#'T2-B(PP2)'!$G$63"]
["pp2_bl3_3_7_name",{"$f":"'T2-B(PP2)'!$B$64","v":0},"#'T2-B(PP2)'!$B$64"]
["pp2_bl3_3_7_rate_in",{"$f":"'T2-B(PP2)'!$E$64","v":0},"#'T2-B(PP2)'!$E$64"]
["pp2_bl3_3_7_rate_out",{"$f":"'T2-B(PP2)'!$H$64","v":0},"#'T2-B(PP2)'!$H$64"]
["pp2_bl3_3_7_total",{"$f":"'T2-B(PP2)'!$J$64","v":0},"#'T2-B(PP2)'!$J$64"]
["pp2_bl3_3_7_total_in",{"$f":"'T2-B(PP2)'!$F$64","v":0},"#'T2-B(PP2)'!$F$64"]
["pp2_bl3_3_7_total_out",{"$f":"'T2-B(PP2)'!$I$64","v":0},"#'T2-B(PP2)'!$I$64"]
["pp2_bl3_3_7_unit",{"$f":"'T2-B(PP2)'!$C$64","v":0},"#'T2-B(PP2)'!$C$64"]
["pp2_bl3_3_7_unit_in",{"$f":"'T2-B(PP2)'!$D$64","v":0},"#'T2-B(PP2)'!$D$64"]
["pp2_bl3_3_7_units_out",{"$f":"'T2-B(PP2)'!$G$64","v":0},"#'T2-B(PP2)'!$G$64"]
["pp2_bl3_3_8_name",{"$f":"'T2-B(PP2)'!$B$65","v":0},"#'T2-B(PP2)'!$B$65"]
["pp2_bl3_3_8_rate_in",{"$f":"'T2-B(PP2)'!$E$65","v":0},"#'T2-B(PP2)'!$E$65"]
["pp2_bl3_3_8_rate_out",{"$f":"'T2-B(PP2)'!$H$65","v":0},"#'T2-B(PP2)'!$H$65"]
["pp2_bl3_3_8_total",{"$f":"'T2-B(PP2)'!$J$65","v":0},"#'T2-B(PP2)'!$J$65"]
["pp2_bl3_3_8_total_in",{"$f":"'T2-B(PP2)'!$F$65","v":0},"#'T2-B(PP2)'!$F$65"]
["pp2_bl3_3_8_total_out",{"$f":"'T2-B(PP2)'!$I$65","v":0},"#'T2-B(PP2)'!$I$65"]
["pp2_bl3_3_8_unit",{"$f":"'T2-B(PP2)'!$C$65","v":0},"#'T2-B(PP2)'!$C$65"]
["pp2_bl3_3_8_unit_in",{"$f":"'T2-B(PP2)'!$D$65","v":0},"#'T2-B(PP2)'!$D$65"]
["pp2_bl3_3_8_units_out",{"$f":"'T2-B(PP2)'!$G$65","v":0},"#'T2-B(PP2)'!$G$65"]
["pp2_bl3_3_9_name",{"$f":"'T2-B(PP2)'!$B$66","v":0},"#'T2-B(PP2)'!$B$66"]
["pp2_bl3_3_9_rate_in",{"$f":"'T2-B(PP2)'!$E$66","v":0},"#'T2-B(PP2)'!$E$66"]
["pp2_bl3_3_9_rate_out",{"$f":"'T2-B(PP2)'!$H$66","v":0},"#'T2-B(PP2)'!$H$66"]
["pp2_bl3_3_9_total",{"$f":"'T2-B(PP2)'!$J$66","v":0},"#'T2-B(PP2)'!$J$66"]
["pp2_bl3_3_9_total_in",{"$f":"'T2-B(PP2)'!$F$66","v":0},"#'T2-B(PP2)'!$F$66"]
["pp2_bl3_3_9_total_out",{"$f":"'T2-B(PP2)'!$I$66","v":0},"#'T2-B(PP2)'!$I$66"]
["pp2_bl3_3_9_unit",{"$f":"'T2-B(PP2)'!$C$66","v":0},"#'T2-B(PP2)'!$C$66"]
["pp2_bl3_3_9_unit_in",{"$f":"'T2-B(PP2)'!$D$66","v":0},"#'T2-B(PP2)'!$D$66"]
["pp2_bl3_3_9_units_out",{"$f":"'T2-B(PP2)'!$G$66","v":0},"#'T2-B(PP2)'!$G$66"]
["pp2_bl3_3_total",{"$f":"'T2-B(PP2)'!$J$57","v":0},"#'T2-B(PP2)'!$J$57"]
["pp2_bl3_3_total_in",{"$f":"'T2-B(PP2)'!$F$57","v":0},"#'T2-B(PP2)'!$F$57"]
["pp2_bl3_3_total_out",{"$f":"'T2-B(PP2)'!$I$57","v":0},"#'T2-B(PP2)'!$I$57"]
["pp2_bl3_4_1_name",{"$f":"'T2-B(PP2)'!$B$79","v":0},"#'T2-B(PP2)'!$B$79"]
["pp2_bl3_4_1_rate_in",{"$f":"'T2-B(PP2)'!$E$79","v":0},"#'T2-B(PP2)'!$E$79"]
["pp2_bl3_4_1_rate_out",{"$f":"'T2-B(PP2)'!$H$79","v":0},"#'T2-B(PP2)'!$H$79"]
["pp2_bl3_4_1_total",{"$f":"'T2-B(PP2)'!$J$79","v":0},"#'T2-B(PP2)'!$J$79"]
["pp2_bl3_4_1_total_in",{"$f":"'T2-B(PP2)'!$F$79","v":0},"#'T2-B(PP2)'!$F$79"]
["pp2_bl3_4_1_total_out",{"$f":"'T2-B(PP2)'!$I$79","v":0},"#'T2-B(PP2)'!$I$79"]
["pp2_bl3_4_1_unit",{"$f":"'T2-B(PP2)'!$C$79","v":0},"#'T2-B(PP2)'!$C$79"]
["pp2_bl3_4_1_unit_in",{"$f":"'T2-B(PP2)'!$D$79","v":0},"#'T2-B(PP2)'!$D$79"]
["pp2_bl3_4_1_units_out",{"$f":"'T2-B(PP2)'!$G$79","v":0},"#'T2-B(PP2)'!$G$79"]
["pp2_bl3_4_10_name",{"$f":"'T2-B(PP2)'!$B$88","v":0},"#'T2-B(PP2)'!$B$88"]
["pp2_bl3_4_10_rate_in",{"$f":"'T2-B(PP2)'!$E$88","v":0},"#'T2-B(PP2)'!$E$88"]
["pp2_bl3_4_10_rate_out",{"$f":"'T2-B(PP2)'!$H$88","v":0},"#'T2-B(PP2)'!$H$88"]
["pp2_bl3_4_10_total",{"$f":"'T2-B(PP2)'!$J$88","v":0},"#'T2-B(PP2)'!$J$88"]
["pp2_bl3_4_10_total_in",{"$f":"'T2-B(PP2)'!$F$88","v":0},"#'T2-B(PP2)'!$F$88"]
["pp2_bl3_4_10_total_out",{"$f":"'T2-B(PP2)'!$I$88","v":0},"#'T2-B(PP2)'!$I$88"]
["pp2_bl3_4_10_unit",{"$f":"'T2-B(PP2)'!$C$88","v":0},"#'T2-B(PP2)'!$C$88"]
["pp2_bl3_4_10_unit_in",{"$f":"'T2-B(PP2)'!$D$88","v":0},"#'T2-B(PP2)'!$D$88"]
["pp2_bl3_4_10_units_out",{"$f":"'T2-B(PP2)'!$G$88","v":0},"#'T2-B(PP2)'!$G$88"]
["pp2_bl3_4_2_name",{"$f":"'T2-B(PP2)'!$B$80","v":0},"#'T2-B(PP2)'!$B$80"]
["pp2_bl3_4_2_rate_in",{"$f":"'T2-B(PP2)'!$E$80","v":0},"#'T2-B(PP2)'!$E$80"]
["pp2_bl3_4_2_rate_out",{"$f":"'T2-B(PP2)'!$H$80","v":0},"#'T2-B(PP2)'!$H$80"]
["pp2_bl3_4_2_total",{"$f":"'T2-B(PP2)'!$J$80","v":0},"#'T2-B(PP2)'!$J$80"]
["pp2_bl3_4_2_total_in",{"$f":"'T2-B(PP2)'!$F$80","v":0},"#'T2-B(PP2)'!$F$80"]
["pp2_bl3_4_2_total_out",{"$f":"'T2-B(PP2)'!$I$80","v":0},"#'T2-B(PP2)'!$I$80"]
["pp2_bl3_4_2_unit",{"$f":"'T2-B(PP2)'!$C$80","v":0},"#'T2-B(PP2)'!$C$80"]
["pp2_bl3_4_2_unit_in",{"$f":"'T2-B(PP2)'!$D$80","v":0},"#'T2-B(PP2)'!$D$80"]
["pp2_bl3_4_2_units_out",{"$f":"'T2-B(PP2)'!$G$80","v":0},"#'T2-B(PP2)'!$G$80"]
["pp2_bl3_4_3_name",{"$f":"'T2-B(PP2)'!$B$81","v":0},"#'T2-B(PP2)'!$B$81"]
["pp2_bl3_4_3_rate_in",{"$f":"'T2-B(PP2)'!$E$81","v":0},"#'T2-B(PP2)'!$E$81"]
["pp2_bl3_4_3_rate_out",{"$f":"'T2-B(PP2)'!$H$81","v":0},"#'T2-B(PP2)'!$H$81"]
["pp2_bl3_4_3_total",{"$f":"'T2-B(PP2)'!$J$81","v":0},"#'T2-B(PP2)'!$J$81"]
["pp2_bl3_4_3_total_in",{"$f":"'T2-B(PP2)'!$F$81","v":0},"#'T2-B(PP2)'!$F$81"]
["pp2_bl3_4_3_total_out",{"$f":"'T2-B(PP2)'!$I$81","v":0},"#'T2-B(PP2)'!$I$81"]
["pp2_bl3_4_3_unit",{"$f":"'T2-B(PP2)'!$C$81","v":0},"#'T2-B(PP2)'!$C$81"]
["pp2_bl3_4_3_unit_in",{"$f":"'T2-B(PP2)'!$D$81","v":0},"#'T2-B(PP2)'!$D$81"]
["pp2_bl3_4_3_units_out",{"$f":"'T2-B(PP2)'!$G$81","v":0},"#'T2-B(PP2)'!$G$81"]
["pp2_bl3_4_4_name",{"$f":"'T2-B(PP2)'!$B$82","v":0},"#'T2-B(PP2)'!$B$82"]
["pp2_bl3_4_4_rate_in",{"$f":"'T2-B(PP2)'!$E$82","v":0},"#'T2-B(PP2)'!$E$82"]
["pp2_bl3_4_4_rate_out",{"$f":"'T2-B(PP2)'!$H$82","v":0},"#'T2-B(PP2)'!$H$82"]
["pp2_bl3_4_4_total",{"$f":"'T2-B(PP2)'!$J$82","v":0},"#'T2-B(PP2)'!$J$82"]
["pp2_bl3_4_4_total_in",{"$f":"'T2-B(PP2)'!$F$82","v":0},"#'T2-B(PP2)'!$F$82"]
["pp2_bl3_4_4_total_out",{"$f":"'T2-B(PP2)'!$I$82","v":0},"#'T2-B(PP2)'!$I$82"]
["pp2_bl3_4_4_unit",{"$f":"'T2-B(PP2)'!$C$82","v":0},"#'T2-B(PP2)'!$C$82"]
["pp2_bl3_4_4_unit_in",{"$f":"'T2-B(PP2)'!$D$82","v":0},"#'T2-B(PP2)'!$D$82"]
["pp2_bl3_4_4_units_out",{"$f":"'T2-B(PP2)'!$G$82","v":0},"#'T2-B(PP2)'!$G$82"]
["pp2_bl3_4_5_name",{"$f":"'T2-B(PP2)'!$B$83","v":0},"#'T2-B(PP2)'!$B$83"]
["pp2_bl3_4_5_rate_in",{"$f":"'T2-B(PP2)'!$E$83","v":0},"#'T2-B(PP2)'!$E$83"]
["pp2_bl3_4_5_rate_out",{"$f":"'T2-B(PP2)'!$H$83","v":0},"#'T2-B(PP2)'!$H$83"]
["pp2_bl3_4_5_total",{"$f":"'T2-B(PP2)'!$J$83","v":0},"#'T2-B(PP2)'!$J$83"]
["pp2_bl3_4_5_total_in",{"$f":"'T2-B(PP2)'!$F$83","v":0},"#'T2-B(PP2)'!$F$83"]
["pp2_bl3_4_5_total_out",{"$f":"'T2-B(PP2)'!$I$83","v":0},"#'T2-B(PP2)'!$I$83"]
["pp2_bl3_4_5_unit",{"$f":"'T2-B(PP2)'!$C$83","v":0},"#'T2-B(PP2)'!$C$83"]
["pp2_bl3_4_5_unit_in",{"$f":"'T2-B(PP2)'!$D$83","v":0},"#'T2-B(PP2)'!$D$83"]
["pp2_bl3_4_5_units_out",{"$f":"'T2-B(PP2)'!$G$83","v":0},"#'T2-B(PP2)'!$G$83"]
["pp2_bl3_4_6_name",{"$f":"'T2-B(PP2)'!$B$84","v":0},"#'T2-B(PP2)'!$B$84"]
["pp2_bl3_4_6_rate_in",{"$f":"'T2-B(PP2)'!$E$84","v":0},"#'T2-B(PP2)'!$E$84"]
["pp2_bl3_4_6_rate_out",{"$f":"'T2-B(PP2)'!$H$84","v":0},"#'T2-B(PP2)'!$H$84"]
["pp2_bl3_4_6_total",{"$f":"'T2-B(PP2)'!$J$84","v":0},"#'T2-B(PP2)'!$J$84"]
["pp2_bl3_4_6_total_in",{"$f":"'T2-B(PP2)'!$F$84","v":0},"#'T2-B(PP2)'!$F$84"]
["pp2_bl3_4_6_total_out",{"$f":"'T2-B(PP2)'!$I$84","v":0},"#'T2-B(PP2)'!$I$84"]
["pp2_bl3_4_6_unit",{"$f":"'T2-B(PP2)'!$C$84","v":0},"#'T2-B(PP2)'!$C$84"]
["pp2_bl3_4_6_unit_in",{"$f":"'T2-B(PP2)'!$D$84","v":0},"#'T2-B(PP2)'!$D$84"]
["pp2_bl3_4_6_units_out",{"$f":"'T2-B(PP2)'!$G$84","v":0},"#'T2-B(PP2)'!$G$84"]
["pp2_bl3_4_7_name",{"$f":"'T2-B(PP2)'!$B$85","v":0},"#'T2-B(PP2)'!$B$85"]
["pp2_bl3_4_7_rate_in",{"$f":"'T2-B(PP2)'!$E$85","v":0},"#'T2-B(PP2)'!$E$85"]
["pp2_bl3_4_7_rate_out",{"$f":"'T2-B(PP2)'!$H$85","v":0},"#'T2-B(PP2)'!$H$85"]
["pp2_bl3_4_7_total",{"$f":"'T2-B(PP2)'!$J$85","v":0},"#'T2-B(PP2)'!$J$85"]
["pp2_bl3_4_7_total_in",{"$f":"'T2-B(PP2)'!$F$85","v":0},"#'T2-B(PP2)'!$F$85"]
["pp2_bl3_4_7_total_out",{"$f":"'T2-B(PP2)'!$I$85","v":0},"#'T2-B(PP2)'!$I$85"]
["pp2_bl3_4_7_unit",{"$f":"'T2-B(PP2)'!$C$85","v":0},"#'T2-B(PP2)'!$C$85"]
["pp2_bl3_4_7_unit_in",{"$f":"'T2-B(PP2)'!$D$85","v":0},"#'T2-B(PP2)'!$D$85"]
["pp2_bl3_4_7_units_out",{"$f":"'T2-B(PP2)'!$G$85","v":0},"#'T2-B(PP2)'!$G$85"]
["pp2_bl3_4_8_name",{"$f":"'T2-B(PP2)'!$B$86","v":0},"#'T2-B(PP2)'!$B$86"]
["pp2_bl3_4_8_rate_in",{"$f":"'T2-B(PP2)'!$E$86","v":0},"#'T2-B(PP2)'!$E$86"]
["pp2_bl3_4_8_rate_out",{"$f":"'T2-B(PP2)'!$H$86","v":0},"#'T2-B(PP2)'!$H$86"]
["pp2_bl3_4_8_total",{"$f":"'T2-B(PP2)'!$J$86","v":0},"#'T2-B(PP2)'!$J$86"]
["pp2_bl3_4_8_total_in",{"$f":"'T2-B(PP2)'!$F$86","v":0},"#'T2-B(PP2)'!$F$86"]
["pp2_bl3_4_8_total_out",{"$f":"'T2-B(PP2)'!$I$86","v":0},"#'T2-B(PP2)'!$I$86"]
["pp2_bl3_4_8_unit",{"$f":"'T2-B(PP2)'!$C$86","v":0},"#'T2-B(PP2)'!$C$86"]
["pp2_bl3_4_8_unit_in",{"$f":"'T2-B(PP2)'!$D$86","v":0},"#'T2-B(PP2)'!$D$86"]
["pp2_bl3_4_8_units_out",{"$f":"'T2-B(PP2)'!$G$86","v":0},"#'T2-B(PP2)'!$G$86"]
["pp2_bl3_4_9_name",{"$f":"'T2-B(PP2)'!$B$87","v":0},"#'T2-B(PP2)'!$B$87"]
["pp2_bl3_4_9_rate_in",{"$f":"'T2-B(PP2)'!$E$87","v":0},"#'T2-B(PP2)'!$E$87"]
["pp2_bl3_4_9_rate_out",{"$f":"'T2-B(PP2)'!$H$87","v":0},"#'T2-B(PP2)'!$H$87"]
["pp2_bl3_4_9_total",{"$f":"'T2-B(PP2)'!$J$87","v":0},"#'T2-B(PP2)'!$J$87"]
["pp2_bl3_4_9_total_in",{"$f":"'T2-B(PP2)'!$F$87","v":0},"#'T2-B(PP2)'!$F$87"]
["pp2_bl3_4_9_total_out",{"$f":"'T2-B(PP2)'!$I$87","v":0},"#'T2-B(PP2)'!$I$87"]
["pp2_bl3_4_9_unit",{"$f":"'T2-B(PP2)'!$C$87","v":0},"#'T2-B(PP2)'!$C$87"]
["pp2_bl3_4_9_unit_in",{"$f":"'T2-B(PP2)'!$D$87","v":0},"#'T2-B(PP2)'!$D$87"]
["pp2_bl3_4_9_units_out",{"$f":"'T2-B(PP2)'!$G$87","v":0},"#'T2-B(PP2)'!$G$87"]
["pp2_bl3_4_total",{"$f":"'T2-B(PP2)'!$J$78","v":0},"#'T2-B(PP2)'!$J$78"]
["pp2_bl3_4_total_in",{"$f":"'T2-B(PP2)'!$F$78","v":0},"#'T2-B(PP2)'!$F$78"]
["pp2_bl3_4_total_out",{"$f":"'T2-B(PP2)'!$I$78","v":0},"#'T2-B(PP2)'!$I$78"]
["pp2_bl3_total",{"$f":"'T2-B(PP2)'!$J$89","v":0},"#'T2-B(PP2)'!$J$89"]
["pp2_bl3_total_in",{"$f":"'T2-B(PP2)'!$F$89","v":0},"#'T2-B(PP2)'!$F$89"]
["pp2_bl3_total_out",{"$f":"'T2-B(PP2)'!$I$89","v":0},"#'T2-B(PP2)'!$I$89"]
["pp2_bl4_1_1_name",{"$f":"'T2-B(PP2)'!$B$94","v":0},"#'T2-B(PP2)'!$B$94"]
["pp2_bl4_1_1_rate_in",{"$f":"'T2-B(PP2)'!$E$94","v":0},"#'T2-B(PP2)'!$E$94"]
["pp2_bl4_1_1_rate_out",{"$f":"'T2-B(PP2)'!$H$94","v":0},"#'T2-B(PP2)'!$H$94"]
["pp2_bl4_1_1_total",{"$f":"'T2-B(PP2)'!$J$94","v":0},"#'T2-B(PP2)'!$J$94"]
["pp2_bl4_1_1_total_in",{"$f":"'T2-B(PP2)'!$F$94","v":0},"#'T2-B(PP2)'!$F$94"]
["pp2_bl4_1_1_total_out",{"$f":"'T2-B(PP2)'!$I$94","v":0},"#'T2-B(PP2)'!$I$94"]
["pp2_bl4_1_1_unit",{"$f":"'T2-B(PP2)'!$C$94","v":0},"#'T2-B(PP2)'!$C$94"]
["pp2_bl4_1_1_unit_in",{"$f":"'T2-B(PP2)'!$D$94","v":0},"#'T2-B(PP2)'!$D$94"]
["pp2_bl4_1_1_units_out",{"$f":"'T2-B(PP2)'!$G$94","v":0},"#'T2-B(PP2)'!$G$94"]
["pp2_bl4_1_10_name",{"$f":"'T2-B(PP2)'!$B$103","v":0},"#'T2-B(PP2)'!$B$103"]
["pp2_bl4_1_10_rate_in",{"$f":"'T2-B(PP2)'!$E$103","v":0},"#'T2-B(PP2)'!$E$103"]
["pp2_bl4_1_10_rate_out",{"$f":"'T2-B(PP2)'!$H$103","v":0},"#'T2-B(PP2)'!$H$103"]
["pp2_bl4_1_10_total",{"$f":"'T2-B(PP2)'!$J$103","v":0},"#'T2-B(PP2)'!$J$103"]
["pp2_bl4_1_10_total_in",{"$f":"'T2-B(PP2)'!$F$103","v":0},"#'T2-B(PP2)'!$F$103"]
["pp2_bl4_1_10_total_out",{"$f":"'T2-B(PP2)'!$I$103","v":0},"#'T2-B(PP2)'!$I$103"]
["pp2_bl4_1_10_unit",{"$f":"'T2-B(PP2)'!$C$103","v":0},"#'T2-B(PP2)'!$C$103"]
["pp2_bl4_1_10_unit_in",{"$f":"'T2-B(PP2)'!$D$103","v":0},"#'T2-B(PP2)'!$D$103"]
["pp2_bl4_1_10_units_out",{"$f":"'T2-B(PP2)'!$G$103","v":0},"#'T2-B(PP2)'!$G$103"]
["pp2_bl4_1_11_name",{"$f":"'T2-B(PP2)'!$B$104","v":0},"#'T2-B(PP2)'!$B$104"]
["pp2_bl4_1_11_rate_in",{"$f":"'T2-B(PP2)'!$E$104","v":0},"#'T2-B(PP2)'!$E$104"]
["pp2_bl4_1_11_rate_out",{"$f":"'T2-B(PP2)'!$H$104","v":0},"#'T2-B(PP2)'!$H$104"]
["pp2_bl4_1_11_total",{"$f":"'T2-B(PP2)'!$J$104","v":0},"#'T2-B(PP2)'!$J$104"]
["pp2_bl4_1_11_total_in",{"$f":"'T2-B(PP2)'!$F$104","v":0},"#'T2-B(PP2)'!$F$104"]
["pp2_bl4_1_11_total_out",{"$f":"'T2-B(PP2)'!$I$104","v":0},"#'T2-B(PP2)'!$I$104"]
["pp2_bl4_1_11_unit",{"$f":"'T2-B(PP2)'!$C$104","v":0},"#'T2-B(PP2)'!$C$104"]
["pp2_bl4_1_11_unit_in",{"$f":"'T2-B(PP2)'!$D$104","v":0},"#'T2-B(PP2)'!$D$104"]
["pp2_bl4_1_11_units_out",{"$f":"'T2-B(PP2)'!$G$104","v":0},"#'T2-B(PP2)'!$G$104"]
["pp2_bl4_1_12_name",{"$f":"'T2-B(PP2)'!$B$105","v":0},"#'T2-B(PP2)'!$B$105"]
["pp2_bl4_1_12_rate_in",{"$f":"'T2-B(PP2)'!$E$105","v":0},"#'T2-B(PP2)'!$E$105"]
["pp2_bl4_1_12_rate_out",{"$f":"'T2-B(PP2)'!$H$105","v":0},"#'T2-B(PP2)'!$H$105"]
["pp2_bl4_1_12_total",{"$f":"'T2-B(PP2)'!$J$105","v":0},"#'T2-B(PP2)'!$J$105"]
["pp2_bl4_1_12_total_in",{"$f":"'T2-B(PP2)'!$F$105","v":0},"#'T2-B(PP2)'!$F$105"]
["pp2_bl4_1_12_total_out",{"$f":"'T2-B(PP2)'!$I$105","v":0},"#'T2-B(PP2)'!$I$105"]
["pp2_bl4_1_12_unit",{"$f":"'T2-B(PP2)'!$C$105","v":0},"#'T2-B(PP2)'!$C$105"]
["pp2_bl4_1_12_unit_in",{"$f":"'T2-B(PP2)'!$D$105","v":0},"#'T2-B(PP2)'!$D$105"]
["pp2_bl4_1_12_units_out",{"$f":"'T2-B(PP2)'!$G$105","v":0},"#'T2-B(PP2)'!$G$105"]
["pp2_bl4_1_13_name",{"$f":"'T2-B(PP2)'!$B$106","v":0},"#'T2-B(PP2)'!$B$106"]
["pp2_bl4_1_13_rate_in",{"$f":"'T2-B(PP2)'!$E$106","v":0},"#'T2-B(PP2)'!$E$106"]
["pp2_bl4_1_13_rate_out",{"$f":"'T2-B(PP2)'!$H$106","v":0},"#'T2-B(PP2)'!$H$106"]
["pp2_bl4_1_13_total",{"$f":"'T2-B(PP2)'!$J$106","v":0},"#'T2-B(PP2)'!$J$106"]
["pp2_bl4_1_13_total_in",{"$f":"'T2-B(PP2)'!$F$106","v":0},"#'T2-B(PP2)'!$F$106"]
["pp2_bl4_1_13_total_out",{"$f":"'T2-B(PP2)'!$I$106","v":0},"#'T2-B(PP2)'!$I$106"]
["pp2_bl4_1_13_unit",{"$f":"'T2-B(PP2)'!$C$106","v":0},"#'T2-B(PP2)'!$C$106"]
["pp2_bl4_1_13_unit_in",{"$f":"'T2-B(PP2)'!$D$106","v":0},"#'T2-B(PP2)'!$D$106"]
["pp2_bl4_1_13_units_out",{"$f":"'T2-B(PP2)'!$G$106","v":0},"#'T2-B(PP2)'!$G$106"]
["pp2_bl4_1_14_name",{"$f":"'T2-B(PP2)'!$B$107","v":0},"#'T2-B(PP2)'!$B$107"]
["pp2_bl4_1_14_rate_in",{"$f":"'T2-B(PP2)'!$E$107","v":0},"#'T2-B(PP2)'!$E$107"]
["pp2_bl4_1_14_rate_out",{"$f":"'T2-B(PP2)'!$H$107","v":0},"#'T2-B(PP2)'!$H$107"]
["pp2_bl4_1_14_total",{"$f":"'T2-B(PP2)'!$J$107","v":0},"#'T2-B(PP2)'!$J$107"]
["pp2_bl4_1_14_total_in",{"$f":"'T2-B(PP2)'!$F$107","v":0},"#'T2-B(PP2)'!$F$107"]
["pp2_bl4_1_14_total_out",{"$f":"'T2-B(PP2)'!$I$107","v":0},"#'T2-B(PP2)'!$I$107"]
["pp2_bl4_1_14_unit",{"$f":"'T2-B(PP2)'!$C$107","v":0},"#'T2-B(PP2)'!$C$107"]
["pp2_bl4_1_14_unit_in",{"$f":"'T2-B(PP2)'!$D$107","v":0},"#'T2-B(PP2)'!$D$107"]
["pp2_bl4_1_14_units_out",{"$f":"'T2-B(PP2)'!$G$107","v":0},"#'T2-B(PP2)'!$G$107"]
["pp2_bl4_1_15_name",{"$f":"'T2-B(PP2)'!$B$108","v":0},"#'T2-B(PP2)'!$B$108"]
["pp2_bl4_1_15_rate_in",{"$f":"'T2-B(PP2)'!$E$108","v":0},"#'T2-B(PP2)'!$E$108"]
["pp2_bl4_1_15_rate_out",{"$f":"'T2-B(PP2)'!$H$108","v":0},"#'T2-B(PP2)'!$H$108"]
["pp2_bl4_1_15_total",{"$f":"'T2-B(PP2)'!$J$108","v":0},"#'T2-B(PP2)'!$J$108"]
["pp2_bl4_1_15_total_in",{"$f":"'T2-B(PP2)'!$F$108","v":0},"#'T2-B(PP2)'!$F$108"]
["pp2_bl4_1_15_total_out",{"$f":"'T2-B(PP2)'!$I$108","v":0},"#'T2-B(PP2)'!$I$108"]
["pp2_bl4_1_15_unit",{"$f":"'T2-B(PP2)'!$C$108","v":0},"#'T2-B(PP2)'!$C$108"]
["pp2_bl4_1_15_unit_in",{"$f":"'T2-B(PP2)'!$D$108","v":0},"#'T2-B(PP2)'!$D$108"]
["pp2_bl4_1_15_units_out",{"$f":"'T2-B(PP2)'!$G$108","v":0},"#'T2-B(PP2)'!$G$108"]
["pp2_bl4_1_16_name",{"$f":"'T2-B(PP2)'!$B$109","v":0},"#'T2-B(PP2)'!$B$109"]
["pp2_bl4_1_16_rate_in",{"$f":"'T2-B(PP2)'!$E$109","v":0},"#'T2-B(PP2)'!$E$109"]
["pp2_bl4_1_16_rate_out",{"$f":"'T2-B(PP2)'!$H$109","v":0},"#'T2-B(PP2)'!$H$109"]
["pp2_bl4_1_16_total",{"$f":"'T2-B(PP2)'!$J$109","v":0},"#'T2-B(PP2)'!$J$109"]
["pp2_bl4_1_16_total_in",{"$f":"'T2-B(PP2)'!$F$109","v":0},"#'T2-B(PP2)'!$F$109"]
["pp2_bl4_1_16_total_out",{"$f":"'T2-B(PP2)'!$I$109","v":0},"#'T2-B(PP2)'!$I$109"]
["pp2_bl4_1_16_unit",{"$f":"'T2-B(PP2)'!$C$109","v":0},"#'T2-B(PP2)'!$C$109"]
["pp2_bl4_1_16_unit_in",{"$f":"'T2-B(PP2)'!$D$109","v":0},"#'T2-B(PP2)'!$D$109"]
["pp2_bl4_1_16_units_out",{"$f":"'T2-B(PP2)'!$G$109","v":0},"#'T2-B(PP2)'!$G$109"]
["pp2_bl4_1_17_name",{"$f":"'T2-B(PP2)'!$B$110","v":0},"#'T2-B(PP2)'!$B$110"]
["pp2_bl4_1_17_rate_in",{"$f":"'T2-B(PP2)'!$E$110","v":0},"#'T2-B(PP2)'!$E$110"]
["pp2_bl4_1_17_rate_out",{"$f":"'T2-B(PP2)'!$H$110","v":0},"#'T2-B(PP2)'!$H$110"]
["pp2_bl4_1_17_total",{"$f":"'T2-B(PP2)'!$J$110","v":0},"#'T2-B(PP2)'!$J$110"]
["pp2_bl4_1_17_total_in",{"$f":"'T2-B(PP2)'!$F$110","v":0},"#'T2-B(PP2)'!$F$110"]
["pp2_bl4_1_17_total_out",{"$f":"'T2-B(PP2)'!$I$110","v":0},"#'T2-B(PP2)'!$I$110"]
["pp2_bl4_1_17_unit",{"$f":"'T2-B(PP2)'!$C$110","v":0},"#'T2-B(PP2)'!$C$110"]
["pp2_bl4_1_17_unit_in",{"$f":"'T2-B(PP2)'!$D$110","v":0},"#'T2-B(PP2)'!$D$110"]
["pp2_bl4_1_17_units_out",{"$f":"'T2-B(PP2)'!$G$110","v":0},"#'T2-B(PP2)'!$G$110"]
["pp2_bl4_1_18_name",{"$f":"'T2-B(PP2)'!$B$111","v":0},"#'T2-B(PP2)'!$B$111"]
["pp2_bl4_1_18_rate_in",{"$f":"'T2-B(PP2)'!$E$111","v":0},"#'T2-B(PP2)'!$E$111"]
["pp2_bl4_1_18_rate_out",{"$f":"'T2-B(PP2)'!$H$111","v":0},"#'T2-B(PP2)'!$H$111"]
["pp2_bl4_1_18_total",{"$f":"'T2-B(PP2)'!$J$111","v":0},"#'T2-B(PP2)'!$J$111"]
["pp2_bl4_1_18_total_in",{"$f":"'T2-B(PP2)'!$F$111","v":0},"#'T2-B(PP2)'!$F$111"]
["pp2_bl4_1_18_total_out",{"$f":"'T2-B(PP2)'!$I$111","v":0},"#'T2-B(PP2)'!$I$111"]
["pp2_bl4_1_18_unit",{"$f":"'T2-B(PP2)'!$C$111","v":0},"#'T2-B(PP2)'!$C$111"]
["pp2_bl4_1_18_unit_in",{"$f":"'T2-B(PP2)'!$D$111","v":0},"#'T2-B(PP2)'!$D$111"]
["pp2_bl4_1_18_units_out",{"$f":"'T2-B(PP2)'!$G$111","v":0},"#'T2-B(PP2)'!$G$111"]
["pp2_bl4_1_19_name",{"$f":"'T2-B(PP2)'!$B$112","v":0},"#'T2-B(PP2)'!$B$112"]
["pp2_bl4_1_19_rate_in",{"$f":"'T2-B(PP2)'!$E$112","v":0},"#'T2-B(PP2)'!$E$112"]
["pp2_bl4_1_19_rate_out",{"$f":"'T2-B(PP2)'!$H$112","v":0},"#'T2-B(PP2)'!$H$112"]
["pp2_bl4_1_19_total",{"$f":"'T2-B(PP2)'!$J$112","v":0},"#'T2-B(PP2)'!$J$112"]
["pp2_bl4_1_19_total_in",{"$f":"'T2-B(PP2)'!$F$112","v":0},"#'T2-B(PP2)'!$F$112"]
["pp2_bl4_1_19_total_out",{"$f":"'T2-B(PP2)'!$I$112","v":0},"#'T2-B(PP2)'!$I$112"]
["pp2_bl4_1_19_unit",{"$f":"'T2-B(PP2)'!$C$112","v":0},"#'T2-B(PP2)'!$C$112"]
["pp2_bl4_1_19_unit_in",{"$f":"'T2-B(PP2)'!$D$112","v":0},"#'T2-B(PP2)'!$D$112"]
["pp2_bl4_1_19_units_out",{"$f":"'T2-B(PP2)'!$G$112","v":0},"#'T2-B(PP2)'!$G$112"]
["pp2_bl4_1_2_name",{"$f":"'T2-B(PP2)'!$B$95","v":0},"#'T2-B(PP2)'!$B$95"]
["pp2_bl4_1_2_rate_in",{"$f":"'T2-B(PP2)'!$E$95","v":0},"#'T2-B(PP2)'!$E$95"]
["pp2_bl4_1_2_rate_out",{"$f":"'T2-B(PP2)'!$H$95","v":0},"#'T2-B(PP2)'!$H$95"]
["pp2_bl4_1_2_total",{"$f":"'T2-B(PP2)'!$J$95","v":0},"#'T2-B(PP2)'!$J$95"]
["pp2_bl4_1_2_total_in",{"$f":"'T2-B(PP2)'!$F$95","v":0},"#'T2-B(PP2)'!$F$95"]
["pp2_bl4_1_2_total_out",{"$f":"'T2-B(PP2)'!$I$95","v":0},"#'T2-B(PP2)'!$I$95"]
["pp2_bl4_1_2_unit",{"$f":"'T2-B(PP2)'!$C$95","v":0},"#'T2-B(PP2)'!$C$95"]
["pp2_bl4_1_2_unit_in",{"$f":"'T2-B(PP2)'!$D$95","v":0},"#'T2-B(PP2)'!$D$95"]
["pp2_bl4_1_2_units_out",{"$f":"'T2-B(PP2)'!$G$95","v":0},"#'T2-B(PP2)'!$G$95"]
["pp2_bl4_1_20_name",{"$f":"'T2-B(PP2)'!$B$113","v":0},"#'T2-B(PP2)'!$B$113"]
["pp2_bl4_1_20_rate_in",{"$f":"'T2-B(PP2)'!$E$113","v":0},"#'T2-B(PP2)'!$E$113"]
["pp2_bl4_1_20_rate_out",{"$f":"'T2-B(PP2)'!$H$113","v":0},"#'T2-B(PP2)'!$H$113"]
["pp2_bl4_1_20_total",{"$f":"'T2-B(PP2)'!$J$113","v":0},"#'T2-B(PP2)'!$J$113"]
["pp2_bl4_1_20_total_in",{"$f":"'T2-B(PP2)'!$F$113","v":0},"#'T2-B(PP2)'!$F$113"]
["pp2_bl4_1_20_total_out",{"$f":"'T2-B(PP2)'!$I$113","v":0},"#'T2-B(PP2)'!$I$113"]
["pp2_bl4_1_20_unit",{"$f":"'T2-B(PP2)'!$C$113","v":0},"#'T2-B(PP2)'!$C$113"]
["pp2_bl4_1_20_unit_in",{"$f":"'T2-B(PP2)'!$D$113","v":0},"#'T2-B(PP2)'!$D$113"]
["pp2_bl4_1_20_units_out",{"$f":"'T2-B(PP2)'!$G$113","v":0},"#'T2-B(PP2)'!$G$113"]
["pp2_bl4_1_3_name",{"$f":"'T2-B(PP2)'!$B$96","v":0},"#'T2-B(PP2)'!$B$96"]
["pp2_bl4_1_3_rate_in",{"$f":"'T2-B(PP2)'!$E$96","v":0},"#'T2-B(PP2)'!$E$96"]
["pp2_bl4_1_3_rate_out",{"$f":"'T2-B(PP2)'!$H$96","v":0},"#'T2-B(PP2)'!$H$96"]
["pp2_bl4_1_3_total",{"$f":"'T2-B(PP2)'!$J$96","v":0},"#'T2-B(PP2)'!$J$96"]
["pp2_bl4_1_3_total_in",{"$f":"'T2-B(PP2)'!$F$96","v":0},"#'T2-B(PP2)'!$F$96"]
["pp2_bl4_1_3_total_out",{"$f":"'T2-B(PP2)'!$I$96","v":0},"#'T2-B(PP2)'!$I$96"]
["pp2_bl4_1_3_unit",{"$f":"'T2-B(PP2)'!$C$96","v":0},"#'T2-B(PP2)'!$C$96"]
["pp2_bl4_1_3_unit_in",{"$f":"'T2-B(PP2)'!$D$96","v":0},"#'T2-B(PP2)'!$D$96"]
["pp2_bl4_1_3_units_out",{"$f":"'T2-B(PP2)'!$G$96","v":0},"#'T2-B(PP2)'!$G$96"]
["pp2_bl4_1_4_name",{"$f":"'T2-B(PP2)'!$B$97","v":0},"#'T2-B(PP2)'!$B$97"]
["pp2_bl4_1_4_rate_in",{"$f":"'T2-B(PP2)'!$E$97","v":0},"#'T2-B(PP2)'!$E$97"]
["pp2_bl4_1_4_rate_out",{"$f":"'T2-B(PP2)'!$H$97","v":0},"#'T2-B(PP2)'!$H$97"]
["pp2_bl4_1_4_total",{"$f":"'T2-B(PP2)'!$J$97","v":0},"#'T2-B(PP2)'!$J$97"]
["pp2_bl4_1_4_total_in",{"$f":"'T2-B(PP2)'!$F$97","v":0},"#'T2-B(PP2)'!$F$97"]
["pp2_bl4_1_4_total_out",{"$f":"'T2-B(PP2)'!$I$97","v":0},"#'T2-B(PP2)'!$I$97"]
["pp2_bl4_1_4_unit",{"$f":"'T2-B(PP2)'!$C$97","v":0},"#'T2-B(PP2)'!$C$97"]
["pp2_bl4_1_4_unit_in",{"$f":"'T2-B(PP2)'!$D$97","v":0},"#'T2-B(PP2)'!$D$97"]
["pp2_bl4_1_4_units_out",{"$f":"'T2-B(PP2)'!$G$97","v":0},"#'T2-B(PP2)'!$G$97"]
["pp2_bl4_1_5_name",{"$f":"'T2-B(PP2)'!$B$98","v":0},"#'T2-B(PP2)'!$B$98"]
["pp2_bl4_1_5_rate_in",{"$f":"'T2-B(PP2)'!$E$98","v":0},"#'T2-B(PP2)'!$E$98"]
["pp2_bl4_1_5_rate_out",{"$f":"'T2-B(PP2)'!$H$98","v":0},"#'T2-B(PP2)'!$H$98"]
["pp2_bl4_1_5_total",{"$f":"'T2-B(PP2)'!$J$98","v":0},"#'T2-B(PP2)'!$J$98"]
["pp2_bl4_1_5_total_in",{"$f":"'T2-B(PP2)'!$F$98","v":0},"#'T2-B(PP2)'!$F$98"]
["pp2_bl4_1_5_total_out",{"$f":"'T2-B(PP2)'!$I$98","v":0},"#'T2-B(PP2)'!$I$98"]
["pp2_bl4_1_5_unit",{"$f":"'T2-B(PP2)'!$C$98","v":0},"#'T2-B(PP2)'!$C$98"]
["pp2_bl4_1_5_unit_in",{"$f":"'T2-B(PP2)'!$D$98","v":0},"#'T2-B(PP2)'!$D$98"]
["pp2_bl4_1_5_units_out",{"$f":"'T2-B(PP2)'!$G$98","v":0},"#'T2-B(PP2)'!$G$98"]
["pp2_bl4_1_6_name",{"$f":"'T2-B(PP2)'!$B$99","v":0},"#'T2-B(PP2)'!$B$99"]
["pp2_bl4_1_6_rate_in",{"$f":"'T2-B(PP2)'!$E$99","v":0},"#'T2-B(PP2)'!$E$99"]
["pp2_bl4_1_6_rate_out",{"$f":"'T2-B(PP2)'!$H$99","v":0},"#'T2-B(PP2)'!$H$99"]
["pp2_bl4_1_6_total",{"$f":"'T2-B(PP2)'!$J$99","v":0},"#'T2-B(PP2)'!$J$99"]
["pp2_bl4_1_6_total_in",{"$f":"'T2-B(PP2)'!$F$99","v":0},"#'T2-B(PP2)'!$F$99"]
["pp2_bl4_1_6_total_out",{"$f":"'T2-B(PP2)'!$I$99","v":0},"#'T2-B(PP2)'!$I$99"]
["pp2_bl4_1_6_unit",{"$f":"'T2-B(PP2)'!$C$99","v":0},"#'T2-B(PP2)'!$C$99"]
["pp2_bl4_1_6_unit_in",{"$f":"'T2-B(PP2)'!$D$99","v":0},"#'T2-B(PP2)'!$D$99"]
["pp2_bl4_1_6_units_out",{"$f":"'T2-B(PP2)'!$G$99","v":0},"#'T2-B(PP2)'!$G$99"]
["pp2_bl4_1_7_name",{"$f":"'T2-B(PP2)'!$B$100","v":0},"#'T2-B(PP2)'!$B$100"]
["pp2_bl4_1_7_rate_in",{"$f":"'T2-B(PP2)'!$E$100","v":0},"#'T2-B(PP2)'!$E$100"]
["pp2_bl4_1_7_rate_out",{"$f":"'T2-B(PP2)'!$H$100","v":0},"#'T2-B(PP2)'!$H$100"]
["pp2_bl4_1_7_total",{"$f":"'T2-B(PP2)'!$J$100","v":0},"#'T2-B(PP2)'!$J$100"]
["pp2_bl4_1_7_total_in",{"$f":"'T2-B(PP2)'!$F$100","v":0},"#'T2-B(PP2)'!$F$100"]
["pp2_bl4_1_7_total_out",{"$f":"'T2-B(PP2)'!$I$100","v":0},"#'T2-B(PP2)'!$I$100"]
["pp2_bl4_1_7_unit",{"$f":"'T2-B(PP2)'!$C$100","v":0},"#'T2-B(PP2)'!$C$100"]
["pp2_bl4_1_7_unit_in",{"$f":"'T2-B(PP2)'!$D$100","v":0},"#'T2-B(PP2)'!$D$100"]
["pp2_bl4_1_7_units_out",{"$f":"'T2-B(PP2)'!$G$100","v":0},"#'T2-B(PP2)'!$G$100"]
["pp2_bl4_1_8_name",{"$f":"'T2-B(PP2)'!$B$101","v":0},"#'T2-B(PP2)'!$B$101"]
["pp2_bl4_1_8_rate_in",{"$f":"'T2-B(PP2)'!$E$101","v":0},"#'T2-B(PP2)'!$E$101"]
["pp2_bl4_1_8_rate_out",{"$f":"'T2-B(PP2)'!$H$101","v":0},"#'T2-B(PP2)'!$H$101"]
["pp2_bl4_1_8_total",{"$f":"'T2-B(PP2)'!$J$101","v":0},"#'T2-B(PP2)'!$J$101"]
["pp2_bl4_1_8_total_in",{"$f":"'T2-B(PP2)'!$F$101","v":0},"#'T2-B(PP2)'!$F$101"]
["pp2_bl4_1_8_total_out",{"$f":"'T2-B(PP2)'!$I$101","v":0},"#'T2-B(PP2)'!$I$101"]
["pp2_bl4_1_8_unit",{"$f":"'T2-B(PP2)'!$C$101","v":0},"#'T2-B(PP2)'!$C$101"]
["pp2_bl4_1_8_unit_in",{"$f":"'T2-B(PP2)'!$D$101","v":0},"#'T2-B(PP2)'!$D$101"]
["pp2_bl4_1_8_units_out",{"$f":"'T2-B(PP2)'!$G$101","v":0},"#'T2-B(PP2)'!$G$101"]
["pp2_bl4_1_9_name",{"$f":"'T2-B(PP2)'!$B$102","v":0},"#'T2-B(PP2)'!$B$102"]
["pp2_bl4_1_9_rate_in",{"$f":"'T2-B(PP2)'!$E$102","v":0},"#'T2-B(PP2)'!$E$102"]
["pp2_bl4_1_9_rate_out",{"$f":"'T2-B(PP2)'!$H$102","v":0},"#'T2-B(PP2)'!$H$102"]
["pp2_bl4_1_9_total",{"$f":"'T2-B(PP2)'!$J$102","v":0},"#'T2-B(PP2)'!$J$102"]
["pp2_bl4_1_9_total_in",{"$f":"'T2-B(PP2)'!$F$102","v":0},"#'T2-B(PP2)'!$F$102"]
["pp2_bl4_1_9_total_out",{"$f":"'T2-B(PP2)'!$I$102","v":0},"#'T2-B(PP2)'!$I$102"]
["pp2_bl4_1_9_unit",{"$f":"'T2-B(PP2)'!$C$102","v":0},"#'T2-B(PP2)'!$C$102"]
["pp2_bl4_1_9_unit_in",{"$f":"'T2-B(PP2)'!$D$102","v":0},"#'T2-B(PP2)'!$D$102"]
["pp2_bl4_1_9_units_out",{"$f":"'T2-B(PP2)'!$G$102","v":0},"#'T2-B(PP2)'!$G$102"]
["pp2_bl4_1_total",{"$f":"'T2-B(PP2)'!$J$93","v":0},"#'T2-B(PP2)'!$J$93"]
["pp2_bl4_1_total_in",{"$f":"'T2-B(PP2)'!$F$93","v":0},"#'T2-B(PP2)'!$F$93"]
["pp2_bl4_1_total_out",{"$f":"'T2-B(PP2)'!$I$93","v":0},"#'T2-B(PP2)'!$I$93"]
["pp2_bl4_10_1_name",{"$f":"'T2-B(PP2)'!$B$283","v":0},"#'T2-B(PP2)'!$B$283"]
["pp2_bl4_10_1_rate_in",{"$f":"'T2-B(PP2)'!$E$283","v":0},"#'T2-B(PP2)'!$E$283"]
["pp2_bl4_10_1_rate_out",{"$f":"'T2-B(PP2)'!$H$283","v":0},"#'T2-B(PP2)'!$H$283"]
["pp2_bl4_10_1_total",{"$f":"'T2-B(PP2)'!$J$283","v":0},"#'T2-B(PP2)'!$J$283"]
["pp2_bl4_10_1_total_in",{"$f":"'T2-B(PP2)'!$F$283","v":0},"#'T2-B(PP2)'!$F$283"]
["pp2_bl4_10_1_total_out",{"$f":"'T2-B(PP2)'!$I$283","v":0},"#'T2-B(PP2)'!$I$283"]
["pp2_bl4_10_1_unit",{"$f":"'T2-B(PP2)'!$C$283","v":0},"#'T2-B(PP2)'!$C$283"]
["pp2_bl4_10_1_unit_in",{"$f":"'T2-B(PP2)'!$D$283","v":0},"#'T2-B(PP2)'!$D$283"]
["pp2_bl4_10_1_units_out",{"$f":"'T2-B(PP2)'!$G$283","v":0},"#'T2-B(PP2)'!$G$283"]
["pp2_bl4_10_10_name",{"$f":"'T2-B(PP2)'!$B$292","v":0},"#'T2-B(PP2)'!$B$292"]
["pp2_bl4_10_10_rate_in",{"$f":"'T2-B(PP2)'!$E$292","v":0},"#'T2-B(PP2)'!$E$292"]
["pp2_bl4_10_10_rate_out",{"$f":"'T2-B(PP2)'!$H$292","v":0},"#'T2-B(PP2)'!$H$292"]
["pp2_bl4_10_10_total",{"$f":"'T2-B(PP2)'!$J$292","v":0},"#'T2-B(PP2)'!$J$292"]
["pp2_bl4_10_10_total_in",{"$f":"'T2-B(PP2)'!$F$292","v":0},"#'T2-B(PP2)'!$F$292"]
["pp2_bl4_10_10_total_out",{"$f":"'T2-B(PP2)'!$I$292","v":0},"#'T2-B(PP2)'!$I$292"]
["pp2_bl4_10_10_unit",{"$f":"'T2-B(PP2)'!$C$292","v":0},"#'T2-B(PP2)'!$C$292"]
["pp2_bl4_10_10_unit_in",{"$f":"'T2-B(PP2)'!$D$292","v":0},"#'T2-B(PP2)'!$D$292"]
["pp2_bl4_10_10_units_out",{"$f":"'T2-B(PP2)'!$G$292","v":0},"#'T2-B(PP2)'!$G$292"]
["pp2_bl4_10_11_name",{"$f":"'T2-B(PP2)'!$B$293","v":0},"#'T2-B(PP2)'!$B$293"]
["pp2_bl4_10_11_rate_in",{"$f":"'T2-B(PP2)'!$E$293","v":0},"#'T2-B(PP2)'!$E$293"]
["pp2_bl4_10_11_rate_out",{"$f":"'T2-B(PP2)'!$H$293","v":0},"#'T2-B(PP2)'!$H$293"]
["pp2_bl4_10_11_total",{"$f":"'T2-B(PP2)'!$J$293","v":0},"#'T2-B(PP2)'!$J$293"]
["pp2_bl4_10_11_total_in",{"$f":"'T2-B(PP2)'!$F$293","v":0},"#'T2-B(PP2)'!$F$293"]
["pp2_bl4_10_11_total_out",{"$f":"'T2-B(PP2)'!$I$293","v":0},"#'T2-B(PP2)'!$I$293"]
["pp2_bl4_10_11_unit",{"$f":"'T2-B(PP2)'!$C$293","v":0},"#'T2-B(PP2)'!$C$293"]
["pp2_bl4_10_11_unit_in",{"$f":"'T2-B(PP2)'!$D$293","v":0},"#'T2-B(PP2)'!$D$293"]
["pp2_bl4_10_11_units_out",{"$f":"'T2-B(PP2)'!$G$293","v":0},"#'T2-B(PP2)'!$G$293"]
["pp2_bl4_10_12_name",{"$f":"'T2-B(PP2)'!$B$294","v":0},"#'T2-B(PP2)'!$B$294"]
["pp2_bl4_10_12_rate_in",{"$f":"'T2-B(PP2)'!$E$294","v":0},"#'T2-B(PP2)'!$E$294"]
["pp2_bl4_10_12_rate_out",{"$f":"'T2-B(PP2)'!$H$294","v":0},"#'T2-B(PP2)'!$H$294"]
["pp2_bl4_10_12_total",{"$f":"'T2-B(PP2)'!$J$294","v":0},"#'T2-B(PP2)'!$J$294"]
["pp2_bl4_10_12_total_in",{"$f":"'T2-B(PP2)'!$F$294","v":0},"#'T2-B(PP2)'!$F$294"]
["pp2_bl4_10_12_total_out",{"$f":"'T2-B(PP2)'!$I$294","v":0},"#'T2-B(PP2)'!$I$294"]
["pp2_bl4_10_12_unit",{"$f":"'T2-B(PP2)'!$C$294","v":0},"#'T2-B(PP2)'!$C$294"]
["pp2_bl4_10_12_unit_in",{"$f":"'T2-B(PP2)'!$D$294","v":0},"#'T2-B(PP2)'!$D$294"]
["pp2_bl4_10_12_units_out",{"$f":"'T2-B(PP2)'!$G$294","v":0},"#'T2-B(PP2)'!$G$294"]
["pp2_bl4_10_13_name",{"$f":"'T2-B(PP2)'!$B$295","v":0},"#'T2-B(PP2)'!$B$295"]
["pp2_bl4_10_13_rate_in",{"$f":"'T2-B(PP2)'!$E$295","v":0},"#'T2-B(PP2)'!$E$295"]
["pp2_bl4_10_13_rate_out",{"$f":"'T2-B(PP2)'!$H$295","v":0},"#'T2-B(PP2)'!$H$295"]
["pp2_bl4_10_13_total",{"$f":"'T2-B(PP2)'!$J$295","v":0},"#'T2-B(PP2)'!$J$295"]
["pp2_bl4_10_13_total_in",{"$f":"'T2-B(PP2)'!$F$295","v":0},"#'T2-B(PP2)'!$F$295"]
["pp2_bl4_10_13_total_out",{"$f":"'T2-B(PP2)'!$I$295","v":0},"#'T2-B(PP2)'!$I$295"]
["pp2_bl4_10_13_unit",{"$f":"'T2-B(PP2)'!$C$295","v":0},"#'T2-B(PP2)'!$C$295"]
["pp2_bl4_10_13_unit_in",{"$f":"'T2-B(PP2)'!$D$295","v":0},"#'T2-B(PP2)'!$D$295"]
["pp2_bl4_10_13_units_out",{"$f":"'T2-B(PP2)'!$G$295","v":0},"#'T2-B(PP2)'!$G$295"]
["pp2_bl4_10_14_name",{"$f":"'T2-B(PP2)'!$B$296","v":0},"#'T2-B(PP2)'!$B$296"]
["pp2_bl4_10_14_rate_in",{"$f":"'T2-B(PP2)'!$E$296","v":0},"#'T2-B(PP2)'!$E$296"]
["pp2_bl4_10_14_rate_out",{"$f":"'T2-B(PP2)'!$H$296","v":0},"#'T2-B(PP2)'!$H$296"]
["pp2_bl4_10_14_total",{"$f":"'T2-B(PP2)'!$J$296","v":0},"#'T2-B(PP2)'!$J$296"]
["pp2_bl4_10_14_total_in",{"$f":"'T2-B(PP2)'!$F$296","v":0},"#'T2-B(PP2)'!$F$296"]
["pp2_bl4_10_14_total_out",{"$f":"'T2-B(PP2)'!$I$296","v":0},"#'T2-B(PP2)'!$I$296"]
["pp2_bl4_10_14_unit",{"$f":"'T2-B(PP2)'!$C$296","v":0},"#'T2-B(PP2)'!$C$296"]
["pp2_bl4_10_14_unit_in",{"$f":"'T2-B(PP2)'!$D$296","v":0},"#'T2-B(PP2)'!$D$296"]
["pp2_bl4_10_14_units_out",{"$f":"'T2-B(PP2)'!$G$296","v":0},"#'T2-B(PP2)'!$G$296"]
["pp2_bl4_10_15_name",{"$f":"'T2-B(PP2)'!$B$297","v":0},"#'T2-B(PP2)'!$B$297"]
["pp2_bl4_10_15_rate_in",{"$f":"'T2-B(PP2)'!$E$297","v":0},"#'T2-B(PP2)'!$E$297"]
["pp2_bl4_10_15_rate_out",{"$f":"'T2-B(PP2)'!$H$297","v":0},"#'T2-B(PP2)'!$H$297"]
["pp2_bl4_10_15_total",{"$f":"'T2-B(PP2)'!$J$297","v":0},"#'T2-B(PP2)'!$J$297"]
["pp2_bl4_10_15_total_in",{"$f":"'T2-B(PP2)'!$F$297","v":0},"#'T2-B(PP2)'!$F$297"]
["pp2_bl4_10_15_total_out",{"$f":"'T2-B(PP2)'!$I$297","v":0},"#'T2-B(PP2)'!$I$297"]
["pp2_bl4_10_15_unit",{"$f":"'T2-B(PP2)'!$C$297","v":0},"#'T2-B(PP2)'!$C$297"]
["pp2_bl4_10_15_unit_in",{"$f":"'T2-B(PP2)'!$D$297","v":0},"#'T2-B(PP2)'!$D$297"]
["pp2_bl4_10_15_units_out",{"$f":"'T2-B(PP2)'!$G$297","v":0},"#'T2-B(PP2)'!$G$297"]
["pp2_bl4_10_16_name",{"$f":"'T2-B(PP2)'!$B$298","v":0},"#'T2-B(PP2)'!$B$298"]
["pp2_bl4_10_16_rate_in",{"$f":"'T2-B(PP2)'!$E$298","v":0},"#'T2-B(PP2)'!$E$298"]
["pp2_bl4_10_16_rate_out",{"$f":"'T2-B(PP2)'!$H$298","v":0},"#'T2-B(PP2)'!$H$298"]
["pp2_bl4_10_16_total",{"$f":"'T2-B(PP2)'!$J$298","v":0},"#'T2-B(PP2)'!$J$298"]
["pp2_bl4_10_16_total_in",{"$f":"'T2-B(PP2)'!$F$298","v":0},"#'T2-B(PP2)'!$F$298"]
["pp2_bl4_10_16_total_out",{"$f":"'T2-B(PP2)'!$I$298","v":0},"#'T2-B(PP2)'!$I$298"]
["pp2_bl4_10_16_unit",{"$f":"'T2-B(PP2)'!$C$298","v":0},"#'T2-B(PP2)'!$C$298"]
["pp2_bl4_10_16_unit_in",{"$f":"'T2-B(PP2)'!$D$298","v":0},"#'T2-B(PP2)'!$D$298"]
["pp2_bl4_10_16_units_out",{"$f":"'T2-B(PP2)'!$G$298","v":0},"#'T2-B(PP2)'!$G$298"]
["pp2_bl4_10_17_name",{"$f":"'T2-B(PP2)'!$B$299","v":0},"#'T2-B(PP2)'!$B$299"]
["pp2_bl4_10_17_rate_in",{"$f":"'T2-B(PP2)'!$E$299","v":0},"#'T2-B(PP2)'!$E$299"]
["pp2_bl4_10_17_rate_out",{"$f":"'T2-B(PP2)'!$H$299","v":0},"#'T2-B(PP2)'!$H$299"]
["pp2_bl4_10_17_total",{"$f":"'T2-B(PP2)'!$J$299","v":0},"#'T2-B(PP2)'!$J$299"]
["pp2_bl4_10_17_total_in",{"$f":"'T2-B(PP2)'!$F$299","v":0},"#'T2-B(PP2)'!$F$299"]
["pp2_bl4_10_17_total_out",{"$f":"'T2-B(PP2)'!$I$299","v":0},"#'T2-B(PP2)'!$I$299"]
["pp2_bl4_10_17_unit",{"$f":"'T2-B(PP2)'!$C$299","v":0},"#'T2-B(PP2)'!$C$299"]
["pp2_bl4_10_17_unit_in",{"$f":"'T2-B(PP2)'!$D$299","v":0},"#'T2-B(PP2)'!$D$299"]
["pp2_bl4_10_17_units_out",{"$f":"'T2-B(PP2)'!$G$299","v":0},"#'T2-B(PP2)'!$G$299"]
["pp2_bl4_10_18_name",{"$f":"'T2-B(PP2)'!$B$300","v":0},"#'T2-B(PP2)'!$B$300"]
["pp2_bl4_10_18_rate_in",{"$f":"'T2-B(PP2)'!$E$300","v":0},"#'T2-B(PP2)'!$E$300"]
["pp2_bl4_10_18_rate_out",{"$f":"'T2-B(PP2)'!$H$300","v":0},"#'T2-B(PP2)'!$H$300"]
["pp2_bl4_10_18_total",{"$f":"'T2-B(PP2)'!$J$300","v":0},"#'T2-B(PP2)'!$J$300"]
["pp2_bl4_10_18_total_in",{"$f":"'T2-B(PP2)'!$F$300","v":0},"#'T2-B(PP2)'!$F$300"]
["pp2_bl4_10_18_total_out",{"$f":"'T2-B(PP2)'!$I$300","v":0},"#'T2-B(PP2)'!$I$300"]
["pp2_bl4_10_18_unit",{"$f":"'T2-B(PP2)'!$C$300","v":0},"#'T2-B(PP2)'!$C$300"]
["pp2_bl4_10_18_unit_in",{"$f":"'T2-B(PP2)'!$D$300","v":0},"#'T2-B(PP2)'!$D$300"]
["pp2_bl4_10_18_units_out",{"$f":"'T2-B(PP2)'!$G$300","v":0},"#'T2-B(PP2)'!$G$300"]
["pp2_bl4_10_19_name",{"$f":"'T2-B(PP2)'!$B$301","v":0},"#'T2-B(PP2)'!$B$301"]
["pp2_bl4_10_19_rate_in",{"$f":"'T2-B(PP2)'!$E$301","v":0},"#'T2-B(PP2)'!$E$301"]
["pp2_bl4_10_19_rate_out",{"$f":"'T2-B(PP2)'!$H$301","v":0},"#'T2-B(PP2)'!$H$301"]
["pp2_bl4_10_19_total",{"$f":"'T2-B(PP2)'!$J$301","v":0},"#'T2-B(PP2)'!$J$301"]
["pp2_bl4_10_19_total_in",{"$f":"'T2-B(PP2)'!$F$301","v":0},"#'T2-B(PP2)'!$F$301"]
["pp2_bl4_10_19_total_out",{"$f":"'T2-B(PP2)'!$I$301","v":0},"#'T2-B(PP2)'!$I$301"]
["pp2_bl4_10_19_unit",{"$f":"'T2-B(PP2)'!$C$301","v":0},"#'T2-B(PP2)'!$C$301"]
["pp2_bl4_10_19_unit_in",{"$f":"'T2-B(PP2)'!$D$301","v":0},"#'T2-B(PP2)'!$D$301"]
["pp2_bl4_10_19_units_out",{"$f":"'T2-B(PP2)'!$G$301","v":0},"#'T2-B(PP2)'!$G$301"]
["pp2_bl4_10_2_name",{"$f":"'T2-B(PP2)'!$B$284","v":0},"#'T2-B(PP2)'!$B$284"]
["pp2_bl4_10_2_rate_in",{"$f":"'T2-B(PP2)'!$E$284","v":0},"#'T2-B(PP2)'!$E$284"]
["pp2_bl4_10_2_rate_out",{"$f":"'T2-B(PP2)'!$H$284","v":0},"#'T2-B(PP2)'!$H$284"]
["pp2_bl4_10_2_total",{"$f":"'T2-B(PP2)'!$J$284","v":0},"#'T2-B(PP2)'!$J$284"]
["pp2_bl4_10_2_total_in",{"$f":"'T2-B(PP2)'!$F$284","v":0},"#'T2-B(PP2)'!$F$284"]
["pp2_bl4_10_2_total_out",{"$f":"'T2-B(PP2)'!$I$284","v":0},"#'T2-B(PP2)'!$I$284"]
["pp2_bl4_10_2_unit",{"$f":"'T2-B(PP2)'!$C$284","v":0},"#'T2-B(PP2)'!$C$284"]
["pp2_bl4_10_2_unit_in",{"$f":"'T2-B(PP2)'!$D$284","v":0},"#'T2-B(PP2)'!$D$284"]
["pp2_bl4_10_2_units_out",{"$f":"'T2-B(PP2)'!$G$284","v":0},"#'T2-B(PP2)'!$G$284"]
["pp2_bl4_10_20_name",{"$f":"'T2-B(PP2)'!$B$302","v":0},"#'T2-B(PP2)'!$B$302"]
["pp2_bl4_10_20_rate_in",{"$f":"'T2-B(PP2)'!$E$302","v":0},"#'T2-B(PP2)'!$E$302"]
["pp2_bl4_10_20_rate_out",{"$f":"'T2-B(PP2)'!$H$302","v":0},"#'T2-B(PP2)'!$H$302"]
["pp2_bl4_10_20_total",{"$f":"'T2-B(PP2)'!$J$302","v":0},"#'T2-B(PP2)'!$J$302"]
["pp2_bl4_10_20_total_in",{"$f":"'T2-B(PP2)'!$F$302","v":0},"#'T2-B(PP2)'!$F$302"]
["pp2_bl4_10_20_total_out",{"$f":"'T2-B(PP2)'!$I$302","v":0},"#'T2-B(PP2)'!$I$302"]
["pp2_bl4_10_20_unit",{"$f":"'T2-B(PP2)'!$C$302","v":0},"#'T2-B(PP2)'!$C$302"]
["pp2_bl4_10_20_unit_in",{"$f":"'T2-B(PP2)'!$D$302","v":0},"#'T2-B(PP2)'!$D$302"]
["pp2_bl4_10_20_units_out",{"$f":"'T2-B(PP2)'!$G$302","v":0},"#'T2-B(PP2)'!$G$302"]
["pp2_bl4_10_3_name",{"$f":"'T2-B(PP2)'!$B$285","v":0},"#'T2-B(PP2)'!$B$285"]
["pp2_bl4_10_3_rate_in",{"$f":"'T2-B(PP2)'!$E$285","v":0},"#'T2-B(PP2)'!$E$285"]
["pp2_bl4_10_3_rate_out",{"$f":"'T2-B(PP2)'!$H$285","v":0},"#'T2-B(PP2)'!$H$285"]
["pp2_bl4_10_3_total",{"$f":"'T2-B(PP2)'!$J$285","v":0},"#'T2-B(PP2)'!$J$285"]
["pp2_bl4_10_3_total_in",{"$f":"'T2-B(PP2)'!$F$285","v":0},"#'T2-B(PP2)'!$F$285"]
["pp2_bl4_10_3_total_out",{"$f":"'T2-B(PP2)'!$I$285","v":0},"#'T2-B(PP2)'!$I$285"]
["pp2_bl4_10_3_unit",{"$f":"'T2-B(PP2)'!$C$285","v":0},"#'T2-B(PP2)'!$C$285"]
["pp2_bl4_10_3_unit_in",{"$f":"'T2-B(PP2)'!$D$285","v":0},"#'T2-B(PP2)'!$D$285"]
["pp2_bl4_10_3_units_out",{"$f":"'T2-B(PP2)'!$G$285","v":0},"#'T2-B(PP2)'!$G$285"]
["pp2_bl4_10_4_name",{"$f":"'T2-B(PP2)'!$B$286","v":0},"#'T2-B(PP2)'!$B$286"]
["pp2_bl4_10_4_rate_in",{"$f":"'T2-B(PP2)'!$E$286","v":0},"#'T2-B(PP2)'!$E$286"]
["pp2_bl4_10_4_rate_out",{"$f":"'T2-B(PP2)'!$H$286","v":0},"#'T2-B(PP2)'!$H$286"]
["pp2_bl4_10_4_total",{"$f":"'T2-B(PP2)'!$J$286","v":0},"#'T2-B(PP2)'!$J$286"]
["pp2_bl4_10_4_total_in",{"$f":"'T2-B(PP2)'!$F$286","v":0},"#'T2-B(PP2)'!$F$286"]
["pp2_bl4_10_4_total_out",{"$f":"'T2-B(PP2)'!$I$286","v":0},"#'T2-B(PP2)'!$I$286"]
["pp2_bl4_10_4_unit",{"$f":"'T2-B(PP2)'!$C$286","v":0},"#'T2-B(PP2)'!$C$286"]
["pp2_bl4_10_4_unit_in",{"$f":"'T2-B(PP2)'!$D$286","v":0},"#'T2-B(PP2)'!$D$286"]
["pp2_bl4_10_4_units_out",{"$f":"'T2-B(PP2)'!$G$286","v":0},"#'T2-B(PP2)'!$G$286"]
["pp2_bl4_10_5_name",{"$f":"'T2-B(PP2)'!$B$287","v":0},"#'T2-B(PP2)'!$B$287"]
["pp2_bl4_10_5_rate_in",{"$f":"'T2-B(PP2)'!$E$287","v":0},"#'T2-B(PP2)'!$E$287"]
["pp2_bl4_10_5_rate_out",{"$f":"'T2-B(PP2)'!$H$287","v":0},"#'T2-B(PP2)'!$H$287"]
["pp2_bl4_10_5_total",{"$f":"'T2-B(PP2)'!$J$287","v":0},"#'T2-B(PP2)'!$J$287"]
["pp2_bl4_10_5_total_in",{"$f":"'T2-B(PP2)'!$F$287","v":0},"#'T2-B(PP2)'!$F$287"]
["pp2_bl4_10_5_total_out",{"$f":"'T2-B(PP2)'!$I$287","v":0},"#'T2-B(PP2)'!$I$287"]
["pp2_bl4_10_5_unit",{"$f":"'T2-B(PP2)'!$C$287","v":0},"#'T2-B(PP2)'!$C$287"]
["pp2_bl4_10_5_unit_in",{"$f":"'T2-B(PP2)'!$D$287","v":0},"#'T2-B(PP2)'!$D$287"]
["pp2_bl4_10_5_units_out",{"$f":"'T2-B(PP2)'!$G$287","v":0},"#'T2-B(PP2)'!$G$287"]
["pp2_bl4_10_6_name",{"$f":"'T2-B(PP2)'!$B$288","v":0},"#'T2-B(PP2)'!$B$288"]
["pp2_bl4_10_6_rate_in",{"$f":"'T2-B(PP2)'!$E$288","v":0},"#'T2-B(PP2)'!$E$288"]
["pp2_bl4_10_6_rate_out",{"$f":"'T2-B(PP2)'!$H$288","v":0},"#'T2-B(PP2)'!$H$288"]
["pp2_bl4_10_6_total",{"$f":"'T2-B(PP2)'!$J$288","v":0},"#'T2-B(PP2)'!$J$288"]
["pp2_bl4_10_6_total_in",{"$f":"'T2-B(PP2)'!$F$288","v":0},"#'T2-B(PP2)'!$F$288"]
["pp2_bl4_10_6_total_out",{"$f":"'T2-B(PP2)'!$I$288","v":0},"#'T2-B(PP2)'!$I$288"]
["pp2_bl4_10_6_unit",{"$f":"'T2-B(PP2)'!$C$288","v":0},"#'T2-B(PP2)'!$C$288"]
["pp2_bl4_10_6_unit_in",{"$f":"'T2-B(PP2)'!$D$288","v":0},"#'T2-B(PP2)'!$D$288"]
["pp2_bl4_10_6_units_out",{"$f":"'T2-B(PP2)'!$G$288","v":0},"#'T2-B(PP2)'!$G$288"]
["pp2_bl4_10_7_name",{"$f":"'T2-B(PP2)'!$B$289","v":0},"#'T2-B(PP2)'!$B$289"]
["pp2_bl4_10_7_rate_in",{"$f":"'T2-B(PP2)'!$E$289","v":0},"#'T2-B(PP2)'!$E$289"]
["pp2_bl4_10_7_rate_out",{"$f":"'T2-B(PP2)'!$H$289","v":0},"#'T2-B(PP2)'!$H$289"]
["pp2_bl4_10_7_total",{"$f":"'T2-B(PP2)'!$J$289","v":0},"#'T2-B(PP2)'!$J$289"]
["pp2_bl4_10_7_total_in",{"$f":"'T2-B(PP2)'!$F$289","v":0},"#'T2-B(PP2)'!$F$289"]
["pp2_bl4_10_7_total_out",{"$f":"'T2-B(PP2)'!$I$289","v":0},"#'T2-B(PP2)'!$I$289"]
["pp2_bl4_10_7_unit",{"$f":"'T2-B(PP2)'!$C$289","v":0},"#'T2-B(PP2)'!$C$289"]
["pp2_bl4_10_7_unit_in",{"$f":"'T2-B(PP2)'!$D$289","v":0},"#'T2-B(PP2)'!$D$289"]
["pp2_bl4_10_7_units_out",{"$f":"'T2-B(PP2)'!$G$289","v":0},"#'T2-B(PP2)'!$G$289"]
["pp2_bl4_10_8_name",{"$f":"'T2-B(PP2)'!$B$290","v":0},"#'T2-B(PP2)'!$B$290"]
["pp2_bl4_10_8_rate_in",{"$f":"'T2-B(PP2)'!$E$290","v":0},"#'T2-B(PP2)'!$E$290"]
["pp2_bl4_10_8_rate_out",{"$f":"'T2-B(PP2)'!$H$290","v":0},"#'T2-B(PP2)'!$H$290"]
["pp2_bl4_10_8_total",{"$f":"'T2-B(PP2)'!$J$290","v":0},"#'T2-B(PP2)'!$J$290"]
["pp2_bl4_10_8_total_in",{"$f":"'T2-B(PP2)'!$F$290","v":0},"#'T2-B(PP2)'!$F$290"]
["pp2_bl4_10_8_total_out",{"$f":"'T2-B(PP2)'!$I$290","v":0},"#'T2-B(PP2)'!$I$290"]
["pp2_bl4_10_8_unit",{"$f":"'T2-B(PP2)'!$C$290","v":0},"#'T2-B(PP2)'!$C$290"]
["pp2_bl4_10_8_unit_in",{"$f":"'T2-B(PP2)'!$D$290","v":0},"#'T2-B(PP2)'!$D$290"]
["pp2_bl4_10_8_units_out",{"$f":"'T2-B(PP2)'!$G$290","v":0},"#'T2-B(PP2)'!$G$290"]
["pp2_bl4_10_9_name",{"$f":"'T2-B(PP2)'!$B$291","v":0},"#'T2-B(PP2)'!$B$291"]
["pp2_bl4_10_9_rate_in",{"$f":"'T2-B(PP2)'!$E$291","v":0},"#'T2-B(PP2)'!$E$291"]
["pp2_bl4_10_9_rate_out",{"$f":"'T2-B(PP2)'!$H$291","v":0},"#'T2-B(PP2)'!$H$291"]
["pp2_bl4_10_9_total",{"$f":"'T2-B(PP2)'!$J$291","v":0},"#'T2-B(PP2)'!$J$291"]
["pp2_bl4_10_9_total_in",{"$f":"'T2-B(PP2)'!$F$291","v":0},"#'T2-B(PP2)'!$F$291"]
["pp2_bl4_10_9_total_out",{"$f":"'T2-B(PP2)'!$I$291","v":0},"#'T2-B(PP2)'!$I$291"]
["pp2_bl4_10_9_unit",{"$f":"'T2-B(PP2)'!$C$291","v":0},"#'T2-B(PP2)'!$C$291"]
["pp2_bl4_10_9_unit_in",{"$f":"'T2-B(PP2)'!$D$291","v":0},"#'T2-B(PP2)'!$D$291"]
["pp2_bl4_10_9_units_out",{"$f":"'T2-B(PP2)'!$G$291","v":0},"#'T2-B(PP2)'!$G$291"]
["pp2_bl4_10_total",{"$f":"'T2-B(PP2)'!$J$282","v":0},"#'T2-B(PP2)'!$J$282"]
["pp2_bl4_10_total_in",{"$f":"'T2-B(PP2)'!$F$282","v":0},"#'T2-B(PP2)'!$F$282"]
["pp2_bl4_10_total_out",{"$f":"'T2-B(PP2)'!$I$282","v":0},"#'T2-B(PP2)'!$I$282"]
["pp2_bl4_11_1_name",{"$f":"'T2-B(PP2)'!$B$304","v":0},"#'T2-B(PP2)'!$B$304"]
["pp2_bl4_11_1_rate_in",{"$f":"'T2-B(PP2)'!$E$304","v":0},"#'T2-B(PP2)'!$E$304"]
["pp2_bl4_11_1_rate_out",{"$f":"'T2-B(PP2)'!$H$304","v":0},"#'T2-B(PP2)'!$H$304"]
["pp2_bl4_11_1_total",{"$f":"'T2-B(PP2)'!$J$304","v":0},"#'T2-B(PP2)'!$J$304"]
["pp2_bl4_11_1_total_in",{"$f":"'T2-B(PP2)'!$F$304","v":0},"#'T2-B(PP2)'!$F$304"]
["pp2_bl4_11_1_total_out",{"$f":"'T2-B(PP2)'!$I$304","v":0},"#'T2-B(PP2)'!$I$304"]
["pp2_bl4_11_1_unit",{"$f":"'T2-B(PP2)'!$C$304","v":0},"#'T2-B(PP2)'!$C$304"]
["pp2_bl4_11_1_unit_in",{"$f":"'T2-B(PP2)'!$D$304","v":0},"#'T2-B(PP2)'!$D$304"]
["pp2_bl4_11_1_units_out",{"$f":"'T2-B(PP2)'!$G$304","v":0},"#'T2-B(PP2)'!$G$304"]
["pp2_bl4_11_10_name",{"$f":"'T2-B(PP2)'!$B$313","v":0},"#'T2-B(PP2)'!$B$313"]
["pp2_bl4_11_10_rate_in",{"$f":"'T2-B(PP2)'!$E$313","v":0},"#'T2-B(PP2)'!$E$313"]
["pp2_bl4_11_10_rate_out",{"$f":"'T2-B(PP2)'!$H$313","v":0},"#'T2-B(PP2)'!$H$313"]
["pp2_bl4_11_10_total",{"$f":"'T2-B(PP2)'!$J$313","v":0},"#'T2-B(PP2)'!$J$313"]
["pp2_bl4_11_10_total_in",{"$f":"'T2-B(PP2)'!$F$313","v":0},"#'T2-B(PP2)'!$F$313"]
["pp2_bl4_11_10_total_out",{"$f":"'T2-B(PP2)'!$I$313","v":0},"#'T2-B(PP2)'!$I$313"]
["pp2_bl4_11_10_unit",{"$f":"'T2-B(PP2)'!$C$313","v":0},"#'T2-B(PP2)'!$C$313"]
["pp2_bl4_11_10_unit_in",{"$f":"'T2-B(PP2)'!$D$313","v":0},"#'T2-B(PP2)'!$D$313"]
["pp2_bl4_11_10_units_out",{"$f":"'T2-B(PP2)'!$G$313","v":0},"#'T2-B(PP2)'!$G$313"]
["pp2_bl4_11_11_name",{"$f":"'T2-B(PP2)'!$B$314","v":0},"#'T2-B(PP2)'!$B$314"]
["pp2_bl4_11_11_rate_in",{"$f":"'T2-B(PP2)'!$E$314","v":0},"#'T2-B(PP2)'!$E$314"]
["pp2_bl4_11_11_rate_out",{"$f":"'T2-B(PP2)'!$H$314","v":0},"#'T2-B(PP2)'!$H$314"]
["pp2_bl4_11_11_total",{"$f":"'T2-B(PP2)'!$J$314","v":0},"#'T2-B(PP2)'!$J$314"]
["pp2_bl4_11_11_total_in",{"$f":"'T2-B(PP2)'!$F$314","v":0},"#'T2-B(PP2)'!$F$314"]
["pp2_bl4_11_11_total_out",{"$f":"'T2-B(PP2)'!$I$314","v":0},"#'T2-B(PP2)'!$I$314"]
["pp2_bl4_11_11_unit",{"$f":"'T2-B(PP2)'!$C$314","v":0},"#'T2-B(PP2)'!$C$314"]
["pp2_bl4_11_11_unit_in",{"$f":"'T2-B(PP2)'!$D$314","v":0},"#'T2-B(PP2)'!$D$314"]
["pp2_bl4_11_11_units_out",{"$f":"'T2-B(PP2)'!$G$314","v":0},"#'T2-B(PP2)'!$G$314"]
["pp2_bl4_11_12_name",{"$f":"'T2-B(PP2)'!$B$315","v":0},"#'T2-B(PP2)'!$B$315"]
["pp2_bl4_11_12_rate_in",{"$f":"'T2-B(PP2)'!$E$315","v":0},"#'T2-B(PP2)'!$E$315"]
["pp2_bl4_11_12_rate_out",{"$f":"'T2-B(PP2)'!$H$315","v":0},"#'T2-B(PP2)'!$H$315"]
["pp2_bl4_11_12_total",{"$f":"'T2-B(PP2)'!$J$315","v":0},"#'T2-B(PP2)'!$J$315"]
["pp2_bl4_11_12_total_in",{"$f":"'T2-B(PP2)'!$F$315","v":0},"#'T2-B(PP2)'!$F$315"]
["pp2_bl4_11_12_total_out",{"$f":"'T2-B(PP2)'!$I$315","v":0},"#'T2-B(PP2)'!$I$315"]
["pp2_bl4_11_12_unit",{"$f":"'T2-B(PP2)'!$C$315","v":0},"#'T2-B(PP2)'!$C$315"]
["pp2_bl4_11_12_unit_in",{"$f":"'T2-B(PP2)'!$D$315","v":0},"#'T2-B(PP2)'!$D$315"]
["pp2_bl4_11_12_units_out",{"$f":"'T2-B(PP2)'!$G$315","v":0},"#'T2-B(PP2)'!$G$315"]
["pp2_bl4_11_13_name",{"$f":"'T2-B(PP2)'!$B$316","v":0},"#'T2-B(PP2)'!$B$316"]
["pp2_bl4_11_13_rate_in",{"$f":"'T2-B(PP2)'!$E$316","v":0},"#'T2-B(PP2)'!$E$316"]
["pp2_bl4_11_13_rate_out",{"$f":"'T2-B(PP2)'!$H$316","v":0},"#'T2-B(PP2)'!$H$316"]
["pp2_bl4_11_13_total",{"$f":"'T2-B(PP2)'!$J$316","v":0},"#'T2-B(PP2)'!$J$316"]
["pp2_bl4_11_13_total_in",{"$f":"'T2-B(PP2)'!$F$316","v":0},"#'T2-B(PP2)'!$F$316"]
["pp2_bl4_11_13_total_out",{"$f":"'T2-B(PP2)'!$I$316","v":0},"#'T2-B(PP2)'!$I$316"]
["pp2_bl4_11_13_unit",{"$f":"'T2-B(PP2)'!$C$316","v":0},"#'T2-B(PP2)'!$C$316"]
["pp2_bl4_11_13_unit_in",{"$f":"'T2-B(PP2)'!$D$316","v":0},"#'T2-B(PP2)'!$D$316"]
["pp2_bl4_11_13_units_out",{"$f":"'T2-B(PP2)'!$G$316","v":0},"#'T2-B(PP2)'!$G$316"]
["pp2_bl4_11_14_name",{"$f":"'T2-B(PP2)'!$B$317","v":0},"#'T2-B(PP2)'!$B$317"]
["pp2_bl4_11_14_rate_in",{"$f":"'T2-B(PP2)'!$E$317","v":0},"#'T2-B(PP2)'!$E$317"]
["pp2_bl4_11_14_rate_out",{"$f":"'T2-B(PP2)'!$H$317","v":0},"#'T2-B(PP2)'!$H$317"]
["pp2_bl4_11_14_total",{"$f":"'T2-B(PP2)'!$J$317","v":0},"#'T2-B(PP2)'!$J$317"]
["pp2_bl4_11_14_total_in",{"$f":"'T2-B(PP2)'!$F$317","v":0},"#'T2-B(PP2)'!$F$317"]
["pp2_bl4_11_14_total_out",{"$f":"'T2-B(PP2)'!$I$317","v":0},"#'T2-B(PP2)'!$I$317"]
["pp2_bl4_11_14_unit",{"$f":"'T2-B(PP2)'!$C$317","v":0},"#'T2-B(PP2)'!$C$317"]
["pp2_bl4_11_14_unit_in",{"$f":"'T2-B(PP2)'!$D$317","v":0},"#'T2-B(PP2)'!$D$317"]
["pp2_bl4_11_14_units_out",{"$f":"'T2-B(PP2)'!$G$317","v":0},"#'T2-B(PP2)'!$G$317"]
["pp2_bl4_11_15_name",{"$f":"'T2-B(PP2)'!$B$318","v":0},"#'T2-B(PP2)'!$B$318"]
["pp2_bl4_11_15_rate_in",{"$f":"'T2-B(PP2)'!$E$318","v":0},"#'T2-B(PP2)'!$E$318"]
["pp2_bl4_11_15_rate_out",{"$f":"'T2-B(PP2)'!$H$318","v":0},"#'T2-B(PP2)'!$H$318"]
["pp2_bl4_11_15_total",{"$f":"'T2-B(PP2)'!$J$318","v":0},"#'T2-B(PP2)'!$J$318"]
["pp2_bl4_11_15_total_in",{"$f":"'T2-B(PP2)'!$F$318","v":0},"#'T2-B(PP2)'!$F$318"]
["pp2_bl4_11_15_total_out",{"$f":"'T2-B(PP2)'!$I$318","v":0},"#'T2-B(PP2)'!$I$318"]
["pp2_bl4_11_15_unit",{"$f":"'T2-B(PP2)'!$C$318","v":0},"#'T2-B(PP2)'!$C$318"]
["pp2_bl4_11_15_unit_in",{"$f":"'T2-B(PP2)'!$D$318","v":0},"#'T2-B(PP2)'!$D$318"]
["pp2_bl4_11_15_units_out",{"$f":"'T2-B(PP2)'!$G$318","v":0},"#'T2-B(PP2)'!$G$318"]
["pp2_bl4_11_16_name",{"$f":"'T2-B(PP2)'!$B$319","v":0},"#'T2-B(PP2)'!$B$319"]
["pp2_bl4_11_16_rate_in",{"$f":"'T2-B(PP2)'!$E$319","v":0},"#'T2-B(PP2)'!$E$319"]
["pp2_bl4_11_16_rate_out",{"$f":"'T2-B(PP2)'!$H$319","v":0},"#'T2-B(PP2)'!$H$319"]
["pp2_bl4_11_16_total",{"$f":"'T2-B(PP2)'!$J$319","v":0},"#'T2-B(PP2)'!$J$319"]
["pp2_bl4_11_16_total_in",{"$f":"'T2-B(PP2)'!$F$319","v":0},"#'T2-B(PP2)'!$F$319"]
["pp2_bl4_11_16_total_out",{"$f":"'T2-B(PP2)'!$I$319","v":0},"#'T2-B(PP2)'!$I$319"]
["pp2_bl4_11_16_unit",{"$f":"'T2-B(PP2)'!$C$319","v":0},"#'T2-B(PP2)'!$C$319"]
["pp2_bl4_11_16_unit_in",{"$f":"'T2-B(PP2)'!$D$319","v":0},"#'T2-B(PP2)'!$D$319"]
["pp2_bl4_11_16_units_out",{"$f":"'T2-B(PP2)'!$G$319","v":0},"#'T2-B(PP2)'!$G$319"]
["pp2_bl4_11_17_name",{"$f":"'T2-B(PP2)'!$B$320","v":0},"#'T2-B(PP2)'!$B$320"]
["pp2_bl4_11_17_rate_in",{"$f":"'T2-B(PP2)'!$E$320","v":0},"#'T2-B(PP2)'!$E$320"]
["pp2_bl4_11_17_rate_out",{"$f":"'T2-B(PP2)'!$H$320","v":0},"#'T2-B(PP2)'!$H$320"]
["pp2_bl4_11_17_total",{"$f":"'T2-B(PP2)'!$J$320","v":0},"#'T2-B(PP2)'!$J$320"]
["pp2_bl4_11_17_total_in",{"$f":"'T2-B(PP2)'!$F$320","v":0},"#'T2-B(PP2)'!$F$320"]
["pp2_bl4_11_17_total_out",{"$f":"'T2-B(PP2)'!$I$320","v":0},"#'T2-B(PP2)'!$I$320"]
["pp2_bl4_11_17_unit",{"$f":"'T2-B(PP2)'!$C$320","v":0},"#'T2-B(PP2)'!$C$320"]
["pp2_bl4_11_17_unit_in",{"$f":"'T2-B(PP2)'!$D$320","v":0},"#'T2-B(PP2)'!$D$320"]
["pp2_bl4_11_17_units_out",{"$f":"'T2-B(PP2)'!$G$320","v":0},"#'T2-B(PP2)'!$G$320"]
["pp2_bl4_11_18_name",{"$f":"'T2-B(PP2)'!$B$321","v":0},"#'T2-B(PP2)'!$B$321"]
["pp2_bl4_11_18_rate_in",{"$f":"'T2-B(PP2)'!$E$321","v":0},"#'T2-B(PP2)'!$E$321"]
["pp2_bl4_11_18_rate_out",{"$f":"'T2-B(PP2)'!$H$321","v":0},"#'T2-B(PP2)'!$H$321"]
["pp2_bl4_11_18_total",{"$f":"'T2-B(PP2)'!$J$321","v":0},"#'T2-B(PP2)'!$J$321"]
["pp2_bl4_11_18_total_in",{"$f":"'T2-B(PP2)'!$F$321","v":0},"#'T2-B(PP2)'!$F$321"]
["pp2_bl4_11_18_total_out",{"$f":"'T2-B(PP2)'!$I$321","v":0},"#'T2-B(PP2)'!$I$321"]
["pp2_bl4_11_18_unit",{"$f":"'T2-B(PP2)'!$C$321","v":0},"#'T2-B(PP2)'!$C$321"]
["pp2_bl4_11_18_unit_in",{"$f":"'T2-B(PP2)'!$D$321","v":0},"#'T2-B(PP2)'!$D$321"]
["pp2_bl4_11_18_units_out",{"$f":"'T2-B(PP2)'!$G$321","v":0},"#'T2-B(PP2)'!$G$321"]
["pp2_bl4_11_19_name",{"$f":"'T2-B(PP2)'!$B$322","v":0},"#'T2-B(PP2)'!$B$322"]
["pp2_bl4_11_19_rate_in",{"$f":"'T2-B(PP2)'!$E$322","v":0},"#'T2-B(PP2)'!$E$322"]
["pp2_bl4_11_19_rate_out",{"$f":"'T2-B(PP2)'!$H$322","v":0},"#'T2-B(PP2)'!$H$322"]
["pp2_bl4_11_19_total",{"$f":"'T2-B(PP2)'!$J$322","v":0},"#'T2-B(PP2)'!$J$322"]
["pp2_bl4_11_19_total_in",{"$f":"'T2-B(PP2)'!$F$322","v":0},"#'T2-B(PP2)'!$F$322"]
["pp2_bl4_11_19_total_out",{"$f":"'T2-B(PP2)'!$I$322","v":0},"#'T2-B(PP2)'!$I$322"]
["pp2_bl4_11_19_unit",{"$f":"'T2-B(PP2)'!$C$322","v":0},"#'T2-B(PP2)'!$C$322"]
["pp2_bl4_11_19_unit_in",{"$f":"'T2-B(PP2)'!$D$322","v":0},"#'T2-B(PP2)'!$D$322"]
["pp2_bl4_11_19_units_out",{"$f":"'T2-B(PP2)'!$G$322","v":0},"#'T2-B(PP2)'!$G$322"]
["pp2_bl4_11_2_name",{"$f":"'T2-B(PP2)'!$B$305","v":0},"#'T2-B(PP2)'!$B$305"]
["pp2_bl4_11_2_rate_in",{"$f":"'T2-B(PP2)'!$E$305","v":0},"#'T2-B(PP2)'!$E$305"]
["pp2_bl4_11_2_rate_out",{"$f":"'T2-B(PP2)'!$H$305","v":0},"#'T2-B(PP2)'!$H$305"]
["pp2_bl4_11_2_total",{"$f":"'T2-B(PP2)'!$J$305","v":0},"#'T2-B(PP2)'!$J$305"]
["pp2_bl4_11_2_total_in",{"$f":"'T2-B(PP2)'!$F$305","v":0},"#'T2-B(PP2)'!$F$305"]
["pp2_bl4_11_2_total_out",{"$f":"'T2-B(PP2)'!$I$305","v":0},"#'T2-B(PP2)'!$I$305"]
["pp2_bl4_11_2_unit",{"$f":"'T2-B(PP2)'!$C$305","v":0},"#'T2-B(PP2)'!$C$305"]
["pp2_bl4_11_2_unit_in",{"$f":"'T2-B(PP2)'!$D$305","v":0},"#'T2-B(PP2)'!$D$305"]
["pp2_bl4_11_2_units_out",{"$f":"'T2-B(PP2)'!$G$305","v":0},"#'T2-B(PP2)'!$G$305"]
["pp2_bl4_11_20_name",{"$f":"'T2-B(PP2)'!$B$323","v":0},"#'T2-B(PP2)'!$B$323"]
["pp2_bl4_11_20_rate_in",{"$f":"'T2-B(PP2)'!$E$323","v":0},"#'T2-B(PP2)'!$E$323"]
["pp2_bl4_11_20_rate_out",{"$f":"'T2-B(PP2)'!$H$323","v":0},"#'T2-B(PP2)'!$H$323"]
["pp2_bl4_11_20_total",{"$f":"'T2-B(PP2)'!$J$323","v":0},"#'T2-B(PP2)'!$J$323"]
["pp2_bl4_11_20_total_in",{"$f":"'T2-B(PP2)'!$F$323","v":0},"#'T2-B(PP2)'!$F$323"]
["pp2_bl4_11_20_total_out",{"$f":"'T2-B(PP2)'!$I$323","v":0},"#'T2-B(PP2)'!$I$323"]
["pp2_bl4_11_20_unit",{"$f":"'T2-B(PP2)'!$C$323","v":0},"#'T2-B(PP2)'!$C$323"]
["pp2_bl4_11_20_unit_in",{"$f":"'T2-B(PP2)'!$D$323","v":0},"#'T2-B(PP2)'!$D$323"]
["pp2_bl4_11_20_units_out",{"$f":"'T2-B(PP2)'!$G$323","v":0},"#'T2-B(PP2)'!$G$323"]
["pp2_bl4_11_3_name",{"$f":"'T2-B(PP2)'!$B$306","v":0},"#'T2-B(PP2)'!$B$306"]
["pp2_bl4_11_3_rate_in",{"$f":"'T2-B(PP2)'!$E$306","v":0},"#'T2-B(PP2)'!$E$306"]
["pp2_bl4_11_3_rate_out",{"$f":"'T2-B(PP2)'!$H$306","v":0},"#'T2-B(PP2)'!$H$306"]
["pp2_bl4_11_3_total",{"$f":"'T2-B(PP2)'!$J$306","v":0},"#'T2-B(PP2)'!$J$306"]
["pp2_bl4_11_3_total_in",{"$f":"'T2-B(PP2)'!$F$306","v":0},"#'T2-B(PP2)'!$F$306"]
["pp2_bl4_11_3_total_out",{"$f":"'T2-B(PP2)'!$I$306","v":0},"#'T2-B(PP2)'!$I$306"]
["pp2_bl4_11_3_unit",{"$f":"'T2-B(PP2)'!$C$306","v":0},"#'T2-B(PP2)'!$C$306"]
["pp2_bl4_11_3_unit_in",{"$f":"'T2-B(PP2)'!$D$306","v":0},"#'T2-B(PP2)'!$D$306"]
["pp2_bl4_11_3_units_out",{"$f":"'T2-B(PP2)'!$G$306","v":0},"#'T2-B(PP2)'!$G$306"]
["pp2_bl4_11_4_name",{"$f":"'T2-B(PP2)'!$B$307","v":0},"#'T2-B(PP2)'!$B$307"]
["pp2_bl4_11_4_rate_in",{"$f":"'T2-B(PP2)'!$E$307","v":0},"#'T2-B(PP2)'!$E$307"]
["pp2_bl4_11_4_rate_out",{"$f":"'T2-B(PP2)'!$H$307","v":0},"#'T2-B(PP2)'!$H$307"]
["pp2_bl4_11_4_total",{"$f":"'T2-B(PP2)'!$J$307","v":0},"#'T2-B(PP2)'!$J$307"]
["pp2_bl4_11_4_total_in",{"$f":"'T2-B(PP2)'!$F$307","v":0},"#'T2-B(PP2)'!$F$307"]
["pp2_bl4_11_4_total_out",{"$f":"'T2-B(PP2)'!$I$307","v":0},"#'T2-B(PP2)'!$I$307"]
["pp2_bl4_11_4_unit",{"$f":"'T2-B(PP2)'!$C$307","v":0},"#'T2-B(PP2)'!$C$307"]
["pp2_bl4_11_4_unit_in",{"$f":"'T2-B(PP2)'!$D$307","v":0},"#'T2-B(PP2)'!$D$307"]
["pp2_bl4_11_4_units_out",{"$f":"'T2-B(PP2)'!$G$307","v":0},"#'T2-B(PP2)'!$G$307"]
["pp2_bl4_11_5_name",{"$f":"'T2-B(PP2)'!$B$308","v":0},"#'T2-B(PP2)'!$B$308"]
["pp2_bl4_11_5_rate_in",{"$f":"'T2-B(PP2)'!$E$308","v":0},"#'T2-B(PP2)'!$E$308"]
["pp2_bl4_11_5_rate_out",{"$f":"'T2-B(PP2)'!$H$308","v":0},"#'T2-B(PP2)'!$H$308"]
["pp2_bl4_11_5_total",{"$f":"'T2-B(PP2)'!$J$308","v":0},"#'T2-B(PP2)'!$J$308"]
["pp2_bl4_11_5_total_in",{"$f":"'T2-B(PP2)'!$F$308","v":0},"#'T2-B(PP2)'!$F$308"]
["pp2_bl4_11_5_total_out",{"$f":"'T2-B(PP2)'!$I$308","v":0},"#'T2-B(PP2)'!$I$308"]
["pp2_bl4_11_5_unit",{"$f":"'T2-B(PP2)'!$C$308","v":0},"#'T2-B(PP2)'!$C$308"]
["pp2_bl4_11_5_unit_in",{"$f":"'T2-B(PP2)'!$D$308","v":0},"#'T2-B(PP2)'!$D$308"]
["pp2_bl4_11_5_units_out",{"$f":"'T2-B(PP2)'!$G$308","v":0},"#'T2-B(PP2)'!$G$308"]
["pp2_bl4_11_6_name",{"$f":"'T2-B(PP2)'!$B$309","v":0},"#'T2-B(PP2)'!$B$309"]
["pp2_bl4_11_6_rate_in",{"$f":"'T2-B(PP2)'!$E$309","v":0},"#'T2-B(PP2)'!$E$309"]
["pp2_bl4_11_6_rate_out",{"$f":"'T2-B(PP2)'!$H$309","v":0},"#'T2-B(PP2)'!$H$309"]
["pp2_bl4_11_6_total",{"$f":"'T2-B(PP2)'!$J$309","v":0},"#'T2-B(PP2)'!$J$309"]
["pp2_bl4_11_6_total_in",{"$f":"'T2-B(PP2)'!$F$309","v":0},"#'T2-B(PP2)'!$F$309"]
["pp2_bl4_11_6_total_out",{"$f":"'T2-B(PP2)'!$I$309","v":0},"#'T2-B(PP2)'!$I$309"]
["pp2_bl4_11_6_unit",{"$f":"'T2-B(PP2)'!$C$309","v":0},"#'T2-B(PP2)'!$C$309"]
["pp2_bl4_11_6_unit_in",{"$f":"'T2-B(PP2)'!$D$309","v":0},"#'T2-B(PP2)'!$D$309"]
["pp2_bl4_11_6_units_out",{"$f":"'T2-B(PP2)'!$G$309","v":0},"#'T2-B(PP2)'!$G$309"]
["pp2_bl4_11_7_name",{"$f":"'T2-B(PP2)'!$B$310","v":0},"#'T2-B(PP2)'!$B$310"]
["pp2_bl4_11_7_rate_in",{"$f":"'T2-B(PP2)'!$E$310","v":0},"#'T2-B(PP2)'!$E$310"]
["pp2_bl4_11_7_rate_out",{"$f":"'T2-B(PP2)'!$H$310","v":0},"#'T2-B(PP2)'!$H$310"]
["pp2_bl4_11_7_total",{"$f":"'T2-B(PP2)'!$J$310","v":0},"#'T2-B(PP2)'!$J$310"]
["pp2_bl4_11_7_total_in",{"$f":"'T2-B(PP2)'!$F$310","v":0},"#'T2-B(PP2)'!$F$310"]
["pp2_bl4_11_7_total_out",{"$f":"'T2-B(PP2)'!$I$310","v":0},"#'T2-B(PP2)'!$I$310"]
["pp2_bl4_11_7_unit",{"$f":"'T2-B(PP2)'!$C$310","v":0},"#'T2-B(PP2)'!$C$310"]
["pp2_bl4_11_7_unit_in",{"$f":"'T2-B(PP2)'!$D$310","v":0},"#'T2-B(PP2)'!$D$310"]
["pp2_bl4_11_7_units_out",{"$f":"'T2-B(PP2)'!$G$310","v":0},"#'T2-B(PP2)'!$G$310"]
["pp2_bl4_11_8_name",{"$f":"'T2-B(PP2)'!$B$311","v":0},"#'T2-B(PP2)'!$B$311"]
["pp2_bl4_11_8_rate_in",{"$f":"'T2-B(PP2)'!$E$311","v":0},"#'T2-B(PP2)'!$E$311"]
["pp2_bl4_11_8_rate_out",{"$f":"'T2-B(PP2)'!$H$311","v":0},"#'T2-B(PP2)'!$H$311"]
["pp2_bl4_11_8_total",{"$f":"'T2-B(PP2)'!$J$311","v":0},"#'T2-B(PP2)'!$J$311"]
["pp2_bl4_11_8_total_in",{"$f":"'T2-B(PP2)'!$F$311","v":0},"#'T2-B(PP2)'!$F$311"]
["pp2_bl4_11_8_total_out",{"$f":"'T2-B(PP2)'!$I$311","v":0},"#'T2-B(PP2)'!$I$311"]
["pp2_bl4_11_8_unit",{"$f":"'T2-B(PP2)'!$C$311","v":0},"#'T2-B(PP2)'!$C$311"]
["pp2_bl4_11_8_unit_in",{"$f":"'T2-B(PP2)'!$D$311","v":0},"#'T2-B(PP2)'!$D$311"]
["pp2_bl4_11_8_units_out",{"$f":"'T2-B(PP2)'!$G$311","v":0},"#'T2-B(PP2)'!$G$311"]
["pp2_bl4_11_9_name",{"$f":"'T2-B(PP2)'!$B$312","v":0},"#'T2-B(PP2)'!$B$312"]
["pp2_bl4_11_9_rate_in",{"$f":"'T2-B(PP2)'!$E$312","v":0},"#'T2-B(PP2)'!$E$312"]
["pp2_bl4_11_9_rate_out",{"$f":"'T2-B(PP2)'!$H$312","v":0},"#'T2-B(PP2)'!$H$312"]
["pp2_bl4_11_9_total",{"$f":"'T2-B(PP2)'!$J$312","v":0},"#'T2-B(PP2)'!$J$312"]
["pp2_bl4_11_9_total_in",{"$f":"'T2-B(PP2)'!$F$312","v":0},"#'T2-B(PP2)'!$F$312"]
["pp2_bl4_11_9_total_out",{"$f":"'T2-B(PP2)'!$I$312","v":0},"#'T2-B(PP2)'!$I$312"]
["pp2_bl4_11_9_unit",{"$f":"'T2-B(PP2)'!$C$312","v":0},"#'T2-B(PP2)'!$C$312"]
["pp2_bl4_11_9_unit_in",{"$f":"'T2-B(PP2)'!$D$312","v":0},"#'T2-B(PP2)'!$D$312"]
["pp2_bl4_11_9_units_out",{"$f":"'T2-B(PP2)'!$G$312","v":0},"#'T2-B(PP2)'!$G$312"]
["pp2_bl4_11_total",{"$f":"'T2-B(PP2)'!$J$303","v":0},"#'T2-B(PP2)'!$J$303"]
["pp2_bl4_11_total_in",{"$f":"'T2-B(PP2)'!$F$303","v":0},"#'T2-B(PP2)'!$F$303"]
["pp2_bl4_11_total_out",{"$f":"'T2-B(PP2)'!$I$303","v":0},"#'T2-B(PP2)'!$I$303"]
["pp2_bl4_12_1_name",{"$f":"'T2-B(PP2)'!$B$325","v":0},"#'T2-B(PP2)'!$B$325"]
["pp2_bl4_12_1_rate_in",{"$f":"'T2-B(PP2)'!$E$325","v":0},"#'T2-B(PP2)'!$E$325"]
["pp2_bl4_12_1_rate_out",{"$f":"'T2-B(PP2)'!$H$325","v":0},"#'T2-B(PP2)'!$H$325"]
["pp2_bl4_12_1_total",{"$f":"'T2-B(PP2)'!$J$325","v":0},"#'T2-B(PP2)'!$J$325"]
["pp2_bl4_12_1_total_in",{"$f":"'T2-B(PP2)'!$F$325","v":0},"#'T2-B(PP2)'!$F$325"]
["pp2_bl4_12_1_total_out",{"$f":"'T2-B(PP2)'!$I$325","v":0},"#'T2-B(PP2)'!$I$325"]
["pp2_bl4_12_1_unit",{"$f":"'T2-B(PP2)'!$C$325","v":0},"#'T2-B(PP2)'!$C$325"]
["pp2_bl4_12_1_unit_in",{"$f":"'T2-B(PP2)'!$D$325","v":0},"#'T2-B(PP2)'!$D$325"]
["pp2_bl4_12_1_units_out",{"$f":"'T2-B(PP2)'!$G$325","v":0},"#'T2-B(PP2)'!$G$325"]
["pp2_bl4_12_10_name",{"$f":"'T2-B(PP2)'!$B$334","v":0},"#'T2-B(PP2)'!$B$334"]
["pp2_bl4_12_10_rate_in",{"$f":"'T2-B(PP2)'!$E$334","v":0},"#'T2-B(PP2)'!$E$334"]
["pp2_bl4_12_10_rate_out",{"$f":"'T2-B(PP2)'!$H$334","v":0},"#'T2-B(PP2)'!$H$334"]
["pp2_bl4_12_10_total",{"$f":"'T2-B(PP2)'!$J$334","v":0},"#'T2-B(PP2)'!$J$334"]
["pp2_bl4_12_10_total_in",{"$f":"'T2-B(PP2)'!$F$334","v":0},"#'T2-B(PP2)'!$F$334"]
["pp2_bl4_12_10_total_out",{"$f":"'T2-B(PP2)'!$I$334","v":0},"#'T2-B(PP2)'!$I$334"]
["pp2_bl4_12_10_unit",{"$f":"'T2-B(PP2)'!$C$334","v":0},"#'T2-B(PP2)'!$C$334"]
["pp2_bl4_12_10_unit_in",{"$f":"'T2-B(PP2)'!$D$334","v":0},"#'T2-B(PP2)'!$D$334"]
["pp2_bl4_12_10_units_out",{"$f":"'T2-B(PP2)'!$G$334","v":0},"#'T2-B(PP2)'!$G$334"]
["pp2_bl4_12_11_name",{"$f":"'T2-B(PP2)'!$B$335","v":0},"#'T2-B(PP2)'!$B$335"]
["pp2_bl4_12_11_rate_in",{"$f":"'T2-B(PP2)'!$E$335","v":0},"#'T2-B(PP2)'!$E$335"]
["pp2_bl4_12_11_rate_out",{"$f":"'T2-B(PP2)'!$H$335","v":0},"#'T2-B(PP2)'!$H$335"]
["pp2_bl4_12_11_total",{"$f":"'T2-B(PP2)'!$J$335","v":0},"#'T2-B(PP2)'!$J$335"]
["pp2_bl4_12_11_total_in",{"$f":"'T2-B(PP2)'!$F$335","v":0},"#'T2-B(PP2)'!$F$335"]
["pp2_bl4_12_11_total_out",{"$f":"'T2-B(PP2)'!$I$335","v":0},"#'T2-B(PP2)'!$I$335"]
["pp2_bl4_12_11_unit",{"$f":"'T2-B(PP2)'!$C$335","v":0},"#'T2-B(PP2)'!$C$335"]
["pp2_bl4_12_11_unit_in",{"$f":"'T2-B(PP2)'!$D$335","v":0},"#'T2-B(PP2)'!$D$335"]
["pp2_bl4_12_11_units_out",{"$f":"'T2-B(PP2)'!$G$335","v":0},"#'T2-B(PP2)'!$G$335"]
["pp2_bl4_12_12_name",{"$f":"'T2-B(PP2)'!$B$336","v":0},"#'T2-B(PP2)'!$B$336"]
["pp2_bl4_12_12_rate_in",{"$f":"'T2-B(PP2)'!$E$336","v":0},"#'T2-B(PP2)'!$E$336"]
["pp2_bl4_12_12_rate_out",{"$f":"'T2-B(PP2)'!$H$336","v":0},"#'T2-B(PP2)'!$H$336"]
["pp2_bl4_12_12_total",{"$f":"'T2-B(PP2)'!$J$336","v":0},"#'T2-B(PP2)'!$J$336"]
["pp2_bl4_12_12_total_in",{"$f":"'T2-B(PP2)'!$F$336","v":0},"#'T2-B(PP2)'!$F$336"]
["pp2_bl4_12_12_total_out",{"$f":"'T2-B(PP2)'!$I$336","v":0},"#'T2-B(PP2)'!$I$336"]
["pp2_bl4_12_12_unit",{"$f":"'T2-B(PP2)'!$C$336","v":0},"#'T2-B(PP2)'!$C$336"]
["pp2_bl4_12_12_unit_in",{"$f":"'T2-B(PP2)'!$D$336","v":0},"#'T2-B(PP2)'!$D$336"]
["pp2_bl4_12_12_units_out",{"$f":"'T2-B(PP2)'!$G$336","v":0},"#'T2-B(PP2)'!$G$336"]
["pp2_bl4_12_13_name",{"$f":"'T2-B(PP2)'!$B$337","v":0},"#'T2-B(PP2)'!$B$337"]
["pp2_bl4_12_13_rate_in",{"$f":"'T2-B(PP2)'!$E$337","v":0},"#'T2-B(PP2)'!$E$337"]
["pp2_bl4_12_13_rate_out",{"$f":"'T2-B(PP2)'!$H$337","v":0},"#'T2-B(PP2)'!$H$337"]
["pp2_bl4_12_13_total",{"$f":"'T2-B(PP2)'!$J$337","v":0},"#'T2-B(PP2)'!$J$337"]
["pp2_bl4_12_13_total_in",{"$f":"'T2-B(PP2)'!$F$337","v":0},"#'T2-B(PP2)'!$F$337"]
["pp2_bl4_12_13_total_out",{"$f":"'T2-B(PP2)'!$I$337","v":0},"#'T2-B(PP2)'!$I$337"]
["pp2_bl4_12_13_unit",{"$f":"'T2-B(PP2)'!$C$337","v":0},"#'T2-B(PP2)'!$C$337"]
["pp2_bl4_12_13_unit_in",{"$f":"'T2-B(PP2)'!$D$337","v":0},"#'T2-B(PP2)'!$D$337"]
["pp2_bl4_12_13_units_out",{"$f":"'T2-B(PP2)'!$G$337","v":0},"#'T2-B(PP2)'!$G$337"]
["pp2_bl4_12_14_name",{"$f":"'T2-B(PP2)'!$B$338","v":0},"#'T2-B(PP2)'!$B$338"]
["pp2_bl4_12_14_rate_in",{"$f":"'T2-B(PP2)'!$E$338","v":0},"#'T2-B(PP2)'!$E$338"]
["pp2_bl4_12_14_rate_out",{"$f":"'T2-B(PP2)'!$H$338","v":0},"#'T2-B(PP2)'!$H$338"]
["pp2_bl4_12_14_total",{"$f":"'T2-B(PP2)'!$J$338","v":0},"#'T2-B(PP2)'!$J$338"]
["pp2_bl4_12_14_total_in",{"$f":"'T2-B(PP2)'!$F$338","v":0},"#'T2-B(PP2)'!$F$338"]
["pp2_bl4_12_14_total_out",{"$f":"'T2-B(PP2)'!$I$338","v":0},"#'T2-B(PP2)'!$I$338"]
["pp2_bl4_12_14_unit",{"$f":"'T2-B(PP2)'!$C$338","v":0},"#'T2-B(PP2)'!$C$338"]
["pp2_bl4_12_14_unit_in",{"$f":"'T2-B(PP2)'!$D$338","v":0},"#'T2-B(PP2)'!$D$338"]
["pp2_bl4_12_14_units_out",{"$f":"'T2-B(PP2)'!$G$338","v":0},"#'T2-B(PP2)'!$G$338"]
["pp2_bl4_12_15_name",{"$f":"'T2-B(PP2)'!$B$339","v":0},"#'T2-B(PP2)'!$B$339"]
["pp2_bl4_12_15_rate_in",{"$f":"'T2-B(PP2)'!$E$339","v":0},"#'T2-B(PP2)'!$E$339"]
["pp2_bl4_12_15_rate_out",{"$f":"'T2-B(PP2)'!$H$339","v":0},"#'T2-B(PP2)'!$H$339"]
["pp2_bl4_12_15_total",{"$f":"'T2-B(PP2)'!$J$339","v":0},"#'T2-B(PP2)'!$J$339"]
["pp2_bl4_12_15_total_in",{"$f":"'T2-B(PP2)'!$F$339","v":0},"#'T2-B(PP2)'!$F$339"]
["pp2_bl4_12_15_total_out",{"$f":"'T2-B(PP2)'!$I$339","v":0},"#'T2-B(PP2)'!$I$339"]
["pp2_bl4_12_15_unit",{"$f":"'T2-B(PP2)'!$C$339","v":0},"#'T2-B(PP2)'!$C$339"]
["pp2_bl4_12_15_unit_in",{"$f":"'T2-B(PP2)'!$D$339","v":0},"#'T2-B(PP2)'!$D$339"]
["pp2_bl4_12_15_units_out",{"$f":"'T2-B(PP2)'!$G$339","v":0},"#'T2-B(PP2)'!$G$339"]
["pp2_bl4_12_16_name",{"$f":"'T2-B(PP2)'!$B$340","v":0},"#'T2-B(PP2)'!$B$340"]
["pp2_bl4_12_16_rate_in",{"$f":"'T2-B(PP2)'!$E$340","v":0},"#'T2-B(PP2)'!$E$340"]
["pp2_bl4_12_16_rate_out",{"$f":"'T2-B(PP2)'!$H$340","v":0},"#'T2-B(PP2)'!$H$340"]
["pp2_bl4_12_16_total",{"$f":"'T2-B(PP2)'!$J$340","v":0},"#'T2-B(PP2)'!$J$340"]
["pp2_bl4_12_16_total_in",{"$f":"'T2-B(PP2)'!$F$340","v":0},"#'T2-B(PP2)'!$F$340"]
["pp2_bl4_12_16_total_out",{"$f":"'T2-B(PP2)'!$I$340","v":0},"#'T2-B(PP2)'!$I$340"]
["pp2_bl4_12_16_unit",{"$f":"'T2-B(PP2)'!$C$340","v":0},"#'T2-B(PP2)'!$C$340"]
["pp2_bl4_12_16_unit_in",{"$f":"'T2-B(PP2)'!$D$340","v":0},"#'T2-B(PP2)'!$D$340"]
["pp2_bl4_12_16_units_out",{"$f":"'T2-B(PP2)'!$G$340","v":0},"#'T2-B(PP2)'!$G$340"]
["pp2_bl4_12_17_name",{"$f":"'T2-B(PP2)'!$B$341","v":0},"#'T2-B(PP2)'!$B$341"]
["pp2_bl4_12_17_rate_in",{"$f":"'T2-B(PP2)'!$E$341","v":0},"#'T2-B(PP2)'!$E$341"]
["pp2_bl4_12_17_rate_out",{"$f":"'T2-B(PP2)'!$H$341","v":0},"#'T2-B(PP2)'!$H$341"]
["pp2_bl4_12_17_total",{"$f":"'T2-B(PP2)'!$J$341","v":0},"#'T2-B(PP2)'!$J$341"]
["pp2_bl4_12_17_total_in",{"$f":"'T2-B(PP2)'!$F$341","v":0},"#'T2-B(PP2)'!$F$341"]
["pp2_bl4_12_17_total_out",{"$f":"'T2-B(PP2)'!$I$341","v":0},"#'T2-B(PP2)'!$I$341"]
["pp2_bl4_12_17_unit",{"$f":"'T2-B(PP2)'!$C$341","v":0},"#'T2-B(PP2)'!$C$341"]
["pp2_bl4_12_17_unit_in",{"$f":"'T2-B(PP2)'!$D$341","v":0},"#'T2-B(PP2)'!$D$341"]
["pp2_bl4_12_17_units_out",{"$f":"'T2-B(PP2)'!$G$341","v":0},"#'T2-B(PP2)'!$G$341"]
["pp2_bl4_12_18_name",{"$f":"'T2-B(PP2)'!$B$342","v":0},"#'T2-B(PP2)'!$B$342"]
["pp2_bl4_12_18_rate_in",{"$f":"'T2-B(PP2)'!$E$342","v":0},"#'T2-B(PP2)'!$E$342"]
["pp2_bl4_12_18_rate_out",{"$f":"'T2-B(PP2)'!$H$342","v":0},"#'T2-B(PP2)'!$H$342"]
["pp2_bl4_12_18_total",{"$f":"'T2-B(PP2)'!$J$342","v":0},"#'T2-B(PP2)'!$J$342"]
["pp2_bl4_12_18_total_in",{"$f":"'T2-B(PP2)'!$F$342","v":0},"#'T2-B(PP2)'!$F$342"]
["pp2_bl4_12_18_total_out",{"$f":"'T2-B(PP2)'!$I$342","v":0},"#'T2-B(PP2)'!$I$342"]
["pp2_bl4_12_18_unit",{"$f":"'T2-B(PP2)'!$C$342","v":0},"#'T2-B(PP2)'!$C$342"]
["pp2_bl4_12_18_unit_in",{"$f":"'T2-B(PP2)'!$D$342","v":0},"#'T2-B(PP2)'!$D$342"]
["pp2_bl4_12_18_units_out",{"$f":"'T2-B(PP2)'!$G$342","v":0},"#'T2-B(PP2)'!$G$342"]
["pp2_bl4_12_19_name",{"$f":"'T2-B(PP2)'!$B$343","v":0},"#'T2-B(PP2)'!$B$343"]
["pp2_bl4_12_19_rate_in",{"$f":"'T2-B(PP2)'!$E$343","v":0},"#'T2-B(PP2)'!$E$343"]
["pp2_bl4_12_19_rate_out",{"$f":"'T2-B(PP2)'!$H$343","v":0},"#'T2-B(PP2)'!$H$343"]
["pp2_bl4_12_19_total",{"$f":"'T2-B(PP2)'!$J$343","v":0},"#'T2-B(PP2)'!$J$343"]
["pp2_bl4_12_19_total_in",{"$f":"'T2-B(PP2)'!$F$343","v":0},"#'T2-B(PP2)'!$F$343"]
["pp2_bl4_12_19_total_out",{"$f":"'T2-B(PP2)'!$I$343","v":0},"#'T2-B(PP2)'!$I$343"]
["pp2_bl4_12_19_unit",{"$f":"'T2-B(PP2)'!$C$343","v":0},"#'T2-B(PP2)'!$C$343"]
["pp2_bl4_12_19_unit_in",{"$f":"'T2-B(PP2)'!$D$343","v":0},"#'T2-B(PP2)'!$D$343"]
["pp2_bl4_12_19_units_out",{"$f":"'T2-B(PP2)'!$G$343","v":0},"#'T2-B(PP2)'!$G$343"]
["pp2_bl4_12_2_name",{"$f":"'T2-B(PP2)'!$B$326","v":0},"#'T2-B(PP2)'!$B$326"]
["pp2_bl4_12_2_rate_in",{"$f":"'T2-B(PP2)'!$E$326","v":0},"#'T2-B(PP2)'!$E$326"]
["pp2_bl4_12_2_rate_out",{"$f":"'T2-B(PP2)'!$H$326","v":0},"#'T2-B(PP2)'!$H$326"]
["pp2_bl4_12_2_total",{"$f":"'T2-B(PP2)'!$J$326","v":0},"#'T2-B(PP2)'!$J$326"]
["pp2_bl4_12_2_total_in",{"$f":"'T2-B(PP2)'!$F$326","v":0},"#'T2-B(PP2)'!$F$326"]
["pp2_bl4_12_2_total_out",{"$f":"'T2-B(PP2)'!$I$326","v":0},"#'T2-B(PP2)'!$I$326"]
["pp2_bl4_12_2_unit",{"$f":"'T2-B(PP2)'!$C$326","v":0},"#'T2-B(PP2)'!$C$326"]
["pp2_bl4_12_2_unit_in",{"$f":"'T2-B(PP2)'!$D$326","v":0},"#'T2-B(PP2)'!$D$326"]
["pp2_bl4_12_2_units_out",{"$f":"'T2-B(PP2)'!$G$326","v":0},"#'T2-B(PP2)'!$G$326"]
["pp2_bl4_12_20_name",{"$f":"'T2-B(PP2)'!$B$344","v":0},"#'T2-B(PP2)'!$B$344"]
["pp2_bl4_12_20_rate_in",{"$f":"'T2-B(PP2)'!$E$344","v":0},"#'T2-B(PP2)'!$E$344"]
["pp2_bl4_12_20_rate_out",{"$f":"'T2-B(PP2)'!$H$344","v":0},"#'T2-B(PP2)'!$H$344"]
["pp2_bl4_12_20_total",{"$f":"'T2-B(PP2)'!$J$344","v":0},"#'T2-B(PP2)'!$J$344"]
["pp2_bl4_12_20_total_in",{"$f":"'T2-B(PP2)'!$F$344","v":0},"#'T2-B(PP2)'!$F$344"]
["pp2_bl4_12_20_total_out",{"$f":"'T2-B(PP2)'!$I$344","v":0},"#'T2-B(PP2)'!$I$344"]
["pp2_bl4_12_20_unit",{"$f":"'T2-B(PP2)'!$C$344","v":0},"#'T2-B(PP2)'!$C$344"]
["pp2_bl4_12_20_unit_in",{"$f":"'T2-B(PP2)'!$D$344","v":0},"#'T2-B(PP2)'!$D$344"]
["pp2_bl4_12_20_units_out",{"$f":"'T2-B(PP2)'!$G$344","v":0},"#'T2-B(PP2)'!$G$344"]
["pp2_bl4_12_3_name",{"$f":"'T2-B(PP2)'!$B$327","v":0},"#'T2-B(PP2)'!$B$327"]
["pp2_bl4_12_3_rate_in",{"$f":"'T2-B(PP2)'!$E$327","v":0},"#'T2-B(PP2)'!$E$327"]
["pp2_bl4_12_3_rate_out",{"$f":"'T2-B(PP2)'!$H$327","v":0},"#'T2-B(PP2)'!$H$327"]
["pp2_bl4_12_3_total",{"$f":"'T2-B(PP2)'!$J$327","v":0},"#'T2-B(PP2)'!$J$327"]
["pp2_bl4_12_3_total_in",{"$f":"'T2-B(PP2)'!$F$327","v":0},"#'T2-B(PP2)'!$F$327"]
["pp2_bl4_12_3_total_out",{"$f":"'T2-B(PP2)'!$I$327","v":0},"#'T2-B(PP2)'!$I$327"]
["pp2_bl4_12_3_unit",{"$f":"'T2-B(PP2)'!$C$327","v":0},"#'T2-B(PP2)'!$C$327"]
["pp2_bl4_12_3_unit_in",{"$f":"'T2-B(PP2)'!$D$327","v":0},"#'T2-B(PP2)'!$D$327"]
["pp2_bl4_12_3_units_out",{"$f":"'T2-B(PP2)'!$G$327","v":0},"#'T2-B(PP2)'!$G$327"]
["pp2_bl4_12_4_name",{"$f":"'T2-B(PP2)'!$B$328","v":0},"#'T2-B(PP2)'!$B$328"]
["pp2_bl4_12_4_rate_in",{"$f":"'T2-B(PP2)'!$E$328","v":0},"#'T2-B(PP2)'!$E$328"]
["pp2_bl4_12_4_rate_out",{"$f":"'T2-B(PP2)'!$H$328","v":0},"#'T2-B(PP2)'!$H$328"]
["pp2_bl4_12_4_total",{"$f":"'T2-B(PP2)'!$J$328","v":0},"#'T2-B(PP2)'!$J$328"]
["pp2_bl4_12_4_total_in",{"$f":"'T2-B(PP2)'!$F$328","v":0},"#'T2-B(PP2)'!$F$328"]
["pp2_bl4_12_4_total_out",{"$f":"'T2-B(PP2)'!$I$328","v":0},"#'T2-B(PP2)'!$I$328"]
["pp2_bl4_12_4_unit",{"$f":"'T2-B(PP2)'!$C$328","v":0},"#'T2-B(PP2)'!$C$328"]
["pp2_bl4_12_4_unit_in",{"$f":"'T2-B(PP2)'!$D$328","v":0},"#'T2-B(PP2)'!$D$328"]
["pp2_bl4_12_4_units_out",{"$f":"'T2-B(PP2)'!$G$328","v":0},"#'T2-B(PP2)'!$G$328"]
["pp2_bl4_12_5_name",{"$f":"'T2-B(PP2)'!$B$329","v":0},"#'T2-B(PP2)'!$B$329"]
["pp2_bl4_12_5_rate_in",{"$f":"'T2-B(PP2)'!$E$329","v":0},"#'T2-B(PP2)'!$E$329"]
["pp2_bl4_12_5_rate_out",{"$f":"'T2-B(PP2)'!$H$329","v":0},"#'T2-B(PP2)'!$H$329"]
["pp2_bl4_12_5_total",{"$f":"'T2-B(PP2)'!$J$329","v":0},"#'T2-B(PP2)'!$J$329"]
["pp2_bl4_12_5_total_in",{"$f":"'T2-B(PP2)'!$F$329","v":0},"#'T2-B(PP2)'!$F$329"]
["pp2_bl4_12_5_total_out",{"$f":"'T2-B(PP2)'!$I$329","v":0},"#'T2-B(PP2)'!$I$329"]
["pp2_bl4_12_5_unit",{"$f":"'T2-B(PP2)'!$C$329","v":0},"#'T2-B(PP2)'!$C$329"]
["pp2_bl4_12_5_unit_in",{"$f":"'T2-B(PP2)'!$D$329","v":0},"#'T2-B(PP2)'!$D$329"]
["pp2_bl4_12_5_units_out",{"$f":"'T2-B(PP2)'!$G$329","v":0},"#'T2-B(PP2)'!$G$329"]
["pp2_bl4_12_6_name",{"$f":"'T2-B(PP2)'!$B$330","v":0},"#'T2-B(PP2)'!$B$330"]
["pp2_bl4_12_6_rate_in",{"$f":"'T2-B(PP2)'!$E$330","v":0},"#'T2-B(PP2)'!$E$330"]
["pp2_bl4_12_6_rate_out",{"$f":"'T2-B(PP2)'!$H$330","v":0},"#'T2-B(PP2)'!$H$330"]
["pp2_bl4_12_6_total",{"$f":"'T2-B(PP2)'!$J$330","v":0},"#'T2-B(PP2)'!$J$330"]
["pp2_bl4_12_6_total_in",{"$f":"'T2-B(PP2)'!$F$330","v":0},"#'T2-B(PP2)'!$F$330"]
["pp2_bl4_12_6_total_out",{"$f":"'T2-B(PP2)'!$I$330","v":0},"#'T2-B(PP2)'!$I$330"]
["pp2_bl4_12_6_unit",{"$f":"'T2-B(PP2)'!$C$330","v":0},"#'T2-B(PP2)'!$C$330"]
["pp2_bl4_12_6_unit_in",{"$f":"'T2-B(PP2)'!$D$330","v":0},"#'T2-B(PP2)'!$D$330"]
["pp2_bl4_12_6_units_out",{"$f":"'T2-B(PP2)'!$G$330","v":0},"#'T2-B(PP2)'!$G$330"]
["pp2_bl4_12_7_name",{"$f":"'T2-B(PP2)'!$B$331","v":0},"#'T2-B(PP2)'!$B$331"]
["pp2_bl4_12_7_rate_in",{"$f":"'T2-B(PP2)'!$E$331","v":0},"#'T2-B(PP2)'!$E$331"]
["pp2_bl4_12_7_rate_out",{"$f":"'T2-B(PP2)'!$H$331","v":0},"#'T2-B(PP2)'!$H$331"]
["pp2_bl4_12_7_total",{"$f":"'T2-B(PP2)'!$J$331","v":0},"#'T2-B(PP2)'!$J$331"]
["pp2_bl4_12_7_total_in",{"$f":"'T2-B(PP2)'!$F$331","v":0},"#'T2-B(PP2)'!$F$331"]
["pp2_bl4_12_7_total_out",{"$f":"'T2-B(PP2)'!$I$331","v":0},"#'T2-B(PP2)'!$I$331"]
["pp2_bl4_12_7_unit",{"$f":"'T2-B(PP2)'!$C$331","v":0},"#'T2-B(PP2)'!$C$331"]
["pp2_bl4_12_7_unit_in",{"$f":"'T2-B(PP2)'!$D$331","v":0},"#'T2-B(PP2)'!$D$331"]
["pp2_bl4_12_7_units_out",{"$f":"'T2-B(PP2)'!$G$331","v":0},"#'T2-B(PP2)'!$G$331"]
["pp2_bl4_12_8_name",{"$f":"'T2-B(PP2)'!$B$332","v":0},"#'T2-B(PP2)'!$B$332"]
["pp2_bl4_12_8_rate_in",{"$f":"'T2-B(PP2)'!$E$332","v":0},"#'T2-B(PP2)'!$E$332"]
["pp2_bl4_12_8_rate_out",{"$f":"'T2-B(PP2)'!$H$332","v":0},"#'T2-B(PP2)'!$H$332"]
["pp2_bl4_12_8_total",{"$f":"'T2-B(PP2)'!$J$332","v":0},"#'T2-B(PP2)'!$J$332"]
["pp2_bl4_12_8_total_in",{"$f":"'T2-B(PP2)'!$F$332","v":0},"#'T2-B(PP2)'!$F$332"]
["pp2_bl4_12_8_total_out",{"$f":"'T2-B(PP2)'!$I$332","v":0},"#'T2-B(PP2)'!$I$332"]
["pp2_bl4_12_8_unit",{"$f":"'T2-B(PP2)'!$C$332","v":0},"#'T2-B(PP2)'!$C$332"]
["pp2_bl4_12_8_unit_in",{"$f":"'T2-B(PP2)'!$D$332","v":0},"#'T2-B(PP2)'!$D$332"]
["pp2_bl4_12_8_units_out",{"$f":"'T2-B(PP2)'!$G$332","v":0},"#'T2-B(PP2)'!$G$332"]
["pp2_bl4_12_9_name",{"$f":"'T2-B(PP2)'!$B$333","v":0},"#'T2-B(PP2)'!$B$333"]
["pp2_bl4_12_9_rate_in",{"$f":"'T2-B(PP2)'!$E$333","v":0},"#'T2-B(PP2)'!$E$333"]
["pp2_bl4_12_9_rate_out",{"$f":"'T2-B(PP2)'!$H$333","v":0},"#'T2-B(PP2)'!$H$333"]
["pp2_bl4_12_9_total",{"$f":"'T2-B(PP2)'!$J$333","v":0},"#'T2-B(PP2)'!$J$333"]
["pp2_bl4_12_9_total_in",{"$f":"'T2-B(PP2)'!$F$333","v":0},"#'T2-B(PP2)'!$F$333"]
["pp2_bl4_12_9_total_out",{"$f":"'T2-B(PP2)'!$I$333","v":0},"#'T2-B(PP2)'!$I$333"]
["pp2_bl4_12_9_unit",{"$f":"'T2-B(PP2)'!$C$333","v":0},"#'T2-B(PP2)'!$C$333"]
["pp2_bl4_12_9_unit_in",{"$f":"'T2-B(PP2)'!$D$333","v":0},"#'T2-B(PP2)'!$D$333"]
["pp2_bl4_12_9_units_out",{"$f":"'T2-B(PP2)'!$G$333","v":0},"#'T2-B(PP2)'!$G$333"]
["pp2_bl4_12_total",{"$f":"'T2-B(PP2)'!$J$324","v":0},"#'T2-B(PP2)'!$J$324"]
["pp2_bl4_12_total_in",{"$f":"'T2-B(PP2)'!$F$324","v":0},"#'T2-B(PP2)'!$F$324"]
["pp2_bl4_12_total_out",{"$f":"'T2-B(PP2)'!$I$324","v":0},"#'T2-B(PP2)'!$I$324"]
["pp2_bl4_2_1_name",{"$f":"'T2-B(PP2)'!$B$115","v":0},"#'T2-B(PP2)'!$B$115"]
["pp2_bl4_2_1_rate_in",{"$f":"'T2-B(PP2)'!$E$115","v":0},"#'T2-B(PP2)'!$E$115"]
["pp2_bl4_2_1_rate_out",{"$f":"'T2-B(PP2)'!$H$115","v":0},"#'T2-B(PP2)'!$H$115"]
["pp2_bl4_2_1_total",{"$f":"'T2-B(PP2)'!$J$115","v":0},"#'T2-B(PP2)'!$J$115"]
["pp2_bl4_2_1_total_in",{"$f":"'T2-B(PP2)'!$F$115","v":0},"#'T2-B(PP2)'!$F$115"]
["pp2_bl4_2_1_total_out",{"$f":"'T2-B(PP2)'!$I$115","v":0},"#'T2-B(PP2)'!$I$115"]
["pp2_bl4_2_1_unit",{"$f":"'T2-B(PP2)'!$C$115","v":0},"#'T2-B(PP2)'!$C$115"]
["pp2_bl4_2_1_unit_in",{"$f":"'T2-B(PP2)'!$D$115","v":0},"#'T2-B(PP2)'!$D$115"]
["pp2_bl4_2_1_units_out",{"$f":"'T2-B(PP2)'!$G$115","v":0},"#'T2-B(PP2)'!$G$115"]
["pp2_bl4_2_10_name",{"$f":"'T2-B(PP2)'!$B$124","v":0},"#'T2-B(PP2)'!$B$124"]
["pp2_bl4_2_10_rate_in",{"$f":"'T2-B(PP2)'!$E$124","v":0},"#'T2-B(PP2)'!$E$124"]
["pp2_bl4_2_10_rate_out",{"$f":"'T2-B(PP2)'!$H$124","v":0},"#'T2-B(PP2)'!$H$124"]
["pp2_bl4_2_10_total",{"$f":"'T2-B(PP2)'!$J$124","v":0},"#'T2-B(PP2)'!$J$124"]
["pp2_bl4_2_10_total_in",{"$f":"'T2-B(PP2)'!$F$124","v":0},"#'T2-B(PP2)'!$F$124"]
["pp2_bl4_2_10_total_out",{"$f":"'T2-B(PP2)'!$I$124","v":0},"#'T2-B(PP2)'!$I$124"]
["pp2_bl4_2_10_unit",{"$f":"'T2-B(PP2)'!$C$124","v":0},"#'T2-B(PP2)'!$C$124"]
["pp2_bl4_2_10_unit_in",{"$f":"'T2-B(PP2)'!$D$124","v":0},"#'T2-B(PP2)'!$D$124"]
["pp2_bl4_2_10_units_out",{"$f":"'T2-B(PP2)'!$G$124","v":0},"#'T2-B(PP2)'!$G$124"]
["pp2_bl4_2_11_name",{"$f":"'T2-B(PP2)'!$B$125","v":0},"#'T2-B(PP2)'!$B$125"]
["pp2_bl4_2_11_rate_in",{"$f":"'T2-B(PP2)'!$E$125","v":0},"#'T2-B(PP2)'!$E$125"]
["pp2_bl4_2_11_rate_out",{"$f":"'T2-B(PP2)'!$H$125","v":0},"#'T2-B(PP2)'!$H$125"]
["pp2_bl4_2_11_total",{"$f":"'T2-B(PP2)'!$J$125","v":0},"#'T2-B(PP2)'!$J$125"]
["pp2_bl4_2_11_total_in",{"$f":"'T2-B(PP2)'!$F$125","v":0},"#'T2-B(PP2)'!$F$125"]
["pp2_bl4_2_11_total_out",{"$f":"'T2-B(PP2)'!$I$125","v":0},"#'T2-B(PP2)'!$I$125"]
["pp2_bl4_2_11_unit",{"$f":"'T2-B(PP2)'!$C$125","v":0},"#'T2-B(PP2)'!$C$125"]
["pp2_bl4_2_11_unit_in",{"$f":"'T2-B(PP2)'!$D$125","v":0},"#'T2-B(PP2)'!$D$125"]
["pp2_bl4_2_11_units_out",{"$f":"'T2-B(PP2)'!$G$125","v":0},"#'T2-B(PP2)'!$G$125"]
["pp2_bl4_2_12_name",{"$f":"'T2-B(PP2)'!$B$126","v":0},"#'T2-B(PP2)'!$B$126"]
["pp2_bl4_2_12_rate_in",{"$f":"'T2-B(PP2)'!$E$126","v":0},"#'T2-B(PP2)'!$E$126"]
["pp2_bl4_2_12_rate_out",{"$f":"'T2-B(PP2)'!$H$126","v":0},"#'T2-B(PP2)'!$H$126"]
["pp2_bl4_2_12_total",{"$f":"'T2-B(PP2)'!$J$126","v":0},"#'T2-B(PP2)'!$J$126"]
["pp2_bl4_2_12_total_in",{"$f":"'T2-B(PP2)'!$F$126","v":0},"#'T2-B(PP2)'!$F$126"]
["pp2_bl4_2_12_total_out",{"$f":"'T2-B(PP2)'!$I$126","v":0},"#'T2-B(PP2)'!$I$126"]
["pp2_bl4_2_12_unit",{"$f":"'T2-B(PP2)'!$C$126","v":0},"#'T2-B(PP2)'!$C$126"]
["pp2_bl4_2_12_unit_in",{"$f":"'T2-B(PP2)'!$D$126","v":0},"#'T2-B(PP2)'!$D$126"]
["pp2_bl4_2_12_units_out",{"$f":"'T2-B(PP2)'!$G$126","v":0},"#'T2-B(PP2)'!$G$126"]
["pp2_bl4_2_13_name",{"$f":"'T2-B(PP2)'!$B$127","v":0},"#'T2-B(PP2)'!$B$127"]
["pp2_bl4_2_13_rate_in",{"$f":"'T2-B(PP2)'!$E$127","v":0},"#'T2-B(PP2)'!$E$127"]
["pp2_bl4_2_13_rate_out",{"$f":"'T2-B(PP2)'!$H$127","v":0},"#'T2-B(PP2)'!$H$127"]
["pp2_bl4_2_13_total",{"$f":"'T2-B(PP2)'!$J$127","v":0},"#'T2-B(PP2)'!$J$127"]
["pp2_bl4_2_13_total_in",{"$f":"'T2-B(PP2)'!$F$127","v":0},"#'T2-B(PP2)'!$F$127"]
["pp2_bl4_2_13_total_out",{"$f":"'T2-B(PP2)'!$I$127","v":0},"#'T2-B(PP2)'!$I$127"]
["pp2_bl4_2_13_unit",{"$f":"'T2-B(PP2)'!$C$127","v":0},"#'T2-B(PP2)'!$C$127"]
["pp2_bl4_2_13_unit_in",{"$f":"'T2-B(PP2)'!$D$127","v":0},"#'T2-B(PP2)'!$D$127"]
["pp2_bl4_2_13_units_out",{"$f":"'T2-B(PP2)'!$G$127","v":0},"#'T2-B(PP2)'!$G$127"]
["pp2_bl4_2_14_name",{"$f":"'T2-B(PP2)'!$B$128","v":0},"#'T2-B(PP2)'!$B$128"]
["pp2_bl4_2_14_rate_in",{"$f":"'T2-B(PP2)'!$E$128","v":0},"#'T2-B(PP2)'!$E$128"]
["pp2_bl4_2_14_rate_out",{"$f":"'T2-B(PP2)'!$H$128","v":0},"#'T2-B(PP2)'!$H$128"]
["pp2_bl4_2_14_total",{"$f":"'T2-B(PP2)'!$J$128","v":0},"#'T2-B(PP2)'!$J$128"]
["pp2_bl4_2_14_total_in",{"$f":"'T2-B(PP2)'!$F$128","v":0},"#'T2-B(PP2)'!$F$128"]
["pp2_bl4_2_14_total_out",{"$f":"'T2-B(PP2)'!$I$128","v":0},"#'T2-B(PP2)'!$I$128"]
["pp2_bl4_2_14_unit",{"$f":"'T2-B(PP2)'!$C$128","v":0},"#'T2-B(PP2)'!$C$128"]
["pp2_bl4_2_14_unit_in",{"$f":"'T2-B(PP2)'!$D$128","v":0},"#'T2-B(PP2)'!$D$128"]
["pp2_bl4_2_14_units_out",{"$f":"'T2-B(PP2)'!$G$128","v":0},"#'T2-B(PP2)'!$G$128"]
["pp2_bl4_2_15_name",{"$f":"'T2-B(PP2)'!$B$129","v":0},"#'T2-B(PP2)'!$B$129"]
["pp2_bl4_2_15_rate_in",{"$f":"'T2-B(PP2)'!$E$129","v":0},"#'T2-B(PP2)'!$E$129"]
["pp2_bl4_2_15_rate_out",{"$f":"'T2-B(PP2)'!$H$129","v":0},"#'T2-B(PP2)'!$H$129"]
["pp2_bl4_2_15_total",{"$f":"'T2-B(PP2)'!$J$129","v":0},"#'T2-B(PP2)'!$J$129"]
["pp2_bl4_2_15_total_in",{"$f":"'T2-B(PP2)'!$F$129","v":0},"#'T2-B(PP2)'!$F$129"]
["pp2_bl4_2_15_total_out",{"$f":"'T2-B(PP2)'!$I$129","v":0},"#'T2-B(PP2)'!$I$129"]
["pp2_bl4_2_15_unit",{"$f":"'T2-B(PP2)'!$C$129","v":0},"#'T2-B(PP2)'!$C$129"]
["pp2_bl4_2_15_unit_in",{"$f":"'T2-B(PP2)'!$D$129","v":0},"#'T2-B(PP2)'!$D$129"]
["pp2_bl4_2_15_units_out",{"$f":"'T2-B(PP2)'!$G$129","v":0},"#'T2-B(PP2)'!$G$129"]
["pp2_bl4_2_16_name",{"$f":"'T2-B(PP2)'!$B$130","v":0},"#'T2-B(PP2)'!$B$130"]
["pp2_bl4_2_16_rate_in",{"$f":"'T2-B(PP2)'!$E$130","v":0},"#'T2-B(PP2)'!$E$130"]
["pp2_bl4_2_16_rate_out",{"$f":"'T2-B(PP2)'!$H$130","v":0},"#'T2-B(PP2)'!$H$130"]
["pp2_bl4_2_16_total",{"$f":"'T2-B(PP2)'!$J$130","v":0},"#'T2-B(PP2)'!$J$130"]
["pp2_bl4_2_16_total_in",{"$f":"'T2-B(PP2)'!$F$130","v":0},"#'T2-B(PP2)'!$F$130"]
["pp2_bl4_2_16_total_out",{"$f":"'T2-B(PP2)'!$I$130","v":0},"#'T2-B(PP2)'!$I$130"]
["pp2_bl4_2_16_unit",{"$f":"'T2-B(PP2)'!$C$130","v":0},"#'T2-B(PP2)'!$C$130"]
["pp2_bl4_2_16_unit_in",{"$f":"'T2-B(PP2)'!$D$130","v":0},"#'T2-B(PP2)'!$D$130"]
["pp2_bl4_2_16_units_out",{"$f":"'T2-B(PP2)'!$G$130","v":0},"#'T2-B(PP2)'!$G$130"]
["pp2_bl4_2_17_name",{"$f":"'T2-B(PP2)'!$B$131","v":0},"#'T2-B(PP2)'!$B$131"]
["pp2_bl4_2_17_rate_in",{"$f":"'T2-B(PP2)'!$E$131","v":0},"#'T2-B(PP2)'!$E$131"]
["pp2_bl4_2_17_rate_out",{"$f":"'T2-B(PP2)'!$H$131","v":0},"#'T2-B(PP2)'!$H$131"]
["pp2_bl4_2_17_total",{"$f":"'T2-B(PP2)'!$J$131","v":0},"#'T2-B(PP2)'!$J$131"]
["pp2_bl4_2_17_total_in",{"$f":"'T2-B(PP2)'!$F$131","v":0},"#'T2-B(PP2)'!$F$131"]
["pp2_bl4_2_17_total_out",{"$f":"'T2-B(PP2)'!$I$131","v":0},"#'T2-B(PP2)'!$I$131"]
["pp2_bl4_2_17_unit",{"$f":"'T2-B(PP2)'!$C$131","v":0},"#'T2-B(PP2)'!$C$131"]
["pp2_bl4_2_17_unit_in",{"$f":"'T2-B(PP2)'!$D$131","v":0},"#'T2-B(PP2)'!$D$131"]
["pp2_bl4_2_17_units_out",{"$f":"'T2-B(PP2)'!$G$131","v":0},"#'T2-B(PP2)'!$G$131"]
["pp2_bl4_2_18_name",{"$f":"'T2-B(PP2)'!$B$132","v":0},"#'T2-B(PP2)'!$B$132"]
["pp2_bl4_2_18_rate_in",{"$f":"'T2-B(PP2)'!$E$132","v":0},"#'T2-B(PP2)'!$E$132"]
["pp2_bl4_2_18_rate_out",{"$f":"'T2-B(PP2)'!$H$132","v":0},"#'T2-B(PP2)'!$H$132"]
["pp2_bl4_2_18_total",{"$f":"'T2-B(PP2)'!$J$132","v":0},"#'T2-B(PP2)'!$J$132"]
["pp2_bl4_2_18_total_in",{"$f":"'T2-B(PP2)'!$F$132","v":0},"#'T2-B(PP2)'!$F$132"]
["pp2_bl4_2_18_total_out",{"$f":"'T2-B(PP2)'!$I$132","v":0},"#'T2-B(PP2)'!$I$132"]
["pp2_bl4_2_18_unit",{"$f":"'T2-B(PP2)'!$C$132","v":0},"#'T2-B(PP2)'!$C$132"]
["pp2_bl4_2_18_unit_in",{"$f":"'T2-B(PP2)'!$D$132","v":0},"#'T2-B(PP2)'!$D$132"]
["pp2_bl4_2_18_units_out",{"$f":"'T2-B(PP2)'!$G$132","v":0},"#'T2-B(PP2)'!$G$132"]
["pp2_bl4_2_19_name",{"$f":"'T2-B(PP2)'!$B$133","v":0},"#'T2-B(PP2)'!$B$133"]
["pp2_bl4_2_19_rate_in",{"$f":"'T2-B(PP2)'!$E$133","v":0},"#'T2-B(PP2)'!$E$133"]
["pp2_bl4_2_19_rate_out",{"$f":"'T2-B(PP2)'!$H$133","v":0},"#'T2-B(PP2)'!$H$133"]
["pp2_bl4_2_19_total",{"$f":"'T2-B(PP2)'!$J$133","v":0},"#'T2-B(PP2)'!$J$133"]
["pp2_bl4_2_19_total_in",{"$f":"'T2-B(PP2)'!$F$133","v":0},"#'T2-B(PP2)'!$F$133"]
["pp2_bl4_2_19_total_out",{"$f":"'T2-B(PP2)'!$I$133","v":0},"#'T2-B(PP2)'!$I$133"]
["pp2_bl4_2_19_unit",{"$f":"'T2-B(PP2)'!$C$133","v":0},"#'T2-B(PP2)'!$C$133"]
["pp2_bl4_2_19_unit_in",{"$f":"'T2-B(PP2)'!$D$133","v":0},"#'T2-B(PP2)'!$D$133"]
["pp2_bl4_2_19_units_out",{"$f":"'T2-B(PP2)'!$G$133","v":0},"#'T2-B(PP2)'!$G$133"]
["pp2_bl4_2_2_name",{"$f":"'T2-B(PP2)'!$B$116","v":0},"#'T2-B(PP2)'!$B$116"]
["pp2_bl4_2_2_rate_in",{"$f":"'T2-B(PP2)'!$E$116","v":0},"#'T2-B(PP2)'!$E$116"]
["pp2_bl4_2_2_rate_out",{"$f":"'T2-B(PP2)'!$H$116","v":0},"#'T2-B(PP2)'!$H$116"]
["pp2_bl4_2_2_total",{"$f":"'T2-B(PP2)'!$J$116","v":0},"#'T2-B(PP2)'!$J$116"]
["pp2_bl4_2_2_total_in",{"$f":"'T2-B(PP2)'!$F$116","v":0},"#'T2-B(PP2)'!$F$116"]
["pp2_bl4_2_2_total_out",{"$f":"'T2-B(PP2)'!$I$116","v":0},"#'T2-B(PP2)'!$I$116"]
["pp2_bl4_2_2_unit",{"$f":"'T2-B(PP2)'!$C$116","v":0},"#'T2-B(PP2)'!$C$116"]
["pp2_bl4_2_2_unit_in",{"$f":"'T2-B(PP2)'!$D$116","v":0},"#'T2-B(PP2)'!$D$116"]
["pp2_bl4_2_2_units_out",{"$f":"'T2-B(PP2)'!$G$116","v":0},"#'T2-B(PP2)'!$G$116"]
["pp2_bl4_2_20_name",{"$f":"'T2-B(PP2)'!$B$134","v":0},"#'T2-B(PP2)'!$B$134"]
["pp2_bl4_2_20_rate_in",{"$f":"'T2-B(PP2)'!$E$134","v":0},"#'T2-B(PP2)'!$E$134"]
["pp2_bl4_2_20_rate_out",{"$f":"'T2-B(PP2)'!$H$134","v":0},"#'T2-B(PP2)'!$H$134"]
["pp2_bl4_2_20_total",{"$f":"'T2-B(PP2)'!$J$134","v":0},"#'T2-B(PP2)'!$J$134"]
["pp2_bl4_2_20_total_in",{"$f":"'T2-B(PP2)'!$F$134","v":0},"#'T2-B(PP2)'!$F$134"]
["pp2_bl4_2_20_total_out",{"$f":"'T2-B(PP2)'!$I$134","v":0},"#'T2-B(PP2)'!$I$134"]
["pp2_bl4_2_20_unit",{"$f":"'T2-B(PP2)'!$C$134","v":0},"#'T2-B(PP2)'!$C$134"]
["pp2_bl4_2_20_unit_in",{"$f":"'T2-B(PP2)'!$D$134","v":0},"#'T2-B(PP2)'!$D$134"]
["pp2_bl4_2_20_units_out",{"$f":"'T2-B(PP2)'!$G$134","v":0},"#'T2-B(PP2)'!$G$134"]
["pp2_bl4_2_3_name",{"$f":"'T2-B(PP2)'!$B$117","v":0},"#'T2-B(PP2)'!$B$117"]
["pp2_bl4_2_3_rate_in",{"$f":"'T2-B(PP2)'!$E$117","v":0},"#'T2-B(PP2)'!$E$117"]
["pp2_bl4_2_3_rate_out",{"$f":"'T2-B(PP2)'!$H$117","v":0},"#'T2-B(PP2)'!$H$117"]
["pp2_bl4_2_3_total",{"$f":"'T2-B(PP2)'!$J$117","v":0},"#'T2-B(PP2)'!$J$117"]
["pp2_bl4_2_3_total_in",{"$f":"'T2-B(PP2)'!$F$117","v":0},"#'T2-B(PP2)'!$F$117"]
["pp2_bl4_2_3_total_out",{"$f":"'T2-B(PP2)'!$I$117","v":0},"#'T2-B(PP2)'!$I$117"]
["pp2_bl4_2_3_unit",{"$f":"'T2-B(PP2)'!$C$117","v":0},"#'T2-B(PP2)'!$C$117"]
["pp2_bl4_2_3_unit_in",{"$f":"'T2-B(PP2)'!$D$117","v":0},"#'T2-B(PP2)'!$D$117"]
["pp2_bl4_2_3_units_out",{"$f":"'T2-B(PP2)'!$G$117","v":0},"#'T2-B(PP2)'!$G$117"]
["pp2_bl4_2_4_name",{"$f":"'T2-B(PP2)'!$B$118","v":0},"#'T2-B(PP2)'!$B$118"]
["pp2_bl4_2_4_rate_in",{"$f":"'T2-B(PP2)'!$E$118","v":0},"#'T2-B(PP2)'!$E$118"]
["pp2_bl4_2_4_rate_out",{"$f":"'T2-B(PP2)'!$H$118","v":0},"#'T2-B(PP2)'!$H$118"]
["pp2_bl4_2_4_total",{"$f":"'T2-B(PP2)'!$J$118","v":0},"#'T2-B(PP2)'!$J$118"]
["pp2_bl4_2_4_total_in",{"$f":"'T2-B(PP2)'!$F$118","v":0},"#'T2-B(PP2)'!$F$118"]
["pp2_bl4_2_4_total_out",{"$f":"'T2-B(PP2)'!$I$118","v":0},"#'T2-B(PP2)'!$I$118"]
["pp2_bl4_2_4_unit",{"$f":"'T2-B(PP2)'!$C$118","v":0},"#'T2-B(PP2)'!$C$118"]
["pp2_bl4_2_4_unit_in",{"$f":"'T2-B(PP2)'!$D$118","v":0},"#'T2-B(PP2)'!$D$118"]
["pp2_bl4_2_4_units_out",{"$f":"'T2-B(PP2)'!$G$118","v":0},"#'T2-B(PP2)'!$G$118"]
["pp2_bl4_2_5_name",{"$f":"'T2-B(PP2)'!$B$119","v":0},"#'T2-B(PP2)'!$B$119"]
["pp2_bl4_2_5_rate_in",{"$f":"'T2-B(PP2)'!$E$119","v":0},"#'T2-B(PP2)'!$E$119"]
["pp2_bl4_2_5_rate_out",{"$f":"'T2-B(PP2)'!$H$119","v":0},"#'T2-B(PP2)'!$H$119"]
["pp2_bl4_2_5_total",{"$f":"'T2-B(PP2)'!$J$119","v":0},"#'T2-B(PP2)'!$J$119"]
["pp2_bl4_2_5_total_in",{"$f":"'T2-B(PP2)'!$F$119","v":0},"#'T2-B(PP2)'!$F$119"]
["pp2_bl4_2_5_total_out",{"$f":"'T2-B(PP2)'!$I$119","v":0},"#'T2-B(PP2)'!$I$119"]
["pp2_bl4_2_5_unit",{"$f":"'T2-B(PP2)'!$C$119","v":0},"#'T2-B(PP2)'!$C$119"]
["pp2_bl4_2_5_unit_in",{"$f":"'T2-B(PP2)'!$D$119","v":0},"#'T2-B(PP2)'!$D$119"]
["pp2_bl4_2_5_units_out",{"$f":"'T2-B(PP2)'!$G$119","v":0},"#'T2-B(PP2)'!$G$119"]
["pp2_bl4_2_6_name",{"$f":"'T2-B(PP2)'!$B$120","v":0},"#'T2-B(PP2)'!$B$120"]
["pp2_bl4_2_6_rate_in",{"$f":"'T2-B(PP2)'!$E$120","v":0},"#'T2-B(PP2)'!$E$120"]
["pp2_bl4_2_6_rate_out",{"$f":"'T2-B(PP2)'!$H$120","v":0},"#'T2-B(PP2)'!$H$120"]
["pp2_bl4_2_6_total",{"$f":"'T2-B(PP2)'!$J$120","v":0},"#'T2-B(PP2)'!$J$120"]
["pp2_bl4_2_6_total_in",{"$f":"'T2-B(PP2)'!$F$120","v":0},"#'T2-B(PP2)'!$F$120"]
["pp2_bl4_2_6_total_out",{"$f":"'T2-B(PP2)'!$I$120","v":0},"#'T2-B(PP2)'!$I$120"]
["pp2_bl4_2_6_unit",{"$f":"'T2-B(PP2)'!$C$120","v":0},"#'T2-B(PP2)'!$C$120"]
["pp2_bl4_2_6_unit_in",{"$f":"'T2-B(PP2)'!$D$120","v":0},"#'T2-B(PP2)'!$D$120"]
["pp2_bl4_2_6_units_out",{"$f":"'T2-B(PP2)'!$G$120","v":0},"#'T2-B(PP2)'!$G$120"]
["pp2_bl4_2_7_name",{"$f":"'T2-B(PP2)'!$B$121","v":0},"#'T2-B(PP2)'!$B$121"]
["pp2_bl4_2_7_rate_in",{"$f":"'T2-B(PP2)'!$E$121","v":0},"#'T2-B(PP2)'!$E$121"]
["pp2_bl4_2_7_rate_out",{"$f":"'T2-B(PP2)'!$H$121","v":0},"#'T2-B(PP2)'!$H$121"]
["pp2_bl4_2_7_total",{"$f":"'T2-B(PP2)'!$J$121","v":0},"#'T2-B(PP2)'!$J$121"]
["pp2_bl4_2_7_total_in",{"$f":"'T2-B(PP2)'!$F$121","v":0},"#'T2-B(PP2)'!$F$121"]
["pp2_bl4_2_7_total_out",{"$f":"'T2-B(PP2)'!$I$121","v":0},"#'T2-B(PP2)'!$I$121"]
["pp2_bl4_2_7_unit",{"$f":"'T2-B(PP2)'!$C$121","v":0},"#'T2-B(PP2)'!$C$121"]
["pp2_bl4_2_7_unit_in",{"$f":"'T2-B(PP2)'!$D$121","v":0},"#'T2-B(PP2)'!$D$121"]
["pp2_bl4_2_7_units_out",{"$f":"'T2-B(PP2)'!$G$121","v":0},"#'T2-B(PP2)'!$G$121"]
["pp2_bl4_2_8_name",{"$f":"'T2-B(PP2)'!$B$122","v":0},"#'T2-B(PP2)'!$B$122"]
["pp2_bl4_2_8_rate_in",{"$f":"'T2-B(PP2)'!$E$122","v":0},"#'T2-B(PP2)'!$E$122"]
["pp2_bl4_2_8_rate_out",{"$f":"'T2-B(PP2)'!$H$122","v":0},"#'T2-B(PP2)'!$H$122"]
["pp2_bl4_2_8_total",{"$f":"'T2-B(PP2)'!$J$122","v":0},"#'T2-B(PP2)'!$J$122"]
["pp2_bl4_2_8_total_in",{"$f":"'T2-B(PP2)'!$F$122","v":0},"#'T2-B(PP2)'!$F$122"]
["pp2_bl4_2_8_total_out",{"$f":"'T2-B(PP2)'!$I$122","v":0},"#'T2-B(PP2)'!$I$122"]
["pp2_bl4_2_8_unit",{"$f":"'T2-B(PP2)'!$C$122","v":0},"#'T2-B(PP2)'!$C$122"]
["pp2_bl4_2_8_unit_in",{"$f":"'T2-B(PP2)'!$D$122","v":0},"#'T2-B(PP2)'!$D$122"]
["pp2_bl4_2_8_units_out",{"$f":"'T2-B(PP2)'!$G$122","v":0},"#'T2-B(PP2)'!$G$122"]
["pp2_bl4_2_9_name",{"$f":"'T2-B(PP2)'!$B$123","v":0},"#'T2-B(PP2)'!$B$123"]
["pp2_bl4_2_9_rate_in",{"$f":"'T2-B(PP2)'!$E$123","v":0},"#'T2-B(PP2)'!$E$123"]
["pp2_bl4_2_9_rate_out",{"$f":"'T2-B(PP2)'!$H$123","v":0},"#'T2-B(PP2)'!$H$123"]
["pp2_bl4_2_9_total",{"$f":"'T2-B(PP2)'!$J$123","v":0},"#'T2-B(PP2)'!$J$123"]
["pp2_bl4_2_9_total_in",{"$f":"'T2-B(PP2)'!$F$123","v":0},"#'T2-B(PP2)'!$F$123"]
["pp2_bl4_2_9_total_out",{"$f":"'T2-B(PP2)'!$I$123","v":0},"#'T2-B(PP2)'!$I$123"]
["pp2_bl4_2_9_unit",{"$f":"'T2-B(PP2)'!$C$123","v":0},"#'T2-B(PP2)'!$C$123"]
["pp2_bl4_2_9_unit_in",{"$f":"'T2-B(PP2)'!$D$123","v":0},"#'T2-B(PP2)'!$D$123"]
["pp2_bl4_2_9_units_out",{"$f":"'T2-B(PP2)'!$G$123","v":0},"#'T2-B(PP2)'!$G$123"]
["pp2_bl4_2_total",{"$f":"'T2-B(PP2)'!$J$114","v":0},"#'T2-B(PP2)'!$J$114"]
["pp2_bl4_2_total_in",{"$f":"'T2-B(PP2)'!$F$114","v":0},"#'T2-B(PP2)'!$F$114"]
["pp2_bl4_2_total_out",{"$f":"'T2-B(PP2)'!$I$114","v":0},"#'T2-B(PP2)'!$I$114"]
["pp2_bl4_3_1_name",{"$f":"'T2-B(PP2)'!$B$136","v":0},"#'T2-B(PP2)'!$B$136"]
["pp2_bl4_3_1_rate_in",{"$f":"'T2-B(PP2)'!$E$136","v":0},"#'T2-B(PP2)'!$E$136"]
["pp2_bl4_3_1_rate_out",{"$f":"'T2-B(PP2)'!$H$136","v":0},"#'T2-B(PP2)'!$H$136"]
["pp2_bl4_3_1_total",{"$f":"'T2-B(PP2)'!$J$136","v":0},"#'T2-B(PP2)'!$J$136"]
["pp2_bl4_3_1_total_in",{"$f":"'T2-B(PP2)'!$F$136","v":0},"#'T2-B(PP2)'!$F$136"]
["pp2_bl4_3_1_total_out",{"$f":"'T2-B(PP2)'!$I$136","v":0},"#'T2-B(PP2)'!$I$136"]
["pp2_bl4_3_1_unit",{"$f":"'T2-B(PP2)'!$C$136","v":0},"#'T2-B(PP2)'!$C$136"]
["pp2_bl4_3_1_unit_in",{"$f":"'T2-B(PP2)'!$D$136","v":0},"#'T2-B(PP2)'!$D$136"]
["pp2_bl4_3_1_units_out",{"$f":"'T2-B(PP2)'!$G$136","v":0},"#'T2-B(PP2)'!$G$136"]
["pp2_bl4_3_10_name",{"$f":"'T2-B(PP2)'!$B$145","v":0},"#'T2-B(PP2)'!$B$145"]
["pp2_bl4_3_10_rate_in",{"$f":"'T2-B(PP2)'!$E$145","v":0},"#'T2-B(PP2)'!$E$145"]
["pp2_bl4_3_10_rate_out",{"$f":"'T2-B(PP2)'!$H$145","v":0},"#'T2-B(PP2)'!$H$145"]
["pp2_bl4_3_10_total",{"$f":"'T2-B(PP2)'!$J$145","v":0},"#'T2-B(PP2)'!$J$145"]
["pp2_bl4_3_10_total_in",{"$f":"'T2-B(PP2)'!$F$145","v":0},"#'T2-B(PP2)'!$F$145"]
["pp2_bl4_3_10_total_out",{"$f":"'T2-B(PP2)'!$I$145","v":0},"#'T2-B(PP2)'!$I$145"]
["pp2_bl4_3_10_unit",{"$f":"'T2-B(PP2)'!$C$145","v":0},"#'T2-B(PP2)'!$C$145"]
["pp2_bl4_3_10_unit_in",{"$f":"'T2-B(PP2)'!$D$145","v":0},"#'T2-B(PP2)'!$D$145"]
["pp2_bl4_3_10_units_out",{"$f":"'T2-B(PP2)'!$G$145","v":0},"#'T2-B(PP2)'!$G$145"]
["pp2_bl4_3_11_name",{"$f":"'T2-B(PP2)'!$B$146","v":0},"#'T2-B(PP2)'!$B$146"]
["pp2_bl4_3_11_rate_in",{"$f":"'T2-B(PP2)'!$E$146","v":0},"#'T2-B(PP2)'!$E$146"]
["pp2_bl4_3_11_rate_out",{"$f":"'T2-B(PP2)'!$H$146","v":0},"#'T2-B(PP2)'!$H$146"]
["pp2_bl4_3_11_total",{"$f":"'T2-B(PP2)'!$J$146","v":0},"#'T2-B(PP2)'!$J$146"]
["pp2_bl4_3_11_total_in",{"$f":"'T2-B(PP2)'!$F$146","v":0},"#'T2-B(PP2)'!$F$146"]
["pp2_bl4_3_11_total_out",{"$f":"'T2-B(PP2)'!$I$146","v":0},"#'T2-B(PP2)'!$I$146"]
["pp2_bl4_3_11_unit",{"$f":"'T2-B(PP2)'!$C$146","v":0},"#'T2-B(PP2)'!$C$146"]
["pp2_bl4_3_11_unit_in",{"$f":"'T2-B(PP2)'!$D$146","v":0},"#'T2-B(PP2)'!$D$146"]
["pp2_bl4_3_11_units_out",{"$f":"'T2-B(PP2)'!$G$146","v":0},"#'T2-B(PP2)'!$G$146"]
["pp2_bl4_3_12_name",{"$f":"'T2-B(PP2)'!$B$147","v":0},"#'T2-B(PP2)'!$B$147"]
["pp2_bl4_3_12_rate_in",{"$f":"'T2-B(PP2)'!$E$147","v":0},"#'T2-B(PP2)'!$E$147"]
["pp2_bl4_3_12_rate_out",{"$f":"'T2-B(PP2)'!$H$147","v":0},"#'T2-B(PP2)'!$H$147"]
["pp2_bl4_3_12_total",{"$f":"'T2-B(PP2)'!$J$147","v":0},"#'T2-B(PP2)'!$J$147"]
["pp2_bl4_3_12_total_in",{"$f":"'T2-B(PP2)'!$F$147","v":0},"#'T2-B(PP2)'!$F$147"]
["pp2_bl4_3_12_total_out",{"$f":"'T2-B(PP2)'!$I$147","v":0},"#'T2-B(PP2)'!$I$147"]
["pp2_bl4_3_12_unit",{"$f":"'T2-B(PP2)'!$C$147","v":0},"#'T2-B(PP2)'!$C$147"]
["pp2_bl4_3_12_unit_in",{"$f":"'T2-B(PP2)'!$D$147","v":0},"#'T2-B(PP2)'!$D$147"]
["pp2_bl4_3_12_units_out",{"$f":"'T2-B(PP2)'!$G$147","v":0},"#'T2-B(PP2)'!$G$147"]
["pp2_bl4_3_13_name",{"$f":"'T2-B(PP2)'!$B$148","v":0},"#'T2-B(PP2)'!$B$148"]
["pp2_bl4_3_13_rate_in",{"$f":"'T2-B(PP2)'!$E$148","v":0},"#'T2-B(PP2)'!$E$148"]
["pp2_bl4_3_13_rate_out",{"$f":"'T2-B(PP2)'!$H$148","v":0},"#'T2-B(PP2)'!$H$148"]
["pp2_bl4_3_13_total",{"$f":"'T2-B(PP2)'!$J$148","v":0},"#'T2-B(PP2)'!$J$148"]
["pp2_bl4_3_13_total_in",{"$f":"'T2-B(PP2)'!$F$148","v":0},"#'T2-B(PP2)'!$F$148"]
["pp2_bl4_3_13_total_out",{"$f":"'T2-B(PP2)'!$I$148","v":0},"#'T2-B(PP2)'!$I$148"]
["pp2_bl4_3_13_unit",{"$f":"'T2-B(PP2)'!$C$148","v":0},"#'T2-B(PP2)'!$C$148"]
["pp2_bl4_3_13_unit_in",{"$f":"'T2-B(PP2)'!$D$148","v":0},"#'T2-B(PP2)'!$D$148"]
["pp2_bl4_3_13_units_out",{"$f":"'T2-B(PP2)'!$G$148","v":0},"#'T2-B(PP2)'!$G$148"]
["pp2_bl4_3_14_name",{"$f":"'T2-B(PP2)'!$B$149","v":0},"#'T2-B(PP2)'!$B$149"]
["pp2_bl4_3_14_rate_in",{"$f":"'T2-B(PP2)'!$E$149","v":0},"#'T2-B(PP2)'!$E$149"]
["pp2_bl4_3_14_rate_out",{"$f":"'T2-B(PP2)'!$H$149","v":0},"#'T2-B(PP2)'!$H$149"]
["pp2_bl4_3_14_total",{"$f":"'T2-B(PP2)'!$J$149","v":0},"#'T2-B(PP2)'!$J$149"]
["pp2_bl4_3_14_total_in",{"$f":"'T2-B(PP2)'!$F$149","v":0},"#'T2-B(PP2)'!$F$149"]
["pp2_bl4_3_14_total_out",{"$f":"'T2-B(PP2)'!$I$149","v":0},"#'T2-B(PP2)'!$I$149"]
["pp2_bl4_3_14_unit",{"$f":"'T2-B(PP2)'!$C$149","v":0},"#'T2-B(PP2)'!$C$149"]
["pp2_bl4_3_14_unit_in",{"$f":"'T2-B(PP2)'!$D$149","v":0},"#'T2-B(PP2)'!$D$149"]
["pp2_bl4_3_14_units_out",{"$f":"'T2-B(PP2)'!$G$149","v":0},"#'T2-B(PP2)'!$G$149"]
["pp2_bl4_3_15_name",{"$f":"'T2-B(PP2)'!$B$150","v":0},"#'T2-B(PP2)'!$B$150"]
["pp2_bl4_3_15_rate_in",{"$f":"'T2-B(PP2)'!$E$150","v":0},"#'T2-B(PP2)'!$E$150"]
["pp2_bl4_3_15_rate_out",{"$f":"'T2-B(PP2)'!$H$150","v":0},"#'T2-B(PP2)'!$H$150"]
["pp2_bl4_3_15_total",{"$f":"'T2-B(PP2)'!$J$150","v":0},"#'T2-B(PP2)'!$J$150"]
["pp2_bl4_3_15_total_in",{"$f":"'T2-B(PP2)'!$F$150","v":0},"#'T2-B(PP2)'!$F$150"]
["pp2_bl4_3_15_total_out",{"$f":"'T2-B(PP2)'!$I$150","v":0},"#'T2-B(PP2)'!$I$150"]
["pp2_bl4_3_15_unit",{"$f":"'T2-B(PP2)'!$C$150","v":0},"#'T2-B(PP2)'!$C$150"]
["pp2_bl4_3_15_unit_in",{"$f":"'T2-B(PP2)'!$D$150","v":0},"#'T2-B(PP2)'!$D$150"]
["pp2_bl4_3_15_units_out",{"$f":"'T2-B(PP2)'!$G$150","v":0},"#'T2-B(PP2)'!$G$150"]
["pp2_bl4_3_16_name",{"$f":"'T2-B(PP2)'!$B$151","v":0},"#'T2-B(PP2)'!$B$151"]
["pp2_bl4_3_16_rate_in",{"$f":"'T2-B(PP2)'!$E$151","v":0},"#'T2-B(PP2)'!$E$151"]
["pp2_bl4_3_16_rate_out",{"$f":"'T2-B(PP2)'!$H$151","v":0},"#'T2-B(PP2)'!$H$151"]
["pp2_bl4_3_16_total",{"$f":"'T2-B(PP2)'!$J$151","v":0},"#'T2-B(PP2)'!$J$151"]
["pp2_bl4_3_16_total_in",{"$f":"'T2-B(PP2)'!$F$151","v":0},"#'T2-B(PP2)'!$F$151"]
["pp2_bl4_3_16_total_out",{"$f":"'T2-B(PP2)'!$I$151","v":0},"#'T2-B(PP2)'!$I$151"]
["pp2_bl4_3_16_unit",{"$f":"'T2-B(PP2)'!$C$151","v":0},"#'T2-B(PP2)'!$C$151"]
["pp2_bl4_3_16_unit_in",{"$f":"'T2-B(PP2)'!$D$151","v":0},"#'T2-B(PP2)'!$D$151"]
["pp2_bl4_3_16_units_out",{"$f":"'T2-B(PP2)'!$G$151","v":0},"#'T2-B(PP2)'!$G$151"]
["pp2_bl4_3_17_name",{"$f":"'T2-B(PP2)'!$B$152","v":0},"#'T2-B(PP2)'!$B$152"]
["pp2_bl4_3_17_rate_in",{"$f":"'T2-B(PP2)'!$E$152","v":0},"#'T2-B(PP2)'!$E$152"]
["pp2_bl4_3_17_rate_out",{"$f":"'T2-B(PP2)'!$H$152","v":0},"#'T2-B(PP2)'!$H$152"]
["pp2_bl4_3_17_total",{"$f":"'T2-B(PP2)'!$J$152","v":0},"#'T2-B(PP2)'!$J$152"]
["pp2_bl4_3_17_total_in",{"$f":"'T2-B(PP2)'!$F$152","v":0},"#'T2-B(PP2)'!$F$152"]
["pp2_bl4_3_17_total_out",{"$f":"'T2-B(PP2)'!$I$152","v":0},"#'T2-B(PP2)'!$I$152"]
["pp2_bl4_3_17_unit",{"$f":"'T2-B(PP2)'!$C$152","v":0},"#'T2-B(PP2)'!$C$152"]
["pp2_bl4_3_17_unit_in",{"$f":"'T2-B(PP2)'!$D$152","v":0},"#'T2-B(PP2)'!$D$152"]
["pp2_bl4_3_17_units_out",{"$f":"'T2-B(PP2)'!$G$152","v":0},"#'T2-B(PP2)'!$G$152"]
["pp2_bl4_3_18_name",{"$f":"'T2-B(PP2)'!$B$153","v":0},"#'T2-B(PP2)'!$B$153"]
["pp2_bl4_3_18_rate_in",{"$f":"'T2-B(PP2)'!$E$153","v":0},"#'T2-B(PP2)'!$E$153"]
["pp2_bl4_3_18_rate_out",{"$f":"'T2-B(PP2)'!$H$153","v":0},"#'T2-B(PP2)'!$H$153"]
["pp2_bl4_3_18_total",{"$f":"'T2-B(PP2)'!$J$153","v":0},"#'T2-B(PP2)'!$J$153"]
["pp2_bl4_3_18_total_in",{"$f":"'T2-B(PP2)'!$F$153","v":0},"#'T2-B(PP2)'!$F$153"]
["pp2_bl4_3_18_total_out",{"$f":"'T2-B(PP2)'!$I$153","v":0},"#'T2-B(PP2)'!$I$153"]
["pp2_bl4_3_18_unit",{"$f":"'T2-B(PP2)'!$C$153","v":0},"#'T2-B(PP2)'!$C$153"]
["pp2_bl4_3_18_unit_in",{"$f":"'T2-B(PP2)'!$D$153","v":0},"#'T2-B(PP2)'!$D$153"]
["pp2_bl4_3_18_units_out",{"$f":"'T2-B(PP2)'!$G$153","v":0},"#'T2-B(PP2)'!$G$153"]
["pp2_bl4_3_19_name",{"$f":"'T2-B(PP2)'!$B$154","v":0},"#'T2-B(PP2)'!$B$154"]
["pp2_bl4_3_19_rate_in",{"$f":"'T2-B(PP2)'!$E$154","v":0},"#'T2-B(PP2)'!$E$154"]
["pp2_bl4_3_19_rate_out",{"$f":"'T2-B(PP2)'!$H$154","v":0},"#'T2-B(PP2)'!$H$154"]
["pp2_bl4_3_19_total",{"$f":"'T2-B(PP2)'!$J$154","v":0},"#'T2-B(PP2)'!$J$154"]
["pp2_bl4_3_19_total_in",{"$f":"'T2-B(PP2)'!$F$154","v":0},"#'T2-B(PP2)'!$F$154"]
["pp2_bl4_3_19_total_out",{"$f":"'T2-B(PP2)'!$I$154","v":0},"#'T2-B(PP2)'!$I$154"]
["pp2_bl4_3_19_unit",{"$f":"'T2-B(PP2)'!$C$154","v":0},"#'T2-B(PP2)'!$C$154"]
["pp2_bl4_3_19_unit_in",{"$f":"'T2-B(PP2)'!$D$154","v":0},"#'T2-B(PP2)'!$D$154"]
["pp2_bl4_3_19_units_out",{"$f":"'T2-B(PP2)'!$G$154","v":0},"#'T2-B(PP2)'!$G$154"]
["pp2_bl4_3_2_name",{"$f":"'T2-B(PP2)'!$B$137","v":0},"#'T2-B(PP2)'!$B$137"]
["pp2_bl4_3_2_rate_in",{"$f":"'T2-B(PP2)'!$E$137","v":0},"#'T2-B(PP2)'!$E$137"]
["pp2_bl4_3_2_rate_out",{"$f":"'T2-B(PP2)'!$H$137","v":0},"#'T2-B(PP2)'!$H$137"]
["pp2_bl4_3_2_total",{"$f":"'T2-B(PP2)'!$J$137","v":0},"#'T2-B(PP2)'!$J$137"]
["pp2_bl4_3_2_total_in",{"$f":"'T2-B(PP2)'!$F$137","v":0},"#'T2-B(PP2)'!$F$137"]
["pp2_bl4_3_2_total_out",{"$f":"'T2-B(PP2)'!$I$137","v":0},"#'T2-B(PP2)'!$I$137"]
["pp2_bl4_3_2_unit",{"$f":"'T2-B(PP2)'!$C$137","v":0},"#'T2-B(PP2)'!$C$137"]
["pp2_bl4_3_2_unit_in",{"$f":"'T2-B(PP2)'!$D$137","v":0},"#'T2-B(PP2)'!$D$137"]
["pp2_bl4_3_2_units_out",{"$f":"'T2-B(PP2)'!$G$137","v":0},"#'T2-B(PP2)'!$G$137"]
["pp2_bl4_3_20_name",{"$f":"'T2-B(PP2)'!$B$155","v":0},"#'T2-B(PP2)'!$B$155"]
["pp2_bl4_3_20_rate_in",{"$f":"'T2-B(PP2)'!$E$155","v":0},"#'T2-B(PP2)'!$E$155"]
["pp2_bl4_3_20_rate_out",{"$f":"'T2-B(PP2)'!$H$155","v":0},"#'T2-B(PP2)'!$H$155"]
["pp2_bl4_3_20_total",{"$f":"'T2-B(PP2)'!$J$155","v":0},"#'T2-B(PP2)'!$J$155"]
["pp2_bl4_3_20_total_in",{"$f":"'T2-B(PP2)'!$F$155","v":0},"#'T2-B(PP2)'!$F$155"]
["pp2_bl4_3_20_total_out",{"$f":"'T2-B(PP2)'!$I$155","v":0},"#'T2-B(PP2)'!$I$155"]
["pp2_bl4_3_20_unit",{"$f":"'T2-B(PP2)'!$C$155","v":0},"#'T2-B(PP2)'!$C$155"]
["pp2_bl4_3_20_unit_in",{"$f":"'T2-B(PP2)'!$D$155","v":0},"#'T2-B(PP2)'!$D$155"]
["pp2_bl4_3_20_units_out",{"$f":"'T2-B(PP2)'!$G$155","v":0},"#'T2-B(PP2)'!$G$155"]
["pp2_bl4_3_3_name",{"$f":"'T2-B(PP2)'!$B$138","v":0},"#'T2-B(PP2)'!$B$138"]
["pp2_bl4_3_3_rate_in",{"$f":"'T2-B(PP2)'!$E$138","v":0},"#'T2-B(PP2)'!$E$138"]
["pp2_bl4_3_3_rate_out",{"$f":"'T2-B(PP2)'!$H$138","v":0},"#'T2-B(PP2)'!$H$138"]
["pp2_bl4_3_3_total",{"$f":"'T2-B(PP2)'!$J$138","v":0},"#'T2-B(PP2)'!$J$138"]
["pp2_bl4_3_3_total_in",{"$f":"'T2-B(PP2)'!$F$138","v":0},"#'T2-B(PP2)'!$F$138"]
["pp2_bl4_3_3_total_out",{"$f":"'T2-B(PP2)'!$I$138","v":0},"#'T2-B(PP2)'!$I$138"]
["pp2_bl4_3_3_unit",{"$f":"'T2-B(PP2)'!$C$138","v":0},"#'T2-B(PP2)'!$C$138"]
["pp2_bl4_3_3_unit_in",{"$f":"'T2-B(PP2)'!$D$138","v":0},"#'T2-B(PP2)'!$D$138"]
["pp2_bl4_3_3_units_out",{"$f":"'T2-B(PP2)'!$G$138","v":0},"#'T2-B(PP2)'!$G$138"]
["pp2_bl4_3_4_name",{"$f":"'T2-B(PP2)'!$B$139","v":0},"#'T2-B(PP2)'!$B$139"]
["pp2_bl4_3_4_rate_in",{"$f":"'T2-B(PP2)'!$E$139","v":0},"#'T2-B(PP2)'!$E$139"]
["pp2_bl4_3_4_rate_out",{"$f":"'T2-B(PP2)'!$H$139","v":0},"#'T2-B(PP2)'!$H$139"]
["pp2_bl4_3_4_total",{"$f":"'T2-B(PP2)'!$J$139","v":0},"#'T2-B(PP2)'!$J$139"]
["pp2_bl4_3_4_total_in",{"$f":"'T2-B(PP2)'!$F$139","v":0},"#'T2-B(PP2)'!$F$139"]
["pp2_bl4_3_4_total_out",{"$f":"'T2-B(PP2)'!$I$139","v":0},"#'T2-B(PP2)'!$I$139"]
["pp2_bl4_3_4_unit",{"$f":"'T2-B(PP2)'!$C$139","v":0},"#'T2-B(PP2)'!$C$139"]
["pp2_bl4_3_4_unit_in",{"$f":"'T2-B(PP2)'!$D$139","v":0},"#'T2-B(PP2)'!$D$139"]
["pp2_bl4_3_4_units_out",{"$f":"'T2-B(PP2)'!$G$139","v":0},"#'T2-B(PP2)'!$G$139"]
["pp2_bl4_3_5_name",{"$f":"'T2-B(PP2)'!$B$140","v":0},"#'T2-B(PP2)'!$B$140"]
["pp2_bl4_3_5_rate_in",{"$f":"'T2-B(PP2)'!$E$140","v":0},"#'T2-B(PP2)'!$E$140"]
["pp2_bl4_3_5_rate_out",{"$f":"'T2-B(PP2)'!$H$140","v":0},"#'T2-B(PP2)'!$H$140"]
["pp2_bl4_3_5_total",{"$f":"'T2-B(PP2)'!$J$140","v":0},"#'T2-B(PP2)'!$J$140"]
["pp2_bl4_3_5_total_in",{"$f":"'T2-B(PP2)'!$F$140","v":0},"#'T2-B(PP2)'!$F$140"]
["pp2_bl4_3_5_total_out",{"$f":"'T2-B(PP2)'!$I$140","v":0},"#'T2-B(PP2)'!$I$140"]
["pp2_bl4_3_5_unit",{"$f":"'T2-B(PP2)'!$C$140","v":0},"#'T2-B(PP2)'!$C$140"]
["pp2_bl4_3_5_unit_in",{"$f":"'T2-B(PP2)'!$D$140","v":0},"#'T2-B(PP2)'!$D$140"]
["pp2_bl4_3_5_units_out",{"$f":"'T2-B(PP2)'!$G$140","v":0},"#'T2-B(PP2)'!$G$140"]
["pp2_bl4_3_6_name",{"$f":"'T2-B(PP2)'!$B$141","v":0},"#'T2-B(PP2)'!$B$141"]
["pp2_bl4_3_6_rate_in",{"$f":"'T2-B(PP2)'!$E$141","v":0},"#'T2-B(PP2)'!$E$141"]
["pp2_bl4_3_6_rate_out",{"$f":"'T2-B(PP2)'!$H$141","v":0},"#'T2-B(PP2)'!$H$141"]
["pp2_bl4_3_6_total",{"$f":"'T2-B(PP2)'!$J$141","v":0},"#'T2-B(PP2)'!$J$141"]
["pp2_bl4_3_6_total_in",{"$f":"'T2-B(PP2)'!$F$141","v":0},"#'T2-B(PP2)'!$F$141"]
["pp2_bl4_3_6_total_out",{"$f":"'T2-B(PP2)'!$I$141","v":0},"#'T2-B(PP2)'!$I$141"]
["pp2_bl4_3_6_unit",{"$f":"'T2-B(PP2)'!$C$141","v":0},"#'T2-B(PP2)'!$C$141"]
["pp2_bl4_3_6_unit_in",{"$f":"'T2-B(PP2)'!$D$141","v":0},"#'T2-B(PP2)'!$D$141"]
["pp2_bl4_3_6_units_out",{"$f":"'T2-B(PP2)'!$G$141","v":0},"#'T2-B(PP2)'!$G$141"]
["pp2_bl4_3_7_name",{"$f":"'T2-B(PP2)'!$B$142","v":0},"#'T2-B(PP2)'!$B$142"]
["pp2_bl4_3_7_rate_in",{"$f":"'T2-B(PP2)'!$E$142","v":0},"#'T2-B(PP2)'!$E$142"]
["pp2_bl4_3_7_rate_out",{"$f":"'T2-B(PP2)'!$H$142","v":0},"#'T2-B(PP2)'!$H$142"]
["pp2_bl4_3_7_total",{"$f":"'T2-B(PP2)'!$J$142","v":0},"#'T2-B(PP2)'!$J$142"]
["pp2_bl4_3_7_total_in",{"$f":"'T2-B(PP2)'!$F$142","v":0},"#'T2-B(PP2)'!$F$142"]
["pp2_bl4_3_7_total_out",{"$f":"'T2-B(PP2)'!$I$142","v":0},"#'T2-B(PP2)'!$I$142"]
["pp2_bl4_3_7_unit",{"$f":"'T2-B(PP2)'!$C$142","v":0},"#'T2-B(PP2)'!$C$142"]
["pp2_bl4_3_7_unit_in",{"$f":"'T2-B(PP2)'!$D$142","v":0},"#'T2-B(PP2)'!$D$142"]
["pp2_bl4_3_7_units_out",{"$f":"'T2-B(PP2)'!$G$142","v":0},"#'T2-B(PP2)'!$G$142"]
["pp2_bl4_3_8_name",{"$f":"'T2-B(PP2)'!$B$143","v":0},"#'T2-B(PP2)'!$B$143"]
["pp2_bl4_3_8_rate_in",{"$f":"'T2-B(PP2)'!$E$143","v":0},"#'T2-B(PP2)'!$E$143"]
["pp2_bl4_3_8_rate_out",{"$f":"'T2-B(PP2)'!$H$143","v":0},"#'T2-B(PP2)'!$H$143"]
["pp2_bl4_3_8_total",{"$f":"'T2-B(PP2)'!$J$143","v":0},"#'T2-B(PP2)'!$J$143"]
["pp2_bl4_3_8_total_in",{"$f":"'T2-B(PP2)'!$F$143","v":0},"#'T2-B(PP2)'!$F$143"]
["pp2_bl4_3_8_total_out",{"$f":"'T2-B(PP2)'!$I$143","v":0},"#'T2-B(PP2)'!$I$143"]
["pp2_bl4_3_8_unit",{"$f":"'T2-B(PP2)'!$C$143","v":0},"#'T2-B(PP2)'!$C$143"]
["pp2_bl4_3_8_unit_in",{"$f":"'T2-B(PP2)'!$D$143","v":0},"#'T2-B(PP2)'!$D$143"]
["pp2_bl4_3_8_units_out",{"$f":"'T2-B(PP2)'!$G$143","v":0},"#'T2-B(PP2)'!$G$143"]
["pp2_bl4_3_9_name",{"$f":"'T2-B(PP2)'!$B$144","v":0},"#'T2-B(PP2)'!$B$144"]
["pp2_bl4_3_9_rate_in",{"$f":"'T2-B(PP2)'!$E$144","v":0},"#'T2-B(PP2)'!$E$144"]
["pp2_bl4_3_9_rate_out",{"$f":"'T2-B(PP2)'!$H$144","v":0},"#'T2-B(PP2)'!$H$144"]
["pp2_bl4_3_9_total",{"$f":"'T2-B(PP2)'!$J$144","v":0},"#'T2-B(PP2)'!$J$144"]
["pp2_bl4_3_9_total_in",{"$f":"'T2-B(PP2)'!$F$144","v":0},"#'T2-B(PP2)'!$F$144"]
["pp2_bl4_3_9_total_out",{"$f":"'T2-B(PP2)'!$I$144","v":0},"#'T2-B(PP2)'!$I$144"]
["pp2_bl4_3_9_unit",{"$f":"'T2-B(PP2)'!$C$144","v":0},"#'T2-B(PP2)'!$C$144"]
["pp2_bl4_3_9_unit_in",{"$f":"'T2-B(PP2)'!$D$144","v":0},"#'T2-B(PP2)'!$D$144"]
["pp2_bl4_3_9_units_out",{"$f":"'T2-B(PP2)'!$G$144","v":0},"#'T2-B(PP2)'!$G$144"]
["pp2_bl4_3_total",{"$f":"'T2-B(PP2)'!$J$135","v":0},"#'T2-B(PP2)'!$J$135"]
["pp2_bl4_3_total_in",{"$f":"'T2-B(PP2)'!$F$135","v":0},"#'T2-B(PP2)'!$F$135"]
["pp2_bl4_3_total_out",{"$f":"'T2-B(PP2)'!$I$135","v":0},"#'T2-B(PP2)'!$I$135"]
["pp2_bl4_4_1_name",{"$f":"'T2-B(PP2)'!$B$157","v":0},"#'T2-B(PP2)'!$B$157"]
["pp2_bl4_4_1_rate_in",{"$f":"'T2-B(PP2)'!$E$157","v":0},"#'T2-B(PP2)'!$E$157"]
["pp2_bl4_4_1_rate_out",{"$f":"'T2-B(PP2)'!$H$157","v":0},"#'T2-B(PP2)'!$H$157"]
["pp2_bl4_4_1_total",{"$f":"'T2-B(PP2)'!$J$157","v":0},"#'T2-B(PP2)'!$J$157"]
["pp2_bl4_4_1_total_in",{"$f":"'T2-B(PP2)'!$F$157","v":0},"#'T2-B(PP2)'!$F$157"]
["pp2_bl4_4_1_total_out",{"$f":"'T2-B(PP2)'!$I$157","v":0},"#'T2-B(PP2)'!$I$157"]
["pp2_bl4_4_1_unit",{"$f":"'T2-B(PP2)'!$C$157","v":0},"#'T2-B(PP2)'!$C$157"]
["pp2_bl4_4_1_unit_in",{"$f":"'T2-B(PP2)'!$D$157","v":0},"#'T2-B(PP2)'!$D$157"]
["pp2_bl4_4_1_units_out",{"$f":"'T2-B(PP2)'!$G$157","v":0},"#'T2-B(PP2)'!$G$157"]
["pp2_bl4_4_10_name",{"$f":"'T2-B(PP2)'!$B$166","v":0},"#'T2-B(PP2)'!$B$166"]
["pp2_bl4_4_10_rate_in",{"$f":"'T2-B(PP2)'!$E$166","v":0},"#'T2-B(PP2)'!$E$166"]
["pp2_bl4_4_10_rate_out",{"$f":"'T2-B(PP2)'!$H$166","v":0},"#'T2-B(PP2)'!$H$166"]
["pp2_bl4_4_10_total",{"$f":"'T2-B(PP2)'!$J$166","v":0},"#'T2-B(PP2)'!$J$166"]
["pp2_bl4_4_10_total_in",{"$f":"'T2-B(PP2)'!$F$166","v":0},"#'T2-B(PP2)'!$F$166"]
["pp2_bl4_4_10_total_out",{"$f":"'T2-B(PP2)'!$I$166","v":0},"#'T2-B(PP2)'!$I$166"]
["pp2_bl4_4_10_unit",{"$f":"'T2-B(PP2)'!$C$166","v":0},"#'T2-B(PP2)'!$C$166"]
["pp2_bl4_4_10_unit_in",{"$f":"'T2-B(PP2)'!$D$166","v":0},"#'T2-B(PP2)'!$D$166"]
["pp2_bl4_4_10_units_out",{"$f":"'T2-B(PP2)'!$G$166","v":0},"#'T2-B(PP2)'!$G$166"]
["pp2_bl4_4_11_name",{"$f":"'T2-B(PP2)'!$B$167","v":0},"#'T2-B(PP2)'!$B$167"]
["pp2_bl4_4_11_rate_in",{"$f":"'T2-B(PP2)'!$E$167","v":0},"#'T2-B(PP2)'!$E$167"]
["pp2_bl4_4_11_rate_out",{"$f":"'T2-B(PP2)'!$H$167","v":0},"#'T2-B(PP2)'!$H$167"]
["pp2_bl4_4_11_total",{"$f":"'T2-B(PP2)'!$J$167","v":0},"#'T2-B(PP2)'!$J$167"]
["pp2_bl4_4_11_total_in",{"$f":"'T2-B(PP2)'!$F$167","v":0},"#'T2-B(PP2)'!$F$167"]
["pp2_bl4_4_11_total_out",{"$f":"'T2-B(PP2)'!$I$167","v":0},"#'T2-B(PP2)'!$I$167"]
["pp2_bl4_4_11_unit",{"$f":"'T2-B(PP2)'!$C$167","v":0},"#'T2-B(PP2)'!$C$167"]
["pp2_bl4_4_11_unit_in",{"$f":"'T2-B(PP2)'!$D$167","v":0},"#'T2-B(PP2)'!$D$167"]
["pp2_bl4_4_11_units_out",{"$f":"'T2-B(PP2)'!$G$167","v":0},"#'T2-B(PP2)'!$G$167"]
["pp2_bl4_4_12_name",{"$f":"'T2-B(PP2)'!$B$168","v":0},"#'T2-B(PP2)'!$B$168"]
["pp2_bl4_4_12_rate_in",{"$f":"'T2-B(PP2)'!$E$168","v":0},"#'T2-B(PP2)'!$E$168"]
["pp2_bl4_4_12_rate_out",{"$f":"'T2-B(PP2)'!$H$168","v":0},"#'T2-B(PP2)'!$H$168"]
["pp2_bl4_4_12_total",{"$f":"'T2-B(PP2)'!$J$168","v":0},"#'T2-B(PP2)'!$J$168"]
["pp2_bl4_4_12_total_in",{"$f":"'T2-B(PP2)'!$F$168","v":0},"#'T2-B(PP2)'!$F$168"]
["pp2_bl4_4_12_total_out",{"$f":"'T2-B(PP2)'!$I$168","v":0},"#'T2-B(PP2)'!$I$168"]
["pp2_bl4_4_12_unit",{"$f":"'T2-B(PP2)'!$C$168","v":0},"#'T2-B(PP2)'!$C$168"]
["pp2_bl4_4_12_unit_in",{"$f":"'T2-B(PP2)'!$D$168","v":0},"#'T2-B(PP2)'!$D$168"]
["pp2_bl4_4_12_units_out",{"$f":"'T2-B(PP2)'!$G$168","v":0},"#'T2-B(PP2)'!$G$168"]
["pp2_bl4_4_13_name",{"$f":"'T2-B(PP2)'!$B$169","v":0},"#'T2-B(PP2)'!$B$169"]
["pp2_bl4_4_13_rate_in",{"$f":"'T2-B(PP2)'!$E$169","v":0},"#'T2-B(PP2)'!$E$169"]
["pp2_bl4_4_13_rate_out",{"$f":"'T2-B(PP2)'!$H$169","v":0},"#'T2-B(PP2)'!$H$169"]
["pp2_bl4_4_13_total",{"$f":"'T2-B(PP2)'!$J$169","v":0},"#'T2-B(PP2)'!$J$169"]
["pp2_bl4_4_13_total_in",{"$f":"'T2-B(PP2)'!$F$169","v":0},"#'T2-B(PP2)'!$F$169"]
["pp2_bl4_4_13_total_out",{"$f":"'T2-B(PP2)'!$I$169","v":0},"#'T2-B(PP2)'!$I$169"]
["pp2_bl4_4_13_unit",{"$f":"'T2-B(PP2)'!$C$169","v":0},"#'T2-B(PP2)'!$C$169"]
["pp2_bl4_4_13_unit_in",{"$f":"'T2-B(PP2)'!$D$169","v":0},"#'T2-B(PP2)'!$D$169"]
["pp2_bl4_4_13_units_out",{"$f":"'T2-B(PP2)'!$G$169","v":0},"#'T2-B(PP2)'!$G$169"]
["pp2_bl4_4_14_name",{"$f":"'T2-B(PP2)'!$B$170","v":0},"#'T2-B(PP2)'!$B$170"]
["pp2_bl4_4_14_rate_in",{"$f":"'T2-B(PP2)'!$E$170","v":0},"#'T2-B(PP2)'!$E$170"]
["pp2_bl4_4_14_rate_out",{"$f":"'T2-B(PP2)'!$H$170","v":0},"#'T2-B(PP2)'!$H$170"]
["pp2_bl4_4_14_total",{"$f":"'T2-B(PP2)'!$J$170","v":0},"#'T2-B(PP2)'!$J$170"]
["pp2_bl4_4_14_total_in",{"$f":"'T2-B(PP2)'!$F$170","v":0},"#'T2-B(PP2)'!$F$170"]
["pp2_bl4_4_14_total_out",{"$f":"'T2-B(PP2)'!$I$170","v":0},"#'T2-B(PP2)'!$I$170"]
["pp2_bl4_4_14_unit",{"$f":"'T2-B(PP2)'!$C$170","v":0},"#'T2-B(PP2)'!$C$170"]
["pp2_bl4_4_14_unit_in",{"$f":"'T2-B(PP2)'!$D$170","v":0},"#'T2-B(PP2)'!$D$170"]
["pp2_bl4_4_14_units_out",{"$f":"'T2-B(PP2)'!$G$170","v":0},"#'T2-B(PP2)'!$G$170"]
["pp2_bl4_4_15_name",{"$f":"'T2-B(PP2)'!$B$171","v":0},"#'T2-B(PP2)'!$B$171"]
["pp2_bl4_4_15_rate_in",{"$f":"'T2-B(PP2)'!$E$171","v":0},"#'T2-B(PP2)'!$E$171"]
["pp2_bl4_4_15_rate_out",{"$f":"'T2-B(PP2)'!$H$171","v":0},"#'T2-B(PP2)'!$H$171"]
["pp2_bl4_4_15_total",{"$f":"'T2-B(PP2)'!$J$171","v":0},"#'T2-B(PP2)'!$J$171"]
["pp2_bl4_4_15_total_in",{"$f":"'T2-B(PP2)'!$F$171","v":0},"#'T2-B(PP2)'!$F$171"]
["pp2_bl4_4_15_total_out",{"$f":"'T2-B(PP2)'!$I$171","v":0},"#'T2-B(PP2)'!$I$171"]
["pp2_bl4_4_15_unit",{"$f":"'T2-B(PP2)'!$C$171","v":0},"#'T2-B(PP2)'!$C$171"]
["pp2_bl4_4_15_unit_in",{"$f":"'T2-B(PP2)'!$D$171","v":0},"#'T2-B(PP2)'!$D$171"]
["pp2_bl4_4_15_units_out",{"$f":"'T2-B(PP2)'!$G$171","v":0},"#'T2-B(PP2)'!$G$171"]
["pp2_bl4_4_16_name",{"$f":"'T2-B(PP2)'!$B$172","v":0},"#'T2-B(PP2)'!$B$172"]
["pp2_bl4_4_16_rate_in",{"$f":"'T2-B(PP2)'!$E$172","v":0},"#'T2-B(PP2)'!$E$172"]
["pp2_bl4_4_16_rate_out",{"$f":"'T2-B(PP2)'!$H$172","v":0},"#'T2-B(PP2)'!$H$172"]
["pp2_bl4_4_16_total",{"$f":"'T2-B(PP2)'!$J$172","v":0},"#'T2-B(PP2)'!$J$172"]
["pp2_bl4_4_16_total_in",{"$f":"'T2-B(PP2)'!$F$172","v":0},"#'T2-B(PP2)'!$F$172"]
["pp2_bl4_4_16_total_out",{"$f":"'T2-B(PP2)'!$I$172","v":0},"#'T2-B(PP2)'!$I$172"]
["pp2_bl4_4_16_unit",{"$f":"'T2-B(PP2)'!$C$172","v":0},"#'T2-B(PP2)'!$C$172"]
["pp2_bl4_4_16_unit_in",{"$f":"'T2-B(PP2)'!$D$172","v":0},"#'T2-B(PP2)'!$D$172"]
["pp2_bl4_4_16_units_out",{"$f":"'T2-B(PP2)'!$G$172","v":0},"#'T2-B(PP2)'!$G$172"]
["pp2_bl4_4_17_name",{"$f":"'T2-B(PP2)'!$B$173","v":0},"#'T2-B(PP2)'!$B$173"]
["pp2_bl4_4_17_rate_in",{"$f":"'T2-B(PP2)'!$E$173","v":0},"#'T2-B(PP2)'!$E$173"]
["pp2_bl4_4_17_rate_out",{"$f":"'T2-B(PP2)'!$H$173","v":0},"#'T2-B(PP2)'!$H$173"]
["pp2_bl4_4_17_total",{"$f":"'T2-B(PP2)'!$J$173","v":0},"#'T2-B(PP2)'!$J$173"]
["pp2_bl4_4_17_total_in",{"$f":"'T2-B(PP2)'!$F$173","v":0},"#'T2-B(PP2)'!$F$173"]
["pp2_bl4_4_17_total_out",{"$f":"'T2-B(PP2)'!$I$173","v":0},"#'T2-B(PP2)'!$I$173"]
["pp2_bl4_4_17_unit",{"$f":"'T2-B(PP2)'!$C$173","v":0},"#'T2-B(PP2)'!$C$173"]
["pp2_bl4_4_17_unit_in",{"$f":"'T2-B(PP2)'!$D$173","v":0},"#'T2-B(PP2)'!$D$173"]
["pp2_bl4_4_17_units_out",{"$f":"'T2-B(PP2)'!$G$173","v":0},"#'T2-B(PP2)'!$G$173"]
["pp2_bl4_4_18_name",{"$f":"'T2-B(PP2)'!$B$174","v":0},"#'T2-B(PP2)'!$B$174"]
["pp2_bl4_4_18_rate_in",{"$f":"'T2-B(PP2)'!$E$174","v":0},"#'T2-B(PP2)'!$E$174"]
["pp2_bl4_4_18_rate_out",{"$f":"'T2-B(PP2)'!$H$174","v":0},"#'T2-B(PP2)'!$H$174"]
["pp2_bl4_4_18_total",{"$f":"'T2-B(PP2)'!$J$174","v":0},"#'T2-B(PP2)'!$J$174"]
["pp2_bl4_4_18_total_in",{"$f":"'T2-B(PP2)'!$F$174","v":0},"#'T2-B(PP2)'!$F$174"]
["pp2_bl4_4_18_total_out",{"$f":"'T2-B(PP2)'!$I$174","v":0},"#'T2-B(PP2)'!$I$174"]
["pp2_bl4_4_18_unit",{"$f":"'T2-B(PP2)'!$C$174","v":0},"#'T2-B(PP2)'!$C$174"]
["pp2_bl4_4_18_unit_in",{"$f":"'T2-B(PP2)'!$D$174","v":0},"#'T2-B(PP2)'!$D$174"]
["pp2_bl4_4_18_units_out",{"$f":"'T2-B(PP2)'!$G$174","v":0},"#'T2-B(PP2)'!$G$174"]
["pp2_bl4_4_19_name",{"$f":"'T2-B(PP2)'!$B$175","v":0},"#'T2-B(PP2)'!$B$175"]
["pp2_bl4_4_19_rate_in",{"$f":"'T2-B(PP2)'!$E$175","v":0},"#'T2-B(PP2)'!$E$175"]
["pp2_bl4_4_19_rate_out",{"$f":"'T2-B(PP2)'!$H$175","v":0},"#'T2-B(PP2)'!$H$175"]
["pp2_bl4_4_19_total",{"$f":"'T2-B(PP2)'!$J$175","v":0},"#'T2-B(PP2)'!$J$175"]
["pp2_bl4_4_19_total_in",{"$f":"'T2-B(PP2)'!$F$175","v":0},"#'T2-B(PP2)'!$F$175"]
["pp2_bl4_4_19_total_out",{"$f":"'T2-B(PP2)'!$I$175","v":0},"#'T2-B(PP2)'!$I$175"]
["pp2_bl4_4_19_unit",{"$f":"'T2-B(PP2)'!$C$175","v":0},"#'T2-B(PP2)'!$C$175"]
["pp2_bl4_4_19_unit_in",{"$f":"'T2-B(PP2)'!$D$175","v":0},"#'T2-B(PP2)'!$D$175"]
["pp2_bl4_4_19_units_out",{"$f":"'T2-B(PP2)'!$G$175","v":0},"#'T2-B(PP2)'!$G$175"]
["pp2_bl4_4_2_name",{"$f":"'T2-B(PP2)'!$B$158","v":0},"#'T2-B(PP2)'!$B$158"]
["pp2_bl4_4_2_rate_in",{"$f":"'T2-B(PP2)'!$E$158","v":0},"#'T2-B(PP2)'!$E$158"]
["pp2_bl4_4_2_rate_out",{"$f":"'T2-B(PP2)'!$H$158","v":0},"#'T2-B(PP2)'!$H$158"]
["pp2_bl4_4_2_total",{"$f":"'T2-B(PP2)'!$J$158","v":0},"#'T2-B(PP2)'!$J$158"]
["pp2_bl4_4_2_total_in",{"$f":"'T2-B(PP2)'!$F$158","v":0},"#'T2-B(PP2)'!$F$158"]
["pp2_bl4_4_2_total_out",{"$f":"'T2-B(PP2)'!$I$158","v":0},"#'T2-B(PP2)'!$I$158"]
["pp2_bl4_4_2_unit",{"$f":"'T2-B(PP2)'!$C$158","v":0},"#'T2-B(PP2)'!$C$158"]
["pp2_bl4_4_2_unit_in",{"$f":"'T2-B(PP2)'!$D$158","v":0},"#'T2-B(PP2)'!$D$158"]
["pp2_bl4_4_2_units_out",{"$f":"'T2-B(PP2)'!$G$158","v":0},"#'T2-B(PP2)'!$G$158"]
["pp2_bl4_4_20_name",{"$f":"'T2-B(PP2)'!$B$176","v":0},"#'T2-B(PP2)'!$B$176"]
["pp2_bl4_4_20_rate_in",{"$f":"'T2-B(PP2)'!$E$176","v":0},"#'T2-B(PP2)'!$E$176"]
["pp2_bl4_4_20_rate_out",{"$f":"'T2-B(PP2)'!$H$176","v":0},"#'T2-B(PP2)'!$H$176"]
["pp2_bl4_4_20_total",{"$f":"'T2-B(PP2)'!$J$176","v":0},"#'T2-B(PP2)'!$J$176"]
["pp2_bl4_4_20_total_in",{"$f":"'T2-B(PP2)'!$F$176","v":0},"#'T2-B(PP2)'!$F$176"]
["pp2_bl4_4_20_total_out",{"$f":"'T2-B(PP2)'!$I$176","v":0},"#'T2-B(PP2)'!$I$176"]
["pp2_bl4_4_20_unit",{"$f":"'T2-B(PP2)'!$C$176","v":0},"#'T2-B(PP2)'!$C$176"]
["pp2_bl4_4_20_unit_in",{"$f":"'T2-B(PP2)'!$D$176","v":0},"#'T2-B(PP2)'!$D$176"]
["pp2_bl4_4_20_units_out",{"$f":"'T2-B(PP2)'!$G$176","v":0},"#'T2-B(PP2)'!$G$176"]
["pp2_bl4_4_3_name",{"$f":"'T2-B(PP2)'!$B$159","v":0},"#'T2-B(PP2)'!$B$159"]
["pp2_bl4_4_3_rate_in",{"$f":"'T2-B(PP2)'!$E$159","v":0},"#'T2-B(PP2)'!$E$159"]
["pp2_bl4_4_3_rate_out",{"$f":"'T2-B(PP2)'!$H$159","v":0},"#'T2-B(PP2)'!$H$159"]
["pp2_bl4_4_3_total",{"$f":"'T2-B(PP2)'!$J$159","v":0},"#'T2-B(PP2)'!$J$159"]
["pp2_bl4_4_3_total_in",{"$f":"'T2-B(PP2)'!$F$159","v":0},"#'T2-B(PP2)'!$F$159"]
["pp2_bl4_4_3_total_out",{"$f":"'T2-B(PP2)'!$I$159","v":0},"#'T2-B(PP2)'!$I$159"]
["pp2_bl4_4_3_unit",{"$f":"'T2-B(PP2)'!$C$159","v":0},"#'T2-B(PP2)'!$C$159"]
["pp2_bl4_4_3_unit_in",{"$f":"'T2-B(PP2)'!$D$159","v":0},"#'T2-B(PP2)'!$D$159"]
["pp2_bl4_4_3_units_out",{"$f":"'T2-B(PP2)'!$G$159","v":0},"#'T2-B(PP2)'!$G$159"]
["pp2_bl4_4_4_name",{"$f":"'T2-B(PP2)'!$B$160","v":0},"#'T2-B(PP2)'!$B$160"]
["pp2_bl4_4_4_rate_in",{"$f":"'T2-B(PP2)'!$E$160","v":0},"#'T2-B(PP2)'!$E$160"]
["pp2_bl4_4_4_rate_out",{"$f":"'T2-B(PP2)'!$H$160","v":0},"#'T2-B(PP2)'!$H$160"]
["pp2_bl4_4_4_total",{"$f":"'T2-B(PP2)'!$J$160","v":0},"#'T2-B(PP2)'!$J$160"]
["pp2_bl4_4_4_total_in",{"$f":"'T2-B(PP2)'!$F$160","v":0},"#'T2-B(PP2)'!$F$160"]
["pp2_bl4_4_4_total_out",{"$f":"'T2-B(PP2)'!$I$160","v":0},"#'T2-B(PP2)'!$I$160"]
["pp2_bl4_4_4_unit",{"$f":"'T2-B(PP2)'!$C$160","v":0},"#'T2-B(PP2)'!$C$160"]
["pp2_bl4_4_4_unit_in",{"$f":"'T2-B(PP2)'!$D$160","v":0},"#'T2-B(PP2)'!$D$160"]
["pp2_bl4_4_4_units_out",{"$f":"'T2-B(PP2)'!$G$160","v":0},"#'T2-B(PP2)'!$G$160"]
["pp2_bl4_4_5_name",{"$f":"'T2-B(PP2)'!$B$161","v":0},"#'T2-B(PP2)'!$B$161"]
["pp2_bl4_4_5_rate_in",{"$f":"'T2-B(PP2)'!$E$161","v":0},"#'T2-B(PP2)'!$E$161"]
["pp2_bl4_4_5_rate_out",{"$f":"'T2-B(PP2)'!$H$161","v":0},"#'T2-B(PP2)'!$H$161"]
["pp2_bl4_4_5_total",{"$f":"'T2-B(PP2)'!$J$161","v":0},"#'T2-B(PP2)'!$J$161"]
["pp2_bl4_4_5_total_in",{"$f":"'T2-B(PP2)'!$F$161","v":0},"#'T2-B(PP2)'!$F$161"]
["pp2_bl4_4_5_total_out",{"$f":"'T2-B(PP2)'!$I$161","v":0},"#'T2-B(PP2)'!$I$161"]
["pp2_bl4_4_5_unit",{"$f":"'T2-B(PP2)'!$C$161","v":0},"#'T2-B(PP2)'!$C$161"]
["pp2_bl4_4_5_unit_in",{"$f":"'T2-B(PP2)'!$D$161","v":0},"#'T2-B(PP2)'!$D$161"]
["pp2_bl4_4_5_units_out",{"$f":"'T2-B(PP2)'!$G$161","v":0},"#'T2-B(PP2)'!$G$161"]
["pp2_bl4_4_6_name",{"$f":"'T2-B(PP2)'!$B$162","v":0},"#'T2-B(PP2)'!$B$162"]
["pp2_bl4_4_6_rate_in",{"$f":"'T2-B(PP2)'!$E$162","v":0},"#'T2-B(PP2)'!$E$162"]
["pp2_bl4_4_6_rate_out",{"$f":"'T2-B(PP2)'!$H$162","v":0},"#'T2-B(PP2)'!$H$162"]
["pp2_bl4_4_6_total",{"$f":"'T2-B(PP2)'!$J$162","v":0},"#'T2-B(PP2)'!$J$162"]
["pp2_bl4_4_6_total_in",{"$f":"'T2-B(PP2)'!$F$162","v":0},"#'T2-B(PP2)'!$F$162"]
["pp2_bl4_4_6_total_out",{"$f":"'T2-B(PP2)'!$I$162","v":0},"#'T2-B(PP2)'!$I$162"]
["pp2_bl4_4_6_unit",{"$f":"'T2-B(PP2)'!$C$162","v":0},"#'T2-B(PP2)'!$C$162"]
["pp2_bl4_4_6_unit_in",{"$f":"'T2-B(PP2)'!$D$162","v":0},"#'T2-B(PP2)'!$D$162"]
["pp2_bl4_4_6_units_out",{"$f":"'T2-B(PP2)'!$G$162","v":0},"#'T2-B(PP2)'!$G$162"]
["pp2_bl4_4_7_name",{"$f":"'T2-B(PP2)'!$B$163","v":0},"#'T2-B(PP2)'!$B$163"]
["pp2_bl4_4_7_rate_in",{"$f":"'T2-B(PP2)'!$E$163","v":0},"#'T2-B(PP2)'!$E$163"]
["pp2_bl4_4_7_rate_out",{"$f":"'T2-B(PP2)'!$H$163","v":0},"#'T2-B(PP2)'!$H$163"]
["pp2_bl4_4_7_total",{"$f":"'T2-B(PP2)'!$J$163","v":0},"#'T2-B(PP2)'!$J$163"]
["pp2_bl4_4_7_total_in",{"$f":"'T2-B(PP2)'!$F$163","v":0},"#'T2-B(PP2)'!$F$163"]
["pp2_bl4_4_7_total_out",{"$f":"'T2-B(PP2)'!$I$163","v":0},"#'T2-B(PP2)'!$I$163"]
["pp2_bl4_4_7_unit",{"$f":"'T2-B(PP2)'!$C$163","v":0},"#'T2-B(PP2)'!$C$163"]
["pp2_bl4_4_7_unit_in",{"$f":"'T2-B(PP2)'!$D$163","v":0},"#'T2-B(PP2)'!$D$163"]
["pp2_bl4_4_7_units_out",{"$f":"'T2-B(PP2)'!$G$163","v":0},"#'T2-B(PP2)'!$G$163"]
["pp2_bl4_4_8_name",{"$f":"'T2-B(PP2)'!$B$164","v":0},"#'T2-B(PP2)'!$B$164"]
["pp2_bl4_4_8_rate_in",{"$f":"'T2-B(PP2)'!$E$164","v":0},"#'T2-B(PP2)'!$E$164"]
["pp2_bl4_4_8_rate_out",{"$f":"'T2-B(PP2)'!$H$164","v":0},"#'T2-B(PP2)'!$H$164"]
["pp2_bl4_4_8_total",{"$f":"'T2-B(PP2)'!$J$164","v":0},"#'T2-B(PP2)'!$J$164"]
["pp2_bl4_4_8_total_in",{"$f":"'T2-B(PP2)'!$F$164","v":0},"#'T2-B(PP2)'!$F$164"]
["pp2_bl4_4_8_total_out",{"$f":"'T2-B(PP2)'!$I$164","v":0},"#'T2-B(PP2)'!$I$164"]
["pp2_bl4_4_8_unit",{"$f":"'T2-B(PP2)'!$C$164","v":0},"#'T2-B(PP2)'!$C$164"]
["pp2_bl4_4_8_unit_in",{"$f":"'T2-B(PP2)'!$D$164","v":0},"#'T2-B(PP2)'!$D$164"]
["pp2_bl4_4_8_units_out",{"$f":"'T2-B(PP2)'!$G$164","v":0},"#'T2-B(PP2)'!$G$164"]
["pp2_bl4_4_9_name",{"$f":"'T2-B(PP2)'!$B$165","v":0},"#'T2-B(PP2)'!$B$165"]
["pp2_bl4_4_9_rate_in",{"$f":"'T2-B(PP2)'!$E$165","v":0},"#'T2-B(PP2)'!$E$165"]
["pp2_bl4_4_9_rate_out",{"$f":"'T2-B(PP2)'!$H$165","v":0},"#'T2-B(PP2)'!$H$165"]
["pp2_bl4_4_9_total",{"$f":"'T2-B(PP2)'!$J$165","v":0},"#'T2-B(PP2)'!$J$165"]
["pp2_bl4_4_9_total_in",{"$f":"'T2-B(PP2)'!$F$165","v":0},"#'T2-B(PP2)'!$F$165"]
["pp2_bl4_4_9_total_out",{"$f":"'T2-B(PP2)'!$I$165","v":0},"#'T2-B(PP2)'!$I$165"]
["pp2_bl4_4_9_unit",{"$f":"'T2-B(PP2)'!$C$165","v":0},"#'T2-B(PP2)'!$C$165"]
["pp2_bl4_4_9_unit_in",{"$f":"'T2-B(PP2)'!$D$165","v":0},"#'T2-B(PP2)'!$D$165"]
["pp2_bl4_4_9_units_out",{"$f":"'T2-B(PP2)'!$G$165","v":0},"#'T2-B(PP2)'!$G$165"]
["pp2_bl4_4_total",{"$f":"'T2-B(PP2)'!$J$156","v":0},"#'T2-B(PP2)'!$J$156"]
["pp2_bl4_4_total_in",{"$f":"'T2-B(PP2)'!$F$156","v":0},"#'T2-B(PP2)'!$F$156"]
["pp2_bl4_4_total_out",{"$f":"'T2-B(PP2)'!$I$156","v":0},"#'T2-B(PP2)'!$I$156"]
["pp2_bl4_5_1_name",{"$f":"'T2-B(PP2)'!$B$178","v":0},"#'T2-B(PP2)'!$B$178"]
["pp2_bl4_5_1_rate_in",{"$f":"'T2-B(PP2)'!$E$178","v":0},"#'T2-B(PP2)'!$E$178"]
["pp2_bl4_5_1_rate_out",{"$f":"'T2-B(PP2)'!$H$178","v":0},"#'T2-B(PP2)'!$H$178"]
["pp2_bl4_5_1_total",{"$f":"'T2-B(PP2)'!$J$178","v":0},"#'T2-B(PP2)'!$J$178"]
["pp2_bl4_5_1_total_in",{"$f":"'T2-B(PP2)'!$F$178","v":0},"#'T2-B(PP2)'!$F$178"]
["pp2_bl4_5_1_total_out",{"$f":"'T2-B(PP2)'!$I$178","v":0},"#'T2-B(PP2)'!$I$178"]
["pp2_bl4_5_1_unit",{"$f":"'T2-B(PP2)'!$C$178","v":0},"#'T2-B(PP2)'!$C$178"]
["pp2_bl4_5_1_unit_in",{"$f":"'T2-B(PP2)'!$D$178","v":0},"#'T2-B(PP2)'!$D$178"]
["pp2_bl4_5_1_units_out",{"$f":"'T2-B(PP2)'!$G$178","v":0},"#'T2-B(PP2)'!$G$178"]
["pp2_bl4_5_10_name",{"$f":"'T2-B(PP2)'!$B$187","v":0},"#'T2-B(PP2)'!$B$187"]
["pp2_bl4_5_10_rate_in",{"$f":"'T2-B(PP2)'!$E$187","v":0},"#'T2-B(PP2)'!$E$187"]
["pp2_bl4_5_10_rate_out",{"$f":"'T2-B(PP2)'!$H$187","v":0},"#'T2-B(PP2)'!$H$187"]
["pp2_bl4_5_10_total",{"$f":"'T2-B(PP2)'!$J$187","v":0},"#'T2-B(PP2)'!$J$187"]
["pp2_bl4_5_10_total_in",{"$f":"'T2-B(PP2)'!$F$187","v":0},"#'T2-B(PP2)'!$F$187"]
["pp2_bl4_5_10_total_out",{"$f":"'T2-B(PP2)'!$I$187","v":0},"#'T2-B(PP2)'!$I$187"]
["pp2_bl4_5_10_unit",{"$f":"'T2-B(PP2)'!$C$187","v":0},"#'T2-B(PP2)'!$C$187"]
["pp2_bl4_5_10_unit_in",{"$f":"'T2-B(PP2)'!$D$187","v":0},"#'T2-B(PP2)'!$D$187"]
["pp2_bl4_5_10_units_out",{"$f":"'T2-B(PP2)'!$G$187","v":0},"#'T2-B(PP2)'!$G$187"]
["pp2_bl4_5_11_name",{"$f":"'T2-B(PP2)'!$B$188","v":0},"#'T2-B(PP2)'!$B$188"]
["pp2_bl4_5_11_rate_in",{"$f":"'T2-B(PP2)'!$E$188","v":0},"#'T2-B(PP2)'!$E$188"]
["pp2_bl4_5_11_rate_out",{"$f":"'T2-B(PP2)'!$H$188","v":0},"#'T2-B(PP2)'!$H$188"]
["pp2_bl4_5_11_total",{"$f":"'T2-B(PP2)'!$J$188","v":0},"#'T2-B(PP2)'!$J$188"]
["pp2_bl4_5_11_total_in",{"$f":"'T2-B(PP2)'!$F$188","v":0},"#'T2-B(PP2)'!$F$188"]
["pp2_bl4_5_11_total_out",{"$f":"'T2-B(PP2)'!$I$188","v":0},"#'T2-B(PP2)'!$I$188"]
["pp2_bl4_5_11_unit",{"$f":"'T2-B(PP2)'!$C$188","v":0},"#'T2-B(PP2)'!$C$188"]
["pp2_bl4_5_11_unit_in",{"$f":"'T2-B(PP2)'!$D$188","v":0},"#'T2-B(PP2)'!$D$188"]
["pp2_bl4_5_11_units_out",{"$f":"'T2-B(PP2)'!$G$188","v":0},"#'T2-B(PP2)'!$G$188"]
["pp2_bl4_5_12_name",{"$f":"'T2-B(PP2)'!$B$189","v":0},"#'T2-B(PP2)'!$B$189"]
["pp2_bl4_5_12_rate_in",{"$f":"'T2-B(PP2)'!$E$189","v":0},"#'T2-B(PP2)'!$E$189"]
["pp2_bl4_5_12_rate_out",{"$f":"'T2-B(PP2)'!$H$189","v":0},"#'T2-B(PP2)'!$H$189"]
["pp2_bl4_5_12_total",{"$f":"'T2-B(PP2)'!$J$189","v":0},"#'T2-B(PP2)'!$J$189"]
["pp2_bl4_5_12_total_in",{"$f":"'T2-B(PP2)'!$F$189","v":0},"#'T2-B(PP2)'!$F$189"]
["pp2_bl4_5_12_total_out",{"$f":"'T2-B(PP2)'!$I$189","v":0},"#'T2-B(PP2)'!$I$189"]
["pp2_bl4_5_12_unit",{"$f":"'T2-B(PP2)'!$C$189","v":0},"#'T2-B(PP2)'!$C$189"]
["pp2_bl4_5_12_unit_in",{"$f":"'T2-B(PP2)'!$D$189","v":0},"#'T2-B(PP2)'!$D$189"]
["pp2_bl4_5_12_units_out",{"$f":"'T2-B(PP2)'!$G$189","v":0},"#'T2-B(PP2)'!$G$189"]
["pp2_bl4_5_13_name",{"$f":"'T2-B(PP2)'!$B$190","v":0},"#'T2-B(PP2)'!$B$190"]
["pp2_bl4_5_13_rate_in",{"$f":"'T2-B(PP2)'!$E$190","v":0},"#'T2-B(PP2)'!$E$190"]
["pp2_bl4_5_13_rate_out",{"$f":"'T2-B(PP2)'!$H$190","v":0},"#'T2-B(PP2)'!$H$190"]
["pp2_bl4_5_13_total",{"$f":"'T2-B(PP2)'!$J$190","v":0},"#'T2-B(PP2)'!$J$190"]
["pp2_bl4_5_13_total_in",{"$f":"'T2-B(PP2)'!$F$190","v":0},"#'T2-B(PP2)'!$F$190"]
["pp2_bl4_5_13_total_out",{"$f":"'T2-B(PP2)'!$I$190","v":0},"#'T2-B(PP2)'!$I$190"]
["pp2_bl4_5_13_unit",{"$f":"'T2-B(PP2)'!$C$190","v":0},"#'T2-B(PP2)'!$C$190"]
["pp2_bl4_5_13_unit_in",{"$f":"'T2-B(PP2)'!$D$190","v":0},"#'T2-B(PP2)'!$D$190"]
["pp2_bl4_5_13_units_out",{"$f":"'T2-B(PP2)'!$G$190","v":0},"#'T2-B(PP2)'!$G$190"]
["pp2_bl4_5_14_name",{"$f":"'T2-B(PP2)'!$B$191","v":0},"#'T2-B(PP2)'!$B$191"]
["pp2_bl4_5_14_rate_in",{"$f":"'T2-B(PP2)'!$E$191","v":0},"#'T2-B(PP2)'!$E$191"]
["pp2_bl4_5_14_rate_out",{"$f":"'T2-B(PP2)'!$H$191","v":0},"#'T2-B(PP2)'!$H$191"]
["pp2_bl4_5_14_total",{"$f":"'T2-B(PP2)'!$J$191","v":0},"#'T2-B(PP2)'!$J$191"]
["pp2_bl4_5_14_total_in",{"$f":"'T2-B(PP2)'!$F$191","v":0},"#'T2-B(PP2)'!$F$191"]
["pp2_bl4_5_14_total_out",{"$f":"'T2-B(PP2)'!$I$191","v":0},"#'T2-B(PP2)'!$I$191"]
["pp2_bl4_5_14_unit",{"$f":"'T2-B(PP2)'!$C$191","v":0},"#'T2-B(PP2)'!$C$191"]
["pp2_bl4_5_14_unit_in",{"$f":"'T2-B(PP2)'!$D$191","v":0},"#'T2-B(PP2)'!$D$191"]
["pp2_bl4_5_14_units_out",{"$f":"'T2-B(PP2)'!$G$191","v":0},"#'T2-B(PP2)'!$G$191"]
["pp2_bl4_5_15_name",{"$f":"'T2-B(PP2)'!$B$192","v":0},"#'T2-B(PP2)'!$B$192"]
["pp2_bl4_5_15_rate_in",{"$f":"'T2-B(PP2)'!$E$192","v":0},"#'T2-B(PP2)'!$E$192"]
["pp2_bl4_5_15_rate_out",{"$f":"'T2-B(PP2)'!$H$192","v":0},"#'T2-B(PP2)'!$H$192"]
["pp2_bl4_5_15_total",{"$f":"'T2-B(PP2)'!$J$192","v":0},"#'T2-B(PP2)'!$J$192"]
["pp2_bl4_5_15_total_in",{"$f":"'T2-B(PP2)'!$F$192","v":0},"#'T2-B(PP2)'!$F$192"]
["pp2_bl4_5_15_total_out",{"$f":"'T2-B(PP2)'!$I$192","v":0},"#'T2-B(PP2)'!$I$192"]
["pp2_bl4_5_15_unit",{"$f":"'T2-B(PP2)'!$C$192","v":0},"#'T2-B(PP2)'!$C$192"]
["pp2_bl4_5_15_unit_in",{"$f":"'T2-B(PP2)'!$D$192","v":0},"#'T2-B(PP2)'!$D$192"]
["pp2_bl4_5_15_units_out",{"$f":"'T2-B(PP2)'!$G$192","v":0},"#'T2-B(PP2)'!$G$192"]
["pp2_bl4_5_16_name",{"$f":"'T2-B(PP2)'!$B$193","v":0},"#'T2-B(PP2)'!$B$193"]
["pp2_bl4_5_16_rate_in",{"$f":"'T2-B(PP2)'!$E$193","v":0},"#'T2-B(PP2)'!$E$193"]
["pp2_bl4_5_16_rate_out",{"$f":"'T2-B(PP2)'!$H$193","v":0},"#'T2-B(PP2)'!$H$193"]
["pp2_bl4_5_16_total",{"$f":"'T2-B(PP2)'!$J$193","v":0},"#'T2-B(PP2)'!$J$193"]
["pp2_bl4_5_16_total_in",{"$f":"'T2-B(PP2)'!$F$193","v":0},"#'T2-B(PP2)'!$F$193"]
["pp2_bl4_5_16_total_out",{"$f":"'T2-B(PP2)'!$I$193","v":0},"#'T2-B(PP2)'!$I$193"]
["pp2_bl4_5_16_unit",{"$f":"'T2-B(PP2)'!$C$193","v":0},"#'T2-B(PP2)'!$C$193"]
["pp2_bl4_5_16_unit_in",{"$f":"'T2-B(PP2)'!$D$193","v":0},"#'T2-B(PP2)'!$D$193"]
["pp2_bl4_5_16_units_out",{"$f":"'T2-B(PP2)'!$G$193","v":0},"#'T2-B(PP2)'!$G$193"]
["pp2_bl4_5_17_name",{"$f":"'T2-B(PP2)'!$B$194","v":0},"#'T2-B(PP2)'!$B$194"]
["pp2_bl4_5_17_rate_in",{"$f":"'T2-B(PP2)'!$E$194","v":0},"#'T2-B(PP2)'!$E$194"]
["pp2_bl4_5_17_rate_out",{"$f":"'T2-B(PP2)'!$H$194","v":0},"#'T2-B(PP2)'!$H$194"]
["pp2_bl4_5_17_total",{"$f":"'T2-B(PP2)'!$J$194","v":0},"#'T2-B(PP2)'!$J$194"]
["pp2_bl4_5_17_total_in",{"$f":"'T2-B(PP2)'!$F$194","v":0},"#'T2-B(PP2)'!$F$194"]
["pp2_bl4_5_17_total_out",{"$f":"'T2-B(PP2)'!$I$194","v":0},"#'T2-B(PP2)'!$I$194"]
["pp2_bl4_5_17_unit",{"$f":"'T2-B(PP2)'!$C$194","v":0},"#'T2-B(PP2)'!$C$194"]
["pp2_bl4_5_17_unit_in",{"$f":"'T2-B(PP2)'!$D$194","v":0},"#'T2-B(PP2)'!$D$194"]
["pp2_bl4_5_17_units_out",{"$f":"'T2-B(PP2)'!$G$194","v":0},"#'T2-B(PP2)'!$G$194"]
["pp2_bl4_5_18_name",{"$f":"'T2-B(PP2)'!$B$195","v":0},"#'T2-B(PP2)'!$B$195"]
["pp2_bl4_5_18_rate_in",{"$f":"'T2-B(PP2)'!$E$195","v":0},"#'T2-B(PP2)'!$E$195"]
["pp2_bl4_5_18_rate_out",{"$f":"'T2-B(PP2)'!$H$195","v":0},"#'T2-B(PP2)'!$H$195"]
["pp2_bl4_5_18_total",{"$f":"'T2-B(PP2)'!$J$195","v":0},"#'T2-B(PP2)'!$J$195"]
["pp2_bl4_5_18_total_in",{"$f":"'T2-B(PP2)'!$F$195","v":0},"#'T2-B(PP2)'!$F$195"]
["pp2_bl4_5_18_total_out",{"$f":"'T2-B(PP2)'!$I$195","v":0},"#'T2-B(PP2)'!$I$195"]
["pp2_bl4_5_18_unit",{"$f":"'T2-B(PP2)'!$C$195","v":0},"#'T2-B(PP2)'!$C$195"]
["pp2_bl4_5_18_unit_in",{"$f":"'T2-B(PP2)'!$D$195","v":0},"#'T2-B(PP2)'!$D$195"]
["pp2_bl4_5_18_units_out",{"$f":"'T2-B(PP2)'!$G$195","v":0},"#'T2-B(PP2)'!$G$195"]
["pp2_bl4_5_19_name",{"$f":"'T2-B(PP2)'!$B$196","v":0},"#'T2-B(PP2)'!$B$196"]
["pp2_bl4_5_19_rate_in",{"$f":"'T2-B(PP2)'!$E$196","v":0},"#'T2-B(PP2)'!$E$196"]
["pp2_bl4_5_19_rate_out",{"$f":"'T2-B(PP2)'!$H$196","v":0},"#'T2-B(PP2)'!$H$196"]
["pp2_bl4_5_19_total",{"$f":"'T2-B(PP2)'!$J$196","v":0},"#'T2-B(PP2)'!$J$196"]
["pp2_bl4_5_19_total_in",{"$f":"'T2-B(PP2)'!$F$196","v":0},"#'T2-B(PP2)'!$F$196"]
["pp2_bl4_5_19_total_out",{"$f":"'T2-B(PP2)'!$I$196","v":0},"#'T2-B(PP2)'!$I$196"]
["pp2_bl4_5_19_unit",{"$f":"'T2-B(PP2)'!$C$196","v":0},"#'T2-B(PP2)'!$C$196"]
["pp2_bl4_5_19_unit_in",{"$f":"'T2-B(PP2)'!$D$196","v":0},"#'T2-B(PP2)'!$D$196"]
["pp2_bl4_5_19_units_out",{"$f":"'T2-B(PP2)'!$G$196","v":0},"#'T2-B(PP2)'!$G$196"]
["pp2_bl4_5_2_name",{"$f":"'T2-B(PP2)'!$B$179","v":0},"#'T2-B(PP2)'!$B$179"]
["pp2_bl4_5_2_rate_in",{"$f":"'T2-B(PP2)'!$E$179","v":0},"#'T2-B(PP2)'!$E$179"]
["pp2_bl4_5_2_rate_out",{"$f":"'T2-B(PP2)'!$H$179","v":0},"#'T2-B(PP2)'!$H$179"]
["pp2_bl4_5_2_total",{"$f":"'T2-B(PP2)'!$J$179","v":0},"#'T2-B(PP2)'!$J$179"]
["pp2_bl4_5_2_total_in",{"$f":"'T2-B(PP2)'!$F$179","v":0},"#'T2-B(PP2)'!$F$179"]
["pp2_bl4_5_2_total_out",{"$f":"'T2-B(PP2)'!$I$179","v":0},"#'T2-B(PP2)'!$I$179"]
["pp2_bl4_5_2_unit",{"$f":"'T2-B(PP2)'!$C$179","v":0},"#'T2-B(PP2)'!$C$179"]
["pp2_bl4_5_2_unit_in",{"$f":"'T2-B(PP2)'!$D$179","v":0},"#'T2-B(PP2)'!$D$179"]
["pp2_bl4_5_2_units_out",{"$f":"'T2-B(PP2)'!$G$179","v":0},"#'T2-B(PP2)'!$G$179"]
["pp2_bl4_5_20_name",{"$f":"'T2-B(PP2)'!$B$197","v":0},"#'T2-B(PP2)'!$B$197"]
["pp2_bl4_5_20_rate_in",{"$f":"'T2-B(PP2)'!$E$197","v":0},"#'T2-B(PP2)'!$E$197"]
["pp2_bl4_5_20_rate_out",{"$f":"'T2-B(PP2)'!$H$197","v":0},"#'T2-B(PP2)'!$H$197"]
["pp2_bl4_5_20_total",{"$f":"'T2-B(PP2)'!$J$197","v":0},"#'T2-B(PP2)'!$J$197"]
["pp2_bl4_5_20_total_in",{"$f":"'T2-B(PP2)'!$F$197","v":0},"#'T2-B(PP2)'!$F$197"]
["pp2_bl4_5_20_total_out",{"$f":"'T2-B(PP2)'!$I$197","v":0},"#'T2-B(PP2)'!$I$197"]
["pp2_bl4_5_20_unit",{"$f":"'T2-B(PP2)'!$C$197","v":0},"#'T2-B(PP2)'!$C$197"]
["pp2_bl4_5_20_unit_in",{"$f":"'T2-B(PP2)'!$D$197","v":0},"#'T2-B(PP2)'!$D$197"]
["pp2_bl4_5_20_units_out",{"$f":"'T2-B(PP2)'!$G$197","v":0},"#'T2-B(PP2)'!$G$197"]
["pp2_bl4_5_3_name",{"$f":"'T2-B(PP2)'!$B$180","v":0},"#'T2-B(PP2)'!$B$180"]
["pp2_bl4_5_3_rate_in",{"$f":"'T2-B(PP2)'!$E$180","v":0},"#'T2-B(PP2)'!$E$180"]
["pp2_bl4_5_3_rate_out",{"$f":"'T2-B(PP2)'!$H$180","v":0},"#'T2-B(PP2)'!$H$180"]
["pp2_bl4_5_3_total",{"$f":"'T2-B(PP2)'!$J$180","v":0},"#'T2-B(PP2)'!$J$180"]
["pp2_bl4_5_3_total_in",{"$f":"'T2-B(PP2)'!$F$180","v":0},"#'T2-B(PP2)'!$F$180"]
["pp2_bl4_5_3_total_out",{"$f":"'T2-B(PP2)'!$I$180","v":0},"#'T2-B(PP2)'!$I$180"]
["pp2_bl4_5_3_unit",{"$f":"'T2-B(PP2)'!$C$180","v":0},"#'T2-B(PP2)'!$C$180"]
["pp2_bl4_5_3_unit_in",{"$f":"'T2-B(PP2)'!$D$180","v":0},"#'T2-B(PP2)'!$D$180"]
["pp2_bl4_5_3_units_out",{"$f":"'T2-B(PP2)'!$G$180","v":0},"#'T2-B(PP2)'!$G$180"]
["pp2_bl4_5_4_name",{"$f":"'T2-B(PP2)'!$B$181","v":0},"#'T2-B(PP2)'!$B$181"]
["pp2_bl4_5_4_rate_in",{"$f":"'T2-B(PP2)'!$E$181","v":0},"#'T2-B(PP2)'!$E$181"]
["pp2_bl4_5_4_rate_out",{"$f":"'T2-B(PP2)'!$H$181","v":0},"#'T2-B(PP2)'!$H$181"]
["pp2_bl4_5_4_total",{"$f":"'T2-B(PP2)'!$J$181","v":0},"#'T2-B(PP2)'!$J$181"]
["pp2_bl4_5_4_total_in",{"$f":"'T2-B(PP2)'!$F$181","v":0},"#'T2-B(PP2)'!$F$181"]
["pp2_bl4_5_4_total_out",{"$f":"'T2-B(PP2)'!$I$181","v":0},"#'T2-B(PP2)'!$I$181"]
["pp2_bl4_5_4_unit",{"$f":"'T2-B(PP2)'!$C$181","v":0},"#'T2-B(PP2)'!$C$181"]
["pp2_bl4_5_4_unit_in",{"$f":"'T2-B(PP2)'!$D$181","v":0},"#'T2-B(PP2)'!$D$181"]
["pp2_bl4_5_4_units_out",{"$f":"'T2-B(PP2)'!$G$181","v":0},"#'T2-B(PP2)'!$G$181"]
["pp2_bl4_5_5_name",{"$f":"'T2-B(PP2)'!$B$182","v":0},"#'T2-B(PP2)'!$B$182"]
["pp2_bl4_5_5_rate_in",{"$f":"'T2-B(PP2)'!$E$182","v":0},"#'T2-B(PP2)'!$E$182"]
["pp2_bl4_5_5_rate_out",{"$f":"'T2-B(PP2)'!$H$182","v":0},"#'T2-B(PP2)'!$H$182"]
["pp2_bl4_5_5_total",{"$f":"'T2-B(PP2)'!$J$182","v":0},"#'T2-B(PP2)'!$J$182"]
["pp2_bl4_5_5_total_in",{"$f":"'T2-B(PP2)'!$F$182","v":0},"#'T2-B(PP2)'!$F$182"]
["pp2_bl4_5_5_total_out",{"$f":"'T2-B(PP2)'!$I$182","v":0},"#'T2-B(PP2)'!$I$182"]
["pp2_bl4_5_5_unit",{"$f":"'T2-B(PP2)'!$C$182","v":0},"#'T2-B(PP2)'!$C$182"]
["pp2_bl4_5_5_unit_in",{"$f":"'T2-B(PP2)'!$D$182","v":0},"#'T2-B(PP2)'!$D$182"]
["pp2_bl4_5_5_units_out",{"$f":"'T2-B(PP2)'!$G$182","v":0},"#'T2-B(PP2)'!$G$182"]
["pp2_bl4_5_6_name",{"$f":"'T2-B(PP2)'!$B$183","v":0},"#'T2-B(PP2)'!$B$183"]
["pp2_bl4_5_6_rate_in",{"$f":"'T2-B(PP2)'!$E$183","v":0},"#'T2-B(PP2)'!$E$183"]
["pp2_bl4_5_6_rate_out",{"$f":"'T2-B(PP2)'!$H$183","v":0},"#'T2-B(PP2)'!$H$183"]
["pp2_bl4_5_6_total",{"$f":"'T2-B(PP2)'!$J$183","v":0},"#'T2-B(PP2)'!$J$183"]
["pp2_bl4_5_6_total_in",{"$f":"'T2-B(PP2)'!$F$183","v":0},"#'T2-B(PP2)'!$F$183"]
["pp2_bl4_5_6_total_out",{"$f":"'T2-B(PP2)'!$I$183","v":0},"#'T2-B(PP2)'!$I$183"]
["pp2_bl4_5_6_unit",{"$f":"'T2-B(PP2)'!$C$183","v":0},"#'T2-B(PP2)'!$C$183"]
["pp2_bl4_5_6_unit_in",{"$f":"'T2-B(PP2)'!$D$183","v":0},"#'T2-B(PP2)'!$D$183"]
["pp2_bl4_5_6_units_out",{"$f":"'T2-B(PP2)'!$G$183","v":0},"#'T2-B(PP2)'!$G$183"]
["pp2_bl4_5_7_name",{"$f":"'T2-B(PP2)'!$B$184","v":0},"#'T2-B(PP2)'!$B$184"]
["pp2_bl4_5_7_rate_in",{"$f":"'T2-B(PP2)'!$E$184","v":0},"#'T2-B(PP2)'!$E$184"]
["pp2_bl4_5_7_rate_out",{"$f":"'T2-B(PP2)'!$H$184","v":0},"#'T2-B(PP2)'!$H$184"]
["pp2_bl4_5_7_total",{"$f":"'T2-B(PP2)'!$J$184","v":0},"#'T2-B(PP2)'!$J$184"]
["pp2_bl4_5_7_total_in",{"$f":"'T2-B(PP2)'!$F$184","v":0},"#'T2-B(PP2)'!$F$184"]
["pp2_bl4_5_7_total_out",{"$f":"'T2-B(PP2)'!$I$184","v":0},"#'T2-B(PP2)'!$I$184"]
["pp2_bl4_5_7_unit",{"$f":"'T2-B(PP2)'!$C$184","v":0},"#'T2-B(PP2)'!$C$184"]
["pp2_bl4_5_7_unit_in",{"$f":"'T2-B(PP2)'!$D$184","v":0},"#'T2-B(PP2)'!$D$184"]
["pp2_bl4_5_7_units_out",{"$f":"'T2-B(PP2)'!$G$184","v":0},"#'T2-B(PP2)'!$G$184"]
["pp2_bl4_5_8_name",{"$f":"'T2-B(PP2)'!$B$185","v":0},"#'T2-B(PP2)'!$B$185"]
["pp2_bl4_5_8_rate_in",{"$f":"'T2-B(PP2)'!$E$185","v":0},"#'T2-B(PP2)'!$E$185"]
["pp2_bl4_5_8_rate_out",{"$f":"'T2-B(PP2)'!$H$185","v":0},"#'T2-B(PP2)'!$H$185"]
["pp2_bl4_5_8_total",{"$f":"'T2-B(PP2)'!$J$185","v":0},"#'T2-B(PP2)'!$J$185"]
["pp2_bl4_5_8_total_in",{"$f":"'T2-B(PP2)'!$F$185","v":0},"#'T2-B(PP2)'!$F$185"]
["pp2_bl4_5_8_total_out",{"$f":"'T2-B(PP2)'!$I$185","v":0},"#'T2-B(PP2)'!$I$185"]
["pp2_bl4_5_8_unit",{"$f":"'T2-B(PP2)'!$C$185","v":0},"#'T2-B(PP2)'!$C$185"]
["pp2_bl4_5_8_unit_in",{"$f":"'T2-B(PP2)'!$D$185","v":0},"#'T2-B(PP2)'!$D$185"]
["pp2_bl4_5_8_units_out",{"$f":"'T2-B(PP2)'!$G$185","v":0},"#'T2-B(PP2)'!$G$185"]
["pp2_bl4_5_9_name",{"$f":"'T2-B(PP2)'!$B$186","v":0},"#'T2-B(PP2)'!$B$186"]
["pp2_bl4_5_9_rate_in",{"$f":"'T2-B(PP2)'!$E$186","v":0},"#'T2-B(PP2)'!$E$186"]
["pp2_bl4_5_9_rate_out",{"$f":"'T2-B(PP2)'!$H$186","v":0},"#'T2-B(PP2)'!$H$186"]
["pp2_bl4_5_9_total",{"$f":"'T2-B(PP2)'!$J$186","v":0},"#'T2-B(PP2)'!$J$186"]
["pp2_bl4_5_9_total_in",{"$f":"'T2-B(PP2)'!$F$186","v":0},"#'T2-B(PP2)'!$F$186"]
["pp2_bl4_5_9_total_out",{"$f":"'T2-B(PP2)'!$I$186","v":0},"#'T2-B(PP2)'!$I$186"]
["pp2_bl4_5_9_unit",{"$f":"'T2-B(PP2)'!$C$186","v":0},"#'T2-B(PP2)'!$C$186"]
["pp2_bl4_5_9_unit_in",{"$f":"'T2-B(PP2)'!$D$186","v":0},"#'T2-B(PP2)'!$D$186"]
["pp2_bl4_5_9_units_out",{"$f":"'T2-B(PP2)'!$G$186","v":0},"#'T2-B(PP2)'!$G$186"]
["pp2_bl4_5_total",{"$f":"'T2-B(PP2)'!$J$177","v":0},"#'T2-B(PP2)'!$J$177"]
["pp2_bl4_5_total_in",{"$f":"'T2-B(PP2)'!$F$177","v":0},"#'T2-B(PP2)'!$F$177"]
["pp2_bl4_5_total_out",{"$f":"'T2-B(PP2)'!$I$177","v":0},"#'T2-B(PP2)'!$I$177"]
["pp2_bl4_6_1_name",{"$f":"'T2-B(PP2)'!$B$199","v":0},"#'T2-B(PP2)'!$B$199"]
["pp2_bl4_6_1_rate_in",{"$f":"'T2-B(PP2)'!$E$199","v":0},"#'T2-B(PP2)'!$E$199"]
["pp2_bl4_6_1_rate_out",{"$f":"'T2-B(PP2)'!$H$199","v":0},"#'T2-B(PP2)'!$H$199"]
["pp2_bl4_6_1_total",{"$f":"'T2-B(PP2)'!$J$199","v":0},"#'T2-B(PP2)'!$J$199"]
["pp2_bl4_6_1_total_in",{"$f":"'T2-B(PP2)'!$F$199","v":0},"#'T2-B(PP2)'!$F$199"]
["pp2_bl4_6_1_total_out",{"$f":"'T2-B(PP2)'!$I$199","v":0},"#'T2-B(PP2)'!$I$199"]
["pp2_bl4_6_1_unit",{"$f":"'T2-B(PP2)'!$C$199","v":0},"#'T2-B(PP2)'!$C$199"]
["pp2_bl4_6_1_unit_in",{"$f":"'T2-B(PP2)'!$D$199","v":0},"#'T2-B(PP2)'!$D$199"]
["pp2_bl4_6_1_units_out",{"$f":"'T2-B(PP2)'!$G$199","v":0},"#'T2-B(PP2)'!$G$199"]
["pp2_bl4_6_10_name",{"$f":"'T2-B(PP2)'!$B$208","v":0},"#'T2-B(PP2)'!$B$208"]
["pp2_bl4_6_10_rate_in",{"$f":"'T2-B(PP2)'!$E$208","v":0},"#'T2-B(PP2)'!$E$208"]
["pp2_bl4_6_10_rate_out",{"$f":"'T2-B(PP2)'!$H$208","v":0},"#'T2-B(PP2)'!$H$208"]
["pp2_bl4_6_10_total",{"$f":"'T2-B(PP2)'!$J$208","v":0},"#'T2-B(PP2)'!$J$208"]
["pp2_bl4_6_10_total_in",{"$f":"'T2-B(PP2)'!$F$208","v":0},"#'T2-B(PP2)'!$F$208"]
["pp2_bl4_6_10_total_out",{"$f":"'T2-B(PP2)'!$I$208","v":0},"#'T2-B(PP2)'!$I$208"]
["pp2_bl4_6_10_unit",{"$f":"'T2-B(PP2)'!$C$208","v":0},"#'T2-B(PP2)'!$C$208"]
["pp2_bl4_6_10_unit_in",{"$f":"'T2-B(PP2)'!$D$208","v":0},"#'T2-B(PP2)'!$D$208"]
["pp2_bl4_6_10_units_out",{"$f":"'T2-B(PP2)'!$G$208","v":0},"#'T2-B(PP2)'!$G$208"]
["pp2_bl4_6_11_name",{"$f":"'T2-B(PP2)'!$B$209","v":0},"#'T2-B(PP2)'!$B$209"]
["pp2_bl4_6_11_rate_in",{"$f":"'T2-B(PP2)'!$E$209","v":0},"#'T2-B(PP2)'!$E$209"]
["pp2_bl4_6_11_rate_out",{"$f":"'T2-B(PP2)'!$H$209","v":0},"#'T2-B(PP2)'!$H$209"]
["pp2_bl4_6_11_total",{"$f":"'T2-B(PP2)'!$J$209","v":0},"#'T2-B(PP2)'!$J$209"]
["pp2_bl4_6_11_total_in",{"$f":"'T2-B(PP2)'!$F$209","v":0},"#'T2-B(PP2)'!$F$209"]
["pp2_bl4_6_11_total_out",{"$f":"'T2-B(PP2)'!$I$209","v":0},"#'T2-B(PP2)'!$I$209"]
["pp2_bl4_6_11_unit",{"$f":"'T2-B(PP2)'!$C$209","v":0},"#'T2-B(PP2)'!$C$209"]
["pp2_bl4_6_11_unit_in",{"$f":"'T2-B(PP2)'!$D$209","v":0},"#'T2-B(PP2)'!$D$209"]
["pp2_bl4_6_11_units_out",{"$f":"'T2-B(PP2)'!$G$209","v":0},"#'T2-B(PP2)'!$G$209"]
["pp2_bl4_6_12_name",{"$f":"'T2-B(PP2)'!$B$210","v":0},"#'T2-B(PP2)'!$B$210"]
["pp2_bl4_6_12_rate_in",{"$f":"'T2-B(PP2)'!$E$210","v":0},"#'T2-B(PP2)'!$E$210"]
["pp2_bl4_6_12_rate_out",{"$f":"'T2-B(PP2)'!$H$210","v":0},"#'T2-B(PP2)'!$H$210"]
["pp2_bl4_6_12_total",{"$f":"'T2-B(PP2)'!$J$210","v":0},"#'T2-B(PP2)'!$J$210"]
["pp2_bl4_6_12_total_in",{"$f":"'T2-B(PP2)'!$F$210","v":0},"#'T2-B(PP2)'!$F$210"]
["pp2_bl4_6_12_total_out",{"$f":"'T2-B(PP2)'!$I$210","v":0},"#'T2-B(PP2)'!$I$210"]
["pp2_bl4_6_12_unit",{"$f":"'T2-B(PP2)'!$C$210","v":0},"#'T2-B(PP2)'!$C$210"]
["pp2_bl4_6_12_unit_in",{"$f":"'T2-B(PP2)'!$D$210","v":0},"#'T2-B(PP2)'!$D$210"]
["pp2_bl4_6_12_units_out",{"$f":"'T2-B(PP2)'!$G$210","v":0},"#'T2-B(PP2)'!$G$210"]
["pp2_bl4_6_13_name",{"$f":"'T2-B(PP2)'!$B$211","v":0},"#'T2-B(PP2)'!$B$211"]
["pp2_bl4_6_13_rate_in",{"$f":"'T2-B(PP2)'!$E$211","v":0},"#'T2-B(PP2)'!$E$211"]
["pp2_bl4_6_13_rate_out",{"$f":"'T2-B(PP2)'!$H$211","v":0},"#'T2-B(PP2)'!$H$211"]
["pp2_bl4_6_13_total",{"$f":"'T2-B(PP2)'!$J$211","v":0},"#'T2-B(PP2)'!$J$211"]
["pp2_bl4_6_13_total_in",{"$f":"'T2-B(PP2)'!$F$211","v":0},"#'T2-B(PP2)'!$F$211"]
["pp2_bl4_6_13_total_out",{"$f":"'T2-B(PP2)'!$I$211","v":0},"#'T2-B(PP2)'!$I$211"]
["pp2_bl4_6_13_unit",{"$f":"'T2-B(PP2)'!$C$211","v":0},"#'T2-B(PP2)'!$C$211"]
["pp2_bl4_6_13_unit_in",{"$f":"'T2-B(PP2)'!$D$211","v":0},"#'T2-B(PP2)'!$D$211"]
["pp2_bl4_6_13_units_out",{"$f":"'T2-B(PP2)'!$G$211","v":0},"#'T2-B(PP2)'!$G$211"]
["pp2_bl4_6_14_name",{"$f":"'T2-B(PP2)'!$B$212","v":0},"#'T2-B(PP2)'!$B$212"]
["pp2_bl4_6_14_rate_in",{"$f":"'T2-B(PP2)'!$E$212","v":0},"#'T2-B(PP2)'!$E$212"]
["pp2_bl4_6_14_rate_out",{"$f":"'T2-B(PP2)'!$H$212","v":0},"#'T2-B(PP2)'!$H$212"]
["pp2_bl4_6_14_total",{"$f":"'T2-B(PP2)'!$J$212","v":0},"#'T2-B(PP2)'!$J$212"]
["pp2_bl4_6_14_total_in",{"$f":"'T2-B(PP2)'!$F$212","v":0},"#'T2-B(PP2)'!$F$212"]
["pp2_bl4_6_14_total_out",{"$f":"'T2-B(PP2)'!$I$212","v":0},"#'T2-B(PP2)'!$I$212"]
["pp2_bl4_6_14_unit",{"$f":"'T2-B(PP2)'!$C$212","v":0},"#'T2-B(PP2)'!$C$212"]
["pp2_bl4_6_14_unit_in",{"$f":"'T2-B(PP2)'!$D$212","v":0},"#'T2-B(PP2)'!$D$212"]
["pp2_bl4_6_14_units_out",{"$f":"'T2-B(PP2)'!$G$212","v":0},"#'T2-B(PP2)'!$G$212"]
["pp2_bl4_6_15_name",{"$f":"'T2-B(PP2)'!$B$213","v":0},"#'T2-B(PP2)'!$B$213"]
["pp2_bl4_6_15_rate_in",{"$f":"'T2-B(PP2)'!$E$213","v":0},"#'T2-B(PP2)'!$E$213"]
["pp2_bl4_6_15_rate_out",{"$f":"'T2-B(PP2)'!$H$213","v":0},"#'T2-B(PP2)'!$H$213"]
["pp2_bl4_6_15_total",{"$f":"'T2-B(PP2)'!$J$213","v":0},"#'T2-B(PP2)'!$J$213"]
["pp2_bl4_6_15_total_in",{"$f":"'T2-B(PP2)'!$F$213","v":0},"#'T2-B(PP2)'!$F$213"]
["pp2_bl4_6_15_total_out",{"$f":"'T2-B(PP2)'!$I$213","v":0},"#'T2-B(PP2)'!$I$213"]
["pp2_bl4_6_15_unit",{"$f":"'T2-B(PP2)'!$C$213","v":0},"#'T2-B(PP2)'!$C$213"]
["pp2_bl4_6_15_unit_in",{"$f":"'T2-B(PP2)'!$D$213","v":0},"#'T2-B(PP2)'!$D$213"]
["pp2_bl4_6_15_units_out",{"$f":"'T2-B(PP2)'!$G$213","v":0},"#'T2-B(PP2)'!$G$213"]
["pp2_bl4_6_16_name",{"$f":"'T2-B(PP2)'!$B$214","v":0},"#'T2-B(PP2)'!$B$214"]
["pp2_bl4_6_16_rate_in",{"$f":"'T2-B(PP2)'!$E$214","v":0},"#'T2-B(PP2)'!$E$214"]
["pp2_bl4_6_16_rate_out",{"$f":"'T2-B(PP2)'!$H$214","v":0},"#'T2-B(PP2)'!$H$214"]
["pp2_bl4_6_16_total",{"$f":"'T2-B(PP2)'!$J$214","v":0},"#'T2-B(PP2)'!$J$214"]
["pp2_bl4_6_16_total_in",{"$f":"'T2-B(PP2)'!$F$214","v":0},"#'T2-B(PP2)'!$F$214"]
["pp2_bl4_6_16_total_out",{"$f":"'T2-B(PP2)'!$I$214","v":0},"#'T2-B(PP2)'!$I$214"]
["pp2_bl4_6_16_unit",{"$f":"'T2-B(PP2)'!$C$214","v":0},"#'T2-B(PP2)'!$C$214"]
["pp2_bl4_6_16_unit_in",{"$f":"'T2-B(PP2)'!$D$214","v":0},"#'T2-B(PP2)'!$D$214"]
["pp2_bl4_6_16_units_out",{"$f":"'T2-B(PP2)'!$G$214","v":0},"#'T2-B(PP2)'!$G$214"]
["pp2_bl4_6_17_name",{"$f":"'T2-B(PP2)'!$B$215","v":0},"#'T2-B(PP2)'!$B$215"]
["pp2_bl4_6_17_rate_in",{"$f":"'T2-B(PP2)'!$E$215","v":0},"#'T2-B(PP2)'!$E$215"]
["pp2_bl4_6_17_rate_out",{"$f":"'T2-B(PP2)'!$H$215","v":0},"#'T2-B(PP2)'!$H$215"]
["pp2_bl4_6_17_total",{"$f":"'T2-B(PP2)'!$J$215","v":0},"#'T2-B(PP2)'!$J$215"]
["pp2_bl4_6_17_total_in",{"$f":"'T2-B(PP2)'!$F$215","v":0},"#'T2-B(PP2)'!$F$215"]
["pp2_bl4_6_17_total_out",{"$f":"'T2-B(PP2)'!$I$215","v":0},"#'T2-B(PP2)'!$I$215"]
["pp2_bl4_6_17_unit",{"$f":"'T2-B(PP2)'!$C$215","v":0},"#'T2-B(PP2)'!$C$215"]
["pp2_bl4_6_17_unit_in",{"$f":"'T2-B(PP2)'!$D$215","v":0},"#'T2-B(PP2)'!$D$215"]
["pp2_bl4_6_17_units_out",{"$f":"'T2-B(PP2)'!$G$215","v":0},"#'T2-B(PP2)'!$G$215"]
["pp2_bl4_6_18_name",{"$f":"'T2-B(PP2)'!$B$216","v":0},"#'T2-B(PP2)'!$B$216"]
["pp2_bl4_6_18_rate_in",{"$f":"'T2-B(PP2)'!$E$216","v":0},"#'T2-B(PP2)'!$E$216"]
["pp2_bl4_6_18_rate_out",{"$f":"'T2-B(PP2)'!$H$216","v":0},"#'T2-B(PP2)'!$H$216"]
["pp2_bl4_6_18_total",{"$f":"'T2-B(PP2)'!$J$216","v":0},"#'T2-B(PP2)'!$J$216"]
["pp2_bl4_6_18_total_in",{"$f":"'T2-B(PP2)'!$F$216","v":0},"#'T2-B(PP2)'!$F$216"]
["pp2_bl4_6_18_total_out",{"$f":"'T2-B(PP2)'!$I$216","v":0},"#'T2-B(PP2)'!$I$216"]
["pp2_bl4_6_18_unit",{"$f":"'T2-B(PP2)'!$C$216","v":0},"#'T2-B(PP2)'!$C$216"]
["pp2_bl4_6_18_unit_in",{"$f":"'T2-B(PP2)'!$D$216","v":0},"#'T2-B(PP2)'!$D$216"]
["pp2_bl4_6_18_units_out",{"$f":"'T2-B(PP2)'!$G$216","v":0},"#'T2-B(PP2)'!$G$216"]
["pp2_bl4_6_19_name",{"$f":"'T2-B(PP2)'!$B$217","v":0},"#'T2-B(PP2)'!$B$217"]
["pp2_bl4_6_19_rate_in",{"$f":"'T2-B(PP2)'!$E$217","v":0},"#'T2-B(PP2)'!$E$217"]
["pp2_bl4_6_19_rate_out",{"$f":"'T2-B(PP2)'!$H$217","v":0},"#'T2-B(PP2)'!$H$217"]
["pp2_bl4_6_19_total",{"$f":"'T2-B(PP2)'!$J$217","v":0},"#'T2-B(PP2)'!$J$217"]
["pp2_bl4_6_19_total_in",{"$f":"'T2-B(PP2)'!$F$217","v":0},"#'T2-B(PP2)'!$F$217"]
["pp2_bl4_6_19_total_out",{"$f":"'T2-B(PP2)'!$I$217","v":0},"#'T2-B(PP2)'!$I$217"]
["pp2_bl4_6_19_unit",{"$f":"'T2-B(PP2)'!$C$217","v":0},"#'T2-B(PP2)'!$C$217"]
["pp2_bl4_6_19_unit_in",{"$f":"'T2-B(PP2)'!$D$217","v":0},"#'T2-B(PP2)'!$D$217"]
["pp2_bl4_6_19_units_out",{"$f":"'T2-B(PP2)'!$G$217","v":0},"#'T2-B(PP2)'!$G$217"]
["pp2_bl4_6_2_name",{"$f":"'T2-B(PP2)'!$B$200","v":0},"#'T2-B(PP2)'!$B$200"]
["pp2_bl4_6_2_rate_in",{"$f":"'T2-B(PP2)'!$E$200","v":0},"#'T2-B(PP2)'!$E$200"]
["pp2_bl4_6_2_rate_out",{"$f":"'T2-B(PP2)'!$H$200","v":0},"#'T2-B(PP2)'!$H$200"]
["pp2_bl4_6_2_total",{"$f":"'T2-B(PP2)'!$J$200","v":0},"#'T2-B(PP2)'!$J$200"]
["pp2_bl4_6_2_total_in",{"$f":"'T2-B(PP2)'!$F$200","v":0},"#'T2-B(PP2)'!$F$200"]
["pp2_bl4_6_2_total_out",{"$f":"'T2-B(PP2)'!$I$200","v":0},"#'T2-B(PP2)'!$I$200"]
["pp2_bl4_6_2_unit",{"$f":"'T2-B(PP2)'!$C$200","v":0},"#'T2-B(PP2)'!$C$200"]
["pp2_bl4_6_2_unit_in",{"$f":"'T2-B(PP2)'!$D$200","v":0},"#'T2-B(PP2)'!$D$200"]
["pp2_bl4_6_2_units_out",{"$f":"'T2-B(PP2)'!$G$200","v":0},"#'T2-B(PP2)'!$G$200"]
["pp2_bl4_6_20_name",{"$f":"'T2-B(PP2)'!$B$218","v":0},"#'T2-B(PP2)'!$B$218"]
["pp2_bl4_6_20_rate_in",{"$f":"'T2-B(PP2)'!$E$218","v":0},"#'T2-B(PP2)'!$E$218"]
["pp2_bl4_6_20_rate_out",{"$f":"'T2-B(PP2)'!$H$218","v":0},"#'T2-B(PP2)'!$H$218"]
["pp2_bl4_6_20_total",{"$f":"'T2-B(PP2)'!$J$218","v":0},"#'T2-B(PP2)'!$J$218"]
["pp2_bl4_6_20_total_in",{"$f":"'T2-B(PP2)'!$F$218","v":0},"#'T2-B(PP2)'!$F$218"]
["pp2_bl4_6_20_total_out",{"$f":"'T2-B(PP2)'!$I$218","v":0},"#'T2-B(PP2)'!$I$218"]
["pp2_bl4_6_20_unit",{"$f":"'T2-B(PP2)'!$C$218","v":0},"#'T2-B(PP2)'!$C$218"]
["pp2_bl4_6_20_unit_in",{"$f":"'T2-B(PP2)'!$D$218","v":0},"#'T2-B(PP2)'!$D$218"]
["pp2_bl4_6_20_units_out",{"$f":"'T2-B(PP2)'!$G$218","v":0},"#'T2-B(PP2)'!$G$218"]
["pp2_bl4_6_3_name",{"$f":"'T2-B(PP2)'!$B$201","v":0},"#'T2-B(PP2)'!$B$201"]
["pp2_bl4_6_3_rate_in",{"$f":"'T2-B(PP2)'!$E$201","v":0},"#'T2-B(PP2)'!$E$201"]
["pp2_bl4_6_3_rate_out",{"$f":"'T2-B(PP2)'!$H$201","v":0},"#'T2-B(PP2)'!$H$201"]
["pp2_bl4_6_3_total",{"$f":"'T2-B(PP2)'!$J$201","v":0},"#'T2-B(PP2)'!$J$201"]
["pp2_bl4_6_3_total_in",{"$f":"'T2-B(PP2)'!$F$201","v":0},"#'T2-B(PP2)'!$F$201"]
["pp2_bl4_6_3_total_out",{"$f":"'T2-B(PP2)'!$I$201","v":0},"#'T2-B(PP2)'!$I$201"]
["pp2_bl4_6_3_unit",{"$f":"'T2-B(PP2)'!$C$201","v":0},"#'T2-B(PP2)'!$C$201"]
["pp2_bl4_6_3_unit_in",{"$f":"'T2-B(PP2)'!$D$201","v":0},"#'T2-B(PP2)'!$D$201"]
["pp2_bl4_6_3_units_out",{"$f":"'T2-B(PP2)'!$G$201","v":0},"#'T2-B(PP2)'!$G$201"]
["pp2_bl4_6_4_name",{"$f":"'T2-B(PP2)'!$B$202","v":0},"#'T2-B(PP2)'!$B$202"]
["pp2_bl4_6_4_rate_in",{"$f":"'T2-B(PP2)'!$E$202","v":0},"#'T2-B(PP2)'!$E$202"]
["pp2_bl4_6_4_rate_out",{"$f":"'T2-B(PP2)'!$H$202","v":0},"#'T2-B(PP2)'!$H$202"]
["pp2_bl4_6_4_total",{"$f":"'T2-B(PP2)'!$J$202","v":0},"#'T2-B(PP2)'!$J$202"]
["pp2_bl4_6_4_total_in",{"$f":"'T2-B(PP2)'!$F$202","v":0},"#'T2-B(PP2)'!$F$202"]
["pp2_bl4_6_4_total_out",{"$f":"'T2-B(PP2)'!$I$202","v":0},"#'T2-B(PP2)'!$I$202"]
["pp2_bl4_6_4_unit",{"$f":"'T2-B(PP2)'!$C$202","v":0},"#'T2-B(PP2)'!$C$202"]
["pp2_bl4_6_4_unit_in",{"$f":"'T2-B(PP2)'!$D$202","v":0},"#'T2-B(PP2)'!$D$202"]
["pp2_bl4_6_4_units_out",{"$f":"'T2-B(PP2)'!$G$202","v":0},"#'T2-B(PP2)'!$G$202"]
["pp2_bl4_6_5_name",{"$f":"'T2-B(PP2)'!$B$203","v":0},"#'T2-B(PP2)'!$B$203"]
["pp2_bl4_6_5_rate_in",{"$f":"'T2-B(PP2)'!$E$203","v":0},"#'T2-B(PP2)'!$E$203"]
["pp2_bl4_6_5_rate_out",{"$f":"'T2-B(PP2)'!$H$203","v":0},"#'T2-B(PP2)'!$H$203"]
["pp2_bl4_6_5_total",{"$f":"'T2-B(PP2)'!$J$203","v":0},"#'T2-B(PP2)'!$J$203"]
["pp2_bl4_6_5_total_in",{"$f":"'T2-B(PP2)'!$F$203","v":0},"#'T2-B(PP2)'!$F$203"]
["pp2_bl4_6_5_total_out",{"$f":"'T2-B(PP2)'!$I$203","v":0},"#'T2-B(PP2)'!$I$203"]
["pp2_bl4_6_5_unit",{"$f":"'T2-B(PP2)'!$C$203","v":0},"#'T2-B(PP2)'!$C$203"]
["pp2_bl4_6_5_unit_in",{"$f":"'T2-B(PP2)'!$D$203","v":0},"#'T2-B(PP2)'!$D$203"]
["pp2_bl4_6_5_units_out",{"$f":"'T2-B(PP2)'!$G$203","v":0},"#'T2-B(PP2)'!$G$203"]
["pp2_bl4_6_6_name",{"$f":"'T2-B(PP2)'!$B$204","v":0},"#'T2-B(PP2)'!$B$204"]
["pp2_bl4_6_6_rate_in",{"$f":"'T2-B(PP2)'!$E$204","v":0},"#'T2-B(PP2)'!$E$204"]
["pp2_bl4_6_6_rate_out",{"$f":"'T2-B(PP2)'!$H$204","v":0},"#'T2-B(PP2)'!$H$204"]
["pp2_bl4_6_6_total",{"$f":"'T2-B(PP2)'!$J$204","v":0},"#'T2-B(PP2)'!$J$204"]
["pp2_bl4_6_6_total_in",{"$f":"'T2-B(PP2)'!$F$204","v":0},"#'T2-B(PP2)'!$F$204"]
["pp2_bl4_6_6_total_out",{"$f":"'T2-B(PP2)'!$I$204","v":0},"#'T2-B(PP2)'!$I$204"]
["pp2_bl4_6_6_unit",{"$f":"'T2-B(PP2)'!$C$204","v":0},"#'T2-B(PP2)'!$C$204"]
["pp2_bl4_6_6_unit_in",{"$f":"'T2-B(PP2)'!$D$204","v":0},"#'T2-B(PP2)'!$D$204"]
["pp2_bl4_6_6_units_out",{"$f":"'T2-B(PP2)'!$G$204","v":0},"#'T2-B(PP2)'!$G$204"]
["pp2_bl4_6_7_name",{"$f":"'T2-B(PP2)'!$B$205","v":0},"#'T2-B(PP2)'!$B$205"]
["pp2_bl4_6_7_rate_in",{"$f":"'T2-B(PP2)'!$E$205","v":0},"#'T2-B(PP2)'!$E$205"]
["pp2_bl4_6_7_rate_out",{"$f":"'T2-B(PP2)'!$H$205","v":0},"#'T2-B(PP2)'!$H$205"]
["pp2_bl4_6_7_total",{"$f":"'T2-B(PP2)'!$J$205","v":0},"#'T2-B(PP2)'!$J$205"]
["pp2_bl4_6_7_total_in",{"$f":"'T2-B(PP2)'!$F$205","v":0},"#'T2-B(PP2)'!$F$205"]
["pp2_bl4_6_7_total_out",{"$f":"'T2-B(PP2)'!$I$205","v":0},"#'T2-B(PP2)'!$I$205"]
["pp2_bl4_6_7_unit",{"$f":"'T2-B(PP2)'!$C$205","v":0},"#'T2-B(PP2)'!$C$205"]
["pp2_bl4_6_7_unit_in",{"$f":"'T2-B(PP2)'!$D$205","v":0},"#'T2-B(PP2)'!$D$205"]
["pp2_bl4_6_7_units_out",{"$f":"'T2-B(PP2)'!$G$205","v":0},"#'T2-B(PP2)'!$G$205"]
["pp2_bl4_6_8_name",{"$f":"'T2-B(PP2)'!$B$206","v":0},"#'T2-B(PP2)'!$B$206"]
["pp2_bl4_6_8_rate_in",{"$f":"'T2-B(PP2)'!$E$206","v":0},"#'T2-B(PP2)'!$E$206"]
["pp2_bl4_6_8_rate_out",{"$f":"'T2-B(PP2)'!$H$206","v":0},"#'T2-B(PP2)'!$H$206"]
["pp2_bl4_6_8_total",{"$f":"'T2-B(PP2)'!$J$206","v":0},"#'T2-B(PP2)'!$J$206"]
["pp2_bl4_6_8_total_in",{"$f":"'T2-B(PP2)'!$F$206","v":0},"#'T2-B(PP2)'!$F$206"]
["pp2_bl4_6_8_total_out",{"$f":"'T2-B(PP2)'!$I$206","v":0},"#'T2-B(PP2)'!$I$206"]
["pp2_bl4_6_8_unit",{"$f":"'T2-B(PP2)'!$C$206","v":0},"#'T2-B(PP2)'!$C$206"]
["pp2_bl4_6_8_unit_in",{"$f":"'T2-B(PP2)'!$D$206","v":0},"#'T2-B(PP2)'!$D$206"]
["pp2_bl4_6_8_units_out",{"$f":"'T2-B(PP2)'!$G$206","v":0},"#'T2-B(PP2)'!$G$206"]
["pp2_bl4_6_9_name",{"$f":"'T2-B(PP2)'!$B$207","v":0},"#'T2-B(PP2)'!$B$207"]
["pp2_bl4_6_9_rate_in",{"$f":"'T2-B(PP2)'!$E$207","v":0},"#'T2-B(PP2)'!$E$207"]
["pp2_bl4_6_9_rate_out",{"$f":"'T2-B(PP2)'!$H$207","v":0},"#'T2-B(PP2)'!$H$207"]
["pp2_bl4_6_9_total",{"$f":"'T2-B(PP2)'!$J$207","v":0},"#'T2-B(PP2)'!$J$207"]
["pp2_bl4_6_9_total_in",{"$f":"'T2-B(PP2)'!$F$207","v":0},"#'T2-B(PP2)'!$F$207"]
["pp2_bl4_6_9_total_out",{"$f":"'T2-B(PP2)'!$I$207","v":0},"#'T2-B(PP2)'!$I$207"]
["pp2_bl4_6_9_unit",{"$f":"'T2-B(PP2)'!$C$207","v":0},"#'T2-B(PP2)'!$C$207"]
["pp2_bl4_6_9_unit_in",{"$f":"'T2-B(PP2)'!$D$207","v":0},"#'T2-B(PP2)'!$D$207"]
["pp2_bl4_6_9_units_out",{"$f":"'T2-B(PP2)'!$G$207","v":0},"#'T2-B(PP2)'!$G$207"]
["pp2_bl4_6_total",{"$f":"'T2-B(PP2)'!$J$198","v":0},"#'T2-B(PP2)'!$J$198"]
["pp2_bl4_6_total_in",{"$f":"'T2-B(PP2)'!$F$198","v":0},"#'T2-B(PP2)'!$F$198"]
["pp2_bl4_6_total_out",{"$f":"'T2-B(PP2)'!$I$198","v":0},"#'T2-B(PP2)'!$I$198"]
["pp2_bl4_7_1_name",{"$f":"'T2-B(PP2)'!$B$220","v":0},"#'T2-B(PP2)'!$B$220"]
["pp2_bl4_7_1_rate_in",{"$f":"'T2-B(PP2)'!$E$220","v":0},"#'T2-B(PP2)'!$E$220"]
["pp2_bl4_7_1_rate_out",{"$f":"'T2-B(PP2)'!$H$220","v":0},"#'T2-B(PP2)'!$H$220"]
["pp2_bl4_7_1_total",{"$f":"'T2-B(PP2)'!$J$220","v":0},"#'T2-B(PP2)'!$J$220"]
["pp2_bl4_7_1_total_in",{"$f":"'T2-B(PP2)'!$F$220","v":0},"#'T2-B(PP2)'!$F$220"]
["pp2_bl4_7_1_total_out",{"$f":"'T2-B(PP2)'!$I$220","v":0},"#'T2-B(PP2)'!$I$220"]
["pp2_bl4_7_1_unit",{"$f":"'T2-B(PP2)'!$C$220","v":0},"#'T2-B(PP2)'!$C$220"]
["pp2_bl4_7_1_unit_in",{"$f":"'T2-B(PP2)'!$D$220","v":0},"#'T2-B(PP2)'!$D$220"]
["pp2_bl4_7_1_units_out",{"$f":"'T2-B(PP2)'!$G$220","v":0},"#'T2-B(PP2)'!$G$220"]
["pp2_bl4_7_10_name",{"$f":"'T2-B(PP2)'!$B$229","v":0},"#'T2-B(PP2)'!$B$229"]
["pp2_bl4_7_10_rate_in",{"$f":"'T2-B(PP2)'!$E$229","v":0},"#'T2-B(PP2)'!$E$229"]
["pp2_bl4_7_10_rate_out",{"$f":"'T2-B(PP2)'!$H$229","v":0},"#'T2-B(PP2)'!$H$229"]
["pp2_bl4_7_10_total",{"$f":"'T2-B(PP2)'!$J$229","v":0},"#'T2-B(PP2)'!$J$229"]
["pp2_bl4_7_10_total_in",{"$f":"'T2-B(PP2)'!$F$229","v":0},"#'T2-B(PP2)'!$F$229"]
["pp2_bl4_7_10_total_out",{"$f":"'T2-B(PP2)'!$I$229","v":0},"#'T2-B(PP2)'!$I$229"]
["pp2_bl4_7_10_unit",{"$f":"'T2-B(PP2)'!$C$229","v":0},"#'T2-B(PP2)'!$C$229"]
["pp2_bl4_7_10_unit_in",{"$f":"'T2-B(PP2)'!$D$229","v":0},"#'T2-B(PP2)'!$D$229"]
["pp2_bl4_7_10_units_out",{"$f":"'T2-B(PP2)'!$G$229","v":0},"#'T2-B(PP2)'!$G$229"]
["pp2_bl4_7_11_name",{"$f":"'T2-B(PP2)'!$B$230","v":0},"#'T2-B(PP2)'!$B$230"]
["pp2_bl4_7_11_rate_in",{"$f":"'T2-B(PP2)'!$E$230","v":0},"#'T2-B(PP2)'!$E$230"]
["pp2_bl4_7_11_rate_out",{"$f":"'T2-B(PP2)'!$H$230","v":0},"#'T2-B(PP2)'!$H$230"]
["pp2_bl4_7_11_total",{"$f":"'T2-B(PP2)'!$J$230","v":0},"#'T2-B(PP2)'!$J$230"]
["pp2_bl4_7_11_total_in",{"$f":"'T2-B(PP2)'!$F$230","v":0},"#'T2-B(PP2)'!$F$230"]
["pp2_bl4_7_11_total_out",{"$f":"'T2-B(PP2)'!$I$230","v":0},"#'T2-B(PP2)'!$I$230"]
["pp2_bl4_7_11_unit",{"$f":"'T2-B(PP2)'!$C$230","v":0},"#'T2-B(PP2)'!$C$230"]
["pp2_bl4_7_11_unit_in",{"$f":"'T2-B(PP2)'!$D$230","v":0},"#'T2-B(PP2)'!$D$230"]
["pp2_bl4_7_11_units_out",{"$f":"'T2-B(PP2)'!$G$230","v":0},"#'T2-B(PP2)'!$G$230"]
["pp2_bl4_7_12_name",{"$f":"'T2-B(PP2)'!$B$231","v":0},"#'T2-B(PP2)'!$B$231"]
["pp2_bl4_7_12_rate_in",{"$f":"'T2-B(PP2)'!$E$231","v":0},"#'T2-B(PP2)'!$E$231"]
["pp2_bl4_7_12_rate_out",{"$f":"'T2-B(PP2)'!$H$231","v":0},"#'T2-B(PP2)'!$H$231"]
["pp2_bl4_7_12_total",{"$f":"'T2-B(PP2)'!$J$231","v":0},"#'T2-B(PP2)'!$J$231"]
["pp2_bl4_7_12_total_in",{"$f":"'T2-B(PP2)'!$F$231","v":0},"#'T2-B(PP2)'!$F$231"]
["pp2_bl4_7_12_total_out",{"$f":"'T2-B(PP2)'!$I$231","v":0},"#'T2-B(PP2)'!$I$231"]
["pp2_bl4_7_12_unit",{"$f":"'T2-B(PP2)'!$C$231","v":0},"#'T2-B(PP2)'!$C$231"]
["pp2_bl4_7_12_unit_in",{"$f":"'T2-B(PP2)'!$D$231","v":0},"#'T2-B(PP2)'!$D$231"]
["pp2_bl4_7_12_units_out",{"$f":"'T2-B(PP2)'!$G$231","v":0},"#'T2-B(PP2)'!$G$231"]
["pp2_bl4_7_13_name",{"$f":"'T2-B(PP2)'!$B$232","v":0},"#'T2-B(PP2)'!$B$232"]
["pp2_bl4_7_13_rate_in",{"$f":"'T2-B(PP2)'!$E$232","v":0},"#'T2-B(PP2)'!$E$232"]
["pp2_bl4_7_13_rate_out",{"$f":"'T2-B(PP2)'!$H$232","v":0},"#'T2-B(PP2)'!$H$232"]
["pp2_bl4_7_13_total",{"$f":"'T2-B(PP2)'!$J$232","v":0},"#'T2-B(PP2)'!$J$232"]
["pp2_bl4_7_13_total_in",{"$f":"'T2-B(PP2)'!$F$232","v":0},"#'T2-B(PP2)'!$F$232"]
["pp2_bl4_7_13_total_out",{"$f":"'T2-B(PP2)'!$I$232","v":0},"#'T2-B(PP2)'!$I$232"]
["pp2_bl4_7_13_unit",{"$f":"'T2-B(PP2)'!$C$232","v":0},"#'T2-B(PP2)'!$C$232"]
["pp2_bl4_7_13_unit_in",{"$f":"'T2-B(PP2)'!$D$232","v":0},"#'T2-B(PP2)'!$D$232"]
["pp2_bl4_7_13_units_out",{"$f":"'T2-B(PP2)'!$G$232","v":0},"#'T2-B(PP2)'!$G$232"]
["pp2_bl4_7_14_name",{"$f":"'T2-B(PP2)'!$B$233","v":0},"#'T2-B(PP2)'!$B$233"]
["pp2_bl4_7_14_rate_in",{"$f":"'T2-B(PP2)'!$E$233","v":0},"#'T2-B(PP2)'!$E$233"]
["pp2_bl4_7_14_rate_out",{"$f":"'T2-B(PP2)'!$H$233","v":0},"#'T2-B(PP2)'!$H$233"]
["pp2_bl4_7_14_total",{"$f":"'T2-B(PP2)'!$J$233","v":0},"#'T2-B(PP2)'!$J$233"]
["pp2_bl4_7_14_total_in",{"$f":"'T2-B(PP2)'!$F$233","v":0},"#'T2-B(PP2)'!$F$233"]
["pp2_bl4_7_14_total_out",{"$f":"'T2-B(PP2)'!$I$233","v":0},"#'T2-B(PP2)'!$I$233"]
["pp2_bl4_7_14_unit",{"$f":"'T2-B(PP2)'!$C$233","v":0},"#'T2-B(PP2)'!$C$233"]
["pp2_bl4_7_14_unit_in",{"$f":"'T2-B(PP2)'!$D$233","v":0},"#'T2-B(PP2)'!$D$233"]
["pp2_bl4_7_14_units_out",{"$f":"'T2-B(PP2)'!$G$233","v":0},"#'T2-B(PP2)'!$G$233"]
["pp2_bl4_7_15_name",{"$f":"'T2-B(PP2)'!$B$234","v":0},"#'T2-B(PP2)'!$B$234"]
["pp2_bl4_7_15_rate_in",{"$f":"'T2-B(PP2)'!$E$234","v":0},"#'T2-B(PP2)'!$E$234"]
["pp2_bl4_7_15_rate_out",{"$f":"'T2-B(PP2)'!$H$234","v":0},"#'T2-B(PP2)'!$H$234"]
["pp2_bl4_7_15_total",{"$f":"'T2-B(PP2)'!$J$234","v":0},"#'T2-B(PP2)'!$J$234"]
["pp2_bl4_7_15_total_in",{"$f":"'T2-B(PP2)'!$F$234","v":0},"#'T2-B(PP2)'!$F$234"]
["pp2_bl4_7_15_total_out",{"$f":"'T2-B(PP2)'!$I$234","v":0},"#'T2-B(PP2)'!$I$234"]
["pp2_bl4_7_15_unit",{"$f":"'T2-B(PP2)'!$C$234","v":0},"#'T2-B(PP2)'!$C$234"]
["pp2_bl4_7_15_unit_in",{"$f":"'T2-B(PP2)'!$D$234","v":0},"#'T2-B(PP2)'!$D$234"]
["pp2_bl4_7_15_units_out",{"$f":"'T2-B(PP2)'!$G$234","v":0},"#'T2-B(PP2)'!$G$234"]
["pp2_bl4_7_16_name",{"$f":"'T2-B(PP2)'!$B$235","v":0},"#'T2-B(PP2)'!$B$235"]
["pp2_bl4_7_16_rate_in",{"$f":"'T2-B(PP2)'!$E$235","v":0},"#'T2-B(PP2)'!$E$235"]
["pp2_bl4_7_16_rate_out",{"$f":"'T2-B(PP2)'!$H$235","v":0},"#'T2-B(PP2)'!$H$235"]
["pp2_bl4_7_16_total",{"$f":"'T2-B(PP2)'!$J$235","v":0},"#'T2-B(PP2)'!$J$235"]
["pp2_bl4_7_16_total_in",{"$f":"'T2-B(PP2)'!$F$235","v":0},"#'T2-B(PP2)'!$F$235"]
["pp2_bl4_7_16_total_out",{"$f":"'T2-B(PP2)'!$I$235","v":0},"#'T2-B(PP2)'!$I$235"]
["pp2_bl4_7_16_unit",{"$f":"'T2-B(PP2)'!$C$235","v":0},"#'T2-B(PP2)'!$C$235"]
["pp2_bl4_7_16_unit_in",{"$f":"'T2-B(PP2)'!$D$235","v":0},"#'T2-B(PP2)'!$D$235"]
["pp2_bl4_7_16_units_out",{"$f":"'T2-B(PP2)'!$G$235","v":0},"#'T2-B(PP2)'!$G$235"]
["pp2_bl4_7_17_name",{"$f":"'T2-B(PP2)'!$B$236","v":0},"#'T2-B(PP2)'!$B$236"]
["pp2_bl4_7_17_rate_in",{"$f":"'T2-B(PP2)'!$E$236","v":0},"#'T2-B(PP2)'!$E$236"]
["pp2_bl4_7_17_rate_out",{"$f":"'T2-B(PP2)'!$H$236","v":0},"#'T2-B(PP2)'!$H$236"]
["pp2_bl4_7_17_total",{"$f":"'T2-B(PP2)'!$J$236","v":0},"#'T2-B(PP2)'!$J$236"]
["pp2_bl4_7_17_total_in",{"$f":"'T2-B(PP2)'!$F$236","v":0},"#'T2-B(PP2)'!$F$236"]
["pp2_bl4_7_17_total_out",{"$f":"'T2-B(PP2)'!$I$236","v":0},"#'T2-B(PP2)'!$I$236"]
["pp2_bl4_7_17_unit",{"$f":"'T2-B(PP2)'!$C$236","v":0},"#'T2-B(PP2)'!$C$236"]
["pp2_bl4_7_17_unit_in",{"$f":"'T2-B(PP2)'!$D$236","v":0},"#'T2-B(PP2)'!$D$236"]
["pp2_bl4_7_17_units_out",{"$f":"'T2-B(PP2)'!$G$236","v":0},"#'T2-B(PP2)'!$G$236"]
["pp2_bl4_7_18_name",{"$f":"'T2-B(PP2)'!$B$237","v":0},"#'T2-B(PP2)'!$B$237"]
["pp2_bl4_7_18_rate_in",{"$f":"'T2-B(PP2)'!$E$237","v":0},"#'T2-B(PP2)'!$E$237"]
["pp2_bl4_7_18_rate_out",{"$f":"'T2-B(PP2)'!$H$237","v":0},"#'T2-B(PP2)'!$H$237"]
["pp2_bl4_7_18_total",{"$f":"'T2-B(PP2)'!$J$237","v":0},"#'T2-B(PP2)'!$J$237"]
["pp2_bl4_7_18_total_in",{"$f":"'T2-B(PP2)'!$F$237","v":0},"#'T2-B(PP2)'!$F$237"]
["pp2_bl4_7_18_total_out",{"$f":"'T2-B(PP2)'!$I$237","v":0},"#'T2-B(PP2)'!$I$237"]
["pp2_bl4_7_18_unit",{"$f":"'T2-B(PP2)'!$C$237","v":0},"#'T2-B(PP2)'!$C$237"]
["pp2_bl4_7_18_unit_in",{"$f":"'T2-B(PP2)'!$D$237","v":0},"#'T2-B(PP2)'!$D$237"]
["pp2_bl4_7_18_units_out",{"$f":"'T2-B(PP2)'!$G$237","v":0},"#'T2-B(PP2)'!$G$237"]
["pp2_bl4_7_19_name",{"$f":"'T2-B(PP2)'!$B$238","v":0},"#'T2-B(PP2)'!$B$238"]
["pp2_bl4_7_19_rate_in",{"$f":"'T2-B(PP2)'!$E$238","v":0},"#'T2-B(PP2)'!$E$238"]
["pp2_bl4_7_19_rate_out",{"$f":"'T2-B(PP2)'!$H$238","v":0},"#'T2-B(PP2)'!$H$238"]
["pp2_bl4_7_19_total",{"$f":"'T2-B(PP2)'!$J$238","v":0},"#'T2-B(PP2)'!$J$238"]
["pp2_bl4_7_19_total_in",{"$f":"'T2-B(PP2)'!$F$238","v":0},"#'T2-B(PP2)'!$F$238"]
["pp2_bl4_7_19_total_out",{"$f":"'T2-B(PP2)'!$I$238","v":0},"#'T2-B(PP2)'!$I$238"]
["pp2_bl4_7_19_unit",{"$f":"'T2-B(PP2)'!$C$238","v":0},"#'T2-B(PP2)'!$C$238"]
["pp2_bl4_7_19_unit_in",{"$f":"'T2-B(PP2)'!$D$238","v":0},"#'T2-B(PP2)'!$D$238"]
["pp2_bl4_7_19_units_out",{"$f":"'T2-B(PP2)'!$G$238","v":0},"#'T2-B(PP2)'!$G$238"]
["pp2_bl4_7_2_name",{"$f":"'T2-B(PP2)'!$B$221","v":0},"#'T2-B(PP2)'!$B$221"]
["pp2_bl4_7_2_rate_in",{"$f":"'T2-B(PP2)'!$E$221","v":0},"#'T2-B(PP2)'!$E$221"]
["pp2_bl4_7_2_rate_out",{"$f":"'T2-B(PP2)'!$H$221","v":0},"#'T2-B(PP2)'!$H$221"]
["pp2_bl4_7_2_total",{"$f":"'T2-B(PP2)'!$J$221","v":0},"#'T2-B(PP2)'!$J$221"]
["pp2_bl4_7_2_total_in",{"$f":"'T2-B(PP2)'!$F$221","v":0},"#'T2-B(PP2)'!$F$221"]
["pp2_bl4_7_2_total_out",{"$f":"'T2-B(PP2)'!$I$221","v":0},"#'T2-B(PP2)'!$I$221"]
["pp2_bl4_7_2_unit",{"$f":"'T2-B(PP2)'!$C$221","v":0},"#'T2-B(PP2)'!$C$221"]
["pp2_bl4_7_2_unit_in",{"$f":"'T2-B(PP2)'!$D$221","v":0},"#'T2-B(PP2)'!$D$221"]
["pp2_bl4_7_2_units_out",{"$f":"'T2-B(PP2)'!$G$221","v":0},"#'T2-B(PP2)'!$G$221"]
["pp2_bl4_7_20_name",{"$f":"'T2-B(PP2)'!$B$239","v":0},"#'T2-B(PP2)'!$B$239"]
["pp2_bl4_7_20_rate_in",{"$f":"'T2-B(PP2)'!$E$239","v":0},"#'T2-B(PP2)'!$E$239"]
["pp2_bl4_7_20_rate_out",{"$f":"'T2-B(PP2)'!$H$239","v":0},"#'T2-B(PP2)'!$H$239"]
["pp2_bl4_7_20_total",{"$f":"'T2-B(PP2)'!$J$239","v":0},"#'T2-B(PP2)'!$J$239"]
["pp2_bl4_7_20_total_in",{"$f":"'T2-B(PP2)'!$F$239","v":0},"#'T2-B(PP2)'!$F$239"]
["pp2_bl4_7_20_total_out",{"$f":"'T2-B(PP2)'!$I$239","v":0},"#'T2-B(PP2)'!$I$239"]
["pp2_bl4_7_20_unit",{"$f":"'T2-B(PP2)'!$C$239","v":0},"#'T2-B(PP2)'!$C$239"]
["pp2_bl4_7_20_unit_in",{"$f":"'T2-B(PP2)'!$D$239","v":0},"#'T2-B(PP2)'!$D$239"]
["pp2_bl4_7_20_units_out",{"$f":"'T2-B(PP2)'!$G$239","v":0},"#'T2-B(PP2)'!$G$239"]
["pp2_bl4_7_3_name",{"$f":"'T2-B(PP2)'!$B$222","v":0},"#'T2-B(PP2)'!$B$222"]
["pp2_bl4_7_3_rate_in",{"$f":"'T2-B(PP2)'!$E$222","v":0},"#'T2-B(PP2)'!$E$222"]
["pp2_bl4_7_3_rate_out",{"$f":"'T2-B(PP2)'!$H$222","v":0},"#'T2-B(PP2)'!$H$222"]
["pp2_bl4_7_3_total",{"$f":"'T2-B(PP2)'!$J$222","v":0},"#'T2-B(PP2)'!$J$222"]
["pp2_bl4_7_3_total_in",{"$f":"'T2-B(PP2)'!$F$222","v":0},"#'T2-B(PP2)'!$F$222"]
["pp2_bl4_7_3_total_out",{"$f":"'T2-B(PP2)'!$I$222","v":0},"#'T2-B(PP2)'!$I$222"]
["pp2_bl4_7_3_unit",{"$f":"'T2-B(PP2)'!$C$222","v":0},"#'T2-B(PP2)'!$C$222"]
["pp2_bl4_7_3_unit_in",{"$f":"'T2-B(PP2)'!$D$222","v":0},"#'T2-B(PP2)'!$D$222"]
["pp2_bl4_7_3_units_out",{"$f":"'T2-B(PP2)'!$G$222","v":0},"#'T2-B(PP2)'!$G$222"]
["pp2_bl4_7_4_name",{"$f":"'T2-B(PP2)'!$B$223","v":0},"#'T2-B(PP2)'!$B$223"]
["pp2_bl4_7_4_rate_in",{"$f":"'T2-B(PP2)'!$E$223","v":0},"#'T2-B(PP2)'!$E$223"]
["pp2_bl4_7_4_rate_out",{"$f":"'T2-B(PP2)'!$H$223","v":0},"#'T2-B(PP2)'!$H$223"]
["pp2_bl4_7_4_total",{"$f":"'T2-B(PP2)'!$J$223","v":0},"#'T2-B(PP2)'!$J$223"]
["pp2_bl4_7_4_total_in",{"$f":"'T2-B(PP2)'!$F$223","v":0},"#'T2-B(PP2)'!$F$223"]
["pp2_bl4_7_4_total_out",{"$f":"'T2-B(PP2)'!$I$223","v":0},"#'T2-B(PP2)'!$I$223"]
["pp2_bl4_7_4_unit",{"$f":"'T2-B(PP2)'!$C$223","v":0},"#'T2-B(PP2)'!$C$223"]
["pp2_bl4_7_4_unit_in",{"$f":"'T2-B(PP2)'!$D$223","v":0},"#'T2-B(PP2)'!$D$223"]
["pp2_bl4_7_4_units_out",{"$f":"'T2-B(PP2)'!$G$223","v":0},"#'T2-B(PP2)'!$G$223"]
["pp2_bl4_7_5_name",{"$f":"'T2-B(PP2)'!$B$224","v":0},"#'T2-B(PP2)'!$B$224"]
["pp2_bl4_7_5_rate_in",{"$f":"'T2-B(PP2)'!$E$224","v":0},"#'T2-B(PP2)'!$E$224"]
["pp2_bl4_7_5_rate_out",{"$f":"'T2-B(PP2)'!$H$224","v":0},"#'T2-B(PP2)'!$H$224"]
["pp2_bl4_7_5_total",{"$f":"'T2-B(PP2)'!$J$224","v":0},"#'T2-B(PP2)'!$J$224"]
["pp2_bl4_7_5_total_in",{"$f":"'T2-B(PP2)'!$F$224","v":0},"#'T2-B(PP2)'!$F$224"]
["pp2_bl4_7_5_total_out",{"$f":"'T2-B(PP2)'!$I$224","v":0},"#'T2-B(PP2)'!$I$224"]
["pp2_bl4_7_5_unit",{"$f":"'T2-B(PP2)'!$C$224","v":0},"#'T2-B(PP2)'!$C$224"]
["pp2_bl4_7_5_unit_in",{"$f":"'T2-B(PP2)'!$D$224","v":0},"#'T2-B(PP2)'!$D$224"]
["pp2_bl4_7_5_units_out",{"$f":"'T2-B(PP2)'!$G$224","v":0},"#'T2-B(PP2)'!$G$224"]
["pp2_bl4_7_6_name",{"$f":"'T2-B(PP2)'!$B$225","v":0},"#'T2-B(PP2)'!$B$225"]
["pp2_bl4_7_6_rate_in",{"$f":"'T2-B(PP2)'!$E$225","v":0},"#'T2-B(PP2)'!$E$225"]
["pp2_bl4_7_6_rate_out",{"$f":"'T2-B(PP2)'!$H$225","v":0},"#'T2-B(PP2)'!$H$225"]
["pp2_bl4_7_6_total",{"$f":"'T2-B(PP2)'!$J$225","v":0},"#'T2-B(PP2)'!$J$225"]
["pp2_bl4_7_6_total_in",{"$f":"'T2-B(PP2)'!$F$225","v":0},"#'T2-B(PP2)'!$F$225"]
["pp2_bl4_7_6_total_out",{"$f":"'T2-B(PP2)'!$I$225","v":0},"#'T2-B(PP2)'!$I$225"]
["pp2_bl4_7_6_unit",{"$f":"'T2-B(PP2)'!$C$225","v":0},"#'T2-B(PP2)'!$C$225"]
["pp2_bl4_7_6_unit_in",{"$f":"'T2-B(PP2)'!$D$225","v":0},"#'T2-B(PP2)'!$D$225"]
["pp2_bl4_7_6_units_out",{"$f":"'T2-B(PP2)'!$G$225","v":0},"#'T2-B(PP2)'!$G$225"]
["pp2_bl4_7_7_name",{"$f":"'T2-B(PP2)'!$B$226","v":0},"#'T2-B(PP2)'!$B$226"]
["pp2_bl4_7_7_rate_in",{"$f":"'T2-B(PP2)'!$E$226","v":0},"#'T2-B(PP2)'!$E$226"]
["pp2_bl4_7_7_rate_out",{"$f":"'T2-B(PP2)'!$H$226","v":0},"#'T2-B(PP2)'!$H$226"]
["pp2_bl4_7_7_total",{"$f":"'T2-B(PP2)'!$J$226","v":0},"#'T2-B(PP2)'!$J$226"]
["pp2_bl4_7_7_total_in",{"$f":"'T2-B(PP2)'!$F$226","v":0},"#'T2-B(PP2)'!$F$226"]
["pp2_bl4_7_7_total_out",{"$f":"'T2-B(PP2)'!$I$226","v":0},"#'T2-B(PP2)'!$I$226"]
["pp2_bl4_7_7_unit",{"$f":"'T2-B(PP2)'!$C$226","v":0},"#'T2-B(PP2)'!$C$226"]
["pp2_bl4_7_7_unit_in",{"$f":"'T2-B(PP2)'!$D$226","v":0},"#'T2-B(PP2)'!$D$226"]
["pp2_bl4_7_7_units_out",{"$f":"'T2-B(PP2)'!$G$226","v":0},"#'T2-B(PP2)'!$G$226"]
["pp2_bl4_7_8_name",{"$f":"'T2-B(PP2)'!$B$227","v":0},"#'T2-B(PP2)'!$B$227"]
["pp2_bl4_7_8_rate_in",{"$f":"'T2-B(PP2)'!$E$227","v":0},"#'T2-B(PP2)'!$E$227"]
["pp2_bl4_7_8_rate_out",{"$f":"'T2-B(PP2)'!$H$227","v":0},"#'T2-B(PP2)'!$H$227"]
["pp2_bl4_7_8_total",{"$f":"'T2-B(PP2)'!$J$227","v":0},"#'T2-B(PP2)'!$J$227"]
["pp2_bl4_7_8_total_in",{"$f":"'T2-B(PP2)'!$F$227","v":0},"#'T2-B(PP2)'!$F$227"]
["pp2_bl4_7_8_total_out",{"$f":"'T2-B(PP2)'!$I$227","v":0},"#'T2-B(PP2)'!$I$227"]
["pp2_bl4_7_8_unit",{"$f":"'T2-B(PP2)'!$C$227","v":0},"#'T2-B(PP2)'!$C$227"]
["pp2_bl4_7_8_unit_in",{"$f":"'T2-B(PP2)'!$D$227","v":0},"#'T2-B(PP2)'!$D$227"]
["pp2_bl4_7_8_units_out",{"$f":"'T2-B(PP2)'!$G$227","v":0},"#'T2-B(PP2)'!$G$227"]
["pp2_bl4_7_9_name",{"$f":"'T2-B(PP2)'!$B$228","v":0},"#'T2-B(PP2)'!$B$228"]
["pp2_bl4_7_9_rate_in",{"$f":"'T2-B(PP2)'!$E$228","v":0},"#'T2-B(PP2)'!$E$228"]
["pp2_bl4_7_9_rate_out",{"$f":"'T2-B(PP2)'!$H$228","v":0},"#'T2-B(PP2)'!$H$228"]
["pp2_bl4_7_9_total",{"$f":"'T2-B(PP2)'!$J$228","v":0},"#'T2-B(PP2)'!$J$228"]
["pp2_bl4_7_9_total_in",{"$f":"'T2-B(PP2)'!$F$228","v":0},"#'T2-B(PP2)'!$F$228"]
["pp2_bl4_7_9_total_out",{"$f":"'T2-B(PP2)'!$I$228","v":0},"#'T2-B(PP2)'!$I$228"]
["pp2_bl4_7_9_unit",{"$f":"'T2-B(PP2)'!$C$228","v":0},"#'T2-B(PP2)'!$C$228"]
["pp2_bl4_7_9_unit_in",{"$f":"'T2-B(PP2)'!$D$228","v":0},"#'T2-B(PP2)'!$D$228"]
["pp2_bl4_7_9_units_out",{"$f":"'T2-B(PP2)'!$G$228","v":0},"#'T2-B(PP2)'!$G$228"]
["pp2_bl4_7_total",{"$f":"'T2-B(PP2)'!$J$219","v":0},"#'T2-B(PP2)'!$J$219"]
["pp2_bl4_7_total_in",{"$f":"'T2-B(PP2)'!$F$219","v":0},"#'T2-B(PP2)'!$F$219"]
["pp2_bl4_7_total_out",{"$f":"'T2-B(PP2)'!$I$219","v":0},"#'T2-B(PP2)'!$I$219"]
["pp2_bl4_8_1_name",{"$f":"'T2-B(PP2)'!$B$241","v":0},"#'T2-B(PP2)'!$B$241"]
["pp2_bl4_8_1_rate_in",{"$f":"'T2-B(PP2)'!$E$241","v":0},"#'T2-B(PP2)'!$E$241"]
["pp2_bl4_8_1_rate_out",{"$f":"'T2-B(PP2)'!$H$241","v":0},"#'T2-B(PP2)'!$H$241"]
["pp2_bl4_8_1_total",{"$f":"'T2-B(PP2)'!$J$241","v":0},"#'T2-B(PP2)'!$J$241"]
["pp2_bl4_8_1_total_in",{"$f":"'T2-B(PP2)'!$F$241","v":0},"#'T2-B(PP2)'!$F$241"]
["pp2_bl4_8_1_total_out",{"$f":"'T2-B(PP2)'!$I$241","v":0},"#'T2-B(PP2)'!$I$241"]
["pp2_bl4_8_1_unit",{"$f":"'T2-B(PP2)'!$C$241","v":0},"#'T2-B(PP2)'!$C$241"]
["pp2_bl4_8_1_unit_in",{"$f":"'T2-B(PP2)'!$D$241","v":0},"#'T2-B(PP2)'!$D$241"]
["pp2_bl4_8_1_units_out",{"$f":"'T2-B(PP2)'!$G$241","v":0},"#'T2-B(PP2)'!$G$241"]
["pp2_bl4_8_10_name",{"$f":"'T2-B(PP2)'!$B$250","v":0},"#'T2-B(PP2)'!$B$250"]
["pp2_bl4_8_10_rate_in",{"$f":"'T2-B(PP2)'!$E$250","v":0},"#'T2-B(PP2)'!$E$250"]
["pp2_bl4_8_10_rate_out",{"$f":"'T2-B(PP2)'!$H$250","v":0},"#'T2-B(PP2)'!$H$250"]
["pp2_bl4_8_10_total",{"$f":"'T2-B(PP2)'!$J$250","v":0},"#'T2-B(PP2)'!$J$250"]
["pp2_bl4_8_10_total_in",{"$f":"'T2-B(PP2)'!$F$250","v":0},"#'T2-B(PP2)'!$F$250"]
["pp2_bl4_8_10_total_out",{"$f":"'T2-B(PP2)'!$I$250","v":0},"#'T2-B(PP2)'!$I$250"]
["pp2_bl4_8_10_unit",{"$f":"'T2-B(PP2)'!$C$250","v":0},"#'T2-B(PP2)'!$C$250"]
["pp2_bl4_8_10_unit_in",{"$f":"'T2-B(PP2)'!$D$250","v":0},"#'T2-B(PP2)'!$D$250"]
["pp2_bl4_8_10_units_out",{"$f":"'T2-B(PP2)'!$G$250","v":0},"#'T2-B(PP2)'!$G$250"]
["pp2_bl4_8_11_name",{"$f":"'T2-B(PP2)'!$B$251","v":0},"#'T2-B(PP2)'!$B$251"]
["pp2_bl4_8_11_rate_in",{"$f":"'T2-B(PP2)'!$E$251","v":0},"#'T2-B(PP2)'!$E$251"]
["pp2_bl4_8_11_rate_out",{"$f":"'T2-B(PP2)'!$H$251","v":0},"#'T2-B(PP2)'!$H$251"]
["pp2_bl4_8_11_total",{"$f":"'T2-B(PP2)'!$J$251","v":0},"#'T2-B(PP2)'!$J$251"]
["pp2_bl4_8_11_total_in",{"$f":"'T2-B(PP2)'!$F$251","v":0},"#'T2-B(PP2)'!$F$251"]
["pp2_bl4_8_11_total_out",{"$f":"'T2-B(PP2)'!$I$251","v":0},"#'T2-B(PP2)'!$I$251"]
["pp2_bl4_8_11_unit",{"$f":"'T2-B(PP2)'!$C$251","v":0},"#'T2-B(PP2)'!$C$251"]
["pp2_bl4_8_11_unit_in",{"$f":"'T2-B(PP2)'!$D$251","v":0},"#'T2-B(PP2)'!$D$251"]
["pp2_bl4_8_11_units_out",{"$f":"'T2-B(PP2)'!$G$251","v":0},"#'T2-B(PP2)'!$G$251"]
["pp2_bl4_8_12_name",{"$f":"'T2-B(PP2)'!$B$252","v":0},"#'T2-B(PP2)'!$B$252"]
["pp2_bl4_8_12_rate_in",{"$f":"'T2-B(PP2)'!$E$252","v":0},"#'T2-B(PP2)'!$E$252"]
["pp2_bl4_8_12_rate_out",{"$f":"'T2-B(PP2)'!$H$252","v":0},"#'T2-B(PP2)'!$H$252"]
["pp2_bl4_8_12_total",{"$f":"'T2-B(PP2)'!$J$252","v":0},"#'T2-B(PP2)'!$J$252"]
["pp2_bl4_8_12_total_in",{"$f":"'T2-B(PP2)'!$F$252","v":0},"#'T2-B(PP2)'!$F$252"]
["pp2_bl4_8_12_total_out",{"$f":"'T2-B(PP2)'!$I$252","v":0},"#'T2-B(PP2)'!$I$252"]
["pp2_bl4_8_12_unit",{"$f":"'T2-B(PP2)'!$C$252","v":0},"#'T2-B(PP2)'!$C$252"]
["pp2_bl4_8_12_unit_in",{"$f":"'T2-B(PP2)'!$D$252","v":0},"#'T2-B(PP2)'!$D$252"]
["pp2_bl4_8_12_units_out",{"$f":"'T2-B(PP2)'!$G$252","v":0},"#'T2-B(PP2)'!$G$252"]
["pp2_bl4_8_13_name",{"$f":"'T2-B(PP2)'!$B$253","v":0},"#'T2-B(PP2)'!$B$253"]
["pp2_bl4_8_13_rate_in",{"$f":"'T2-B(PP2)'!$E$253","v":0},"#'T2-B(PP2)'!$E$253"]
["pp2_bl4_8_13_rate_out",{"$f":"'T2-B(PP2)'!$H$253","v":0},"#'T2-B(PP2)'!$H$253"]
["pp2_bl4_8_13_total",{"$f":"'T2-B(PP2)'!$J$253","v":0},"#'T2-B(PP2)'!$J$253"]
["pp2_bl4_8_13_total_in",{"$f":"'T2-B(PP2)'!$F$253","v":0},"#'T2-B(PP2)'!$F$253"]
["pp2_bl4_8_13_total_out",{"$f":"'T2-B(PP2)'!$I$253","v":0},"#'T2-B(PP2)'!$I$253"]
["pp2_bl4_8_13_unit",{"$f":"'T2-B(PP2)'!$C$253","v":0},"#'T2-B(PP2)'!$C$253"]
["pp2_bl4_8_13_unit_in",{"$f":"'T2-B(PP2)'!$D$253","v":0},"#'T2-B(PP2)'!$D$253"]
["pp2_bl4_8_13_units_out",{"$f":"'T2-B(PP2)'!$G$253","v":0},"#'T2-B(PP2)'!$G$253"]
["pp2_bl4_8_14_name",{"$f":"'T2-B(PP2)'!$B$254","v":0},"#'T2-B(PP2)'!$B$254"]
["pp2_bl4_8_14_rate_in",{"$f":"'T2-B(PP2)'!$E$254","v":0},"#'T2-B(PP2)'!$E$254"]
["pp2_bl4_8_14_rate_out",{"$f":"'T2-B(PP2)'!$H$254","v":0},"#'T2-B(PP2)'!$H$254"]
["pp2_bl4_8_14_total",{"$f":"'T2-B(PP2)'!$J$254","v":0},"#'T2-B(PP2)'!$J$254"]
["pp2_bl4_8_14_total_in",{"$f":"'T2-B(PP2)'!$F$254","v":0},"#'T2-B(PP2)'!$F$254"]
["pp2_bl4_8_14_total_out",{"$f":"'T2-B(PP2)'!$I$254","v":0},"#'T2-B(PP2)'!$I$254"]
["pp2_bl4_8_14_unit",{"$f":"'T2-B(PP2)'!$C$254","v":0},"#'T2-B(PP2)'!$C$254"]
["pp2_bl4_8_14_unit_in",{"$f":"'T2-B(PP2)'!$D$254","v":0},"#'T2-B(PP2)'!$D$254"]
["pp2_bl4_8_14_units_out",{"$f":"'T2-B(PP2)'!$G$254","v":0},"#'T2-B(PP2)'!$G$254"]
["pp2_bl4_8_15_name",{"$f":"'T2-B(PP2)'!$B$255","v":0},"#'T2-B(PP2)'!$B$255"]
["pp2_bl4_8_15_rate_in",{"$f":"'T2-B(PP2)'!$E$255","v":0},"#'T2-B(PP2)'!$E$255"]
["pp2_bl4_8_15_rate_out",{"$f":"'T2-B(PP2)'!$H$255","v":0},"#'T2-B(PP2)'!$H$255"]
["pp2_bl4_8_15_total",{"$f":"'T2-B(PP2)'!$J$255","v":0},"#'T2-B(PP2)'!$J$255"]
["pp2_bl4_8_15_total_in",{"$f":"'T2-B(PP2)'!$F$255","v":0},"#'T2-B(PP2)'!$F$255"]
["pp2_bl4_8_15_total_out",{"$f":"'T2-B(PP2)'!$I$255","v":0},"#'T2-B(PP2)'!$I$255"]
["pp2_bl4_8_15_unit",{"$f":"'T2-B(PP2)'!$C$255","v":0},"#'T2-B(PP2)'!$C$255"]
["pp2_bl4_8_15_unit_in",{"$f":"'T2-B(PP2)'!$D$255","v":0},"#'T2-B(PP2)'!$D$255"]
["pp2_bl4_8_15_units_out",{"$f":"'T2-B(PP2)'!$G$255","v":0},"#'T2-B(PP2)'!$G$255"]
["pp2_bl4_8_16_name",{"$f":"'T2-B(PP2)'!$B$256","v":0},"#'T2-B(PP2)'!$B$256"]
["pp2_bl4_8_16_rate_in",{"$f":"'T2-B(PP2)'!$E$256","v":0},"#'T2-B(PP2)'!$E$256"]
["pp2_bl4_8_16_rate_out",{"$f":"'T2-B(PP2)'!$H$256","v":0},"#'T2-B(PP2)'!$H$256"]
["pp2_bl4_8_16_total",{"$f":"'T2-B(PP2)'!$J$256","v":0},"#'T2-B(PP2)'!$J$256"]
["pp2_bl4_8_16_total_in",{"$f":"'T2-B(PP2)'!$F$256","v":0},"#'T2-B(PP2)'!$F$256"]
["pp2_bl4_8_16_total_out",{"$f":"'T2-B(PP2)'!$I$256","v":0},"#'T2-B(PP2)'!$I$256"]
["pp2_bl4_8_16_unit",{"$f":"'T2-B(PP2)'!$C$256","v":0},"#'T2-B(PP2)'!$C$256"]
["pp2_bl4_8_16_unit_in",{"$f":"'T2-B(PP2)'!$D$256","v":0},"#'T2-B(PP2)'!$D$256"]
["pp2_bl4_8_16_units_out",{"$f":"'T2-B(PP2)'!$G$256","v":0},"#'T2-B(PP2)'!$G$256"]
["pp2_bl4_8_17_name",{"$f":"'T2-B(PP2)'!$B$257","v":0},"#'T2-B(PP2)'!$B$257"]
["pp2_bl4_8_17_rate_in",{"$f":"'T2-B(PP2)'!$E$257","v":0},"#'T2-B(PP2)'!$E$257"]
["pp2_bl4_8_17_rate_out",{"$f":"'T2-B(PP2)'!$H$257","v":0},"#'T2-B(PP2)'!$H$257"]
["pp2_bl4_8_17_total",{"$f":"'T2-B(PP2)'!$J$257","v":0},"#'T2-B(PP2)'!$J$257"]
["pp2_bl4_8_17_total_in",{"$f":"'T2-B(PP2)'!$F$257","v":0},"#'T2-B(PP2)'!$F$257"]
["pp2_bl4_8_17_total_out",{"$f":"'T2-B(PP2)'!$I$257","v":0},"#'T2-B(PP2)'!$I$257"]
["pp2_bl4_8_17_unit",{"$f":"'T2-B(PP2)'!$C$257","v":0},"#'T2-B(PP2)'!$C$257"]
["pp2_bl4_8_17_unit_in",{"$f":"'T2-B(PP2)'!$D$257","v":0},"#'T2-B(PP2)'!$D$257"]
["pp2_bl4_8_17_units_out",{"$f":"'T2-B(PP2)'!$G$257","v":0},"#'T2-B(PP2)'!$G$257"]
["pp2_bl4_8_18_name",{"$f":"'T2-B(PP2)'!$B$258","v":0},"#'T2-B(PP2)'!$B$258"]
["pp2_bl4_8_18_rate_in",{"$f":"'T2-B(PP2)'!$E$258","v":0},"#'T2-B(PP2)'!$E$258"]
["pp2_bl4_8_18_rate_out",{"$f":"'T2-B(PP2)'!$H$258","v":0},"#'T2-B(PP2)'!$H$258"]
["pp2_bl4_8_18_total",{"$f":"'T2-B(PP2)'!$J$258","v":0},"#'T2-B(PP2)'!$J$258"]
["pp2_bl4_8_18_total_in",{"$f":"'T2-B(PP2)'!$F$258","v":0},"#'T2-B(PP2)'!$F$258"]
["pp2_bl4_8_18_total_out",{"$f":"'T2-B(PP2)'!$I$258","v":0},"#'T2-B(PP2)'!$I$258"]
["pp2_bl4_8_18_unit",{"$f":"'T2-B(PP2)'!$C$258","v":0},"#'T2-B(PP2)'!$C$258"]
["pp2_bl4_8_18_unit_in",{"$f":"'T2-B(PP2)'!$D$258","v":0},"#'T2-B(PP2)'!$D$258"]
["pp2_bl4_8_18_units_out",{"$f":"'T2-B(PP2)'!$G$258","v":0},"#'T2-B(PP2)'!$G$258"]
["pp2_bl4_8_19_name",{"$f":"'T2-B(PP2)'!$B$259","v":0},"#'T2-B(PP2)'!$B$259"]
["pp2_bl4_8_19_rate_in",{"$f":"'T2-B(PP2)'!$E$259","v":0},"#'T2-B(PP2)'!$E$259"]
["pp2_bl4_8_19_rate_out",{"$f":"'T2-B(PP2)'!$H$259","v":0},"#'T2-B(PP2)'!$H$259"]
["pp2_bl4_8_19_total",{"$f":"'T2-B(PP2)'!$J$259","v":0},"#'T2-B(PP2)'!$J$259"]
["pp2_bl4_8_19_total_in",{"$f":"'T2-B(PP2)'!$F$259","v":0},"#'T2-B(PP2)'!$F$259"]
["pp2_bl4_8_19_total_out",{"$f":"'T2-B(PP2)'!$I$259","v":0},"#'T2-B(PP2)'!$I$259"]
["pp2_bl4_8_19_unit",{"$f":"'T2-B(PP2)'!$C$259","v":0},"#'T2-B(PP2)'!$C$259"]
["pp2_bl4_8_19_unit_in",{"$f":"'T2-B(PP2)'!$D$259","v":0},"#'T2-B(PP2)'!$D$259"]
["pp2_bl4_8_19_units_out",{"$f":"'T2-B(PP2)'!$G$259","v":0},"#'T2-B(PP2)'!$G$259"]
["pp2_bl4_8_2_name",{"$f":"'T2-B(PP2)'!$B$242","v":0},"#'T2-B(PP2)'!$B$242"]
["pp2_bl4_8_2_rate_in",{"$f":"'T2-B(PP2)'!$E$242","v":0},"#'T2-B(PP2)'!$E$242"]
["pp2_bl4_8_2_rate_out",{"$f":"'T2-B(PP2)'!$H$242","v":0},"#'T2-B(PP2)'!$H$242"]
["pp2_bl4_8_2_total",{"$f":"'T2-B(PP2)'!$J$242","v":0},"#'T2-B(PP2)'!$J$242"]
["pp2_bl4_8_2_total_in",{"$f":"'T2-B(PP2)'!$F$242","v":0},"#'T2-B(PP2)'!$F$242"]
["pp2_bl4_8_2_total_out",{"$f":"'T2-B(PP2)'!$I$242","v":0},"#'T2-B(PP2)'!$I$242"]
["pp2_bl4_8_2_unit",{"$f":"'T2-B(PP2)'!$C$242","v":0},"#'T2-B(PP2)'!$C$242"]
["pp2_bl4_8_2_unit_in",{"$f":"'T2-B(PP2)'!$D$242","v":0},"#'T2-B(PP2)'!$D$242"]
["pp2_bl4_8_2_units_out",{"$f":"'T2-B(PP2)'!$G$242","v":0},"#'T2-B(PP2)'!$G$242"]
["pp2_bl4_8_20_name",{"$f":"'T2-B(PP2)'!$B$260","v":0},"#'T2-B(PP2)'!$B$260"]
["pp2_bl4_8_20_rate_in",{"$f":"'T2-B(PP2)'!$E$260","v":0},"#'T2-B(PP2)'!$E$260"]
["pp2_bl4_8_20_rate_out",{"$f":"'T2-B(PP2)'!$H$260","v":0},"#'T2-B(PP2)'!$H$260"]
["pp2_bl4_8_20_total",{"$f":"'T2-B(PP2)'!$J$260","v":0},"#'T2-B(PP2)'!$J$260"]
["pp2_bl4_8_20_total_in",{"$f":"'T2-B(PP2)'!$F$260","v":0},"#'T2-B(PP2)'!$F$260"]
["pp2_bl4_8_20_total_out",{"$f":"'T2-B(PP2)'!$I$260","v":0},"#'T2-B(PP2)'!$I$260"]
["pp2_bl4_8_20_unit",{"$f":"'T2-B(PP2)'!$C$260","v":0},"#'T2-B(PP2)'!$C$260"]
["pp2_bl4_8_20_unit_in",{"$f":"'T2-B(PP2)'!$D$260","v":0},"#'T2-B(PP2)'!$D$260"]
["pp2_bl4_8_20_units_out",{"$f":"'T2-B(PP2)'!$G$260","v":0},"#'T2-B(PP2)'!$G$260"]
["pp2_bl4_8_3_name",{"$f":"'T2-B(PP2)'!$B$243","v":0},"#'T2-B(PP2)'!$B$243"]
["pp2_bl4_8_3_rate_in",{"$f":"'T2-B(PP2)'!$E$243","v":0},"#'T2-B(PP2)'!$E$243"]
["pp2_bl4_8_3_rate_out",{"$f":"'T2-B(PP2)'!$H$243","v":0},"#'T2-B(PP2)'!$H$243"]
["pp2_bl4_8_3_total",{"$f":"'T2-B(PP2)'!$J$243","v":0},"#'T2-B(PP2)'!$J$243"]
["pp2_bl4_8_3_total_in",{"$f":"'T2-B(PP2)'!$F$243","v":0},"#'T2-B(PP2)'!$F$243"]
["pp2_bl4_8_3_total_out",{"$f":"'T2-B(PP2)'!$I$243","v":0},"#'T2-B(PP2)'!$I$243"]
["pp2_bl4_8_3_unit",{"$f":"'T2-B(PP2)'!$C$243","v":0},"#'T2-B(PP2)'!$C$243"]
["pp2_bl4_8_3_unit_in",{"$f":"'T2-B(PP2)'!$D$243","v":0},"#'T2-B(PP2)'!$D$243"]
["pp2_bl4_8_3_units_out",{"$f":"'T2-B(PP2)'!$G$243","v":0},"#'T2-B(PP2)'!$G$243"]
["pp2_bl4_8_4_name",{"$f":"'T2-B(PP2)'!$B$244","v":0},"#'T2-B(PP2)'!$B$244"]
["pp2_bl4_8_4_rate_in",{"$f":"'T2-B(PP2)'!$E$244","v":0},"#'T2-B(PP2)'!$E$244"]
["pp2_bl4_8_4_rate_out",{"$f":"'T2-B(PP2)'!$H$244","v":0},"#'T2-B(PP2)'!$H$244"]
["pp2_bl4_8_4_total",{"$f":"'T2-B(PP2)'!$J$244","v":0},"#'T2-B(PP2)'!$J$244"]
["pp2_bl4_8_4_total_in",{"$f":"'T2-B(PP2)'!$F$244","v":0},"#'T2-B(PP2)'!$F$244"]
["pp2_bl4_8_4_total_out",{"$f":"'T2-B(PP2)'!$I$244","v":0},"#'T2-B(PP2)'!$I$244"]
["pp2_bl4_8_4_unit",{"$f":"'T2-B(PP2)'!$C$244","v":0},"#'T2-B(PP2)'!$C$244"]
["pp2_bl4_8_4_unit_in",{"$f":"'T2-B(PP2)'!$D$244","v":0},"#'T2-B(PP2)'!$D$244"]
["pp2_bl4_8_4_units_out",{"$f":"'T2-B(PP2)'!$G$244","v":0},"#'T2-B(PP2)'!$G$244"]
["pp2_bl4_8_5_name",{"$f":"'T2-B(PP2)'!$B$245","v":0},"#'T2-B(PP2)'!$B$245"]
["pp2_bl4_8_5_rate_in",{"$f":"'T2-B(PP2)'!$E$245","v":0},"#'T2-B(PP2)'!$E$245"]
["pp2_bl4_8_5_rate_out",{"$f":"'T2-B(PP2)'!$H$245","v":0},"#'T2-B(PP2)'!$H$245"]
["pp2_bl4_8_5_total",{"$f":"'T2-B(PP2)'!$J$245","v":0},"#'T2-B(PP2)'!$J$245"]
["pp2_bl4_8_5_total_in",{"$f":"'T2-B(PP2)'!$F$245","v":0},"#'T2-B(PP2)'!$F$245"]
["pp2_bl4_8_5_total_out",{"$f":"'T2-B(PP2)'!$I$245","v":0},"#'T2-B(PP2)'!$I$245"]
["pp2_bl4_8_5_unit",{"$f":"'T2-B(PP2)'!$C$245","v":0},"#'T2-B(PP2)'!$C$245"]
["pp2_bl4_8_5_unit_in",{"$f":"'T2-B(PP2)'!$D$245","v":0},"#'T2-B(PP2)'!$D$245"]
["pp2_bl4_8_5_units_out",{"$f":"'T2-B(PP2)'!$G$245","v":0},"#'T2-B(PP2)'!$G$245"]
["pp2_bl4_8_6_name",{"$f":"'T2-B(PP2)'!$B$246","v":0},"#'T2-B(PP2)'!$B$246"]
["pp2_bl4_8_6_rate_in",{"$f":"'T2-B(PP2)'!$E$246","v":0},"#'T2-B(PP2)'!$E$246"]
["pp2_bl4_8_6_rate_out",{"$f":"'T2-B(PP2)'!$H$246","v":0},"#'T2-B(PP2)'!$H$246"]
["pp2_bl4_8_6_total",{"$f":"'T2-B(PP2)'!$J$246","v":0},"#'T2-B(PP2)'!$J$246"]
["pp2_bl4_8_6_total_in",{"$f":"'T2-B(PP2)'!$F$246","v":0},"#'T2-B(PP2)'!$F$246"]
["pp2_bl4_8_6_total_out",{"$f":"'T2-B(PP2)'!$I$246","v":0},"#'T2-B(PP2)'!$I$246"]
["pp2_bl4_8_6_unit",{"$f":"'T2-B(PP2)'!$C$246","v":0},"#'T2-B(PP2)'!$C$246"]
["pp2_bl4_8_6_unit_in",{"$f":"'T2-B(PP2)'!$D$246","v":0},"#'T2-B(PP2)'!$D$246"]
["pp2_bl4_8_6_units_out",{"$f":"'T2-B(PP2)'!$G$246","v":0},"#'T2-B(PP2)'!$G$246"]
["pp2_bl4_8_7_name",{"$f":"'T2-B(PP2)'!$B$247","v":0},"#'T2-B(PP2)'!$B$247"]
["pp2_bl4_8_7_rate_in",{"$f":"'T2-B(PP2)'!$E$247","v":0},"#'T2-B(PP2)'!$E$247"]
["pp2_bl4_8_7_rate_out",{"$f":"'T2-B(PP2)'!$H$247","v":0},"#'T2-B(PP2)'!$H$247"]
["pp2_bl4_8_7_total",{"$f":"'T2-B(PP2)'!$J$247","v":0},"#'T2-B(PP2)'!$J$247"]
["pp2_bl4_8_7_total_in",{"$f":"'T2-B(PP2)'!$F$247","v":0},"#'T2-B(PP2)'!$F$247"]
["pp2_bl4_8_7_total_out",{"$f":"'T2-B(PP2)'!$I$247","v":0},"#'T2-B(PP2)'!$I$247"]
["pp2_bl4_8_7_unit",{"$f":"'T2-B(PP2)'!$C$247","v":0},"#'T2-B(PP2)'!$C$247"]
["pp2_bl4_8_7_unit_in",{"$f":"'T2-B(PP2)'!$D$247","v":0},"#'T2-B(PP2)'!$D$247"]
["pp2_bl4_8_7_units_out",{"$f":"'T2-B(PP2)'!$G$247","v":0},"#'T2-B(PP2)'!$G$247"]
["pp2_bl4_8_8_name",{"$f":"'T2-B(PP2)'!$B$248","v":0},"#'T2-B(PP2)'!$B$248"]
["pp2_bl4_8_8_rate_in",{"$f":"'T2-B(PP2)'!$E$248","v":0},"#'T2-B(PP2)'!$E$248"]
["pp2_bl4_8_8_rate_out",{"$f":"'T2-B(PP2)'!$H$248","v":0},"#'T2-B(PP2)'!$H$248"]
["pp2_bl4_8_8_total",{"$f":"'T2-B(PP2)'!$J$248","v":0},"#'T2-B(PP2)'!$J$248"]
["pp2_bl4_8_8_total_in",{"$f":"'T2-B(PP2)'!$F$248","v":0},"#'T2-B(PP2)'!$F$248"]
["pp2_bl4_8_8_total_out",{"$f":"'T2-B(PP2)'!$I$248","v":0},"#'T2-B(PP2)'!$I$248"]
["pp2_bl4_8_8_unit",{"$f":"'T2-B(PP2)'!$C$248","v":0},"#'T2-B(PP2)'!$C$248"]
["pp2_bl4_8_8_unit_in",{"$f":"'T2-B(PP2)'!$D$248","v":0},"#'T2-B(PP2)'!$D$248"]
["pp2_bl4_8_8_units_out",{"$f":"'T2-B(PP2)'!$G$248","v":0},"#'T2-B(PP2)'!$G$248"]
["pp2_bl4_8_9_name",{"$f":"'T2-B(PP2)'!$B$249","v":0},"#'T2-B(PP2)'!$B$249"]
["pp2_bl4_8_9_rate_in",{"$f":"'T2-B(PP2)'!$E$249","v":0},"#'T2-B(PP2)'!$E$249"]
["pp2_bl4_8_9_rate_out",{"$f":"'T2-B(PP2)'!$H$249","v":0},"#'T2-B(PP2)'!$H$249"]
["pp2_bl4_8_9_total",{"$f":"'T2-B(PP2)'!$J$249","v":0},"#'T2-B(PP2)'!$J$249"]
["pp2_bl4_8_9_total_in",{"$f":"'T2-B(PP2)'!$F$249","v":0},"#'T2-B(PP2)'!$F$249"]
["pp2_bl4_8_9_total_out",{"$f":"'T2-B(PP2)'!$I$249","v":0},"#'T2-B(PP2)'!$I$249"]
["pp2_bl4_8_9_unit",{"$f":"'T2-B(PP2)'!$C$249","v":0},"#'T2-B(PP2)'!$C$249"]
["pp2_bl4_8_9_unit_in",{"$f":"'T2-B(PP2)'!$D$249","v":0},"#'T2-B(PP2)'!$D$249"]
["pp2_bl4_8_9_units_out",{"$f":"'T2-B(PP2)'!$G$249","v":0},"#'T2-B(PP2)'!$G$249"]
["pp2_bl4_8_total",{"$f":"'T2-B(PP2)'!$J$240","v":0},"#'T2-B(PP2)'!$J$240"]
["pp2_bl4_8_total_in",{"$f":"'T2-B(PP2)'!$F$240","v":0},"#'T2-B(PP2)'!$F$240"]
["pp2_bl4_8_total_out",{"$f":"'T2-B(PP2)'!$I$240","v":0},"#'T2-B(PP2)'!$I$240"]
["pp2_bl4_9_1_name",{"$f":"'T2-B(PP2)'!$B$262","v":0},"#'T2-B(PP2)'!$B$262"]
["pp2_bl4_9_1_rate_in",{"$f":"'T2-B(PP2)'!$E$262","v":0},"#'T2-B(PP2)'!$E$262"]
["pp2_bl4_9_1_rate_out",{"$f":"'T2-B(PP2)'!$H$262","v":0},"#'T2-B(PP2)'!$H$262"]
["pp2_bl4_9_1_total",{"$f":"'T2-B(PP2)'!$J$262","v":0},"#'T2-B(PP2)'!$J$262"]
["pp2_bl4_9_1_total_in",{"$f":"'T2-B(PP2)'!$F$262","v":0},"#'T2-B(PP2)'!$F$262"]
["pp2_bl4_9_1_total_out",{"$f":"'T2-B(PP2)'!$I$262","v":0},"#'T2-B(PP2)'!$I$262"]
["pp2_bl4_9_1_unit",{"$f":"'T2-B(PP2)'!$C$262","v":0},"#'T2-B(PP2)'!$C$262"]
["pp2_bl4_9_1_unit_in",{"$f":"'T2-B(PP2)'!$D$262","v":0},"#'T2-B(PP2)'!$D$262"]
["pp2_bl4_9_1_units_out",{"$f":"'T2-B(PP2)'!$G$262","v":0},"#'T2-B(PP2)'!$G$262"]
["pp2_bl4_9_10_name",{"$f":"'T2-B(PP2)'!$B$271","v":0},"#'T2-B(PP2)'!$B$271"]
["pp2_bl4_9_10_rate_in",{"$f":"'T2-B(PP2)'!$E$271","v":0},"#'T2-B(PP2)'!$E$271"]
["pp2_bl4_9_10_rate_out",{"$f":"'T2-B(PP2)'!$H$271","v":0},"#'T2-B(PP2)'!$H$271"]
["pp2_bl4_9_10_total",{"$f":"'T2-B(PP2)'!$J$271","v":0},"#'T2-B(PP2)'!$J$271"]
["pp2_bl4_9_10_total_in",{"$f":"'T2-B(PP2)'!$F$271","v":0},"#'T2-B(PP2)'!$F$271"]
["pp2_bl4_9_10_total_out",{"$f":"'T2-B(PP2)'!$I$271","v":0},"#'T2-B(PP2)'!$I$271"]
["pp2_bl4_9_10_unit",{"$f":"'T2-B(PP2)'!$C$271","v":0},"#'T2-B(PP2)'!$C$271"]
["pp2_bl4_9_10_unit_in",{"$f":"'T2-B(PP2)'!$D$271","v":0},"#'T2-B(PP2)'!$D$271"]
["pp2_bl4_9_10_units_out",{"$f":"'T2-B(PP2)'!$G$271","v":0},"#'T2-B(PP2)'!$G$271"]
["pp2_bl4_9_11_name",{"$f":"'T2-B(PP2)'!$B$272","v":0},"#'T2-B(PP2)'!$B$272"]
["pp2_bl4_9_11_rate_in",{"$f":"'T2-B(PP2)'!$E$272","v":0},"#'T2-B(PP2)'!$E$272"]
["pp2_bl4_9_11_rate_out",{"$f":"'T2-B(PP2)'!$H$272","v":0},"#'T2-B(PP2)'!$H$272"]
["pp2_bl4_9_11_total",{"$f":"'T2-B(PP2)'!$J$272","v":0},"#'T2-B(PP2)'!$J$272"]
["pp2_bl4_9_11_total_in",{"$f":"'T2-B(PP2)'!$F$272","v":0},"#'T2-B(PP2)'!$F$272"]
["pp2_bl4_9_11_total_out",{"$f":"'T2-B(PP2)'!$I$272","v":0},"#'T2-B(PP2)'!$I$272"]
["pp2_bl4_9_11_unit",{"$f":"'T2-B(PP2)'!$C$272","v":0},"#'T2-B(PP2)'!$C$272"]
["pp2_bl4_9_11_unit_in",{"$f":"'T2-B(PP2)'!$D$272","v":0},"#'T2-B(PP2)'!$D$272"]
["pp2_bl4_9_11_units_out",{"$f":"'T2-B(PP2)'!$G$272","v":0},"#'T2-B(PP2)'!$G$272"]
["pp2_bl4_9_12_name",{"$f":"'T2-B(PP2)'!$B$273","v":0},"#'T2-B(PP2)'!$B$273"]
["pp2_bl4_9_12_rate_in",{"$f":"'T2-B(PP2)'!$E$273","v":0},"#'T2-B(PP2)'!$E$273"]
["pp2_bl4_9_12_rate_out",{"$f":"'T2-B(PP2)'!$H$273","v":0},"#'T2-B(PP2)'!$H$273"]
["pp2_bl4_9_12_total",{"$f":"'T2-B(PP2)'!$J$273","v":0},"#'T2-B(PP2)'!$J$273"]
["pp2_bl4_9_12_total_in",{"$f":"'T2-B(PP2)'!$F$273","v":0},"#'T2-B(PP2)'!$F$273"]
["pp2_bl4_9_12_total_out",{"$f":"'T2-B(PP2)'!$I$273","v":0},"#'T2-B(PP2)'!$I$273"]
["pp2_bl4_9_12_unit",{"$f":"'T2-B(PP2)'!$C$273","v":0},"#'T2-B(PP2)'!$C$273"]
["pp2_bl4_9_12_unit_in",{"$f":"'T2-B(PP2)'!$D$273","v":0},"#'T2-B(PP2)'!$D$273"]
["pp2_bl4_9_12_units_out",{"$f":"'T2-B(PP2)'!$G$273","v":0},"#'T2-B(PP2)'!$G$273"]
["pp2_bl4_9_13_name",{"$f":"'T2-B(PP2)'!$B$274","v":0},"#'T2-B(PP2)'!$B$274"]
["pp2_bl4_9_13_rate_in",{"$f":"'T2-B(PP2)'!$E$274","v":0},"#'T2-B(PP2)'!$E$274"]
["pp2_bl4_9_13_rate_out",{"$f":"'T2-B(PP2)'!$H$274","v":0},"#'T2-B(PP2)'!$H$274"]
["pp2_bl4_9_13_total",{"$f":"'T2-B(PP2)'!$J$274","v":0},"#'T2-B(PP2)'!$J$274"]
["pp2_bl4_9_13_total_in",{"$f":"'T2-B(PP2)'!$F$274","v":0},"#'T2-B(PP2)'!$F$274"]
["pp2_bl4_9_13_total_out",{"$f":"'T2-B(PP2)'!$I$274","v":0},"#'T2-B(PP2)'!$I$274"]
["pp2_bl4_9_13_unit",{"$f":"'T2-B(PP2)'!$C$274","v":0},"#'T2-B(PP2)'!$C$274"]
["pp2_bl4_9_13_unit_in",{"$f":"'T2-B(PP2)'!$D$274","v":0},"#'T2-B(PP2)'!$D$274"]
["pp2_bl4_9_13_units_out",{"$f":"'T2-B(PP2)'!$G$274","v":0},"#'T2-B(PP2)'!$G$274"]
["pp2_bl4_9_14_name",{"$f":"'T2-B(PP2)'!$B$275","v":0},"#'T2-B(PP2)'!$B$275"]
["pp2_bl4_9_14_rate_in",{"$f":"'T2-B(PP2)'!$E$275","v":0},"#'T2-B(PP2)'!$E$275"]
["pp2_bl4_9_14_rate_out",{"$f":"'T2-B(PP2)'!$H$275","v":0},"#'T2-B(PP2)'!$H$275"]
["pp2_bl4_9_14_total",{"$f":"'T2-B(PP2)'!$J$275","v":0},"#'T2-B(PP2)'!$J$275"]
["pp2_bl4_9_14_total_in",{"$f":"'T2-B(PP2)'!$F$275","v":0},"#'T2-B(PP2)'!$F$275"]
["pp2_bl4_9_14_total_out",{"$f":"'T2-B(PP2)'!$I$275","v":0},"#'T2-B(PP2)'!$I$275"]
["pp2_bl4_9_14_unit",{"$f":"'T2-B(PP2)'!$C$275","v":0},"#'T2-B(PP2)'!$C$275"]
["pp2_bl4_9_14_unit_in",{"$f":"'T2-B(PP2)'!$D$275","v":0},"#'T2-B(PP2)'!$D$275"]
["pp2_bl4_9_14_units_out",{"$f":"'T2-B(PP2)'!$G$275","v":0},"#'T2-B(PP2)'!$G$275"]
["pp2_bl4_9_15_name",{"$f":"'T2-B(PP2)'!$B$276","v":0},"#'T2-B(PP2)'!$B$276"]
["pp2_bl4_9_15_rate_in",{"$f":"'T2-B(PP2)'!$E$276","v":0},"#'T2-B(PP2)'!$E$276"]
["pp2_bl4_9_15_rate_out",{"$f":"'T2-B(PP2)'!$H$276","v":0},"#'T2-B(PP2)'!$H$276"]
["pp2_bl4_9_15_total",{"$f":"'T2-B(PP2)'!$J$276","v":0},"#'T2-B(PP2)'!$J$276"]
["pp2_bl4_9_15_total_in",{"$f":"'T2-B(PP2)'!$F$276","v":0},"#'T2-B(PP2)'!$F$276"]
["pp2_bl4_9_15_total_out",{"$f":"'T2-B(PP2)'!$I$276","v":0},"#'T2-B(PP2)'!$I$276"]
["pp2_bl4_9_15_unit",{"$f":"'T2-B(PP2)'!$C$276","v":0},"#'T2-B(PP2)'!$C$276"]
["pp2_bl4_9_15_unit_in",{"$f":"'T2-B(PP2)'!$D$276","v":0},"#'T2-B(PP2)'!$D$276"]
["pp2_bl4_9_15_units_out",{"$f":"'T2-B(PP2)'!$G$276","v":0},"#'T2-B(PP2)'!$G$276"]
["pp2_bl4_9_16_name",{"$f":"'T2-B(PP2)'!$B$277","v":0},"#'T2-B(PP2)'!$B$277"]
["pp2_bl4_9_16_rate_in",{"$f":"'T2-B(PP2)'!$E$277","v":0},"#'T2-B(PP2)'!$E$277"]
["pp2_bl4_9_16_rate_out",{"$f":"'T2-B(PP2)'!$H$277","v":0},"#'T2-B(PP2)'!$H$277"]
["pp2_bl4_9_16_total",{"$f":"'T2-B(PP2)'!$J$277","v":0},"#'T2-B(PP2)'!$J$277"]
["pp2_bl4_9_16_total_in",{"$f":"'T2-B(PP2)'!$F$277","v":0},"#'T2-B(PP2)'!$F$277"]
["pp2_bl4_9_16_total_out",{"$f":"'T2-B(PP2)'!$I$277","v":0},"#'T2-B(PP2)'!$I$277"]
["pp2_bl4_9_16_unit",{"$f":"'T2-B(PP2)'!$C$277","v":0},"#'T2-B(PP2)'!$C$277"]
["pp2_bl4_9_16_unit_in",{"$f":"'T2-B(PP2)'!$D$277","v":0},"#'T2-B(PP2)'!$D$277"]
["pp2_bl4_9_16_units_out",{"$f":"'T2-B(PP2)'!$G$277","v":0},"#'T2-B(PP2)'!$G$277"]
["pp2_bl4_9_17_name",{"$f":"'T2-B(PP2)'!$B$278","v":0},"#'T2-B(PP2)'!$B$278"]
["pp2_bl4_9_17_rate_in",{"$f":"'T2-B(PP2)'!$E$278","v":0},"#'T2-B(PP2)'!$E$278"]
["pp2_bl4_9_17_rate_out",{"$f":"'T2-B(PP2)'!$H$278","v":0},"#'T2-B(PP2)'!$H$278"]
["pp2_bl4_9_17_total",{"$f":"'T2-B(PP2)'!$J$278","v":0},"#'T2-B(PP2)'!$J$278"]
["pp2_bl4_9_17_total_in",{"$f":"'T2-B(PP2)'!$F$278","v":0},"#'T2-B(PP2)'!$F$278"]
["pp2_bl4_9_17_total_out",{"$f":"'T2-B(PP2)'!$I$278","v":0},"#'T2-B(PP2)'!$I$278"]
["pp2_bl4_9_17_unit",{"$f":"'T2-B(PP2)'!$C$278","v":0},"#'T2-B(PP2)'!$C$278"]
["pp2_bl4_9_17_unit_in",{"$f":"'T2-B(PP2)'!$D$278","v":0},"#'T2-B(PP2)'!$D$278"]
["pp2_bl4_9_17_units_out",{"$f":"'T2-B(PP2)'!$G$278","v":0},"#'T2-B(PP2)'!$G$278"]
["pp2_bl4_9_18_name",{"$f":"'T2-B(PP2)'!$B$279","v":0},"#'T2-B(PP2)'!$B$279"]
["pp2_bl4_9_18_rate_in",{"$f":"'T2-B(PP2)'!$E$279","v":0},"#'T2-B(PP2)'!$E$279"]
["pp2_bl4_9_18_rate_out",{"$f":"'T2-B(PP2)'!$H$279","v":0},"#'T2-B(PP2)'!$H$279"]
["pp2_bl4_9_18_total",{"$f":"'T2-B(PP2)'!$J$279","v":0},"#'T2-B(PP2)'!$J$279"]
["pp2_bl4_9_18_total_in",{"$f":"'T2-B(PP2)'!$F$279","v":0},"#'T2-B(PP2)'!$F$279"]
["pp2_bl4_9_18_total_out",{"$f":"'T2-B(PP2)'!$I$279","v":0},"#'T2-B(PP2)'!$I$279"]
["pp2_bl4_9_18_unit",{"$f":"'T2-B(PP2)'!$C$279","v":0},"#'T2-B(PP2)'!$C$279"]
["pp2_bl4_9_18_unit_in",{"$f":"'T2-B(PP2)'!$D$279","v":0},"#'T2-B(PP2)'!$D$279"]
["pp2_bl4_9_18_units_out",{"$f":"'T2-B(PP2)'!$G$279","v":0},"#'T2-B(PP2)'!$G$279"]
["pp2_bl4_9_19_name",{"$f":"'T2-B(PP2)'!$B$280","v":0},"#'T2-B(PP2)'!$B$280"]
["pp2_bl4_9_19_rate_in",{"$f":"'T2-B(PP2)'!$E$280","v":0},"#'T2-B(PP2)'!$E$280"]
["pp2_bl4_9_19_rate_out",{"$f":"'T2-B(PP2)'!$H$280","v":0},"#'T2-B(PP2)'!$H$280"]
["pp2_bl4_9_19_total",{"$f":"'T2-B(PP2)'!$J$280","v":0},"#'T2-B(PP2)'!$J$280"]
["pp2_bl4_9_19_total_in",{"$f":"'T2-B(PP2)'!$F$280","v":0},"#'T2-B(PP2)'!$F$280"]
["pp2_bl4_9_19_total_out",{"$f":"'T2-B(PP2)'!$I$280","v":0},"#'T2-B(PP2)'!$I$280"]
["pp2_bl4_9_19_unit",{"$f":"'T2-B(PP2)'!$C$280","v":0},"#'T2-B(PP2)'!$C$280"]
["pp2_bl4_9_19_unit_in",{"$f":"'T2-B(PP2)'!$D$280","v":0},"#'T2-B(PP2)'!$D$280"]
["pp2_bl4_9_19_units_out",{"$f":"'T2-B(PP2)'!$G$280","v":0},"#'T2-B(PP2)'!$G$280"]
["pp2_bl4_9_2_name",{"$f":"'T2-B(PP2)'!$B$263","v":0},"#'T2-B(PP2)'!$B$263"]
["pp2_bl4_9_2_rate_in",{"$f":"'T2-B(PP2)'!$E$263","v":0},"#'T2-B(PP2)'!$E$263"]
["pp2_bl4_9_2_rate_out",{"$f":"'T2-B(PP2)'!$H$263","v":0},"#'T2-B(PP2)'!$H$263"]
["pp2_bl4_9_2_total",{"$f":"'T2-B(PP2)'!$J$263","v":0},"#'T2-B(PP2)'!$J$263"]
["pp2_bl4_9_2_total_in",{"$f":"'T2-B(PP2)'!$F$263","v":0},"#'T2-B(PP2)'!$F$263"]
["pp2_bl4_9_2_total_out",{"$f":"'T2-B(PP2)'!$I$263","v":0},"#'T2-B(PP2)'!$I$263"]
["pp2_bl4_9_2_unit",{"$f":"'T2-B(PP2)'!$C$263","v":0},"#'T2-B(PP2)'!$C$263"]
["pp2_bl4_9_2_unit_in",{"$f":"'T2-B(PP2)'!$D$263","v":0},"#'T2-B(PP2)'!$D$263"]
["pp2_bl4_9_2_units_out",{"$f":"'T2-B(PP2)'!$G$263","v":0},"#'T2-B(PP2)'!$G$263"]
["pp2_bl4_9_20_name",{"$f":"'T2-B(PP2)'!$B$281","v":0},"#'T2-B(PP2)'!$B$281"]
["pp2_bl4_9_20_rate_in",{"$f":"'T2-B(PP2)'!$E$281","v":0},"#'T2-B(PP2)'!$E$281"]
["pp2_bl4_9_20_rate_out",{"$f":"'T2-B(PP2)'!$H$281","v":0},"#'T2-B(PP2)'!$H$281"]
["pp2_bl4_9_20_total",{"$f":"'T2-B(PP2)'!$J$281","v":0},"#'T2-B(PP2)'!$J$281"]
["pp2_bl4_9_20_total_in",{"$f":"'T2-B(PP2)'!$F$281","v":0},"#'T2-B(PP2)'!$F$281"]
["pp2_bl4_9_20_total_out",{"$f":"'T2-B(PP2)'!$I$281","v":0},"#'T2-B(PP2)'!$I$281"]
["pp2_bl4_9_20_unit",{"$f":"'T2-B(PP2)'!$C$281","v":0},"#'T2-B(PP2)'!$C$281"]
["pp2_bl4_9_20_unit_in",{"$f":"'T2-B(PP2)'!$D$281","v":0},"#'T2-B(PP2)'!$D$281"]
["pp2_bl4_9_20_units_out",{"$f":"'T2-B(PP2)'!$G$281","v":0},"#'T2-B(PP2)'!$G$281"]
["pp2_bl4_9_3_name",{"$f":"'T2-B(PP2)'!$B$264","v":0},"#'T2-B(PP2)'!$B$264"]
["pp2_bl4_9_3_rate_in",{"$f":"'T2-B(PP2)'!$E$264","v":0},"#'T2-B(PP2)'!$E$264"]
["pp2_bl4_9_3_rate_out",{"$f":"'T2-B(PP2)'!$H$264","v":0},"#'T2-B(PP2)'!$H$264"]
["pp2_bl4_9_3_total",{"$f":"'T2-B(PP2)'!$J$264","v":0},"#'T2-B(PP2)'!$J$264"]
["pp2_bl4_9_3_total_in",{"$f":"'T2-B(PP2)'!$F$264","v":0},"#'T2-B(PP2)'!$F$264"]
["pp2_bl4_9_3_total_out",{"$f":"'T2-B(PP2)'!$I$264","v":0},"#'T2-B(PP2)'!$I$264"]
["pp2_bl4_9_3_unit",{"$f":"'T2-B(PP2)'!$C$264","v":0},"#'T2-B(PP2)'!$C$264"]
["pp2_bl4_9_3_unit_in",{"$f":"'T2-B(PP2)'!$D$264","v":0},"#'T2-B(PP2)'!$D$264"]
["pp2_bl4_9_3_units_out",{"$f":"'T2-B(PP2)'!$G$264","v":0},"#'T2-B(PP2)'!$G$264"]
["pp2_bl4_9_4_name",{"$f":"'T2-B(PP2)'!$B$265","v":0},"#'T2-B(PP2)'!$B$265"]
["pp2_bl4_9_4_rate_in",{"$f":"'T2-B(PP2)'!$E$265","v":0},"#'T2-B(PP2)'!$E$265"]
["pp2_bl4_9_4_rate_out",{"$f":"'T2-B(PP2)'!$H$265","v":0},"#'T2-B(PP2)'!$H$265"]
["pp2_bl4_9_4_total",{"$f":"'T2-B(PP2)'!$J$265","v":0},"#'T2-B(PP2)'!$J$265"]
["pp2_bl4_9_4_total_in",{"$f":"'T2-B(PP2)'!$F$265","v":0},"#'T2-B(PP2)'!$F$265"]
["pp2_bl4_9_4_total_out",{"$f":"'T2-B(PP2)'!$I$265","v":0},"#'T2-B(PP2)'!$I$265"]
["pp2_bl4_9_4_unit",{"$f":"'T2-B(PP2)'!$C$265","v":0},"#'T2-B(PP2)'!$C$265"]
["pp2_bl4_9_4_unit_in",{"$f":"'T2-B(PP2)'!$D$265","v":0},"#'T2-B(PP2)'!$D$265"]
["pp2_bl4_9_4_units_out",{"$f":"'T2-B(PP2)'!$G$265","v":0},"#'T2-B(PP2)'!$G$265"]
["pp2_bl4_9_5_name",{"$f":"'T2-B(PP2)'!$B$266","v":0},"#'T2-B(PP2)'!$B$266"]
["pp2_bl4_9_5_rate_in",{"$f":"'T2-B(PP2)'!$E$266","v":0},"#'T2-B(PP2)'!$E$266"]
["pp2_bl4_9_5_rate_out",{"$f":"'T2-B(PP2)'!$H$266","v":0},"#'T2-B(PP2)'!$H$266"]
["pp2_bl4_9_5_total",{"$f":"'T2-B(PP2)'!$J$266","v":0},"#'T2-B(PP2)'!$J$266"]
["pp2_bl4_9_5_total_in",{"$f":"'T2-B(PP2)'!$F$266","v":0},"#'T2-B(PP2)'!$F$266"]
["pp2_bl4_9_5_total_out",{"$f":"'T2-B(PP2)'!$I$266","v":0},"#'T2-B(PP2)'!$I$266"]
["pp2_bl4_9_5_unit",{"$f":"'T2-B(PP2)'!$C$266","v":0},"#'T2-B(PP2)'!$C$266"]
["pp2_bl4_9_5_unit_in",{"$f":"'T2-B(PP2)'!$D$266","v":0},"#'T2-B(PP2)'!$D$266"]
["pp2_bl4_9_5_units_out",{"$f":"'T2-B(PP2)'!$G$266","v":0},"#'T2-B(PP2)'!$G$266"]
["pp2_bl4_9_6_name",{"$f":"'T2-B(PP2)'!$B$267","v":0},"#'T2-B(PP2)'!$B$267"]
["pp2_bl4_9_6_rate_in",{"$f":"'T2-B(PP2)'!$E$267","v":0},"#'T2-B(PP2)'!$E$267"]
["pp2_bl4_9_6_rate_out",{"$f":"'T2-B(PP2)'!$H$267","v":0},"#'T2-B(PP2)'!$H$267"]
["pp2_bl4_9_6_total",{"$f":"'T2-B(PP2)'!$J$267","v":0},"#'T2-B(PP2)'!$J$267"]
["pp2_bl4_9_6_total_in",{"$f":"'T2-B(PP2)'!$F$267","v":0},"#'T2-B(PP2)'!$F$267"]
["pp2_bl4_9_6_total_out",{"$f":"'T2-B(PP2)'!$I$267","v":0},"#'T2-B(PP2)'!$I$267"]
["pp2_bl4_9_6_unit",{"$f":"'T2-B(PP2)'!$C$267","v":0},"#'T2-B(PP2)'!$C$267"]
["pp2_bl4_9_6_unit_in",{"$f":"'T2-B(PP2)'!$D$267","v":0},"#'T2-B(PP2)'!$D$267"]
["pp2_bl4_9_6_units_out",{"$f":"'T2-B(PP2)'!$G$267","v":0},"#'T2-B(PP2)'!$G$267"]
["pp2_bl4_9_7_name",{"$f":"'T2-B(PP2)'!$B$268","v":0},"#'T2-B(PP2)'!$B$268"]
["pp2_bl4_9_7_rate_in",{"$f":"'T2-B(PP2)'!$E$268","v":0},"#'T2-B(PP2)'!$E$268"]
["pp2_bl4_9_7_rate_out",{"$f":"'T2-B(PP2)'!$H$268","v":0},"#'T2-B(PP2)'!$H$268"]
["pp2_bl4_9_7_total",{"$f":"'T2-B(PP2)'!$J$268","v":0},"#'T2-B(PP2)'!$J$268"]
["pp2_bl4_9_7_total_in",{"$f":"'T2-B(PP2)'!$F$268","v":0},"#'T2-B(PP2)'!$F$268"]
["pp2_bl4_9_7_total_out",{"$f":"'T2-B(PP2)'!$I$268","v":0},"#'T2-B(PP2)'!$I$268"]
["pp2_bl4_9_7_unit",{"$f":"'T2-B(PP2)'!$C$268","v":0},"#'T2-B(PP2)'!$C$268"]
["pp2_bl4_9_7_unit_in",{"$f":"'T2-B(PP2)'!$D$268","v":0},"#'T2-B(PP2)'!$D$268"]
["pp2_bl4_9_7_units_out",{"$f":"'T2-B(PP2)'!$G$268","v":0},"#'T2-B(PP2)'!$G$268"]
["pp2_bl4_9_8_name",{"$f":"'T2-B(PP2)'!$B$269","v":0},"#'T2-B(PP2)'!$B$269"]
["pp2_bl4_9_8_rate_in",{"$f":"'T2-B(PP2)'!$E$269","v":0},"#'T2-B(PP2)'!$E$269"]
["pp2_bl4_9_8_rate_out",{"$f":"'T2-B(PP2)'!$H$269","v":0},"#'T2-B(PP2)'!$H$269"]
["pp2_bl4_9_8_total",{"$f":"'T2-B(PP2)'!$J$269","v":0},"#'T2-B(PP2)'!$J$269"]
["pp2_bl4_9_8_total_in",{"$f":"'T2-B(PP2)'!$F$269","v":0},"#'T2-B(PP2)'!$F$269"]
["pp2_bl4_9_8_total_out",{"$f":"'T2-B(PP2)'!$I$269","v":0},"#'T2-B(PP2)'!$I$269"]
["pp2_bl4_9_8_unit",{"$f":"'T2-B(PP2)'!$C$269","v":0},"#'T2-B(PP2)'!$C$269"]
["pp2_bl4_9_8_unit_in",{"$f":"'T2-B(PP2)'!$D$269","v":0},"#'T2-B(PP2)'!$D$269"]
["pp2_bl4_9_8_units_out",{"$f":"'T2-B(PP2)'!$G$269","v":0},"#'T2-B(PP2)'!$G$269"]
["pp2_bl4_9_9_name",{"$f":"'T2-B(PP2)'!$B$270","v":0},"#'T2-B(PP2)'!$B$270"]
["pp2_bl4_9_9_rate_in",{"$f":"'T2-B(PP2)'!$E$270","v":0},"#'T2-B(PP2)'!$E$270"]
["pp2_bl4_9_9_rate_out",{"$f":"'T2-B(PP2)'!$H$270","v":0},"#'T2-B(PP2)'!$H$270"]
["pp2_bl4_9_9_total",{"$f":"'T2-B(PP2)'!$J$270","v":0},"#'T2-B(PP2)'!$J$270"]
["pp2_bl4_9_9_total_in",{"$f":"'T2-B(PP2)'!$F$270","v":0},"#'T2-B(PP2)'!$F$270"]
["pp2_bl4_9_9_total_out",{"$f":"'T2-B(PP2)'!$I$270","v":0},"#'T2-B(PP2)'!$I$270"]
["pp2_bl4_9_9_unit",{"$f":"'T2-B(PP2)'!$C$270","v":0},"#'T2-B(PP2)'!$C$270"]
["pp2_bl4_9_9_unit_in",{"$f":"'T2-B(PP2)'!$D$270","v":0},"#'T2-B(PP2)'!$D$270"]
["pp2_bl4_9_9_units_out",{"$f":"'T2-B(PP2)'!$G$270","v":0},"#'T2-B(PP2)'!$G$270"]
["pp2_bl4_9_total",{"$f":"'T2-B(PP2)'!$J$261","v":0},"#'T2-B(PP2)'!$J$261"]
["pp2_bl4_9_total_in",{"$f":"'T2-B(PP2)'!$F$261","v":0},"#'T2-B(PP2)'!$F$261"]
["pp2_bl4_9_total_out",{"$f":"'T2-B(PP2)'!$I$261","v":0},"#'T2-B(PP2)'!$I$261"]
["pp2_bl4_total",{"$f":"'T2-B(PP2)'!$J$345","v":0},"#'T2-B(PP2)'!$J$345"]
["pp2_bl4_total_in",{"$f":"'T2-B(PP2)'!$F$345","v":0},"#'T2-B(PP2)'!$F$345"]
["pp2_bl4_total_out",{"$f":"'T2-B(PP2)'!$I$345","v":0},"#'T2-B(PP2)'!$I$345"]
["pp2_bl5_1_1_name",{"$f":"'T2-B(PP2)'!$B$350","v":0},"#'T2-B(PP2)'!$B$350"]
["pp2_bl5_1_1_rate_in",{"$f":"'T2-B(PP2)'!$E$350","v":0},"#'T2-B(PP2)'!$E$350"]
["pp2_bl5_1_1_rate_out",{"$f":"'T2-B(PP2)'!$H$350","v":0},"#'T2-B(PP2)'!$H$350"]
["pp2_bl5_1_1_total",{"$f":"'T2-B(PP2)'!$J$350","v":0},"#'T2-B(PP2)'!$J$350"]
["pp2_bl5_1_1_total_in",{"$f":"'T2-B(PP2)'!$F$350","v":0},"#'T2-B(PP2)'!$F$350"]
["pp2_bl5_1_1_total_out",{"$f":"'T2-B(PP2)'!$I$350","v":0},"#'T2-B(PP2)'!$I$350"]
["pp2_bl5_1_1_unit",{"$f":"'T2-B(PP2)'!$C$350","v":0},"#'T2-B(PP2)'!$C$350"]
["pp2_bl5_1_1_unit_in",{"$f":"'T2-B(PP2)'!$D$350","v":0},"#'T2-B(PP2)'!$D$350"]
["pp2_bl5_1_1_units_out",{"$f":"'T2-B(PP2)'!$G$350","v":0},"#'T2-B(PP2)'!$G$350"]
["pp2_bl5_1_10_name",{"$f":"'T2-B(PP2)'!$B$359","v":0},"#'T2-B(PP2)'!$B$359"]
["pp2_bl5_1_10_rate_in",{"$f":"'T2-B(PP2)'!$E$359","v":0},"#'T2-B(PP2)'!$E$359"]
["pp2_bl5_1_10_rate_out",{"$f":"'T2-B(PP2)'!$H$359","v":0},"#'T2-B(PP2)'!$H$359"]
["pp2_bl5_1_10_total",{"$f":"'T2-B(PP2)'!$J$359","v":0},"#'T2-B(PP2)'!$J$359"]
["pp2_bl5_1_10_total_in",{"$f":"'T2-B(PP2)'!$F$359","v":0},"#'T2-B(PP2)'!$F$359"]
["pp2_bl5_1_10_total_out",{"$f":"'T2-B(PP2)'!$I$359","v":0},"#'T2-B(PP2)'!$I$359"]
["pp2_bl5_1_10_unit",{"$f":"'T2-B(PP2)'!$C$359","v":0},"#'T2-B(PP2)'!$C$359"]
["pp2_bl5_1_10_unit_in",{"$f":"'T2-B(PP2)'!$D$359","v":0},"#'T2-B(PP2)'!$D$359"]
["pp2_bl5_1_10_units_out",{"$f":"'T2-B(PP2)'!$G$359","v":0},"#'T2-B(PP2)'!$G$359"]
["pp2_bl5_1_11_name",{"$f":"'T2-B(PP2)'!$B$360","v":0},"#'T2-B(PP2)'!$B$360"]
["pp2_bl5_1_11_rate_in",{"$f":"'T2-B(PP2)'!$E$360","v":0},"#'T2-B(PP2)'!$E$360"]
["pp2_bl5_1_11_rate_out",{"$f":"'T2-B(PP2)'!$H$360","v":0},"#'T2-B(PP2)'!$H$360"]
["pp2_bl5_1_11_total",{"$f":"'T2-B(PP2)'!$J$360","v":0},"#'T2-B(PP2)'!$J$360"]
["pp2_bl5_1_11_total_in",{"$f":"'T2-B(PP2)'!$F$360","v":0},"#'T2-B(PP2)'!$F$360"]
["pp2_bl5_1_11_total_out",{"$f":"'T2-B(PP2)'!$I$360","v":0},"#'T2-B(PP2)'!$I$360"]
["pp2_bl5_1_11_unit",{"$f":"'T2-B(PP2)'!$C$360","v":0},"#'T2-B(PP2)'!$C$360"]
["pp2_bl5_1_11_unit_in",{"$f":"'T2-B(PP2)'!$D$360","v":0},"#'T2-B(PP2)'!$D$360"]
["pp2_bl5_1_11_units_out",{"$f":"'T2-B(PP2)'!$G$360","v":0},"#'T2-B(PP2)'!$G$360"]
["pp2_bl5_1_12_name",{"$f":"'T2-B(PP2)'!$B$361","v":0},"#'T2-B(PP2)'!$B$361"]
["pp2_bl5_1_12_rate_in",{"$f":"'T2-B(PP2)'!$E$361","v":0},"#'T2-B(PP2)'!$E$361"]
["pp2_bl5_1_12_rate_out",{"$f":"'T2-B(PP2)'!$H$361","v":0},"#'T2-B(PP2)'!$H$361"]
["pp2_bl5_1_12_total",{"$f":"'T2-B(PP2)'!$J$361","v":0},"#'T2-B(PP2)'!$J$361"]
["pp2_bl5_1_12_total_in",{"$f":"'T2-B(PP2)'!$F$361","v":0},"#'T2-B(PP2)'!$F$361"]
["pp2_bl5_1_12_total_out",{"$f":"'T2-B(PP2)'!$I$361","v":0},"#'T2-B(PP2)'!$I$361"]
["pp2_bl5_1_12_unit",{"$f":"'T2-B(PP2)'!$C$361","v":0},"#'T2-B(PP2)'!$C$361"]
["pp2_bl5_1_12_unit_in",{"$f":"'T2-B(PP2)'!$D$361","v":0},"#'T2-B(PP2)'!$D$361"]
["pp2_bl5_1_12_units_out",{"$f":"'T2-B(PP2)'!$G$361","v":0},"#'T2-B(PP2)'!$G$361"]
["pp2_bl5_1_13_name",{"$f":"'T2-B(PP2)'!$B$362","v":0},"#'T2-B(PP2)'!$B$362"]
["pp2_bl5_1_13_rate_in",{"$f":"'T2-B(PP2)'!$E$362","v":0},"#'T2-B(PP2)'!$E$362"]
["pp2_bl5_1_13_rate_out",{"$f":"'T2-B(PP2)'!$H$362","v":0},"#'T2-B(PP2)'!$H$362"]
["pp2_bl5_1_13_total",{"$f":"'T2-B(PP2)'!$J$362","v":0},"#'T2-B(PP2)'!$J$362"]
["pp2_bl5_1_13_total_in",{"$f":"'T2-B(PP2)'!$F$362","v":0},"#'T2-B(PP2)'!$F$362"]
["pp2_bl5_1_13_total_out",{"$f":"'T2-B(PP2)'!$I$362","v":0},"#'T2-B(PP2)'!$I$362"]
["pp2_bl5_1_13_unit",{"$f":"'T2-B(PP2)'!$C$362","v":0},"#'T2-B(PP2)'!$C$362"]
["pp2_bl5_1_13_unit_in",{"$f":"'T2-B(PP2)'!$D$362","v":0},"#'T2-B(PP2)'!$D$362"]
["pp2_bl5_1_13_units_out",{"$f":"'T2-B(PP2)'!$G$362","v":0},"#'T2-B(PP2)'!$G$362"]
["pp2_bl5_1_14_name",{"$f":"'T2-B(PP2)'!$B$363","v":0},"#'T2-B(PP2)'!$B$363"]
["pp2_bl5_1_14_rate_in",{"$f":"'T2-B(PP2)'!$E$363","v":0},"#'T2-B(PP2)'!$E$363"]
["pp2_bl5_1_14_rate_out",{"$f":"'T2-B(PP2)'!$H$363","v":0},"#'T2-B(PP2)'!$H$363"]
["pp2_bl5_1_14_total",{"$f":"'T2-B(PP2)'!$J$363","v":0},"#'T2-B(PP2)'!$J$363"]
["pp2_bl5_1_14_total_in",{"$f":"'T2-B(PP2)'!$F$363","v":0},"#'T2-B(PP2)'!$F$363"]
["pp2_bl5_1_14_total_out",{"$f":"'T2-B(PP2)'!$I$363","v":0},"#'T2-B(PP2)'!$I$363"]
["pp2_bl5_1_14_unit",{"$f":"'T2-B(PP2)'!$C$363","v":0},"#'T2-B(PP2)'!$C$363"]
["pp2_bl5_1_14_unit_in",{"$f":"'T2-B(PP2)'!$D$363","v":0},"#'T2-B(PP2)'!$D$363"]
["pp2_bl5_1_14_units_out",{"$f":"'T2-B(PP2)'!$G$363","v":0},"#'T2-B(PP2)'!$G$363"]
["pp2_bl5_1_15_name",{"$f":"'T2-B(PP2)'!$B$364","v":0},"#'T2-B(PP2)'!$B$364"]
["pp2_bl5_1_15_rate_in",{"$f":"'T2-B(PP2)'!$E$364","v":0},"#'T2-B(PP2)'!$E$364"]
["pp2_bl5_1_15_rate_out",{"$f":"'T2-B(PP2)'!$H$364","v":0},"#'T2-B(PP2)'!$H$364"]
["pp2_bl5_1_15_total",{"$f":"'T2-B(PP2)'!$J$364","v":0},"#'T2-B(PP2)'!$J$364"]
["pp2_bl5_1_15_total_in",{"$f":"'T2-B(PP2)'!$F$364","v":0},"#'T2-B(PP2)'!$F$364"]
["pp2_bl5_1_15_total_out",{"$f":"'T2-B(PP2)'!$I$364","v":0},"#'T2-B(PP2)'!$I$364"]
["pp2_bl5_1_15_unit",{"$f":"'T2-B(PP2)'!$C$364","v":0},"#'T2-B(PP2)'!$C$364"]
["pp2_bl5_1_15_unit_in",{"$f":"'T2-B(PP2)'!$D$364","v":0},"#'T2-B(PP2)'!$D$364"]
["pp2_bl5_1_15_units_out",{"$f":"'T2-B(PP2)'!$G$364","v":0},"#'T2-B(PP2)'!$G$364"]
["pp2_bl5_1_16_name",{"$f":"'T2-B(PP2)'!$B$365","v":0},"#'T2-B(PP2)'!$B$365"]
["pp2_bl5_1_16_rate_in",{"$f":"'T2-B(PP2)'!$E$365","v":0},"#'T2-B(PP2)'!$E$365"]
["pp2_bl5_1_16_rate_out",{"$f":"'T2-B(PP2)'!$H$365","v":0},"#'T2-B(PP2)'!$H$365"]
["pp2_bl5_1_16_total",{"$f":"'T2-B(PP2)'!$J$365","v":0},"#'T2-B(PP2)'!$J$365"]
["pp2_bl5_1_16_total_in",{"$f":"'T2-B(PP2)'!$F$365","v":0},"#'T2-B(PP2)'!$F$365"]
["pp2_bl5_1_16_total_out",{"$f":"'T2-B(PP2)'!$I$365","v":0},"#'T2-B(PP2)'!$I$365"]
["pp2_bl5_1_16_unit",{"$f":"'T2-B(PP2)'!$C$365","v":0},"#'T2-B(PP2)'!$C$365"]
["pp2_bl5_1_16_unit_in",{"$f":"'T2-B(PP2)'!$D$365","v":0},"#'T2-B(PP2)'!$D$365"]
["pp2_bl5_1_16_units_out",{"$f":"'T2-B(PP2)'!$G$365","v":0},"#'T2-B(PP2)'!$G$365"]
["pp2_bl5_1_17_name",{"$f":"'T2-B(PP2)'!$B$366","v":0},"#'T2-B(PP2)'!$B$366"]
["pp2_bl5_1_17_rate_in",{"$f":"'T2-B(PP2)'!$E$366","v":0},"#'T2-B(PP2)'!$E$366"]
["pp2_bl5_1_17_rate_out",{"$f":"'T2-B(PP2)'!$H$366","v":0},"#'T2-B(PP2)'!$H$366"]
["pp2_bl5_1_17_total",{"$f":"'T2-B(PP2)'!$J$366","v":0},"#'T2-B(PP2)'!$J$366"]
["pp2_bl5_1_17_total_in",{"$f":"'T2-B(PP2)'!$F$366","v":0},"#'T2-B(PP2)'!$F$366"]
["pp2_bl5_1_17_total_out",{"$f":"'T2-B(PP2)'!$I$366","v":0},"#'T2-B(PP2)'!$I$366"]
["pp2_bl5_1_17_unit",{"$f":"'T2-B(PP2)'!$C$366","v":0},"#'T2-B(PP2)'!$C$366"]
["pp2_bl5_1_17_unit_in",{"$f":"'T2-B(PP2)'!$D$366","v":0},"#'T2-B(PP2)'!$D$366"]
["pp2_bl5_1_17_units_out",{"$f":"'T2-B(PP2)'!$G$366","v":0},"#'T2-B(PP2)'!$G$366"]
["pp2_bl5_1_18_name",{"$f":"'T2-B(PP2)'!$B$367","v":0},"#'T2-B(PP2)'!$B$367"]
["pp2_bl5_1_18_rate_in",{"$f":"'T2-B(PP2)'!$E$367","v":0},"#'T2-B(PP2)'!$E$367"]
["pp2_bl5_1_18_rate_out",{"$f":"'T2-B(PP2)'!$H$367","v":0},"#'T2-B(PP2)'!$H$367"]
["pp2_bl5_1_18_total",{"$f":"'T2-B(PP2)'!$J$367","v":0},"#'T2-B(PP2)'!$J$367"]
["pp2_bl5_1_18_total_in",{"$f":"'T2-B(PP2)'!$F$367","v":0},"#'T2-B(PP2)'!$F$367"]
["pp2_bl5_1_18_total_out",{"$f":"'T2-B(PP2)'!$I$367","v":0},"#'T2-B(PP2)'!$I$367"]
["pp2_bl5_1_18_unit",{"$f":"'T2-B(PP2)'!$C$367","v":0},"#'T2-B(PP2)'!$C$367"]
["pp2_bl5_1_18_unit_in",{"$f":"'T2-B(PP2)'!$D$367","v":0},"#'T2-B(PP2)'!$D$367"]
["pp2_bl5_1_18_units_out",{"$f":"'T2-B(PP2)'!$G$367","v":0},"#'T2-B(PP2)'!$G$367"]
["pp2_bl5_1_19_name",{"$f":"'T2-B(PP2)'!$B$368","v":0},"#'T2-B(PP2)'!$B$368"]
["pp2_bl5_1_19_rate_in",{"$f":"'T2-B(PP2)'!$E$368","v":0},"#'T2-B(PP2)'!$E$368"]
["pp2_bl5_1_19_rate_out",{"$f":"'T2-B(PP2)'!$H$368","v":0},"#'T2-B(PP2)'!$H$368"]
["pp2_bl5_1_19_total",{"$f":"'T2-B(PP2)'!$J$368","v":0},"#'T2-B(PP2)'!$J$368"]
["pp2_bl5_1_19_total_in",{"$f":"'T2-B(PP2)'!$F$368","v":0},"#'T2-B(PP2)'!$F$368"]
["pp2_bl5_1_19_total_out",{"$f":"'T2-B(PP2)'!$I$368","v":0},"#'T2-B(PP2)'!$I$368"]
["pp2_bl5_1_19_unit",{"$f":"'T2-B(PP2)'!$C$368","v":0},"#'T2-B(PP2)'!$C$368"]
["pp2_bl5_1_19_unit_in",{"$f":"'T2-B(PP2)'!$D$368","v":0},"#'T2-B(PP2)'!$D$368"]
["pp2_bl5_1_19_units_out",{"$f":"'T2-B(PP2)'!$G$368","v":0},"#'T2-B(PP2)'!$G$368"]
["pp2_bl5_1_2_name",{"$f":"'T2-B(PP2)'!$B$351","v":0},"#'T2-B(PP2)'!$B$351"]
["pp2_bl5_1_2_rate_in",{"$f":"'T2-B(PP2)'!$E$351","v":0},"#'T2-B(PP2)'!$E$351"]
["pp2_bl5_1_2_rate_out",{"$f":"'T2-B(PP2)'!$H$351","v":0},"#'T2-B(PP2)'!$H$351"]
["pp2_bl5_1_2_total",{"$f":"'T2-B(PP2)'!$J$351","v":0},"#'T2-B(PP2)'!$J$351"]
["pp2_bl5_1_2_total_in",{"$f":"'T2-B(PP2)'!$F$351","v":0},"#'T2-B(PP2)'!$F$351"]
["pp2_bl5_1_2_total_out",{"$f":"'T2-B(PP2)'!$I$351","v":0},"#'T2-B(PP2)'!$I$351"]
["pp2_bl5_1_2_unit",{"$f":"'T2-B(PP2)'!$C$351","v":0},"#'T2-B(PP2)'!$C$351"]
["pp2_bl5_1_2_unit_in",{"$f":"'T2-B(PP2)'!$D$351","v":0},"#'T2-B(PP2)'!$D$351"]
["pp2_bl5_1_2_units_out",{"$f":"'T2-B(PP2)'!$G$351","v":0},"#'T2-B(PP2)'!$G$351"]
["pp2_bl5_1_20_name",{"$f":"'T2-B(PP2)'!$B$369","v":0},"#'T2-B(PP2)'!$B$369"]
["pp2_bl5_1_20_rate_in",{"$f":"'T2-B(PP2)'!$E$369","v":0},"#'T2-B(PP2)'!$E$369"]
["pp2_bl5_1_20_rate_out",{"$f":"'T2-B(PP2)'!$H$369","v":0},"#'T2-B(PP2)'!$H$369"]
["pp2_bl5_1_20_total",{"$f":"'T2-B(PP2)'!$J$369","v":0},"#'T2-B(PP2)'!$J$369"]
["pp2_bl5_1_20_total_in",{"$f":"'T2-B(PP2)'!$F$369","v":0},"#'T2-B(PP2)'!$F$369"]
["pp2_bl5_1_20_total_out",{"$f":"'T2-B(PP2)'!$I$369","v":0},"#'T2-B(PP2)'!$I$369"]
["pp2_bl5_1_20_unit",{"$f":"'T2-B(PP2)'!$C$369","v":0},"#'T2-B(PP2)'!$C$369"]
["pp2_bl5_1_20_unit_in",{"$f":"'T2-B(PP2)'!$D$369","v":0},"#'T2-B(PP2)'!$D$369"]
["pp2_bl5_1_20_units_out",{"$f":"'T2-B(PP2)'!$G$369","v":0},"#'T2-B(PP2)'!$G$369"]
["pp2_bl5_1_3_name",{"$f":"'T2-B(PP2)'!$B$352","v":0},"#'T2-B(PP2)'!$B$352"]
["pp2_bl5_1_3_rate_in",{"$f":"'T2-B(PP2)'!$E$352","v":0},"#'T2-B(PP2)'!$E$352"]
["pp2_bl5_1_3_rate_out",{"$f":"'T2-B(PP2)'!$H$352","v":0},"#'T2-B(PP2)'!$H$352"]
["pp2_bl5_1_3_total",{"$f":"'T2-B(PP2)'!$J$352","v":0},"#'T2-B(PP2)'!$J$352"]
["pp2_bl5_1_3_total_in",{"$f":"'T2-B(PP2)'!$F$352","v":0},"#'T2-B(PP2)'!$F$352"]
["pp2_bl5_1_3_total_out",{"$f":"'T2-B(PP2)'!$I$352","v":0},"#'T2-B(PP2)'!$I$352"]
["pp2_bl5_1_3_unit",{"$f":"'T2-B(PP2)'!$C$352","v":0},"#'T2-B(PP2)'!$C$352"]
["pp2_bl5_1_3_unit_in",{"$f":"'T2-B(PP2)'!$D$352","v":0},"#'T2-B(PP2)'!$D$352"]
["pp2_bl5_1_3_units_out",{"$f":"'T2-B(PP2)'!$G$352","v":0},"#'T2-B(PP2)'!$G$352"]
["pp2_bl5_1_4_name",{"$f":"'T2-B(PP2)'!$B$353","v":0},"#'T2-B(PP2)'!$B$353"]
["pp2_bl5_1_4_rate_in",{"$f":"'T2-B(PP2)'!$E$353","v":0},"#'T2-B(PP2)'!$E$353"]
["pp2_bl5_1_4_rate_out",{"$f":"'T2-B(PP2)'!$H$353","v":0},"#'T2-B(PP2)'!$H$353"]
["pp2_bl5_1_4_total",{"$f":"'T2-B(PP2)'!$J$353","v":0},"#'T2-B(PP2)'!$J$353"]
["pp2_bl5_1_4_total_in",{"$f":"'T2-B(PP2)'!$F$353","v":0},"#'T2-B(PP2)'!$F$353"]
["pp2_bl5_1_4_total_out",{"$f":"'T2-B(PP2)'!$I$353","v":0},"#'T2-B(PP2)'!$I$353"]
["pp2_bl5_1_4_unit",{"$f":"'T2-B(PP2)'!$C$353","v":0},"#'T2-B(PP2)'!$C$353"]
["pp2_bl5_1_4_unit_in",{"$f":"'T2-B(PP2)'!$D$353","v":0},"#'T2-B(PP2)'!$D$353"]
["pp2_bl5_1_4_units_out",{"$f":"'T2-B(PP2)'!$G$353","v":0},"#'T2-B(PP2)'!$G$353"]
["pp2_bl5_1_5_name",{"$f":"'T2-B(PP2)'!$B$354","v":0},"#'T2-B(PP2)'!$B$354"]
["pp2_bl5_1_5_rate_in",{"$f":"'T2-B(PP2)'!$E$354","v":0},"#'T2-B(PP2)'!$E$354"]
["pp2_bl5_1_5_rate_out",{"$f":"'T2-B(PP2)'!$H$354","v":0},"#'T2-B(PP2)'!$H$354"]
["pp2_bl5_1_5_total",{"$f":"'T2-B(PP2)'!$J$354","v":0},"#'T2-B(PP2)'!$J$354"]
["pp2_bl5_1_5_total_in",{"$f":"'T2-B(PP2)'!$F$354","v":0},"#'T2-B(PP2)'!$F$354"]
["pp2_bl5_1_5_total_out",{"$f":"'T2-B(PP2)'!$I$354","v":0},"#'T2-B(PP2)'!$I$354"]
["pp2_bl5_1_5_unit",{"$f":"'T2-B(PP2)'!$C$354","v":0},"#'T2-B(PP2)'!$C$354"]
["pp2_bl5_1_5_unit_in",{"$f":"'T2-B(PP2)'!$D$354","v":0},"#'T2-B(PP2)'!$D$354"]
["pp2_bl5_1_5_units_out",{"$f":"'T2-B(PP2)'!$G$354","v":0},"#'T2-B(PP2)'!$G$354"]
["pp2_bl5_1_6_name",{"$f":"'T2-B(PP2)'!$B$355","v":0},"#'T2-B(PP2)'!$B$355"]
["pp2_bl5_1_6_rate_in",{"$f":"'T2-B(PP2)'!$E$355","v":0},"#'T2-B(PP2)'!$E$355"]
["pp2_bl5_1_6_rate_out",{"$f":"'T2-B(PP2)'!$H$355","v":0},"#'T2-B(PP2)'!$H$355"]
["pp2_bl5_1_6_total",{"$f":"'T2-B(PP2)'!$J$355","v":0},"#'T2-B(PP2)'!$J$355"]
["pp2_bl5_1_6_total_in",{"$f":"'T2-B(PP2)'!$F$355","v":0},"#'T2-B(PP2)'!$F$355"]
["pp2_bl5_1_6_total_out",{"$f":"'T2-B(PP2)'!$I$355","v":0},"#'T2-B(PP2)'!$I$355"]
["pp2_bl5_1_6_unit",{"$f":"'T2-B(PP2)'!$C$355","v":0},"#'T2-B(PP2)'!$C$355"]
["pp2_bl5_1_6_unit_in",{"$f":"'T2-B(PP2)'!$D$355","v":0},"#'T2-B(PP2)'!$D$355"]
["pp2_bl5_1_6_units_out",{"$f":"'T2-B(PP2)'!$G$355","v":0},"#'T2-B(PP2)'!$G$355"]
["pp2_bl5_1_7_name",{"$f":"'T2-B(PP2)'!$B$356","v":0},"#'T2-B(PP2)'!$B$356"]
["pp2_bl5_1_7_rate_in",{"$f":"'T2-B(PP2)'!$E$356","v":0},"#'T2-B(PP2)'!$E$356"]
["pp2_bl5_1_7_rate_out",{"$f":"'T2-B(PP2)'!$H$356","v":0},"#'T2-B(PP2)'!$H$356"]
["pp2_bl5_1_7_total",{"$f":"'T2-B(PP2)'!$J$356","v":0},"#'T2-B(PP2)'!$J$356"]
["pp2_bl5_1_7_total_in",{"$f":"'T2-B(PP2)'!$F$356","v":0},"#'T2-B(PP2)'!$F$356"]
["pp2_bl5_1_7_total_out",{"$f":"'T2-B(PP2)'!$I$356","v":0},"#'T2-B(PP2)'!$I$356"]
["pp2_bl5_1_7_unit",{"$f":"'T2-B(PP2)'!$C$356","v":0},"#'T2-B(PP2)'!$C$356"]
["pp2_bl5_1_7_unit_in",{"$f":"'T2-B(PP2)'!$D$356","v":0},"#'T2-B(PP2)'!$D$356"]
["pp2_bl5_1_7_units_out",{"$f":"'T2-B(PP2)'!$G$356","v":0},"#'T2-B(PP2)'!$G$356"]
["pp2_bl5_1_8_name",{"$f":"'T2-B(PP2)'!$B$357","v":0},"#'T2-B(PP2)'!$B$357"]
["pp2_bl5_1_8_rate_in",{"$f":"'T2-B(PP2)'!$E$357","v":0},"#'T2-B(PP2)'!$E$357"]
["pp2_bl5_1_8_rate_out",{"$f":"'T2-B(PP2)'!$H$357","v":0},"#'T2-B(PP2)'!$H$357"]
["pp2_bl5_1_8_total",{"$f":"'T2-B(PP2)'!$J$357","v":0},"#'T2-B(PP2)'!$J$357"]
["pp2_bl5_1_8_total_in",{"$f":"'T2-B(PP2)'!$F$357","v":0},"#'T2-B(PP2)'!$F$357"]
["pp2_bl5_1_8_total_out",{"$f":"'T2-B(PP2)'!$I$357","v":0},"#'T2-B(PP2)'!$I$357"]
["pp2_bl5_1_8_unit",{"$f":"'T2-B(PP2)'!$C$357","v":0},"#'T2-B(PP2)'!$C$357"]
["pp2_bl5_1_8_unit_in",{"$f":"'T2-B(PP2)'!$D$357","v":0},"#'T2-B(PP2)'!$D$357"]
["pp2_bl5_1_8_units_out",{"$f":"'T2-B(PP2)'!$G$357","v":0},"#'T2-B(PP2)'!$G$357"]
["pp2_bl5_1_9_name",{"$f":"'T2-B(PP2)'!$B$358","v":0},"#'T2-B(PP2)'!$B$358"]
["pp2_bl5_1_9_rate_in",{"$f":"'T2-B(PP2)'!$E$358","v":0},"#'T2-B(PP2)'!$E$358"]
["pp2_bl5_1_9_rate_out",{"$f":"'T2-B(PP2)'!$H$358","v":0},"#'T2-B(PP2)'!$H$358"]
["pp2_bl5_1_9_total",{"$f":"'T2-B(PP2)'!$J$358","v":0},"#'T2-B(PP2)'!$J$358"]
["pp2_bl5_1_9_total_in",{"$f":"'T2-B(PP2)'!$F$358","v":0},"#'T2-B(PP2)'!$F$358"]
["pp2_bl5_1_9_total_out",{"$f":"'T2-B(PP2)'!$I$358","v":0},"#'T2-B(PP2)'!$I$358"]
["pp2_bl5_1_9_unit",{"$f":"'T2-B(PP2)'!$C$358","v":0},"#'T2-B(PP2)'!$C$358"]
["pp2_bl5_1_9_unit_in",{"$f":"'T2-B(PP2)'!$D$358","v":0},"#'T2-B(PP2)'!$D$358"]
["pp2_bl5_1_9_units_out",{"$f":"'T2-B(PP2)'!$G$358","v":0},"#'T2-B(PP2)'!$G$358"]
["pp2_bl5_1_total",{"$f":"'T2-B(PP2)'!$J$349","v":0},"#'T2-B(PP2)'!$J$349"]
["pp2_bl5_1_total_in",{"$f":"'T2-B(PP2)'!$F$349","v":0},"#'T2-B(PP2)'!$F$349"]
["pp2_bl5_1_total_out",{"$f":"'T2-B(PP2)'!$I$349","v":0},"#'T2-B(PP2)'!$I$349"]
["pp2_bl5_2_1_name",{"$f":"'T2-B(PP2)'!$B$371","v":0},"#'T2-B(PP2)'!$B$371"]
["pp2_bl5_2_1_rate_in",{"$f":"'T2-B(PP2)'!$E$371","v":0},"#'T2-B(PP2)'!$E$371"]
["pp2_bl5_2_1_rate_out",{"$f":"'T2-B(PP2)'!$H$371","v":0},"#'T2-B(PP2)'!$H$371"]
["pp2_bl5_2_1_total",{"$f":"'T2-B(PP2)'!$J$371","v":0},"#'T2-B(PP2)'!$J$371"]
["pp2_bl5_2_1_total_in",{"$f":"'T2-B(PP2)'!$F$371","v":0},"#'T2-B(PP2)'!$F$371"]
["pp2_bl5_2_1_total_out",{"$f":"'T2-B(PP2)'!$I$371","v":0},"#'T2-B(PP2)'!$I$371"]
["pp2_bl5_2_1_unit",{"$f":"'T2-B(PP2)'!$C$371","v":0},"#'T2-B(PP2)'!$C$371"]
["pp2_bl5_2_1_unit_in",{"$f":"'T2-B(PP2)'!$D$371","v":0},"#'T2-B(PP2)'!$D$371"]
["pp2_bl5_2_1_units_out",{"$f":"'T2-B(PP2)'!$G$371","v":0},"#'T2-B(PP2)'!$G$371"]
["pp2_bl5_2_10_name",{"$f":"'T2-B(PP2)'!$B$380","v":0},"#'T2-B(PP2)'!$B$380"]
["pp2_bl5_2_10_rate_in",{"$f":"'T2-B(PP2)'!$E$380","v":0},"#'T2-B(PP2)'!$E$380"]
["pp2_bl5_2_10_rate_out",{"$f":"'T2-B(PP2)'!$H$380","v":0},"#'T2-B(PP2)'!$H$380"]
["pp2_bl5_2_10_total",{"$f":"'T2-B(PP2)'!$J$380","v":0},"#'T2-B(PP2)'!$J$380"]
["pp2_bl5_2_10_total_in",{"$f":"'T2-B(PP2)'!$F$380","v":0},"#'T2-B(PP2)'!$F$380"]
["pp2_bl5_2_10_total_out",{"$f":"'T2-B(PP2)'!$I$380","v":0},"#'T2-B(PP2)'!$I$380"]
["pp2_bl5_2_10_unit",{"$f":"'T2-B(PP2)'!$C$380","v":0},"#'T2-B(PP2)'!$C$380"]
["pp2_bl5_2_10_unit_in",{"$f":"'T2-B(PP2)'!$D$380","v":0},"#'T2-B(PP2)'!$D$380"]
["pp2_bl5_2_10_units_out",{"$f":"'T2-B(PP2)'!$G$380","v":0},"#'T2-B(PP2)'!$G$380"]
["pp2_bl5_2_11_name",{"$f":"'T2-B(PP2)'!$B$381","v":0},"#'T2-B(PP2)'!$B$381"]
["pp2_bl5_2_11_rate_in",{"$f":"'T2-B(PP2)'!$E$381","v":0},"#'T2-B(PP2)'!$E$381"]
["pp2_bl5_2_11_rate_out",{"$f":"'T2-B(PP2)'!$H$381","v":0},"#'T2-B(PP2)'!$H$381"]
["pp2_bl5_2_11_total",{"$f":"'T2-B(PP2)'!$J$381","v":0},"#'T2-B(PP2)'!$J$381"]
["pp2_bl5_2_11_total_in",{"$f":"'T2-B(PP2)'!$F$381","v":0},"#'T2-B(PP2)'!$F$381"]
["pp2_bl5_2_11_total_out",{"$f":"'T2-B(PP2)'!$I$381","v":0},"#'T2-B(PP2)'!$I$381"]
["pp2_bl5_2_11_unit",{"$f":"'T2-B(PP2)'!$C$381","v":0},"#'T2-B(PP2)'!$C$381"]
["pp2_bl5_2_11_unit_in",{"$f":"'T2-B(PP2)'!$D$381","v":0},"#'T2-B(PP2)'!$D$381"]
["pp2_bl5_2_11_units_out",{"$f":"'T2-B(PP2)'!$G$381","v":0},"#'T2-B(PP2)'!$G$381"]
["pp2_bl5_2_12_name",{"$f":"'T2-B(PP2)'!$B$382","v":0},"#'T2-B(PP2)'!$B$382"]
["pp2_bl5_2_12_rate_in",{"$f":"'T2-B(PP2)'!$E$382","v":0},"#'T2-B(PP2)'!$E$382"]
["pp2_bl5_2_12_rate_out",{"$f":"'T2-B(PP2)'!$H$382","v":0},"#'T2-B(PP2)'!$H$382"]
["pp2_bl5_2_12_total",{"$f":"'T2-B(PP2)'!$J$382","v":0},"#'T2-B(PP2)'!$J$382"]
["pp2_bl5_2_12_total_in",{"$f":"'T2-B(PP2)'!$F$382","v":0},"#'T2-B(PP2)'!$F$382"]
["pp2_bl5_2_12_total_out",{"$f":"'T2-B(PP2)'!$I$382","v":0},"#'T2-B(PP2)'!$I$382"]
["pp2_bl5_2_12_unit",{"$f":"'T2-B(PP2)'!$C$382","v":0},"#'T2-B(PP2)'!$C$382"]
["pp2_bl5_2_12_unit_in",{"$f":"'T2-B(PP2)'!$D$382","v":0},"#'T2-B(PP2)'!$D$382"]
["pp2_bl5_2_12_units_out",{"$f":"'T2-B(PP2)'!$G$382","v":0},"#'T2-B(PP2)'!$G$382"]
["pp2_bl5_2_13_name",{"$f":"'T2-B(PP2)'!$B$383","v":0},"#'T2-B(PP2)'!$B$383"]
["pp2_bl5_2_13_rate_in",{"$f":"'T2-B(PP2)'!$E$383","v":0},"#'T2-B(PP2)'!$E$383"]
["pp2_bl5_2_13_rate_out",{"$f":"'T2-B(PP2)'!$H$383","v":0},"#'T2-B(PP2)'!$H$383"]
["pp2_bl5_2_13_total",{"$f":"'T2-B(PP2)'!$J$383","v":0},"#'T2-B(PP2)'!$J$383"]
["pp2_bl5_2_13_total_in",{"$f":"'T2-B(PP2)'!$F$383","v":0},"#'T2-B(PP2)'!$F$383"]
["pp2_bl5_2_13_total_out",{"$f":"'T2-B(PP2)'!$I$383","v":0},"#'T2-B(PP2)'!$I$383"]
["pp2_bl5_2_13_unit",{"$f":"'T2-B(PP2)'!$C$383","v":0},"#'T2-B(PP2)'!$C$383"]
["pp2_bl5_2_13_unit_in",{"$f":"'T2-B(PP2)'!$D$383","v":0},"#'T2-B(PP2)'!$D$383"]
["pp2_bl5_2_13_units_out",{"$f":"'T2-B(PP2)'!$G$383","v":0},"#'T2-B(PP2)'!$G$383"]
["pp2_bl5_2_14_name",{"$f":"'T2-B(PP2)'!$B$384","v":0},"#'T2-B(PP2)'!$B$384"]
["pp2_bl5_2_14_rate_in",{"$f":"'T2-B(PP2)'!$E$384","v":0},"#'T2-B(PP2)'!$E$384"]
["pp2_bl5_2_14_rate_out",{"$f":"'T2-B(PP2)'!$H$384","v":0},"#'T2-B(PP2)'!$H$384"]
["pp2_bl5_2_14_total",{"$f":"'T2-B(PP2)'!$J$384","v":0},"#'T2-B(PP2)'!$J$384"]
["pp2_bl5_2_14_total_in",{"$f":"'T2-B(PP2)'!$F$384","v":0},"#'T2-B(PP2)'!$F$384"]
["pp2_bl5_2_14_total_out",{"$f":"'T2-B(PP2)'!$I$384","v":0},"#'T2-B(PP2)'!$I$384"]
["pp2_bl5_2_14_unit",{"$f":"'T2-B(PP2)'!$C$384","v":0},"#'T2-B(PP2)'!$C$384"]
["pp2_bl5_2_14_unit_in",{"$f":"'T2-B(PP2)'!$D$384","v":0},"#'T2-B(PP2)'!$D$384"]
["pp2_bl5_2_14_units_out",{"$f":"'T2-B(PP2)'!$G$384","v":0},"#'T2-B(PP2)'!$G$384"]
["pp2_bl5_2_15_name",{"$f":"'T2-B(PP2)'!$B$385","v":0},"#'T2-B(PP2)'!$B$385"]
["pp2_bl5_2_15_rate_in",{"$f":"'T2-B(PP2)'!$E$385","v":0},"#'T2-B(PP2)'!$E$385"]
["pp2_bl5_2_15_rate_out",{"$f":"'T2-B(PP2)'!$H$385","v":0},"#'T2-B(PP2)'!$H$385"]
["pp2_bl5_2_15_total",{"$f":"'T2-B(PP2)'!$J$385","v":0},"#'T2-B(PP2)'!$J$385"]
["pp2_bl5_2_15_total_in",{"$f":"'T2-B(PP2)'!$F$385","v":0},"#'T2-B(PP2)'!$F$385"]
["pp2_bl5_2_15_total_out",{"$f":"'T2-B(PP2)'!$I$385","v":0},"#'T2-B(PP2)'!$I$385"]
["pp2_bl5_2_15_unit",{"$f":"'T2-B(PP2)'!$C$385","v":0},"#'T2-B(PP2)'!$C$385"]
["pp2_bl5_2_15_unit_in",{"$f":"'T2-B(PP2)'!$D$385","v":0},"#'T2-B(PP2)'!$D$385"]
["pp2_bl5_2_15_units_out",{"$f":"'T2-B(PP2)'!$G$385","v":0},"#'T2-B(PP2)'!$G$385"]
["pp2_bl5_2_16_name",{"$f":"'T2-B(PP2)'!$B$386","v":0},"#'T2-B(PP2)'!$B$386"]
["pp2_bl5_2_16_rate_in",{"$f":"'T2-B(PP2)'!$E$386","v":0},"#'T2-B(PP2)'!$E$386"]
["pp2_bl5_2_16_rate_out",{"$f":"'T2-B(PP2)'!$H$386","v":0},"#'T2-B(PP2)'!$H$386"]
["pp2_bl5_2_16_total",{"$f":"'T2-B(PP2)'!$J$386","v":0},"#'T2-B(PP2)'!$J$386"]
["pp2_bl5_2_16_total_in",{"$f":"'T2-B(PP2)'!$F$386","v":0},"#'T2-B(PP2)'!$F$386"]
["pp2_bl5_2_16_total_out",{"$f":"'T2-B(PP2)'!$I$386","v":0},"#'T2-B(PP2)'!$I$386"]
["pp2_bl5_2_16_unit",{"$f":"'T2-B(PP2)'!$C$386","v":0},"#'T2-B(PP2)'!$C$386"]
["pp2_bl5_2_16_unit_in",{"$f":"'T2-B(PP2)'!$D$386","v":0},"#'T2-B(PP2)'!$D$386"]
["pp2_bl5_2_16_units_out",{"$f":"'T2-B(PP2)'!$G$386","v":0},"#'T2-B(PP2)'!$G$386"]
["pp2_bl5_2_17_name",{"$f":"'T2-B(PP2)'!$B$387","v":0},"#'T2-B(PP2)'!$B$387"]
["pp2_bl5_2_17_rate_in",{"$f":"'T2-B(PP2)'!$E$387","v":0},"#'T2-B(PP2)'!$E$387"]
["pp2_bl5_2_17_rate_out",{"$f":"'T2-B(PP2)'!$H$387","v":0},"#'T2-B(PP2)'!$H$387"]
["pp2_bl5_2_17_total",{"$f":"'T2-B(PP2)'!$J$387","v":0},"#'T2-B(PP2)'!$J$387"]
["pp2_bl5_2_17_total_in",{"$f":"'T2-B(PP2)'!$F$387","v":0},"#'T2-B(PP2)'!$F$387"]
["pp2_bl5_2_17_total_out",{"$f":"'T2-B(PP2)'!$I$387","v":0},"#'T2-B(PP2)'!$I$387"]
["pp2_bl5_2_17_unit",{"$f":"'T2-B(PP2)'!$C$387","v":0},"#'T2-B(PP2)'!$C$387"]
["pp2_bl5_2_17_unit_in",{"$f":"'T2-B(PP2)'!$D$387","v":0},"#'T2-B(PP2)'!$D$387"]
["pp2_bl5_2_17_units_out",{"$f":"'T2-B(PP2)'!$G$387","v":0},"#'T2-B(PP2)'!$G$387"]
["pp2_bl5_2_18_name",{"$f":"'T2-B(PP2)'!$B$388","v":0},"#'T2-B(PP2)'!$B$388"]
["pp2_bl5_2_18_rate_in",{"$f":"'T2-B(PP2)'!$E$388","v":0},"#'T2-B(PP2)'!$E$388"]
["pp2_bl5_2_18_rate_out",{"$f":"'T2-B(PP2)'!$H$388","v":0},"#'T2-B(PP2)'!$H$388"]
["pp2_bl5_2_18_total",{"$f":"'T2-B(PP2)'!$J$388","v":0},"#'T2-B(PP2)'!$J$388"]
["pp2_bl5_2_18_total_in",{"$f":"'T2-B(PP2)'!$F$388","v":0},"#'T2-B(PP2)'!$F$388"]
["pp2_bl5_2_18_total_out",{"$f":"'T2-B(PP2)'!$I$388","v":0},"#'T2-B(PP2)'!$I$388"]
["pp2_bl5_2_18_unit",{"$f":"'T2-B(PP2)'!$C$388","v":0},"#'T2-B(PP2)'!$C$388"]
["pp2_bl5_2_18_unit_in",{"$f":"'T2-B(PP2)'!$D$388","v":0},"#'T2-B(PP2)'!$D$388"]
["pp2_bl5_2_18_units_out",{"$f":"'T2-B(PP2)'!$G$388","v":0},"#'T2-B(PP2)'!$G$388"]
["pp2_bl5_2_19_name",{"$f":"'T2-B(PP2)'!$B$389","v":0},"#'T2-B(PP2)'!$B$389"]
["pp2_bl5_2_19_rate_in",{"$f":"'T2-B(PP2)'!$E$389","v":0},"#'T2-B(PP2)'!$E$389"]
["pp2_bl5_2_19_rate_out",{"$f":"'T2-B(PP2)'!$H$389","v":0},"#'T2-B(PP2)'!$H$389"]
["pp2_bl5_2_19_total",{"$f":"'T2-B(PP2)'!$J$389","v":0},"#'T2-B(PP2)'!$J$389"]
["pp2_bl5_2_19_total_in",{"$f":"'T2-B(PP2)'!$F$389","v":0},"#'T2-B(PP2)'!$F$389"]
["pp2_bl5_2_19_total_out",{"$f":"'T2-B(PP2)'!$I$389","v":0},"#'T2-B(PP2)'!$I$389"]
["pp2_bl5_2_19_unit",{"$f":"'T2-B(PP2)'!$C$389","v":0},"#'T2-B(PP2)'!$C$389"]
["pp2_bl5_2_19_unit_in",{"$f":"'T2-B(PP2)'!$D$389","v":0},"#'T2-B(PP2)'!$D$389"]
["pp2_bl5_2_19_units_out",{"$f":"'T2-B(PP2)'!$G$389","v":0},"#'T2-B(PP2)'!$G$389"]
["pp2_bl5_2_2_name",{"$f":"'T2-B(PP2)'!$B$372","v":0},"#'T2-B(PP2)'!$B$372"]
["pp2_bl5_2_2_rate_in",{"$f":"'T2-B(PP2)'!$E$372","v":0},"#'T2-B(PP2)'!$E$372"]
["pp2_bl5_2_2_rate_out",{"$f":"'T2-B(PP2)'!$H$372","v":0},"#'T2-B(PP2)'!$H$372"]
["pp2_bl5_2_2_total",{"$f":"'T2-B(PP2)'!$J$372","v":0},"#'T2-B(PP2)'!$J$372"]
["pp2_bl5_2_2_total_in",{"$f":"'T2-B(PP2)'!$F$372","v":0},"#'T2-B(PP2)'!$F$372"]
["pp2_bl5_2_2_total_out",{"$f":"'T2-B(PP2)'!$I$372","v":0},"#'T2-B(PP2)'!$I$372"]
["pp2_bl5_2_2_unit",{"$f":"'T2-B(PP2)'!$C$372","v":0},"#'T2-B(PP2)'!$C$372"]
["pp2_bl5_2_2_unit_in",{"$f":"'T2-B(PP2)'!$D$372","v":0},"#'T2-B(PP2)'!$D$372"]
["pp2_bl5_2_2_units_out",{"$f":"'T2-B(PP2)'!$G$372","v":0},"#'T2-B(PP2)'!$G$372"]
["pp2_bl5_2_20_name",{"$f":"'T2-B(PP2)'!$B$390","v":0},"#'T2-B(PP2)'!$B$390"]
["pp2_bl5_2_20_rate_in",{"$f":"'T2-B(PP2)'!$E$390","v":0},"#'T2-B(PP2)'!$E$390"]
["pp2_bl5_2_20_rate_out",{"$f":"'T2-B(PP2)'!$H$390","v":0},"#'T2-B(PP2)'!$H$390"]
["pp2_bl5_2_20_total",{"$f":"'T2-B(PP2)'!$J$390","v":0},"#'T2-B(PP2)'!$J$390"]
["pp2_bl5_2_20_total_in",{"$f":"'T2-B(PP2)'!$F$390","v":0},"#'T2-B(PP2)'!$F$390"]
["pp2_bl5_2_20_total_out",{"$f":"'T2-B(PP2)'!$I$390","v":0},"#'T2-B(PP2)'!$I$390"]
["pp2_bl5_2_20_unit",{"$f":"'T2-B(PP2)'!$C$390","v":0},"#'T2-B(PP2)'!$C$390"]
["pp2_bl5_2_20_unit_in",{"$f":"'T2-B(PP2)'!$D$390","v":0},"#'T2-B(PP2)'!$D$390"]
["pp2_bl5_2_20_units_out",{"$f":"'T2-B(PP2)'!$G$390","v":0},"#'T2-B(PP2)'!$G$390"]
["pp2_bl5_2_3_name",{"$f":"'T2-B(PP2)'!$B$373","v":0},"#'T2-B(PP2)'!$B$373"]
["pp2_bl5_2_3_rate_in",{"$f":"'T2-B(PP2)'!$E$373","v":0},"#'T2-B(PP2)'!$E$373"]
["pp2_bl5_2_3_rate_out",{"$f":"'T2-B(PP2)'!$H$373","v":0},"#'T2-B(PP2)'!$H$373"]
["pp2_bl5_2_3_total",{"$f":"'T2-B(PP2)'!$J$373","v":0},"#'T2-B(PP2)'!$J$373"]
["pp2_bl5_2_3_total_in",{"$f":"'T2-B(PP2)'!$F$373","v":0},"#'T2-B(PP2)'!$F$373"]
["pp2_bl5_2_3_total_out",{"$f":"'T2-B(PP2)'!$I$373","v":0},"#'T2-B(PP2)'!$I$373"]
["pp2_bl5_2_3_unit",{"$f":"'T2-B(PP2)'!$C$373","v":0},"#'T2-B(PP2)'!$C$373"]
["pp2_bl5_2_3_unit_in",{"$f":"'T2-B(PP2)'!$D$373","v":0},"#'T2-B(PP2)'!$D$373"]
["pp2_bl5_2_3_units_out",{"$f":"'T2-B(PP2)'!$G$373","v":0},"#'T2-B(PP2)'!$G$373"]
["pp2_bl5_2_4_name",{"$f":"'T2-B(PP2)'!$B$374","v":0},"#'T2-B(PP2)'!$B$374"]
["pp2_bl5_2_4_rate_in",{"$f":"'T2-B(PP2)'!$E$374","v":0},"#'T2-B(PP2)'!$E$374"]
["pp2_bl5_2_4_rate_out",{"$f":"'T2-B(PP2)'!$H$374","v":0},"#'T2-B(PP2)'!$H$374"]
["pp2_bl5_2_4_total",{"$f":"'T2-B(PP2)'!$J$374","v":0},"#'T2-B(PP2)'!$J$374"]
["pp2_bl5_2_4_total_in",{"$f":"'T2-B(PP2)'!$F$374","v":0},"#'T2-B(PP2)'!$F$374"]
["pp2_bl5_2_4_total_out",{"$f":"'T2-B(PP2)'!$I$374","v":0},"#'T2-B(PP2)'!$I$374"]
["pp2_bl5_2_4_unit",{"$f":"'T2-B(PP2)'!$C$374","v":0},"#'T2-B(PP2)'!$C$374"]
["pp2_bl5_2_4_unit_in",{"$f":"'T2-B(PP2)'!$D$374","v":0},"#'T2-B(PP2)'!$D$374"]
["pp2_bl5_2_4_units_out",{"$f":"'T2-B(PP2)'!$G$374","v":0},"#'T2-B(PP2)'!$G$374"]
["pp2_bl5_2_5_name",{"$f":"'T2-B(PP2)'!$B$375","v":0},"#'T2-B(PP2)'!$B$375"]
["pp2_bl5_2_5_rate_in",{"$f":"'T2-B(PP2)'!$E$375","v":0},"#'T2-B(PP2)'!$E$375"]
["pp2_bl5_2_5_rate_out",{"$f":"'T2-B(PP2)'!$H$375","v":0},"#'T2-B(PP2)'!$H$375"]
["pp2_bl5_2_5_total",{"$f":"'T2-B(PP2)'!$J$375","v":0},"#'T2-B(PP2)'!$J$375"]
["pp2_bl5_2_5_total_in",{"$f":"'T2-B(PP2)'!$F$375","v":0},"#'T2-B(PP2)'!$F$375"]
["pp2_bl5_2_5_total_out",{"$f":"'T2-B(PP2)'!$I$375","v":0},"#'T2-B(PP2)'!$I$375"]
["pp2_bl5_2_5_unit",{"$f":"'T2-B(PP2)'!$C$375","v":0},"#'T2-B(PP2)'!$C$375"]
["pp2_bl5_2_5_unit_in",{"$f":"'T2-B(PP2)'!$D$375","v":0},"#'T2-B(PP2)'!$D$375"]
["pp2_bl5_2_5_units_out",{"$f":"'T2-B(PP2)'!$G$375","v":0},"#'T2-B(PP2)'!$G$375"]
["pp2_bl5_2_6_name",{"$f":"'T2-B(PP2)'!$B$376","v":0},"#'T2-B(PP2)'!$B$376"]
["pp2_bl5_2_6_rate_in",{"$f":"'T2-B(PP2)'!$E$376","v":0},"#'T2-B(PP2)'!$E$376"]
["pp2_bl5_2_6_rate_out",{"$f":"'T2-B(PP2)'!$H$376","v":0},"#'T2-B(PP2)'!$H$376"]
["pp2_bl5_2_6_total",{"$f":"'T2-B(PP2)'!$J$376","v":0},"#'T2-B(PP2)'!$J$376"]
["pp2_bl5_2_6_total_in",{"$f":"'T2-B(PP2)'!$F$376","v":0},"#'T2-B(PP2)'!$F$376"]
["pp2_bl5_2_6_total_out",{"$f":"'T2-B(PP2)'!$I$376","v":0},"#'T2-B(PP2)'!$I$376"]
["pp2_bl5_2_6_unit",{"$f":"'T2-B(PP2)'!$C$376","v":0},"#'T2-B(PP2)'!$C$376"]
["pp2_bl5_2_6_unit_in",{"$f":"'T2-B(PP2)'!$D$376","v":0},"#'T2-B(PP2)'!$D$376"]
["pp2_bl5_2_6_units_out",{"$f":"'T2-B(PP2)'!$G$376","v":0},"#'T2-B(PP2)'!$G$376"]
["pp2_bl5_2_7_name",{"$f":"'T2-B(PP2)'!$B$377","v":0},"#'T2-B(PP2)'!$B$377"]
["pp2_bl5_2_7_rate_in",{"$f":"'T2-B(PP2)'!$E$377","v":0},"#'T2-B(PP2)'!$E$377"]
["pp2_bl5_2_7_rate_out",{"$f":"'T2-B(PP2)'!$H$377","v":0},"#'T2-B(PP2)'!$H$377"]
["pp2_bl5_2_7_total",{"$f":"'T2-B(PP2)'!$J$377","v":0},"#'T2-B(PP2)'!$J$377"]
["pp2_bl5_2_7_total_in",{"$f":"'T2-B(PP2)'!$F$377","v":0},"#'T2-B(PP2)'!$F$377"]
["pp2_bl5_2_7_total_out",{"$f":"'T2-B(PP2)'!$I$377","v":0},"#'T2-B(PP2)'!$I$377"]
["pp2_bl5_2_7_unit",{"$f":"'T2-B(PP2)'!$C$377","v":0},"#'T2-B(PP2)'!$C$377"]
["pp2_bl5_2_7_unit_in",{"$f":"'T2-B(PP2)'!$D$377","v":0},"#'T2-B(PP2)'!$D$377"]
["pp2_bl5_2_7_units_out",{"$f":"'T2-B(PP2)'!$G$377","v":0},"#'T2-B(PP2)'!$G$377"]
["pp2_bl5_2_8_name",{"$f":"'T2-B(PP2)'!$B$378","v":0},"#'T2-B(PP2)'!$B$378"]
["pp2_bl5_2_8_rate_in",{"$f":"'T2-B(PP2)'!$E$378","v":0},"#'T2-B(PP2)'!$E$378"]
["pp2_bl5_2_8_rate_out",{"$f":"'T2-B(PP2)'!$H$378","v":0},"#'T2-B(PP2)'!$H$378"]
["pp2_bl5_2_8_total",{"$f":"'T2-B(PP2)'!$J$378","v":0},"#'T2-B(PP2)'!$J$378"]
["pp2_bl5_2_8_total_in",{"$f":"'T2-B(PP2)'!$F$378","v":0},"#'T2-B(PP2)'!$F$378"]
["pp2_bl5_2_8_total_out",{"$f":"'T2-B(PP2)'!$I$378","v":0},"#'T2-B(PP2)'!$I$378"]
["pp2_bl5_2_8_unit",{"$f":"'T2-B(PP2)'!$C$378","v":0},"#'T2-B(PP2)'!$C$378"]
["pp2_bl5_2_8_unit_in",{"$f":"'T2-B(PP2)'!$D$378","v":0},"#'T2-B(PP2)'!$D$378"]
["pp2_bl5_2_8_units_out",{"$f":"'T2-B(PP2)'!$G$378","v":0},"#'T2-B(PP2)'!$G$378"]
["pp2_bl5_2_9_name",{"$f":"'T2-B(PP2)'!$B$379","v":0},"#'T2-B(PP2)'!$B$379"]
["pp2_bl5_2_9_rate_in",{"$f":"'T2-B(PP2)'!$E$379","v":0},"#'T2-B(PP2)'!$E$379"]
["pp2_bl5_2_9_rate_out",{"$f":"'T2-B(PP2)'!$H$379","v":0},"#'T2-B(PP2)'!$H$379"]
["pp2_bl5_2_9_total",{"$f":"'T2-B(PP2)'!$J$379","v":0},"#'T2-B(PP2)'!$J$379"]
["pp2_bl5_2_9_total_in",{"$f":"'T2-B(PP2)'!$F$379","v":0},"#'T2-B(PP2)'!$F$379"]
["pp2_bl5_2_9_total_out",{"$f":"'T2-B(PP2)'!$I$379","v":0},"#'T2-B(PP2)'!$I$379"]
["pp2_bl5_2_9_unit",{"$f":"'T2-B(PP2)'!$C$379","v":0},"#'T2-B(PP2)'!$C$379"]
["pp2_bl5_2_9_unit_in",{"$f":"'T2-B(PP2)'!$D$379","v":0},"#'T2-B(PP2)'!$D$379"]
["pp2_bl5_2_9_units_out",{"$f":"'T2-B(PP2)'!$G$379","v":0},"#'T2-B(PP2)'!$G$379"]
["pp2_bl5_2_total",{"$f":"'T2-B(PP2)'!$J$370","v":0},"#'T2-B(PP2)'!$J$370"]
["pp2_bl5_2_total_in",{"$f":"'T2-B(PP2)'!$F$370","v":0},"#'T2-B(PP2)'!$F$370"]
["pp2_bl5_2_total_out",{"$f":"'T2-B(PP2)'!$I$370","v":0},"#'T2-B(PP2)'!$I$370"]
["pp2_bl5_total",{"$f":"'T2-B(PP2)'!$J$391","v":0},"#'T2-B(PP2)'!$J$391"]
["pp2_bl5_total_in",{"$f":"'T2-B(PP2)'!$F$391","v":0},"#'T2-B(PP2)'!$F$391"]
["pp2_bl5_total_out",{"$f":"'T2-B(PP2)'!$I$391","v":0},"#'T2-B(PP2)'!$I$391"]
["pp2_bl6_1_1_name",{"$f":"'T2-B(PP2)'!$B$396","v":0},"#'T2-B(PP2)'!$B$396"]
["pp2_bl6_1_1_rate_in",{"$f":"'T2-B(PP2)'!$E$396","v":0},"#'T2-B(PP2)'!$E$396"]
["pp2_bl6_1_1_rate_out",{"$f":"'T2-B(PP2)'!$H$396","v":0},"#'T2-B(PP2)'!$H$396"]
["pp2_bl6_1_1_total",{"$f":"'T2-B(PP2)'!$J$396","v":0},"#'T2-B(PP2)'!$J$396"]
["pp2_bl6_1_1_total_in",{"$f":"'T2-B(PP2)'!$F$396","v":0},"#'T2-B(PP2)'!$F$396"]
["pp2_bl6_1_1_total_out",{"$f":"'T2-B(PP2)'!$I$396","v":0},"#'T2-B(PP2)'!$I$396"]
["pp2_bl6_1_1_unit",{"$f":"'T2-B(PP2)'!$C$396","v":0},"#'T2-B(PP2)'!$C$396"]
["pp2_bl6_1_1_unit_in",{"$f":"'T2-B(PP2)'!$D$396","v":0},"#'T2-B(PP2)'!$D$396"]
["pp2_bl6_1_1_units_out",{"$f":"'T2-B(PP2)'!$G$396","v":0},"#'T2-B(PP2)'!$G$396"]
["pp2_bl6_1_10_name",{"$f":"'T2-B(PP2)'!$B$405","v":0},"#'T2-B(PP2)'!$B$405"]
["pp2_bl6_1_10_rate_in",{"$f":"'T2-B(PP2)'!$E$405","v":0},"#'T2-B(PP2)'!$E$405"]
["pp2_bl6_1_10_rate_out",{"$f":"'T2-B(PP2)'!$H$405","v":0},"#'T2-B(PP2)'!$H$405"]
["pp2_bl6_1_10_total",{"$f":"'T2-B(PP2)'!$J$405","v":0},"#'T2-B(PP2)'!$J$405"]
["pp2_bl6_1_10_total_in",{"$f":"'T2-B(PP2)'!$F$405","v":0},"#'T2-B(PP2)'!$F$405"]
["pp2_bl6_1_10_total_out",{"$f":"'T2-B(PP2)'!$I$405","v":0},"#'T2-B(PP2)'!$I$405"]
["pp2_bl6_1_10_unit",{"$f":"'T2-B(PP2)'!$C$405","v":0},"#'T2-B(PP2)'!$C$405"]
["pp2_bl6_1_10_unit_in",{"$f":"'T2-B(PP2)'!$D$405","v":0},"#'T2-B(PP2)'!$D$405"]
["pp2_bl6_1_10_units_out",{"$f":"'T2-B(PP2)'!$G$405","v":0},"#'T2-B(PP2)'!$G$405"]
["pp2_bl6_1_2_name",{"$f":"'T2-B(PP2)'!$B$397","v":0},"#'T2-B(PP2)'!$B$397"]
["pp2_bl6_1_2_rate_in",{"$f":"'T2-B(PP2)'!$E$397","v":0},"#'T2-B(PP2)'!$E$397"]
["pp2_bl6_1_2_rate_out",{"$f":"'T2-B(PP2)'!$H$397","v":0},"#'T2-B(PP2)'!$H$397"]
["pp2_bl6_1_2_total",{"$f":"'T2-B(PP2)'!$J$397","v":0},"#'T2-B(PP2)'!$J$397"]
["pp2_bl6_1_2_total_in",{"$f":"'T2-B(PP2)'!$F$397","v":0},"#'T2-B(PP2)'!$F$397"]
["pp2_bl6_1_2_total_out",{"$f":"'T2-B(PP2)'!$I$397","v":0},"#'T2-B(PP2)'!$I$397"]
["pp2_bl6_1_2_unit",{"$f":"'T2-B(PP2)'!$C$397","v":0},"#'T2-B(PP2)'!$C$397"]
["pp2_bl6_1_2_unit_in",{"$f":"'T2-B(PP2)'!$D$397","v":0},"#'T2-B(PP2)'!$D$397"]
["pp2_bl6_1_2_units_out",{"$f":"'T2-B(PP2)'!$G$397","v":0},"#'T2-B(PP2)'!$G$397"]
["pp2_bl6_1_3_name",{"$f":"'T2-B(PP2)'!$B$398","v":0},"#'T2-B(PP2)'!$B$398"]
["pp2_bl6_1_3_rate_in",{"$f":"'T2-B(PP2)'!$E$398","v":0},"#'T2-B(PP2)'!$E$398"]
["pp2_bl6_1_3_rate_out",{"$f":"'T2-B(PP2)'!$H$398","v":0},"#'T2-B(PP2)'!$H$398"]
["pp2_bl6_1_3_total",{"$f":"'T2-B(PP2)'!$J$398","v":0},"#'T2-B(PP2)'!$J$398"]
["pp2_bl6_1_3_total_in",{"$f":"'T2-B(PP2)'!$F$398","v":0},"#'T2-B(PP2)'!$F$398"]
["pp2_bl6_1_3_total_out",{"$f":"'T2-B(PP2)'!$I$398","v":0},"#'T2-B(PP2)'!$I$398"]
["pp2_bl6_1_3_unit",{"$f":"'T2-B(PP2)'!$C$398","v":0},"#'T2-B(PP2)'!$C$398"]
["pp2_bl6_1_3_unit_in",{"$f":"'T2-B(PP2)'!$D$398","v":0},"#'T2-B(PP2)'!$D$398"]
["pp2_bl6_1_3_units_out",{"$f":"'T2-B(PP2)'!$G$398","v":0},"#'T2-B(PP2)'!$G$398"]
["pp2_bl6_1_4_name",{"$f":"'T2-B(PP2)'!$B$399","v":0},"#'T2-B(PP2)'!$B$399"]
["pp2_bl6_1_4_rate_in",{"$f":"'T2-B(PP2)'!$E$399","v":0},"#'T2-B(PP2)'!$E$399"]
["pp2_bl6_1_4_rate_out",{"$f":"'T2-B(PP2)'!$H$399","v":0},"#'T2-B(PP2)'!$H$399"]
["pp2_bl6_1_4_total",{"$f":"'T2-B(PP2)'!$J$399","v":0},"#'T2-B(PP2)'!$J$399"]
["pp2_bl6_1_4_total_in",{"$f":"'T2-B(PP2)'!$F$399","v":0},"#'T2-B(PP2)'!$F$399"]
["pp2_bl6_1_4_total_out",{"$f":"'T2-B(PP2)'!$I$399","v":0},"#'T2-B(PP2)'!$I$399"]
["pp2_bl6_1_4_unit",{"$f":"'T2-B(PP2)'!$C$399","v":0},"#'T2-B(PP2)'!$C$399"]
["pp2_bl6_1_4_unit_in",{"$f":"'T2-B(PP2)'!$D$399","v":0},"#'T2-B(PP2)'!$D$399"]
["pp2_bl6_1_4_units_out",{"$f":"'T2-B(PP2)'!$G$399","v":0},"#'T2-B(PP2)'!$G$399"]
["pp2_bl6_1_5_name",{"$f":"'T2-B(PP2)'!$B$400","v":0},"#'T2-B(PP2)'!$B$400"]
["pp2_bl6_1_5_rate_in",{"$f":"'T2-B(PP2)'!$E$400","v":0},"#'T2-B(PP2)'!$E$400"]
["pp2_bl6_1_5_rate_out",{"$f":"'T2-B(PP2)'!$H$400","v":0},"#'T2-B(PP2)'!$H$400"]
["pp2_bl6_1_5_total",{"$f":"'T2-B(PP2)'!$J$400","v":0},"#'T2-B(PP2)'!$J$400"]
["pp2_bl6_1_5_total_in",{"$f":"'T2-B(PP2)'!$F$400","v":0},"#'T2-B(PP2)'!$F$400"]
["pp2_bl6_1_5_total_out",{"$f":"'T2-B(PP2)'!$I$400","v":0},"#'T2-B(PP2)'!$I$400"]
["pp2_bl6_1_5_unit",{"$f":"'T2-B(PP2)'!$C$400","v":0},"#'T2-B(PP2)'!$C$400"]
["pp2_bl6_1_5_unit_in",{"$f":"'T2-B(PP2)'!$D$400","v":0},"#'T2-B(PP2)'!$D$400"]
["pp2_bl6_1_5_units_out",{"$f":"'T2-B(PP2)'!$G$400","v":0},"#'T2-B(PP2)'!$G$400"]
["pp2_bl6_1_6_name",{"$f":"'T2-B(PP2)'!$B$401","v":0},"#'T2-B(PP2)'!$B$401"]
["pp2_bl6_1_6_rate_in",{"$f":"'T2-B(PP2)'!$E$401","v":0},"#'T2-B(PP2)'!$E$401"]
["pp2_bl6_1_6_rate_out",{"$f":"'T2-B(PP2)'!$H$401","v":0},"#'T2-B(PP2)'!$H$401"]
["pp2_bl6_1_6_total",{"$f":"'T2-B(PP2)'!$J$401","v":0},"#'T2-B(PP2)'!$J$401"]
["pp2_bl6_1_6_total_in",{"$f":"'T2-B(PP2)'!$F$401","v":0},"#'T2-B(PP2)'!$F$401"]
["pp2_bl6_1_6_total_out",{"$f":"'T2-B(PP2)'!$I$401","v":0},"#'T2-B(PP2)'!$I$401"]
["pp2_bl6_1_6_unit",{"$f":"'T2-B(PP2)'!$C$401","v":0},"#'T2-B(PP2)'!$C$401"]
["pp2_bl6_1_6_unit_in",{"$f":"'T2-B(PP2)'!$D$401","v":0},"#'T2-B(PP2)'!$D$401"]
["pp2_bl6_1_6_units_out",{"$f":"'T2-B(PP2)'!$G$401","v":0},"#'T2-B(PP2)'!$G$401"]
["pp2_bl6_1_7_name",{"$f":"'T2-B(PP2)'!$B$402","v":0},"#'T2-B(PP2)'!$B$402"]
["pp2_bl6_1_7_rate_in",{"$f":"'T2-B(PP2)'!$E$402","v":0},"#'T2-B(PP2)'!$E$402"]
["pp2_bl6_1_7_rate_out",{"$f":"'T2-B(PP2)'!$H$402","v":0},"#'T2-B(PP2)'!$H$402"]
["pp2_bl6_1_7_total",{"$f":"'T2-B(PP2)'!$J$402","v":0},"#'T2-B(PP2)'!$J$402"]
["pp2_bl6_1_7_total_in",{"$f":"'T2-B(PP2)'!$F$402","v":0},"#'T2-B(PP2)'!$F$402"]
["pp2_bl6_1_7_total_out",{"$f":"'T2-B(PP2)'!$I$402","v":0},"#'T2-B(PP2)'!$I$402"]
["pp2_bl6_1_7_unit",{"$f":"'T2-B(PP2)'!$C$402","v":0},"#'T2-B(PP2)'!$C$402"]
["pp2_bl6_1_7_unit_in",{"$f":"'T2-B(PP2)'!$D$402","v":0},"#'T2-B(PP2)'!$D$402"]
["pp2_bl6_1_7_units_out",{"$f":"'T2-B(PP2)'!$G$402","v":0},"#'T2-B(PP2)'!$G$402"]
["pp2_bl6_1_8_name",{"$f":"'T2-B(PP2)'!$B$403","v":0},"#'T2-B(PP2)'!$B$403"]
["pp2_bl6_1_8_rate_in",{"$f":"'T2-B(PP2)'!$E$403","v":0},"#'T2-B(PP2)'!$E$403"]
["pp2_bl6_1_8_rate_out",{"$f":"'T2-B(PP2)'!$H$403","v":0},"#'T2-B(PP2)'!$H$403"]
["pp2_bl6_1_8_total",{"$f":"'T2-B(PP2)'!$J$403","v":0},"#'T2-B(PP2)'!$J$403"]
["pp2_bl6_1_8_total_in",{"$f":"'T2-B(PP2)'!$F$403","v":0},"#'T2-B(PP2)'!$F$403"]
["pp2_bl6_1_8_total_out",{"$f":"'T2-B(PP2)'!$I$403","v":0},"#'T2-B(PP2)'!$I$403"]
["pp2_bl6_1_8_unit",{"$f":"'T2-B(PP2)'!$C$403","v":0},"#'T2-B(PP2)'!$C$403"]
["pp2_bl6_1_8_unit_in",{"$f":"'T2-B(PP2)'!$D$403","v":0},"#'T2-B(PP2)'!$D$403"]
["pp2_bl6_1_8_units_out",{"$f":"'T2-B(PP2)'!$G$403","v":0},"#'T2-B(PP2)'!$G$403"]
["pp2_bl6_1_9_name",{"$f":"'T2-B(PP2)'!$B$404","v":0},"#'T2-B(PP2)'!$B$404"]
["pp2_bl6_1_9_rate_in",{"$f":"'T2-B(PP2)'!$E$404","v":0},"#'T2-B(PP2)'!$E$404"]
["pp2_bl6_1_9_rate_out",{"$f":"'T2-B(PP2)'!$H$404","v":0},"#'T2-B(PP2)'!$H$404"]
["pp2_bl6_1_9_total",{"$f":"'T2-B(PP2)'!$J$404","v":0},"#'T2-B(PP2)'!$J$404"]
["pp2_bl6_1_9_total_in",{"$f":"'T2-B(PP2)'!$F$404","v":0},"#'T2-B(PP2)'!$F$404"]
["pp2_bl6_1_9_total_out",{"$f":"'T2-B(PP2)'!$I$404","v":0},"#'T2-B(PP2)'!$I$404"]
["pp2_bl6_1_9_unit",{"$f":"'T2-B(PP2)'!$C$404","v":0},"#'T2-B(PP2)'!$C$404"]
["pp2_bl6_1_9_unit_in",{"$f":"'T2-B(PP2)'!$D$404","v":0},"#'T2-B(PP2)'!$D$404"]
["pp2_bl6_1_9_units_out",{"$f":"'T2-B(PP2)'!$G$404","v":0},"#'T2-B(PP2)'!$G$404"]
["pp2_bl6_1_total",{"$f":"'T2-B(PP2)'!$J$395","v":0},"#'T2-B(PP2)'!$J$395"]
["pp2_bl6_1_total_in",{"$f":"'T2-B(PP2)'!$F$395","v":0},"#'T2-B(PP2)'!$F$395"]
["pp2_bl6_1_total_out",{"$f":"'T2-B(PP2)'!$I$395","v":0},"#'T2-B(PP2)'!$I$395"]
["pp2_bl6_2_1_name",{"$f":"'T2-B(PP2)'!$B$407","v":0},"#'T2-B(PP2)'!$B$407"]
["pp2_bl6_2_1_rate_in",{"$f":"'T2-B(PP2)'!$E$407","v":0},"#'T2-B(PP2)'!$E$407"]
["pp2_bl6_2_1_rate_out",{"$f":"'T2-B(PP2)'!$H$407","v":0},"#'T2-B(PP2)'!$H$407"]
["pp2_bl6_2_1_total",{"$f":"'T2-B(PP2)'!$J$407","v":0},"#'T2-B(PP2)'!$J$407"]
["pp2_bl6_2_1_total_in",{"$f":"'T2-B(PP2)'!$F$407","v":0},"#'T2-B(PP2)'!$F$407"]
["pp2_bl6_2_1_total_out",{"$f":"'T2-B(PP2)'!$I$407","v":0},"#'T2-B(PP2)'!$I$407"]
["pp2_bl6_2_1_unit",{"$f":"'T2-B(PP2)'!$C$407","v":0},"#'T2-B(PP2)'!$C$407"]
["pp2_bl6_2_1_unit_in",{"$f":"'T2-B(PP2)'!$D$407","v":0},"#'T2-B(PP2)'!$D$407"]
["pp2_bl6_2_1_units_out",{"$f":"'T2-B(PP2)'!$G$407","v":0},"#'T2-B(PP2)'!$G$407"]
["pp2_bl6_2_10_name",{"$f":"'T2-B(PP2)'!$B$416","v":0},"#'T2-B(PP2)'!$B$416"]
["pp2_bl6_2_10_rate_in",{"$f":"'T2-B(PP2)'!$E$416","v":0},"#'T2-B(PP2)'!$E$416"]
["pp2_bl6_2_10_rate_out",{"$f":"'T2-B(PP2)'!$H$416","v":0},"#'T2-B(PP2)'!$H$416"]
["pp2_bl6_2_10_total",{"$f":"'T2-B(PP2)'!$J$416","v":0},"#'T2-B(PP2)'!$J$416"]
["pp2_bl6_2_10_total_in",{"$f":"'T2-B(PP2)'!$F$416","v":0},"#'T2-B(PP2)'!$F$416"]
["pp2_bl6_2_10_total_out",{"$f":"'T2-B(PP2)'!$I$416","v":0},"#'T2-B(PP2)'!$I$416"]
["pp2_bl6_2_10_unit",{"$f":"'T2-B(PP2)'!$C$416","v":0},"#'T2-B(PP2)'!$C$416"]
["pp2_bl6_2_10_unit_in",{"$f":"'T2-B(PP2)'!$D$416","v":0},"#'T2-B(PP2)'!$D$416"]
["pp2_bl6_2_10_units_out",{"$f":"'T2-B(PP2)'!$G$416","v":0},"#'T2-B(PP2)'!$G$416"]
["pp2_bl6_2_2_name",{"$f":"'T2-B(PP2)'!$B$408","v":0},"#'T2-B(PP2)'!$B$408"]
["pp2_bl6_2_2_rate_in",{"$f":"'T2-B(PP2)'!$E$408","v":0},"#'T2-B(PP2)'!$E$408"]
["pp2_bl6_2_2_rate_out",{"$f":"'T2-B(PP2)'!$H$408","v":0},"#'T2-B(PP2)'!$H$408"]
["pp2_bl6_2_2_total",{"$f":"'T2-B(PP2)'!$J$408","v":0},"#'T2-B(PP2)'!$J$408"]
["pp2_bl6_2_2_total_in",{"$f":"'T2-B(PP2)'!$F$408","v":0},"#'T2-B(PP2)'!$F$408"]
["pp2_bl6_2_2_total_out",{"$f":"'T2-B(PP2)'!$I$408","v":0},"#'T2-B(PP2)'!$I$408"]
["pp2_bl6_2_2_unit",{"$f":"'T2-B(PP2)'!$C$408","v":0},"#'T2-B(PP2)'!$C$408"]
["pp2_bl6_2_2_unit_in",{"$f":"'T2-B(PP2)'!$D$408","v":0},"#'T2-B(PP2)'!$D$408"]
["pp2_bl6_2_2_units_out",{"$f":"'T2-B(PP2)'!$G$408","v":0},"#'T2-B(PP2)'!$G$408"]
["pp2_bl6_2_3_name",{"$f":"'T2-B(PP2)'!$B$409","v":0},"#'T2-B(PP2)'!$B$409"]
["pp2_bl6_2_3_rate_in",{"$f":"'T2-B(PP2)'!$E$409","v":0},"#'T2-B(PP2)'!$E$409"]
["pp2_bl6_2_3_rate_out",{"$f":"'T2-B(PP2)'!$H$409","v":0},"#'T2-B(PP2)'!$H$409"]
["pp2_bl6_2_3_total",{"$f":"'T2-B(PP2)'!$J$409","v":0},"#'T2-B(PP2)'!$J$409"]
["pp2_bl6_2_3_total_in",{"$f":"'T2-B(PP2)'!$F$409","v":0},"#'T2-B(PP2)'!$F$409"]
["pp2_bl6_2_3_total_out",{"$f":"'T2-B(PP2)'!$I$409","v":0},"#'T2-B(PP2)'!$I$409"]
["pp2_bl6_2_3_unit",{"$f":"'T2-B(PP2)'!$C$409","v":0},"#'T2-B(PP2)'!$C$409"]
["pp2_bl6_2_3_unit_in",{"$f":"'T2-B(PP2)'!$D$409","v":0},"#'T2-B(PP2)'!$D$409"]
["pp2_bl6_2_3_units_out",{"$f":"'T2-B(PP2)'!$G$409","v":0},"#'T2-B(PP2)'!$G$409"]
["pp2_bl6_2_4_name",{"$f":"'T2-B(PP2)'!$B$410","v":0},"#'T2-B(PP2)'!$B$410"]
["pp2_bl6_2_4_rate_in",{"$f":"'T2-B(PP2)'!$E$410","v":0},"#'T2-B(PP2)'!$E$410"]
["pp2_bl6_2_4_rate_out",{"$f":"'T2-B(PP2)'!$H$410","v":0},"#'T2-B(PP2)'!$H$410"]
["pp2_bl6_2_4_total",{"$f":"'T2-B(PP2)'!$J$410","v":0},"#'T2-B(PP2)'!$J$410"]
["pp2_bl6_2_4_total_in",{"$f":"'T2-B(PP2)'!$F$410","v":0},"#'T2-B(PP2)'!$F$410"]
["pp2_bl6_2_4_total_out",{"$f":"'T2-B(PP2)'!$I$410","v":0},"#'T2-B(PP2)'!$I$410"]
["pp2_bl6_2_4_unit",{"$f":"'T2-B(PP2)'!$C$410","v":0},"#'T2-B(PP2)'!$C$410"]
["pp2_bl6_2_4_unit_in",{"$f":"'T2-B(PP2)'!$D$410","v":0},"#'T2-B(PP2)'!$D$410"]
["pp2_bl6_2_4_units_out",{"$f":"'T2-B(PP2)'!$G$410","v":0},"#'T2-B(PP2)'!$G$410"]
["pp2_bl6_2_5_name",{"$f":"'T2-B(PP2)'!$B$411","v":0},"#'T2-B(PP2)'!$B$411"]
["pp2_bl6_2_5_rate_in",{"$f":"'T2-B(PP2)'!$E$411","v":0},"#'T2-B(PP2)'!$E$411"]
["pp2_bl6_2_5_rate_out",{"$f":"'T2-B(PP2)'!$H$411","v":0},"#'T2-B(PP2)'!$H$411"]
["pp2_bl6_2_5_total",{"$f":"'T2-B(PP2)'!$J$411","v":0},"#'T2-B(PP2)'!$J$411"]
["pp2_bl6_2_5_total_in",{"$f":"'T2-B(PP2)'!$F$411","v":0},"#'T2-B(PP2)'!$F$411"]
["pp2_bl6_2_5_total_out",{"$f":"'T2-B(PP2)'!$I$411","v":0},"#'T2-B(PP2)'!$I$411"]
["pp2_bl6_2_5_unit",{"$f":"'T2-B(PP2)'!$C$411","v":0},"#'T2-B(PP2)'!$C$411"]
["pp2_bl6_2_5_unit_in",{"$f":"'T2-B(PP2)'!$D$411","v":0},"#'T2-B(PP2)'!$D$411"]
["pp2_bl6_2_5_units_out",{"$f":"'T2-B(PP2)'!$G$411","v":0},"#'T2-B(PP2)'!$G$411"]
["pp2_bl6_2_6_name",{"$f":"'T2-B(PP2)'!$B$412","v":0},"#'T2-B(PP2)'!$B$412"]
["pp2_bl6_2_6_rate_in",{"$f":"'T2-B(PP2)'!$E$412","v":0},"#'T2-B(PP2)'!$E$412"]
["pp2_bl6_2_6_rate_out",{"$f":"'T2-B(PP2)'!$H$412","v":0},"#'T2-B(PP2)'!$H$412"]
["pp2_bl6_2_6_total",{"$f":"'T2-B(PP2)'!$J$412","v":0},"#'T2-B(PP2)'!$J$412"]
["pp2_bl6_2_6_total_in",{"$f":"'T2-B(PP2)'!$F$412","v":0},"#'T2-B(PP2)'!$F$412"]
["pp2_bl6_2_6_total_out",{"$f":"'T2-B(PP2)'!$I$412","v":0},"#'T2-B(PP2)'!$I$412"]
["pp2_bl6_2_6_unit",{"$f":"'T2-B(PP2)'!$C$412","v":0},"#'T2-B(PP2)'!$C$412"]
["pp2_bl6_2_6_unit_in",{"$f":"'T2-B(PP2)'!$D$412","v":0},"#'T2-B(PP2)'!$D$412"]
["pp2_bl6_2_6_units_out",{"$f":"'T2-B(PP2)'!$G$412","v":0},"#'T2-B(PP2)'!$G$412"]
["pp2_bl6_2_7_name",{"$f":"'T2-B(PP2)'!$B$413","v":0},"#'T2-B(PP2)'!$B$413"]
["pp2_bl6_2_7_rate_in",{"$f":"'T2-B(PP2)'!$E$413","v":0},"#'T2-B(PP2)'!$E$413"]
["pp2_bl6_2_7_rate_out",{"$f":"'T2-B(PP2)'!$H$413","v":0},"#'T2-B(PP2)'!$H$413"]
["pp2_bl6_2_7_total",{"$f":"'T2-B(PP2)'!$J$413","v":0},"#'T2-B(PP2)'!$J$413"]
["pp2_bl6_2_7_total_in",{"$f":"'T2-B(PP2)'!$F$413","v":0},"#'T2-B(PP2)'!$F$413"]
["pp2_bl6_2_7_total_out",{"$f":"'T2-B(PP2)'!$I$413","v":0},"#'T2-B(PP2)'!$I$413"]
["pp2_bl6_2_7_unit",{"$f":"'T2-B(PP2)'!$C$413","v":0},"#'T2-B(PP2)'!$C$413"]
["pp2_bl6_2_7_unit_in",{"$f":"'T2-B(PP2)'!$D$413","v":0},"#'T2-B(PP2)'!$D$413"]
["pp2_bl6_2_7_units_out",{"$f":"'T2-B(PP2)'!$G$413","v":0},"#'T2-B(PP2)'!$G$413"]
["pp2_bl6_2_8_name",{"$f":"'T2-B(PP2)'!$B$414","v":0},"#'T2-B(PP2)'!$B$414"]
["pp2_bl6_2_8_rate_in",{"$f":"'T2-B(PP2)'!$E$414","v":0},"#'T2-B(PP2)'!$E$414"]
["pp2_bl6_2_8_rate_out",{"$f":"'T2-B(PP2)'!$H$414","v":0},"#'T2-B(PP2)'!$H$414"]
["pp2_bl6_2_8_total",{"$f":"'T2-B(PP2)'!$J$414","v":0},"#'T2-B(PP2)'!$J$414"]
["pp2_bl6_2_8_total_in",{"$f":"'T2-B(PP2)'!$F$414","v":0},"#'T2-B(PP2)'!$F$414"]
["pp2_bl6_2_8_total_out",{"$f":"'T2-B(PP2)'!$I$414","v":0},"#'T2-B(PP2)'!$I$414"]
["pp2_bl6_2_8_unit",{"$f":"'T2-B(PP2)'!$C$414","v":0},"#'T2-B(PP2)'!$C$414"]
["pp2_bl6_2_8_unit_in",{"$f":"'T2-B(PP2)'!$D$414","v":0},"#'T2-B(PP2)'!$D$414"]
["pp2_bl6_2_8_units_out",{"$f":"'T2-B(PP2)'!$G$414","v":0},"#'T2-B(PP2)'!$G$414"]
["pp2_bl6_2_9_name",{"$f":"'T2-B(PP2)'!$B$415","v":0},"#'T2-B(PP2)'!$B$415"]
["pp2_bl6_2_9_rate_in",{"$f":"'T2-B(PP2)'!$E$415","v":0},"#'T2-B(PP2)'!$E$415"]
["pp2_bl6_2_9_rate_out",{"$f":"'T2-B(PP2)'!$H$415","v":0},"#'T2-B(PP2)'!$H$415"]
["pp2_bl6_2_9_total",{"$f":"'T2-B(PP2)'!$J$415","v":0},"#'T2-B(PP2)'!$J$415"]
["pp2_bl6_2_9_total_in",{"$f":"'T2-B(PP2)'!$F$415","v":0},"#'T2-B(PP2)'!$F$415"]
["pp2_bl6_2_9_total_out",{"$f":"'T2-B(PP2)'!$I$415","v":0},"#'T2-B(PP2)'!$I$415"]
["pp2_bl6_2_9_unit",{"$f":"'T2-B(PP2)'!$C$415","v":0},"#'T2-B(PP2)'!$C$415"]
["pp2_bl6_2_9_unit_in",{"$f":"'T2-B(PP2)'!$D$415","v":0},"#'T2-B(PP2)'!$D$415"]
["pp2_bl6_2_9_units_out",{"$f":"'T2-B(PP2)'!$G$415","v":0},"#'T2-B(PP2)'!$G$415"]
["pp2_bl6_2_total",{"$f":"'T2-B(PP2)'!$J$406","v":0},"#'T2-B(PP2)'!$J$406"]
["pp2_bl6_2_total_in",{"$f":"'T2-B(PP2)'!$F$406","v":0},"#'T2-B(PP2)'!$F$406"]
["pp2_bl6_2_total_out",{"$f":"'T2-B(PP2)'!$I$406","v":0},"#'T2-B(PP2)'!$I$406"]
["pp2_bl6_total",{"$f":"'T2-B(PP2)'!$J$417","v":0},"#'T2-B(PP2)'!$J$417"]
["pp2_bl6_total_in",{"$f":"'T2-B(PP2)'!$F$417","v":0},"#'T2-B(PP2)'!$F$417"]
["pp2_bl6_total_out",{"$f":"'T2-B(PP2)'!$I$417","v":0},"#'T2-B(PP2)'!$I$417"]
["pp2_bl7_1_1_name",{"$f":"'T2-B(PP2)'!$B$420","v":0},"#'T2-B(PP2)'!$B$420"]
["pp2_bl7_1_1_rate_in",{"$f":"'T2-B(PP2)'!$H$420","v":0},"#'T2-B(PP2)'!$H$420"]
["pp2_bl7_1_1_rate_out",{"$f":"'T2-B(PP2)'!$N$420","v":0},"#'T2-B(PP2)'!$N$420"]
["pp2_bl7_1_1_total",{"$f":"'T2-B(PP2)'!$I$420","v":0},"#'T2-B(PP2)'!$I$420"]
["pp2_bl7_1_1_total_in",{"$f":"'T2-B(PP2)'!$P$420","v":0},"#'T2-B(PP2)'!$P$420"]
["pp2_bl7_1_1_total_out",{"$f":"'T2-B(PP2)'!$O$420","v":0},"#'T2-B(PP2)'!$O$420"]
["pp2_bl7_1_1_unit",{"$f":"'T2-B(PP2)'!$F$420","v":0},"#'T2-B(PP2)'!$F$420"]
["pp2_bl7_1_1_unit_in",{"$f":"'T2-B(PP2)'!$G$420","v":0},"#'T2-B(PP2)'!$G$420"]
["pp2_bl7_1_1_units_out",{"$f":"'T2-B(PP2)'!$M$420","v":0},"#'T2-B(PP2)'!$M$420"]
["pp2_competence",{"$f":"'PP2'!$B$38","v":0},"#'PP2'!$B$38"]
["pp2_country",{"$f":"'PP2'!$K$14","v":2},"#'PP2'!$K$14"]
["pp2_fax",{"$f":"'PP2'!$C$29","v":0},"#'PP2'!$C$29"]
["pp2_is_bg",{"$f":"'PP2'!$D$13","v":0},"#'PP2'!$D$13"]
["pp2_is_pc",{"$f":"'PP2'!$F$13","v":0},"#'PP2'!$F$13"]
["pp2_legal_representative",{"$f":"'PP2'!$C$23","v":0},"#'PP2'!$C$23"]
["pp2_legal_representative_position",{"$f":"'PP2'!$C$25","v":0},"#'PP2'!$C$25"]
["pp2_mail",{"$f":"'PP2'!$C$31","v":0},"#'PP2'!$C$31"]
["pp2_nat_code",{"$f":"'PP2'!$C$70","v":0},"#'PP2'!$C$70"]
["pp2_nuts3",{"$f":"'PP2'!$C$15","v":0},"#'PP2'!$C$15"]
["pp2_organisation_en",{"$f":"'PP2'!$C$7","v":0},"#'PP2'!$C$7"]
["pp2_organisation_native",{"$f":"'PP2'!$C$9","v":0},"#'PP2'!$C$9"]
["pp2_pe_date1",{"$f":"'PP2'!$G$47","v":0},"#'PP2'!$G$47"]
["pp2_pe_date2",{"$f":"'PP2'!$G$55","v":0},"#'PP2'!$G$55"]
["pp2_pe_date3",{"$f":"'PP2'!$G$63","v":0},"#'PP2'!$G$63"]
["pp2_pe_ga1",{"$f":"'PP2'!$G$46","v":0},"#'PP2'!$G$46"]
["pp2_pe_ga2",{"$f":"'PP2'!$G$54","v":0},"#'PP2'!$G$54"]
["pp2_pe_ga3",{"$f":"'PP2'!$G$62","v":0},"#'PP2'!$G$62"]
["pp2_pe_ip1",{"$f":"'PP2'!$C$43","v":0},"#'PP2'!$C$43"]
["pp2_pe_ip2",{"$f":"'PP2'!$C$51","v":0},"#'PP2'!$C$51"]
["pp2_pe_ip3",{"$f":"'PP2'!$C$59","v":0},"#'PP2'!$C$59"]
["pp2_pe_or1",{"$f":"'PP2'!$C$47","v":0},"#'PP2'!$C$47"]
["pp2_pe_or2",{"$f":"'PP2'!$C$55","v":0},"#'PP2'!$C$55"]
["pp2_pe_or3",{"$f":"'PP2'!$C$63","v":0},"#'PP2'!$C$63"]
["pp2_pe_pt1",{"$f":"'PP2'!$C$44","v":0},"#'PP2'!$C$44"]
["pp2_pe_pt2",{"$f":"'PP2'!$C$52","v":0},"#'PP2'!$C$52"]
["pp2_pe_pt3",{"$f":"'PP2'!$C$60","v":0},"#'PP2'!$C$60"]
["pp2_pe_sd1",{"$f":"'PP2'!$C$45","v":0},"#'PP2'!$C$45"]
["pp2_pe_sd2",{"$f":"'PP2'!$C$53","v":0},"#'PP2'!$C$53"]
["pp2_pe_sd3",{"$f":"'PP2'!$C$61","v":0},"#'PP2'!$C$61"]
["pp2_pe_tev1",{"$f":"'PP2'!$C$46","v":0},"#'PP2'!$C$46"]
["pp2_pe_tev2",{"$f":"'PP2'!$C$54","v":0},"#'PP2'!$C$54"]
["pp2_pe_tev3",{"$f":"'PP2'!$C$62","v":0},"#'PP2'!$C$62"]
["pp2_phone",{"$f":"'PP2'!$C$27","v":0},"#'PP2'!$C$27"]
["pp2_post_code",{"$f":"'PP2'!$C$21","v":0},"#'PP2'!$C$21"]
["pp2_town",{"$f":"'PP2'!$C$17","v":0},"#'PP2'!$C$17"]
["pp2_type_org",{"$f":"'PP2'!$C$11","v":0},"#'PP2'!$C$11"]
["pp2_vat_code",{"$f":"'PP2'!$C$72","v":0},"#'PP2'!$C$72"]
["pp2_website",{"$f":"'PP2'!$C$33","v":0},"#'PP2'!$C$33"]
["pp3_2014_fulltime_staff",{"$f":"'PP3'!$F$77","v":0},"#'PP3'!$F$77"]
["pp3_2014_parttime_staff",{"$f":"'PP3'!$G$77","v":0},"#'PP3'!$G$77"]
["pp3_2014_turnover",{"$f":"'PP3'!$C$77","v":0},"#'PP3'!$C$77"]
["pp3_2015_fulltime_staff",{"$f":"'PP3'!$F$78","v":0},"#'PP3'!$F$78"]
["pp3_2015_parttime_staff",{"$f":"'PP3'!$G$78","v":0},"#'PP3'!$G$78"]
["pp3_2015_turnover",{"$f":"'PP3'!$C$78","v":0},"#'PP3'!$C$78"]
["pp3_2016_fulltime_staff",{"$f":"'PP3'!$F$79","v":0},"#'PP3'!$F$79"]
["pp3_2016_parttime_staff",{"$f":"'PP3'!$G$79","v":0},"#'PP3'!$G$79"]
["pp3_2016_turnover",{"$f":"'PP3'!$C$79","v":0},"#'PP3'!$C$79"]
["pp3_address",{"$f":"'PP3'!$C$19","v":0},"#'PP3'!$C$19"]
["pp3_background1",{"$f":"'PP3'!$B$35","v":0},"#'PP3'!$B$35"]
["pp3_background2",{"$f":"'PP3'!$B$36","v":0},"#'PP3'!$B$36"]
["pp3_bl3_1_1_name",{"$f":"'T2-B(PP3)'!$B$16","v":0},"#'T2-B(PP3)'!$B$16"]
["pp3_bl3_1_1_rate_in",{"$f":"'T2-B(PP3)'!$E$16","v":0},"#'T2-B(PP3)'!$E$16"]
["pp3_bl3_1_1_rate_out",{"$f":"'T2-B(PP3)'!$H$16","v":0},"#'T2-B(PP3)'!$H$16"]
["pp3_bl3_1_1_total",{"$f":"'T2-B(PP3)'!$J$16","v":0},"#'T2-B(PP3)'!$J$16"]
["pp3_bl3_1_1_total_in",{"$f":"'T2-B(PP3)'!$F$16","v":0},"#'T2-B(PP3)'!$F$16"]
["pp3_bl3_1_1_total_out",{"$f":"'T2-B(PP3)'!$I$16","v":0},"#'T2-B(PP3)'!$I$16"]
["pp3_bl3_1_1_unit",{"$f":"'T2-B(PP3)'!$C$16","v":0},"#'T2-B(PP3)'!$C$16"]
["pp3_bl3_1_1_unit_in",{"$f":"'T2-B(PP3)'!$D$16","v":0},"#'T2-B(PP3)'!$D$16"]
["pp3_bl3_1_1_units_out",{"$f":"'T2-B(PP3)'!$G$16","v":0},"#'T2-B(PP3)'!$G$16"]
["pp3_bl3_1_10_name",{"$f":"'T2-B(PP3)'!$B$25","v":0},"#'T2-B(PP3)'!$B$25"]
["pp3_bl3_1_10_rate_in",{"$f":"'T2-B(PP3)'!$E$25","v":0},"#'T2-B(PP3)'!$E$25"]
["pp3_bl3_1_10_rate_out",{"$f":"'T2-B(PP3)'!$H$25","v":0},"#'T2-B(PP3)'!$H$25"]
["pp3_bl3_1_10_total",{"$f":"'T2-B(PP3)'!$J$25","v":0},"#'T2-B(PP3)'!$J$25"]
["pp3_bl3_1_10_total_in",{"$f":"'T2-B(PP3)'!$F$25","v":0},"#'T2-B(PP3)'!$F$25"]
["pp3_bl3_1_10_total_out",{"$f":"'T2-B(PP3)'!$I$25","v":0},"#'T2-B(PP3)'!$I$25"]
["pp3_bl3_1_10_unit",{"$f":"'T2-B(PP3)'!$C$25","v":0},"#'T2-B(PP3)'!$C$25"]
["pp3_bl3_1_10_unit_in",{"$f":"'T2-B(PP3)'!$D$25","v":0},"#'T2-B(PP3)'!$D$25"]
["pp3_bl3_1_10_units_out",{"$f":"'T2-B(PP3)'!$G$25","v":0},"#'T2-B(PP3)'!$G$25"]
["pp3_bl3_1_11_name",{"$f":"'T2-B(PP3)'!$B$26","v":0},"#'T2-B(PP3)'!$B$26"]
["pp3_bl3_1_11_rate_in",{"$f":"'T2-B(PP3)'!$E$26","v":0},"#'T2-B(PP3)'!$E$26"]
["pp3_bl3_1_11_rate_out",{"$f":"'T2-B(PP3)'!$H$26","v":0},"#'T2-B(PP3)'!$H$26"]
["pp3_bl3_1_11_total",{"$f":"'T2-B(PP3)'!$J$26","v":0},"#'T2-B(PP3)'!$J$26"]
["pp3_bl3_1_11_total_in",{"$f":"'T2-B(PP3)'!$F$26","v":0},"#'T2-B(PP3)'!$F$26"]
["pp3_bl3_1_11_total_out",{"$f":"'T2-B(PP3)'!$I$26","v":0},"#'T2-B(PP3)'!$I$26"]
["pp3_bl3_1_11_unit",{"$f":"'T2-B(PP3)'!$C$26","v":0},"#'T2-B(PP3)'!$C$26"]
["pp3_bl3_1_11_unit_in",{"$f":"'T2-B(PP3)'!$D$26","v":0},"#'T2-B(PP3)'!$D$26"]
["pp3_bl3_1_11_units_out",{"$f":"'T2-B(PP3)'!$G$26","v":0},"#'T2-B(PP3)'!$G$26"]
["pp3_bl3_1_12_name",{"$f":"'T2-B(PP3)'!$B$27","v":0},"#'T2-B(PP3)'!$B$27"]
["pp3_bl3_1_12_rate_in",{"$f":"'T2-B(PP3)'!$E$27","v":0},"#'T2-B(PP3)'!$E$27"]
["pp3_bl3_1_12_rate_out",{"$f":"'T2-B(PP3)'!$H$27","v":0},"#'T2-B(PP3)'!$H$27"]
["pp3_bl3_1_12_total",{"$f":"'T2-B(PP3)'!$J$27","v":0},"#'T2-B(PP3)'!$J$27"]
["pp3_bl3_1_12_total_in",{"$f":"'T2-B(PP3)'!$F$27","v":0},"#'T2-B(PP3)'!$F$27"]
["pp3_bl3_1_12_total_out",{"$f":"'T2-B(PP3)'!$I$27","v":0},"#'T2-B(PP3)'!$I$27"]
["pp3_bl3_1_12_unit",{"$f":"'T2-B(PP3)'!$C$27","v":0},"#'T2-B(PP3)'!$C$27"]
["pp3_bl3_1_12_unit_in",{"$f":"'T2-B(PP3)'!$D$27","v":0},"#'T2-B(PP3)'!$D$27"]
["pp3_bl3_1_12_units_out",{"$f":"'T2-B(PP3)'!$G$27","v":0},"#'T2-B(PP3)'!$G$27"]
["pp3_bl3_1_13_name",{"$f":"'T2-B(PP3)'!$B$28","v":0},"#'T2-B(PP3)'!$B$28"]
["pp3_bl3_1_13_rate_in",{"$f":"'T2-B(PP3)'!$E$28","v":0},"#'T2-B(PP3)'!$E$28"]
["pp3_bl3_1_13_rate_out",{"$f":"'T2-B(PP3)'!$H$28","v":0},"#'T2-B(PP3)'!$H$28"]
["pp3_bl3_1_13_total",{"$f":"'T2-B(PP3)'!$J$28","v":0},"#'T2-B(PP3)'!$J$28"]
["pp3_bl3_1_13_total_in",{"$f":"'T2-B(PP3)'!$F$28","v":0},"#'T2-B(PP3)'!$F$28"]
["pp3_bl3_1_13_total_out",{"$f":"'T2-B(PP3)'!$I$28","v":0},"#'T2-B(PP3)'!$I$28"]
["pp3_bl3_1_13_unit",{"$f":"'T2-B(PP3)'!$C$28","v":0},"#'T2-B(PP3)'!$C$28"]
["pp3_bl3_1_13_unit_in",{"$f":"'T2-B(PP3)'!$D$28","v":0},"#'T2-B(PP3)'!$D$28"]
["pp3_bl3_1_13_units_out",{"$f":"'T2-B(PP3)'!$G$28","v":0},"#'T2-B(PP3)'!$G$28"]
["pp3_bl3_1_14_name",{"$f":"'T2-B(PP3)'!$B$29","v":0},"#'T2-B(PP3)'!$B$29"]
["pp3_bl3_1_14_rate_in",{"$f":"'T2-B(PP3)'!$E$29","v":0},"#'T2-B(PP3)'!$E$29"]
["pp3_bl3_1_14_rate_out",{"$f":"'T2-B(PP3)'!$H$29","v":0},"#'T2-B(PP3)'!$H$29"]
["pp3_bl3_1_14_total",{"$f":"'T2-B(PP3)'!$J$29","v":0},"#'T2-B(PP3)'!$J$29"]
["pp3_bl3_1_14_total_in",{"$f":"'T2-B(PP3)'!$F$29","v":0},"#'T2-B(PP3)'!$F$29"]
["pp3_bl3_1_14_total_out",{"$f":"'T2-B(PP3)'!$I$29","v":0},"#'T2-B(PP3)'!$I$29"]
["pp3_bl3_1_14_unit",{"$f":"'T2-B(PP3)'!$C$29","v":0},"#'T2-B(PP3)'!$C$29"]
["pp3_bl3_1_14_unit_in",{"$f":"'T2-B(PP3)'!$D$29","v":0},"#'T2-B(PP3)'!$D$29"]
["pp3_bl3_1_14_units_out",{"$f":"'T2-B(PP3)'!$G$29","v":0},"#'T2-B(PP3)'!$G$29"]
["pp3_bl3_1_15_name",{"$f":"'T2-B(PP3)'!$B$30","v":0},"#'T2-B(PP3)'!$B$30"]
["pp3_bl3_1_15_rate_in",{"$f":"'T2-B(PP3)'!$E$30","v":0},"#'T2-B(PP3)'!$E$30"]
["pp3_bl3_1_15_rate_out",{"$f":"'T2-B(PP3)'!$H$30","v":0},"#'T2-B(PP3)'!$H$30"]
["pp3_bl3_1_15_total",{"$f":"'T2-B(PP3)'!$J$30","v":0},"#'T2-B(PP3)'!$J$30"]
["pp3_bl3_1_15_total_in",{"$f":"'T2-B(PP3)'!$F$30","v":0},"#'T2-B(PP3)'!$F$30"]
["pp3_bl3_1_15_total_out",{"$f":"'T2-B(PP3)'!$I$30","v":0},"#'T2-B(PP3)'!$I$30"]
["pp3_bl3_1_15_unit",{"$f":"'T2-B(PP3)'!$C$30","v":0},"#'T2-B(PP3)'!$C$30"]
["pp3_bl3_1_15_unit_in",{"$f":"'T2-B(PP3)'!$D$30","v":0},"#'T2-B(PP3)'!$D$30"]
["pp3_bl3_1_15_units_out",{"$f":"'T2-B(PP3)'!$G$30","v":0},"#'T2-B(PP3)'!$G$30"]
["pp3_bl3_1_16_name",{"$f":"'T2-B(PP3)'!$B$31","v":0},"#'T2-B(PP3)'!$B$31"]
["pp3_bl3_1_16_rate_in",{"$f":"'T2-B(PP3)'!$E$31","v":0},"#'T2-B(PP3)'!$E$31"]
["pp3_bl3_1_16_rate_out",{"$f":"'T2-B(PP3)'!$H$31","v":0},"#'T2-B(PP3)'!$H$31"]
["pp3_bl3_1_16_total",{"$f":"'T2-B(PP3)'!$J$31","v":0},"#'T2-B(PP3)'!$J$31"]
["pp3_bl3_1_16_total_in",{"$f":"'T2-B(PP3)'!$F$31","v":0},"#'T2-B(PP3)'!$F$31"]
["pp3_bl3_1_16_total_out",{"$f":"'T2-B(PP3)'!$I$31","v":0},"#'T2-B(PP3)'!$I$31"]
["pp3_bl3_1_16_unit",{"$f":"'T2-B(PP3)'!$C$31","v":0},"#'T2-B(PP3)'!$C$31"]
["pp3_bl3_1_16_unit_in",{"$f":"'T2-B(PP3)'!$D$31","v":0},"#'T2-B(PP3)'!$D$31"]
["pp3_bl3_1_16_units_out",{"$f":"'T2-B(PP3)'!$G$31","v":0},"#'T2-B(PP3)'!$G$31"]
["pp3_bl3_1_17_name",{"$f":"'T2-B(PP3)'!$B$32","v":0},"#'T2-B(PP3)'!$B$32"]
["pp3_bl3_1_17_rate_in",{"$f":"'T2-B(PP3)'!$E$32","v":0},"#'T2-B(PP3)'!$E$32"]
["pp3_bl3_1_17_rate_out",{"$f":"'T2-B(PP3)'!$H$32","v":0},"#'T2-B(PP3)'!$H$32"]
["pp3_bl3_1_17_total",{"$f":"'T2-B(PP3)'!$J$32","v":0},"#'T2-B(PP3)'!$J$32"]
["pp3_bl3_1_17_total_in",{"$f":"'T2-B(PP3)'!$F$32","v":0},"#'T2-B(PP3)'!$F$32"]
["pp3_bl3_1_17_total_out",{"$f":"'T2-B(PP3)'!$I$32","v":0},"#'T2-B(PP3)'!$I$32"]
["pp3_bl3_1_17_unit",{"$f":"'T2-B(PP3)'!$C$32","v":0},"#'T2-B(PP3)'!$C$32"]
["pp3_bl3_1_17_unit_in",{"$f":"'T2-B(PP3)'!$D$32","v":0},"#'T2-B(PP3)'!$D$32"]
["pp3_bl3_1_17_units_out",{"$f":"'T2-B(PP3)'!$G$32","v":0},"#'T2-B(PP3)'!$G$32"]
["pp3_bl3_1_18_name",{"$f":"'T2-B(PP3)'!$B$33","v":0},"#'T2-B(PP3)'!$B$33"]
["pp3_bl3_1_18_rate_in",{"$f":"'T2-B(PP3)'!$E$33","v":0},"#'T2-B(PP3)'!$E$33"]
["pp3_bl3_1_18_rate_out",{"$f":"'T2-B(PP3)'!$H$33","v":0},"#'T2-B(PP3)'!$H$33"]
["pp3_bl3_1_18_total",{"$f":"'T2-B(PP3)'!$J$33","v":0},"#'T2-B(PP3)'!$J$33"]
["pp3_bl3_1_18_total_in",{"$f":"'T2-B(PP3)'!$F$33","v":0},"#'T2-B(PP3)'!$F$33"]
["pp3_bl3_1_18_total_out",{"$f":"'T2-B(PP3)'!$I$33","v":0},"#'T2-B(PP3)'!$I$33"]
["pp3_bl3_1_18_unit",{"$f":"'T2-B(PP3)'!$C$33","v":0},"#'T2-B(PP3)'!$C$33"]
["pp3_bl3_1_18_unit_in",{"$f":"'T2-B(PP3)'!$D$33","v":0},"#'T2-B(PP3)'!$D$33"]
["pp3_bl3_1_18_units_out",{"$f":"'T2-B(PP3)'!$G$33","v":0},"#'T2-B(PP3)'!$G$33"]
["pp3_bl3_1_19_name",{"$f":"'T2-B(PP3)'!$B$34","v":0},"#'T2-B(PP3)'!$B$34"]
["pp3_bl3_1_19_rate_in",{"$f":"'T2-B(PP3)'!$E$34","v":0},"#'T2-B(PP3)'!$E$34"]
["pp3_bl3_1_19_rate_out",{"$f":"'T2-B(PP3)'!$H$34","v":0},"#'T2-B(PP3)'!$H$34"]
["pp3_bl3_1_19_total",{"$f":"'T2-B(PP3)'!$J$34","v":0},"#'T2-B(PP3)'!$J$34"]
["pp3_bl3_1_19_total_in",{"$f":"'T2-B(PP3)'!$F$34","v":0},"#'T2-B(PP3)'!$F$34"]
["pp3_bl3_1_19_total_out",{"$f":"'T2-B(PP3)'!$I$34","v":0},"#'T2-B(PP3)'!$I$34"]
["pp3_bl3_1_19_unit",{"$f":"'T2-B(PP3)'!$C$34","v":0},"#'T2-B(PP3)'!$C$34"]
["pp3_bl3_1_19_unit_in",{"$f":"'T2-B(PP3)'!$D$34","v":0},"#'T2-B(PP3)'!$D$34"]
["pp3_bl3_1_19_units_out",{"$f":"'T2-B(PP3)'!$G$34","v":0},"#'T2-B(PP3)'!$G$34"]
["pp3_bl3_1_2_name",{"$f":"'T2-B(PP3)'!$B$17","v":0},"#'T2-B(PP3)'!$B$17"]
["pp3_bl3_1_2_rate_in",{"$f":"'T2-B(PP3)'!$E$17","v":0},"#'T2-B(PP3)'!$E$17"]
["pp3_bl3_1_2_rate_out",{"$f":"'T2-B(PP3)'!$H$17","v":0},"#'T2-B(PP3)'!$H$17"]
["pp3_bl3_1_2_total",{"$f":"'T2-B(PP3)'!$J$17","v":0},"#'T2-B(PP3)'!$J$17"]
["pp3_bl3_1_2_total_in",{"$f":"'T2-B(PP3)'!$F$17","v":0},"#'T2-B(PP3)'!$F$17"]
["pp3_bl3_1_2_total_out",{"$f":"'T2-B(PP3)'!$I$17","v":0},"#'T2-B(PP3)'!$I$17"]
["pp3_bl3_1_2_unit",{"$f":"'T2-B(PP3)'!$C$17","v":0},"#'T2-B(PP3)'!$C$17"]
["pp3_bl3_1_2_unit_in",{"$f":"'T2-B(PP3)'!$D$17","v":0},"#'T2-B(PP3)'!$D$17"]
["pp3_bl3_1_2_units_out",{"$f":"'T2-B(PP3)'!$G$17","v":0},"#'T2-B(PP3)'!$G$17"]
["pp3_bl3_1_20_name",{"$f":"'T2-B(PP3)'!$B$35","v":0},"#'T2-B(PP3)'!$B$35"]
["pp3_bl3_1_20_rate_in",{"$f":"'T2-B(PP3)'!$E$35","v":0},"#'T2-B(PP3)'!$E$35"]
["pp3_bl3_1_20_rate_out",{"$f":"'T2-B(PP3)'!$H$35","v":0},"#'T2-B(PP3)'!$H$35"]
["pp3_bl3_1_20_total",{"$f":"'T2-B(PP3)'!$J$35","v":0},"#'T2-B(PP3)'!$J$35"]
["pp3_bl3_1_20_total_in",{"$f":"'T2-B(PP3)'!$F$35","v":0},"#'T2-B(PP3)'!$F$35"]
["pp3_bl3_1_20_total_out",{"$f":"'T2-B(PP3)'!$I$35","v":0},"#'T2-B(PP3)'!$I$35"]
["pp3_bl3_1_20_unit",{"$f":"'T2-B(PP3)'!$C$35","v":0},"#'T2-B(PP3)'!$C$35"]
["pp3_bl3_1_20_unit_in",{"$f":"'T2-B(PP3)'!$D$35","v":0},"#'T2-B(PP3)'!$D$35"]
["pp3_bl3_1_20_units_out",{"$f":"'T2-B(PP3)'!$G$35","v":0},"#'T2-B(PP3)'!$G$35"]
["pp3_bl3_1_3_name",{"$f":"'T2-B(PP3)'!$B$18","v":0},"#'T2-B(PP3)'!$B$18"]
["pp3_bl3_1_3_rate_in",{"$f":"'T2-B(PP3)'!$E$18","v":0},"#'T2-B(PP3)'!$E$18"]
["pp3_bl3_1_3_rate_out",{"$f":"'T2-B(PP3)'!$H$18","v":0},"#'T2-B(PP3)'!$H$18"]
["pp3_bl3_1_3_total",{"$f":"'T2-B(PP3)'!$J$18","v":0},"#'T2-B(PP3)'!$J$18"]
["pp3_bl3_1_3_total_in",{"$f":"'T2-B(PP3)'!$F$18","v":0},"#'T2-B(PP3)'!$F$18"]
["pp3_bl3_1_3_total_out",{"$f":"'T2-B(PP3)'!$I$18","v":0},"#'T2-B(PP3)'!$I$18"]
["pp3_bl3_1_3_unit",{"$f":"'T2-B(PP3)'!$C$18","v":0},"#'T2-B(PP3)'!$C$18"]
["pp3_bl3_1_3_unit_in",{"$f":"'T2-B(PP3)'!$D$18","v":0},"#'T2-B(PP3)'!$D$18"]
["pp3_bl3_1_3_units_out",{"$f":"'T2-B(PP3)'!$G$18","v":0},"#'T2-B(PP3)'!$G$18"]
["pp3_bl3_1_4_name",{"$f":"'T2-B(PP3)'!$B$19","v":0},"#'T2-B(PP3)'!$B$19"]
["pp3_bl3_1_4_rate_in",{"$f":"'T2-B(PP3)'!$E$19","v":0},"#'T2-B(PP3)'!$E$19"]
["pp3_bl3_1_4_rate_out",{"$f":"'T2-B(PP3)'!$H$19","v":0},"#'T2-B(PP3)'!$H$19"]
["pp3_bl3_1_4_total",{"$f":"'T2-B(PP3)'!$J$19","v":0},"#'T2-B(PP3)'!$J$19"]
["pp3_bl3_1_4_total_in",{"$f":"'T2-B(PP3)'!$F$19","v":0},"#'T2-B(PP3)'!$F$19"]
["pp3_bl3_1_4_total_out",{"$f":"'T2-B(PP3)'!$I$19","v":0},"#'T2-B(PP3)'!$I$19"]
["pp3_bl3_1_4_unit",{"$f":"'T2-B(PP3)'!$C$19","v":0},"#'T2-B(PP3)'!$C$19"]
["pp3_bl3_1_4_unit_in",{"$f":"'T2-B(PP3)'!$D$19","v":0},"#'T2-B(PP3)'!$D$19"]
["pp3_bl3_1_4_units_out",{"$f":"'T2-B(PP3)'!$G$19","v":0},"#'T2-B(PP3)'!$G$19"]
["pp3_bl3_1_5_name",{"$f":"'T2-B(PP3)'!$B$20","v":0},"#'T2-B(PP3)'!$B$20"]
["pp3_bl3_1_5_rate_in",{"$f":"'T2-B(PP3)'!$E$20","v":0},"#'T2-B(PP3)'!$E$20"]
["pp3_bl3_1_5_rate_out",{"$f":"'T2-B(PP3)'!$H$20","v":0},"#'T2-B(PP3)'!$H$20"]
["pp3_bl3_1_5_total",{"$f":"'T2-B(PP3)'!$J$20","v":0},"#'T2-B(PP3)'!$J$20"]
["pp3_bl3_1_5_total_in",{"$f":"'T2-B(PP3)'!$F$20","v":0},"#'T2-B(PP3)'!$F$20"]
["pp3_bl3_1_5_total_out",{"$f":"'T2-B(PP3)'!$I$20","v":0},"#'T2-B(PP3)'!$I$20"]
["pp3_bl3_1_5_unit",{"$f":"'T2-B(PP3)'!$C$20","v":0},"#'T2-B(PP3)'!$C$20"]
["pp3_bl3_1_5_unit_in",{"$f":"'T2-B(PP3)'!$D$20","v":0},"#'T2-B(PP3)'!$D$20"]
["pp3_bl3_1_5_units_out",{"$f":"'T2-B(PP3)'!$G$20","v":0},"#'T2-B(PP3)'!$G$20"]
["pp3_bl3_1_6_name",{"$f":"'T2-B(PP3)'!$B$21","v":0},"#'T2-B(PP3)'!$B$21"]
["pp3_bl3_1_6_rate_in",{"$f":"'T2-B(PP3)'!$E$21","v":0},"#'T2-B(PP3)'!$E$21"]
["pp3_bl3_1_6_rate_out",{"$f":"'T2-B(PP3)'!$H$21","v":0},"#'T2-B(PP3)'!$H$21"]
["pp3_bl3_1_6_total",{"$f":"'T2-B(PP3)'!$J$21","v":0},"#'T2-B(PP3)'!$J$21"]
["pp3_bl3_1_6_total_in",{"$f":"'T2-B(PP3)'!$F$21","v":0},"#'T2-B(PP3)'!$F$21"]
["pp3_bl3_1_6_total_out",{"$f":"'T2-B(PP3)'!$I$21","v":0},"#'T2-B(PP3)'!$I$21"]
["pp3_bl3_1_6_unit",{"$f":"'T2-B(PP3)'!$C$21","v":0},"#'T2-B(PP3)'!$C$21"]
["pp3_bl3_1_6_unit_in",{"$f":"'T2-B(PP3)'!$D$21","v":0},"#'T2-B(PP3)'!$D$21"]
["pp3_bl3_1_6_units_out",{"$f":"'T2-B(PP3)'!$G$21","v":0},"#'T2-B(PP3)'!$G$21"]
["pp3_bl3_1_7_name",{"$f":"'T2-B(PP3)'!$B$22","v":0},"#'T2-B(PP3)'!$B$22"]
["pp3_bl3_1_7_rate_in",{"$f":"'T2-B(PP3)'!$E$22","v":0},"#'T2-B(PP3)'!$E$22"]
["pp3_bl3_1_7_rate_out",{"$f":"'T2-B(PP3)'!$H$22","v":0},"#'T2-B(PP3)'!$H$22"]
["pp3_bl3_1_7_total",{"$f":"'T2-B(PP3)'!$J$22","v":0},"#'T2-B(PP3)'!$J$22"]
["pp3_bl3_1_7_total_in",{"$f":"'T2-B(PP3)'!$F$22","v":0},"#'T2-B(PP3)'!$F$22"]
["pp3_bl3_1_7_total_out",{"$f":"'T2-B(PP3)'!$I$22","v":0},"#'T2-B(PP3)'!$I$22"]
["pp3_bl3_1_7_unit",{"$f":"'T2-B(PP3)'!$C$22","v":0},"#'T2-B(PP3)'!$C$22"]
["pp3_bl3_1_7_unit_in",{"$f":"'T2-B(PP3)'!$D$22","v":0},"#'T2-B(PP3)'!$D$22"]
["pp3_bl3_1_7_units_out",{"$f":"'T2-B(PP3)'!$G$22","v":0},"#'T2-B(PP3)'!$G$22"]
["pp3_bl3_1_8_name",{"$f":"'T2-B(PP3)'!$B$23","v":0},"#'T2-B(PP3)'!$B$23"]
["pp3_bl3_1_8_rate_in",{"$f":"'T2-B(PP3)'!$E$23","v":0},"#'T2-B(PP3)'!$E$23"]
["pp3_bl3_1_8_rate_out",{"$f":"'T2-B(PP3)'!$H$23","v":0},"#'T2-B(PP3)'!$H$23"]
["pp3_bl3_1_8_total",{"$f":"'T2-B(PP3)'!$J$23","v":0},"#'T2-B(PP3)'!$J$23"]
["pp3_bl3_1_8_total_in",{"$f":"'T2-B(PP3)'!$F$23","v":0},"#'T2-B(PP3)'!$F$23"]
["pp3_bl3_1_8_total_out",{"$f":"'T2-B(PP3)'!$I$23","v":0},"#'T2-B(PP3)'!$I$23"]
["pp3_bl3_1_8_unit",{"$f":"'T2-B(PP3)'!$C$23","v":0},"#'T2-B(PP3)'!$C$23"]
["pp3_bl3_1_8_unit_in",{"$f":"'T2-B(PP3)'!$D$23","v":0},"#'T2-B(PP3)'!$D$23"]
["pp3_bl3_1_8_units_out",{"$f":"'T2-B(PP3)'!$G$23","v":0},"#'T2-B(PP3)'!$G$23"]
["pp3_bl3_1_9_name",{"$f":"'T2-B(PP3)'!$B$24","v":0},"#'T2-B(PP3)'!$B$24"]
["pp3_bl3_1_9_rate_in",{"$f":"'T2-B(PP3)'!$E$24","v":0},"#'T2-B(PP3)'!$E$24"]
["pp3_bl3_1_9_rate_out",{"$f":"'T2-B(PP3)'!$H$24","v":0},"#'T2-B(PP3)'!$H$24"]
["pp3_bl3_1_9_total",{"$f":"'T2-B(PP3)'!$J$24","v":0},"#'T2-B(PP3)'!$J$24"]
["pp3_bl3_1_9_total_in",{"$f":"'T2-B(PP3)'!$F$24","v":0},"#'T2-B(PP3)'!$F$24"]
["pp3_bl3_1_9_total_out",{"$f":"'T2-B(PP3)'!$I$24","v":0},"#'T2-B(PP3)'!$I$24"]
["pp3_bl3_1_9_unit",{"$f":"'T2-B(PP3)'!$C$24","v":0},"#'T2-B(PP3)'!$C$24"]
["pp3_bl3_1_9_unit_in",{"$f":"'T2-B(PP3)'!$D$24","v":0},"#'T2-B(PP3)'!$D$24"]
["pp3_bl3_1_9_units_out",{"$f":"'T2-B(PP3)'!$G$24","v":0},"#'T2-B(PP3)'!$G$24"]
["pp3_bl3_1_total",{"$f":"'T2-B(PP3)'!$J$15","v":0},"#'T2-B(PP3)'!$J$15"]
["pp3_bl3_1_total_in",{"$f":"'T2-B(PP3)'!$F$15","v":0},"#'T2-B(PP3)'!$F$15"]
["pp3_bl3_1_total_out",{"$f":"'T2-B(PP3)'!$I$15","v":0},"#'T2-B(PP3)'!$I$15"]
["pp3_bl3_2_1_name",{"$f":"'T2-B(PP3)'!$B$37","v":0},"#'T2-B(PP3)'!$B$37"]
["pp3_bl3_2_1_rate_in",{"$f":"'T2-B(PP3)'!$E$37","v":0},"#'T2-B(PP3)'!$E$37"]
["pp3_bl3_2_1_rate_out",{"$f":"'T2-B(PP3)'!$H$37","v":0},"#'T2-B(PP3)'!$H$37"]
["pp3_bl3_2_1_total",{"$f":"'T2-B(PP3)'!$J$37","v":0},"#'T2-B(PP3)'!$J$37"]
["pp3_bl3_2_1_total_in",{"$f":"'T2-B(PP3)'!$F$37","v":0},"#'T2-B(PP3)'!$F$37"]
["pp3_bl3_2_1_total_out",{"$f":"'T2-B(PP3)'!$I$37","v":0},"#'T2-B(PP3)'!$I$37"]
["pp3_bl3_2_1_unit",{"$f":"'T2-B(PP3)'!$C$37","v":0},"#'T2-B(PP3)'!$C$37"]
["pp3_bl3_2_1_unit_in",{"$f":"'T2-B(PP3)'!$D$37","v":0},"#'T2-B(PP3)'!$D$37"]
["pp3_bl3_2_1_units_out",{"$f":"'T2-B(PP3)'!$G$37","v":0},"#'T2-B(PP3)'!$G$37"]
["pp3_bl3_2_10_name",{"$f":"'T2-B(PP3)'!$B$46","v":0},"#'T2-B(PP3)'!$B$46"]
["pp3_bl3_2_10_rate_in",{"$f":"'T2-B(PP3)'!$E$46","v":0},"#'T2-B(PP3)'!$E$46"]
["pp3_bl3_2_10_rate_out",{"$f":"'T2-B(PP3)'!$H$46","v":0},"#'T2-B(PP3)'!$H$46"]
["pp3_bl3_2_10_total",{"$f":"'T2-B(PP3)'!$J$46","v":0},"#'T2-B(PP3)'!$J$46"]
["pp3_bl3_2_10_total_in",{"$f":"'T2-B(PP3)'!$F$46","v":0},"#'T2-B(PP3)'!$F$46"]
["pp3_bl3_2_10_total_out",{"$f":"'T2-B(PP3)'!$I$46","v":0},"#'T2-B(PP3)'!$I$46"]
["pp3_bl3_2_10_unit",{"$f":"'T2-B(PP3)'!$C$46","v":0},"#'T2-B(PP3)'!$C$46"]
["pp3_bl3_2_10_unit_in",{"$f":"'T2-B(PP3)'!$D$46","v":0},"#'T2-B(PP3)'!$D$46"]
["pp3_bl3_2_10_units_out",{"$f":"'T2-B(PP3)'!$G$46","v":0},"#'T2-B(PP3)'!$G$46"]
["pp3_bl3_2_11_name",{"$f":"'T2-B(PP3)'!$B$47","v":0},"#'T2-B(PP3)'!$B$47"]
["pp3_bl3_2_11_rate_in",{"$f":"'T2-B(PP3)'!$E$47","v":0},"#'T2-B(PP3)'!$E$47"]
["pp3_bl3_2_11_rate_out",{"$f":"'T2-B(PP3)'!$H$47","v":0},"#'T2-B(PP3)'!$H$47"]
["pp3_bl3_2_11_total",{"$f":"'T2-B(PP3)'!$J$47","v":0},"#'T2-B(PP3)'!$J$47"]
["pp3_bl3_2_11_total_in",{"$f":"'T2-B(PP3)'!$F$47","v":0},"#'T2-B(PP3)'!$F$47"]
["pp3_bl3_2_11_total_out",{"$f":"'T2-B(PP3)'!$I$47","v":0},"#'T2-B(PP3)'!$I$47"]
["pp3_bl3_2_11_unit",{"$f":"'T2-B(PP3)'!$C$47","v":0},"#'T2-B(PP3)'!$C$47"]
["pp3_bl3_2_11_unit_in",{"$f":"'T2-B(PP3)'!$D$47","v":0},"#'T2-B(PP3)'!$D$47"]
["pp3_bl3_2_11_units_out",{"$f":"'T2-B(PP3)'!$G$47","v":0},"#'T2-B(PP3)'!$G$47"]
["pp3_bl3_2_12_name",{"$f":"'T2-B(PP3)'!$B$48","v":0},"#'T2-B(PP3)'!$B$48"]
["pp3_bl3_2_12_rate_in",{"$f":"'T2-B(PP3)'!$E$48","v":0},"#'T2-B(PP3)'!$E$48"]
["pp3_bl3_2_12_rate_out",{"$f":"'T2-B(PP3)'!$H$48","v":0},"#'T2-B(PP3)'!$H$48"]
["pp3_bl3_2_12_total",{"$f":"'T2-B(PP3)'!$J$48","v":0},"#'T2-B(PP3)'!$J$48"]
["pp3_bl3_2_12_total_in",{"$f":"'T2-B(PP3)'!$F$48","v":0},"#'T2-B(PP3)'!$F$48"]
["pp3_bl3_2_12_total_out",{"$f":"'T2-B(PP3)'!$I$48","v":0},"#'T2-B(PP3)'!$I$48"]
["pp3_bl3_2_12_unit",{"$f":"'T2-B(PP3)'!$C$48","v":0},"#'T2-B(PP3)'!$C$48"]
["pp3_bl3_2_12_unit_in",{"$f":"'T2-B(PP3)'!$D$48","v":0},"#'T2-B(PP3)'!$D$48"]
["pp3_bl3_2_12_units_out",{"$f":"'T2-B(PP3)'!$G$48","v":0},"#'T2-B(PP3)'!$G$48"]
["pp3_bl3_2_13_name",{"$f":"'T2-B(PP3)'!$B$49","v":0},"#'T2-B(PP3)'!$B$49"]
["pp3_bl3_2_13_rate_in",{"$f":"'T2-B(PP3)'!$E$49","v":0},"#'T2-B(PP3)'!$E$49"]
["pp3_bl3_2_13_rate_out",{"$f":"'T2-B(PP3)'!$H$49","v":0},"#'T2-B(PP3)'!$H$49"]
["pp3_bl3_2_13_total",{"$f":"'T2-B(PP3)'!$J$49","v":0},"#'T2-B(PP3)'!$J$49"]
["pp3_bl3_2_13_total_in",{"$f":"'T2-B(PP3)'!$F$49","v":0},"#'T2-B(PP3)'!$F$49"]
["pp3_bl3_2_13_total_out",{"$f":"'T2-B(PP3)'!$I$49","v":0},"#'T2-B(PP3)'!$I$49"]
["pp3_bl3_2_13_unit",{"$f":"'T2-B(PP3)'!$C$49","v":0},"#'T2-B(PP3)'!$C$49"]
["pp3_bl3_2_13_unit_in",{"$f":"'T2-B(PP3)'!$D$49","v":0},"#'T2-B(PP3)'!$D$49"]
["pp3_bl3_2_13_units_out",{"$f":"'T2-B(PP3)'!$G$49","v":0},"#'T2-B(PP3)'!$G$49"]
["pp3_bl3_2_14_name",{"$f":"'T2-B(PP3)'!$B$50","v":0},"#'T2-B(PP3)'!$B$50"]
["pp3_bl3_2_14_rate_in",{"$f":"'T2-B(PP3)'!$E$50","v":0},"#'T2-B(PP3)'!$E$50"]
["pp3_bl3_2_14_rate_out",{"$f":"'T2-B(PP3)'!$H$50","v":0},"#'T2-B(PP3)'!$H$50"]
["pp3_bl3_2_14_total",{"$f":"'T2-B(PP3)'!$J$50","v":0},"#'T2-B(PP3)'!$J$50"]
["pp3_bl3_2_14_total_in",{"$f":"'T2-B(PP3)'!$F$50","v":0},"#'T2-B(PP3)'!$F$50"]
["pp3_bl3_2_14_total_out",{"$f":"'T2-B(PP3)'!$I$50","v":0},"#'T2-B(PP3)'!$I$50"]
["pp3_bl3_2_14_unit",{"$f":"'T2-B(PP3)'!$C$50","v":0},"#'T2-B(PP3)'!$C$50"]
["pp3_bl3_2_14_unit_in",{"$f":"'T2-B(PP3)'!$D$50","v":0},"#'T2-B(PP3)'!$D$50"]
["pp3_bl3_2_14_units_out",{"$f":"'T2-B(PP3)'!$G$50","v":0},"#'T2-B(PP3)'!$G$50"]
["pp3_bl3_2_15_name",{"$f":"'T2-B(PP3)'!$B$51","v":0},"#'T2-B(PP3)'!$B$51"]
["pp3_bl3_2_15_rate_in",{"$f":"'T2-B(PP3)'!$E$51","v":0},"#'T2-B(PP3)'!$E$51"]
["pp3_bl3_2_15_rate_out",{"$f":"'T2-B(PP3)'!$H$51","v":0},"#'T2-B(PP3)'!$H$51"]
["pp3_bl3_2_15_total",{"$f":"'T2-B(PP3)'!$J$51","v":0},"#'T2-B(PP3)'!$J$51"]
["pp3_bl3_2_15_total_in",{"$f":"'T2-B(PP3)'!$F$51","v":0},"#'T2-B(PP3)'!$F$51"]
["pp3_bl3_2_15_total_out",{"$f":"'T2-B(PP3)'!$I$51","v":0},"#'T2-B(PP3)'!$I$51"]
["pp3_bl3_2_15_unit",{"$f":"'T2-B(PP3)'!$C$51","v":0},"#'T2-B(PP3)'!$C$51"]
["pp3_bl3_2_15_unit_in",{"$f":"'T2-B(PP3)'!$D$51","v":0},"#'T2-B(PP3)'!$D$51"]
["pp3_bl3_2_15_units_out",{"$f":"'T2-B(PP3)'!$G$51","v":0},"#'T2-B(PP3)'!$G$51"]
["pp3_bl3_2_16_name",{"$f":"'T2-B(PP3)'!$B$52","v":0},"#'T2-B(PP3)'!$B$52"]
["pp3_bl3_2_16_rate_in",{"$f":"'T2-B(PP3)'!$E$52","v":0},"#'T2-B(PP3)'!$E$52"]
["pp3_bl3_2_16_rate_out",{"$f":"'T2-B(PP3)'!$H$52","v":0},"#'T2-B(PP3)'!$H$52"]
["pp3_bl3_2_16_total",{"$f":"'T2-B(PP3)'!$J$52","v":0},"#'T2-B(PP3)'!$J$52"]
["pp3_bl3_2_16_total_in",{"$f":"'T2-B(PP3)'!$F$52","v":0},"#'T2-B(PP3)'!$F$52"]
["pp3_bl3_2_16_total_out",{"$f":"'T2-B(PP3)'!$I$52","v":0},"#'T2-B(PP3)'!$I$52"]
["pp3_bl3_2_16_unit",{"$f":"'T2-B(PP3)'!$C$52","v":0},"#'T2-B(PP3)'!$C$52"]
["pp3_bl3_2_16_unit_in",{"$f":"'T2-B(PP3)'!$D$52","v":0},"#'T2-B(PP3)'!$D$52"]
["pp3_bl3_2_16_units_out",{"$f":"'T2-B(PP3)'!$G$52","v":0},"#'T2-B(PP3)'!$G$52"]
["pp3_bl3_2_17_name",{"$f":"'T2-B(PP3)'!$B$53","v":0},"#'T2-B(PP3)'!$B$53"]
["pp3_bl3_2_17_rate_in",{"$f":"'T2-B(PP3)'!$E$53","v":0},"#'T2-B(PP3)'!$E$53"]
["pp3_bl3_2_17_rate_out",{"$f":"'T2-B(PP3)'!$H$53","v":0},"#'T2-B(PP3)'!$H$53"]
["pp3_bl3_2_17_total",{"$f":"'T2-B(PP3)'!$J$53","v":0},"#'T2-B(PP3)'!$J$53"]
["pp3_bl3_2_17_total_in",{"$f":"'T2-B(PP3)'!$F$53","v":0},"#'T2-B(PP3)'!$F$53"]
["pp3_bl3_2_17_total_out",{"$f":"'T2-B(PP3)'!$I$53","v":0},"#'T2-B(PP3)'!$I$53"]
["pp3_bl3_2_17_unit",{"$f":"'T2-B(PP3)'!$C$53","v":0},"#'T2-B(PP3)'!$C$53"]
["pp3_bl3_2_17_unit_in",{"$f":"'T2-B(PP3)'!$D$53","v":0},"#'T2-B(PP3)'!$D$53"]
["pp3_bl3_2_17_units_out",{"$f":"'T2-B(PP3)'!$G$53","v":0},"#'T2-B(PP3)'!$G$53"]
["pp3_bl3_2_18_name",{"$f":"'T2-B(PP3)'!$B$54","v":0},"#'T2-B(PP3)'!$B$54"]
["pp3_bl3_2_18_rate_in",{"$f":"'T2-B(PP3)'!$E$54","v":0},"#'T2-B(PP3)'!$E$54"]
["pp3_bl3_2_18_rate_out",{"$f":"'T2-B(PP3)'!$H$54","v":0},"#'T2-B(PP3)'!$H$54"]
["pp3_bl3_2_18_total",{"$f":"'T2-B(PP3)'!$J$54","v":0},"#'T2-B(PP3)'!$J$54"]
["pp3_bl3_2_18_total_in",{"$f":"'T2-B(PP3)'!$F$54","v":0},"#'T2-B(PP3)'!$F$54"]
["pp3_bl3_2_18_total_out",{"$f":"'T2-B(PP3)'!$I$54","v":0},"#'T2-B(PP3)'!$I$54"]
["pp3_bl3_2_18_unit",{"$f":"'T2-B(PP3)'!$C$54","v":0},"#'T2-B(PP3)'!$C$54"]
["pp3_bl3_2_18_unit_in",{"$f":"'T2-B(PP3)'!$D$54","v":0},"#'T2-B(PP3)'!$D$54"]
["pp3_bl3_2_18_units_out",{"$f":"'T2-B(PP3)'!$G$54","v":0},"#'T2-B(PP3)'!$G$54"]
["pp3_bl3_2_19_name",{"$f":"'T2-B(PP3)'!$B$55","v":0},"#'T2-B(PP3)'!$B$55"]
["pp3_bl3_2_19_rate_in",{"$f":"'T2-B(PP3)'!$E$55","v":0},"#'T2-B(PP3)'!$E$55"]
["pp3_bl3_2_19_rate_out",{"$f":"'T2-B(PP3)'!$H$55","v":0},"#'T2-B(PP3)'!$H$55"]
["pp3_bl3_2_19_total",{"$f":"'T2-B(PP3)'!$J$55","v":0},"#'T2-B(PP3)'!$J$55"]
["pp3_bl3_2_19_total_in",{"$f":"'T2-B(PP3)'!$F$55","v":0},"#'T2-B(PP3)'!$F$55"]
["pp3_bl3_2_19_total_out",{"$f":"'T2-B(PP3)'!$I$55","v":0},"#'T2-B(PP3)'!$I$55"]
["pp3_bl3_2_19_unit",{"$f":"'T2-B(PP3)'!$C$55","v":0},"#'T2-B(PP3)'!$C$55"]
["pp3_bl3_2_19_unit_in",{"$f":"'T2-B(PP3)'!$D$55","v":0},"#'T2-B(PP3)'!$D$55"]
["pp3_bl3_2_19_units_out",{"$f":"'T2-B(PP3)'!$G$55","v":0},"#'T2-B(PP3)'!$G$55"]
["pp3_bl3_2_2_name",{"$f":"'T2-B(PP3)'!$B$38","v":0},"#'T2-B(PP3)'!$B$38"]
["pp3_bl3_2_2_rate_in",{"$f":"'T2-B(PP3)'!$E$38","v":0},"#'T2-B(PP3)'!$E$38"]
["pp3_bl3_2_2_rate_out",{"$f":"'T2-B(PP3)'!$H$38","v":0},"#'T2-B(PP3)'!$H$38"]
["pp3_bl3_2_2_total",{"$f":"'T2-B(PP3)'!$J$38","v":0},"#'T2-B(PP3)'!$J$38"]
["pp3_bl3_2_2_total_in",{"$f":"'T2-B(PP3)'!$F$38","v":0},"#'T2-B(PP3)'!$F$38"]
["pp3_bl3_2_2_total_out",{"$f":"'T2-B(PP3)'!$I$38","v":0},"#'T2-B(PP3)'!$I$38"]
["pp3_bl3_2_2_unit",{"$f":"'T2-B(PP3)'!$C$38","v":0},"#'T2-B(PP3)'!$C$38"]
["pp3_bl3_2_2_unit_in",{"$f":"'T2-B(PP3)'!$D$38","v":0},"#'T2-B(PP3)'!$D$38"]
["pp3_bl3_2_2_units_out",{"$f":"'T2-B(PP3)'!$G$38","v":0},"#'T2-B(PP3)'!$G$38"]
["pp3_bl3_2_20_name",{"$f":"'T2-B(PP3)'!$B$56","v":0},"#'T2-B(PP3)'!$B$56"]
["pp3_bl3_2_20_rate_in",{"$f":"'T2-B(PP3)'!$E$56","v":0},"#'T2-B(PP3)'!$E$56"]
["pp3_bl3_2_20_rate_out",{"$f":"'T2-B(PP3)'!$H$56","v":0},"#'T2-B(PP3)'!$H$56"]
["pp3_bl3_2_20_total",{"$f":"'T2-B(PP3)'!$J$56","v":0},"#'T2-B(PP3)'!$J$56"]
["pp3_bl3_2_20_total_in",{"$f":"'T2-B(PP3)'!$F$56","v":0},"#'T2-B(PP3)'!$F$56"]
["pp3_bl3_2_20_total_out",{"$f":"'T2-B(PP3)'!$I$56","v":0},"#'T2-B(PP3)'!$I$56"]
["pp3_bl3_2_20_unit",{"$f":"'T2-B(PP3)'!$C$56","v":0},"#'T2-B(PP3)'!$C$56"]
["pp3_bl3_2_20_unit_in",{"$f":"'T2-B(PP3)'!$D$56","v":0},"#'T2-B(PP3)'!$D$56"]
["pp3_bl3_2_20_units_out",{"$f":"'T2-B(PP3)'!$G$56","v":0},"#'T2-B(PP3)'!$G$56"]
["pp3_bl3_2_3_name",{"$f":"'T2-B(PP3)'!$B$39","v":0},"#'T2-B(PP3)'!$B$39"]
["pp3_bl3_2_3_rate_in",{"$f":"'T2-B(PP3)'!$E$39","v":0},"#'T2-B(PP3)'!$E$39"]
["pp3_bl3_2_3_rate_out",{"$f":"'T2-B(PP3)'!$H$39","v":0},"#'T2-B(PP3)'!$H$39"]
["pp3_bl3_2_3_total",{"$f":"'T2-B(PP3)'!$J$39","v":0},"#'T2-B(PP3)'!$J$39"]
["pp3_bl3_2_3_total_in",{"$f":"'T2-B(PP3)'!$F$39","v":0},"#'T2-B(PP3)'!$F$39"]
["pp3_bl3_2_3_total_out",{"$f":"'T2-B(PP3)'!$I$39","v":0},"#'T2-B(PP3)'!$I$39"]
["pp3_bl3_2_3_unit",{"$f":"'T2-B(PP3)'!$C$39","v":0},"#'T2-B(PP3)'!$C$39"]
["pp3_bl3_2_3_unit_in",{"$f":"'T2-B(PP3)'!$D$39","v":0},"#'T2-B(PP3)'!$D$39"]
["pp3_bl3_2_3_units_out",{"$f":"'T2-B(PP3)'!$G$39","v":0},"#'T2-B(PP3)'!$G$39"]
["pp3_bl3_2_4_name",{"$f":"'T2-B(PP3)'!$B$40","v":0},"#'T2-B(PP3)'!$B$40"]
["pp3_bl3_2_4_rate_in",{"$f":"'T2-B(PP3)'!$E$40","v":0},"#'T2-B(PP3)'!$E$40"]
["pp3_bl3_2_4_rate_out",{"$f":"'T2-B(PP3)'!$H$40","v":0},"#'T2-B(PP3)'!$H$40"]
["pp3_bl3_2_4_total",{"$f":"'T2-B(PP3)'!$J$40","v":0},"#'T2-B(PP3)'!$J$40"]
["pp3_bl3_2_4_total_in",{"$f":"'T2-B(PP3)'!$F$40","v":0},"#'T2-B(PP3)'!$F$40"]
["pp3_bl3_2_4_total_out",{"$f":"'T2-B(PP3)'!$I$40","v":0},"#'T2-B(PP3)'!$I$40"]
["pp3_bl3_2_4_unit",{"$f":"'T2-B(PP3)'!$C$40","v":0},"#'T2-B(PP3)'!$C$40"]
["pp3_bl3_2_4_unit_in",{"$f":"'T2-B(PP3)'!$D$40","v":0},"#'T2-B(PP3)'!$D$40"]
["pp3_bl3_2_4_units_out",{"$f":"'T2-B(PP3)'!$G$40","v":0},"#'T2-B(PP3)'!$G$40"]
["pp3_bl3_2_5_name",{"$f":"'T2-B(PP3)'!$B$41","v":0},"#'T2-B(PP3)'!$B$41"]
["pp3_bl3_2_5_rate_in",{"$f":"'T2-B(PP3)'!$E$41","v":0},"#'T2-B(PP3)'!$E$41"]
["pp3_bl3_2_5_rate_out",{"$f":"'T2-B(PP3)'!$H$41","v":0},"#'T2-B(PP3)'!$H$41"]
["pp3_bl3_2_5_total",{"$f":"'T2-B(PP3)'!$J$41","v":0},"#'T2-B(PP3)'!$J$41"]
["pp3_bl3_2_5_total_in",{"$f":"'T2-B(PP3)'!$F$41","v":0},"#'T2-B(PP3)'!$F$41"]
["pp3_bl3_2_5_total_out",{"$f":"'T2-B(PP3)'!$I$41","v":0},"#'T2-B(PP3)'!$I$41"]
["pp3_bl3_2_5_unit",{"$f":"'T2-B(PP3)'!$C$41","v":0},"#'T2-B(PP3)'!$C$41"]
["pp3_bl3_2_5_unit_in",{"$f":"'T2-B(PP3)'!$D$41","v":0},"#'T2-B(PP3)'!$D$41"]
["pp3_bl3_2_5_units_out",{"$f":"'T2-B(PP3)'!$G$41","v":0},"#'T2-B(PP3)'!$G$41"]
["pp3_bl3_2_6_name",{"$f":"'T2-B(PP3)'!$B$42","v":0},"#'T2-B(PP3)'!$B$42"]
["pp3_bl3_2_6_rate_in",{"$f":"'T2-B(PP3)'!$E$42","v":0},"#'T2-B(PP3)'!$E$42"]
["pp3_bl3_2_6_rate_out",{"$f":"'T2-B(PP3)'!$H$42","v":0},"#'T2-B(PP3)'!$H$42"]
["pp3_bl3_2_6_total",{"$f":"'T2-B(PP3)'!$J$42","v":0},"#'T2-B(PP3)'!$J$42"]
["pp3_bl3_2_6_total_in",{"$f":"'T2-B(PP3)'!$F$42","v":0},"#'T2-B(PP3)'!$F$42"]
["pp3_bl3_2_6_total_out",{"$f":"'T2-B(PP3)'!$I$42","v":0},"#'T2-B(PP3)'!$I$42"]
["pp3_bl3_2_6_unit",{"$f":"'T2-B(PP3)'!$C$42","v":0},"#'T2-B(PP3)'!$C$42"]
["pp3_bl3_2_6_unit_in",{"$f":"'T2-B(PP3)'!$D$42","v":0},"#'T2-B(PP3)'!$D$42"]
["pp3_bl3_2_6_units_out",{"$f":"'T2-B(PP3)'!$G$42","v":0},"#'T2-B(PP3)'!$G$42"]
["pp3_bl3_2_7_name",{"$f":"'T2-B(PP3)'!$B$43","v":0},"#'T2-B(PP3)'!$B$43"]
["pp3_bl3_2_7_rate_in",{"$f":"'T2-B(PP3)'!$E$43","v":0},"#'T2-B(PP3)'!$E$43"]
["pp3_bl3_2_7_rate_out",{"$f":"'T2-B(PP3)'!$H$43","v":0},"#'T2-B(PP3)'!$H$43"]
["pp3_bl3_2_7_total",{"$f":"'T2-B(PP3)'!$J$43","v":0},"#'T2-B(PP3)'!$J$43"]
["pp3_bl3_2_7_total_in",{"$f":"'T2-B(PP3)'!$F$43","v":0},"#'T2-B(PP3)'!$F$43"]
["pp3_bl3_2_7_total_out",{"$f":"'T2-B(PP3)'!$I$43","v":0},"#'T2-B(PP3)'!$I$43"]
["pp3_bl3_2_7_unit",{"$f":"'T2-B(PP3)'!$C$43","v":0},"#'T2-B(PP3)'!$C$43"]
["pp3_bl3_2_7_unit_in",{"$f":"'T2-B(PP3)'!$D$43","v":0},"#'T2-B(PP3)'!$D$43"]
["pp3_bl3_2_7_units_out",{"$f":"'T2-B(PP3)'!$G$43","v":0},"#'T2-B(PP3)'!$G$43"]
["pp3_bl3_2_8_name",{"$f":"'T2-B(PP3)'!$B$44","v":0},"#'T2-B(PP3)'!$B$44"]
["pp3_bl3_2_8_rate_in",{"$f":"'T2-B(PP3)'!$E$44","v":0},"#'T2-B(PP3)'!$E$44"]
["pp3_bl3_2_8_rate_out",{"$f":"'T2-B(PP3)'!$H$44","v":0},"#'T2-B(PP3)'!$H$44"]
["pp3_bl3_2_8_total",{"$f":"'T2-B(PP3)'!$J$44","v":0},"#'T2-B(PP3)'!$J$44"]
["pp3_bl3_2_8_total_in",{"$f":"'T2-B(PP3)'!$F$44","v":0},"#'T2-B(PP3)'!$F$44"]
["pp3_bl3_2_8_total_out",{"$f":"'T2-B(PP3)'!$I$44","v":0},"#'T2-B(PP3)'!$I$44"]
["pp3_bl3_2_8_unit",{"$f":"'T2-B(PP3)'!$C$44","v":0},"#'T2-B(PP3)'!$C$44"]
["pp3_bl3_2_8_unit_in",{"$f":"'T2-B(PP3)'!$D$44","v":0},"#'T2-B(PP3)'!$D$44"]
["pp3_bl3_2_8_units_out",{"$f":"'T2-B(PP3)'!$G$44","v":0},"#'T2-B(PP3)'!$G$44"]
["pp3_bl3_2_9_name",{"$f":"'T2-B(PP3)'!$B$45","v":0},"#'T2-B(PP3)'!$B$45"]
["pp3_bl3_2_9_rate_in",{"$f":"'T2-B(PP3)'!$E$45","v":0},"#'T2-B(PP3)'!$E$45"]
["pp3_bl3_2_9_rate_out",{"$f":"'T2-B(PP3)'!$H$45","v":0},"#'T2-B(PP3)'!$H$45"]
["pp3_bl3_2_9_total",{"$f":"'T2-B(PP3)'!$J$45","v":0},"#'T2-B(PP3)'!$J$45"]
["pp3_bl3_2_9_total_in",{"$f":"'T2-B(PP3)'!$F$45","v":0},"#'T2-B(PP3)'!$F$45"]
["pp3_bl3_2_9_total_out",{"$f":"'T2-B(PP3)'!$I$45","v":0},"#'T2-B(PP3)'!$I$45"]
["pp3_bl3_2_9_unit",{"$f":"'T2-B(PP3)'!$C$45","v":0},"#'T2-B(PP3)'!$C$45"]
["pp3_bl3_2_9_unit_in",{"$f":"'T2-B(PP3)'!$D$45","v":0},"#'T2-B(PP3)'!$D$45"]
["pp3_bl3_2_9_units_out",{"$f":"'T2-B(PP3)'!$G$45","v":0},"#'T2-B(PP3)'!$G$45"]
["pp3_bl3_2_total",{"$f":"'T2-B(PP3)'!$J$36","v":0},"#'T2-B(PP3)'!$J$36"]
["pp3_bl3_2_total_in",{"$f":"'T2-B(PP3)'!$F$36","v":0},"#'T2-B(PP3)'!$F$36"]
["pp3_bl3_2_total_out",{"$f":"'T2-B(PP3)'!$I$36","v":0},"#'T2-B(PP3)'!$I$36"]
["pp3_bl3_3_1_name",{"$f":"'T2-B(PP3)'!$B$58","v":0},"#'T2-B(PP3)'!$B$58"]
["pp3_bl3_3_1_rate_in",{"$f":"'T2-B(PP3)'!$E$58","v":0},"#'T2-B(PP3)'!$E$58"]
["pp3_bl3_3_1_rate_out",{"$f":"'T2-B(PP3)'!$H$58","v":0},"#'T2-B(PP3)'!$H$58"]
["pp3_bl3_3_1_total",{"$f":"'T2-B(PP3)'!$J$58","v":0},"#'T2-B(PP3)'!$J$58"]
["pp3_bl3_3_1_total_in",{"$f":"'T2-B(PP3)'!$F$58","v":0},"#'T2-B(PP3)'!$F$58"]
["pp3_bl3_3_1_total_out",{"$f":"'T2-B(PP3)'!$I$58","v":0},"#'T2-B(PP3)'!$I$58"]
["pp3_bl3_3_1_unit",{"$f":"'T2-B(PP3)'!$C$58","v":0},"#'T2-B(PP3)'!$C$58"]
["pp3_bl3_3_1_unit_in",{"$f":"'T2-B(PP3)'!$D$58","v":0},"#'T2-B(PP3)'!$D$58"]
["pp3_bl3_3_1_units_out",{"$f":"'T2-B(PP3)'!$G$58","v":0},"#'T2-B(PP3)'!$G$58"]
["pp3_bl3_3_10_name",{"$f":"'T2-B(PP3)'!$B$67","v":0},"#'T2-B(PP3)'!$B$67"]
["pp3_bl3_3_10_rate_in",{"$f":"'T2-B(PP3)'!$E$67","v":0},"#'T2-B(PP3)'!$E$67"]
["pp3_bl3_3_10_rate_out",{"$f":"'T2-B(PP3)'!$H$67","v":0},"#'T2-B(PP3)'!$H$67"]
["pp3_bl3_3_10_total",{"$f":"'T2-B(PP3)'!$J$67","v":0},"#'T2-B(PP3)'!$J$67"]
["pp3_bl3_3_10_total_in",{"$f":"'T2-B(PP3)'!$F$67","v":0},"#'T2-B(PP3)'!$F$67"]
["pp3_bl3_3_10_total_out",{"$f":"'T2-B(PP3)'!$I$67","v":0},"#'T2-B(PP3)'!$I$67"]
["pp3_bl3_3_10_unit",{"$f":"'T2-B(PP3)'!$C$67","v":0},"#'T2-B(PP3)'!$C$67"]
["pp3_bl3_3_10_unit_in",{"$f":"'T2-B(PP3)'!$D$67","v":0},"#'T2-B(PP3)'!$D$67"]
["pp3_bl3_3_10_units_out",{"$f":"'T2-B(PP3)'!$G$67","v":0},"#'T2-B(PP3)'!$G$67"]
["pp3_bl3_3_11_name",{"$f":"'T2-B(PP3)'!$B$68","v":0},"#'T2-B(PP3)'!$B$68"]
["pp3_bl3_3_11_rate_in",{"$f":"'T2-B(PP3)'!$E$68","v":0},"#'T2-B(PP3)'!$E$68"]
["pp3_bl3_3_11_rate_out",{"$f":"'T2-B(PP3)'!$H$68","v":0},"#'T2-B(PP3)'!$H$68"]
["pp3_bl3_3_11_total",{"$f":"'T2-B(PP3)'!$J$68","v":0},"#'T2-B(PP3)'!$J$68"]
["pp3_bl3_3_11_total_in",{"$f":"'T2-B(PP3)'!$F$68","v":0},"#'T2-B(PP3)'!$F$68"]
["pp3_bl3_3_11_total_out",{"$f":"'T2-B(PP3)'!$I$68","v":0},"#'T2-B(PP3)'!$I$68"]
["pp3_bl3_3_11_unit",{"$f":"'T2-B(PP3)'!$C$68","v":0},"#'T2-B(PP3)'!$C$68"]
["pp3_bl3_3_11_unit_in",{"$f":"'T2-B(PP3)'!$D$68","v":0},"#'T2-B(PP3)'!$D$68"]
["pp3_bl3_3_11_units_out",{"$f":"'T2-B(PP3)'!$G$68","v":0},"#'T2-B(PP3)'!$G$68"]
["pp3_bl3_3_12_name",{"$f":"'T2-B(PP3)'!$B$69","v":0},"#'T2-B(PP3)'!$B$69"]
["pp3_bl3_3_12_rate_in",{"$f":"'T2-B(PP3)'!$E$69","v":0},"#'T2-B(PP3)'!$E$69"]
["pp3_bl3_3_12_rate_out",{"$f":"'T2-B(PP3)'!$H$69","v":0},"#'T2-B(PP3)'!$H$69"]
["pp3_bl3_3_12_total",{"$f":"'T2-B(PP3)'!$J$69","v":0},"#'T2-B(PP3)'!$J$69"]
["pp3_bl3_3_12_total_in",{"$f":"'T2-B(PP3)'!$F$69","v":0},"#'T2-B(PP3)'!$F$69"]
["pp3_bl3_3_12_total_out",{"$f":"'T2-B(PP3)'!$I$69","v":0},"#'T2-B(PP3)'!$I$69"]
["pp3_bl3_3_12_unit",{"$f":"'T2-B(PP3)'!$C$69","v":0},"#'T2-B(PP3)'!$C$69"]
["pp3_bl3_3_12_unit_in",{"$f":"'T2-B(PP3)'!$D$69","v":0},"#'T2-B(PP3)'!$D$69"]
["pp3_bl3_3_12_units_out",{"$f":"'T2-B(PP3)'!$G$69","v":0},"#'T2-B(PP3)'!$G$69"]
["pp3_bl3_3_13_name",{"$f":"'T2-B(PP3)'!$B$70","v":0},"#'T2-B(PP3)'!$B$70"]
["pp3_bl3_3_13_rate_in",{"$f":"'T2-B(PP3)'!$E$70","v":0},"#'T2-B(PP3)'!$E$70"]
["pp3_bl3_3_13_rate_out",{"$f":"'T2-B(PP3)'!$H$70","v":0},"#'T2-B(PP3)'!$H$70"]
["pp3_bl3_3_13_total",{"$f":"'T2-B(PP3)'!$J$70","v":0},"#'T2-B(PP3)'!$J$70"]
["pp3_bl3_3_13_total_in",{"$f":"'T2-B(PP3)'!$F$70","v":0},"#'T2-B(PP3)'!$F$70"]
["pp3_bl3_3_13_total_out",{"$f":"'T2-B(PP3)'!$I$70","v":0},"#'T2-B(PP3)'!$I$70"]
["pp3_bl3_3_13_unit",{"$f":"'T2-B(PP3)'!$C$70","v":0},"#'T2-B(PP3)'!$C$70"]
["pp3_bl3_3_13_unit_in",{"$f":"'T2-B(PP3)'!$D$70","v":0},"#'T2-B(PP3)'!$D$70"]
["pp3_bl3_3_13_units_out",{"$f":"'T2-B(PP3)'!$G$70","v":0},"#'T2-B(PP3)'!$G$70"]
["pp3_bl3_3_14_name",{"$f":"'T2-B(PP3)'!$B$71","v":0},"#'T2-B(PP3)'!$B$71"]
["pp3_bl3_3_14_rate_in",{"$f":"'T2-B(PP3)'!$E$71","v":0},"#'T2-B(PP3)'!$E$71"]
["pp3_bl3_3_14_rate_out",{"$f":"'T2-B(PP3)'!$H$71","v":0},"#'T2-B(PP3)'!$H$71"]
["pp3_bl3_3_14_total",{"$f":"'T2-B(PP3)'!$J$71","v":0},"#'T2-B(PP3)'!$J$71"]
["pp3_bl3_3_14_total_in",{"$f":"'T2-B(PP3)'!$F$71","v":0},"#'T2-B(PP3)'!$F$71"]
["pp3_bl3_3_14_total_out",{"$f":"'T2-B(PP3)'!$I$71","v":0},"#'T2-B(PP3)'!$I$71"]
["pp3_bl3_3_14_unit",{"$f":"'T2-B(PP3)'!$C$71","v":0},"#'T2-B(PP3)'!$C$71"]
["pp3_bl3_3_14_unit_in",{"$f":"'T2-B(PP3)'!$D$71","v":0},"#'T2-B(PP3)'!$D$71"]
["pp3_bl3_3_14_units_out",{"$f":"'T2-B(PP3)'!$G$71","v":0},"#'T2-B(PP3)'!$G$71"]
["pp3_bl3_3_15_name",{"$f":"'T2-B(PP3)'!$B$72","v":0},"#'T2-B(PP3)'!$B$72"]
["pp3_bl3_3_15_rate_in",{"$f":"'T2-B(PP3)'!$E$72","v":0},"#'T2-B(PP3)'!$E$72"]
["pp3_bl3_3_15_rate_out",{"$f":"'T2-B(PP3)'!$H$72","v":0},"#'T2-B(PP3)'!$H$72"]
["pp3_bl3_3_15_total",{"$f":"'T2-B(PP3)'!$J$72","v":0},"#'T2-B(PP3)'!$J$72"]
["pp3_bl3_3_15_total_in",{"$f":"'T2-B(PP3)'!$F$72","v":0},"#'T2-B(PP3)'!$F$72"]
["pp3_bl3_3_15_total_out",{"$f":"'T2-B(PP3)'!$I$72","v":0},"#'T2-B(PP3)'!$I$72"]
["pp3_bl3_3_15_unit",{"$f":"'T2-B(PP3)'!$C$72","v":0},"#'T2-B(PP3)'!$C$72"]
["pp3_bl3_3_15_unit_in",{"$f":"'T2-B(PP3)'!$D$72","v":0},"#'T2-B(PP3)'!$D$72"]
["pp3_bl3_3_15_units_out",{"$f":"'T2-B(PP3)'!$G$72","v":0},"#'T2-B(PP3)'!$G$72"]
["pp3_bl3_3_16_name",{"$f":"'T2-B(PP3)'!$B$73","v":0},"#'T2-B(PP3)'!$B$73"]
["pp3_bl3_3_16_rate_in",{"$f":"'T2-B(PP3)'!$E$73","v":0},"#'T2-B(PP3)'!$E$73"]
["pp3_bl3_3_16_rate_out",{"$f":"'T2-B(PP3)'!$H$73","v":0},"#'T2-B(PP3)'!$H$73"]
["pp3_bl3_3_16_total",{"$f":"'T2-B(PP3)'!$J$73","v":0},"#'T2-B(PP3)'!$J$73"]
["pp3_bl3_3_16_total_in",{"$f":"'T2-B(PP3)'!$F$73","v":0},"#'T2-B(PP3)'!$F$73"]
["pp3_bl3_3_16_total_out",{"$f":"'T2-B(PP3)'!$I$73","v":0},"#'T2-B(PP3)'!$I$73"]
["pp3_bl3_3_16_unit",{"$f":"'T2-B(PP3)'!$C$73","v":0},"#'T2-B(PP3)'!$C$73"]
["pp3_bl3_3_16_unit_in",{"$f":"'T2-B(PP3)'!$D$73","v":0},"#'T2-B(PP3)'!$D$73"]
["pp3_bl3_3_16_units_out",{"$f":"'T2-B(PP3)'!$G$73","v":0},"#'T2-B(PP3)'!$G$73"]
["pp3_bl3_3_17_name",{"$f":"'T2-B(PP3)'!$B$74","v":0},"#'T2-B(PP3)'!$B$74"]
["pp3_bl3_3_17_rate_in",{"$f":"'T2-B(PP3)'!$E$74","v":0},"#'T2-B(PP3)'!$E$74"]
["pp3_bl3_3_17_rate_out",{"$f":"'T2-B(PP3)'!$H$74","v":0},"#'T2-B(PP3)'!$H$74"]
["pp3_bl3_3_17_total",{"$f":"'T2-B(PP3)'!$J$74","v":0},"#'T2-B(PP3)'!$J$74"]
["pp3_bl3_3_17_total_in",{"$f":"'T2-B(PP3)'!$F$74","v":0},"#'T2-B(PP3)'!$F$74"]
["pp3_bl3_3_17_total_out",{"$f":"'T2-B(PP3)'!$I$74","v":0},"#'T2-B(PP3)'!$I$74"]
["pp3_bl3_3_17_unit",{"$f":"'T2-B(PP3)'!$C$74","v":0},"#'T2-B(PP3)'!$C$74"]
["pp3_bl3_3_17_unit_in",{"$f":"'T2-B(PP3)'!$D$74","v":0},"#'T2-B(PP3)'!$D$74"]
["pp3_bl3_3_17_units_out",{"$f":"'T2-B(PP3)'!$G$74","v":0},"#'T2-B(PP3)'!$G$74"]
["pp3_bl3_3_18_name",{"$f":"'T2-B(PP3)'!$B$75","v":0},"#'T2-B(PP3)'!$B$75"]
["pp3_bl3_3_18_rate_in",{"$f":"'T2-B(PP3)'!$E$75","v":0},"#'T2-B(PP3)'!$E$75"]
["pp3_bl3_3_18_rate_out",{"$f":"'T2-B(PP3)'!$H$75","v":0},"#'T2-B(PP3)'!$H$75"]
["pp3_bl3_3_18_total",{"$f":"'T2-B(PP3)'!$J$75","v":0},"#'T2-B(PP3)'!$J$75"]
["pp3_bl3_3_18_total_in",{"$f":"'T2-B(PP3)'!$F$75","v":0},"#'T2-B(PP3)'!$F$75"]
["pp3_bl3_3_18_total_out",{"$f":"'T2-B(PP3)'!$I$75","v":0},"#'T2-B(PP3)'!$I$75"]
["pp3_bl3_3_18_unit",{"$f":"'T2-B(PP3)'!$C$75","v":0},"#'T2-B(PP3)'!$C$75"]
["pp3_bl3_3_18_unit_in",{"$f":"'T2-B(PP3)'!$D$75","v":0},"#'T2-B(PP3)'!$D$75"]
["pp3_bl3_3_18_units_out",{"$f":"'T2-B(PP3)'!$G$75","v":0},"#'T2-B(PP3)'!$G$75"]
["pp3_bl3_3_19_name",{"$f":"'T2-B(PP3)'!$B$76","v":0},"#'T2-B(PP3)'!$B$76"]
["pp3_bl3_3_19_rate_in",{"$f":"'T2-B(PP3)'!$E$76","v":0},"#'T2-B(PP3)'!$E$76"]
["pp3_bl3_3_19_rate_out",{"$f":"'T2-B(PP3)'!$H$76","v":0},"#'T2-B(PP3)'!$H$76"]
["pp3_bl3_3_19_total",{"$f":"'T2-B(PP3)'!$J$76","v":0},"#'T2-B(PP3)'!$J$76"]
["pp3_bl3_3_19_total_in",{"$f":"'T2-B(PP3)'!$F$76","v":0},"#'T2-B(PP3)'!$F$76"]
["pp3_bl3_3_19_total_out",{"$f":"'T2-B(PP3)'!$I$76","v":0},"#'T2-B(PP3)'!$I$76"]
["pp3_bl3_3_19_unit",{"$f":"'T2-B(PP3)'!$C$76","v":0},"#'T2-B(PP3)'!$C$76"]
["pp3_bl3_3_19_unit_in",{"$f":"'T2-B(PP3)'!$D$76","v":0},"#'T2-B(PP3)'!$D$76"]
["pp3_bl3_3_19_units_out",{"$f":"'T2-B(PP3)'!$G$76","v":0},"#'T2-B(PP3)'!$G$76"]
["pp3_bl3_3_2_name",{"$f":"'T2-B(PP3)'!$B$59","v":0},"#'T2-B(PP3)'!$B$59"]
["pp3_bl3_3_2_rate_in",{"$f":"'T2-B(PP3)'!$E$59","v":0},"#'T2-B(PP3)'!$E$59"]
["pp3_bl3_3_2_rate_out",{"$f":"'T2-B(PP3)'!$H$59","v":0},"#'T2-B(PP3)'!$H$59"]
["pp3_bl3_3_2_total",{"$f":"'T2-B(PP3)'!$J$59","v":0},"#'T2-B(PP3)'!$J$59"]
["pp3_bl3_3_2_total_in",{"$f":"'T2-B(PP3)'!$F$59","v":0},"#'T2-B(PP3)'!$F$59"]
["pp3_bl3_3_2_total_out",{"$f":"'T2-B(PP3)'!$I$59","v":0},"#'T2-B(PP3)'!$I$59"]
["pp3_bl3_3_2_unit",{"$f":"'T2-B(PP3)'!$C$59","v":0},"#'T2-B(PP3)'!$C$59"]
["pp3_bl3_3_2_unit_in",{"$f":"'T2-B(PP3)'!$D$59","v":0},"#'T2-B(PP3)'!$D$59"]
["pp3_bl3_3_2_units_out",{"$f":"'T2-B(PP3)'!$G$59","v":0},"#'T2-B(PP3)'!$G$59"]
["pp3_bl3_3_20_name",{"$f":"'T2-B(PP3)'!$B$77","v":0},"#'T2-B(PP3)'!$B$77"]
["pp3_bl3_3_20_rate_in",{"$f":"'T2-B(PP3)'!$E$77","v":0},"#'T2-B(PP3)'!$E$77"]
["pp3_bl3_3_20_rate_out",{"$f":"'T2-B(PP3)'!$H$77","v":0},"#'T2-B(PP3)'!$H$77"]
["pp3_bl3_3_20_total",{"$f":"'T2-B(PP3)'!$J$77","v":0},"#'T2-B(PP3)'!$J$77"]
["pp3_bl3_3_20_total_in",{"$f":"'T2-B(PP3)'!$F$77","v":0},"#'T2-B(PP3)'!$F$77"]
["pp3_bl3_3_20_total_out",{"$f":"'T2-B(PP3)'!$I$77","v":0},"#'T2-B(PP3)'!$I$77"]
["pp3_bl3_3_20_unit",{"$f":"'T2-B(PP3)'!$C$77","v":0},"#'T2-B(PP3)'!$C$77"]
["pp3_bl3_3_20_unit_in",{"$f":"'T2-B(PP3)'!$D$77","v":0},"#'T2-B(PP3)'!$D$77"]
["pp3_bl3_3_20_units_out",{"$f":"'T2-B(PP3)'!$G$77","v":0},"#'T2-B(PP3)'!$G$77"]
["pp3_bl3_3_3_name",{"$f":"'T2-B(PP3)'!$B$60","v":0},"#'T2-B(PP3)'!$B$60"]
["pp3_bl3_3_3_rate_in",{"$f":"'T2-B(PP3)'!$E$60","v":0},"#'T2-B(PP3)'!$E$60"]
["pp3_bl3_3_3_rate_out",{"$f":"'T2-B(PP3)'!$H$60","v":0},"#'T2-B(PP3)'!$H$60"]
["pp3_bl3_3_3_total",{"$f":"'T2-B(PP3)'!$J$60","v":0},"#'T2-B(PP3)'!$J$60"]
["pp3_bl3_3_3_total_in",{"$f":"'T2-B(PP3)'!$F$60","v":0},"#'T2-B(PP3)'!$F$60"]
["pp3_bl3_3_3_total_out",{"$f":"'T2-B(PP3)'!$I$60","v":0},"#'T2-B(PP3)'!$I$60"]
["pp3_bl3_3_3_unit",{"$f":"'T2-B(PP3)'!$C$60","v":0},"#'T2-B(PP3)'!$C$60"]
["pp3_bl3_3_3_unit_in",{"$f":"'T2-B(PP3)'!$D$60","v":0},"#'T2-B(PP3)'!$D$60"]
["pp3_bl3_3_3_units_out",{"$f":"'T2-B(PP3)'!$G$60","v":0},"#'T2-B(PP3)'!$G$60"]
["pp3_bl3_3_4_name",{"$f":"'T2-B(PP3)'!$B$61","v":0},"#'T2-B(PP3)'!$B$61"]
["pp3_bl3_3_4_rate_in",{"$f":"'T2-B(PP3)'!$E$61","v":0},"#'T2-B(PP3)'!$E$61"]
["pp3_bl3_3_4_rate_out",{"$f":"'T2-B(PP3)'!$H$61","v":0},"#'T2-B(PP3)'!$H$61"]
["pp3_bl3_3_4_total",{"$f":"'T2-B(PP3)'!$J$61","v":0},"#'T2-B(PP3)'!$J$61"]
["pp3_bl3_3_4_total_in",{"$f":"'T2-B(PP3)'!$F$61","v":0},"#'T2-B(PP3)'!$F$61"]
["pp3_bl3_3_4_total_out",{"$f":"'T2-B(PP3)'!$I$61","v":0},"#'T2-B(PP3)'!$I$61"]
["pp3_bl3_3_4_unit",{"$f":"'T2-B(PP3)'!$C$61","v":0},"#'T2-B(PP3)'!$C$61"]
["pp3_bl3_3_4_unit_in",{"$f":"'T2-B(PP3)'!$D$61","v":0},"#'T2-B(PP3)'!$D$61"]
["pp3_bl3_3_4_units_out",{"$f":"'T2-B(PP3)'!$G$61","v":0},"#'T2-B(PP3)'!$G$61"]
["pp3_bl3_3_5_name",{"$f":"'T2-B(PP3)'!$B$62","v":0},"#'T2-B(PP3)'!$B$62"]
["pp3_bl3_3_5_rate_in",{"$f":"'T2-B(PP3)'!$E$62","v":0},"#'T2-B(PP3)'!$E$62"]
["pp3_bl3_3_5_rate_out",{"$f":"'T2-B(PP3)'!$H$62","v":0},"#'T2-B(PP3)'!$H$62"]
["pp3_bl3_3_5_total",{"$f":"'T2-B(PP3)'!$J$62","v":0},"#'T2-B(PP3)'!$J$62"]
["pp3_bl3_3_5_total_in",{"$f":"'T2-B(PP3)'!$F$62","v":0},"#'T2-B(PP3)'!$F$62"]
["pp3_bl3_3_5_total_out",{"$f":"'T2-B(PP3)'!$I$62","v":0},"#'T2-B(PP3)'!$I$62"]
["pp3_bl3_3_5_unit",{"$f":"'T2-B(PP3)'!$C$62","v":0},"#'T2-B(PP3)'!$C$62"]
["pp3_bl3_3_5_unit_in",{"$f":"'T2-B(PP3)'!$D$62","v":0},"#'T2-B(PP3)'!$D$62"]
["pp3_bl3_3_5_units_out",{"$f":"'T2-B(PP3)'!$G$62","v":0},"#'T2-B(PP3)'!$G$62"]
["pp3_bl3_3_6_name",{"$f":"'T2-B(PP3)'!$B$63","v":0},"#'T2-B(PP3)'!$B$63"]
["pp3_bl3_3_6_rate_in",{"$f":"'T2-B(PP3)'!$E$63","v":0},"#'T2-B(PP3)'!$E$63"]
["pp3_bl3_3_6_rate_out",{"$f":"'T2-B(PP3)'!$H$63","v":0},"#'T2-B(PP3)'!$H$63"]
["pp3_bl3_3_6_total",{"$f":"'T2-B(PP3)'!$J$63","v":0},"#'T2-B(PP3)'!$J$63"]
["pp3_bl3_3_6_total_in",{"$f":"'T2-B(PP3)'!$F$63","v":0},"#'T2-B(PP3)'!$F$63"]
["pp3_bl3_3_6_total_out",{"$f":"'T2-B(PP3)'!$I$63","v":0},"#'T2-B(PP3)'!$I$63"]
["pp3_bl3_3_6_unit",{"$f":"'T2-B(PP3)'!$C$63","v":0},"#'T2-B(PP3)'!$C$63"]
["pp3_bl3_3_6_unit_in",{"$f":"'T2-B(PP3)'!$D$63","v":0},"#'T2-B(PP3)'!$D$63"]
["pp3_bl3_3_6_units_out",{"$f":"'T2-B(PP3)'!$G$63","v":0},"#'T2-B(PP3)'!$G$63"]
["pp3_bl3_3_7_name",{"$f":"'T2-B(PP3)'!$B$64","v":0},"#'T2-B(PP3)'!$B$64"]
["pp3_bl3_3_7_rate_in",{"$f":"'T2-B(PP3)'!$E$64","v":0},"#'T2-B(PP3)'!$E$64"]
["pp3_bl3_3_7_rate_out",{"$f":"'T2-B(PP3)'!$H$64","v":0},"#'T2-B(PP3)'!$H$64"]
["pp3_bl3_3_7_total",{"$f":"'T2-B(PP3)'!$J$64","v":0},"#'T2-B(PP3)'!$J$64"]
["pp3_bl3_3_7_total_in",{"$f":"'T2-B(PP3)'!$F$64","v":0},"#'T2-B(PP3)'!$F$64"]
["pp3_bl3_3_7_total_out",{"$f":"'T2-B(PP3)'!$I$64","v":0},"#'T2-B(PP3)'!$I$64"]
["pp3_bl3_3_7_unit",{"$f":"'T2-B(PP3)'!$C$64","v":0},"#'T2-B(PP3)'!$C$64"]
["pp3_bl3_3_7_unit_in",{"$f":"'T2-B(PP3)'!$D$64","v":0},"#'T2-B(PP3)'!$D$64"]
["pp3_bl3_3_7_units_out",{"$f":"'T2-B(PP3)'!$G$64","v":0},"#'T2-B(PP3)'!$G$64"]
["pp3_bl3_3_8_name",{"$f":"'T2-B(PP3)'!$B$65","v":0},"#'T2-B(PP3)'!$B$65"]
["pp3_bl3_3_8_rate_in",{"$f":"'T2-B(PP3)'!$E$65","v":0},"#'T2-B(PP3)'!$E$65"]
["pp3_bl3_3_8_rate_out",{"$f":"'T2-B(PP3)'!$H$65","v":0},"#'T2-B(PP3)'!$H$65"]
["pp3_bl3_3_8_total",{"$f":"'T2-B(PP3)'!$J$65","v":0},"#'T2-B(PP3)'!$J$65"]
["pp3_bl3_3_8_total_in",{"$f":"'T2-B(PP3)'!$F$65","v":0},"#'T2-B(PP3)'!$F$65"]
["pp3_bl3_3_8_total_out",{"$f":"'T2-B(PP3)'!$I$65","v":0},"#'T2-B(PP3)'!$I$65"]
["pp3_bl3_3_8_unit",{"$f":"'T2-B(PP3)'!$C$65","v":0},"#'T2-B(PP3)'!$C$65"]
["pp3_bl3_3_8_unit_in",{"$f":"'T2-B(PP3)'!$D$65","v":0},"#'T2-B(PP3)'!$D$65"]
["pp3_bl3_3_8_units_out",{"$f":"'T2-B(PP3)'!$G$65","v":0},"#'T2-B(PP3)'!$G$65"]
["pp3_bl3_3_9_name",{"$f":"'T2-B(PP3)'!$B$66","v":0},"#'T2-B(PP3)'!$B$66"]
["pp3_bl3_3_9_rate_in",{"$f":"'T2-B(PP3)'!$E$66","v":0},"#'T2-B(PP3)'!$E$66"]
["pp3_bl3_3_9_rate_out",{"$f":"'T2-B(PP3)'!$H$66","v":0},"#'T2-B(PP3)'!$H$66"]
["pp3_bl3_3_9_total",{"$f":"'T2-B(PP3)'!$J$66","v":0},"#'T2-B(PP3)'!$J$66"]
["pp3_bl3_3_9_total_in",{"$f":"'T2-B(PP3)'!$F$66","v":0},"#'T2-B(PP3)'!$F$66"]
["pp3_bl3_3_9_total_out",{"$f":"'T2-B(PP3)'!$I$66","v":0},"#'T2-B(PP3)'!$I$66"]
["pp3_bl3_3_9_unit",{"$f":"'T2-B(PP3)'!$C$66","v":0},"#'T2-B(PP3)'!$C$66"]
["pp3_bl3_3_9_unit_in",{"$f":"'T2-B(PP3)'!$D$66","v":0},"#'T2-B(PP3)'!$D$66"]
["pp3_bl3_3_9_units_out",{"$f":"'T2-B(PP3)'!$G$66","v":0},"#'T2-B(PP3)'!$G$66"]
["pp3_bl3_3_total",{"$f":"'T2-B(PP3)'!$J$57","v":0},"#'T2-B(PP3)'!$J$57"]
["pp3_bl3_3_total_in",{"$f":"'T2-B(PP3)'!$F$57","v":0},"#'T2-B(PP3)'!$F$57"]
["pp3_bl3_3_total_out",{"$f":"'T2-B(PP3)'!$I$57","v":0},"#'T2-B(PP3)'!$I$57"]
["pp3_bl3_4_1_name",{"$f":"'T2-B(PP3)'!$B$79","v":0},"#'T2-B(PP3)'!$B$79"]
["pp3_bl3_4_1_rate_in",{"$f":"'T2-B(PP3)'!$E$79","v":0},"#'T2-B(PP3)'!$E$79"]
["pp3_bl3_4_1_rate_out",{"$f":"'T2-B(PP3)'!$H$79","v":0},"#'T2-B(PP3)'!$H$79"]
["pp3_bl3_4_1_total",{"$f":"'T2-B(PP3)'!$J$79","v":0},"#'T2-B(PP3)'!$J$79"]
["pp3_bl3_4_1_total_in",{"$f":"'T2-B(PP3)'!$F$79","v":0},"#'T2-B(PP3)'!$F$79"]
["pp3_bl3_4_1_total_out",{"$f":"'T2-B(PP3)'!$I$79","v":0},"#'T2-B(PP3)'!$I$79"]
["pp3_bl3_4_1_unit",{"$f":"'T2-B(PP3)'!$C$79","v":0},"#'T2-B(PP3)'!$C$79"]
["pp3_bl3_4_1_unit_in",{"$f":"'T2-B(PP3)'!$D$79","v":0},"#'T2-B(PP3)'!$D$79"]
["pp3_bl3_4_1_units_out",{"$f":"'T2-B(PP3)'!$G$79","v":0},"#'T2-B(PP3)'!$G$79"]
["pp3_bl3_4_10_name",{"$f":"'T2-B(PP3)'!$B$88","v":0},"#'T2-B(PP3)'!$B$88"]
["pp3_bl3_4_10_rate_in",{"$f":"'T2-B(PP3)'!$E$88","v":0},"#'T2-B(PP3)'!$E$88"]
["pp3_bl3_4_10_rate_out",{"$f":"'T2-B(PP3)'!$H$88","v":0},"#'T2-B(PP3)'!$H$88"]
["pp3_bl3_4_10_total",{"$f":"'T2-B(PP3)'!$J$88","v":0},"#'T2-B(PP3)'!$J$88"]
["pp3_bl3_4_10_total_in",{"$f":"'T2-B(PP3)'!$F$88","v":0},"#'T2-B(PP3)'!$F$88"]
["pp3_bl3_4_10_total_out",{"$f":"'T2-B(PP3)'!$I$88","v":0},"#'T2-B(PP3)'!$I$88"]
["pp3_bl3_4_10_unit",{"$f":"'T2-B(PP3)'!$C$88","v":0},"#'T2-B(PP3)'!$C$88"]
["pp3_bl3_4_10_unit_in",{"$f":"'T2-B(PP3)'!$D$88","v":0},"#'T2-B(PP3)'!$D$88"]
["pp3_bl3_4_10_units_out",{"$f":"'T2-B(PP3)'!$G$88","v":0},"#'T2-B(PP3)'!$G$88"]
["pp3_bl3_4_2_name",{"$f":"'T2-B(PP3)'!$B$80","v":0},"#'T2-B(PP3)'!$B$80"]
["pp3_bl3_4_2_rate_in",{"$f":"'T2-B(PP3)'!$E$80","v":0},"#'T2-B(PP3)'!$E$80"]
["pp3_bl3_4_2_rate_out",{"$f":"'T2-B(PP3)'!$H$80","v":0},"#'T2-B(PP3)'!$H$80"]
["pp3_bl3_4_2_total",{"$f":"'T2-B(PP3)'!$J$80","v":0},"#'T2-B(PP3)'!$J$80"]
["pp3_bl3_4_2_total_in",{"$f":"'T2-B(PP3)'!$F$80","v":0},"#'T2-B(PP3)'!$F$80"]
["pp3_bl3_4_2_total_out",{"$f":"'T2-B(PP3)'!$I$80","v":0},"#'T2-B(PP3)'!$I$80"]
["pp3_bl3_4_2_unit",{"$f":"'T2-B(PP3)'!$C$80","v":0},"#'T2-B(PP3)'!$C$80"]
["pp3_bl3_4_2_unit_in",{"$f":"'T2-B(PP3)'!$D$80","v":0},"#'T2-B(PP3)'!$D$80"]
["pp3_bl3_4_2_units_out",{"$f":"'T2-B(PP3)'!$G$80","v":0},"#'T2-B(PP3)'!$G$80"]
["pp3_bl3_4_3_name",{"$f":"'T2-B(PP3)'!$B$81","v":0},"#'T2-B(PP3)'!$B$81"]
["pp3_bl3_4_3_rate_in",{"$f":"'T2-B(PP3)'!$E$81","v":0},"#'T2-B(PP3)'!$E$81"]
["pp3_bl3_4_3_rate_out",{"$f":"'T2-B(PP3)'!$H$81","v":0},"#'T2-B(PP3)'!$H$81"]
["pp3_bl3_4_3_total",{"$f":"'T2-B(PP3)'!$J$81","v":0},"#'T2-B(PP3)'!$J$81"]
["pp3_bl3_4_3_total_in",{"$f":"'T2-B(PP3)'!$F$81","v":0},"#'T2-B(PP3)'!$F$81"]
["pp3_bl3_4_3_total_out",{"$f":"'T2-B(PP3)'!$I$81","v":0},"#'T2-B(PP3)'!$I$81"]
["pp3_bl3_4_3_unit",{"$f":"'T2-B(PP3)'!$C$81","v":0},"#'T2-B(PP3)'!$C$81"]
["pp3_bl3_4_3_unit_in",{"$f":"'T2-B(PP3)'!$D$81","v":0},"#'T2-B(PP3)'!$D$81"]
["pp3_bl3_4_3_units_out",{"$f":"'T2-B(PP3)'!$G$81","v":0},"#'T2-B(PP3)'!$G$81"]
["pp3_bl3_4_4_name",{"$f":"'T2-B(PP3)'!$B$82","v":0},"#'T2-B(PP3)'!$B$82"]
["pp3_bl3_4_4_rate_in",{"$f":"'T2-B(PP3)'!$E$82","v":0},"#'T2-B(PP3)'!$E$82"]
["pp3_bl3_4_4_rate_out",{"$f":"'T2-B(PP3)'!$H$82","v":0},"#'T2-B(PP3)'!$H$82"]
["pp3_bl3_4_4_total",{"$f":"'T2-B(PP3)'!$J$82","v":0},"#'T2-B(PP3)'!$J$82"]
["pp3_bl3_4_4_total_in",{"$f":"'T2-B(PP3)'!$F$82","v":0},"#'T2-B(PP3)'!$F$82"]
["pp3_bl3_4_4_total_out",{"$f":"'T2-B(PP3)'!$I$82","v":0},"#'T2-B(PP3)'!$I$82"]
["pp3_bl3_4_4_unit",{"$f":"'T2-B(PP3)'!$C$82","v":0},"#'T2-B(PP3)'!$C$82"]
["pp3_bl3_4_4_unit_in",{"$f":"'T2-B(PP3)'!$D$82","v":0},"#'T2-B(PP3)'!$D$82"]
["pp3_bl3_4_4_units_out",{"$f":"'T2-B(PP3)'!$G$82","v":0},"#'T2-B(PP3)'!$G$82"]
["pp3_bl3_4_5_name",{"$f":"'T2-B(PP3)'!$B$83","v":0},"#'T2-B(PP3)'!$B$83"]
["pp3_bl3_4_5_rate_in",{"$f":"'T2-B(PP3)'!$E$83","v":0},"#'T2-B(PP3)'!$E$83"]
["pp3_bl3_4_5_rate_out",{"$f":"'T2-B(PP3)'!$H$83","v":0},"#'T2-B(PP3)'!$H$83"]
["pp3_bl3_4_5_total",{"$f":"'T2-B(PP3)'!$J$83","v":0},"#'T2-B(PP3)'!$J$83"]
["pp3_bl3_4_5_total_in",{"$f":"'T2-B(PP3)'!$F$83","v":0},"#'T2-B(PP3)'!$F$83"]
["pp3_bl3_4_5_total_out",{"$f":"'T2-B(PP3)'!$I$83","v":0},"#'T2-B(PP3)'!$I$83"]
["pp3_bl3_4_5_unit",{"$f":"'T2-B(PP3)'!$C$83","v":0},"#'T2-B(PP3)'!$C$83"]
["pp3_bl3_4_5_unit_in",{"$f":"'T2-B(PP3)'!$D$83","v":0},"#'T2-B(PP3)'!$D$83"]
["pp3_bl3_4_5_units_out",{"$f":"'T2-B(PP3)'!$G$83","v":0},"#'T2-B(PP3)'!$G$83"]
["pp3_bl3_4_6_name",{"$f":"'T2-B(PP3)'!$B$84","v":0},"#'T2-B(PP3)'!$B$84"]
["pp3_bl3_4_6_rate_in",{"$f":"'T2-B(PP3)'!$E$84","v":0},"#'T2-B(PP3)'!$E$84"]
["pp3_bl3_4_6_rate_out",{"$f":"'T2-B(PP3)'!$H$84","v":0},"#'T2-B(PP3)'!$H$84"]
["pp3_bl3_4_6_total",{"$f":"'T2-B(PP3)'!$J$84","v":0},"#'T2-B(PP3)'!$J$84"]
["pp3_bl3_4_6_total_in",{"$f":"'T2-B(PP3)'!$F$84","v":0},"#'T2-B(PP3)'!$F$84"]
["pp3_bl3_4_6_total_out",{"$f":"'T2-B(PP3)'!$I$84","v":0},"#'T2-B(PP3)'!$I$84"]
["pp3_bl3_4_6_unit",{"$f":"'T2-B(PP3)'!$C$84","v":0},"#'T2-B(PP3)'!$C$84"]
["pp3_bl3_4_6_unit_in",{"$f":"'T2-B(PP3)'!$D$84","v":0},"#'T2-B(PP3)'!$D$84"]
["pp3_bl3_4_6_units_out",{"$f":"'T2-B(PP3)'!$G$84","v":0},"#'T2-B(PP3)'!$G$84"]
["pp3_bl3_4_7_name",{"$f":"'T2-B(PP3)'!$B$85","v":0},"#'T2-B(PP3)'!$B$85"]
["pp3_bl3_4_7_rate_in",{"$f":"'T2-B(PP3)'!$E$85","v":0},"#'T2-B(PP3)'!$E$85"]
["pp3_bl3_4_7_rate_out",{"$f":"'T2-B(PP3)'!$H$85","v":0},"#'T2-B(PP3)'!$H$85"]
["pp3_bl3_4_7_total",{"$f":"'T2-B(PP3)'!$J$85","v":0},"#'T2-B(PP3)'!$J$85"]
["pp3_bl3_4_7_total_in",{"$f":"'T2-B(PP3)'!$F$85","v":0},"#'T2-B(PP3)'!$F$85"]
["pp3_bl3_4_7_total_out",{"$f":"'T2-B(PP3)'!$I$85","v":0},"#'T2-B(PP3)'!$I$85"]
["pp3_bl3_4_7_unit",{"$f":"'T2-B(PP3)'!$C$85","v":0},"#'T2-B(PP3)'!$C$85"]
["pp3_bl3_4_7_unit_in",{"$f":"'T2-B(PP3)'!$D$85","v":0},"#'T2-B(PP3)'!$D$85"]
["pp3_bl3_4_7_units_out",{"$f":"'T2-B(PP3)'!$G$85","v":0},"#'T2-B(PP3)'!$G$85"]
["pp3_bl3_4_8_name",{"$f":"'T2-B(PP3)'!$B$86","v":0},"#'T2-B(PP3)'!$B$86"]
["pp3_bl3_4_8_rate_in",{"$f":"'T2-B(PP3)'!$E$86","v":0},"#'T2-B(PP3)'!$E$86"]
["pp3_bl3_4_8_rate_out",{"$f":"'T2-B(PP3)'!$H$86","v":0},"#'T2-B(PP3)'!$H$86"]
["pp3_bl3_4_8_total",{"$f":"'T2-B(PP3)'!$J$86","v":0},"#'T2-B(PP3)'!$J$86"]
["pp3_bl3_4_8_total_in",{"$f":"'T2-B(PP3)'!$F$86","v":0},"#'T2-B(PP3)'!$F$86"]
["pp3_bl3_4_8_total_out",{"$f":"'T2-B(PP3)'!$I$86","v":0},"#'T2-B(PP3)'!$I$86"]
["pp3_bl3_4_8_unit",{"$f":"'T2-B(PP3)'!$C$86","v":0},"#'T2-B(PP3)'!$C$86"]
["pp3_bl3_4_8_unit_in",{"$f":"'T2-B(PP3)'!$D$86","v":0},"#'T2-B(PP3)'!$D$86"]
["pp3_bl3_4_8_units_out",{"$f":"'T2-B(PP3)'!$G$86","v":0},"#'T2-B(PP3)'!$G$86"]
["pp3_bl3_4_9_name",{"$f":"'T2-B(PP3)'!$B$87","v":0},"#'T2-B(PP3)'!$B$87"]
["pp3_bl3_4_9_rate_in",{"$f":"'T2-B(PP3)'!$E$87","v":0},"#'T2-B(PP3)'!$E$87"]
["pp3_bl3_4_9_rate_out",{"$f":"'T2-B(PP3)'!$H$87","v":0},"#'T2-B(PP3)'!$H$87"]
["pp3_bl3_4_9_total",{"$f":"'T2-B(PP3)'!$J$87","v":0},"#'T2-B(PP3)'!$J$87"]
["pp3_bl3_4_9_total_in",{"$f":"'T2-B(PP3)'!$F$87","v":0},"#'T2-B(PP3)'!$F$87"]
["pp3_bl3_4_9_total_out",{"$f":"'T2-B(PP3)'!$I$87","v":0},"#'T2-B(PP3)'!$I$87"]
["pp3_bl3_4_9_unit",{"$f":"'T2-B(PP3)'!$C$87","v":0},"#'T2-B(PP3)'!$C$87"]
["pp3_bl3_4_9_unit_in",{"$f":"'T2-B(PP3)'!$D$87","v":0},"#'T2-B(PP3)'!$D$87"]
["pp3_bl3_4_9_units_out",{"$f":"'T2-B(PP3)'!$G$87","v":0},"#'T2-B(PP3)'!$G$87"]
["pp3_bl3_4_total",{"$f":"'T2-B(PP3)'!$J$78","v":0},"#'T2-B(PP3)'!$J$78"]
["pp3_bl3_4_total_in",{"$f":"'T2-B(PP3)'!$F$78","v":0},"#'T2-B(PP3)'!$F$78"]
["pp3_bl3_4_total_out",{"$f":"'T2-B(PP3)'!$I$78","v":0},"#'T2-B(PP3)'!$I$78"]
["pp3_bl3_total",{"$f":"'T2-B(PP3)'!$J$89","v":0},"#'T2-B(PP3)'!$J$89"]
["pp3_bl3_total_in",{"$f":"'T2-B(PP3)'!$F$89","v":0},"#'T2-B(PP3)'!$F$89"]
["pp3_bl3_total_out",{"$f":"'T2-B(PP3)'!$I$89","v":0},"#'T2-B(PP3)'!$I$89"]
["pp3_bl4_1_1_name",{"$f":"'T2-B(PP3)'!$B$94","v":0},"#'T2-B(PP3)'!$B$94"]
["pp3_bl4_1_1_rate_in",{"$f":"'T2-B(PP3)'!$E$94","v":0},"#'T2-B(PP3)'!$E$94"]
["pp3_bl4_1_1_rate_out",{"$f":"'T2-B(PP3)'!$H$94","v":0},"#'T2-B(PP3)'!$H$94"]
["pp3_bl4_1_1_total",{"$f":"'T2-B(PP3)'!$J$94","v":0},"#'T2-B(PP3)'!$J$94"]
["pp3_bl4_1_1_total_in",{"$f":"'T2-B(PP3)'!$F$94","v":0},"#'T2-B(PP3)'!$F$94"]
["pp3_bl4_1_1_total_out",{"$f":"'T2-B(PP3)'!$I$94","v":0},"#'T2-B(PP3)'!$I$94"]
["pp3_bl4_1_1_unit",{"$f":"'T2-B(PP3)'!$C$94","v":0},"#'T2-B(PP3)'!$C$94"]
["pp3_bl4_1_1_unit_in",{"$f":"'T2-B(PP3)'!$D$94","v":0},"#'T2-B(PP3)'!$D$94"]
["pp3_bl4_1_1_units_out",{"$f":"'T2-B(PP3)'!$G$94","v":0},"#'T2-B(PP3)'!$G$94"]
["pp3_bl4_1_10_name",{"$f":"'T2-B(PP3)'!$B$103","v":0},"#'T2-B(PP3)'!$B$103"]
["pp3_bl4_1_10_rate_in",{"$f":"'T2-B(PP3)'!$E$103","v":0},"#'T2-B(PP3)'!$E$103"]
["pp3_bl4_1_10_rate_out",{"$f":"'T2-B(PP3)'!$H$103","v":0},"#'T2-B(PP3)'!$H$103"]
["pp3_bl4_1_10_total",{"$f":"'T2-B(PP3)'!$J$103","v":0},"#'T2-B(PP3)'!$J$103"]
["pp3_bl4_1_10_total_in",{"$f":"'T2-B(PP3)'!$F$103","v":0},"#'T2-B(PP3)'!$F$103"]
["pp3_bl4_1_10_total_out",{"$f":"'T2-B(PP3)'!$I$103","v":0},"#'T2-B(PP3)'!$I$103"]
["pp3_bl4_1_10_unit",{"$f":"'T2-B(PP3)'!$C$103","v":0},"#'T2-B(PP3)'!$C$103"]
["pp3_bl4_1_10_unit_in",{"$f":"'T2-B(PP3)'!$D$103","v":0},"#'T2-B(PP3)'!$D$103"]
["pp3_bl4_1_10_units_out",{"$f":"'T2-B(PP3)'!$G$103","v":0},"#'T2-B(PP3)'!$G$103"]
["pp3_bl4_1_11_name",{"$f":"'T2-B(PP3)'!$B$104","v":0},"#'T2-B(PP3)'!$B$104"]
["pp3_bl4_1_11_rate_in",{"$f":"'T2-B(PP3)'!$E$104","v":0},"#'T2-B(PP3)'!$E$104"]
["pp3_bl4_1_11_rate_out",{"$f":"'T2-B(PP3)'!$H$104","v":0},"#'T2-B(PP3)'!$H$104"]
["pp3_bl4_1_11_total",{"$f":"'T2-B(PP3)'!$J$104","v":0},"#'T2-B(PP3)'!$J$104"]
["pp3_bl4_1_11_total_in",{"$f":"'T2-B(PP3)'!$F$104","v":0},"#'T2-B(PP3)'!$F$104"]
["pp3_bl4_1_11_total_out",{"$f":"'T2-B(PP3)'!$I$104","v":0},"#'T2-B(PP3)'!$I$104"]
["pp3_bl4_1_11_unit",{"$f":"'T2-B(PP3)'!$C$104","v":0},"#'T2-B(PP3)'!$C$104"]
["pp3_bl4_1_11_unit_in",{"$f":"'T2-B(PP3)'!$D$104","v":0},"#'T2-B(PP3)'!$D$104"]
["pp3_bl4_1_11_units_out",{"$f":"'T2-B(PP3)'!$G$104","v":0},"#'T2-B(PP3)'!$G$104"]
["pp3_bl4_1_12_name",{"$f":"'T2-B(PP3)'!$B$105","v":0},"#'T2-B(PP3)'!$B$105"]
["pp3_bl4_1_12_rate_in",{"$f":"'T2-B(PP3)'!$E$105","v":0},"#'T2-B(PP3)'!$E$105"]
["pp3_bl4_1_12_rate_out",{"$f":"'T2-B(PP3)'!$H$105","v":0},"#'T2-B(PP3)'!$H$105"]
["pp3_bl4_1_12_total",{"$f":"'T2-B(PP3)'!$J$105","v":0},"#'T2-B(PP3)'!$J$105"]
["pp3_bl4_1_12_total_in",{"$f":"'T2-B(PP3)'!$F$105","v":0},"#'T2-B(PP3)'!$F$105"]
["pp3_bl4_1_12_total_out",{"$f":"'T2-B(PP3)'!$I$105","v":0},"#'T2-B(PP3)'!$I$105"]
["pp3_bl4_1_12_unit",{"$f":"'T2-B(PP3)'!$C$105","v":0},"#'T2-B(PP3)'!$C$105"]
["pp3_bl4_1_12_unit_in",{"$f":"'T2-B(PP3)'!$D$105","v":0},"#'T2-B(PP3)'!$D$105"]
["pp3_bl4_1_12_units_out",{"$f":"'T2-B(PP3)'!$G$105","v":0},"#'T2-B(PP3)'!$G$105"]
["pp3_bl4_1_13_name",{"$f":"'T2-B(PP3)'!$B$106","v":0},"#'T2-B(PP3)'!$B$106"]
["pp3_bl4_1_13_rate_in",{"$f":"'T2-B(PP3)'!$E$106","v":0},"#'T2-B(PP3)'!$E$106"]
["pp3_bl4_1_13_rate_out",{"$f":"'T2-B(PP3)'!$H$106","v":0},"#'T2-B(PP3)'!$H$106"]
["pp3_bl4_1_13_total",{"$f":"'T2-B(PP3)'!$J$106","v":0},"#'T2-B(PP3)'!$J$106"]
["pp3_bl4_1_13_total_in",{"$f":"'T2-B(PP3)'!$F$106","v":0},"#'T2-B(PP3)'!$F$106"]
["pp3_bl4_1_13_total_out",{"$f":"'T2-B(PP3)'!$I$106","v":0},"#'T2-B(PP3)'!$I$106"]
["pp3_bl4_1_13_unit",{"$f":"'T2-B(PP3)'!$C$106","v":0},"#'T2-B(PP3)'!$C$106"]
["pp3_bl4_1_13_unit_in",{"$f":"'T2-B(PP3)'!$D$106","v":0},"#'T2-B(PP3)'!$D$106"]
["pp3_bl4_1_13_units_out",{"$f":"'T2-B(PP3)'!$G$106","v":0},"#'T2-B(PP3)'!$G$106"]
["pp3_bl4_1_14_name",{"$f":"'T2-B(PP3)'!$B$107","v":0},"#'T2-B(PP3)'!$B$107"]
["pp3_bl4_1_14_rate_in",{"$f":"'T2-B(PP3)'!$E$107","v":0},"#'T2-B(PP3)'!$E$107"]
["pp3_bl4_1_14_rate_out",{"$f":"'T2-B(PP3)'!$H$107","v":0},"#'T2-B(PP3)'!$H$107"]
["pp3_bl4_1_14_total",{"$f":"'T2-B(PP3)'!$J$107","v":0},"#'T2-B(PP3)'!$J$107"]
["pp3_bl4_1_14_total_in",{"$f":"'T2-B(PP3)'!$F$107","v":0},"#'T2-B(PP3)'!$F$107"]
["pp3_bl4_1_14_total_out",{"$f":"'T2-B(PP3)'!$I$107","v":0},"#'T2-B(PP3)'!$I$107"]
["pp3_bl4_1_14_unit",{"$f":"'T2-B(PP3)'!$C$107","v":0},"#'T2-B(PP3)'!$C$107"]
["pp3_bl4_1_14_unit_in",{"$f":"'T2-B(PP3)'!$D$107","v":0},"#'T2-B(PP3)'!$D$107"]
["pp3_bl4_1_14_units_out",{"$f":"'T2-B(PP3)'!$G$107","v":0},"#'T2-B(PP3)'!$G$107"]
["pp3_bl4_1_15_name",{"$f":"'T2-B(PP3)'!$B$108","v":0},"#'T2-B(PP3)'!$B$108"]
["pp3_bl4_1_15_rate_in",{"$f":"'T2-B(PP3)'!$E$108","v":0},"#'T2-B(PP3)'!$E$108"]
["pp3_bl4_1_15_rate_out",{"$f":"'T2-B(PP3)'!$H$108","v":0},"#'T2-B(PP3)'!$H$108"]
["pp3_bl4_1_15_total",{"$f":"'T2-B(PP3)'!$J$108","v":0},"#'T2-B(PP3)'!$J$108"]
["pp3_bl4_1_15_total_in",{"$f":"'T2-B(PP3)'!$F$108","v":0},"#'T2-B(PP3)'!$F$108"]
["pp3_bl4_1_15_total_out",{"$f":"'T2-B(PP3)'!$I$108","v":0},"#'T2-B(PP3)'!$I$108"]
["pp3_bl4_1_15_unit",{"$f":"'T2-B(PP3)'!$C$108","v":0},"#'T2-B(PP3)'!$C$108"]
["pp3_bl4_1_15_unit_in",{"$f":"'T2-B(PP3)'!$D$108","v":0},"#'T2-B(PP3)'!$D$108"]
["pp3_bl4_1_15_units_out",{"$f":"'T2-B(PP3)'!$G$108","v":0},"#'T2-B(PP3)'!$G$108"]
["pp3_bl4_1_16_name",{"$f":"'T2-B(PP3)'!$B$109","v":0},"#'T2-B(PP3)'!$B$109"]
["pp3_bl4_1_16_rate_in",{"$f":"'T2-B(PP3)'!$E$109","v":0},"#'T2-B(PP3)'!$E$109"]
["pp3_bl4_1_16_rate_out",{"$f":"'T2-B(PP3)'!$H$109","v":0},"#'T2-B(PP3)'!$H$109"]
["pp3_bl4_1_16_total",{"$f":"'T2-B(PP3)'!$J$109","v":0},"#'T2-B(PP3)'!$J$109"]
["pp3_bl4_1_16_total_in",{"$f":"'T2-B(PP3)'!$F$109","v":0},"#'T2-B(PP3)'!$F$109"]
["pp3_bl4_1_16_total_out",{"$f":"'T2-B(PP3)'!$I$109","v":0},"#'T2-B(PP3)'!$I$109"]
["pp3_bl4_1_16_unit",{"$f":"'T2-B(PP3)'!$C$109","v":0},"#'T2-B(PP3)'!$C$109"]
["pp3_bl4_1_16_unit_in",{"$f":"'T2-B(PP3)'!$D$109","v":0},"#'T2-B(PP3)'!$D$109"]
["pp3_bl4_1_16_units_out",{"$f":"'T2-B(PP3)'!$G$109","v":0},"#'T2-B(PP3)'!$G$109"]
["pp3_bl4_1_17_name",{"$f":"'T2-B(PP3)'!$B$110","v":0},"#'T2-B(PP3)'!$B$110"]
["pp3_bl4_1_17_rate_in",{"$f":"'T2-B(PP3)'!$E$110","v":0},"#'T2-B(PP3)'!$E$110"]
["pp3_bl4_1_17_rate_out",{"$f":"'T2-B(PP3)'!$H$110","v":0},"#'T2-B(PP3)'!$H$110"]
["pp3_bl4_1_17_total",{"$f":"'T2-B(PP3)'!$J$110","v":0},"#'T2-B(PP3)'!$J$110"]
["pp3_bl4_1_17_total_in",{"$f":"'T2-B(PP3)'!$F$110","v":0},"#'T2-B(PP3)'!$F$110"]
["pp3_bl4_1_17_total_out",{"$f":"'T2-B(PP3)'!$I$110","v":0},"#'T2-B(PP3)'!$I$110"]
["pp3_bl4_1_17_unit",{"$f":"'T2-B(PP3)'!$C$110","v":0},"#'T2-B(PP3)'!$C$110"]
["pp3_bl4_1_17_unit_in",{"$f":"'T2-B(PP3)'!$D$110","v":0},"#'T2-B(PP3)'!$D$110"]
["pp3_bl4_1_17_units_out",{"$f":"'T2-B(PP3)'!$G$110","v":0},"#'T2-B(PP3)'!$G$110"]
["pp3_bl4_1_18_name",{"$f":"'T2-B(PP3)'!$B$111","v":0},"#'T2-B(PP3)'!$B$111"]
["pp3_bl4_1_18_rate_in",{"$f":"'T2-B(PP3)'!$E$111","v":0},"#'T2-B(PP3)'!$E$111"]
["pp3_bl4_1_18_rate_out",{"$f":"'T2-B(PP3)'!$H$111","v":0},"#'T2-B(PP3)'!$H$111"]
["pp3_bl4_1_18_total",{"$f":"'T2-B(PP3)'!$J$111","v":0},"#'T2-B(PP3)'!$J$111"]
["pp3_bl4_1_18_total_in",{"$f":"'T2-B(PP3)'!$F$111","v":0},"#'T2-B(PP3)'!$F$111"]
["pp3_bl4_1_18_total_out",{"$f":"'T2-B(PP3)'!$I$111","v":0},"#'T2-B(PP3)'!$I$111"]
["pp3_bl4_1_18_unit",{"$f":"'T2-B(PP3)'!$C$111","v":0},"#'T2-B(PP3)'!$C$111"]
["pp3_bl4_1_18_unit_in",{"$f":"'T2-B(PP3)'!$D$111","v":0},"#'T2-B(PP3)'!$D$111"]
["pp3_bl4_1_18_units_out",{"$f":"'T2-B(PP3)'!$G$111","v":0},"#'T2-B(PP3)'!$G$111"]
["pp3_bl4_1_19_name",{"$f":"'T2-B(PP3)'!$B$112","v":0},"#'T2-B(PP3)'!$B$112"]
["pp3_bl4_1_19_rate_in",{"$f":"'T2-B(PP3)'!$E$112","v":0},"#'T2-B(PP3)'!$E$112"]
["pp3_bl4_1_19_rate_out",{"$f":"'T2-B(PP3)'!$H$112","v":0},"#'T2-B(PP3)'!$H$112"]
["pp3_bl4_1_19_total",{"$f":"'T2-B(PP3)'!$J$112","v":0},"#'T2-B(PP3)'!$J$112"]
["pp3_bl4_1_19_total_in",{"$f":"'T2-B(PP3)'!$F$112","v":0},"#'T2-B(PP3)'!$F$112"]
["pp3_bl4_1_19_total_out",{"$f":"'T2-B(PP3)'!$I$112","v":0},"#'T2-B(PP3)'!$I$112"]
["pp3_bl4_1_19_unit",{"$f":"'T2-B(PP3)'!$C$112","v":0},"#'T2-B(PP3)'!$C$112"]
["pp3_bl4_1_19_unit_in",{"$f":"'T2-B(PP3)'!$D$112","v":0},"#'T2-B(PP3)'!$D$112"]
["pp3_bl4_1_19_units_out",{"$f":"'T2-B(PP3)'!$G$112","v":0},"#'T2-B(PP3)'!$G$112"]
["pp3_bl4_1_2_name",{"$f":"'T2-B(PP3)'!$B$95","v":0},"#'T2-B(PP3)'!$B$95"]
["pp3_bl4_1_2_rate_in",{"$f":"'T2-B(PP3)'!$E$95","v":0},"#'T2-B(PP3)'!$E$95"]
["pp3_bl4_1_2_rate_out",{"$f":"'T2-B(PP3)'!$H$95","v":0},"#'T2-B(PP3)'!$H$95"]
["pp3_bl4_1_2_total",{"$f":"'T2-B(PP3)'!$J$95","v":0},"#'T2-B(PP3)'!$J$95"]
["pp3_bl4_1_2_total_in",{"$f":"'T2-B(PP3)'!$F$95","v":0},"#'T2-B(PP3)'!$F$95"]
["pp3_bl4_1_2_total_out",{"$f":"'T2-B(PP3)'!$I$95","v":0},"#'T2-B(PP3)'!$I$95"]
["pp3_bl4_1_2_unit",{"$f":"'T2-B(PP3)'!$C$95","v":0},"#'T2-B(PP3)'!$C$95"]
["pp3_bl4_1_2_unit_in",{"$f":"'T2-B(PP3)'!$D$95","v":0},"#'T2-B(PP3)'!$D$95"]
["pp3_bl4_1_2_units_out",{"$f":"'T2-B(PP3)'!$G$95","v":0},"#'T2-B(PP3)'!$G$95"]
["pp3_bl4_1_20_name",{"$f":"'T2-B(PP3)'!$B$113","v":0},"#'T2-B(PP3)'!$B$113"]
["pp3_bl4_1_20_rate_in",{"$f":"'T2-B(PP3)'!$E$113","v":0},"#'T2-B(PP3)'!$E$113"]
["pp3_bl4_1_20_rate_out",{"$f":"'T2-B(PP3)'!$H$113","v":0},"#'T2-B(PP3)'!$H$113"]
["pp3_bl4_1_20_total",{"$f":"'T2-B(PP3)'!$J$113","v":0},"#'T2-B(PP3)'!$J$113"]
["pp3_bl4_1_20_total_in",{"$f":"'T2-B(PP3)'!$F$113","v":0},"#'T2-B(PP3)'!$F$113"]
["pp3_bl4_1_20_total_out",{"$f":"'T2-B(PP3)'!$I$113","v":0},"#'T2-B(PP3)'!$I$113"]
["pp3_bl4_1_20_unit",{"$f":"'T2-B(PP3)'!$C$113","v":0},"#'T2-B(PP3)'!$C$113"]
["pp3_bl4_1_20_unit_in",{"$f":"'T2-B(PP3)'!$D$113","v":0},"#'T2-B(PP3)'!$D$113"]
["pp3_bl4_1_20_units_out",{"$f":"'T2-B(PP3)'!$G$113","v":0},"#'T2-B(PP3)'!$G$113"]
["pp3_bl4_1_3_name",{"$f":"'T2-B(PP3)'!$B$96","v":0},"#'T2-B(PP3)'!$B$96"]
["pp3_bl4_1_3_rate_in",{"$f":"'T2-B(PP3)'!$E$96","v":0},"#'T2-B(PP3)'!$E$96"]
["pp3_bl4_1_3_rate_out",{"$f":"'T2-B(PP3)'!$H$96","v":0},"#'T2-B(PP3)'!$H$96"]
["pp3_bl4_1_3_total",{"$f":"'T2-B(PP3)'!$J$96","v":0},"#'T2-B(PP3)'!$J$96"]
["pp3_bl4_1_3_total_in",{"$f":"'T2-B(PP3)'!$F$96","v":0},"#'T2-B(PP3)'!$F$96"]
["pp3_bl4_1_3_total_out",{"$f":"'T2-B(PP3)'!$I$96","v":0},"#'T2-B(PP3)'!$I$96"]
["pp3_bl4_1_3_unit",{"$f":"'T2-B(PP3)'!$C$96","v":0},"#'T2-B(PP3)'!$C$96"]
["pp3_bl4_1_3_unit_in",{"$f":"'T2-B(PP3)'!$D$96","v":0},"#'T2-B(PP3)'!$D$96"]
["pp3_bl4_1_3_units_out",{"$f":"'T2-B(PP3)'!$G$96","v":0},"#'T2-B(PP3)'!$G$96"]
["pp3_bl4_1_4_name",{"$f":"'T2-B(PP3)'!$B$97","v":0},"#'T2-B(PP3)'!$B$97"]
["pp3_bl4_1_4_rate_in",{"$f":"'T2-B(PP3)'!$E$97","v":0},"#'T2-B(PP3)'!$E$97"]
["pp3_bl4_1_4_rate_out",{"$f":"'T2-B(PP3)'!$H$97","v":0},"#'T2-B(PP3)'!$H$97"]
["pp3_bl4_1_4_total",{"$f":"'T2-B(PP3)'!$J$97","v":0},"#'T2-B(PP3)'!$J$97"]
["pp3_bl4_1_4_total_in",{"$f":"'T2-B(PP3)'!$F$97","v":0},"#'T2-B(PP3)'!$F$97"]
["pp3_bl4_1_4_total_out",{"$f":"'T2-B(PP3)'!$I$97","v":0},"#'T2-B(PP3)'!$I$97"]
["pp3_bl4_1_4_unit",{"$f":"'T2-B(PP3)'!$C$97","v":0},"#'T2-B(PP3)'!$C$97"]
["pp3_bl4_1_4_unit_in",{"$f":"'T2-B(PP3)'!$D$97","v":0},"#'T2-B(PP3)'!$D$97"]
["pp3_bl4_1_4_units_out",{"$f":"'T2-B(PP3)'!$G$97","v":0},"#'T2-B(PP3)'!$G$97"]
["pp3_bl4_1_5_name",{"$f":"'T2-B(PP3)'!$B$98","v":0},"#'T2-B(PP3)'!$B$98"]
["pp3_bl4_1_5_rate_in",{"$f":"'T2-B(PP3)'!$E$98","v":0},"#'T2-B(PP3)'!$E$98"]
["pp3_bl4_1_5_rate_out",{"$f":"'T2-B(PP3)'!$H$98","v":0},"#'T2-B(PP3)'!$H$98"]
["pp3_bl4_1_5_total",{"$f":"'T2-B(PP3)'!$J$98","v":0},"#'T2-B(PP3)'!$J$98"]
["pp3_bl4_1_5_total_in",{"$f":"'T2-B(PP3)'!$F$98","v":0},"#'T2-B(PP3)'!$F$98"]
["pp3_bl4_1_5_total_out",{"$f":"'T2-B(PP3)'!$I$98","v":0},"#'T2-B(PP3)'!$I$98"]
["pp3_bl4_1_5_unit",{"$f":"'T2-B(PP3)'!$C$98","v":0},"#'T2-B(PP3)'!$C$98"]
["pp3_bl4_1_5_unit_in",{"$f":"'T2-B(PP3)'!$D$98","v":0},"#'T2-B(PP3)'!$D$98"]
["pp3_bl4_1_5_units_out",{"$f":"'T2-B(PP3)'!$G$98","v":0},"#'T2-B(PP3)'!$G$98"]
["pp3_bl4_1_6_name",{"$f":"'T2-B(PP3)'!$B$99","v":0},"#'T2-B(PP3)'!$B$99"]
["pp3_bl4_1_6_rate_in",{"$f":"'T2-B(PP3)'!$E$99","v":0},"#'T2-B(PP3)'!$E$99"]
["pp3_bl4_1_6_rate_out",{"$f":"'T2-B(PP3)'!$H$99","v":0},"#'T2-B(PP3)'!$H$99"]
["pp3_bl4_1_6_total",{"$f":"'T2-B(PP3)'!$J$99","v":0},"#'T2-B(PP3)'!$J$99"]
["pp3_bl4_1_6_total_in",{"$f":"'T2-B(PP3)'!$F$99","v":0},"#'T2-B(PP3)'!$F$99"]
["pp3_bl4_1_6_total_out",{"$f":"'T2-B(PP3)'!$I$99","v":0},"#'T2-B(PP3)'!$I$99"]
["pp3_bl4_1_6_unit",{"$f":"'T2-B(PP3)'!$C$99","v":0},"#'T2-B(PP3)'!$C$99"]
["pp3_bl4_1_6_unit_in",{"$f":"'T2-B(PP3)'!$D$99","v":0},"#'T2-B(PP3)'!$D$99"]
["pp3_bl4_1_6_units_out",{"$f":"'T2-B(PP3)'!$G$99","v":0},"#'T2-B(PP3)'!$G$99"]
["pp3_bl4_1_7_name",{"$f":"'T2-B(PP3)'!$B$100","v":0},"#'T2-B(PP3)'!$B$100"]
["pp3_bl4_1_7_rate_in",{"$f":"'T2-B(PP3)'!$E$100","v":0},"#'T2-B(PP3)'!$E$100"]
["pp3_bl4_1_7_rate_out",{"$f":"'T2-B(PP3)'!$H$100","v":0},"#'T2-B(PP3)'!$H$100"]
["pp3_bl4_1_7_total",{"$f":"'T2-B(PP3)'!$J$100","v":0},"#'T2-B(PP3)'!$J$100"]
["pp3_bl4_1_7_total_in",{"$f":"'T2-B(PP3)'!$F$100","v":0},"#'T2-B(PP3)'!$F$100"]
["pp3_bl4_1_7_total_out",{"$f":"'T2-B(PP3)'!$I$100","v":0},"#'T2-B(PP3)'!$I$100"]
["pp3_bl4_1_7_unit",{"$f":"'T2-B(PP3)'!$C$100","v":0},"#'T2-B(PP3)'!$C$100"]
["pp3_bl4_1_7_unit_in",{"$f":"'T2-B(PP3)'!$D$100","v":0},"#'T2-B(PP3)'!$D$100"]
["pp3_bl4_1_7_units_out",{"$f":"'T2-B(PP3)'!$G$100","v":0},"#'T2-B(PP3)'!$G$100"]
["pp3_bl4_1_8_name",{"$f":"'T2-B(PP3)'!$B$101","v":0},"#'T2-B(PP3)'!$B$101"]
["pp3_bl4_1_8_rate_in",{"$f":"'T2-B(PP3)'!$E$101","v":0},"#'T2-B(PP3)'!$E$101"]
["pp3_bl4_1_8_rate_out",{"$f":"'T2-B(PP3)'!$H$101","v":0},"#'T2-B(PP3)'!$H$101"]
["pp3_bl4_1_8_total",{"$f":"'T2-B(PP3)'!$J$101","v":0},"#'T2-B(PP3)'!$J$101"]
["pp3_bl4_1_8_total_in",{"$f":"'T2-B(PP3)'!$F$101","v":0},"#'T2-B(PP3)'!$F$101"]
["pp3_bl4_1_8_total_out",{"$f":"'T2-B(PP3)'!$I$101","v":0},"#'T2-B(PP3)'!$I$101"]
["pp3_bl4_1_8_unit",{"$f":"'T2-B(PP3)'!$C$101","v":0},"#'T2-B(PP3)'!$C$101"]
["pp3_bl4_1_8_unit_in",{"$f":"'T2-B(PP3)'!$D$101","v":0},"#'T2-B(PP3)'!$D$101"]
["pp3_bl4_1_8_units_out",{"$f":"'T2-B(PP3)'!$G$101","v":0},"#'T2-B(PP3)'!$G$101"]
["pp3_bl4_1_9_name",{"$f":"'T2-B(PP3)'!$B$102","v":0},"#'T2-B(PP3)'!$B$102"]
["pp3_bl4_1_9_rate_in",{"$f":"'T2-B(PP3)'!$E$102","v":0},"#'T2-B(PP3)'!$E$102"]
["pp3_bl4_1_9_rate_out",{"$f":"'T2-B(PP3)'!$H$102","v":0},"#'T2-B(PP3)'!$H$102"]
["pp3_bl4_1_9_total",{"$f":"'T2-B(PP3)'!$J$102","v":0},"#'T2-B(PP3)'!$J$102"]
["pp3_bl4_1_9_total_in",{"$f":"'T2-B(PP3)'!$F$102","v":0},"#'T2-B(PP3)'!$F$102"]
["pp3_bl4_1_9_total_out",{"$f":"'T2-B(PP3)'!$I$102","v":0},"#'T2-B(PP3)'!$I$102"]
["pp3_bl4_1_9_unit",{"$f":"'T2-B(PP3)'!$C$102","v":0},"#'T2-B(PP3)'!$C$102"]
["pp3_bl4_1_9_unit_in",{"$f":"'T2-B(PP3)'!$D$102","v":0},"#'T2-B(PP3)'!$D$102"]
["pp3_bl4_1_9_units_out",{"$f":"'T2-B(PP3)'!$G$102","v":0},"#'T2-B(PP3)'!$G$102"]
["pp3_bl4_1_total",{"$f":"'T2-B(PP3)'!$J$93","v":0},"#'T2-B(PP3)'!$J$93"]
["pp3_bl4_1_total_in",{"$f":"'T2-B(PP3)'!$F$93","v":0},"#'T2-B(PP3)'!$F$93"]
["pp3_bl4_1_total_out",{"$f":"'T2-B(PP3)'!$I$93","v":0},"#'T2-B(PP3)'!$I$93"]
["pp3_bl4_10_1_name",{"$f":"'T2-B(PP3)'!$B$283","v":0},"#'T2-B(PP3)'!$B$283"]
["pp3_bl4_10_1_rate_in",{"$f":"'T2-B(PP3)'!$E$283","v":0},"#'T2-B(PP3)'!$E$283"]
["pp3_bl4_10_1_rate_out",{"$f":"'T2-B(PP3)'!$H$283","v":0},"#'T2-B(PP3)'!$H$283"]
["pp3_bl4_10_1_total",{"$f":"'T2-B(PP3)'!$J$283","v":0},"#'T2-B(PP3)'!$J$283"]
["pp3_bl4_10_1_total_in",{"$f":"'T2-B(PP3)'!$F$283","v":0},"#'T2-B(PP3)'!$F$283"]
["pp3_bl4_10_1_total_out",{"$f":"'T2-B(PP3)'!$I$283","v":0},"#'T2-B(PP3)'!$I$283"]
["pp3_bl4_10_1_unit",{"$f":"'T2-B(PP3)'!$C$283","v":0},"#'T2-B(PP3)'!$C$283"]
["pp3_bl4_10_1_unit_in",{"$f":"'T2-B(PP3)'!$D$283","v":0},"#'T2-B(PP3)'!$D$283"]
["pp3_bl4_10_1_units_out",{"$f":"'T2-B(PP3)'!$G$283","v":0},"#'T2-B(PP3)'!$G$283"]
["pp3_bl4_10_10_name",{"$f":"'T2-B(PP3)'!$B$292","v":0},"#'T2-B(PP3)'!$B$292"]
["pp3_bl4_10_10_rate_in",{"$f":"'T2-B(PP3)'!$E$292","v":0},"#'T2-B(PP3)'!$E$292"]
["pp3_bl4_10_10_rate_out",{"$f":"'T2-B(PP3)'!$H$292","v":0},"#'T2-B(PP3)'!$H$292"]
["pp3_bl4_10_10_total",{"$f":"'T2-B(PP3)'!$J$292","v":0},"#'T2-B(PP3)'!$J$292"]
["pp3_bl4_10_10_total_in",{"$f":"'T2-B(PP3)'!$F$292","v":0},"#'T2-B(PP3)'!$F$292"]
["pp3_bl4_10_10_total_out",{"$f":"'T2-B(PP3)'!$I$292","v":0},"#'T2-B(PP3)'!$I$292"]
["pp3_bl4_10_10_unit",{"$f":"'T2-B(PP3)'!$C$292","v":0},"#'T2-B(PP3)'!$C$292"]
["pp3_bl4_10_10_unit_in",{"$f":"'T2-B(PP3)'!$D$292","v":0},"#'T2-B(PP3)'!$D$292"]
["pp3_bl4_10_10_units_out",{"$f":"'T2-B(PP3)'!$G$292","v":0},"#'T2-B(PP3)'!$G$292"]
["pp3_bl4_10_11_name",{"$f":"'T2-B(PP3)'!$B$293","v":0},"#'T2-B(PP3)'!$B$293"]
["pp3_bl4_10_11_rate_in",{"$f":"'T2-B(PP3)'!$E$293","v":0},"#'T2-B(PP3)'!$E$293"]
["pp3_bl4_10_11_rate_out",{"$f":"'T2-B(PP3)'!$H$293","v":0},"#'T2-B(PP3)'!$H$293"]
["pp3_bl4_10_11_total",{"$f":"'T2-B(PP3)'!$J$293","v":0},"#'T2-B(PP3)'!$J$293"]
["pp3_bl4_10_11_total_in",{"$f":"'T2-B(PP3)'!$F$293","v":0},"#'T2-B(PP3)'!$F$293"]
["pp3_bl4_10_11_total_out",{"$f":"'T2-B(PP3)'!$I$293","v":0},"#'T2-B(PP3)'!$I$293"]
["pp3_bl4_10_11_unit",{"$f":"'T2-B(PP3)'!$C$293","v":0},"#'T2-B(PP3)'!$C$293"]
["pp3_bl4_10_11_unit_in",{"$f":"'T2-B(PP3)'!$D$293","v":0},"#'T2-B(PP3)'!$D$293"]
["pp3_bl4_10_11_units_out",{"$f":"'T2-B(PP3)'!$G$293","v":0},"#'T2-B(PP3)'!$G$293"]
["pp3_bl4_10_12_name",{"$f":"'T2-B(PP3)'!$B$294","v":0},"#'T2-B(PP3)'!$B$294"]
["pp3_bl4_10_12_rate_in",{"$f":"'T2-B(PP3)'!$E$294","v":0},"#'T2-B(PP3)'!$E$294"]
["pp3_bl4_10_12_rate_out",{"$f":"'T2-B(PP3)'!$H$294","v":0},"#'T2-B(PP3)'!$H$294"]
["pp3_bl4_10_12_total",{"$f":"'T2-B(PP3)'!$J$294","v":0},"#'T2-B(PP3)'!$J$294"]
["pp3_bl4_10_12_total_in",{"$f":"'T2-B(PP3)'!$F$294","v":0},"#'T2-B(PP3)'!$F$294"]
["pp3_bl4_10_12_total_out",{"$f":"'T2-B(PP3)'!$I$294","v":0},"#'T2-B(PP3)'!$I$294"]
["pp3_bl4_10_12_unit",{"$f":"'T2-B(PP3)'!$C$294","v":0},"#'T2-B(PP3)'!$C$294"]
["pp3_bl4_10_12_unit_in",{"$f":"'T2-B(PP3)'!$D$294","v":0},"#'T2-B(PP3)'!$D$294"]
["pp3_bl4_10_12_units_out",{"$f":"'T2-B(PP3)'!$G$294","v":0},"#'T2-B(PP3)'!$G$294"]
["pp3_bl4_10_13_name",{"$f":"'T2-B(PP3)'!$B$295","v":0},"#'T2-B(PP3)'!$B$295"]
["pp3_bl4_10_13_rate_in",{"$f":"'T2-B(PP3)'!$E$295","v":0},"#'T2-B(PP3)'!$E$295"]
["pp3_bl4_10_13_rate_out",{"$f":"'T2-B(PP3)'!$H$295","v":0},"#'T2-B(PP3)'!$H$295"]
["pp3_bl4_10_13_total",{"$f":"'T2-B(PP3)'!$J$295","v":0},"#'T2-B(PP3)'!$J$295"]
["pp3_bl4_10_13_total_in",{"$f":"'T2-B(PP3)'!$F$295","v":0},"#'T2-B(PP3)'!$F$295"]
["pp3_bl4_10_13_total_out",{"$f":"'T2-B(PP3)'!$I$295","v":0},"#'T2-B(PP3)'!$I$295"]
["pp3_bl4_10_13_unit",{"$f":"'T2-B(PP3)'!$C$295","v":0},"#'T2-B(PP3)'!$C$295"]
["pp3_bl4_10_13_unit_in",{"$f":"'T2-B(PP3)'!$D$295","v":0},"#'T2-B(PP3)'!$D$295"]
["pp3_bl4_10_13_units_out",{"$f":"'T2-B(PP3)'!$G$295","v":0},"#'T2-B(PP3)'!$G$295"]
["pp3_bl4_10_14_name",{"$f":"'T2-B(PP3)'!$B$296","v":0},"#'T2-B(PP3)'!$B$296"]
["pp3_bl4_10_14_rate_in",{"$f":"'T2-B(PP3)'!$E$296","v":0},"#'T2-B(PP3)'!$E$296"]
["pp3_bl4_10_14_rate_out",{"$f":"'T2-B(PP3)'!$H$296","v":0},"#'T2-B(PP3)'!$H$296"]
["pp3_bl4_10_14_total",{"$f":"'T2-B(PP3)'!$J$296","v":0},"#'T2-B(PP3)'!$J$296"]
["pp3_bl4_10_14_total_in",{"$f":"'T2-B(PP3)'!$F$296","v":0},"#'T2-B(PP3)'!$F$296"]
["pp3_bl4_10_14_total_out",{"$f":"'T2-B(PP3)'!$I$296","v":0},"#'T2-B(PP3)'!$I$296"]
["pp3_bl4_10_14_unit",{"$f":"'T2-B(PP3)'!$C$296","v":0},"#'T2-B(PP3)'!$C$296"]
["pp3_bl4_10_14_unit_in",{"$f":"'T2-B(PP3)'!$D$296","v":0},"#'T2-B(PP3)'!$D$296"]
["pp3_bl4_10_14_units_out",{"$f":"'T2-B(PP3)'!$G$296","v":0},"#'T2-B(PP3)'!$G$296"]
["pp3_bl4_10_15_name",{"$f":"'T2-B(PP3)'!$B$297","v":0},"#'T2-B(PP3)'!$B$297"]
["pp3_bl4_10_15_rate_in",{"$f":"'T2-B(PP3)'!$E$297","v":0},"#'T2-B(PP3)'!$E$297"]
["pp3_bl4_10_15_rate_out",{"$f":"'T2-B(PP3)'!$H$297","v":0},"#'T2-B(PP3)'!$H$297"]
["pp3_bl4_10_15_total",{"$f":"'T2-B(PP3)'!$J$297","v":0},"#'T2-B(PP3)'!$J$297"]
["pp3_bl4_10_15_total_in",{"$f":"'T2-B(PP3)'!$F$297","v":0},"#'T2-B(PP3)'!$F$297"]
["pp3_bl4_10_15_total_out",{"$f":"'T2-B(PP3)'!$I$297","v":0},"#'T2-B(PP3)'!$I$297"]
["pp3_bl4_10_15_unit",{"$f":"'T2-B(PP3)'!$C$297","v":0},"#'T2-B(PP3)'!$C$297"]
["pp3_bl4_10_15_unit_in",{"$f":"'T2-B(PP3)'!$D$297","v":0},"#'T2-B(PP3)'!$D$297"]
["pp3_bl4_10_15_units_out",{"$f":"'T2-B(PP3)'!$G$297","v":0},"#'T2-B(PP3)'!$G$297"]
["pp3_bl4_10_16_name",{"$f":"'T2-B(PP3)'!$B$298","v":0},"#'T2-B(PP3)'!$B$298"]
["pp3_bl4_10_16_rate_in",{"$f":"'T2-B(PP3)'!$E$298","v":0},"#'T2-B(PP3)'!$E$298"]
["pp3_bl4_10_16_rate_out",{"$f":"'T2-B(PP3)'!$H$298","v":0},"#'T2-B(PP3)'!$H$298"]
["pp3_bl4_10_16_total",{"$f":"'T2-B(PP3)'!$J$298","v":0},"#'T2-B(PP3)'!$J$298"]
["pp3_bl4_10_16_total_in",{"$f":"'T2-B(PP3)'!$F$298","v":0},"#'T2-B(PP3)'!$F$298"]
["pp3_bl4_10_16_total_out",{"$f":"'T2-B(PP3)'!$I$298","v":0},"#'T2-B(PP3)'!$I$298"]
["pp3_bl4_10_16_unit",{"$f":"'T2-B(PP3)'!$C$298","v":0},"#'T2-B(PP3)'!$C$298"]
["pp3_bl4_10_16_unit_in",{"$f":"'T2-B(PP3)'!$D$298","v":0},"#'T2-B(PP3)'!$D$298"]
["pp3_bl4_10_16_units_out",{"$f":"'T2-B(PP3)'!$G$298","v":0},"#'T2-B(PP3)'!$G$298"]
["pp3_bl4_10_17_name",{"$f":"'T2-B(PP3)'!$B$299","v":0},"#'T2-B(PP3)'!$B$299"]
["pp3_bl4_10_17_rate_in",{"$f":"'T2-B(PP3)'!$E$299","v":0},"#'T2-B(PP3)'!$E$299"]
["pp3_bl4_10_17_rate_out",{"$f":"'T2-B(PP3)'!$H$299","v":0},"#'T2-B(PP3)'!$H$299"]
["pp3_bl4_10_17_total",{"$f":"'T2-B(PP3)'!$J$299","v":0},"#'T2-B(PP3)'!$J$299"]
["pp3_bl4_10_17_total_in",{"$f":"'T2-B(PP3)'!$F$299","v":0},"#'T2-B(PP3)'!$F$299"]
["pp3_bl4_10_17_total_out",{"$f":"'T2-B(PP3)'!$I$299","v":0},"#'T2-B(PP3)'!$I$299"]
["pp3_bl4_10_17_unit",{"$f":"'T2-B(PP3)'!$C$299","v":0},"#'T2-B(PP3)'!$C$299"]
["pp3_bl4_10_17_unit_in",{"$f":"'T2-B(PP3)'!$D$299","v":0},"#'T2-B(PP3)'!$D$299"]
["pp3_bl4_10_17_units_out",{"$f":"'T2-B(PP3)'!$G$299","v":0},"#'T2-B(PP3)'!$G$299"]
["pp3_bl4_10_18_name",{"$f":"'T2-B(PP3)'!$B$300","v":0},"#'T2-B(PP3)'!$B$300"]
["pp3_bl4_10_18_rate_in",{"$f":"'T2-B(PP3)'!$E$300","v":0},"#'T2-B(PP3)'!$E$300"]
["pp3_bl4_10_18_rate_out",{"$f":"'T2-B(PP3)'!$H$300","v":0},"#'T2-B(PP3)'!$H$300"]
["pp3_bl4_10_18_total",{"$f":"'T2-B(PP3)'!$J$300","v":0},"#'T2-B(PP3)'!$J$300"]
["pp3_bl4_10_18_total_in",{"$f":"'T2-B(PP3)'!$F$300","v":0},"#'T2-B(PP3)'!$F$300"]
["pp3_bl4_10_18_total_out",{"$f":"'T2-B(PP3)'!$I$300","v":0},"#'T2-B(PP3)'!$I$300"]
["pp3_bl4_10_18_unit",{"$f":"'T2-B(PP3)'!$C$300","v":0},"#'T2-B(PP3)'!$C$300"]
["pp3_bl4_10_18_unit_in",{"$f":"'T2-B(PP3)'!$D$300","v":0},"#'T2-B(PP3)'!$D$300"]
["pp3_bl4_10_18_units_out",{"$f":"'T2-B(PP3)'!$G$300","v":0},"#'T2-B(PP3)'!$G$300"]
["pp3_bl4_10_19_name",{"$f":"'T2-B(PP3)'!$B$301","v":0},"#'T2-B(PP3)'!$B$301"]
["pp3_bl4_10_19_rate_in",{"$f":"'T2-B(PP3)'!$E$301","v":0},"#'T2-B(PP3)'!$E$301"]
["pp3_bl4_10_19_rate_out",{"$f":"'T2-B(PP3)'!$H$301","v":0},"#'T2-B(PP3)'!$H$301"]
["pp3_bl4_10_19_total",{"$f":"'T2-B(PP3)'!$J$301","v":0},"#'T2-B(PP3)'!$J$301"]
["pp3_bl4_10_19_total_in",{"$f":"'T2-B(PP3)'!$F$301","v":0},"#'T2-B(PP3)'!$F$301"]
["pp3_bl4_10_19_total_out",{"$f":"'T2-B(PP3)'!$I$301","v":0},"#'T2-B(PP3)'!$I$301"]
["pp3_bl4_10_19_unit",{"$f":"'T2-B(PP3)'!$C$301","v":0},"#'T2-B(PP3)'!$C$301"]
["pp3_bl4_10_19_unit_in",{"$f":"'T2-B(PP3)'!$D$301","v":0},"#'T2-B(PP3)'!$D$301"]
["pp3_bl4_10_19_units_out",{"$f":"'T2-B(PP3)'!$G$301","v":0},"#'T2-B(PP3)'!$G$301"]
["pp3_bl4_10_2_name",{"$f":"'T2-B(PP3)'!$B$284","v":0},"#'T2-B(PP3)'!$B$284"]
["pp3_bl4_10_2_rate_in",{"$f":"'T2-B(PP3)'!$E$284","v":0},"#'T2-B(PP3)'!$E$284"]
["pp3_bl4_10_2_rate_out",{"$f":"'T2-B(PP3)'!$H$284","v":0},"#'T2-B(PP3)'!$H$284"]
["pp3_bl4_10_2_total",{"$f":"'T2-B(PP3)'!$J$284","v":0},"#'T2-B(PP3)'!$J$284"]
["pp3_bl4_10_2_total_in",{"$f":"'T2-B(PP3)'!$F$284","v":0},"#'T2-B(PP3)'!$F$284"]
["pp3_bl4_10_2_total_out",{"$f":"'T2-B(PP3)'!$I$284","v":0},"#'T2-B(PP3)'!$I$284"]
["pp3_bl4_10_2_unit",{"$f":"'T2-B(PP3)'!$C$284","v":0},"#'T2-B(PP3)'!$C$284"]
["pp3_bl4_10_2_unit_in",{"$f":"'T2-B(PP3)'!$D$284","v":0},"#'T2-B(PP3)'!$D$284"]
["pp3_bl4_10_2_units_out",{"$f":"'T2-B(PP3)'!$G$284","v":0},"#'T2-B(PP3)'!$G$284"]
["pp3_bl4_10_20_name",{"$f":"'T2-B(PP3)'!$B$302","v":0},"#'T2-B(PP3)'!$B$302"]
["pp3_bl4_10_20_rate_in",{"$f":"'T2-B(PP3)'!$E$302","v":0},"#'T2-B(PP3)'!$E$302"]
["pp3_bl4_10_20_rate_out",{"$f":"'T2-B(PP3)'!$H$302","v":0},"#'T2-B(PP3)'!$H$302"]
["pp3_bl4_10_20_total",{"$f":"'T2-B(PP3)'!$J$302","v":0},"#'T2-B(PP3)'!$J$302"]
["pp3_bl4_10_20_total_in",{"$f":"'T2-B(PP3)'!$F$302","v":0},"#'T2-B(PP3)'!$F$302"]
["pp3_bl4_10_20_total_out",{"$f":"'T2-B(PP3)'!$I$302","v":0},"#'T2-B(PP3)'!$I$302"]
["pp3_bl4_10_20_unit",{"$f":"'T2-B(PP3)'!$C$302","v":0},"#'T2-B(PP3)'!$C$302"]
["pp3_bl4_10_20_unit_in",{"$f":"'T2-B(PP3)'!$D$302","v":0},"#'T2-B(PP3)'!$D$302"]
["pp3_bl4_10_20_units_out",{"$f":"'T2-B(PP3)'!$G$302","v":0},"#'T2-B(PP3)'!$G$302"]
["pp3_bl4_10_3_name",{"$f":"'T2-B(PP3)'!$B$285","v":0},"#'T2-B(PP3)'!$B$285"]
["pp3_bl4_10_3_rate_in",{"$f":"'T2-B(PP3)'!$E$285","v":0},"#'T2-B(PP3)'!$E$285"]
["pp3_bl4_10_3_rate_out",{"$f":"'T2-B(PP3)'!$H$285","v":0},"#'T2-B(PP3)'!$H$285"]
["pp3_bl4_10_3_total",{"$f":"'T2-B(PP3)'!$J$285","v":0},"#'T2-B(PP3)'!$J$285"]
["pp3_bl4_10_3_total_in",{"$f":"'T2-B(PP3)'!$F$285","v":0},"#'T2-B(PP3)'!$F$285"]
["pp3_bl4_10_3_total_out",{"$f":"'T2-B(PP3)'!$I$285","v":0},"#'T2-B(PP3)'!$I$285"]
["pp3_bl4_10_3_unit",{"$f":"'T2-B(PP3)'!$C$285","v":0},"#'T2-B(PP3)'!$C$285"]
["pp3_bl4_10_3_unit_in",{"$f":"'T2-B(PP3)'!$D$285","v":0},"#'T2-B(PP3)'!$D$285"]
["pp3_bl4_10_3_units_out",{"$f":"'T2-B(PP3)'!$G$285","v":0},"#'T2-B(PP3)'!$G$285"]
["pp3_bl4_10_4_name",{"$f":"'T2-B(PP3)'!$B$286","v":0},"#'T2-B(PP3)'!$B$286"]
["pp3_bl4_10_4_rate_in",{"$f":"'T2-B(PP3)'!$E$286","v":0},"#'T2-B(PP3)'!$E$286"]
["pp3_bl4_10_4_rate_out",{"$f":"'T2-B(PP3)'!$H$286","v":0},"#'T2-B(PP3)'!$H$286"]
["pp3_bl4_10_4_total",{"$f":"'T2-B(PP3)'!$J$286","v":0},"#'T2-B(PP3)'!$J$286"]
["pp3_bl4_10_4_total_in",{"$f":"'T2-B(PP3)'!$F$286","v":0},"#'T2-B(PP3)'!$F$286"]
["pp3_bl4_10_4_total_out",{"$f":"'T2-B(PP3)'!$I$286","v":0},"#'T2-B(PP3)'!$I$286"]
["pp3_bl4_10_4_unit",{"$f":"'T2-B(PP3)'!$C$286","v":0},"#'T2-B(PP3)'!$C$286"]
["pp3_bl4_10_4_unit_in",{"$f":"'T2-B(PP3)'!$D$286","v":0},"#'T2-B(PP3)'!$D$286"]
["pp3_bl4_10_4_units_out",{"$f":"'T2-B(PP3)'!$G$286","v":0},"#'T2-B(PP3)'!$G$286"]
["pp3_bl4_10_5_name",{"$f":"'T2-B(PP3)'!$B$287","v":0},"#'T2-B(PP3)'!$B$287"]
["pp3_bl4_10_5_rate_in",{"$f":"'T2-B(PP3)'!$E$287","v":0},"#'T2-B(PP3)'!$E$287"]
["pp3_bl4_10_5_rate_out",{"$f":"'T2-B(PP3)'!$H$287","v":0},"#'T2-B(PP3)'!$H$287"]
["pp3_bl4_10_5_total",{"$f":"'T2-B(PP3)'!$J$287","v":0},"#'T2-B(PP3)'!$J$287"]
["pp3_bl4_10_5_total_in",{"$f":"'T2-B(PP3)'!$F$287","v":0},"#'T2-B(PP3)'!$F$287"]
["pp3_bl4_10_5_total_out",{"$f":"'T2-B(PP3)'!$I$287","v":0},"#'T2-B(PP3)'!$I$287"]
["pp3_bl4_10_5_unit",{"$f":"'T2-B(PP3)'!$C$287","v":0},"#'T2-B(PP3)'!$C$287"]
["pp3_bl4_10_5_unit_in",{"$f":"'T2-B(PP3)'!$D$287","v":0},"#'T2-B(PP3)'!$D$287"]
["pp3_bl4_10_5_units_out",{"$f":"'T2-B(PP3)'!$G$287","v":0},"#'T2-B(PP3)'!$G$287"]
["pp3_bl4_10_6_name",{"$f":"'T2-B(PP3)'!$B$288","v":0},"#'T2-B(PP3)'!$B$288"]
["pp3_bl4_10_6_rate_in",{"$f":"'T2-B(PP3)'!$E$288","v":0},"#'T2-B(PP3)'!$E$288"]
["pp3_bl4_10_6_rate_out",{"$f":"'T2-B(PP3)'!$H$288","v":0},"#'T2-B(PP3)'!$H$288"]
["pp3_bl4_10_6_total",{"$f":"'T2-B(PP3)'!$J$288","v":0},"#'T2-B(PP3)'!$J$288"]
["pp3_bl4_10_6_total_in",{"$f":"'T2-B(PP3)'!$F$288","v":0},"#'T2-B(PP3)'!$F$288"]
["pp3_bl4_10_6_total_out",{"$f":"'T2-B(PP3)'!$I$288","v":0},"#'T2-B(PP3)'!$I$288"]
["pp3_bl4_10_6_unit",{"$f":"'T2-B(PP3)'!$C$288","v":0},"#'T2-B(PP3)'!$C$288"]
["pp3_bl4_10_6_unit_in",{"$f":"'T2-B(PP3)'!$D$288","v":0},"#'T2-B(PP3)'!$D$288"]
["pp3_bl4_10_6_units_out",{"$f":"'T2-B(PP3)'!$G$288","v":0},"#'T2-B(PP3)'!$G$288"]
["pp3_bl4_10_7_name",{"$f":"'T2-B(PP3)'!$B$289","v":0},"#'T2-B(PP3)'!$B$289"]
["pp3_bl4_10_7_rate_in",{"$f":"'T2-B(PP3)'!$E$289","v":0},"#'T2-B(PP3)'!$E$289"]
["pp3_bl4_10_7_rate_out",{"$f":"'T2-B(PP3)'!$H$289","v":0},"#'T2-B(PP3)'!$H$289"]
["pp3_bl4_10_7_total",{"$f":"'T2-B(PP3)'!$J$289","v":0},"#'T2-B(PP3)'!$J$289"]
["pp3_bl4_10_7_total_in",{"$f":"'T2-B(PP3)'!$F$289","v":0},"#'T2-B(PP3)'!$F$289"]
["pp3_bl4_10_7_total_out",{"$f":"'T2-B(PP3)'!$I$289","v":0},"#'T2-B(PP3)'!$I$289"]
["pp3_bl4_10_7_unit",{"$f":"'T2-B(PP3)'!$C$289","v":0},"#'T2-B(PP3)'!$C$289"]
["pp3_bl4_10_7_unit_in",{"$f":"'T2-B(PP3)'!$D$289","v":0},"#'T2-B(PP3)'!$D$289"]
["pp3_bl4_10_7_units_out",{"$f":"'T2-B(PP3)'!$G$289","v":0},"#'T2-B(PP3)'!$G$289"]
["pp3_bl4_10_8_name",{"$f":"'T2-B(PP3)'!$B$290","v":0},"#'T2-B(PP3)'!$B$290"]
["pp3_bl4_10_8_rate_in",{"$f":"'T2-B(PP3)'!$E$290","v":0},"#'T2-B(PP3)'!$E$290"]
["pp3_bl4_10_8_rate_out",{"$f":"'T2-B(PP3)'!$H$290","v":0},"#'T2-B(PP3)'!$H$290"]
["pp3_bl4_10_8_total",{"$f":"'T2-B(PP3)'!$J$290","v":0},"#'T2-B(PP3)'!$J$290"]
["pp3_bl4_10_8_total_in",{"$f":"'T2-B(PP3)'!$F$290","v":0},"#'T2-B(PP3)'!$F$290"]
["pp3_bl4_10_8_total_out",{"$f":"'T2-B(PP3)'!$I$290","v":0},"#'T2-B(PP3)'!$I$290"]
["pp3_bl4_10_8_unit",{"$f":"'T2-B(PP3)'!$C$290","v":0},"#'T2-B(PP3)'!$C$290"]
["pp3_bl4_10_8_unit_in",{"$f":"'T2-B(PP3)'!$D$290","v":0},"#'T2-B(PP3)'!$D$290"]
["pp3_bl4_10_8_units_out",{"$f":"'T2-B(PP3)'!$G$290","v":0},"#'T2-B(PP3)'!$G$290"]
["pp3_bl4_10_9_name",{"$f":"'T2-B(PP3)'!$B$291","v":0},"#'T2-B(PP3)'!$B$291"]
["pp3_bl4_10_9_rate_in",{"$f":"'T2-B(PP3)'!$E$291","v":0},"#'T2-B(PP3)'!$E$291"]
["pp3_bl4_10_9_rate_out",{"$f":"'T2-B(PP3)'!$H$291","v":0},"#'T2-B(PP3)'!$H$291"]
["pp3_bl4_10_9_total",{"$f":"'T2-B(PP3)'!$J$291","v":0},"#'T2-B(PP3)'!$J$291"]
["pp3_bl4_10_9_total_in",{"$f":"'T2-B(PP3)'!$F$291","v":0},"#'T2-B(PP3)'!$F$291"]
["pp3_bl4_10_9_total_out",{"$f":"'T2-B(PP3)'!$I$291","v":0},"#'T2-B(PP3)'!$I$291"]
["pp3_bl4_10_9_unit",{"$f":"'T2-B(PP3)'!$C$291","v":0},"#'T2-B(PP3)'!$C$291"]
["pp3_bl4_10_9_unit_in",{"$f":"'T2-B(PP3)'!$D$291","v":0},"#'T2-B(PP3)'!$D$291"]
["pp3_bl4_10_9_units_out",{"$f":"'T2-B(PP3)'!$G$291","v":0},"#'T2-B(PP3)'!$G$291"]
["pp3_bl4_10_total",{"$f":"'T2-B(PP3)'!$J$282","v":0},"#'T2-B(PP3)'!$J$282"]
["pp3_bl4_10_total_in",{"$f":"'T2-B(PP3)'!$F$282","v":0},"#'T2-B(PP3)'!$F$282"]
["pp3_bl4_10_total_out",{"$f":"'T2-B(PP3)'!$I$282","v":0},"#'T2-B(PP3)'!$I$282"]
["pp3_bl4_11_1_name",{"$f":"'T2-B(PP3)'!$B$304","v":0},"#'T2-B(PP3)'!$B$304"]
["pp3_bl4_11_1_rate_in",{"$f":"'T2-B(PP3)'!$E$304","v":0},"#'T2-B(PP3)'!$E$304"]
["pp3_bl4_11_1_rate_out",{"$f":"'T2-B(PP3)'!$H$304","v":0},"#'T2-B(PP3)'!$H$304"]
["pp3_bl4_11_1_total",{"$f":"'T2-B(PP3)'!$J$304","v":0},"#'T2-B(PP3)'!$J$304"]
["pp3_bl4_11_1_total_in",{"$f":"'T2-B(PP3)'!$F$304","v":0},"#'T2-B(PP3)'!$F$304"]
["pp3_bl4_11_1_total_out",{"$f":"'T2-B(PP3)'!$I$304","v":0},"#'T2-B(PP3)'!$I$304"]
["pp3_bl4_11_1_unit",{"$f":"'T2-B(PP3)'!$C$304","v":0},"#'T2-B(PP3)'!$C$304"]
["pp3_bl4_11_1_unit_in",{"$f":"'T2-B(PP3)'!$D$304","v":0},"#'T2-B(PP3)'!$D$304"]
["pp3_bl4_11_1_units_out",{"$f":"'T2-B(PP3)'!$G$304","v":0},"#'T2-B(PP3)'!$G$304"]
["pp3_bl4_11_10_name",{"$f":"'T2-B(PP3)'!$B$313","v":0},"#'T2-B(PP3)'!$B$313"]
["pp3_bl4_11_10_rate_in",{"$f":"'T2-B(PP3)'!$E$313","v":0},"#'T2-B(PP3)'!$E$313"]
["pp3_bl4_11_10_rate_out",{"$f":"'T2-B(PP3)'!$H$313","v":0},"#'T2-B(PP3)'!$H$313"]
["pp3_bl4_11_10_total",{"$f":"'T2-B(PP3)'!$J$313","v":0},"#'T2-B(PP3)'!$J$313"]
["pp3_bl4_11_10_total_in",{"$f":"'T2-B(PP3)'!$F$313","v":0},"#'T2-B(PP3)'!$F$313"]
["pp3_bl4_11_10_total_out",{"$f":"'T2-B(PP3)'!$I$313","v":0},"#'T2-B(PP3)'!$I$313"]
["pp3_bl4_11_10_unit",{"$f":"'T2-B(PP3)'!$C$313","v":0},"#'T2-B(PP3)'!$C$313"]
["pp3_bl4_11_10_unit_in",{"$f":"'T2-B(PP3)'!$D$313","v":0},"#'T2-B(PP3)'!$D$313"]
["pp3_bl4_11_10_units_out",{"$f":"'T2-B(PP3)'!$G$313","v":0},"#'T2-B(PP3)'!$G$313"]
["pp3_bl4_11_11_name",{"$f":"'T2-B(PP3)'!$B$314","v":0},"#'T2-B(PP3)'!$B$314"]
["pp3_bl4_11_11_rate_in",{"$f":"'T2-B(PP3)'!$E$314","v":0},"#'T2-B(PP3)'!$E$314"]
["pp3_bl4_11_11_rate_out",{"$f":"'T2-B(PP3)'!$H$314","v":0},"#'T2-B(PP3)'!$H$314"]
["pp3_bl4_11_11_total",{"$f":"'T2-B(PP3)'!$J$314","v":0},"#'T2-B(PP3)'!$J$314"]
["pp3_bl4_11_11_total_in",{"$f":"'T2-B(PP3)'!$F$314","v":0},"#'T2-B(PP3)'!$F$314"]
["pp3_bl4_11_11_total_out",{"$f":"'T2-B(PP3)'!$I$314","v":0},"#'T2-B(PP3)'!$I$314"]
["pp3_bl4_11_11_unit",{"$f":"'T2-B(PP3)'!$C$314","v":0},"#'T2-B(PP3)'!$C$314"]
["pp3_bl4_11_11_unit_in",{"$f":"'T2-B(PP3)'!$D$314","v":0},"#'T2-B(PP3)'!$D$314"]
["pp3_bl4_11_11_units_out",{"$f":"'T2-B(PP3)'!$G$314","v":0},"#'T2-B(PP3)'!$G$314"]
["pp3_bl4_11_12_name",{"$f":"'T2-B(PP3)'!$B$315","v":0},"#'T2-B(PP3)'!$B$315"]
["pp3_bl4_11_12_rate_in",{"$f":"'T2-B(PP3)'!$E$315","v":0},"#'T2-B(PP3)'!$E$315"]
["pp3_bl4_11_12_rate_out",{"$f":"'T2-B(PP3)'!$H$315","v":0},"#'T2-B(PP3)'!$H$315"]
["pp3_bl4_11_12_total",{"$f":"'T2-B(PP3)'!$J$315","v":0},"#'T2-B(PP3)'!$J$315"]
["pp3_bl4_11_12_total_in",{"$f":"'T2-B(PP3)'!$F$315","v":0},"#'T2-B(PP3)'!$F$315"]
["pp3_bl4_11_12_total_out",{"$f":"'T2-B(PP3)'!$I$315","v":0},"#'T2-B(PP3)'!$I$315"]
["pp3_bl4_11_12_unit",{"$f":"'T2-B(PP3)'!$C$315","v":0},"#'T2-B(PP3)'!$C$315"]
["pp3_bl4_11_12_unit_in",{"$f":"'T2-B(PP3)'!$D$315","v":0},"#'T2-B(PP3)'!$D$315"]
["pp3_bl4_11_12_units_out",{"$f":"'T2-B(PP3)'!$G$315","v":0},"#'T2-B(PP3)'!$G$315"]
["pp3_bl4_11_13_name",{"$f":"'T2-B(PP3)'!$B$316","v":0},"#'T2-B(PP3)'!$B$316"]
["pp3_bl4_11_13_rate_in",{"$f":"'T2-B(PP3)'!$E$316","v":0},"#'T2-B(PP3)'!$E$316"]
["pp3_bl4_11_13_rate_out",{"$f":"'T2-B(PP3)'!$H$316","v":0},"#'T2-B(PP3)'!$H$316"]
["pp3_bl4_11_13_total",{"$f":"'T2-B(PP3)'!$J$316","v":0},"#'T2-B(PP3)'!$J$316"]
["pp3_bl4_11_13_total_in",{"$f":"'T2-B(PP3)'!$F$316","v":0},"#'T2-B(PP3)'!$F$316"]
["pp3_bl4_11_13_total_out",{"$f":"'T2-B(PP3)'!$I$316","v":0},"#'T2-B(PP3)'!$I$316"]
["pp3_bl4_11_13_unit",{"$f":"'T2-B(PP3)'!$C$316","v":0},"#'T2-B(PP3)'!$C$316"]
["pp3_bl4_11_13_unit_in",{"$f":"'T2-B(PP3)'!$D$316","v":0},"#'T2-B(PP3)'!$D$316"]
["pp3_bl4_11_13_units_out",{"$f":"'T2-B(PP3)'!$G$316","v":0},"#'T2-B(PP3)'!$G$316"]
["pp3_bl4_11_14_name",{"$f":"'T2-B(PP3)'!$B$317","v":0},"#'T2-B(PP3)'!$B$317"]
["pp3_bl4_11_14_rate_in",{"$f":"'T2-B(PP3)'!$E$317","v":0},"#'T2-B(PP3)'!$E$317"]
["pp3_bl4_11_14_rate_out",{"$f":"'T2-B(PP3)'!$H$317","v":0},"#'T2-B(PP3)'!$H$317"]
["pp3_bl4_11_14_total",{"$f":"'T2-B(PP3)'!$J$317","v":0},"#'T2-B(PP3)'!$J$317"]
["pp3_bl4_11_14_total_in",{"$f":"'T2-B(PP3)'!$F$317","v":0},"#'T2-B(PP3)'!$F$317"]
["pp3_bl4_11_14_total_out",{"$f":"'T2-B(PP3)'!$I$317","v":0},"#'T2-B(PP3)'!$I$317"]
["pp3_bl4_11_14_unit",{"$f":"'T2-B(PP3)'!$C$317","v":0},"#'T2-B(PP3)'!$C$317"]
["pp3_bl4_11_14_unit_in",{"$f":"'T2-B(PP3)'!$D$317","v":0},"#'T2-B(PP3)'!$D$317"]
["pp3_bl4_11_14_units_out",{"$f":"'T2-B(PP3)'!$G$317","v":0},"#'T2-B(PP3)'!$G$317"]
["pp3_bl4_11_15_name",{"$f":"'T2-B(PP3)'!$B$318","v":0},"#'T2-B(PP3)'!$B$318"]
["pp3_bl4_11_15_rate_in",{"$f":"'T2-B(PP3)'!$E$318","v":0},"#'T2-B(PP3)'!$E$318"]
["pp3_bl4_11_15_rate_out",{"$f":"'T2-B(PP3)'!$H$318","v":0},"#'T2-B(PP3)'!$H$318"]
["pp3_bl4_11_15_total",{"$f":"'T2-B(PP3)'!$J$318","v":0},"#'T2-B(PP3)'!$J$318"]
["pp3_bl4_11_15_total_in",{"$f":"'T2-B(PP3)'!$F$318","v":0},"#'T2-B(PP3)'!$F$318"]
["pp3_bl4_11_15_total_out",{"$f":"'T2-B(PP3)'!$I$318","v":0},"#'T2-B(PP3)'!$I$318"]
["pp3_bl4_11_15_unit",{"$f":"'T2-B(PP3)'!$C$318","v":0},"#'T2-B(PP3)'!$C$318"]
["pp3_bl4_11_15_unit_in",{"$f":"'T2-B(PP3)'!$D$318","v":0},"#'T2-B(PP3)'!$D$318"]
["pp3_bl4_11_15_units_out",{"$f":"'T2-B(PP3)'!$G$318","v":0},"#'T2-B(PP3)'!$G$318"]
["pp3_bl4_11_16_name",{"$f":"'T2-B(PP3)'!$B$319","v":0},"#'T2-B(PP3)'!$B$319"]
["pp3_bl4_11_16_rate_in",{"$f":"'T2-B(PP3)'!$E$319","v":0},"#'T2-B(PP3)'!$E$319"]
["pp3_bl4_11_16_rate_out",{"$f":"'T2-B(PP3)'!$H$319","v":0},"#'T2-B(PP3)'!$H$319"]
["pp3_bl4_11_16_total",{"$f":"'T2-B(PP3)'!$J$319","v":0},"#'T2-B(PP3)'!$J$319"]
["pp3_bl4_11_16_total_in",{"$f":"'T2-B(PP3)'!$F$319","v":0},"#'T2-B(PP3)'!$F$319"]
["pp3_bl4_11_16_total_out",{"$f":"'T2-B(PP3)'!$I$319","v":0},"#'T2-B(PP3)'!$I$319"]
["pp3_bl4_11_16_unit",{"$f":"'T2-B(PP3)'!$C$319","v":0},"#'T2-B(PP3)'!$C$319"]
["pp3_bl4_11_16_unit_in",{"$f":"'T2-B(PP3)'!$D$319","v":0},"#'T2-B(PP3)'!$D$319"]
["pp3_bl4_11_16_units_out",{"$f":"'T2-B(PP3)'!$G$319","v":0},"#'T2-B(PP3)'!$G$319"]
["pp3_bl4_11_17_name",{"$f":"'T2-B(PP3)'!$B$320","v":0},"#'T2-B(PP3)'!$B$320"]
["pp3_bl4_11_17_rate_in",{"$f":"'T2-B(PP3)'!$E$320","v":0},"#'T2-B(PP3)'!$E$320"]
["pp3_bl4_11_17_rate_out",{"$f":"'T2-B(PP3)'!$H$320","v":0},"#'T2-B(PP3)'!$H$320"]
["pp3_bl4_11_17_total",{"$f":"'T2-B(PP3)'!$J$320","v":0},"#'T2-B(PP3)'!$J$320"]
["pp3_bl4_11_17_total_in",{"$f":"'T2-B(PP3)'!$F$320","v":0},"#'T2-B(PP3)'!$F$320"]
["pp3_bl4_11_17_total_out",{"$f":"'T2-B(PP3)'!$I$320","v":0},"#'T2-B(PP3)'!$I$320"]
["pp3_bl4_11_17_unit",{"$f":"'T2-B(PP3)'!$C$320","v":0},"#'T2-B(PP3)'!$C$320"]
["pp3_bl4_11_17_unit_in",{"$f":"'T2-B(PP3)'!$D$320","v":0},"#'T2-B(PP3)'!$D$320"]
["pp3_bl4_11_17_units_out",{"$f":"'T2-B(PP3)'!$G$320","v":0},"#'T2-B(PP3)'!$G$320"]
["pp3_bl4_11_18_name",{"$f":"'T2-B(PP3)'!$B$321","v":0},"#'T2-B(PP3)'!$B$321"]
["pp3_bl4_11_18_rate_in",{"$f":"'T2-B(PP3)'!$E$321","v":0},"#'T2-B(PP3)'!$E$321"]
["pp3_bl4_11_18_rate_out",{"$f":"'T2-B(PP3)'!$H$321","v":0},"#'T2-B(PP3)'!$H$321"]
["pp3_bl4_11_18_total",{"$f":"'T2-B(PP3)'!$J$321","v":0},"#'T2-B(PP3)'!$J$321"]
["pp3_bl4_11_18_total_in",{"$f":"'T2-B(PP3)'!$F$321","v":0},"#'T2-B(PP3)'!$F$321"]
["pp3_bl4_11_18_total_out",{"$f":"'T2-B(PP3)'!$I$321","v":0},"#'T2-B(PP3)'!$I$321"]
["pp3_bl4_11_18_unit",{"$f":"'T2-B(PP3)'!$C$321","v":0},"#'T2-B(PP3)'!$C$321"]
["pp3_bl4_11_18_unit_in",{"$f":"'T2-B(PP3)'!$D$321","v":0},"#'T2-B(PP3)'!$D$321"]
["pp3_bl4_11_18_units_out",{"$f":"'T2-B(PP3)'!$G$321","v":0},"#'T2-B(PP3)'!$G$321"]
["pp3_bl4_11_19_name",{"$f":"'T2-B(PP3)'!$B$322","v":0},"#'T2-B(PP3)'!$B$322"]
["pp3_bl4_11_19_rate_in",{"$f":"'T2-B(PP3)'!$E$322","v":0},"#'T2-B(PP3)'!$E$322"]
["pp3_bl4_11_19_rate_out",{"$f":"'T2-B(PP3)'!$H$322","v":0},"#'T2-B(PP3)'!$H$322"]
["pp3_bl4_11_19_total",{"$f":"'T2-B(PP3)'!$J$322","v":0},"#'T2-B(PP3)'!$J$322"]
["pp3_bl4_11_19_total_in",{"$f":"'T2-B(PP3)'!$F$322","v":0},"#'T2-B(PP3)'!$F$322"]
["pp3_bl4_11_19_total_out",{"$f":"'T2-B(PP3)'!$I$322","v":0},"#'T2-B(PP3)'!$I$322"]
["pp3_bl4_11_19_unit",{"$f":"'T2-B(PP3)'!$C$322","v":0},"#'T2-B(PP3)'!$C$322"]
["pp3_bl4_11_19_unit_in",{"$f":"'T2-B(PP3)'!$D$322","v":0},"#'T2-B(PP3)'!$D$322"]
["pp3_bl4_11_19_units_out",{"$f":"'T2-B(PP3)'!$G$322","v":0},"#'T2-B(PP3)'!$G$322"]
["pp3_bl4_11_2_name",{"$f":"'T2-B(PP3)'!$B$305","v":0},"#'T2-B(PP3)'!$B$305"]
["pp3_bl4_11_2_rate_in",{"$f":"'T2-B(PP3)'!$E$305","v":0},"#'T2-B(PP3)'!$E$305"]
["pp3_bl4_11_2_rate_out",{"$f":"'T2-B(PP3)'!$H$305","v":0},"#'T2-B(PP3)'!$H$305"]
["pp3_bl4_11_2_total",{"$f":"'T2-B(PP3)'!$J$305","v":0},"#'T2-B(PP3)'!$J$305"]
["pp3_bl4_11_2_total_in",{"$f":"'T2-B(PP3)'!$F$305","v":0},"#'T2-B(PP3)'!$F$305"]
["pp3_bl4_11_2_total_out",{"$f":"'T2-B(PP3)'!$I$305","v":0},"#'T2-B(PP3)'!$I$305"]
["pp3_bl4_11_2_unit",{"$f":"'T2-B(PP3)'!$C$305","v":0},"#'T2-B(PP3)'!$C$305"]
["pp3_bl4_11_2_unit_in",{"$f":"'T2-B(PP3)'!$D$305","v":0},"#'T2-B(PP3)'!$D$305"]
["pp3_bl4_11_2_units_out",{"$f":"'T2-B(PP3)'!$G$305","v":0},"#'T2-B(PP3)'!$G$305"]
["pp3_bl4_11_20_name",{"$f":"'T2-B(PP3)'!$B$323","v":0},"#'T2-B(PP3)'!$B$323"]
["pp3_bl4_11_20_rate_in",{"$f":"'T2-B(PP3)'!$E$323","v":0},"#'T2-B(PP3)'!$E$323"]
["pp3_bl4_11_20_rate_out",{"$f":"'T2-B(PP3)'!$H$323","v":0},"#'T2-B(PP3)'!$H$323"]
["pp3_bl4_11_20_total",{"$f":"'T2-B(PP3)'!$J$323","v":0},"#'T2-B(PP3)'!$J$323"]
["pp3_bl4_11_20_total_in",{"$f":"'T2-B(PP3)'!$F$323","v":0},"#'T2-B(PP3)'!$F$323"]
["pp3_bl4_11_20_total_out",{"$f":"'T2-B(PP3)'!$I$323","v":0},"#'T2-B(PP3)'!$I$323"]
["pp3_bl4_11_20_unit",{"$f":"'T2-B(PP3)'!$C$323","v":0},"#'T2-B(PP3)'!$C$323"]
["pp3_bl4_11_20_unit_in",{"$f":"'T2-B(PP3)'!$D$323","v":0},"#'T2-B(PP3)'!$D$323"]
["pp3_bl4_11_20_units_out",{"$f":"'T2-B(PP3)'!$G$323","v":0},"#'T2-B(PP3)'!$G$323"]
["pp3_bl4_11_3_name",{"$f":"'T2-B(PP3)'!$B$306","v":0},"#'T2-B(PP3)'!$B$306"]
["pp3_bl4_11_3_rate_in",{"$f":"'T2-B(PP3)'!$E$306","v":0},"#'T2-B(PP3)'!$E$306"]
["pp3_bl4_11_3_rate_out",{"$f":"'T2-B(PP3)'!$H$306","v":0},"#'T2-B(PP3)'!$H$306"]
["pp3_bl4_11_3_total",{"$f":"'T2-B(PP3)'!$J$306","v":0},"#'T2-B(PP3)'!$J$306"]
["pp3_bl4_11_3_total_in",{"$f":"'T2-B(PP3)'!$F$306","v":0},"#'T2-B(PP3)'!$F$306"]
["pp3_bl4_11_3_total_out",{"$f":"'T2-B(PP3)'!$I$306","v":0},"#'T2-B(PP3)'!$I$306"]
["pp3_bl4_11_3_unit",{"$f":"'T2-B(PP3)'!$C$306","v":0},"#'T2-B(PP3)'!$C$306"]
["pp3_bl4_11_3_unit_in",{"$f":"'T2-B(PP3)'!$D$306","v":0},"#'T2-B(PP3)'!$D$306"]
["pp3_bl4_11_3_units_out",{"$f":"'T2-B(PP3)'!$G$306","v":0},"#'T2-B(PP3)'!$G$306"]
["pp3_bl4_11_4_name",{"$f":"'T2-B(PP3)'!$B$307","v":0},"#'T2-B(PP3)'!$B$307"]
["pp3_bl4_11_4_rate_in",{"$f":"'T2-B(PP3)'!$E$307","v":0},"#'T2-B(PP3)'!$E$307"]
["pp3_bl4_11_4_rate_out",{"$f":"'T2-B(PP3)'!$H$307","v":0},"#'T2-B(PP3)'!$H$307"]
["pp3_bl4_11_4_total",{"$f":"'T2-B(PP3)'!$J$307","v":0},"#'T2-B(PP3)'!$J$307"]
["pp3_bl4_11_4_total_in",{"$f":"'T2-B(PP3)'!$F$307","v":0},"#'T2-B(PP3)'!$F$307"]
["pp3_bl4_11_4_total_out",{"$f":"'T2-B(PP3)'!$I$307","v":0},"#'T2-B(PP3)'!$I$307"]
["pp3_bl4_11_4_unit",{"$f":"'T2-B(PP3)'!$C$307","v":0},"#'T2-B(PP3)'!$C$307"]
["pp3_bl4_11_4_unit_in",{"$f":"'T2-B(PP3)'!$D$307","v":0},"#'T2-B(PP3)'!$D$307"]
["pp3_bl4_11_4_units_out",{"$f":"'T2-B(PP3)'!$G$307","v":0},"#'T2-B(PP3)'!$G$307"]
["pp3_bl4_11_5_name",{"$f":"'T2-B(PP3)'!$B$308","v":0},"#'T2-B(PP3)'!$B$308"]
["pp3_bl4_11_5_rate_in",{"$f":"'T2-B(PP3)'!$E$308","v":0},"#'T2-B(PP3)'!$E$308"]
["pp3_bl4_11_5_rate_out",{"$f":"'T2-B(PP3)'!$H$308","v":0},"#'T2-B(PP3)'!$H$308"]
["pp3_bl4_11_5_total",{"$f":"'T2-B(PP3)'!$J$308","v":0},"#'T2-B(PP3)'!$J$308"]
["pp3_bl4_11_5_total_in",{"$f":"'T2-B(PP3)'!$F$308","v":0},"#'T2-B(PP3)'!$F$308"]
["pp3_bl4_11_5_total_out",{"$f":"'T2-B(PP3)'!$I$308","v":0},"#'T2-B(PP3)'!$I$308"]
["pp3_bl4_11_5_unit",{"$f":"'T2-B(PP3)'!$C$308","v":0},"#'T2-B(PP3)'!$C$308"]
["pp3_bl4_11_5_unit_in",{"$f":"'T2-B(PP3)'!$D$308","v":0},"#'T2-B(PP3)'!$D$308"]
["pp3_bl4_11_5_units_out",{"$f":"'T2-B(PP3)'!$G$308","v":0},"#'T2-B(PP3)'!$G$308"]
["pp3_bl4_11_6_name",{"$f":"'T2-B(PP3)'!$B$309","v":0},"#'T2-B(PP3)'!$B$309"]
["pp3_bl4_11_6_rate_in",{"$f":"'T2-B(PP3)'!$E$309","v":0},"#'T2-B(PP3)'!$E$309"]
["pp3_bl4_11_6_rate_out",{"$f":"'T2-B(PP3)'!$H$309","v":0},"#'T2-B(PP3)'!$H$309"]
["pp3_bl4_11_6_total",{"$f":"'T2-B(PP3)'!$J$309","v":0},"#'T2-B(PP3)'!$J$309"]
["pp3_bl4_11_6_total_in",{"$f":"'T2-B(PP3)'!$F$309","v":0},"#'T2-B(PP3)'!$F$309"]
["pp3_bl4_11_6_total_out",{"$f":"'T2-B(PP3)'!$I$309","v":0},"#'T2-B(PP3)'!$I$309"]
["pp3_bl4_11_6_unit",{"$f":"'T2-B(PP3)'!$C$309","v":0},"#'T2-B(PP3)'!$C$309"]
["pp3_bl4_11_6_unit_in",{"$f":"'T2-B(PP3)'!$D$309","v":0},"#'T2-B(PP3)'!$D$309"]
["pp3_bl4_11_6_units_out",{"$f":"'T2-B(PP3)'!$G$309","v":0},"#'T2-B(PP3)'!$G$309"]
["pp3_bl4_11_7_name",{"$f":"'T2-B(PP3)'!$B$310","v":0},"#'T2-B(PP3)'!$B$310"]
["pp3_bl4_11_7_rate_in",{"$f":"'T2-B(PP3)'!$E$310","v":0},"#'T2-B(PP3)'!$E$310"]
["pp3_bl4_11_7_rate_out",{"$f":"'T2-B(PP3)'!$H$310","v":0},"#'T2-B(PP3)'!$H$310"]
["pp3_bl4_11_7_total",{"$f":"'T2-B(PP3)'!$J$310","v":0},"#'T2-B(PP3)'!$J$310"]
["pp3_bl4_11_7_total_in",{"$f":"'T2-B(PP3)'!$F$310","v":0},"#'T2-B(PP3)'!$F$310"]
["pp3_bl4_11_7_total_out",{"$f":"'T2-B(PP3)'!$I$310","v":0},"#'T2-B(PP3)'!$I$310"]
["pp3_bl4_11_7_unit",{"$f":"'T2-B(PP3)'!$C$310","v":0},"#'T2-B(PP3)'!$C$310"]
["pp3_bl4_11_7_unit_in",{"$f":"'T2-B(PP3)'!$D$310","v":0},"#'T2-B(PP3)'!$D$310"]
["pp3_bl4_11_7_units_out",{"$f":"'T2-B(PP3)'!$G$310","v":0},"#'T2-B(PP3)'!$G$310"]
["pp3_bl4_11_8_name",{"$f":"'T2-B(PP3)'!$B$311","v":0},"#'T2-B(PP3)'!$B$311"]
["pp3_bl4_11_8_rate_in",{"$f":"'T2-B(PP3)'!$E$311","v":0},"#'T2-B(PP3)'!$E$311"]
["pp3_bl4_11_8_rate_out",{"$f":"'T2-B(PP3)'!$H$311","v":0},"#'T2-B(PP3)'!$H$311"]
["pp3_bl4_11_8_total",{"$f":"'T2-B(PP3)'!$J$311","v":0},"#'T2-B(PP3)'!$J$311"]
["pp3_bl4_11_8_total_in",{"$f":"'T2-B(PP3)'!$F$311","v":0},"#'T2-B(PP3)'!$F$311"]
["pp3_bl4_11_8_total_out",{"$f":"'T2-B(PP3)'!$I$311","v":0},"#'T2-B(PP3)'!$I$311"]
["pp3_bl4_11_8_unit",{"$f":"'T2-B(PP3)'!$C$311","v":0},"#'T2-B(PP3)'!$C$311"]
["pp3_bl4_11_8_unit_in",{"$f":"'T2-B(PP3)'!$D$311","v":0},"#'T2-B(PP3)'!$D$311"]
["pp3_bl4_11_8_units_out",{"$f":"'T2-B(PP3)'!$G$311","v":0},"#'T2-B(PP3)'!$G$311"]
["pp3_bl4_11_9_name",{"$f":"'T2-B(PP3)'!$B$312","v":0},"#'T2-B(PP3)'!$B$312"]
["pp3_bl4_11_9_rate_in",{"$f":"'T2-B(PP3)'!$E$312","v":0},"#'T2-B(PP3)'!$E$312"]
["pp3_bl4_11_9_rate_out",{"$f":"'T2-B(PP3)'!$H$312","v":0},"#'T2-B(PP3)'!$H$312"]
["pp3_bl4_11_9_total",{"$f":"'T2-B(PP3)'!$J$312","v":0},"#'T2-B(PP3)'!$J$312"]
["pp3_bl4_11_9_total_in",{"$f":"'T2-B(PP3)'!$F$312","v":0},"#'T2-B(PP3)'!$F$312"]
["pp3_bl4_11_9_total_out",{"$f":"'T2-B(PP3)'!$I$312","v":0},"#'T2-B(PP3)'!$I$312"]
["pp3_bl4_11_9_unit",{"$f":"'T2-B(PP3)'!$C$312","v":0},"#'T2-B(PP3)'!$C$312"]
["pp3_bl4_11_9_unit_in",{"$f":"'T2-B(PP3)'!$D$312","v":0},"#'T2-B(PP3)'!$D$312"]
["pp3_bl4_11_9_units_out",{"$f":"'T2-B(PP3)'!$G$312","v":0},"#'T2-B(PP3)'!$G$312"]
["pp3_bl4_11_total",{"$f":"'T2-B(PP3)'!$J$303","v":0},"#'T2-B(PP3)'!$J$303"]
["pp3_bl4_11_total_in",{"$f":"'T2-B(PP3)'!$F$303","v":0},"#'T2-B(PP3)'!$F$303"]
["pp3_bl4_11_total_out",{"$f":"'T2-B(PP3)'!$I$303","v":0},"#'T2-B(PP3)'!$I$303"]
["pp3_bl4_12_1_name",{"$f":"'T2-B(PP3)'!$B$325","v":0},"#'T2-B(PP3)'!$B$325"]
["pp3_bl4_12_1_rate_in",{"$f":"'T2-B(PP3)'!$E$325","v":0},"#'T2-B(PP3)'!$E$325"]
["pp3_bl4_12_1_rate_out",{"$f":"'T2-B(PP3)'!$H$325","v":0},"#'T2-B(PP3)'!$H$325"]
["pp3_bl4_12_1_total",{"$f":"'T2-B(PP3)'!$J$325","v":0},"#'T2-B(PP3)'!$J$325"]
["pp3_bl4_12_1_total_in",{"$f":"'T2-B(PP3)'!$F$325","v":0},"#'T2-B(PP3)'!$F$325"]
["pp3_bl4_12_1_total_out",{"$f":"'T2-B(PP3)'!$I$325","v":0},"#'T2-B(PP3)'!$I$325"]
["pp3_bl4_12_1_unit",{"$f":"'T2-B(PP3)'!$C$325","v":0},"#'T2-B(PP3)'!$C$325"]
["pp3_bl4_12_1_unit_in",{"$f":"'T2-B(PP3)'!$D$325","v":0},"#'T2-B(PP3)'!$D$325"]
["pp3_bl4_12_1_units_out",{"$f":"'T2-B(PP3)'!$G$325","v":0},"#'T2-B(PP3)'!$G$325"]
["pp3_bl4_12_10_name",{"$f":"'T2-B(PP3)'!$B$334","v":0},"#'T2-B(PP3)'!$B$334"]
["pp3_bl4_12_10_rate_in",{"$f":"'T2-B(PP3)'!$E$334","v":0},"#'T2-B(PP3)'!$E$334"]
["pp3_bl4_12_10_rate_out",{"$f":"'T2-B(PP3)'!$H$334","v":0},"#'T2-B(PP3)'!$H$334"]
["pp3_bl4_12_10_total",{"$f":"'T2-B(PP3)'!$J$334","v":0},"#'T2-B(PP3)'!$J$334"]
["pp3_bl4_12_10_total_in",{"$f":"'T2-B(PP3)'!$F$334","v":0},"#'T2-B(PP3)'!$F$334"]
["pp3_bl4_12_10_total_out",{"$f":"'T2-B(PP3)'!$I$334","v":0},"#'T2-B(PP3)'!$I$334"]
["pp3_bl4_12_10_unit",{"$f":"'T2-B(PP3)'!$C$334","v":0},"#'T2-B(PP3)'!$C$334"]
["pp3_bl4_12_10_unit_in",{"$f":"'T2-B(PP3)'!$D$334","v":0},"#'T2-B(PP3)'!$D$334"]
["pp3_bl4_12_10_units_out",{"$f":"'T2-B(PP3)'!$G$334","v":0},"#'T2-B(PP3)'!$G$334"]
["pp3_bl4_12_11_name",{"$f":"'T2-B(PP3)'!$B$335","v":0},"#'T2-B(PP3)'!$B$335"]
["pp3_bl4_12_11_rate_in",{"$f":"'T2-B(PP3)'!$E$335","v":0},"#'T2-B(PP3)'!$E$335"]
["pp3_bl4_12_11_rate_out",{"$f":"'T2-B(PP3)'!$H$335","v":0},"#'T2-B(PP3)'!$H$335"]
["pp3_bl4_12_11_total",{"$f":"'T2-B(PP3)'!$J$335","v":0},"#'T2-B(PP3)'!$J$335"]
["pp3_bl4_12_11_total_in",{"$f":"'T2-B(PP3)'!$F$335","v":0},"#'T2-B(PP3)'!$F$335"]
["pp3_bl4_12_11_total_out",{"$f":"'T2-B(PP3)'!$I$335","v":0},"#'T2-B(PP3)'!$I$335"]
["pp3_bl4_12_11_unit",{"$f":"'T2-B(PP3)'!$C$335","v":0},"#'T2-B(PP3)'!$C$335"]
["pp3_bl4_12_11_unit_in",{"$f":"'T2-B(PP3)'!$D$335","v":0},"#'T2-B(PP3)'!$D$335"]
["pp3_bl4_12_11_units_out",{"$f":"'T2-B(PP3)'!$G$335","v":0},"#'T2-B(PP3)'!$G$335"]
["pp3_bl4_12_12_name",{"$f":"'T2-B(PP3)'!$B$336","v":0},"#'T2-B(PP3)'!$B$336"]
["pp3_bl4_12_12_rate_in",{"$f":"'T2-B(PP3)'!$E$336","v":0},"#'T2-B(PP3)'!$E$336"]
["pp3_bl4_12_12_rate_out",{"$f":"'T2-B(PP3)'!$H$336","v":0},"#'T2-B(PP3)'!$H$336"]
["pp3_bl4_12_12_total",{"$f":"'T2-B(PP3)'!$J$336","v":0},"#'T2-B(PP3)'!$J$336"]
["pp3_bl4_12_12_total_in",{"$f":"'T2-B(PP3)'!$F$336","v":0},"#'T2-B(PP3)'!$F$336"]
["pp3_bl4_12_12_total_out",{"$f":"'T2-B(PP3)'!$I$336","v":0},"#'T2-B(PP3)'!$I$336"]
["pp3_bl4_12_12_unit",{"$f":"'T2-B(PP3)'!$C$336","v":0},"#'T2-B(PP3)'!$C$336"]
["pp3_bl4_12_12_unit_in",{"$f":"'T2-B(PP3)'!$D$336","v":0},"#'T2-B(PP3)'!$D$336"]
["pp3_bl4_12_12_units_out",{"$f":"'T2-B(PP3)'!$G$336","v":0},"#'T2-B(PP3)'!$G$336"]
["pp3_bl4_12_13_name",{"$f":"'T2-B(PP3)'!$B$337","v":0},"#'T2-B(PP3)'!$B$337"]
["pp3_bl4_12_13_rate_in",{"$f":"'T2-B(PP3)'!$E$337","v":0},"#'T2-B(PP3)'!$E$337"]
["pp3_bl4_12_13_rate_out",{"$f":"'T2-B(PP3)'!$H$337","v":0},"#'T2-B(PP3)'!$H$337"]
["pp3_bl4_12_13_total",{"$f":"'T2-B(PP3)'!$J$337","v":0},"#'T2-B(PP3)'!$J$337"]
["pp3_bl4_12_13_total_in",{"$f":"'T2-B(PP3)'!$F$337","v":0},"#'T2-B(PP3)'!$F$337"]
["pp3_bl4_12_13_total_out",{"$f":"'T2-B(PP3)'!$I$337","v":0},"#'T2-B(PP3)'!$I$337"]
["pp3_bl4_12_13_unit",{"$f":"'T2-B(PP3)'!$C$337","v":0},"#'T2-B(PP3)'!$C$337"]
["pp3_bl4_12_13_unit_in",{"$f":"'T2-B(PP3)'!$D$337","v":0},"#'T2-B(PP3)'!$D$337"]
["pp3_bl4_12_13_units_out",{"$f":"'T2-B(PP3)'!$G$337","v":0},"#'T2-B(PP3)'!$G$337"]
["pp3_bl4_12_14_name",{"$f":"'T2-B(PP3)'!$B$338","v":0},"#'T2-B(PP3)'!$B$338"]
["pp3_bl4_12_14_rate_in",{"$f":"'T2-B(PP3)'!$E$338","v":0},"#'T2-B(PP3)'!$E$338"]
["pp3_bl4_12_14_rate_out",{"$f":"'T2-B(PP3)'!$H$338","v":0},"#'T2-B(PP3)'!$H$338"]
["pp3_bl4_12_14_total",{"$f":"'T2-B(PP3)'!$J$338","v":0},"#'T2-B(PP3)'!$J$338"]
["pp3_bl4_12_14_total_in",{"$f":"'T2-B(PP3)'!$F$338","v":0},"#'T2-B(PP3)'!$F$338"]
["pp3_bl4_12_14_total_out",{"$f":"'T2-B(PP3)'!$I$338","v":0},"#'T2-B(PP3)'!$I$338"]
["pp3_bl4_12_14_unit",{"$f":"'T2-B(PP3)'!$C$338","v":0},"#'T2-B(PP3)'!$C$338"]
["pp3_bl4_12_14_unit_in",{"$f":"'T2-B(PP3)'!$D$338","v":0},"#'T2-B(PP3)'!$D$338"]
["pp3_bl4_12_14_units_out",{"$f":"'T2-B(PP3)'!$G$338","v":0},"#'T2-B(PP3)'!$G$338"]
["pp3_bl4_12_15_name",{"$f":"'T2-B(PP3)'!$B$339","v":0},"#'T2-B(PP3)'!$B$339"]
["pp3_bl4_12_15_rate_in",{"$f":"'T2-B(PP3)'!$E$339","v":0},"#'T2-B(PP3)'!$E$339"]
["pp3_bl4_12_15_rate_out",{"$f":"'T2-B(PP3)'!$H$339","v":0},"#'T2-B(PP3)'!$H$339"]
["pp3_bl4_12_15_total",{"$f":"'T2-B(PP3)'!$J$339","v":0},"#'T2-B(PP3)'!$J$339"]
["pp3_bl4_12_15_total_in",{"$f":"'T2-B(PP3)'!$F$339","v":0},"#'T2-B(PP3)'!$F$339"]
["pp3_bl4_12_15_total_out",{"$f":"'T2-B(PP3)'!$I$339","v":0},"#'T2-B(PP3)'!$I$339"]
["pp3_bl4_12_15_unit",{"$f":"'T2-B(PP3)'!$C$339","v":0},"#'T2-B(PP3)'!$C$339"]
["pp3_bl4_12_15_unit_in",{"$f":"'T2-B(PP3)'!$D$339","v":0},"#'T2-B(PP3)'!$D$339"]
["pp3_bl4_12_15_units_out",{"$f":"'T2-B(PP3)'!$G$339","v":0},"#'T2-B(PP3)'!$G$339"]
["pp3_bl4_12_16_name",{"$f":"'T2-B(PP3)'!$B$340","v":0},"#'T2-B(PP3)'!$B$340"]
["pp3_bl4_12_16_rate_in",{"$f":"'T2-B(PP3)'!$E$340","v":0},"#'T2-B(PP3)'!$E$340"]
["pp3_bl4_12_16_rate_out",{"$f":"'T2-B(PP3)'!$H$340","v":0},"#'T2-B(PP3)'!$H$340"]
["pp3_bl4_12_16_total",{"$f":"'T2-B(PP3)'!$J$340","v":0},"#'T2-B(PP3)'!$J$340"]
["pp3_bl4_12_16_total_in",{"$f":"'T2-B(PP3)'!$F$340","v":0},"#'T2-B(PP3)'!$F$340"]
["pp3_bl4_12_16_total_out",{"$f":"'T2-B(PP3)'!$I$340","v":0},"#'T2-B(PP3)'!$I$340"]
["pp3_bl4_12_16_unit",{"$f":"'T2-B(PP3)'!$C$340","v":0},"#'T2-B(PP3)'!$C$340"]
["pp3_bl4_12_16_unit_in",{"$f":"'T2-B(PP3)'!$D$340","v":0},"#'T2-B(PP3)'!$D$340"]
["pp3_bl4_12_16_units_out",{"$f":"'T2-B(PP3)'!$G$340","v":0},"#'T2-B(PP3)'!$G$340"]
["pp3_bl4_12_17_name",{"$f":"'T2-B(PP3)'!$B$341","v":0},"#'T2-B(PP3)'!$B$341"]
["pp3_bl4_12_17_rate_in",{"$f":"'T2-B(PP3)'!$E$341","v":0},"#'T2-B(PP3)'!$E$341"]
["pp3_bl4_12_17_rate_out",{"$f":"'T2-B(PP3)'!$H$341","v":0},"#'T2-B(PP3)'!$H$341"]
["pp3_bl4_12_17_total",{"$f":"'T2-B(PP3)'!$J$341","v":0},"#'T2-B(PP3)'!$J$341"]
["pp3_bl4_12_17_total_in",{"$f":"'T2-B(PP3)'!$F$341","v":0},"#'T2-B(PP3)'!$F$341"]
["pp3_bl4_12_17_total_out",{"$f":"'T2-B(PP3)'!$I$341","v":0},"#'T2-B(PP3)'!$I$341"]
["pp3_bl4_12_17_unit",{"$f":"'T2-B(PP3)'!$C$341","v":0},"#'T2-B(PP3)'!$C$341"]
["pp3_bl4_12_17_unit_in",{"$f":"'T2-B(PP3)'!$D$341","v":0},"#'T2-B(PP3)'!$D$341"]
["pp3_bl4_12_17_units_out",{"$f":"'T2-B(PP3)'!$G$341","v":0},"#'T2-B(PP3)'!$G$341"]
["pp3_bl4_12_18_name",{"$f":"'T2-B(PP3)'!$B$342","v":0},"#'T2-B(PP3)'!$B$342"]
["pp3_bl4_12_18_rate_in",{"$f":"'T2-B(PP3)'!$E$342","v":0},"#'T2-B(PP3)'!$E$342"]
["pp3_bl4_12_18_rate_out",{"$f":"'T2-B(PP3)'!$H$342","v":0},"#'T2-B(PP3)'!$H$342"]
["pp3_bl4_12_18_total",{"$f":"'T2-B(PP3)'!$J$342","v":0},"#'T2-B(PP3)'!$J$342"]
["pp3_bl4_12_18_total_in",{"$f":"'T2-B(PP3)'!$F$342","v":0},"#'T2-B(PP3)'!$F$342"]
["pp3_bl4_12_18_total_out",{"$f":"'T2-B(PP3)'!$I$342","v":0},"#'T2-B(PP3)'!$I$342"]
["pp3_bl4_12_18_unit",{"$f":"'T2-B(PP3)'!$C$342","v":0},"#'T2-B(PP3)'!$C$342"]
["pp3_bl4_12_18_unit_in",{"$f":"'T2-B(PP3)'!$D$342","v":0},"#'T2-B(PP3)'!$D$342"]
["pp3_bl4_12_18_units_out",{"$f":"'T2-B(PP3)'!$G$342","v":0},"#'T2-B(PP3)'!$G$342"]
["pp3_bl4_12_19_name",{"$f":"'T2-B(PP3)'!$B$343","v":0},"#'T2-B(PP3)'!$B$343"]
["pp3_bl4_12_19_rate_in",{"$f":"'T2-B(PP3)'!$E$343","v":0},"#'T2-B(PP3)'!$E$343"]
["pp3_bl4_12_19_rate_out",{"$f":"'T2-B(PP3)'!$H$343","v":0},"#'T2-B(PP3)'!$H$343"]
["pp3_bl4_12_19_total",{"$f":"'T2-B(PP3)'!$J$343","v":0},"#'T2-B(PP3)'!$J$343"]
["pp3_bl4_12_19_total_in",{"$f":"'T2-B(PP3)'!$F$343","v":0},"#'T2-B(PP3)'!$F$343"]
["pp3_bl4_12_19_total_out",{"$f":"'T2-B(PP3)'!$I$343","v":0},"#'T2-B(PP3)'!$I$343"]
["pp3_bl4_12_19_unit",{"$f":"'T2-B(PP3)'!$C$343","v":0},"#'T2-B(PP3)'!$C$343"]
["pp3_bl4_12_19_unit_in",{"$f":"'T2-B(PP3)'!$D$343","v":0},"#'T2-B(PP3)'!$D$343"]
["pp3_bl4_12_19_units_out",{"$f":"'T2-B(PP3)'!$G$343","v":0},"#'T2-B(PP3)'!$G$343"]
["pp3_bl4_12_2_name",{"$f":"'T2-B(PP3)'!$B$326","v":0},"#'T2-B(PP3)'!$B$326"]
["pp3_bl4_12_2_rate_in",{"$f":"'T2-B(PP3)'!$E$326","v":0},"#'T2-B(PP3)'!$E$326"]
["pp3_bl4_12_2_rate_out",{"$f":"'T2-B(PP3)'!$H$326","v":0},"#'T2-B(PP3)'!$H$326"]
["pp3_bl4_12_2_total",{"$f":"'T2-B(PP3)'!$J$326","v":0},"#'T2-B(PP3)'!$J$326"]
["pp3_bl4_12_2_total_in",{"$f":"'T2-B(PP3)'!$F$326","v":0},"#'T2-B(PP3)'!$F$326"]
["pp3_bl4_12_2_total_out",{"$f":"'T2-B(PP3)'!$I$326","v":0},"#'T2-B(PP3)'!$I$326"]
["pp3_bl4_12_2_unit",{"$f":"'T2-B(PP3)'!$C$326","v":0},"#'T2-B(PP3)'!$C$326"]
["pp3_bl4_12_2_unit_in",{"$f":"'T2-B(PP3)'!$D$326","v":0},"#'T2-B(PP3)'!$D$326"]
["pp3_bl4_12_2_units_out",{"$f":"'T2-B(PP3)'!$G$326","v":0},"#'T2-B(PP3)'!$G$326"]
["pp3_bl4_12_20_name",{"$f":"'T2-B(PP3)'!$B$344","v":0},"#'T2-B(PP3)'!$B$344"]
["pp3_bl4_12_20_rate_in",{"$f":"'T2-B(PP3)'!$E$344","v":0},"#'T2-B(PP3)'!$E$344"]
["pp3_bl4_12_20_rate_out",{"$f":"'T2-B(PP3)'!$H$344","v":0},"#'T2-B(PP3)'!$H$344"]
["pp3_bl4_12_20_total",{"$f":"'T2-B(PP3)'!$J$344","v":0},"#'T2-B(PP3)'!$J$344"]
["pp3_bl4_12_20_total_in",{"$f":"'T2-B(PP3)'!$F$344","v":0},"#'T2-B(PP3)'!$F$344"]
["pp3_bl4_12_20_total_out",{"$f":"'T2-B(PP3)'!$I$344","v":0},"#'T2-B(PP3)'!$I$344"]
["pp3_bl4_12_20_unit",{"$f":"'T2-B(PP3)'!$C$344","v":0},"#'T2-B(PP3)'!$C$344"]
["pp3_bl4_12_20_unit_in",{"$f":"'T2-B(PP3)'!$D$344","v":0},"#'T2-B(PP3)'!$D$344"]
["pp3_bl4_12_20_units_out",{"$f":"'T2-B(PP3)'!$G$344","v":0},"#'T2-B(PP3)'!$G$344"]
["pp3_bl4_12_3_name",{"$f":"'T2-B(PP3)'!$B$327","v":0},"#'T2-B(PP3)'!$B$327"]
["pp3_bl4_12_3_rate_in",{"$f":"'T2-B(PP3)'!$E$327","v":0},"#'T2-B(PP3)'!$E$327"]
["pp3_bl4_12_3_rate_out",{"$f":"'T2-B(PP3)'!$H$327","v":0},"#'T2-B(PP3)'!$H$327"]
["pp3_bl4_12_3_total",{"$f":"'T2-B(PP3)'!$J$327","v":0},"#'T2-B(PP3)'!$J$327"]
["pp3_bl4_12_3_total_in",{"$f":"'T2-B(PP3)'!$F$327","v":0},"#'T2-B(PP3)'!$F$327"]
["pp3_bl4_12_3_total_out",{"$f":"'T2-B(PP3)'!$I$327","v":0},"#'T2-B(PP3)'!$I$327"]
["pp3_bl4_12_3_unit",{"$f":"'T2-B(PP3)'!$C$327","v":0},"#'T2-B(PP3)'!$C$327"]
["pp3_bl4_12_3_unit_in",{"$f":"'T2-B(PP3)'!$D$327","v":0},"#'T2-B(PP3)'!$D$327"]
["pp3_bl4_12_3_units_out",{"$f":"'T2-B(PP3)'!$G$327","v":0},"#'T2-B(PP3)'!$G$327"]
["pp3_bl4_12_4_name",{"$f":"'T2-B(PP3)'!$B$328","v":0},"#'T2-B(PP3)'!$B$328"]
["pp3_bl4_12_4_rate_in",{"$f":"'T2-B(PP3)'!$E$328","v":0},"#'T2-B(PP3)'!$E$328"]
["pp3_bl4_12_4_rate_out",{"$f":"'T2-B(PP3)'!$H$328","v":0},"#'T2-B(PP3)'!$H$328"]
["pp3_bl4_12_4_total",{"$f":"'T2-B(PP3)'!$J$328","v":0},"#'T2-B(PP3)'!$J$328"]
["pp3_bl4_12_4_total_in",{"$f":"'T2-B(PP3)'!$F$328","v":0},"#'T2-B(PP3)'!$F$328"]
["pp3_bl4_12_4_total_out",{"$f":"'T2-B(PP3)'!$I$328","v":0},"#'T2-B(PP3)'!$I$328"]
["pp3_bl4_12_4_unit",{"$f":"'T2-B(PP3)'!$C$328","v":0},"#'T2-B(PP3)'!$C$328"]
["pp3_bl4_12_4_unit_in",{"$f":"'T2-B(PP3)'!$D$328","v":0},"#'T2-B(PP3)'!$D$328"]
["pp3_bl4_12_4_units_out",{"$f":"'T2-B(PP3)'!$G$328","v":0},"#'T2-B(PP3)'!$G$328"]
["pp3_bl4_12_5_name",{"$f":"'T2-B(PP3)'!$B$329","v":0},"#'T2-B(PP3)'!$B$329"]
["pp3_bl4_12_5_rate_in",{"$f":"'T2-B(PP3)'!$E$329","v":0},"#'T2-B(PP3)'!$E$329"]
["pp3_bl4_12_5_rate_out",{"$f":"'T2-B(PP3)'!$H$329","v":0},"#'T2-B(PP3)'!$H$329"]
["pp3_bl4_12_5_total",{"$f":"'T2-B(PP3)'!$J$329","v":0},"#'T2-B(PP3)'!$J$329"]
["pp3_bl4_12_5_total_in",{"$f":"'T2-B(PP3)'!$F$329","v":0},"#'T2-B(PP3)'!$F$329"]
["pp3_bl4_12_5_total_out",{"$f":"'T2-B(PP3)'!$I$329","v":0},"#'T2-B(PP3)'!$I$329"]
["pp3_bl4_12_5_unit",{"$f":"'T2-B(PP3)'!$C$329","v":0},"#'T2-B(PP3)'!$C$329"]
["pp3_bl4_12_5_unit_in",{"$f":"'T2-B(PP3)'!$D$329","v":0},"#'T2-B(PP3)'!$D$329"]
["pp3_bl4_12_5_units_out",{"$f":"'T2-B(PP3)'!$G$329","v":0},"#'T2-B(PP3)'!$G$329"]
["pp3_bl4_12_6_name",{"$f":"'T2-B(PP3)'!$B$330","v":0},"#'T2-B(PP3)'!$B$330"]
["pp3_bl4_12_6_rate_in",{"$f":"'T2-B(PP3)'!$E$330","v":0},"#'T2-B(PP3)'!$E$330"]
["pp3_bl4_12_6_rate_out",{"$f":"'T2-B(PP3)'!$H$330","v":0},"#'T2-B(PP3)'!$H$330"]
["pp3_bl4_12_6_total",{"$f":"'T2-B(PP3)'!$J$330","v":0},"#'T2-B(PP3)'!$J$330"]
["pp3_bl4_12_6_total_in",{"$f":"'T2-B(PP3)'!$F$330","v":0},"#'T2-B(PP3)'!$F$330"]
["pp3_bl4_12_6_total_out",{"$f":"'T2-B(PP3)'!$I$330","v":0},"#'T2-B(PP3)'!$I$330"]
["pp3_bl4_12_6_unit",{"$f":"'T2-B(PP3)'!$C$330","v":0},"#'T2-B(PP3)'!$C$330"]
["pp3_bl4_12_6_unit_in",{"$f":"'T2-B(PP3)'!$D$330","v":0},"#'T2-B(PP3)'!$D$330"]
["pp3_bl4_12_6_units_out",{"$f":"'T2-B(PP3)'!$G$330","v":0},"#'T2-B(PP3)'!$G$330"]
["pp3_bl4_12_7_name",{"$f":"'T2-B(PP3)'!$B$331","v":0},"#'T2-B(PP3)'!$B$331"]
["pp3_bl4_12_7_rate_in",{"$f":"'T2-B(PP3)'!$E$331","v":0},"#'T2-B(PP3)'!$E$331"]
["pp3_bl4_12_7_rate_out",{"$f":"'T2-B(PP3)'!$H$331","v":0},"#'T2-B(PP3)'!$H$331"]
["pp3_bl4_12_7_total",{"$f":"'T2-B(PP3)'!$J$331","v":0},"#'T2-B(PP3)'!$J$331"]
["pp3_bl4_12_7_total_in",{"$f":"'T2-B(PP3)'!$F$331","v":0},"#'T2-B(PP3)'!$F$331"]
["pp3_bl4_12_7_total_out",{"$f":"'T2-B(PP3)'!$I$331","v":0},"#'T2-B(PP3)'!$I$331"]
["pp3_bl4_12_7_unit",{"$f":"'T2-B(PP3)'!$C$331","v":0},"#'T2-B(PP3)'!$C$331"]
["pp3_bl4_12_7_unit_in",{"$f":"'T2-B(PP3)'!$D$331","v":0},"#'T2-B(PP3)'!$D$331"]
["pp3_bl4_12_7_units_out",{"$f":"'T2-B(PP3)'!$G$331","v":0},"#'T2-B(PP3)'!$G$331"]
["pp3_bl4_12_8_name",{"$f":"'T2-B(PP3)'!$B$332","v":0},"#'T2-B(PP3)'!$B$332"]
["pp3_bl4_12_8_rate_in",{"$f":"'T2-B(PP3)'!$E$332","v":0},"#'T2-B(PP3)'!$E$332"]
["pp3_bl4_12_8_rate_out",{"$f":"'T2-B(PP3)'!$H$332","v":0},"#'T2-B(PP3)'!$H$332"]
["pp3_bl4_12_8_total",{"$f":"'T2-B(PP3)'!$J$332","v":0},"#'T2-B(PP3)'!$J$332"]
["pp3_bl4_12_8_total_in",{"$f":"'T2-B(PP3)'!$F$332","v":0},"#'T2-B(PP3)'!$F$332"]
["pp3_bl4_12_8_total_out",{"$f":"'T2-B(PP3)'!$I$332","v":0},"#'T2-B(PP3)'!$I$332"]
["pp3_bl4_12_8_unit",{"$f":"'T2-B(PP3)'!$C$332","v":0},"#'T2-B(PP3)'!$C$332"]
["pp3_bl4_12_8_unit_in",{"$f":"'T2-B(PP3)'!$D$332","v":0},"#'T2-B(PP3)'!$D$332"]
["pp3_bl4_12_8_units_out",{"$f":"'T2-B(PP3)'!$G$332","v":0},"#'T2-B(PP3)'!$G$332"]
["pp3_bl4_12_9_name",{"$f":"'T2-B(PP3)'!$B$333","v":0},"#'T2-B(PP3)'!$B$333"]
["pp3_bl4_12_9_rate_in",{"$f":"'T2-B(PP3)'!$E$333","v":0},"#'T2-B(PP3)'!$E$333"]
["pp3_bl4_12_9_rate_out",{"$f":"'T2-B(PP3)'!$H$333","v":0},"#'T2-B(PP3)'!$H$333"]
["pp3_bl4_12_9_total",{"$f":"'T2-B(PP3)'!$J$333","v":0},"#'T2-B(PP3)'!$J$333"]
["pp3_bl4_12_9_total_in",{"$f":"'T2-B(PP3)'!$F$333","v":0},"#'T2-B(PP3)'!$F$333"]
["pp3_bl4_12_9_total_out",{"$f":"'T2-B(PP3)'!$I$333","v":0},"#'T2-B(PP3)'!$I$333"]
["pp3_bl4_12_9_unit",{"$f":"'T2-B(PP3)'!$C$333","v":0},"#'T2-B(PP3)'!$C$333"]
["pp3_bl4_12_9_unit_in",{"$f":"'T2-B(PP3)'!$D$333","v":0},"#'T2-B(PP3)'!$D$333"]
["pp3_bl4_12_9_units_out",{"$f":"'T2-B(PP3)'!$G$333","v":0},"#'T2-B(PP3)'!$G$333"]
["pp3_bl4_12_total",{"$f":"'T2-B(PP3)'!$J$324","v":0},"#'T2-B(PP3)'!$J$324"]
["pp3_bl4_12_total_in",{"$f":"'T2-B(PP3)'!$F$324","v":0},"#'T2-B(PP3)'!$F$324"]
["pp3_bl4_12_total_out",{"$f":"'T2-B(PP3)'!$I$324","v":0},"#'T2-B(PP3)'!$I$324"]
["pp3_bl4_2_1_name",{"$f":"'T2-B(PP3)'!$B$115","v":0},"#'T2-B(PP3)'!$B$115"]
["pp3_bl4_2_1_rate_in",{"$f":"'T2-B(PP3)'!$E$115","v":0},"#'T2-B(PP3)'!$E$115"]
["pp3_bl4_2_1_rate_out",{"$f":"'T2-B(PP3)'!$H$115","v":0},"#'T2-B(PP3)'!$H$115"]
["pp3_bl4_2_1_total",{"$f":"'T2-B(PP3)'!$J$115","v":0},"#'T2-B(PP3)'!$J$115"]
["pp3_bl4_2_1_total_in",{"$f":"'T2-B(PP3)'!$F$115","v":0},"#'T2-B(PP3)'!$F$115"]
["pp3_bl4_2_1_total_out",{"$f":"'T2-B(PP3)'!$I$115","v":0},"#'T2-B(PP3)'!$I$115"]
["pp3_bl4_2_1_unit",{"$f":"'T2-B(PP3)'!$C$115","v":0},"#'T2-B(PP3)'!$C$115"]
["pp3_bl4_2_1_unit_in",{"$f":"'T2-B(PP3)'!$D$115","v":0},"#'T2-B(PP3)'!$D$115"]
["pp3_bl4_2_1_units_out",{"$f":"'T2-B(PP3)'!$G$115","v":0},"#'T2-B(PP3)'!$G$115"]
["pp3_bl4_2_10_name",{"$f":"'T2-B(PP3)'!$B$124","v":0},"#'T2-B(PP3)'!$B$124"]
["pp3_bl4_2_10_rate_in",{"$f":"'T2-B(PP3)'!$E$124","v":0},"#'T2-B(PP3)'!$E$124"]
["pp3_bl4_2_10_rate_out",{"$f":"'T2-B(PP3)'!$H$124","v":0},"#'T2-B(PP3)'!$H$124"]
["pp3_bl4_2_10_total",{"$f":"'T2-B(PP3)'!$J$124","v":0},"#'T2-B(PP3)'!$J$124"]
["pp3_bl4_2_10_total_in",{"$f":"'T2-B(PP3)'!$F$124","v":0},"#'T2-B(PP3)'!$F$124"]
["pp3_bl4_2_10_total_out",{"$f":"'T2-B(PP3)'!$I$124","v":0},"#'T2-B(PP3)'!$I$124"]
["pp3_bl4_2_10_unit",{"$f":"'T2-B(PP3)'!$C$124","v":0},"#'T2-B(PP3)'!$C$124"]
["pp3_bl4_2_10_unit_in",{"$f":"'T2-B(PP3)'!$D$124","v":0},"#'T2-B(PP3)'!$D$124"]
["pp3_bl4_2_10_units_out",{"$f":"'T2-B(PP3)'!$G$124","v":0},"#'T2-B(PP3)'!$G$124"]
["pp3_bl4_2_11_name",{"$f":"'T2-B(PP3)'!$B$125","v":0},"#'T2-B(PP3)'!$B$125"]
["pp3_bl4_2_11_rate_in",{"$f":"'T2-B(PP3)'!$E$125","v":0},"#'T2-B(PP3)'!$E$125"]
["pp3_bl4_2_11_rate_out",{"$f":"'T2-B(PP3)'!$H$125","v":0},"#'T2-B(PP3)'!$H$125"]
["pp3_bl4_2_11_total",{"$f":"'T2-B(PP3)'!$J$125","v":0},"#'T2-B(PP3)'!$J$125"]
["pp3_bl4_2_11_total_in",{"$f":"'T2-B(PP3)'!$F$125","v":0},"#'T2-B(PP3)'!$F$125"]
["pp3_bl4_2_11_total_out",{"$f":"'T2-B(PP3)'!$I$125","v":0},"#'T2-B(PP3)'!$I$125"]
["pp3_bl4_2_11_unit",{"$f":"'T2-B(PP3)'!$C$125","v":0},"#'T2-B(PP3)'!$C$125"]
["pp3_bl4_2_11_unit_in",{"$f":"'T2-B(PP3)'!$D$125","v":0},"#'T2-B(PP3)'!$D$125"]
["pp3_bl4_2_11_units_out",{"$f":"'T2-B(PP3)'!$G$125","v":0},"#'T2-B(PP3)'!$G$125"]
["pp3_bl4_2_12_name",{"$f":"'T2-B(PP3)'!$B$126","v":0},"#'T2-B(PP3)'!$B$126"]
["pp3_bl4_2_12_rate_in",{"$f":"'T2-B(PP3)'!$E$126","v":0},"#'T2-B(PP3)'!$E$126"]
["pp3_bl4_2_12_rate_out",{"$f":"'T2-B(PP3)'!$H$126","v":0},"#'T2-B(PP3)'!$H$126"]
["pp3_bl4_2_12_total",{"$f":"'T2-B(PP3)'!$J$126","v":0},"#'T2-B(PP3)'!$J$126"]
["pp3_bl4_2_12_total_in",{"$f":"'T2-B(PP3)'!$F$126","v":0},"#'T2-B(PP3)'!$F$126"]
["pp3_bl4_2_12_total_out",{"$f":"'T2-B(PP3)'!$I$126","v":0},"#'T2-B(PP3)'!$I$126"]
["pp3_bl4_2_12_unit",{"$f":"'T2-B(PP3)'!$C$126","v":0},"#'T2-B(PP3)'!$C$126"]
["pp3_bl4_2_12_unit_in",{"$f":"'T2-B(PP3)'!$D$126","v":0},"#'T2-B(PP3)'!$D$126"]
["pp3_bl4_2_12_units_out",{"$f":"'T2-B(PP3)'!$G$126","v":0},"#'T2-B(PP3)'!$G$126"]
["pp3_bl4_2_13_name",{"$f":"'T2-B(PP3)'!$B$127","v":0},"#'T2-B(PP3)'!$B$127"]
["pp3_bl4_2_13_rate_in",{"$f":"'T2-B(PP3)'!$E$127","v":0},"#'T2-B(PP3)'!$E$127"]
["pp3_bl4_2_13_rate_out",{"$f":"'T2-B(PP3)'!$H$127","v":0},"#'T2-B(PP3)'!$H$127"]
["pp3_bl4_2_13_total",{"$f":"'T2-B(PP3)'!$J$127","v":0},"#'T2-B(PP3)'!$J$127"]
["pp3_bl4_2_13_total_in",{"$f":"'T2-B(PP3)'!$F$127","v":0},"#'T2-B(PP3)'!$F$127"]
["pp3_bl4_2_13_total_out",{"$f":"'T2-B(PP3)'!$I$127","v":0},"#'T2-B(PP3)'!$I$127"]
["pp3_bl4_2_13_unit",{"$f":"'T2-B(PP3)'!$C$127","v":0},"#'T2-B(PP3)'!$C$127"]
["pp3_bl4_2_13_unit_in",{"$f":"'T2-B(PP3)'!$D$127","v":0},"#'T2-B(PP3)'!$D$127"]
["pp3_bl4_2_13_units_out",{"$f":"'T2-B(PP3)'!$G$127","v":0},"#'T2-B(PP3)'!$G$127"]
["pp3_bl4_2_14_name",{"$f":"'T2-B(PP3)'!$B$128","v":0},"#'T2-B(PP3)'!$B$128"]
["pp3_bl4_2_14_rate_in",{"$f":"'T2-B(PP3)'!$E$128","v":0},"#'T2-B(PP3)'!$E$128"]
["pp3_bl4_2_14_rate_out",{"$f":"'T2-B(PP3)'!$H$128","v":0},"#'T2-B(PP3)'!$H$128"]
["pp3_bl4_2_14_total",{"$f":"'T2-B(PP3)'!$J$128","v":0},"#'T2-B(PP3)'!$J$128"]
["pp3_bl4_2_14_total_in",{"$f":"'T2-B(PP3)'!$F$128","v":0},"#'T2-B(PP3)'!$F$128"]
["pp3_bl4_2_14_total_out",{"$f":"'T2-B(PP3)'!$I$128","v":0},"#'T2-B(PP3)'!$I$128"]
["pp3_bl4_2_14_unit",{"$f":"'T2-B(PP3)'!$C$128","v":0},"#'T2-B(PP3)'!$C$128"]
["pp3_bl4_2_14_unit_in",{"$f":"'T2-B(PP3)'!$D$128","v":0},"#'T2-B(PP3)'!$D$128"]
["pp3_bl4_2_14_units_out",{"$f":"'T2-B(PP3)'!$G$128","v":0},"#'T2-B(PP3)'!$G$128"]
["pp3_bl4_2_15_name",{"$f":"'T2-B(PP3)'!$B$129","v":0},"#'T2-B(PP3)'!$B$129"]
["pp3_bl4_2_15_rate_in",{"$f":"'T2-B(PP3)'!$E$129","v":0},"#'T2-B(PP3)'!$E$129"]
["pp3_bl4_2_15_rate_out",{"$f":"'T2-B(PP3)'!$H$129","v":0},"#'T2-B(PP3)'!$H$129"]
["pp3_bl4_2_15_total",{"$f":"'T2-B(PP3)'!$J$129","v":0},"#'T2-B(PP3)'!$J$129"]
["pp3_bl4_2_15_total_in",{"$f":"'T2-B(PP3)'!$F$129","v":0},"#'T2-B(PP3)'!$F$129"]
["pp3_bl4_2_15_total_out",{"$f":"'T2-B(PP3)'!$I$129","v":0},"#'T2-B(PP3)'!$I$129"]
["pp3_bl4_2_15_unit",{"$f":"'T2-B(PP3)'!$C$129","v":0},"#'T2-B(PP3)'!$C$129"]
["pp3_bl4_2_15_unit_in",{"$f":"'T2-B(PP3)'!$D$129","v":0},"#'T2-B(PP3)'!$D$129"]
["pp3_bl4_2_15_units_out",{"$f":"'T2-B(PP3)'!$G$129","v":0},"#'T2-B(PP3)'!$G$129"]
["pp3_bl4_2_16_name",{"$f":"'T2-B(PP3)'!$B$130","v":0},"#'T2-B(PP3)'!$B$130"]
["pp3_bl4_2_16_rate_in",{"$f":"'T2-B(PP3)'!$E$130","v":0},"#'T2-B(PP3)'!$E$130"]
["pp3_bl4_2_16_rate_out",{"$f":"'T2-B(PP3)'!$H$130","v":0},"#'T2-B(PP3)'!$H$130"]
["pp3_bl4_2_16_total",{"$f":"'T2-B(PP3)'!$J$130","v":0},"#'T2-B(PP3)'!$J$130"]
["pp3_bl4_2_16_total_in",{"$f":"'T2-B(PP3)'!$F$130","v":0},"#'T2-B(PP3)'!$F$130"]
["pp3_bl4_2_16_total_out",{"$f":"'T2-B(PP3)'!$I$130","v":0},"#'T2-B(PP3)'!$I$130"]
["pp3_bl4_2_16_unit",{"$f":"'T2-B(PP3)'!$C$130","v":0},"#'T2-B(PP3)'!$C$130"]
["pp3_bl4_2_16_unit_in",{"$f":"'T2-B(PP3)'!$D$130","v":0},"#'T2-B(PP3)'!$D$130"]
["pp3_bl4_2_16_units_out",{"$f":"'T2-B(PP3)'!$G$130","v":0},"#'T2-B(PP3)'!$G$130"]
["pp3_bl4_2_17_name",{"$f":"'T2-B(PP3)'!$B$131","v":0},"#'T2-B(PP3)'!$B$131"]
["pp3_bl4_2_17_rate_in",{"$f":"'T2-B(PP3)'!$E$131","v":0},"#'T2-B(PP3)'!$E$131"]
["pp3_bl4_2_17_rate_out",{"$f":"'T2-B(PP3)'!$H$131","v":0},"#'T2-B(PP3)'!$H$131"]
["pp3_bl4_2_17_total",{"$f":"'T2-B(PP3)'!$J$131","v":0},"#'T2-B(PP3)'!$J$131"]
["pp3_bl4_2_17_total_in",{"$f":"'T2-B(PP3)'!$F$131","v":0},"#'T2-B(PP3)'!$F$131"]
["pp3_bl4_2_17_total_out",{"$f":"'T2-B(PP3)'!$I$131","v":0},"#'T2-B(PP3)'!$I$131"]
["pp3_bl4_2_17_unit",{"$f":"'T2-B(PP3)'!$C$131","v":0},"#'T2-B(PP3)'!$C$131"]
["pp3_bl4_2_17_unit_in",{"$f":"'T2-B(PP3)'!$D$131","v":0},"#'T2-B(PP3)'!$D$131"]
["pp3_bl4_2_17_units_out",{"$f":"'T2-B(PP3)'!$G$131","v":0},"#'T2-B(PP3)'!$G$131"]
["pp3_bl4_2_18_name",{"$f":"'T2-B(PP3)'!$B$132","v":0},"#'T2-B(PP3)'!$B$132"]
["pp3_bl4_2_18_rate_in",{"$f":"'T2-B(PP3)'!$E$132","v":0},"#'T2-B(PP3)'!$E$132"]
["pp3_bl4_2_18_rate_out",{"$f":"'T2-B(PP3)'!$H$132","v":0},"#'T2-B(PP3)'!$H$132"]
["pp3_bl4_2_18_total",{"$f":"'T2-B(PP3)'!$J$132","v":0},"#'T2-B(PP3)'!$J$132"]
["pp3_bl4_2_18_total_in",{"$f":"'T2-B(PP3)'!$F$132","v":0},"#'T2-B(PP3)'!$F$132"]
["pp3_bl4_2_18_total_out",{"$f":"'T2-B(PP3)'!$I$132","v":0},"#'T2-B(PP3)'!$I$132"]
["pp3_bl4_2_18_unit",{"$f":"'T2-B(PP3)'!$C$132","v":0},"#'T2-B(PP3)'!$C$132"]
["pp3_bl4_2_18_unit_in",{"$f":"'T2-B(PP3)'!$D$132","v":0},"#'T2-B(PP3)'!$D$132"]
["pp3_bl4_2_18_units_out",{"$f":"'T2-B(PP3)'!$G$132","v":0},"#'T2-B(PP3)'!$G$132"]
["pp3_bl4_2_19_name",{"$f":"'T2-B(PP3)'!$B$133","v":0},"#'T2-B(PP3)'!$B$133"]
["pp3_bl4_2_19_rate_in",{"$f":"'T2-B(PP3)'!$E$133","v":0},"#'T2-B(PP3)'!$E$133"]
["pp3_bl4_2_19_rate_out",{"$f":"'T2-B(PP3)'!$H$133","v":0},"#'T2-B(PP3)'!$H$133"]
["pp3_bl4_2_19_total",{"$f":"'T2-B(PP3)'!$J$133","v":0},"#'T2-B(PP3)'!$J$133"]
["pp3_bl4_2_19_total_in",{"$f":"'T2-B(PP3)'!$F$133","v":0},"#'T2-B(PP3)'!$F$133"]
["pp3_bl4_2_19_total_out",{"$f":"'T2-B(PP3)'!$I$133","v":0},"#'T2-B(PP3)'!$I$133"]
["pp3_bl4_2_19_unit",{"$f":"'T2-B(PP3)'!$C$133","v":0},"#'T2-B(PP3)'!$C$133"]
["pp3_bl4_2_19_unit_in",{"$f":"'T2-B(PP3)'!$D$133","v":0},"#'T2-B(PP3)'!$D$133"]
["pp3_bl4_2_19_units_out",{"$f":"'T2-B(PP3)'!$G$133","v":0},"#'T2-B(PP3)'!$G$133"]
["pp3_bl4_2_2_name",{"$f":"'T2-B(PP3)'!$B$116","v":0},"#'T2-B(PP3)'!$B$116"]
["pp3_bl4_2_2_rate_in",{"$f":"'T2-B(PP3)'!$E$116","v":0},"#'T2-B(PP3)'!$E$116"]
["pp3_bl4_2_2_rate_out",{"$f":"'T2-B(PP3)'!$H$116","v":0},"#'T2-B(PP3)'!$H$116"]
["pp3_bl4_2_2_total",{"$f":"'T2-B(PP3)'!$J$116","v":0},"#'T2-B(PP3)'!$J$116"]
["pp3_bl4_2_2_total_in",{"$f":"'T2-B(PP3)'!$F$116","v":0},"#'T2-B(PP3)'!$F$116"]
["pp3_bl4_2_2_total_out",{"$f":"'T2-B(PP3)'!$I$116","v":0},"#'T2-B(PP3)'!$I$116"]
["pp3_bl4_2_2_unit",{"$f":"'T2-B(PP3)'!$C$116","v":0},"#'T2-B(PP3)'!$C$116"]
["pp3_bl4_2_2_unit_in",{"$f":"'T2-B(PP3)'!$D$116","v":0},"#'T2-B(PP3)'!$D$116"]
["pp3_bl4_2_2_units_out",{"$f":"'T2-B(PP3)'!$G$116","v":0},"#'T2-B(PP3)'!$G$116"]
["pp3_bl4_2_20_name",{"$f":"'T2-B(PP3)'!$B$134","v":0},"#'T2-B(PP3)'!$B$134"]
["pp3_bl4_2_20_rate_in",{"$f":"'T2-B(PP3)'!$E$134","v":0},"#'T2-B(PP3)'!$E$134"]
["pp3_bl4_2_20_rate_out",{"$f":"'T2-B(PP3)'!$H$134","v":0},"#'T2-B(PP3)'!$H$134"]
["pp3_bl4_2_20_total",{"$f":"'T2-B(PP3)'!$J$134","v":0},"#'T2-B(PP3)'!$J$134"]
["pp3_bl4_2_20_total_in",{"$f":"'T2-B(PP3)'!$F$134","v":0},"#'T2-B(PP3)'!$F$134"]
["pp3_bl4_2_20_total_out",{"$f":"'T2-B(PP3)'!$I$134","v":0},"#'T2-B(PP3)'!$I$134"]
["pp3_bl4_2_20_unit",{"$f":"'T2-B(PP3)'!$C$134","v":0},"#'T2-B(PP3)'!$C$134"]
["pp3_bl4_2_20_unit_in",{"$f":"'T2-B(PP3)'!$D$134","v":0},"#'T2-B(PP3)'!$D$134"]
["pp3_bl4_2_20_units_out",{"$f":"'T2-B(PP3)'!$G$134","v":0},"#'T2-B(PP3)'!$G$134"]
["pp3_bl4_2_3_name",{"$f":"'T2-B(PP3)'!$B$117","v":0},"#'T2-B(PP3)'!$B$117"]
["pp3_bl4_2_3_rate_in",{"$f":"'T2-B(PP3)'!$E$117","v":0},"#'T2-B(PP3)'!$E$117"]
["pp3_bl4_2_3_rate_out",{"$f":"'T2-B(PP3)'!$H$117","v":0},"#'T2-B(PP3)'!$H$117"]
["pp3_bl4_2_3_total",{"$f":"'T2-B(PP3)'!$J$117","v":0},"#'T2-B(PP3)'!$J$117"]
["pp3_bl4_2_3_total_in",{"$f":"'T2-B(PP3)'!$F$117","v":0},"#'T2-B(PP3)'!$F$117"]
["pp3_bl4_2_3_total_out",{"$f":"'T2-B(PP3)'!$I$117","v":0},"#'T2-B(PP3)'!$I$117"]
["pp3_bl4_2_3_unit",{"$f":"'T2-B(PP3)'!$C$117","v":0},"#'T2-B(PP3)'!$C$117"]
["pp3_bl4_2_3_unit_in",{"$f":"'T2-B(PP3)'!$D$117","v":0},"#'T2-B(PP3)'!$D$117"]
["pp3_bl4_2_3_units_out",{"$f":"'T2-B(PP3)'!$G$117","v":0},"#'T2-B(PP3)'!$G$117"]
["pp3_bl4_2_4_name",{"$f":"'T2-B(PP3)'!$B$118","v":0},"#'T2-B(PP3)'!$B$118"]
["pp3_bl4_2_4_rate_in",{"$f":"'T2-B(PP3)'!$E$118","v":0},"#'T2-B(PP3)'!$E$118"]
["pp3_bl4_2_4_rate_out",{"$f":"'T2-B(PP3)'!$H$118","v":0},"#'T2-B(PP3)'!$H$118"]
["pp3_bl4_2_4_total",{"$f":"'T2-B(PP3)'!$J$118","v":0},"#'T2-B(PP3)'!$J$118"]
["pp3_bl4_2_4_total_in",{"$f":"'T2-B(PP3)'!$F$118","v":0},"#'T2-B(PP3)'!$F$118"]
["pp3_bl4_2_4_total_out",{"$f":"'T2-B(PP3)'!$I$118","v":0},"#'T2-B(PP3)'!$I$118"]
["pp3_bl4_2_4_unit",{"$f":"'T2-B(PP3)'!$C$118","v":0},"#'T2-B(PP3)'!$C$118"]
["pp3_bl4_2_4_unit_in",{"$f":"'T2-B(PP3)'!$D$118","v":0},"#'T2-B(PP3)'!$D$118"]
["pp3_bl4_2_4_units_out",{"$f":"'T2-B(PP3)'!$G$118","v":0},"#'T2-B(PP3)'!$G$118"]
["pp3_bl4_2_5_name",{"$f":"'T2-B(PP3)'!$B$119","v":0},"#'T2-B(PP3)'!$B$119"]
["pp3_bl4_2_5_rate_in",{"$f":"'T2-B(PP3)'!$E$119","v":0},"#'T2-B(PP3)'!$E$119"]
["pp3_bl4_2_5_rate_out",{"$f":"'T2-B(PP3)'!$H$119","v":0},"#'T2-B(PP3)'!$H$119"]
["pp3_bl4_2_5_total",{"$f":"'T2-B(PP3)'!$J$119","v":0},"#'T2-B(PP3)'!$J$119"]
["pp3_bl4_2_5_total_in",{"$f":"'T2-B(PP3)'!$F$119","v":0},"#'T2-B(PP3)'!$F$119"]
["pp3_bl4_2_5_total_out",{"$f":"'T2-B(PP3)'!$I$119","v":0},"#'T2-B(PP3)'!$I$119"]
["pp3_bl4_2_5_unit",{"$f":"'T2-B(PP3)'!$C$119","v":0},"#'T2-B(PP3)'!$C$119"]
["pp3_bl4_2_5_unit_in",{"$f":"'T2-B(PP3)'!$D$119","v":0},"#'T2-B(PP3)'!$D$119"]
["pp3_bl4_2_5_units_out",{"$f":"'T2-B(PP3)'!$G$119","v":0},"#'T2-B(PP3)'!$G$119"]
["pp3_bl4_2_6_name",{"$f":"'T2-B(PP3)'!$B$120","v":0},"#'T2-B(PP3)'!$B$120"]
["pp3_bl4_2_6_rate_in",{"$f":"'T2-B(PP3)'!$E$120","v":0},"#'T2-B(PP3)'!$E$120"]
["pp3_bl4_2_6_rate_out",{"$f":"'T2-B(PP3)'!$H$120","v":0},"#'T2-B(PP3)'!$H$120"]
["pp3_bl4_2_6_total",{"$f":"'T2-B(PP3)'!$J$120","v":0},"#'T2-B(PP3)'!$J$120"]
["pp3_bl4_2_6_total_in",{"$f":"'T2-B(PP3)'!$F$120","v":0},"#'T2-B(PP3)'!$F$120"]
["pp3_bl4_2_6_total_out",{"$f":"'T2-B(PP3)'!$I$120","v":0},"#'T2-B(PP3)'!$I$120"]
["pp3_bl4_2_6_unit",{"$f":"'T2-B(PP3)'!$C$120","v":0},"#'T2-B(PP3)'!$C$120"]
["pp3_bl4_2_6_unit_in",{"$f":"'T2-B(PP3)'!$D$120","v":0},"#'T2-B(PP3)'!$D$120"]
["pp3_bl4_2_6_units_out",{"$f":"'T2-B(PP3)'!$G$120","v":0},"#'T2-B(PP3)'!$G$120"]
["pp3_bl4_2_7_name",{"$f":"'T2-B(PP3)'!$B$121","v":0},"#'T2-B(PP3)'!$B$121"]
["pp3_bl4_2_7_rate_in",{"$f":"'T2-B(PP3)'!$E$121","v":0},"#'T2-B(PP3)'!$E$121"]
["pp3_bl4_2_7_rate_out",{"$f":"'T2-B(PP3)'!$H$121","v":0},"#'T2-B(PP3)'!$H$121"]
["pp3_bl4_2_7_total",{"$f":"'T2-B(PP3)'!$J$121","v":0},"#'T2-B(PP3)'!$J$121"]
["pp3_bl4_2_7_total_in",{"$f":"'T2-B(PP3)'!$F$121","v":0},"#'T2-B(PP3)'!$F$121"]
["pp3_bl4_2_7_total_out",{"$f":"'T2-B(PP3)'!$I$121","v":0},"#'T2-B(PP3)'!$I$121"]
["pp3_bl4_2_7_unit",{"$f":"'T2-B(PP3)'!$C$121","v":0},"#'T2-B(PP3)'!$C$121"]
["pp3_bl4_2_7_unit_in",{"$f":"'T2-B(PP3)'!$D$121","v":0},"#'T2-B(PP3)'!$D$121"]
["pp3_bl4_2_7_units_out",{"$f":"'T2-B(PP3)'!$G$121","v":0},"#'T2-B(PP3)'!$G$121"]
["pp3_bl4_2_8_name",{"$f":"'T2-B(PP3)'!$B$122","v":0},"#'T2-B(PP3)'!$B$122"]
["pp3_bl4_2_8_rate_in",{"$f":"'T2-B(PP3)'!$E$122","v":0},"#'T2-B(PP3)'!$E$122"]
["pp3_bl4_2_8_rate_out",{"$f":"'T2-B(PP3)'!$H$122","v":0},"#'T2-B(PP3)'!$H$122"]
["pp3_bl4_2_8_total",{"$f":"'T2-B(PP3)'!$J$122","v":0},"#'T2-B(PP3)'!$J$122"]
["pp3_bl4_2_8_total_in",{"$f":"'T2-B(PP3)'!$F$122","v":0},"#'T2-B(PP3)'!$F$122"]
["pp3_bl4_2_8_total_out",{"$f":"'T2-B(PP3)'!$I$122","v":0},"#'T2-B(PP3)'!$I$122"]
["pp3_bl4_2_8_unit",{"$f":"'T2-B(PP3)'!$C$122","v":0},"#'T2-B(PP3)'!$C$122"]
["pp3_bl4_2_8_unit_in",{"$f":"'T2-B(PP3)'!$D$122","v":0},"#'T2-B(PP3)'!$D$122"]
["pp3_bl4_2_8_units_out",{"$f":"'T2-B(PP3)'!$G$122","v":0},"#'T2-B(PP3)'!$G$122"]
["pp3_bl4_2_9_name",{"$f":"'T2-B(PP3)'!$B$123","v":0},"#'T2-B(PP3)'!$B$123"]
["pp3_bl4_2_9_rate_in",{"$f":"'T2-B(PP3)'!$E$123","v":0},"#'T2-B(PP3)'!$E$123"]
["pp3_bl4_2_9_rate_out",{"$f":"'T2-B(PP3)'!$H$123","v":0},"#'T2-B(PP3)'!$H$123"]
["pp3_bl4_2_9_total",{"$f":"'T2-B(PP3)'!$J$123","v":0},"#'T2-B(PP3)'!$J$123"]
["pp3_bl4_2_9_total_in",{"$f":"'T2-B(PP3)'!$F$123","v":0},"#'T2-B(PP3)'!$F$123"]
["pp3_bl4_2_9_total_out",{"$f":"'T2-B(PP3)'!$I$123","v":0},"#'T2-B(PP3)'!$I$123"]
["pp3_bl4_2_9_unit",{"$f":"'T2-B(PP3)'!$C$123","v":0},"#'T2-B(PP3)'!$C$123"]
["pp3_bl4_2_9_unit_in",{"$f":"'T2-B(PP3)'!$D$123","v":0},"#'T2-B(PP3)'!$D$123"]
["pp3_bl4_2_9_units_out",{"$f":"'T2-B(PP3)'!$G$123","v":0},"#'T2-B(PP3)'!$G$123"]
["pp3_bl4_2_total",{"$f":"'T2-B(PP3)'!$J$114","v":0},"#'T2-B(PP3)'!$J$114"]
["pp3_bl4_2_total_in",{"$f":"'T2-B(PP3)'!$F$114","v":0},"#'T2-B(PP3)'!$F$114"]
["pp3_bl4_2_total_out",{"$f":"'T2-B(PP3)'!$I$114","v":0},"#'T2-B(PP3)'!$I$114"]
["pp3_bl4_3_1_name",{"$f":"'T2-B(PP3)'!$B$136","v":0},"#'T2-B(PP3)'!$B$136"]
["pp3_bl4_3_1_rate_in",{"$f":"'T2-B(PP3)'!$E$136","v":0},"#'T2-B(PP3)'!$E$136"]
["pp3_bl4_3_1_rate_out",{"$f":"'T2-B(PP3)'!$H$136","v":0},"#'T2-B(PP3)'!$H$136"]
["pp3_bl4_3_1_total",{"$f":"'T2-B(PP3)'!$J$136","v":0},"#'T2-B(PP3)'!$J$136"]
["pp3_bl4_3_1_total_in",{"$f":"'T2-B(PP3)'!$F$136","v":0},"#'T2-B(PP3)'!$F$136"]
["pp3_bl4_3_1_total_out",{"$f":"'T2-B(PP3)'!$I$136","v":0},"#'T2-B(PP3)'!$I$136"]
["pp3_bl4_3_1_unit",{"$f":"'T2-B(PP3)'!$C$136","v":0},"#'T2-B(PP3)'!$C$136"]
["pp3_bl4_3_1_unit_in",{"$f":"'T2-B(PP3)'!$D$136","v":0},"#'T2-B(PP3)'!$D$136"]
["pp3_bl4_3_1_units_out",{"$f":"'T2-B(PP3)'!$G$136","v":0},"#'T2-B(PP3)'!$G$136"]
["pp3_bl4_3_10_name",{"$f":"'T2-B(PP3)'!$B$145","v":0},"#'T2-B(PP3)'!$B$145"]
["pp3_bl4_3_10_rate_in",{"$f":"'T2-B(PP3)'!$E$145","v":0},"#'T2-B(PP3)'!$E$145"]
["pp3_bl4_3_10_rate_out",{"$f":"'T2-B(PP3)'!$H$145","v":0},"#'T2-B(PP3)'!$H$145"]
["pp3_bl4_3_10_total",{"$f":"'T2-B(PP3)'!$J$145","v":0},"#'T2-B(PP3)'!$J$145"]
["pp3_bl4_3_10_total_in",{"$f":"'T2-B(PP3)'!$F$145","v":0},"#'T2-B(PP3)'!$F$145"]
["pp3_bl4_3_10_total_out",{"$f":"'T2-B(PP3)'!$I$145","v":0},"#'T2-B(PP3)'!$I$145"]
["pp3_bl4_3_10_unit",{"$f":"'T2-B(PP3)'!$C$145","v":0},"#'T2-B(PP3)'!$C$145"]
["pp3_bl4_3_10_unit_in",{"$f":"'T2-B(PP3)'!$D$145","v":0},"#'T2-B(PP3)'!$D$145"]
["pp3_bl4_3_10_units_out",{"$f":"'T2-B(PP3)'!$G$145","v":0},"#'T2-B(PP3)'!$G$145"]
["pp3_bl4_3_11_name",{"$f":"'T2-B(PP3)'!$B$146","v":0},"#'T2-B(PP3)'!$B$146"]
["pp3_bl4_3_11_rate_in",{"$f":"'T2-B(PP3)'!$E$146","v":0},"#'T2-B(PP3)'!$E$146"]
["pp3_bl4_3_11_rate_out",{"$f":"'T2-B(PP3)'!$H$146","v":0},"#'T2-B(PP3)'!$H$146"]
["pp3_bl4_3_11_total",{"$f":"'T2-B(PP3)'!$J$146","v":0},"#'T2-B(PP3)'!$J$146"]
["pp3_bl4_3_11_total_in",{"$f":"'T2-B(PP3)'!$F$146","v":0},"#'T2-B(PP3)'!$F$146"]
["pp3_bl4_3_11_total_out",{"$f":"'T2-B(PP3)'!$I$146","v":0},"#'T2-B(PP3)'!$I$146"]
["pp3_bl4_3_11_unit",{"$f":"'T2-B(PP3)'!$C$146","v":0},"#'T2-B(PP3)'!$C$146"]
["pp3_bl4_3_11_unit_in",{"$f":"'T2-B(PP3)'!$D$146","v":0},"#'T2-B(PP3)'!$D$146"]
["pp3_bl4_3_11_units_out",{"$f":"'T2-B(PP3)'!$G$146","v":0},"#'T2-B(PP3)'!$G$146"]
["pp3_bl4_3_12_name",{"$f":"'T2-B(PP3)'!$B$147","v":0},"#'T2-B(PP3)'!$B$147"]
["pp3_bl4_3_12_rate_in",{"$f":"'T2-B(PP3)'!$E$147","v":0},"#'T2-B(PP3)'!$E$147"]
["pp3_bl4_3_12_rate_out",{"$f":"'T2-B(PP3)'!$H$147","v":0},"#'T2-B(PP3)'!$H$147"]
["pp3_bl4_3_12_total",{"$f":"'T2-B(PP3)'!$J$147","v":0},"#'T2-B(PP3)'!$J$147"]
["pp3_bl4_3_12_total_in",{"$f":"'T2-B(PP3)'!$F$147","v":0},"#'T2-B(PP3)'!$F$147"]
["pp3_bl4_3_12_total_out",{"$f":"'T2-B(PP3)'!$I$147","v":0},"#'T2-B(PP3)'!$I$147"]
["pp3_bl4_3_12_unit",{"$f":"'T2-B(PP3)'!$C$147","v":0},"#'T2-B(PP3)'!$C$147"]
["pp3_bl4_3_12_unit_in",{"$f":"'T2-B(PP3)'!$D$147","v":0},"#'T2-B(PP3)'!$D$147"]
["pp3_bl4_3_12_units_out",{"$f":"'T2-B(PP3)'!$G$147","v":0},"#'T2-B(PP3)'!$G$147"]
["pp3_bl4_3_13_name",{"$f":"'T2-B(PP3)'!$B$148","v":0},"#'T2-B(PP3)'!$B$148"]
["pp3_bl4_3_13_rate_in",{"$f":"'T2-B(PP3)'!$E$148","v":0},"#'T2-B(PP3)'!$E$148"]
["pp3_bl4_3_13_rate_out",{"$f":"'T2-B(PP3)'!$H$148","v":0},"#'T2-B(PP3)'!$H$148"]
["pp3_bl4_3_13_total",{"$f":"'T2-B(PP3)'!$J$148","v":0},"#'T2-B(PP3)'!$J$148"]
["pp3_bl4_3_13_total_in",{"$f":"'T2-B(PP3)'!$F$148","v":0},"#'T2-B(PP3)'!$F$148"]
["pp3_bl4_3_13_total_out",{"$f":"'T2-B(PP3)'!$I$148","v":0},"#'T2-B(PP3)'!$I$148"]
["pp3_bl4_3_13_unit",{"$f":"'T2-B(PP3)'!$C$148","v":0},"#'T2-B(PP3)'!$C$148"]
["pp3_bl4_3_13_unit_in",{"$f":"'T2-B(PP3)'!$D$148","v":0},"#'T2-B(PP3)'!$D$148"]
["pp3_bl4_3_13_units_out",{"$f":"'T2-B(PP3)'!$G$148","v":0},"#'T2-B(PP3)'!$G$148"]
["pp3_bl4_3_14_name",{"$f":"'T2-B(PP3)'!$B$149","v":0},"#'T2-B(PP3)'!$B$149"]
["pp3_bl4_3_14_rate_in",{"$f":"'T2-B(PP3)'!$E$149","v":0},"#'T2-B(PP3)'!$E$149"]
["pp3_bl4_3_14_rate_out",{"$f":"'T2-B(PP3)'!$H$149","v":0},"#'T2-B(PP3)'!$H$149"]
["pp3_bl4_3_14_total",{"$f":"'T2-B(PP3)'!$J$149","v":0},"#'T2-B(PP3)'!$J$149"]
["pp3_bl4_3_14_total_in",{"$f":"'T2-B(PP3)'!$F$149","v":0},"#'T2-B(PP3)'!$F$149"]
["pp3_bl4_3_14_total_out",{"$f":"'T2-B(PP3)'!$I$149","v":0},"#'T2-B(PP3)'!$I$149"]
["pp3_bl4_3_14_unit",{"$f":"'T2-B(PP3)'!$C$149","v":0},"#'T2-B(PP3)'!$C$149"]
["pp3_bl4_3_14_unit_in",{"$f":"'T2-B(PP3)'!$D$149","v":0},"#'T2-B(PP3)'!$D$149"]
["pp3_bl4_3_14_units_out",{"$f":"'T2-B(PP3)'!$G$149","v":0},"#'T2-B(PP3)'!$G$149"]
["pp3_bl4_3_15_name",{"$f":"'T2-B(PP3)'!$B$150","v":0},"#'T2-B(PP3)'!$B$150"]
["pp3_bl4_3_15_rate_in",{"$f":"'T2-B(PP3)'!$E$150","v":0},"#'T2-B(PP3)'!$E$150"]
["pp3_bl4_3_15_rate_out",{"$f":"'T2-B(PP3)'!$H$150","v":0},"#'T2-B(PP3)'!$H$150"]
["pp3_bl4_3_15_total",{"$f":"'T2-B(PP3)'!$J$150","v":0},"#'T2-B(PP3)'!$J$150"]
["pp3_bl4_3_15_total_in",{"$f":"'T2-B(PP3)'!$F$150","v":0},"#'T2-B(PP3)'!$F$150"]
["pp3_bl4_3_15_total_out",{"$f":"'T2-B(PP3)'!$I$150","v":0},"#'T2-B(PP3)'!$I$150"]
["pp3_bl4_3_15_unit",{"$f":"'T2-B(PP3)'!$C$150","v":0},"#'T2-B(PP3)'!$C$150"]
["pp3_bl4_3_15_unit_in",{"$f":"'T2-B(PP3)'!$D$150","v":0},"#'T2-B(PP3)'!$D$150"]
["pp3_bl4_3_15_units_out",{"$f":"'T2-B(PP3)'!$G$150","v":0},"#'T2-B(PP3)'!$G$150"]
["pp3_bl4_3_16_name",{"$f":"'T2-B(PP3)'!$B$151","v":0},"#'T2-B(PP3)'!$B$151"]
["pp3_bl4_3_16_rate_in",{"$f":"'T2-B(PP3)'!$E$151","v":0},"#'T2-B(PP3)'!$E$151"]
["pp3_bl4_3_16_rate_out",{"$f":"'T2-B(PP3)'!$H$151","v":0},"#'T2-B(PP3)'!$H$151"]
["pp3_bl4_3_16_total",{"$f":"'T2-B(PP3)'!$J$151","v":0},"#'T2-B(PP3)'!$J$151"]
["pp3_bl4_3_16_total_in",{"$f":"'T2-B(PP3)'!$F$151","v":0},"#'T2-B(PP3)'!$F$151"]
["pp3_bl4_3_16_total_out",{"$f":"'T2-B(PP3)'!$I$151","v":0},"#'T2-B(PP3)'!$I$151"]
["pp3_bl4_3_16_unit",{"$f":"'T2-B(PP3)'!$C$151","v":0},"#'T2-B(PP3)'!$C$151"]
["pp3_bl4_3_16_unit_in",{"$f":"'T2-B(PP3)'!$D$151","v":0},"#'T2-B(PP3)'!$D$151"]
["pp3_bl4_3_16_units_out",{"$f":"'T2-B(PP3)'!$G$151","v":0},"#'T2-B(PP3)'!$G$151"]
["pp3_bl4_3_17_name",{"$f":"'T2-B(PP3)'!$B$152","v":0},"#'T2-B(PP3)'!$B$152"]
["pp3_bl4_3_17_rate_in",{"$f":"'T2-B(PP3)'!$E$152","v":0},"#'T2-B(PP3)'!$E$152"]
["pp3_bl4_3_17_rate_out",{"$f":"'T2-B(PP3)'!$H$152","v":0},"#'T2-B(PP3)'!$H$152"]
["pp3_bl4_3_17_total",{"$f":"'T2-B(PP3)'!$J$152","v":0},"#'T2-B(PP3)'!$J$152"]
["pp3_bl4_3_17_total_in",{"$f":"'T2-B(PP3)'!$F$152","v":0},"#'T2-B(PP3)'!$F$152"]
["pp3_bl4_3_17_total_out",{"$f":"'T2-B(PP3)'!$I$152","v":0},"#'T2-B(PP3)'!$I$152"]
["pp3_bl4_3_17_unit",{"$f":"'T2-B(PP3)'!$C$152","v":0},"#'T2-B(PP3)'!$C$152"]
["pp3_bl4_3_17_unit_in",{"$f":"'T2-B(PP3)'!$D$152","v":0},"#'T2-B(PP3)'!$D$152"]
["pp3_bl4_3_17_units_out",{"$f":"'T2-B(PP3)'!$G$152","v":0},"#'T2-B(PP3)'!$G$152"]
["pp3_bl4_3_18_name",{"$f":"'T2-B(PP3)'!$B$153","v":0},"#'T2-B(PP3)'!$B$153"]
["pp3_bl4_3_18_rate_in",{"$f":"'T2-B(PP3)'!$E$153","v":0},"#'T2-B(PP3)'!$E$153"]
["pp3_bl4_3_18_rate_out",{"$f":"'T2-B(PP3)'!$H$153","v":0},"#'T2-B(PP3)'!$H$153"]
["pp3_bl4_3_18_total",{"$f":"'T2-B(PP3)'!$J$153","v":0},"#'T2-B(PP3)'!$J$153"]
["pp3_bl4_3_18_total_in",{"$f":"'T2-B(PP3)'!$F$153","v":0},"#'T2-B(PP3)'!$F$153"]
["pp3_bl4_3_18_total_out",{"$f":"'T2-B(PP3)'!$I$153","v":0},"#'T2-B(PP3)'!$I$153"]
["pp3_bl4_3_18_unit",{"$f":"'T2-B(PP3)'!$C$153","v":0},"#'T2-B(PP3)'!$C$153"]
["pp3_bl4_3_18_unit_in",{"$f":"'T2-B(PP3)'!$D$153","v":0},"#'T2-B(PP3)'!$D$153"]
["pp3_bl4_3_18_units_out",{"$f":"'T2-B(PP3)'!$G$153","v":0},"#'T2-B(PP3)'!$G$153"]
["pp3_bl4_3_19_name",{"$f":"'T2-B(PP3)'!$B$154","v":0},"#'T2-B(PP3)'!$B$154"]
["pp3_bl4_3_19_rate_in",{"$f":"'T2-B(PP3)'!$E$154","v":0},"#'T2-B(PP3)'!$E$154"]
["pp3_bl4_3_19_rate_out",{"$f":"'T2-B(PP3)'!$H$154","v":0},"#'T2-B(PP3)'!$H$154"]
["pp3_bl4_3_19_total",{"$f":"'T2-B(PP3)'!$J$154","v":0},"#'T2-B(PP3)'!$J$154"]
["pp3_bl4_3_19_total_in",{"$f":"'T2-B(PP3)'!$F$154","v":0},"#'T2-B(PP3)'!$F$154"]
["pp3_bl4_3_19_total_out",{"$f":"'T2-B(PP3)'!$I$154","v":0},"#'T2-B(PP3)'!$I$154"]
["pp3_bl4_3_19_unit",{"$f":"'T2-B(PP3)'!$C$154","v":0},"#'T2-B(PP3)'!$C$154"]
["pp3_bl4_3_19_unit_in",{"$f":"'T2-B(PP3)'!$D$154","v":0},"#'T2-B(PP3)'!$D$154"]
["pp3_bl4_3_19_units_out",{"$f":"'T2-B(PP3)'!$G$154","v":0},"#'T2-B(PP3)'!$G$154"]
["pp3_bl4_3_2_name",{"$f":"'T2-B(PP3)'!$B$137","v":0},"#'T2-B(PP3)'!$B$137"]
["pp3_bl4_3_2_rate_in",{"$f":"'T2-B(PP3)'!$E$137","v":0},"#'T2-B(PP3)'!$E$137"]
["pp3_bl4_3_2_rate_out",{"$f":"'T2-B(PP3)'!$H$137","v":0},"#'T2-B(PP3)'!$H$137"]
["pp3_bl4_3_2_total",{"$f":"'T2-B(PP3)'!$J$137","v":0},"#'T2-B(PP3)'!$J$137"]
["pp3_bl4_3_2_total_in",{"$f":"'T2-B(PP3)'!$F$137","v":0},"#'T2-B(PP3)'!$F$137"]
["pp3_bl4_3_2_total_out",{"$f":"'T2-B(PP3)'!$I$137","v":0},"#'T2-B(PP3)'!$I$137"]
["pp3_bl4_3_2_unit",{"$f":"'T2-B(PP3)'!$C$137","v":0},"#'T2-B(PP3)'!$C$137"]
["pp3_bl4_3_2_unit_in",{"$f":"'T2-B(PP3)'!$D$137","v":0},"#'T2-B(PP3)'!$D$137"]
["pp3_bl4_3_2_units_out",{"$f":"'T2-B(PP3)'!$G$137","v":0},"#'T2-B(PP3)'!$G$137"]
["pp3_bl4_3_20_name",{"$f":"'T2-B(PP3)'!$B$155","v":0},"#'T2-B(PP3)'!$B$155"]
["pp3_bl4_3_20_rate_in",{"$f":"'T2-B(PP3)'!$E$155","v":0},"#'T2-B(PP3)'!$E$155"]
["pp3_bl4_3_20_rate_out",{"$f":"'T2-B(PP3)'!$H$155","v":0},"#'T2-B(PP3)'!$H$155"]
["pp3_bl4_3_20_total",{"$f":"'T2-B(PP3)'!$J$155","v":0},"#'T2-B(PP3)'!$J$155"]
["pp3_bl4_3_20_total_in",{"$f":"'T2-B(PP3)'!$F$155","v":0},"#'T2-B(PP3)'!$F$155"]
["pp3_bl4_3_20_total_out",{"$f":"'T2-B(PP3)'!$I$155","v":0},"#'T2-B(PP3)'!$I$155"]
["pp3_bl4_3_20_unit",{"$f":"'T2-B(PP3)'!$C$155","v":0},"#'T2-B(PP3)'!$C$155"]
["pp3_bl4_3_20_unit_in",{"$f":"'T2-B(PP3)'!$D$155","v":0},"#'T2-B(PP3)'!$D$155"]
["pp3_bl4_3_20_units_out",{"$f":"'T2-B(PP3)'!$G$155","v":0},"#'T2-B(PP3)'!$G$155"]
["pp3_bl4_3_3_name",{"$f":"'T2-B(PP3)'!$B$138","v":0},"#'T2-B(PP3)'!$B$138"]
["pp3_bl4_3_3_rate_in",{"$f":"'T2-B(PP3)'!$E$138","v":0},"#'T2-B(PP3)'!$E$138"]
["pp3_bl4_3_3_rate_out",{"$f":"'T2-B(PP3)'!$H$138","v":0},"#'T2-B(PP3)'!$H$138"]
["pp3_bl4_3_3_total",{"$f":"'T2-B(PP3)'!$J$138","v":0},"#'T2-B(PP3)'!$J$138"]
["pp3_bl4_3_3_total_in",{"$f":"'T2-B(PP3)'!$F$138","v":0},"#'T2-B(PP3)'!$F$138"]
["pp3_bl4_3_3_total_out",{"$f":"'T2-B(PP3)'!$I$138","v":0},"#'T2-B(PP3)'!$I$138"]
["pp3_bl4_3_3_unit",{"$f":"'T2-B(PP3)'!$C$138","v":0},"#'T2-B(PP3)'!$C$138"]
["pp3_bl4_3_3_unit_in",{"$f":"'T2-B(PP3)'!$D$138","v":0},"#'T2-B(PP3)'!$D$138"]
["pp3_bl4_3_3_units_out",{"$f":"'T2-B(PP3)'!$G$138","v":0},"#'T2-B(PP3)'!$G$138"]
["pp3_bl4_3_4_name",{"$f":"'T2-B(PP3)'!$B$139","v":0},"#'T2-B(PP3)'!$B$139"]
["pp3_bl4_3_4_rate_in",{"$f":"'T2-B(PP3)'!$E$139","v":0},"#'T2-B(PP3)'!$E$139"]
["pp3_bl4_3_4_rate_out",{"$f":"'T2-B(PP3)'!$H$139","v":0},"#'T2-B(PP3)'!$H$139"]
["pp3_bl4_3_4_total",{"$f":"'T2-B(PP3)'!$J$139","v":0},"#'T2-B(PP3)'!$J$139"]
["pp3_bl4_3_4_total_in",{"$f":"'T2-B(PP3)'!$F$139","v":0},"#'T2-B(PP3)'!$F$139"]
["pp3_bl4_3_4_total_out",{"$f":"'T2-B(PP3)'!$I$139","v":0},"#'T2-B(PP3)'!$I$139"]
["pp3_bl4_3_4_unit",{"$f":"'T2-B(PP3)'!$C$139","v":0},"#'T2-B(PP3)'!$C$139"]
["pp3_bl4_3_4_unit_in",{"$f":"'T2-B(PP3)'!$D$139","v":0},"#'T2-B(PP3)'!$D$139"]
["pp3_bl4_3_4_units_out",{"$f":"'T2-B(PP3)'!$G$139","v":0},"#'T2-B(PP3)'!$G$139"]
["pp3_bl4_3_5_name",{"$f":"'T2-B(PP3)'!$B$140","v":0},"#'T2-B(PP3)'!$B$140"]
["pp3_bl4_3_5_rate_in",{"$f":"'T2-B(PP3)'!$E$140","v":0},"#'T2-B(PP3)'!$E$140"]
["pp3_bl4_3_5_rate_out",{"$f":"'T2-B(PP3)'!$H$140","v":0},"#'T2-B(PP3)'!$H$140"]
["pp3_bl4_3_5_total",{"$f":"'T2-B(PP3)'!$J$140","v":0},"#'T2-B(PP3)'!$J$140"]
["pp3_bl4_3_5_total_in",{"$f":"'T2-B(PP3)'!$F$140","v":0},"#'T2-B(PP3)'!$F$140"]
["pp3_bl4_3_5_total_out",{"$f":"'T2-B(PP3)'!$I$140","v":0},"#'T2-B(PP3)'!$I$140"]
["pp3_bl4_3_5_unit",{"$f":"'T2-B(PP3)'!$C$140","v":0},"#'T2-B(PP3)'!$C$140"]
["pp3_bl4_3_5_unit_in",{"$f":"'T2-B(PP3)'!$D$140","v":0},"#'T2-B(PP3)'!$D$140"]
["pp3_bl4_3_5_units_out",{"$f":"'T2-B(PP3)'!$G$140","v":0},"#'T2-B(PP3)'!$G$140"]
["pp3_bl4_3_6_name",{"$f":"'T2-B(PP3)'!$B$141","v":0},"#'T2-B(PP3)'!$B$141"]
["pp3_bl4_3_6_rate_in",{"$f":"'T2-B(PP3)'!$E$141","v":0},"#'T2-B(PP3)'!$E$141"]
["pp3_bl4_3_6_rate_out",{"$f":"'T2-B(PP3)'!$H$141","v":0},"#'T2-B(PP3)'!$H$141"]
["pp3_bl4_3_6_total",{"$f":"'T2-B(PP3)'!$J$141","v":0},"#'T2-B(PP3)'!$J$141"]
["pp3_bl4_3_6_total_in",{"$f":"'T2-B(PP3)'!$F$141","v":0},"#'T2-B(PP3)'!$F$141"]
["pp3_bl4_3_6_total_out",{"$f":"'T2-B(PP3)'!$I$141","v":0},"#'T2-B(PP3)'!$I$141"]
["pp3_bl4_3_6_unit",{"$f":"'T2-B(PP3)'!$C$141","v":0},"#'T2-B(PP3)'!$C$141"]
["pp3_bl4_3_6_unit_in",{"$f":"'T2-B(PP3)'!$D$141","v":0},"#'T2-B(PP3)'!$D$141"]
["pp3_bl4_3_6_units_out",{"$f":"'T2-B(PP3)'!$G$141","v":0},"#'T2-B(PP3)'!$G$141"]
["pp3_bl4_3_7_name",{"$f":"'T2-B(PP3)'!$B$142","v":0},"#'T2-B(PP3)'!$B$142"]
["pp3_bl4_3_7_rate_in",{"$f":"'T2-B(PP3)'!$E$142","v":0},"#'T2-B(PP3)'!$E$142"]
["pp3_bl4_3_7_rate_out",{"$f":"'T2-B(PP3)'!$H$142","v":0},"#'T2-B(PP3)'!$H$142"]
["pp3_bl4_3_7_total",{"$f":"'T2-B(PP3)'!$J$142","v":0},"#'T2-B(PP3)'!$J$142"]
["pp3_bl4_3_7_total_in",{"$f":"'T2-B(PP3)'!$F$142","v":0},"#'T2-B(PP3)'!$F$142"]
["pp3_bl4_3_7_total_out",{"$f":"'T2-B(PP3)'!$I$142","v":0},"#'T2-B(PP3)'!$I$142"]
["pp3_bl4_3_7_unit",{"$f":"'T2-B(PP3)'!$C$142","v":0},"#'T2-B(PP3)'!$C$142"]
["pp3_bl4_3_7_unit_in",{"$f":"'T2-B(PP3)'!$D$142","v":0},"#'T2-B(PP3)'!$D$142"]
["pp3_bl4_3_7_units_out",{"$f":"'T2-B(PP3)'!$G$142","v":0},"#'T2-B(PP3)'!$G$142"]
["pp3_bl4_3_8_name",{"$f":"'T2-B(PP3)'!$B$143","v":0},"#'T2-B(PP3)'!$B$143"]
["pp3_bl4_3_8_rate_in",{"$f":"'T2-B(PP3)'!$E$143","v":0},"#'T2-B(PP3)'!$E$143"]
["pp3_bl4_3_8_rate_out",{"$f":"'T2-B(PP3)'!$H$143","v":0},"#'T2-B(PP3)'!$H$143"]
["pp3_bl4_3_8_total",{"$f":"'T2-B(PP3)'!$J$143","v":0},"#'T2-B(PP3)'!$J$143"]
["pp3_bl4_3_8_total_in",{"$f":"'T2-B(PP3)'!$F$143","v":0},"#'T2-B(PP3)'!$F$143"]
["pp3_bl4_3_8_total_out",{"$f":"'T2-B(PP3)'!$I$143","v":0},"#'T2-B(PP3)'!$I$143"]
["pp3_bl4_3_8_unit",{"$f":"'T2-B(PP3)'!$C$143","v":0},"#'T2-B(PP3)'!$C$143"]
["pp3_bl4_3_8_unit_in",{"$f":"'T2-B(PP3)'!$D$143","v":0},"#'T2-B(PP3)'!$D$143"]
["pp3_bl4_3_8_units_out",{"$f":"'T2-B(PP3)'!$G$143","v":0},"#'T2-B(PP3)'!$G$143"]
["pp3_bl4_3_9_name",{"$f":"'T2-B(PP3)'!$B$144","v":0},"#'T2-B(PP3)'!$B$144"]
["pp3_bl4_3_9_rate_in",{"$f":"'T2-B(PP3)'!$E$144","v":0},"#'T2-B(PP3)'!$E$144"]
["pp3_bl4_3_9_rate_out",{"$f":"'T2-B(PP3)'!$H$144","v":0},"#'T2-B(PP3)'!$H$144"]
["pp3_bl4_3_9_total",{"$f":"'T2-B(PP3)'!$J$144","v":0},"#'T2-B(PP3)'!$J$144"]
["pp3_bl4_3_9_total_in",{"$f":"'T2-B(PP3)'!$F$144","v":0},"#'T2-B(PP3)'!$F$144"]
["pp3_bl4_3_9_total_out",{"$f":"'T2-B(PP3)'!$I$144","v":0},"#'T2-B(PP3)'!$I$144"]
["pp3_bl4_3_9_unit",{"$f":"'T2-B(PP3)'!$C$144","v":0},"#'T2-B(PP3)'!$C$144"]
["pp3_bl4_3_9_unit_in",{"$f":"'T2-B(PP3)'!$D$144","v":0},"#'T2-B(PP3)'!$D$144"]
["pp3_bl4_3_9_units_out",{"$f":"'T2-B(PP3)'!$G$144","v":0},"#'T2-B(PP3)'!$G$144"]
["pp3_bl4_3_total",{"$f":"'T2-B(PP3)'!$J$135","v":0},"#'T2-B(PP3)'!$J$135"]
["pp3_bl4_3_total_in",{"$f":"'T2-B(PP3)'!$F$135","v":0},"#'T2-B(PP3)'!$F$135"]
["pp3_bl4_3_total_out",{"$f":"'T2-B(PP3)'!$I$135","v":0},"#'T2-B(PP3)'!$I$135"]
["pp3_bl4_4_1_name",{"$f":"'T2-B(PP3)'!$B$157","v":0},"#'T2-B(PP3)'!$B$157"]
["pp3_bl4_4_1_rate_in",{"$f":"'T2-B(PP3)'!$E$157","v":0},"#'T2-B(PP3)'!$E$157"]
["pp3_bl4_4_1_rate_out",{"$f":"'T2-B(PP3)'!$H$157","v":0},"#'T2-B(PP3)'!$H$157"]
["pp3_bl4_4_1_total",{"$f":"'T2-B(PP3)'!$J$157","v":0},"#'T2-B(PP3)'!$J$157"]
["pp3_bl4_4_1_total_in",{"$f":"'T2-B(PP3)'!$F$157","v":0},"#'T2-B(PP3)'!$F$157"]
["pp3_bl4_4_1_total_out",{"$f":"'T2-B(PP3)'!$I$157","v":0},"#'T2-B(PP3)'!$I$157"]
["pp3_bl4_4_1_unit",{"$f":"'T2-B(PP3)'!$C$157","v":0},"#'T2-B(PP3)'!$C$157"]
["pp3_bl4_4_1_unit_in",{"$f":"'T2-B(PP3)'!$D$157","v":0},"#'T2-B(PP3)'!$D$157"]
["pp3_bl4_4_1_units_out",{"$f":"'T2-B(PP3)'!$G$157","v":0},"#'T2-B(PP3)'!$G$157"]
["pp3_bl4_4_10_name",{"$f":"'T2-B(PP3)'!$B$166","v":0},"#'T2-B(PP3)'!$B$166"]
["pp3_bl4_4_10_rate_in",{"$f":"'T2-B(PP3)'!$E$166","v":0},"#'T2-B(PP3)'!$E$166"]
["pp3_bl4_4_10_rate_out",{"$f":"'T2-B(PP3)'!$H$166","v":0},"#'T2-B(PP3)'!$H$166"]
["pp3_bl4_4_10_total",{"$f":"'T2-B(PP3)'!$J$166","v":0},"#'T2-B(PP3)'!$J$166"]
["pp3_bl4_4_10_total_in",{"$f":"'T2-B(PP3)'!$F$166","v":0},"#'T2-B(PP3)'!$F$166"]
["pp3_bl4_4_10_total_out",{"$f":"'T2-B(PP3)'!$I$166","v":0},"#'T2-B(PP3)'!$I$166"]
["pp3_bl4_4_10_unit",{"$f":"'T2-B(PP3)'!$C$166","v":0},"#'T2-B(PP3)'!$C$166"]
["pp3_bl4_4_10_unit_in",{"$f":"'T2-B(PP3)'!$D$166","v":0},"#'T2-B(PP3)'!$D$166"]
["pp3_bl4_4_10_units_out",{"$f":"'T2-B(PP3)'!$G$166","v":0},"#'T2-B(PP3)'!$G$166"]
["pp3_bl4_4_11_name",{"$f":"'T2-B(PP3)'!$B$167","v":0},"#'T2-B(PP3)'!$B$167"]
["pp3_bl4_4_11_rate_in",{"$f":"'T2-B(PP3)'!$E$167","v":0},"#'T2-B(PP3)'!$E$167"]
["pp3_bl4_4_11_rate_out",{"$f":"'T2-B(PP3)'!$H$167","v":0},"#'T2-B(PP3)'!$H$167"]
["pp3_bl4_4_11_total",{"$f":"'T2-B(PP3)'!$J$167","v":0},"#'T2-B(PP3)'!$J$167"]
["pp3_bl4_4_11_total_in",{"$f":"'T2-B(PP3)'!$F$167","v":0},"#'T2-B(PP3)'!$F$167"]
["pp3_bl4_4_11_total_out",{"$f":"'T2-B(PP3)'!$I$167","v":0},"#'T2-B(PP3)'!$I$167"]
["pp3_bl4_4_11_unit",{"$f":"'T2-B(PP3)'!$C$167","v":0},"#'T2-B(PP3)'!$C$167"]
["pp3_bl4_4_11_unit_in",{"$f":"'T2-B(PP3)'!$D$167","v":0},"#'T2-B(PP3)'!$D$167"]
["pp3_bl4_4_11_units_out",{"$f":"'T2-B(PP3)'!$G$167","v":0},"#'T2-B(PP3)'!$G$167"]
["pp3_bl4_4_12_name",{"$f":"'T2-B(PP3)'!$B$168","v":0},"#'T2-B(PP3)'!$B$168"]
["pp3_bl4_4_12_rate_in",{"$f":"'T2-B(PP3)'!$E$168","v":0},"#'T2-B(PP3)'!$E$168"]
["pp3_bl4_4_12_rate_out",{"$f":"'T2-B(PP3)'!$H$168","v":0},"#'T2-B(PP3)'!$H$168"]
["pp3_bl4_4_12_total",{"$f":"'T2-B(PP3)'!$J$168","v":0},"#'T2-B(PP3)'!$J$168"]
["pp3_bl4_4_12_total_in",{"$f":"'T2-B(PP3)'!$F$168","v":0},"#'T2-B(PP3)'!$F$168"]
["pp3_bl4_4_12_total_out",{"$f":"'T2-B(PP3)'!$I$168","v":0},"#'T2-B(PP3)'!$I$168"]
["pp3_bl4_4_12_unit",{"$f":"'T2-B(PP3)'!$C$168","v":0},"#'T2-B(PP3)'!$C$168"]
["pp3_bl4_4_12_unit_in",{"$f":"'T2-B(PP3)'!$D$168","v":0},"#'T2-B(PP3)'!$D$168"]
["pp3_bl4_4_12_units_out",{"$f":"'T2-B(PP3)'!$G$168","v":0},"#'T2-B(PP3)'!$G$168"]
["pp3_bl4_4_13_name",{"$f":"'T2-B(PP3)'!$B$169","v":0},"#'T2-B(PP3)'!$B$169"]
["pp3_bl4_4_13_rate_in",{"$f":"'T2-B(PP3)'!$E$169","v":0},"#'T2-B(PP3)'!$E$169"]
["pp3_bl4_4_13_rate_out",{"$f":"'T2-B(PP3)'!$H$169","v":0},"#'T2-B(PP3)'!$H$169"]
["pp3_bl4_4_13_total",{"$f":"'T2-B(PP3)'!$J$169","v":0},"#'T2-B(PP3)'!$J$169"]
["pp3_bl4_4_13_total_in",{"$f":"'T2-B(PP3)'!$F$169","v":0},"#'T2-B(PP3)'!$F$169"]
["pp3_bl4_4_13_total_out",{"$f":"'T2-B(PP3)'!$I$169","v":0},"#'T2-B(PP3)'!$I$169"]
["pp3_bl4_4_13_unit",{"$f":"'T2-B(PP3)'!$C$169","v":0},"#'T2-B(PP3)'!$C$169"]
["pp3_bl4_4_13_unit_in",{"$f":"'T2-B(PP3)'!$D$169","v":0},"#'T2-B(PP3)'!$D$169"]
["pp3_bl4_4_13_units_out",{"$f":"'T2-B(PP3)'!$G$169","v":0},"#'T2-B(PP3)'!$G$169"]
["pp3_bl4_4_14_name",{"$f":"'T2-B(PP3)'!$B$170","v":0},"#'T2-B(PP3)'!$B$170"]
["pp3_bl4_4_14_rate_in",{"$f":"'T2-B(PP3)'!$E$170","v":0},"#'T2-B(PP3)'!$E$170"]
["pp3_bl4_4_14_rate_out",{"$f":"'T2-B(PP3)'!$H$170","v":0},"#'T2-B(PP3)'!$H$170"]
["pp3_bl4_4_14_total",{"$f":"'T2-B(PP3)'!$J$170","v":0},"#'T2-B(PP3)'!$J$170"]
["pp3_bl4_4_14_total_in",{"$f":"'T2-B(PP3)'!$F$170","v":0},"#'T2-B(PP3)'!$F$170"]
["pp3_bl4_4_14_total_out",{"$f":"'T2-B(PP3)'!$I$170","v":0},"#'T2-B(PP3)'!$I$170"]
["pp3_bl4_4_14_unit",{"$f":"'T2-B(PP3)'!$C$170","v":0},"#'T2-B(PP3)'!$C$170"]
["pp3_bl4_4_14_unit_in",{"$f":"'T2-B(PP3)'!$D$170","v":0},"#'T2-B(PP3)'!$D$170"]
["pp3_bl4_4_14_units_out",{"$f":"'T2-B(PP3)'!$G$170","v":0},"#'T2-B(PP3)'!$G$170"]
["pp3_bl4_4_15_name",{"$f":"'T2-B(PP3)'!$B$171","v":0},"#'T2-B(PP3)'!$B$171"]
["pp3_bl4_4_15_rate_in",{"$f":"'T2-B(PP3)'!$E$171","v":0},"#'T2-B(PP3)'!$E$171"]
["pp3_bl4_4_15_rate_out",{"$f":"'T2-B(PP3)'!$H$171","v":0},"#'T2-B(PP3)'!$H$171"]
["pp3_bl4_4_15_total",{"$f":"'T2-B(PP3)'!$J$171","v":0},"#'T2-B(PP3)'!$J$171"]
["pp3_bl4_4_15_total_in",{"$f":"'T2-B(PP3)'!$F$171","v":0},"#'T2-B(PP3)'!$F$171"]
["pp3_bl4_4_15_total_out",{"$f":"'T2-B(PP3)'!$I$171","v":0},"#'T2-B(PP3)'!$I$171"]
["pp3_bl4_4_15_unit",{"$f":"'T2-B(PP3)'!$C$171","v":0},"#'T2-B(PP3)'!$C$171"]
["pp3_bl4_4_15_unit_in",{"$f":"'T2-B(PP3)'!$D$171","v":0},"#'T2-B(PP3)'!$D$171"]
["pp3_bl4_4_15_units_out",{"$f":"'T2-B(PP3)'!$G$171","v":0},"#'T2-B(PP3)'!$G$171"]
["pp3_bl4_4_16_name",{"$f":"'T2-B(PP3)'!$B$172","v":0},"#'T2-B(PP3)'!$B$172"]
["pp3_bl4_4_16_rate_in",{"$f":"'T2-B(PP3)'!$E$172","v":0},"#'T2-B(PP3)'!$E$172"]
["pp3_bl4_4_16_rate_out",{"$f":"'T2-B(PP3)'!$H$172","v":0},"#'T2-B(PP3)'!$H$172"]
["pp3_bl4_4_16_total",{"$f":"'T2-B(PP3)'!$J$172","v":0},"#'T2-B(PP3)'!$J$172"]
["pp3_bl4_4_16_total_in",{"$f":"'T2-B(PP3)'!$F$172","v":0},"#'T2-B(PP3)'!$F$172"]
["pp3_bl4_4_16_total_out",{"$f":"'T2-B(PP3)'!$I$172","v":0},"#'T2-B(PP3)'!$I$172"]
["pp3_bl4_4_16_unit",{"$f":"'T2-B(PP3)'!$C$172","v":0},"#'T2-B(PP3)'!$C$172"]
["pp3_bl4_4_16_unit_in",{"$f":"'T2-B(PP3)'!$D$172","v":0},"#'T2-B(PP3)'!$D$172"]
["pp3_bl4_4_16_units_out",{"$f":"'T2-B(PP3)'!$G$172","v":0},"#'T2-B(PP3)'!$G$172"]
["pp3_bl4_4_17_name",{"$f":"'T2-B(PP3)'!$B$173","v":0},"#'T2-B(PP3)'!$B$173"]
["pp3_bl4_4_17_rate_in",{"$f":"'T2-B(PP3)'!$E$173","v":0},"#'T2-B(PP3)'!$E$173"]
["pp3_bl4_4_17_rate_out",{"$f":"'T2-B(PP3)'!$H$173","v":0},"#'T2-B(PP3)'!$H$173"]
["pp3_bl4_4_17_total",{"$f":"'T2-B(PP3)'!$J$173","v":0},"#'T2-B(PP3)'!$J$173"]
["pp3_bl4_4_17_total_in",{"$f":"'T2-B(PP3)'!$F$173","v":0},"#'T2-B(PP3)'!$F$173"]
["pp3_bl4_4_17_total_out",{"$f":"'T2-B(PP3)'!$I$173","v":0},"#'T2-B(PP3)'!$I$173"]
["pp3_bl4_4_17_unit",{"$f":"'T2-B(PP3)'!$C$173","v":0},"#'T2-B(PP3)'!$C$173"]
["pp3_bl4_4_17_unit_in",{"$f":"'T2-B(PP3)'!$D$173","v":0},"#'T2-B(PP3)'!$D$173"]
["pp3_bl4_4_17_units_out",{"$f":"'T2-B(PP3)'!$G$173","v":0},"#'T2-B(PP3)'!$G$173"]
["pp3_bl4_4_18_name",{"$f":"'T2-B(PP3)'!$B$174","v":0},"#'T2-B(PP3)'!$B$174"]
["pp3_bl4_4_18_rate_in",{"$f":"'T2-B(PP3)'!$E$174","v":0},"#'T2-B(PP3)'!$E$174"]
["pp3_bl4_4_18_rate_out",{"$f":"'T2-B(PP3)'!$H$174","v":0},"#'T2-B(PP3)'!$H$174"]
["pp3_bl4_4_18_total",{"$f":"'T2-B(PP3)'!$J$174","v":0},"#'T2-B(PP3)'!$J$174"]
["pp3_bl4_4_18_total_in",{"$f":"'T2-B(PP3)'!$F$174","v":0},"#'T2-B(PP3)'!$F$174"]
["pp3_bl4_4_18_total_out",{"$f":"'T2-B(PP3)'!$I$174","v":0},"#'T2-B(PP3)'!$I$174"]
["pp3_bl4_4_18_unit",{"$f":"'T2-B(PP3)'!$C$174","v":0},"#'T2-B(PP3)'!$C$174"]
["pp3_bl4_4_18_unit_in",{"$f":"'T2-B(PP3)'!$D$174","v":0},"#'T2-B(PP3)'!$D$174"]
["pp3_bl4_4_18_units_out",{"$f":"'T2-B(PP3)'!$G$174","v":0},"#'T2-B(PP3)'!$G$174"]
["pp3_bl4_4_19_name",{"$f":"'T2-B(PP3)'!$B$175","v":0},"#'T2-B(PP3)'!$B$175"]
["pp3_bl4_4_19_rate_in",{"$f":"'T2-B(PP3)'!$E$175","v":0},"#'T2-B(PP3)'!$E$175"]
["pp3_bl4_4_19_rate_out",{"$f":"'T2-B(PP3)'!$H$175","v":0},"#'T2-B(PP3)'!$H$175"]
["pp3_bl4_4_19_total",{"$f":"'T2-B(PP3)'!$J$175","v":0},"#'T2-B(PP3)'!$J$175"]
["pp3_bl4_4_19_total_in",{"$f":"'T2-B(PP3)'!$F$175","v":0},"#'T2-B(PP3)'!$F$175"]
["pp3_bl4_4_19_total_out",{"$f":"'T2-B(PP3)'!$I$175","v":0},"#'T2-B(PP3)'!$I$175"]
["pp3_bl4_4_19_unit",{"$f":"'T2-B(PP3)'!$C$175","v":0},"#'T2-B(PP3)'!$C$175"]
["pp3_bl4_4_19_unit_in",{"$f":"'T2-B(PP3)'!$D$175","v":0},"#'T2-B(PP3)'!$D$175"]
["pp3_bl4_4_19_units_out",{"$f":"'T2-B(PP3)'!$G$175","v":0},"#'T2-B(PP3)'!$G$175"]
["pp3_bl4_4_2_name",{"$f":"'T2-B(PP3)'!$B$158","v":0},"#'T2-B(PP3)'!$B$158"]
["pp3_bl4_4_2_rate_in",{"$f":"'T2-B(PP3)'!$E$158","v":0},"#'T2-B(PP3)'!$E$158"]
["pp3_bl4_4_2_rate_out",{"$f":"'T2-B(PP3)'!$H$158","v":0},"#'T2-B(PP3)'!$H$158"]
["pp3_bl4_4_2_total",{"$f":"'T2-B(PP3)'!$J$158","v":0},"#'T2-B(PP3)'!$J$158"]
["pp3_bl4_4_2_total_in",{"$f":"'T2-B(PP3)'!$F$158","v":0},"#'T2-B(PP3)'!$F$158"]
["pp3_bl4_4_2_total_out",{"$f":"'T2-B(PP3)'!$I$158","v":0},"#'T2-B(PP3)'!$I$158"]
["pp3_bl4_4_2_unit",{"$f":"'T2-B(PP3)'!$C$158","v":0},"#'T2-B(PP3)'!$C$158"]
["pp3_bl4_4_2_unit_in",{"$f":"'T2-B(PP3)'!$D$158","v":0},"#'T2-B(PP3)'!$D$158"]
["pp3_bl4_4_2_units_out",{"$f":"'T2-B(PP3)'!$G$158","v":0},"#'T2-B(PP3)'!$G$158"]
["pp3_bl4_4_20_name",{"$f":"'T2-B(PP3)'!$B$176","v":0},"#'T2-B(PP3)'!$B$176"]
["pp3_bl4_4_20_rate_in",{"$f":"'T2-B(PP3)'!$E$176","v":0},"#'T2-B(PP3)'!$E$176"]
["pp3_bl4_4_20_rate_out",{"$f":"'T2-B(PP3)'!$H$176","v":0},"#'T2-B(PP3)'!$H$176"]
["pp3_bl4_4_20_total",{"$f":"'T2-B(PP3)'!$J$176","v":0},"#'T2-B(PP3)'!$J$176"]
["pp3_bl4_4_20_total_in",{"$f":"'T2-B(PP3)'!$F$176","v":0},"#'T2-B(PP3)'!$F$176"]
["pp3_bl4_4_20_total_out",{"$f":"'T2-B(PP3)'!$I$176","v":0},"#'T2-B(PP3)'!$I$176"]
["pp3_bl4_4_20_unit",{"$f":"'T2-B(PP3)'!$C$176","v":0},"#'T2-B(PP3)'!$C$176"]
["pp3_bl4_4_20_unit_in",{"$f":"'T2-B(PP3)'!$D$176","v":0},"#'T2-B(PP3)'!$D$176"]
["pp3_bl4_4_20_units_out",{"$f":"'T2-B(PP3)'!$G$176","v":0},"#'T2-B(PP3)'!$G$176"]
["pp3_bl4_4_3_name",{"$f":"'T2-B(PP3)'!$B$159","v":0},"#'T2-B(PP3)'!$B$159"]
["pp3_bl4_4_3_rate_in",{"$f":"'T2-B(PP3)'!$E$159","v":0},"#'T2-B(PP3)'!$E$159"]
["pp3_bl4_4_3_rate_out",{"$f":"'T2-B(PP3)'!$H$159","v":0},"#'T2-B(PP3)'!$H$159"]
["pp3_bl4_4_3_total",{"$f":"'T2-B(PP3)'!$J$159","v":0},"#'T2-B(PP3)'!$J$159"]
["pp3_bl4_4_3_total_in",{"$f":"'T2-B(PP3)'!$F$159","v":0},"#'T2-B(PP3)'!$F$159"]
["pp3_bl4_4_3_total_out",{"$f":"'T2-B(PP3)'!$I$159","v":0},"#'T2-B(PP3)'!$I$159"]
["pp3_bl4_4_3_unit",{"$f":"'T2-B(PP3)'!$C$159","v":0},"#'T2-B(PP3)'!$C$159"]
["pp3_bl4_4_3_unit_in",{"$f":"'T2-B(PP3)'!$D$159","v":0},"#'T2-B(PP3)'!$D$159"]
["pp3_bl4_4_3_units_out",{"$f":"'T2-B(PP3)'!$G$159","v":0},"#'T2-B(PP3)'!$G$159"]
["pp3_bl4_4_4_name",{"$f":"'T2-B(PP3)'!$B$160","v":0},"#'T2-B(PP3)'!$B$160"]
["pp3_bl4_4_4_rate_in",{"$f":"'T2-B(PP3)'!$E$160","v":0},"#'T2-B(PP3)'!$E$160"]
["pp3_bl4_4_4_rate_out",{"$f":"'T2-B(PP3)'!$H$160","v":0},"#'T2-B(PP3)'!$H$160"]
["pp3_bl4_4_4_total",{"$f":"'T2-B(PP3)'!$J$160","v":0},"#'T2-B(PP3)'!$J$160"]
["pp3_bl4_4_4_total_in",{"$f":"'T2-B(PP3)'!$F$160","v":0},"#'T2-B(PP3)'!$F$160"]
["pp3_bl4_4_4_total_out",{"$f":"'T2-B(PP3)'!$I$160","v":0},"#'T2-B(PP3)'!$I$160"]
["pp3_bl4_4_4_unit",{"$f":"'T2-B(PP3)'!$C$160","v":0},"#'T2-B(PP3)'!$C$160"]
["pp3_bl4_4_4_unit_in",{"$f":"'T2-B(PP3)'!$D$160","v":0},"#'T2-B(PP3)'!$D$160"]
["pp3_bl4_4_4_units_out",{"$f":"'T2-B(PP3)'!$G$160","v":0},"#'T2-B(PP3)'!$G$160"]
["pp3_bl4_4_5_name",{"$f":"'T2-B(PP3)'!$B$161","v":0},"#'T2-B(PP3)'!$B$161"]
["pp3_bl4_4_5_rate_in",{"$f":"'T2-B(PP3)'!$E$161","v":0},"#'T2-B(PP3)'!$E$161"]
["pp3_bl4_4_5_rate_out",{"$f":"'T2-B(PP3)'!$H$161","v":0},"#'T2-B(PP3)'!$H$161"]
["pp3_bl4_4_5_total",{"$f":"'T2-B(PP3)'!$J$161","v":0},"#'T2-B(PP3)'!$J$161"]
["pp3_bl4_4_5_total_in",{"$f":"'T2-B(PP3)'!$F$161","v":0},"#'T2-B(PP3)'!$F$161"]
["pp3_bl4_4_5_total_out",{"$f":"'T2-B(PP3)'!$I$161","v":0},"#'T2-B(PP3)'!$I$161"]
["pp3_bl4_4_5_unit",{"$f":"'T2-B(PP3)'!$C$161","v":0},"#'T2-B(PP3)'!$C$161"]
["pp3_bl4_4_5_unit_in",{"$f":"'T2-B(PP3)'!$D$161","v":0},"#'T2-B(PP3)'!$D$161"]
["pp3_bl4_4_5_units_out",{"$f":"'T2-B(PP3)'!$G$161","v":0},"#'T2-B(PP3)'!$G$161"]
["pp3_bl4_4_6_name",{"$f":"'T2-B(PP3)'!$B$162","v":0},"#'T2-B(PP3)'!$B$162"]
["pp3_bl4_4_6_rate_in",{"$f":"'T2-B(PP3)'!$E$162","v":0},"#'T2-B(PP3)'!$E$162"]
["pp3_bl4_4_6_rate_out",{"$f":"'T2-B(PP3)'!$H$162","v":0},"#'T2-B(PP3)'!$H$162"]
["pp3_bl4_4_6_total",{"$f":"'T2-B(PP3)'!$J$162","v":0},"#'T2-B(PP3)'!$J$162"]
["pp3_bl4_4_6_total_in",{"$f":"'T2-B(PP3)'!$F$162","v":0},"#'T2-B(PP3)'!$F$162"]
["pp3_bl4_4_6_total_out",{"$f":"'T2-B(PP3)'!$I$162","v":0},"#'T2-B(PP3)'!$I$162"]
["pp3_bl4_4_6_unit",{"$f":"'T2-B(PP3)'!$C$162","v":0},"#'T2-B(PP3)'!$C$162"]
["pp3_bl4_4_6_unit_in",{"$f":"'T2-B(PP3)'!$D$162","v":0},"#'T2-B(PP3)'!$D$162"]
["pp3_bl4_4_6_units_out",{"$f":"'T2-B(PP3)'!$G$162","v":0},"#'T2-B(PP3)'!$G$162"]
["pp3_bl4_4_7_name",{"$f":"'T2-B(PP3)'!$B$163","v":0},"#'T2-B(PP3)'!$B$163"]
["pp3_bl4_4_7_rate_in",{"$f":"'T2-B(PP3)'!$E$163","v":0},"#'T2-B(PP3)'!$E$163"]
["pp3_bl4_4_7_rate_out",{"$f":"'T2-B(PP3)'!$H$163","v":0},"#'T2-B(PP3)'!$H$163"]
["pp3_bl4_4_7_total",{"$f":"'T2-B(PP3)'!$J$163","v":0},"#'T2-B(PP3)'!$J$163"]
["pp3_bl4_4_7_total_in",{"$f":"'T2-B(PP3)'!$F$163","v":0},"#'T2-B(PP3)'!$F$163"]
["pp3_bl4_4_7_total_out",{"$f":"'T2-B(PP3)'!$I$163","v":0},"#'T2-B(PP3)'!$I$163"]
["pp3_bl4_4_7_unit",{"$f":"'T2-B(PP3)'!$C$163","v":0},"#'T2-B(PP3)'!$C$163"]
["pp3_bl4_4_7_unit_in",{"$f":"'T2-B(PP3)'!$D$163","v":0},"#'T2-B(PP3)'!$D$163"]
["pp3_bl4_4_7_units_out",{"$f":"'T2-B(PP3)'!$G$163","v":0},"#'T2-B(PP3)'!$G$163"]
["pp3_bl4_4_8_name",{"$f":"'T2-B(PP3)'!$B$164","v":0},"#'T2-B(PP3)'!$B$164"]
["pp3_bl4_4_8_rate_in",{"$f":"'T2-B(PP3)'!$E$164","v":0},"#'T2-B(PP3)'!$E$164"]
["pp3_bl4_4_8_rate_out",{"$f":"'T2-B(PP3)'!$H$164","v":0},"#'T2-B(PP3)'!$H$164"]
["pp3_bl4_4_8_total",{"$f":"'T2-B(PP3)'!$J$164","v":0},"#'T2-B(PP3)'!$J$164"]
["pp3_bl4_4_8_total_in",{"$f":"'T2-B(PP3)'!$F$164","v":0},"#'T2-B(PP3)'!$F$164"]
["pp3_bl4_4_8_total_out",{"$f":"'T2-B(PP3)'!$I$164","v":0},"#'T2-B(PP3)'!$I$164"]
["pp3_bl4_4_8_unit",{"$f":"'T2-B(PP3)'!$C$164","v":0},"#'T2-B(PP3)'!$C$164"]
["pp3_bl4_4_8_unit_in",{"$f":"'T2-B(PP3)'!$D$164","v":0},"#'T2-B(PP3)'!$D$164"]
["pp3_bl4_4_8_units_out",{"$f":"'T2-B(PP3)'!$G$164","v":0},"#'T2-B(PP3)'!$G$164"]
["pp3_bl4_4_9_name",{"$f":"'T2-B(PP3)'!$B$165","v":0},"#'T2-B(PP3)'!$B$165"]
["pp3_bl4_4_9_rate_in",{"$f":"'T2-B(PP3)'!$E$165","v":0},"#'T2-B(PP3)'!$E$165"]
["pp3_bl4_4_9_rate_out",{"$f":"'T2-B(PP3)'!$H$165","v":0},"#'T2-B(PP3)'!$H$165"]
["pp3_bl4_4_9_total",{"$f":"'T2-B(PP3)'!$J$165","v":0},"#'T2-B(PP3)'!$J$165"]
["pp3_bl4_4_9_total_in",{"$f":"'T2-B(PP3)'!$F$165","v":0},"#'T2-B(PP3)'!$F$165"]
["pp3_bl4_4_9_total_out",{"$f":"'T2-B(PP3)'!$I$165","v":0},"#'T2-B(PP3)'!$I$165"]
["pp3_bl4_4_9_unit",{"$f":"'T2-B(PP3)'!$C$165","v":0},"#'T2-B(PP3)'!$C$165"]
["pp3_bl4_4_9_unit_in",{"$f":"'T2-B(PP3)'!$D$165","v":0},"#'T2-B(PP3)'!$D$165"]
["pp3_bl4_4_9_units_out",{"$f":"'T2-B(PP3)'!$G$165","v":0},"#'T2-B(PP3)'!$G$165"]
["pp3_bl4_4_total",{"$f":"'T2-B(PP3)'!$J$156","v":0},"#'T2-B(PP3)'!$J$156"]
["pp3_bl4_4_total_in",{"$f":"'T2-B(PP3)'!$F$156","v":0},"#'T2-B(PP3)'!$F$156"]
["pp3_bl4_4_total_out",{"$f":"'T2-B(PP3)'!$I$156","v":0},"#'T2-B(PP3)'!$I$156"]
["pp3_bl4_5_1_name",{"$f":"'T2-B(PP3)'!$B$178","v":0},"#'T2-B(PP3)'!$B$178"]
["pp3_bl4_5_1_rate_in",{"$f":"'T2-B(PP3)'!$E$178","v":0},"#'T2-B(PP3)'!$E$178"]
["pp3_bl4_5_1_rate_out",{"$f":"'T2-B(PP3)'!$H$178","v":0},"#'T2-B(PP3)'!$H$178"]
["pp3_bl4_5_1_total",{"$f":"'T2-B(PP3)'!$J$178","v":0},"#'T2-B(PP3)'!$J$178"]
["pp3_bl4_5_1_total_in",{"$f":"'T2-B(PP3)'!$F$178","v":0},"#'T2-B(PP3)'!$F$178"]
["pp3_bl4_5_1_total_out",{"$f":"'T2-B(PP3)'!$I$178","v":0},"#'T2-B(PP3)'!$I$178"]
["pp3_bl4_5_1_unit",{"$f":"'T2-B(PP3)'!$C$178","v":0},"#'T2-B(PP3)'!$C$178"]
["pp3_bl4_5_1_unit_in",{"$f":"'T2-B(PP3)'!$D$178","v":0},"#'T2-B(PP3)'!$D$178"]
["pp3_bl4_5_1_units_out",{"$f":"'T2-B(PP3)'!$G$178","v":0},"#'T2-B(PP3)'!$G$178"]
["pp3_bl4_5_10_name",{"$f":"'T2-B(PP3)'!$B$187","v":0},"#'T2-B(PP3)'!$B$187"]
["pp3_bl4_5_10_rate_in",{"$f":"'T2-B(PP3)'!$E$187","v":0},"#'T2-B(PP3)'!$E$187"]
["pp3_bl4_5_10_rate_out",{"$f":"'T2-B(PP3)'!$H$187","v":0},"#'T2-B(PP3)'!$H$187"]
["pp3_bl4_5_10_total",{"$f":"'T2-B(PP3)'!$J$187","v":0},"#'T2-B(PP3)'!$J$187"]
["pp3_bl4_5_10_total_in",{"$f":"'T2-B(PP3)'!$F$187","v":0},"#'T2-B(PP3)'!$F$187"]
["pp3_bl4_5_10_total_out",{"$f":"'T2-B(PP3)'!$I$187","v":0},"#'T2-B(PP3)'!$I$187"]
["pp3_bl4_5_10_unit",{"$f":"'T2-B(PP3)'!$C$187","v":0},"#'T2-B(PP3)'!$C$187"]
["pp3_bl4_5_10_unit_in",{"$f":"'T2-B(PP3)'!$D$187","v":0},"#'T2-B(PP3)'!$D$187"]
["pp3_bl4_5_10_units_out",{"$f":"'T2-B(PP3)'!$G$187","v":0},"#'T2-B(PP3)'!$G$187"]
["pp3_bl4_5_11_name",{"$f":"'T2-B(PP3)'!$B$188","v":0},"#'T2-B(PP3)'!$B$188"]
["pp3_bl4_5_11_rate_in",{"$f":"'T2-B(PP3)'!$E$188","v":0},"#'T2-B(PP3)'!$E$188"]
["pp3_bl4_5_11_rate_out",{"$f":"'T2-B(PP3)'!$H$188","v":0},"#'T2-B(PP3)'!$H$188"]
["pp3_bl4_5_11_total",{"$f":"'T2-B(PP3)'!$J$188","v":0},"#'T2-B(PP3)'!$J$188"]
["pp3_bl4_5_11_total_in",{"$f":"'T2-B(PP3)'!$F$188","v":0},"#'T2-B(PP3)'!$F$188"]
["pp3_bl4_5_11_total_out",{"$f":"'T2-B(PP3)'!$I$188","v":0},"#'T2-B(PP3)'!$I$188"]
["pp3_bl4_5_11_unit",{"$f":"'T2-B(PP3)'!$C$188","v":0},"#'T2-B(PP3)'!$C$188"]
["pp3_bl4_5_11_unit_in",{"$f":"'T2-B(PP3)'!$D$188","v":0},"#'T2-B(PP3)'!$D$188"]
["pp3_bl4_5_11_units_out",{"$f":"'T2-B(PP3)'!$G$188","v":0},"#'T2-B(PP3)'!$G$188"]
["pp3_bl4_5_12_name",{"$f":"'T2-B(PP3)'!$B$189","v":0},"#'T2-B(PP3)'!$B$189"]
["pp3_bl4_5_12_rate_in",{"$f":"'T2-B(PP3)'!$E$189","v":0},"#'T2-B(PP3)'!$E$189"]
["pp3_bl4_5_12_rate_out",{"$f":"'T2-B(PP3)'!$H$189","v":0},"#'T2-B(PP3)'!$H$189"]
["pp3_bl4_5_12_total",{"$f":"'T2-B(PP3)'!$J$189","v":0},"#'T2-B(PP3)'!$J$189"]
["pp3_bl4_5_12_total_in",{"$f":"'T2-B(PP3)'!$F$189","v":0},"#'T2-B(PP3)'!$F$189"]
["pp3_bl4_5_12_total_out",{"$f":"'T2-B(PP3)'!$I$189","v":0},"#'T2-B(PP3)'!$I$189"]
["pp3_bl4_5_12_unit",{"$f":"'T2-B(PP3)'!$C$189","v":0},"#'T2-B(PP3)'!$C$189"]
["pp3_bl4_5_12_unit_in",{"$f":"'T2-B(PP3)'!$D$189","v":0},"#'T2-B(PP3)'!$D$189"]
["pp3_bl4_5_12_units_out",{"$f":"'T2-B(PP3)'!$G$189","v":0},"#'T2-B(PP3)'!$G$189"]
["pp3_bl4_5_13_name",{"$f":"'T2-B(PP3)'!$B$190","v":0},"#'T2-B(PP3)'!$B$190"]
["pp3_bl4_5_13_rate_in",{"$f":"'T2-B(PP3)'!$E$190","v":0},"#'T2-B(PP3)'!$E$190"]
["pp3_bl4_5_13_rate_out",{"$f":"'T2-B(PP3)'!$H$190","v":0},"#'T2-B(PP3)'!$H$190"]
["pp3_bl4_5_13_total",{"$f":"'T2-B(PP3)'!$J$190","v":0},"#'T2-B(PP3)'!$J$190"]
["pp3_bl4_5_13_total_in",{"$f":"'T2-B(PP3)'!$F$190","v":0},"#'T2-B(PP3)'!$F$190"]
["pp3_bl4_5_13_total_out",{"$f":"'T2-B(PP3)'!$I$190","v":0},"#'T2-B(PP3)'!$I$190"]
["pp3_bl4_5_13_unit",{"$f":"'T2-B(PP3)'!$C$190","v":0},"#'T2-B(PP3)'!$C$190"]
["pp3_bl4_5_13_unit_in",{"$f":"'T2-B(PP3)'!$D$190","v":0},"#'T2-B(PP3)'!$D$190"]
["pp3_bl4_5_13_units_out",{"$f":"'T2-B(PP3)'!$G$190","v":0},"#'T2-B(PP3)'!$G$190"]
["pp3_bl4_5_14_name",{"$f":"'T2-B(PP3)'!$B$191","v":0},"#'T2-B(PP3)'!$B$191"]
["pp3_bl4_5_14_rate_in",{"$f":"'T2-B(PP3)'!$E$191","v":0},"#'T2-B(PP3)'!$E$191"]
["pp3_bl4_5_14_rate_out",{"$f":"'T2-B(PP3)'!$H$191","v":0},"#'T2-B(PP3)'!$H$191"]
["pp3_bl4_5_14_total",{"$f":"'T2-B(PP3)'!$J$191","v":0},"#'T2-B(PP3)'!$J$191"]
["pp3_bl4_5_14_total_in",{"$f":"'T2-B(PP3)'!$F$191","v":0},"#'T2-B(PP3)'!$F$191"]
["pp3_bl4_5_14_total_out",{"$f":"'T2-B(PP3)'!$I$191","v":0},"#'T2-B(PP3)'!$I$191"]
["pp3_bl4_5_14_unit",{"$f":"'T2-B(PP3)'!$C$191","v":0},"#'T2-B(PP3)'!$C$191"]
["pp3_bl4_5_14_unit_in",{"$f":"'T2-B(PP3)'!$D$191","v":0},"#'T2-B(PP3)'!$D$191"]
["pp3_bl4_5_14_units_out",{"$f":"'T2-B(PP3)'!$G$191","v":0},"#'T2-B(PP3)'!$G$191"]
["pp3_bl4_5_15_name",{"$f":"'T2-B(PP3)'!$B$192","v":0},"#'T2-B(PP3)'!$B$192"]
["pp3_bl4_5_15_rate_in",{"$f":"'T2-B(PP3)'!$E$192","v":0},"#'T2-B(PP3)'!$E$192"]
["pp3_bl4_5_15_rate_out",{"$f":"'T2-B(PP3)'!$H$192","v":0},"#'T2-B(PP3)'!$H$192"]
["pp3_bl4_5_15_total",{"$f":"'T2-B(PP3)'!$J$192","v":0},"#'T2-B(PP3)'!$J$192"]
["pp3_bl4_5_15_total_in",{"$f":"'T2-B(PP3)'!$F$192","v":0},"#'T2-B(PP3)'!$F$192"]
["pp3_bl4_5_15_total_out",{"$f":"'T2-B(PP3)'!$I$192","v":0},"#'T2-B(PP3)'!$I$192"]
["pp3_bl4_5_15_unit",{"$f":"'T2-B(PP3)'!$C$192","v":0},"#'T2-B(PP3)'!$C$192"]
["pp3_bl4_5_15_unit_in",{"$f":"'T2-B(PP3)'!$D$192","v":0},"#'T2-B(PP3)'!$D$192"]
["pp3_bl4_5_15_units_out",{"$f":"'T2-B(PP3)'!$G$192","v":0},"#'T2-B(PP3)'!$G$192"]
["pp3_bl4_5_16_name",{"$f":"'T2-B(PP3)'!$B$193","v":0},"#'T2-B(PP3)'!$B$193"]
["pp3_bl4_5_16_rate_in",{"$f":"'T2-B(PP3)'!$E$193","v":0},"#'T2-B(PP3)'!$E$193"]
["pp3_bl4_5_16_rate_out",{"$f":"'T2-B(PP3)'!$H$193","v":0},"#'T2-B(PP3)'!$H$193"]
["pp3_bl4_5_16_total",{"$f":"'T2-B(PP3)'!$J$193","v":0},"#'T2-B(PP3)'!$J$193"]
["pp3_bl4_5_16_total_in",{"$f":"'T2-B(PP3)'!$F$193","v":0},"#'T2-B(PP3)'!$F$193"]
["pp3_bl4_5_16_total_out",{"$f":"'T2-B(PP3)'!$I$193","v":0},"#'T2-B(PP3)'!$I$193"]
["pp3_bl4_5_16_unit",{"$f":"'T2-B(PP3)'!$C$193","v":0},"#'T2-B(PP3)'!$C$193"]
["pp3_bl4_5_16_unit_in",{"$f":"'T2-B(PP3)'!$D$193","v":0},"#'T2-B(PP3)'!$D$193"]
["pp3_bl4_5_16_units_out",{"$f":"'T2-B(PP3)'!$G$193","v":0},"#'T2-B(PP3)'!$G$193"]
["pp3_bl4_5_17_name",{"$f":"'T2-B(PP3)'!$B$194","v":0},"#'T2-B(PP3)'!$B$194"]
["pp3_bl4_5_17_rate_in",{"$f":"'T2-B(PP3)'!$E$194","v":0},"#'T2-B(PP3)'!$E$194"]
["pp3_bl4_5_17_rate_out",{"$f":"'T2-B(PP3)'!$H$194","v":0},"#'T2-B(PP3)'!$H$194"]
["pp3_bl4_5_17_total",{"$f":"'T2-B(PP3)'!$J$194","v":0},"#'T2-B(PP3)'!$J$194"]
["pp3_bl4_5_17_total_in",{"$f":"'T2-B(PP3)'!$F$194","v":0},"#'T2-B(PP3)'!$F$194"]
["pp3_bl4_5_17_total_out",{"$f":"'T2-B(PP3)'!$I$194","v":0},"#'T2-B(PP3)'!$I$194"]
["pp3_bl4_5_17_unit",{"$f":"'T2-B(PP3)'!$C$194","v":0},"#'T2-B(PP3)'!$C$194"]
["pp3_bl4_5_17_unit_in",{"$f":"'T2-B(PP3)'!$D$194","v":0},"#'T2-B(PP3)'!$D$194"]
["pp3_bl4_5_17_units_out",{"$f":"'T2-B(PP3)'!$G$194","v":0},"#'T2-B(PP3)'!$G$194"]
["pp3_bl4_5_18_name",{"$f":"'T2-B(PP3)'!$B$195","v":0},"#'T2-B(PP3)'!$B$195"]
["pp3_bl4_5_18_rate_in",{"$f":"'T2-B(PP3)'!$E$195","v":0},"#'T2-B(PP3)'!$E$195"]
["pp3_bl4_5_18_rate_out",{"$f":"'T2-B(PP3)'!$H$195","v":0},"#'T2-B(PP3)'!$H$195"]
["pp3_bl4_5_18_total",{"$f":"'T2-B(PP3)'!$J$195","v":0},"#'T2-B(PP3)'!$J$195"]
["pp3_bl4_5_18_total_in",{"$f":"'T2-B(PP3)'!$F$195","v":0},"#'T2-B(PP3)'!$F$195"]
["pp3_bl4_5_18_total_out",{"$f":"'T2-B(PP3)'!$I$195","v":0},"#'T2-B(PP3)'!$I$195"]
["pp3_bl4_5_18_unit",{"$f":"'T2-B(PP3)'!$C$195","v":0},"#'T2-B(PP3)'!$C$195"]
["pp3_bl4_5_18_unit_in",{"$f":"'T2-B(PP3)'!$D$195","v":0},"#'T2-B(PP3)'!$D$195"]
["pp3_bl4_5_18_units_out",{"$f":"'T2-B(PP3)'!$G$195","v":0},"#'T2-B(PP3)'!$G$195"]
["pp3_bl4_5_19_name",{"$f":"'T2-B(PP3)'!$B$196","v":0},"#'T2-B(PP3)'!$B$196"]
["pp3_bl4_5_19_rate_in",{"$f":"'T2-B(PP3)'!$E$196","v":0},"#'T2-B(PP3)'!$E$196"]
["pp3_bl4_5_19_rate_out",{"$f":"'T2-B(PP3)'!$H$196","v":0},"#'T2-B(PP3)'!$H$196"]
["pp3_bl4_5_19_total",{"$f":"'T2-B(PP3)'!$J$196","v":0},"#'T2-B(PP3)'!$J$196"]
["pp3_bl4_5_19_total_in",{"$f":"'T2-B(PP3)'!$F$196","v":0},"#'T2-B(PP3)'!$F$196"]
["pp3_bl4_5_19_total_out",{"$f":"'T2-B(PP3)'!$I$196","v":0},"#'T2-B(PP3)'!$I$196"]
["pp3_bl4_5_19_unit",{"$f":"'T2-B(PP3)'!$C$196","v":0},"#'T2-B(PP3)'!$C$196"]
["pp3_bl4_5_19_unit_in",{"$f":"'T2-B(PP3)'!$D$196","v":0},"#'T2-B(PP3)'!$D$196"]
["pp3_bl4_5_19_units_out",{"$f":"'T2-B(PP3)'!$G$196","v":0},"#'T2-B(PP3)'!$G$196"]
["pp3_bl4_5_2_name",{"$f":"'T2-B(PP3)'!$B$179","v":0},"#'T2-B(PP3)'!$B$179"]
["pp3_bl4_5_2_rate_in",{"$f":"'T2-B(PP3)'!$E$179","v":0},"#'T2-B(PP3)'!$E$179"]
["pp3_bl4_5_2_rate_out",{"$f":"'T2-B(PP3)'!$H$179","v":0},"#'T2-B(PP3)'!$H$179"]
["pp3_bl4_5_2_total",{"$f":"'T2-B(PP3)'!$J$179","v":0},"#'T2-B(PP3)'!$J$179"]
["pp3_bl4_5_2_total_in",{"$f":"'T2-B(PP3)'!$F$179","v":0},"#'T2-B(PP3)'!$F$179"]
["pp3_bl4_5_2_total_out",{"$f":"'T2-B(PP3)'!$I$179","v":0},"#'T2-B(PP3)'!$I$179"]
["pp3_bl4_5_2_unit",{"$f":"'T2-B(PP3)'!$C$179","v":0},"#'T2-B(PP3)'!$C$179"]
["pp3_bl4_5_2_unit_in",{"$f":"'T2-B(PP3)'!$D$179","v":0},"#'T2-B(PP3)'!$D$179"]
["pp3_bl4_5_2_units_out",{"$f":"'T2-B(PP3)'!$G$179","v":0},"#'T2-B(PP3)'!$G$179"]
["pp3_bl4_5_20_name",{"$f":"'T2-B(PP3)'!$B$197","v":0},"#'T2-B(PP3)'!$B$197"]
["pp3_bl4_5_20_rate_in",{"$f":"'T2-B(PP3)'!$E$197","v":0},"#'T2-B(PP3)'!$E$197"]
["pp3_bl4_5_20_rate_out",{"$f":"'T2-B(PP3)'!$H$197","v":0},"#'T2-B(PP3)'!$H$197"]
["pp3_bl4_5_20_total",{"$f":"'T2-B(PP3)'!$J$197","v":0},"#'T2-B(PP3)'!$J$197"]
["pp3_bl4_5_20_total_in",{"$f":"'T2-B(PP3)'!$F$197","v":0},"#'T2-B(PP3)'!$F$197"]
["pp3_bl4_5_20_total_out",{"$f":"'T2-B(PP3)'!$I$197","v":0},"#'T2-B(PP3)'!$I$197"]
["pp3_bl4_5_20_unit",{"$f":"'T2-B(PP3)'!$C$197","v":0},"#'T2-B(PP3)'!$C$197"]
["pp3_bl4_5_20_unit_in",{"$f":"'T2-B(PP3)'!$D$197","v":0},"#'T2-B(PP3)'!$D$197"]
["pp3_bl4_5_20_units_out",{"$f":"'T2-B(PP3)'!$G$197","v":0},"#'T2-B(PP3)'!$G$197"]
["pp3_bl4_5_3_name",{"$f":"'T2-B(PP3)'!$B$180","v":0},"#'T2-B(PP3)'!$B$180"]
["pp3_bl4_5_3_rate_in",{"$f":"'T2-B(PP3)'!$E$180","v":0},"#'T2-B(PP3)'!$E$180"]
["pp3_bl4_5_3_rate_out",{"$f":"'T2-B(PP3)'!$H$180","v":0},"#'T2-B(PP3)'!$H$180"]
["pp3_bl4_5_3_total",{"$f":"'T2-B(PP3)'!$J$180","v":0},"#'T2-B(PP3)'!$J$180"]
["pp3_bl4_5_3_total_in",{"$f":"'T2-B(PP3)'!$F$180","v":0},"#'T2-B(PP3)'!$F$180"]
["pp3_bl4_5_3_total_out",{"$f":"'T2-B(PP3)'!$I$180","v":0},"#'T2-B(PP3)'!$I$180"]
["pp3_bl4_5_3_unit",{"$f":"'T2-B(PP3)'!$C$180","v":0},"#'T2-B(PP3)'!$C$180"]
["pp3_bl4_5_3_unit_in",{"$f":"'T2-B(PP3)'!$D$180","v":0},"#'T2-B(PP3)'!$D$180"]
["pp3_bl4_5_3_units_out",{"$f":"'T2-B(PP3)'!$G$180","v":0},"#'T2-B(PP3)'!$G$180"]
["pp3_bl4_5_4_name",{"$f":"'T2-B(PP3)'!$B$181","v":0},"#'T2-B(PP3)'!$B$181"]
["pp3_bl4_5_4_rate_in",{"$f":"'T2-B(PP3)'!$E$181","v":0},"#'T2-B(PP3)'!$E$181"]
["pp3_bl4_5_4_rate_out",{"$f":"'T2-B(PP3)'!$H$181","v":0},"#'T2-B(PP3)'!$H$181"]
["pp3_bl4_5_4_total",{"$f":"'T2-B(PP3)'!$J$181","v":0},"#'T2-B(PP3)'!$J$181"]
["pp3_bl4_5_4_total_in",{"$f":"'T2-B(PP3)'!$F$181","v":0},"#'T2-B(PP3)'!$F$181"]
["pp3_bl4_5_4_total_out",{"$f":"'T2-B(PP3)'!$I$181","v":0},"#'T2-B(PP3)'!$I$181"]
["pp3_bl4_5_4_unit",{"$f":"'T2-B(PP3)'!$C$181","v":0},"#'T2-B(PP3)'!$C$181"]
["pp3_bl4_5_4_unit_in",{"$f":"'T2-B(PP3)'!$D$181","v":0},"#'T2-B(PP3)'!$D$181"]
["pp3_bl4_5_4_units_out",{"$f":"'T2-B(PP3)'!$G$181","v":0},"#'T2-B(PP3)'!$G$181"]
["pp3_bl4_5_5_name",{"$f":"'T2-B(PP3)'!$B$182","v":0},"#'T2-B(PP3)'!$B$182"]
["pp3_bl4_5_5_rate_in",{"$f":"'T2-B(PP3)'!$E$182","v":0},"#'T2-B(PP3)'!$E$182"]
["pp3_bl4_5_5_rate_out",{"$f":"'T2-B(PP3)'!$H$182","v":0},"#'T2-B(PP3)'!$H$182"]
["pp3_bl4_5_5_total",{"$f":"'T2-B(PP3)'!$J$182","v":0},"#'T2-B(PP3)'!$J$182"]
["pp3_bl4_5_5_total_in",{"$f":"'T2-B(PP3)'!$F$182","v":0},"#'T2-B(PP3)'!$F$182"]
["pp3_bl4_5_5_total_out",{"$f":"'T2-B(PP3)'!$I$182","v":0},"#'T2-B(PP3)'!$I$182"]
["pp3_bl4_5_5_unit",{"$f":"'T2-B(PP3)'!$C$182","v":0},"#'T2-B(PP3)'!$C$182"]
["pp3_bl4_5_5_unit_in",{"$f":"'T2-B(PP3)'!$D$182","v":0},"#'T2-B(PP3)'!$D$182"]
["pp3_bl4_5_5_units_out",{"$f":"'T2-B(PP3)'!$G$182","v":0},"#'T2-B(PP3)'!$G$182"]
["pp3_bl4_5_6_name",{"$f":"'T2-B(PP3)'!$B$183","v":0},"#'T2-B(PP3)'!$B$183"]
["pp3_bl4_5_6_rate_in",{"$f":"'T2-B(PP3)'!$E$183","v":0},"#'T2-B(PP3)'!$E$183"]
["pp3_bl4_5_6_rate_out",{"$f":"'T2-B(PP3)'!$H$183","v":0},"#'T2-B(PP3)'!$H$183"]
["pp3_bl4_5_6_total",{"$f":"'T2-B(PP3)'!$J$183","v":0},"#'T2-B(PP3)'!$J$183"]
["pp3_bl4_5_6_total_in",{"$f":"'T2-B(PP3)'!$F$183","v":0},"#'T2-B(PP3)'!$F$183"]
["pp3_bl4_5_6_total_out",{"$f":"'T2-B(PP3)'!$I$183","v":0},"#'T2-B(PP3)'!$I$183"]
["pp3_bl4_5_6_unit",{"$f":"'T2-B(PP3)'!$C$183","v":0},"#'T2-B(PP3)'!$C$183"]
["pp3_bl4_5_6_unit_in",{"$f":"'T2-B(PP3)'!$D$183","v":0},"#'T2-B(PP3)'!$D$183"]
["pp3_bl4_5_6_units_out",{"$f":"'T2-B(PP3)'!$G$183","v":0},"#'T2-B(PP3)'!$G$183"]
["pp3_bl4_5_7_name",{"$f":"'T2-B(PP3)'!$B$184","v":0},"#'T2-B(PP3)'!$B$184"]
["pp3_bl4_5_7_rate_in",{"$f":"'T2-B(PP3)'!$E$184","v":0},"#'T2-B(PP3)'!$E$184"]
["pp3_bl4_5_7_rate_out",{"$f":"'T2-B(PP3)'!$H$184","v":0},"#'T2-B(PP3)'!$H$184"]
["pp3_bl4_5_7_total",{"$f":"'T2-B(PP3)'!$J$184","v":0},"#'T2-B(PP3)'!$J$184"]
["pp3_bl4_5_7_total_in",{"$f":"'T2-B(PP3)'!$F$184","v":0},"#'T2-B(PP3)'!$F$184"]
["pp3_bl4_5_7_total_out",{"$f":"'T2-B(PP3)'!$I$184","v":0},"#'T2-B(PP3)'!$I$184"]
["pp3_bl4_5_7_unit",{"$f":"'T2-B(PP3)'!$C$184","v":0},"#'T2-B(PP3)'!$C$184"]
["pp3_bl4_5_7_unit_in",{"$f":"'T2-B(PP3)'!$D$184","v":0},"#'T2-B(PP3)'!$D$184"]
["pp3_bl4_5_7_units_out",{"$f":"'T2-B(PP3)'!$G$184","v":0},"#'T2-B(PP3)'!$G$184"]
["pp3_bl4_5_8_name",{"$f":"'T2-B(PP3)'!$B$185","v":0},"#'T2-B(PP3)'!$B$185"]
["pp3_bl4_5_8_rate_in",{"$f":"'T2-B(PP3)'!$E$185","v":0},"#'T2-B(PP3)'!$E$185"]
["pp3_bl4_5_8_rate_out",{"$f":"'T2-B(PP3)'!$H$185","v":0},"#'T2-B(PP3)'!$H$185"]
["pp3_bl4_5_8_total",{"$f":"'T2-B(PP3)'!$J$185","v":0},"#'T2-B(PP3)'!$J$185"]
["pp3_bl4_5_8_total_in",{"$f":"'T2-B(PP3)'!$F$185","v":0},"#'T2-B(PP3)'!$F$185"]
["pp3_bl4_5_8_total_out",{"$f":"'T2-B(PP3)'!$I$185","v":0},"#'T2-B(PP3)'!$I$185"]
["pp3_bl4_5_8_unit",{"$f":"'T2-B(PP3)'!$C$185","v":0},"#'T2-B(PP3)'!$C$185"]
["pp3_bl4_5_8_unit_in",{"$f":"'T2-B(PP3)'!$D$185","v":0},"#'T2-B(PP3)'!$D$185"]
["pp3_bl4_5_8_units_out",{"$f":"'T2-B(PP3)'!$G$185","v":0},"#'T2-B(PP3)'!$G$185"]
["pp3_bl4_5_9_name",{"$f":"'T2-B(PP3)'!$B$186","v":0},"#'T2-B(PP3)'!$B$186"]
["pp3_bl4_5_9_rate_in",{"$f":"'T2-B(PP3)'!$E$186","v":0},"#'T2-B(PP3)'!$E$186"]
["pp3_bl4_5_9_rate_out",{"$f":"'T2-B(PP3)'!$H$186","v":0},"#'T2-B(PP3)'!$H$186"]
["pp3_bl4_5_9_total",{"$f":"'T2-B(PP3)'!$J$186","v":0},"#'T2-B(PP3)'!$J$186"]
["pp3_bl4_5_9_total_in",{"$f":"'T2-B(PP3)'!$F$186","v":0},"#'T2-B(PP3)'!$F$186"]
["pp3_bl4_5_9_total_out",{"$f":"'T2-B(PP3)'!$I$186","v":0},"#'T2-B(PP3)'!$I$186"]
["pp3_bl4_5_9_unit",{"$f":"'T2-B(PP3)'!$C$186","v":0},"#'T2-B(PP3)'!$C$186"]
["pp3_bl4_5_9_unit_in",{"$f":"'T2-B(PP3)'!$D$186","v":0},"#'T2-B(PP3)'!$D$186"]
["pp3_bl4_5_9_units_out",{"$f":"'T2-B(PP3)'!$G$186","v":0},"#'T2-B(PP3)'!$G$186"]
["pp3_bl4_5_total",{"$f":"'T2-B(PP3)'!$J$177","v":0},"#'T2-B(PP3)'!$J$177"]
["pp3_bl4_5_total_in",{"$f":"'T2-B(PP3)'!$F$177","v":0},"#'T2-B(PP3)'!$F$177"]
["pp3_bl4_5_total_out",{"$f":"'T2-B(PP3)'!$I$177","v":0},"#'T2-B(PP3)'!$I$177"]
["pp3_bl4_6_1_name",{"$f":"'T2-B(PP3)'!$B$199","v":0},"#'T2-B(PP3)'!$B$199"]
["pp3_bl4_6_1_rate_in",{"$f":"'T2-B(PP3)'!$E$199","v":0},"#'T2-B(PP3)'!$E$199"]
["pp3_bl4_6_1_rate_out",{"$f":"'T2-B(PP3)'!$H$199","v":0},"#'T2-B(PP3)'!$H$199"]
["pp3_bl4_6_1_total",{"$f":"'T2-B(PP3)'!$J$199","v":0},"#'T2-B(PP3)'!$J$199"]
["pp3_bl4_6_1_total_in",{"$f":"'T2-B(PP3)'!$F$199","v":0},"#'T2-B(PP3)'!$F$199"]
["pp3_bl4_6_1_total_out",{"$f":"'T2-B(PP3)'!$I$199","v":0},"#'T2-B(PP3)'!$I$199"]
["pp3_bl4_6_1_unit",{"$f":"'T2-B(PP3)'!$C$199","v":0},"#'T2-B(PP3)'!$C$199"]
["pp3_bl4_6_1_unit_in",{"$f":"'T2-B(PP3)'!$D$199","v":0},"#'T2-B(PP3)'!$D$199"]
["pp3_bl4_6_1_units_out",{"$f":"'T2-B(PP3)'!$G$199","v":0},"#'T2-B(PP3)'!$G$199"]
["pp3_bl4_6_10_name",{"$f":"'T2-B(PP3)'!$B$208","v":0},"#'T2-B(PP3)'!$B$208"]
["pp3_bl4_6_10_rate_in",{"$f":"'T2-B(PP3)'!$E$208","v":0},"#'T2-B(PP3)'!$E$208"]
["pp3_bl4_6_10_rate_out",{"$f":"'T2-B(PP3)'!$H$208","v":0},"#'T2-B(PP3)'!$H$208"]
["pp3_bl4_6_10_total",{"$f":"'T2-B(PP3)'!$J$208","v":0},"#'T2-B(PP3)'!$J$208"]
["pp3_bl4_6_10_total_in",{"$f":"'T2-B(PP3)'!$F$208","v":0},"#'T2-B(PP3)'!$F$208"]
["pp3_bl4_6_10_total_out",{"$f":"'T2-B(PP3)'!$I$208","v":0},"#'T2-B(PP3)'!$I$208"]
["pp3_bl4_6_10_unit",{"$f":"'T2-B(PP3)'!$C$208","v":0},"#'T2-B(PP3)'!$C$208"]
["pp3_bl4_6_10_unit_in",{"$f":"'T2-B(PP3)'!$D$208","v":0},"#'T2-B(PP3)'!$D$208"]
["pp3_bl4_6_10_units_out",{"$f":"'T2-B(PP3)'!$G$208","v":0},"#'T2-B(PP3)'!$G$208"]
["pp3_bl4_6_11_name",{"$f":"'T2-B(PP3)'!$B$209","v":0},"#'T2-B(PP3)'!$B$209"]
["pp3_bl4_6_11_rate_in",{"$f":"'T2-B(PP3)'!$E$209","v":0},"#'T2-B(PP3)'!$E$209"]
["pp3_bl4_6_11_rate_out",{"$f":"'T2-B(PP3)'!$H$209","v":0},"#'T2-B(PP3)'!$H$209"]
["pp3_bl4_6_11_total",{"$f":"'T2-B(PP3)'!$J$209","v":0},"#'T2-B(PP3)'!$J$209"]
["pp3_bl4_6_11_total_in",{"$f":"'T2-B(PP3)'!$F$209","v":0},"#'T2-B(PP3)'!$F$209"]
["pp3_bl4_6_11_total_out",{"$f":"'T2-B(PP3)'!$I$209","v":0},"#'T2-B(PP3)'!$I$209"]
["pp3_bl4_6_11_unit",{"$f":"'T2-B(PP3)'!$C$209","v":0},"#'T2-B(PP3)'!$C$209"]
["pp3_bl4_6_11_unit_in",{"$f":"'T2-B(PP3)'!$D$209","v":0},"#'T2-B(PP3)'!$D$209"]
["pp3_bl4_6_11_units_out",{"$f":"'T2-B(PP3)'!$G$209","v":0},"#'T2-B(PP3)'!$G$209"]
["pp3_bl4_6_12_name",{"$f":"'T2-B(PP3)'!$B$210","v":0},"#'T2-B(PP3)'!$B$210"]
["pp3_bl4_6_12_rate_in",{"$f":"'T2-B(PP3)'!$E$210","v":0},"#'T2-B(PP3)'!$E$210"]
["pp3_bl4_6_12_rate_out",{"$f":"'T2-B(PP3)'!$H$210","v":0},"#'T2-B(PP3)'!$H$210"]
["pp3_bl4_6_12_total",{"$f":"'T2-B(PP3)'!$J$210","v":0},"#'T2-B(PP3)'!$J$210"]
["pp3_bl4_6_12_total_in",{"$f":"'T2-B(PP3)'!$F$210","v":0},"#'T2-B(PP3)'!$F$210"]
["pp3_bl4_6_12_total_out",{"$f":"'T2-B(PP3)'!$I$210","v":0},"#'T2-B(PP3)'!$I$210"]
["pp3_bl4_6_12_unit",{"$f":"'T2-B(PP3)'!$C$210","v":0},"#'T2-B(PP3)'!$C$210"]
["pp3_bl4_6_12_unit_in",{"$f":"'T2-B(PP3)'!$D$210","v":0},"#'T2-B(PP3)'!$D$210"]
["pp3_bl4_6_12_units_out",{"$f":"'T2-B(PP3)'!$G$210","v":0},"#'T2-B(PP3)'!$G$210"]
["pp3_bl4_6_13_name",{"$f":"'T2-B(PP3)'!$B$211","v":0},"#'T2-B(PP3)'!$B$211"]
["pp3_bl4_6_13_rate_in",{"$f":"'T2-B(PP3)'!$E$211","v":0},"#'T2-B(PP3)'!$E$211"]
["pp3_bl4_6_13_rate_out",{"$f":"'T2-B(PP3)'!$H$211","v":0},"#'T2-B(PP3)'!$H$211"]
["pp3_bl4_6_13_total",{"$f":"'T2-B(PP3)'!$J$211","v":0},"#'T2-B(PP3)'!$J$211"]
["pp3_bl4_6_13_total_in",{"$f":"'T2-B(PP3)'!$F$211","v":0},"#'T2-B(PP3)'!$F$211"]
["pp3_bl4_6_13_total_out",{"$f":"'T2-B(PP3)'!$I$211","v":0},"#'T2-B(PP3)'!$I$211"]
["pp3_bl4_6_13_unit",{"$f":"'T2-B(PP3)'!$C$211","v":0},"#'T2-B(PP3)'!$C$211"]
["pp3_bl4_6_13_unit_in",{"$f":"'T2-B(PP3)'!$D$211","v":0},"#'T2-B(PP3)'!$D$211"]
["pp3_bl4_6_13_units_out",{"$f":"'T2-B(PP3)'!$G$211","v":0},"#'T2-B(PP3)'!$G$211"]
["pp3_bl4_6_14_name",{"$f":"'T2-B(PP3)'!$B$212","v":0},"#'T2-B(PP3)'!$B$212"]
["pp3_bl4_6_14_rate_in",{"$f":"'T2-B(PP3)'!$E$212","v":0},"#'T2-B(PP3)'!$E$212"]
["pp3_bl4_6_14_rate_out",{"$f":"'T2-B(PP3)'!$H$212","v":0},"#'T2-B(PP3)'!$H$212"]
["pp3_bl4_6_14_total",{"$f":"'T2-B(PP3)'!$J$212","v":0},"#'T2-B(PP3)'!$J$212"]
["pp3_bl4_6_14_total_in",{"$f":"'T2-B(PP3)'!$F$212","v":0},"#'T2-B(PP3)'!$F$212"]
["pp3_bl4_6_14_total_out",{"$f":"'T2-B(PP3)'!$I$212","v":0},"#'T2-B(PP3)'!$I$212"]
["pp3_bl4_6_14_unit",{"$f":"'T2-B(PP3)'!$C$212","v":0},"#'T2-B(PP3)'!$C$212"]
["pp3_bl4_6_14_unit_in",{"$f":"'T2-B(PP3)'!$D$212","v":0},"#'T2-B(PP3)'!$D$212"]
["pp3_bl4_6_14_units_out",{"$f":"'T2-B(PP3)'!$G$212","v":0},"#'T2-B(PP3)'!$G$212"]
["pp3_bl4_6_15_name",{"$f":"'T2-B(PP3)'!$B$213","v":0},"#'T2-B(PP3)'!$B$213"]
["pp3_bl4_6_15_rate_in",{"$f":"'T2-B(PP3)'!$E$213","v":0},"#'T2-B(PP3)'!$E$213"]
["pp3_bl4_6_15_rate_out",{"$f":"'T2-B(PP3)'!$H$213","v":0},"#'T2-B(PP3)'!$H$213"]
["pp3_bl4_6_15_total",{"$f":"'T2-B(PP3)'!$J$213","v":0},"#'T2-B(PP3)'!$J$213"]
["pp3_bl4_6_15_total_in",{"$f":"'T2-B(PP3)'!$F$213","v":0},"#'T2-B(PP3)'!$F$213"]
["pp3_bl4_6_15_total_out",{"$f":"'T2-B(PP3)'!$I$213","v":0},"#'T2-B(PP3)'!$I$213"]
["pp3_bl4_6_15_unit",{"$f":"'T2-B(PP3)'!$C$213","v":0},"#'T2-B(PP3)'!$C$213"]
["pp3_bl4_6_15_unit_in",{"$f":"'T2-B(PP3)'!$D$213","v":0},"#'T2-B(PP3)'!$D$213"]
["pp3_bl4_6_15_units_out",{"$f":"'T2-B(PP3)'!$G$213","v":0},"#'T2-B(PP3)'!$G$213"]
["pp3_bl4_6_16_name",{"$f":"'T2-B(PP3)'!$B$214","v":0},"#'T2-B(PP3)'!$B$214"]
["pp3_bl4_6_16_rate_in",{"$f":"'T2-B(PP3)'!$E$214","v":0},"#'T2-B(PP3)'!$E$214"]
["pp3_bl4_6_16_rate_out",{"$f":"'T2-B(PP3)'!$H$214","v":0},"#'T2-B(PP3)'!$H$214"]
["pp3_bl4_6_16_total",{"$f":"'T2-B(PP3)'!$J$214","v":0},"#'T2-B(PP3)'!$J$214"]
["pp3_bl4_6_16_total_in",{"$f":"'T2-B(PP3)'!$F$214","v":0},"#'T2-B(PP3)'!$F$214"]
["pp3_bl4_6_16_total_out",{"$f":"'T2-B(PP3)'!$I$214","v":0},"#'T2-B(PP3)'!$I$214"]
["pp3_bl4_6_16_unit",{"$f":"'T2-B(PP3)'!$C$214","v":0},"#'T2-B(PP3)'!$C$214"]
["pp3_bl4_6_16_unit_in",{"$f":"'T2-B(PP3)'!$D$214","v":0},"#'T2-B(PP3)'!$D$214"]
["pp3_bl4_6_16_units_out",{"$f":"'T2-B(PP3)'!$G$214","v":0},"#'T2-B(PP3)'!$G$214"]
["pp3_bl4_6_17_name",{"$f":"'T2-B(PP3)'!$B$215","v":0},"#'T2-B(PP3)'!$B$215"]
["pp3_bl4_6_17_rate_in",{"$f":"'T2-B(PP3)'!$E$215","v":0},"#'T2-B(PP3)'!$E$215"]
["pp3_bl4_6_17_rate_out",{"$f":"'T2-B(PP3)'!$H$215","v":0},"#'T2-B(PP3)'!$H$215"]
["pp3_bl4_6_17_total",{"$f":"'T2-B(PP3)'!$J$215","v":0},"#'T2-B(PP3)'!$J$215"]
["pp3_bl4_6_17_total_in",{"$f":"'T2-B(PP3)'!$F$215","v":0},"#'T2-B(PP3)'!$F$215"]
["pp3_bl4_6_17_total_out",{"$f":"'T2-B(PP3)'!$I$215","v":0},"#'T2-B(PP3)'!$I$215"]
["pp3_bl4_6_17_unit",{"$f":"'T2-B(PP3)'!$C$215","v":0},"#'T2-B(PP3)'!$C$215"]
["pp3_bl4_6_17_unit_in",{"$f":"'T2-B(PP3)'!$D$215","v":0},"#'T2-B(PP3)'!$D$215"]
["pp3_bl4_6_17_units_out",{"$f":"'T2-B(PP3)'!$G$215","v":0},"#'T2-B(PP3)'!$G$215"]
["pp3_bl4_6_18_name",{"$f":"'T2-B(PP3)'!$B$216","v":0},"#'T2-B(PP3)'!$B$216"]
["pp3_bl4_6_18_rate_in",{"$f":"'T2-B(PP3)'!$E$216","v":0},"#'T2-B(PP3)'!$E$216"]
["pp3_bl4_6_18_rate_out",{"$f":"'T2-B(PP3)'!$H$216","v":0},"#'T2-B(PP3)'!$H$216"]
["pp3_bl4_6_18_total",{"$f":"'T2-B(PP3)'!$J$216","v":0},"#'T2-B(PP3)'!$J$216"]
["pp3_bl4_6_18_total_in",{"$f":"'T2-B(PP3)'!$F$216","v":0},"#'T2-B(PP3)'!$F$216"]
["pp3_bl4_6_18_total_out",{"$f":"'T2-B(PP3)'!$I$216","v":0},"#'T2-B(PP3)'!$I$216"]
["pp3_bl4_6_18_unit",{"$f":"'T2-B(PP3)'!$C$216","v":0},"#'T2-B(PP3)'!$C$216"]
["pp3_bl4_6_18_unit_in",{"$f":"'T2-B(PP3)'!$D$216","v":0},"#'T2-B(PP3)'!$D$216"]
["pp3_bl4_6_18_units_out",{"$f":"'T2-B(PP3)'!$G$216","v":0},"#'T2-B(PP3)'!$G$216"]
["pp3_bl4_6_19_name",{"$f":"'T2-B(PP3)'!$B$217","v":0},"#'T2-B(PP3)'!$B$217"]
["pp3_bl4_6_19_rate_in",{"$f":"'T2-B(PP3)'!$E$217","v":0},"#'T2-B(PP3)'!$E$217"]
["pp3_bl4_6_19_rate_out",{"$f":"'T2-B(PP3)'!$H$217","v":0},"#'T2-B(PP3)'!$H$217"]
["pp3_bl4_6_19_total",{"$f":"'T2-B(PP3)'!$J$217","v":0},"#'T2-B(PP3)'!$J$217"]
["pp3_bl4_6_19_total_in",{"$f":"'T2-B(PP3)'!$F$217","v":0},"#'T2-B(PP3)'!$F$217"]
["pp3_bl4_6_19_total_out",{"$f":"'T2-B(PP3)'!$I$217","v":0},"#'T2-B(PP3)'!$I$217"]
["pp3_bl4_6_19_unit",{"$f":"'T2-B(PP3)'!$C$217","v":0},"#'T2-B(PP3)'!$C$217"]
["pp3_bl4_6_19_unit_in",{"$f":"'T2-B(PP3)'!$D$217","v":0},"#'T2-B(PP3)'!$D$217"]
["pp3_bl4_6_19_units_out",{"$f":"'T2-B(PP3)'!$G$217","v":0},"#'T2-B(PP3)'!$G$217"]
["pp3_bl4_6_2_name",{"$f":"'T2-B(PP3)'!$B$200","v":0},"#'T2-B(PP3)'!$B$200"]
["pp3_bl4_6_2_rate_in",{"$f":"'T2-B(PP3)'!$E$200","v":0},"#'T2-B(PP3)'!$E$200"]
["pp3_bl4_6_2_rate_out",{"$f":"'T2-B(PP3)'!$H$200","v":0},"#'T2-B(PP3)'!$H$200"]
["pp3_bl4_6_2_total",{"$f":"'T2-B(PP3)'!$J$200","v":0},"#'T2-B(PP3)'!$J$200"]
["pp3_bl4_6_2_total_in",{"$f":"'T2-B(PP3)'!$F$200","v":0},"#'T2-B(PP3)'!$F$200"]
["pp3_bl4_6_2_total_out",{"$f":"'T2-B(PP3)'!$I$200","v":0},"#'T2-B(PP3)'!$I$200"]
["pp3_bl4_6_2_unit",{"$f":"'T2-B(PP3)'!$C$200","v":0},"#'T2-B(PP3)'!$C$200"]
["pp3_bl4_6_2_unit_in",{"$f":"'T2-B(PP3)'!$D$200","v":0},"#'T2-B(PP3)'!$D$200"]
["pp3_bl4_6_2_units_out",{"$f":"'T2-B(PP3)'!$G$200","v":0},"#'T2-B(PP3)'!$G$200"]
["pp3_bl4_6_20_name",{"$f":"'T2-B(PP3)'!$B$218","v":0},"#'T2-B(PP3)'!$B$218"]
["pp3_bl4_6_20_rate_in",{"$f":"'T2-B(PP3)'!$E$218","v":0},"#'T2-B(PP3)'!$E$218"]
["pp3_bl4_6_20_rate_out",{"$f":"'T2-B(PP3)'!$H$218","v":0},"#'T2-B(PP3)'!$H$218"]
["pp3_bl4_6_20_total",{"$f":"'T2-B(PP3)'!$J$218","v":0},"#'T2-B(PP3)'!$J$218"]
["pp3_bl4_6_20_total_in",{"$f":"'T2-B(PP3)'!$F$218","v":0},"#'T2-B(PP3)'!$F$218"]
["pp3_bl4_6_20_total_out",{"$f":"'T2-B(PP3)'!$I$218","v":0},"#'T2-B(PP3)'!$I$218"]
["pp3_bl4_6_20_unit",{"$f":"'T2-B(PP3)'!$C$218","v":0},"#'T2-B(PP3)'!$C$218"]
["pp3_bl4_6_20_unit_in",{"$f":"'T2-B(PP3)'!$D$218","v":0},"#'T2-B(PP3)'!$D$218"]
["pp3_bl4_6_20_units_out",{"$f":"'T2-B(PP3)'!$G$218","v":0},"#'T2-B(PP3)'!$G$218"]
["pp3_bl4_6_3_name",{"$f":"'T2-B(PP3)'!$B$201","v":0},"#'T2-B(PP3)'!$B$201"]
["pp3_bl4_6_3_rate_in",{"$f":"'T2-B(PP3)'!$E$201","v":0},"#'T2-B(PP3)'!$E$201"]
["pp3_bl4_6_3_rate_out",{"$f":"'T2-B(PP3)'!$H$201","v":0},"#'T2-B(PP3)'!$H$201"]
["pp3_bl4_6_3_total",{"$f":"'T2-B(PP3)'!$J$201","v":0},"#'T2-B(PP3)'!$J$201"]
["pp3_bl4_6_3_total_in",{"$f":"'T2-B(PP3)'!$F$201","v":0},"#'T2-B(PP3)'!$F$201"]
["pp3_bl4_6_3_total_out",{"$f":"'T2-B(PP3)'!$I$201","v":0},"#'T2-B(PP3)'!$I$201"]
["pp3_bl4_6_3_unit",{"$f":"'T2-B(PP3)'!$C$201","v":0},"#'T2-B(PP3)'!$C$201"]
["pp3_bl4_6_3_unit_in",{"$f":"'T2-B(PP3)'!$D$201","v":0},"#'T2-B(PP3)'!$D$201"]
["pp3_bl4_6_3_units_out",{"$f":"'T2-B(PP3)'!$G$201","v":0},"#'T2-B(PP3)'!$G$201"]
["pp3_bl4_6_4_name",{"$f":"'T2-B(PP3)'!$B$202","v":0},"#'T2-B(PP3)'!$B$202"]
["pp3_bl4_6_4_rate_in",{"$f":"'T2-B(PP3)'!$E$202","v":0},"#'T2-B(PP3)'!$E$202"]
["pp3_bl4_6_4_rate_out",{"$f":"'T2-B(PP3)'!$H$202","v":0},"#'T2-B(PP3)'!$H$202"]
["pp3_bl4_6_4_total",{"$f":"'T2-B(PP3)'!$J$202","v":0},"#'T2-B(PP3)'!$J$202"]
["pp3_bl4_6_4_total_in",{"$f":"'T2-B(PP3)'!$F$202","v":0},"#'T2-B(PP3)'!$F$202"]
["pp3_bl4_6_4_total_out",{"$f":"'T2-B(PP3)'!$I$202","v":0},"#'T2-B(PP3)'!$I$202"]
["pp3_bl4_6_4_unit",{"$f":"'T2-B(PP3)'!$C$202","v":0},"#'T2-B(PP3)'!$C$202"]
["pp3_bl4_6_4_unit_in",{"$f":"'T2-B(PP3)'!$D$202","v":0},"#'T2-B(PP3)'!$D$202"]
["pp3_bl4_6_4_units_out",{"$f":"'T2-B(PP3)'!$G$202","v":0},"#'T2-B(PP3)'!$G$202"]
["pp3_bl4_6_5_name",{"$f":"'T2-B(PP3)'!$B$203","v":0},"#'T2-B(PP3)'!$B$203"]
["pp3_bl4_6_5_rate_in",{"$f":"'T2-B(PP3)'!$E$203","v":0},"#'T2-B(PP3)'!$E$203"]
["pp3_bl4_6_5_rate_out",{"$f":"'T2-B(PP3)'!$H$203","v":0},"#'T2-B(PP3)'!$H$203"]
["pp3_bl4_6_5_total",{"$f":"'T2-B(PP3)'!$J$203","v":0},"#'T2-B(PP3)'!$J$203"]
["pp3_bl4_6_5_total_in",{"$f":"'T2-B(PP3)'!$F$203","v":0},"#'T2-B(PP3)'!$F$203"]
["pp3_bl4_6_5_total_out",{"$f":"'T2-B(PP3)'!$I$203","v":0},"#'T2-B(PP3)'!$I$203"]
["pp3_bl4_6_5_unit",{"$f":"'T2-B(PP3)'!$C$203","v":0},"#'T2-B(PP3)'!$C$203"]
["pp3_bl4_6_5_unit_in",{"$f":"'T2-B(PP3)'!$D$203","v":0},"#'T2-B(PP3)'!$D$203"]
["pp3_bl4_6_5_units_out",{"$f":"'T2-B(PP3)'!$G$203","v":0},"#'T2-B(PP3)'!$G$203"]
["pp3_bl4_6_6_name",{"$f":"'T2-B(PP3)'!$B$204","v":0},"#'T2-B(PP3)'!$B$204"]
["pp3_bl4_6_6_rate_in",{"$f":"'T2-B(PP3)'!$E$204","v":0},"#'T2-B(PP3)'!$E$204"]
["pp3_bl4_6_6_rate_out",{"$f":"'T2-B(PP3)'!$H$204","v":0},"#'T2-B(PP3)'!$H$204"]
["pp3_bl4_6_6_total",{"$f":"'T2-B(PP3)'!$J$204","v":0},"#'T2-B(PP3)'!$J$204"]
["pp3_bl4_6_6_total_in",{"$f":"'T2-B(PP3)'!$F$204","v":0},"#'T2-B(PP3)'!$F$204"]
["pp3_bl4_6_6_total_out",{"$f":"'T2-B(PP3)'!$I$204","v":0},"#'T2-B(PP3)'!$I$204"]
["pp3_bl4_6_6_unit",{"$f":"'T2-B(PP3)'!$C$204","v":0},"#'T2-B(PP3)'!$C$204"]
["pp3_bl4_6_6_unit_in",{"$f":"'T2-B(PP3)'!$D$204","v":0},"#'T2-B(PP3)'!$D$204"]
["pp3_bl4_6_6_units_out",{"$f":"'T2-B(PP3)'!$G$204","v":0},"#'T2-B(PP3)'!$G$204"]
["pp3_bl4_6_7_name",{"$f":"'T2-B(PP3)'!$B$205","v":0},"#'T2-B(PP3)'!$B$205"]
["pp3_bl4_6_7_rate_in",{"$f":"'T2-B(PP3)'!$E$205","v":0},"#'T2-B(PP3)'!$E$205"]
["pp3_bl4_6_7_rate_out",{"$f":"'T2-B(PP3)'!$H$205","v":0},"#'T2-B(PP3)'!$H$205"]
["pp3_bl4_6_7_total",{"$f":"'T2-B(PP3)'!$J$205","v":0},"#'T2-B(PP3)'!$J$205"]
["pp3_bl4_6_7_total_in",{"$f":"'T2-B(PP3)'!$F$205","v":0},"#'T2-B(PP3)'!$F$205"]
["pp3_bl4_6_7_total_out",{"$f":"'T2-B(PP3)'!$I$205","v":0},"#'T2-B(PP3)'!$I$205"]
["pp3_bl4_6_7_unit",{"$f":"'T2-B(PP3)'!$C$205","v":0},"#'T2-B(PP3)'!$C$205"]
["pp3_bl4_6_7_unit_in",{"$f":"'T2-B(PP3)'!$D$205","v":0},"#'T2-B(PP3)'!$D$205"]
["pp3_bl4_6_7_units_out",{"$f":"'T2-B(PP3)'!$G$205","v":0},"#'T2-B(PP3)'!$G$205"]
["pp3_bl4_6_8_name",{"$f":"'T2-B(PP3)'!$B$206","v":0},"#'T2-B(PP3)'!$B$206"]
["pp3_bl4_6_8_rate_in",{"$f":"'T2-B(PP3)'!$E$206","v":0},"#'T2-B(PP3)'!$E$206"]
["pp3_bl4_6_8_rate_out",{"$f":"'T2-B(PP3)'!$H$206","v":0},"#'T2-B(PP3)'!$H$206"]
["pp3_bl4_6_8_total",{"$f":"'T2-B(PP3)'!$J$206","v":0},"#'T2-B(PP3)'!$J$206"]
["pp3_bl4_6_8_total_in",{"$f":"'T2-B(PP3)'!$F$206","v":0},"#'T2-B(PP3)'!$F$206"]
["pp3_bl4_6_8_total_out",{"$f":"'T2-B(PP3)'!$I$206","v":0},"#'T2-B(PP3)'!$I$206"]
["pp3_bl4_6_8_unit",{"$f":"'T2-B(PP3)'!$C$206","v":0},"#'T2-B(PP3)'!$C$206"]
["pp3_bl4_6_8_unit_in",{"$f":"'T2-B(PP3)'!$D$206","v":0},"#'T2-B(PP3)'!$D$206"]
["pp3_bl4_6_8_units_out",{"$f":"'T2-B(PP3)'!$G$206","v":0},"#'T2-B(PP3)'!$G$206"]
["pp3_bl4_6_9_name",{"$f":"'T2-B(PP3)'!$B$207","v":0},"#'T2-B(PP3)'!$B$207"]
["pp3_bl4_6_9_rate_in",{"$f":"'T2-B(PP3)'!$E$207","v":0},"#'T2-B(PP3)'!$E$207"]
["pp3_bl4_6_9_rate_out",{"$f":"'T2-B(PP3)'!$H$207","v":0},"#'T2-B(PP3)'!$H$207"]
["pp3_bl4_6_9_total",{"$f":"'T2-B(PP3)'!$J$207","v":0},"#'T2-B(PP3)'!$J$207"]
["pp3_bl4_6_9_total_in",{"$f":"'T2-B(PP3)'!$F$207","v":0},"#'T2-B(PP3)'!$F$207"]
["pp3_bl4_6_9_total_out",{"$f":"'T2-B(PP3)'!$I$207","v":0},"#'T2-B(PP3)'!$I$207"]
["pp3_bl4_6_9_unit",{"$f":"'T2-B(PP3)'!$C$207","v":0},"#'T2-B(PP3)'!$C$207"]
["pp3_bl4_6_9_unit_in",{"$f":"'T2-B(PP3)'!$D$207","v":0},"#'T2-B(PP3)'!$D$207"]
["pp3_bl4_6_9_units_out",{"$f":"'T2-B(PP3)'!$G$207","v":0},"#'T2-B(PP3)'!$G$207"]
["pp3_bl4_6_total",{"$f":"'T2-B(PP3)'!$J$198","v":0},"#'T2-B(PP3)'!$J$198"]
["pp3_bl4_6_total_in",{"$f":"'T2-B(PP3)'!$F$198","v":0},"#'T2-B(PP3)'!$F$198"]
["pp3_bl4_6_total_out",{"$f":"'T2-B(PP3)'!$I$198","v":0},"#'T2-B(PP3)'!$I$198"]
["pp3_bl4_7_1_name",{"$f":"'T2-B(PP3)'!$B$220","v":0},"#'T2-B(PP3)'!$B$220"]
["pp3_bl4_7_1_rate_in",{"$f":"'T2-B(PP3)'!$E$220","v":0},"#'T2-B(PP3)'!$E$220"]
["pp3_bl4_7_1_rate_out",{"$f":"'T2-B(PP3)'!$H$220","v":0},"#'T2-B(PP3)'!$H$220"]
["pp3_bl4_7_1_total",{"$f":"'T2-B(PP3)'!$J$220","v":0},"#'T2-B(PP3)'!$J$220"]
["pp3_bl4_7_1_total_in",{"$f":"'T2-B(PP3)'!$F$220","v":0},"#'T2-B(PP3)'!$F$220"]
["pp3_bl4_7_1_total_out",{"$f":"'T2-B(PP3)'!$I$220","v":0},"#'T2-B(PP3)'!$I$220"]
["pp3_bl4_7_1_unit",{"$f":"'T2-B(PP3)'!$C$220","v":0},"#'T2-B(PP3)'!$C$220"]
["pp3_bl4_7_1_unit_in",{"$f":"'T2-B(PP3)'!$D$220","v":0},"#'T2-B(PP3)'!$D$220"]
["pp3_bl4_7_1_units_out",{"$f":"'T2-B(PP3)'!$G$220","v":0},"#'T2-B(PP3)'!$G$220"]
["pp3_bl4_7_10_name",{"$f":"'T2-B(PP3)'!$B$229","v":0},"#'T2-B(PP3)'!$B$229"]
["pp3_bl4_7_10_rate_in",{"$f":"'T2-B(PP3)'!$E$229","v":0},"#'T2-B(PP3)'!$E$229"]
["pp3_bl4_7_10_rate_out",{"$f":"'T2-B(PP3)'!$H$229","v":0},"#'T2-B(PP3)'!$H$229"]
["pp3_bl4_7_10_total",{"$f":"'T2-B(PP3)'!$J$229","v":0},"#'T2-B(PP3)'!$J$229"]
["pp3_bl4_7_10_total_in",{"$f":"'T2-B(PP3)'!$F$229","v":0},"#'T2-B(PP3)'!$F$229"]
["pp3_bl4_7_10_total_out",{"$f":"'T2-B(PP3)'!$I$229","v":0},"#'T2-B(PP3)'!$I$229"]
["pp3_bl4_7_10_unit",{"$f":"'T2-B(PP3)'!$C$229","v":0},"#'T2-B(PP3)'!$C$229"]
["pp3_bl4_7_10_unit_in",{"$f":"'T2-B(PP3)'!$D$229","v":0},"#'T2-B(PP3)'!$D$229"]
["pp3_bl4_7_10_units_out",{"$f":"'T2-B(PP3)'!$G$229","v":0},"#'T2-B(PP3)'!$G$229"]
["pp3_bl4_7_11_name",{"$f":"'T2-B(PP3)'!$B$230","v":0},"#'T2-B(PP3)'!$B$230"]
["pp3_bl4_7_11_rate_in",{"$f":"'T2-B(PP3)'!$E$230","v":0},"#'T2-B(PP3)'!$E$230"]
["pp3_bl4_7_11_rate_out",{"$f":"'T2-B(PP3)'!$H$230","v":0},"#'T2-B(PP3)'!$H$230"]
["pp3_bl4_7_11_total",{"$f":"'T2-B(PP3)'!$J$230","v":0},"#'T2-B(PP3)'!$J$230"]
["pp3_bl4_7_11_total_in",{"$f":"'T2-B(PP3)'!$F$230","v":0},"#'T2-B(PP3)'!$F$230"]
["pp3_bl4_7_11_total_out",{"$f":"'T2-B(PP3)'!$I$230","v":0},"#'T2-B(PP3)'!$I$230"]
["pp3_bl4_7_11_unit",{"$f":"'T2-B(PP3)'!$C$230","v":0},"#'T2-B(PP3)'!$C$230"]
["pp3_bl4_7_11_unit_in",{"$f":"'T2-B(PP3)'!$D$230","v":0},"#'T2-B(PP3)'!$D$230"]
["pp3_bl4_7_11_units_out",{"$f":"'T2-B(PP3)'!$G$230","v":0},"#'T2-B(PP3)'!$G$230"]
["pp3_bl4_7_12_name",{"$f":"'T2-B(PP3)'!$B$231","v":0},"#'T2-B(PP3)'!$B$231"]
["pp3_bl4_7_12_rate_in",{"$f":"'T2-B(PP3)'!$E$231","v":0},"#'T2-B(PP3)'!$E$231"]
["pp3_bl4_7_12_rate_out",{"$f":"'T2-B(PP3)'!$H$231","v":0},"#'T2-B(PP3)'!$H$231"]
["pp3_bl4_7_12_total",{"$f":"'T2-B(PP3)'!$J$231","v":0},"#'T2-B(PP3)'!$J$231"]
["pp3_bl4_7_12_total_in",{"$f":"'T2-B(PP3)'!$F$231","v":0},"#'T2-B(PP3)'!$F$231"]
["pp3_bl4_7_12_total_out",{"$f":"'T2-B(PP3)'!$I$231","v":0},"#'T2-B(PP3)'!$I$231"]
["pp3_bl4_7_12_unit",{"$f":"'T2-B(PP3)'!$C$231","v":0},"#'T2-B(PP3)'!$C$231"]
["pp3_bl4_7_12_unit_in",{"$f":"'T2-B(PP3)'!$D$231","v":0},"#'T2-B(PP3)'!$D$231"]
["pp3_bl4_7_12_units_out",{"$f":"'T2-B(PP3)'!$G$231","v":0},"#'T2-B(PP3)'!$G$231"]
["pp3_bl4_7_13_name",{"$f":"'T2-B(PP3)'!$B$232","v":0},"#'T2-B(PP3)'!$B$232"]
["pp3_bl4_7_13_rate_in",{"$f":"'T2-B(PP3)'!$E$232","v":0},"#'T2-B(PP3)'!$E$232"]
["pp3_bl4_7_13_rate_out",{"$f":"'T2-B(PP3)'!$H$232","v":0},"#'T2-B(PP3)'!$H$232"]
["pp3_bl4_7_13_total",{"$f":"'T2-B(PP3)'!$J$232","v":0},"#'T2-B(PP3)'!$J$232"]
["pp3_bl4_7_13_total_in",{"$f":"'T2-B(PP3)'!$F$232","v":0},"#'T2-B(PP3)'!$F$232"]
["pp3_bl4_7_13_total_out",{"$f":"'T2-B(PP3)'!$I$232","v":0},"#'T2-B(PP3)'!$I$232"]
["pp3_bl4_7_13_unit",{"$f":"'T2-B(PP3)'!$C$232","v":0},"#'T2-B(PP3)'!$C$232"]
["pp3_bl4_7_13_unit_in",{"$f":"'T2-B(PP3)'!$D$232","v":0},"#'T2-B(PP3)'!$D$232"]
["pp3_bl4_7_13_units_out",{"$f":"'T2-B(PP3)'!$G$232","v":0},"#'T2-B(PP3)'!$G$232"]
["pp3_bl4_7_14_name",{"$f":"'T2-B(PP3)'!$B$233","v":0},"#'T2-B(PP3)'!$B$233"]
["pp3_bl4_7_14_rate_in",{"$f":"'T2-B(PP3)'!$E$233","v":0},"#'T2-B(PP3)'!$E$233"]
["pp3_bl4_7_14_rate_out",{"$f":"'T2-B(PP3)'!$H$233","v":0},"#'T2-B(PP3)'!$H$233"]
["pp3_bl4_7_14_total",{"$f":"'T2-B(PP3)'!$J$233","v":0},"#'T2-B(PP3)'!$J$233"]
["pp3_bl4_7_14_total_in",{"$f":"'T2-B(PP3)'!$F$233","v":0},"#'T2-B(PP3)'!$F$233"]
["pp3_bl4_7_14_total_out",{"$f":"'T2-B(PP3)'!$I$233","v":0},"#'T2-B(PP3)'!$I$233"]
["pp3_bl4_7_14_unit",{"$f":"'T2-B(PP3)'!$C$233","v":0},"#'T2-B(PP3)'!$C$233"]
["pp3_bl4_7_14_unit_in",{"$f":"'T2-B(PP3)'!$D$233","v":0},"#'T2-B(PP3)'!$D$233"]
["pp3_bl4_7_14_units_out",{"$f":"'T2-B(PP3)'!$G$233","v":0},"#'T2-B(PP3)'!$G$233"]
["pp3_bl4_7_15_name",{"$f":"'T2-B(PP3)'!$B$234","v":0},"#'T2-B(PP3)'!$B$234"]
["pp3_bl4_7_15_rate_in",{"$f":"'T2-B(PP3)'!$E$234","v":0},"#'T2-B(PP3)'!$E$234"]
["pp3_bl4_7_15_rate_out",{"$f":"'T2-B(PP3)'!$H$234","v":0},"#'T2-B(PP3)'!$H$234"]
["pp3_bl4_7_15_total",{"$f":"'T2-B(PP3)'!$J$234","v":0},"#'T2-B(PP3)'!$J$234"]
["pp3_bl4_7_15_total_in",{"$f":"'T2-B(PP3)'!$F$234","v":0},"#'T2-B(PP3)'!$F$234"]
["pp3_bl4_7_15_total_out",{"$f":"'T2-B(PP3)'!$I$234","v":0},"#'T2-B(PP3)'!$I$234"]
["pp3_bl4_7_15_unit",{"$f":"'T2-B(PP3)'!$C$234","v":0},"#'T2-B(PP3)'!$C$234"]
["pp3_bl4_7_15_unit_in",{"$f":"'T2-B(PP3)'!$D$234","v":0},"#'T2-B(PP3)'!$D$234"]
["pp3_bl4_7_15_units_out",{"$f":"'T2-B(PP3)'!$G$234","v":0},"#'T2-B(PP3)'!$G$234"]
["pp3_bl4_7_16_name",{"$f":"'T2-B(PP3)'!$B$235","v":0},"#'T2-B(PP3)'!$B$235"]
["pp3_bl4_7_16_rate_in",{"$f":"'T2-B(PP3)'!$E$235","v":0},"#'T2-B(PP3)'!$E$235"]
["pp3_bl4_7_16_rate_out",{"$f":"'T2-B(PP3)'!$H$235","v":0},"#'T2-B(PP3)'!$H$235"]
["pp3_bl4_7_16_total",{"$f":"'T2-B(PP3)'!$J$235","v":0},"#'T2-B(PP3)'!$J$235"]
["pp3_bl4_7_16_total_in",{"$f":"'T2-B(PP3)'!$F$235","v":0},"#'T2-B(PP3)'!$F$235"]
["pp3_bl4_7_16_total_out",{"$f":"'T2-B(PP3)'!$I$235","v":0},"#'T2-B(PP3)'!$I$235"]
["pp3_bl4_7_16_unit",{"$f":"'T2-B(PP3)'!$C$235","v":0},"#'T2-B(PP3)'!$C$235"]
["pp3_bl4_7_16_unit_in",{"$f":"'T2-B(PP3)'!$D$235","v":0},"#'T2-B(PP3)'!$D$235"]
["pp3_bl4_7_16_units_out",{"$f":"'T2-B(PP3)'!$G$235","v":0},"#'T2-B(PP3)'!$G$235"]
["pp3_bl4_7_17_name",{"$f":"'T2-B(PP3)'!$B$236","v":0},"#'T2-B(PP3)'!$B$236"]
["pp3_bl4_7_17_rate_in",{"$f":"'T2-B(PP3)'!$E$236","v":0},"#'T2-B(PP3)'!$E$236"]
["pp3_bl4_7_17_rate_out",{"$f":"'T2-B(PP3)'!$H$236","v":0},"#'T2-B(PP3)'!$H$236"]
["pp3_bl4_7_17_total",{"$f":"'T2-B(PP3)'!$J$236","v":0},"#'T2-B(PP3)'!$J$236"]
["pp3_bl4_7_17_total_in",{"$f":"'T2-B(PP3)'!$F$236","v":0},"#'T2-B(PP3)'!$F$236"]
["pp3_bl4_7_17_total_out",{"$f":"'T2-B(PP3)'!$I$236","v":0},"#'T2-B(PP3)'!$I$236"]
["pp3_bl4_7_17_unit",{"$f":"'T2-B(PP3)'!$C$236","v":0},"#'T2-B(PP3)'!$C$236"]
["pp3_bl4_7_17_unit_in",{"$f":"'T2-B(PP3)'!$D$236","v":0},"#'T2-B(PP3)'!$D$236"]
["pp3_bl4_7_17_units_out",{"$f":"'T2-B(PP3)'!$G$236","v":0},"#'T2-B(PP3)'!$G$236"]
["pp3_bl4_7_18_name",{"$f":"'T2-B(PP3)'!$B$237","v":0},"#'T2-B(PP3)'!$B$237"]
["pp3_bl4_7_18_rate_in",{"$f":"'T2-B(PP3)'!$E$237","v":0},"#'T2-B(PP3)'!$E$237"]
["pp3_bl4_7_18_rate_out",{"$f":"'T2-B(PP3)'!$H$237","v":0},"#'T2-B(PP3)'!$H$237"]
["pp3_bl4_7_18_total",{"$f":"'T2-B(PP3)'!$J$237","v":0},"#'T2-B(PP3)'!$J$237"]
["pp3_bl4_7_18_total_in",{"$f":"'T2-B(PP3)'!$F$237","v":0},"#'T2-B(PP3)'!$F$237"]
["pp3_bl4_7_18_total_out",{"$f":"'T2-B(PP3)'!$I$237","v":0},"#'T2-B(PP3)'!$I$237"]
["pp3_bl4_7_18_unit",{"$f":"'T2-B(PP3)'!$C$237","v":0},"#'T2-B(PP3)'!$C$237"]
["pp3_bl4_7_18_unit_in",{"$f":"'T2-B(PP3)'!$D$237","v":0},"#'T2-B(PP3)'!$D$237"]
["pp3_bl4_7_18_units_out",{"$f":"'T2-B(PP3)'!$G$237","v":0},"#'T2-B(PP3)'!$G$237"]
["pp3_bl4_7_19_name",{"$f":"'T2-B(PP3)'!$B$238","v":0},"#'T2-B(PP3)'!$B$238"]
["pp3_bl4_7_19_rate_in",{"$f":"'T2-B(PP3)'!$E$238","v":0},"#'T2-B(PP3)'!$E$238"]
["pp3_bl4_7_19_rate_out",{"$f":"'T2-B(PP3)'!$H$238","v":0},"#'T2-B(PP3)'!$H$238"]
["pp3_bl4_7_19_total",{"$f":"'T2-B(PP3)'!$J$238","v":0},"#'T2-B(PP3)'!$J$238"]
["pp3_bl4_7_19_total_in",{"$f":"'T2-B(PP3)'!$F$238","v":0},"#'T2-B(PP3)'!$F$238"]
["pp3_bl4_7_19_total_out",{"$f":"'T2-B(PP3)'!$I$238","v":0},"#'T2-B(PP3)'!$I$238"]
["pp3_bl4_7_19_unit",{"$f":"'T2-B(PP3)'!$C$238","v":0},"#'T2-B(PP3)'!$C$238"]
["pp3_bl4_7_19_unit_in",{"$f":"'T2-B(PP3)'!$D$238","v":0},"#'T2-B(PP3)'!$D$238"]
["pp3_bl4_7_19_units_out",{"$f":"'T2-B(PP3)'!$G$238","v":0},"#'T2-B(PP3)'!$G$238"]
["pp3_bl4_7_2_name",{"$f":"'T2-B(PP3)'!$B$221","v":0},"#'T2-B(PP3)'!$B$221"]
["pp3_bl4_7_2_rate_in",{"$f":"'T2-B(PP3)'!$E$221","v":0},"#'T2-B(PP3)'!$E$221"]
["pp3_bl4_7_2_rate_out",{"$f":"'T2-B(PP3)'!$H$221","v":0},"#'T2-B(PP3)'!$H$221"]
["pp3_bl4_7_2_total",{"$f":"'T2-B(PP3)'!$J$221","v":0},"#'T2-B(PP3)'!$J$221"]
["pp3_bl4_7_2_total_in",{"$f":"'T2-B(PP3)'!$F$221","v":0},"#'T2-B(PP3)'!$F$221"]
["pp3_bl4_7_2_total_out",{"$f":"'T2-B(PP3)'!$I$221","v":0},"#'T2-B(PP3)'!$I$221"]
["pp3_bl4_7_2_unit",{"$f":"'T2-B(PP3)'!$C$221","v":0},"#'T2-B(PP3)'!$C$221"]
["pp3_bl4_7_2_unit_in",{"$f":"'T2-B(PP3)'!$D$221","v":0},"#'T2-B(PP3)'!$D$221"]
["pp3_bl4_7_2_units_out",{"$f":"'T2-B(PP3)'!$G$221","v":0},"#'T2-B(PP3)'!$G$221"]
["pp3_bl4_7_20_name",{"$f":"'T2-B(PP3)'!$B$239","v":0},"#'T2-B(PP3)'!$B$239"]
["pp3_bl4_7_20_rate_in",{"$f":"'T2-B(PP3)'!$E$239","v":0},"#'T2-B(PP3)'!$E$239"]
["pp3_bl4_7_20_rate_out",{"$f":"'T2-B(PP3)'!$H$239","v":0},"#'T2-B(PP3)'!$H$239"]
["pp3_bl4_7_20_total",{"$f":"'T2-B(PP3)'!$J$239","v":0},"#'T2-B(PP3)'!$J$239"]
["pp3_bl4_7_20_total_in",{"$f":"'T2-B(PP3)'!$F$239","v":0},"#'T2-B(PP3)'!$F$239"]
["pp3_bl4_7_20_total_out",{"$f":"'T2-B(PP3)'!$I$239","v":0},"#'T2-B(PP3)'!$I$239"]
["pp3_bl4_7_20_unit",{"$f":"'T2-B(PP3)'!$C$239","v":0},"#'T2-B(PP3)'!$C$239"]
["pp3_bl4_7_20_unit_in",{"$f":"'T2-B(PP3)'!$D$239","v":0},"#'T2-B(PP3)'!$D$239"]
["pp3_bl4_7_20_units_out",{"$f":"'T2-B(PP3)'!$G$239","v":0},"#'T2-B(PP3)'!$G$239"]
["pp3_bl4_7_3_name",{"$f":"'T2-B(PP3)'!$B$222","v":0},"#'T2-B(PP3)'!$B$222"]
["pp3_bl4_7_3_rate_in",{"$f":"'T2-B(PP3)'!$E$222","v":0},"#'T2-B(PP3)'!$E$222"]
["pp3_bl4_7_3_rate_out",{"$f":"'T2-B(PP3)'!$H$222","v":0},"#'T2-B(PP3)'!$H$222"]
["pp3_bl4_7_3_total",{"$f":"'T2-B(PP3)'!$J$222","v":0},"#'T2-B(PP3)'!$J$222"]
["pp3_bl4_7_3_total_in",{"$f":"'T2-B(PP3)'!$F$222","v":0},"#'T2-B(PP3)'!$F$222"]
["pp3_bl4_7_3_total_out",{"$f":"'T2-B(PP3)'!$I$222","v":0},"#'T2-B(PP3)'!$I$222"]
["pp3_bl4_7_3_unit",{"$f":"'T2-B(PP3)'!$C$222","v":0},"#'T2-B(PP3)'!$C$222"]
["pp3_bl4_7_3_unit_in",{"$f":"'T2-B(PP3)'!$D$222","v":0},"#'T2-B(PP3)'!$D$222"]
["pp3_bl4_7_3_units_out",{"$f":"'T2-B(PP3)'!$G$222","v":0},"#'T2-B(PP3)'!$G$222"]
["pp3_bl4_7_4_name",{"$f":"'T2-B(PP3)'!$B$223","v":0},"#'T2-B(PP3)'!$B$223"]
["pp3_bl4_7_4_rate_in",{"$f":"'T2-B(PP3)'!$E$223","v":0},"#'T2-B(PP3)'!$E$223"]
["pp3_bl4_7_4_rate_out",{"$f":"'T2-B(PP3)'!$H$223","v":0},"#'T2-B(PP3)'!$H$223"]
["pp3_bl4_7_4_total",{"$f":"'T2-B(PP3)'!$J$223","v":0},"#'T2-B(PP3)'!$J$223"]
["pp3_bl4_7_4_total_in",{"$f":"'T2-B(PP3)'!$F$223","v":0},"#'T2-B(PP3)'!$F$223"]
["pp3_bl4_7_4_total_out",{"$f":"'T2-B(PP3)'!$I$223","v":0},"#'T2-B(PP3)'!$I$223"]
["pp3_bl4_7_4_unit",{"$f":"'T2-B(PP3)'!$C$223","v":0},"#'T2-B(PP3)'!$C$223"]
["pp3_bl4_7_4_unit_in",{"$f":"'T2-B(PP3)'!$D$223","v":0},"#'T2-B(PP3)'!$D$223"]
["pp3_bl4_7_4_units_out",{"$f":"'T2-B(PP3)'!$G$223","v":0},"#'T2-B(PP3)'!$G$223"]
["pp3_bl4_7_5_name",{"$f":"'T2-B(PP3)'!$B$224","v":0},"#'T2-B(PP3)'!$B$224"]
["pp3_bl4_7_5_rate_in",{"$f":"'T2-B(PP3)'!$E$224","v":0},"#'T2-B(PP3)'!$E$224"]
["pp3_bl4_7_5_rate_out",{"$f":"'T2-B(PP3)'!$H$224","v":0},"#'T2-B(PP3)'!$H$224"]
["pp3_bl4_7_5_total",{"$f":"'T2-B(PP3)'!$J$224","v":0},"#'T2-B(PP3)'!$J$224"]
["pp3_bl4_7_5_total_in",{"$f":"'T2-B(PP3)'!$F$224","v":0},"#'T2-B(PP3)'!$F$224"]
["pp3_bl4_7_5_total_out",{"$f":"'T2-B(PP3)'!$I$224","v":0},"#'T2-B(PP3)'!$I$224"]
["pp3_bl4_7_5_unit",{"$f":"'T2-B(PP3)'!$C$224","v":0},"#'T2-B(PP3)'!$C$224"]
["pp3_bl4_7_5_unit_in",{"$f":"'T2-B(PP3)'!$D$224","v":0},"#'T2-B(PP3)'!$D$224"]
["pp3_bl4_7_5_units_out",{"$f":"'T2-B(PP3)'!$G$224","v":0},"#'T2-B(PP3)'!$G$224"]
["pp3_bl4_7_6_name",{"$f":"'T2-B(PP3)'!$B$225","v":0},"#'T2-B(PP3)'!$B$225"]
["pp3_bl4_7_6_rate_in",{"$f":"'T2-B(PP3)'!$E$225","v":0},"#'T2-B(PP3)'!$E$225"]
["pp3_bl4_7_6_rate_out",{"$f":"'T2-B(PP3)'!$H$225","v":0},"#'T2-B(PP3)'!$H$225"]
["pp3_bl4_7_6_total",{"$f":"'T2-B(PP3)'!$J$225","v":0},"#'T2-B(PP3)'!$J$225"]
["pp3_bl4_7_6_total_in",{"$f":"'T2-B(PP3)'!$F$225","v":0},"#'T2-B(PP3)'!$F$225"]
["pp3_bl4_7_6_total_out",{"$f":"'T2-B(PP3)'!$I$225","v":0},"#'T2-B(PP3)'!$I$225"]
["pp3_bl4_7_6_unit",{"$f":"'T2-B(PP3)'!$C$225","v":0},"#'T2-B(PP3)'!$C$225"]
["pp3_bl4_7_6_unit_in",{"$f":"'T2-B(PP3)'!$D$225","v":0},"#'T2-B(PP3)'!$D$225"]
["pp3_bl4_7_6_units_out",{"$f":"'T2-B(PP3)'!$G$225","v":0},"#'T2-B(PP3)'!$G$225"]
["pp3_bl4_7_7_name",{"$f":"'T2-B(PP3)'!$B$226","v":0},"#'T2-B(PP3)'!$B$226"]
["pp3_bl4_7_7_rate_in",{"$f":"'T2-B(PP3)'!$E$226","v":0},"#'T2-B(PP3)'!$E$226"]
["pp3_bl4_7_7_rate_out",{"$f":"'T2-B(PP3)'!$H$226","v":0},"#'T2-B(PP3)'!$H$226"]
["pp3_bl4_7_7_total",{"$f":"'T2-B(PP3)'!$J$226","v":0},"#'T2-B(PP3)'!$J$226"]
["pp3_bl4_7_7_total_in",{"$f":"'T2-B(PP3)'!$F$226","v":0},"#'T2-B(PP3)'!$F$226"]
["pp3_bl4_7_7_total_out",{"$f":"'T2-B(PP3)'!$I$226","v":0},"#'T2-B(PP3)'!$I$226"]
["pp3_bl4_7_7_unit",{"$f":"'T2-B(PP3)'!$C$226","v":0},"#'T2-B(PP3)'!$C$226"]
["pp3_bl4_7_7_unit_in",{"$f":"'T2-B(PP3)'!$D$226","v":0},"#'T2-B(PP3)'!$D$226"]
["pp3_bl4_7_7_units_out",{"$f":"'T2-B(PP3)'!$G$226","v":0},"#'T2-B(PP3)'!$G$226"]
["pp3_bl4_7_8_name",{"$f":"'T2-B(PP3)'!$B$227","v":0},"#'T2-B(PP3)'!$B$227"]
["pp3_bl4_7_8_rate_in",{"$f":"'T2-B(PP3)'!$E$227","v":0},"#'T2-B(PP3)'!$E$227"]
["pp3_bl4_7_8_rate_out",{"$f":"'T2-B(PP3)'!$H$227","v":0},"#'T2-B(PP3)'!$H$227"]
["pp3_bl4_7_8_total",{"$f":"'T2-B(PP3)'!$J$227","v":0},"#'T2-B(PP3)'!$J$227"]
["pp3_bl4_7_8_total_in",{"$f":"'T2-B(PP3)'!$F$227","v":0},"#'T2-B(PP3)'!$F$227"]
["pp3_bl4_7_8_total_out",{"$f":"'T2-B(PP3)'!$I$227","v":0},"#'T2-B(PP3)'!$I$227"]
["pp3_bl4_7_8_unit",{"$f":"'T2-B(PP3)'!$C$227","v":0},"#'T2-B(PP3)'!$C$227"]
["pp3_bl4_7_8_unit_in",{"$f":"'T2-B(PP3)'!$D$227","v":0},"#'T2-B(PP3)'!$D$227"]
["pp3_bl4_7_8_units_out",{"$f":"'T2-B(PP3)'!$G$227","v":0},"#'T2-B(PP3)'!$G$227"]
["pp3_bl4_7_9_name",{"$f":"'T2-B(PP3)'!$B$228","v":0},"#'T2-B(PP3)'!$B$228"]
["pp3_bl4_7_9_rate_in",{"$f":"'T2-B(PP3)'!$E$228","v":0},"#'T2-B(PP3)'!$E$228"]
["pp3_bl4_7_9_rate_out",{"$f":"'T2-B(PP3)'!$H$228","v":0},"#'T2-B(PP3)'!$H$228"]
["pp3_bl4_7_9_total",{"$f":"'T2-B(PP3)'!$J$228","v":0},"#'T2-B(PP3)'!$J$228"]
["pp3_bl4_7_9_total_in",{"$f":"'T2-B(PP3)'!$F$228","v":0},"#'T2-B(PP3)'!$F$228"]
["pp3_bl4_7_9_total_out",{"$f":"'T2-B(PP3)'!$I$228","v":0},"#'T2-B(PP3)'!$I$228"]
["pp3_bl4_7_9_unit",{"$f":"'T2-B(PP3)'!$C$228","v":0},"#'T2-B(PP3)'!$C$228"]
["pp3_bl4_7_9_unit_in",{"$f":"'T2-B(PP3)'!$D$228","v":0},"#'T2-B(PP3)'!$D$228"]
["pp3_bl4_7_9_units_out",{"$f":"'T2-B(PP3)'!$G$228","v":0},"#'T2-B(PP3)'!$G$228"]
["pp3_bl4_7_total",{"$f":"'T2-B(PP3)'!$J$219","v":0},"#'T2-B(PP3)'!$J$219"]
["pp3_bl4_7_total_in",{"$f":"'T2-B(PP3)'!$F$219","v":0},"#'T2-B(PP3)'!$F$219"]
["pp3_bl4_7_total_out",{"$f":"'T2-B(PP3)'!$I$219","v":0},"#'T2-B(PP3)'!$I$219"]
["pp3_bl4_8_1_name",{"$f":"'T2-B(PP3)'!$B$241","v":0},"#'T2-B(PP3)'!$B$241"]
["pp3_bl4_8_1_rate_in",{"$f":"'T2-B(PP3)'!$E$241","v":0},"#'T2-B(PP3)'!$E$241"]
["pp3_bl4_8_1_rate_out",{"$f":"'T2-B(PP3)'!$H$241","v":0},"#'T2-B(PP3)'!$H$241"]
["pp3_bl4_8_1_total",{"$f":"'T2-B(PP3)'!$J$241","v":0},"#'T2-B(PP3)'!$J$241"]
["pp3_bl4_8_1_total_in",{"$f":"'T2-B(PP3)'!$F$241","v":0},"#'T2-B(PP3)'!$F$241"]
["pp3_bl4_8_1_total_out",{"$f":"'T2-B(PP3)'!$I$241","v":0},"#'T2-B(PP3)'!$I$241"]
["pp3_bl4_8_1_unit",{"$f":"'T2-B(PP3)'!$C$241","v":0},"#'T2-B(PP3)'!$C$241"]
["pp3_bl4_8_1_unit_in",{"$f":"'T2-B(PP3)'!$D$241","v":0},"#'T2-B(PP3)'!$D$241"]
["pp3_bl4_8_1_units_out",{"$f":"'T2-B(PP3)'!$G$241","v":0},"#'T2-B(PP3)'!$G$241"]
["pp3_bl4_8_10_name",{"$f":"'T2-B(PP3)'!$B$250","v":0},"#'T2-B(PP3)'!$B$250"]
["pp3_bl4_8_10_rate_in",{"$f":"'T2-B(PP3)'!$E$250","v":0},"#'T2-B(PP3)'!$E$250"]
["pp3_bl4_8_10_rate_out",{"$f":"'T2-B(PP3)'!$H$250","v":0},"#'T2-B(PP3)'!$H$250"]
["pp3_bl4_8_10_total",{"$f":"'T2-B(PP3)'!$J$250","v":0},"#'T2-B(PP3)'!$J$250"]
["pp3_bl4_8_10_total_in",{"$f":"'T2-B(PP3)'!$F$250","v":0},"#'T2-B(PP3)'!$F$250"]
["pp3_bl4_8_10_total_out",{"$f":"'T2-B(PP3)'!$I$250","v":0},"#'T2-B(PP3)'!$I$250"]
["pp3_bl4_8_10_unit",{"$f":"'T2-B(PP3)'!$C$250","v":0},"#'T2-B(PP3)'!$C$250"]
["pp3_bl4_8_10_unit_in",{"$f":"'T2-B(PP3)'!$D$250","v":0},"#'T2-B(PP3)'!$D$250"]
["pp3_bl4_8_10_units_out",{"$f":"'T2-B(PP3)'!$G$250","v":0},"#'T2-B(PP3)'!$G$250"]
["pp3_bl4_8_11_name",{"$f":"'T2-B(PP3)'!$B$251","v":0},"#'T2-B(PP3)'!$B$251"]
["pp3_bl4_8_11_rate_in",{"$f":"'T2-B(PP3)'!$E$251","v":0},"#'T2-B(PP3)'!$E$251"]
["pp3_bl4_8_11_rate_out",{"$f":"'T2-B(PP3)'!$H$251","v":0},"#'T2-B(PP3)'!$H$251"]
["pp3_bl4_8_11_total",{"$f":"'T2-B(PP3)'!$J$251","v":0},"#'T2-B(PP3)'!$J$251"]
["pp3_bl4_8_11_total_in",{"$f":"'T2-B(PP3)'!$F$251","v":0},"#'T2-B(PP3)'!$F$251"]
["pp3_bl4_8_11_total_out",{"$f":"'T2-B(PP3)'!$I$251","v":0},"#'T2-B(PP3)'!$I$251"]
["pp3_bl4_8_11_unit",{"$f":"'T2-B(PP3)'!$C$251","v":0},"#'T2-B(PP3)'!$C$251"]
["pp3_bl4_8_11_unit_in",{"$f":"'T2-B(PP3)'!$D$251","v":0},"#'T2-B(PP3)'!$D$251"]
["pp3_bl4_8_11_units_out",{"$f":"'T2-B(PP3)'!$G$251","v":0},"#'T2-B(PP3)'!$G$251"]
["pp3_bl4_8_12_name",{"$f":"'T2-B(PP3)'!$B$252","v":0},"#'T2-B(PP3)'!$B$252"]
["pp3_bl4_8_12_rate_in",{"$f":"'T2-B(PP3)'!$E$252","v":0},"#'T2-B(PP3)'!$E$252"]
["pp3_bl4_8_12_rate_out",{"$f":"'T2-B(PP3)'!$H$252","v":0},"#'T2-B(PP3)'!$H$252"]
["pp3_bl4_8_12_total",{"$f":"'T2-B(PP3)'!$J$252","v":0},"#'T2-B(PP3)'!$J$252"]
["pp3_bl4_8_12_total_in",{"$f":"'T2-B(PP3)'!$F$252","v":0},"#'T2-B(PP3)'!$F$252"]
["pp3_bl4_8_12_total_out",{"$f":"'T2-B(PP3)'!$I$252","v":0},"#'T2-B(PP3)'!$I$252"]
["pp3_bl4_8_12_unit",{"$f":"'T2-B(PP3)'!$C$252","v":0},"#'T2-B(PP3)'!$C$252"]
["pp3_bl4_8_12_unit_in",{"$f":"'T2-B(PP3)'!$D$252","v":0},"#'T2-B(PP3)'!$D$252"]
["pp3_bl4_8_12_units_out",{"$f":"'T2-B(PP3)'!$G$252","v":0},"#'T2-B(PP3)'!$G$252"]
["pp3_bl4_8_13_name",{"$f":"'T2-B(PP3)'!$B$253","v":0},"#'T2-B(PP3)'!$B$253"]
["pp3_bl4_8_13_rate_in",{"$f":"'T2-B(PP3)'!$E$253","v":0},"#'T2-B(PP3)'!$E$253"]
["pp3_bl4_8_13_rate_out",{"$f":"'T2-B(PP3)'!$H$253","v":0},"#'T2-B(PP3)'!$H$253"]
["pp3_bl4_8_13_total",{"$f":"'T2-B(PP3)'!$J$253","v":0},"#'T2-B(PP3)'!$J$253"]
["pp3_bl4_8_13_total_in",{"$f":"'T2-B(PP3)'!$F$253","v":0},"#'T2-B(PP3)'!$F$253"]
["pp3_bl4_8_13_total_out",{"$f":"'T2-B(PP3)'!$I$253","v":0},"#'T2-B(PP3)'!$I$253"]
["pp3_bl4_8_13_unit",{"$f":"'T2-B(PP3)'!$C$253","v":0},"#'T2-B(PP3)'!$C$253"]
["pp3_bl4_8_13_unit_in",{"$f":"'T2-B(PP3)'!$D$253","v":0},"#'T2-B(PP3)'!$D$253"]
["pp3_bl4_8_13_units_out",{"$f":"'T2-B(PP3)'!$G$253","v":0},"#'T2-B(PP3)'!$G$253"]
["pp3_bl4_8_14_name",{"$f":"'T2-B(PP3)'!$B$254","v":0},"#'T2-B(PP3)'!$B$254"]
["pp3_bl4_8_14_rate_in",{"$f":"'T2-B(PP3)'!$E$254","v":0},"#'T2-B(PP3)'!$E$254"]
["pp3_bl4_8_14_rate_out",{"$f":"'T2-B(PP3)'!$H$254","v":0},"#'T2-B(PP3)'!$H$254"]
["pp3_bl4_8_14_total",{"$f":"'T2-B(PP3)'!$J$254","v":0},"#'T2-B(PP3)'!$J$254"]
["pp3_bl4_8_14_total_in",{"$f":"'T2-B(PP3)'!$F$254","v":0},"#'T2-B(PP3)'!$F$254"]
["pp3_bl4_8_14_total_out",{"$f":"'T2-B(PP3)'!$I$254","v":0},"#'T2-B(PP3)'!$I$254"]
["pp3_bl4_8_14_unit",{"$f":"'T2-B(PP3)'!$C$254","v":0},"#'T2-B(PP3)'!$C$254"]
["pp3_bl4_8_14_unit_in",{"$f":"'T2-B(PP3)'!$D$254","v":0},"#'T2-B(PP3)'!$D$254"]
["pp3_bl4_8_14_units_out",{"$f":"'T2-B(PP3)'!$G$254","v":0},"#'T2-B(PP3)'!$G$254"]
["pp3_bl4_8_15_name",{"$f":"'T2-B(PP3)'!$B$255","v":0},"#'T2-B(PP3)'!$B$255"]
["pp3_bl4_8_15_rate_in",{"$f":"'T2-B(PP3)'!$E$255","v":0},"#'T2-B(PP3)'!$E$255"]
["pp3_bl4_8_15_rate_out",{"$f":"'T2-B(PP3)'!$H$255","v":0},"#'T2-B(PP3)'!$H$255"]
["pp3_bl4_8_15_total",{"$f":"'T2-B(PP3)'!$J$255","v":0},"#'T2-B(PP3)'!$J$255"]
["pp3_bl4_8_15_total_in",{"$f":"'T2-B(PP3)'!$F$255","v":0},"#'T2-B(PP3)'!$F$255"]
["pp3_bl4_8_15_total_out",{"$f":"'T2-B(PP3)'!$I$255","v":0},"#'T2-B(PP3)'!$I$255"]
["pp3_bl4_8_15_unit",{"$f":"'T2-B(PP3)'!$C$255","v":0},"#'T2-B(PP3)'!$C$255"]
["pp3_bl4_8_15_unit_in",{"$f":"'T2-B(PP3)'!$D$255","v":0},"#'T2-B(PP3)'!$D$255"]
["pp3_bl4_8_15_units_out",{"$f":"'T2-B(PP3)'!$G$255","v":0},"#'T2-B(PP3)'!$G$255"]
["pp3_bl4_8_16_name",{"$f":"'T2-B(PP3)'!$B$256","v":0},"#'T2-B(PP3)'!$B$256"]
["pp3_bl4_8_16_rate_in",{"$f":"'T2-B(PP3)'!$E$256","v":0},"#'T2-B(PP3)'!$E$256"]
["pp3_bl4_8_16_rate_out",{"$f":"'T2-B(PP3)'!$H$256","v":0},"#'T2-B(PP3)'!$H$256"]
["pp3_bl4_8_16_total",{"$f":"'T2-B(PP3)'!$J$256","v":0},"#'T2-B(PP3)'!$J$256"]
["pp3_bl4_8_16_total_in",{"$f":"'T2-B(PP3)'!$F$256","v":0},"#'T2-B(PP3)'!$F$256"]
["pp3_bl4_8_16_total_out",{"$f":"'T2-B(PP3)'!$I$256","v":0},"#'T2-B(PP3)'!$I$256"]
["pp3_bl4_8_16_unit",{"$f":"'T2-B(PP3)'!$C$256","v":0},"#'T2-B(PP3)'!$C$256"]
["pp3_bl4_8_16_unit_in",{"$f":"'T2-B(PP3)'!$D$256","v":0},"#'T2-B(PP3)'!$D$256"]
["pp3_bl4_8_16_units_out",{"$f":"'T2-B(PP3)'!$G$256","v":0},"#'T2-B(PP3)'!$G$256"]
["pp3_bl4_8_17_name",{"$f":"'T2-B(PP3)'!$B$257","v":0},"#'T2-B(PP3)'!$B$257"]
["pp3_bl4_8_17_rate_in",{"$f":"'T2-B(PP3)'!$E$257","v":0},"#'T2-B(PP3)'!$E$257"]
["pp3_bl4_8_17_rate_out",{"$f":"'T2-B(PP3)'!$H$257","v":0},"#'T2-B(PP3)'!$H$257"]
["pp3_bl4_8_17_total",{"$f":"'T2-B(PP3)'!$J$257","v":0},"#'T2-B(PP3)'!$J$257"]
["pp3_bl4_8_17_total_in",{"$f":"'T2-B(PP3)'!$F$257","v":0},"#'T2-B(PP3)'!$F$257"]
["pp3_bl4_8_17_total_out",{"$f":"'T2-B(PP3)'!$I$257","v":0},"#'T2-B(PP3)'!$I$257"]
["pp3_bl4_8_17_unit",{"$f":"'T2-B(PP3)'!$C$257","v":0},"#'T2-B(PP3)'!$C$257"]
["pp3_bl4_8_17_unit_in",{"$f":"'T2-B(PP3)'!$D$257","v":0},"#'T2-B(PP3)'!$D$257"]
["pp3_bl4_8_17_units_out",{"$f":"'T2-B(PP3)'!$G$257","v":0},"#'T2-B(PP3)'!$G$257"]
["pp3_bl4_8_18_name",{"$f":"'T2-B(PP3)'!$B$258","v":0},"#'T2-B(PP3)'!$B$258"]
["pp3_bl4_8_18_rate_in",{"$f":"'T2-B(PP3)'!$E$258","v":0},"#'T2-B(PP3)'!$E$258"]
["pp3_bl4_8_18_rate_out",{"$f":"'T2-B(PP3)'!$H$258","v":0},"#'T2-B(PP3)'!$H$258"]
["pp3_bl4_8_18_total",{"$f":"'T2-B(PP3)'!$J$258","v":0},"#'T2-B(PP3)'!$J$258"]
["pp3_bl4_8_18_total_in",{"$f":"'T2-B(PP3)'!$F$258","v":0},"#'T2-B(PP3)'!$F$258"]
["pp3_bl4_8_18_total_out",{"$f":"'T2-B(PP3)'!$I$258","v":0},"#'T2-B(PP3)'!$I$258"]
["pp3_bl4_8_18_unit",{"$f":"'T2-B(PP3)'!$C$258","v":0},"#'T2-B(PP3)'!$C$258"]
["pp3_bl4_8_18_unit_in",{"$f":"'T2-B(PP3)'!$D$258","v":0},"#'T2-B(PP3)'!$D$258"]
["pp3_bl4_8_18_units_out",{"$f":"'T2-B(PP3)'!$G$258","v":0},"#'T2-B(PP3)'!$G$258"]
["pp3_bl4_8_19_name",{"$f":"'T2-B(PP3)'!$B$259","v":0},"#'T2-B(PP3)'!$B$259"]
["pp3_bl4_8_19_rate_in",{"$f":"'T2-B(PP3)'!$E$259","v":0},"#'T2-B(PP3)'!$E$259"]
["pp3_bl4_8_19_rate_out",{"$f":"'T2-B(PP3)'!$H$259","v":0},"#'T2-B(PP3)'!$H$259"]
["pp3_bl4_8_19_total",{"$f":"'T2-B(PP3)'!$J$259","v":0},"#'T2-B(PP3)'!$J$259"]
["pp3_bl4_8_19_total_in",{"$f":"'T2-B(PP3)'!$F$259","v":0},"#'T2-B(PP3)'!$F$259"]
["pp3_bl4_8_19_total_out",{"$f":"'T2-B(PP3)'!$I$259","v":0},"#'T2-B(PP3)'!$I$259"]
["pp3_bl4_8_19_unit",{"$f":"'T2-B(PP3)'!$C$259","v":0},"#'T2-B(PP3)'!$C$259"]
["pp3_bl4_8_19_unit_in",{"$f":"'T2-B(PP3)'!$D$259","v":0},"#'T2-B(PP3)'!$D$259"]
["pp3_bl4_8_19_units_out",{"$f":"'T2-B(PP3)'!$G$259","v":0},"#'T2-B(PP3)'!$G$259"]
["pp3_bl4_8_2_name",{"$f":"'T2-B(PP3)'!$B$242","v":0},"#'T2-B(PP3)'!$B$242"]
["pp3_bl4_8_2_rate_in",{"$f":"'T2-B(PP3)'!$E$242","v":0},"#'T2-B(PP3)'!$E$242"]
["pp3_bl4_8_2_rate_out",{"$f":"'T2-B(PP3)'!$H$242","v":0},"#'T2-B(PP3)'!$H$242"]
["pp3_bl4_8_2_total",{"$f":"'T2-B(PP3)'!$J$242","v":0},"#'T2-B(PP3)'!$J$242"]
["pp3_bl4_8_2_total_in",{"$f":"'T2-B(PP3)'!$F$242","v":0},"#'T2-B(PP3)'!$F$242"]
["pp3_bl4_8_2_total_out",{"$f":"'T2-B(PP3)'!$I$242","v":0},"#'T2-B(PP3)'!$I$242"]
["pp3_bl4_8_2_unit",{"$f":"'T2-B(PP3)'!$C$242","v":0},"#'T2-B(PP3)'!$C$242"]
["pp3_bl4_8_2_unit_in",{"$f":"'T2-B(PP3)'!$D$242","v":0},"#'T2-B(PP3)'!$D$242"]
["pp3_bl4_8_2_units_out",{"$f":"'T2-B(PP3)'!$G$242","v":0},"#'T2-B(PP3)'!$G$242"]
["pp3_bl4_8_20_name",{"$f":"'T2-B(PP3)'!$B$260","v":0},"#'T2-B(PP3)'!$B$260"]
["pp3_bl4_8_20_rate_in",{"$f":"'T2-B(PP3)'!$E$260","v":0},"#'T2-B(PP3)'!$E$260"]
["pp3_bl4_8_20_rate_out",{"$f":"'T2-B(PP3)'!$H$260","v":0},"#'T2-B(PP3)'!$H$260"]
["pp3_bl4_8_20_total",{"$f":"'T2-B(PP3)'!$J$260","v":0},"#'T2-B(PP3)'!$J$260"]
["pp3_bl4_8_20_total_in",{"$f":"'T2-B(PP3)'!$F$260","v":0},"#'T2-B(PP3)'!$F$260"]
["pp3_bl4_8_20_total_out",{"$f":"'T2-B(PP3)'!$I$260","v":0},"#'T2-B(PP3)'!$I$260"]
["pp3_bl4_8_20_unit",{"$f":"'T2-B(PP3)'!$C$260","v":0},"#'T2-B(PP3)'!$C$260"]
["pp3_bl4_8_20_unit_in",{"$f":"'T2-B(PP3)'!$D$260","v":0},"#'T2-B(PP3)'!$D$260"]
["pp3_bl4_8_20_units_out",{"$f":"'T2-B(PP3)'!$G$260","v":0},"#'T2-B(PP3)'!$G$260"]
["pp3_bl4_8_3_name",{"$f":"'T2-B(PP3)'!$B$243","v":0},"#'T2-B(PP3)'!$B$243"]
["pp3_bl4_8_3_rate_in",{"$f":"'T2-B(PP3)'!$E$243","v":0},"#'T2-B(PP3)'!$E$243"]
["pp3_bl4_8_3_rate_out",{"$f":"'T2-B(PP3)'!$H$243","v":0},"#'T2-B(PP3)'!$H$243"]
["pp3_bl4_8_3_total",{"$f":"'T2-B(PP3)'!$J$243","v":0},"#'T2-B(PP3)'!$J$243"]
["pp3_bl4_8_3_total_in",{"$f":"'T2-B(PP3)'!$F$243","v":0},"#'T2-B(PP3)'!$F$243"]
["pp3_bl4_8_3_total_out",{"$f":"'T2-B(PP3)'!$I$243","v":0},"#'T2-B(PP3)'!$I$243"]
["pp3_bl4_8_3_unit",{"$f":"'T2-B(PP3)'!$C$243","v":0},"#'T2-B(PP3)'!$C$243"]
["pp3_bl4_8_3_unit_in",{"$f":"'T2-B(PP3)'!$D$243","v":0},"#'T2-B(PP3)'!$D$243"]
["pp3_bl4_8_3_units_out",{"$f":"'T2-B(PP3)'!$G$243","v":0},"#'T2-B(PP3)'!$G$243"]
["pp3_bl4_8_4_name",{"$f":"'T2-B(PP3)'!$B$244","v":0},"#'T2-B(PP3)'!$B$244"]
["pp3_bl4_8_4_rate_in",{"$f":"'T2-B(PP3)'!$E$244","v":0},"#'T2-B(PP3)'!$E$244"]
["pp3_bl4_8_4_rate_out",{"$f":"'T2-B(PP3)'!$H$244","v":0},"#'T2-B(PP3)'!$H$244"]
["pp3_bl4_8_4_total",{"$f":"'T2-B(PP3)'!$J$244","v":0},"#'T2-B(PP3)'!$J$244"]
["pp3_bl4_8_4_total_in",{"$f":"'T2-B(PP3)'!$F$244","v":0},"#'T2-B(PP3)'!$F$244"]
["pp3_bl4_8_4_total_out",{"$f":"'T2-B(PP3)'!$I$244","v":0},"#'T2-B(PP3)'!$I$244"]
["pp3_bl4_8_4_unit",{"$f":"'T2-B(PP3)'!$C$244","v":0},"#'T2-B(PP3)'!$C$244"]
["pp3_bl4_8_4_unit_in",{"$f":"'T2-B(PP3)'!$D$244","v":0},"#'T2-B(PP3)'!$D$244"]
["pp3_bl4_8_4_units_out",{"$f":"'T2-B(PP3)'!$G$244","v":0},"#'T2-B(PP3)'!$G$244"]
["pp3_bl4_8_5_name",{"$f":"'T2-B(PP3)'!$B$245","v":0},"#'T2-B(PP3)'!$B$245"]
["pp3_bl4_8_5_rate_in",{"$f":"'T2-B(PP3)'!$E$245","v":0},"#'T2-B(PP3)'!$E$245"]
["pp3_bl4_8_5_rate_out",{"$f":"'T2-B(PP3)'!$H$245","v":0},"#'T2-B(PP3)'!$H$245"]
["pp3_bl4_8_5_total",{"$f":"'T2-B(PP3)'!$J$245","v":0},"#'T2-B(PP3)'!$J$245"]
["pp3_bl4_8_5_total_in",{"$f":"'T2-B(PP3)'!$F$245","v":0},"#'T2-B(PP3)'!$F$245"]
["pp3_bl4_8_5_total_out",{"$f":"'T2-B(PP3)'!$I$245","v":0},"#'T2-B(PP3)'!$I$245"]
["pp3_bl4_8_5_unit",{"$f":"'T2-B(PP3)'!$C$245","v":0},"#'T2-B(PP3)'!$C$245"]
["pp3_bl4_8_5_unit_in",{"$f":"'T2-B(PP3)'!$D$245","v":0},"#'T2-B(PP3)'!$D$245"]
["pp3_bl4_8_5_units_out",{"$f":"'T2-B(PP3)'!$G$245","v":0},"#'T2-B(PP3)'!$G$245"]
["pp3_bl4_8_6_name",{"$f":"'T2-B(PP3)'!$B$246","v":0},"#'T2-B(PP3)'!$B$246"]
["pp3_bl4_8_6_rate_in",{"$f":"'T2-B(PP3)'!$E$246","v":0},"#'T2-B(PP3)'!$E$246"]
["pp3_bl4_8_6_rate_out",{"$f":"'T2-B(PP3)'!$H$246","v":0},"#'T2-B(PP3)'!$H$246"]
["pp3_bl4_8_6_total",{"$f":"'T2-B(PP3)'!$J$246","v":0},"#'T2-B(PP3)'!$J$246"]
["pp3_bl4_8_6_total_in",{"$f":"'T2-B(PP3)'!$F$246","v":0},"#'T2-B(PP3)'!$F$246"]
["pp3_bl4_8_6_total_out",{"$f":"'T2-B(PP3)'!$I$246","v":0},"#'T2-B(PP3)'!$I$246"]
["pp3_bl4_8_6_unit",{"$f":"'T2-B(PP3)'!$C$246","v":0},"#'T2-B(PP3)'!$C$246"]
["pp3_bl4_8_6_unit_in",{"$f":"'T2-B(PP3)'!$D$246","v":0},"#'T2-B(PP3)'!$D$246"]
["pp3_bl4_8_6_units_out",{"$f":"'T2-B(PP3)'!$G$246","v":0},"#'T2-B(PP3)'!$G$246"]
["pp3_bl4_8_7_name",{"$f":"'T2-B(PP3)'!$B$247","v":0},"#'T2-B(PP3)'!$B$247"]
["pp3_bl4_8_7_rate_in",{"$f":"'T2-B(PP3)'!$E$247","v":0},"#'T2-B(PP3)'!$E$247"]
["pp3_bl4_8_7_rate_out",{"$f":"'T2-B(PP3)'!$H$247","v":0},"#'T2-B(PP3)'!$H$247"]
["pp3_bl4_8_7_total",{"$f":"'T2-B(PP3)'!$J$247","v":0},"#'T2-B(PP3)'!$J$247"]
["pp3_bl4_8_7_total_in",{"$f":"'T2-B(PP3)'!$F$247","v":0},"#'T2-B(PP3)'!$F$247"]
["pp3_bl4_8_7_total_out",{"$f":"'T2-B(PP3)'!$I$247","v":0},"#'T2-B(PP3)'!$I$247"]
["pp3_bl4_8_7_unit",{"$f":"'T2-B(PP3)'!$C$247","v":0},"#'T2-B(PP3)'!$C$247"]
["pp3_bl4_8_7_unit_in",{"$f":"'T2-B(PP3)'!$D$247","v":0},"#'T2-B(PP3)'!$D$247"]
["pp3_bl4_8_7_units_out",{"$f":"'T2-B(PP3)'!$G$247","v":0},"#'T2-B(PP3)'!$G$247"]
["pp3_bl4_8_8_name",{"$f":"'T2-B(PP3)'!$B$248","v":0},"#'T2-B(PP3)'!$B$248"]
["pp3_bl4_8_8_rate_in",{"$f":"'T2-B(PP3)'!$E$248","v":0},"#'T2-B(PP3)'!$E$248"]
["pp3_bl4_8_8_rate_out",{"$f":"'T2-B(PP3)'!$H$248","v":0},"#'T2-B(PP3)'!$H$248"]
["pp3_bl4_8_8_total",{"$f":"'T2-B(PP3)'!$J$248","v":0},"#'T2-B(PP3)'!$J$248"]
["pp3_bl4_8_8_total_in",{"$f":"'T2-B(PP3)'!$F$248","v":0},"#'T2-B(PP3)'!$F$248"]
["pp3_bl4_8_8_total_out",{"$f":"'T2-B(PP3)'!$I$248","v":0},"#'T2-B(PP3)'!$I$248"]
["pp3_bl4_8_8_unit",{"$f":"'T2-B(PP3)'!$C$248","v":0},"#'T2-B(PP3)'!$C$248"]
["pp3_bl4_8_8_unit_in",{"$f":"'T2-B(PP3)'!$D$248","v":0},"#'T2-B(PP3)'!$D$248"]
["pp3_bl4_8_8_units_out",{"$f":"'T2-B(PP3)'!$G$248","v":0},"#'T2-B(PP3)'!$G$248"]
["pp3_bl4_8_9_name",{"$f":"'T2-B(PP3)'!$B$249","v":0},"#'T2-B(PP3)'!$B$249"]
["pp3_bl4_8_9_rate_in",{"$f":"'T2-B(PP3)'!$E$249","v":0},"#'T2-B(PP3)'!$E$249"]
["pp3_bl4_8_9_rate_out",{"$f":"'T2-B(PP3)'!$H$249","v":0},"#'T2-B(PP3)'!$H$249"]
["pp3_bl4_8_9_total",{"$f":"'T2-B(PP3)'!$J$249","v":0},"#'T2-B(PP3)'!$J$249"]
["pp3_bl4_8_9_total_in",{"$f":"'T2-B(PP3)'!$F$249","v":0},"#'T2-B(PP3)'!$F$249"]
["pp3_bl4_8_9_total_out",{"$f":"'T2-B(PP3)'!$I$249","v":0},"#'T2-B(PP3)'!$I$249"]
["pp3_bl4_8_9_unit",{"$f":"'T2-B(PP3)'!$C$249","v":0},"#'T2-B(PP3)'!$C$249"]
["pp3_bl4_8_9_unit_in",{"$f":"'T2-B(PP3)'!$D$249","v":0},"#'T2-B(PP3)'!$D$249"]
["pp3_bl4_8_9_units_out",{"$f":"'T2-B(PP3)'!$G$249","v":0},"#'T2-B(PP3)'!$G$249"]
["pp3_bl4_8_total",{"$f":"'T2-B(PP3)'!$J$240","v":0},"#'T2-B(PP3)'!$J$240"]
["pp3_bl4_8_total_in",{"$f":"'T2-B(PP3)'!$F$240","v":0},"#'T2-B(PP3)'!$F$240"]
["pp3_bl4_8_total_out",{"$f":"'T2-B(PP3)'!$I$240","v":0},"#'T2-B(PP3)'!$I$240"]
["pp3_bl4_9_1_name",{"$f":"'T2-B(PP3)'!$B$262","v":0},"#'T2-B(PP3)'!$B$262"]
["pp3_bl4_9_1_rate_in",{"$f":"'T2-B(PP3)'!$E$262","v":0},"#'T2-B(PP3)'!$E$262"]
["pp3_bl4_9_1_rate_out",{"$f":"'T2-B(PP3)'!$H$262","v":0},"#'T2-B(PP3)'!$H$262"]
["pp3_bl4_9_1_total",{"$f":"'T2-B(PP3)'!$J$262","v":0},"#'T2-B(PP3)'!$J$262"]
["pp3_bl4_9_1_total_in",{"$f":"'T2-B(PP3)'!$F$262","v":0},"#'T2-B(PP3)'!$F$262"]
["pp3_bl4_9_1_total_out",{"$f":"'T2-B(PP3)'!$I$262","v":0},"#'T2-B(PP3)'!$I$262"]
["pp3_bl4_9_1_unit",{"$f":"'T2-B(PP3)'!$C$262","v":0},"#'T2-B(PP3)'!$C$262"]
["pp3_bl4_9_1_unit_in",{"$f":"'T2-B(PP3)'!$D$262","v":0},"#'T2-B(PP3)'!$D$262"]
["pp3_bl4_9_1_units_out",{"$f":"'T2-B(PP3)'!$G$262","v":0},"#'T2-B(PP3)'!$G$262"]
["pp3_bl4_9_10_name",{"$f":"'T2-B(PP3)'!$B$271","v":0},"#'T2-B(PP3)'!$B$271"]
["pp3_bl4_9_10_rate_in",{"$f":"'T2-B(PP3)'!$E$271","v":0},"#'T2-B(PP3)'!$E$271"]
["pp3_bl4_9_10_rate_out",{"$f":"'T2-B(PP3)'!$H$271","v":0},"#'T2-B(PP3)'!$H$271"]
["pp3_bl4_9_10_total",{"$f":"'T2-B(PP3)'!$J$271","v":0},"#'T2-B(PP3)'!$J$271"]
["pp3_bl4_9_10_total_in",{"$f":"'T2-B(PP3)'!$F$271","v":0},"#'T2-B(PP3)'!$F$271"]
["pp3_bl4_9_10_total_out",{"$f":"'T2-B(PP3)'!$I$271","v":0},"#'T2-B(PP3)'!$I$271"]
["pp3_bl4_9_10_unit",{"$f":"'T2-B(PP3)'!$C$271","v":0},"#'T2-B(PP3)'!$C$271"]
["pp3_bl4_9_10_unit_in",{"$f":"'T2-B(PP3)'!$D$271","v":0},"#'T2-B(PP3)'!$D$271"]
["pp3_bl4_9_10_units_out",{"$f":"'T2-B(PP3)'!$G$271","v":0},"#'T2-B(PP3)'!$G$271"]
["pp3_bl4_9_11_name",{"$f":"'T2-B(PP3)'!$B$272","v":0},"#'T2-B(PP3)'!$B$272"]
["pp3_bl4_9_11_rate_in",{"$f":"'T2-B(PP3)'!$E$272","v":0},"#'T2-B(PP3)'!$E$272"]
["pp3_bl4_9_11_rate_out",{"$f":"'T2-B(PP3)'!$H$272","v":0},"#'T2-B(PP3)'!$H$272"]
["pp3_bl4_9_11_total",{"$f":"'T2-B(PP3)'!$J$272","v":0},"#'T2-B(PP3)'!$J$272"]
["pp3_bl4_9_11_total_in",{"$f":"'T2-B(PP3)'!$F$272","v":0},"#'T2-B(PP3)'!$F$272"]
["pp3_bl4_9_11_total_out",{"$f":"'T2-B(PP3)'!$I$272","v":0},"#'T2-B(PP3)'!$I$272"]
["pp3_bl4_9_11_unit",{"$f":"'T2-B(PP3)'!$C$272","v":0},"#'T2-B(PP3)'!$C$272"]
["pp3_bl4_9_11_unit_in",{"$f":"'T2-B(PP3)'!$D$272","v":0},"#'T2-B(PP3)'!$D$272"]
["pp3_bl4_9_11_units_out",{"$f":"'T2-B(PP3)'!$G$272","v":0},"#'T2-B(PP3)'!$G$272"]
["pp3_bl4_9_12_name",{"$f":"'T2-B(PP3)'!$B$273","v":0},"#'T2-B(PP3)'!$B$273"]
["pp3_bl4_9_12_rate_in",{"$f":"'T2-B(PP3)'!$E$273","v":0},"#'T2-B(PP3)'!$E$273"]
["pp3_bl4_9_12_rate_out",{"$f":"'T2-B(PP3)'!$H$273","v":0},"#'T2-B(PP3)'!$H$273"]
["pp3_bl4_9_12_total",{"$f":"'T2-B(PP3)'!$J$273","v":0},"#'T2-B(PP3)'!$J$273"]
["pp3_bl4_9_12_total_in",{"$f":"'T2-B(PP3)'!$F$273","v":0},"#'T2-B(PP3)'!$F$273"]
["pp3_bl4_9_12_total_out",{"$f":"'T2-B(PP3)'!$I$273","v":0},"#'T2-B(PP3)'!$I$273"]
["pp3_bl4_9_12_unit",{"$f":"'T2-B(PP3)'!$C$273","v":0},"#'T2-B(PP3)'!$C$273"]
["pp3_bl4_9_12_unit_in",{"$f":"'T2-B(PP3)'!$D$273","v":0},"#'T2-B(PP3)'!$D$273"]
["pp3_bl4_9_12_units_out",{"$f":"'T2-B(PP3)'!$G$273","v":0},"#'T2-B(PP3)'!$G$273"]
["pp3_bl4_9_13_name",{"$f":"'T2-B(PP3)'!$B$274","v":0},"#'T2-B(PP3)'!$B$274"]
["pp3_bl4_9_13_rate_in",{"$f":"'T2-B(PP3)'!$E$274","v":0},"#'T2-B(PP3)'!$E$274"]
["pp3_bl4_9_13_rate_out",{"$f":"'T2-B(PP3)'!$H$274","v":0},"#'T2-B(PP3)'!$H$274"]
["pp3_bl4_9_13_total",{"$f":"'T2-B(PP3)'!$J$274","v":0},"#'T2-B(PP3)'!$J$274"]
["pp3_bl4_9_13_total_in",{"$f":"'T2-B(PP3)'!$F$274","v":0},"#'T2-B(PP3)'!$F$274"]
["pp3_bl4_9_13_total_out",{"$f":"'T2-B(PP3)'!$I$274","v":0},"#'T2-B(PP3)'!$I$274"]
["pp3_bl4_9_13_unit",{"$f":"'T2-B(PP3)'!$C$274","v":0},"#'T2-B(PP3)'!$C$274"]
["pp3_bl4_9_13_unit_in",{"$f":"'T2-B(PP3)'!$D$274","v":0},"#'T2-B(PP3)'!$D$274"]
["pp3_bl4_9_13_units_out",{"$f":"'T2-B(PP3)'!$G$274","v":0},"#'T2-B(PP3)'!$G$274"]
["pp3_bl4_9_14_name",{"$f":"'T2-B(PP3)'!$B$275","v":0},"#'T2-B(PP3)'!$B$275"]
["pp3_bl4_9_14_rate_in",{"$f":"'T2-B(PP3)'!$E$275","v":0},"#'T2-B(PP3)'!$E$275"]
["pp3_bl4_9_14_rate_out",{"$f":"'T2-B(PP3)'!$H$275","v":0},"#'T2-B(PP3)'!$H$275"]
["pp3_bl4_9_14_total",{"$f":"'T2-B(PP3)'!$J$275","v":0},"#'T2-B(PP3)'!$J$275"]
["pp3_bl4_9_14_total_in",{"$f":"'T2-B(PP3)'!$F$275","v":0},"#'T2-B(PP3)'!$F$275"]
["pp3_bl4_9_14_total_out",{"$f":"'T2-B(PP3)'!$I$275","v":0},"#'T2-B(PP3)'!$I$275"]
["pp3_bl4_9_14_unit",{"$f":"'T2-B(PP3)'!$C$275","v":0},"#'T2-B(PP3)'!$C$275"]
["pp3_bl4_9_14_unit_in",{"$f":"'T2-B(PP3)'!$D$275","v":0},"#'T2-B(PP3)'!$D$275"]
["pp3_bl4_9_14_units_out",{"$f":"'T2-B(PP3)'!$G$275","v":0},"#'T2-B(PP3)'!$G$275"]
["pp3_bl4_9_15_name",{"$f":"'T2-B(PP3)'!$B$276","v":0},"#'T2-B(PP3)'!$B$276"]
["pp3_bl4_9_15_rate_in",{"$f":"'T2-B(PP3)'!$E$276","v":0},"#'T2-B(PP3)'!$E$276"]
["pp3_bl4_9_15_rate_out",{"$f":"'T2-B(PP3)'!$H$276","v":0},"#'T2-B(PP3)'!$H$276"]
["pp3_bl4_9_15_total",{"$f":"'T2-B(PP3)'!$J$276","v":0},"#'T2-B(PP3)'!$J$276"]
["pp3_bl4_9_15_total_in",{"$f":"'T2-B(PP3)'!$F$276","v":0},"#'T2-B(PP3)'!$F$276"]
["pp3_bl4_9_15_total_out",{"$f":"'T2-B(PP3)'!$I$276","v":0},"#'T2-B(PP3)'!$I$276"]
["pp3_bl4_9_15_unit",{"$f":"'T2-B(PP3)'!$C$276","v":0},"#'T2-B(PP3)'!$C$276"]
["pp3_bl4_9_15_unit_in",{"$f":"'T2-B(PP3)'!$D$276","v":0},"#'T2-B(PP3)'!$D$276"]
["pp3_bl4_9_15_units_out",{"$f":"'T2-B(PP3)'!$G$276","v":0},"#'T2-B(PP3)'!$G$276"]
["pp3_bl4_9_16_name",{"$f":"'T2-B(PP3)'!$B$277","v":0},"#'T2-B(PP3)'!$B$277"]
["pp3_bl4_9_16_rate_in",{"$f":"'T2-B(PP3)'!$E$277","v":0},"#'T2-B(PP3)'!$E$277"]
["pp3_bl4_9_16_rate_out",{"$f":"'T2-B(PP3)'!$H$277","v":0},"#'T2-B(PP3)'!$H$277"]
["pp3_bl4_9_16_total",{"$f":"'T2-B(PP3)'!$J$277","v":0},"#'T2-B(PP3)'!$J$277"]
["pp3_bl4_9_16_total_in",{"$f":"'T2-B(PP3)'!$F$277","v":0},"#'T2-B(PP3)'!$F$277"]
["pp3_bl4_9_16_total_out",{"$f":"'T2-B(PP3)'!$I$277","v":0},"#'T2-B(PP3)'!$I$277"]
["pp3_bl4_9_16_unit",{"$f":"'T2-B(PP3)'!$C$277","v":0},"#'T2-B(PP3)'!$C$277"]
["pp3_bl4_9_16_unit_in",{"$f":"'T2-B(PP3)'!$D$277","v":0},"#'T2-B(PP3)'!$D$277"]
["pp3_bl4_9_16_units_out",{"$f":"'T2-B(PP3)'!$G$277","v":0},"#'T2-B(PP3)'!$G$277"]
["pp3_bl4_9_17_name",{"$f":"'T2-B(PP3)'!$B$278","v":0},"#'T2-B(PP3)'!$B$278"]
["pp3_bl4_9_17_rate_in",{"$f":"'T2-B(PP3)'!$E$278","v":0},"#'T2-B(PP3)'!$E$278"]
["pp3_bl4_9_17_rate_out",{"$f":"'T2-B(PP3)'!$H$278","v":0},"#'T2-B(PP3)'!$H$278"]
["pp3_bl4_9_17_total",{"$f":"'T2-B(PP3)'!$J$278","v":0},"#'T2-B(PP3)'!$J$278"]
["pp3_bl4_9_17_total_in",{"$f":"'T2-B(PP3)'!$F$278","v":0},"#'T2-B(PP3)'!$F$278"]
["pp3_bl4_9_17_total_out",{"$f":"'T2-B(PP3)'!$I$278","v":0},"#'T2-B(PP3)'!$I$278"]
["pp3_bl4_9_17_unit",{"$f":"'T2-B(PP3)'!$C$278","v":0},"#'T2-B(PP3)'!$C$278"]
["pp3_bl4_9_17_unit_in",{"$f":"'T2-B(PP3)'!$D$278","v":0},"#'T2-B(PP3)'!$D$278"]
["pp3_bl4_9_17_units_out",{"$f":"'T2-B(PP3)'!$G$278","v":0},"#'T2-B(PP3)'!$G$278"]
["pp3_bl4_9_18_name",{"$f":"'T2-B(PP3)'!$B$279","v":0},"#'T2-B(PP3)'!$B$279"]
["pp3_bl4_9_18_rate_in",{"$f":"'T2-B(PP3)'!$E$279","v":0},"#'T2-B(PP3)'!$E$279"]
["pp3_bl4_9_18_rate_out",{"$f":"'T2-B(PP3)'!$H$279","v":0},"#'T2-B(PP3)'!$H$279"]
["pp3_bl4_9_18_total",{"$f":"'T2-B(PP3)'!$J$279","v":0},"#'T2-B(PP3)'!$J$279"]
["pp3_bl4_9_18_total_in",{"$f":"'T2-B(PP3)'!$F$279","v":0},"#'T2-B(PP3)'!$F$279"]
["pp3_bl4_9_18_total_out",{"$f":"'T2-B(PP3)'!$I$279","v":0},"#'T2-B(PP3)'!$I$279"]
["pp3_bl4_9_18_unit",{"$f":"'T2-B(PP3)'!$C$279","v":0},"#'T2-B(PP3)'!$C$279"]
["pp3_bl4_9_18_unit_in",{"$f":"'T2-B(PP3)'!$D$279","v":0},"#'T2-B(PP3)'!$D$279"]
["pp3_bl4_9_18_units_out",{"$f":"'T2-B(PP3)'!$G$279","v":0},"#'T2-B(PP3)'!$G$279"]
["pp3_bl4_9_19_name",{"$f":"'T2-B(PP3)'!$B$280","v":0},"#'T2-B(PP3)'!$B$280"]
["pp3_bl4_9_19_rate_in",{"$f":"'T2-B(PP3)'!$E$280","v":0},"#'T2-B(PP3)'!$E$280"]
["pp3_bl4_9_19_rate_out",{"$f":"'T2-B(PP3)'!$H$280","v":0},"#'T2-B(PP3)'!$H$280"]
["pp3_bl4_9_19_total",{"$f":"'T2-B(PP3)'!$J$280","v":0},"#'T2-B(PP3)'!$J$280"]
["pp3_bl4_9_19_total_in",{"$f":"'T2-B(PP3)'!$F$280","v":0},"#'T2-B(PP3)'!$F$280"]
["pp3_bl4_9_19_total_out",{"$f":"'T2-B(PP3)'!$I$280","v":0},"#'T2-B(PP3)'!$I$280"]
["pp3_bl4_9_19_unit",{"$f":"'T2-B(PP3)'!$C$280","v":0},"#'T2-B(PP3)'!$C$280"]
["pp3_bl4_9_19_unit_in",{"$f":"'T2-B(PP3)'!$D$280","v":0},"#'T2-B(PP3)'!$D$280"]
["pp3_bl4_9_19_units_out",{"$f":"'T2-B(PP3)'!$G$280","v":0},"#'T2-B(PP3)'!$G$280"]
["pp3_bl4_9_2_name",{"$f":"'T2-B(PP3)'!$B$263","v":0},"#'T2-B(PP3)'!$B$263"]
["pp3_bl4_9_2_rate_in",{"$f":"'T2-B(PP3)'!$E$263","v":0},"#'T2-B(PP3)'!$E$263"]
["pp3_bl4_9_2_rate_out",{"$f":"'T2-B(PP3)'!$H$263","v":0},"#'T2-B(PP3)'!$H$263"]
["pp3_bl4_9_2_total",{"$f":"'T2-B(PP3)'!$J$263","v":0},"#'T2-B(PP3)'!$J$263"]
["pp3_bl4_9_2_total_in",{"$f":"'T2-B(PP3)'!$F$263","v":0},"#'T2-B(PP3)'!$F$263"]
["pp3_bl4_9_2_total_out",{"$f":"'T2-B(PP3)'!$I$263","v":0},"#'T2-B(PP3)'!$I$263"]
["pp3_bl4_9_2_unit",{"$f":"'T2-B(PP3)'!$C$263","v":0},"#'T2-B(PP3)'!$C$263"]
["pp3_bl4_9_2_unit_in",{"$f":"'T2-B(PP3)'!$D$263","v":0},"#'T2-B(PP3)'!$D$263"]
["pp3_bl4_9_2_units_out",{"$f":"'T2-B(PP3)'!$G$263","v":0},"#'T2-B(PP3)'!$G$263"]
["pp3_bl4_9_20_name",{"$f":"'T2-B(PP3)'!$B$281","v":0},"#'T2-B(PP3)'!$B$281"]
["pp3_bl4_9_20_rate_in",{"$f":"'T2-B(PP3)'!$E$281","v":0},"#'T2-B(PP3)'!$E$281"]
["pp3_bl4_9_20_rate_out",{"$f":"'T2-B(PP3)'!$H$281","v":0},"#'T2-B(PP3)'!$H$281"]
["pp3_bl4_9_20_total",{"$f":"'T2-B(PP3)'!$J$281","v":0},"#'T2-B(PP3)'!$J$281"]
["pp3_bl4_9_20_total_in",{"$f":"'T2-B(PP3)'!$F$281","v":0},"#'T2-B(PP3)'!$F$281"]
["pp3_bl4_9_20_total_out",{"$f":"'T2-B(PP3)'!$I$281","v":0},"#'T2-B(PP3)'!$I$281"]
["pp3_bl4_9_20_unit",{"$f":"'T2-B(PP3)'!$C$281","v":0},"#'T2-B(PP3)'!$C$281"]
["pp3_bl4_9_20_unit_in",{"$f":"'T2-B(PP3)'!$D$281","v":0},"#'T2-B(PP3)'!$D$281"]
["pp3_bl4_9_20_units_out",{"$f":"'T2-B(PP3)'!$G$281","v":0},"#'T2-B(PP3)'!$G$281"]
["pp3_bl4_9_3_name",{"$f":"'T2-B(PP3)'!$B$264","v":0},"#'T2-B(PP3)'!$B$264"]
["pp3_bl4_9_3_rate_in",{"$f":"'T2-B(PP3)'!$E$264","v":0},"#'T2-B(PP3)'!$E$264"]
["pp3_bl4_9_3_rate_out",{"$f":"'T2-B(PP3)'!$H$264","v":0},"#'T2-B(PP3)'!$H$264"]
["pp3_bl4_9_3_total",{"$f":"'T2-B(PP3)'!$J$264","v":0},"#'T2-B(PP3)'!$J$264"]
["pp3_bl4_9_3_total_in",{"$f":"'T2-B(PP3)'!$F$264","v":0},"#'T2-B(PP3)'!$F$264"]
["pp3_bl4_9_3_total_out",{"$f":"'T2-B(PP3)'!$I$264","v":0},"#'T2-B(PP3)'!$I$264"]
["pp3_bl4_9_3_unit",{"$f":"'T2-B(PP3)'!$C$264","v":0},"#'T2-B(PP3)'!$C$264"]
["pp3_bl4_9_3_unit_in",{"$f":"'T2-B(PP3)'!$D$264","v":0},"#'T2-B(PP3)'!$D$264"]
["pp3_bl4_9_3_units_out",{"$f":"'T2-B(PP3)'!$G$264","v":0},"#'T2-B(PP3)'!$G$264"]
["pp3_bl4_9_4_name",{"$f":"'T2-B(PP3)'!$B$265","v":0},"#'T2-B(PP3)'!$B$265"]
["pp3_bl4_9_4_rate_in",{"$f":"'T2-B(PP3)'!$E$265","v":0},"#'T2-B(PP3)'!$E$265"]
["pp3_bl4_9_4_rate_out",{"$f":"'T2-B(PP3)'!$H$265","v":0},"#'T2-B(PP3)'!$H$265"]
["pp3_bl4_9_4_total",{"$f":"'T2-B(PP3)'!$J$265","v":0},"#'T2-B(PP3)'!$J$265"]
["pp3_bl4_9_4_total_in",{"$f":"'T2-B(PP3)'!$F$265","v":0},"#'T2-B(PP3)'!$F$265"]
["pp3_bl4_9_4_total_out",{"$f":"'T2-B(PP3)'!$I$265","v":0},"#'T2-B(PP3)'!$I$265"]
["pp3_bl4_9_4_unit",{"$f":"'T2-B(PP3)'!$C$265","v":0},"#'T2-B(PP3)'!$C$265"]
["pp3_bl4_9_4_unit_in",{"$f":"'T2-B(PP3)'!$D$265","v":0},"#'T2-B(PP3)'!$D$265"]
["pp3_bl4_9_4_units_out",{"$f":"'T2-B(PP3)'!$G$265","v":0},"#'T2-B(PP3)'!$G$265"]
["pp3_bl4_9_5_name",{"$f":"'T2-B(PP3)'!$B$266","v":0},"#'T2-B(PP3)'!$B$266"]
["pp3_bl4_9_5_rate_in",{"$f":"'T2-B(PP3)'!$E$266","v":0},"#'T2-B(PP3)'!$E$266"]
["pp3_bl4_9_5_rate_out",{"$f":"'T2-B(PP3)'!$H$266","v":0},"#'T2-B(PP3)'!$H$266"]
["pp3_bl4_9_5_total",{"$f":"'T2-B(PP3)'!$J$266","v":0},"#'T2-B(PP3)'!$J$266"]
["pp3_bl4_9_5_total_in",{"$f":"'T2-B(PP3)'!$F$266","v":0},"#'T2-B(PP3)'!$F$266"]
["pp3_bl4_9_5_total_out",{"$f":"'T2-B(PP3)'!$I$266","v":0},"#'T2-B(PP3)'!$I$266"]
["pp3_bl4_9_5_unit",{"$f":"'T2-B(PP3)'!$C$266","v":0},"#'T2-B(PP3)'!$C$266"]
["pp3_bl4_9_5_unit_in",{"$f":"'T2-B(PP3)'!$D$266","v":0},"#'T2-B(PP3)'!$D$266"]
["pp3_bl4_9_5_units_out",{"$f":"'T2-B(PP3)'!$G$266","v":0},"#'T2-B(PP3)'!$G$266"]
["pp3_bl4_9_6_name",{"$f":"'T2-B(PP3)'!$B$267","v":0},"#'T2-B(PP3)'!$B$267"]
["pp3_bl4_9_6_rate_in",{"$f":"'T2-B(PP3)'!$E$267","v":0},"#'T2-B(PP3)'!$E$267"]
["pp3_bl4_9_6_rate_out",{"$f":"'T2-B(PP3)'!$H$267","v":0},"#'T2-B(PP3)'!$H$267"]
["pp3_bl4_9_6_total",{"$f":"'T2-B(PP3)'!$J$267","v":0},"#'T2-B(PP3)'!$J$267"]
["pp3_bl4_9_6_total_in",{"$f":"'T2-B(PP3)'!$F$267","v":0},"#'T2-B(PP3)'!$F$267"]
["pp3_bl4_9_6_total_out",{"$f":"'T2-B(PP3)'!$I$267","v":0},"#'T2-B(PP3)'!$I$267"]
["pp3_bl4_9_6_unit",{"$f":"'T2-B(PP3)'!$C$267","v":0},"#'T2-B(PP3)'!$C$267"]
["pp3_bl4_9_6_unit_in",{"$f":"'T2-B(PP3)'!$D$267","v":0},"#'T2-B(PP3)'!$D$267"]
["pp3_bl4_9_6_units_out",{"$f":"'T2-B(PP3)'!$G$267","v":0},"#'T2-B(PP3)'!$G$267"]
["pp3_bl4_9_7_name",{"$f":"'T2-B(PP3)'!$B$268","v":0},"#'T2-B(PP3)'!$B$268"]
["pp3_bl4_9_7_rate_in",{"$f":"'T2-B(PP3)'!$E$268","v":0},"#'T2-B(PP3)'!$E$268"]
["pp3_bl4_9_7_rate_out",{"$f":"'T2-B(PP3)'!$H$268","v":0},"#'T2-B(PP3)'!$H$268"]
["pp3_bl4_9_7_total",{"$f":"'T2-B(PP3)'!$J$268","v":0},"#'T2-B(PP3)'!$J$268"]
["pp3_bl4_9_7_total_in",{"$f":"'T2-B(PP3)'!$F$268","v":0},"#'T2-B(PP3)'!$F$268"]
["pp3_bl4_9_7_total_out",{"$f":"'T2-B(PP3)'!$I$268","v":0},"#'T2-B(PP3)'!$I$268"]
["pp3_bl4_9_7_unit",{"$f":"'T2-B(PP3)'!$C$268","v":0},"#'T2-B(PP3)'!$C$268"]
["pp3_bl4_9_7_unit_in",{"$f":"'T2-B(PP3)'!$D$268","v":0},"#'T2-B(PP3)'!$D$268"]
["pp3_bl4_9_7_units_out",{"$f":"'T2-B(PP3)'!$G$268","v":0},"#'T2-B(PP3)'!$G$268"]
["pp3_bl4_9_8_name",{"$f":"'T2-B(PP3)'!$B$269","v":0},"#'T2-B(PP3)'!$B$269"]
["pp3_bl4_9_8_rate_in",{"$f":"'T2-B(PP3)'!$E$269","v":0},"#'T2-B(PP3)'!$E$269"]
["pp3_bl4_9_8_rate_out",{"$f":"'T2-B(PP3)'!$H$269","v":0},"#'T2-B(PP3)'!$H$269"]
["pp3_bl4_9_8_total",{"$f":"'T2-B(PP3)'!$J$269","v":0},"#'T2-B(PP3)'!$J$269"]
["pp3_bl4_9_8_total_in",{"$f":"'T2-B(PP3)'!$F$269","v":0},"#'T2-B(PP3)'!$F$269"]
["pp3_bl4_9_8_total_out",{"$f":"'T2-B(PP3)'!$I$269","v":0},"#'T2-B(PP3)'!$I$269"]
["pp3_bl4_9_8_unit",{"$f":"'T2-B(PP3)'!$C$269","v":0},"#'T2-B(PP3)'!$C$269"]
["pp3_bl4_9_8_unit_in",{"$f":"'T2-B(PP3)'!$D$269","v":0},"#'T2-B(PP3)'!$D$269"]
["pp3_bl4_9_8_units_out",{"$f":"'T2-B(PP3)'!$G$269","v":0},"#'T2-B(PP3)'!$G$269"]
["pp3_bl4_9_9_name",{"$f":"'T2-B(PP3)'!$B$270","v":0},"#'T2-B(PP3)'!$B$270"]
["pp3_bl4_9_9_rate_in",{"$f":"'T2-B(PP3)'!$E$270","v":0},"#'T2-B(PP3)'!$E$270"]
["pp3_bl4_9_9_rate_out",{"$f":"'T2-B(PP3)'!$H$270","v":0},"#'T2-B(PP3)'!$H$270"]
["pp3_bl4_9_9_total",{"$f":"'T2-B(PP3)'!$J$270","v":0},"#'T2-B(PP3)'!$J$270"]
["pp3_bl4_9_9_total_in",{"$f":"'T2-B(PP3)'!$F$270","v":0},"#'T2-B(PP3)'!$F$270"]
["pp3_bl4_9_9_total_out",{"$f":"'T2-B(PP3)'!$I$270","v":0},"#'T2-B(PP3)'!$I$270"]
["pp3_bl4_9_9_unit",{"$f":"'T2-B(PP3)'!$C$270","v":0},"#'T2-B(PP3)'!$C$270"]
["pp3_bl4_9_9_unit_in",{"$f":"'T2-B(PP3)'!$D$270","v":0},"#'T2-B(PP3)'!$D$270"]
["pp3_bl4_9_9_units_out",{"$f":"'T2-B(PP3)'!$G$270","v":0},"#'T2-B(PP3)'!$G$270"]
["pp3_bl4_9_total",{"$f":"'T2-B(PP3)'!$J$261","v":0},"#'T2-B(PP3)'!$J$261"]
["pp3_bl4_9_total_in",{"$f":"'T2-B(PP3)'!$F$261","v":0},"#'T2-B(PP3)'!$F$261"]
["pp3_bl4_9_total_out",{"$f":"'T2-B(PP3)'!$I$261","v":0},"#'T2-B(PP3)'!$I$261"]
["pp3_bl4_total",{"$f":"'T2-B(PP3)'!$J$345","v":0},"#'T2-B(PP3)'!$J$345"]
["pp3_bl4_total_in",{"$f":"'T2-B(PP3)'!$F$345","v":0},"#'T2-B(PP3)'!$F$345"]
["pp3_bl4_total_out",{"$f":"'T2-B(PP3)'!$I$345","v":0},"#'T2-B(PP3)'!$I$345"]
["pp3_bl5_1_1_name",{"$f":"'T2-B(PP3)'!$B$350","v":0},"#'T2-B(PP3)'!$B$350"]
["pp3_bl5_1_1_rate_in",{"$f":"'T2-B(PP3)'!$E$350","v":0},"#'T2-B(PP3)'!$E$350"]
["pp3_bl5_1_1_rate_out",{"$f":"'T2-B(PP3)'!$H$350","v":0},"#'T2-B(PP3)'!$H$350"]
["pp3_bl5_1_1_total",{"$f":"'T2-B(PP3)'!$J$350","v":0},"#'T2-B(PP3)'!$J$350"]
["pp3_bl5_1_1_total_in",{"$f":"'T2-B(PP3)'!$F$350","v":0},"#'T2-B(PP3)'!$F$350"]
["pp3_bl5_1_1_total_out",{"$f":"'T2-B(PP3)'!$I$350","v":0},"#'T2-B(PP3)'!$I$350"]
["pp3_bl5_1_1_unit",{"$f":"'T2-B(PP3)'!$C$350","v":0},"#'T2-B(PP3)'!$C$350"]
["pp3_bl5_1_1_unit_in",{"$f":"'T2-B(PP3)'!$D$350","v":0},"#'T2-B(PP3)'!$D$350"]
["pp3_bl5_1_1_units_out",{"$f":"'T2-B(PP3)'!$G$350","v":0},"#'T2-B(PP3)'!$G$350"]
["pp3_bl5_1_10_name",{"$f":"'T2-B(PP3)'!$B$359","v":0},"#'T2-B(PP3)'!$B$359"]
["pp3_bl5_1_10_rate_in",{"$f":"'T2-B(PP3)'!$E$359","v":0},"#'T2-B(PP3)'!$E$359"]
["pp3_bl5_1_10_rate_out",{"$f":"'T2-B(PP3)'!$H$359","v":0},"#'T2-B(PP3)'!$H$359"]
["pp3_bl5_1_10_total",{"$f":"'T2-B(PP3)'!$J$359","v":0},"#'T2-B(PP3)'!$J$359"]
["pp3_bl5_1_10_total_in",{"$f":"'T2-B(PP3)'!$F$359","v":0},"#'T2-B(PP3)'!$F$359"]
["pp3_bl5_1_10_total_out",{"$f":"'T2-B(PP3)'!$I$359","v":0},"#'T2-B(PP3)'!$I$359"]
["pp3_bl5_1_10_unit",{"$f":"'T2-B(PP3)'!$C$359","v":0},"#'T2-B(PP3)'!$C$359"]
["pp3_bl5_1_10_unit_in",{"$f":"'T2-B(PP3)'!$D$359","v":0},"#'T2-B(PP3)'!$D$359"]
["pp3_bl5_1_10_units_out",{"$f":"'T2-B(PP3)'!$G$359","v":0},"#'T2-B(PP3)'!$G$359"]
["pp3_bl5_1_11_name",{"$f":"'T2-B(PP3)'!$B$360","v":0},"#'T2-B(PP3)'!$B$360"]
["pp3_bl5_1_11_rate_in",{"$f":"'T2-B(PP3)'!$E$360","v":0},"#'T2-B(PP3)'!$E$360"]
["pp3_bl5_1_11_rate_out",{"$f":"'T2-B(PP3)'!$H$360","v":0},"#'T2-B(PP3)'!$H$360"]
["pp3_bl5_1_11_total",{"$f":"'T2-B(PP3)'!$J$360","v":0},"#'T2-B(PP3)'!$J$360"]
["pp3_bl5_1_11_total_in",{"$f":"'T2-B(PP3)'!$F$360","v":0},"#'T2-B(PP3)'!$F$360"]
["pp3_bl5_1_11_total_out",{"$f":"'T2-B(PP3)'!$I$360","v":0},"#'T2-B(PP3)'!$I$360"]
["pp3_bl5_1_11_unit",{"$f":"'T2-B(PP3)'!$C$360","v":0},"#'T2-B(PP3)'!$C$360"]
["pp3_bl5_1_11_unit_in",{"$f":"'T2-B(PP3)'!$D$360","v":0},"#'T2-B(PP3)'!$D$360"]
["pp3_bl5_1_11_units_out",{"$f":"'T2-B(PP3)'!$G$360","v":0},"#'T2-B(PP3)'!$G$360"]
["pp3_bl5_1_12_name",{"$f":"'T2-B(PP3)'!$B$361","v":0},"#'T2-B(PP3)'!$B$361"]
["pp3_bl5_1_12_rate_in",{"$f":"'T2-B(PP3)'!$E$361","v":0},"#'T2-B(PP3)'!$E$361"]
["pp3_bl5_1_12_rate_out",{"$f":"'T2-B(PP3)'!$H$361","v":0},"#'T2-B(PP3)'!$H$361"]
["pp3_bl5_1_12_total",{"$f":"'T2-B(PP3)'!$J$361","v":0},"#'T2-B(PP3)'!$J$361"]
["pp3_bl5_1_12_total_in",{"$f":"'T2-B(PP3)'!$F$361","v":0},"#'T2-B(PP3)'!$F$361"]
["pp3_bl5_1_12_total_out",{"$f":"'T2-B(PP3)'!$I$361","v":0},"#'T2-B(PP3)'!$I$361"]
["pp3_bl5_1_12_unit",{"$f":"'T2-B(PP3)'!$C$361","v":0},"#'T2-B(PP3)'!$C$361"]
["pp3_bl5_1_12_unit_in",{"$f":"'T2-B(PP3)'!$D$361","v":0},"#'T2-B(PP3)'!$D$361"]
["pp3_bl5_1_12_units_out",{"$f":"'T2-B(PP3)'!$G$361","v":0},"#'T2-B(PP3)'!$G$361"]
["pp3_bl5_1_13_name",{"$f":"'T2-B(PP3)'!$B$362","v":0},"#'T2-B(PP3)'!$B$362"]
["pp3_bl5_1_13_rate_in",{"$f":"'T2-B(PP3)'!$E$362","v":0},"#'T2-B(PP3)'!$E$362"]
["pp3_bl5_1_13_rate_out",{"$f":"'T2-B(PP3)'!$H$362","v":0},"#'T2-B(PP3)'!$H$362"]
["pp3_bl5_1_13_total",{"$f":"'T2-B(PP3)'!$J$362","v":0},"#'T2-B(PP3)'!$J$362"]
["pp3_bl5_1_13_total_in",{"$f":"'T2-B(PP3)'!$F$362","v":0},"#'T2-B(PP3)'!$F$362"]
["pp3_bl5_1_13_total_out",{"$f":"'T2-B(PP3)'!$I$362","v":0},"#'T2-B(PP3)'!$I$362"]
["pp3_bl5_1_13_unit",{"$f":"'T2-B(PP3)'!$C$362","v":0},"#'T2-B(PP3)'!$C$362"]
["pp3_bl5_1_13_unit_in",{"$f":"'T2-B(PP3)'!$D$362","v":0},"#'T2-B(PP3)'!$D$362"]
["pp3_bl5_1_13_units_out",{"$f":"'T2-B(PP3)'!$G$362","v":0},"#'T2-B(PP3)'!$G$362"]
["pp3_bl5_1_14_name",{"$f":"'T2-B(PP3)'!$B$363","v":0},"#'T2-B(PP3)'!$B$363"]
["pp3_bl5_1_14_rate_in",{"$f":"'T2-B(PP3)'!$E$363","v":0},"#'T2-B(PP3)'!$E$363"]
["pp3_bl5_1_14_rate_out",{"$f":"'T2-B(PP3)'!$H$363","v":0},"#'T2-B(PP3)'!$H$363"]
["pp3_bl5_1_14_total",{"$f":"'T2-B(PP3)'!$J$363","v":0},"#'T2-B(PP3)'!$J$363"]
["pp3_bl5_1_14_total_in",{"$f":"'T2-B(PP3)'!$F$363","v":0},"#'T2-B(PP3)'!$F$363"]
["pp3_bl5_1_14_total_out",{"$f":"'T2-B(PP3)'!$I$363","v":0},"#'T2-B(PP3)'!$I$363"]
["pp3_bl5_1_14_unit",{"$f":"'T2-B(PP3)'!$C$363","v":0},"#'T2-B(PP3)'!$C$363"]
["pp3_bl5_1_14_unit_in",{"$f":"'T2-B(PP3)'!$D$363","v":0},"#'T2-B(PP3)'!$D$363"]
["pp3_bl5_1_14_units_out",{"$f":"'T2-B(PP3)'!$G$363","v":0},"#'T2-B(PP3)'!$G$363"]
["pp3_bl5_1_15_name",{"$f":"'T2-B(PP3)'!$B$364","v":0},"#'T2-B(PP3)'!$B$364"]
["pp3_bl5_1_15_rate_in",{"$f":"'T2-B(PP3)'!$E$364","v":0},"#'T2-B(PP3)'!$E$364"]
["pp3_bl5_1_15_rate_out",{"$f":"'T2-B(PP3)'!$H$364","v":0},"#'T2-B(PP3)'!$H$364"]
["pp3_bl5_1_15_total",{"$f":"'T2-B(PP3)'!$J$364","v":0},"#'T2-B(PP3)'!$J$364"]
["pp3_bl5_1_15_total_in",{"$f":"'T2-B(PP3)'!$F$364","v":0},"#'T2-B(PP3)'!$F$364"]
["pp3_bl5_1_15_total_out",{"$f":"'T2-B(PP3)'!$I$364","v":0},"#'T2-B(PP3)'!$I$364"]
["pp3_bl5_1_15_unit",{"$f":"'T2-B(PP3)'!$C$364","v":0},"#'T2-B(PP3)'!$C$364"]
["pp3_bl5_1_15_unit_in",{"$f":"'T2-B(PP3)'!$D$364","v":0},"#'T2-B(PP3)'!$D$364"]
["pp3_bl5_1_15_units_out",{"$f":"'T2-B(PP3)'!$G$364","v":0},"#'T2-B(PP3)'!$G$364"]
["pp3_bl5_1_16_name",{"$f":"'T2-B(PP3)'!$B$365","v":0},"#'T2-B(PP3)'!$B$365"]
["pp3_bl5_1_16_rate_in",{"$f":"'T2-B(PP3)'!$E$365","v":0},"#'T2-B(PP3)'!$E$365"]
["pp3_bl5_1_16_rate_out",{"$f":"'T2-B(PP3)'!$H$365","v":0},"#'T2-B(PP3)'!$H$365"]
["pp3_bl5_1_16_total",{"$f":"'T2-B(PP3)'!$J$365","v":0},"#'T2-B(PP3)'!$J$365"]
["pp3_bl5_1_16_total_in",{"$f":"'T2-B(PP3)'!$F$365","v":0},"#'T2-B(PP3)'!$F$365"]
["pp3_bl5_1_16_total_out",{"$f":"'T2-B(PP3)'!$I$365","v":0},"#'T2-B(PP3)'!$I$365"]
["pp3_bl5_1_16_unit",{"$f":"'T2-B(PP3)'!$C$365","v":0},"#'T2-B(PP3)'!$C$365"]
["pp3_bl5_1_16_unit_in",{"$f":"'T2-B(PP3)'!$D$365","v":0},"#'T2-B(PP3)'!$D$365"]
["pp3_bl5_1_16_units_out",{"$f":"'T2-B(PP3)'!$G$365","v":0},"#'T2-B(PP3)'!$G$365"]
["pp3_bl5_1_17_name",{"$f":"'T2-B(PP3)'!$B$366","v":0},"#'T2-B(PP3)'!$B$366"]
["pp3_bl5_1_17_rate_in",{"$f":"'T2-B(PP3)'!$E$366","v":0},"#'T2-B(PP3)'!$E$366"]
["pp3_bl5_1_17_rate_out",{"$f":"'T2-B(PP3)'!$H$366","v":0},"#'T2-B(PP3)'!$H$366"]
["pp3_bl5_1_17_total",{"$f":"'T2-B(PP3)'!$J$366","v":0},"#'T2-B(PP3)'!$J$366"]
["pp3_bl5_1_17_total_in",{"$f":"'T2-B(PP3)'!$F$366","v":0},"#'T2-B(PP3)'!$F$366"]
["pp3_bl5_1_17_total_out",{"$f":"'T2-B(PP3)'!$I$366","v":0},"#'T2-B(PP3)'!$I$366"]
["pp3_bl5_1_17_unit",{"$f":"'T2-B(PP3)'!$C$366","v":0},"#'T2-B(PP3)'!$C$366"]
["pp3_bl5_1_17_unit_in",{"$f":"'T2-B(PP3)'!$D$366","v":0},"#'T2-B(PP3)'!$D$366"]
["pp3_bl5_1_17_units_out",{"$f":"'T2-B(PP3)'!$G$366","v":0},"#'T2-B(PP3)'!$G$366"]
["pp3_bl5_1_18_name",{"$f":"'T2-B(PP3)'!$B$367","v":0},"#'T2-B(PP3)'!$B$367"]
["pp3_bl5_1_18_rate_in",{"$f":"'T2-B(PP3)'!$E$367","v":0},"#'T2-B(PP3)'!$E$367"]
["pp3_bl5_1_18_rate_out",{"$f":"'T2-B(PP3)'!$H$367","v":0},"#'T2-B(PP3)'!$H$367"]
["pp3_bl5_1_18_total",{"$f":"'T2-B(PP3)'!$J$367","v":0},"#'T2-B(PP3)'!$J$367"]
["pp3_bl5_1_18_total_in",{"$f":"'T2-B(PP3)'!$F$367","v":0},"#'T2-B(PP3)'!$F$367"]
["pp3_bl5_1_18_total_out",{"$f":"'T2-B(PP3)'!$I$367","v":0},"#'T2-B(PP3)'!$I$367"]
["pp3_bl5_1_18_unit",{"$f":"'T2-B(PP3)'!$C$367","v":0},"#'T2-B(PP3)'!$C$367"]
["pp3_bl5_1_18_unit_in",{"$f":"'T2-B(PP3)'!$D$367","v":0},"#'T2-B(PP3)'!$D$367"]
["pp3_bl5_1_18_units_out",{"$f":"'T2-B(PP3)'!$G$367","v":0},"#'T2-B(PP3)'!$G$367"]
["pp3_bl5_1_19_name",{"$f":"'T2-B(PP3)'!$B$368","v":0},"#'T2-B(PP3)'!$B$368"]
["pp3_bl5_1_19_rate_in",{"$f":"'T2-B(PP3)'!$E$368","v":0},"#'T2-B(PP3)'!$E$368"]
["pp3_bl5_1_19_rate_out",{"$f":"'T2-B(PP3)'!$H$368","v":0},"#'T2-B(PP3)'!$H$368"]
["pp3_bl5_1_19_total",{"$f":"'T2-B(PP3)'!$J$368","v":0},"#'T2-B(PP3)'!$J$368"]
["pp3_bl5_1_19_total_in",{"$f":"'T2-B(PP3)'!$F$368","v":0},"#'T2-B(PP3)'!$F$368"]
["pp3_bl5_1_19_total_out",{"$f":"'T2-B(PP3)'!$I$368","v":0},"#'T2-B(PP3)'!$I$368"]
["pp3_bl5_1_19_unit",{"$f":"'T2-B(PP3)'!$C$368","v":0},"#'T2-B(PP3)'!$C$368"]
["pp3_bl5_1_19_unit_in",{"$f":"'T2-B(PP3)'!$D$368","v":0},"#'T2-B(PP3)'!$D$368"]
["pp3_bl5_1_19_units_out",{"$f":"'T2-B(PP3)'!$G$368","v":0},"#'T2-B(PP3)'!$G$368"]
["pp3_bl5_1_2_name",{"$f":"'T2-B(PP3)'!$B$351","v":0},"#'T2-B(PP3)'!$B$351"]
["pp3_bl5_1_2_rate_in",{"$f":"'T2-B(PP3)'!$E$351","v":0},"#'T2-B(PP3)'!$E$351"]
["pp3_bl5_1_2_rate_out",{"$f":"'T2-B(PP3)'!$H$351","v":0},"#'T2-B(PP3)'!$H$351"]
["pp3_bl5_1_2_total",{"$f":"'T2-B(PP3)'!$J$351","v":0},"#'T2-B(PP3)'!$J$351"]
["pp3_bl5_1_2_total_in",{"$f":"'T2-B(PP3)'!$F$351","v":0},"#'T2-B(PP3)'!$F$351"]
["pp3_bl5_1_2_total_out",{"$f":"'T2-B(PP3)'!$I$351","v":0},"#'T2-B(PP3)'!$I$351"]
["pp3_bl5_1_2_unit",{"$f":"'T2-B(PP3)'!$C$351","v":0},"#'T2-B(PP3)'!$C$351"]
["pp3_bl5_1_2_unit_in",{"$f":"'T2-B(PP3)'!$D$351","v":0},"#'T2-B(PP3)'!$D$351"]
["pp3_bl5_1_2_units_out",{"$f":"'T2-B(PP3)'!$G$351","v":0},"#'T2-B(PP3)'!$G$351"]
["pp3_bl5_1_20_name",{"$f":"'T2-B(PP3)'!$B$369","v":0},"#'T2-B(PP3)'!$B$369"]
["pp3_bl5_1_20_rate_in",{"$f":"'T2-B(PP3)'!$E$369","v":0},"#'T2-B(PP3)'!$E$369"]
["pp3_bl5_1_20_rate_out",{"$f":"'T2-B(PP3)'!$H$369","v":0},"#'T2-B(PP3)'!$H$369"]
["pp3_bl5_1_20_total",{"$f":"'T2-B(PP3)'!$J$369","v":0},"#'T2-B(PP3)'!$J$369"]
["pp3_bl5_1_20_total_in",{"$f":"'T2-B(PP3)'!$F$369","v":0},"#'T2-B(PP3)'!$F$369"]
["pp3_bl5_1_20_total_out",{"$f":"'T2-B(PP3)'!$I$369","v":0},"#'T2-B(PP3)'!$I$369"]
["pp3_bl5_1_20_unit",{"$f":"'T2-B(PP3)'!$C$369","v":0},"#'T2-B(PP3)'!$C$369"]
["pp3_bl5_1_20_unit_in",{"$f":"'T2-B(PP3)'!$D$369","v":0},"#'T2-B(PP3)'!$D$369"]
["pp3_bl5_1_20_units_out",{"$f":"'T2-B(PP3)'!$G$369","v":0},"#'T2-B(PP3)'!$G$369"]
["pp3_bl5_1_3_name",{"$f":"'T2-B(PP3)'!$B$352","v":0},"#'T2-B(PP3)'!$B$352"]
["pp3_bl5_1_3_rate_in",{"$f":"'T2-B(PP3)'!$E$352","v":0},"#'T2-B(PP3)'!$E$352"]
["pp3_bl5_1_3_rate_out",{"$f":"'T2-B(PP3)'!$H$352","v":0},"#'T2-B(PP3)'!$H$352"]
["pp3_bl5_1_3_total",{"$f":"'T2-B(PP3)'!$J$352","v":0},"#'T2-B(PP3)'!$J$352"]
["pp3_bl5_1_3_total_in",{"$f":"'T2-B(PP3)'!$F$352","v":0},"#'T2-B(PP3)'!$F$352"]
["pp3_bl5_1_3_total_out",{"$f":"'T2-B(PP3)'!$I$352","v":0},"#'T2-B(PP3)'!$I$352"]
["pp3_bl5_1_3_unit",{"$f":"'T2-B(PP3)'!$C$352","v":0},"#'T2-B(PP3)'!$C$352"]
["pp3_bl5_1_3_unit_in",{"$f":"'T2-B(PP3)'!$D$352","v":0},"#'T2-B(PP3)'!$D$352"]
["pp3_bl5_1_3_units_out",{"$f":"'T2-B(PP3)'!$G$352","v":0},"#'T2-B(PP3)'!$G$352"]
["pp3_bl5_1_4_name",{"$f":"'T2-B(PP3)'!$B$353","v":0},"#'T2-B(PP3)'!$B$353"]
["pp3_bl5_1_4_rate_in",{"$f":"'T2-B(PP3)'!$E$353","v":0},"#'T2-B(PP3)'!$E$353"]
["pp3_bl5_1_4_rate_out",{"$f":"'T2-B(PP3)'!$H$353","v":0},"#'T2-B(PP3)'!$H$353"]
["pp3_bl5_1_4_total",{"$f":"'T2-B(PP3)'!$J$353","v":0},"#'T2-B(PP3)'!$J$353"]
["pp3_bl5_1_4_total_in",{"$f":"'T2-B(PP3)'!$F$353","v":0},"#'T2-B(PP3)'!$F$353"]
["pp3_bl5_1_4_total_out",{"$f":"'T2-B(PP3)'!$I$353","v":0},"#'T2-B(PP3)'!$I$353"]
["pp3_bl5_1_4_unit",{"$f":"'T2-B(PP3)'!$C$353","v":0},"#'T2-B(PP3)'!$C$353"]
["pp3_bl5_1_4_unit_in",{"$f":"'T2-B(PP3)'!$D$353","v":0},"#'T2-B(PP3)'!$D$353"]
["pp3_bl5_1_4_units_out",{"$f":"'T2-B(PP3)'!$G$353","v":0},"#'T2-B(PP3)'!$G$353"]
["pp3_bl5_1_5_name",{"$f":"'T2-B(PP3)'!$B$354","v":0},"#'T2-B(PP3)'!$B$354"]
["pp3_bl5_1_5_rate_in",{"$f":"'T2-B(PP3)'!$E$354","v":0},"#'T2-B(PP3)'!$E$354"]
["pp3_bl5_1_5_rate_out",{"$f":"'T2-B(PP3)'!$H$354","v":0},"#'T2-B(PP3)'!$H$354"]
["pp3_bl5_1_5_total",{"$f":"'T2-B(PP3)'!$J$354","v":0},"#'T2-B(PP3)'!$J$354"]
["pp3_bl5_1_5_total_in",{"$f":"'T2-B(PP3)'!$F$354","v":0},"#'T2-B(PP3)'!$F$354"]
["pp3_bl5_1_5_total_out",{"$f":"'T2-B(PP3)'!$I$354","v":0},"#'T2-B(PP3)'!$I$354"]
["pp3_bl5_1_5_unit",{"$f":"'T2-B(PP3)'!$C$354","v":0},"#'T2-B(PP3)'!$C$354"]
["pp3_bl5_1_5_unit_in",{"$f":"'T2-B(PP3)'!$D$354","v":0},"#'T2-B(PP3)'!$D$354"]
["pp3_bl5_1_5_units_out",{"$f":"'T2-B(PP3)'!$G$354","v":0},"#'T2-B(PP3)'!$G$354"]
["pp3_bl5_1_6_name",{"$f":"'T2-B(PP3)'!$B$355","v":0},"#'T2-B(PP3)'!$B$355"]
["pp3_bl5_1_6_rate_in",{"$f":"'T2-B(PP3)'!$E$355","v":0},"#'T2-B(PP3)'!$E$355"]
["pp3_bl5_1_6_rate_out",{"$f":"'T2-B(PP3)'!$H$355","v":0},"#'T2-B(PP3)'!$H$355"]
["pp3_bl5_1_6_total",{"$f":"'T2-B(PP3)'!$J$355","v":0},"#'T2-B(PP3)'!$J$355"]
["pp3_bl5_1_6_total_in",{"$f":"'T2-B(PP3)'!$F$355","v":0},"#'T2-B(PP3)'!$F$355"]
["pp3_bl5_1_6_total_out",{"$f":"'T2-B(PP3)'!$I$355","v":0},"#'T2-B(PP3)'!$I$355"]
["pp3_bl5_1_6_unit",{"$f":"'T2-B(PP3)'!$C$355","v":0},"#'T2-B(PP3)'!$C$355"]
["pp3_bl5_1_6_unit_in",{"$f":"'T2-B(PP3)'!$D$355","v":0},"#'T2-B(PP3)'!$D$355"]
["pp3_bl5_1_6_units_out",{"$f":"'T2-B(PP3)'!$G$355","v":0},"#'T2-B(PP3)'!$G$355"]
["pp3_bl5_1_7_name",{"$f":"'T2-B(PP3)'!$B$356","v":0},"#'T2-B(PP3)'!$B$356"]
["pp3_bl5_1_7_rate_in",{"$f":"'T2-B(PP3)'!$E$356","v":0},"#'T2-B(PP3)'!$E$356"]
["pp3_bl5_1_7_rate_out",{"$f":"'T2-B(PP3)'!$H$356","v":0},"#'T2-B(PP3)'!$H$356"]
["pp3_bl5_1_7_total",{"$f":"'T2-B(PP3)'!$J$356","v":0},"#'T2-B(PP3)'!$J$356"]
["pp3_bl5_1_7_total_in",{"$f":"'T2-B(PP3)'!$F$356","v":0},"#'T2-B(PP3)'!$F$356"]
["pp3_bl5_1_7_total_out",{"$f":"'T2-B(PP3)'!$I$356","v":0},"#'T2-B(PP3)'!$I$356"]
["pp3_bl5_1_7_unit",{"$f":"'T2-B(PP3)'!$C$356","v":0},"#'T2-B(PP3)'!$C$356"]
["pp3_bl5_1_7_unit_in",{"$f":"'T2-B(PP3)'!$D$356","v":0},"#'T2-B(PP3)'!$D$356"]
["pp3_bl5_1_7_units_out",{"$f":"'T2-B(PP3)'!$G$356","v":0},"#'T2-B(PP3)'!$G$356"]
["pp3_bl5_1_8_name",{"$f":"'T2-B(PP3)'!$B$357","v":0},"#'T2-B(PP3)'!$B$357"]
["pp3_bl5_1_8_rate_in",{"$f":"'T2-B(PP3)'!$E$357","v":0},"#'T2-B(PP3)'!$E$357"]
["pp3_bl5_1_8_rate_out",{"$f":"'T2-B(PP3)'!$H$357","v":0},"#'T2-B(PP3)'!$H$357"]
["pp3_bl5_1_8_total",{"$f":"'T2-B(PP3)'!$J$357","v":0},"#'T2-B(PP3)'!$J$357"]
["pp3_bl5_1_8_total_in",{"$f":"'T2-B(PP3)'!$F$357","v":0},"#'T2-B(PP3)'!$F$357"]
["pp3_bl5_1_8_total_out",{"$f":"'T2-B(PP3)'!$I$357","v":0},"#'T2-B(PP3)'!$I$357"]
["pp3_bl5_1_8_unit",{"$f":"'T2-B(PP3)'!$C$357","v":0},"#'T2-B(PP3)'!$C$357"]
["pp3_bl5_1_8_unit_in",{"$f":"'T2-B(PP3)'!$D$357","v":0},"#'T2-B(PP3)'!$D$357"]
["pp3_bl5_1_8_units_out",{"$f":"'T2-B(PP3)'!$G$357","v":0},"#'T2-B(PP3)'!$G$357"]
["pp3_bl5_1_9_name",{"$f":"'T2-B(PP3)'!$B$358","v":0},"#'T2-B(PP3)'!$B$358"]
["pp3_bl5_1_9_rate_in",{"$f":"'T2-B(PP3)'!$E$358","v":0},"#'T2-B(PP3)'!$E$358"]
["pp3_bl5_1_9_rate_out",{"$f":"'T2-B(PP3)'!$H$358","v":0},"#'T2-B(PP3)'!$H$358"]
["pp3_bl5_1_9_total",{"$f":"'T2-B(PP3)'!$J$358","v":0},"#'T2-B(PP3)'!$J$358"]
["pp3_bl5_1_9_total_in",{"$f":"'T2-B(PP3)'!$F$358","v":0},"#'T2-B(PP3)'!$F$358"]
["pp3_bl5_1_9_total_out",{"$f":"'T2-B(PP3)'!$I$358","v":0},"#'T2-B(PP3)'!$I$358"]
["pp3_bl5_1_9_unit",{"$f":"'T2-B(PP3)'!$C$358","v":0},"#'T2-B(PP3)'!$C$358"]
["pp3_bl5_1_9_unit_in",{"$f":"'T2-B(PP3)'!$D$358","v":0},"#'T2-B(PP3)'!$D$358"]
["pp3_bl5_1_9_units_out",{"$f":"'T2-B(PP3)'!$G$358","v":0},"#'T2-B(PP3)'!$G$358"]
["pp3_bl5_1_total",{"$f":"'T2-B(PP3)'!$J$349","v":0},"#'T2-B(PP3)'!$J$349"]
["pp3_bl5_1_total_in",{"$f":"'T2-B(PP3)'!$F$349","v":0},"#'T2-B(PP3)'!$F$349"]
["pp3_bl5_1_total_out",{"$f":"'T2-B(PP3)'!$I$349","v":0},"#'T2-B(PP3)'!$I$349"]
["pp3_bl5_2_1_name",{"$f":"'T2-B(PP3)'!$B$371","v":0},"#'T2-B(PP3)'!$B$371"]
["pp3_bl5_2_1_rate_in",{"$f":"'T2-B(PP3)'!$E$371","v":0},"#'T2-B(PP3)'!$E$371"]
["pp3_bl5_2_1_rate_out",{"$f":"'T2-B(PP3)'!$H$371","v":0},"#'T2-B(PP3)'!$H$371"]
["pp3_bl5_2_1_total",{"$f":"'T2-B(PP3)'!$J$371","v":0},"#'T2-B(PP3)'!$J$371"]
["pp3_bl5_2_1_total_in",{"$f":"'T2-B(PP3)'!$F$371","v":0},"#'T2-B(PP3)'!$F$371"]
["pp3_bl5_2_1_total_out",{"$f":"'T2-B(PP3)'!$I$371","v":0},"#'T2-B(PP3)'!$I$371"]
["pp3_bl5_2_1_unit",{"$f":"'T2-B(PP3)'!$C$371","v":0},"#'T2-B(PP3)'!$C$371"]
["pp3_bl5_2_1_unit_in",{"$f":"'T2-B(PP3)'!$D$371","v":0},"#'T2-B(PP3)'!$D$371"]
["pp3_bl5_2_1_units_out",{"$f":"'T2-B(PP3)'!$G$371","v":0},"#'T2-B(PP3)'!$G$371"]
["pp3_bl5_2_10_name",{"$f":"'T2-B(PP3)'!$B$380","v":0},"#'T2-B(PP3)'!$B$380"]
["pp3_bl5_2_10_rate_in",{"$f":"'T2-B(PP3)'!$E$380","v":0},"#'T2-B(PP3)'!$E$380"]
["pp3_bl5_2_10_rate_out",{"$f":"'T2-B(PP3)'!$H$380","v":0},"#'T2-B(PP3)'!$H$380"]
["pp3_bl5_2_10_total",{"$f":"'T2-B(PP3)'!$J$380","v":0},"#'T2-B(PP3)'!$J$380"]
["pp3_bl5_2_10_total_in",{"$f":"'T2-B(PP3)'!$F$380","v":0},"#'T2-B(PP3)'!$F$380"]
["pp3_bl5_2_10_total_out",{"$f":"'T2-B(PP3)'!$I$380","v":0},"#'T2-B(PP3)'!$I$380"]
["pp3_bl5_2_10_unit",{"$f":"'T2-B(PP3)'!$C$380","v":0},"#'T2-B(PP3)'!$C$380"]
["pp3_bl5_2_10_unit_in",{"$f":"'T2-B(PP3)'!$D$380","v":0},"#'T2-B(PP3)'!$D$380"]
["pp3_bl5_2_10_units_out",{"$f":"'T2-B(PP3)'!$G$380","v":0},"#'T2-B(PP3)'!$G$380"]
["pp3_bl5_2_11_name",{"$f":"'T2-B(PP3)'!$B$381","v":0},"#'T2-B(PP3)'!$B$381"]
["pp3_bl5_2_11_rate_in",{"$f":"'T2-B(PP3)'!$E$381","v":0},"#'T2-B(PP3)'!$E$381"]
["pp3_bl5_2_11_rate_out",{"$f":"'T2-B(PP3)'!$H$381","v":0},"#'T2-B(PP3)'!$H$381"]
["pp3_bl5_2_11_total",{"$f":"'T2-B(PP3)'!$J$381","v":0},"#'T2-B(PP3)'!$J$381"]
["pp3_bl5_2_11_total_in",{"$f":"'T2-B(PP3)'!$F$381","v":0},"#'T2-B(PP3)'!$F$381"]
["pp3_bl5_2_11_total_out",{"$f":"'T2-B(PP3)'!$I$381","v":0},"#'T2-B(PP3)'!$I$381"]
["pp3_bl5_2_11_unit",{"$f":"'T2-B(PP3)'!$C$381","v":0},"#'T2-B(PP3)'!$C$381"]
["pp3_bl5_2_11_unit_in",{"$f":"'T2-B(PP3)'!$D$381","v":0},"#'T2-B(PP3)'!$D$381"]
["pp3_bl5_2_11_units_out",{"$f":"'T2-B(PP3)'!$G$381","v":0},"#'T2-B(PP3)'!$G$381"]
["pp3_bl5_2_12_name",{"$f":"'T2-B(PP3)'!$B$382","v":0},"#'T2-B(PP3)'!$B$382"]
["pp3_bl5_2_12_rate_in",{"$f":"'T2-B(PP3)'!$E$382","v":0},"#'T2-B(PP3)'!$E$382"]
["pp3_bl5_2_12_rate_out",{"$f":"'T2-B(PP3)'!$H$382","v":0},"#'T2-B(PP3)'!$H$382"]
["pp3_bl5_2_12_total",{"$f":"'T2-B(PP3)'!$J$382","v":0},"#'T2-B(PP3)'!$J$382"]
["pp3_bl5_2_12_total_in",{"$f":"'T2-B(PP3)'!$F$382","v":0},"#'T2-B(PP3)'!$F$382"]
["pp3_bl5_2_12_total_out",{"$f":"'T2-B(PP3)'!$I$382","v":0},"#'T2-B(PP3)'!$I$382"]
["pp3_bl5_2_12_unit",{"$f":"'T2-B(PP3)'!$C$382","v":0},"#'T2-B(PP3)'!$C$382"]
["pp3_bl5_2_12_unit_in",{"$f":"'T2-B(PP3)'!$D$382","v":0},"#'T2-B(PP3)'!$D$382"]
["pp3_bl5_2_12_units_out",{"$f":"'T2-B(PP3)'!$G$382","v":0},"#'T2-B(PP3)'!$G$382"]
["pp3_bl5_2_13_name",{"$f":"'T2-B(PP3)'!$B$383","v":0},"#'T2-B(PP3)'!$B$383"]
["pp3_bl5_2_13_rate_in",{"$f":"'T2-B(PP3)'!$E$383","v":0},"#'T2-B(PP3)'!$E$383"]
["pp3_bl5_2_13_rate_out",{"$f":"'T2-B(PP3)'!$H$383","v":0},"#'T2-B(PP3)'!$H$383"]
["pp3_bl5_2_13_total",{"$f":"'T2-B(PP3)'!$J$383","v":0},"#'T2-B(PP3)'!$J$383"]
["pp3_bl5_2_13_total_in",{"$f":"'T2-B(PP3)'!$F$383","v":0},"#'T2-B(PP3)'!$F$383"]
["pp3_bl5_2_13_total_out",{"$f":"'T2-B(PP3)'!$I$383","v":0},"#'T2-B(PP3)'!$I$383"]
["pp3_bl5_2_13_unit",{"$f":"'T2-B(PP3)'!$C$383","v":0},"#'T2-B(PP3)'!$C$383"]
["pp3_bl5_2_13_unit_in",{"$f":"'T2-B(PP3)'!$D$383","v":0},"#'T2-B(PP3)'!$D$383"]
["pp3_bl5_2_13_units_out",{"$f":"'T2-B(PP3)'!$G$383","v":0},"#'T2-B(PP3)'!$G$383"]
["pp3_bl5_2_14_name",{"$f":"'T2-B(PP3)'!$B$384","v":0},"#'T2-B(PP3)'!$B$384"]
["pp3_bl5_2_14_rate_in",{"$f":"'T2-B(PP3)'!$E$384","v":0},"#'T2-B(PP3)'!$E$384"]
["pp3_bl5_2_14_rate_out",{"$f":"'T2-B(PP3)'!$H$384","v":0},"#'T2-B(PP3)'!$H$384"]
["pp3_bl5_2_14_total",{"$f":"'T2-B(PP3)'!$J$384","v":0},"#'T2-B(PP3)'!$J$384"]
["pp3_bl5_2_14_total_in",{"$f":"'T2-B(PP3)'!$F$384","v":0},"#'T2-B(PP3)'!$F$384"]
["pp3_bl5_2_14_total_out",{"$f":"'T2-B(PP3)'!$I$384","v":0},"#'T2-B(PP3)'!$I$384"]
["pp3_bl5_2_14_unit",{"$f":"'T2-B(PP3)'!$C$384","v":0},"#'T2-B(PP3)'!$C$384"]
["pp3_bl5_2_14_unit_in",{"$f":"'T2-B(PP3)'!$D$384","v":0},"#'T2-B(PP3)'!$D$384"]
["pp3_bl5_2_14_units_out",{"$f":"'T2-B(PP3)'!$G$384","v":0},"#'T2-B(PP3)'!$G$384"]
["pp3_bl5_2_15_name",{"$f":"'T2-B(PP3)'!$B$385","v":0},"#'T2-B(PP3)'!$B$385"]
["pp3_bl5_2_15_rate_in",{"$f":"'T2-B(PP3)'!$E$385","v":0},"#'T2-B(PP3)'!$E$385"]
["pp3_bl5_2_15_rate_out",{"$f":"'T2-B(PP3)'!$H$385","v":0},"#'T2-B(PP3)'!$H$385"]
["pp3_bl5_2_15_total",{"$f":"'T2-B(PP3)'!$J$385","v":0},"#'T2-B(PP3)'!$J$385"]
["pp3_bl5_2_15_total_in",{"$f":"'T2-B(PP3)'!$F$385","v":0},"#'T2-B(PP3)'!$F$385"]
["pp3_bl5_2_15_total_out",{"$f":"'T2-B(PP3)'!$I$385","v":0},"#'T2-B(PP3)'!$I$385"]
["pp3_bl5_2_15_unit",{"$f":"'T2-B(PP3)'!$C$385","v":0},"#'T2-B(PP3)'!$C$385"]
["pp3_bl5_2_15_unit_in",{"$f":"'T2-B(PP3)'!$D$385","v":0},"#'T2-B(PP3)'!$D$385"]
["pp3_bl5_2_15_units_out",{"$f":"'T2-B(PP3)'!$G$385","v":0},"#'T2-B(PP3)'!$G$385"]
["pp3_bl5_2_16_name",{"$f":"'T2-B(PP3)'!$B$386","v":0},"#'T2-B(PP3)'!$B$386"]
["pp3_bl5_2_16_rate_in",{"$f":"'T2-B(PP3)'!$E$386","v":0},"#'T2-B(PP3)'!$E$386"]
["pp3_bl5_2_16_rate_out",{"$f":"'T2-B(PP3)'!$H$386","v":0},"#'T2-B(PP3)'!$H$386"]
["pp3_bl5_2_16_total",{"$f":"'T2-B(PP3)'!$J$386","v":0},"#'T2-B(PP3)'!$J$386"]
["pp3_bl5_2_16_total_in",{"$f":"'T2-B(PP3)'!$F$386","v":0},"#'T2-B(PP3)'!$F$386"]
["pp3_bl5_2_16_total_out",{"$f":"'T2-B(PP3)'!$I$386","v":0},"#'T2-B(PP3)'!$I$386"]
["pp3_bl5_2_16_unit",{"$f":"'T2-B(PP3)'!$C$386","v":0},"#'T2-B(PP3)'!$C$386"]
["pp3_bl5_2_16_unit_in",{"$f":"'T2-B(PP3)'!$D$386","v":0},"#'T2-B(PP3)'!$D$386"]
["pp3_bl5_2_16_units_out",{"$f":"'T2-B(PP3)'!$G$386","v":0},"#'T2-B(PP3)'!$G$386"]
["pp3_bl5_2_17_name",{"$f":"'T2-B(PP3)'!$B$387","v":0},"#'T2-B(PP3)'!$B$387"]
["pp3_bl5_2_17_rate_in",{"$f":"'T2-B(PP3)'!$E$387","v":0},"#'T2-B(PP3)'!$E$387"]
["pp3_bl5_2_17_rate_out",{"$f":"'T2-B(PP3)'!$H$387","v":0},"#'T2-B(PP3)'!$H$387"]
["pp3_bl5_2_17_total",{"$f":"'T2-B(PP3)'!$J$387","v":0},"#'T2-B(PP3)'!$J$387"]
["pp3_bl5_2_17_total_in",{"$f":"'T2-B(PP3)'!$F$387","v":0},"#'T2-B(PP3)'!$F$387"]
["pp3_bl5_2_17_total_out",{"$f":"'T2-B(PP3)'!$I$387","v":0},"#'T2-B(PP3)'!$I$387"]
["pp3_bl5_2_17_unit",{"$f":"'T2-B(PP3)'!$C$387","v":0},"#'T2-B(PP3)'!$C$387"]
["pp3_bl5_2_17_unit_in",{"$f":"'T2-B(PP3)'!$D$387","v":0},"#'T2-B(PP3)'!$D$387"]
["pp3_bl5_2_17_units_out",{"$f":"'T2-B(PP3)'!$G$387","v":0},"#'T2-B(PP3)'!$G$387"]
["pp3_bl5_2_18_name",{"$f":"'T2-B(PP3)'!$B$388","v":0},"#'T2-B(PP3)'!$B$388"]
["pp3_bl5_2_18_rate_in",{"$f":"'T2-B(PP3)'!$E$388","v":0},"#'T2-B(PP3)'!$E$388"]
["pp3_bl5_2_18_rate_out",{"$f":"'T2-B(PP3)'!$H$388","v":0},"#'T2-B(PP3)'!$H$388"]
["pp3_bl5_2_18_total",{"$f":"'T2-B(PP3)'!$J$388","v":0},"#'T2-B(PP3)'!$J$388"]
["pp3_bl5_2_18_total_in",{"$f":"'T2-B(PP3)'!$F$388","v":0},"#'T2-B(PP3)'!$F$388"]
["pp3_bl5_2_18_total_out",{"$f":"'T2-B(PP3)'!$I$388","v":0},"#'T2-B(PP3)'!$I$388"]
["pp3_bl5_2_18_unit",{"$f":"'T2-B(PP3)'!$C$388","v":0},"#'T2-B(PP3)'!$C$388"]
["pp3_bl5_2_18_unit_in",{"$f":"'T2-B(PP3)'!$D$388","v":0},"#'T2-B(PP3)'!$D$388"]
["pp3_bl5_2_18_units_out",{"$f":"'T2-B(PP3)'!$G$388","v":0},"#'T2-B(PP3)'!$G$388"]
["pp3_bl5_2_19_name",{"$f":"'T2-B(PP3)'!$B$389","v":0},"#'T2-B(PP3)'!$B$389"]
["pp3_bl5_2_19_rate_in",{"$f":"'T2-B(PP3)'!$E$389","v":0},"#'T2-B(PP3)'!$E$389"]
["pp3_bl5_2_19_rate_out",{"$f":"'T2-B(PP3)'!$H$389","v":0},"#'T2-B(PP3)'!$H$389"]
["pp3_bl5_2_19_total",{"$f":"'T2-B(PP3)'!$J$389","v":0},"#'T2-B(PP3)'!$J$389"]
["pp3_bl5_2_19_total_in",{"$f":"'T2-B(PP3)'!$F$389","v":0},"#'T2-B(PP3)'!$F$389"]
["pp3_bl5_2_19_total_out",{"$f":"'T2-B(PP3)'!$I$389","v":0},"#'T2-B(PP3)'!$I$389"]
["pp3_bl5_2_19_unit",{"$f":"'T2-B(PP3)'!$C$389","v":0},"#'T2-B(PP3)'!$C$389"]
["pp3_bl5_2_19_unit_in",{"$f":"'T2-B(PP3)'!$D$389","v":0},"#'T2-B(PP3)'!$D$389"]
["pp3_bl5_2_19_units_out",{"$f":"'T2-B(PP3)'!$G$389","v":0},"#'T2-B(PP3)'!$G$389"]
["pp3_bl5_2_2_name",{"$f":"'T2-B(PP3)'!$B$372","v":0},"#'T2-B(PP3)'!$B$372"]
["pp3_bl5_2_2_rate_in",{"$f":"'T2-B(PP3)'!$E$372","v":0},"#'T2-B(PP3)'!$E$372"]
["pp3_bl5_2_2_rate_out",{"$f":"'T2-B(PP3)'!$H$372","v":0},"#'T2-B(PP3)'!$H$372"]
["pp3_bl5_2_2_total",{"$f":"'T2-B(PP3)'!$J$372","v":0},"#'T2-B(PP3)'!$J$372"]
["pp3_bl5_2_2_total_in",{"$f":"'T2-B(PP3)'!$F$372","v":0},"#'T2-B(PP3)'!$F$372"]
["pp3_bl5_2_2_total_out",{"$f":"'T2-B(PP3)'!$I$372","v":0},"#'T2-B(PP3)'!$I$372"]
["pp3_bl5_2_2_unit",{"$f":"'T2-B(PP3)'!$C$372","v":0},"#'T2-B(PP3)'!$C$372"]
["pp3_bl5_2_2_unit_in",{"$f":"'T2-B(PP3)'!$D$372","v":0},"#'T2-B(PP3)'!$D$372"]
["pp3_bl5_2_2_units_out",{"$f":"'T2-B(PP3)'!$G$372","v":0},"#'T2-B(PP3)'!$G$372"]
["pp3_bl5_2_20_name",{"$f":"'T2-B(PP3)'!$B$390","v":0},"#'T2-B(PP3)'!$B$390"]
["pp3_bl5_2_20_rate_in",{"$f":"'T2-B(PP3)'!$E$390","v":0},"#'T2-B(PP3)'!$E$390"]
["pp3_bl5_2_20_rate_out",{"$f":"'T2-B(PP3)'!$H$390","v":0},"#'T2-B(PP3)'!$H$390"]
["pp3_bl5_2_20_total",{"$f":"'T2-B(PP3)'!$J$390","v":0},"#'T2-B(PP3)'!$J$390"]
["pp3_bl5_2_20_total_in",{"$f":"'T2-B(PP3)'!$F$390","v":0},"#'T2-B(PP3)'!$F$390"]
["pp3_bl5_2_20_total_out",{"$f":"'T2-B(PP3)'!$I$390","v":0},"#'T2-B(PP3)'!$I$390"]
["pp3_bl5_2_20_unit",{"$f":"'T2-B(PP3)'!$C$390","v":0},"#'T2-B(PP3)'!$C$390"]
["pp3_bl5_2_20_unit_in",{"$f":"'T2-B(PP3)'!$D$390","v":0},"#'T2-B(PP3)'!$D$390"]
["pp3_bl5_2_20_units_out",{"$f":"'T2-B(PP3)'!$G$390","v":0},"#'T2-B(PP3)'!$G$390"]
["pp3_bl5_2_3_name",{"$f":"'T2-B(PP3)'!$B$373","v":0},"#'T2-B(PP3)'!$B$373"]
["pp3_bl5_2_3_rate_in",{"$f":"'T2-B(PP3)'!$E$373","v":0},"#'T2-B(PP3)'!$E$373"]
["pp3_bl5_2_3_rate_out",{"$f":"'T2-B(PP3)'!$H$373","v":0},"#'T2-B(PP3)'!$H$373"]
["pp3_bl5_2_3_total",{"$f":"'T2-B(PP3)'!$J$373","v":0},"#'T2-B(PP3)'!$J$373"]
["pp3_bl5_2_3_total_in",{"$f":"'T2-B(PP3)'!$F$373","v":0},"#'T2-B(PP3)'!$F$373"]
["pp3_bl5_2_3_total_out",{"$f":"'T2-B(PP3)'!$I$373","v":0},"#'T2-B(PP3)'!$I$373"]
["pp3_bl5_2_3_unit",{"$f":"'T2-B(PP3)'!$C$373","v":0},"#'T2-B(PP3)'!$C$373"]
["pp3_bl5_2_3_unit_in",{"$f":"'T2-B(PP3)'!$D$373","v":0},"#'T2-B(PP3)'!$D$373"]
["pp3_bl5_2_3_units_out",{"$f":"'T2-B(PP3)'!$G$373","v":0},"#'T2-B(PP3)'!$G$373"]
["pp3_bl5_2_4_name",{"$f":"'T2-B(PP3)'!$B$374","v":0},"#'T2-B(PP3)'!$B$374"]
["pp3_bl5_2_4_rate_in",{"$f":"'T2-B(PP3)'!$E$374","v":0},"#'T2-B(PP3)'!$E$374"]
["pp3_bl5_2_4_rate_out",{"$f":"'T2-B(PP3)'!$H$374","v":0},"#'T2-B(PP3)'!$H$374"]
["pp3_bl5_2_4_total",{"$f":"'T2-B(PP3)'!$J$374","v":0},"#'T2-B(PP3)'!$J$374"]
["pp3_bl5_2_4_total_in",{"$f":"'T2-B(PP3)'!$F$374","v":0},"#'T2-B(PP3)'!$F$374"]
["pp3_bl5_2_4_total_out",{"$f":"'T2-B(PP3)'!$I$374","v":0},"#'T2-B(PP3)'!$I$374"]
["pp3_bl5_2_4_unit",{"$f":"'T2-B(PP3)'!$C$374","v":0},"#'T2-B(PP3)'!$C$374"]
["pp3_bl5_2_4_unit_in",{"$f":"'T2-B(PP3)'!$D$374","v":0},"#'T2-B(PP3)'!$D$374"]
["pp3_bl5_2_4_units_out",{"$f":"'T2-B(PP3)'!$G$374","v":0},"#'T2-B(PP3)'!$G$374"]
["pp3_bl5_2_5_name",{"$f":"'T2-B(PP3)'!$B$375","v":0},"#'T2-B(PP3)'!$B$375"]
["pp3_bl5_2_5_rate_in",{"$f":"'T2-B(PP3)'!$E$375","v":0},"#'T2-B(PP3)'!$E$375"]
["pp3_bl5_2_5_rate_out",{"$f":"'T2-B(PP3)'!$H$375","v":0},"#'T2-B(PP3)'!$H$375"]
["pp3_bl5_2_5_total",{"$f":"'T2-B(PP3)'!$J$375","v":0},"#'T2-B(PP3)'!$J$375"]
["pp3_bl5_2_5_total_in",{"$f":"'T2-B(PP3)'!$F$375","v":0},"#'T2-B(PP3)'!$F$375"]
["pp3_bl5_2_5_total_out",{"$f":"'T2-B(PP3)'!$I$375","v":0},"#'T2-B(PP3)'!$I$375"]
["pp3_bl5_2_5_unit",{"$f":"'T2-B(PP3)'!$C$375","v":0},"#'T2-B(PP3)'!$C$375"]
["pp3_bl5_2_5_unit_in",{"$f":"'T2-B(PP3)'!$D$375","v":0},"#'T2-B(PP3)'!$D$375"]
["pp3_bl5_2_5_units_out",{"$f":"'T2-B(PP3)'!$G$375","v":0},"#'T2-B(PP3)'!$G$375"]
["pp3_bl5_2_6_name",{"$f":"'T2-B(PP3)'!$B$376","v":0},"#'T2-B(PP3)'!$B$376"]
["pp3_bl5_2_6_rate_in",{"$f":"'T2-B(PP3)'!$E$376","v":0},"#'T2-B(PP3)'!$E$376"]
["pp3_bl5_2_6_rate_out",{"$f":"'T2-B(PP3)'!$H$376","v":0},"#'T2-B(PP3)'!$H$376"]
["pp3_bl5_2_6_total",{"$f":"'T2-B(PP3)'!$J$376","v":0},"#'T2-B(PP3)'!$J$376"]
["pp3_bl5_2_6_total_in",{"$f":"'T2-B(PP3)'!$F$376","v":0},"#'T2-B(PP3)'!$F$376"]
["pp3_bl5_2_6_total_out",{"$f":"'T2-B(PP3)'!$I$376","v":0},"#'T2-B(PP3)'!$I$376"]
["pp3_bl5_2_6_unit",{"$f":"'T2-B(PP3)'!$C$376","v":0},"#'T2-B(PP3)'!$C$376"]
["pp3_bl5_2_6_unit_in",{"$f":"'T2-B(PP3)'!$D$376","v":0},"#'T2-B(PP3)'!$D$376"]
["pp3_bl5_2_6_units_out",{"$f":"'T2-B(PP3)'!$G$376","v":0},"#'T2-B(PP3)'!$G$376"]
["pp3_bl5_2_7_name",{"$f":"'T2-B(PP3)'!$B$377","v":0},"#'T2-B(PP3)'!$B$377"]
["pp3_bl5_2_7_rate_in",{"$f":"'T2-B(PP3)'!$E$377","v":0},"#'T2-B(PP3)'!$E$377"]
["pp3_bl5_2_7_rate_out",{"$f":"'T2-B(PP3)'!$H$377","v":0},"#'T2-B(PP3)'!$H$377"]
["pp3_bl5_2_7_total",{"$f":"'T2-B(PP3)'!$J$377","v":0},"#'T2-B(PP3)'!$J$377"]
["pp3_bl5_2_7_total_in",{"$f":"'T2-B(PP3)'!$F$377","v":0},"#'T2-B(PP3)'!$F$377"]
["pp3_bl5_2_7_total_out",{"$f":"'T2-B(PP3)'!$I$377","v":0},"#'T2-B(PP3)'!$I$377"]
["pp3_bl5_2_7_unit",{"$f":"'T2-B(PP3)'!$C$377","v":0},"#'T2-B(PP3)'!$C$377"]
["pp3_bl5_2_7_unit_in",{"$f":"'T2-B(PP3)'!$D$377","v":0},"#'T2-B(PP3)'!$D$377"]
["pp3_bl5_2_7_units_out",{"$f":"'T2-B(PP3)'!$G$377","v":0},"#'T2-B(PP3)'!$G$377"]
["pp3_bl5_2_8_name",{"$f":"'T2-B(PP3)'!$B$378","v":0},"#'T2-B(PP3)'!$B$378"]
["pp3_bl5_2_8_rate_in",{"$f":"'T2-B(PP3)'!$E$378","v":0},"#'T2-B(PP3)'!$E$378"]
["pp3_bl5_2_8_rate_out",{"$f":"'T2-B(PP3)'!$H$378","v":0},"#'T2-B(PP3)'!$H$378"]
["pp3_bl5_2_8_total",{"$f":"'T2-B(PP3)'!$J$378","v":0},"#'T2-B(PP3)'!$J$378"]
["pp3_bl5_2_8_total_in",{"$f":"'T2-B(PP3)'!$F$378","v":0},"#'T2-B(PP3)'!$F$378"]
["pp3_bl5_2_8_total_out",{"$f":"'T2-B(PP3)'!$I$378","v":0},"#'T2-B(PP3)'!$I$378"]
["pp3_bl5_2_8_unit",{"$f":"'T2-B(PP3)'!$C$378","v":0},"#'T2-B(PP3)'!$C$378"]
["pp3_bl5_2_8_unit_in",{"$f":"'T2-B(PP3)'!$D$378","v":0},"#'T2-B(PP3)'!$D$378"]
["pp3_bl5_2_8_units_out",{"$f":"'T2-B(PP3)'!$G$378","v":0},"#'T2-B(PP3)'!$G$378"]
["pp3_bl5_2_9_name",{"$f":"'T2-B(PP3)'!$B$379","v":0},"#'T2-B(PP3)'!$B$379"]
["pp3_bl5_2_9_rate_in",{"$f":"'T2-B(PP3)'!$E$379","v":0},"#'T2-B(PP3)'!$E$379"]
["pp3_bl5_2_9_rate_out",{"$f":"'T2-B(PP3)'!$H$379","v":0},"#'T2-B(PP3)'!$H$379"]
["pp3_bl5_2_9_total",{"$f":"'T2-B(PP3)'!$J$379","v":0},"#'T2-B(PP3)'!$J$379"]
["pp3_bl5_2_9_total_in",{"$f":"'T2-B(PP3)'!$F$379","v":0},"#'T2-B(PP3)'!$F$379"]
["pp3_bl5_2_9_total_out",{"$f":"'T2-B(PP3)'!$I$379","v":0},"#'T2-B(PP3)'!$I$379"]
["pp3_bl5_2_9_unit",{"$f":"'T2-B(PP3)'!$C$379","v":0},"#'T2-B(PP3)'!$C$379"]
["pp3_bl5_2_9_unit_in",{"$f":"'T2-B(PP3)'!$D$379","v":0},"#'T2-B(PP3)'!$D$379"]
["pp3_bl5_2_9_units_out",{"$f":"'T2-B(PP3)'!$G$379","v":0},"#'T2-B(PP3)'!$G$379"]
["pp3_bl5_2_total",{"$f":"'T2-B(PP3)'!$J$370","v":0},"#'T2-B(PP3)'!$J$370"]
["pp3_bl5_2_total_in",{"$f":"'T2-B(PP3)'!$F$370","v":0},"#'T2-B(PP3)'!$F$370"]
["pp3_bl5_2_total_out",{"$f":"'T2-B(PP3)'!$I$370","v":0},"#'T2-B(PP3)'!$I$370"]
["pp3_bl5_total",{"$f":"'T2-B(PP3)'!$J$391","v":0},"#'T2-B(PP3)'!$J$391"]
["pp3_bl5_total_in",{"$f":"'T2-B(PP3)'!$F$391","v":0},"#'T2-B(PP3)'!$F$391"]
["pp3_bl5_total_out",{"$f":"'T2-B(PP3)'!$I$391","v":0},"#'T2-B(PP3)'!$I$391"]
["pp3_bl6_1_1_name",{"$f":"'T2-B(PP3)'!$B$396","v":0},"#'T2-B(PP3)'!$B$396"]
["pp3_bl6_1_1_rate_in",{"$f":"'T2-B(PP3)'!$E$396","v":0},"#'T2-B(PP3)'!$E$396"]
["pp3_bl6_1_1_rate_out",{"$f":"'T2-B(PP3)'!$H$396","v":0},"#'T2-B(PP3)'!$H$396"]
["pp3_bl6_1_1_total",{"$f":"'T2-B(PP3)'!$J$396","v":0},"#'T2-B(PP3)'!$J$396"]
["pp3_bl6_1_1_total_in",{"$f":"'T2-B(PP3)'!$F$396","v":0},"#'T2-B(PP3)'!$F$396"]
["pp3_bl6_1_1_total_out",{"$f":"'T2-B(PP3)'!$I$396","v":0},"#'T2-B(PP3)'!$I$396"]
["pp3_bl6_1_1_unit",{"$f":"'T2-B(PP3)'!$C$396","v":0},"#'T2-B(PP3)'!$C$396"]
["pp3_bl6_1_1_unit_in",{"$f":"'T2-B(PP3)'!$D$396","v":0},"#'T2-B(PP3)'!$D$396"]
["pp3_bl6_1_1_units_out",{"$f":"'T2-B(PP3)'!$G$396","v":0},"#'T2-B(PP3)'!$G$396"]
["pp3_bl6_1_10_name",{"$f":"'T2-B(PP3)'!$B$405","v":0},"#'T2-B(PP3)'!$B$405"]
["pp3_bl6_1_10_rate_in",{"$f":"'T2-B(PP3)'!$E$405","v":0},"#'T2-B(PP3)'!$E$405"]
["pp3_bl6_1_10_rate_out",{"$f":"'T2-B(PP3)'!$H$405","v":0},"#'T2-B(PP3)'!$H$405"]
["pp3_bl6_1_10_total",{"$f":"'T2-B(PP3)'!$J$405","v":0},"#'T2-B(PP3)'!$J$405"]
["pp3_bl6_1_10_total_in",{"$f":"'T2-B(PP3)'!$F$405","v":0},"#'T2-B(PP3)'!$F$405"]
["pp3_bl6_1_10_total_out",{"$f":"'T2-B(PP3)'!$I$405","v":0},"#'T2-B(PP3)'!$I$405"]
["pp3_bl6_1_10_unit",{"$f":"'T2-B(PP3)'!$C$405","v":0},"#'T2-B(PP3)'!$C$405"]
["pp3_bl6_1_10_unit_in",{"$f":"'T2-B(PP3)'!$D$405","v":0},"#'T2-B(PP3)'!$D$405"]
["pp3_bl6_1_10_units_out",{"$f":"'T2-B(PP3)'!$G$405","v":0},"#'T2-B(PP3)'!$G$405"]
["pp3_bl6_1_2_name",{"$f":"'T2-B(PP3)'!$B$397","v":0},"#'T2-B(PP3)'!$B$397"]
["pp3_bl6_1_2_rate_in",{"$f":"'T2-B(PP3)'!$E$397","v":0},"#'T2-B(PP3)'!$E$397"]
["pp3_bl6_1_2_rate_out",{"$f":"'T2-B(PP3)'!$H$397","v":0},"#'T2-B(PP3)'!$H$397"]
["pp3_bl6_1_2_total",{"$f":"'T2-B(PP3)'!$J$397","v":0},"#'T2-B(PP3)'!$J$397"]
["pp3_bl6_1_2_total_in",{"$f":"'T2-B(PP3)'!$F$397","v":0},"#'T2-B(PP3)'!$F$397"]
["pp3_bl6_1_2_total_out",{"$f":"'T2-B(PP3)'!$I$397","v":0},"#'T2-B(PP3)'!$I$397"]
["pp3_bl6_1_2_unit",{"$f":"'T2-B(PP3)'!$C$397","v":0},"#'T2-B(PP3)'!$C$397"]
["pp3_bl6_1_2_unit_in",{"$f":"'T2-B(PP3)'!$D$397","v":0},"#'T2-B(PP3)'!$D$397"]
["pp3_bl6_1_2_units_out",{"$f":"'T2-B(PP3)'!$G$397","v":0},"#'T2-B(PP3)'!$G$397"]
["pp3_bl6_1_3_name",{"$f":"'T2-B(PP3)'!$B$398","v":0},"#'T2-B(PP3)'!$B$398"]
["pp3_bl6_1_3_rate_in",{"$f":"'T2-B(PP3)'!$E$398","v":0},"#'T2-B(PP3)'!$E$398"]
["pp3_bl6_1_3_rate_out",{"$f":"'T2-B(PP3)'!$H$398","v":0},"#'T2-B(PP3)'!$H$398"]
["pp3_bl6_1_3_total",{"$f":"'T2-B(PP3)'!$J$398","v":0},"#'T2-B(PP3)'!$J$398"]
["pp3_bl6_1_3_total_in",{"$f":"'T2-B(PP3)'!$F$398","v":0},"#'T2-B(PP3)'!$F$398"]
["pp3_bl6_1_3_total_out",{"$f":"'T2-B(PP3)'!$I$398","v":0},"#'T2-B(PP3)'!$I$398"]
["pp3_bl6_1_3_unit",{"$f":"'T2-B(PP3)'!$C$398","v":0},"#'T2-B(PP3)'!$C$398"]
["pp3_bl6_1_3_unit_in",{"$f":"'T2-B(PP3)'!$D$398","v":0},"#'T2-B(PP3)'!$D$398"]
["pp3_bl6_1_3_units_out",{"$f":"'T2-B(PP3)'!$G$398","v":0},"#'T2-B(PP3)'!$G$398"]
["pp3_bl6_1_4_name",{"$f":"'T2-B(PP3)'!$B$399","v":0},"#'T2-B(PP3)'!$B$399"]
["pp3_bl6_1_4_rate_in",{"$f":"'T2-B(PP3)'!$E$399","v":0},"#'T2-B(PP3)'!$E$399"]
["pp3_bl6_1_4_rate_out",{"$f":"'T2-B(PP3)'!$H$399","v":0},"#'T2-B(PP3)'!$H$399"]
["pp3_bl6_1_4_total",{"$f":"'T2-B(PP3)'!$J$399","v":0},"#'T2-B(PP3)'!$J$399"]
["pp3_bl6_1_4_total_in",{"$f":"'T2-B(PP3)'!$F$399","v":0},"#'T2-B(PP3)'!$F$399"]
["pp3_bl6_1_4_total_out",{"$f":"'T2-B(PP3)'!$I$399","v":0},"#'T2-B(PP3)'!$I$399"]
["pp3_bl6_1_4_unit",{"$f":"'T2-B(PP3)'!$C$399","v":0},"#'T2-B(PP3)'!$C$399"]
["pp3_bl6_1_4_unit_in",{"$f":"'T2-B(PP3)'!$D$399","v":0},"#'T2-B(PP3)'!$D$399"]
["pp3_bl6_1_4_units_out",{"$f":"'T2-B(PP3)'!$G$399","v":0},"#'T2-B(PP3)'!$G$399"]
["pp3_bl6_1_5_name",{"$f":"'T2-B(PP3)'!$B$400","v":0},"#'T2-B(PP3)'!$B$400"]
["pp3_bl6_1_5_rate_in",{"$f":"'T2-B(PP3)'!$E$400","v":0},"#'T2-B(PP3)'!$E$400"]
["pp3_bl6_1_5_rate_out",{"$f":"'T2-B(PP3)'!$H$400","v":0},"#'T2-B(PP3)'!$H$400"]
["pp3_bl6_1_5_total",{"$f":"'T2-B(PP3)'!$J$400","v":0},"#'T2-B(PP3)'!$J$400"]
["pp3_bl6_1_5_total_in",{"$f":"'T2-B(PP3)'!$F$400","v":0},"#'T2-B(PP3)'!$F$400"]
["pp3_bl6_1_5_total_out",{"$f":"'T2-B(PP3)'!$I$400","v":0},"#'T2-B(PP3)'!$I$400"]
["pp3_bl6_1_5_unit",{"$f":"'T2-B(PP3)'!$C$400","v":0},"#'T2-B(PP3)'!$C$400"]
["pp3_bl6_1_5_unit_in",{"$f":"'T2-B(PP3)'!$D$400","v":0},"#'T2-B(PP3)'!$D$400"]
["pp3_bl6_1_5_units_out",{"$f":"'T2-B(PP3)'!$G$400","v":0},"#'T2-B(PP3)'!$G$400"]
["pp3_bl6_1_6_name",{"$f":"'T2-B(PP3)'!$B$401","v":0},"#'T2-B(PP3)'!$B$401"]
["pp3_bl6_1_6_rate_in",{"$f":"'T2-B(PP3)'!$E$401","v":0},"#'T2-B(PP3)'!$E$401"]
["pp3_bl6_1_6_rate_out",{"$f":"'T2-B(PP3)'!$H$401","v":0},"#'T2-B(PP3)'!$H$401"]
["pp3_bl6_1_6_total",{"$f":"'T2-B(PP3)'!$J$401","v":0},"#'T2-B(PP3)'!$J$401"]
["pp3_bl6_1_6_total_in",{"$f":"'T2-B(PP3)'!$F$401","v":0},"#'T2-B(PP3)'!$F$401"]
["pp3_bl6_1_6_total_out",{"$f":"'T2-B(PP3)'!$I$401","v":0},"#'T2-B(PP3)'!$I$401"]
["pp3_bl6_1_6_unit",{"$f":"'T2-B(PP3)'!$C$401","v":0},"#'T2-B(PP3)'!$C$401"]
["pp3_bl6_1_6_unit_in",{"$f":"'T2-B(PP3)'!$D$401","v":0},"#'T2-B(PP3)'!$D$401"]
["pp3_bl6_1_6_units_out",{"$f":"'T2-B(PP3)'!$G$401","v":0},"#'T2-B(PP3)'!$G$401"]
["pp3_bl6_1_7_name",{"$f":"'T2-B(PP3)'!$B$402","v":0},"#'T2-B(PP3)'!$B$402"]
["pp3_bl6_1_7_rate_in",{"$f":"'T2-B(PP3)'!$E$402","v":0},"#'T2-B(PP3)'!$E$402"]
["pp3_bl6_1_7_rate_out",{"$f":"'T2-B(PP3)'!$H$402","v":0},"#'T2-B(PP3)'!$H$402"]
["pp3_bl6_1_7_total",{"$f":"'T2-B(PP3)'!$J$402","v":0},"#'T2-B(PP3)'!$J$402"]
["pp3_bl6_1_7_total_in",{"$f":"'T2-B(PP3)'!$F$402","v":0},"#'T2-B(PP3)'!$F$402"]
["pp3_bl6_1_7_total_out",{"$f":"'T2-B(PP3)'!$I$402","v":0},"#'T2-B(PP3)'!$I$402"]
["pp3_bl6_1_7_unit",{"$f":"'T2-B(PP3)'!$C$402","v":0},"#'T2-B(PP3)'!$C$402"]
["pp3_bl6_1_7_unit_in",{"$f":"'T2-B(PP3)'!$D$402","v":0},"#'T2-B(PP3)'!$D$402"]
["pp3_bl6_1_7_units_out",{"$f":"'T2-B(PP3)'!$G$402","v":0},"#'T2-B(PP3)'!$G$402"]
["pp3_bl6_1_8_name",{"$f":"'T2-B(PP3)'!$B$403","v":0},"#'T2-B(PP3)'!$B$403"]
["pp3_bl6_1_8_rate_in",{"$f":"'T2-B(PP3)'!$E$403","v":0},"#'T2-B(PP3)'!$E$403"]
["pp3_bl6_1_8_rate_out",{"$f":"'T2-B(PP3)'!$H$403","v":0},"#'T2-B(PP3)'!$H$403"]
["pp3_bl6_1_8_total",{"$f":"'T2-B(PP3)'!$J$403","v":0},"#'T2-B(PP3)'!$J$403"]
["pp3_bl6_1_8_total_in",{"$f":"'T2-B(PP3)'!$F$403","v":0},"#'T2-B(PP3)'!$F$403"]
["pp3_bl6_1_8_total_out",{"$f":"'T2-B(PP3)'!$I$403","v":0},"#'T2-B(PP3)'!$I$403"]
["pp3_bl6_1_8_unit",{"$f":"'T2-B(PP3)'!$C$403","v":0},"#'T2-B(PP3)'!$C$403"]
["pp3_bl6_1_8_unit_in",{"$f":"'T2-B(PP3)'!$D$403","v":0},"#'T2-B(PP3)'!$D$403"]
["pp3_bl6_1_8_units_out",{"$f":"'T2-B(PP3)'!$G$403","v":0},"#'T2-B(PP3)'!$G$403"]
["pp3_bl6_1_9_name",{"$f":"'T2-B(PP3)'!$B$404","v":0},"#'T2-B(PP3)'!$B$404"]
["pp3_bl6_1_9_rate_in",{"$f":"'T2-B(PP3)'!$E$404","v":0},"#'T2-B(PP3)'!$E$404"]
["pp3_bl6_1_9_rate_out",{"$f":"'T2-B(PP3)'!$H$404","v":0},"#'T2-B(PP3)'!$H$404"]
["pp3_bl6_1_9_total",{"$f":"'T2-B(PP3)'!$J$404","v":0},"#'T2-B(PP3)'!$J$404"]
["pp3_bl6_1_9_total_in",{"$f":"'T2-B(PP3)'!$F$404","v":0},"#'T2-B(PP3)'!$F$404"]
["pp3_bl6_1_9_total_out",{"$f":"'T2-B(PP3)'!$I$404","v":0},"#'T2-B(PP3)'!$I$404"]
["pp3_bl6_1_9_unit",{"$f":"'T2-B(PP3)'!$C$404","v":0},"#'T2-B(PP3)'!$C$404"]
["pp3_bl6_1_9_unit_in",{"$f":"'T2-B(PP3)'!$D$404","v":0},"#'T2-B(PP3)'!$D$404"]
["pp3_bl6_1_9_units_out",{"$f":"'T2-B(PP3)'!$G$404","v":0},"#'T2-B(PP3)'!$G$404"]
["pp3_bl6_1_total",{"$f":"'T2-B(PP3)'!$J$395","v":0},"#'T2-B(PP3)'!$J$395"]
["pp3_bl6_1_total_in",{"$f":"'T2-B(PP3)'!$F$395","v":0},"#'T2-B(PP3)'!$F$395"]
["pp3_bl6_1_total_out",{"$f":"'T2-B(PP3)'!$I$395","v":0},"#'T2-B(PP3)'!$I$395"]
["pp3_bl6_2_1_name",{"$f":"'T2-B(PP3)'!$B$407","v":0},"#'T2-B(PP3)'!$B$407"]
["pp3_bl6_2_1_rate_in",{"$f":"'T2-B(PP3)'!$E$407","v":0},"#'T2-B(PP3)'!$E$407"]
["pp3_bl6_2_1_rate_out",{"$f":"'T2-B(PP3)'!$H$407","v":0},"#'T2-B(PP3)'!$H$407"]
["pp3_bl6_2_1_total",{"$f":"'T2-B(PP3)'!$J$407","v":0},"#'T2-B(PP3)'!$J$407"]
["pp3_bl6_2_1_total_in",{"$f":"'T2-B(PP3)'!$F$407","v":0},"#'T2-B(PP3)'!$F$407"]
["pp3_bl6_2_1_total_out",{"$f":"'T2-B(PP3)'!$I$407","v":0},"#'T2-B(PP3)'!$I$407"]
["pp3_bl6_2_1_unit",{"$f":"'T2-B(PP3)'!$C$407","v":0},"#'T2-B(PP3)'!$C$407"]
["pp3_bl6_2_1_unit_in",{"$f":"'T2-B(PP3)'!$D$407","v":0},"#'T2-B(PP3)'!$D$407"]
["pp3_bl6_2_1_units_out",{"$f":"'T2-B(PP3)'!$G$407","v":0},"#'T2-B(PP3)'!$G$407"]
["pp3_bl6_2_10_name",{"$f":"'T2-B(PP3)'!$B$416","v":0},"#'T2-B(PP3)'!$B$416"]
["pp3_bl6_2_10_rate_in",{"$f":"'T2-B(PP3)'!$E$416","v":0},"#'T2-B(PP3)'!$E$416"]
["pp3_bl6_2_10_rate_out",{"$f":"'T2-B(PP3)'!$H$416","v":0},"#'T2-B(PP3)'!$H$416"]
["pp3_bl6_2_10_total",{"$f":"'T2-B(PP3)'!$J$416","v":0},"#'T2-B(PP3)'!$J$416"]
["pp3_bl6_2_10_total_in",{"$f":"'T2-B(PP3)'!$F$416","v":0},"#'T2-B(PP3)'!$F$416"]
["pp3_bl6_2_10_total_out",{"$f":"'T2-B(PP3)'!$I$416","v":0},"#'T2-B(PP3)'!$I$416"]
["pp3_bl6_2_10_unit",{"$f":"'T2-B(PP3)'!$C$416","v":0},"#'T2-B(PP3)'!$C$416"]
["pp3_bl6_2_10_unit_in",{"$f":"'T2-B(PP3)'!$D$416","v":0},"#'T2-B(PP3)'!$D$416"]
["pp3_bl6_2_10_units_out",{"$f":"'T2-B(PP3)'!$G$416","v":0},"#'T2-B(PP3)'!$G$416"]
["pp3_bl6_2_2_name",{"$f":"'T2-B(PP3)'!$B$408","v":0},"#'T2-B(PP3)'!$B$408"]
["pp3_bl6_2_2_rate_in",{"$f":"'T2-B(PP3)'!$E$408","v":0},"#'T2-B(PP3)'!$E$408"]
["pp3_bl6_2_2_rate_out",{"$f":"'T2-B(PP3)'!$H$408","v":0},"#'T2-B(PP3)'!$H$408"]
["pp3_bl6_2_2_total",{"$f":"'T2-B(PP3)'!$J$408","v":0},"#'T2-B(PP3)'!$J$408"]
["pp3_bl6_2_2_total_in",{"$f":"'T2-B(PP3)'!$F$408","v":0},"#'T2-B(PP3)'!$F$408"]
["pp3_bl6_2_2_total_out",{"$f":"'T2-B(PP3)'!$I$408","v":0},"#'T2-B(PP3)'!$I$408"]
["pp3_bl6_2_2_unit",{"$f":"'T2-B(PP3)'!$C$408","v":0},"#'T2-B(PP3)'!$C$408"]
["pp3_bl6_2_2_unit_in",{"$f":"'T2-B(PP3)'!$D$408","v":0},"#'T2-B(PP3)'!$D$408"]
["pp3_bl6_2_2_units_out",{"$f":"'T2-B(PP3)'!$G$408","v":0},"#'T2-B(PP3)'!$G$408"]
["pp3_bl6_2_3_name",{"$f":"'T2-B(PP3)'!$B$409","v":0},"#'T2-B(PP3)'!$B$409"]
["pp3_bl6_2_3_rate_in",{"$f":"'T2-B(PP3)'!$E$409","v":0},"#'T2-B(PP3)'!$E$409"]
["pp3_bl6_2_3_rate_out",{"$f":"'T2-B(PP3)'!$H$409","v":0},"#'T2-B(PP3)'!$H$409"]
["pp3_bl6_2_3_total",{"$f":"'T2-B(PP3)'!$J$409","v":0},"#'T2-B(PP3)'!$J$409"]
["pp3_bl6_2_3_total_in",{"$f":"'T2-B(PP3)'!$F$409","v":0},"#'T2-B(PP3)'!$F$409"]
["pp3_bl6_2_3_total_out",{"$f":"'T2-B(PP3)'!$I$409","v":0},"#'T2-B(PP3)'!$I$409"]
["pp3_bl6_2_3_unit",{"$f":"'T2-B(PP3)'!$C$409","v":0},"#'T2-B(PP3)'!$C$409"]
["pp3_bl6_2_3_unit_in",{"$f":"'T2-B(PP3)'!$D$409","v":0},"#'T2-B(PP3)'!$D$409"]
["pp3_bl6_2_3_units_out",{"$f":"'T2-B(PP3)'!$G$409","v":0},"#'T2-B(PP3)'!$G$409"]
["pp3_bl6_2_4_name",{"$f":"'T2-B(PP3)'!$B$410","v":0},"#'T2-B(PP3)'!$B$410"]
["pp3_bl6_2_4_rate_in",{"$f":"'T2-B(PP3)'!$E$410","v":0},"#'T2-B(PP3)'!$E$410"]
["pp3_bl6_2_4_rate_out",{"$f":"'T2-B(PP3)'!$H$410","v":0},"#'T2-B(PP3)'!$H$410"]
["pp3_bl6_2_4_total",{"$f":"'T2-B(PP3)'!$J$410","v":0},"#'T2-B(PP3)'!$J$410"]
["pp3_bl6_2_4_total_in",{"$f":"'T2-B(PP3)'!$F$410","v":0},"#'T2-B(PP3)'!$F$410"]
["pp3_bl6_2_4_total_out",{"$f":"'T2-B(PP3)'!$I$410","v":0},"#'T2-B(PP3)'!$I$410"]
["pp3_bl6_2_4_unit",{"$f":"'T2-B(PP3)'!$C$410","v":0},"#'T2-B(PP3)'!$C$410"]
["pp3_bl6_2_4_unit_in",{"$f":"'T2-B(PP3)'!$D$410","v":0},"#'T2-B(PP3)'!$D$410"]
["pp3_bl6_2_4_units_out",{"$f":"'T2-B(PP3)'!$G$410","v":0},"#'T2-B(PP3)'!$G$410"]
["pp3_bl6_2_5_name",{"$f":"'T2-B(PP3)'!$B$411","v":0},"#'T2-B(PP3)'!$B$411"]
["pp3_bl6_2_5_rate_in",{"$f":"'T2-B(PP3)'!$E$411","v":0},"#'T2-B(PP3)'!$E$411"]
["pp3_bl6_2_5_rate_out",{"$f":"'T2-B(PP3)'!$H$411","v":0},"#'T2-B(PP3)'!$H$411"]
["pp3_bl6_2_5_total",{"$f":"'T2-B(PP3)'!$J$411","v":0},"#'T2-B(PP3)'!$J$411"]
["pp3_bl6_2_5_total_in",{"$f":"'T2-B(PP3)'!$F$411","v":0},"#'T2-B(PP3)'!$F$411"]
["pp3_bl6_2_5_total_out",{"$f":"'T2-B(PP3)'!$I$411","v":0},"#'T2-B(PP3)'!$I$411"]
["pp3_bl6_2_5_unit",{"$f":"'T2-B(PP3)'!$C$411","v":0},"#'T2-B(PP3)'!$C$411"]
["pp3_bl6_2_5_unit_in",{"$f":"'T2-B(PP3)'!$D$411","v":0},"#'T2-B(PP3)'!$D$411"]
["pp3_bl6_2_5_units_out",{"$f":"'T2-B(PP3)'!$G$411","v":0},"#'T2-B(PP3)'!$G$411"]
["pp3_bl6_2_6_name",{"$f":"'T2-B(PP3)'!$B$412","v":0},"#'T2-B(PP3)'!$B$412"]
["pp3_bl6_2_6_rate_in",{"$f":"'T2-B(PP3)'!$E$412","v":0},"#'T2-B(PP3)'!$E$412"]
["pp3_bl6_2_6_rate_out",{"$f":"'T2-B(PP3)'!$H$412","v":0},"#'T2-B(PP3)'!$H$412"]
["pp3_bl6_2_6_total",{"$f":"'T2-B(PP3)'!$J$412","v":0},"#'T2-B(PP3)'!$J$412"]
["pp3_bl6_2_6_total_in",{"$f":"'T2-B(PP3)'!$F$412","v":0},"#'T2-B(PP3)'!$F$412"]
["pp3_bl6_2_6_total_out",{"$f":"'T2-B(PP3)'!$I$412","v":0},"#'T2-B(PP3)'!$I$412"]
["pp3_bl6_2_6_unit",{"$f":"'T2-B(PP3)'!$C$412","v":0},"#'T2-B(PP3)'!$C$412"]
["pp3_bl6_2_6_unit_in",{"$f":"'T2-B(PP3)'!$D$412","v":0},"#'T2-B(PP3)'!$D$412"]
["pp3_bl6_2_6_units_out",{"$f":"'T2-B(PP3)'!$G$412","v":0},"#'T2-B(PP3)'!$G$412"]
["pp3_bl6_2_7_name",{"$f":"'T2-B(PP3)'!$B$413","v":0},"#'T2-B(PP3)'!$B$413"]
["pp3_bl6_2_7_rate_in",{"$f":"'T2-B(PP3)'!$E$413","v":0},"#'T2-B(PP3)'!$E$413"]
["pp3_bl6_2_7_rate_out",{"$f":"'T2-B(PP3)'!$H$413","v":0},"#'T2-B(PP3)'!$H$413"]
["pp3_bl6_2_7_total",{"$f":"'T2-B(PP3)'!$J$413","v":0},"#'T2-B(PP3)'!$J$413"]
["pp3_bl6_2_7_total_in",{"$f":"'T2-B(PP3)'!$F$413","v":0},"#'T2-B(PP3)'!$F$413"]
["pp3_bl6_2_7_total_out",{"$f":"'T2-B(PP3)'!$I$413","v":0},"#'T2-B(PP3)'!$I$413"]
["pp3_bl6_2_7_unit",{"$f":"'T2-B(PP3)'!$C$413","v":0},"#'T2-B(PP3)'!$C$413"]
["pp3_bl6_2_7_unit_in",{"$f":"'T2-B(PP3)'!$D$413","v":0},"#'T2-B(PP3)'!$D$413"]
["pp3_bl6_2_7_units_out",{"$f":"'T2-B(PP3)'!$G$413","v":0},"#'T2-B(PP3)'!$G$413"]
["pp3_bl6_2_8_name",{"$f":"'T2-B(PP3)'!$B$414","v":0},"#'T2-B(PP3)'!$B$414"]
["pp3_bl6_2_8_rate_in",{"$f":"'T2-B(PP3)'!$E$414","v":0},"#'T2-B(PP3)'!$E$414"]
["pp3_bl6_2_8_rate_out",{"$f":"'T2-B(PP3)'!$H$414","v":0},"#'T2-B(PP3)'!$H$414"]
["pp3_bl6_2_8_total",{"$f":"'T2-B(PP3)'!$J$414","v":0},"#'T2-B(PP3)'!$J$414"]
["pp3_bl6_2_8_total_in",{"$f":"'T2-B(PP3)'!$F$414","v":0},"#'T2-B(PP3)'!$F$414"]
["pp3_bl6_2_8_total_out",{"$f":"'T2-B(PP3)'!$I$414","v":0},"#'T2-B(PP3)'!$I$414"]
["pp3_bl6_2_8_unit",{"$f":"'T2-B(PP3)'!$C$414","v":0},"#'T2-B(PP3)'!$C$414"]
["pp3_bl6_2_8_unit_in",{"$f":"'T2-B(PP3)'!$D$414","v":0},"#'T2-B(PP3)'!$D$414"]
["pp3_bl6_2_8_units_out",{"$f":"'T2-B(PP3)'!$G$414","v":0},"#'T2-B(PP3)'!$G$414"]
["pp3_bl6_2_9_name",{"$f":"'T2-B(PP3)'!$B$415","v":0},"#'T2-B(PP3)'!$B$415"]
["pp3_bl6_2_9_rate_in",{"$f":"'T2-B(PP3)'!$E$415","v":0},"#'T2-B(PP3)'!$E$415"]
["pp3_bl6_2_9_rate_out",{"$f":"'T2-B(PP3)'!$H$415","v":0},"#'T2-B(PP3)'!$H$415"]
["pp3_bl6_2_9_total",{"$f":"'T2-B(PP3)'!$J$415","v":0},"#'T2-B(PP3)'!$J$415"]
["pp3_bl6_2_9_total_in",{"$f":"'T2-B(PP3)'!$F$415","v":0},"#'T2-B(PP3)'!$F$415"]
["pp3_bl6_2_9_total_out",{"$f":"'T2-B(PP3)'!$I$415","v":0},"#'T2-B(PP3)'!$I$415"]
["pp3_bl6_2_9_unit",{"$f":"'T2-B(PP3)'!$C$415","v":0},"#'T2-B(PP3)'!$C$415"]
["pp3_bl6_2_9_unit_in",{"$f":"'T2-B(PP3)'!$D$415","v":0},"#'T2-B(PP3)'!$D$415"]
["pp3_bl6_2_9_units_out",{"$f":"'T2-B(PP3)'!$G$415","v":0},"#'T2-B(PP3)'!$G$415"]
["pp3_bl6_2_total",{"$f":"'T2-B(PP3)'!$J$406","v":0},"#'T2-B(PP3)'!$J$406"]
["pp3_bl6_2_total_in",{"$f":"'T2-B(PP3)'!$F$406","v":0},"#'T2-B(PP3)'!$F$406"]
["pp3_bl6_2_total_out",{"$f":"'T2-B(PP3)'!$I$406","v":0},"#'T2-B(PP3)'!$I$406"]
["pp3_bl6_total",{"$f":"'T2-B(PP3)'!$J$417","v":0},"#'T2-B(PP3)'!$J$417"]
["pp3_bl6_total_in",{"$f":"'T2-B(PP3)'!$F$417","v":0},"#'T2-B(PP3)'!$F$417"]
["pp3_bl6_total_out",{"$f":"'T2-B(PP3)'!$I$417","v":0},"#'T2-B(PP3)'!$I$417"]
["pp3_bl7_1_1_name",{"$f":"'T2-B(PP3)'!$B$420","v":0},"#'T2-B(PP3)'!$B$420"]
["pp3_bl7_1_1_rate_in",{"$f":"'T2-B(PP3)'!$H$420","v":0},"#'T2-B(PP3)'!$H$420"]
["pp3_bl7_1_1_rate_out",{"$f":"'T2-B(PP3)'!$N$420","v":0},"#'T2-B(PP3)'!$N$420"]
["pp3_bl7_1_1_total",{"$f":"'T2-B(PP3)'!$I$420","v":0},"#'T2-B(PP3)'!$I$420"]
["pp3_bl7_1_1_total_in",{"$f":"'T2-B(PP3)'!$P$420","v":0},"#'T2-B(PP3)'!$P$420"]
["pp3_bl7_1_1_total_out",{"$f":"'T2-B(PP3)'!$O$420","v":0},"#'T2-B(PP3)'!$O$420"]
["pp3_bl7_1_1_unit",{"$f":"'T2-B(PP3)'!$F$420","v":0},"#'T2-B(PP3)'!$F$420"]
["pp3_bl7_1_1_unit_in",{"$f":"'T2-B(PP3)'!$G$420","v":0},"#'T2-B(PP3)'!$G$420"]
["pp3_bl7_1_1_units_out",{"$f":"'T2-B(PP3)'!$M$420","v":0},"#'T2-B(PP3)'!$M$420"]
["pp3_competence",{"$f":"'PP3'!$B$38","v":0},"#'PP3'!$B$38"]
["pp3_country",{"$f":"'PP3'!$K$14","v":2},"#'PP3'!$K$14"]
["pp3_fax",{"$f":"'PP3'!$C$29","v":0},"#'PP3'!$C$29"]
["pp3_is_bg",{"$f":"'PP3'!$D$13","v":0},"#'PP3'!$D$13"]
["pp3_is_pc",{"$f":"'PP3'!$F$13","v":0},"#'PP3'!$F$13"]
["pp3_legal_representative",{"$f":"'PP3'!$C$23","v":0},"#'PP3'!$C$23"]
["pp3_legal_representative_position",{"$f":"'PP3'!$C$25","v":0},"#'PP3'!$C$25"]
["pp3_mail",{"$f":"'PP3'!$C$31","v":0},"#'PP3'!$C$31"]
["pp3_nat_code",{"$f":"'PP3'!$C$70","v":0},"#'PP3'!$C$70"]
["pp3_nuts3",{"$f":"'PP3'!$C$15","v":0},"#'PP3'!$C$15"]
["pp3_organisation_en",{"$f":"'PP3'!$C$7","v":0},"#'PP3'!$C$7"]
["pp3_organisation_native",{"$f":"'PP3'!$C$9","v":0},"#'PP3'!$C$9"]
["pp3_pe_date1",{"$f":"'PP3'!$G$47","v":0},"#'PP3'!$G$47"]
["pp3_pe_date2",{"$f":"'PP3'!$G$55","v":0},"#'PP3'!$G$55"]
["pp3_pe_date3",{"$f":"'PP3'!$G$63","v":0},"#'PP3'!$G$63"]
["pp3_pe_ga1",{"$f":"'PP3'!$G$46","v":0},"#'PP3'!$G$46"]
["pp3_pe_ga2",{"$f":"'PP3'!$G$54","v":0},"#'PP3'!$G$54"]
["pp3_pe_ga3",{"$f":"'PP3'!$G$62","v":0},"#'PP3'!$G$62"]
["pp3_pe_ip1",{"$f":"'PP3'!$C$43","v":0},"#'PP3'!$C$43"]
["pp3_pe_ip2",{"$f":"'PP3'!$C$51","v":0},"#'PP3'!$C$51"]
["pp3_pe_ip3",{"$f":"'PP3'!$C$59","v":0},"#'PP3'!$C$59"]
["pp3_pe_or1",{"$f":"'PP3'!$C$47","v":0},"#'PP3'!$C$47"]
["pp3_pe_or2",{"$f":"'PP3'!$C$55","v":0},"#'PP3'!$C$55"]
["pp3_pe_or3",{"$f":"'PP3'!$C$63","v":0},"#'PP3'!$C$63"]
["pp3_pe_pt1",{"$f":"'PP3'!$C$44","v":0},"#'PP3'!$C$44"]
["pp3_pe_pt2",{"$f":"'PP3'!$C$52","v":0},"#'PP3'!$C$52"]
["pp3_pe_pt3",{"$f":"'PP3'!$C$60","v":0},"#'PP3'!$C$60"]
["pp3_pe_sd1",{"$f":"'PP3'!$C$45","v":0},"#'PP3'!$C$45"]
["pp3_pe_sd2",{"$f":"'PP3'!$C$53","v":0},"#'PP3'!$C$53"]
["pp3_pe_sd3",{"$f":"'PP3'!$C$61","v":0},"#'PP3'!$C$61"]
["pp3_pe_tev1",{"$f":"'PP3'!$C$46","v":0},"#'PP3'!$C$46"]
["pp3_pe_tev2",{"$f":"'PP3'!$C$54","v":0},"#'PP3'!$C$54"]
["pp3_pe_tev3",{"$f":"'PP3'!$C$62","v":0},"#'PP3'!$C$62"]
["pp3_phone",{"$f":"'PP3'!$C$27","v":0},"#'PP3'!$C$27"]
["pp3_post_code",{"$f":"'PP3'!$C$21","v":0},"#'PP3'!$C$21"]
["pp3_town",{"$f":"'PP3'!$C$17","v":0},"#'PP3'!$C$17"]
["pp3_type_org",{"$f":"'PP3'!$C$11","v":0},"#'PP3'!$C$11"]
["pp3_vat_code",{"$f":"'PP3'!$C$72","v":0},"#'PP3'!$C$72"]
["pp3_website",{"$f":"'PP3'!$C$33","v":0},"#'PP3'!$C$33"]
["pp4_2014_fulltime_staff",{"$f":"'PP4'!$F$77","v":0},"#'PP4'!$F$77"]
["pp4_2014_parttime_staff",{"$f":"'PP4'!$G$77","v":0},"#'PP4'!$G$77"]
["pp4_2014_turnover",{"$f":"'PP4'!$C$77","v":0},"#'PP4'!$C$77"]
["pp4_2015_fulltime_staff",{"$f":"'PP4'!$F$78","v":0},"#'PP4'!$F$78"]
["pp4_2015_parttime_staff",{"$f":"'PP4'!$G$78","v":0},"#'PP4'!$G$78"]
["pp4_2015_turnover",{"$f":"'PP4'!$C$78","v":0},"#'PP4'!$C$78"]
["pp4_2016_fulltime_staff",{"$f":"'PP4'!$F$79","v":0},"#'PP4'!$F$79"]
["pp4_2016_parttime_staff",{"$f":"'PP4'!$G$79","v":0},"#'PP4'!$G$79"]
["pp4_2016_turnover",{"$f":"'PP4'!$C$79","v":0},"#'PP4'!$C$79"]
["pp4_address",{"$f":"'PP4'!$C$19","v":0},"#'PP4'!$C$19"]
["pp4_background1",{"$f":"'PP4'!$B$35","v":0},"#'PP4'!$B$35"]
["pp4_background2",{"$f":"'PP4'!$B$36","v":0},"#'PP4'!$B$36"]
["pp4_bl3_1_1_name",{"$f":"'T2-B(PP4)'!$B$16","v":0},"#'T2-B(PP4)'!$B$16"]
["pp4_bl3_1_1_rate_in",{"$f":"'T2-B(PP4)'!$E$16","v":0},"#'T2-B(PP4)'!$E$16"]
["pp4_bl3_1_1_rate_out",{"$f":"'T2-B(PP4)'!$H$16","v":0},"#'T2-B(PP4)'!$H$16"]
["pp4_bl3_1_1_total",{"$f":"'T2-B(PP4)'!$J$16","v":0},"#'T2-B(PP4)'!$J$16"]
["pp4_bl3_1_1_total_in",{"$f":"'T2-B(PP4)'!$F$16","v":0},"#'T2-B(PP4)'!$F$16"]
["pp4_bl3_1_1_total_out",{"$f":"'T2-B(PP4)'!$I$16","v":0},"#'T2-B(PP4)'!$I$16"]
["pp4_bl3_1_1_unit",{"$f":"'T2-B(PP4)'!$C$16","v":0},"#'T2-B(PP4)'!$C$16"]
["pp4_bl3_1_1_unit_in",{"$f":"'T2-B(PP4)'!$D$16","v":0},"#'T2-B(PP4)'!$D$16"]
["pp4_bl3_1_1_units_out",{"$f":"'T2-B(PP4)'!$G$16","v":0},"#'T2-B(PP4)'!$G$16"]
["pp4_bl3_1_10_name",{"$f":"'T2-B(PP4)'!$B$25","v":0},"#'T2-B(PP4)'!$B$25"]
["pp4_bl3_1_10_rate_in",{"$f":"'T2-B(PP4)'!$E$25","v":0},"#'T2-B(PP4)'!$E$25"]
["pp4_bl3_1_10_rate_out",{"$f":"'T2-B(PP4)'!$H$25","v":0},"#'T2-B(PP4)'!$H$25"]
["pp4_bl3_1_10_total",{"$f":"'T2-B(PP4)'!$J$25","v":0},"#'T2-B(PP4)'!$J$25"]
["pp4_bl3_1_10_total_in",{"$f":"'T2-B(PP4)'!$F$25","v":0},"#'T2-B(PP4)'!$F$25"]
["pp4_bl3_1_10_total_out",{"$f":"'T2-B(PP4)'!$I$25","v":0},"#'T2-B(PP4)'!$I$25"]
["pp4_bl3_1_10_unit",{"$f":"'T2-B(PP4)'!$C$25","v":0},"#'T2-B(PP4)'!$C$25"]
["pp4_bl3_1_10_unit_in",{"$f":"'T2-B(PP4)'!$D$25","v":0},"#'T2-B(PP4)'!$D$25"]
["pp4_bl3_1_10_units_out",{"$f":"'T2-B(PP4)'!$G$25","v":0},"#'T2-B(PP4)'!$G$25"]
["pp4_bl3_1_11_name",{"$f":"'T2-B(PP4)'!$B$26","v":0},"#'T2-B(PP4)'!$B$26"]
["pp4_bl3_1_11_rate_in",{"$f":"'T2-B(PP4)'!$E$26","v":0},"#'T2-B(PP4)'!$E$26"]
["pp4_bl3_1_11_rate_out",{"$f":"'T2-B(PP4)'!$H$26","v":0},"#'T2-B(PP4)'!$H$26"]
["pp4_bl3_1_11_total",{"$f":"'T2-B(PP4)'!$J$26","v":0},"#'T2-B(PP4)'!$J$26"]
["pp4_bl3_1_11_total_in",{"$f":"'T2-B(PP4)'!$F$26","v":0},"#'T2-B(PP4)'!$F$26"]
["pp4_bl3_1_11_total_out",{"$f":"'T2-B(PP4)'!$I$26","v":0},"#'T2-B(PP4)'!$I$26"]
["pp4_bl3_1_11_unit",{"$f":"'T2-B(PP4)'!$C$26","v":0},"#'T2-B(PP4)'!$C$26"]
["pp4_bl3_1_11_unit_in",{"$f":"'T2-B(PP4)'!$D$26","v":0},"#'T2-B(PP4)'!$D$26"]
["pp4_bl3_1_11_units_out",{"$f":"'T2-B(PP4)'!$G$26","v":0},"#'T2-B(PP4)'!$G$26"]
["pp4_bl3_1_12_name",{"$f":"'T2-B(PP4)'!$B$27","v":0},"#'T2-B(PP4)'!$B$27"]
["pp4_bl3_1_12_rate_in",{"$f":"'T2-B(PP4)'!$E$27","v":0},"#'T2-B(PP4)'!$E$27"]
["pp4_bl3_1_12_rate_out",{"$f":"'T2-B(PP4)'!$H$27","v":0},"#'T2-B(PP4)'!$H$27"]
["pp4_bl3_1_12_total",{"$f":"'T2-B(PP4)'!$J$27","v":0},"#'T2-B(PP4)'!$J$27"]
["pp4_bl3_1_12_total_in",{"$f":"'T2-B(PP4)'!$F$27","v":0},"#'T2-B(PP4)'!$F$27"]
["pp4_bl3_1_12_total_out",{"$f":"'T2-B(PP4)'!$I$27","v":0},"#'T2-B(PP4)'!$I$27"]
["pp4_bl3_1_12_unit",{"$f":"'T2-B(PP4)'!$C$27","v":0},"#'T2-B(PP4)'!$C$27"]
["pp4_bl3_1_12_unit_in",{"$f":"'T2-B(PP4)'!$D$27","v":0},"#'T2-B(PP4)'!$D$27"]
["pp4_bl3_1_12_units_out",{"$f":"'T2-B(PP4)'!$G$27","v":0},"#'T2-B(PP4)'!$G$27"]
["pp4_bl3_1_13_name",{"$f":"'T2-B(PP4)'!$B$28","v":0},"#'T2-B(PP4)'!$B$28"]
["pp4_bl3_1_13_rate_in",{"$f":"'T2-B(PP4)'!$E$28","v":0},"#'T2-B(PP4)'!$E$28"]
["pp4_bl3_1_13_rate_out",{"$f":"'T2-B(PP4)'!$H$28","v":0},"#'T2-B(PP4)'!$H$28"]
["pp4_bl3_1_13_total",{"$f":"'T2-B(PP4)'!$J$28","v":0},"#'T2-B(PP4)'!$J$28"]
["pp4_bl3_1_13_total_in",{"$f":"'T2-B(PP4)'!$F$28","v":0},"#'T2-B(PP4)'!$F$28"]
["pp4_bl3_1_13_total_out",{"$f":"'T2-B(PP4)'!$I$28","v":0},"#'T2-B(PP4)'!$I$28"]
["pp4_bl3_1_13_unit",{"$f":"'T2-B(PP4)'!$C$28","v":0},"#'T2-B(PP4)'!$C$28"]
["pp4_bl3_1_13_unit_in",{"$f":"'T2-B(PP4)'!$D$28","v":0},"#'T2-B(PP4)'!$D$28"]
["pp4_bl3_1_13_units_out",{"$f":"'T2-B(PP4)'!$G$28","v":0},"#'T2-B(PP4)'!$G$28"]
["pp4_bl3_1_14_name",{"$f":"'T2-B(PP4)'!$B$29","v":0},"#'T2-B(PP4)'!$B$29"]
["pp4_bl3_1_14_rate_in",{"$f":"'T2-B(PP4)'!$E$29","v":0},"#'T2-B(PP4)'!$E$29"]
["pp4_bl3_1_14_rate_out",{"$f":"'T2-B(PP4)'!$H$29","v":0},"#'T2-B(PP4)'!$H$29"]
["pp4_bl3_1_14_total",{"$f":"'T2-B(PP4)'!$J$29","v":0},"#'T2-B(PP4)'!$J$29"]
["pp4_bl3_1_14_total_in",{"$f":"'T2-B(PP4)'!$F$29","v":0},"#'T2-B(PP4)'!$F$29"]
["pp4_bl3_1_14_total_out",{"$f":"'T2-B(PP4)'!$I$29","v":0},"#'T2-B(PP4)'!$I$29"]
["pp4_bl3_1_14_unit",{"$f":"'T2-B(PP4)'!$C$29","v":0},"#'T2-B(PP4)'!$C$29"]
["pp4_bl3_1_14_unit_in",{"$f":"'T2-B(PP4)'!$D$29","v":0},"#'T2-B(PP4)'!$D$29"]
["pp4_bl3_1_14_units_out",{"$f":"'T2-B(PP4)'!$G$29","v":0},"#'T2-B(PP4)'!$G$29"]
["pp4_bl3_1_15_name",{"$f":"'T2-B(PP4)'!$B$30","v":0},"#'T2-B(PP4)'!$B$30"]
["pp4_bl3_1_15_rate_in",{"$f":"'T2-B(PP4)'!$E$30","v":0},"#'T2-B(PP4)'!$E$30"]
["pp4_bl3_1_15_rate_out",{"$f":"'T2-B(PP4)'!$H$30","v":0},"#'T2-B(PP4)'!$H$30"]
["pp4_bl3_1_15_total",{"$f":"'T2-B(PP4)'!$J$30","v":0},"#'T2-B(PP4)'!$J$30"]
["pp4_bl3_1_15_total_in",{"$f":"'T2-B(PP4)'!$F$30","v":0},"#'T2-B(PP4)'!$F$30"]
["pp4_bl3_1_15_total_out",{"$f":"'T2-B(PP4)'!$I$30","v":0},"#'T2-B(PP4)'!$I$30"]
["pp4_bl3_1_15_unit",{"$f":"'T2-B(PP4)'!$C$30","v":0},"#'T2-B(PP4)'!$C$30"]
["pp4_bl3_1_15_unit_in",{"$f":"'T2-B(PP4)'!$D$30","v":0},"#'T2-B(PP4)'!$D$30"]
["pp4_bl3_1_15_units_out",{"$f":"'T2-B(PP4)'!$G$30","v":0},"#'T2-B(PP4)'!$G$30"]
["pp4_bl3_1_16_name",{"$f":"'T2-B(PP4)'!$B$31","v":0},"#'T2-B(PP4)'!$B$31"]
["pp4_bl3_1_16_rate_in",{"$f":"'T2-B(PP4)'!$E$31","v":0},"#'T2-B(PP4)'!$E$31"]
["pp4_bl3_1_16_rate_out",{"$f":"'T2-B(PP4)'!$H$31","v":0},"#'T2-B(PP4)'!$H$31"]
["pp4_bl3_1_16_total",{"$f":"'T2-B(PP4)'!$J$31","v":0},"#'T2-B(PP4)'!$J$31"]
["pp4_bl3_1_16_total_in",{"$f":"'T2-B(PP4)'!$F$31","v":0},"#'T2-B(PP4)'!$F$31"]
["pp4_bl3_1_16_total_out",{"$f":"'T2-B(PP4)'!$I$31","v":0},"#'T2-B(PP4)'!$I$31"]
["pp4_bl3_1_16_unit",{"$f":"'T2-B(PP4)'!$C$31","v":0},"#'T2-B(PP4)'!$C$31"]
["pp4_bl3_1_16_unit_in",{"$f":"'T2-B(PP4)'!$D$31","v":0},"#'T2-B(PP4)'!$D$31"]
["pp4_bl3_1_16_units_out",{"$f":"'T2-B(PP4)'!$G$31","v":0},"#'T2-B(PP4)'!$G$31"]
["pp4_bl3_1_17_name",{"$f":"'T2-B(PP4)'!$B$32","v":0},"#'T2-B(PP4)'!$B$32"]
["pp4_bl3_1_17_rate_in",{"$f":"'T2-B(PP4)'!$E$32","v":0},"#'T2-B(PP4)'!$E$32"]
["pp4_bl3_1_17_rate_out",{"$f":"'T2-B(PP4)'!$H$32","v":0},"#'T2-B(PP4)'!$H$32"]
["pp4_bl3_1_17_total",{"$f":"'T2-B(PP4)'!$J$32","v":0},"#'T2-B(PP4)'!$J$32"]
["pp4_bl3_1_17_total_in",{"$f":"'T2-B(PP4)'!$F$32","v":0},"#'T2-B(PP4)'!$F$32"]
["pp4_bl3_1_17_total_out",{"$f":"'T2-B(PP4)'!$I$32","v":0},"#'T2-B(PP4)'!$I$32"]
["pp4_bl3_1_17_unit",{"$f":"'T2-B(PP4)'!$C$32","v":0},"#'T2-B(PP4)'!$C$32"]
["pp4_bl3_1_17_unit_in",{"$f":"'T2-B(PP4)'!$D$32","v":0},"#'T2-B(PP4)'!$D$32"]
["pp4_bl3_1_17_units_out",{"$f":"'T2-B(PP4)'!$G$32","v":0},"#'T2-B(PP4)'!$G$32"]
["pp4_bl3_1_18_name",{"$f":"'T2-B(PP4)'!$B$33","v":0},"#'T2-B(PP4)'!$B$33"]
["pp4_bl3_1_18_rate_in",{"$f":"'T2-B(PP4)'!$E$33","v":0},"#'T2-B(PP4)'!$E$33"]
["pp4_bl3_1_18_rate_out",{"$f":"'T2-B(PP4)'!$H$33","v":0},"#'T2-B(PP4)'!$H$33"]
["pp4_bl3_1_18_total",{"$f":"'T2-B(PP4)'!$J$33","v":0},"#'T2-B(PP4)'!$J$33"]
["pp4_bl3_1_18_total_in",{"$f":"'T2-B(PP4)'!$F$33","v":0},"#'T2-B(PP4)'!$F$33"]
["pp4_bl3_1_18_total_out",{"$f":"'T2-B(PP4)'!$I$33","v":0},"#'T2-B(PP4)'!$I$33"]
["pp4_bl3_1_18_unit",{"$f":"'T2-B(PP4)'!$C$33","v":0},"#'T2-B(PP4)'!$C$33"]
["pp4_bl3_1_18_unit_in",{"$f":"'T2-B(PP4)'!$D$33","v":0},"#'T2-B(PP4)'!$D$33"]
["pp4_bl3_1_18_units_out",{"$f":"'T2-B(PP4)'!$G$33","v":0},"#'T2-B(PP4)'!$G$33"]
["pp4_bl3_1_19_name",{"$f":"'T2-B(PP4)'!$B$34","v":0},"#'T2-B(PP4)'!$B$34"]
["pp4_bl3_1_19_rate_in",{"$f":"'T2-B(PP4)'!$E$34","v":0},"#'T2-B(PP4)'!$E$34"]
["pp4_bl3_1_19_rate_out",{"$f":"'T2-B(PP4)'!$H$34","v":0},"#'T2-B(PP4)'!$H$34"]
["pp4_bl3_1_19_total",{"$f":"'T2-B(PP4)'!$J$34","v":0},"#'T2-B(PP4)'!$J$34"]
["pp4_bl3_1_19_total_in",{"$f":"'T2-B(PP4)'!$F$34","v":0},"#'T2-B(PP4)'!$F$34"]
["pp4_bl3_1_19_total_out",{"$f":"'T2-B(PP4)'!$I$34","v":0},"#'T2-B(PP4)'!$I$34"]
["pp4_bl3_1_19_unit",{"$f":"'T2-B(PP4)'!$C$34","v":0},"#'T2-B(PP4)'!$C$34"]
["pp4_bl3_1_19_unit_in",{"$f":"'T2-B(PP4)'!$D$34","v":0},"#'T2-B(PP4)'!$D$34"]
["pp4_bl3_1_19_units_out",{"$f":"'T2-B(PP4)'!$G$34","v":0},"#'T2-B(PP4)'!$G$34"]
["pp4_bl3_1_2_name",{"$f":"'T2-B(PP4)'!$B$17","v":0},"#'T2-B(PP4)'!$B$17"]
["pp4_bl3_1_2_rate_in",{"$f":"'T2-B(PP4)'!$E$17","v":0},"#'T2-B(PP4)'!$E$17"]
["pp4_bl3_1_2_rate_out",{"$f":"'T2-B(PP4)'!$H$17","v":0},"#'T2-B(PP4)'!$H$17"]
["pp4_bl3_1_2_total",{"$f":"'T2-B(PP4)'!$J$17","v":0},"#'T2-B(PP4)'!$J$17"]
["pp4_bl3_1_2_total_in",{"$f":"'T2-B(PP4)'!$F$17","v":0},"#'T2-B(PP4)'!$F$17"]
["pp4_bl3_1_2_total_out",{"$f":"'T2-B(PP4)'!$I$17","v":0},"#'T2-B(PP4)'!$I$17"]
["pp4_bl3_1_2_unit",{"$f":"'T2-B(PP4)'!$C$17","v":0},"#'T2-B(PP4)'!$C$17"]
["pp4_bl3_1_2_unit_in",{"$f":"'T2-B(PP4)'!$D$17","v":0},"#'T2-B(PP4)'!$D$17"]
["pp4_bl3_1_2_units_out",{"$f":"'T2-B(PP4)'!$G$17","v":0},"#'T2-B(PP4)'!$G$17"]
["pp4_bl3_1_20_name",{"$f":"'T2-B(PP4)'!$B$35","v":0},"#'T2-B(PP4)'!$B$35"]
["pp4_bl3_1_20_rate_in",{"$f":"'T2-B(PP4)'!$E$35","v":0},"#'T2-B(PP4)'!$E$35"]
["pp4_bl3_1_20_rate_out",{"$f":"'T2-B(PP4)'!$H$35","v":0},"#'T2-B(PP4)'!$H$35"]
["pp4_bl3_1_20_total",{"$f":"'T2-B(PP4)'!$J$35","v":0},"#'T2-B(PP4)'!$J$35"]
["pp4_bl3_1_20_total_in",{"$f":"'T2-B(PP4)'!$F$35","v":0},"#'T2-B(PP4)'!$F$35"]
["pp4_bl3_1_20_total_out",{"$f":"'T2-B(PP4)'!$I$35","v":0},"#'T2-B(PP4)'!$I$35"]
["pp4_bl3_1_20_unit",{"$f":"'T2-B(PP4)'!$C$35","v":0},"#'T2-B(PP4)'!$C$35"]
["pp4_bl3_1_20_unit_in",{"$f":"'T2-B(PP4)'!$D$35","v":0},"#'T2-B(PP4)'!$D$35"]
["pp4_bl3_1_20_units_out",{"$f":"'T2-B(PP4)'!$G$35","v":0},"#'T2-B(PP4)'!$G$35"]
["pp4_bl3_1_3_name",{"$f":"'T2-B(PP4)'!$B$18","v":0},"#'T2-B(PP4)'!$B$18"]
["pp4_bl3_1_3_rate_in",{"$f":"'T2-B(PP4)'!$E$18","v":0},"#'T2-B(PP4)'!$E$18"]
["pp4_bl3_1_3_rate_out",{"$f":"'T2-B(PP4)'!$H$18","v":0},"#'T2-B(PP4)'!$H$18"]
["pp4_bl3_1_3_total",{"$f":"'T2-B(PP4)'!$J$18","v":0},"#'T2-B(PP4)'!$J$18"]
["pp4_bl3_1_3_total_in",{"$f":"'T2-B(PP4)'!$F$18","v":0},"#'T2-B(PP4)'!$F$18"]
["pp4_bl3_1_3_total_out",{"$f":"'T2-B(PP4)'!$I$18","v":0},"#'T2-B(PP4)'!$I$18"]
["pp4_bl3_1_3_unit",{"$f":"'T2-B(PP4)'!$C$18","v":0},"#'T2-B(PP4)'!$C$18"]
["pp4_bl3_1_3_unit_in",{"$f":"'T2-B(PP4)'!$D$18","v":0},"#'T2-B(PP4)'!$D$18"]
["pp4_bl3_1_3_units_out",{"$f":"'T2-B(PP4)'!$G$18","v":0},"#'T2-B(PP4)'!$G$18"]
["pp4_bl3_1_4_name",{"$f":"'T2-B(PP4)'!$B$19","v":0},"#'T2-B(PP4)'!$B$19"]
["pp4_bl3_1_4_rate_in",{"$f":"'T2-B(PP4)'!$E$19","v":0},"#'T2-B(PP4)'!$E$19"]
["pp4_bl3_1_4_rate_out",{"$f":"'T2-B(PP4)'!$H$19","v":0},"#'T2-B(PP4)'!$H$19"]
["pp4_bl3_1_4_total",{"$f":"'T2-B(PP4)'!$J$19","v":0},"#'T2-B(PP4)'!$J$19"]
["pp4_bl3_1_4_total_in",{"$f":"'T2-B(PP4)'!$F$19","v":0},"#'T2-B(PP4)'!$F$19"]
["pp4_bl3_1_4_total_out",{"$f":"'T2-B(PP4)'!$I$19","v":0},"#'T2-B(PP4)'!$I$19"]
["pp4_bl3_1_4_unit",{"$f":"'T2-B(PP4)'!$C$19","v":0},"#'T2-B(PP4)'!$C$19"]
["pp4_bl3_1_4_unit_in",{"$f":"'T2-B(PP4)'!$D$19","v":0},"#'T2-B(PP4)'!$D$19"]
["pp4_bl3_1_4_units_out",{"$f":"'T2-B(PP4)'!$G$19","v":0},"#'T2-B(PP4)'!$G$19"]
["pp4_bl3_1_5_name",{"$f":"'T2-B(PP4)'!$B$20","v":0},"#'T2-B(PP4)'!$B$20"]
["pp4_bl3_1_5_rate_in",{"$f":"'T2-B(PP4)'!$E$20","v":0},"#'T2-B(PP4)'!$E$20"]
["pp4_bl3_1_5_rate_out",{"$f":"'T2-B(PP4)'!$H$20","v":0},"#'T2-B(PP4)'!$H$20"]
["pp4_bl3_1_5_total",{"$f":"'T2-B(PP4)'!$J$20","v":0},"#'T2-B(PP4)'!$J$20"]
["pp4_bl3_1_5_total_in",{"$f":"'T2-B(PP4)'!$F$20","v":0},"#'T2-B(PP4)'!$F$20"]
["pp4_bl3_1_5_total_out",{"$f":"'T2-B(PP4)'!$I$20","v":0},"#'T2-B(PP4)'!$I$20"]
["pp4_bl3_1_5_unit",{"$f":"'T2-B(PP4)'!$C$20","v":0},"#'T2-B(PP4)'!$C$20"]
["pp4_bl3_1_5_unit_in",{"$f":"'T2-B(PP4)'!$D$20","v":0},"#'T2-B(PP4)'!$D$20"]
["pp4_bl3_1_5_units_out",{"$f":"'T2-B(PP4)'!$G$20","v":0},"#'T2-B(PP4)'!$G$20"]
["pp4_bl3_1_6_name",{"$f":"'T2-B(PP4)'!$B$21","v":0},"#'T2-B(PP4)'!$B$21"]
["pp4_bl3_1_6_rate_in",{"$f":"'T2-B(PP4)'!$E$21","v":0},"#'T2-B(PP4)'!$E$21"]
["pp4_bl3_1_6_rate_out",{"$f":"'T2-B(PP4)'!$H$21","v":0},"#'T2-B(PP4)'!$H$21"]
["pp4_bl3_1_6_total",{"$f":"'T2-B(PP4)'!$J$21","v":0},"#'T2-B(PP4)'!$J$21"]
["pp4_bl3_1_6_total_in",{"$f":"'T2-B(PP4)'!$F$21","v":0},"#'T2-B(PP4)'!$F$21"]
["pp4_bl3_1_6_total_out",{"$f":"'T2-B(PP4)'!$I$21","v":0},"#'T2-B(PP4)'!$I$21"]
["pp4_bl3_1_6_unit",{"$f":"'T2-B(PP4)'!$C$21","v":0},"#'T2-B(PP4)'!$C$21"]
["pp4_bl3_1_6_unit_in",{"$f":"'T2-B(PP4)'!$D$21","v":0},"#'T2-B(PP4)'!$D$21"]
["pp4_bl3_1_6_units_out",{"$f":"'T2-B(PP4)'!$G$21","v":0},"#'T2-B(PP4)'!$G$21"]
["pp4_bl3_1_7_name",{"$f":"'T2-B(PP4)'!$B$22","v":0},"#'T2-B(PP4)'!$B$22"]
["pp4_bl3_1_7_rate_in",{"$f":"'T2-B(PP4)'!$E$22","v":0},"#'T2-B(PP4)'!$E$22"]
["pp4_bl3_1_7_rate_out",{"$f":"'T2-B(PP4)'!$H$22","v":0},"#'T2-B(PP4)'!$H$22"]
["pp4_bl3_1_7_total",{"$f":"'T2-B(PP4)'!$J$22","v":0},"#'T2-B(PP4)'!$J$22"]
["pp4_bl3_1_7_total_in",{"$f":"'T2-B(PP4)'!$F$22","v":0},"#'T2-B(PP4)'!$F$22"]
["pp4_bl3_1_7_total_out",{"$f":"'T2-B(PP4)'!$I$22","v":0},"#'T2-B(PP4)'!$I$22"]
["pp4_bl3_1_7_unit",{"$f":"'T2-B(PP4)'!$C$22","v":0},"#'T2-B(PP4)'!$C$22"]
["pp4_bl3_1_7_unit_in",{"$f":"'T2-B(PP4)'!$D$22","v":0},"#'T2-B(PP4)'!$D$22"]
["pp4_bl3_1_7_units_out",{"$f":"'T2-B(PP4)'!$G$22","v":0},"#'T2-B(PP4)'!$G$22"]
["pp4_bl3_1_8_name",{"$f":"'T2-B(PP4)'!$B$23","v":0},"#'T2-B(PP4)'!$B$23"]
["pp4_bl3_1_8_rate_in",{"$f":"'T2-B(PP4)'!$E$23","v":0},"#'T2-B(PP4)'!$E$23"]
["pp4_bl3_1_8_rate_out",{"$f":"'T2-B(PP4)'!$H$23","v":0},"#'T2-B(PP4)'!$H$23"]
["pp4_bl3_1_8_total",{"$f":"'T2-B(PP4)'!$J$23","v":0},"#'T2-B(PP4)'!$J$23"]
["pp4_bl3_1_8_total_in",{"$f":"'T2-B(PP4)'!$F$23","v":0},"#'T2-B(PP4)'!$F$23"]
["pp4_bl3_1_8_total_out",{"$f":"'T2-B(PP4)'!$I$23","v":0},"#'T2-B(PP4)'!$I$23"]
["pp4_bl3_1_8_unit",{"$f":"'T2-B(PP4)'!$C$23","v":0},"#'T2-B(PP4)'!$C$23"]
["pp4_bl3_1_8_unit_in",{"$f":"'T2-B(PP4)'!$D$23","v":0},"#'T2-B(PP4)'!$D$23"]
["pp4_bl3_1_8_units_out",{"$f":"'T2-B(PP4)'!$G$23","v":0},"#'T2-B(PP4)'!$G$23"]
["pp4_bl3_1_9_name",{"$f":"'T2-B(PP4)'!$B$24","v":0},"#'T2-B(PP4)'!$B$24"]
["pp4_bl3_1_9_rate_in",{"$f":"'T2-B(PP4)'!$E$24","v":0},"#'T2-B(PP4)'!$E$24"]
["pp4_bl3_1_9_rate_out",{"$f":"'T2-B(PP4)'!$H$24","v":0},"#'T2-B(PP4)'!$H$24"]
["pp4_bl3_1_9_total",{"$f":"'T2-B(PP4)'!$J$24","v":0},"#'T2-B(PP4)'!$J$24"]
["pp4_bl3_1_9_total_in",{"$f":"'T2-B(PP4)'!$F$24","v":0},"#'T2-B(PP4)'!$F$24"]
["pp4_bl3_1_9_total_out",{"$f":"'T2-B(PP4)'!$I$24","v":0},"#'T2-B(PP4)'!$I$24"]
["pp4_bl3_1_9_unit",{"$f":"'T2-B(PP4)'!$C$24","v":0},"#'T2-B(PP4)'!$C$24"]
["pp4_bl3_1_9_unit_in",{"$f":"'T2-B(PP4)'!$D$24","v":0},"#'T2-B(PP4)'!$D$24"]
["pp4_bl3_1_9_units_out",{"$f":"'T2-B(PP4)'!$G$24","v":0},"#'T2-B(PP4)'!$G$24"]
["pp4_bl3_1_total",{"$f":"'T2-B(PP4)'!$J$15","v":0},"#'T2-B(PP4)'!$J$15"]
["pp4_bl3_1_total_in",{"$f":"'T2-B(PP4)'!$F$15","v":0},"#'T2-B(PP4)'!$F$15"]
["pp4_bl3_1_total_out",{"$f":"'T2-B(PP4)'!$I$15","v":0},"#'T2-B(PP4)'!$I$15"]
["pp4_bl3_2_1_name",{"$f":"'T2-B(PP4)'!$B$37","v":0},"#'T2-B(PP4)'!$B$37"]
["pp4_bl3_2_1_rate_in",{"$f":"'T2-B(PP4)'!$E$37","v":0},"#'T2-B(PP4)'!$E$37"]
["pp4_bl3_2_1_rate_out",{"$f":"'T2-B(PP4)'!$H$37","v":0},"#'T2-B(PP4)'!$H$37"]
["pp4_bl3_2_1_total",{"$f":"'T2-B(PP4)'!$J$37","v":0},"#'T2-B(PP4)'!$J$37"]
["pp4_bl3_2_1_total_in",{"$f":"'T2-B(PP4)'!$F$37","v":0},"#'T2-B(PP4)'!$F$37"]
["pp4_bl3_2_1_total_out",{"$f":"'T2-B(PP4)'!$I$37","v":0},"#'T2-B(PP4)'!$I$37"]
["pp4_bl3_2_1_unit",{"$f":"'T2-B(PP4)'!$C$37","v":0},"#'T2-B(PP4)'!$C$37"]
["pp4_bl3_2_1_unit_in",{"$f":"'T2-B(PP4)'!$D$37","v":0},"#'T2-B(PP4)'!$D$37"]
["pp4_bl3_2_1_units_out",{"$f":"'T2-B(PP4)'!$G$37","v":0},"#'T2-B(PP4)'!$G$37"]
["pp4_bl3_2_10_name",{"$f":"'T2-B(PP4)'!$B$46","v":0},"#'T2-B(PP4)'!$B$46"]
["pp4_bl3_2_10_rate_in",{"$f":"'T2-B(PP4)'!$E$46","v":0},"#'T2-B(PP4)'!$E$46"]
["pp4_bl3_2_10_rate_out",{"$f":"'T2-B(PP4)'!$H$46","v":0},"#'T2-B(PP4)'!$H$46"]
["pp4_bl3_2_10_total",{"$f":"'T2-B(PP4)'!$J$46","v":0},"#'T2-B(PP4)'!$J$46"]
["pp4_bl3_2_10_total_in",{"$f":"'T2-B(PP4)'!$F$46","v":0},"#'T2-B(PP4)'!$F$46"]
["pp4_bl3_2_10_total_out",{"$f":"'T2-B(PP4)'!$I$46","v":0},"#'T2-B(PP4)'!$I$46"]
["pp4_bl3_2_10_unit",{"$f":"'T2-B(PP4)'!$C$46","v":0},"#'T2-B(PP4)'!$C$46"]
["pp4_bl3_2_10_unit_in",{"$f":"'T2-B(PP4)'!$D$46","v":0},"#'T2-B(PP4)'!$D$46"]
["pp4_bl3_2_10_units_out",{"$f":"'T2-B(PP4)'!$G$46","v":0},"#'T2-B(PP4)'!$G$46"]
["pp4_bl3_2_11_name",{"$f":"'T2-B(PP4)'!$B$47","v":0},"#'T2-B(PP4)'!$B$47"]
["pp4_bl3_2_11_rate_in",{"$f":"'T2-B(PP4)'!$E$47","v":0},"#'T2-B(PP4)'!$E$47"]
["pp4_bl3_2_11_rate_out",{"$f":"'T2-B(PP4)'!$H$47","v":0},"#'T2-B(PP4)'!$H$47"]
["pp4_bl3_2_11_total",{"$f":"'T2-B(PP4)'!$J$47","v":0},"#'T2-B(PP4)'!$J$47"]
["pp4_bl3_2_11_total_in",{"$f":"'T2-B(PP4)'!$F$47","v":0},"#'T2-B(PP4)'!$F$47"]
["pp4_bl3_2_11_total_out",{"$f":"'T2-B(PP4)'!$I$47","v":0},"#'T2-B(PP4)'!$I$47"]
["pp4_bl3_2_11_unit",{"$f":"'T2-B(PP4)'!$C$47","v":0},"#'T2-B(PP4)'!$C$47"]
["pp4_bl3_2_11_unit_in",{"$f":"'T2-B(PP4)'!$D$47","v":0},"#'T2-B(PP4)'!$D$47"]
["pp4_bl3_2_11_units_out",{"$f":"'T2-B(PP4)'!$G$47","v":0},"#'T2-B(PP4)'!$G$47"]
["pp4_bl3_2_12_name",{"$f":"'T2-B(PP4)'!$B$48","v":0},"#'T2-B(PP4)'!$B$48"]
["pp4_bl3_2_12_rate_in",{"$f":"'T2-B(PP4)'!$E$48","v":0},"#'T2-B(PP4)'!$E$48"]
["pp4_bl3_2_12_rate_out",{"$f":"'T2-B(PP4)'!$H$48","v":0},"#'T2-B(PP4)'!$H$48"]
["pp4_bl3_2_12_total",{"$f":"'T2-B(PP4)'!$J$48","v":0},"#'T2-B(PP4)'!$J$48"]
["pp4_bl3_2_12_total_in",{"$f":"'T2-B(PP4)'!$F$48","v":0},"#'T2-B(PP4)'!$F$48"]
["pp4_bl3_2_12_total_out",{"$f":"'T2-B(PP4)'!$I$48","v":0},"#'T2-B(PP4)'!$I$48"]
["pp4_bl3_2_12_unit",{"$f":"'T2-B(PP4)'!$C$48","v":0},"#'T2-B(PP4)'!$C$48"]
["pp4_bl3_2_12_unit_in",{"$f":"'T2-B(PP4)'!$D$48","v":0},"#'T2-B(PP4)'!$D$48"]
["pp4_bl3_2_12_units_out",{"$f":"'T2-B(PP4)'!$G$48","v":0},"#'T2-B(PP4)'!$G$48"]
["pp4_bl3_2_13_name",{"$f":"'T2-B(PP4)'!$B$49","v":0},"#'T2-B(PP4)'!$B$49"]
["pp4_bl3_2_13_rate_in",{"$f":"'T2-B(PP4)'!$E$49","v":0},"#'T2-B(PP4)'!$E$49"]
["pp4_bl3_2_13_rate_out",{"$f":"'T2-B(PP4)'!$H$49","v":0},"#'T2-B(PP4)'!$H$49"]
["pp4_bl3_2_13_total",{"$f":"'T2-B(PP4)'!$J$49","v":0},"#'T2-B(PP4)'!$J$49"]
["pp4_bl3_2_13_total_in",{"$f":"'T2-B(PP4)'!$F$49","v":0},"#'T2-B(PP4)'!$F$49"]
["pp4_bl3_2_13_total_out",{"$f":"'T2-B(PP4)'!$I$49","v":0},"#'T2-B(PP4)'!$I$49"]
["pp4_bl3_2_13_unit",{"$f":"'T2-B(PP4)'!$C$49","v":0},"#'T2-B(PP4)'!$C$49"]
["pp4_bl3_2_13_unit_in",{"$f":"'T2-B(PP4)'!$D$49","v":0},"#'T2-B(PP4)'!$D$49"]
["pp4_bl3_2_13_units_out",{"$f":"'T2-B(PP4)'!$G$49","v":0},"#'T2-B(PP4)'!$G$49"]
["pp4_bl3_2_14_name",{"$f":"'T2-B(PP4)'!$B$50","v":0},"#'T2-B(PP4)'!$B$50"]
["pp4_bl3_2_14_rate_in",{"$f":"'T2-B(PP4)'!$E$50","v":0},"#'T2-B(PP4)'!$E$50"]
["pp4_bl3_2_14_rate_out",{"$f":"'T2-B(PP4)'!$H$50","v":0},"#'T2-B(PP4)'!$H$50"]
["pp4_bl3_2_14_total",{"$f":"'T2-B(PP4)'!$J$50","v":0},"#'T2-B(PP4)'!$J$50"]
["pp4_bl3_2_14_total_in",{"$f":"'T2-B(PP4)'!$F$50","v":0},"#'T2-B(PP4)'!$F$50"]
["pp4_bl3_2_14_total_out",{"$f":"'T2-B(PP4)'!$I$50","v":0},"#'T2-B(PP4)'!$I$50"]
["pp4_bl3_2_14_unit",{"$f":"'T2-B(PP4)'!$C$50","v":0},"#'T2-B(PP4)'!$C$50"]
["pp4_bl3_2_14_unit_in",{"$f":"'T2-B(PP4)'!$D$50","v":0},"#'T2-B(PP4)'!$D$50"]
["pp4_bl3_2_14_units_out",{"$f":"'T2-B(PP4)'!$G$50","v":0},"#'T2-B(PP4)'!$G$50"]
["pp4_bl3_2_15_name",{"$f":"'T2-B(PP4)'!$B$51","v":0},"#'T2-B(PP4)'!$B$51"]
["pp4_bl3_2_15_rate_in",{"$f":"'T2-B(PP4)'!$E$51","v":0},"#'T2-B(PP4)'!$E$51"]
["pp4_bl3_2_15_rate_out",{"$f":"'T2-B(PP4)'!$H$51","v":0},"#'T2-B(PP4)'!$H$51"]
["pp4_bl3_2_15_total",{"$f":"'T2-B(PP4)'!$J$51","v":0},"#'T2-B(PP4)'!$J$51"]
["pp4_bl3_2_15_total_in",{"$f":"'T2-B(PP4)'!$F$51","v":0},"#'T2-B(PP4)'!$F$51"]
["pp4_bl3_2_15_total_out",{"$f":"'T2-B(PP4)'!$I$51","v":0},"#'T2-B(PP4)'!$I$51"]
["pp4_bl3_2_15_unit",{"$f":"'T2-B(PP4)'!$C$51","v":0},"#'T2-B(PP4)'!$C$51"]
["pp4_bl3_2_15_unit_in",{"$f":"'T2-B(PP4)'!$D$51","v":0},"#'T2-B(PP4)'!$D$51"]
["pp4_bl3_2_15_units_out",{"$f":"'T2-B(PP4)'!$G$51","v":0},"#'T2-B(PP4)'!$G$51"]
["pp4_bl3_2_16_name",{"$f":"'T2-B(PP4)'!$B$52","v":0},"#'T2-B(PP4)'!$B$52"]
["pp4_bl3_2_16_rate_in",{"$f":"'T2-B(PP4)'!$E$52","v":0},"#'T2-B(PP4)'!$E$52"]
["pp4_bl3_2_16_rate_out",{"$f":"'T2-B(PP4)'!$H$52","v":0},"#'T2-B(PP4)'!$H$52"]
["pp4_bl3_2_16_total",{"$f":"'T2-B(PP4)'!$J$52","v":0},"#'T2-B(PP4)'!$J$52"]
["pp4_bl3_2_16_total_in",{"$f":"'T2-B(PP4)'!$F$52","v":0},"#'T2-B(PP4)'!$F$52"]
["pp4_bl3_2_16_total_out",{"$f":"'T2-B(PP4)'!$I$52","v":0},"#'T2-B(PP4)'!$I$52"]
["pp4_bl3_2_16_unit",{"$f":"'T2-B(PP4)'!$C$52","v":0},"#'T2-B(PP4)'!$C$52"]
["pp4_bl3_2_16_unit_in",{"$f":"'T2-B(PP4)'!$D$52","v":0},"#'T2-B(PP4)'!$D$52"]
["pp4_bl3_2_16_units_out",{"$f":"'T2-B(PP4)'!$G$52","v":0},"#'T2-B(PP4)'!$G$52"]
["pp4_bl3_2_17_name",{"$f":"'T2-B(PP4)'!$B$53","v":0},"#'T2-B(PP4)'!$B$53"]
["pp4_bl3_2_17_rate_in",{"$f":"'T2-B(PP4)'!$E$53","v":0},"#'T2-B(PP4)'!$E$53"]
["pp4_bl3_2_17_rate_out",{"$f":"'T2-B(PP4)'!$H$53","v":0},"#'T2-B(PP4)'!$H$53"]
["pp4_bl3_2_17_total",{"$f":"'T2-B(PP4)'!$J$53","v":0},"#'T2-B(PP4)'!$J$53"]
["pp4_bl3_2_17_total_in",{"$f":"'T2-B(PP4)'!$F$53","v":0},"#'T2-B(PP4)'!$F$53"]
["pp4_bl3_2_17_total_out",{"$f":"'T2-B(PP4)'!$I$53","v":0},"#'T2-B(PP4)'!$I$53"]
["pp4_bl3_2_17_unit",{"$f":"'T2-B(PP4)'!$C$53","v":0},"#'T2-B(PP4)'!$C$53"]
["pp4_bl3_2_17_unit_in",{"$f":"'T2-B(PP4)'!$D$53","v":0},"#'T2-B(PP4)'!$D$53"]
["pp4_bl3_2_17_units_out",{"$f":"'T2-B(PP4)'!$G$53","v":0},"#'T2-B(PP4)'!$G$53"]
["pp4_bl3_2_18_name",{"$f":"'T2-B(PP4)'!$B$54","v":0},"#'T2-B(PP4)'!$B$54"]
["pp4_bl3_2_18_rate_in",{"$f":"'T2-B(PP4)'!$E$54","v":0},"#'T2-B(PP4)'!$E$54"]
["pp4_bl3_2_18_rate_out",{"$f":"'T2-B(PP4)'!$H$54","v":0},"#'T2-B(PP4)'!$H$54"]
["pp4_bl3_2_18_total",{"$f":"'T2-B(PP4)'!$J$54","v":0},"#'T2-B(PP4)'!$J$54"]
["pp4_bl3_2_18_total_in",{"$f":"'T2-B(PP4)'!$F$54","v":0},"#'T2-B(PP4)'!$F$54"]
["pp4_bl3_2_18_total_out",{"$f":"'T2-B(PP4)'!$I$54","v":0},"#'T2-B(PP4)'!$I$54"]
["pp4_bl3_2_18_unit",{"$f":"'T2-B(PP4)'!$C$54","v":0},"#'T2-B(PP4)'!$C$54"]
["pp4_bl3_2_18_unit_in",{"$f":"'T2-B(PP4)'!$D$54","v":0},"#'T2-B(PP4)'!$D$54"]
["pp4_bl3_2_18_units_out",{"$f":"'T2-B(PP4)'!$G$54","v":0},"#'T2-B(PP4)'!$G$54"]
["pp4_bl3_2_19_name",{"$f":"'T2-B(PP4)'!$B$55","v":0},"#'T2-B(PP4)'!$B$55"]
["pp4_bl3_2_19_rate_in",{"$f":"'T2-B(PP4)'!$E$55","v":0},"#'T2-B(PP4)'!$E$55"]
["pp4_bl3_2_19_rate_out",{"$f":"'T2-B(PP4)'!$H$55","v":0},"#'T2-B(PP4)'!$H$55"]
["pp4_bl3_2_19_total",{"$f":"'T2-B(PP4)'!$J$55","v":0},"#'T2-B(PP4)'!$J$55"]
["pp4_bl3_2_19_total_in",{"$f":"'T2-B(PP4)'!$F$55","v":0},"#'T2-B(PP4)'!$F$55"]
["pp4_bl3_2_19_total_out",{"$f":"'T2-B(PP4)'!$I$55","v":0},"#'T2-B(PP4)'!$I$55"]
["pp4_bl3_2_19_unit",{"$f":"'T2-B(PP4)'!$C$55","v":0},"#'T2-B(PP4)'!$C$55"]
["pp4_bl3_2_19_unit_in",{"$f":"'T2-B(PP4)'!$D$55","v":0},"#'T2-B(PP4)'!$D$55"]
["pp4_bl3_2_19_units_out",{"$f":"'T2-B(PP4)'!$G$55","v":0},"#'T2-B(PP4)'!$G$55"]
["pp4_bl3_2_2_name",{"$f":"'T2-B(PP4)'!$B$38","v":0},"#'T2-B(PP4)'!$B$38"]
["pp4_bl3_2_2_rate_in",{"$f":"'T2-B(PP4)'!$E$38","v":0},"#'T2-B(PP4)'!$E$38"]
["pp4_bl3_2_2_rate_out",{"$f":"'T2-B(PP4)'!$H$38","v":0},"#'T2-B(PP4)'!$H$38"]
["pp4_bl3_2_2_total",{"$f":"'T2-B(PP4)'!$J$38","v":0},"#'T2-B(PP4)'!$J$38"]
["pp4_bl3_2_2_total_in",{"$f":"'T2-B(PP4)'!$F$38","v":0},"#'T2-B(PP4)'!$F$38"]
["pp4_bl3_2_2_total_out",{"$f":"'T2-B(PP4)'!$I$38","v":0},"#'T2-B(PP4)'!$I$38"]
["pp4_bl3_2_2_unit",{"$f":"'T2-B(PP4)'!$C$38","v":0},"#'T2-B(PP4)'!$C$38"]
["pp4_bl3_2_2_unit_in",{"$f":"'T2-B(PP4)'!$D$38","v":0},"#'T2-B(PP4)'!$D$38"]
["pp4_bl3_2_2_units_out",{"$f":"'T2-B(PP4)'!$G$38","v":0},"#'T2-B(PP4)'!$G$38"]
["pp4_bl3_2_20_name",{"$f":"'T2-B(PP4)'!$B$56","v":0},"#'T2-B(PP4)'!$B$56"]
["pp4_bl3_2_20_rate_in",{"$f":"'T2-B(PP4)'!$E$56","v":0},"#'T2-B(PP4)'!$E$56"]
["pp4_bl3_2_20_rate_out",{"$f":"'T2-B(PP4)'!$H$56","v":0},"#'T2-B(PP4)'!$H$56"]
["pp4_bl3_2_20_total",{"$f":"'T2-B(PP4)'!$J$56","v":0},"#'T2-B(PP4)'!$J$56"]
["pp4_bl3_2_20_total_in",{"$f":"'T2-B(PP4)'!$F$56","v":0},"#'T2-B(PP4)'!$F$56"]
["pp4_bl3_2_20_total_out",{"$f":"'T2-B(PP4)'!$I$56","v":0},"#'T2-B(PP4)'!$I$56"]
["pp4_bl3_2_20_unit",{"$f":"'T2-B(PP4)'!$C$56","v":0},"#'T2-B(PP4)'!$C$56"]
["pp4_bl3_2_20_unit_in",{"$f":"'T2-B(PP4)'!$D$56","v":0},"#'T2-B(PP4)'!$D$56"]
["pp4_bl3_2_20_units_out",{"$f":"'T2-B(PP4)'!$G$56","v":0},"#'T2-B(PP4)'!$G$56"]
["pp4_bl3_2_3_name",{"$f":"'T2-B(PP4)'!$B$39","v":0},"#'T2-B(PP4)'!$B$39"]
["pp4_bl3_2_3_rate_in",{"$f":"'T2-B(PP4)'!$E$39","v":0},"#'T2-B(PP4)'!$E$39"]
["pp4_bl3_2_3_rate_out",{"$f":"'T2-B(PP4)'!$H$39","v":0},"#'T2-B(PP4)'!$H$39"]
["pp4_bl3_2_3_total",{"$f":"'T2-B(PP4)'!$J$39","v":0},"#'T2-B(PP4)'!$J$39"]
["pp4_bl3_2_3_total_in",{"$f":"'T2-B(PP4)'!$F$39","v":0},"#'T2-B(PP4)'!$F$39"]
["pp4_bl3_2_3_total_out",{"$f":"'T2-B(PP4)'!$I$39","v":0},"#'T2-B(PP4)'!$I$39"]
["pp4_bl3_2_3_unit",{"$f":"'T2-B(PP4)'!$C$39","v":0},"#'T2-B(PP4)'!$C$39"]
["pp4_bl3_2_3_unit_in",{"$f":"'T2-B(PP4)'!$D$39","v":0},"#'T2-B(PP4)'!$D$39"]
["pp4_bl3_2_3_units_out",{"$f":"'T2-B(PP4)'!$G$39","v":0},"#'T2-B(PP4)'!$G$39"]
["pp4_bl3_2_4_name",{"$f":"'T2-B(PP4)'!$B$40","v":0},"#'T2-B(PP4)'!$B$40"]
["pp4_bl3_2_4_rate_in",{"$f":"'T2-B(PP4)'!$E$40","v":0},"#'T2-B(PP4)'!$E$40"]
["pp4_bl3_2_4_rate_out",{"$f":"'T2-B(PP4)'!$H$40","v":0},"#'T2-B(PP4)'!$H$40"]
["pp4_bl3_2_4_total",{"$f":"'T2-B(PP4)'!$J$40","v":0},"#'T2-B(PP4)'!$J$40"]
["pp4_bl3_2_4_total_in",{"$f":"'T2-B(PP4)'!$F$40","v":0},"#'T2-B(PP4)'!$F$40"]
["pp4_bl3_2_4_total_out",{"$f":"'T2-B(PP4)'!$I$40","v":0},"#'T2-B(PP4)'!$I$40"]
["pp4_bl3_2_4_unit",{"$f":"'T2-B(PP4)'!$C$40","v":0},"#'T2-B(PP4)'!$C$40"]
["pp4_bl3_2_4_unit_in",{"$f":"'T2-B(PP4)'!$D$40","v":0},"#'T2-B(PP4)'!$D$40"]
["pp4_bl3_2_4_units_out",{"$f":"'T2-B(PP4)'!$G$40","v":0},"#'T2-B(PP4)'!$G$40"]
["pp4_bl3_2_5_name",{"$f":"'T2-B(PP4)'!$B$41","v":0},"#'T2-B(PP4)'!$B$41"]
["pp4_bl3_2_5_rate_in",{"$f":"'T2-B(PP4)'!$E$41","v":0},"#'T2-B(PP4)'!$E$41"]
["pp4_bl3_2_5_rate_out",{"$f":"'T2-B(PP4)'!$H$41","v":0},"#'T2-B(PP4)'!$H$41"]
["pp4_bl3_2_5_total",{"$f":"'T2-B(PP4)'!$J$41","v":0},"#'T2-B(PP4)'!$J$41"]
["pp4_bl3_2_5_total_in",{"$f":"'T2-B(PP4)'!$F$41","v":0},"#'T2-B(PP4)'!$F$41"]
["pp4_bl3_2_5_total_out",{"$f":"'T2-B(PP4)'!$I$41","v":0},"#'T2-B(PP4)'!$I$41"]
["pp4_bl3_2_5_unit",{"$f":"'T2-B(PP4)'!$C$41","v":0},"#'T2-B(PP4)'!$C$41"]
["pp4_bl3_2_5_unit_in",{"$f":"'T2-B(PP4)'!$D$41","v":0},"#'T2-B(PP4)'!$D$41"]
["pp4_bl3_2_5_units_out",{"$f":"'T2-B(PP4)'!$G$41","v":0},"#'T2-B(PP4)'!$G$41"]
["pp4_bl3_2_6_name",{"$f":"'T2-B(PP4)'!$B$42","v":0},"#'T2-B(PP4)'!$B$42"]
["pp4_bl3_2_6_rate_in",{"$f":"'T2-B(PP4)'!$E$42","v":0},"#'T2-B(PP4)'!$E$42"]
["pp4_bl3_2_6_rate_out",{"$f":"'T2-B(PP4)'!$H$42","v":0},"#'T2-B(PP4)'!$H$42"]
["pp4_bl3_2_6_total",{"$f":"'T2-B(PP4)'!$J$42","v":0},"#'T2-B(PP4)'!$J$42"]
["pp4_bl3_2_6_total_in",{"$f":"'T2-B(PP4)'!$F$42","v":0},"#'T2-B(PP4)'!$F$42"]
["pp4_bl3_2_6_total_out",{"$f":"'T2-B(PP4)'!$I$42","v":0},"#'T2-B(PP4)'!$I$42"]
["pp4_bl3_2_6_unit",{"$f":"'T2-B(PP4)'!$C$42","v":0},"#'T2-B(PP4)'!$C$42"]
["pp4_bl3_2_6_unit_in",{"$f":"'T2-B(PP4)'!$D$42","v":0},"#'T2-B(PP4)'!$D$42"]
["pp4_bl3_2_6_units_out",{"$f":"'T2-B(PP4)'!$G$42","v":0},"#'T2-B(PP4)'!$G$42"]
["pp4_bl3_2_7_name",{"$f":"'T2-B(PP4)'!$B$43","v":0},"#'T2-B(PP4)'!$B$43"]
["pp4_bl3_2_7_rate_in",{"$f":"'T2-B(PP4)'!$E$43","v":0},"#'T2-B(PP4)'!$E$43"]
["pp4_bl3_2_7_rate_out",{"$f":"'T2-B(PP4)'!$H$43","v":0},"#'T2-B(PP4)'!$H$43"]
["pp4_bl3_2_7_total",{"$f":"'T2-B(PP4)'!$J$43","v":0},"#'T2-B(PP4)'!$J$43"]
["pp4_bl3_2_7_total_in",{"$f":"'T2-B(PP4)'!$F$43","v":0},"#'T2-B(PP4)'!$F$43"]
["pp4_bl3_2_7_total_out",{"$f":"'T2-B(PP4)'!$I$43","v":0},"#'T2-B(PP4)'!$I$43"]
["pp4_bl3_2_7_unit",{"$f":"'T2-B(PP4)'!$C$43","v":0},"#'T2-B(PP4)'!$C$43"]
["pp4_bl3_2_7_unit_in",{"$f":"'T2-B(PP4)'!$D$43","v":0},"#'T2-B(PP4)'!$D$43"]
["pp4_bl3_2_7_units_out",{"$f":"'T2-B(PP4)'!$G$43","v":0},"#'T2-B(PP4)'!$G$43"]
["pp4_bl3_2_8_name",{"$f":"'T2-B(PP4)'!$B$44","v":0},"#'T2-B(PP4)'!$B$44"]
["pp4_bl3_2_8_rate_in",{"$f":"'T2-B(PP4)'!$E$44","v":0},"#'T2-B(PP4)'!$E$44"]
["pp4_bl3_2_8_rate_out",{"$f":"'T2-B(PP4)'!$H$44","v":0},"#'T2-B(PP4)'!$H$44"]
["pp4_bl3_2_8_total",{"$f":"'T2-B(PP4)'!$J$44","v":0},"#'T2-B(PP4)'!$J$44"]
["pp4_bl3_2_8_total_in",{"$f":"'T2-B(PP4)'!$F$44","v":0},"#'T2-B(PP4)'!$F$44"]
["pp4_bl3_2_8_total_out",{"$f":"'T2-B(PP4)'!$I$44","v":0},"#'T2-B(PP4)'!$I$44"]
["pp4_bl3_2_8_unit",{"$f":"'T2-B(PP4)'!$C$44","v":0},"#'T2-B(PP4)'!$C$44"]
["pp4_bl3_2_8_unit_in",{"$f":"'T2-B(PP4)'!$D$44","v":0},"#'T2-B(PP4)'!$D$44"]
["pp4_bl3_2_8_units_out",{"$f":"'T2-B(PP4)'!$G$44","v":0},"#'T2-B(PP4)'!$G$44"]
["pp4_bl3_2_9_name",{"$f":"'T2-B(PP4)'!$B$45","v":0},"#'T2-B(PP4)'!$B$45"]
["pp4_bl3_2_9_rate_in",{"$f":"'T2-B(PP4)'!$E$45","v":0},"#'T2-B(PP4)'!$E$45"]
["pp4_bl3_2_9_rate_out",{"$f":"'T2-B(PP4)'!$H$45","v":0},"#'T2-B(PP4)'!$H$45"]
["pp4_bl3_2_9_total",{"$f":"'T2-B(PP4)'!$J$45","v":0},"#'T2-B(PP4)'!$J$45"]
["pp4_bl3_2_9_total_in",{"$f":"'T2-B(PP4)'!$F$45","v":0},"#'T2-B(PP4)'!$F$45"]
["pp4_bl3_2_9_total_out",{"$f":"'T2-B(PP4)'!$I$45","v":0},"#'T2-B(PP4)'!$I$45"]
["pp4_bl3_2_9_unit",{"$f":"'T2-B(PP4)'!$C$45","v":0},"#'T2-B(PP4)'!$C$45"]
["pp4_bl3_2_9_unit_in",{"$f":"'T2-B(PP4)'!$D$45","v":0},"#'T2-B(PP4)'!$D$45"]
["pp4_bl3_2_9_units_out",{"$f":"'T2-B(PP4)'!$G$45","v":0},"#'T2-B(PP4)'!$G$45"]
["pp4_bl3_2_total",{"$f":"'T2-B(PP4)'!$J$36","v":0},"#'T2-B(PP4)'!$J$36"]
["pp4_bl3_2_total_in",{"$f":"'T2-B(PP4)'!$F$36","v":0},"#'T2-B(PP4)'!$F$36"]
["pp4_bl3_2_total_out",{"$f":"'T2-B(PP4)'!$I$36","v":0},"#'T2-B(PP4)'!$I$36"]
["pp4_bl3_3_1_name",{"$f":"'T2-B(PP4)'!$B$58","v":0},"#'T2-B(PP4)'!$B$58"]
["pp4_bl3_3_1_rate_in",{"$f":"'T2-B(PP4)'!$E$58","v":0},"#'T2-B(PP4)'!$E$58"]
["pp4_bl3_3_1_rate_out",{"$f":"'T2-B(PP4)'!$H$58","v":0},"#'T2-B(PP4)'!$H$58"]
["pp4_bl3_3_1_total",{"$f":"'T2-B(PP4)'!$J$58","v":0},"#'T2-B(PP4)'!$J$58"]
["pp4_bl3_3_1_total_in",{"$f":"'T2-B(PP4)'!$F$58","v":0},"#'T2-B(PP4)'!$F$58"]
["pp4_bl3_3_1_total_out",{"$f":"'T2-B(PP4)'!$I$58","v":0},"#'T2-B(PP4)'!$I$58"]
["pp4_bl3_3_1_unit",{"$f":"'T2-B(PP4)'!$C$58","v":0},"#'T2-B(PP4)'!$C$58"]
["pp4_bl3_3_1_unit_in",{"$f":"'T2-B(PP4)'!$D$58","v":0},"#'T2-B(PP4)'!$D$58"]
["pp4_bl3_3_1_units_out",{"$f":"'T2-B(PP4)'!$G$58","v":0},"#'T2-B(PP4)'!$G$58"]
["pp4_bl3_3_10_name",{"$f":"'T2-B(PP4)'!$B$67","v":0},"#'T2-B(PP4)'!$B$67"]
["pp4_bl3_3_10_rate_in",{"$f":"'T2-B(PP4)'!$E$67","v":0},"#'T2-B(PP4)'!$E$67"]
["pp4_bl3_3_10_rate_out",{"$f":"'T2-B(PP4)'!$H$67","v":0},"#'T2-B(PP4)'!$H$67"]
["pp4_bl3_3_10_total",{"$f":"'T2-B(PP4)'!$J$67","v":0},"#'T2-B(PP4)'!$J$67"]
["pp4_bl3_3_10_total_in",{"$f":"'T2-B(PP4)'!$F$67","v":0},"#'T2-B(PP4)'!$F$67"]
["pp4_bl3_3_10_total_out",{"$f":"'T2-B(PP4)'!$I$67","v":0},"#'T2-B(PP4)'!$I$67"]
["pp4_bl3_3_10_unit",{"$f":"'T2-B(PP4)'!$C$67","v":0},"#'T2-B(PP4)'!$C$67"]
["pp4_bl3_3_10_unit_in",{"$f":"'T2-B(PP4)'!$D$67","v":0},"#'T2-B(PP4)'!$D$67"]
["pp4_bl3_3_10_units_out",{"$f":"'T2-B(PP4)'!$G$67","v":0},"#'T2-B(PP4)'!$G$67"]
["pp4_bl3_3_11_name",{"$f":"'T2-B(PP4)'!$B$68","v":0},"#'T2-B(PP4)'!$B$68"]
["pp4_bl3_3_11_rate_in",{"$f":"'T2-B(PP4)'!$E$68","v":0},"#'T2-B(PP4)'!$E$68"]
["pp4_bl3_3_11_rate_out",{"$f":"'T2-B(PP4)'!$H$68","v":0},"#'T2-B(PP4)'!$H$68"]
["pp4_bl3_3_11_total",{"$f":"'T2-B(PP4)'!$J$68","v":0},"#'T2-B(PP4)'!$J$68"]
["pp4_bl3_3_11_total_in",{"$f":"'T2-B(PP4)'!$F$68","v":0},"#'T2-B(PP4)'!$F$68"]
["pp4_bl3_3_11_total_out",{"$f":"'T2-B(PP4)'!$I$68","v":0},"#'T2-B(PP4)'!$I$68"]
["pp4_bl3_3_11_unit",{"$f":"'T2-B(PP4)'!$C$68","v":0},"#'T2-B(PP4)'!$C$68"]
["pp4_bl3_3_11_unit_in",{"$f":"'T2-B(PP4)'!$D$68","v":0},"#'T2-B(PP4)'!$D$68"]
["pp4_bl3_3_11_units_out",{"$f":"'T2-B(PP4)'!$G$68","v":0},"#'T2-B(PP4)'!$G$68"]
["pp4_bl3_3_12_name",{"$f":"'T2-B(PP4)'!$B$69","v":0},"#'T2-B(PP4)'!$B$69"]
["pp4_bl3_3_12_rate_in",{"$f":"'T2-B(PP4)'!$E$69","v":0},"#'T2-B(PP4)'!$E$69"]
["pp4_bl3_3_12_rate_out",{"$f":"'T2-B(PP4)'!$H$69","v":0},"#'T2-B(PP4)'!$H$69"]
["pp4_bl3_3_12_total",{"$f":"'T2-B(PP4)'!$J$69","v":0},"#'T2-B(PP4)'!$J$69"]
["pp4_bl3_3_12_total_in",{"$f":"'T2-B(PP4)'!$F$69","v":0},"#'T2-B(PP4)'!$F$69"]
["pp4_bl3_3_12_total_out",{"$f":"'T2-B(PP4)'!$I$69","v":0},"#'T2-B(PP4)'!$I$69"]
["pp4_bl3_3_12_unit",{"$f":"'T2-B(PP4)'!$C$69","v":0},"#'T2-B(PP4)'!$C$69"]
["pp4_bl3_3_12_unit_in",{"$f":"'T2-B(PP4)'!$D$69","v":0},"#'T2-B(PP4)'!$D$69"]
["pp4_bl3_3_12_units_out",{"$f":"'T2-B(PP4)'!$G$69","v":0},"#'T2-B(PP4)'!$G$69"]
["pp4_bl3_3_13_name",{"$f":"'T2-B(PP4)'!$B$70","v":0},"#'T2-B(PP4)'!$B$70"]
["pp4_bl3_3_13_rate_in",{"$f":"'T2-B(PP4)'!$E$70","v":0},"#'T2-B(PP4)'!$E$70"]
["pp4_bl3_3_13_rate_out",{"$f":"'T2-B(PP4)'!$H$70","v":0},"#'T2-B(PP4)'!$H$70"]
["pp4_bl3_3_13_total",{"$f":"'T2-B(PP4)'!$J$70","v":0},"#'T2-B(PP4)'!$J$70"]
["pp4_bl3_3_13_total_in",{"$f":"'T2-B(PP4)'!$F$70","v":0},"#'T2-B(PP4)'!$F$70"]
["pp4_bl3_3_13_total_out",{"$f":"'T2-B(PP4)'!$I$70","v":0},"#'T2-B(PP4)'!$I$70"]
["pp4_bl3_3_13_unit",{"$f":"'T2-B(PP4)'!$C$70","v":0},"#'T2-B(PP4)'!$C$70"]
["pp4_bl3_3_13_unit_in",{"$f":"'T2-B(PP4)'!$D$70","v":0},"#'T2-B(PP4)'!$D$70"]
["pp4_bl3_3_13_units_out",{"$f":"'T2-B(PP4)'!$G$70","v":0},"#'T2-B(PP4)'!$G$70"]
["pp4_bl3_3_14_name",{"$f":"'T2-B(PP4)'!$B$71","v":0},"#'T2-B(PP4)'!$B$71"]
["pp4_bl3_3_14_rate_in",{"$f":"'T2-B(PP4)'!$E$71","v":0},"#'T2-B(PP4)'!$E$71"]
["pp4_bl3_3_14_rate_out",{"$f":"'T2-B(PP4)'!$H$71","v":0},"#'T2-B(PP4)'!$H$71"]
["pp4_bl3_3_14_total",{"$f":"'T2-B(PP4)'!$J$71","v":0},"#'T2-B(PP4)'!$J$71"]
["pp4_bl3_3_14_total_in",{"$f":"'T2-B(PP4)'!$F$71","v":0},"#'T2-B(PP4)'!$F$71"]
["pp4_bl3_3_14_total_out",{"$f":"'T2-B(PP4)'!$I$71","v":0},"#'T2-B(PP4)'!$I$71"]
["pp4_bl3_3_14_unit",{"$f":"'T2-B(PP4)'!$C$71","v":0},"#'T2-B(PP4)'!$C$71"]
["pp4_bl3_3_14_unit_in",{"$f":"'T2-B(PP4)'!$D$71","v":0},"#'T2-B(PP4)'!$D$71"]
["pp4_bl3_3_14_units_out",{"$f":"'T2-B(PP4)'!$G$71","v":0},"#'T2-B(PP4)'!$G$71"]
["pp4_bl3_3_15_name",{"$f":"'T2-B(PP4)'!$B$72","v":0},"#'T2-B(PP4)'!$B$72"]
["pp4_bl3_3_15_rate_in",{"$f":"'T2-B(PP4)'!$E$72","v":0},"#'T2-B(PP4)'!$E$72"]
["pp4_bl3_3_15_rate_out",{"$f":"'T2-B(PP4)'!$H$72","v":0},"#'T2-B(PP4)'!$H$72"]
["pp4_bl3_3_15_total",{"$f":"'T2-B(PP4)'!$J$72","v":0},"#'T2-B(PP4)'!$J$72"]
["pp4_bl3_3_15_total_in",{"$f":"'T2-B(PP4)'!$F$72","v":0},"#'T2-B(PP4)'!$F$72"]
["pp4_bl3_3_15_total_out",{"$f":"'T2-B(PP4)'!$I$72","v":0},"#'T2-B(PP4)'!$I$72"]
["pp4_bl3_3_15_unit",{"$f":"'T2-B(PP4)'!$C$72","v":0},"#'T2-B(PP4)'!$C$72"]
["pp4_bl3_3_15_unit_in",{"$f":"'T2-B(PP4)'!$D$72","v":0},"#'T2-B(PP4)'!$D$72"]
["pp4_bl3_3_15_units_out",{"$f":"'T2-B(PP4)'!$G$72","v":0},"#'T2-B(PP4)'!$G$72"]
["pp4_bl3_3_16_name",{"$f":"'T2-B(PP4)'!$B$73","v":0},"#'T2-B(PP4)'!$B$73"]
["pp4_bl3_3_16_rate_in",{"$f":"'T2-B(PP4)'!$E$73","v":0},"#'T2-B(PP4)'!$E$73"]
["pp4_bl3_3_16_rate_out",{"$f":"'T2-B(PP4)'!$H$73","v":0},"#'T2-B(PP4)'!$H$73"]
["pp4_bl3_3_16_total",{"$f":"'T2-B(PP4)'!$J$73","v":0},"#'T2-B(PP4)'!$J$73"]
["pp4_bl3_3_16_total_in",{"$f":"'T2-B(PP4)'!$F$73","v":0},"#'T2-B(PP4)'!$F$73"]
["pp4_bl3_3_16_total_out",{"$f":"'T2-B(PP4)'!$I$73","v":0},"#'T2-B(PP4)'!$I$73"]
["pp4_bl3_3_16_unit",{"$f":"'T2-B(PP4)'!$C$73","v":0},"#'T2-B(PP4)'!$C$73"]
["pp4_bl3_3_16_unit_in",{"$f":"'T2-B(PP4)'!$D$73","v":0},"#'T2-B(PP4)'!$D$73"]
["pp4_bl3_3_16_units_out",{"$f":"'T2-B(PP4)'!$G$73","v":0},"#'T2-B(PP4)'!$G$73"]
["pp4_bl3_3_17_name",{"$f":"'T2-B(PP4)'!$B$74","v":0},"#'T2-B(PP4)'!$B$74"]
["pp4_bl3_3_17_rate_in",{"$f":"'T2-B(PP4)'!$E$74","v":0},"#'T2-B(PP4)'!$E$74"]
["pp4_bl3_3_17_rate_out",{"$f":"'T2-B(PP4)'!$H$74","v":0},"#'T2-B(PP4)'!$H$74"]
["pp4_bl3_3_17_total",{"$f":"'T2-B(PP4)'!$J$74","v":0},"#'T2-B(PP4)'!$J$74"]
["pp4_bl3_3_17_total_in",{"$f":"'T2-B(PP4)'!$F$74","v":0},"#'T2-B(PP4)'!$F$74"]
["pp4_bl3_3_17_total_out",{"$f":"'T2-B(PP4)'!$I$74","v":0},"#'T2-B(PP4)'!$I$74"]
["pp4_bl3_3_17_unit",{"$f":"'T2-B(PP4)'!$C$74","v":0},"#'T2-B(PP4)'!$C$74"]
["pp4_bl3_3_17_unit_in",{"$f":"'T2-B(PP4)'!$D$74","v":0},"#'T2-B(PP4)'!$D$74"]
["pp4_bl3_3_17_units_out",{"$f":"'T2-B(PP4)'!$G$74","v":0},"#'T2-B(PP4)'!$G$74"]
["pp4_bl3_3_18_name",{"$f":"'T2-B(PP4)'!$B$75","v":0},"#'T2-B(PP4)'!$B$75"]
["pp4_bl3_3_18_rate_in",{"$f":"'T2-B(PP4)'!$E$75","v":0},"#'T2-B(PP4)'!$E$75"]
["pp4_bl3_3_18_rate_out",{"$f":"'T2-B(PP4)'!$H$75","v":0},"#'T2-B(PP4)'!$H$75"]
["pp4_bl3_3_18_total",{"$f":"'T2-B(PP4)'!$J$75","v":0},"#'T2-B(PP4)'!$J$75"]
["pp4_bl3_3_18_total_in",{"$f":"'T2-B(PP4)'!$F$75","v":0},"#'T2-B(PP4)'!$F$75"]
["pp4_bl3_3_18_total_out",{"$f":"'T2-B(PP4)'!$I$75","v":0},"#'T2-B(PP4)'!$I$75"]
["pp4_bl3_3_18_unit",{"$f":"'T2-B(PP4)'!$C$75","v":0},"#'T2-B(PP4)'!$C$75"]
["pp4_bl3_3_18_unit_in",{"$f":"'T2-B(PP4)'!$D$75","v":0},"#'T2-B(PP4)'!$D$75"]
["pp4_bl3_3_18_units_out",{"$f":"'T2-B(PP4)'!$G$75","v":0},"#'T2-B(PP4)'!$G$75"]
["pp4_bl3_3_19_name",{"$f":"'T2-B(PP4)'!$B$76","v":0},"#'T2-B(PP4)'!$B$76"]
["pp4_bl3_3_19_rate_in",{"$f":"'T2-B(PP4)'!$E$76","v":0},"#'T2-B(PP4)'!$E$76"]
["pp4_bl3_3_19_rate_out",{"$f":"'T2-B(PP4)'!$H$76","v":0},"#'T2-B(PP4)'!$H$76"]
["pp4_bl3_3_19_total",{"$f":"'T2-B(PP4)'!$J$76","v":0},"#'T2-B(PP4)'!$J$76"]
["pp4_bl3_3_19_total_in",{"$f":"'T2-B(PP4)'!$F$76","v":0},"#'T2-B(PP4)'!$F$76"]
["pp4_bl3_3_19_total_out",{"$f":"'T2-B(PP4)'!$I$76","v":0},"#'T2-B(PP4)'!$I$76"]
["pp4_bl3_3_19_unit",{"$f":"'T2-B(PP4)'!$C$76","v":0},"#'T2-B(PP4)'!$C$76"]
["pp4_bl3_3_19_unit_in",{"$f":"'T2-B(PP4)'!$D$76","v":0},"#'T2-B(PP4)'!$D$76"]
["pp4_bl3_3_19_units_out",{"$f":"'T2-B(PP4)'!$G$76","v":0},"#'T2-B(PP4)'!$G$76"]
["pp4_bl3_3_2_name",{"$f":"'T2-B(PP4)'!$B$59","v":0},"#'T2-B(PP4)'!$B$59"]
["pp4_bl3_3_2_rate_in",{"$f":"'T2-B(PP4)'!$E$59","v":0},"#'T2-B(PP4)'!$E$59"]
["pp4_bl3_3_2_rate_out",{"$f":"'T2-B(PP4)'!$H$59","v":0},"#'T2-B(PP4)'!$H$59"]
["pp4_bl3_3_2_total",{"$f":"'T2-B(PP4)'!$J$59","v":0},"#'T2-B(PP4)'!$J$59"]
["pp4_bl3_3_2_total_in",{"$f":"'T2-B(PP4)'!$F$59","v":0},"#'T2-B(PP4)'!$F$59"]
["pp4_bl3_3_2_total_out",{"$f":"'T2-B(PP4)'!$I$59","v":0},"#'T2-B(PP4)'!$I$59"]
["pp4_bl3_3_2_unit",{"$f":"'T2-B(PP4)'!$C$59","v":0},"#'T2-B(PP4)'!$C$59"]
["pp4_bl3_3_2_unit_in",{"$f":"'T2-B(PP4)'!$D$59","v":0},"#'T2-B(PP4)'!$D$59"]
["pp4_bl3_3_2_units_out",{"$f":"'T2-B(PP4)'!$G$59","v":0},"#'T2-B(PP4)'!$G$59"]
["pp4_bl3_3_20_name",{"$f":"'T2-B(PP4)'!$B$77","v":0},"#'T2-B(PP4)'!$B$77"]
["pp4_bl3_3_20_rate_in",{"$f":"'T2-B(PP4)'!$E$77","v":0},"#'T2-B(PP4)'!$E$77"]
["pp4_bl3_3_20_rate_out",{"$f":"'T2-B(PP4)'!$H$77","v":0},"#'T2-B(PP4)'!$H$77"]
["pp4_bl3_3_20_total",{"$f":"'T2-B(PP4)'!$J$77","v":0},"#'T2-B(PP4)'!$J$77"]
["pp4_bl3_3_20_total_in",{"$f":"'T2-B(PP4)'!$F$77","v":0},"#'T2-B(PP4)'!$F$77"]
["pp4_bl3_3_20_total_out",{"$f":"'T2-B(PP4)'!$I$77","v":0},"#'T2-B(PP4)'!$I$77"]
["pp4_bl3_3_20_unit",{"$f":"'T2-B(PP4)'!$C$77","v":0},"#'T2-B(PP4)'!$C$77"]
["pp4_bl3_3_20_unit_in",{"$f":"'T2-B(PP4)'!$D$77","v":0},"#'T2-B(PP4)'!$D$77"]
["pp4_bl3_3_20_units_out",{"$f":"'T2-B(PP4)'!$G$77","v":0},"#'T2-B(PP4)'!$G$77"]
["pp4_bl3_3_3_name",{"$f":"'T2-B(PP4)'!$B$60","v":0},"#'T2-B(PP4)'!$B$60"]
["pp4_bl3_3_3_rate_in",{"$f":"'T2-B(PP4)'!$E$60","v":0},"#'T2-B(PP4)'!$E$60"]
["pp4_bl3_3_3_rate_out",{"$f":"'T2-B(PP4)'!$H$60","v":0},"#'T2-B(PP4)'!$H$60"]
["pp4_bl3_3_3_total",{"$f":"'T2-B(PP4)'!$J$60","v":0},"#'T2-B(PP4)'!$J$60"]
["pp4_bl3_3_3_total_in",{"$f":"'T2-B(PP4)'!$F$60","v":0},"#'T2-B(PP4)'!$F$60"]
["pp4_bl3_3_3_total_out",{"$f":"'T2-B(PP4)'!$I$60","v":0},"#'T2-B(PP4)'!$I$60"]
["pp4_bl3_3_3_unit",{"$f":"'T2-B(PP4)'!$C$60","v":0},"#'T2-B(PP4)'!$C$60"]
["pp4_bl3_3_3_unit_in",{"$f":"'T2-B(PP4)'!$D$60","v":0},"#'T2-B(PP4)'!$D$60"]
["pp4_bl3_3_3_units_out",{"$f":"'T2-B(PP4)'!$G$60","v":0},"#'T2-B(PP4)'!$G$60"]
["pp4_bl3_3_4_name",{"$f":"'T2-B(PP4)'!$B$61","v":0},"#'T2-B(PP4)'!$B$61"]
["pp4_bl3_3_4_rate_in",{"$f":"'T2-B(PP4)'!$E$61","v":0},"#'T2-B(PP4)'!$E$61"]
["pp4_bl3_3_4_rate_out",{"$f":"'T2-B(PP4)'!$H$61","v":0},"#'T2-B(PP4)'!$H$61"]
["pp4_bl3_3_4_total",{"$f":"'T2-B(PP4)'!$J$61","v":0},"#'T2-B(PP4)'!$J$61"]
["pp4_bl3_3_4_total_in",{"$f":"'T2-B(PP4)'!$F$61","v":0},"#'T2-B(PP4)'!$F$61"]
["pp4_bl3_3_4_total_out",{"$f":"'T2-B(PP4)'!$I$61","v":0},"#'T2-B(PP4)'!$I$61"]
["pp4_bl3_3_4_unit",{"$f":"'T2-B(PP4)'!$C$61","v":0},"#'T2-B(PP4)'!$C$61"]
["pp4_bl3_3_4_unit_in",{"$f":"'T2-B(PP4)'!$D$61","v":0},"#'T2-B(PP4)'!$D$61"]
["pp4_bl3_3_4_units_out",{"$f":"'T2-B(PP4)'!$G$61","v":0},"#'T2-B(PP4)'!$G$61"]
["pp4_bl3_3_5_name",{"$f":"'T2-B(PP4)'!$B$62","v":0},"#'T2-B(PP4)'!$B$62"]
["pp4_bl3_3_5_rate_in",{"$f":"'T2-B(PP4)'!$E$62","v":0},"#'T2-B(PP4)'!$E$62"]
["pp4_bl3_3_5_rate_out",{"$f":"'T2-B(PP4)'!$H$62","v":0},"#'T2-B(PP4)'!$H$62"]
["pp4_bl3_3_5_total",{"$f":"'T2-B(PP4)'!$J$62","v":0},"#'T2-B(PP4)'!$J$62"]
["pp4_bl3_3_5_total_in",{"$f":"'T2-B(PP4)'!$F$62","v":0},"#'T2-B(PP4)'!$F$62"]
["pp4_bl3_3_5_total_out",{"$f":"'T2-B(PP4)'!$I$62","v":0},"#'T2-B(PP4)'!$I$62"]
["pp4_bl3_3_5_unit",{"$f":"'T2-B(PP4)'!$C$62","v":0},"#'T2-B(PP4)'!$C$62"]
["pp4_bl3_3_5_unit_in",{"$f":"'T2-B(PP4)'!$D$62","v":0},"#'T2-B(PP4)'!$D$62"]
["pp4_bl3_3_5_units_out",{"$f":"'T2-B(PP4)'!$G$62","v":0},"#'T2-B(PP4)'!$G$62"]
["pp4_bl3_3_6_name",{"$f":"'T2-B(PP4)'!$B$63","v":0},"#'T2-B(PP4)'!$B$63"]
["pp4_bl3_3_6_rate_in",{"$f":"'T2-B(PP4)'!$E$63","v":0},"#'T2-B(PP4)'!$E$63"]
["pp4_bl3_3_6_rate_out",{"$f":"'T2-B(PP4)'!$H$63","v":0},"#'T2-B(PP4)'!$H$63"]
["pp4_bl3_3_6_total",{"$f":"'T2-B(PP4)'!$J$63","v":0},"#'T2-B(PP4)'!$J$63"]
["pp4_bl3_3_6_total_in",{"$f":"'T2-B(PP4)'!$F$63","v":0},"#'T2-B(PP4)'!$F$63"]
["pp4_bl3_3_6_total_out",{"$f":"'T2-B(PP4)'!$I$63","v":0},"#'T2-B(PP4)'!$I$63"]
["pp4_bl3_3_6_unit",{"$f":"'T2-B(PP4)'!$C$63","v":0},"#'T2-B(PP4)'!$C$63"]
["pp4_bl3_3_6_unit_in",{"$f":"'T2-B(PP4)'!$D$63","v":0},"#'T2-B(PP4)'!$D$63"]
["pp4_bl3_3_6_units_out",{"$f":"'T2-B(PP4)'!$G$63","v":0},"#'T2-B(PP4)'!$G$63"]
["pp4_bl3_3_7_name",{"$f":"'T2-B(PP4)'!$B$64","v":0},"#'T2-B(PP4)'!$B$64"]
["pp4_bl3_3_7_rate_in",{"$f":"'T2-B(PP4)'!$E$64","v":0},"#'T2-B(PP4)'!$E$64"]
["pp4_bl3_3_7_rate_out",{"$f":"'T2-B(PP4)'!$H$64","v":0},"#'T2-B(PP4)'!$H$64"]
["pp4_bl3_3_7_total",{"$f":"'T2-B(PP4)'!$J$64","v":0},"#'T2-B(PP4)'!$J$64"]
["pp4_bl3_3_7_total_in",{"$f":"'T2-B(PP4)'!$F$64","v":0},"#'T2-B(PP4)'!$F$64"]
["pp4_bl3_3_7_total_out",{"$f":"'T2-B(PP4)'!$I$64","v":0},"#'T2-B(PP4)'!$I$64"]
["pp4_bl3_3_7_unit",{"$f":"'T2-B(PP4)'!$C$64","v":0},"#'T2-B(PP4)'!$C$64"]
["pp4_bl3_3_7_unit_in",{"$f":"'T2-B(PP4)'!$D$64","v":0},"#'T2-B(PP4)'!$D$64"]
["pp4_bl3_3_7_units_out",{"$f":"'T2-B(PP4)'!$G$64","v":0},"#'T2-B(PP4)'!$G$64"]
["pp4_bl3_3_8_name",{"$f":"'T2-B(PP4)'!$B$65","v":0},"#'T2-B(PP4)'!$B$65"]
["pp4_bl3_3_8_rate_in",{"$f":"'T2-B(PP4)'!$E$65","v":0},"#'T2-B(PP4)'!$E$65"]
["pp4_bl3_3_8_rate_out",{"$f":"'T2-B(PP4)'!$H$65","v":0},"#'T2-B(PP4)'!$H$65"]
["pp4_bl3_3_8_total",{"$f":"'T2-B(PP4)'!$J$65","v":0},"#'T2-B(PP4)'!$J$65"]
["pp4_bl3_3_8_total_in",{"$f":"'T2-B(PP4)'!$F$65","v":0},"#'T2-B(PP4)'!$F$65"]
["pp4_bl3_3_8_total_out",{"$f":"'T2-B(PP4)'!$I$65","v":0},"#'T2-B(PP4)'!$I$65"]
["pp4_bl3_3_8_unit",{"$f":"'T2-B(PP4)'!$C$65","v":0},"#'T2-B(PP4)'!$C$65"]
["pp4_bl3_3_8_unit_in",{"$f":"'T2-B(PP4)'!$D$65","v":0},"#'T2-B(PP4)'!$D$65"]
["pp4_bl3_3_8_units_out",{"$f":"'T2-B(PP4)'!$G$65","v":0},"#'T2-B(PP4)'!$G$65"]
["pp4_bl3_3_9_name",{"$f":"'T2-B(PP4)'!$B$66","v":0},"#'T2-B(PP4)'!$B$66"]
["pp4_bl3_3_9_rate_in",{"$f":"'T2-B(PP4)'!$E$66","v":0},"#'T2-B(PP4)'!$E$66"]
["pp4_bl3_3_9_rate_out",{"$f":"'T2-B(PP4)'!$H$66","v":0},"#'T2-B(PP4)'!$H$66"]
["pp4_bl3_3_9_total",{"$f":"'T2-B(PP4)'!$J$66","v":0},"#'T2-B(PP4)'!$J$66"]
["pp4_bl3_3_9_total_in",{"$f":"'T2-B(PP4)'!$F$66","v":0},"#'T2-B(PP4)'!$F$66"]
["pp4_bl3_3_9_total_out",{"$f":"'T2-B(PP4)'!$I$66","v":0},"#'T2-B(PP4)'!$I$66"]
["pp4_bl3_3_9_unit",{"$f":"'T2-B(PP4)'!$C$66","v":0},"#'T2-B(PP4)'!$C$66"]
["pp4_bl3_3_9_unit_in",{"$f":"'T2-B(PP4)'!$D$66","v":0},"#'T2-B(PP4)'!$D$66"]
["pp4_bl3_3_9_units_out",{"$f":"'T2-B(PP4)'!$G$66","v":0},"#'T2-B(PP4)'!$G$66"]
["pp4_bl3_3_total",{"$f":"'T2-B(PP4)'!$J$57","v":0},"#'T2-B(PP4)'!$J$57"]
["pp4_bl3_3_total_in",{"$f":"'T2-B(PP4)'!$F$57","v":0},"#'T2-B(PP4)'!$F$57"]
["pp4_bl3_3_total_out",{"$f":"'T2-B(PP4)'!$I$57","v":0},"#'T2-B(PP4)'!$I$57"]
["pp4_bl3_4_1_name",{"$f":"'T2-B(PP4)'!$B$79","v":0},"#'T2-B(PP4)'!$B$79"]
["pp4_bl3_4_1_rate_in",{"$f":"'T2-B(PP4)'!$E$79","v":0},"#'T2-B(PP4)'!$E$79"]
["pp4_bl3_4_1_rate_out",{"$f":"'T2-B(PP4)'!$H$79","v":0},"#'T2-B(PP4)'!$H$79"]
["pp4_bl3_4_1_total",{"$f":"'T2-B(PP4)'!$J$79","v":0},"#'T2-B(PP4)'!$J$79"]
["pp4_bl3_4_1_total_in",{"$f":"'T2-B(PP4)'!$F$79","v":0},"#'T2-B(PP4)'!$F$79"]
["pp4_bl3_4_1_total_out",{"$f":"'T2-B(PP4)'!$I$79","v":0},"#'T2-B(PP4)'!$I$79"]
["pp4_bl3_4_1_unit",{"$f":"'T2-B(PP4)'!$C$79","v":0},"#'T2-B(PP4)'!$C$79"]
["pp4_bl3_4_1_unit_in",{"$f":"'T2-B(PP4)'!$D$79","v":0},"#'T2-B(PP4)'!$D$79"]
["pp4_bl3_4_1_units_out",{"$f":"'T2-B(PP4)'!$G$79","v":0},"#'T2-B(PP4)'!$G$79"]
["pp4_bl3_4_10_name",{"$f":"'T2-B(PP4)'!$B$88","v":0},"#'T2-B(PP4)'!$B$88"]
["pp4_bl3_4_10_rate_in",{"$f":"'T2-B(PP4)'!$E$88","v":0},"#'T2-B(PP4)'!$E$88"]
["pp4_bl3_4_10_rate_out",{"$f":"'T2-B(PP4)'!$H$88","v":0},"#'T2-B(PP4)'!$H$88"]
["pp4_bl3_4_10_total",{"$f":"'T2-B(PP4)'!$J$88","v":0},"#'T2-B(PP4)'!$J$88"]
["pp4_bl3_4_10_total_in",{"$f":"'T2-B(PP4)'!$F$88","v":0},"#'T2-B(PP4)'!$F$88"]
["pp4_bl3_4_10_total_out",{"$f":"'T2-B(PP4)'!$I$88","v":0},"#'T2-B(PP4)'!$I$88"]
["pp4_bl3_4_10_unit",{"$f":"'T2-B(PP4)'!$C$88","v":0},"#'T2-B(PP4)'!$C$88"]
["pp4_bl3_4_10_unit_in",{"$f":"'T2-B(PP4)'!$D$88","v":0},"#'T2-B(PP4)'!$D$88"]
["pp4_bl3_4_10_units_out",{"$f":"'T2-B(PP4)'!$G$88","v":0},"#'T2-B(PP4)'!$G$88"]
["pp4_bl3_4_2_name",{"$f":"'T2-B(PP4)'!$B$80","v":0},"#'T2-B(PP4)'!$B$80"]
["pp4_bl3_4_2_rate_in",{"$f":"'T2-B(PP4)'!$E$80","v":0},"#'T2-B(PP4)'!$E$80"]
["pp4_bl3_4_2_rate_out",{"$f":"'T2-B(PP4)'!$H$80","v":0},"#'T2-B(PP4)'!$H$80"]
["pp4_bl3_4_2_total",{"$f":"'T2-B(PP4)'!$J$80","v":0},"#'T2-B(PP4)'!$J$80"]
["pp4_bl3_4_2_total_in",{"$f":"'T2-B(PP4)'!$F$80","v":0},"#'T2-B(PP4)'!$F$80"]
["pp4_bl3_4_2_total_out",{"$f":"'T2-B(PP4)'!$I$80","v":0},"#'T2-B(PP4)'!$I$80"]
["pp4_bl3_4_2_unit",{"$f":"'T2-B(PP4)'!$C$80","v":0},"#'T2-B(PP4)'!$C$80"]
["pp4_bl3_4_2_unit_in",{"$f":"'T2-B(PP4)'!$D$80","v":0},"#'T2-B(PP4)'!$D$80"]
["pp4_bl3_4_2_units_out",{"$f":"'T2-B(PP4)'!$G$80","v":0},"#'T2-B(PP4)'!$G$80"]
["pp4_bl3_4_3_name",{"$f":"'T2-B(PP4)'!$B$81","v":0},"#'T2-B(PP4)'!$B$81"]
["pp4_bl3_4_3_rate_in",{"$f":"'T2-B(PP4)'!$E$81","v":0},"#'T2-B(PP4)'!$E$81"]
["pp4_bl3_4_3_rate_out",{"$f":"'T2-B(PP4)'!$H$81","v":0},"#'T2-B(PP4)'!$H$81"]
["pp4_bl3_4_3_total",{"$f":"'T2-B(PP4)'!$J$81","v":0},"#'T2-B(PP4)'!$J$81"]
["pp4_bl3_4_3_total_in",{"$f":"'T2-B(PP4)'!$F$81","v":0},"#'T2-B(PP4)'!$F$81"]
["pp4_bl3_4_3_total_out",{"$f":"'T2-B(PP4)'!$I$81","v":0},"#'T2-B(PP4)'!$I$81"]
["pp4_bl3_4_3_unit",{"$f":"'T2-B(PP4)'!$C$81","v":0},"#'T2-B(PP4)'!$C$81"]
["pp4_bl3_4_3_unit_in",{"$f":"'T2-B(PP4)'!$D$81","v":0},"#'T2-B(PP4)'!$D$81"]
["pp4_bl3_4_3_units_out",{"$f":"'T2-B(PP4)'!$G$81","v":0},"#'T2-B(PP4)'!$G$81"]
["pp4_bl3_4_4_name",{"$f":"'T2-B(PP4)'!$B$82","v":0},"#'T2-B(PP4)'!$B$82"]
["pp4_bl3_4_4_rate_in",{"$f":"'T2-B(PP4)'!$E$82","v":0},"#'T2-B(PP4)'!$E$82"]
["pp4_bl3_4_4_rate_out",{"$f":"'T2-B(PP4)'!$H$82","v":0},"#'T2-B(PP4)'!$H$82"]
["pp4_bl3_4_4_total",{"$f":"'T2-B(PP4)'!$J$82","v":0},"#'T2-B(PP4)'!$J$82"]
["pp4_bl3_4_4_total_in",{"$f":"'T2-B(PP4)'!$F$82","v":0},"#'T2-B(PP4)'!$F$82"]
["pp4_bl3_4_4_total_out",{"$f":"'T2-B(PP4)'!$I$82","v":0},"#'T2-B(PP4)'!$I$82"]
["pp4_bl3_4_4_unit",{"$f":"'T2-B(PP4)'!$C$82","v":0},"#'T2-B(PP4)'!$C$82"]
["pp4_bl3_4_4_unit_in",{"$f":"'T2-B(PP4)'!$D$82","v":0},"#'T2-B(PP4)'!$D$82"]
["pp4_bl3_4_4_units_out",{"$f":"'T2-B(PP4)'!$G$82","v":0},"#'T2-B(PP4)'!$G$82"]
["pp4_bl3_4_5_name",{"$f":"'T2-B(PP4)'!$B$83","v":0},"#'T2-B(PP4)'!$B$83"]
["pp4_bl3_4_5_rate_in",{"$f":"'T2-B(PP4)'!$E$83","v":0},"#'T2-B(PP4)'!$E$83"]
["pp4_bl3_4_5_rate_out",{"$f":"'T2-B(PP4)'!$H$83","v":0},"#'T2-B(PP4)'!$H$83"]
["pp4_bl3_4_5_total",{"$f":"'T2-B(PP4)'!$J$83","v":0},"#'T2-B(PP4)'!$J$83"]
["pp4_bl3_4_5_total_in",{"$f":"'T2-B(PP4)'!$F$83","v":0},"#'T2-B(PP4)'!$F$83"]
["pp4_bl3_4_5_total_out",{"$f":"'T2-B(PP4)'!$I$83","v":0},"#'T2-B(PP4)'!$I$83"]
["pp4_bl3_4_5_unit",{"$f":"'T2-B(PP4)'!$C$83","v":0},"#'T2-B(PP4)'!$C$83"]
["pp4_bl3_4_5_unit_in",{"$f":"'T2-B(PP4)'!$D$83","v":0},"#'T2-B(PP4)'!$D$83"]
["pp4_bl3_4_5_units_out",{"$f":"'T2-B(PP4)'!$G$83","v":0},"#'T2-B(PP4)'!$G$83"]
["pp4_bl3_4_6_name",{"$f":"'T2-B(PP4)'!$B$84","v":0},"#'T2-B(PP4)'!$B$84"]
["pp4_bl3_4_6_rate_in",{"$f":"'T2-B(PP4)'!$E$84","v":0},"#'T2-B(PP4)'!$E$84"]
["pp4_bl3_4_6_rate_out",{"$f":"'T2-B(PP4)'!$H$84","v":0},"#'T2-B(PP4)'!$H$84"]
["pp4_bl3_4_6_total",{"$f":"'T2-B(PP4)'!$J$84","v":0},"#'T2-B(PP4)'!$J$84"]
["pp4_bl3_4_6_total_in",{"$f":"'T2-B(PP4)'!$F$84","v":0},"#'T2-B(PP4)'!$F$84"]
["pp4_bl3_4_6_total_out",{"$f":"'T2-B(PP4)'!$I$84","v":0},"#'T2-B(PP4)'!$I$84"]
["pp4_bl3_4_6_unit",{"$f":"'T2-B(PP4)'!$C$84","v":0},"#'T2-B(PP4)'!$C$84"]
["pp4_bl3_4_6_unit_in",{"$f":"'T2-B(PP4)'!$D$84","v":0},"#'T2-B(PP4)'!$D$84"]
["pp4_bl3_4_6_units_out",{"$f":"'T2-B(PP4)'!$G$84","v":0},"#'T2-B(PP4)'!$G$84"]
["pp4_bl3_4_7_name",{"$f":"'T2-B(PP4)'!$B$85","v":0},"#'T2-B(PP4)'!$B$85"]
["pp4_bl3_4_7_rate_in",{"$f":"'T2-B(PP4)'!$E$85","v":0},"#'T2-B(PP4)'!$E$85"]
["pp4_bl3_4_7_rate_out",{"$f":"'T2-B(PP4)'!$H$85","v":0},"#'T2-B(PP4)'!$H$85"]
["pp4_bl3_4_7_total",{"$f":"'T2-B(PP4)'!$J$85","v":0},"#'T2-B(PP4)'!$J$85"]
["pp4_bl3_4_7_total_in",{"$f":"'T2-B(PP4)'!$F$85","v":0},"#'T2-B(PP4)'!$F$85"]
["pp4_bl3_4_7_total_out",{"$f":"'T2-B(PP4)'!$I$85","v":0},"#'T2-B(PP4)'!$I$85"]
["pp4_bl3_4_7_unit",{"$f":"'T2-B(PP4)'!$C$85","v":0},"#'T2-B(PP4)'!$C$85"]
["pp4_bl3_4_7_unit_in",{"$f":"'T2-B(PP4)'!$D$85","v":0},"#'T2-B(PP4)'!$D$85"]
["pp4_bl3_4_7_units_out",{"$f":"'T2-B(PP4)'!$G$85","v":0},"#'T2-B(PP4)'!$G$85"]
["pp4_bl3_4_8_name",{"$f":"'T2-B(PP4)'!$B$86","v":0},"#'T2-B(PP4)'!$B$86"]
["pp4_bl3_4_8_rate_in",{"$f":"'T2-B(PP4)'!$E$86","v":0},"#'T2-B(PP4)'!$E$86"]
["pp4_bl3_4_8_rate_out",{"$f":"'T2-B(PP4)'!$H$86","v":0},"#'T2-B(PP4)'!$H$86"]
["pp4_bl3_4_8_total",{"$f":"'T2-B(PP4)'!$J$86","v":0},"#'T2-B(PP4)'!$J$86"]
["pp4_bl3_4_8_total_in",{"$f":"'T2-B(PP4)'!$F$86","v":0},"#'T2-B(PP4)'!$F$86"]
["pp4_bl3_4_8_total_out",{"$f":"'T2-B(PP4)'!$I$86","v":0},"#'T2-B(PP4)'!$I$86"]
["pp4_bl3_4_8_unit",{"$f":"'T2-B(PP4)'!$C$86","v":0},"#'T2-B(PP4)'!$C$86"]
["pp4_bl3_4_8_unit_in",{"$f":"'T2-B(PP4)'!$D$86","v":0},"#'T2-B(PP4)'!$D$86"]
["pp4_bl3_4_8_units_out",{"$f":"'T2-B(PP4)'!$G$86","v":0},"#'T2-B(PP4)'!$G$86"]
["pp4_bl3_4_9_name",{"$f":"'T2-B(PP4)'!$B$87","v":0},"#'T2-B(PP4)'!$B$87"]
["pp4_bl3_4_9_rate_in",{"$f":"'T2-B(PP4)'!$E$87","v":0},"#'T2-B(PP4)'!$E$87"]
["pp4_bl3_4_9_rate_out",{"$f":"'T2-B(PP4)'!$H$87","v":0},"#'T2-B(PP4)'!$H$87"]
["pp4_bl3_4_9_total",{"$f":"'T2-B(PP4)'!$J$87","v":0},"#'T2-B(PP4)'!$J$87"]
["pp4_bl3_4_9_total_in",{"$f":"'T2-B(PP4)'!$F$87","v":0},"#'T2-B(PP4)'!$F$87"]
["pp4_bl3_4_9_total_out",{"$f":"'T2-B(PP4)'!$I$87","v":0},"#'T2-B(PP4)'!$I$87"]
["pp4_bl3_4_9_unit",{"$f":"'T2-B(PP4)'!$C$87","v":0},"#'T2-B(PP4)'!$C$87"]
["pp4_bl3_4_9_unit_in",{"$f":"'T2-B(PP4)'!$D$87","v":0},"#'T2-B(PP4)'!$D$87"]
["pp4_bl3_4_9_units_out",{"$f":"'T2-B(PP4)'!$G$87","v":0},"#'T2-B(PP4)'!$G$87"]
["pp4_bl3_4_total",{"$f":"'T2-B(PP4)'!$J$78","v":0},"#'T2-B(PP4)'!$J$78"]
["pp4_bl3_4_total_in",{"$f":"'T2-B(PP4)'!$F$78","v":0},"#'T2-B(PP4)'!$F$78"]
["pp4_bl3_4_total_out",{"$f":"'T2-B(PP4)'!$I$78","v":0},"#'T2-B(PP4)'!$I$78"]
["pp4_bl3_total",{"$f":"'T2-B(PP4)'!$J$89","v":0},"#'T2-B(PP4)'!$J$89"]
["pp4_bl3_total_in",{"$f":"'T2-B(PP4)'!$F$89","v":0},"#'T2-B(PP4)'!$F$89"]
["pp4_bl3_total_out",{"$f":"'T2-B(PP4)'!$I$89","v":0},"#'T2-B(PP4)'!$I$89"]
["pp4_bl4_1_1_name",{"$f":"'T2-B(PP4)'!$B$94","v":0},"#'T2-B(PP4)'!$B$94"]
["pp4_bl4_1_1_rate_in",{"$f":"'T2-B(PP4)'!$E$94","v":0},"#'T2-B(PP4)'!$E$94"]
["pp4_bl4_1_1_rate_out",{"$f":"'T2-B(PP4)'!$H$94","v":0},"#'T2-B(PP4)'!$H$94"]
["pp4_bl4_1_1_total",{"$f":"'T2-B(PP4)'!$J$94","v":0},"#'T2-B(PP4)'!$J$94"]
["pp4_bl4_1_1_total_in",{"$f":"'T2-B(PP4)'!$F$94","v":0},"#'T2-B(PP4)'!$F$94"]
["pp4_bl4_1_1_total_out",{"$f":"'T2-B(PP4)'!$I$94","v":0},"#'T2-B(PP4)'!$I$94"]
["pp4_bl4_1_1_unit",{"$f":"'T2-B(PP4)'!$C$94","v":0},"#'T2-B(PP4)'!$C$94"]
["pp4_bl4_1_1_unit_in",{"$f":"'T2-B(PP4)'!$D$94","v":0},"#'T2-B(PP4)'!$D$94"]
["pp4_bl4_1_1_units_out",{"$f":"'T2-B(PP4)'!$G$94","v":0},"#'T2-B(PP4)'!$G$94"]
["pp4_bl4_1_10_name",{"$f":"'T2-B(PP4)'!$B$103","v":0},"#'T2-B(PP4)'!$B$103"]
["pp4_bl4_1_10_rate_in",{"$f":"'T2-B(PP4)'!$E$103","v":0},"#'T2-B(PP4)'!$E$103"]
["pp4_bl4_1_10_rate_out",{"$f":"'T2-B(PP4)'!$H$103","v":0},"#'T2-B(PP4)'!$H$103"]
["pp4_bl4_1_10_total",{"$f":"'T2-B(PP4)'!$J$103","v":0},"#'T2-B(PP4)'!$J$103"]
["pp4_bl4_1_10_total_in",{"$f":"'T2-B(PP4)'!$F$103","v":0},"#'T2-B(PP4)'!$F$103"]
["pp4_bl4_1_10_total_out",{"$f":"'T2-B(PP4)'!$I$103","v":0},"#'T2-B(PP4)'!$I$103"]
["pp4_bl4_1_10_unit",{"$f":"'T2-B(PP4)'!$C$103","v":0},"#'T2-B(PP4)'!$C$103"]
["pp4_bl4_1_10_unit_in",{"$f":"'T2-B(PP4)'!$D$103","v":0},"#'T2-B(PP4)'!$D$103"]
["pp4_bl4_1_10_units_out",{"$f":"'T2-B(PP4)'!$G$103","v":0},"#'T2-B(PP4)'!$G$103"]
["pp4_bl4_1_11_name",{"$f":"'T2-B(PP4)'!$B$104","v":0},"#'T2-B(PP4)'!$B$104"]
["pp4_bl4_1_11_rate_in",{"$f":"'T2-B(PP4)'!$E$104","v":0},"#'T2-B(PP4)'!$E$104"]
["pp4_bl4_1_11_rate_out",{"$f":"'T2-B(PP4)'!$H$104","v":0},"#'T2-B(PP4)'!$H$104"]
["pp4_bl4_1_11_total",{"$f":"'T2-B(PP4)'!$J$104","v":0},"#'T2-B(PP4)'!$J$104"]
["pp4_bl4_1_11_total_in",{"$f":"'T2-B(PP4)'!$F$104","v":0},"#'T2-B(PP4)'!$F$104"]
["pp4_bl4_1_11_total_out",{"$f":"'T2-B(PP4)'!$I$104","v":0},"#'T2-B(PP4)'!$I$104"]
["pp4_bl4_1_11_unit",{"$f":"'T2-B(PP4)'!$C$104","v":0},"#'T2-B(PP4)'!$C$104"]
["pp4_bl4_1_11_unit_in",{"$f":"'T2-B(PP4)'!$D$104","v":0},"#'T2-B(PP4)'!$D$104"]
["pp4_bl4_1_11_units_out",{"$f":"'T2-B(PP4)'!$G$104","v":0},"#'T2-B(PP4)'!$G$104"]
["pp4_bl4_1_12_name",{"$f":"'T2-B(PP4)'!$B$105","v":0},"#'T2-B(PP4)'!$B$105"]
["pp4_bl4_1_12_rate_in",{"$f":"'T2-B(PP4)'!$E$105","v":0},"#'T2-B(PP4)'!$E$105"]
["pp4_bl4_1_12_rate_out",{"$f":"'T2-B(PP4)'!$H$105","v":0},"#'T2-B(PP4)'!$H$105"]
["pp4_bl4_1_12_total",{"$f":"'T2-B(PP4)'!$J$105","v":0},"#'T2-B(PP4)'!$J$105"]
["pp4_bl4_1_12_total_in",{"$f":"'T2-B(PP4)'!$F$105","v":0},"#'T2-B(PP4)'!$F$105"]
["pp4_bl4_1_12_total_out",{"$f":"'T2-B(PP4)'!$I$105","v":0},"#'T2-B(PP4)'!$I$105"]
["pp4_bl4_1_12_unit",{"$f":"'T2-B(PP4)'!$C$105","v":0},"#'T2-B(PP4)'!$C$105"]
["pp4_bl4_1_12_unit_in",{"$f":"'T2-B(PP4)'!$D$105","v":0},"#'T2-B(PP4)'!$D$105"]
["pp4_bl4_1_12_units_out",{"$f":"'T2-B(PP4)'!$G$105","v":0},"#'T2-B(PP4)'!$G$105"]
["pp4_bl4_1_13_name",{"$f":"'T2-B(PP4)'!$B$106","v":0},"#'T2-B(PP4)'!$B$106"]
["pp4_bl4_1_13_rate_in",{"$f":"'T2-B(PP4)'!$E$106","v":0},"#'T2-B(PP4)'!$E$106"]
["pp4_bl4_1_13_rate_out",{"$f":"'T2-B(PP4)'!$H$106","v":0},"#'T2-B(PP4)'!$H$106"]
["pp4_bl4_1_13_total",{"$f":"'T2-B(PP4)'!$J$106","v":0},"#'T2-B(PP4)'!$J$106"]
["pp4_bl4_1_13_total_in",{"$f":"'T2-B(PP4)'!$F$106","v":0},"#'T2-B(PP4)'!$F$106"]
["pp4_bl4_1_13_total_out",{"$f":"'T2-B(PP4)'!$I$106","v":0},"#'T2-B(PP4)'!$I$106"]
["pp4_bl4_1_13_unit",{"$f":"'T2-B(PP4)'!$C$106","v":0},"#'T2-B(PP4)'!$C$106"]
["pp4_bl4_1_13_unit_in",{"$f":"'T2-B(PP4)'!$D$106","v":0},"#'T2-B(PP4)'!$D$106"]
["pp4_bl4_1_13_units_out",{"$f":"'T2-B(PP4)'!$G$106","v":0},"#'T2-B(PP4)'!$G$106"]
["pp4_bl4_1_14_name",{"$f":"'T2-B(PP4)'!$B$107","v":0},"#'T2-B(PP4)'!$B$107"]
["pp4_bl4_1_14_rate_in",{"$f":"'T2-B(PP4)'!$E$107","v":0},"#'T2-B(PP4)'!$E$107"]
["pp4_bl4_1_14_rate_out",{"$f":"'T2-B(PP4)'!$H$107","v":0},"#'T2-B(PP4)'!$H$107"]
["pp4_bl4_1_14_total",{"$f":"'T2-B(PP4)'!$J$107","v":0},"#'T2-B(PP4)'!$J$107"]
["pp4_bl4_1_14_total_in",{"$f":"'T2-B(PP4)'!$F$107","v":0},"#'T2-B(PP4)'!$F$107"]
["pp4_bl4_1_14_total_out",{"$f":"'T2-B(PP4)'!$I$107","v":0},"#'T2-B(PP4)'!$I$107"]
["pp4_bl4_1_14_unit",{"$f":"'T2-B(PP4)'!$C$107","v":0},"#'T2-B(PP4)'!$C$107"]
["pp4_bl4_1_14_unit_in",{"$f":"'T2-B(PP4)'!$D$107","v":0},"#'T2-B(PP4)'!$D$107"]
["pp4_bl4_1_14_units_out",{"$f":"'T2-B(PP4)'!$G$107","v":0},"#'T2-B(PP4)'!$G$107"]
["pp4_bl4_1_15_name",{"$f":"'T2-B(PP4)'!$B$108","v":0},"#'T2-B(PP4)'!$B$108"]
["pp4_bl4_1_15_rate_in",{"$f":"'T2-B(PP4)'!$E$108","v":0},"#'T2-B(PP4)'!$E$108"]
["pp4_bl4_1_15_rate_out",{"$f":"'T2-B(PP4)'!$H$108","v":0},"#'T2-B(PP4)'!$H$108"]
["pp4_bl4_1_15_total",{"$f":"'T2-B(PP4)'!$J$108","v":0},"#'T2-B(PP4)'!$J$108"]
["pp4_bl4_1_15_total_in",{"$f":"'T2-B(PP4)'!$F$108","v":0},"#'T2-B(PP4)'!$F$108"]
["pp4_bl4_1_15_total_out",{"$f":"'T2-B(PP4)'!$I$108","v":0},"#'T2-B(PP4)'!$I$108"]
["pp4_bl4_1_15_unit",{"$f":"'T2-B(PP4)'!$C$108","v":0},"#'T2-B(PP4)'!$C$108"]
["pp4_bl4_1_15_unit_in",{"$f":"'T2-B(PP4)'!$D$108","v":0},"#'T2-B(PP4)'!$D$108"]
["pp4_bl4_1_15_units_out",{"$f":"'T2-B(PP4)'!$G$108","v":0},"#'T2-B(PP4)'!$G$108"]
["pp4_bl4_1_16_name",{"$f":"'T2-B(PP4)'!$B$109","v":0},"#'T2-B(PP4)'!$B$109"]
["pp4_bl4_1_16_rate_in",{"$f":"'T2-B(PP4)'!$E$109","v":0},"#'T2-B(PP4)'!$E$109"]
["pp4_bl4_1_16_rate_out",{"$f":"'T2-B(PP4)'!$H$109","v":0},"#'T2-B(PP4)'!$H$109"]
["pp4_bl4_1_16_total",{"$f":"'T2-B(PP4)'!$J$109","v":0},"#'T2-B(PP4)'!$J$109"]
["pp4_bl4_1_16_total_in",{"$f":"'T2-B(PP4)'!$F$109","v":0},"#'T2-B(PP4)'!$F$109"]
["pp4_bl4_1_16_total_out",{"$f":"'T2-B(PP4)'!$I$109","v":0},"#'T2-B(PP4)'!$I$109"]
["pp4_bl4_1_16_unit",{"$f":"'T2-B(PP4)'!$C$109","v":0},"#'T2-B(PP4)'!$C$109"]
["pp4_bl4_1_16_unit_in",{"$f":"'T2-B(PP4)'!$D$109","v":0},"#'T2-B(PP4)'!$D$109"]
["pp4_bl4_1_16_units_out",{"$f":"'T2-B(PP4)'!$G$109","v":0},"#'T2-B(PP4)'!$G$109"]
["pp4_bl4_1_17_name",{"$f":"'T2-B(PP4)'!$B$110","v":0},"#'T2-B(PP4)'!$B$110"]
["pp4_bl4_1_17_rate_in",{"$f":"'T2-B(PP4)'!$E$110","v":0},"#'T2-B(PP4)'!$E$110"]
["pp4_bl4_1_17_rate_out",{"$f":"'T2-B(PP4)'!$H$110","v":0},"#'T2-B(PP4)'!$H$110"]
["pp4_bl4_1_17_total",{"$f":"'T2-B(PP4)'!$J$110","v":0},"#'T2-B(PP4)'!$J$110"]
["pp4_bl4_1_17_total_in",{"$f":"'T2-B(PP4)'!$F$110","v":0},"#'T2-B(PP4)'!$F$110"]
["pp4_bl4_1_17_total_out",{"$f":"'T2-B(PP4)'!$I$110","v":0},"#'T2-B(PP4)'!$I$110"]
["pp4_bl4_1_17_unit",{"$f":"'T2-B(PP4)'!$C$110","v":0},"#'T2-B(PP4)'!$C$110"]
["pp4_bl4_1_17_unit_in",{"$f":"'T2-B(PP4)'!$D$110","v":0},"#'T2-B(PP4)'!$D$110"]
["pp4_bl4_1_17_units_out",{"$f":"'T2-B(PP4)'!$G$110","v":0},"#'T2-B(PP4)'!$G$110"]
["pp4_bl4_1_18_name",{"$f":"'T2-B(PP4)'!$B$111","v":0},"#'T2-B(PP4)'!$B$111"]
["pp4_bl4_1_18_rate_in",{"$f":"'T2-B(PP4)'!$E$111","v":0},"#'T2-B(PP4)'!$E$111"]
["pp4_bl4_1_18_rate_out",{"$f":"'T2-B(PP4)'!$H$111","v":0},"#'T2-B(PP4)'!$H$111"]
["pp4_bl4_1_18_total",{"$f":"'T2-B(PP4)'!$J$111","v":0},"#'T2-B(PP4)'!$J$111"]
["pp4_bl4_1_18_total_in",{"$f":"'T2-B(PP4)'!$F$111","v":0},"#'T2-B(PP4)'!$F$111"]
["pp4_bl4_1_18_total_out",{"$f":"'T2-B(PP4)'!$I$111","v":0},"#'T2-B(PP4)'!$I$111"]
["pp4_bl4_1_18_unit",{"$f":"'T2-B(PP4)'!$C$111","v":0},"#'T2-B(PP4)'!$C$111"]
["pp4_bl4_1_18_unit_in",{"$f":"'T2-B(PP4)'!$D$111","v":0},"#'T2-B(PP4)'!$D$111"]
["pp4_bl4_1_18_units_out",{"$f":"'T2-B(PP4)'!$G$111","v":0},"#'T2-B(PP4)'!$G$111"]
["pp4_bl4_1_19_name",{"$f":"'T2-B(PP4)'!$B$112","v":0},"#'T2-B(PP4)'!$B$112"]
["pp4_bl4_1_19_rate_in",{"$f":"'T2-B(PP4)'!$E$112","v":0},"#'T2-B(PP4)'!$E$112"]
["pp4_bl4_1_19_rate_out",{"$f":"'T2-B(PP4)'!$H$112","v":0},"#'T2-B(PP4)'!$H$112"]
["pp4_bl4_1_19_total",{"$f":"'T2-B(PP4)'!$J$112","v":0},"#'T2-B(PP4)'!$J$112"]
["pp4_bl4_1_19_total_in",{"$f":"'T2-B(PP4)'!$F$112","v":0},"#'T2-B(PP4)'!$F$112"]
["pp4_bl4_1_19_total_out",{"$f":"'T2-B(PP4)'!$I$112","v":0},"#'T2-B(PP4)'!$I$112"]
["pp4_bl4_1_19_unit",{"$f":"'T2-B(PP4)'!$C$112","v":0},"#'T2-B(PP4)'!$C$112"]
["pp4_bl4_1_19_unit_in",{"$f":"'T2-B(PP4)'!$D$112","v":0},"#'T2-B(PP4)'!$D$112"]
["pp4_bl4_1_19_units_out",{"$f":"'T2-B(PP4)'!$G$112","v":0},"#'T2-B(PP4)'!$G$112"]
["pp4_bl4_1_2_name",{"$f":"'T2-B(PP4)'!$B$95","v":0},"#'T2-B(PP4)'!$B$95"]
["pp4_bl4_1_2_rate_in",{"$f":"'T2-B(PP4)'!$E$95","v":0},"#'T2-B(PP4)'!$E$95"]
["pp4_bl4_1_2_rate_out",{"$f":"'T2-B(PP4)'!$H$95","v":0},"#'T2-B(PP4)'!$H$95"]
["pp4_bl4_1_2_total",{"$f":"'T2-B(PP4)'!$J$95","v":0},"#'T2-B(PP4)'!$J$95"]
["pp4_bl4_1_2_total_in",{"$f":"'T2-B(PP4)'!$F$95","v":0},"#'T2-B(PP4)'!$F$95"]
["pp4_bl4_1_2_total_out",{"$f":"'T2-B(PP4)'!$I$95","v":0},"#'T2-B(PP4)'!$I$95"]
["pp4_bl4_1_2_unit",{"$f":"'T2-B(PP4)'!$C$95","v":0},"#'T2-B(PP4)'!$C$95"]
["pp4_bl4_1_2_unit_in",{"$f":"'T2-B(PP4)'!$D$95","v":0},"#'T2-B(PP4)'!$D$95"]
["pp4_bl4_1_2_units_out",{"$f":"'T2-B(PP4)'!$G$95","v":0},"#'T2-B(PP4)'!$G$95"]
["pp4_bl4_1_20_name",{"$f":"'T2-B(PP4)'!$B$113","v":0},"#'T2-B(PP4)'!$B$113"]
["pp4_bl4_1_20_rate_in",{"$f":"'T2-B(PP4)'!$E$113","v":0},"#'T2-B(PP4)'!$E$113"]
["pp4_bl4_1_20_rate_out",{"$f":"'T2-B(PP4)'!$H$113","v":0},"#'T2-B(PP4)'!$H$113"]
["pp4_bl4_1_20_total",{"$f":"'T2-B(PP4)'!$J$113","v":0},"#'T2-B(PP4)'!$J$113"]
["pp4_bl4_1_20_total_in",{"$f":"'T2-B(PP4)'!$F$113","v":0},"#'T2-B(PP4)'!$F$113"]
["pp4_bl4_1_20_total_out",{"$f":"'T2-B(PP4)'!$I$113","v":0},"#'T2-B(PP4)'!$I$113"]
["pp4_bl4_1_20_unit",{"$f":"'T2-B(PP4)'!$C$113","v":0},"#'T2-B(PP4)'!$C$113"]
["pp4_bl4_1_20_unit_in",{"$f":"'T2-B(PP4)'!$D$113","v":0},"#'T2-B(PP4)'!$D$113"]
["pp4_bl4_1_20_units_out",{"$f":"'T2-B(PP4)'!$G$113","v":0},"#'T2-B(PP4)'!$G$113"]
["pp4_bl4_1_3_name",{"$f":"'T2-B(PP4)'!$B$96","v":0},"#'T2-B(PP4)'!$B$96"]
["pp4_bl4_1_3_rate_in",{"$f":"'T2-B(PP4)'!$E$96","v":0},"#'T2-B(PP4)'!$E$96"]
["pp4_bl4_1_3_rate_out",{"$f":"'T2-B(PP4)'!$H$96","v":0},"#'T2-B(PP4)'!$H$96"]
["pp4_bl4_1_3_total",{"$f":"'T2-B(PP4)'!$J$96","v":0},"#'T2-B(PP4)'!$J$96"]
["pp4_bl4_1_3_total_in",{"$f":"'T2-B(PP4)'!$F$96","v":0},"#'T2-B(PP4)'!$F$96"]
["pp4_bl4_1_3_total_out",{"$f":"'T2-B(PP4)'!$I$96","v":0},"#'T2-B(PP4)'!$I$96"]
["pp4_bl4_1_3_unit",{"$f":"'T2-B(PP4)'!$C$96","v":0},"#'T2-B(PP4)'!$C$96"]
["pp4_bl4_1_3_unit_in",{"$f":"'T2-B(PP4)'!$D$96","v":0},"#'T2-B(PP4)'!$D$96"]
["pp4_bl4_1_3_units_out",{"$f":"'T2-B(PP4)'!$G$96","v":0},"#'T2-B(PP4)'!$G$96"]
["pp4_bl4_1_4_name",{"$f":"'T2-B(PP4)'!$B$97","v":0},"#'T2-B(PP4)'!$B$97"]
["pp4_bl4_1_4_rate_in",{"$f":"'T2-B(PP4)'!$E$97","v":0},"#'T2-B(PP4)'!$E$97"]
["pp4_bl4_1_4_rate_out",{"$f":"'T2-B(PP4)'!$H$97","v":0},"#'T2-B(PP4)'!$H$97"]
["pp4_bl4_1_4_total",{"$f":"'T2-B(PP4)'!$J$97","v":0},"#'T2-B(PP4)'!$J$97"]
["pp4_bl4_1_4_total_in",{"$f":"'T2-B(PP4)'!$F$97","v":0},"#'T2-B(PP4)'!$F$97"]
["pp4_bl4_1_4_total_out",{"$f":"'T2-B(PP4)'!$I$97","v":0},"#'T2-B(PP4)'!$I$97"]
["pp4_bl4_1_4_unit",{"$f":"'T2-B(PP4)'!$C$97","v":0},"#'T2-B(PP4)'!$C$97"]
["pp4_bl4_1_4_unit_in",{"$f":"'T2-B(PP4)'!$D$97","v":0},"#'T2-B(PP4)'!$D$97"]
["pp4_bl4_1_4_units_out",{"$f":"'T2-B(PP4)'!$G$97","v":0},"#'T2-B(PP4)'!$G$97"]
["pp4_bl4_1_5_name",{"$f":"'T2-B(PP4)'!$B$98","v":0},"#'T2-B(PP4)'!$B$98"]
["pp4_bl4_1_5_rate_in",{"$f":"'T2-B(PP4)'!$E$98","v":0},"#'T2-B(PP4)'!$E$98"]
["pp4_bl4_1_5_rate_out",{"$f":"'T2-B(PP4)'!$H$98","v":0},"#'T2-B(PP4)'!$H$98"]
["pp4_bl4_1_5_total",{"$f":"'T2-B(PP4)'!$J$98","v":0},"#'T2-B(PP4)'!$J$98"]
["pp4_bl4_1_5_total_in",{"$f":"'T2-B(PP4)'!$F$98","v":0},"#'T2-B(PP4)'!$F$98"]
["pp4_bl4_1_5_total_out",{"$f":"'T2-B(PP4)'!$I$98","v":0},"#'T2-B(PP4)'!$I$98"]
["pp4_bl4_1_5_unit",{"$f":"'T2-B(PP4)'!$C$98","v":0},"#'T2-B(PP4)'!$C$98"]
["pp4_bl4_1_5_unit_in",{"$f":"'T2-B(PP4)'!$D$98","v":0},"#'T2-B(PP4)'!$D$98"]
["pp4_bl4_1_5_units_out",{"$f":"'T2-B(PP4)'!$G$98","v":0},"#'T2-B(PP4)'!$G$98"]
["pp4_bl4_1_6_name",{"$f":"'T2-B(PP4)'!$B$99","v":0},"#'T2-B(PP4)'!$B$99"]
["pp4_bl4_1_6_rate_in",{"$f":"'T2-B(PP4)'!$E$99","v":0},"#'T2-B(PP4)'!$E$99"]
["pp4_bl4_1_6_rate_out",{"$f":"'T2-B(PP4)'!$H$99","v":0},"#'T2-B(PP4)'!$H$99"]
["pp4_bl4_1_6_total",{"$f":"'T2-B(PP4)'!$J$99","v":0},"#'T2-B(PP4)'!$J$99"]
["pp4_bl4_1_6_total_in",{"$f":"'T2-B(PP4)'!$F$99","v":0},"#'T2-B(PP4)'!$F$99"]
["pp4_bl4_1_6_total_out",{"$f":"'T2-B(PP4)'!$I$99","v":0},"#'T2-B(PP4)'!$I$99"]
["pp4_bl4_1_6_unit",{"$f":"'T2-B(PP4)'!$C$99","v":0},"#'T2-B(PP4)'!$C$99"]
["pp4_bl4_1_6_unit_in",{"$f":"'T2-B(PP4)'!$D$99","v":0},"#'T2-B(PP4)'!$D$99"]
["pp4_bl4_1_6_units_out",{"$f":"'T2-B(PP4)'!$G$99","v":0},"#'T2-B(PP4)'!$G$99"]
["pp4_bl4_1_7_name",{"$f":"'T2-B(PP4)'!$B$100","v":0},"#'T2-B(PP4)'!$B$100"]
["pp4_bl4_1_7_rate_in",{"$f":"'T2-B(PP4)'!$E$100","v":0},"#'T2-B(PP4)'!$E$100"]
["pp4_bl4_1_7_rate_out",{"$f":"'T2-B(PP4)'!$H$100","v":0},"#'T2-B(PP4)'!$H$100"]
["pp4_bl4_1_7_total",{"$f":"'T2-B(PP4)'!$J$100","v":0},"#'T2-B(PP4)'!$J$100"]
["pp4_bl4_1_7_total_in",{"$f":"'T2-B(PP4)'!$F$100","v":0},"#'T2-B(PP4)'!$F$100"]
["pp4_bl4_1_7_total_out",{"$f":"'T2-B(PP4)'!$I$100","v":0},"#'T2-B(PP4)'!$I$100"]
["pp4_bl4_1_7_unit",{"$f":"'T2-B(PP4)'!$C$100","v":0},"#'T2-B(PP4)'!$C$100"]
["pp4_bl4_1_7_unit_in",{"$f":"'T2-B(PP4)'!$D$100","v":0},"#'T2-B(PP4)'!$D$100"]
["pp4_bl4_1_7_units_out",{"$f":"'T2-B(PP4)'!$G$100","v":0},"#'T2-B(PP4)'!$G$100"]
["pp4_bl4_1_8_name",{"$f":"'T2-B(PP4)'!$B$101","v":0},"#'T2-B(PP4)'!$B$101"]
["pp4_bl4_1_8_rate_in",{"$f":"'T2-B(PP4)'!$E$101","v":0},"#'T2-B(PP4)'!$E$101"]
["pp4_bl4_1_8_rate_out",{"$f":"'T2-B(PP4)'!$H$101","v":0},"#'T2-B(PP4)'!$H$101"]
["pp4_bl4_1_8_total",{"$f":"'T2-B(PP4)'!$J$101","v":0},"#'T2-B(PP4)'!$J$101"]
["pp4_bl4_1_8_total_in",{"$f":"'T2-B(PP4)'!$F$101","v":0},"#'T2-B(PP4)'!$F$101"]
["pp4_bl4_1_8_total_out",{"$f":"'T2-B(PP4)'!$I$101","v":0},"#'T2-B(PP4)'!$I$101"]
["pp4_bl4_1_8_unit",{"$f":"'T2-B(PP4)'!$C$101","v":0},"#'T2-B(PP4)'!$C$101"]
["pp4_bl4_1_8_unit_in",{"$f":"'T2-B(PP4)'!$D$101","v":0},"#'T2-B(PP4)'!$D$101"]
["pp4_bl4_1_8_units_out",{"$f":"'T2-B(PP4)'!$G$101","v":0},"#'T2-B(PP4)'!$G$101"]
["pp4_bl4_1_9_name",{"$f":"'T2-B(PP4)'!$B$102","v":0},"#'T2-B(PP4)'!$B$102"]
["pp4_bl4_1_9_rate_in",{"$f":"'T2-B(PP4)'!$E$102","v":0},"#'T2-B(PP4)'!$E$102"]
["pp4_bl4_1_9_rate_out",{"$f":"'T2-B(PP4)'!$H$102","v":0},"#'T2-B(PP4)'!$H$102"]
["pp4_bl4_1_9_total",{"$f":"'T2-B(PP4)'!$J$102","v":0},"#'T2-B(PP4)'!$J$102"]
["pp4_bl4_1_9_total_in",{"$f":"'T2-B(PP4)'!$F$102","v":0},"#'T2-B(PP4)'!$F$102"]
["pp4_bl4_1_9_total_out",{"$f":"'T2-B(PP4)'!$I$102","v":0},"#'T2-B(PP4)'!$I$102"]
["pp4_bl4_1_9_unit",{"$f":"'T2-B(PP4)'!$C$102","v":0},"#'T2-B(PP4)'!$C$102"]
["pp4_bl4_1_9_unit_in",{"$f":"'T2-B(PP4)'!$D$102","v":0},"#'T2-B(PP4)'!$D$102"]
["pp4_bl4_1_9_units_out",{"$f":"'T2-B(PP4)'!$G$102","v":0},"#'T2-B(PP4)'!$G$102"]
["pp4_bl4_1_total",{"$f":"'T2-B(PP4)'!$J$93","v":0},"#'T2-B(PP4)'!$J$93"]
["pp4_bl4_1_total_in",{"$f":"'T2-B(PP4)'!$F$93","v":0},"#'T2-B(PP4)'!$F$93"]
["pp4_bl4_1_total_out",{"$f":"'T2-B(PP4)'!$I$93","v":0},"#'T2-B(PP4)'!$I$93"]
["pp4_bl4_10_1_name",{"$f":"'T2-B(PP4)'!$B$283","v":0},"#'T2-B(PP4)'!$B$283"]
["pp4_bl4_10_1_rate_in",{"$f":"'T2-B(PP4)'!$E$283","v":0},"#'T2-B(PP4)'!$E$283"]
["pp4_bl4_10_1_rate_out",{"$f":"'T2-B(PP4)'!$H$283","v":0},"#'T2-B(PP4)'!$H$283"]
["pp4_bl4_10_1_total",{"$f":"'T2-B(PP4)'!$J$283","v":0},"#'T2-B(PP4)'!$J$283"]
["pp4_bl4_10_1_total_in",{"$f":"'T2-B(PP4)'!$F$283","v":0},"#'T2-B(PP4)'!$F$283"]
["pp4_bl4_10_1_total_out",{"$f":"'T2-B(PP4)'!$I$283","v":0},"#'T2-B(PP4)'!$I$283"]
["pp4_bl4_10_1_unit",{"$f":"'T2-B(PP4)'!$C$283","v":0},"#'T2-B(PP4)'!$C$283"]
["pp4_bl4_10_1_unit_in",{"$f":"'T2-B(PP4)'!$D$283","v":0},"#'T2-B(PP4)'!$D$283"]
["pp4_bl4_10_1_units_out",{"$f":"'T2-B(PP4)'!$G$283","v":0},"#'T2-B(PP4)'!$G$283"]
["pp4_bl4_10_10_name",{"$f":"'T2-B(PP4)'!$B$292","v":0},"#'T2-B(PP4)'!$B$292"]
["pp4_bl4_10_10_rate_in",{"$f":"'T2-B(PP4)'!$E$292","v":0},"#'T2-B(PP4)'!$E$292"]
["pp4_bl4_10_10_rate_out",{"$f":"'T2-B(PP4)'!$H$292","v":0},"#'T2-B(PP4)'!$H$292"]
["pp4_bl4_10_10_total",{"$f":"'T2-B(PP4)'!$J$292","v":0},"#'T2-B(PP4)'!$J$292"]
["pp4_bl4_10_10_total_in",{"$f":"'T2-B(PP4)'!$F$292","v":0},"#'T2-B(PP4)'!$F$292"]
["pp4_bl4_10_10_total_out",{"$f":"'T2-B(PP4)'!$I$292","v":0},"#'T2-B(PP4)'!$I$292"]
["pp4_bl4_10_10_unit",{"$f":"'T2-B(PP4)'!$C$292","v":0},"#'T2-B(PP4)'!$C$292"]
["pp4_bl4_10_10_unit_in",{"$f":"'T2-B(PP4)'!$D$292","v":0},"#'T2-B(PP4)'!$D$292"]
["pp4_bl4_10_10_units_out",{"$f":"'T2-B(PP4)'!$G$292","v":0},"#'T2-B(PP4)'!$G$292"]
["pp4_bl4_10_11_name",{"$f":"'T2-B(PP4)'!$B$293","v":0},"#'T2-B(PP4)'!$B$293"]
["pp4_bl4_10_11_rate_in",{"$f":"'T2-B(PP4)'!$E$293","v":0},"#'T2-B(PP4)'!$E$293"]
["pp4_bl4_10_11_rate_out",{"$f":"'T2-B(PP4)'!$H$293","v":0},"#'T2-B(PP4)'!$H$293"]
["pp4_bl4_10_11_total",{"$f":"'T2-B(PP4)'!$J$293","v":0},"#'T2-B(PP4)'!$J$293"]
["pp4_bl4_10_11_total_in",{"$f":"'T2-B(PP4)'!$F$293","v":0},"#'T2-B(PP4)'!$F$293"]
["pp4_bl4_10_11_total_out",{"$f":"'T2-B(PP4)'!$I$293","v":0},"#'T2-B(PP4)'!$I$293"]
["pp4_bl4_10_11_unit",{"$f":"'T2-B(PP4)'!$C$293","v":0},"#'T2-B(PP4)'!$C$293"]
["pp4_bl4_10_11_unit_in",{"$f":"'T2-B(PP4)'!$D$293","v":0},"#'T2-B(PP4)'!$D$293"]
["pp4_bl4_10_11_units_out",{"$f":"'T2-B(PP4)'!$G$293","v":0},"#'T2-B(PP4)'!$G$293"]
["pp4_bl4_10_12_name",{"$f":"'T2-B(PP4)'!$B$294","v":0},"#'T2-B(PP4)'!$B$294"]
["pp4_bl4_10_12_rate_in",{"$f":"'T2-B(PP4)'!$E$294","v":0},"#'T2-B(PP4)'!$E$294"]
["pp4_bl4_10_12_rate_out",{"$f":"'T2-B(PP4)'!$H$294","v":0},"#'T2-B(PP4)'!$H$294"]
["pp4_bl4_10_12_total",{"$f":"'T2-B(PP4)'!$J$294","v":0},"#'T2-B(PP4)'!$J$294"]
["pp4_bl4_10_12_total_in",{"$f":"'T2-B(PP4)'!$F$294","v":0},"#'T2-B(PP4)'!$F$294"]
["pp4_bl4_10_12_total_out",{"$f":"'T2-B(PP4)'!$I$294","v":0},"#'T2-B(PP4)'!$I$294"]
["pp4_bl4_10_12_unit",{"$f":"'T2-B(PP4)'!$C$294","v":0},"#'T2-B(PP4)'!$C$294"]
["pp4_bl4_10_12_unit_in",{"$f":"'T2-B(PP4)'!$D$294","v":0},"#'T2-B(PP4)'!$D$294"]
["pp4_bl4_10_12_units_out",{"$f":"'T2-B(PP4)'!$G$294","v":0},"#'T2-B(PP4)'!$G$294"]
["pp4_bl4_10_13_name",{"$f":"'T2-B(PP4)'!$B$295","v":0},"#'T2-B(PP4)'!$B$295"]
["pp4_bl4_10_13_rate_in",{"$f":"'T2-B(PP4)'!$E$295","v":0},"#'T2-B(PP4)'!$E$295"]
["pp4_bl4_10_13_rate_out",{"$f":"'T2-B(PP4)'!$H$295","v":0},"#'T2-B(PP4)'!$H$295"]
["pp4_bl4_10_13_total",{"$f":"'T2-B(PP4)'!$J$295","v":0},"#'T2-B(PP4)'!$J$295"]
["pp4_bl4_10_13_total_in",{"$f":"'T2-B(PP4)'!$F$295","v":0},"#'T2-B(PP4)'!$F$295"]
["pp4_bl4_10_13_total_out",{"$f":"'T2-B(PP4)'!$I$295","v":0},"#'T2-B(PP4)'!$I$295"]
["pp4_bl4_10_13_unit",{"$f":"'T2-B(PP4)'!$C$295","v":0},"#'T2-B(PP4)'!$C$295"]
["pp4_bl4_10_13_unit_in",{"$f":"'T2-B(PP4)'!$D$295","v":0},"#'T2-B(PP4)'!$D$295"]
["pp4_bl4_10_13_units_out",{"$f":"'T2-B(PP4)'!$G$295","v":0},"#'T2-B(PP4)'!$G$295"]
["pp4_bl4_10_14_name",{"$f":"'T2-B(PP4)'!$B$296","v":0},"#'T2-B(PP4)'!$B$296"]
["pp4_bl4_10_14_rate_in",{"$f":"'T2-B(PP4)'!$E$296","v":0},"#'T2-B(PP4)'!$E$296"]
["pp4_bl4_10_14_rate_out",{"$f":"'T2-B(PP4)'!$H$296","v":0},"#'T2-B(PP4)'!$H$296"]
["pp4_bl4_10_14_total",{"$f":"'T2-B(PP4)'!$J$296","v":0},"#'T2-B(PP4)'!$J$296"]
["pp4_bl4_10_14_total_in",{"$f":"'T2-B(PP4)'!$F$296","v":0},"#'T2-B(PP4)'!$F$296"]
["pp4_bl4_10_14_total_out",{"$f":"'T2-B(PP4)'!$I$296","v":0},"#'T2-B(PP4)'!$I$296"]
["pp4_bl4_10_14_unit",{"$f":"'T2-B(PP4)'!$C$296","v":0},"#'T2-B(PP4)'!$C$296"]
["pp4_bl4_10_14_unit_in",{"$f":"'T2-B(PP4)'!$D$296","v":0},"#'T2-B(PP4)'!$D$296"]
["pp4_bl4_10_14_units_out",{"$f":"'T2-B(PP4)'!$G$296","v":0},"#'T2-B(PP4)'!$G$296"]
["pp4_bl4_10_15_name",{"$f":"'T2-B(PP4)'!$B$297","v":0},"#'T2-B(PP4)'!$B$297"]
["pp4_bl4_10_15_rate_in",{"$f":"'T2-B(PP4)'!$E$297","v":0},"#'T2-B(PP4)'!$E$297"]
["pp4_bl4_10_15_rate_out",{"$f":"'T2-B(PP4)'!$H$297","v":0},"#'T2-B(PP4)'!$H$297"]
["pp4_bl4_10_15_total",{"$f":"'T2-B(PP4)'!$J$297","v":0},"#'T2-B(PP4)'!$J$297"]
["pp4_bl4_10_15_total_in",{"$f":"'T2-B(PP4)'!$F$297","v":0},"#'T2-B(PP4)'!$F$297"]
["pp4_bl4_10_15_total_out",{"$f":"'T2-B(PP4)'!$I$297","v":0},"#'T2-B(PP4)'!$I$297"]
["pp4_bl4_10_15_unit",{"$f":"'T2-B(PP4)'!$C$297","v":0},"#'T2-B(PP4)'!$C$297"]
["pp4_bl4_10_15_unit_in",{"$f":"'T2-B(PP4)'!$D$297","v":0},"#'T2-B(PP4)'!$D$297"]
["pp4_bl4_10_15_units_out",{"$f":"'T2-B(PP4)'!$G$297","v":0},"#'T2-B(PP4)'!$G$297"]
["pp4_bl4_10_16_name",{"$f":"'T2-B(PP4)'!$B$298","v":0},"#'T2-B(PP4)'!$B$298"]
["pp4_bl4_10_16_rate_in",{"$f":"'T2-B(PP4)'!$E$298","v":0},"#'T2-B(PP4)'!$E$298"]
["pp4_bl4_10_16_rate_out",{"$f":"'T2-B(PP4)'!$H$298","v":0},"#'T2-B(PP4)'!$H$298"]
["pp4_bl4_10_16_total",{"$f":"'T2-B(PP4)'!$J$298","v":0},"#'T2-B(PP4)'!$J$298"]
["pp4_bl4_10_16_total_in",{"$f":"'T2-B(PP4)'!$F$298","v":0},"#'T2-B(PP4)'!$F$298"]
["pp4_bl4_10_16_total_out",{"$f":"'T2-B(PP4)'!$I$298","v":0},"#'T2-B(PP4)'!$I$298"]
["pp4_bl4_10_16_unit",{"$f":"'T2-B(PP4)'!$C$298","v":0},"#'T2-B(PP4)'!$C$298"]
["pp4_bl4_10_16_unit_in",{"$f":"'T2-B(PP4)'!$D$298","v":0},"#'T2-B(PP4)'!$D$298"]
["pp4_bl4_10_16_units_out",{"$f":"'T2-B(PP4)'!$G$298","v":0},"#'T2-B(PP4)'!$G$298"]
["pp4_bl4_10_17_name",{"$f":"'T2-B(PP4)'!$B$299","v":0},"#'T2-B(PP4)'!$B$299"]
["pp4_bl4_10_17_rate_in",{"$f":"'T2-B(PP4)'!$E$299","v":0},"#'T2-B(PP4)'!$E$299"]
["pp4_bl4_10_17_rate_out",{"$f":"'T2-B(PP4)'!$H$299","v":0},"#'T2-B(PP4)'!$H$299"]
["pp4_bl4_10_17_total",{"$f":"'T2-B(PP4)'!$J$299","v":0},"#'T2-B(PP4)'!$J$299"]
["pp4_bl4_10_17_total_in",{"$f":"'T2-B(PP4)'!$F$299","v":0},"#'T2-B(PP4)'!$F$299"]
["pp4_bl4_10_17_total_out",{"$f":"'T2-B(PP4)'!$I$299","v":0},"#'T2-B(PP4)'!$I$299"]
["pp4_bl4_10_17_unit",{"$f":"'T2-B(PP4)'!$C$299","v":0},"#'T2-B(PP4)'!$C$299"]
["pp4_bl4_10_17_unit_in",{"$f":"'T2-B(PP4)'!$D$299","v":0},"#'T2-B(PP4)'!$D$299"]
["pp4_bl4_10_17_units_out",{"$f":"'T2-B(PP4)'!$G$299","v":0},"#'T2-B(PP4)'!$G$299"]
["pp4_bl4_10_18_name",{"$f":"'T2-B(PP4)'!$B$300","v":0},"#'T2-B(PP4)'!$B$300"]
["pp4_bl4_10_18_rate_in",{"$f":"'T2-B(PP4)'!$E$300","v":0},"#'T2-B(PP4)'!$E$300"]
["pp4_bl4_10_18_rate_out",{"$f":"'T2-B(PP4)'!$H$300","v":0},"#'T2-B(PP4)'!$H$300"]
["pp4_bl4_10_18_total",{"$f":"'T2-B(PP4)'!$J$300","v":0},"#'T2-B(PP4)'!$J$300"]
["pp4_bl4_10_18_total_in",{"$f":"'T2-B(PP4)'!$F$300","v":0},"#'T2-B(PP4)'!$F$300"]
["pp4_bl4_10_18_total_out",{"$f":"'T2-B(PP4)'!$I$300","v":0},"#'T2-B(PP4)'!$I$300"]
["pp4_bl4_10_18_unit",{"$f":"'T2-B(PP4)'!$C$300","v":0},"#'T2-B(PP4)'!$C$300"]
["pp4_bl4_10_18_unit_in",{"$f":"'T2-B(PP4)'!$D$300","v":0},"#'T2-B(PP4)'!$D$300"]
["pp4_bl4_10_18_units_out",{"$f":"'T2-B(PP4)'!$G$300","v":0},"#'T2-B(PP4)'!$G$300"]
["pp4_bl4_10_19_name",{"$f":"'T2-B(PP4)'!$B$301","v":0},"#'T2-B(PP4)'!$B$301"]
["pp4_bl4_10_19_rate_in",{"$f":"'T2-B(PP4)'!$E$301","v":0},"#'T2-B(PP4)'!$E$301"]
["pp4_bl4_10_19_rate_out",{"$f":"'T2-B(PP4)'!$H$301","v":0},"#'T2-B(PP4)'!$H$301"]
["pp4_bl4_10_19_total",{"$f":"'T2-B(PP4)'!$J$301","v":0},"#'T2-B(PP4)'!$J$301"]
["pp4_bl4_10_19_total_in",{"$f":"'T2-B(PP4)'!$F$301","v":0},"#'T2-B(PP4)'!$F$301"]
["pp4_bl4_10_19_total_out",{"$f":"'T2-B(PP4)'!$I$301","v":0},"#'T2-B(PP4)'!$I$301"]
["pp4_bl4_10_19_unit",{"$f":"'T2-B(PP4)'!$C$301","v":0},"#'T2-B(PP4)'!$C$301"]
["pp4_bl4_10_19_unit_in",{"$f":"'T2-B(PP4)'!$D$301","v":0},"#'T2-B(PP4)'!$D$301"]
["pp4_bl4_10_19_units_out",{"$f":"'T2-B(PP4)'!$G$301","v":0},"#'T2-B(PP4)'!$G$301"]
["pp4_bl4_10_2_name",{"$f":"'T2-B(PP4)'!$B$284","v":0},"#'T2-B(PP4)'!$B$284"]
["pp4_bl4_10_2_rate_in",{"$f":"'T2-B(PP4)'!$E$284","v":0},"#'T2-B(PP4)'!$E$284"]
["pp4_bl4_10_2_rate_out",{"$f":"'T2-B(PP4)'!$H$284","v":0},"#'T2-B(PP4)'!$H$284"]
["pp4_bl4_10_2_total",{"$f":"'T2-B(PP4)'!$J$284","v":0},"#'T2-B(PP4)'!$J$284"]
["pp4_bl4_10_2_total_in",{"$f":"'T2-B(PP4)'!$F$284","v":0},"#'T2-B(PP4)'!$F$284"]
["pp4_bl4_10_2_total_out",{"$f":"'T2-B(PP4)'!$I$284","v":0},"#'T2-B(PP4)'!$I$284"]
["pp4_bl4_10_2_unit",{"$f":"'T2-B(PP4)'!$C$284","v":0},"#'T2-B(PP4)'!$C$284"]
["pp4_bl4_10_2_unit_in",{"$f":"'T2-B(PP4)'!$D$284","v":0},"#'T2-B(PP4)'!$D$284"]
["pp4_bl4_10_2_units_out",{"$f":"'T2-B(PP4)'!$G$284","v":0},"#'T2-B(PP4)'!$G$284"]
["pp4_bl4_10_20_name",{"$f":"'T2-B(PP4)'!$B$302","v":0},"#'T2-B(PP4)'!$B$302"]
["pp4_bl4_10_20_rate_in",{"$f":"'T2-B(PP4)'!$E$302","v":0},"#'T2-B(PP4)'!$E$302"]
["pp4_bl4_10_20_rate_out",{"$f":"'T2-B(PP4)'!$H$302","v":0},"#'T2-B(PP4)'!$H$302"]
["pp4_bl4_10_20_total",{"$f":"'T2-B(PP4)'!$J$302","v":0},"#'T2-B(PP4)'!$J$302"]
["pp4_bl4_10_20_total_in",{"$f":"'T2-B(PP4)'!$F$302","v":0},"#'T2-B(PP4)'!$F$302"]
["pp4_bl4_10_20_total_out",{"$f":"'T2-B(PP4)'!$I$302","v":0},"#'T2-B(PP4)'!$I$302"]
["pp4_bl4_10_20_unit",{"$f":"'T2-B(PP4)'!$C$302","v":0},"#'T2-B(PP4)'!$C$302"]
["pp4_bl4_10_20_unit_in",{"$f":"'T2-B(PP4)'!$D$302","v":0},"#'T2-B(PP4)'!$D$302"]
["pp4_bl4_10_20_units_out",{"$f":"'T2-B(PP4)'!$G$302","v":0},"#'T2-B(PP4)'!$G$302"]
["pp4_bl4_10_3_name",{"$f":"'T2-B(PP4)'!$B$285","v":0},"#'T2-B(PP4)'!$B$285"]
["pp4_bl4_10_3_rate_in",{"$f":"'T2-B(PP4)'!$E$285","v":0},"#'T2-B(PP4)'!$E$285"]
["pp4_bl4_10_3_rate_out",{"$f":"'T2-B(PP4)'!$H$285","v":0},"#'T2-B(PP4)'!$H$285"]
["pp4_bl4_10_3_total",{"$f":"'T2-B(PP4)'!$J$285","v":0},"#'T2-B(PP4)'!$J$285"]
["pp4_bl4_10_3_total_in",{"$f":"'T2-B(PP4)'!$F$285","v":0},"#'T2-B(PP4)'!$F$285"]
["pp4_bl4_10_3_total_out",{"$f":"'T2-B(PP4)'!$I$285","v":0},"#'T2-B(PP4)'!$I$285"]
["pp4_bl4_10_3_unit",{"$f":"'T2-B(PP4)'!$C$285","v":0},"#'T2-B(PP4)'!$C$285"]
["pp4_bl4_10_3_unit_in",{"$f":"'T2-B(PP4)'!$D$285","v":0},"#'T2-B(PP4)'!$D$285"]
["pp4_bl4_10_3_units_out",{"$f":"'T2-B(PP4)'!$G$285","v":0},"#'T2-B(PP4)'!$G$285"]
["pp4_bl4_10_4_name",{"$f":"'T2-B(PP4)'!$B$286","v":0},"#'T2-B(PP4)'!$B$286"]
["pp4_bl4_10_4_rate_in",{"$f":"'T2-B(PP4)'!$E$286","v":0},"#'T2-B(PP4)'!$E$286"]
["pp4_bl4_10_4_rate_out",{"$f":"'T2-B(PP4)'!$H$286","v":0},"#'T2-B(PP4)'!$H$286"]
["pp4_bl4_10_4_total",{"$f":"'T2-B(PP4)'!$J$286","v":0},"#'T2-B(PP4)'!$J$286"]
["pp4_bl4_10_4_total_in",{"$f":"'T2-B(PP4)'!$F$286","v":0},"#'T2-B(PP4)'!$F$286"]
["pp4_bl4_10_4_total_out",{"$f":"'T2-B(PP4)'!$I$286","v":0},"#'T2-B(PP4)'!$I$286"]
["pp4_bl4_10_4_unit",{"$f":"'T2-B(PP4)'!$C$286","v":0},"#'T2-B(PP4)'!$C$286"]
["pp4_bl4_10_4_unit_in",{"$f":"'T2-B(PP4)'!$D$286","v":0},"#'T2-B(PP4)'!$D$286"]
["pp4_bl4_10_4_units_out",{"$f":"'T2-B(PP4)'!$G$286","v":0},"#'T2-B(PP4)'!$G$286"]
["pp4_bl4_10_5_name",{"$f":"'T2-B(PP4)'!$B$287","v":0},"#'T2-B(PP4)'!$B$287"]
["pp4_bl4_10_5_rate_in",{"$f":"'T2-B(PP4)'!$E$287","v":0},"#'T2-B(PP4)'!$E$287"]
["pp4_bl4_10_5_rate_out",{"$f":"'T2-B(PP4)'!$H$287","v":0},"#'T2-B(PP4)'!$H$287"]
["pp4_bl4_10_5_total",{"$f":"'T2-B(PP4)'!$J$287","v":0},"#'T2-B(PP4)'!$J$287"]
["pp4_bl4_10_5_total_in",{"$f":"'T2-B(PP4)'!$F$287","v":0},"#'T2-B(PP4)'!$F$287"]
["pp4_bl4_10_5_total_out",{"$f":"'T2-B(PP4)'!$I$287","v":0},"#'T2-B(PP4)'!$I$287"]
["pp4_bl4_10_5_unit",{"$f":"'T2-B(PP4)'!$C$287","v":0},"#'T2-B(PP4)'!$C$287"]
["pp4_bl4_10_5_unit_in",{"$f":"'T2-B(PP4)'!$D$287","v":0},"#'T2-B(PP4)'!$D$287"]
["pp4_bl4_10_5_units_out",{"$f":"'T2-B(PP4)'!$G$287","v":0},"#'T2-B(PP4)'!$G$287"]
["pp4_bl4_10_6_name",{"$f":"'T2-B(PP4)'!$B$288","v":0},"#'T2-B(PP4)'!$B$288"]
["pp4_bl4_10_6_rate_in",{"$f":"'T2-B(PP4)'!$E$288","v":0},"#'T2-B(PP4)'!$E$288"]
["pp4_bl4_10_6_rate_out",{"$f":"'T2-B(PP4)'!$H$288","v":0},"#'T2-B(PP4)'!$H$288"]
["pp4_bl4_10_6_total",{"$f":"'T2-B(PP4)'!$J$288","v":0},"#'T2-B(PP4)'!$J$288"]
["pp4_bl4_10_6_total_in",{"$f":"'T2-B(PP4)'!$F$288","v":0},"#'T2-B(PP4)'!$F$288"]
["pp4_bl4_10_6_total_out",{"$f":"'T2-B(PP4)'!$I$288","v":0},"#'T2-B(PP4)'!$I$288"]
["pp4_bl4_10_6_unit",{"$f":"'T2-B(PP4)'!$C$288","v":0},"#'T2-B(PP4)'!$C$288"]
["pp4_bl4_10_6_unit_in",{"$f":"'T2-B(PP4)'!$D$288","v":0},"#'T2-B(PP4)'!$D$288"]
["pp4_bl4_10_6_units_out",{"$f":"'T2-B(PP4)'!$G$288","v":0},"#'T2-B(PP4)'!$G$288"]
["pp4_bl4_10_7_name",{"$f":"'T2-B(PP4)'!$B$289","v":0},"#'T2-B(PP4)'!$B$289"]
["pp4_bl4_10_7_rate_in",{"$f":"'T2-B(PP4)'!$E$289","v":0},"#'T2-B(PP4)'!$E$289"]
["pp4_bl4_10_7_rate_out",{"$f":"'T2-B(PP4)'!$H$289","v":0},"#'T2-B(PP4)'!$H$289"]
["pp4_bl4_10_7_total",{"$f":"'T2-B(PP4)'!$J$289","v":0},"#'T2-B(PP4)'!$J$289"]
["pp4_bl4_10_7_total_in",{"$f":"'T2-B(PP4)'!$F$289","v":0},"#'T2-B(PP4)'!$F$289"]
["pp4_bl4_10_7_total_out",{"$f":"'T2-B(PP4)'!$I$289","v":0},"#'T2-B(PP4)'!$I$289"]
["pp4_bl4_10_7_unit",{"$f":"'T2-B(PP4)'!$C$289","v":0},"#'T2-B(PP4)'!$C$289"]
["pp4_bl4_10_7_unit_in",{"$f":"'T2-B(PP4)'!$D$289","v":0},"#'T2-B(PP4)'!$D$289"]
["pp4_bl4_10_7_units_out",{"$f":"'T2-B(PP4)'!$G$289","v":0},"#'T2-B(PP4)'!$G$289"]
["pp4_bl4_10_8_name",{"$f":"'T2-B(PP4)'!$B$290","v":0},"#'T2-B(PP4)'!$B$290"]
["pp4_bl4_10_8_rate_in",{"$f":"'T2-B(PP4)'!$E$290","v":0},"#'T2-B(PP4)'!$E$290"]
["pp4_bl4_10_8_rate_out",{"$f":"'T2-B(PP4)'!$H$290","v":0},"#'T2-B(PP4)'!$H$290"]
["pp4_bl4_10_8_total",{"$f":"'T2-B(PP4)'!$J$290","v":0},"#'T2-B(PP4)'!$J$290"]
["pp4_bl4_10_8_total_in",{"$f":"'T2-B(PP4)'!$F$290","v":0},"#'T2-B(PP4)'!$F$290"]
["pp4_bl4_10_8_total_out",{"$f":"'T2-B(PP4)'!$I$290","v":0},"#'T2-B(PP4)'!$I$290"]
["pp4_bl4_10_8_unit",{"$f":"'T2-B(PP4)'!$C$290","v":0},"#'T2-B(PP4)'!$C$290"]
["pp4_bl4_10_8_unit_in",{"$f":"'T2-B(PP4)'!$D$290","v":0},"#'T2-B(PP4)'!$D$290"]
["pp4_bl4_10_8_units_out",{"$f":"'T2-B(PP4)'!$G$290","v":0},"#'T2-B(PP4)'!$G$290"]
["pp4_bl4_10_9_name",{"$f":"'T2-B(PP4)'!$B$291","v":0},"#'T2-B(PP4)'!$B$291"]
["pp4_bl4_10_9_rate_in",{"$f":"'T2-B(PP4)'!$E$291","v":0},"#'T2-B(PP4)'!$E$291"]
["pp4_bl4_10_9_rate_out",{"$f":"'T2-B(PP4)'!$H$291","v":0},"#'T2-B(PP4)'!$H$291"]
["pp4_bl4_10_9_total",{"$f":"'T2-B(PP4)'!$J$291","v":0},"#'T2-B(PP4)'!$J$291"]
["pp4_bl4_10_9_total_in",{"$f":"'T2-B(PP4)'!$F$291","v":0},"#'T2-B(PP4)'!$F$291"]
["pp4_bl4_10_9_total_out",{"$f":"'T2-B(PP4)'!$I$291","v":0},"#'T2-B(PP4)'!$I$291"]
["pp4_bl4_10_9_unit",{"$f":"'T2-B(PP4)'!$C$291","v":0},"#'T2-B(PP4)'!$C$291"]
["pp4_bl4_10_9_unit_in",{"$f":"'T2-B(PP4)'!$D$291","v":0},"#'T2-B(PP4)'!$D$291"]
["pp4_bl4_10_9_units_out",{"$f":"'T2-B(PP4)'!$G$291","v":0},"#'T2-B(PP4)'!$G$291"]
["pp4_bl4_10_total",{"$f":"'T2-B(PP4)'!$J$282","v":0},"#'T2-B(PP4)'!$J$282"]
["pp4_bl4_10_total_in",{"$f":"'T2-B(PP4)'!$F$282","v":0},"#'T2-B(PP4)'!$F$282"]
["pp4_bl4_10_total_out",{"$f":"'T2-B(PP4)'!$I$282","v":0},"#'T2-B(PP4)'!$I$282"]
["pp4_bl4_11_1_name",{"$f":"'T2-B(PP4)'!$B$304","v":0},"#'T2-B(PP4)'!$B$304"]
["pp4_bl4_11_1_rate_in",{"$f":"'T2-B(PP4)'!$E$304","v":0},"#'T2-B(PP4)'!$E$304"]
["pp4_bl4_11_1_rate_out",{"$f":"'T2-B(PP4)'!$H$304","v":0},"#'T2-B(PP4)'!$H$304"]
["pp4_bl4_11_1_total",{"$f":"'T2-B(PP4)'!$J$304","v":0},"#'T2-B(PP4)'!$J$304"]
["pp4_bl4_11_1_total_in",{"$f":"'T2-B(PP4)'!$F$304","v":0},"#'T2-B(PP4)'!$F$304"]
["pp4_bl4_11_1_total_out",{"$f":"'T2-B(PP4)'!$I$304","v":0},"#'T2-B(PP4)'!$I$304"]
["pp4_bl4_11_1_unit",{"$f":"'T2-B(PP4)'!$C$304","v":0},"#'T2-B(PP4)'!$C$304"]
["pp4_bl4_11_1_unit_in",{"$f":"'T2-B(PP4)'!$D$304","v":0},"#'T2-B(PP4)'!$D$304"]
["pp4_bl4_11_1_units_out",{"$f":"'T2-B(PP4)'!$G$304","v":0},"#'T2-B(PP4)'!$G$304"]
["pp4_bl4_11_10_name",{"$f":"'T2-B(PP4)'!$B$313","v":0},"#'T2-B(PP4)'!$B$313"]
["pp4_bl4_11_10_rate_in",{"$f":"'T2-B(PP4)'!$E$313","v":0},"#'T2-B(PP4)'!$E$313"]
["pp4_bl4_11_10_rate_out",{"$f":"'T2-B(PP4)'!$H$313","v":0},"#'T2-B(PP4)'!$H$313"]
["pp4_bl4_11_10_total",{"$f":"'T2-B(PP4)'!$J$313","v":0},"#'T2-B(PP4)'!$J$313"]
["pp4_bl4_11_10_total_in",{"$f":"'T2-B(PP4)'!$F$313","v":0},"#'T2-B(PP4)'!$F$313"]
["pp4_bl4_11_10_total_out",{"$f":"'T2-B(PP4)'!$I$313","v":0},"#'T2-B(PP4)'!$I$313"]
["pp4_bl4_11_10_unit",{"$f":"'T2-B(PP4)'!$C$313","v":0},"#'T2-B(PP4)'!$C$313"]
["pp4_bl4_11_10_unit_in",{"$f":"'T2-B(PP4)'!$D$313","v":0},"#'T2-B(PP4)'!$D$313"]
["pp4_bl4_11_10_units_out",{"$f":"'T2-B(PP4)'!$G$313","v":0},"#'T2-B(PP4)'!$G$313"]
["pp4_bl4_11_11_name",{"$f":"'T2-B(PP4)'!$B$314","v":0},"#'T2-B(PP4)'!$B$314"]
["pp4_bl4_11_11_rate_in",{"$f":"'T2-B(PP4)'!$E$314","v":0},"#'T2-B(PP4)'!$E$314"]
["pp4_bl4_11_11_rate_out",{"$f":"'T2-B(PP4)'!$H$314","v":0},"#'T2-B(PP4)'!$H$314"]
["pp4_bl4_11_11_total",{"$f":"'T2-B(PP4)'!$J$314","v":0},"#'T2-B(PP4)'!$J$314"]
["pp4_bl4_11_11_total_in",{"$f":"'T2-B(PP4)'!$F$314","v":0},"#'T2-B(PP4)'!$F$314"]
["pp4_bl4_11_11_total_out",{"$f":"'T2-B(PP4)'!$I$314","v":0},"#'T2-B(PP4)'!$I$314"]
["pp4_bl4_11_11_unit",{"$f":"'T2-B(PP4)'!$C$314","v":0},"#'T2-B(PP4)'!$C$314"]
["pp4_bl4_11_11_unit_in",{"$f":"'T2-B(PP4)'!$D$314","v":0},"#'T2-B(PP4)'!$D$314"]
["pp4_bl4_11_11_units_out",{"$f":"'T2-B(PP4)'!$G$314","v":0},"#'T2-B(PP4)'!$G$314"]
["pp4_bl4_11_12_name",{"$f":"'T2-B(PP4)'!$B$315","v":0},"#'T2-B(PP4)'!$B$315"]
["pp4_bl4_11_12_rate_in",{"$f":"'T2-B(PP4)'!$E$315","v":0},"#'T2-B(PP4)'!$E$315"]
["pp4_bl4_11_12_rate_out",{"$f":"'T2-B(PP4)'!$H$315","v":0},"#'T2-B(PP4)'!$H$315"]
["pp4_bl4_11_12_total",{"$f":"'T2-B(PP4)'!$J$315","v":0},"#'T2-B(PP4)'!$J$315"]
["pp4_bl4_11_12_total_in",{"$f":"'T2-B(PP4)'!$F$315","v":0},"#'T2-B(PP4)'!$F$315"]
["pp4_bl4_11_12_total_out",{"$f":"'T2-B(PP4)'!$I$315","v":0},"#'T2-B(PP4)'!$I$315"]
["pp4_bl4_11_12_unit",{"$f":"'T2-B(PP4)'!$C$315","v":0},"#'T2-B(PP4)'!$C$315"]
["pp4_bl4_11_12_unit_in",{"$f":"'T2-B(PP4)'!$D$315","v":0},"#'T2-B(PP4)'!$D$315"]
["pp4_bl4_11_12_units_out",{"$f":"'T2-B(PP4)'!$G$315","v":0},"#'T2-B(PP4)'!$G$315"]
["pp4_bl4_11_13_name",{"$f":"'T2-B(PP4)'!$B$316","v":0},"#'T2-B(PP4)'!$B$316"]
["pp4_bl4_11_13_rate_in",{"$f":"'T2-B(PP4)'!$E$316","v":0},"#'T2-B(PP4)'!$E$316"]
["pp4_bl4_11_13_rate_out",{"$f":"'T2-B(PP4)'!$H$316","v":0},"#'T2-B(PP4)'!$H$316"]
["pp4_bl4_11_13_total",{"$f":"'T2-B(PP4)'!$J$316","v":0},"#'T2-B(PP4)'!$J$316"]
["pp4_bl4_11_13_total_in",{"$f":"'T2-B(PP4)'!$F$316","v":0},"#'T2-B(PP4)'!$F$316"]
["pp4_bl4_11_13_total_out",{"$f":"'T2-B(PP4)'!$I$316","v":0},"#'T2-B(PP4)'!$I$316"]
["pp4_bl4_11_13_unit",{"$f":"'T2-B(PP4)'!$C$316","v":0},"#'T2-B(PP4)'!$C$316"]
["pp4_bl4_11_13_unit_in",{"$f":"'T2-B(PP4)'!$D$316","v":0},"#'T2-B(PP4)'!$D$316"]
["pp4_bl4_11_13_units_out",{"$f":"'T2-B(PP4)'!$G$316","v":0},"#'T2-B(PP4)'!$G$316"]
["pp4_bl4_11_14_name",{"$f":"'T2-B(PP4)'!$B$317","v":0},"#'T2-B(PP4)'!$B$317"]
["pp4_bl4_11_14_rate_in",{"$f":"'T2-B(PP4)'!$E$317","v":0},"#'T2-B(PP4)'!$E$317"]
["pp4_bl4_11_14_rate_out",{"$f":"'T2-B(PP4)'!$H$317","v":0},"#'T2-B(PP4)'!$H$317"]
["pp4_bl4_11_14_total",{"$f":"'T2-B(PP4)'!$J$317","v":0},"#'T2-B(PP4)'!$J$317"]
["pp4_bl4_11_14_total_in",{"$f":"'T2-B(PP4)'!$F$317","v":0},"#'T2-B(PP4)'!$F$317"]
["pp4_bl4_11_14_total_out",{"$f":"'T2-B(PP4)'!$I$317","v":0},"#'T2-B(PP4)'!$I$317"]
["pp4_bl4_11_14_unit",{"$f":"'T2-B(PP4)'!$C$317","v":0},"#'T2-B(PP4)'!$C$317"]
["pp4_bl4_11_14_unit_in",{"$f":"'T2-B(PP4)'!$D$317","v":0},"#'T2-B(PP4)'!$D$317"]
["pp4_bl4_11_14_units_out",{"$f":"'T2-B(PP4)'!$G$317","v":0},"#'T2-B(PP4)'!$G$317"]
["pp4_bl4_11_15_name",{"$f":"'T2-B(PP4)'!$B$318","v":0},"#'T2-B(PP4)'!$B$318"]
["pp4_bl4_11_15_rate_in",{"$f":"'T2-B(PP4)'!$E$318","v":0},"#'T2-B(PP4)'!$E$318"]
["pp4_bl4_11_15_rate_out",{"$f":"'T2-B(PP4)'!$H$318","v":0},"#'T2-B(PP4)'!$H$318"]
["pp4_bl4_11_15_total",{"$f":"'T2-B(PP4)'!$J$318","v":0},"#'T2-B(PP4)'!$J$318"]
["pp4_bl4_11_15_total_in",{"$f":"'T2-B(PP4)'!$F$318","v":0},"#'T2-B(PP4)'!$F$318"]
["pp4_bl4_11_15_total_out",{"$f":"'T2-B(PP4)'!$I$318","v":0},"#'T2-B(PP4)'!$I$318"]
["pp4_bl4_11_15_unit",{"$f":"'T2-B(PP4)'!$C$318","v":0},"#'T2-B(PP4)'!$C$318"]
["pp4_bl4_11_15_unit_in",{"$f":"'T2-B(PP4)'!$D$318","v":0},"#'T2-B(PP4)'!$D$318"]
["pp4_bl4_11_15_units_out",{"$f":"'T2-B(PP4)'!$G$318","v":0},"#'T2-B(PP4)'!$G$318"]
["pp4_bl4_11_16_name",{"$f":"'T2-B(PP4)'!$B$319","v":0},"#'T2-B(PP4)'!$B$319"]
["pp4_bl4_11_16_rate_in",{"$f":"'T2-B(PP4)'!$E$319","v":0},"#'T2-B(PP4)'!$E$319"]
["pp4_bl4_11_16_rate_out",{"$f":"'T2-B(PP4)'!$H$319","v":0},"#'T2-B(PP4)'!$H$319"]
["pp4_bl4_11_16_total",{"$f":"'T2-B(PP4)'!$J$319","v":0},"#'T2-B(PP4)'!$J$319"]
["pp4_bl4_11_16_total_in",{"$f":"'T2-B(PP4)'!$F$319","v":0},"#'T2-B(PP4)'!$F$319"]
["pp4_bl4_11_16_total_out",{"$f":"'T2-B(PP4)'!$I$319","v":0},"#'T2-B(PP4)'!$I$319"]
["pp4_bl4_11_16_unit",{"$f":"'T2-B(PP4)'!$C$319","v":0},"#'T2-B(PP4)'!$C$319"]
["pp4_bl4_11_16_unit_in",{"$f":"'T2-B(PP4)'!$D$319","v":0},"#'T2-B(PP4)'!$D$319"]
["pp4_bl4_11_16_units_out",{"$f":"'T2-B(PP4)'!$G$319","v":0},"#'T2-B(PP4)'!$G$319"]
["pp4_bl4_11_17_name",{"$f":"'T2-B(PP4)'!$B$320","v":0},"#'T2-B(PP4)'!$B$320"]
["pp4_bl4_11_17_rate_in",{"$f":"'T2-B(PP4)'!$E$320","v":0},"#'T2-B(PP4)'!$E$320"]
["pp4_bl4_11_17_rate_out",{"$f":"'T2-B(PP4)'!$H$320","v":0},"#'T2-B(PP4)'!$H$320"]
["pp4_bl4_11_17_total",{"$f":"'T2-B(PP4)'!$J$320","v":0},"#'T2-B(PP4)'!$J$320"]
["pp4_bl4_11_17_total_in",{"$f":"'T2-B(PP4)'!$F$320","v":0},"#'T2-B(PP4)'!$F$320"]
["pp4_bl4_11_17_total_out",{"$f":"'T2-B(PP4)'!$I$320","v":0},"#'T2-B(PP4)'!$I$320"]
["pp4_bl4_11_17_unit",{"$f":"'T2-B(PP4)'!$C$320","v":0},"#'T2-B(PP4)'!$C$320"]
["pp4_bl4_11_17_unit_in",{"$f":"'T2-B(PP4)'!$D$320","v":0},"#'T2-B(PP4)'!$D$320"]
["pp4_bl4_11_17_units_out",{"$f":"'T2-B(PP4)'!$G$320","v":0},"#'T2-B(PP4)'!$G$320"]
["pp4_bl4_11_18_name",{"$f":"'T2-B(PP4)'!$B$321","v":0},"#'T2-B(PP4)'!$B$321"]
["pp4_bl4_11_18_rate_in",{"$f":"'T2-B(PP4)'!$E$321","v":0},"#'T2-B(PP4)'!$E$321"]
["pp4_bl4_11_18_rate_out",{"$f":"'T2-B(PP4)'!$H$321","v":0},"#'T2-B(PP4)'!$H$321"]
["pp4_bl4_11_18_total",{"$f":"'T2-B(PP4)'!$J$321","v":0},"#'T2-B(PP4)'!$J$321"]
["pp4_bl4_11_18_total_in",{"$f":"'T2-B(PP4)'!$F$321","v":0},"#'T2-B(PP4)'!$F$321"]
["pp4_bl4_11_18_total_out",{"$f":"'T2-B(PP4)'!$I$321","v":0},"#'T2-B(PP4)'!$I$321"]
["pp4_bl4_11_18_unit",{"$f":"'T2-B(PP4)'!$C$321","v":0},"#'T2-B(PP4)'!$C$321"]
["pp4_bl4_11_18_unit_in",{"$f":"'T2-B(PP4)'!$D$321","v":0},"#'T2-B(PP4)'!$D$321"]
["pp4_bl4_11_18_units_out",{"$f":"'T2-B(PP4)'!$G$321","v":0},"#'T2-B(PP4)'!$G$321"]
["pp4_bl4_11_19_name",{"$f":"'T2-B(PP4)'!$B$322","v":0},"#'T2-B(PP4)'!$B$322"]
["pp4_bl4_11_19_rate_in",{"$f":"'T2-B(PP4)'!$E$322","v":0},"#'T2-B(PP4)'!$E$322"]
["pp4_bl4_11_19_rate_out",{"$f":"'T2-B(PP4)'!$H$322","v":0},"#'T2-B(PP4)'!$H$322"]
["pp4_bl4_11_19_total",{"$f":"'T2-B(PP4)'!$J$322","v":0},"#'T2-B(PP4)'!$J$322"]
["pp4_bl4_11_19_total_in",{"$f":"'T2-B(PP4)'!$F$322","v":0},"#'T2-B(PP4)'!$F$322"]
["pp4_bl4_11_19_total_out",{"$f":"'T2-B(PP4)'!$I$322","v":0},"#'T2-B(PP4)'!$I$322"]
["pp4_bl4_11_19_unit",{"$f":"'T2-B(PP4)'!$C$322","v":0},"#'T2-B(PP4)'!$C$322"]
["pp4_bl4_11_19_unit_in",{"$f":"'T2-B(PP4)'!$D$322","v":0},"#'T2-B(PP4)'!$D$322"]
["pp4_bl4_11_19_units_out",{"$f":"'T2-B(PP4)'!$G$322","v":0},"#'T2-B(PP4)'!$G$322"]
["pp4_bl4_11_2_name",{"$f":"'T2-B(PP4)'!$B$305","v":0},"#'T2-B(PP4)'!$B$305"]
["pp4_bl4_11_2_rate_in",{"$f":"'T2-B(PP4)'!$E$305","v":0},"#'T2-B(PP4)'!$E$305"]
["pp4_bl4_11_2_rate_out",{"$f":"'T2-B(PP4)'!$H$305","v":0},"#'T2-B(PP4)'!$H$305"]
["pp4_bl4_11_2_total",{"$f":"'T2-B(PP4)'!$J$305","v":0},"#'T2-B(PP4)'!$J$305"]
["pp4_bl4_11_2_total_in",{"$f":"'T2-B(PP4)'!$F$305","v":0},"#'T2-B(PP4)'!$F$305"]
["pp4_bl4_11_2_total_out",{"$f":"'T2-B(PP4)'!$I$305","v":0},"#'T2-B(PP4)'!$I$305"]
["pp4_bl4_11_2_unit",{"$f":"'T2-B(PP4)'!$C$305","v":0},"#'T2-B(PP4)'!$C$305"]
["pp4_bl4_11_2_unit_in",{"$f":"'T2-B(PP4)'!$D$305","v":0},"#'T2-B(PP4)'!$D$305"]
["pp4_bl4_11_2_units_out",{"$f":"'T2-B(PP4)'!$G$305","v":0},"#'T2-B(PP4)'!$G$305"]
["pp4_bl4_11_20_name",{"$f":"'T2-B(PP4)'!$B$323","v":0},"#'T2-B(PP4)'!$B$323"]
["pp4_bl4_11_20_rate_in",{"$f":"'T2-B(PP4)'!$E$323","v":0},"#'T2-B(PP4)'!$E$323"]
["pp4_bl4_11_20_rate_out",{"$f":"'T2-B(PP4)'!$H$323","v":0},"#'T2-B(PP4)'!$H$323"]
["pp4_bl4_11_20_total",{"$f":"'T2-B(PP4)'!$J$323","v":0},"#'T2-B(PP4)'!$J$323"]
["pp4_bl4_11_20_total_in",{"$f":"'T2-B(PP4)'!$F$323","v":0},"#'T2-B(PP4)'!$F$323"]
["pp4_bl4_11_20_total_out",{"$f":"'T2-B(PP4)'!$I$323","v":0},"#'T2-B(PP4)'!$I$323"]
["pp4_bl4_11_20_unit",{"$f":"'T2-B(PP4)'!$C$323","v":0},"#'T2-B(PP4)'!$C$323"]
["pp4_bl4_11_20_unit_in",{"$f":"'T2-B(PP4)'!$D$323","v":0},"#'T2-B(PP4)'!$D$323"]
["pp4_bl4_11_20_units_out",{"$f":"'T2-B(PP4)'!$G$323","v":0},"#'T2-B(PP4)'!$G$323"]
["pp4_bl4_11_3_name",{"$f":"'T2-B(PP4)'!$B$306","v":0},"#'T2-B(PP4)'!$B$306"]
["pp4_bl4_11_3_rate_in",{"$f":"'T2-B(PP4)'!$E$306","v":0},"#'T2-B(PP4)'!$E$306"]
["pp4_bl4_11_3_rate_out",{"$f":"'T2-B(PP4)'!$H$306","v":0},"#'T2-B(PP4)'!$H$306"]
["pp4_bl4_11_3_total",{"$f":"'T2-B(PP4)'!$J$306","v":0},"#'T2-B(PP4)'!$J$306"]
["pp4_bl4_11_3_total_in",{"$f":"'T2-B(PP4)'!$F$306","v":0},"#'T2-B(PP4)'!$F$306"]
["pp4_bl4_11_3_total_out",{"$f":"'T2-B(PP4)'!$I$306","v":0},"#'T2-B(PP4)'!$I$306"]
["pp4_bl4_11_3_unit",{"$f":"'T2-B(PP4)'!$C$306","v":0},"#'T2-B(PP4)'!$C$306"]
["pp4_bl4_11_3_unit_in",{"$f":"'T2-B(PP4)'!$D$306","v":0},"#'T2-B(PP4)'!$D$306"]
["pp4_bl4_11_3_units_out",{"$f":"'T2-B(PP4)'!$G$306","v":0},"#'T2-B(PP4)'!$G$306"]
["pp4_bl4_11_4_name",{"$f":"'T2-B(PP4)'!$B$307","v":0},"#'T2-B(PP4)'!$B$307"]
["pp4_bl4_11_4_rate_in",{"$f":"'T2-B(PP4)'!$E$307","v":0},"#'T2-B(PP4)'!$E$307"]
["pp4_bl4_11_4_rate_out",{"$f":"'T2-B(PP4)'!$H$307","v":0},"#'T2-B(PP4)'!$H$307"]
["pp4_bl4_11_4_total",{"$f":"'T2-B(PP4)'!$J$307","v":0},"#'T2-B(PP4)'!$J$307"]
["pp4_bl4_11_4_total_in",{"$f":"'T2-B(PP4)'!$F$307","v":0},"#'T2-B(PP4)'!$F$307"]
["pp4_bl4_11_4_total_out",{"$f":"'T2-B(PP4)'!$I$307","v":0},"#'T2-B(PP4)'!$I$307"]
["pp4_bl4_11_4_unit",{"$f":"'T2-B(PP4)'!$C$307","v":0},"#'T2-B(PP4)'!$C$307"]
["pp4_bl4_11_4_unit_in",{"$f":"'T2-B(PP4)'!$D$307","v":0},"#'T2-B(PP4)'!$D$307"]
["pp4_bl4_11_4_units_out",{"$f":"'T2-B(PP4)'!$G$307","v":0},"#'T2-B(PP4)'!$G$307"]
["pp4_bl4_11_5_name",{"$f":"'T2-B(PP4)'!$B$308","v":0},"#'T2-B(PP4)'!$B$308"]
["pp4_bl4_11_5_rate_in",{"$f":"'T2-B(PP4)'!$E$308","v":0},"#'T2-B(PP4)'!$E$308"]
["pp4_bl4_11_5_rate_out",{"$f":"'T2-B(PP4)'!$H$308","v":0},"#'T2-B(PP4)'!$H$308"]
["pp4_bl4_11_5_total",{"$f":"'T2-B(PP4)'!$J$308","v":0},"#'T2-B(PP4)'!$J$308"]
["pp4_bl4_11_5_total_in",{"$f":"'T2-B(PP4)'!$F$308","v":0},"#'T2-B(PP4)'!$F$308"]
["pp4_bl4_11_5_total_out",{"$f":"'T2-B(PP4)'!$I$308","v":0},"#'T2-B(PP4)'!$I$308"]
["pp4_bl4_11_5_unit",{"$f":"'T2-B(PP4)'!$C$308","v":0},"#'T2-B(PP4)'!$C$308"]
["pp4_bl4_11_5_unit_in",{"$f":"'T2-B(PP4)'!$D$308","v":0},"#'T2-B(PP4)'!$D$308"]
["pp4_bl4_11_5_units_out",{"$f":"'T2-B(PP4)'!$G$308","v":0},"#'T2-B(PP4)'!$G$308"]
["pp4_bl4_11_6_name",{"$f":"'T2-B(PP4)'!$B$309","v":0},"#'T2-B(PP4)'!$B$309"]
["pp4_bl4_11_6_rate_in",{"$f":"'T2-B(PP4)'!$E$309","v":0},"#'T2-B(PP4)'!$E$309"]
["pp4_bl4_11_6_rate_out",{"$f":"'T2-B(PP4)'!$H$309","v":0},"#'T2-B(PP4)'!$H$309"]
["pp4_bl4_11_6_total",{"$f":"'T2-B(PP4)'!$J$309","v":0},"#'T2-B(PP4)'!$J$309"]
["pp4_bl4_11_6_total_in",{"$f":"'T2-B(PP4)'!$F$309","v":0},"#'T2-B(PP4)'!$F$309"]
["pp4_bl4_11_6_total_out",{"$f":"'T2-B(PP4)'!$I$309","v":0},"#'T2-B(PP4)'!$I$309"]
["pp4_bl4_11_6_unit",{"$f":"'T2-B(PP4)'!$C$309","v":0},"#'T2-B(PP4)'!$C$309"]
["pp4_bl4_11_6_unit_in",{"$f":"'T2-B(PP4)'!$D$309","v":0},"#'T2-B(PP4)'!$D$309"]
["pp4_bl4_11_6_units_out",{"$f":"'T2-B(PP4)'!$G$309","v":0},"#'T2-B(PP4)'!$G$309"]
["pp4_bl4_11_7_name",{"$f":"'T2-B(PP4)'!$B$310","v":0},"#'T2-B(PP4)'!$B$310"]
["pp4_bl4_11_7_rate_in",{"$f":"'T2-B(PP4)'!$E$310","v":0},"#'T2-B(PP4)'!$E$310"]
["pp4_bl4_11_7_rate_out",{"$f":"'T2-B(PP4)'!$H$310","v":0},"#'T2-B(PP4)'!$H$310"]
["pp4_bl4_11_7_total",{"$f":"'T2-B(PP4)'!$J$310","v":0},"#'T2-B(PP4)'!$J$310"]
["pp4_bl4_11_7_total_in",{"$f":"'T2-B(PP4)'!$F$310","v":0},"#'T2-B(PP4)'!$F$310"]
["pp4_bl4_11_7_total_out",{"$f":"'T2-B(PP4)'!$I$310","v":0},"#'T2-B(PP4)'!$I$310"]
["pp4_bl4_11_7_unit",{"$f":"'T2-B(PP4)'!$C$310","v":0},"#'T2-B(PP4)'!$C$310"]
["pp4_bl4_11_7_unit_in",{"$f":"'T2-B(PP4)'!$D$310","v":0},"#'T2-B(PP4)'!$D$310"]
["pp4_bl4_11_7_units_out",{"$f":"'T2-B(PP4)'!$G$310","v":0},"#'T2-B(PP4)'!$G$310"]
["pp4_bl4_11_8_name",{"$f":"'T2-B(PP4)'!$B$311","v":0},"#'T2-B(PP4)'!$B$311"]
["pp4_bl4_11_8_rate_in",{"$f":"'T2-B(PP4)'!$E$311","v":0},"#'T2-B(PP4)'!$E$311"]
["pp4_bl4_11_8_rate_out",{"$f":"'T2-B(PP4)'!$H$311","v":0},"#'T2-B(PP4)'!$H$311"]
["pp4_bl4_11_8_total",{"$f":"'T2-B(PP4)'!$J$311","v":0},"#'T2-B(PP4)'!$J$311"]
["pp4_bl4_11_8_total_in",{"$f":"'T2-B(PP4)'!$F$311","v":0},"#'T2-B(PP4)'!$F$311"]
["pp4_bl4_11_8_total_out",{"$f":"'T2-B(PP4)'!$I$311","v":0},"#'T2-B(PP4)'!$I$311"]
["pp4_bl4_11_8_unit",{"$f":"'T2-B(PP4)'!$C$311","v":0},"#'T2-B(PP4)'!$C$311"]
["pp4_bl4_11_8_unit_in",{"$f":"'T2-B(PP4)'!$D$311","v":0},"#'T2-B(PP4)'!$D$311"]
["pp4_bl4_11_8_units_out",{"$f":"'T2-B(PP4)'!$G$311","v":0},"#'T2-B(PP4)'!$G$311"]
["pp4_bl4_11_9_name",{"$f":"'T2-B(PP4)'!$B$312","v":0},"#'T2-B(PP4)'!$B$312"]
["pp4_bl4_11_9_rate_in",{"$f":"'T2-B(PP4)'!$E$312","v":0},"#'T2-B(PP4)'!$E$312"]
["pp4_bl4_11_9_rate_out",{"$f":"'T2-B(PP4)'!$H$312","v":0},"#'T2-B(PP4)'!$H$312"]
["pp4_bl4_11_9_total",{"$f":"'T2-B(PP4)'!$J$312","v":0},"#'T2-B(PP4)'!$J$312"]
["pp4_bl4_11_9_total_in",{"$f":"'T2-B(PP4)'!$F$312","v":0},"#'T2-B(PP4)'!$F$312"]
["pp4_bl4_11_9_total_out",{"$f":"'T2-B(PP4)'!$I$312","v":0},"#'T2-B(PP4)'!$I$312"]
["pp4_bl4_11_9_unit",{"$f":"'T2-B(PP4)'!$C$312","v":0},"#'T2-B(PP4)'!$C$312"]
["pp4_bl4_11_9_unit_in",{"$f":"'T2-B(PP4)'!$D$312","v":0},"#'T2-B(PP4)'!$D$312"]
["pp4_bl4_11_9_units_out",{"$f":"'T2-B(PP4)'!$G$312","v":0},"#'T2-B(PP4)'!$G$312"]
["pp4_bl4_11_total",{"$f":"'T2-B(PP4)'!$J$303","v":0},"#'T2-B(PP4)'!$J$303"]
["pp4_bl4_11_total_in",{"$f":"'T2-B(PP4)'!$F$303","v":0},"#'T2-B(PP4)'!$F$303"]
["pp4_bl4_11_total_out",{"$f":"'T2-B(PP4)'!$I$303","v":0},"#'T2-B(PP4)'!$I$303"]
["pp4_bl4_12_1_name",{"$f":"'T2-B(PP4)'!$B$325","v":0},"#'T2-B(PP4)'!$B$325"]
["pp4_bl4_12_1_rate_in",{"$f":"'T2-B(PP4)'!$E$325","v":0},"#'T2-B(PP4)'!$E$325"]
["pp4_bl4_12_1_rate_out",{"$f":"'T2-B(PP4)'!$H$325","v":0},"#'T2-B(PP4)'!$H$325"]
["pp4_bl4_12_1_total",{"$f":"'T2-B(PP4)'!$J$325","v":0},"#'T2-B(PP4)'!$J$325"]
["pp4_bl4_12_1_total_in",{"$f":"'T2-B(PP4)'!$F$325","v":0},"#'T2-B(PP4)'!$F$325"]
["pp4_bl4_12_1_total_out",{"$f":"'T2-B(PP4)'!$I$325","v":0},"#'T2-B(PP4)'!$I$325"]
["pp4_bl4_12_1_unit",{"$f":"'T2-B(PP4)'!$C$325","v":0},"#'T2-B(PP4)'!$C$325"]
["pp4_bl4_12_1_unit_in",{"$f":"'T2-B(PP4)'!$D$325","v":0},"#'T2-B(PP4)'!$D$325"]
["pp4_bl4_12_1_units_out",{"$f":"'T2-B(PP4)'!$G$325","v":0},"#'T2-B(PP4)'!$G$325"]
["pp4_bl4_12_10_name",{"$f":"'T2-B(PP4)'!$B$334","v":0},"#'T2-B(PP4)'!$B$334"]
["pp4_bl4_12_10_rate_in",{"$f":"'T2-B(PP4)'!$E$334","v":0},"#'T2-B(PP4)'!$E$334"]
["pp4_bl4_12_10_rate_out",{"$f":"'T2-B(PP4)'!$H$334","v":0},"#'T2-B(PP4)'!$H$334"]
["pp4_bl4_12_10_total",{"$f":"'T2-B(PP4)'!$J$334","v":0},"#'T2-B(PP4)'!$J$334"]
["pp4_bl4_12_10_total_in",{"$f":"'T2-B(PP4)'!$F$334","v":0},"#'T2-B(PP4)'!$F$334"]
["pp4_bl4_12_10_total_out",{"$f":"'T2-B(PP4)'!$I$334","v":0},"#'T2-B(PP4)'!$I$334"]
["pp4_bl4_12_10_unit",{"$f":"'T2-B(PP4)'!$C$334","v":0},"#'T2-B(PP4)'!$C$334"]
["pp4_bl4_12_10_unit_in",{"$f":"'T2-B(PP4)'!$D$334","v":0},"#'T2-B(PP4)'!$D$334"]
["pp4_bl4_12_10_units_out",{"$f":"'T2-B(PP4)'!$G$334","v":0},"#'T2-B(PP4)'!$G$334"]
["pp4_bl4_12_11_name",{"$f":"'T2-B(PP4)'!$B$335","v":0},"#'T2-B(PP4)'!$B$335"]
["pp4_bl4_12_11_rate_in",{"$f":"'T2-B(PP4)'!$E$335","v":0},"#'T2-B(PP4)'!$E$335"]
["pp4_bl4_12_11_rate_out",{"$f":"'T2-B(PP4)'!$H$335","v":0},"#'T2-B(PP4)'!$H$335"]
["pp4_bl4_12_11_total",{"$f":"'T2-B(PP4)'!$J$335","v":0},"#'T2-B(PP4)'!$J$335"]
["pp4_bl4_12_11_total_in",{"$f":"'T2-B(PP4)'!$F$335","v":0},"#'T2-B(PP4)'!$F$335"]
["pp4_bl4_12_11_total_out",{"$f":"'T2-B(PP4)'!$I$335","v":0},"#'T2-B(PP4)'!$I$335"]
["pp4_bl4_12_11_unit",{"$f":"'T2-B(PP4)'!$C$335","v":0},"#'T2-B(PP4)'!$C$335"]
["pp4_bl4_12_11_unit_in",{"$f":"'T2-B(PP4)'!$D$335","v":0},"#'T2-B(PP4)'!$D$335"]
["pp4_bl4_12_11_units_out",{"$f":"'T2-B(PP4)'!$G$335","v":0},"#'T2-B(PP4)'!$G$335"]
["pp4_bl4_12_12_name",{"$f":"'T2-B(PP4)'!$B$336","v":0},"#'T2-B(PP4)'!$B$336"]
["pp4_bl4_12_12_rate_in",{"$f":"'T2-B(PP4)'!$E$336","v":0},"#'T2-B(PP4)'!$E$336"]
["pp4_bl4_12_12_rate_out",{"$f":"'T2-B(PP4)'!$H$336","v":0},"#'T2-B(PP4)'!$H$336"]
["pp4_bl4_12_12_total",{"$f":"'T2-B(PP4)'!$J$336","v":0},"#'T2-B(PP4)'!$J$336"]
["pp4_bl4_12_12_total_in",{"$f":"'T2-B(PP4)'!$F$336","v":0},"#'T2-B(PP4)'!$F$336"]
["pp4_bl4_12_12_total_out",{"$f":"'T2-B(PP4)'!$I$336","v":0},"#'T2-B(PP4)'!$I$336"]
["pp4_bl4_12_12_unit",{"$f":"'T2-B(PP4)'!$C$336","v":0},"#'T2-B(PP4)'!$C$336"]
["pp4_bl4_12_12_unit_in",{"$f":"'T2-B(PP4)'!$D$336","v":0},"#'T2-B(PP4)'!$D$336"]
["pp4_bl4_12_12_units_out",{"$f":"'T2-B(PP4)'!$G$336","v":0},"#'T2-B(PP4)'!$G$336"]
["pp4_bl4_12_13_name",{"$f":"'T2-B(PP4)'!$B$337","v":0},"#'T2-B(PP4)'!$B$337"]
["pp4_bl4_12_13_rate_in",{"$f":"'T2-B(PP4)'!$E$337","v":0},"#'T2-B(PP4)'!$E$337"]
["pp4_bl4_12_13_rate_out",{"$f":"'T2-B(PP4)'!$H$337","v":0},"#'T2-B(PP4)'!$H$337"]
["pp4_bl4_12_13_total",{"$f":"'T2-B(PP4)'!$J$337","v":0},"#'T2-B(PP4)'!$J$337"]
["pp4_bl4_12_13_total_in",{"$f":"'T2-B(PP4)'!$F$337","v":0},"#'T2-B(PP4)'!$F$337"]
["pp4_bl4_12_13_total_out",{"$f":"'T2-B(PP4)'!$I$337","v":0},"#'T2-B(PP4)'!$I$337"]
["pp4_bl4_12_13_unit",{"$f":"'T2-B(PP4)'!$C$337","v":0},"#'T2-B(PP4)'!$C$337"]
["pp4_bl4_12_13_unit_in",{"$f":"'T2-B(PP4)'!$D$337","v":0},"#'T2-B(PP4)'!$D$337"]
["pp4_bl4_12_13_units_out",{"$f":"'T2-B(PP4)'!$G$337","v":0},"#'T2-B(PP4)'!$G$337"]
["pp4_bl4_12_14_name",{"$f":"'T2-B(PP4)'!$B$338","v":0},"#'T2-B(PP4)'!$B$338"]
["pp4_bl4_12_14_rate_in",{"$f":"'T2-B(PP4)'!$E$338","v":0},"#'T2-B(PP4)'!$E$338"]
["pp4_bl4_12_14_rate_out",{"$f":"'T2-B(PP4)'!$H$338","v":0},"#'T2-B(PP4)'!$H$338"]
["pp4_bl4_12_14_total",{"$f":"'T2-B(PP4)'!$J$338","v":0},"#'T2-B(PP4)'!$J$338"]
["pp4_bl4_12_14_total_in",{"$f":"'T2-B(PP4)'!$F$338","v":0},"#'T2-B(PP4)'!$F$338"]
["pp4_bl4_12_14_total_out",{"$f":"'T2-B(PP4)'!$I$338","v":0},"#'T2-B(PP4)'!$I$338"]
["pp4_bl4_12_14_unit",{"$f":"'T2-B(PP4)'!$C$338","v":0},"#'T2-B(PP4)'!$C$338"]
["pp4_bl4_12_14_unit_in",{"$f":"'T2-B(PP4)'!$D$338","v":0},"#'T2-B(PP4)'!$D$338"]
["pp4_bl4_12_14_units_out",{"$f":"'T2-B(PP4)'!$G$338","v":0},"#'T2-B(PP4)'!$G$338"]
["pp4_bl4_12_15_name",{"$f":"'T2-B(PP4)'!$B$339","v":0},"#'T2-B(PP4)'!$B$339"]
["pp4_bl4_12_15_rate_in",{"$f":"'T2-B(PP4)'!$E$339","v":0},"#'T2-B(PP4)'!$E$339"]
["pp4_bl4_12_15_rate_out",{"$f":"'T2-B(PP4)'!$H$339","v":0},"#'T2-B(PP4)'!$H$339"]
["pp4_bl4_12_15_total",{"$f":"'T2-B(PP4)'!$J$339","v":0},"#'T2-B(PP4)'!$J$339"]
["pp4_bl4_12_15_total_in",{"$f":"'T2-B(PP4)'!$F$339","v":0},"#'T2-B(PP4)'!$F$339"]
["pp4_bl4_12_15_total_out",{"$f":"'T2-B(PP4)'!$I$339","v":0},"#'T2-B(PP4)'!$I$339"]
["pp4_bl4_12_15_unit",{"$f":"'T2-B(PP4)'!$C$339","v":0},"#'T2-B(PP4)'!$C$339"]
["pp4_bl4_12_15_unit_in",{"$f":"'T2-B(PP4)'!$D$339","v":0},"#'T2-B(PP4)'!$D$339"]
["pp4_bl4_12_15_units_out",{"$f":"'T2-B(PP4)'!$G$339","v":0},"#'T2-B(PP4)'!$G$339"]
["pp4_bl4_12_16_name",{"$f":"'T2-B(PP4)'!$B$340","v":0},"#'T2-B(PP4)'!$B$340"]
["pp4_bl4_12_16_rate_in",{"$f":"'T2-B(PP4)'!$E$340","v":0},"#'T2-B(PP4)'!$E$340"]
["pp4_bl4_12_16_rate_out",{"$f":"'T2-B(PP4)'!$H$340","v":0},"#'T2-B(PP4)'!$H$340"]
["pp4_bl4_12_16_total",{"$f":"'T2-B(PP4)'!$J$340","v":0},"#'T2-B(PP4)'!$J$340"]
["pp4_bl4_12_16_total_in",{"$f":"'T2-B(PP4)'!$F$340","v":0},"#'T2-B(PP4)'!$F$340"]
["pp4_bl4_12_16_total_out",{"$f":"'T2-B(PP4)'!$I$340","v":0},"#'T2-B(PP4)'!$I$340"]
["pp4_bl4_12_16_unit",{"$f":"'T2-B(PP4)'!$C$340","v":0},"#'T2-B(PP4)'!$C$340"]
["pp4_bl4_12_16_unit_in",{"$f":"'T2-B(PP4)'!$D$340","v":0},"#'T2-B(PP4)'!$D$340"]
["pp4_bl4_12_16_units_out",{"$f":"'T2-B(PP4)'!$G$340","v":0},"#'T2-B(PP4)'!$G$340"]
["pp4_bl4_12_17_name",{"$f":"'T2-B(PP4)'!$B$341","v":0},"#'T2-B(PP4)'!$B$341"]
["pp4_bl4_12_17_rate_in",{"$f":"'T2-B(PP4)'!$E$341","v":0},"#'T2-B(PP4)'!$E$341"]
["pp4_bl4_12_17_rate_out",{"$f":"'T2-B(PP4)'!$H$341","v":0},"#'T2-B(PP4)'!$H$341"]
["pp4_bl4_12_17_total",{"$f":"'T2-B(PP4)'!$J$341","v":0},"#'T2-B(PP4)'!$J$341"]
["pp4_bl4_12_17_total_in",{"$f":"'T2-B(PP4)'!$F$341","v":0},"#'T2-B(PP4)'!$F$341"]
["pp4_bl4_12_17_total_out",{"$f":"'T2-B(PP4)'!$I$341","v":0},"#'T2-B(PP4)'!$I$341"]
["pp4_bl4_12_17_unit",{"$f":"'T2-B(PP4)'!$C$341","v":0},"#'T2-B(PP4)'!$C$341"]
["pp4_bl4_12_17_unit_in",{"$f":"'T2-B(PP4)'!$D$341","v":0},"#'T2-B(PP4)'!$D$341"]
["pp4_bl4_12_17_units_out",{"$f":"'T2-B(PP4)'!$G$341","v":0},"#'T2-B(PP4)'!$G$341"]
["pp4_bl4_12_18_name",{"$f":"'T2-B(PP4)'!$B$342","v":0},"#'T2-B(PP4)'!$B$342"]
["pp4_bl4_12_18_rate_in",{"$f":"'T2-B(PP4)'!$E$342","v":0},"#'T2-B(PP4)'!$E$342"]
["pp4_bl4_12_18_rate_out",{"$f":"'T2-B(PP4)'!$H$342","v":0},"#'T2-B(PP4)'!$H$342"]
["pp4_bl4_12_18_total",{"$f":"'T2-B(PP4)'!$J$342","v":0},"#'T2-B(PP4)'!$J$342"]
["pp4_bl4_12_18_total_in",{"$f":"'T2-B(PP4)'!$F$342","v":0},"#'T2-B(PP4)'!$F$342"]
["pp4_bl4_12_18_total_out",{"$f":"'T2-B(PP4)'!$I$342","v":0},"#'T2-B(PP4)'!$I$342"]
["pp4_bl4_12_18_unit",{"$f":"'T2-B(PP4)'!$C$342","v":0},"#'T2-B(PP4)'!$C$342"]
["pp4_bl4_12_18_unit_in",{"$f":"'T2-B(PP4)'!$D$342","v":0},"#'T2-B(PP4)'!$D$342"]
["pp4_bl4_12_18_units_out",{"$f":"'T2-B(PP4)'!$G$342","v":0},"#'T2-B(PP4)'!$G$342"]
["pp4_bl4_12_19_name",{"$f":"'T2-B(PP4)'!$B$343","v":0},"#'T2-B(PP4)'!$B$343"]
["pp4_bl4_12_19_rate_in",{"$f":"'T2-B(PP4)'!$E$343","v":0},"#'T2-B(PP4)'!$E$343"]
["pp4_bl4_12_19_rate_out",{"$f":"'T2-B(PP4)'!$H$343","v":0},"#'T2-B(PP4)'!$H$343"]
["pp4_bl4_12_19_total",{"$f":"'T2-B(PP4)'!$J$343","v":0},"#'T2-B(PP4)'!$J$343"]
["pp4_bl4_12_19_total_in",{"$f":"'T2-B(PP4)'!$F$343","v":0},"#'T2-B(PP4)'!$F$343"]
["pp4_bl4_12_19_total_out",{"$f":"'T2-B(PP4)'!$I$343","v":0},"#'T2-B(PP4)'!$I$343"]
["pp4_bl4_12_19_unit",{"$f":"'T2-B(PP4)'!$C$343","v":0},"#'T2-B(PP4)'!$C$343"]
["pp4_bl4_12_19_unit_in",{"$f":"'T2-B(PP4)'!$D$343","v":0},"#'T2-B(PP4)'!$D$343"]
["pp4_bl4_12_19_units_out",{"$f":"'T2-B(PP4)'!$G$343","v":0},"#'T2-B(PP4)'!$G$343"]
["pp4_bl4_12_2_name",{"$f":"'T2-B(PP4)'!$B$326","v":0},"#'T2-B(PP4)'!$B$326"]
["pp4_bl4_12_2_rate_in",{"$f":"'T2-B(PP4)'!$E$326","v":0},"#'T2-B(PP4)'!$E$326"]
["pp4_bl4_12_2_rate_out",{"$f":"'T2-B(PP4)'!$H$326","v":0},"#'T2-B(PP4)'!$H$326"]
["pp4_bl4_12_2_total",{"$f":"'T2-B(PP4)'!$J$326","v":0},"#'T2-B(PP4)'!$J$326"]
["pp4_bl4_12_2_total_in",{"$f":"'T2-B(PP4)'!$F$326","v":0},"#'T2-B(PP4)'!$F$326"]
["pp4_bl4_12_2_total_out",{"$f":"'T2-B(PP4)'!$I$326","v":0},"#'T2-B(PP4)'!$I$326"]
["pp4_bl4_12_2_unit",{"$f":"'T2-B(PP4)'!$C$326","v":0},"#'T2-B(PP4)'!$C$326"]
["pp4_bl4_12_2_unit_in",{"$f":"'T2-B(PP4)'!$D$326","v":0},"#'T2-B(PP4)'!$D$326"]
["pp4_bl4_12_2_units_out",{"$f":"'T2-B(PP4)'!$G$326","v":0},"#'T2-B(PP4)'!$G$326"]
["pp4_bl4_12_20_name",{"$f":"'T2-B(PP4)'!$B$344","v":0},"#'T2-B(PP4)'!$B$344"]
["pp4_bl4_12_20_rate_in",{"$f":"'T2-B(PP4)'!$E$344","v":0},"#'T2-B(PP4)'!$E$344"]
["pp4_bl4_12_20_rate_out",{"$f":"'T2-B(PP4)'!$H$344","v":0},"#'T2-B(PP4)'!$H$344"]
["pp4_bl4_12_20_total",{"$f":"'T2-B(PP4)'!$J$344","v":0},"#'T2-B(PP4)'!$J$344"]
["pp4_bl4_12_20_total_in",{"$f":"'T2-B(PP4)'!$F$344","v":0},"#'T2-B(PP4)'!$F$344"]
["pp4_bl4_12_20_total_out",{"$f":"'T2-B(PP4)'!$I$344","v":0},"#'T2-B(PP4)'!$I$344"]
["pp4_bl4_12_20_unit",{"$f":"'T2-B(PP4)'!$C$344","v":0},"#'T2-B(PP4)'!$C$344"]
["pp4_bl4_12_20_unit_in",{"$f":"'T2-B(PP4)'!$D$344","v":0},"#'T2-B(PP4)'!$D$344"]
["pp4_bl4_12_20_units_out",{"$f":"'T2-B(PP4)'!$G$344","v":0},"#'T2-B(PP4)'!$G$344"]
["pp4_bl4_12_3_name",{"$f":"'T2-B(PP4)'!$B$327","v":0},"#'T2-B(PP4)'!$B$327"]
["pp4_bl4_12_3_rate_in",{"$f":"'T2-B(PP4)'!$E$327","v":0},"#'T2-B(PP4)'!$E$327"]
["pp4_bl4_12_3_rate_out",{"$f":"'T2-B(PP4)'!$H$327","v":0},"#'T2-B(PP4)'!$H$327"]
["pp4_bl4_12_3_total",{"$f":"'T2-B(PP4)'!$J$327","v":0},"#'T2-B(PP4)'!$J$327"]
["pp4_bl4_12_3_total_in",{"$f":"'T2-B(PP4)'!$F$327","v":0},"#'T2-B(PP4)'!$F$327"]
["pp4_bl4_12_3_total_out",{"$f":"'T2-B(PP4)'!$I$327","v":0},"#'T2-B(PP4)'!$I$327"]
["pp4_bl4_12_3_unit",{"$f":"'T2-B(PP4)'!$C$327","v":0},"#'T2-B(PP4)'!$C$327"]
["pp4_bl4_12_3_unit_in",{"$f":"'T2-B(PP4)'!$D$327","v":0},"#'T2-B(PP4)'!$D$327"]
["pp4_bl4_12_3_units_out",{"$f":"'T2-B(PP4)'!$G$327","v":0},"#'T2-B(PP4)'!$G$327"]
["pp4_bl4_12_4_name",{"$f":"'T2-B(PP4)'!$B$328","v":0},"#'T2-B(PP4)'!$B$328"]
["pp4_bl4_12_4_rate_in",{"$f":"'T2-B(PP4)'!$E$328","v":0},"#'T2-B(PP4)'!$E$328"]
["pp4_bl4_12_4_rate_out",{"$f":"'T2-B(PP4)'!$H$328","v":0},"#'T2-B(PP4)'!$H$328"]
["pp4_bl4_12_4_total",{"$f":"'T2-B(PP4)'!$J$328","v":0},"#'T2-B(PP4)'!$J$328"]
["pp4_bl4_12_4_total_in",{"$f":"'T2-B(PP4)'!$F$328","v":0},"#'T2-B(PP4)'!$F$328"]
["pp4_bl4_12_4_total_out",{"$f":"'T2-B(PP4)'!$I$328","v":0},"#'T2-B(PP4)'!$I$328"]
["pp4_bl4_12_4_unit",{"$f":"'T2-B(PP4)'!$C$328","v":0},"#'T2-B(PP4)'!$C$328"]
["pp4_bl4_12_4_unit_in",{"$f":"'T2-B(PP4)'!$D$328","v":0},"#'T2-B(PP4)'!$D$328"]
["pp4_bl4_12_4_units_out",{"$f":"'T2-B(PP4)'!$G$328","v":0},"#'T2-B(PP4)'!$G$328"]
["pp4_bl4_12_5_name",{"$f":"'T2-B(PP4)'!$B$329","v":0},"#'T2-B(PP4)'!$B$329"]
["pp4_bl4_12_5_rate_in",{"$f":"'T2-B(PP4)'!$E$329","v":0},"#'T2-B(PP4)'!$E$329"]
["pp4_bl4_12_5_rate_out",{"$f":"'T2-B(PP4)'!$H$329","v":0},"#'T2-B(PP4)'!$H$329"]
["pp4_bl4_12_5_total",{"$f":"'T2-B(PP4)'!$J$329","v":0},"#'T2-B(PP4)'!$J$329"]
["pp4_bl4_12_5_total_in",{"$f":"'T2-B(PP4)'!$F$329","v":0},"#'T2-B(PP4)'!$F$329"]
["pp4_bl4_12_5_total_out",{"$f":"'T2-B(PP4)'!$I$329","v":0},"#'T2-B(PP4)'!$I$329"]
["pp4_bl4_12_5_unit",{"$f":"'T2-B(PP4)'!$C$329","v":0},"#'T2-B(PP4)'!$C$329"]
["pp4_bl4_12_5_unit_in",{"$f":"'T2-B(PP4)'!$D$329","v":0},"#'T2-B(PP4)'!$D$329"]
["pp4_bl4_12_5_units_out",{"$f":"'T2-B(PP4)'!$G$329","v":0},"#'T2-B(PP4)'!$G$329"]
["pp4_bl4_12_6_name",{"$f":"'T2-B(PP4)'!$B$330","v":0},"#'T2-B(PP4)'!$B$330"]
["pp4_bl4_12_6_rate_in",{"$f":"'T2-B(PP4)'!$E$330","v":0},"#'T2-B(PP4)'!$E$330"]
["pp4_bl4_12_6_rate_out",{"$f":"'T2-B(PP4)'!$H$330","v":0},"#'T2-B(PP4)'!$H$330"]
["pp4_bl4_12_6_total",{"$f":"'T2-B(PP4)'!$J$330","v":0},"#'T2-B(PP4)'!$J$330"]
["pp4_bl4_12_6_total_in",{"$f":"'T2-B(PP4)'!$F$330","v":0},"#'T2-B(PP4)'!$F$330"]
["pp4_bl4_12_6_total_out",{"$f":"'T2-B(PP4)'!$I$330","v":0},"#'T2-B(PP4)'!$I$330"]
["pp4_bl4_12_6_unit",{"$f":"'T2-B(PP4)'!$C$330","v":0},"#'T2-B(PP4)'!$C$330"]
["pp4_bl4_12_6_unit_in",{"$f":"'T2-B(PP4)'!$D$330","v":0},"#'T2-B(PP4)'!$D$330"]
["pp4_bl4_12_6_units_out",{"$f":"'T2-B(PP4)'!$G$330","v":0},"#'T2-B(PP4)'!$G$330"]
["pp4_bl4_12_7_name",{"$f":"'T2-B(PP4)'!$B$331","v":0},"#'T2-B(PP4)'!$B$331"]
["pp4_bl4_12_7_rate_in",{"$f":"'T2-B(PP4)'!$E$331","v":0},"#'T2-B(PP4)'!$E$331"]
["pp4_bl4_12_7_rate_out",{"$f":"'T2-B(PP4)'!$H$331","v":0},"#'T2-B(PP4)'!$H$331"]
["pp4_bl4_12_7_total",{"$f":"'T2-B(PP4)'!$J$331","v":0},"#'T2-B(PP4)'!$J$331"]
["pp4_bl4_12_7_total_in",{"$f":"'T2-B(PP4)'!$F$331","v":0},"#'T2-B(PP4)'!$F$331"]
["pp4_bl4_12_7_total_out",{"$f":"'T2-B(PP4)'!$I$331","v":0},"#'T2-B(PP4)'!$I$331"]
["pp4_bl4_12_7_unit",{"$f":"'T2-B(PP4)'!$C$331","v":0},"#'T2-B(PP4)'!$C$331"]
["pp4_bl4_12_7_unit_in",{"$f":"'T2-B(PP4)'!$D$331","v":0},"#'T2-B(PP4)'!$D$331"]
["pp4_bl4_12_7_units_out",{"$f":"'T2-B(PP4)'!$G$331","v":0},"#'T2-B(PP4)'!$G$331"]
["pp4_bl4_12_8_name",{"$f":"'T2-B(PP4)'!$B$332","v":0},"#'T2-B(PP4)'!$B$332"]
["pp4_bl4_12_8_rate_in",{"$f":"'T2-B(PP4)'!$E$332","v":0},"#'T2-B(PP4)'!$E$332"]
["pp4_bl4_12_8_rate_out",{"$f":"'T2-B(PP4)'!$H$332","v":0},"#'T2-B(PP4)'!$H$332"]
["pp4_bl4_12_8_total",{"$f":"'T2-B(PP4)'!$J$332","v":0},"#'T2-B(PP4)'!$J$332"]
["pp4_bl4_12_8_total_in",{"$f":"'T2-B(PP4)'!$F$332","v":0},"#'T2-B(PP4)'!$F$332"]
["pp4_bl4_12_8_total_out",{"$f":"'T2-B(PP4)'!$I$332","v":0},"#'T2-B(PP4)'!$I$332"]
["pp4_bl4_12_8_unit",{"$f":"'T2-B(PP4)'!$C$332","v":0},"#'T2-B(PP4)'!$C$332"]
["pp4_bl4_12_8_unit_in",{"$f":"'T2-B(PP4)'!$D$332","v":0},"#'T2-B(PP4)'!$D$332"]
["pp4_bl4_12_8_units_out",{"$f":"'T2-B(PP4)'!$G$332","v":0},"#'T2-B(PP4)'!$G$332"]
["pp4_bl4_12_9_name",{"$f":"'T2-B(PP4)'!$B$333","v":0},"#'T2-B(PP4)'!$B$333"]
["pp4_bl4_12_9_rate_in",{"$f":"'T2-B(PP4)'!$E$333","v":0},"#'T2-B(PP4)'!$E$333"]
["pp4_bl4_12_9_rate_out",{"$f":"'T2-B(PP4)'!$H$333","v":0},"#'T2-B(PP4)'!$H$333"]
["pp4_bl4_12_9_total",{"$f":"'T2-B(PP4)'!$J$333","v":0},"#'T2-B(PP4)'!$J$333"]
["pp4_bl4_12_9_total_in",{"$f":"'T2-B(PP4)'!$F$333","v":0},"#'T2-B(PP4)'!$F$333"]
["pp4_bl4_12_9_total_out",{"$f":"'T2-B(PP4)'!$I$333","v":0},"#'T2-B(PP4)'!$I$333"]
["pp4_bl4_12_9_unit",{"$f":"'T2-B(PP4)'!$C$333","v":0},"#'T2-B(PP4)'!$C$333"]
["pp4_bl4_12_9_unit_in",{"$f":"'T2-B(PP4)'!$D$333","v":0},"#'T2-B(PP4)'!$D$333"]
["pp4_bl4_12_9_units_out",{"$f":"'T2-B(PP4)'!$G$333","v":0},"#'T2-B(PP4)'!$G$333"]
["pp4_bl4_12_total",{"$f":"'T2-B(PP4)'!$J$324","v":0},"#'T2-B(PP4)'!$J$324"]
["pp4_bl4_12_total_in",{"$f":"'T2-B(PP4)'!$F$324","v":0},"#'T2-B(PP4)'!$F$324"]
["pp4_bl4_12_total_out",{"$f":"'T2-B(PP4)'!$I$324","v":0},"#'T2-B(PP4)'!$I$324"]
["pp4_bl4_2_1_name",{"$f":"'T2-B(PP4)'!$B$115","v":0},"#'T2-B(PP4)'!$B$115"]
["pp4_bl4_2_1_rate_in",{"$f":"'T2-B(PP4)'!$E$115","v":0},"#'T2-B(PP4)'!$E$115"]
["pp4_bl4_2_1_rate_out",{"$f":"'T2-B(PP4)'!$H$115","v":0},"#'T2-B(PP4)'!$H$115"]
["pp4_bl4_2_1_total",{"$f":"'T2-B(PP4)'!$J$115","v":0},"#'T2-B(PP4)'!$J$115"]
["pp4_bl4_2_1_total_in",{"$f":"'T2-B(PP4)'!$F$115","v":0},"#'T2-B(PP4)'!$F$115"]
["pp4_bl4_2_1_total_out",{"$f":"'T2-B(PP4)'!$I$115","v":0},"#'T2-B(PP4)'!$I$115"]
["pp4_bl4_2_1_unit",{"$f":"'T2-B(PP4)'!$C$115","v":0},"#'T2-B(PP4)'!$C$115"]
["pp4_bl4_2_1_unit_in",{"$f":"'T2-B(PP4)'!$D$115","v":0},"#'T2-B(PP4)'!$D$115"]
["pp4_bl4_2_1_units_out",{"$f":"'T2-B(PP4)'!$G$115","v":0},"#'T2-B(PP4)'!$G$115"]
["pp4_bl4_2_10_name",{"$f":"'T2-B(PP4)'!$B$124","v":0},"#'T2-B(PP4)'!$B$124"]
["pp4_bl4_2_10_rate_in",{"$f":"'T2-B(PP4)'!$E$124","v":0},"#'T2-B(PP4)'!$E$124"]
["pp4_bl4_2_10_rate_out",{"$f":"'T2-B(PP4)'!$H$124","v":0},"#'T2-B(PP4)'!$H$124"]
["pp4_bl4_2_10_total",{"$f":"'T2-B(PP4)'!$J$124","v":0},"#'T2-B(PP4)'!$J$124"]
["pp4_bl4_2_10_total_in",{"$f":"'T2-B(PP4)'!$F$124","v":0},"#'T2-B(PP4)'!$F$124"]
["pp4_bl4_2_10_total_out",{"$f":"'T2-B(PP4)'!$I$124","v":0},"#'T2-B(PP4)'!$I$124"]
["pp4_bl4_2_10_unit",{"$f":"'T2-B(PP4)'!$C$124","v":0},"#'T2-B(PP4)'!$C$124"]
["pp4_bl4_2_10_unit_in",{"$f":"'T2-B(PP4)'!$D$124","v":0},"#'T2-B(PP4)'!$D$124"]
["pp4_bl4_2_10_units_out",{"$f":"'T2-B(PP4)'!$G$124","v":0},"#'T2-B(PP4)'!$G$124"]
["pp4_bl4_2_11_name",{"$f":"'T2-B(PP4)'!$B$125","v":0},"#'T2-B(PP4)'!$B$125"]
["pp4_bl4_2_11_rate_in",{"$f":"'T2-B(PP4)'!$E$125","v":0},"#'T2-B(PP4)'!$E$125"]
["pp4_bl4_2_11_rate_out",{"$f":"'T2-B(PP4)'!$H$125","v":0},"#'T2-B(PP4)'!$H$125"]
["pp4_bl4_2_11_total",{"$f":"'T2-B(PP4)'!$J$125","v":0},"#'T2-B(PP4)'!$J$125"]
["pp4_bl4_2_11_total_in",{"$f":"'T2-B(PP4)'!$F$125","v":0},"#'T2-B(PP4)'!$F$125"]
["pp4_bl4_2_11_total_out",{"$f":"'T2-B(PP4)'!$I$125","v":0},"#'T2-B(PP4)'!$I$125"]
["pp4_bl4_2_11_unit",{"$f":"'T2-B(PP4)'!$C$125","v":0},"#'T2-B(PP4)'!$C$125"]
["pp4_bl4_2_11_unit_in",{"$f":"'T2-B(PP4)'!$D$125","v":0},"#'T2-B(PP4)'!$D$125"]
["pp4_bl4_2_11_units_out",{"$f":"'T2-B(PP4)'!$G$125","v":0},"#'T2-B(PP4)'!$G$125"]
["pp4_bl4_2_12_name",{"$f":"'T2-B(PP4)'!$B$126","v":0},"#'T2-B(PP4)'!$B$126"]
["pp4_bl4_2_12_rate_in",{"$f":"'T2-B(PP4)'!$E$126","v":0},"#'T2-B(PP4)'!$E$126"]
["pp4_bl4_2_12_rate_out",{"$f":"'T2-B(PP4)'!$H$126","v":0},"#'T2-B(PP4)'!$H$126"]
["pp4_bl4_2_12_total",{"$f":"'T2-B(PP4)'!$J$126","v":0},"#'T2-B(PP4)'!$J$126"]
["pp4_bl4_2_12_total_in",{"$f":"'T2-B(PP4)'!$F$126","v":0},"#'T2-B(PP4)'!$F$126"]
["pp4_bl4_2_12_total_out",{"$f":"'T2-B(PP4)'!$I$126","v":0},"#'T2-B(PP4)'!$I$126"]
["pp4_bl4_2_12_unit",{"$f":"'T2-B(PP4)'!$C$126","v":0},"#'T2-B(PP4)'!$C$126"]
["pp4_bl4_2_12_unit_in",{"$f":"'T2-B(PP4)'!$D$126","v":0},"#'T2-B(PP4)'!$D$126"]
["pp4_bl4_2_12_units_out",{"$f":"'T2-B(PP4)'!$G$126","v":0},"#'T2-B(PP4)'!$G$126"]
["pp4_bl4_2_13_name",{"$f":"'T2-B(PP4)'!$B$127","v":0},"#'T2-B(PP4)'!$B$127"]
["pp4_bl4_2_13_rate_in",{"$f":"'T2-B(PP4)'!$E$127","v":0},"#'T2-B(PP4)'!$E$127"]
["pp4_bl4_2_13_rate_out",{"$f":"'T2-B(PP4)'!$H$127","v":0},"#'T2-B(PP4)'!$H$127"]
["pp4_bl4_2_13_total",{"$f":"'T2-B(PP4)'!$J$127","v":0},"#'T2-B(PP4)'!$J$127"]
["pp4_bl4_2_13_total_in",{"$f":"'T2-B(PP4)'!$F$127","v":0},"#'T2-B(PP4)'!$F$127"]
["pp4_bl4_2_13_total_out",{"$f":"'T2-B(PP4)'!$I$127","v":0},"#'T2-B(PP4)'!$I$127"]
["pp4_bl4_2_13_unit",{"$f":"'T2-B(PP4)'!$C$127","v":0},"#'T2-B(PP4)'!$C$127"]
["pp4_bl4_2_13_unit_in",{"$f":"'T2-B(PP4)'!$D$127","v":0},"#'T2-B(PP4)'!$D$127"]
["pp4_bl4_2_13_units_out",{"$f":"'T2-B(PP4)'!$G$127","v":0},"#'T2-B(PP4)'!$G$127"]
["pp4_bl4_2_14_name",{"$f":"'T2-B(PP4)'!$B$128","v":0},"#'T2-B(PP4)'!$B$128"]
["pp4_bl4_2_14_rate_in",{"$f":"'T2-B(PP4)'!$E$128","v":0},"#'T2-B(PP4)'!$E$128"]
["pp4_bl4_2_14_rate_out",{"$f":"'T2-B(PP4)'!$H$128","v":0},"#'T2-B(PP4)'!$H$128"]
["pp4_bl4_2_14_total",{"$f":"'T2-B(PP4)'!$J$128","v":0},"#'T2-B(PP4)'!$J$128"]
["pp4_bl4_2_14_total_in",{"$f":"'T2-B(PP4)'!$F$128","v":0},"#'T2-B(PP4)'!$F$128"]
["pp4_bl4_2_14_total_out",{"$f":"'T2-B(PP4)'!$I$128","v":0},"#'T2-B(PP4)'!$I$128"]
["pp4_bl4_2_14_unit",{"$f":"'T2-B(PP4)'!$C$128","v":0},"#'T2-B(PP4)'!$C$128"]
["pp4_bl4_2_14_unit_in",{"$f":"'T2-B(PP4)'!$D$128","v":0},"#'T2-B(PP4)'!$D$128"]
["pp4_bl4_2_14_units_out",{"$f":"'T2-B(PP4)'!$G$128","v":0},"#'T2-B(PP4)'!$G$128"]
["pp4_bl4_2_15_name",{"$f":"'T2-B(PP4)'!$B$129","v":0},"#'T2-B(PP4)'!$B$129"]
["pp4_bl4_2_15_rate_in",{"$f":"'T2-B(PP4)'!$E$129","v":0},"#'T2-B(PP4)'!$E$129"]
["pp4_bl4_2_15_rate_out",{"$f":"'T2-B(PP4)'!$H$129","v":0},"#'T2-B(PP4)'!$H$129"]
["pp4_bl4_2_15_total",{"$f":"'T2-B(PP4)'!$J$129","v":0},"#'T2-B(PP4)'!$J$129"]
["pp4_bl4_2_15_total_in",{"$f":"'T2-B(PP4)'!$F$129","v":0},"#'T2-B(PP4)'!$F$129"]
["pp4_bl4_2_15_total_out",{"$f":"'T2-B(PP4)'!$I$129","v":0},"#'T2-B(PP4)'!$I$129"]
["pp4_bl4_2_15_unit",{"$f":"'T2-B(PP4)'!$C$129","v":0},"#'T2-B(PP4)'!$C$129"]
["pp4_bl4_2_15_unit_in",{"$f":"'T2-B(PP4)'!$D$129","v":0},"#'T2-B(PP4)'!$D$129"]
["pp4_bl4_2_15_units_out",{"$f":"'T2-B(PP4)'!$G$129","v":0},"#'T2-B(PP4)'!$G$129"]
["pp4_bl4_2_16_name",{"$f":"'T2-B(PP4)'!$B$130","v":0},"#'T2-B(PP4)'!$B$130"]
["pp4_bl4_2_16_rate_in",{"$f":"'T2-B(PP4)'!$E$130","v":0},"#'T2-B(PP4)'!$E$130"]
["pp4_bl4_2_16_rate_out",{"$f":"'T2-B(PP4)'!$H$130","v":0},"#'T2-B(PP4)'!$H$130"]
["pp4_bl4_2_16_total",{"$f":"'T2-B(PP4)'!$J$130","v":0},"#'T2-B(PP4)'!$J$130"]
["pp4_bl4_2_16_total_in",{"$f":"'T2-B(PP4)'!$F$130","v":0},"#'T2-B(PP4)'!$F$130"]
["pp4_bl4_2_16_total_out",{"$f":"'T2-B(PP4)'!$I$130","v":0},"#'T2-B(PP4)'!$I$130"]
["pp4_bl4_2_16_unit",{"$f":"'T2-B(PP4)'!$C$130","v":0},"#'T2-B(PP4)'!$C$130"]
["pp4_bl4_2_16_unit_in",{"$f":"'T2-B(PP4)'!$D$130","v":0},"#'T2-B(PP4)'!$D$130"]
["pp4_bl4_2_16_units_out",{"$f":"'T2-B(PP4)'!$G$130","v":0},"#'T2-B(PP4)'!$G$130"]
["pp4_bl4_2_17_name",{"$f":"'T2-B(PP4)'!$B$131","v":0},"#'T2-B(PP4)'!$B$131"]
["pp4_bl4_2_17_rate_in",{"$f":"'T2-B(PP4)'!$E$131","v":0},"#'T2-B(PP4)'!$E$131"]
["pp4_bl4_2_17_rate_out",{"$f":"'T2-B(PP4)'!$H$131","v":0},"#'T2-B(PP4)'!$H$131"]
["pp4_bl4_2_17_total",{"$f":"'T2-B(PP4)'!$J$131","v":0},"#'T2-B(PP4)'!$J$131"]
["pp4_bl4_2_17_total_in",{"$f":"'T2-B(PP4)'!$F$131","v":0},"#'T2-B(PP4)'!$F$131"]
["pp4_bl4_2_17_total_out",{"$f":"'T2-B(PP4)'!$I$131","v":0},"#'T2-B(PP4)'!$I$131"]
["pp4_bl4_2_17_unit",{"$f":"'T2-B(PP4)'!$C$131","v":0},"#'T2-B(PP4)'!$C$131"]
["pp4_bl4_2_17_unit_in",{"$f":"'T2-B(PP4)'!$D$131","v":0},"#'T2-B(PP4)'!$D$131"]
["pp4_bl4_2_17_units_out",{"$f":"'T2-B(PP4)'!$G$131","v":0},"#'T2-B(PP4)'!$G$131"]
["pp4_bl4_2_18_name",{"$f":"'T2-B(PP4)'!$B$132","v":0},"#'T2-B(PP4)'!$B$132"]
["pp4_bl4_2_18_rate_in",{"$f":"'T2-B(PP4)'!$E$132","v":0},"#'T2-B(PP4)'!$E$132"]
["pp4_bl4_2_18_rate_out",{"$f":"'T2-B(PP4)'!$H$132","v":0},"#'T2-B(PP4)'!$H$132"]
["pp4_bl4_2_18_total",{"$f":"'T2-B(PP4)'!$J$132","v":0},"#'T2-B(PP4)'!$J$132"]
["pp4_bl4_2_18_total_in",{"$f":"'T2-B(PP4)'!$F$132","v":0},"#'T2-B(PP4)'!$F$132"]
["pp4_bl4_2_18_total_out",{"$f":"'T2-B(PP4)'!$I$132","v":0},"#'T2-B(PP4)'!$I$132"]
["pp4_bl4_2_18_unit",{"$f":"'T2-B(PP4)'!$C$132","v":0},"#'T2-B(PP4)'!$C$132"]
["pp4_bl4_2_18_unit_in",{"$f":"'T2-B(PP4)'!$D$132","v":0},"#'T2-B(PP4)'!$D$132"]
["pp4_bl4_2_18_units_out",{"$f":"'T2-B(PP4)'!$G$132","v":0},"#'T2-B(PP4)'!$G$132"]
["pp4_bl4_2_19_name",{"$f":"'T2-B(PP4)'!$B$133","v":0},"#'T2-B(PP4)'!$B$133"]
["pp4_bl4_2_19_rate_in",{"$f":"'T2-B(PP4)'!$E$133","v":0},"#'T2-B(PP4)'!$E$133"]
["pp4_bl4_2_19_rate_out",{"$f":"'T2-B(PP4)'!$H$133","v":0},"#'T2-B(PP4)'!$H$133"]
["pp4_bl4_2_19_total",{"$f":"'T2-B(PP4)'!$J$133","v":0},"#'T2-B(PP4)'!$J$133"]
["pp4_bl4_2_19_total_in",{"$f":"'T2-B(PP4)'!$F$133","v":0},"#'T2-B(PP4)'!$F$133"]
["pp4_bl4_2_19_total_out",{"$f":"'T2-B(PP4)'!$I$133","v":0},"#'T2-B(PP4)'!$I$133"]
["pp4_bl4_2_19_unit",{"$f":"'T2-B(PP4)'!$C$133","v":0},"#'T2-B(PP4)'!$C$133"]
["pp4_bl4_2_19_unit_in",{"$f":"'T2-B(PP4)'!$D$133","v":0},"#'T2-B(PP4)'!$D$133"]
["pp4_bl4_2_19_units_out",{"$f":"'T2-B(PP4)'!$G$133","v":0},"#'T2-B(PP4)'!$G$133"]
["pp4_bl4_2_2_name",{"$f":"'T2-B(PP4)'!$B$116","v":0},"#'T2-B(PP4)'!$B$116"]
["pp4_bl4_2_2_rate_in",{"$f":"'T2-B(PP4)'!$E$116","v":0},"#'T2-B(PP4)'!$E$116"]
["pp4_bl4_2_2_rate_out",{"$f":"'T2-B(PP4)'!$H$116","v":0},"#'T2-B(PP4)'!$H$116"]
["pp4_bl4_2_2_total",{"$f":"'T2-B(PP4)'!$J$116","v":0},"#'T2-B(PP4)'!$J$116"]
["pp4_bl4_2_2_total_in",{"$f":"'T2-B(PP4)'!$F$116","v":0},"#'T2-B(PP4)'!$F$116"]
["pp4_bl4_2_2_total_out",{"$f":"'T2-B(PP4)'!$I$116","v":0},"#'T2-B(PP4)'!$I$116"]
["pp4_bl4_2_2_unit",{"$f":"'T2-B(PP4)'!$C$116","v":0},"#'T2-B(PP4)'!$C$116"]
["pp4_bl4_2_2_unit_in",{"$f":"'T2-B(PP4)'!$D$116","v":0},"#'T2-B(PP4)'!$D$116"]
["pp4_bl4_2_2_units_out",{"$f":"'T2-B(PP4)'!$G$116","v":0},"#'T2-B(PP4)'!$G$116"]
["pp4_bl4_2_20_name",{"$f":"'T2-B(PP4)'!$B$134","v":0},"#'T2-B(PP4)'!$B$134"]
["pp4_bl4_2_20_rate_in",{"$f":"'T2-B(PP4)'!$E$134","v":0},"#'T2-B(PP4)'!$E$134"]
["pp4_bl4_2_20_rate_out",{"$f":"'T2-B(PP4)'!$H$134","v":0},"#'T2-B(PP4)'!$H$134"]
["pp4_bl4_2_20_total",{"$f":"'T2-B(PP4)'!$J$134","v":0},"#'T2-B(PP4)'!$J$134"]
["pp4_bl4_2_20_total_in",{"$f":"'T2-B(PP4)'!$F$134","v":0},"#'T2-B(PP4)'!$F$134"]
["pp4_bl4_2_20_total_out",{"$f":"'T2-B(PP4)'!$I$134","v":0},"#'T2-B(PP4)'!$I$134"]
["pp4_bl4_2_20_unit",{"$f":"'T2-B(PP4)'!$C$134","v":0},"#'T2-B(PP4)'!$C$134"]
["pp4_bl4_2_20_unit_in",{"$f":"'T2-B(PP4)'!$D$134","v":0},"#'T2-B(PP4)'!$D$134"]
["pp4_bl4_2_20_units_out",{"$f":"'T2-B(PP4)'!$G$134","v":0},"#'T2-B(PP4)'!$G$134"]
["pp4_bl4_2_3_name",{"$f":"'T2-B(PP4)'!$B$117","v":0},"#'T2-B(PP4)'!$B$117"]
["pp4_bl4_2_3_rate_in",{"$f":"'T2-B(PP4)'!$E$117","v":0},"#'T2-B(PP4)'!$E$117"]
["pp4_bl4_2_3_rate_out",{"$f":"'T2-B(PP4)'!$H$117","v":0},"#'T2-B(PP4)'!$H$117"]
["pp4_bl4_2_3_total",{"$f":"'T2-B(PP4)'!$J$117","v":0},"#'T2-B(PP4)'!$J$117"]
["pp4_bl4_2_3_total_in",{"$f":"'T2-B(PP4)'!$F$117","v":0},"#'T2-B(PP4)'!$F$117"]
["pp4_bl4_2_3_total_out",{"$f":"'T2-B(PP4)'!$I$117","v":0},"#'T2-B(PP4)'!$I$117"]
["pp4_bl4_2_3_unit",{"$f":"'T2-B(PP4)'!$C$117","v":0},"#'T2-B(PP4)'!$C$117"]
["pp4_bl4_2_3_unit_in",{"$f":"'T2-B(PP4)'!$D$117","v":0},"#'T2-B(PP4)'!$D$117"]
["pp4_bl4_2_3_units_out",{"$f":"'T2-B(PP4)'!$G$117","v":0},"#'T2-B(PP4)'!$G$117"]
["pp4_bl4_2_4_name",{"$f":"'T2-B(PP4)'!$B$118","v":0},"#'T2-B(PP4)'!$B$118"]
["pp4_bl4_2_4_rate_in",{"$f":"'T2-B(PP4)'!$E$118","v":0},"#'T2-B(PP4)'!$E$118"]
["pp4_bl4_2_4_rate_out",{"$f":"'T2-B(PP4)'!$H$118","v":0},"#'T2-B(PP4)'!$H$118"]
["pp4_bl4_2_4_total",{"$f":"'T2-B(PP4)'!$J$118","v":0},"#'T2-B(PP4)'!$J$118"]
["pp4_bl4_2_4_total_in",{"$f":"'T2-B(PP4)'!$F$118","v":0},"#'T2-B(PP4)'!$F$118"]
["pp4_bl4_2_4_total_out",{"$f":"'T2-B(PP4)'!$I$118","v":0},"#'T2-B(PP4)'!$I$118"]
["pp4_bl4_2_4_unit",{"$f":"'T2-B(PP4)'!$C$118","v":0},"#'T2-B(PP4)'!$C$118"]
["pp4_bl4_2_4_unit_in",{"$f":"'T2-B(PP4)'!$D$118","v":0},"#'T2-B(PP4)'!$D$118"]
["pp4_bl4_2_4_units_out",{"$f":"'T2-B(PP4)'!$G$118","v":0},"#'T2-B(PP4)'!$G$118"]
["pp4_bl4_2_5_name",{"$f":"'T2-B(PP4)'!$B$119","v":0},"#'T2-B(PP4)'!$B$119"]
["pp4_bl4_2_5_rate_in",{"$f":"'T2-B(PP4)'!$E$119","v":0},"#'T2-B(PP4)'!$E$119"]
["pp4_bl4_2_5_rate_out",{"$f":"'T2-B(PP4)'!$H$119","v":0},"#'T2-B(PP4)'!$H$119"]
["pp4_bl4_2_5_total",{"$f":"'T2-B(PP4)'!$J$119","v":0},"#'T2-B(PP4)'!$J$119"]
["pp4_bl4_2_5_total_in",{"$f":"'T2-B(PP4)'!$F$119","v":0},"#'T2-B(PP4)'!$F$119"]
["pp4_bl4_2_5_total_out",{"$f":"'T2-B(PP4)'!$I$119","v":0},"#'T2-B(PP4)'!$I$119"]
["pp4_bl4_2_5_unit",{"$f":"'T2-B(PP4)'!$C$119","v":0},"#'T2-B(PP4)'!$C$119"]
["pp4_bl4_2_5_unit_in",{"$f":"'T2-B(PP4)'!$D$119","v":0},"#'T2-B(PP4)'!$D$119"]
["pp4_bl4_2_5_units_out",{"$f":"'T2-B(PP4)'!$G$119","v":0},"#'T2-B(PP4)'!$G$119"]
["pp4_bl4_2_6_name",{"$f":"'T2-B(PP4)'!$B$120","v":0},"#'T2-B(PP4)'!$B$120"]
["pp4_bl4_2_6_rate_in",{"$f":"'T2-B(PP4)'!$E$120","v":0},"#'T2-B(PP4)'!$E$120"]
["pp4_bl4_2_6_rate_out",{"$f":"'T2-B(PP4)'!$H$120","v":0},"#'T2-B(PP4)'!$H$120"]
["pp4_bl4_2_6_total",{"$f":"'T2-B(PP4)'!$J$120","v":0},"#'T2-B(PP4)'!$J$120"]
["pp4_bl4_2_6_total_in",{"$f":"'T2-B(PP4)'!$F$120","v":0},"#'T2-B(PP4)'!$F$120"]
["pp4_bl4_2_6_total_out",{"$f":"'T2-B(PP4)'!$I$120","v":0},"#'T2-B(PP4)'!$I$120"]
["pp4_bl4_2_6_unit",{"$f":"'T2-B(PP4)'!$C$120","v":0},"#'T2-B(PP4)'!$C$120"]
["pp4_bl4_2_6_unit_in",{"$f":"'T2-B(PP4)'!$D$120","v":0},"#'T2-B(PP4)'!$D$120"]
["pp4_bl4_2_6_units_out",{"$f":"'T2-B(PP4)'!$G$120","v":0},"#'T2-B(PP4)'!$G$120"]
["pp4_bl4_2_7_name",{"$f":"'T2-B(PP4)'!$B$121","v":0},"#'T2-B(PP4)'!$B$121"]
["pp4_bl4_2_7_rate_in",{"$f":"'T2-B(PP4)'!$E$121","v":0},"#'T2-B(PP4)'!$E$121"]
["pp4_bl4_2_7_rate_out",{"$f":"'T2-B(PP4)'!$H$121","v":0},"#'T2-B(PP4)'!$H$121"]
["pp4_bl4_2_7_total",{"$f":"'T2-B(PP4)'!$J$121","v":0},"#'T2-B(PP4)'!$J$121"]
["pp4_bl4_2_7_total_in",{"$f":"'T2-B(PP4)'!$F$121","v":0},"#'T2-B(PP4)'!$F$121"]
["pp4_bl4_2_7_total_out",{"$f":"'T2-B(PP4)'!$I$121","v":0},"#'T2-B(PP4)'!$I$121"]
["pp4_bl4_2_7_unit",{"$f":"'T2-B(PP4)'!$C$121","v":0},"#'T2-B(PP4)'!$C$121"]
["pp4_bl4_2_7_unit_in",{"$f":"'T2-B(PP4)'!$D$121","v":0},"#'T2-B(PP4)'!$D$121"]
["pp4_bl4_2_7_units_out",{"$f":"'T2-B(PP4)'!$G$121","v":0},"#'T2-B(PP4)'!$G$121"]
["pp4_bl4_2_8_name",{"$f":"'T2-B(PP4)'!$B$122","v":0},"#'T2-B(PP4)'!$B$122"]
["pp4_bl4_2_8_rate_in",{"$f":"'T2-B(PP4)'!$E$122","v":0},"#'T2-B(PP4)'!$E$122"]
["pp4_bl4_2_8_rate_out",{"$f":"'T2-B(PP4)'!$H$122","v":0},"#'T2-B(PP4)'!$H$122"]
["pp4_bl4_2_8_total",{"$f":"'T2-B(PP4)'!$J$122","v":0},"#'T2-B(PP4)'!$J$122"]
["pp4_bl4_2_8_total_in",{"$f":"'T2-B(PP4)'!$F$122","v":0},"#'T2-B(PP4)'!$F$122"]
["pp4_bl4_2_8_total_out",{"$f":"'T2-B(PP4)'!$I$122","v":0},"#'T2-B(PP4)'!$I$122"]
["pp4_bl4_2_8_unit",{"$f":"'T2-B(PP4)'!$C$122","v":0},"#'T2-B(PP4)'!$C$122"]
["pp4_bl4_2_8_unit_in",{"$f":"'T2-B(PP4)'!$D$122","v":0},"#'T2-B(PP4)'!$D$122"]
["pp4_bl4_2_8_units_out",{"$f":"'T2-B(PP4)'!$G$122","v":0},"#'T2-B(PP4)'!$G$122"]
["pp4_bl4_2_9_name",{"$f":"'T2-B(PP4)'!$B$123","v":0},"#'T2-B(PP4)'!$B$123"]
["pp4_bl4_2_9_rate_in",{"$f":"'T2-B(PP4)'!$E$123","v":0},"#'T2-B(PP4)'!$E$123"]
["pp4_bl4_2_9_rate_out",{"$f":"'T2-B(PP4)'!$H$123","v":0},"#'T2-B(PP4)'!$H$123"]
["pp4_bl4_2_9_total",{"$f":"'T2-B(PP4)'!$J$123","v":0},"#'T2-B(PP4)'!$J$123"]
["pp4_bl4_2_9_total_in",{"$f":"'T2-B(PP4)'!$F$123","v":0},"#'T2-B(PP4)'!$F$123"]
["pp4_bl4_2_9_total_out",{"$f":"'T2-B(PP4)'!$I$123","v":0},"#'T2-B(PP4)'!$I$123"]
["pp4_bl4_2_9_unit",{"$f":"'T2-B(PP4)'!$C$123","v":0},"#'T2-B(PP4)'!$C$123"]
["pp4_bl4_2_9_unit_in",{"$f":"'T2-B(PP4)'!$D$123","v":0},"#'T2-B(PP4)'!$D$123"]
["pp4_bl4_2_9_units_out",{"$f":"'T2-B(PP4)'!$G$123","v":0},"#'T2-B(PP4)'!$G$123"]
["pp4_bl4_2_total",{"$f":"'T2-B(PP4)'!$J$114","v":0},"#'T2-B(PP4)'!$J$114"]
["pp4_bl4_2_total_in",{"$f":"'T2-B(PP4)'!$F$114","v":0},"#'T2-B(PP4)'!$F$114"]
["pp4_bl4_2_total_out",{"$f":"'T2-B(PP4)'!$I$114","v":0},"#'T2-B(PP4)'!$I$114"]
["pp4_bl4_3_1_name",{"$f":"'T2-B(PP4)'!$B$136","v":0},"#'T2-B(PP4)'!$B$136"]
["pp4_bl4_3_1_rate_in",{"$f":"'T2-B(PP4)'!$E$136","v":0},"#'T2-B(PP4)'!$E$136"]
["pp4_bl4_3_1_rate_out",{"$f":"'T2-B(PP4)'!$H$136","v":0},"#'T2-B(PP4)'!$H$136"]
["pp4_bl4_3_1_total",{"$f":"'T2-B(PP4)'!$J$136","v":0},"#'T2-B(PP4)'!$J$136"]
["pp4_bl4_3_1_total_in",{"$f":"'T2-B(PP4)'!$F$136","v":0},"#'T2-B(PP4)'!$F$136"]
["pp4_bl4_3_1_total_out",{"$f":"'T2-B(PP4)'!$I$136","v":0},"#'T2-B(PP4)'!$I$136"]
["pp4_bl4_3_1_unit",{"$f":"'T2-B(PP4)'!$C$136","v":0},"#'T2-B(PP4)'!$C$136"]
["pp4_bl4_3_1_unit_in",{"$f":"'T2-B(PP4)'!$D$136","v":0},"#'T2-B(PP4)'!$D$136"]
["pp4_bl4_3_1_units_out",{"$f":"'T2-B(PP4)'!$G$136","v":0},"#'T2-B(PP4)'!$G$136"]
["pp4_bl4_3_10_name",{"$f":"'T2-B(PP4)'!$B$145","v":0},"#'T2-B(PP4)'!$B$145"]
["pp4_bl4_3_10_rate_in",{"$f":"'T2-B(PP4)'!$E$145","v":0},"#'T2-B(PP4)'!$E$145"]
["pp4_bl4_3_10_rate_out",{"$f":"'T2-B(PP4)'!$H$145","v":0},"#'T2-B(PP4)'!$H$145"]
["pp4_bl4_3_10_total",{"$f":"'T2-B(PP4)'!$J$145","v":0},"#'T2-B(PP4)'!$J$145"]
["pp4_bl4_3_10_total_in",{"$f":"'T2-B(PP4)'!$F$145","v":0},"#'T2-B(PP4)'!$F$145"]
["pp4_bl4_3_10_total_out",{"$f":"'T2-B(PP4)'!$I$145","v":0},"#'T2-B(PP4)'!$I$145"]
["pp4_bl4_3_10_unit",{"$f":"'T2-B(PP4)'!$C$145","v":0},"#'T2-B(PP4)'!$C$145"]
["pp4_bl4_3_10_unit_in",{"$f":"'T2-B(PP4)'!$D$145","v":0},"#'T2-B(PP4)'!$D$145"]
["pp4_bl4_3_10_units_out",{"$f":"'T2-B(PP4)'!$G$145","v":0},"#'T2-B(PP4)'!$G$145"]
["pp4_bl4_3_11_name",{"$f":"'T2-B(PP4)'!$B$146","v":0},"#'T2-B(PP4)'!$B$146"]
["pp4_bl4_3_11_rate_in",{"$f":"'T2-B(PP4)'!$E$146","v":0},"#'T2-B(PP4)'!$E$146"]
["pp4_bl4_3_11_rate_out",{"$f":"'T2-B(PP4)'!$H$146","v":0},"#'T2-B(PP4)'!$H$146"]
["pp4_bl4_3_11_total",{"$f":"'T2-B(PP4)'!$J$146","v":0},"#'T2-B(PP4)'!$J$146"]
["pp4_bl4_3_11_total_in",{"$f":"'T2-B(PP4)'!$F$146","v":0},"#'T2-B(PP4)'!$F$146"]
["pp4_bl4_3_11_total_out",{"$f":"'T2-B(PP4)'!$I$146","v":0},"#'T2-B(PP4)'!$I$146"]
["pp4_bl4_3_11_unit",{"$f":"'T2-B(PP4)'!$C$146","v":0},"#'T2-B(PP4)'!$C$146"]
["pp4_bl4_3_11_unit_in",{"$f":"'T2-B(PP4)'!$D$146","v":0},"#'T2-B(PP4)'!$D$146"]
["pp4_bl4_3_11_units_out",{"$f":"'T2-B(PP4)'!$G$146","v":0},"#'T2-B(PP4)'!$G$146"]
["pp4_bl4_3_12_name",{"$f":"'T2-B(PP4)'!$B$147","v":0},"#'T2-B(PP4)'!$B$147"]
["pp4_bl4_3_12_rate_in",{"$f":"'T2-B(PP4)'!$E$147","v":0},"#'T2-B(PP4)'!$E$147"]
["pp4_bl4_3_12_rate_out",{"$f":"'T2-B(PP4)'!$H$147","v":0},"#'T2-B(PP4)'!$H$147"]
["pp4_bl4_3_12_total",{"$f":"'T2-B(PP4)'!$J$147","v":0},"#'T2-B(PP4)'!$J$147"]
["pp4_bl4_3_12_total_in",{"$f":"'T2-B(PP4)'!$F$147","v":0},"#'T2-B(PP4)'!$F$147"]
["pp4_bl4_3_12_total_out",{"$f":"'T2-B(PP4)'!$I$147","v":0},"#'T2-B(PP4)'!$I$147"]
["pp4_bl4_3_12_unit",{"$f":"'T2-B(PP4)'!$C$147","v":0},"#'T2-B(PP4)'!$C$147"]
["pp4_bl4_3_12_unit_in",{"$f":"'T2-B(PP4)'!$D$147","v":0},"#'T2-B(PP4)'!$D$147"]
["pp4_bl4_3_12_units_out",{"$f":"'T2-B(PP4)'!$G$147","v":0},"#'T2-B(PP4)'!$G$147"]
["pp4_bl4_3_13_name",{"$f":"'T2-B(PP4)'!$B$148","v":0},"#'T2-B(PP4)'!$B$148"]
["pp4_bl4_3_13_rate_in",{"$f":"'T2-B(PP4)'!$E$148","v":0},"#'T2-B(PP4)'!$E$148"]
["pp4_bl4_3_13_rate_out",{"$f":"'T2-B(PP4)'!$H$148","v":0},"#'T2-B(PP4)'!$H$148"]
["pp4_bl4_3_13_total",{"$f":"'T2-B(PP4)'!$J$148","v":0},"#'T2-B(PP4)'!$J$148"]
["pp4_bl4_3_13_total_in",{"$f":"'T2-B(PP4)'!$F$148","v":0},"#'T2-B(PP4)'!$F$148"]
["pp4_bl4_3_13_total_out",{"$f":"'T2-B(PP4)'!$I$148","v":0},"#'T2-B(PP4)'!$I$148"]
["pp4_bl4_3_13_unit",{"$f":"'T2-B(PP4)'!$C$148","v":0},"#'T2-B(PP4)'!$C$148"]
["pp4_bl4_3_13_unit_in",{"$f":"'T2-B(PP4)'!$D$148","v":0},"#'T2-B(PP4)'!$D$148"]
["pp4_bl4_3_13_units_out",{"$f":"'T2-B(PP4)'!$G$148","v":0},"#'T2-B(PP4)'!$G$148"]
["pp4_bl4_3_14_name",{"$f":"'T2-B(PP4)'!$B$149","v":0},"#'T2-B(PP4)'!$B$149"]
["pp4_bl4_3_14_rate_in",{"$f":"'T2-B(PP4)'!$E$149","v":0},"#'T2-B(PP4)'!$E$149"]
["pp4_bl4_3_14_rate_out",{"$f":"'T2-B(PP4)'!$H$149","v":0},"#'T2-B(PP4)'!$H$149"]
["pp4_bl4_3_14_total",{"$f":"'T2-B(PP4)'!$J$149","v":0},"#'T2-B(PP4)'!$J$149"]
["pp4_bl4_3_14_total_in",{"$f":"'T2-B(PP4)'!$F$149","v":0},"#'T2-B(PP4)'!$F$149"]
["pp4_bl4_3_14_total_out",{"$f":"'T2-B(PP4)'!$I$149","v":0},"#'T2-B(PP4)'!$I$149"]
["pp4_bl4_3_14_unit",{"$f":"'T2-B(PP4)'!$C$149","v":0},"#'T2-B(PP4)'!$C$149"]
["pp4_bl4_3_14_unit_in",{"$f":"'T2-B(PP4)'!$D$149","v":0},"#'T2-B(PP4)'!$D$149"]
["pp4_bl4_3_14_units_out",{"$f":"'T2-B(PP4)'!$G$149","v":0},"#'T2-B(PP4)'!$G$149"]
["pp4_bl4_3_15_name",{"$f":"'T2-B(PP4)'!$B$150","v":0},"#'T2-B(PP4)'!$B$150"]
["pp4_bl4_3_15_rate_in",{"$f":"'T2-B(PP4)'!$E$150","v":0},"#'T2-B(PP4)'!$E$150"]
["pp4_bl4_3_15_rate_out",{"$f":"'T2-B(PP4)'!$H$150","v":0},"#'T2-B(PP4)'!$H$150"]
["pp4_bl4_3_15_total",{"$f":"'T2-B(PP4)'!$J$150","v":0},"#'T2-B(PP4)'!$J$150"]
["pp4_bl4_3_15_total_in",{"$f":"'T2-B(PP4)'!$F$150","v":0},"#'T2-B(PP4)'!$F$150"]
["pp4_bl4_3_15_total_out",{"$f":"'T2-B(PP4)'!$I$150","v":0},"#'T2-B(PP4)'!$I$150"]
["pp4_bl4_3_15_unit",{"$f":"'T2-B(PP4)'!$C$150","v":0},"#'T2-B(PP4)'!$C$150"]
["pp4_bl4_3_15_unit_in",{"$f":"'T2-B(PP4)'!$D$150","v":0},"#'T2-B(PP4)'!$D$150"]
["pp4_bl4_3_15_units_out",{"$f":"'T2-B(PP4)'!$G$150","v":0},"#'T2-B(PP4)'!$G$150"]
["pp4_bl4_3_16_name",{"$f":"'T2-B(PP4)'!$B$151","v":0},"#'T2-B(PP4)'!$B$151"]
["pp4_bl4_3_16_rate_in",{"$f":"'T2-B(PP4)'!$E$151","v":0},"#'T2-B(PP4)'!$E$151"]
["pp4_bl4_3_16_rate_out",{"$f":"'T2-B(PP4)'!$H$151","v":0},"#'T2-B(PP4)'!$H$151"]
["pp4_bl4_3_16_total",{"$f":"'T2-B(PP4)'!$J$151","v":0},"#'T2-B(PP4)'!$J$151"]
["pp4_bl4_3_16_total_in",{"$f":"'T2-B(PP4)'!$F$151","v":0},"#'T2-B(PP4)'!$F$151"]
["pp4_bl4_3_16_total_out",{"$f":"'T2-B(PP4)'!$I$151","v":0},"#'T2-B(PP4)'!$I$151"]
["pp4_bl4_3_16_unit",{"$f":"'T2-B(PP4)'!$C$151","v":0},"#'T2-B(PP4)'!$C$151"]
["pp4_bl4_3_16_unit_in",{"$f":"'T2-B(PP4)'!$D$151","v":0},"#'T2-B(PP4)'!$D$151"]
["pp4_bl4_3_16_units_out",{"$f":"'T2-B(PP4)'!$G$151","v":0},"#'T2-B(PP4)'!$G$151"]
["pp4_bl4_3_17_name",{"$f":"'T2-B(PP4)'!$B$152","v":0},"#'T2-B(PP4)'!$B$152"]
["pp4_bl4_3_17_rate_in",{"$f":"'T2-B(PP4)'!$E$152","v":0},"#'T2-B(PP4)'!$E$152"]
["pp4_bl4_3_17_rate_out",{"$f":"'T2-B(PP4)'!$H$152","v":0},"#'T2-B(PP4)'!$H$152"]
["pp4_bl4_3_17_total",{"$f":"'T2-B(PP4)'!$J$152","v":0},"#'T2-B(PP4)'!$J$152"]
["pp4_bl4_3_17_total_in",{"$f":"'T2-B(PP4)'!$F$152","v":0},"#'T2-B(PP4)'!$F$152"]
["pp4_bl4_3_17_total_out",{"$f":"'T2-B(PP4)'!$I$152","v":0},"#'T2-B(PP4)'!$I$152"]
["pp4_bl4_3_17_unit",{"$f":"'T2-B(PP4)'!$C$152","v":0},"#'T2-B(PP4)'!$C$152"]
["pp4_bl4_3_17_unit_in",{"$f":"'T2-B(PP4)'!$D$152","v":0},"#'T2-B(PP4)'!$D$152"]
["pp4_bl4_3_17_units_out",{"$f":"'T2-B(PP4)'!$G$152","v":0},"#'T2-B(PP4)'!$G$152"]
["pp4_bl4_3_18_name",{"$f":"'T2-B(PP4)'!$B$153","v":0},"#'T2-B(PP4)'!$B$153"]
["pp4_bl4_3_18_rate_in",{"$f":"'T2-B(PP4)'!$E$153","v":0},"#'T2-B(PP4)'!$E$153"]
["pp4_bl4_3_18_rate_out",{"$f":"'T2-B(PP4)'!$H$153","v":0},"#'T2-B(PP4)'!$H$153"]
["pp4_bl4_3_18_total",{"$f":"'T2-B(PP4)'!$J$153","v":0},"#'T2-B(PP4)'!$J$153"]
["pp4_bl4_3_18_total_in",{"$f":"'T2-B(PP4)'!$F$153","v":0},"#'T2-B(PP4)'!$F$153"]
["pp4_bl4_3_18_total_out",{"$f":"'T2-B(PP4)'!$I$153","v":0},"#'T2-B(PP4)'!$I$153"]
["pp4_bl4_3_18_unit",{"$f":"'T2-B(PP4)'!$C$153","v":0},"#'T2-B(PP4)'!$C$153"]
["pp4_bl4_3_18_unit_in",{"$f":"'T2-B(PP4)'!$D$153","v":0},"#'T2-B(PP4)'!$D$153"]
["pp4_bl4_3_18_units_out",{"$f":"'T2-B(PP4)'!$G$153","v":0},"#'T2-B(PP4)'!$G$153"]
["pp4_bl4_3_19_name",{"$f":"'T2-B(PP4)'!$B$154","v":0},"#'T2-B(PP4)'!$B$154"]
["pp4_bl4_3_19_rate_in",{"$f":"'T2-B(PP4)'!$E$154","v":0},"#'T2-B(PP4)'!$E$154"]
["pp4_bl4_3_19_rate_out",{"$f":"'T2-B(PP4)'!$H$154","v":0},"#'T2-B(PP4)'!$H$154"]
["pp4_bl4_3_19_total",{"$f":"'T2-B(PP4)'!$J$154","v":0},"#'T2-B(PP4)'!$J$154"]
["pp4_bl4_3_19_total_in",{"$f":"'T2-B(PP4)'!$F$154","v":0},"#'T2-B(PP4)'!$F$154"]
["pp4_bl4_3_19_total_out",{"$f":"'T2-B(PP4)'!$I$154","v":0},"#'T2-B(PP4)'!$I$154"]
["pp4_bl4_3_19_unit",{"$f":"'T2-B(PP4)'!$C$154","v":0},"#'T2-B(PP4)'!$C$154"]
["pp4_bl4_3_19_unit_in",{"$f":"'T2-B(PP4)'!$D$154","v":0},"#'T2-B(PP4)'!$D$154"]
["pp4_bl4_3_19_units_out",{"$f":"'T2-B(PP4)'!$G$154","v":0},"#'T2-B(PP4)'!$G$154"]
["pp4_bl4_3_2_name",{"$f":"'T2-B(PP4)'!$B$137","v":0},"#'T2-B(PP4)'!$B$137"]
["pp4_bl4_3_2_rate_in",{"$f":"'T2-B(PP4)'!$E$137","v":0},"#'T2-B(PP4)'!$E$137"]
["pp4_bl4_3_2_rate_out",{"$f":"'T2-B(PP4)'!$H$137","v":0},"#'T2-B(PP4)'!$H$137"]
["pp4_bl4_3_2_total",{"$f":"'T2-B(PP4)'!$J$137","v":0},"#'T2-B(PP4)'!$J$137"]
["pp4_bl4_3_2_total_in",{"$f":"'T2-B(PP4)'!$F$137","v":0},"#'T2-B(PP4)'!$F$137"]
["pp4_bl4_3_2_total_out",{"$f":"'T2-B(PP4)'!$I$137","v":0},"#'T2-B(PP4)'!$I$137"]
["pp4_bl4_3_2_unit",{"$f":"'T2-B(PP4)'!$C$137","v":0},"#'T2-B(PP4)'!$C$137"]
["pp4_bl4_3_2_unit_in",{"$f":"'T2-B(PP4)'!$D$137","v":0},"#'T2-B(PP4)'!$D$137"]
["pp4_bl4_3_2_units_out",{"$f":"'T2-B(PP4)'!$G$137","v":0},"#'T2-B(PP4)'!$G$137"]
["pp4_bl4_3_20_name",{"$f":"'T2-B(PP4)'!$B$155","v":0},"#'T2-B(PP4)'!$B$155"]
["pp4_bl4_3_20_rate_in",{"$f":"'T2-B(PP4)'!$E$155","v":0},"#'T2-B(PP4)'!$E$155"]
["pp4_bl4_3_20_rate_out",{"$f":"'T2-B(PP4)'!$H$155","v":0},"#'T2-B(PP4)'!$H$155"]
["pp4_bl4_3_20_total",{"$f":"'T2-B(PP4)'!$J$155","v":0},"#'T2-B(PP4)'!$J$155"]
["pp4_bl4_3_20_total_in",{"$f":"'T2-B(PP4)'!$F$155","v":0},"#'T2-B(PP4)'!$F$155"]
["pp4_bl4_3_20_total_out",{"$f":"'T2-B(PP4)'!$I$155","v":0},"#'T2-B(PP4)'!$I$155"]
["pp4_bl4_3_20_unit",{"$f":"'T2-B(PP4)'!$C$155","v":0},"#'T2-B(PP4)'!$C$155"]
["pp4_bl4_3_20_unit_in",{"$f":"'T2-B(PP4)'!$D$155","v":0},"#'T2-B(PP4)'!$D$155"]
["pp4_bl4_3_20_units_out",{"$f":"'T2-B(PP4)'!$G$155","v":0},"#'T2-B(PP4)'!$G$155"]
["pp4_bl4_3_3_name",{"$f":"'T2-B(PP4)'!$B$138","v":0},"#'T2-B(PP4)'!$B$138"]
["pp4_bl4_3_3_rate_in",{"$f":"'T2-B(PP4)'!$E$138","v":0},"#'T2-B(PP4)'!$E$138"]
["pp4_bl4_3_3_rate_out",{"$f":"'T2-B(PP4)'!$H$138","v":0},"#'T2-B(PP4)'!$H$138"]
["pp4_bl4_3_3_total",{"$f":"'T2-B(PP4)'!$J$138","v":0},"#'T2-B(PP4)'!$J$138"]
["pp4_bl4_3_3_total_in",{"$f":"'T2-B(PP4)'!$F$138","v":0},"#'T2-B(PP4)'!$F$138"]
["pp4_bl4_3_3_total_out",{"$f":"'T2-B(PP4)'!$I$138","v":0},"#'T2-B(PP4)'!$I$138"]
["pp4_bl4_3_3_unit",{"$f":"'T2-B(PP4)'!$C$138","v":0},"#'T2-B(PP4)'!$C$138"]
["pp4_bl4_3_3_unit_in",{"$f":"'T2-B(PP4)'!$D$138","v":0},"#'T2-B(PP4)'!$D$138"]
["pp4_bl4_3_3_units_out",{"$f":"'T2-B(PP4)'!$G$138","v":0},"#'T2-B(PP4)'!$G$138"]
["pp4_bl4_3_4_name",{"$f":"'T2-B(PP4)'!$B$139","v":0},"#'T2-B(PP4)'!$B$139"]
["pp4_bl4_3_4_rate_in",{"$f":"'T2-B(PP4)'!$E$139","v":0},"#'T2-B(PP4)'!$E$139"]
["pp4_bl4_3_4_rate_out",{"$f":"'T2-B(PP4)'!$H$139","v":0},"#'T2-B(PP4)'!$H$139"]
["pp4_bl4_3_4_total",{"$f":"'T2-B(PP4)'!$J$139","v":0},"#'T2-B(PP4)'!$J$139"]
["pp4_bl4_3_4_total_in",{"$f":"'T2-B(PP4)'!$F$139","v":0},"#'T2-B(PP4)'!$F$139"]
["pp4_bl4_3_4_total_out",{"$f":"'T2-B(PP4)'!$I$139","v":0},"#'T2-B(PP4)'!$I$139"]
["pp4_bl4_3_4_unit",{"$f":"'T2-B(PP4)'!$C$139","v":0},"#'T2-B(PP4)'!$C$139"]
["pp4_bl4_3_4_unit_in",{"$f":"'T2-B(PP4)'!$D$139","v":0},"#'T2-B(PP4)'!$D$139"]
["pp4_bl4_3_4_units_out",{"$f":"'T2-B(PP4)'!$G$139","v":0},"#'T2-B(PP4)'!$G$139"]
["pp4_bl4_3_5_name",{"$f":"'T2-B(PP4)'!$B$140","v":0},"#'T2-B(PP4)'!$B$140"]
["pp4_bl4_3_5_rate_in",{"$f":"'T2-B(PP4)'!$E$140","v":0},"#'T2-B(PP4)'!$E$140"]
["pp4_bl4_3_5_rate_out",{"$f":"'T2-B(PP4)'!$H$140","v":0},"#'T2-B(PP4)'!$H$140"]
["pp4_bl4_3_5_total",{"$f":"'T2-B(PP4)'!$J$140","v":0},"#'T2-B(PP4)'!$J$140"]
["pp4_bl4_3_5_total_in",{"$f":"'T2-B(PP4)'!$F$140","v":0},"#'T2-B(PP4)'!$F$140"]
["pp4_bl4_3_5_total_out",{"$f":"'T2-B(PP4)'!$I$140","v":0},"#'T2-B(PP4)'!$I$140"]
["pp4_bl4_3_5_unit",{"$f":"'T2-B(PP4)'!$C$140","v":0},"#'T2-B(PP4)'!$C$140"]
["pp4_bl4_3_5_unit_in",{"$f":"'T2-B(PP4)'!$D$140","v":0},"#'T2-B(PP4)'!$D$140"]
["pp4_bl4_3_5_units_out",{"$f":"'T2-B(PP4)'!$G$140","v":0},"#'T2-B(PP4)'!$G$140"]
["pp4_bl4_3_6_name",{"$f":"'T2-B(PP4)'!$B$141","v":0},"#'T2-B(PP4)'!$B$141"]
["pp4_bl4_3_6_rate_in",{"$f":"'T2-B(PP4)'!$E$141","v":0},"#'T2-B(PP4)'!$E$141"]
["pp4_bl4_3_6_rate_out",{"$f":"'T2-B(PP4)'!$H$141","v":0},"#'T2-B(PP4)'!$H$141"]
["pp4_bl4_3_6_total",{"$f":"'T2-B(PP4)'!$J$141","v":0},"#'T2-B(PP4)'!$J$141"]
["pp4_bl4_3_6_total_in",{"$f":"'T2-B(PP4)'!$F$141","v":0},"#'T2-B(PP4)'!$F$141"]
["pp4_bl4_3_6_total_out",{"$f":"'T2-B(PP4)'!$I$141","v":0},"#'T2-B(PP4)'!$I$141"]
["pp4_bl4_3_6_unit",{"$f":"'T2-B(PP4)'!$C$141","v":0},"#'T2-B(PP4)'!$C$141"]
["pp4_bl4_3_6_unit_in",{"$f":"'T2-B(PP4)'!$D$141","v":0},"#'T2-B(PP4)'!$D$141"]
["pp4_bl4_3_6_units_out",{"$f":"'T2-B(PP4)'!$G$141","v":0},"#'T2-B(PP4)'!$G$141"]
["pp4_bl4_3_7_name",{"$f":"'T2-B(PP4)'!$B$142","v":0},"#'T2-B(PP4)'!$B$142"]
["pp4_bl4_3_7_rate_in",{"$f":"'T2-B(PP4)'!$E$142","v":0},"#'T2-B(PP4)'!$E$142"]
["pp4_bl4_3_7_rate_out",{"$f":"'T2-B(PP4)'!$H$142","v":0},"#'T2-B(PP4)'!$H$142"]
["pp4_bl4_3_7_total",{"$f":"'T2-B(PP4)'!$J$142","v":0},"#'T2-B(PP4)'!$J$142"]
["pp4_bl4_3_7_total_in",{"$f":"'T2-B(PP4)'!$F$142","v":0},"#'T2-B(PP4)'!$F$142"]
["pp4_bl4_3_7_total_out",{"$f":"'T2-B(PP4)'!$I$142","v":0},"#'T2-B(PP4)'!$I$142"]
["pp4_bl4_3_7_unit",{"$f":"'T2-B(PP4)'!$C$142","v":0},"#'T2-B(PP4)'!$C$142"]
["pp4_bl4_3_7_unit_in",{"$f":"'T2-B(PP4)'!$D$142","v":0},"#'T2-B(PP4)'!$D$142"]
["pp4_bl4_3_7_units_out",{"$f":"'T2-B(PP4)'!$G$142","v":0},"#'T2-B(PP4)'!$G$142"]
["pp4_bl4_3_8_name",{"$f":"'T2-B(PP4)'!$B$143","v":0},"#'T2-B(PP4)'!$B$143"]
["pp4_bl4_3_8_rate_in",{"$f":"'T2-B(PP4)'!$E$143","v":0},"#'T2-B(PP4)'!$E$143"]
["pp4_bl4_3_8_rate_out",{"$f":"'T2-B(PP4)'!$H$143","v":0},"#'T2-B(PP4)'!$H$143"]
["pp4_bl4_3_8_total",{"$f":"'T2-B(PP4)'!$J$143","v":0},"#'T2-B(PP4)'!$J$143"]
["pp4_bl4_3_8_total_in",{"$f":"'T2-B(PP4)'!$F$143","v":0},"#'T2-B(PP4)'!$F$143"]
["pp4_bl4_3_8_total_out",{"$f":"'T2-B(PP4)'!$I$143","v":0},"#'T2-B(PP4)'!$I$143"]
["pp4_bl4_3_8_unit",{"$f":"'T2-B(PP4)'!$C$143","v":0},"#'T2-B(PP4)'!$C$143"]
["pp4_bl4_3_8_unit_in",{"$f":"'T2-B(PP4)'!$D$143","v":0},"#'T2-B(PP4)'!$D$143"]
["pp4_bl4_3_8_units_out",{"$f":"'T2-B(PP4)'!$G$143","v":0},"#'T2-B(PP4)'!$G$143"]
["pp4_bl4_3_9_name",{"$f":"'T2-B(PP4)'!$B$144","v":0},"#'T2-B(PP4)'!$B$144"]
["pp4_bl4_3_9_rate_in",{"$f":"'T2-B(PP4)'!$E$144","v":0},"#'T2-B(PP4)'!$E$144"]
["pp4_bl4_3_9_rate_out",{"$f":"'T2-B(PP4)'!$H$144","v":0},"#'T2-B(PP4)'!$H$144"]
["pp4_bl4_3_9_total",{"$f":"'T2-B(PP4)'!$J$144","v":0},"#'T2-B(PP4)'!$J$144"]
["pp4_bl4_3_9_total_in",{"$f":"'T2-B(PP4)'!$F$144","v":0},"#'T2-B(PP4)'!$F$144"]
["pp4_bl4_3_9_total_out",{"$f":"'T2-B(PP4)'!$I$144","v":0},"#'T2-B(PP4)'!$I$144"]
["pp4_bl4_3_9_unit",{"$f":"'T2-B(PP4)'!$C$144","v":0},"#'T2-B(PP4)'!$C$144"]
["pp4_bl4_3_9_unit_in",{"$f":"'T2-B(PP4)'!$D$144","v":0},"#'T2-B(PP4)'!$D$144"]
["pp4_bl4_3_9_units_out",{"$f":"'T2-B(PP4)'!$G$144","v":0},"#'T2-B(PP4)'!$G$144"]
["pp4_bl4_3_total",{"$f":"'T2-B(PP4)'!$J$135","v":0},"#'T2-B(PP4)'!$J$135"]
["pp4_bl4_3_total_in",{"$f":"'T2-B(PP4)'!$F$135","v":0},"#'T2-B(PP4)'!$F$135"]
["pp4_bl4_3_total_out",{"$f":"'T2-B(PP4)'!$I$135","v":0},"#'T2-B(PP4)'!$I$135"]
["pp4_bl4_4_1_name",{"$f":"'T2-B(PP4)'!$B$157","v":0},"#'T2-B(PP4)'!$B$157"]
["pp4_bl4_4_1_rate_in",{"$f":"'T2-B(PP4)'!$E$157","v":0},"#'T2-B(PP4)'!$E$157"]
["pp4_bl4_4_1_rate_out",{"$f":"'T2-B(PP4)'!$H$157","v":0},"#'T2-B(PP4)'!$H$157"]
["pp4_bl4_4_1_total",{"$f":"'T2-B(PP4)'!$J$157","v":0},"#'T2-B(PP4)'!$J$157"]
["pp4_bl4_4_1_total_in",{"$f":"'T2-B(PP4)'!$F$157","v":0},"#'T2-B(PP4)'!$F$157"]
["pp4_bl4_4_1_total_out",{"$f":"'T2-B(PP4)'!$I$157","v":0},"#'T2-B(PP4)'!$I$157"]
["pp4_bl4_4_1_unit",{"$f":"'T2-B(PP4)'!$C$157","v":0},"#'T2-B(PP4)'!$C$157"]
["pp4_bl4_4_1_unit_in",{"$f":"'T2-B(PP4)'!$D$157","v":0},"#'T2-B(PP4)'!$D$157"]
["pp4_bl4_4_1_units_out",{"$f":"'T2-B(PP4)'!$G$157","v":0},"#'T2-B(PP4)'!$G$157"]
["pp4_bl4_4_10_name",{"$f":"'T2-B(PP4)'!$B$166","v":0},"#'T2-B(PP4)'!$B$166"]
["pp4_bl4_4_10_rate_in",{"$f":"'T2-B(PP4)'!$E$166","v":0},"#'T2-B(PP4)'!$E$166"]
["pp4_bl4_4_10_rate_out",{"$f":"'T2-B(PP4)'!$H$166","v":0},"#'T2-B(PP4)'!$H$166"]
["pp4_bl4_4_10_total",{"$f":"'T2-B(PP4)'!$J$166","v":0},"#'T2-B(PP4)'!$J$166"]
["pp4_bl4_4_10_total_in",{"$f":"'T2-B(PP4)'!$F$166","v":0},"#'T2-B(PP4)'!$F$166"]
["pp4_bl4_4_10_total_out",{"$f":"'T2-B(PP4)'!$I$166","v":0},"#'T2-B(PP4)'!$I$166"]
["pp4_bl4_4_10_unit",{"$f":"'T2-B(PP4)'!$C$166","v":0},"#'T2-B(PP4)'!$C$166"]
["pp4_bl4_4_10_unit_in",{"$f":"'T2-B(PP4)'!$D$166","v":0},"#'T2-B(PP4)'!$D$166"]
["pp4_bl4_4_10_units_out",{"$f":"'T2-B(PP4)'!$G$166","v":0},"#'T2-B(PP4)'!$G$166"]
["pp4_bl4_4_11_name",{"$f":"'T2-B(PP4)'!$B$167","v":0},"#'T2-B(PP4)'!$B$167"]
["pp4_bl4_4_11_rate_in",{"$f":"'T2-B(PP4)'!$E$167","v":0},"#'T2-B(PP4)'!$E$167"]
["pp4_bl4_4_11_rate_out",{"$f":"'T2-B(PP4)'!$H$167","v":0},"#'T2-B(PP4)'!$H$167"]
["pp4_bl4_4_11_total",{"$f":"'T2-B(PP4)'!$J$167","v":0},"#'T2-B(PP4)'!$J$167"]
["pp4_bl4_4_11_total_in",{"$f":"'T2-B(PP4)'!$F$167","v":0},"#'T2-B(PP4)'!$F$167"]
["pp4_bl4_4_11_total_out",{"$f":"'T2-B(PP4)'!$I$167","v":0},"#'T2-B(PP4)'!$I$167"]
["pp4_bl4_4_11_unit",{"$f":"'T2-B(PP4)'!$C$167","v":0},"#'T2-B(PP4)'!$C$167"]
["pp4_bl4_4_11_unit_in",{"$f":"'T2-B(PP4)'!$D$167","v":0},"#'T2-B(PP4)'!$D$167"]
["pp4_bl4_4_11_units_out",{"$f":"'T2-B(PP4)'!$G$167","v":0},"#'T2-B(PP4)'!$G$167"]
["pp4_bl4_4_12_name",{"$f":"'T2-B(PP4)'!$B$168","v":0},"#'T2-B(PP4)'!$B$168"]
["pp4_bl4_4_12_rate_in",{"$f":"'T2-B(PP4)'!$E$168","v":0},"#'T2-B(PP4)'!$E$168"]
["pp4_bl4_4_12_rate_out",{"$f":"'T2-B(PP4)'!$H$168","v":0},"#'T2-B(PP4)'!$H$168"]
["pp4_bl4_4_12_total",{"$f":"'T2-B(PP4)'!$J$168","v":0},"#'T2-B(PP4)'!$J$168"]
["pp4_bl4_4_12_total_in",{"$f":"'T2-B(PP4)'!$F$168","v":0},"#'T2-B(PP4)'!$F$168"]
["pp4_bl4_4_12_total_out",{"$f":"'T2-B(PP4)'!$I$168","v":0},"#'T2-B(PP4)'!$I$168"]
["pp4_bl4_4_12_unit",{"$f":"'T2-B(PP4)'!$C$168","v":0},"#'T2-B(PP4)'!$C$168"]
["pp4_bl4_4_12_unit_in",{"$f":"'T2-B(PP4)'!$D$168","v":0},"#'T2-B(PP4)'!$D$168"]
["pp4_bl4_4_12_units_out",{"$f":"'T2-B(PP4)'!$G$168","v":0},"#'T2-B(PP4)'!$G$168"]
["pp4_bl4_4_13_name",{"$f":"'T2-B(PP4)'!$B$169","v":0},"#'T2-B(PP4)'!$B$169"]
["pp4_bl4_4_13_rate_in",{"$f":"'T2-B(PP4)'!$E$169","v":0},"#'T2-B(PP4)'!$E$169"]
["pp4_bl4_4_13_rate_out",{"$f":"'T2-B(PP4)'!$H$169","v":0},"#'T2-B(PP4)'!$H$169"]
["pp4_bl4_4_13_total",{"$f":"'T2-B(PP4)'!$J$169","v":0},"#'T2-B(PP4)'!$J$169"]
["pp4_bl4_4_13_total_in",{"$f":"'T2-B(PP4)'!$F$169","v":0},"#'T2-B(PP4)'!$F$169"]
["pp4_bl4_4_13_total_out",{"$f":"'T2-B(PP4)'!$I$169","v":0},"#'T2-B(PP4)'!$I$169"]
["pp4_bl4_4_13_unit",{"$f":"'T2-B(PP4)'!$C$169","v":0},"#'T2-B(PP4)'!$C$169"]
["pp4_bl4_4_13_unit_in",{"$f":"'T2-B(PP4)'!$D$169","v":0},"#'T2-B(PP4)'!$D$169"]
["pp4_bl4_4_13_units_out",{"$f":"'T2-B(PP4)'!$G$169","v":0},"#'T2-B(PP4)'!$G$169"]
["pp4_bl4_4_14_name",{"$f":"'T2-B(PP4)'!$B$170","v":0},"#'T2-B(PP4)'!$B$170"]
["pp4_bl4_4_14_rate_in",{"$f":"'T2-B(PP4)'!$E$170","v":0},"#'T2-B(PP4)'!$E$170"]
["pp4_bl4_4_14_rate_out",{"$f":"'T2-B(PP4)'!$H$170","v":0},"#'T2-B(PP4)'!$H$170"]
["pp4_bl4_4_14_total",{"$f":"'T2-B(PP4)'!$J$170","v":0},"#'T2-B(PP4)'!$J$170"]
["pp4_bl4_4_14_total_in",{"$f":"'T2-B(PP4)'!$F$170","v":0},"#'T2-B(PP4)'!$F$170"]
["pp4_bl4_4_14_total_out",{"$f":"'T2-B(PP4)'!$I$170","v":0},"#'T2-B(PP4)'!$I$170"]
["pp4_bl4_4_14_unit",{"$f":"'T2-B(PP4)'!$C$170","v":0},"#'T2-B(PP4)'!$C$170"]
["pp4_bl4_4_14_unit_in",{"$f":"'T2-B(PP4)'!$D$170","v":0},"#'T2-B(PP4)'!$D$170"]
["pp4_bl4_4_14_units_out",{"$f":"'T2-B(PP4)'!$G$170","v":0},"#'T2-B(PP4)'!$G$170"]
["pp4_bl4_4_15_name",{"$f":"'T2-B(PP4)'!$B$171","v":0},"#'T2-B(PP4)'!$B$171"]
["pp4_bl4_4_15_rate_in",{"$f":"'T2-B(PP4)'!$E$171","v":0},"#'T2-B(PP4)'!$E$171"]
["pp4_bl4_4_15_rate_out",{"$f":"'T2-B(PP4)'!$H$171","v":0},"#'T2-B(PP4)'!$H$171"]
["pp4_bl4_4_15_total",{"$f":"'T2-B(PP4)'!$J$171","v":0},"#'T2-B(PP4)'!$J$171"]
["pp4_bl4_4_15_total_in",{"$f":"'T2-B(PP4)'!$F$171","v":0},"#'T2-B(PP4)'!$F$171"]
["pp4_bl4_4_15_total_out",{"$f":"'T2-B(PP4)'!$I$171","v":0},"#'T2-B(PP4)'!$I$171"]
["pp4_bl4_4_15_unit",{"$f":"'T2-B(PP4)'!$C$171","v":0},"#'T2-B(PP4)'!$C$171"]
["pp4_bl4_4_15_unit_in",{"$f":"'T2-B(PP4)'!$D$171","v":0},"#'T2-B(PP4)'!$D$171"]
["pp4_bl4_4_15_units_out",{"$f":"'T2-B(PP4)'!$G$171","v":0},"#'T2-B(PP4)'!$G$171"]
["pp4_bl4_4_16_name",{"$f":"'T2-B(PP4)'!$B$172","v":0},"#'T2-B(PP4)'!$B$172"]
["pp4_bl4_4_16_rate_in",{"$f":"'T2-B(PP4)'!$E$172","v":0},"#'T2-B(PP4)'!$E$172"]
["pp4_bl4_4_16_rate_out",{"$f":"'T2-B(PP4)'!$H$172","v":0},"#'T2-B(PP4)'!$H$172"]
["pp4_bl4_4_16_total",{"$f":"'T2-B(PP4)'!$J$172","v":0},"#'T2-B(PP4)'!$J$172"]
["pp4_bl4_4_16_total_in",{"$f":"'T2-B(PP4)'!$F$172","v":0},"#'T2-B(PP4)'!$F$172"]
["pp4_bl4_4_16_total_out",{"$f":"'T2-B(PP4)'!$I$172","v":0},"#'T2-B(PP4)'!$I$172"]
["pp4_bl4_4_16_unit",{"$f":"'T2-B(PP4)'!$C$172","v":0},"#'T2-B(PP4)'!$C$172"]
["pp4_bl4_4_16_unit_in",{"$f":"'T2-B(PP4)'!$D$172","v":0},"#'T2-B(PP4)'!$D$172"]
["pp4_bl4_4_16_units_out",{"$f":"'T2-B(PP4)'!$G$172","v":0},"#'T2-B(PP4)'!$G$172"]
["pp4_bl4_4_17_name",{"$f":"'T2-B(PP4)'!$B$173","v":0},"#'T2-B(PP4)'!$B$173"]
["pp4_bl4_4_17_rate_in",{"$f":"'T2-B(PP4)'!$E$173","v":0},"#'T2-B(PP4)'!$E$173"]
["pp4_bl4_4_17_rate_out",{"$f":"'T2-B(PP4)'!$H$173","v":0},"#'T2-B(PP4)'!$H$173"]
["pp4_bl4_4_17_total",{"$f":"'T2-B(PP4)'!$J$173","v":0},"#'T2-B(PP4)'!$J$173"]
["pp4_bl4_4_17_total_in",{"$f":"'T2-B(PP4)'!$F$173","v":0},"#'T2-B(PP4)'!$F$173"]
["pp4_bl4_4_17_total_out",{"$f":"'T2-B(PP4)'!$I$173","v":0},"#'T2-B(PP4)'!$I$173"]
["pp4_bl4_4_17_unit",{"$f":"'T2-B(PP4)'!$C$173","v":0},"#'T2-B(PP4)'!$C$173"]
["pp4_bl4_4_17_unit_in",{"$f":"'T2-B(PP4)'!$D$173","v":0},"#'T2-B(PP4)'!$D$173"]
["pp4_bl4_4_17_units_out",{"$f":"'T2-B(PP4)'!$G$173","v":0},"#'T2-B(PP4)'!$G$173"]
["pp4_bl4_4_18_name",{"$f":"'T2-B(PP4)'!$B$174","v":0},"#'T2-B(PP4)'!$B$174"]
["pp4_bl4_4_18_rate_in",{"$f":"'T2-B(PP4)'!$E$174","v":0},"#'T2-B(PP4)'!$E$174"]
["pp4_bl4_4_18_rate_out",{"$f":"'T2-B(PP4)'!$H$174","v":0},"#'T2-B(PP4)'!$H$174"]
["pp4_bl4_4_18_total",{"$f":"'T2-B(PP4)'!$J$174","v":0},"#'T2-B(PP4)'!$J$174"]
["pp4_bl4_4_18_total_in",{"$f":"'T2-B(PP4)'!$F$174","v":0},"#'T2-B(PP4)'!$F$174"]
["pp4_bl4_4_18_total_out",{"$f":"'T2-B(PP4)'!$I$174","v":0},"#'T2-B(PP4)'!$I$174"]
["pp4_bl4_4_18_unit",{"$f":"'T2-B(PP4)'!$C$174","v":0},"#'T2-B(PP4)'!$C$174"]
["pp4_bl4_4_18_unit_in",{"$f":"'T2-B(PP4)'!$D$174","v":0},"#'T2-B(PP4)'!$D$174"]
["pp4_bl4_4_18_units_out",{"$f":"'T2-B(PP4)'!$G$174","v":0},"#'T2-B(PP4)'!$G$174"]
["pp4_bl4_4_19_name",{"$f":"'T2-B(PP4)'!$B$175","v":0},"#'T2-B(PP4)'!$B$175"]
["pp4_bl4_4_19_rate_in",{"$f":"'T2-B(PP4)'!$E$175","v":0},"#'T2-B(PP4)'!$E$175"]
["pp4_bl4_4_19_rate_out",{"$f":"'T2-B(PP4)'!$H$175","v":0},"#'T2-B(PP4)'!$H$175"]
["pp4_bl4_4_19_total",{"$f":"'T2-B(PP4)'!$J$175","v":0},"#'T2-B(PP4)'!$J$175"]
["pp4_bl4_4_19_total_in",{"$f":"'T2-B(PP4)'!$F$175","v":0},"#'T2-B(PP4)'!$F$175"]
["pp4_bl4_4_19_total_out",{"$f":"'T2-B(PP4)'!$I$175","v":0},"#'T2-B(PP4)'!$I$175"]
["pp4_bl4_4_19_unit",{"$f":"'T2-B(PP4)'!$C$175","v":0},"#'T2-B(PP4)'!$C$175"]
["pp4_bl4_4_19_unit_in",{"$f":"'T2-B(PP4)'!$D$175","v":0},"#'T2-B(PP4)'!$D$175"]
["pp4_bl4_4_19_units_out",{"$f":"'T2-B(PP4)'!$G$175","v":0},"#'T2-B(PP4)'!$G$175"]
["pp4_bl4_4_2_name",{"$f":"'T2-B(PP4)'!$B$158","v":0},"#'T2-B(PP4)'!$B$158"]
["pp4_bl4_4_2_rate_in",{"$f":"'T2-B(PP4)'!$E$158","v":0},"#'T2-B(PP4)'!$E$158"]
["pp4_bl4_4_2_rate_out",{"$f":"'T2-B(PP4)'!$H$158","v":0},"#'T2-B(PP4)'!$H$158"]
["pp4_bl4_4_2_total",{"$f":"'T2-B(PP4)'!$J$158","v":0},"#'T2-B(PP4)'!$J$158"]
["pp4_bl4_4_2_total_in",{"$f":"'T2-B(PP4)'!$F$158","v":0},"#'T2-B(PP4)'!$F$158"]
["pp4_bl4_4_2_total_out",{"$f":"'T2-B(PP4)'!$I$158","v":0},"#'T2-B(PP4)'!$I$158"]
["pp4_bl4_4_2_unit",{"$f":"'T2-B(PP4)'!$C$158","v":0},"#'T2-B(PP4)'!$C$158"]
["pp4_bl4_4_2_unit_in",{"$f":"'T2-B(PP4)'!$D$158","v":0},"#'T2-B(PP4)'!$D$158"]
["pp4_bl4_4_2_units_out",{"$f":"'T2-B(PP4)'!$G$158","v":0},"#'T2-B(PP4)'!$G$158"]
["pp4_bl4_4_20_name",{"$f":"'T2-B(PP4)'!$B$176","v":0},"#'T2-B(PP4)'!$B$176"]
["pp4_bl4_4_20_rate_in",{"$f":"'T2-B(PP4)'!$E$176","v":0},"#'T2-B(PP4)'!$E$176"]
["pp4_bl4_4_20_rate_out",{"$f":"'T2-B(PP4)'!$H$176","v":0},"#'T2-B(PP4)'!$H$176"]
["pp4_bl4_4_20_total",{"$f":"'T2-B(PP4)'!$J$176","v":0},"#'T2-B(PP4)'!$J$176"]
["pp4_bl4_4_20_total_in",{"$f":"'T2-B(PP4)'!$F$176","v":0},"#'T2-B(PP4)'!$F$176"]
["pp4_bl4_4_20_total_out",{"$f":"'T2-B(PP4)'!$I$176","v":0},"#'T2-B(PP4)'!$I$176"]
["pp4_bl4_4_20_unit",{"$f":"'T2-B(PP4)'!$C$176","v":0},"#'T2-B(PP4)'!$C$176"]
["pp4_bl4_4_20_unit_in",{"$f":"'T2-B(PP4)'!$D$176","v":0},"#'T2-B(PP4)'!$D$176"]
["pp4_bl4_4_20_units_out",{"$f":"'T2-B(PP4)'!$G$176","v":0},"#'T2-B(PP4)'!$G$176"]
["pp4_bl4_4_3_name",{"$f":"'T2-B(PP4)'!$B$159","v":0},"#'T2-B(PP4)'!$B$159"]
["pp4_bl4_4_3_rate_in",{"$f":"'T2-B(PP4)'!$E$159","v":0},"#'T2-B(PP4)'!$E$159"]
["pp4_bl4_4_3_rate_out",{"$f":"'T2-B(PP4)'!$H$159","v":0},"#'T2-B(PP4)'!$H$159"]
["pp4_bl4_4_3_total",{"$f":"'T2-B(PP4)'!$J$159","v":0},"#'T2-B(PP4)'!$J$159"]
["pp4_bl4_4_3_total_in",{"$f":"'T2-B(PP4)'!$F$159","v":0},"#'T2-B(PP4)'!$F$159"]
["pp4_bl4_4_3_total_out",{"$f":"'T2-B(PP4)'!$I$159","v":0},"#'T2-B(PP4)'!$I$159"]
["pp4_bl4_4_3_unit",{"$f":"'T2-B(PP4)'!$C$159","v":0},"#'T2-B(PP4)'!$C$159"]
["pp4_bl4_4_3_unit_in",{"$f":"'T2-B(PP4)'!$D$159","v":0},"#'T2-B(PP4)'!$D$159"]
["pp4_bl4_4_3_units_out",{"$f":"'T2-B(PP4)'!$G$159","v":0},"#'T2-B(PP4)'!$G$159"]
["pp4_bl4_4_4_name",{"$f":"'T2-B(PP4)'!$B$160","v":0},"#'T2-B(PP4)'!$B$160"]
["pp4_bl4_4_4_rate_in",{"$f":"'T2-B(PP4)'!$E$160","v":0},"#'T2-B(PP4)'!$E$160"]
["pp4_bl4_4_4_rate_out",{"$f":"'T2-B(PP4)'!$H$160","v":0},"#'T2-B(PP4)'!$H$160"]
["pp4_bl4_4_4_total",{"$f":"'T2-B(PP4)'!$J$160","v":0},"#'T2-B(PP4)'!$J$160"]
["pp4_bl4_4_4_total_in",{"$f":"'T2-B(PP4)'!$F$160","v":0},"#'T2-B(PP4)'!$F$160"]
["pp4_bl4_4_4_total_out",{"$f":"'T2-B(PP4)'!$I$160","v":0},"#'T2-B(PP4)'!$I$160"]
["pp4_bl4_4_4_unit",{"$f":"'T2-B(PP4)'!$C$160","v":0},"#'T2-B(PP4)'!$C$160"]
["pp4_bl4_4_4_unit_in",{"$f":"'T2-B(PP4)'!$D$160","v":0},"#'T2-B(PP4)'!$D$160"]
["pp4_bl4_4_4_units_out",{"$f":"'T2-B(PP4)'!$G$160","v":0},"#'T2-B(PP4)'!$G$160"]
["pp4_bl4_4_5_name",{"$f":"'T2-B(PP4)'!$B$161","v":0},"#'T2-B(PP4)'!$B$161"]
["pp4_bl4_4_5_rate_in",{"$f":"'T2-B(PP4)'!$E$161","v":0},"#'T2-B(PP4)'!$E$161"]
["pp4_bl4_4_5_rate_out",{"$f":"'T2-B(PP4)'!$H$161","v":0},"#'T2-B(PP4)'!$H$161"]
["pp4_bl4_4_5_total",{"$f":"'T2-B(PP4)'!$J$161","v":0},"#'T2-B(PP4)'!$J$161"]
["pp4_bl4_4_5_total_in",{"$f":"'T2-B(PP4)'!$F$161","v":0},"#'T2-B(PP4)'!$F$161"]
["pp4_bl4_4_5_total_out",{"$f":"'T2-B(PP4)'!$I$161","v":0},"#'T2-B(PP4)'!$I$161"]
["pp4_bl4_4_5_unit",{"$f":"'T2-B(PP4)'!$C$161","v":0},"#'T2-B(PP4)'!$C$161"]
["pp4_bl4_4_5_unit_in",{"$f":"'T2-B(PP4)'!$D$161","v":0},"#'T2-B(PP4)'!$D$161"]
["pp4_bl4_4_5_units_out",{"$f":"'T2-B(PP4)'!$G$161","v":0},"#'T2-B(PP4)'!$G$161"]
["pp4_bl4_4_6_name",{"$f":"'T2-B(PP4)'!$B$162","v":0},"#'T2-B(PP4)'!$B$162"]
["pp4_bl4_4_6_rate_in",{"$f":"'T2-B(PP4)'!$E$162","v":0},"#'T2-B(PP4)'!$E$162"]
["pp4_bl4_4_6_rate_out",{"$f":"'T2-B(PP4)'!$H$162","v":0},"#'T2-B(PP4)'!$H$162"]
["pp4_bl4_4_6_total",{"$f":"'T2-B(PP4)'!$J$162","v":0},"#'T2-B(PP4)'!$J$162"]
["pp4_bl4_4_6_total_in",{"$f":"'T2-B(PP4)'!$F$162","v":0},"#'T2-B(PP4)'!$F$162"]
["pp4_bl4_4_6_total_out",{"$f":"'T2-B(PP4)'!$I$162","v":0},"#'T2-B(PP4)'!$I$162"]
["pp4_bl4_4_6_unit",{"$f":"'T2-B(PP4)'!$C$162","v":0},"#'T2-B(PP4)'!$C$162"]
["pp4_bl4_4_6_unit_in",{"$f":"'T2-B(PP4)'!$D$162","v":0},"#'T2-B(PP4)'!$D$162"]
["pp4_bl4_4_6_units_out",{"$f":"'T2-B(PP4)'!$G$162","v":0},"#'T2-B(PP4)'!$G$162"]
["pp4_bl4_4_7_name",{"$f":"'T2-B(PP4)'!$B$163","v":0},"#'T2-B(PP4)'!$B$163"]
["pp4_bl4_4_7_rate_in",{"$f":"'T2-B(PP4)'!$E$163","v":0},"#'T2-B(PP4)'!$E$163"]
["pp4_bl4_4_7_rate_out",{"$f":"'T2-B(PP4)'!$H$163","v":0},"#'T2-B(PP4)'!$H$163"]
["pp4_bl4_4_7_total",{"$f":"'T2-B(PP4)'!$J$163","v":0},"#'T2-B(PP4)'!$J$163"]
["pp4_bl4_4_7_total_in",{"$f":"'T2-B(PP4)'!$F$163","v":0},"#'T2-B(PP4)'!$F$163"]
["pp4_bl4_4_7_total_out",{"$f":"'T2-B(PP4)'!$I$163","v":0},"#'T2-B(PP4)'!$I$163"]
["pp4_bl4_4_7_unit",{"$f":"'T2-B(PP4)'!$C$163","v":0},"#'T2-B(PP4)'!$C$163"]
["pp4_bl4_4_7_unit_in",{"$f":"'T2-B(PP4)'!$D$163","v":0},"#'T2-B(PP4)'!$D$163"]
["pp4_bl4_4_7_units_out",{"$f":"'T2-B(PP4)'!$G$163","v":0},"#'T2-B(PP4)'!$G$163"]
["pp4_bl4_4_8_name",{"$f":"'T2-B(PP4)'!$B$164","v":0},"#'T2-B(PP4)'!$B$164"]
["pp4_bl4_4_8_rate_in",{"$f":"'T2-B(PP4)'!$E$164","v":0},"#'T2-B(PP4)'!$E$164"]
["pp4_bl4_4_8_rate_out",{"$f":"'T2-B(PP4)'!$H$164","v":0},"#'T2-B(PP4)'!$H$164"]
["pp4_bl4_4_8_total",{"$f":"'T2-B(PP4)'!$J$164","v":0},"#'T2-B(PP4)'!$J$164"]
["pp4_bl4_4_8_total_in",{"$f":"'T2-B(PP4)'!$F$164","v":0},"#'T2-B(PP4)'!$F$164"]
["pp4_bl4_4_8_total_out",{"$f":"'T2-B(PP4)'!$I$164","v":0},"#'T2-B(PP4)'!$I$164"]
["pp4_bl4_4_8_unit",{"$f":"'T2-B(PP4)'!$C$164","v":0},"#'T2-B(PP4)'!$C$164"]
["pp4_bl4_4_8_unit_in",{"$f":"'T2-B(PP4)'!$D$164","v":0},"#'T2-B(PP4)'!$D$164"]
["pp4_bl4_4_8_units_out",{"$f":"'T2-B(PP4)'!$G$164","v":0},"#'T2-B(PP4)'!$G$164"]
["pp4_bl4_4_9_name",{"$f":"'T2-B(PP4)'!$B$165","v":0},"#'T2-B(PP4)'!$B$165"]
["pp4_bl4_4_9_rate_in",{"$f":"'T2-B(PP4)'!$E$165","v":0},"#'T2-B(PP4)'!$E$165"]
["pp4_bl4_4_9_rate_out",{"$f":"'T2-B(PP4)'!$H$165","v":0},"#'T2-B(PP4)'!$H$165"]
["pp4_bl4_4_9_total",{"$f":"'T2-B(PP4)'!$J$165","v":0},"#'T2-B(PP4)'!$J$165"]
["pp4_bl4_4_9_total_in",{"$f":"'T2-B(PP4)'!$F$165","v":0},"#'T2-B(PP4)'!$F$165"]
["pp4_bl4_4_9_total_out",{"$f":"'T2-B(PP4)'!$I$165","v":0},"#'T2-B(PP4)'!$I$165"]
["pp4_bl4_4_9_unit",{"$f":"'T2-B(PP4)'!$C$165","v":0},"#'T2-B(PP4)'!$C$165"]
["pp4_bl4_4_9_unit_in",{"$f":"'T2-B(PP4)'!$D$165","v":0},"#'T2-B(PP4)'!$D$165"]
["pp4_bl4_4_9_units_out",{"$f":"'T2-B(PP4)'!$G$165","v":0},"#'T2-B(PP4)'!$G$165"]
["pp4_bl4_4_total",{"$f":"'T2-B(PP4)'!$J$156","v":0},"#'T2-B(PP4)'!$J$156"]
["pp4_bl4_4_total_in",{"$f":"'T2-B(PP4)'!$F$156","v":0},"#'T2-B(PP4)'!$F$156"]
["pp4_bl4_4_total_out",{"$f":"'T2-B(PP4)'!$I$156","v":0},"#'T2-B(PP4)'!$I$156"]
["pp4_bl4_5_1_name",{"$f":"'T2-B(PP4)'!$B$178","v":0},"#'T2-B(PP4)'!$B$178"]
["pp4_bl4_5_1_rate_in",{"$f":"'T2-B(PP4)'!$E$178","v":0},"#'T2-B(PP4)'!$E$178"]
["pp4_bl4_5_1_rate_out",{"$f":"'T2-B(PP4)'!$H$178","v":0},"#'T2-B(PP4)'!$H$178"]
["pp4_bl4_5_1_total",{"$f":"'T2-B(PP4)'!$J$178","v":0},"#'T2-B(PP4)'!$J$178"]
["pp4_bl4_5_1_total_in",{"$f":"'T2-B(PP4)'!$F$178","v":0},"#'T2-B(PP4)'!$F$178"]
["pp4_bl4_5_1_total_out",{"$f":"'T2-B(PP4)'!$I$178","v":0},"#'T2-B(PP4)'!$I$178"]
["pp4_bl4_5_1_unit",{"$f":"'T2-B(PP4)'!$C$178","v":0},"#'T2-B(PP4)'!$C$178"]
["pp4_bl4_5_1_unit_in",{"$f":"'T2-B(PP4)'!$D$178","v":0},"#'T2-B(PP4)'!$D$178"]
["pp4_bl4_5_1_units_out",{"$f":"'T2-B(PP4)'!$G$178","v":0},"#'T2-B(PP4)'!$G$178"]
["pp4_bl4_5_10_name",{"$f":"'T2-B(PP4)'!$B$187","v":0},"#'T2-B(PP4)'!$B$187"]
["pp4_bl4_5_10_rate_in",{"$f":"'T2-B(PP4)'!$E$187","v":0},"#'T2-B(PP4)'!$E$187"]
["pp4_bl4_5_10_rate_out",{"$f":"'T2-B(PP4)'!$H$187","v":0},"#'T2-B(PP4)'!$H$187"]
["pp4_bl4_5_10_total",{"$f":"'T2-B(PP4)'!$J$187","v":0},"#'T2-B(PP4)'!$J$187"]
["pp4_bl4_5_10_total_in",{"$f":"'T2-B(PP4)'!$F$187","v":0},"#'T2-B(PP4)'!$F$187"]
["pp4_bl4_5_10_total_out",{"$f":"'T2-B(PP4)'!$I$187","v":0},"#'T2-B(PP4)'!$I$187"]
["pp4_bl4_5_10_unit",{"$f":"'T2-B(PP4)'!$C$187","v":0},"#'T2-B(PP4)'!$C$187"]
["pp4_bl4_5_10_unit_in",{"$f":"'T2-B(PP4)'!$D$187","v":0},"#'T2-B(PP4)'!$D$187"]
["pp4_bl4_5_10_units_out",{"$f":"'T2-B(PP4)'!$G$187","v":0},"#'T2-B(PP4)'!$G$187"]
["pp4_bl4_5_11_name",{"$f":"'T2-B(PP4)'!$B$188","v":0},"#'T2-B(PP4)'!$B$188"]
["pp4_bl4_5_11_rate_in",{"$f":"'T2-B(PP4)'!$E$188","v":0},"#'T2-B(PP4)'!$E$188"]
["pp4_bl4_5_11_rate_out",{"$f":"'T2-B(PP4)'!$H$188","v":0},"#'T2-B(PP4)'!$H$188"]
["pp4_bl4_5_11_total",{"$f":"'T2-B(PP4)'!$J$188","v":0},"#'T2-B(PP4)'!$J$188"]
["pp4_bl4_5_11_total_in",{"$f":"'T2-B(PP4)'!$F$188","v":0},"#'T2-B(PP4)'!$F$188"]
["pp4_bl4_5_11_total_out",{"$f":"'T2-B(PP4)'!$I$188","v":0},"#'T2-B(PP4)'!$I$188"]
["pp4_bl4_5_11_unit",{"$f":"'T2-B(PP4)'!$C$188","v":0},"#'T2-B(PP4)'!$C$188"]
["pp4_bl4_5_11_unit_in",{"$f":"'T2-B(PP4)'!$D$188","v":0},"#'T2-B(PP4)'!$D$188"]
["pp4_bl4_5_11_units_out",{"$f":"'T2-B(PP4)'!$G$188","v":0},"#'T2-B(PP4)'!$G$188"]
["pp4_bl4_5_12_name",{"$f":"'T2-B(PP4)'!$B$189","v":0},"#'T2-B(PP4)'!$B$189"]
["pp4_bl4_5_12_rate_in",{"$f":"'T2-B(PP4)'!$E$189","v":0},"#'T2-B(PP4)'!$E$189"]
["pp4_bl4_5_12_rate_out",{"$f":"'T2-B(PP4)'!$H$189","v":0},"#'T2-B(PP4)'!$H$189"]
["pp4_bl4_5_12_total",{"$f":"'T2-B(PP4)'!$J$189","v":0},"#'T2-B(PP4)'!$J$189"]
["pp4_bl4_5_12_total_in",{"$f":"'T2-B(PP4)'!$F$189","v":0},"#'T2-B(PP4)'!$F$189"]
["pp4_bl4_5_12_total_out",{"$f":"'T2-B(PP4)'!$I$189","v":0},"#'T2-B(PP4)'!$I$189"]
["pp4_bl4_5_12_unit",{"$f":"'T2-B(PP4)'!$C$189","v":0},"#'T2-B(PP4)'!$C$189"]
["pp4_bl4_5_12_unit_in",{"$f":"'T2-B(PP4)'!$D$189","v":0},"#'T2-B(PP4)'!$D$189"]
["pp4_bl4_5_12_units_out",{"$f":"'T2-B(PP4)'!$G$189","v":0},"#'T2-B(PP4)'!$G$189"]
["pp4_bl4_5_13_name",{"$f":"'T2-B(PP4)'!$B$190","v":0},"#'T2-B(PP4)'!$B$190"]
["pp4_bl4_5_13_rate_in",{"$f":"'T2-B(PP4)'!$E$190","v":0},"#'T2-B(PP4)'!$E$190"]
["pp4_bl4_5_13_rate_out",{"$f":"'T2-B(PP4)'!$H$190","v":0},"#'T2-B(PP4)'!$H$190"]
["pp4_bl4_5_13_total",{"$f":"'T2-B(PP4)'!$J$190","v":0},"#'T2-B(PP4)'!$J$190"]
["pp4_bl4_5_13_total_in",{"$f":"'T2-B(PP4)'!$F$190","v":0},"#'T2-B(PP4)'!$F$190"]
["pp4_bl4_5_13_total_out",{"$f":"'T2-B(PP4)'!$I$190","v":0},"#'T2-B(PP4)'!$I$190"]
["pp4_bl4_5_13_unit",{"$f":"'T2-B(PP4)'!$C$190","v":0},"#'T2-B(PP4)'!$C$190"]
["pp4_bl4_5_13_unit_in",{"$f":"'T2-B(PP4)'!$D$190","v":0},"#'T2-B(PP4)'!$D$190"]
["pp4_bl4_5_13_units_out",{"$f":"'T2-B(PP4)'!$G$190","v":0},"#'T2-B(PP4)'!$G$190"]
["pp4_bl4_5_14_name",{"$f":"'T2-B(PP4)'!$B$191","v":0},"#'T2-B(PP4)'!$B$191"]
["pp4_bl4_5_14_rate_in",{"$f":"'T2-B(PP4)'!$E$191","v":0},"#'T2-B(PP4)'!$E$191"]
["pp4_bl4_5_14_rate_out",{"$f":"'T2-B(PP4)'!$H$191","v":0},"#'T2-B(PP4)'!$H$191"]
["pp4_bl4_5_14_total",{"$f":"'T2-B(PP4)'!$J$191","v":0},"#'T2-B(PP4)'!$J$191"]
["pp4_bl4_5_14_total_in",{"$f":"'T2-B(PP4)'!$F$191","v":0},"#'T2-B(PP4)'!$F$191"]
["pp4_bl4_5_14_total_out",{"$f":"'T2-B(PP4)'!$I$191","v":0},"#'T2-B(PP4)'!$I$191"]
["pp4_bl4_5_14_unit",{"$f":"'T2-B(PP4)'!$C$191","v":0},"#'T2-B(PP4)'!$C$191"]
["pp4_bl4_5_14_unit_in",{"$f":"'T2-B(PP4)'!$D$191","v":0},"#'T2-B(PP4)'!$D$191"]
["pp4_bl4_5_14_units_out",{"$f":"'T2-B(PP4)'!$G$191","v":0},"#'T2-B(PP4)'!$G$191"]
["pp4_bl4_5_15_name",{"$f":"'T2-B(PP4)'!$B$192","v":0},"#'T2-B(PP4)'!$B$192"]
["pp4_bl4_5_15_rate_in",{"$f":"'T2-B(PP4)'!$E$192","v":0},"#'T2-B(PP4)'!$E$192"]
["pp4_bl4_5_15_rate_out",{"$f":"'T2-B(PP4)'!$H$192","v":0},"#'T2-B(PP4)'!$H$192"]
["pp4_bl4_5_15_total",{"$f":"'T2-B(PP4)'!$J$192","v":0},"#'T2-B(PP4)'!$J$192"]
["pp4_bl4_5_15_total_in",{"$f":"'T2-B(PP4)'!$F$192","v":0},"#'T2-B(PP4)'!$F$192"]
["pp4_bl4_5_15_total_out",{"$f":"'T2-B(PP4)'!$I$192","v":0},"#'T2-B(PP4)'!$I$192"]
["pp4_bl4_5_15_unit",{"$f":"'T2-B(PP4)'!$C$192","v":0},"#'T2-B(PP4)'!$C$192"]
["pp4_bl4_5_15_unit_in",{"$f":"'T2-B(PP4)'!$D$192","v":0},"#'T2-B(PP4)'!$D$192"]
["pp4_bl4_5_15_units_out",{"$f":"'T2-B(PP4)'!$G$192","v":0},"#'T2-B(PP4)'!$G$192"]
["pp4_bl4_5_16_name",{"$f":"'T2-B(PP4)'!$B$193","v":0},"#'T2-B(PP4)'!$B$193"]
["pp4_bl4_5_16_rate_in",{"$f":"'T2-B(PP4)'!$E$193","v":0},"#'T2-B(PP4)'!$E$193"]
["pp4_bl4_5_16_rate_out",{"$f":"'T2-B(PP4)'!$H$193","v":0},"#'T2-B(PP4)'!$H$193"]
["pp4_bl4_5_16_total",{"$f":"'T2-B(PP4)'!$J$193","v":0},"#'T2-B(PP4)'!$J$193"]
["pp4_bl4_5_16_total_in",{"$f":"'T2-B(PP4)'!$F$193","v":0},"#'T2-B(PP4)'!$F$193"]
["pp4_bl4_5_16_total_out",{"$f":"'T2-B(PP4)'!$I$193","v":0},"#'T2-B(PP4)'!$I$193"]
["pp4_bl4_5_16_unit",{"$f":"'T2-B(PP4)'!$C$193","v":0},"#'T2-B(PP4)'!$C$193"]
["pp4_bl4_5_16_unit_in",{"$f":"'T2-B(PP4)'!$D$193","v":0},"#'T2-B(PP4)'!$D$193"]
["pp4_bl4_5_16_units_out",{"$f":"'T2-B(PP4)'!$G$193","v":0},"#'T2-B(PP4)'!$G$193"]
["pp4_bl4_5_17_name",{"$f":"'T2-B(PP4)'!$B$194","v":0},"#'T2-B(PP4)'!$B$194"]
["pp4_bl4_5_17_rate_in",{"$f":"'T2-B(PP4)'!$E$194","v":0},"#'T2-B(PP4)'!$E$194"]
["pp4_bl4_5_17_rate_out",{"$f":"'T2-B(PP4)'!$H$194","v":0},"#'T2-B(PP4)'!$H$194"]
["pp4_bl4_5_17_total",{"$f":"'T2-B(PP4)'!$J$194","v":0},"#'T2-B(PP4)'!$J$194"]
["pp4_bl4_5_17_total_in",{"$f":"'T2-B(PP4)'!$F$194","v":0},"#'T2-B(PP4)'!$F$194"]
["pp4_bl4_5_17_total_out",{"$f":"'T2-B(PP4)'!$I$194","v":0},"#'T2-B(PP4)'!$I$194"]
["pp4_bl4_5_17_unit",{"$f":"'T2-B(PP4)'!$C$194","v":0},"#'T2-B(PP4)'!$C$194"]
["pp4_bl4_5_17_unit_in",{"$f":"'T2-B(PP4)'!$D$194","v":0},"#'T2-B(PP4)'!$D$194"]
["pp4_bl4_5_17_units_out",{"$f":"'T2-B(PP4)'!$G$194","v":0},"#'T2-B(PP4)'!$G$194"]
["pp4_bl4_5_18_name",{"$f":"'T2-B(PP4)'!$B$195","v":0},"#'T2-B(PP4)'!$B$195"]
["pp4_bl4_5_18_rate_in",{"$f":"'T2-B(PP4)'!$E$195","v":0},"#'T2-B(PP4)'!$E$195"]
["pp4_bl4_5_18_rate_out",{"$f":"'T2-B(PP4)'!$H$195","v":0},"#'T2-B(PP4)'!$H$195"]
["pp4_bl4_5_18_total",{"$f":"'T2-B(PP4)'!$J$195","v":0},"#'T2-B(PP4)'!$J$195"]
["pp4_bl4_5_18_total_in",{"$f":"'T2-B(PP4)'!$F$195","v":0},"#'T2-B(PP4)'!$F$195"]
["pp4_bl4_5_18_total_out",{"$f":"'T2-B(PP4)'!$I$195","v":0},"#'T2-B(PP4)'!$I$195"]
["pp4_bl4_5_18_unit",{"$f":"'T2-B(PP4)'!$C$195","v":0},"#'T2-B(PP4)'!$C$195"]
["pp4_bl4_5_18_unit_in",{"$f":"'T2-B(PP4)'!$D$195","v":0},"#'T2-B(PP4)'!$D$195"]
["pp4_bl4_5_18_units_out",{"$f":"'T2-B(PP4)'!$G$195","v":0},"#'T2-B(PP4)'!$G$195"]
["pp4_bl4_5_19_name",{"$f":"'T2-B(PP4)'!$B$196","v":0},"#'T2-B(PP4)'!$B$196"]
["pp4_bl4_5_19_rate_in",{"$f":"'T2-B(PP4)'!$E$196","v":0},"#'T2-B(PP4)'!$E$196"]
["pp4_bl4_5_19_rate_out",{"$f":"'T2-B(PP4)'!$H$196","v":0},"#'T2-B(PP4)'!$H$196"]
["pp4_bl4_5_19_total",{"$f":"'T2-B(PP4)'!$J$196","v":0},"#'T2-B(PP4)'!$J$196"]
["pp4_bl4_5_19_total_in",{"$f":"'T2-B(PP4)'!$F$196","v":0},"#'T2-B(PP4)'!$F$196"]
["pp4_bl4_5_19_total_out",{"$f":"'T2-B(PP4)'!$I$196","v":0},"#'T2-B(PP4)'!$I$196"]
["pp4_bl4_5_19_unit",{"$f":"'T2-B(PP4)'!$C$196","v":0},"#'T2-B(PP4)'!$C$196"]
["pp4_bl4_5_19_unit_in",{"$f":"'T2-B(PP4)'!$D$196","v":0},"#'T2-B(PP4)'!$D$196"]
["pp4_bl4_5_19_units_out",{"$f":"'T2-B(PP4)'!$G$196","v":0},"#'T2-B(PP4)'!$G$196"]
["pp4_bl4_5_2_name",{"$f":"'T2-B(PP4)'!$B$179","v":0},"#'T2-B(PP4)'!$B$179"]
["pp4_bl4_5_2_rate_in",{"$f":"'T2-B(PP4)'!$E$179","v":0},"#'T2-B(PP4)'!$E$179"]
["pp4_bl4_5_2_rate_out",{"$f":"'T2-B(PP4)'!$H$179","v":0},"#'T2-B(PP4)'!$H$179"]
["pp4_bl4_5_2_total",{"$f":"'T2-B(PP4)'!$J$179","v":0},"#'T2-B(PP4)'!$J$179"]
["pp4_bl4_5_2_total_in",{"$f":"'T2-B(PP4)'!$F$179","v":0},"#'T2-B(PP4)'!$F$179"]
["pp4_bl4_5_2_total_out",{"$f":"'T2-B(PP4)'!$I$179","v":0},"#'T2-B(PP4)'!$I$179"]
["pp4_bl4_5_2_unit",{"$f":"'T2-B(PP4)'!$C$179","v":0},"#'T2-B(PP4)'!$C$179"]
["pp4_bl4_5_2_unit_in",{"$f":"'T2-B(PP4)'!$D$179","v":0},"#'T2-B(PP4)'!$D$179"]
["pp4_bl4_5_2_units_out",{"$f":"'T2-B(PP4)'!$G$179","v":0},"#'T2-B(PP4)'!$G$179"]
["pp4_bl4_5_20_name",{"$f":"'T2-B(PP4)'!$B$197","v":0},"#'T2-B(PP4)'!$B$197"]
["pp4_bl4_5_20_rate_in",{"$f":"'T2-B(PP4)'!$E$197","v":0},"#'T2-B(PP4)'!$E$197"]
["pp4_bl4_5_20_rate_out",{"$f":"'T2-B(PP4)'!$H$197","v":0},"#'T2-B(PP4)'!$H$197"]
["pp4_bl4_5_20_total",{"$f":"'T2-B(PP4)'!$J$197","v":0},"#'T2-B(PP4)'!$J$197"]
["pp4_bl4_5_20_total_in",{"$f":"'T2-B(PP4)'!$F$197","v":0},"#'T2-B(PP4)'!$F$197"]
["pp4_bl4_5_20_total_out",{"$f":"'T2-B(PP4)'!$I$197","v":0},"#'T2-B(PP4)'!$I$197"]
["pp4_bl4_5_20_unit",{"$f":"'T2-B(PP4)'!$C$197","v":0},"#'T2-B(PP4)'!$C$197"]
["pp4_bl4_5_20_unit_in",{"$f":"'T2-B(PP4)'!$D$197","v":0},"#'T2-B(PP4)'!$D$197"]
["pp4_bl4_5_20_units_out",{"$f":"'T2-B(PP4)'!$G$197","v":0},"#'T2-B(PP4)'!$G$197"]
["pp4_bl4_5_3_name",{"$f":"'T2-B(PP4)'!$B$180","v":0},"#'T2-B(PP4)'!$B$180"]
["pp4_bl4_5_3_rate_in",{"$f":"'T2-B(PP4)'!$E$180","v":0},"#'T2-B(PP4)'!$E$180"]
["pp4_bl4_5_3_rate_out",{"$f":"'T2-B(PP4)'!$H$180","v":0},"#'T2-B(PP4)'!$H$180"]
["pp4_bl4_5_3_total",{"$f":"'T2-B(PP4)'!$J$180","v":0},"#'T2-B(PP4)'!$J$180"]
["pp4_bl4_5_3_total_in",{"$f":"'T2-B(PP4)'!$F$180","v":0},"#'T2-B(PP4)'!$F$180"]
["pp4_bl4_5_3_total_out",{"$f":"'T2-B(PP4)'!$I$180","v":0},"#'T2-B(PP4)'!$I$180"]
["pp4_bl4_5_3_unit",{"$f":"'T2-B(PP4)'!$C$180","v":0},"#'T2-B(PP4)'!$C$180"]
["pp4_bl4_5_3_unit_in",{"$f":"'T2-B(PP4)'!$D$180","v":0},"#'T2-B(PP4)'!$D$180"]
["pp4_bl4_5_3_units_out",{"$f":"'T2-B(PP4)'!$G$180","v":0},"#'T2-B(PP4)'!$G$180"]
["pp4_bl4_5_4_name",{"$f":"'T2-B(PP4)'!$B$181","v":0},"#'T2-B(PP4)'!$B$181"]
["pp4_bl4_5_4_rate_in",{"$f":"'T2-B(PP4)'!$E$181","v":0},"#'T2-B(PP4)'!$E$181"]
["pp4_bl4_5_4_rate_out",{"$f":"'T2-B(PP4)'!$H$181","v":0},"#'T2-B(PP4)'!$H$181"]
["pp4_bl4_5_4_total",{"$f":"'T2-B(PP4)'!$J$181","v":0},"#'T2-B(PP4)'!$J$181"]
["pp4_bl4_5_4_total_in",{"$f":"'T2-B(PP4)'!$F$181","v":0},"#'T2-B(PP4)'!$F$181"]
["pp4_bl4_5_4_total_out",{"$f":"'T2-B(PP4)'!$I$181","v":0},"#'T2-B(PP4)'!$I$181"]
["pp4_bl4_5_4_unit",{"$f":"'T2-B(PP4)'!$C$181","v":0},"#'T2-B(PP4)'!$C$181"]
["pp4_bl4_5_4_unit_in",{"$f":"'T2-B(PP4)'!$D$181","v":0},"#'T2-B(PP4)'!$D$181"]
["pp4_bl4_5_4_units_out",{"$f":"'T2-B(PP4)'!$G$181","v":0},"#'T2-B(PP4)'!$G$181"]
["pp4_bl4_5_5_name",{"$f":"'T2-B(PP4)'!$B$182","v":0},"#'T2-B(PP4)'!$B$182"]
["pp4_bl4_5_5_rate_in",{"$f":"'T2-B(PP4)'!$E$182","v":0},"#'T2-B(PP4)'!$E$182"]
["pp4_bl4_5_5_rate_out",{"$f":"'T2-B(PP4)'!$H$182","v":0},"#'T2-B(PP4)'!$H$182"]
["pp4_bl4_5_5_total",{"$f":"'T2-B(PP4)'!$J$182","v":0},"#'T2-B(PP4)'!$J$182"]
["pp4_bl4_5_5_total_in",{"$f":"'T2-B(PP4)'!$F$182","v":0},"#'T2-B(PP4)'!$F$182"]
["pp4_bl4_5_5_total_out",{"$f":"'T2-B(PP4)'!$I$182","v":0},"#'T2-B(PP4)'!$I$182"]
["pp4_bl4_5_5_unit",{"$f":"'T2-B(PP4)'!$C$182","v":0},"#'T2-B(PP4)'!$C$182"]
["pp4_bl4_5_5_unit_in",{"$f":"'T2-B(PP4)'!$D$182","v":0},"#'T2-B(PP4)'!$D$182"]
["pp4_bl4_5_5_units_out",{"$f":"'T2-B(PP4)'!$G$182","v":0},"#'T2-B(PP4)'!$G$182"]
["pp4_bl4_5_6_name",{"$f":"'T2-B(PP4)'!$B$183","v":0},"#'T2-B(PP4)'!$B$183"]
["pp4_bl4_5_6_rate_in",{"$f":"'T2-B(PP4)'!$E$183","v":0},"#'T2-B(PP4)'!$E$183"]
["pp4_bl4_5_6_rate_out",{"$f":"'T2-B(PP4)'!$H$183","v":0},"#'T2-B(PP4)'!$H$183"]
["pp4_bl4_5_6_total",{"$f":"'T2-B(PP4)'!$J$183","v":0},"#'T2-B(PP4)'!$J$183"]
["pp4_bl4_5_6_total_in",{"$f":"'T2-B(PP4)'!$F$183","v":0},"#'T2-B(PP4)'!$F$183"]
["pp4_bl4_5_6_total_out",{"$f":"'T2-B(PP4)'!$I$183","v":0},"#'T2-B(PP4)'!$I$183"]
["pp4_bl4_5_6_unit",{"$f":"'T2-B(PP4)'!$C$183","v":0},"#'T2-B(PP4)'!$C$183"]
["pp4_bl4_5_6_unit_in",{"$f":"'T2-B(PP4)'!$D$183","v":0},"#'T2-B(PP4)'!$D$183"]
["pp4_bl4_5_6_units_out",{"$f":"'T2-B(PP4)'!$G$183","v":0},"#'T2-B(PP4)'!$G$183"]
["pp4_bl4_5_7_name",{"$f":"'T2-B(PP4)'!$B$184","v":0},"#'T2-B(PP4)'!$B$184"]
["pp4_bl4_5_7_rate_in",{"$f":"'T2-B(PP4)'!$E$184","v":0},"#'T2-B(PP4)'!$E$184"]
["pp4_bl4_5_7_rate_out",{"$f":"'T2-B(PP4)'!$H$184","v":0},"#'T2-B(PP4)'!$H$184"]
["pp4_bl4_5_7_total",{"$f":"'T2-B(PP4)'!$J$184","v":0},"#'T2-B(PP4)'!$J$184"]
["pp4_bl4_5_7_total_in",{"$f":"'T2-B(PP4)'!$F$184","v":0},"#'T2-B(PP4)'!$F$184"]
["pp4_bl4_5_7_total_out",{"$f":"'T2-B(PP4)'!$I$184","v":0},"#'T2-B(PP4)'!$I$184"]
["pp4_bl4_5_7_unit",{"$f":"'T2-B(PP4)'!$C$184","v":0},"#'T2-B(PP4)'!$C$184"]
["pp4_bl4_5_7_unit_in",{"$f":"'T2-B(PP4)'!$D$184","v":0},"#'T2-B(PP4)'!$D$184"]
["pp4_bl4_5_7_units_out",{"$f":"'T2-B(PP4)'!$G$184","v":0},"#'T2-B(PP4)'!$G$184"]
["pp4_bl4_5_8_name",{"$f":"'T2-B(PP4)'!$B$185","v":0},"#'T2-B(PP4)'!$B$185"]
["pp4_bl4_5_8_rate_in",{"$f":"'T2-B(PP4)'!$E$185","v":0},"#'T2-B(PP4)'!$E$185"]
["pp4_bl4_5_8_rate_out",{"$f":"'T2-B(PP4)'!$H$185","v":0},"#'T2-B(PP4)'!$H$185"]
["pp4_bl4_5_8_total",{"$f":"'T2-B(PP4)'!$J$185","v":0},"#'T2-B(PP4)'!$J$185"]
["pp4_bl4_5_8_total_in",{"$f":"'T2-B(PP4)'!$F$185","v":0},"#'T2-B(PP4)'!$F$185"]
["pp4_bl4_5_8_total_out",{"$f":"'T2-B(PP4)'!$I$185","v":0},"#'T2-B(PP4)'!$I$185"]
["pp4_bl4_5_8_unit",{"$f":"'T2-B(PP4)'!$C$185","v":0},"#'T2-B(PP4)'!$C$185"]
["pp4_bl4_5_8_unit_in",{"$f":"'T2-B(PP4)'!$D$185","v":0},"#'T2-B(PP4)'!$D$185"]
["pp4_bl4_5_8_units_out",{"$f":"'T2-B(PP4)'!$G$185","v":0},"#'T2-B(PP4)'!$G$185"]
["pp4_bl4_5_9_name",{"$f":"'T2-B(PP4)'!$B$186","v":0},"#'T2-B(PP4)'!$B$186"]
["pp4_bl4_5_9_rate_in",{"$f":"'T2-B(PP4)'!$E$186","v":0},"#'T2-B(PP4)'!$E$186"]
["pp4_bl4_5_9_rate_out",{"$f":"'T2-B(PP4)'!$H$186","v":0},"#'T2-B(PP4)'!$H$186"]
["pp4_bl4_5_9_total",{"$f":"'T2-B(PP4)'!$J$186","v":0},"#'T2-B(PP4)'!$J$186"]
["pp4_bl4_5_9_total_in",{"$f":"'T2-B(PP4)'!$F$186","v":0},"#'T2-B(PP4)'!$F$186"]
["pp4_bl4_5_9_total_out",{"$f":"'T2-B(PP4)'!$I$186","v":0},"#'T2-B(PP4)'!$I$186"]
["pp4_bl4_5_9_unit",{"$f":"'T2-B(PP4)'!$C$186","v":0},"#'T2-B(PP4)'!$C$186"]
["pp4_bl4_5_9_unit_in",{"$f":"'T2-B(PP4)'!$D$186","v":0},"#'T2-B(PP4)'!$D$186"]
["pp4_bl4_5_9_units_out",{"$f":"'T2-B(PP4)'!$G$186","v":0},"#'T2-B(PP4)'!$G$186"]
["pp4_bl4_5_total",{"$f":"'T2-B(PP4)'!$J$177","v":0},"#'T2-B(PP4)'!$J$177"]
["pp4_bl4_5_total_in",{"$f":"'T2-B(PP4)'!$F$177","v":0},"#'T2-B(PP4)'!$F$177"]
["pp4_bl4_5_total_out",{"$f":"'T2-B(PP4)'!$I$177","v":0},"#'T2-B(PP4)'!$I$177"]
["pp4_bl4_6_1_name",{"$f":"'T2-B(PP4)'!$B$199","v":0},"#'T2-B(PP4)'!$B$199"]
["pp4_bl4_6_1_rate_in",{"$f":"'T2-B(PP4)'!$E$199","v":0},"#'T2-B(PP4)'!$E$199"]
["pp4_bl4_6_1_rate_out",{"$f":"'T2-B(PP4)'!$H$199","v":0},"#'T2-B(PP4)'!$H$199"]
["pp4_bl4_6_1_total",{"$f":"'T2-B(PP4)'!$J$199","v":0},"#'T2-B(PP4)'!$J$199"]
["pp4_bl4_6_1_total_in",{"$f":"'T2-B(PP4)'!$F$199","v":0},"#'T2-B(PP4)'!$F$199"]
["pp4_bl4_6_1_total_out",{"$f":"'T2-B(PP4)'!$I$199","v":0},"#'T2-B(PP4)'!$I$199"]
["pp4_bl4_6_1_unit",{"$f":"'T2-B(PP4)'!$C$199","v":0},"#'T2-B(PP4)'!$C$199"]
["pp4_bl4_6_1_unit_in",{"$f":"'T2-B(PP4)'!$D$199","v":0},"#'T2-B(PP4)'!$D$199"]
["pp4_bl4_6_1_units_out",{"$f":"'T2-B(PP4)'!$G$199","v":0},"#'T2-B(PP4)'!$G$199"]
["pp4_bl4_6_10_name",{"$f":"'T2-B(PP4)'!$B$208","v":0},"#'T2-B(PP4)'!$B$208"]
["pp4_bl4_6_10_rate_in",{"$f":"'T2-B(PP4)'!$E$208","v":0},"#'T2-B(PP4)'!$E$208"]
["pp4_bl4_6_10_rate_out",{"$f":"'T2-B(PP4)'!$H$208","v":0},"#'T2-B(PP4)'!$H$208"]
["pp4_bl4_6_10_total",{"$f":"'T2-B(PP4)'!$J$208","v":0},"#'T2-B(PP4)'!$J$208"]
["pp4_bl4_6_10_total_in",{"$f":"'T2-B(PP4)'!$F$208","v":0},"#'T2-B(PP4)'!$F$208"]
["pp4_bl4_6_10_total_out",{"$f":"'T2-B(PP4)'!$I$208","v":0},"#'T2-B(PP4)'!$I$208"]
["pp4_bl4_6_10_unit",{"$f":"'T2-B(PP4)'!$C$208","v":0},"#'T2-B(PP4)'!$C$208"]
["pp4_bl4_6_10_unit_in",{"$f":"'T2-B(PP4)'!$D$208","v":0},"#'T2-B(PP4)'!$D$208"]
["pp4_bl4_6_10_units_out",{"$f":"'T2-B(PP4)'!$G$208","v":0},"#'T2-B(PP4)'!$G$208"]
["pp4_bl4_6_11_name",{"$f":"'T2-B(PP4)'!$B$209","v":0},"#'T2-B(PP4)'!$B$209"]
["pp4_bl4_6_11_rate_in",{"$f":"'T2-B(PP4)'!$E$209","v":0},"#'T2-B(PP4)'!$E$209"]
["pp4_bl4_6_11_rate_out",{"$f":"'T2-B(PP4)'!$H$209","v":0},"#'T2-B(PP4)'!$H$209"]
["pp4_bl4_6_11_total",{"$f":"'T2-B(PP4)'!$J$209","v":0},"#'T2-B(PP4)'!$J$209"]
["pp4_bl4_6_11_total_in",{"$f":"'T2-B(PP4)'!$F$209","v":0},"#'T2-B(PP4)'!$F$209"]
["pp4_bl4_6_11_total_out",{"$f":"'T2-B(PP4)'!$I$209","v":0},"#'T2-B(PP4)'!$I$209"]
["pp4_bl4_6_11_unit",{"$f":"'T2-B(PP4)'!$C$209","v":0},"#'T2-B(PP4)'!$C$209"]
["pp4_bl4_6_11_unit_in",{"$f":"'T2-B(PP4)'!$D$209","v":0},"#'T2-B(PP4)'!$D$209"]
["pp4_bl4_6_11_units_out",{"$f":"'T2-B(PP4)'!$G$209","v":0},"#'T2-B(PP4)'!$G$209"]
["pp4_bl4_6_12_name",{"$f":"'T2-B(PP4)'!$B$210","v":0},"#'T2-B(PP4)'!$B$210"]
["pp4_bl4_6_12_rate_in",{"$f":"'T2-B(PP4)'!$E$210","v":0},"#'T2-B(PP4)'!$E$210"]
["pp4_bl4_6_12_rate_out",{"$f":"'T2-B(PP4)'!$H$210","v":0},"#'T2-B(PP4)'!$H$210"]
["pp4_bl4_6_12_total",{"$f":"'T2-B(PP4)'!$J$210","v":0},"#'T2-B(PP4)'!$J$210"]
["pp4_bl4_6_12_total_in",{"$f":"'T2-B(PP4)'!$F$210","v":0},"#'T2-B(PP4)'!$F$210"]
["pp4_bl4_6_12_total_out",{"$f":"'T2-B(PP4)'!$I$210","v":0},"#'T2-B(PP4)'!$I$210"]
["pp4_bl4_6_12_unit",{"$f":"'T2-B(PP4)'!$C$210","v":0},"#'T2-B(PP4)'!$C$210"]
["pp4_bl4_6_12_unit_in",{"$f":"'T2-B(PP4)'!$D$210","v":0},"#'T2-B(PP4)'!$D$210"]
["pp4_bl4_6_12_units_out",{"$f":"'T2-B(PP4)'!$G$210","v":0},"#'T2-B(PP4)'!$G$210"]
["pp4_bl4_6_13_name",{"$f":"'T2-B(PP4)'!$B$211","v":0},"#'T2-B(PP4)'!$B$211"]
["pp4_bl4_6_13_rate_in",{"$f":"'T2-B(PP4)'!$E$211","v":0},"#'T2-B(PP4)'!$E$211"]
["pp4_bl4_6_13_rate_out",{"$f":"'T2-B(PP4)'!$H$211","v":0},"#'T2-B(PP4)'!$H$211"]
["pp4_bl4_6_13_total",{"$f":"'T2-B(PP4)'!$J$211","v":0},"#'T2-B(PP4)'!$J$211"]
["pp4_bl4_6_13_total_in",{"$f":"'T2-B(PP4)'!$F$211","v":0},"#'T2-B(PP4)'!$F$211"]
["pp4_bl4_6_13_total_out",{"$f":"'T2-B(PP4)'!$I$211","v":0},"#'T2-B(PP4)'!$I$211"]
["pp4_bl4_6_13_unit",{"$f":"'T2-B(PP4)'!$C$211","v":0},"#'T2-B(PP4)'!$C$211"]
["pp4_bl4_6_13_unit_in",{"$f":"'T2-B(PP4)'!$D$211","v":0},"#'T2-B(PP4)'!$D$211"]
["pp4_bl4_6_13_units_out",{"$f":"'T2-B(PP4)'!$G$211","v":0},"#'T2-B(PP4)'!$G$211"]
["pp4_bl4_6_14_name",{"$f":"'T2-B(PP4)'!$B$212","v":0},"#'T2-B(PP4)'!$B$212"]
["pp4_bl4_6_14_rate_in",{"$f":"'T2-B(PP4)'!$E$212","v":0},"#'T2-B(PP4)'!$E$212"]
["pp4_bl4_6_14_rate_out",{"$f":"'T2-B(PP4)'!$H$212","v":0},"#'T2-B(PP4)'!$H$212"]
["pp4_bl4_6_14_total",{"$f":"'T2-B(PP4)'!$J$212","v":0},"#'T2-B(PP4)'!$J$212"]
["pp4_bl4_6_14_total_in",{"$f":"'T2-B(PP4)'!$F$212","v":0},"#'T2-B(PP4)'!$F$212"]
["pp4_bl4_6_14_total_out",{"$f":"'T2-B(PP4)'!$I$212","v":0},"#'T2-B(PP4)'!$I$212"]
["pp4_bl4_6_14_unit",{"$f":"'T2-B(PP4)'!$C$212","v":0},"#'T2-B(PP4)'!$C$212"]
["pp4_bl4_6_14_unit_in",{"$f":"'T2-B(PP4)'!$D$212","v":0},"#'T2-B(PP4)'!$D$212"]
["pp4_bl4_6_14_units_out",{"$f":"'T2-B(PP4)'!$G$212","v":0},"#'T2-B(PP4)'!$G$212"]
["pp4_bl4_6_15_name",{"$f":"'T2-B(PP4)'!$B$213","v":0},"#'T2-B(PP4)'!$B$213"]
["pp4_bl4_6_15_rate_in",{"$f":"'T2-B(PP4)'!$E$213","v":0},"#'T2-B(PP4)'!$E$213"]
["pp4_bl4_6_15_rate_out",{"$f":"'T2-B(PP4)'!$H$213","v":0},"#'T2-B(PP4)'!$H$213"]
["pp4_bl4_6_15_total",{"$f":"'T2-B(PP4)'!$J$213","v":0},"#'T2-B(PP4)'!$J$213"]
["pp4_bl4_6_15_total_in",{"$f":"'T2-B(PP4)'!$F$213","v":0},"#'T2-B(PP4)'!$F$213"]
["pp4_bl4_6_15_total_out",{"$f":"'T2-B(PP4)'!$I$213","v":0},"#'T2-B(PP4)'!$I$213"]
["pp4_bl4_6_15_unit",{"$f":"'T2-B(PP4)'!$C$213","v":0},"#'T2-B(PP4)'!$C$213"]
["pp4_bl4_6_15_unit_in",{"$f":"'T2-B(PP4)'!$D$213","v":0},"#'T2-B(PP4)'!$D$213"]
["pp4_bl4_6_15_units_out",{"$f":"'T2-B(PP4)'!$G$213","v":0},"#'T2-B(PP4)'!$G$213"]
["pp4_bl4_6_16_name",{"$f":"'T2-B(PP4)'!$B$214","v":0},"#'T2-B(PP4)'!$B$214"]
["pp4_bl4_6_16_rate_in",{"$f":"'T2-B(PP4)'!$E$214","v":0},"#'T2-B(PP4)'!$E$214"]
["pp4_bl4_6_16_rate_out",{"$f":"'T2-B(PP4)'!$H$214","v":0},"#'T2-B(PP4)'!$H$214"]
["pp4_bl4_6_16_total",{"$f":"'T2-B(PP4)'!$J$214","v":0},"#'T2-B(PP4)'!$J$214"]
["pp4_bl4_6_16_total_in",{"$f":"'T2-B(PP4)'!$F$214","v":0},"#'T2-B(PP4)'!$F$214"]
["pp4_bl4_6_16_total_out",{"$f":"'T2-B(PP4)'!$I$214","v":0},"#'T2-B(PP4)'!$I$214"]
["pp4_bl4_6_16_unit",{"$f":"'T2-B(PP4)'!$C$214","v":0},"#'T2-B(PP4)'!$C$214"]
["pp4_bl4_6_16_unit_in",{"$f":"'T2-B(PP4)'!$D$214","v":0},"#'T2-B(PP4)'!$D$214"]
["pp4_bl4_6_16_units_out",{"$f":"'T2-B(PP4)'!$G$214","v":0},"#'T2-B(PP4)'!$G$214"]
["pp4_bl4_6_17_name",{"$f":"'T2-B(PP4)'!$B$215","v":0},"#'T2-B(PP4)'!$B$215"]
["pp4_bl4_6_17_rate_in",{"$f":"'T2-B(PP4)'!$E$215","v":0},"#'T2-B(PP4)'!$E$215"]
["pp4_bl4_6_17_rate_out",{"$f":"'T2-B(PP4)'!$H$215","v":0},"#'T2-B(PP4)'!$H$215"]
["pp4_bl4_6_17_total",{"$f":"'T2-B(PP4)'!$J$215","v":0},"#'T2-B(PP4)'!$J$215"]
["pp4_bl4_6_17_total_in",{"$f":"'T2-B(PP4)'!$F$215","v":0},"#'T2-B(PP4)'!$F$215"]
["pp4_bl4_6_17_total_out",{"$f":"'T2-B(PP4)'!$I$215","v":0},"#'T2-B(PP4)'!$I$215"]
["pp4_bl4_6_17_unit",{"$f":"'T2-B(PP4)'!$C$215","v":0},"#'T2-B(PP4)'!$C$215"]
["pp4_bl4_6_17_unit_in",{"$f":"'T2-B(PP4)'!$D$215","v":0},"#'T2-B(PP4)'!$D$215"]
["pp4_bl4_6_17_units_out",{"$f":"'T2-B(PP4)'!$G$215","v":0},"#'T2-B(PP4)'!$G$215"]
["pp4_bl4_6_18_name",{"$f":"'T2-B(PP4)'!$B$216","v":0},"#'T2-B(PP4)'!$B$216"]
["pp4_bl4_6_18_rate_in",{"$f":"'T2-B(PP4)'!$E$216","v":0},"#'T2-B(PP4)'!$E$216"]
["pp4_bl4_6_18_rate_out",{"$f":"'T2-B(PP4)'!$H$216","v":0},"#'T2-B(PP4)'!$H$216"]
["pp4_bl4_6_18_total",{"$f":"'T2-B(PP4)'!$J$216","v":0},"#'T2-B(PP4)'!$J$216"]
["pp4_bl4_6_18_total_in",{"$f":"'T2-B(PP4)'!$F$216","v":0},"#'T2-B(PP4)'!$F$216"]
["pp4_bl4_6_18_total_out",{"$f":"'T2-B(PP4)'!$I$216","v":0},"#'T2-B(PP4)'!$I$216"]
["pp4_bl4_6_18_unit",{"$f":"'T2-B(PP4)'!$C$216","v":0},"#'T2-B(PP4)'!$C$216"]
["pp4_bl4_6_18_unit_in",{"$f":"'T2-B(PP4)'!$D$216","v":0},"#'T2-B(PP4)'!$D$216"]
["pp4_bl4_6_18_units_out",{"$f":"'T2-B(PP4)'!$G$216","v":0},"#'T2-B(PP4)'!$G$216"]
["pp4_bl4_6_19_name",{"$f":"'T2-B(PP4)'!$B$217","v":0},"#'T2-B(PP4)'!$B$217"]
["pp4_bl4_6_19_rate_in",{"$f":"'T2-B(PP4)'!$E$217","v":0},"#'T2-B(PP4)'!$E$217"]
["pp4_bl4_6_19_rate_out",{"$f":"'T2-B(PP4)'!$H$217","v":0},"#'T2-B(PP4)'!$H$217"]
["pp4_bl4_6_19_total",{"$f":"'T2-B(PP4)'!$J$217","v":0},"#'T2-B(PP4)'!$J$217"]
["pp4_bl4_6_19_total_in",{"$f":"'T2-B(PP4)'!$F$217","v":0},"#'T2-B(PP4)'!$F$217"]
["pp4_bl4_6_19_total_out",{"$f":"'T2-B(PP4)'!$I$217","v":0},"#'T2-B(PP4)'!$I$217"]
["pp4_bl4_6_19_unit",{"$f":"'T2-B(PP4)'!$C$217","v":0},"#'T2-B(PP4)'!$C$217"]
["pp4_bl4_6_19_unit_in",{"$f":"'T2-B(PP4)'!$D$217","v":0},"#'T2-B(PP4)'!$D$217"]
["pp4_bl4_6_19_units_out",{"$f":"'T2-B(PP4)'!$G$217","v":0},"#'T2-B(PP4)'!$G$217"]
["pp4_bl4_6_2_name",{"$f":"'T2-B(PP4)'!$B$200","v":0},"#'T2-B(PP4)'!$B$200"]
["pp4_bl4_6_2_rate_in",{"$f":"'T2-B(PP4)'!$E$200","v":0},"#'T2-B(PP4)'!$E$200"]
["pp4_bl4_6_2_rate_out",{"$f":"'T2-B(PP4)'!$H$200","v":0},"#'T2-B(PP4)'!$H$200"]
["pp4_bl4_6_2_total",{"$f":"'T2-B(PP4)'!$J$200","v":0},"#'T2-B(PP4)'!$J$200"]
["pp4_bl4_6_2_total_in",{"$f":"'T2-B(PP4)'!$F$200","v":0},"#'T2-B(PP4)'!$F$200"]
["pp4_bl4_6_2_total_out",{"$f":"'T2-B(PP4)'!$I$200","v":0},"#'T2-B(PP4)'!$I$200"]
["pp4_bl4_6_2_unit",{"$f":"'T2-B(PP4)'!$C$200","v":0},"#'T2-B(PP4)'!$C$200"]
["pp4_bl4_6_2_unit_in",{"$f":"'T2-B(PP4)'!$D$200","v":0},"#'T2-B(PP4)'!$D$200"]
["pp4_bl4_6_2_units_out",{"$f":"'T2-B(PP4)'!$G$200","v":0},"#'T2-B(PP4)'!$G$200"]
["pp4_bl4_6_20_name",{"$f":"'T2-B(PP4)'!$B$218","v":0},"#'T2-B(PP4)'!$B$218"]
["pp4_bl4_6_20_rate_in",{"$f":"'T2-B(PP4)'!$E$218","v":0},"#'T2-B(PP4)'!$E$218"]
["pp4_bl4_6_20_rate_out",{"$f":"'T2-B(PP4)'!$H$218","v":0},"#'T2-B(PP4)'!$H$218"]
["pp4_bl4_6_20_total",{"$f":"'T2-B(PP4)'!$J$218","v":0},"#'T2-B(PP4)'!$J$218"]
["pp4_bl4_6_20_total_in",{"$f":"'T2-B(PP4)'!$F$218","v":0},"#'T2-B(PP4)'!$F$218"]
["pp4_bl4_6_20_total_out",{"$f":"'T2-B(PP4)'!$I$218","v":0},"#'T2-B(PP4)'!$I$218"]
["pp4_bl4_6_20_unit",{"$f":"'T2-B(PP4)'!$C$218","v":0},"#'T2-B(PP4)'!$C$218"]
["pp4_bl4_6_20_unit_in",{"$f":"'T2-B(PP4)'!$D$218","v":0},"#'T2-B(PP4)'!$D$218"]
["pp4_bl4_6_20_units_out",{"$f":"'T2-B(PP4)'!$G$218","v":0},"#'T2-B(PP4)'!$G$218"]
["pp4_bl4_6_3_name",{"$f":"'T2-B(PP4)'!$B$201","v":0},"#'T2-B(PP4)'!$B$201"]
["pp4_bl4_6_3_rate_in",{"$f":"'T2-B(PP4)'!$E$201","v":0},"#'T2-B(PP4)'!$E$201"]
["pp4_bl4_6_3_rate_out",{"$f":"'T2-B(PP4)'!$H$201","v":0},"#'T2-B(PP4)'!$H$201"]
["pp4_bl4_6_3_total",{"$f":"'T2-B(PP4)'!$J$201","v":0},"#'T2-B(PP4)'!$J$201"]
["pp4_bl4_6_3_total_in",{"$f":"'T2-B(PP4)'!$F$201","v":0},"#'T2-B(PP4)'!$F$201"]
["pp4_bl4_6_3_total_out",{"$f":"'T2-B(PP4)'!$I$201","v":0},"#'T2-B(PP4)'!$I$201"]
["pp4_bl4_6_3_unit",{"$f":"'T2-B(PP4)'!$C$201","v":0},"#'T2-B(PP4)'!$C$201"]
["pp4_bl4_6_3_unit_in",{"$f":"'T2-B(PP4)'!$D$201","v":0},"#'T2-B(PP4)'!$D$201"]
["pp4_bl4_6_3_units_out",{"$f":"'T2-B(PP4)'!$G$201","v":0},"#'T2-B(PP4)'!$G$201"]
["pp4_bl4_6_4_name",{"$f":"'T2-B(PP4)'!$B$202","v":0},"#'T2-B(PP4)'!$B$202"]
["pp4_bl4_6_4_rate_in",{"$f":"'T2-B(PP4)'!$E$202","v":0},"#'T2-B(PP4)'!$E$202"]
["pp4_bl4_6_4_rate_out",{"$f":"'T2-B(PP4)'!$H$202","v":0},"#'T2-B(PP4)'!$H$202"]
["pp4_bl4_6_4_total",{"$f":"'T2-B(PP4)'!$J$202","v":0},"#'T2-B(PP4)'!$J$202"]
["pp4_bl4_6_4_total_in",{"$f":"'T2-B(PP4)'!$F$202","v":0},"#'T2-B(PP4)'!$F$202"]
["pp4_bl4_6_4_total_out",{"$f":"'T2-B(PP4)'!$I$202","v":0},"#'T2-B(PP4)'!$I$202"]
["pp4_bl4_6_4_unit",{"$f":"'T2-B(PP4)'!$C$202","v":0},"#'T2-B(PP4)'!$C$202"]
["pp4_bl4_6_4_unit_in",{"$f":"'T2-B(PP4)'!$D$202","v":0},"#'T2-B(PP4)'!$D$202"]
["pp4_bl4_6_4_units_out",{"$f":"'T2-B(PP4)'!$G$202","v":0},"#'T2-B(PP4)'!$G$202"]
["pp4_bl4_6_5_name",{"$f":"'T2-B(PP4)'!$B$203","v":0},"#'T2-B(PP4)'!$B$203"]
["pp4_bl4_6_5_rate_in",{"$f":"'T2-B(PP4)'!$E$203","v":0},"#'T2-B(PP4)'!$E$203"]
["pp4_bl4_6_5_rate_out",{"$f":"'T2-B(PP4)'!$H$203","v":0},"#'T2-B(PP4)'!$H$203"]
["pp4_bl4_6_5_total",{"$f":"'T2-B(PP4)'!$J$203","v":0},"#'T2-B(PP4)'!$J$203"]
["pp4_bl4_6_5_total_in",{"$f":"'T2-B(PP4)'!$F$203","v":0},"#'T2-B(PP4)'!$F$203"]
["pp4_bl4_6_5_total_out",{"$f":"'T2-B(PP4)'!$I$203","v":0},"#'T2-B(PP4)'!$I$203"]
["pp4_bl4_6_5_unit",{"$f":"'T2-B(PP4)'!$C$203","v":0},"#'T2-B(PP4)'!$C$203"]
["pp4_bl4_6_5_unit_in",{"$f":"'T2-B(PP4)'!$D$203","v":0},"#'T2-B(PP4)'!$D$203"]
["pp4_bl4_6_5_units_out",{"$f":"'T2-B(PP4)'!$G$203","v":0},"#'T2-B(PP4)'!$G$203"]
["pp4_bl4_6_6_name",{"$f":"'T2-B(PP4)'!$B$204","v":0},"#'T2-B(PP4)'!$B$204"]
["pp4_bl4_6_6_rate_in",{"$f":"'T2-B(PP4)'!$E$204","v":0},"#'T2-B(PP4)'!$E$204"]
["pp4_bl4_6_6_rate_out",{"$f":"'T2-B(PP4)'!$H$204","v":0},"#'T2-B(PP4)'!$H$204"]
["pp4_bl4_6_6_total",{"$f":"'T2-B(PP4)'!$J$204","v":0},"#'T2-B(PP4)'!$J$204"]
["pp4_bl4_6_6_total_in",{"$f":"'T2-B(PP4)'!$F$204","v":0},"#'T2-B(PP4)'!$F$204"]
["pp4_bl4_6_6_total_out",{"$f":"'T2-B(PP4)'!$I$204","v":0},"#'T2-B(PP4)'!$I$204"]
["pp4_bl4_6_6_unit",{"$f":"'T2-B(PP4)'!$C$204","v":0},"#'T2-B(PP4)'!$C$204"]
["pp4_bl4_6_6_unit_in",{"$f":"'T2-B(PP4)'!$D$204","v":0},"#'T2-B(PP4)'!$D$204"]
["pp4_bl4_6_6_units_out",{"$f":"'T2-B(PP4)'!$G$204","v":0},"#'T2-B(PP4)'!$G$204"]
["pp4_bl4_6_7_name",{"$f":"'T2-B(PP4)'!$B$205","v":0},"#'T2-B(PP4)'!$B$205"]
["pp4_bl4_6_7_rate_in",{"$f":"'T2-B(PP4)'!$E$205","v":0},"#'T2-B(PP4)'!$E$205"]
["pp4_bl4_6_7_rate_out",{"$f":"'T2-B(PP4)'!$H$205","v":0},"#'T2-B(PP4)'!$H$205"]
["pp4_bl4_6_7_total",{"$f":"'T2-B(PP4)'!$J$205","v":0},"#'T2-B(PP4)'!$J$205"]
["pp4_bl4_6_7_total_in",{"$f":"'T2-B(PP4)'!$F$205","v":0},"#'T2-B(PP4)'!$F$205"]
["pp4_bl4_6_7_total_out",{"$f":"'T2-B(PP4)'!$I$205","v":0},"#'T2-B(PP4)'!$I$205"]
["pp4_bl4_6_7_unit",{"$f":"'T2-B(PP4)'!$C$205","v":0},"#'T2-B(PP4)'!$C$205"]
["pp4_bl4_6_7_unit_in",{"$f":"'T2-B(PP4)'!$D$205","v":0},"#'T2-B(PP4)'!$D$205"]
["pp4_bl4_6_7_units_out",{"$f":"'T2-B(PP4)'!$G$205","v":0},"#'T2-B(PP4)'!$G$205"]
["pp4_bl4_6_8_name",{"$f":"'T2-B(PP4)'!$B$206","v":0},"#'T2-B(PP4)'!$B$206"]
["pp4_bl4_6_8_rate_in",{"$f":"'T2-B(PP4)'!$E$206","v":0},"#'T2-B(PP4)'!$E$206"]
["pp4_bl4_6_8_rate_out",{"$f":"'T2-B(PP4)'!$H$206","v":0},"#'T2-B(PP4)'!$H$206"]
["pp4_bl4_6_8_total",{"$f":"'T2-B(PP4)'!$J$206","v":0},"#'T2-B(PP4)'!$J$206"]
["pp4_bl4_6_8_total_in",{"$f":"'T2-B(PP4)'!$F$206","v":0},"#'T2-B(PP4)'!$F$206"]
["pp4_bl4_6_8_total_out",{"$f":"'T2-B(PP4)'!$I$206","v":0},"#'T2-B(PP4)'!$I$206"]
["pp4_bl4_6_8_unit",{"$f":"'T2-B(PP4)'!$C$206","v":0},"#'T2-B(PP4)'!$C$206"]
["pp4_bl4_6_8_unit_in",{"$f":"'T2-B(PP4)'!$D$206","v":0},"#'T2-B(PP4)'!$D$206"]
["pp4_bl4_6_8_units_out",{"$f":"'T2-B(PP4)'!$G$206","v":0},"#'T2-B(PP4)'!$G$206"]
["pp4_bl4_6_9_name",{"$f":"'T2-B(PP4)'!$B$207","v":0},"#'T2-B(PP4)'!$B$207"]
["pp4_bl4_6_9_rate_in",{"$f":"'T2-B(PP4)'!$E$207","v":0},"#'T2-B(PP4)'!$E$207"]
["pp4_bl4_6_9_rate_out",{"$f":"'T2-B(PP4)'!$H$207","v":0},"#'T2-B(PP4)'!$H$207"]
["pp4_bl4_6_9_total",{"$f":"'T2-B(PP4)'!$J$207","v":0},"#'T2-B(PP4)'!$J$207"]
["pp4_bl4_6_9_total_in",{"$f":"'T2-B(PP4)'!$F$207","v":0},"#'T2-B(PP4)'!$F$207"]
["pp4_bl4_6_9_total_out",{"$f":"'T2-B(PP4)'!$I$207","v":0},"#'T2-B(PP4)'!$I$207"]
["pp4_bl4_6_9_unit",{"$f":"'T2-B(PP4)'!$C$207","v":0},"#'T2-B(PP4)'!$C$207"]
["pp4_bl4_6_9_unit_in",{"$f":"'T2-B(PP4)'!$D$207","v":0},"#'T2-B(PP4)'!$D$207"]
["pp4_bl4_6_9_units_out",{"$f":"'T2-B(PP4)'!$G$207","v":0},"#'T2-B(PP4)'!$G$207"]
["pp4_bl4_6_total",{"$f":"'T2-B(PP4)'!$J$198","v":0},"#'T2-B(PP4)'!$J$198"]
["pp4_bl4_6_total_in",{"$f":"'T2-B(PP4)'!$F$198","v":0},"#'T2-B(PP4)'!$F$198"]
["pp4_bl4_6_total_out",{"$f":"'T2-B(PP4)'!$I$198","v":0},"#'T2-B(PP4)'!$I$198"]
["pp4_bl4_7_1_name",{"$f":"'T2-B(PP4)'!$B$220","v":0},"#'T2-B(PP4)'!$B$220"]
["pp4_bl4_7_1_rate_in",{"$f":"'T2-B(PP4)'!$E$220","v":0},"#'T2-B(PP4)'!$E$220"]
["pp4_bl4_7_1_rate_out",{"$f":"'T2-B(PP4)'!$H$220","v":0},"#'T2-B(PP4)'!$H$220"]
["pp4_bl4_7_1_total",{"$f":"'T2-B(PP4)'!$J$220","v":0},"#'T2-B(PP4)'!$J$220"]
["pp4_bl4_7_1_total_in",{"$f":"'T2-B(PP4)'!$F$220","v":0},"#'T2-B(PP4)'!$F$220"]
["pp4_bl4_7_1_total_out",{"$f":"'T2-B(PP4)'!$I$220","v":0},"#'T2-B(PP4)'!$I$220"]
["pp4_bl4_7_1_unit",{"$f":"'T2-B(PP4)'!$C$220","v":0},"#'T2-B(PP4)'!$C$220"]
["pp4_bl4_7_1_unit_in",{"$f":"'T2-B(PP4)'!$D$220","v":0},"#'T2-B(PP4)'!$D$220"]
["pp4_bl4_7_1_units_out",{"$f":"'T2-B(PP4)'!$G$220","v":0},"#'T2-B(PP4)'!$G$220"]
["pp4_bl4_7_10_name",{"$f":"'T2-B(PP4)'!$B$229","v":0},"#'T2-B(PP4)'!$B$229"]
["pp4_bl4_7_10_rate_in",{"$f":"'T2-B(PP4)'!$E$229","v":0},"#'T2-B(PP4)'!$E$229"]
["pp4_bl4_7_10_rate_out",{"$f":"'T2-B(PP4)'!$H$229","v":0},"#'T2-B(PP4)'!$H$229"]
["pp4_bl4_7_10_total",{"$f":"'T2-B(PP4)'!$J$229","v":0},"#'T2-B(PP4)'!$J$229"]
["pp4_bl4_7_10_total_in",{"$f":"'T2-B(PP4)'!$F$229","v":0},"#'T2-B(PP4)'!$F$229"]
["pp4_bl4_7_10_total_out",{"$f":"'T2-B(PP4)'!$I$229","v":0},"#'T2-B(PP4)'!$I$229"]
["pp4_bl4_7_10_unit",{"$f":"'T2-B(PP4)'!$C$229","v":0},"#'T2-B(PP4)'!$C$229"]
["pp4_bl4_7_10_unit_in",{"$f":"'T2-B(PP4)'!$D$229","v":0},"#'T2-B(PP4)'!$D$229"]
["pp4_bl4_7_10_units_out",{"$f":"'T2-B(PP4)'!$G$229","v":0},"#'T2-B(PP4)'!$G$229"]
["pp4_bl4_7_11_name",{"$f":"'T2-B(PP4)'!$B$230","v":0},"#'T2-B(PP4)'!$B$230"]
["pp4_bl4_7_11_rate_in",{"$f":"'T2-B(PP4)'!$E$230","v":0},"#'T2-B(PP4)'!$E$230"]
["pp4_bl4_7_11_rate_out",{"$f":"'T2-B(PP4)'!$H$230","v":0},"#'T2-B(PP4)'!$H$230"]
["pp4_bl4_7_11_total",{"$f":"'T2-B(PP4)'!$J$230","v":0},"#'T2-B(PP4)'!$J$230"]
["pp4_bl4_7_11_total_in",{"$f":"'T2-B(PP4)'!$F$230","v":0},"#'T2-B(PP4)'!$F$230"]
["pp4_bl4_7_11_total_out",{"$f":"'T2-B(PP4)'!$I$230","v":0},"#'T2-B(PP4)'!$I$230"]
["pp4_bl4_7_11_unit",{"$f":"'T2-B(PP4)'!$C$230","v":0},"#'T2-B(PP4)'!$C$230"]
["pp4_bl4_7_11_unit_in",{"$f":"'T2-B(PP4)'!$D$230","v":0},"#'T2-B(PP4)'!$D$230"]
["pp4_bl4_7_11_units_out",{"$f":"'T2-B(PP4)'!$G$230","v":0},"#'T2-B(PP4)'!$G$230"]
["pp4_bl4_7_12_name",{"$f":"'T2-B(PP4)'!$B$231","v":0},"#'T2-B(PP4)'!$B$231"]
["pp4_bl4_7_12_rate_in",{"$f":"'T2-B(PP4)'!$E$231","v":0},"#'T2-B(PP4)'!$E$231"]
["pp4_bl4_7_12_rate_out",{"$f":"'T2-B(PP4)'!$H$231","v":0},"#'T2-B(PP4)'!$H$231"]
["pp4_bl4_7_12_total",{"$f":"'T2-B(PP4)'!$J$231","v":0},"#'T2-B(PP4)'!$J$231"]
["pp4_bl4_7_12_total_in",{"$f":"'T2-B(PP4)'!$F$231","v":0},"#'T2-B(PP4)'!$F$231"]
["pp4_bl4_7_12_total_out",{"$f":"'T2-B(PP4)'!$I$231","v":0},"#'T2-B(PP4)'!$I$231"]
["pp4_bl4_7_12_unit",{"$f":"'T2-B(PP4)'!$C$231","v":0},"#'T2-B(PP4)'!$C$231"]
["pp4_bl4_7_12_unit_in",{"$f":"'T2-B(PP4)'!$D$231","v":0},"#'T2-B(PP4)'!$D$231"]
["pp4_bl4_7_12_units_out",{"$f":"'T2-B(PP4)'!$G$231","v":0},"#'T2-B(PP4)'!$G$231"]
["pp4_bl4_7_13_name",{"$f":"'T2-B(PP4)'!$B$232","v":0},"#'T2-B(PP4)'!$B$232"]
["pp4_bl4_7_13_rate_in",{"$f":"'T2-B(PP4)'!$E$232","v":0},"#'T2-B(PP4)'!$E$232"]
["pp4_bl4_7_13_rate_out",{"$f":"'T2-B(PP4)'!$H$232","v":0},"#'T2-B(PP4)'!$H$232"]
["pp4_bl4_7_13_total",{"$f":"'T2-B(PP4)'!$J$232","v":0},"#'T2-B(PP4)'!$J$232"]
["pp4_bl4_7_13_total_in",{"$f":"'T2-B(PP4)'!$F$232","v":0},"#'T2-B(PP4)'!$F$232"]
["pp4_bl4_7_13_total_out",{"$f":"'T2-B(PP4)'!$I$232","v":0},"#'T2-B(PP4)'!$I$232"]
["pp4_bl4_7_13_unit",{"$f":"'T2-B(PP4)'!$C$232","v":0},"#'T2-B(PP4)'!$C$232"]
["pp4_bl4_7_13_unit_in",{"$f":"'T2-B(PP4)'!$D$232","v":0},"#'T2-B(PP4)'!$D$232"]
["pp4_bl4_7_13_units_out",{"$f":"'T2-B(PP4)'!$G$232","v":0},"#'T2-B(PP4)'!$G$232"]
["pp4_bl4_7_14_name",{"$f":"'T2-B(PP4)'!$B$233","v":0},"#'T2-B(PP4)'!$B$233"]
["pp4_bl4_7_14_rate_in",{"$f":"'T2-B(PP4)'!$E$233","v":0},"#'T2-B(PP4)'!$E$233"]
["pp4_bl4_7_14_rate_out",{"$f":"'T2-B(PP4)'!$H$233","v":0},"#'T2-B(PP4)'!$H$233"]
["pp4_bl4_7_14_total",{"$f":"'T2-B(PP4)'!$J$233","v":0},"#'T2-B(PP4)'!$J$233"]
["pp4_bl4_7_14_total_in",{"$f":"'T2-B(PP4)'!$F$233","v":0},"#'T2-B(PP4)'!$F$233"]
["pp4_bl4_7_14_total_out",{"$f":"'T2-B(PP4)'!$I$233","v":0},"#'T2-B(PP4)'!$I$233"]
["pp4_bl4_7_14_unit",{"$f":"'T2-B(PP4)'!$C$233","v":0},"#'T2-B(PP4)'!$C$233"]
["pp4_bl4_7_14_unit_in",{"$f":"'T2-B(PP4)'!$D$233","v":0},"#'T2-B(PP4)'!$D$233"]
["pp4_bl4_7_14_units_out",{"$f":"'T2-B(PP4)'!$G$233","v":0},"#'T2-B(PP4)'!$G$233"]
["pp4_bl4_7_15_name",{"$f":"'T2-B(PP4)'!$B$234","v":0},"#'T2-B(PP4)'!$B$234"]
["pp4_bl4_7_15_rate_in",{"$f":"'T2-B(PP4)'!$E$234","v":0},"#'T2-B(PP4)'!$E$234"]
["pp4_bl4_7_15_rate_out",{"$f":"'T2-B(PP4)'!$H$234","v":0},"#'T2-B(PP4)'!$H$234"]
["pp4_bl4_7_15_total",{"$f":"'T2-B(PP4)'!$J$234","v":0},"#'T2-B(PP4)'!$J$234"]
["pp4_bl4_7_15_total_in",{"$f":"'T2-B(PP4)'!$F$234","v":0},"#'T2-B(PP4)'!$F$234"]
["pp4_bl4_7_15_total_out",{"$f":"'T2-B(PP4)'!$I$234","v":0},"#'T2-B(PP4)'!$I$234"]
["pp4_bl4_7_15_unit",{"$f":"'T2-B(PP4)'!$C$234","v":0},"#'T2-B(PP4)'!$C$234"]
["pp4_bl4_7_15_unit_in",{"$f":"'T2-B(PP4)'!$D$234","v":0},"#'T2-B(PP4)'!$D$234"]
["pp4_bl4_7_15_units_out",{"$f":"'T2-B(PP4)'!$G$234","v":0},"#'T2-B(PP4)'!$G$234"]
["pp4_bl4_7_16_name",{"$f":"'T2-B(PP4)'!$B$235","v":0},"#'T2-B(PP4)'!$B$235"]
["pp4_bl4_7_16_rate_in",{"$f":"'T2-B(PP4)'!$E$235","v":0},"#'T2-B(PP4)'!$E$235"]
["pp4_bl4_7_16_rate_out",{"$f":"'T2-B(PP4)'!$H$235","v":0},"#'T2-B(PP4)'!$H$235"]
["pp4_bl4_7_16_total",{"$f":"'T2-B(PP4)'!$J$235","v":0},"#'T2-B(PP4)'!$J$235"]
["pp4_bl4_7_16_total_in",{"$f":"'T2-B(PP4)'!$F$235","v":0},"#'T2-B(PP4)'!$F$235"]
["pp4_bl4_7_16_total_out",{"$f":"'T2-B(PP4)'!$I$235","v":0},"#'T2-B(PP4)'!$I$235"]
["pp4_bl4_7_16_unit",{"$f":"'T2-B(PP4)'!$C$235","v":0},"#'T2-B(PP4)'!$C$235"]
["pp4_bl4_7_16_unit_in",{"$f":"'T2-B(PP4)'!$D$235","v":0},"#'T2-B(PP4)'!$D$235"]
["pp4_bl4_7_16_units_out",{"$f":"'T2-B(PP4)'!$G$235","v":0},"#'T2-B(PP4)'!$G$235"]
["pp4_bl4_7_17_name",{"$f":"'T2-B(PP4)'!$B$236","v":0},"#'T2-B(PP4)'!$B$236"]
["pp4_bl4_7_17_rate_in",{"$f":"'T2-B(PP4)'!$E$236","v":0},"#'T2-B(PP4)'!$E$236"]
["pp4_bl4_7_17_rate_out",{"$f":"'T2-B(PP4)'!$H$236","v":0},"#'T2-B(PP4)'!$H$236"]
["pp4_bl4_7_17_total",{"$f":"'T2-B(PP4)'!$J$236","v":0},"#'T2-B(PP4)'!$J$236"]
["pp4_bl4_7_17_total_in",{"$f":"'T2-B(PP4)'!$F$236","v":0},"#'T2-B(PP4)'!$F$236"]
["pp4_bl4_7_17_total_out",{"$f":"'T2-B(PP4)'!$I$236","v":0},"#'T2-B(PP4)'!$I$236"]
["pp4_bl4_7_17_unit",{"$f":"'T2-B(PP4)'!$C$236","v":0},"#'T2-B(PP4)'!$C$236"]
["pp4_bl4_7_17_unit_in",{"$f":"'T2-B(PP4)'!$D$236","v":0},"#'T2-B(PP4)'!$D$236"]
["pp4_bl4_7_17_units_out",{"$f":"'T2-B(PP4)'!$G$236","v":0},"#'T2-B(PP4)'!$G$236"]
["pp4_bl4_7_18_name",{"$f":"'T2-B(PP4)'!$B$237","v":0},"#'T2-B(PP4)'!$B$237"]
["pp4_bl4_7_18_rate_in",{"$f":"'T2-B(PP4)'!$E$237","v":0},"#'T2-B(PP4)'!$E$237"]
["pp4_bl4_7_18_rate_out",{"$f":"'T2-B(PP4)'!$H$237","v":0},"#'T2-B(PP4)'!$H$237"]
["pp4_bl4_7_18_total",{"$f":"'T2-B(PP4)'!$J$237","v":0},"#'T2-B(PP4)'!$J$237"]
["pp4_bl4_7_18_total_in",{"$f":"'T2-B(PP4)'!$F$237","v":0},"#'T2-B(PP4)'!$F$237"]
["pp4_bl4_7_18_total_out",{"$f":"'T2-B(PP4)'!$I$237","v":0},"#'T2-B(PP4)'!$I$237"]
["pp4_bl4_7_18_unit",{"$f":"'T2-B(PP4)'!$C$237","v":0},"#'T2-B(PP4)'!$C$237"]
["pp4_bl4_7_18_unit_in",{"$f":"'T2-B(PP4)'!$D$237","v":0},"#'T2-B(PP4)'!$D$237"]
["pp4_bl4_7_18_units_out",{"$f":"'T2-B(PP4)'!$G$237","v":0},"#'T2-B(PP4)'!$G$237"]
["pp4_bl4_7_19_name",{"$f":"'T2-B(PP4)'!$B$238","v":0},"#'T2-B(PP4)'!$B$238"]
["pp4_bl4_7_19_rate_in",{"$f":"'T2-B(PP4)'!$E$238","v":0},"#'T2-B(PP4)'!$E$238"]
["pp4_bl4_7_19_rate_out",{"$f":"'T2-B(PP4)'!$H$238","v":0},"#'T2-B(PP4)'!$H$238"]
["pp4_bl4_7_19_total",{"$f":"'T2-B(PP4)'!$J$238","v":0},"#'T2-B(PP4)'!$J$238"]
["pp4_bl4_7_19_total_in",{"$f":"'T2-B(PP4)'!$F$238","v":0},"#'T2-B(PP4)'!$F$238"]
["pp4_bl4_7_19_total_out",{"$f":"'T2-B(PP4)'!$I$238","v":0},"#'T2-B(PP4)'!$I$238"]
["pp4_bl4_7_19_unit",{"$f":"'T2-B(PP4)'!$C$238","v":0},"#'T2-B(PP4)'!$C$238"]
["pp4_bl4_7_19_unit_in",{"$f":"'T2-B(PP4)'!$D$238","v":0},"#'T2-B(PP4)'!$D$238"]
["pp4_bl4_7_19_units_out",{"$f":"'T2-B(PP4)'!$G$238","v":0},"#'T2-B(PP4)'!$G$238"]
["pp4_bl4_7_2_name",{"$f":"'T2-B(PP4)'!$B$221","v":0},"#'T2-B(PP4)'!$B$221"]
["pp4_bl4_7_2_rate_in",{"$f":"'T2-B(PP4)'!$E$221","v":0},"#'T2-B(PP4)'!$E$221"]
["pp4_bl4_7_2_rate_out",{"$f":"'T2-B(PP4)'!$H$221","v":0},"#'T2-B(PP4)'!$H$221"]
["pp4_bl4_7_2_total",{"$f":"'T2-B(PP4)'!$J$221","v":0},"#'T2-B(PP4)'!$J$221"]
["pp4_bl4_7_2_total_in",{"$f":"'T2-B(PP4)'!$F$221","v":0},"#'T2-B(PP4)'!$F$221"]
["pp4_bl4_7_2_total_out",{"$f":"'T2-B(PP4)'!$I$221","v":0},"#'T2-B(PP4)'!$I$221"]
["pp4_bl4_7_2_unit",{"$f":"'T2-B(PP4)'!$C$221","v":0},"#'T2-B(PP4)'!$C$221"]
["pp4_bl4_7_2_unit_in",{"$f":"'T2-B(PP4)'!$D$221","v":0},"#'T2-B(PP4)'!$D$221"]
["pp4_bl4_7_2_units_out",{"$f":"'T2-B(PP4)'!$G$221","v":0},"#'T2-B(PP4)'!$G$221"]
["pp4_bl4_7_20_name",{"$f":"'T2-B(PP4)'!$B$239","v":0},"#'T2-B(PP4)'!$B$239"]
["pp4_bl4_7_20_rate_in",{"$f":"'T2-B(PP4)'!$E$239","v":0},"#'T2-B(PP4)'!$E$239"]
["pp4_bl4_7_20_rate_out",{"$f":"'T2-B(PP4)'!$H$239","v":0},"#'T2-B(PP4)'!$H$239"]
["pp4_bl4_7_20_total",{"$f":"'T2-B(PP4)'!$J$239","v":0},"#'T2-B(PP4)'!$J$239"]
["pp4_bl4_7_20_total_in",{"$f":"'T2-B(PP4)'!$F$239","v":0},"#'T2-B(PP4)'!$F$239"]
["pp4_bl4_7_20_total_out",{"$f":"'T2-B(PP4)'!$I$239","v":0},"#'T2-B(PP4)'!$I$239"]
["pp4_bl4_7_20_unit",{"$f":"'T2-B(PP4)'!$C$239","v":0},"#'T2-B(PP4)'!$C$239"]
["pp4_bl4_7_20_unit_in",{"$f":"'T2-B(PP4)'!$D$239","v":0},"#'T2-B(PP4)'!$D$239"]
["pp4_bl4_7_20_units_out",{"$f":"'T2-B(PP4)'!$G$239","v":0},"#'T2-B(PP4)'!$G$239"]
["pp4_bl4_7_3_name",{"$f":"'T2-B(PP4)'!$B$222","v":0},"#'T2-B(PP4)'!$B$222"]
["pp4_bl4_7_3_rate_in",{"$f":"'T2-B(PP4)'!$E$222","v":0},"#'T2-B(PP4)'!$E$222"]
["pp4_bl4_7_3_rate_out",{"$f":"'T2-B(PP4)'!$H$222","v":0},"#'T2-B(PP4)'!$H$222"]
["pp4_bl4_7_3_total",{"$f":"'T2-B(PP4)'!$J$222","v":0},"#'T2-B(PP4)'!$J$222"]
["pp4_bl4_7_3_total_in",{"$f":"'T2-B(PP4)'!$F$222","v":0},"#'T2-B(PP4)'!$F$222"]
["pp4_bl4_7_3_total_out",{"$f":"'T2-B(PP4)'!$I$222","v":0},"#'T2-B(PP4)'!$I$222"]
["pp4_bl4_7_3_unit",{"$f":"'T2-B(PP4)'!$C$222","v":0},"#'T2-B(PP4)'!$C$222"]
["pp4_bl4_7_3_unit_in",{"$f":"'T2-B(PP4)'!$D$222","v":0},"#'T2-B(PP4)'!$D$222"]
["pp4_bl4_7_3_units_out",{"$f":"'T2-B(PP4)'!$G$222","v":0},"#'T2-B(PP4)'!$G$222"]
["pp4_bl4_7_4_name",{"$f":"'T2-B(PP4)'!$B$223","v":0},"#'T2-B(PP4)'!$B$223"]
["pp4_bl4_7_4_rate_in",{"$f":"'T2-B(PP4)'!$E$223","v":0},"#'T2-B(PP4)'!$E$223"]
["pp4_bl4_7_4_rate_out",{"$f":"'T2-B(PP4)'!$H$223","v":0},"#'T2-B(PP4)'!$H$223"]
["pp4_bl4_7_4_total",{"$f":"'T2-B(PP4)'!$J$223","v":0},"#'T2-B(PP4)'!$J$223"]
["pp4_bl4_7_4_total_in",{"$f":"'T2-B(PP4)'!$F$223","v":0},"#'T2-B(PP4)'!$F$223"]
["pp4_bl4_7_4_total_out",{"$f":"'T2-B(PP4)'!$I$223","v":0},"#'T2-B(PP4)'!$I$223"]
["pp4_bl4_7_4_unit",{"$f":"'T2-B(PP4)'!$C$223","v":0},"#'T2-B(PP4)'!$C$223"]
["pp4_bl4_7_4_unit_in",{"$f":"'T2-B(PP4)'!$D$223","v":0},"#'T2-B(PP4)'!$D$223"]
["pp4_bl4_7_4_units_out",{"$f":"'T2-B(PP4)'!$G$223","v":0},"#'T2-B(PP4)'!$G$223"]
["pp4_bl4_7_5_name",{"$f":"'T2-B(PP4)'!$B$224","v":0},"#'T2-B(PP4)'!$B$224"]
["pp4_bl4_7_5_rate_in",{"$f":"'T2-B(PP4)'!$E$224","v":0},"#'T2-B(PP4)'!$E$224"]
["pp4_bl4_7_5_rate_out",{"$f":"'T2-B(PP4)'!$H$224","v":0},"#'T2-B(PP4)'!$H$224"]
["pp4_bl4_7_5_total",{"$f":"'T2-B(PP4)'!$J$224","v":0},"#'T2-B(PP4)'!$J$224"]
["pp4_bl4_7_5_total_in",{"$f":"'T2-B(PP4)'!$F$224","v":0},"#'T2-B(PP4)'!$F$224"]
["pp4_bl4_7_5_total_out",{"$f":"'T2-B(PP4)'!$I$224","v":0},"#'T2-B(PP4)'!$I$224"]
["pp4_bl4_7_5_unit",{"$f":"'T2-B(PP4)'!$C$224","v":0},"#'T2-B(PP4)'!$C$224"]
["pp4_bl4_7_5_unit_in",{"$f":"'T2-B(PP4)'!$D$224","v":0},"#'T2-B(PP4)'!$D$224"]
["pp4_bl4_7_5_units_out",{"$f":"'T2-B(PP4)'!$G$224","v":0},"#'T2-B(PP4)'!$G$224"]
["pp4_bl4_7_6_name",{"$f":"'T2-B(PP4)'!$B$225","v":0},"#'T2-B(PP4)'!$B$225"]
["pp4_bl4_7_6_rate_in",{"$f":"'T2-B(PP4)'!$E$225","v":0},"#'T2-B(PP4)'!$E$225"]
["pp4_bl4_7_6_rate_out",{"$f":"'T2-B(PP4)'!$H$225","v":0},"#'T2-B(PP4)'!$H$225"]
["pp4_bl4_7_6_total",{"$f":"'T2-B(PP4)'!$J$225","v":0},"#'T2-B(PP4)'!$J$225"]
["pp4_bl4_7_6_total_in",{"$f":"'T2-B(PP4)'!$F$225","v":0},"#'T2-B(PP4)'!$F$225"]
["pp4_bl4_7_6_total_out",{"$f":"'T2-B(PP4)'!$I$225","v":0},"#'T2-B(PP4)'!$I$225"]
["pp4_bl4_7_6_unit",{"$f":"'T2-B(PP4)'!$C$225","v":0},"#'T2-B(PP4)'!$C$225"]
["pp4_bl4_7_6_unit_in",{"$f":"'T2-B(PP4)'!$D$225","v":0},"#'T2-B(PP4)'!$D$225"]
["pp4_bl4_7_6_units_out",{"$f":"'T2-B(PP4)'!$G$225","v":0},"#'T2-B(PP4)'!$G$225"]
["pp4_bl4_7_7_name",{"$f":"'T2-B(PP4)'!$B$226","v":0},"#'T2-B(PP4)'!$B$226"]
["pp4_bl4_7_7_rate_in",{"$f":"'T2-B(PP4)'!$E$226","v":0},"#'T2-B(PP4)'!$E$226"]
["pp4_bl4_7_7_rate_out",{"$f":"'T2-B(PP4)'!$H$226","v":0},"#'T2-B(PP4)'!$H$226"]
["pp4_bl4_7_7_total",{"$f":"'T2-B(PP4)'!$J$226","v":0},"#'T2-B(PP4)'!$J$226"]
["pp4_bl4_7_7_total_in",{"$f":"'T2-B(PP4)'!$F$226","v":0},"#'T2-B(PP4)'!$F$226"]
["pp4_bl4_7_7_total_out",{"$f":"'T2-B(PP4)'!$I$226","v":0},"#'T2-B(PP4)'!$I$226"]
["pp4_bl4_7_7_unit",{"$f":"'T2-B(PP4)'!$C$226","v":0},"#'T2-B(PP4)'!$C$226"]
["pp4_bl4_7_7_unit_in",{"$f":"'T2-B(PP4)'!$D$226","v":0},"#'T2-B(PP4)'!$D$226"]
["pp4_bl4_7_7_units_out",{"$f":"'T2-B(PP4)'!$G$226","v":0},"#'T2-B(PP4)'!$G$226"]
["pp4_bl4_7_8_name",{"$f":"'T2-B(PP4)'!$B$227","v":0},"#'T2-B(PP4)'!$B$227"]
["pp4_bl4_7_8_rate_in",{"$f":"'T2-B(PP4)'!$E$227","v":0},"#'T2-B(PP4)'!$E$227"]
["pp4_bl4_7_8_rate_out",{"$f":"'T2-B(PP4)'!$H$227","v":0},"#'T2-B(PP4)'!$H$227"]
["pp4_bl4_7_8_total",{"$f":"'T2-B(PP4)'!$J$227","v":0},"#'T2-B(PP4)'!$J$227"]
["pp4_bl4_7_8_total_in",{"$f":"'T2-B(PP4)'!$F$227","v":0},"#'T2-B(PP4)'!$F$227"]
["pp4_bl4_7_8_total_out",{"$f":"'T2-B(PP4)'!$I$227","v":0},"#'T2-B(PP4)'!$I$227"]
["pp4_bl4_7_8_unit",{"$f":"'T2-B(PP4)'!$C$227","v":0},"#'T2-B(PP4)'!$C$227"]
["pp4_bl4_7_8_unit_in",{"$f":"'T2-B(PP4)'!$D$227","v":0},"#'T2-B(PP4)'!$D$227"]
["pp4_bl4_7_8_units_out",{"$f":"'T2-B(PP4)'!$G$227","v":0},"#'T2-B(PP4)'!$G$227"]
["pp4_bl4_7_9_name",{"$f":"'T2-B(PP4)'!$B$228","v":0},"#'T2-B(PP4)'!$B$228"]
["pp4_bl4_7_9_rate_in",{"$f":"'T2-B(PP4)'!$E$228","v":0},"#'T2-B(PP4)'!$E$228"]
["pp4_bl4_7_9_rate_out",{"$f":"'T2-B(PP4)'!$H$228","v":0},"#'T2-B(PP4)'!$H$228"]
["pp4_bl4_7_9_total",{"$f":"'T2-B(PP4)'!$J$228","v":0},"#'T2-B(PP4)'!$J$228"]
["pp4_bl4_7_9_total_in",{"$f":"'T2-B(PP4)'!$F$228","v":0},"#'T2-B(PP4)'!$F$228"]
["pp4_bl4_7_9_total_out",{"$f":"'T2-B(PP4)'!$I$228","v":0},"#'T2-B(PP4)'!$I$228"]
["pp4_bl4_7_9_unit",{"$f":"'T2-B(PP4)'!$C$228","v":0},"#'T2-B(PP4)'!$C$228"]
["pp4_bl4_7_9_unit_in",{"$f":"'T2-B(PP4)'!$D$228","v":0},"#'T2-B(PP4)'!$D$228"]
["pp4_bl4_7_9_units_out",{"$f":"'T2-B(PP4)'!$G$228","v":0},"#'T2-B(PP4)'!$G$228"]
["pp4_bl4_7_total",{"$f":"'T2-B(PP4)'!$J$219","v":0},"#'T2-B(PP4)'!$J$219"]
["pp4_bl4_7_total_in",{"$f":"'T2-B(PP4)'!$F$219","v":0},"#'T2-B(PP4)'!$F$219"]
["pp4_bl4_7_total_out",{"$f":"'T2-B(PP4)'!$I$219","v":0},"#'T2-B(PP4)'!$I$219"]
["pp4_bl4_8_1_name",{"$f":"'T2-B(PP4)'!$B$241","v":0},"#'T2-B(PP4)'!$B$241"]
["pp4_bl4_8_1_rate_in",{"$f":"'T2-B(PP4)'!$E$241","v":0},"#'T2-B(PP4)'!$E$241"]
["pp4_bl4_8_1_rate_out",{"$f":"'T2-B(PP4)'!$H$241","v":0},"#'T2-B(PP4)'!$H$241"]
["pp4_bl4_8_1_total",{"$f":"'T2-B(PP4)'!$J$241","v":0},"#'T2-B(PP4)'!$J$241"]
["pp4_bl4_8_1_total_in",{"$f":"'T2-B(PP4)'!$F$241","v":0},"#'T2-B(PP4)'!$F$241"]
["pp4_bl4_8_1_total_out",{"$f":"'T2-B(PP4)'!$I$241","v":0},"#'T2-B(PP4)'!$I$241"]
["pp4_bl4_8_1_unit",{"$f":"'T2-B(PP4)'!$C$241","v":0},"#'T2-B(PP4)'!$C$241"]
["pp4_bl4_8_1_unit_in",{"$f":"'T2-B(PP4)'!$D$241","v":0},"#'T2-B(PP4)'!$D$241"]
["pp4_bl4_8_1_units_out",{"$f":"'T2-B(PP4)'!$G$241","v":0},"#'T2-B(PP4)'!$G$241"]
["pp4_bl4_8_10_name",{"$f":"'T2-B(PP4)'!$B$250","v":0},"#'T2-B(PP4)'!$B$250"]
["pp4_bl4_8_10_rate_in",{"$f":"'T2-B(PP4)'!$E$250","v":0},"#'T2-B(PP4)'!$E$250"]
["pp4_bl4_8_10_rate_out",{"$f":"'T2-B(PP4)'!$H$250","v":0},"#'T2-B(PP4)'!$H$250"]
["pp4_bl4_8_10_total",{"$f":"'T2-B(PP4)'!$J$250","v":0},"#'T2-B(PP4)'!$J$250"]
["pp4_bl4_8_10_total_in",{"$f":"'T2-B(PP4)'!$F$250","v":0},"#'T2-B(PP4)'!$F$250"]
["pp4_bl4_8_10_total_out",{"$f":"'T2-B(PP4)'!$I$250","v":0},"#'T2-B(PP4)'!$I$250"]
["pp4_bl4_8_10_unit",{"$f":"'T2-B(PP4)'!$C$250","v":0},"#'T2-B(PP4)'!$C$250"]
["pp4_bl4_8_10_unit_in",{"$f":"'T2-B(PP4)'!$D$250","v":0},"#'T2-B(PP4)'!$D$250"]
["pp4_bl4_8_10_units_out",{"$f":"'T2-B(PP4)'!$G$250","v":0},"#'T2-B(PP4)'!$G$250"]
["pp4_bl4_8_11_name",{"$f":"'T2-B(PP4)'!$B$251","v":0},"#'T2-B(PP4)'!$B$251"]
["pp4_bl4_8_11_rate_in",{"$f":"'T2-B(PP4)'!$E$251","v":0},"#'T2-B(PP4)'!$E$251"]
["pp4_bl4_8_11_rate_out",{"$f":"'T2-B(PP4)'!$H$251","v":0},"#'T2-B(PP4)'!$H$251"]
["pp4_bl4_8_11_total",{"$f":"'T2-B(PP4)'!$J$251","v":0},"#'T2-B(PP4)'!$J$251"]
["pp4_bl4_8_11_total_in",{"$f":"'T2-B(PP4)'!$F$251","v":0},"#'T2-B(PP4)'!$F$251"]
["pp4_bl4_8_11_total_out",{"$f":"'T2-B(PP4)'!$I$251","v":0},"#'T2-B(PP4)'!$I$251"]
["pp4_bl4_8_11_unit",{"$f":"'T2-B(PP4)'!$C$251","v":0},"#'T2-B(PP4)'!$C$251"]
["pp4_bl4_8_11_unit_in",{"$f":"'T2-B(PP4)'!$D$251","v":0},"#'T2-B(PP4)'!$D$251"]
["pp4_bl4_8_11_units_out",{"$f":"'T2-B(PP4)'!$G$251","v":0},"#'T2-B(PP4)'!$G$251"]
["pp4_bl4_8_12_name",{"$f":"'T2-B(PP4)'!$B$252","v":0},"#'T2-B(PP4)'!$B$252"]
["pp4_bl4_8_12_rate_in",{"$f":"'T2-B(PP4)'!$E$252","v":0},"#'T2-B(PP4)'!$E$252"]
["pp4_bl4_8_12_rate_out",{"$f":"'T2-B(PP4)'!$H$252","v":0},"#'T2-B(PP4)'!$H$252"]
["pp4_bl4_8_12_total",{"$f":"'T2-B(PP4)'!$J$252","v":0},"#'T2-B(PP4)'!$J$252"]
["pp4_bl4_8_12_total_in",{"$f":"'T2-B(PP4)'!$F$252","v":0},"#'T2-B(PP4)'!$F$252"]
["pp4_bl4_8_12_total_out",{"$f":"'T2-B(PP4)'!$I$252","v":0},"#'T2-B(PP4)'!$I$252"]
["pp4_bl4_8_12_unit",{"$f":"'T2-B(PP4)'!$C$252","v":0},"#'T2-B(PP4)'!$C$252"]
["pp4_bl4_8_12_unit_in",{"$f":"'T2-B(PP4)'!$D$252","v":0},"#'T2-B(PP4)'!$D$252"]
["pp4_bl4_8_12_units_out",{"$f":"'T2-B(PP4)'!$G$252","v":0},"#'T2-B(PP4)'!$G$252"]
["pp4_bl4_8_13_name",{"$f":"'T2-B(PP4)'!$B$253","v":0},"#'T2-B(PP4)'!$B$253"]
["pp4_bl4_8_13_rate_in",{"$f":"'T2-B(PP4)'!$E$253","v":0},"#'T2-B(PP4)'!$E$253"]
["pp4_bl4_8_13_rate_out",{"$f":"'T2-B(PP4)'!$H$253","v":0},"#'T2-B(PP4)'!$H$253"]
["pp4_bl4_8_13_total",{"$f":"'T2-B(PP4)'!$J$253","v":0},"#'T2-B(PP4)'!$J$253"]
["pp4_bl4_8_13_total_in",{"$f":"'T2-B(PP4)'!$F$253","v":0},"#'T2-B(PP4)'!$F$253"]
["pp4_bl4_8_13_total_out",{"$f":"'T2-B(PP4)'!$I$253","v":0},"#'T2-B(PP4)'!$I$253"]
["pp4_bl4_8_13_unit",{"$f":"'T2-B(PP4)'!$C$253","v":0},"#'T2-B(PP4)'!$C$253"]
["pp4_bl4_8_13_unit_in",{"$f":"'T2-B(PP4)'!$D$253","v":0},"#'T2-B(PP4)'!$D$253"]
["pp4_bl4_8_13_units_out",{"$f":"'T2-B(PP4)'!$G$253","v":0},"#'T2-B(PP4)'!$G$253"]
["pp4_bl4_8_14_name",{"$f":"'T2-B(PP4)'!$B$254","v":0},"#'T2-B(PP4)'!$B$254"]
["pp4_bl4_8_14_rate_in",{"$f":"'T2-B(PP4)'!$E$254","v":0},"#'T2-B(PP4)'!$E$254"]
["pp4_bl4_8_14_rate_out",{"$f":"'T2-B(PP4)'!$H$254","v":0},"#'T2-B(PP4)'!$H$254"]
["pp4_bl4_8_14_total",{"$f":"'T2-B(PP4)'!$J$254","v":0},"#'T2-B(PP4)'!$J$254"]
["pp4_bl4_8_14_total_in",{"$f":"'T2-B(PP4)'!$F$254","v":0},"#'T2-B(PP4)'!$F$254"]
["pp4_bl4_8_14_total_out",{"$f":"'T2-B(PP4)'!$I$254","v":0},"#'T2-B(PP4)'!$I$254"]
["pp4_bl4_8_14_unit",{"$f":"'T2-B(PP4)'!$C$254","v":0},"#'T2-B(PP4)'!$C$254"]
["pp4_bl4_8_14_unit_in",{"$f":"'T2-B(PP4)'!$D$254","v":0},"#'T2-B(PP4)'!$D$254"]
["pp4_bl4_8_14_units_out",{"$f":"'T2-B(PP4)'!$G$254","v":0},"#'T2-B(PP4)'!$G$254"]
["pp4_bl4_8_15_name",{"$f":"'T2-B(PP4)'!$B$255","v":0},"#'T2-B(PP4)'!$B$255"]
["pp4_bl4_8_15_rate_in",{"$f":"'T2-B(PP4)'!$E$255","v":0},"#'T2-B(PP4)'!$E$255"]
["pp4_bl4_8_15_rate_out",{"$f":"'T2-B(PP4)'!$H$255","v":0},"#'T2-B(PP4)'!$H$255"]
["pp4_bl4_8_15_total",{"$f":"'T2-B(PP4)'!$J$255","v":0},"#'T2-B(PP4)'!$J$255"]
["pp4_bl4_8_15_total_in",{"$f":"'T2-B(PP4)'!$F$255","v":0},"#'T2-B(PP4)'!$F$255"]
["pp4_bl4_8_15_total_out",{"$f":"'T2-B(PP4)'!$I$255","v":0},"#'T2-B(PP4)'!$I$255"]
["pp4_bl4_8_15_unit",{"$f":"'T2-B(PP4)'!$C$255","v":0},"#'T2-B(PP4)'!$C$255"]
["pp4_bl4_8_15_unit_in",{"$f":"'T2-B(PP4)'!$D$255","v":0},"#'T2-B(PP4)'!$D$255"]
["pp4_bl4_8_15_units_out",{"$f":"'T2-B(PP4)'!$G$255","v":0},"#'T2-B(PP4)'!$G$255"]
["pp4_bl4_8_16_name",{"$f":"'T2-B(PP4)'!$B$256","v":0},"#'T2-B(PP4)'!$B$256"]
["pp4_bl4_8_16_rate_in",{"$f":"'T2-B(PP4)'!$E$256","v":0},"#'T2-B(PP4)'!$E$256"]
["pp4_bl4_8_16_rate_out",{"$f":"'T2-B(PP4)'!$H$256","v":0},"#'T2-B(PP4)'!$H$256"]
["pp4_bl4_8_16_total",{"$f":"'T2-B(PP4)'!$J$256","v":0},"#'T2-B(PP4)'!$J$256"]
["pp4_bl4_8_16_total_in",{"$f":"'T2-B(PP4)'!$F$256","v":0},"#'T2-B(PP4)'!$F$256"]
["pp4_bl4_8_16_total_out",{"$f":"'T2-B(PP4)'!$I$256","v":0},"#'T2-B(PP4)'!$I$256"]
["pp4_bl4_8_16_unit",{"$f":"'T2-B(PP4)'!$C$256","v":0},"#'T2-B(PP4)'!$C$256"]
["pp4_bl4_8_16_unit_in",{"$f":"'T2-B(PP4)'!$D$256","v":0},"#'T2-B(PP4)'!$D$256"]
["pp4_bl4_8_16_units_out",{"$f":"'T2-B(PP4)'!$G$256","v":0},"#'T2-B(PP4)'!$G$256"]
["pp4_bl4_8_17_name",{"$f":"'T2-B(PP4)'!$B$257","v":0},"#'T2-B(PP4)'!$B$257"]
["pp4_bl4_8_17_rate_in",{"$f":"'T2-B(PP4)'!$E$257","v":0},"#'T2-B(PP4)'!$E$257"]
["pp4_bl4_8_17_rate_out",{"$f":"'T2-B(PP4)'!$H$257","v":0},"#'T2-B(PP4)'!$H$257"]
["pp4_bl4_8_17_total",{"$f":"'T2-B(PP4)'!$J$257","v":0},"#'T2-B(PP4)'!$J$257"]
["pp4_bl4_8_17_total_in",{"$f":"'T2-B(PP4)'!$F$257","v":0},"#'T2-B(PP4)'!$F$257"]
["pp4_bl4_8_17_total_out",{"$f":"'T2-B(PP4)'!$I$257","v":0},"#'T2-B(PP4)'!$I$257"]
["pp4_bl4_8_17_unit",{"$f":"'T2-B(PP4)'!$C$257","v":0},"#'T2-B(PP4)'!$C$257"]
["pp4_bl4_8_17_unit_in",{"$f":"'T2-B(PP4)'!$D$257","v":0},"#'T2-B(PP4)'!$D$257"]
["pp4_bl4_8_17_units_out",{"$f":"'T2-B(PP4)'!$G$257","v":0},"#'T2-B(PP4)'!$G$257"]
["pp4_bl4_8_18_name",{"$f":"'T2-B(PP4)'!$B$258","v":0},"#'T2-B(PP4)'!$B$258"]
["pp4_bl4_8_18_rate_in",{"$f":"'T2-B(PP4)'!$E$258","v":0},"#'T2-B(PP4)'!$E$258"]
["pp4_bl4_8_18_rate_out",{"$f":"'T2-B(PP4)'!$H$258","v":0},"#'T2-B(PP4)'!$H$258"]
["pp4_bl4_8_18_total",{"$f":"'T2-B(PP4)'!$J$258","v":0},"#'T2-B(PP4)'!$J$258"]
["pp4_bl4_8_18_total_in",{"$f":"'T2-B(PP4)'!$F$258","v":0},"#'T2-B(PP4)'!$F$258"]
["pp4_bl4_8_18_total_out",{"$f":"'T2-B(PP4)'!$I$258","v":0},"#'T2-B(PP4)'!$I$258"]
["pp4_bl4_8_18_unit",{"$f":"'T2-B(PP4)'!$C$258","v":0},"#'T2-B(PP4)'!$C$258"]
["pp4_bl4_8_18_unit_in",{"$f":"'T2-B(PP4)'!$D$258","v":0},"#'T2-B(PP4)'!$D$258"]
["pp4_bl4_8_18_units_out",{"$f":"'T2-B(PP4)'!$G$258","v":0},"#'T2-B(PP4)'!$G$258"]
["pp4_bl4_8_19_name",{"$f":"'T2-B(PP4)'!$B$259","v":0},"#'T2-B(PP4)'!$B$259"]
["pp4_bl4_8_19_rate_in",{"$f":"'T2-B(PP4)'!$E$259","v":0},"#'T2-B(PP4)'!$E$259"]
["pp4_bl4_8_19_rate_out",{"$f":"'T2-B(PP4)'!$H$259","v":0},"#'T2-B(PP4)'!$H$259"]
["pp4_bl4_8_19_total",{"$f":"'T2-B(PP4)'!$J$259","v":0},"#'T2-B(PP4)'!$J$259"]
["pp4_bl4_8_19_total_in",{"$f":"'T2-B(PP4)'!$F$259","v":0},"#'T2-B(PP4)'!$F$259"]
["pp4_bl4_8_19_total_out",{"$f":"'T2-B(PP4)'!$I$259","v":0},"#'T2-B(PP4)'!$I$259"]
["pp4_bl4_8_19_unit",{"$f":"'T2-B(PP4)'!$C$259","v":0},"#'T2-B(PP4)'!$C$259"]
["pp4_bl4_8_19_unit_in",{"$f":"'T2-B(PP4)'!$D$259","v":0},"#'T2-B(PP4)'!$D$259"]
["pp4_bl4_8_19_units_out",{"$f":"'T2-B(PP4)'!$G$259","v":0},"#'T2-B(PP4)'!$G$259"]
["pp4_bl4_8_2_name",{"$f":"'T2-B(PP4)'!$B$242","v":0},"#'T2-B(PP4)'!$B$242"]
["pp4_bl4_8_2_rate_in",{"$f":"'T2-B(PP4)'!$E$242","v":0},"#'T2-B(PP4)'!$E$242"]
["pp4_bl4_8_2_rate_out",{"$f":"'T2-B(PP4)'!$H$242","v":0},"#'T2-B(PP4)'!$H$242"]
["pp4_bl4_8_2_total",{"$f":"'T2-B(PP4)'!$J$242","v":0},"#'T2-B(PP4)'!$J$242"]
["pp4_bl4_8_2_total_in",{"$f":"'T2-B(PP4)'!$F$242","v":0},"#'T2-B(PP4)'!$F$242"]
["pp4_bl4_8_2_total_out",{"$f":"'T2-B(PP4)'!$I$242","v":0},"#'T2-B(PP4)'!$I$242"]
["pp4_bl4_8_2_unit",{"$f":"'T2-B(PP4)'!$C$242","v":0},"#'T2-B(PP4)'!$C$242"]
["pp4_bl4_8_2_unit_in",{"$f":"'T2-B(PP4)'!$D$242","v":0},"#'T2-B(PP4)'!$D$242"]
["pp4_bl4_8_2_units_out",{"$f":"'T2-B(PP4)'!$G$242","v":0},"#'T2-B(PP4)'!$G$242"]
["pp4_bl4_8_20_name",{"$f":"'T2-B(PP4)'!$B$260","v":0},"#'T2-B(PP4)'!$B$260"]
["pp4_bl4_8_20_rate_in",{"$f":"'T2-B(PP4)'!$E$260","v":0},"#'T2-B(PP4)'!$E$260"]
["pp4_bl4_8_20_rate_out",{"$f":"'T2-B(PP4)'!$H$260","v":0},"#'T2-B(PP4)'!$H$260"]
["pp4_bl4_8_20_total",{"$f":"'T2-B(PP4)'!$J$260","v":0},"#'T2-B(PP4)'!$J$260"]
["pp4_bl4_8_20_total_in",{"$f":"'T2-B(PP4)'!$F$260","v":0},"#'T2-B(PP4)'!$F$260"]
["pp4_bl4_8_20_total_out",{"$f":"'T2-B(PP4)'!$I$260","v":0},"#'T2-B(PP4)'!$I$260"]
["pp4_bl4_8_20_unit",{"$f":"'T2-B(PP4)'!$C$260","v":0},"#'T2-B(PP4)'!$C$260"]
["pp4_bl4_8_20_unit_in",{"$f":"'T2-B(PP4)'!$D$260","v":0},"#'T2-B(PP4)'!$D$260"]
["pp4_bl4_8_20_units_out",{"$f":"'T2-B(PP4)'!$G$260","v":0},"#'T2-B(PP4)'!$G$260"]
["pp4_bl4_8_3_name",{"$f":"'T2-B(PP4)'!$B$243","v":0},"#'T2-B(PP4)'!$B$243"]
["pp4_bl4_8_3_rate_in",{"$f":"'T2-B(PP4)'!$E$243","v":0},"#'T2-B(PP4)'!$E$243"]
["pp4_bl4_8_3_rate_out",{"$f":"'T2-B(PP4)'!$H$243","v":0},"#'T2-B(PP4)'!$H$243"]
["pp4_bl4_8_3_total",{"$f":"'T2-B(PP4)'!$J$243","v":0},"#'T2-B(PP4)'!$J$243"]
["pp4_bl4_8_3_total_in",{"$f":"'T2-B(PP4)'!$F$243","v":0},"#'T2-B(PP4)'!$F$243"]
["pp4_bl4_8_3_total_out",{"$f":"'T2-B(PP4)'!$I$243","v":0},"#'T2-B(PP4)'!$I$243"]
["pp4_bl4_8_3_unit",{"$f":"'T2-B(PP4)'!$C$243","v":0},"#'T2-B(PP4)'!$C$243"]
["pp4_bl4_8_3_unit_in",{"$f":"'T2-B(PP4)'!$D$243","v":0},"#'T2-B(PP4)'!$D$243"]
["pp4_bl4_8_3_units_out",{"$f":"'T2-B(PP4)'!$G$243","v":0},"#'T2-B(PP4)'!$G$243"]
["pp4_bl4_8_4_name",{"$f":"'T2-B(PP4)'!$B$244","v":0},"#'T2-B(PP4)'!$B$244"]
["pp4_bl4_8_4_rate_in",{"$f":"'T2-B(PP4)'!$E$244","v":0},"#'T2-B(PP4)'!$E$244"]
["pp4_bl4_8_4_rate_out",{"$f":"'T2-B(PP4)'!$H$244","v":0},"#'T2-B(PP4)'!$H$244"]
["pp4_bl4_8_4_total",{"$f":"'T2-B(PP4)'!$J$244","v":0},"#'T2-B(PP4)'!$J$244"]
["pp4_bl4_8_4_total_in",{"$f":"'T2-B(PP4)'!$F$244","v":0},"#'T2-B(PP4)'!$F$244"]
["pp4_bl4_8_4_total_out",{"$f":"'T2-B(PP4)'!$I$244","v":0},"#'T2-B(PP4)'!$I$244"]
["pp4_bl4_8_4_unit",{"$f":"'T2-B(PP4)'!$C$244","v":0},"#'T2-B(PP4)'!$C$244"]
["pp4_bl4_8_4_unit_in",{"$f":"'T2-B(PP4)'!$D$244","v":0},"#'T2-B(PP4)'!$D$244"]
["pp4_bl4_8_4_units_out",{"$f":"'T2-B(PP4)'!$G$244","v":0},"#'T2-B(PP4)'!$G$244"]
["pp4_bl4_8_5_name",{"$f":"'T2-B(PP4)'!$B$245","v":0},"#'T2-B(PP4)'!$B$245"]
["pp4_bl4_8_5_rate_in",{"$f":"'T2-B(PP4)'!$E$245","v":0},"#'T2-B(PP4)'!$E$245"]
["pp4_bl4_8_5_rate_out",{"$f":"'T2-B(PP4)'!$H$245","v":0},"#'T2-B(PP4)'!$H$245"]
["pp4_bl4_8_5_total",{"$f":"'T2-B(PP4)'!$J$245","v":0},"#'T2-B(PP4)'!$J$245"]
["pp4_bl4_8_5_total_in",{"$f":"'T2-B(PP4)'!$F$245","v":0},"#'T2-B(PP4)'!$F$245"]
["pp4_bl4_8_5_total_out",{"$f":"'T2-B(PP4)'!$I$245","v":0},"#'T2-B(PP4)'!$I$245"]
["pp4_bl4_8_5_unit",{"$f":"'T2-B(PP4)'!$C$245","v":0},"#'T2-B(PP4)'!$C$245"]
["pp4_bl4_8_5_unit_in",{"$f":"'T2-B(PP4)'!$D$245","v":0},"#'T2-B(PP4)'!$D$245"]
["pp4_bl4_8_5_units_out",{"$f":"'T2-B(PP4)'!$G$245","v":0},"#'T2-B(PP4)'!$G$245"]
["pp4_bl4_8_6_name",{"$f":"'T2-B(PP4)'!$B$246","v":0},"#'T2-B(PP4)'!$B$246"]
["pp4_bl4_8_6_rate_in",{"$f":"'T2-B(PP4)'!$E$246","v":0},"#'T2-B(PP4)'!$E$246"]
["pp4_bl4_8_6_rate_out",{"$f":"'T2-B(PP4)'!$H$246","v":0},"#'T2-B(PP4)'!$H$246"]
["pp4_bl4_8_6_total",{"$f":"'T2-B(PP4)'!$J$246","v":0},"#'T2-B(PP4)'!$J$246"]
["pp4_bl4_8_6_total_in",{"$f":"'T2-B(PP4)'!$F$246","v":0},"#'T2-B(PP4)'!$F$246"]
["pp4_bl4_8_6_total_out",{"$f":"'T2-B(PP4)'!$I$246","v":0},"#'T2-B(PP4)'!$I$246"]
["pp4_bl4_8_6_unit",{"$f":"'T2-B(PP4)'!$C$246","v":0},"#'T2-B(PP4)'!$C$246"]
["pp4_bl4_8_6_unit_in",{"$f":"'T2-B(PP4)'!$D$246","v":0},"#'T2-B(PP4)'!$D$246"]
["pp4_bl4_8_6_units_out",{"$f":"'T2-B(PP4)'!$G$246","v":0},"#'T2-B(PP4)'!$G$246"]
["pp4_bl4_8_7_name",{"$f":"'T2-B(PP4)'!$B$247","v":0},"#'T2-B(PP4)'!$B$247"]
["pp4_bl4_8_7_rate_in",{"$f":"'T2-B(PP4)'!$E$247","v":0},"#'T2-B(PP4)'!$E$247"]
["pp4_bl4_8_7_rate_out",{"$f":"'T2-B(PP4)'!$H$247","v":0},"#'T2-B(PP4)'!$H$247"]
["pp4_bl4_8_7_total",{"$f":"'T2-B(PP4)'!$J$247","v":0},"#'T2-B(PP4)'!$J$247"]
["pp4_bl4_8_7_total_in",{"$f":"'T2-B(PP4)'!$F$247","v":0},"#'T2-B(PP4)'!$F$247"]
["pp4_bl4_8_7_total_out",{"$f":"'T2-B(PP4)'!$I$247","v":0},"#'T2-B(PP4)'!$I$247"]
["pp4_bl4_8_7_unit",{"$f":"'T2-B(PP4)'!$C$247","v":0},"#'T2-B(PP4)'!$C$247"]
["pp4_bl4_8_7_unit_in",{"$f":"'T2-B(PP4)'!$D$247","v":0},"#'T2-B(PP4)'!$D$247"]
["pp4_bl4_8_7_units_out",{"$f":"'T2-B(PP4)'!$G$247","v":0},"#'T2-B(PP4)'!$G$247"]
["pp4_bl4_8_8_name",{"$f":"'T2-B(PP4)'!$B$248","v":0},"#'T2-B(PP4)'!$B$248"]
["pp4_bl4_8_8_rate_in",{"$f":"'T2-B(PP4)'!$E$248","v":0},"#'T2-B(PP4)'!$E$248"]
["pp4_bl4_8_8_rate_out",{"$f":"'T2-B(PP4)'!$H$248","v":0},"#'T2-B(PP4)'!$H$248"]
["pp4_bl4_8_8_total",{"$f":"'T2-B(PP4)'!$J$248","v":0},"#'T2-B(PP4)'!$J$248"]
["pp4_bl4_8_8_total_in",{"$f":"'T2-B(PP4)'!$F$248","v":0},"#'T2-B(PP4)'!$F$248"]
["pp4_bl4_8_8_total_out",{"$f":"'T2-B(PP4)'!$I$248","v":0},"#'T2-B(PP4)'!$I$248"]
["pp4_bl4_8_8_unit",{"$f":"'T2-B(PP4)'!$C$248","v":0},"#'T2-B(PP4)'!$C$248"]
["pp4_bl4_8_8_unit_in",{"$f":"'T2-B(PP4)'!$D$248","v":0},"#'T2-B(PP4)'!$D$248"]
["pp4_bl4_8_8_units_out",{"$f":"'T2-B(PP4)'!$G$248","v":0},"#'T2-B(PP4)'!$G$248"]
["pp4_bl4_8_9_name",{"$f":"'T2-B(PP4)'!$B$249","v":0},"#'T2-B(PP4)'!$B$249"]
["pp4_bl4_8_9_rate_in",{"$f":"'T2-B(PP4)'!$E$249","v":0},"#'T2-B(PP4)'!$E$249"]
["pp4_bl4_8_9_rate_out",{"$f":"'T2-B(PP4)'!$H$249","v":0},"#'T2-B(PP4)'!$H$249"]
["pp4_bl4_8_9_total",{"$f":"'T2-B(PP4)'!$J$249","v":0},"#'T2-B(PP4)'!$J$249"]
["pp4_bl4_8_9_total_in",{"$f":"'T2-B(PP4)'!$F$249","v":0},"#'T2-B(PP4)'!$F$249"]
["pp4_bl4_8_9_total_out",{"$f":"'T2-B(PP4)'!$I$249","v":0},"#'T2-B(PP4)'!$I$249"]
["pp4_bl4_8_9_unit",{"$f":"'T2-B(PP4)'!$C$249","v":0},"#'T2-B(PP4)'!$C$249"]
["pp4_bl4_8_9_unit_in",{"$f":"'T2-B(PP4)'!$D$249","v":0},"#'T2-B(PP4)'!$D$249"]
["pp4_bl4_8_9_units_out",{"$f":"'T2-B(PP4)'!$G$249","v":0},"#'T2-B(PP4)'!$G$249"]
["pp4_bl4_8_total",{"$f":"'T2-B(PP4)'!$J$240","v":0},"#'T2-B(PP4)'!$J$240"]
["pp4_bl4_8_total_in",{"$f":"'T2-B(PP4)'!$F$240","v":0},"#'T2-B(PP4)'!$F$240"]
["pp4_bl4_8_total_out",{"$f":"'T2-B(PP4)'!$I$240","v":0},"#'T2-B(PP4)'!$I$240"]
["pp4_bl4_9_1_name",{"$f":"'T2-B(PP4)'!$B$262","v":0},"#'T2-B(PP4)'!$B$262"]
["pp4_bl4_9_1_rate_in",{"$f":"'T2-B(PP4)'!$E$262","v":0},"#'T2-B(PP4)'!$E$262"]
["pp4_bl4_9_1_rate_out",{"$f":"'T2-B(PP4)'!$H$262","v":0},"#'T2-B(PP4)'!$H$262"]
["pp4_bl4_9_1_total",{"$f":"'T2-B(PP4)'!$J$262","v":0},"#'T2-B(PP4)'!$J$262"]
["pp4_bl4_9_1_total_in",{"$f":"'T2-B(PP4)'!$F$262","v":0},"#'T2-B(PP4)'!$F$262"]
["pp4_bl4_9_1_total_out",{"$f":"'T2-B(PP4)'!$I$262","v":0},"#'T2-B(PP4)'!$I$262"]
["pp4_bl4_9_1_unit",{"$f":"'T2-B(PP4)'!$C$262","v":0},"#'T2-B(PP4)'!$C$262"]
["pp4_bl4_9_1_unit_in",{"$f":"'T2-B(PP4)'!$D$262","v":0},"#'T2-B(PP4)'!$D$262"]
["pp4_bl4_9_1_units_out",{"$f":"'T2-B(PP4)'!$G$262","v":0},"#'T2-B(PP4)'!$G$262"]
["pp4_bl4_9_10_name",{"$f":"'T2-B(PP4)'!$B$271","v":0},"#'T2-B(PP4)'!$B$271"]
["pp4_bl4_9_10_rate_in",{"$f":"'T2-B(PP4)'!$E$271","v":0},"#'T2-B(PP4)'!$E$271"]
["pp4_bl4_9_10_rate_out",{"$f":"'T2-B(PP4)'!$H$271","v":0},"#'T2-B(PP4)'!$H$271"]
["pp4_bl4_9_10_total",{"$f":"'T2-B(PP4)'!$J$271","v":0},"#'T2-B(PP4)'!$J$271"]
["pp4_bl4_9_10_total_in",{"$f":"'T2-B(PP4)'!$F$271","v":0},"#'T2-B(PP4)'!$F$271"]
["pp4_bl4_9_10_total_out",{"$f":"'T2-B(PP4)'!$I$271","v":0},"#'T2-B(PP4)'!$I$271"]
["pp4_bl4_9_10_unit",{"$f":"'T2-B(PP4)'!$C$271","v":0},"#'T2-B(PP4)'!$C$271"]
["pp4_bl4_9_10_unit_in",{"$f":"'T2-B(PP4)'!$D$271","v":0},"#'T2-B(PP4)'!$D$271"]
["pp4_bl4_9_10_units_out",{"$f":"'T2-B(PP4)'!$G$271","v":0},"#'T2-B(PP4)'!$G$271"]
["pp4_bl4_9_11_name",{"$f":"'T2-B(PP4)'!$B$272","v":0},"#'T2-B(PP4)'!$B$272"]
["pp4_bl4_9_11_rate_in",{"$f":"'T2-B(PP4)'!$E$272","v":0},"#'T2-B(PP4)'!$E$272"]
["pp4_bl4_9_11_rate_out",{"$f":"'T2-B(PP4)'!$H$272","v":0},"#'T2-B(PP4)'!$H$272"]
["pp4_bl4_9_11_total",{"$f":"'T2-B(PP4)'!$J$272","v":0},"#'T2-B(PP4)'!$J$272"]
["pp4_bl4_9_11_total_in",{"$f":"'T2-B(PP4)'!$F$272","v":0},"#'T2-B(PP4)'!$F$272"]
["pp4_bl4_9_11_total_out",{"$f":"'T2-B(PP4)'!$I$272","v":0},"#'T2-B(PP4)'!$I$272"]
["pp4_bl4_9_11_unit",{"$f":"'T2-B(PP4)'!$C$272","v":0},"#'T2-B(PP4)'!$C$272"]
["pp4_bl4_9_11_unit_in",{"$f":"'T2-B(PP4)'!$D$272","v":0},"#'T2-B(PP4)'!$D$272"]
["pp4_bl4_9_11_units_out",{"$f":"'T2-B(PP4)'!$G$272","v":0},"#'T2-B(PP4)'!$G$272"]
["pp4_bl4_9_12_name",{"$f":"'T2-B(PP4)'!$B$273","v":0},"#'T2-B(PP4)'!$B$273"]
["pp4_bl4_9_12_rate_in",{"$f":"'T2-B(PP4)'!$E$273","v":0},"#'T2-B(PP4)'!$E$273"]
["pp4_bl4_9_12_rate_out",{"$f":"'T2-B(PP4)'!$H$273","v":0},"#'T2-B(PP4)'!$H$273"]
["pp4_bl4_9_12_total",{"$f":"'T2-B(PP4)'!$J$273","v":0},"#'T2-B(PP4)'!$J$273"]
["pp4_bl4_9_12_total_in",{"$f":"'T2-B(PP4)'!$F$273","v":0},"#'T2-B(PP4)'!$F$273"]
["pp4_bl4_9_12_total_out",{"$f":"'T2-B(PP4)'!$I$273","v":0},"#'T2-B(PP4)'!$I$273"]
["pp4_bl4_9_12_unit",{"$f":"'T2-B(PP4)'!$C$273","v":0},"#'T2-B(PP4)'!$C$273"]
["pp4_bl4_9_12_unit_in",{"$f":"'T2-B(PP4)'!$D$273","v":0},"#'T2-B(PP4)'!$D$273"]
["pp4_bl4_9_12_units_out",{"$f":"'T2-B(PP4)'!$G$273","v":0},"#'T2-B(PP4)'!$G$273"]
["pp4_bl4_9_13_name",{"$f":"'T2-B(PP4)'!$B$274","v":0},"#'T2-B(PP4)'!$B$274"]
["pp4_bl4_9_13_rate_in",{"$f":"'T2-B(PP4)'!$E$274","v":0},"#'T2-B(PP4)'!$E$274"]
["pp4_bl4_9_13_rate_out",{"$f":"'T2-B(PP4)'!$H$274","v":0},"#'T2-B(PP4)'!$H$274"]
["pp4_bl4_9_13_total",{"$f":"'T2-B(PP4)'!$J$274","v":0},"#'T2-B(PP4)'!$J$274"]
["pp4_bl4_9_13_total_in",{"$f":"'T2-B(PP4)'!$F$274","v":0},"#'T2-B(PP4)'!$F$274"]
["pp4_bl4_9_13_total_out",{"$f":"'T2-B(PP4)'!$I$274","v":0},"#'T2-B(PP4)'!$I$274"]
["pp4_bl4_9_13_unit",{"$f":"'T2-B(PP4)'!$C$274","v":0},"#'T2-B(PP4)'!$C$274"]
["pp4_bl4_9_13_unit_in",{"$f":"'T2-B(PP4)'!$D$274","v":0},"#'T2-B(PP4)'!$D$274"]
["pp4_bl4_9_13_units_out",{"$f":"'T2-B(PP4)'!$G$274","v":0},"#'T2-B(PP4)'!$G$274"]
["pp4_bl4_9_14_name",{"$f":"'T2-B(PP4)'!$B$275","v":0},"#'T2-B(PP4)'!$B$275"]
["pp4_bl4_9_14_rate_in",{"$f":"'T2-B(PP4)'!$E$275","v":0},"#'T2-B(PP4)'!$E$275"]
["pp4_bl4_9_14_rate_out",{"$f":"'T2-B(PP4)'!$H$275","v":0},"#'T2-B(PP4)'!$H$275"]
["pp4_bl4_9_14_total",{"$f":"'T2-B(PP4)'!$J$275","v":0},"#'T2-B(PP4)'!$J$275"]
["pp4_bl4_9_14_total_in",{"$f":"'T2-B(PP4)'!$F$275","v":0},"#'T2-B(PP4)'!$F$275"]
["pp4_bl4_9_14_total_out",{"$f":"'T2-B(PP4)'!$I$275","v":0},"#'T2-B(PP4)'!$I$275"]
["pp4_bl4_9_14_unit",{"$f":"'T2-B(PP4)'!$C$275","v":0},"#'T2-B(PP4)'!$C$275"]
["pp4_bl4_9_14_unit_in",{"$f":"'T2-B(PP4)'!$D$275","v":0},"#'T2-B(PP4)'!$D$275"]
["pp4_bl4_9_14_units_out",{"$f":"'T2-B(PP4)'!$G$275","v":0},"#'T2-B(PP4)'!$G$275"]
["pp4_bl4_9_15_name",{"$f":"'T2-B(PP4)'!$B$276","v":0},"#'T2-B(PP4)'!$B$276"]
["pp4_bl4_9_15_rate_in",{"$f":"'T2-B(PP4)'!$E$276","v":0},"#'T2-B(PP4)'!$E$276"]
["pp4_bl4_9_15_rate_out",{"$f":"'T2-B(PP4)'!$H$276","v":0},"#'T2-B(PP4)'!$H$276"]
["pp4_bl4_9_15_total",{"$f":"'T2-B(PP4)'!$J$276","v":0},"#'T2-B(PP4)'!$J$276"]
["pp4_bl4_9_15_total_in",{"$f":"'T2-B(PP4)'!$F$276","v":0},"#'T2-B(PP4)'!$F$276"]
["pp4_bl4_9_15_total_out",{"$f":"'T2-B(PP4)'!$I$276","v":0},"#'T2-B(PP4)'!$I$276"]
["pp4_bl4_9_15_unit",{"$f":"'T2-B(PP4)'!$C$276","v":0},"#'T2-B(PP4)'!$C$276"]
["pp4_bl4_9_15_unit_in",{"$f":"'T2-B(PP4)'!$D$276","v":0},"#'T2-B(PP4)'!$D$276"]
["pp4_bl4_9_15_units_out",{"$f":"'T2-B(PP4)'!$G$276","v":0},"#'T2-B(PP4)'!$G$276"]
["pp4_bl4_9_16_name",{"$f":"'T2-B(PP4)'!$B$277","v":0},"#'T2-B(PP4)'!$B$277"]
["pp4_bl4_9_16_rate_in",{"$f":"'T2-B(PP4)'!$E$277","v":0},"#'T2-B(PP4)'!$E$277"]
["pp4_bl4_9_16_rate_out",{"$f":"'T2-B(PP4)'!$H$277","v":0},"#'T2-B(PP4)'!$H$277"]
["pp4_bl4_9_16_total",{"$f":"'T2-B(PP4)'!$J$277","v":0},"#'T2-B(PP4)'!$J$277"]
["pp4_bl4_9_16_total_in",{"$f":"'T2-B(PP4)'!$F$277","v":0},"#'T2-B(PP4)'!$F$277"]
["pp4_bl4_9_16_total_out",{"$f":"'T2-B(PP4)'!$I$277","v":0},"#'T2-B(PP4)'!$I$277"]
["pp4_bl4_9_16_unit",{"$f":"'T2-B(PP4)'!$C$277","v":0},"#'T2-B(PP4)'!$C$277"]
["pp4_bl4_9_16_unit_in",{"$f":"'T2-B(PP4)'!$D$277","v":0},"#'T2-B(PP4)'!$D$277"]
["pp4_bl4_9_16_units_out",{"$f":"'T2-B(PP4)'!$G$277","v":0},"#'T2-B(PP4)'!$G$277"]
["pp4_bl4_9_17_name",{"$f":"'T2-B(PP4)'!$B$278","v":0},"#'T2-B(PP4)'!$B$278"]
["pp4_bl4_9_17_rate_in",{"$f":"'T2-B(PP4)'!$E$278","v":0},"#'T2-B(PP4)'!$E$278"]
["pp4_bl4_9_17_rate_out",{"$f":"'T2-B(PP4)'!$H$278","v":0},"#'T2-B(PP4)'!$H$278"]
["pp4_bl4_9_17_total",{"$f":"'T2-B(PP4)'!$J$278","v":0},"#'T2-B(PP4)'!$J$278"]
["pp4_bl4_9_17_total_in",{"$f":"'T2-B(PP4)'!$F$278","v":0},"#'T2-B(PP4)'!$F$278"]
["pp4_bl4_9_17_total_out",{"$f":"'T2-B(PP4)'!$I$278","v":0},"#'T2-B(PP4)'!$I$278"]
["pp4_bl4_9_17_unit",{"$f":"'T2-B(PP4)'!$C$278","v":0},"#'T2-B(PP4)'!$C$278"]
["pp4_bl4_9_17_unit_in",{"$f":"'T2-B(PP4)'!$D$278","v":0},"#'T2-B(PP4)'!$D$278"]
["pp4_bl4_9_17_units_out",{"$f":"'T2-B(PP4)'!$G$278","v":0},"#'T2-B(PP4)'!$G$278"]
["pp4_bl4_9_18_name",{"$f":"'T2-B(PP4)'!$B$279","v":0},"#'T2-B(PP4)'!$B$279"]
["pp4_bl4_9_18_rate_in",{"$f":"'T2-B(PP4)'!$E$279","v":0},"#'T2-B(PP4)'!$E$279"]
["pp4_bl4_9_18_rate_out",{"$f":"'T2-B(PP4)'!$H$279","v":0},"#'T2-B(PP4)'!$H$279"]
["pp4_bl4_9_18_total",{"$f":"'T2-B(PP4)'!$J$279","v":0},"#'T2-B(PP4)'!$J$279"]
["pp4_bl4_9_18_total_in",{"$f":"'T2-B(PP4)'!$F$279","v":0},"#'T2-B(PP4)'!$F$279"]
["pp4_bl4_9_18_total_out",{"$f":"'T2-B(PP4)'!$I$279","v":0},"#'T2-B(PP4)'!$I$279"]
["pp4_bl4_9_18_unit",{"$f":"'T2-B(PP4)'!$C$279","v":0},"#'T2-B(PP4)'!$C$279"]
["pp4_bl4_9_18_unit_in",{"$f":"'T2-B(PP4)'!$D$279","v":0},"#'T2-B(PP4)'!$D$279"]
["pp4_bl4_9_18_units_out",{"$f":"'T2-B(PP4)'!$G$279","v":0},"#'T2-B(PP4)'!$G$279"]
["pp4_bl4_9_19_name",{"$f":"'T2-B(PP4)'!$B$280","v":0},"#'T2-B(PP4)'!$B$280"]
["pp4_bl4_9_19_rate_in",{"$f":"'T2-B(PP4)'!$E$280","v":0},"#'T2-B(PP4)'!$E$280"]
["pp4_bl4_9_19_rate_out",{"$f":"'T2-B(PP4)'!$H$280","v":0},"#'T2-B(PP4)'!$H$280"]
["pp4_bl4_9_19_total",{"$f":"'T2-B(PP4)'!$J$280","v":0},"#'T2-B(PP4)'!$J$280"]
["pp4_bl4_9_19_total_in",{"$f":"'T2-B(PP4)'!$F$280","v":0},"#'T2-B(PP4)'!$F$280"]
["pp4_bl4_9_19_total_out",{"$f":"'T2-B(PP4)'!$I$280","v":0},"#'T2-B(PP4)'!$I$280"]
["pp4_bl4_9_19_unit",{"$f":"'T2-B(PP4)'!$C$280","v":0},"#'T2-B(PP4)'!$C$280"]
["pp4_bl4_9_19_unit_in",{"$f":"'T2-B(PP4)'!$D$280","v":0},"#'T2-B(PP4)'!$D$280"]
["pp4_bl4_9_19_units_out",{"$f":"'T2-B(PP4)'!$G$280","v":0},"#'T2-B(PP4)'!$G$280"]
["pp4_bl4_9_2_name",{"$f":"'T2-B(PP4)'!$B$263","v":0},"#'T2-B(PP4)'!$B$263"]
["pp4_bl4_9_2_rate_in",{"$f":"'T2-B(PP4)'!$E$263","v":0},"#'T2-B(PP4)'!$E$263"]
["pp4_bl4_9_2_rate_out",{"$f":"'T2-B(PP4)'!$H$263","v":0},"#'T2-B(PP4)'!$H$263"]
["pp4_bl4_9_2_total",{"$f":"'T2-B(PP4)'!$J$263","v":0},"#'T2-B(PP4)'!$J$263"]
["pp4_bl4_9_2_total_in",{"$f":"'T2-B(PP4)'!$F$263","v":0},"#'T2-B(PP4)'!$F$263"]
["pp4_bl4_9_2_total_out",{"$f":"'T2-B(PP4)'!$I$263","v":0},"#'T2-B(PP4)'!$I$263"]
["pp4_bl4_9_2_unit",{"$f":"'T2-B(PP4)'!$C$263","v":0},"#'T2-B(PP4)'!$C$263"]
["pp4_bl4_9_2_unit_in",{"$f":"'T2-B(PP4)'!$D$263","v":0},"#'T2-B(PP4)'!$D$263"]
["pp4_bl4_9_2_units_out",{"$f":"'T2-B(PP4)'!$G$263","v":0},"#'T2-B(PP4)'!$G$263"]
["pp4_bl4_9_20_name",{"$f":"'T2-B(PP4)'!$B$281","v":0},"#'T2-B(PP4)'!$B$281"]
["pp4_bl4_9_20_rate_in",{"$f":"'T2-B(PP4)'!$E$281","v":0},"#'T2-B(PP4)'!$E$281"]
["pp4_bl4_9_20_rate_out",{"$f":"'T2-B(PP4)'!$H$281","v":0},"#'T2-B(PP4)'!$H$281"]
["pp4_bl4_9_20_total",{"$f":"'T2-B(PP4)'!$J$281","v":0},"#'T2-B(PP4)'!$J$281"]
["pp4_bl4_9_20_total_in",{"$f":"'T2-B(PP4)'!$F$281","v":0},"#'T2-B(PP4)'!$F$281"]
["pp4_bl4_9_20_total_out",{"$f":"'T2-B(PP4)'!$I$281","v":0},"#'T2-B(PP4)'!$I$281"]
["pp4_bl4_9_20_unit",{"$f":"'T2-B(PP4)'!$C$281","v":0},"#'T2-B(PP4)'!$C$281"]
["pp4_bl4_9_20_unit_in",{"$f":"'T2-B(PP4)'!$D$281","v":0},"#'T2-B(PP4)'!$D$281"]
["pp4_bl4_9_20_units_out",{"$f":"'T2-B(PP4)'!$G$281","v":0},"#'T2-B(PP4)'!$G$281"]
["pp4_bl4_9_3_name",{"$f":"'T2-B(PP4)'!$B$264","v":0},"#'T2-B(PP4)'!$B$264"]
["pp4_bl4_9_3_rate_in",{"$f":"'T2-B(PP4)'!$E$264","v":0},"#'T2-B(PP4)'!$E$264"]
["pp4_bl4_9_3_rate_out",{"$f":"'T2-B(PP4)'!$H$264","v":0},"#'T2-B(PP4)'!$H$264"]
["pp4_bl4_9_3_total",{"$f":"'T2-B(PP4)'!$J$264","v":0},"#'T2-B(PP4)'!$J$264"]
["pp4_bl4_9_3_total_in",{"$f":"'T2-B(PP4)'!$F$264","v":0},"#'T2-B(PP4)'!$F$264"]
["pp4_bl4_9_3_total_out",{"$f":"'T2-B(PP4)'!$I$264","v":0},"#'T2-B(PP4)'!$I$264"]
["pp4_bl4_9_3_unit",{"$f":"'T2-B(PP4)'!$C$264","v":0},"#'T2-B(PP4)'!$C$264"]
["pp4_bl4_9_3_unit_in",{"$f":"'T2-B(PP4)'!$D$264","v":0},"#'T2-B(PP4)'!$D$264"]
["pp4_bl4_9_3_units_out",{"$f":"'T2-B(PP4)'!$G$264","v":0},"#'T2-B(PP4)'!$G$264"]
["pp4_bl4_9_4_name",{"$f":"'T2-B(PP4)'!$B$265","v":0},"#'T2-B(PP4)'!$B$265"]
["pp4_bl4_9_4_rate_in",{"$f":"'T2-B(PP4)'!$E$265","v":0},"#'T2-B(PP4)'!$E$265"]
["pp4_bl4_9_4_rate_out",{"$f":"'T2-B(PP4)'!$H$265","v":0},"#'T2-B(PP4)'!$H$265"]
["pp4_bl4_9_4_total",{"$f":"'T2-B(PP4)'!$J$265","v":0},"#'T2-B(PP4)'!$J$265"]
["pp4_bl4_9_4_total_in",{"$f":"'T2-B(PP4)'!$F$265","v":0},"#'T2-B(PP4)'!$F$265"]
["pp4_bl4_9_4_total_out",{"$f":"'T2-B(PP4)'!$I$265","v":0},"#'T2-B(PP4)'!$I$265"]
["pp4_bl4_9_4_unit",{"$f":"'T2-B(PP4)'!$C$265","v":0},"#'T2-B(PP4)'!$C$265"]
["pp4_bl4_9_4_unit_in",{"$f":"'T2-B(PP4)'!$D$265","v":0},"#'T2-B(PP4)'!$D$265"]
["pp4_bl4_9_4_units_out",{"$f":"'T2-B(PP4)'!$G$265","v":0},"#'T2-B(PP4)'!$G$265"]
["pp4_bl4_9_5_name",{"$f":"'T2-B(PP4)'!$B$266","v":0},"#'T2-B(PP4)'!$B$266"]
["pp4_bl4_9_5_rate_in",{"$f":"'T2-B(PP4)'!$E$266","v":0},"#'T2-B(PP4)'!$E$266"]
["pp4_bl4_9_5_rate_out",{"$f":"'T2-B(PP4)'!$H$266","v":0},"#'T2-B(PP4)'!$H$266"]
["pp4_bl4_9_5_total",{"$f":"'T2-B(PP4)'!$J$266","v":0},"#'T2-B(PP4)'!$J$266"]
["pp4_bl4_9_5_total_in",{"$f":"'T2-B(PP4)'!$F$266","v":0},"#'T2-B(PP4)'!$F$266"]
["pp4_bl4_9_5_total_out",{"$f":"'T2-B(PP4)'!$I$266","v":0},"#'T2-B(PP4)'!$I$266"]
["pp4_bl4_9_5_unit",{"$f":"'T2-B(PP4)'!$C$266","v":0},"#'T2-B(PP4)'!$C$266"]
["pp4_bl4_9_5_unit_in",{"$f":"'T2-B(PP4)'!$D$266","v":0},"#'T2-B(PP4)'!$D$266"]
["pp4_bl4_9_5_units_out",{"$f":"'T2-B(PP4)'!$G$266","v":0},"#'T2-B(PP4)'!$G$266"]
["pp4_bl4_9_6_name",{"$f":"'T2-B(PP4)'!$B$267","v":0},"#'T2-B(PP4)'!$B$267"]
["pp4_bl4_9_6_rate_in",{"$f":"'T2-B(PP4)'!$E$267","v":0},"#'T2-B(PP4)'!$E$267"]
["pp4_bl4_9_6_rate_out",{"$f":"'T2-B(PP4)'!$H$267","v":0},"#'T2-B(PP4)'!$H$267"]
["pp4_bl4_9_6_total",{"$f":"'T2-B(PP4)'!$J$267","v":0},"#'T2-B(PP4)'!$J$267"]
["pp4_bl4_9_6_total_in",{"$f":"'T2-B(PP4)'!$F$267","v":0},"#'T2-B(PP4)'!$F$267"]
["pp4_bl4_9_6_total_out",{"$f":"'T2-B(PP4)'!$I$267","v":0},"#'T2-B(PP4)'!$I$267"]
["pp4_bl4_9_6_unit",{"$f":"'T2-B(PP4)'!$C$267","v":0},"#'T2-B(PP4)'!$C$267"]
["pp4_bl4_9_6_unit_in",{"$f":"'T2-B(PP4)'!$D$267","v":0},"#'T2-B(PP4)'!$D$267"]
["pp4_bl4_9_6_units_out",{"$f":"'T2-B(PP4)'!$G$267","v":0},"#'T2-B(PP4)'!$G$267"]
["pp4_bl4_9_7_name",{"$f":"'T2-B(PP4)'!$B$268","v":0},"#'T2-B(PP4)'!$B$268"]
["pp4_bl4_9_7_rate_in",{"$f":"'T2-B(PP4)'!$E$268","v":0},"#'T2-B(PP4)'!$E$268"]
["pp4_bl4_9_7_rate_out",{"$f":"'T2-B(PP4)'!$H$268","v":0},"#'T2-B(PP4)'!$H$268"]
["pp4_bl4_9_7_total",{"$f":"'T2-B(PP4)'!$J$268","v":0},"#'T2-B(PP4)'!$J$268"]
["pp4_bl4_9_7_total_in",{"$f":"'T2-B(PP4)'!$F$268","v":0},"#'T2-B(PP4)'!$F$268"]
["pp4_bl4_9_7_total_out",{"$f":"'T2-B(PP4)'!$I$268","v":0},"#'T2-B(PP4)'!$I$268"]
["pp4_bl4_9_7_unit",{"$f":"'T2-B(PP4)'!$C$268","v":0},"#'T2-B(PP4)'!$C$268"]
["pp4_bl4_9_7_unit_in",{"$f":"'T2-B(PP4)'!$D$268","v":0},"#'T2-B(PP4)'!$D$268"]
["pp4_bl4_9_7_units_out",{"$f":"'T2-B(PP4)'!$G$268","v":0},"#'T2-B(PP4)'!$G$268"]
["pp4_bl4_9_8_name",{"$f":"'T2-B(PP4)'!$B$269","v":0},"#'T2-B(PP4)'!$B$269"]
["pp4_bl4_9_8_rate_in",{"$f":"'T2-B(PP4)'!$E$269","v":0},"#'T2-B(PP4)'!$E$269"]
["pp4_bl4_9_8_rate_out",{"$f":"'T2-B(PP4)'!$H$269","v":0},"#'T2-B(PP4)'!$H$269"]
["pp4_bl4_9_8_total",{"$f":"'T2-B(PP4)'!$J$269","v":0},"#'T2-B(PP4)'!$J$269"]
["pp4_bl4_9_8_total_in",{"$f":"'T2-B(PP4)'!$F$269","v":0},"#'T2-B(PP4)'!$F$269"]
["pp4_bl4_9_8_total_out",{"$f":"'T2-B(PP4)'!$I$269","v":0},"#'T2-B(PP4)'!$I$269"]
["pp4_bl4_9_8_unit",{"$f":"'T2-B(PP4)'!$C$269","v":0},"#'T2-B(PP4)'!$C$269"]
["pp4_bl4_9_8_unit_in",{"$f":"'T2-B(PP4)'!$D$269","v":0},"#'T2-B(PP4)'!$D$269"]
["pp4_bl4_9_8_units_out",{"$f":"'T2-B(PP4)'!$G$269","v":0},"#'T2-B(PP4)'!$G$269"]
["pp4_bl4_9_9_name",{"$f":"'T2-B(PP4)'!$B$270","v":0},"#'T2-B(PP4)'!$B$270"]
["pp4_bl4_9_9_rate_in",{"$f":"'T2-B(PP4)'!$E$270","v":0},"#'T2-B(PP4)'!$E$270"]
["pp4_bl4_9_9_rate_out",{"$f":"'T2-B(PP4)'!$H$270","v":0},"#'T2-B(PP4)'!$H$270"]
["pp4_bl4_9_9_total",{"$f":"'T2-B(PP4)'!$J$270","v":0},"#'T2-B(PP4)'!$J$270"]
["pp4_bl4_9_9_total_in",{"$f":"'T2-B(PP4)'!$F$270","v":0},"#'T2-B(PP4)'!$F$270"]
["pp4_bl4_9_9_total_out",{"$f":"'T2-B(PP4)'!$I$270","v":0},"#'T2-B(PP4)'!$I$270"]
["pp4_bl4_9_9_unit",{"$f":"'T2-B(PP4)'!$C$270","v":0},"#'T2-B(PP4)'!$C$270"]
["pp4_bl4_9_9_unit_in",{"$f":"'T2-B(PP4)'!$D$270","v":0},"#'T2-B(PP4)'!$D$270"]
["pp4_bl4_9_9_units_out",{"$f":"'T2-B(PP4)'!$G$270","v":0},"#'T2-B(PP4)'!$G$270"]
["pp4_bl4_9_total",{"$f":"'T2-B(PP4)'!$J$261","v":0},"#'T2-B(PP4)'!$J$261"]
["pp4_bl4_9_total_in",{"$f":"'T2-B(PP4)'!$F$261","v":0},"#'T2-B(PP4)'!$F$261"]
["pp4_bl4_9_total_out",{"$f":"'T2-B(PP4)'!$I$261","v":0},"#'T2-B(PP4)'!$I$261"]
["pp4_bl4_total",{"$f":"'T2-B(PP4)'!$J$345","v":0},"#'T2-B(PP4)'!$J$345"]
["pp4_bl4_total_in",{"$f":"'T2-B(PP4)'!$F$345","v":0},"#'T2-B(PP4)'!$F$345"]
["pp4_bl4_total_out",{"$f":"'T2-B(PP4)'!$I$345","v":0},"#'T2-B(PP4)'!$I$345"]
["pp4_bl5_1_1_name",{"$f":"'T2-B(PP4)'!$B$350","v":0},"#'T2-B(PP4)'!$B$350"]
["pp4_bl5_1_1_rate_in",{"$f":"'T2-B(PP4)'!$E$350","v":0},"#'T2-B(PP4)'!$E$350"]
["pp4_bl5_1_1_rate_out",{"$f":"'T2-B(PP4)'!$H$350","v":0},"#'T2-B(PP4)'!$H$350"]
["pp4_bl5_1_1_total",{"$f":"'T2-B(PP4)'!$J$350","v":0},"#'T2-B(PP4)'!$J$350"]
["pp4_bl5_1_1_total_in",{"$f":"'T2-B(PP4)'!$F$350","v":0},"#'T2-B(PP4)'!$F$350"]
["pp4_bl5_1_1_total_out",{"$f":"'T2-B(PP4)'!$I$350","v":0},"#'T2-B(PP4)'!$I$350"]
["pp4_bl5_1_1_unit",{"$f":"'T2-B(PP4)'!$C$350","v":0},"#'T2-B(PP4)'!$C$350"]
["pp4_bl5_1_1_unit_in",{"$f":"'T2-B(PP4)'!$D$350","v":0},"#'T2-B(PP4)'!$D$350"]
["pp4_bl5_1_1_units_out",{"$f":"'T2-B(PP4)'!$G$350","v":0},"#'T2-B(PP4)'!$G$350"]
["pp4_bl5_1_10_name",{"$f":"'T2-B(PP4)'!$B$359","v":0},"#'T2-B(PP4)'!$B$359"]
["pp4_bl5_1_10_rate_in",{"$f":"'T2-B(PP4)'!$E$359","v":0},"#'T2-B(PP4)'!$E$359"]
["pp4_bl5_1_10_rate_out",{"$f":"'T2-B(PP4)'!$H$359","v":0},"#'T2-B(PP4)'!$H$359"]
["pp4_bl5_1_10_total",{"$f":"'T2-B(PP4)'!$J$359","v":0},"#'T2-B(PP4)'!$J$359"]
["pp4_bl5_1_10_total_in",{"$f":"'T2-B(PP4)'!$F$359","v":0},"#'T2-B(PP4)'!$F$359"]
["pp4_bl5_1_10_total_out",{"$f":"'T2-B(PP4)'!$I$359","v":0},"#'T2-B(PP4)'!$I$359"]
["pp4_bl5_1_10_unit",{"$f":"'T2-B(PP4)'!$C$359","v":0},"#'T2-B(PP4)'!$C$359"]
["pp4_bl5_1_10_unit_in",{"$f":"'T2-B(PP4)'!$D$359","v":0},"#'T2-B(PP4)'!$D$359"]
["pp4_bl5_1_10_units_out",{"$f":"'T2-B(PP4)'!$G$359","v":0},"#'T2-B(PP4)'!$G$359"]
["pp4_bl5_1_11_name",{"$f":"'T2-B(PP4)'!$B$360","v":0},"#'T2-B(PP4)'!$B$360"]
["pp4_bl5_1_11_rate_in",{"$f":"'T2-B(PP4)'!$E$360","v":0},"#'T2-B(PP4)'!$E$360"]
["pp4_bl5_1_11_rate_out",{"$f":"'T2-B(PP4)'!$H$360","v":0},"#'T2-B(PP4)'!$H$360"]
["pp4_bl5_1_11_total",{"$f":"'T2-B(PP4)'!$J$360","v":0},"#'T2-B(PP4)'!$J$360"]
["pp4_bl5_1_11_total_in",{"$f":"'T2-B(PP4)'!$F$360","v":0},"#'T2-B(PP4)'!$F$360"]
["pp4_bl5_1_11_total_out",{"$f":"'T2-B(PP4)'!$I$360","v":0},"#'T2-B(PP4)'!$I$360"]
["pp4_bl5_1_11_unit",{"$f":"'T2-B(PP4)'!$C$360","v":0},"#'T2-B(PP4)'!$C$360"]
["pp4_bl5_1_11_unit_in",{"$f":"'T2-B(PP4)'!$D$360","v":0},"#'T2-B(PP4)'!$D$360"]
["pp4_bl5_1_11_units_out",{"$f":"'T2-B(PP4)'!$G$360","v":0},"#'T2-B(PP4)'!$G$360"]
["pp4_bl5_1_12_name",{"$f":"'T2-B(PP4)'!$B$361","v":0},"#'T2-B(PP4)'!$B$361"]
["pp4_bl5_1_12_rate_in",{"$f":"'T2-B(PP4)'!$E$361","v":0},"#'T2-B(PP4)'!$E$361"]
["pp4_bl5_1_12_rate_out",{"$f":"'T2-B(PP4)'!$H$361","v":0},"#'T2-B(PP4)'!$H$361"]
["pp4_bl5_1_12_total",{"$f":"'T2-B(PP4)'!$J$361","v":0},"#'T2-B(PP4)'!$J$361"]
["pp4_bl5_1_12_total_in",{"$f":"'T2-B(PP4)'!$F$361","v":0},"#'T2-B(PP4)'!$F$361"]
["pp4_bl5_1_12_total_out",{"$f":"'T2-B(PP4)'!$I$361","v":0},"#'T2-B(PP4)'!$I$361"]
["pp4_bl5_1_12_unit",{"$f":"'T2-B(PP4)'!$C$361","v":0},"#'T2-B(PP4)'!$C$361"]
["pp4_bl5_1_12_unit_in",{"$f":"'T2-B(PP4)'!$D$361","v":0},"#'T2-B(PP4)'!$D$361"]
["pp4_bl5_1_12_units_out",{"$f":"'T2-B(PP4)'!$G$361","v":0},"#'T2-B(PP4)'!$G$361"]
["pp4_bl5_1_13_name",{"$f":"'T2-B(PP4)'!$B$362","v":0},"#'T2-B(PP4)'!$B$362"]
["pp4_bl5_1_13_rate_in",{"$f":"'T2-B(PP4)'!$E$362","v":0},"#'T2-B(PP4)'!$E$362"]
["pp4_bl5_1_13_rate_out",{"$f":"'T2-B(PP4)'!$H$362","v":0},"#'T2-B(PP4)'!$H$362"]
["pp4_bl5_1_13_total",{"$f":"'T2-B(PP4)'!$J$362","v":0},"#'T2-B(PP4)'!$J$362"]
["pp4_bl5_1_13_total_in",{"$f":"'T2-B(PP4)'!$F$362","v":0},"#'T2-B(PP4)'!$F$362"]
["pp4_bl5_1_13_total_out",{"$f":"'T2-B(PP4)'!$I$362","v":0},"#'T2-B(PP4)'!$I$362"]
["pp4_bl5_1_13_unit",{"$f":"'T2-B(PP4)'!$C$362","v":0},"#'T2-B(PP4)'!$C$362"]
["pp4_bl5_1_13_unit_in",{"$f":"'T2-B(PP4)'!$D$362","v":0},"#'T2-B(PP4)'!$D$362"]
["pp4_bl5_1_13_units_out",{"$f":"'T2-B(PP4)'!$G$362","v":0},"#'T2-B(PP4)'!$G$362"]
["pp4_bl5_1_14_name",{"$f":"'T2-B(PP4)'!$B$363","v":0},"#'T2-B(PP4)'!$B$363"]
["pp4_bl5_1_14_rate_in",{"$f":"'T2-B(PP4)'!$E$363","v":0},"#'T2-B(PP4)'!$E$363"]
["pp4_bl5_1_14_rate_out",{"$f":"'T2-B(PP4)'!$H$363","v":0},"#'T2-B(PP4)'!$H$363"]
["pp4_bl5_1_14_total",{"$f":"'T2-B(PP4)'!$J$363","v":0},"#'T2-B(PP4)'!$J$363"]
["pp4_bl5_1_14_total_in",{"$f":"'T2-B(PP4)'!$F$363","v":0},"#'T2-B(PP4)'!$F$363"]
["pp4_bl5_1_14_total_out",{"$f":"'T2-B(PP4)'!$I$363","v":0},"#'T2-B(PP4)'!$I$363"]
["pp4_bl5_1_14_unit",{"$f":"'T2-B(PP4)'!$C$363","v":0},"#'T2-B(PP4)'!$C$363"]
["pp4_bl5_1_14_unit_in",{"$f":"'T2-B(PP4)'!$D$363","v":0},"#'T2-B(PP4)'!$D$363"]
["pp4_bl5_1_14_units_out",{"$f":"'T2-B(PP4)'!$G$363","v":0},"#'T2-B(PP4)'!$G$363"]
["pp4_bl5_1_15_name",{"$f":"'T2-B(PP4)'!$B$364","v":0},"#'T2-B(PP4)'!$B$364"]
["pp4_bl5_1_15_rate_in",{"$f":"'T2-B(PP4)'!$E$364","v":0},"#'T2-B(PP4)'!$E$364"]
["pp4_bl5_1_15_rate_out",{"$f":"'T2-B(PP4)'!$H$364","v":0},"#'T2-B(PP4)'!$H$364"]
["pp4_bl5_1_15_total",{"$f":"'T2-B(PP4)'!$J$364","v":0},"#'T2-B(PP4)'!$J$364"]
["pp4_bl5_1_15_total_in",{"$f":"'T2-B(PP4)'!$F$364","v":0},"#'T2-B(PP4)'!$F$364"]
["pp4_bl5_1_15_total_out",{"$f":"'T2-B(PP4)'!$I$364","v":0},"#'T2-B(PP4)'!$I$364"]
["pp4_bl5_1_15_unit",{"$f":"'T2-B(PP4)'!$C$364","v":0},"#'T2-B(PP4)'!$C$364"]
["pp4_bl5_1_15_unit_in",{"$f":"'T2-B(PP4)'!$D$364","v":0},"#'T2-B(PP4)'!$D$364"]
["pp4_bl5_1_15_units_out",{"$f":"'T2-B(PP4)'!$G$364","v":0},"#'T2-B(PP4)'!$G$364"]
["pp4_bl5_1_16_name",{"$f":"'T2-B(PP4)'!$B$365","v":0},"#'T2-B(PP4)'!$B$365"]
["pp4_bl5_1_16_rate_in",{"$f":"'T2-B(PP4)'!$E$365","v":0},"#'T2-B(PP4)'!$E$365"]
["pp4_bl5_1_16_rate_out",{"$f":"'T2-B(PP4)'!$H$365","v":0},"#'T2-B(PP4)'!$H$365"]
["pp4_bl5_1_16_total",{"$f":"'T2-B(PP4)'!$J$365","v":0},"#'T2-B(PP4)'!$J$365"]
["pp4_bl5_1_16_total_in",{"$f":"'T2-B(PP4)'!$F$365","v":0},"#'T2-B(PP4)'!$F$365"]
["pp4_bl5_1_16_total_out",{"$f":"'T2-B(PP4)'!$I$365","v":0},"#'T2-B(PP4)'!$I$365"]
["pp4_bl5_1_16_unit",{"$f":"'T2-B(PP4)'!$C$365","v":0},"#'T2-B(PP4)'!$C$365"]
["pp4_bl5_1_16_unit_in",{"$f":"'T2-B(PP4)'!$D$365","v":0},"#'T2-B(PP4)'!$D$365"]
["pp4_bl5_1_16_units_out",{"$f":"'T2-B(PP4)'!$G$365","v":0},"#'T2-B(PP4)'!$G$365"]
["pp4_bl5_1_17_name",{"$f":"'T2-B(PP4)'!$B$366","v":0},"#'T2-B(PP4)'!$B$366"]
["pp4_bl5_1_17_rate_in",{"$f":"'T2-B(PP4)'!$E$366","v":0},"#'T2-B(PP4)'!$E$366"]
["pp4_bl5_1_17_rate_out",{"$f":"'T2-B(PP4)'!$H$366","v":0},"#'T2-B(PP4)'!$H$366"]
["pp4_bl5_1_17_total",{"$f":"'T2-B(PP4)'!$J$366","v":0},"#'T2-B(PP4)'!$J$366"]
["pp4_bl5_1_17_total_in",{"$f":"'T2-B(PP4)'!$F$366","v":0},"#'T2-B(PP4)'!$F$366"]
["pp4_bl5_1_17_total_out",{"$f":"'T2-B(PP4)'!$I$366","v":0},"#'T2-B(PP4)'!$I$366"]
["pp4_bl5_1_17_unit",{"$f":"'T2-B(PP4)'!$C$366","v":0},"#'T2-B(PP4)'!$C$366"]
["pp4_bl5_1_17_unit_in",{"$f":"'T2-B(PP4)'!$D$366","v":0},"#'T2-B(PP4)'!$D$366"]
["pp4_bl5_1_17_units_out",{"$f":"'T2-B(PP4)'!$G$366","v":0},"#'T2-B(PP4)'!$G$366"]
["pp4_bl5_1_18_name",{"$f":"'T2-B(PP4)'!$B$367","v":0},"#'T2-B(PP4)'!$B$367"]
["pp4_bl5_1_18_rate_in",{"$f":"'T2-B(PP4)'!$E$367","v":0},"#'T2-B(PP4)'!$E$367"]
["pp4_bl5_1_18_rate_out",{"$f":"'T2-B(PP4)'!$H$367","v":0},"#'T2-B(PP4)'!$H$367"]
["pp4_bl5_1_18_total",{"$f":"'T2-B(PP4)'!$J$367","v":0},"#'T2-B(PP4)'!$J$367"]
["pp4_bl5_1_18_total_in",{"$f":"'T2-B(PP4)'!$F$367","v":0},"#'T2-B(PP4)'!$F$367"]
["pp4_bl5_1_18_total_out",{"$f":"'T2-B(PP4)'!$I$367","v":0},"#'T2-B(PP4)'!$I$367"]
["pp4_bl5_1_18_unit",{"$f":"'T2-B(PP4)'!$C$367","v":0},"#'T2-B(PP4)'!$C$367"]
["pp4_bl5_1_18_unit_in",{"$f":"'T2-B(PP4)'!$D$367","v":0},"#'T2-B(PP4)'!$D$367"]
["pp4_bl5_1_18_units_out",{"$f":"'T2-B(PP4)'!$G$367","v":0},"#'T2-B(PP4)'!$G$367"]
["pp4_bl5_1_19_name",{"$f":"'T2-B(PP4)'!$B$368","v":0},"#'T2-B(PP4)'!$B$368"]
["pp4_bl5_1_19_rate_in",{"$f":"'T2-B(PP4)'!$E$368","v":0},"#'T2-B(PP4)'!$E$368"]
["pp4_bl5_1_19_rate_out",{"$f":"'T2-B(PP4)'!$H$368","v":0},"#'T2-B(PP4)'!$H$368"]
["pp4_bl5_1_19_total",{"$f":"'T2-B(PP4)'!$J$368","v":0},"#'T2-B(PP4)'!$J$368"]
["pp4_bl5_1_19_total_in",{"$f":"'T2-B(PP4)'!$F$368","v":0},"#'T2-B(PP4)'!$F$368"]
["pp4_bl5_1_19_total_out",{"$f":"'T2-B(PP4)'!$I$368","v":0},"#'T2-B(PP4)'!$I$368"]
["pp4_bl5_1_19_unit",{"$f":"'T2-B(PP4)'!$C$368","v":0},"#'T2-B(PP4)'!$C$368"]
["pp4_bl5_1_19_unit_in",{"$f":"'T2-B(PP4)'!$D$368","v":0},"#'T2-B(PP4)'!$D$368"]
["pp4_bl5_1_19_units_out",{"$f":"'T2-B(PP4)'!$G$368","v":0},"#'T2-B(PP4)'!$G$368"]
["pp4_bl5_1_2_name",{"$f":"'T2-B(PP4)'!$B$351","v":0},"#'T2-B(PP4)'!$B$351"]
["pp4_bl5_1_2_rate_in",{"$f":"'T2-B(PP4)'!$E$351","v":0},"#'T2-B(PP4)'!$E$351"]
["pp4_bl5_1_2_rate_out",{"$f":"'T2-B(PP4)'!$H$351","v":0},"#'T2-B(PP4)'!$H$351"]
["pp4_bl5_1_2_total",{"$f":"'T2-B(PP4)'!$J$351","v":0},"#'T2-B(PP4)'!$J$351"]
["pp4_bl5_1_2_total_in",{"$f":"'T2-B(PP4)'!$F$351","v":0},"#'T2-B(PP4)'!$F$351"]
["pp4_bl5_1_2_total_out",{"$f":"'T2-B(PP4)'!$I$351","v":0},"#'T2-B(PP4)'!$I$351"]
["pp4_bl5_1_2_unit",{"$f":"'T2-B(PP4)'!$C$351","v":0},"#'T2-B(PP4)'!$C$351"]
["pp4_bl5_1_2_unit_in",{"$f":"'T2-B(PP4)'!$D$351","v":0},"#'T2-B(PP4)'!$D$351"]
["pp4_bl5_1_2_units_out",{"$f":"'T2-B(PP4)'!$G$351","v":0},"#'T2-B(PP4)'!$G$351"]
["pp4_bl5_1_20_name",{"$f":"'T2-B(PP4)'!$B$369","v":0},"#'T2-B(PP4)'!$B$369"]
["pp4_bl5_1_20_rate_in",{"$f":"'T2-B(PP4)'!$E$369","v":0},"#'T2-B(PP4)'!$E$369"]
["pp4_bl5_1_20_rate_out",{"$f":"'T2-B(PP4)'!$H$369","v":0},"#'T2-B(PP4)'!$H$369"]
["pp4_bl5_1_20_total",{"$f":"'T2-B(PP4)'!$J$369","v":0},"#'T2-B(PP4)'!$J$369"]
["pp4_bl5_1_20_total_in",{"$f":"'T2-B(PP4)'!$F$369","v":0},"#'T2-B(PP4)'!$F$369"]
["pp4_bl5_1_20_total_out",{"$f":"'T2-B(PP4)'!$I$369","v":0},"#'T2-B(PP4)'!$I$369"]
["pp4_bl5_1_20_unit",{"$f":"'T2-B(PP4)'!$C$369","v":0},"#'T2-B(PP4)'!$C$369"]
["pp4_bl5_1_20_unit_in",{"$f":"'T2-B(PP4)'!$D$369","v":0},"#'T2-B(PP4)'!$D$369"]
["pp4_bl5_1_20_units_out",{"$f":"'T2-B(PP4)'!$G$369","v":0},"#'T2-B(PP4)'!$G$369"]
["pp4_bl5_1_3_name",{"$f":"'T2-B(PP4)'!$B$352","v":0},"#'T2-B(PP4)'!$B$352"]
["pp4_bl5_1_3_rate_in",{"$f":"'T2-B(PP4)'!$E$352","v":0},"#'T2-B(PP4)'!$E$352"]
["pp4_bl5_1_3_rate_out",{"$f":"'T2-B(PP4)'!$H$352","v":0},"#'T2-B(PP4)'!$H$352"]
["pp4_bl5_1_3_total",{"$f":"'T2-B(PP4)'!$J$352","v":0},"#'T2-B(PP4)'!$J$352"]
["pp4_bl5_1_3_total_in",{"$f":"'T2-B(PP4)'!$F$352","v":0},"#'T2-B(PP4)'!$F$352"]
["pp4_bl5_1_3_total_out",{"$f":"'T2-B(PP4)'!$I$352","v":0},"#'T2-B(PP4)'!$I$352"]
["pp4_bl5_1_3_unit",{"$f":"'T2-B(PP4)'!$C$352","v":0},"#'T2-B(PP4)'!$C$352"]
["pp4_bl5_1_3_unit_in",{"$f":"'T2-B(PP4)'!$D$352","v":0},"#'T2-B(PP4)'!$D$352"]
["pp4_bl5_1_3_units_out",{"$f":"'T2-B(PP4)'!$G$352","v":0},"#'T2-B(PP4)'!$G$352"]
["pp4_bl5_1_4_name",{"$f":"'T2-B(PP4)'!$B$353","v":0},"#'T2-B(PP4)'!$B$353"]
["pp4_bl5_1_4_rate_in",{"$f":"'T2-B(PP4)'!$E$353","v":0},"#'T2-B(PP4)'!$E$353"]
["pp4_bl5_1_4_rate_out",{"$f":"'T2-B(PP4)'!$H$353","v":0},"#'T2-B(PP4)'!$H$353"]
["pp4_bl5_1_4_total",{"$f":"'T2-B(PP4)'!$J$353","v":0},"#'T2-B(PP4)'!$J$353"]
["pp4_bl5_1_4_total_in",{"$f":"'T2-B(PP4)'!$F$353","v":0},"#'T2-B(PP4)'!$F$353"]
["pp4_bl5_1_4_total_out",{"$f":"'T2-B(PP4)'!$I$353","v":0},"#'T2-B(PP4)'!$I$353"]
["pp4_bl5_1_4_unit",{"$f":"'T2-B(PP4)'!$C$353","v":0},"#'T2-B(PP4)'!$C$353"]
["pp4_bl5_1_4_unit_in",{"$f":"'T2-B(PP4)'!$D$353","v":0},"#'T2-B(PP4)'!$D$353"]
["pp4_bl5_1_4_units_out",{"$f":"'T2-B(PP4)'!$G$353","v":0},"#'T2-B(PP4)'!$G$353"]
["pp4_bl5_1_5_name",{"$f":"'T2-B(PP4)'!$B$354","v":0},"#'T2-B(PP4)'!$B$354"]
["pp4_bl5_1_5_rate_in",{"$f":"'T2-B(PP4)'!$E$354","v":0},"#'T2-B(PP4)'!$E$354"]
["pp4_bl5_1_5_rate_out",{"$f":"'T2-B(PP4)'!$H$354","v":0},"#'T2-B(PP4)'!$H$354"]
["pp4_bl5_1_5_total",{"$f":"'T2-B(PP4)'!$J$354","v":0},"#'T2-B(PP4)'!$J$354"]
["pp4_bl5_1_5_total_in",{"$f":"'T2-B(PP4)'!$F$354","v":0},"#'T2-B(PP4)'!$F$354"]
["pp4_bl5_1_5_total_out",{"$f":"'T2-B(PP4)'!$I$354","v":0},"#'T2-B(PP4)'!$I$354"]
["pp4_bl5_1_5_unit",{"$f":"'T2-B(PP4)'!$C$354","v":0},"#'T2-B(PP4)'!$C$354"]
["pp4_bl5_1_5_unit_in",{"$f":"'T2-B(PP4)'!$D$354","v":0},"#'T2-B(PP4)'!$D$354"]
["pp4_bl5_1_5_units_out",{"$f":"'T2-B(PP4)'!$G$354","v":0},"#'T2-B(PP4)'!$G$354"]
["pp4_bl5_1_6_name",{"$f":"'T2-B(PP4)'!$B$355","v":0},"#'T2-B(PP4)'!$B$355"]
["pp4_bl5_1_6_rate_in",{"$f":"'T2-B(PP4)'!$E$355","v":0},"#'T2-B(PP4)'!$E$355"]
["pp4_bl5_1_6_rate_out",{"$f":"'T2-B(PP4)'!$H$355","v":0},"#'T2-B(PP4)'!$H$355"]
["pp4_bl5_1_6_total",{"$f":"'T2-B(PP4)'!$J$355","v":0},"#'T2-B(PP4)'!$J$355"]
["pp4_bl5_1_6_total_in",{"$f":"'T2-B(PP4)'!$F$355","v":0},"#'T2-B(PP4)'!$F$355"]
["pp4_bl5_1_6_total_out",{"$f":"'T2-B(PP4)'!$I$355","v":0},"#'T2-B(PP4)'!$I$355"]
["pp4_bl5_1_6_unit",{"$f":"'T2-B(PP4)'!$C$355","v":0},"#'T2-B(PP4)'!$C$355"]
["pp4_bl5_1_6_unit_in",{"$f":"'T2-B(PP4)'!$D$355","v":0},"#'T2-B(PP4)'!$D$355"]
["pp4_bl5_1_6_units_out",{"$f":"'T2-B(PP4)'!$G$355","v":0},"#'T2-B(PP4)'!$G$355"]
["pp4_bl5_1_7_name",{"$f":"'T2-B(PP4)'!$B$356","v":0},"#'T2-B(PP4)'!$B$356"]
["pp4_bl5_1_7_rate_in",{"$f":"'T2-B(PP4)'!$E$356","v":0},"#'T2-B(PP4)'!$E$356"]
["pp4_bl5_1_7_rate_out",{"$f":"'T2-B(PP4)'!$H$356","v":0},"#'T2-B(PP4)'!$H$356"]
["pp4_bl5_1_7_total",{"$f":"'T2-B(PP4)'!$J$356","v":0},"#'T2-B(PP4)'!$J$356"]
["pp4_bl5_1_7_total_in",{"$f":"'T2-B(PP4)'!$F$356","v":0},"#'T2-B(PP4)'!$F$356"]
["pp4_bl5_1_7_total_out",{"$f":"'T2-B(PP4)'!$I$356","v":0},"#'T2-B(PP4)'!$I$356"]
["pp4_bl5_1_7_unit",{"$f":"'T2-B(PP4)'!$C$356","v":0},"#'T2-B(PP4)'!$C$356"]
["pp4_bl5_1_7_unit_in",{"$f":"'T2-B(PP4)'!$D$356","v":0},"#'T2-B(PP4)'!$D$356"]
["pp4_bl5_1_7_units_out",{"$f":"'T2-B(PP4)'!$G$356","v":0},"#'T2-B(PP4)'!$G$356"]
["pp4_bl5_1_8_name",{"$f":"'T2-B(PP4)'!$B$357","v":0},"#'T2-B(PP4)'!$B$357"]
["pp4_bl5_1_8_rate_in",{"$f":"'T2-B(PP4)'!$E$357","v":0},"#'T2-B(PP4)'!$E$357"]
["pp4_bl5_1_8_rate_out",{"$f":"'T2-B(PP4)'!$H$357","v":0},"#'T2-B(PP4)'!$H$357"]
["pp4_bl5_1_8_total",{"$f":"'T2-B(PP4)'!$J$357","v":0},"#'T2-B(PP4)'!$J$357"]
["pp4_bl5_1_8_total_in",{"$f":"'T2-B(PP4)'!$F$357","v":0},"#'T2-B(PP4)'!$F$357"]
["pp4_bl5_1_8_total_out",{"$f":"'T2-B(PP4)'!$I$357","v":0},"#'T2-B(PP4)'!$I$357"]
["pp4_bl5_1_8_unit",{"$f":"'T2-B(PP4)'!$C$357","v":0},"#'T2-B(PP4)'!$C$357"]
["pp4_bl5_1_8_unit_in",{"$f":"'T2-B(PP4)'!$D$357","v":0},"#'T2-B(PP4)'!$D$357"]
["pp4_bl5_1_8_units_out",{"$f":"'T2-B(PP4)'!$G$357","v":0},"#'T2-B(PP4)'!$G$357"]
["pp4_bl5_1_9_name",{"$f":"'T2-B(PP4)'!$B$358","v":0},"#'T2-B(PP4)'!$B$358"]
["pp4_bl5_1_9_rate_in",{"$f":"'T2-B(PP4)'!$E$358","v":0},"#'T2-B(PP4)'!$E$358"]
["pp4_bl5_1_9_rate_out",{"$f":"'T2-B(PP4)'!$H$358","v":0},"#'T2-B(PP4)'!$H$358"]
["pp4_bl5_1_9_total",{"$f":"'T2-B(PP4)'!$J$358","v":0},"#'T2-B(PP4)'!$J$358"]
["pp4_bl5_1_9_total_in",{"$f":"'T2-B(PP4)'!$F$358","v":0},"#'T2-B(PP4)'!$F$358"]
["pp4_bl5_1_9_total_out",{"$f":"'T2-B(PP4)'!$I$358","v":0},"#'T2-B(PP4)'!$I$358"]
["pp4_bl5_1_9_unit",{"$f":"'T2-B(PP4)'!$C$358","v":0},"#'T2-B(PP4)'!$C$358"]
["pp4_bl5_1_9_unit_in",{"$f":"'T2-B(PP4)'!$D$358","v":0},"#'T2-B(PP4)'!$D$358"]
["pp4_bl5_1_9_units_out",{"$f":"'T2-B(PP4)'!$G$358","v":0},"#'T2-B(PP4)'!$G$358"]
["pp4_bl5_1_total",{"$f":"'T2-B(PP4)'!$J$349","v":0},"#'T2-B(PP4)'!$J$349"]
["pp4_bl5_1_total_in",{"$f":"'T2-B(PP4)'!$F$349","v":0},"#'T2-B(PP4)'!$F$349"]
["pp4_bl5_1_total_out",{"$f":"'T2-B(PP4)'!$I$349","v":0},"#'T2-B(PP4)'!$I$349"]
["pp4_bl5_2_1_name",{"$f":"'T2-B(PP4)'!$B$371","v":0},"#'T2-B(PP4)'!$B$371"]
["pp4_bl5_2_1_rate_in",{"$f":"'T2-B(PP4)'!$E$371","v":0},"#'T2-B(PP4)'!$E$371"]
["pp4_bl5_2_1_rate_out",{"$f":"'T2-B(PP4)'!$H$371","v":0},"#'T2-B(PP4)'!$H$371"]
["pp4_bl5_2_1_total",{"$f":"'T2-B(PP4)'!$J$371","v":0},"#'T2-B(PP4)'!$J$371"]
["pp4_bl5_2_1_total_in",{"$f":"'T2-B(PP4)'!$F$371","v":0},"#'T2-B(PP4)'!$F$371"]
["pp4_bl5_2_1_total_out",{"$f":"'T2-B(PP4)'!$I$371","v":0},"#'T2-B(PP4)'!$I$371"]
["pp4_bl5_2_1_unit",{"$f":"'T2-B(PP4)'!$C$371","v":0},"#'T2-B(PP4)'!$C$371"]
["pp4_bl5_2_1_unit_in",{"$f":"'T2-B(PP4)'!$D$371","v":0},"#'T2-B(PP4)'!$D$371"]
["pp4_bl5_2_1_units_out",{"$f":"'T2-B(PP4)'!$G$371","v":0},"#'T2-B(PP4)'!$G$371"]
["pp4_bl5_2_10_name",{"$f":"'T2-B(PP4)'!$B$380","v":0},"#'T2-B(PP4)'!$B$380"]
["pp4_bl5_2_10_rate_in",{"$f":"'T2-B(PP4)'!$E$380","v":0},"#'T2-B(PP4)'!$E$380"]
["pp4_bl5_2_10_rate_out",{"$f":"'T2-B(PP4)'!$H$380","v":0},"#'T2-B(PP4)'!$H$380"]
["pp4_bl5_2_10_total",{"$f":"'T2-B(PP4)'!$J$380","v":0},"#'T2-B(PP4)'!$J$380"]
["pp4_bl5_2_10_total_in",{"$f":"'T2-B(PP4)'!$F$380","v":0},"#'T2-B(PP4)'!$F$380"]
["pp4_bl5_2_10_total_out",{"$f":"'T2-B(PP4)'!$I$380","v":0},"#'T2-B(PP4)'!$I$380"]
["pp4_bl5_2_10_unit",{"$f":"'T2-B(PP4)'!$C$380","v":0},"#'T2-B(PP4)'!$C$380"]
["pp4_bl5_2_10_unit_in",{"$f":"'T2-B(PP4)'!$D$380","v":0},"#'T2-B(PP4)'!$D$380"]
["pp4_bl5_2_10_units_out",{"$f":"'T2-B(PP4)'!$G$380","v":0},"#'T2-B(PP4)'!$G$380"]
["pp4_bl5_2_11_name",{"$f":"'T2-B(PP4)'!$B$381","v":0},"#'T2-B(PP4)'!$B$381"]
["pp4_bl5_2_11_rate_in",{"$f":"'T2-B(PP4)'!$E$381","v":0},"#'T2-B(PP4)'!$E$381"]
["pp4_bl5_2_11_rate_out",{"$f":"'T2-B(PP4)'!$H$381","v":0},"#'T2-B(PP4)'!$H$381"]
["pp4_bl5_2_11_total",{"$f":"'T2-B(PP4)'!$J$381","v":0},"#'T2-B(PP4)'!$J$381"]
["pp4_bl5_2_11_total_in",{"$f":"'T2-B(PP4)'!$F$381","v":0},"#'T2-B(PP4)'!$F$381"]
["pp4_bl5_2_11_total_out",{"$f":"'T2-B(PP4)'!$I$381","v":0},"#'T2-B(PP4)'!$I$381"]
["pp4_bl5_2_11_unit",{"$f":"'T2-B(PP4)'!$C$381","v":0},"#'T2-B(PP4)'!$C$381"]
["pp4_bl5_2_11_unit_in",{"$f":"'T2-B(PP4)'!$D$381","v":0},"#'T2-B(PP4)'!$D$381"]
["pp4_bl5_2_11_units_out",{"$f":"'T2-B(PP4)'!$G$381","v":0},"#'T2-B(PP4)'!$G$381"]
["pp4_bl5_2_12_name",{"$f":"'T2-B(PP4)'!$B$382","v":0},"#'T2-B(PP4)'!$B$382"]
["pp4_bl5_2_12_rate_in",{"$f":"'T2-B(PP4)'!$E$382","v":0},"#'T2-B(PP4)'!$E$382"]
["pp4_bl5_2_12_rate_out",{"$f":"'T2-B(PP4)'!$H$382","v":0},"#'T2-B(PP4)'!$H$382"]
["pp4_bl5_2_12_total",{"$f":"'T2-B(PP4)'!$J$382","v":0},"#'T2-B(PP4)'!$J$382"]
["pp4_bl5_2_12_total_in",{"$f":"'T2-B(PP4)'!$F$382","v":0},"#'T2-B(PP4)'!$F$382"]
["pp4_bl5_2_12_total_out",{"$f":"'T2-B(PP4)'!$I$382","v":0},"#'T2-B(PP4)'!$I$382"]
["pp4_bl5_2_12_unit",{"$f":"'T2-B(PP4)'!$C$382","v":0},"#'T2-B(PP4)'!$C$382"]
["pp4_bl5_2_12_unit_in",{"$f":"'T2-B(PP4)'!$D$382","v":0},"#'T2-B(PP4)'!$D$382"]
["pp4_bl5_2_12_units_out",{"$f":"'T2-B(PP4)'!$G$382","v":0},"#'T2-B(PP4)'!$G$382"]
["pp4_bl5_2_13_name",{"$f":"'T2-B(PP4)'!$B$383","v":0},"#'T2-B(PP4)'!$B$383"]
["pp4_bl5_2_13_rate_in",{"$f":"'T2-B(PP4)'!$E$383","v":0},"#'T2-B(PP4)'!$E$383"]
["pp4_bl5_2_13_rate_out",{"$f":"'T2-B(PP4)'!$H$383","v":0},"#'T2-B(PP4)'!$H$383"]
["pp4_bl5_2_13_total",{"$f":"'T2-B(PP4)'!$J$383","v":0},"#'T2-B(PP4)'!$J$383"]
["pp4_bl5_2_13_total_in",{"$f":"'T2-B(PP4)'!$F$383","v":0},"#'T2-B(PP4)'!$F$383"]
["pp4_bl5_2_13_total_out",{"$f":"'T2-B(PP4)'!$I$383","v":0},"#'T2-B(PP4)'!$I$383"]
["pp4_bl5_2_13_unit",{"$f":"'T2-B(PP4)'!$C$383","v":0},"#'T2-B(PP4)'!$C$383"]
["pp4_bl5_2_13_unit_in",{"$f":"'T2-B(PP4)'!$D$383","v":0},"#'T2-B(PP4)'!$D$383"]
["pp4_bl5_2_13_units_out",{"$f":"'T2-B(PP4)'!$G$383","v":0},"#'T2-B(PP4)'!$G$383"]
["pp4_bl5_2_14_name",{"$f":"'T2-B(PP4)'!$B$384","v":0},"#'T2-B(PP4)'!$B$384"]
["pp4_bl5_2_14_rate_in",{"$f":"'T2-B(PP4)'!$E$384","v":0},"#'T2-B(PP4)'!$E$384"]
["pp4_bl5_2_14_rate_out",{"$f":"'T2-B(PP4)'!$H$384","v":0},"#'T2-B(PP4)'!$H$384"]
["pp4_bl5_2_14_total",{"$f":"'T2-B(PP4)'!$J$384","v":0},"#'T2-B(PP4)'!$J$384"]
["pp4_bl5_2_14_total_in",{"$f":"'T2-B(PP4)'!$F$384","v":0},"#'T2-B(PP4)'!$F$384"]
["pp4_bl5_2_14_total_out",{"$f":"'T2-B(PP4)'!$I$384","v":0},"#'T2-B(PP4)'!$I$384"]
["pp4_bl5_2_14_unit",{"$f":"'T2-B(PP4)'!$C$384","v":0},"#'T2-B(PP4)'!$C$384"]
["pp4_bl5_2_14_unit_in",{"$f":"'T2-B(PP4)'!$D$384","v":0},"#'T2-B(PP4)'!$D$384"]
["pp4_bl5_2_14_units_out",{"$f":"'T2-B(PP4)'!$G$384","v":0},"#'T2-B(PP4)'!$G$384"]
["pp4_bl5_2_15_name",{"$f":"'T2-B(PP4)'!$B$385","v":0},"#'T2-B(PP4)'!$B$385"]
["pp4_bl5_2_15_rate_in",{"$f":"'T2-B(PP4)'!$E$385","v":0},"#'T2-B(PP4)'!$E$385"]
["pp4_bl5_2_15_rate_out",{"$f":"'T2-B(PP4)'!$H$385","v":0},"#'T2-B(PP4)'!$H$385"]
["pp4_bl5_2_15_total",{"$f":"'T2-B(PP4)'!$J$385","v":0},"#'T2-B(PP4)'!$J$385"]
["pp4_bl5_2_15_total_in",{"$f":"'T2-B(PP4)'!$F$385","v":0},"#'T2-B(PP4)'!$F$385"]
["pp4_bl5_2_15_total_out",{"$f":"'T2-B(PP4)'!$I$385","v":0},"#'T2-B(PP4)'!$I$385"]
["pp4_bl5_2_15_unit",{"$f":"'T2-B(PP4)'!$C$385","v":0},"#'T2-B(PP4)'!$C$385"]
["pp4_bl5_2_15_unit_in",{"$f":"'T2-B(PP4)'!$D$385","v":0},"#'T2-B(PP4)'!$D$385"]
["pp4_bl5_2_15_units_out",{"$f":"'T2-B(PP4)'!$G$385","v":0},"#'T2-B(PP4)'!$G$385"]
["pp4_bl5_2_16_name",{"$f":"'T2-B(PP4)'!$B$386","v":0},"#'T2-B(PP4)'!$B$386"]
["pp4_bl5_2_16_rate_in",{"$f":"'T2-B(PP4)'!$E$386","v":0},"#'T2-B(PP4)'!$E$386"]
["pp4_bl5_2_16_rate_out",{"$f":"'T2-B(PP4)'!$H$386","v":0},"#'T2-B(PP4)'!$H$386"]
["pp4_bl5_2_16_total",{"$f":"'T2-B(PP4)'!$J$386","v":0},"#'T2-B(PP4)'!$J$386"]
["pp4_bl5_2_16_total_in",{"$f":"'T2-B(PP4)'!$F$386","v":0},"#'T2-B(PP4)'!$F$386"]
["pp4_bl5_2_16_total_out",{"$f":"'T2-B(PP4)'!$I$386","v":0},"#'T2-B(PP4)'!$I$386"]
["pp4_bl5_2_16_unit",{"$f":"'T2-B(PP4)'!$C$386","v":0},"#'T2-B(PP4)'!$C$386"]
["pp4_bl5_2_16_unit_in",{"$f":"'T2-B(PP4)'!$D$386","v":0},"#'T2-B(PP4)'!$D$386"]
["pp4_bl5_2_16_units_out",{"$f":"'T2-B(PP4)'!$G$386","v":0},"#'T2-B(PP4)'!$G$386"]
["pp4_bl5_2_17_name",{"$f":"'T2-B(PP4)'!$B$387","v":0},"#'T2-B(PP4)'!$B$387"]
["pp4_bl5_2_17_rate_in",{"$f":"'T2-B(PP4)'!$E$387","v":0},"#'T2-B(PP4)'!$E$387"]
["pp4_bl5_2_17_rate_out",{"$f":"'T2-B(PP4)'!$H$387","v":0},"#'T2-B(PP4)'!$H$387"]
["pp4_bl5_2_17_total",{"$f":"'T2-B(PP4)'!$J$387","v":0},"#'T2-B(PP4)'!$J$387"]
["pp4_bl5_2_17_total_in",{"$f":"'T2-B(PP4)'!$F$387","v":0},"#'T2-B(PP4)'!$F$387"]
["pp4_bl5_2_17_total_out",{"$f":"'T2-B(PP4)'!$I$387","v":0},"#'T2-B(PP4)'!$I$387"]
["pp4_bl5_2_17_unit",{"$f":"'T2-B(PP4)'!$C$387","v":0},"#'T2-B(PP4)'!$C$387"]
["pp4_bl5_2_17_unit_in",{"$f":"'T2-B(PP4)'!$D$387","v":0},"#'T2-B(PP4)'!$D$387"]
["pp4_bl5_2_17_units_out",{"$f":"'T2-B(PP4)'!$G$387","v":0},"#'T2-B(PP4)'!$G$387"]
["pp4_bl5_2_18_name",{"$f":"'T2-B(PP4)'!$B$388","v":0},"#'T2-B(PP4)'!$B$388"]
["pp4_bl5_2_18_rate_in",{"$f":"'T2-B(PP4)'!$E$388","v":0},"#'T2-B(PP4)'!$E$388"]
["pp4_bl5_2_18_rate_out",{"$f":"'T2-B(PP4)'!$H$388","v":0},"#'T2-B(PP4)'!$H$388"]
["pp4_bl5_2_18_total",{"$f":"'T2-B(PP4)'!$J$388","v":0},"#'T2-B(PP4)'!$J$388"]
["pp4_bl5_2_18_total_in",{"$f":"'T2-B(PP4)'!$F$388","v":0},"#'T2-B(PP4)'!$F$388"]
["pp4_bl5_2_18_total_out",{"$f":"'T2-B(PP4)'!$I$388","v":0},"#'T2-B(PP4)'!$I$388"]
["pp4_bl5_2_18_unit",{"$f":"'T2-B(PP4)'!$C$388","v":0},"#'T2-B(PP4)'!$C$388"]
["pp4_bl5_2_18_unit_in",{"$f":"'T2-B(PP4)'!$D$388","v":0},"#'T2-B(PP4)'!$D$388"]
["pp4_bl5_2_18_units_out",{"$f":"'T2-B(PP4)'!$G$388","v":0},"#'T2-B(PP4)'!$G$388"]
["pp4_bl5_2_19_name",{"$f":"'T2-B(PP4)'!$B$389","v":0},"#'T2-B(PP4)'!$B$389"]
["pp4_bl5_2_19_rate_in",{"$f":"'T2-B(PP4)'!$E$389","v":0},"#'T2-B(PP4)'!$E$389"]
["pp4_bl5_2_19_rate_out",{"$f":"'T2-B(PP4)'!$H$389","v":0},"#'T2-B(PP4)'!$H$389"]
["pp4_bl5_2_19_total",{"$f":"'T2-B(PP4)'!$J$389","v":0},"#'T2-B(PP4)'!$J$389"]
["pp4_bl5_2_19_total_in",{"$f":"'T2-B(PP4)'!$F$389","v":0},"#'T2-B(PP4)'!$F$389"]
["pp4_bl5_2_19_total_out",{"$f":"'T2-B(PP4)'!$I$389","v":0},"#'T2-B(PP4)'!$I$389"]
["pp4_bl5_2_19_unit",{"$f":"'T2-B(PP4)'!$C$389","v":0},"#'T2-B(PP4)'!$C$389"]
["pp4_bl5_2_19_unit_in",{"$f":"'T2-B(PP4)'!$D$389","v":0},"#'T2-B(PP4)'!$D$389"]
["pp4_bl5_2_19_units_out",{"$f":"'T2-B(PP4)'!$G$389","v":0},"#'T2-B(PP4)'!$G$389"]
["pp4_bl5_2_2_name",{"$f":"'T2-B(PP4)'!$B$372","v":0},"#'T2-B(PP4)'!$B$372"]
["pp4_bl5_2_2_rate_in",{"$f":"'T2-B(PP4)'!$E$372","v":0},"#'T2-B(PP4)'!$E$372"]
["pp4_bl5_2_2_rate_out",{"$f":"'T2-B(PP4)'!$H$372","v":0},"#'T2-B(PP4)'!$H$372"]
["pp4_bl5_2_2_total",{"$f":"'T2-B(PP4)'!$J$372","v":0},"#'T2-B(PP4)'!$J$372"]
["pp4_bl5_2_2_total_in",{"$f":"'T2-B(PP4)'!$F$372","v":0},"#'T2-B(PP4)'!$F$372"]
["pp4_bl5_2_2_total_out",{"$f":"'T2-B(PP4)'!$I$372","v":0},"#'T2-B(PP4)'!$I$372"]
["pp4_bl5_2_2_unit",{"$f":"'T2-B(PP4)'!$C$372","v":0},"#'T2-B(PP4)'!$C$372"]
["pp4_bl5_2_2_unit_in",{"$f":"'T2-B(PP4)'!$D$372","v":0},"#'T2-B(PP4)'!$D$372"]
["pp4_bl5_2_2_units_out",{"$f":"'T2-B(PP4)'!$G$372","v":0},"#'T2-B(PP4)'!$G$372"]
["pp4_bl5_2_20_name",{"$f":"'T2-B(PP4)'!$B$390","v":0},"#'T2-B(PP4)'!$B$390"]
["pp4_bl5_2_20_rate_in",{"$f":"'T2-B(PP4)'!$E$390","v":0},"#'T2-B(PP4)'!$E$390"]
["pp4_bl5_2_20_rate_out",{"$f":"'T2-B(PP4)'!$H$390","v":0},"#'T2-B(PP4)'!$H$390"]
["pp4_bl5_2_20_total",{"$f":"'T2-B(PP4)'!$J$390","v":0},"#'T2-B(PP4)'!$J$390"]
["pp4_bl5_2_20_total_in",{"$f":"'T2-B(PP4)'!$F$390","v":0},"#'T2-B(PP4)'!$F$390"]
["pp4_bl5_2_20_total_out",{"$f":"'T2-B(PP4)'!$I$390","v":0},"#'T2-B(PP4)'!$I$390"]
["pp4_bl5_2_20_unit",{"$f":"'T2-B(PP4)'!$C$390","v":0},"#'T2-B(PP4)'!$C$390"]
["pp4_bl5_2_20_unit_in",{"$f":"'T2-B(PP4)'!$D$390","v":0},"#'T2-B(PP4)'!$D$390"]
["pp4_bl5_2_20_units_out",{"$f":"'T2-B(PP4)'!$G$390","v":0},"#'T2-B(PP4)'!$G$390"]
["pp4_bl5_2_3_name",{"$f":"'T2-B(PP4)'!$B$373","v":0},"#'T2-B(PP4)'!$B$373"]
["pp4_bl5_2_3_rate_in",{"$f":"'T2-B(PP4)'!$E$373","v":0},"#'T2-B(PP4)'!$E$373"]
["pp4_bl5_2_3_rate_out",{"$f":"'T2-B(PP4)'!$H$373","v":0},"#'T2-B(PP4)'!$H$373"]
["pp4_bl5_2_3_total",{"$f":"'T2-B(PP4)'!$J$373","v":0},"#'T2-B(PP4)'!$J$373"]
["pp4_bl5_2_3_total_in",{"$f":"'T2-B(PP4)'!$F$373","v":0},"#'T2-B(PP4)'!$F$373"]
["pp4_bl5_2_3_total_out",{"$f":"'T2-B(PP4)'!$I$373","v":0},"#'T2-B(PP4)'!$I$373"]
["pp4_bl5_2_3_unit",{"$f":"'T2-B(PP4)'!$C$373","v":0},"#'T2-B(PP4)'!$C$373"]
["pp4_bl5_2_3_unit_in",{"$f":"'T2-B(PP4)'!$D$373","v":0},"#'T2-B(PP4)'!$D$373"]
["pp4_bl5_2_3_units_out",{"$f":"'T2-B(PP4)'!$G$373","v":0},"#'T2-B(PP4)'!$G$373"]
["pp4_bl5_2_4_name",{"$f":"'T2-B(PP4)'!$B$374","v":0},"#'T2-B(PP4)'!$B$374"]
["pp4_bl5_2_4_rate_in",{"$f":"'T2-B(PP4)'!$E$374","v":0},"#'T2-B(PP4)'!$E$374"]
["pp4_bl5_2_4_rate_out",{"$f":"'T2-B(PP4)'!$H$374","v":0},"#'T2-B(PP4)'!$H$374"]
["pp4_bl5_2_4_total",{"$f":"'T2-B(PP4)'!$J$374","v":0},"#'T2-B(PP4)'!$J$374"]
["pp4_bl5_2_4_total_in",{"$f":"'T2-B(PP4)'!$F$374","v":0},"#'T2-B(PP4)'!$F$374"]
["pp4_bl5_2_4_total_out",{"$f":"'T2-B(PP4)'!$I$374","v":0},"#'T2-B(PP4)'!$I$374"]
["pp4_bl5_2_4_unit",{"$f":"'T2-B(PP4)'!$C$374","v":0},"#'T2-B(PP4)'!$C$374"]
["pp4_bl5_2_4_unit_in",{"$f":"'T2-B(PP4)'!$D$374","v":0},"#'T2-B(PP4)'!$D$374"]
["pp4_bl5_2_4_units_out",{"$f":"'T2-B(PP4)'!$G$374","v":0},"#'T2-B(PP4)'!$G$374"]
["pp4_bl5_2_5_name",{"$f":"'T2-B(PP4)'!$B$375","v":0},"#'T2-B(PP4)'!$B$375"]
["pp4_bl5_2_5_rate_in",{"$f":"'T2-B(PP4)'!$E$375","v":0},"#'T2-B(PP4)'!$E$375"]
["pp4_bl5_2_5_rate_out",{"$f":"'T2-B(PP4)'!$H$375","v":0},"#'T2-B(PP4)'!$H$375"]
["pp4_bl5_2_5_total",{"$f":"'T2-B(PP4)'!$J$375","v":0},"#'T2-B(PP4)'!$J$375"]
["pp4_bl5_2_5_total_in",{"$f":"'T2-B(PP4)'!$F$375","v":0},"#'T2-B(PP4)'!$F$375"]
["pp4_bl5_2_5_total_out",{"$f":"'T2-B(PP4)'!$I$375","v":0},"#'T2-B(PP4)'!$I$375"]
["pp4_bl5_2_5_unit",{"$f":"'T2-B(PP4)'!$C$375","v":0},"#'T2-B(PP4)'!$C$375"]
["pp4_bl5_2_5_unit_in",{"$f":"'T2-B(PP4)'!$D$375","v":0},"#'T2-B(PP4)'!$D$375"]
["pp4_bl5_2_5_units_out",{"$f":"'T2-B(PP4)'!$G$375","v":0},"#'T2-B(PP4)'!$G$375"]
["pp4_bl5_2_6_name",{"$f":"'T2-B(PP4)'!$B$376","v":0},"#'T2-B(PP4)'!$B$376"]
["pp4_bl5_2_6_rate_in",{"$f":"'T2-B(PP4)'!$E$376","v":0},"#'T2-B(PP4)'!$E$376"]
["pp4_bl5_2_6_rate_out",{"$f":"'T2-B(PP4)'!$H$376","v":0},"#'T2-B(PP4)'!$H$376"]
["pp4_bl5_2_6_total",{"$f":"'T2-B(PP4)'!$J$376","v":0},"#'T2-B(PP4)'!$J$376"]
["pp4_bl5_2_6_total_in",{"$f":"'T2-B(PP4)'!$F$376","v":0},"#'T2-B(PP4)'!$F$376"]
["pp4_bl5_2_6_total_out",{"$f":"'T2-B(PP4)'!$I$376","v":0},"#'T2-B(PP4)'!$I$376"]
["pp4_bl5_2_6_unit",{"$f":"'T2-B(PP4)'!$C$376","v":0},"#'T2-B(PP4)'!$C$376"]
["pp4_bl5_2_6_unit_in",{"$f":"'T2-B(PP4)'!$D$376","v":0},"#'T2-B(PP4)'!$D$376"]
["pp4_bl5_2_6_units_out",{"$f":"'T2-B(PP4)'!$G$376","v":0},"#'T2-B(PP4)'!$G$376"]
["pp4_bl5_2_7_name",{"$f":"'T2-B(PP4)'!$B$377","v":0},"#'T2-B(PP4)'!$B$377"]
["pp4_bl5_2_7_rate_in",{"$f":"'T2-B(PP4)'!$E$377","v":0},"#'T2-B(PP4)'!$E$377"]
["pp4_bl5_2_7_rate_out",{"$f":"'T2-B(PP4)'!$H$377","v":0},"#'T2-B(PP4)'!$H$377"]
["pp4_bl5_2_7_total",{"$f":"'T2-B(PP4)'!$J$377","v":0},"#'T2-B(PP4)'!$J$377"]
["pp4_bl5_2_7_total_in",{"$f":"'T2-B(PP4)'!$F$377","v":0},"#'T2-B(PP4)'!$F$377"]
["pp4_bl5_2_7_total_out",{"$f":"'T2-B(PP4)'!$I$377","v":0},"#'T2-B(PP4)'!$I$377"]
["pp4_bl5_2_7_unit",{"$f":"'T2-B(PP4)'!$C$377","v":0},"#'T2-B(PP4)'!$C$377"]
["pp4_bl5_2_7_unit_in",{"$f":"'T2-B(PP4)'!$D$377","v":0},"#'T2-B(PP4)'!$D$377"]
["pp4_bl5_2_7_units_out",{"$f":"'T2-B(PP4)'!$G$377","v":0},"#'T2-B(PP4)'!$G$377"]
["pp4_bl5_2_8_name",{"$f":"'T2-B(PP4)'!$B$378","v":0},"#'T2-B(PP4)'!$B$378"]
["pp4_bl5_2_8_rate_in",{"$f":"'T2-B(PP4)'!$E$378","v":0},"#'T2-B(PP4)'!$E$378"]
["pp4_bl5_2_8_rate_out",{"$f":"'T2-B(PP4)'!$H$378","v":0},"#'T2-B(PP4)'!$H$378"]
["pp4_bl5_2_8_total",{"$f":"'T2-B(PP4)'!$J$378","v":0},"#'T2-B(PP4)'!$J$378"]
["pp4_bl5_2_8_total_in",{"$f":"'T2-B(PP4)'!$F$378","v":0},"#'T2-B(PP4)'!$F$378"]
["pp4_bl5_2_8_total_out",{"$f":"'T2-B(PP4)'!$I$378","v":0},"#'T2-B(PP4)'!$I$378"]
["pp4_bl5_2_8_unit",{"$f":"'T2-B(PP4)'!$C$378","v":0},"#'T2-B(PP4)'!$C$378"]
["pp4_bl5_2_8_unit_in",{"$f":"'T2-B(PP4)'!$D$378","v":0},"#'T2-B(PP4)'!$D$378"]
["pp4_bl5_2_8_units_out",{"$f":"'T2-B(PP4)'!$G$378","v":0},"#'T2-B(PP4)'!$G$378"]
["pp4_bl5_2_9_name",{"$f":"'T2-B(PP4)'!$B$379","v":0},"#'T2-B(PP4)'!$B$379"]
["pp4_bl5_2_9_rate_in",{"$f":"'T2-B(PP4)'!$E$379","v":0},"#'T2-B(PP4)'!$E$379"]
["pp4_bl5_2_9_rate_out",{"$f":"'T2-B(PP4)'!$H$379","v":0},"#'T2-B(PP4)'!$H$379"]
["pp4_bl5_2_9_total",{"$f":"'T2-B(PP4)'!$J$379","v":0},"#'T2-B(PP4)'!$J$379"]
["pp4_bl5_2_9_total_in",{"$f":"'T2-B(PP4)'!$F$379","v":0},"#'T2-B(PP4)'!$F$379"]
["pp4_bl5_2_9_total_out",{"$f":"'T2-B(PP4)'!$I$379","v":0},"#'T2-B(PP4)'!$I$379"]
["pp4_bl5_2_9_unit",{"$f":"'T2-B(PP4)'!$C$379","v":0},"#'T2-B(PP4)'!$C$379"]
["pp4_bl5_2_9_unit_in",{"$f":"'T2-B(PP4)'!$D$379","v":0},"#'T2-B(PP4)'!$D$379"]
["pp4_bl5_2_9_units_out",{"$f":"'T2-B(PP4)'!$G$379","v":0},"#'T2-B(PP4)'!$G$379"]
["pp4_bl5_2_total",{"$f":"'T2-B(PP4)'!$J$370","v":0},"#'T2-B(PP4)'!$J$370"]
["pp4_bl5_2_total_in",{"$f":"'T2-B(PP4)'!$F$370","v":0},"#'T2-B(PP4)'!$F$370"]
["pp4_bl5_2_total_out",{"$f":"'T2-B(PP4)'!$I$370","v":0},"#'T2-B(PP4)'!$I$370"]
["pp4_bl5_total",{"$f":"'T2-B(PP4)'!$J$391","v":0},"#'T2-B(PP4)'!$J$391"]
["pp4_bl5_total_in",{"$f":"'T2-B(PP4)'!$F$391","v":0},"#'T2-B(PP4)'!$F$391"]
["pp4_bl5_total_out",{"$f":"'T2-B(PP4)'!$I$391","v":0},"#'T2-B(PP4)'!$I$391"]
["pp4_bl6_1_1_name",{"$f":"'T2-B(PP4)'!$B$396","v":0},"#'T2-B(PP4)'!$B$396"]
["pp4_bl6_1_1_rate_in",{"$f":"'T2-B(PP4)'!$E$396","v":0},"#'T2-B(PP4)'!$E$396"]
["pp4_bl6_1_1_rate_out",{"$f":"'T2-B(PP4)'!$H$396","v":0},"#'T2-B(PP4)'!$H$396"]
["pp4_bl6_1_1_total",{"$f":"'T2-B(PP4)'!$J$396","v":0},"#'T2-B(PP4)'!$J$396"]
["pp4_bl6_1_1_total_in",{"$f":"'T2-B(PP4)'!$F$396","v":0},"#'T2-B(PP4)'!$F$396"]
["pp4_bl6_1_1_total_out",{"$f":"'T2-B(PP4)'!$I$396","v":0},"#'T2-B(PP4)'!$I$396"]
["pp4_bl6_1_1_unit",{"$f":"'T2-B(PP4)'!$C$396","v":0},"#'T2-B(PP4)'!$C$396"]
["pp4_bl6_1_1_unit_in",{"$f":"'T2-B(PP4)'!$D$396","v":0},"#'T2-B(PP4)'!$D$396"]
["pp4_bl6_1_1_units_out",{"$f":"'T2-B(PP4)'!$G$396","v":0},"#'T2-B(PP4)'!$G$396"]
["pp4_bl6_1_10_name",{"$f":"'T2-B(PP4)'!$B$405","v":0},"#'T2-B(PP4)'!$B$405"]
["pp4_bl6_1_10_rate_in",{"$f":"'T2-B(PP4)'!$E$405","v":0},"#'T2-B(PP4)'!$E$405"]
["pp4_bl6_1_10_rate_out",{"$f":"'T2-B(PP4)'!$H$405","v":0},"#'T2-B(PP4)'!$H$405"]
["pp4_bl6_1_10_total",{"$f":"'T2-B(PP4)'!$J$405","v":0},"#'T2-B(PP4)'!$J$405"]
["pp4_bl6_1_10_total_in",{"$f":"'T2-B(PP4)'!$F$405","v":0},"#'T2-B(PP4)'!$F$405"]
["pp4_bl6_1_10_total_out",{"$f":"'T2-B(PP4)'!$I$405","v":0},"#'T2-B(PP4)'!$I$405"]
["pp4_bl6_1_10_unit",{"$f":"'T2-B(PP4)'!$C$405","v":0},"#'T2-B(PP4)'!$C$405"]
["pp4_bl6_1_10_unit_in",{"$f":"'T2-B(PP4)'!$D$405","v":0},"#'T2-B(PP4)'!$D$405"]
["pp4_bl6_1_10_units_out",{"$f":"'T2-B(PP4)'!$G$405","v":0},"#'T2-B(PP4)'!$G$405"]
["pp4_bl6_1_2_name",{"$f":"'T2-B(PP4)'!$B$397","v":0},"#'T2-B(PP4)'!$B$397"]
["pp4_bl6_1_2_rate_in",{"$f":"'T2-B(PP4)'!$E$397","v":0},"#'T2-B(PP4)'!$E$397"]
["pp4_bl6_1_2_rate_out",{"$f":"'T2-B(PP4)'!$H$397","v":0},"#'T2-B(PP4)'!$H$397"]
["pp4_bl6_1_2_total",{"$f":"'T2-B(PP4)'!$J$397","v":0},"#'T2-B(PP4)'!$J$397"]
["pp4_bl6_1_2_total_in",{"$f":"'T2-B(PP4)'!$F$397","v":0},"#'T2-B(PP4)'!$F$397"]
["pp4_bl6_1_2_total_out",{"$f":"'T2-B(PP4)'!$I$397","v":0},"#'T2-B(PP4)'!$I$397"]
["pp4_bl6_1_2_unit",{"$f":"'T2-B(PP4)'!$C$397","v":0},"#'T2-B(PP4)'!$C$397"]
["pp4_bl6_1_2_unit_in",{"$f":"'T2-B(PP4)'!$D$397","v":0},"#'T2-B(PP4)'!$D$397"]
["pp4_bl6_1_2_units_out",{"$f":"'T2-B(PP4)'!$G$397","v":0},"#'T2-B(PP4)'!$G$397"]
["pp4_bl6_1_3_name",{"$f":"'T2-B(PP4)'!$B$398","v":0},"#'T2-B(PP4)'!$B$398"]
["pp4_bl6_1_3_rate_in",{"$f":"'T2-B(PP4)'!$E$398","v":0},"#'T2-B(PP4)'!$E$398"]
["pp4_bl6_1_3_rate_out",{"$f":"'T2-B(PP4)'!$H$398","v":0},"#'T2-B(PP4)'!$H$398"]
["pp4_bl6_1_3_total",{"$f":"'T2-B(PP4)'!$J$398","v":0},"#'T2-B(PP4)'!$J$398"]
["pp4_bl6_1_3_total_in",{"$f":"'T2-B(PP4)'!$F$398","v":0},"#'T2-B(PP4)'!$F$398"]
["pp4_bl6_1_3_total_out",{"$f":"'T2-B(PP4)'!$I$398","v":0},"#'T2-B(PP4)'!$I$398"]
["pp4_bl6_1_3_unit",{"$f":"'T2-B(PP4)'!$C$398","v":0},"#'T2-B(PP4)'!$C$398"]
["pp4_bl6_1_3_unit_in",{"$f":"'T2-B(PP4)'!$D$398","v":0},"#'T2-B(PP4)'!$D$398"]
["pp4_bl6_1_3_units_out",{"$f":"'T2-B(PP4)'!$G$398","v":0},"#'T2-B(PP4)'!$G$398"]
["pp4_bl6_1_4_name",{"$f":"'T2-B(PP4)'!$B$399","v":0},"#'T2-B(PP4)'!$B$399"]
["pp4_bl6_1_4_rate_in",{"$f":"'T2-B(PP4)'!$E$399","v":0},"#'T2-B(PP4)'!$E$399"]
["pp4_bl6_1_4_rate_out",{"$f":"'T2-B(PP4)'!$H$399","v":0},"#'T2-B(PP4)'!$H$399"]
["pp4_bl6_1_4_total",{"$f":"'T2-B(PP4)'!$J$399","v":0},"#'T2-B(PP4)'!$J$399"]
["pp4_bl6_1_4_total_in",{"$f":"'T2-B(PP4)'!$F$399","v":0},"#'T2-B(PP4)'!$F$399"]
["pp4_bl6_1_4_total_out",{"$f":"'T2-B(PP4)'!$I$399","v":0},"#'T2-B(PP4)'!$I$399"]
["pp4_bl6_1_4_unit",{"$f":"'T2-B(PP4)'!$C$399","v":0},"#'T2-B(PP4)'!$C$399"]
["pp4_bl6_1_4_unit_in",{"$f":"'T2-B(PP4)'!$D$399","v":0},"#'T2-B(PP4)'!$D$399"]
["pp4_bl6_1_4_units_out",{"$f":"'T2-B(PP4)'!$G$399","v":0},"#'T2-B(PP4)'!$G$399"]
["pp4_bl6_1_5_name",{"$f":"'T2-B(PP4)'!$B$400","v":0},"#'T2-B(PP4)'!$B$400"]
["pp4_bl6_1_5_rate_in",{"$f":"'T2-B(PP4)'!$E$400","v":0},"#'T2-B(PP4)'!$E$400"]
["pp4_bl6_1_5_rate_out",{"$f":"'T2-B(PP4)'!$H$400","v":0},"#'T2-B(PP4)'!$H$400"]
["pp4_bl6_1_5_total",{"$f":"'T2-B(PP4)'!$J$400","v":0},"#'T2-B(PP4)'!$J$400"]
["pp4_bl6_1_5_total_in",{"$f":"'T2-B(PP4)'!$F$400","v":0},"#'T2-B(PP4)'!$F$400"]
["pp4_bl6_1_5_total_out",{"$f":"'T2-B(PP4)'!$I$400","v":0},"#'T2-B(PP4)'!$I$400"]
["pp4_bl6_1_5_unit",{"$f":"'T2-B(PP4)'!$C$400","v":0},"#'T2-B(PP4)'!$C$400"]
["pp4_bl6_1_5_unit_in",{"$f":"'T2-B(PP4)'!$D$400","v":0},"#'T2-B(PP4)'!$D$400"]
["pp4_bl6_1_5_units_out",{"$f":"'T2-B(PP4)'!$G$400","v":0},"#'T2-B(PP4)'!$G$400"]
["pp4_bl6_1_6_name",{"$f":"'T2-B(PP4)'!$B$401","v":0},"#'T2-B(PP4)'!$B$401"]
["pp4_bl6_1_6_rate_in",{"$f":"'T2-B(PP4)'!$E$401","v":0},"#'T2-B(PP4)'!$E$401"]
["pp4_bl6_1_6_rate_out",{"$f":"'T2-B(PP4)'!$H$401","v":0},"#'T2-B(PP4)'!$H$401"]
["pp4_bl6_1_6_total",{"$f":"'T2-B(PP4)'!$J$401","v":0},"#'T2-B(PP4)'!$J$401"]
["pp4_bl6_1_6_total_in",{"$f":"'T2-B(PP4)'!$F$401","v":0},"#'T2-B(PP4)'!$F$401"]
["pp4_bl6_1_6_total_out",{"$f":"'T2-B(PP4)'!$I$401","v":0},"#'T2-B(PP4)'!$I$401"]
["pp4_bl6_1_6_unit",{"$f":"'T2-B(PP4)'!$C$401","v":0},"#'T2-B(PP4)'!$C$401"]
["pp4_bl6_1_6_unit_in",{"$f":"'T2-B(PP4)'!$D$401","v":0},"#'T2-B(PP4)'!$D$401"]
["pp4_bl6_1_6_units_out",{"$f":"'T2-B(PP4)'!$G$401","v":0},"#'T2-B(PP4)'!$G$401"]
["pp4_bl6_1_7_name",{"$f":"'T2-B(PP4)'!$B$402","v":0},"#'T2-B(PP4)'!$B$402"]
["pp4_bl6_1_7_rate_in",{"$f":"'T2-B(PP4)'!$E$402","v":0},"#'T2-B(PP4)'!$E$402"]
["pp4_bl6_1_7_rate_out",{"$f":"'T2-B(PP4)'!$H$402","v":0},"#'T2-B(PP4)'!$H$402"]
["pp4_bl6_1_7_total",{"$f":"'T2-B(PP4)'!$J$402","v":0},"#'T2-B(PP4)'!$J$402"]
["pp4_bl6_1_7_total_in",{"$f":"'T2-B(PP4)'!$F$402","v":0},"#'T2-B(PP4)'!$F$402"]
["pp4_bl6_1_7_total_out",{"$f":"'T2-B(PP4)'!$I$402","v":0},"#'T2-B(PP4)'!$I$402"]
["pp4_bl6_1_7_unit",{"$f":"'T2-B(PP4)'!$C$402","v":0},"#'T2-B(PP4)'!$C$402"]
["pp4_bl6_1_7_unit_in",{"$f":"'T2-B(PP4)'!$D$402","v":0},"#'T2-B(PP4)'!$D$402"]
["pp4_bl6_1_7_units_out",{"$f":"'T2-B(PP4)'!$G$402","v":0},"#'T2-B(PP4)'!$G$402"]
["pp4_bl6_1_8_name",{"$f":"'T2-B(PP4)'!$B$403","v":0},"#'T2-B(PP4)'!$B$403"]
["pp4_bl6_1_8_rate_in",{"$f":"'T2-B(PP4)'!$E$403","v":0},"#'T2-B(PP4)'!$E$403"]
["pp4_bl6_1_8_rate_out",{"$f":"'T2-B(PP4)'!$H$403","v":0},"#'T2-B(PP4)'!$H$403"]
["pp4_bl6_1_8_total",{"$f":"'T2-B(PP4)'!$J$403","v":0},"#'T2-B(PP4)'!$J$403"]
["pp4_bl6_1_8_total_in",{"$f":"'T2-B(PP4)'!$F$403","v":0},"#'T2-B(PP4)'!$F$403"]
["pp4_bl6_1_8_total_out",{"$f":"'T2-B(PP4)'!$I$403","v":0},"#'T2-B(PP4)'!$I$403"]
["pp4_bl6_1_8_unit",{"$f":"'T2-B(PP4)'!$C$403","v":0},"#'T2-B(PP4)'!$C$403"]
["pp4_bl6_1_8_unit_in",{"$f":"'T2-B(PP4)'!$D$403","v":0},"#'T2-B(PP4)'!$D$403"]
["pp4_bl6_1_8_units_out",{"$f":"'T2-B(PP4)'!$G$403","v":0},"#'T2-B(PP4)'!$G$403"]
["pp4_bl6_1_9_name",{"$f":"'T2-B(PP4)'!$B$404","v":0},"#'T2-B(PP4)'!$B$404"]
["pp4_bl6_1_9_rate_in",{"$f":"'T2-B(PP4)'!$E$404","v":0},"#'T2-B(PP4)'!$E$404"]
["pp4_bl6_1_9_rate_out",{"$f":"'T2-B(PP4)'!$H$404","v":0},"#'T2-B(PP4)'!$H$404"]
["pp4_bl6_1_9_total",{"$f":"'T2-B(PP4)'!$J$404","v":0},"#'T2-B(PP4)'!$J$404"]
["pp4_bl6_1_9_total_in",{"$f":"'T2-B(PP4)'!$F$404","v":0},"#'T2-B(PP4)'!$F$404"]
["pp4_bl6_1_9_total_out",{"$f":"'T2-B(PP4)'!$I$404","v":0},"#'T2-B(PP4)'!$I$404"]
["pp4_bl6_1_9_unit",{"$f":"'T2-B(PP4)'!$C$404","v":0},"#'T2-B(PP4)'!$C$404"]
["pp4_bl6_1_9_unit_in",{"$f":"'T2-B(PP4)'!$D$404","v":0},"#'T2-B(PP4)'!$D$404"]
["pp4_bl6_1_9_units_out",{"$f":"'T2-B(PP4)'!$G$404","v":0},"#'T2-B(PP4)'!$G$404"]
["pp4_bl6_1_total",{"$f":"'T2-B(PP4)'!$J$395","v":0},"#'T2-B(PP4)'!$J$395"]
["pp4_bl6_1_total_in",{"$f":"'T2-B(PP4)'!$F$395","v":0},"#'T2-B(PP4)'!$F$395"]
["pp4_bl6_1_total_out",{"$f":"'T2-B(PP4)'!$I$395","v":0},"#'T2-B(PP4)'!$I$395"]
["pp4_bl6_2_1_name",{"$f":"'T2-B(PP4)'!$B$407","v":0},"#'T2-B(PP4)'!$B$407"]
["pp4_bl6_2_1_rate_in",{"$f":"'T2-B(PP4)'!$E$407","v":0},"#'T2-B(PP4)'!$E$407"]
["pp4_bl6_2_1_rate_out",{"$f":"'T2-B(PP4)'!$H$407","v":0},"#'T2-B(PP4)'!$H$407"]
["pp4_bl6_2_1_total",{"$f":"'T2-B(PP4)'!$J$407","v":0},"#'T2-B(PP4)'!$J$407"]
["pp4_bl6_2_1_total_in",{"$f":"'T2-B(PP4)'!$F$407","v":0},"#'T2-B(PP4)'!$F$407"]
["pp4_bl6_2_1_total_out",{"$f":"'T2-B(PP4)'!$I$407","v":0},"#'T2-B(PP4)'!$I$407"]
["pp4_bl6_2_1_unit",{"$f":"'T2-B(PP4)'!$C$407","v":0},"#'T2-B(PP4)'!$C$407"]
["pp4_bl6_2_1_unit_in",{"$f":"'T2-B(PP4)'!$D$407","v":0},"#'T2-B(PP4)'!$D$407"]
["pp4_bl6_2_1_units_out",{"$f":"'T2-B(PP4)'!$G$407","v":0},"#'T2-B(PP4)'!$G$407"]
["pp4_bl6_2_10_name",{"$f":"'T2-B(PP4)'!$B$416","v":0},"#'T2-B(PP4)'!$B$416"]
["pp4_bl6_2_10_rate_in",{"$f":"'T2-B(PP4)'!$E$416","v":0},"#'T2-B(PP4)'!$E$416"]
["pp4_bl6_2_10_rate_out",{"$f":"'T2-B(PP4)'!$H$416","v":0},"#'T2-B(PP4)'!$H$416"]
["pp4_bl6_2_10_total",{"$f":"'T2-B(PP4)'!$J$416","v":0},"#'T2-B(PP4)'!$J$416"]
["pp4_bl6_2_10_total_in",{"$f":"'T2-B(PP4)'!$F$416","v":0},"#'T2-B(PP4)'!$F$416"]
["pp4_bl6_2_10_total_out",{"$f":"'T2-B(PP4)'!$I$416","v":0},"#'T2-B(PP4)'!$I$416"]
["pp4_bl6_2_10_unit",{"$f":"'T2-B(PP4)'!$C$416","v":0},"#'T2-B(PP4)'!$C$416"]
["pp4_bl6_2_10_unit_in",{"$f":"'T2-B(PP4)'!$D$416","v":0},"#'T2-B(PP4)'!$D$416"]
["pp4_bl6_2_10_units_out",{"$f":"'T2-B(PP4)'!$G$416","v":0},"#'T2-B(PP4)'!$G$416"]
["pp4_bl6_2_2_name",{"$f":"'T2-B(PP4)'!$B$408","v":0},"#'T2-B(PP4)'!$B$408"]
["pp4_bl6_2_2_rate_in",{"$f":"'T2-B(PP4)'!$E$408","v":0},"#'T2-B(PP4)'!$E$408"]
["pp4_bl6_2_2_rate_out",{"$f":"'T2-B(PP4)'!$H$408","v":0},"#'T2-B(PP4)'!$H$408"]
["pp4_bl6_2_2_total",{"$f":"'T2-B(PP4)'!$J$408","v":0},"#'T2-B(PP4)'!$J$408"]
["pp4_bl6_2_2_total_in",{"$f":"'T2-B(PP4)'!$F$408","v":0},"#'T2-B(PP4)'!$F$408"]
["pp4_bl6_2_2_total_out",{"$f":"'T2-B(PP4)'!$I$408","v":0},"#'T2-B(PP4)'!$I$408"]
["pp4_bl6_2_2_unit",{"$f":"'T2-B(PP4)'!$C$408","v":0},"#'T2-B(PP4)'!$C$408"]
["pp4_bl6_2_2_unit_in",{"$f":"'T2-B(PP4)'!$D$408","v":0},"#'T2-B(PP4)'!$D$408"]
["pp4_bl6_2_2_units_out",{"$f":"'T2-B(PP4)'!$G$408","v":0},"#'T2-B(PP4)'!$G$408"]
["pp4_bl6_2_3_name",{"$f":"'T2-B(PP4)'!$B$409","v":0},"#'T2-B(PP4)'!$B$409"]
["pp4_bl6_2_3_rate_in",{"$f":"'T2-B(PP4)'!$E$409","v":0},"#'T2-B(PP4)'!$E$409"]
["pp4_bl6_2_3_rate_out",{"$f":"'T2-B(PP4)'!$H$409","v":0},"#'T2-B(PP4)'!$H$409"]
["pp4_bl6_2_3_total",{"$f":"'T2-B(PP4)'!$J$409","v":0},"#'T2-B(PP4)'!$J$409"]
["pp4_bl6_2_3_total_in",{"$f":"'T2-B(PP4)'!$F$409","v":0},"#'T2-B(PP4)'!$F$409"]
["pp4_bl6_2_3_total_out",{"$f":"'T2-B(PP4)'!$I$409","v":0},"#'T2-B(PP4)'!$I$409"]
["pp4_bl6_2_3_unit",{"$f":"'T2-B(PP4)'!$C$409","v":0},"#'T2-B(PP4)'!$C$409"]
["pp4_bl6_2_3_unit_in",{"$f":"'T2-B(PP4)'!$D$409","v":0},"#'T2-B(PP4)'!$D$409"]
["pp4_bl6_2_3_units_out",{"$f":"'T2-B(PP4)'!$G$409","v":0},"#'T2-B(PP4)'!$G$409"]
["pp4_bl6_2_4_name",{"$f":"'T2-B(PP4)'!$B$410","v":0},"#'T2-B(PP4)'!$B$410"]
["pp4_bl6_2_4_rate_in",{"$f":"'T2-B(PP4)'!$E$410","v":0},"#'T2-B(PP4)'!$E$410"]
["pp4_bl6_2_4_rate_out",{"$f":"'T2-B(PP4)'!$H$410","v":0},"#'T2-B(PP4)'!$H$410"]
["pp4_bl6_2_4_total",{"$f":"'T2-B(PP4)'!$J$410","v":0},"#'T2-B(PP4)'!$J$410"]
["pp4_bl6_2_4_total_in",{"$f":"'T2-B(PP4)'!$F$410","v":0},"#'T2-B(PP4)'!$F$410"]
["pp4_bl6_2_4_total_out",{"$f":"'T2-B(PP4)'!$I$410","v":0},"#'T2-B(PP4)'!$I$410"]
["pp4_bl6_2_4_unit",{"$f":"'T2-B(PP4)'!$C$410","v":0},"#'T2-B(PP4)'!$C$410"]
["pp4_bl6_2_4_unit_in",{"$f":"'T2-B(PP4)'!$D$410","v":0},"#'T2-B(PP4)'!$D$410"]
["pp4_bl6_2_4_units_out",{"$f":"'T2-B(PP4)'!$G$410","v":0},"#'T2-B(PP4)'!$G$410"]
["pp4_bl6_2_5_name",{"$f":"'T2-B(PP4)'!$B$411","v":0},"#'T2-B(PP4)'!$B$411"]
["pp4_bl6_2_5_rate_in",{"$f":"'T2-B(PP4)'!$E$411","v":0},"#'T2-B(PP4)'!$E$411"]
["pp4_bl6_2_5_rate_out",{"$f":"'T2-B(PP4)'!$H$411","v":0},"#'T2-B(PP4)'!$H$411"]
["pp4_bl6_2_5_total",{"$f":"'T2-B(PP4)'!$J$411","v":0},"#'T2-B(PP4)'!$J$411"]
["pp4_bl6_2_5_total_in",{"$f":"'T2-B(PP4)'!$F$411","v":0},"#'T2-B(PP4)'!$F$411"]
["pp4_bl6_2_5_total_out",{"$f":"'T2-B(PP4)'!$I$411","v":0},"#'T2-B(PP4)'!$I$411"]
["pp4_bl6_2_5_unit",{"$f":"'T2-B(PP4)'!$C$411","v":0},"#'T2-B(PP4)'!$C$411"]
["pp4_bl6_2_5_unit_in",{"$f":"'T2-B(PP4)'!$D$411","v":0},"#'T2-B(PP4)'!$D$411"]
["pp4_bl6_2_5_units_out",{"$f":"'T2-B(PP4)'!$G$411","v":0},"#'T2-B(PP4)'!$G$411"]
["pp4_bl6_2_6_name",{"$f":"'T2-B(PP4)'!$B$412","v":0},"#'T2-B(PP4)'!$B$412"]
["pp4_bl6_2_6_rate_in",{"$f":"'T2-B(PP4)'!$E$412","v":0},"#'T2-B(PP4)'!$E$412"]
["pp4_bl6_2_6_rate_out",{"$f":"'T2-B(PP4)'!$H$412","v":0},"#'T2-B(PP4)'!$H$412"]
["pp4_bl6_2_6_total",{"$f":"'T2-B(PP4)'!$J$412","v":0},"#'T2-B(PP4)'!$J$412"]
["pp4_bl6_2_6_total_in",{"$f":"'T2-B(PP4)'!$F$412","v":0},"#'T2-B(PP4)'!$F$412"]
["pp4_bl6_2_6_total_out",{"$f":"'T2-B(PP4)'!$I$412","v":0},"#'T2-B(PP4)'!$I$412"]
["pp4_bl6_2_6_unit",{"$f":"'T2-B(PP4)'!$C$412","v":0},"#'T2-B(PP4)'!$C$412"]
["pp4_bl6_2_6_unit_in",{"$f":"'T2-B(PP4)'!$D$412","v":0},"#'T2-B(PP4)'!$D$412"]
["pp4_bl6_2_6_units_out",{"$f":"'T2-B(PP4)'!$G$412","v":0},"#'T2-B(PP4)'!$G$412"]
["pp4_bl6_2_7_name",{"$f":"'T2-B(PP4)'!$B$413","v":0},"#'T2-B(PP4)'!$B$413"]
["pp4_bl6_2_7_rate_in",{"$f":"'T2-B(PP4)'!$E$413","v":0},"#'T2-B(PP4)'!$E$413"]
["pp4_bl6_2_7_rate_out",{"$f":"'T2-B(PP4)'!$H$413","v":0},"#'T2-B(PP4)'!$H$413"]
["pp4_bl6_2_7_total",{"$f":"'T2-B(PP4)'!$J$413","v":0},"#'T2-B(PP4)'!$J$413"]
["pp4_bl6_2_7_total_in",{"$f":"'T2-B(PP4)'!$F$413","v":0},"#'T2-B(PP4)'!$F$413"]
["pp4_bl6_2_7_total_out",{"$f":"'T2-B(PP4)'!$I$413","v":0},"#'T2-B(PP4)'!$I$413"]
["pp4_bl6_2_7_unit",{"$f":"'T2-B(PP4)'!$C$413","v":0},"#'T2-B(PP4)'!$C$413"]
["pp4_bl6_2_7_unit_in",{"$f":"'T2-B(PP4)'!$D$413","v":0},"#'T2-B(PP4)'!$D$413"]
["pp4_bl6_2_7_units_out",{"$f":"'T2-B(PP4)'!$G$413","v":0},"#'T2-B(PP4)'!$G$413"]
["pp4_bl6_2_8_name",{"$f":"'T2-B(PP4)'!$B$414","v":0},"#'T2-B(PP4)'!$B$414"]
["pp4_bl6_2_8_rate_in",{"$f":"'T2-B(PP4)'!$E$414","v":0},"#'T2-B(PP4)'!$E$414"]
["pp4_bl6_2_8_rate_out",{"$f":"'T2-B(PP4)'!$H$414","v":0},"#'T2-B(PP4)'!$H$414"]
["pp4_bl6_2_8_total",{"$f":"'T2-B(PP4)'!$J$414","v":0},"#'T2-B(PP4)'!$J$414"]
["pp4_bl6_2_8_total_in",{"$f":"'T2-B(PP4)'!$F$414","v":0},"#'T2-B(PP4)'!$F$414"]
["pp4_bl6_2_8_total_out",{"$f":"'T2-B(PP4)'!$I$414","v":0},"#'T2-B(PP4)'!$I$414"]
["pp4_bl6_2_8_unit",{"$f":"'T2-B(PP4)'!$C$414","v":0},"#'T2-B(PP4)'!$C$414"]
["pp4_bl6_2_8_unit_in",{"$f":"'T2-B(PP4)'!$D$414","v":0},"#'T2-B(PP4)'!$D$414"]
["pp4_bl6_2_8_units_out",{"$f":"'T2-B(PP4)'!$G$414","v":0},"#'T2-B(PP4)'!$G$414"]
["pp4_bl6_2_9_name",{"$f":"'T2-B(PP4)'!$B$415","v":0},"#'T2-B(PP4)'!$B$415"]
["pp4_bl6_2_9_rate_in",{"$f":"'T2-B(PP4)'!$E$415","v":0},"#'T2-B(PP4)'!$E$415"]
["pp4_bl6_2_9_rate_out",{"$f":"'T2-B(PP4)'!$H$415","v":0},"#'T2-B(PP4)'!$H$415"]
["pp4_bl6_2_9_total",{"$f":"'T2-B(PP4)'!$J$415","v":0},"#'T2-B(PP4)'!$J$415"]
["pp4_bl6_2_9_total_in",{"$f":"'T2-B(PP4)'!$F$415","v":0},"#'T2-B(PP4)'!$F$415"]
["pp4_bl6_2_9_total_out",{"$f":"'T2-B(PP4)'!$I$415","v":0},"#'T2-B(PP4)'!$I$415"]
["pp4_bl6_2_9_unit",{"$f":"'T2-B(PP4)'!$C$415","v":0},"#'T2-B(PP4)'!$C$415"]
["pp4_bl6_2_9_unit_in",{"$f":"'T2-B(PP4)'!$D$415","v":0},"#'T2-B(PP4)'!$D$415"]
["pp4_bl6_2_9_units_out",{"$f":"'T2-B(PP4)'!$G$415","v":0},"#'T2-B(PP4)'!$G$415"]
["pp4_bl6_2_total",{"$f":"'T2-B(PP4)'!$J$406","v":0},"#'T2-B(PP4)'!$J$406"]
["pp4_bl6_2_total_in",{"$f":"'T2-B(PP4)'!$F$406","v":0},"#'T2-B(PP4)'!$F$406"]
["pp4_bl6_2_total_out",{"$f":"'T2-B(PP4)'!$I$406","v":0},"#'T2-B(PP4)'!$I$406"]
["pp4_bl6_total",{"$f":"'T2-B(PP4)'!$J$417","v":0},"#'T2-B(PP4)'!$J$417"]
["pp4_bl6_total_in",{"$f":"'T2-B(PP4)'!$F$417","v":0},"#'T2-B(PP4)'!$F$417"]
["pp4_bl6_total_out",{"$f":"'T2-B(PP4)'!$I$417","v":0},"#'T2-B(PP4)'!$I$417"]
["pp4_bl7_1_1_name",{"$f":"'T2-B(PP4)'!$B$420","v":0},"#'T2-B(PP4)'!$B$420"]
["pp4_bl7_1_1_rate_in",{"$f":"'T2-B(PP4)'!$H$420","v":0},"#'T2-B(PP4)'!$H$420"]
["pp4_bl7_1_1_rate_out",{"$f":"'T2-B(PP4)'!$N$420","v":0},"#'T2-B(PP4)'!$N$420"]
["pp4_bl7_1_1_total",{"$f":"'T2-B(PP4)'!$I$420","v":0},"#'T2-B(PP4)'!$I$420"]
["pp4_bl7_1_1_total_in",{"$f":"'T2-B(PP4)'!$P$420","v":0},"#'T2-B(PP4)'!$P$420"]
["pp4_bl7_1_1_total_out",{"$f":"'T2-B(PP4)'!$O$420","v":0},"#'T2-B(PP4)'!$O$420"]
["pp4_bl7_1_1_unit",{"$f":"'T2-B(PP4)'!$F$420","v":0},"#'T2-B(PP4)'!$F$420"]
["pp4_bl7_1_1_unit_in",{"$f":"'T2-B(PP4)'!$G$420","v":0},"#'T2-B(PP4)'!$G$420"]
["pp4_bl7_1_1_units_out",{"$f":"'T2-B(PP4)'!$M$420","v":0},"#'T2-B(PP4)'!$M$420"]
["pp4_competence",{"$f":"'PP4'!$B$38","v":0},"#'PP4'!$B$38"]
["pp4_country",{"$f":"'PP4'!$K$14","v":1},"#'PP4'!$K$14"]
["pp4_fax",{"$f":"'PP4'!$C$29","v":0},"#'PP4'!$C$29"]
["pp4_is_bg",{"$f":"'PP4'!$D$13","v":0},"#'PP4'!$D$13"]
["pp4_is_pc",{"$f":"'PP4'!$F$13","v":0},"#'PP4'!$F$13"]
["pp4_legal_representative",{"$f":"'PP4'!$C$23","v":0},"#'PP4'!$C$23"]
["pp4_legal_representative_position",{"$f":"'PP4'!$C$25","v":0},"#'PP4'!$C$25"]
["pp4_mail",{"$f":"'PP4'!$C$31","v":0},"#'PP4'!$C$31"]
["pp4_nat_code",{"$f":"'PP4'!$C$70","v":0},"#'PP4'!$C$70"]
["pp4_nuts3",{"$f":"'PP4'!$C$15","v":0},"#'PP4'!$C$15"]
["pp4_organisation_en",{"$f":"'PP4'!$C$7","v":0},"#'PP4'!$C$7"]
["pp4_organisation_native",{"$f":"'PP4'!$C$9","v":0},"#'PP4'!$C$9"]
["pp4_pe_date1",{"$f":"'PP4'!$G$47","v":0},"#'PP4'!$G$47"]
["pp4_pe_date2",{"$f":"'PP4'!$G$55","v":0},"#'PP4'!$G$55"]
["pp4_pe_date3",{"$f":"'PP4'!$G$63","v":0},"#'PP4'!$G$63"]
["pp4_pe_ga1",{"$f":"'PP4'!$G$46","v":0},"#'PP4'!$G$46"]
["pp4_pe_ga2",{"$f":"'PP4'!$G$54","v":0},"#'PP4'!$G$54"]
["pp4_pe_ga3",{"$f":"'PP4'!$G$62","v":0},"#'PP4'!$G$62"]
["pp4_pe_ip1",{"$f":"'PP4'!$C$43","v":0},"#'PP4'!$C$43"]
["pp4_pe_ip2",{"$f":"'PP4'!$C$51","v":0},"#'PP4'!$C$51"]
["pp4_pe_ip3",{"$f":"'PP4'!$C$59","v":0},"#'PP4'!$C$59"]
["pp4_pe_or1",{"$f":"'PP4'!$C$47","v":0},"#'PP4'!$C$47"]
["pp4_pe_or2",{"$f":"'PP4'!$C$55","v":0},"#'PP4'!$C$55"]
["pp4_pe_or3",{"$f":"'PP4'!$C$63","v":0},"#'PP4'!$C$63"]
["pp4_pe_pt1",{"$f":"'PP4'!$C$44","v":0},"#'PP4'!$C$44"]
["pp4_pe_pt2",{"$f":"'PP4'!$C$52","v":0},"#'PP4'!$C$52"]
["pp4_pe_pt3",{"$f":"'PP4'!$C$60","v":0},"#'PP4'!$C$60"]
["pp4_pe_sd1",{"$f":"'PP4'!$C$45","v":0},"#'PP4'!$C$45"]
["pp4_pe_sd2",{"$f":"'PP4'!$C$53","v":0},"#'PP4'!$C$53"]
["pp4_pe_sd3",{"$f":"'PP4'!$C$61","v":0},"#'PP4'!$C$61"]
["pp4_pe_tev1",{"$f":"'PP4'!$C$46","v":0},"#'PP4'!$C$46"]
["pp4_pe_tev2",{"$f":"'PP4'!$C$54","v":0},"#'PP4'!$C$54"]
["pp4_pe_tev3",{"$f":"'PP4'!$C$62","v":0},"#'PP4'!$C$62"]
["pp4_phone",{"$f":"'PP4'!$C$27","v":0},"#'PP4'!$C$27"]
["pp4_post_code",{"$f":"'PP4'!$C$21","v":0},"#'PP4'!$C$21"]
["pp4_town",{"$f":"'PP4'!$C$17","v":0},"#'PP4'!$C$17"]
["pp4_type_org",{"$f":"'PP4'!$C$11","v":0},"#'PP4'!$C$11"]
["pp4_vat_code",{"$f":"'PP4'!$C$72","v":0},"#'PP4'!$C$72"]
["pp4_website",{"$f":"'PP4'!$C$33","v":0},"#'PP4'!$C$33"]
["pp5_2014_fulltime_staff",{"$f":"'PP5'!$F$77","v":0},"#'PP5'!$F$77"]
["pp5_2014_parttime_staff",{"$f":"'PP5'!$G$77","v":0},"#'PP5'!$G$77"]
["pp5_2014_turnover",{"$f":"'PP5'!$C$77","v":0},"#'PP5'!$C$77"]
["pp5_2015_fulltime_staff",{"$f":"'PP5'!$F$78","v":0},"#'PP5'!$F$78"]
["pp5_2015_parttime_staff",{"$f":"'PP5'!$G$78","v":0},"#'PP5'!$G$78"]
["pp5_2015_turnover",{"$f":"'PP5'!$C$78","v":0},"#'PP5'!$C$78"]
["pp5_2016_fulltime_staff",{"$f":"'PP5'!$F$79","v":0},"#'PP5'!$F$79"]
["pp5_2016_parttime_staff",{"$f":"'PP5'!$G$79","v":0},"#'PP5'!$G$79"]
["pp5_2016_turnover",{"$f":"'PP5'!$C$79","v":0},"#'PP5'!$C$79"]
["pp5_address",{"$f":"'PP5'!$C$19","v":0},"#'PP5'!$C$19"]
["pp5_background1",{"$f":"'PP5'!$B$35","v":0},"#'PP5'!$B$35"]
["pp5_background2",{"$f":"'PP5'!$B$36","v":0},"#'PP5'!$B$36"]
["pp5_bl3_1_1_name",{"$f":"'T2-B(PP5)'!$B$16","v":0},"#'T2-B(PP5)'!$B$16"]
["pp5_bl3_1_1_rate_in",{"$f":"'T2-B(PP5)'!$E$16","v":0},"#'T2-B(PP5)'!$E$16"]
["pp5_bl3_1_1_rate_out",{"$f":"'T2-B(PP5)'!$H$16","v":0},"#'T2-B(PP5)'!$H$16"]
["pp5_bl3_1_1_total",{"$f":"'T2-B(PP5)'!$J$16","v":0},"#'T2-B(PP5)'!$J$16"]
["pp5_bl3_1_1_total_in",{"$f":"'T2-B(PP5)'!$F$16","v":0},"#'T2-B(PP5)'!$F$16"]
["pp5_bl3_1_1_total_out",{"$f":"'T2-B(PP5)'!$I$16","v":0},"#'T2-B(PP5)'!$I$16"]
["pp5_bl3_1_1_unit",{"$f":"'T2-B(PP5)'!$C$16","v":0},"#'T2-B(PP5)'!$C$16"]
["pp5_bl3_1_1_unit_in",{"$f":"'T2-B(PP5)'!$D$16","v":0},"#'T2-B(PP5)'!$D$16"]
["pp5_bl3_1_1_units_out",{"$f":"'T2-B(PP5)'!$G$16","v":0},"#'T2-B(PP5)'!$G$16"]
["pp5_bl3_1_10_name",{"$f":"'T2-B(PP5)'!$B$25","v":0},"#'T2-B(PP5)'!$B$25"]
["pp5_bl3_1_10_rate_in",{"$f":"'T2-B(PP5)'!$E$25","v":0},"#'T2-B(PP5)'!$E$25"]
["pp5_bl3_1_10_rate_out",{"$f":"'T2-B(PP5)'!$H$25","v":0},"#'T2-B(PP5)'!$H$25"]
["pp5_bl3_1_10_total",{"$f":"'T2-B(PP5)'!$J$25","v":0},"#'T2-B(PP5)'!$J$25"]
["pp5_bl3_1_10_total_in",{"$f":"'T2-B(PP5)'!$F$25","v":0},"#'T2-B(PP5)'!$F$25"]
["pp5_bl3_1_10_total_out",{"$f":"'T2-B(PP5)'!$I$25","v":0},"#'T2-B(PP5)'!$I$25"]
["pp5_bl3_1_10_unit",{"$f":"'T2-B(PP5)'!$C$25","v":0},"#'T2-B(PP5)'!$C$25"]
["pp5_bl3_1_10_unit_in",{"$f":"'T2-B(PP5)'!$D$25","v":0},"#'T2-B(PP5)'!$D$25"]
["pp5_bl3_1_10_units_out",{"$f":"'T2-B(PP5)'!$G$25","v":0},"#'T2-B(PP5)'!$G$25"]
["pp5_bl3_1_11_name",{"$f":"'T2-B(PP5)'!$B$26","v":0},"#'T2-B(PP5)'!$B$26"]
["pp5_bl3_1_11_rate_in",{"$f":"'T2-B(PP5)'!$E$26","v":0},"#'T2-B(PP5)'!$E$26"]
["pp5_bl3_1_11_rate_out",{"$f":"'T2-B(PP5)'!$H$26","v":0},"#'T2-B(PP5)'!$H$26"]
["pp5_bl3_1_11_total",{"$f":"'T2-B(PP5)'!$J$26","v":0},"#'T2-B(PP5)'!$J$26"]
["pp5_bl3_1_11_total_in",{"$f":"'T2-B(PP5)'!$F$26","v":0},"#'T2-B(PP5)'!$F$26"]
["pp5_bl3_1_11_total_out",{"$f":"'T2-B(PP5)'!$I$26","v":0},"#'T2-B(PP5)'!$I$26"]
["pp5_bl3_1_11_unit",{"$f":"'T2-B(PP5)'!$C$26","v":0},"#'T2-B(PP5)'!$C$26"]
["pp5_bl3_1_11_unit_in",{"$f":"'T2-B(PP5)'!$D$26","v":0},"#'T2-B(PP5)'!$D$26"]
["pp5_bl3_1_11_units_out",{"$f":"'T2-B(PP5)'!$G$26","v":0},"#'T2-B(PP5)'!$G$26"]
["pp5_bl3_1_12_name",{"$f":"'T2-B(PP5)'!$B$27","v":0},"#'T2-B(PP5)'!$B$27"]
["pp5_bl3_1_12_rate_in",{"$f":"'T2-B(PP5)'!$E$27","v":0},"#'T2-B(PP5)'!$E$27"]
["pp5_bl3_1_12_rate_out",{"$f":"'T2-B(PP5)'!$H$27","v":0},"#'T2-B(PP5)'!$H$27"]
["pp5_bl3_1_12_total",{"$f":"'T2-B(PP5)'!$J$27","v":0},"#'T2-B(PP5)'!$J$27"]
["pp5_bl3_1_12_total_in",{"$f":"'T2-B(PP5)'!$F$27","v":0},"#'T2-B(PP5)'!$F$27"]
["pp5_bl3_1_12_total_out",{"$f":"'T2-B(PP5)'!$I$27","v":0},"#'T2-B(PP5)'!$I$27"]
["pp5_bl3_1_12_unit",{"$f":"'T2-B(PP5)'!$C$27","v":0},"#'T2-B(PP5)'!$C$27"]
["pp5_bl3_1_12_unit_in",{"$f":"'T2-B(PP5)'!$D$27","v":0},"#'T2-B(PP5)'!$D$27"]
["pp5_bl3_1_12_units_out",{"$f":"'T2-B(PP5)'!$G$27","v":0},"#'T2-B(PP5)'!$G$27"]
["pp5_bl3_1_13_name",{"$f":"'T2-B(PP5)'!$B$28","v":0},"#'T2-B(PP5)'!$B$28"]
["pp5_bl3_1_13_rate_in",{"$f":"'T2-B(PP5)'!$E$28","v":0},"#'T2-B(PP5)'!$E$28"]
["pp5_bl3_1_13_rate_out",{"$f":"'T2-B(PP5)'!$H$28","v":0},"#'T2-B(PP5)'!$H$28"]
["pp5_bl3_1_13_total",{"$f":"'T2-B(PP5)'!$J$28","v":0},"#'T2-B(PP5)'!$J$28"]
["pp5_bl3_1_13_total_in",{"$f":"'T2-B(PP5)'!$F$28","v":0},"#'T2-B(PP5)'!$F$28"]
["pp5_bl3_1_13_total_out",{"$f":"'T2-B(PP5)'!$I$28","v":0},"#'T2-B(PP5)'!$I$28"]
["pp5_bl3_1_13_unit",{"$f":"'T2-B(PP5)'!$C$28","v":0},"#'T2-B(PP5)'!$C$28"]
["pp5_bl3_1_13_unit_in",{"$f":"'T2-B(PP5)'!$D$28","v":0},"#'T2-B(PP5)'!$D$28"]
["pp5_bl3_1_13_units_out",{"$f":"'T2-B(PP5)'!$G$28","v":0},"#'T2-B(PP5)'!$G$28"]
["pp5_bl3_1_14_name",{"$f":"'T2-B(PP5)'!$B$29","v":0},"#'T2-B(PP5)'!$B$29"]
["pp5_bl3_1_14_rate_in",{"$f":"'T2-B(PP5)'!$E$29","v":0},"#'T2-B(PP5)'!$E$29"]
["pp5_bl3_1_14_rate_out",{"$f":"'T2-B(PP5)'!$H$29","v":0},"#'T2-B(PP5)'!$H$29"]
["pp5_bl3_1_14_total",{"$f":"'T2-B(PP5)'!$J$29","v":0},"#'T2-B(PP5)'!$J$29"]
["pp5_bl3_1_14_total_in",{"$f":"'T2-B(PP5)'!$F$29","v":0},"#'T2-B(PP5)'!$F$29"]
["pp5_bl3_1_14_total_out",{"$f":"'T2-B(PP5)'!$I$29","v":0},"#'T2-B(PP5)'!$I$29"]
["pp5_bl3_1_14_unit",{"$f":"'T2-B(PP5)'!$C$29","v":0},"#'T2-B(PP5)'!$C$29"]
["pp5_bl3_1_14_unit_in",{"$f":"'T2-B(PP5)'!$D$29","v":0},"#'T2-B(PP5)'!$D$29"]
["pp5_bl3_1_14_units_out",{"$f":"'T2-B(PP5)'!$G$29","v":0},"#'T2-B(PP5)'!$G$29"]
["pp5_bl3_1_15_name",{"$f":"'T2-B(PP5)'!$B$30","v":0},"#'T2-B(PP5)'!$B$30"]
["pp5_bl3_1_15_rate_in",{"$f":"'T2-B(PP5)'!$E$30","v":0},"#'T2-B(PP5)'!$E$30"]
["pp5_bl3_1_15_rate_out",{"$f":"'T2-B(PP5)'!$H$30","v":0},"#'T2-B(PP5)'!$H$30"]
["pp5_bl3_1_15_total",{"$f":"'T2-B(PP5)'!$J$30","v":0},"#'T2-B(PP5)'!$J$30"]
["pp5_bl3_1_15_total_in",{"$f":"'T2-B(PP5)'!$F$30","v":0},"#'T2-B(PP5)'!$F$30"]
["pp5_bl3_1_15_total_out",{"$f":"'T2-B(PP5)'!$I$30","v":0},"#'T2-B(PP5)'!$I$30"]
["pp5_bl3_1_15_unit",{"$f":"'T2-B(PP5)'!$C$30","v":0},"#'T2-B(PP5)'!$C$30"]
["pp5_bl3_1_15_unit_in",{"$f":"'T2-B(PP5)'!$D$30","v":0},"#'T2-B(PP5)'!$D$30"]
["pp5_bl3_1_15_units_out",{"$f":"'T2-B(PP5)'!$G$30","v":0},"#'T2-B(PP5)'!$G$30"]
["pp5_bl3_1_16_name",{"$f":"'T2-B(PP5)'!$B$31","v":0},"#'T2-B(PP5)'!$B$31"]
["pp5_bl3_1_16_rate_in",{"$f":"'T2-B(PP5)'!$E$31","v":0},"#'T2-B(PP5)'!$E$31"]
["pp5_bl3_1_16_rate_out",{"$f":"'T2-B(PP5)'!$H$31","v":0},"#'T2-B(PP5)'!$H$31"]
["pp5_bl3_1_16_total",{"$f":"'T2-B(PP5)'!$J$31","v":0},"#'T2-B(PP5)'!$J$31"]
["pp5_bl3_1_16_total_in",{"$f":"'T2-B(PP5)'!$F$31","v":0},"#'T2-B(PP5)'!$F$31"]
["pp5_bl3_1_16_total_out",{"$f":"'T2-B(PP5)'!$I$31","v":0},"#'T2-B(PP5)'!$I$31"]
["pp5_bl3_1_16_unit",{"$f":"'T2-B(PP5)'!$C$31","v":0},"#'T2-B(PP5)'!$C$31"]
["pp5_bl3_1_16_unit_in",{"$f":"'T2-B(PP5)'!$D$31","v":0},"#'T2-B(PP5)'!$D$31"]
["pp5_bl3_1_16_units_out",{"$f":"'T2-B(PP5)'!$G$31","v":0},"#'T2-B(PP5)'!$G$31"]
["pp5_bl3_1_17_name",{"$f":"'T2-B(PP5)'!$B$32","v":0},"#'T2-B(PP5)'!$B$32"]
["pp5_bl3_1_17_rate_in",{"$f":"'T2-B(PP5)'!$E$32","v":0},"#'T2-B(PP5)'!$E$32"]
["pp5_bl3_1_17_rate_out",{"$f":"'T2-B(PP5)'!$H$32","v":0},"#'T2-B(PP5)'!$H$32"]
["pp5_bl3_1_17_total",{"$f":"'T2-B(PP5)'!$J$32","v":0},"#'T2-B(PP5)'!$J$32"]
["pp5_bl3_1_17_total_in",{"$f":"'T2-B(PP5)'!$F$32","v":0},"#'T2-B(PP5)'!$F$32"]
["pp5_bl3_1_17_total_out",{"$f":"'T2-B(PP5)'!$I$32","v":0},"#'T2-B(PP5)'!$I$32"]
["pp5_bl3_1_17_unit",{"$f":"'T2-B(PP5)'!$C$32","v":0},"#'T2-B(PP5)'!$C$32"]
["pp5_bl3_1_17_unit_in",{"$f":"'T2-B(PP5)'!$D$32","v":0},"#'T2-B(PP5)'!$D$32"]
["pp5_bl3_1_17_units_out",{"$f":"'T2-B(PP5)'!$G$32","v":0},"#'T2-B(PP5)'!$G$32"]
["pp5_bl3_1_18_name",{"$f":"'T2-B(PP5)'!$B$33","v":0},"#'T2-B(PP5)'!$B$33"]
["pp5_bl3_1_18_rate_in",{"$f":"'T2-B(PP5)'!$E$33","v":0},"#'T2-B(PP5)'!$E$33"]
["pp5_bl3_1_18_rate_out",{"$f":"'T2-B(PP5)'!$H$33","v":0},"#'T2-B(PP5)'!$H$33"]
["pp5_bl3_1_18_total",{"$f":"'T2-B(PP5)'!$J$33","v":0},"#'T2-B(PP5)'!$J$33"]
["pp5_bl3_1_18_total_in",{"$f":"'T2-B(PP5)'!$F$33","v":0},"#'T2-B(PP5)'!$F$33"]
["pp5_bl3_1_18_total_out",{"$f":"'T2-B(PP5)'!$I$33","v":0},"#'T2-B(PP5)'!$I$33"]
["pp5_bl3_1_18_unit",{"$f":"'T2-B(PP5)'!$C$33","v":0},"#'T2-B(PP5)'!$C$33"]
["pp5_bl3_1_18_unit_in",{"$f":"'T2-B(PP5)'!$D$33","v":0},"#'T2-B(PP5)'!$D$33"]
["pp5_bl3_1_18_units_out",{"$f":"'T2-B(PP5)'!$G$33","v":0},"#'T2-B(PP5)'!$G$33"]
["pp5_bl3_1_19_name",{"$f":"'T2-B(PP5)'!$B$34","v":0},"#'T2-B(PP5)'!$B$34"]
["pp5_bl3_1_19_rate_in",{"$f":"'T2-B(PP5)'!$E$34","v":0},"#'T2-B(PP5)'!$E$34"]
["pp5_bl3_1_19_rate_out",{"$f":"'T2-B(PP5)'!$H$34","v":0},"#'T2-B(PP5)'!$H$34"]
["pp5_bl3_1_19_total",{"$f":"'T2-B(PP5)'!$J$34","v":0},"#'T2-B(PP5)'!$J$34"]
["pp5_bl3_1_19_total_in",{"$f":"'T2-B(PP5)'!$F$34","v":0},"#'T2-B(PP5)'!$F$34"]
["pp5_bl3_1_19_total_out",{"$f":"'T2-B(PP5)'!$I$34","v":0},"#'T2-B(PP5)'!$I$34"]
["pp5_bl3_1_19_unit",{"$f":"'T2-B(PP5)'!$C$34","v":0},"#'T2-B(PP5)'!$C$34"]
["pp5_bl3_1_19_unit_in",{"$f":"'T2-B(PP5)'!$D$34","v":0},"#'T2-B(PP5)'!$D$34"]
["pp5_bl3_1_19_units_out",{"$f":"'T2-B(PP5)'!$G$34","v":0},"#'T2-B(PP5)'!$G$34"]
["pp5_bl3_1_2_name",{"$f":"'T2-B(PP5)'!$B$17","v":0},"#'T2-B(PP5)'!$B$17"]
["pp5_bl3_1_2_rate_in",{"$f":"'T2-B(PP5)'!$E$17","v":0},"#'T2-B(PP5)'!$E$17"]
["pp5_bl3_1_2_rate_out",{"$f":"'T2-B(PP5)'!$H$17","v":0},"#'T2-B(PP5)'!$H$17"]
["pp5_bl3_1_2_total",{"$f":"'T2-B(PP5)'!$J$17","v":0},"#'T2-B(PP5)'!$J$17"]
["pp5_bl3_1_2_total_in",{"$f":"'T2-B(PP5)'!$F$17","v":0},"#'T2-B(PP5)'!$F$17"]
["pp5_bl3_1_2_total_out",{"$f":"'T2-B(PP5)'!$I$17","v":0},"#'T2-B(PP5)'!$I$17"]
["pp5_bl3_1_2_unit",{"$f":"'T2-B(PP5)'!$C$17","v":0},"#'T2-B(PP5)'!$C$17"]
["pp5_bl3_1_2_unit_in",{"$f":"'T2-B(PP5)'!$D$17","v":0},"#'T2-B(PP5)'!$D$17"]
["pp5_bl3_1_2_units_out",{"$f":"'T2-B(PP5)'!$G$17","v":0},"#'T2-B(PP5)'!$G$17"]
["pp5_bl3_1_20_name",{"$f":"'T2-B(PP5)'!$B$35","v":0},"#'T2-B(PP5)'!$B$35"]
["pp5_bl3_1_20_rate_in",{"$f":"'T2-B(PP5)'!$E$35","v":0},"#'T2-B(PP5)'!$E$35"]
["pp5_bl3_1_20_rate_out",{"$f":"'T2-B(PP5)'!$H$35","v":0},"#'T2-B(PP5)'!$H$35"]
["pp5_bl3_1_20_total",{"$f":"'T2-B(PP5)'!$J$35","v":0},"#'T2-B(PP5)'!$J$35"]
["pp5_bl3_1_20_total_in",{"$f":"'T2-B(PP5)'!$F$35","v":0},"#'T2-B(PP5)'!$F$35"]
["pp5_bl3_1_20_total_out",{"$f":"'T2-B(PP5)'!$I$35","v":0},"#'T2-B(PP5)'!$I$35"]
["pp5_bl3_1_20_unit",{"$f":"'T2-B(PP5)'!$C$35","v":0},"#'T2-B(PP5)'!$C$35"]
["pp5_bl3_1_20_unit_in",{"$f":"'T2-B(PP5)'!$D$35","v":0},"#'T2-B(PP5)'!$D$35"]
["pp5_bl3_1_20_units_out",{"$f":"'T2-B(PP5)'!$G$35","v":0},"#'T2-B(PP5)'!$G$35"]
["pp5_bl3_1_3_name",{"$f":"'T2-B(PP5)'!$B$18","v":0},"#'T2-B(PP5)'!$B$18"]
["pp5_bl3_1_3_rate_in",{"$f":"'T2-B(PP5)'!$E$18","v":0},"#'T2-B(PP5)'!$E$18"]
["pp5_bl3_1_3_rate_out",{"$f":"'T2-B(PP5)'!$H$18","v":0},"#'T2-B(PP5)'!$H$18"]
["pp5_bl3_1_3_total",{"$f":"'T2-B(PP5)'!$J$18","v":0},"#'T2-B(PP5)'!$J$18"]
["pp5_bl3_1_3_total_in",{"$f":"'T2-B(PP5)'!$F$18","v":0},"#'T2-B(PP5)'!$F$18"]
["pp5_bl3_1_3_total_out",{"$f":"'T2-B(PP5)'!$I$18","v":0},"#'T2-B(PP5)'!$I$18"]
["pp5_bl3_1_3_unit",{"$f":"'T2-B(PP5)'!$C$18","v":0},"#'T2-B(PP5)'!$C$18"]
["pp5_bl3_1_3_unit_in",{"$f":"'T2-B(PP5)'!$D$18","v":0},"#'T2-B(PP5)'!$D$18"]
["pp5_bl3_1_3_units_out",{"$f":"'T2-B(PP5)'!$G$18","v":0},"#'T2-B(PP5)'!$G$18"]
["pp5_bl3_1_4_name",{"$f":"'T2-B(PP5)'!$B$19","v":0},"#'T2-B(PP5)'!$B$19"]
["pp5_bl3_1_4_rate_in",{"$f":"'T2-B(PP5)'!$E$19","v":0},"#'T2-B(PP5)'!$E$19"]
["pp5_bl3_1_4_rate_out",{"$f":"'T2-B(PP5)'!$H$19","v":0},"#'T2-B(PP5)'!$H$19"]
["pp5_bl3_1_4_total",{"$f":"'T2-B(PP5)'!$J$19","v":0},"#'T2-B(PP5)'!$J$19"]
["pp5_bl3_1_4_total_in",{"$f":"'T2-B(PP5)'!$F$19","v":0},"#'T2-B(PP5)'!$F$19"]
["pp5_bl3_1_4_total_out",{"$f":"'T2-B(PP5)'!$I$19","v":0},"#'T2-B(PP5)'!$I$19"]
["pp5_bl3_1_4_unit",{"$f":"'T2-B(PP5)'!$C$19","v":0},"#'T2-B(PP5)'!$C$19"]
["pp5_bl3_1_4_unit_in",{"$f":"'T2-B(PP5)'!$D$19","v":0},"#'T2-B(PP5)'!$D$19"]
["pp5_bl3_1_4_units_out",{"$f":"'T2-B(PP5)'!$G$19","v":0},"#'T2-B(PP5)'!$G$19"]
["pp5_bl3_1_5_name",{"$f":"'T2-B(PP5)'!$B$20","v":0},"#'T2-B(PP5)'!$B$20"]
["pp5_bl3_1_5_rate_in",{"$f":"'T2-B(PP5)'!$E$20","v":0},"#'T2-B(PP5)'!$E$20"]
["pp5_bl3_1_5_rate_out",{"$f":"'T2-B(PP5)'!$H$20","v":0},"#'T2-B(PP5)'!$H$20"]
["pp5_bl3_1_5_total",{"$f":"'T2-B(PP5)'!$J$20","v":0},"#'T2-B(PP5)'!$J$20"]
["pp5_bl3_1_5_total_in",{"$f":"'T2-B(PP5)'!$F$20","v":0},"#'T2-B(PP5)'!$F$20"]
["pp5_bl3_1_5_total_out",{"$f":"'T2-B(PP5)'!$I$20","v":0},"#'T2-B(PP5)'!$I$20"]
["pp5_bl3_1_5_unit",{"$f":"'T2-B(PP5)'!$C$20","v":0},"#'T2-B(PP5)'!$C$20"]
["pp5_bl3_1_5_unit_in",{"$f":"'T2-B(PP5)'!$D$20","v":0},"#'T2-B(PP5)'!$D$20"]
["pp5_bl3_1_5_units_out",{"$f":"'T2-B(PP5)'!$G$20","v":0},"#'T2-B(PP5)'!$G$20"]
["pp5_bl3_1_6_name",{"$f":"'T2-B(PP5)'!$B$21","v":0},"#'T2-B(PP5)'!$B$21"]
["pp5_bl3_1_6_rate_in",{"$f":"'T2-B(PP5)'!$E$21","v":0},"#'T2-B(PP5)'!$E$21"]
["pp5_bl3_1_6_rate_out",{"$f":"'T2-B(PP5)'!$H$21","v":0},"#'T2-B(PP5)'!$H$21"]
["pp5_bl3_1_6_total",{"$f":"'T2-B(PP5)'!$J$21","v":0},"#'T2-B(PP5)'!$J$21"]
["pp5_bl3_1_6_total_in",{"$f":"'T2-B(PP5)'!$F$21","v":0},"#'T2-B(PP5)'!$F$21"]
["pp5_bl3_1_6_total_out",{"$f":"'T2-B(PP5)'!$I$21","v":0},"#'T2-B(PP5)'!$I$21"]
["pp5_bl3_1_6_unit",{"$f":"'T2-B(PP5)'!$C$21","v":0},"#'T2-B(PP5)'!$C$21"]
["pp5_bl3_1_6_unit_in",{"$f":"'T2-B(PP5)'!$D$21","v":0},"#'T2-B(PP5)'!$D$21"]
["pp5_bl3_1_6_units_out",{"$f":"'T2-B(PP5)'!$G$21","v":0},"#'T2-B(PP5)'!$G$21"]
["pp5_bl3_1_7_name",{"$f":"'T2-B(PP5)'!$B$22","v":0},"#'T2-B(PP5)'!$B$22"]
["pp5_bl3_1_7_rate_in",{"$f":"'T2-B(PP5)'!$E$22","v":0},"#'T2-B(PP5)'!$E$22"]
["pp5_bl3_1_7_rate_out",{"$f":"'T2-B(PP5)'!$H$22","v":0},"#'T2-B(PP5)'!$H$22"]
["pp5_bl3_1_7_total",{"$f":"'T2-B(PP5)'!$J$22","v":0},"#'T2-B(PP5)'!$J$22"]
["pp5_bl3_1_7_total_in",{"$f":"'T2-B(PP5)'!$F$22","v":0},"#'T2-B(PP5)'!$F$22"]
["pp5_bl3_1_7_total_out",{"$f":"'T2-B(PP5)'!$I$22","v":0},"#'T2-B(PP5)'!$I$22"]
["pp5_bl3_1_7_unit",{"$f":"'T2-B(PP5)'!$C$22","v":0},"#'T2-B(PP5)'!$C$22"]
["pp5_bl3_1_7_unit_in",{"$f":"'T2-B(PP5)'!$D$22","v":0},"#'T2-B(PP5)'!$D$22"]
["pp5_bl3_1_7_units_out",{"$f":"'T2-B(PP5)'!$G$22","v":0},"#'T2-B(PP5)'!$G$22"]
["pp5_bl3_1_8_name",{"$f":"'T2-B(PP5)'!$B$23","v":0},"#'T2-B(PP5)'!$B$23"]
["pp5_bl3_1_8_rate_in",{"$f":"'T2-B(PP5)'!$E$23","v":0},"#'T2-B(PP5)'!$E$23"]
["pp5_bl3_1_8_rate_out",{"$f":"'T2-B(PP5)'!$H$23","v":0},"#'T2-B(PP5)'!$H$23"]
["pp5_bl3_1_8_total",{"$f":"'T2-B(PP5)'!$J$23","v":0},"#'T2-B(PP5)'!$J$23"]
["pp5_bl3_1_8_total_in",{"$f":"'T2-B(PP5)'!$F$23","v":0},"#'T2-B(PP5)'!$F$23"]
["pp5_bl3_1_8_total_out",{"$f":"'T2-B(PP5)'!$I$23","v":0},"#'T2-B(PP5)'!$I$23"]
["pp5_bl3_1_8_unit",{"$f":"'T2-B(PP5)'!$C$23","v":0},"#'T2-B(PP5)'!$C$23"]
["pp5_bl3_1_8_unit_in",{"$f":"'T2-B(PP5)'!$D$23","v":0},"#'T2-B(PP5)'!$D$23"]
["pp5_bl3_1_8_units_out",{"$f":"'T2-B(PP5)'!$G$23","v":0},"#'T2-B(PP5)'!$G$23"]
["pp5_bl3_1_9_name",{"$f":"'T2-B(PP5)'!$B$24","v":0},"#'T2-B(PP5)'!$B$24"]
["pp5_bl3_1_9_rate_in",{"$f":"'T2-B(PP5)'!$E$24","v":0},"#'T2-B(PP5)'!$E$24"]
["pp5_bl3_1_9_rate_out",{"$f":"'T2-B(PP5)'!$H$24","v":0},"#'T2-B(PP5)'!$H$24"]
["pp5_bl3_1_9_total",{"$f":"'T2-B(PP5)'!$J$24","v":0},"#'T2-B(PP5)'!$J$24"]
["pp5_bl3_1_9_total_in",{"$f":"'T2-B(PP5)'!$F$24","v":0},"#'T2-B(PP5)'!$F$24"]
["pp5_bl3_1_9_total_out",{"$f":"'T2-B(PP5)'!$I$24","v":0},"#'T2-B(PP5)'!$I$24"]
["pp5_bl3_1_9_unit",{"$f":"'T2-B(PP5)'!$C$24","v":0},"#'T2-B(PP5)'!$C$24"]
["pp5_bl3_1_9_unit_in",{"$f":"'T2-B(PP5)'!$D$24","v":0},"#'T2-B(PP5)'!$D$24"]
["pp5_bl3_1_9_units_out",{"$f":"'T2-B(PP5)'!$G$24","v":0},"#'T2-B(PP5)'!$G$24"]
["pp5_bl3_1_total",{"$f":"'T2-B(PP5)'!$J$15","v":0},"#'T2-B(PP5)'!$J$15"]
["pp5_bl3_1_total_in",{"$f":"'T2-B(PP5)'!$F$15","v":0},"#'T2-B(PP5)'!$F$15"]
["pp5_bl3_1_total_out",{"$f":"'T2-B(PP5)'!$I$15","v":0},"#'T2-B(PP5)'!$I$15"]
["pp5_bl3_2_1_name",{"$f":"'T2-B(PP5)'!$B$37","v":0},"#'T2-B(PP5)'!$B$37"]
["pp5_bl3_2_1_rate_in",{"$f":"'T2-B(PP5)'!$E$37","v":0},"#'T2-B(PP5)'!$E$37"]
["pp5_bl3_2_1_rate_out",{"$f":"'T2-B(PP5)'!$H$37","v":0},"#'T2-B(PP5)'!$H$37"]
["pp5_bl3_2_1_total",{"$f":"'T2-B(PP5)'!$J$37","v":0},"#'T2-B(PP5)'!$J$37"]
["pp5_bl3_2_1_total_in",{"$f":"'T2-B(PP5)'!$F$37","v":0},"#'T2-B(PP5)'!$F$37"]
["pp5_bl3_2_1_total_out",{"$f":"'T2-B(PP5)'!$I$37","v":0},"#'T2-B(PP5)'!$I$37"]
["pp5_bl3_2_1_unit",{"$f":"'T2-B(PP5)'!$C$37","v":0},"#'T2-B(PP5)'!$C$37"]
["pp5_bl3_2_1_unit_in",{"$f":"'T2-B(PP5)'!$D$37","v":0},"#'T2-B(PP5)'!$D$37"]
["pp5_bl3_2_1_units_out",{"$f":"'T2-B(PP5)'!$G$37","v":0},"#'T2-B(PP5)'!$G$37"]
["pp5_bl3_2_10_name",{"$f":"'T2-B(PP5)'!$B$46","v":0},"#'T2-B(PP5)'!$B$46"]
["pp5_bl3_2_10_rate_in",{"$f":"'T2-B(PP5)'!$E$46","v":0},"#'T2-B(PP5)'!$E$46"]
["pp5_bl3_2_10_rate_out",{"$f":"'T2-B(PP5)'!$H$46","v":0},"#'T2-B(PP5)'!$H$46"]
["pp5_bl3_2_10_total",{"$f":"'T2-B(PP5)'!$J$46","v":0},"#'T2-B(PP5)'!$J$46"]
["pp5_bl3_2_10_total_in",{"$f":"'T2-B(PP5)'!$F$46","v":0},"#'T2-B(PP5)'!$F$46"]
["pp5_bl3_2_10_total_out",{"$f":"'T2-B(PP5)'!$I$46","v":0},"#'T2-B(PP5)'!$I$46"]
["pp5_bl3_2_10_unit",{"$f":"'T2-B(PP5)'!$C$46","v":0},"#'T2-B(PP5)'!$C$46"]
["pp5_bl3_2_10_unit_in",{"$f":"'T2-B(PP5)'!$D$46","v":0},"#'T2-B(PP5)'!$D$46"]
["pp5_bl3_2_10_units_out",{"$f":"'T2-B(PP5)'!$G$46","v":0},"#'T2-B(PP5)'!$G$46"]
["pp5_bl3_2_11_name",{"$f":"'T2-B(PP5)'!$B$47","v":0},"#'T2-B(PP5)'!$B$47"]
["pp5_bl3_2_11_rate_in",{"$f":"'T2-B(PP5)'!$E$47","v":0},"#'T2-B(PP5)'!$E$47"]
["pp5_bl3_2_11_rate_out",{"$f":"'T2-B(PP5)'!$H$47","v":0},"#'T2-B(PP5)'!$H$47"]
["pp5_bl3_2_11_total",{"$f":"'T2-B(PP5)'!$J$47","v":0},"#'T2-B(PP5)'!$J$47"]
["pp5_bl3_2_11_total_in",{"$f":"'T2-B(PP5)'!$F$47","v":0},"#'T2-B(PP5)'!$F$47"]
["pp5_bl3_2_11_total_out",{"$f":"'T2-B(PP5)'!$I$47","v":0},"#'T2-B(PP5)'!$I$47"]
["pp5_bl3_2_11_unit",{"$f":"'T2-B(PP5)'!$C$47","v":0},"#'T2-B(PP5)'!$C$47"]
["pp5_bl3_2_11_unit_in",{"$f":"'T2-B(PP5)'!$D$47","v":0},"#'T2-B(PP5)'!$D$47"]
["pp5_bl3_2_11_units_out",{"$f":"'T2-B(PP5)'!$G$47","v":0},"#'T2-B(PP5)'!$G$47"]
["pp5_bl3_2_12_name",{"$f":"'T2-B(PP5)'!$B$48","v":0},"#'T2-B(PP5)'!$B$48"]
["pp5_bl3_2_12_rate_in",{"$f":"'T2-B(PP5)'!$E$48","v":0},"#'T2-B(PP5)'!$E$48"]
["pp5_bl3_2_12_rate_out",{"$f":"'T2-B(PP5)'!$H$48","v":0},"#'T2-B(PP5)'!$H$48"]
["pp5_bl3_2_12_total",{"$f":"'T2-B(PP5)'!$J$48","v":0},"#'T2-B(PP5)'!$J$48"]
["pp5_bl3_2_12_total_in",{"$f":"'T2-B(PP5)'!$F$48","v":0},"#'T2-B(PP5)'!$F$48"]
["pp5_bl3_2_12_total_out",{"$f":"'T2-B(PP5)'!$I$48","v":0},"#'T2-B(PP5)'!$I$48"]
["pp5_bl3_2_12_unit",{"$f":"'T2-B(PP5)'!$C$48","v":0},"#'T2-B(PP5)'!$C$48"]
["pp5_bl3_2_12_unit_in",{"$f":"'T2-B(PP5)'!$D$48","v":0},"#'T2-B(PP5)'!$D$48"]
["pp5_bl3_2_12_units_out",{"$f":"'T2-B(PP5)'!$G$48","v":0},"#'T2-B(PP5)'!$G$48"]
["pp5_bl3_2_13_name",{"$f":"'T2-B(PP5)'!$B$49","v":0},"#'T2-B(PP5)'!$B$49"]
["pp5_bl3_2_13_rate_in",{"$f":"'T2-B(PP5)'!$E$49","v":0},"#'T2-B(PP5)'!$E$49"]
["pp5_bl3_2_13_rate_out",{"$f":"'T2-B(PP5)'!$H$49","v":0},"#'T2-B(PP5)'!$H$49"]
["pp5_bl3_2_13_total",{"$f":"'T2-B(PP5)'!$J$49","v":0},"#'T2-B(PP5)'!$J$49"]
["pp5_bl3_2_13_total_in",{"$f":"'T2-B(PP5)'!$F$49","v":0},"#'T2-B(PP5)'!$F$49"]
["pp5_bl3_2_13_total_out",{"$f":"'T2-B(PP5)'!$I$49","v":0},"#'T2-B(PP5)'!$I$49"]
["pp5_bl3_2_13_unit",{"$f":"'T2-B(PP5)'!$C$49","v":0},"#'T2-B(PP5)'!$C$49"]
["pp5_bl3_2_13_unit_in",{"$f":"'T2-B(PP5)'!$D$49","v":0},"#'T2-B(PP5)'!$D$49"]
["pp5_bl3_2_13_units_out",{"$f":"'T2-B(PP5)'!$G$49","v":0},"#'T2-B(PP5)'!$G$49"]
["pp5_bl3_2_14_name",{"$f":"'T2-B(PP5)'!$B$50","v":0},"#'T2-B(PP5)'!$B$50"]
["pp5_bl3_2_14_rate_in",{"$f":"'T2-B(PP5)'!$E$50","v":0},"#'T2-B(PP5)'!$E$50"]
["pp5_bl3_2_14_rate_out",{"$f":"'T2-B(PP5)'!$H$50","v":0},"#'T2-B(PP5)'!$H$50"]
["pp5_bl3_2_14_total",{"$f":"'T2-B(PP5)'!$J$50","v":0},"#'T2-B(PP5)'!$J$50"]
["pp5_bl3_2_14_total_in",{"$f":"'T2-B(PP5)'!$F$50","v":0},"#'T2-B(PP5)'!$F$50"]
["pp5_bl3_2_14_total_out",{"$f":"'T2-B(PP5)'!$I$50","v":0},"#'T2-B(PP5)'!$I$50"]
["pp5_bl3_2_14_unit",{"$f":"'T2-B(PP5)'!$C$50","v":0},"#'T2-B(PP5)'!$C$50"]
["pp5_bl3_2_14_unit_in",{"$f":"'T2-B(PP5)'!$D$50","v":0},"#'T2-B(PP5)'!$D$50"]
["pp5_bl3_2_14_units_out",{"$f":"'T2-B(PP5)'!$G$50","v":0},"#'T2-B(PP5)'!$G$50"]
["pp5_bl3_2_15_name",{"$f":"'T2-B(PP5)'!$B$51","v":0},"#'T2-B(PP5)'!$B$51"]
["pp5_bl3_2_15_rate_in",{"$f":"'T2-B(PP5)'!$E$51","v":0},"#'T2-B(PP5)'!$E$51"]
["pp5_bl3_2_15_rate_out",{"$f":"'T2-B(PP5)'!$H$51","v":0},"#'T2-B(PP5)'!$H$51"]
["pp5_bl3_2_15_total",{"$f":"'T2-B(PP5)'!$J$51","v":0},"#'T2-B(PP5)'!$J$51"]
["pp5_bl3_2_15_total_in",{"$f":"'T2-B(PP5)'!$F$51","v":0},"#'T2-B(PP5)'!$F$51"]
["pp5_bl3_2_15_total_out",{"$f":"'T2-B(PP5)'!$I$51","v":0},"#'T2-B(PP5)'!$I$51"]
["pp5_bl3_2_15_unit",{"$f":"'T2-B(PP5)'!$C$51","v":0},"#'T2-B(PP5)'!$C$51"]
["pp5_bl3_2_15_unit_in",{"$f":"'T2-B(PP5)'!$D$51","v":0},"#'T2-B(PP5)'!$D$51"]
["pp5_bl3_2_15_units_out",{"$f":"'T2-B(PP5)'!$G$51","v":0},"#'T2-B(PP5)'!$G$51"]
["pp5_bl3_2_16_name",{"$f":"'T2-B(PP5)'!$B$52","v":0},"#'T2-B(PP5)'!$B$52"]
["pp5_bl3_2_16_rate_in",{"$f":"'T2-B(PP5)'!$E$52","v":0},"#'T2-B(PP5)'!$E$52"]
["pp5_bl3_2_16_rate_out",{"$f":"'T2-B(PP5)'!$H$52","v":0},"#'T2-B(PP5)'!$H$52"]
["pp5_bl3_2_16_total",{"$f":"'T2-B(PP5)'!$J$52","v":0},"#'T2-B(PP5)'!$J$52"]
["pp5_bl3_2_16_total_in",{"$f":"'T2-B(PP5)'!$F$52","v":0},"#'T2-B(PP5)'!$F$52"]
["pp5_bl3_2_16_total_out",{"$f":"'T2-B(PP5)'!$I$52","v":0},"#'T2-B(PP5)'!$I$52"]
["pp5_bl3_2_16_unit",{"$f":"'T2-B(PP5)'!$C$52","v":0},"#'T2-B(PP5)'!$C$52"]
["pp5_bl3_2_16_unit_in",{"$f":"'T2-B(PP5)'!$D$52","v":0},"#'T2-B(PP5)'!$D$52"]
["pp5_bl3_2_16_units_out",{"$f":"'T2-B(PP5)'!$G$52","v":0},"#'T2-B(PP5)'!$G$52"]
["pp5_bl3_2_17_name",{"$f":"'T2-B(PP5)'!$B$53","v":0},"#'T2-B(PP5)'!$B$53"]
["pp5_bl3_2_17_rate_in",{"$f":"'T2-B(PP5)'!$E$53","v":0},"#'T2-B(PP5)'!$E$53"]
["pp5_bl3_2_17_rate_out",{"$f":"'T2-B(PP5)'!$H$53","v":0},"#'T2-B(PP5)'!$H$53"]
["pp5_bl3_2_17_total",{"$f":"'T2-B(PP5)'!$J$53","v":0},"#'T2-B(PP5)'!$J$53"]
["pp5_bl3_2_17_total_in",{"$f":"'T2-B(PP5)'!$F$53","v":0},"#'T2-B(PP5)'!$F$53"]
["pp5_bl3_2_17_total_out",{"$f":"'T2-B(PP5)'!$I$53","v":0},"#'T2-B(PP5)'!$I$53"]
["pp5_bl3_2_17_unit",{"$f":"'T2-B(PP5)'!$C$53","v":0},"#'T2-B(PP5)'!$C$53"]
["pp5_bl3_2_17_unit_in",{"$f":"'T2-B(PP5)'!$D$53","v":0},"#'T2-B(PP5)'!$D$53"]
["pp5_bl3_2_17_units_out",{"$f":"'T2-B(PP5)'!$G$53","v":0},"#'T2-B(PP5)'!$G$53"]
["pp5_bl3_2_18_name",{"$f":"'T2-B(PP5)'!$B$54","v":0},"#'T2-B(PP5)'!$B$54"]
["pp5_bl3_2_18_rate_in",{"$f":"'T2-B(PP5)'!$E$54","v":0},"#'T2-B(PP5)'!$E$54"]
["pp5_bl3_2_18_rate_out",{"$f":"'T2-B(PP5)'!$H$54","v":0},"#'T2-B(PP5)'!$H$54"]
["pp5_bl3_2_18_total",{"$f":"'T2-B(PP5)'!$J$54","v":0},"#'T2-B(PP5)'!$J$54"]
["pp5_bl3_2_18_total_in",{"$f":"'T2-B(PP5)'!$F$54","v":0},"#'T2-B(PP5)'!$F$54"]
["pp5_bl3_2_18_total_out",{"$f":"'T2-B(PP5)'!$I$54","v":0},"#'T2-B(PP5)'!$I$54"]
["pp5_bl3_2_18_unit",{"$f":"'T2-B(PP5)'!$C$54","v":0},"#'T2-B(PP5)'!$C$54"]
["pp5_bl3_2_18_unit_in",{"$f":"'T2-B(PP5)'!$D$54","v":0},"#'T2-B(PP5)'!$D$54"]
["pp5_bl3_2_18_units_out",{"$f":"'T2-B(PP5)'!$G$54","v":0},"#'T2-B(PP5)'!$G$54"]
["pp5_bl3_2_19_name",{"$f":"'T2-B(PP5)'!$B$55","v":0},"#'T2-B(PP5)'!$B$55"]
["pp5_bl3_2_19_rate_in",{"$f":"'T2-B(PP5)'!$E$55","v":0},"#'T2-B(PP5)'!$E$55"]
["pp5_bl3_2_19_rate_out",{"$f":"'T2-B(PP5)'!$H$55","v":0},"#'T2-B(PP5)'!$H$55"]
["pp5_bl3_2_19_total",{"$f":"'T2-B(PP5)'!$J$55","v":0},"#'T2-B(PP5)'!$J$55"]
["pp5_bl3_2_19_total_in",{"$f":"'T2-B(PP5)'!$F$55","v":0},"#'T2-B(PP5)'!$F$55"]
["pp5_bl3_2_19_total_out",{"$f":"'T2-B(PP5)'!$I$55","v":0},"#'T2-B(PP5)'!$I$55"]
["pp5_bl3_2_19_unit",{"$f":"'T2-B(PP5)'!$C$55","v":0},"#'T2-B(PP5)'!$C$55"]
["pp5_bl3_2_19_unit_in",{"$f":"'T2-B(PP5)'!$D$55","v":0},"#'T2-B(PP5)'!$D$55"]
["pp5_bl3_2_19_units_out",{"$f":"'T2-B(PP5)'!$G$55","v":0},"#'T2-B(PP5)'!$G$55"]
["pp5_bl3_2_2_name",{"$f":"'T2-B(PP5)'!$B$38","v":0},"#'T2-B(PP5)'!$B$38"]
["pp5_bl3_2_2_rate_in",{"$f":"'T2-B(PP5)'!$E$38","v":0},"#'T2-B(PP5)'!$E$38"]
["pp5_bl3_2_2_rate_out",{"$f":"'T2-B(PP5)'!$H$38","v":0},"#'T2-B(PP5)'!$H$38"]
["pp5_bl3_2_2_total",{"$f":"'T2-B(PP5)'!$J$38","v":0},"#'T2-B(PP5)'!$J$38"]
["pp5_bl3_2_2_total_in",{"$f":"'T2-B(PP5)'!$F$38","v":0},"#'T2-B(PP5)'!$F$38"]
["pp5_bl3_2_2_total_out",{"$f":"'T2-B(PP5)'!$I$38","v":0},"#'T2-B(PP5)'!$I$38"]
["pp5_bl3_2_2_unit",{"$f":"'T2-B(PP5)'!$C$38","v":0},"#'T2-B(PP5)'!$C$38"]
["pp5_bl3_2_2_unit_in",{"$f":"'T2-B(PP5)'!$D$38","v":0},"#'T2-B(PP5)'!$D$38"]
["pp5_bl3_2_2_units_out",{"$f":"'T2-B(PP5)'!$G$38","v":0},"#'T2-B(PP5)'!$G$38"]
["pp5_bl3_2_20_name",{"$f":"'T2-B(PP5)'!$B$56","v":0},"#'T2-B(PP5)'!$B$56"]
["pp5_bl3_2_20_rate_in",{"$f":"'T2-B(PP5)'!$E$56","v":0},"#'T2-B(PP5)'!$E$56"]
["pp5_bl3_2_20_rate_out",{"$f":"'T2-B(PP5)'!$H$56","v":0},"#'T2-B(PP5)'!$H$56"]
["pp5_bl3_2_20_total",{"$f":"'T2-B(PP5)'!$J$56","v":0},"#'T2-B(PP5)'!$J$56"]
["pp5_bl3_2_20_total_in",{"$f":"'T2-B(PP5)'!$F$56","v":0},"#'T2-B(PP5)'!$F$56"]
["pp5_bl3_2_20_total_out",{"$f":"'T2-B(PP5)'!$I$56","v":0},"#'T2-B(PP5)'!$I$56"]
["pp5_bl3_2_20_unit",{"$f":"'T2-B(PP5)'!$C$56","v":0},"#'T2-B(PP5)'!$C$56"]
["pp5_bl3_2_20_unit_in",{"$f":"'T2-B(PP5)'!$D$56","v":0},"#'T2-B(PP5)'!$D$56"]
["pp5_bl3_2_20_units_out",{"$f":"'T2-B(PP5)'!$G$56","v":0},"#'T2-B(PP5)'!$G$56"]
["pp5_bl3_2_3_name",{"$f":"'T2-B(PP5)'!$B$39","v":0},"#'T2-B(PP5)'!$B$39"]
["pp5_bl3_2_3_rate_in",{"$f":"'T2-B(PP5)'!$E$39","v":0},"#'T2-B(PP5)'!$E$39"]
["pp5_bl3_2_3_rate_out",{"$f":"'T2-B(PP5)'!$H$39","v":0},"#'T2-B(PP5)'!$H$39"]
["pp5_bl3_2_3_total",{"$f":"'T2-B(PP5)'!$J$39","v":0},"#'T2-B(PP5)'!$J$39"]
["pp5_bl3_2_3_total_in",{"$f":"'T2-B(PP5)'!$F$39","v":0},"#'T2-B(PP5)'!$F$39"]
["pp5_bl3_2_3_total_out",{"$f":"'T2-B(PP5)'!$I$39","v":0},"#'T2-B(PP5)'!$I$39"]
["pp5_bl3_2_3_unit",{"$f":"'T2-B(PP5)'!$C$39","v":0},"#'T2-B(PP5)'!$C$39"]
["pp5_bl3_2_3_unit_in",{"$f":"'T2-B(PP5)'!$D$39","v":0},"#'T2-B(PP5)'!$D$39"]
["pp5_bl3_2_3_units_out",{"$f":"'T2-B(PP5)'!$G$39","v":0},"#'T2-B(PP5)'!$G$39"]
["pp5_bl3_2_4_name",{"$f":"'T2-B(PP5)'!$B$40","v":0},"#'T2-B(PP5)'!$B$40"]
["pp5_bl3_2_4_rate_in",{"$f":"'T2-B(PP5)'!$E$40","v":0},"#'T2-B(PP5)'!$E$40"]
["pp5_bl3_2_4_rate_out",{"$f":"'T2-B(PP5)'!$H$40","v":0},"#'T2-B(PP5)'!$H$40"]
["pp5_bl3_2_4_total",{"$f":"'T2-B(PP5)'!$J$40","v":0},"#'T2-B(PP5)'!$J$40"]
["pp5_bl3_2_4_total_in",{"$f":"'T2-B(PP5)'!$F$40","v":0},"#'T2-B(PP5)'!$F$40"]
["pp5_bl3_2_4_total_out",{"$f":"'T2-B(PP5)'!$I$40","v":0},"#'T2-B(PP5)'!$I$40"]
["pp5_bl3_2_4_unit",{"$f":"'T2-B(PP5)'!$C$40","v":0},"#'T2-B(PP5)'!$C$40"]
["pp5_bl3_2_4_unit_in",{"$f":"'T2-B(PP5)'!$D$40","v":0},"#'T2-B(PP5)'!$D$40"]
["pp5_bl3_2_4_units_out",{"$f":"'T2-B(PP5)'!$G$40","v":0},"#'T2-B(PP5)'!$G$40"]
["pp5_bl3_2_5_name",{"$f":"'T2-B(PP5)'!$B$41","v":0},"#'T2-B(PP5)'!$B$41"]
["pp5_bl3_2_5_rate_in",{"$f":"'T2-B(PP5)'!$E$41","v":0},"#'T2-B(PP5)'!$E$41"]
["pp5_bl3_2_5_rate_out",{"$f":"'T2-B(PP5)'!$H$41","v":0},"#'T2-B(PP5)'!$H$41"]
["pp5_bl3_2_5_total",{"$f":"'T2-B(PP5)'!$J$41","v":0},"#'T2-B(PP5)'!$J$41"]
["pp5_bl3_2_5_total_in",{"$f":"'T2-B(PP5)'!$F$41","v":0},"#'T2-B(PP5)'!$F$41"]
["pp5_bl3_2_5_total_out",{"$f":"'T2-B(PP5)'!$I$41","v":0},"#'T2-B(PP5)'!$I$41"]
["pp5_bl3_2_5_unit",{"$f":"'T2-B(PP5)'!$C$41","v":0},"#'T2-B(PP5)'!$C$41"]
["pp5_bl3_2_5_unit_in",{"$f":"'T2-B(PP5)'!$D$41","v":0},"#'T2-B(PP5)'!$D$41"]
["pp5_bl3_2_5_units_out",{"$f":"'T2-B(PP5)'!$G$41","v":0},"#'T2-B(PP5)'!$G$41"]
["pp5_bl3_2_6_name",{"$f":"'T2-B(PP5)'!$B$42","v":0},"#'T2-B(PP5)'!$B$42"]
["pp5_bl3_2_6_rate_in",{"$f":"'T2-B(PP5)'!$E$42","v":0},"#'T2-B(PP5)'!$E$42"]
["pp5_bl3_2_6_rate_out",{"$f":"'T2-B(PP5)'!$H$42","v":0},"#'T2-B(PP5)'!$H$42"]
["pp5_bl3_2_6_total",{"$f":"'T2-B(PP5)'!$J$42","v":0},"#'T2-B(PP5)'!$J$42"]
["pp5_bl3_2_6_total_in",{"$f":"'T2-B(PP5)'!$F$42","v":0},"#'T2-B(PP5)'!$F$42"]
["pp5_bl3_2_6_total_out",{"$f":"'T2-B(PP5)'!$I$42","v":0},"#'T2-B(PP5)'!$I$42"]
["pp5_bl3_2_6_unit",{"$f":"'T2-B(PP5)'!$C$42","v":0},"#'T2-B(PP5)'!$C$42"]
["pp5_bl3_2_6_unit_in",{"$f":"'T2-B(PP5)'!$D$42","v":0},"#'T2-B(PP5)'!$D$42"]
["pp5_bl3_2_6_units_out",{"$f":"'T2-B(PP5)'!$G$42","v":0},"#'T2-B(PP5)'!$G$42"]
["pp5_bl3_2_7_name",{"$f":"'T2-B(PP5)'!$B$43","v":0},"#'T2-B(PP5)'!$B$43"]
["pp5_bl3_2_7_rate_in",{"$f":"'T2-B(PP5)'!$E$43","v":0},"#'T2-B(PP5)'!$E$43"]
["pp5_bl3_2_7_rate_out",{"$f":"'T2-B(PP5)'!$H$43","v":0},"#'T2-B(PP5)'!$H$43"]
["pp5_bl3_2_7_total",{"$f":"'T2-B(PP5)'!$J$43","v":0},"#'T2-B(PP5)'!$J$43"]
["pp5_bl3_2_7_total_in",{"$f":"'T2-B(PP5)'!$F$43","v":0},"#'T2-B(PP5)'!$F$43"]
["pp5_bl3_2_7_total_out",{"$f":"'T2-B(PP5)'!$I$43","v":0},"#'T2-B(PP5)'!$I$43"]
["pp5_bl3_2_7_unit",{"$f":"'T2-B(PP5)'!$C$43","v":0},"#'T2-B(PP5)'!$C$43"]
["pp5_bl3_2_7_unit_in",{"$f":"'T2-B(PP5)'!$D$43","v":0},"#'T2-B(PP5)'!$D$43"]
["pp5_bl3_2_7_units_out",{"$f":"'T2-B(PP5)'!$G$43","v":0},"#'T2-B(PP5)'!$G$43"]
["pp5_bl3_2_8_name",{"$f":"'T2-B(PP5)'!$B$44","v":0},"#'T2-B(PP5)'!$B$44"]
["pp5_bl3_2_8_rate_in",{"$f":"'T2-B(PP5)'!$E$44","v":0},"#'T2-B(PP5)'!$E$44"]
["pp5_bl3_2_8_rate_out",{"$f":"'T2-B(PP5)'!$H$44","v":0},"#'T2-B(PP5)'!$H$44"]
["pp5_bl3_2_8_total",{"$f":"'T2-B(PP5)'!$J$44","v":0},"#'T2-B(PP5)'!$J$44"]
["pp5_bl3_2_8_total_in",{"$f":"'T2-B(PP5)'!$F$44","v":0},"#'T2-B(PP5)'!$F$44"]
["pp5_bl3_2_8_total_out",{"$f":"'T2-B(PP5)'!$I$44","v":0},"#'T2-B(PP5)'!$I$44"]
["pp5_bl3_2_8_unit",{"$f":"'T2-B(PP5)'!$C$44","v":0},"#'T2-B(PP5)'!$C$44"]
["pp5_bl3_2_8_unit_in",{"$f":"'T2-B(PP5)'!$D$44","v":0},"#'T2-B(PP5)'!$D$44"]
["pp5_bl3_2_8_units_out",{"$f":"'T2-B(PP5)'!$G$44","v":0},"#'T2-B(PP5)'!$G$44"]
["pp5_bl3_2_9_name",{"$f":"'T2-B(PP5)'!$B$45","v":0},"#'T2-B(PP5)'!$B$45"]
["pp5_bl3_2_9_rate_in",{"$f":"'T2-B(PP5)'!$E$45","v":0},"#'T2-B(PP5)'!$E$45"]
["pp5_bl3_2_9_rate_out",{"$f":"'T2-B(PP5)'!$H$45","v":0},"#'T2-B(PP5)'!$H$45"]
["pp5_bl3_2_9_total",{"$f":"'T2-B(PP5)'!$J$45","v":0},"#'T2-B(PP5)'!$J$45"]
["pp5_bl3_2_9_total_in",{"$f":"'T2-B(PP5)'!$F$45","v":0},"#'T2-B(PP5)'!$F$45"]
["pp5_bl3_2_9_total_out",{"$f":"'T2-B(PP5)'!$I$45","v":0},"#'T2-B(PP5)'!$I$45"]
["pp5_bl3_2_9_unit",{"$f":"'T2-B(PP5)'!$C$45","v":0},"#'T2-B(PP5)'!$C$45"]
["pp5_bl3_2_9_unit_in",{"$f":"'T2-B(PP5)'!$D$45","v":0},"#'T2-B(PP5)'!$D$45"]
["pp5_bl3_2_9_units_out",{"$f":"'T2-B(PP5)'!$G$45","v":0},"#'T2-B(PP5)'!$G$45"]
["pp5_bl3_2_total",{"$f":"'T2-B(PP5)'!$J$36","v":0},"#'T2-B(PP5)'!$J$36"]
["pp5_bl3_2_total_in",{"$f":"'T2-B(PP5)'!$F$36","v":0},"#'T2-B(PP5)'!$F$36"]
["pp5_bl3_2_total_out",{"$f":"'T2-B(PP5)'!$I$36","v":0},"#'T2-B(PP5)'!$I$36"]
["pp5_bl3_3_1_name",{"$f":"'T2-B(PP5)'!$B$58","v":0},"#'T2-B(PP5)'!$B$58"]
["pp5_bl3_3_1_rate_in",{"$f":"'T2-B(PP5)'!$E$58","v":0},"#'T2-B(PP5)'!$E$58"]
["pp5_bl3_3_1_rate_out",{"$f":"'T2-B(PP5)'!$H$58","v":0},"#'T2-B(PP5)'!$H$58"]
["pp5_bl3_3_1_total",{"$f":"'T2-B(PP5)'!$J$58","v":0},"#'T2-B(PP5)'!$J$58"]
["pp5_bl3_3_1_total_in",{"$f":"'T2-B(PP5)'!$F$58","v":0},"#'T2-B(PP5)'!$F$58"]
["pp5_bl3_3_1_total_out",{"$f":"'T2-B(PP5)'!$I$58","v":0},"#'T2-B(PP5)'!$I$58"]
["pp5_bl3_3_1_unit",{"$f":"'T2-B(PP5)'!$C$58","v":0},"#'T2-B(PP5)'!$C$58"]
["pp5_bl3_3_1_unit_in",{"$f":"'T2-B(PP5)'!$D$58","v":0},"#'T2-B(PP5)'!$D$58"]
["pp5_bl3_3_1_units_out",{"$f":"'T2-B(PP5)'!$G$58","v":0},"#'T2-B(PP5)'!$G$58"]
["pp5_bl3_3_10_name",{"$f":"'T2-B(PP5)'!$B$67","v":0},"#'T2-B(PP5)'!$B$67"]
["pp5_bl3_3_10_rate_in",{"$f":"'T2-B(PP5)'!$E$67","v":0},"#'T2-B(PP5)'!$E$67"]
["pp5_bl3_3_10_rate_out",{"$f":"'T2-B(PP5)'!$H$67","v":0},"#'T2-B(PP5)'!$H$67"]
["pp5_bl3_3_10_total",{"$f":"'T2-B(PP5)'!$J$67","v":0},"#'T2-B(PP5)'!$J$67"]
["pp5_bl3_3_10_total_in",{"$f":"'T2-B(PP5)'!$F$67","v":0},"#'T2-B(PP5)'!$F$67"]
["pp5_bl3_3_10_total_out",{"$f":"'T2-B(PP5)'!$I$67","v":0},"#'T2-B(PP5)'!$I$67"]
["pp5_bl3_3_10_unit",{"$f":"'T2-B(PP5)'!$C$67","v":0},"#'T2-B(PP5)'!$C$67"]
["pp5_bl3_3_10_unit_in",{"$f":"'T2-B(PP5)'!$D$67","v":0},"#'T2-B(PP5)'!$D$67"]
["pp5_bl3_3_10_units_out",{"$f":"'T2-B(PP5)'!$G$67","v":0},"#'T2-B(PP5)'!$G$67"]
["pp5_bl3_3_11_name",{"$f":"'T2-B(PP5)'!$B$68","v":0},"#'T2-B(PP5)'!$B$68"]
["pp5_bl3_3_11_rate_in",{"$f":"'T2-B(PP5)'!$E$68","v":0},"#'T2-B(PP5)'!$E$68"]
["pp5_bl3_3_11_rate_out",{"$f":"'T2-B(PP5)'!$H$68","v":0},"#'T2-B(PP5)'!$H$68"]
["pp5_bl3_3_11_total",{"$f":"'T2-B(PP5)'!$J$68","v":0},"#'T2-B(PP5)'!$J$68"]
["pp5_bl3_3_11_total_in",{"$f":"'T2-B(PP5)'!$F$68","v":0},"#'T2-B(PP5)'!$F$68"]
["pp5_bl3_3_11_total_out",{"$f":"'T2-B(PP5)'!$I$68","v":0},"#'T2-B(PP5)'!$I$68"]
["pp5_bl3_3_11_unit",{"$f":"'T2-B(PP5)'!$C$68","v":0},"#'T2-B(PP5)'!$C$68"]
["pp5_bl3_3_11_unit_in",{"$f":"'T2-B(PP5)'!$D$68","v":0},"#'T2-B(PP5)'!$D$68"]
["pp5_bl3_3_11_units_out",{"$f":"'T2-B(PP5)'!$G$68","v":0},"#'T2-B(PP5)'!$G$68"]
["pp5_bl3_3_12_name",{"$f":"'T2-B(PP5)'!$B$69","v":0},"#'T2-B(PP5)'!$B$69"]
["pp5_bl3_3_12_rate_in",{"$f":"'T2-B(PP5)'!$E$69","v":0},"#'T2-B(PP5)'!$E$69"]
["pp5_bl3_3_12_rate_out",{"$f":"'T2-B(PP5)'!$H$69","v":0},"#'T2-B(PP5)'!$H$69"]
["pp5_bl3_3_12_total",{"$f":"'T2-B(PP5)'!$J$69","v":0},"#'T2-B(PP5)'!$J$69"]
["pp5_bl3_3_12_total_in",{"$f":"'T2-B(PP5)'!$F$69","v":0},"#'T2-B(PP5)'!$F$69"]
["pp5_bl3_3_12_total_out",{"$f":"'T2-B(PP5)'!$I$69","v":0},"#'T2-B(PP5)'!$I$69"]
["pp5_bl3_3_12_unit",{"$f":"'T2-B(PP5)'!$C$69","v":0},"#'T2-B(PP5)'!$C$69"]
["pp5_bl3_3_12_unit_in",{"$f":"'T2-B(PP5)'!$D$69","v":0},"#'T2-B(PP5)'!$D$69"]
["pp5_bl3_3_12_units_out",{"$f":"'T2-B(PP5)'!$G$69","v":0},"#'T2-B(PP5)'!$G$69"]
["pp5_bl3_3_13_name",{"$f":"'T2-B(PP5)'!$B$70","v":0},"#'T2-B(PP5)'!$B$70"]
["pp5_bl3_3_13_rate_in",{"$f":"'T2-B(PP5)'!$E$70","v":0},"#'T2-B(PP5)'!$E$70"]
["pp5_bl3_3_13_rate_out",{"$f":"'T2-B(PP5)'!$H$70","v":0},"#'T2-B(PP5)'!$H$70"]
["pp5_bl3_3_13_total",{"$f":"'T2-B(PP5)'!$J$70","v":0},"#'T2-B(PP5)'!$J$70"]
["pp5_bl3_3_13_total_in",{"$f":"'T2-B(PP5)'!$F$70","v":0},"#'T2-B(PP5)'!$F$70"]
["pp5_bl3_3_13_total_out",{"$f":"'T2-B(PP5)'!$I$70","v":0},"#'T2-B(PP5)'!$I$70"]
["pp5_bl3_3_13_unit",{"$f":"'T2-B(PP5)'!$C$70","v":0},"#'T2-B(PP5)'!$C$70"]
["pp5_bl3_3_13_unit_in",{"$f":"'T2-B(PP5)'!$D$70","v":0},"#'T2-B(PP5)'!$D$70"]
["pp5_bl3_3_13_units_out",{"$f":"'T2-B(PP5)'!$G$70","v":0},"#'T2-B(PP5)'!$G$70"]
["pp5_bl3_3_14_name",{"$f":"'T2-B(PP5)'!$B$71","v":0},"#'T2-B(PP5)'!$B$71"]
["pp5_bl3_3_14_rate_in",{"$f":"'T2-B(PP5)'!$E$71","v":0},"#'T2-B(PP5)'!$E$71"]
["pp5_bl3_3_14_rate_out",{"$f":"'T2-B(PP5)'!$H$71","v":0},"#'T2-B(PP5)'!$H$71"]
["pp5_bl3_3_14_total",{"$f":"'T2-B(PP5)'!$J$71","v":0},"#'T2-B(PP5)'!$J$71"]
["pp5_bl3_3_14_total_in",{"$f":"'T2-B(PP5)'!$F$71","v":0},"#'T2-B(PP5)'!$F$71"]
["pp5_bl3_3_14_total_out",{"$f":"'T2-B(PP5)'!$I$71","v":0},"#'T2-B(PP5)'!$I$71"]
["pp5_bl3_3_14_unit",{"$f":"'T2-B(PP5)'!$C$71","v":0},"#'T2-B(PP5)'!$C$71"]
["pp5_bl3_3_14_unit_in",{"$f":"'T2-B(PP5)'!$D$71","v":0},"#'T2-B(PP5)'!$D$71"]
["pp5_bl3_3_14_units_out",{"$f":"'T2-B(PP5)'!$G$71","v":0},"#'T2-B(PP5)'!$G$71"]
["pp5_bl3_3_15_name",{"$f":"'T2-B(PP5)'!$B$72","v":0},"#'T2-B(PP5)'!$B$72"]
["pp5_bl3_3_15_rate_in",{"$f":"'T2-B(PP5)'!$E$72","v":0},"#'T2-B(PP5)'!$E$72"]
["pp5_bl3_3_15_rate_out",{"$f":"'T2-B(PP5)'!$H$72","v":0},"#'T2-B(PP5)'!$H$72"]
["pp5_bl3_3_15_total",{"$f":"'T2-B(PP5)'!$J$72","v":0},"#'T2-B(PP5)'!$J$72"]
["pp5_bl3_3_15_total_in",{"$f":"'T2-B(PP5)'!$F$72","v":0},"#'T2-B(PP5)'!$F$72"]
["pp5_bl3_3_15_total_out",{"$f":"'T2-B(PP5)'!$I$72","v":0},"#'T2-B(PP5)'!$I$72"]
["pp5_bl3_3_15_unit",{"$f":"'T2-B(PP5)'!$C$72","v":0},"#'T2-B(PP5)'!$C$72"]
["pp5_bl3_3_15_unit_in",{"$f":"'T2-B(PP5)'!$D$72","v":0},"#'T2-B(PP5)'!$D$72"]
["pp5_bl3_3_15_units_out",{"$f":"'T2-B(PP5)'!$G$72","v":0},"#'T2-B(PP5)'!$G$72"]
["pp5_bl3_3_16_name",{"$f":"'T2-B(PP5)'!$B$73","v":0},"#'T2-B(PP5)'!$B$73"]
["pp5_bl3_3_16_rate_in",{"$f":"'T2-B(PP5)'!$E$73","v":0},"#'T2-B(PP5)'!$E$73"]
["pp5_bl3_3_16_rate_out",{"$f":"'T2-B(PP5)'!$H$73","v":0},"#'T2-B(PP5)'!$H$73"]
["pp5_bl3_3_16_total",{"$f":"'T2-B(PP5)'!$J$73","v":0},"#'T2-B(PP5)'!$J$73"]
["pp5_bl3_3_16_total_in",{"$f":"'T2-B(PP5)'!$F$73","v":0},"#'T2-B(PP5)'!$F$73"]
["pp5_bl3_3_16_total_out",{"$f":"'T2-B(PP5)'!$I$73","v":0},"#'T2-B(PP5)'!$I$73"]
["pp5_bl3_3_16_unit",{"$f":"'T2-B(PP5)'!$C$73","v":0},"#'T2-B(PP5)'!$C$73"]
["pp5_bl3_3_16_unit_in",{"$f":"'T2-B(PP5)'!$D$73","v":0},"#'T2-B(PP5)'!$D$73"]
["pp5_bl3_3_16_units_out",{"$f":"'T2-B(PP5)'!$G$73","v":0},"#'T2-B(PP5)'!$G$73"]
["pp5_bl3_3_17_name",{"$f":"'T2-B(PP5)'!$B$74","v":0},"#'T2-B(PP5)'!$B$74"]
["pp5_bl3_3_17_rate_in",{"$f":"'T2-B(PP5)'!$E$74","v":0},"#'T2-B(PP5)'!$E$74"]
["pp5_bl3_3_17_rate_out",{"$f":"'T2-B(PP5)'!$H$74","v":0},"#'T2-B(PP5)'!$H$74"]
["pp5_bl3_3_17_total",{"$f":"'T2-B(PP5)'!$J$74","v":0},"#'T2-B(PP5)'!$J$74"]
["pp5_bl3_3_17_total_in",{"$f":"'T2-B(PP5)'!$F$74","v":0},"#'T2-B(PP5)'!$F$74"]
["pp5_bl3_3_17_total_out",{"$f":"'T2-B(PP5)'!$I$74","v":0},"#'T2-B(PP5)'!$I$74"]
["pp5_bl3_3_17_unit",{"$f":"'T2-B(PP5)'!$C$74","v":0},"#'T2-B(PP5)'!$C$74"]
["pp5_bl3_3_17_unit_in",{"$f":"'T2-B(PP5)'!$D$74","v":0},"#'T2-B(PP5)'!$D$74"]
["pp5_bl3_3_17_units_out",{"$f":"'T2-B(PP5)'!$G$74","v":0},"#'T2-B(PP5)'!$G$74"]
["pp5_bl3_3_18_name",{"$f":"'T2-B(PP5)'!$B$75","v":0},"#'T2-B(PP5)'!$B$75"]
["pp5_bl3_3_18_rate_in",{"$f":"'T2-B(PP5)'!$E$75","v":0},"#'T2-B(PP5)'!$E$75"]
["pp5_bl3_3_18_rate_out",{"$f":"'T2-B(PP5)'!$H$75","v":0},"#'T2-B(PP5)'!$H$75"]
["pp5_bl3_3_18_total",{"$f":"'T2-B(PP5)'!$J$75","v":0},"#'T2-B(PP5)'!$J$75"]
["pp5_bl3_3_18_total_in",{"$f":"'T2-B(PP5)'!$F$75","v":0},"#'T2-B(PP5)'!$F$75"]
["pp5_bl3_3_18_total_out",{"$f":"'T2-B(PP5)'!$I$75","v":0},"#'T2-B(PP5)'!$I$75"]
["pp5_bl3_3_18_unit",{"$f":"'T2-B(PP5)'!$C$75","v":0},"#'T2-B(PP5)'!$C$75"]
["pp5_bl3_3_18_unit_in",{"$f":"'T2-B(PP5)'!$D$75","v":0},"#'T2-B(PP5)'!$D$75"]
["pp5_bl3_3_18_units_out",{"$f":"'T2-B(PP5)'!$G$75","v":0},"#'T2-B(PP5)'!$G$75"]
["pp5_bl3_3_19_name",{"$f":"'T2-B(PP5)'!$B$76","v":0},"#'T2-B(PP5)'!$B$76"]
["pp5_bl3_3_19_rate_in",{"$f":"'T2-B(PP5)'!$E$76","v":0},"#'T2-B(PP5)'!$E$76"]
["pp5_bl3_3_19_rate_out",{"$f":"'T2-B(PP5)'!$H$76","v":0},"#'T2-B(PP5)'!$H$76"]
["pp5_bl3_3_19_total",{"$f":"'T2-B(PP5)'!$J$76","v":0},"#'T2-B(PP5)'!$J$76"]
["pp5_bl3_3_19_total_in",{"$f":"'T2-B(PP5)'!$F$76","v":0},"#'T2-B(PP5)'!$F$76"]
["pp5_bl3_3_19_total_out",{"$f":"'T2-B(PP5)'!$I$76","v":0},"#'T2-B(PP5)'!$I$76"]
["pp5_bl3_3_19_unit",{"$f":"'T2-B(PP5)'!$C$76","v":0},"#'T2-B(PP5)'!$C$76"]
["pp5_bl3_3_19_unit_in",{"$f":"'T2-B(PP5)'!$D$76","v":0},"#'T2-B(PP5)'!$D$76"]
["pp5_bl3_3_19_units_out",{"$f":"'T2-B(PP5)'!$G$76","v":0},"#'T2-B(PP5)'!$G$76"]
["pp5_bl3_3_2_name",{"$f":"'T2-B(PP5)'!$B$59","v":0},"#'T2-B(PP5)'!$B$59"]
["pp5_bl3_3_2_rate_in",{"$f":"'T2-B(PP5)'!$E$59","v":0},"#'T2-B(PP5)'!$E$59"]
["pp5_bl3_3_2_rate_out",{"$f":"'T2-B(PP5)'!$H$59","v":0},"#'T2-B(PP5)'!$H$59"]
["pp5_bl3_3_2_total",{"$f":"'T2-B(PP5)'!$J$59","v":0},"#'T2-B(PP5)'!$J$59"]
["pp5_bl3_3_2_total_in",{"$f":"'T2-B(PP5)'!$F$59","v":0},"#'T2-B(PP5)'!$F$59"]
["pp5_bl3_3_2_total_out",{"$f":"'T2-B(PP5)'!$I$59","v":0},"#'T2-B(PP5)'!$I$59"]
["pp5_bl3_3_2_unit",{"$f":"'T2-B(PP5)'!$C$59","v":0},"#'T2-B(PP5)'!$C$59"]
["pp5_bl3_3_2_unit_in",{"$f":"'T2-B(PP5)'!$D$59","v":0},"#'T2-B(PP5)'!$D$59"]
["pp5_bl3_3_2_units_out",{"$f":"'T2-B(PP5)'!$G$59","v":0},"#'T2-B(PP5)'!$G$59"]
["pp5_bl3_3_20_name",{"$f":"'T2-B(PP5)'!$B$77","v":0},"#'T2-B(PP5)'!$B$77"]
["pp5_bl3_3_20_rate_in",{"$f":"'T2-B(PP5)'!$E$77","v":0},"#'T2-B(PP5)'!$E$77"]
["pp5_bl3_3_20_rate_out",{"$f":"'T2-B(PP5)'!$H$77","v":0},"#'T2-B(PP5)'!$H$77"]
["pp5_bl3_3_20_total",{"$f":"'T2-B(PP5)'!$J$77","v":0},"#'T2-B(PP5)'!$J$77"]
["pp5_bl3_3_20_total_in",{"$f":"'T2-B(PP5)'!$F$77","v":0},"#'T2-B(PP5)'!$F$77"]
["pp5_bl3_3_20_total_out",{"$f":"'T2-B(PP5)'!$I$77","v":0},"#'T2-B(PP5)'!$I$77"]
["pp5_bl3_3_20_unit",{"$f":"'T2-B(PP5)'!$C$77","v":0},"#'T2-B(PP5)'!$C$77"]
["pp5_bl3_3_20_unit_in",{"$f":"'T2-B(PP5)'!$D$77","v":0},"#'T2-B(PP5)'!$D$77"]
["pp5_bl3_3_20_units_out",{"$f":"'T2-B(PP5)'!$G$77","v":0},"#'T2-B(PP5)'!$G$77"]
["pp5_bl3_3_3_name",{"$f":"'T2-B(PP5)'!$B$60","v":0},"#'T2-B(PP5)'!$B$60"]
["pp5_bl3_3_3_rate_in",{"$f":"'T2-B(PP5)'!$E$60","v":0},"#'T2-B(PP5)'!$E$60"]
["pp5_bl3_3_3_rate_out",{"$f":"'T2-B(PP5)'!$H$60","v":0},"#'T2-B(PP5)'!$H$60"]
["pp5_bl3_3_3_total",{"$f":"'T2-B(PP5)'!$J$60","v":0},"#'T2-B(PP5)'!$J$60"]
["pp5_bl3_3_3_total_in",{"$f":"'T2-B(PP5)'!$F$60","v":0},"#'T2-B(PP5)'!$F$60"]
["pp5_bl3_3_3_total_out",{"$f":"'T2-B(PP5)'!$I$60","v":0},"#'T2-B(PP5)'!$I$60"]
["pp5_bl3_3_3_unit",{"$f":"'T2-B(PP5)'!$C$60","v":0},"#'T2-B(PP5)'!$C$60"]
["pp5_bl3_3_3_unit_in",{"$f":"'T2-B(PP5)'!$D$60","v":0},"#'T2-B(PP5)'!$D$60"]
["pp5_bl3_3_3_units_out",{"$f":"'T2-B(PP5)'!$G$60","v":0},"#'T2-B(PP5)'!$G$60"]
["pp5_bl3_3_4_name",{"$f":"'T2-B(PP5)'!$B$61","v":0},"#'T2-B(PP5)'!$B$61"]
["pp5_bl3_3_4_rate_in",{"$f":"'T2-B(PP5)'!$E$61","v":0},"#'T2-B(PP5)'!$E$61"]
["pp5_bl3_3_4_rate_out",{"$f":"'T2-B(PP5)'!$H$61","v":0},"#'T2-B(PP5)'!$H$61"]
["pp5_bl3_3_4_total",{"$f":"'T2-B(PP5)'!$J$61","v":0},"#'T2-B(PP5)'!$J$61"]
["pp5_bl3_3_4_total_in",{"$f":"'T2-B(PP5)'!$F$61","v":0},"#'T2-B(PP5)'!$F$61"]
["pp5_bl3_3_4_total_out",{"$f":"'T2-B(PP5)'!$I$61","v":0},"#'T2-B(PP5)'!$I$61"]
["pp5_bl3_3_4_unit",{"$f":"'T2-B(PP5)'!$C$61","v":0},"#'T2-B(PP5)'!$C$61"]
["pp5_bl3_3_4_unit_in",{"$f":"'T2-B(PP5)'!$D$61","v":0},"#'T2-B(PP5)'!$D$61"]
["pp5_bl3_3_4_units_out",{"$f":"'T2-B(PP5)'!$G$61","v":0},"#'T2-B(PP5)'!$G$61"]
["pp5_bl3_3_5_name",{"$f":"'T2-B(PP5)'!$B$62","v":0},"#'T2-B(PP5)'!$B$62"]
["pp5_bl3_3_5_rate_in",{"$f":"'T2-B(PP5)'!$E$62","v":0},"#'T2-B(PP5)'!$E$62"]
["pp5_bl3_3_5_rate_out",{"$f":"'T2-B(PP5)'!$H$62","v":0},"#'T2-B(PP5)'!$H$62"]
["pp5_bl3_3_5_total",{"$f":"'T2-B(PP5)'!$J$62","v":0},"#'T2-B(PP5)'!$J$62"]
["pp5_bl3_3_5_total_in",{"$f":"'T2-B(PP5)'!$F$62","v":0},"#'T2-B(PP5)'!$F$62"]
["pp5_bl3_3_5_total_out",{"$f":"'T2-B(PP5)'!$I$62","v":0},"#'T2-B(PP5)'!$I$62"]
["pp5_bl3_3_5_unit",{"$f":"'T2-B(PP5)'!$C$62","v":0},"#'T2-B(PP5)'!$C$62"]
["pp5_bl3_3_5_unit_in",{"$f":"'T2-B(PP5)'!$D$62","v":0},"#'T2-B(PP5)'!$D$62"]
["pp5_bl3_3_5_units_out",{"$f":"'T2-B(PP5)'!$G$62","v":0},"#'T2-B(PP5)'!$G$62"]
["pp5_bl3_3_6_name",{"$f":"'T2-B(PP5)'!$B$63","v":0},"#'T2-B(PP5)'!$B$63"]
["pp5_bl3_3_6_rate_in",{"$f":"'T2-B(PP5)'!$E$63","v":0},"#'T2-B(PP5)'!$E$63"]
["pp5_bl3_3_6_rate_out",{"$f":"'T2-B(PP5)'!$H$63","v":0},"#'T2-B(PP5)'!$H$63"]
["pp5_bl3_3_6_total",{"$f":"'T2-B(PP5)'!$J$63","v":0},"#'T2-B(PP5)'!$J$63"]
["pp5_bl3_3_6_total_in",{"$f":"'T2-B(PP5)'!$F$63","v":0},"#'T2-B(PP5)'!$F$63"]
["pp5_bl3_3_6_total_out",{"$f":"'T2-B(PP5)'!$I$63","v":0},"#'T2-B(PP5)'!$I$63"]
["pp5_bl3_3_6_unit",{"$f":"'T2-B(PP5)'!$C$63","v":0},"#'T2-B(PP5)'!$C$63"]
["pp5_bl3_3_6_unit_in",{"$f":"'T2-B(PP5)'!$D$63","v":0},"#'T2-B(PP5)'!$D$63"]
["pp5_bl3_3_6_units_out",{"$f":"'T2-B(PP5)'!$G$63","v":0},"#'T2-B(PP5)'!$G$63"]
["pp5_bl3_3_7_name",{"$f":"'T2-B(PP5)'!$B$64","v":0},"#'T2-B(PP5)'!$B$64"]
["pp5_bl3_3_7_rate_in",{"$f":"'T2-B(PP5)'!$E$64","v":0},"#'T2-B(PP5)'!$E$64"]
["pp5_bl3_3_7_rate_out",{"$f":"'T2-B(PP5)'!$H$64","v":0},"#'T2-B(PP5)'!$H$64"]
["pp5_bl3_3_7_total",{"$f":"'T2-B(PP5)'!$J$64","v":0},"#'T2-B(PP5)'!$J$64"]
["pp5_bl3_3_7_total_in",{"$f":"'T2-B(PP5)'!$F$64","v":0},"#'T2-B(PP5)'!$F$64"]
["pp5_bl3_3_7_total_out",{"$f":"'T2-B(PP5)'!$I$64","v":0},"#'T2-B(PP5)'!$I$64"]
["pp5_bl3_3_7_unit",{"$f":"'T2-B(PP5)'!$C$64","v":0},"#'T2-B(PP5)'!$C$64"]
["pp5_bl3_3_7_unit_in",{"$f":"'T2-B(PP5)'!$D$64","v":0},"#'T2-B(PP5)'!$D$64"]
["pp5_bl3_3_7_units_out",{"$f":"'T2-B(PP5)'!$G$64","v":0},"#'T2-B(PP5)'!$G$64"]
["pp5_bl3_3_8_name",{"$f":"'T2-B(PP5)'!$B$65","v":0},"#'T2-B(PP5)'!$B$65"]
["pp5_bl3_3_8_rate_in",{"$f":"'T2-B(PP5)'!$E$65","v":0},"#'T2-B(PP5)'!$E$65"]
["pp5_bl3_3_8_rate_out",{"$f":"'T2-B(PP5)'!$H$65","v":0},"#'T2-B(PP5)'!$H$65"]
["pp5_bl3_3_8_total",{"$f":"'T2-B(PP5)'!$J$65","v":0},"#'T2-B(PP5)'!$J$65"]
["pp5_bl3_3_8_total_in",{"$f":"'T2-B(PP5)'!$F$65","v":0},"#'T2-B(PP5)'!$F$65"]
["pp5_bl3_3_8_total_out",{"$f":"'T2-B(PP5)'!$I$65","v":0},"#'T2-B(PP5)'!$I$65"]
["pp5_bl3_3_8_unit",{"$f":"'T2-B(PP5)'!$C$65","v":0},"#'T2-B(PP5)'!$C$65"]
["pp5_bl3_3_8_unit_in",{"$f":"'T2-B(PP5)'!$D$65","v":0},"#'T2-B(PP5)'!$D$65"]
["pp5_bl3_3_8_units_out",{"$f":"'T2-B(PP5)'!$G$65","v":0},"#'T2-B(PP5)'!$G$65"]
["pp5_bl3_3_9_name",{"$f":"'T2-B(PP5)'!$B$66","v":0},"#'T2-B(PP5)'!$B$66"]
["pp5_bl3_3_9_rate_in",{"$f":"'T2-B(PP5)'!$E$66","v":0},"#'T2-B(PP5)'!$E$66"]
["pp5_bl3_3_9_rate_out",{"$f":"'T2-B(PP5)'!$H$66","v":0},"#'T2-B(PP5)'!$H$66"]
["pp5_bl3_3_9_total",{"$f":"'T2-B(PP5)'!$J$66","v":0},"#'T2-B(PP5)'!$J$66"]
["pp5_bl3_3_9_total_in",{"$f":"'T2-B(PP5)'!$F$66","v":0},"#'T2-B(PP5)'!$F$66"]
["pp5_bl3_3_9_total_out",{"$f":"'T2-B(PP5)'!$I$66","v":0},"#'T2-B(PP5)'!$I$66"]
["pp5_bl3_3_9_unit",{"$f":"'T2-B(PP5)'!$C$66","v":0},"#'T2-B(PP5)'!$C$66"]
["pp5_bl3_3_9_unit_in",{"$f":"'T2-B(PP5)'!$D$66","v":0},"#'T2-B(PP5)'!$D$66"]
["pp5_bl3_3_9_units_out",{"$f":"'T2-B(PP5)'!$G$66","v":0},"#'T2-B(PP5)'!$G$66"]
["pp5_bl3_3_total",{"$f":"'T2-B(PP5)'!$J$57","v":0},"#'T2-B(PP5)'!$J$57"]
["pp5_bl3_3_total_in",{"$f":"'T2-B(PP5)'!$F$57","v":0},"#'T2-B(PP5)'!$F$57"]
["pp5_bl3_3_total_out",{"$f":"'T2-B(PP5)'!$I$57","v":0},"#'T2-B(PP5)'!$I$57"]
["pp5_bl3_4_1_name",{"$f":"'T2-B(PP5)'!$B$79","v":0},"#'T2-B(PP5)'!$B$79"]
["pp5_bl3_4_1_rate_in",{"$f":"'T2-B(PP5)'!$E$79","v":0},"#'T2-B(PP5)'!$E$79"]
["pp5_bl3_4_1_rate_out",{"$f":"'T2-B(PP5)'!$H$79","v":0},"#'T2-B(PP5)'!$H$79"]
["pp5_bl3_4_1_total",{"$f":"'T2-B(PP5)'!$J$79","v":0},"#'T2-B(PP5)'!$J$79"]
["pp5_bl3_4_1_total_in",{"$f":"'T2-B(PP5)'!$F$79","v":0},"#'T2-B(PP5)'!$F$79"]
["pp5_bl3_4_1_total_out",{"$f":"'T2-B(PP5)'!$I$79","v":0},"#'T2-B(PP5)'!$I$79"]
["pp5_bl3_4_1_unit",{"$f":"'T2-B(PP5)'!$C$79","v":0},"#'T2-B(PP5)'!$C$79"]
["pp5_bl3_4_1_unit_in",{"$f":"'T2-B(PP5)'!$D$79","v":0},"#'T2-B(PP5)'!$D$79"]
["pp5_bl3_4_1_units_out",{"$f":"'T2-B(PP5)'!$G$79","v":0},"#'T2-B(PP5)'!$G$79"]
["pp5_bl3_4_10_name",{"$f":"'T2-B(PP5)'!$B$88","v":0},"#'T2-B(PP5)'!$B$88"]
["pp5_bl3_4_10_rate_in",{"$f":"'T2-B(PP5)'!$E$88","v":0},"#'T2-B(PP5)'!$E$88"]
["pp5_bl3_4_10_rate_out",{"$f":"'T2-B(PP5)'!$H$88","v":0},"#'T2-B(PP5)'!$H$88"]
["pp5_bl3_4_10_total",{"$f":"'T2-B(PP5)'!$J$88","v":0},"#'T2-B(PP5)'!$J$88"]
["pp5_bl3_4_10_total_in",{"$f":"'T2-B(PP5)'!$F$88","v":0},"#'T2-B(PP5)'!$F$88"]
["pp5_bl3_4_10_total_out",{"$f":"'T2-B(PP5)'!$I$88","v":0},"#'T2-B(PP5)'!$I$88"]
["pp5_bl3_4_10_unit",{"$f":"'T2-B(PP5)'!$C$88","v":0},"#'T2-B(PP5)'!$C$88"]
["pp5_bl3_4_10_unit_in",{"$f":"'T2-B(PP5)'!$D$88","v":0},"#'T2-B(PP5)'!$D$88"]
["pp5_bl3_4_10_units_out",{"$f":"'T2-B(PP5)'!$G$88","v":0},"#'T2-B(PP5)'!$G$88"]
["pp5_bl3_4_2_name",{"$f":"'T2-B(PP5)'!$B$80","v":0},"#'T2-B(PP5)'!$B$80"]
["pp5_bl3_4_2_rate_in",{"$f":"'T2-B(PP5)'!$E$80","v":0},"#'T2-B(PP5)'!$E$80"]
["pp5_bl3_4_2_rate_out",{"$f":"'T2-B(PP5)'!$H$80","v":0},"#'T2-B(PP5)'!$H$80"]
["pp5_bl3_4_2_total",{"$f":"'T2-B(PP5)'!$J$80","v":0},"#'T2-B(PP5)'!$J$80"]
["pp5_bl3_4_2_total_in",{"$f":"'T2-B(PP5)'!$F$80","v":0},"#'T2-B(PP5)'!$F$80"]
["pp5_bl3_4_2_total_out",{"$f":"'T2-B(PP5)'!$I$80","v":0},"#'T2-B(PP5)'!$I$80"]
["pp5_bl3_4_2_unit",{"$f":"'T2-B(PP5)'!$C$80","v":0},"#'T2-B(PP5)'!$C$80"]
["pp5_bl3_4_2_unit_in",{"$f":"'T2-B(PP5)'!$D$80","v":0},"#'T2-B(PP5)'!$D$80"]
["pp5_bl3_4_2_units_out",{"$f":"'T2-B(PP5)'!$G$80","v":0},"#'T2-B(PP5)'!$G$80"]
["pp5_bl3_4_3_name",{"$f":"'T2-B(PP5)'!$B$81","v":0},"#'T2-B(PP5)'!$B$81"]
["pp5_bl3_4_3_rate_in",{"$f":"'T2-B(PP5)'!$E$81","v":0},"#'T2-B(PP5)'!$E$81"]
["pp5_bl3_4_3_rate_out",{"$f":"'T2-B(PP5)'!$H$81","v":0},"#'T2-B(PP5)'!$H$81"]
["pp5_bl3_4_3_total",{"$f":"'T2-B(PP5)'!$J$81","v":0},"#'T2-B(PP5)'!$J$81"]
["pp5_bl3_4_3_total_in",{"$f":"'T2-B(PP5)'!$F$81","v":0},"#'T2-B(PP5)'!$F$81"]
["pp5_bl3_4_3_total_out",{"$f":"'T2-B(PP5)'!$I$81","v":0},"#'T2-B(PP5)'!$I$81"]
["pp5_bl3_4_3_unit",{"$f":"'T2-B(PP5)'!$C$81","v":0},"#'T2-B(PP5)'!$C$81"]
["pp5_bl3_4_3_unit_in",{"$f":"'T2-B(PP5)'!$D$81","v":0},"#'T2-B(PP5)'!$D$81"]
["pp5_bl3_4_3_units_out",{"$f":"'T2-B(PP5)'!$G$81","v":0},"#'T2-B(PP5)'!$G$81"]
["pp5_bl3_4_4_name",{"$f":"'T2-B(PP5)'!$B$82","v":0},"#'T2-B(PP5)'!$B$82"]
["pp5_bl3_4_4_rate_in",{"$f":"'T2-B(PP5)'!$E$82","v":0},"#'T2-B(PP5)'!$E$82"]
["pp5_bl3_4_4_rate_out",{"$f":"'T2-B(PP5)'!$H$82","v":0},"#'T2-B(PP5)'!$H$82"]
["pp5_bl3_4_4_total",{"$f":"'T2-B(PP5)'!$J$82","v":0},"#'T2-B(PP5)'!$J$82"]
["pp5_bl3_4_4_total_in",{"$f":"'T2-B(PP5)'!$F$82","v":0},"#'T2-B(PP5)'!$F$82"]
["pp5_bl3_4_4_total_out",{"$f":"'T2-B(PP5)'!$I$82","v":0},"#'T2-B(PP5)'!$I$82"]
["pp5_bl3_4_4_unit",{"$f":"'T2-B(PP5)'!$C$82","v":0},"#'T2-B(PP5)'!$C$82"]
["pp5_bl3_4_4_unit_in",{"$f":"'T2-B(PP5)'!$D$82","v":0},"#'T2-B(PP5)'!$D$82"]
["pp5_bl3_4_4_units_out",{"$f":"'T2-B(PP5)'!$G$82","v":0},"#'T2-B(PP5)'!$G$82"]
["pp5_bl3_4_5_name",{"$f":"'T2-B(PP5)'!$B$83","v":0},"#'T2-B(PP5)'!$B$83"]
["pp5_bl3_4_5_rate_in",{"$f":"'T2-B(PP5)'!$E$83","v":0},"#'T2-B(PP5)'!$E$83"]
["pp5_bl3_4_5_rate_out",{"$f":"'T2-B(PP5)'!$H$83","v":0},"#'T2-B(PP5)'!$H$83"]
["pp5_bl3_4_5_total",{"$f":"'T2-B(PP5)'!$J$83","v":0},"#'T2-B(PP5)'!$J$83"]
["pp5_bl3_4_5_total_in",{"$f":"'T2-B(PP5)'!$F$83","v":0},"#'T2-B(PP5)'!$F$83"]
["pp5_bl3_4_5_total_out",{"$f":"'T2-B(PP5)'!$I$83","v":0},"#'T2-B(PP5)'!$I$83"]
["pp5_bl3_4_5_unit",{"$f":"'T2-B(PP5)'!$C$83","v":0},"#'T2-B(PP5)'!$C$83"]
["pp5_bl3_4_5_unit_in",{"$f":"'T2-B(PP5)'!$D$83","v":0},"#'T2-B(PP5)'!$D$83"]
["pp5_bl3_4_5_units_out",{"$f":"'T2-B(PP5)'!$G$83","v":0},"#'T2-B(PP5)'!$G$83"]
["pp5_bl3_4_6_name",{"$f":"'T2-B(PP5)'!$B$84","v":0},"#'T2-B(PP5)'!$B$84"]
["pp5_bl3_4_6_rate_in",{"$f":"'T2-B(PP5)'!$E$84","v":0},"#'T2-B(PP5)'!$E$84"]
["pp5_bl3_4_6_rate_out",{"$f":"'T2-B(PP5)'!$H$84","v":0},"#'T2-B(PP5)'!$H$84"]
["pp5_bl3_4_6_total",{"$f":"'T2-B(PP5)'!$J$84","v":0},"#'T2-B(PP5)'!$J$84"]
["pp5_bl3_4_6_total_in",{"$f":"'T2-B(PP5)'!$F$84","v":0},"#'T2-B(PP5)'!$F$84"]
["pp5_bl3_4_6_total_out",{"$f":"'T2-B(PP5)'!$I$84","v":0},"#'T2-B(PP5)'!$I$84"]
["pp5_bl3_4_6_unit",{"$f":"'T2-B(PP5)'!$C$84","v":0},"#'T2-B(PP5)'!$C$84"]
["pp5_bl3_4_6_unit_in",{"$f":"'T2-B(PP5)'!$D$84","v":0},"#'T2-B(PP5)'!$D$84"]
["pp5_bl3_4_6_units_out",{"$f":"'T2-B(PP5)'!$G$84","v":0},"#'T2-B(PP5)'!$G$84"]
["pp5_bl3_4_7_name",{"$f":"'T2-B(PP5)'!$B$85","v":0},"#'T2-B(PP5)'!$B$85"]
["pp5_bl3_4_7_rate_in",{"$f":"'T2-B(PP5)'!$E$85","v":0},"#'T2-B(PP5)'!$E$85"]
["pp5_bl3_4_7_rate_out",{"$f":"'T2-B(PP5)'!$H$85","v":0},"#'T2-B(PP5)'!$H$85"]
["pp5_bl3_4_7_total",{"$f":"'T2-B(PP5)'!$J$85","v":0},"#'T2-B(PP5)'!$J$85"]
["pp5_bl3_4_7_total_in",{"$f":"'T2-B(PP5)'!$F$85","v":0},"#'T2-B(PP5)'!$F$85"]
["pp5_bl3_4_7_total_out",{"$f":"'T2-B(PP5)'!$I$85","v":0},"#'T2-B(PP5)'!$I$85"]
["pp5_bl3_4_7_unit",{"$f":"'T2-B(PP5)'!$C$85","v":0},"#'T2-B(PP5)'!$C$85"]
["pp5_bl3_4_7_unit_in",{"$f":"'T2-B(PP5)'!$D$85","v":0},"#'T2-B(PP5)'!$D$85"]
["pp5_bl3_4_7_units_out",{"$f":"'T2-B(PP5)'!$G$85","v":0},"#'T2-B(PP5)'!$G$85"]
["pp5_bl3_4_8_name",{"$f":"'T2-B(PP5)'!$B$86","v":0},"#'T2-B(PP5)'!$B$86"]
["pp5_bl3_4_8_rate_in",{"$f":"'T2-B(PP5)'!$E$86","v":0},"#'T2-B(PP5)'!$E$86"]
["pp5_bl3_4_8_rate_out",{"$f":"'T2-B(PP5)'!$H$86","v":0},"#'T2-B(PP5)'!$H$86"]
["pp5_bl3_4_8_total",{"$f":"'T2-B(PP5)'!$J$86","v":0},"#'T2-B(PP5)'!$J$86"]
["pp5_bl3_4_8_total_in",{"$f":"'T2-B(PP5)'!$F$86","v":0},"#'T2-B(PP5)'!$F$86"]
["pp5_bl3_4_8_total_out",{"$f":"'T2-B(PP5)'!$I$86","v":0},"#'T2-B(PP5)'!$I$86"]
["pp5_bl3_4_8_unit",{"$f":"'T2-B(PP5)'!$C$86","v":0},"#'T2-B(PP5)'!$C$86"]
["pp5_bl3_4_8_unit_in",{"$f":"'T2-B(PP5)'!$D$86","v":0},"#'T2-B(PP5)'!$D$86"]
["pp5_bl3_4_8_units_out",{"$f":"'T2-B(PP5)'!$G$86","v":0},"#'T2-B(PP5)'!$G$86"]
["pp5_bl3_4_9_name",{"$f":"'T2-B(PP5)'!$B$87","v":0},"#'T2-B(PP5)'!$B$87"]
["pp5_bl3_4_9_rate_in",{"$f":"'T2-B(PP5)'!$E$87","v":0},"#'T2-B(PP5)'!$E$87"]
["pp5_bl3_4_9_rate_out",{"$f":"'T2-B(PP5)'!$H$87","v":0},"#'T2-B(PP5)'!$H$87"]
["pp5_bl3_4_9_total",{"$f":"'T2-B(PP5)'!$J$87","v":0},"#'T2-B(PP5)'!$J$87"]
["pp5_bl3_4_9_total_in",{"$f":"'T2-B(PP5)'!$F$87","v":0},"#'T2-B(PP5)'!$F$87"]
["pp5_bl3_4_9_total_out",{"$f":"'T2-B(PP5)'!$I$87","v":0},"#'T2-B(PP5)'!$I$87"]
["pp5_bl3_4_9_unit",{"$f":"'T2-B(PP5)'!$C$87","v":0},"#'T2-B(PP5)'!$C$87"]
["pp5_bl3_4_9_unit_in",{"$f":"'T2-B(PP5)'!$D$87","v":0},"#'T2-B(PP5)'!$D$87"]
["pp5_bl3_4_9_units_out",{"$f":"'T2-B(PP5)'!$G$87","v":0},"#'T2-B(PP5)'!$G$87"]
["pp5_bl3_4_total",{"$f":"'T2-B(PP5)'!$J$78","v":0},"#'T2-B(PP5)'!$J$78"]
["pp5_bl3_4_total_in",{"$f":"'T2-B(PP5)'!$F$78","v":0},"#'T2-B(PP5)'!$F$78"]
["pp5_bl3_4_total_out",{"$f":"'T2-B(PP5)'!$I$78","v":0},"#'T2-B(PP5)'!$I$78"]
["pp5_bl3_total",{"$f":"'T2-B(PP5)'!$J$89","v":0},"#'T2-B(PP5)'!$J$89"]
["pp5_bl3_total_in",{"$f":"'T2-B(PP5)'!$F$89","v":0},"#'T2-B(PP5)'!$F$89"]
["pp5_bl3_total_out",{"$f":"'T2-B(PP5)'!$I$89","v":0},"#'T2-B(PP5)'!$I$89"]
["pp5_bl4_1_1_name",{"$f":"'T2-B(PP5)'!$B$94","v":0},"#'T2-B(PP5)'!$B$94"]
["pp5_bl4_1_1_rate_in",{"$f":"'T2-B(PP5)'!$E$94","v":0},"#'T2-B(PP5)'!$E$94"]
["pp5_bl4_1_1_rate_out",{"$f":"'T2-B(PP5)'!$H$94","v":0},"#'T2-B(PP5)'!$H$94"]
["pp5_bl4_1_1_total",{"$f":"'T2-B(PP5)'!$J$94","v":0},"#'T2-B(PP5)'!$J$94"]
["pp5_bl4_1_1_total_in",{"$f":"'T2-B(PP5)'!$F$94","v":0},"#'T2-B(PP5)'!$F$94"]
["pp5_bl4_1_1_total_out",{"$f":"'T2-B(PP5)'!$I$94","v":0},"#'T2-B(PP5)'!$I$94"]
["pp5_bl4_1_1_unit",{"$f":"'T2-B(PP5)'!$C$94","v":0},"#'T2-B(PP5)'!$C$94"]
["pp5_bl4_1_1_unit_in",{"$f":"'T2-B(PP5)'!$D$94","v":0},"#'T2-B(PP5)'!$D$94"]
["pp5_bl4_1_1_units_out",{"$f":"'T2-B(PP5)'!$G$94","v":0},"#'T2-B(PP5)'!$G$94"]
["pp5_bl4_1_10_name",{"$f":"'T2-B(PP5)'!$B$103","v":0},"#'T2-B(PP5)'!$B$103"]
["pp5_bl4_1_10_rate_in",{"$f":"'T2-B(PP5)'!$E$103","v":0},"#'T2-B(PP5)'!$E$103"]
["pp5_bl4_1_10_rate_out",{"$f":"'T2-B(PP5)'!$H$103","v":0},"#'T2-B(PP5)'!$H$103"]
["pp5_bl4_1_10_total",{"$f":"'T2-B(PP5)'!$J$103","v":0},"#'T2-B(PP5)'!$J$103"]
["pp5_bl4_1_10_total_in",{"$f":"'T2-B(PP5)'!$F$103","v":0},"#'T2-B(PP5)'!$F$103"]
["pp5_bl4_1_10_total_out",{"$f":"'T2-B(PP5)'!$I$103","v":0},"#'T2-B(PP5)'!$I$103"]
["pp5_bl4_1_10_unit",{"$f":"'T2-B(PP5)'!$C$103","v":0},"#'T2-B(PP5)'!$C$103"]
["pp5_bl4_1_10_unit_in",{"$f":"'T2-B(PP5)'!$D$103","v":0},"#'T2-B(PP5)'!$D$103"]
["pp5_bl4_1_10_units_out",{"$f":"'T2-B(PP5)'!$G$103","v":0},"#'T2-B(PP5)'!$G$103"]
["pp5_bl4_1_11_name",{"$f":"'T2-B(PP5)'!$B$104","v":0},"#'T2-B(PP5)'!$B$104"]
["pp5_bl4_1_11_rate_in",{"$f":"'T2-B(PP5)'!$E$104","v":0},"#'T2-B(PP5)'!$E$104"]
["pp5_bl4_1_11_rate_out",{"$f":"'T2-B(PP5)'!$H$104","v":0},"#'T2-B(PP5)'!$H$104"]
["pp5_bl4_1_11_total",{"$f":"'T2-B(PP5)'!$J$104","v":0},"#'T2-B(PP5)'!$J$104"]
["pp5_bl4_1_11_total_in",{"$f":"'T2-B(PP5)'!$F$104","v":0},"#'T2-B(PP5)'!$F$104"]
["pp5_bl4_1_11_total_out",{"$f":"'T2-B(PP5)'!$I$104","v":0},"#'T2-B(PP5)'!$I$104"]
["pp5_bl4_1_11_unit",{"$f":"'T2-B(PP5)'!$C$104","v":0},"#'T2-B(PP5)'!$C$104"]
["pp5_bl4_1_11_unit_in",{"$f":"'T2-B(PP5)'!$D$104","v":0},"#'T2-B(PP5)'!$D$104"]
["pp5_bl4_1_11_units_out",{"$f":"'T2-B(PP5)'!$G$104","v":0},"#'T2-B(PP5)'!$G$104"]
["pp5_bl4_1_12_name",{"$f":"'T2-B(PP5)'!$B$105","v":0},"#'T2-B(PP5)'!$B$105"]
["pp5_bl4_1_12_rate_in",{"$f":"'T2-B(PP5)'!$E$105","v":0},"#'T2-B(PP5)'!$E$105"]
["pp5_bl4_1_12_rate_out",{"$f":"'T2-B(PP5)'!$H$105","v":0},"#'T2-B(PP5)'!$H$105"]
["pp5_bl4_1_12_total",{"$f":"'T2-B(PP5)'!$J$105","v":0},"#'T2-B(PP5)'!$J$105"]
["pp5_bl4_1_12_total_in",{"$f":"'T2-B(PP5)'!$F$105","v":0},"#'T2-B(PP5)'!$F$105"]
["pp5_bl4_1_12_total_out",{"$f":"'T2-B(PP5)'!$I$105","v":0},"#'T2-B(PP5)'!$I$105"]
["pp5_bl4_1_12_unit",{"$f":"'T2-B(PP5)'!$C$105","v":0},"#'T2-B(PP5)'!$C$105"]
["pp5_bl4_1_12_unit_in",{"$f":"'T2-B(PP5)'!$D$105","v":0},"#'T2-B(PP5)'!$D$105"]
["pp5_bl4_1_12_units_out",{"$f":"'T2-B(PP5)'!$G$105","v":0},"#'T2-B(PP5)'!$G$105"]
["pp5_bl4_1_13_name",{"$f":"'T2-B(PP5)'!$B$106","v":0},"#'T2-B(PP5)'!$B$106"]
["pp5_bl4_1_13_rate_in",{"$f":"'T2-B(PP5)'!$E$106","v":0},"#'T2-B(PP5)'!$E$106"]
["pp5_bl4_1_13_rate_out",{"$f":"'T2-B(PP5)'!$H$106","v":0},"#'T2-B(PP5)'!$H$106"]
["pp5_bl4_1_13_total",{"$f":"'T2-B(PP5)'!$J$106","v":0},"#'T2-B(PP5)'!$J$106"]
["pp5_bl4_1_13_total_in",{"$f":"'T2-B(PP5)'!$F$106","v":0},"#'T2-B(PP5)'!$F$106"]
["pp5_bl4_1_13_total_out",{"$f":"'T2-B(PP5)'!$I$106","v":0},"#'T2-B(PP5)'!$I$106"]
["pp5_bl4_1_13_unit",{"$f":"'T2-B(PP5)'!$C$106","v":0},"#'T2-B(PP5)'!$C$106"]
["pp5_bl4_1_13_unit_in",{"$f":"'T2-B(PP5)'!$D$106","v":0},"#'T2-B(PP5)'!$D$106"]
["pp5_bl4_1_13_units_out",{"$f":"'T2-B(PP5)'!$G$106","v":0},"#'T2-B(PP5)'!$G$106"]
["pp5_bl4_1_14_name",{"$f":"'T2-B(PP5)'!$B$107","v":0},"#'T2-B(PP5)'!$B$107"]
["pp5_bl4_1_14_rate_in",{"$f":"'T2-B(PP5)'!$E$107","v":0},"#'T2-B(PP5)'!$E$107"]
["pp5_bl4_1_14_rate_out",{"$f":"'T2-B(PP5)'!$H$107","v":0},"#'T2-B(PP5)'!$H$107"]
["pp5_bl4_1_14_total",{"$f":"'T2-B(PP5)'!$J$107","v":0},"#'T2-B(PP5)'!$J$107"]
["pp5_bl4_1_14_total_in",{"$f":"'T2-B(PP5)'!$F$107","v":0},"#'T2-B(PP5)'!$F$107"]
["pp5_bl4_1_14_total_out",{"$f":"'T2-B(PP5)'!$I$107","v":0},"#'T2-B(PP5)'!$I$107"]
["pp5_bl4_1_14_unit",{"$f":"'T2-B(PP5)'!$C$107","v":0},"#'T2-B(PP5)'!$C$107"]
["pp5_bl4_1_14_unit_in",{"$f":"'T2-B(PP5)'!$D$107","v":0},"#'T2-B(PP5)'!$D$107"]
["pp5_bl4_1_14_units_out",{"$f":"'T2-B(PP5)'!$G$107","v":0},"#'T2-B(PP5)'!$G$107"]
["pp5_bl4_1_15_name",{"$f":"'T2-B(PP5)'!$B$108","v":0},"#'T2-B(PP5)'!$B$108"]
["pp5_bl4_1_15_rate_in",{"$f":"'T2-B(PP5)'!$E$108","v":0},"#'T2-B(PP5)'!$E$108"]
["pp5_bl4_1_15_rate_out",{"$f":"'T2-B(PP5)'!$H$108","v":0},"#'T2-B(PP5)'!$H$108"]
["pp5_bl4_1_15_total",{"$f":"'T2-B(PP5)'!$J$108","v":0},"#'T2-B(PP5)'!$J$108"]
["pp5_bl4_1_15_total_in",{"$f":"'T2-B(PP5)'!$F$108","v":0},"#'T2-B(PP5)'!$F$108"]
["pp5_bl4_1_15_total_out",{"$f":"'T2-B(PP5)'!$I$108","v":0},"#'T2-B(PP5)'!$I$108"]
["pp5_bl4_1_15_unit",{"$f":"'T2-B(PP5)'!$C$108","v":0},"#'T2-B(PP5)'!$C$108"]
["pp5_bl4_1_15_unit_in",{"$f":"'T2-B(PP5)'!$D$108","v":0},"#'T2-B(PP5)'!$D$108"]
["pp5_bl4_1_15_units_out",{"$f":"'T2-B(PP5)'!$G$108","v":0},"#'T2-B(PP5)'!$G$108"]
["pp5_bl4_1_16_name",{"$f":"'T2-B(PP5)'!$B$109","v":0},"#'T2-B(PP5)'!$B$109"]
["pp5_bl4_1_16_rate_in",{"$f":"'T2-B(PP5)'!$E$109","v":0},"#'T2-B(PP5)'!$E$109"]
["pp5_bl4_1_16_rate_out",{"$f":"'T2-B(PP5)'!$H$109","v":0},"#'T2-B(PP5)'!$H$109"]
["pp5_bl4_1_16_total",{"$f":"'T2-B(PP5)'!$J$109","v":0},"#'T2-B(PP5)'!$J$109"]
["pp5_bl4_1_16_total_in",{"$f":"'T2-B(PP5)'!$F$109","v":0},"#'T2-B(PP5)'!$F$109"]
["pp5_bl4_1_16_total_out",{"$f":"'T2-B(PP5)'!$I$109","v":0},"#'T2-B(PP5)'!$I$109"]
["pp5_bl4_1_16_unit",{"$f":"'T2-B(PP5)'!$C$109","v":0},"#'T2-B(PP5)'!$C$109"]
["pp5_bl4_1_16_unit_in",{"$f":"'T2-B(PP5)'!$D$109","v":0},"#'T2-B(PP5)'!$D$109"]
["pp5_bl4_1_16_units_out",{"$f":"'T2-B(PP5)'!$G$109","v":0},"#'T2-B(PP5)'!$G$109"]
["pp5_bl4_1_17_name",{"$f":"'T2-B(PP5)'!$B$110","v":0},"#'T2-B(PP5)'!$B$110"]
["pp5_bl4_1_17_rate_in",{"$f":"'T2-B(PP5)'!$E$110","v":0},"#'T2-B(PP5)'!$E$110"]
["pp5_bl4_1_17_rate_out",{"$f":"'T2-B(PP5)'!$H$110","v":0},"#'T2-B(PP5)'!$H$110"]
["pp5_bl4_1_17_total",{"$f":"'T2-B(PP5)'!$J$110","v":0},"#'T2-B(PP5)'!$J$110"]
["pp5_bl4_1_17_total_in",{"$f":"'T2-B(PP5)'!$F$110","v":0},"#'T2-B(PP5)'!$F$110"]
["pp5_bl4_1_17_total_out",{"$f":"'T2-B(PP5)'!$I$110","v":0},"#'T2-B(PP5)'!$I$110"]
["pp5_bl4_1_17_unit",{"$f":"'T2-B(PP5)'!$C$110","v":0},"#'T2-B(PP5)'!$C$110"]
["pp5_bl4_1_17_unit_in",{"$f":"'T2-B(PP5)'!$D$110","v":0},"#'T2-B(PP5)'!$D$110"]
["pp5_bl4_1_17_units_out",{"$f":"'T2-B(PP5)'!$G$110","v":0},"#'T2-B(PP5)'!$G$110"]
["pp5_bl4_1_18_name",{"$f":"'T2-B(PP5)'!$B$111","v":0},"#'T2-B(PP5)'!$B$111"]
["pp5_bl4_1_18_rate_in",{"$f":"'T2-B(PP5)'!$E$111","v":0},"#'T2-B(PP5)'!$E$111"]
["pp5_bl4_1_18_rate_out",{"$f":"'T2-B(PP5)'!$H$111","v":0},"#'T2-B(PP5)'!$H$111"]
["pp5_bl4_1_18_total",{"$f":"'T2-B(PP5)'!$J$111","v":0},"#'T2-B(PP5)'!$J$111"]
["pp5_bl4_1_18_total_in",{"$f":"'T2-B(PP5)'!$F$111","v":0},"#'T2-B(PP5)'!$F$111"]
["pp5_bl4_1_18_total_out",{"$f":"'T2-B(PP5)'!$I$111","v":0},"#'T2-B(PP5)'!$I$111"]
["pp5_bl4_1_18_unit",{"$f":"'T2-B(PP5)'!$C$111","v":0},"#'T2-B(PP5)'!$C$111"]
["pp5_bl4_1_18_unit_in",{"$f":"'T2-B(PP5)'!$D$111","v":0},"#'T2-B(PP5)'!$D$111"]
["pp5_bl4_1_18_units_out",{"$f":"'T2-B(PP5)'!$G$111","v":0},"#'T2-B(PP5)'!$G$111"]
["pp5_bl4_1_19_name",{"$f":"'T2-B(PP5)'!$B$112","v":0},"#'T2-B(PP5)'!$B$112"]
["pp5_bl4_1_19_rate_in",{"$f":"'T2-B(PP5)'!$E$112","v":0},"#'T2-B(PP5)'!$E$112"]
["pp5_bl4_1_19_rate_out",{"$f":"'T2-B(PP5)'!$H$112","v":0},"#'T2-B(PP5)'!$H$112"]
["pp5_bl4_1_19_total",{"$f":"'T2-B(PP5)'!$J$112","v":0},"#'T2-B(PP5)'!$J$112"]
["pp5_bl4_1_19_total_in",{"$f":"'T2-B(PP5)'!$F$112","v":0},"#'T2-B(PP5)'!$F$112"]
["pp5_bl4_1_19_total_out",{"$f":"'T2-B(PP5)'!$I$112","v":0},"#'T2-B(PP5)'!$I$112"]
["pp5_bl4_1_19_unit",{"$f":"'T2-B(PP5)'!$C$112","v":0},"#'T2-B(PP5)'!$C$112"]
["pp5_bl4_1_19_unit_in",{"$f":"'T2-B(PP5)'!$D$112","v":0},"#'T2-B(PP5)'!$D$112"]
["pp5_bl4_1_19_units_out",{"$f":"'T2-B(PP5)'!$G$112","v":0},"#'T2-B(PP5)'!$G$112"]
["pp5_bl4_1_2_name",{"$f":"'T2-B(PP5)'!$B$95","v":0},"#'T2-B(PP5)'!$B$95"]
["pp5_bl4_1_2_rate_in",{"$f":"'T2-B(PP5)'!$E$95","v":0},"#'T2-B(PP5)'!$E$95"]
["pp5_bl4_1_2_rate_out",{"$f":"'T2-B(PP5)'!$H$95","v":0},"#'T2-B(PP5)'!$H$95"]
["pp5_bl4_1_2_total",{"$f":"'T2-B(PP5)'!$J$95","v":0},"#'T2-B(PP5)'!$J$95"]
["pp5_bl4_1_2_total_in",{"$f":"'T2-B(PP5)'!$F$95","v":0},"#'T2-B(PP5)'!$F$95"]
["pp5_bl4_1_2_total_out",{"$f":"'T2-B(PP5)'!$I$95","v":0},"#'T2-B(PP5)'!$I$95"]
["pp5_bl4_1_2_unit",{"$f":"'T2-B(PP5)'!$C$95","v":0},"#'T2-B(PP5)'!$C$95"]
["pp5_bl4_1_2_unit_in",{"$f":"'T2-B(PP5)'!$D$95","v":0},"#'T2-B(PP5)'!$D$95"]
["pp5_bl4_1_2_units_out",{"$f":"'T2-B(PP5)'!$G$95","v":0},"#'T2-B(PP5)'!$G$95"]
["pp5_bl4_1_20_name",{"$f":"'T2-B(PP5)'!$B$113","v":0},"#'T2-B(PP5)'!$B$113"]
["pp5_bl4_1_20_rate_in",{"$f":"'T2-B(PP5)'!$E$113","v":0},"#'T2-B(PP5)'!$E$113"]
["pp5_bl4_1_20_rate_out",{"$f":"'T2-B(PP5)'!$H$113","v":0},"#'T2-B(PP5)'!$H$113"]
["pp5_bl4_1_20_total",{"$f":"'T2-B(PP5)'!$J$113","v":0},"#'T2-B(PP5)'!$J$113"]
["pp5_bl4_1_20_total_in",{"$f":"'T2-B(PP5)'!$F$113","v":0},"#'T2-B(PP5)'!$F$113"]
["pp5_bl4_1_20_total_out",{"$f":"'T2-B(PP5)'!$I$113","v":0},"#'T2-B(PP5)'!$I$113"]
["pp5_bl4_1_20_unit",{"$f":"'T2-B(PP5)'!$C$113","v":0},"#'T2-B(PP5)'!$C$113"]
["pp5_bl4_1_20_unit_in",{"$f":"'T2-B(PP5)'!$D$113","v":0},"#'T2-B(PP5)'!$D$113"]
["pp5_bl4_1_20_units_out",{"$f":"'T2-B(PP5)'!$G$113","v":0},"#'T2-B(PP5)'!$G$113"]
["pp5_bl4_1_3_name",{"$f":"'T2-B(PP5)'!$B$96","v":0},"#'T2-B(PP5)'!$B$96"]
["pp5_bl4_1_3_rate_in",{"$f":"'T2-B(PP5)'!$E$96","v":0},"#'T2-B(PP5)'!$E$96"]
["pp5_bl4_1_3_rate_out",{"$f":"'T2-B(PP5)'!$H$96","v":0},"#'T2-B(PP5)'!$H$96"]
["pp5_bl4_1_3_total",{"$f":"'T2-B(PP5)'!$J$96","v":0},"#'T2-B(PP5)'!$J$96"]
["pp5_bl4_1_3_total_in",{"$f":"'T2-B(PP5)'!$F$96","v":0},"#'T2-B(PP5)'!$F$96"]
["pp5_bl4_1_3_total_out",{"$f":"'T2-B(PP5)'!$I$96","v":0},"#'T2-B(PP5)'!$I$96"]
["pp5_bl4_1_3_unit",{"$f":"'T2-B(PP5)'!$C$96","v":0},"#'T2-B(PP5)'!$C$96"]
["pp5_bl4_1_3_unit_in",{"$f":"'T2-B(PP5)'!$D$96","v":0},"#'T2-B(PP5)'!$D$96"]
["pp5_bl4_1_3_units_out",{"$f":"'T2-B(PP5)'!$G$96","v":0},"#'T2-B(PP5)'!$G$96"]
["pp5_bl4_1_4_name",{"$f":"'T2-B(PP5)'!$B$97","v":0},"#'T2-B(PP5)'!$B$97"]
["pp5_bl4_1_4_rate_in",{"$f":"'T2-B(PP5)'!$E$97","v":0},"#'T2-B(PP5)'!$E$97"]
["pp5_bl4_1_4_rate_out",{"$f":"'T2-B(PP5)'!$H$97","v":0},"#'T2-B(PP5)'!$H$97"]
["pp5_bl4_1_4_total",{"$f":"'T2-B(PP5)'!$J$97","v":0},"#'T2-B(PP5)'!$J$97"]
["pp5_bl4_1_4_total_in",{"$f":"'T2-B(PP5)'!$F$97","v":0},"#'T2-B(PP5)'!$F$97"]
["pp5_bl4_1_4_total_out",{"$f":"'T2-B(PP5)'!$I$97","v":0},"#'T2-B(PP5)'!$I$97"]
["pp5_bl4_1_4_unit",{"$f":"'T2-B(PP5)'!$C$97","v":0},"#'T2-B(PP5)'!$C$97"]
["pp5_bl4_1_4_unit_in",{"$f":"'T2-B(PP5)'!$D$97","v":0},"#'T2-B(PP5)'!$D$97"]
["pp5_bl4_1_4_units_out",{"$f":"'T2-B(PP5)'!$G$97","v":0},"#'T2-B(PP5)'!$G$97"]
["pp5_bl4_1_5_name",{"$f":"'T2-B(PP5)'!$B$98","v":0},"#'T2-B(PP5)'!$B$98"]
["pp5_bl4_1_5_rate_in",{"$f":"'T2-B(PP5)'!$E$98","v":0},"#'T2-B(PP5)'!$E$98"]
["pp5_bl4_1_5_rate_out",{"$f":"'T2-B(PP5)'!$H$98","v":0},"#'T2-B(PP5)'!$H$98"]
["pp5_bl4_1_5_total",{"$f":"'T2-B(PP5)'!$J$98","v":0},"#'T2-B(PP5)'!$J$98"]
["pp5_bl4_1_5_total_in",{"$f":"'T2-B(PP5)'!$F$98","v":0},"#'T2-B(PP5)'!$F$98"]
["pp5_bl4_1_5_total_out",{"$f":"'T2-B(PP5)'!$I$98","v":0},"#'T2-B(PP5)'!$I$98"]
["pp5_bl4_1_5_unit",{"$f":"'T2-B(PP5)'!$C$98","v":0},"#'T2-B(PP5)'!$C$98"]
["pp5_bl4_1_5_unit_in",{"$f":"'T2-B(PP5)'!$D$98","v":0},"#'T2-B(PP5)'!$D$98"]
["pp5_bl4_1_5_units_out",{"$f":"'T2-B(PP5)'!$G$98","v":0},"#'T2-B(PP5)'!$G$98"]
["pp5_bl4_1_6_name",{"$f":"'T2-B(PP5)'!$B$99","v":0},"#'T2-B(PP5)'!$B$99"]
["pp5_bl4_1_6_rate_in",{"$f":"'T2-B(PP5)'!$E$99","v":0},"#'T2-B(PP5)'!$E$99"]
["pp5_bl4_1_6_rate_out",{"$f":"'T2-B(PP5)'!$H$99","v":0},"#'T2-B(PP5)'!$H$99"]
["pp5_bl4_1_6_total",{"$f":"'T2-B(PP5)'!$J$99","v":0},"#'T2-B(PP5)'!$J$99"]
["pp5_bl4_1_6_total_in",{"$f":"'T2-B(PP5)'!$F$99","v":0},"#'T2-B(PP5)'!$F$99"]
["pp5_bl4_1_6_total_out",{"$f":"'T2-B(PP5)'!$I$99","v":0},"#'T2-B(PP5)'!$I$99"]
["pp5_bl4_1_6_unit",{"$f":"'T2-B(PP5)'!$C$99","v":0},"#'T2-B(PP5)'!$C$99"]
["pp5_bl4_1_6_unit_in",{"$f":"'T2-B(PP5)'!$D$99","v":0},"#'T2-B(PP5)'!$D$99"]
["pp5_bl4_1_6_units_out",{"$f":"'T2-B(PP5)'!$G$99","v":0},"#'T2-B(PP5)'!$G$99"]
["pp5_bl4_1_7_name",{"$f":"'T2-B(PP5)'!$B$100","v":0},"#'T2-B(PP5)'!$B$100"]
["pp5_bl4_1_7_rate_in",{"$f":"'T2-B(PP5)'!$E$100","v":0},"#'T2-B(PP5)'!$E$100"]
["pp5_bl4_1_7_rate_out",{"$f":"'T2-B(PP5)'!$H$100","v":0},"#'T2-B(PP5)'!$H$100"]
["pp5_bl4_1_7_total",{"$f":"'T2-B(PP5)'!$J$100","v":0},"#'T2-B(PP5)'!$J$100"]
["pp5_bl4_1_7_total_in",{"$f":"'T2-B(PP5)'!$F$100","v":0},"#'T2-B(PP5)'!$F$100"]
["pp5_bl4_1_7_total_out",{"$f":"'T2-B(PP5)'!$I$100","v":0},"#'T2-B(PP5)'!$I$100"]
["pp5_bl4_1_7_unit",{"$f":"'T2-B(PP5)'!$C$100","v":0},"#'T2-B(PP5)'!$C$100"]
["pp5_bl4_1_7_unit_in",{"$f":"'T2-B(PP5)'!$D$100","v":0},"#'T2-B(PP5)'!$D$100"]
["pp5_bl4_1_7_units_out",{"$f":"'T2-B(PP5)'!$G$100","v":0},"#'T2-B(PP5)'!$G$100"]
["pp5_bl4_1_8_name",{"$f":"'T2-B(PP5)'!$B$101","v":0},"#'T2-B(PP5)'!$B$101"]
["pp5_bl4_1_8_rate_in",{"$f":"'T2-B(PP5)'!$E$101","v":0},"#'T2-B(PP5)'!$E$101"]
["pp5_bl4_1_8_rate_out",{"$f":"'T2-B(PP5)'!$H$101","v":0},"#'T2-B(PP5)'!$H$101"]
["pp5_bl4_1_8_total",{"$f":"'T2-B(PP5)'!$J$101","v":0},"#'T2-B(PP5)'!$J$101"]
["pp5_bl4_1_8_total_in",{"$f":"'T2-B(PP5)'!$F$101","v":0},"#'T2-B(PP5)'!$F$101"]
["pp5_bl4_1_8_total_out",{"$f":"'T2-B(PP5)'!$I$101","v":0},"#'T2-B(PP5)'!$I$101"]
["pp5_bl4_1_8_unit",{"$f":"'T2-B(PP5)'!$C$101","v":0},"#'T2-B(PP5)'!$C$101"]
["pp5_bl4_1_8_unit_in",{"$f":"'T2-B(PP5)'!$D$101","v":0},"#'T2-B(PP5)'!$D$101"]
["pp5_bl4_1_8_units_out",{"$f":"'T2-B(PP5)'!$G$101","v":0},"#'T2-B(PP5)'!$G$101"]
["pp5_bl4_1_9_name",{"$f":"'T2-B(PP5)'!$B$102","v":0},"#'T2-B(PP5)'!$B$102"]
["pp5_bl4_1_9_rate_in",{"$f":"'T2-B(PP5)'!$E$102","v":0},"#'T2-B(PP5)'!$E$102"]
["pp5_bl4_1_9_rate_out",{"$f":"'T2-B(PP5)'!$H$102","v":0},"#'T2-B(PP5)'!$H$102"]
["pp5_bl4_1_9_total",{"$f":"'T2-B(PP5)'!$J$102","v":0},"#'T2-B(PP5)'!$J$102"]
["pp5_bl4_1_9_total_in",{"$f":"'T2-B(PP5)'!$F$102","v":0},"#'T2-B(PP5)'!$F$102"]
["pp5_bl4_1_9_total_out",{"$f":"'T2-B(PP5)'!$I$102","v":0},"#'T2-B(PP5)'!$I$102"]
["pp5_bl4_1_9_unit",{"$f":"'T2-B(PP5)'!$C$102","v":0},"#'T2-B(PP5)'!$C$102"]
["pp5_bl4_1_9_unit_in",{"$f":"'T2-B(PP5)'!$D$102","v":0},"#'T2-B(PP5)'!$D$102"]
["pp5_bl4_1_9_units_out",{"$f":"'T2-B(PP5)'!$G$102","v":0},"#'T2-B(PP5)'!$G$102"]
["pp5_bl4_1_total",{"$f":"'T2-B(PP5)'!$J$93","v":0},"#'T2-B(PP5)'!$J$93"]
["pp5_bl4_1_total_in",{"$f":"'T2-B(PP5)'!$F$93","v":0},"#'T2-B(PP5)'!$F$93"]
["pp5_bl4_1_total_out",{"$f":"'T2-B(PP5)'!$I$93","v":0},"#'T2-B(PP5)'!$I$93"]
["pp5_bl4_10_1_name",{"$f":"'T2-B(PP5)'!$B$283","v":0},"#'T2-B(PP5)'!$B$283"]
["pp5_bl4_10_1_rate_in",{"$f":"'T2-B(PP5)'!$E$283","v":0},"#'T2-B(PP5)'!$E$283"]
["pp5_bl4_10_1_rate_out",{"$f":"'T2-B(PP5)'!$H$283","v":0},"#'T2-B(PP5)'!$H$283"]
["pp5_bl4_10_1_total",{"$f":"'T2-B(PP5)'!$J$283","v":0},"#'T2-B(PP5)'!$J$283"]
["pp5_bl4_10_1_total_in",{"$f":"'T2-B(PP5)'!$F$283","v":0},"#'T2-B(PP5)'!$F$283"]
["pp5_bl4_10_1_total_out",{"$f":"'T2-B(PP5)'!$I$283","v":0},"#'T2-B(PP5)'!$I$283"]
["pp5_bl4_10_1_unit",{"$f":"'T2-B(PP5)'!$C$283","v":0},"#'T2-B(PP5)'!$C$283"]
["pp5_bl4_10_1_unit_in",{"$f":"'T2-B(PP5)'!$D$283","v":0},"#'T2-B(PP5)'!$D$283"]
["pp5_bl4_10_1_units_out",{"$f":"'T2-B(PP5)'!$G$283","v":0},"#'T2-B(PP5)'!$G$283"]
["pp5_bl4_10_10_name",{"$f":"'T2-B(PP5)'!$B$292","v":0},"#'T2-B(PP5)'!$B$292"]
["pp5_bl4_10_10_rate_in",{"$f":"'T2-B(PP5)'!$E$292","v":0},"#'T2-B(PP5)'!$E$292"]
["pp5_bl4_10_10_rate_out",{"$f":"'T2-B(PP5)'!$H$292","v":0},"#'T2-B(PP5)'!$H$292"]
["pp5_bl4_10_10_total",{"$f":"'T2-B(PP5)'!$J$292","v":0},"#'T2-B(PP5)'!$J$292"]
["pp5_bl4_10_10_total_in",{"$f":"'T2-B(PP5)'!$F$292","v":0},"#'T2-B(PP5)'!$F$292"]
["pp5_bl4_10_10_total_out",{"$f":"'T2-B(PP5)'!$I$292","v":0},"#'T2-B(PP5)'!$I$292"]
["pp5_bl4_10_10_unit",{"$f":"'T2-B(PP5)'!$C$292","v":0},"#'T2-B(PP5)'!$C$292"]
["pp5_bl4_10_10_unit_in",{"$f":"'T2-B(PP5)'!$D$292","v":0},"#'T2-B(PP5)'!$D$292"]
["pp5_bl4_10_10_units_out",{"$f":"'T2-B(PP5)'!$G$292","v":0},"#'T2-B(PP5)'!$G$292"]
["pp5_bl4_10_11_name",{"$f":"'T2-B(PP5)'!$B$293","v":0},"#'T2-B(PP5)'!$B$293"]
["pp5_bl4_10_11_rate_in",{"$f":"'T2-B(PP5)'!$E$293","v":0},"#'T2-B(PP5)'!$E$293"]
["pp5_bl4_10_11_rate_out",{"$f":"'T2-B(PP5)'!$H$293","v":0},"#'T2-B(PP5)'!$H$293"]
["pp5_bl4_10_11_total",{"$f":"'T2-B(PP5)'!$J$293","v":0},"#'T2-B(PP5)'!$J$293"]
["pp5_bl4_10_11_total_in",{"$f":"'T2-B(PP5)'!$F$293","v":0},"#'T2-B(PP5)'!$F$293"]
["pp5_bl4_10_11_total_out",{"$f":"'T2-B(PP5)'!$I$293","v":0},"#'T2-B(PP5)'!$I$293"]
["pp5_bl4_10_11_unit",{"$f":"'T2-B(PP5)'!$C$293","v":0},"#'T2-B(PP5)'!$C$293"]
["pp5_bl4_10_11_unit_in",{"$f":"'T2-B(PP5)'!$D$293","v":0},"#'T2-B(PP5)'!$D$293"]
["pp5_bl4_10_11_units_out",{"$f":"'T2-B(PP5)'!$G$293","v":0},"#'T2-B(PP5)'!$G$293"]
["pp5_bl4_10_12_name",{"$f":"'T2-B(PP5)'!$B$294","v":0},"#'T2-B(PP5)'!$B$294"]
["pp5_bl4_10_12_rate_in",{"$f":"'T2-B(PP5)'!$E$294","v":0},"#'T2-B(PP5)'!$E$294"]
["pp5_bl4_10_12_rate_out",{"$f":"'T2-B(PP5)'!$H$294","v":0},"#'T2-B(PP5)'!$H$294"]
["pp5_bl4_10_12_total",{"$f":"'T2-B(PP5)'!$J$294","v":0},"#'T2-B(PP5)'!$J$294"]
["pp5_bl4_10_12_total_in",{"$f":"'T2-B(PP5)'!$F$294","v":0},"#'T2-B(PP5)'!$F$294"]
["pp5_bl4_10_12_total_out",{"$f":"'T2-B(PP5)'!$I$294","v":0},"#'T2-B(PP5)'!$I$294"]
["pp5_bl4_10_12_unit",{"$f":"'T2-B(PP5)'!$C$294","v":0},"#'T2-B(PP5)'!$C$294"]
["pp5_bl4_10_12_unit_in",{"$f":"'T2-B(PP5)'!$D$294","v":0},"#'T2-B(PP5)'!$D$294"]
["pp5_bl4_10_12_units_out",{"$f":"'T2-B(PP5)'!$G$294","v":0},"#'T2-B(PP5)'!$G$294"]
["pp5_bl4_10_13_name",{"$f":"'T2-B(PP5)'!$B$295","v":0},"#'T2-B(PP5)'!$B$295"]
["pp5_bl4_10_13_rate_in",{"$f":"'T2-B(PP5)'!$E$295","v":0},"#'T2-B(PP5)'!$E$295"]
["pp5_bl4_10_13_rate_out",{"$f":"'T2-B(PP5)'!$H$295","v":0},"#'T2-B(PP5)'!$H$295"]
["pp5_bl4_10_13_total",{"$f":"'T2-B(PP5)'!$J$295","v":0},"#'T2-B(PP5)'!$J$295"]
["pp5_bl4_10_13_total_in",{"$f":"'T2-B(PP5)'!$F$295","v":0},"#'T2-B(PP5)'!$F$295"]
["pp5_bl4_10_13_total_out",{"$f":"'T2-B(PP5)'!$I$295","v":0},"#'T2-B(PP5)'!$I$295"]
["pp5_bl4_10_13_unit",{"$f":"'T2-B(PP5)'!$C$295","v":0},"#'T2-B(PP5)'!$C$295"]
["pp5_bl4_10_13_unit_in",{"$f":"'T2-B(PP5)'!$D$295","v":0},"#'T2-B(PP5)'!$D$295"]
["pp5_bl4_10_13_units_out",{"$f":"'T2-B(PP5)'!$G$295","v":0},"#'T2-B(PP5)'!$G$295"]
["pp5_bl4_10_14_name",{"$f":"'T2-B(PP5)'!$B$296","v":0},"#'T2-B(PP5)'!$B$296"]
["pp5_bl4_10_14_rate_in",{"$f":"'T2-B(PP5)'!$E$296","v":0},"#'T2-B(PP5)'!$E$296"]
["pp5_bl4_10_14_rate_out",{"$f":"'T2-B(PP5)'!$H$296","v":0},"#'T2-B(PP5)'!$H$296"]
["pp5_bl4_10_14_total",{"$f":"'T2-B(PP5)'!$J$296","v":0},"#'T2-B(PP5)'!$J$296"]
["pp5_bl4_10_14_total_in",{"$f":"'T2-B(PP5)'!$F$296","v":0},"#'T2-B(PP5)'!$F$296"]
["pp5_bl4_10_14_total_out",{"$f":"'T2-B(PP5)'!$I$296","v":0},"#'T2-B(PP5)'!$I$296"]
["pp5_bl4_10_14_unit",{"$f":"'T2-B(PP5)'!$C$296","v":0},"#'T2-B(PP5)'!$C$296"]
["pp5_bl4_10_14_unit_in",{"$f":"'T2-B(PP5)'!$D$296","v":0},"#'T2-B(PP5)'!$D$296"]
["pp5_bl4_10_14_units_out",{"$f":"'T2-B(PP5)'!$G$296","v":0},"#'T2-B(PP5)'!$G$296"]
["pp5_bl4_10_15_name",{"$f":"'T2-B(PP5)'!$B$297","v":0},"#'T2-B(PP5)'!$B$297"]
["pp5_bl4_10_15_rate_in",{"$f":"'T2-B(PP5)'!$E$297","v":0},"#'T2-B(PP5)'!$E$297"]
["pp5_bl4_10_15_rate_out",{"$f":"'T2-B(PP5)'!$H$297","v":0},"#'T2-B(PP5)'!$H$297"]
["pp5_bl4_10_15_total",{"$f":"'T2-B(PP5)'!$J$297","v":0},"#'T2-B(PP5)'!$J$297"]
["pp5_bl4_10_15_total_in",{"$f":"'T2-B(PP5)'!$F$297","v":0},"#'T2-B(PP5)'!$F$297"]
["pp5_bl4_10_15_total_out",{"$f":"'T2-B(PP5)'!$I$297","v":0},"#'T2-B(PP5)'!$I$297"]
["pp5_bl4_10_15_unit",{"$f":"'T2-B(PP5)'!$C$297","v":0},"#'T2-B(PP5)'!$C$297"]
["pp5_bl4_10_15_unit_in",{"$f":"'T2-B(PP5)'!$D$297","v":0},"#'T2-B(PP5)'!$D$297"]
["pp5_bl4_10_15_units_out",{"$f":"'T2-B(PP5)'!$G$297","v":0},"#'T2-B(PP5)'!$G$297"]
["pp5_bl4_10_16_name",{"$f":"'T2-B(PP5)'!$B$298","v":0},"#'T2-B(PP5)'!$B$298"]
["pp5_bl4_10_16_rate_in",{"$f":"'T2-B(PP5)'!$E$298","v":0},"#'T2-B(PP5)'!$E$298"]
["pp5_bl4_10_16_rate_out",{"$f":"'T2-B(PP5)'!$H$298","v":0},"#'T2-B(PP5)'!$H$298"]
["pp5_bl4_10_16_total",{"$f":"'T2-B(PP5)'!$J$298","v":0},"#'T2-B(PP5)'!$J$298"]
["pp5_bl4_10_16_total_in",{"$f":"'T2-B(PP5)'!$F$298","v":0},"#'T2-B(PP5)'!$F$298"]
["pp5_bl4_10_16_total_out",{"$f":"'T2-B(PP5)'!$I$298","v":0},"#'T2-B(PP5)'!$I$298"]
["pp5_bl4_10_16_unit",{"$f":"'T2-B(PP5)'!$C$298","v":0},"#'T2-B(PP5)'!$C$298"]
["pp5_bl4_10_16_unit_in",{"$f":"'T2-B(PP5)'!$D$298","v":0},"#'T2-B(PP5)'!$D$298"]
["pp5_bl4_10_16_units_out",{"$f":"'T2-B(PP5)'!$G$298","v":0},"#'T2-B(PP5)'!$G$298"]
["pp5_bl4_10_17_name",{"$f":"'T2-B(PP5)'!$B$299","v":0},"#'T2-B(PP5)'!$B$299"]
["pp5_bl4_10_17_rate_in",{"$f":"'T2-B(PP5)'!$E$299","v":0},"#'T2-B(PP5)'!$E$299"]
["pp5_bl4_10_17_rate_out",{"$f":"'T2-B(PP5)'!$H$299","v":0},"#'T2-B(PP5)'!$H$299"]
["pp5_bl4_10_17_total",{"$f":"'T2-B(PP5)'!$J$299","v":0},"#'T2-B(PP5)'!$J$299"]
["pp5_bl4_10_17_total_in",{"$f":"'T2-B(PP5)'!$F$299","v":0},"#'T2-B(PP5)'!$F$299"]
["pp5_bl4_10_17_total_out",{"$f":"'T2-B(PP5)'!$I$299","v":0},"#'T2-B(PP5)'!$I$299"]
["pp5_bl4_10_17_unit",{"$f":"'T2-B(PP5)'!$C$299","v":0},"#'T2-B(PP5)'!$C$299"]
["pp5_bl4_10_17_unit_in",{"$f":"'T2-B(PP5)'!$D$299","v":0},"#'T2-B(PP5)'!$D$299"]
["pp5_bl4_10_17_units_out",{"$f":"'T2-B(PP5)'!$G$299","v":0},"#'T2-B(PP5)'!$G$299"]
["pp5_bl4_10_18_name",{"$f":"'T2-B(PP5)'!$B$300","v":0},"#'T2-B(PP5)'!$B$300"]
["pp5_bl4_10_18_rate_in",{"$f":"'T2-B(PP5)'!$E$300","v":0},"#'T2-B(PP5)'!$E$300"]
["pp5_bl4_10_18_rate_out",{"$f":"'T2-B(PP5)'!$H$300","v":0},"#'T2-B(PP5)'!$H$300"]
["pp5_bl4_10_18_total",{"$f":"'T2-B(PP5)'!$J$300","v":0},"#'T2-B(PP5)'!$J$300"]
["pp5_bl4_10_18_total_in",{"$f":"'T2-B(PP5)'!$F$300","v":0},"#'T2-B(PP5)'!$F$300"]
["pp5_bl4_10_18_total_out",{"$f":"'T2-B(PP5)'!$I$300","v":0},"#'T2-B(PP5)'!$I$300"]
["pp5_bl4_10_18_unit",{"$f":"'T2-B(PP5)'!$C$300","v":0},"#'T2-B(PP5)'!$C$300"]
["pp5_bl4_10_18_unit_in",{"$f":"'T2-B(PP5)'!$D$300","v":0},"#'T2-B(PP5)'!$D$300"]
["pp5_bl4_10_18_units_out",{"$f":"'T2-B(PP5)'!$G$300","v":0},"#'T2-B(PP5)'!$G$300"]
["pp5_bl4_10_19_name",{"$f":"'T2-B(PP5)'!$B$301","v":0},"#'T2-B(PP5)'!$B$301"]
["pp5_bl4_10_19_rate_in",{"$f":"'T2-B(PP5)'!$E$301","v":0},"#'T2-B(PP5)'!$E$301"]
["pp5_bl4_10_19_rate_out",{"$f":"'T2-B(PP5)'!$H$301","v":0},"#'T2-B(PP5)'!$H$301"]
["pp5_bl4_10_19_total",{"$f":"'T2-B(PP5)'!$J$301","v":0},"#'T2-B(PP5)'!$J$301"]
["pp5_bl4_10_19_total_in",{"$f":"'T2-B(PP5)'!$F$301","v":0},"#'T2-B(PP5)'!$F$301"]
["pp5_bl4_10_19_total_out",{"$f":"'T2-B(PP5)'!$I$301","v":0},"#'T2-B(PP5)'!$I$301"]
["pp5_bl4_10_19_unit",{"$f":"'T2-B(PP5)'!$C$301","v":0},"#'T2-B(PP5)'!$C$301"]
["pp5_bl4_10_19_unit_in",{"$f":"'T2-B(PP5)'!$D$301","v":0},"#'T2-B(PP5)'!$D$301"]
["pp5_bl4_10_19_units_out",{"$f":"'T2-B(PP5)'!$G$301","v":0},"#'T2-B(PP5)'!$G$301"]
["pp5_bl4_10_2_name",{"$f":"'T2-B(PP5)'!$B$284","v":0},"#'T2-B(PP5)'!$B$284"]
["pp5_bl4_10_2_rate_in",{"$f":"'T2-B(PP5)'!$E$284","v":0},"#'T2-B(PP5)'!$E$284"]
["pp5_bl4_10_2_rate_out",{"$f":"'T2-B(PP5)'!$H$284","v":0},"#'T2-B(PP5)'!$H$284"]
["pp5_bl4_10_2_total",{"$f":"'T2-B(PP5)'!$J$284","v":0},"#'T2-B(PP5)'!$J$284"]
["pp5_bl4_10_2_total_in",{"$f":"'T2-B(PP5)'!$F$284","v":0},"#'T2-B(PP5)'!$F$284"]
["pp5_bl4_10_2_total_out",{"$f":"'T2-B(PP5)'!$I$284","v":0},"#'T2-B(PP5)'!$I$284"]
["pp5_bl4_10_2_unit",{"$f":"'T2-B(PP5)'!$C$284","v":0},"#'T2-B(PP5)'!$C$284"]
["pp5_bl4_10_2_unit_in",{"$f":"'T2-B(PP5)'!$D$284","v":0},"#'T2-B(PP5)'!$D$284"]
["pp5_bl4_10_2_units_out",{"$f":"'T2-B(PP5)'!$G$284","v":0},"#'T2-B(PP5)'!$G$284"]
["pp5_bl4_10_20_name",{"$f":"'T2-B(PP5)'!$B$302","v":0},"#'T2-B(PP5)'!$B$302"]
["pp5_bl4_10_20_rate_in",{"$f":"'T2-B(PP5)'!$E$302","v":0},"#'T2-B(PP5)'!$E$302"]
["pp5_bl4_10_20_rate_out",{"$f":"'T2-B(PP5)'!$H$302","v":0},"#'T2-B(PP5)'!$H$302"]
["pp5_bl4_10_20_total",{"$f":"'T2-B(PP5)'!$J$302","v":0},"#'T2-B(PP5)'!$J$302"]
["pp5_bl4_10_20_total_in",{"$f":"'T2-B(PP5)'!$F$302","v":0},"#'T2-B(PP5)'!$F$302"]
["pp5_bl4_10_20_total_out",{"$f":"'T2-B(PP5)'!$I$302","v":0},"#'T2-B(PP5)'!$I$302"]
["pp5_bl4_10_20_unit",{"$f":"'T2-B(PP5)'!$C$302","v":0},"#'T2-B(PP5)'!$C$302"]
["pp5_bl4_10_20_unit_in",{"$f":"'T2-B(PP5)'!$D$302","v":0},"#'T2-B(PP5)'!$D$302"]
["pp5_bl4_10_20_units_out",{"$f":"'T2-B(PP5)'!$G$302","v":0},"#'T2-B(PP5)'!$G$302"]
["pp5_bl4_10_3_name",{"$f":"'T2-B(PP5)'!$B$285","v":0},"#'T2-B(PP5)'!$B$285"]
["pp5_bl4_10_3_rate_in",{"$f":"'T2-B(PP5)'!$E$285","v":0},"#'T2-B(PP5)'!$E$285"]
["pp5_bl4_10_3_rate_out",{"$f":"'T2-B(PP5)'!$H$285","v":0},"#'T2-B(PP5)'!$H$285"]
["pp5_bl4_10_3_total",{"$f":"'T2-B(PP5)'!$J$285","v":0},"#'T2-B(PP5)'!$J$285"]
["pp5_bl4_10_3_total_in",{"$f":"'T2-B(PP5)'!$F$285","v":0},"#'T2-B(PP5)'!$F$285"]
["pp5_bl4_10_3_total_out",{"$f":"'T2-B(PP5)'!$I$285","v":0},"#'T2-B(PP5)'!$I$285"]
["pp5_bl4_10_3_unit",{"$f":"'T2-B(PP5)'!$C$285","v":0},"#'T2-B(PP5)'!$C$285"]
["pp5_bl4_10_3_unit_in",{"$f":"'T2-B(PP5)'!$D$285","v":0},"#'T2-B(PP5)'!$D$285"]
["pp5_bl4_10_3_units_out",{"$f":"'T2-B(PP5)'!$G$285","v":0},"#'T2-B(PP5)'!$G$285"]
["pp5_bl4_10_4_name",{"$f":"'T2-B(PP5)'!$B$286","v":0},"#'T2-B(PP5)'!$B$286"]
["pp5_bl4_10_4_rate_in",{"$f":"'T2-B(PP5)'!$E$286","v":0},"#'T2-B(PP5)'!$E$286"]
["pp5_bl4_10_4_rate_out",{"$f":"'T2-B(PP5)'!$H$286","v":0},"#'T2-B(PP5)'!$H$286"]
["pp5_bl4_10_4_total",{"$f":"'T2-B(PP5)'!$J$286","v":0},"#'T2-B(PP5)'!$J$286"]
["pp5_bl4_10_4_total_in",{"$f":"'T2-B(PP5)'!$F$286","v":0},"#'T2-B(PP5)'!$F$286"]
["pp5_bl4_10_4_total_out",{"$f":"'T2-B(PP5)'!$I$286","v":0},"#'T2-B(PP5)'!$I$286"]
["pp5_bl4_10_4_unit",{"$f":"'T2-B(PP5)'!$C$286","v":0},"#'T2-B(PP5)'!$C$286"]
["pp5_bl4_10_4_unit_in",{"$f":"'T2-B(PP5)'!$D$286","v":0},"#'T2-B(PP5)'!$D$286"]
["pp5_bl4_10_4_units_out",{"$f":"'T2-B(PP5)'!$G$286","v":0},"#'T2-B(PP5)'!$G$286"]
["pp5_bl4_10_5_name",{"$f":"'T2-B(PP5)'!$B$287","v":0},"#'T2-B(PP5)'!$B$287"]
["pp5_bl4_10_5_rate_in",{"$f":"'T2-B(PP5)'!$E$287","v":0},"#'T2-B(PP5)'!$E$287"]
["pp5_bl4_10_5_rate_out",{"$f":"'T2-B(PP5)'!$H$287","v":0},"#'T2-B(PP5)'!$H$287"]
["pp5_bl4_10_5_total",{"$f":"'T2-B(PP5)'!$J$287","v":0},"#'T2-B(PP5)'!$J$287"]
["pp5_bl4_10_5_total_in",{"$f":"'T2-B(PP5)'!$F$287","v":0},"#'T2-B(PP5)'!$F$287"]
["pp5_bl4_10_5_total_out",{"$f":"'T2-B(PP5)'!$I$287","v":0},"#'T2-B(PP5)'!$I$287"]
["pp5_bl4_10_5_unit",{"$f":"'T2-B(PP5)'!$C$287","v":0},"#'T2-B(PP5)'!$C$287"]
["pp5_bl4_10_5_unit_in",{"$f":"'T2-B(PP5)'!$D$287","v":0},"#'T2-B(PP5)'!$D$287"]
["pp5_bl4_10_5_units_out",{"$f":"'T2-B(PP5)'!$G$287","v":0},"#'T2-B(PP5)'!$G$287"]
["pp5_bl4_10_6_name",{"$f":"'T2-B(PP5)'!$B$288","v":0},"#'T2-B(PP5)'!$B$288"]
["pp5_bl4_10_6_rate_in",{"$f":"'T2-B(PP5)'!$E$288","v":0},"#'T2-B(PP5)'!$E$288"]
["pp5_bl4_10_6_rate_out",{"$f":"'T2-B(PP5)'!$H$288","v":0},"#'T2-B(PP5)'!$H$288"]
["pp5_bl4_10_6_total",{"$f":"'T2-B(PP5)'!$J$288","v":0},"#'T2-B(PP5)'!$J$288"]
["pp5_bl4_10_6_total_in",{"$f":"'T2-B(PP5)'!$F$288","v":0},"#'T2-B(PP5)'!$F$288"]
["pp5_bl4_10_6_total_out",{"$f":"'T2-B(PP5)'!$I$288","v":0},"#'T2-B(PP5)'!$I$288"]
["pp5_bl4_10_6_unit",{"$f":"'T2-B(PP5)'!$C$288","v":0},"#'T2-B(PP5)'!$C$288"]
["pp5_bl4_10_6_unit_in",{"$f":"'T2-B(PP5)'!$D$288","v":0},"#'T2-B(PP5)'!$D$288"]
["pp5_bl4_10_6_units_out",{"$f":"'T2-B(PP5)'!$G$288","v":0},"#'T2-B(PP5)'!$G$288"]
["pp5_bl4_10_7_name",{"$f":"'T2-B(PP5)'!$B$289","v":0},"#'T2-B(PP5)'!$B$289"]
["pp5_bl4_10_7_rate_in",{"$f":"'T2-B(PP5)'!$E$289","v":0},"#'T2-B(PP5)'!$E$289"]
["pp5_bl4_10_7_rate_out",{"$f":"'T2-B(PP5)'!$H$289","v":0},"#'T2-B(PP5)'!$H$289"]
["pp5_bl4_10_7_total",{"$f":"'T2-B(PP5)'!$J$289","v":0},"#'T2-B(PP5)'!$J$289"]
["pp5_bl4_10_7_total_in",{"$f":"'T2-B(PP5)'!$F$289","v":0},"#'T2-B(PP5)'!$F$289"]
["pp5_bl4_10_7_total_out",{"$f":"'T2-B(PP5)'!$I$289","v":0},"#'T2-B(PP5)'!$I$289"]
["pp5_bl4_10_7_unit",{"$f":"'T2-B(PP5)'!$C$289","v":0},"#'T2-B(PP5)'!$C$289"]
["pp5_bl4_10_7_unit_in",{"$f":"'T2-B(PP5)'!$D$289","v":0},"#'T2-B(PP5)'!$D$289"]
["pp5_bl4_10_7_units_out",{"$f":"'T2-B(PP5)'!$G$289","v":0},"#'T2-B(PP5)'!$G$289"]
["pp5_bl4_10_8_name",{"$f":"'T2-B(PP5)'!$B$290","v":0},"#'T2-B(PP5)'!$B$290"]
["pp5_bl4_10_8_rate_in",{"$f":"'T2-B(PP5)'!$E$290","v":0},"#'T2-B(PP5)'!$E$290"]
["pp5_bl4_10_8_rate_out",{"$f":"'T2-B(PP5)'!$H$290","v":0},"#'T2-B(PP5)'!$H$290"]
["pp5_bl4_10_8_total",{"$f":"'T2-B(PP5)'!$J$290","v":0},"#'T2-B(PP5)'!$J$290"]
["pp5_bl4_10_8_total_in",{"$f":"'T2-B(PP5)'!$F$290","v":0},"#'T2-B(PP5)'!$F$290"]
["pp5_bl4_10_8_total_out",{"$f":"'T2-B(PP5)'!$I$290","v":0},"#'T2-B(PP5)'!$I$290"]
["pp5_bl4_10_8_unit",{"$f":"'T2-B(PP5)'!$C$290","v":0},"#'T2-B(PP5)'!$C$290"]
["pp5_bl4_10_8_unit_in",{"$f":"'T2-B(PP5)'!$D$290","v":0},"#'T2-B(PP5)'!$D$290"]
["pp5_bl4_10_8_units_out",{"$f":"'T2-B(PP5)'!$G$290","v":0},"#'T2-B(PP5)'!$G$290"]
["pp5_bl4_10_9_name",{"$f":"'T2-B(PP5)'!$B$291","v":0},"#'T2-B(PP5)'!$B$291"]
["pp5_bl4_10_9_rate_in",{"$f":"'T2-B(PP5)'!$E$291","v":0},"#'T2-B(PP5)'!$E$291"]
["pp5_bl4_10_9_rate_out",{"$f":"'T2-B(PP5)'!$H$291","v":0},"#'T2-B(PP5)'!$H$291"]
["pp5_bl4_10_9_total",{"$f":"'T2-B(PP5)'!$J$291","v":0},"#'T2-B(PP5)'!$J$291"]
["pp5_bl4_10_9_total_in",{"$f":"'T2-B(PP5)'!$F$291","v":0},"#'T2-B(PP5)'!$F$291"]
["pp5_bl4_10_9_total_out",{"$f":"'T2-B(PP5)'!$I$291","v":0},"#'T2-B(PP5)'!$I$291"]
["pp5_bl4_10_9_unit",{"$f":"'T2-B(PP5)'!$C$291","v":0},"#'T2-B(PP5)'!$C$291"]
["pp5_bl4_10_9_unit_in",{"$f":"'T2-B(PP5)'!$D$291","v":0},"#'T2-B(PP5)'!$D$291"]
["pp5_bl4_10_9_units_out",{"$f":"'T2-B(PP5)'!$G$291","v":0},"#'T2-B(PP5)'!$G$291"]
["pp5_bl4_10_total",{"$f":"'T2-B(PP5)'!$J$282","v":0},"#'T2-B(PP5)'!$J$282"]
["pp5_bl4_10_total_in",{"$f":"'T2-B(PP5)'!$F$282","v":0},"#'T2-B(PP5)'!$F$282"]
["pp5_bl4_10_total_out",{"$f":"'T2-B(PP5)'!$I$282","v":0},"#'T2-B(PP5)'!$I$282"]
["pp5_bl4_11_1_name",{"$f":"'T2-B(PP5)'!$B$304","v":0},"#'T2-B(PP5)'!$B$304"]
["pp5_bl4_11_1_rate_in",{"$f":"'T2-B(PP5)'!$E$304","v":0},"#'T2-B(PP5)'!$E$304"]
["pp5_bl4_11_1_rate_out",{"$f":"'T2-B(PP5)'!$H$304","v":0},"#'T2-B(PP5)'!$H$304"]
["pp5_bl4_11_1_total",{"$f":"'T2-B(PP5)'!$J$304","v":0},"#'T2-B(PP5)'!$J$304"]
["pp5_bl4_11_1_total_in",{"$f":"'T2-B(PP5)'!$F$304","v":0},"#'T2-B(PP5)'!$F$304"]
["pp5_bl4_11_1_total_out",{"$f":"'T2-B(PP5)'!$I$304","v":0},"#'T2-B(PP5)'!$I$304"]
["pp5_bl4_11_1_unit",{"$f":"'T2-B(PP5)'!$C$304","v":0},"#'T2-B(PP5)'!$C$304"]
["pp5_bl4_11_1_unit_in",{"$f":"'T2-B(PP5)'!$D$304","v":0},"#'T2-B(PP5)'!$D$304"]
["pp5_bl4_11_1_units_out",{"$f":"'T2-B(PP5)'!$G$304","v":0},"#'T2-B(PP5)'!$G$304"]
["pp5_bl4_11_10_name",{"$f":"'T2-B(PP5)'!$B$313","v":0},"#'T2-B(PP5)'!$B$313"]
["pp5_bl4_11_10_rate_in",{"$f":"'T2-B(PP5)'!$E$313","v":0},"#'T2-B(PP5)'!$E$313"]
["pp5_bl4_11_10_rate_out",{"$f":"'T2-B(PP5)'!$H$313","v":0},"#'T2-B(PP5)'!$H$313"]
["pp5_bl4_11_10_total",{"$f":"'T2-B(PP5)'!$J$313","v":0},"#'T2-B(PP5)'!$J$313"]
["pp5_bl4_11_10_total_in",{"$f":"'T2-B(PP5)'!$F$313","v":0},"#'T2-B(PP5)'!$F$313"]
["pp5_bl4_11_10_total_out",{"$f":"'T2-B(PP5)'!$I$313","v":0},"#'T2-B(PP5)'!$I$313"]
["pp5_bl4_11_10_unit",{"$f":"'T2-B(PP5)'!$C$313","v":0},"#'T2-B(PP5)'!$C$313"]
["pp5_bl4_11_10_unit_in",{"$f":"'T2-B(PP5)'!$D$313","v":0},"#'T2-B(PP5)'!$D$313"]
["pp5_bl4_11_10_units_out",{"$f":"'T2-B(PP5)'!$G$313","v":0},"#'T2-B(PP5)'!$G$313"]
["pp5_bl4_11_11_name",{"$f":"'T2-B(PP5)'!$B$314","v":0},"#'T2-B(PP5)'!$B$314"]
["pp5_bl4_11_11_rate_in",{"$f":"'T2-B(PP5)'!$E$314","v":0},"#'T2-B(PP5)'!$E$314"]
["pp5_bl4_11_11_rate_out",{"$f":"'T2-B(PP5)'!$H$314","v":0},"#'T2-B(PP5)'!$H$314"]
["pp5_bl4_11_11_total",{"$f":"'T2-B(PP5)'!$J$314","v":0},"#'T2-B(PP5)'!$J$314"]
["pp5_bl4_11_11_total_in",{"$f":"'T2-B(PP5)'!$F$314","v":0},"#'T2-B(PP5)'!$F$314"]
["pp5_bl4_11_11_total_out",{"$f":"'T2-B(PP5)'!$I$314","v":0},"#'T2-B(PP5)'!$I$314"]
["pp5_bl4_11_11_unit",{"$f":"'T2-B(PP5)'!$C$314","v":0},"#'T2-B(PP5)'!$C$314"]
["pp5_bl4_11_11_unit_in",{"$f":"'T2-B(PP5)'!$D$314","v":0},"#'T2-B(PP5)'!$D$314"]
["pp5_bl4_11_11_units_out",{"$f":"'T2-B(PP5)'!$G$314","v":0},"#'T2-B(PP5)'!$G$314"]
["pp5_bl4_11_12_name",{"$f":"'T2-B(PP5)'!$B$315","v":0},"#'T2-B(PP5)'!$B$315"]
["pp5_bl4_11_12_rate_in",{"$f":"'T2-B(PP5)'!$E$315","v":0},"#'T2-B(PP5)'!$E$315"]
["pp5_bl4_11_12_rate_out",{"$f":"'T2-B(PP5)'!$H$315","v":0},"#'T2-B(PP5)'!$H$315"]
["pp5_bl4_11_12_total",{"$f":"'T2-B(PP5)'!$J$315","v":0},"#'T2-B(PP5)'!$J$315"]
["pp5_bl4_11_12_total_in",{"$f":"'T2-B(PP5)'!$F$315","v":0},"#'T2-B(PP5)'!$F$315"]
["pp5_bl4_11_12_total_out",{"$f":"'T2-B(PP5)'!$I$315","v":0},"#'T2-B(PP5)'!$I$315"]
["pp5_bl4_11_12_unit",{"$f":"'T2-B(PP5)'!$C$315","v":0},"#'T2-B(PP5)'!$C$315"]
["pp5_bl4_11_12_unit_in",{"$f":"'T2-B(PP5)'!$D$315","v":0},"#'T2-B(PP5)'!$D$315"]
["pp5_bl4_11_12_units_out",{"$f":"'T2-B(PP5)'!$G$315","v":0},"#'T2-B(PP5)'!$G$315"]
["pp5_bl4_11_13_name",{"$f":"'T2-B(PP5)'!$B$316","v":0},"#'T2-B(PP5)'!$B$316"]
["pp5_bl4_11_13_rate_in",{"$f":"'T2-B(PP5)'!$E$316","v":0},"#'T2-B(PP5)'!$E$316"]
["pp5_bl4_11_13_rate_out",{"$f":"'T2-B(PP5)'!$H$316","v":0},"#'T2-B(PP5)'!$H$316"]
["pp5_bl4_11_13_total",{"$f":"'T2-B(PP5)'!$J$316","v":0},"#'T2-B(PP5)'!$J$316"]
["pp5_bl4_11_13_total_in",{"$f":"'T2-B(PP5)'!$F$316","v":0},"#'T2-B(PP5)'!$F$316"]
["pp5_bl4_11_13_total_out",{"$f":"'T2-B(PP5)'!$I$316","v":0},"#'T2-B(PP5)'!$I$316"]
["pp5_bl4_11_13_unit",{"$f":"'T2-B(PP5)'!$C$316","v":0},"#'T2-B(PP5)'!$C$316"]
["pp5_bl4_11_13_unit_in",{"$f":"'T2-B(PP5)'!$D$316","v":0},"#'T2-B(PP5)'!$D$316"]
["pp5_bl4_11_13_units_out",{"$f":"'T2-B(PP5)'!$G$316","v":0},"#'T2-B(PP5)'!$G$316"]
["pp5_bl4_11_14_name",{"$f":"'T2-B(PP5)'!$B$317","v":0},"#'T2-B(PP5)'!$B$317"]
["pp5_bl4_11_14_rate_in",{"$f":"'T2-B(PP5)'!$E$317","v":0},"#'T2-B(PP5)'!$E$317"]
["pp5_bl4_11_14_rate_out",{"$f":"'T2-B(PP5)'!$H$317","v":0},"#'T2-B(PP5)'!$H$317"]
["pp5_bl4_11_14_total",{"$f":"'T2-B(PP5)'!$J$317","v":0},"#'T2-B(PP5)'!$J$317"]
["pp5_bl4_11_14_total_in",{"$f":"'T2-B(PP5)'!$F$317","v":0},"#'T2-B(PP5)'!$F$317"]
["pp5_bl4_11_14_total_out",{"$f":"'T2-B(PP5)'!$I$317","v":0},"#'T2-B(PP5)'!$I$317"]
["pp5_bl4_11_14_unit",{"$f":"'T2-B(PP5)'!$C$317","v":0},"#'T2-B(PP5)'!$C$317"]
["pp5_bl4_11_14_unit_in",{"$f":"'T2-B(PP5)'!$D$317","v":0},"#'T2-B(PP5)'!$D$317"]
["pp5_bl4_11_14_units_out",{"$f":"'T2-B(PP5)'!$G$317","v":0},"#'T2-B(PP5)'!$G$317"]
["pp5_bl4_11_15_name",{"$f":"'T2-B(PP5)'!$B$318","v":0},"#'T2-B(PP5)'!$B$318"]
["pp5_bl4_11_15_rate_in",{"$f":"'T2-B(PP5)'!$E$318","v":0},"#'T2-B(PP5)'!$E$318"]
["pp5_bl4_11_15_rate_out",{"$f":"'T2-B(PP5)'!$H$318","v":0},"#'T2-B(PP5)'!$H$318"]
["pp5_bl4_11_15_total",{"$f":"'T2-B(PP5)'!$J$318","v":0},"#'T2-B(PP5)'!$J$318"]
["pp5_bl4_11_15_total_in",{"$f":"'T2-B(PP5)'!$F$318","v":0},"#'T2-B(PP5)'!$F$318"]
["pp5_bl4_11_15_total_out",{"$f":"'T2-B(PP5)'!$I$318","v":0},"#'T2-B(PP5)'!$I$318"]
["pp5_bl4_11_15_unit",{"$f":"'T2-B(PP5)'!$C$318","v":0},"#'T2-B(PP5)'!$C$318"]
["pp5_bl4_11_15_unit_in",{"$f":"'T2-B(PP5)'!$D$318","v":0},"#'T2-B(PP5)'!$D$318"]
["pp5_bl4_11_15_units_out",{"$f":"'T2-B(PP5)'!$G$318","v":0},"#'T2-B(PP5)'!$G$318"]
["pp5_bl4_11_16_name",{"$f":"'T2-B(PP5)'!$B$319","v":0},"#'T2-B(PP5)'!$B$319"]
["pp5_bl4_11_16_rate_in",{"$f":"'T2-B(PP5)'!$E$319","v":0},"#'T2-B(PP5)'!$E$319"]
["pp5_bl4_11_16_rate_out",{"$f":"'T2-B(PP5)'!$H$319","v":0},"#'T2-B(PP5)'!$H$319"]
["pp5_bl4_11_16_total",{"$f":"'T2-B(PP5)'!$J$319","v":0},"#'T2-B(PP5)'!$J$319"]
["pp5_bl4_11_16_total_in",{"$f":"'T2-B(PP5)'!$F$319","v":0},"#'T2-B(PP5)'!$F$319"]
["pp5_bl4_11_16_total_out",{"$f":"'T2-B(PP5)'!$I$319","v":0},"#'T2-B(PP5)'!$I$319"]
["pp5_bl4_11_16_unit",{"$f":"'T2-B(PP5)'!$C$319","v":0},"#'T2-B(PP5)'!$C$319"]
["pp5_bl4_11_16_unit_in",{"$f":"'T2-B(PP5)'!$D$319","v":0},"#'T2-B(PP5)'!$D$319"]
["pp5_bl4_11_16_units_out",{"$f":"'T2-B(PP5)'!$G$319","v":0},"#'T2-B(PP5)'!$G$319"]
["pp5_bl4_11_17_name",{"$f":"'T2-B(PP5)'!$B$320","v":0},"#'T2-B(PP5)'!$B$320"]
["pp5_bl4_11_17_rate_in",{"$f":"'T2-B(PP5)'!$E$320","v":0},"#'T2-B(PP5)'!$E$320"]
["pp5_bl4_11_17_rate_out",{"$f":"'T2-B(PP5)'!$H$320","v":0},"#'T2-B(PP5)'!$H$320"]
["pp5_bl4_11_17_total",{"$f":"'T2-B(PP5)'!$J$320","v":0},"#'T2-B(PP5)'!$J$320"]
["pp5_bl4_11_17_total_in",{"$f":"'T2-B(PP5)'!$F$320","v":0},"#'T2-B(PP5)'!$F$320"]
["pp5_bl4_11_17_total_out",{"$f":"'T2-B(PP5)'!$I$320","v":0},"#'T2-B(PP5)'!$I$320"]
["pp5_bl4_11_17_unit",{"$f":"'T2-B(PP5)'!$C$320","v":0},"#'T2-B(PP5)'!$C$320"]
["pp5_bl4_11_17_unit_in",{"$f":"'T2-B(PP5)'!$D$320","v":0},"#'T2-B(PP5)'!$D$320"]
["pp5_bl4_11_17_units_out",{"$f":"'T2-B(PP5)'!$G$320","v":0},"#'T2-B(PP5)'!$G$320"]
["pp5_bl4_11_18_name",{"$f":"'T2-B(PP5)'!$B$321","v":0},"#'T2-B(PP5)'!$B$321"]
["pp5_bl4_11_18_rate_in",{"$f":"'T2-B(PP5)'!$E$321","v":0},"#'T2-B(PP5)'!$E$321"]
["pp5_bl4_11_18_rate_out",{"$f":"'T2-B(PP5)'!$H$321","v":0},"#'T2-B(PP5)'!$H$321"]
["pp5_bl4_11_18_total",{"$f":"'T2-B(PP5)'!$J$321","v":0},"#'T2-B(PP5)'!$J$321"]
["pp5_bl4_11_18_total_in",{"$f":"'T2-B(PP5)'!$F$321","v":0},"#'T2-B(PP5)'!$F$321"]
["pp5_bl4_11_18_total_out",{"$f":"'T2-B(PP5)'!$I$321","v":0},"#'T2-B(PP5)'!$I$321"]
["pp5_bl4_11_18_unit",{"$f":"'T2-B(PP5)'!$C$321","v":0},"#'T2-B(PP5)'!$C$321"]
["pp5_bl4_11_18_unit_in",{"$f":"'T2-B(PP5)'!$D$321","v":0},"#'T2-B(PP5)'!$D$321"]
["pp5_bl4_11_18_units_out",{"$f":"'T2-B(PP5)'!$G$321","v":0},"#'T2-B(PP5)'!$G$321"]
["pp5_bl4_11_19_name",{"$f":"'T2-B(PP5)'!$B$322","v":0},"#'T2-B(PP5)'!$B$322"]
["pp5_bl4_11_19_rate_in",{"$f":"'T2-B(PP5)'!$E$322","v":0},"#'T2-B(PP5)'!$E$322"]
["pp5_bl4_11_19_rate_out",{"$f":"'T2-B(PP5)'!$H$322","v":0},"#'T2-B(PP5)'!$H$322"]
["pp5_bl4_11_19_total",{"$f":"'T2-B(PP5)'!$J$322","v":0},"#'T2-B(PP5)'!$J$322"]
["pp5_bl4_11_19_total_in",{"$f":"'T2-B(PP5)'!$F$322","v":0},"#'T2-B(PP5)'!$F$322"]
["pp5_bl4_11_19_total_out",{"$f":"'T2-B(PP5)'!$I$322","v":0},"#'T2-B(PP5)'!$I$322"]
["pp5_bl4_11_19_unit",{"$f":"'T2-B(PP5)'!$C$322","v":0},"#'T2-B(PP5)'!$C$322"]
["pp5_bl4_11_19_unit_in",{"$f":"'T2-B(PP5)'!$D$322","v":0},"#'T2-B(PP5)'!$D$322"]
["pp5_bl4_11_19_units_out",{"$f":"'T2-B(PP5)'!$G$322","v":0},"#'T2-B(PP5)'!$G$322"]
["pp5_bl4_11_2_name",{"$f":"'T2-B(PP5)'!$B$305","v":0},"#'T2-B(PP5)'!$B$305"]
["pp5_bl4_11_2_rate_in",{"$f":"'T2-B(PP5)'!$E$305","v":0},"#'T2-B(PP5)'!$E$305"]
["pp5_bl4_11_2_rate_out",{"$f":"'T2-B(PP5)'!$H$305","v":0},"#'T2-B(PP5)'!$H$305"]
["pp5_bl4_11_2_total",{"$f":"'T2-B(PP5)'!$J$305","v":0},"#'T2-B(PP5)'!$J$305"]
["pp5_bl4_11_2_total_in",{"$f":"'T2-B(PP5)'!$F$305","v":0},"#'T2-B(PP5)'!$F$305"]
["pp5_bl4_11_2_total_out",{"$f":"'T2-B(PP5)'!$I$305","v":0},"#'T2-B(PP5)'!$I$305"]
["pp5_bl4_11_2_unit",{"$f":"'T2-B(PP5)'!$C$305","v":0},"#'T2-B(PP5)'!$C$305"]
["pp5_bl4_11_2_unit_in",{"$f":"'T2-B(PP5)'!$D$305","v":0},"#'T2-B(PP5)'!$D$305"]
["pp5_bl4_11_2_units_out",{"$f":"'T2-B(PP5)'!$G$305","v":0},"#'T2-B(PP5)'!$G$305"]
["pp5_bl4_11_20_name",{"$f":"'T2-B(PP5)'!$B$323","v":0},"#'T2-B(PP5)'!$B$323"]
["pp5_bl4_11_20_rate_in",{"$f":"'T2-B(PP5)'!$E$323","v":0},"#'T2-B(PP5)'!$E$323"]
["pp5_bl4_11_20_rate_out",{"$f":"'T2-B(PP5)'!$H$323","v":0},"#'T2-B(PP5)'!$H$323"]
["pp5_bl4_11_20_total",{"$f":"'T2-B(PP5)'!$J$323","v":0},"#'T2-B(PP5)'!$J$323"]
["pp5_bl4_11_20_total_in",{"$f":"'T2-B(PP5)'!$F$323","v":0},"#'T2-B(PP5)'!$F$323"]
["pp5_bl4_11_20_total_out",{"$f":"'T2-B(PP5)'!$I$323","v":0},"#'T2-B(PP5)'!$I$323"]
["pp5_bl4_11_20_unit",{"$f":"'T2-B(PP5)'!$C$323","v":0},"#'T2-B(PP5)'!$C$323"]
["pp5_bl4_11_20_unit_in",{"$f":"'T2-B(PP5)'!$D$323","v":0},"#'T2-B(PP5)'!$D$323"]
["pp5_bl4_11_20_units_out",{"$f":"'T2-B(PP5)'!$G$323","v":0},"#'T2-B(PP5)'!$G$323"]
["pp5_bl4_11_3_name",{"$f":"'T2-B(PP5)'!$B$306","v":0},"#'T2-B(PP5)'!$B$306"]
["pp5_bl4_11_3_rate_in",{"$f":"'T2-B(PP5)'!$E$306","v":0},"#'T2-B(PP5)'!$E$306"]
["pp5_bl4_11_3_rate_out",{"$f":"'T2-B(PP5)'!$H$306","v":0},"#'T2-B(PP5)'!$H$306"]
["pp5_bl4_11_3_total",{"$f":"'T2-B(PP5)'!$J$306","v":0},"#'T2-B(PP5)'!$J$306"]
["pp5_bl4_11_3_total_in",{"$f":"'T2-B(PP5)'!$F$306","v":0},"#'T2-B(PP5)'!$F$306"]
["pp5_bl4_11_3_total_out",{"$f":"'T2-B(PP5)'!$I$306","v":0},"#'T2-B(PP5)'!$I$306"]
["pp5_bl4_11_3_unit",{"$f":"'T2-B(PP5)'!$C$306","v":0},"#'T2-B(PP5)'!$C$306"]
["pp5_bl4_11_3_unit_in",{"$f":"'T2-B(PP5)'!$D$306","v":0},"#'T2-B(PP5)'!$D$306"]
["pp5_bl4_11_3_units_out",{"$f":"'T2-B(PP5)'!$G$306","v":0},"#'T2-B(PP5)'!$G$306"]
["pp5_bl4_11_4_name",{"$f":"'T2-B(PP5)'!$B$307","v":0},"#'T2-B(PP5)'!$B$307"]
["pp5_bl4_11_4_rate_in",{"$f":"'T2-B(PP5)'!$E$307","v":0},"#'T2-B(PP5)'!$E$307"]
["pp5_bl4_11_4_rate_out",{"$f":"'T2-B(PP5)'!$H$307","v":0},"#'T2-B(PP5)'!$H$307"]
["pp5_bl4_11_4_total",{"$f":"'T2-B(PP5)'!$J$307","v":0},"#'T2-B(PP5)'!$J$307"]
["pp5_bl4_11_4_total_in",{"$f":"'T2-B(PP5)'!$F$307","v":0},"#'T2-B(PP5)'!$F$307"]
["pp5_bl4_11_4_total_out",{"$f":"'T2-B(PP5)'!$I$307","v":0},"#'T2-B(PP5)'!$I$307"]
["pp5_bl4_11_4_unit",{"$f":"'T2-B(PP5)'!$C$307","v":0},"#'T2-B(PP5)'!$C$307"]
["pp5_bl4_11_4_unit_in",{"$f":"'T2-B(PP5)'!$D$307","v":0},"#'T2-B(PP5)'!$D$307"]
["pp5_bl4_11_4_units_out",{"$f":"'T2-B(PP5)'!$G$307","v":0},"#'T2-B(PP5)'!$G$307"]
["pp5_bl4_11_5_name",{"$f":"'T2-B(PP5)'!$B$308","v":0},"#'T2-B(PP5)'!$B$308"]
["pp5_bl4_11_5_rate_in",{"$f":"'T2-B(PP5)'!$E$308","v":0},"#'T2-B(PP5)'!$E$308"]
["pp5_bl4_11_5_rate_out",{"$f":"'T2-B(PP5)'!$H$308","v":0},"#'T2-B(PP5)'!$H$308"]
["pp5_bl4_11_5_total",{"$f":"'T2-B(PP5)'!$J$308","v":0},"#'T2-B(PP5)'!$J$308"]
["pp5_bl4_11_5_total_in",{"$f":"'T2-B(PP5)'!$F$308","v":0},"#'T2-B(PP5)'!$F$308"]
["pp5_bl4_11_5_total_out",{"$f":"'T2-B(PP5)'!$I$308","v":0},"#'T2-B(PP5)'!$I$308"]
["pp5_bl4_11_5_unit",{"$f":"'T2-B(PP5)'!$C$308","v":0},"#'T2-B(PP5)'!$C$308"]
["pp5_bl4_11_5_unit_in",{"$f":"'T2-B(PP5)'!$D$308","v":0},"#'T2-B(PP5)'!$D$308"]
["pp5_bl4_11_5_units_out",{"$f":"'T2-B(PP5)'!$G$308","v":0},"#'T2-B(PP5)'!$G$308"]
["pp5_bl4_11_6_name",{"$f":"'T2-B(PP5)'!$B$309","v":0},"#'T2-B(PP5)'!$B$309"]
["pp5_bl4_11_6_rate_in",{"$f":"'T2-B(PP5)'!$E$309","v":0},"#'T2-B(PP5)'!$E$309"]
["pp5_bl4_11_6_rate_out",{"$f":"'T2-B(PP5)'!$H$309","v":0},"#'T2-B(PP5)'!$H$309"]
["pp5_bl4_11_6_total",{"$f":"'T2-B(PP5)'!$J$309","v":0},"#'T2-B(PP5)'!$J$309"]
["pp5_bl4_11_6_total_in",{"$f":"'T2-B(PP5)'!$F$309","v":0},"#'T2-B(PP5)'!$F$309"]
["pp5_bl4_11_6_total_out",{"$f":"'T2-B(PP5)'!$I$309","v":0},"#'T2-B(PP5)'!$I$309"]
["pp5_bl4_11_6_unit",{"$f":"'T2-B(PP5)'!$C$309","v":0},"#'T2-B(PP5)'!$C$309"]
["pp5_bl4_11_6_unit_in",{"$f":"'T2-B(PP5)'!$D$309","v":0},"#'T2-B(PP5)'!$D$309"]
["pp5_bl4_11_6_units_out",{"$f":"'T2-B(PP5)'!$G$309","v":0},"#'T2-B(PP5)'!$G$309"]
["pp5_bl4_11_7_name",{"$f":"'T2-B(PP5)'!$B$310","v":0},"#'T2-B(PP5)'!$B$310"]
["pp5_bl4_11_7_rate_in",{"$f":"'T2-B(PP5)'!$E$310","v":0},"#'T2-B(PP5)'!$E$310"]
["pp5_bl4_11_7_rate_out",{"$f":"'T2-B(PP5)'!$H$310","v":0},"#'T2-B(PP5)'!$H$310"]
["pp5_bl4_11_7_total",{"$f":"'T2-B(PP5)'!$J$310","v":0},"#'T2-B(PP5)'!$J$310"]
["pp5_bl4_11_7_total_in",{"$f":"'T2-B(PP5)'!$F$310","v":0},"#'T2-B(PP5)'!$F$310"]
["pp5_bl4_11_7_total_out",{"$f":"'T2-B(PP5)'!$I$310","v":0},"#'T2-B(PP5)'!$I$310"]
["pp5_bl4_11_7_unit",{"$f":"'T2-B(PP5)'!$C$310","v":0},"#'T2-B(PP5)'!$C$310"]
["pp5_bl4_11_7_unit_in",{"$f":"'T2-B(PP5)'!$D$310","v":0},"#'T2-B(PP5)'!$D$310"]
["pp5_bl4_11_7_units_out",{"$f":"'T2-B(PP5)'!$G$310","v":0},"#'T2-B(PP5)'!$G$310"]
["pp5_bl4_11_8_name",{"$f":"'T2-B(PP5)'!$B$311","v":0},"#'T2-B(PP5)'!$B$311"]
["pp5_bl4_11_8_rate_in",{"$f":"'T2-B(PP5)'!$E$311","v":0},"#'T2-B(PP5)'!$E$311"]
["pp5_bl4_11_8_rate_out",{"$f":"'T2-B(PP5)'!$H$311","v":0},"#'T2-B(PP5)'!$H$311"]
["pp5_bl4_11_8_total",{"$f":"'T2-B(PP5)'!$J$311","v":0},"#'T2-B(PP5)'!$J$311"]
["pp5_bl4_11_8_total_in",{"$f":"'T2-B(PP5)'!$F$311","v":0},"#'T2-B(PP5)'!$F$311"]
["pp5_bl4_11_8_total_out",{"$f":"'T2-B(PP5)'!$I$311","v":0},"#'T2-B(PP5)'!$I$311"]
["pp5_bl4_11_8_unit",{"$f":"'T2-B(PP5)'!$C$311","v":0},"#'T2-B(PP5)'!$C$311"]
["pp5_bl4_11_8_unit_in",{"$f":"'T2-B(PP5)'!$D$311","v":0},"#'T2-B(PP5)'!$D$311"]
["pp5_bl4_11_8_units_out",{"$f":"'T2-B(PP5)'!$G$311","v":0},"#'T2-B(PP5)'!$G$311"]
["pp5_bl4_11_9_name",{"$f":"'T2-B(PP5)'!$B$312","v":0},"#'T2-B(PP5)'!$B$312"]
["pp5_bl4_11_9_rate_in",{"$f":"'T2-B(PP5)'!$E$312","v":0},"#'T2-B(PP5)'!$E$312"]
["pp5_bl4_11_9_rate_out",{"$f":"'T2-B(PP5)'!$H$312","v":0},"#'T2-B(PP5)'!$H$312"]
["pp5_bl4_11_9_total",{"$f":"'T2-B(PP5)'!$J$312","v":0},"#'T2-B(PP5)'!$J$312"]
["pp5_bl4_11_9_total_in",{"$f":"'T2-B(PP5)'!$F$312","v":0},"#'T2-B(PP5)'!$F$312"]
["pp5_bl4_11_9_total_out",{"$f":"'T2-B(PP5)'!$I$312","v":0},"#'T2-B(PP5)'!$I$312"]
["pp5_bl4_11_9_unit",{"$f":"'T2-B(PP5)'!$C$312","v":0},"#'T2-B(PP5)'!$C$312"]
["pp5_bl4_11_9_unit_in",{"$f":"'T2-B(PP5)'!$D$312","v":0},"#'T2-B(PP5)'!$D$312"]
["pp5_bl4_11_9_units_out",{"$f":"'T2-B(PP5)'!$G$312","v":0},"#'T2-B(PP5)'!$G$312"]
["pp5_bl4_11_total",{"$f":"'T2-B(PP5)'!$J$303","v":0},"#'T2-B(PP5)'!$J$303"]
["pp5_bl4_11_total_in",{"$f":"'T2-B(PP5)'!$F$303","v":0},"#'T2-B(PP5)'!$F$303"]
["pp5_bl4_11_total_out",{"$f":"'T2-B(PP5)'!$I$303","v":0},"#'T2-B(PP5)'!$I$303"]
["pp5_bl4_12_1_name",{"$f":"'T2-B(PP5)'!$B$325","v":0},"#'T2-B(PP5)'!$B$325"]
["pp5_bl4_12_1_rate_in",{"$f":"'T2-B(PP5)'!$E$325","v":0},"#'T2-B(PP5)'!$E$325"]
["pp5_bl4_12_1_rate_out",{"$f":"'T2-B(PP5)'!$H$325","v":0},"#'T2-B(PP5)'!$H$325"]
["pp5_bl4_12_1_total",{"$f":"'T2-B(PP5)'!$J$325","v":0},"#'T2-B(PP5)'!$J$325"]
["pp5_bl4_12_1_total_in",{"$f":"'T2-B(PP5)'!$F$325","v":0},"#'T2-B(PP5)'!$F$325"]
["pp5_bl4_12_1_total_out",{"$f":"'T2-B(PP5)'!$I$325","v":0},"#'T2-B(PP5)'!$I$325"]
["pp5_bl4_12_1_unit",{"$f":"'T2-B(PP5)'!$C$325","v":0},"#'T2-B(PP5)'!$C$325"]
["pp5_bl4_12_1_unit_in",{"$f":"'T2-B(PP5)'!$D$325","v":0},"#'T2-B(PP5)'!$D$325"]
["pp5_bl4_12_1_units_out",{"$f":"'T2-B(PP5)'!$G$325","v":0},"#'T2-B(PP5)'!$G$325"]
["pp5_bl4_12_10_name",{"$f":"'T2-B(PP5)'!$B$334","v":0},"#'T2-B(PP5)'!$B$334"]
["pp5_bl4_12_10_rate_in",{"$f":"'T2-B(PP5)'!$E$334","v":0},"#'T2-B(PP5)'!$E$334"]
["pp5_bl4_12_10_rate_out",{"$f":"'T2-B(PP5)'!$H$334","v":0},"#'T2-B(PP5)'!$H$334"]
["pp5_bl4_12_10_total",{"$f":"'T2-B(PP5)'!$J$334","v":0},"#'T2-B(PP5)'!$J$334"]
["pp5_bl4_12_10_total_in",{"$f":"'T2-B(PP5)'!$F$334","v":0},"#'T2-B(PP5)'!$F$334"]
["pp5_bl4_12_10_total_out",{"$f":"'T2-B(PP5)'!$I$334","v":0},"#'T2-B(PP5)'!$I$334"]
["pp5_bl4_12_10_unit",{"$f":"'T2-B(PP5)'!$C$334","v":0},"#'T2-B(PP5)'!$C$334"]
["pp5_bl4_12_10_unit_in",{"$f":"'T2-B(PP5)'!$D$334","v":0},"#'T2-B(PP5)'!$D$334"]
["pp5_bl4_12_10_units_out",{"$f":"'T2-B(PP5)'!$G$334","v":0},"#'T2-B(PP5)'!$G$334"]
["pp5_bl4_12_11_name",{"$f":"'T2-B(PP5)'!$B$335","v":0},"#'T2-B(PP5)'!$B$335"]
["pp5_bl4_12_11_rate_in",{"$f":"'T2-B(PP5)'!$E$335","v":0},"#'T2-B(PP5)'!$E$335"]
["pp5_bl4_12_11_rate_out",{"$f":"'T2-B(PP5)'!$H$335","v":0},"#'T2-B(PP5)'!$H$335"]
["pp5_bl4_12_11_total",{"$f":"'T2-B(PP5)'!$J$335","v":0},"#'T2-B(PP5)'!$J$335"]
["pp5_bl4_12_11_total_in",{"$f":"'T2-B(PP5)'!$F$335","v":0},"#'T2-B(PP5)'!$F$335"]
["pp5_bl4_12_11_total_out",{"$f":"'T2-B(PP5)'!$I$335","v":0},"#'T2-B(PP5)'!$I$335"]
["pp5_bl4_12_11_unit",{"$f":"'T2-B(PP5)'!$C$335","v":0},"#'T2-B(PP5)'!$C$335"]
["pp5_bl4_12_11_unit_in",{"$f":"'T2-B(PP5)'!$D$335","v":0},"#'T2-B(PP5)'!$D$335"]
["pp5_bl4_12_11_units_out",{"$f":"'T2-B(PP5)'!$G$335","v":0},"#'T2-B(PP5)'!$G$335"]
["pp5_bl4_12_12_name",{"$f":"'T2-B(PP5)'!$B$336","v":0},"#'T2-B(PP5)'!$B$336"]
["pp5_bl4_12_12_rate_in",{"$f":"'T2-B(PP5)'!$E$336","v":0},"#'T2-B(PP5)'!$E$336"]
["pp5_bl4_12_12_rate_out",{"$f":"'T2-B(PP5)'!$H$336","v":0},"#'T2-B(PP5)'!$H$336"]
["pp5_bl4_12_12_total",{"$f":"'T2-B(PP5)'!$J$336","v":0},"#'T2-B(PP5)'!$J$336"]
["pp5_bl4_12_12_total_in",{"$f":"'T2-B(PP5)'!$F$336","v":0},"#'T2-B(PP5)'!$F$336"]
["pp5_bl4_12_12_total_out",{"$f":"'T2-B(PP5)'!$I$336","v":0},"#'T2-B(PP5)'!$I$336"]
["pp5_bl4_12_12_unit",{"$f":"'T2-B(PP5)'!$C$336","v":0},"#'T2-B(PP5)'!$C$336"]
["pp5_bl4_12_12_unit_in",{"$f":"'T2-B(PP5)'!$D$336","v":0},"#'T2-B(PP5)'!$D$336"]
["pp5_bl4_12_12_units_out",{"$f":"'T2-B(PP5)'!$G$336","v":0},"#'T2-B(PP5)'!$G$336"]
["pp5_bl4_12_13_name",{"$f":"'T2-B(PP5)'!$B$337","v":0},"#'T2-B(PP5)'!$B$337"]
["pp5_bl4_12_13_rate_in",{"$f":"'T2-B(PP5)'!$E$337","v":0},"#'T2-B(PP5)'!$E$337"]
["pp5_bl4_12_13_rate_out",{"$f":"'T2-B(PP5)'!$H$337","v":0},"#'T2-B(PP5)'!$H$337"]
["pp5_bl4_12_13_total",{"$f":"'T2-B(PP5)'!$J$337","v":0},"#'T2-B(PP5)'!$J$337"]
["pp5_bl4_12_13_total_in",{"$f":"'T2-B(PP5)'!$F$337","v":0},"#'T2-B(PP5)'!$F$337"]
["pp5_bl4_12_13_total_out",{"$f":"'T2-B(PP5)'!$I$337","v":0},"#'T2-B(PP5)'!$I$337"]
["pp5_bl4_12_13_unit",{"$f":"'T2-B(PP5)'!$C$337","v":0},"#'T2-B(PP5)'!$C$337"]
["pp5_bl4_12_13_unit_in",{"$f":"'T2-B(PP5)'!$D$337","v":0},"#'T2-B(PP5)'!$D$337"]
["pp5_bl4_12_13_units_out",{"$f":"'T2-B(PP5)'!$G$337","v":0},"#'T2-B(PP5)'!$G$337"]
["pp5_bl4_12_14_name",{"$f":"'T2-B(PP5)'!$B$338","v":0},"#'T2-B(PP5)'!$B$338"]
["pp5_bl4_12_14_rate_in",{"$f":"'T2-B(PP5)'!$E$338","v":0},"#'T2-B(PP5)'!$E$338"]
["pp5_bl4_12_14_rate_out",{"$f":"'T2-B(PP5)'!$H$338","v":0},"#'T2-B(PP5)'!$H$338"]
["pp5_bl4_12_14_total",{"$f":"'T2-B(PP5)'!$J$338","v":0},"#'T2-B(PP5)'!$J$338"]
["pp5_bl4_12_14_total_in",{"$f":"'T2-B(PP5)'!$F$338","v":0},"#'T2-B(PP5)'!$F$338"]
["pp5_bl4_12_14_total_out",{"$f":"'T2-B(PP5)'!$I$338","v":0},"#'T2-B(PP5)'!$I$338"]
["pp5_bl4_12_14_unit",{"$f":"'T2-B(PP5)'!$C$338","v":0},"#'T2-B(PP5)'!$C$338"]
["pp5_bl4_12_14_unit_in",{"$f":"'T2-B(PP5)'!$D$338","v":0},"#'T2-B(PP5)'!$D$338"]
["pp5_bl4_12_14_units_out",{"$f":"'T2-B(PP5)'!$G$338","v":0},"#'T2-B(PP5)'!$G$338"]
["pp5_bl4_12_15_name",{"$f":"'T2-B(PP5)'!$B$339","v":0},"#'T2-B(PP5)'!$B$339"]
["pp5_bl4_12_15_rate_in",{"$f":"'T2-B(PP5)'!$E$339","v":0},"#'T2-B(PP5)'!$E$339"]
["pp5_bl4_12_15_rate_out",{"$f":"'T2-B(PP5)'!$H$339","v":0},"#'T2-B(PP5)'!$H$339"]
["pp5_bl4_12_15_total",{"$f":"'T2-B(PP5)'!$J$339","v":0},"#'T2-B(PP5)'!$J$339"]
["pp5_bl4_12_15_total_in",{"$f":"'T2-B(PP5)'!$F$339","v":0},"#'T2-B(PP5)'!$F$339"]
["pp5_bl4_12_15_total_out",{"$f":"'T2-B(PP5)'!$I$339","v":0},"#'T2-B(PP5)'!$I$339"]
["pp5_bl4_12_15_unit",{"$f":"'T2-B(PP5)'!$C$339","v":0},"#'T2-B(PP5)'!$C$339"]
["pp5_bl4_12_15_unit_in",{"$f":"'T2-B(PP5)'!$D$339","v":0},"#'T2-B(PP5)'!$D$339"]
["pp5_bl4_12_15_units_out",{"$f":"'T2-B(PP5)'!$G$339","v":0},"#'T2-B(PP5)'!$G$339"]
["pp5_bl4_12_16_name",{"$f":"'T2-B(PP5)'!$B$340","v":0},"#'T2-B(PP5)'!$B$340"]
["pp5_bl4_12_16_rate_in",{"$f":"'T2-B(PP5)'!$E$340","v":0},"#'T2-B(PP5)'!$E$340"]
["pp5_bl4_12_16_rate_out",{"$f":"'T2-B(PP5)'!$H$340","v":0},"#'T2-B(PP5)'!$H$340"]
["pp5_bl4_12_16_total",{"$f":"'T2-B(PP5)'!$J$340","v":0},"#'T2-B(PP5)'!$J$340"]
["pp5_bl4_12_16_total_in",{"$f":"'T2-B(PP5)'!$F$340","v":0},"#'T2-B(PP5)'!$F$340"]
["pp5_bl4_12_16_total_out",{"$f":"'T2-B(PP5)'!$I$340","v":0},"#'T2-B(PP5)'!$I$340"]
["pp5_bl4_12_16_unit",{"$f":"'T2-B(PP5)'!$C$340","v":0},"#'T2-B(PP5)'!$C$340"]
["pp5_bl4_12_16_unit_in",{"$f":"'T2-B(PP5)'!$D$340","v":0},"#'T2-B(PP5)'!$D$340"]
["pp5_bl4_12_16_units_out",{"$f":"'T2-B(PP5)'!$G$340","v":0},"#'T2-B(PP5)'!$G$340"]
["pp5_bl4_12_17_name",{"$f":"'T2-B(PP5)'!$B$341","v":0},"#'T2-B(PP5)'!$B$341"]
["pp5_bl4_12_17_rate_in",{"$f":"'T2-B(PP5)'!$E$341","v":0},"#'T2-B(PP5)'!$E$341"]
["pp5_bl4_12_17_rate_out",{"$f":"'T2-B(PP5)'!$H$341","v":0},"#'T2-B(PP5)'!$H$341"]
["pp5_bl4_12_17_total",{"$f":"'T2-B(PP5)'!$J$341","v":0},"#'T2-B(PP5)'!$J$341"]
["pp5_bl4_12_17_total_in",{"$f":"'T2-B(PP5)'!$F$341","v":0},"#'T2-B(PP5)'!$F$341"]
["pp5_bl4_12_17_total_out",{"$f":"'T2-B(PP5)'!$I$341","v":0},"#'T2-B(PP5)'!$I$341"]
["pp5_bl4_12_17_unit",{"$f":"'T2-B(PP5)'!$C$341","v":0},"#'T2-B(PP5)'!$C$341"]
["pp5_bl4_12_17_unit_in",{"$f":"'T2-B(PP5)'!$D$341","v":0},"#'T2-B(PP5)'!$D$341"]
["pp5_bl4_12_17_units_out",{"$f":"'T2-B(PP5)'!$G$341","v":0},"#'T2-B(PP5)'!$G$341"]
["pp5_bl4_12_18_name",{"$f":"'T2-B(PP5)'!$B$342","v":0},"#'T2-B(PP5)'!$B$342"]
["pp5_bl4_12_18_rate_in",{"$f":"'T2-B(PP5)'!$E$342","v":0},"#'T2-B(PP5)'!$E$342"]
["pp5_bl4_12_18_rate_out",{"$f":"'T2-B(PP5)'!$H$342","v":0},"#'T2-B(PP5)'!$H$342"]
["pp5_bl4_12_18_total",{"$f":"'T2-B(PP5)'!$J$342","v":0},"#'T2-B(PP5)'!$J$342"]
["pp5_bl4_12_18_total_in",{"$f":"'T2-B(PP5)'!$F$342","v":0},"#'T2-B(PP5)'!$F$342"]
["pp5_bl4_12_18_total_out",{"$f":"'T2-B(PP5)'!$I$342","v":0},"#'T2-B(PP5)'!$I$342"]
["pp5_bl4_12_18_unit",{"$f":"'T2-B(PP5)'!$C$342","v":0},"#'T2-B(PP5)'!$C$342"]
["pp5_bl4_12_18_unit_in",{"$f":"'T2-B(PP5)'!$D$342","v":0},"#'T2-B(PP5)'!$D$342"]
["pp5_bl4_12_18_units_out",{"$f":"'T2-B(PP5)'!$G$342","v":0},"#'T2-B(PP5)'!$G$342"]
["pp5_bl4_12_19_name",{"$f":"'T2-B(PP5)'!$B$343","v":0},"#'T2-B(PP5)'!$B$343"]
["pp5_bl4_12_19_rate_in",{"$f":"'T2-B(PP5)'!$E$343","v":0},"#'T2-B(PP5)'!$E$343"]
["pp5_bl4_12_19_rate_out",{"$f":"'T2-B(PP5)'!$H$343","v":0},"#'T2-B(PP5)'!$H$343"]
["pp5_bl4_12_19_total",{"$f":"'T2-B(PP5)'!$J$343","v":0},"#'T2-B(PP5)'!$J$343"]
["pp5_bl4_12_19_total_in",{"$f":"'T2-B(PP5)'!$F$343","v":0},"#'T2-B(PP5)'!$F$343"]
["pp5_bl4_12_19_total_out",{"$f":"'T2-B(PP5)'!$I$343","v":0},"#'T2-B(PP5)'!$I$343"]
["pp5_bl4_12_19_unit",{"$f":"'T2-B(PP5)'!$C$343","v":0},"#'T2-B(PP5)'!$C$343"]
["pp5_bl4_12_19_unit_in",{"$f":"'T2-B(PP5)'!$D$343","v":0},"#'T2-B(PP5)'!$D$343"]
["pp5_bl4_12_19_units_out",{"$f":"'T2-B(PP5)'!$G$343","v":0},"#'T2-B(PP5)'!$G$343"]
["pp5_bl4_12_2_name",{"$f":"'T2-B(PP5)'!$B$326","v":0},"#'T2-B(PP5)'!$B$326"]
["pp5_bl4_12_2_rate_in",{"$f":"'T2-B(PP5)'!$E$326","v":0},"#'T2-B(PP5)'!$E$326"]
["pp5_bl4_12_2_rate_out",{"$f":"'T2-B(PP5)'!$H$326","v":0},"#'T2-B(PP5)'!$H$326"]
["pp5_bl4_12_2_total",{"$f":"'T2-B(PP5)'!$J$326","v":0},"#'T2-B(PP5)'!$J$326"]
["pp5_bl4_12_2_total_in",{"$f":"'T2-B(PP5)'!$F$326","v":0},"#'T2-B(PP5)'!$F$326"]
["pp5_bl4_12_2_total_out",{"$f":"'T2-B(PP5)'!$I$326","v":0},"#'T2-B(PP5)'!$I$326"]
["pp5_bl4_12_2_unit",{"$f":"'T2-B(PP5)'!$C$326","v":0},"#'T2-B(PP5)'!$C$326"]
["pp5_bl4_12_2_unit_in",{"$f":"'T2-B(PP5)'!$D$326","v":0},"#'T2-B(PP5)'!$D$326"]
["pp5_bl4_12_2_units_out",{"$f":"'T2-B(PP5)'!$G$326","v":0},"#'T2-B(PP5)'!$G$326"]
["pp5_bl4_12_20_name",{"$f":"'T2-B(PP5)'!$B$344","v":0},"#'T2-B(PP5)'!$B$344"]
["pp5_bl4_12_20_rate_in",{"$f":"'T2-B(PP5)'!$E$344","v":0},"#'T2-B(PP5)'!$E$344"]
["pp5_bl4_12_20_rate_out",{"$f":"'T2-B(PP5)'!$H$344","v":0},"#'T2-B(PP5)'!$H$344"]
["pp5_bl4_12_20_total",{"$f":"'T2-B(PP5)'!$J$344","v":0},"#'T2-B(PP5)'!$J$344"]
["pp5_bl4_12_20_total_in",{"$f":"'T2-B(PP5)'!$F$344","v":0},"#'T2-B(PP5)'!$F$344"]
["pp5_bl4_12_20_total_out",{"$f":"'T2-B(PP5)'!$I$344","v":0},"#'T2-B(PP5)'!$I$344"]
["pp5_bl4_12_20_unit",{"$f":"'T2-B(PP5)'!$C$344","v":0},"#'T2-B(PP5)'!$C$344"]
["pp5_bl4_12_20_unit_in",{"$f":"'T2-B(PP5)'!$D$344","v":0},"#'T2-B(PP5)'!$D$344"]
["pp5_bl4_12_20_units_out",{"$f":"'T2-B(PP5)'!$G$344","v":0},"#'T2-B(PP5)'!$G$344"]
["pp5_bl4_12_3_name",{"$f":"'T2-B(PP5)'!$B$327","v":0},"#'T2-B(PP5)'!$B$327"]
["pp5_bl4_12_3_rate_in",{"$f":"'T2-B(PP5)'!$E$327","v":0},"#'T2-B(PP5)'!$E$327"]
["pp5_bl4_12_3_rate_out",{"$f":"'T2-B(PP5)'!$H$327","v":0},"#'T2-B(PP5)'!$H$327"]
["pp5_bl4_12_3_total",{"$f":"'T2-B(PP5)'!$J$327","v":0},"#'T2-B(PP5)'!$J$327"]
["pp5_bl4_12_3_total_in",{"$f":"'T2-B(PP5)'!$F$327","v":0},"#'T2-B(PP5)'!$F$327"]
["pp5_bl4_12_3_total_out",{"$f":"'T2-B(PP5)'!$I$327","v":0},"#'T2-B(PP5)'!$I$327"]
["pp5_bl4_12_3_unit",{"$f":"'T2-B(PP5)'!$C$327","v":0},"#'T2-B(PP5)'!$C$327"]
["pp5_bl4_12_3_unit_in",{"$f":"'T2-B(PP5)'!$D$327","v":0},"#'T2-B(PP5)'!$D$327"]
["pp5_bl4_12_3_units_out",{"$f":"'T2-B(PP5)'!$G$327","v":0},"#'T2-B(PP5)'!$G$327"]
["pp5_bl4_12_4_name",{"$f":"'T2-B(PP5)'!$B$328","v":0},"#'T2-B(PP5)'!$B$328"]
["pp5_bl4_12_4_rate_in",{"$f":"'T2-B(PP5)'!$E$328","v":0},"#'T2-B(PP5)'!$E$328"]
["pp5_bl4_12_4_rate_out",{"$f":"'T2-B(PP5)'!$H$328","v":0},"#'T2-B(PP5)'!$H$328"]
["pp5_bl4_12_4_total",{"$f":"'T2-B(PP5)'!$J$328","v":0},"#'T2-B(PP5)'!$J$328"]
["pp5_bl4_12_4_total_in",{"$f":"'T2-B(PP5)'!$F$328","v":0},"#'T2-B(PP5)'!$F$328"]
["pp5_bl4_12_4_total_out",{"$f":"'T2-B(PP5)'!$I$328","v":0},"#'T2-B(PP5)'!$I$328"]
["pp5_bl4_12_4_unit",{"$f":"'T2-B(PP5)'!$C$328","v":0},"#'T2-B(PP5)'!$C$328"]
["pp5_bl4_12_4_unit_in",{"$f":"'T2-B(PP5)'!$D$328","v":0},"#'T2-B(PP5)'!$D$328"]
["pp5_bl4_12_4_units_out",{"$f":"'T2-B(PP5)'!$G$328","v":0},"#'T2-B(PP5)'!$G$328"]
["pp5_bl4_12_5_name",{"$f":"'T2-B(PP5)'!$B$329","v":0},"#'T2-B(PP5)'!$B$329"]
["pp5_bl4_12_5_rate_in",{"$f":"'T2-B(PP5)'!$E$329","v":0},"#'T2-B(PP5)'!$E$329"]
["pp5_bl4_12_5_rate_out",{"$f":"'T2-B(PP5)'!$H$329","v":0},"#'T2-B(PP5)'!$H$329"]
["pp5_bl4_12_5_total",{"$f":"'T2-B(PP5)'!$J$329","v":0},"#'T2-B(PP5)'!$J$329"]
["pp5_bl4_12_5_total_in",{"$f":"'T2-B(PP5)'!$F$329","v":0},"#'T2-B(PP5)'!$F$329"]
["pp5_bl4_12_5_total_out",{"$f":"'T2-B(PP5)'!$I$329","v":0},"#'T2-B(PP5)'!$I$329"]
["pp5_bl4_12_5_unit",{"$f":"'T2-B(PP5)'!$C$329","v":0},"#'T2-B(PP5)'!$C$329"]
["pp5_bl4_12_5_unit_in",{"$f":"'T2-B(PP5)'!$D$329","v":0},"#'T2-B(PP5)'!$D$329"]
["pp5_bl4_12_5_units_out",{"$f":"'T2-B(PP5)'!$G$329","v":0},"#'T2-B(PP5)'!$G$329"]
["pp5_bl4_12_6_name",{"$f":"'T2-B(PP5)'!$B$330","v":0},"#'T2-B(PP5)'!$B$330"]
["pp5_bl4_12_6_rate_in",{"$f":"'T2-B(PP5)'!$E$330","v":0},"#'T2-B(PP5)'!$E$330"]
["pp5_bl4_12_6_rate_out",{"$f":"'T2-B(PP5)'!$H$330","v":0},"#'T2-B(PP5)'!$H$330"]
["pp5_bl4_12_6_total",{"$f":"'T2-B(PP5)'!$J$330","v":0},"#'T2-B(PP5)'!$J$330"]
["pp5_bl4_12_6_total_in",{"$f":"'T2-B(PP5)'!$F$330","v":0},"#'T2-B(PP5)'!$F$330"]
["pp5_bl4_12_6_total_out",{"$f":"'T2-B(PP5)'!$I$330","v":0},"#'T2-B(PP5)'!$I$330"]
["pp5_bl4_12_6_unit",{"$f":"'T2-B(PP5)'!$C$330","v":0},"#'T2-B(PP5)'!$C$330"]
["pp5_bl4_12_6_unit_in",{"$f":"'T2-B(PP5)'!$D$330","v":0},"#'T2-B(PP5)'!$D$330"]
["pp5_bl4_12_6_units_out",{"$f":"'T2-B(PP5)'!$G$330","v":0},"#'T2-B(PP5)'!$G$330"]
["pp5_bl4_12_7_name",{"$f":"'T2-B(PP5)'!$B$331","v":0},"#'T2-B(PP5)'!$B$331"]
["pp5_bl4_12_7_rate_in",{"$f":"'T2-B(PP5)'!$E$331","v":0},"#'T2-B(PP5)'!$E$331"]
["pp5_bl4_12_7_rate_out",{"$f":"'T2-B(PP5)'!$H$331","v":0},"#'T2-B(PP5)'!$H$331"]
["pp5_bl4_12_7_total",{"$f":"'T2-B(PP5)'!$J$331","v":0},"#'T2-B(PP5)'!$J$331"]
["pp5_bl4_12_7_total_in",{"$f":"'T2-B(PP5)'!$F$331","v":0},"#'T2-B(PP5)'!$F$331"]
["pp5_bl4_12_7_total_out",{"$f":"'T2-B(PP5)'!$I$331","v":0},"#'T2-B(PP5)'!$I$331"]
["pp5_bl4_12_7_unit",{"$f":"'T2-B(PP5)'!$C$331","v":0},"#'T2-B(PP5)'!$C$331"]
["pp5_bl4_12_7_unit_in",{"$f":"'T2-B(PP5)'!$D$331","v":0},"#'T2-B(PP5)'!$D$331"]
["pp5_bl4_12_7_units_out",{"$f":"'T2-B(PP5)'!$G$331","v":0},"#'T2-B(PP5)'!$G$331"]
["pp5_bl4_12_8_name",{"$f":"'T2-B(PP5)'!$B$332","v":0},"#'T2-B(PP5)'!$B$332"]
["pp5_bl4_12_8_rate_in",{"$f":"'T2-B(PP5)'!$E$332","v":0},"#'T2-B(PP5)'!$E$332"]
["pp5_bl4_12_8_rate_out",{"$f":"'T2-B(PP5)'!$H$332","v":0},"#'T2-B(PP5)'!$H$332"]
["pp5_bl4_12_8_total",{"$f":"'T2-B(PP5)'!$J$332","v":0},"#'T2-B(PP5)'!$J$332"]
["pp5_bl4_12_8_total_in",{"$f":"'T2-B(PP5)'!$F$332","v":0},"#'T2-B(PP5)'!$F$332"]
["pp5_bl4_12_8_total_out",{"$f":"'T2-B(PP5)'!$I$332","v":0},"#'T2-B(PP5)'!$I$332"]
["pp5_bl4_12_8_unit",{"$f":"'T2-B(PP5)'!$C$332","v":0},"#'T2-B(PP5)'!$C$332"]
["pp5_bl4_12_8_unit_in",{"$f":"'T2-B(PP5)'!$D$332","v":0},"#'T2-B(PP5)'!$D$332"]
["pp5_bl4_12_8_units_out",{"$f":"'T2-B(PP5)'!$G$332","v":0},"#'T2-B(PP5)'!$G$332"]
["pp5_bl4_12_9_name",{"$f":"'T2-B(PP5)'!$B$333","v":0},"#'T2-B(PP5)'!$B$333"]
["pp5_bl4_12_9_rate_in",{"$f":"'T2-B(PP5)'!$E$333","v":0},"#'T2-B(PP5)'!$E$333"]
["pp5_bl4_12_9_rate_out",{"$f":"'T2-B(PP5)'!$H$333","v":0},"#'T2-B(PP5)'!$H$333"]
["pp5_bl4_12_9_total",{"$f":"'T2-B(PP5)'!$J$333","v":0},"#'T2-B(PP5)'!$J$333"]
["pp5_bl4_12_9_total_in",{"$f":"'T2-B(PP5)'!$F$333","v":0},"#'T2-B(PP5)'!$F$333"]
["pp5_bl4_12_9_total_out",{"$f":"'T2-B(PP5)'!$I$333","v":0},"#'T2-B(PP5)'!$I$333"]
["pp5_bl4_12_9_unit",{"$f":"'T2-B(PP5)'!$C$333","v":0},"#'T2-B(PP5)'!$C$333"]
["pp5_bl4_12_9_unit_in",{"$f":"'T2-B(PP5)'!$D$333","v":0},"#'T2-B(PP5)'!$D$333"]
["pp5_bl4_12_9_units_out",{"$f":"'T2-B(PP5)'!$G$333","v":0},"#'T2-B(PP5)'!$G$333"]
["pp5_bl4_12_total",{"$f":"'T2-B(PP5)'!$J$324","v":0},"#'T2-B(PP5)'!$J$324"]
["pp5_bl4_12_total_in",{"$f":"'T2-B(PP5)'!$F$324","v":0},"#'T2-B(PP5)'!$F$324"]
["pp5_bl4_12_total_out",{"$f":"'T2-B(PP5)'!$I$324","v":0},"#'T2-B(PP5)'!$I$324"]
["pp5_bl4_2_1_name",{"$f":"'T2-B(PP5)'!$B$115","v":0},"#'T2-B(PP5)'!$B$115"]
["pp5_bl4_2_1_rate_in",{"$f":"'T2-B(PP5)'!$E$115","v":0},"#'T2-B(PP5)'!$E$115"]
["pp5_bl4_2_1_rate_out",{"$f":"'T2-B(PP5)'!$H$115","v":0},"#'T2-B(PP5)'!$H$115"]
["pp5_bl4_2_1_total",{"$f":"'T2-B(PP5)'!$J$115","v":0},"#'T2-B(PP5)'!$J$115"]
["pp5_bl4_2_1_total_in",{"$f":"'T2-B(PP5)'!$F$115","v":0},"#'T2-B(PP5)'!$F$115"]
["pp5_bl4_2_1_total_out",{"$f":"'T2-B(PP5)'!$I$115","v":0},"#'T2-B(PP5)'!$I$115"]
["pp5_bl4_2_1_unit",{"$f":"'T2-B(PP5)'!$C$115","v":0},"#'T2-B(PP5)'!$C$115"]
["pp5_bl4_2_1_unit_in",{"$f":"'T2-B(PP5)'!$D$115","v":0},"#'T2-B(PP5)'!$D$115"]
["pp5_bl4_2_1_units_out",{"$f":"'T2-B(PP5)'!$G$115","v":0},"#'T2-B(PP5)'!$G$115"]
["pp5_bl4_2_10_name",{"$f":"'T2-B(PP5)'!$B$124","v":0},"#'T2-B(PP5)'!$B$124"]
["pp5_bl4_2_10_rate_in",{"$f":"'T2-B(PP5)'!$E$124","v":0},"#'T2-B(PP5)'!$E$124"]
["pp5_bl4_2_10_rate_out",{"$f":"'T2-B(PP5)'!$H$124","v":0},"#'T2-B(PP5)'!$H$124"]
["pp5_bl4_2_10_total",{"$f":"'T2-B(PP5)'!$J$124","v":0},"#'T2-B(PP5)'!$J$124"]
["pp5_bl4_2_10_total_in",{"$f":"'T2-B(PP5)'!$F$124","v":0},"#'T2-B(PP5)'!$F$124"]
["pp5_bl4_2_10_total_out",{"$f":"'T2-B(PP5)'!$I$124","v":0},"#'T2-B(PP5)'!$I$124"]
["pp5_bl4_2_10_unit",{"$f":"'T2-B(PP5)'!$C$124","v":0},"#'T2-B(PP5)'!$C$124"]
["pp5_bl4_2_10_unit_in",{"$f":"'T2-B(PP5)'!$D$124","v":0},"#'T2-B(PP5)'!$D$124"]
["pp5_bl4_2_10_units_out",{"$f":"'T2-B(PP5)'!$G$124","v":0},"#'T2-B(PP5)'!$G$124"]
["pp5_bl4_2_11_name",{"$f":"'T2-B(PP5)'!$B$125","v":0},"#'T2-B(PP5)'!$B$125"]
["pp5_bl4_2_11_rate_in",{"$f":"'T2-B(PP5)'!$E$125","v":0},"#'T2-B(PP5)'!$E$125"]
["pp5_bl4_2_11_rate_out",{"$f":"'T2-B(PP5)'!$H$125","v":0},"#'T2-B(PP5)'!$H$125"]
["pp5_bl4_2_11_total",{"$f":"'T2-B(PP5)'!$J$125","v":0},"#'T2-B(PP5)'!$J$125"]
["pp5_bl4_2_11_total_in",{"$f":"'T2-B(PP5)'!$F$125","v":0},"#'T2-B(PP5)'!$F$125"]
["pp5_bl4_2_11_total_out",{"$f":"'T2-B(PP5)'!$I$125","v":0},"#'T2-B(PP5)'!$I$125"]
["pp5_bl4_2_11_unit",{"$f":"'T2-B(PP5)'!$C$125","v":0},"#'T2-B(PP5)'!$C$125"]
["pp5_bl4_2_11_unit_in",{"$f":"'T2-B(PP5)'!$D$125","v":0},"#'T2-B(PP5)'!$D$125"]
["pp5_bl4_2_11_units_out",{"$f":"'T2-B(PP5)'!$G$125","v":0},"#'T2-B(PP5)'!$G$125"]
["pp5_bl4_2_12_name",{"$f":"'T2-B(PP5)'!$B$126","v":0},"#'T2-B(PP5)'!$B$126"]
["pp5_bl4_2_12_rate_in",{"$f":"'T2-B(PP5)'!$E$126","v":0},"#'T2-B(PP5)'!$E$126"]
["pp5_bl4_2_12_rate_out",{"$f":"'T2-B(PP5)'!$H$126","v":0},"#'T2-B(PP5)'!$H$126"]
["pp5_bl4_2_12_total",{"$f":"'T2-B(PP5)'!$J$126","v":0},"#'T2-B(PP5)'!$J$126"]
["pp5_bl4_2_12_total_in",{"$f":"'T2-B(PP5)'!$F$126","v":0},"#'T2-B(PP5)'!$F$126"]
["pp5_bl4_2_12_total_out",{"$f":"'T2-B(PP5)'!$I$126","v":0},"#'T2-B(PP5)'!$I$126"]
["pp5_bl4_2_12_unit",{"$f":"'T2-B(PP5)'!$C$126","v":0},"#'T2-B(PP5)'!$C$126"]
["pp5_bl4_2_12_unit_in",{"$f":"'T2-B(PP5)'!$D$126","v":0},"#'T2-B(PP5)'!$D$126"]
["pp5_bl4_2_12_units_out",{"$f":"'T2-B(PP5)'!$G$126","v":0},"#'T2-B(PP5)'!$G$126"]
["pp5_bl4_2_13_name",{"$f":"'T2-B(PP5)'!$B$127","v":0},"#'T2-B(PP5)'!$B$127"]
["pp5_bl4_2_13_rate_in",{"$f":"'T2-B(PP5)'!$E$127","v":0},"#'T2-B(PP5)'!$E$127"]
["pp5_bl4_2_13_rate_out",{"$f":"'T2-B(PP5)'!$H$127","v":0},"#'T2-B(PP5)'!$H$127"]
["pp5_bl4_2_13_total",{"$f":"'T2-B(PP5)'!$J$127","v":0},"#'T2-B(PP5)'!$J$127"]
["pp5_bl4_2_13_total_in",{"$f":"'T2-B(PP5)'!$F$127","v":0},"#'T2-B(PP5)'!$F$127"]
["pp5_bl4_2_13_total_out",{"$f":"'T2-B(PP5)'!$I$127","v":0},"#'T2-B(PP5)'!$I$127"]
["pp5_bl4_2_13_unit",{"$f":"'T2-B(PP5)'!$C$127","v":0},"#'T2-B(PP5)'!$C$127"]
["pp5_bl4_2_13_unit_in",{"$f":"'T2-B(PP5)'!$D$127","v":0},"#'T2-B(PP5)'!$D$127"]
["pp5_bl4_2_13_units_out",{"$f":"'T2-B(PP5)'!$G$127","v":0},"#'T2-B(PP5)'!$G$127"]
["pp5_bl4_2_14_name",{"$f":"'T2-B(PP5)'!$B$128","v":0},"#'T2-B(PP5)'!$B$128"]
["pp5_bl4_2_14_rate_in",{"$f":"'T2-B(PP5)'!$E$128","v":0},"#'T2-B(PP5)'!$E$128"]
["pp5_bl4_2_14_rate_out",{"$f":"'T2-B(PP5)'!$H$128","v":0},"#'T2-B(PP5)'!$H$128"]
["pp5_bl4_2_14_total",{"$f":"'T2-B(PP5)'!$J$128","v":0},"#'T2-B(PP5)'!$J$128"]
["pp5_bl4_2_14_total_in",{"$f":"'T2-B(PP5)'!$F$128","v":0},"#'T2-B(PP5)'!$F$128"]
["pp5_bl4_2_14_total_out",{"$f":"'T2-B(PP5)'!$I$128","v":0},"#'T2-B(PP5)'!$I$128"]
["pp5_bl4_2_14_unit",{"$f":"'T2-B(PP5)'!$C$128","v":0},"#'T2-B(PP5)'!$C$128"]
["pp5_bl4_2_14_unit_in",{"$f":"'T2-B(PP5)'!$D$128","v":0},"#'T2-B(PP5)'!$D$128"]
["pp5_bl4_2_14_units_out",{"$f":"'T2-B(PP5)'!$G$128","v":0},"#'T2-B(PP5)'!$G$128"]
["pp5_bl4_2_15_name",{"$f":"'T2-B(PP5)'!$B$129","v":0},"#'T2-B(PP5)'!$B$129"]
["pp5_bl4_2_15_rate_in",{"$f":"'T2-B(PP5)'!$E$129","v":0},"#'T2-B(PP5)'!$E$129"]
["pp5_bl4_2_15_rate_out",{"$f":"'T2-B(PP5)'!$H$129","v":0},"#'T2-B(PP5)'!$H$129"]
["pp5_bl4_2_15_total",{"$f":"'T2-B(PP5)'!$J$129","v":0},"#'T2-B(PP5)'!$J$129"]
["pp5_bl4_2_15_total_in",{"$f":"'T2-B(PP5)'!$F$129","v":0},"#'T2-B(PP5)'!$F$129"]
["pp5_bl4_2_15_total_out",{"$f":"'T2-B(PP5)'!$I$129","v":0},"#'T2-B(PP5)'!$I$129"]
["pp5_bl4_2_15_unit",{"$f":"'T2-B(PP5)'!$C$129","v":0},"#'T2-B(PP5)'!$C$129"]
["pp5_bl4_2_15_unit_in",{"$f":"'T2-B(PP5)'!$D$129","v":0},"#'T2-B(PP5)'!$D$129"]
["pp5_bl4_2_15_units_out",{"$f":"'T2-B(PP5)'!$G$129","v":0},"#'T2-B(PP5)'!$G$129"]
["pp5_bl4_2_16_name",{"$f":"'T2-B(PP5)'!$B$130","v":0},"#'T2-B(PP5)'!$B$130"]
["pp5_bl4_2_16_rate_in",{"$f":"'T2-B(PP5)'!$E$130","v":0},"#'T2-B(PP5)'!$E$130"]
["pp5_bl4_2_16_rate_out",{"$f":"'T2-B(PP5)'!$H$130","v":0},"#'T2-B(PP5)'!$H$130"]
["pp5_bl4_2_16_total",{"$f":"'T2-B(PP5)'!$J$130","v":0},"#'T2-B(PP5)'!$J$130"]
["pp5_bl4_2_16_total_in",{"$f":"'T2-B(PP5)'!$F$130","v":0},"#'T2-B(PP5)'!$F$130"]
["pp5_bl4_2_16_total_out",{"$f":"'T2-B(PP5)'!$I$130","v":0},"#'T2-B(PP5)'!$I$130"]
["pp5_bl4_2_16_unit",{"$f":"'T2-B(PP5)'!$C$130","v":0},"#'T2-B(PP5)'!$C$130"]
["pp5_bl4_2_16_unit_in",{"$f":"'T2-B(PP5)'!$D$130","v":0},"#'T2-B(PP5)'!$D$130"]
["pp5_bl4_2_16_units_out",{"$f":"'T2-B(PP5)'!$G$130","v":0},"#'T2-B(PP5)'!$G$130"]
["pp5_bl4_2_17_name",{"$f":"'T2-B(PP5)'!$B$131","v":0},"#'T2-B(PP5)'!$B$131"]
["pp5_bl4_2_17_rate_in",{"$f":"'T2-B(PP5)'!$E$131","v":0},"#'T2-B(PP5)'!$E$131"]
["pp5_bl4_2_17_rate_out",{"$f":"'T2-B(PP5)'!$H$131","v":0},"#'T2-B(PP5)'!$H$131"]
["pp5_bl4_2_17_total",{"$f":"'T2-B(PP5)'!$J$131","v":0},"#'T2-B(PP5)'!$J$131"]
["pp5_bl4_2_17_total_in",{"$f":"'T2-B(PP5)'!$F$131","v":0},"#'T2-B(PP5)'!$F$131"]
["pp5_bl4_2_17_total_out",{"$f":"'T2-B(PP5)'!$I$131","v":0},"#'T2-B(PP5)'!$I$131"]
["pp5_bl4_2_17_unit",{"$f":"'T2-B(PP5)'!$C$131","v":0},"#'T2-B(PP5)'!$C$131"]
["pp5_bl4_2_17_unit_in",{"$f":"'T2-B(PP5)'!$D$131","v":0},"#'T2-B(PP5)'!$D$131"]
["pp5_bl4_2_17_units_out",{"$f":"'T2-B(PP5)'!$G$131","v":0},"#'T2-B(PP5)'!$G$131"]
["pp5_bl4_2_18_name",{"$f":"'T2-B(PP5)'!$B$132","v":0},"#'T2-B(PP5)'!$B$132"]
["pp5_bl4_2_18_rate_in",{"$f":"'T2-B(PP5)'!$E$132","v":0},"#'T2-B(PP5)'!$E$132"]
["pp5_bl4_2_18_rate_out",{"$f":"'T2-B(PP5)'!$H$132","v":0},"#'T2-B(PP5)'!$H$132"]
["pp5_bl4_2_18_total",{"$f":"'T2-B(PP5)'!$J$132","v":0},"#'T2-B(PP5)'!$J$132"]
["pp5_bl4_2_18_total_in",{"$f":"'T2-B(PP5)'!$F$132","v":0},"#'T2-B(PP5)'!$F$132"]
["pp5_bl4_2_18_total_out",{"$f":"'T2-B(PP5)'!$I$132","v":0},"#'T2-B(PP5)'!$I$132"]
["pp5_bl4_2_18_unit",{"$f":"'T2-B(PP5)'!$C$132","v":0},"#'T2-B(PP5)'!$C$132"]
["pp5_bl4_2_18_unit_in",{"$f":"'T2-B(PP5)'!$D$132","v":0},"#'T2-B(PP5)'!$D$132"]
["pp5_bl4_2_18_units_out",{"$f":"'T2-B(PP5)'!$G$132","v":0},"#'T2-B(PP5)'!$G$132"]
["pp5_bl4_2_19_name",{"$f":"'T2-B(PP5)'!$B$133","v":0},"#'T2-B(PP5)'!$B$133"]
["pp5_bl4_2_19_rate_in",{"$f":"'T2-B(PP5)'!$E$133","v":0},"#'T2-B(PP5)'!$E$133"]
["pp5_bl4_2_19_rate_out",{"$f":"'T2-B(PP5)'!$H$133","v":0},"#'T2-B(PP5)'!$H$133"]
["pp5_bl4_2_19_total",{"$f":"'T2-B(PP5)'!$J$133","v":0},"#'T2-B(PP5)'!$J$133"]
["pp5_bl4_2_19_total_in",{"$f":"'T2-B(PP5)'!$F$133","v":0},"#'T2-B(PP5)'!$F$133"]
["pp5_bl4_2_19_total_out",{"$f":"'T2-B(PP5)'!$I$133","v":0},"#'T2-B(PP5)'!$I$133"]
["pp5_bl4_2_19_unit",{"$f":"'T2-B(PP5)'!$C$133","v":0},"#'T2-B(PP5)'!$C$133"]
["pp5_bl4_2_19_unit_in",{"$f":"'T2-B(PP5)'!$D$133","v":0},"#'T2-B(PP5)'!$D$133"]
["pp5_bl4_2_19_units_out",{"$f":"'T2-B(PP5)'!$G$133","v":0},"#'T2-B(PP5)'!$G$133"]
["pp5_bl4_2_2_name",{"$f":"'T2-B(PP5)'!$B$116","v":0},"#'T2-B(PP5)'!$B$116"]
["pp5_bl4_2_2_rate_in",{"$f":"'T2-B(PP5)'!$E$116","v":0},"#'T2-B(PP5)'!$E$116"]
["pp5_bl4_2_2_rate_out",{"$f":"'T2-B(PP5)'!$H$116","v":0},"#'T2-B(PP5)'!$H$116"]
["pp5_bl4_2_2_total",{"$f":"'T2-B(PP5)'!$J$116","v":0},"#'T2-B(PP5)'!$J$116"]
["pp5_bl4_2_2_total_in",{"$f":"'T2-B(PP5)'!$F$116","v":0},"#'T2-B(PP5)'!$F$116"]
["pp5_bl4_2_2_total_out",{"$f":"'T2-B(PP5)'!$I$116","v":0},"#'T2-B(PP5)'!$I$116"]
["pp5_bl4_2_2_unit",{"$f":"'T2-B(PP5)'!$C$116","v":0},"#'T2-B(PP5)'!$C$116"]
["pp5_bl4_2_2_unit_in",{"$f":"'T2-B(PP5)'!$D$116","v":0},"#'T2-B(PP5)'!$D$116"]
["pp5_bl4_2_2_units_out",{"$f":"'T2-B(PP5)'!$G$116","v":0},"#'T2-B(PP5)'!$G$116"]
["pp5_bl4_2_20_name",{"$f":"'T2-B(PP5)'!$B$134","v":0},"#'T2-B(PP5)'!$B$134"]
["pp5_bl4_2_20_rate_in",{"$f":"'T2-B(PP5)'!$E$134","v":0},"#'T2-B(PP5)'!$E$134"]
["pp5_bl4_2_20_rate_out",{"$f":"'T2-B(PP5)'!$H$134","v":0},"#'T2-B(PP5)'!$H$134"]
["pp5_bl4_2_20_total",{"$f":"'T2-B(PP5)'!$J$134","v":0},"#'T2-B(PP5)'!$J$134"]
["pp5_bl4_2_20_total_in",{"$f":"'T2-B(PP5)'!$F$134","v":0},"#'T2-B(PP5)'!$F$134"]
["pp5_bl4_2_20_total_out",{"$f":"'T2-B(PP5)'!$I$134","v":0},"#'T2-B(PP5)'!$I$134"]
["pp5_bl4_2_20_unit",{"$f":"'T2-B(PP5)'!$C$134","v":0},"#'T2-B(PP5)'!$C$134"]
["pp5_bl4_2_20_unit_in",{"$f":"'T2-B(PP5)'!$D$134","v":0},"#'T2-B(PP5)'!$D$134"]
["pp5_bl4_2_20_units_out",{"$f":"'T2-B(PP5)'!$G$134","v":0},"#'T2-B(PP5)'!$G$134"]
["pp5_bl4_2_3_name",{"$f":"'T2-B(PP5)'!$B$117","v":0},"#'T2-B(PP5)'!$B$117"]
["pp5_bl4_2_3_rate_in",{"$f":"'T2-B(PP5)'!$E$117","v":0},"#'T2-B(PP5)'!$E$117"]
["pp5_bl4_2_3_rate_out",{"$f":"'T2-B(PP5)'!$H$117","v":0},"#'T2-B(PP5)'!$H$117"]
["pp5_bl4_2_3_total",{"$f":"'T2-B(PP5)'!$J$117","v":0},"#'T2-B(PP5)'!$J$117"]
["pp5_bl4_2_3_total_in",{"$f":"'T2-B(PP5)'!$F$117","v":0},"#'T2-B(PP5)'!$F$117"]
["pp5_bl4_2_3_total_out",{"$f":"'T2-B(PP5)'!$I$117","v":0},"#'T2-B(PP5)'!$I$117"]
["pp5_bl4_2_3_unit",{"$f":"'T2-B(PP5)'!$C$117","v":0},"#'T2-B(PP5)'!$C$117"]
["pp5_bl4_2_3_unit_in",{"$f":"'T2-B(PP5)'!$D$117","v":0},"#'T2-B(PP5)'!$D$117"]
["pp5_bl4_2_3_units_out",{"$f":"'T2-B(PP5)'!$G$117","v":0},"#'T2-B(PP5)'!$G$117"]
["pp5_bl4_2_4_name",{"$f":"'T2-B(PP5)'!$B$118","v":0},"#'T2-B(PP5)'!$B$118"]
["pp5_bl4_2_4_rate_in",{"$f":"'T2-B(PP5)'!$E$118","v":0},"#'T2-B(PP5)'!$E$118"]
["pp5_bl4_2_4_rate_out",{"$f":"'T2-B(PP5)'!$H$118","v":0},"#'T2-B(PP5)'!$H$118"]
["pp5_bl4_2_4_total",{"$f":"'T2-B(PP5)'!$J$118","v":0},"#'T2-B(PP5)'!$J$118"]
["pp5_bl4_2_4_total_in",{"$f":"'T2-B(PP5)'!$F$118","v":0},"#'T2-B(PP5)'!$F$118"]
["pp5_bl4_2_4_total_out",{"$f":"'T2-B(PP5)'!$I$118","v":0},"#'T2-B(PP5)'!$I$118"]
["pp5_bl4_2_4_unit",{"$f":"'T2-B(PP5)'!$C$118","v":0},"#'T2-B(PP5)'!$C$118"]
["pp5_bl4_2_4_unit_in",{"$f":"'T2-B(PP5)'!$D$118","v":0},"#'T2-B(PP5)'!$D$118"]
["pp5_bl4_2_4_units_out",{"$f":"'T2-B(PP5)'!$G$118","v":0},"#'T2-B(PP5)'!$G$118"]
["pp5_bl4_2_5_name",{"$f":"'T2-B(PP5)'!$B$119","v":0},"#'T2-B(PP5)'!$B$119"]
["pp5_bl4_2_5_rate_in",{"$f":"'T2-B(PP5)'!$E$119","v":0},"#'T2-B(PP5)'!$E$119"]
["pp5_bl4_2_5_rate_out",{"$f":"'T2-B(PP5)'!$H$119","v":0},"#'T2-B(PP5)'!$H$119"]
["pp5_bl4_2_5_total",{"$f":"'T2-B(PP5)'!$J$119","v":0},"#'T2-B(PP5)'!$J$119"]
["pp5_bl4_2_5_total_in",{"$f":"'T2-B(PP5)'!$F$119","v":0},"#'T2-B(PP5)'!$F$119"]
["pp5_bl4_2_5_total_out",{"$f":"'T2-B(PP5)'!$I$119","v":0},"#'T2-B(PP5)'!$I$119"]
["pp5_bl4_2_5_unit",{"$f":"'T2-B(PP5)'!$C$119","v":0},"#'T2-B(PP5)'!$C$119"]
["pp5_bl4_2_5_unit_in",{"$f":"'T2-B(PP5)'!$D$119","v":0},"#'T2-B(PP5)'!$D$119"]
["pp5_bl4_2_5_units_out",{"$f":"'T2-B(PP5)'!$G$119","v":0},"#'T2-B(PP5)'!$G$119"]
["pp5_bl4_2_6_name",{"$f":"'T2-B(PP5)'!$B$120","v":0},"#'T2-B(PP5)'!$B$120"]
["pp5_bl4_2_6_rate_in",{"$f":"'T2-B(PP5)'!$E$120","v":0},"#'T2-B(PP5)'!$E$120"]
["pp5_bl4_2_6_rate_out",{"$f":"'T2-B(PP5)'!$H$120","v":0},"#'T2-B(PP5)'!$H$120"]
["pp5_bl4_2_6_total",{"$f":"'T2-B(PP5)'!$J$120","v":0},"#'T2-B(PP5)'!$J$120"]
["pp5_bl4_2_6_total_in",{"$f":"'T2-B(PP5)'!$F$120","v":0},"#'T2-B(PP5)'!$F$120"]
["pp5_bl4_2_6_total_out",{"$f":"'T2-B(PP5)'!$I$120","v":0},"#'T2-B(PP5)'!$I$120"]
["pp5_bl4_2_6_unit",{"$f":"'T2-B(PP5)'!$C$120","v":0},"#'T2-B(PP5)'!$C$120"]
["pp5_bl4_2_6_unit_in",{"$f":"'T2-B(PP5)'!$D$120","v":0},"#'T2-B(PP5)'!$D$120"]
["pp5_bl4_2_6_units_out",{"$f":"'T2-B(PP5)'!$G$120","v":0},"#'T2-B(PP5)'!$G$120"]
["pp5_bl4_2_7_name",{"$f":"'T2-B(PP5)'!$B$121","v":0},"#'T2-B(PP5)'!$B$121"]
["pp5_bl4_2_7_rate_in",{"$f":"'T2-B(PP5)'!$E$121","v":0},"#'T2-B(PP5)'!$E$121"]
["pp5_bl4_2_7_rate_out",{"$f":"'T2-B(PP5)'!$H$121","v":0},"#'T2-B(PP5)'!$H$121"]
["pp5_bl4_2_7_total",{"$f":"'T2-B(PP5)'!$J$121","v":0},"#'T2-B(PP5)'!$J$121"]
["pp5_bl4_2_7_total_in",{"$f":"'T2-B(PP5)'!$F$121","v":0},"#'T2-B(PP5)'!$F$121"]
["pp5_bl4_2_7_total_out",{"$f":"'T2-B(PP5)'!$I$121","v":0},"#'T2-B(PP5)'!$I$121"]
["pp5_bl4_2_7_unit",{"$f":"'T2-B(PP5)'!$C$121","v":0},"#'T2-B(PP5)'!$C$121"]
["pp5_bl4_2_7_unit_in",{"$f":"'T2-B(PP5)'!$D$121","v":0},"#'T2-B(PP5)'!$D$121"]
["pp5_bl4_2_7_units_out",{"$f":"'T2-B(PP5)'!$G$121","v":0},"#'T2-B(PP5)'!$G$121"]
["pp5_bl4_2_8_name",{"$f":"'T2-B(PP5)'!$B$122","v":0},"#'T2-B(PP5)'!$B$122"]
["pp5_bl4_2_8_rate_in",{"$f":"'T2-B(PP5)'!$E$122","v":0},"#'T2-B(PP5)'!$E$122"]
["pp5_bl4_2_8_rate_out",{"$f":"'T2-B(PP5)'!$H$122","v":0},"#'T2-B(PP5)'!$H$122"]
["pp5_bl4_2_8_total",{"$f":"'T2-B(PP5)'!$J$122","v":0},"#'T2-B(PP5)'!$J$122"]
["pp5_bl4_2_8_total_in",{"$f":"'T2-B(PP5)'!$F$122","v":0},"#'T2-B(PP5)'!$F$122"]
["pp5_bl4_2_8_total_out",{"$f":"'T2-B(PP5)'!$I$122","v":0},"#'T2-B(PP5)'!$I$122"]
["pp5_bl4_2_8_unit",{"$f":"'T2-B(PP5)'!$C$122","v":0},"#'T2-B(PP5)'!$C$122"]
["pp5_bl4_2_8_unit_in",{"$f":"'T2-B(PP5)'!$D$122","v":0},"#'T2-B(PP5)'!$D$122"]
["pp5_bl4_2_8_units_out",{"$f":"'T2-B(PP5)'!$G$122","v":0},"#'T2-B(PP5)'!$G$122"]
["pp5_bl4_2_9_name",{"$f":"'T2-B(PP5)'!$B$123","v":0},"#'T2-B(PP5)'!$B$123"]
["pp5_bl4_2_9_rate_in",{"$f":"'T2-B(PP5)'!$E$123","v":0},"#'T2-B(PP5)'!$E$123"]
["pp5_bl4_2_9_rate_out",{"$f":"'T2-B(PP5)'!$H$123","v":0},"#'T2-B(PP5)'!$H$123"]
["pp5_bl4_2_9_total",{"$f":"'T2-B(PP5)'!$J$123","v":0},"#'T2-B(PP5)'!$J$123"]
["pp5_bl4_2_9_total_in",{"$f":"'T2-B(PP5)'!$F$123","v":0},"#'T2-B(PP5)'!$F$123"]
["pp5_bl4_2_9_total_out",{"$f":"'T2-B(PP5)'!$I$123","v":0},"#'T2-B(PP5)'!$I$123"]
["pp5_bl4_2_9_unit",{"$f":"'T2-B(PP5)'!$C$123","v":0},"#'T2-B(PP5)'!$C$123"]
["pp5_bl4_2_9_unit_in",{"$f":"'T2-B(PP5)'!$D$123","v":0},"#'T2-B(PP5)'!$D$123"]
["pp5_bl4_2_9_units_out",{"$f":"'T2-B(PP5)'!$G$123","v":0},"#'T2-B(PP5)'!$G$123"]
["pp5_bl4_2_total",{"$f":"'T2-B(PP5)'!$J$114","v":0},"#'T2-B(PP5)'!$J$114"]
["pp5_bl4_2_total_in",{"$f":"'T2-B(PP5)'!$F$114","v":0},"#'T2-B(PP5)'!$F$114"]
["pp5_bl4_2_total_out",{"$f":"'T2-B(PP5)'!$I$114","v":0},"#'T2-B(PP5)'!$I$114"]
["pp5_bl4_3_1_name",{"$f":"'T2-B(PP5)'!$B$136","v":0},"#'T2-B(PP5)'!$B$136"]
["pp5_bl4_3_1_rate_in",{"$f":"'T2-B(PP5)'!$E$136","v":0},"#'T2-B(PP5)'!$E$136"]
["pp5_bl4_3_1_rate_out",{"$f":"'T2-B(PP5)'!$H$136","v":0},"#'T2-B(PP5)'!$H$136"]
["pp5_bl4_3_1_total",{"$f":"'T2-B(PP5)'!$J$136","v":0},"#'T2-B(PP5)'!$J$136"]
["pp5_bl4_3_1_total_in",{"$f":"'T2-B(PP5)'!$F$136","v":0},"#'T2-B(PP5)'!$F$136"]
["pp5_bl4_3_1_total_out",{"$f":"'T2-B(PP5)'!$I$136","v":0},"#'T2-B(PP5)'!$I$136"]
["pp5_bl4_3_1_unit",{"$f":"'T2-B(PP5)'!$C$136","v":0},"#'T2-B(PP5)'!$C$136"]
["pp5_bl4_3_1_unit_in",{"$f":"'T2-B(PP5)'!$D$136","v":0},"#'T2-B(PP5)'!$D$136"]
["pp5_bl4_3_1_units_out",{"$f":"'T2-B(PP5)'!$G$136","v":0},"#'T2-B(PP5)'!$G$136"]
["pp5_bl4_3_10_name",{"$f":"'T2-B(PP5)'!$B$145","v":0},"#'T2-B(PP5)'!$B$145"]
["pp5_bl4_3_10_rate_in",{"$f":"'T2-B(PP5)'!$E$145","v":0},"#'T2-B(PP5)'!$E$145"]
["pp5_bl4_3_10_rate_out",{"$f":"'T2-B(PP5)'!$H$145","v":0},"#'T2-B(PP5)'!$H$145"]
["pp5_bl4_3_10_total",{"$f":"'T2-B(PP5)'!$J$145","v":0},"#'T2-B(PP5)'!$J$145"]
["pp5_bl4_3_10_total_in",{"$f":"'T2-B(PP5)'!$F$145","v":0},"#'T2-B(PP5)'!$F$145"]
["pp5_bl4_3_10_total_out",{"$f":"'T2-B(PP5)'!$I$145","v":0},"#'T2-B(PP5)'!$I$145"]
["pp5_bl4_3_10_unit",{"$f":"'T2-B(PP5)'!$C$145","v":0},"#'T2-B(PP5)'!$C$145"]
["pp5_bl4_3_10_unit_in",{"$f":"'T2-B(PP5)'!$D$145","v":0},"#'T2-B(PP5)'!$D$145"]
["pp5_bl4_3_10_units_out",{"$f":"'T2-B(PP5)'!$G$145","v":0},"#'T2-B(PP5)'!$G$145"]
["pp5_bl4_3_11_name",{"$f":"'T2-B(PP5)'!$B$146","v":0},"#'T2-B(PP5)'!$B$146"]
["pp5_bl4_3_11_rate_in",{"$f":"'T2-B(PP5)'!$E$146","v":0},"#'T2-B(PP5)'!$E$146"]
["pp5_bl4_3_11_rate_out",{"$f":"'T2-B(PP5)'!$H$146","v":0},"#'T2-B(PP5)'!$H$146"]
["pp5_bl4_3_11_total",{"$f":"'T2-B(PP5)'!$J$146","v":0},"#'T2-B(PP5)'!$J$146"]
["pp5_bl4_3_11_total_in",{"$f":"'T2-B(PP5)'!$F$146","v":0},"#'T2-B(PP5)'!$F$146"]
["pp5_bl4_3_11_total_out",{"$f":"'T2-B(PP5)'!$I$146","v":0},"#'T2-B(PP5)'!$I$146"]
["pp5_bl4_3_11_unit",{"$f":"'T2-B(PP5)'!$C$146","v":0},"#'T2-B(PP5)'!$C$146"]
["pp5_bl4_3_11_unit_in",{"$f":"'T2-B(PP5)'!$D$146","v":0},"#'T2-B(PP5)'!$D$146"]
["pp5_bl4_3_11_units_out",{"$f":"'T2-B(PP5)'!$G$146","v":0},"#'T2-B(PP5)'!$G$146"]
["pp5_bl4_3_12_name",{"$f":"'T2-B(PP5)'!$B$147","v":0},"#'T2-B(PP5)'!$B$147"]
["pp5_bl4_3_12_rate_in",{"$f":"'T2-B(PP5)'!$E$147","v":0},"#'T2-B(PP5)'!$E$147"]
["pp5_bl4_3_12_rate_out",{"$f":"'T2-B(PP5)'!$H$147","v":0},"#'T2-B(PP5)'!$H$147"]
["pp5_bl4_3_12_total",{"$f":"'T2-B(PP5)'!$J$147","v":0},"#'T2-B(PP5)'!$J$147"]
["pp5_bl4_3_12_total_in",{"$f":"'T2-B(PP5)'!$F$147","v":0},"#'T2-B(PP5)'!$F$147"]
["pp5_bl4_3_12_total_out",{"$f":"'T2-B(PP5)'!$I$147","v":0},"#'T2-B(PP5)'!$I$147"]
["pp5_bl4_3_12_unit",{"$f":"'T2-B(PP5)'!$C$147","v":0},"#'T2-B(PP5)'!$C$147"]
["pp5_bl4_3_12_unit_in",{"$f":"'T2-B(PP5)'!$D$147","v":0},"#'T2-B(PP5)'!$D$147"]
["pp5_bl4_3_12_units_out",{"$f":"'T2-B(PP5)'!$G$147","v":0},"#'T2-B(PP5)'!$G$147"]
["pp5_bl4_3_13_name",{"$f":"'T2-B(PP5)'!$B$148","v":0},"#'T2-B(PP5)'!$B$148"]
["pp5_bl4_3_13_rate_in",{"$f":"'T2-B(PP5)'!$E$148","v":0},"#'T2-B(PP5)'!$E$148"]
["pp5_bl4_3_13_rate_out",{"$f":"'T2-B(PP5)'!$H$148","v":0},"#'T2-B(PP5)'!$H$148"]
["pp5_bl4_3_13_total",{"$f":"'T2-B(PP5)'!$J$148","v":0},"#'T2-B(PP5)'!$J$148"]
["pp5_bl4_3_13_total_in",{"$f":"'T2-B(PP5)'!$F$148","v":0},"#'T2-B(PP5)'!$F$148"]
["pp5_bl4_3_13_total_out",{"$f":"'T2-B(PP5)'!$I$148","v":0},"#'T2-B(PP5)'!$I$148"]
["pp5_bl4_3_13_unit",{"$f":"'T2-B(PP5)'!$C$148","v":0},"#'T2-B(PP5)'!$C$148"]
["pp5_bl4_3_13_unit_in",{"$f":"'T2-B(PP5)'!$D$148","v":0},"#'T2-B(PP5)'!$D$148"]
["pp5_bl4_3_13_units_out",{"$f":"'T2-B(PP5)'!$G$148","v":0},"#'T2-B(PP5)'!$G$148"]
["pp5_bl4_3_14_name",{"$f":"'T2-B(PP5)'!$B$149","v":0},"#'T2-B(PP5)'!$B$149"]
["pp5_bl4_3_14_rate_in",{"$f":"'T2-B(PP5)'!$E$149","v":0},"#'T2-B(PP5)'!$E$149"]
["pp5_bl4_3_14_rate_out",{"$f":"'T2-B(PP5)'!$H$149","v":0},"#'T2-B(PP5)'!$H$149"]
["pp5_bl4_3_14_total",{"$f":"'T2-B(PP5)'!$J$149","v":0},"#'T2-B(PP5)'!$J$149"]
["pp5_bl4_3_14_total_in",{"$f":"'T2-B(PP5)'!$F$149","v":0},"#'T2-B(PP5)'!$F$149"]
["pp5_bl4_3_14_total_out",{"$f":"'T2-B(PP5)'!$I$149","v":0},"#'T2-B(PP5)'!$I$149"]
["pp5_bl4_3_14_unit",{"$f":"'T2-B(PP5)'!$C$149","v":0},"#'T2-B(PP5)'!$C$149"]
["pp5_bl4_3_14_unit_in",{"$f":"'T2-B(PP5)'!$D$149","v":0},"#'T2-B(PP5)'!$D$149"]
["pp5_bl4_3_14_units_out",{"$f":"'T2-B(PP5)'!$G$149","v":0},"#'T2-B(PP5)'!$G$149"]
["pp5_bl4_3_15_name",{"$f":"'T2-B(PP5)'!$B$150","v":0},"#'T2-B(PP5)'!$B$150"]
["pp5_bl4_3_15_rate_in",{"$f":"'T2-B(PP5)'!$E$150","v":0},"#'T2-B(PP5)'!$E$150"]
["pp5_bl4_3_15_rate_out",{"$f":"'T2-B(PP5)'!$H$150","v":0},"#'T2-B(PP5)'!$H$150"]
["pp5_bl4_3_15_total",{"$f":"'T2-B(PP5)'!$J$150","v":0},"#'T2-B(PP5)'!$J$150"]
["pp5_bl4_3_15_total_in",{"$f":"'T2-B(PP5)'!$F$150","v":0},"#'T2-B(PP5)'!$F$150"]
["pp5_bl4_3_15_total_out",{"$f":"'T2-B(PP5)'!$I$150","v":0},"#'T2-B(PP5)'!$I$150"]
["pp5_bl4_3_15_unit",{"$f":"'T2-B(PP5)'!$C$150","v":0},"#'T2-B(PP5)'!$C$150"]
["pp5_bl4_3_15_unit_in",{"$f":"'T2-B(PP5)'!$D$150","v":0},"#'T2-B(PP5)'!$D$150"]
["pp5_bl4_3_15_units_out",{"$f":"'T2-B(PP5)'!$G$150","v":0},"#'T2-B(PP5)'!$G$150"]
["pp5_bl4_3_16_name",{"$f":"'T2-B(PP5)'!$B$151","v":0},"#'T2-B(PP5)'!$B$151"]
["pp5_bl4_3_16_rate_in",{"$f":"'T2-B(PP5)'!$E$151","v":0},"#'T2-B(PP5)'!$E$151"]
["pp5_bl4_3_16_rate_out",{"$f":"'T2-B(PP5)'!$H$151","v":0},"#'T2-B(PP5)'!$H$151"]
["pp5_bl4_3_16_total",{"$f":"'T2-B(PP5)'!$J$151","v":0},"#'T2-B(PP5)'!$J$151"]
["pp5_bl4_3_16_total_in",{"$f":"'T2-B(PP5)'!$F$151","v":0},"#'T2-B(PP5)'!$F$151"]
["pp5_bl4_3_16_total_out",{"$f":"'T2-B(PP5)'!$I$151","v":0},"#'T2-B(PP5)'!$I$151"]
["pp5_bl4_3_16_unit",{"$f":"'T2-B(PP5)'!$C$151","v":0},"#'T2-B(PP5)'!$C$151"]
["pp5_bl4_3_16_unit_in",{"$f":"'T2-B(PP5)'!$D$151","v":0},"#'T2-B(PP5)'!$D$151"]
["pp5_bl4_3_16_units_out",{"$f":"'T2-B(PP5)'!$G$151","v":0},"#'T2-B(PP5)'!$G$151"]
["pp5_bl4_3_17_name",{"$f":"'T2-B(PP5)'!$B$152","v":0},"#'T2-B(PP5)'!$B$152"]
["pp5_bl4_3_17_rate_in",{"$f":"'T2-B(PP5)'!$E$152","v":0},"#'T2-B(PP5)'!$E$152"]
["pp5_bl4_3_17_rate_out",{"$f":"'T2-B(PP5)'!$H$152","v":0},"#'T2-B(PP5)'!$H$152"]
["pp5_bl4_3_17_total",{"$f":"'T2-B(PP5)'!$J$152","v":0},"#'T2-B(PP5)'!$J$152"]
["pp5_bl4_3_17_total_in",{"$f":"'T2-B(PP5)'!$F$152","v":0},"#'T2-B(PP5)'!$F$152"]
["pp5_bl4_3_17_total_out",{"$f":"'T2-B(PP5)'!$I$152","v":0},"#'T2-B(PP5)'!$I$152"]
["pp5_bl4_3_17_unit",{"$f":"'T2-B(PP5)'!$C$152","v":0},"#'T2-B(PP5)'!$C$152"]
["pp5_bl4_3_17_unit_in",{"$f":"'T2-B(PP5)'!$D$152","v":0},"#'T2-B(PP5)'!$D$152"]
["pp5_bl4_3_17_units_out",{"$f":"'T2-B(PP5)'!$G$152","v":0},"#'T2-B(PP5)'!$G$152"]
["pp5_bl4_3_18_name",{"$f":"'T2-B(PP5)'!$B$153","v":0},"#'T2-B(PP5)'!$B$153"]
["pp5_bl4_3_18_rate_in",{"$f":"'T2-B(PP5)'!$E$153","v":0},"#'T2-B(PP5)'!$E$153"]
["pp5_bl4_3_18_rate_out",{"$f":"'T2-B(PP5)'!$H$153","v":0},"#'T2-B(PP5)'!$H$153"]
["pp5_bl4_3_18_total",{"$f":"'T2-B(PP5)'!$J$153","v":0},"#'T2-B(PP5)'!$J$153"]
["pp5_bl4_3_18_total_in",{"$f":"'T2-B(PP5)'!$F$153","v":0},"#'T2-B(PP5)'!$F$153"]
["pp5_bl4_3_18_total_out",{"$f":"'T2-B(PP5)'!$I$153","v":0},"#'T2-B(PP5)'!$I$153"]
["pp5_bl4_3_18_unit",{"$f":"'T2-B(PP5)'!$C$153","v":0},"#'T2-B(PP5)'!$C$153"]
["pp5_bl4_3_18_unit_in",{"$f":"'T2-B(PP5)'!$D$153","v":0},"#'T2-B(PP5)'!$D$153"]
["pp5_bl4_3_18_units_out",{"$f":"'T2-B(PP5)'!$G$153","v":0},"#'T2-B(PP5)'!$G$153"]
["pp5_bl4_3_19_name",{"$f":"'T2-B(PP5)'!$B$154","v":0},"#'T2-B(PP5)'!$B$154"]
["pp5_bl4_3_19_rate_in",{"$f":"'T2-B(PP5)'!$E$154","v":0},"#'T2-B(PP5)'!$E$154"]
["pp5_bl4_3_19_rate_out",{"$f":"'T2-B(PP5)'!$H$154","v":0},"#'T2-B(PP5)'!$H$154"]
["pp5_bl4_3_19_total",{"$f":"'T2-B(PP5)'!$J$154","v":0},"#'T2-B(PP5)'!$J$154"]
["pp5_bl4_3_19_total_in",{"$f":"'T2-B(PP5)'!$F$154","v":0},"#'T2-B(PP5)'!$F$154"]
["pp5_bl4_3_19_total_out",{"$f":"'T2-B(PP5)'!$I$154","v":0},"#'T2-B(PP5)'!$I$154"]
["pp5_bl4_3_19_unit",{"$f":"'T2-B(PP5)'!$C$154","v":0},"#'T2-B(PP5)'!$C$154"]
["pp5_bl4_3_19_unit_in",{"$f":"'T2-B(PP5)'!$D$154","v":0},"#'T2-B(PP5)'!$D$154"]
["pp5_bl4_3_19_units_out",{"$f":"'T2-B(PP5)'!$G$154","v":0},"#'T2-B(PP5)'!$G$154"]
["pp5_bl4_3_2_name",{"$f":"'T2-B(PP5)'!$B$137","v":0},"#'T2-B(PP5)'!$B$137"]
["pp5_bl4_3_2_rate_in",{"$f":"'T2-B(PP5)'!$E$137","v":0},"#'T2-B(PP5)'!$E$137"]
["pp5_bl4_3_2_rate_out",{"$f":"'T2-B(PP5)'!$H$137","v":0},"#'T2-B(PP5)'!$H$137"]
["pp5_bl4_3_2_total",{"$f":"'T2-B(PP5)'!$J$137","v":0},"#'T2-B(PP5)'!$J$137"]
["pp5_bl4_3_2_total_in",{"$f":"'T2-B(PP5)'!$F$137","v":0},"#'T2-B(PP5)'!$F$137"]
["pp5_bl4_3_2_total_out",{"$f":"'T2-B(PP5)'!$I$137","v":0},"#'T2-B(PP5)'!$I$137"]
["pp5_bl4_3_2_unit",{"$f":"'T2-B(PP5)'!$C$137","v":0},"#'T2-B(PP5)'!$C$137"]
["pp5_bl4_3_2_unit_in",{"$f":"'T2-B(PP5)'!$D$137","v":0},"#'T2-B(PP5)'!$D$137"]
["pp5_bl4_3_2_units_out",{"$f":"'T2-B(PP5)'!$G$137","v":0},"#'T2-B(PP5)'!$G$137"]
["pp5_bl4_3_20_name",{"$f":"'T2-B(PP5)'!$B$155","v":0},"#'T2-B(PP5)'!$B$155"]
["pp5_bl4_3_20_rate_in",{"$f":"'T2-B(PP5)'!$E$155","v":0},"#'T2-B(PP5)'!$E$155"]
["pp5_bl4_3_20_rate_out",{"$f":"'T2-B(PP5)'!$H$155","v":0},"#'T2-B(PP5)'!$H$155"]
["pp5_bl4_3_20_total",{"$f":"'T2-B(PP5)'!$J$155","v":0},"#'T2-B(PP5)'!$J$155"]
["pp5_bl4_3_20_total_in",{"$f":"'T2-B(PP5)'!$F$155","v":0},"#'T2-B(PP5)'!$F$155"]
["pp5_bl4_3_20_total_out",{"$f":"'T2-B(PP5)'!$I$155","v":0},"#'T2-B(PP5)'!$I$155"]
["pp5_bl4_3_20_unit",{"$f":"'T2-B(PP5)'!$C$155","v":0},"#'T2-B(PP5)'!$C$155"]
["pp5_bl4_3_20_unit_in",{"$f":"'T2-B(PP5)'!$D$155","v":0},"#'T2-B(PP5)'!$D$155"]
["pp5_bl4_3_20_units_out",{"$f":"'T2-B(PP5)'!$G$155","v":0},"#'T2-B(PP5)'!$G$155"]
["pp5_bl4_3_3_name",{"$f":"'T2-B(PP5)'!$B$138","v":0},"#'T2-B(PP5)'!$B$138"]
["pp5_bl4_3_3_rate_in",{"$f":"'T2-B(PP5)'!$E$138","v":0},"#'T2-B(PP5)'!$E$138"]
["pp5_bl4_3_3_rate_out",{"$f":"'T2-B(PP5)'!$H$138","v":0},"#'T2-B(PP5)'!$H$138"]
["pp5_bl4_3_3_total",{"$f":"'T2-B(PP5)'!$J$138","v":0},"#'T2-B(PP5)'!$J$138"]
["pp5_bl4_3_3_total_in",{"$f":"'T2-B(PP5)'!$F$138","v":0},"#'T2-B(PP5)'!$F$138"]
["pp5_bl4_3_3_total_out",{"$f":"'T2-B(PP5)'!$I$138","v":0},"#'T2-B(PP5)'!$I$138"]
["pp5_bl4_3_3_unit",{"$f":"'T2-B(PP5)'!$C$138","v":0},"#'T2-B(PP5)'!$C$138"]
["pp5_bl4_3_3_unit_in",{"$f":"'T2-B(PP5)'!$D$138","v":0},"#'T2-B(PP5)'!$D$138"]
["pp5_bl4_3_3_units_out",{"$f":"'T2-B(PP5)'!$G$138","v":0},"#'T2-B(PP5)'!$G$138"]
["pp5_bl4_3_4_name",{"$f":"'T2-B(PP5)'!$B$139","v":0},"#'T2-B(PP5)'!$B$139"]
["pp5_bl4_3_4_rate_in",{"$f":"'T2-B(PP5)'!$E$139","v":0},"#'T2-B(PP5)'!$E$139"]
["pp5_bl4_3_4_rate_out",{"$f":"'T2-B(PP5)'!$H$139","v":0},"#'T2-B(PP5)'!$H$139"]
["pp5_bl4_3_4_total",{"$f":"'T2-B(PP5)'!$J$139","v":0},"#'T2-B(PP5)'!$J$139"]
["pp5_bl4_3_4_total_in",{"$f":"'T2-B(PP5)'!$F$139","v":0},"#'T2-B(PP5)'!$F$139"]
["pp5_bl4_3_4_total_out",{"$f":"'T2-B(PP5)'!$I$139","v":0},"#'T2-B(PP5)'!$I$139"]
["pp5_bl4_3_4_unit",{"$f":"'T2-B(PP5)'!$C$139","v":0},"#'T2-B(PP5)'!$C$139"]
["pp5_bl4_3_4_unit_in",{"$f":"'T2-B(PP5)'!$D$139","v":0},"#'T2-B(PP5)'!$D$139"]
["pp5_bl4_3_4_units_out",{"$f":"'T2-B(PP5)'!$G$139","v":0},"#'T2-B(PP5)'!$G$139"]
["pp5_bl4_3_5_name",{"$f":"'T2-B(PP5)'!$B$140","v":0},"#'T2-B(PP5)'!$B$140"]
["pp5_bl4_3_5_rate_in",{"$f":"'T2-B(PP5)'!$E$140","v":0},"#'T2-B(PP5)'!$E$140"]
["pp5_bl4_3_5_rate_out",{"$f":"'T2-B(PP5)'!$H$140","v":0},"#'T2-B(PP5)'!$H$140"]
["pp5_bl4_3_5_total",{"$f":"'T2-B(PP5)'!$J$140","v":0},"#'T2-B(PP5)'!$J$140"]
["pp5_bl4_3_5_total_in",{"$f":"'T2-B(PP5)'!$F$140","v":0},"#'T2-B(PP5)'!$F$140"]
["pp5_bl4_3_5_total_out",{"$f":"'T2-B(PP5)'!$I$140","v":0},"#'T2-B(PP5)'!$I$140"]
["pp5_bl4_3_5_unit",{"$f":"'T2-B(PP5)'!$C$140","v":0},"#'T2-B(PP5)'!$C$140"]
["pp5_bl4_3_5_unit_in",{"$f":"'T2-B(PP5)'!$D$140","v":0},"#'T2-B(PP5)'!$D$140"]
["pp5_bl4_3_5_units_out",{"$f":"'T2-B(PP5)'!$G$140","v":0},"#'T2-B(PP5)'!$G$140"]
["pp5_bl4_3_6_name",{"$f":"'T2-B(PP5)'!$B$141","v":0},"#'T2-B(PP5)'!$B$141"]
["pp5_bl4_3_6_rate_in",{"$f":"'T2-B(PP5)'!$E$141","v":0},"#'T2-B(PP5)'!$E$141"]
["pp5_bl4_3_6_rate_out",{"$f":"'T2-B(PP5)'!$H$141","v":0},"#'T2-B(PP5)'!$H$141"]
["pp5_bl4_3_6_total",{"$f":"'T2-B(PP5)'!$J$141","v":0},"#'T2-B(PP5)'!$J$141"]
["pp5_bl4_3_6_total_in",{"$f":"'T2-B(PP5)'!$F$141","v":0},"#'T2-B(PP5)'!$F$141"]
["pp5_bl4_3_6_total_out",{"$f":"'T2-B(PP5)'!$I$141","v":0},"#'T2-B(PP5)'!$I$141"]
["pp5_bl4_3_6_unit",{"$f":"'T2-B(PP5)'!$C$141","v":0},"#'T2-B(PP5)'!$C$141"]
["pp5_bl4_3_6_unit_in",{"$f":"'T2-B(PP5)'!$D$141","v":0},"#'T2-B(PP5)'!$D$141"]
["pp5_bl4_3_6_units_out",{"$f":"'T2-B(PP5)'!$G$141","v":0},"#'T2-B(PP5)'!$G$141"]
["pp5_bl4_3_7_name",{"$f":"'T2-B(PP5)'!$B$142","v":0},"#'T2-B(PP5)'!$B$142"]
["pp5_bl4_3_7_rate_in",{"$f":"'T2-B(PP5)'!$E$142","v":0},"#'T2-B(PP5)'!$E$142"]
["pp5_bl4_3_7_rate_out",{"$f":"'T2-B(PP5)'!$H$142","v":0},"#'T2-B(PP5)'!$H$142"]
["pp5_bl4_3_7_total",{"$f":"'T2-B(PP5)'!$J$142","v":0},"#'T2-B(PP5)'!$J$142"]
["pp5_bl4_3_7_total_in",{"$f":"'T2-B(PP5)'!$F$142","v":0},"#'T2-B(PP5)'!$F$142"]
["pp5_bl4_3_7_total_out",{"$f":"'T2-B(PP5)'!$I$142","v":0},"#'T2-B(PP5)'!$I$142"]
["pp5_bl4_3_7_unit",{"$f":"'T2-B(PP5)'!$C$142","v":0},"#'T2-B(PP5)'!$C$142"]
["pp5_bl4_3_7_unit_in",{"$f":"'T2-B(PP5)'!$D$142","v":0},"#'T2-B(PP5)'!$D$142"]
["pp5_bl4_3_7_units_out",{"$f":"'T2-B(PP5)'!$G$142","v":0},"#'T2-B(PP5)'!$G$142"]
["pp5_bl4_3_8_name",{"$f":"'T2-B(PP5)'!$B$143","v":0},"#'T2-B(PP5)'!$B$143"]
["pp5_bl4_3_8_rate_in",{"$f":"'T2-B(PP5)'!$E$143","v":0},"#'T2-B(PP5)'!$E$143"]
["pp5_bl4_3_8_rate_out",{"$f":"'T2-B(PP5)'!$H$143","v":0},"#'T2-B(PP5)'!$H$143"]
["pp5_bl4_3_8_total",{"$f":"'T2-B(PP5)'!$J$143","v":0},"#'T2-B(PP5)'!$J$143"]
["pp5_bl4_3_8_total_in",{"$f":"'T2-B(PP5)'!$F$143","v":0},"#'T2-B(PP5)'!$F$143"]
["pp5_bl4_3_8_total_out",{"$f":"'T2-B(PP5)'!$I$143","v":0},"#'T2-B(PP5)'!$I$143"]
["pp5_bl4_3_8_unit",{"$f":"'T2-B(PP5)'!$C$143","v":0},"#'T2-B(PP5)'!$C$143"]
["pp5_bl4_3_8_unit_in",{"$f":"'T2-B(PP5)'!$D$143","v":0},"#'T2-B(PP5)'!$D$143"]
["pp5_bl4_3_8_units_out",{"$f":"'T2-B(PP5)'!$G$143","v":0},"#'T2-B(PP5)'!$G$143"]
["pp5_bl4_3_9_name",{"$f":"'T2-B(PP5)'!$B$144","v":0},"#'T2-B(PP5)'!$B$144"]
["pp5_bl4_3_9_rate_in",{"$f":"'T2-B(PP5)'!$E$144","v":0},"#'T2-B(PP5)'!$E$144"]
["pp5_bl4_3_9_rate_out",{"$f":"'T2-B(PP5)'!$H$144","v":0},"#'T2-B(PP5)'!$H$144"]
["pp5_bl4_3_9_total",{"$f":"'T2-B(PP5)'!$J$144","v":0},"#'T2-B(PP5)'!$J$144"]
["pp5_bl4_3_9_total_in",{"$f":"'T2-B(PP5)'!$F$144","v":0},"#'T2-B(PP5)'!$F$144"]
["pp5_bl4_3_9_total_out",{"$f":"'T2-B(PP5)'!$I$144","v":0},"#'T2-B(PP5)'!$I$144"]
["pp5_bl4_3_9_unit",{"$f":"'T2-B(PP5)'!$C$144","v":0},"#'T2-B(PP5)'!$C$144"]
["pp5_bl4_3_9_unit_in",{"$f":"'T2-B(PP5)'!$D$144","v":0},"#'T2-B(PP5)'!$D$144"]
["pp5_bl4_3_9_units_out",{"$f":"'T2-B(PP5)'!$G$144","v":0},"#'T2-B(PP5)'!$G$144"]
["pp5_bl4_3_total",{"$f":"'T2-B(PP5)'!$J$135","v":0},"#'T2-B(PP5)'!$J$135"]
["pp5_bl4_3_total_in",{"$f":"'T2-B(PP5)'!$F$135","v":0},"#'T2-B(PP5)'!$F$135"]
["pp5_bl4_3_total_out",{"$f":"'T2-B(PP5)'!$I$135","v":0},"#'T2-B(PP5)'!$I$135"]
["pp5_bl4_4_1_name",{"$f":"'T2-B(PP5)'!$B$157","v":0},"#'T2-B(PP5)'!$B$157"]
["pp5_bl4_4_1_rate_in",{"$f":"'T2-B(PP5)'!$E$157","v":0},"#'T2-B(PP5)'!$E$157"]
["pp5_bl4_4_1_rate_out",{"$f":"'T2-B(PP5)'!$H$157","v":0},"#'T2-B(PP5)'!$H$157"]
["pp5_bl4_4_1_total",{"$f":"'T2-B(PP5)'!$J$157","v":0},"#'T2-B(PP5)'!$J$157"]
["pp5_bl4_4_1_total_in",{"$f":"'T2-B(PP5)'!$F$157","v":0},"#'T2-B(PP5)'!$F$157"]
["pp5_bl4_4_1_total_out",{"$f":"'T2-B(PP5)'!$I$157","v":0},"#'T2-B(PP5)'!$I$157"]
["pp5_bl4_4_1_unit",{"$f":"'T2-B(PP5)'!$C$157","v":0},"#'T2-B(PP5)'!$C$157"]
["pp5_bl4_4_1_unit_in",{"$f":"'T2-B(PP5)'!$D$157","v":0},"#'T2-B(PP5)'!$D$157"]
["pp5_bl4_4_1_units_out",{"$f":"'T2-B(PP5)'!$G$157","v":0},"#'T2-B(PP5)'!$G$157"]
["pp5_bl4_4_10_name",{"$f":"'T2-B(PP5)'!$B$166","v":0},"#'T2-B(PP5)'!$B$166"]
["pp5_bl4_4_10_rate_in",{"$f":"'T2-B(PP5)'!$E$166","v":0},"#'T2-B(PP5)'!$E$166"]
["pp5_bl4_4_10_rate_out",{"$f":"'T2-B(PP5)'!$H$166","v":0},"#'T2-B(PP5)'!$H$166"]
["pp5_bl4_4_10_total",{"$f":"'T2-B(PP5)'!$J$166","v":0},"#'T2-B(PP5)'!$J$166"]
["pp5_bl4_4_10_total_in",{"$f":"'T2-B(PP5)'!$F$166","v":0},"#'T2-B(PP5)'!$F$166"]
["pp5_bl4_4_10_total_out",{"$f":"'T2-B(PP5)'!$I$166","v":0},"#'T2-B(PP5)'!$I$166"]
["pp5_bl4_4_10_unit",{"$f":"'T2-B(PP5)'!$C$166","v":0},"#'T2-B(PP5)'!$C$166"]
["pp5_bl4_4_10_unit_in",{"$f":"'T2-B(PP5)'!$D$166","v":0},"#'T2-B(PP5)'!$D$166"]
["pp5_bl4_4_10_units_out",{"$f":"'T2-B(PP5)'!$G$166","v":0},"#'T2-B(PP5)'!$G$166"]
["pp5_bl4_4_11_name",{"$f":"'T2-B(PP5)'!$B$167","v":0},"#'T2-B(PP5)'!$B$167"]
["pp5_bl4_4_11_rate_in",{"$f":"'T2-B(PP5)'!$E$167","v":0},"#'T2-B(PP5)'!$E$167"]
["pp5_bl4_4_11_rate_out",{"$f":"'T2-B(PP5)'!$H$167","v":0},"#'T2-B(PP5)'!$H$167"]
["pp5_bl4_4_11_total",{"$f":"'T2-B(PP5)'!$J$167","v":0},"#'T2-B(PP5)'!$J$167"]
["pp5_bl4_4_11_total_in",{"$f":"'T2-B(PP5)'!$F$167","v":0},"#'T2-B(PP5)'!$F$167"]
["pp5_bl4_4_11_total_out",{"$f":"'T2-B(PP5)'!$I$167","v":0},"#'T2-B(PP5)'!$I$167"]
["pp5_bl4_4_11_unit",{"$f":"'T2-B(PP5)'!$C$167","v":0},"#'T2-B(PP5)'!$C$167"]
["pp5_bl4_4_11_unit_in",{"$f":"'T2-B(PP5)'!$D$167","v":0},"#'T2-B(PP5)'!$D$167"]
["pp5_bl4_4_11_units_out",{"$f":"'T2-B(PP5)'!$G$167","v":0},"#'T2-B(PP5)'!$G$167"]
["pp5_bl4_4_12_name",{"$f":"'T2-B(PP5)'!$B$168","v":0},"#'T2-B(PP5)'!$B$168"]
["pp5_bl4_4_12_rate_in",{"$f":"'T2-B(PP5)'!$E$168","v":0},"#'T2-B(PP5)'!$E$168"]
["pp5_bl4_4_12_rate_out",{"$f":"'T2-B(PP5)'!$H$168","v":0},"#'T2-B(PP5)'!$H$168"]
["pp5_bl4_4_12_total",{"$f":"'T2-B(PP5)'!$J$168","v":0},"#'T2-B(PP5)'!$J$168"]
["pp5_bl4_4_12_total_in",{"$f":"'T2-B(PP5)'!$F$168","v":0},"#'T2-B(PP5)'!$F$168"]
["pp5_bl4_4_12_total_out",{"$f":"'T2-B(PP5)'!$I$168","v":0},"#'T2-B(PP5)'!$I$168"]
["pp5_bl4_4_12_unit",{"$f":"'T2-B(PP5)'!$C$168","v":0},"#'T2-B(PP5)'!$C$168"]
["pp5_bl4_4_12_unit_in",{"$f":"'T2-B(PP5)'!$D$168","v":0},"#'T2-B(PP5)'!$D$168"]
["pp5_bl4_4_12_units_out",{"$f":"'T2-B(PP5)'!$G$168","v":0},"#'T2-B(PP5)'!$G$168"]
["pp5_bl4_4_13_name",{"$f":"'T2-B(PP5)'!$B$169","v":0},"#'T2-B(PP5)'!$B$169"]
["pp5_bl4_4_13_rate_in",{"$f":"'T2-B(PP5)'!$E$169","v":0},"#'T2-B(PP5)'!$E$169"]
["pp5_bl4_4_13_rate_out",{"$f":"'T2-B(PP5)'!$H$169","v":0},"#'T2-B(PP5)'!$H$169"]
["pp5_bl4_4_13_total",{"$f":"'T2-B(PP5)'!$J$169","v":0},"#'T2-B(PP5)'!$J$169"]
["pp5_bl4_4_13_total_in",{"$f":"'T2-B(PP5)'!$F$169","v":0},"#'T2-B(PP5)'!$F$169"]
["pp5_bl4_4_13_total_out",{"$f":"'T2-B(PP5)'!$I$169","v":0},"#'T2-B(PP5)'!$I$169"]
["pp5_bl4_4_13_unit",{"$f":"'T2-B(PP5)'!$C$169","v":0},"#'T2-B(PP5)'!$C$169"]
["pp5_bl4_4_13_unit_in",{"$f":"'T2-B(PP5)'!$D$169","v":0},"#'T2-B(PP5)'!$D$169"]
["pp5_bl4_4_13_units_out",{"$f":"'T2-B(PP5)'!$G$169","v":0},"#'T2-B(PP5)'!$G$169"]
["pp5_bl4_4_14_name",{"$f":"'T2-B(PP5)'!$B$170","v":0},"#'T2-B(PP5)'!$B$170"]
["pp5_bl4_4_14_rate_in",{"$f":"'T2-B(PP5)'!$E$170","v":0},"#'T2-B(PP5)'!$E$170"]
["pp5_bl4_4_14_rate_out",{"$f":"'T2-B(PP5)'!$H$170","v":0},"#'T2-B(PP5)'!$H$170"]
["pp5_bl4_4_14_total",{"$f":"'T2-B(PP5)'!$J$170","v":0},"#'T2-B(PP5)'!$J$170"]
["pp5_bl4_4_14_total_in",{"$f":"'T2-B(PP5)'!$F$170","v":0},"#'T2-B(PP5)'!$F$170"]
["pp5_bl4_4_14_total_out",{"$f":"'T2-B(PP5)'!$I$170","v":0},"#'T2-B(PP5)'!$I$170"]
["pp5_bl4_4_14_unit",{"$f":"'T2-B(PP5)'!$C$170","v":0},"#'T2-B(PP5)'!$C$170"]
["pp5_bl4_4_14_unit_in",{"$f":"'T2-B(PP5)'!$D$170","v":0},"#'T2-B(PP5)'!$D$170"]
["pp5_bl4_4_14_units_out",{"$f":"'T2-B(PP5)'!$G$170","v":0},"#'T2-B(PP5)'!$G$170"]
["pp5_bl4_4_15_name",{"$f":"'T2-B(PP5)'!$B$171","v":0},"#'T2-B(PP5)'!$B$171"]
["pp5_bl4_4_15_rate_in",{"$f":"'T2-B(PP5)'!$E$171","v":0},"#'T2-B(PP5)'!$E$171"]
["pp5_bl4_4_15_rate_out",{"$f":"'T2-B(PP5)'!$H$171","v":0},"#'T2-B(PP5)'!$H$171"]
["pp5_bl4_4_15_total",{"$f":"'T2-B(PP5)'!$J$171","v":0},"#'T2-B(PP5)'!$J$171"]
["pp5_bl4_4_15_total_in",{"$f":"'T2-B(PP5)'!$F$171","v":0},"#'T2-B(PP5)'!$F$171"]
["pp5_bl4_4_15_total_out",{"$f":"'T2-B(PP5)'!$I$171","v":0},"#'T2-B(PP5)'!$I$171"]
["pp5_bl4_4_15_unit",{"$f":"'T2-B(PP5)'!$C$171","v":0},"#'T2-B(PP5)'!$C$171"]
["pp5_bl4_4_15_unit_in",{"$f":"'T2-B(PP5)'!$D$171","v":0},"#'T2-B(PP5)'!$D$171"]
["pp5_bl4_4_15_units_out",{"$f":"'T2-B(PP5)'!$G$171","v":0},"#'T2-B(PP5)'!$G$171"]
["pp5_bl4_4_16_name",{"$f":"'T2-B(PP5)'!$B$172","v":0},"#'T2-B(PP5)'!$B$172"]
["pp5_bl4_4_16_rate_in",{"$f":"'T2-B(PP5)'!$E$172","v":0},"#'T2-B(PP5)'!$E$172"]
["pp5_bl4_4_16_rate_out",{"$f":"'T2-B(PP5)'!$H$172","v":0},"#'T2-B(PP5)'!$H$172"]
["pp5_bl4_4_16_total",{"$f":"'T2-B(PP5)'!$J$172","v":0},"#'T2-B(PP5)'!$J$172"]
["pp5_bl4_4_16_total_in",{"$f":"'T2-B(PP5)'!$F$172","v":0},"#'T2-B(PP5)'!$F$172"]
["pp5_bl4_4_16_total_out",{"$f":"'T2-B(PP5)'!$I$172","v":0},"#'T2-B(PP5)'!$I$172"]
["pp5_bl4_4_16_unit",{"$f":"'T2-B(PP5)'!$C$172","v":0},"#'T2-B(PP5)'!$C$172"]
["pp5_bl4_4_16_unit_in",{"$f":"'T2-B(PP5)'!$D$172","v":0},"#'T2-B(PP5)'!$D$172"]
["pp5_bl4_4_16_units_out",{"$f":"'T2-B(PP5)'!$G$172","v":0},"#'T2-B(PP5)'!$G$172"]
["pp5_bl4_4_17_name",{"$f":"'T2-B(PP5)'!$B$173","v":0},"#'T2-B(PP5)'!$B$173"]
["pp5_bl4_4_17_rate_in",{"$f":"'T2-B(PP5)'!$E$173","v":0},"#'T2-B(PP5)'!$E$173"]
["pp5_bl4_4_17_rate_out",{"$f":"'T2-B(PP5)'!$H$173","v":0},"#'T2-B(PP5)'!$H$173"]
["pp5_bl4_4_17_total",{"$f":"'T2-B(PP5)'!$J$173","v":0},"#'T2-B(PP5)'!$J$173"]
["pp5_bl4_4_17_total_in",{"$f":"'T2-B(PP5)'!$F$173","v":0},"#'T2-B(PP5)'!$F$173"]
["pp5_bl4_4_17_total_out",{"$f":"'T2-B(PP5)'!$I$173","v":0},"#'T2-B(PP5)'!$I$173"]
["pp5_bl4_4_17_unit",{"$f":"'T2-B(PP5)'!$C$173","v":0},"#'T2-B(PP5)'!$C$173"]
["pp5_bl4_4_17_unit_in",{"$f":"'T2-B(PP5)'!$D$173","v":0},"#'T2-B(PP5)'!$D$173"]
["pp5_bl4_4_17_units_out",{"$f":"'T2-B(PP5)'!$G$173","v":0},"#'T2-B(PP5)'!$G$173"]
["pp5_bl4_4_18_name",{"$f":"'T2-B(PP5)'!$B$174","v":0},"#'T2-B(PP5)'!$B$174"]
["pp5_bl4_4_18_rate_in",{"$f":"'T2-B(PP5)'!$E$174","v":0},"#'T2-B(PP5)'!$E$174"]
["pp5_bl4_4_18_rate_out",{"$f":"'T2-B(PP5)'!$H$174","v":0},"#'T2-B(PP5)'!$H$174"]
["pp5_bl4_4_18_total",{"$f":"'T2-B(PP5)'!$J$174","v":0},"#'T2-B(PP5)'!$J$174"]
["pp5_bl4_4_18_total_in",{"$f":"'T2-B(PP5)'!$F$174","v":0},"#'T2-B(PP5)'!$F$174"]
["pp5_bl4_4_18_total_out",{"$f":"'T2-B(PP5)'!$I$174","v":0},"#'T2-B(PP5)'!$I$174"]
["pp5_bl4_4_18_unit",{"$f":"'T2-B(PP5)'!$C$174","v":0},"#'T2-B(PP5)'!$C$174"]
["pp5_bl4_4_18_unit_in",{"$f":"'T2-B(PP5)'!$D$174","v":0},"#'T2-B(PP5)'!$D$174"]
["pp5_bl4_4_18_units_out",{"$f":"'T2-B(PP5)'!$G$174","v":0},"#'T2-B(PP5)'!$G$174"]
["pp5_bl4_4_19_name",{"$f":"'T2-B(PP5)'!$B$175","v":0},"#'T2-B(PP5)'!$B$175"]
["pp5_bl4_4_19_rate_in",{"$f":"'T2-B(PP5)'!$E$175","v":0},"#'T2-B(PP5)'!$E$175"]
["pp5_bl4_4_19_rate_out",{"$f":"'T2-B(PP5)'!$H$175","v":0},"#'T2-B(PP5)'!$H$175"]
["pp5_bl4_4_19_total",{"$f":"'T2-B(PP5)'!$J$175","v":0},"#'T2-B(PP5)'!$J$175"]
["pp5_bl4_4_19_total_in",{"$f":"'T2-B(PP5)'!$F$175","v":0},"#'T2-B(PP5)'!$F$175"]
["pp5_bl4_4_19_total_out",{"$f":"'T2-B(PP5)'!$I$175","v":0},"#'T2-B(PP5)'!$I$175"]
["pp5_bl4_4_19_unit",{"$f":"'T2-B(PP5)'!$C$175","v":0},"#'T2-B(PP5)'!$C$175"]
["pp5_bl4_4_19_unit_in",{"$f":"'T2-B(PP5)'!$D$175","v":0},"#'T2-B(PP5)'!$D$175"]
["pp5_bl4_4_19_units_out",{"$f":"'T2-B(PP5)'!$G$175","v":0},"#'T2-B(PP5)'!$G$175"]
["pp5_bl4_4_2_name",{"$f":"'T2-B(PP5)'!$B$158","v":0},"#'T2-B(PP5)'!$B$158"]
["pp5_bl4_4_2_rate_in",{"$f":"'T2-B(PP5)'!$E$158","v":0},"#'T2-B(PP5)'!$E$158"]
["pp5_bl4_4_2_rate_out",{"$f":"'T2-B(PP5)'!$H$158","v":0},"#'T2-B(PP5)'!$H$158"]
["pp5_bl4_4_2_total",{"$f":"'T2-B(PP5)'!$J$158","v":0},"#'T2-B(PP5)'!$J$158"]
["pp5_bl4_4_2_total_in",{"$f":"'T2-B(PP5)'!$F$158","v":0},"#'T2-B(PP5)'!$F$158"]
["pp5_bl4_4_2_total_out",{"$f":"'T2-B(PP5)'!$I$158","v":0},"#'T2-B(PP5)'!$I$158"]
["pp5_bl4_4_2_unit",{"$f":"'T2-B(PP5)'!$C$158","v":0},"#'T2-B(PP5)'!$C$158"]
["pp5_bl4_4_2_unit_in",{"$f":"'T2-B(PP5)'!$D$158","v":0},"#'T2-B(PP5)'!$D$158"]
["pp5_bl4_4_2_units_out",{"$f":"'T2-B(PP5)'!$G$158","v":0},"#'T2-B(PP5)'!$G$158"]
["pp5_bl4_4_20_name",{"$f":"'T2-B(PP5)'!$B$176","v":0},"#'T2-B(PP5)'!$B$176"]
["pp5_bl4_4_20_rate_in",{"$f":"'T2-B(PP5)'!$E$176","v":0},"#'T2-B(PP5)'!$E$176"]
["pp5_bl4_4_20_rate_out",{"$f":"'T2-B(PP5)'!$H$176","v":0},"#'T2-B(PP5)'!$H$176"]
["pp5_bl4_4_20_total",{"$f":"'T2-B(PP5)'!$J$176","v":0},"#'T2-B(PP5)'!$J$176"]
["pp5_bl4_4_20_total_in",{"$f":"'T2-B(PP5)'!$F$176","v":0},"#'T2-B(PP5)'!$F$176"]
["pp5_bl4_4_20_total_out",{"$f":"'T2-B(PP5)'!$I$176","v":0},"#'T2-B(PP5)'!$I$176"]
["pp5_bl4_4_20_unit",{"$f":"'T2-B(PP5)'!$C$176","v":0},"#'T2-B(PP5)'!$C$176"]
["pp5_bl4_4_20_unit_in",{"$f":"'T2-B(PP5)'!$D$176","v":0},"#'T2-B(PP5)'!$D$176"]
["pp5_bl4_4_20_units_out",{"$f":"'T2-B(PP5)'!$G$176","v":0},"#'T2-B(PP5)'!$G$176"]
["pp5_bl4_4_3_name",{"$f":"'T2-B(PP5)'!$B$159","v":0},"#'T2-B(PP5)'!$B$159"]
["pp5_bl4_4_3_rate_in",{"$f":"'T2-B(PP5)'!$E$159","v":0},"#'T2-B(PP5)'!$E$159"]
["pp5_bl4_4_3_rate_out",{"$f":"'T2-B(PP5)'!$H$159","v":0},"#'T2-B(PP5)'!$H$159"]
["pp5_bl4_4_3_total",{"$f":"'T2-B(PP5)'!$J$159","v":0},"#'T2-B(PP5)'!$J$159"]
["pp5_bl4_4_3_total_in",{"$f":"'T2-B(PP5)'!$F$159","v":0},"#'T2-B(PP5)'!$F$159"]
["pp5_bl4_4_3_total_out",{"$f":"'T2-B(PP5)'!$I$159","v":0},"#'T2-B(PP5)'!$I$159"]
["pp5_bl4_4_3_unit",{"$f":"'T2-B(PP5)'!$C$159","v":0},"#'T2-B(PP5)'!$C$159"]
["pp5_bl4_4_3_unit_in",{"$f":"'T2-B(PP5)'!$D$159","v":0},"#'T2-B(PP5)'!$D$159"]
["pp5_bl4_4_3_units_out",{"$f":"'T2-B(PP5)'!$G$159","v":0},"#'T2-B(PP5)'!$G$159"]
["pp5_bl4_4_4_name",{"$f":"'T2-B(PP5)'!$B$160","v":0},"#'T2-B(PP5)'!$B$160"]
["pp5_bl4_4_4_rate_in",{"$f":"'T2-B(PP5)'!$E$160","v":0},"#'T2-B(PP5)'!$E$160"]
["pp5_bl4_4_4_rate_out",{"$f":"'T2-B(PP5)'!$H$160","v":0},"#'T2-B(PP5)'!$H$160"]
["pp5_bl4_4_4_total",{"$f":"'T2-B(PP5)'!$J$160","v":0},"#'T2-B(PP5)'!$J$160"]
["pp5_bl4_4_4_total_in",{"$f":"'T2-B(PP5)'!$F$160","v":0},"#'T2-B(PP5)'!$F$160"]
["pp5_bl4_4_4_total_out",{"$f":"'T2-B(PP5)'!$I$160","v":0},"#'T2-B(PP5)'!$I$160"]
["pp5_bl4_4_4_unit",{"$f":"'T2-B(PP5)'!$C$160","v":0},"#'T2-B(PP5)'!$C$160"]
["pp5_bl4_4_4_unit_in",{"$f":"'T2-B(PP5)'!$D$160","v":0},"#'T2-B(PP5)'!$D$160"]
["pp5_bl4_4_4_units_out",{"$f":"'T2-B(PP5)'!$G$160","v":0},"#'T2-B(PP5)'!$G$160"]
["pp5_bl4_4_5_name",{"$f":"'T2-B(PP5)'!$B$161","v":0},"#'T2-B(PP5)'!$B$161"]
["pp5_bl4_4_5_rate_in",{"$f":"'T2-B(PP5)'!$E$161","v":0},"#'T2-B(PP5)'!$E$161"]
["pp5_bl4_4_5_rate_out",{"$f":"'T2-B(PP5)'!$H$161","v":0},"#'T2-B(PP5)'!$H$161"]
["pp5_bl4_4_5_total",{"$f":"'T2-B(PP5)'!$J$161","v":0},"#'T2-B(PP5)'!$J$161"]
["pp5_bl4_4_5_total_in",{"$f":"'T2-B(PP5)'!$F$161","v":0},"#'T2-B(PP5)'!$F$161"]
["pp5_bl4_4_5_total_out",{"$f":"'T2-B(PP5)'!$I$161","v":0},"#'T2-B(PP5)'!$I$161"]
["pp5_bl4_4_5_unit",{"$f":"'T2-B(PP5)'!$C$161","v":0},"#'T2-B(PP5)'!$C$161"]
["pp5_bl4_4_5_unit_in",{"$f":"'T2-B(PP5)'!$D$161","v":0},"#'T2-B(PP5)'!$D$161"]
["pp5_bl4_4_5_units_out",{"$f":"'T2-B(PP5)'!$G$161","v":0},"#'T2-B(PP5)'!$G$161"]
["pp5_bl4_4_6_name",{"$f":"'T2-B(PP5)'!$B$162","v":0},"#'T2-B(PP5)'!$B$162"]
["pp5_bl4_4_6_rate_in",{"$f":"'T2-B(PP5)'!$E$162","v":0},"#'T2-B(PP5)'!$E$162"]
["pp5_bl4_4_6_rate_out",{"$f":"'T2-B(PP5)'!$H$162","v":0},"#'T2-B(PP5)'!$H$162"]
["pp5_bl4_4_6_total",{"$f":"'T2-B(PP5)'!$J$162","v":0},"#'T2-B(PP5)'!$J$162"]
["pp5_bl4_4_6_total_in",{"$f":"'T2-B(PP5)'!$F$162","v":0},"#'T2-B(PP5)'!$F$162"]
["pp5_bl4_4_6_total_out",{"$f":"'T2-B(PP5)'!$I$162","v":0},"#'T2-B(PP5)'!$I$162"]
["pp5_bl4_4_6_unit",{"$f":"'T2-B(PP5)'!$C$162","v":0},"#'T2-B(PP5)'!$C$162"]
["pp5_bl4_4_6_unit_in",{"$f":"'T2-B(PP5)'!$D$162","v":0},"#'T2-B(PP5)'!$D$162"]
["pp5_bl4_4_6_units_out",{"$f":"'T2-B(PP5)'!$G$162","v":0},"#'T2-B(PP5)'!$G$162"]
["pp5_bl4_4_7_name",{"$f":"'T2-B(PP5)'!$B$163","v":0},"#'T2-B(PP5)'!$B$163"]
["pp5_bl4_4_7_rate_in",{"$f":"'T2-B(PP5)'!$E$163","v":0},"#'T2-B(PP5)'!$E$163"]
["pp5_bl4_4_7_rate_out",{"$f":"'T2-B(PP5)'!$H$163","v":0},"#'T2-B(PP5)'!$H$163"]
["pp5_bl4_4_7_total",{"$f":"'T2-B(PP5)'!$J$163","v":0},"#'T2-B(PP5)'!$J$163"]
["pp5_bl4_4_7_total_in",{"$f":"'T2-B(PP5)'!$F$163","v":0},"#'T2-B(PP5)'!$F$163"]
["pp5_bl4_4_7_total_out",{"$f":"'T2-B(PP5)'!$I$163","v":0},"#'T2-B(PP5)'!$I$163"]
["pp5_bl4_4_7_unit",{"$f":"'T2-B(PP5)'!$C$163","v":0},"#'T2-B(PP5)'!$C$163"]
["pp5_bl4_4_7_unit_in",{"$f":"'T2-B(PP5)'!$D$163","v":0},"#'T2-B(PP5)'!$D$163"]
["pp5_bl4_4_7_units_out",{"$f":"'T2-B(PP5)'!$G$163","v":0},"#'T2-B(PP5)'!$G$163"]
["pp5_bl4_4_8_name",{"$f":"'T2-B(PP5)'!$B$164","v":0},"#'T2-B(PP5)'!$B$164"]
["pp5_bl4_4_8_rate_in",{"$f":"'T2-B(PP5)'!$E$164","v":0},"#'T2-B(PP5)'!$E$164"]
["pp5_bl4_4_8_rate_out",{"$f":"'T2-B(PP5)'!$H$164","v":0},"#'T2-B(PP5)'!$H$164"]
["pp5_bl4_4_8_total",{"$f":"'T2-B(PP5)'!$J$164","v":0},"#'T2-B(PP5)'!$J$164"]
["pp5_bl4_4_8_total_in",{"$f":"'T2-B(PP5)'!$F$164","v":0},"#'T2-B(PP5)'!$F$164"]
["pp5_bl4_4_8_total_out",{"$f":"'T2-B(PP5)'!$I$164","v":0},"#'T2-B(PP5)'!$I$164"]
["pp5_bl4_4_8_unit",{"$f":"'T2-B(PP5)'!$C$164","v":0},"#'T2-B(PP5)'!$C$164"]
["pp5_bl4_4_8_unit_in",{"$f":"'T2-B(PP5)'!$D$164","v":0},"#'T2-B(PP5)'!$D$164"]
["pp5_bl4_4_8_units_out",{"$f":"'T2-B(PP5)'!$G$164","v":0},"#'T2-B(PP5)'!$G$164"]
["pp5_bl4_4_9_name",{"$f":"'T2-B(PP5)'!$B$165","v":0},"#'T2-B(PP5)'!$B$165"]
["pp5_bl4_4_9_rate_in",{"$f":"'T2-B(PP5)'!$E$165","v":0},"#'T2-B(PP5)'!$E$165"]
["pp5_bl4_4_9_rate_out",{"$f":"'T2-B(PP5)'!$H$165","v":0},"#'T2-B(PP5)'!$H$165"]
["pp5_bl4_4_9_total",{"$f":"'T2-B(PP5)'!$J$165","v":0},"#'T2-B(PP5)'!$J$165"]
["pp5_bl4_4_9_total_in",{"$f":"'T2-B(PP5)'!$F$165","v":0},"#'T2-B(PP5)'!$F$165"]
["pp5_bl4_4_9_total_out",{"$f":"'T2-B(PP5)'!$I$165","v":0},"#'T2-B(PP5)'!$I$165"]
["pp5_bl4_4_9_unit",{"$f":"'T2-B(PP5)'!$C$165","v":0},"#'T2-B(PP5)'!$C$165"]
["pp5_bl4_4_9_unit_in",{"$f":"'T2-B(PP5)'!$D$165","v":0},"#'T2-B(PP5)'!$D$165"]
["pp5_bl4_4_9_units_out",{"$f":"'T2-B(PP5)'!$G$165","v":0},"#'T2-B(PP5)'!$G$165"]
["pp5_bl4_4_total",{"$f":"'T2-B(PP5)'!$J$156","v":0},"#'T2-B(PP5)'!$J$156"]
["pp5_bl4_4_total_in",{"$f":"'T2-B(PP5)'!$F$156","v":0},"#'T2-B(PP5)'!$F$156"]
["pp5_bl4_4_total_out",{"$f":"'T2-B(PP5)'!$I$156","v":0},"#'T2-B(PP5)'!$I$156"]
["pp5_bl4_5_1_name",{"$f":"'T2-B(PP5)'!$B$178","v":0},"#'T2-B(PP5)'!$B$178"]
["pp5_bl4_5_1_rate_in",{"$f":"'T2-B(PP5)'!$E$178","v":0},"#'T2-B(PP5)'!$E$178"]
["pp5_bl4_5_1_rate_out",{"$f":"'T2-B(PP5)'!$H$178","v":0},"#'T2-B(PP5)'!$H$178"]
["pp5_bl4_5_1_total",{"$f":"'T2-B(PP5)'!$J$178","v":0},"#'T2-B(PP5)'!$J$178"]
["pp5_bl4_5_1_total_in",{"$f":"'T2-B(PP5)'!$F$178","v":0},"#'T2-B(PP5)'!$F$178"]
["pp5_bl4_5_1_total_out",{"$f":"'T2-B(PP5)'!$I$178","v":0},"#'T2-B(PP5)'!$I$178"]
["pp5_bl4_5_1_unit",{"$f":"'T2-B(PP5)'!$C$178","v":0},"#'T2-B(PP5)'!$C$178"]
["pp5_bl4_5_1_unit_in",{"$f":"'T2-B(PP5)'!$D$178","v":0},"#'T2-B(PP5)'!$D$178"]
["pp5_bl4_5_1_units_out",{"$f":"'T2-B(PP5)'!$G$178","v":0},"#'T2-B(PP5)'!$G$178"]
["pp5_bl4_5_10_name",{"$f":"'T2-B(PP5)'!$B$187","v":0},"#'T2-B(PP5)'!$B$187"]
["pp5_bl4_5_10_rate_in",{"$f":"'T2-B(PP5)'!$E$187","v":0},"#'T2-B(PP5)'!$E$187"]
["pp5_bl4_5_10_rate_out",{"$f":"'T2-B(PP5)'!$H$187","v":0},"#'T2-B(PP5)'!$H$187"]
["pp5_bl4_5_10_total",{"$f":"'T2-B(PP5)'!$J$187","v":0},"#'T2-B(PP5)'!$J$187"]
["pp5_bl4_5_10_total_in",{"$f":"'T2-B(PP5)'!$F$187","v":0},"#'T2-B(PP5)'!$F$187"]
["pp5_bl4_5_10_total_out",{"$f":"'T2-B(PP5)'!$I$187","v":0},"#'T2-B(PP5)'!$I$187"]
["pp5_bl4_5_10_unit",{"$f":"'T2-B(PP5)'!$C$187","v":0},"#'T2-B(PP5)'!$C$187"]
["pp5_bl4_5_10_unit_in",{"$f":"'T2-B(PP5)'!$D$187","v":0},"#'T2-B(PP5)'!$D$187"]
["pp5_bl4_5_10_units_out",{"$f":"'T2-B(PP5)'!$G$187","v":0},"#'T2-B(PP5)'!$G$187"]
["pp5_bl4_5_11_name",{"$f":"'T2-B(PP5)'!$B$188","v":0},"#'T2-B(PP5)'!$B$188"]
["pp5_bl4_5_11_rate_in",{"$f":"'T2-B(PP5)'!$E$188","v":0},"#'T2-B(PP5)'!$E$188"]
["pp5_bl4_5_11_rate_out",{"$f":"'T2-B(PP5)'!$H$188","v":0},"#'T2-B(PP5)'!$H$188"]
["pp5_bl4_5_11_total",{"$f":"'T2-B(PP5)'!$J$188","v":0},"#'T2-B(PP5)'!$J$188"]
["pp5_bl4_5_11_total_in",{"$f":"'T2-B(PP5)'!$F$188","v":0},"#'T2-B(PP5)'!$F$188"]
["pp5_bl4_5_11_total_out",{"$f":"'T2-B(PP5)'!$I$188","v":0},"#'T2-B(PP5)'!$I$188"]
["pp5_bl4_5_11_unit",{"$f":"'T2-B(PP5)'!$C$188","v":0},"#'T2-B(PP5)'!$C$188"]
["pp5_bl4_5_11_unit_in",{"$f":"'T2-B(PP5)'!$D$188","v":0},"#'T2-B(PP5)'!$D$188"]
["pp5_bl4_5_11_units_out",{"$f":"'T2-B(PP5)'!$G$188","v":0},"#'T2-B(PP5)'!$G$188"]
["pp5_bl4_5_12_name",{"$f":"'T2-B(PP5)'!$B$189","v":0},"#'T2-B(PP5)'!$B$189"]
["pp5_bl4_5_12_rate_in",{"$f":"'T2-B(PP5)'!$E$189","v":0},"#'T2-B(PP5)'!$E$189"]
["pp5_bl4_5_12_rate_out",{"$f":"'T2-B(PP5)'!$H$189","v":0},"#'T2-B(PP5)'!$H$189"]
["pp5_bl4_5_12_total",{"$f":"'T2-B(PP5)'!$J$189","v":0},"#'T2-B(PP5)'!$J$189"]
["pp5_bl4_5_12_total_in",{"$f":"'T2-B(PP5)'!$F$189","v":0},"#'T2-B(PP5)'!$F$189"]
["pp5_bl4_5_12_total_out",{"$f":"'T2-B(PP5)'!$I$189","v":0},"#'T2-B(PP5)'!$I$189"]
["pp5_bl4_5_12_unit",{"$f":"'T2-B(PP5)'!$C$189","v":0},"#'T2-B(PP5)'!$C$189"]
["pp5_bl4_5_12_unit_in",{"$f":"'T2-B(PP5)'!$D$189","v":0},"#'T2-B(PP5)'!$D$189"]
["pp5_bl4_5_12_units_out",{"$f":"'T2-B(PP5)'!$G$189","v":0},"#'T2-B(PP5)'!$G$189"]
["pp5_bl4_5_13_name",{"$f":"'T2-B(PP5)'!$B$190","v":0},"#'T2-B(PP5)'!$B$190"]
["pp5_bl4_5_13_rate_in",{"$f":"'T2-B(PP5)'!$E$190","v":0},"#'T2-B(PP5)'!$E$190"]
["pp5_bl4_5_13_rate_out",{"$f":"'T2-B(PP5)'!$H$190","v":0},"#'T2-B(PP5)'!$H$190"]
["pp5_bl4_5_13_total",{"$f":"'T2-B(PP5)'!$J$190","v":0},"#'T2-B(PP5)'!$J$190"]
["pp5_bl4_5_13_total_in",{"$f":"'T2-B(PP5)'!$F$190","v":0},"#'T2-B(PP5)'!$F$190"]
["pp5_bl4_5_13_total_out",{"$f":"'T2-B(PP5)'!$I$190","v":0},"#'T2-B(PP5)'!$I$190"]
["pp5_bl4_5_13_unit",{"$f":"'T2-B(PP5)'!$C$190","v":0},"#'T2-B(PP5)'!$C$190"]
["pp5_bl4_5_13_unit_in",{"$f":"'T2-B(PP5)'!$D$190","v":0},"#'T2-B(PP5)'!$D$190"]
["pp5_bl4_5_13_units_out",{"$f":"'T2-B(PP5)'!$G$190","v":0},"#'T2-B(PP5)'!$G$190"]
["pp5_bl4_5_14_name",{"$f":"'T2-B(PP5)'!$B$191","v":0},"#'T2-B(PP5)'!$B$191"]
["pp5_bl4_5_14_rate_in",{"$f":"'T2-B(PP5)'!$E$191","v":0},"#'T2-B(PP5)'!$E$191"]
["pp5_bl4_5_14_rate_out",{"$f":"'T2-B(PP5)'!$H$191","v":0},"#'T2-B(PP5)'!$H$191"]
["pp5_bl4_5_14_total",{"$f":"'T2-B(PP5)'!$J$191","v":0},"#'T2-B(PP5)'!$J$191"]
["pp5_bl4_5_14_total_in",{"$f":"'T2-B(PP5)'!$F$191","v":0},"#'T2-B(PP5)'!$F$191"]
["pp5_bl4_5_14_total_out",{"$f":"'T2-B(PP5)'!$I$191","v":0},"#'T2-B(PP5)'!$I$191"]
["pp5_bl4_5_14_unit",{"$f":"'T2-B(PP5)'!$C$191","v":0},"#'T2-B(PP5)'!$C$191"]
["pp5_bl4_5_14_unit_in",{"$f":"'T2-B(PP5)'!$D$191","v":0},"#'T2-B(PP5)'!$D$191"]
["pp5_bl4_5_14_units_out",{"$f":"'T2-B(PP5)'!$G$191","v":0},"#'T2-B(PP5)'!$G$191"]
["pp5_bl4_5_15_name",{"$f":"'T2-B(PP5)'!$B$192","v":0},"#'T2-B(PP5)'!$B$192"]
["pp5_bl4_5_15_rate_in",{"$f":"'T2-B(PP5)'!$E$192","v":0},"#'T2-B(PP5)'!$E$192"]
["pp5_bl4_5_15_rate_out",{"$f":"'T2-B(PP5)'!$H$192","v":0},"#'T2-B(PP5)'!$H$192"]
["pp5_bl4_5_15_total",{"$f":"'T2-B(PP5)'!$J$192","v":0},"#'T2-B(PP5)'!$J$192"]
["pp5_bl4_5_15_total_in",{"$f":"'T2-B(PP5)'!$F$192","v":0},"#'T2-B(PP5)'!$F$192"]
["pp5_bl4_5_15_total_out",{"$f":"'T2-B(PP5)'!$I$192","v":0},"#'T2-B(PP5)'!$I$192"]
["pp5_bl4_5_15_unit",{"$f":"'T2-B(PP5)'!$C$192","v":0},"#'T2-B(PP5)'!$C$192"]
["pp5_bl4_5_15_unit_in",{"$f":"'T2-B(PP5)'!$D$192","v":0},"#'T2-B(PP5)'!$D$192"]
["pp5_bl4_5_15_units_out",{"$f":"'T2-B(PP5)'!$G$192","v":0},"#'T2-B(PP5)'!$G$192"]
["pp5_bl4_5_16_name",{"$f":"'T2-B(PP5)'!$B$193","v":0},"#'T2-B(PP5)'!$B$193"]
["pp5_bl4_5_16_rate_in",{"$f":"'T2-B(PP5)'!$E$193","v":0},"#'T2-B(PP5)'!$E$193"]
["pp5_bl4_5_16_rate_out",{"$f":"'T2-B(PP5)'!$H$193","v":0},"#'T2-B(PP5)'!$H$193"]
["pp5_bl4_5_16_total",{"$f":"'T2-B(PP5)'!$J$193","v":0},"#'T2-B(PP5)'!$J$193"]
["pp5_bl4_5_16_total_in",{"$f":"'T2-B(PP5)'!$F$193","v":0},"#'T2-B(PP5)'!$F$193"]
["pp5_bl4_5_16_total_out",{"$f":"'T2-B(PP5)'!$I$193","v":0},"#'T2-B(PP5)'!$I$193"]
["pp5_bl4_5_16_unit",{"$f":"'T2-B(PP5)'!$C$193","v":0},"#'T2-B(PP5)'!$C$193"]
["pp5_bl4_5_16_unit_in",{"$f":"'T2-B(PP5)'!$D$193","v":0},"#'T2-B(PP5)'!$D$193"]
["pp5_bl4_5_16_units_out",{"$f":"'T2-B(PP5)'!$G$193","v":0},"#'T2-B(PP5)'!$G$193"]
["pp5_bl4_5_17_name",{"$f":"'T2-B(PP5)'!$B$194","v":0},"#'T2-B(PP5)'!$B$194"]
["pp5_bl4_5_17_rate_in",{"$f":"'T2-B(PP5)'!$E$194","v":0},"#'T2-B(PP5)'!$E$194"]
["pp5_bl4_5_17_rate_out",{"$f":"'T2-B(PP5)'!$H$194","v":0},"#'T2-B(PP5)'!$H$194"]
["pp5_bl4_5_17_total",{"$f":"'T2-B(PP5)'!$J$194","v":0},"#'T2-B(PP5)'!$J$194"]
["pp5_bl4_5_17_total_in",{"$f":"'T2-B(PP5)'!$F$194","v":0},"#'T2-B(PP5)'!$F$194"]
["pp5_bl4_5_17_total_out",{"$f":"'T2-B(PP5)'!$I$194","v":0},"#'T2-B(PP5)'!$I$194"]
["pp5_bl4_5_17_unit",{"$f":"'T2-B(PP5)'!$C$194","v":0},"#'T2-B(PP5)'!$C$194"]
["pp5_bl4_5_17_unit_in",{"$f":"'T2-B(PP5)'!$D$194","v":0},"#'T2-B(PP5)'!$D$194"]
["pp5_bl4_5_17_units_out",{"$f":"'T2-B(PP5)'!$G$194","v":0},"#'T2-B(PP5)'!$G$194"]
["pp5_bl4_5_18_name",{"$f":"'T2-B(PP5)'!$B$195","v":0},"#'T2-B(PP5)'!$B$195"]
["pp5_bl4_5_18_rate_in",{"$f":"'T2-B(PP5)'!$E$195","v":0},"#'T2-B(PP5)'!$E$195"]
["pp5_bl4_5_18_rate_out",{"$f":"'T2-B(PP5)'!$H$195","v":0},"#'T2-B(PP5)'!$H$195"]
["pp5_bl4_5_18_total",{"$f":"'T2-B(PP5)'!$J$195","v":0},"#'T2-B(PP5)'!$J$195"]
["pp5_bl4_5_18_total_in",{"$f":"'T2-B(PP5)'!$F$195","v":0},"#'T2-B(PP5)'!$F$195"]
["pp5_bl4_5_18_total_out",{"$f":"'T2-B(PP5)'!$I$195","v":0},"#'T2-B(PP5)'!$I$195"]
["pp5_bl4_5_18_unit",{"$f":"'T2-B(PP5)'!$C$195","v":0},"#'T2-B(PP5)'!$C$195"]
["pp5_bl4_5_18_unit_in",{"$f":"'T2-B(PP5)'!$D$195","v":0},"#'T2-B(PP5)'!$D$195"]
["pp5_bl4_5_18_units_out",{"$f":"'T2-B(PP5)'!$G$195","v":0},"#'T2-B(PP5)'!$G$195"]
["pp5_bl4_5_19_name",{"$f":"'T2-B(PP5)'!$B$196","v":0},"#'T2-B(PP5)'!$B$196"]
["pp5_bl4_5_19_rate_in",{"$f":"'T2-B(PP5)'!$E$196","v":0},"#'T2-B(PP5)'!$E$196"]
["pp5_bl4_5_19_rate_out",{"$f":"'T2-B(PP5)'!$H$196","v":0},"#'T2-B(PP5)'!$H$196"]
["pp5_bl4_5_19_total",{"$f":"'T2-B(PP5)'!$J$196","v":0},"#'T2-B(PP5)'!$J$196"]
["pp5_bl4_5_19_total_in",{"$f":"'T2-B(PP5)'!$F$196","v":0},"#'T2-B(PP5)'!$F$196"]
["pp5_bl4_5_19_total_out",{"$f":"'T2-B(PP5)'!$I$196","v":0},"#'T2-B(PP5)'!$I$196"]
["pp5_bl4_5_19_unit",{"$f":"'T2-B(PP5)'!$C$196","v":0},"#'T2-B(PP5)'!$C$196"]
["pp5_bl4_5_19_unit_in",{"$f":"'T2-B(PP5)'!$D$196","v":0},"#'T2-B(PP5)'!$D$196"]
["pp5_bl4_5_19_units_out",{"$f":"'T2-B(PP5)'!$G$196","v":0},"#'T2-B(PP5)'!$G$196"]
["pp5_bl4_5_2_name",{"$f":"'T2-B(PP5)'!$B$179","v":0},"#'T2-B(PP5)'!$B$179"]
["pp5_bl4_5_2_rate_in",{"$f":"'T2-B(PP5)'!$E$179","v":0},"#'T2-B(PP5)'!$E$179"]
["pp5_bl4_5_2_rate_out",{"$f":"'T2-B(PP5)'!$H$179","v":0},"#'T2-B(PP5)'!$H$179"]
["pp5_bl4_5_2_total",{"$f":"'T2-B(PP5)'!$J$179","v":0},"#'T2-B(PP5)'!$J$179"]
["pp5_bl4_5_2_total_in",{"$f":"'T2-B(PP5)'!$F$179","v":0},"#'T2-B(PP5)'!$F$179"]
["pp5_bl4_5_2_total_out",{"$f":"'T2-B(PP5)'!$I$179","v":0},"#'T2-B(PP5)'!$I$179"]
["pp5_bl4_5_2_unit",{"$f":"'T2-B(PP5)'!$C$179","v":0},"#'T2-B(PP5)'!$C$179"]
["pp5_bl4_5_2_unit_in",{"$f":"'T2-B(PP5)'!$D$179","v":0},"#'T2-B(PP5)'!$D$179"]
["pp5_bl4_5_2_units_out",{"$f":"'T2-B(PP5)'!$G$179","v":0},"#'T2-B(PP5)'!$G$179"]
["pp5_bl4_5_20_name",{"$f":"'T2-B(PP5)'!$B$197","v":0},"#'T2-B(PP5)'!$B$197"]
["pp5_bl4_5_20_rate_in",{"$f":"'T2-B(PP5)'!$E$197","v":0},"#'T2-B(PP5)'!$E$197"]
["pp5_bl4_5_20_rate_out",{"$f":"'T2-B(PP5)'!$H$197","v":0},"#'T2-B(PP5)'!$H$197"]
["pp5_bl4_5_20_total",{"$f":"'T2-B(PP5)'!$J$197","v":0},"#'T2-B(PP5)'!$J$197"]
["pp5_bl4_5_20_total_in",{"$f":"'T2-B(PP5)'!$F$197","v":0},"#'T2-B(PP5)'!$F$197"]
["pp5_bl4_5_20_total_out",{"$f":"'T2-B(PP5)'!$I$197","v":0},"#'T2-B(PP5)'!$I$197"]
["pp5_bl4_5_20_unit",{"$f":"'T2-B(PP5)'!$C$197","v":0},"#'T2-B(PP5)'!$C$197"]
["pp5_bl4_5_20_unit_in",{"$f":"'T2-B(PP5)'!$D$197","v":0},"#'T2-B(PP5)'!$D$197"]
["pp5_bl4_5_20_units_out",{"$f":"'T2-B(PP5)'!$G$197","v":0},"#'T2-B(PP5)'!$G$197"]
["pp5_bl4_5_3_name",{"$f":"'T2-B(PP5)'!$B$180","v":0},"#'T2-B(PP5)'!$B$180"]
["pp5_bl4_5_3_rate_in",{"$f":"'T2-B(PP5)'!$E$180","v":0},"#'T2-B(PP5)'!$E$180"]
["pp5_bl4_5_3_rate_out",{"$f":"'T2-B(PP5)'!$H$180","v":0},"#'T2-B(PP5)'!$H$180"]
["pp5_bl4_5_3_total",{"$f":"'T2-B(PP5)'!$J$180","v":0},"#'T2-B(PP5)'!$J$180"]
["pp5_bl4_5_3_total_in",{"$f":"'T2-B(PP5)'!$F$180","v":0},"#'T2-B(PP5)'!$F$180"]
["pp5_bl4_5_3_total_out",{"$f":"'T2-B(PP5)'!$I$180","v":0},"#'T2-B(PP5)'!$I$180"]
["pp5_bl4_5_3_unit",{"$f":"'T2-B(PP5)'!$C$180","v":0},"#'T2-B(PP5)'!$C$180"]
["pp5_bl4_5_3_unit_in",{"$f":"'T2-B(PP5)'!$D$180","v":0},"#'T2-B(PP5)'!$D$180"]
["pp5_bl4_5_3_units_out",{"$f":"'T2-B(PP5)'!$G$180","v":0},"#'T2-B(PP5)'!$G$180"]
["pp5_bl4_5_4_name",{"$f":"'T2-B(PP5)'!$B$181","v":0},"#'T2-B(PP5)'!$B$181"]
["pp5_bl4_5_4_rate_in",{"$f":"'T2-B(PP5)'!$E$181","v":0},"#'T2-B(PP5)'!$E$181"]
["pp5_bl4_5_4_rate_out",{"$f":"'T2-B(PP5)'!$H$181","v":0},"#'T2-B(PP5)'!$H$181"]
["pp5_bl4_5_4_total",{"$f":"'T2-B(PP5)'!$J$181","v":0},"#'T2-B(PP5)'!$J$181"]
["pp5_bl4_5_4_total_in",{"$f":"'T2-B(PP5)'!$F$181","v":0},"#'T2-B(PP5)'!$F$181"]
["pp5_bl4_5_4_total_out",{"$f":"'T2-B(PP5)'!$I$181","v":0},"#'T2-B(PP5)'!$I$181"]
["pp5_bl4_5_4_unit",{"$f":"'T2-B(PP5)'!$C$181","v":0},"#'T2-B(PP5)'!$C$181"]
["pp5_bl4_5_4_unit_in",{"$f":"'T2-B(PP5)'!$D$181","v":0},"#'T2-B(PP5)'!$D$181"]
["pp5_bl4_5_4_units_out",{"$f":"'T2-B(PP5)'!$G$181","v":0},"#'T2-B(PP5)'!$G$181"]
["pp5_bl4_5_5_name",{"$f":"'T2-B(PP5)'!$B$182","v":0},"#'T2-B(PP5)'!$B$182"]
["pp5_bl4_5_5_rate_in",{"$f":"'T2-B(PP5)'!$E$182","v":0},"#'T2-B(PP5)'!$E$182"]
["pp5_bl4_5_5_rate_out",{"$f":"'T2-B(PP5)'!$H$182","v":0},"#'T2-B(PP5)'!$H$182"]
["pp5_bl4_5_5_total",{"$f":"'T2-B(PP5)'!$J$182","v":0},"#'T2-B(PP5)'!$J$182"]
["pp5_bl4_5_5_total_in",{"$f":"'T2-B(PP5)'!$F$182","v":0},"#'T2-B(PP5)'!$F$182"]
["pp5_bl4_5_5_total_out",{"$f":"'T2-B(PP5)'!$I$182","v":0},"#'T2-B(PP5)'!$I$182"]
["pp5_bl4_5_5_unit",{"$f":"'T2-B(PP5)'!$C$182","v":0},"#'T2-B(PP5)'!$C$182"]
["pp5_bl4_5_5_unit_in",{"$f":"'T2-B(PP5)'!$D$182","v":0},"#'T2-B(PP5)'!$D$182"]
["pp5_bl4_5_5_units_out",{"$f":"'T2-B(PP5)'!$G$182","v":0},"#'T2-B(PP5)'!$G$182"]
["pp5_bl4_5_6_name",{"$f":"'T2-B(PP5)'!$B$183","v":0},"#'T2-B(PP5)'!$B$183"]
["pp5_bl4_5_6_rate_in",{"$f":"'T2-B(PP5)'!$E$183","v":0},"#'T2-B(PP5)'!$E$183"]
["pp5_bl4_5_6_rate_out",{"$f":"'T2-B(PP5)'!$H$183","v":0},"#'T2-B(PP5)'!$H$183"]
["pp5_bl4_5_6_total",{"$f":"'T2-B(PP5)'!$J$183","v":0},"#'T2-B(PP5)'!$J$183"]
["pp5_bl4_5_6_total_in",{"$f":"'T2-B(PP5)'!$F$183","v":0},"#'T2-B(PP5)'!$F$183"]
["pp5_bl4_5_6_total_out",{"$f":"'T2-B(PP5)'!$I$183","v":0},"#'T2-B(PP5)'!$I$183"]
["pp5_bl4_5_6_unit",{"$f":"'T2-B(PP5)'!$C$183","v":0},"#'T2-B(PP5)'!$C$183"]
["pp5_bl4_5_6_unit_in",{"$f":"'T2-B(PP5)'!$D$183","v":0},"#'T2-B(PP5)'!$D$183"]
["pp5_bl4_5_6_units_out",{"$f":"'T2-B(PP5)'!$G$183","v":0},"#'T2-B(PP5)'!$G$183"]
["pp5_bl4_5_7_name",{"$f":"'T2-B(PP5)'!$B$184","v":0},"#'T2-B(PP5)'!$B$184"]
["pp5_bl4_5_7_rate_in",{"$f":"'T2-B(PP5)'!$E$184","v":0},"#'T2-B(PP5)'!$E$184"]
["pp5_bl4_5_7_rate_out",{"$f":"'T2-B(PP5)'!$H$184","v":0},"#'T2-B(PP5)'!$H$184"]
["pp5_bl4_5_7_total",{"$f":"'T2-B(PP5)'!$J$184","v":0},"#'T2-B(PP5)'!$J$184"]
["pp5_bl4_5_7_total_in",{"$f":"'T2-B(PP5)'!$F$184","v":0},"#'T2-B(PP5)'!$F$184"]
["pp5_bl4_5_7_total_out",{"$f":"'T2-B(PP5)'!$I$184","v":0},"#'T2-B(PP5)'!$I$184"]
["pp5_bl4_5_7_unit",{"$f":"'T2-B(PP5)'!$C$184","v":0},"#'T2-B(PP5)'!$C$184"]
["pp5_bl4_5_7_unit_in",{"$f":"'T2-B(PP5)'!$D$184","v":0},"#'T2-B(PP5)'!$D$184"]
["pp5_bl4_5_7_units_out",{"$f":"'T2-B(PP5)'!$G$184","v":0},"#'T2-B(PP5)'!$G$184"]
["pp5_bl4_5_8_name",{"$f":"'T2-B(PP5)'!$B$185","v":0},"#'T2-B(PP5)'!$B$185"]
["pp5_bl4_5_8_rate_in",{"$f":"'T2-B(PP5)'!$E$185","v":0},"#'T2-B(PP5)'!$E$185"]
["pp5_bl4_5_8_rate_out",{"$f":"'T2-B(PP5)'!$H$185","v":0},"#'T2-B(PP5)'!$H$185"]
["pp5_bl4_5_8_total",{"$f":"'T2-B(PP5)'!$J$185","v":0},"#'T2-B(PP5)'!$J$185"]
["pp5_bl4_5_8_total_in",{"$f":"'T2-B(PP5)'!$F$185","v":0},"#'T2-B(PP5)'!$F$185"]
["pp5_bl4_5_8_total_out",{"$f":"'T2-B(PP5)'!$I$185","v":0},"#'T2-B(PP5)'!$I$185"]
["pp5_bl4_5_8_unit",{"$f":"'T2-B(PP5)'!$C$185","v":0},"#'T2-B(PP5)'!$C$185"]
["pp5_bl4_5_8_unit_in",{"$f":"'T2-B(PP5)'!$D$185","v":0},"#'T2-B(PP5)'!$D$185"]
["pp5_bl4_5_8_units_out",{"$f":"'T2-B(PP5)'!$G$185","v":0},"#'T2-B(PP5)'!$G$185"]
["pp5_bl4_5_9_name",{"$f":"'T2-B(PP5)'!$B$186","v":0},"#'T2-B(PP5)'!$B$186"]
["pp5_bl4_5_9_rate_in",{"$f":"'T2-B(PP5)'!$E$186","v":0},"#'T2-B(PP5)'!$E$186"]
["pp5_bl4_5_9_rate_out",{"$f":"'T2-B(PP5)'!$H$186","v":0},"#'T2-B(PP5)'!$H$186"]
["pp5_bl4_5_9_total",{"$f":"'T2-B(PP5)'!$J$186","v":0},"#'T2-B(PP5)'!$J$186"]
["pp5_bl4_5_9_total_in",{"$f":"'T2-B(PP5)'!$F$186","v":0},"#'T2-B(PP5)'!$F$186"]
["pp5_bl4_5_9_total_out",{"$f":"'T2-B(PP5)'!$I$186","v":0},"#'T2-B(PP5)'!$I$186"]
["pp5_bl4_5_9_unit",{"$f":"'T2-B(PP5)'!$C$186","v":0},"#'T2-B(PP5)'!$C$186"]
["pp5_bl4_5_9_unit_in",{"$f":"'T2-B(PP5)'!$D$186","v":0},"#'T2-B(PP5)'!$D$186"]
["pp5_bl4_5_9_units_out",{"$f":"'T2-B(PP5)'!$G$186","v":0},"#'T2-B(PP5)'!$G$186"]
["pp5_bl4_5_total",{"$f":"'T2-B(PP5)'!$J$177","v":0},"#'T2-B(PP5)'!$J$177"]
["pp5_bl4_5_total_in",{"$f":"'T2-B(PP5)'!$F$177","v":0},"#'T2-B(PP5)'!$F$177"]
["pp5_bl4_5_total_out",{"$f":"'T2-B(PP5)'!$I$177","v":0},"#'T2-B(PP5)'!$I$177"]
["pp5_bl4_6_1_name",{"$f":"'T2-B(PP5)'!$B$199","v":0},"#'T2-B(PP5)'!$B$199"]
["pp5_bl4_6_1_rate_in",{"$f":"'T2-B(PP5)'!$E$199","v":0},"#'T2-B(PP5)'!$E$199"]
["pp5_bl4_6_1_rate_out",{"$f":"'T2-B(PP5)'!$H$199","v":0},"#'T2-B(PP5)'!$H$199"]
["pp5_bl4_6_1_total",{"$f":"'T2-B(PP5)'!$J$199","v":0},"#'T2-B(PP5)'!$J$199"]
["pp5_bl4_6_1_total_in",{"$f":"'T2-B(PP5)'!$F$199","v":0},"#'T2-B(PP5)'!$F$199"]
["pp5_bl4_6_1_total_out",{"$f":"'T2-B(PP5)'!$I$199","v":0},"#'T2-B(PP5)'!$I$199"]
["pp5_bl4_6_1_unit",{"$f":"'T2-B(PP5)'!$C$199","v":0},"#'T2-B(PP5)'!$C$199"]
["pp5_bl4_6_1_unit_in",{"$f":"'T2-B(PP5)'!$D$199","v":0},"#'T2-B(PP5)'!$D$199"]
["pp5_bl4_6_1_units_out",{"$f":"'T2-B(PP5)'!$G$199","v":0},"#'T2-B(PP5)'!$G$199"]
["pp5_bl4_6_10_name",{"$f":"'T2-B(PP5)'!$B$208","v":0},"#'T2-B(PP5)'!$B$208"]
["pp5_bl4_6_10_rate_in",{"$f":"'T2-B(PP5)'!$E$208","v":0},"#'T2-B(PP5)'!$E$208"]
["pp5_bl4_6_10_rate_out",{"$f":"'T2-B(PP5)'!$H$208","v":0},"#'T2-B(PP5)'!$H$208"]
["pp5_bl4_6_10_total",{"$f":"'T2-B(PP5)'!$J$208","v":0},"#'T2-B(PP5)'!$J$208"]
["pp5_bl4_6_10_total_in",{"$f":"'T2-B(PP5)'!$F$208","v":0},"#'T2-B(PP5)'!$F$208"]
["pp5_bl4_6_10_total_out",{"$f":"'T2-B(PP5)'!$I$208","v":0},"#'T2-B(PP5)'!$I$208"]
["pp5_bl4_6_10_unit",{"$f":"'T2-B(PP5)'!$C$208","v":0},"#'T2-B(PP5)'!$C$208"]
["pp5_bl4_6_10_unit_in",{"$f":"'T2-B(PP5)'!$D$208","v":0},"#'T2-B(PP5)'!$D$208"]
["pp5_bl4_6_10_units_out",{"$f":"'T2-B(PP5)'!$G$208","v":0},"#'T2-B(PP5)'!$G$208"]
["pp5_bl4_6_11_name",{"$f":"'T2-B(PP5)'!$B$209","v":0},"#'T2-B(PP5)'!$B$209"]
["pp5_bl4_6_11_rate_in",{"$f":"'T2-B(PP5)'!$E$209","v":0},"#'T2-B(PP5)'!$E$209"]
["pp5_bl4_6_11_rate_out",{"$f":"'T2-B(PP5)'!$H$209","v":0},"#'T2-B(PP5)'!$H$209"]
["pp5_bl4_6_11_total",{"$f":"'T2-B(PP5)'!$J$209","v":0},"#'T2-B(PP5)'!$J$209"]
["pp5_bl4_6_11_total_in",{"$f":"'T2-B(PP5)'!$F$209","v":0},"#'T2-B(PP5)'!$F$209"]
["pp5_bl4_6_11_total_out",{"$f":"'T2-B(PP5)'!$I$209","v":0},"#'T2-B(PP5)'!$I$209"]
["pp5_bl4_6_11_unit",{"$f":"'T2-B(PP5)'!$C$209","v":0},"#'T2-B(PP5)'!$C$209"]
["pp5_bl4_6_11_unit_in",{"$f":"'T2-B(PP5)'!$D$209","v":0},"#'T2-B(PP5)'!$D$209"]
["pp5_bl4_6_11_units_out",{"$f":"'T2-B(PP5)'!$G$209","v":0},"#'T2-B(PP5)'!$G$209"]
["pp5_bl4_6_12_name",{"$f":"'T2-B(PP5)'!$B$210","v":0},"#'T2-B(PP5)'!$B$210"]
["pp5_bl4_6_12_rate_in",{"$f":"'T2-B(PP5)'!$E$210","v":0},"#'T2-B(PP5)'!$E$210"]
["pp5_bl4_6_12_rate_out",{"$f":"'T2-B(PP5)'!$H$210","v":0},"#'T2-B(PP5)'!$H$210"]
["pp5_bl4_6_12_total",{"$f":"'T2-B(PP5)'!$J$210","v":0},"#'T2-B(PP5)'!$J$210"]
["pp5_bl4_6_12_total_in",{"$f":"'T2-B(PP5)'!$F$210","v":0},"#'T2-B(PP5)'!$F$210"]
["pp5_bl4_6_12_total_out",{"$f":"'T2-B(PP5)'!$I$210","v":0},"#'T2-B(PP5)'!$I$210"]
["pp5_bl4_6_12_unit",{"$f":"'T2-B(PP5)'!$C$210","v":0},"#'T2-B(PP5)'!$C$210"]
["pp5_bl4_6_12_unit_in",{"$f":"'T2-B(PP5)'!$D$210","v":0},"#'T2-B(PP5)'!$D$210"]
["pp5_bl4_6_12_units_out",{"$f":"'T2-B(PP5)'!$G$210","v":0},"#'T2-B(PP5)'!$G$210"]
["pp5_bl4_6_13_name",{"$f":"'T2-B(PP5)'!$B$211","v":0},"#'T2-B(PP5)'!$B$211"]
["pp5_bl4_6_13_rate_in",{"$f":"'T2-B(PP5)'!$E$211","v":0},"#'T2-B(PP5)'!$E$211"]
["pp5_bl4_6_13_rate_out",{"$f":"'T2-B(PP5)'!$H$211","v":0},"#'T2-B(PP5)'!$H$211"]
["pp5_bl4_6_13_total",{"$f":"'T2-B(PP5)'!$J$211","v":0},"#'T2-B(PP5)'!$J$211"]
["pp5_bl4_6_13_total_in",{"$f":"'T2-B(PP5)'!$F$211","v":0},"#'T2-B(PP5)'!$F$211"]
["pp5_bl4_6_13_total_out",{"$f":"'T2-B(PP5)'!$I$211","v":0},"#'T2-B(PP5)'!$I$211"]
["pp5_bl4_6_13_unit",{"$f":"'T2-B(PP5)'!$C$211","v":0},"#'T2-B(PP5)'!$C$211"]
["pp5_bl4_6_13_unit_in",{"$f":"'T2-B(PP5)'!$D$211","v":0},"#'T2-B(PP5)'!$D$211"]
["pp5_bl4_6_13_units_out",{"$f":"'T2-B(PP5)'!$G$211","v":0},"#'T2-B(PP5)'!$G$211"]
["pp5_bl4_6_14_name",{"$f":"'T2-B(PP5)'!$B$212","v":0},"#'T2-B(PP5)'!$B$212"]
["pp5_bl4_6_14_rate_in",{"$f":"'T2-B(PP5)'!$E$212","v":0},"#'T2-B(PP5)'!$E$212"]
["pp5_bl4_6_14_rate_out",{"$f":"'T2-B(PP5)'!$H$212","v":0},"#'T2-B(PP5)'!$H$212"]
["pp5_bl4_6_14_total",{"$f":"'T2-B(PP5)'!$J$212","v":0},"#'T2-B(PP5)'!$J$212"]
["pp5_bl4_6_14_total_in",{"$f":"'T2-B(PP5)'!$F$212","v":0},"#'T2-B(PP5)'!$F$212"]
["pp5_bl4_6_14_total_out",{"$f":"'T2-B(PP5)'!$I$212","v":0},"#'T2-B(PP5)'!$I$212"]
["pp5_bl4_6_14_unit",{"$f":"'T2-B(PP5)'!$C$212","v":0},"#'T2-B(PP5)'!$C$212"]
["pp5_bl4_6_14_unit_in",{"$f":"'T2-B(PP5)'!$D$212","v":0},"#'T2-B(PP5)'!$D$212"]
["pp5_bl4_6_14_units_out",{"$f":"'T2-B(PP5)'!$G$212","v":0},"#'T2-B(PP5)'!$G$212"]
["pp5_bl4_6_15_name",{"$f":"'T2-B(PP5)'!$B$213","v":0},"#'T2-B(PP5)'!$B$213"]
["pp5_bl4_6_15_rate_in",{"$f":"'T2-B(PP5)'!$E$213","v":0},"#'T2-B(PP5)'!$E$213"]
["pp5_bl4_6_15_rate_out",{"$f":"'T2-B(PP5)'!$H$213","v":0},"#'T2-B(PP5)'!$H$213"]
["pp5_bl4_6_15_total",{"$f":"'T2-B(PP5)'!$J$213","v":0},"#'T2-B(PP5)'!$J$213"]
["pp5_bl4_6_15_total_in",{"$f":"'T2-B(PP5)'!$F$213","v":0},"#'T2-B(PP5)'!$F$213"]
["pp5_bl4_6_15_total_out",{"$f":"'T2-B(PP5)'!$I$213","v":0},"#'T2-B(PP5)'!$I$213"]
["pp5_bl4_6_15_unit",{"$f":"'T2-B(PP5)'!$C$213","v":0},"#'T2-B(PP5)'!$C$213"]
["pp5_bl4_6_15_unit_in",{"$f":"'T2-B(PP5)'!$D$213","v":0},"#'T2-B(PP5)'!$D$213"]
["pp5_bl4_6_15_units_out",{"$f":"'T2-B(PP5)'!$G$213","v":0},"#'T2-B(PP5)'!$G$213"]
["pp5_bl4_6_16_name",{"$f":"'T2-B(PP5)'!$B$214","v":0},"#'T2-B(PP5)'!$B$214"]
["pp5_bl4_6_16_rate_in",{"$f":"'T2-B(PP5)'!$E$214","v":0},"#'T2-B(PP5)'!$E$214"]
["pp5_bl4_6_16_rate_out",{"$f":"'T2-B(PP5)'!$H$214","v":0},"#'T2-B(PP5)'!$H$214"]
["pp5_bl4_6_16_total",{"$f":"'T2-B(PP5)'!$J$214","v":0},"#'T2-B(PP5)'!$J$214"]
["pp5_bl4_6_16_total_in",{"$f":"'T2-B(PP5)'!$F$214","v":0},"#'T2-B(PP5)'!$F$214"]
["pp5_bl4_6_16_total_out",{"$f":"'T2-B(PP5)'!$I$214","v":0},"#'T2-B(PP5)'!$I$214"]
["pp5_bl4_6_16_unit",{"$f":"'T2-B(PP5)'!$C$214","v":0},"#'T2-B(PP5)'!$C$214"]
["pp5_bl4_6_16_unit_in",{"$f":"'T2-B(PP5)'!$D$214","v":0},"#'T2-B(PP5)'!$D$214"]
["pp5_bl4_6_16_units_out",{"$f":"'T2-B(PP5)'!$G$214","v":0},"#'T2-B(PP5)'!$G$214"]
["pp5_bl4_6_17_name",{"$f":"'T2-B(PP5)'!$B$215","v":0},"#'T2-B(PP5)'!$B$215"]
["pp5_bl4_6_17_rate_in",{"$f":"'T2-B(PP5)'!$E$215","v":0},"#'T2-B(PP5)'!$E$215"]
["pp5_bl4_6_17_rate_out",{"$f":"'T2-B(PP5)'!$H$215","v":0},"#'T2-B(PP5)'!$H$215"]
["pp5_bl4_6_17_total",{"$f":"'T2-B(PP5)'!$J$215","v":0},"#'T2-B(PP5)'!$J$215"]
["pp5_bl4_6_17_total_in",{"$f":"'T2-B(PP5)'!$F$215","v":0},"#'T2-B(PP5)'!$F$215"]
["pp5_bl4_6_17_total_out",{"$f":"'T2-B(PP5)'!$I$215","v":0},"#'T2-B(PP5)'!$I$215"]
["pp5_bl4_6_17_unit",{"$f":"'T2-B(PP5)'!$C$215","v":0},"#'T2-B(PP5)'!$C$215"]
["pp5_bl4_6_17_unit_in",{"$f":"'T2-B(PP5)'!$D$215","v":0},"#'T2-B(PP5)'!$D$215"]
["pp5_bl4_6_17_units_out",{"$f":"'T2-B(PP5)'!$G$215","v":0},"#'T2-B(PP5)'!$G$215"]
["pp5_bl4_6_18_name",{"$f":"'T2-B(PP5)'!$B$216","v":0},"#'T2-B(PP5)'!$B$216"]
["pp5_bl4_6_18_rate_in",{"$f":"'T2-B(PP5)'!$E$216","v":0},"#'T2-B(PP5)'!$E$216"]
["pp5_bl4_6_18_rate_out",{"$f":"'T2-B(PP5)'!$H$216","v":0},"#'T2-B(PP5)'!$H$216"]
["pp5_bl4_6_18_total",{"$f":"'T2-B(PP5)'!$J$216","v":0},"#'T2-B(PP5)'!$J$216"]
["pp5_bl4_6_18_total_in",{"$f":"'T2-B(PP5)'!$F$216","v":0},"#'T2-B(PP5)'!$F$216"]
["pp5_bl4_6_18_total_out",{"$f":"'T2-B(PP5)'!$I$216","v":0},"#'T2-B(PP5)'!$I$216"]
["pp5_bl4_6_18_unit",{"$f":"'T2-B(PP5)'!$C$216","v":0},"#'T2-B(PP5)'!$C$216"]
["pp5_bl4_6_18_unit_in",{"$f":"'T2-B(PP5)'!$D$216","v":0},"#'T2-B(PP5)'!$D$216"]
["pp5_bl4_6_18_units_out",{"$f":"'T2-B(PP5)'!$G$216","v":0},"#'T2-B(PP5)'!$G$216"]
["pp5_bl4_6_19_name",{"$f":"'T2-B(PP5)'!$B$217","v":0},"#'T2-B(PP5)'!$B$217"]
["pp5_bl4_6_19_rate_in",{"$f":"'T2-B(PP5)'!$E$217","v":0},"#'T2-B(PP5)'!$E$217"]
["pp5_bl4_6_19_rate_out",{"$f":"'T2-B(PP5)'!$H$217","v":0},"#'T2-B(PP5)'!$H$217"]
["pp5_bl4_6_19_total",{"$f":"'T2-B(PP5)'!$J$217","v":0},"#'T2-B(PP5)'!$J$217"]
["pp5_bl4_6_19_total_in",{"$f":"'T2-B(PP5)'!$F$217","v":0},"#'T2-B(PP5)'!$F$217"]
["pp5_bl4_6_19_total_out",{"$f":"'T2-B(PP5)'!$I$217","v":0},"#'T2-B(PP5)'!$I$217"]
["pp5_bl4_6_19_unit",{"$f":"'T2-B(PP5)'!$C$217","v":0},"#'T2-B(PP5)'!$C$217"]
["pp5_bl4_6_19_unit_in",{"$f":"'T2-B(PP5)'!$D$217","v":0},"#'T2-B(PP5)'!$D$217"]
["pp5_bl4_6_19_units_out",{"$f":"'T2-B(PP5)'!$G$217","v":0},"#'T2-B(PP5)'!$G$217"]
["pp5_bl4_6_2_name",{"$f":"'T2-B(PP5)'!$B$200","v":0},"#'T2-B(PP5)'!$B$200"]
["pp5_bl4_6_2_rate_in",{"$f":"'T2-B(PP5)'!$E$200","v":0},"#'T2-B(PP5)'!$E$200"]
["pp5_bl4_6_2_rate_out",{"$f":"'T2-B(PP5)'!$H$200","v":0},"#'T2-B(PP5)'!$H$200"]
["pp5_bl4_6_2_total",{"$f":"'T2-B(PP5)'!$J$200","v":0},"#'T2-B(PP5)'!$J$200"]
["pp5_bl4_6_2_total_in",{"$f":"'T2-B(PP5)'!$F$200","v":0},"#'T2-B(PP5)'!$F$200"]
["pp5_bl4_6_2_total_out",{"$f":"'T2-B(PP5)'!$I$200","v":0},"#'T2-B(PP5)'!$I$200"]
["pp5_bl4_6_2_unit",{"$f":"'T2-B(PP5)'!$C$200","v":0},"#'T2-B(PP5)'!$C$200"]
["pp5_bl4_6_2_unit_in",{"$f":"'T2-B(PP5)'!$D$200","v":0},"#'T2-B(PP5)'!$D$200"]
["pp5_bl4_6_2_units_out",{"$f":"'T2-B(PP5)'!$G$200","v":0},"#'T2-B(PP5)'!$G$200"]
["pp5_bl4_6_20_name",{"$f":"'T2-B(PP5)'!$B$218","v":0},"#'T2-B(PP5)'!$B$218"]
["pp5_bl4_6_20_rate_in",{"$f":"'T2-B(PP5)'!$E$218","v":0},"#'T2-B(PP5)'!$E$218"]
["pp5_bl4_6_20_rate_out",{"$f":"'T2-B(PP5)'!$H$218","v":0},"#'T2-B(PP5)'!$H$218"]
["pp5_bl4_6_20_total",{"$f":"'T2-B(PP5)'!$J$218","v":0},"#'T2-B(PP5)'!$J$218"]
["pp5_bl4_6_20_total_in",{"$f":"'T2-B(PP5)'!$F$218","v":0},"#'T2-B(PP5)'!$F$218"]
["pp5_bl4_6_20_total_out",{"$f":"'T2-B(PP5)'!$I$218","v":0},"#'T2-B(PP5)'!$I$218"]
["pp5_bl4_6_20_unit",{"$f":"'T2-B(PP5)'!$C$218","v":0},"#'T2-B(PP5)'!$C$218"]
["pp5_bl4_6_20_unit_in",{"$f":"'T2-B(PP5)'!$D$218","v":0},"#'T2-B(PP5)'!$D$218"]
["pp5_bl4_6_20_units_out",{"$f":"'T2-B(PP5)'!$G$218","v":0},"#'T2-B(PP5)'!$G$218"]
["pp5_bl4_6_3_name",{"$f":"'T2-B(PP5)'!$B$201","v":0},"#'T2-B(PP5)'!$B$201"]
["pp5_bl4_6_3_rate_in",{"$f":"'T2-B(PP5)'!$E$201","v":0},"#'T2-B(PP5)'!$E$201"]
["pp5_bl4_6_3_rate_out",{"$f":"'T2-B(PP5)'!$H$201","v":0},"#'T2-B(PP5)'!$H$201"]
["pp5_bl4_6_3_total",{"$f":"'T2-B(PP5)'!$J$201","v":0},"#'T2-B(PP5)'!$J$201"]
["pp5_bl4_6_3_total_in",{"$f":"'T2-B(PP5)'!$F$201","v":0},"#'T2-B(PP5)'!$F$201"]
["pp5_bl4_6_3_total_out",{"$f":"'T2-B(PP5)'!$I$201","v":0},"#'T2-B(PP5)'!$I$201"]
["pp5_bl4_6_3_unit",{"$f":"'T2-B(PP5)'!$C$201","v":0},"#'T2-B(PP5)'!$C$201"]
["pp5_bl4_6_3_unit_in",{"$f":"'T2-B(PP5)'!$D$201","v":0},"#'T2-B(PP5)'!$D$201"]
["pp5_bl4_6_3_units_out",{"$f":"'T2-B(PP5)'!$G$201","v":0},"#'T2-B(PP5)'!$G$201"]
["pp5_bl4_6_4_name",{"$f":"'T2-B(PP5)'!$B$202","v":0},"#'T2-B(PP5)'!$B$202"]
["pp5_bl4_6_4_rate_in",{"$f":"'T2-B(PP5)'!$E$202","v":0},"#'T2-B(PP5)'!$E$202"]
["pp5_bl4_6_4_rate_out",{"$f":"'T2-B(PP5)'!$H$202","v":0},"#'T2-B(PP5)'!$H$202"]
["pp5_bl4_6_4_total",{"$f":"'T2-B(PP5)'!$J$202","v":0},"#'T2-B(PP5)'!$J$202"]
["pp5_bl4_6_4_total_in",{"$f":"'T2-B(PP5)'!$F$202","v":0},"#'T2-B(PP5)'!$F$202"]
["pp5_bl4_6_4_total_out",{"$f":"'T2-B(PP5)'!$I$202","v":0},"#'T2-B(PP5)'!$I$202"]
["pp5_bl4_6_4_unit",{"$f":"'T2-B(PP5)'!$C$202","v":0},"#'T2-B(PP5)'!$C$202"]
["pp5_bl4_6_4_unit_in",{"$f":"'T2-B(PP5)'!$D$202","v":0},"#'T2-B(PP5)'!$D$202"]
["pp5_bl4_6_4_units_out",{"$f":"'T2-B(PP5)'!$G$202","v":0},"#'T2-B(PP5)'!$G$202"]
["pp5_bl4_6_5_name",{"$f":"'T2-B(PP5)'!$B$203","v":0},"#'T2-B(PP5)'!$B$203"]
["pp5_bl4_6_5_rate_in",{"$f":"'T2-B(PP5)'!$E$203","v":0},"#'T2-B(PP5)'!$E$203"]
["pp5_bl4_6_5_rate_out",{"$f":"'T2-B(PP5)'!$H$203","v":0},"#'T2-B(PP5)'!$H$203"]
["pp5_bl4_6_5_total",{"$f":"'T2-B(PP5)'!$J$203","v":0},"#'T2-B(PP5)'!$J$203"]
["pp5_bl4_6_5_total_in",{"$f":"'T2-B(PP5)'!$F$203","v":0},"#'T2-B(PP5)'!$F$203"]
["pp5_bl4_6_5_total_out",{"$f":"'T2-B(PP5)'!$I$203","v":0},"#'T2-B(PP5)'!$I$203"]
["pp5_bl4_6_5_unit",{"$f":"'T2-B(PP5)'!$C$203","v":0},"#'T2-B(PP5)'!$C$203"]
["pp5_bl4_6_5_unit_in",{"$f":"'T2-B(PP5)'!$D$203","v":0},"#'T2-B(PP5)'!$D$203"]
["pp5_bl4_6_5_units_out",{"$f":"'T2-B(PP5)'!$G$203","v":0},"#'T2-B(PP5)'!$G$203"]
["pp5_bl4_6_6_name",{"$f":"'T2-B(PP5)'!$B$204","v":0},"#'T2-B(PP5)'!$B$204"]
["pp5_bl4_6_6_rate_in",{"$f":"'T2-B(PP5)'!$E$204","v":0},"#'T2-B(PP5)'!$E$204"]
["pp5_bl4_6_6_rate_out",{"$f":"'T2-B(PP5)'!$H$204","v":0},"#'T2-B(PP5)'!$H$204"]
["pp5_bl4_6_6_total",{"$f":"'T2-B(PP5)'!$J$204","v":0},"#'T2-B(PP5)'!$J$204"]
["pp5_bl4_6_6_total_in",{"$f":"'T2-B(PP5)'!$F$204","v":0},"#'T2-B(PP5)'!$F$204"]
["pp5_bl4_6_6_total_out",{"$f":"'T2-B(PP5)'!$I$204","v":0},"#'T2-B(PP5)'!$I$204"]
["pp5_bl4_6_6_unit",{"$f":"'T2-B(PP5)'!$C$204","v":0},"#'T2-B(PP5)'!$C$204"]
["pp5_bl4_6_6_unit_in",{"$f":"'T2-B(PP5)'!$D$204","v":0},"#'T2-B(PP5)'!$D$204"]
["pp5_bl4_6_6_units_out",{"$f":"'T2-B(PP5)'!$G$204","v":0},"#'T2-B(PP5)'!$G$204"]
["pp5_bl4_6_7_name",{"$f":"'T2-B(PP5)'!$B$205","v":0},"#'T2-B(PP5)'!$B$205"]
["pp5_bl4_6_7_rate_in",{"$f":"'T2-B(PP5)'!$E$205","v":0},"#'T2-B(PP5)'!$E$205"]
["pp5_bl4_6_7_rate_out",{"$f":"'T2-B(PP5)'!$H$205","v":0},"#'T2-B(PP5)'!$H$205"]
["pp5_bl4_6_7_total",{"$f":"'T2-B(PP5)'!$J$205","v":0},"#'T2-B(PP5)'!$J$205"]
["pp5_bl4_6_7_total_in",{"$f":"'T2-B(PP5)'!$F$205","v":0},"#'T2-B(PP5)'!$F$205"]
["pp5_bl4_6_7_total_out",{"$f":"'T2-B(PP5)'!$I$205","v":0},"#'T2-B(PP5)'!$I$205"]
["pp5_bl4_6_7_unit",{"$f":"'T2-B(PP5)'!$C$205","v":0},"#'T2-B(PP5)'!$C$205"]
["pp5_bl4_6_7_unit_in",{"$f":"'T2-B(PP5)'!$D$205","v":0},"#'T2-B(PP5)'!$D$205"]
["pp5_bl4_6_7_units_out",{"$f":"'T2-B(PP5)'!$G$205","v":0},"#'T2-B(PP5)'!$G$205"]
["pp5_bl4_6_8_name",{"$f":"'T2-B(PP5)'!$B$206","v":0},"#'T2-B(PP5)'!$B$206"]
["pp5_bl4_6_8_rate_in",{"$f":"'T2-B(PP5)'!$E$206","v":0},"#'T2-B(PP5)'!$E$206"]
["pp5_bl4_6_8_rate_out",{"$f":"'T2-B(PP5)'!$H$206","v":0},"#'T2-B(PP5)'!$H$206"]
["pp5_bl4_6_8_total",{"$f":"'T2-B(PP5)'!$J$206","v":0},"#'T2-B(PP5)'!$J$206"]
["pp5_bl4_6_8_total_in",{"$f":"'T2-B(PP5)'!$F$206","v":0},"#'T2-B(PP5)'!$F$206"]
["pp5_bl4_6_8_total_out",{"$f":"'T2-B(PP5)'!$I$206","v":0},"#'T2-B(PP5)'!$I$206"]
["pp5_bl4_6_8_unit",{"$f":"'T2-B(PP5)'!$C$206","v":0},"#'T2-B(PP5)'!$C$206"]
["pp5_bl4_6_8_unit_in",{"$f":"'T2-B(PP5)'!$D$206","v":0},"#'T2-B(PP5)'!$D$206"]
["pp5_bl4_6_8_units_out",{"$f":"'T2-B(PP5)'!$G$206","v":0},"#'T2-B(PP5)'!$G$206"]
["pp5_bl4_6_9_name",{"$f":"'T2-B(PP5)'!$B$207","v":0},"#'T2-B(PP5)'!$B$207"]
["pp5_bl4_6_9_rate_in",{"$f":"'T2-B(PP5)'!$E$207","v":0},"#'T2-B(PP5)'!$E$207"]
["pp5_bl4_6_9_rate_out",{"$f":"'T2-B(PP5)'!$H$207","v":0},"#'T2-B(PP5)'!$H$207"]
["pp5_bl4_6_9_total",{"$f":"'T2-B(PP5)'!$J$207","v":0},"#'T2-B(PP5)'!$J$207"]
["pp5_bl4_6_9_total_in",{"$f":"'T2-B(PP5)'!$F$207","v":0},"#'T2-B(PP5)'!$F$207"]
["pp5_bl4_6_9_total_out",{"$f":"'T2-B(PP5)'!$I$207","v":0},"#'T2-B(PP5)'!$I$207"]
["pp5_bl4_6_9_unit",{"$f":"'T2-B(PP5)'!$C$207","v":0},"#'T2-B(PP5)'!$C$207"]
["pp5_bl4_6_9_unit_in",{"$f":"'T2-B(PP5)'!$D$207","v":0},"#'T2-B(PP5)'!$D$207"]
["pp5_bl4_6_9_units_out",{"$f":"'T2-B(PP5)'!$G$207","v":0},"#'T2-B(PP5)'!$G$207"]
["pp5_bl4_6_total",{"$f":"'T2-B(PP5)'!$J$198","v":0},"#'T2-B(PP5)'!$J$198"]
["pp5_bl4_6_total_in",{"$f":"'T2-B(PP5)'!$F$198","v":0},"#'T2-B(PP5)'!$F$198"]
["pp5_bl4_6_total_out",{"$f":"'T2-B(PP5)'!$I$198","v":0},"#'T2-B(PP5)'!$I$198"]
["pp5_bl4_7_1_name",{"$f":"'T2-B(PP5)'!$B$220","v":0},"#'T2-B(PP5)'!$B$220"]
["pp5_bl4_7_1_rate_in",{"$f":"'T2-B(PP5)'!$E$220","v":0},"#'T2-B(PP5)'!$E$220"]
["pp5_bl4_7_1_rate_out",{"$f":"'T2-B(PP5)'!$H$220","v":0},"#'T2-B(PP5)'!$H$220"]
["pp5_bl4_7_1_total",{"$f":"'T2-B(PP5)'!$J$220","v":0},"#'T2-B(PP5)'!$J$220"]
["pp5_bl4_7_1_total_in",{"$f":"'T2-B(PP5)'!$F$220","v":0},"#'T2-B(PP5)'!$F$220"]
["pp5_bl4_7_1_total_out",{"$f":"'T2-B(PP5)'!$I$220","v":0},"#'T2-B(PP5)'!$I$220"]
["pp5_bl4_7_1_unit",{"$f":"'T2-B(PP5)'!$C$220","v":0},"#'T2-B(PP5)'!$C$220"]
["pp5_bl4_7_1_unit_in",{"$f":"'T2-B(PP5)'!$D$220","v":0},"#'T2-B(PP5)'!$D$220"]
["pp5_bl4_7_1_units_out",{"$f":"'T2-B(PP5)'!$G$220","v":0},"#'T2-B(PP5)'!$G$220"]
["pp5_bl4_7_10_name",{"$f":"'T2-B(PP5)'!$B$229","v":0},"#'T2-B(PP5)'!$B$229"]
["pp5_bl4_7_10_rate_in",{"$f":"'T2-B(PP5)'!$E$229","v":0},"#'T2-B(PP5)'!$E$229"]
["pp5_bl4_7_10_rate_out",{"$f":"'T2-B(PP5)'!$H$229","v":0},"#'T2-B(PP5)'!$H$229"]
["pp5_bl4_7_10_total",{"$f":"'T2-B(PP5)'!$J$229","v":0},"#'T2-B(PP5)'!$J$229"]
["pp5_bl4_7_10_total_in",{"$f":"'T2-B(PP5)'!$F$229","v":0},"#'T2-B(PP5)'!$F$229"]
["pp5_bl4_7_10_total_out",{"$f":"'T2-B(PP5)'!$I$229","v":0},"#'T2-B(PP5)'!$I$229"]
["pp5_bl4_7_10_unit",{"$f":"'T2-B(PP5)'!$C$229","v":0},"#'T2-B(PP5)'!$C$229"]
["pp5_bl4_7_10_unit_in",{"$f":"'T2-B(PP5)'!$D$229","v":0},"#'T2-B(PP5)'!$D$229"]
["pp5_bl4_7_10_units_out",{"$f":"'T2-B(PP5)'!$G$229","v":0},"#'T2-B(PP5)'!$G$229"]
["pp5_bl4_7_11_name",{"$f":"'T2-B(PP5)'!$B$230","v":0},"#'T2-B(PP5)'!$B$230"]
["pp5_bl4_7_11_rate_in",{"$f":"'T2-B(PP5)'!$E$230","v":0},"#'T2-B(PP5)'!$E$230"]
["pp5_bl4_7_11_rate_out",{"$f":"'T2-B(PP5)'!$H$230","v":0},"#'T2-B(PP5)'!$H$230"]
["pp5_bl4_7_11_total",{"$f":"'T2-B(PP5)'!$J$230","v":0},"#'T2-B(PP5)'!$J$230"]
["pp5_bl4_7_11_total_in",{"$f":"'T2-B(PP5)'!$F$230","v":0},"#'T2-B(PP5)'!$F$230"]
["pp5_bl4_7_11_total_out",{"$f":"'T2-B(PP5)'!$I$230","v":0},"#'T2-B(PP5)'!$I$230"]
["pp5_bl4_7_11_unit",{"$f":"'T2-B(PP5)'!$C$230","v":0},"#'T2-B(PP5)'!$C$230"]
["pp5_bl4_7_11_unit_in",{"$f":"'T2-B(PP5)'!$D$230","v":0},"#'T2-B(PP5)'!$D$230"]
["pp5_bl4_7_11_units_out",{"$f":"'T2-B(PP5)'!$G$230","v":0},"#'T2-B(PP5)'!$G$230"]
["pp5_bl4_7_12_name",{"$f":"'T2-B(PP5)'!$B$231","v":0},"#'T2-B(PP5)'!$B$231"]
["pp5_bl4_7_12_rate_in",{"$f":"'T2-B(PP5)'!$E$231","v":0},"#'T2-B(PP5)'!$E$231"]
["pp5_bl4_7_12_rate_out",{"$f":"'T2-B(PP5)'!$H$231","v":0},"#'T2-B(PP5)'!$H$231"]
["pp5_bl4_7_12_total",{"$f":"'T2-B(PP5)'!$J$231","v":0},"#'T2-B(PP5)'!$J$231"]
["pp5_bl4_7_12_total_in",{"$f":"'T2-B(PP5)'!$F$231","v":0},"#'T2-B(PP5)'!$F$231"]
["pp5_bl4_7_12_total_out",{"$f":"'T2-B(PP5)'!$I$231","v":0},"#'T2-B(PP5)'!$I$231"]
["pp5_bl4_7_12_unit",{"$f":"'T2-B(PP5)'!$C$231","v":0},"#'T2-B(PP5)'!$C$231"]
["pp5_bl4_7_12_unit_in",{"$f":"'T2-B(PP5)'!$D$231","v":0},"#'T2-B(PP5)'!$D$231"]
["pp5_bl4_7_12_units_out",{"$f":"'T2-B(PP5)'!$G$231","v":0},"#'T2-B(PP5)'!$G$231"]
["pp5_bl4_7_13_name",{"$f":"'T2-B(PP5)'!$B$232","v":0},"#'T2-B(PP5)'!$B$232"]
["pp5_bl4_7_13_rate_in",{"$f":"'T2-B(PP5)'!$E$232","v":0},"#'T2-B(PP5)'!$E$232"]
["pp5_bl4_7_13_rate_out",{"$f":"'T2-B(PP5)'!$H$232","v":0},"#'T2-B(PP5)'!$H$232"]
["pp5_bl4_7_13_total",{"$f":"'T2-B(PP5)'!$J$232","v":0},"#'T2-B(PP5)'!$J$232"]
["pp5_bl4_7_13_total_in",{"$f":"'T2-B(PP5)'!$F$232","v":0},"#'T2-B(PP5)'!$F$232"]
["pp5_bl4_7_13_total_out",{"$f":"'T2-B(PP5)'!$I$232","v":0},"#'T2-B(PP5)'!$I$232"]
["pp5_bl4_7_13_unit",{"$f":"'T2-B(PP5)'!$C$232","v":0},"#'T2-B(PP5)'!$C$232"]
["pp5_bl4_7_13_unit_in",{"$f":"'T2-B(PP5)'!$D$232","v":0},"#'T2-B(PP5)'!$D$232"]
["pp5_bl4_7_13_units_out",{"$f":"'T2-B(PP5)'!$G$232","v":0},"#'T2-B(PP5)'!$G$232"]
["pp5_bl4_7_14_name",{"$f":"'T2-B(PP5)'!$B$233","v":0},"#'T2-B(PP5)'!$B$233"]
["pp5_bl4_7_14_rate_in",{"$f":"'T2-B(PP5)'!$E$233","v":0},"#'T2-B(PP5)'!$E$233"]
["pp5_bl4_7_14_rate_out",{"$f":"'T2-B(PP5)'!$H$233","v":0},"#'T2-B(PP5)'!$H$233"]
["pp5_bl4_7_14_total",{"$f":"'T2-B(PP5)'!$J$233","v":0},"#'T2-B(PP5)'!$J$233"]
["pp5_bl4_7_14_total_in",{"$f":"'T2-B(PP5)'!$F$233","v":0},"#'T2-B(PP5)'!$F$233"]
["pp5_bl4_7_14_total_out",{"$f":"'T2-B(PP5)'!$I$233","v":0},"#'T2-B(PP5)'!$I$233"]
["pp5_bl4_7_14_unit",{"$f":"'T2-B(PP5)'!$C$233","v":0},"#'T2-B(PP5)'!$C$233"]
["pp5_bl4_7_14_unit_in",{"$f":"'T2-B(PP5)'!$D$233","v":0},"#'T2-B(PP5)'!$D$233"]
["pp5_bl4_7_14_units_out",{"$f":"'T2-B(PP5)'!$G$233","v":0},"#'T2-B(PP5)'!$G$233"]
["pp5_bl4_7_15_name",{"$f":"'T2-B(PP5)'!$B$234","v":0},"#'T2-B(PP5)'!$B$234"]
["pp5_bl4_7_15_rate_in",{"$f":"'T2-B(PP5)'!$E$234","v":0},"#'T2-B(PP5)'!$E$234"]
["pp5_bl4_7_15_rate_out",{"$f":"'T2-B(PP5)'!$H$234","v":0},"#'T2-B(PP5)'!$H$234"]
["pp5_bl4_7_15_total",{"$f":"'T2-B(PP5)'!$J$234","v":0},"#'T2-B(PP5)'!$J$234"]
["pp5_bl4_7_15_total_in",{"$f":"'T2-B(PP5)'!$F$234","v":0},"#'T2-B(PP5)'!$F$234"]
["pp5_bl4_7_15_total_out",{"$f":"'T2-B(PP5)'!$I$234","v":0},"#'T2-B(PP5)'!$I$234"]
["pp5_bl4_7_15_unit",{"$f":"'T2-B(PP5)'!$C$234","v":0},"#'T2-B(PP5)'!$C$234"]
["pp5_bl4_7_15_unit_in",{"$f":"'T2-B(PP5)'!$D$234","v":0},"#'T2-B(PP5)'!$D$234"]
["pp5_bl4_7_15_units_out",{"$f":"'T2-B(PP5)'!$G$234","v":0},"#'T2-B(PP5)'!$G$234"]
["pp5_bl4_7_16_name",{"$f":"'T2-B(PP5)'!$B$235","v":0},"#'T2-B(PP5)'!$B$235"]
["pp5_bl4_7_16_rate_in",{"$f":"'T2-B(PP5)'!$E$235","v":0},"#'T2-B(PP5)'!$E$235"]
["pp5_bl4_7_16_rate_out",{"$f":"'T2-B(PP5)'!$H$235","v":0},"#'T2-B(PP5)'!$H$235"]
["pp5_bl4_7_16_total",{"$f":"'T2-B(PP5)'!$J$235","v":0},"#'T2-B(PP5)'!$J$235"]
["pp5_bl4_7_16_total_in",{"$f":"'T2-B(PP5)'!$F$235","v":0},"#'T2-B(PP5)'!$F$235"]
["pp5_bl4_7_16_total_out",{"$f":"'T2-B(PP5)'!$I$235","v":0},"#'T2-B(PP5)'!$I$235"]
["pp5_bl4_7_16_unit",{"$f":"'T2-B(PP5)'!$C$235","v":0},"#'T2-B(PP5)'!$C$235"]
["pp5_bl4_7_16_unit_in",{"$f":"'T2-B(PP5)'!$D$235","v":0},"#'T2-B(PP5)'!$D$235"]
["pp5_bl4_7_16_units_out",{"$f":"'T2-B(PP5)'!$G$235","v":0},"#'T2-B(PP5)'!$G$235"]
["pp5_bl4_7_17_name",{"$f":"'T2-B(PP5)'!$B$236","v":0},"#'T2-B(PP5)'!$B$236"]
["pp5_bl4_7_17_rate_in",{"$f":"'T2-B(PP5)'!$E$236","v":0},"#'T2-B(PP5)'!$E$236"]
["pp5_bl4_7_17_rate_out",{"$f":"'T2-B(PP5)'!$H$236","v":0},"#'T2-B(PP5)'!$H$236"]
["pp5_bl4_7_17_total",{"$f":"'T2-B(PP5)'!$J$236","v":0},"#'T2-B(PP5)'!$J$236"]
["pp5_bl4_7_17_total_in",{"$f":"'T2-B(PP5)'!$F$236","v":0},"#'T2-B(PP5)'!$F$236"]
["pp5_bl4_7_17_total_out",{"$f":"'T2-B(PP5)'!$I$236","v":0},"#'T2-B(PP5)'!$I$236"]
["pp5_bl4_7_17_unit",{"$f":"'T2-B(PP5)'!$C$236","v":0},"#'T2-B(PP5)'!$C$236"]
["pp5_bl4_7_17_unit_in",{"$f":"'T2-B(PP5)'!$D$236","v":0},"#'T2-B(PP5)'!$D$236"]
["pp5_bl4_7_17_units_out",{"$f":"'T2-B(PP5)'!$G$236","v":0},"#'T2-B(PP5)'!$G$236"]
["pp5_bl4_7_18_name",{"$f":"'T2-B(PP5)'!$B$237","v":0},"#'T2-B(PP5)'!$B$237"]
["pp5_bl4_7_18_rate_in",{"$f":"'T2-B(PP5)'!$E$237","v":0},"#'T2-B(PP5)'!$E$237"]
["pp5_bl4_7_18_rate_out",{"$f":"'T2-B(PP5)'!$H$237","v":0},"#'T2-B(PP5)'!$H$237"]
["pp5_bl4_7_18_total",{"$f":"'T2-B(PP5)'!$J$237","v":0},"#'T2-B(PP5)'!$J$237"]
["pp5_bl4_7_18_total_in",{"$f":"'T2-B(PP5)'!$F$237","v":0},"#'T2-B(PP5)'!$F$237"]
["pp5_bl4_7_18_total_out",{"$f":"'T2-B(PP5)'!$I$237","v":0},"#'T2-B(PP5)'!$I$237"]
["pp5_bl4_7_18_unit",{"$f":"'T2-B(PP5)'!$C$237","v":0},"#'T2-B(PP5)'!$C$237"]
["pp5_bl4_7_18_unit_in",{"$f":"'T2-B(PP5)'!$D$237","v":0},"#'T2-B(PP5)'!$D$237"]
["pp5_bl4_7_18_units_out",{"$f":"'T2-B(PP5)'!$G$237","v":0},"#'T2-B(PP5)'!$G$237"]
["pp5_bl4_7_19_name",{"$f":"'T2-B(PP5)'!$B$238","v":0},"#'T2-B(PP5)'!$B$238"]
["pp5_bl4_7_19_rate_in",{"$f":"'T2-B(PP5)'!$E$238","v":0},"#'T2-B(PP5)'!$E$238"]
["pp5_bl4_7_19_rate_out",{"$f":"'T2-B(PP5)'!$H$238","v":0},"#'T2-B(PP5)'!$H$238"]
["pp5_bl4_7_19_total",{"$f":"'T2-B(PP5)'!$J$238","v":0},"#'T2-B(PP5)'!$J$238"]
["pp5_bl4_7_19_total_in",{"$f":"'T2-B(PP5)'!$F$238","v":0},"#'T2-B(PP5)'!$F$238"]
["pp5_bl4_7_19_total_out",{"$f":"'T2-B(PP5)'!$I$238","v":0},"#'T2-B(PP5)'!$I$238"]
["pp5_bl4_7_19_unit",{"$f":"'T2-B(PP5)'!$C$238","v":0},"#'T2-B(PP5)'!$C$238"]
["pp5_bl4_7_19_unit_in",{"$f":"'T2-B(PP5)'!$D$238","v":0},"#'T2-B(PP5)'!$D$238"]
["pp5_bl4_7_19_units_out",{"$f":"'T2-B(PP5)'!$G$238","v":0},"#'T2-B(PP5)'!$G$238"]
["pp5_bl4_7_2_name",{"$f":"'T2-B(PP5)'!$B$221","v":0},"#'T2-B(PP5)'!$B$221"]
["pp5_bl4_7_2_rate_in",{"$f":"'T2-B(PP5)'!$E$221","v":0},"#'T2-B(PP5)'!$E$221"]
["pp5_bl4_7_2_rate_out",{"$f":"'T2-B(PP5)'!$H$221","v":0},"#'T2-B(PP5)'!$H$221"]
["pp5_bl4_7_2_total",{"$f":"'T2-B(PP5)'!$J$221","v":0},"#'T2-B(PP5)'!$J$221"]
["pp5_bl4_7_2_total_in",{"$f":"'T2-B(PP5)'!$F$221","v":0},"#'T2-B(PP5)'!$F$221"]
["pp5_bl4_7_2_total_out",{"$f":"'T2-B(PP5)'!$I$221","v":0},"#'T2-B(PP5)'!$I$221"]
["pp5_bl4_7_2_unit",{"$f":"'T2-B(PP5)'!$C$221","v":0},"#'T2-B(PP5)'!$C$221"]
["pp5_bl4_7_2_unit_in",{"$f":"'T2-B(PP5)'!$D$221","v":0},"#'T2-B(PP5)'!$D$221"]
["pp5_bl4_7_2_units_out",{"$f":"'T2-B(PP5)'!$G$221","v":0},"#'T2-B(PP5)'!$G$221"]
["pp5_bl4_7_20_name",{"$f":"'T2-B(PP5)'!$B$239","v":0},"#'T2-B(PP5)'!$B$239"]
["pp5_bl4_7_20_rate_in",{"$f":"'T2-B(PP5)'!$E$239","v":0},"#'T2-B(PP5)'!$E$239"]
["pp5_bl4_7_20_rate_out",{"$f":"'T2-B(PP5)'!$H$239","v":0},"#'T2-B(PP5)'!$H$239"]
["pp5_bl4_7_20_total",{"$f":"'T2-B(PP5)'!$J$239","v":0},"#'T2-B(PP5)'!$J$239"]
["pp5_bl4_7_20_total_in",{"$f":"'T2-B(PP5)'!$F$239","v":0},"#'T2-B(PP5)'!$F$239"]
["pp5_bl4_7_20_total_out",{"$f":"'T2-B(PP5)'!$I$239","v":0},"#'T2-B(PP5)'!$I$239"]
["pp5_bl4_7_20_unit",{"$f":"'T2-B(PP5)'!$C$239","v":0},"#'T2-B(PP5)'!$C$239"]
["pp5_bl4_7_20_unit_in",{"$f":"'T2-B(PP5)'!$D$239","v":0},"#'T2-B(PP5)'!$D$239"]
["pp5_bl4_7_20_units_out",{"$f":"'T2-B(PP5)'!$G$239","v":0},"#'T2-B(PP5)'!$G$239"]
["pp5_bl4_7_3_name",{"$f":"'T2-B(PP5)'!$B$222","v":0},"#'T2-B(PP5)'!$B$222"]
["pp5_bl4_7_3_rate_in",{"$f":"'T2-B(PP5)'!$E$222","v":0},"#'T2-B(PP5)'!$E$222"]
["pp5_bl4_7_3_rate_out",{"$f":"'T2-B(PP5)'!$H$222","v":0},"#'T2-B(PP5)'!$H$222"]
["pp5_bl4_7_3_total",{"$f":"'T2-B(PP5)'!$J$222","v":0},"#'T2-B(PP5)'!$J$222"]
["pp5_bl4_7_3_total_in",{"$f":"'T2-B(PP5)'!$F$222","v":0},"#'T2-B(PP5)'!$F$222"]
["pp5_bl4_7_3_total_out",{"$f":"'T2-B(PP5)'!$I$222","v":0},"#'T2-B(PP5)'!$I$222"]
["pp5_bl4_7_3_unit",{"$f":"'T2-B(PP5)'!$C$222","v":0},"#'T2-B(PP5)'!$C$222"]
["pp5_bl4_7_3_unit_in",{"$f":"'T2-B(PP5)'!$D$222","v":0},"#'T2-B(PP5)'!$D$222"]
["pp5_bl4_7_3_units_out",{"$f":"'T2-B(PP5)'!$G$222","v":0},"#'T2-B(PP5)'!$G$222"]
["pp5_bl4_7_4_name",{"$f":"'T2-B(PP5)'!$B$223","v":0},"#'T2-B(PP5)'!$B$223"]
["pp5_bl4_7_4_rate_in",{"$f":"'T2-B(PP5)'!$E$223","v":0},"#'T2-B(PP5)'!$E$223"]
["pp5_bl4_7_4_rate_out",{"$f":"'T2-B(PP5)'!$H$223","v":0},"#'T2-B(PP5)'!$H$223"]
["pp5_bl4_7_4_total",{"$f":"'T2-B(PP5)'!$J$223","v":0},"#'T2-B(PP5)'!$J$223"]
["pp5_bl4_7_4_total_in",{"$f":"'T2-B(PP5)'!$F$223","v":0},"#'T2-B(PP5)'!$F$223"]
["pp5_bl4_7_4_total_out",{"$f":"'T2-B(PP5)'!$I$223","v":0},"#'T2-B(PP5)'!$I$223"]
["pp5_bl4_7_4_unit",{"$f":"'T2-B(PP5)'!$C$223","v":0},"#'T2-B(PP5)'!$C$223"]
["pp5_bl4_7_4_unit_in",{"$f":"'T2-B(PP5)'!$D$223","v":0},"#'T2-B(PP5)'!$D$223"]
["pp5_bl4_7_4_units_out",{"$f":"'T2-B(PP5)'!$G$223","v":0},"#'T2-B(PP5)'!$G$223"]
["pp5_bl4_7_5_name",{"$f":"'T2-B(PP5)'!$B$224","v":0},"#'T2-B(PP5)'!$B$224"]
["pp5_bl4_7_5_rate_in",{"$f":"'T2-B(PP5)'!$E$224","v":0},"#'T2-B(PP5)'!$E$224"]
["pp5_bl4_7_5_rate_out",{"$f":"'T2-B(PP5)'!$H$224","v":0},"#'T2-B(PP5)'!$H$224"]
["pp5_bl4_7_5_total",{"$f":"'T2-B(PP5)'!$J$224","v":0},"#'T2-B(PP5)'!$J$224"]
["pp5_bl4_7_5_total_in",{"$f":"'T2-B(PP5)'!$F$224","v":0},"#'T2-B(PP5)'!$F$224"]
["pp5_bl4_7_5_total_out",{"$f":"'T2-B(PP5)'!$I$224","v":0},"#'T2-B(PP5)'!$I$224"]
["pp5_bl4_7_5_unit",{"$f":"'T2-B(PP5)'!$C$224","v":0},"#'T2-B(PP5)'!$C$224"]
["pp5_bl4_7_5_unit_in",{"$f":"'T2-B(PP5)'!$D$224","v":0},"#'T2-B(PP5)'!$D$224"]
["pp5_bl4_7_5_units_out",{"$f":"'T2-B(PP5)'!$G$224","v":0},"#'T2-B(PP5)'!$G$224"]
["pp5_bl4_7_6_name",{"$f":"'T2-B(PP5)'!$B$225","v":0},"#'T2-B(PP5)'!$B$225"]
["pp5_bl4_7_6_rate_in",{"$f":"'T2-B(PP5)'!$E$225","v":0},"#'T2-B(PP5)'!$E$225"]
["pp5_bl4_7_6_rate_out",{"$f":"'T2-B(PP5)'!$H$225","v":0},"#'T2-B(PP5)'!$H$225"]
["pp5_bl4_7_6_total",{"$f":"'T2-B(PP5)'!$J$225","v":0},"#'T2-B(PP5)'!$J$225"]
["pp5_bl4_7_6_total_in",{"$f":"'T2-B(PP5)'!$F$225","v":0},"#'T2-B(PP5)'!$F$225"]
["pp5_bl4_7_6_total_out",{"$f":"'T2-B(PP5)'!$I$225","v":0},"#'T2-B(PP5)'!$I$225"]
["pp5_bl4_7_6_unit",{"$f":"'T2-B(PP5)'!$C$225","v":0},"#'T2-B(PP5)'!$C$225"]
["pp5_bl4_7_6_unit_in",{"$f":"'T2-B(PP5)'!$D$225","v":0},"#'T2-B(PP5)'!$D$225"]
["pp5_bl4_7_6_units_out",{"$f":"'T2-B(PP5)'!$G$225","v":0},"#'T2-B(PP5)'!$G$225"]
["pp5_bl4_7_7_name",{"$f":"'T2-B(PP5)'!$B$226","v":0},"#'T2-B(PP5)'!$B$226"]
["pp5_bl4_7_7_rate_in",{"$f":"'T2-B(PP5)'!$E$226","v":0},"#'T2-B(PP5)'!$E$226"]
["pp5_bl4_7_7_rate_out",{"$f":"'T2-B(PP5)'!$H$226","v":0},"#'T2-B(PP5)'!$H$226"]
["pp5_bl4_7_7_total",{"$f":"'T2-B(PP5)'!$J$226","v":0},"#'T2-B(PP5)'!$J$226"]
["pp5_bl4_7_7_total_in",{"$f":"'T2-B(PP5)'!$F$226","v":0},"#'T2-B(PP5)'!$F$226"]
["pp5_bl4_7_7_total_out",{"$f":"'T2-B(PP5)'!$I$226","v":0},"#'T2-B(PP5)'!$I$226"]
["pp5_bl4_7_7_unit",{"$f":"'T2-B(PP5)'!$C$226","v":0},"#'T2-B(PP5)'!$C$226"]
["pp5_bl4_7_7_unit_in",{"$f":"'T2-B(PP5)'!$D$226","v":0},"#'T2-B(PP5)'!$D$226"]
["pp5_bl4_7_7_units_out",{"$f":"'T2-B(PP5)'!$G$226","v":0},"#'T2-B(PP5)'!$G$226"]
["pp5_bl4_7_8_name",{"$f":"'T2-B(PP5)'!$B$227","v":0},"#'T2-B(PP5)'!$B$227"]
["pp5_bl4_7_8_rate_in",{"$f":"'T2-B(PP5)'!$E$227","v":0},"#'T2-B(PP5)'!$E$227"]
["pp5_bl4_7_8_rate_out",{"$f":"'T2-B(PP5)'!$H$227","v":0},"#'T2-B(PP5)'!$H$227"]
["pp5_bl4_7_8_total",{"$f":"'T2-B(PP5)'!$J$227","v":0},"#'T2-B(PP5)'!$J$227"]
["pp5_bl4_7_8_total_in",{"$f":"'T2-B(PP5)'!$F$227","v":0},"#'T2-B(PP5)'!$F$227"]
["pp5_bl4_7_8_total_out",{"$f":"'T2-B(PP5)'!$I$227","v":0},"#'T2-B(PP5)'!$I$227"]
["pp5_bl4_7_8_unit",{"$f":"'T2-B(PP5)'!$C$227","v":0},"#'T2-B(PP5)'!$C$227"]
["pp5_bl4_7_8_unit_in",{"$f":"'T2-B(PP5)'!$D$227","v":0},"#'T2-B(PP5)'!$D$227"]
["pp5_bl4_7_8_units_out",{"$f":"'T2-B(PP5)'!$G$227","v":0},"#'T2-B(PP5)'!$G$227"]
["pp5_bl4_7_9_name",{"$f":"'T2-B(PP5)'!$B$228","v":0},"#'T2-B(PP5)'!$B$228"]
["pp5_bl4_7_9_rate_in",{"$f":"'T2-B(PP5)'!$E$228","v":0},"#'T2-B(PP5)'!$E$228"]
["pp5_bl4_7_9_rate_out",{"$f":"'T2-B(PP5)'!$H$228","v":0},"#'T2-B(PP5)'!$H$228"]
["pp5_bl4_7_9_total",{"$f":"'T2-B(PP5)'!$J$228","v":0},"#'T2-B(PP5)'!$J$228"]
["pp5_bl4_7_9_total_in",{"$f":"'T2-B(PP5)'!$F$228","v":0},"#'T2-B(PP5)'!$F$228"]
["pp5_bl4_7_9_total_out",{"$f":"'T2-B(PP5)'!$I$228","v":0},"#'T2-B(PP5)'!$I$228"]
["pp5_bl4_7_9_unit",{"$f":"'T2-B(PP5)'!$C$228","v":0},"#'T2-B(PP5)'!$C$228"]
["pp5_bl4_7_9_unit_in",{"$f":"'T2-B(PP5)'!$D$228","v":0},"#'T2-B(PP5)'!$D$228"]
["pp5_bl4_7_9_units_out",{"$f":"'T2-B(PP5)'!$G$228","v":0},"#'T2-B(PP5)'!$G$228"]
["pp5_bl4_7_total",{"$f":"'T2-B(PP5)'!$J$219","v":0},"#'T2-B(PP5)'!$J$219"]
["pp5_bl4_7_total_in",{"$f":"'T2-B(PP5)'!$F$219","v":0},"#'T2-B(PP5)'!$F$219"]
["pp5_bl4_7_total_out",{"$f":"'T2-B(PP5)'!$I$219","v":0},"#'T2-B(PP5)'!$I$219"]
["pp5_bl4_8_1_name",{"$f":"'T2-B(PP5)'!$B$241","v":0},"#'T2-B(PP5)'!$B$241"]
["pp5_bl4_8_1_rate_in",{"$f":"'T2-B(PP5)'!$E$241","v":0},"#'T2-B(PP5)'!$E$241"]
["pp5_bl4_8_1_rate_out",{"$f":"'T2-B(PP5)'!$H$241","v":0},"#'T2-B(PP5)'!$H$241"]
["pp5_bl4_8_1_total",{"$f":"'T2-B(PP5)'!$J$241","v":0},"#'T2-B(PP5)'!$J$241"]
["pp5_bl4_8_1_total_in",{"$f":"'T2-B(PP5)'!$F$241","v":0},"#'T2-B(PP5)'!$F$241"]
["pp5_bl4_8_1_total_out",{"$f":"'T2-B(PP5)'!$I$241","v":0},"#'T2-B(PP5)'!$I$241"]
["pp5_bl4_8_1_unit",{"$f":"'T2-B(PP5)'!$C$241","v":0},"#'T2-B(PP5)'!$C$241"]
["pp5_bl4_8_1_unit_in",{"$f":"'T2-B(PP5)'!$D$241","v":0},"#'T2-B(PP5)'!$D$241"]
["pp5_bl4_8_1_units_out",{"$f":"'T2-B(PP5)'!$G$241","v":0},"#'T2-B(PP5)'!$G$241"]
["pp5_bl4_8_10_name",{"$f":"'T2-B(PP5)'!$B$250","v":0},"#'T2-B(PP5)'!$B$250"]
["pp5_bl4_8_10_rate_in",{"$f":"'T2-B(PP5)'!$E$250","v":0},"#'T2-B(PP5)'!$E$250"]
["pp5_bl4_8_10_rate_out",{"$f":"'T2-B(PP5)'!$H$250","v":0},"#'T2-B(PP5)'!$H$250"]
["pp5_bl4_8_10_total",{"$f":"'T2-B(PP5)'!$J$250","v":0},"#'T2-B(PP5)'!$J$250"]
["pp5_bl4_8_10_total_in",{"$f":"'T2-B(PP5)'!$F$250","v":0},"#'T2-B(PP5)'!$F$250"]
["pp5_bl4_8_10_total_out",{"$f":"'T2-B(PP5)'!$I$250","v":0},"#'T2-B(PP5)'!$I$250"]
["pp5_bl4_8_10_unit",{"$f":"'T2-B(PP5)'!$C$250","v":0},"#'T2-B(PP5)'!$C$250"]
["pp5_bl4_8_10_unit_in",{"$f":"'T2-B(PP5)'!$D$250","v":0},"#'T2-B(PP5)'!$D$250"]
["pp5_bl4_8_10_units_out",{"$f":"'T2-B(PP5)'!$G$250","v":0},"#'T2-B(PP5)'!$G$250"]
["pp5_bl4_8_11_name",{"$f":"'T2-B(PP5)'!$B$251","v":0},"#'T2-B(PP5)'!$B$251"]
["pp5_bl4_8_11_rate_in",{"$f":"'T2-B(PP5)'!$E$251","v":0},"#'T2-B(PP5)'!$E$251"]
["pp5_bl4_8_11_rate_out",{"$f":"'T2-B(PP5)'!$H$251","v":0},"#'T2-B(PP5)'!$H$251"]
["pp5_bl4_8_11_total",{"$f":"'T2-B(PP5)'!$J$251","v":0},"#'T2-B(PP5)'!$J$251"]
["pp5_bl4_8_11_total_in",{"$f":"'T2-B(PP5)'!$F$251","v":0},"#'T2-B(PP5)'!$F$251"]
["pp5_bl4_8_11_total_out",{"$f":"'T2-B(PP5)'!$I$251","v":0},"#'T2-B(PP5)'!$I$251"]
["pp5_bl4_8_11_unit",{"$f":"'T2-B(PP5)'!$C$251","v":0},"#'T2-B(PP5)'!$C$251"]
["pp5_bl4_8_11_unit_in",{"$f":"'T2-B(PP5)'!$D$251","v":0},"#'T2-B(PP5)'!$D$251"]
["pp5_bl4_8_11_units_out",{"$f":"'T2-B(PP5)'!$G$251","v":0},"#'T2-B(PP5)'!$G$251"]
["pp5_bl4_8_12_name",{"$f":"'T2-B(PP5)'!$B$252","v":0},"#'T2-B(PP5)'!$B$252"]
["pp5_bl4_8_12_rate_in",{"$f":"'T2-B(PP5)'!$E$252","v":0},"#'T2-B(PP5)'!$E$252"]
["pp5_bl4_8_12_rate_out",{"$f":"'T2-B(PP5)'!$H$252","v":0},"#'T2-B(PP5)'!$H$252"]
["pp5_bl4_8_12_total",{"$f":"'T2-B(PP5)'!$J$252","v":0},"#'T2-B(PP5)'!$J$252"]
["pp5_bl4_8_12_total_in",{"$f":"'T2-B(PP5)'!$F$252","v":0},"#'T2-B(PP5)'!$F$252"]
["pp5_bl4_8_12_total_out",{"$f":"'T2-B(PP5)'!$I$252","v":0},"#'T2-B(PP5)'!$I$252"]
["pp5_bl4_8_12_unit",{"$f":"'T2-B(PP5)'!$C$252","v":0},"#'T2-B(PP5)'!$C$252"]
["pp5_bl4_8_12_unit_in",{"$f":"'T2-B(PP5)'!$D$252","v":0},"#'T2-B(PP5)'!$D$252"]
["pp5_bl4_8_12_units_out",{"$f":"'T2-B(PP5)'!$G$252","v":0},"#'T2-B(PP5)'!$G$252"]
["pp5_bl4_8_13_name",{"$f":"'T2-B(PP5)'!$B$253","v":0},"#'T2-B(PP5)'!$B$253"]
["pp5_bl4_8_13_rate_in",{"$f":"'T2-B(PP5)'!$E$253","v":0},"#'T2-B(PP5)'!$E$253"]
["pp5_bl4_8_13_rate_out",{"$f":"'T2-B(PP5)'!$H$253","v":0},"#'T2-B(PP5)'!$H$253"]
["pp5_bl4_8_13_total",{"$f":"'T2-B(PP5)'!$J$253","v":0},"#'T2-B(PP5)'!$J$253"]
["pp5_bl4_8_13_total_in",{"$f":"'T2-B(PP5)'!$F$253","v":0},"#'T2-B(PP5)'!$F$253"]
["pp5_bl4_8_13_total_out",{"$f":"'T2-B(PP5)'!$I$253","v":0},"#'T2-B(PP5)'!$I$253"]
["pp5_bl4_8_13_unit",{"$f":"'T2-B(PP5)'!$C$253","v":0},"#'T2-B(PP5)'!$C$253"]
["pp5_bl4_8_13_unit_in",{"$f":"'T2-B(PP5)'!$D$253","v":0},"#'T2-B(PP5)'!$D$253"]
["pp5_bl4_8_13_units_out",{"$f":"'T2-B(PP5)'!$G$253","v":0},"#'T2-B(PP5)'!$G$253"]
["pp5_bl4_8_14_name",{"$f":"'T2-B(PP5)'!$B$254","v":0},"#'T2-B(PP5)'!$B$254"]
["pp5_bl4_8_14_rate_in",{"$f":"'T2-B(PP5)'!$E$254","v":0},"#'T2-B(PP5)'!$E$254"]
["pp5_bl4_8_14_rate_out",{"$f":"'T2-B(PP5)'!$H$254","v":0},"#'T2-B(PP5)'!$H$254"]
["pp5_bl4_8_14_total",{"$f":"'T2-B(PP5)'!$J$254","v":0},"#'T2-B(PP5)'!$J$254"]
["pp5_bl4_8_14_total_in",{"$f":"'T2-B(PP5)'!$F$254","v":0},"#'T2-B(PP5)'!$F$254"]
["pp5_bl4_8_14_total_out",{"$f":"'T2-B(PP5)'!$I$254","v":0},"#'T2-B(PP5)'!$I$254"]
["pp5_bl4_8_14_unit",{"$f":"'T2-B(PP5)'!$C$254","v":0},"#'T2-B(PP5)'!$C$254"]
["pp5_bl4_8_14_unit_in",{"$f":"'T2-B(PP5)'!$D$254","v":0},"#'T2-B(PP5)'!$D$254"]
["pp5_bl4_8_14_units_out",{"$f":"'T2-B(PP5)'!$G$254","v":0},"#'T2-B(PP5)'!$G$254"]
["pp5_bl4_8_15_name",{"$f":"'T2-B(PP5)'!$B$255","v":0},"#'T2-B(PP5)'!$B$255"]
["pp5_bl4_8_15_rate_in",{"$f":"'T2-B(PP5)'!$E$255","v":0},"#'T2-B(PP5)'!$E$255"]
["pp5_bl4_8_15_rate_out",{"$f":"'T2-B(PP5)'!$H$255","v":0},"#'T2-B(PP5)'!$H$255"]
["pp5_bl4_8_15_total",{"$f":"'T2-B(PP5)'!$J$255","v":0},"#'T2-B(PP5)'!$J$255"]
["pp5_bl4_8_15_total_in",{"$f":"'T2-B(PP5)'!$F$255","v":0},"#'T2-B(PP5)'!$F$255"]
["pp5_bl4_8_15_total_out",{"$f":"'T2-B(PP5)'!$I$255","v":0},"#'T2-B(PP5)'!$I$255"]
["pp5_bl4_8_15_unit",{"$f":"'T2-B(PP5)'!$C$255","v":0},"#'T2-B(PP5)'!$C$255"]
["pp5_bl4_8_15_unit_in",{"$f":"'T2-B(PP5)'!$D$255","v":0},"#'T2-B(PP5)'!$D$255"]
["pp5_bl4_8_15_units_out",{"$f":"'T2-B(PP5)'!$G$255","v":0},"#'T2-B(PP5)'!$G$255"]
["pp5_bl4_8_16_name",{"$f":"'T2-B(PP5)'!$B$256","v":0},"#'T2-B(PP5)'!$B$256"]
["pp5_bl4_8_16_rate_in",{"$f":"'T2-B(PP5)'!$E$256","v":0},"#'T2-B(PP5)'!$E$256"]
["pp5_bl4_8_16_rate_out",{"$f":"'T2-B(PP5)'!$H$256","v":0},"#'T2-B(PP5)'!$H$256"]
["pp5_bl4_8_16_total",{"$f":"'T2-B(PP5)'!$J$256","v":0},"#'T2-B(PP5)'!$J$256"]
["pp5_bl4_8_16_total_in",{"$f":"'T2-B(PP5)'!$F$256","v":0},"#'T2-B(PP5)'!$F$256"]
["pp5_bl4_8_16_total_out",{"$f":"'T2-B(PP5)'!$I$256","v":0},"#'T2-B(PP5)'!$I$256"]
["pp5_bl4_8_16_unit",{"$f":"'T2-B(PP5)'!$C$256","v":0},"#'T2-B(PP5)'!$C$256"]
["pp5_bl4_8_16_unit_in",{"$f":"'T2-B(PP5)'!$D$256","v":0},"#'T2-B(PP5)'!$D$256"]
["pp5_bl4_8_16_units_out",{"$f":"'T2-B(PP5)'!$G$256","v":0},"#'T2-B(PP5)'!$G$256"]
["pp5_bl4_8_17_name",{"$f":"'T2-B(PP5)'!$B$257","v":0},"#'T2-B(PP5)'!$B$257"]
["pp5_bl4_8_17_rate_in",{"$f":"'T2-B(PP5)'!$E$257","v":0},"#'T2-B(PP5)'!$E$257"]
["pp5_bl4_8_17_rate_out",{"$f":"'T2-B(PP5)'!$H$257","v":0},"#'T2-B(PP5)'!$H$257"]
["pp5_bl4_8_17_total",{"$f":"'T2-B(PP5)'!$J$257","v":0},"#'T2-B(PP5)'!$J$257"]
["pp5_bl4_8_17_total_in",{"$f":"'T2-B(PP5)'!$F$257","v":0},"#'T2-B(PP5)'!$F$257"]
["pp5_bl4_8_17_total_out",{"$f":"'T2-B(PP5)'!$I$257","v":0},"#'T2-B(PP5)'!$I$257"]
["pp5_bl4_8_17_unit",{"$f":"'T2-B(PP5)'!$C$257","v":0},"#'T2-B(PP5)'!$C$257"]
["pp5_bl4_8_17_unit_in",{"$f":"'T2-B(PP5)'!$D$257","v":0},"#'T2-B(PP5)'!$D$257"]
["pp5_bl4_8_17_units_out",{"$f":"'T2-B(PP5)'!$G$257","v":0},"#'T2-B(PP5)'!$G$257"]
["pp5_bl4_8_18_name",{"$f":"'T2-B(PP5)'!$B$258","v":0},"#'T2-B(PP5)'!$B$258"]
["pp5_bl4_8_18_rate_in",{"$f":"'T2-B(PP5)'!$E$258","v":0},"#'T2-B(PP5)'!$E$258"]
["pp5_bl4_8_18_rate_out",{"$f":"'T2-B(PP5)'!$H$258","v":0},"#'T2-B(PP5)'!$H$258"]
["pp5_bl4_8_18_total",{"$f":"'T2-B(PP5)'!$J$258","v":0},"#'T2-B(PP5)'!$J$258"]
["pp5_bl4_8_18_total_in",{"$f":"'T2-B(PP5)'!$F$258","v":0},"#'T2-B(PP5)'!$F$258"]
["pp5_bl4_8_18_total_out",{"$f":"'T2-B(PP5)'!$I$258","v":0},"#'T2-B(PP5)'!$I$258"]
["pp5_bl4_8_18_unit",{"$f":"'T2-B(PP5)'!$C$258","v":0},"#'T2-B(PP5)'!$C$258"]
["pp5_bl4_8_18_unit_in",{"$f":"'T2-B(PP5)'!$D$258","v":0},"#'T2-B(PP5)'!$D$258"]
["pp5_bl4_8_18_units_out",{"$f":"'T2-B(PP5)'!$G$258","v":0},"#'T2-B(PP5)'!$G$258"]
["pp5_bl4_8_19_name",{"$f":"'T2-B(PP5)'!$B$259","v":0},"#'T2-B(PP5)'!$B$259"]
["pp5_bl4_8_19_rate_in",{"$f":"'T2-B(PP5)'!$E$259","v":0},"#'T2-B(PP5)'!$E$259"]
["pp5_bl4_8_19_rate_out",{"$f":"'T2-B(PP5)'!$H$259","v":0},"#'T2-B(PP5)'!$H$259"]
["pp5_bl4_8_19_total",{"$f":"'T2-B(PP5)'!$J$259","v":0},"#'T2-B(PP5)'!$J$259"]
["pp5_bl4_8_19_total_in",{"$f":"'T2-B(PP5)'!$F$259","v":0},"#'T2-B(PP5)'!$F$259"]
["pp5_bl4_8_19_total_out",{"$f":"'T2-B(PP5)'!$I$259","v":0},"#'T2-B(PP5)'!$I$259"]
["pp5_bl4_8_19_unit",{"$f":"'T2-B(PP5)'!$C$259","v":0},"#'T2-B(PP5)'!$C$259"]
["pp5_bl4_8_19_unit_in",{"$f":"'T2-B(PP5)'!$D$259","v":0},"#'T2-B(PP5)'!$D$259"]
["pp5_bl4_8_19_units_out",{"$f":"'T2-B(PP5)'!$G$259","v":0},"#'T2-B(PP5)'!$G$259"]
["pp5_bl4_8_2_name",{"$f":"'T2-B(PP5)'!$B$242","v":0},"#'T2-B(PP5)'!$B$242"]
["pp5_bl4_8_2_rate_in",{"$f":"'T2-B(PP5)'!$E$242","v":0},"#'T2-B(PP5)'!$E$242"]
["pp5_bl4_8_2_rate_out",{"$f":"'T2-B(PP5)'!$H$242","v":0},"#'T2-B(PP5)'!$H$242"]
["pp5_bl4_8_2_total",{"$f":"'T2-B(PP5)'!$J$242","v":0},"#'T2-B(PP5)'!$J$242"]
["pp5_bl4_8_2_total_in",{"$f":"'T2-B(PP5)'!$F$242","v":0},"#'T2-B(PP5)'!$F$242"]
["pp5_bl4_8_2_total_out",{"$f":"'T2-B(PP5)'!$I$242","v":0},"#'T2-B(PP5)'!$I$242"]
["pp5_bl4_8_2_unit",{"$f":"'T2-B(PP5)'!$C$242","v":0},"#'T2-B(PP5)'!$C$242"]
["pp5_bl4_8_2_unit_in",{"$f":"'T2-B(PP5)'!$D$242","v":0},"#'T2-B(PP5)'!$D$242"]
["pp5_bl4_8_2_units_out",{"$f":"'T2-B(PP5)'!$G$242","v":0},"#'T2-B(PP5)'!$G$242"]
["pp5_bl4_8_20_name",{"$f":"'T2-B(PP5)'!$B$260","v":0},"#'T2-B(PP5)'!$B$260"]
["pp5_bl4_8_20_rate_in",{"$f":"'T2-B(PP5)'!$E$260","v":0},"#'T2-B(PP5)'!$E$260"]
["pp5_bl4_8_20_rate_out",{"$f":"'T2-B(PP5)'!$H$260","v":0},"#'T2-B(PP5)'!$H$260"]
["pp5_bl4_8_20_total",{"$f":"'T2-B(PP5)'!$J$260","v":0},"#'T2-B(PP5)'!$J$260"]
["pp5_bl4_8_20_total_in",{"$f":"'T2-B(PP5)'!$F$260","v":0},"#'T2-B(PP5)'!$F$260"]
["pp5_bl4_8_20_total_out",{"$f":"'T2-B(PP5)'!$I$260","v":0},"#'T2-B(PP5)'!$I$260"]
["pp5_bl4_8_20_unit",{"$f":"'T2-B(PP5)'!$C$260","v":0},"#'T2-B(PP5)'!$C$260"]
["pp5_bl4_8_20_unit_in",{"$f":"'T2-B(PP5)'!$D$260","v":0},"#'T2-B(PP5)'!$D$260"]
["pp5_bl4_8_20_units_out",{"$f":"'T2-B(PP5)'!$G$260","v":0},"#'T2-B(PP5)'!$G$260"]
["pp5_bl4_8_3_name",{"$f":"'T2-B(PP5)'!$B$243","v":0},"#'T2-B(PP5)'!$B$243"]
["pp5_bl4_8_3_rate_in",{"$f":"'T2-B(PP5)'!$E$243","v":0},"#'T2-B(PP5)'!$E$243"]
["pp5_bl4_8_3_rate_out",{"$f":"'T2-B(PP5)'!$H$243","v":0},"#'T2-B(PP5)'!$H$243"]
["pp5_bl4_8_3_total",{"$f":"'T2-B(PP5)'!$J$243","v":0},"#'T2-B(PP5)'!$J$243"]
["pp5_bl4_8_3_total_in",{"$f":"'T2-B(PP5)'!$F$243","v":0},"#'T2-B(PP5)'!$F$243"]
["pp5_bl4_8_3_total_out",{"$f":"'T2-B(PP5)'!$I$243","v":0},"#'T2-B(PP5)'!$I$243"]
["pp5_bl4_8_3_unit",{"$f":"'T2-B(PP5)'!$C$243","v":0},"#'T2-B(PP5)'!$C$243"]
["pp5_bl4_8_3_unit_in",{"$f":"'T2-B(PP5)'!$D$243","v":0},"#'T2-B(PP5)'!$D$243"]
["pp5_bl4_8_3_units_out",{"$f":"'T2-B(PP5)'!$G$243","v":0},"#'T2-B(PP5)'!$G$243"]
["pp5_bl4_8_4_name",{"$f":"'T2-B(PP5)'!$B$244","v":0},"#'T2-B(PP5)'!$B$244"]
["pp5_bl4_8_4_rate_in",{"$f":"'T2-B(PP5)'!$E$244","v":0},"#'T2-B(PP5)'!$E$244"]
["pp5_bl4_8_4_rate_out",{"$f":"'T2-B(PP5)'!$H$244","v":0},"#'T2-B(PP5)'!$H$244"]
["pp5_bl4_8_4_total",{"$f":"'T2-B(PP5)'!$J$244","v":0},"#'T2-B(PP5)'!$J$244"]
["pp5_bl4_8_4_total_in",{"$f":"'T2-B(PP5)'!$F$244","v":0},"#'T2-B(PP5)'!$F$244"]
["pp5_bl4_8_4_total_out",{"$f":"'T2-B(PP5)'!$I$244","v":0},"#'T2-B(PP5)'!$I$244"]
["pp5_bl4_8_4_unit",{"$f":"'T2-B(PP5)'!$C$244","v":0},"#'T2-B(PP5)'!$C$244"]
["pp5_bl4_8_4_unit_in",{"$f":"'T2-B(PP5)'!$D$244","v":0},"#'T2-B(PP5)'!$D$244"]
["pp5_bl4_8_4_units_out",{"$f":"'T2-B(PP5)'!$G$244","v":0},"#'T2-B(PP5)'!$G$244"]
["pp5_bl4_8_5_name",{"$f":"'T2-B(PP5)'!$B$245","v":0},"#'T2-B(PP5)'!$B$245"]
["pp5_bl4_8_5_rate_in",{"$f":"'T2-B(PP5)'!$E$245","v":0},"#'T2-B(PP5)'!$E$245"]
["pp5_bl4_8_5_rate_out",{"$f":"'T2-B(PP5)'!$H$245","v":0},"#'T2-B(PP5)'!$H$245"]
["pp5_bl4_8_5_total",{"$f":"'T2-B(PP5)'!$J$245","v":0},"#'T2-B(PP5)'!$J$245"]
["pp5_bl4_8_5_total_in",{"$f":"'T2-B(PP5)'!$F$245","v":0},"#'T2-B(PP5)'!$F$245"]
["pp5_bl4_8_5_total_out",{"$f":"'T2-B(PP5)'!$I$245","v":0},"#'T2-B(PP5)'!$I$245"]
["pp5_bl4_8_5_unit",{"$f":"'T2-B(PP5)'!$C$245","v":0},"#'T2-B(PP5)'!$C$245"]
["pp5_bl4_8_5_unit_in",{"$f":"'T2-B(PP5)'!$D$245","v":0},"#'T2-B(PP5)'!$D$245"]
["pp5_bl4_8_5_units_out",{"$f":"'T2-B(PP5)'!$G$245","v":0},"#'T2-B(PP5)'!$G$245"]
["pp5_bl4_8_6_name",{"$f":"'T2-B(PP5)'!$B$246","v":0},"#'T2-B(PP5)'!$B$246"]
["pp5_bl4_8_6_rate_in",{"$f":"'T2-B(PP5)'!$E$246","v":0},"#'T2-B(PP5)'!$E$246"]
["pp5_bl4_8_6_rate_out",{"$f":"'T2-B(PP5)'!$H$246","v":0},"#'T2-B(PP5)'!$H$246"]
["pp5_bl4_8_6_total",{"$f":"'T2-B(PP5)'!$J$246","v":0},"#'T2-B(PP5)'!$J$246"]
["pp5_bl4_8_6_total_in",{"$f":"'T2-B(PP5)'!$F$246","v":0},"#'T2-B(PP5)'!$F$246"]
["pp5_bl4_8_6_total_out",{"$f":"'T2-B(PP5)'!$I$246","v":0},"#'T2-B(PP5)'!$I$246"]
["pp5_bl4_8_6_unit",{"$f":"'T2-B(PP5)'!$C$246","v":0},"#'T2-B(PP5)'!$C$246"]
["pp5_bl4_8_6_unit_in",{"$f":"'T2-B(PP5)'!$D$246","v":0},"#'T2-B(PP5)'!$D$246"]
["pp5_bl4_8_6_units_out",{"$f":"'T2-B(PP5)'!$G$246","v":0},"#'T2-B(PP5)'!$G$246"]
["pp5_bl4_8_7_name",{"$f":"'T2-B(PP5)'!$B$247","v":0},"#'T2-B(PP5)'!$B$247"]
["pp5_bl4_8_7_rate_in",{"$f":"'T2-B(PP5)'!$E$247","v":0},"#'T2-B(PP5)'!$E$247"]
["pp5_bl4_8_7_rate_out",{"$f":"'T2-B(PP5)'!$H$247","v":0},"#'T2-B(PP5)'!$H$247"]
["pp5_bl4_8_7_total",{"$f":"'T2-B(PP5)'!$J$247","v":0},"#'T2-B(PP5)'!$J$247"]
["pp5_bl4_8_7_total_in",{"$f":"'T2-B(PP5)'!$F$247","v":0},"#'T2-B(PP5)'!$F$247"]
["pp5_bl4_8_7_total_out",{"$f":"'T2-B(PP5)'!$I$247","v":0},"#'T2-B(PP5)'!$I$247"]
["pp5_bl4_8_7_unit",{"$f":"'T2-B(PP5)'!$C$247","v":0},"#'T2-B(PP5)'!$C$247"]
["pp5_bl4_8_7_unit_in",{"$f":"'T2-B(PP5)'!$D$247","v":0},"#'T2-B(PP5)'!$D$247"]
["pp5_bl4_8_7_units_out",{"$f":"'T2-B(PP5)'!$G$247","v":0},"#'T2-B(PP5)'!$G$247"]
["pp5_bl4_8_8_name",{"$f":"'T2-B(PP5)'!$B$248","v":0},"#'T2-B(PP5)'!$B$248"]
["pp5_bl4_8_8_rate_in",{"$f":"'T2-B(PP5)'!$E$248","v":0},"#'T2-B(PP5)'!$E$248"]
["pp5_bl4_8_8_rate_out",{"$f":"'T2-B(PP5)'!$H$248","v":0},"#'T2-B(PP5)'!$H$248"]
["pp5_bl4_8_8_total",{"$f":"'T2-B(PP5)'!$J$248","v":0},"#'T2-B(PP5)'!$J$248"]
["pp5_bl4_8_8_total_in",{"$f":"'T2-B(PP5)'!$F$248","v":0},"#'T2-B(PP5)'!$F$248"]
["pp5_bl4_8_8_total_out",{"$f":"'T2-B(PP5)'!$I$248","v":0},"#'T2-B(PP5)'!$I$248"]
["pp5_bl4_8_8_unit",{"$f":"'T2-B(PP5)'!$C$248","v":0},"#'T2-B(PP5)'!$C$248"]
["pp5_bl4_8_8_unit_in",{"$f":"'T2-B(PP5)'!$D$248","v":0},"#'T2-B(PP5)'!$D$248"]
["pp5_bl4_8_8_units_out",{"$f":"'T2-B(PP5)'!$G$248","v":0},"#'T2-B(PP5)'!$G$248"]
["pp5_bl4_8_9_name",{"$f":"'T2-B(PP5)'!$B$249","v":0},"#'T2-B(PP5)'!$B$249"]
["pp5_bl4_8_9_rate_in",{"$f":"'T2-B(PP5)'!$E$249","v":0},"#'T2-B(PP5)'!$E$249"]
["pp5_bl4_8_9_rate_out",{"$f":"'T2-B(PP5)'!$H$249","v":0},"#'T2-B(PP5)'!$H$249"]
["pp5_bl4_8_9_total",{"$f":"'T2-B(PP5)'!$J$249","v":0},"#'T2-B(PP5)'!$J$249"]
["pp5_bl4_8_9_total_in",{"$f":"'T2-B(PP5)'!$F$249","v":0},"#'T2-B(PP5)'!$F$249"]
["pp5_bl4_8_9_total_out",{"$f":"'T2-B(PP5)'!$I$249","v":0},"#'T2-B(PP5)'!$I$249"]
["pp5_bl4_8_9_unit",{"$f":"'T2-B(PP5)'!$C$249","v":0},"#'T2-B(PP5)'!$C$249"]
["pp5_bl4_8_9_unit_in",{"$f":"'T2-B(PP5)'!$D$249","v":0},"#'T2-B(PP5)'!$D$249"]
["pp5_bl4_8_9_units_out",{"$f":"'T2-B(PP5)'!$G$249","v":0},"#'T2-B(PP5)'!$G$249"]
["pp5_bl4_8_total",{"$f":"'T2-B(PP5)'!$J$240","v":0},"#'T2-B(PP5)'!$J$240"]
["pp5_bl4_8_total_in",{"$f":"'T2-B(PP5)'!$F$240","v":0},"#'T2-B(PP5)'!$F$240"]
["pp5_bl4_8_total_out",{"$f":"'T2-B(PP5)'!$I$240","v":0},"#'T2-B(PP5)'!$I$240"]
["pp5_bl4_9_1_name",{"$f":"'T2-B(PP5)'!$B$262","v":0},"#'T2-B(PP5)'!$B$262"]
["pp5_bl4_9_1_rate_in",{"$f":"'T2-B(PP5)'!$E$262","v":0},"#'T2-B(PP5)'!$E$262"]
["pp5_bl4_9_1_rate_out",{"$f":"'T2-B(PP5)'!$H$262","v":0},"#'T2-B(PP5)'!$H$262"]
["pp5_bl4_9_1_total",{"$f":"'T2-B(PP5)'!$J$262","v":0},"#'T2-B(PP5)'!$J$262"]
["pp5_bl4_9_1_total_in",{"$f":"'T2-B(PP5)'!$F$262","v":0},"#'T2-B(PP5)'!$F$262"]
["pp5_bl4_9_1_total_out",{"$f":"'T2-B(PP5)'!$I$262","v":0},"#'T2-B(PP5)'!$I$262"]
["pp5_bl4_9_1_unit",{"$f":"'T2-B(PP5)'!$C$262","v":0},"#'T2-B(PP5)'!$C$262"]
["pp5_bl4_9_1_unit_in",{"$f":"'T2-B(PP5)'!$D$262","v":0},"#'T2-B(PP5)'!$D$262"]
["pp5_bl4_9_1_units_out",{"$f":"'T2-B(PP5)'!$G$262","v":0},"#'T2-B(PP5)'!$G$262"]
["pp5_bl4_9_10_name",{"$f":"'T2-B(PP5)'!$B$271","v":0},"#'T2-B(PP5)'!$B$271"]
["pp5_bl4_9_10_rate_in",{"$f":"'T2-B(PP5)'!$E$271","v":0},"#'T2-B(PP5)'!$E$271"]
["pp5_bl4_9_10_rate_out",{"$f":"'T2-B(PP5)'!$H$271","v":0},"#'T2-B(PP5)'!$H$271"]
["pp5_bl4_9_10_total",{"$f":"'T2-B(PP5)'!$J$271","v":0},"#'T2-B(PP5)'!$J$271"]
["pp5_bl4_9_10_total_in",{"$f":"'T2-B(PP5)'!$F$271","v":0},"#'T2-B(PP5)'!$F$271"]
["pp5_bl4_9_10_total_out",{"$f":"'T2-B(PP5)'!$I$271","v":0},"#'T2-B(PP5)'!$I$271"]
["pp5_bl4_9_10_unit",{"$f":"'T2-B(PP5)'!$C$271","v":0},"#'T2-B(PP5)'!$C$271"]
["pp5_bl4_9_10_unit_in",{"$f":"'T2-B(PP5)'!$D$271","v":0},"#'T2-B(PP5)'!$D$271"]
["pp5_bl4_9_10_units_out",{"$f":"'T2-B(PP5)'!$G$271","v":0},"#'T2-B(PP5)'!$G$271"]
["pp5_bl4_9_11_name",{"$f":"'T2-B(PP5)'!$B$272","v":0},"#'T2-B(PP5)'!$B$272"]
["pp5_bl4_9_11_rate_in",{"$f":"'T2-B(PP5)'!$E$272","v":0},"#'T2-B(PP5)'!$E$272"]
["pp5_bl4_9_11_rate_out",{"$f":"'T2-B(PP5)'!$H$272","v":0},"#'T2-B(PP5)'!$H$272"]
["pp5_bl4_9_11_total",{"$f":"'T2-B(PP5)'!$J$272","v":0},"#'T2-B(PP5)'!$J$272"]
["pp5_bl4_9_11_total_in",{"$f":"'T2-B(PP5)'!$F$272","v":0},"#'T2-B(PP5)'!$F$272"]
["pp5_bl4_9_11_total_out",{"$f":"'T2-B(PP5)'!$I$272","v":0},"#'T2-B(PP5)'!$I$272"]
["pp5_bl4_9_11_unit",{"$f":"'T2-B(PP5)'!$C$272","v":0},"#'T2-B(PP5)'!$C$272"]
["pp5_bl4_9_11_unit_in",{"$f":"'T2-B(PP5)'!$D$272","v":0},"#'T2-B(PP5)'!$D$272"]
["pp5_bl4_9_11_units_out",{"$f":"'T2-B(PP5)'!$G$272","v":0},"#'T2-B(PP5)'!$G$272"]
["pp5_bl4_9_12_name",{"$f":"'T2-B(PP5)'!$B$273","v":0},"#'T2-B(PP5)'!$B$273"]
["pp5_bl4_9_12_rate_in",{"$f":"'T2-B(PP5)'!$E$273","v":0},"#'T2-B(PP5)'!$E$273"]
["pp5_bl4_9_12_rate_out",{"$f":"'T2-B(PP5)'!$H$273","v":0},"#'T2-B(PP5)'!$H$273"]
["pp5_bl4_9_12_total",{"$f":"'T2-B(PP5)'!$J$273","v":0},"#'T2-B(PP5)'!$J$273"]
["pp5_bl4_9_12_total_in",{"$f":"'T2-B(PP5)'!$F$273","v":0},"#'T2-B(PP5)'!$F$273"]
["pp5_bl4_9_12_total_out",{"$f":"'T2-B(PP5)'!$I$273","v":0},"#'T2-B(PP5)'!$I$273"]
["pp5_bl4_9_12_unit",{"$f":"'T2-B(PP5)'!$C$273","v":0},"#'T2-B(PP5)'!$C$273"]
["pp5_bl4_9_12_unit_in",{"$f":"'T2-B(PP5)'!$D$273","v":0},"#'T2-B(PP5)'!$D$273"]
["pp5_bl4_9_12_units_out",{"$f":"'T2-B(PP5)'!$G$273","v":0},"#'T2-B(PP5)'!$G$273"]
["pp5_bl4_9_13_name",{"$f":"'T2-B(PP5)'!$B$274","v":0},"#'T2-B(PP5)'!$B$274"]
["pp5_bl4_9_13_rate_in",{"$f":"'T2-B(PP5)'!$E$274","v":0},"#'T2-B(PP5)'!$E$274"]
["pp5_bl4_9_13_rate_out",{"$f":"'T2-B(PP5)'!$H$274","v":0},"#'T2-B(PP5)'!$H$274"]
["pp5_bl4_9_13_total",{"$f":"'T2-B(PP5)'!$J$274","v":0},"#'T2-B(PP5)'!$J$274"]
["pp5_bl4_9_13_total_in",{"$f":"'T2-B(PP5)'!$F$274","v":0},"#'T2-B(PP5)'!$F$274"]
["pp5_bl4_9_13_total_out",{"$f":"'T2-B(PP5)'!$I$274","v":0},"#'T2-B(PP5)'!$I$274"]
["pp5_bl4_9_13_unit",{"$f":"'T2-B(PP5)'!$C$274","v":0},"#'T2-B(PP5)'!$C$274"]
["pp5_bl4_9_13_unit_in",{"$f":"'T2-B(PP5)'!$D$274","v":0},"#'T2-B(PP5)'!$D$274"]
["pp5_bl4_9_13_units_out",{"$f":"'T2-B(PP5)'!$G$274","v":0},"#'T2-B(PP5)'!$G$274"]
["pp5_bl4_9_14_name",{"$f":"'T2-B(PP5)'!$B$275","v":0},"#'T2-B(PP5)'!$B$275"]
["pp5_bl4_9_14_rate_in",{"$f":"'T2-B(PP5)'!$E$275","v":0},"#'T2-B(PP5)'!$E$275"]
["pp5_bl4_9_14_rate_out",{"$f":"'T2-B(PP5)'!$H$275","v":0},"#'T2-B(PP5)'!$H$275"]
["pp5_bl4_9_14_total",{"$f":"'T2-B(PP5)'!$J$275","v":0},"#'T2-B(PP5)'!$J$275"]
["pp5_bl4_9_14_total_in",{"$f":"'T2-B(PP5)'!$F$275","v":0},"#'T2-B(PP5)'!$F$275"]
["pp5_bl4_9_14_total_out",{"$f":"'T2-B(PP5)'!$I$275","v":0},"#'T2-B(PP5)'!$I$275"]
["pp5_bl4_9_14_unit",{"$f":"'T2-B(PP5)'!$C$275","v":0},"#'T2-B(PP5)'!$C$275"]
["pp5_bl4_9_14_unit_in",{"$f":"'T2-B(PP5)'!$D$275","v":0},"#'T2-B(PP5)'!$D$275"]
["pp5_bl4_9_14_units_out",{"$f":"'T2-B(PP5)'!$G$275","v":0},"#'T2-B(PP5)'!$G$275"]
["pp5_bl4_9_15_name",{"$f":"'T2-B(PP5)'!$B$276","v":0},"#'T2-B(PP5)'!$B$276"]
["pp5_bl4_9_15_rate_in",{"$f":"'T2-B(PP5)'!$E$276","v":0},"#'T2-B(PP5)'!$E$276"]
["pp5_bl4_9_15_rate_out",{"$f":"'T2-B(PP5)'!$H$276","v":0},"#'T2-B(PP5)'!$H$276"]
["pp5_bl4_9_15_total",{"$f":"'T2-B(PP5)'!$J$276","v":0},"#'T2-B(PP5)'!$J$276"]
["pp5_bl4_9_15_total_in",{"$f":"'T2-B(PP5)'!$F$276","v":0},"#'T2-B(PP5)'!$F$276"]
["pp5_bl4_9_15_total_out",{"$f":"'T2-B(PP5)'!$I$276","v":0},"#'T2-B(PP5)'!$I$276"]
["pp5_bl4_9_15_unit",{"$f":"'T2-B(PP5)'!$C$276","v":0},"#'T2-B(PP5)'!$C$276"]
["pp5_bl4_9_15_unit_in",{"$f":"'T2-B(PP5)'!$D$276","v":0},"#'T2-B(PP5)'!$D$276"]
["pp5_bl4_9_15_units_out",{"$f":"'T2-B(PP5)'!$G$276","v":0},"#'T2-B(PP5)'!$G$276"]
["pp5_bl4_9_16_name",{"$f":"'T2-B(PP5)'!$B$277","v":0},"#'T2-B(PP5)'!$B$277"]
["pp5_bl4_9_16_rate_in",{"$f":"'T2-B(PP5)'!$E$277","v":0},"#'T2-B(PP5)'!$E$277"]
["pp5_bl4_9_16_rate_out",{"$f":"'T2-B(PP5)'!$H$277","v":0},"#'T2-B(PP5)'!$H$277"]
["pp5_bl4_9_16_total",{"$f":"'T2-B(PP5)'!$J$277","v":0},"#'T2-B(PP5)'!$J$277"]
["pp5_bl4_9_16_total_in",{"$f":"'T2-B(PP5)'!$F$277","v":0},"#'T2-B(PP5)'!$F$277"]
["pp5_bl4_9_16_total_out",{"$f":"'T2-B(PP5)'!$I$277","v":0},"#'T2-B(PP5)'!$I$277"]
["pp5_bl4_9_16_unit",{"$f":"'T2-B(PP5)'!$C$277","v":0},"#'T2-B(PP5)'!$C$277"]
["pp5_bl4_9_16_unit_in",{"$f":"'T2-B(PP5)'!$D$277","v":0},"#'T2-B(PP5)'!$D$277"]
["pp5_bl4_9_16_units_out",{"$f":"'T2-B(PP5)'!$G$277","v":0},"#'T2-B(PP5)'!$G$277"]
["pp5_bl4_9_17_name",{"$f":"'T2-B(PP5)'!$B$278","v":0},"#'T2-B(PP5)'!$B$278"]
["pp5_bl4_9_17_rate_in",{"$f":"'T2-B(PP5)'!$E$278","v":0},"#'T2-B(PP5)'!$E$278"]
["pp5_bl4_9_17_rate_out",{"$f":"'T2-B(PP5)'!$H$278","v":0},"#'T2-B(PP5)'!$H$278"]
["pp5_bl4_9_17_total",{"$f":"'T2-B(PP5)'!$J$278","v":0},"#'T2-B(PP5)'!$J$278"]
["pp5_bl4_9_17_total_in",{"$f":"'T2-B(PP5)'!$F$278","v":0},"#'T2-B(PP5)'!$F$278"]
["pp5_bl4_9_17_total_out",{"$f":"'T2-B(PP5)'!$I$278","v":0},"#'T2-B(PP5)'!$I$278"]
["pp5_bl4_9_17_unit",{"$f":"'T2-B(PP5)'!$C$278","v":0},"#'T2-B(PP5)'!$C$278"]
["pp5_bl4_9_17_unit_in",{"$f":"'T2-B(PP5)'!$D$278","v":0},"#'T2-B(PP5)'!$D$278"]
["pp5_bl4_9_17_units_out",{"$f":"'T2-B(PP5)'!$G$278","v":0},"#'T2-B(PP5)'!$G$278"]
["pp5_bl4_9_18_name",{"$f":"'T2-B(PP5)'!$B$279","v":0},"#'T2-B(PP5)'!$B$279"]
["pp5_bl4_9_18_rate_in",{"$f":"'T2-B(PP5)'!$E$279","v":0},"#'T2-B(PP5)'!$E$279"]
["pp5_bl4_9_18_rate_out",{"$f":"'T2-B(PP5)'!$H$279","v":0},"#'T2-B(PP5)'!$H$279"]
["pp5_bl4_9_18_total",{"$f":"'T2-B(PP5)'!$J$279","v":0},"#'T2-B(PP5)'!$J$279"]
["pp5_bl4_9_18_total_in",{"$f":"'T2-B(PP5)'!$F$279","v":0},"#'T2-B(PP5)'!$F$279"]
["pp5_bl4_9_18_total_out",{"$f":"'T2-B(PP5)'!$I$279","v":0},"#'T2-B(PP5)'!$I$279"]
["pp5_bl4_9_18_unit",{"$f":"'T2-B(PP5)'!$C$279","v":0},"#'T2-B(PP5)'!$C$279"]
["pp5_bl4_9_18_unit_in",{"$f":"'T2-B(PP5)'!$D$279","v":0},"#'T2-B(PP5)'!$D$279"]
["pp5_bl4_9_18_units_out",{"$f":"'T2-B(PP5)'!$G$279","v":0},"#'T2-B(PP5)'!$G$279"]
["pp5_bl4_9_19_name",{"$f":"'T2-B(PP5)'!$B$280","v":0},"#'T2-B(PP5)'!$B$280"]
["pp5_bl4_9_19_rate_in",{"$f":"'T2-B(PP5)'!$E$280","v":0},"#'T2-B(PP5)'!$E$280"]
["pp5_bl4_9_19_rate_out",{"$f":"'T2-B(PP5)'!$H$280","v":0},"#'T2-B(PP5)'!$H$280"]
["pp5_bl4_9_19_total",{"$f":"'T2-B(PP5)'!$J$280","v":0},"#'T2-B(PP5)'!$J$280"]
["pp5_bl4_9_19_total_in",{"$f":"'T2-B(PP5)'!$F$280","v":0},"#'T2-B(PP5)'!$F$280"]
["pp5_bl4_9_19_total_out",{"$f":"'T2-B(PP5)'!$I$280","v":0},"#'T2-B(PP5)'!$I$280"]
["pp5_bl4_9_19_unit",{"$f":"'T2-B(PP5)'!$C$280","v":0},"#'T2-B(PP5)'!$C$280"]
["pp5_bl4_9_19_unit_in",{"$f":"'T2-B(PP5)'!$D$280","v":0},"#'T2-B(PP5)'!$D$280"]
["pp5_bl4_9_19_units_out",{"$f":"'T2-B(PP5)'!$G$280","v":0},"#'T2-B(PP5)'!$G$280"]
["pp5_bl4_9_2_name",{"$f":"'T2-B(PP5)'!$B$263","v":0},"#'T2-B(PP5)'!$B$263"]
["pp5_bl4_9_2_rate_in",{"$f":"'T2-B(PP5)'!$E$263","v":0},"#'T2-B(PP5)'!$E$263"]
["pp5_bl4_9_2_rate_out",{"$f":"'T2-B(PP5)'!$H$263","v":0},"#'T2-B(PP5)'!$H$263"]
["pp5_bl4_9_2_total",{"$f":"'T2-B(PP5)'!$J$263","v":0},"#'T2-B(PP5)'!$J$263"]
["pp5_bl4_9_2_total_in",{"$f":"'T2-B(PP5)'!$F$263","v":0},"#'T2-B(PP5)'!$F$263"]
["pp5_bl4_9_2_total_out",{"$f":"'T2-B(PP5)'!$I$263","v":0},"#'T2-B(PP5)'!$I$263"]
["pp5_bl4_9_2_unit",{"$f":"'T2-B(PP5)'!$C$263","v":0},"#'T2-B(PP5)'!$C$263"]
["pp5_bl4_9_2_unit_in",{"$f":"'T2-B(PP5)'!$D$263","v":0},"#'T2-B(PP5)'!$D$263"]
["pp5_bl4_9_2_units_out",{"$f":"'T2-B(PP5)'!$G$263","v":0},"#'T2-B(PP5)'!$G$263"]
["pp5_bl4_9_20_name",{"$f":"'T2-B(PP5)'!$B$281","v":0},"#'T2-B(PP5)'!$B$281"]
["pp5_bl4_9_20_rate_in",{"$f":"'T2-B(PP5)'!$E$281","v":0},"#'T2-B(PP5)'!$E$281"]
["pp5_bl4_9_20_rate_out",{"$f":"'T2-B(PP5)'!$H$281","v":0},"#'T2-B(PP5)'!$H$281"]
["pp5_bl4_9_20_total",{"$f":"'T2-B(PP5)'!$J$281","v":0},"#'T2-B(PP5)'!$J$281"]
["pp5_bl4_9_20_total_in",{"$f":"'T2-B(PP5)'!$F$281","v":0},"#'T2-B(PP5)'!$F$281"]
["pp5_bl4_9_20_total_out",{"$f":"'T2-B(PP5)'!$I$281","v":0},"#'T2-B(PP5)'!$I$281"]
["pp5_bl4_9_20_unit",{"$f":"'T2-B(PP5)'!$C$281","v":0},"#'T2-B(PP5)'!$C$281"]
["pp5_bl4_9_20_unit_in",{"$f":"'T2-B(PP5)'!$D$281","v":0},"#'T2-B(PP5)'!$D$281"]
["pp5_bl4_9_20_units_out",{"$f":"'T2-B(PP5)'!$G$281","v":0},"#'T2-B(PP5)'!$G$281"]
["pp5_bl4_9_3_name",{"$f":"'T2-B(PP5)'!$B$264","v":0},"#'T2-B(PP5)'!$B$264"]
["pp5_bl4_9_3_rate_in",{"$f":"'T2-B(PP5)'!$E$264","v":0},"#'T2-B(PP5)'!$E$264"]
["pp5_bl4_9_3_rate_out",{"$f":"'T2-B(PP5)'!$H$264","v":0},"#'T2-B(PP5)'!$H$264"]
["pp5_bl4_9_3_total",{"$f":"'T2-B(PP5)'!$J$264","v":0},"#'T2-B(PP5)'!$J$264"]
["pp5_bl4_9_3_total_in",{"$f":"'T2-B(PP5)'!$F$264","v":0},"#'T2-B(PP5)'!$F$264"]
["pp5_bl4_9_3_total_out",{"$f":"'T2-B(PP5)'!$I$264","v":0},"#'T2-B(PP5)'!$I$264"]
["pp5_bl4_9_3_unit",{"$f":"'T2-B(PP5)'!$C$264","v":0},"#'T2-B(PP5)'!$C$264"]
["pp5_bl4_9_3_unit_in",{"$f":"'T2-B(PP5)'!$D$264","v":0},"#'T2-B(PP5)'!$D$264"]
["pp5_bl4_9_3_units_out",{"$f":"'T2-B(PP5)'!$G$264","v":0},"#'T2-B(PP5)'!$G$264"]
["pp5_bl4_9_4_name",{"$f":"'T2-B(PP5)'!$B$265","v":0},"#'T2-B(PP5)'!$B$265"]
["pp5_bl4_9_4_rate_in",{"$f":"'T2-B(PP5)'!$E$265","v":0},"#'T2-B(PP5)'!$E$265"]
["pp5_bl4_9_4_rate_out",{"$f":"'T2-B(PP5)'!$H$265","v":0},"#'T2-B(PP5)'!$H$265"]
["pp5_bl4_9_4_total",{"$f":"'T2-B(PP5)'!$J$265","v":0},"#'T2-B(PP5)'!$J$265"]
["pp5_bl4_9_4_total_in",{"$f":"'T2-B(PP5)'!$F$265","v":0},"#'T2-B(PP5)'!$F$265"]
["pp5_bl4_9_4_total_out",{"$f":"'T2-B(PP5)'!$I$265","v":0},"#'T2-B(PP5)'!$I$265"]
["pp5_bl4_9_4_unit",{"$f":"'T2-B(PP5)'!$C$265","v":0},"#'T2-B(PP5)'!$C$265"]
["pp5_bl4_9_4_unit_in",{"$f":"'T2-B(PP5)'!$D$265","v":0},"#'T2-B(PP5)'!$D$265"]
["pp5_bl4_9_4_units_out",{"$f":"'T2-B(PP5)'!$G$265","v":0},"#'T2-B(PP5)'!$G$265"]
["pp5_bl4_9_5_name",{"$f":"'T2-B(PP5)'!$B$266","v":0},"#'T2-B(PP5)'!$B$266"]
["pp5_bl4_9_5_rate_in",{"$f":"'T2-B(PP5)'!$E$266","v":0},"#'T2-B(PP5)'!$E$266"]
["pp5_bl4_9_5_rate_out",{"$f":"'T2-B(PP5)'!$H$266","v":0},"#'T2-B(PP5)'!$H$266"]
["pp5_bl4_9_5_total",{"$f":"'T2-B(PP5)'!$J$266","v":0},"#'T2-B(PP5)'!$J$266"]
["pp5_bl4_9_5_total_in",{"$f":"'T2-B(PP5)'!$F$266","v":0},"#'T2-B(PP5)'!$F$266"]
["pp5_bl4_9_5_total_out",{"$f":"'T2-B(PP5)'!$I$266","v":0},"#'T2-B(PP5)'!$I$266"]
["pp5_bl4_9_5_unit",{"$f":"'T2-B(PP5)'!$C$266","v":0},"#'T2-B(PP5)'!$C$266"]
["pp5_bl4_9_5_unit_in",{"$f":"'T2-B(PP5)'!$D$266","v":0},"#'T2-B(PP5)'!$D$266"]
["pp5_bl4_9_5_units_out",{"$f":"'T2-B(PP5)'!$G$266","v":0},"#'T2-B(PP5)'!$G$266"]
["pp5_bl4_9_6_name",{"$f":"'T2-B(PP5)'!$B$267","v":0},"#'T2-B(PP5)'!$B$267"]
["pp5_bl4_9_6_rate_in",{"$f":"'T2-B(PP5)'!$E$267","v":0},"#'T2-B(PP5)'!$E$267"]
["pp5_bl4_9_6_rate_out",{"$f":"'T2-B(PP5)'!$H$267","v":0},"#'T2-B(PP5)'!$H$267"]
["pp5_bl4_9_6_total",{"$f":"'T2-B(PP5)'!$J$267","v":0},"#'T2-B(PP5)'!$J$267"]
["pp5_bl4_9_6_total_in",{"$f":"'T2-B(PP5)'!$F$267","v":0},"#'T2-B(PP5)'!$F$267"]
["pp5_bl4_9_6_total_out",{"$f":"'T2-B(PP5)'!$I$267","v":0},"#'T2-B(PP5)'!$I$267"]
["pp5_bl4_9_6_unit",{"$f":"'T2-B(PP5)'!$C$267","v":0},"#'T2-B(PP5)'!$C$267"]
["pp5_bl4_9_6_unit_in",{"$f":"'T2-B(PP5)'!$D$267","v":0},"#'T2-B(PP5)'!$D$267"]
["pp5_bl4_9_6_units_out",{"$f":"'T2-B(PP5)'!$G$267","v":0},"#'T2-B(PP5)'!$G$267"]
["pp5_bl4_9_7_name",{"$f":"'T2-B(PP5)'!$B$268","v":0},"#'T2-B(PP5)'!$B$268"]
["pp5_bl4_9_7_rate_in",{"$f":"'T2-B(PP5)'!$E$268","v":0},"#'T2-B(PP5)'!$E$268"]
["pp5_bl4_9_7_rate_out",{"$f":"'T2-B(PP5)'!$H$268","v":0},"#'T2-B(PP5)'!$H$268"]
["pp5_bl4_9_7_total",{"$f":"'T2-B(PP5)'!$J$268","v":0},"#'T2-B(PP5)'!$J$268"]
["pp5_bl4_9_7_total_in",{"$f":"'T2-B(PP5)'!$F$268","v":0},"#'T2-B(PP5)'!$F$268"]
["pp5_bl4_9_7_total_out",{"$f":"'T2-B(PP5)'!$I$268","v":0},"#'T2-B(PP5)'!$I$268"]
["pp5_bl4_9_7_unit",{"$f":"'T2-B(PP5)'!$C$268","v":0},"#'T2-B(PP5)'!$C$268"]
["pp5_bl4_9_7_unit_in",{"$f":"'T2-B(PP5)'!$D$268","v":0},"#'T2-B(PP5)'!$D$268"]
["pp5_bl4_9_7_units_out",{"$f":"'T2-B(PP5)'!$G$268","v":0},"#'T2-B(PP5)'!$G$268"]
["pp5_bl4_9_8_name",{"$f":"'T2-B(PP5)'!$B$269","v":0},"#'T2-B(PP5)'!$B$269"]
["pp5_bl4_9_8_rate_in",{"$f":"'T2-B(PP5)'!$E$269","v":0},"#'T2-B(PP5)'!$E$269"]
["pp5_bl4_9_8_rate_out",{"$f":"'T2-B(PP5)'!$H$269","v":0},"#'T2-B(PP5)'!$H$269"]
["pp5_bl4_9_8_total",{"$f":"'T2-B(PP5)'!$J$269","v":0},"#'T2-B(PP5)'!$J$269"]
["pp5_bl4_9_8_total_in",{"$f":"'T2-B(PP5)'!$F$269","v":0},"#'T2-B(PP5)'!$F$269"]
["pp5_bl4_9_8_total_out",{"$f":"'T2-B(PP5)'!$I$269","v":0},"#'T2-B(PP5)'!$I$269"]
["pp5_bl4_9_8_unit",{"$f":"'T2-B(PP5)'!$C$269","v":0},"#'T2-B(PP5)'!$C$269"]
["pp5_bl4_9_8_unit_in",{"$f":"'T2-B(PP5)'!$D$269","v":0},"#'T2-B(PP5)'!$D$269"]
["pp5_bl4_9_8_units_out",{"$f":"'T2-B(PP5)'!$G$269","v":0},"#'T2-B(PP5)'!$G$269"]
["pp5_bl4_9_9_name",{"$f":"'T2-B(PP5)'!$B$270","v":0},"#'T2-B(PP5)'!$B$270"]
["pp5_bl4_9_9_rate_in",{"$f":"'T2-B(PP5)'!$E$270","v":0},"#'T2-B(PP5)'!$E$270"]
["pp5_bl4_9_9_rate_out",{"$f":"'T2-B(PP5)'!$H$270","v":0},"#'T2-B(PP5)'!$H$270"]
["pp5_bl4_9_9_total",{"$f":"'T2-B(PP5)'!$J$270","v":0},"#'T2-B(PP5)'!$J$270"]
["pp5_bl4_9_9_total_in",{"$f":"'T2-B(PP5)'!$F$270","v":0},"#'T2-B(PP5)'!$F$270"]
["pp5_bl4_9_9_total_out",{"$f":"'T2-B(PP5)'!$I$270","v":0},"#'T2-B(PP5)'!$I$270"]
["pp5_bl4_9_9_unit",{"$f":"'T2-B(PP5)'!$C$270","v":0},"#'T2-B(PP5)'!$C$270"]
["pp5_bl4_9_9_unit_in",{"$f":"'T2-B(PP5)'!$D$270","v":0},"#'T2-B(PP5)'!$D$270"]
["pp5_bl4_9_9_units_out",{"$f":"'T2-B(PP5)'!$G$270","v":0},"#'T2-B(PP5)'!$G$270"]
["pp5_bl4_9_total",{"$f":"'T2-B(PP5)'!$J$261","v":0},"#'T2-B(PP5)'!$J$261"]
["pp5_bl4_9_total_in",{"$f":"'T2-B(PP5)'!$F$261","v":0},"#'T2-B(PP5)'!$F$261"]
["pp5_bl4_9_total_out",{"$f":"'T2-B(PP5)'!$I$261","v":0},"#'T2-B(PP5)'!$I$261"]
["pp5_bl4_total",{"$f":"'T2-B(PP5)'!$J$345","v":0},"#'T2-B(PP5)'!$J$345"]
["pp5_bl4_total_in",{"$f":"'T2-B(PP5)'!$F$345","v":0},"#'T2-B(PP5)'!$F$345"]
["pp5_bl4_total_out",{"$f":"'T2-B(PP5)'!$I$345","v":0},"#'T2-B(PP5)'!$I$345"]
["pp5_bl5_1_1_name",{"$f":"'T2-B(PP5)'!$B$350","v":0},"#'T2-B(PP5)'!$B$350"]
["pp5_bl5_1_1_rate_in",{"$f":"'T2-B(PP5)'!$E$350","v":0},"#'T2-B(PP5)'!$E$350"]
["pp5_bl5_1_1_rate_out",{"$f":"'T2-B(PP5)'!$H$350","v":0},"#'T2-B(PP5)'!$H$350"]
["pp5_bl5_1_1_total",{"$f":"'T2-B(PP5)'!$J$350","v":0},"#'T2-B(PP5)'!$J$350"]
["pp5_bl5_1_1_total_in",{"$f":"'T2-B(PP5)'!$F$350","v":0},"#'T2-B(PP5)'!$F$350"]
["pp5_bl5_1_1_total_out",{"$f":"'T2-B(PP5)'!$I$350","v":0},"#'T2-B(PP5)'!$I$350"]
["pp5_bl5_1_1_unit",{"$f":"'T2-B(PP5)'!$C$350","v":0},"#'T2-B(PP5)'!$C$350"]
["pp5_bl5_1_1_unit_in",{"$f":"'T2-B(PP5)'!$D$350","v":0},"#'T2-B(PP5)'!$D$350"]
["pp5_bl5_1_1_units_out",{"$f":"'T2-B(PP5)'!$G$350","v":0},"#'T2-B(PP5)'!$G$350"]
["pp5_bl5_1_10_name",{"$f":"'T2-B(PP5)'!$B$359","v":0},"#'T2-B(PP5)'!$B$359"]
["pp5_bl5_1_10_rate_in",{"$f":"'T2-B(PP5)'!$E$359","v":0},"#'T2-B(PP5)'!$E$359"]
["pp5_bl5_1_10_rate_out",{"$f":"'T2-B(PP5)'!$H$359","v":0},"#'T2-B(PP5)'!$H$359"]
["pp5_bl5_1_10_total",{"$f":"'T2-B(PP5)'!$J$359","v":0},"#'T2-B(PP5)'!$J$359"]
["pp5_bl5_1_10_total_in",{"$f":"'T2-B(PP5)'!$F$359","v":0},"#'T2-B(PP5)'!$F$359"]
["pp5_bl5_1_10_total_out",{"$f":"'T2-B(PP5)'!$I$359","v":0},"#'T2-B(PP5)'!$I$359"]
["pp5_bl5_1_10_unit",{"$f":"'T2-B(PP5)'!$C$359","v":0},"#'T2-B(PP5)'!$C$359"]
["pp5_bl5_1_10_unit_in",{"$f":"'T2-B(PP5)'!$D$359","v":0},"#'T2-B(PP5)'!$D$359"]
["pp5_bl5_1_10_units_out",{"$f":"'T2-B(PP5)'!$G$359","v":0},"#'T2-B(PP5)'!$G$359"]
["pp5_bl5_1_11_name",{"$f":"'T2-B(PP5)'!$B$360","v":0},"#'T2-B(PP5)'!$B$360"]
["pp5_bl5_1_11_rate_in",{"$f":"'T2-B(PP5)'!$E$360","v":0},"#'T2-B(PP5)'!$E$360"]
["pp5_bl5_1_11_rate_out",{"$f":"'T2-B(PP5)'!$H$360","v":0},"#'T2-B(PP5)'!$H$360"]
["pp5_bl5_1_11_total",{"$f":"'T2-B(PP5)'!$J$360","v":0},"#'T2-B(PP5)'!$J$360"]
["pp5_bl5_1_11_total_in",{"$f":"'T2-B(PP5)'!$F$360","v":0},"#'T2-B(PP5)'!$F$360"]
["pp5_bl5_1_11_total_out",{"$f":"'T2-B(PP5)'!$I$360","v":0},"#'T2-B(PP5)'!$I$360"]
["pp5_bl5_1_11_unit",{"$f":"'T2-B(PP5)'!$C$360","v":0},"#'T2-B(PP5)'!$C$360"]
["pp5_bl5_1_11_unit_in",{"$f":"'T2-B(PP5)'!$D$360","v":0},"#'T2-B(PP5)'!$D$360"]
["pp5_bl5_1_11_units_out",{"$f":"'T2-B(PP5)'!$G$360","v":0},"#'T2-B(PP5)'!$G$360"]
["pp5_bl5_1_12_name",{"$f":"'T2-B(PP5)'!$B$361","v":0},"#'T2-B(PP5)'!$B$361"]
["pp5_bl5_1_12_rate_in",{"$f":"'T2-B(PP5)'!$E$361","v":0},"#'T2-B(PP5)'!$E$361"]
["pp5_bl5_1_12_rate_out",{"$f":"'T2-B(PP5)'!$H$361","v":0},"#'T2-B(PP5)'!$H$361"]
["pp5_bl5_1_12_total",{"$f":"'T2-B(PP5)'!$J$361","v":0},"#'T2-B(PP5)'!$J$361"]
["pp5_bl5_1_12_total_in",{"$f":"'T2-B(PP5)'!$F$361","v":0},"#'T2-B(PP5)'!$F$361"]
["pp5_bl5_1_12_total_out",{"$f":"'T2-B(PP5)'!$I$361","v":0},"#'T2-B(PP5)'!$I$361"]
["pp5_bl5_1_12_unit",{"$f":"'T2-B(PP5)'!$C$361","v":0},"#'T2-B(PP5)'!$C$361"]
["pp5_bl5_1_12_unit_in",{"$f":"'T2-B(PP5)'!$D$361","v":0},"#'T2-B(PP5)'!$D$361"]
["pp5_bl5_1_12_units_out",{"$f":"'T2-B(PP5)'!$G$361","v":0},"#'T2-B(PP5)'!$G$361"]
["pp5_bl5_1_13_name",{"$f":"'T2-B(PP5)'!$B$362","v":0},"#'T2-B(PP5)'!$B$362"]
["pp5_bl5_1_13_rate_in",{"$f":"'T2-B(PP5)'!$E$362","v":0},"#'T2-B(PP5)'!$E$362"]
["pp5_bl5_1_13_rate_out",{"$f":"'T2-B(PP5)'!$H$362","v":0},"#'T2-B(PP5)'!$H$362"]
["pp5_bl5_1_13_total",{"$f":"'T2-B(PP5)'!$J$362","v":0},"#'T2-B(PP5)'!$J$362"]
["pp5_bl5_1_13_total_in",{"$f":"'T2-B(PP5)'!$F$362","v":0},"#'T2-B(PP5)'!$F$362"]
["pp5_bl5_1_13_total_out",{"$f":"'T2-B(PP5)'!$I$362","v":0},"#'T2-B(PP5)'!$I$362"]
["pp5_bl5_1_13_unit",{"$f":"'T2-B(PP5)'!$C$362","v":0},"#'T2-B(PP5)'!$C$362"]
["pp5_bl5_1_13_unit_in",{"$f":"'T2-B(PP5)'!$D$362","v":0},"#'T2-B(PP5)'!$D$362"]
["pp5_bl5_1_13_units_out",{"$f":"'T2-B(PP5)'!$G$362","v":0},"#'T2-B(PP5)'!$G$362"]
["pp5_bl5_1_14_name",{"$f":"'T2-B(PP5)'!$B$363","v":0},"#'T2-B(PP5)'!$B$363"]
["pp5_bl5_1_14_rate_in",{"$f":"'T2-B(PP5)'!$E$363","v":0},"#'T2-B(PP5)'!$E$363"]
["pp5_bl5_1_14_rate_out",{"$f":"'T2-B(PP5)'!$H$363","v":0},"#'T2-B(PP5)'!$H$363"]
["pp5_bl5_1_14_total",{"$f":"'T2-B(PP5)'!$J$363","v":0},"#'T2-B(PP5)'!$J$363"]
["pp5_bl5_1_14_total_in",{"$f":"'T2-B(PP5)'!$F$363","v":0},"#'T2-B(PP5)'!$F$363"]
["pp5_bl5_1_14_total_out",{"$f":"'T2-B(PP5)'!$I$363","v":0},"#'T2-B(PP5)'!$I$363"]
["pp5_bl5_1_14_unit",{"$f":"'T2-B(PP5)'!$C$363","v":0},"#'T2-B(PP5)'!$C$363"]
["pp5_bl5_1_14_unit_in",{"$f":"'T2-B(PP5)'!$D$363","v":0},"#'T2-B(PP5)'!$D$363"]
["pp5_bl5_1_14_units_out",{"$f":"'T2-B(PP5)'!$G$363","v":0},"#'T2-B(PP5)'!$G$363"]
["pp5_bl5_1_15_name",{"$f":"'T2-B(PP5)'!$B$364","v":0},"#'T2-B(PP5)'!$B$364"]
["pp5_bl5_1_15_rate_in",{"$f":"'T2-B(PP5)'!$E$364","v":0},"#'T2-B(PP5)'!$E$364"]
["pp5_bl5_1_15_rate_out",{"$f":"'T2-B(PP5)'!$H$364","v":0},"#'T2-B(PP5)'!$H$364"]
["pp5_bl5_1_15_total",{"$f":"'T2-B(PP5)'!$J$364","v":0},"#'T2-B(PP5)'!$J$364"]
["pp5_bl5_1_15_total_in",{"$f":"'T2-B(PP5)'!$F$364","v":0},"#'T2-B(PP5)'!$F$364"]
["pp5_bl5_1_15_total_out",{"$f":"'T2-B(PP5)'!$I$364","v":0},"#'T2-B(PP5)'!$I$364"]
["pp5_bl5_1_15_unit",{"$f":"'T2-B(PP5)'!$C$364","v":0},"#'T2-B(PP5)'!$C$364"]
["pp5_bl5_1_15_unit_in",{"$f":"'T2-B(PP5)'!$D$364","v":0},"#'T2-B(PP5)'!$D$364"]
["pp5_bl5_1_15_units_out",{"$f":"'T2-B(PP5)'!$G$364","v":0},"#'T2-B(PP5)'!$G$364"]
["pp5_bl5_1_16_name",{"$f":"'T2-B(PP5)'!$B$365","v":0},"#'T2-B(PP5)'!$B$365"]
["pp5_bl5_1_16_rate_in",{"$f":"'T2-B(PP5)'!$E$365","v":0},"#'T2-B(PP5)'!$E$365"]
["pp5_bl5_1_16_rate_out",{"$f":"'T2-B(PP5)'!$H$365","v":0},"#'T2-B(PP5)'!$H$365"]
["pp5_bl5_1_16_total",{"$f":"'T2-B(PP5)'!$J$365","v":0},"#'T2-B(PP5)'!$J$365"]
["pp5_bl5_1_16_total_in",{"$f":"'T2-B(PP5)'!$F$365","v":0},"#'T2-B(PP5)'!$F$365"]
["pp5_bl5_1_16_total_out",{"$f":"'T2-B(PP5)'!$I$365","v":0},"#'T2-B(PP5)'!$I$365"]
["pp5_bl5_1_16_unit",{"$f":"'T2-B(PP5)'!$C$365","v":0},"#'T2-B(PP5)'!$C$365"]
["pp5_bl5_1_16_unit_in",{"$f":"'T2-B(PP5)'!$D$365","v":0},"#'T2-B(PP5)'!$D$365"]
["pp5_bl5_1_16_units_out",{"$f":"'T2-B(PP5)'!$G$365","v":0},"#'T2-B(PP5)'!$G$365"]
["pp5_bl5_1_17_name",{"$f":"'T2-B(PP5)'!$B$366","v":0},"#'T2-B(PP5)'!$B$366"]
["pp5_bl5_1_17_rate_in",{"$f":"'T2-B(PP5)'!$E$366","v":0},"#'T2-B(PP5)'!$E$366"]
["pp5_bl5_1_17_rate_out",{"$f":"'T2-B(PP5)'!$H$366","v":0},"#'T2-B(PP5)'!$H$366"]
["pp5_bl5_1_17_total",{"$f":"'T2-B(PP5)'!$J$366","v":0},"#'T2-B(PP5)'!$J$366"]
["pp5_bl5_1_17_total_in",{"$f":"'T2-B(PP5)'!$F$366","v":0},"#'T2-B(PP5)'!$F$366"]
["pp5_bl5_1_17_total_out",{"$f":"'T2-B(PP5)'!$I$366","v":0},"#'T2-B(PP5)'!$I$366"]
["pp5_bl5_1_17_unit",{"$f":"'T2-B(PP5)'!$C$366","v":0},"#'T2-B(PP5)'!$C$366"]
["pp5_bl5_1_17_unit_in",{"$f":"'T2-B(PP5)'!$D$366","v":0},"#'T2-B(PP5)'!$D$366"]
["pp5_bl5_1_17_units_out",{"$f":"'T2-B(PP5)'!$G$366","v":0},"#'T2-B(PP5)'!$G$366"]
["pp5_bl5_1_18_name",{"$f":"'T2-B(PP5)'!$B$367","v":0},"#'T2-B(PP5)'!$B$367"]
["pp5_bl5_1_18_rate_in",{"$f":"'T2-B(PP5)'!$E$367","v":0},"#'T2-B(PP5)'!$E$367"]
["pp5_bl5_1_18_rate_out",{"$f":"'T2-B(PP5)'!$H$367","v":0},"#'T2-B(PP5)'!$H$367"]
["pp5_bl5_1_18_total",{"$f":"'T2-B(PP5)'!$J$367","v":0},"#'T2-B(PP5)'!$J$367"]
["pp5_bl5_1_18_total_in",{"$f":"'T2-B(PP5)'!$F$367","v":0},"#'T2-B(PP5)'!$F$367"]
["pp5_bl5_1_18_total_out",{"$f":"'T2-B(PP5)'!$I$367","v":0},"#'T2-B(PP5)'!$I$367"]
["pp5_bl5_1_18_unit",{"$f":"'T2-B(PP5)'!$C$367","v":0},"#'T2-B(PP5)'!$C$367"]
["pp5_bl5_1_18_unit_in",{"$f":"'T2-B(PP5)'!$D$367","v":0},"#'T2-B(PP5)'!$D$367"]
["pp5_bl5_1_18_units_out",{"$f":"'T2-B(PP5)'!$G$367","v":0},"#'T2-B(PP5)'!$G$367"]
["pp5_bl5_1_19_name",{"$f":"'T2-B(PP5)'!$B$368","v":0},"#'T2-B(PP5)'!$B$368"]
["pp5_bl5_1_19_rate_in",{"$f":"'T2-B(PP5)'!$E$368","v":0},"#'T2-B(PP5)'!$E$368"]
["pp5_bl5_1_19_rate_out",{"$f":"'T2-B(PP5)'!$H$368","v":0},"#'T2-B(PP5)'!$H$368"]
["pp5_bl5_1_19_total",{"$f":"'T2-B(PP5)'!$J$368","v":0},"#'T2-B(PP5)'!$J$368"]
["pp5_bl5_1_19_total_in",{"$f":"'T2-B(PP5)'!$F$368","v":0},"#'T2-B(PP5)'!$F$368"]
["pp5_bl5_1_19_total_out",{"$f":"'T2-B(PP5)'!$I$368","v":0},"#'T2-B(PP5)'!$I$368"]
["pp5_bl5_1_19_unit",{"$f":"'T2-B(PP5)'!$C$368","v":0},"#'T2-B(PP5)'!$C$368"]
["pp5_bl5_1_19_unit_in",{"$f":"'T2-B(PP5)'!$D$368","v":0},"#'T2-B(PP5)'!$D$368"]
["pp5_bl5_1_19_units_out",{"$f":"'T2-B(PP5)'!$G$368","v":0},"#'T2-B(PP5)'!$G$368"]
["pp5_bl5_1_2_name",{"$f":"'T2-B(PP5)'!$B$351","v":0},"#'T2-B(PP5)'!$B$351"]
["pp5_bl5_1_2_rate_in",{"$f":"'T2-B(PP5)'!$E$351","v":0},"#'T2-B(PP5)'!$E$351"]
["pp5_bl5_1_2_rate_out",{"$f":"'T2-B(PP5)'!$H$351","v":0},"#'T2-B(PP5)'!$H$351"]
["pp5_bl5_1_2_total",{"$f":"'T2-B(PP5)'!$J$351","v":0},"#'T2-B(PP5)'!$J$351"]
["pp5_bl5_1_2_total_in",{"$f":"'T2-B(PP5)'!$F$351","v":0},"#'T2-B(PP5)'!$F$351"]
["pp5_bl5_1_2_total_out",{"$f":"'T2-B(PP5)'!$I$351","v":0},"#'T2-B(PP5)'!$I$351"]
["pp5_bl5_1_2_unit",{"$f":"'T2-B(PP5)'!$C$351","v":0},"#'T2-B(PP5)'!$C$351"]
["pp5_bl5_1_2_unit_in",{"$f":"'T2-B(PP5)'!$D$351","v":0},"#'T2-B(PP5)'!$D$351"]
["pp5_bl5_1_2_units_out",{"$f":"'T2-B(PP5)'!$G$351","v":0},"#'T2-B(PP5)'!$G$351"]
["pp5_bl5_1_20_name",{"$f":"'T2-B(PP5)'!$B$369","v":0},"#'T2-B(PP5)'!$B$369"]
["pp5_bl5_1_20_rate_in",{"$f":"'T2-B(PP5)'!$E$369","v":0},"#'T2-B(PP5)'!$E$369"]
["pp5_bl5_1_20_rate_out",{"$f":"'T2-B(PP5)'!$H$369","v":0},"#'T2-B(PP5)'!$H$369"]
["pp5_bl5_1_20_total",{"$f":"'T2-B(PP5)'!$J$369","v":0},"#'T2-B(PP5)'!$J$369"]
["pp5_bl5_1_20_total_in",{"$f":"'T2-B(PP5)'!$F$369","v":0},"#'T2-B(PP5)'!$F$369"]
["pp5_bl5_1_20_total_out",{"$f":"'T2-B(PP5)'!$I$369","v":0},"#'T2-B(PP5)'!$I$369"]
["pp5_bl5_1_20_unit",{"$f":"'T2-B(PP5)'!$C$369","v":0},"#'T2-B(PP5)'!$C$369"]
["pp5_bl5_1_20_unit_in",{"$f":"'T2-B(PP5)'!$D$369","v":0},"#'T2-B(PP5)'!$D$369"]
["pp5_bl5_1_20_units_out",{"$f":"'T2-B(PP5)'!$G$369","v":0},"#'T2-B(PP5)'!$G$369"]
["pp5_bl5_1_3_name",{"$f":"'T2-B(PP5)'!$B$352","v":0},"#'T2-B(PP5)'!$B$352"]
["pp5_bl5_1_3_rate_in",{"$f":"'T2-B(PP5)'!$E$352","v":0},"#'T2-B(PP5)'!$E$352"]
["pp5_bl5_1_3_rate_out",{"$f":"'T2-B(PP5)'!$H$352","v":0},"#'T2-B(PP5)'!$H$352"]
["pp5_bl5_1_3_total",{"$f":"'T2-B(PP5)'!$J$352","v":0},"#'T2-B(PP5)'!$J$352"]
["pp5_bl5_1_3_total_in",{"$f":"'T2-B(PP5)'!$F$352","v":0},"#'T2-B(PP5)'!$F$352"]
["pp5_bl5_1_3_total_out",{"$f":"'T2-B(PP5)'!$I$352","v":0},"#'T2-B(PP5)'!$I$352"]
["pp5_bl5_1_3_unit",{"$f":"'T2-B(PP5)'!$C$352","v":0},"#'T2-B(PP5)'!$C$352"]
["pp5_bl5_1_3_unit_in",{"$f":"'T2-B(PP5)'!$D$352","v":0},"#'T2-B(PP5)'!$D$352"]
["pp5_bl5_1_3_units_out",{"$f":"'T2-B(PP5)'!$G$352","v":0},"#'T2-B(PP5)'!$G$352"]
["pp5_bl5_1_4_name",{"$f":"'T2-B(PP5)'!$B$353","v":0},"#'T2-B(PP5)'!$B$353"]
["pp5_bl5_1_4_rate_in",{"$f":"'T2-B(PP5)'!$E$353","v":0},"#'T2-B(PP5)'!$E$353"]
["pp5_bl5_1_4_rate_out",{"$f":"'T2-B(PP5)'!$H$353","v":0},"#'T2-B(PP5)'!$H$353"]
["pp5_bl5_1_4_total",{"$f":"'T2-B(PP5)'!$J$353","v":0},"#'T2-B(PP5)'!$J$353"]
["pp5_bl5_1_4_total_in",{"$f":"'T2-B(PP5)'!$F$353","v":0},"#'T2-B(PP5)'!$F$353"]
["pp5_bl5_1_4_total_out",{"$f":"'T2-B(PP5)'!$I$353","v":0},"#'T2-B(PP5)'!$I$353"]
["pp5_bl5_1_4_unit",{"$f":"'T2-B(PP5)'!$C$353","v":0},"#'T2-B(PP5)'!$C$353"]
["pp5_bl5_1_4_unit_in",{"$f":"'T2-B(PP5)'!$D$353","v":0},"#'T2-B(PP5)'!$D$353"]
["pp5_bl5_1_4_units_out",{"$f":"'T2-B(PP5)'!$G$353","v":0},"#'T2-B(PP5)'!$G$353"]
["pp5_bl5_1_5_name",{"$f":"'T2-B(PP5)'!$B$354","v":0},"#'T2-B(PP5)'!$B$354"]
["pp5_bl5_1_5_rate_in",{"$f":"'T2-B(PP5)'!$E$354","v":0},"#'T2-B(PP5)'!$E$354"]
["pp5_bl5_1_5_rate_out",{"$f":"'T2-B(PP5)'!$H$354","v":0},"#'T2-B(PP5)'!$H$354"]
["pp5_bl5_1_5_total",{"$f":"'T2-B(PP5)'!$J$354","v":0},"#'T2-B(PP5)'!$J$354"]
["pp5_bl5_1_5_total_in",{"$f":"'T2-B(PP5)'!$F$354","v":0},"#'T2-B(PP5)'!$F$354"]
["pp5_bl5_1_5_total_out",{"$f":"'T2-B(PP5)'!$I$354","v":0},"#'T2-B(PP5)'!$I$354"]
["pp5_bl5_1_5_unit",{"$f":"'T2-B(PP5)'!$C$354","v":0},"#'T2-B(PP5)'!$C$354"]
["pp5_bl5_1_5_unit_in",{"$f":"'T2-B(PP5)'!$D$354","v":0},"#'T2-B(PP5)'!$D$354"]
["pp5_bl5_1_5_units_out",{"$f":"'T2-B(PP5)'!$G$354","v":0},"#'T2-B(PP5)'!$G$354"]
["pp5_bl5_1_6_name",{"$f":"'T2-B(PP5)'!$B$355","v":0},"#'T2-B(PP5)'!$B$355"]
["pp5_bl5_1_6_rate_in",{"$f":"'T2-B(PP5)'!$E$355","v":0},"#'T2-B(PP5)'!$E$355"]
["pp5_bl5_1_6_rate_out",{"$f":"'T2-B(PP5)'!$H$355","v":0},"#'T2-B(PP5)'!$H$355"]
["pp5_bl5_1_6_total",{"$f":"'T2-B(PP5)'!$J$355","v":0},"#'T2-B(PP5)'!$J$355"]
["pp5_bl5_1_6_total_in",{"$f":"'T2-B(PP5)'!$F$355","v":0},"#'T2-B(PP5)'!$F$355"]
["pp5_bl5_1_6_total_out",{"$f":"'T2-B(PP5)'!$I$355","v":0},"#'T2-B(PP5)'!$I$355"]
["pp5_bl5_1_6_unit",{"$f":"'T2-B(PP5)'!$C$355","v":0},"#'T2-B(PP5)'!$C$355"]
["pp5_bl5_1_6_unit_in",{"$f":"'T2-B(PP5)'!$D$355","v":0},"#'T2-B(PP5)'!$D$355"]
["pp5_bl5_1_6_units_out",{"$f":"'T2-B(PP5)'!$G$355","v":0},"#'T2-B(PP5)'!$G$355"]
["pp5_bl5_1_7_name",{"$f":"'T2-B(PP5)'!$B$356","v":0},"#'T2-B(PP5)'!$B$356"]
["pp5_bl5_1_7_rate_in",{"$f":"'T2-B(PP5)'!$E$356","v":0},"#'T2-B(PP5)'!$E$356"]
["pp5_bl5_1_7_rate_out",{"$f":"'T2-B(PP5)'!$H$356","v":0},"#'T2-B(PP5)'!$H$356"]
["pp5_bl5_1_7_total",{"$f":"'T2-B(PP5)'!$J$356","v":0},"#'T2-B(PP5)'!$J$356"]
["pp5_bl5_1_7_total_in",{"$f":"'T2-B(PP5)'!$F$356","v":0},"#'T2-B(PP5)'!$F$356"]
["pp5_bl5_1_7_total_out",{"$f":"'T2-B(PP5)'!$I$356","v":0},"#'T2-B(PP5)'!$I$356"]
["pp5_bl5_1_7_unit",{"$f":"'T2-B(PP5)'!$C$356","v":0},"#'T2-B(PP5)'!$C$356"]
["pp5_bl5_1_7_unit_in",{"$f":"'T2-B(PP5)'!$D$356","v":0},"#'T2-B(PP5)'!$D$356"]
["pp5_bl5_1_7_units_out",{"$f":"'T2-B(PP5)'!$G$356","v":0},"#'T2-B(PP5)'!$G$356"]
["pp5_bl5_1_8_name",{"$f":"'T2-B(PP5)'!$B$357","v":0},"#'T2-B(PP5)'!$B$357"]
["pp5_bl5_1_8_rate_in",{"$f":"'T2-B(PP5)'!$E$357","v":0},"#'T2-B(PP5)'!$E$357"]
["pp5_bl5_1_8_rate_out",{"$f":"'T2-B(PP5)'!$H$357","v":0},"#'T2-B(PP5)'!$H$357"]
["pp5_bl5_1_8_total",{"$f":"'T2-B(PP5)'!$J$357","v":0},"#'T2-B(PP5)'!$J$357"]
["pp5_bl5_1_8_total_in",{"$f":"'T2-B(PP5)'!$F$357","v":0},"#'T2-B(PP5)'!$F$357"]
["pp5_bl5_1_8_total_out",{"$f":"'T2-B(PP5)'!$I$357","v":0},"#'T2-B(PP5)'!$I$357"]
["pp5_bl5_1_8_unit",{"$f":"'T2-B(PP5)'!$C$357","v":0},"#'T2-B(PP5)'!$C$357"]
["pp5_bl5_1_8_unit_in",{"$f":"'T2-B(PP5)'!$D$357","v":0},"#'T2-B(PP5)'!$D$357"]
["pp5_bl5_1_8_units_out",{"$f":"'T2-B(PP5)'!$G$357","v":0},"#'T2-B(PP5)'!$G$357"]
["pp5_bl5_1_9_name",{"$f":"'T2-B(PP5)'!$B$358","v":0},"#'T2-B(PP5)'!$B$358"]
["pp5_bl5_1_9_rate_in",{"$f":"'T2-B(PP5)'!$E$358","v":0},"#'T2-B(PP5)'!$E$358"]
["pp5_bl5_1_9_rate_out",{"$f":"'T2-B(PP5)'!$H$358","v":0},"#'T2-B(PP5)'!$H$358"]
["pp5_bl5_1_9_total",{"$f":"'T2-B(PP5)'!$J$358","v":0},"#'T2-B(PP5)'!$J$358"]
["pp5_bl5_1_9_total_in",{"$f":"'T2-B(PP5)'!$F$358","v":0},"#'T2-B(PP5)'!$F$358"]
["pp5_bl5_1_9_total_out",{"$f":"'T2-B(PP5)'!$I$358","v":0},"#'T2-B(PP5)'!$I$358"]
["pp5_bl5_1_9_unit",{"$f":"'T2-B(PP5)'!$C$358","v":0},"#'T2-B(PP5)'!$C$358"]
["pp5_bl5_1_9_unit_in",{"$f":"'T2-B(PP5)'!$D$358","v":0},"#'T2-B(PP5)'!$D$358"]
["pp5_bl5_1_9_units_out",{"$f":"'T2-B(PP5)'!$G$358","v":0},"#'T2-B(PP5)'!$G$358"]
["pp5_bl5_1_total",{"$f":"'T2-B(PP5)'!$J$349","v":0},"#'T2-B(PP5)'!$J$349"]
["pp5_bl5_1_total_in",{"$f":"'T2-B(PP5)'!$F$349","v":0},"#'T2-B(PP5)'!$F$349"]
["pp5_bl5_1_total_out",{"$f":"'T2-B(PP5)'!$I$349","v":0},"#'T2-B(PP5)'!$I$349"]
["pp5_bl5_2_1_name",{"$f":"'T2-B(PP5)'!$B$371","v":0},"#'T2-B(PP5)'!$B$371"]
["pp5_bl5_2_1_rate_in",{"$f":"'T2-B(PP5)'!$E$371","v":0},"#'T2-B(PP5)'!$E$371"]
["pp5_bl5_2_1_rate_out",{"$f":"'T2-B(PP5)'!$H$371","v":0},"#'T2-B(PP5)'!$H$371"]
["pp5_bl5_2_1_total",{"$f":"'T2-B(PP5)'!$J$371","v":0},"#'T2-B(PP5)'!$J$371"]
["pp5_bl5_2_1_total_in",{"$f":"'T2-B(PP5)'!$F$371","v":0},"#'T2-B(PP5)'!$F$371"]
["pp5_bl5_2_1_total_out",{"$f":"'T2-B(PP5)'!$I$371","v":0},"#'T2-B(PP5)'!$I$371"]
["pp5_bl5_2_1_unit",{"$f":"'T2-B(PP5)'!$C$371","v":0},"#'T2-B(PP5)'!$C$371"]
["pp5_bl5_2_1_unit_in",{"$f":"'T2-B(PP5)'!$D$371","v":0},"#'T2-B(PP5)'!$D$371"]
["pp5_bl5_2_1_units_out",{"$f":"'T2-B(PP5)'!$G$371","v":0},"#'T2-B(PP5)'!$G$371"]
["pp5_bl5_2_10_name",{"$f":"'T2-B(PP5)'!$B$380","v":0},"#'T2-B(PP5)'!$B$380"]
["pp5_bl5_2_10_rate_in",{"$f":"'T2-B(PP5)'!$E$380","v":0},"#'T2-B(PP5)'!$E$380"]
["pp5_bl5_2_10_rate_out",{"$f":"'T2-B(PP5)'!$H$380","v":0},"#'T2-B(PP5)'!$H$380"]
["pp5_bl5_2_10_total",{"$f":"'T2-B(PP5)'!$J$380","v":0},"#'T2-B(PP5)'!$J$380"]
["pp5_bl5_2_10_total_in",{"$f":"'T2-B(PP5)'!$F$380","v":0},"#'T2-B(PP5)'!$F$380"]
["pp5_bl5_2_10_total_out",{"$f":"'T2-B(PP5)'!$I$380","v":0},"#'T2-B(PP5)'!$I$380"]
["pp5_bl5_2_10_unit",{"$f":"'T2-B(PP5)'!$C$380","v":0},"#'T2-B(PP5)'!$C$380"]
["pp5_bl5_2_10_unit_in",{"$f":"'T2-B(PP5)'!$D$380","v":0},"#'T2-B(PP5)'!$D$380"]
["pp5_bl5_2_10_units_out",{"$f":"'T2-B(PP5)'!$G$380","v":0},"#'T2-B(PP5)'!$G$380"]
["pp5_bl5_2_11_name",{"$f":"'T2-B(PP5)'!$B$381","v":0},"#'T2-B(PP5)'!$B$381"]
["pp5_bl5_2_11_rate_in",{"$f":"'T2-B(PP5)'!$E$381","v":0},"#'T2-B(PP5)'!$E$381"]
["pp5_bl5_2_11_rate_out",{"$f":"'T2-B(PP5)'!$H$381","v":0},"#'T2-B(PP5)'!$H$381"]
["pp5_bl5_2_11_total",{"$f":"'T2-B(PP5)'!$J$381","v":0},"#'T2-B(PP5)'!$J$381"]
["pp5_bl5_2_11_total_in",{"$f":"'T2-B(PP5)'!$F$381","v":0},"#'T2-B(PP5)'!$F$381"]
["pp5_bl5_2_11_total_out",{"$f":"'T2-B(PP5)'!$I$381","v":0},"#'T2-B(PP5)'!$I$381"]
["pp5_bl5_2_11_unit",{"$f":"'T2-B(PP5)'!$C$381","v":0},"#'T2-B(PP5)'!$C$381"]
["pp5_bl5_2_11_unit_in",{"$f":"'T2-B(PP5)'!$D$381","v":0},"#'T2-B(PP5)'!$D$381"]
["pp5_bl5_2_11_units_out",{"$f":"'T2-B(PP5)'!$G$381","v":0},"#'T2-B(PP5)'!$G$381"]
["pp5_bl5_2_12_name",{"$f":"'T2-B(PP5)'!$B$382","v":0},"#'T2-B(PP5)'!$B$382"]
["pp5_bl5_2_12_rate_in",{"$f":"'T2-B(PP5)'!$E$382","v":0},"#'T2-B(PP5)'!$E$382"]
["pp5_bl5_2_12_rate_out",{"$f":"'T2-B(PP5)'!$H$382","v":0},"#'T2-B(PP5)'!$H$382"]
["pp5_bl5_2_12_total",{"$f":"'T2-B(PP5)'!$J$382","v":0},"#'T2-B(PP5)'!$J$382"]
["pp5_bl5_2_12_total_in",{"$f":"'T2-B(PP5)'!$F$382","v":0},"#'T2-B(PP5)'!$F$382"]
["pp5_bl5_2_12_total_out",{"$f":"'T2-B(PP5)'!$I$382","v":0},"#'T2-B(PP5)'!$I$382"]
["pp5_bl5_2_12_unit",{"$f":"'T2-B(PP5)'!$C$382","v":0},"#'T2-B(PP5)'!$C$382"]
["pp5_bl5_2_12_unit_in",{"$f":"'T2-B(PP5)'!$D$382","v":0},"#'T2-B(PP5)'!$D$382"]
["pp5_bl5_2_12_units_out",{"$f":"'T2-B(PP5)'!$G$382","v":0},"#'T2-B(PP5)'!$G$382"]
["pp5_bl5_2_13_name",{"$f":"'T2-B(PP5)'!$B$383","v":0},"#'T2-B(PP5)'!$B$383"]
["pp5_bl5_2_13_rate_in",{"$f":"'T2-B(PP5)'!$E$383","v":0},"#'T2-B(PP5)'!$E$383"]
["pp5_bl5_2_13_rate_out",{"$f":"'T2-B(PP5)'!$H$383","v":0},"#'T2-B(PP5)'!$H$383"]
["pp5_bl5_2_13_total",{"$f":"'T2-B(PP5)'!$J$383","v":0},"#'T2-B(PP5)'!$J$383"]
["pp5_bl5_2_13_total_in",{"$f":"'T2-B(PP5)'!$F$383","v":0},"#'T2-B(PP5)'!$F$383"]
["pp5_bl5_2_13_total_out",{"$f":"'T2-B(PP5)'!$I$383","v":0},"#'T2-B(PP5)'!$I$383"]
["pp5_bl5_2_13_unit",{"$f":"'T2-B(PP5)'!$C$383","v":0},"#'T2-B(PP5)'!$C$383"]
["pp5_bl5_2_13_unit_in",{"$f":"'T2-B(PP5)'!$D$383","v":0},"#'T2-B(PP5)'!$D$383"]
["pp5_bl5_2_13_units_out",{"$f":"'T2-B(PP5)'!$G$383","v":0},"#'T2-B(PP5)'!$G$383"]
["pp5_bl5_2_14_name",{"$f":"'T2-B(PP5)'!$B$384","v":0},"#'T2-B(PP5)'!$B$384"]
["pp5_bl5_2_14_rate_in",{"$f":"'T2-B(PP5)'!$E$384","v":0},"#'T2-B(PP5)'!$E$384"]
["pp5_bl5_2_14_rate_out",{"$f":"'T2-B(PP5)'!$H$384","v":0},"#'T2-B(PP5)'!$H$384"]
["pp5_bl5_2_14_total",{"$f":"'T2-B(PP5)'!$J$384","v":0},"#'T2-B(PP5)'!$J$384"]
["pp5_bl5_2_14_total_in",{"$f":"'T2-B(PP5)'!$F$384","v":0},"#'T2-B(PP5)'!$F$384"]
["pp5_bl5_2_14_total_out",{"$f":"'T2-B(PP5)'!$I$384","v":0},"#'T2-B(PP5)'!$I$384"]
["pp5_bl5_2_14_unit",{"$f":"'T2-B(PP5)'!$C$384","v":0},"#'T2-B(PP5)'!$C$384"]
["pp5_bl5_2_14_unit_in",{"$f":"'T2-B(PP5)'!$D$384","v":0},"#'T2-B(PP5)'!$D$384"]
["pp5_bl5_2_14_units_out",{"$f":"'T2-B(PP5)'!$G$384","v":0},"#'T2-B(PP5)'!$G$384"]
["pp5_bl5_2_15_name",{"$f":"'T2-B(PP5)'!$B$385","v":0},"#'T2-B(PP5)'!$B$385"]
["pp5_bl5_2_15_rate_in",{"$f":"'T2-B(PP5)'!$E$385","v":0},"#'T2-B(PP5)'!$E$385"]
["pp5_bl5_2_15_rate_out",{"$f":"'T2-B(PP5)'!$H$385","v":0},"#'T2-B(PP5)'!$H$385"]
["pp5_bl5_2_15_total",{"$f":"'T2-B(PP5)'!$J$385","v":0},"#'T2-B(PP5)'!$J$385"]
["pp5_bl5_2_15_total_in",{"$f":"'T2-B(PP5)'!$F$385","v":0},"#'T2-B(PP5)'!$F$385"]
["pp5_bl5_2_15_total_out",{"$f":"'T2-B(PP5)'!$I$385","v":0},"#'T2-B(PP5)'!$I$385"]
["pp5_bl5_2_15_unit",{"$f":"'T2-B(PP5)'!$C$385","v":0},"#'T2-B(PP5)'!$C$385"]
["pp5_bl5_2_15_unit_in",{"$f":"'T2-B(PP5)'!$D$385","v":0},"#'T2-B(PP5)'!$D$385"]
["pp5_bl5_2_15_units_out",{"$f":"'T2-B(PP5)'!$G$385","v":0},"#'T2-B(PP5)'!$G$385"]
["pp5_bl5_2_16_name",{"$f":"'T2-B(PP5)'!$B$386","v":0},"#'T2-B(PP5)'!$B$386"]
["pp5_bl5_2_16_rate_in",{"$f":"'T2-B(PP5)'!$E$386","v":0},"#'T2-B(PP5)'!$E$386"]
["pp5_bl5_2_16_rate_out",{"$f":"'T2-B(PP5)'!$H$386","v":0},"#'T2-B(PP5)'!$H$386"]
["pp5_bl5_2_16_total",{"$f":"'T2-B(PP5)'!$J$386","v":0},"#'T2-B(PP5)'!$J$386"]
["pp5_bl5_2_16_total_in",{"$f":"'T2-B(PP5)'!$F$386","v":0},"#'T2-B(PP5)'!$F$386"]
["pp5_bl5_2_16_total_out",{"$f":"'T2-B(PP5)'!$I$386","v":0},"#'T2-B(PP5)'!$I$386"]
["pp5_bl5_2_16_unit",{"$f":"'T2-B(PP5)'!$C$386","v":0},"#'T2-B(PP5)'!$C$386"]
["pp5_bl5_2_16_unit_in",{"$f":"'T2-B(PP5)'!$D$386","v":0},"#'T2-B(PP5)'!$D$386"]
["pp5_bl5_2_16_units_out",{"$f":"'T2-B(PP5)'!$G$386","v":0},"#'T2-B(PP5)'!$G$386"]
["pp5_bl5_2_17_name",{"$f":"'T2-B(PP5)'!$B$387","v":0},"#'T2-B(PP5)'!$B$387"]
["pp5_bl5_2_17_rate_in",{"$f":"'T2-B(PP5)'!$E$387","v":0},"#'T2-B(PP5)'!$E$387"]
["pp5_bl5_2_17_rate_out",{"$f":"'T2-B(PP5)'!$H$387","v":0},"#'T2-B(PP5)'!$H$387"]
["pp5_bl5_2_17_total",{"$f":"'T2-B(PP5)'!$J$387","v":0},"#'T2-B(PP5)'!$J$387"]
["pp5_bl5_2_17_total_in",{"$f":"'T2-B(PP5)'!$F$387","v":0},"#'T2-B(PP5)'!$F$387"]
["pp5_bl5_2_17_total_out",{"$f":"'T2-B(PP5)'!$I$387","v":0},"#'T2-B(PP5)'!$I$387"]
["pp5_bl5_2_17_unit",{"$f":"'T2-B(PP5)'!$C$387","v":0},"#'T2-B(PP5)'!$C$387"]
["pp5_bl5_2_17_unit_in",{"$f":"'T2-B(PP5)'!$D$387","v":0},"#'T2-B(PP5)'!$D$387"]
["pp5_bl5_2_17_units_out",{"$f":"'T2-B(PP5)'!$G$387","v":0},"#'T2-B(PP5)'!$G$387"]
["pp5_bl5_2_18_name",{"$f":"'T2-B(PP5)'!$B$388","v":0},"#'T2-B(PP5)'!$B$388"]
["pp5_bl5_2_18_rate_in",{"$f":"'T2-B(PP5)'!$E$388","v":0},"#'T2-B(PP5)'!$E$388"]
["pp5_bl5_2_18_rate_out",{"$f":"'T2-B(PP5)'!$H$388","v":0},"#'T2-B(PP5)'!$H$388"]
["pp5_bl5_2_18_total",{"$f":"'T2-B(PP5)'!$J$388","v":0},"#'T2-B(PP5)'!$J$388"]
["pp5_bl5_2_18_total_in",{"$f":"'T2-B(PP5)'!$F$388","v":0},"#'T2-B(PP5)'!$F$388"]
["pp5_bl5_2_18_total_out",{"$f":"'T2-B(PP5)'!$I$388","v":0},"#'T2-B(PP5)'!$I$388"]
["pp5_bl5_2_18_unit",{"$f":"'T2-B(PP5)'!$C$388","v":0},"#'T2-B(PP5)'!$C$388"]
["pp5_bl5_2_18_unit_in",{"$f":"'T2-B(PP5)'!$D$388","v":0},"#'T2-B(PP5)'!$D$388"]
["pp5_bl5_2_18_units_out",{"$f":"'T2-B(PP5)'!$G$388","v":0},"#'T2-B(PP5)'!$G$388"]
["pp5_bl5_2_19_name",{"$f":"'T2-B(PP5)'!$B$389","v":0},"#'T2-B(PP5)'!$B$389"]
["pp5_bl5_2_19_rate_in",{"$f":"'T2-B(PP5)'!$E$389","v":0},"#'T2-B(PP5)'!$E$389"]
["pp5_bl5_2_19_rate_out",{"$f":"'T2-B(PP5)'!$H$389","v":0},"#'T2-B(PP5)'!$H$389"]
["pp5_bl5_2_19_total",{"$f":"'T2-B(PP5)'!$J$389","v":0},"#'T2-B(PP5)'!$J$389"]
["pp5_bl5_2_19_total_in",{"$f":"'T2-B(PP5)'!$F$389","v":0},"#'T2-B(PP5)'!$F$389"]
["pp5_bl5_2_19_total_out",{"$f":"'T2-B(PP5)'!$I$389","v":0},"#'T2-B(PP5)'!$I$389"]
["pp5_bl5_2_19_unit",{"$f":"'T2-B(PP5)'!$C$389","v":0},"#'T2-B(PP5)'!$C$389"]
["pp5_bl5_2_19_unit_in",{"$f":"'T2-B(PP5)'!$D$389","v":0},"#'T2-B(PP5)'!$D$389"]
["pp5_bl5_2_19_units_out",{"$f":"'T2-B(PP5)'!$G$389","v":0},"#'T2-B(PP5)'!$G$389"]
["pp5_bl5_2_2_name",{"$f":"'T2-B(PP5)'!$B$372","v":0},"#'T2-B(PP5)'!$B$372"]
["pp5_bl5_2_2_rate_in",{"$f":"'T2-B(PP5)'!$E$372","v":0},"#'T2-B(PP5)'!$E$372"]
["pp5_bl5_2_2_rate_out",{"$f":"'T2-B(PP5)'!$H$372","v":0},"#'T2-B(PP5)'!$H$372"]
["pp5_bl5_2_2_total",{"$f":"'T2-B(PP5)'!$J$372","v":0},"#'T2-B(PP5)'!$J$372"]
["pp5_bl5_2_2_total_in",{"$f":"'T2-B(PP5)'!$F$372","v":0},"#'T2-B(PP5)'!$F$372"]
["pp5_bl5_2_2_total_out",{"$f":"'T2-B(PP5)'!$I$372","v":0},"#'T2-B(PP5)'!$I$372"]
["pp5_bl5_2_2_unit",{"$f":"'T2-B(PP5)'!$C$372","v":0},"#'T2-B(PP5)'!$C$372"]
["pp5_bl5_2_2_unit_in",{"$f":"'T2-B(PP5)'!$D$372","v":0},"#'T2-B(PP5)'!$D$372"]
["pp5_bl5_2_2_units_out",{"$f":"'T2-B(PP5)'!$G$372","v":0},"#'T2-B(PP5)'!$G$372"]
["pp5_bl5_2_20_name",{"$f":"'T2-B(PP5)'!$B$390","v":0},"#'T2-B(PP5)'!$B$390"]
["pp5_bl5_2_20_rate_in",{"$f":"'T2-B(PP5)'!$E$390","v":0},"#'T2-B(PP5)'!$E$390"]
["pp5_bl5_2_20_rate_out",{"$f":"'T2-B(PP5)'!$H$390","v":0},"#'T2-B(PP5)'!$H$390"]
["pp5_bl5_2_20_total",{"$f":"'T2-B(PP5)'!$J$390","v":0},"#'T2-B(PP5)'!$J$390"]
["pp5_bl5_2_20_total_in",{"$f":"'T2-B(PP5)'!$F$390","v":0},"#'T2-B(PP5)'!$F$390"]
["pp5_bl5_2_20_total_out",{"$f":"'T2-B(PP5)'!$I$390","v":0},"#'T2-B(PP5)'!$I$390"]
["pp5_bl5_2_20_unit",{"$f":"'T2-B(PP5)'!$C$390","v":0},"#'T2-B(PP5)'!$C$390"]
["pp5_bl5_2_20_unit_in",{"$f":"'T2-B(PP5)'!$D$390","v":0},"#'T2-B(PP5)'!$D$390"]
["pp5_bl5_2_20_units_out",{"$f":"'T2-B(PP5)'!$G$390","v":0},"#'T2-B(PP5)'!$G$390"]
["pp5_bl5_2_3_name",{"$f":"'T2-B(PP5)'!$B$373","v":0},"#'T2-B(PP5)'!$B$373"]
["pp5_bl5_2_3_rate_in",{"$f":"'T2-B(PP5)'!$E$373","v":0},"#'T2-B(PP5)'!$E$373"]
["pp5_bl5_2_3_rate_out",{"$f":"'T2-B(PP5)'!$H$373","v":0},"#'T2-B(PP5)'!$H$373"]
["pp5_bl5_2_3_total",{"$f":"'T2-B(PP5)'!$J$373","v":0},"#'T2-B(PP5)'!$J$373"]
["pp5_bl5_2_3_total_in",{"$f":"'T2-B(PP5)'!$F$373","v":0},"#'T2-B(PP5)'!$F$373"]
["pp5_bl5_2_3_total_out",{"$f":"'T2-B(PP5)'!$I$373","v":0},"#'T2-B(PP5)'!$I$373"]
["pp5_bl5_2_3_unit",{"$f":"'T2-B(PP5)'!$C$373","v":0},"#'T2-B(PP5)'!$C$373"]
["pp5_bl5_2_3_unit_in",{"$f":"'T2-B(PP5)'!$D$373","v":0},"#'T2-B(PP5)'!$D$373"]
["pp5_bl5_2_3_units_out",{"$f":"'T2-B(PP5)'!$G$373","v":0},"#'T2-B(PP5)'!$G$373"]
["pp5_bl5_2_4_name",{"$f":"'T2-B(PP5)'!$B$374","v":0},"#'T2-B(PP5)'!$B$374"]
["pp5_bl5_2_4_rate_in",{"$f":"'T2-B(PP5)'!$E$374","v":0},"#'T2-B(PP5)'!$E$374"]
["pp5_bl5_2_4_rate_out",{"$f":"'T2-B(PP5)'!$H$374","v":0},"#'T2-B(PP5)'!$H$374"]
["pp5_bl5_2_4_total",{"$f":"'T2-B(PP5)'!$J$374","v":0},"#'T2-B(PP5)'!$J$374"]
["pp5_bl5_2_4_total_in",{"$f":"'T2-B(PP5)'!$F$374","v":0},"#'T2-B(PP5)'!$F$374"]
["pp5_bl5_2_4_total_out",{"$f":"'T2-B(PP5)'!$I$374","v":0},"#'T2-B(PP5)'!$I$374"]
["pp5_bl5_2_4_unit",{"$f":"'T2-B(PP5)'!$C$374","v":0},"#'T2-B(PP5)'!$C$374"]
["pp5_bl5_2_4_unit_in",{"$f":"'T2-B(PP5)'!$D$374","v":0},"#'T2-B(PP5)'!$D$374"]
["pp5_bl5_2_4_units_out",{"$f":"'T2-B(PP5)'!$G$374","v":0},"#'T2-B(PP5)'!$G$374"]
["pp5_bl5_2_5_name",{"$f":"'T2-B(PP5)'!$B$375","v":0},"#'T2-B(PP5)'!$B$375"]
["pp5_bl5_2_5_rate_in",{"$f":"'T2-B(PP5)'!$E$375","v":0},"#'T2-B(PP5)'!$E$375"]
["pp5_bl5_2_5_rate_out",{"$f":"'T2-B(PP5)'!$H$375","v":0},"#'T2-B(PP5)'!$H$375"]
["pp5_bl5_2_5_total",{"$f":"'T2-B(PP5)'!$J$375","v":0},"#'T2-B(PP5)'!$J$375"]
["pp5_bl5_2_5_total_in",{"$f":"'T2-B(PP5)'!$F$375","v":0},"#'T2-B(PP5)'!$F$375"]
["pp5_bl5_2_5_total_out",{"$f":"'T2-B(PP5)'!$I$375","v":0},"#'T2-B(PP5)'!$I$375"]
["pp5_bl5_2_5_unit",{"$f":"'T2-B(PP5)'!$C$375","v":0},"#'T2-B(PP5)'!$C$375"]
["pp5_bl5_2_5_unit_in",{"$f":"'T2-B(PP5)'!$D$375","v":0},"#'T2-B(PP5)'!$D$375"]
["pp5_bl5_2_5_units_out",{"$f":"'T2-B(PP5)'!$G$375","v":0},"#'T2-B(PP5)'!$G$375"]
["pp5_bl5_2_6_name",{"$f":"'T2-B(PP5)'!$B$376","v":0},"#'T2-B(PP5)'!$B$376"]
["pp5_bl5_2_6_rate_in",{"$f":"'T2-B(PP5)'!$E$376","v":0},"#'T2-B(PP5)'!$E$376"]
["pp5_bl5_2_6_rate_out",{"$f":"'T2-B(PP5)'!$H$376","v":0},"#'T2-B(PP5)'!$H$376"]
["pp5_bl5_2_6_total",{"$f":"'T2-B(PP5)'!$J$376","v":0},"#'T2-B(PP5)'!$J$376"]
["pp5_bl5_2_6_total_in",{"$f":"'T2-B(PP5)'!$F$376","v":0},"#'T2-B(PP5)'!$F$376"]
["pp5_bl5_2_6_total_out",{"$f":"'T2-B(PP5)'!$I$376","v":0},"#'T2-B(PP5)'!$I$376"]
["pp5_bl5_2_6_unit",{"$f":"'T2-B(PP5)'!$C$376","v":0},"#'T2-B(PP5)'!$C$376"]
["pp5_bl5_2_6_unit_in",{"$f":"'T2-B(PP5)'!$D$376","v":0},"#'T2-B(PP5)'!$D$376"]
["pp5_bl5_2_6_units_out",{"$f":"'T2-B(PP5)'!$G$376","v":0},"#'T2-B(PP5)'!$G$376"]
["pp5_bl5_2_7_name",{"$f":"'T2-B(PP5)'!$B$377","v":0},"#'T2-B(PP5)'!$B$377"]
["pp5_bl5_2_7_rate_in",{"$f":"'T2-B(PP5)'!$E$377","v":0},"#'T2-B(PP5)'!$E$377"]
["pp5_bl5_2_7_rate_out",{"$f":"'T2-B(PP5)'!$H$377","v":0},"#'T2-B(PP5)'!$H$377"]
["pp5_bl5_2_7_total",{"$f":"'T2-B(PP5)'!$J$377","v":0},"#'T2-B(PP5)'!$J$377"]
["pp5_bl5_2_7_total_in",{"$f":"'T2-B(PP5)'!$F$377","v":0},"#'T2-B(PP5)'!$F$377"]
["pp5_bl5_2_7_total_out",{"$f":"'T2-B(PP5)'!$I$377","v":0},"#'T2-B(PP5)'!$I$377"]
["pp5_bl5_2_7_unit",{"$f":"'T2-B(PP5)'!$C$377","v":0},"#'T2-B(PP5)'!$C$377"]
["pp5_bl5_2_7_unit_in",{"$f":"'T2-B(PP5)'!$D$377","v":0},"#'T2-B(PP5)'!$D$377"]
["pp5_bl5_2_7_units_out",{"$f":"'T2-B(PP5)'!$G$377","v":0},"#'T2-B(PP5)'!$G$377"]
["pp5_bl5_2_8_name",{"$f":"'T2-B(PP5)'!$B$378","v":0},"#'T2-B(PP5)'!$B$378"]
["pp5_bl5_2_8_rate_in",{"$f":"'T2-B(PP5)'!$E$378","v":0},"#'T2-B(PP5)'!$E$378"]
["pp5_bl5_2_8_rate_out",{"$f":"'T2-B(PP5)'!$H$378","v":0},"#'T2-B(PP5)'!$H$378"]
["pp5_bl5_2_8_total",{"$f":"'T2-B(PP5)'!$J$378","v":0},"#'T2-B(PP5)'!$J$378"]
["pp5_bl5_2_8_total_in",{"$f":"'T2-B(PP5)'!$F$378","v":0},"#'T2-B(PP5)'!$F$378"]
["pp5_bl5_2_8_total_out",{"$f":"'T2-B(PP5)'!$I$378","v":0},"#'T2-B(PP5)'!$I$378"]
["pp5_bl5_2_8_unit",{"$f":"'T2-B(PP5)'!$C$378","v":0},"#'T2-B(PP5)'!$C$378"]
["pp5_bl5_2_8_unit_in",{"$f":"'T2-B(PP5)'!$D$378","v":0},"#'T2-B(PP5)'!$D$378"]
["pp5_bl5_2_8_units_out",{"$f":"'T2-B(PP5)'!$G$378","v":0},"#'T2-B(PP5)'!$G$378"]
["pp5_bl5_2_9_name",{"$f":"'T2-B(PP5)'!$B$379","v":0},"#'T2-B(PP5)'!$B$379"]
["pp5_bl5_2_9_rate_in",{"$f":"'T2-B(PP5)'!$E$379","v":0},"#'T2-B(PP5)'!$E$379"]
["pp5_bl5_2_9_rate_out",{"$f":"'T2-B(PP5)'!$H$379","v":0},"#'T2-B(PP5)'!$H$379"]
["pp5_bl5_2_9_total",{"$f":"'T2-B(PP5)'!$J$379","v":0},"#'T2-B(PP5)'!$J$379"]
["pp5_bl5_2_9_total_in",{"$f":"'T2-B(PP5)'!$F$379","v":0},"#'T2-B(PP5)'!$F$379"]
["pp5_bl5_2_9_total_out",{"$f":"'T2-B(PP5)'!$I$379","v":0},"#'T2-B(PP5)'!$I$379"]
["pp5_bl5_2_9_unit",{"$f":"'T2-B(PP5)'!$C$379","v":0},"#'T2-B(PP5)'!$C$379"]
["pp5_bl5_2_9_unit_in",{"$f":"'T2-B(PP5)'!$D$379","v":0},"#'T2-B(PP5)'!$D$379"]
["pp5_bl5_2_9_units_out",{"$f":"'T2-B(PP5)'!$G$379","v":0},"#'T2-B(PP5)'!$G$379"]
["pp5_bl5_2_total",{"$f":"'T2-B(PP5)'!$J$370","v":0},"#'T2-B(PP5)'!$J$370"]
["pp5_bl5_2_total_in",{"$f":"'T2-B(PP5)'!$F$370","v":0},"#'T2-B(PP5)'!$F$370"]
["pp5_bl5_2_total_out",{"$f":"'T2-B(PP5)'!$I$370","v":0},"#'T2-B(PP5)'!$I$370"]
["pp5_bl5_total",{"$f":"'T2-B(PP5)'!$J$391","v":0},"#'T2-B(PP5)'!$J$391"]
["pp5_bl5_total_in",{"$f":"'T2-B(PP5)'!$F$391","v":0},"#'T2-B(PP5)'!$F$391"]
["pp5_bl5_total_out",{"$f":"'T2-B(PP5)'!$I$391","v":0},"#'T2-B(PP5)'!$I$391"]
["pp5_bl6_1_1_name",{"$f":"'T2-B(PP5)'!$B$396","v":0},"#'T2-B(PP5)'!$B$396"]
["pp5_bl6_1_1_rate_in",{"$f":"'T2-B(PP5)'!$E$396","v":0},"#'T2-B(PP5)'!$E$396"]
["pp5_bl6_1_1_rate_out",{"$f":"'T2-B(PP5)'!$H$396","v":0},"#'T2-B(PP5)'!$H$396"]
["pp5_bl6_1_1_total",{"$f":"'T2-B(PP5)'!$J$396","v":0},"#'T2-B(PP5)'!$J$396"]
["pp5_bl6_1_1_total_in",{"$f":"'T2-B(PP5)'!$F$396","v":0},"#'T2-B(PP5)'!$F$396"]
["pp5_bl6_1_1_total_out",{"$f":"'T2-B(PP5)'!$I$396","v":0},"#'T2-B(PP5)'!$I$396"]
["pp5_bl6_1_1_unit",{"$f":"'T2-B(PP5)'!$C$396","v":0},"#'T2-B(PP5)'!$C$396"]
["pp5_bl6_1_1_unit_in",{"$f":"'T2-B(PP5)'!$D$396","v":0},"#'T2-B(PP5)'!$D$396"]
["pp5_bl6_1_1_units_out",{"$f":"'T2-B(PP5)'!$G$396","v":0},"#'T2-B(PP5)'!$G$396"]
["pp5_bl6_1_10_name",{"$f":"'T2-B(PP5)'!$B$405","v":0},"#'T2-B(PP5)'!$B$405"]
["pp5_bl6_1_10_rate_in",{"$f":"'T2-B(PP5)'!$E$405","v":0},"#'T2-B(PP5)'!$E$405"]
["pp5_bl6_1_10_rate_out",{"$f":"'T2-B(PP5)'!$H$405","v":0},"#'T2-B(PP5)'!$H$405"]
["pp5_bl6_1_10_total",{"$f":"'T2-B(PP5)'!$J$405","v":0},"#'T2-B(PP5)'!$J$405"]
["pp5_bl6_1_10_total_in",{"$f":"'T2-B(PP5)'!$F$405","v":0},"#'T2-B(PP5)'!$F$405"]
["pp5_bl6_1_10_total_out",{"$f":"'T2-B(PP5)'!$I$405","v":0},"#'T2-B(PP5)'!$I$405"]
["pp5_bl6_1_10_unit",{"$f":"'T2-B(PP5)'!$C$405","v":0},"#'T2-B(PP5)'!$C$405"]
["pp5_bl6_1_10_unit_in",{"$f":"'T2-B(PP5)'!$D$405","v":0},"#'T2-B(PP5)'!$D$405"]
["pp5_bl6_1_10_units_out",{"$f":"'T2-B(PP5)'!$G$405","v":0},"#'T2-B(PP5)'!$G$405"]
["pp5_bl6_1_2_name",{"$f":"'T2-B(PP5)'!$B$397","v":0},"#'T2-B(PP5)'!$B$397"]
["pp5_bl6_1_2_rate_in",{"$f":"'T2-B(PP5)'!$E$397","v":0},"#'T2-B(PP5)'!$E$397"]
["pp5_bl6_1_2_rate_out",{"$f":"'T2-B(PP5)'!$H$397","v":0},"#'T2-B(PP5)'!$H$397"]
["pp5_bl6_1_2_total",{"$f":"'T2-B(PP5)'!$J$397","v":0},"#'T2-B(PP5)'!$J$397"]
["pp5_bl6_1_2_total_in",{"$f":"'T2-B(PP5)'!$F$397","v":0},"#'T2-B(PP5)'!$F$397"]
["pp5_bl6_1_2_total_out",{"$f":"'T2-B(PP5)'!$I$397","v":0},"#'T2-B(PP5)'!$I$397"]
["pp5_bl6_1_2_unit",{"$f":"'T2-B(PP5)'!$C$397","v":0},"#'T2-B(PP5)'!$C$397"]
["pp5_bl6_1_2_unit_in",{"$f":"'T2-B(PP5)'!$D$397","v":0},"#'T2-B(PP5)'!$D$397"]
["pp5_bl6_1_2_units_out",{"$f":"'T2-B(PP5)'!$G$397","v":0},"#'T2-B(PP5)'!$G$397"]
["pp5_bl6_1_3_name",{"$f":"'T2-B(PP5)'!$B$398","v":0},"#'T2-B(PP5)'!$B$398"]
["pp5_bl6_1_3_rate_in",{"$f":"'T2-B(PP5)'!$E$398","v":0},"#'T2-B(PP5)'!$E$398"]
["pp5_bl6_1_3_rate_out",{"$f":"'T2-B(PP5)'!$H$398","v":0},"#'T2-B(PP5)'!$H$398"]
["pp5_bl6_1_3_total",{"$f":"'T2-B(PP5)'!$J$398","v":0},"#'T2-B(PP5)'!$J$398"]
["pp5_bl6_1_3_total_in",{"$f":"'T2-B(PP5)'!$F$398","v":0},"#'T2-B(PP5)'!$F$398"]
["pp5_bl6_1_3_total_out",{"$f":"'T2-B(PP5)'!$I$398","v":0},"#'T2-B(PP5)'!$I$398"]
["pp5_bl6_1_3_unit",{"$f":"'T2-B(PP5)'!$C$398","v":0},"#'T2-B(PP5)'!$C$398"]
["pp5_bl6_1_3_unit_in",{"$f":"'T2-B(PP5)'!$D$398","v":0},"#'T2-B(PP5)'!$D$398"]
["pp5_bl6_1_3_units_out",{"$f":"'T2-B(PP5)'!$G$398","v":0},"#'T2-B(PP5)'!$G$398"]
["pp5_bl6_1_4_name",{"$f":"'T2-B(PP5)'!$B$399","v":0},"#'T2-B(PP5)'!$B$399"]
["pp5_bl6_1_4_rate_in",{"$f":"'T2-B(PP5)'!$E$399","v":0},"#'T2-B(PP5)'!$E$399"]
["pp5_bl6_1_4_rate_out",{"$f":"'T2-B(PP5)'!$H$399","v":0},"#'T2-B(PP5)'!$H$399"]
["pp5_bl6_1_4_total",{"$f":"'T2-B(PP5)'!$J$399","v":0},"#'T2-B(PP5)'!$J$399"]
["pp5_bl6_1_4_total_in",{"$f":"'T2-B(PP5)'!$F$399","v":0},"#'T2-B(PP5)'!$F$399"]
["pp5_bl6_1_4_total_out",{"$f":"'T2-B(PP5)'!$I$399","v":0},"#'T2-B(PP5)'!$I$399"]
["pp5_bl6_1_4_unit",{"$f":"'T2-B(PP5)'!$C$399","v":0},"#'T2-B(PP5)'!$C$399"]
["pp5_bl6_1_4_unit_in",{"$f":"'T2-B(PP5)'!$D$399","v":0},"#'T2-B(PP5)'!$D$399"]
["pp5_bl6_1_4_units_out",{"$f":"'T2-B(PP5)'!$G$399","v":0},"#'T2-B(PP5)'!$G$399"]
["pp5_bl6_1_5_name",{"$f":"'T2-B(PP5)'!$B$400","v":0},"#'T2-B(PP5)'!$B$400"]
["pp5_bl6_1_5_rate_in",{"$f":"'T2-B(PP5)'!$E$400","v":0},"#'T2-B(PP5)'!$E$400"]
["pp5_bl6_1_5_rate_out",{"$f":"'T2-B(PP5)'!$H$400","v":0},"#'T2-B(PP5)'!$H$400"]
["pp5_bl6_1_5_total",{"$f":"'T2-B(PP5)'!$J$400","v":0},"#'T2-B(PP5)'!$J$400"]
["pp5_bl6_1_5_total_in",{"$f":"'T2-B(PP5)'!$F$400","v":0},"#'T2-B(PP5)'!$F$400"]
["pp5_bl6_1_5_total_out",{"$f":"'T2-B(PP5)'!$I$400","v":0},"#'T2-B(PP5)'!$I$400"]
["pp5_bl6_1_5_unit",{"$f":"'T2-B(PP5)'!$C$400","v":0},"#'T2-B(PP5)'!$C$400"]
["pp5_bl6_1_5_unit_in",{"$f":"'T2-B(PP5)'!$D$400","v":0},"#'T2-B(PP5)'!$D$400"]
["pp5_bl6_1_5_units_out",{"$f":"'T2-B(PP5)'!$G$400","v":0},"#'T2-B(PP5)'!$G$400"]
["pp5_bl6_1_6_name",{"$f":"'T2-B(PP5)'!$B$401","v":0},"#'T2-B(PP5)'!$B$401"]
["pp5_bl6_1_6_rate_in",{"$f":"'T2-B(PP5)'!$E$401","v":0},"#'T2-B(PP5)'!$E$401"]
["pp5_bl6_1_6_rate_out",{"$f":"'T2-B(PP5)'!$H$401","v":0},"#'T2-B(PP5)'!$H$401"]
["pp5_bl6_1_6_total",{"$f":"'T2-B(PP5)'!$J$401","v":0},"#'T2-B(PP5)'!$J$401"]
["pp5_bl6_1_6_total_in",{"$f":"'T2-B(PP5)'!$F$401","v":0},"#'T2-B(PP5)'!$F$401"]
["pp5_bl6_1_6_total_out",{"$f":"'T2-B(PP5)'!$I$401","v":0},"#'T2-B(PP5)'!$I$401"]
["pp5_bl6_1_6_unit",{"$f":"'T2-B(PP5)'!$C$401","v":0},"#'T2-B(PP5)'!$C$401"]
["pp5_bl6_1_6_unit_in",{"$f":"'T2-B(PP5)'!$D$401","v":0},"#'T2-B(PP5)'!$D$401"]
["pp5_bl6_1_6_units_out",{"$f":"'T2-B(PP5)'!$G$401","v":0},"#'T2-B(PP5)'!$G$401"]
["pp5_bl6_1_7_name",{"$f":"'T2-B(PP5)'!$B$402","v":0},"#'T2-B(PP5)'!$B$402"]
["pp5_bl6_1_7_rate_in",{"$f":"'T2-B(PP5)'!$E$402","v":0},"#'T2-B(PP5)'!$E$402"]
["pp5_bl6_1_7_rate_out",{"$f":"'T2-B(PP5)'!$H$402","v":0},"#'T2-B(PP5)'!$H$402"]
["pp5_bl6_1_7_total",{"$f":"'T2-B(PP5)'!$J$402","v":0},"#'T2-B(PP5)'!$J$402"]
["pp5_bl6_1_7_total_in",{"$f":"'T2-B(PP5)'!$F$402","v":0},"#'T2-B(PP5)'!$F$402"]
["pp5_bl6_1_7_total_out",{"$f":"'T2-B(PP5)'!$I$402","v":0},"#'T2-B(PP5)'!$I$402"]
["pp5_bl6_1_7_unit",{"$f":"'T2-B(PP5)'!$C$402","v":0},"#'T2-B(PP5)'!$C$402"]
["pp5_bl6_1_7_unit_in",{"$f":"'T2-B(PP5)'!$D$402","v":0},"#'T2-B(PP5)'!$D$402"]
["pp5_bl6_1_7_units_out",{"$f":"'T2-B(PP5)'!$G$402","v":0},"#'T2-B(PP5)'!$G$402"]
["pp5_bl6_1_8_name",{"$f":"'T2-B(PP5)'!$B$403","v":0},"#'T2-B(PP5)'!$B$403"]
["pp5_bl6_1_8_rate_in",{"$f":"'T2-B(PP5)'!$E$403","v":0},"#'T2-B(PP5)'!$E$403"]
["pp5_bl6_1_8_rate_out",{"$f":"'T2-B(PP5)'!$H$403","v":0},"#'T2-B(PP5)'!$H$403"]
["pp5_bl6_1_8_total",{"$f":"'T2-B(PP5)'!$J$403","v":0},"#'T2-B(PP5)'!$J$403"]
["pp5_bl6_1_8_total_in",{"$f":"'T2-B(PP5)'!$F$403","v":0},"#'T2-B(PP5)'!$F$403"]
["pp5_bl6_1_8_total_out",{"$f":"'T2-B(PP5)'!$I$403","v":0},"#'T2-B(PP5)'!$I$403"]
["pp5_bl6_1_8_unit",{"$f":"'T2-B(PP5)'!$C$403","v":0},"#'T2-B(PP5)'!$C$403"]
["pp5_bl6_1_8_unit_in",{"$f":"'T2-B(PP5)'!$D$403","v":0},"#'T2-B(PP5)'!$D$403"]
["pp5_bl6_1_8_units_out",{"$f":"'T2-B(PP5)'!$G$403","v":0},"#'T2-B(PP5)'!$G$403"]
["pp5_bl6_1_9_name",{"$f":"'T2-B(PP5)'!$B$404","v":0},"#'T2-B(PP5)'!$B$404"]
["pp5_bl6_1_9_rate_in",{"$f":"'T2-B(PP5)'!$E$404","v":0},"#'T2-B(PP5)'!$E$404"]
["pp5_bl6_1_9_rate_out",{"$f":"'T2-B(PP5)'!$H$404","v":0},"#'T2-B(PP5)'!$H$404"]
["pp5_bl6_1_9_total",{"$f":"'T2-B(PP5)'!$J$404","v":0},"#'T2-B(PP5)'!$J$404"]
["pp5_bl6_1_9_total_in",{"$f":"'T2-B(PP5)'!$F$404","v":0},"#'T2-B(PP5)'!$F$404"]
["pp5_bl6_1_9_total_out",{"$f":"'T2-B(PP5)'!$I$404","v":0},"#'T2-B(PP5)'!$I$404"]
["pp5_bl6_1_9_unit",{"$f":"'T2-B(PP5)'!$C$404","v":0},"#'T2-B(PP5)'!$C$404"]
["pp5_bl6_1_9_unit_in",{"$f":"'T2-B(PP5)'!$D$404","v":0},"#'T2-B(PP5)'!$D$404"]
["pp5_bl6_1_9_units_out",{"$f":"'T2-B(PP5)'!$G$404","v":0},"#'T2-B(PP5)'!$G$404"]
["pp5_bl6_1_total",{"$f":"'T2-B(PP5)'!$J$395","v":0},"#'T2-B(PP5)'!$J$395"]
["pp5_bl6_1_total_in",{"$f":"'T2-B(PP5)'!$F$395","v":0},"#'T2-B(PP5)'!$F$395"]
["pp5_bl6_1_total_out",{"$f":"'T2-B(PP5)'!$I$395","v":0},"#'T2-B(PP5)'!$I$395"]
["pp5_bl6_2_1_name",{"$f":"'T2-B(PP5)'!$B$407","v":0},"#'T2-B(PP5)'!$B$407"]
["pp5_bl6_2_1_rate_in",{"$f":"'T2-B(PP5)'!$E$407","v":0},"#'T2-B(PP5)'!$E$407"]
["pp5_bl6_2_1_rate_out",{"$f":"'T2-B(PP5)'!$H$407","v":0},"#'T2-B(PP5)'!$H$407"]
["pp5_bl6_2_1_total",{"$f":"'T2-B(PP5)'!$J$407","v":0},"#'T2-B(PP5)'!$J$407"]
["pp5_bl6_2_1_total_in",{"$f":"'T2-B(PP5)'!$F$407","v":0},"#'T2-B(PP5)'!$F$407"]
["pp5_bl6_2_1_total_out",{"$f":"'T2-B(PP5)'!$I$407","v":0},"#'T2-B(PP5)'!$I$407"]
["pp5_bl6_2_1_unit",{"$f":"'T2-B(PP5)'!$C$407","v":0},"#'T2-B(PP5)'!$C$407"]
["pp5_bl6_2_1_unit_in",{"$f":"'T2-B(PP5)'!$D$407","v":0},"#'T2-B(PP5)'!$D$407"]
["pp5_bl6_2_1_units_out",{"$f":"'T2-B(PP5)'!$G$407","v":0},"#'T2-B(PP5)'!$G$407"]
["pp5_bl6_2_10_name",{"$f":"'T2-B(PP5)'!$B$416","v":0},"#'T2-B(PP5)'!$B$416"]
["pp5_bl6_2_10_rate_in",{"$f":"'T2-B(PP5)'!$E$416","v":0},"#'T2-B(PP5)'!$E$416"]
["pp5_bl6_2_10_rate_out",{"$f":"'T2-B(PP5)'!$H$416","v":0},"#'T2-B(PP5)'!$H$416"]
["pp5_bl6_2_10_total",{"$f":"'T2-B(PP5)'!$J$416","v":0},"#'T2-B(PP5)'!$J$416"]
["pp5_bl6_2_10_total_in",{"$f":"'T2-B(PP5)'!$F$416","v":0},"#'T2-B(PP5)'!$F$416"]
["pp5_bl6_2_10_total_out",{"$f":"'T2-B(PP5)'!$I$416","v":0},"#'T2-B(PP5)'!$I$416"]
["pp5_bl6_2_10_unit",{"$f":"'T2-B(PP5)'!$C$416","v":0},"#'T2-B(PP5)'!$C$416"]
["pp5_bl6_2_10_unit_in",{"$f":"'T2-B(PP5)'!$D$416","v":0},"#'T2-B(PP5)'!$D$416"]
["pp5_bl6_2_10_units_out",{"$f":"'T2-B(PP5)'!$G$416","v":0},"#'T2-B(PP5)'!$G$416"]
["pp5_bl6_2_2_name",{"$f":"'T2-B(PP5)'!$B$408","v":0},"#'T2-B(PP5)'!$B$408"]
["pp5_bl6_2_2_rate_in",{"$f":"'T2-B(PP5)'!$E$408","v":0},"#'T2-B(PP5)'!$E$408"]
["pp5_bl6_2_2_rate_out",{"$f":"'T2-B(PP5)'!$H$408","v":0},"#'T2-B(PP5)'!$H$408"]
["pp5_bl6_2_2_total",{"$f":"'T2-B(PP5)'!$J$408","v":0},"#'T2-B(PP5)'!$J$408"]
["pp5_bl6_2_2_total_in",{"$f":"'T2-B(PP5)'!$F$408","v":0},"#'T2-B(PP5)'!$F$408"]
["pp5_bl6_2_2_total_out",{"$f":"'T2-B(PP5)'!$I$408","v":0},"#'T2-B(PP5)'!$I$408"]
["pp5_bl6_2_2_unit",{"$f":"'T2-B(PP5)'!$C$408","v":0},"#'T2-B(PP5)'!$C$408"]
["pp5_bl6_2_2_unit_in",{"$f":"'T2-B(PP5)'!$D$408","v":0},"#'T2-B(PP5)'!$D$408"]
["pp5_bl6_2_2_units_out",{"$f":"'T2-B(PP5)'!$G$408","v":0},"#'T2-B(PP5)'!$G$408"]
["pp5_bl6_2_3_name",{"$f":"'T2-B(PP5)'!$B$409","v":0},"#'T2-B(PP5)'!$B$409"]
["pp5_bl6_2_3_rate_in",{"$f":"'T2-B(PP5)'!$E$409","v":0},"#'T2-B(PP5)'!$E$409"]
["pp5_bl6_2_3_rate_out",{"$f":"'T2-B(PP5)'!$H$409","v":0},"#'T2-B(PP5)'!$H$409"]
["pp5_bl6_2_3_total",{"$f":"'T2-B(PP5)'!$J$409","v":0},"#'T2-B(PP5)'!$J$409"]
["pp5_bl6_2_3_total_in",{"$f":"'T2-B(PP5)'!$F$409","v":0},"#'T2-B(PP5)'!$F$409"]
["pp5_bl6_2_3_total_out",{"$f":"'T2-B(PP5)'!$I$409","v":0},"#'T2-B(PP5)'!$I$409"]
["pp5_bl6_2_3_unit",{"$f":"'T2-B(PP5)'!$C$409","v":0},"#'T2-B(PP5)'!$C$409"]
["pp5_bl6_2_3_unit_in",{"$f":"'T2-B(PP5)'!$D$409","v":0},"#'T2-B(PP5)'!$D$409"]
["pp5_bl6_2_3_units_out",{"$f":"'T2-B(PP5)'!$G$409","v":0},"#'T2-B(PP5)'!$G$409"]
["pp5_bl6_2_4_name",{"$f":"'T2-B(PP5)'!$B$410","v":0},"#'T2-B(PP5)'!$B$410"]
["pp5_bl6_2_4_rate_in",{"$f":"'T2-B(PP5)'!$E$410","v":0},"#'T2-B(PP5)'!$E$410"]
["pp5_bl6_2_4_rate_out",{"$f":"'T2-B(PP5)'!$H$410","v":0},"#'T2-B(PP5)'!$H$410"]
["pp5_bl6_2_4_total",{"$f":"'T2-B(PP5)'!$J$410","v":0},"#'T2-B(PP5)'!$J$410"]
["pp5_bl6_2_4_total_in",{"$f":"'T2-B(PP5)'!$F$410","v":0},"#'T2-B(PP5)'!$F$410"]
["pp5_bl6_2_4_total_out",{"$f":"'T2-B(PP5)'!$I$410","v":0},"#'T2-B(PP5)'!$I$410"]
["pp5_bl6_2_4_unit",{"$f":"'T2-B(PP5)'!$C$410","v":0},"#'T2-B(PP5)'!$C$410"]
["pp5_bl6_2_4_unit_in",{"$f":"'T2-B(PP5)'!$D$410","v":0},"#'T2-B(PP5)'!$D$410"]
["pp5_bl6_2_4_units_out",{"$f":"'T2-B(PP5)'!$G$410","v":0},"#'T2-B(PP5)'!$G$410"]
["pp5_bl6_2_5_name",{"$f":"'T2-B(PP5)'!$B$411","v":0},"#'T2-B(PP5)'!$B$411"]
["pp5_bl6_2_5_rate_in",{"$f":"'T2-B(PP5)'!$E$411","v":0},"#'T2-B(PP5)'!$E$411"]
["pp5_bl6_2_5_rate_out",{"$f":"'T2-B(PP5)'!$H$411","v":0},"#'T2-B(PP5)'!$H$411"]
["pp5_bl6_2_5_total",{"$f":"'T2-B(PP5)'!$J$411","v":0},"#'T2-B(PP5)'!$J$411"]
["pp5_bl6_2_5_total_in",{"$f":"'T2-B(PP5)'!$F$411","v":0},"#'T2-B(PP5)'!$F$411"]
["pp5_bl6_2_5_total_out",{"$f":"'T2-B(PP5)'!$I$411","v":0},"#'T2-B(PP5)'!$I$411"]
["pp5_bl6_2_5_unit",{"$f":"'T2-B(PP5)'!$C$411","v":0},"#'T2-B(PP5)'!$C$411"]
["pp5_bl6_2_5_unit_in",{"$f":"'T2-B(PP5)'!$D$411","v":0},"#'T2-B(PP5)'!$D$411"]
["pp5_bl6_2_5_units_out",{"$f":"'T2-B(PP5)'!$G$411","v":0},"#'T2-B(PP5)'!$G$411"]
["pp5_bl6_2_6_name",{"$f":"'T2-B(PP5)'!$B$412","v":0},"#'T2-B(PP5)'!$B$412"]
["pp5_bl6_2_6_rate_in",{"$f":"'T2-B(PP5)'!$E$412","v":0},"#'T2-B(PP5)'!$E$412"]
["pp5_bl6_2_6_rate_out",{"$f":"'T2-B(PP5)'!$H$412","v":0},"#'T2-B(PP5)'!$H$412"]
["pp5_bl6_2_6_total",{"$f":"'T2-B(PP5)'!$J$412","v":0},"#'T2-B(PP5)'!$J$412"]
["pp5_bl6_2_6_total_in",{"$f":"'T2-B(PP5)'!$F$412","v":0},"#'T2-B(PP5)'!$F$412"]
["pp5_bl6_2_6_total_out",{"$f":"'T2-B(PP5)'!$I$412","v":0},"#'T2-B(PP5)'!$I$412"]
["pp5_bl6_2_6_unit",{"$f":"'T2-B(PP5)'!$C$412","v":0},"#'T2-B(PP5)'!$C$412"]
["pp5_bl6_2_6_unit_in",{"$f":"'T2-B(PP5)'!$D$412","v":0},"#'T2-B(PP5)'!$D$412"]
["pp5_bl6_2_6_units_out",{"$f":"'T2-B(PP5)'!$G$412","v":0},"#'T2-B(PP5)'!$G$412"]
["pp5_bl6_2_7_name",{"$f":"'T2-B(PP5)'!$B$413","v":0},"#'T2-B(PP5)'!$B$413"]
["pp5_bl6_2_7_rate_in",{"$f":"'T2-B(PP5)'!$E$413","v":0},"#'T2-B(PP5)'!$E$413"]
["pp5_bl6_2_7_rate_out",{"$f":"'T2-B(PP5)'!$H$413","v":0},"#'T2-B(PP5)'!$H$413"]
["pp5_bl6_2_7_total",{"$f":"'T2-B(PP5)'!$J$413","v":0},"#'T2-B(PP5)'!$J$413"]
["pp5_bl6_2_7_total_in",{"$f":"'T2-B(PP5)'!$F$413","v":0},"#'T2-B(PP5)'!$F$413"]
["pp5_bl6_2_7_total_out",{"$f":"'T2-B(PP5)'!$I$413","v":0},"#'T2-B(PP5)'!$I$413"]
["pp5_bl6_2_7_unit",{"$f":"'T2-B(PP5)'!$C$413","v":0},"#'T2-B(PP5)'!$C$413"]
["pp5_bl6_2_7_unit_in",{"$f":"'T2-B(PP5)'!$D$413","v":0},"#'T2-B(PP5)'!$D$413"]
["pp5_bl6_2_7_units_out",{"$f":"'T2-B(PP5)'!$G$413","v":0},"#'T2-B(PP5)'!$G$413"]
["pp5_bl6_2_8_name",{"$f":"'T2-B(PP5)'!$B$414","v":0},"#'T2-B(PP5)'!$B$414"]
["pp5_bl6_2_8_rate_in",{"$f":"'T2-B(PP5)'!$E$414","v":0},"#'T2-B(PP5)'!$E$414"]
["pp5_bl6_2_8_rate_out",{"$f":"'T2-B(PP5)'!$H$414","v":0},"#'T2-B(PP5)'!$H$414"]
["pp5_bl6_2_8_total",{"$f":"'T2-B(PP5)'!$J$414","v":0},"#'T2-B(PP5)'!$J$414"]
["pp5_bl6_2_8_total_in",{"$f":"'T2-B(PP5)'!$F$414","v":0},"#'T2-B(PP5)'!$F$414"]
["pp5_bl6_2_8_total_out",{"$f":"'T2-B(PP5)'!$I$414","v":0},"#'T2-B(PP5)'!$I$414"]
["pp5_bl6_2_8_unit",{"$f":"'T2-B(PP5)'!$C$414","v":0},"#'T2-B(PP5)'!$C$414"]
["pp5_bl6_2_8_unit_in",{"$f":"'T2-B(PP5)'!$D$414","v":0},"#'T2-B(PP5)'!$D$414"]
["pp5_bl6_2_8_units_out",{"$f":"'T2-B(PP5)'!$G$414","v":0},"#'T2-B(PP5)'!$G$414"]
["pp5_bl6_2_9_name",{"$f":"'T2-B(PP5)'!$B$415","v":0},"#'T2-B(PP5)'!$B$415"]
["pp5_bl6_2_9_rate_in",{"$f":"'T2-B(PP5)'!$E$415","v":0},"#'T2-B(PP5)'!$E$415"]
["pp5_bl6_2_9_rate_out",{"$f":"'T2-B(PP5)'!$H$415","v":0},"#'T2-B(PP5)'!$H$415"]
["pp5_bl6_2_9_total",{"$f":"'T2-B(PP5)'!$J$415","v":0},"#'T2-B(PP5)'!$J$415"]
["pp5_bl6_2_9_total_in",{"$f":"'T2-B(PP5)'!$F$415","v":0},"#'T2-B(PP5)'!$F$415"]
["pp5_bl6_2_9_total_out",{"$f":"'T2-B(PP5)'!$I$415","v":0},"#'T2-B(PP5)'!$I$415"]
["pp5_bl6_2_9_unit",{"$f":"'T2-B(PP5)'!$C$415","v":0},"#'T2-B(PP5)'!$C$415"]
["pp5_bl6_2_9_unit_in",{"$f":"'T2-B(PP5)'!$D$415","v":0},"#'T2-B(PP5)'!$D$415"]
["pp5_bl6_2_9_units_out",{"$f":"'T2-B(PP5)'!$G$415","v":0},"#'T2-B(PP5)'!$G$415"]
["pp5_bl6_2_total",{"$f":"'T2-B(PP5)'!$J$406","v":0},"#'T2-B(PP5)'!$J$406"]
["pp5_bl6_2_total_in",{"$f":"'T2-B(PP5)'!$F$406","v":0},"#'T2-B(PP5)'!$F$406"]
["pp5_bl6_2_total_out",{"$f":"'T2-B(PP5)'!$I$406","v":0},"#'T2-B(PP5)'!$I$406"]
["pp5_bl6_total",{"$f":"'T2-B(PP5)'!$J$417","v":0},"#'T2-B(PP5)'!$J$417"]
["pp5_bl6_total_in",{"$f":"'T2-B(PP5)'!$F$417","v":0},"#'T2-B(PP5)'!$F$417"]
["pp5_bl6_total_out",{"$f":"'T2-B(PP5)'!$I$417","v":0},"#'T2-B(PP5)'!$I$417"]
["pp5_bl7_1_1_name",{"$f":"'T2-B(PP5)'!$B$420","v":0},"#'T2-B(PP5)'!$B$420"]
["pp5_bl7_1_1_rate_in",{"$f":"'T2-B(PP5)'!$H$420","v":0},"#'T2-B(PP5)'!$H$420"]
["pp5_bl7_1_1_rate_out",{"$f":"'T2-B(PP5)'!$N$420","v":0},"#'T2-B(PP5)'!$N$420"]
["pp5_bl7_1_1_total",{"$f":"'T2-B(PP5)'!$I$420","v":0},"#'T2-B(PP5)'!$I$420"]
["pp5_bl7_1_1_total_in",{"$f":"'T2-B(PP5)'!$P$420","v":0},"#'T2-B(PP5)'!$P$420"]
["pp5_bl7_1_1_total_out",{"$f":"'T2-B(PP5)'!$O$420","v":0},"#'T2-B(PP5)'!$O$420"]
["pp5_bl7_1_1_unit",{"$f":"'T2-B(PP5)'!$F$420","v":0},"#'T2-B(PP5)'!$F$420"]
["pp5_bl7_1_1_unit_in",{"$f":"'T2-B(PP5)'!$G$420","v":0},"#'T2-B(PP5)'!$G$420"]
["pp5_bl7_1_1_units_out",{"$f":"'T2-B(PP5)'!$M$420","v":0},"#'T2-B(PP5)'!$M$420"]
["pp5_competence",{"$f":"'PP5'!$B$38","v":0},"#'PP5'!$B$38"]
["pp5_country",{"$f":"'PP5'!$K$14","v":2},"#'PP5'!$K$14"]
["pp5_fax",{"$f":"'PP5'!$C$29","v":0},"#'PP5'!$C$29"]
["pp5_is_bg",{"$f":"'PP5'!$D$13","v":0},"#'PP5'!$D$13"]
["pp5_is_pc",{"$f":"'PP5'!$F$13","v":0},"#'PP5'!$F$13"]
["pp5_legal_representative",{"$f":"'PP5'!$C$23","v":0},"#'PP5'!$C$23"]
["pp5_legal_representative_position",{"$f":"'PP5'!$C$25","v":0},"#'PP5'!$C$25"]
["pp5_mail",{"$f":"'PP5'!$C$31","v":0},"#'PP5'!$C$31"]
["pp5_nat_code",{"$f":"'PP5'!$C$70","v":0},"#'PP5'!$C$70"]
["pp5_nuts3",{"$f":"'PP5'!$C$15","v":0},"#'PP5'!$C$15"]
["pp5_organisation_en",{"$f":"'PP5'!$C$7","v":0},"#'PP5'!$C$7"]
["pp5_organisation_native",{"$f":"'PP5'!$C$9","v":0},"#'PP5'!$C$9"]
["pp5_pe_date1",{"$f":"'PP5'!$G$47","v":0},"#'PP5'!$G$47"]
["pp5_pe_date2",{"$f":"'PP5'!$G$55","v":0},"#'PP5'!$G$55"]
["pp5_pe_date3",{"$f":"'PP5'!$G$63","v":0},"#'PP5'!$G$63"]
["pp5_pe_ga1",{"$f":"'PP5'!$G$46","v":0},"#'PP5'!$G$46"]
["pp5_pe_ga2",{"$f":"'PP5'!$G$54","v":0},"#'PP5'!$G$54"]
["pp5_pe_ga3",{"$f":"'PP5'!$G$62","v":0},"#'PP5'!$G$62"]
["pp5_pe_ip1",{"$f":"'PP5'!$C$43","v":0},"#'PP5'!$C$43"]
["pp5_pe_ip2",{"$f":"'PP5'!$C$51","v":0},"#'PP5'!$C$51"]
["pp5_pe_ip3",{"$f":"'PP5'!$C$59","v":0},"#'PP5'!$C$59"]
["pp5_pe_or1",{"$f":"'PP5'!$C$47","v":0},"#'PP5'!$C$47"]
["pp5_pe_or2",{"$f":"'PP5'!$C$55","v":0},"#'PP5'!$C$55"]
["pp5_pe_or3",{"$f":"'PP5'!$C$63","v":0},"#'PP5'!$C$63"]
["pp5_pe_pt1",{"$f":"'PP5'!$C$44","v":0},"#'PP5'!$C$44"]
["pp5_pe_pt2",{"$f":"'PP5'!$C$52","v":0},"#'PP5'!$C$52"]
["pp5_pe_pt3",{"$f":"'PP5'!$C$60","v":0},"#'PP5'!$C$60"]
["pp5_pe_sd1",{"$f":"'PP5'!$C$45","v":0},"#'PP5'!$C$45"]
["pp5_pe_sd2",{"$f":"'PP5'!$C$53","v":0},"#'PP5'!$C$53"]
["pp5_pe_sd3",{"$f":"'PP5'!$C$61","v":0},"#'PP5'!$C$61"]
["pp5_pe_tev1",{"$f":"'PP5'!$C$46","v":0},"#'PP5'!$C$46"]
["pp5_pe_tev2",{"$f":"'PP5'!$C$54","v":0},"#'PP5'!$C$54"]
["pp5_pe_tev3",{"$f":"'PP5'!$C$62","v":0},"#'PP5'!$C$62"]
["pp5_phone",{"$f":"'PP5'!$C$27","v":0},"#'PP5'!$C$27"]
["pp5_post_code",{"$f":"'PP5'!$C$21","v":0},"#'PP5'!$C$21"]
["pp5_town",{"$f":"'PP5'!$C$17","v":0},"#'PP5'!$C$17"]
["pp5_type_org",{"$f":"'PP5'!$C$11","v":0},"#'PP5'!$C$11"]
["pp5_vat_code",{"$f":"'PP5'!$C$72","v":0},"#'PP5'!$C$72"]
["pp5_website",{"$f":"'PP5'!$C$33","v":0},"#'PP5'!$C$33"]
["Project identification'!Print_Area",{"$f":"'Project identification'!$A:$K","v":0},"#'Project identification'!$A:$K"]
["priority_axis",{"$f":"Cover!$C$30","v":"Environment"},"#Cover!$C$30"]
["project_activities_out",{"$f":"'Project identification'!$B$386","v":0},"#'Project identification'!$B$386"]
["project_title",{"$f":"Cover!$C$28","v":0},"#Cover!$C$28"]
["project_type",{"$f":"Cover!$C$34","v":"Investment"},"#Cover!$C$34"]
["PP2'!Region1",{"$f":"'PP2'!$L$15:$L$18","v":{"$error":"#VALUE!"}},"#'PP2'!$L$15:$L$18"]
["PP3'!Region1",{"$f":"'PP3'!$L$15:$L$18","v":{"$error":"#VALUE!"}},"#'PP3'!$L$15:$L$18"]
["PP4'!Region1",{"$f":"'PP4'!$L$15:$L$18","v":{"$error":"#VALUE!"}},"#'PP4'!$L$15:$L$18"]
["PP5'!Region1",{"$f":"'PP5'!$L$15:$L$18","v":{"$error":"#VALUE!"}},"#'PP5'!$L$15:$L$18"]
["Region1",{"$f":"'PP1(LP)'!$L$15:$L$18","v":{"$error":"#VALUE!"}},"#'PP1(LP)'!$L$15:$L$18"]
["PP2'!Region2",{"$f":"'PP2'!$M$15:$M$17","v":{"$error":"#VALUE!"}},"#'PP2'!$M$15:$M$17"]
["PP3'!Region2",{"$f":"'PP3'!$M$15:$M$17","v":{"$error":"#VALUE!"}},"#'PP3'!$M$15:$M$17"]
["PP4'!Region2",{"$f":"'PP4'!$M$15:$M$17","v":{"$error":"#VALUE!"}},"#'PP4'!$M$15:$M$17"]
["PP5'!Region2",{"$f":"'PP5'!$M$15:$M$17","v":{"$error":"#VALUE!"}},"#'PP5'!$M$15:$M$17"]
["Region2",{"$f":"'PP1(LP)'!$M$15:$M$17","v":{"$error":"#VALUE!"}},"#'PP1(LP)'!$M$15:$M$17"]
["select_partner",{"$f":"Checklist!$K$22:$K$23","v":{"$error":"#VALUE!"}},"#Checklist!$K$22:$K$23"]
["smr_duration_bg",{"$f":"Summary!$B$26","v":0},"#Summary!$B$26"]
["smr_duration_en",{"$f":"Summary!$B$8","v":0},"#Summary!$B$8"]
["smr_duration_tr",{"$f":"Summary!$B$46","v":0},"#Summary!$B$46"]
["smr_lead_partner_bg",{"$f":"Summary!$B$22","v":0},"#Summary!$B$22"]
["smr_lead_partner_en",{"$f":"Summary!$B$4","v":0},"#Summary!$B$4"]
["smr_lead_partner_tr",{"$f":"Summary!$B$41","v":0},"#Summary!$B$41"]
["smr_partners_bg",{"$f":"Summary!$B$23","v":0},"#Summary!$B$23"]
["smr_partners_en",{"$f":"Summary!$B$5","v":0},"#Summary!$B$5"]
["smr_partners_tr",{"$f":"Summary!$B$43","v":0},"#Summary!$B$43"]
["smr_priority_axis_bg",{"$f":"Summary!$B$24","v":0},"#Summary!$B$24"]
["smr_priority_axis_en",{"$f":"Summary!$B$6","v":0},"#Summary!$B$6"]
["smr_priority_axis_tr",{"$f":"Summary!$B$44","v":0},"#Summary!$B$44"]
["smr_project_activities_bg",{"$f":"Summary!$B$31","v":0},"#Summary!$B$31"]
["smr_project_activities_en",{"$f":"Summary!$B$11","v":0},"#Summary!$B$11"]
["smr_project_activities_tr",{"$f":"Summary!$B$50","v":0},"#Summary!$B$50"]
["smr_project_objectives_bg",{"$f":"Summary!$B$30","v":0},"#Summary!$B$30"]
["smr_project_objectives_en",{"$f":"Summary!$B$10","v":0},"#Summary!$B$10"]
["smr_project_objectives_tr",{"$f":"Summary!$B$49","v":0},"#Summary!$B$49"]
["smr_project_Results_bg",{"$f":"Summary!$B$32","v":0},"#Summary!$B$32"]
["smr_project_Results_en",{"$f":"Summary!$B$13","v":0},"#Summary!$B$13"]
["smr_project_Results_tr",{"$f":"Summary!$B$52","v":0},"#Summary!$B$52"]
["smr_specific_objective_bg",{"$f":"Summary!$B$25","v":0},"#Summary!$B$25"]
["smr_specific_objective_en",{"$f":"Summary!$B$7","v":0},"#Summary!$B$7"]
["smr_specific_objective_tr",{"$f":"Summary!$B$45","v":0},"#Summary!$B$45"]
["smr_target_groups_bg",{"$f":"Summary!$B$34","v":0},"#Summary!$B$34"]
["smr_target_groups_en",{"$f":"Summary!$B$15","v":0},"#Summary!$B$15"]
["smr_target_groups_tr",{"$f":"Summary!$B$54","v":0},"#Summary!$B$54"]
["smr_title_bg",{"$f":"Summary!$B$21","v":0},"#Summary!$B$21"]
["smr_title_en",{"$f":"Summary!$B$3","v":0},"#Summary!$B$3"]
["smr_title_tr",{"$f":"Summary!$B$40","v":"Bizim Ortak Tarihimiz"},"#Summary!$B$40"]
["smr_total_budget_bg",{"$f":"Summary!$B$28","v":0},"#Summary!$B$28"]
["smr_total_budget_en",{"$f":"Summary!$B$9","v":0},"#Summary!$B$9"]
["smr_total_budget_tr",{"$f":"Summary!$B$48","v":0},"#Summary!$B$48"]
["specific_objective",{"$f":"Cover!$C$32","v":"1.2. Improving the capacity for nature protection, sustainable use and management of common natural resources through cooperation initiatives in the  cross-border area"},"#Cover!$C$32"]
["t1_pp_1_proj_total",{"$f":"'T1-PPs'!$E$6","v":0},"#'T1-PPs'!$E$6"]
["t1_pp_2_proj_total",{"$f":"'T1-PPs'!$E$7","v":0},"#'T1-PPs'!$E$7"]
["t1_pp_3_proj_total",{"$f":"'T1-PPs'!$E$8","v":0},"#'T1-PPs'!$E$8"]
["t1_pp_4_proj_total",{"$f":"'T1-PPs'!$E$9","v":0},"#'T1-PPs'!$E$9"]
["t1_pp_5_proj_total",{"$f":"'T1-PPs'!$E$10","v":0},"#'T1-PPs'!$E$10"]
["t1_pp1_country",{"$f":"'T1-PPs'!$D$6","v":"BG"},"#'T1-PPs'!$D$6"]
["t1_pp1_organisation_en",{"$f":"'T1-PPs'!$C$6","v":""},"#'T1-PPs'!$C$6"]
["t1_pp2_country",{"$f":"'T1-PPs'!$D$7","v":"TR"},"#'T1-PPs'!$D$7"]
["t1_pp2_organisation_en",{"$f":"'T1-PPs'!$C$7","v":""},"#'T1-PPs'!$C$7"]
["t1_pp3_country",{"$f":"'T1-PPs'!$D$8","v":"TR"},"#'T1-PPs'!$D$8"]
["t1_pp3_organisation_en",{"$f":"'T1-PPs'!$C$8","v":""},"#'T1-PPs'!$C$8"]
["t1_pp4_country",{"$f":"'T1-PPs'!$D$9","v":"BG"},"#'T1-PPs'!$D$9"]
["t1_pp4_organisation_en",{"$f":"'T1-PPs'!$C$9","v":""},"#'T1-PPs'!$C$9"]
["t1_pp5_country",{"$f":"'T1-PPs'!$D$10","v":"TR"},"#'T1-PPs'!$D$10"]
["t1_pp5_organisation_en",{"$f":"'T1-PPs'!$C$10","v":""},"#'T1-PPs'!$C$10"]
["t1_proj_total",{"$f":"'T1-PPs'!$E$11","v":0},"#'T1-PPs'!$E$11"]
["t2_Bl1",{"$f":"'Table 2-total'!$D$4","v":0},"#'Table 2-total'!$D$4"]
["t2_Bl1_perc",{"$f":"'Table 2-total'!$E$4","v":{"$error":"#DIV/0!"}},"#'Table 2-total'!$E$4"]
["t2_Bl2",{"$f":"'Table 2-total'!$D$7","v":0},"#'Table 2-total'!$D$7"]
["t2_Bl2_perc",{"$f":"'Table 2-total'!$E$7","v":{"$error":"#DIV/0!"}},"#'Table 2-total'!$E$7"]
["t2_Bl3",{"$f":"'Table 2-total'!$D$14","v":0},"#'Table 2-total'!$D$14"]
["t2_Bl3_1",{"$f":"'Table 2-total'!$D$10","v":0},"#'Table 2-total'!$D$10"]
["t2_Bl3_1_in_area",{"$f":"'Table 2-total'!$B$10","v":0},"#'Table 2-total'!$B$10"]
["t2_Bl3_1_out_area",{"$f":"'Table 2-total'!$C$10","v":0},"#'Table 2-total'!$C$10"]
["t2_Bl3_1_perc",{"$f":"'Table 2-total'!$E$10","v":{"$error":"#DIV/0!"}},"#'Table 2-total'!$E$10"]
["t2_Bl3_2",{"$f":"'Table 2-total'!$D$11","v":0},"#'Table 2-total'!$D$11"]
["t2_Bl3_2_in_area",{"$f":"'Table 2-total'!$B$11","v":0},"#'Table 2-total'!$B$11"]
["t2_Bl3_2_out_area",{"$f":"'Table 2-total'!$C$11","v":0},"#'Table 2-total'!$C$11"]
["t2_Bl3_2_perc",{"$f":"'Table 2-total'!$E$11","v":{"$error":"#DIV/0!"}},"#'Table 2-total'!$E$11"]
["t2_Bl3_3",{"$f":"'Table 2-total'!$D$12","v":0},"#'Table 2-total'!$D$12"]
["t2_Bl3_3_in_area",{"$f":"'Table 2-total'!$B$12","v":0},"#'Table 2-total'!$B$12"]
["t2_Bl3_3_out_area",{"$f":"'Table 2-total'!$C$12","v":0},"#'Table 2-total'!$C$12"]
["t2_Bl3_3_perc",{"$f":"'Table 2-total'!$E$12","v":{"$error":"#DIV/0!"}},"#'Table 2-total'!$E$12"]
["t2_Bl3_4",{"$f":"'Table 2-total'!$D$13","v":0},"#'Table 2-total'!$D$13"]
["t2_Bl3_4_in_area",{"$f":"'Table 2-total'!$B$13","v":0},"#'Table 2-total'!$B$13"]
["t2_Bl3_4_out_area",{"$f":"'Table 2-total'!$C$13","v":0},"#'Table 2-total'!$C$13"]
["t2_Bl3_4_perc",{"$f":"'Table 2-total'!$E$13","v":{"$error":"#DIV/0!"}},"#'Table 2-total'!$E$13"]
["t2_Bl3_in_area",{"$f":"'Table 2-total'!$B$14","v":0},"#'Table 2-total'!$B$14"]
["t2_Bl3_out_area",{"$f":"'Table 2-total'!$C$14","v":0},"#'Table 2-total'!$C$14"]
["t2_Bl3_perc",{"$f":"'Table 2-total'!$E$14","v":{"$error":"#DIV/0!"}},"#'Table 2-total'!$E$14"]
["t2_Bl4",{"$f":"'Table 2-total'!$D$29","v":0},"#'Table 2-total'!$D$29"]
["t2_Bl4_1",{"$f":"'Table 2-total'!$D$17","v":0},"#'Table 2-total'!$D$17"]
["t2_Bl4_1_in_area",{"$f":"'Table 2-total'!$B$17","v":0},"#'Table 2-total'!$B$17"]
["t2_Bl4_1_out_area",{"$f":"'Table 2-total'!$C$17","v":0},"#'Table 2-total'!$C$17"]
["t2_Bl4_1_perc",{"$f":"'Table 2-total'!$E$17","v":{"$error":"#DIV/0!"}},"#'Table 2-total'!$E$17"]
["t2_Bl4_10",{"$f":"'Table 2-total'!$D$26","v":0},"#'Table 2-total'!$D$26"]
["t2_Bl4_10_in_area",{"$f":"'Table 2-total'!$B$26","v":0},"#'Table 2-total'!$B$26"]
["t2_Bl4_10_out_area",{"$f":"'Table 2-total'!$C$26","v":0},"#'Table 2-total'!$C$26"]
["t2_Bl4_10_perc",{"$f":"'Table 2-total'!$E$26","v":{"$error":"#DIV/0!"}},"#'Table 2-total'!$E$26"]
["t2_Bl4_11",{"$f":"'Table 2-total'!$D$27","v":0},"#'Table 2-total'!$D$27"]
["t2_Bl4_11_in_area",{"$f":"'Table 2-total'!$B$27","v":0},"#'Table 2-total'!$B$27"]
["t2_Bl4_11_out_area",{"$f":"'Table 2-total'!$C$27","v":0},"#'Table 2-total'!$C$27"]
["t2_Bl4_11_perc",{"$f":"'Table 2-total'!$E$27","v":{"$error":"#DIV/0!"}},"#'Table 2-total'!$E$27"]
["t2_Bl4_12",{"$f":"'Table 2-total'!$D$28","v":0},"#'Table 2-total'!$D$28"]
["t2_Bl4_12_in_area",{"$f":"'Table 2-total'!$B$28","v":0},"#'Table 2-total'!$B$28"]
["t2_Bl4_12_out_area",{"$f":"'Table 2-total'!$C$28","v":0},"#'Table 2-total'!$C$28"]
["t2_Bl4_12_perc",{"$f":"'Table 2-total'!$E$28","v":{"$error":"#DIV/0!"}},"#'Table 2-total'!$E$28"]
["t2_Bl4_2",{"$f":"'Table 2-total'!$D$18","v":0},"#'Table 2-total'!$D$18"]
["t2_Bl4_2_in_area",{"$f":"'Table 2-total'!$B$18","v":0},"#'Table 2-total'!$B$18"]
["t2_Bl4_2_out_area",{"$f":"'Table 2-total'!$C$18","v":0},"#'Table 2-total'!$C$18"]
["t2_Bl4_2_perc",{"$f":"'Table 2-total'!$E$18","v":{"$error":"#DIV/0!"}},"#'Table 2-total'!$E$18"]
["t2_Bl4_3",{"$f":"'Table 2-total'!$D$19","v":0},"#'Table 2-total'!$D$19"]
["t2_Bl4_3_in_area",{"$f":"'Table 2-total'!$B$19","v":0},"#'Table 2-total'!$B$19"]
["t2_Bl4_3_out_area",{"$f":"'Table 2-total'!$C$19","v":0},"#'Table 2-total'!$C$19"]
["t2_Bl4_3_perc",{"$f":"'Table 2-total'!$E$19","v":{"$error":"#DIV/0!"}},"#'Table 2-total'!$E$19"]
["t2_Bl4_4",{"$f":"'Table 2-total'!$D$20","v":0},"#'Table 2-total'!$D$20"]
["t2_Bl4_4_in_area",{"$f":"'Table 2-total'!$B$20","v":0},"#'Table 2-total'!$B$20"]
["t2_Bl4_4_out_area",{"$f":"'Table 2-total'!$C$20","v":0},"#'Table 2-total'!$C$20"]
["t2_Bl4_4_perc",{"$f":"'Table 2-total'!$E$20","v":{"$error":"#DIV/0!"}},"#'Table 2-total'!$E$20"]
["t2_Bl4_5",{"$f":"'Table 2-total'!$D$21","v":0},"#'Table 2-total'!$D$21"]
["t2_Bl4_5_in_area",{"$f":"'Table 2-total'!$B$21","v":0},"#'Table 2-total'!$B$21"]
["t2_Bl4_5_out_area",{"$f":"'Table 2-total'!$C$21","v":0},"#'Table 2-total'!$C$21"]
["t2_Bl4_5_perc",{"$f":"'Table 2-total'!$E$21","v":{"$error":"#DIV/0!"}},"#'Table 2-total'!$E$21"]
["t2_Bl4_6",{"$f":"'Table 2-total'!$D$22","v":0},"#'Table 2-total'!$D$22"]
["t2_Bl4_6_in_area",{"$f":"'Table 2-total'!$B$22","v":0},"#'Table 2-total'!$B$22"]
["t2_Bl4_6_out_area",{"$f":"'Table 2-total'!$C$22","v":0},"#'Table 2-total'!$C$22"]
["t2_Bl4_6_perc",{"$f":"'Table 2-total'!$E$22","v":{"$error":"#DIV/0!"}},"#'Table 2-total'!$E$22"]
["t2_Bl4_7",{"$f":"'Table 2-total'!$D$23","v":0},"#'Table 2-total'!$D$23"]
["t2_Bl4_7_in_area",{"$f":"'Table 2-total'!$B$23","v":0},"#'Table 2-total'!$B$23"]
["t2_Bl4_7_out_area",{"$f":"'Table 2-total'!$C$23","v":0},"#'Table 2-total'!$C$23"]
["t2_Bl4_7_perc",{"$f":"'Table 2-total'!$E$23","v":{"$error":"#DIV/0!"}},"#'Table 2-total'!$E$23"]
["t2_Bl4_8",{"$f":"'Table 2-total'!$D$24","v":0},"#'Table 2-total'!$D$24"]
["t2_Bl4_8_in_area",{"$f":"'Table 2-total'!$B$24","v":0},"#'Table 2-total'!$B$24"]
["t2_Bl4_8_out_area",{"$f":"'Table 2-total'!$C$24","v":0},"#'Table 2-total'!$C$24"]
["t2_Bl4_8_perc",{"$f":"'Table 2-total'!$E$24","v":{"$error":"#DIV/0!"}},"#'Table 2-total'!$E$24"]
["t2_Bl4_9",{"$f":"'Table 2-total'!$D$25","v":0},"#'Table 2-total'!$D$25"]
["t2_Bl4_9_in_area",{"$f":"'Table 2-total'!$B$25","v":0},"#'Table 2-total'!$B$25"]
["t2_Bl4_9_out_area",{"$f":"'Table 2-total'!$C$25","v":0},"#'Table 2-total'!$C$25"]
["t2_Bl4_9_perc",{"$f":"'Table 2-total'!$E$25","v":{"$error":"#DIV/0!"}},"#'Table 2-total'!$E$25"]
["t2_Bl4_in_area",{"$f":"'Table 2-total'!$B$29","v":0},"#'Table 2-total'!$B$29"]
["t2_Bl4_out_area",{"$f":"'Table 2-total'!$C$29","v":0},"#'Table 2-total'!$C$29"]
["t2_Bl4_perc",{"$f":"'Table 2-total'!$E$29","v":{"$error":"#DIV/0!"}},"#'Table 2-total'!$E$29"]
["t2_Bl5",{"$f":"'Table 2-total'!$D$34","v":0},"#'Table 2-total'!$D$34"]
["t2_Bl5_1",{"$f":"'Table 2-total'!$D$32","v":0},"#'Table 2-total'!$D$32"]
["t2_Bl5_1_in_area",{"$f":"'Table 2-total'!$B$32","v":0},"#'Table 2-total'!$B$32"]
["t2_Bl5_1_out_area",{"$f":"'Table 2-total'!$C$32","v":0},"#'Table 2-total'!$C$32"]
["t2_Bl5_1_perc",{"$f":"'Table 2-total'!$E$32","v":{"$error":"#DIV/0!"}},"#'Table 2-total'!$E$32"]
["t2_Bl5_2",{"$f":"'Table 2-total'!$D$33","v":0},"#'Table 2-total'!$D$33"]
["t2_Bl5_2_in_area",{"$f":"'Table 2-total'!$B$33","v":0},"#'Table 2-total'!$B$33"]
["t2_Bl5_2_out_area",{"$f":"'Table 2-total'!$C$33","v":0},"#'Table 2-total'!$C$33"]
["t2_Bl5_2_perc",{"$f":"'Table 2-total'!$E$34","v":{"$error":"#DIV/0!"}},"#'Table 2-total'!$E$34"]
["t2_Bl5_in_area",{"$f":"'Table 2-total'!$B$34","v":0},"#'Table 2-total'!$B$34"]
["t2_Bl5_out_area",{"$f":"'Table 2-total'!$C$34","v":0},"#'Table 2-total'!$C$34"]
["t2_Bl5_perc",{"$f":"'Table 2-total'!$E$33","v":{"$error":"#DIV/0!"}},"#'Table 2-total'!$E$33"]
["t2_Bl6",{"$f":"'Table 2-total'!$D$39","v":0},"#'Table 2-total'!$D$39"]
["t2_Bl6_1",{"$f":"'Table 2-total'!$D$37","v":0},"#'Table 2-total'!$D$37"]
["t2_Bl6_1_in_area",{"$f":"'Table 2-total'!$B$37","v":0},"#'Table 2-total'!$B$37"]
["t2_Bl6_1_out_area",{"$f":"'Table 2-total'!$C$37","v":0},"#'Table 2-total'!$C$37"]
["t2_Bl6_1_perc",{"$f":"'Table 2-total'!$E$37","v":{"$error":"#DIV/0!"}},"#'Table 2-total'!$E$37"]
["t2_Bl6_2",{"$f":"'Table 2-total'!$D$38","v":0},"#'Table 2-total'!$D$38"]
["t2_Bl6_2_in_area",{"$f":"'Table 2-total'!$B$38","v":0},"#'Table 2-total'!$B$38"]
["t2_Bl6_2_out_area",{"$f":"'Table 2-total'!$C$38","v":0},"#'Table 2-total'!$C$38"]
["t2_Bl6_2_perc",{"$f":"'Table 2-total'!$E$38","v":{"$error":"#DIV/0!"}},"#'Table 2-total'!$E$38"]
["t2_Bl6_in_area",{"$f":"'Table 2-total'!$B$39","v":0},"#'Table 2-total'!$B$39"]
["t2_Bl6_out_area",{"$f":"'Table 2-total'!$C$39","v":0},"#'Table 2-total'!$C$39"]
["t2_Bl6_perc",{"$f":"'Table 2-total'!$E$39","v":{"$error":"#DIV/0!"}},"#'Table 2-total'!$E$39"]
["t2_own",{"$f":"'Table 2-total'!$D$41","v":0},"#'Table 2-total'!$D$41"]
["t2_own_in_area",{"$f":"'Table 2-total'!$B$41","v":0},"#'Table 2-total'!$B$41"]
["t2_own_perc",{"$f":"'Table 2-total'!$E$41","v":{"$error":"#DIV/0!"}},"#'Table 2-total'!$E$41"]
["t2_t2_own_out_area",{"$f":"'Table 2-total'!$C$41","v":0},"#'Table 2-total'!$C$41"]
["t2_total",{"$f":"'Table 2-total'!$D$45","v":0},"#'Table 2-total'!$D$45"]
["t2_total_direct",{"$f":"'Table 2-total'!$D$43","v":0},"#'Table 2-total'!$D$43"]
["t2_total_direct_in_area",{"$f":"'Table 2-total'!$B$43","v":0},"#'Table 2-total'!$B$43"]
["t2_total_direct_out_area",{"$f":"'Table 2-total'!$C$43","v":0},"#'Table 2-total'!$C$43"]
["t2_total_direct_perc",{"$f":"'Table 2-total'!$E$43","v":{"$error":"#DIV/0!"}},"#'Table 2-total'!$E$43"]
["t2_total_in_area",{"$f":"'Table 2-total'!$B$45","v":0},"#'Table 2-total'!$B$45"]
["t2_total_out_area",{"$f":"'Table 2-total'!$C$45","v":0},"#'Table 2-total'!$C$45"]
["t2_total_perc",{"$f":"'Table 2-total'!$E$45","v":0},"#'Table 2-total'!$E$45"]
["t3_BL1_in_area",{"$f":"'Table 3-summary'!$C$5","v":0},"#'Table 3-summary'!$C$5"]
["t3_BL1_tot",{"$f":"'Table 3-summary'!$E$5","v":0},"#'Table 3-summary'!$E$5"]
["t3_BL1_tot_perc",{"$f":"'Table 3-summary'!$F$5","v":{"$error":"#DIV/0!"}},"#'Table 3-summary'!$F$5"]
["t3_BL2_in_area",{"$f":"'Table 3-summary'!$C$6","v":0},"#'Table 3-summary'!$C$6"]
["t3_BL2_tot",{"$f":"'Table 3-summary'!$E$6","v":0},"#'Table 3-summary'!$E$6"]
["t3_BL2_tot_perc",{"$f":"'Table 3-summary'!$F$6","v":{"$error":"#DIV/0!"}},"#'Table 3-summary'!$F$6"]
["t3_BL3_in_area",{"$f":"'Table 3-summary'!$C$7","v":0},"#'Table 3-summary'!$C$7"]
["t3_BL3_out_area",{"$f":"'Table 3-summary'!$D$7","v":0},"#'Table 3-summary'!$D$7"]
["t3_BL3_tot",{"$f":"'Table 3-summary'!$E$7","v":0},"#'Table 3-summary'!$E$7"]
["t3_BL3_tot_perc",{"$f":"'Table 3-summary'!$F$7","v":{"$error":"#DIV/0!"}},"#'Table 3-summary'!$F$7"]
["t3_BL4_in_area",{"$f":"'Table 3-summary'!$C$8","v":0},"#'Table 3-summary'!$C$8"]
["t3_BL4_out_area",{"$f":"'Table 3-summary'!$D$8","v":0},"#'Table 3-summary'!$D$8"]
["t3_BL4_tot",{"$f":"'Table 3-summary'!$E$8","v":0},"#'Table 3-summary'!$E$8"]
["t3_BL4_tot_perc",{"$f":"'Table 3-summary'!$F$8","v":{"$error":"#DIV/0!"}},"#'Table 3-summary'!$F$8"]
["t3_BL5_in_area",{"$f":"'Table 3-summary'!$C$9","v":0},"#'Table 3-summary'!$C$9"]
["t3_BL5_tot",{"$f":"'Table 3-summary'!$E$9","v":0},"#'Table 3-summary'!$E$9"]
["t3_BL5_tot_perc",{"$f":"'Table 3-summary'!$F$9","v":{"$error":"#DIV/0!"}},"#'Table 3-summary'!$F$9"]
["t3_BL6_in_area",{"$f":"'Table 3-summary'!$C$10","v":0},"#'Table 3-summary'!$C$10"]
["t3_BL6_tot",{"$f":"'Table 3-summary'!$E$10","v":0},"#'Table 3-summary'!$E$10"]
["t3_BL6_tot_perc",{"$f":"'Table 3-summary'!$F$10","v":{"$error":"#DIV/0!"}},"#'Table 3-summary'!$F$10"]
["t3_own_in_area",{"$f":"'Table 3-summary'!$C$13","v":0},"#'Table 3-summary'!$C$13"]
["t3_own_out_area",{"$f":"'Table 3-summary'!$D$13","v":0},"#'Table 3-summary'!$D$13"]
["t3_own_tot",{"$f":"'Table 3-summary'!$E$13","v":0},"#'Table 3-summary'!$E$13"]
["t3_own_tot_perc",{"$f":"'Table 3-summary'!$F$13","v":0},"#'Table 3-summary'!$F$13"]
["t3_total_in_area",{"$f":"'Table 3-summary'!$C$11","v":0},"#'Table 3-summary'!$C$11"]
["t3_total_out_area",{"$f":"'Table 3-summary'!$D$11","v":0},"#'Table 3-summary'!$D$11"]
["t3_total_perc_in_area",{"$f":"'Table 3-summary'!$C$15","v":0},"#'Table 3-summary'!$C$15"]
["t3_total_perc_out_area",{"$f":"'Table 3-summary'!$D$15","v":0},"#'Table 3-summary'!$D$15"]
["t3_total_perc_tot",{"$f":"'Table 3-summary'!$E$15","v":0},"#'Table 3-summary'!$E$15"]
["t3_total_perc_tot_perc",{"$f":"'Table 3-summary'!$F$15","v":0},"#'Table 3-summary'!$F$15"]
["t3_total_tot",{"$f":"'Table 3-summary'!$E$11","v":0},"#'Table 3-summary'!$E$11"]
["t3_total_tot_perc",{"$f":"'Table 3-summary'!$F$11","v":0},"#'Table 3-summary'!$F$11"]
["t4_BL1",{"$f":"'Table 4 PP`BL'!$H$4","v":0},"#'Table 4 PP`BL'!$H$4"]
["t4_BL1_pp1",{"$f":"'Table 4 PP`BL'!$C$4","v":0},"#'Table 4 PP`BL'!$C$4"]
["t4_BL1_pp2",{"$f":"'Table 4 PP`BL'!$D$4","v":0},"#'Table 4 PP`BL'!$D$4"]
["t4_BL1_pp3",{"$f":"'Table 4 PP`BL'!$E$4","v":0},"#'Table 4 PP`BL'!$E$4"]
["t4_BL1_pp4",{"$f":"'Table 4 PP`BL'!$F$4","v":0},"#'Table 4 PP`BL'!$F$4"]
["t4_BL1_pp5",{"$f":"'Table 4 PP`BL'!$G$4","v":0},"#'Table 4 PP`BL'!$G$4"]
["t4_BL2",{"$f":"'Table 4 PP`BL'!$H$5","v":0},"#'Table 4 PP`BL'!$H$5"]
["t4_BL2_pp1",{"$f":"'Table 4 PP`BL'!$C$5","v":0},"#'Table 4 PP`BL'!$C$5"]
["t4_BL2_pp2",{"$f":"'Table 4 PP`BL'!$D$5","v":0},"#'Table 4 PP`BL'!$D$5"]
["t4_BL2_pp3",{"$f":"'Table 4 PP`BL'!$E$5","v":0},"#'Table 4 PP`BL'!$E$5"]
["t4_BL2_pp4",{"$f":"'Table 4 PP`BL'!$F$5","v":0},"#'Table 4 PP`BL'!$F$5"]
["t4_BL2_pp5",{"$f":"'Table 4 PP`BL'!$G$5","v":0},"#'Table 4 PP`BL'!$G$5"]
["t4_BL3",{"$f":"'Table 4 PP`BL'!$H$6","v":0},"#'Table 4 PP`BL'!$H$6"]
["t4_BL3_pp1",{"$f":"'Table 4 PP`BL'!$C$6","v":0},"#'Table 4 PP`BL'!$C$6"]
["t4_BL3_pp2",{"$f":"'Table 4 PP`BL'!$D$6","v":0},"#'Table 4 PP`BL'!$D$6"]
["t4_BL3_pp3",{"$f":"'Table 4 PP`BL'!$E$6","v":0},"#'Table 4 PP`BL'!$E$6"]
["t4_BL3_pp4",{"$f":"'Table 4 PP`BL'!$F$6","v":0},"#'Table 4 PP`BL'!$F$6"]
["t4_BL3_pp5",{"$f":"'Table 4 PP`BL'!$G$6","v":0},"#'Table 4 PP`BL'!$G$6"]
["t4_BL4",{"$f":"'Table 4 PP`BL'!$H$7","v":0},"#'Table 4 PP`BL'!$H$7"]
["t4_BL4_pp1",{"$f":"'Table 4 PP`BL'!$C$7","v":0},"#'Table 4 PP`BL'!$C$7"]
["t4_BL4_pp2",{"$f":"'Table 4 PP`BL'!$D$7","v":0},"#'Table 4 PP`BL'!$D$7"]
["t4_BL4_pp3",{"$f":"'Table 4 PP`BL'!$E$7","v":0},"#'Table 4 PP`BL'!$E$7"]
["t4_BL4_pp4",{"$f":"'Table 4 PP`BL'!$F$7","v":0},"#'Table 4 PP`BL'!$F$7"]
["t4_BL4_pp5",{"$f":"'Table 4 PP`BL'!$G$7","v":0},"#'Table 4 PP`BL'!$G$7"]
["t4_BL5",{"$f":"'Table 4 PP`BL'!$H$8","v":0},"#'Table 4 PP`BL'!$H$8"]
["t4_BL5_pp1",{"$f":"'Table 4 PP`BL'!$C$8","v":0},"#'Table 4 PP`BL'!$C$8"]
["t4_BL5_pp2",{"$f":"'Table 4 PP`BL'!$D$8","v":0},"#'Table 4 PP`BL'!$D$8"]
["t4_BL5_pp3",{"$f":"'Table 4 PP`BL'!$E$8","v":0},"#'Table 4 PP`BL'!$E$8"]
["t4_BL5_pp4",{"$f":"'Table 4 PP`BL'!$F$8","v":0},"#'Table 4 PP`BL'!$F$8"]
["t4_BL5_pp5",{"$f":"'Table 4 PP`BL'!$G$8","v":0},"#'Table 4 PP`BL'!$G$8"]
["t4_BL6",{"$f":"'Table 4 PP`BL'!$H$9","v":0},"#'Table 4 PP`BL'!$H$9"]
["t4_BL6_pp1",{"$f":"'Table 4 PP`BL'!$C$9","v":0},"#'Table 4 PP`BL'!$C$9"]
["t4_BL6_pp2",{"$f":"'Table 4 PP`BL'!$D$9","v":0},"#'Table 4 PP`BL'!$D$9"]
["t4_BL6_pp3",{"$f":"'Table 4 PP`BL'!$E$9","v":0},"#'Table 4 PP`BL'!$E$9"]
["t4_BL6_pp4",{"$f":"'Table 4 PP`BL'!$F$9","v":0},"#'Table 4 PP`BL'!$F$9"]
["t4_BL6_pp5",{"$f":"'Table 4 PP`BL'!$G$9","v":0},"#'Table 4 PP`BL'!$G$9"]
["t4_own",{"$f":"'Table 4 PP`BL'!$H$10","v":0},"#'Table 4 PP`BL'!$H$10"]
["t4_own_pp1",{"$f":"'Table 4 PP`BL'!$C$10","v":0},"#'Table 4 PP`BL'!$C$10"]
["t4_own_pp2",{"$f":"'Table 4 PP`BL'!$D$10","v":0},"#'Table 4 PP`BL'!$D$10"]
["t4_own_pp3",{"$f":"'Table 4 PP`BL'!$E$10","v":0},"#'Table 4 PP`BL'!$E$10"]
["t4_own_pp4",{"$f":"'Table 4 PP`BL'!$F$10","v":0},"#'Table 4 PP`BL'!$F$10"]
["t4_own_pp5",{"$f":"'Table 4 PP`BL'!$G$10","v":0},"#'Table 4 PP`BL'!$G$10"]
["t4_total",{"$f":"'Table 4 PP`BL'!$H$11","v":0},"#'Table 4 PP`BL'!$H$11"]
["t4_total_perc",{"$f":"'Table 4 PP`BL'!$H$12","v":0},"#'Table 4 PP`BL'!$H$12"]
["t4_total_perc_pp1",{"$f":"'Table 4 PP`BL'!$C$12","v":{"$error":"#DIV/0!"}},"#'Table 4 PP`BL'!$C$12"]
["t4_total_perc_pp2",{"$f":"'Table 4 PP`BL'!$D$12","v":{"$error":"#DIV/0!"}},"#'Table 4 PP`BL'!$D$12"]
["t4_total_perc_pp3",{"$f":"'Table 4 PP`BL'!$E$12","v":{"$error":"#DIV/0!"}},"#'Table 4 PP`BL'!$E$12"]
["t4_total_perc_pp4",{"$f":"'Table 4 PP`BL'!$F$12","v":{"$error":"#DIV/0!"}},"#'Table 4 PP`BL'!$F$12"]
["t4_total_perc_pp5",{"$f":"'Table 4 PP`BL'!$G$12","v":{"$error":"#DIV/0!"}},"#'Table 4 PP`BL'!$G$12"]
["t4_total_pp1",{"$f":"'Table 4 PP`BL'!$C$11","v":0},"#'Table 4 PP`BL'!$C$11"]
["t4_total_pp2",{"$f":"'Table 4 PP`BL'!$D$11","v":0},"#'Table 4 PP`BL'!$D$11"]
["t4_total_pp3",{"$f":"'Table 4 PP`BL'!$E$11","v":0},"#'Table 4 PP`BL'!$E$11"]
["t4_total_pp4",{"$f":"'Table 4 PP`BL'!$F$11","v":0},"#'Table 4 PP`BL'!$F$11"]
["t4_total_pp5",{"$f":"'Table 4 PP`BL'!$G$11","v":0},"#'Table 4 PP`BL'!$G$11"]
["t5_eu_rate",{"$f":"'Table 5-Sources'!$G$9","v":{"$error":"#DIV/0!"}},"#'Table 5-Sources'!$G$9"]
["t5_eu_rate_pp1",{"$f":"'Table 5-Sources'!$B$9","v":{"$error":"#DIV/0!"}},"#'Table 5-Sources'!$B$9"]
["t5_eu_rate_pp2",{"$f":"'Table 5-Sources'!$C$9","v":{"$error":"#DIV/0!"}},"#'Table 5-Sources'!$C$9"]
["t5_eu_rate_pp3",{"$f":"'Table 5-Sources'!$D$9","v":{"$error":"#DIV/0!"}},"#'Table 5-Sources'!$D$9"]
["t5_eu_rate_pp4",{"$f":"'Table 5-Sources'!$E$9","v":{"$error":"#DIV/0!"}},"#'Table 5-Sources'!$E$9"]
["t5_eu_rate_pp5",{"$f":"'Table 5-Sources'!$F$9","v":{"$error":"#DIV/0!"}},"#'Table 5-Sources'!$F$9"]
["t5_eu_subsidy",{"$f":"'Table 5-Sources'!$G$10","v":0},"#'Table 5-Sources'!$G$10"]
["t5_eu_subsidy_pp1",{"$f":"'Table 5-Sources'!$B$10","v":0},"#'Table 5-Sources'!$B$10"]
["t5_eu_subsidy_pp2",{"$f":"'Table 5-Sources'!$C$10","v":0},"#'Table 5-Sources'!$C$10"]
["t5_eu_subsidy_pp3",{"$f":"'Table 5-Sources'!$D$10","v":0},"#'Table 5-Sources'!$D$10"]
["t5_eu_subsidy_pp4",{"$f":"'Table 5-Sources'!$E$10","v":0},"#'Table 5-Sources'!$E$10"]
["t5_eu_subsidy_pp5",{"$f":"'Table 5-Sources'!$F$10","v":0},"#'Table 5-Sources'!$F$10"]
["t5_national",{"$f":"'Table 5-Sources'!$G$6","v":0},"#'Table 5-Sources'!$G$6"]
["t5_national_pp1",{"$f":"'Table 5-Sources'!$B$6","v":0},"#'Table 5-Sources'!$B$6"]
["t5_national_pp2",{"$f":"'Table 5-Sources'!$C$6","v":0},"#'Table 5-Sources'!$C$6"]
["t5_national_pp3",{"$f":"'Table 5-Sources'!$D$6","v":0},"#'Table 5-Sources'!$D$6"]
["t5_national_pp4",{"$f":"'Table 5-Sources'!$E$6","v":0},"#'Table 5-Sources'!$E$6"]
["t5_national_pp5",{"$f":"'Table 5-Sources'!$F$6","v":0},"#'Table 5-Sources'!$F$6"]
["t5_own",{"$f":"'Table 5-Sources'!$G$8","v":0},"#'Table 5-Sources'!$G$8"]
["t5_own_pp1",{"$f":"'Table 5-Sources'!$B$8","v":0},"#'Table 5-Sources'!$B$8"]
["t5_own_pp2",{"$f":"'Table 5-Sources'!$C$8","v":0},"#'Table 5-Sources'!$C$8"]
["t5_own_pp3",{"$f":"'Table 5-Sources'!$D$8","v":0},"#'Table 5-Sources'!$D$8"]
["t5_own_pp4",{"$f":"'Table 5-Sources'!$E$8","v":0},"#'Table 5-Sources'!$E$8"]
["t5_own_pp5",{"$f":"'Table 5-Sources'!$F$8","v":0},"#'Table 5-Sources'!$F$8"]
["t5_state",{"$f":"'Table 5-Sources'!$G$7","v":0},"#'Table 5-Sources'!$G$7"]
["t5_state_pp1",{"$f":"'Table 5-Sources'!$B$7","v":0},"#'Table 5-Sources'!$B$7"]
["t5_state_pp2",{"$f":"'Table 5-Sources'!$C$7","v":0},"#'Table 5-Sources'!$C$7"]
["t5_state_pp3",{"$f":"'Table 5-Sources'!$D$7","v":0},"#'Table 5-Sources'!$D$7"]
["t5_state_pp4",{"$f":"'Table 5-Sources'!$E$7","v":0},"#'Table 5-Sources'!$E$7"]
["t5_state_pp5",{"$f":"'Table 5-Sources'!$F$7","v":0},"#'Table 5-Sources'!$F$7"]
["t5_total",{"$f":"'Table 5-Sources'!$G$5","v":0},"#'Table 5-Sources'!$G$5"]
["t5_total_pp1",{"$f":"'Table 5-Sources'!$B$5","v":0},"#'Table 5-Sources'!$B$5"]
["t5_total_pp2",{"$f":"'Table 5-Sources'!$C$5","v":0},"#'Table 5-Sources'!$C$5"]
["t5_total_pp3",{"$f":"'Table 5-Sources'!$D$5","v":0},"#'Table 5-Sources'!$D$5"]
["t5_total_pp4",{"$f":"'Table 5-Sources'!$E$5","v":0},"#'Table 5-Sources'!$E$5"]
["t5_total_pp5",{"$f":"'Table 5-Sources'!$F$5","v":0},"#'Table 5-Sources'!$F$5"]
["Cover!Tourism",{"$f":"Cover!$P$30:$P$32","v":{"$error":"#VALUE!"}},"#Cover!$P$30:$P$32"]
["Tourism",{"$f":"'Project identification'!$P$11:$P$13","v":{"$error":"#VALUE!"}},"#'Project identification'!$P$11:$P$13"]
["Cover!Tourism1",{"$f":"Cover!$O$41:$O$46","v":{"$error":"#VALUE!"}},"#Cover!$O$41:$O$46"]
["Type1",{"$f":"'Project identification'!$O$15","v":"Soft"},"#'Project identification'!$O$15"]
["Type2",{"$f":"'Project identification'!$P$15","v":"Investment"},"#'Project identification'!$P$15"]
["Type3",{"$f":"'Project identification'!$Q$15:$Q$16","v":{"$error":"#VALUE!"}},"#'Project identification'!$Q$15:$Q$16"]